{"text_format":"1","workbook":"xlsx","n_sheets":140,"sheets":["CONFIGURATION","Currency Table","Submission","Group Information","Content","FileStorage","Index","Import","Export","Attachments","Declaration","Zones","Import Differences","Coversheet","Solvency Certificate","Financial Condition","Form 1","Form 2","Form 8","Form 1A","Form 2A","Form 8A","Form 1EBS","Schedule II","Schedule II (EBS)","Schedule IIA","Schedule IIA (EBS)","Investment Reconciliation","Schedule IIB (EBS)","Schedule IIC (EBS)","Schedule IID (EBS)","Schedule IIE (EBS)","Schedule IIF (EBS)","Grandfathered Equity Part","Non-Grandfathered Equity Part","Schedule III","Schedule III (EBS)","Schedule IIIA (EBS)","Schedule IVA","Schedule IVB","Schedule IVC (EBS)","Schedule IVD (EBS)","Schedule IVE (EBS)","Schedule IVF","Schedule V","Schedule V(a)","Schedule V(b)","Schedule V(c)","Schedule V(e)","Schedule V(f)","Schedule V(g)","Schedule V(k)","Schedule VI","Schedule VIA","Schedule VI (EBS)","Schedule VIA (EBS)","Schedule VI PY","Schedule VI (EBS) PY","Schedule VI (New)","Schedule VIA (New)","Schedule VI (EBS) (New)","Schedule VIA (EBS) (New)","Schedule VII","Schedule VII (EBS)","Schedule VIII","Schedule VIII (EBS)","Schedule VIII(a)","Schedule VIIIA (EBS)","Schedule IX(a)","Schedule IX(b)","Schedule IX(c)","Schedule X(a)","Schedule X(b)","Schedule X(c)","Schedule X(d)","Schedule X(e)","Schedule X(f)","Schedule X(g)","Schedule X(h)","Schedule X(i)","Schedule X(j)","Schedule XIA","Schedule XIB","Schedule XIC","Schedule XID","Schedule XII","Schedule XIII(a)","Schedule XIII(b)","Schedule XVIII","Schedule XVIII (EBS)","Schedule XIX","Schedule XIXA","Schedule XX","Schedule XXA","Schedule XXI","Schedule XXIA","Schedule XXIII","Corp Gov","Risk Man","Identification","Measurement","Response","Monitoring & Reporting","Op Risk","Op Risk (Revised)","Summary","Fixed Income Investments","Fixed Income Investments (Rev.)","Equity Investments","Equity Investments (Revised)","Equity Grandfathering","Equity Investments (Grandf)","Equity Investments (Non-Grandf)","Currency Risk","Currency Risk (Revised)","Concentration Risk","Concentration Risk (Revised)","Interest Rate-Liquidity Risk","Interest Rate-Liquidity (Rev.)","Geographic Diversification","Geographic Div. (Revised)","Credit Risk","Credit Risk (Revised)","Premium Risk","Premium Risk (Revised)","Reserve Risk","Reserve Risk (Revised)","Catastrophe Risk","Catastrophe Risk (Revised)","LT Insurance Risk","LT Other Insurance Risk","LT Variable Annuity Gte Risk","Group Specific Parameters","GSP (Revised)","Correlation Matrix","Crosscheck - SFS","Crosscheck-Model","Crosscheck - Op Risk","prt_res","HiddenFormulas"],"not_rendered":{"charts":3,"images":3,"macros":1,"external_links":0,"defined_names":311,"comments":49,"pivot_tables":0},"unopened":[],"bounds":{"document_bytes":16777216,"sheet_cells":100000,"rows_first":2000,"rows_last":500,"rows_between":2000,"halvings":0,"cell_chars":16384,"cell_head_chars":4096},"cells_cut":0,"cells_raw":0,"read":"whole","date_system":"1900"}

{"sheet":"CONFIGURATION","index":0,"n_rows":22,"n_cols":5,"rows_kept":22,"cut":false,"hidden":true,"merged":[]}
["ENTITY_ID",{"$f":"IF('Group Information'!$F$13=\"\",0,'Group Information'!$F$13&\"G\")","v":0}]
["ENTITY_NAME",{"$f":"'Group Information'!$C$13","v":"Enter Designated Insurer Name"}]
["FILING_TYPE",{"$f":"\"BSCR\" & B11","v":"BSCRGroup"}]
["FILING_YEAR",{"$f":"YEAR('Group Information'!$C$3)","v":2023}]
["CONTACT_PERSON_NAME",{"$f":"'Group Information'!$C$17&\" \"&'Group Information'!$F$17","v":" "}]
["CONTACT_PERSON_EMAIL",{"$f":"'Group Information'!$C$31","v":0}]
["CONTACT_PERSON_PHONE",{"$f":"IF('Group Information'!$E$29=\"\",'Group Information'!$C$29,'Group Information'!$C$29&\" Extension:\"&'Group Information'!$E$29)","v":0}]
["OPTION"]
["COMMENT",{"$f":"IF(Submission!B15=\"\",\"\",Submission!B15)","v":0}]
["CURRENCY_CODE",{"$f":"VLOOKUP('Form 1EBS'!C4,'Currency Table'!A:B,2,FALSE)","v":"USD"}]
["CLASS","Group"]
["DECIMALS",{"$f":"IF(C12=\"Units\",1,IF(C12=\"Thousand Units\",1000,\"\"))","v":1000},"Thousand Units",{"$f":"IF(CONFIGURATION!$B$12=\"\",\"\",IF(CONFIGURATION!$B$12>1,\" ('\"&MID(CONFIGURATION!$B$12,2,LEN(CONFIGURATION!$B$12))&\"s)\",\"\"))","v":" ('000s)"},{"$f":"IF(CONFIGURATION!$B$12=\"\",\"\",IF(CONFIGURATION!$B$12>1,\" ['\"&MID(CONFIGURATION!$B$12,2,LEN(CONFIGURATION!$B$12))&\"s]\",\"\"))","v":" ['000s]"}]
["FILINGWEBSERVICE","https://xbrl.bma.bm/ExternalWebPH3-1/filing.ashx",null,"https://xbrl.bma.bm/ExternalWebPH3-1/filing.ashx"]
["VALIDATIONWEBSERVICE","https://xbrl.bma.bm/ExternalWebPH3-1/validator.ashx",null,"https://xbrl.bma.bm/ExternalWebPH3-1/validator.ashx"]
["FILINGCOUNTERWEBSERVICE","https://xbrl.bma.bm/ExternalWebPH3-1/FilingCounter.ashx",null,"https://xbrl.bma.bm/ExternalWebPH3-1/FilingCounter.ashx"]
["DUMMYWEBSERVICE","https://xbrl.bma.bm/ExternalWebPH3-1/dummy.ashx",null,"https://xbrl.bma.bm/ExternalWebPH3-1/dummy.ashx"]
["XBRLCONVERSIONWEBSERVICE","https://xbrl.bma.bm/ExternalWebPH3-1/XBRLConv.ashx",null,"https://xbrl.bma.bm/ExternalWebPH3-1/XBRLConv.ashx"]
["PREPOPULATEWEBSERVICE","https://xbrl.bma.bm/ExternalWebPH3-1/GetEntityDataByFilingYear.ashx"]
["PREYEARSTARTDATE"]
["PREYEARENDDATE"]
["SAVEDDATAPOPULATEWEBSERVICE"]
["FORMVERSION","2023 Year-end Model"]

{"sheet":"Currency Table","index":1,"n_rows":170,"n_cols":4,"rows_kept":170,"cut":false,"hidden":true,"merged":[]}
[{"$f":"CONFIGURATION!$E$12&'Currency Table'!C1","v":" ['000s]United States Dollars"},"USD","United States Dollars","Units"]
[{"$f":"CONFIGURATION!$E$12&'Currency Table'!C2","v":" ['000s]Euro"},"EUR","Euro","Thousand Units"]
[{"$f":"CONFIGURATION!$E$12&'Currency Table'!C3","v":" ['000s]Afghanistan Afghanis"},"AFN","Afghanistan Afghanis"]
[{"$f":"CONFIGURATION!$E$12&'Currency Table'!C4","v":" ['000s]Albania Leke"},"ALL","Albania Leke"]
[{"$f":"CONFIGURATION!$E$12&'Currency Table'!C5","v":" ['000s]Armenia Drams"},"AMD","Armenia Drams"]
[{"$f":"CONFIGURATION!$E$12&'Currency Table'!C6","v":" ['000s]Netherlands Antilles Guilders"},"ANG","Netherlands Antilles Guilders"]
[{"$f":"CONFIGURATION!$E$12&'Currency Table'!C7","v":" ['000s]Angola Kwanza"},"AOA","Angola Kwanza"]
[{"$f":"CONFIGURATION!$E$12&'Currency Table'!C8","v":" ['000s]Argentina Pesos"},"ARS","Argentina Pesos"]
[{"$f":"CONFIGURATION!$E$12&'Currency Table'!C9","v":" ['000s]Australia Dollars"},"AUD","Australia Dollars"]
[{"$f":"CONFIGURATION!$E$12&'Currency Table'!C10","v":" ['000s]Aruba Guilders"},"AWG","Aruba Guilders"]
[{"$f":"CONFIGURATION!$E$12&'Currency Table'!C11","v":" ['000s]Azerbaijan New Manats"},"AZN","Azerbaijan New Manats"]
[{"$f":"CONFIGURATION!$E$12&'Currency Table'!C12","v":" ['000s]Bosnia and Herzegovina Convertible Marka"},"BAM","Bosnia and Herzegovina Convertible Marka"]
[{"$f":"CONFIGURATION!$E$12&'Currency Table'!C13","v":" ['000s]Barbados Dollars"},"BBD","Barbados Dollars"]
[{"$f":"CONFIGURATION!$E$12&'Currency Table'!C14","v":" ['000s]Bangladesh Taka"},"BDT","Bangladesh Taka"]
[{"$f":"CONFIGURATION!$E$12&'Currency Table'!C15","v":" ['000s]Bulgaria Leva"},"BGN","Bulgaria Leva"]
[{"$f":"CONFIGURATION!$E$12&'Currency Table'!C16","v":" ['000s]Bahrain Dinars"},"BHD","Bahrain Dinars"]
[{"$f":"CONFIGURATION!$E$12&'Currency Table'!C17","v":" ['000s]Burundi Francs"},"BIF","Burundi Francs"]
[{"$f":"CONFIGURATION!$E$12&'Currency Table'!C18","v":" ['000s]Bermuda Dollars"},"BMD","Bermuda Dollars"]
[{"$f":"CONFIGURATION!$E$12&'Currency Table'!C19","v":" ['000s]Brunei Dollars"},"BND","Brunei Dollars"]
[{"$f":"CONFIGURATION!$E$12&'Currency Table'!C20","v":" ['000s]Bolivia Bolivianos"},"BOB","Bolivia Bolivianos"]
[{"$f":"CONFIGURATION!$E$12&'Currency Table'!C21","v":" ['000s]Brazil Reais"},"BRL","Brazil Reais"]
[{"$f":"CONFIGURATION!$E$12&'Currency Table'!C22","v":" ['000s]Bahamas Dollars"},"BSD","Bahamas Dollars"]
[{"$f":"CONFIGURATION!$E$12&'Currency Table'!C23","v":" ['000s]Bhutan Ngultrum"},"BTN","Bhutan Ngultrum"]
[{"$f":"CONFIGURATION!$E$12&'Currency Table'!C24","v":" ['000s]Botswana Pulas"},"BWP","Botswana Pulas"]
[{"$f":"CONFIGURATION!$E$12&'Currency Table'!C25","v":" ['000s]Belarus Rubles"},"BYR","Belarus Rubles"]
[{"$f":"CONFIGURATION!$E$12&'Currency Table'!C26","v":" ['000s]Belize Dollars"},"BZD","Belize Dollars"]
[{"$f":"CONFIGURATION!$E$12&'Currency Table'!C27","v":" ['000s]Canada Dollars"},"CAD","Canada Dollars"]
[{"$f":"CONFIGURATION!$E$12&'Currency Table'!C28","v":" ['000s]Congo/Kinshasa Francs"},"CDF","Congo/Kinshasa Francs"]
[{"$f":"CONFIGURATION!$E$12&'Currency Table'!C29","v":" ['000s]Switzerland Francs"},"CHF","Switzerland Francs"]
[{"$f":"CONFIGURATION!$E$12&'Currency Table'!C30","v":" ['000s]Chile Pesos"},"CLP","Chile Pesos"]
[{"$f":"CONFIGURATION!$E$12&'Currency Table'!C31","v":" ['000s]China Yuan Renminbi"},"CNY","China Yuan Renminbi"]
[{"$f":"CONFIGURATION!$E$12&'Currency Table'!C32","v":" ['000s]Colombia Pesos"},"COP","Colombia Pesos"]
[{"$f":"CONFIGURATION!$E$12&'Currency Table'!C33","v":" ['000s]Costa Rica Colones"},"CRC","Costa Rica Colones"]
[{"$f":"CONFIGURATION!$E$12&'Currency Table'!C34","v":" ['000s]Cuba Convertible Pesos"},"CUC","Cuba Convertible Pesos"]
[{"$f":"CONFIGURATION!$E$12&'Currency Table'!C35","v":" ['000s]Cuba Pesos"},"CUP","Cuba Pesos"]
[{"$f":"CONFIGURATION!$E$12&'Currency Table'!C36","v":" ['000s]Cape Verde Escudos"},"CVE","Cape Verde Escudos"]
[{"$f":"CONFIGURATION!$E$12&'Currency Table'!C37","v":" ['000s]Czech Republic Koruny"},"CZK","Czech Republic Koruny"]
[{"$f":"CONFIGURATION!$E$12&'Currency Table'!C38","v":" ['000s]Djibouti Francs"},"DJF","Djibouti Francs"]
[{"$f":"CONFIGURATION!$E$12&'Currency Table'!C39","v":" ['000s]Denmark Kroner"},"DKK","Denmark Kroner"]
[{"$f":"CONFIGURATION!$E$12&'Currency Table'!C40","v":" ['000s]Dominican Republic Pesos"},"DOP","Dominican Republic Pesos"]
[{"$f":"CONFIGURATION!$E$12&'Currency Table'!C41","v":" ['000s]Algeria Dinars"},"DZD","Algeria Dinars"]
[{"$f":"CONFIGURATION!$E$12&'Currency Table'!C42","v":" ['000s]Estonia Krooni"},"EEK","Estonia Krooni"]
[{"$f":"CONFIGURATION!$E$12&'Currency Table'!C43","v":" ['000s]Egypt Pounds"},"EGP","Egypt Pounds"]
[{"$f":"CONFIGURATION!$E$12&'Currency Table'!C44","v":" ['000s]Eritrea Nakfa"},"ERN","Eritrea Nakfa"]
[{"$f":"CONFIGURATION!$E$12&'Currency Table'!C45","v":" ['000s]Ethiopia Birr"},"ETB","Ethiopia Birr"]
[{"$f":"CONFIGURATION!$E$12&'Currency Table'!C46","v":" ['000s]Fiji Dollars"},"FJD","Fiji Dollars"]
[{"$f":"CONFIGURATION!$E$12&'Currency Table'!C47","v":" ['000s]Falkland Islands Pounds"},"FKP","Falkland Islands Pounds"]
[{"$f":"CONFIGURATION!$E$12&'Currency Table'!C48","v":" ['000s]United Kingdom Pounds"},"GBP","United Kingdom Pounds"]
[{"$f":"CONFIGURATION!$E$12&'Currency Table'!C49","v":" ['000s]Georgia Lari"},"GEL","Georgia Lari"]
[{"$f":"CONFIGURATION!$E$12&'Currency Table'!C50","v":" ['000s]Guernsey Pounds"},"GGP","Guernsey Pounds"]
[{"$f":"CONFIGURATION!$E$12&'Currency Table'!C51","v":" ['000s]Ghana Cedis"},"GHS","Ghana Cedis"]
[{"$f":"CONFIGURATION!$E$12&'Currency Table'!C52","v":" ['000s]Gibraltar Pounds"},"GIP","Gibraltar Pounds"]
[{"$f":"CONFIGURATION!$E$12&'Currency Table'!C53","v":" ['000s]Gambia Dalasi"},"GMD","Gambia Dalasi"]
[{"$f":"CONFIGURATION!$E$12&'Currency Table'!C54","v":" ['000s]Guinea Francs"},"GNF","Guinea Francs"]
[{"$f":"CONFIGURATION!$E$12&'Currency Table'!C55","v":" ['000s]Guatemala Quetzales"},"GTQ","Guatemala Quetzales"]
[{"$f":"CONFIGURATION!$E$12&'Currency Table'!C56","v":" ['000s]Guyana Dollars"},"GYD","Guyana Dollars"]
[{"$f":"CONFIGURATION!$E$12&'Currency Table'!C57","v":" ['000s]Hong Kong Dollars"},"HKD","Hong Kong Dollars"]
[{"$f":"CONFIGURATION!$E$12&'Currency Table'!C58","v":" ['000s]Honduras Lempiras"},"HNL","Honduras Lempiras"]
[{"$f":"CONFIGURATION!$E$12&'Currency Table'!C59","v":" ['000s]Croatia Kuna"},"HRK","Croatia Kuna"]
[{"$f":"CONFIGURATION!$E$12&'Currency Table'!C60","v":" ['000s]Haiti Gourdes"},"HTG","Haiti Gourdes"]
[{"$f":"CONFIGURATION!$E$12&'Currency Table'!C61","v":" ['000s]Hungary Forint"},"HUF","Hungary Forint"]
[{"$f":"CONFIGURATION!$E$12&'Currency Table'!C62","v":" ['000s]Indonesia Rupiahs"},"IDR","Indonesia Rupiahs"]
[{"$f":"CONFIGURATION!$E$12&'Currency Table'!C63","v":" ['000s]Israel New Shekels"},"ILS","Israel New Shekels"]
[{"$f":"CONFIGURATION!$E$12&'Currency Table'!C64","v":" ['000s]Isle of Man Pounds"},"IMP","Isle of Man Pounds"]
[{"$f":"CONFIGURATION!$E$12&'Currency Table'!C65","v":" ['000s]India Rupees"},"INR","India Rupees"]
[{"$f":"CONFIGURATION!$E$12&'Currency Table'!C66","v":" ['000s]Iraq Dinars"},"IQD","Iraq Dinars"]
[{"$f":"CONFIGURATION!$E$12&'Currency Table'!C67","v":" ['000s]Iran Rials"},"IRR","Iran Rials"]
[{"$f":"CONFIGURATION!$E$12&'Currency Table'!C68","v":" ['000s]Iceland Kronur"},"ISK","Iceland Kronur"]
[{"$f":"CONFIGURATION!$E$12&'Currency Table'!C69","v":" ['000s]Jersey Pounds"},"JEP","Jersey Pounds"]
[{"$f":"CONFIGURATION!$E$12&'Currency Table'!C70","v":" ['000s]Jamaica Dollars"},"JMD","Jamaica Dollars"]
[{"$f":"CONFIGURATION!$E$12&'Currency Table'!C71","v":" ['000s]Jordan Dinars"},"JOD","Jordan Dinars"]
[{"$f":"CONFIGURATION!$E$12&'Currency Table'!C72","v":" ['000s]Japan Yen"},"JPY","Japan Yen"]
[{"$f":"CONFIGURATION!$E$12&'Currency Table'!C73","v":" ['000s]Kenya Shillings"},"KES","Kenya Shillings"]
[{"$f":"CONFIGURATION!$E$12&'Currency Table'!C74","v":" ['000s]Kyrgyzstan Soms"},"KGS","Kyrgyzstan Soms"]
[{"$f":"CONFIGURATION!$E$12&'Currency Table'!C75","v":" ['000s]Cambodia Riels"},"KHR","Cambodia Riels"]
[{"$f":"CONFIGURATION!$E$12&'Currency Table'!C76","v":" ['000s]Comoros Francs"},"KMF","Comoros Francs"]
[{"$f":"CONFIGURATION!$E$12&'Currency Table'!C77","v":" ['000s]North Korea Won"},"KPW","North Korea Won"]
[{"$f":"CONFIGURATION!$E$12&'Currency Table'!C78","v":" ['000s]South Korea Won"},"KRW","South Korea Won"]
[{"$f":"CONFIGURATION!$E$12&'Currency Table'!C79","v":" ['000s]Kuwait Dinars"},"KWD","Kuwait Dinars"]
[{"$f":"CONFIGURATION!$E$12&'Currency Table'!C80","v":" ['000s]Cayman Islands Dollars"},"KYD","Cayman Islands Dollars"]
[{"$f":"CONFIGURATION!$E$12&'Currency Table'!C81","v":" ['000s]Kazakhstan Tenge"},"KZT","Kazakhstan Tenge"]
[{"$f":"CONFIGURATION!$E$12&'Currency Table'!C82","v":" ['000s]Laos Kips"},"LAK","Laos Kips"]
[{"$f":"CONFIGURATION!$E$12&'Currency Table'!C83","v":" ['000s]Lebanon Pounds"},"LBP","Lebanon Pounds"]
[{"$f":"CONFIGURATION!$E$12&'Currency Table'!C84","v":" ['000s]Sri Lanka Rupees"},"LKR","Sri Lanka Rupees"]
[{"$f":"CONFIGURATION!$E$12&'Currency Table'!C85","v":" ['000s]Liberia Dollars"},"LRD","Liberia Dollars"]
[{"$f":"CONFIGURATION!$E$12&'Currency Table'!C86","v":" ['000s]Lesotho Maloti"},"LSL","Lesotho Maloti"]
[{"$f":"CONFIGURATION!$E$12&'Currency Table'!C87","v":" ['000s]Lithuania Litai"},"LTL","Lithuania Litai"]
[{"$f":"CONFIGURATION!$E$12&'Currency Table'!C88","v":" ['000s]Latvia Lati"},"LVL","Latvia Lati"]
[{"$f":"CONFIGURATION!$E$12&'Currency Table'!C89","v":" ['000s]Libya Dinars"},"LYD","Libya Dinars"]
[{"$f":"CONFIGURATION!$E$12&'Currency Table'!C90","v":" ['000s]Morocco Dirhams"},"MAD","Morocco Dirhams"]
[{"$f":"CONFIGURATION!$E$12&'Currency Table'!C91","v":" ['000s]Moldova Lei"},"MDL","Moldova Lei"]
[{"$f":"CONFIGURATION!$E$12&'Currency Table'!C92","v":" ['000s]Madagascar Ariary"},"MGA","Madagascar Ariary"]
[{"$f":"CONFIGURATION!$E$12&'Currency Table'!C93","v":" ['000s]Macedonia Denars"},"MKD","Macedonia Denars"]
[{"$f":"CONFIGURATION!$E$12&'Currency Table'!C94","v":" ['000s]Myanmar Kyats"},"MMK","Myanmar Kyats"]
[{"$f":"CONFIGURATION!$E$12&'Currency Table'!C95","v":" ['000s]Mongolia Tugriks"},"MNT","Mongolia Tugriks"]
[{"$f":"CONFIGURATION!$E$12&'Currency Table'!C96","v":" ['000s]Macau Patacas"},"MOP","Macau Patacas"]
[{"$f":"CONFIGURATION!$E$12&'Currency Table'!C97","v":" ['000s]Mauritania Ouguiyas"},"MRO","Mauritania Ouguiyas"]
[{"$f":"CONFIGURATION!$E$12&'Currency Table'!C98","v":" ['000s]Mauritius Rupees"},"MUR","Mauritius Rupees"]
[{"$f":"CONFIGURATION!$E$12&'Currency Table'!C99","v":" ['000s]Maldives Rufiyaa"},"MVR","Maldives Rufiyaa"]
[{"$f":"CONFIGURATION!$E$12&'Currency Table'!C100","v":" ['000s]Malawi Kwachas"},"MWK","Malawi Kwachas"]
[{"$f":"CONFIGURATION!$E$12&'Currency Table'!C101","v":" ['000s]Mexico Pesos"},"MXN","Mexico Pesos"]
[{"$f":"CONFIGURATION!$E$12&'Currency Table'!C102","v":" ['000s]Malaysia Ringgits"},"MYR","Malaysia Ringgits"]
[{"$f":"CONFIGURATION!$E$12&'Currency Table'!C103","v":" ['000s]Mozambique Meticais"},"MZN","Mozambique Meticais"]
[{"$f":"CONFIGURATION!$E$12&'Currency Table'!C104","v":" ['000s]Namibia Dollars"},"NAD","Namibia Dollars"]
[{"$f":"CONFIGURATION!$E$12&'Currency Table'!C105","v":" ['000s]Nigeria Nairas"},"NGN","Nigeria Nairas"]
[{"$f":"CONFIGURATION!$E$12&'Currency Table'!C106","v":" ['000s]Nicaragua Cordobas"},"NIO","Nicaragua Cordobas"]
[{"$f":"CONFIGURATION!$E$12&'Currency Table'!C107","v":" ['000s]Norway Kroner"},"NOK","Norway Kroner"]
[{"$f":"CONFIGURATION!$E$12&'Currency Table'!C108","v":" ['000s]Nepal Rupees"},"NPR","Nepal Rupees"]
[{"$f":"CONFIGURATION!$E$12&'Currency Table'!C109","v":" ['000s]New Zealand Dollars"},"NZD","New Zealand Dollars"]
[{"$f":"CONFIGURATION!$E$12&'Currency Table'!C110","v":" ['000s]Oman Rials"},"OMR","Oman Rials"]
[{"$f":"CONFIGURATION!$E$12&'Currency Table'!C111","v":" ['000s]Panama Balboas"},"PAB","Panama Balboas"]
[{"$f":"CONFIGURATION!$E$12&'Currency Table'!C112","v":" ['000s]Peru Nuevos Soles"},"PEN","Peru Nuevos Soles"]
[{"$f":"CONFIGURATION!$E$12&'Currency Table'!C113","v":" ['000s]Papua New Guinea Kina"},"PGK","Papua New Guinea Kina"]
[{"$f":"CONFIGURATION!$E$12&'Currency Table'!C114","v":" ['000s]Philippines Pesos"},"PHP","Philippines Pesos"]
[{"$f":"CONFIGURATION!$E$12&'Currency Table'!C115","v":" ['000s]Pakistan Rupees"},"PKR","Pakistan Rupees"]
[{"$f":"CONFIGURATION!$E$12&'Currency Table'!C116","v":" ['000s]Poland Zlotych"},"PLN","Poland Zlotych"]
[{"$f":"CONFIGURATION!$E$12&'Currency Table'!C117","v":" ['000s]Paraguay Guarani"},"PYG","Paraguay Guarani"]
[{"$f":"CONFIGURATION!$E$12&'Currency Table'!C118","v":" ['000s]Qatar Riyals"},"QAR","Qatar Riyals"]
[{"$f":"CONFIGURATION!$E$12&'Currency Table'!C119","v":" ['000s]Romania New Lei"},"RON","Romania New Lei"]
[{"$f":"CONFIGURATION!$E$12&'Currency Table'!C120","v":" ['000s]Serbia Dinars"},"RSD","Serbia Dinars"]
[{"$f":"CONFIGURATION!$E$12&'Currency Table'!C121","v":" ['000s]Russia Rubles"},"RUB","Russia Rubles"]
[{"$f":"CONFIGURATION!$E$12&'Currency Table'!C122","v":" ['000s]Rwanda Francs"},"RWF","Rwanda Francs"]
[{"$f":"CONFIGURATION!$E$12&'Currency Table'!C123","v":" ['000s]Saudi Arabia Riyals"},"SAR","Saudi Arabia Riyals"]
[{"$f":"CONFIGURATION!$E$12&'Currency Table'!C124","v":" ['000s]Solomon Islands Dollars"},"SBD","Solomon Islands Dollars"]
[{"$f":"CONFIGURATION!$E$12&'Currency Table'!C125","v":" ['000s]Seychelles Rupees"},"SCR","Seychelles Rupees"]
[{"$f":"CONFIGURATION!$E$12&'Currency Table'!C126","v":" ['000s]Sudan Pounds"},"SDG","Sudan Pounds"]
[{"$f":"CONFIGURATION!$E$12&'Currency Table'!C127","v":" ['000s]Sweden Kronor"},"SEK","Sweden Kronor"]
[{"$f":"CONFIGURATION!$E$12&'Currency Table'!C128","v":" ['000s]Singapore Dollars"},"SGD","Singapore Dollars"]
[{"$f":"CONFIGURATION!$E$12&'Currency Table'!C129","v":" ['000s]Saint Helena Pounds"},"SHP","Saint Helena Pounds"]
[{"$f":"CONFIGURATION!$E$12&'Currency Table'!C130","v":" ['000s]Slovakia Koruny"},"SKK","Slovakia Koruny"]
[{"$f":"CONFIGURATION!$E$12&'Currency Table'!C131","v":" ['000s]Sierra Leone Leones"},"SLL","Sierra Leone Leones"]
[{"$f":"CONFIGURATION!$E$12&'Currency Table'!C132","v":" ['000s]Somalia Shillings"},"SOS","Somalia Shillings"]
[{"$f":"CONFIGURATION!$E$12&'Currency Table'!C133","v":" ['000s]Seborga Luigini"},"SPL","Seborga Luigini"]
[{"$f":"CONFIGURATION!$E$12&'Currency Table'!C134","v":" ['000s]Suriname Dollars"},"SRD","Suriname Dollars"]
[{"$f":"CONFIGURATION!$E$12&'Currency Table'!C135","v":" ['000s]São Tome and Principe Dobras"},"STD","São Tome and Principe Dobras"]
[{"$f":"CONFIGURATION!$E$12&'Currency Table'!C136","v":" ['000s]El Salvador Colones"},"SVC","El Salvador Colones"]
[{"$f":"CONFIGURATION!$E$12&'Currency Table'!C137","v":" ['000s]Syria Pounds"},"SYP","Syria Pounds"]
[{"$f":"CONFIGURATION!$E$12&'Currency Table'!C138","v":" ['000s]Swaziland Emalangeni"},"SZL","Swaziland Emalangeni"]
[{"$f":"CONFIGURATION!$E$12&'Currency Table'!C139","v":" ['000s]Thailand Baht"},"THB","Thailand Baht"]
[{"$f":"CONFIGURATION!$E$12&'Currency Table'!C140","v":" ['000s]Tajikistan Somoni"},"TJS","Tajikistan Somoni"]
[{"$f":"CONFIGURATION!$E$12&'Currency Table'!C141","v":" ['000s]Turkmenistan Manats"},"TMM","Turkmenistan Manats"]
[{"$f":"CONFIGURATION!$E$12&'Currency Table'!C142","v":" ['000s]Tunisia Dinars"},"TND","Tunisia Dinars"]
[{"$f":"CONFIGURATION!$E$12&'Currency Table'!C143","v":" ['000s]Tonga Pa'anga"},"TOP","Tonga Pa'anga"]
[{"$f":"CONFIGURATION!$E$12&'Currency Table'!C144","v":" ['000s]Turkey New Lira"},"TRY","Turkey New Lira"]
[{"$f":"CONFIGURATION!$E$12&'Currency Table'!C145","v":" ['000s]Trinidad and Tobago Dollars"},"TTD","Trinidad and Tobago Dollars"]
[{"$f":"CONFIGURATION!$E$12&'Currency Table'!C146","v":" ['000s]Tuvalu Dollars"},"TVD","Tuvalu Dollars"]
[{"$f":"CONFIGURATION!$E$12&'Currency Table'!C147","v":" ['000s]Taiwan New Dollars"},"TWD","Taiwan New Dollars"]
[{"$f":"CONFIGURATION!$E$12&'Currency Table'!C148","v":" ['000s]Tanzania Shillings"},"TZS","Tanzania Shillings"]
[{"$f":"CONFIGURATION!$E$12&'Currency Table'!C149","v":" ['000s]Ukraine Hryvnia"},"UAH","Ukraine Hryvnia"]
[{"$f":"CONFIGURATION!$E$12&'Currency Table'!C150","v":" ['000s]Uganda Shillings"},"UGX","Uganda Shillings"]
[{"$f":"CONFIGURATION!$E$12&'Currency Table'!C151","v":" ['000s]Uruguay Pesos"},"UYU","Uruguay Pesos"]
[{"$f":"CONFIGURATION!$E$12&'Currency Table'!C152","v":" ['000s]Uzbekistan Sums"},"UZS","Uzbekistan Sums"]
[{"$f":"CONFIGURATION!$E$12&'Currency Table'!C153","v":" ['000s]Venezuela Bolivares"},"VEB","Venezuela Bolivares"]
[{"$f":"CONFIGURATION!$E$12&'Currency Table'!C154","v":" ['000s]Venezuela Bolivares Fuertes"},"VEF","Venezuela Bolivares Fuertes"]
[{"$f":"CONFIGURATION!$E$12&'Currency Table'!C155","v":" ['000s]Vietnam Dong"},"VND","Vietnam Dong"]
[{"$f":"CONFIGURATION!$E$12&'Currency Table'!C156","v":" ['000s]Vanuatu Vatu"},"VUV","Vanuatu Vatu"]
[{"$f":"CONFIGURATION!$E$12&'Currency Table'!C157","v":" ['000s]Samoa Tala"},"WST","Samoa Tala"]
[{"$f":"CONFIGURATION!$E$12&'Currency Table'!C158","v":" ['000s]Communauté Financière Africaine Francs BEAC"},"XAF","Communauté Financière Africaine Francs BEAC"]
[{"$f":"CONFIGURATION!$E$12&'Currency Table'!C159","v":" ['000s]Silver Ounces"},"XAG","Silver Ounces"]
[{"$f":"CONFIGURATION!$E$12&'Currency Table'!C160","v":" ['000s]Gold Ounces"},"XAU","Gold Ounces"]
[{"$f":"CONFIGURATION!$E$12&'Currency Table'!C161","v":" ['000s]East Caribbean Dollars"},"XCD","East Caribbean Dollars"]
[{"$f":"CONFIGURATION!$E$12&'Currency Table'!C162","v":" ['000s]International Monetary Fund Special Drawing Rights"},"XDR","International Monetary Fund Special Drawing Rights"]
[{"$f":"CONFIGURATION!$E$12&'Currency Table'!C163","v":" ['000s]Communauté Financière Africaine Francs BCEAO"},"XOF","Communauté Financière Africaine Francs BCEAO"]
[{"$f":"CONFIGURATION!$E$12&'Currency Table'!C164","v":" ['000s]Palladium Ounces"},"XPD","Palladium Ounces"]
[{"$f":"CONFIGURATION!$E$12&'Currency Table'!C165","v":" ['000s]Comptoirs Français du Pacifique Francs"},"XPF","Comptoirs Français du Pacifique Francs"]
[{"$f":"CONFIGURATION!$E$12&'Currency Table'!C166","v":" ['000s]Platinum Ounces"},"XPT","Platinum Ounces"]
[{"$f":"CONFIGURATION!$E$12&'Currency Table'!C167","v":" ['000s]Yemen Rials"},"YER","Yemen Rials"]
[{"$f":"CONFIGURATION!$E$12&'Currency Table'!C168","v":" ['000s]South Africa Rand"},"ZAR","South Africa Rand"]
[{"$f":"CONFIGURATION!$E$12&'Currency Table'!C169","v":" ['000s]Zambia Kwacha"},"ZMK","Zambia Kwacha"]
[{"$f":"CONFIGURATION!$E$12&'Currency Table'!C170","v":" ['000s]Zimbabwe Dollars"},"ZWD","Zimbabwe Dollars"]

{"sheet":"Submission","index":2,"n_rows":31,"n_cols":3,"rows_kept":31,"cut":false,"hidden":false,"merged":[[32,1,32,2],[28,1,28,2],[7,1,7,2],[4,1,4,2],[0,0,0,2],[14,1,14,2],[1,1,1,2]]}
[]
[null,"BSCR for Group"]
[]
[]
[null,"IMPORTANT: Completion of this submission requires an internet connection. \n\nQuestions and comments can be directed to: riskanalytics@bma.bm\n"]
[]
[]
[null,"Submission Process:"]
[null,null,"Select Unit: Prior to inputting BSCR form, select units which the monetary values are reported in."]
[null,null,"Prepopulate previous data: Prefill form with previously submitted data"]
[null,null,"Input BSCR data"]
[null," ","Validate data: Prior to submitting to the BMA, validation of the data is required. To complete this step, click the ‘VALIDATE RETURN’ button. Users must acknowledge all failed validations and provide comments in the ‘Comments’ box below. Once the validation is complete, click the location link to go to the error locationn."]
[null,null,"Submit Data: Once data has been completed, please submit for review. To complete this step click the \"SUBMIT\" button. If data is submitted more than twice, the latest data will be accepted. You will be required to select a reason for re-submissions. The time to submit will vary depending on the speed of the internet connection. A white status bar will appear when the data is transmitting. Please wait for the submission acknowledgement and record your submission number for later reference.\n\nIf there are issues submitting the BSCR model, contact RiskAnalytics@bma.bm for assistance."]
[null,"Comments:"]
[null,{"$f":"Import!E3","v":0}]
[null,"Validation results:"]
[null,"ECR requirement met",{"$f":"Summary!M100","v":"n/a"}]
[null,"MSM Eligible Capital requirement met",{"$f":"Summary!E112","v":"YES"}]
[null,"ECR Eligible Capital requirement met",{"$f":"Summary!F112","v":"YES"}]
[null,"Solvency Certificate Para. 3",{"$f":"'Solvency Certificate'!D16","v":"Select from Drop-Down"}]
[null,"GSSA document attached",{"$f":"IF(Attachments!F25=\"<Attach file>\",\"Outstanding\",\"File Attached\")","v":"Outstanding"}]
[null,"FCR document attached",{"$f":"IF(Attachments!F15=\"<Attach file>\",\"Outstanding\",\"File Attached\")","v":"Outstanding"}]
[null,"Blank Schedules",{"$f":"Content!H4","v":60}]
[null,"Acknowledged",{"$f":"Content!I4","v":0}]
[null,"Failed Validation Checks",{"$f":"Content!K4","v":0}]
[null,"Acknowledged",{"$f":"Content!L4","v":0}]
[]
[null,"Comments from BMA:"]
[]
[]
[null,"Validation results:"]

{"sheet":"Group Information","index":3,"n_rows":60,"n_cols":7,"rows_kept":60,"cut":false,"hidden":false,"merged":[[6,2,6,5],[20,2,20,5],[8,2,8,5],[16,5,16,6]]}
["GROUP INFORMATION PAGE"]
[{"$f":"C7","v":"Enter Group Company Name"},null,null,null,null,null,{"$f":"HYPERLINK(\"#'Index'!A1\",\"Return to Index\")","v":"Return to Index"}]
["For the Year Ending ",null,"2023-12-31"]
[]
[null,"COMPANY INFORMATION"]
[]
[null,"Insurance Group Name","Enter Group Company Name"]
[]
[null,"Name of the Parent Company","Enter Parent Company Name"]
[]
[null,"Place of Incorporation of Parent Company",null,null,"Accounting Basis","Select"]
[]
[null,"Designated Insurer Name","Enter Designated Insurer Name",null,"Registration No."]
[]
[null,"DESIGNATED INSURER'S CONTACT PERSON FOR RISK-BASED CAPITAL"]
[]
[null,"First Name",null,null,"Last Name"]
[]
[null,"CONTACT PERSON INFORMATION"]
[]
[null,"Street and Number of P.O. Box"]
[]
[null,"City"]
[]
[null,"Country"]
[]
[null,"Postal Code"]
[]
[null,"Phone Number",null,"Extension"]
[]
[null,"Email"]
[]
[null,"Date Prepared"]
[]
[]
[]
[]
[]
[]
[]
[]
[]
[]
[]
[]
[]
[]
[]
[]
[]
[]
[]
[]
[]
[]
[]
[]
[]
[]
[null," "]

{"sheet":"Content","index":4,"n_rows":239,"n_cols":23,"rows_kept":239,"cut":false,"hidden":false,"merged":[[68,1,68,2],[4,7,4,8],[4,10,4,11],[74,1,74,2],[88,1,88,2],[38,2,39,2],[33,2,34,2],[37,1,37,2],[43,1,43,2],[42,1,42,2],[44,1,44,2],[47,1,47,2],[50,1,50,2],[51,1,51,2],[52,1,52,2],[16,1,16,2],[23,1,23,2],[59,1,59,2],[53,1,53,2],[64,1,64,2],[66,1,66,2],[67,2,67,4],[57,2,58,2],[62,2,63,2],[78,2,79,2],[132,1,132,2],[136,1,136,2],[95,1,95,2],[134,1,134,2],[100,1,100,2],[110,1,110,2],[130,1,130,2],[109,1,109,2],[119,1,119,2],[124,1,124,2],[128,1,128,2],[122,1,122,2],[126,1,126,2],[93,1,93,2],[114,1,114,2],[0,0,0,2],[3,0,3,3],[4,0,4,2],[26,2,27,2],[28,2,29,2],[17,2,18,2],[19,2,20,2],[21,2,22,2],[6,1,6,2],[8,1,8,2],[7,1,7,2],[9,1,9,2],[10,1,10,2],[11,1,11,2],[12,1,12,2],[13,1,13,2],[24,1,24,2],[25,1,25,2],[32,1,32,2],[182,1,182,2],[206,1,206,2],[185,1,185,2],[187,1,187,2],[195,1,195,2],[197,1,197,2],[200,1,200,2],[203,1,203,2],[164,1,164,2],[167,1,167,2],[178,1,178,2],[180,1,180,2],[151,1,151,2],[156,1,156,2],[161,1,161,2],[138,1,138,2],[142,1,142,2],[148,1,148,2],[140,1,140,2],[145,1,145,2],[116,1,116,2],[55,1,55,2],[60,1,60,2],[89,3,89,4],[91,3,91,4],[92,3,92,4],[96,3,96,4],[99,3,99,4],[90,3,90,4],[233,1,233,2],[208,1,208,2],[210,1,210,2],[212,1,212,2],[214,1,214,2],[227,1,227,2],[228,1,228,2],[229,1,229,2],[230,1,230,2],[218,1,218,2],[222,1,222,2],[225,1,225,2],[226,1,226,2]]}
["CONTENTS OF THE BSCR MODEL",null,null,null,null,null,null,null,null,null,null,null,null,{"$f":"HYPERLINK(\"#'Index'!A1\",\"Return to Index\")","v":"Return to Index"},null,null,null,null,null,null,null,null,{"$f":"IF(C3=\"\",\"\",TEXT(DATE(YEAR(C3+1)-1,MONTH(C3+1),DAY(C3+1)),\"mm/dd/yyyy\"))","v":"01/01/2023"}]
[{"$f":"+'Group Information'!C7","v":"Enter Group Company Name"}]
["As At:",null,{"$f":"+'Group Information'!C3","v":"2023-12-31"}]
[{"$f":"HYPERLINK(\"#'Submission'!B17\",\"If Confirm Message Check Box is Selected, include comments in Submission Tab Cell B17\")","v":"If Confirm Message Check Box is Selected, include comments in Submission Tab Cell B17"},null,null,null,null,null,null,{"$f":"COUNTIF(H18:H239,H6)","v":60},{"$f":"COUNTIF(I18:I239,\"Yes\")","v":0},null,{"$f":"COUNTIF(K18:K239,\"False.\")","v":0},{"$f":"COUNTIF(L18:L239,\"Yes\")","v":0},null,"Confirm"]
["Text in Column C Have Been Hyperlinked for Ease",null,null,null,null,null,null,"Form / Schedule ",null,null,"Validation Check",null,null,"Message"]
[null,"Group Information / Reference Schedules",null,"True / False","Difference $","Difference %",null,"Blank","Blank Confirm",null,false,"Unbal. Confirm"]
[1,{"$f":"HYPERLINK(\"#'SUBMISSION'!A1\",\"Submission Tab\")","v":"Submission Tab"}]
[{"$f":"A7+1","v":2},{"$f":"HYPERLINK(\"#'Index'!A1\",\"Index\")","v":"Index"}]
[3,{"$f":"HYPERLINK(\"#'Attachments'!A1\",\"Attachments\")","v":"Attachments"}]
[4,{"$f":"HYPERLINK(\"#'Group Information'!A1\",\"Group Information\")","v":"Group Information"}]
[5,{"$f":"HYPERLINK(\"#'Declaration'!A1\",\"Declaration\")","v":"Declaration"}]
[6,{"$f":"HYPERLINK(\"#'Coversheet'!A1\",\"Coversheet\")","v":"Coversheet"}]
[7,{"$f":"HYPERLINK(\"#'Solvency Certificate'!A1\",\"Solvency Certificate\")","v":"Solvency Certificate"}]
[8,{"$f":"HYPERLINK(\"#'Zones'!A1\",\"Zones\")","v":"Zones"}]
[]
[null,"Statutory Forms & Economic Balance Sheet"]
[{"$f":"A14+1","v":9},{"$f":"HYPERLINK(\"#'Form 1'!A1\",\"Form 1 - Group Statutory Balance Sheet\")","v":"Form 1 - Group Statutory Balance Sheet"}]
[null,"i)",{"$f":"HYPERLINK(\"#'Form 1'!A1\",\"Assets equals Total Insurance Reserves & Other Liabilities and Statutory Capital & Surplus\")","v":"Assets equals Total Insurance Reserves & Other Liabilities and Statutory Capital & Surplus"},{"$f":"IF(ROUND('Form 1'!F94,0)=0,\"Form 1 is Blank\",'Form 1'!F189)","v":"Form 1 is Blank"},{"$f":"+'Form 1'!F191","v":0},{"$f":"IF('Form 1'!F94=0,0,'Form 1'!F191/'Form 1'!F94)","v":0},null,{"$f":"IF(D18=\"Form 1 is Blank\",\"Blank\",\"\")","v":"Blank"},{"$f":"IF(H18=\"Blank\",IF(P18=TRUE,\"Yes\",\"\"),\"\")","v":""},null,{"$f":"IF(D18=\"False\",\"False.\",\"\")","v":""},{"$f":"IF(K18=\"\",\"\",IF(P18=TRUE,\"Yes\",\"\"))","v":""}]
[]
[null,"ii)",{"$f":"HYPERLINK(\"#'Form 1'!B223:H249\",\"General Business Reconcilation of Gross Loss and Loss Expense Provision at End of Year equals Statutory Balance Sheet Total\")","v":"General Business Reconcilation of Gross Loss and Loss Expense Provision at End of Year equals Statutory Balance Sheet Total"},{"$f":"IF('Form 1'!F111=0,\"Reconciliation is Blank\",'Form 1'!F254)","v":"Reconciliation is Blank"},{"$f":"'Form 1'!F256","v":0},{"$f":"IF('Form 1'!F252=0,0,('Form 1'!F256)/'Form 1'!F104)","v":0},null,{"$f":"IF(D20=\"Reconciliation is Blank\",\"Blank\",\"\")","v":"Blank"},{"$f":"IF(H20=\"Blank\",IF(P20=TRUE,\"Yes\",\"\"),\"\")","v":""},null,{"$f":"IF(D20=\"False\",\"False.\",\"\")","v":""},{"$f":"IF(K20=\"\",\"\",IF(P20=TRUE,\"Yes\",\"\"))","v":""}]
[]
[null,"iii)",{"$f":"HYPERLINK(\"#'Form 1'!B255:H279\",\"Long-Term Reconcilation of Gross Loss and Loss Expense Provision at End of Year equals Statutory Balance Sheet Total\")","v":"Long-Term Reconcilation of Gross Loss and Loss Expense Provision at End of Year equals Statutory Balance Sheet Total"},{"$f":"IF('Form 1EBS'!F163=0,\"N/A\",IF('Form 1'!F141=0,\"Reconciliation is Blank\",'Form 1'!F288))","v":"N/A"},{"$f":"+'Form 1'!F290","v":0},{"$f":"IF('Form 1'!F286=0,0,'Form 1'!F290/'Form 1'!F134)","v":0},null,{"$f":"IF(D22=\"Reconciliation is Blank\",\"Blank\",\"\")","v":""},{"$f":"IF(H22=\"Blank\",IF(P22=TRUE,\"Yes\",\"\"),\"\")","v":""},null,{"$f":"IF(D22=\"False\",\"False.\",\"\")","v":""},{"$f":"IF(K22=\"\",\"\",IF(P22=TRUE,\"Yes\",\"\"))","v":""}]
[]
[{"$f":"A17+1","v":10},{"$f":"HYPERLINK(\"#'Form 2'!A1\",\"Form 2 - Group Statutory Statement of Income\")","v":"Form 2 - Group Statutory Statement of Income"}]
[{"$f":"A24+1","v":11},{"$f":"HYPERLINK(\"#'Form 8'!A1\",\"Form 8 - Group Statutory Statement of Capital & Surplus\")","v":"Form 8 - Group Statutory Statement of Capital & Surplus"}]
[{"$f":"A25+1","v":12},{"$f":"HYPERLINK(\"#'Form 1EBS'!A1\",\"Form 1EBS - Economic Balance Sheet\")","v":"Form 1EBS - Economic Balance Sheet"}]
[null,"i)",{"$f":"HYPERLINK(\"#'Form 1EBS'!A1\",\"Assets equals Total Insurance Reserves & Other Liabilities and Statutory Capital & Surplus\")","v":"Assets equals Total Insurance Reserves & Other Liabilities and Statutory Capital & Surplus"},{"$f":"IF(ROUND('Form 1EBS'!F96,0)=0,\"Form 1EBS is Blank\",'Form 1EBS'!F218)","v":"Form 1EBS is Blank"},{"$f":"+'Form 1EBS'!F220","v":0},{"$f":"IF('Form 1EBS'!F96=0,0,'Form 1EBS'!F220/'Form 1EBS'!F96)","v":0},null,{"$f":"IF(D27=\"Form 1EBS is Blank\",\"Blank\",\"\")","v":"Blank"},{"$f":"IF(H27=\"Blank\",IF(P27=TRUE,\"Yes\",\"\"),\"\")","v":""},null,{"$f":"IF(D27=\"False\",\"False.\",\"\")","v":""},{"$f":"IF(K27=\"\",\"\",IF(P27=TRUE,\"Yes\",\"\"))","v":""}]
[]
[null,"ii)",{"$f":"HYPERLINK(\"#'Form 1EBS'!B283:H297\",\"General Business Reconcilation of Gross Loss and Loss Expense Provision at End of Year equals Statutory Balance Sheet Total\")","v":"General Business Reconcilation of Gross Loss and Loss Expense Provision at End of Year equals Statutory Balance Sheet Total"},{"$f":"IF('Form 1EBS'!F294=0,\"Reconciliation is Blank\",'Form 1EBS'!F296)","v":"Reconciliation is Blank"},{"$f":"'Form 1EBS'!F298","v":0},{"$f":"IF('Form 1EBS'!F121=0,0,IF('Form 1EBS'!F298=0,0,'Form 1EBS'!F298/+'Form 1EBS'!F121))","v":0},null,{"$f":"IF(D29=\"Reconciliation is Blank\",\"Blank\",\"\")","v":"Blank"},{"$f":"IF(H29=\"Blank\",IF(P29=TRUE,\"Yes\",\"\"),\"\")","v":""},null,{"$f":"IF(D29=\"False\",\"False.\",\"\")","v":""},{"$f":"IF(K29=\"\",\"\",IF(P29=TRUE,\"Yes\",\"\"))","v":""}]
[]
[]
[null,null,"BSCR Capital Schedules"]
[{"$f":"A26+1","v":13},{"$f":"HYPERLINK(\"#'Schedule II'!A1\",\"Schedule II - Schedule of Fixed Income & Equity Investments By BSCR Rating\")","v":"Schedule II - Schedule of Fixed Income & Equity Investments By BSCR Rating"}]
[null,"i)",{"$f":"HYPERLINK(\"#'Schedule II'!A1\",\"Quoted and Unquoted Bond Debentures as reported on Schedule II equals Form 1\")","v":"Quoted and Unquoted Bond Debentures as reported on Schedule II equals Form 1"},{"$f":"IF(('Form 1'!F16+'Form 1'!F29)=0,\"N/A\",IF('Schedule II'!T22=0,\"Schedule is Blank\",'Schedule II'!T24))","v":"N/A"},{"$f":"'Schedule II'!T26","v":0},{"$f":"IF(('Form 1'!F16+'Form 1'!F29)=0,0,('Schedule II'!T26)/('Form 1'!F16+'Form 1'!F29))","v":0},null,{"$f":"IF(D34=\"Schedule is Blank\",\"Blank\",\"\")","v":""},{"$f":"IF(H34=\"Blank\",IF(P34=TRUE,\"Yes\",\"\"),\"\")","v":""},null,{"$f":"IF(D34=\"False\",\"False.\",\"\")","v":""},{"$f":"IF(K34=\"\",\"\",IF(P34=TRUE,\"Yes\",\"\"))","v":""}]
[]
[null,"ii)",{"$f":"HYPERLINK(\"#'Schedule II'!A32\",\"Quoted and Unquoted Equities as reported on Schedule II equals Form 1\")","v":"Quoted and Unquoted Equities as reported on Schedule II equals Form 1"},{"$f":"IF(('Form 1'!F21+'Form 1'!F34)=0,\"N/A\",IF('Schedule II'!T44=0,\"Schedule is Blank\",'Schedule II'!T46))","v":"N/A"},{"$f":"+'Schedule II'!T48","v":0},{"$f":"IF(('Form 1'!F21+'Form 1'!F34)=0,0,('Schedule II'!T48)/('Form 1'!F21+'Form 1'!F34))","v":0},null,{"$f":"IF(D36=\"Schedule is Blank\",\"Blank\",\"\")","v":""},{"$f":"IF(H36=\"Blank\",IF(P36=TRUE,\"Yes\",\"\"),\"\")","v":""},null,{"$f":"IF(D36=\"False\",\"False.\",\"\")","v":""},{"$f":"IF(K36=\"\",\"\",IF(P36=TRUE,\"Yes\",\"\"))","v":""}]
[null,"iii)",{"$f":"HYPERLINK(\"#'Schedule II'!A55\",\"Mortgage Loans as reported on Schedule II equals Form 1\")","v":"Mortgage Loans as reported on Schedule II equals Form 1"},{"$f":"IF('Form 1'!F51=0,\"N/A\",IF('Schedule II'!D62=0,\"Schedule is Blank\",'Schedule II'!D64))","v":"N/A"},{"$f":"+'Schedule II'!D78","v":0},{"$f":"IF('Form 1'!F51=0,0,('Schedule II'!D78)/'Form 1'!F51)","v":0},null,{"$f":"IF(D37=\"Schedule is Blank\",\"Blank\",\"\")","v":""},{"$f":"IF(H37=\"Blank\",IF(P37=TRUE,\"Yes\",\"\"),\"\")","v":""},null,{"$f":"IF(D37=\"False\",\"False.\",\"\")","v":""},{"$f":"IF(K37=\"\",\"\",IF(P37=TRUE,\"Yes\",\"\"))","v":""}]
[{"$f":"A33+1","v":14},{"$f":"HYPERLINK(\"#'Schedule II (EBS)'!A1\",\"Schedule II (EBS) - Schedule of Fixed Income & Equity Investments By BSCR Rating\")","v":"Schedule II (EBS) - Schedule of Fixed Income & Equity Investments By BSCR Rating"}]
[null,"i)",{"$f":"HYPERLINK(\"#'Schedule II (EBS)'!A1\",\"Quoted & Unquoted Bond Debentures as reported on Schedule II (EBS) equals Form 1EBS\")","v":"Quoted & Unquoted Bond Debentures as reported on Schedule II (EBS) equals Form 1EBS"},{"$f":"IF(('Form 1EBS'!F14+'Form 1EBS'!F25)=0,\"N/A\",IF('Schedule II (EBS)'!T22=0,\"Schedule is Blank\",'Schedule II (EBS)'!T24))","v":"N/A"},{"$f":"'Schedule II (EBS)'!T26","v":0},{"$f":"IF(('Form 1EBS'!F14+'Form 1EBS'!F25)=0,0,('Schedule II (EBS)'!T26)/('Form 1EBS'!F14+'Form 1EBS'!F25))","v":0},null,{"$f":"IF(D39=\"Schedule is Blank\",\"Blank\",\"\")","v":""},{"$f":"IF(H39=\"Blank\",IF(P39=TRUE,\"Yes\",\"\"),\"\")","v":""},null,{"$f":"IF(D39=\"False\",\"False.\",\"\")","v":""},{"$f":"IF(K39=\"\",\"\",IF(P39=TRUE,\"Yes\",\"\"))","v":""}]
[]
[null,"ii)",{"$f":"HYPERLINK(\"#'Schedule II (EBS)'!A32\",\"Quoted & Unquoted Equities as reported on Schedule II (EBS) equals Form 1EBS\")","v":"Quoted & Unquoted Equities as reported on Schedule II (EBS) equals Form 1EBS"},{"$f":"IF(('Form 1EBS'!F19+'Form 1EBS'!F30)=0,\"N/A\",IF('Schedule II (EBS)'!T44=0,\"Schedule is Blank\",'Schedule II (EBS)'!T46))","v":"N/A"},{"$f":"+'Schedule II (EBS)'!T48","v":0},{"$f":"IF(('Form 1EBS'!F19+'Form 1EBS'!F30)=0,0,('Schedule II (EBS)'!T48)/('Form 1EBS'!F19+'Form 1EBS'!F30))","v":0},null,{"$f":"IF(D41=\"Schedule is Blank\",\"Blank\",\"\")","v":""},{"$f":"IF(H41=\"Blank\",IF(P41=TRUE,\"Yes\",\"\"),\"\")","v":""},null,{"$f":"IF(D41=\"False\",\"False.\",\"\")","v":""},{"$f":"IF(K41=\"\",\"\",IF(P41=TRUE,\"Yes\",\"\"))","v":""}]
[null,"iii)",{"$f":"HYPERLINK(\"#'Schedule II (EBS)'!A55\",\"Mortgage Loans as reported on Schedule II (EBS) equals Form 1EBS\")","v":"Mortgage Loans as reported on Schedule II (EBS) equals Form 1EBS"},{"$f":"IF('Form 1EBS'!F47=0,\"N/A\",IF('Schedule II (EBS)'!D62=0,\"Schedule is Blank\",'Schedule II (EBS)'!D64))","v":"N/A"},{"$f":"'Schedule II (EBS)'!D66","v":0},{"$f":"IF('Form 1EBS'!F47=0,0,('Schedule II (EBS)'!D66)/'Form 1EBS'!F47)","v":0},null,{"$f":"IF(D42=\"Schedule is Blank\",\"Blank\",\"\")","v":""},{"$f":"IF(H42=\"Blank\",IF(P42=TRUE,\"Yes\",\"\"),\"\")","v":""},null,{"$f":"IF(D42=\"False\",\"False.\",\"\")","v":""},{"$f":"IF(K42=\"\",\"\",IF(P42=TRUE,\"Yes\",\"\"))","v":""}]
[{"$f":"A38+1","v":15},{"$f":"HYPERLINK(\"#'Schedule IIA'!A1\",\"Schedule IIA - Schedule of Funds Held By Ceding Reinsurers in Segregated Accounts\")","v":"Schedule IIA - Schedule of Funds Held By Ceding Reinsurers in Segregated Accounts"}]
[{"$f":"A43+1","v":16},{"$f":"HYPERLINK(\"#'Schedule IIA (EBS)'!A1\",\"Schedule IIA (EBS) - Schedule of Funds Held By Ceding Reinsurers in Segregated Accounts\")","v":"Schedule IIA (EBS) - Schedule of Funds Held By Ceding Reinsurers in Segregated Accounts"}]
[{"$f":"A44+1","v":17},{"$f":"HYPERLINK(\"#'Schedule IIB (EBS)'!A1\",\"Schedule IIB (EBS)- Schedule of Fixed Income & Equity Investments By BSCR Rating\")","v":"Schedule IIB (EBS)- Schedule of Fixed Income & Equity Investments By BSCR Rating"}]
[null,"Interest rate-sensitive investments",null,{"$f":"IF('Investment Reconciliation'!G10=0,\"N/A\",IF('Investment Reconciliation'!G28=0,\"Schedule is Blank\",'Investment Reconciliation'!G30))","v":"N/A"},{"$f":"'Investment Reconciliation'!G32","v":0},{"$f":"IF('Investment Reconciliation'!G28=0,0,('Investment Reconciliation'!G32)/'Investment Reconciliation'!G28)","v":0},null,{"$f":"IF(D46=\"Schedule is Blank\",\"Blank\",\"\")","v":""},{"$f":"IF(H46=\"Blank\",IF(P46=TRUE,\"Yes\",\"\"),\"\")","v":""},null,{"$f":"IF(D46=\"False\",\"False.\",\"\")","v":""},{"$f":"IF(K46=\"\",\"\",IF(P46=TRUE,\"Yes\",\"\"))","v":""}]
[null,"Investments sensitive to equity prices",null,{"$f":"IF('Investment Reconciliation'!H10=0,\"N/A\",IF('Investment Reconciliation'!H28=0,\"Schedule is Blank\",'Investment Reconciliation'!H30))","v":"N/A"},{"$f":"'Investment Reconciliation'!H32","v":0},{"$f":"IF('Investment Reconciliation'!H28=0,0,('Investment Reconciliation'!H32)/'Investment Reconciliation'!H28)","v":0},null,{"$f":"IF(D47=\"Schedule is Blank\",\"Blank\",\"\")","v":""},{"$f":"IF(H47=\"Blank\",IF(P47=TRUE,\"Yes\",\"\"),\"\")","v":""},null,{"$f":"IF(D47=\"False\",\"False.\",\"\")","v":""},{"$f":"IF(K47=\"\",\"\",IF(P47=TRUE,\"Yes\",\"\"))","v":""}]
[{"$f":"A45+1","v":18},{"$f":"HYPERLINK(\"#'Schedule IIC (EBS)'!A1\",\"Schedule IIC (EBS) - Schedule of Funds Held By Ceding Reinsurers in Segregated Accounts\")","v":"Schedule IIC (EBS) - Schedule of Funds Held By Ceding Reinsurers in Segregated Accounts"}]
[null,"Interest rate-sensitive investments",null,{"$f":"IF('Investment Reconciliation'!I10=0,\"N/A\",IF('Investment Reconciliation'!I28=0,\"Schedule is Blank\",'Investment Reconciliation'!I30))","v":"N/A"},{"$f":"'Investment Reconciliation'!I32","v":0},{"$f":"IF('Investment Reconciliation'!I28=0,0,('Investment Reconciliation'!I32)/'Investment Reconciliation'!I28)","v":0},null,{"$f":"IF(D49=\"Schedule is Blank\",\"Blank\",\"\")","v":""},{"$f":"IF(H49=\"Blank\",IF(P49=TRUE,\"Yes\",\"\"),\"\")","v":""},null,{"$f":"IF(D49=\"False\",\"False.\",\"\")","v":""},{"$f":"IF(K49=\"\",\"\",IF(P49=TRUE,\"Yes\",\"\"))","v":""}]
[null,"Investments sensitive to equity prices",null,{"$f":"IF('Investment Reconciliation'!J10=0,\"N/A\",IF('Investment Reconciliation'!J28=0,\"Schedule is Blank\",'Investment Reconciliation'!J30))","v":"N/A"},{"$f":"'Investment Reconciliation'!J32","v":0},{"$f":"IF('Investment Reconciliation'!J28=0,0,('Investment Reconciliation'!J32)/'Investment Reconciliation'!J28)","v":0},null,{"$f":"IF(D50=\"Schedule is Blank\",\"Blank\",\"\")","v":""},{"$f":"IF(H50=\"Blank\",IF(P50=TRUE,\"Yes\",\"\"),\"\")","v":""},null,{"$f":"IF(D50=\"False\",\"False.\",\"\")","v":""},{"$f":"IF(K50=\"\",\"\",IF(P50=TRUE,\"Yes\",\"\"))","v":""}]
[{"$f":"A48+1","v":19},{"$f":"HYPERLINK(\"#'Schedule IID (EBS)'!A1\",\"Schedule IID (EBS) - Schedule of Segregated Accounts\")","v":"Schedule IID (EBS) - Schedule of Segregated Accounts"},null,{"$f":"IF(('Form 1EBS'!F79+'Form 1EBS'!F80+'Form 1EBS'!F81)=0,\"N/A\",IF('Schedule IID (EBS)'!D97=0,\"Schedule is Blank\",'Investment Reconciliation'!K30))","v":"N/A"},{"$f":"'Investment Reconciliation'!K32","v":0},{"$f":"IF('Investment Reconciliation'!K28=0,0,('Investment Reconciliation'!K32)/'Investment Reconciliation'!K28)","v":0},null,{"$f":"IF(D51=\"Schedule is Blank\",\"Blank\",\"\")","v":""},{"$f":"IF(H51=\"Blank\",IF(P51=TRUE,\"Yes\",\"\"),\"\")","v":""},null,{"$f":"IF(D51=\"False\",\"False.\",\"\")","v":""},{"$f":"IF(K51=\"\",\"\",IF(P51=TRUE,\"Yes\",\"\"))","v":""}]
[{"$f":"A51+1","v":20},{"$f":"HYPERLINK(\"#'Schedule IIE (EBS)'!A1\",\"Schedule IIE (EBS) - Schedule of Deposit Assets & Liabilities\")","v":"Schedule IIE (EBS) - Schedule of Deposit Assets & Liabilities"},null,{"$f":"IF('Form 1EBS'!F82=0,\"N/A\",IF('Schedule IIE (EBS)'!D97=0,\"Schedule is Blank\",'Investment Reconciliation'!M30))","v":"N/A"},{"$f":"'Investment Reconciliation'!M32","v":0},{"$f":"IF('Investment Reconciliation'!M28=0,0,('Investment Reconciliation'!M32)/'Investment Reconciliation'!M28)","v":0},null,{"$f":"IF(D52=\"Schedule is Blank\",\"Blank\",\"\")","v":""},{"$f":"IF(H52=\"Blank\",IF(P52=TRUE,\"Yes\",\"\"),\"\")","v":""},null,{"$f":"IF(D52=\"False\",\"False.\",\"\")","v":""},{"$f":"IF(K52=\"\",\"\",IF(P52=TRUE,\"Yes\",\"\"))","v":""}]
[{"$f":"A52+1","v":21},{"$f":"HYPERLINK(\"#'Schedule IIF (EBS)'!A1\",\"Schedule IIF (EBS) - Schedule of Sundry Assets\")","v":"Schedule IIF (EBS) - Schedule of Sundry Assets"},null,{"$f":"IF(('Form 1EBS'!F84+'Form 1EBS'!F86+'Form 1EBS'!F87)=0,\"N/A\",IF('Schedule IIF (EBS)'!D97=0,\"Schedule is Blank\",'Investment Reconciliation'!O30))","v":"N/A"},{"$f":"'Investment Reconciliation'!O32","v":0},{"$f":"IF('Investment Reconciliation'!O28=0,0,('Investment Reconciliation'!O32)/'Investment Reconciliation'!O28)","v":0},null,{"$f":"IF(D53=\"Schedule is Blank\",\"Blank\",\"\")","v":""},{"$f":"IF(H53=\"Blank\",IF(P53=TRUE,\"Yes\",\"\"),\"\")","v":""},null,{"$f":"IF(D53=\"False\",\"False.\",\"\")","v":""},{"$f":"IF(K53=\"\",\"\",IF(P53=TRUE,\"Yes\",\"\"))","v":""}]
[{"$f":"A53+1","v":22},{"$f":"HYPERLINK(\"#'Schedule III'!A1\",\"Schedule III - Schedule of Net Loss and Loss Expense Provisions\")","v":"Schedule III - Schedule of Net Loss and Loss Expense Provisions"}]
[null,"i)",{"$f":"HYPERLINK(\"#'Schedule III'!A1\",\"Net Loss & Loss Expense Provision on Schedule III equals Form 1\")","v":"Net Loss & Loss Expense Provision on Schedule III equals Form 1"},{"$f":"IF('Form 1'!F111=0,\"N/A\",IF('Schedule III'!E33=0,\"Schedule is Blank\",'Schedule III'!E35))","v":"N/A"},{"$f":"'Schedule III'!E37","v":0},{"$f":"IF('Form 1'!F111=0,0,('Schedule III'!E37)/'Form 1'!F111)","v":0},null,{"$f":"IF(D55=\"Schedule is Blank\",\"Blank\",\"\")","v":""},{"$f":"IF(H55=\"Blank\",IF(P55=TRUE,\"Yes\",\"\"),\"\")","v":""},null,{"$f":"IF(D55=\"False\",\"False.\",\"\")","v":""},{"$f":"IF(K55=\"\",\"\",IF(P55=TRUE,\"Yes\",\"\"))","v":""}]
[{"$f":"A54+1","v":23},{"$f":"HYPERLINK(\"#'Schedule III (EBS)'!A1\",\"Schedule III (EBS) - Schedule of Net Loss and Loss Expense Provisions\")","v":"Schedule III (EBS) - Schedule of Net Loss and Loss Expense Provisions"}]
[null,"i)",{"$f":"HYPERLINK(\"#'Schedule III (EBS)'!A1\",\"Net Loss & Loss Expense Provision on Schedule III (EBS) equals Form 1EBS\")","v":"Net Loss & Loss Expense Provision on Schedule III (EBS) equals Form 1EBS"},{"$f":"IF('Form 1EBS'!F121=0,\"N/A\",IF('Schedule III (EBS)'!F34=0,\"Schedule is Blank\",'Schedule III (EBS)'!F38))","v":"N/A"},{"$f":"'Schedule III (EBS)'!F40","v":0},{"$f":"IF('Form 1EBS'!F121=0,0,('Schedule III (EBS)'!F40)/'Form 1EBS'!F121)","v":0},null,{"$f":"IF(D57=\"Schedule is Blank\",\"Blank\",\"\")","v":""},{"$f":"IF(H57=\"Blank\",IF(P57=TRUE,\"Yes\",\"\"),\"\")","v":""},null,{"$f":"IF(D57=\"False\",\"False.\",\"\")","v":""},{"$f":"IF(K57=\"\",\"\",IF(P57=TRUE,\"Yes\",\"\"))","v":""}]
[null,"ii)",{"$f":"HYPERLINK(\"#'Schedule IIIA (EBS)'!A1\",\"Group has taken advantage of Net Loss & Loss Expense Provision Geographic Diversification\")","v":"Group has taken advantage of Net Loss & Loss Expense Provision Geographic Diversification"},{"$f":"IF('Schedule IIIA (EBS)'!X34=0,\"No\",\"Yes\")","v":"No"}]
[]
[{"$f":"A56+1","v":24},{"$f":"HYPERLINK(\"#'Schedule IIIA (EBS)'!A1\",\"Schedule IIIA (EBS) - Schedule of Net Loss and Loss Expense Provisions By Geographic Zone\")","v":"Schedule IIIA (EBS) - Schedule of Net Loss and Loss Expense Provisions By Geographic Zone"}]
[{"$f":"A60+1","v":25},{"$f":"HYPERLINK(\"#'Schedule IVA'!A1\",\"Schedule IVA - Schedule of General Business Premiums Written By Line of Business\")","v":"Schedule IVA - Schedule of General Business Premiums Written By Line of Business"}]
[null,"i)",{"$f":"HYPERLINK(\"#'Schedule IVA'!A1\",\"Net Premium Written as reported on Schedule IVA equals Form 2\")","v":"Net Premium Written as reported on Schedule IVA equals Form 2"},{"$f":"IF('Form 2'!E18=0,\"N/A\",IF('Schedule IVA'!Q35=0,\"Schedule is Blank\",'Schedule IVA'!Q37))","v":"N/A"},{"$f":"'Schedule IVA'!Q39","v":0},{"$f":"IF('Form 2'!E18=0,0,'Schedule IVA'!Q39/'Form 2'!E18)","v":0},null,{"$f":"IF(D62=\"Schedule is Blank\",\"Blank\",\"\")","v":""},{"$f":"IF(H62=\"Blank\",IF(P62=TRUE,\"Yes\",\"\"),\"\")","v":""},null,{"$f":"IF(D62=\"False\",\"False.\",\"\")","v":""},{"$f":"IF(K62=\"\",\"\",IF(P62=TRUE,\"Yes\",\"\"))","v":""}]
[null,"ii)",{"$f":"HYPERLINK(\"#'Schedule IVC (EBS)'!A1\",\"Insurer has taken advantage of Net Premium Written Geographic Diversification\")","v":"Insurer has taken advantage of Net Premium Written Geographic Diversification"},{"$f":"IF('Schedule IVC (EBS)'!X33=0,\"No\",\"Yes\")","v":"No"}]
[]
[{"$f":"A61+1","v":26},{"$f":"HYPERLINK(\"#'Schedule IVB'!A1\",\"Schedule IVB - Schedule of Long-Term Business Premiums Written By Line of Business\")","v":"Schedule IVB - Schedule of Long-Term Business Premiums Written By Line of Business"}]
[null,"i)",{"$f":"HYPERLINK(\"#'Schedule IVB'!A1\",\"Net Premium Written as reported on Schedule IVB equals Form 2\")","v":"Net Premium Written as reported on Schedule IVB equals Form 2"},{"$f":"IF('Form 2'!E51=0,\"N/A\",IF('Schedule IVB'!Y31=0,\"Schedule is Blank\",'Schedule IVB'!Y33))","v":"N/A"},{"$f":"'Schedule IVB'!Y35","v":0},{"$f":"IF('Form 2'!E51=0,0,'Schedule IVB'!Y35/'Form 2'!E51)","v":0},null,{"$f":"IF(D66=\"Schedule is Blank\",\"Blank\",\"\")","v":""},{"$f":"IF(H66=\"Blank\",IF(P66=TRUE,\"Yes\",\"\"),\"\")","v":""},null,{"$f":"IF(D66=\"False\",\"False.\",\"\")","v":""},{"$f":"IF(K66=\"\",\"\",IF(P66=TRUE,\"Yes\",\"\"))","v":""}]
[{"$f":"A65+1","v":27},{"$f":"HYPERLINK(\"#'Schedule IVD'!A1\",\"Schedule IVD - Exposure Measure By Line of Business\")","v":"Schedule IVD - Exposure Measure By Line of Business"},null,{"$f":"IF('Form 2'!E18=0,\"N/A\",IF(('Schedule IVD (EBS)'!G33+'Schedule IVD (EBS)'!K33+'Schedule IVD (EBS)'!M33)=0,\"Schedule is Blank\",\"True\"))","v":"N/A"},null,null,null,{"$f":"IF(D67=\"Schedule is Blank\",\"Blank\",\"\")","v":""},{"$f":"IF(H67=\"Blank\",IF(P67=TRUE,\"Yes\",\"\"),\"\")","v":""},null,{"$f":"IF(D67=\"False\",\"False.\",\"\")","v":""},{"$f":"IF(K67=\"\",\"\",IF(P67=TRUE,\"Yes\",\"\"))","v":""}]
[{"$f":"A67+1","v":28},null,{"$f":"HYPERLINK(\"#'Schedule IVE (EBS)'!A1\",\"Schedule IVE (EBS) - Schedule of Geographic Diversification of Exposure Measure\")","v":"Schedule IVE (EBS) - Schedule of Geographic Diversification of Exposure Measure"}]
[{"$f":"A68+1","v":29},{"$f":"HYPERLINK(\"#'Schedule IVF'!A1\",\"Schedule IVF - Exposure Of Risk\")","v":"Schedule IVF - Exposure Of Risk"}]
[null,"i)",{"$f":"HYPERLINK(\"#'Schedule IVF'!F53\",\"General Business Gross Premium Written\")","v":"General Business Gross Premium Written"},{"$f":"IF('Form 2'!E14=0,\"N/A\",IF((SUM('Schedule IVF'!E52:F52))=0,\"Schedule is Blank\",'Schedule IVF'!F53))","v":"N/A"},{"$f":"'Schedule IVF'!F55","v":0},{"$f":"IF('Form 2'!E14=0,0,('Schedule IVF'!E55+'Schedule IVF'!F55)/'Form 2'!E14)","v":0},null,{"$f":"IF(D70=\"Schedule is Blank\",\"Blank\",\"\")","v":""},{"$f":"IF(H70=\"Blank\",IF(P70=TRUE,\"Yes\",\"\"),\"\")","v":""},null,{"$f":"IF(D70=\"False\",\"False.\",\"\")","v":""},{"$f":"IF(K70=\"\",\"\",IF(P70=TRUE,\"Yes\",\"\"))","v":""}]
[null,"ii)",{"$f":"HYPERLINK(\"#'Schedule IVF'!I53\",\"General Business Net Premium Written\")","v":"General Business Net Premium Written"},{"$f":"IF('Form 2'!E18=0,\"N/A\",IF(('Schedule IVF'!I52)=0,\"Schedule is Blank\",'Schedule IVF'!I53))","v":"N/A"},{"$f":"'Schedule IVF'!I55","v":0},{"$f":"IF('Form 2'!E18=0,0,'Schedule IVF'!I55/'Form 2'!E18)","v":0},null,{"$f":"IF(D71=\"Schedule is Blank\",\"Blank\",\"\")","v":""},{"$f":"IF(H71=\"Blank\",IF(P71=TRUE,\"Yes\",\"\"),\"\")","v":""},null,{"$f":"IF(D71=\"False\",\"False.\",\"\")","v":""},{"$f":"IF(K71=\"\",\"\",IF(P71=TRUE,\"Yes\",\"\"))","v":""}]
[null,"iii)",{"$f":"HYPERLINK(\"#'Schedule IVF'!L53\",\"General Business Gross Reserves\")","v":"General Business Gross Reserves"},{"$f":"IF('Form 1'!E104=0,\"N/A\",IF('Schedule IVF'!L52=0,\"Schedule is Blank\",'Schedule IVF'!L53))","v":"N/A"},{"$f":"'Schedule IVF'!L55","v":0},{"$f":"IF('Form 1'!E104=0,0,'Schedule IVF'!L55/'Form 1'!E104)","v":0},null,{"$f":"IF(D72=\"Schedule is Blank\",\"Blank\",\"\")","v":""},{"$f":"IF(H72=\"Blank\",IF(P72=TRUE,\"Yes\",\"\"),\"\")","v":""},null,{"$f":"IF(D72=\"False\",\"False.\",\"\")","v":""},{"$f":"IF(K72=\"\",\"\",IF(P72=TRUE,\"Yes\",\"\"))","v":""}]
[null,"iv)",{"$f":"HYPERLINK(\"#'Schedule IVF'!S53\",\"Long-Term Business Gross Reserves\")","v":"Long-Term Business Gross Reserves"},{"$f":"IF('Form 1'!E134=0,\"N/A\",IF('Schedule IVF'!S52=0,\"Schedule is Blank\",'Schedule IVF'!S53))","v":"N/A"},{"$f":"'Schedule IVF'!S55","v":0},{"$f":"IF('Form 1'!E134=0,0,(SUM('Schedule IVF'!M55:S55))/'Form 1'!E134)","v":0},null,{"$f":"IF(D73=\"Schedule is Blank\",\"Blank\",\"\")","v":""},{"$f":"IF(H73=\"Blank\",IF(P73=TRUE,\"Yes\",\"\"),\"\")","v":""},null,{"$f":"IF(D73=\"False\",\"False.\",\"\")","v":""},{"$f":"IF(K73=\"\",\"\",IF(P73=TRUE,\"Yes\",\"\"))","v":""}]
[null,"v)",{"$f":"HYPERLINK(\"#'Schedule IVF'!T53\",\"Long-Term Business Losses Incurred\")","v":"Long-Term Business Losses Incurred"},{"$f":"IF('Form 2'!E75=0,\"N/A\",IF(('Schedule IVF'!T52)=0,\"Schedule is Blank\",'Schedule IVF'!T53))","v":"N/A"},{"$f":"'Schedule IVF'!T55","v":0},{"$f":"IF('Form 2'!E75=0,0,'Schedule IVF'!T55/'Form 2'!E75)","v":0},null,{"$f":"IF(D74=\"Schedule is Blank\",\"Blank\",\"\")","v":""},{"$f":"IF(H74=\"Blank\",IF(P74=TRUE,\"Yes\",\"\"),\"\")","v":""},null,{"$f":"IF(D74=\"False\",\"False.\",\"\")","v":""},{"$f":"IF(K74=\"\",\"\",IF(P74=TRUE,\"Yes\",\"\"))","v":""}]
[{"$f":"A69+1","v":30},{"$f":"HYPERLINK(\"#'Schedule V'!A1\",\"Schedule V - Schedule of Risk Management\")","v":"Schedule V - Schedule of Risk Management"}]
[null,"i)",{"$f":"HYPERLINK(\"#'Schedule V'!E13\",\"Effective Duration of Assets\")","v":"Effective Duration of Assets"},{"$f":"IF('Schedule V'!F12=0,\"Asset Duration is not Reported\",\"True\")","v":"Asset Duration is not Reported"},null,null,null,{"$f":"IF(D76=\"Asset Duration is not Reported\",\"Blank\",\"\")","v":"Blank"},{"$f":"IF(H76=\"Blank\",IF(P76=TRUE,\"Yes\",\"\"),\"\")","v":""}]
[null,"ii)",{"$f":"HYPERLINK(\"#'Schedule V'!E15\",\"Effective Duration of Liabilities\")","v":"Effective Duration of Liabilities"},{"$f":"IF('Schedule V'!F14=0,\"Liability Duration is not Reported\",\"True\")","v":"Liability Duration is not Reported"},null,null,null,{"$f":"IF(D77=\"Liability Duration is not Reported\",\"Blank\",\"\")","v":"Blank"},{"$f":"IF(H77=\"Blank\",IF(P77=TRUE,\"Yes\",\"\"),\"\")","v":""}]
[null,"iii)",{"$f":"HYPERLINK(\"#'Schedule V'!E19\",\"Gross Probable Maximum Loss\")","v":"Gross Probable Maximum Loss"},{"$f":"IF('Schedule V'!F18=0,\"Gross PML is not Reported\",\"True\")","v":"Gross PML is not Reported"}]
[null,"iv)",{"$f":"HYPERLINK(\"#'Schedule X(a)'!F11\",\"Gross Probable Maximum Loss to Catastrophe Risk Return 100 Year Aggregate\")","v":"Gross Probable Maximum Loss to Catastrophe Risk Return 100 Year Aggregate"},{"$f":"IF('Schedule V'!F18=0,\"Gross PML is not Reported\",IF('Schedule X(a)'!F10=0,\"Schedule X(a) is Blank\",IF(ROUND('Schedule V'!F18-(1000*'Schedule X(a)'!F10),0)=0,\"True\",\"False\")))","v":"Gross PML is not Reported"},{"$f":"('Schedule X(a)'!F10*1000)-'Schedule V'!F18","v":0},{"$f":"IF('Schedule X(a)'!F10=0,0,(('Schedule X(a)'!F10*1000)-'Schedule V'!F18)/('Schedule X(a)'!F10*1000))","v":0}]
[]
[null,"v)",{"$f":"HYPERLINK(\"#'Schedule V'!E21\",\"Net Probable Maximum Loss\")","v":"Net Probable Maximum Loss"},{"$f":"IF('Schedule V'!F20=0,\"Net PML is not Reported\",\"True\")","v":"Net PML is not Reported"}]
[null,"vi)",{"$f":"HYPERLINK(\"#'Schedule X(a)'!H11\",\"Net Probable Maximum Loss to Catastrophe Risk Return 100 Year Aggregate\")","v":"Net Probable Maximum Loss to Catastrophe Risk Return 100 Year Aggregate"},{"$f":"IF('Schedule V'!F20=0,\"Net PML is not Reported\",IF('Schedule X(a)'!H10=0,\"Schedule X(a) is Blank\",IF(ROUND((('Schedule X(a)'!H10*1000)-'Schedule V'!F20),0)=0,\"True\",\"False\")))","v":"Net PML is not Reported"},{"$f":"('Schedule X(a)'!H10*1000)-'Schedule V'!F20","v":0},{"$f":"IF('Schedule X(a)'!H10=0,0,('Schedule X(a)'!H10*1000-'Schedule V'!F20)/('Schedule X(a)'!H10*1000))","v":0}]
[null,"vii)",{"$f":"HYPERLINK(\"#'Schedule V'!E23\",\"Average Annual Loss\")","v":"Average Annual Loss"},{"$f":"IF('Schedule V'!F22=0,\"Avg Annual Loss is not Reported\",\"True\")","v":"Avg Annual Loss is not Reported"}]
[null,"viii)",{"$f":"HYPERLINK(\"#'Schedule X(a)'!J17\",\"Average Annual Loss (Sch X(a)) Net is greater than Sch V\")","v":"Average Annual Loss (Sch X(a)) Net is greater than Sch V"},{"$f":"IF('Schedule V'!F22=0,\"Average Annual Loss is not Reported\",IF('Schedule X(a)'!J16=0,\"Schedule X(a) is Blank\",IF((('Schedule X(a)'!J16*1000)>'Schedule V'!F22),\"True\",\"False\")))","v":"Average Annual Loss is not Reported"}]
[null,"ix)",{"$f":"HYPERLINK(\"#'Schedule V'!E25\",\"Actual attritional Losses and Large Claims Losses - Relevant Year\")","v":"Actual attritional Losses and Large Claims Losses - Relevant Year"},{"$f":"IF('Schedule V'!F24=0,\"Attritional Loss is not Reported\",\"True\")","v":"Attritional Loss is not Reported"}]
[null,"x)",{"$f":"HYPERLINK(\"#'Schedule V'!E28:E32\",\"Property Catastrophe Recoverables\")","v":"Property Catastrophe Recoverables"},{"$f":"IF('Schedule V'!F31=0,\"Property Cat Rec. is not Reported\",\"True\")","v":"Property Cat Rec. is not Reported"},null,null,null,null,{"$f":"IF(H86=\"Blank\",IF(P86=TRUE,\"Yes\",\"\"),\"\")","v":""}]
[null,"xi)",{"$f":"HYPERLINK(\"#'Schedule V'!E37:E39\",\"Summary of Projected Performance\")","v":"Summary of Projected Performance"},{"$f":"IF(COUNTIF('Schedule V'!F36:F38,0)>0,\"Projected Performance is not Reported\",\"True\")","v":"Projected Performance is not Reported"},null,null,null,{"$f":"IF(D87=\"Projected Performance is not Reported\",\"Blank\",\"\")","v":"Blank"},{"$f":"IF(H87=\"Blank\",IF(P87=TRUE,\"Yes\",\"\"),\"\")","v":""}]
[null,"xii)",{"$f":"HYPERLINK(\"#'Schedule V'!E52:E55\",\"Deferred Accumulation Annuities Disclosure\")","v":"Deferred Accumulation Annuities Disclosure"},{"$f":"IF(COUNTIF('Schedule V'!F51:F54,0)=4,\"Def Acc. Ann. Not Reported\",\"True\")","v":"Def Acc. Ann. Not Reported"}]
[{"$f":"A75+1","v":31},{"$f":"HYPERLINK(\"#'Schedule V(a)'!A1\",\"Schedule V(a) Schedule of Risk Management - Governance Structure\")","v":"Schedule V(a) Schedule of Risk Management - Governance Structure"}]
[null,"i)",{"$f":"HYPERLINK(\"#'Schedule V(a)'!E11\",\"Directors - Country of Residence\")","v":"Directors - Country of Residence"},{"$f":"IF('Schedule V(a)'!E12=0,\"Directors - Country of Residence is not Reported\",\"True\")","v":"Directors - Country of Residence is not Reported"},null,null,null,{"$f":"IF(D90=\"Directors - Country of Residence is not Reported\",\"Blank\",\"\")","v":"Blank"},{"$f":"IF(H90=\"Blank\",IF(P90=TRUE,\"Yes\",\"\"),\"\")","v":""}]
[null,"ii)",{"$f":"HYPERLINK(\"#'Schedule V(a)'!G11\",\"Directors - Status\")","v":"Directors - Status"},{"$f":"IF('Schedule V(a)'!G12=0,\"Directors - Status is not Reported\",\"True\")","v":"True"},null,null,null,{"$f":"IF(D91=\"Directors - Status is not Reported\",\"Blank\",\"\")","v":""},{"$f":"IF(H91=\"Blank\",IF(P91=TRUE,\"Yes\",\"\"),\"\")","v":""}]
[null,"iii)",{"$f":"HYPERLINK(\"#'Schedule V(a)'!E36\",\"Chief & Senior Executives  - Country of Residence\")","v":"Chief & Senior Executives  - Country of Residence"},{"$f":"IF('Schedule V(a)'!E37=0,\"Chief & Senior Executives - Country of Residence\",\"True\")","v":"Chief & Senior Executives - Country of Residence"},null,null,null,{"$f":"IF(D92=\"Chief & Senior Executives - Country of Residence\",\"Blank\",\"\")","v":"Blank"},{"$f":"IF(H92=\"Blank\",IF(P92=TRUE,\"Yes\",\"\"),\"\")","v":""}]
[null,"iv)",{"$f":"HYPERLINK(\"#'Schedule V(a)'!G36\",\"Chief & Senior Executives - Employee Arrangement\")","v":"Chief & Senior Executives - Employee Arrangement"},{"$f":"IF('Schedule V(a)'!G37=0,\"Chief & Senior Executives - Employee Arrangement is not Reported\",\"True\")","v":"True"},null,null,null,{"$f":"IF(D93=\"Chief & Senior Executives - Employee Arrangement is not Reported\",\"Blank\",\"\")","v":""},{"$f":"IF(H93=\"Blank\",IF(P93=TRUE,\"Yes\",\"\"),\"\")","v":""}]
[{"$f":"A89+1","v":32},{"$f":"HYPERLINK(\"#'Schedule V(b)'!A1\",\"Schedule V(b) Schedule of Risk Management - Group Structure\")","v":"Schedule V(b) Schedule of Risk Management - Group Structure"}]
[null,"i)",{"$f":"HYPERLINK(\"#'Schedule V(b)'!A1\",\"Group Structure\")","v":"Group Structure"},{"$f":"IF('Schedule V(b)'!D7=0,\"Group Structure is not Reported\",\"True\")","v":"Group Structure is not Reported"},null,null,null,{"$f":"IF(D95=\"Group Structure is not Reported\",\"Blank\",\"\")","v":"Blank"},{"$f":"IF(H95=\"Blank\",IF(P95=TRUE,\"Yes\",\"\"),\"\")","v":""}]
[{"$f":"A94+1","v":33},{"$f":"HYPERLINK(\"#'Schedule V(c)'!A1\",\"Schedule V(c) Schedule of Risk Management - Intra-Group Exposures\")","v":"Schedule V(c) Schedule of Risk Management - Intra-Group Exposures"}]
[null,"i)",{"$f":"HYPERLINK(\"#'Schedule V(c)'!E8\",\"Intra-Group Transactions\")","v":"Intra-Group Transactions"},{"$f":"IF('Schedule V(c)'!C14=0,\"Intra-Group Transactions is not Reported\",\"True\")","v":"Intra-Group Transactions is not Reported"},null,null,null,{"$f":"IF(D97=\"Intra-Group Transactions is not Reported\",\"Blank\",\"\")","v":"Blank"},{"$f":"IF(H97=\"Blank\",IF(P97=TRUE,\"Yes\",\"\"),\"\")","v":""}]
[null,"ii)",{"$f":"HYPERLINK(\"#'Schedule V(c)'!E42\",\"Intra-Group Reinsurance & Retrocession\")","v":"Intra-Group Reinsurance & Retrocession"},{"$f":"IF('Schedule V(c)'!C47=0,\"Intra-Group R/I is not Reported\",\"True\")","v":"Intra-Group R/I is not Reported"},null,null,null,{"$f":"IF(D98=\"Intra-Group R/I is not Reported\",\"Blank\",\"\")","v":"Blank"},{"$f":"IF(H98=\"Blank\",IF(P98=TRUE,\"Yes\",\"\"),\"\")","v":""}]
[null,"iii)",{"$f":"HYPERLINK(\"#'Schedule V(c)'!J73\",\"Proportion of Internal Reinsurance\")","v":"Proportion of Internal Reinsurance"},{"$f":"IF('Schedule V(c)'!L73=0,\"Proportion R/I is not Reported\",\"True\")","v":"Proportion R/I is not Reported"},null,null,null,{"$f":"IF(D99=\"Proportion R/I is not Reported\",\"Blank\",\"\")","v":"Blank"},{"$f":"IF(H99=\"Blank\",IF(P99=TRUE,\"Yes\",\"\"),\"\")","v":""}]
[null,"iv)",{"$f":"HYPERLINK(\"#'Schedule V(c)'!E78\",\"10 Largest Counterparty Exposures\")","v":"10 Largest Counterparty Exposures"},{"$f":"IF('Schedule V(c)'!C82=0,\"Counterparty Exposure is not Completed\",\"True\")","v":"Counterparty Exposure is not Completed"},null,null,null,{"$f":"IF(D100=\"Counterparty Exposure is not Completed\",\"Blank\",\"\")","v":"Blank"},{"$f":"IF(H100=\"Blank\",IF(P100=TRUE,\"Yes\",\"\"),\"\")","v":""}]
[{"$f":"A96+1","v":34},{"$f":"HYPERLINK(\"#'Schedule V(e)'!A1\",\"Schedule V(e) Schedule of Risk Management - Intra-Group Exposures\")","v":"Schedule V(e) Schedule of Risk Management - Intra-Group Exposures"}]
[null,"i)",{"$f":"HYPERLINK(\"#'Schedule V(e)'!F13:G18\",\"Financial Market Scenarios\")","v":"Financial Market Scenarios"},{"$f":"IF('Schedule V(e)'!I8=\"\",IF(COUNTBLANK('Schedule V(e)'!F12:G18)=0,\"True\",\"Financial Market Scenario is not Reported\"),\"True\")","v":"True"},null,null,null,{"$f":"IF(D102=\"Financial Market Scenario is not Reported\",\"Blank\",\"\")","v":""},{"$f":"IF(H102=\"Blank\",IF(P102=TRUE,\"Yes\",\"\"),\"\")","v":""}]
[null,"ii)",{"$f":"HYPERLINK(\"#'Schedule V(e)'!I34:J52\",\"Underwriting Loss Scenarios - Completed\")","v":"Underwriting Loss Scenarios - Completed"},{"$f":"IF(COUNTIF('Schedule V(e)'!H53:H71,0)=19,\"Underwriting Loss Scenarios is not Reported\",\"True\")","v":"Underwriting Loss Scenarios is not Reported"},null,null,null,{"$f":"IF(D103=\"Underwriting Loss Scenarios is not Reported\",\"Blank\",\"\")","v":"Blank"},{"$f":"IF(H103=\"Blank\",IF(P103=TRUE,\"Yes\",\"\"),\"\")","v":""}]
[null,"iii)",{"$f":"HYPERLINK(\"#'Schedule V(e)'!G34:G52\",\"Underwriting Loss Scenarios - Gross Loss Negative Surplus\")","v":"Underwriting Loss Scenarios - Gross Loss Negative Surplus"},{"$f":"'Schedule V(e)'!S72","v":"True"},null,null,null,null,null,null,{"$f":"IF(D104=\"False\",\"False.\",\"\")","v":""},{"$f":"IF(K104=\"\",\"\",IF(P104=TRUE,\"Yes\",\"\"))","v":""}]
[null,"iv)",{"$f":"HYPERLINK(\"#'Schedule V(e)'!k34:k52\",\"Underwriting Loss Scenarios - Net Loss Negative Surplus\")","v":"Underwriting Loss Scenarios - Net Loss Negative Surplus"},{"$f":"'Schedule V(e)'!T72","v":"True"},null,null,null,null,null,null,{"$f":"IF(D105=\"False\",\"False.\",\"\")","v":""},{"$f":"IF(K105=\"\",\"\",IF(P105=TRUE,\"Yes\",\"\"))","v":""}]
[null,"v)",{"$f":"HYPERLINK(\"#'Schedule V(e)'!D28:N46\",\"Underwriting Loss Scenarios - Gross Loss Less than Net Loss Impact\")","v":"Underwriting Loss Scenarios - Gross Loss Less than Net Loss Impact"},{"$f":"'Schedule V(e)'!U72","v":"True"},null,null,null,null,null,null,{"$f":"IF(D106=\"False\",\"False.\",\"\")","v":""},{"$f":"IF(K106=\"\",\"\",IF(P106=TRUE,\"Yes\",\"\"))","v":""}]
[null,"vi)",{"$f":"HYPERLINK(\"#'Schedule V(e)'!J62:K64\",\"Other Underwriting Loss Scenarios\")","v":"Other Underwriting Loss Scenarios"},{"$f":"IF('Schedule V(e)'!I8=\"\",IF(COUNTIF('Schedule V(e)'!K81:K83,0)=0,\"True\",\"Other Underwriting Loss Scenarios is not Reported\"),\"True\")","v":"Other Underwriting Loss Scenarios is not Reported"},null,null,null,null,null,null,{"$f":"IF(D107=\"False\",\"False.\",\"\")","v":""},{"$f":"IF(K107=\"\",\"\",IF(P107=TRUE,\"Yes\",\"\"))","v":""}]
[null,"vii)",{"$f":"HYPERLINK(\"#'Schedule V(e)'!A89:J105\",\"Series of Loss Simulations or R/I Specific Worst Case Scenario\")","v":"Series of Loss Simulations or R/I Specific Worst Case Scenario"},{"$f":"IF((COUNTIF('Schedule V(e)'!D188:E189,0)+COUNTIF('Schedule V(e)'!D201:E202,0))>2,\"Loss Simulations is not Reported\",\"True\")","v":"Loss Simulations is not Reported"},null,null,null,{"$f":"IF(D108=\"Loss Simulations is not Reported\",\"Blank\",\"\")","v":"Blank"},{"$f":"IF(H108=\"Blank\",IF(P108=TRUE,\"Yes\",\"\"),\"\")","v":""}]
[null,"viii)",{"$f":"HYPERLINK(\"#'Schedule V(e)'!D121:M127\",\"Terrorism to a 2-tonne bomb\")","v":"Terrorism to a 2-tonne bomb"},{"$f":"IF(COUNTIF('Schedule V(e)'!D220:M226,0)=70,\"Terrorism is not Reported\",\"True\")","v":"Terrorism is not Reported"},null,null,null,{"$f":"IF(D109=\"Terrorism is not Reported\",\"Blank\",\"\")","v":"Blank"},{"$f":"IF(H109=\"Blank\",IF(P109=TRUE,\"Yes\",\"\"),\"\")","v":""}]
[{"$f":"A101+1","v":35},{"$f":"HYPERLINK(\"#'Schedule V(f)'!A1\",\"Schedule V(f) Schedule of Risk Management - Modified Coinsurance Arrangements\")","v":"Schedule V(f) Schedule of Risk Management - Modified Coinsurance Arrangements"}]
[{"$f":"A110+1","v":36},{"$f":"HYPERLINK(\"#'Schedule V(g)'!A1\",\"Schedule V(g) Schedule of Risk Management - Reconciliation from Form 1 to Form 1EBS\")","v":"Schedule V(g) Schedule of Risk Management - Reconciliation from Form 1 to Form 1EBS"}]
[null,"i)",{"$f":"HYPERLINK(\"#'Schedule V(g)'!A1\",\"Statutory Financial Statement Assets equals Form 1EBS\")","v":"Statutory Financial Statement Assets equals Form 1EBS"},{"$f":"IF('Schedule V(g)'!D51=0,\"Schedule is Blank\",'Schedule V(g)'!D53)","v":"Schedule is Blank"},{"$f":"'Schedule V(g)'!D55","v":0},{"$f":"IF(('Schedule V(g)'!D51)=0,0,('Schedule V(g)'!D55)/'Form 1EBS'!F96)","v":0},null,{"$f":"IF(OR(D112=\"False\",D112=\"Schedule is Blank\"),\"Blank\",\"\")","v":"Blank"},{"$f":"IF(H112=\"Blank\",IF(P112=TRUE,\"Yes\",\"\"),\"\")","v":""},null,{"$f":"IF(D112=\"False\",\"False.\",\"\")","v":""},{"$f":"IF(K112=\"\",\"\",IF(P112=TRUE,\"Yes\",\"\"))","v":""}]
[null,"ii)",{"$f":"HYPERLINK(\"#'Schedule V(g)'!A1\",\"Statutory Financial Statement Liabilities equals Form 1EBS\")","v":"Statutory Financial Statement Liabilities equals Form 1EBS"},{"$f":"IF('Schedule V(g)'!E51=0,\"Schedule is Blank\",IF('Schedule V(g)'!E55=0,'Schedule V(g)'!E53))","v":"Schedule is Blank"},{"$f":"'Schedule V(g)'!E55","v":0},{"$f":"IF(('Schedule V(g)'!E51)=0,0,('Schedule V(g)'!E55)/'Form 1EBS'!F210)","v":0},null,{"$f":"IF(OR(D113=\"False\",D113=\"Schedule is Blank\"),\"Blank\",\"\")","v":"Blank"},{"$f":"IF(H113=\"Blank\",IF(P113=TRUE,\"Yes\",\"\"),\"\")","v":""},null,{"$f":"IF(D113=\"False\",\"False.\",\"\")","v":""},{"$f":"IF(K113=\"\",\"\",IF(P113=TRUE,\"Yes\",\"\"))","v":""}]
[null,"iii)",{"$f":"HYPERLINK(\"#'Schedule V(g)'!A1\",\"Statutory Financial Statement Capital & Surplus equals Form 1EBS\")","v":"Statutory Financial Statement Capital & Surplus equals Form 1EBS"},{"$f":"IF('Schedule V(g)'!G51=0,\"Schedule is Blank\",'Schedule V(g)'!G53)","v":"Schedule is Blank"},{"$f":"'Schedule V(g)'!G55","v":0},{"$f":"IF(('Schedule V(g)'!G51)=0,0,('Schedule V(g)'!G55)/'Form 1EBS'!F214)","v":0},null,{"$f":"IF(OR(D114=\"False\",D114=\"Schedule is Blank\"),\"Blank\",\"\")","v":"Blank"},{"$f":"IF(H114=\"Blank\",IF(P114=TRUE,\"Yes\",\"\"),\"\")","v":""},null,{"$f":"IF(D114=\"False\",\"False.\",\"\")","v":""},{"$f":"IF(K114=\"\",\"\",IF(P114=TRUE,\"Yes\",\"\"))","v":""}]
[{"$f":"A111+1","v":37},{"$f":"HYPERLINK(\"#'Schedule V(k)'!A1\",\"Schedule V(k) Schedule of Risk Management -  Details of Deposit Assets and Liabilities\")","v":"Schedule V(k) Schedule of Risk Management -  Details of Deposit Assets and Liabilities"}]
[null,"i)",{"$f":"HYPERLINK(\"#'Schedule V(k)!A1\",\"Details of Deposit Assets and Liabilities\")","v":"Details of Deposit Assets and Liabilities"},{"$f":"IF('Form 1'!F84=0,\"N/A\",IF('Schedule V(k)'!F58=0,\"Schedule is Blank\",\"True\"))","v":"N/A"},null,null,null,{"$f":"IF(D116=\"Schedule is Blank\",\"Blank\",\"\")","v":""},{"$f":"IF(H116=\"Blank\",IF(P116=TRUE,\"Yes\",\"\"),\"\")","v":""}]
[{"$f":"A115+1","v":38},{"$f":"HYPERLINK(\"#'Schedule VI'!A1\",\"Schedule VI - Schedule of Assets\")","v":"Schedule VI - Schedule of Assets"}]
[null,"i)",{"$f":"HYPERLINK(\"#'Schedule VI'!A2000\",\"Assets equals Form 1SFS\")","v":"Assets equals Form 1SFS"},{"$f":"IF('Schedule VI'!F2000=0,\"Schedule is Blank\",'Schedule VI'!F2004)","v":"Schedule is Blank"},{"$f":"'Schedule VI'!F2006","v":0},{"$f":"IFERROR(('Schedule VI'!F2000-'Schedule VI'!F2002)/'Schedule VI'!F2002,0)","v":0},null,{"$f":"IF(D118=\"Schedule is Blank\",\"Blank\",\"\")","v":"Blank"},{"$f":"IF(H118=\"Blank\",IF(P118=TRUE,\"Yes\",\"\"),\"\")","v":""},null,{"$f":"IF(D118=\"False\",\"False.\",\"\")","v":""},{"$f":"IF(K118=\"\",\"\",IF(P118=TRUE,\"Yes\",\"\"))","v":""}]
[null,"ii)",{"$f":"HYPERLINK(\"#'Schedule VI'!A2029\",\"Level 1-3 Asset Reconcilation\")","v":"Level 1-3 Asset Reconcilation"},{"$f":"IF('Schedule VI'!E2025=0,\"Schedule is Blank\",'Schedule VI'!F2029)","v":"Schedule is Blank"},{"$f":"'Schedule VI'!E2029","v":0},{"$f":"IFERROR(('Schedule VI'!E2025-'Schedule VI'!E2027)/'Schedule VI'!E2027,0)","v":0},null,{"$f":"IF(D119=\"Schedule is Blank\",\"Blank\",\"\")","v":"Blank"},{"$f":"IF(H119=\"Blank\",IF(P119=TRUE,\"Yes\",\"\"),\"\")","v":""},null,{"$f":"IF(D119=\"False\",\"False.\",\"\")","v":""},{"$f":"IF(K119=\"\",\"\",IF(P119=TRUE,\"Yes\",\"\"))","v":""}]
[{"$f":"A117+1","v":39},{"$f":"HYPERLINK(\"#'Schedule VI (EBS)'!A1\",\"Schedule VI (EBS) - Schedule of Assets\")","v":"Schedule VI (EBS) - Schedule of Assets"}]
[null,"i)",{"$f":"HYPERLINK(\"#'Schedule VI (EBS)'!A2000\",\"Assets equals Form 1EBS\")","v":"Assets equals Form 1EBS"},{"$f":"IF('Schedule VI (EBS)'!F2000=0,\"Schedule is Blank\",'Schedule VI (EBS)'!F2004)","v":"Schedule is Blank"},{"$f":"'Schedule VI (EBS)'!F2006","v":0},{"$f":"IFERROR(('Schedule VI (EBS)'!F2000-'Schedule VI (EBS)'!F2002)/'Schedule VI (EBS)'!F2002,0)","v":0},null,{"$f":"IF(D121=\"Schedule is Blank\",\"Blank\",\"\")","v":"Blank"},{"$f":"IF(H121=\"Blank\",IF(P121=TRUE,\"Yes\",\"\"),\"\")","v":""},null,{"$f":"IF(D121=\"False\",\"False.\",\"\")","v":""},{"$f":"IF(K121=\"\",\"\",IF(P121=TRUE,\"Yes\",\"\"))","v":""}]
[null,"ii)",{"$f":"HYPERLINK(\"#'Schedule VIA'!A2029\",\"Level 1-3 Asset Reconcilation\")","v":"Level 1-3 Asset Reconcilation"},{"$f":"IF('Schedule VI (EBS)'!E2025=0,\"Schedule is Blank\",'Schedule VI (EBS)'!F2029)","v":"Schedule is Blank"},{"$f":"'Schedule VI (EBS)'!E2029","v":0},{"$f":"IFERROR(('Schedule VI (EBS)'!E2025-'Schedule VI (EBS)'!E2027)/'Schedule VI (EBS)'!E2027,0)","v":0},null,{"$f":"IF(D122=\"Schedule is Blank\",\"Blank\",\"\")","v":"Blank"},{"$f":"IF(H122=\"Blank\",IF(P122=TRUE,\"Yes\",\"\"),\"\")","v":""},null,{"$f":"IF(D122=\"False\",\"False.\",\"\")","v":""},{"$f":"IF(K122=\"\",\"\",IF(P122=TRUE,\"Yes\",\"\"))","v":""}]
[{"$f":"A120+1","v":40},{"$f":"HYPERLINK(\"#'Schedule VII'!A1\",\"Schedule VII - Schedule of Long-Term Insurance\")","v":"Schedule VII - Schedule of Long-Term Insurance"}]
[null,"i)",{"$f":"HYPERLINK(\"#'Schedule VII'!A1\",\"Long-Term Reserves\")","v":"Long-Term Reserves"},{"$f":"IF('Form 1'!F141=0,\"N/A\",IF('Schedule VII'!D48=0,\"Schedule is Blank\",\"True\"))","v":"N/A"},null,null,null,{"$f":"IF(D124=\"Schedule is Blank\",\"Blank\",\"\")","v":""},{"$f":"IF(H124=\"Blank\",IF(P124=TRUE,\"Yes\",\"\"),\"\")","v":""}]
[{"$f":"A123+1","v":41},{"$f":"HYPERLINK(\"#'Schedule VII (EBS)'!A1\",\"Schedule VII (EBS) - Schedule of Long-Term Insurance\")","v":"Schedule VII (EBS) - Schedule of Long-Term Insurance"}]
[null,"i)",{"$f":"HYPERLINK(\"#'Schedule VII (EBS)'!A1\",\"Long-Term Reserves (EBS)\")","v":"Long-Term Reserves (EBS)"},{"$f":"IF('Form 1EBS'!F151=0,\"N/A\",IF('Schedule VII (EBS)'!D48=0,\"Schedule is Blank\",\"True\"))","v":"N/A"},null,null,null,{"$f":"IF(D126=\"Schedule is Blank\",\"Blank\",\"\")","v":""},{"$f":"IF(H126=\"Blank\",IF(P126=TRUE,\"Yes\",\"\"),\"\")","v":""}]
[{"$f":"A125+1","v":42},{"$f":"HYPERLINK(\"#'Schedule VIII'!A1\",\"Schedule VIII - Schedule of Variable Annuity\")","v":"Schedule VIII - Schedule of Variable Annuity"}]
[null,"i)",{"$f":"HYPERLINK(\"#'Schedule VIII'!A1\",\"Long-Term Variable Annuity Reserves\")","v":"Long-Term Variable Annuity Reserves"},{"$f":"IF('Form 1'!F141=0,\"N/A\",IF('Schedule VIII'!F48=0,\"Schedule is Blank\",\"True\"))","v":"N/A"},null,null,null,{"$f":"IF(D128=\"Schedule is Blank\",\"Blank\",\"\")","v":""},{"$f":"IF(H128=\"Blank\",IF(P128=TRUE,\"Yes\",\"\"),\"\")","v":""}]
[{"$f":"A127+1","v":43},{"$f":"HYPERLINK(\"#'Schedule VIII (EBS)'!A1\",\"Schedule VIII (EBS) - Schedule of Variable Annuity\")","v":"Schedule VIII (EBS) - Schedule of Variable Annuity"}]
[null,"i)",{"$f":"HYPERLINK(\"#'Schedule VIII (EBS)'!A1\",\"Long-Term Variable Annuity Reserves (EBS)\")","v":"Long-Term Variable Annuity Reserves (EBS)"},{"$f":"IF('Form 1EBS'!F151=0,\"N/A\",IF('Schedule VIII (EBS)'!F48=0,\"Schedule is Blank\",\"True\"))","v":"N/A"},null,null,null,{"$f":"IF(D130=\"Schedule is Blank\",\"Blank\",\"\")","v":""},{"$f":"IF(H130=\"Blank\",IF(P130=TRUE,\"Yes\",\"\"),\"\")","v":""}]
[{"$f":"A129+1","v":44},{"$f":"HYPERLINK(\"#'Schedule VIII(A)'!A1\",\"Schedule VIII(A) - Schedule of Variable Annuity - Internal Capital Model\")","v":"Schedule VIII(A) - Schedule of Variable Annuity - Internal Capital Model"}]
[null,"i)",{"$f":"HYPERLINK(\"#'Schedule VIII(a)'!A1\",\"Long-Term Variable Annuity Capital Model\")","v":"Long-Term Variable Annuity Capital Model"},{"$f":"IF('Form 1'!F141=0,\"N/A\",IF('Schedule VIII(a)'!S12=0,\"Schedule is Blank\",\"True\"))","v":"N/A"},null,null,null,{"$f":"IF(D132=\"Schedule is Blank\",\"Blank\",\"\")","v":""},{"$f":"IF(H132=\"Blank\",IF(P132=TRUE,\"Yes\",\"\"),\"\")","v":""}]
[{"$f":"A131+1","v":45},{"$f":"HYPERLINK(\"#'Schedule VIIIA (EBS)'!A1\",\"Schedule VIII(A) (EBS) - Schedule of Variable Annuity - Internal Capital Model\")","v":"Schedule VIII(A) (EBS) - Schedule of Variable Annuity - Internal Capital Model"}]
[null,"i)",{"$f":"HYPERLINK(\"#'Schedule VIIIA (EBS)'!A1\",\"Long-Term Variable Annuity Capital Model (EBS)\")","v":"Long-Term Variable Annuity Capital Model (EBS)"},{"$f":"IF('Form 1EBS'!F151=0,\"N/A\",IF('Schedule VIIIA (EBS)'!S12=0,\"Schedule is Blank\",\"True\"))","v":"N/A"},null,null,null,{"$f":"IF(D134=\"Schedule is Blank\",\"Blank\",\"\")","v":""},{"$f":"IF(H134=\"Blank\",IF(P134=TRUE,\"Yes\",\"\"),\"\")","v":""}]
[{"$f":"A133+1","v":46},{"$f":"HYPERLINK(\"#'Schedule XVIII'!A1\",\"Schedule XVIII Particulars of Reinsurance Balances\")","v":"Schedule XVIII Particulars of Reinsurance Balances"}]
[null,"i)",{"$f":"HYPERLINK(\"#'Schedule XVIII'!A1\",\"R/I Balances as reported on Schedule XVIII & II equals Form 1\")","v":"R/I Balances as reported on Schedule XVIII & II equals Form 1"},{"$f":"IF('Schedule XVIII'!I69=0,\"N/A\",IF('Schedule XVIII'!I53=0,\"Schedule is Blank\",'Schedule XVIII'!I75))","v":"N/A"},{"$f":"'Schedule XVIII'!I77","v":0},{"$f":"IF('Schedule XVIII'!I69=0,0,('Schedule XVIII'!I77)/'Schedule XVIII'!I69)","v":0},null,{"$f":"IF(D136=\"Schedule is Blank\",\"Blank\",\"\")","v":""},{"$f":"IF(H136=\"Blank\",IF(P136=TRUE,\"Yes\",\"\"),\"\")","v":""},null,{"$f":"IF(D136=\"False\",\"False.\",\"\")","v":""},{"$f":"IF(K136=\"\",\"\",IF(P136=TRUE,\"Yes\",\"\"))","v":""}]
[{"$f":"A135+1","v":47},{"$f":"HYPERLINK(\"#'Schedule XVIII (EBS)'!A1\",\"Schedule XVIII (EBS) Particulars of Reinsurance Balances\")","v":"Schedule XVIII (EBS) Particulars of Reinsurance Balances"}]
[null,"i)",{"$f":"HYPERLINK(\"#'Schedule XVIII (EBS)'!A1\",\"R/I Balances as reported on Schedule XVIII (EBS) & II equals Form 1EBS\")","v":"R/I Balances as reported on Schedule XVIII (EBS) & II equals Form 1EBS"},{"$f":"IF('Schedule XVIII (EBS)'!I69=0,\"N/A\",IF('Schedule XVIII (EBS)'!I53=0,\"Schedule is Blank\",'Schedule XVIII (EBS)'!I75))","v":"N/A"},{"$f":"'Schedule XVIII (EBS)'!I77","v":0},{"$f":"IF('Schedule XVIII (EBS)'!I69=0,0,('Schedule XVIII (EBS)'!I77)/'Schedule XVIII (EBS)'!I69)","v":0},null,{"$f":"IF(D138=\"Schedule is Blank\",\"Blank\",\"\")","v":""},{"$f":"IF(H138=\"Blank\",IF(P138=TRUE,\"Yes\",\"\"),\"\")","v":""},null,{"$f":"IF(D138=\"False\",\"False.\",\"\")","v":""},{"$f":"IF(K138=\"\",\"\",IF(P138=TRUE,\"Yes\",\"\"))","v":""}]
[{"$f":"A137+1","v":48},{"$f":"HYPERLINK(\"#'Schedule XIX'!A1\",\"Schedule XIX Particulars of Cash and Cash Equivalents\")","v":"Schedule XIX Particulars of Cash and Cash Equivalents"}]
[null,"i)",{"$f":"HYPERLINK(\"#'Schedule XIX'!A1\",\"Particulars of Cash and Cash Equivalents equals Form 1EBS\")","v":"Particulars of Cash and Cash Equivalents equals Form 1EBS"},{"$f":"IF('Schedule XIX'!G54=0,\"Schedule is Blank\",'Schedule XIX'!G74)","v":"Schedule is Blank"},{"$f":"'Schedule XIX'!G76","v":0},{"$f":"IF('Schedule XIX'!G72=0,0,('Schedule XIX'!G76)/'Schedule XIX'!G72)","v":0},null,{"$f":"IF(D140=\"Schedule is Blank\",\"Blank\",\"\")","v":"Blank"},{"$f":"IF(H140=\"Blank\",IF(P140=TRUE,\"Yes\",\"\"),\"\")","v":""},null,{"$f":"IF(D140=\"False\",\"False.\",\"\")","v":""},{"$f":"IF(K140=\"\",\"\",IF(P140=TRUE,\"Yes\",\"\"))","v":""}]
[{"$f":"A139+1","v":49},{"$f":"HYPERLINK(\"#'Schedule XIXA'!A1\",\"Schedule XIXA Particulars of Cash and Cash Equivalents\")","v":"Schedule XIXA Particulars of Cash and Cash Equivalents"}]
[null,"i)",{"$f":"HYPERLINK(\"#'Schedule XIXA'!A1\",\"Particulars of Cash and Cash Equivalents equals Form 1EBS\")","v":"Particulars of Cash and Cash Equivalents equals Form 1EBS"},{"$f":"IF('Schedule XIXA'!G54=0,\"Schedule is Blank\",'Schedule XIXA'!G74)","v":"Schedule is Blank"},{"$f":"'Schedule XIXA'!G76","v":0},{"$f":"IF('Schedule XIXA'!G72=0,0,('Schedule XIXA'!G76)/'Schedule XIXA'!G72)","v":0},null,{"$f":"IF(D142=\"Schedule is Blank\",\"Blank\",\"\")","v":"Blank"},{"$f":"IF(H142=\"Blank\",IF(P142=TRUE,\"Yes\",\"\"),\"\")","v":""},null,{"$f":"IF(D142=\"False\",\"False.\",\"\")","v":""},{"$f":"IF(K142=\"\",\"\",IF(P142=TRUE,\"Yes\",\"\"))","v":""}]
[{"$f":"A141+1","v":50},{"$f":"HYPERLINK(\"#'Schedule XX'!A1\",\"Schedule XX Schedule of Concentration Risk\")","v":"Schedule XX Schedule of Concentration Risk"}]
[null,"i)",{"$f":"HYPERLINK(\"#'Schedule XX'!A1\",\"Currency Test of Minimum of 95% Has Been Met\")","v":"Currency Test of Minimum of 95% Has Been Met"},{"$f":"IF(+'Schedule XX'!E24=0,\"Reconciliation is Blank\",'Schedule XX'!E30)","v":"Reconciliation is Blank"},{"$f":"+'Schedule XX'!E27-'Schedule XX'!E24","v":0},{"$f":"IF(+'Schedule XX'!E24=0,0,('Schedule XX'!E27-'Schedule XX'!E24)/+'Schedule XX'!E24)","v":0},null,{"$f":"IF(D144=\"Reconciliation is Blank\",\"Blank\",\"\")","v":"Blank"},{"$f":"IF(H144=\"Blank\",IF(P144=TRUE,\"Yes\",\"\"),\"\")","v":""},null,{"$f":"IF(D144=\"False\",\"False.\",\"\")","v":""},{"$f":"IF(K144=\"\",\"\",IF(P144=TRUE,\"Yes\",\"\"))","v":""}]
[null,"ii)",{"$f":"HYPERLINK(\"#'Schedule XX'!T36\",\"Liabilities and ECR Charge has been completed\")","v":"Liabilities and ECR Charge has been completed"},{"$f":"IF(COUNTIF('Schedule XX'!E34:G36,0)>0,\"Schedule is not Complete\",\"True\")","v":"Schedule is not Complete"},null,null,null,{"$f":"IF(D145=\"Schedule is not complete\",\"Blank\",\"\")","v":"Blank"},{"$f":"IF(H145=\"Blank\",IF(P145=TRUE,\"Yes\",\"\"),\"\")","v":""}]
[{"$f":"A143+1","v":51},{"$f":"HYPERLINK(\"#'Schedule XXA'!A1\",\"Schedule XXA Schedule of Currency Risk\")","v":"Schedule XXA Schedule of Currency Risk"}]
[null,"i)",{"$f":"HYPERLINK(\"#'Schedule XXA'!A1\",\"Currency Test of Minimum of 95% Has Been Met\")","v":"Currency Test of Minimum of 95% Has Been Met"},{"$f":"IF('Schedule XXA'!D33=0,\"Schedule is Blank\",'Schedule XXA'!D39)","v":"Schedule is Blank"},{"$f":"'Schedule XXA'!D36-'Schedule XXA'!D33-'Schedule XXA'!F33-'Schedule XXA'!H33-'Schedule XXA'!J33-'Schedule XXA'!L33","v":0},{"$f":"IF('Schedule XXA'!D33=0,0,('Schedule XXA'!D36-'Schedule XXA'!D33-'Schedule XXA'!F33-'Schedule XXA'!H33-'Schedule XXA'!J33-'Schedule XXA'!L33)/'Schedule XXA'!D36)","v":0},null,{"$f":"IF(D147=\"Schedule is Blank\",\"Blank\",\"\")","v":"Blank"},{"$f":"IF(H147=\"Blank\",IF(P147=TRUE,\"Yes\",\"\"),\"\")","v":""},null,{"$f":"IF(D147=\"False\",\"False.\",\"\")","v":""},{"$f":"IF(K147=\"\",\"\",IF(P147=TRUE,\"Yes\",\"\"))","v":""}]
[null,"ii)",{"$f":"HYPERLINK(\"#'Schedule XXA'!P45\",\"Liabilities and ECR Charge has been completed\")","v":"Liabilities and ECR Charge has been completed"},{"$f":"IF(COUNTIF('Schedule XXA'!D43:H45,0)>0,\"Schedule is not Complete\",\"True\")","v":"Schedule is not Complete"},null,null,null,{"$f":"IF(D148=\"Schedule is not complete\",\"Blank\",\"\")","v":"Blank"},{"$f":"IF(H148=\"Blank\",IF(P148=TRUE,\"Yes\",\"\"),\"\")","v":""}]
[{"$f":"A146+1","v":52},{"$f":"HYPERLINK(\"#'Schedule XXI'!A1\",\"Schedule XX Schedule of Concentration Risk\")","v":"Schedule XX Schedule of Concentration Risk"}]
[null,"i)",{"$f":"HYPERLINK(\"#'Schedule XXI'!A1\",\"Particulars of Concentration Risk\")","v":"Particulars of Concentration Risk"},{"$f":"IF('Schedule XXI'!H58=0,\"Schedule is Blank\",\"True\")","v":"Schedule is Blank"},null,null,null,{"$f":"IF(D150=\"Schedule is Blank\",\"Blank\",\"\")","v":"Blank"},{"$f":"IF(H150=\"Blank\",IF(P150=TRUE,\"Yes\",\"\"),\"\")","v":""},null,{"$f":"IF(D150=\"False\",\"False.\",\"\")","v":""},{"$f":"IF(K150=\"\",\"\",IF(P150=TRUE,\"Yes\",\"\"))","v":""}]
[null,"ii)",{"$f":"HYPERLINK(\"#'Schedule XXI'!A1\",\"Particulars of Concentration Risk - Bond Type and BSCR Rating Complete\")","v":"Particulars of Concentration Risk - Bond Type and BSCR Rating Complete"},{"$f":"IF('Schedule XXI'!H58=0,\"Schedule is Blank\",IF(ROUND('Schedule XXI'!H58-'Concentration Risk'!D111,0)=0,\"True\",\"Schedule is not Complete\"))","v":"Schedule is Blank"},{"$f":"'Schedule XXI'!H58-'Concentration Risk'!D111","v":0},{"$f":"IF('Schedule XXI'!H58=0,0,('Schedule XXI'!H58-'Concentration Risk'!D111)/'Schedule XXI'!H58)","v":0},null,{"$f":"IF(D151=\"Schedule is Blank\",\"Blank\",\"\")","v":"Blank"},{"$f":"IF(H151=\"Blank\",IF(P151=TRUE,\"Yes\",\"\"),\"\")","v":""}]
[{"$f":"A149+1","v":53},{"$f":"HYPERLINK(\"#'Schedule XXIA'!A1\",\"Schedule XXIA Schedule of Concentration Risk\")","v":"Schedule XXIA Schedule of Concentration Risk"}]
[null,"i)",{"$f":"HYPERLINK(\"#'Schedule XXIA'!A1\",\"Particulars of Concentration Risk\")","v":"Particulars of Concentration Risk"},{"$f":"IF('Schedule XXIA'!H58=0,\"Schedule is Blank\",\"True\")","v":"Schedule is Blank"},null,null,null,{"$f":"IF(D153=\"Schedule is Blank\",\"Blank\",\"\")","v":"Blank"},{"$f":"IF(H153=\"Blank\",IF(P153=TRUE,\"Yes\",\"\"),\"\")","v":""},null,{"$f":"IF(D153=\"False\",\"False.\",\"\")","v":""},{"$f":"IF(K153=\"\",\"\",IF(P153=TRUE,\"Yes\",\"\"))","v":""}]
[null,"ii)",{"$f":"HYPERLINK(\"#'Schedule XXIA'!A1\",\"Particulars of Concentration Risk - Bond Type and BSCR Rating Complete\")","v":"Particulars of Concentration Risk - Bond Type and BSCR Rating Complete"},{"$f":"IF('Schedule XXIA'!H58=0,\"Schedule is Blank\",IF(ROUND('Schedule XXIA'!H58-'Concentration Risk (Revised)'!D123,0)=0,\"True\",\"Schedule is not Complete\"))","v":"Schedule is Blank"},{"$f":"'Schedule XXIA'!H58-'Concentration Risk (Revised)'!D123","v":0},{"$f":"IF('Schedule XXIA'!H58=0,0,('Schedule XXIA'!H58-'Concentration Risk (Revised)'!D123)/'Schedule XXIA'!H58)","v":0},null,{"$f":"IF(D154=\"Schedule is Blank\",\"Blank\",\"\")","v":"Blank"},{"$f":"IF(H154=\"Blank\",IF(P154=TRUE,\"Yes\",\"\"),\"\")","v":""}]
[]
[null,"GSSA Schedules"]
[{"$f":"A152+1","v":54},{"$f":"HYPERLINK(\"#'Schedule IX(a)'!A1\",\"Schedule IX(a) - GSSA Capital Summary \")","v":"Schedule IX(a) - GSSA Capital Summary "}]
[null,"i)",{"$f":"HYPERLINK(\"#'Schedule IX(a)'!A1\",\"GSSA Capital Summary\")","v":"GSSA Capital Summary"},{"$f":"IF('Schedule IX(a)'!E27=0,\"GSSA Capital Summary is Blank\",\"True\")","v":"GSSA Capital Summary is Blank"},null,null,null,{"$f":"IF(D158=\"GSSA Capital Summary is Blank\",\"Blank\",\"\")","v":"Blank"},{"$f":"IF(H158=\"Blank\",IF(P158=TRUE,\"Yes\",\"\"),\"\")","v":""}]
[null,"ii)",{"$f":"HYPERLINK(\"#'Schedule IX(a)'!B41:C47\",\"Insurer's Reason for Maintaining GSSA Capital Amount\")","v":"Insurer's Reason for Maintaining GSSA Capital Amount"},{"$f":"IF(COUNTIF('Schedule IX(a)'!B40:B46,\"No\")=7,\"GSSA Section is Blank\",\"True\")","v":"True"},null,null,null,{"$f":"IF(D159=\"GSSA Section is Blank\",\"Blank\",\"\")","v":""},{"$f":"IF(H159=\"Blank\",IF(P159=TRUE,\"Yes\",\"\"),\"\")","v":""}]
[null,"iii)",{"$f":"HYPERLINK(\"#'Schedule IX(a)'!B51:C57\",\"Insurer's Method of Aggregating GSSA Capital\")","v":"Insurer's Method of Aggregating GSSA Capital"},{"$f":"IF(COUNTIF('Schedule IX(a)'!B50:B56,\"No\")=7,\"GSSA Section is Blank\",\"True\")","v":"True"},null,null,null,{"$f":"IF(D160=\"GSSA Section is Blank\",\"Blank\",\"\")","v":""},{"$f":"IF(H160=\"Blank\",IF(P160=TRUE,\"Yes\",\"\"),\"\")","v":""}]
[null,"iv)",{"$f":"HYPERLINK(\"#'Schedule IX(a)'!B61:C69\",\"Insurer's Contingency Plan\")","v":"Insurer's Contingency Plan"},{"$f":"IF(COUNTIF('Schedule IX(a)'!B60:B68,\"No\")=8,\"GSSA Section is Blank\",\"True\")","v":"True"},null,null,null,{"$f":"IF(D161=\"GSSA Section is Blank\",\"Blank\",\"\")","v":""},{"$f":"IF(H161=\"Blank\",IF(P161=TRUE,\"Yes\",\"\"),\"\")","v":""}]
[{"$f":"A157+1","v":55},{"$f":"HYPERLINK(\"#'Schedule IX(b)'!A1\",\"Schedule IX(b) - GSSA General Questions\")","v":"Schedule IX(b) - GSSA General Questions"}]
[null,"i)",{"$f":"HYPERLINK(\"#'Schedule IX(b)'!B8:F28\",\"GSSA Integration\")","v":"GSSA Integration"},{"$f":"IF('Schedule IX(b)'!F7=\"No\",\"GSSA Section is Blank\",\"True\")","v":"True"},null,null,null,{"$f":"IF(D163=\"GSSA Section is Blank\",\"Blank\",\"\")","v":""},{"$f":"IF(H163=\"Blank\",IF(P163=TRUE,\"Yes\",\"\"),\"\")","v":""}]
[null,"ii)",{"$f":"HYPERLINK(\"#'Schedule IX(b)'!B30:F40\",\"GSSA General Questions\")","v":"GSSA General Questions"},{"$f":"IF(COUNTIF('Schedule IX(b)'!F29:F35,\"No\")=4,\"GSSA Section is Blank\",\"True\")","v":"True"},null,null,null,{"$f":"IF(D164=\"GSSA Section is Blank\",\"Blank\",\"\")","v":""},{"$f":"IF(H164=\"Blank\",IF(P164=TRUE,\"Yes\",\"\"),\"\")","v":""}]
[{"$f":"A162+1","v":56},{"$f":"HYPERLINK(\"#'Schedule IX(c)'!A1\",\"Schedule IX(c) - GSSA Assessment of Material Risks\")","v":"Schedule IX(c) - GSSA Assessment of Material Risks"}]
[]
[null,"Catastrophe Risk Schedules"]
[{"$f":"A165+1","v":57},{"$f":"HYPERLINK(\"#'Schedule X(a)'!A1\",\"Schedule X(a) Catastrophe Risk Return - EP Curve Total\")","v":"Schedule X(a) Catastrophe Risk Return - EP Curve Total"}]
[null,"i)",{"$f":"HYPERLINK(\"#'Schedule X(a)'!D10:H14\",\"Total Exceedance Probability Details\")","v":"Total Exceedance Probability Details"},{"$f":"IF(COUNTIF('Schedule X(a)'!E9:H13,0)>0,\"Section is Blank/Field Omitted\",\"True\")","v":"Section is Blank/Field Omitted"},null,null,null,{"$f":"IF(D169=\"Section is Blank/Field Omitted\",\"Blank\",\"\")","v":"Blank"},{"$f":"IF(H169=\"Blank\",IF(P169=TRUE,\"Yes\",\"\"),\"\")","v":""}]
[null,null,null,"Gross Occur","Gross Agg","Net Occ.",null,null,null,null,null,null,null,"Net Agg."]
[null,null,"50 Loss Return Period Reported in Millions",{"$f":"IF(SUM('Schedule X(a)'!$E$9:$H$13)=0,0,('Schedule X(a)'!E9*1000)/'Form 1'!$F$185)","v":0},{"$f":"IF(SUM('Schedule X(a)'!$E$9:$H$13)=0,0,('Schedule X(a)'!F9*1000)/'Form 1'!$F$185)","v":0},{"$f":"IF(SUM('Schedule X(a)'!$E$9:$H$13)=0,0,('Schedule X(a)'!G9*1000)/'Form 1'!$F$185)","v":0},null,null,null,null,null,null,null,{"$f":"IF(SUM('Schedule X(a)'!$E$9:$H$13)=0,0,('Schedule X(a)'!H9*1000)/'Form 1'!$F$185)","v":0}]
[null,null,"100 Loss Return Period Reported in Millions",{"$f":"IF(SUM('Schedule X(a)'!$E$9:$H$13)=0,0,('Schedule X(a)'!E10*1000)/'Form 1'!$F$185)","v":0},{"$f":"IF(SUM('Schedule X(a)'!$E$9:$H$13)=0,0,('Schedule X(a)'!F10*1000)/'Form 1'!$F$185)","v":0},{"$f":"IF(SUM('Schedule X(a)'!$E$9:$H$13)=0,0,('Schedule X(a)'!G10*1000)/'Form 1'!$F$185)","v":0},null,null,null,null,null,null,null,{"$f":"IF(SUM('Schedule X(a)'!$E$9:$H$13)=0,0,('Schedule X(a)'!H10*1000)/'Form 1'!$F$185)","v":0}]
[null,null,"250 Loss Return Period Reported in Millions",{"$f":"IF(SUM('Schedule X(a)'!$E$9:$H$13)=0,0,('Schedule X(a)'!E11*1000)/'Form 1'!$F$185)","v":0},{"$f":"IF(SUM('Schedule X(a)'!$E$9:$H$13)=0,0,('Schedule X(a)'!F11*1000)/'Form 1'!$F$185)","v":0},{"$f":"IF(SUM('Schedule X(a)'!$E$9:$H$13)=0,0,('Schedule X(a)'!G11*1000)/'Form 1'!$F$185)","v":0},null,null,null,null,null,null,null,{"$f":"IF(SUM('Schedule X(a)'!$E$9:$H$13)=0,0,('Schedule X(a)'!H11*1000)/'Form 1'!$F$185)","v":0}]
[null,null,"500 Loss Return Period Reported in Millions",{"$f":"IF(SUM('Schedule X(a)'!$E$9:$H$13)=0,0,('Schedule X(a)'!E12*1000)/'Form 1'!$F$185)","v":0},{"$f":"IF(SUM('Schedule X(a)'!$E$9:$H$13)=0,0,('Schedule X(a)'!F12*1000)/'Form 1'!$F$185)","v":0},{"$f":"IF(SUM('Schedule X(a)'!$E$9:$H$13)=0,0,('Schedule X(a)'!G12*1000)/'Form 1'!$F$185)","v":0},null,null,null,null,null,null,null,{"$f":"IF(SUM('Schedule X(a)'!$E$9:$H$13)=0,0,('Schedule X(a)'!H12*1000)/'Form 1'!$F$185)","v":0}]
[null,null,"1,000 Loss Return Period Reported in Millions",{"$f":"IF(SUM('Schedule X(a)'!$E$9:$H$13)=0,0,('Schedule X(a)'!E13*1000)/'Form 1'!$F$185)","v":0},{"$f":"IF(SUM('Schedule X(a)'!$E$9:$H$13)=0,0,('Schedule X(a)'!F13*1000)/'Form 1'!$F$185)","v":0},{"$f":"IF(SUM('Schedule X(a)'!$E$9:$H$13)=0,0,('Schedule X(a)'!G13*1000)/'Form 1'!$F$185)","v":0},null,null,null,null,null,null,null,{"$f":"IF(SUM('Schedule X(a)'!$E$9:$H$13)=0,0,('Schedule X(a)'!H13*1000)/'Form 1'!$F$185)","v":0}]
[null,null,"If ratios are highlighted in yellow, confirm if the figures are correctly reported in millions"]
[null,"ii)",{"$f":"HYPERLINK(\"#'Schedule X(a)'!D20:d26\",\"Gross Premium Modelled to Gross Catastrophe Limits\")","v":"Gross Premium Modelled to Gross Catastrophe Limits"},{"$f":"IF(AND((SUM('Schedule X(a)'!E21:E22))=0,(SUM('Schedule X(a)'!E24:E27))=0),\"Section is Blank/Field Omitted\",\"True\")","v":"Section is Blank/Field Omitted"},null,null,null,{"$f":"IF(D177=\"Section is Blank/Field Omitted\",\"Blank\",\"\")","v":"Blank"},{"$f":"IF(H177=\"Blank\",IF(P177=TRUE,\"Yes\",\"\"),\"\")","v":""}]
[null,"iii)",{"$f":"HYPERLINK(\"#'Schedule X(a)'!J20:J26\",\"Net Premium Modelled to Net Catastrophe Limits\")","v":"Net Premium Modelled to Net Catastrophe Limits"},{"$f":"IF(AND((SUM('Schedule X(a)'!$J$22:$J$23))=0,(SUM('Schedule X(a)'!$J$25:$J$28))=0),\"Section is Blank/Field Omitted\",\"True\")","v":"Section is Blank/Field Omitted"},null,null,null,{"$f":"IF(D178=\"Section is Blank/Field Omitted\",\"Blank\",\"\")","v":"Blank"},{"$f":"IF(H178=\"Blank\",IF(P178=TRUE,\"Yes\",\"\"),\"\")","v":""}]
[{"$f":"A168+1","v":58},{"$f":"HYPERLINK(\"#'Schedule X(b)'!A1\",\"Schedule X(b) Catastrophe Risk Return - EP Curve Insurance\")","v":"Schedule X(b) Catastrophe Risk Return - EP Curve Insurance"}]
[null,"i)",{"$f":"HYPERLINK(\"#'Schedule X(b)'!D12:H16\",\"Insurance Exceedance Probability Details\")","v":"Insurance Exceedance Probability Details"},{"$f":"IF(COUNTIF('Schedule X(b)'!E11:H15,0)=20,\"Section is Blank/Field Omitted\",\"True\")","v":"Section is Blank/Field Omitted"},null,null,null,{"$f":"IF(D180=\"Section is Blank/Field Omitted\",\"Blank\",\"\")","v":"Blank"},{"$f":"IF(H180=\"Blank\",IF(P180=TRUE,\"Yes\",\"\"),\"\")","v":""}]
[{"$f":"A179+1","v":59},{"$f":"HYPERLINK(\"#'Schedule X(c)'!A1\",\"Schedule X(c) Catastrophe Risk Return - EP Curve Region Perils\")","v":"Schedule X(c) Catastrophe Risk Return - EP Curve Region Perils"}]
[null,"i)",{"$f":"HYPERLINK(\"#'Schedule X(c)'!A1\",\"Region Peril Exceedance Probability Details\")","v":"Region Peril Exceedance Probability Details"},{"$f":"IF((COUNTIF('Schedule X(c)'!D16:G20,0)+COUNTIF('Schedule X(c)'!D38:G42,0)+COUNTIF('Schedule X(c)'!D60:G64,0)+COUNTIF('Schedule X(c)'!D82:G86,0)+COUNTIF('Schedule X(c)'!D104:G108,0))>0,\"Section is Blank/Field Omitted\",\"True\")","v":"Section is Blank/Field Omitted"},null,null,null,{"$f":"IF(D182=\"Section is Blank/Field Omitted\",\"Blank\",\"\")","v":"Blank"},{"$f":"IF(H182=\"Blank\",IF(P182=TRUE,\"Yes\",\"\"),\"\")","v":""}]
[{"$f":"A181+1","v":60},{"$f":"HYPERLINK(\"#'Schedule X(d)'!A1\",\"Schedule X(d) Catastrophe Risk Return - Region Perils Exposure to Zones and Lines of Business\")","v":"Schedule X(d) Catastrophe Risk Return - Region Perils Exposure to Zones and Lines of Business"}]
[null,"i)",{"$f":"HYPERLINK(\"#'Schedule X(d)'!B10:H22\",\"Region Peril Zone Exposures\")","v":"Region Peril Zone Exposures"},{"$f":"IF((COUNTIF('Schedule X(d)'!C9:H21,0))=78,\"Section is Blank/Field Omitted\",\"True\")","v":"True"},null,null,null,{"$f":"IF(D184=\"Section is Blank/Field Omitted\",\"Blank\",\"\")","v":""},{"$f":"IF(H184=\"Blank\",IF(P184=TRUE,\"Yes\",\"\"),\"\")","v":""}]
[null,"ii)",{"$f":"HYPERLINK(\"#'Schedule X(d)'!B25:H49\",\"Region Peril Lines of Business Exposures\")","v":"Region Peril Lines of Business Exposures"},{"$f":"IF((COUNTIF('Schedule X(d)'!C25:H48,0))=144,\"Section is Blank/Field Omitted\",\"True\")","v":"True"},null,null,null,{"$f":"IF(D185=\"Section is Blank/Field Omitted\",\"Blank\",\"\")","v":""},{"$f":"IF(H185=\"Blank\",IF(P185=TRUE,\"Yes\",\"\"),\"\")","v":""}]
[{"$f":"A183+1","v":61},{"$f":"HYPERLINK(\"#'Schedule X(e)'!A1\",\"Schedule X(e) Catastrophe Risk Return - Accumulations Overview\")","v":"Schedule X(e) Catastrophe Risk Return - Accumulations Overview"}]
[null,"i)",{"$f":"HYPERLINK(\"#'Schedule X(e)'!A1\",\"Accumulations Overview Questions\")","v":"Accumulations Overview Questions"},{"$f":"IF((COUNTIF('Schedule X(e)'!C6,0)+COUNTIF('Schedule X(e)'!L8,0)+COUNTIF('Schedule X(e)'!C13,0)+COUNTIF('Schedule X(e)'!C16,0)+COUNTIF('Schedule X(e)'!C19,0)+COUNTIF('Schedule X(e)'!C22,0)+COUNTIF('Schedule X(e)'!C29,0)+COUNTIF('Schedule X(e)'!C32,0)+COUNTIF('Schedule X(e)'!C35,0)+COUNTIF('Schedule X(e)'!C43,0))>0,\"Section is Blank/Field Omitted\",\"True\")","v":"True"},null,null,null,{"$f":"IF(D187=\"Section is Blank/Field Omitted\",\"Blank\",\"\")","v":""},{"$f":"IF(H187=\"Blank\",IF(P187=TRUE,\"Yes\",\"\"),\"\")","v":""}]
[{"$f":"A186+1","v":62},{"$f":"HYPERLINK(\"#'Schedule X(f)'!A1\",\"Schedule X(f) Catastrophe Risk Return - Data Analysis\")","v":"Schedule X(f) Catastrophe Risk Return - Data Analysis"}]
[null,"i)",{"$f":"HYPERLINK(\"#'Schedule X(f)'!L13\",\"X(f) Total Gross Limits to X(a) Gross Limits Exposed\")","v":"X(f) Total Gross Limits to X(a) Gross Limits Exposed"},{"$f":"IF('Schedule X(f)'!L12=0,\"Schedule is Blank\",IF(ROUND(('Schedule X(f)'!L12-SUM('Schedule X(a)'!E23:E26)),0)=0,\"True\",\"False\"))","v":"Schedule is Blank"},{"$f":"('Schedule X(f)'!L12-SUM('Schedule X(a)'!E23:E26))","v":0},{"$f":"IF(SUM('Schedule X(a)'!E23:E26)=0,0,('Schedule X(f)'!L12-SUM('Schedule X(a)'!E23:E26))/SUM('Schedule X(a)'!E23:E26))","v":0},null,{"$f":"IF(D189=\"Schedule is Blank\",\"Blank\",\"\")","v":"Blank"},{"$f":"IF(H189=\"Blank\",IF(P189=TRUE,\"Yes\",\"\"),\"\")","v":""}]
[null,"ii)",{"$f":"HYPERLINK(\"#'Schedule X(f)'!M13\",\"X(f) Total Net Limits to X(a) Net Limits Exposed\")","v":"X(f) Total Net Limits to X(a) Net Limits Exposed"},{"$f":"IF('Schedule X(f)'!M12=0,\"Schedule is Blank\",IF(ROUND(('Schedule X(f)'!M12-SUM('Schedule X(a)'!J23:J26)),0)=0,\"True\",\"False\"))","v":"Schedule is Blank"},{"$f":"('Schedule X(f)'!M12-SUM('Schedule X(a)'!J23:J26))","v":0},{"$f":"IF(SUM('Schedule X(a)'!J23:J26)=0,0,('Schedule X(f)'!M12-SUM('Schedule X(a)'!J23:J26))/SUM('Schedule X(a)'!J23:J26))","v":0},null,{"$f":"IF(D190=\"Schedule is Blank\",\"Blank\",\"\")","v":"Blank"},""]
[null,"iii)",{"$f":"HYPERLINK(\"#'Schedule X(f)'!C6:M13\",\"All Contracts Written\")","v":"All Contracts Written"},{"$f":"IF(OR(ROUND('Schedule X(f)'!K12,0)=0,ROUND('Schedule X(f)'!L12,0)=0,'Schedule X(f)'!M12=0),\"Schedule is Blank\",\"True\")","v":"Schedule is Blank"},null,null,null,{"$f":"IF(D191=\"Schedule is Blank\",\"Blank\",\"\")","v":"Blank"},""]
[null,"iv)",{"$f":"HYPERLINK(\"#'Schedule X(f)'!C15:M22\",\"Contracts that May Be Modeled to Contracts that are Modelable\")","v":"Contracts that May Be Modeled to Contracts that are Modelable"},{"$f":"IF('Schedule X(f)'!K10=0,\"True\",IF('Schedule X(f)'!K21=0,\"Section is Blank\",IF(ROUND('Schedule X(f)'!K21,0)=ROUND('Schedule X(f)'!K10,0),\"True\",\"May Be Modeled not Reconciled\")))","v":"True"},{"$f":"'Schedule X(f)'!K21-'Schedule X(f)'!K10","v":0},{"$f":"IF('Schedule X(f)'!K10=0,0,('Schedule X(f)'!K21-'Schedule X(f)'!K10)/'Schedule X(f)'!K10)","v":0},null,{"$f":"IF(D192=\"Section is Blank\",\"Blank\",\"\")","v":""},""]
[null,"v)",{"$f":"HYPERLINK(\"#'Schedule X(f)'!C24:M34\",\"Contracts Modeled to Contracts that May Be Modeled\")","v":"Contracts Modeled to Contracts that May Be Modeled"},{"$f":"IF('Schedule X(f)'!K19=0,\"True\",IF('Schedule X(f)'!K33=0,\"Section is Blank\",IF(ROUND('Schedule X(f)'!K33,0)=ROUND('Schedule X(f)'!K19,0),\"True\",\"Modeled not Reconciled\")))","v":"True"},{"$f":"'Schedule X(f)'!K33-'Schedule X(f)'!K19","v":0},{"$f":"IF('Schedule X(f)'!K33=0,0,('Schedule X(f)'!K33-'Schedule X(f)'!K19)/'Schedule X(f)'!K19)","v":0},null,{"$f":"IF(D193=\"Section is Blank\",\"Blank\",\"\")","v":""},""]
[null,"vi)",{"$f":"HYPERLINK(\"#'Schedule X(f)'!C39:M47\",\"Contracts Not Modeled to Contracts that May Be Modeled\")","v":"Contracts Not Modeled to Contracts that May Be Modeled"},{"$f":"IF('Schedule X(f)'!K20=0,\"True\",IF('Schedule X(f)'!K46=0,\"Section is Blank\",IF(ROUND('Schedule X(f)'!K46,0)=ROUND('Schedule X(f)'!K20,0),\"True\",\"Not Modeled not Reconciled\")))","v":"True"},{"$f":"'Schedule X(f)'!K46-'Schedule X(f)'!K20","v":0},{"$f":"IF('Schedule X(f)'!K46=0,0,('Schedule X(f)'!K46-'Schedule X(f)'!K20)/'Schedule X(f)'!K20)","v":0},null,{"$f":"IF(D194=\"Section is Blank\",\"Blank\",\"\")","v":""},""]
[null,"vii)",{"$f":"HYPERLINK(\"#'Schedule X(f)'!C56:M65\",\"Contracts Not Able to Model to Contracts that are Not Modelable\")","v":"Contracts Not Able to Model to Contracts that are Not Modelable"},{"$f":"IF('Schedule X(f)'!K11=0,\"True\",IF('Schedule X(f)'!K64=0,\"Section is Blank\",IF(ROUND('Schedule X(f)'!K64,0)=ROUND('Schedule X(f)'!K11,0),\"True\",\"Unable to Model not Reconciled\")))","v":"True"},{"$f":"'Schedule X(f)'!K64-'Schedule X(f)'!K11","v":0},{"$f":"IF('Schedule X(f)'!K64=0,0,('Schedule X(f)'!K64-'Schedule X(f)'!K11)/'Schedule X(f)'!K11)","v":0},null,{"$f":"IF(D195=\"Section is Blank\",\"Blank\",\"\")","v":""},""]
[{"$f":"A188+1","v":63},{"$f":"HYPERLINK(\"#'Schedule X(g)'!A1\",\"Schedule X(g) Catastrophe Risk Return - Reinsurance Disclosures\")","v":"Schedule X(g) Catastrophe Risk Return - Reinsurance Disclosures"}]
[null,"i)",{"$f":"HYPERLINK(\"#'Schedule X(g)'!A1\",\"Catastrophe Risk Reinsurance Disclosures\")","v":"Catastrophe Risk Reinsurance Disclosures"},{"$f":"IF((COUNTIF('Schedule X(g)'!D10:I18,0))=54,\"Section is Blank/Field Omitted\",\"True\")","v":"Section is Blank/Field Omitted"},null,null,null,{"$f":"IF(D197=\"Section is Blank/Field Omitted\",\"Blank\",\"\")","v":"Blank"},{"$f":"IF(H197=\"Blank\",IF(P197=TRUE,\"Yes\",\"\"),\"\")","v":""}]
[{"$f":"A196+1","v":64},{"$f":"HYPERLINK(\"#'Schedule X(h)'!A1\",\"Schedule X(h) Catastrophe Risk Return - Insurance Terrorism Exposure\")","v":"Schedule X(h) Catastrophe Risk Return - Insurance Terrorism Exposure"}]
[null,"i)",{"$f":"HYPERLINK(\"#'Schedule X(h)'!A6:K19\",\"Insurance Terrorism Exposure to Conventional Terrorism\")","v":"Insurance Terrorism Exposure to Conventional Terrorism"},{"$f":"IF((COUNTIF('Schedule X(h)'!D9:I18,0))=60,\"Section is Blank/Field Omitted\",\"True\")","v":"Section is Blank/Field Omitted"},null,null,null,{"$f":"IF(D199=\"Section is Blank/Field Omitted\",\"Blank\",\"\")","v":"Blank"},{"$f":"IF(H199=\"Blank\",IF(P199=TRUE,\"Yes\",\"\"),\"\")","v":""}]
[null,"ii)",{"$f":"HYPERLINK(\"#'Schedule X(h)'!A22:K35\",\"Insurance Terrorism Exposure to NBCR Terrorism\")","v":"Insurance Terrorism Exposure to NBCR Terrorism"},{"$f":"IF((COUNTIF('Schedule X(h)'!D24:I33,0))=60,\"Section is Blank/Field Omitted\",\"True\")","v":"Section is Blank/Field Omitted"},null,null,null,{"$f":"IF(D200=\"Section is Blank/Field Omitted\",\"Blank\",\"\")","v":"Blank"},{"$f":"IF(H200=\"Blank\",IF(P200=TRUE,\"Yes\",\"\"),\"\")","v":""}]
[{"$f":"A198+1","v":65},{"$f":"HYPERLINK(\"#'Schedule X(i)'!A1\",\"Schedule X(i) Catastrophe Risk Return - Reinsurance Terrorism Exposure\")","v":"Schedule X(i) Catastrophe Risk Return - Reinsurance Terrorism Exposure"}]
[null,"i)",{"$f":"HYPERLINK(\"#'Schedule X(i)'!A7:K18\",\"Reinsurance Terrorism Exposure to Conventional Terrorism\")","v":"Reinsurance Terrorism Exposure to Conventional Terrorism"},{"$f":"IF((COUNTIF('Schedule X(i)'!E9:J18,0))=60,\"Section is Blank/Field Omitted\",\"True\")","v":"Section is Blank/Field Omitted"},null,null,null,{"$f":"IF(D202=\"Section is Blank/Field Omitted\",\"Blank\",\"\")","v":"Blank"},{"$f":"IF(H202=\"Blank\",IF(P202=TRUE,\"Yes\",\"\"),\"\")","v":""}]
[null,"ii)",{"$f":"HYPERLINK(\"#'Schedule X(h)'!A21:K32\",\"Reinsurance Terrorism Exposure to NBCR Terrorism\")","v":"Reinsurance Terrorism Exposure to NBCR Terrorism"},{"$f":"IF((COUNTIF('Schedule X(i)'!D24:J33,0))=60,\"Section is Blank/Field Omitted\",\"True\")","v":"Section is Blank/Field Omitted"},null,null,null,{"$f":"IF(D203=\"Section is Blank/Field Omitted\",\"Blank\",\"\")","v":"Blank"},{"$f":"IF(H203=\"Blank\",IF(P203=TRUE,\"Yes\",\"\"),\"\")","v":""}]
[{"$f":"A201+1","v":66},{"$f":"HYPERLINK(\"#'Schedule X(j)'!A1\",\"Schedule X(j) Catastrophe Risk Return - Assumed Exchanges Rates\")","v":"Schedule X(j) Catastrophe Risk Return - Assumed Exchanges Rates"}]
[]
[null,"Group Schedules"]
[{"$f":"A204+1","v":67},{"$f":"HYPERLINK(\"#'Schedule XIA'!A1\",\"Schedule XI(A) - Schedule of Regulated Non Insurance Financial Operating Entities\")","v":"Schedule XI(A) - Schedule of Regulated Non Insurance Financial Operating Entities"}]
[null,"i)",{"$f":"HYPERLINK(\"#'Schedule XIA'!A1\",\"Regulated Non Insurance Financial Operating Entities\")","v":"Regulated Non Insurance Financial Operating Entities"},{"$f":"IF('Schedule XIA'!B12=0,\"Schedule is Blank\",\"True\")","v":"Schedule is Blank"},null,null,null,{"$f":"IF(D208=\"Schedule is Blank\",\"Blank\",\"\")","v":"Blank"},{"$f":"IF(H208=\"Blank\",IF(P208=TRUE,\"Yes\",\"\"),\"\")","v":""}]
[{"$f":"A207+1","v":68},{"$f":"HYPERLINK(\"#'Schedule XIB'!A1\",\"Schedule XI(B) - Schedule of Unregulated Entities Where the Parent Exercises Control\")","v":"Schedule XI(B) - Schedule of Unregulated Entities Where the Parent Exercises Control"}]
[null,"i)",{"$f":"HYPERLINK(\"#'Schedule XIB'!A1\",\"Unregulated Entities Where the Parent Exercises Control\")","v":"Unregulated Entities Where the Parent Exercises Control"},{"$f":"IF('Schedule XIB'!B12=0,\"Schedule is Blank\",\"True\")","v":"Schedule is Blank"},null,null,null,{"$f":"IF(D210=\"Schedule is Blank\",\"Blank\",\"\")","v":"Blank"},{"$f":"IF(H210=\"Blank\",IF(P210=TRUE,\"Yes\",\"\"),\"\")","v":""}]
[{"$f":"A209+1","v":69},{"$f":"HYPERLINK(\"#'Schedule XIC'!A1\",\"Schedule XI(C) - Schedule of Unregulated Entities Where the Parent Exercises Significant Influence\")","v":"Schedule XI(C) - Schedule of Unregulated Entities Where the Parent Exercises Significant Influence"}]
[null,"i)",{"$f":"HYPERLINK(\"#'Schedule XIC'!A1\",\"Unregulated Entities Where the Parent Exercises Significant Influence\")","v":"Unregulated Entities Where the Parent Exercises Significant Influence"},{"$f":"IF('Schedule XIC'!B12=0,\"Schedule is Blank\",\"True\")","v":"Schedule is Blank"},null,null,null,{"$f":"IF(D212=\"Schedule is Blank\",\"Blank\",\"\")","v":"Blank"},{"$f":"IF(H212=\"Blank\",IF(P212=TRUE,\"Yes\",\"\"),\"\")","v":""}]
[{"$f":"A211+1","v":70},{"$f":"HYPERLINK(\"#'Schedule XID'!A1\",\"Schedule XI(D) - Schedule of Entities' Capital Deducted from Available Capital and Surplus\")","v":"Schedule XI(D) - Schedule of Entities' Capital Deducted from Available Capital and Surplus"}]
[null,"i)",{"$f":"HYPERLINK(\"#'Schedule XID'!A1\",\"Entities' Capital Deducted from Available Capital and Surplus\")","v":"Entities' Capital Deducted from Available Capital and Surplus"},{"$f":"IF('Schedule XID'!B12=0,\"Schedule is Blank\",\"True\")","v":"Schedule is Blank"},null,null,null,{"$f":"IF(D214=\"Schedule is Blank\",\"Blank\",\"\")","v":"Blank"},{"$f":"IF(H214=\"Blank\",IF(P214=TRUE,\"Yes\",\"\"),\"\")","v":""}]
[{"$f":"A213+1","v":71},{"$f":"HYPERLINK(\"#'Schedule XII'!A1\",\"Schedule XII - Schedule of Group Minimum Margin of Solvency\")","v":"Schedule XII - Schedule of Group Minimum Margin of Solvency"}]
[null,"i)",{"$f":"HYPERLINK(\"#'Schedule XII'!A1\",\"Group Minimum Margin of Solvency\")","v":"Group Minimum Margin of Solvency"},{"$f":"IF('Schedule XII'!T314=0,\"Schedule is Blank\",\"True\")","v":"Schedule is Blank"},null,null,null,{"$f":"IF(D216=\"Schedule is Blank\",\"Blank\",\"\")","v":"Blank"},{"$f":"IF(H216=\"Blank\",IF(P216=TRUE,\"Yes\",\"\"),\"\")","v":""}]
[]
[null,"Eligible Capital"]
[{"$f":"A215+1","v":72},{"$f":"HYPERLINK(\"#'Schedule XIII(a)'!A1\",\"Schedule XIII(a) - Schedule of Eligible Capital\")","v":"Schedule XIII(a) - Schedule of Eligible Capital"}]
[null,"i)",{"$f":"HYPERLINK(\"#'Schedule XIII(a)'!G27:G31\",\"Policyholder Obligations equals Form 1EBS\")","v":"Policyholder Obligations equals Form 1EBS"},{"$f":"IF(('Schedule XIII(a)'!H31)=0,\"N/A\",IF('Schedule XIII(a)'!G29=0,\"Schedule Not Completed\",IF(ROUND('Schedule XIII(a)'!H33,0)=0,\"True\",\"False\")))","v":"N/A"},{"$f":"+'Schedule XIII(a)'!H33","v":0},{"$f":"IF('Schedule XIII(a)'!H31=0,0,('Schedule XIII(a)'!H33)/('Schedule XIII(a)'!H31))","v":0},null,{"$f":"IF(D220=\"Schedule Not Completed\",\"Blank\",\"\")","v":""},{"$f":"IF(H220=\"Blank\",IF(P220=TRUE,\"Yes\",\"\"),\"\")","v":""},null,{"$f":"IF(D220=\"False\",\"False.\",\"\")","v":""},{"$f":"IF(K220=\"\",\"\",IF(P220=TRUE,\"Yes\",\"\"))","v":""}]
[null,"ii)",{"$f":"HYPERLINK(\"#'Schedule XIII(a)'!H27:H31\",\"Encumbered Assets equals Form 1EBS\")","v":"Encumbered Assets equals Form 1EBS"},{"$f":"IF('Schedule XIII(a)'!H35=0,\"N/A\",IF('Schedule XIII(a)'!H29=0,\"Schedule Not Completed\",IF(ROUND('Schedule XIII(a)'!H37,0)=0,\"True\",\"False\")))","v":"N/A"},{"$f":"+'Schedule XIII(a)'!H37","v":0},{"$f":"IF('Schedule XIII(a)'!H29=0,0,('Schedule XIII(a)'!H37)/'Schedule XIII(a)'!H35)","v":0},null,{"$f":"IF(D221=\"Schedule Not Completed\",\"Blank\",\"\")","v":""},{"$f":"IF(H221=\"Blank\",IF(P221=TRUE,\"Yes\",\"\"),\"\")","v":""},null,{"$f":"IF(D221=\"False\",\"False.\",\"\")","v":""},{"$f":"IF(K221=\"\",\"\",IF(P221=TRUE,\"Yes\",\"\"))","v":""}]
[null,"iii)",{"$f":"HYPERLINK(\"#'Schedule XIII(a)'!J80:J84\",\"Eligible Capital equals Economic Available Capital & Surplus\")","v":"Eligible Capital equals Economic Available Capital & Surplus"},{"$f":"IF('Schedule XIII(a)'!J80=0,\"N/A\",'Schedule XIII(a)'!J82)","v":"N/A"},{"$f":"'Schedule XIII(a)'!J84","v":0},{"$f":"IF('Schedule XIII(a)'!J80=0,0,('Schedule XIII(a)'!J84/'Schedule XIII(a)'!J9))","v":0},null,{"$f":"IF(D222=\"N/A\",\"Blank\",\"\")","v":"Blank"},{"$f":"IF(H222=\"Blank\",IF(P222=TRUE,\"Yes\",\"\"),\"\")","v":""},null,{"$f":"IF(D222=\"False\",\"False.\",\"\")","v":""},{"$f":"IF(K222=\"\",\"\",IF(P222=TRUE,\"Yes\",\"\"))","v":""}]
[{"$f":"A219+1","v":73},{"$f":"HYPERLINK(\"#'Schedule XIII(b)'!A1\",\"Schedule XIII(b) - Schedule of Eligible Capital - Additional Details\")","v":"Schedule XIII(b) - Schedule of Eligible Capital - Additional Details"}]
[]
[null,"Operational Risk Assessment"]
[{"$f":"A223+1","v":74},{"$f":"HYPERLINK(\"#'Corp Gov'!A1\",\"Corporate Governance\")","v":"Corporate Governance"},null,{"$f":"IF('Corp Gov'!D17=0,\"Schedule is Blank\",\"True\")","v":"Schedule is Blank"},null,null,null,{"$f":"IF(D226=\"Schedule is Blank\",\"Blank\",\"\")","v":"Blank"},{"$f":"IF(H226=\"Blank\",IF(P226=TRUE,\"Yes\",\"\"),\"\")","v":""}]
[{"$f":"A226+1","v":75},{"$f":"HYPERLINK(\"#'Risk Man'!A1\",\"Risk Management\")","v":"Risk Management"},null,{"$f":"IF('Risk Man'!D18=0,\"Schedule is Blank\",\"True\")","v":"Schedule is Blank"},null,null,null,"Blank",""]
[{"$f":"A227+1","v":76},{"$f":"HYPERLINK(\"#'Identification'!A1\",\"Identification\")","v":"Identification"},null,{"$f":"IF(Identification!M19=0,\"Schedule is Blank\",\"True\")","v":"Schedule is Blank"},null,null,null,"Blank",""]
[{"$f":"A228+1","v":77},{"$f":"HYPERLINK(\"#'Measurement'!A1\",\"Measurement\")","v":"Measurement"},null,{"$f":"IF(Measurement!M19=0,\"Schedule is Blank\",\"True\")","v":"Schedule is Blank"},null,null,null,"Blank",""]
[{"$f":"A229+1","v":78},{"$f":"HYPERLINK(\"#'Response'!A1\",\"Response\")","v":"Response"},null,{"$f":"IF(Response!M19=0,\"Schedule is Blank\",\"True\")","v":"Schedule is Blank"},null,null,null,"Blank",""]
[{"$f":"A230+1","v":79},{"$f":"HYPERLINK(\"#'Monitoring & Reporting'!A1\",\"Monitoring & Reporting\")","v":"Monitoring & Reporting"},null,{"$f":"IF('Monitoring & Reporting'!M19=0,\"Schedule is Blank\",\"True\")","v":"Schedule is Blank"},null,null,null,"Blank",""]
[]
[null,"Summary"]
[{"$f":"A231+1","v":80},{"$f":"HYPERLINK(\"#'Summary'!A1\",\"Summary Tab\")","v":"Summary Tab"}]
[null,"i)",{"$f":"HYPERLINK(\"#'Summary'!B74:F78\",\"ECR Ratio Met\")","v":"ECR Ratio Met"},{"$f":"IF(Summary!M63=0,\"ECR is Blank\",IF(Summary!M96>100%,\"ECR Ratio of \"&ROUND(Summary!M96,2)*100&\"% Met\",\"ECR of \"&ROUND(Summary!M96,2)*100&\"% is not Met\"))","v":"ECR is Blank"}]
[]
[null,"Group Specific Parameters"]
[{"$f":"A234+1","v":81},{"$f":"HYPERLINK(\"#'Group Specific Parameters'!A1\",\"Group Specific Parameters\")","v":"Group Specific Parameters"}]
[null,"i)",{"$f":"HYPERLINK(\"#'Group Specific Parameters'!A1\",\"Group Capital Charge has been amended\")","v":"Group Capital Charge has been amended"},{"$f":"IF(Summary!M51=0,\"No\",\"Adjustment made to a BSCR Capital Charge\")","v":"No"},{"$f":"Summary!F51","v":0},{"$f":"IF(Summary!F51=0,0,(Summary!F51)/Summary!F35)","v":0}]

{"sheet":"FileStorage","index":5,"n_rows":0,"n_cols":0,"rows_kept":0,"cut":false,"hidden":true,"merged":[]}

{"sheet":"Index","index":6,"n_rows":85,"n_cols":40,"rows_kept":85,"cut":false,"hidden":false,"merged":[[35,2,36,7],[44,32,45,37],[17,39,18,44],[20,2,21,7],[35,32,36,37],[53,32,54,37],[72,9,73,14],[65,32,66,37],[59,25,60,30],[20,9,21,14],[17,25,18,30],[35,16,36,21],[26,2,27,7],[52,2,53,7],[59,2,60,7],[59,9,60,14],[43,2,44,7],[49,9,50,14],[43,9,44,14],[59,32,60,37],[49,2,50,7],[38,2,39,7],[52,16,53,21],[43,16,44,21],[4,2,5,7],[29,39,30,44],[32,39,33,44],[20,16,21,21],[10,2,11,7],[10,9,11,14],[10,16,11,21],[10,25,11,30],[29,16,30,21],[17,32,18,37],[32,25,33,30],[32,16,33,21],[23,9,24,14],[32,2,33,7],[23,2,24,7],[26,9,27,14],[23,32,24,37],[29,32,30,37],[29,25,30,30],[13,39,14,44],[17,2,18,7],[20,39,21,44],[26,32,27,37],[29,2,30,7],[78,9,79,14],[50,32,51,37],[49,16,50,21],[47,32,48,37],[23,25,24,30],[4,16,5,21],[4,25,5,30],[38,9,39,14],[35,39,36,44],[17,9,18,14],[26,16,27,21],[26,25,27,30],[10,32,11,37],[20,25,21,30],[4,9,5,14],[29,9,30,14],[4,32,5,37],[35,25,36,30],[32,32,33,37],[13,25,14,30],[44,25,45,30],[50,25,51,30],[47,25,48,30],[13,32,14,37],[84,16,85,21],[84,2,85,7],[81,39,82,44],[62,39,63,44],[65,25,66,30],[72,16,73,21],[78,39,79,44],[81,9,82,14],[4,39,5,44],[13,16,14,21],[62,32,63,37],[17,16,18,21],[23,39,24,44],[35,9,36,14],[32,9,33,14],[59,39,60,44],[44,39,45,44],[47,39,48,44],[50,39,51,44],[20,32,21,37],[26,39,27,44],[23,16,24,21],[72,32,73,37],[75,39,76,44],[10,39,11,44],[13,2,14,7],[13,9,14,14],[72,39,73,44],[75,2,76,7],[75,9,76,14],[84,25,85,30],[81,32,82,37],[75,32,76,37],[62,25,63,30],[84,9,85,14],[78,16,79,21],[81,2,82,7],[78,32,79,37],[81,16,82,21],[78,2,79,7],[75,16,76,21],[72,25,73,30],[84,32,85,37],[84,39,85,44],[81,25,82,30],[75,25,76,30],[78,25,79,30],[72,2,73,7]]}
[null,"INDEX"]
[null,{"$f":"'Group Information'!C7","v":"Enter Group Company Name"}]
[null,"CLICK BUTTON TO NAVIGATE"]
[]
[null,null,{"$f":"HYPERLINK(\"#'Submission'!A1\",\"Submission\")","v":"Submission"},null,null,null,null,null,null,{"$f":"HYPERLINK(\"#'Content'!A1\",\"Content\")","v":"Content"},null,null,null,null,null,null,{"$f":"HYPERLINK(\"#'Attachments'!A1\",\"Attachments\")","v":"Attachments"},null,null,null,null,null,null,null,null,{"$f":"HYPERLINK(\"#'Zones'!A1\",\"Zones\")","v":"Zones"},null,null,null,null,null,null,{"$f":"HYPERLINK(\"#'Declaration'!A1\",\"Declaration\")","v":"Declaration"},null,null,null,null,null,null,{"$f":"HYPERLINK(\"#'Group Information'!A1\",\"Group Information\")","v":"Group Information"}]
[]
[]
[]
[null,"STATUTORY AND BSCR SCHEDULES"]
[]
[null,null,{"$f":"HYPERLINK(\"#'Coversheet'!A1\",\"Cover Sheet\")","v":"Cover Sheet"},null,null,null,null,null,null,{"$f":"HYPERLINK(\"#'Solvency Certificate'!A1\",\"Solvency Certificate\")","v":"Solvency Certificate"},null,null,null,null,null,null,{"$f":"HYPERLINK(\"#'Form 1'!A1\",\"Form 1 \nBalance Sheet\")","v":"Form 1 \nBalance Sheet"},null,null,null,null,null,null,null,null,{"$f":"HYPERLINK(\"#'Form 2'!A1\",\"Form 2\nIncome Stmt\")","v":"Form 2\nIncome Stmt"},null,null,null,null,null,null,{"$f":"HYPERLINK(\"#'Form 8'!A1\",\"Form 8 \nCapital & Surplus\")","v":"Form 8 \nCapital & Surplus"},null,null,null,null,null,null,{"$f":"HYPERLINK(\"#'Form 1A'!A1\",\"Form 1A\nIFRS Bal. Sheet\")","v":"Form 1A\nIFRS Bal. Sheet"}]
[]
[]
[null,null,{"$f":"HYPERLINK(\"#'Form 2A'!A1\",\"Form 2A\nIFRS Inc. Stmt\")","v":"Form 2A\nIFRS Inc. Stmt"},null,null,null,null,null,null,{"$f":"HYPERLINK(\"#'Form 8A'!A1\",\"Form 8A\nIFRS C&S\")","v":"Form 8A\nIFRS C&S"},null,null,null,null,null,null,{"$f":"HYPERLINK(\"#'Form 1EBS'!A1\",\"Form 1EBS Balance Sheet\")","v":"Form 1EBS Balance Sheet"},null,null,null,null,null,null,null,null,{"$f":"HYPERLINK(\"#'Schedule II'!A1\",\"Sch II     Investments\")","v":"Sch II     Investments"},null,null,null,null,null,null,{"$f":"HYPERLINK(\"#'Schedule II (EBS)'!A1\",\"Sch II (EBS)    Investments\")","v":"Sch II (EBS)    Investments"},null,null,null,null,null,null,{"$f":"HYPERLINK(\"#'Schedule IIA'!A1\",\"Sch IIA          Funds Held\")","v":"Sch IIA          Funds Held"}]
[]
[]
[]
[null,null,{"$f":"HYPERLINK(\"#'Schedule IIA (EBS)'!A1\",\"Sch IIA (EBS)         Funds Held\")","v":"Sch IIA (EBS)         Funds Held"},null,null,null,null,null,null,{"$f":"HYPERLINK(\"#'Investment Reconciliation'!A1\",\"Investment Reconciliation\")","v":"Investment Reconciliation"},null,null,null,null,null,null,{"$f":"HYPERLINK(\"#'Schedule IIB (EBS)'!A1\",\"Sch IIB (EBS)   Investments\")","v":"Sch IIB (EBS)   Investments"},null,null,null,null,null,null,null,null,{"$f":"HYPERLINK(\"#'Schedule IIC (EBS)'!A1\",\"Sch IIC (EBS)         Funds Held\")","v":"Sch IIC (EBS)         Funds Held"},null,null,null,null,null,null,{"$f":"HYPERLINK(\"#'SCHEDULE IID (EBS)'!A1\",\"Sch IID (EBS) Segregated Acc\")","v":"Sch IID (EBS) Segregated Acc"},null,null,null,null,null,null,{"$f":"HYPERLINK(\"#'SCHEDULE IIE (EBS)'!A1\",\"Sch IIE (EBS) Deposits\")","v":"Sch IIE (EBS) Deposits"}]
[]
[]
[null,null,{"$f":"HYPERLINK(\"#'SCHEDULE IIF (EBS)'!A1\",\"Sch IIF (EBS) Other Sundry\")","v":"Sch IIF (EBS) Other Sundry"},null,null,null,null,null,null,{"$f":"HYPERLINK(\"#'Grandfathered Equity Part'!A1\",\"Grandfathered Equity Part\")","v":"Grandfathered Equity Part"},null,null,null,null,null,null,{"$f":"HYPERLINK(\"#'Non-Grandfathered Equity Part'!A1\",\"Non-Grand fathered Equity Part\")","v":"Non-Grand fathered Equity Part"},null,null,null,null,null,null,null,null,{"$f":"HYPERLINK(\"#'SCHEDULE III'!A1\",\"Sch III \nReserves By LOB\")","v":"Sch III \nReserves By LOB"},null,null,null,null,null,null,{"$f":"HYPERLINK(\"#'SCHEDULE III (EBS)'!A1\",\"Sch III (EBS)\nReserves by LOB\")","v":"Sch III (EBS)\nReserves by LOB"},null,null,null,null,null,null,{"$f":"HYPERLINK(\"#'SCHEDULE IVA'!A1\",\"Sch IVA GB Premium by LOB\")","v":"Sch IVA GB Premium by LOB"}]
[]
[]
[null,null,{"$f":"HYPERLINK(\"#'SCHEDULE IVB'!A1\",\"Sch IVB \nLT Premium\")","v":"Sch IVB \nLT Premium"},null,null,null,null,null,null,{"$f":"HYPERLINK(\"#'SCHEDULE IVC (EBS)'!A1\",\"Sch IVC (EBS) Premium by Zone\")","v":"Sch IVC (EBS) Premium by Zone"},null,null,null,null,null,null,{"$f":"HYPERLINK(\"#'SCHEDULE IVD (EBS)'!A1\",\"Sch IVD (EBS) Exposure by LOB\")","v":"Sch IVD (EBS) Exposure by LOB"},null,null,null,null,null,null,null,null,{"$f":"HYPERLINK(\"#'SCHEDULE IVE (EBS)'!A1\",\"Sch IVE (EBS) Exposure by Zone\")","v":"Sch IVE (EBS) Exposure by Zone"},null,null,null,null,null,null,{"$f":"HYPERLINK(\"#'SCHEDULE IVF'!A1\",\"Sch IVF\nRisk Exposure\")","v":"Sch IVF\nRisk Exposure"},null,null,null,null,null,null,{"$f":"HYPERLINK(\"#'SCHEDULE V'!A1\",\"Sch V \nRisk Mgmt\")","v":"Sch V \nRisk Mgmt"}]
[]
[]
[null,null,{"$f":"HYPERLINK(\"#'SCHEDULE V(a)'!A1\",\"Sch V(a) Governance\")","v":"Sch V(a) Governance"},null,null,null,null,null,null,{"$f":"HYPERLINK(\"#'SCHEDULE V(b)'!A1\",\"Sch V(b) \nGroup Structure\")","v":"Sch V(b) \nGroup Structure"},null,null,null,null,null,null,{"$f":"HYPERLINK(\"#'SCHEDULE V(c)'!A1\",\"Sch V(c) \nIntra-Group\")","v":"Sch V(c) \nIntra-Group"},null,null,null,null,null,null,null,null,{"$f":"HYPERLINK(\"#'SCHEDULE V(e)'!A1\",\"Sch V(e) \nStress Scenario\")","v":"Sch V(e) \nStress Scenario"},null,null,null,null,null,null,{"$f":"HYPERLINK(\"#'SCHEDULE V(f)'!A1\",\"Sch V(f) \nMod-Coinsurance\")","v":"Sch V(f) \nMod-Coinsurance"},null,null,null,null,null,null,{"$f":"HYPERLINK(\"#'SCHEDULE V(g)'!A1\",\"Sch V(g) \nGAAP-BSCR Rec\")","v":"Sch V(g) \nGAAP-BSCR Rec"}]
[]
[]
[null,null,{"$f":"HYPERLINK(\"#'SCHEDULE V(k)'!A1\",\"Sch V(k) \nDeposit Assets\")","v":"Sch V(k) \nDeposit Assets"},null,null,null,null,null,null,{"$f":"HYPERLINK(\"#'SCHEDULE VI'!A1\",\"Sch VI\nAssets\")","v":"Sch VI\nAssets"},null,null,null,null,null,null,{"$f":"HYPERLINK(\"#'SCHEDULE VIA'!A1\",\"Sch VIA\nFunds Held\")","v":"Sch VIA\nFunds Held"},null,null,null,null,null,null,null,null,{"$f":"HYPERLINK(\"#'SCHEDULE VI (EBS)'!A1\",\"Sch VI (EBS)\nAssets\")","v":"Sch VI (EBS)\nAssets"},null,null,null,null,null,null,{"$f":"HYPERLINK(\"#'SCHEDULE VIA (EBS)'!A1\",\"Sch VIA (EBS)\nFunds Held\")","v":"Sch VIA (EBS)\nFunds Held"},null,null,null,null,null,null,{"$f":"HYPERLINK(\"#'SCHEDULE VII'!A1\",\"Sch VII\nLT Reserves\")","v":"Sch VII\nLT Reserves"}]
[]
[]
[null,null,{"$f":"HYPERLINK(\"#'SCHEDULE VII (EBS)'!A1\",\"Sch VII (EBS)\nLT Reserves\")","v":"Sch VII (EBS)\nLT Reserves"},null,null,null,null,null,null,{"$f":"HYPERLINK(\"#'SCHEDULE VIII'!A1\",\"Sch VIII \nLT Annuity\")","v":"Sch VIII \nLT Annuity"},null,null,null,null,null,null,{"$f":"HYPERLINK(\"#'SCHEDULE VIII (EBS)'!A1\",\"Sch VIII (EBS) \nLT Annuity\")","v":"Sch VIII (EBS) \nLT Annuity"},null,null,null,null,null,null,null,null,{"$f":"HYPERLINK(\"#'SCHEDULE VIII(A)'!A1\",\"Sch VIII(A)\nInternal Model\")","v":"Sch VIII(A)\nInternal Model"},null,null,null,null,null,null,{"$f":"HYPERLINK(\"#'SCHEDULE VIIIA (EBS)'!A1\",\"Sch VIIIA (EBS)\nInternal Model\")","v":"Sch VIIIA (EBS)\nInternal Model"},null,null,null,null,null,null,{"$f":"HYPERLINK(\"#'SCHEDULE XVIII'!A1\",\"Sch XVIII \nCeded Reins\")","v":"Sch XVIII \nCeded Reins"}]
[]
[]
[null,null,{"$f":"HYPERLINK(\"#'SCHEDULE XVIII (EBS)'!A1\",\"Sch XVIII (EBS)\nCeded Reins\")","v":"Sch XVIII (EBS)\nCeded Reins"},null,null,null,null,null,null,{"$f":"HYPERLINK(\"#'SCHEDULE XIX'!A1\",\"Sch XIX \nCash Counterpart\")","v":"Sch XIX \nCash Counterpart"},null,null,null,null,null,null,{"$f":"HYPERLINK(\"#'SCHEDULE XXIA'!A1\",\"Sch XXIA\nCash Counterpart\")","v":"Sch XXIA\nCash Counterpart"},null,null,null,null,null,null,null,null,{"$f":"HYPERLINK(\"#'SCHEDULE XX'!A1\",\"Sch XX \nCurrency Analysis\")","v":"Sch XX \nCurrency Analysis"},null,null,null,null,null,null,{"$f":"HYPERLINK(\"#'SCHEDULE XXA'!A1\",\"Sch XXA\nCurrency Analysis\")","v":"Sch XXA\nCurrency Analysis"},null,null,null,null,null,null,{"$f":"HYPERLINK(\"#'SCHEDULE XXI'!A1\",\"Sch XXI \nCon Risk\")","v":"Sch XXI \nCon Risk"}]
[]
[]
[null,null,{"$f":"HYPERLINK(\"#'SCHEDULE XXIA'!A1\",\"Sch XXIA \nCon Risk\")","v":"Sch XXIA \nCon Risk"},null,null,null,null,null,null,{"$f":"HYPERLINK(\"#'SCHEDULE XXIII'!A1\",\"Sch XXIII \nInterest Rates\")","v":"Sch XXIII \nInterest Rates"}]
[]
[]
[]
[null,"GSSA SCHEDULES",null,null,null,null,null,null,null,null,null,null,null,null,null,null,null,null,null,null,null,null,null,null,"CATASTROPHE RISK RETURN"]
[null,null,{"$f":"HYPERLINK(\"#'Schedule IX(a)'!A1\",\"Sch IX(a) \nCapital Summary\")","v":"Sch IX(a) \nCapital Summary"},null,null,null,null,null,null,{"$f":"HYPERLINK(\"#'Schedule IX(b)'!A1\",\"Sch IX(b)\nGen. Questions\")","v":"Sch IX(b)\nGen. Questions"},null,null,null,null,null,null,{"$f":"HYPERLINK(\"#'Schedule IX(c)'!A1\",\"Sch IX(c)\nRisk Assessment\")","v":"Sch IX(c)\nRisk Assessment"}]
[null,null,null,null,null,null,null,null,null,null,null,null,null,null,null,null,null,null,null,null,null,null,null,null,null,{"$f":"HYPERLINK(\"#'Schedule X(a)'!A1\",\"Schedule X(a)\")","v":"Schedule X(a)"},null,null,null,null,null,null,{"$f":"HYPERLINK(\"#'Schedule X(b)'!A1\",\"Schedule X(b)\")","v":"Schedule X(b)"},null,null,null,null,null,null,{"$f":"HYPERLINK(\"#'Schedule X(c)'!A1\",\"Schedule X(c)\")","v":"Schedule X(c)"}]
[]
[]
[null,"GROUP SCHEDULES",null,null,null,null,null,null,null,null,null,null,null,null,null,null,null,null,null,null,null,null,null,null,null,{"$f":"HYPERLINK(\"#'Schedule X(d)'!A1\",\"Schedule X(d)\")","v":"Schedule X(d)"},null,null,null,null,null,null,{"$f":"HYPERLINK(\"#'Schedule X(e)'!A1\",\"Schedule X(e)\")","v":"Schedule X(e)"},null,null,null,null,null,null,{"$f":"HYPERLINK(\"#'Schedule X(f)'!A1\",\"Schedule X(f)\")","v":"Schedule X(f)"}]
[]
[null,null,{"$f":"HYPERLINK(\"#'Schedule XIA'!A1\",\"Schedule XIA\")","v":"Schedule XIA"},null,null,null,null,null,null,{"$f":"HYPERLINK(\"#'Schedule XIB'!A1\",\"Schedule XIB\")","v":"Schedule XIB"},null,null,null,null,null,null,{"$f":"HYPERLINK(\"#'Schedule XIC'!A1\",\"Schedule XIC\")","v":"Schedule XIC"}]
[null,null,null,null,null,null,null,null,null,null,null,null,null,null,null,null,null,null,null,null,null,null,null,null,null,{"$f":"HYPERLINK(\"#'Schedule X(g)'!A1\",\"Schedule X(g)\")","v":"Schedule X(g)"},null,null,null,null,null,null,{"$f":"HYPERLINK(\"#'Schedule X(h)'!A1\",\"Schedule X(h)\")","v":"Schedule X(h)"},null,null,null,null,null,null,{"$f":"HYPERLINK(\"#'Schedule X(i)'!A1\",\"Schedule X(i)\")","v":"Schedule X(i)"}]
[]
[null,null,{"$f":"HYPERLINK(\"#'Schedule XID'!A1\",\"Schedule XID\")","v":"Schedule XID"},null,null,null,null,null,null,null,null,null,null,null,null,null,{"$f":"HYPERLINK(\"#'Schedule XII'!A1\",\"Schedule XII\")","v":"Schedule XII"}]
[null,null,null,null,null,null,null,null,null,null,null,null,null,null,null,null,null,null,null,null,null,null,null,null,null,null,null,null,null,null,null,null,{"$f":"HYPERLINK(\"#'Schedule X(j)'!A1\",\"Schedule X(j)\")","v":"Schedule X(j)"}]
[]
[]
[]
[null,"ELIGIBLE CAPITAL",null,null,null,null,null,null,null,null,null,null,null,null,null,null,null,null,null,null,null,null,null,null,"OPERATIONAL RISK CHARGE"]
[]
[null,null,{"$f":"HYPERLINK(\"#'Schedule XIII(a)'!A1\",\"Schedule XIII(a)\")","v":"Schedule XIII(a)"},null,null,null,null,null,null,{"$f":"HYPERLINK(\"#'Schedule XIII(b)'!A1\",\"Schedule XIII(b)\")","v":"Schedule XIII(b)"},null,null,null,null,null,null,null,null,null,null,null,null,null,null,null,{"$f":"HYPERLINK(\"#'Corp Gov'!A1\",\"Corporate Governance\")","v":"Corporate Governance"},null,null,null,null,null,null,{"$f":"HYPERLINK(\"#'Risk Man'!A1\",\"Risk Management\")","v":"Risk Management"},null,null,null,null,null,null,{"$f":"HYPERLINK(\"#'Identification'!A1\",\"Risk Identification\")","v":"Risk Identification"}]
[]
[]
[null,null,null,null,null,null,null,null,null,null,null,null,null,null,null,null,null,null,null,null,null,null,null,null,null,{"$f":"HYPERLINK(\"#'Measurement'!A1\",\"Risk Measurement\")","v":"Risk Measurement"},null,null,null,null,null,null,{"$f":"HYPERLINK(\"#'Response'!A1\",\"Risk Response\")","v":"Risk Response"},null,null,null,null,null,null,{"$f":"HYPERLINK(\"#'Monitoring & Reporting'!A1\",\"Risk Monitoring & Reporting\")","v":"Risk Monitoring & Reporting"}]
[]
[]
[null,null,null,null,null,null,null,null,null,null,null,null,null,null,null,null,null,null,null,null,null,null,null,null,null,{"$f":"HYPERLINK(\"#'Op Risk'!A1\",\"Operational Risk Charge\")","v":"Operational Risk Charge"},null,null,null,null,null,null,{"$f":"HYPERLINK(\"#'Op Risk (Revised)'!A1\",\"Operational Risk Charge (Revised)\")","v":"Operational Risk Charge (Revised)"}]
[]
[]
[]
[]
[null,"BSCR MODEL"]
[]
[null,null,{"$f":"HYPERLINK(\"#'Summary'!A1\",\"Summary\")","v":"Summary"},null,null,null,null,null,null,{"$f":"HYPERLINK(\"#'Fixed Income Investments'!A1\",\"Fixed Income Investments\")","v":"Fixed Income Investments"},null,null,null,null,null,null,{"$f":"HYPERLINK(\"#'Fixed Income Investments (Rev.)'!A1\",\"Fixed Income Inv. (Revised)\")","v":"Fixed Income Inv. (Revised)"},null,null,null,null,null,null,null,null,{"$f":"HYPERLINK(\"#'Equity Investments'!A1\",\"Equity Investments\")","v":"Equity Investments"},null,null,null,null,null,null,{"$f":"HYPERLINK(\"#'Equity Investments (Revised)'!A1\",\"Equity Inv. (Revised)\")","v":"Equity Inv. (Revised)"},null,null,null,null,null,null,{"$f":"HYPERLINK(\"#'Equity Grandfathering'!A1\",\"Equity Grandfathering\")","v":"Equity Grandfathering"}]
[]
[]
[null,null,{"$f":"HYPERLINK(\"#'Equity Investments (Grandf)'!A1\",\"Equity Inv. (Grandf)\")","v":"Equity Inv. (Grandf)"},null,null,null,null,null,null,{"$f":"HYPERLINK(\"#'Equity Investments (Non-Grandf)'!A1\",\"Equity Inv. \n(Non-Grandf)\")","v":"Equity Inv. \n(Non-Grandf)"},null,null,null,null,null,null,{"$f":"HYPERLINK(\"#'Interest Rate-Liquidity Risk'!A1\",\"Interest Rate-Liquidity Risk\")","v":"Interest Rate-Liquidity Risk"},null,null,null,null,null,null,null,null,{"$f":"HYPERLINK(\"#'Interest Rate-Liquidity (Rev.)'!A1\",\"Interest-Liquidity Risk (Revised)\")","v":"Interest-Liquidity Risk (Revised)"},null,null,null,null,null,null,{"$f":"HYPERLINK(\"#'Currency Risk'!A1\",\"Currency Risk\")","v":"Currency Risk"},null,null,null,null,null,null,{"$f":"HYPERLINK(\"#'Currency Risk (Revised)'!A1\",\"Currency Risk (Revised)\")","v":"Currency Risk (Revised)"}]
[]
[]
[null,null,{"$f":"HYPERLINK(\"#'Concentration Risk'!A1\",\"Concentration Risk\")","v":"Concentration Risk"},null,null,null,null,null,null,{"$f":"HYPERLINK(\"#'Concentration Risk (Revised)'!A1\",\"Concentration Risk (Revised)\")","v":"Concentration Risk (Revised)"},null,null,null,null,null,null,{"$f":"HYPERLINK(\"#'Geographic Diversification'!A1\",\"Geographic Diversification\")","v":"Geographic Diversification"},null,null,null,null,null,null,null,null,{"$f":"HYPERLINK(\"#'Geographic Div. (Revised)'!A1\",\"Geographic Div. (Revised)\")","v":"Geographic Div. (Revised)"},null,null,null,null,null,null,{"$f":"HYPERLINK(\"#'Premium Risk'!A1\",\"Premium Risk\")","v":"Premium Risk"},null,null,null,null,null,null,{"$f":"HYPERLINK(\"#'Premium Risk (Revised)'!A1\",\"Premium Risk (Revised)\")","v":"Premium Risk (Revised)"}]
[]
[]
[null,null,{"$f":"HYPERLINK(\"#'Reserve Risk'!A1\",\"Reserve Risk\")","v":"Reserve Risk"},null,null,null,null,null,null,{"$f":"HYPERLINK(\"#'Reserve Risk (Revised)'!A1\",\"Reserve Risk (Revised)\")","v":"Reserve Risk (Revised)"},null,null,null,null,null,null,{"$f":"HYPERLINK(\"#'Credit Risk'!A1\",\"Credit Risk\")","v":"Credit Risk"},null,null,null,null,null,null,null,null,{"$f":"HYPERLINK(\"#'Credit Risk (Revised)'!A1\",\"Credit Risk (Revised)\")","v":"Credit Risk (Revised)"},null,null,null,null,null,null,{"$f":"HYPERLINK(\"#'Catastrophe Risk'!A1\",\"Catastrophe Risk\")","v":"Catastrophe Risk"},null,null,null,null,null,null,{"$f":"HYPERLINK(\"#'Catastrophe Risk (Revised)'!A1\",\"Catastrophe Risk (Revised)\")","v":"Catastrophe Risk (Revised)"}]
[]
[]
[null,null,{"$f":"HYPERLINK(\"#'LT Insurance Risk'!A1\",\"Insurance Risk\")","v":"Insurance Risk"},null,null,null,null,null,null,{"$f":"HYPERLINK(\"#'LT Other Insurance Risk'!A1\",\"Other Insurance Risk\")","v":"Other Insurance Risk"},null,null,null,null,null,null,{"$f":"HYPERLINK(\"#'LT Variable Annuity Gte Risk'!A1\",\"Variable Annuity Guarantee Risk\")","v":"Variable Annuity Guarantee Risk"},null,null,null,null,null,null,null,null,{"$f":"HYPERLINK(\"#'Group Specific Parameters'!A1\",\"Group Specific Parameters\")","v":"Group Specific Parameters"},null,null,null,null,null,null,{"$f":"HYPERLINK(\"#'GSP (Revised)'!A1\",\"GSP (Revised)\")","v":"GSP (Revised)"},null,null,null,null,null,null,{"$f":"HYPERLINK(\"#'Correlation Matrix'!A1\",\"Correlation Matrix\")","v":"Correlation Matrix"}]

{"sheet":"Import","index":7,"n_rows":43047,"n_cols":11,"rows_kept":4500,"cut":true,"hidden":false,"merged":[[0,4,0,6],[0,8,0,10]],"bounds":{"rows_first":2000,"rows_last":500,"rows_between":2000,"halvings":0}}
[null,null,null,null,"Consolidated",null,null,null,"EBS"]
["Sheet Name","Sheet Short Description","Field Code","Field Description",{"$f":"YEAR('Group Information'!C3)","v":2023},null,{"$f":"E2-1","v":2022},null,{"$f":"E2","v":2023},null,{"$f":"I2-1","v":2022}]
["Summary",null,null,"Comments",0]
[]
[null,null,null,"Balance Sheet"]
["Form 1/1EBS","Balance Sheet CON/EBS","1F1","Cash and Cash Equivalents",0,null,0,null,0,null,0]
["Form 1/1EBS","Balance Sheet CON/EBS","1F2ai","Quoted - Bonds - Held to Maturity",0,null,0]
["Form 1/1EBS","Balance Sheet CON/EBS","1F2aii","Quoted - Bonds - Other",0,null,0]
["Form 1/1EBS","Balance Sheet CON/EBS","1EBS2b","Quoted - Bonds - Total",null,null,null,null,0,null,0]
["Form 1/1EBS","Balance Sheet CON/EBS","1F2ci","Quoted - Equities - Common Stocks",0,null,0,null,0,null,0]
["Form 1/1EBS","Balance Sheet CON/EBS","1F2cii","Quoted - Equities - Preferred Stocks",0,null,0,null,0,null,0]
["Form 1/1EBS","Balance Sheet CON/EBS","1F2ciii","Quoted - Equities - Mutual Funds",0,null,0,null,0,null,0]
["Form 1/1EBS","Balance Sheet CON/EBS","1F2e","Quoted - Other Investments",0,null,0,null,0,null,0]
["Form 1/1EBS","Balance Sheet CON/EBS","1F3ai","Unquoted - Bonds - Held to Maturity",0,null,0]
["Form 1/1EBS","Balance Sheet CON/EBS","1F3aii","Unquoted - Bonds - Other",0,null,0]
["Form 1/1EBS","Balance Sheet CON/EBS","1EBS3b","Unquoted - Bonds - Held to Maturity",null,null,null,null,0,null,0]
["Form 1/1EBS","Balance Sheet CON/EBS","1F3ci","Unquoted - Equities - Common Stocks",0,null,0,null,0,null,0]
["Form 1/1EBS","Balance Sheet CON/EBS","1F3cii","Unquoted - Equities - Preferred Stocks",0,null,0,null,0,null,0]
["Form 1/1EBS","Balance Sheet CON/EBS","1F3ciii","Unquoted - Equities - Mutual Funds",0,null,0,null,0,null,0]
["Form 1/1EBS","Balance Sheet CON/EBS","1F3e","Unquoted - Other Investments",0,null,0,null,0,null,0]
["Form 1/1EBS","Balance Sheet CON/EBS","1F4a","Inv. In Affiliates - Unregulated Ancillary",0,null,0,null,0,null,0]
["Form 1/1EBS","Balance Sheet CON/EBS","1F4b","Inv. In Affiliates - Unregulated Non-Fin. Oper.",0,null,0,null,0,null,0]
["Form 1/1EBS","Balance Sheet CON/EBS","1F4c","Inv. In Affiliates - Unregulated Fin. Operating",0,null,0,null,0,null,0]
["Form 1/1EBS","Balance Sheet CON/EBS","1F4d","Inv. In Affiliates - Regulated Non-Insurance",0,null,0,null,0,null,0]
["Form 1/1EBS","Balance Sheet CON/EBS","1F4e","Inv. In Affiliates - Regulated Insurance",0,null,0,null,0,null,0]
["Form 1/1EBS","Balance Sheet CON/EBS","1F4g","Advances To Affiliates",0,null,0,null,0,null,0]
["Form 1/1EBS","Balance Sheet CON/EBS","1F5a","Inv. In Mortg. Loans on Real Estate - 1st Lien",0,null,0,null,0,null,0]
["Form 1/1EBS","Balance Sheet CON/EBS","1F5b","Inv. In Mortg. Loans on Real Estate - Other",0,null,0,null,0,null,0]
["Form 1/1EBS","Balance Sheet CON/EBS","1F6","Policy Loans",0,null,0,null,0,null,0]
["Form 1/1EBS","Balance Sheet CON/EBS","1F7a","Real Estate - Occupied by Company",0,null,0,null,0,null,0]
["Form 1/1EBS","Balance Sheet CON/EBS","1F7b","Real Estate - Other",0,null,0,null,0,null,0]
["Form 1/1EBS","Balance Sheet CON/EBS","1F8","Collateral Loans",0,null,0,null,0,null,0]
["Form 1/1EBS","Balance Sheet CON/EBS","1F9","Investment Income Due and Accrued",0,null,0,null,0,null,0]
["Form 1/1EBS","Balance Sheet CON/EBS","1F10a","Accounts & Premium Rec. - In Collection",0,null,0,null,0,null,0]
["Form 1/1EBS","Balance Sheet CON/EBS","1F10b","Accounts & Premium Rec. - Not Yet Due ",0,null,0]
["Form 1/1EBS","Balance Sheet CON/EBS","1F10c","Accounts & Premium Rec. - Retro. Contracts",0,null,0,null,0,null,0]
["Form 1/1EBS","Balance Sheet CON/EBS","1F11a","R/I Balances Receivable - Foreign Affiliates",0,null,0,null,0,null,0]
["Form 1/1EBS","Balance Sheet CON/EBS","1F11b","R/I Balances Receivable - Domestic Affiliates",0,null,0,null,0,null,0]
["Form 1/1EBS","Balance Sheet CON/EBS","1F11c","R/I Balances Receivable - Pools & Assoc.",0,null,0,null,0,null,0]
["Form 1/1EBS","Balance Sheet CON/EBS","1F11d","R/I Balances Receivable - All Other",0,null,0,null,0,null,0]
["Form 1/1EBS","Balance Sheet CON/EBS","1EBS12a","Funds Held by Ceding Companies - Affiliates",null,null,null,null,0,null,0]
["Form 1/1EBS","Balance Sheet CON/EBS","1EBS12b","Funds Held by Ceding Companies - Non-Aff.",null,null,null,null,0,null,0]
["Form 1/1EBS","Balance Sheet CON/EBS","1F12","Funds Held by Ceding Companies ",0,null,0]
["Form 1/1EBS","Balance Sheet CON/EBS","1F13a","Sundry Assets - Derivatives",0,null,0,null,0,null,0]
["Form 1/1EBS","Balance Sheet CON/EBS","1F13b","Sundry Assets - SAC - LT- Variable Annuities",0,null,0,null,0,null,0]
["Form 1/1EBS","Balance Sheet CON/EBS","1F13c","Sundry Assets - SAC - LT- Others",0,null,0,null,0,null,0]
["Form 1/1EBS","Balance Sheet CON/EBS","1F13d","Sundry Assets - SAC - General Business",0,null,0,null,0,null,0]
["Form 1/1EBS","Balance Sheet CON/EBS","1F13e","Sundry Assets - Deposit Assets",0,null,0,null,0,null,0]
["Form 1/1EBS","Balance Sheet CON/EBS","1EBS13f","Sundry Assets - Net Rec. for Investments",null,null,null,null,0,null,0]
["Form 1/1EBS","Balance Sheet CON/EBS","1EBS13g","Sundry Assets - Intangible Assets",null,null,null,null,0,null,0]
["Form 1/1EBS","Balance Sheet CON/EBS","1EBS13h","Sundry Assets - Deferred Tax Assets",null,null,null,null,0,null,0]
["Form 1/1EBS","Balance Sheet CON/EBS","1EBS13i","Sundry Assets - Pension Benefit Surplus",null,null,null,null,0,null,0]
["Form 1/1EBS","Balance Sheet CON/EBS","1F13f","Sundry Assets - Other ",0,null,0,null,0,null,0]
["Form 1/1EBS","Balance Sheet CON/EBS","1F14a","Letters of Credit",0,null,0,null,0,null,0]
["Form 1/1EBS","Balance Sheet CON/EBS","1F14b","Guarantees",0,null,0,null,0,null,0]
["Form 1/1EBS","Balance Sheet CON/EBS","1F14c","Other Instruments",0,null,0,null,0,null,0]
["Form 1/1EBS","Balance Sheet CON/EBS","1EBS16a","Premium Provision - Gross",null,null,null,null,0,null,0]
["Form 1/1EBS","Balance Sheet CON/EBS","1EBS16bi","UPR - Ceded - Foreign Affiliates",null,null,null,null,0,null,0]
["Form 1/1EBS","Balance Sheet CON/EBS","1EBS16bii","UPR - Ceded - Domestic Affiliates",null,null,null,null,0,null,0]
["Form 1/1EBS","Balance Sheet CON/EBS","1EBS16biii","UPR - Ceded - Pools & Assoc.",null,null,null,null,0,null,0]
["Form 1/1EBS","Balance Sheet CON/EBS","1EBS16biv","UPR - Ceded - All Other",null,null,null,null,0,null,0]
["Form 1/1EBS","Balance Sheet CON/EBS","1F16","Unearned Premium Reserve ",0,null,0]
["Form 1/1EBS","Balance Sheet CON/EBS","1F17a","Loss Provision - Gross",0,null,0,null,0,null,0]
["Form 1/1EBS","Balance Sheet CON/EBS","1F17bi","R/I Recoverable - Foreign Affiliates",0,null,0,null,0,null,0]
["Form 1/1EBS","Balance Sheet CON/EBS","1F17bii","R/I Recoverable - Domestic Affiliates",0,null,0,null,0,null,0]
["Form 1/1EBS","Balance Sheet CON/EBS","1F17biii","R/I Recoverable - Pools & Assoc.",0,null,0,null,0,null,0]
["Form 1/1EBS","Balance Sheet CON/EBS","1F17biv","R/I Recoverable - All Other",0,null,0,null,0,null,0]
["Form 1/1EBS","Balance Sheet CON/EBS","1F18","Other Insurance Reserves",0,null,0,null,0,null,0]
["Form 1/1EBS","Balance Sheet CON/EBS","1F20","Net - Reserves for Reported Claims",0,null,0,null,0,null,0]
["Form 1/1EBS","Balance Sheet CON/EBS","1F21","Net - Reserves for Unreported Claims",0,null,0,null,0,null,0]
["Form 1/1EBS","Balance Sheet CON/EBS","1F22","Net - Policy Reserves - Life",0,null,0,null,0,null,0]
["Form 1/1EBS","Balance Sheet CON/EBS","1F23","Net - Policy Reserves - Accident & Health",0,null,0,null,0,null,0]
["Form 1/1EBS","Balance Sheet CON/EBS","1F24","Net - Policyholder's Funds on Deposit",0,null,0,null,0,null,0]
["Form 1/1EBS","Balance Sheet CON/EBS","1F25","Net - Liability for Future Policyholder Dividends",0,null,0,null,0,null,0]
["Form 1/1EBS","Balance Sheet CON/EBS","1F26","Net - Other LT Insurance Reserves",0,null,0,null,0,null,0]
["Form 1/1EBS","Balance Sheet CON/EBS","1F27bi","R/I Recoverable - Foreign Affiliates",0,null,0,null,0,null,0]
["Form 1/1EBS","Balance Sheet CON/EBS","1F27bii","R/I Recoverable - Domestic Affiliates",0,null,0,null,0,null,0]
["Form 1/1EBS","Balance Sheet CON/EBS","1F27biii","R/I Recoverable - Pools & Assoc.",0,null,0,null,0,null,0]
["Form 1/1EBS","Balance Sheet CON/EBS","1F27biv","R/I Recoverable - All Other",0,null,0,null,0,null,0]
["Form 1/1EBS","Balance Sheet CON/EBS","1EBS27A","Risk Margin",null,null,null,null,0,null,0]
["Form 1/1EBS","Balance Sheet CON/EBS","1EBS27Ba","Gross Provision - Tech. Prov. Calc. on Whole",null,null,null,null,0,null,0]
["Form 1/1EBS","Balance Sheet CON/EBS","1EBS27Bbi","R/I Recoverable - Foreign Affiliates",null,null,null,null,0,null,0]
["Form 1/1EBS","Balance Sheet CON/EBS","1EBS27Bbii","R/I Recoverable - Domestic Affiliates",null,null,null,null,0,null,0]
["Form 1/1EBS","Balance Sheet CON/EBS","1EBS27Bbiii","R/I Recoverable - Pools & Assoc.",null,null,null,null,0,null,0]
["Form 1/1EBS","Balance Sheet CON/EBS","1EBS27Bbiv","R/I Recoverable - All Other",null,null,null,null,0,null,0]
["Form 1/1EBS","Balance Sheet CON/EBS","1F28","Insurance & R/I Balances Payable",0,null,0,null,0,null,0]
["Form 1/1EBS","Balance Sheet CON/EBS","1F29","Commissions, Expenses and Taxes Payable",0,null,0,null,0,null,0]
["Form 1/1EBS","Balance Sheet CON/EBS","1F30","Loans and Notes Payable",0,null,0,null,0,null,0]
["Form 1/1EBS","Balance Sheet CON/EBS","1F31a","Income Taxes Payable",0,null,0,null,0,null,0]
["Form 1/1EBS","Balance Sheet CON/EBS","1F31b","Deferred Taxes Payable",0,null,0,null,0,null,0]
["Form 1/1EBS","Balance Sheet CON/EBS","1F32","Amounts Due to Affiliates",0,null,0,null,0,null,0]
["Form 1/1EBS","Balance Sheet CON/EBS","1F33","Accounts Payable and Accrued Liabilities",0,null,0,null,0,null,0]
["Form 1/1EBS","Balance Sheet CON/EBS","1EBS34a","Funds Held under R/I Contracts - Affiliates",null,null,null,null,0,null,0]
["Form 1/1EBS","Balance Sheet CON/EBS","1EBS34b","Funds Held under R/I Contracts - Non-Aff.",null,null,null,null,0,null,0]
["Form 1/1EBS","Balance Sheet CON/EBS","1F34","Funds Held under R/I Contracts",0,null,0]
["Form 1/1EBS","Balance Sheet CON/EBS","1F35","Dividends Payable",0,null,0,null,0,null,0]
["Form 1/1EBS","Balance Sheet CON/EBS","1F36a","Sundry Liabilities - Derivative Instruments",0,null,0,null,0,null,0]
["Form 1/1EBS","Balance Sheet CON/EBS",null,"Sundry Liabilities - Der. Instr. - Non-Hedge Purp.",null,null,null,null,0,null,0]
["Form 1/1EBS","Balance Sheet CON/EBS","1F36b","Sundry Liabilities - SAC - LT - Variable Annuities",0,null,0,null,0,null,0]
["Form 1/1EBS","Balance Sheet CON/EBS","1F36c","Sundry Liabilities - SAC - LT - Other",0,null,0,null,0,null,0]
["Form 1/1EBS","Balance Sheet CON/EBS","1F36d","Sundry Liabilities - SAC - General Business",0,null,0,null,0,null,0]
["Form 1/1EBS","Balance Sheet CON/EBS","1F36e","Sundry Liabilities - Deposit Liabilities",0,null,0,null,0,null,0]
["Form 1/1EBS","Balance Sheet CON/EBS",null,"Sundry Liabilities - Pension Benefit Oblig.",null,null,null,null,0,null,0]
["Form 1/1EBS","Balance Sheet CON/EBS",null,"Sundry Liabilities - Investments Purchased",null,null,null,null,0,null,0]
["Form 1/1EBS","Balance Sheet CON/EBS","1F36f","Sundry Liabilities - Other ",0,null,0,null,0,null,0]
["Form 1/1EBS","Balance Sheet CON/EBS","1F37a","Letters of Credit",0,null,0,null,0,null,0]
["Form 1/1EBS","Balance Sheet CON/EBS","1F37b","Guarantees",0,null,0,null,0,null,0]
["Form 1/1EBS","Balance Sheet CON/EBS","1F37c","Other Instruments",0,null,0,null,0,null,0]
["Form 1/1EBS","Balance Sheet CON/EBS","1EBS40","Economic Capital & Surplus",null,null,null,null,0,null,0]
[]
["Form 1/1EBS","Notes","Form 1EBS","Line 10 - Collaterized Balances",0,null,0,null,0]
["Form 1/1EBS","Notes","Form 1EBS","Line 11(e) - Collaterized Balances",0,null,0,null,0]
["Form 1/1EBS","Notes","Form 1","Line 17c & 27c - Collaterized Balances",0,null,0]
["Form 1/1EBS","Notes","Form 1","Line 11 - Letters of Credit",0,null,0]
["Form 1/1EBS","Notes","Form 1EBS","Line 17cii - Collat. in Favour of Group",null,null,null,null,0]
["Form 1/1EBS","Notes","Form 1EBS","Line 27cii - Collat. in Favour of Group",null,null,null,null,0]
["Form 1/1EBS","Notes","Form 1EBS","Line 27Bcii - Collat. in Favour of Group",null,null,null,null,0]
["Form 1/1EBS","Notes","Form 1EBS","Line 13(j) - Any Other Assets",null,null,null,null,0]
["Form 1/1EBS","Notes","Form 1EBS","Line 36(i) - Any Other Liabilities",null,null,null,null,0]
["Form 1/1EBS","Notes","Form 1EBS","Line 15 - Policy. Oblig. - Cash",0,null,0,null,0,null,0]
["Form 1/1EBS","Notes","Form 1EBS","Line 15 - Policy. Oblig. - Quoted. Inv.",0,null,0,null,0,null,0]
["Form 1/1EBS","Notes","Form 1EBS","Line 15 - Policy. Oblig. - Unquoted. Inv.",0,null,0,null,0,null,0]
["Form 1/1EBS","Notes","Form 1EBS","Line 15 - Policy. Oblig. - Funds Held",0,null,0,null,0,null,0]
["Form 1/1EBS","Notes","Form 1EBS","Line 15 - Policy. Oblig. - Other Assets",0,null,0,null,0,null,0]
["Form 1/1EBS","Notes","Form 1EBS","Line 15 - Policy. Oblig. - Total",0,null,0,null,0,null,0]
["Form 1/1EBS","Notes","Form 1","Line 15 - Other - Cash - Comment",0,null,null,null,0]
["Form 1/1EBS","Notes","Form 1","Line 15 - Other - Quoted. Inv. - Comment",0,null,null,null,0]
["Form 1/1EBS","Notes","Form 1","Line 15 - Other - Unquoted. Inv. - Comment",0,null,null,null,0]
["Form 1/1EBS","Notes","Form 1","Line 15 - Other - Other Assets - Comment",0,null,null,null,0]
["Form 1/1EBS","Notes","Form 1EBS","Line 15 - Other - Cash",0,null,0,null,0,null,0]
["Form 1/1EBS","Notes","Form 1EBS","Line 15 - Other - Quoted. Inv.",0,null,0,null,0,null,0]
["Form 1/1EBS","Notes","Form 1EBS","Line 15 - Other - Unquoted. Inv.",0,null,0,null,0,null,0]
["Form 1/1EBS","Notes","Form 1EBS","Line 15 - Other - Other Assets",0,null,0,null,0,null,0]
["Form 1/1EBS","Notes","Form 1EBS","Line 15 - Other - Total",0,null,0,null,0,null,0]
["Form 1/1EBS","Notes","Form 1EBS","Line 13(e) - Details of Deposit Assets",null,null,null,null,0]
["Form 1/1EBS","Notes","Form 1EBS","Line 36(f) - Details of Deposit Liab.",null,null,null,null,0]
["Form 1/1EBS","Notes","Form 1EBS","Line 37 - Details of Amounts Disclosed",null,null,null,null,0]
["Form 1/1EBS","Notes","Form 1EBS","Line 40 - Recon. 1SFS 40 to EBS 40",null,null,null,null,0]
["Form 1/1EBS","Notes","Form 1EBS","Line 16c - Adj. Counterparty Default",null,null,null,null,0]
["Form 1/1EBS","Notes","Form 1EBS","Line 17ci - Adj. Counterparty Default",null,null,null,null,0]
["Form 1/1EBS","Notes","Form 1EBS","Line 16di - BBNI Premium",null,null,null,null,0,null,0]
["Form 1/1EBS","Notes","Form 1EBS","Line 16dii - BBNI Best Est. Prem",null,null,null,null,0,null,0]
["Form 1/1EBS","Notes","Form 1EBS","Line 17di - Loss Provision Discount",null,null,null,null,0,null,0]
["Form 1/1EBS","Notes","Form 1EBS","Line 17dii - Scenario Based Approach",null,null,null,null,0,null,0]
["Form 1/1EBS","Notes","Form 1EBS","Line 27ci - Adj. Counterparty Default",null,null,null,null,0]
["Form 1/1EBS","Notes","Form 1EBS","Line 27di - Premium in BBNI",null,null,null,null,0,null,0]
["Form 1/1EBS","Notes","Form 1EBS","Line 27dii - Tech Prov. In BBNI",null,null,null,null,0,null,0]
["Form 1/1EBS","Notes","Form 1EBS","Line 27diii - Best Est. that used Trans. Arrang.",null,null,null,null,0,null,0]
["Form 1/1EBS","Notes","Form 1EBS","Line 27div - Best Est. that not used Trans. Arrang.",null,null,null,null,0,null,0]
["Form 1/1EBS","Notes","Form 1EBS","Line 27dv - Scenario Based used",null,null,null,null,0,null,0]
["Form 1/1EBS","Notes","Form 1EBS","Line 27dvi - Scen. Based used Stand. Appro.",null,null,null,null,0,null,0]
["Form 1/1EBS","Notes","Form 1EBS","Line 27dvii - Scen. Based used Base Appro.",null,null,null,null,0,null,0]
["Form 1/1EBS","Notes","Form 1EBS","Line 27Bci - Adj. Counterparty Default",null,null,null,null,0]
["Form 1/1EBS","Notes","Form 1EBS","Line 27Bdi - Premium in BBNI",null,null,null,null,0,null,0]
["Form 1/1EBS","Notes","Form 1EBS","Line 27Bdii - Tech Prov. In BBNI",null,null,null,null,0,null,0]
["Form 1/1EBS","Notes","Form 1","Gross Provision - Beg. Of Year",0,null,0]
["Form 1/1EBS","Notes","Form 1","R/I Recoverable - Beg. Of Year",0,null,0]
["Form 1/1EBS","Notes","Form 1","Net Provision - Beg. Of Year",0,null,0]
["Form 1/1EBS","Notes","Form 1","Acquisition / Sale of loss reserves (net):",0,null,0]
["Form 1/1EBS","Notes","Form 1","Net Losses Incurred - Current Year",0,null,0]
["Form 1/1EBS","Notes","Form 1","Net Losses Incurred - Prior Years",0,null,0]
["Form 1/1EBS","Notes","Form 1","Net Losses Incurred - Total",0,null,0]
["Form 1/1EBS","Notes","Form 1","Losses Paid - Current Year",0,null,0]
["Form 1/1EBS","Notes","Form 1","Losses Paid - Prior Years",0,null,0]
["Form 1/1EBS","Notes","Form 1","Losses Paid - Total",0,null,0]
["Form 1/1EBS","Notes","Form 1","Foreign Exchange and Other",0,null,0]
["Form 1/1EBS","Notes","Form 1","Net Provision - End Of Year",0,null,0]
["Form 1/1EBS","Notes","Form 1","R/I Recoverable - End Of Year",0,null,0]
["Form 1/1EBS","Notes","Form 1","Gross Provision - End Of Year",0,null,0]
["Form 1/1EBS","Notes","Form 1","Gross Provision - Beg. Of Year",0,null,0]
["Form 1/1EBS","Notes","Form 1","R/I Recoverable - Beg. Of Year",0,null,0]
["Form 1/1EBS","Notes","Form 1","Net Provision - Beg. Of Year",0,null,0]
["Form 1/1EBS","Notes","Form 1","Acquisition / Sale of loss reserves (net):",0,null,0]
["Form 1/1EBS","Notes","Form 1","Net Losses Incurred - Current Year",0,null,0]
["Form 1/1EBS","Notes","Form 1","Net Losses Incurred - Prior Years",0,null,0]
["Form 1/1EBS","Notes","Form 1","Net Losses Incurred - Total",0,null,0]
["Form 1/1EBS","Notes","Form 1","Losses Paid - Current Year",0,null,0]
["Form 1/1EBS","Notes","Form 1","Losses Paid - Prior Years",0,null,0]
["Form 1/1EBS","Notes","Form 1","Losses Paid - Total",0,null,0]
["Form 1/1EBS","Notes","Form 1","Net Provision - End Of Year",0,null,0]
["Form 1/1EBS","Notes","Form 1","R/I Recoverable - End Of Year",0,null,0]
["Form 1/1EBS","Notes","Form 1","Gross Provision - End Of Year",0,null,0]
["Form 1/1EBS","Notes","Form 1","Discount Rate on PV Calculations",0,null,0]
["Form 1/1EBS","Notes","Form 1","Aggregated Undiscounted of Liabilities",0,null,0]
["Form 1/1EBS","Notes","Form 1EBS","Best Estimate Provision - Beg. Of Year",null,null,null,null,0,null,0]
["Form 1/1EBS","Notes","Form 1EBS","Unwind of Discount",null,null,null,null,0,null,0]
["Form 1/1EBS","Notes","Form 1EBS","Net Loss Paid - Prior Years",null,null,null,null,0,null,0]
["Form 1/1EBS","Notes","Form 1EBS","Net Losses Incurred - Prior Years",null,null,null,null,0,null,0]
["Form 1/1EBS","Notes","Form 1EBS","Best Estimate Provision - From PY",null,null,null,null,0,null,0]
["Form 1/1EBS","Notes","Form 1EBS","Net Losses Incurred - Current Year",null,null,null,null,0,null,0]
["Form 1/1EBS","Notes","Form 1EBS","Net Loss Paid - Current Year",null,null,null,null,0,null,0]
["Form 1/1EBS","Notes","Form 1EBS","Foreign Exchange and Other",null,null,null,null,0,null,0]
["Form 1/1EBS","Notes","Form 1EBS","Best Estimate Provision - From CY",null,null,null,null,0,null,0]
["Form 1/1EBS","Notes","Form 1EBS","Impact of Change in Discount Curve",null,null,null,null,0,null,0]
["Form 1/1EBS","Notes","Form 1EBS","Best Estimate Provision - End Of Year",null,null,null,null,0,null,0]
[]
[null,null,null,"Income Statement"]
["Form 2","Income Stmt CON","2F1a","Gross Premium Written - Direct",0,null,0]
["Form 2","Income Stmt CON","2F1b","Gross Premium Written - Assumed",0,null,0]
["Form 2","Income Stmt CON","2F2","R/I Premiums Ceded",0,null,0]
["Form 2","Income Stmt CON","2F4","Change in Unearned Premiums",0,null,0]
["Form 2","Income Stmt CON","2F6","Other Insurance Income",0,null,0]
["Form 2","Income Stmt CON","2F8","Net Losses Incurred",0,null,0]
["Form 2","Income Stmt CON","2F9","Commissions & Brokerage",0,null,0]
["Form 2","Income Stmt CON","2F12a","Gross Premium Written - Direct",0,null,0]
["Form 2","Income Stmt CON","2F12b","Gross Premium Written - Assumed",0,null,0]
["Form 2","Income Stmt CON","2F13","R/I Premiums Ceded",0,null,0]
["Form 2","Income Stmt CON","2F14a","NPW - Life",0,null,0]
["Form 2","Income Stmt CON","2F14b","NPW - Annuities",0,null,0]
["Form 2","Income Stmt CON","2F14c","NPW - Accident & Health",0,null,0]
["Form 2","Income Stmt CON","2F15","Other Insurance Income",0,null,0]
["Form 2","Income Stmt CON","2F17","Claims - Life",0,null,0]
["Form 2","Income Stmt CON","2F18","Policyholders' Dividends",0,null,0]
["Form 2","Income Stmt CON","2F19","Surrenders",0,null,0]
["Form 2","Income Stmt CON","2F20","Maturities",0,null,0]
["Form 2","Income Stmt CON","2F21","Annuities",0,null,0]
["Form 2","Income Stmt CON","2F22","Accident & Health Benefits",0,null,0]
["Form 2","Income Stmt CON","2F23","Commissions",0,null,0]
["Form 2","Income Stmt CON","2F24","Other",0,null,0]
["Form 2","Income Stmt CON","2F26a","Change in Policy Reserves - Life",0,null,0]
["Form 2","Income Stmt CON","2F26b","Change in Policy Reserves - Annuities",0,null,0]
["Form 2","Income Stmt CON","2F26c","Change in Policy Reserves - Accid. & Health",0,null,0]
["Form 2","Income Stmt CON","2F30a","Operating Expense - G&A",0,null,0]
["Form 2","Income Stmt CON","2F30b","Operating Expense - Personnel Costs",0,null,0]
["Form 2","Income Stmt CON","2F30c","Operating Expense - Other",0,null,0]
["Form 2","Income Stmt CON","2F31","Investment Income",0,null,0]
["Form 2","Income Stmt CON","2F32","Other Income",0,null,0]
["Form 2","Income Stmt CON","2F34a","Income Tax - Current",0,null,0]
["Form 2","Income Stmt CON","2F34b","Income Tax - Deferred",0,null,0]
["Form 2","Income Stmt CON","2SFS36","Realized Gains/Losses",0,null,0]
["Form 2","Income Stmt CON","2SFS37","Interest Charges",0,null,0]
["Form 2","Income Stmt CON","2F31N1","31. Nature of Material Items Amount - 1",0,null,0]
["Form 2","Income Stmt CON","2F31N2","31. Nature of Material Items Amount - 2",0,null,0]
["Form 2","Income Stmt CON","2F31N3","31. Nature of Material Items Amount - 3",0,null,0]
["Form 2","Income Stmt CON","2F31N4","31. Nature of Material Items Amount - 4",0,null,0]
["Form 2","Income Stmt CON","2F31N5","31. Nature of Material Items Amount - 5",0,null,0]
["Form 2","Income Stmt CON","2F31N6","31. Nature of Material Items Amount - 6",0,null,0]
["Form 2","Income Stmt CON","2F31N7","31. Nature of Material Items Amount - 7",0,null,0]
["Form 2","Income Stmt CON","2F31N8","31. Nature of Material Items Amount - 8",0,null,0]
["Form 2","Income Stmt CON","2F31N9","31. Nature of Material Items Amount - Total",0,null,0]
["Form 2","Income Stmt CON","2F31Com1","31. Nature of Material Items - 1",0]
["Form 2","Income Stmt CON","2F31Com2","31. Nature of Material Items - 2",0]
["Form 2","Income Stmt CON","2F31Com3","31. Nature of Material Items - 3",0]
["Form 2","Income Stmt CON","2F31Com4","31. Nature of Material Items - 4",0]
["Form 2","Income Stmt CON","2F31Com5","31. Nature of Material Items - 5",0]
["Form 2","Income Stmt CON","2F31Com6","31. Nature of Material Items - 6",0]
["Form 2","Income Stmt CON","2F31Com7","31. Nature of Material Items - 7",0]
["Form 2","Income Stmt CON","2F31Com8","31. Nature of Material Items - 8",0]
["Form 2","Income Stmt CON","2F32N1","32. Nature of Material Items Amount - 1",0,null,0]
["Form 2","Income Stmt CON","2F32N2","32. Nature of Material Items Amount - 2",0,null,0]
["Form 2","Income Stmt CON","2F32N3","32. Nature of Material Items Amount - 3",0,null,0]
["Form 2","Income Stmt CON","2F32N4","32. Nature of Material Items Amount - 4",0,null,0]
["Form 2","Income Stmt CON","2F32N5","32. Nature of Material Items Amount - 5",0,null,0]
["Form 2","Income Stmt CON","2F32N6","32. Nature of Material Items Amount - 6",0,null,0]
["Form 2","Income Stmt CON","2F32N7","32. Nature of Material Items Amount - 7",0,null,0]
["Form 2","Income Stmt CON","2F32N8","32. Nature of Material Items Amount - 8",0,null,0]
["Form 2","Income Stmt CON","2F32N9","32. Nature of Material Items Amount - Total",0,null,0]
["Form 2","Income Stmt CON","2F32Com1","32. Nature of Material Items - 1",0]
["Form 2","Income Stmt CON","2F32Com2","32. Nature of Material Items - 2",0]
["Form 2","Income Stmt CON","2F32Com3","32. Nature of Material Items - 3",0]
["Form 2","Income Stmt CON","2F32Com4","32. Nature of Material Items - 4",0]
["Form 2","Income Stmt CON","2F32Com5","32. Nature of Material Items - 5",0]
["Form 2","Income Stmt CON","2F32Com6","32. Nature of Material Items - 6",0]
["Form 2","Income Stmt CON","2F32Com7","32. Nature of Material Items - 7",0]
["Form 2","Income Stmt CON","2F32Com8","32. Nature of Material Items - 8",0]
["Form 2","Income Stmt CON","2F36N1","36. Nature of Material Items Amount - 1",0,null,0]
["Form 2","Income Stmt CON","2F36N2","36. Nature of Material Items Amount - 2",0,null,0]
["Form 2","Income Stmt CON","2F36N3","36. Nature of Material Items Amount - 3",0,null,0]
["Form 2","Income Stmt CON","2F36N4","36. Nature of Material Items Amount - 4",0,null,0]
["Form 2","Income Stmt CON","2F36N5","36. Nature of Material Items Amount - 5",0,null,0]
["Form 2","Income Stmt CON","2F36N6","36. Nature of Material Items Amount - 6",0,null,0]
["Form 2","Income Stmt CON","2F36N7","36. Nature of Material Items Amount - 7",0,null,0]
["Form 2","Income Stmt CON","2F36N8","36. Nature of Material Items Amount - 8",0,null,0]
["Form 2","Income Stmt CON","2F36N9","36. Nature of Material Items Amount - Total",0,null,0]
["Form 2","Income Stmt CON","2F36Com1","36. Nature of Material Items - 1",0]
["Form 2","Income Stmt CON","2F36Com2","36. Nature of Material Items - 2",0]
["Form 2","Income Stmt CON","2F36Com3","36. Nature of Material Items - 3",0]
["Form 2","Income Stmt CON","2F36Com4","36. Nature of Material Items - 4",0]
["Form 2","Income Stmt CON","2F36Com5","36. Nature of Material Items - 5",0]
["Form 2","Income Stmt CON","2F36Com6","36. Nature of Material Items - 6",0]
["Form 2","Income Stmt CON","2F36Com7","36. Nature of Material Items - 7",0]
["Form 2","Income Stmt CON","2F36Com8","36. Nature of Material Items - 8",0]
[]
[null,null,null,"Statement of Capital & Surplus"]
["Form 8","Stmt of C&S CON","8F1ai","Capital Stock",0,null,0]
["Form 8","Stmt of C&S CON","8F1aiiA","Preferred Shares",0,null,0]
["Form 8","Stmt of C&S CON","8F1aiiB","Preferred Shares - Subsidiary",0,null,0]
["Form 8","Stmt of C&S CON","8F1aiii","Treasury Shares",0,null,0]
["Form 8","Stmt of C&S CON","8F1b","Contributed Surplus",0,null,0]
["Form 8","Stmt of C&S CON","8F1ci","Other Fixed Capital - Hybrid Instruments",0,null,0]
["Form 8","Stmt of C&S CON","8F1cii","Other Fixed Capital - Guarantees & Others",0,null,0]
["Form 8","Stmt of C&S CON","8F2a","Statutory Surplus - Beginning of Year",0,null,0]
["Form 8","Stmt of C&S CON","8F2c","Dividends",0,null,0]
["Form 8","Stmt of C&S CON","8F2d","Unrealized Change in Investments",0,null,0]
["Form 8","Stmt of C&S CON","8F2e","Change in Non-Admitted Assets",0,null,0]
["Form 8","Stmt of C&S CON","8F2f","Change in Real Estate",0,null,0]
["Form 8","Stmt of C&S CON","8F2g","Change in Other Statutory Capital",0,null,0]
["Form 8","Stmt of C&S CON","8F3","Minority Interest",0,null,0]
[]
[null,null,null,"IFRS Balance Sheet"]
["Form 1A","Balance Sheet CON","1A1","Cash and Cash Equivalents",{"$f":"'Form 1'!F10","v":0},null,{"$f":"'Form 1'!H10","v":0}]
["Form 1A","Balance Sheet CON","1A2ai","Quoted - Bonds - Held to Maturity",{"$f":"'Form 1'!F14","v":0},null,{"$f":"'Form 1'!H14","v":0}]
["Form 1A","Balance Sheet CON","1A2aii","Quoted - Bonds - Other",{"$f":"'Form 1'!F15","v":0},null,{"$f":"'Form 1'!H15","v":0}]
["Form 1A","Balance Sheet CON","1A2ci","Quoted - Equities - Common Stocks",{"$f":"'Form 1'!F18","v":0},null,{"$f":"'Form 1'!H18","v":0}]
["Form 1A","Balance Sheet CON","1A2cii","Quoted - Equities - Preferred Stocks",{"$f":"'Form 1'!F19","v":0},null,{"$f":"'Form 1'!H19","v":0}]
["Form 1A","Balance Sheet CON","1A2ciii","Quoted - Equities - Mutual Funds",{"$f":"'Form 1'!F20","v":0},null,{"$f":"'Form 1'!H20","v":0}]
["Form 1A","Balance Sheet CON","1A2e","Quoted - Other Investments",{"$f":"'Form 1'!F22","v":0},null,{"$f":"'Form 1'!H22","v":0}]
["Form 1A","Balance Sheet CON","1A3ai","Unquoted - Bonds - Held to Maturity",{"$f":"'Form 1'!F27","v":0},null,{"$f":"'Form 1'!H27","v":0}]
["Form 1A","Balance Sheet CON","1A3aii","Unquoted - Bonds - Other",{"$f":"'Form 1'!F28","v":0},null,{"$f":"'Form 1'!H28","v":0}]
["Form 1A","Balance Sheet CON","1A3ci","Unquoted - Equities - Common Stocks",{"$f":"'Form 1'!F31","v":0},null,{"$f":"'Form 1'!H31","v":0}]
["Form 1A","Balance Sheet CON","1A3cii","Unquoted - Equities - Preferred Stocks",{"$f":"'Form 1'!F32","v":0},null,{"$f":"'Form 1'!H32","v":0}]
["Form 1A","Balance Sheet CON","1A3ciii","Unquoted - Equities - Mutual Funds",{"$f":"'Form 1'!F33","v":0},null,{"$f":"'Form 1'!H33","v":0}]
["Form 1A","Balance Sheet CON","1A3e","Unquoted - Other Investments",{"$f":"'Form 1'!F35","v":0},null,{"$f":"'Form 1'!H35","v":0}]
["Form 1A","Balance Sheet CON","1A4a","Inv. In Affiliates - Unregulated Ancillary",{"$f":"'Form 1'!F39","v":0},null,{"$f":"'Form 1'!H39","v":0}]
["Form 1A","Balance Sheet CON","1A4b","Inv. In Affiliates - Unregulated Non-Fin. Oper.",{"$f":"'Form 1'!F40","v":0},null,{"$f":"'Form 1'!H40","v":0}]
["Form 1A","Balance Sheet CON","1A4c","Inv. In Affiliates - Unregulated Fin. Operating",{"$f":"'Form 1'!F41","v":0},null,{"$f":"'Form 1'!H41","v":0}]
["Form 1A","Balance Sheet CON","1A4d","Inv. In Affiliates - Regulated Non-Insurance",{"$f":"'Form 1'!F42","v":0},null,{"$f":"'Form 1'!H42","v":0}]
["Form 1A","Balance Sheet CON","1A4e","Inv. In Affiliates - Regulated Insurance",{"$f":"'Form 1'!F43","v":0},null,{"$f":"'Form 1'!H43","v":0}]
["Form 1A","Balance Sheet CON","1A4g","Advances To Affiliates",{"$f":"'Form 1'!F45","v":0},null,{"$f":"'Form 1'!H45","v":0}]
["Form 1A","Balance Sheet CON","1A5a","Inv. In Mortg. Loans on Real Estate - 1st Lien",{"$f":"'Form 1'!F49","v":0},null,{"$f":"'Form 1'!H49","v":0}]
["Form 1A","Balance Sheet CON","1A5b","Inv. In Mortg. Loans on Real Estate - Other",{"$f":"'Form 1'!F50","v":0},null,{"$f":"'Form 1'!H50","v":0}]
["Form 1A","Balance Sheet CON","1A7a","Real Estate - Occupied by Company",{"$f":"'Form 1'!F56","v":0},null,{"$f":"'Form 1'!H56","v":0}]
["Form 1A","Balance Sheet CON","1A7b","Real Estate - Other",{"$f":"'Form 1'!F57","v":0},null,{"$f":"'Form 1'!H57","v":0}]
["Form 1A","Balance Sheet CON","1A8","Collateral Loans",{"$f":"'Form 1'!F60","v":0},null,{"$f":"'Form 1'!H60","v":0}]
["Form 1A","Balance Sheet CON","1A9","Investment Income Due and Accrued",{"$f":"'Form 1'!F62","v":0},null,{"$f":"'Form 1'!H62","v":0}]
["Form 1A","Balance Sheet CON","1A10","Accounts Receivable",0,null,0]
["Form 1A","Balance Sheet CON","1A11a","Insurance Contract Assets",0,null,0]
["Form 1A","Balance Sheet CON","1A11b","Reinsurance Contract Assets",0,null,0]
["Form 1A","Balance Sheet CON","1A11c","Investment Contracts with DPF Assets",0,null,0]
["Form 1A","Balance Sheet CON","1A13a","Sundry Assets - Derivatives",{"$f":"'Form 1'!F80","v":0},null,{"$f":"'Form 1'!H80","v":0}]
["Form 1A","Balance Sheet CON","1A13b","Sundry Assets - SAC - LT- Variable Annuities",{"$f":"'Form 1'!F81","v":0},null,{"$f":"'Form 1'!H81","v":0}]
["Form 1A","Balance Sheet CON","1A13c","Sundry Assets - SAC - LT- Others",{"$f":"'Form 1'!F82","v":0},null,{"$f":"'Form 1'!H82","v":0}]
["Form 1A","Balance Sheet CON","1A13d","Sundry Assets - SAC - General Business",{"$f":"'Form 1'!F83","v":0},null,{"$f":"'Form 1'!H83","v":0}]
["Form 1A","Balance Sheet CON","1A13e","Sundry Assets - Deposit Assets",{"$f":"'Form 1'!F84","v":0},null,{"$f":"'Form 1'!H84","v":0}]
["Form 1A","Balance Sheet CON","1A13f","Sundry Assets - Net Rec. for Investments",0,null,0]
["Form 1A","Balance Sheet CON","1A13g","Sundry Assets - Other 1",{"$f":"'Form 1'!F85","v":0},null,{"$f":"'Form 1'!H85","v":0}]
["Form 1A","Balance Sheet CON","1A13h","Sundry Assets - Other 2",0,null,0]
["Form 1A","Balance Sheet CON","1A13i","Sundry Assets - Other 3",0,null,0]
["Form 1A","Balance Sheet CON","1A14a","Letters of Credit",{"$f":"'Form 1'!F89","v":0},null,{"$f":"'Form 1'!H89","v":0}]
["Form 1A","Balance Sheet CON","1A14b","Guarantees",{"$f":"'Form 1'!F90","v":0},null,{"$f":"'Form 1'!H90","v":0}]
["Form 1A","Balance Sheet CON","1A14c","Other Instruments",{"$f":"'Form 1'!F91","v":0},null,{"$f":"'Form 1'!H91","v":0}]
["Form 1A","Balance Sheet CON","1A15","Total Assets",{"$f":"'Form 1'!F94","v":0},null,{"$f":"'Form 1'!H94","v":0}]
["Form 1A","Balance Sheet CON","1A17","General Business Insurance Contract Liabilities",0,null,0]
["Form 1A","Balance Sheet CON","1A17A","General Business Reinsurance Contract Liabilities",0,null,0]
["Form 1A","Balance Sheet CON","1A18","Investment Contracts with DPF Liabilities",0,null,0]
["Form 1A","Balance Sheet CON","1A27","Long-Term Business Insurance Contract Liabilities",0,null,0]
["Form 1A","Balance Sheet CON","1A27A","Long-Term Business Reinsurance Contract Liabilities",0,null,0]
["Form 1A","Balance Sheet CON","1A29","Commissions, Expenses and Taxes Payable",{"$f":"'Form 1'!F147","v":0},null,{"$f":"'Form 1'!H147","v":0}]
["Form 1A","Balance Sheet CON","1A30","Loans and Notes Payable",{"$f":"'Form 1'!F149","v":0},null,{"$f":"'Form 1'!H149","v":0}]
["Form 1A","Balance Sheet CON","1A31a","Income Taxes Payable",{"$f":"'Form 1'!F151","v":0},null,{"$f":"'Form 1'!H151","v":0}]
["Form 1A","Balance Sheet CON","1A31b","Deferred Taxes Payable",{"$f":"'Form 1'!F153","v":0},null,{"$f":"'Form 1'!H153","v":0}]
["Form 1A","Balance Sheet CON","1A32","Amounts Due to Affiliates",{"$f":"'Form 1'!F155","v":0},null,{"$f":"'Form 1'!H155","v":0}]
["Form 1A","Balance Sheet CON","1A33","Accounts Payable and Accrued Liabilities",{"$f":"'Form 1'!F157","v":0},null,{"$f":"'Form 1'!H157","v":0}]
["Form 1A","Balance Sheet CON","1A35","Dividends Payable",{"$f":"'Form 1'!F161","v":0},null,{"$f":"'Form 1'!H161","v":0}]
["Form 1A","Balance Sheet CON","1A36a","Sundry Liabilities - Derivative Instruments",{"$f":"'Form 1'!F164","v":0},null,{"$f":"'Form 1'!H164","v":0}]
["Form 1A","Balance Sheet CON","1A36b","Sundry Liabilities - Seg. Accounts",{"$f":"'Form 1'!F165+'Form 1'!F166+'Form 1'!F167","v":0},null,{"$f":"'Form 1'!H165+'Form 1'!H166+'Form 1'!H167","v":0}]
["Form 1A","Balance Sheet CON","1A36c","Sundry Liabilities - Deposit Liabilities",{"$f":"'Form 1'!F168","v":0},null,{"$f":"'Form 1'!H168","v":0}]
["Form 1A","Balance Sheet CON","1A36d","Sundry Liabilities - Investments Purchased",0,null,0]
["Form 1A","Balance Sheet CON","1A36e","Sundry Liabilities - Other 1",{"$f":"'Form 1'!F169","v":0},null,{"$f":"'Form 1'!H169","v":0}]
["Form 1A","Balance Sheet CON","1A36f","Sundry Liabilities - Other 2",0,null,0]
["Form 1A","Balance Sheet CON","1A36g","Sundry Liabilities - Other 3",0,null,0]
["Form 1A","Balance Sheet CON","1A37a","Letters of Credit",{"$f":"'Form 1'!F173","v":0},null,{"$f":"'Form 1'!H173","v":0}]
["Form 1A","Balance Sheet CON","1A37b","Guarantees",{"$f":"'Form 1'!F174","v":0},null,{"$f":"'Form 1'!H174","v":0}]
["Form 1A","Balance Sheet CON","1A37c","Other Instruments",{"$f":"'Form 1'!F175","v":0},null,{"$f":"'Form 1'!H175","v":0}]
[]
["Form 1A","Notes","Form 1A","Premium Receivable - in course of collection",0,null,0]
["Form 1A","Notes","Form 1A","Premium Receivable - Deferred not yet due",0,null,0]
["Form 1A","Notes","Form 1A","Premium Receivable - receivable from retrocessional contracts",0,null,0]
["Form 1A","Notes","Form 1A","Premium Receivable - Total",0,null,0]
["Form 1A","Notes","Form 1A","Reinsurance Balances Receivable",0,null,0]
["Form 1A","Notes","Form 1A","Funds Held by Ceding Reinsurers",0,null,0]
["Form 1A","Notes","Form 1A","Line 10 - Collaterized Balances",0,null,0]
["Form 1A","Notes","Form 1A","Line 13(a) Natue of Sundry Assets",0]
["Form 1A","Notes","Form 1A","Line 13(b)(i) Description of Derivatives policies",0]
["Form 1A","Notes","Form 1A","Line 13(b)(ii) MV and Nominal Exposure of derivatives",0]
["Form 1A","Notes","Form 1A","Line 15 - Policy. Oblig. - Cash",0,null,0]
["Form 1A","Notes","Form 1A","Line 15 - Policy. Oblig. - Quoted. Inv.",0,null,0]
["Form 1A","Notes","Form 1A","Line 15 - Policy. Oblig. - Unquoted. Inv.",0,null,0]
["Form 1A","Notes","Form 1A","Line 15 - Policy. Oblig. - Other Assets",0,null,0]
["Form 1A","Notes","Form 1A","Line 15 - Policy. Oblig. - Total",0,null,0]
["Form 1A","Notes","Form 1A","Line 15 - Other - Cash",0,null,0]
["Form 1A","Notes","Form 1A","Line 15 - Other - Quoted. Inv.",0,null,0]
["Form 1A","Notes","Form 1A","Line 15 - Other - Unquoted. Inv.",0,null,0]
["Form 1A","Notes","Form 1A","Line 15 - Other - Other Assets",0,null,0]
["Form 1A","Notes","Form 1A","Line 15 - Other - Total",0,null,0]
["Form 1A","Notes","Form 1A","Line 36(a) Natue of Sundry Liabilities",0]
["Form 1A","Notes","Form 1A","Line 13(b)(i) Description of Derivatives policies",0]
["Form 1A","Notes","Form 1A","Line 13(b)(ii) MV and Nominal Exposure of derivatives",0]
["Form 1A","Notes","Form 1A","Line 37 - LOC's & Guarantees",0,null,0]
["Form 1A","Notes","Form 1A","L17 - PAA Exc. Loss Comp - Open Assets",0]
["Form 1A","Notes","Form 1A","L17 - PAA Exc. Loss Comp - Open Liabilities",0]
["Form 1A","Notes","Form 1A","L17 - PAA Exc. Loss Comp - Net Open",0]
["Form 1A","Notes","Form 1A","L17 - PAA Exc. Loss Comp - Insurance Revenue",0]
["Form 1A","Notes","Form 1A","L17 - PAA Exc. Loss Comp - Amort. Cash Flows",0]
["Form 1A","Notes","Form 1A","L17 - PAA Exc. Loss Comp - Incurred Claims",0]
["Form 1A","Notes","Form 1A","L17 - PAA Exc. Loss Comp - Losses on enerous contracts",0]
["Form 1A","Notes","Form 1A","L17 - PAA Exc. Loss Comp - Adj to Liabilities for Incurred Claims",0]
["Form 1A","Notes","Form 1A","L17 - PAA Exc. Loss Comp - Total Insurance Service Expenses",0]
["Form 1A","Notes","Form 1A","L17 - PAA Exc. Loss Comp - Investment Components",0]
["Form 1A","Notes","Form 1A","L17 - PAA Exc. Loss Comp - Insurance Service Results",0]
["Form 1A","Notes","Form 1A","L17 - PAA Exc. Loss Comp - Net finance expenses",0]
["Form 1A","Notes","Form 1A","L17 - PAA Exc. Loss Comp - Foreign Exchange",0]
["Form 1A","Notes","Form 1A","L17 - PAA Exc. Loss Comp - Change in Profit or Loss",0]
["Form 1A","Notes","Form 1A","L17 - PAA Exc. Loss Comp - CF Premium Received",0]
["Form 1A","Notes","Form 1A","L17 - PAA Exc. Loss Comp - CF Insurance Acquisition",0]
["Form 1A","Notes","Form 1A","L17 - PAA Exc. Loss Comp - CF Claims Paid",0]
["Form 1A","Notes","Form 1A","L17 - PAA Exc. Loss Comp - Total CF",0]
["Form 1A","Notes","Form 1A","L17 - PAA Exc. Loss Comp - Contracts Trans. Acquisition Sub.",0]
["Form 1A","Notes","Form 1A","L17 - PAA Exc. Loss Comp - Contracts Trans. Disposal Sub.",0]
["Form 1A","Notes","Form 1A","L17 - PAA Exc. Loss Comp - Net Closing Balance",0]
["Form 1A","Notes","Form 1A","L17 - PAA Exc. Loss Comp - Closing Assets",0]
["Form 1A","Notes","Form 1A","L17 - PAA Exc. Loss Comp - Closing Liabilities",0]
["Form 1A","Notes","Form 1A","L17 - PAA Exc. Loss Comp - Net Closing Balance",0]
["Form 1A","Notes","Form 1A","L17 - PAA Loss Comp - Open Assets",0]
["Form 1A","Notes","Form 1A","L17 - PAA Loss Comp - Open Liabilities",0]
["Form 1A","Notes","Form 1A","L17 - PAA Loss Comp - Net Open",0]
["Form 1A","Notes","Form 1A","L17 - PAA Loss Comp - Insurance Revenue",0]
["Form 1A","Notes","Form 1A","L17 - PAA Loss Comp - Amort. Cash Flows",0]
["Form 1A","Notes","Form 1A","L17 - PAA Loss Comp - Incurred Claims",0]
["Form 1A","Notes","Form 1A","L17 - PAA Loss Comp - Losses on enerous contracts",0]
["Form 1A","Notes","Form 1A","L17 - PAA Loss Comp - Adj to Liabilities for Incurred Claims",0]
["Form 1A","Notes","Form 1A","L17 - PAA Loss Comp - Total Insurance Service Expenses",0]
["Form 1A","Notes","Form 1A","L17 - PAA Loss Comp - Investment Components",0]
["Form 1A","Notes","Form 1A","L17 - PAA Loss Comp - Insurance Service Results",0]
["Form 1A","Notes","Form 1A","L17 - PAA Loss Comp - Net finance expenses",0]
["Form 1A","Notes","Form 1A","L17 - PAA Loss Comp - Foreign Exchange",0]
["Form 1A","Notes","Form 1A","L17 - PAA Loss Comp - Change in Profit or Loss",0]
["Form 1A","Notes","Form 1A","L17 - PAA Loss Comp - CF Premium Received",0]
["Form 1A","Notes","Form 1A","L17 - PAA Loss Comp - CF Insurance Acquisition",0]
["Form 1A","Notes","Form 1A","L17 - PAA Loss Comp - CF Claims Paid",0]
["Form 1A","Notes","Form 1A","L17 - PAA Loss Comp - Total CF",0]
["Form 1A","Notes","Form 1A","L17 - PAA Loss Comp - Contracts Trans. Acquisition Sub.",0]
["Form 1A","Notes","Form 1A","L17 - PAA Loss Comp - Contracts Trans. Disposal Sub.",0]
["Form 1A","Notes","Form 1A","L17 - PAA Loss Comp - Net Closing Balance",0]
["Form 1A","Notes","Form 1A","L17 - PAA Loss Comp - Closing Assets",0]
["Form 1A","Notes","Form 1A","L17 - PAA Loss Comp - Closing Liabilities",0]
["Form 1A","Notes","Form 1A","L17 - PAA Loss Comp - Net Closing Balance",0]
["Form 1A","Notes","Form 1A","L17 - GMM Liab. for Incurred - Open Assets",0]
["Form 1A","Notes","Form 1A","L17 - GMM Liab. for Incurred - Open Liabilities",0]
["Form 1A","Notes","Form 1A","L17 - GMM Liab. for Incurred - Net Open",0]
["Form 1A","Notes","Form 1A","L17 - GMM Liab. for Incurred - Insurance Revenue",0]
["Form 1A","Notes","Form 1A","L17 - GMM Liab. for Incurred - Amort. Cash Flows",0]
["Form 1A","Notes","Form 1A","L17 - GMM Liab. for Incurred - Incurred Claims",0]
["Form 1A","Notes","Form 1A","L17 - GMM Liab. for Incurred - Losses on enerous contracts",0]
["Form 1A","Notes","Form 1A","L17 - GMM Liab. for Incurred - Adj to Liabilities for Incurred Claims",0]
["Form 1A","Notes","Form 1A","L17 - GMM Liab. for Incurred - Total Insurance Service Expenses",0]
["Form 1A","Notes","Form 1A","L17 - GMM Liab. for Incurred - Investment Components",0]
["Form 1A","Notes","Form 1A","L17 - GMM Liab. for Incurred - Insurance Service Results",0]
["Form 1A","Notes","Form 1A","L17 - GMM Liab. for Incurred - Net finance expenses",0]
["Form 1A","Notes","Form 1A","L17 - GMM Liab. for Incurred - Foreign Exchange",0]
["Form 1A","Notes","Form 1A","L17 - GMM Liab. for Incurred - Change in Profit or Loss",0]
["Form 1A","Notes","Form 1A","L17 - GMM Liab. for Incurred - CF Premium Received",0]
["Form 1A","Notes","Form 1A","L17 - GMM Liab. for Incurred - CF Insurance Acquisition",0]
["Form 1A","Notes","Form 1A","L17 - GMM Liab. for Incurred - CF Claims Paid",0]
["Form 1A","Notes","Form 1A","L17 - GMM Liab. for Incurred - Total CF",0]
["Form 1A","Notes","Form 1A","L17 - GMM Liab. for Incurred - Contracts Trans. Acquisition Sub.",0]
["Form 1A","Notes","Form 1A","L17 - GMM Liab. for Incurred - Contracts Trans. Disposal Sub.",0]
["Form 1A","Notes","Form 1A","L17 - GMM Liab. for Incurred - Net Closing Balance",0]
["Form 1A","Notes","Form 1A","L17 - GMM Liab. for Incurred - Closing Assets",0]
["Form 1A","Notes","Form 1A","L17 - GMM Liab. for Incurred - Closing Liabilities",0]
["Form 1A","Notes","Form 1A","L17 - GMM Liab. for Incurred - Net Closing Balance",0]
["Form 1A","Notes","Form 1A","L17 - GMM PV Cash Flow - Open Assets",0]
["Form 1A","Notes","Form 1A","L17 - GMM PV Cash Flow - Open Liabilities",0]
["Form 1A","Notes","Form 1A","L17 - GMM PV Cash Flow - Net Open",0]
["Form 1A","Notes","Form 1A","L17 - GMM PV Cash Flow - Insurance Revenue",0]
["Form 1A","Notes","Form 1A","L17 - GMM PV Cash Flow - Amort. Cash Flows",0]
["Form 1A","Notes","Form 1A","L17 - GMM PV Cash Flow - Incurred Claims",0]
["Form 1A","Notes","Form 1A","L17 - GMM PV Cash Flow - Losses on enerous contracts",0]
["Form 1A","Notes","Form 1A","L17 - GMM PV Cash Flow - Adj to Liabilities for Incurred Claims",0]
["Form 1A","Notes","Form 1A","L17 - GMM PV Cash Flow - Total Insurance Service Expenses",0]
["Form 1A","Notes","Form 1A","L17 - GMM PV Cash Flow - Investment Components",0]
["Form 1A","Notes","Form 1A","L17 - GMM PV Cash Flow - Insurance Service Results",0]
["Form 1A","Notes","Form 1A","L17 - GMM PV Cash Flow - Net finance expenses",0]
["Form 1A","Notes","Form 1A","L17 - GMM PV Cash Flow - Foreign Exchange",0]
["Form 1A","Notes","Form 1A","L17 - GMM PV Cash Flow - Change in Profit or Loss",0]
["Form 1A","Notes","Form 1A","L17 - GMM PV Cash Flow - CF Premium Received",0]
["Form 1A","Notes","Form 1A","L17 - GMM PV Cash Flow - CF Insurance Acquisition",0]
["Form 1A","Notes","Form 1A","L17 - GMM PV Cash Flow - CF Claims Paid",0]
["Form 1A","Notes","Form 1A","L17 - GMM PV Cash Flow - Total CF",0]
["Form 1A","Notes","Form 1A","L17 - GMM PV Cash Flow - Contracts Trans. Acquisition Sub.",0]
["Form 1A","Notes","Form 1A","L17 - GMM PV Cash Flow - Contracts Trans. Disposal Sub.",0]
["Form 1A","Notes","Form 1A","L17 - GMM PV Cash Flow - Net Closing Balance",0]
["Form 1A","Notes","Form 1A","L17 - GMM PV Cash Flow - Closing Assets",0]
["Form 1A","Notes","Form 1A","L17 - GMM PV Cash Flow - Closing Liabilities",0]
["Form 1A","Notes","Form 1A","L17 - GMM PV Cash Flow - Net Closing Balance",0]
["Form 1A","Notes","Form 1A","L17 - GMM Risk Adj - Open Assets",0]
["Form 1A","Notes","Form 1A","L17 - GMM Risk Adj - Open Liabilities",0]
["Form 1A","Notes","Form 1A","L17 - GMM Risk Adj - Net Open",0]
["Form 1A","Notes","Form 1A","L17 - GMM Risk Adj - Insurance Revenue",0]
["Form 1A","Notes","Form 1A","L17 - GMM Risk Adj - Amort. Cash Flows",0]
["Form 1A","Notes","Form 1A","L17 - GMM Risk Adj - Incurred Claims",0]
["Form 1A","Notes","Form 1A","L17 - GMM Risk Adj - Losses on enerous contracts",0]
["Form 1A","Notes","Form 1A","L17 - GMM Risk Adj - Adj to Liabilities for Incurred Claims",0]
["Form 1A","Notes","Form 1A","L17 - GMM Risk Adj - Total Insurance Service Expenses",0]
["Form 1A","Notes","Form 1A","L17 - GMM Risk Adj - Investment Components",0]
["Form 1A","Notes","Form 1A","L17 - GMM Risk Adj - Insurance Service Results",0]
["Form 1A","Notes","Form 1A","L17 - GMM Risk Adj - Net finance expenses",0]
["Form 1A","Notes","Form 1A","L17 - GMM Risk Adj - Foreign Exchange",0]
["Form 1A","Notes","Form 1A","L17 - GMM Risk Adj - Change in Profit or Loss",0]
["Form 1A","Notes","Form 1A","L17 - GMM Risk Adj - CF Premium Received",0]
["Form 1A","Notes","Form 1A","L17 - GMM Risk Adj - CF Insurance Acquisition",0]
["Form 1A","Notes","Form 1A","L17 - GMM Risk Adj - CF Claims Paid",0]
["Form 1A","Notes","Form 1A","L17 - GMM Risk Adj - Total CF",0]
["Form 1A","Notes","Form 1A","L17 - GMM Risk Adj - Contracts Trans. Acquisition Sub.",0]
["Form 1A","Notes","Form 1A","L17 - GMM Risk Adj - Contracts Trans. Disposal Sub.",0]
["Form 1A","Notes","Form 1A","L17 - GMM Risk Adj - Net Closing Balance",0]
["Form 1A","Notes","Form 1A","L17 - GMM Risk Adj - Closing Assets",0]
["Form 1A","Notes","Form 1A","L17 - GMM Risk Adj - Closing Liabilities",0]
["Form 1A","Notes","Form 1A","L17 - GMM Risk Adj - Net Closing Balance",0]
["Form 1A","Notes","Form 1A","L27 - PAA Exc. Loss Comp - Open Assets",0]
["Form 1A","Notes","Form 1A","L27 - PAA Exc. Loss Comp - Open Liabilities",0]
["Form 1A","Notes","Form 1A","L27 - PAA Exc. Loss Comp - Net Open",0]
["Form 1A","Notes","Form 1A","L27 - PAA Exc. Loss Comp - Insurance Revenue",0]
["Form 1A","Notes","Form 1A","L27 - PAA Exc. Loss Comp - Amort. Cash Flows",0]
["Form 1A","Notes","Form 1A","L27 - PAA Exc. Loss Comp - Incurred Claims",0]
["Form 1A","Notes","Form 1A","L27 - PAA Exc. Loss Comp - Losses on enerous contracts",0]
["Form 1A","Notes","Form 1A","L27 - PAA Exc. Loss Comp - Adj to Liabilities for Incurred Claims",0]
["Form 1A","Notes","Form 1A","L27 - PAA Exc. Loss Comp - Total Insurance Service Expenses",0]
["Form 1A","Notes","Form 1A","L27 - PAA Exc. Loss Comp - Investment Components",0]
["Form 1A","Notes","Form 1A","L27 - PAA Exc. Loss Comp - Insurance Service Results",0]
["Form 1A","Notes","Form 1A","L27 - PAA Exc. Loss Comp - Net finance expenses",0]
["Form 1A","Notes","Form 1A","L27 - PAA Exc. Loss Comp - Foreign Exchange",0]
["Form 1A","Notes","Form 1A","L27 - PAA Exc. Loss Comp - Change in Profit or Loss",0]
["Form 1A","Notes","Form 1A","L27 - PAA Exc. Loss Comp - CF Premium Received",0]
["Form 1A","Notes","Form 1A","L27 - PAA Exc. Loss Comp - CF Insurance Acquisition",0]
["Form 1A","Notes","Form 1A","L27 - PAA Exc. Loss Comp - CF Claims Paid",0]
["Form 1A","Notes","Form 1A","L27 - PAA Exc. Loss Comp - Total CF",0]
["Form 1A","Notes","Form 1A","L27 - PAA Exc. Loss Comp - Contracts Trans. Acquisition Sub.",0]
["Form 1A","Notes","Form 1A","L27 - PAA Exc. Loss Comp - Contracts Trans. Disposal Sub.",0]
["Form 1A","Notes","Form 1A","L27 - PAA Exc. Loss Comp - Net Closing Balance",0]
["Form 1A","Notes","Form 1A","L27 - PAA Exc. Loss Comp - Closing Assets",0]
["Form 1A","Notes","Form 1A","L27 - PAA Exc. Loss Comp - Closing Liabilities",0]
["Form 1A","Notes","Form 1A","L27 - PAA Exc. Loss Comp - Net Closing Balance",0]
["Form 1A","Notes","Form 1A","L27 - PAA Loss Comp - Open Assets",0]
["Form 1A","Notes","Form 1A","L27 - PAA Loss Comp - Open Liabilities",0]
["Form 1A","Notes","Form 1A","L27 - PAA Loss Comp - Net Open",0]
["Form 1A","Notes","Form 1A","L27 - PAA Loss Comp - Insurance Revenue",0]
["Form 1A","Notes","Form 1A","L27 - PAA Loss Comp - Amort. Cash Flows",0]
["Form 1A","Notes","Form 1A","L27 - PAA Loss Comp - Incurred Claims",0]
["Form 1A","Notes","Form 1A","L27 - PAA Loss Comp - Losses on enerous contracts",0]
["Form 1A","Notes","Form 1A","L27 - PAA Loss Comp - Adj to Liabilities for Incurred Claims",0]
["Form 1A","Notes","Form 1A","L27 - PAA Loss Comp - Total Insurance Service Expenses",0]
["Form 1A","Notes","Form 1A","L27 - PAA Loss Comp - Investment Components",0]
["Form 1A","Notes","Form 1A","L27 - PAA Loss Comp - Insurance Service Results",0]
["Form 1A","Notes","Form 1A","L27 - PAA Loss Comp - Net finance expenses",0]
["Form 1A","Notes","Form 1A","L27 - PAA Loss Comp - Foreign Exchange",0]
["Form 1A","Notes","Form 1A","L27 - PAA Loss Comp - Change in Profit or Loss",0]
["Form 1A","Notes","Form 1A","L27 - PAA Loss Comp - CF Premium Received",0]
["Form 1A","Notes","Form 1A","L27 - PAA Loss Comp - CF Insurance Acquisition",0]
["Form 1A","Notes","Form 1A","L27 - PAA Loss Comp - CF Claims Paid",0]
["Form 1A","Notes","Form 1A","L27 - PAA Loss Comp - Total CF",0]
["Form 1A","Notes","Form 1A","L27 - PAA Loss Comp - Contracts Trans. Acquisition Sub.",0]
["Form 1A","Notes","Form 1A","L27 - PAA Loss Comp - Contracts Trans. Disposal Sub.",0]
["Form 1A","Notes","Form 1A","L27 - PAA Loss Comp - Net Closing Balance",0]
["Form 1A","Notes","Form 1A","L27 - PAA Loss Comp - Closing Assets",0]
["Form 1A","Notes","Form 1A","L27 - PAA Loss Comp - Closing Liabilities",0]
["Form 1A","Notes","Form 1A","L27 - PAA Loss Comp - Net Closing Balance",0]
["Form 1A","Notes","Form 1A","L27 - GMM Liab. for Incurred - Open Assets",0]
["Form 1A","Notes","Form 1A","L27 - GMM Liab. for Incurred - Open Liabilities",0]
["Form 1A","Notes","Form 1A","L27 - GMM Liab. for Incurred - Net Open",0]
["Form 1A","Notes","Form 1A","L27 - GMM Liab. for Incurred - Insurance Revenue",0]
["Form 1A","Notes","Form 1A","L27 - GMM Liab. for Incurred - Amort. Cash Flows",0]
["Form 1A","Notes","Form 1A","L27 - GMM Liab. for Incurred - Incurred Claims",0]
["Form 1A","Notes","Form 1A","L27 - GMM Liab. for Incurred - Losses on enerous contracts",0]
["Form 1A","Notes","Form 1A","L27 - GMM Liab. for Incurred - Adj to Liabilities for Incurred Claims",0]
["Form 1A","Notes","Form 1A","L27 - GMM Liab. for Incurred - Total Insurance Service Expenses",0]
["Form 1A","Notes","Form 1A","L27 - GMM Liab. for Incurred - Investment Components",0]
["Form 1A","Notes","Form 1A","L27 - GMM Liab. for Incurred - Insurance Service Results",0]
["Form 1A","Notes","Form 1A","L27 - GMM Liab. for Incurred - Net finance expenses",0]
["Form 1A","Notes","Form 1A","L27 - GMM Liab. for Incurred - Foreign Exchange",0]
["Form 1A","Notes","Form 1A","L27 - GMM Liab. for Incurred - Change in Profit or Loss",0]
["Form 1A","Notes","Form 1A","L27 - GMM Liab. for Incurred - CF Premium Received",0]
["Form 1A","Notes","Form 1A","L27 - GMM Liab. for Incurred - CF Insurance Acquisition",0]
["Form 1A","Notes","Form 1A","L27 - GMM Liab. for Incurred - CF Claims Paid",0]
["Form 1A","Notes","Form 1A","L27 - GMM Liab. for Incurred - Total CF",0]
["Form 1A","Notes","Form 1A","L27 - GMM Liab. for Incurred - Contracts Trans. Acquisition Sub.",0]
["Form 1A","Notes","Form 1A","L27 - GMM Liab. for Incurred - Contracts Trans. Disposal Sub.",0]
["Form 1A","Notes","Form 1A","L27 - GMM Liab. for Incurred - Net Closing Balance",0]
["Form 1A","Notes","Form 1A","L27 - GMM Liab. for Incurred - Closing Assets",0]
["Form 1A","Notes","Form 1A","L27 - GMM Liab. for Incurred - Closing Liabilities",0]
["Form 1A","Notes","Form 1A","L27 - GMM Liab. for Incurred - Net Closing Balance",0]
["Form 1A","Notes","Form 1A","L27 - GMM PV Cash Flow - Open Assets",0]
["Form 1A","Notes","Form 1A","L27 - GMM PV Cash Flow - Open Liabilities",0]
["Form 1A","Notes","Form 1A","L27 - GMM PV Cash Flow - Net Open",0]
["Form 1A","Notes","Form 1A","L27 - GMM PV Cash Flow - Insurance Revenue",0]
["Form 1A","Notes","Form 1A","L27 - GMM PV Cash Flow - Amort. Cash Flows",0]
["Form 1A","Notes","Form 1A","L27 - GMM PV Cash Flow - Incurred Claims",0]
["Form 1A","Notes","Form 1A","L27 - GMM PV Cash Flow - Losses on enerous contracts",0]
["Form 1A","Notes","Form 1A","L27 - GMM PV Cash Flow - Adj to Liabilities for Incurred Claims",0]
["Form 1A","Notes","Form 1A","L27 - GMM PV Cash Flow - Total Insurance Service Expenses",0]
["Form 1A","Notes","Form 1A","L27 - GMM PV Cash Flow - Investment Components",0]
["Form 1A","Notes","Form 1A","L27 - GMM PV Cash Flow - Insurance Service Results",0]
["Form 1A","Notes","Form 1A","L27 - GMM PV Cash Flow - Net finance expenses",0]
["Form 1A","Notes","Form 1A","L27 - GMM PV Cash Flow - Foreign Exchange",0]
["Form 1A","Notes","Form 1A","L27 - GMM PV Cash Flow - Change in Profit or Loss",0]
["Form 1A","Notes","Form 1A","L27 - GMM PV Cash Flow - CF Premium Received",0]
["Form 1A","Notes","Form 1A","L27 - GMM PV Cash Flow - CF Insurance Acquisition",0]
["Form 1A","Notes","Form 1A","L27 - GMM PV Cash Flow - CF Claims Paid",0]
["Form 1A","Notes","Form 1A","L27 - GMM PV Cash Flow - Total CF",0]
["Form 1A","Notes","Form 1A","L27 - GMM PV Cash Flow - Contracts Trans. Acquisition Sub.",0]
["Form 1A","Notes","Form 1A","L27 - GMM PV Cash Flow - Contracts Trans. Disposal Sub.",0]
["Form 1A","Notes","Form 1A","L27 - GMM PV Cash Flow - Net Closing Balance",0]
["Form 1A","Notes","Form 1A","L27 - GMM PV Cash Flow - Closing Assets",0]
["Form 1A","Notes","Form 1A","L27 - GMM PV Cash Flow - Closing Liabilities",0]
["Form 1A","Notes","Form 1A","L27 - GMM PV Cash Flow - Net Closing Balance",0]
["Form 1A","Notes","Form 1A","L27 - GMM Risk Adj - Open Assets",0]
["Form 1A","Notes","Form 1A","L27 - GMM Risk Adj - Open Liabilities",0]
["Form 1A","Notes","Form 1A","L27 - GMM Risk Adj - Net Open",0]
["Form 1A","Notes","Form 1A","L27 - GMM Risk Adj - Insurance Revenue",0]
["Form 1A","Notes","Form 1A","L27 - GMM Risk Adj - Amort. Cash Flows",0]
["Form 1A","Notes","Form 1A","L27 - GMM Risk Adj - Incurred Claims",0]
["Form 1A","Notes","Form 1A","L27 - GMM Risk Adj - Losses on enerous contracts",0]
["Form 1A","Notes","Form 1A","L27 - GMM Risk Adj - Adj to Liabilities for Incurred Claims",0]
["Form 1A","Notes","Form 1A","L27 - GMM Risk Adj - Total Insurance Service Expenses",0]
["Form 1A","Notes","Form 1A","L27 - GMM Risk Adj - Investment Components",0]
["Form 1A","Notes","Form 1A","L27 - GMM Risk Adj - Insurance Service Results",0]
["Form 1A","Notes","Form 1A","L27 - GMM Risk Adj - Net finance expenses",0]
["Form 1A","Notes","Form 1A","L27 - GMM Risk Adj - Foreign Exchange",0]
["Form 1A","Notes","Form 1A","L27 - GMM Risk Adj - Change in Profit or Loss",0]
["Form 1A","Notes","Form 1A","L27 - GMM Risk Adj - CF Premium Received",0]
["Form 1A","Notes","Form 1A","L27 - GMM Risk Adj - CF Insurance Acquisition",0]
["Form 1A","Notes","Form 1A","L27 - GMM Risk Adj - CF Claims Paid",0]
["Form 1A","Notes","Form 1A","L27 - GMM Risk Adj - Total CF",0]
["Form 1A","Notes","Form 1A","L27 - GMM Risk Adj - Contracts Trans. Acquisition Sub.",0]
["Form 1A","Notes","Form 1A","L27 - GMM Risk Adj - Contracts Trans. Disposal Sub.",0]
["Form 1A","Notes","Form 1A","L27 - GMM Risk Adj - Net Closing Balance",0]
["Form 1A","Notes","Form 1A","L27 - GMM Risk Adj - Closing Assets",0]
["Form 1A","Notes","Form 1A","L27 - GMM Risk Adj - Closing Liabilities",0]
["Form 1A","Notes","Form 1A","L27 - GMM Risk Adj - Net Closing Balance",0]
["Form 1A","Notes","Form 1A","L17A - Coverage Exc. Loss Comp - Open Assets",0]
["Form 1A","Notes","Form 1A","L17A - Coverage Exc. Loss Comp - Open Liabilities",0]
["Form 1A","Notes","Form 1A","L17A - Coverage Exc. Loss Comp - Net Open",0]
["Form 1A","Notes","Form 1A","L17A - Coverage Exc. Loss Comp - Premiums Paid",0]
["Form 1A","Notes","Form 1A","L17A - Coverage Exc. Loss Comp - Recov. Incurred Claims",0]
["Form 1A","Notes","Form 1A","L17A - Coverage Exc. Loss Comp - Recov. on Reversals",0]
["Form 1A","Notes","Form 1A","L17A - Coverage Exc. Loss Comp - Adj to Assets for Incurred Claims",0]
["Form 1A","Notes","Form 1A","L17A - Coverage Exc. Loss Comp - Total Recov. From Reinsurers",0]
["Form 1A","Notes","Form 1A","L17A - Coverage Exc. Loss Comp - Investment Components",0]
["Form 1A","Notes","Form 1A","L17A - Coverage Exc. Loss Comp - Changes in Non-Performance Risk",0]
["Form 1A","Notes","Form 1A","L17A - Coverage Exc. Loss Comp - Net Expenses from R/I Contracts",0]
["Form 1A","Notes","Form 1A","L17A - Coverage Exc. Loss Comp - Net Finance profit",0]
["Form 1A","Notes","Form 1A","L17A - Coverage Exc. Loss Comp - Foreign Exchange",0]
["Form 1A","Notes","Form 1A","L17A - Coverage Exc. Loss Comp - Change in Profit or Loss",0]
["Form 1A","Notes","Form 1A","L17A - Coverage Exc. Loss Comp - CF Premium Received",0]
["Form 1A","Notes","Form 1A","L17A - Coverage Exc. Loss Comp - CF Incurred Claims",0]
["Form 1A","Notes","Form 1A","L17A - Coverage Exc. Loss Comp - Total CF",0]
["Form 1A","Notes","Form 1A","L17A - Coverage Exc. Loss Comp - Net Closing Balance",0]
["Form 1A","Notes","Form 1A","L17A - Coverage Exc. Loss Comp - Closing Assets",0]
["Form 1A","Notes","Form 1A","L17A - Coverage Exc. Loss Comp - Closing Liabilities",0]
["Form 1A","Notes","Form 1A","L17A - Coverage Exc. Loss Comp - Net Closing Balance",0]
["Form 1A","Notes","Form 1A","L17A - Coverage Inc. Loss Comp - Open Assets",0]
["Form 1A","Notes","Form 1A","L17A - Coverage Inc. Loss Comp - Open Liabilities",0]
["Form 1A","Notes","Form 1A","L17A - Coverage Inc. Loss Comp - Net Open",0]
["Form 1A","Notes","Form 1A","L17A - Coverage Inc. Loss Comp - Premiums Paid",0]
["Form 1A","Notes","Form 1A","L17A - Coverage Inc. Loss Comp - Recov. Incurred Claims",0]
["Form 1A","Notes","Form 1A","L17A - Coverage Inc. Loss Comp - Recov. on Reversals",0]
["Form 1A","Notes","Form 1A","L17A - Coverage Inc. Loss Comp - Adj to Assets for Incurred Claims",0]
["Form 1A","Notes","Form 1A","L17A - Coverage Inc. Loss Comp - Total Recov. From Reinsurers",0]
["Form 1A","Notes","Form 1A","L17A - Coverage Inc. Loss Comp - Investment Components",0]
["Form 1A","Notes","Form 1A","L17A - Coverage Inc. Loss Comp - Changes in Non-Performance Risk",0]
["Form 1A","Notes","Form 1A","L17A - Coverage Inc. Loss Comp - Net Expenses from R/I Contracts",0]
["Form 1A","Notes","Form 1A","L17A - Coverage Inc. Loss Comp - Net Finance profit",0]
["Form 1A","Notes","Form 1A","L17A - Coverage Inc. Loss Comp - Foreign Exchange",0]
["Form 1A","Notes","Form 1A","L17A - Coverage Inc. Loss Comp - Change in Profit or Loss",0]
["Form 1A","Notes","Form 1A","L17A - Coverage Inc. Loss Comp - CF Premium Received",0]
["Form 1A","Notes","Form 1A","L17A - Coverage Inc. Loss Comp - CF Incurred Claims",0]
["Form 1A","Notes","Form 1A","L17A - Coverage Inc. Loss Comp - Total CF",0]
["Form 1A","Notes","Form 1A","L17A - Coverage Inc. Loss Comp - Net Closing Balance",0]
["Form 1A","Notes","Form 1A","L17A - Coverage Inc. Loss Comp - Closing Assets",0]
["Form 1A","Notes","Form 1A","L17A - Coverage Inc. Loss Comp - Closing Liabilities",0]
["Form 1A","Notes","Form 1A","L17A - Coverage Inc. Loss Comp - Net Closing Balance",0]
["Form 1A","Notes","Form 1A","L17A - Inc. Claims Products Not PAA - Open Assets",0]
["Form 1A","Notes","Form 1A","L17A - Inc. Claims Products Not PAA - Open Liabilities",0]
["Form 1A","Notes","Form 1A","L17A - Inc. Claims Products Not PAA - Net Open",0]
["Form 1A","Notes","Form 1A","L17A - Inc. Claims Products Not PAA - Premiums Paid",0]
["Form 1A","Notes","Form 1A","L17A - Inc. Claims Products Not PAA - Recov. Incurred Claims",0]
["Form 1A","Notes","Form 1A","L17A - Inc. Claims Products Not PAA - Recov. on Reversals",0]
["Form 1A","Notes","Form 1A","L17A - Inc. Claims Products Not PAA - Adj to Assets for Incurred Claims",0]
["Form 1A","Notes","Form 1A","L17A - Inc. Claims Products Not PAA - Total Recov. From Reinsurers",0]
["Form 1A","Notes","Form 1A","L17A - Inc. Claims Products Not PAA - Investment Components",0]
["Form 1A","Notes","Form 1A","L17A - Inc. Claims Products Not PAA - Changes in Non-Performance Risk",0]
["Form 1A","Notes","Form 1A","L17A - Inc. Claims Products Not PAA - Net Expenses from R/I Contracts",0]
["Form 1A","Notes","Form 1A","L17A - Inc. Claims Products Not PAA - Net Finance profit",0]
["Form 1A","Notes","Form 1A","L17A - Inc. Claims Products Not PAA - Foreign Exchange",0]
["Form 1A","Notes","Form 1A","L17A - Inc. Claims Products Not PAA - Change in Profit or Loss",0]
["Form 1A","Notes","Form 1A","L17A - Inc. Claims Products Not PAA - CF Premium Received",0]
["Form 1A","Notes","Form 1A","L17A - Inc. Claims Products Not PAA - CF Incurred Claims",0]
["Form 1A","Notes","Form 1A","L17A - Inc. Claims Products Not PAA - Total CF",0]
["Form 1A","Notes","Form 1A","L17A - Inc. Claims Products Not PAA - Net Closing Balance",0]
["Form 1A","Notes","Form 1A","L17A - Inc. Claims Products Not PAA - Closing Assets",0]
["Form 1A","Notes","Form 1A","L17A - Inc. Claims Products Not PAA - Closing Liabilities",0]
["Form 1A","Notes","Form 1A","L17A - Inc. Claims Products Not PAA - Net Closing Balance",0]
["Form 1A","Notes","Form 1A","L17A - Inc. Claims PAA PV Cash Flow - Open Assets",0]
["Form 1A","Notes","Form 1A","L17A - Inc. Claims PAA PV Cash Flow - Open Liabilities",0]
["Form 1A","Notes","Form 1A","L17A - Inc. Claims PAA PV Cash Flow - Net Open",0]
["Form 1A","Notes","Form 1A","L17A - Inc. Claims PAA PV Cash Flow - Premiums Paid",0]
["Form 1A","Notes","Form 1A","L17A - Inc. Claims PAA PV Cash Flow - Recov. Incurred Claims",0]
["Form 1A","Notes","Form 1A","L17A - Inc. Claims PAA PV Cash Flow - Recov. on Reversals",0]
["Form 1A","Notes","Form 1A","L17A - Inc. Claims PAA PV Cash Flow - Adj to Assets for Incurred Claims",0]
["Form 1A","Notes","Form 1A","L17A - Inc. Claims PAA PV Cash Flow - Total Recov. From Reinsurers",0]
["Form 1A","Notes","Form 1A","L17A - Inc. Claims PAA PV Cash Flow - Investment Components",0]
["Form 1A","Notes","Form 1A","L17A - Inc. Claims PAA PV Cash Flow - Changes in Non-Performance Risk",0]
["Form 1A","Notes","Form 1A","L17A - Inc. Claims PAA PV Cash Flow - Net Expenses from R/I Contracts",0]
["Form 1A","Notes","Form 1A","L17A - Inc. Claims PAA PV Cash Flow - Net Finance profit",0]
["Form 1A","Notes","Form 1A","L17A - Inc. Claims PAA PV Cash Flow - Foreign Exchange",0]
["Form 1A","Notes","Form 1A","L17A - Inc. Claims PAA PV Cash Flow - Change in Profit or Loss",0]
["Form 1A","Notes","Form 1A","L17A - Inc. Claims PAA PV Cash Flow - CF Premium Received",0]
["Form 1A","Notes","Form 1A","L17A - Inc. Claims PAA PV Cash Flow - CF Incurred Claims",0]
["Form 1A","Notes","Form 1A","L17A - Inc. Claims PAA PV Cash Flow - Total CF",0]
["Form 1A","Notes","Form 1A","L17A - Inc. Claims PAA PV Cash Flow - Net Closing Balance",0]
["Form 1A","Notes","Form 1A","L17A - Inc. Claims PAA PV Cash Flow - Closing Assets",0]
["Form 1A","Notes","Form 1A","L17A - Inc. Claims PAA PV Cash Flow - Closing Liabilities",0]
["Form 1A","Notes","Form 1A","L17A - Inc. Claims PAA PV Cash Flow - Net Closing Balance",0]
["Form 1A","Notes","Form 1A","L17A - Inc. Claims PAA Adj Non Fin. - Open Assets",0]
["Form 1A","Notes","Form 1A","L17A - Inc. Claims PAA Adj Non Fin. - Open Liabilities",0]
["Form 1A","Notes","Form 1A","L17A - Inc. Claims PAA Adj Non Fin. - Net Open",0]
["Form 1A","Notes","Form 1A","L17A - Inc. Claims PAA Adj Non Fin. - Premiums Paid",0]
["Form 1A","Notes","Form 1A","L17A - Inc. Claims PAA Adj Non Fin. - Recov. Incurred Claims",0]
["Form 1A","Notes","Form 1A","L17A - Inc. Claims PAA Adj Non Fin. - Recov. on Reversals",0]
["Form 1A","Notes","Form 1A","L17A - Inc. Claims PAA Adj Non Fin. - Adj to Assets for Incurred Claims",0]
["Form 1A","Notes","Form 1A","L17A - Inc. Claims PAA Adj Non Fin. - Total Recov. From Reinsurers",0]
["Form 1A","Notes","Form 1A","L17A - Inc. Claims PAA Adj Non Fin. - Investment Components",0]
["Form 1A","Notes","Form 1A","L17A - Inc. Claims PAA Adj Non Fin. - Changes in Non-Performance Risk",0]
["Form 1A","Notes","Form 1A","L17A - Inc. Claims PAA Adj Non Fin. - Net Expenses from R/I Contracts",0]
["Form 1A","Notes","Form 1A","L17A - Inc. Claims PAA Adj Non Fin. - Net Finance profit",0]
["Form 1A","Notes","Form 1A","L17A - Inc. Claims PAA Adj Non Fin. - Foreign Exchange",0]
["Form 1A","Notes","Form 1A","L17A - Inc. Claims PAA Adj Non Fin. - Change in Profit or Loss",0]
["Form 1A","Notes","Form 1A","L17A - Inc. Claims PAA Adj Non Fin. - CF Premium Received",0]
["Form 1A","Notes","Form 1A","L17A - Inc. Claims PAA Adj Non Fin. - CF Incurred Claims",0]
["Form 1A","Notes","Form 1A","L17A - Inc. Claims PAA Adj Non Fin. - Total CF",0]
["Form 1A","Notes","Form 1A","L17A - Inc. Claims PAA Adj Non Fin. - Net Closing Balance",0]
["Form 1A","Notes","Form 1A","L17A - Inc. Claims PAA Adj Non Fin. - Closing Assets",0]
["Form 1A","Notes","Form 1A","L17A - Inc. Claims PAA Adj Non Fin. - Closing Liabilities",0]
["Form 1A","Notes","Form 1A","L17A - Inc. Claims PAA Adj Non Fin. - Net Closing Balance",0]
["Form 1A","Notes","Form 1A","L27A - Coverage Exc. Loss Comp - Open Assets",0]
["Form 1A","Notes","Form 1A","L27A - Coverage Exc. Loss Comp - Open Liabilities",0]
["Form 1A","Notes","Form 1A","L27A - Coverage Exc. Loss Comp - Net Open",0]
["Form 1A","Notes","Form 1A","L27A - Coverage Exc. Loss Comp - Premiums Paid",0]
["Form 1A","Notes","Form 1A","L27A - Coverage Exc. Loss Comp - Recov. Incurred Claims",0]
["Form 1A","Notes","Form 1A","L27A - Coverage Exc. Loss Comp - Recov. on Reversals",0]
["Form 1A","Notes","Form 1A","L27A - Coverage Exc. Loss Comp - Adj to Assets for Incurred Claims",0]
["Form 1A","Notes","Form 1A","L27A - Coverage Exc. Loss Comp - Total Recov. From Reinsurers",0]
["Form 1A","Notes","Form 1A","L27A - Coverage Exc. Loss Comp - Investment Components",0]
["Form 1A","Notes","Form 1A","L27A - Coverage Exc. Loss Comp - Changes in Non-Performance Risk",0]
["Form 1A","Notes","Form 1A","L27A - Coverage Exc. Loss Comp - Net Expenses from R/I Contracts",0]
["Form 1A","Notes","Form 1A","L27A - Coverage Exc. Loss Comp - Net Finance profit",0]
["Form 1A","Notes","Form 1A","L27A - Coverage Exc. Loss Comp - Foreign Exchange",0]
["Form 1A","Notes","Form 1A","L27A - Coverage Exc. Loss Comp - Change in Profit or Loss",0]
["Form 1A","Notes","Form 1A","L27A - Coverage Exc. Loss Comp - CF Premium Received",0]
["Form 1A","Notes","Form 1A","L27A - Coverage Exc. Loss Comp - CF Incurred Claims",0]
["Form 1A","Notes","Form 1A","L27A - Coverage Exc. Loss Comp - Total CF",0]
["Form 1A","Notes","Form 1A","L27A - Coverage Exc. Loss Comp - Net Closing Balance",0]
["Form 1A","Notes","Form 1A","L27A - Coverage Exc. Loss Comp - Closing Assets",0]
["Form 1A","Notes","Form 1A","L27A - Coverage Exc. Loss Comp - Closing Liabilities",0]
["Form 1A","Notes","Form 1A","L27A - Coverage Exc. Loss Comp - Net Closing Balance",0]
["Form 1A","Notes","Form 1A","L27A - Coverage Inc. Loss Comp - Open Assets",0]
["Form 1A","Notes","Form 1A","L27A - Coverage Inc. Loss Comp - Open Liabilities",0]
["Form 1A","Notes","Form 1A","L27A - Coverage Inc. Loss Comp - Net Open",0]
["Form 1A","Notes","Form 1A","L27A - Coverage Inc. Loss Comp - Premiums Paid",0]
["Form 1A","Notes","Form 1A","L27A - Coverage Inc. Loss Comp - Recov. Incurred Claims",0]
["Form 1A","Notes","Form 1A","L27A - Coverage Inc. Loss Comp - Recov. on Reversals",0]
["Form 1A","Notes","Form 1A","L27A - Coverage Inc. Loss Comp - Adj to Assets for Incurred Claims",0]
["Form 1A","Notes","Form 1A","L27A - Coverage Inc. Loss Comp - Total Recov. From Reinsurers",0]
["Form 1A","Notes","Form 1A","L27A - Coverage Inc. Loss Comp - Investment Components",0]
["Form 1A","Notes","Form 1A","L27A - Coverage Inc. Loss Comp - Changes in Non-Performance Risk",0]
["Form 1A","Notes","Form 1A","L27A - Coverage Inc. Loss Comp - Net Expenses from R/I Contracts",0]
["Form 1A","Notes","Form 1A","L27A - Coverage Inc. Loss Comp - Net Finance profit",0]
["Form 1A","Notes","Form 1A","L27A - Coverage Inc. Loss Comp - Foreign Exchange",0]
["Form 1A","Notes","Form 1A","L27A - Coverage Inc. Loss Comp - Change in Profit or Loss",0]
["Form 1A","Notes","Form 1A","L27A - Coverage Inc. Loss Comp - CF Premium Received",0]
["Form 1A","Notes","Form 1A","L27A - Coverage Inc. Loss Comp - CF Incurred Claims",0]
["Form 1A","Notes","Form 1A","L27A - Coverage Inc. Loss Comp - Total CF",0]
["Form 1A","Notes","Form 1A","L27A - Coverage Inc. Loss Comp - Net Closing Balance",0]
["Form 1A","Notes","Form 1A","L27A - Coverage Inc. Loss Comp - Closing Assets",0]
["Form 1A","Notes","Form 1A","L27A - Coverage Inc. Loss Comp - Closing Liabilities",0]
["Form 1A","Notes","Form 1A","L27A - Coverage Inc. Loss Comp - Net Closing Balance",0]
["Form 1A","Notes","Form 1A","L27A - Inc. Claims - Open Assets",0]
["Form 1A","Notes","Form 1A","L27A - Inc. Claims - Open Liabilities",0]
["Form 1A","Notes","Form 1A","L27A - Inc. Claims - Net Open",0]
["Form 1A","Notes","Form 1A","L27A - Inc. Claims - Premiums Paid",0]
["Form 1A","Notes","Form 1A","L27A - Inc. Claims - Recov. Incurred Claims",0]
["Form 1A","Notes","Form 1A","L27A - Inc. Claims - Recov. on Reversals",0]
["Form 1A","Notes","Form 1A","L27A - Inc. Claims - Adj to Assets for Incurred Claims",0]
["Form 1A","Notes","Form 1A","L27A - Inc. Claims - Total Recov. From Reinsurers",0]
["Form 1A","Notes","Form 1A","L27A - Inc. Claims - Investment Components",0]
["Form 1A","Notes","Form 1A","L27A - Inc. Claims - Changes in Non-Performance Risk",0]
["Form 1A","Notes","Form 1A","L27A - Inc. Claims - Net Expenses from R/I Contracts",0]
["Form 1A","Notes","Form 1A","L27A - Inc. Claims - Net Finance profit",0]
["Form 1A","Notes","Form 1A","L27A - Inc. Claims - Foreign Exchange",0]
["Form 1A","Notes","Form 1A","L27A - Inc. Claims - Change in Profit or Loss",0]
["Form 1A","Notes","Form 1A","L27A - Inc. Claims - CF Premium Received",0]
["Form 1A","Notes","Form 1A","L27A - Inc. Claims - CF Incurred Claims",0]
["Form 1A","Notes","Form 1A","L27A - Inc. Claims - Total CF",0]
["Form 1A","Notes","Form 1A","L27A - Inc. Claims - Net Closing Balance",0]
["Form 1A","Notes","Form 1A","L27A - Inc. Claims - Closing Assets",0]
["Form 1A","Notes","Form 1A","L27A - Inc. Claims - Closing Liabilities",0]
["Form 1A","Notes","Form 1A","L27A - Inc. Claims - Net Closing Balance",0]
[]
[null,null,null,"IFRS Income Statement"]
["Form 2A","Income Stmt CON","2A1","Insurance Contract Revenue",0,null,0]
["Form 2A","Income Stmt CON","2A2a","Incurred Claims",0,null,0]
["Form 2A","Income Stmt CON","2A2b","Acquisition Cash Flows",0,null,0]
["Form 2A","Income Stmt CON","2A2c","Adj for Liability Incurred Claims",0,null,0]
["Form 2A","Income Stmt CON","2A2d","Losses on Onerous Contracts",0,null,0]
["Form 2A","Income Stmt CON","2A2e","Other Service Expenses",0,null,0]
["Form 2A","Income Stmt CON","2A2f","Total Insurance Service Expense",0,null,0]
["Form 2A","Income Stmt CON","2A3","Insurance Service Results Before R/I",0,null,0]
["Form 2A","Income Stmt CON","2A4a","R/I Recoveries and Other Income",0,null,0]
["Form 2A","Income Stmt CON","2A4b","R/I Expenses",0,null,0]
["Form 2A","Income Stmt CON","2A4c","Net Expenses R/I Contracts Held",0,null,0]
["Form 2A","Income Stmt CON","2A5","Insurance Service Results",0,null,0]
["Form 2A","Income Stmt CON","2A6a","Net Interest Income",0,null,0]
["Form 2A","Income Stmt CON","2A6b","Net Realized",0,null,0]
["Form 2A","Income Stmt CON","2A6c","Net Foreign Exchange",0,null,0]
["Form 2A","Income Stmt CON","2A6d","Credit Impairment Losses",0,null,0]
["Form 2A","Income Stmt CON","2A6e","Other Investment Returns",0,null,0]
["Form 2A","Income Stmt CON","2A6f","Total Investment Returns",0,null,0]
["Form 2A","Income Stmt CON","2A7a","Net Finance Expense from Insurance",0,null,0]
["Form 2A","Income Stmt CON","2A7b","Net Finance Expense from Reinsurance",0,null,0]
["Form 2A","Income Stmt CON","2A7c","Insurance Finance Results",0,null,0]
["Form 2A","Income Stmt CON","2A8","Net Insurance Financial and Investment Results",0,null,0]
["Form 2A","Income Stmt CON","2A9","Other Income",0,null,0]
["Form 2A","Income Stmt CON","2A10","Profit Before Tax",0,null,0]
["Form 2A","Income Stmt CON","2A11","Income Tax",0,null,0]
["Form 2A","Income Stmt CON","2A12","Net Income",0,null,0]
[]
["Form 2A","Notes","Revenue","Expected Incurred Claims",0]
["Form 2A","Notes","Revenue","CSM for Services Provided",0]
["Form 2A","Notes","Revenue","Change in Risk Adjustment",0]
["Form 2A","Notes","Revenue","Recovery of Insurance Acqusition",0]
["Form 2A","Notes","Revenue","Contracts Measured under the General Model",0]
["Form 2A","Notes","Revenue","Contracts Measured under PAA",0]
["Form 2A","Notes","Revenue","Total Insurance Revenue",0]
["Form 2A","Notes","Premium","General Business GPW",{"$f":"'Form 2'!E14","v":0}]
["Form 2A","Notes","Premium","General Business Premiums Ceded",{"$f":"'Form 2'!E16","v":0}]
["Form 2A","Notes","Premium","General Business NPW",{"$f":"'Form 2'!E18","v":0}]
["Form 2A","Notes","Premium","General Business Net Losses Incurred",{"$f":"'Form 2'!E30","v":0}]
["Form 2A","Notes","Premium","Long-Term GPW",{"$f":"'Form 2'!E43","v":0}]
["Form 2A","Notes","Premium","Long-Term Premiums Ceded",{"$f":"'Form 2'!E45","v":0}]
["Form 2A","Notes","Premium","Long-Term NPW",{"$f":"'Form 2'!E51","v":0}]
["Form 2A","Notes","Oper. Exp.","General and Administrative Expense",{"$f":"'Form 2'!E93","v":0}]
["Form 2A","Notes","Oper. Exp.","Personnel Costs",{"$f":"'Form 2'!E94","v":0}]
["Form 2A","Notes","Oper. Exp.","Other Expenses",{"$f":"'Form 2'!E95","v":0}]
["Form 2A","Notes","Oper. Exp.","Total Combined Operating Expense",{"$f":"'Form 2'!E96","v":0}]
[]
[null,null,null,"Statement of Capital & Surplus"]
["Form 8A","Stmt of C&S CON","8A1ai","Capital Stock"]
["Form 8A","Stmt of C&S CON",null,"Common Stock",{"$f":"'Form 8'!G12","v":0},null,{"$f":"'Form 8'!I12","v":0}]
["Form 8A","Stmt of C&S CON","8A1aii","Preferred Shares",{"$f":"'Form 8'!G17+'Form 8'!G25","v":0},null,{"$f":"'Form 8'!I17+'Form 8'!I25","v":0}]
["Form 8A","Stmt of C&S CON","8A1aiii","Treasury Shares",{"$f":"'Form 8'!G33","v":0},null,{"$f":"'Form 8'!I33","v":0}]
["Form 8A","Stmt of C&S CON","8A1b","Contributed Surplus",{"$f":"'Form 8'!G37","v":0},null,{"$f":"'Form 8'!I37","v":0}]
["Form 8A","Stmt of C&S CON","8A1ci","Other Fixed Capital - Hybrid Instruments",{"$f":"'Form 8'!G40","v":0},null,{"$f":"'Form 8'!I40","v":0}]
["Form 8A","Stmt of C&S CON","8A1cii","Other Fixed Capital - Guarantees & Others",{"$f":"'Form 8'!G41","v":0},null,{"$f":"'Form 8'!I41","v":0}]
["Form 8A","Stmt of C&S CON","8A2a","Statutory Surplus - Beginning of Year",{"$f":"'Form 8'!G48","v":0},null,{"$f":"'Form 8'!I48","v":0}]
["Form 8A","Stmt of C&S CON","8A2c","Dividends",{"$f":"'Form 8'!G52","v":0},null,{"$f":"'Form 8'!I52","v":0}]
["Form 8A","Stmt of C&S CON","8A2d","Unrealized Change in Investments",{"$f":"'Form 8'!G54","v":0},null,{"$f":"'Form 8'!I54","v":0}]
["Form 8A","Stmt of C&S CON","8A2e","Change in Non-Admitted Assets",{"$f":"'Form 8'!G56","v":0},null,{"$f":"'Form 8'!I56","v":0}]
["Form 8A","Stmt of C&S CON","8A2f","Change in Real Estate",{"$f":"'Form 8'!G58","v":0},null,{"$f":"'Form 8'!I58","v":0}]
["Form 8A","Stmt of C&S CON","8A2g","Change in Other Statutory Capital",{"$f":"'Form 8'!G60","v":0},null,{"$f":"'Form 8'!I60","v":0}]
["Form 8A","Stmt of C&S CON","8A3","Minority Interest",{"$f":"'Form 8'!G64","v":0},null,{"$f":"'Form 8'!I64","v":0}]
[]
["Form 8A","Notes","2g","Description 1",0]
["Form 8A","Notes","2g","Description 2",0]
["Form 8A","Notes","2g","Description 3",0]
["Form 8A","Notes","2g","Description 4",0]
["Form 8A","Notes","2g","IFRS 4 to 17 Adj",0]
["Form 8A","Notes","2g","Other Adj 1",0]
["Form 8A","Notes","2g","Other Adj 2",0]
["Form 8A","Notes","2g","Other Adj 3",0]
["Form 8A","Notes","2g","Other Adj 4",0]
[]
[null,null,null,"BSCR Schedules "]
["Sch II","Investments",null,"Corp. Bonds - BSCR Rate 0",0,null,0,null,0,null,0]
["Sch II","Investments",null,"Corp. Bonds - BSCR Rate 1",0,null,0,null,0,null,0]
["Sch II","Investments",null,"Corp. Bonds - BSCR Rate 2",0,null,0,null,0,null,0]
["Sch II","Investments",null,"Corp. Bonds - BSCR Rate 3",0,null,0,null,0,null,0]
["Sch II","Investments",null,"Corp. Bonds - BSCR Rate 4",0,null,0,null,0,null,0]
["Sch II","Investments",null,"Corp. Bonds - BSCR Rate 5",0,null,0,null,0,null,0]
["Sch II","Investments",null,"Corp. Bonds - BSCR Rate 6",0,null,0,null,0,null,0]
["Sch II","Investments",null,"Corp. Bonds - BSCR Rate 7",0,null,0,null,0,null,0]
["Sch II","Investments",null,"Corp. Bonds - BSCR Rate 8",0,null,0,null,0,null,0]
["Sch II","Investments",null,"Residential MBS - BSCR Rate 1",0,null,0,null,0,null,0]
["Sch II","Investments",null,"Residential MBS - BSCR Rate 2",0,null,0,null,0,null,0]
["Sch II","Investments",null,"Residential MBS - BSCR Rate 3",0,null,0,null,0,null,0]
["Sch II","Investments",null,"Residential MBS - BSCR Rate 4",0,null,0,null,0,null,0]
["Sch II","Investments",null,"Residential MBS - BSCR Rate 5",0,null,0,null,0,null,0]
["Sch II","Investments",null,"Residential MBS - BSCR Rate 6",0,null,0,null,0,null,0]
["Sch II","Investments",null,"Residential MBS - BSCR Rate 7",0,null,0,null,0,null,0]
["Sch II","Investments",null,"Residential MBS - BSCR Rate 8",0,null,0,null,0,null,0]
["Sch II","Investments",null,"Commercial MBS - BSCR Rate 1",0,null,0,null,0,null,0]
["Sch II","Investments",null,"Commercial MBS - BSCR Rate 2",0,null,0,null,0,null,0]
["Sch II","Investments",null,"Commercial MBS - BSCR Rate 3",0,null,0,null,0,null,0]
["Sch II","Investments",null,"Commercial MBS - BSCR Rate 4",0,null,0,null,0,null,0]
["Sch II","Investments",null,"Commercial MBS - BSCR Rate 5",0,null,0,null,0,null,0]
["Sch II","Investments",null,"Commercial MBS - BSCR Rate 6",0,null,0,null,0,null,0]
["Sch II","Investments",null,"Commercial MBS - BSCR Rate 7",0,null,0,null,0,null,0]
["Sch II","Investments",null,"Commercial MBS - BSCR Rate 8",0,null,0,null,0,null,0]
["Sch II","Investments",null,"Bonds Mutual Fund - BSCR Rate 0",0,null,0,null,0,null,0]
["Sch II","Investments",null,"Bonds Mutual Fund - BSCR Rate 1",0,null,0,null,0,null,0]
["Sch II","Investments",null,"Bonds Mutual Fund - BSCR Rate 2",0,null,0,null,0,null,0]
["Sch II","Investments",null,"Bonds Mutual Fund - BSCR Rate 3",0,null,0,null,0,null,0]
["Sch II","Investments",null,"Bonds Mutual Fund - BSCR Rate 4",0,null,0,null,0,null,0]
["Sch II","Investments",null,"Bonds Mutual Fund - BSCR Rate 5",0,null,0,null,0,null,0]
["Sch II","Investments",null,"Bonds Mutual Fund - BSCR Rate 6",0,null,0,null,0,null,0]
["Sch II","Investments",null,"Bonds Mutual Fund - BSCR Rate 7",0,null,0,null,0,null,0]
["Sch II","Investments",null,"Bonds Mutual Fund - BSCR Rate 8",0,null,0,null,0,null,0]
["Sch II","Investments",null,"Common Shares - Quoted",0,null,0,null,0,null,0]
["Sch II","Investments",null,"Common Shares - Unquoted",0,null,0,null,0,null,0]
["Sch II","Investments",null,"Preferred Shares - BSCR Rate 1",0,null,0,null,0,null,0]
["Sch II","Investments",null,"Preferred Shares - BSCR Rate 2",0,null,0,null,0,null,0]
["Sch II","Investments",null,"Preferred Shares - BSCR Rate 3",0,null,0,null,0,null,0]
["Sch II","Investments",null,"Preferred Shares - BSCR Rate 4",0,null,0,null,0,null,0]
["Sch II","Investments",null,"Preferred Shares - BSCR Rate 5",0,null,0,null,0,null,0]
["Sch II","Investments",null,"Preferred Shares - BSCR Rate 6",0,null,0,null,0,null,0]
["Sch II","Investments",null,"Preferred Shares - BSCR Rate 7",0,null,0,null,0,null,0]
["Sch II","Investments",null,"Preferred Shares - BSCR Rate 8",0,null,0,null,0,null,0]
["Sch II","Investments",null,"Equity Mutual Funds -  Quoted",0,null,0,null,0,null,0]
["Sch II","Investments",null,"Equity Mutual Funds -  Unquoted",0,null,0,null,0,null,0]
["Sch II","Investments",null,"Mortgage Loans - Insured",0,null,0,null,0,null,0]
["Sch II","Investments",null,"Mortgage Loans - Other Commercial",0,null,0,null,0,null,0]
["Sch II","Investments",null,"Mortgage Loans - Other Residential",0,null,0,null,0,null,0]
["Sch II","Investments",null,"Mortgage Loans - Not Good Stand.",0,null,0,null,0,null,0]
["Sch II","Investments",null,"NAIC Resid. MBS - Orig. Class 1",0,null,null,null,0]
["Sch II","Investments",null,"NAIC Resid. MBS - Orig. Class 2",0,null,null,null,0]
["Sch II","Investments",null,"NAIC Resid. MBS - Orig. Class 3",0,null,null,null,0]
["Sch II","Investments",null,"NAIC Resid. MBS - Orig. Class 4",0,null,null,null,0]
["Sch II","Investments",null,"NAIC Resid. MBS - Orig. Class 5",0,null,null,null,0]
["Sch II","Investments",null,"NAIC Resid. MBS - Orig. Class 6",0,null,null,null,0]
["Sch II","Investments",null,"NAIC Resid. MBS - Orig. Total",0,null,null,null,0]
["Sch II","Investments",null,"NAIC Resid. MBS - Rev. Class 1",0,null,null,null,0]
["Sch II","Investments",null,"NAIC Resid. MBS - Rev. Class 2",0,null,null,null,0]
["Sch II","Investments",null,"NAIC Resid. MBS - Rev. Class 3",0,null,null,null,0]
["Sch II","Investments",null,"NAIC Resid. MBS - Rev. Class 4",0,null,null,null,0]
["Sch II","Investments",null,"NAIC Resid. MBS - Rev. Class 5",0,null,null,null,0]
["Sch II","Investments",null,"NAIC Resid. MBS - Rev. Class 6",0,null,null,null,0]
["Sch II","Investments",null,"NAIC Resid. MBS - Rev. Total",0,null,null,null,0]
["Sch II","Investments",null,"NAIC Comm. MBS - Orig. Class 1",0,null,null,null,0]
["Sch II","Investments",null,"NAIC Comm. MBS - Orig. Class 2",0,null,null,null,0]
["Sch II","Investments",null,"NAIC Comm. MBS - Orig. Class 3",0,null,null,null,0]
["Sch II","Investments",null,"NAIC Comm. MBS - Orig. Class 4",0,null,null,null,0]
["Sch II","Investments",null,"NAIC Comm. MBS - Orig. Class 5",0,null,null,null,0]
["Sch II","Investments",null,"NAIC Comm. MBS - Orig. Class 6",0,null,null,null,0]
["Sch II","Investments",null,"NAIC Comm. MBS - Orig. Total",0,null,null,null,0]
["Sch II","Investments",null,"NAIC Comm. MBS - Rev. Class 1",0,null,null,null,0]
["Sch II","Investments",null,"NAIC Comm. MBS - Rev. Class 2",0,null,null,null,0]
["Sch II","Investments",null,"NAIC Comm. MBS - Rev. Class 3",0,null,null,null,0]
["Sch II","Investments",null,"NAIC Comm. MBS - Rev. Class 4",0,null,null,null,0]
["Sch II","Investments",null,"NAIC Comm. MBS - Rev. Class 5",0,null,null,null,0]
["Sch II","Investments",null,"NAIC Comm. MBS - Rev. Class 6",0,null,null,null,0]
["Sch II","Investments",null,"NAIC Comm. MBS - Rev. Total",0,null,null,null,0]
["Sch II","Investments",null,"NAIC Rating Corp & Sov. Bond - Class 1",0,null,null,null,0]
["Sch II","Investments",null,"NAIC Rating Corp & Sov. Bond - Class 2",0,null,null,null,0]
["Sch II","Investments",null,"NAIC Rating Corp & Sov. Bond - Class 3",0,null,null,null,0]
["Sch II","Investments",null,"NAIC Rating Corp & Sov. Bond - Class 4",0,null,null,null,0]
["Sch II","Investments",null,"NAIC Rating Corp & Sov. Bond - Class 5",0,null,null,null,0]
["Sch II","Investments",null,"NAIC Rating Corp & Sov. Bond - Class 6",0,null,null,null,0]
["Sch II","Investments",null,"NAIC Rating Corp & Sov. Bond - Total",0,null,null,null,0]
["Sch II","Investments",null,"NAIC Rating Resid. MBS - Class 1",0,null,null,null,0]
["Sch II","Investments",null,"NAIC Rating Resid. MBS - Class 2",0,null,null,null,0]
["Sch II","Investments",null,"NAIC Rating Resid. MBS - Class 3",0,null,null,null,0]
["Sch II","Investments",null,"NAIC Rating Resid. MBS - Class 4",0,null,null,null,0]
["Sch II","Investments",null,"NAIC Rating Resid. MBS - Class 5",0,null,null,null,0]
["Sch II","Investments",null,"NAIC Rating Resid. MBS - Class 6",0,null,null,null,0]
["Sch II","Investments",null,"NAIC Rating Resid. MBS - Total",0,null,null,null,0]
["Sch II","Investments",null,"NAIC Rating Comm. MBS - Class 1",0,null,null,null,0]
["Sch II","Investments",null,"NAIC Rating Comm. MBS - Class 2",0,null,null,null,0]
["Sch II","Investments",null,"NAIC Rating Comm. MBS - Class 3",0,null,null,null,0]
["Sch II","Investments",null,"NAIC Rating Comm. MBS - Class 4",0,null,null,null,0]
["Sch II","Investments",null,"NAIC Rating Comm. MBS - Class 5",0,null,null,null,0]
["Sch II","Investments",null,"NAIC Rating Comm. MBS - Class 6",0,null,null,null,0]
["Sch II","Investments",null,"NAIC Rating Comm. MBS - Total",0,null,null,null,0]
["Sch II","Investments",null,"NAIC Rating Bond Mutual - Class 1",0,null,null,null,0]
["Sch II","Investments",null,"NAIC Rating Bond Mutual - Class 2",0,null,null,null,0]
["Sch II","Investments",null,"NAIC Rating Bond Mutual - Class 3",0,null,null,null,0]
["Sch II","Investments",null,"NAIC Rating Bond Mutual - Class 4",0,null,null,null,0]
["Sch II","Investments",null,"NAIC Rating Bond Mutual - Class 5",0,null,null,null,0]
["Sch II","Investments",null,"NAIC Rating Bond Mutual - Class 6",0,null,null,null,0]
["Sch II","Investments",null,"NAIC Rating Bond Mutual - Total",0,null,null,null,0]
["Sch II","Investments",null,"NAIC Rating Mort. Loan - Class 1",0,null,null,null,0]
["Sch II","Investments",null,"NAIC Rating Mort. Loan - Class 2",0,null,null,null,0]
["Sch II","Investments",null,"NAIC Rating Mort. Loan - Class 3",0,null,null,null,0]
["Sch II","Investments",null,"NAIC Rating Mort. Loan - Class 4",0,null,null,null,0]
["Sch II","Investments",null,"NAIC Rating Mort. Loan - Class 5",0,null,null,null,0]
["Sch II","Investments",null,"NAIC Rating Mort. Loan - Class 6",0,null,null,null,0]
["Sch II","Investments",null,"NAIC Rating Mort. Loan - Total",0,null,null,null,0]
["Sch II","Investments",null,"NAIC Rating Pref. Stock - Class 1",0,null,null,null,0]
["Sch II","Investments",null,"NAIC Rating Pref. Stock - Class 2",0,null,null,null,0]
["Sch II","Investments",null,"NAIC Rating Pref. Stock - Class 3",0,null,null,null,0]
["Sch II","Investments",null,"NAIC Rating Pref. Stock - Class 4",0,null,null,null,0]
["Sch II","Investments",null,"NAIC Rating Pref. Stock - Class 5",0,null,null,null,0]
["Sch II","Investments",null,"NAIC Rating Pref. Stock - Class 6",0,null,null,null,0]
["Sch II","Investments",null,"NAIC Rating Pref. Stock - Total",0,null,null,null,0]
["Sch II","Investments",null,"NAIC Rating Other Assets - Class 1",0,null,null,null,0]
["Sch II","Investments",null,"NAIC Rating Other Assets - Class 2",0,null,null,null,0]
["Sch II","Investments",null,"NAIC Rating Other Assets - Class 3",0,null,null,null,0]
["Sch II","Investments",null,"NAIC Rating Other Assets - Class 4",0,null,null,null,0]
["Sch II","Investments",null,"NAIC Rating Other Assets - Class 5",0,null,null,null,0]
["Sch II","Investments",null,"NAIC Rating Other Assets - Class 6",0,null,null,null,0]
["Sch II","Investments",null,"NAIC Rating Other Assets - Total",0,null,null,null,0]
[]
["Sch IIA","Funds Held",null,"Corp. Bonds - BSCR Rate 0",0,null,0,null,0,null,0]
["Sch IIA","Funds Held",null,"Corp. Bonds - BSCR Rate 1",0,null,0,null,0,null,0]
["Sch IIA","Funds Held",null,"Corp. Bonds - BSCR Rate 2",0,null,0,null,0,null,0]
["Sch IIA","Funds Held",null,"Corp. Bonds - BSCR Rate 3",0,null,0,null,0,null,0]
["Sch IIA","Funds Held",null,"Corp. Bonds - BSCR Rate 4",0,null,0,null,0,null,0]
["Sch IIA","Funds Held",null,"Corp. Bonds - BSCR Rate 5",0,null,0,null,0,null,0]
["Sch IIA","Funds Held",null,"Corp. Bonds - BSCR Rate 6",0,null,0,null,0,null,0]
["Sch IIA","Funds Held",null,"Corp. Bonds - BSCR Rate 7",0,null,0,null,0,null,0]
["Sch IIA","Funds Held",null,"Corp. Bonds - BSCR Rate 8",0,null,0,null,0,null,0]
["Sch IIA","Funds Held",null,"Residential MBS - BSCR Rate 1",0,null,0,null,0,null,0]
["Sch IIA","Funds Held",null,"Residential MBS - BSCR Rate 2",0,null,0,null,0,null,0]
["Sch IIA","Funds Held",null,"Residential MBS - BSCR Rate 3",0,null,0,null,0,null,0]
["Sch IIA","Funds Held",null,"Residential MBS - BSCR Rate 4",0,null,0,null,0,null,0]
["Sch IIA","Funds Held",null,"Residential MBS - BSCR Rate 5",0,null,0,null,0,null,0]
["Sch IIA","Funds Held",null,"Residential MBS - BSCR Rate 6",0,null,0,null,0,null,0]
["Sch IIA","Funds Held",null,"Residential MBS - BSCR Rate 7",0,null,0,null,0,null,0]
["Sch IIA","Funds Held",null,"Residential MBS - BSCR Rate 8",0,null,0,null,0,null,0]
["Sch IIA","Funds Held",null,"Commercial MBS - BSCR Rate 1",0,null,0,null,0,null,0]
["Sch IIA","Funds Held",null,"Commercial MBS - BSCR Rate 2",0,null,0,null,0,null,0]
["Sch IIA","Funds Held",null,"Commercial MBS - BSCR Rate 3",0,null,0,null,0,null,0]
["Sch IIA","Funds Held",null,"Commercial MBS - BSCR Rate 4",0,null,0,null,0,null,0]
["Sch IIA","Funds Held",null,"Commercial MBS - BSCR Rate 5",0,null,0,null,0,null,0]
["Sch IIA","Funds Held",null,"Commercial MBS - BSCR Rate 6",0,null,0,null,0,null,0]
["Sch IIA","Funds Held",null,"Commercial MBS - BSCR Rate 7",0,null,0,null,0,null,0]
["Sch IIA","Funds Held",null,"Commercial MBS - BSCR Rate 8",0,null,0,null,0,null,0]
["Sch IIA","Funds Held",null,"Bonds Mutual Fund - BSCR Rate 0",0,null,0,null,0,null,0]
["Sch IIA","Funds Held",null,"Bonds Mutual Fund - BSCR Rate 1",0,null,0,null,0,null,0]
["Sch IIA","Funds Held",null,"Bonds Mutual Fund - BSCR Rate 2",0,null,0,null,0,null,0]
["Sch IIA","Funds Held",null,"Bonds Mutual Fund - BSCR Rate 3",0,null,0,null,0,null,0]
["Sch IIA","Funds Held",null,"Bonds Mutual Fund - BSCR Rate 4",0,null,0,null,0,null,0]
["Sch IIA","Funds Held",null,"Bonds Mutual Fund - BSCR Rate 5",0,null,0,null,0,null,0]
["Sch IIA","Funds Held",null,"Bonds Mutual Fund - BSCR Rate 6",0,null,0,null,0,null,0]
["Sch IIA","Funds Held",null,"Bonds Mutual Fund - BSCR Rate 7",0,null,0,null,0,null,0]
["Sch IIA","Funds Held",null,"Bonds Mutual Fund - BSCR Rate 8",0,null,0,null,0,null,0]
["Sch IIA","Funds Held",null,"Common Shares - Quoted",0,null,0,null,0,null,0]
["Sch IIA","Funds Held",null,"Common Shares - Unquoted",0,null,0,null,0,null,0]
["Sch IIA","Funds Held",null,"Preferred Shares - BSCR Rate 1",0,null,0,null,0,null,0]
["Sch IIA","Funds Held",null,"Preferred Shares - BSCR Rate 2",0,null,0,null,0,null,0]
["Sch IIA","Funds Held",null,"Preferred Shares - BSCR Rate 3",0,null,0,null,0,null,0]
["Sch IIA","Funds Held",null,"Preferred Shares - BSCR Rate 4",0,null,0,null,0,null,0]
["Sch IIA","Funds Held",null,"Preferred Shares - BSCR Rate 5",0,null,0,null,0,null,0]
["Sch IIA","Funds Held",null,"Preferred Shares - BSCR Rate 6",0,null,0,null,0,null,0]
["Sch IIA","Funds Held",null,"Preferred Shares - BSCR Rate 7",0,null,0,null,0,null,0]
["Sch IIA","Funds Held",null,"Preferred Shares - BSCR Rate 8",0,null,0,null,0,null,0]
["Sch IIA","Funds Held",null,"Equity Mutual Funds -  Quoted",0,null,0,null,0,null,0]
["Sch IIA","Funds Held",null,"Equity Mutual Funds -  Unquoted",0,null,0,null,0,null,0]
["Sch IIA","Funds Held",null,"Other Investments -  Quoted",0,null,0,null,0,null,0]
["Sch IIA","Funds Held",null,"Other Investments -  Unquoted",0,null,0,null,0,null,0]
["Sch IIA","Funds Held",null,"Mortgage Loans - Insured",0,null,0,null,0,null,0]
["Sch IIA","Funds Held",null,"Mortgage Loans - Other Commercial",0,null,0,null,0,null,0]
["Sch IIA","Funds Held",null,"Mortgage Loans - Other Residential",0,null,0,null,0,null,0]
["Sch IIA","Funds Held",null,"Mortgage Loans - Not Good Stand.",0,null,0,null,0,null,0]
["Sch IIA","Funds Held",null,"Cash and Cash Equivalents",0,null,0,null,0,null,0]
["Sch IIA","Funds Held",null,"NAIC Resid. MBS - Orig. Class 1",0,null,null,null,0]
["Sch IIA","Funds Held",null,"NAIC Resid. MBS - Orig. Class 2",0,null,null,null,0]
["Sch IIA","Funds Held",null,"NAIC Resid. MBS - Orig. Class 3",0,null,null,null,0]
["Sch IIA","Funds Held",null,"NAIC Resid. MBS - Orig. Class 4",0,null,null,null,0]
["Sch IIA","Funds Held",null,"NAIC Resid. MBS - Orig. Class 5",0,null,null,null,0]
["Sch IIA","Funds Held",null,"NAIC Resid. MBS - Orig. Class 6",0,null,null,null,0]
["Sch IIA","Funds Held",null,"NAIC Resid. MBS - Orig. Total",0,null,null,null,0]
["Sch IIA","Funds Held",null,"NAIC Resid. MBS - Rev. Class 1",0,null,null,null,0]
["Sch IIA","Funds Held",null,"NAIC Resid. MBS - Rev. Class 2",0,null,null,null,0]
["Sch IIA","Funds Held",null,"NAIC Resid. MBS - Rev. Class 3",0,null,null,null,0]
["Sch IIA","Funds Held",null,"NAIC Resid. MBS - Rev. Class 4",0,null,null,null,0]
["Sch IIA","Funds Held",null,"NAIC Resid. MBS - Rev. Class 5",0,null,null,null,0]
["Sch IIA","Funds Held",null,"NAIC Resid. MBS - Rev. Class 6",0,null,null,null,0]
["Sch IIA","Funds Held",null,"NAIC Resid. MBS - Rev. Total",0,null,null,null,0]
["Sch IIA","Funds Held",null,"NAIC Comm. MBS - Orig. Class 1",0,null,null,null,0]
["Sch IIA","Funds Held",null,"NAIC Comm. MBS - Orig. Class 2",0,null,null,null,0]
["Sch IIA","Funds Held",null,"NAIC Comm. MBS - Orig. Class 3",0,null,null,null,0]
["Sch IIA","Funds Held",null,"NAIC Comm. MBS - Orig. Class 4",0,null,null,null,0]
["Sch IIA","Funds Held",null,"NAIC Comm. MBS - Orig. Class 5",0,null,null,null,0]
["Sch IIA","Funds Held",null,"NAIC Comm. MBS - Orig. Class 6",0,null,null,null,0]
["Sch IIA","Funds Held",null,"NAIC Comm. MBS - Orig. Total",0,null,null,null,0]
["Sch IIA","Funds Held",null,"NAIC Comm. MBS - Rev. Class 1",0,null,null,null,0]
["Sch IIA","Funds Held",null,"NAIC Comm. MBS - Rev. Class 2",0,null,null,null,0]
["Sch IIA","Funds Held",null,"NAIC Comm. MBS - Rev. Class 3",0,null,null,null,0]
["Sch IIA","Funds Held",null,"NAIC Comm. MBS - Rev. Class 4",0,null,null,null,0]
["Sch IIA","Funds Held",null,"NAIC Comm. MBS - Rev. Class 5",0,null,null,null,0]
["Sch IIA","Funds Held",null,"NAIC Comm. MBS - Rev. Class 6",0,null,null,null,0]
["Sch IIA","Funds Held",null,"NAIC Comm. MBS - Rev. Total",0,null,null,null,0]
["Sch IIA","Funds Held",null,"NAIC Rating Corp & Sov. Bond - Class 1",0,null,null,null,0]
["Sch IIA","Funds Held",null,"NAIC Rating Corp & Sov. Bond - Class 2",0,null,null,null,0]
["Sch IIA","Funds Held",null,"NAIC Rating Corp & Sov. Bond - Class 3",0,null,null,null,0]
["Sch IIA","Funds Held",null,"NAIC Rating Corp & Sov. Bond - Class 4",0,null,null,null,0]
["Sch IIA","Funds Held",null,"NAIC Rating Corp & Sov. Bond - Class 5",0,null,null,null,0]
["Sch IIA","Funds Held",null,"NAIC Rating Corp & Sov. Bond - Class 6",0,null,null,null,0]
["Sch IIA","Funds Held",null,"NAIC Rating Corp & Sov. Bond - Total",0,null,null,null,0]
["Sch IIA","Funds Held",null,"NAIC Rating Resid. MBS - Class 1",0,null,null,null,0]
["Sch IIA","Funds Held",null,"NAIC Rating Resid. MBS - Class 2",0,null,null,null,0]
["Sch IIA","Funds Held",null,"NAIC Rating Resid. MBS - Class 3",0,null,null,null,0]
["Sch IIA","Funds Held",null,"NAIC Rating Resid. MBS - Class 4",0,null,null,null,0]
["Sch IIA","Funds Held",null,"NAIC Rating Resid. MBS - Class 5",0,null,null,null,0]
["Sch IIA","Funds Held",null,"NAIC Rating Resid. MBS - Class 6",0,null,null,null,0]
["Sch IIA","Funds Held",null,"NAIC Rating Resid. MBS - Total",0,null,null,null,0]
["Sch IIA","Funds Held",null,"NAIC Rating Comm. MBS - Class 1",0,null,null,null,0]
["Sch IIA","Funds Held",null,"NAIC Rating Comm. MBS - Class 2",0,null,null,null,0]
["Sch IIA","Funds Held",null,"NAIC Rating Comm. MBS - Class 3",0,null,null,null,0]
["Sch IIA","Funds Held",null,"NAIC Rating Comm. MBS - Class 4",0,null,null,null,0]
["Sch IIA","Funds Held",null,"NAIC Rating Comm. MBS - Class 5",0,null,null,null,0]
["Sch IIA","Funds Held",null,"NAIC Rating Comm. MBS - Class 6",0,null,null,null,0]
["Sch IIA","Funds Held",null,"NAIC Rating Comm. MBS - Total",0,null,null,null,0]
["Sch IIA","Funds Held",null,"NAIC Rating Bond Mutual - Class 1",0,null,null,null,0]
["Sch IIA","Funds Held",null,"NAIC Rating Bond Mutual - Class 2",0,null,null,null,0]
["Sch IIA","Funds Held",null,"NAIC Rating Bond Mutual - Class 3",0,null,null,null,0]
["Sch IIA","Funds Held",null,"NAIC Rating Bond Mutual - Class 4",0,null,null,null,0]
["Sch IIA","Funds Held",null,"NAIC Rating Bond Mutual - Class 5",0,null,null,null,0]
["Sch IIA","Funds Held",null,"NAIC Rating Bond Mutual - Class 6",0,null,null,null,0]
["Sch IIA","Funds Held",null,"NAIC Rating Bond Mutual - Total",0,null,null,null,0]
["Sch IIA","Funds Held",null,"NAIC Rating Mort. Loan - Class 1",0,null,null,null,0]
["Sch IIA","Funds Held",null,"NAIC Rating Mort. Loan - Class 2",0,null,null,null,0]
["Sch IIA","Funds Held",null,"NAIC Rating Mort. Loan - Class 3",0,null,null,null,0]
["Sch IIA","Funds Held",null,"NAIC Rating Mort. Loan - Class 4",0,null,null,null,0]
["Sch IIA","Funds Held",null,"NAIC Rating Mort. Loan - Class 5",0,null,null,null,0]
["Sch IIA","Funds Held",null,"NAIC Rating Mort. Loan - Class 6",0,null,null,null,0]
["Sch IIA","Funds Held",null,"NAIC Rating Mort. Loan - Total",0,null,null,null,0]
["Sch IIA","Funds Held",null,"NAIC Rating Pref. Stock - Class 1",0,null,null,null,0]
["Sch IIA","Funds Held",null,"NAIC Rating Pref. Stock - Class 2",0,null,null,null,0]
["Sch IIA","Funds Held",null,"NAIC Rating Pref. Stock - Class 3",0,null,null,null,0]
["Sch IIA","Funds Held",null,"NAIC Rating Pref. Stock - Class 4",0,null,null,null,0]
["Sch IIA","Funds Held",null,"NAIC Rating Pref. Stock - Class 5",0,null,null,null,0]
["Sch IIA","Funds Held",null,"NAIC Rating Pref. Stock - Class 6",0,null,null,null,0]
["Sch IIA","Funds Held",null,"NAIC Rating Pref. Stock - Total",0,null,null,null,0]
["Sch IIA","Funds Held",null,"NAIC Rating Other Assets - Class 1",0,null,null,null,0]
["Sch IIA","Funds Held",null,"NAIC Rating Other Assets - Class 2",0,null,null,null,0]
["Sch IIA","Funds Held",null,"NAIC Rating Other Assets - Class 3",0,null,null,null,0]
["Sch IIA","Funds Held",null,"NAIC Rating Other Assets - Class 4",0,null,null,null,0]
["Sch IIA","Funds Held",null,"NAIC Rating Other Assets - Class 5",0,null,null,null,0]
["Sch IIA","Funds Held",null,"NAIC Rating Other Assets - Class 6",0,null,null,null,0]
["Sch IIA","Funds Held",null,"NAIC Rating Other Assets - Total",0,null,null,null,0]
[]
["Sch III","Losses by Line",null,"Reserve - Property Catastrophe",0,null,0]
["Sch III","Losses by Line",null,"Reserve - Property",0,null,0]
["Sch III","Losses by Line",null,"Reserve - Property Non-Proportion",0,null,0]
["Sch III","Losses by Line",null,"Reserve - Personal Accident",0,null,0]
["Sch III","Losses by Line",null,"Reserve - Personal Acc. Non Prop.",0,null,0]
["Sch III","Losses by Line",null,"Reserve - Aviation",0,null,0]
["Sch III","Losses by Line",null,"Reserve - Aviation Non-Proportional",0,null,0]
["Sch III","Losses by Line",null,"Reserve - Credit Surety",0,null,0]
["Sch III","Losses by Line",null,"Reserve - Credit Surety Non-Prop.",0,null,0]
["Sch III","Losses by Line",null,"Reserve - Energy",0,null,0]
["Sch III","Losses by Line",null,"Reserve - Energy Non-Proportional",0,null,0]
["Sch III","Losses by Line",null,"Reserve - US Casualty",0,null,0]
["Sch III","Losses by Line",null,"Reserve - US Casualty Non-Prop.",0,null,0]
["Sch III","Losses by Line",null,"Reserve - US Professional",0,null,0]
["Sch III","Losses by Line",null,"Reserve - US Professional Non-Prop.",0,null,0]
["Sch III","Losses by Line",null,"Reserve - US Specialty",0,null,0]
["Sch III","Losses by Line",null,"Reserve - US Specialty Non-Prop.",0,null,0]
["Sch III","Losses by Line",null,"Reserve - Int'l Motor",0,null,0]
["Sch III","Losses by Line",null,"Reserve - Int'l Motor Non-Prop.",0,null,0]
["Sch III","Losses by Line",null,"Reserve - Int'l Casualty",0,null,0]
["Sch III","Losses by Line",null,"Reserve - Int'l Casualty Non-Prop.",0,null,0]
["Sch III","Losses by Line",null,"Reserve - Retro Property",0,null,0]
["Sch III","Losses by Line",null,"Reserve - Structured / Finite R/I",0,null,0]
["Sch III","Losses by Line",null,"Reserve - Health",0,null,0]
[]
["Sch III","Losses by Line",null,"Res. Gross - Property Catastrophe",null,null,null,null,0]
["Sch III","Losses by Line",null,"Res. Gross - Property",null,null,null,null,0]
["Sch III","Losses by Line",null,"Res. Gross - Property Non-Proportion",null,null,null,null,0]
["Sch III","Losses by Line",null,"Res. Gross - Personal Accident",null,null,null,null,0]
["Sch III","Losses by Line",null,"Res. Gross - Personal Acc. Non Prop.",null,null,null,null,0]
["Sch III","Losses by Line",null,"Res. Gross - Aviation",null,null,null,null,0]
["Sch III","Losses by Line",null,"Res. Gross - Aviation Non-Proportional",null,null,null,null,0]
["Sch III","Losses by Line",null,"Res. Gross - Credit Surety",null,null,null,null,0]
["Sch III","Losses by Line",null,"Res. Gross - Credit Surety Non-Prop.",null,null,null,null,0]
["Sch III","Losses by Line",null,"Res. Gross - Energy",null,null,null,null,0]
["Sch III","Losses by Line",null,"Res. Gross - Energy Non-Proportional",null,null,null,null,0]
["Sch III","Losses by Line",null,"Res. Gross - US Casualty",null,null,null,null,0]
["Sch III","Losses by Line",null,"Res. Gross - US Casualty Non-Prop.",null,null,null,null,0]
["Sch III","Losses by Line",null,"Res. Gross - US Professional",null,null,null,null,0]
["Sch III","Losses by Line",null,"Res. Gross - US Professional Non-Prop.",null,null,null,null,0]
["Sch III","Losses by Line",null,"Res. Gross - US Specialty",null,null,null,null,0]
["Sch III","Losses by Line",null,"Res. Gross - US Specialty Non-Prop.",null,null,null,null,0]
["Sch III","Losses by Line",null,"Res. Gross - Int'l Motor",null,null,null,null,0]
["Sch III","Losses by Line",null,"Res. Gross - Int'l Motor Non-Prop.",null,null,null,null,0]
["Sch III","Losses by Line",null,"Res. Gross - Int'l Casualty",null,null,null,null,0]
["Sch III","Losses by Line",null,"Res. Gross - Int'l Casualty Non-Prop.",null,null,null,null,0]
["Sch III","Losses by Line",null,"Res. Gross - Retro Property",null,null,null,null,0]
["Sch III","Losses by Line",null,"Res. Gross - Structured / Finite R/I",null,null,null,null,0]
["Sch III","Losses by Line",null,"Res. Gross - Health",null,null,null,null,0]
["Sch III","Losses by Line",null,"Res. Net - Property Catastrophe",null,null,null,null,0]
["Sch III","Losses by Line",null,"Res. Net - Property",null,null,null,null,0]
["Sch III","Losses by Line",null,"Res. Net - Property Non-Proportion",null,null,null,null,0]
["Sch III","Losses by Line",null,"Res. Net - Personal Accident",null,null,null,null,0]
["Sch III","Losses by Line",null,"Res. Net - Personal Acc. Non Prop.",null,null,null,null,0]
["Sch III","Losses by Line",null,"Res. Net - Aviation",null,null,null,null,0]
["Sch III","Losses by Line",null,"Res. Net - Aviation Non-Proportional",null,null,null,null,0]
["Sch III","Losses by Line",null,"Res. Net - Credit Surety",null,null,null,null,0]
["Sch III","Losses by Line",null,"Res. Net - Credit Surety Non-Prop.",null,null,null,null,0]
["Sch III","Losses by Line",null,"Res. Net - Energy",null,null,null,null,0]
["Sch III","Losses by Line",null,"Res. Net - Energy Non-Proportional",null,null,null,null,0]
["Sch III","Losses by Line",null,"Res. Net - US Casualty",null,null,null,null,0]
["Sch III","Losses by Line",null,"Res. Net - US Casualty Non-Prop.",null,null,null,null,0]
["Sch III","Losses by Line",null,"Res. Net - US Professional",null,null,null,null,0]
["Sch III","Losses by Line",null,"Res. Net - US Professional Non-Prop.",null,null,null,null,0]
["Sch III","Losses by Line",null,"Res. Net - US Specialty",null,null,null,null,0]
["Sch III","Losses by Line",null,"Res. Net - US Specialty Non-Prop.",null,null,null,null,0]
["Sch III","Losses by Line",null,"Res. Net - Int'l Motor",null,null,null,null,0]
["Sch III","Losses by Line",null,"Res. Net - Int'l Motor Non-Prop.",null,null,null,null,0]
["Sch III","Losses by Line",null,"Res. Net - Int'l Casualty",null,null,null,null,0]
["Sch III","Losses by Line",null,"Res. Net - Int'l Casualty Non-Prop.",null,null,null,null,0]
["Sch III","Losses by Line",null,"Res. Net - Retro Property",null,null,null,null,0]
["Sch III","Losses by Line",null,"Res. Net - Structured / Finite R/I",null,null,null,null,0]
["Sch III","Losses by Line",null,"Res. Net - Health",null,null,null,null,0]
["Sch III","Losses by Line",null,"Note 16di - Property Catastrophe",null,null,null,null,0]
["Sch III","Losses by Line",null,"Note 16di - Property",null,null,null,null,0]
["Sch III","Losses by Line",null,"Note 16di - Property Non-Proportion",null,null,null,null,0]
["Sch III","Losses by Line",null,"Note 16di - Personal Accident",null,null,null,null,0]
["Sch III","Losses by Line",null,"Note 16di - Personal Acc. Non Prop.",null,null,null,null,0]
["Sch III","Losses by Line",null,"Note 16di - Aviation",null,null,null,null,0]
["Sch III","Losses by Line",null,"Note 16di - Aviation Non-Proportional",null,null,null,null,0]
["Sch III","Losses by Line",null,"Note 16di - Credit Surety",null,null,null,null,0]
["Sch III","Losses by Line",null,"Note 16di - Credit Surety Non-Prop.",null,null,null,null,0]
["Sch III","Losses by Line",null,"Note 16di - Energy",null,null,null,null,0]
["Sch III","Losses by Line",null,"Note 16di - Energy Non-Proportional",null,null,null,null,0]
["Sch III","Losses by Line",null,"Note 16di - US Casualty",null,null,null,null,0]
["Sch III","Losses by Line",null,"Note 16di - US Casualty Non-Prop.",null,null,null,null,0]
["Sch III","Losses by Line",null,"Note 16di - US Professional",null,null,null,null,0]
["Sch III","Losses by Line",null,"Note 16di - US Professional Non-Prop.",null,null,null,null,0]
["Sch III","Losses by Line",null,"Note 16di - US Specialty",null,null,null,null,0]
["Sch III","Losses by Line",null,"Note 16di - US Specialty Non-Prop.",null,null,null,null,0]
["Sch III","Losses by Line",null,"Note 16di - Int'l Motor",null,null,null,null,0]
["Sch III","Losses by Line",null,"Note 16di - Int'l Motor Non-Prop.",null,null,null,null,0]
["Sch III","Losses by Line",null,"Note 16di - Int'l Casualty",null,null,null,null,0]
["Sch III","Losses by Line",null,"Note 16di - Int'l Casualty Non-Prop.",null,null,null,null,0]
["Sch III","Losses by Line",null,"Note 16di - Retro Property",null,null,null,null,0]
["Sch III","Losses by Line",null,"Note 16di - Structured / Finite R/I",null,null,null,null,0]
["Sch III","Losses by Line",null,"Note 16di - Health",null,null,null,null,0]
["Sch III","Losses by Line",null,"Note 16dii - Property Catastrophe",null,null,null,null,0]
["Sch III","Losses by Line",null,"Note 16dii - Property",null,null,null,null,0]
["Sch III","Losses by Line",null,"Note 16dii - Property Non-Proportion",null,null,null,null,0]
["Sch III","Losses by Line",null,"Note 16dii - Personal Accident",null,null,null,null,0]
["Sch III","Losses by Line",null,"Note 16dii - Personal Acc. Non Prop.",null,null,null,null,0]
["Sch III","Losses by Line",null,"Note 16dii - Aviation",null,null,null,null,0]
["Sch III","Losses by Line",null,"Note 16dii - Aviation Non-Proportional",null,null,null,null,0]
["Sch III","Losses by Line",null,"Note 16dii - Credit Surety",null,null,null,null,0]
["Sch III","Losses by Line",null,"Note 16dii - Credit Surety Non-Prop.",null,null,null,null,0]
["Sch III","Losses by Line",null,"Note 16dii - Energy",null,null,null,null,0]
["Sch III","Losses by Line",null,"Note 16dii - Energy Non-Proportional",null,null,null,null,0]
["Sch III","Losses by Line",null,"Note 16dii - US Casualty",null,null,null,null,0]
["Sch III","Losses by Line",null,"Note 16dii - US Casualty Non-Prop.",null,null,null,null,0]
["Sch III","Losses by Line",null,"Note 16dii - US Professional",null,null,null,null,0]
["Sch III","Losses by Line",null,"Note 16dii - US Professional Non-Prop.",null,null,null,null,0]
["Sch III","Losses by Line",null,"Note 16dii - US Specialty",null,null,null,null,0]
["Sch III","Losses by Line",null,"Note 16dii - US Specialty Non-Prop.",null,null,null,null,0]
["Sch III","Losses by Line",null,"Note 16dii - Int'l Motor",null,null,null,null,0]
["Sch III","Losses by Line",null,"Note 16dii - Int'l Motor Non-Prop.",null,null,null,null,0]
["Sch III","Losses by Line",null,"Note 16dii - Int'l Casualty",null,null,null,null,0]
["Sch III","Losses by Line",null,"Note 16dii - Int'l Casualty Non-Prop.",null,null,null,null,0]
["Sch III","Losses by Line",null,"Note 16dii - Retro Property",null,null,null,null,0]
["Sch III","Losses by Line",null,"Note 16dii - Structured / Finite R/I",null,null,null,null,0]
["Sch III","Losses by Line",null,"Note 16dii - Health",null,null,null,null,0]
["Sch III","Losses by Line",null,"Note 17d - Property Catastrophe",null,null,null,null,0]
["Sch III","Losses by Line",null,"Note 17d - Property",null,null,null,null,0]
["Sch III","Losses by Line",null,"Note 17d - Property Non-Proportion",null,null,null,null,0]
["Sch III","Losses by Line",null,"Note 17d - Personal Accident",null,null,null,null,0]
["Sch III","Losses by Line",null,"Note 17d - Personal Acc. Non Prop.",null,null,null,null,0]
["Sch III","Losses by Line",null,"Note 17d - Aviation",null,null,null,null,0]
["Sch III","Losses by Line",null,"Note 17d - Aviation Non-Proportional",null,null,null,null,0]
["Sch III","Losses by Line",null,"Note 17d - Credit Surety",null,null,null,null,0]
["Sch III","Losses by Line",null,"Note 17d - Credit Surety Non-Prop.",null,null,null,null,0]
["Sch III","Losses by Line",null,"Note 17d - Energy",null,null,null,null,0]
["Sch III","Losses by Line",null,"Note 17d - Energy Non-Proportional",null,null,null,null,0]
["Sch III","Losses by Line",null,"Note 17d - US Casualty",null,null,null,null,0]
["Sch III","Losses by Line",null,"Note 17d - US Casualty Non-Prop.",null,null,null,null,0]
["Sch III","Losses by Line",null,"Note 17d - US Professional",null,null,null,null,0]
["Sch III","Losses by Line",null,"Note 17d - US Professional Non-Prop.",null,null,null,null,0]
["Sch III","Losses by Line",null,"Note 17d - US Specialty",null,null,null,null,0]
["Sch III","Losses by Line",null,"Note 17d - US Specialty Non-Prop.",null,null,null,null,0]
["Sch III","Losses by Line",null,"Note 17d - Int'l Motor",null,null,null,null,0]
["Sch III","Losses by Line",null,"Note 17d - Int'l Motor Non-Prop.",null,null,null,null,0]
["Sch III","Losses by Line",null,"Note 17d - Int'l Casualty",null,null,null,null,0]
["Sch III","Losses by Line",null,"Note 17d - Int'l Casualty Non-Prop.",null,null,null,null,0]
["Sch III","Losses by Line",null,"Note 17d - Retro Property",null,null,null,null,0]
["Sch III","Losses by Line",null,"Note 17d - Structured / Finite R/I",null,null,null,null,0]
["Sch III","Losses by Line",null,"Note 17d - Health",null,null,null,null,0]
["Sch IIIA",null,null,"Res. Zn 1 - Property Catastrophe",null,null,null,null,0]
["Sch IIIA","Losses by Zone",null,"Res. Zn 1 - Property",null,null,null,null,0]
["Sch IIIA","Losses by Zone",null,"Res. Zn 1 - Property Non-Proportion",null,null,null,null,0]
["Sch IIIA","Losses by Zone",null,"Res. Zn 1 - Personal Accident",null,null,null,null,0]
["Sch IIIA","Losses by Zone",null,"Res. Zn 1 - Personal Acc. Non Prop.",null,null,null,null,0]
["Sch IIIA","Losses by Zone",null,"Res. Zn 1 - Aviation",null,null,null,null,0]
["Sch IIIA","Losses by Zone",null,"Res. Zn 1 - Aviation Non-Proportional",null,null,null,null,0]
["Sch IIIA","Losses by Zone",null,"Res. Zn 1 - Credit Surety",null,null,null,null,0]
["Sch IIIA","Losses by Zone",null,"Res. Zn 1 - Credit Surety Non-Prop.",null,null,null,null,0]
["Sch IIIA","Losses by Zone",null,"Res. Zn 1 - Energy",null,null,null,null,0]
["Sch IIIA","Losses by Zone",null,"Res. Zn 1 - Energy Non-Proportional",null,null,null,null,0]
["Sch IIIA","Losses by Zone",null,"Res. Zn 1 - US Casualty",null,null,null,null,0]
["Sch IIIA","Losses by Zone",null,"Res. Zn 1 - US Casualty Non-Prop.",null,null,null,null,0]
["Sch IIIA","Losses by Zone",null,"Res. Zn 1 - US Professional",null,null,null,null,0]
["Sch IIIA","Losses by Zone",null,"Res. Zn 1 - US Professional Non-Prop.",null,null,null,null,0]
["Sch IIIA","Losses by Zone",null,"Res. Zn 1 - US Specialty",null,null,null,null,0]
["Sch IIIA","Losses by Zone",null,"Res. Zn 1 - US Specialty Non-Prop.",null,null,null,null,0]
["Sch IIIA","Losses by Zone",null,"Res. Zn 1 - Int'l Motor",null,null,null,null,0]
["Sch IIIA","Losses by Zone",null,"Res. Zn 1 - Int'l Motor Non-Prop.",null,null,null,null,0]
["Sch IIIA","Losses by Zone",null,"Res. Zn 1 - Int'l Casualty",null,null,null,null,0]
["Sch IIIA","Losses by Zone",null,"Res. Zn 1 - Int'l Casualty Non-Prop.",null,null,null,null,0]
["Sch IIIA","Losses by Zone",null,"Res. Zn 1 - Retro Property",null,null,null,null,0]
["Sch IIIA","Losses by Zone",null,"Res. Zn 1 - Structured / Finite R/I",null,null,null,null,0]
["Sch IIIA","Losses by Zone",null,"Res. Zn 1 - Health",null,null,null,null,0]
["Sch IIIA","Losses by Zone",null,"Res. Zn 1 - Total",null,null,null,null,0]
["Sch IIIA","Losses by Zone",null,"Res. Zn 2 - Property Catastrophe",null,null,null,null,0]
["Sch IIIA","Losses by Zone",null,"Res. Zn 2 - Property",null,null,null,null,0]
["Sch IIIA","Losses by Zone",null,"Res. Zn 2 - Property Non-Proportion",null,null,null,null,0]
["Sch IIIA","Losses by Zone",null,"Res. Zn 2 - Personal Accident",null,null,null,null,0]
["Sch IIIA","Losses by Zone",null,"Res. Zn 2 - Personal Acc. Non Prop.",null,null,null,null,0]
["Sch IIIA","Losses by Zone",null,"Res. Zn 2 - Aviation",null,null,null,null,0]
["Sch IIIA","Losses by Zone",null,"Res. Zn 2 - Aviation Non-Proportional",null,null,null,null,0]
["Sch IIIA","Losses by Zone",null,"Res. Zn 2 - Credit Surety",null,null,null,null,0]
["Sch IIIA","Losses by Zone",null,"Res. Zn 2 - Credit Surety Non-Prop.",null,null,null,null,0]
["Sch IIIA","Losses by Zone",null,"Res. Zn 2 - Energy",null,null,null,null,0]
["Sch IIIA","Losses by Zone",null,"Res. Zn 2 - Energy Non-Proportional",null,null,null,null,0]
["Sch IIIA","Losses by Zone",null,"Res. Zn 2 - US Casualty",null,null,null,null,0]
["Sch IIIA","Losses by Zone",null,"Res. Zn 2 - US Casualty Non-Prop.",null,null,null,null,0]
["Sch IIIA","Losses by Zone",null,"Res. Zn 2 - US Professional",null,null,null,null,0]
["Sch IIIA","Losses by Zone",null,"Res. Zn 2 - US Professional Non-Prop.",null,null,null,null,0]
["Sch IIIA","Losses by Zone",null,"Res. Zn 2 - US Specialty",null,null,null,null,0]
["Sch IIIA","Losses by Zone",null,"Res. Zn 2 - US Specialty Non-Prop.",null,null,null,null,0]
["Sch IIIA","Losses by Zone",null,"Res. Zn 2 - Int'l Motor",null,null,null,null,0]
["Sch IIIA","Losses by Zone",null,"Res. Zn 2 - Int'l Motor Non-Prop.",null,null,null,null,0]
["Sch IIIA","Losses by Zone",null,"Res. Zn 2 - Int'l Casualty",null,null,null,null,0]
["Sch IIIA","Losses by Zone",null,"Res. Zn 2 - Int'l Casualty Non-Prop.",null,null,null,null,0]
["Sch IIIA","Losses by Zone",null,"Res. Zn 2 - Retro Property",null,null,null,null,0]
["Sch IIIA","Losses by Zone",null,"Res. Zn 2 - Structured / Finite R/I",null,null,null,null,0]
["Sch IIIA","Losses by Zone",null,"Res. Zn 2 - Health",null,null,null,null,0]
["Sch IIIA","Losses by Zone",null,"Res. Zn 2 - Total",null,null,null,null,0]
["Sch IIIA","Losses by Zone",null,"Res. Zn 3 - Property Catastrophe",null,null,null,null,0]
["Sch IIIA","Losses by Zone",null,"Res. Zn 3 - Property",null,null,null,null,0]
["Sch IIIA","Losses by Zone",null,"Res. Zn 3 - Property Non-Proportion",null,null,null,null,0]
["Sch IIIA","Losses by Zone",null,"Res. Zn 3 - Personal Accident",null,null,null,null,0]
["Sch IIIA","Losses by Zone",null,"Res. Zn 3 - Personal Acc. Non Prop.",null,null,null,null,0]
["Sch IIIA","Losses by Zone",null,"Res. Zn 3 - Aviation",null,null,null,null,0]
["Sch IIIA","Losses by Zone",null,"Res. Zn 3 - Aviation Non-Proportional",null,null,null,null,0]
["Sch IIIA","Losses by Zone",null,"Res. Zn 3 - Credit Surety",null,null,null,null,0]
["Sch IIIA","Losses by Zone",null,"Res. Zn 3 - Credit Surety Non-Prop.",null,null,null,null,0]
["Sch IIIA","Losses by Zone",null,"Res. Zn 3 - Energy",null,null,null,null,0]
["Sch IIIA","Losses by Zone",null,"Res. Zn 3 - Energy Non-Proportional",null,null,null,null,0]
["Sch IIIA","Losses by Zone",null,"Res. Zn 3 - US Casualty",null,null,null,null,0]
["Sch IIIA","Losses by Zone",null,"Res. Zn 3 - US Casualty Non-Prop.",null,null,null,null,0]
["Sch IIIA","Losses by Zone",null,"Res. Zn 3 - US Professional",null,null,null,null,0]
["Sch IIIA","Losses by Zone",null,"Res. Zn 3 - US Professional Non-Prop.",null,null,null,null,0]
["Sch IIIA","Losses by Zone",null,"Res. Zn 3 - US Specialty",null,null,null,null,0]
["Sch IIIA","Losses by Zone",null,"Res. Zn 3 - US Specialty Non-Prop.",null,null,null,null,0]
["Sch IIIA","Losses by Zone",null,"Res. Zn 3 - Int'l Motor",null,null,null,null,0]
["Sch IIIA","Losses by Zone",null,"Res. Zn 3 - Int'l Motor Non-Prop.",null,null,null,null,0]
["Sch IIIA","Losses by Zone",null,"Res. Zn 3 - Int'l Casualty",null,null,null,null,0]
["Sch IIIA","Losses by Zone",null,"Res. Zn 3 - Int'l Casualty Non-Prop.",null,null,null,null,0]
["Sch IIIA","Losses by Zone",null,"Res. Zn 3 - Retro Property",null,null,null,null,0]
["Sch IIIA","Losses by Zone",null,"Res. Zn 3 - Structured / Finite R/I",null,null,null,null,0]
["Sch IIIA","Losses by Zone",null,"Res. Zn 3 - Health",null,null,null,null,0]
["Sch IIIA","Losses by Zone",null,"Res. Zn 3 - Total",null,null,null,null,0]
["Sch IIIA","Losses by Zone",null,"Res. Zn 4 - Property Catastrophe",null,null,null,null,0]
["Sch IIIA","Losses by Zone",null,"Res. Zn 4 - Property",null,null,null,null,0]
["Sch IIIA","Losses by Zone",null,"Res. Zn 4 - Property Non-Proportion",null,null,null,null,0]
["Sch IIIA","Losses by Zone",null,"Res. Zn 4 - Personal Accident",null,null,null,null,0]
["Sch IIIA","Losses by Zone",null,"Res. Zn 4 - Personal Acc. Non Prop.",null,null,null,null,0]
["Sch IIIA","Losses by Zone",null,"Res. Zn 4 - Aviation",null,null,null,null,0]
["Sch IIIA","Losses by Zone",null,"Res. Zn 4 - Aviation Non-Proportional",null,null,null,null,0]
["Sch IIIA","Losses by Zone",null,"Res. Zn 4 - Credit Surety",null,null,null,null,0]
["Sch IIIA","Losses by Zone",null,"Res. Zn 4 - Credit Surety Non-Prop.",null,null,null,null,0]
["Sch IIIA","Losses by Zone",null,"Res. Zn 4 - Energy",null,null,null,null,0]
["Sch IIIA","Losses by Zone",null,"Res. Zn 4 - Energy Non-Proportional",null,null,null,null,0]
["Sch IIIA","Losses by Zone",null,"Res. Zn 4 - US Casualty",null,null,null,null,0]
["Sch IIIA","Losses by Zone",null,"Res. Zn 4 - US Casualty Non-Prop.",null,null,null,null,0]
["Sch IIIA","Losses by Zone",null,"Res. Zn 4 - US Professional",null,null,null,null,0]
["Sch IIIA","Losses by Zone",null,"Res. Zn 4 - US Professional Non-Prop.",null,null,null,null,0]
["Sch IIIA","Losses by Zone",null,"Res. Zn 4 - US Specialty",null,null,null,null,0]
["Sch IIIA","Losses by Zone",null,"Res. Zn 4 - US Specialty Non-Prop.",null,null,null,null,0]
["Sch IIIA","Losses by Zone",null,"Res. Zn 4 - Int'l Motor",null,null,null,null,0]
["Sch IIIA","Losses by Zone",null,"Res. Zn 4 - Int'l Motor Non-Prop.",null,null,null,null,0]
["Sch IIIA","Losses by Zone",null,"Res. Zn 4 - Int'l Casualty",null,null,null,null,0]
["Sch IIIA","Losses by Zone",null,"Res. Zn 4 - Int'l Casualty Non-Prop.",null,null,null,null,0]
["Sch IIIA","Losses by Zone",null,"Res. Zn 4 - Retro Property",null,null,null,null,0]
["Sch IIIA","Losses by Zone",null,"Res. Zn 4 - Structured / Finite R/I",null,null,null,null,0]
["Sch IIIA","Losses by Zone",null,"Res. Zn 4 - Health",null,null,null,null,0]
["Sch IIIA","Losses by Zone",null,"Res. Zn 4 - Total",null,null,null,null,0]
["Sch IIIA","Losses by Zone",null,"Res. Zn 5 - Property Catastrophe",null,null,null,null,0]
["Sch IIIA","Losses by Zone",null,"Res. Zn 5 - Property",null,null,null,null,0]
["Sch IIIA","Losses by Zone",null,"Res. Zn 5 - Property Non-Proportion",null,null,null,null,0]
["Sch IIIA","Losses by Zone",null,"Res. Zn 5 - Personal Accident",null,null,null,null,0]
["Sch IIIA","Losses by Zone",null,"Res. Zn 5 - Personal Acc. Non Prop.",null,null,null,null,0]
["Sch IIIA","Losses by Zone",null,"Res. Zn 5 - Aviation",null,null,null,null,0]
["Sch IIIA","Losses by Zone",null,"Res. Zn 5 - Aviation Non-Proportional",null,null,null,null,0]
["Sch IIIA","Losses by Zone",null,"Res. Zn 5 - Credit Surety",null,null,null,null,0]
["Sch IIIA","Losses by Zone",null,"Res. Zn 5 - Credit Surety Non-Prop.",null,null,null,null,0]
["Sch IIIA","Losses by Zone",null,"Res. Zn 5 - Energy",null,null,null,null,0]
["Sch IIIA","Losses by Zone",null,"Res. Zn 5 - Energy Non-Proportional",null,null,null,null,0]
["Sch IIIA","Losses by Zone",null,"Res. Zn 5 - US Casualty",null,null,null,null,0]
["Sch IIIA","Losses by Zone",null,"Res. Zn 5 - US Casualty Non-Prop.",null,null,null,null,0]
["Sch IIIA","Losses by Zone",null,"Res. Zn 5 - US Professional",null,null,null,null,0]
["Sch IIIA","Losses by Zone",null,"Res. Zn 5 - US Professional Non-Prop.",null,null,null,null,0]
["Sch IIIA","Losses by Zone",null,"Res. Zn 5 - US Specialty",null,null,null,null,0]
["Sch IIIA","Losses by Zone",null,"Res. Zn 5 - US Specialty Non-Prop.",null,null,null,null,0]
["Sch IIIA","Losses by Zone",null,"Res. Zn 5 - Int'l Motor",null,null,null,null,0]
["Sch IIIA","Losses by Zone",null,"Res. Zn 5 - Int'l Motor Non-Prop.",null,null,null,null,0]
["Sch IIIA","Losses by Zone",null,"Res. Zn 5 - Int'l Casualty",null,null,null,null,0]
["Sch IIIA","Losses by Zone",null,"Res. Zn 5 - Int'l Casualty Non-Prop.",null,null,null,null,0]
["Sch IIIA","Losses by Zone",null,"Res. Zn 5 - Retro Property",null,null,null,null,0]
["Sch IIIA","Losses by Zone",null,"Res. Zn 5 - Structured / Finite R/I",null,null,null,null,0]
["Sch IIIA","Losses by Zone",null,"Res. Zn 5 - Health",null,null,null,null,0]
["Sch IIIA","Losses by Zone",null,"Res. Zn 5 - Total",null,null,null,null,0]
["Sch IIIA","Losses by Zone",null,"Res. Zn 6 - Property Catastrophe",null,null,null,null,0]
["Sch IIIA","Losses by Zone",null,"Res. Zn 6 - Property",null,null,null,null,0]
["Sch IIIA","Losses by Zone",null,"Res. Zn 6 - Property Non-Proportion",null,null,null,null,0]
["Sch IIIA","Losses by Zone",null,"Res. Zn 6 - Personal Accident",null,null,null,null,0]
["Sch IIIA","Losses by Zone",null,"Res. Zn 6 - Personal Acc. Non Prop.",null,null,null,null,0]
["Sch IIIA","Losses by Zone",null,"Res. Zn 6 - Aviation",null,null,null,null,0]
["Sch IIIA","Losses by Zone",null,"Res. Zn 6 - Aviation Non-Proportional",null,null,null,null,0]
["Sch IIIA","Losses by Zone",null,"Res. Zn 6 - Credit Surety",null,null,null,null,0]
["Sch IIIA","Losses by Zone",null,"Res. Zn 6 - Credit Surety Non-Prop.",null,null,null,null,0]
["Sch IIIA","Losses by Zone",null,"Res. Zn 6 - Energy",null,null,null,null,0]
["Sch IIIA","Losses by Zone",null,"Res. Zn 6 - Energy Non-Proportional",null,null,null,null,0]
["Sch IIIA","Losses by Zone",null,"Res. Zn 6 - US Casualty",null,null,null,null,0]
["Sch IIIA","Losses by Zone",null,"Res. Zn 6 - US Casualty Non-Prop.",null,null,null,null,0]
["Sch IIIA","Losses by Zone",null,"Res. Zn 6 - US Professional",null,null,null,null,0]
["Sch IIIA","Losses by Zone",null,"Res. Zn 6 - US Professional Non-Prop.",null,null,null,null,0]
["Sch IIIA","Losses by Zone",null,"Res. Zn 6 - US Specialty",null,null,null,null,0]
["Sch IIIA","Losses by Zone",null,"Res. Zn 6 - US Specialty Non-Prop.",null,null,null,null,0]
["Sch IIIA","Losses by Zone",null,"Res. Zn 6 - Int'l Motor",null,null,null,null,0]
["Sch IIIA","Losses by Zone",null,"Res. Zn 6 - Int'l Motor Non-Prop.",null,null,null,null,0]
["Sch IIIA","Losses by Zone",null,"Res. Zn 6 - Int'l Casualty",null,null,null,null,0]
["Sch IIIA","Losses by Zone",null,"Res. Zn 6 - Int'l Casualty Non-Prop.",null,null,null,null,0]
["Sch IIIA","Losses by Zone",null,"Res. Zn 6 - Retro Property",null,null,null,null,0]
["Sch IIIA","Losses by Zone",null,"Res. Zn 6 - Structured / Finite R/I",null,null,null,null,0]
["Sch IIIA","Losses by Zone",null,"Res. Zn 6 - Health",null,null,null,null,0]
["Sch IIIA","Losses by Zone",null,"Res. Zn 6 - Total",null,null,null,null,0]
["Sch IIIA","Losses by Zone",null,"Res. Zn 7 - Property Catastrophe",null,null,null,null,0]
["Sch IIIA","Losses by Zone",null,"Res. Zn 7 - Property",null,null,null,null,0]
["Sch IIIA","Losses by Zone",null,"Res. Zn 7 - Property Non-Proportion",null,null,null,null,0]
["Sch IIIA","Losses by Zone",null,"Res. Zn 7 - Personal Accident",null,null,null,null,0]
["Sch IIIA","Losses by Zone",null,"Res. Zn 7 - Personal Acc. Non Prop.",null,null,null,null,0]
["Sch IIIA","Losses by Zone",null,"Res. Zn 7 - Aviation",null,null,null,null,0]
["Sch IIIA","Losses by Zone",null,"Res. Zn 7 - Aviation Non-Proportional",null,null,null,null,0]
["Sch IIIA","Losses by Zone",null,"Res. Zn 7 - Credit Surety",null,null,null,null,0]
["Sch IIIA","Losses by Zone",null,"Res. Zn 7 - Credit Surety Non-Prop.",null,null,null,null,0]
["Sch IIIA","Losses by Zone",null,"Res. Zn 7 - Energy",null,null,null,null,0]
["Sch IIIA","Losses by Zone",null,"Res. Zn 7 - Energy Non-Proportional",null,null,null,null,0]
["Sch IIIA","Losses by Zone",null,"Res. Zn 7 - US Casualty",null,null,null,null,0]
["Sch IIIA","Losses by Zone",null,"Res. Zn 7 - US Casualty Non-Prop.",null,null,null,null,0]
["Sch IIIA","Losses by Zone",null,"Res. Zn 7 - US Professional",null,null,null,null,0]
["Sch IIIA","Losses by Zone",null,"Res. Zn 7 - US Professional Non-Prop.",null,null,null,null,0]
["Sch IIIA","Losses by Zone",null,"Res. Zn 7 - US Specialty",null,null,null,null,0]
["Sch IIIA","Losses by Zone",null,"Res. Zn 7 - US Specialty Non-Prop.",null,null,null,null,0]
["Sch IIIA","Losses by Zone",null,"Res. Zn 7 - Int'l Motor",null,null,null,null,0]
["Sch IIIA","Losses by Zone",null,"Res. Zn 7 - Int'l Motor Non-Prop.",null,null,null,null,0]
["Sch IIIA","Losses by Zone",null,"Res. Zn 7 - Int'l Casualty",null,null,null,null,0]
["Sch IIIA","Losses by Zone",null,"Res. Zn 7 - Int'l Casualty Non-Prop.",null,null,null,null,0]
["Sch IIIA","Losses by Zone",null,"Res. Zn 7 - Retro Property",null,null,null,null,0]
["Sch IIIA","Losses by Zone",null,"Res. Zn 7 - Structured / Finite R/I",null,null,null,null,0]
["Sch IIIA","Losses by Zone",null,"Res. Zn 7 - Health",null,null,null,null,0]
["Sch IIIA","Losses by Zone",null,"Res. Zn 7 - Total",null,null,null,null,0]
["Sch IIIA","Losses by Zone",null,"Res. Zn 8 - Property Catastrophe",null,null,null,null,0]
["Sch IIIA","Losses by Zone",null,"Res. Zn 8 - Property",null,null,null,null,0]
["Sch IIIA","Losses by Zone",null,"Res. Zn 8 - Property Non-Proportion",null,null,null,null,0]
["Sch IIIA","Losses by Zone",null,"Res. Zn 8 - Personal Accident",null,null,null,null,0]
["Sch IIIA","Losses by Zone",null,"Res. Zn 8 - Personal Acc. Non Prop.",null,null,null,null,0]
["Sch IIIA","Losses by Zone",null,"Res. Zn 8 - Aviation",null,null,null,null,0]
["Sch IIIA","Losses by Zone",null,"Res. Zn 8 - Aviation Non-Proportional",null,null,null,null,0]
["Sch IIIA","Losses by Zone",null,"Res. Zn 8 - Credit Surety",null,null,null,null,0]
["Sch IIIA","Losses by Zone",null,"Res. Zn 8 - Credit Surety Non-Prop.",null,null,null,null,0]
["Sch IIIA","Losses by Zone",null,"Res. Zn 8 - Energy",null,null,null,null,0]
["Sch IIIA","Losses by Zone",null,"Res. Zn 8 - Energy Non-Proportional",null,null,null,null,0]
["Sch IIIA","Losses by Zone",null,"Res. Zn 8 - US Casualty",null,null,null,null,0]
["Sch IIIA","Losses by Zone",null,"Res. Zn 8 - US Casualty Non-Prop.",null,null,null,null,0]
["Sch IIIA","Losses by Zone",null,"Res. Zn 8 - US Professional",null,null,null,null,0]
["Sch IIIA","Losses by Zone",null,"Res. Zn 8 - US Professional Non-Prop.",null,null,null,null,0]
["Sch IIIA","Losses by Zone",null,"Res. Zn 8 - US Specialty",null,null,null,null,0]
["Sch IIIA","Losses by Zone",null,"Res. Zn 8 - US Specialty Non-Prop.",null,null,null,null,0]
["Sch IIIA","Losses by Zone",null,"Res. Zn 8 - Int'l Motor",null,null,null,null,0]
["Sch IIIA","Losses by Zone",null,"Res. Zn 8 - Int'l Motor Non-Prop.",null,null,null,null,0]
["Sch IIIA","Losses by Zone",null,"Res. Zn 8 - Int'l Casualty",null,null,null,null,0]
["Sch IIIA","Losses by Zone",null,"Res. Zn 8 - Int'l Casualty Non-Prop.",null,null,null,null,0]
["Sch IIIA","Losses by Zone",null,"Res. Zn 8 - Retro Property",null,null,null,null,0]
["Sch IIIA","Losses by Zone",null,"Res. Zn 8 - Structured / Finite R/I",null,null,null,null,0]
["Sch IIIA","Losses by Zone",null,"Res. Zn 8 - Health",null,null,null,null,0]
["Sch IIIA","Losses by Zone",null,"Res. Zn 8 - Total",null,null,null,null,0]
["Sch IIIA","Losses by Zone",null,"Res. Zn 9 - Property Catastrophe",null,null,null,null,0]
["Sch IIIA","Losses by Zone",null,"Res. Zn 9 - Property",null,null,null,null,0]
["Sch IIIA","Losses by Zone",null,"Res. Zn 9 - Property Non-Proportion",null,null,null,null,0]
["Sch IIIA","Losses by Zone",null,"Res. Zn 9 - Personal Accident",null,null,null,null,0]
["Sch IIIA","Losses by Zone",null,"Res. Zn 9 - Personal Acc. Non Prop.",null,null,null,null,0]
["Sch IIIA","Losses by Zone",null,"Res. Zn 9 - Aviation",null,null,null,null,0]
["Sch IIIA","Losses by Zone",null,"Res. Zn 9 - Aviation Non-Proportional",null,null,null,null,0]
["Sch IIIA","Losses by Zone",null,"Res. Zn 9 - Credit Surety",null,null,null,null,0]
["Sch IIIA","Losses by Zone",null,"Res. Zn 9 - Credit Surety Non-Prop.",null,null,null,null,0]
["Sch IIIA","Losses by Zone",null,"Res. Zn 9 - Energy",null,null,null,null,0]
["Sch IIIA","Losses by Zone",null,"Res. Zn 9 - Energy Non-Proportional",null,null,null,null,0]
["Sch IIIA","Losses by Zone",null,"Res. Zn 9 - US Casualty",null,null,null,null,0]
["Sch IIIA","Losses by Zone",null,"Res. Zn 9 - US Casualty Non-Prop.",null,null,null,null,0]
["Sch IIIA","Losses by Zone",null,"Res. Zn 9 - US Professional",null,null,null,null,0]
["Sch IIIA","Losses by Zone",null,"Res. Zn 9 - US Professional Non-Prop.",null,null,null,null,0]
["Sch IIIA","Losses by Zone",null,"Res. Zn 9 - US Specialty",null,null,null,null,0]
["Sch IIIA","Losses by Zone",null,"Res. Zn 9 - US Specialty Non-Prop.",null,null,null,null,0]
["Sch IIIA","Losses by Zone",null,"Res. Zn 9 - Int'l Motor",null,null,null,null,0]
["Sch IIIA","Losses by Zone",null,"Res. Zn 9 - Int'l Motor Non-Prop.",null,null,null,null,0]
["Sch IIIA","Losses by Zone",null,"Res. Zn 9 - Int'l Casualty",null,null,null,null,0]
["Sch IIIA","Losses by Zone",null,"Res. Zn 9 - Int'l Casualty Non-Prop.",null,null,null,null,0]
["Sch IIIA","Losses by Zone",null,"Res. Zn 9 - Retro Property",null,null,null,null,0]
["Sch IIIA","Losses by Zone",null,"Res. Zn 9 - Structured / Finite R/I",null,null,null,null,0]
["Sch IIIA","Losses by Zone",null,"Res. Zn 9 - Health",null,null,null,null,0]
["Sch IIIA","Losses by Zone",null,"Res. Zn 9 - Total",null,null,null,null,0]
["Sch IIIA","Losses by Zone",null,"Res. Zn 10 - Property Catastrophe",null,null,null,null,0]
["Sch IIIA","Losses by Zone",null,"Res. Zn 10 - Property",null,null,null,null,0]
["Sch IIIA","Losses by Zone",null,"Res. Zn 10 - Property Non-Proportion",null,null,null,null,0]
["Sch IIIA","Losses by Zone",null,"Res. Zn 10 - Personal Accident",null,null,null,null,0]
["Sch IIIA","Losses by Zone",null,"Res. Zn 10 - Personal Acc. Non Prop.",null,null,null,null,0]
["Sch IIIA","Losses by Zone",null,"Res. Zn 10 - Aviation",null,null,null,null,0]
["Sch IIIA","Losses by Zone",null,"Res. Zn 10 - Aviation Non-Proportional",null,null,null,null,0]
["Sch IIIA","Losses by Zone",null,"Res. Zn 10 - Credit Surety",null,null,null,null,0]
["Sch IIIA","Losses by Zone",null,"Res. Zn 10 - Credit Surety Non-Prop.",null,null,null,null,0]
["Sch IIIA","Losses by Zone",null,"Res. Zn 10 - Energy",null,null,null,null,0]
["Sch IIIA","Losses by Zone",null,"Res. Zn 10 - Energy Non-Proportional",null,null,null,null,0]
["Sch IIIA","Losses by Zone",null,"Res. Zn 10 - US Casualty",null,null,null,null,0]
["Sch IIIA","Losses by Zone",null,"Res. Zn 10 - US Casualty Non-Prop.",null,null,null,null,0]
["Sch IIIA","Losses by Zone",null,"Res. Zn 10 - US Professional",null,null,null,null,0]
["Sch IIIA","Losses by Zone",null,"Res. Zn 10 - US Professional Non-Prop.",null,null,null,null,0]
["Sch IIIA","Losses by Zone",null,"Res. Zn 10 - US Specialty",null,null,null,null,0]
["Sch IIIA","Losses by Zone",null,"Res. Zn 10 - US Specialty Non-Prop.",null,null,null,null,0]
["Sch IIIA","Losses by Zone",null,"Res. Zn 10 - Int'l Motor",null,null,null,null,0]
["Sch IIIA","Losses by Zone",null,"Res. Zn 10 - Int'l Motor Non-Prop.",null,null,null,null,0]
["Sch IIIA","Losses by Zone",null,"Res. Zn 10 - Int'l Casualty",null,null,null,null,0]
["Sch IIIA","Losses by Zone",null,"Res. Zn 10 - Int'l Casualty Non-Prop.",null,null,null,null,0]
["Sch IIIA","Losses by Zone",null,"Res. Zn 10 - Retro Property",null,null,null,null,0]
["Sch IIIA","Losses by Zone",null,"Res. Zn 10 - Structured / Finite R/I",null,null,null,null,0]
["Sch IIIA","Losses by Zone",null,"Res. Zn 10 - Health",null,null,null,null,0]
["Sch IIIA","Losses by Zone",null,"Res. Zn 10 - Total",null,null,null,null,0]
["Sch IIIA","Losses by Zone",null,"Res. Zn 11 - Property Catastrophe",null,null,null,null,0]
["Sch IIIA","Losses by Zone",null,"Res. Zn 11 - Property",null,null,null,null,0]
["Sch IIIA","Losses by Zone",null,"Res. Zn 11 - Property Non-Proportion",null,null,null,null,0]
["Sch IIIA","Losses by Zone",null,"Res. Zn 11 - Personal Accident",null,null,null,null,0]
["Sch IIIA","Losses by Zone",null,"Res. Zn 11 - Personal Acc. Non Prop.",null,null,null,null,0]
["Sch IIIA","Losses by Zone",null,"Res. Zn 11 - Aviation",null,null,null,null,0]
["Sch IIIA","Losses by Zone",null,"Res. Zn 11 - Aviation Non-Proportional",null,null,null,null,0]
["Sch IIIA","Losses by Zone",null,"Res. Zn 11 - Credit Surety",null,null,null,null,0]
["Sch IIIA","Losses by Zone",null,"Res. Zn 11 - Credit Surety Non-Prop.",null,null,null,null,0]
["Sch IIIA","Losses by Zone",null,"Res. Zn 11 - Energy",null,null,null,null,0]
["Sch IIIA","Losses by Zone",null,"Res. Zn 11 - Energy Non-Proportional",null,null,null,null,0]
["Sch IIIA","Losses by Zone",null,"Res. Zn 11 - US Casualty",null,null,null,null,0]
["Sch IIIA","Losses by Zone",null,"Res. Zn 11 - US Casualty Non-Prop.",null,null,null,null,0]
["Sch IIIA","Losses by Zone",null,"Res. Zn 11 - US Professional",null,null,null,null,0]
["Sch IIIA","Losses by Zone",null,"Res. Zn 11 - US Professional Non-Prop.",null,null,null,null,0]
["Sch IIIA","Losses by Zone",null,"Res. Zn 11 - US Specialty",null,null,null,null,0]
["Sch IIIA","Losses by Zone",null,"Res. Zn 11 - US Specialty Non-Prop.",null,null,null,null,0]
["Sch IIIA","Losses by Zone",null,"Res. Zn 11 - Int'l Motor",null,null,null,null,0]
["Sch IIIA","Losses by Zone",null,"Res. Zn 11 - Int'l Motor Non-Prop.",null,null,null,null,0]
["Sch IIIA","Losses by Zone",null,"Res. Zn 11 - Int'l Casualty",null,null,null,null,0]
["Sch IIIA","Losses by Zone",null,"Res. Zn 11 - Int'l Casualty Non-Prop.",null,null,null,null,0]
["Sch IIIA","Losses by Zone",null,"Res. Zn 11 - Retro Property",null,null,null,null,0]
["Sch IIIA","Losses by Zone",null,"Res. Zn 11 - Structured / Finite R/I",null,null,null,null,0]
["Sch IIIA","Losses by Zone",null,"Res. Zn 11 - Health",null,null,null,null,0]
["Sch IIIA","Losses by Zone",null,"Res. Zn 11 - Total",null,null,null,null,0]
["Sch IIIA","Losses by Zone",null,"Res. Zn 12 - Property Catastrophe",null,null,null,null,0]
["Sch IIIA","Losses by Zone",null,"Res. Zn 12 - Property",null,null,null,null,0]
["Sch IIIA","Losses by Zone",null,"Res. Zn 12 - Property Non-Proportion",null,null,null,null,0]
["Sch IIIA","Losses by Zone",null,"Res. Zn 12 - Personal Accident",null,null,null,null,0]
["Sch IIIA","Losses by Zone",null,"Res. Zn 12 - Personal Acc. Non Prop.",null,null,null,null,0]
["Sch IIIA","Losses by Zone",null,"Res. Zn 12 - Aviation",null,null,null,null,0]
["Sch IIIA","Losses by Zone",null,"Res. Zn 12 - Aviation Non-Proportional",null,null,null,null,0]
["Sch IIIA","Losses by Zone",null,"Res. Zn 12 - Credit Surety",null,null,null,null,0]
["Sch IIIA","Losses by Zone",null,"Res. Zn 12 - Credit Surety Non-Prop.",null,null,null,null,0]
["Sch IIIA","Losses by Zone",null,"Res. Zn 12 - Energy",null,null,null,null,0]
["Sch IIIA","Losses by Zone",null,"Res. Zn 12 - Energy Non-Proportional",null,null,null,null,0]
["Sch IIIA","Losses by Zone",null,"Res. Zn 12 - US Casualty",null,null,null,null,0]
["Sch IIIA","Losses by Zone",null,"Res. Zn 12 - US Casualty Non-Prop.",null,null,null,null,0]
["Sch IIIA","Losses by Zone",null,"Res. Zn 12 - US Professional",null,null,null,null,0]
["Sch IIIA","Losses by Zone",null,"Res. Zn 12 - US Professional Non-Prop.",null,null,null,null,0]
["Sch IIIA","Losses by Zone",null,"Res. Zn 12 - US Specialty",null,null,null,null,0]
["Sch IIIA","Losses by Zone",null,"Res. Zn 12 - US Specialty Non-Prop.",null,null,null,null,0]
["Sch IIIA","Losses by Zone",null,"Res. Zn 12 - Int'l Motor",null,null,null,null,0]
["Sch IIIA","Losses by Zone",null,"Res. Zn 12 - Int'l Motor Non-Prop.",null,null,null,null,0]
["Sch IIIA","Losses by Zone",null,"Res. Zn 12 - Int'l Casualty",null,null,null,null,0]
["Sch IIIA","Losses by Zone",null,"Res. Zn 12 - Int'l Casualty Non-Prop.",null,null,null,null,0]
["Sch IIIA","Losses by Zone",null,"Res. Zn 12 - Retro Property",null,null,null,null,0]
["Sch IIIA","Losses by Zone",null,"Res. Zn 12 - Structured / Finite R/I",null,null,null,null,0]
["Sch IIIA","Losses by Zone",null,"Res. Zn 12 - Health",null,null,null,null,0]
["Sch IIIA","Losses by Zone",null,"Res. Zn 12 - Total",null,null,null,null,0]
["Sch IIIA","Losses by Zone",null,"Res. Zn 13 - Property Catastrophe",null,null,null,null,0]
["Sch IIIA","Losses by Zone",null,"Res. Zn 13 - Property",null,null,null,null,0]
["Sch IIIA","Losses by Zone",null,"Res. Zn 13 - Property Non-Proportion",null,null,null,null,0]
["Sch IIIA","Losses by Zone",null,"Res. Zn 13 - Personal Accident",null,null,null,null,0]
["Sch IIIA","Losses by Zone",null,"Res. Zn 13 - Personal Acc. Non Prop.",null,null,null,null,0]
["Sch IIIA","Losses by Zone",null,"Res. Zn 13 - Aviation",null,null,null,null,0]
["Sch IIIA","Losses by Zone",null,"Res. Zn 13 - Aviation Non-Proportional",null,null,null,null,0]
["Sch IIIA","Losses by Zone",null,"Res. Zn 13 - Credit Surety",null,null,null,null,0]
["Sch IIIA","Losses by Zone",null,"Res. Zn 13 - Credit Surety Non-Prop.",null,null,null,null,0]
["Sch IIIA","Losses by Zone",null,"Res. Zn 13 - Energy",null,null,null,null,0]
["Sch IIIA","Losses by Zone",null,"Res. Zn 13 - Energy Non-Proportional",null,null,null,null,0]
["Sch IIIA","Losses by Zone",null,"Res. Zn 13 - US Casualty",null,null,null,null,0]
["Sch IIIA","Losses by Zone",null,"Res. Zn 13 - US Casualty Non-Prop.",null,null,null,null,0]
["Sch IIIA","Losses by Zone",null,"Res. Zn 13 - US Professional",null,null,null,null,0]
["Sch IIIA","Losses by Zone",null,"Res. Zn 13 - US Professional Non-Prop.",null,null,null,null,0]
["Sch IIIA","Losses by Zone",null,"Res. Zn 13 - US Specialty",null,null,null,null,0]
["Sch IIIA","Losses by Zone",null,"Res. Zn 13 - US Specialty Non-Prop.",null,null,null,null,0]
["Sch IIIA","Losses by Zone",null,"Res. Zn 13 - Int'l Motor",null,null,null,null,0]
["Sch IIIA","Losses by Zone",null,"Res. Zn 13 - Int'l Motor Non-Prop.",null,null,null,null,0]
["Sch IIIA","Losses by Zone",null,"Res. Zn 13 - Int'l Casualty",null,null,null,null,0]
["Sch IIIA","Losses by Zone",null,"Res. Zn 13 - Int'l Casualty Non-Prop.",null,null,null,null,0]
["Sch IIIA","Losses by Zone",null,"Res. Zn 13 - Retro Property",null,null,null,null,0]
["Sch IIIA","Losses by Zone",null,"Res. Zn 13 - Structured / Finite R/I",null,null,null,null,0]
["Sch IIIA","Losses by Zone",null,"Res. Zn 13 - Health",null,null,null,null,0]
["Sch IIIA","Losses by Zone",null,"Res. Zn 13 - Total",null,null,null,null,0]
["Sch IIIA","Losses by Zone",null,"Res. Zn 14 - Property Catastrophe",null,null,null,null,0]
["Sch IIIA","Losses by Zone",null,"Res. Zn 14 - Property",null,null,null,null,0]
["Sch IIIA","Losses by Zone",null,"Res. Zn 14 - Property Non-Proportion",null,null,null,null,0]
["Sch IIIA","Losses by Zone",null,"Res. Zn 14 - Personal Accident",null,null,null,null,0]
["Sch IIIA","Losses by Zone",null,"Res. Zn 14 - Personal Acc. Non Prop.",null,null,null,null,0]
["Sch IIIA","Losses by Zone",null,"Res. Zn 14 - Aviation",null,null,null,null,0]
["Sch IIIA","Losses by Zone",null,"Res. Zn 14 - Aviation Non-Proportional",null,null,null,null,0]
["Sch IIIA","Losses by Zone",null,"Res. Zn 14 - Credit Surety",null,null,null,null,0]
["Sch IIIA","Losses by Zone",null,"Res. Zn 14 - Credit Surety Non-Prop.",null,null,null,null,0]
["Sch IIIA","Losses by Zone",null,"Res. Zn 14 - Energy",null,null,null,null,0]
["Sch IIIA","Losses by Zone",null,"Res. Zn 14 - Energy Non-Proportional",null,null,null,null,0]
["Sch IIIA","Losses by Zone",null,"Res. Zn 14 - US Casualty",null,null,null,null,0]
["Sch IIIA","Losses by Zone",null,"Res. Zn 14 - US Casualty Non-Prop.",null,null,null,null,0]
["Sch IIIA","Losses by Zone",null,"Res. Zn 14 - US Professional",null,null,null,null,0]
["Sch IIIA","Losses by Zone",null,"Res. Zn 14 - US Professional Non-Prop.",null,null,null,null,0]
["Sch IIIA","Losses by Zone",null,"Res. Zn 14 - US Specialty",null,null,null,null,0]
["Sch IIIA","Losses by Zone",null,"Res. Zn 14 - US Specialty Non-Prop.",null,null,null,null,0]
["Sch IIIA","Losses by Zone",null,"Res. Zn 14 - Int'l Motor",null,null,null,null,0]
["Sch IIIA","Losses by Zone",null,"Res. Zn 14 - Int'l Motor Non-Prop.",null,null,null,null,0]
["Sch IIIA","Losses by Zone",null,"Res. Zn 14 - Int'l Casualty",null,null,null,null,0]
["Sch IIIA","Losses by Zone",null,"Res. Zn 14 - Int'l Casualty Non-Prop.",null,null,null,null,0]
["Sch IIIA","Losses by Zone",null,"Res. Zn 14 - Retro Property",null,null,null,null,0]
["Sch IIIA","Losses by Zone",null,"Res. Zn 14 - Structured / Finite R/I",null,null,null,null,0]
["Sch IIIA","Losses by Zone",null,"Res. Zn 14 - Health",null,null,null,null,0]
["Sch IIIA","Losses by Zone",null,"Res. Zn 14 - Total",null,null,null,null,0]
["Sch IIIA","Losses by Zone",null,"Res. Zn 15 - Property Catastrophe",null,null,null,null,0]
["Sch IIIA","Losses by Zone",null,"Res. Zn 15 - Property",null,null,null,null,0]
["Sch IIIA","Losses by Zone",null,"Res. Zn 15 - Property Non-Proportion",null,null,null,null,0]
["Sch IIIA","Losses by Zone",null,"Res. Zn 15 - Personal Accident",null,null,null,null,0]
["Sch IIIA","Losses by Zone",null,"Res. Zn 15 - Personal Acc. Non Prop.",null,null,null,null,0]
["Sch IIIA","Losses by Zone",null,"Res. Zn 15 - Aviation",null,null,null,null,0]
["Sch IIIA","Losses by Zone",null,"Res. Zn 15 - Aviation Non-Proportional",null,null,null,null,0]
["Sch IIIA","Losses by Zone",null,"Res. Zn 15 - Credit Surety",null,null,null,null,0]
["Sch IIIA","Losses by Zone",null,"Res. Zn 15 - Credit Surety Non-Prop.",null,null,null,null,0]
["Sch IIIA","Losses by Zone",null,"Res. Zn 15 - Energy",null,null,null,null,0]
["Sch IIIA","Losses by Zone",null,"Res. Zn 15 - Energy Non-Proportional",null,null,null,null,0]
["Sch IIIA","Losses by Zone",null,"Res. Zn 15 - US Casualty",null,null,null,null,0]
["Sch IIIA","Losses by Zone",null,"Res. Zn 15 - US Casualty Non-Prop.",null,null,null,null,0]
["Sch IIIA","Losses by Zone",null,"Res. Zn 15 - US Professional",null,null,null,null,0]
["Sch IIIA","Losses by Zone",null,"Res. Zn 15 - US Professional Non-Prop.",null,null,null,null,0]
["Sch IIIA","Losses by Zone",null,"Res. Zn 15 - US Specialty",null,null,null,null,0]
["Sch IIIA","Losses by Zone",null,"Res. Zn 15 - US Specialty Non-Prop.",null,null,null,null,0]
["Sch IIIA","Losses by Zone",null,"Res. Zn 15 - Int'l Motor",null,null,null,null,0]
["Sch IIIA","Losses by Zone",null,"Res. Zn 15 - Int'l Motor Non-Prop.",null,null,null,null,0]
["Sch IIIA","Losses by Zone",null,"Res. Zn 15 - Int'l Casualty",null,null,null,null,0]
["Sch IIIA","Losses by Zone",null,"Res. Zn 15 - Int'l Casualty Non-Prop.",null,null,null,null,0]
["Sch IIIA","Losses by Zone",null,"Res. Zn 15 - Retro Property",null,null,null,null,0]
["Sch IIIA","Losses by Zone",null,"Res. Zn 15 - Structured / Finite R/I",null,null,null,null,0]
["Sch IIIA","Losses by Zone",null,"Res. Zn 15 - Health",null,null,null,null,0]
["Sch IIIA","Losses by Zone",null,"Res. Zn 15 - Total",null,null,null,null,0]
["Sch IIIA","Losses by Zone",null,"Res. Zn 16 - Property Catastrophe",null,null,null,null,0]
["Sch IIIA","Losses by Zone",null,"Res. Zn 16 - Property",null,null,null,null,0]
["Sch IIIA","Losses by Zone",null,"Res. Zn 16 - Property Non-Proportion",null,null,null,null,0]
["Sch IIIA","Losses by Zone",null,"Res. Zn 16 - Personal Accident",null,null,null,null,0]
["Sch IIIA","Losses by Zone",null,"Res. Zn 16 - Personal Acc. Non Prop.",null,null,null,null,0]
["Sch IIIA","Losses by Zone",null,"Res. Zn 16 - Aviation",null,null,null,null,0]
["Sch IIIA","Losses by Zone",null,"Res. Zn 16 - Aviation Non-Proportional",null,null,null,null,0]
["Sch IIIA","Losses by Zone",null,"Res. Zn 16 - Credit Surety",null,null,null,null,0]
["Sch IIIA","Losses by Zone",null,"Res. Zn 16 - Credit Surety Non-Prop.",null,null,null,null,0]
["Sch IIIA","Losses by Zone",null,"Res. Zn 16 - Energy",null,null,null,null,0]
["Sch IIIA","Losses by Zone",null,"Res. Zn 16 - Energy Non-Proportional",null,null,null,null,0]
["Sch IIIA","Losses by Zone",null,"Res. Zn 16 - US Casualty",null,null,null,null,0]
["Sch IIIA","Losses by Zone",null,"Res. Zn 16 - US Casualty Non-Prop.",null,null,null,null,0]
["Sch IIIA","Losses by Zone",null,"Res. Zn 16 - US Professional",null,null,null,null,0]
["Sch IIIA","Losses by Zone",null,"Res. Zn 16 - US Professional Non-Prop.",null,null,null,null,0]
["Sch IIIA","Losses by Zone",null,"Res. Zn 16 - US Specialty",null,null,null,null,0]
["Sch IIIA","Losses by Zone",null,"Res. Zn 16 - US Specialty Non-Prop.",null,null,null,null,0]
["Sch IIIA","Losses by Zone",null,"Res. Zn 16 - Int'l Motor",null,null,null,null,0]
["Sch IIIA","Losses by Zone",null,"Res. Zn 16 - Int'l Motor Non-Prop.",null,null,null,null,0]
["Sch IIIA","Losses by Zone",null,"Res. Zn 16 - Int'l Casualty",null,null,null,null,0]
["Sch IIIA","Losses by Zone",null,"Res. Zn 16 - Int'l Casualty Non-Prop.",null,null,null,null,0]
["Sch IIIA","Losses by Zone",null,"Res. Zn 16 - Retro Property",null,null,null,null,0]
["Sch IIIA","Losses by Zone",null,"Res. Zn 16 - Structured / Finite R/I",null,null,null,null,0]
["Sch IIIA","Losses by Zone",null,"Res. Zn 16 - Health",null,null,null,null,0]
["Sch IIIA","Losses by Zone",null,"Res. Zn 16 - Total",null,null,null,null,0]
["Sch IIIA","Losses by Zone",null,"Res. Zn 17 - Property Catastrophe",null,null,null,null,0]
["Sch IIIA","Losses by Zone",null,"Res. Zn 17 - Property",null,null,null,null,0]
["Sch IIIA","Losses by Zone",null,"Res. Zn 17 - Property Non-Proportion",null,null,null,null,0]
["Sch IIIA","Losses by Zone",null,"Res. Zn 17 - Personal Accident",null,null,null,null,0]
["Sch IIIA","Losses by Zone",null,"Res. Zn 17 - Personal Acc. Non Prop.",null,null,null,null,0]
["Sch IIIA","Losses by Zone",null,"Res. Zn 17 - Aviation",null,null,null,null,0]
["Sch IIIA","Losses by Zone",null,"Res. Zn 17 - Aviation Non-Proportional",null,null,null,null,0]
["Sch IIIA","Losses by Zone",null,"Res. Zn 17 - Credit Surety",null,null,null,null,0]
["Sch IIIA","Losses by Zone",null,"Res. Zn 17 - Credit Surety Non-Prop.",null,null,null,null,0]
["Sch IIIA","Losses by Zone",null,"Res. Zn 17 - Energy",null,null,null,null,0]
["Sch IIIA","Losses by Zone",null,"Res. Zn 17 - Energy Non-Proportional",null,null,null,null,0]
["Sch IIIA","Losses by Zone",null,"Res. Zn 17 - US Casualty",null,null,null,null,0]
["Sch IIIA","Losses by Zone",null,"Res. Zn 17 - US Casualty Non-Prop.",null,null,null,null,0]
["Sch IIIA","Losses by Zone",null,"Res. Zn 17 - US Professional",null,null,null,null,0]
["Sch IIIA","Losses by Zone",null,"Res. Zn 17 - US Professional Non-Prop.",null,null,null,null,0]
["Sch IIIA","Losses by Zone",null,"Res. Zn 17 - US Specialty",null,null,null,null,0]
["Sch IIIA","Losses by Zone",null,"Res. Zn 17 - US Specialty Non-Prop.",null,null,null,null,0]
["Sch IIIA","Losses by Zone",null,"Res. Zn 17 - Int'l Motor",null,null,null,null,0]
["Sch IIIA","Losses by Zone",null,"Res. Zn 17 - Int'l Motor Non-Prop.",null,null,null,null,0]
["Sch IIIA","Losses by Zone",null,"Res. Zn 17 - Int'l Casualty",null,null,null,null,0]
["Sch IIIA","Losses by Zone",null,"Res. Zn 17 - Int'l Casualty Non-Prop.",null,null,null,null,0]
["Sch IIIA","Losses by Zone",null,"Res. Zn 17 - Retro Property",null,null,null,null,0]
["Sch IIIA","Losses by Zone",null,"Res. Zn 17 - Structured / Finite R/I",null,null,null,null,0]
["Sch IIIA","Losses by Zone",null,"Res. Zn 17 - Health",null,null,null,null,0]
["Sch IIIA","Losses by Zone",null,"Res. Zn 17 - Total",null,null,null,null,0]
["Sch IIIA","Losses by Zone",null,"Res. Zn 18 - Property Catastrophe",null,null,null,null,0]
["Sch IIIA","Losses by Zone",null,"Res. Zn 18 - Property",null,null,null,null,0]
["Sch IIIA","Losses by Zone",null,"Res. Zn 18 - Property Non-Proportion",null,null,null,null,0]
["Sch IIIA","Losses by Zone",null,"Res. Zn 18 - Personal Accident",null,null,null,null,0]
["Sch IIIA","Losses by Zone",null,"Res. Zn 18 - Personal Acc. Non Prop.",null,null,null,null,0]
["Sch IIIA","Losses by Zone",null,"Res. Zn 18 - Aviation",null,null,null,null,0]
["Sch IIIA","Losses by Zone",null,"Res. Zn 18 - Aviation Non-Proportional",null,null,null,null,0]
["Sch IIIA","Losses by Zone",null,"Res. Zn 18 - Credit Surety",null,null,null,null,0]
["Sch IIIA","Losses by Zone",null,"Res. Zn 18 - Credit Surety Non-Prop.",null,null,null,null,0]
["Sch IIIA","Losses by Zone",null,"Res. Zn 18 - Energy",null,null,null,null,0]
["Sch IIIA","Losses by Zone",null,"Res. Zn 18 - Energy Non-Proportional",null,null,null,null,0]
["Sch IIIA","Losses by Zone",null,"Res. Zn 18 - US Casualty",null,null,null,null,0]
["Sch IIIA","Losses by Zone",null,"Res. Zn 18 - US Casualty Non-Prop.",null,null,null,null,0]
["Sch IIIA","Losses by Zone",null,"Res. Zn 18 - US Professional",null,null,null,null,0]
["Sch IIIA","Losses by Zone",null,"Res. Zn 18 - US Professional Non-Prop.",null,null,null,null,0]
["Sch IIIA","Losses by Zone",null,"Res. Zn 18 - US Specialty",null,null,null,null,0]
["Sch IIIA","Losses by Zone",null,"Res. Zn 18 - US Specialty Non-Prop.",null,null,null,null,0]
["Sch IIIA","Losses by Zone",null,"Res. Zn 18 - Int'l Motor",null,null,null,null,0]
["Sch IIIA","Losses by Zone",null,"Res. Zn 18 - Int'l Motor Non-Prop.",null,null,null,null,0]
["Sch IIIA","Losses by Zone",null,"Res. Zn 18 - Int'l Casualty",null,null,null,null,0]
["Sch IIIA","Losses by Zone",null,"Res. Zn 18 - Int'l Casualty Non-Prop.",null,null,null,null,0]
["Sch IIIA","Losses by Zone",null,"Res. Zn 18 - Retro Property",null,null,null,null,0]
["Sch IIIA","Losses by Zone",null,"Res. Zn 18 - Structured / Finite R/I",null,null,null,null,0]
["Sch IIIA","Losses by Zone",null,"Res. Zn 18 - Health",null,null,null,null,0]
["Sch IIIA","Losses by Zone",null,"Res. Zn 18 - Total",null,null,null,null,0]
[]
["Sch IVA","Premium by Line",null,"Unrelated - Property Catastrophe",0,null,0]
["Sch IVA","Premium by Line",null,"Unrelated - Property",0,null,0]
["Sch IVA","Premium by Line",null,"Unrelated - Property Non-Proportion",0,null,0]
["Sch IVA","Premium by Line",null,"Unrelated - Personal Accident",0,null,0]
["Sch IVA","Premium by Line",null,"Unrelated - Personal Acc. Non Prop.",0,null,0]
["Sch IVA","Premium by Line",null,"Unrelated - Aviation",0,null,0]
["Sch IVA","Premium by Line",null,"Unrelated - Aviation Non-Proportional",0,null,0]
["Sch IVA","Premium by Line",null,"Unrelated - Credit Surety",0,null,0]
["Sch IVA","Premium by Line",null,"Unrelated - Credit Surety Non-Prop.",0,null,0]
["Sch IVA","Premium by Line",null,"Unrelated - Energy",0,null,0]
["Sch IVA","Premium by Line",null,"Unrelated - Energy Non-Proportional",0,null,0]
["Sch IVA","Premium by Line",null,"Unrelated - US Casualty",0,null,0]
["Sch IVA","Premium by Line",null,"Unrelated - US Casualty Non-Prop.",0,null,0]
["Sch IVA","Premium by Line",null,"Unrelated - US Professional",0,null,0]
["Sch IVA","Premium by Line",null,"Unrelated - US Professional Non-Prop.",0,null,0]
["Sch IVA","Premium by Line",null,"Unrelated - US Specialty",0,null,0]
["Sch IVA","Premium by Line",null,"Unrelated - US Specialty Non-Prop.",0,null,0]
["Sch IVA","Premium by Line",null,"Unrelated - Int'l Motor",0,null,0]
["Sch IVA","Premium by Line",null,"Unrelated - Int'l Motor Non-Prop.",0,null,0]
["Sch IVA","Premium by Line",null,"Unrelated - Int'l Casualty",0,null,0]
["Sch IVA","Premium by Line",null,"Unrelated - Int'l Casualty Non-Prop.",0,null,0]
["Sch IVA","Premium by Line",null,"Unrelated - Retro Property",0,null,0]
["Sch IVA","Premium by Line",null,"Unrelated - Structured / Finite R/I",0,null,0]
["Sch IVA","Premium by Line",null,"Unrelated - Health",0,null,0]
["Sch IVA","Premium by Line",null,"Related - Property Catastrophe",0,null,0]
["Sch IVA","Premium by Line",null,"Related - Property",0,null,0]
["Sch IVA","Premium by Line",null,"Related - Property Non-Proportion",0,null,0]
["Sch IVA","Premium by Line",null,"Related - Personal Accident",0,null,0]
["Sch IVA","Premium by Line",null,"Related - Personal Acc. Non Prop.",0,null,0]
["Sch IVA","Premium by Line",null,"Related - Aviation",0,null,0]
["Sch IVA","Premium by Line",null,"Related - Aviation Non-Proportional",0,null,0]
["Sch IVA","Premium by Line",null,"Related - Credit Surety",0,null,0]
["Sch IVA","Premium by Line",null,"Related - Credit Surety Non-Prop.",0,null,0]
["Sch IVA","Premium by Line",null,"Related - Energy",0,null,0]
["Sch IVA","Premium by Line",null,"Related - Energy Non-Proportional",0,null,0]
["Sch IVA","Premium by Line",null,"Related - US Casualty",0,null,0]
["Sch IVA","Premium by Line",null,"Related - US Casualty Non-Prop.",0,null,0]
["Sch IVA","Premium by Line",null,"Related - US Professional",0,null,0]
["Sch IVA","Premium by Line",null,"Related - US Professional Non-Prop.",0,null,0]
["Sch IVA","Premium by Line",null,"Related - US Specialty",0,null,0]
["Sch IVA","Premium by Line",null,"Related - US Specialty Non-Prop.",0,null,0]
["Sch IVA","Premium by Line",null,"Related - Int'l Motor",0,null,0]
["Sch IVA","Premium by Line",null,"Related - Int'l Motor Non-Prop.",0,null,0]
["Sch IVA","Premium by Line",null,"Related - Int'l Casualty",0,null,0]
["Sch IVA","Premium by Line",null,"Related - Int'l Casualty Non-Prop.",0,null,0]
["Sch IVA","Premium by Line",null,"Related - Retro Property",0,null,0]
["Sch IVA","Premium by Line",null,"Related - Structured / Finite R/I",0,null,0]
["Sch IVA","Premium by Line",null,"Related - Health",0,null,0]
["Sch IVA","Premium by Line",null,"NPW - Property Catastrophe",0,null,0]
["Sch IVA","Premium by Line",null,"NPW - Property",0,null,0]
["Sch IVA","Premium by Line",null,"NPW - Property Non-Proportion",0,null,0]
["Sch IVA","Premium by Line",null,"NPW - Personal Accident",0,null,0]
["Sch IVA","Premium by Line",null,"NPW - Personal Acc. Non Prop.",0,null,0]
["Sch IVA","Premium by Line",null,"NPW - Aviation",0,null,0]
["Sch IVA","Premium by Line",null,"NPW - Aviation Non-Proportional",0,null,0]
["Sch IVA","Premium by Line",null,"NPW - Credit Surety",0,null,0]
["Sch IVA","Premium by Line",null,"NPW - Credit Surety Non-Prop.",0,null,0]
["Sch IVA","Premium by Line",null,"NPW - Energy",0,null,0]
["Sch IVA","Premium by Line",null,"NPW - Energy Non-Proportional",0,null,0]
["Sch IVA","Premium by Line",null,"NPW - US Casualty",0,null,0]
["Sch IVA","Premium by Line",null,"NPW - US Casualty Non-Prop.",0,null,0]
["Sch IVA","Premium by Line",null,"NPW - US Professional",0,null,0]
["Sch IVA","Premium by Line",null,"NPW - US Professional Non-Prop.",0,null,0]
["Sch IVA","Premium by Line",null,"NPW - US Specialty",0,null,0]
["Sch IVA","Premium by Line",null,"NPW - US Specialty Non-Prop.",0,null,0]
["Sch IVA","Premium by Line",null,"NPW - Int'l Motor",0,null,0]
["Sch IVA","Premium by Line",null,"NPW - Int'l Motor Non-Prop.",0,null,0]
["Sch IVA","Premium by Line",null,"NPW - Int'l Casualty",0,null,0]
["Sch IVA","Premium by Line",null,"NPW - Int'l Casualty Non-Prop.",0,null,0]
["Sch IVA","Premium by Line",null,"NPW - Retro Property",0,null,0]
["Sch IVA","Premium by Line",null,"NPW - Structured / Finite R/I",0,null,0]
["Sch IVA","Premium by Line",null,"NPW - Health",0,null,0]
["Sch IVC","Premium by Zone",null,"NPW Zn 1 - Property Catastrophe",0]
["Sch IVC","Premium by Zone",null,"NPW Zn 1 - Property",0]
["Sch IVC","Premium by Zone",null,"NPW Zn 1 - Property Non-Proportion",0]
["Sch IVC","Premium by Zone",null,"NPW Zn 1 - Personal Accident",0]
["Sch IVC","Premium by Zone",null,"NPW Zn 1 - Personal Acc. Non Prop.",0]
["Sch IVC","Premium by Zone",null,"NPW Zn 1 - Aviation",0]
["Sch IVC","Premium by Zone",null,"NPW Zn 1 - Aviation Non-Proportional",0]
["Sch IVC","Premium by Zone",null,"NPW Zn 1 - Credit Surety",0]
["Sch IVC","Premium by Zone",null,"NPW Zn 1 - Credit Surety Non-Prop.",0]
["Sch IVC","Premium by Zone",null,"NPW Zn 1 - Energy",0]
["Sch IVC","Premium by Zone",null,"NPW Zn 1 - Energy Non-Proportional",0]
["Sch IVC","Premium by Zone",null,"NPW Zn 1 - US Casualty",0]
["Sch IVC","Premium by Zone",null,"NPW Zn 1 - US Casualty Non-Prop.",0]
["Sch IVC","Premium by Zone",null,"NPW Zn 1 - US Professional",0]
["Sch IVC","Premium by Zone",null,"NPW Zn 1 - US Professional Non-Prop.",0]
["Sch IVC","Premium by Zone",null,"NPW Zn 1 - US Specialty",0]
["Sch IVC","Premium by Zone",null,"NPW Zn 1 - US Specialty Non-Prop.",0]
["Sch IVC","Premium by Zone",null,"NPW Zn 1 - Int'l Motor",0]
["Sch IVC","Premium by Zone",null,"NPW Zn 1 - Int'l Motor Non-Prop.",0]
["Sch IVC","Premium by Zone",null,"NPW Zn 1 - Int'l Casualty",0]
["Sch IVC","Premium by Zone",null,"NPW Zn 1 - Int'l Casualty Non-Prop.",0]
["Sch IVC","Premium by Zone",null,"NPW Zn 1 - Retro Property",0]
["Sch IVC","Premium by Zone",null,"NPW Zn 1 - Structured / Finite R/I",0]
["Sch IVC","Premium by Zone",null,"NPW Zn 1 - Health",0]
["Sch IVC","Premium by Zone",null,"NPW Zn 1 - Total",0]
["Sch IVC","Premium by Zone",null,"NPW Zn 2 - Property Catastrophe",0]
["Sch IVC","Premium by Zone",null,"NPW Zn 2 - Property",0]
["Sch IVC","Premium by Zone",null,"NPW Zn 2 - Property Non-Proportion",0]
["Sch IVC","Premium by Zone",null,"NPW Zn 2 - Personal Accident",0]
["Sch IVC","Premium by Zone",null,"NPW Zn 2 - Personal Acc. Non Prop.",0]
["Sch IVC","Premium by Zone",null,"NPW Zn 2 - Aviation",0]
["Sch IVC","Premium by Zone",null,"NPW Zn 2 - Aviation Non-Proportional",0]
["Sch IVC","Premium by Zone",null,"NPW Zn 2 - Credit Surety",0]
["Sch IVC","Premium by Zone",null,"NPW Zn 2 - Credit Surety Non-Prop.",0]
["Sch IVC","Premium by Zone",null,"NPW Zn 2 - Energy",0]
["Sch IVC","Premium by Zone",null,"NPW Zn 2 - Energy Non-Proportional",0]
["Sch IVC","Premium by Zone",null,"NPW Zn 2 - US Casualty",0]
["Sch IVC","Premium by Zone",null,"NPW Zn 2 - US Casualty Non-Prop.",0]
["Sch IVC","Premium by Zone",null,"NPW Zn 2 - US Professional",0]
["Sch IVC","Premium by Zone",null,"NPW Zn 2 - US Professional Non-Prop.",0]
["Sch IVC","Premium by Zone",null,"NPW Zn 2 - US Specialty",0]
["Sch IVC","Premium by Zone",null,"NPW Zn 2 - US Specialty Non-Prop.",0]
["Sch IVC","Premium by Zone",null,"NPW Zn 2 - Int'l Motor",0]
["Sch IVC","Premium by Zone",null,"NPW Zn 2 - Int'l Motor Non-Prop.",0]
["Sch IVC","Premium by Zone",null,"NPW Zn 2 - Int'l Casualty",0]
["Sch IVC","Premium by Zone",null,"NPW Zn 2 - Int'l Casualty Non-Prop.",0]
["Sch IVC","Premium by Zone",null,"NPW Zn 2 - Retro Property",0]
["Sch IVC","Premium by Zone",null,"NPW Zn 2 - Structured / Finite R/I",0]
["Sch IVC","Premium by Zone",null,"NPW Zn 2 - Health",0]
["Sch IVC","Premium by Zone",null,"NPW Zn 2 - Total",0]
["Sch IVC","Premium by Zone",null,"NPW Zn 3 - Property Catastrophe",0]
["Sch IVC","Premium by Zone",null,"NPW Zn 3 - Property",0]
["Sch IVC","Premium by Zone",null,"NPW Zn 3 - Property Non-Proportion",0]
["Sch IVC","Premium by Zone",null,"NPW Zn 3 - Personal Accident",0]
["Sch IVC","Premium by Zone",null,"NPW Zn 3 - Personal Acc. Non Prop.",0]
["Sch IVC","Premium by Zone",null,"NPW Zn 3 - Aviation",0]
["Sch IVC","Premium by Zone",null,"NPW Zn 3 - Aviation Non-Proportional",0]
["Sch IVC","Premium by Zone",null,"NPW Zn 3 - Credit Surety",0]
["Sch IVC","Premium by Zone",null,"NPW Zn 3 - Credit Surety Non-Prop.",0]
["Sch IVC","Premium by Zone",null,"NPW Zn 3 - Energy",0]
["Sch IVC","Premium by Zone",null,"NPW Zn 3 - Energy Non-Proportional",0]
["Sch IVC","Premium by Zone",null,"NPW Zn 3 - US Casualty",0]
["Sch IVC","Premium by Zone",null,"NPW Zn 3 - US Casualty Non-Prop.",0]
["Sch IVC","Premium by Zone",null,"NPW Zn 3 - US Professional",0]
["Sch IVC","Premium by Zone",null,"NPW Zn 3 - US Professional Non-Prop.",0]
["Sch IVC","Premium by Zone",null,"NPW Zn 3 - US Specialty",0]
["Sch IVC","Premium by Zone",null,"NPW Zn 3 - US Specialty Non-Prop.",0]
["Sch IVC","Premium by Zone",null,"NPW Zn 3 - Int'l Motor",0]
["Sch IVC","Premium by Zone",null,"NPW Zn 3 - Int'l Motor Non-Prop.",0]
["Sch IVC","Premium by Zone",null,"NPW Zn 3 - Int'l Casualty",0]
["Sch IVC","Premium by Zone",null,"NPW Zn 3 - Int'l Casualty Non-Prop.",0]
["Sch IVC","Premium by Zone",null,"NPW Zn 3 - Retro Property",0]
["Sch IVC","Premium by Zone",null,"NPW Zn 3 - Structured / Finite R/I",0]
["Sch IVC","Premium by Zone",null,"NPW Zn 3 - Health",0]
["Sch IVC","Premium by Zone",null,"NPW Zn 3 - Total",0]
["Sch IVC","Premium by Zone",null,"NPW Zn 4 - Property Catastrophe",0]
["Sch IVC","Premium by Zone",null,"NPW Zn 4 - Property",0]
["Sch IVC","Premium by Zone",null,"NPW Zn 4 - Property Non-Proportion",0]
["Sch IVC","Premium by Zone",null,"NPW Zn 4 - Personal Accident",0]
["Sch IVC","Premium by Zone",null,"NPW Zn 4 - Personal Acc. Non Prop.",0]
["Sch IVC","Premium by Zone",null,"NPW Zn 4 - Aviation",0]
["Sch IVC","Premium by Zone",null,"NPW Zn 4 - Aviation Non-Proportional",0]
["Sch IVC","Premium by Zone",null,"NPW Zn 4 - Credit Surety",0]
["Sch IVC","Premium by Zone",null,"NPW Zn 4 - Credit Surety Non-Prop.",0]
["Sch IVC","Premium by Zone",null,"NPW Zn 4 - Energy",0]
["Sch IVC","Premium by Zone",null,"NPW Zn 4 - Energy Non-Proportional",0]
["Sch IVC","Premium by Zone",null,"NPW Zn 4 - US Casualty",0]
["Sch IVC","Premium by Zone",null,"NPW Zn 4 - US Casualty Non-Prop.",0]
["Sch IVC","Premium by Zone",null,"NPW Zn 4 - US Professional",0]
["Sch IVC","Premium by Zone",null,"NPW Zn 4 - US Professional Non-Prop.",0]
["Sch IVC","Premium by Zone",null,"NPW Zn 4 - US Specialty",0]
["Sch IVC","Premium by Zone",null,"NPW Zn 4 - US Specialty Non-Prop.",0]
["Sch IVC","Premium by Zone",null,"NPW Zn 4 - Int'l Motor",0]
["Sch IVC","Premium by Zone",null,"NPW Zn 4 - Int'l Motor Non-Prop.",0]
["Sch IVC","Premium by Zone",null,"NPW Zn 4 - Int'l Casualty",0]
["Sch IVC","Premium by Zone",null,"NPW Zn 4 - Int'l Casualty Non-Prop.",0]
["Sch IVC","Premium by Zone",null,"NPW Zn 4 - Retro Property",0]
["Sch IVC","Premium by Zone",null,"NPW Zn 4 - Structured / Finite R/I",0]
["Sch IVC","Premium by Zone",null,"NPW Zn 4 - Health",0]
["Sch IVC","Premium by Zone",null,"NPW Zn 4 - Total",0]
["Sch IVC","Premium by Zone",null,"NPW Zn 5 - Property Catastrophe",0]
["Sch IVC","Premium by Zone",null,"NPW Zn 5 - Property",0]
["Sch IVC","Premium by Zone",null,"NPW Zn 5 - Property Non-Proportion",0]
["Sch IVC","Premium by Zone",null,"NPW Zn 5 - Personal Accident",0]
["Sch IVC","Premium by Zone",null,"NPW Zn 5 - Personal Acc. Non Prop.",0]
["Sch IVC","Premium by Zone",null,"NPW Zn 5 - Aviation",0]
["Sch IVC","Premium by Zone",null,"NPW Zn 5 - Aviation Non-Proportional",0]
["Sch IVC","Premium by Zone",null,"NPW Zn 5 - Credit Surety",0]
["Sch IVC","Premium by Zone",null,"NPW Zn 5 - Credit Surety Non-Prop.",0]
["Sch IVC","Premium by Zone",null,"NPW Zn 5 - Energy",0]
["Sch IVC","Premium by Zone",null,"NPW Zn 5 - Energy Non-Proportional",0]
["Sch IVC","Premium by Zone",null,"NPW Zn 5 - US Casualty",0]
["Sch IVC","Premium by Zone",null,"NPW Zn 5 - US Casualty Non-Prop.",0]
["Sch IVC","Premium by Zone",null,"NPW Zn 5 - US Professional",0]
["Sch IVC","Premium by Zone",null,"NPW Zn 5 - US Professional Non-Prop.",0]
["Sch IVC","Premium by Zone",null,"NPW Zn 5 - US Specialty",0]
["Sch IVC","Premium by Zone",null,"NPW Zn 5 - US Specialty Non-Prop.",0]
["Sch IVC","Premium by Zone",null,"NPW Zn 5 - Int'l Motor",0]
["Sch IVC","Premium by Zone",null,"NPW Zn 5 - Int'l Motor Non-Prop.",0]
["Sch IVC","Premium by Zone",null,"NPW Zn 5 - Int'l Casualty",0]
["Sch IVC","Premium by Zone",null,"NPW Zn 5 - Int'l Casualty Non-Prop.",0]
["Sch IVC","Premium by Zone",null,"NPW Zn 5 - Retro Property",0]
["Sch IVC","Premium by Zone",null,"NPW Zn 5 - Structured / Finite R/I",0]
["Sch IVC","Premium by Zone",null,"NPW Zn 5 - Health",0]
["Sch IVC","Premium by Zone",null,"NPW Zn 5 - Total",0]
["Sch IVC","Premium by Zone",null,"NPW Zn 6 - Property Catastrophe",0]
["Sch IVC","Premium by Zone",null,"NPW Zn 6 - Property",0]
["Sch IVC","Premium by Zone",null,"NPW Zn 6 - Property Non-Proportion",0]
["Sch IVC","Premium by Zone",null,"NPW Zn 6 - Personal Accident",0]
["Sch IVC","Premium by Zone",null,"NPW Zn 6 - Personal Acc. Non Prop.",0]
["Sch IVC","Premium by Zone",null,"NPW Zn 6 - Aviation",0]
["Sch IVC","Premium by Zone",null,"NPW Zn 6 - Aviation Non-Proportional",0]
["Sch IVC","Premium by Zone",null,"NPW Zn 6 - Credit Surety",0]
["Sch IVC","Premium by Zone",null,"NPW Zn 6 - Credit Surety Non-Prop.",0]
["Sch IVC","Premium by Zone",null,"NPW Zn 6 - Energy",0]
["Sch IVC","Premium by Zone",null,"NPW Zn 6 - Energy Non-Proportional",0]
["Sch IVC","Premium by Zone",null,"NPW Zn 6 - US Casualty",0]
["Sch IVC","Premium by Zone",null,"NPW Zn 6 - US Casualty Non-Prop.",0]
["Sch IVC","Premium by Zone",null,"NPW Zn 6 - US Professional",0]
["Sch IVC","Premium by Zone",null,"NPW Zn 6 - US Professional Non-Prop.",0]
["Sch IVC","Premium by Zone",null,"NPW Zn 6 - US Specialty",0]
["Sch IVC","Premium by Zone",null,"NPW Zn 6 - US Specialty Non-Prop.",0]
["Sch IVC","Premium by Zone",null,"NPW Zn 6 - Int'l Motor",0]
["Sch IVC","Premium by Zone",null,"NPW Zn 6 - Int'l Motor Non-Prop.",0]
["Sch IVC","Premium by Zone",null,"NPW Zn 6 - Int'l Casualty",0]
["Sch IVC","Premium by Zone",null,"NPW Zn 6 - Int'l Casualty Non-Prop.",0]
["Sch IVC","Premium by Zone",null,"NPW Zn 6 - Retro Property",0]
["Sch IVC","Premium by Zone",null,"NPW Zn 6 - Structured / Finite R/I",0]
["Sch IVC","Premium by Zone",null,"NPW Zn 6 - Health",0]
["Sch IVC","Premium by Zone",null,"NPW Zn 6 - Total",0]
["Sch IVC","Premium by Zone",null,"NPW Zn 7 - Property Catastrophe",0]
["Sch IVC","Premium by Zone",null,"NPW Zn 7 - Property",0]
["Sch IVC","Premium by Zone",null,"NPW Zn 7 - Property Non-Proportion",0]
["Sch IVC","Premium by Zone",null,"NPW Zn 7 - Personal Accident",0]
["Sch IVC","Premium by Zone",null,"NPW Zn 7 - Personal Acc. Non Prop.",0]
["Sch IVC","Premium by Zone",null,"NPW Zn 7 - Aviation",0]
["Sch IVC","Premium by Zone",null,"NPW Zn 7 - Aviation Non-Proportional",0]
["Sch IVC","Premium by Zone",null,"NPW Zn 7 - Credit Surety",0]
["Sch IVC","Premium by Zone",null,"NPW Zn 7 - Credit Surety Non-Prop.",0]
["Sch IVC","Premium by Zone",null,"NPW Zn 7 - Energy",0]
["Sch IVC","Premium by Zone",null,"NPW Zn 7 - Energy Non-Proportional",0]
["Sch IVC","Premium by Zone",null,"NPW Zn 7 - US Casualty",0]
["Sch IVC","Premium by Zone",null,"NPW Zn 7 - US Casualty Non-Prop.",0]
["Sch IVC","Premium by Zone",null,"NPW Zn 7 - US Professional",0]
["Sch IVC","Premium by Zone",null,"NPW Zn 7 - US Professional Non-Prop.",0]
["Sch IVC","Premium by Zone",null,"NPW Zn 7 - US Specialty",0]
["Sch IVC","Premium by Zone",null,"NPW Zn 7 - US Specialty Non-Prop.",0]
["Sch IVC","Premium by Zone",null,"NPW Zn 7 - Int'l Motor",0]
["Sch IVC","Premium by Zone",null,"NPW Zn 7 - Int'l Motor Non-Prop.",0]
["Sch IVC","Premium by Zone",null,"NPW Zn 7 - Int'l Casualty",0]
["Sch IVC","Premium by Zone",null,"NPW Zn 7 - Int'l Casualty Non-Prop.",0]
["Sch IVC","Premium by Zone",null,"NPW Zn 7 - Retro Property",0]
["Sch IVC","Premium by Zone",null,"NPW Zn 7 - Structured / Finite R/I",0]
["Sch IVC","Premium by Zone",null,"NPW Zn 7 - Health",0]
["Sch IVC","Premium by Zone",null,"NPW Zn 7 - Total",0]
["Sch IVC","Premium by Zone",null,"NPW Zn 8 - Property Catastrophe",0]
["Sch IVC","Premium by Zone",null,"NPW Zn 8 - Property",0]
["Sch IVC","Premium by Zone",null,"NPW Zn 8 - Property Non-Proportion",0]
["Sch IVC","Premium by Zone",null,"NPW Zn 8 - Personal Accident",0]
["Sch IVC","Premium by Zone",null,"NPW Zn 8 - Personal Acc. Non Prop.",0]
["Sch IVC","Premium by Zone",null,"NPW Zn 8 - Aviation",0]
["Sch IVC","Premium by Zone",null,"NPW Zn 8 - Aviation Non-Proportional",0]
["Sch IVC","Premium by Zone",null,"NPW Zn 8 - Credit Surety",0]
["Sch IVC","Premium by Zone",null,"NPW Zn 8 - Credit Surety Non-Prop.",0]
["Sch IVC","Premium by Zone",null,"NPW Zn 8 - Energy",0]
["Sch IVC","Premium by Zone",null,"NPW Zn 8 - Energy Non-Proportional",0]
["Sch IVC","Premium by Zone",null,"NPW Zn 8 - US Casualty",0]
["Sch IVC","Premium by Zone",null,"NPW Zn 8 - US Casualty Non-Prop.",0]
["Sch IVC","Premium by Zone",null,"NPW Zn 8 - US Professional",0]
["Sch IVC","Premium by Zone",null,"NPW Zn 8 - US Professional Non-Prop.",0]
["Sch IVC","Premium by Zone",null,"NPW Zn 8 - US Specialty",0]
["Sch IVC","Premium by Zone",null,"NPW Zn 8 - US Specialty Non-Prop.",0]
["Sch IVC","Premium by Zone",null,"NPW Zn 8 - Int'l Motor",0]
["Sch IVC","Premium by Zone",null,"NPW Zn 8 - Int'l Motor Non-Prop.",0]
["Sch IVC","Premium by Zone",null,"NPW Zn 8 - Int'l Casualty",0]
["Sch IVC","Premium by Zone",null,"NPW Zn 8 - Int'l Casualty Non-Prop.",0]
["Sch IVC","Premium by Zone",null,"NPW Zn 8 - Retro Property",0]
["Sch IVC","Premium by Zone",null,"NPW Zn 8 - Structured / Finite R/I",0]
["Sch IVC","Premium by Zone",null,"NPW Zn 8 - Health",0]
["Sch IVC","Premium by Zone",null,"NPW Zn 8 - Total",0]
["Sch IVC","Premium by Zone",null,"NPW Zn 9 - Property Catastrophe",0]
["Sch IVC","Premium by Zone",null,"NPW Zn 9 - Aviation Non-Proportional",0]
["Sch IVC","Premium by Zone",null,"NPW Zn 10 - Property Non-Proportion",0]
["Sch IVC","Premium by Zone",null,"NPW Zn 11 - Property Non-Proportion",0]
["Sch IVC","Premium by Zone",null,"NPW Zn 11 - Int'l Casualty",0]
["Sch IVC","Premium by Zone",null,"NPW Zn 12 - Total",0]
["Sch IVC","Premium by Zone",null,"NPW Zn 13 - Personal Acc. Non Prop.",0]
["Sch IVC","Premium by Zone",null,"NPW Zn 14 - Property Catastrophe",0]
["Sch IVC","Premium by Zone",null,"NPW Zn 15 - Property",0]
["Sch IVC","Premium by Zone",null,"NPW Zn 15 - Structured / Finite R/I",0]
["Sch IVC","Premium by Zone",null,"NPW Zn 16 - Structured / Finite R/I",0]
["Sch IVC","Premium by Zone",null,"NPW Zn 17 - Int'l Casualty",0]
["Sch IVC","Premium by Zone",null,"NPW Zn 17 - Total",0]
["Sch IVC","Premium by Zone",null,"NPW Zn 18 - Total",0]
["Sch IVB","LT Premium",null,"Related - 6. Dis. Income: Active Liv",0,null,0]
["Sch IVB","LT Premium",null,"Adj. Benefit -2 Yrs - 5ii. Dis. Income: 1-5 Yrs",0,null,0]
[]
["Sch Va","Governance",null,"Director Name - 20",0]
["Sch Va","Governance",null,"Director Position - 5",0]
["Sch Va","Governance",null,"Director Residence - 4",0]
["Sch Va","Governance",null,"Director Work Experience - 12",0]
["Sch Va","Governance",null,"Director Status on Board - 17","Select"]
["Sch Va","Governance",null,"Executive Name - 15",0]
["Sch Va","Governance",null,"Executive Residence - 3",0]
["Sch Va","Governance",null,"Executive Residence - 8",0]
["Sch Va","Governance",null,"Executive Work Experience - 9",0]
["Sch Va","Governance",null,"Executive Employee Arrangement - 17","Select"]
["Sch Vb","Group Structure",null,"Name of Subsidiary - 18",0]
["Sch Vb","Group Structure",null,"Name of Subsidiary - 39",0]
["Sch Vb","Group Structure",null,"Name of Subsidiary - 44",0]
["Sch Vb","Group Structure",null,"Name of Subsidiary - 81",0]
["Sch Vb","Group Structure",null,"Name of Subsidiary - 91",0]
["Sch Vb","Group Structure",null,"Jurisdiction of Subsidiary - 16",0]
["Sch Vb","Group Structure",null,"Jurisdiction of Subsidiary - 28",0]
["Sch Vb","Group Structure",null,"Jurisdiction of Subsidiary - 63",0]
["Sch Vb","Group Structure",null,"Jurisdiction of Subsidiary - 68",0]
["Sch Vb","Group Structure",null,"Jurisdiction of Subsidiary - 89",0]
["Sch Vb","Group Structure",null,"Regulated Entity - 10","Select Yes/No"]
["Sch Vb","Group Structure",null,"Regulated Entity - 36","Select Yes/No"]
["Sch Vb","Group Structure",null,"Regulated Entity - 61","Select Yes/No"]
["Sch Vb","Group Structure",null,"Regulated Entity - 66","Select Yes/No"]
["Sch Vb","Group Structure",null,"Regulated Entity - 96","Select Yes/No"]
["Sch Vb","Group Structure",null,"Sector Classification of Subsidiary - 13","Select"]
["Sch Vb","Group Structure",null,"Sector Classification of Subsidiary - 34","Select"]
["Sch Vb","Group Structure",null,"Sector Classification of Subsidiary - 64","Select"]
["Sch Vb","Group Structure",null,"Sector Classification of Subsidiary - 85","Select"]
["Sch Vb","Group Structure",null,"Strategic Purpose of Subsidiary - 6",0]
["Sch Vb","Group Structure",null,"Strategic Purpose of Subsidiary - 11",0]
["Sch Vb","Group Structure",null,"Strategic Purpose of Subsidiary - 46",0]
["Sch Vb","Group Structure",null,"Strategic Purpose of Subsidiary - 58",0]
["Sch Vb","Group Structure",null,"Strategic Purpose of Subsidiary - 83",0]
["Sch Vb","Group Structure",null,"Entity Type of Subsidiary - 4","Select"]
["Sch Vb","Group Structure",null,"Entity Type of Subsidiary - 11","Select"]
["Sch Vb","Group Structure",null,"Entity Type of Subsidiary - 35","Select"]
["Sch Vb","Group Structure",null,"Entity Type of Subsidiary - 56","Select"]
["Sch Vb","Group Structure",null,"Entity Type of Subsidiary - 79","Select"]
["Sch Vb","Group Structure",null,"Products & Services of Subsidiary - 3",0]
["Sch Vb","Group Structure",null,"Products & Services of Subsidiary - 28",0]
["Sch Vb","Group Structure",null,"Products & Services of Subsidiary - 33",0]
["Sch Vb","Group Structure",null,"Products & Services of Subsidiary - 65",0]
["Sch Vb","Group Structure",null,"Products & Services of Subsidiary - 80",0]
["Sch Vb","Group Structure",null,"Participation of Subsidiary - 5","Select"]
["Sch Vb","Group Structure",null,"Participation of Subsidiary - 26","Select"]
["Sch Vb","Group Structure",null,"Participation of Subsidiary - 47","Select"]
["Sch Vb","Group Structure",null,"Participation of Subsidiary - 53","Select"]
["Sch Vb","Group Structure",null,"Participation of Subsidiary - 78","Select"]
["Sch Vb","Group Structure",null,"Participation of Subsidiary - 94","Select"]
["Sch Vb","Group Structure",null,"% Interest of Subsidiary - 25",0]
["Sch Vb","Group Structure",null,"% Interest of Subsidiary - 50",0]
["Sch Vb","Group Structure",null,"% Interest of Subsidiary - 55",0]
["Sch Vb","Group Structure",null,"% Interest of Subsidiary - 80",0]
["Sch Vb","Group Structure",null,"Gross Premium Written of Subsidiary - 2",0]
["Sch Vb","Group Structure",null,"Gross Premium Written of Subsidiary - 23",0]
["Sch Vb","Group Structure",null,"Gross Premium Written of Subsidiary - 48",0]
["Sch Vb","Group Structure",null,"Gross Premium Written of Subsidiary - 62",0]
["Sch Vb","Group Structure",null,"Gross Premium Written of Subsidiary - 95",0]
["Sch Vb","Group Structure",null,"Gross Premium Written of Subsidiary - 100",0]
["Sch Vb","Group Structure",null,"Net Premium Written of Subsidiary - 34",0]
["Sch Vb","Group Structure",null,"Net Premium Written of Subsidiary - 47",0]
["Sch Vb","Group Structure",null,"Net Premium Written of Subsidiary - 72",0]
["Sch Vb","Group Structure",null,"Net Premium Written of Subsidiary - 93",0]
["Sch Vb","Group Structure",null,"Net Assets of Subsidiary - 16",0]
["Sch Vb","Group Structure",null,"Net Assets of Subsidiary - 24",0]
["Sch Vb","Group Structure",null,"Net Assets of Subsidiary - 45",0]
["Sch Vb","Group Structure",null,"Net Assets of Subsidiary - 70",0]
["Sch Vb","Group Structure",null,"Net Assets of Subsidiary - 81",0]
["Sch Vb","Group Structure",null,"Total Assets of Subsidiary - 17",0]
["Sch Vb","Group Structure",null,"Total Assets of Subsidiary - 22",0]
["Sch Vb","Group Structure",null,"Total Assets of Subsidiary - 49",0]
["Sch Vb","Group Structure",null,"Total Assets of Subsidiary - 69",0]
["Sch Vb","Group Structure",null,"Total Assets of Subsidiary - 94",0]
["Sch Vc","Intra-Group",null,"Issuer/Borrower Name - 13",0]
["Sch Vc","Intra-Group",null,"Issuer Jurisdiction - 4",0]
["Sch Vc","Intra-Group",null,"Issuer Jurisdiction - 15",0]
["Sch Vc","Intra-Group",null,"Investor/Lendor Name - 15",0]
["Sch Vc","Intra-Group",null,"Investor Jurisdiction - 15",0]
["Sch Vc","Intra-Group",null,"Transaction Details - 15",0]
["Sch Vc","Intra-Group",null,"Exposure Value - 12",0]
["Sch Vc","Intra-Group",null,"Assuming Party Name - 7",0]
["Sch Vc","Intra-Group",null,"Assuming Party Name - 11",0]
["Sch Vc","Intra-Group",null,"Assuming Party Jurisdiction - 13",0]
["Sch Vc","Intra-Group",null,"Assuming Party Rating - 9",0]
["Sch Vc","Intra-Group",null,"Ceding Party Name - 9",0]
["Sch Vc","Intra-Group",null,"Ceding Party Name - 18",0]
["Sch Vc","Intra-Group",null,"Ceding Party Jurisdiction - 11",0]
["Sch Vc","Intra-Group",null,"Ceding Party Rating - 11",0]
["Sch Vc","Intra-Group",null,"Gross Exposure Limit - 7",0]
["Sch Vc","Intra-Group",null,"Net Exposure Limit - 4",0]
["Sch Vc","Intra-Group",null,"Gross Premium Written - 8",0]
["Sch Vc","Intra-Group",null,"Net Premium Written - 4",0]
["Sch Vc","Intra-Group",null,"Net Premium Written - 22",0]
["Sch Vc","Intra-Group",null,"Counterparty Name - 4",0]
["Sch Vc","Intra-Group",null,"Counterparty Name - 29",0]
["Sch Vc","Intra-Group",null,"Counterparty Location - 14",0]
["Sch Vc","Intra-Group",null,"Exposure Face Value - 1",0]
["Sch Vc","Intra-Group",null,"Exposure Face Value - 21",0]
["Sch Vc","Intra-Group",null,"Exposure Face Value - 26",0]
["Sch Vc","Intra-Group",null,"Exposure Market Value - 7",0]
["Sch Vc","Intra-Group",null,"Exposure Market Value - 22",0]
["Sch Vc","Intra-Group",null,"Transaction Type - 14",0]
["Sch Vc","Intra-Group",null,"Transaction Type - 39",0]
["Sch Ve","Scenario Tests",null,"R8 Scenario Severe Inflation - Assets",null,null,null,null,0]
["Sch Ve","Scenario Tests",null,"R5 - Argentina",null,null,null,null,0]
["Sch Ve","Scenario Tests",null,"Mortgage Loan - NPW - Unrelated - Insurance - Other",null,null,null,null,0]
["Sch Ve","Scenario Tests",null,"Mortgage Loan - Capital Held - Internal",null,null,null,null,0]
["Sch Ve","Scenario Tests",null,"M1. Gross Loss ",null,null,null,null,0]
["Sch Ve","Scenario Tests",null,"UW2. Net Loss - Cat Mitigation Tech.",null,null,null,null,0]
["Sch Ve","Scenario Tests",null,"UW4. Return Period 1",null,null,null,null,0]
["Sch Ve","Scenario Tests",null,"UE1. Return Period 2",null,null,null,null,0]
["Sch Ve","Scenario Tests",null,"N3. Return Period 2",null,null,null,null,0]
["Sch Ve","Scenario Tests",null," Other Scenario - Name 1",null,null,null,null,0]
["Sch Ve","Scenario Tests",null,"Latent Liab - Scen 1 - NPW - Product Liab - Pro - Other Developed Mkts",null,null,null,null,0]
["Sch Ve","Scenario Tests",null,"Latent Liab - Scen 1 - NPW - Gen Comm Liab - Pro - EEA & Switzerland",null,null,null,null,0]
["Sch Ve","Scenario Tests",null,"Latent Liab - Scen 1 - NPW - Empl. Liab/Workers Comp - Non Pro - US/Canada",null,null,null,null,0]
["Sch Ve","Scenario Tests",null,"Latent Liab - Scen 1 - Prem. Growth - Gen Comm Liab - Non Pro - Japan",null,null,null,null,0]
["Sch Ve","Scenario Tests",null,"Latent Liab - Scen 1 - Yr Growth - Product Liab - Pro - Emerging Mkts",null,null,null,null,0]
["Sch Ve","Scenario Tests",null,"Latent Liab - Scen 1 - Yr Growth - Gen Comm Liab - Non Pro - Other Developed Mkts",null,null,null,null,0]
["Sch Ve","Scenario Tests",null,"Latent Liab - Scen 2 - US Enviro - PY+1 Yr - Net Paid",null,null,null,null,0]
["Sch Ve","Scenario Tests",null,"2b. Specific WC Scen.- RP 2",null,null,null,null,0]
["Sch Ve","Scenario Tests",null," Terrorism Loss 1 - Location",null,null,null,null,0]
["Sch Ve","Scenario Tests",null," Terrorism Loss 3 - Location",null,null,null,null,0]
["Sch Ve","Scenario Tests",null," Terrorism Loss 7 - TRIP",null,null,null,null,0]
["Sch Ve","Scenario Tests",null,"Cyber - 1. Cyber Policies in Force - No - Direct",null,null,null,null,0,null,0]
["Sch Ve","Scenario Tests",null,"Cyber - 1. Gross Reserves - R/I",null,null,null,null,0,null,0]
["Sch Ve","Scenario Tests",null,"Cyber - 1. Cyber Avg. Claims - R/I",null,null,null,null,0,null,0]
["Sch Ve","Scenario Tests",null,"Cyber - 1. # of Policies Direct - US",null,null,null,null,0]
["Sch Ve","Scenario Tests",null,"Cyber - 1. Cyber Gross Exposure-Direct - Japan",null,null,null,null,0]
["Sch Ve","Scenario Tests",null,"Cyber - 1. Cyber Gross Exposure-R/I - US",null,null,null,null,0]
["Sch Ve","Scenario Tests",null,"Cyber - 1. # of Policies Package - UK & Europe",null,null,null,null,0]
["Sch Ve","Scenario Tests",null,"Cyber - 1. Cyber Gross Exposure-Package - Other",null,null,null,null,0]
["Sch Ve","Scenario Tests",null,"Cyber - 1. Cyber Net Exposure-Package - Worldwide",null,null,null,null,0]
["Sch Ve","Scenario Tests",null,"Cyber - 2. Exclusion Clause - International Casualty Non-Motor Non-Proportional",null,null,null,null,"Select"]
["Sch Ve","Scenario Tests",null,"Cyber - 2. Current Yr Structured/Finite reinsurance",null,null,null,null,0]
["Sch Ve","Scenario Tests",null,"Cyber - 2. Prior Yr International Casualty Non-Motor Non-Proportional",null,null,null,null,0]
["Sch Ve","Scenario Tests",null,"Cyber - 2. Claims Made or Occurrence -  US Specialty Non-Proportional",null,null,null,null,"Select from Drop-down"]
["Sch Ve","Scenario Tests",null,"Cyber - 3. 1. Cloud Outage - Net Coverage - 1. Crime",null,null,null,null,0]
["Sch Ve","Scenario Tests",null,"Cyber - 3. 1. Cloud Outage - Net Coverage - 2. E&O Policies",null,null,null,null,0]
["Sch Ve","Scenario Tests",null,"Cyber - 3. 3. Data Breach - Net Coverage - 3. Tech. E&O",null,null,null,null,0]
["Sch Ve","Scenario Tests",null,"A13a) Designated IT Risk Manager Details","Confirm role holder's name"]
["Sch Ve","Scenario Tests",null,"B13) Penetration Testing completed within 1 yr","Select Yes/No"]
["Sch Vf","Coinsurance",null,"Mod Co - Ceding Insurer 4",0]
["Sch Vf","Coinsurance",null,"Mod Co - Coverage 13","Select from Drop-Down"]
["Sch Vf","Coinsurance",null,"Mod Co - Reserve 1",0]
["Sch Vf","Coinsurance",null,"Affiliated Cedant - Other 4",0]
["Sch Vg","GAAP - BSCR Rec",null,"Assets Fin. Stmts. - Prepaid Expenses",0]
["Sch Vg","GAAP - BSCR Rec",null,"Liab. Fin. Stmts. - Goodwill",0]
["Sch Vg","GAAP - BSCR Rec",null,"Assets - Intangible",0]
["Sch Vg","GAAP - BSCR Rec",null,"Liab. - Other 3",0]
["Sch Vg","GAAP - BSCR Rec",null,"Net Inc. - Form 1SFS",0]
["Sch Vg","GAAP - BSCR Rec",null,"Net Inc. - Total",0]
["Sch Vk","Deposit Details",null,"Name of Exposure - 24",0]
["Sch Vk","Deposit Details",null,"Line of Business - 24",0]
["Sch Vk","Deposit Details",null,"Assets in Trust - 16",0]
["Sch Vk","Deposit Details",null,"Assets in Trust - Total",0]
["Sch Vk","Deposit Details",null,"Collateral - 21",0]
["Sch Vk","Deposit Details",null,"GPW for the Period - 20",0]
["Sch Vk","Deposit Details",null,"NPW for the Period - 20",0]
["Sch Vk","Deposit Details",null,"Exposure - 15",0]
["Sch Vk","Deposit Details",null,"Limit @ 99.0 TVAR - 14",0]
["Sch Vk","Deposit Details",null,"Limit @ 99.0 TVAR - 19",0]
["Sch VI","Schedule of Assets",null,"(A) Cash - Asset Type 1","Select",null,null,null,"Select"]
["Sch VI","Schedule of Assets",null,"(A) Cash - Asset Type 13","Select",null,null,null,"Select"]
["Sch VI","Schedule of Assets",null,"(A) Cash - Asset Type 34","Select",null,null,null,"Select"]
["Sch VI","Schedule of Assets",null,"(A) Cash - Asset Type 48","Select",null,null,null,"Select"]
["Sch VI","Schedule of Assets",null,"(A) Cash - Asset Type 65","Select",null,null,null,"Select"]
["Sch VI","Schedule of Assets",null,"(A) Cash - Asset Type 86","Select",null,null,null,"Select"]
["Sch VI","Schedule of Assets",null,"(A) Cash - Asset Type 111","Select",null,null,null,"Select"]
["Sch VI","Schedule of Assets",null,"(A) Cash - Asset Type 134","Select",null,null,null,"Select"]
["Sch VI","Schedule of Assets",null,"(A) Cash - Asset Type 158","Select",null,null,null,"Select"]
["Sch VI","Schedule of Assets",null,"(A) Cash - Asset Type 183","Select",null,null,null,"Select"]
["Sch VI","Schedule of Assets",null,"(A) Cash - Currency 4","Select",null,null,null,"Select"]
["Sch VI","Schedule of Assets",null,"(A) Cash - Currency 16","Select",null,null,null,"Select"]
["Sch VI","Schedule of Assets",null,"(A) Cash - Currency 35","Select",null,null,null,"Select"]
["Sch VI","Schedule of Assets",null,"(A) Cash - Currency 56","Select",null,null,null,"Select"]
["Sch VI","Schedule of Assets",null,"(A) Cash - Currency 84","Select",null,null,null,"Select"]
["Sch VI","Schedule of Assets",null,"(A) Cash - Currency 103","Select",null,null,null,"Select"]
["Sch VI","Schedule of Assets",null,"(A) Cash - Currency 108","Select",null,null,null,"Select"]
["Sch VI","Schedule of Assets",null,"(A) Cash - Currency 133","Select",null,null,null,"Select"]
["Sch VI","Schedule of Assets",null,"(A) Cash - Currency 149","Select",null,null,null,"Select"]
["Sch VI","Schedule of Assets",null,"(A) Cash - Currency 180","Select",null,null,null,"Select"]
["Sch VI","Schedule of Assets",null,"(A) Cash - Rating 1","Select",null,null,null,"Select"]
["Sch VI","Schedule of Assets",null,"(A) Cash - Rating 26","Select",null,null,null,"Select"]
["Sch VI","Schedule of Assets",null,"(A) Cash - Rating 31","Select",null,null,null,"Select"]
["Sch VI","Schedule of Assets",null,"(A) Cash - Rating 53","Select",null,null,null,"Select"]
["Sch VI","Schedule of Assets",null,"(A) Cash - Rating 78","Select",null,null,null,"Select"]
["Sch VI","Schedule of Assets",null,"(A) Cash - Rating 99","Select",null,null,null,"Select"]
["Sch VI","Schedule of Assets",null,"(A) Cash - Rating 125","Select",null,null,null,"Select"]
["Sch VI","Schedule of Assets",null,"(A) Cash - Rating 150","Select",null,null,null,"Select"]
["Sch VI","Schedule of Assets",null,"(A) Cash - Rating 151","Select",null,null,null,"Select"]
["Sch VI","Schedule of Assets",null,"(A) Cash - Rating 185","Select",null,null,null,"Select"]
["Sch VI","Schedule of Assets",null,"(A) Cash - Nominal 2",0,null,null,null,0]
["Sch VI","Schedule of Assets",null,"(A) Cash - Nominal 23",0,null,null,null,0]
["Sch VI","Schedule of Assets",null,"(A) Cash - Nominal 48",0,null,null,null,0]
["Sch VI","Schedule of Assets",null,"(A) Cash - Nominal 67",0,null,null,null,0]
["Sch VI","Schedule of Assets",null,"(A) Cash - Nominal 75",0,null,null,null,0]
["Sch VI","Schedule of Assets",null,"(A) Cash - Nominal 100",0,null,null,null,0]
["Sch VI","Schedule of Assets",null,"(A) Cash - Nominal 118",0,null,null,null,0]
["Sch VI","Schedule of Assets",null,"(A) Cash - Nominal 147",0,null,null,null,0]
["Sch VI","Schedule of Assets",null,"(A) Cash - Nominal 172",0,null,null,null,0]
["Sch VI","Schedule of Assets",null,"(A) Cash - Nominal 193",0,null,null,null,0]
["Sch VI","Schedule of Assets",null,"(A) Cash - Nominal 200",0,null,null,null,0]
["Sch VI","Schedule of Assets",null,"(A) Cash - Fair Value 20",0,null,null,null,0]
["Sch VI","Schedule of Assets",null,"(A) Cash - Fair Value 45",0,null,null,null,0]
["Sch VI","Schedule of Assets",null,"(A) Cash - Fair Value 70",0,null,null,null,0]
["Sch VI","Schedule of Assets",null,"(A) Cash - Fair Value 86",0,null,null,null,0]
["Sch VI","Schedule of Assets",null,"(A) Cash - Fair Value 97",0,null,null,null,0]
["Sch VI","Schedule of Assets",null,"(A) Cash - Fair Value 122",0,null,null,null,0]
["Sch VI","Schedule of Assets",null,"(A) Cash - Fair Value 154",0,null,null,null,0]
["Sch VI","Schedule of Assets",null,"(A) Cash - Fair Value 169",0,null,null,null,0]
["Sch VI","Schedule of Assets",null,"(A) Cash - Fair Value 190",0,null,null,null,0]
["Sch VI","Schedule of Assets",null,"(A) Cash - Comments 15",0,null,null,null,0]
["Sch VI","Schedule of Assets",null,"(A) Cash - Comments 36",0,null,null,null,0]
["Sch VI","Schedule of Assets",null,"(A) Cash - Comments 42",0,null,null,null,0]
["Sch VI","Schedule of Assets",null,"(A) Cash - Comments 67",0,null,null,null,0]
["Sch VI","Schedule of Assets",null,"(A) Cash - Comments 92",0,null,null,null,0]
["Sch VI","Schedule of Assets",null,"(A) Cash - Comments 101",0,null,null,null,0]
["Sch VI","Schedule of Assets",null,"(A) Cash - Comments 119",0,null,null,null,0]
["Sch VI","Schedule of Assets",null,"(A) Cash - Comments 140",0,null,null,null,0]
["Sch VI","Schedule of Assets",null,"(A) Cash - Comments 169",0,null,null,null,0]
["Sch VI","Schedule of Assets",null,"(A) Cash - Comments 191",0,null,null,null,0]
["Sch VI","Schedule of Assets",null,"(B) Bonds - Asset Type 11","Select",null,null,null,"Select"]
["Sch VI","Schedule of Assets",null,"(B) Bonds - Asset Type 36","Select",null,null,null,"Select"]
["Sch VI","Schedule of Assets",null,"(B) Bonds - Asset Type 54","Select",null,null,null,"Select"]
["Sch VI","Schedule of Assets",null,"(B) Bonds - Asset Type 63","Select",null,null,null,"Select"]
["Sch VI","Schedule of Assets",null,"(B) Bonds - Asset Type 88","Select",null,null,null,"Select"]
["Sch VI","Schedule of Assets",null,"(B) Bonds - Asset Type 101","Select",null,null,null,"Select"]
["Sch VI","Schedule of Assets",null,"(B) Bonds - Asset Type 135","Select",null,null,null,"Select"]
["Sch VI","Schedule of Assets",null,"(B) Bonds - Asset Type 160","Select",null,null,null,"Select"]
["Sch VI","Schedule of Assets",null,"(B) Bonds - Asset Type 161","Select",null,null,null,"Select"]
["Sch VI","Schedule of Assets",null,"(B) Bonds - Asset Type 183","Select",null,null,null,"Select"]
["Sch VI","Schedule of Assets",null,"(B) Bonds - Asset Type 208","Select",null,null,null,"Select"]
["Sch VI","Schedule of Assets",null,"(B) Bonds - Asset Type 233","Select",null,null,null,"Select"]
["Sch VI","Schedule of Assets",null,"(B) Bonds - Asset Type 258","Select",null,null,null,"Select"]
["Sch VI","Schedule of Assets",null,"(B) Bonds - Asset Type 269","Select",null,null,null,"Select"]
["Sch VI","Schedule of Assets",null,"(B) Bonds - Asset Type 285","Select",null,null,null,"Select"]
["Sch VI","Schedule of Assets",null,"(B) Bonds - Asset Type 306","Select",null,null,null,"Select"]
["Sch VI","Schedule of Assets",null,"(B) Bonds - Asset Type 337","Select",null,null,null,"Select"]
["Sch VI","Schedule of Assets",null,"(B) Bonds - Asset Type 357","Select",null,null,null,"Select"]
["Sch VI","Schedule of Assets",null,"(B) Bonds - Asset Type 378","Select",null,null,null,"Select"]
["Sch VI","Schedule of Assets",null,"(B) Bonds - Currency 3","Select",null,null,null,"Select"]
["Sch VI","Schedule of Assets",null,"(B) Bonds - Currency 19","Select",null,null,null,"Select"]
["Sch VI","Schedule of Assets",null,"(B) Bonds - Currency 30","Select",null,null,null,"Select"]
["Sch VI","Schedule of Assets",null,"(B) Bonds - Currency 55","Select",null,null,null,"Select"]
["Sch VI","Schedule of Assets",null,"(B) Bonds - Currency 76","Select",null,null,null,"Select"]
["Sch VI","Schedule of Assets",null,"(B) Bonds - Currency 105","Select",null,null,null,"Select"]
["Sch VI","Schedule of Assets",null,"(B) Bonds - Currency 107","Select",null,null,null,"Select"]
["Sch VI","Schedule of Assets",null,"(B) Bonds - Currency 128","Select",null,null,null,"Select"]
["Sch VI","Schedule of Assets",null,"(B) Bonds - Currency 152","Select",null,null,null,"Select"]
["Sch VI","Schedule of Assets",null,"(B) Bonds - Currency 179","Select",null,null,null,"Select"]
["Sch VI","Schedule of Assets",null,"(B) Bonds - Currency 200","Select",null,null,null,"Select"]
["Sch VI","Schedule of Assets",null,"(B) Bonds - Currency 225","Select",null,null,null,"Select"]
["Sch VI","Schedule of Assets",null,"(B) Bonds - Currency 238","Select",null,null,null,"Select"]
["Sch VI","Schedule of Assets",null,"(B) Bonds - Currency 252","Select",null,null,null,"Select"]
["Sch VI","Schedule of Assets",null,"(B) Bonds - Currency 277","Select",null,null,null,"Select"]
["Sch VI","Schedule of Assets",null,"(B) Bonds - Currency 298","Select",null,null,null,"Select"]
["Sch VI","Schedule of Assets",null,"(B) Bonds - Currency 320","Select",null,null,null,"Select"]
["Sch VI","Schedule of Assets",null,"(B) Bonds - Currency 345","Select",null,null,null,"Select"]
["Sch VI","Schedule of Assets",null,"(B) Bonds - Currency 350","Select",null,null,null,"Select"]
["Sch VI","Schedule of Assets",null,"(B) Bonds - Currency 388","Select",null,null,null,"Select"]
["Sch VI","Schedule of Assets",null,"(B) Bonds - Currency 397","Select",null,null,null,"Select"]
["Sch VI","Schedule of Assets",null,"(B) Bonds - Rating 22","Select",null,null,null,"Select"]
["Sch VI","Schedule of Assets",null,"(B) Bonds - Rating 47","Select",null,null,null,"Select"]
["Sch VI","Schedule of Assets",null,"(B) Bonds - Rating 53","Select",null,null,null,"Select"]
["Sch VI","Schedule of Assets",null,"(B) Bonds - Rating 74","Select",null,null,null,"Select"]
["Sch VI","Schedule of Assets",null,"(B) Bonds - Rating 95","Select",null,null,null,"Select"]
["Sch VI","Schedule of Assets",null,"(B) Bonds - Rating 120","Select",null,null,null,"Select"]
["Sch VI","Schedule of Assets",null,"(B) Bonds - Rating 135","Select",null,null,null,"Select"]
["Sch VI","Schedule of Assets",null,"(B) Bonds - Rating 167","Select",null,null,null,"Select"]
["Sch VI","Schedule of Assets",null,"(B) Bonds - Rating 172","Select",null,null,null,"Select"]
["Sch VI","Schedule of Assets",null,"(B) Bonds - Rating 207","Select",null,null,null,"Select"]
["Sch VI","Schedule of Assets",null,"(B) Bonds - Rating 219","Select",null,null,null,"Select"]
["Sch VI","Schedule of Assets",null,"(B) Bonds - Rating 244","Select",null,null,null,"Select"]
["Sch VI","Schedule of Assets",null,"(B) Bonds - Rating 265","Select",null,null,null,"Select"]
["Sch VI","Schedule of Assets",null,"(B) Bonds - Rating 289","Select",null,null,null,"Select"]
["Sch VI","Schedule of Assets",null,"(B) Bonds - Rating 296","Select",null,null,null,"Select"]
["Sch VI","Schedule of Assets",null,"(B) Bonds - Rating 317","Select",null,null,null,"Select"]
["Sch VI","Schedule of Assets",null,"(B) Bonds - Rating 342","Select",null,null,null,"Select"]
["Sch VI","Schedule of Assets",null,"(B) Bonds - Rating 354","Select",null,null,null,"Select"]
["Sch VI","Schedule of Assets",null,"(B) Bonds - Rating 389","Select",null,null,null,"Select"]
["Sch VI","Schedule of Assets",null,"(B) Bonds - Nominal 14",0,null,null,null,0]
["Sch VI","Schedule of Assets",null,"(B) Bonds - Nominal 22",0,null,null,null,0]
["Sch VI","Schedule of Assets",null,"(B) Bonds - Nominal 41",0,null,null,null,0]
["Sch VI","Schedule of Assets",null,"(B) Bonds - Nominal 66",0,null,null,null,0]
["Sch VI","Schedule of Assets",null,"(B) Bonds - Nominal 87",0,null,null,null,0]
["Sch VI","Schedule of Assets",null,"(B) Bonds - Nominal 104",0,null,null,null,0]
["Sch VI","Schedule of Assets",null,"(B) Bonds - Nominal 134",0,null,null,null,0]
["Sch VI","Schedule of Assets",null,"(B) Bonds - Nominal 139",0,null,null,null,0]
["Sch VI","Schedule of Assets",null,"(B) Bonds - Nominal 164",0,null,null,null,0]
["Sch VI","Schedule of Assets",null,"(B) Bonds - Nominal 190",0,null,null,null,0]
["Sch VI","Schedule of Assets",null,"(B) Bonds - Nominal 211",0,null,null,null,0]
["Sch VI","Schedule of Assets",null,"(B) Bonds - Nominal 232",0,null,null,null,0]
["Sch VI","Schedule of Assets",null,"(B) Bonds - Nominal 258",0,null,null,null,0]
["Sch VI","Schedule of Assets",null,"(B) Bonds - Nominal 263",0,null,null,null,0]
["Sch VI","Schedule of Assets",null,"(B) Bonds - Nominal 284",0,null,null,null,0]
["Sch VI","Schedule of Assets",null,"(B) Bonds - Nominal 309",0,null,null,null,0]
["Sch VI","Schedule of Assets",null,"(B) Bonds - Nominal 319",0,null,null,null,0]
["Sch VI","Schedule of Assets",null,"(B) Bonds - Nominal 356",0,null,null,null,0]
["Sch VI","Schedule of Assets",null,"(B) Bonds - Nominal 361",0,null,null,null,0]
["Sch VI","Schedule of Assets",null,"(B) Bonds - Nominal 382",0,null,null,null,0]
["Sch VI","Schedule of Assets",null,"(B) Bonds - Fair Value 5",0,null,null,null,0]
["Sch VI","Schedule of Assets",null,"(B) Bonds - Fair Value 33",0,null,null,null,0]
["Sch VI","Schedule of Assets",null,"(B) Bonds - Fair Value 54",0,null,null,null,0]
["Sch VI","Schedule of Assets",null,"(B) Bonds - Fair Value 73",0,null,null,null,0]
["Sch VI","Schedule of Assets",null,"(B) Bonds - Fair Value 85",0,null,null,null,0]
["Sch VI","Schedule of Assets",null,"(B) Bonds - Fair Value 106",0,null,null,null,0]
["Sch VI","Schedule of Assets",null,"(B) Bonds - Fair Value 131",0,null,null,null,0]
["Sch VI","Schedule of Assets",null,"(B) Bonds - Fair Value 159",0,null,null,null,0]
["Sch VI","Schedule of Assets",null,"(B) Bonds - Fair Value 178",0,null,null,null,0]
["Sch VI","Schedule of Assets",null,"(B) Bonds - Fair Value 183",0,null,null,null,0]
["Sch VI","Schedule of Assets",null,"(B) Bonds - Fair Value 204",0,null,null,null,0]
["Sch VI","Schedule of Assets",null,"(B) Bonds - Fair Value 241",0,null,null,null,0]
["Sch VI","Schedule of Assets",null,"(B) Bonds - Fair Value 251",0,null,null,null,0]
["Sch VI","Schedule of Assets",null,"(B) Bonds - Fair Value 276",0,null,null,null,0]
["Sch VI","Schedule of Assets",null,"(B) Bonds - Fair Value 288",0,null,null,null,0]
["Sch VI","Schedule of Assets",null,"(B) Bonds - Fair Value 323",0,null,null,null,0]
["Sch VI","Schedule of Assets",null,"(B) Bonds - Fair Value 328",0,null,null,null,0]
["Sch VI","Schedule of Assets",null,"(B) Bonds - Fair Value 353",0,null,null,null,0]
["Sch VI","Schedule of Assets",null,"(B) Bonds - Fair Value 374",0,null,null,null,0]
["Sch VI","Schedule of Assets",null,"(B) Bonds - Fair Value 400",0,null,null,null,0]
["Sch VI","Schedule of Assets",null,"(B) Bonds - Weighted Average YTM 21",0,null,null,null,0]
["Sch VI","Schedule of Assets",null,"(B) Bonds - Weighted Average YTM 26",0,null,null,null,0]
["Sch VI","Schedule of Assets",null,"(B) Bonds - Weighted Average YTM 56",0,null,null,null,0]
["Sch VI","Schedule of Assets",null,"(B) Bonds - Weighted Average YTM 73",0,null,null,null,0]
["Sch VI","Schedule of Assets",null,"(B) Bonds - Weighted Average YTM 98",0,null,null,null,0]
["Sch VI","Schedule of Assets",null,"(B) Bonds - Weighted Average YTM 107",0,null,null,null,0]
["Sch VI","Schedule of Assets",null,"(B) Bonds - Weighted Average YTM 145",0,null,null,null,0]
["Sch VI","Schedule of Assets",null,"(B) Bonds - Weighted Average YTM 150",0,null,null,null,0]
["Sch VI","Schedule of Assets",null,"(B) Bonds - Weighted Average YTM 171",0,null,null,null,0]
["Sch VI","Schedule of Assets",null,"(B) Bonds - Weighted Average YTM 189",0,null,null,null,0]
["Sch VI","Schedule of Assets",null,"(B) Bonds - Weighted Average YTM 222",0,null,null,null,0]
["Sch VI","Schedule of Assets",null,"(B) Bonds - Weighted Average YTM 243",0,null,null,null,0]
["Sch VI","Schedule of Assets",null,"(B) Bonds - Weighted Average YTM 268",0,null,null,null,0]
["Sch VI","Schedule of Assets",null,"(B) Bonds - Weighted Average YTM 275",0,null,null,null,0]
["Sch VI","Schedule of Assets",null,"(B) Bonds - Weighted Average YTM 295",0,null,null,null,0]
["Sch VI","Schedule of Assets",null,"(B) Bonds - Weighted Average YTM 320",0,null,null,null,0]
["Sch VI","Schedule of Assets",null,"(B) Bonds - Weighted Average YTM 343",0,null,null,null,0]
["Sch VI","Schedule of Assets",null,"(B) Bonds - Weighted Average YTM 367",0,null,null,null,0]
["Sch VI","Schedule of Assets",null,"(B) Bonds - Weighted Average YTM 372",0,null,null,null,0]
["Sch VI","Schedule of Assets",null,"(B) Bonds - Weighted Average YTM 393",0,null,null,null,0]
["Sch VI","Schedule of Assets",null,"(B) Bonds - Effective Duration 25",0,null,null,null,0]
["Sch VI","Schedule of Assets",null,"(B) Bonds - Effective Duration 40",0,null,null,null,0]
["Sch VI","Schedule of Assets",null,"(B) Bonds - Effective Duration 65",0,null,null,null,0]
["Sch VI","Schedule of Assets",null,"(B) Bonds - Effective Duration 72",0,null,null,null,0]
["Sch VI","Schedule of Assets",null,"(B) Bonds - Effective Duration 112",0,null,null,null,0]
["Sch VI","Schedule of Assets",null,"(B) Bonds - Effective Duration 117",0,null,null,null,0]
["Sch VI","Schedule of Assets",null,"(B) Bonds - Effective Duration 138",0,null,null,null,0]
["Sch VI","Schedule of Assets",null,"(B) Bonds - Effective Duration 158",0,null,null,null,0]
["Sch VI","Schedule of Assets",null,"(B) Bonds - Effective Duration 189",0,null,null,null,0]
["Sch VI","Schedule of Assets",null,"(B) Bonds - Effective Duration 210",0,null,null,null,0]
["Sch VI","Schedule of Assets",null,"(B) Bonds - Effective Duration 215",0,null,null,null,0]
["Sch VI","Schedule of Assets",null,"(B) Bonds - Effective Duration 240",0,null,null,null,0]
["Sch VI","Schedule of Assets",null,"(B) Bonds - Effective Duration 262",0,null,null,null,0]
["Sch VI","Schedule of Assets",null,"(B) Bonds - Effective Duration 287",0,null,null,null,0]
["Sch VI","Schedule of Assets",null,"(B) Bonds - Effective Duration 312",0,null,null,null,0]
["Sch VI","Schedule of Assets",null,"(B) Bonds - Effective Duration 334",0,null,null,null,0]
["Sch VI","Schedule of Assets",null,"(B) Bonds - Effective Duration 339",0,null,null,null,0]
["Sch VI","Schedule of Assets",null,"(B) Bonds - Effective Duration 360",0,null,null,null,0]
["Sch VI","Schedule of Assets",null,"(B) Bonds - Effective Duration 394",0,null,null,null,0]
["Sch VI","Schedule of Assets",null,"(B) Bonds - Comments 7",0,null,null,null,0]
["Sch VI","Schedule of Assets",null,"(B) Bonds - Comments 32",0,null,null,null,0]
["Sch VI","Schedule of Assets",null,"(B) Bonds - Comments 37",0,null,null,null,0]
["Sch VI","Schedule of Assets",null,"(B) Bonds - Comments 59",0,null,null,null,0]
["Sch VI","Schedule of Assets",null,"(B) Bonds - Comments 84",0,null,null,null,0]
["Sch VI","Schedule of Assets",null,"(B) Bonds - Comments 109",0,null,null,null,0]
["Sch VI","Schedule of Assets",null,"(B) Bonds - Comments 127",0,null,null,null,0]
["Sch VI","Schedule of Assets",null,"(B) Bonds - Comments 156",0,null,null,null,0]
["Sch VI","Schedule of Assets",null,"(B) Bonds - Comments 177",0,null,null,null,0]
["Sch VI","Schedule of Assets",null,"(B) Bonds - Comments 182",0,null,null,null,0]
["Sch VI","Schedule of Assets",null,"(B) Bonds - Comments 209",0,null,null,null,0]
["Sch VI","Schedule of Assets",null,"(B) Bonds - Comments 229",0,null,null,null,0]
["Sch VI","Schedule of Assets",null,"(B) Bonds - Comments 254",0,null,null,null,0]
["Sch VI","Schedule of Assets",null,"(B) Bonds - Comments 279",0,null,null,null,0]
["Sch VI","Schedule of Assets",null,"(B) Bonds - Comments 295",0,null,null,null,0]
["Sch VI","Schedule of Assets",null,"(B) Bonds - Comments 306",0,null,null,null,0]
["Sch VI","Schedule of Assets",null,"(B) Bonds - Comments 327",0,null,null,null,0]
["Sch VI","Schedule of Assets",null,"(B) Bonds - Comments 342",0,null,null,null,0]
["Sch VI","Schedule of Assets",null,"(B) Bonds - Comments 378",0,null,null,null,0]
["Sch VI","Schedule of Assets",null,"(B) Bonds - Comments 399",0,null,null,null,0]
["Sch VI","Schedule of Assets",null,"(B) Bonds Sovereign Debt - Country 3","Select",null,null,null,"Select"]
["Sch VI","Schedule of Assets",null,"(B) Bonds Sovereign Debt - Country 27","Select",null,null,null,"Select"]
["Sch VI","Schedule of Assets",null,"(B) Bonds Sovereign Debt - Country 50","Select",null,null,null,"Select"]
["Sch VI","Schedule of Assets",null,"(B) Bonds Sovereign Debt - Country 75","Select",null,null,null,"Select"]
["Sch VI","Schedule of Assets",null,"(B) Bonds Sovereign Debt - Country 96","Select",null,null,null,"Select"]
["Sch VI","Schedule of Assets",null,"(B) Bonds Sovereign Debt - Country 109","Select",null,null,null,"Select"]
["Sch VI","Schedule of Assets",null,"(B) Bonds Sovereign Debt - Country 127","Select",null,null,null,"Select"]
["Sch VI","Schedule of Assets",null,"(B) Bonds Sovereign Debt - Country 148","Select",null,null,null,"Select"]
["Sch VI","Schedule of Assets",null,"(B) Bonds Sovereign Debt - Country 177","Select",null,null,null,"Select"]
["Sch VI","Schedule of Assets",null,"(B) Bonds Sovereign Debt - Country 195","Select",null,null,null,"Select"]
["Sch VI","Schedule of Assets",null,"(B) Bonds Sovereign Debt - Currency 20","Select",null,null,null,"Select"]
["Sch VI","Schedule of Assets",null,"(B) Bonds Sovereign Debt - Currency 25","Select",null,null,null,"Select"]
["Sch VI","Schedule of Assets",null,"(B) Bonds Sovereign Debt - Currency 63","Select",null,null,null,"Select"]
["Sch VI","Schedule of Assets",null,"(B) Bonds Sovereign Debt - Currency 72","Select",null,null,null,"Select"]
["Sch VI","Schedule of Assets",null,"(B) Bonds Sovereign Debt - Currency 97","Select",null,null,null,"Select"]
["Sch VI","Schedule of Assets",null,"(B) Bonds Sovereign Debt - Currency 118","Select",null,null,null,"Select"]
["Sch VI","Schedule of Assets",null,"(B) Bonds Sovereign Debt - Currency 145","Select",null,null,null,"Select"]
["Sch VI","Schedule of Assets",null,"(B) Bonds Sovereign Debt - Currency 165","Select",null,null,null,"Select"]
["Sch VI","Schedule of Assets",null,"(B) Bonds Sovereign Debt - Currency 170","Select",null,null,null,"Select"]
["Sch VI","Schedule of Assets",null,"(B) Bonds Sovereign Debt - Currency 192","Select",null,null,null,"Select"]
["Sch VI","Schedule of Assets",null,"(B) Bonds Sovereign Debt - Rating 17","Select",null,null,null,"Select"]
["Sch VI","Schedule of Assets",null,"(B) Bonds Sovereign Debt - Rating 42","Select",null,null,null,"Select"]
["Sch VI","Schedule of Assets",null,"(B) Bonds Sovereign Debt - Rating 63","Select",null,null,null,"Select"]
["Sch VI","Schedule of Assets",null,"(B) Bonds Sovereign Debt - Rating 78","Select",null,null,null,"Select"]
["Sch VI","Schedule of Assets",null,"(B) Bonds Sovereign Debt - Rating 94","Select",null,null,null,"Select"]
["Sch VI","Schedule of Assets",null,"(B) Bonds Sovereign Debt - Rating 115","Select",null,null,null,"Select"]
["Sch VI","Schedule of Assets",null,"(B) Bonds Sovereign Debt - Rating 140","Select",null,null,null,"Select"]
["Sch VI","Schedule of Assets",null,"(B) Bonds Sovereign Debt - Rating 160","Select",null,null,null,"Select"]
["Sch VI","Schedule of Assets",null,"(B) Bonds Sovereign Debt - Rating 187","Select",null,null,null,"Select"]
["Sch VI","Schedule of Assets",null,"(B) Bonds Sovereign Debt - Rating 192","Select",null,null,null,"Select"]
["Sch VI","Schedule of Assets",null,"(B) Bonds Sovereign Debt - Fair Value 11",0,null,null,null,0]
["Sch VI","Schedule of Assets",null,"(B) Bonds Sovereign Debt - Fair Value 39",0,null,null,null,0]
["Sch VI","Schedule of Assets",null,"(B) Bonds Sovereign Debt - Fair Value 64",0,null,null,null,0]
["Sch VI","Schedule of Assets",null,"(B) Bonds Sovereign Debt - Fair Value 85",0,null,null,null,0]
["Sch VI","Schedule of Assets",null,"(B) Bonds Sovereign Debt - Fair Value 93",0,null,null,null,0]
["Sch VI","Schedule of Assets",null,"(B) Bonds Sovereign Debt - Fair Value 112",0,null,null,null,0]
["Sch VI","Schedule of Assets",null,"(B) Bonds Sovereign Debt - Fair Value 137",0,null,null,null,0]
["Sch VI","Schedule of Assets",null,"(B) Bonds Sovereign Debt - Fair Value 162",0,null,null,null,0]
["Sch VI","Schedule of Assets",null,"(B) Bonds Sovereign Debt - Fair Value 179",0,null,null,null,0]
["Sch VI","Schedule of Assets",null,"(B) Bonds Sovereign Debt - Comments 9",0,null,null,null,0]
["Sch VI","Schedule of Assets",null,"(B) Bonds Sovereign Debt - Comments 14",0,null,null,null,0]
["Sch VI","Schedule of Assets",null,"(B) Bonds Sovereign Debt - Comments 47",0,null,null,null,0]
["Sch VI","Schedule of Assets",null,"(B) Bonds Sovereign Debt - Comments 61",0,null,null,null,0]
["Sch VI","Schedule of Assets",null,"(B) Bonds Sovereign Debt - Comments 82",0,null,null,null,0]
["Sch VI","Schedule of Assets",null,"(B) Bonds Sovereign Debt - Comments 107",0,null,null,null,0]
["Sch VI","Schedule of Assets",null,"(B) Bonds Sovereign Debt - Comments 129",0,null,null,null,0]
["Sch VI","Schedule of Assets",null,"(B) Bonds Sovereign Debt - Comments 134",0,null,null,null,0]
["Sch VI","Schedule of Assets",null,"(B) Bonds Sovereign Debt - Comments 159",0,null,null,null,0]
["Sch VI","Schedule of Assets",null,"(B) Bonds Sovereign Debt - Comments 184",0,null,null,null,0]
["Sch VI","Schedule of Assets",null,"(B) Bonds Sovereign Debt - Comments 194",0,null,null,null,0]
["Sch VI","Schedule of Assets",null,"(C) ABS and Struct. Sec. - Asset Type 30","Select",null,null,null,"Select"]
["Sch VI","Schedule of Assets",null,"(C) ABS and Struct. Sec. - Asset Type 51","Select",null,null,null,"Select"]
["Sch VI","Schedule of Assets",null,"(C) ABS and Struct. Sec. - Asset Type 61","Select",null,null,null,"Select"]
["Sch VI","Schedule of Assets",null,"(C) ABS and Struct. Sec. - Asset Type 82","Select",null,null,null,"Select"]
["Sch VI","Schedule of Assets",null,"(C) ABS and Struct. Sec. - Asset Type 103","Select",null,null,null,"Select"]
["Sch VI","Schedule of Assets",null,"(C) ABS and Struct. Sec. - Asset Type 128","Select",null,null,null,"Select"]
["Sch VI","Schedule of Assets",null,"(C) ABS and Struct. Sec. - Asset Type 147","Select",null,null,null,"Select"]
["Sch VI","Schedule of Assets",null,"(C) ABS and Struct. Sec. - Currency 25","Select",null,null,null,"Select"]
["Sch VI","Schedule of Assets",null,"(C) ABS and Struct. Sec. - Currency 30","Select",null,null,null,"Select"]
["Sch VI","Schedule of Assets",null,"(C) ABS and Struct. Sec. - Currency 51","Select",null,null,null,"Select"]
["Sch VI","Schedule of Assets",null,"(C) ABS and Struct. Sec. - Currency 79","Select",null,null,null,"Select"]
["Sch VI","Schedule of Assets",null,"(C) ABS and Struct. Sec. - Currency 102","Select",null,null,null,"Select"]
["Sch VI","Schedule of Assets",null,"(C) ABS and Struct. Sec. - Currency 123","Select",null,null,null,"Select"]
["Sch VI","Schedule of Assets",null,"(C) ABS and Struct. Sec. - Currency 147","Select",null,null,null,"Select"]
["Sch VI","Schedule of Assets",null,"(C) ABS and Struct. Sec. - Currency 150","Select",null,null,null,"Select"]
["Sch VI","Schedule of Assets",null,"(C) ABS and Struct. Sec. - Rating 25","Select",null,null,null,"Select"]
["Sch VI","Schedule of Assets",null,"(C) ABS and Struct. Sec. - Rating 50","Select",null,null,null,"Select"]
["Sch VI","Schedule of Assets",null,"(C) ABS and Struct. Sec. - Rating 62","Select",null,null,null,"Select"]
["Sch VI","Schedule of Assets",null,"(C) ABS and Struct. Sec. - Rating 97","Select",null,null,null,"Select"]
["Sch VI","Schedule of Assets",null,"(C) ABS and Struct. Sec. - Rating 102","Select",null,null,null,"Select"]
["Sch VI","Schedule of Assets",null,"(C) ABS and Struct. Sec. - Rating 123","Select",null,null,null,"Select"]
["Sch VI","Schedule of Assets",null,"(C) ABS and Struct. Sec. - Rating 144","Select",null,null,null,"Select"]
["Sch VI","Schedule of Assets",null,"(C) ABS and Struct. Sec. - Nominal Amount 20",0,null,null,null,0]
["Sch VI","Schedule of Assets",null,"(C) ABS and Struct. Sec. - Nominal Amount 45",0,null,null,null,0]
["Sch VI","Schedule of Assets",null,"(C) ABS and Struct. Sec. - Nominal Amount 62",0,null,null,null,0]
["Sch VI","Schedule of Assets",null,"(C) ABS and Struct. Sec. - Nominal Amount 72",0,null,null,null,0]
["Sch VI","Schedule of Assets",null,"(C) ABS and Struct. Sec. - Nominal Amount 97",0,null,null,null,0]
["Sch VI","Schedule of Assets",null,"(C) ABS and Struct. Sec. - Nominal Amount 118",0,null,null,null,0]
["Sch VI","Schedule of Assets",null,"(C) ABS and Struct. Sec. - Nominal Amount 148",0,null,null,null,0]
["Sch VI","Schedule of Assets",null,"(C) ABS and Struct. Sec. - Fair Value 19",0,null,null,null,0]
["Sch VI","Schedule of Assets",null,"(C) ABS and Struct. Sec. - Fair Value 40",0,null,null,null,0]
["Sch VI","Schedule of Assets",null,"(C) ABS and Struct. Sec. - Fair Value 45",0,null,null,null,0]
["Sch VI","Schedule of Assets",null,"(C) ABS and Struct. Sec. - Fair Value 71",0,null,null,null,0]
["Sch VI","Schedule of Assets",null,"(C) ABS and Struct. Sec. - Fair Value 92",0,null,null,null,0]
["Sch VI","Schedule of Assets",null,"(C) ABS and Struct. Sec. - Fair Value 117",0,null,null,null,0]
["Sch VI","Schedule of Assets",null,"(C) ABS and Struct. Sec. - Fair Value 131",0,null,null,null,0]
["Sch VI","Schedule of Assets",null,"(C) ABS and Struct. Sec. - Fair Value 144",0,null,null,null,0]
["Sch VI","Schedule of Assets",null,"(C) ABS and Struct. Sec. - Weighted Avg YTM 19",0,null,null,null,0]
["Sch VI","Schedule of Assets",null,"(C) ABS and Struct. Sec. - Weighted Avg YTM 40",0,null,null,null,0]
["Sch VI","Schedule of Assets",null,"(C) ABS and Struct. Sec. - Weighted Avg YTM 63",0,null,null,null,0]
["Sch VI","Schedule of Assets",null,"(C) ABS and Struct. Sec. - Weighted Avg YTM 87",0,null,null,null,0]
["Sch VI","Schedule of Assets",null,"(C) ABS and Struct. Sec. - Weighted Avg YTM 112",0,null,null,null,0]
["Sch VI","Schedule of Assets",null,"(C) ABS and Struct. Sec. - Weighted Avg YTM 131",0,null,null,null,0]
["Sch VI","Schedule of Assets",null,"(C) ABS and Struct. Sec. - Weighted Avg YTM 139",0,null,null,null,0]
["Sch VI","Schedule of Assets",null,"(C) ABS and Struct. Sec. - Effective Duration 14",0,null,null,null,0]
["Sch VI","Schedule of Assets",null,"(C) ABS and Struct. Sec. - Effective Duration 39",0,null,null,null,0]
["Sch VI","Schedule of Assets",null,"(C) ABS and Struct. Sec. - Effective Duration 46",0,null,null,null,0]
["Sch VI","Schedule of Assets",null,"(C) ABS and Struct. Sec. - Effective Duration 86",0,null,null,null,0]
["Sch VI","Schedule of Assets",null,"(C) ABS and Struct. Sec. - Effective Duration 87",0,null,null,null,0]
["Sch VI","Schedule of Assets",null,"(C) ABS and Struct. Sec. - Effective Duration 112",0,null,null,null,0]
["Sch VI","Schedule of Assets",null,"(C) ABS and Struct. Sec. - Effective Duration 128",0,null,null,null,0]
["Sch VI","Schedule of Assets",null,"(C) ABS and Struct. Sec. - Comments 9",0,null,null,null,0]
["Sch VI","Schedule of Assets",null,"(C) ABS and Struct. Sec. - Comments 34",0,null,null,null,0]
["Sch VI","Schedule of Assets",null,"(C) ABS and Struct. Sec. - Comments 46",0,null,null,null,0]
["Sch VI","Schedule of Assets",null,"(C) ABS and Struct. Sec. - Comments 61",0,null,null,null,0]
["Sch VI","Schedule of Assets",null,"(C) ABS and Struct. Sec. - Comments 86",0,null,null,null,0]
["Sch VI","Schedule of Assets",null,"(C) ABS and Struct. Sec. - Comments 107",0,null,null,null,0]
["Sch VI","Schedule of Assets",null,"(C) ABS and Struct. Sec. - Comments 132",0,null,null,null,0]
["Sch VI","Schedule of Assets",null,"(D) Loans - Asset Type 7","Select",null,null,null,"Select"]
["Sch VI","Schedule of Assets",null,"(D) Loans - Asset Type 28","Select",null,null,null,"Select"]
["Sch VI","Schedule of Assets",null,"(D) Loans - Asset Type 33","Select",null,null,null,"Select"]
["Sch VI","Schedule of Assets",null,"(D) Loans - Asset Type 67","Select",null,null,null,"Select"]
["Sch VI","Schedule of Assets",null,"(D) Loans - Asset Type 80","Select",null,null,null,"Select"]
["Sch VI","Schedule of Assets",null,"(D) Loans - Currency 5","Select",null,null,null,"Select"]
["Sch VI","Schedule of Assets",null,"(D) Loans - Currency 14","Select",null,null,null,"Select"]
["Sch VI","Schedule of Assets",null,"(D) Loans - Currency 32","Select",null,null,null,"Select"]
["Sch VI","Schedule of Assets",null,"(D) Loans - Currency 57","Select",null,null,null,"Select"]
["Sch VI","Schedule of Assets",null,"(D) Loans - Currency 78","Select",null,null,null,"Select"]
["Sch VI","Schedule of Assets",null,"(D) Loans - Currency 96","Select",null,null,null,"Select"]
["Sch VI","Schedule of Assets",null,"(D) Loans - Country 25","Select",null,null,null,"Select"]
["Sch VI","Schedule of Assets",null,"(D) Loans - Country 50","Select",null,null,null,"Select"]
["Sch VI","Schedule of Assets",null,"(D) Loans - Country 55","Select",null,null,null,"Select"]
["Sch VI","Schedule of Assets",null,"(D) Loans - Country 82","Select",null,null,null,"Select"]
["Sch VI","Schedule of Assets",null,"(D) Loans - Rating 2","Select",null,null,null,"Select"]
["Sch VI","Schedule of Assets",null,"(D) Loans - Rating 23","Select",null,null,null,"Select"]
["Sch VI","Schedule of Assets",null,"(D) Loans - Rating 50","Select",null,null,null,"Select"]
["Sch VI","Schedule of Assets",null,"(D) Loans - Rating 54","Select",null,null,null,"Select"]
["Sch VI","Schedule of Assets",null,"(D) Loans - Rating 75","Select",null,null,null,"Select"]
["Sch VI","Schedule of Assets",null,"(D) Loans - Rating 100","Select",null,null,null,"Select"]
["Sch VI","Schedule of Assets",null,"(D) Loans - Nominal Amount 32",0,null,null,null,0]
["Sch VI","Schedule of Assets",null,"(D) Loans - Nominal Amount 47",0,null,null,null,0]
["Sch VI","Schedule of Assets",null,"(D) Loans - Nominal Amount 72",0,null,null,null,0]
["Sch VI","Schedule of Assets",null,"(D) Loans - Nominal Amount 93",0,null,null,null,0]
["Sch VI","Schedule of Assets",null,"(D) Loans - Nominal Amount 97",0,null,null,null,0]
["Sch VI","Schedule of Assets",null,"(D) Loans - Fair Value 24",0,null,null,null,0]
["Sch VI","Schedule of Assets",null,"(D) Loans - Fair Value 45",0,null,null,null,0]
["Sch VI","Schedule of Assets",null,"(D) Loans - Fair Value 65",0,null,null,null,0]
["Sch VI","Schedule of Assets",null,"(D) Loans - Fair Value 96",0,null,null,null,0]
["Sch VI","Schedule of Assets",null,"(D) Loans - Fair Value 97",0,null,null,null,0]
["Sch VI","Schedule of Assets",null,"(D) Loans - Weighted Avg YTM 22",0,null,null,null,0]
["Sch VI","Schedule of Assets",null,"(D) Loans - Weighted Avg YTM 51",0,null,null,null,0]
["Sch VI","Schedule of Assets",null,"(D) Loans - Weighted Avg YTM 69",0,null,null,null,0]
["Sch VI","Schedule of Assets",null,"(D) Loans - Weighted Avg YTM 94",0,null,null,null,0]
["Sch VI","Schedule of Assets",null,"(D) Loans - Effective Duration 15",0,null,null,null,0]
["Sch VI","Schedule of Assets",null,"(D) Loans - Effective Duration 33",0,null,null,null,0]
["Sch VI","Schedule of Assets",null,"(D) Loans - Effective Duration 42",0,null,null,null,0]
["Sch VI","Schedule of Assets",null,"(D) Loans - Effective Duration 67",0,null,null,null,0]
["Sch VI","Schedule of Assets",null,"(D) Loans - Effective Duration 80",0,null,null,null,0]
["Sch VI","Schedule of Assets",null,"(D) Loans - Comments 14",0,null,null,null,0]
["Sch VI","Schedule of Assets",null,"(D) Loans - Comments 39",0,null,null,null,0]
["Sch VI","Schedule of Assets",null,"(D) Loans - Comments 44",0,null,null,null,0]
["Sch VI","Schedule of Assets",null,"(D) Loans - Comments 66",0,null,null,null,0]
["Sch VI","Schedule of Assets",null,"(D) Loans - Comments 91",0,null,null,null,0]
["Sch VI","Schedule of Assets",null,"(D) Loans Not Perform. - Asset Type 11","Select",null,null,null,"Select"]
["Sch VI","Schedule of Assets",null,"(D) Loans Not Perform. - Currency 16","Select",null,null,null,"Select"]
["Sch VI","Schedule of Assets",null,"(D) Loans Not Perform. - Country 7","Select",null,null,null,"Select"]
["Sch VI","Schedule of Assets",null,"(D) Loans Not Perform. - Rating 3","Select",null,null,null,"Select"]
["Sch VI","Schedule of Assets",null,"(D) Loans Not Perform. - Nominal Amount 8",0,null,null,null,0]
["Sch VI","Schedule of Assets",null,"(D) Loans Not Perform. - Fair Value 15",0,null,null,null,0]
["Sch VI","Schedule of Assets",null,"(D) Loans Not Perform. - Comment 15",0,null,null,null,0]
["Sch VI","Schedule of Assets",null,"(E) Preferred Equities - Asset Type 19","Select",null,null,null,"Select"]
["Sch VI","Schedule of Assets",null,"(E) Preferred Equities - Asset Type 40","Select",null,null,null,"Select"]
["Sch VI","Schedule of Assets",null,"(E) Preferred Equities - Asset Type 60","Select",null,null,null,"Select"]
["Sch VI","Schedule of Assets",null,"(E) Preferred Equities - Asset Type 71","Select",null,null,null,"Select"]
["Sch VI","Schedule of Assets",null,"(E) Preferred Equities - Asset Type 92","Select",null,null,null,"Select"]
["Sch VI","Schedule of Assets",null,"(E) Preferred Equities - Currency 17","Select",null,null,null,"Select"]
["Sch VI","Schedule of Assets",null,"(E) Preferred Equities - Currency 25","Select",null,null,null,"Select"]
["Sch VI","Schedule of Assets",null,"(E) Preferred Equities - Currency 44","Select",null,null,null,"Select"]
["Sch VI","Schedule of Assets",null,"(E) Preferred Equities - Currency 69","Select",null,null,null,"Select"]
["Sch VI","Schedule of Assets",null,"(E) Preferred Equities - Currency 93","Select",null,null,null,"Select"]
["Sch VI","Schedule of Assets",null,"(E) Preferred Equities - Rating 16","Select",null,null,null,"Select"]
["Sch VI","Schedule of Assets",null,"(E) Preferred Equities - Rating 41","Select",null,null,null,"Select"]
["Sch VI","Schedule of Assets",null,"(E) Preferred Equities - Rating 62","Select",null,null,null,"Select"]
["Sch VI","Schedule of Assets",null,"(E) Preferred Equities - Rating 75","Select",null,null,null,"Select"]
["Sch VI","Schedule of Assets",null,"(E) Preferred Equities - Rating 89","Select",null,null,null,"Select"]
["Sch VI","Schedule of Assets",null,"(E) Preferred Equities - Nominal Amount 14",0,null,null,null,0]
["Sch VI","Schedule of Assets",null,"(E) Preferred Equities - Nominal Amount 39",0,null,null,null,0]
["Sch VI","Schedule of Assets",null,"(E) Preferred Equities - Nominal Amount 61",0,null,null,null,0]
["Sch VI","Schedule of Assets",null,"(E) Preferred Equities - Nominal Amount 66",0,null,null,null,0]
["Sch VI","Schedule of Assets",null,"(E) Preferred Equities - Nominal Amount 87",0,null,null,null,0]
["Sch VI","Schedule of Assets",null,"(E) Preferred Equities - Fair Value 8",0,null,null,null,0]
["Sch VI","Schedule of Assets",null,"(E) Preferred Equities - Fair Value 38",0,null,null,null,0]
["Sch VI","Schedule of Assets",null,"(E) Preferred Equities - Fair Value 59",0,null,null,null,0]
["Sch VI","Schedule of Assets",null,"(E) Preferred Equities - Fair Value 84",0,null,null,null,0]
["Sch VI","Schedule of Assets",null,"(E) Preferred Equities - Fair Value 90",0,null,null,null,0]
["Sch VI","Schedule of Assets",null,"(E) Preferred Equities - Weighted Avg YTM 11",0,null,null,null,0]
["Sch VI","Schedule of Assets",null,"(E) Preferred Equities - Weighted Avg YTM 36",0,null,null,null,0]
["Sch VI","Schedule of Assets",null,"(E) Preferred Equities - Weighted Avg YTM 57",0,null,null,null,0]
["Sch VI","Schedule of Assets",null,"(E) Preferred Equities - Weighted Avg YTM 76",0,null,null,null,0]
["Sch VI","Schedule of Assets",null,"(E) Preferred Equities - Effective Duration 8",0,null,null,null,0]
["Sch VI","Schedule of Assets",null,"(E) Preferred Equities - Effective Duration 9",0,null,null,null,0]
["Sch VI","Schedule of Assets",null,"(E) Preferred Equities - Effective Duration 44",0,null,null,null,0]
["Sch VI","Schedule of Assets",null,"(E) Preferred Equities - Effective Duration 60",0,null,null,null,0]
["Sch VI","Schedule of Assets",null,"(E) Preferred Equities - Effective Duration 81",0,null,null,null,0]
["Sch VI","Schedule of Assets",null,"(E) Preferred Equities - Comments 6",0,null,null,null,0]
["Sch VI","Schedule of Assets",null,"(E) Preferred Equities - Comments 30",0,null,null,null,0]
["Sch VI","Schedule of Assets",null,"(E) Preferred Equities - Comments 33",0,null,null,null,0]
["Sch VI","Schedule of Assets",null,"(E) Preferred Equities - Comments 58",0,null,null,null,0]
["Sch VI","Schedule of Assets",null,"(E) Preferred Equities - Comments 77",0,null,null,null,0]
["Sch VI","Schedule of Assets",null,"(F) Common Equities - Asset Type 4","Select",null,null,null,"Select"]
["Sch VI","Schedule of Assets",null,"(F) Common Equities - Asset Type 25","Select",null,null,null,"Select"]
["Sch VI","Schedule of Assets",null,"(F) Common Equities - Asset Type 50","Select",null,null,null,"Select"]
["Sch VI","Schedule of Assets",null,"(F) Common Equities - Asset Type 58","Select",null,null,null,"Select"]
["Sch VI","Schedule of Assets",null,"(F) Common Equities - Asset Type 77","Select",null,null,null,"Select"]
["Sch VI","Schedule of Assets",null,"(F) Common Equities - Currency 2","Select",null,null,null,"Select"]
["Sch VI","Schedule of Assets",null,"(F) Common Equities - Currency 27","Select",null,null,null,"Select"]
["Sch VI","Schedule of Assets",null,"(F) Common Equities - Currency 44","Select",null,null,null,"Select"]
["Sch VI","Schedule of Assets",null,"(F) Common Equities - Currency 54","Select",null,null,null,"Select"]
["Sch VI","Schedule of Assets",null,"(F) Common Equities - Currency 75","Select",null,null,null,"Select"]
["Sch VI","Schedule of Assets",null,"(F) Common Equities - Country 12","Select",null,null,null,"Select"]
["Sch VI","Schedule of Assets",null,"(F) Common Equities - Country 26","Select",null,null,null,"Select"]
["Sch VI","Schedule of Assets",null,"(F) Common Equities - Country 47","Select",null,null,null,"Select"]
["Sch VI","Schedule of Assets",null,"(F) Common Equities - Country 72","Select",null,null,null,"Select"]
["Sch VI","Schedule of Assets",null,"(F) Common Equities - Country 94","Select",null,null,null,"Select"]
["Sch VI","Schedule of Assets",null,"(F) Common Equities - Country 99","Select",null,null,null,"Select"]
["Sch VI","Schedule of Assets",null,"(F) Common Equities - Fair Value 24",0,null,null,null,0]
["Sch VI","Schedule of Assets",null,"(F) Common Equities - Fair Value 45",0,null,null,null,0]
["Sch VI","Schedule of Assets",null,"(F) Common Equities - Fair Value 59",0,null,null,null,0]
["Sch VI","Schedule of Assets",null,"(F) Common Equities - Fair Value 76",0,null,null,null,0]
["Sch VI","Schedule of Assets",null,"(F) Common Equities - Fair Value 97",0,null,null,null,0]
["Sch VI","Schedule of Assets",null,"(F) Common Equities - Comments 27",0,null,null,null,0]
["Sch VI","Schedule of Assets",null,"(F) Common Equities - Comments 44",0,null,null,null,0]
["Sch VI","Schedule of Assets",null,"(F) Common Equities - Comments 69",0,null,null,null,0]
["Sch VI","Schedule of Assets",null,"(F) Common Equities - Comments 94",0,null,null,null,0]
["Sch VI","Schedule of Assets",null,"(G) Real Estate - Asset Type 12","Select",null,null,null,"Select"]
["Sch VI","Schedule of Assets",null,"(G) Real Estate - Asset Type 20","Select",null,null,null,"Select"]
["Sch VI","Schedule of Assets",null,"(G) Real Estate - Asset Type 45","Select",null,null,null,"Select"]
["Sch VI","Schedule of Assets",null,"(G) Real Estate - Asset Type 66","Select",null,null,null,"Select"]
["Sch VI","Schedule of Assets",null,"(G) Real Estate - Asset Type 94","Select",null,null,null,"Select"]
["Sch VI","Schedule of Assets",null,"(G) Real Estate - Currency 13","Select",null,null,null,"Select"]
["Sch VI","Schedule of Assets",null,"(G) Real Estate - Currency 18","Select",null,null,null,"Select"]
["Sch VI","Schedule of Assets",null,"(G) Real Estate - Currency 41","Select",null,null,null,"Select"]
["Sch VI","Schedule of Assets",null,"(G) Real Estate - Currency 65","Select",null,null,null,"Select"]
["Sch VI","Schedule of Assets",null,"(G) Real Estate - Currency 90","Select",null,null,null,"Select"]
["Sch VI","Schedule of Assets",null,"(G) Real Estate - Country 11","Select",null,null,null,"Select"]
["Sch VI","Schedule of Assets",null,"(G) Real Estate - Country 27","Select",null,null,null,"Select"]
["Sch VI","Schedule of Assets",null,"(G) Real Estate - Country 42","Select",null,null,null,"Select"]
["Sch VI","Schedule of Assets",null,"(G) Real Estate - Country 63","Select",null,null,null,"Select"]
["Sch VI","Schedule of Assets",null,"(G) Real Estate - Country 88","Select",null,null,null,"Select"]
["Sch VI","Schedule of Assets",null,"(G) Real Estate - Purpose 9","Select",null,null,null,"Select"]
["Sch VI","Schedule of Assets",null,"(G) Real Estate - Purpose 35","Select",null,null,null,"Select"]
["Sch VI","Schedule of Assets",null,"(G) Real Estate - Purpose 60","Select",null,null,null,"Select"]
["Sch VI","Schedule of Assets",null,"(G) Real Estate - Purpose 81","Select",null,null,null,"Select"]
["Sch VI","Schedule of Assets",null,"(G) Real Estate - Purpose 87","Select",null,null,null,"Select"]
["Sch VI","Schedule of Assets",null,"(G) Real Estate - Cost 12",0,null,null,null,0]
["Sch VI","Schedule of Assets",null,"(G) Real Estate - Cost 33",0,null,null,null,0]
["Sch VI","Schedule of Assets",null,"(G) Real Estate - Cost 42",0,null,null,null,0]
["Sch VI","Schedule of Assets",null,"(G) Real Estate - Cost 64",0,null,null,null,0]
["Sch VI","Schedule of Assets",null,"(G) Real Estate - Cost 85",0,null,null,null,0]
["Sch VI","Schedule of Assets",null,"(G) Real Estate - Fair Value 10",0,null,null,null,0]
["Sch VI","Schedule of Assets",null,"(G) Real Estate - Fair Value 28",0,null,null,null,0]
["Sch VI","Schedule of Assets",null,"(G) Real Estate - Fair Value 57",0,null,null,null,0]
["Sch VI","Schedule of Assets",null,"(G) Real Estate - Fair Value 82",0,null,null,null,0]
["Sch VI","Schedule of Assets",null,"(G) Real Estate - Fair Value 96",0,null,null,null,0]
["Sch VI","Schedule of Assets",null,"(G) Real Estate - Comments 9",0,null,null,null,0]
["Sch VI","Schedule of Assets",null,"(G) Real Estate - Comments 30",0,null,null,null,0]
["Sch VI","Schedule of Assets",null,"(G) Real Estate - Comments 55",0,null,null,null,0]
["Sch VI","Schedule of Assets",null,"(G) Real Estate - Comments 78",0,null,null,null,0]
["Sch VI","Schedule of Assets",null,"(H) Other Alt. Inv. - Asset Type 1","Select",null,null,null,"Select"]
["Sch VI","Schedule of Assets",null,"(H) Other Alt. Inv. - Asset Type 6","Select",null,null,null,"Select"]
["Sch VI","Schedule of Assets",null,"(H) Other Alt. Inv. - Asset Type 31","Select",null,null,null,"Select"]
["Sch VI","Schedule of Assets",null,"(H) Other Alt. Inv. - Asset Type 63","Select",null,null,null,"Select"]
["Sch VI","Schedule of Assets",null,"(H) Other Alt. Inv. - Asset Type 78","Select",null,null,null,"Select"]
["Sch VI","Schedule of Assets",null,"(H) Other Alt. Inv. - Asset Type 99","Select",null,null,null,"Select"]
["Sch VI","Schedule of Assets",null,"(H) Other Alt. Inv. - Currency 10","Select",null,null,null,"Select"]
["Sch VI","Schedule of Assets",null,"(H) Other Alt. Inv. - Currency 30","Select",null,null,null,"Select"]
["Sch VI","Schedule of Assets",null,"(H) Other Alt. Inv. - Currency 51","Select",null,null,null,"Select"]
["Sch VI","Schedule of Assets",null,"(H) Other Alt. Inv. - Currency 76","Select",null,null,null,"Select"]
["Sch VI","Schedule of Assets",null,"(H) Other Alt. Inv. - Currency 96","Select",null,null,null,"Select"]
["Sch VI","Schedule of Assets",null,"(H) Other Alt. Inv. - Country 23","Select",null,null,null,"Select"]
["Sch VI","Schedule of Assets",null,"(H) Other Alt. Inv. - Country 28","Select",null,null,null,"Select"]
["Sch VI","Schedule of Assets",null,"(H) Other Alt. Inv. - Country 49","Select",null,null,null,"Select"]
["Sch VI","Schedule of Assets",null,"(H) Other Alt. Inv. - Country 78","Select",null,null,null,"Select"]
["Sch VI","Schedule of Assets",null,"(H) Other Alt. Inv. - Country 100","Select",null,null,null,"Select"]
["Sch VI","Schedule of Assets",null,"(H) Other Alt. Inv. - Rating 21","Select",null,null,null,"Select"]
["Sch VI","Schedule of Assets",null,"(H) Other Alt. Inv. - Rating 46","Select",null,null,null,"Select"]
["Sch VI","Schedule of Assets",null,"(H) Other Alt. Inv. - Rating 68","Select",null,null,null,"Select"]
["Sch VI","Schedule of Assets",null,"(H) Other Alt. Inv. - Rating 73","Select",null,null,null,"Select"]
["Sch VI","Schedule of Assets",null,"(H) Other Alt. Inv. - Rating 98","Select",null,null,null,"Select"]
["Sch VI","Schedule of Assets",null,"(H) Other Alt. Inv. - Nominal Amount 11",0,null,null,null,0]
["Sch VI","Schedule of Assets",null,"(H) Other Alt. Inv. - Nominal Amount 45",0,null,null,null,0]
["Sch VI","Schedule of Assets",null,"(H) Other Alt. Inv. - Nominal Amount 70",0,null,null,null,0]
["Sch VI","Schedule of Assets",null,"(H) Other Alt. Inv. - Nominal Amount 71",0,null,null,null,0]
["Sch VI","Schedule of Assets",null,"(H) Other Alt. Inv. - Nominal Amount 93",0,null,null,null,0]
["Sch VI","Schedule of Assets",null,"(H) Other Alt. Inv. - Fair Value 18",0,null,null,null,0]
["Sch VI","Schedule of Assets",null,"(H) Other Alt. Inv. - Fair Value 43",0,null,null,null,0]
["Sch VI","Schedule of Assets",null,"(H) Other Alt. Inv. - Fair Value 61",0,null,null,null,0]
["Sch VI","Schedule of Assets",null,"(H) Other Alt. Inv. - Fair Value 90",0,null,null,null,0]
["Sch VI","Schedule of Assets",null,"(H) Other Alt. Inv. - Fair Value 95",0,null,null,null,0]
["Sch VI","Schedule of Assets",null,"(H) Other Alt. Inv. - Weighted Avg YTM 16",0,null,null,null,0]
["Sch VI","Schedule of Assets",null,"(H) Other Alt. Inv. - Weighted Avg YTM 47",0,null,null,null,0]
["Sch VI","Schedule of Assets",null,"(H) Other Alt. Inv. - Weighted Avg YTM 67",0,null,null,null,0]
["Sch VI","Schedule of Assets",null,"(H) Other Alt. Inv. - Weighted Avg YTM 88",0,null,null,null,0]
["Sch VI","Schedule of Assets",null,"(H) Other Alt. Inv. - Effective Duration 13",0,null,null,null,0]
["Sch VI","Schedule of Assets",null,"(H) Other Alt. Inv. - Effective Duration 29",0,null,null,null,0]
["Sch VI","Schedule of Assets",null,"(H) Other Alt. Inv. - Effective Duration 40",0,null,null,null,0]
["Sch VI","Schedule of Assets",null,"(H) Other Alt. Inv. - Effective Duration 65",0,null,null,null,0]
["Sch VI","Schedule of Assets",null,"(H) Other Alt. Inv. - Effective Duration 80",0,null,null,null,0]
["Sch VI","Schedule of Assets",null,"(H) Other Alt. Inv. - Comments 12",0,null,null,null,0]
["Sch VI","Schedule of Assets",null,"(H) Other Alt. Inv. - Comments 17",0,null,null,null,0]
["Sch VI","Schedule of Assets",null,"(H) Other Alt. Inv. - Comments 38",0,null,null,null,0]
["Sch VI","Schedule of Assets",null,"(H) Other Alt. Inv. - Comments 62",0,null,null,null,0]
["Sch VI","Schedule of Assets",null,"(H) Other Alt. Inv. - Comments 89",0,null,null,null,0]
["Sch VI","Schedule of Assets",null,"(I) Derivatives - Derivative Type 9","Select",null,null,null,"Select"]
["Sch VI","Schedule of Assets",null,"(I) Derivatives - Derivative Type 34","Select",null,null,null,"Select"]
["Sch VI","Schedule of Assets",null,"(I) Derivatives - Derivative Type 47","Select",null,null,null,"Select"]
["Sch VI","Schedule of Assets",null,"(I) Derivatives - Derivative Type 61","Select",null,null,null,"Select"]
["Sch VI","Schedule of Assets",null,"(I) Derivatives - Derivative Type 86","Select",null,null,null,"Select"]
["Sch VI","Schedule of Assets",null,"(I) Derivatives - Derivative Type 115","Select",null,null,null,"Select"]
["Sch VI","Schedule of Assets",null,"(I) Derivatives - Derivative Type 133","Select",null,null,null,"Select"]
["Sch VI","Schedule of Assets",null,"(I) Derivatives - Derivative Type 154","Select",null,null,null,"Select"]
["Sch VI","Schedule of Assets",null,"(I) Derivatives - Derivative Type 159","Select",null,null,null,"Select"]
["Sch VI","Schedule of Assets",null,"(I) Derivatives - Derivative Type 197","Select",null,null,null,"Select"]
["Sch VI","Schedule of Assets",null,"(I) Derivatives - Underlying 6","Select",null,null,null,"Select"]
["Sch VI","Schedule of Assets",null,"(I) Derivatives - Underlying 31","Select",null,null,null,"Select"]
["Sch VI","Schedule of Assets",null,"(I) Derivatives - Underlying 44","Select",null,null,null,"Select"]
["Sch VI","Schedule of Assets",null,"(I) Derivatives - Underlying 78","Select",null,null,null,"Select"]
["Sch VI","Schedule of Assets",null,"(I) Derivatives - Underlying 83","Select",null,null,null,"Select"]
["Sch VI","Schedule of Assets",null,"(I) Derivatives - Underlying 104","Select",null,null,null,"Select"]
["Sch VI","Schedule of Assets",null,"(I) Derivatives - Underlying 130","Select",null,null,null,"Select"]
["Sch VI","Schedule of Assets",null,"(I) Derivatives - Underlying 155","Select",null,null,null,"Select"]
["Sch VI","Schedule of Assets",null,"(I) Derivatives - Underlying 176","Select",null,null,null,"Select"]
["Sch VI","Schedule of Assets",null,"(I) Derivatives - Underlying 181","Select",null,null,null,"Select"]
["Sch VI","Schedule of Assets",null,"(I) Derivatives - Currency 16","Select",null,null,null,"Select"]
["Sch VI","Schedule of Assets",null,"(I) Derivatives - Currency 28","Select",null,null,null,"Select"]
["Sch VI","Schedule of Assets",null,"(I) Derivatives - Currency 53","Select",null,null,null,"Select"]
["Sch VI","Schedule of Assets",null,"(I) Derivatives - Currency 63","Select",null,null,null,"Select"]
["Sch VI","Schedule of Assets",null,"(I) Derivatives - Currency 100","Select",null,null,null,"Select"]
["Sch VI","Schedule of Assets",null,"(I) Derivatives - Currency 105","Select",null,null,null,"Select"]
["Sch VI","Schedule of Assets",null,"(I) Derivatives - Currency 126","Select",null,null,null,"Select"]
["Sch VI","Schedule of Assets",null,"(I) Derivatives - Currency 145","Select",null,null,null,"Select"]
["Sch VI","Schedule of Assets",null,"(I) Derivatives - Currency 173","Select",null,null,null,"Select"]
["Sch VI","Schedule of Assets",null,"(I) Derivatives - Currency 198","Select",null,null,null,"Select"]
["Sch VI","Schedule of Assets",null,"(I) Derivatives - Trading Category 23","Select",null,null,null,"Select"]
["Sch VI","Schedule of Assets",null,"(I) Derivatives - Trading Category 31","Select",null,null,null,"Select"]
["Sch VI","Schedule of Assets",null,"(I) Derivatives - Trading Category 50","Select",null,null,null,"Select"]
["Sch VI","Schedule of Assets",null,"(I) Derivatives - Trading Category 75","Select",null,null,null,"Select"]
["Sch VI","Schedule of Assets",null,"(I) Derivatives - Trading Category 99","Select",null,null,null,"Select"]
["Sch VI","Schedule of Assets",null,"(I) Derivatives - Trading Category 122","Select",null,null,null,"Select"]
["Sch VI","Schedule of Assets",null,"(I) Derivatives - Trading Category 143","Select",null,null,null,"Select"]
["Sch VI","Schedule of Assets",null,"(I) Derivatives - Trading Category 148","Select",null,null,null,"Select"]
["Sch VI","Schedule of Assets",null,"(I) Derivatives - Trading Category 181","Select",null,null,null,"Select"]
["Sch VI","Schedule of Assets",null,"(I) Derivatives - Trading Category 195","Select",null,null,null,"Select"]
["Sch VI","Schedule of Assets",null,"(I) Derivatives - Purpose 20","Select",null,null,null,"Select"]
["Sch VI","Schedule of Assets",null,"(I) Derivatives - Purpose 41","Select",null,null,null,"Select"]
["Sch VI","Schedule of Assets",null,"(I) Derivatives - Purpose 67","Select",null,null,null,"Select"]
["Sch VI","Schedule of Assets",null,"(I) Derivatives - Purpose 72","Select",null,null,null,"Select"]
["Sch VI","Schedule of Assets",null,"(I) Derivatives - Purpose 93","Select",null,null,null,"Select"]
["Sch VI","Schedule of Assets",null,"(I) Derivatives - Purpose 114","Select",null,null,null,"Select"]
["Sch VI","Schedule of Assets",null,"(I) Derivatives - Purpose 144","Select",null,null,null,"Select"]
["Sch VI","Schedule of Assets",null,"(I) Derivatives - Purpose 165","Select",null,null,null,"Select"]
["Sch VI","Schedule of Assets",null,"(I) Derivatives - Purpose 170","Select",null,null,null,"Select"]
["Sch VI","Schedule of Assets",null,"(I) Derivatives - Purpose 200","Select",null,null,null,"Select"]
["Sch VI","Schedule of Assets",null,"(I) Derivatives - Position 17","Select",null,null,null,"Select"]
["Sch VI","Schedule of Assets",null,"(I) Derivatives - Position 42","Select",null,null,null,"Select"]
["Sch VI","Schedule of Assets",null,"(I) Derivatives - Position 63","Select",null,null,null,"Select"]
["Sch VI","Schedule of Assets",null,"(I) Derivatives - Position 82","Select",null,null,null,"Select"]
["Sch VI","Schedule of Assets",null,"(I) Derivatives - Position 110","Select",null,null,null,"Select"]
["Sch VI","Schedule of Assets",null,"(I) Derivatives - Position 115","Select",null,null,null,"Select"]
["Sch VI","Schedule of Assets",null,"(I) Derivatives - Position 150","Select",null,null,null,"Select"]
["Sch VI","Schedule of Assets",null,"(I) Derivatives - Position 162","Select",null,null,null,"Select"]
["Sch VI","Schedule of Assets",null,"(I) Derivatives - Position 187","Select",null,null,null,"Select"]
["Sch VI","Schedule of Assets",null,"(I) Derivatives - Position 192","Select",null,null,null,"Select"]
["Sch VI","Schedule of Assets",null,"(I) Derivatives - Pos./Neg. - 15","Select",null,null,null,"Select"]
["Sch VI","Schedule of Assets",null,"(I) Derivatives - Pos./Neg. - 39","Select",null,null,null,"Select"]
["Sch VI","Schedule of Assets",null,"(I) Derivatives - Pos./Neg. - 60","Select",null,null,null,"Select"]
["Sch VI","Schedule of Assets",null,"(I) Derivatives - Pos./Neg. - 85","Select",null,null,null,"Select"]
["Sch VI","Schedule of Assets",null,"(I) Derivatives - Pos./Neg. - 97","Select",null,null,null,"Select"]
["Sch VI","Schedule of Assets",null,"(I) Derivatives - Pos./Neg. - 132","Select",null,null,null,"Select"]
["Sch VI","Schedule of Assets",null,"(I) Derivatives - Pos./Neg. - 137","Select",null,null,null,"Select"]
["Sch VI","Schedule of Assets",null,"(I) Derivatives - Pos./Neg. - 165","Select",null,null,null,"Select"]
["Sch VI","Schedule of Assets",null,"(I) Derivatives - Pos./Neg. - 184","Select",null,null,null,"Select"]
["Sch VI","Schedule of Assets",null,"(I) Derivatives - Market Value 9",0,null,null,null,0]
["Sch VI","Schedule of Assets",null,"(I) Derivatives - Market Value 30",0,null,null,null,0]
["Sch VI","Schedule of Assets",null,"(I) Derivatives - Market Value 51",0,null,null,null,0]
["Sch VI","Schedule of Assets",null,"(I) Derivatives - Market Value 61",0,null,null,null,0]
["Sch VI","Schedule of Assets",null,"(I) Derivatives - Market Value 82",0,null,null,null,0]
["Sch VI","Schedule of Assets",null,"(I) Derivatives - Market Value 107",0,null,null,null,0]
["Sch VI","Schedule of Assets",null,"(I) Derivatives - Market Value 116",0,null,null,null,0]
["Sch VI","Schedule of Assets",null,"(I) Derivatives - Market Value 154",0,null,null,null,0]
["Sch VI","Schedule of Assets",null,"(I) Derivatives - Market Value 159",0,null,null,null,0]
["Sch VI","Schedule of Assets",null,"(I) Derivatives - Market Value 184",0,null,null,null,0]
["Sch VI","Schedule of Assets",null,"(I) Derivatives - Gross Notional Value 6",0,null,null,null,0]
["Sch VI","Schedule of Assets",null,"(I) Derivatives - Gross Notional Value 31",0,null,null,null,0]
["Sch VI","Schedule of Assets",null,"(I) Derivatives - Gross Notional Value 52",0,null,null,null,0]
["Sch VI","Schedule of Assets",null,"(I) Derivatives - Gross Notional Value 66",0,null,null,null,0]
["Sch VI","Schedule of Assets",null,"(I) Derivatives - Gross Notional Value 79",0,null,null,null,0]
["Sch VI","Schedule of Assets",null,"(I) Derivatives - Gross Notional Value 104",0,null,null,null,0]
["Sch VI","Schedule of Assets",null,"(I) Derivatives - Gross Notional Value 129",0,null,null,null,0]
["Sch VI","Schedule of Assets",null,"(I) Derivatives - Gross Notional Value 152",0,null,null,null,0]
["Sch VI","Schedule of Assets",null,"(I) Derivatives - Gross Notional Value 176",0,null,null,null,0]
["Sch VI","Schedule of Assets",null,"(I) Derivatives - Gross Notional Value 181",0,null,null,null,0]
["Sch VI","Schedule of Assets",null,"(I) Derivatives - Net Notional Value 20",0,null,null,null,0]
["Sch VI","Schedule of Assets",null,"(I) Derivatives - Net Notional Value 28",0,null,null,null,0]
["Sch VI","Schedule of Assets",null,"(I) Derivatives - Net Notional Value 49",0,null,null,null,0]
["Sch VI","Schedule of Assets",null,"(I) Derivatives - Net Notional Value 74",0,null,null,null,0]
["Sch VI","Schedule of Assets",null,"(I) Derivatives - Net Notional Value 81",0,null,null,null,0]
["Sch VI","Schedule of Assets",null,"(I) Derivatives - Net Notional Value 121",0,null,null,null,0]
["Sch VI","Schedule of Assets",null,"(I) Derivatives - Net Notional Value 126",0,null,null,null,0]
["Sch VI","Schedule of Assets",null,"(I) Derivatives - Net Notional Value 147",0,null,null,null,0]
["Sch VI","Schedule of Assets",null,"(I) Derivatives - Net Notional Value 167",0,null,null,null,0]
["Sch VI","Schedule of Assets",null,"(I) Derivatives - Net Notional Value 198",0,null,null,null,0]
["Sch VI","Schedule of Assets",null,"(I) Derivatives - Exposure 19",0,null,null,null,0]
["Sch VI","Schedule of Assets",null,"(I) Derivatives - Exposure 35",0,null,null,null,0]
["Sch VI","Schedule of Assets",null,"(I) Derivatives - Exposure 50",0,null,null,null,0]
["Sch VI","Schedule of Assets",null,"(I) Derivatives - Exposure 71",0,null,null,null,0]
["Sch VI","Schedule of Assets",null,"(I) Derivatives - Exposure 96",0,null,null,null,0]
["Sch VI","Schedule of Assets",null,"(I) Derivatives - Exposure 121",0,null,null,null,0]
["Sch VI","Schedule of Assets",null,"(I) Derivatives - Exposure 143",0,null,null,null,0]
["Sch VI","Schedule of Assets",null,"(I) Derivatives - Exposure 148",0,null,null,null,0]
["Sch VI","Schedule of Assets",null,"(I) Derivatives - Exposure 169",0,null,null,null,0]
["Sch VI","Schedule of Assets",null,"(I) Derivatives - Comments 3",0,null,null,null,0]
["Sch VI","Schedule of Assets",null,"(I) Derivatives - Comments 16",0,null,null,null,0]
["Sch VI","Schedule of Assets",null,"(I) Derivatives - Comments 41",0,null,null,null,0]
["Sch VI","Schedule of Assets",null,"(I) Derivatives - Comments 50",0,null,null,null,0]
["Sch VI","Schedule of Assets",null,"(I) Derivatives - Comments 68",0,null,null,null,0]
["Sch VI","Schedule of Assets",null,"(I) Derivatives - Comments 93",0,null,null,null,0]
["Sch VI","Schedule of Assets",null,"(I) Derivatives - Comments 118",0,null,null,null,0]
["Sch VI","Schedule of Assets",null,"(I) Derivatives - Comments 136",0,null,null,null,0]
["Sch VI","Schedule of Assets",null,"(I) Derivatives - Comments 165",0,null,null,null,0]
["Sch VI","Schedule of Assets",null,"(I) Derivatives - Comments 186",0,null,null,null,0]
["Sch VI","Schedule of Assets",null,"(I) Derivatives - Comments 191",0,null,null,null,0]
["Sch VI","Schedule of Assets",null,"(J) Fin. Inst. Rating 4 - Securitization",0,null,null,null,0]
["Sch VI","Schedule of Assets",null,"(J) Fin. Inst. Banks - Other",0,null,null,null,0]
["Sch VI","Schedule of Assets",null,"(J) Unlisted Counterparty Rating 8 - Comments",0,null,null,null,0]
["Sch VI","Schedule of Assets",null,"(K) Other Assets - Asset Type 22","Select",null,null,null,"Select"]
["Sch VI","Schedule of Assets",null,"(K) Other Assets - Asset Type 26","Select",null,null,null,"Select"]
["Sch VI","Schedule of Assets",null,"(K) Other Assets - Asset Type 51","Select",null,null,null,"Select"]
["Sch VI","Schedule of Assets",null,"(K) Other Assets - Asset Type 72","Select",null,null,null,"Select"]
["Sch VI","Schedule of Assets",null,"(K) Other Assets - Asset Type 87","Select",null,null,null,"Select"]
["Sch VI","Schedule of Assets",null,"(K) Other Assets - Asset Type 123","Select",null,null,null,"Select"]
["Sch VI","Schedule of Assets",null,"(K) Other Assets - Asset Type 144","Select",null,null,null,"Select"]
["Sch VI","Schedule of Assets",null,"(K) Other Assets - Asset Type 155","Select",null,null,null,"Select"]
["Sch VI","Schedule of Assets",null,"(K) Other Assets - Asset Type 171","Select",null,null,null,"Select"]
["Sch VI","Schedule of Assets",null,"(K) Other Assets - Asset Type 196","Select",null,null,null,"Select"]
["Sch VI","Schedule of Assets",null,"(K) Other Assets - Currency 21","Select",null,null,null,"Select"]
["Sch VI","Schedule of Assets",null,"(K) Other Assets - Currency 41","Select",null,null,null,"Select"]
["Sch VI","Schedule of Assets",null,"(K) Other Assets - Currency 68","Select",null,null,null,"Select"]
["Sch VI","Schedule of Assets",null,"(K) Other Assets - Currency 73","Select",null,null,null,"Select"]
["Sch VI","Schedule of Assets",null,"(K) Other Assets - Currency 94","Select",null,null,null,"Select"]
["Sch VI","Schedule of Assets",null,"(K) Other Assets - Currency 123","Select",null,null,null,"Select"]
["Sch VI","Schedule of Assets",null,"(K) Other Assets - Currency 141","Select",null,null,null,"Select"]
["Sch VI","Schedule of Assets",null,"(K) Other Assets - Currency 166","Select",null,null,null,"Select"]
["Sch VI","Schedule of Assets",null,"(K) Other Assets - Currency 170","Select",null,null,null,"Select"]
["Sch VI","Schedule of Assets",null,"(K) Other Assets - Currency 193","Select",null,null,null,"Select"]
["Sch VI","Schedule of Assets",null,"(K) Other Assets - Rating 18","Select",null,null,null,"Select"]
["Sch VI","Schedule of Assets",null,"(K) Other Assets - Rating 43","Select",null,null,null,"Select"]
["Sch VI","Schedule of Assets",null,"(K) Other Assets - Rating 56","Select",null,null,null,"Select"]
["Sch VI","Schedule of Assets",null,"(K) Other Assets - Rating 90","Select",null,null,null,"Select"]
["Sch VI","Schedule of Assets",null,"(K) Other Assets - Rating 111","Select",null,null,null,"Select"]
["Sch VI","Schedule of Assets",null,"(K) Other Assets - Rating 116","Select",null,null,null,"Select"]
["Sch VI","Schedule of Assets",null,"(K) Other Assets - Rating 138","Select",null,null,null,"Select"]
["Sch VI","Schedule of Assets",null,"(K) Other Assets - Rating 163","Select",null,null,null,"Select"]
["Sch VI","Schedule of Assets",null,"(K) Other Assets - Rating 188","Select",null,null,null,"Select"]
["Sch VI","Schedule of Assets",null,"(K) Other Assets - Nominal Amount 10",0,null,null,null,0]
["Sch VI","Schedule of Assets",null,"(K) Other Assets - Nominal Amount 15",0,null,null,null,0]
["Sch VI","Schedule of Assets",null,"(K) Other Assets - Nominal Amount 40",0,null,null,null,0]
["Sch VI","Schedule of Assets",null,"(K) Other Assets - Nominal Amount 61",0,null,null,null,0]
["Sch VI","Schedule of Assets",null,"(K) Other Assets - Nominal Amount 92",0,null,null,null,0]
["Sch VI","Schedule of Assets",null,"(K) Other Assets - Nominal Amount 112",0,null,null,null,0]
["Sch VI","Schedule of Assets",null,"(K) Other Assets - Nominal Amount 133",0,null,null,null,0]
["Sch VI","Schedule of Assets",null,"(K) Other Assets - Nominal Amount 138",0,null,null,null,0]
["Sch VI","Schedule of Assets",null,"(K) Other Assets - Nominal Amount 157",0,null,null,null,0]
["Sch VI","Schedule of Assets",null,"(K) Other Assets - Nominal Amount 185",0,null,null,null,0]
["Sch VI","Schedule of Assets",null,"(K) Other Assets - Fair Value 10",0,null,null,null,0]
["Sch VI","Schedule of Assets",null,"(K) Other Assets - Fair Value 25",0,null,null,null,0]
["Sch VI","Schedule of Assets",null,"(K) Other Assets - Fair Value 37",0,null,null,null,0]
["Sch VI","Schedule of Assets",null,"(K) Other Assets - Fair Value 58",0,null,null,null,0]
["Sch VI","Schedule of Assets",null,"(K) Other Assets - Fair Value 83",0,null,null,null,0]
["Sch VI","Schedule of Assets",null,"(K) Other Assets - Fair Value 107",0,null,null,null,0]
["Sch VI","Schedule of Assets",null,"(K) Other Assets - Fair Value 130",0,null,null,null,0]
["Sch VI","Schedule of Assets",null,"(K) Other Assets - Fair Value 155",0,null,null,null,0]
["Sch VI","Schedule of Assets",null,"(K) Other Assets - Fair Value 160",0,null,null,null,0]
["Sch VI","Schedule of Assets",null,"(K) Other Assets - Fair Value 193",0,null,null,null,0]
["Sch VI","Schedule of Assets",null,"(K) Other Assets - Comments 7",0,null,null,null,0]
["Sch VI","Schedule of Assets",null,"(K) Other Assets - Comments 28",0,null,null,null,0]
["Sch VI","Schedule of Assets",null,"(K) Other Assets - Comments 40",0,null,null,null,0]
["Sch VI","Schedule of Assets",null,"(K) Other Assets - Comments 79",0,null,null,null,0]
["Sch VI","Schedule of Assets",null,"(K) Other Assets - Comments 80",0,null,null,null,0]
["Sch VI","Schedule of Assets",null,"(K) Other Assets - Comments 105",0,null,null,null,0]
["Sch VI","Schedule of Assets",null,"(K) Other Assets - Comments 122",0,null,null,null,0]
["Sch VI","Schedule of Assets",null,"(K) Other Assets - Comments 152",0,null,null,null,0]
["Sch VI","Schedule of Assets",null,"(K) Other Assets - Comments 177",0,null,null,null,0]
["Sch VI","Schedule of Assets",null,"(K) Other Assets - Comments 198",0,null,null,null,0]
["Sch VI","Schedule of Assets",null,"(M) Add. Info. - Fair Value Unaffiliated Level 2 Assets",0,null,null,null,0]
["Sch VI","Schedule of Assets",null,"Fin. Inst. - Moody's Rating 8",0,null,null,null,0]
["Sch VI","Schedule of Assets",null,"ABS - Moody's Rating 5",0,null,null,null,0]
["Sch VI","Schedule of Assets",null,"Ins. Companies - S&P Rating 6",0,null,null,null,0]
["Sch VI","Schedule of Assets",null,"Gov. Securities - S&P Rating 2",0,null,null,null,0]
["Sch VI","Schedule of Assets",null,"Corp. Insurers - DBRS Rating 3",0,null,null,null,0]
["Sch VI","Schedule of Assets",null,"Corp. Insurers - DBRS Rating 8",0,null,null,null,0]
["Sch VI","Schedule of Assets",null,"Corp. Insurers - Kroll Rating 2",0,null,null,null,0]
["Sch VI","Schedule of Assets",null,"ABS - Kroll Rating 6",0,null,null,null,0]
["Sch VI","Schedule of Assets",null,"Ins. Companies - Egan Jones Rating 6",0,null,null,null,0]
["Sch VI","Schedule of Assets",null,"Gov. Securities - Egan Jones Rating 2",0,null,null,null,0]
["Sch VI","Schedule of Assets",null,"Corp. Insurers - Japan Credit Rating 2",0,null,null,null,0]
["Sch VI","Schedule of Assets",null,"Corp. Insurers - Japan Credit Rating 5",0,null,null,null,0]
["Sch VI","Schedule of Assets",null,"Fin. Inst. - BMA Approved Int. Rating 5",0,null,null,null,0]
["Sch VI","Schedule of Assets",null,"Corp. Insurers - BMA Approved Int. Rating 8",0,null,null,null,0]
["Sch VI","Schedule of Assets",null,"Ins. Companies - BMA Approved Agency 1 -  Rating 3",0,null,null,null,0]
["Sch VI","Schedule of Assets",null,"Gov. Securities - BMA Approved Agency 1 -  Rating 3",0,null,null,null,0]
["Sch VI","Schedule of Assets",null,"Ins. Companies - BMA Approved Agency 2 -  Rating 8",0,null,null,null,0]
["Sch VI","Schedule of Assets",null,"ABS - BMA Approved Agency 2 -  Rating 4",0,null,null,null,0]
["Sch VI","Schedule of Assets",null,"Fin. Inst. - BMA Approved Agency 3 -  Rating 6",0,null,null,null,0]
["Sch VI","Schedule of Assets",null,"ABS - BMA Approved Agency 3 -  Rating 3",0,null,null,null,0]
["Sch VIA","Schedule of Funds Held",null,"(A) Cash - Asset Type 4","Select",null,null,null,"Select"]
["Sch VIA","Schedule of Funds Held",null,"(A) Cash - Asset Type 21","Select",null,null,null,"Select"]
["Sch VIA","Schedule of Funds Held",null,"(A) Cash - Asset Type 31","Select",null,null,null,"Select"]
["Sch VIA","Schedule of Funds Held",null,"(A) Cash - Asset Type 56","Select",null,null,null,"Select"]
["Sch VIA","Schedule of Funds Held",null,"(A) Cash - Asset Type 72","Select",null,null,null,"Select"]
["Sch VIA","Schedule of Funds Held",null,"(A) Cash - Asset Type 103","Select",null,null,null,"Select"]
["Sch VIA","Schedule of Funds Held",null,"(A) Cash - Asset Type 128","Select",null,null,null,"Select"]
["Sch VIA","Schedule of Funds Held",null,"(A) Cash - Asset Type 149","Select",null,null,null,"Select"]
["Sch VIA","Schedule of Funds Held",null,"(A) Cash - Asset Type 154","Select",null,null,null,"Select"]
["Sch VIA","Schedule of Funds Held",null,"(A) Cash - Asset Type 180","Select",null,null,null,"Select"]
["Sch VIA","Schedule of Funds Held",null,"(A) Cash - Currency 1","Select",null,null,null,"Select"]
["Sch VIA","Schedule of Funds Held",null,"(A) Cash - Currency 26","Select",null,null,null,"Select"]
["Sch VIA","Schedule of Funds Held",null,"(A) Cash - Currency 40","Select",null,null,null,"Select"]
["Sch VIA","Schedule of Funds Held",null,"(A) Cash - Currency 53","Select",null,null,null,"Select"]
["Sch VIA","Schedule of Funds Held",null,"(A) Cash - Currency 78","Select",null,null,null,"Select"]
["Sch VIA","Schedule of Funds Held",null,"(A) Cash - Currency 108","Select",null,null,null,"Select"]
["Sch VIA","Schedule of Funds Held",null,"(A) Cash - Currency 125","Select",null,null,null,"Select"]
["Sch VIA","Schedule of Funds Held",null,"(A) Cash - Currency 146","Select",null,null,null,"Select"]
["Sch VIA","Schedule of Funds Held",null,"(A) Cash - Currency 171","Select",null,null,null,"Select"]
["Sch VIA","Schedule of Funds Held",null,"(A) Cash - Currency 190","Select",null,null,null,"Select"]
["Sch VIA","Schedule of Funds Held",null,"(A) Cash - Currency 198","Select",null,null,null,"Select"]
["Sch VIA","Schedule of Funds Held",null,"(A) Cash - Rating 23","Select",null,null,null,"Select"]
["Sch VIA","Schedule of Funds Held",null,"(A) Cash - Rating 48","Select",null,null,null,"Select"]
["Sch VIA","Schedule of Funds Held",null,"(A) Cash - Rating 55","Select",null,null,null,"Select"]
["Sch VIA","Schedule of Funds Held",null,"(A) Cash - Rating 95","Select",null,null,null,"Select"]
["Sch VIA","Schedule of Funds Held",null,"(A) Cash - Rating 96","Select",null,null,null,"Select"]
["Sch VIA","Schedule of Funds Held",null,"(A) Cash - Rating 123","Select",null,null,null,"Select"]
["Sch VIA","Schedule of Funds Held",null,"(A) Cash - Rating 147","Select",null,null,null,"Select"]
["Sch VIA","Schedule of Funds Held",null,"(A) Cash - Rating 168","Select",null,null,null,"Select"]
["Sch VIA","Schedule of Funds Held",null,"(A) Cash - Rating 193","Select",null,null,null,"Select"]
["Sch VIA","Schedule of Funds Held",null,"(A) Cash - Nominal 5",0,null,null,null,0]
["Sch VIA","Schedule of Funds Held",null,"(A) Cash - Nominal 20",0,null,null,null,0]
["Sch VIA","Schedule of Funds Held",null,"(A) Cash - Nominal 45",0,null,null,null,0]
["Sch VIA","Schedule of Funds Held",null,"(A) Cash - Nominal 66",0,null,null,null,0]
["Sch VIA","Schedule of Funds Held",null,"(A) Cash - Nominal 91",0,null,null,null,0]
["Sch VIA","Schedule of Funds Held",null,"(A) Cash - Nominal 117",0,null,null,null,0]
["Sch VIA","Schedule of Funds Held",null,"(A) Cash - Nominal 138",0,null,null,null,0]
["Sch VIA","Schedule of Funds Held",null,"(A) Cash - Nominal 159",0,null,null,null,0]
["Sch VIA","Schedule of Funds Held",null,"(A) Cash - Nominal 165",0,null,null,null,0]
["Sch VIA","Schedule of Funds Held",null,"(A) Cash - Nominal 190",0,null,null,null,0]
["Sch VIA","Schedule of Funds Held",null,"(A) Cash - Fair Value 15",0,null,null,null,0]
["Sch VIA","Schedule of Funds Held",null,"(A) Cash - Fair Value 24",0,null,null,null,0]
["Sch VIA","Schedule of Funds Held",null,"(A) Cash - Fair Value 42",0,null,null,null,0]
["Sch VIA","Schedule of Funds Held",null,"(A) Cash - Fair Value 67",0,null,null,null,0]
["Sch VIA","Schedule of Funds Held",null,"(A) Cash - Fair Value 92",0,null,null,null,0]
["Sch VIA","Schedule of Funds Held",null,"(A) Cash - Fair Value 114",0,null,null,null,0]
["Sch VIA","Schedule of Funds Held",null,"(A) Cash - Fair Value 135",0,null,null,null,0]
["Sch VIA","Schedule of Funds Held",null,"(A) Cash - Fair Value 160",0,null,null,null,0]
["Sch VIA","Schedule of Funds Held",null,"(A) Cash - Fair Value 174",0,null,null,null,0]
["Sch VIA","Schedule of Funds Held",null,"(A) Cash - Fair Value 187",0,null,null,null,0]
["Sch VIA","Schedule of Funds Held",null,"(A) Cash - Comments 12",0,null,null,null,0]
["Sch VIA","Schedule of Funds Held",null,"(A) Cash - Comments 33",0,null,null,null,0]
["Sch VIA","Schedule of Funds Held",null,"(A) Cash - Comments 60",0,null,null,null,0]
["Sch VIA","Schedule of Funds Held",null,"(A) Cash - Comments 64",0,null,null,null,0]
["Sch VIA","Schedule of Funds Held",null,"(A) Cash - Comments 85",0,null,null,null,0]
["Sch VIA","Schedule of Funds Held",null,"(A) Cash - Comments 107",0,null,null,null,0]
["Sch VIA","Schedule of Funds Held",null,"(A) Cash - Comments 136",0,null,null,null,0]
["Sch VIA","Schedule of Funds Held",null,"(A) Cash - Comments 157",0,null,null,null,0]
["Sch VIA","Schedule of Funds Held",null,"(A) Cash - Comments 182",0,null,null,null,0]
["Sch VIA","Schedule of Funds Held",null,"(A) Cash - Comments 193",0,null,null,null,0]
["Sch VIA","Schedule of Funds Held",null,"(B) Bonds - Asset Type 8","Select",null,null,null,"Select"]
["Sch VIA","Schedule of Funds Held",null,"(B) Bonds - Asset Type 33","Select",null,null,null,"Select"]
["Sch VIA","Schedule of Funds Held",null,"(B) Bonds - Asset Type 54","Select",null,null,null,"Select"]
["Sch VIA","Schedule of Funds Held",null,"(B) Bonds - Asset Type 74","Select",null,null,null,"Select"]
["Sch VIA","Schedule of Funds Held",null,"(B) Bonds - Asset Type 105","Select",null,null,null,"Select"]
["Sch VIA","Schedule of Funds Held",null,"(B) Bonds - Asset Type 106","Select",null,null,null,"Select"]
["Sch VIA","Schedule of Funds Held",null,"(B) Bonds - Asset Type 142","Select",null,null,null,"Select"]
["Sch VIA","Schedule of Funds Held",null,"(B) Bonds - Asset Type 153","Select",null,null,null,"Select"]
["Sch VIA","Schedule of Funds Held",null,"(B) Bonds - Asset Type 178","Select",null,null,null,"Select"]
["Sch VIA","Schedule of Funds Held",null,"(B) Bonds - Asset Type 203","Select",null,null,null,"Select"]
["Sch VIA","Schedule of Funds Held",null,"(B) Bonds - Asset Type 207","Select",null,null,null,"Select"]
["Sch VIA","Schedule of Funds Held",null,"(B) Bonds - Asset Type 230","Select",null,null,null,"Select"]
["Sch VIA","Schedule of Funds Held",null,"(B) Bonds - Asset Type 251","Select",null,null,null,"Select"]
["Sch VIA","Schedule of Funds Held",null,"(B) Bonds - Asset Type 276","Select",null,null,null,"Select"]
["Sch VIA","Schedule of Funds Held",null,"(B) Bonds - Asset Type 289","Select",null,null,null,"Select"]
["Sch VIA","Schedule of Funds Held",null,"(B) Bonds - Asset Type 323","Select",null,null,null,"Select"]
["Sch VIA","Schedule of Funds Held",null,"(B) Bonds - Asset Type 348","Select",null,null,null,"Select"]
["Sch VIA","Schedule of Funds Held",null,"(B) Bonds - Asset Type 357","Select",null,null,null,"Select"]
["Sch VIA","Schedule of Funds Held",null,"(B) Bonds - Asset Type 375","Select",null,null,null,"Select"]
["Sch VIA","Schedule of Funds Held",null,"(B) Bonds - Asset Type 400","Select",null,null,null,"Select"]
["Sch VIA","Schedule of Funds Held",null,"(B) Bonds - Currency 21","Select",null,null,null,"Select"]
["Sch VIA","Schedule of Funds Held",null,"(B) Bonds - Currency 43","Select",null,null,null,"Select"]
["Sch VIA","Schedule of Funds Held",null,"(B) Bonds - Currency 52","Select",null,null,null,"Select"]
["Sch VIA","Schedule of Funds Held",null,"(B) Bonds - Currency 73","Select",null,null,null,"Select"]
["Sch VIA","Schedule of Funds Held",null,"(B) Bonds - Currency 98","Select",null,null,null,"Select"]
["Sch VIA","Schedule of Funds Held",null,"(B) Bonds - Currency 129","Select",null,null,null,"Select"]
["Sch VIA","Schedule of Funds Held",null,"(B) Bonds - Currency 145","Select",null,null,null,"Select"]
["Sch VIA","Schedule of Funds Held",null,"(B) Bonds - Currency 170","Select",null,null,null,"Select"]
["Sch VIA","Schedule of Funds Held",null,"(B) Bonds - Currency 176","Select",null,null,null,"Select"]
["Sch VIA","Schedule of Funds Held",null,"(B) Bonds - Currency 197","Select",null,null,null,"Select"]
["Sch VIA","Schedule of Funds Held",null,"(B) Bonds - Currency 222","Select",null,null,null,"Select"]
["Sch VIA","Schedule of Funds Held",null,"(B) Bonds - Currency 243","Select",null,null,null,"Select"]
["Sch VIA","Schedule of Funds Held",null,"(B) Bonds - Currency 258","Select",null,null,null,"Select"]
["Sch VIA","Schedule of Funds Held",null,"(B) Bonds - Currency 290","Select",null,null,null,"Select"]
["Sch VIA","Schedule of Funds Held",null,"(B) Bonds - Currency 295","Select",null,null,null,"Select"]
["Sch VIA","Schedule of Funds Held",null,"(B) Bonds - Currency 320","Select",null,null,null,"Select"]
["Sch VIA","Schedule of Funds Held",null,"(B) Bonds - Currency 344","Select",null,null,null,"Select"]
["Sch VIA","Schedule of Funds Held",null,"(B) Bonds - Currency 367","Select",null,null,null,"Select"]
["Sch VIA","Schedule of Funds Held",null,"(B) Bonds - Currency 392","Select",null,null,null,"Select"]
["Sch VIA","Schedule of Funds Held",null,"(B) Bonds - Rating 12","Select",null,null,null,"Select"]
["Sch VIA","Schedule of Funds Held",null,"(B) Bonds - Rating 19","Select",null,null,null,"Select"]
["Sch VIA","Schedule of Funds Held",null,"(B) Bonds - Rating 40","Select",null,null,null,"Select"]
["Sch VIA","Schedule of Funds Held",null,"(B) Bonds - Rating 65","Select",null,null,null,"Select"]
["Sch VIA","Schedule of Funds Held",null,"(B) Bonds - Rating 94","Select",null,null,null,"Select"]
["Sch VIA","Schedule of Funds Held",null,"(B) Bonds - Rating 112","Select",null,null,null,"Select"]
["Sch VIA","Schedule of Funds Held",null,"(B) Bonds - Rating 117","Select",null,null,null,"Select"]
["Sch VIA","Schedule of Funds Held",null,"(B) Bonds - Rating 138","Select",null,null,null,"Select"]
["Sch VIA","Schedule of Funds Held",null,"(B) Bonds - Rating 159","Select",null,null,null,"Select"]
["Sch VIA","Schedule of Funds Held",null,"(B) Bonds - Rating 189","Select",null,null,null,"Select"]
["Sch VIA","Schedule of Funds Held",null,"(B) Bonds - Rating 210","Select",null,null,null,"Select"]
["Sch VIA","Schedule of Funds Held",null,"(B) Bonds - Rating 227","Select",null,null,null,"Select"]
["Sch VIA","Schedule of Funds Held",null,"(B) Bonds - Rating 241","Select",null,null,null,"Select"]
["Sch VIA","Schedule of Funds Held",null,"(B) Bonds - Rating 262","Select",null,null,null,"Select"]
["Sch VIA","Schedule of Funds Held",null,"(B) Bonds - Rating 287","Select",null,null,null,"Select"]
["Sch VIA","Schedule of Funds Held",null,"(B) Bonds - Rating 313","Select",null,null,null,"Select"]
["Sch VIA","Schedule of Funds Held",null,"(B) Bonds - Rating 334","Select",null,null,null,"Select"]
["Sch VIA","Schedule of Funds Held",null,"(B) Bonds - Rating 359","Select",null,null,null,"Select"]
["Sch VIA","Schedule of Funds Held",null,"(B) Bonds - Rating 360","Select",null,null,null,"Select"]
["Sch VIA","Schedule of Funds Held",null,"(B) Bonds - Rating 395","Select",null,null,null,"Select"]
["Sch VIA","Schedule of Funds Held",null,"(B) Bonds - Nominal 11",0,null,null,null,0]
["Sch VIA","Schedule of Funds Held",null,"(B) Bonds - Nominal 32",0,null,null,null,0]
["Sch VIA","Schedule of Funds Held",null,"(B) Bonds - Nominal 42",0,null,null,null,0]
["Sch VIA","Schedule of Funds Held",null,"(B) Bonds - Nominal 79",0,null,null,null,0]
["Sch VIA","Schedule of Funds Held",null,"(B) Bonds - Nominal 84",0,null,null,null,0]
["Sch VIA","Schedule of Funds Held",null,"(B) Bonds - Nominal 109",0,null,null,null,0]
["Sch VIA","Schedule of Funds Held",null,"(B) Bonds - Nominal 128",0,null,null,null,0]
["Sch VIA","Schedule of Funds Held",null,"(B) Bonds - Nominal 156",0,null,null,null,0]
["Sch VIA","Schedule of Funds Held",null,"(B) Bonds - Nominal 177",0,null,null,null,0]
["Sch VIA","Schedule of Funds Held",null,"(B) Bonds - Nominal 202",0,null,null,null,0]
["Sch VIA","Schedule of Funds Held",null,"(B) Bonds - Nominal 210",0,null,null,null,0]
["Sch VIA","Schedule of Funds Held",null,"(B) Bonds - Nominal 229",0,null,null,null,0]
["Sch VIA","Schedule of Funds Held",null,"(B) Bonds - Nominal 254",0,null,null,null,0]
["Sch VIA","Schedule of Funds Held",null,"(B) Bonds - Nominal 278",0,null,null,null,0]
["Sch VIA","Schedule of Funds Held",null,"(B) Bonds - Nominal 301",0,null,null,null,0]
["Sch VIA","Schedule of Funds Held",null,"(B) Bonds - Nominal 306",0,null,null,null,0]
["Sch VIA","Schedule of Funds Held",null,"(B) Bonds - Nominal 327",0,null,null,null,0]
["Sch VIA","Schedule of Funds Held",null,"(B) Bonds - Nominal 364",0,null,null,null,0]
["Sch VIA","Schedule of Funds Held",null,"(B) Bonds - Nominal 378",0,null,null,null,0]
["Sch VIA","Schedule of Funds Held",null,"(B) Bonds - Nominal 399",0,null,null,null,0]
["Sch VIA","Schedule of Funds Held",null,"(B) Bonds - Fair Value 24",0,null,null,null,0]
["Sch VIA","Schedule of Funds Held",null,"(B) Bonds - Fair Value 29",0,null,null,null,0]
["Sch VIA","Schedule of Funds Held",null,"(B) Bonds - Fair Value 51",0,null,null,null,0]
["Sch VIA","Schedule of Funds Held",null,"(B) Bonds - Fair Value 76",0,null,null,null,0]
["Sch VIA","Schedule of Funds Held",null,"(B) Bonds - Fair Value 97",0,null,null,null,0]
["Sch VIA","Schedule of Funds Held",null,"(B) Bonds - Fair Value 123",0,null,null,null,0]
["Sch VIA","Schedule of Funds Held",null,"(B) Bonds - Fair Value 128",0,null,null,null,0]
["Sch VIA","Schedule of Funds Held",null,"(B) Bonds - Fair Value 149",0,null,null,null,0]
["Sch VIA","Schedule of Funds Held",null,"(B) Bonds - Fair Value 179",0,null,null,null,0]
["Sch VIA","Schedule of Funds Held",null,"(B) Bonds - Fair Value 196",0,null,null,null,0]
["Sch VIA","Schedule of Funds Held",null,"(B) Bonds - Fair Value 221",0,null,null,null,0]
["Sch VIA","Schedule of Funds Held",null,"(B) Bonds - Fair Value 246",0,null,null,null,0]
["Sch VIA","Schedule of Funds Held",null,"(B) Bonds - Fair Value 265",0,null,null,null,0]
["Sch VIA","Schedule of Funds Held",null,"(B) Bonds - Fair Value 273",0,null,null,null,0]
["Sch VIA","Schedule of Funds Held",null,"(B) Bonds - Fair Value 298",0,null,null,null,0]
["Sch VIA","Schedule of Funds Held",null,"(B) Bonds - Fair Value 312",0,null,null,null,0]
["Sch VIA","Schedule of Funds Held",null,"(B) Bonds - Fair Value 345",0,null,null,null,0]
["Sch VIA","Schedule of Funds Held",null,"(B) Bonds - Fair Value 366",0,null,null,null,0]
["Sch VIA","Schedule of Funds Held",null,"(B) Bonds - Fair Value 371",0,null,null,null,0]
["Sch VIA","Schedule of Funds Held",null,"(B) Bonds - Fair Value 394",0,null,null,null,0]
["Sch VIA","Schedule of Funds Held",null,"(B) Bonds - Weighted Average YTM 18",0,null,null,null,0]
["Sch VIA","Schedule of Funds Held",null,"(B) Bonds - Weighted Average YTM 43",0,null,null,null,0]
["Sch VIA","Schedule of Funds Held",null,"(B) Bonds - Weighted Average YTM 66",0,null,null,null,0]
["Sch VIA","Schedule of Funds Held",null,"(B) Bonds - Weighted Average YTM 90",0,null,null,null,0]
["Sch VIA","Schedule of Funds Held",null,"(B) Bonds - Weighted Average YTM 95",0,null,null,null,0]
["Sch VIA","Schedule of Funds Held",null,"(B) Bonds - Weighted Average YTM 116",0,null,null,null,0]
["Sch VIA","Schedule of Funds Held",null,"(B) Bonds - Weighted Average YTM 148",0,null,null,null,0]
["Sch VIA","Schedule of Funds Held",null,"(B) Bonds - Weighted Average YTM 167",0,null,null,null,0]
["Sch VIA","Schedule of Funds Held",null,"(B) Bonds - Weighted Average YTM 188",0,null,null,null,0]
["Sch VIA","Schedule of Funds Held",null,"(B) Bonds - Weighted Average YTM 213",0,null,null,null,0]
["Sch VIA","Schedule of Funds Held",null,"(B) Bonds - Weighted Average YTM 234",0,null,null,null,0]
["Sch VIA","Schedule of Funds Held",null,"(B) Bonds - Weighted Average YTM 240",0,null,null,null,0]
["Sch VIA","Schedule of Funds Held",null,"(B) Bonds - Weighted Average YTM 265",0,null,null,null,0]
["Sch VIA","Schedule of Funds Held",null,"(B) Bonds - Weighted Average YTM 281",0,null,null,null,0]
["Sch VIA","Schedule of Funds Held",null,"(B) Bonds - Weighted Average YTM 312",0,null,null,null,0]
["Sch VIA","Schedule of Funds Held",null,"(B) Bonds - Weighted Average YTM 317",0,null,null,null,0]
["Sch VIA","Schedule of Funds Held",null,"(B) Bonds - Weighted Average YTM 338",0,null,null,null,0]
["Sch VIA","Schedule of Funds Held",null,"(B) Bonds - Weighted Average YTM 363",0,null,null,null,0]
["Sch VIA","Schedule of Funds Held",null,"(B) Bonds - Weighted Average YTM 385",0,null,null,null,0]
["Sch VIA","Schedule of Funds Held",null,"(B) Bonds - Effective Duration 10",0,null,null,null,0]
["Sch VIA","Schedule of Funds Held",null,"(B) Bonds - Effective Duration 35",0,null,null,null,0]
["Sch VIA","Schedule of Funds Held",null,"(B) Bonds - Effective Duration 49",0,null,null,null,0]
["Sch VIA","Schedule of Funds Held",null,"(B) Bonds - Effective Duration 62",0,null,null,null,0]
["Sch VIA","Schedule of Funds Held",null,"(B) Bonds - Effective Duration 83",0,null,null,null,0]
["Sch VIA","Schedule of Funds Held",null,"(B) Bonds - Effective Duration 117",0,null,null,null,0]
["Sch VIA","Schedule of Funds Held",null,"(B) Bonds - Effective Duration 134",0,null,null,null,0]
["Sch VIA","Schedule of Funds Held",null,"(B) Bonds - Effective Duration 155",0,null,null,null,0]
["Sch VIA","Schedule of Funds Held",null,"(B) Bonds - Effective Duration 160",0,null,null,null,0]
["Sch VIA","Schedule of Funds Held",null,"(B) Bonds - Effective Duration 199",0,null,null,null,0]
["Sch VIA","Schedule of Funds Held",null,"(B) Bonds - Effective Duration 207",0,null,null,null,0]
["Sch VIA","Schedule of Funds Held",null,"(B) Bonds - Effective Duration 232",0,null,null,null,0]
["Sch VIA","Schedule of Funds Held",null,"(B) Bonds - Effective Duration 253",0,null,null,null,0]
["Sch VIA","Schedule of Funds Held",null,"(B) Bonds - Effective Duration 264",0,null,null,null,0]
["Sch VIA","Schedule of Funds Held",null,"(B) Bonds - Effective Duration 284",0,null,null,null,0]
["Sch VIA","Schedule of Funds Held",null,"(B) Bonds - Effective Duration 305",0,null,null,null,0]
["Sch VIA","Schedule of Funds Held",null,"(B) Bonds - Effective Duration 332",0,null,null,null,0]
["Sch VIA","Schedule of Funds Held",null,"(B) Bonds - Effective Duration 352",0,null,null,null,0]
["Sch VIA","Schedule of Funds Held",null,"(B) Bonds - Effective Duration 377",0,null,null,null,0]
["Sch VIA","Schedule of Funds Held",null,"(B) Bonds - Effective Duration 382",0,null,null,null,0]
["Sch VIA","Schedule of Funds Held",null,"(B) Bonds - Comments 18",0,null,null,null,0]
["Sch VIA","Schedule of Funds Held",null,"(B) Bonds - Comments 29",0,null,null,null,0]
["Sch VIA","Schedule of Funds Held",null,"(B) Bonds - Comments 54",0,null,null,null,0]
["Sch VIA","Schedule of Funds Held",null,"(B) Bonds - Comments 75",0,null,null,null,0]
["Sch VIA","Schedule of Funds Held",null,"(B) Bonds - Comments 100",0,null,null,null,0]
["Sch VIA","Schedule of Funds Held",null,"(B) Bonds - Comments 122",0,null,null,null,0]
["Sch VIA","Schedule of Funds Held",null,"(B) Bonds - Comments 127",0,null,null,null,0]
["Sch VIA","Schedule of Funds Held",null,"(B) Bonds - Comments 147",0,null,null,null,0]
["Sch VIA","Schedule of Funds Held",null,"(B) Bonds - Comments 174",0,null,null,null,0]
["Sch VIA","Schedule of Funds Held",null,"(B) Bonds - Comments 199",0,null,null,null,0]
["Sch VIA","Schedule of Funds Held",null,"(B) Bonds - Comments 224",0,null,null,null,0]
["Sch VIA","Schedule of Funds Held",null,"(B) Bonds - Comments 233",0,null,null,null,0]
["Sch VIA","Schedule of Funds Held",null,"(B) Bonds - Comments 251",0,null,null,null,0]
["Sch VIA","Schedule of Funds Held",null,"(B) Bonds - Comments 272",0,null,null,null,0]
["Sch VIA","Schedule of Funds Held",null,"(B) Bonds - Comments 297",0,null,null,null,0]
["Sch VIA","Schedule of Funds Held",null,"(B) Bonds - Comments 315",0,null,null,null,0]
["Sch VIA","Schedule of Funds Held",null,"(B) Bonds - Comments 344",0,null,null,null,0]
["Sch VIA","Schedule of Funds Held",null,"(B) Bonds - Comments 349",0,null,null,null,0]
["Sch VIA","Schedule of Funds Held",null,"(B) Bonds - Comments 387",0,null,null,null,0]
["Sch VIA","Schedule of Funds Held",null,"(B) Bonds - Comments 396",0,null,null,null,0]
["Sch VIA","Schedule of Funds Held",null,"(B) Bonds Sovereign Debt - Country 20","Select",null,null,null,"Select"]
["Sch VIA","Schedule of Funds Held",null,"(B) Bonds Sovereign Debt - Country 41","Select",null,null,null,"Select"]
["Sch VIA","Schedule of Funds Held",null,"(B) Bonds Sovereign Debt - Country 47","Select",null,null,null,"Select"]
["Sch VIA","Schedule of Funds Held",null,"(B) Bonds Sovereign Debt - Country 72","Select",null,null,null,"Select"]
["Sch VIA","Schedule of Funds Held",null,"(B) Bonds Sovereign Debt - Country 93","Select",null,null,null,"Select"]
["Sch VIA","Schedule of Funds Held",null,"(B) Bonds Sovereign Debt - Country 118","Select",null,null,null,"Select"]
["Sch VIA","Schedule of Funds Held",null,"(B) Bonds Sovereign Debt - Country 133","Select",null,null,null,"Select"]
["Sch VIA","Schedule of Funds Held",null,"(B) Bonds Sovereign Debt - Country 165","Select",null,null,null,"Select"]
["Sch VIA","Schedule of Funds Held",null,"(B) Bonds Sovereign Debt - Country 170","Select",null,null,null,"Select"]
["Sch VIA","Schedule of Funds Held",null,"(B) Bonds Sovereign Debt - Currency 1","Select",null,null,null,"Select"]
["Sch VIA","Schedule of Funds Held",null,"(B) Bonds Sovereign Debt - Currency 17","Select",null,null,null,"Select"]
["Sch VIA","Schedule of Funds Held",null,"(B) Bonds Sovereign Debt - Currency 38","Select",null,null,null,"Select"]
["Sch VIA","Schedule of Funds Held",null,"(B) Bonds Sovereign Debt - Currency 63","Select",null,null,null,"Select"]
["Sch VIA","Schedule of Funds Held",null,"(B) Bonds Sovereign Debt - Currency 83","Select",null,null,null,"Select"]
["Sch VIA","Schedule of Funds Held",null,"(B) Bonds Sovereign Debt - Currency 110","Select",null,null,null,"Select"]
["Sch VIA","Schedule of Funds Held",null,"(B) Bonds Sovereign Debt - Currency 115","Select",null,null,null,"Select"]
["Sch VIA","Schedule of Funds Held",null,"(B) Bonds Sovereign Debt - Currency 140","Select",null,null,null,"Select"]
["Sch VIA","Schedule of Funds Held",null,"(B) Bonds Sovereign Debt - Currency 169","Select",null,null,null,"Select"]
["Sch VIA","Schedule of Funds Held",null,"(B) Bonds Sovereign Debt - Currency 187","Select",null,null,null,"Select"]
["Sch VIA","Schedule of Funds Held",null,"(B) Bonds Sovereign Debt - Rating 8","Select",null,null,null,"Select"]
["Sch VIA","Schedule of Funds Held",null,"(B) Bonds Sovereign Debt - Rating 16","Select",null,null,null,"Select"]
["Sch VIA","Schedule of Funds Held",null,"(B) Bonds Sovereign Debt - Rating 39","Select",null,null,null,"Select"]
["Sch VIA","Schedule of Funds Held",null,"(B) Bonds Sovereign Debt - Rating 60","Select",null,null,null,"Select"]
["Sch VIA","Schedule of Funds Held",null,"(B) Bonds Sovereign Debt - Rating 85","Select",null,null,null,"Select"]
["Sch VIA","Schedule of Funds Held",null,"(B) Bonds Sovereign Debt - Rating 98","Select",null,null,null,"Select"]
["Sch VIA","Schedule of Funds Held",null,"(B) Bonds Sovereign Debt - Rating 132","Select",null,null,null,"Select"]
["Sch VIA","Schedule of Funds Held",null,"(B) Bonds Sovereign Debt - Rating 137","Select",null,null,null,"Select"]
["Sch VIA","Schedule of Funds Held",null,"(B) Bonds Sovereign Debt - Rating 158","Select",null,null,null,"Select"]
["Sch VIA","Schedule of Funds Held",null,"(B) Bonds Sovereign Debt - Rating 184","Select",null,null,null,"Select"]
["Sch VIA","Schedule of Funds Held",null,"(B) Bonds Sovereign Debt - Fair Value 9",0,null,null,null,0]
["Sch VIA","Schedule of Funds Held",null,"(B) Bonds Sovereign Debt - Fair Value 30",0,null,null,null,0]
["Sch VIA","Schedule of Funds Held",null,"(B) Bonds Sovereign Debt - Fair Value 52",0,null,null,null,0]
["Sch VIA","Schedule of Funds Held",null,"(B) Bonds Sovereign Debt - Fair Value 57",0,null,null,null,0]
["Sch VIA","Schedule of Funds Held",null,"(B) Bonds Sovereign Debt - Fair Value 82",0,null,null,null,0]
["Sch VIA","Schedule of Funds Held",null,"(B) Bonds Sovereign Debt - Fair Value 107",0,null,null,null,0]
["Sch VIA","Schedule of Funds Held",null,"(B) Bonds Sovereign Debt - Fair Value 117",0,null,null,null,0]
["Sch VIA","Schedule of Funds Held",null,"(B) Bonds Sovereign Debt - Fair Value 154",0,null,null,null,0]
["Sch VIA","Schedule of Funds Held",null,"(B) Bonds Sovereign Debt - Fair Value 159",0,null,null,null,0]
["Sch VIA","Schedule of Funds Held",null,"(B) Bonds Sovereign Debt - Fair Value 180",0,null,null,null,0]
["Sch VIA","Schedule of Funds Held",null,"(B) Bonds Sovereign Debt - Fair Value 199",0,null,null,null,0]
["Sch VIA","Schedule of Funds Held",null,"(B) Bonds Sovereign Debt - Comments 27",0,null,null,null,0]
["Sch VIA","Schedule of Funds Held",null,"(B) Bonds Sovereign Debt - Comments 52",0,null,null,null,0]
["Sch VIA","Schedule of Funds Held",null,"(B) Bonds Sovereign Debt - Comments 67",0,null,null,null,0]
["Sch VIA","Schedule of Funds Held",null,"(B) Bonds Sovereign Debt - Comments 79",0,null,null,null,0]
["Sch VIA","Schedule of Funds Held",null,"(B) Bonds Sovereign Debt - Comments 104",0,null,null,null,0]
["Sch VIA","Schedule of Funds Held",null,"(B) Bonds Sovereign Debt - Comments 129",0,null,null,null,0]
["Sch VIA","Schedule of Funds Held",null,"(B) Bonds Sovereign Debt - Comments 153",0,null,null,null,0]
["Sch VIA","Schedule of Funds Held",null,"(B) Bonds Sovereign Debt - Comments 176",0,null,null,null,0]
["Sch VIA","Schedule of Funds Held",null,"(B) Bonds Sovereign Debt - Comments 197",0,null,null,null,0]
["Sch VIA","Schedule of Funds Held",null,"(C) ABS and Struct. Sec. - Asset Type 1","Select",null,null,null,"Select"]
["Sch VIA","Schedule of Funds Held",null,"(C) ABS and Struct. Sec. - Asset Type 34","Select",null,null,null,"Select"]
["Sch VIA","Schedule of Funds Held",null,"(C) ABS and Struct. Sec. - Asset Type 48","Select",null,null,null,"Select"]
["Sch VIA","Schedule of Funds Held",null,"(C) ABS and Struct. Sec. - Asset Type 73","Select",null,null,null,"Select"]
["Sch VIA","Schedule of Funds Held",null,"(C) ABS and Struct. Sec. - Asset Type 85","Select",null,null,null,"Select"]
["Sch VIA","Schedule of Funds Held",null,"(C) ABS and Struct. Sec. - Asset Type 120","Select",null,null,null,"Select"]
["Sch VIA","Schedule of Funds Held",null,"(C) ABS and Struct. Sec. - Asset Type 125","Select",null,null,null,"Select"]
["Sch VIA","Schedule of Funds Held",null,"(C) ABS and Struct. Sec. - Asset Type 146","Select",null,null,null,"Select"]
["Sch VIA","Schedule of Funds Held",null,"(C) ABS and Struct. Sec. - Currency 17","Select",null,null,null,"Select"]
["Sch VIA","Schedule of Funds Held",null,"(C) ABS and Struct. Sec. - Currency 47","Select",null,null,null,"Select"]
["Sch VIA","Schedule of Funds Held",null,"(C) ABS and Struct. Sec. - Currency 68","Select",null,null,null,"Select"]
["Sch VIA","Schedule of Funds Held",null,"(C) ABS and Struct. Sec. - Currency 85","Select",null,null,null,"Select"]
["Sch VIA","Schedule of Funds Held",null,"(C) ABS and Struct. Sec. - Currency 95","Select",null,null,null,"Select"]
["Sch VIA","Schedule of Funds Held",null,"(C) ABS and Struct. Sec. - Currency 120","Select",null,null,null,"Select"]
["Sch VIA","Schedule of Funds Held",null,"(C) ABS and Struct. Sec. - Currency 145","Select",null,null,null,"Select"]
["Sch VIA","Schedule of Funds Held",null,"(C) ABS and Struct. Sec. - Rating 21","Select",null,null,null,"Select"]
["Sch VIA","Schedule of Funds Held",null,"(C) ABS and Struct. Sec. - Rating 42","Select",null,null,null,"Select"]
["Sch VIA","Schedule of Funds Held",null,"(C) ABS and Struct. Sec. - Rating 63","Select",null,null,null,"Select"]
["Sch VIA","Schedule of Funds Held",null,"(C) ABS and Struct. Sec. - Rating 68","Select",null,null,null,"Select"]
["Sch VIA","Schedule of Funds Held",null,"(C) ABS and Struct. Sec. - Rating 103","Select",null,null,null,"Select"]
["Sch VIA","Schedule of Funds Held",null,"(C) ABS and Struct. Sec. - Rating 115","Select",null,null,null,"Select"]
["Sch VIA","Schedule of Funds Held",null,"(C) ABS and Struct. Sec. - Rating 140","Select",null,null,null,"Select"]
["Sch VIA","Schedule of Funds Held",null,"(C) ABS and Struct. Sec. - Rating 150","Select",null,null,null,"Select"]
["Sch VIA","Schedule of Funds Held",null,"(C) ABS and Struct. Sec. - Nominal Amount 17",0,null,null,null,0]
["Sch VIA","Schedule of Funds Held",null,"(C) ABS and Struct. Sec. - Nominal Amount 42",0,null,null,null,0]
["Sch VIA","Schedule of Funds Held",null,"(C) ABS and Struct. Sec. - Nominal Amount 63",0,null,null,null,0]
["Sch VIA","Schedule of Funds Held",null,"(C) ABS and Struct. Sec. - Nominal Amount 86",0,null,null,null,0]
["Sch VIA","Schedule of Funds Held",null,"(C) ABS and Struct. Sec. - Nominal Amount 114",0,null,null,null,0]
["Sch VIA","Schedule of Funds Held",null,"(C) ABS and Struct. Sec. - Nominal Amount 135",0,null,null,null,0]
["Sch VIA","Schedule of Funds Held",null,"(C) ABS and Struct. Sec. - Nominal Amount 140",0,null,null,null,0]
["Sch VIA","Schedule of Funds Held",null,"(C) ABS and Struct. Sec. - Fair Value 18",0,null,null,null,0]
["Sch VIA","Schedule of Funds Held",null,"(C) ABS and Struct. Sec. - Fair Value 37",0,null,null,null,0]
["Sch VIA","Schedule of Funds Held",null,"(C) ABS and Struct. Sec. - Fair Value 62",0,null,null,null,0]
["Sch VIA","Schedule of Funds Held",null,"(C) ABS and Struct. Sec. - Fair Value 69",0,null,null,null,0]
["Sch VIA","Schedule of Funds Held",null,"(C) ABS and Struct. Sec. - Fair Value 89",0,null,null,null,0]
["Sch VIA","Schedule of Funds Held",null,"(C) ABS and Struct. Sec. - Fair Value 114",0,null,null,null,0]
["Sch VIA","Schedule of Funds Held",null,"(C) ABS and Struct. Sec. - Fair Value 135",0,null,null,null,0]
["Sch VIA","Schedule of Funds Held",null,"(C) ABS and Struct. Sec. - Weighted Avg YTM 1",0,null,null,null,0]
["Sch VIA","Schedule of Funds Held",null,"(C) ABS and Struct. Sec. - Weighted Avg YTM 32",0,null,null,null,0]
["Sch VIA","Schedule of Funds Held",null,"(C) ABS and Struct. Sec. - Weighted Avg YTM 57",0,null,null,null,0]
["Sch VIA","Schedule of Funds Held",null,"(C) ABS and Struct. Sec. - Weighted Avg YTM 62",0,null,null,null,0]
["Sch VIA","Schedule of Funds Held",null,"(C) ABS and Struct. Sec. - Weighted Avg YTM 87",0,null,null,null,0]
["Sch VIA","Schedule of Funds Held",null,"(C) ABS and Struct. Sec. - Weighted Avg YTM 109",0,null,null,null,0]
["Sch VIA","Schedule of Funds Held",null,"(C) ABS and Struct. Sec. - Weighted Avg YTM 134",0,null,null,null,0]
["Sch VIA","Schedule of Funds Held",null,"(C) ABS and Struct. Sec. - Effective Duration 5",0,null,null,null,0]
["Sch VIA","Schedule of Funds Held",null,"(C) ABS and Struct. Sec. - Effective Duration 31",0,null,null,null,0]
["Sch VIA","Schedule of Funds Held",null,"(C) ABS and Struct. Sec. - Effective Duration 32",0,null,null,null,0]
["Sch VIA","Schedule of Funds Held",null,"(C) ABS and Struct. Sec. - Effective Duration 57",0,null,null,null,0]
["Sch VIA","Schedule of Funds Held",null,"(C) ABS and Struct. Sec. - Effective Duration 87",0,null,null,null,0]
["Sch VIA","Schedule of Funds Held",null,"(C) ABS and Struct. Sec. - Effective Duration 104",0,null,null,null,0]
["Sch VIA","Schedule of Funds Held",null,"(C) ABS and Struct. Sec. - Effective Duration 129",0,null,null,null,0]
["Sch VIA","Schedule of Funds Held",null,"(C) ABS and Struct. Sec. - Effective Duration 134",0,null,null,null,0]
["Sch VIA","Schedule of Funds Held",null,"(C) ABS and Struct. Sec. - Comments 23",0,null,null,null,0]
["Sch VIA","Schedule of Funds Held",null,"(C) ABS and Struct. Sec. - Comments 31",0,null,null,null,0]
["Sch VIA","Schedule of Funds Held",null,"(C) ABS and Struct. Sec. - Comments 52",0,null,null,null,0]
["Sch VIA","Schedule of Funds Held",null,"(C) ABS and Struct. Sec. - Comments 70",0,null,null,null,0]
["Sch VIA","Schedule of Funds Held",null,"(C) ABS and Struct. Sec. - Comments 103",0,null,null,null,0]
["Sch VIA","Schedule of Funds Held",null,"(C) ABS and Struct. Sec. - Comments 124",0,null,null,null,0]
["Sch VIA","Schedule of Funds Held",null,"(C) ABS and Struct. Sec. - Comments 129",0,null,null,null,0]
["Sch VIA","Schedule of Funds Held",null,"(D) Loans - Asset Type 5","Select",null,null,null,"Select"]
["Sch VIA","Schedule of Funds Held",null,"(D) Loans - Asset Type 25","Select",null,null,null,"Select"]
["Sch VIA","Schedule of Funds Held",null,"(D) Loans - Asset Type 50","Select",null,null,null,"Select"]
["Sch VIA","Schedule of Funds Held",null,"(D) Loans - Asset Type 71","Select",null,null,null,"Select"]
["Sch VIA","Schedule of Funds Held",null,"(D) Loans - Asset Type 87","Select",null,null,null,"Select"]
["Sch VIA","Schedule of Funds Held",null,"(D) Loans - Currency 2","Select",null,null,null,"Select"]
["Sch VIA","Schedule of Funds Held",null,"(D) Loans - Currency 23","Select",null,null,null,"Select"]
["Sch VIA","Schedule of Funds Held",null,"(D) Loans - Currency 55","Select",null,null,null,"Select"]
["Sch VIA","Schedule of Funds Held",null,"(D) Loans - Currency 70","Select",null,null,null,"Select"]
["Sch VIA","Schedule of Funds Held",null,"(D) Loans - Currency 95","Select",null,null,null,"Select"]
["Sch VIA","Schedule of Funds Held",null,"(D) Loans - Currency 100","Select",null,null,null,"Select"]
["Sch VIA","Schedule of Funds Held",null,"(D) Loans - Country 20","Select",null,null,null,"Select"]
["Sch VIA","Schedule of Funds Held",null,"(D) Loans - Country 47","Select",null,null,null,"Select"]
["Sch VIA","Schedule of Funds Held",null,"(D) Loans - Country 68","Select",null,null,null,"Select"]
["Sch VIA","Schedule of Funds Held",null,"(D) Loans - Country 93","Select",null,null,null,"Select"]
["Sch VIA","Schedule of Funds Held",null,"(D) Loans - Rating 2","Select",null,null,null,"Select"]
["Sch VIA","Schedule of Funds Held",null,"(D) Loans - Rating 20","Select",null,null,null,"Select"]
["Sch VIA","Schedule of Funds Held",null,"(D) Loans - Rating 45","Select",null,null,null,"Select"]
["Sch VIA","Schedule of Funds Held",null,"(D) Loans - Rating 70","Select",null,null,null,"Select"]
["Sch VIA","Schedule of Funds Held",null,"(D) Loans - Rating 92","Select",null,null,null,"Select"]
["Sch VIA","Schedule of Funds Held",null,"(D) Loans - Nominal Amount 17",0,null,null,null,0]
["Sch VIA","Schedule of Funds Held",null,"(D) Loans - Nominal Amount 38",0,null,null,null,0]
["Sch VIA","Schedule of Funds Held",null,"(D) Loans - Nominal Amount 56",0,null,null,null,0]
["Sch VIA","Schedule of Funds Held",null,"(D) Loans - Nominal Amount 69",0,null,null,null,0]
["Sch VIA","Schedule of Funds Held",null,"(D) Loans - Nominal Amount 90",0,null,null,null,0]
["Sch VIA","Schedule of Funds Held",null,"(D) Loans - Fair Value 15",0,null,null,null,0]
["Sch VIA","Schedule of Funds Held",null,"(D) Loans - Fair Value 38",0,null,null,null,0]
["Sch VIA","Schedule of Funds Held",null,"(D) Loans - Fair Value 42",0,null,null,null,0]
["Sch VIA","Schedule of Funds Held",null,"(D) Loans - Fair Value 67",0,null,null,null,0]
["Sch VIA","Schedule of Funds Held",null,"(D) Loans - Fair Value 89",0,null,null,null,0]
["Sch VIA","Schedule of Funds Held",null,"(D) Loans - Weighted Avg YTM 14",0,null,null,null,0]
["Sch VIA","Schedule of Funds Held",null,"(D) Loans - Weighted Avg YTM 39",0,null,null,null,0]
["Sch VIA","Schedule of Funds Held",null,"(D) Loans - Weighted Avg YTM 60",0,null,null,null,0]
["Sch VIA","Schedule of Funds Held",null,"(D) Loans - Weighted Avg YTM 71",0,null,null,null,0]
["Sch VIA","Schedule of Funds Held",null,"(D) Loans - Weighted Avg YTM 87",0,null,null,null,0]
["Sch VIA","Schedule of Funds Held",null,"(D) Loans - Effective Duration 12",0,null,null,null,0]
["Sch VIA","Schedule of Funds Held",null,"(D) Loans - Effective Duration 37",0,null,null,null,0]
["Sch VIA","Schedule of Funds Held",null,"(D) Loans - Effective Duration 57",0,null,null,null,0]
["Sch VIA","Schedule of Funds Held",null,"(D) Loans - Effective Duration 84",0,null,null,null,0]
["Sch VIA","Schedule of Funds Held",null,"(D) Loans - Effective Duration 89",0,null,null,null,0]
["Sch VIA","Schedule of Funds Held",null,"(D) Loans - Comments 25",0,null,null,null,0]
["Sch VIA","Schedule of Funds Held",null,"(D) Loans - Comments 36",0,null,null,null,0]
["Sch VIA","Schedule of Funds Held",null,"(D) Loans - Comments 57",0,null,null,null,0]
["Sch VIA","Schedule of Funds Held",null,"(D) Loans - Comments 82",0,null,null,null,0]
["Sch VIA","Schedule of Funds Held",null,"(D) Loans - Comments 86",0,null,null,null,0]
["Sch VIA","Schedule of Funds Held",null,"(D) Loans Not Perform. - Asset Type 8","Select",null,null,null,"Select"]
["Sch VIA","Schedule of Funds Held",null,"(D) Loans Not Perform. - Currency 13","Select",null,null,null,"Select"]
["Sch VIA","Schedule of Funds Held",null,"(D) Loans Not Perform. - Country 14","Select",null,null,null,"Select"]
["Sch VIA","Schedule of Funds Held",null,"(D) Loans Not Perform. - Rating 11","Select",null,null,null,"Select"]
["Sch VIA","Schedule of Funds Held",null,"(D) Loans Not Perform. - Fair Value 5",0,null,null,null,0]
["Sch VIA","Schedule of Funds Held",null,"(D) Loans Not Perform. - Comment 6",0,null,null,null,0]
["Sch VIA","Schedule of Funds Held",null,"(D) Loans Not Perform. - Comment 19",0,null,null,null,0]
["Sch VIA","Schedule of Funds Held",null,"(E) Preferred Equities - Asset Type 16","Select",null,null,null,"Select"]
["Sch VIA","Schedule of Funds Held",null,"(E) Preferred Equities - Asset Type 37","Select",null,null,null,"Select"]
["Sch VIA","Schedule of Funds Held",null,"(E) Preferred Equities - Asset Type 62","Select",null,null,null,"Select"]
["Sch VIA","Schedule of Funds Held",null,"(E) Preferred Equities - Asset Type 84","Select",null,null,null,"Select"]
["Sch VIA","Schedule of Funds Held",null,"(E) Preferred Equities - Asset Type 89","Select",null,null,null,"Select"]
["Sch VIA","Schedule of Funds Held",null,"(E) Preferred Equities - Currency 14","Select",null,null,null,"Select"]
["Sch VIA","Schedule of Funds Held",null,"(E) Preferred Equities - Currency 35","Select",null,null,null,"Select"]
["Sch VIA","Schedule of Funds Held",null,"(E) Preferred Equities - Currency 66","Select",null,null,null,"Select"]
["Sch VIA","Schedule of Funds Held",null,"(E) Preferred Equities - Currency 86","Select",null,null,null,"Select"]
["Sch VIA","Schedule of Funds Held",null,"(E) Preferred Equities - Rating 7","Select",null,null,null,"Select"]
["Sch VIA","Schedule of Funds Held",null,"(E) Preferred Equities - Rating 13","Select",null,null,null,"Select"]
["Sch VIA","Schedule of Funds Held",null,"(E) Preferred Equities - Rating 34","Select",null,null,null,"Select"]
["Sch VIA","Schedule of Funds Held",null,"(E) Preferred Equities - Rating 59","Select",null,null,null,"Select"]
["Sch VIA","Schedule of Funds Held",null,"(E) Preferred Equities - Rating 84","Select",null,null,null,"Select"]
["Sch VIA","Schedule of Funds Held",null,"(E) Preferred Equities - Rating 99","Select",null,null,null,"Select"]
["Sch VIA","Schedule of Funds Held",null,"(E) Preferred Equities - Nominal Amount 11",0,null,null,null,0]
["Sch VIA","Schedule of Funds Held",null,"(E) Preferred Equities - Nominal Amount 32",0,null,null,null,0]
["Sch VIA","Schedule of Funds Held",null,"(E) Preferred Equities - Nominal Amount 67",0,null,null,null,0]
["Sch VIA","Schedule of Funds Held",null,"(E) Preferred Equities - Nominal Amount 83",0,null,null,null,0]
["Sch VIA","Schedule of Funds Held",null,"(E) Preferred Equities - Fair Value 4",0,null,null,null,0]
["Sch VIA","Schedule of Funds Held",null,"(E) Preferred Equities - Fair Value 29",0,null,null,null,0]
["Sch VIA","Schedule of Funds Held",null,"(E) Preferred Equities - Fair Value 49",0,null,null,null,0]
["Sch VIA","Schedule of Funds Held",null,"(E) Preferred Equities - Fair Value 56",0,null,null,null,0]
["Sch VIA","Schedule of Funds Held",null,"(E) Preferred Equities - Fair Value 81",0,null,null,null,0]
["Sch VIA","Schedule of Funds Held",null,"(E) Preferred Equities - Weighted Avg YTM 2",0,null,null,null,0]
["Sch VIA","Schedule of Funds Held",null,"(E) Preferred Equities - Weighted Avg YTM 14",0,null,null,null,0]
["Sch VIA","Schedule of Funds Held",null,"(E) Preferred Equities - Weighted Avg YTM 53",0,null,null,null,0]
["Sch VIA","Schedule of Funds Held",null,"(E) Preferred Equities - Weighted Avg YTM 54",0,null,null,null,0]
["Sch VIA","Schedule of Funds Held",null,"(E) Preferred Equities - Weighted Avg YTM 82",0,null,null,null,0]
["Sch VIA","Schedule of Funds Held",null,"(E) Preferred Equities - Effective Duration 5",0,null,null,null,0]
["Sch VIA","Schedule of Funds Held",null,"(E) Preferred Equities - Effective Duration 26",0,null,null,null,0]
["Sch VIA","Schedule of Funds Held",null,"(E) Preferred Equities - Effective Duration 51",0,null,null,null,0]
["Sch VIA","Schedule of Funds Held",null,"(E) Preferred Equities - Effective Duration 68",0,null,null,null,0]
["Sch VIA","Schedule of Funds Held",null,"(E) Preferred Equities - Effective Duration 78",0,null,null,null,0]
["Sch VIA","Schedule of Funds Held",null,"(E) Preferred Equities - Comments 3",0,null,null,null,0]
["Sch VIA","Schedule of Funds Held",null,"(E) Preferred Equities - Comments 24",0,null,null,null,0]
["Sch VIA","Schedule of Funds Held",null,"(E) Preferred Equities - Comments 50",0,null,null,null,0]
["Sch VIA","Schedule of Funds Held",null,"(E) Preferred Equities - Comments 71",0,null,null,null,0]
["Sch VIA","Schedule of Funds Held",null,"(E) Preferred Equities - Comments 96",0,null,null,null,0]
["Sch VIA","Schedule of Funds Held",null,"(E) Preferred Equities - Comments 97",0,null,null,null,0]
["Sch VIA","Schedule of Funds Held",null,"(F) Common Equities - Asset Type 22","Select",null,null,null,"Select"]
["Sch VIA","Schedule of Funds Held",null,"(F) Common Equities - Asset Type 47","Select",null,null,null,"Select"]
["Sch VIA","Schedule of Funds Held",null,"(F) Common Equities - Asset Type 72","Select",null,null,null,"Select"]
["Sch VIA","Schedule of Funds Held",null,"(F) Common Equities - Asset Type 82","Select",null,null,null,"Select"]
["Sch VIA","Schedule of Funds Held",null,"(F) Common Equities - Asset Type 99","Select",null,null,null,"Select"]
["Sch VIA","Schedule of Funds Held",null,"(F) Common Equities - Currency 20","Select",null,null,null,"Select"]
["Sch VIA","Schedule of Funds Held",null,"(F) Common Equities - Currency 45","Select",null,null,null,"Select"]
["Sch VIA","Schedule of Funds Held",null,"(F) Common Equities - Currency 64","Select",null,null,null,"Select"]
["Sch VIA","Schedule of Funds Held",null,"(F) Common Equities - Currency 92","Select",null,null,null,"Select"]
["Sch VIA","Schedule of Funds Held",null,"(F) Common Equities - Country 17","Select",null,null,null,"Select"]
["Sch VIA","Schedule of Funds Held",null,"(F) Common Equities - Country 36","Select",null,null,null,"Select"]
["Sch VIA","Schedule of Funds Held",null,"(F) Common Equities - Country 44","Select",null,null,null,"Select"]
["Sch VIA","Schedule of Funds Held",null,"(F) Common Equities - Country 69","Select",null,null,null,"Select"]
["Sch VIA","Schedule of Funds Held",null,"(F) Common Equities - Country 90","Select",null,null,null,"Select"]
["Sch VIA","Schedule of Funds Held",null,"(F) Common Equities - Fair Value 18",0,null,null,null,0]
["Sch VIA","Schedule of Funds Held",null,"(F) Common Equities - Fair Value 21",0,null,null,null,0]
["Sch VIA","Schedule of Funds Held",null,"(F) Common Equities - Fair Value 42",0,null,null,null,0]
["Sch VIA","Schedule of Funds Held",null,"(F) Common Equities - Fair Value 67",0,null,null,null,0]
["Sch VIA","Schedule of Funds Held",null,"(F) Common Equities - Fair Value 83",0,null,null,null,0]
["Sch VIA","Schedule of Funds Held",null,"(F) Common Equities - Comments 14",0,null,null,null,0]
["Sch VIA","Schedule of Funds Held",null,"(F) Common Equities - Comments 39",0,null,null,null,0]
["Sch VIA","Schedule of Funds Held",null,"(F) Common Equities - Comments 51",0,null,null,null,0]
["Sch VIA","Schedule of Funds Held",null,"(F) Common Equities - Comments 66",0,null,null,null,0]
["Sch VIA","Schedule of Funds Held",null,"(F) Common Equities - Comments 91",0,null,null,null,0]
["Sch VIA","Schedule of Funds Held",null,"(G) Real Estate - Asset Type 11","Select",null,null,null,"Select"]
["Sch VIA","Schedule of Funds Held",null,"(G) Real Estate - Asset Type 32","Select",null,null,null,"Select"]
["Sch VIA","Schedule of Funds Held",null,"(G) Real Estate - Asset Type 58","Select",null,null,null,"Select"]
["Sch VIA","Schedule of Funds Held",null,"(G) Real Estate - Asset Type 63","Select",null,null,null,"Select"]
["Sch VIA","Schedule of Funds Held",null,"(G) Real Estate - Asset Type 88","Select",null,null,null,"Select"]
["Sch VIA","Schedule of Funds Held",null,"(G) Real Estate - Currency 18","Select",null,null,null,"Select"]
["Sch VIA","Schedule of Funds Held",null,"(G) Real Estate - Currency 35","Select",null,null,null,"Select"]
["Sch VIA","Schedule of Funds Held",null,"(G) Real Estate - Currency 56","Select",null,null,null,"Select"]
["Sch VIA","Schedule of Funds Held",null,"(G) Real Estate - Currency 65","Select",null,null,null,"Select"]
["Sch VIA","Schedule of Funds Held",null,"(G) Real Estate - Currency 87","Select",null,null,null,"Select"]
["Sch VIA","Schedule of Funds Held",null,"(G) Real Estate - Country 8","Select",null,null,null,"Select"]
["Sch VIA","Schedule of Funds Held",null,"(G) Real Estate - Country 33","Select",null,null,null,"Select"]
["Sch VIA","Schedule of Funds Held",null,"(G) Real Estate - Country 47","Select",null,null,null,"Select"]
["Sch VIA","Schedule of Funds Held",null,"(G) Real Estate - Country 80","Select",null,null,null,"Select"]
["Sch VIA","Schedule of Funds Held",null,"(G) Real Estate - Purpose 5","Select",null,null,null,"Select"]
["Sch VIA","Schedule of Funds Held",null,"(G) Real Estate - Purpose 6","Select",null,null,null,"Select"]
["Sch VIA","Schedule of Funds Held",null,"(G) Real Estate - Purpose 33","Select",null,null,null,"Select"]
["Sch VIA","Schedule of Funds Held",null,"(G) Real Estate - Purpose 57","Select",null,null,null,"Select"]
["Sch VIA","Schedule of Funds Held",null,"(G) Real Estate - Purpose 78","Select",null,null,null,"Select"]
["Sch VIA","Schedule of Funds Held",null,"(G) Real Estate - Cost 1",0,null,null,null,0]
["Sch VIA","Schedule of Funds Held",null,"(G) Real Estate - Cost 25",0,null,null,null,0]
["Sch VIA","Schedule of Funds Held",null,"(G) Real Estate - Cost 30",0,null,null,null,0]
["Sch VIA","Schedule of Funds Held",null,"(G) Real Estate - Cost 55",0,null,null,null,0]
["Sch VIA","Schedule of Funds Held",null,"(G) Real Estate - Cost 87",0,null,null,null,0]
["Sch VIA","Schedule of Funds Held",null,"(G) Real Estate - Fair Value 2",0,null,null,null,0]
["Sch VIA","Schedule of Funds Held",null,"(G) Real Estate - Fair Value 27",0,null,null,null,0]
["Sch VIA","Schedule of Funds Held",null,"(G) Real Estate - Fair Value 48",0,null,null,null,0]
["Sch VIA","Schedule of Funds Held",null,"(G) Real Estate - Fair Value 69",0,null,null,null,0]
["Sch VIA","Schedule of Funds Held",null,"(G) Real Estate - Fair Value 75",0,null,null,null,0]
["Sch VIA","Schedule of Funds Held",null,"(G) Real Estate - Fair Value 100",0,null,null,null,0]
["Sch VIA","Schedule of Funds Held",null,"(G) Real Estate - Comments 16",0,null,null,null,0]
["Sch VIA","Schedule of Funds Held",null,"(G) Real Estate - Comments 47",0,null,null,null,0]
["Sch VIA","Schedule of Funds Held",null,"(G) Real Estate - Comments 52",0,null,null,null,0]
["Sch VIA","Schedule of Funds Held",null,"(G) Real Estate - Comments 77",0,null,null,null,0]
["Sch VIA","Schedule of Funds Held",null,"(H) Other Alt. Inv. - Asset Type 1","Select",null,null,null,"Select"]
["Sch VIA","Schedule of Funds Held",null,"(H) Other Alt. Inv. - Asset Type 23","Select",null,null,null,"Select"]
["Sch VIA","Schedule of Funds Held",null,"(H) Other Alt. Inv. - Asset Type 44","Select",null,null,null,"Select"]
["Sch VIA","Schedule of Funds Held",null,"(H) Other Alt. Inv. - Asset Type 69","Select",null,null,null,"Select"]
["Sch VIA","Schedule of Funds Held",null,"(H) Other Alt. Inv. - Asset Type 83","Select",null,null,null,"Select"]
["Sch VIA","Schedule of Funds Held",null,"(H) Other Alt. Inv. - Asset Type 96","Select",null,null,null,"Select"]
["Sch VIA","Schedule of Funds Held",null,"(H) Other Alt. Inv. - Currency 21","Select",null,null,null,"Select"]
["Sch VIA","Schedule of Funds Held",null,"(H) Other Alt. Inv. - Currency 34","Select",null,null,null,"Select"]
["Sch VIA","Schedule of Funds Held",null,"(H) Other Alt. Inv. - Currency 68","Select",null,null,null,"Select"]
["Sch VIA","Schedule of Funds Held",null,"(H) Other Alt. Inv. - Currency 73","Select",null,null,null,"Select"]
["Sch VIA","Schedule of Funds Held",null,"(H) Other Alt. Inv. - Currency 94","Select",null,null,null,"Select"]
["Sch VIA","Schedule of Funds Held",null,"(H) Other Alt. Inv. - Country 16","Select",null,null,null,"Select"]
["Sch VIA","Schedule of Funds Held",null,"(H) Other Alt. Inv. - Country 45","Select",null,null,null,"Select"]
["Sch VIA","Schedule of Funds Held",null,"(H) Other Alt. Inv. - Country 66","Select",null,null,null,"Select"]
["Sch VIA","Schedule of Funds Held",null,"(H) Other Alt. Inv. - Country 91","Select",null,null,null,"Select"]
["Sch VIA","Schedule of Funds Held",null,"(H) Other Alt. Inv. - Rating 2","Select",null,null,null,"Select"]
["Sch VIA","Schedule of Funds Held",null,"(H) Other Alt. Inv. - Rating 18","Select",null,null,null,"Select"]
["Sch VIA","Schedule of Funds Held",null,"(H) Other Alt. Inv. - Rating 43","Select",null,null,null,"Select"]
["Sch VIA","Schedule of Funds Held",null,"(H) Other Alt. Inv. - Rating 70","Select",null,null,null,"Select"]
["Sch VIA","Schedule of Funds Held",null,"(H) Other Alt. Inv. - Rating 90","Select",null,null,null,"Select"]
["Sch VIA","Schedule of Funds Held",null,"(H) Other Alt. Inv. - Nominal Amount 15",0,null,null,null,0]
["Sch VIA","Schedule of Funds Held",null,"(H) Other Alt. Inv. - Nominal Amount 16",0,null,null,null,0]
["Sch VIA","Schedule of Funds Held",null,"(H) Other Alt. Inv. - Nominal Amount 52",0,null,null,null,0]
["Sch VIA","Schedule of Funds Held",null,"(H) Other Alt. Inv. - Nominal Amount 63",0,null,null,null,0]
["Sch VIA","Schedule of Funds Held",null,"(H) Other Alt. Inv. - Nominal Amount 88",0,null,null,null,0]
["Sch VIA","Schedule of Funds Held",null,"(H) Other Alt. Inv. - Fair Value 13",0,null,null,null,0]
["Sch VIA","Schedule of Funds Held",null,"(H) Other Alt. Inv. - Fair Value 17",0,null,null,null,0]
["Sch VIA","Schedule of Funds Held",null,"(H) Other Alt. Inv. - Fair Value 40",0,null,null,null,0]
["Sch VIA","Schedule of Funds Held",null,"(H) Other Alt. Inv. - Fair Value 61",0,null,null,null,0]
["Sch VIA","Schedule of Funds Held",null,"(H) Other Alt. Inv. - Fair Value 85",0,null,null,null,0]
["Sch VIA","Schedule of Funds Held",null,"(H) Other Alt. Inv. - Weighted Avg YTM 12",0,null,null,null,0]
["Sch VIA","Schedule of Funds Held",null,"(H) Other Alt. Inv. - Weighted Avg YTM 33",0,null,null,null,0]
["Sch VIA","Schedule of Funds Held",null,"(H) Other Alt. Inv. - Weighted Avg YTM 58",0,null,null,null,0]
["Sch VIA","Schedule of Funds Held",null,"(H) Other Alt. Inv. - Weighted Avg YTM 67",0,null,null,null,0]
["Sch VIA","Schedule of Funds Held",null,"(H) Other Alt. Inv. - Weighted Avg YTM 85",0,null,null,null,0]
["Sch VIA","Schedule of Funds Held",null,"(H) Other Alt. Inv. - Effective Duration 10",0,null,null,null,0]
["Sch VIA","Schedule of Funds Held",null,"(H) Other Alt. Inv. - Effective Duration 39",0,null,null,null,0]
["Sch VIA","Schedule of Funds Held",null,"(H) Other Alt. Inv. - Effective Duration 57",0,null,null,null,0]
["Sch VIA","Schedule of Funds Held",null,"(H) Other Alt. Inv. - Effective Duration 62",0,null,null,null,0]
["Sch VIA","Schedule of Funds Held",null,"(H) Other Alt. Inv. - Effective Duration 83",0,null,null,null,0]
["Sch VIA","Schedule of Funds Held",null,"(H) Other Alt. Inv. - Comments 21",0,null,null,null,0]
["Sch VIA","Schedule of Funds Held",null,"(H) Other Alt. Inv. - Comments 30",0,null,null,null,0]
["Sch VIA","Schedule of Funds Held",null,"(H) Other Alt. Inv. - Comments 55",0,null,null,null,0]
["Sch VIA","Schedule of Funds Held",null,"(H) Other Alt. Inv. - Comments 80",0,null,null,null,0]
["Sch VIA","Schedule of Funds Held",null,"(H) Other Alt. Inv. - Comments 86",0,null,null,null,0]
["Sch VIA","Schedule of Funds Held",null,"(I) Derivatives - Derivative Type 6","Select",null,null,null,"Select"]
["Sch VIA","Schedule of Funds Held",null,"(I) Derivatives - Derivative Type 31","Select",null,null,null,"Select"]
["Sch VIA","Schedule of Funds Held",null,"(I) Derivatives - Derivative Type 53","Select",null,null,null,"Select"]
["Sch VIA","Schedule of Funds Held",null,"(I) Derivatives - Derivative Type 78","Select",null,null,null,"Select"]
["Sch VIA","Schedule of Funds Held",null,"(I) Derivatives - Derivative Type 99","Select",null,null,null,"Select"]
["Sch VIA","Schedule of Funds Held",null,"(I) Derivatives - Derivative Type 104","Select",null,null,null,"Select"]
["Sch VIA","Schedule of Funds Held",null,"(I) Derivatives - Derivative Type 135","Select",null,null,null,"Select"]
["Sch VIA","Schedule of Funds Held",null,"(I) Derivatives - Derivative Type 151","Select",null,null,null,"Select"]
["Sch VIA","Schedule of Funds Held",null,"(I) Derivatives - Derivative Type 176","Select",null,null,null,"Select"]
["Sch VIA","Schedule of Funds Held",null,"(I) Derivatives - Underlying 1","Select",null,null,null,"Select"]
["Sch VIA","Schedule of Funds Held",null,"(I) Derivatives - Underlying 21","Select",null,null,null,"Select"]
["Sch VIA","Schedule of Funds Held",null,"(I) Derivatives - Underlying 28","Select",null,null,null,"Select"]
["Sch VIA","Schedule of Funds Held",null,"(I) Derivatives - Underlying 49","Select",null,null,null,"Select"]
["Sch VIA","Schedule of Funds Held",null,"(I) Derivatives - Underlying 68","Select",null,null,null,"Select"]
["Sch VIA","Schedule of Funds Held",null,"(I) Derivatives - Underlying 100","Select",null,null,null,"Select"]
["Sch VIA","Schedule of Funds Held",null,"(I) Derivatives - Underlying 121","Select",null,null,null,"Select"]
["Sch VIA","Schedule of Funds Held",null,"(I) Derivatives - Underlying 126","Select",null,null,null,"Select"]
["Sch VIA","Schedule of Funds Held",null,"(I) Derivatives - Underlying 154","Select",null,null,null,"Select"]
["Sch VIA","Schedule of Funds Held",null,"(I) Derivatives - Underlying 173","Select",null,null,null,"Select"]
["Sch VIA","Schedule of Funds Held",null,"(I) Derivatives - Underlying 198","Select",null,null,null,"Select"]
["Sch VIA","Schedule of Funds Held",null,"(I) Derivatives - Currency 19","Select",null,null,null,"Select"]
["Sch VIA","Schedule of Funds Held",null,"(I) Derivatives - Currency 36","Select",null,null,null,"Select"]
["Sch VIA","Schedule of Funds Held",null,"(I) Derivatives - Currency 50","Select",null,null,null,"Select"]
["Sch VIA","Schedule of Funds Held",null,"(I) Derivatives - Currency 71","Select",null,null,null,"Select"]
["Sch VIA","Schedule of Funds Held",null,"(I) Derivatives - Currency 104","Select",null,null,null,"Select"]
["Sch VIA","Schedule of Funds Held",null,"(I) Derivatives - Currency 118","Select",null,null,null,"Select"]
["Sch VIA","Schedule of Funds Held",null,"(I) Derivatives - Currency 143","Select",null,null,null,"Select"]
["Sch VIA","Schedule of Funds Held",null,"(I) Derivatives - Currency 168","Select",null,null,null,"Select"]
["Sch VIA","Schedule of Funds Held",null,"(I) Derivatives - Currency 169","Select",null,null,null,"Select"]
["Sch VIA","Schedule of Funds Held",null,"(I) Derivatives - Currency 195","Select",null,null,null,"Select"]
["Sch VIA","Schedule of Funds Held",null,"(I) Derivatives - Trading Category 20","Select",null,null,null,"Select"]
["Sch VIA","Schedule of Funds Held",null,"(I) Derivatives - Trading Category 41","Select",null,null,null,"Select"]
["Sch VIA","Schedule of Funds Held",null,"(I) Derivatives - Trading Category 51","Select",null,null,null,"Select"]
["Sch VIA","Schedule of Funds Held",null,"(I) Derivatives - Trading Category 88","Select",null,null,null,"Select"]
["Sch VIA","Schedule of Funds Held",null,"(I) Derivatives - Trading Category 93","Select",null,null,null,"Select"]
["Sch VIA","Schedule of Funds Held",null,"(I) Derivatives - Trading Category 119","Select",null,null,null,"Select"]
["Sch VIA","Schedule of Funds Held",null,"(I) Derivatives - Trading Category 140","Select",null,null,null,"Select"]
["Sch VIA","Schedule of Funds Held",null,"(I) Derivatives - Trading Category 165","Select",null,null,null,"Select"]
["Sch VIA","Schedule of Funds Held",null,"(I) Derivatives - Trading Category 186","Select",null,null,null,"Select"]
["Sch VIA","Schedule of Funds Held",null,"(I) Derivatives - Purpose 5","Select",null,null,null,"Select"]
["Sch VIA","Schedule of Funds Held",null,"(I) Derivatives - Purpose 17","Select",null,null,null,"Select"]
["Sch VIA","Schedule of Funds Held",null,"(I) Derivatives - Purpose 38","Select",null,null,null,"Select"]
["Sch VIA","Schedule of Funds Held",null,"(I) Derivatives - Purpose 63","Select",null,null,null,"Select"]
["Sch VIA","Schedule of Funds Held",null,"(I) Derivatives - Purpose 87","Select",null,null,null,"Select"]
["Sch VIA","Schedule of Funds Held",null,"(I) Derivatives - Purpose 110","Select",null,null,null,"Select"]
["Sch VIA","Schedule of Funds Held",null,"(I) Derivatives - Purpose 115","Select",null,null,null,"Select"]
["Sch VIA","Schedule of Funds Held",null,"(I) Derivatives - Purpose 138","Select",null,null,null,"Select"]
["Sch VIA","Schedule of Funds Held",null,"(I) Derivatives - Purpose 162","Select",null,null,null,"Select"]
["Sch VIA","Schedule of Funds Held",null,"(I) Derivatives - Purpose 187","Select",null,null,null,"Select"]
["Sch VIA","Schedule of Funds Held",null,"(I) Derivatives - Position 8","Select",null,null,null,"Select"]
["Sch VIA","Schedule of Funds Held",null,"(I) Derivatives - Position 20","Select",null,null,null,"Select"]
["Sch VIA","Schedule of Funds Held",null,"(I) Derivatives - Position 55","Select",null,null,null,"Select"]
["Sch VIA","Schedule of Funds Held",null,"(I) Derivatives - Position 60","Select",null,null,null,"Select"]
["Sch VIA","Schedule of Funds Held",null,"(I) Derivatives - Position 85","Select",null,null,null,"Select"]
["Sch VIA","Schedule of Funds Held",null,"(I) Derivatives - Position 106","Select",null,null,null,"Select"]
["Sch VIA","Schedule of Funds Held",null,"(I) Derivatives - Position 132","Select",null,null,null,"Select"]
["Sch VIA","Schedule of Funds Held",null,"(I) Derivatives - Position 137","Select",null,null,null,"Select"]
["Sch VIA","Schedule of Funds Held",null,"(I) Derivatives - Position 174","Select",null,null,null,"Select"]
["Sch VIA","Schedule of Funds Held",null,"(I) Derivatives - Position 184","Select",null,null,null,"Select"]
["Sch VIA","Schedule of Funds Held",null,"(I) Derivatives - Pos./Neg. - 5","Select",null,null,null,"Select"]
["Sch VIA","Schedule of Funds Held",null,"(I) Derivatives - Pos./Neg. - 30","Select",null,null,null,"Select"]
["Sch VIA","Schedule of Funds Held",null,"(I) Derivatives - Pos./Neg. - 56","Select",null,null,null,"Select"]
["Sch VIA","Schedule of Funds Held",null,"(I) Derivatives - Pos./Neg. - 77","Select",null,null,null,"Select"]
["Sch VIA","Schedule of Funds Held",null,"(I) Derivatives - Pos./Neg. - 82","Select",null,null,null,"Select"]
["Sch VIA","Schedule of Funds Held",null,"(I) Derivatives - Pos./Neg. - 107","Select",null,null,null,"Select"]
["Sch VIA","Schedule of Funds Held",null,"(I) Derivatives - Pos./Neg. - 121","Select",null,null,null,"Select"]
["Sch VIA","Schedule of Funds Held",null,"(I) Derivatives - Pos./Neg. - 154","Select",null,null,null,"Select"]
["Sch VIA","Schedule of Funds Held",null,"(I) Derivatives - Pos./Neg. - 175","Select",null,null,null,"Select"]
["Sch VIA","Schedule of Funds Held",null,"(I) Derivatives - Pos./Neg. - 189","Select",null,null,null,"Select"]
["Sch VIA","Schedule of Funds Held",null,"(I) Derivatives - Market Value 6",0,null,null,null,0]
["Sch VIA","Schedule of Funds Held",null,"(I) Derivatives - Market Value 27",0,null,null,null,0]
["Sch VIA","Schedule of Funds Held",null,"(I) Derivatives - Market Value 52",0,null,null,null,0]
["Sch VIA","Schedule of Funds Held",null,"(I) Derivatives - Market Value 75",0,null,null,null,0]
["Sch VIA","Schedule of Funds Held",null,"(I) Derivatives - Market Value 99",0,null,null,null,0]
["Sch VIA","Schedule of Funds Held",null,"(I) Derivatives - Market Value 104",0,null,null,null,0]
["Sch VIA","Schedule of Funds Held",null,"(I) Derivatives - Market Value 125",0,null,null,null,0]
["Sch VIA","Schedule of Funds Held",null,"(I) Derivatives - Market Value 157",0,null,null,null,0]
["Sch VIA","Schedule of Funds Held",null,"(I) Derivatives - Market Value 176",0,null,null,null,0]
["Sch VIA","Schedule of Funds Held",null,"(I) Derivatives - Market Value 197",0,null,null,null,0]
["Sch VIA","Schedule of Funds Held",null,"(I) Derivatives - Gross Notional Value 4",0,null,null,null,0]
["Sch VIA","Schedule of Funds Held",null,"(I) Derivatives - Gross Notional Value 24",0,null,null,null,0]
["Sch VIA","Schedule of Funds Held",null,"(I) Derivatives - Gross Notional Value 49",0,null,null,null,0]
["Sch VIA","Schedule of Funds Held",null,"(I) Derivatives - Gross Notional Value 74",0,null,null,null,0]
["Sch VIA","Schedule of Funds Held",null,"(I) Derivatives - Gross Notional Value 90",0,null,null,null,0]
["Sch VIA","Schedule of Funds Held",null,"(I) Derivatives - Gross Notional Value 121",0,null,null,null,0]
["Sch VIA","Schedule of Funds Held",null,"(I) Derivatives - Gross Notional Value 142",0,null,null,null,0]
["Sch VIA","Schedule of Funds Held",null,"(I) Derivatives - Gross Notional Value 147",0,null,null,null,0]
["Sch VIA","Schedule of Funds Held",null,"(I) Derivatives - Gross Notional Value 172",0,null,null,null,0]
["Sch VIA","Schedule of Funds Held",null,"(I) Derivatives - Gross Notional Value 194",0,null,null,null,0]
["Sch VIA","Schedule of Funds Held",null,"(I) Derivatives - Net Notional Value 19",0,null,null,null,0]
["Sch VIA","Schedule of Funds Held",null,"(I) Derivatives - Net Notional Value 40",0,null,null,null,0]
["Sch VIA","Schedule of Funds Held",null,"(I) Derivatives - Net Notional Value 66",0,null,null,null,0]
["Sch VIA","Schedule of Funds Held",null,"(I) Derivatives - Net Notional Value 71",0,null,null,null,0]
["Sch VIA","Schedule of Funds Held",null,"(I) Derivatives - Net Notional Value 92",0,null,null,null,0]
["Sch VIA","Schedule of Funds Held",null,"(I) Derivatives - Net Notional Value 126",0,null,null,null,0]
["Sch VIA","Schedule of Funds Held",null,"(I) Derivatives - Net Notional Value 143",0,null,null,null,0]
["Sch VIA","Schedule of Funds Held",null,"(I) Derivatives - Net Notional Value 164",0,null,null,null,0]
["Sch VIA","Schedule of Funds Held",null,"(I) Derivatives - Net Notional Value 169",0,null,null,null,0]
["Sch VIA","Schedule of Funds Held",null,"(I) Derivatives - Exposure 8",0,null,null,null,0]
["Sch VIA","Schedule of Funds Held",null,"(I) Derivatives - Exposure 16",0,null,null,null,0]
["Sch VIA","Schedule of Funds Held",null,"(I) Derivatives - Exposure 41",0,null,null,null,0]
["Sch VIA","Schedule of Funds Held",null,"(I) Derivatives - Exposure 59",0,null,null,null,0]
["Sch VIA","Schedule of Funds Held",null,"(I) Derivatives - Exposure 88",0,null,null,null,0]
["Sch VIA","Schedule of Funds Held",null,"(I) Derivatives - Exposure 93",0,null,null,null,0]
["Sch VIA","Schedule of Funds Held",null,"(I) Derivatives - Exposure 114",0,null,null,null,0]
["Sch VIA","Schedule of Funds Held",null,"(I) Derivatives - Exposure 141",0,null,null,null,0]
["Sch VIA","Schedule of Funds Held",null,"(I) Derivatives - Exposure 161",0,null,null,null,0]
["Sch VIA","Schedule of Funds Held",null,"(I) Derivatives - Exposure 186",0,null,null,null,0]
["Sch VIA","Schedule of Funds Held",null,"(I) Derivatives - Comments 9",0,null,null,null,0]
["Sch VIA","Schedule of Funds Held",null,"(I) Derivatives - Comments 13",0,null,null,null,0]
["Sch VIA","Schedule of Funds Held",null,"(I) Derivatives - Comments 38",0,null,null,null,0]
["Sch VIA","Schedule of Funds Held",null,"(I) Derivatives - Comments 63",0,null,null,null,0]
["Sch VIA","Schedule of Funds Held",null,"(I) Derivatives - Comments 74",0,null,null,null,0]
["Sch VIA","Schedule of Funds Held",null,"(I) Derivatives - Comments 110",0,null,null,null,0]
["Sch VIA","Schedule of Funds Held",null,"(I) Derivatives - Comments 131",0,null,null,null,0]
["Sch VIA","Schedule of Funds Held",null,"(I) Derivatives - Comments 136",0,null,null,null,0]
["Sch VIA","Schedule of Funds Held",null,"(I) Derivatives - Comments 156",0,null,null,null,0]
["Sch VIA","Schedule of Funds Held",null,"(I) Derivatives - Comments 183",0,null,null,null,0]
["Sch VIA","Schedule of Funds Held",null,"(J) Fin. Inst. Rating 8 - Corp Bonds",0,null,null,null,0]
["Sch VIA","Schedule of Funds Held",null,"(J) Fin. Inst. Rating 8 - Other Debt",0,null,null,null,0]
["Sch VIA","Schedule of Funds Held",null,"(J) Fin. Inst. Banks - Corp Loans",0,null,null,null,0]
["Sch VIA","Schedule of Funds Held",null,"(J) Unlisted Counterparty Rating 1-3 - Comments",0,null,null,null,0]
["Sch VIA","Schedule of Funds Held",null,"(K) Other Assets - Asset Type 17","Select",null,null,null,"Select"]
["Sch VIA","Schedule of Funds Held",null,"(K) Other Assets - Asset Type 46","Select",null,null,null,"Select"]
["Sch VIA","Schedule of Funds Held",null,"(K) Other Assets - Asset Type 68","Select",null,null,null,"Select"]
["Sch VIA","Schedule of Funds Held",null,"(K) Other Assets - Asset Type 89","Select",null,null,null,"Select"]
["Sch VIA","Schedule of Funds Held",null,"(K) Other Assets - Asset Type 94","Select",null,null,null,"Select"]
["Sch VIA","Schedule of Funds Held",null,"(K) Other Assets - Asset Type 132","Select",null,null,null,"Select"]
["Sch VIA","Schedule of Funds Held",null,"(K) Other Assets - Asset Type 141","Select",null,null,null,"Select"]
["Sch VIA","Schedule of Funds Held",null,"(K) Other Assets - Asset Type 166","Select",null,null,null,"Select"]
["Sch VIA","Schedule of Funds Held",null,"(K) Other Assets - Asset Type 179","Select",null,null,null,"Select"]
["Sch VIA","Schedule of Funds Held",null,"(K) Other Assets - Currency 13","Select",null,null,null,"Select"]
["Sch VIA","Schedule of Funds Held",null,"(K) Other Assets - Currency 18","Select",null,null,null,"Select"]
["Sch VIA","Schedule of Funds Held",null,"(K) Other Assets - Currency 39","Select",null,null,null,"Select"]
["Sch VIA","Schedule of Funds Held",null,"(K) Other Assets - Currency 61","Select",null,null,null,"Select"]
["Sch VIA","Schedule of Funds Held",null,"(K) Other Assets - Currency 86","Select",null,null,null,"Select"]
["Sch VIA","Schedule of Funds Held",null,"(K) Other Assets - Currency 111","Select",null,null,null,"Select"]
["Sch VIA","Schedule of Funds Held",null,"(K) Other Assets - Currency 116","Select",null,null,null,"Select"]
["Sch VIA","Schedule of Funds Held",null,"(K) Other Assets - Currency 147","Select",null,null,null,"Select"]
["Sch VIA","Schedule of Funds Held",null,"(K) Other Assets - Currency 163","Select",null,null,null,"Select"]
["Sch VIA","Schedule of Funds Held",null,"(K) Other Assets - Currency 184","Select",null,null,null,"Select"]
["Sch VIA","Schedule of Funds Held",null,"(K) Other Assets - Rating 15","Select",null,null,null,"Select"]
["Sch VIA","Schedule of Funds Held",null,"(K) Other Assets - Rating 35","Select",null,null,null,"Select"]
["Sch VIA","Schedule of Funds Held",null,"(K) Other Assets - Rating 56","Select",null,null,null,"Select"]
["Sch VIA","Schedule of Funds Held",null,"(K) Other Assets - Rating 61","Select",null,null,null,"Select"]
["Sch VIA","Schedule of Funds Held",null,"(K) Other Assets - Rating 97","Select",null,null,null,"Select"]
["Sch VIA","Schedule of Funds Held",null,"(K) Other Assets - Rating 108","Select",null,null,null,"Select"]
["Sch VIA","Schedule of Funds Held",null,"(K) Other Assets - Rating 133","Select",null,null,null,"Select"]
["Sch VIA","Schedule of Funds Held",null,"(K) Other Assets - Rating 154","Select",null,null,null,"Select"]
["Sch VIA","Schedule of Funds Held",null,"(K) Other Assets - Rating 162","Select",null,null,null,"Select"]
["Sch VIA","Schedule of Funds Held",null,"(K) Other Assets - Rating 185","Select",null,null,null,"Select"]
["Sch VIA","Schedule of Funds Held",null,"(K) Other Assets - Nominal Amount 6",0,null,null,null,0]
["Sch VIA","Schedule of Funds Held",null,"(K) Other Assets - Nominal Amount 30",0,null,null,null,0]
["Sch VIA","Schedule of Funds Held",null,"(K) Other Assets - Nominal Amount 57",0,null,null,null,0]
["Sch VIA","Schedule of Funds Held",null,"(K) Other Assets - Nominal Amount 78",0,null,null,null,0]
["Sch VIA","Schedule of Funds Held",null,"(K) Other Assets - Nominal Amount 83",0,null,null,null,0]
["Sch VIA","Schedule of Funds Held",null,"(K) Other Assets - Nominal Amount 116",0,null,null,null,0]
["Sch VIA","Schedule of Funds Held",null,"(K) Other Assets - Nominal Amount 130",0,null,null,null,0]
["Sch VIA","Schedule of Funds Held",null,"(K) Other Assets - Nominal Amount 155",0,null,null,null,0]
["Sch VIA","Schedule of Funds Held",null,"(K) Other Assets - Nominal Amount 176",0,null,null,null,0]
["Sch VIA","Schedule of Funds Held",null,"(K) Other Assets - Nominal Amount 198",0,null,null,null,0]
["Sch VIA","Schedule of Funds Held",null,"(K) Other Assets - Fair Value 3",0,null,null,null,0]
["Sch VIA","Schedule of Funds Held",null,"(K) Other Assets - Fair Value 28",0,null,null,null,0]
["Sch VIA","Schedule of Funds Held",null,"(K) Other Assets - Fair Value 45",0,null,null,null,0]
["Sch VIA","Schedule of Funds Held",null,"(K) Other Assets - Fair Value 75",0,null,null,null,0]
["Sch VIA","Schedule of Funds Held",null,"(K) Other Assets - Fair Value 100",0,null,null,null,0]
["Sch VIA","Schedule of Funds Held",null,"(K) Other Assets - Fair Value 105",0,null,null,null,0]
["Sch VIA","Schedule of Funds Held",null,"(K) Other Assets - Fair Value 131",0,null,null,null,0]
["Sch VIA","Schedule of Funds Held",null,"(K) Other Assets - Fair Value 152",0,null,null,null,0]
["Sch VIA","Schedule of Funds Held",null,"(K) Other Assets - Fair Value 173",0,null,null,null,0]
["Sch VIA","Schedule of Funds Held",null,"(K) Other Assets - Fair Value 198",0,null,null,null,0]
["Sch VIA","Schedule of Funds Held",null,"(K) Other Assets - Comments 13",0,null,null,null,0]
["Sch VIA","Schedule of Funds Held",null,"(K) Other Assets - Comments 25",0,null,null,null,0]
["Sch VIA","Schedule of Funds Held",null,"(K) Other Assets - Comments 50",0,null,null,null,0]
["Sch VIA","Schedule of Funds Held",null,"(K) Other Assets - Comments 81",0,null,null,null,0]
["Sch VIA","Schedule of Funds Held",null,"(K) Other Assets - Comments 97",0,null,null,null,0]
["Sch VIA","Schedule of Funds Held",null,"(K) Other Assets - Comments 122",0,null,null,null,0]
["Sch VIA","Schedule of Funds Held",null,"(K) Other Assets - Comments 143",0,null,null,null,0]
["Sch VIA","Schedule of Funds Held",null,"(K) Other Assets - Comments 146",0,null,null,null,0]
["Sch VIA","Schedule of Funds Held",null,"(K) Other Assets - Comments 174",0,null,null,null,0]
["Sch VIA","Schedule of Funds Held",null,"(K) Other Assets - Comments 195",0,null,null,null,0]
["Sch VIA","Schedule of Funds Held",null,"Other Approved Agency 2",0,null,null,null,0]
["Sch VIA","Schedule of Funds Held",null,"Ins. Companies - Moody's Rating 3",0,null,null,null,0]
["Sch VIA","Schedule of Funds Held",null,"Fin. Inst. - S&P Rating 5",0,null,null,null,0]
["Sch VIA","Schedule of Funds Held",null,"Ins. Companies - S&P Rating 2",0,null,null,null,0]
["Sch VIA","Schedule of Funds Held",null,"Gov. Securities - S&P Rating 5",0,null,null,null,0]
["Sch VIA","Schedule of Funds Held",null,"Ins. Companies - DBRS Rating 8",0,null,null,null,0]
["Sch VIA","Schedule of Funds Held",null,"Gov. Securities - DBRS Rating 8",0,null,null,null,0]
["Sch VIA","Schedule of Funds Held",null,"Corp. Insurers - Kroll Rating 5",0,null,null,null,0]
["Sch VIA","Schedule of Funds Held",null,"Gov. Securities - Kroll Rating 5",0,null,null,null,0]
["Sch VIA","Schedule of Funds Held",null,"Fin. Inst. - Egan Jones Rating 7",0,null,null,null,0]
["Sch VIA","Schedule of Funds Held",null,"ABS - Egan Jones Rating 8",0,null,null,null,0]
["Sch VIA","Schedule of Funds Held",null,"Ins. Companies - Japan Credit Rating 8",0,null,null,null,0]
["Sch VIA","Schedule of Funds Held",null,"Fin. Inst. - BMA Approved Int. Rating 1",0,null,null,null,0]
["Sch VIA","Schedule of Funds Held",null,"Corp. Insurers - BMA Approved Int. Rating 6",0,null,null,null,0]
["Sch VIA","Schedule of Funds Held",null,"Fin. Inst. - BMA Approved Agency 1 -  Rating 2",0,null,null,null,0]
["Sch VIA","Schedule of Funds Held",null,"Fin. Inst. - BMA Approved Agency 1 -  Rating 7",0,null,null,null,0]
["Sch VIA","Schedule of Funds Held",null,"Gov. Securities - BMA Approved Agency 1 -  Rating 0",0,null,null,null,0]
["Sch VIA","Schedule of Funds Held",null,"Ins. Companies - BMA Approved Agency 2 -  Rating 5",0,null,null,null,0]
["Sch VIA","Schedule of Funds Held",null,"Gov. Securities - BMA Approved Agency 2 -  Rating 5",0,null,null,null,0]
["Sch VIA","Schedule of Funds Held",null,"Fin. Inst. - BMA Approved Agency 3 -  Rating 7",0,null,null,null,0]
["Sch VIA","Schedule of Funds Held",null,"Corp. Insurers - BMA Approved Agency 3 -  Rating 8",0,null,null,null,0]
["Sch VII","LT Reserves",null,"Form 1 27d - 2. Critical Illness",0]
["Sch VII","LT Reserves",null,"Form 1 27d - 12. Group Disability",0]
["Sch VII","LT Reserves",null,"DAC - 6. Deferred Acc. Annuities",0]
["Sch VII","LT Reserves",null,"VOBA - 5. Annuities Certain",0]
["Sch VII","LT Reserves",null,"PVFP - 3f. Longevity - Imm Pay Total",0]
["Sch VII","LT Reserves",null,"PVFP - 16. Sub Total",0]
["Sch VII","LT Reserves",null,"Best Est. - 4b. Longevity - Def Pay 56-60",0]
["Sch VII","LT Reserves",null,"Adj Prod. - 2. Critical Illness",0]
["Sch VII","LT Reserves",null,"EBS 27d - 11. Group Life",null,null,null,null,0]
["Sch VII","LT Reserves",null,"EBS 27d - 18. Total",null,null,null,null,0]
["Sch VII","LT Reserves",null,"12. BBNI Prem. - 16. Sub Total",null,null,null,null,0]
["Sch VII","LT Reserves",null,"14. Best Est. Trans. - 5. Annuities Certain",null,null,null,null,0]
["Sch VII","LT Reserves",null,"15. Best Est. W/O Trans. - 8. Dis. Income: Active Liv",null,null,null,null,0]
["Sch VII","LT Reserves",null,"16. Scen. - 6. Deferred Acc. Annuities",null,null,null,null,0]
["Sch VII","LT Reserves",null,"18. Base Scen. - 1. Mortality",null,null,null,null,0]
["Sch VII","LT Reserves",null,"19. BBNI Prem. - 8. Dis. Income: Active Liv",null,null,null,null,0]
["Sch VII","LT Reserves",null,"20. BBNI Est . - 2. Critical Illness",null,null,null,null,0]
["Sch VII","LT Reserves",null,"20. BBNI Est . - 17. Variable Annuities",null,null,null,null,0]
["Sch VIII","LT Annuity",null,"1. Stat. Res. Out Money - 23. GMAB - Mat. 2-3 Yrs",0,null,null,null,0]
["Sch VIII","LT Annuity",null,"2. Vol. 0-10% Out Money - 17. GMDB - Enh. Benefit",0,null,null,null,0]
["Sch VIII","LT Annuity",null,"3. Vol. 10-15% In Money - 7. GMAB - Mat. 1-2 Yrs",0,null,null,null,0]
["Sch VIII","LT Annuity",null,"4. Vol. +15% In Money - 2. GMDB - Enh. Benefit",0,null,null,null,0]
["Sch VIII","LT Annuity",null,"4. Vol. +15% In Money - 3. GMIB",0,null,null,null,0]
["Sch VIII","LT Annuity",null,"4. Vol. +15% Out Money - 23. GMAB - Mat. 2-3 Yrs",0,null,null,null,0]
["Sch VIII","LT Annuity",null,"6. Vol. 10-15% In Money - 7. GMAB - Mat. 1-2 Yrs",0,null,null,null,0]
["Sch VIII","LT Annuity",null,"7. Vol. +15% In Money - 12. GMAB - Mat. 6-7 Yrs",0,null,null,null,0]
["Sch VIIIA","LT Internal Model",null,"6-7. 3c. Description of Test - 3",0,null,null,null,0]
["Sch VIIIA","LT Internal Model",null,"Policy Type - 1. Stat Res. - GMIB - W/ Comp Guar.",0,null,null,null,0]
["Sch VIIIA","LT Internal Model",null,"Policy Type - 2. Policy Count - GMAB",0,null,null,null,0]
["Sch VIIIA","LT Internal Model",null,"Policy Type - 4. Guar. Val. - GEEB",0,null,null,null,0]
["Sch VIIIA","LT Internal Model",null,"Years Since Issue - 1. Stat. Res. - 1",0,null,null,null,0]
["Sch VIIIA","LT Internal Model",null,"Years Since Issue - 2. Policy Count - 1",0,null,null,null,0]
["Sch VIIIA","LT Internal Model",null,"Years Since Issue - 3. Acc. Val. - 15+",0,null,null,null,0]
["Sch VIIIA","LT Internal Model",null,"Years Since Issue - 5. NAR - 1",0,null,null,null,0]
["Sch VIIIA","LT Internal Model",null,"Years Since Issue - 5. NAR - 15",0,null,null,null,0]
["Sch VIIIA","LT Internal Model",null,"In/Out of Money - 2. Policy Count - +15%",0,null,null,null,0]
["Sch VIIIA","LT Internal Model",null,"Fund Volatility - 2. Policy Count - 10-20%",0,null,null,null,0]
["Sch VIIIA","LT Internal Model",null,"Yr to Next Maturity - 1. Stat. Res. - 10",0,null,null,null,0]
["Sch VIIIA","LT Internal Model",null,"Yr to Next Maturity - 3. Acc. Val. - 9",0,null,null,null,0]
["Sch VIIIA","LT Internal Model",null,"Yr to Next Maturity - 4. Guar. Val. - 1",0,null,null,null,0]
["Sch IX(a)","CISSA Capital Summary",null,"Market Risk",null,null,null,null,0]
["Sch IX(a)","CISSA Capital Summary",null,"2. Agg. Risk Categories - Gumbel Copulas","Select Yes/No"]
["Sch IX(b)","CISSA General Questions",null,"1. CISSA Used For - Alloc. Bus. Seg. & LOB","Select Yes/No"]
["Sch IX(b)","CISSA General Questions",null,"5. BOD & Senior Officers Review oversight","Select Yes/No"]
["Sch IX(c)","CISSA Assessment of Material Risks",null,"12l. Risk Measure - Confidence Interval",0]
["Sch X(a)","CAT Return - EP Curve Total",null,"Gross Loss - Aggregate - 50 Yrs",0]
["Sch X(a)","CAT Return - EP Curve Total",null,"Gross - Property Cat. Limited - Not Modelled",0]
["Sch X(a)","CAT Return - EP Curve Total",null,"2. Onshore Energy","Select"]
["Sch X(a)","CAT Return - EP Curve Total",null,"6. Adj. for Insurance for Value","Select Yes/No"]
["Sch X(b)","CAT Return - EP Curve Insurance",null,"Gross Loss - Aggregate - 500 Yrs",0]
["Sch X(b)","CAT Return - EP Curve Insurance",null,"Net Loss - Aggregate - 1,000 Yrs",0]
["Sch X(b)","CAT Return - EP Curve Insurance",null,"Net - with Not Determinable TIV",0]
["Sch X(c)","CAT Return - EP Curve Region Perils",null,"Atl. Hurr. - Gross All Other Premium",0]
["Sch X(c)","CAT Return - EP Curve Region Perils",null,"NA. EQ. - Net Aggregate - 100 Yrs",0]
["Sch X(c)","CAT Return - EP Curve Region Perils",null,"Eur. Wind - Gross Aggregate - 500 Yrs",0]
["Sch X(c)","CAT Return - EP Curve Region Perils",null,"Japan EQ. - Gross Occurrence - 500 Yrs",0]
["Sch X(c)","CAT Return - EP Curve Region Perils",null,"Japan EQ. - Gross Aggregate - 250 Yrs",0]
["Sch X(c)","CAT Return - EP Curve Region Perils",null,"Jpn. Typ. - Gross Occurrence - 50 Yrs",0]
["Sch X(c)","CAT Return - EP Curve Region Perils",null,"Jpn. Typ. - Net All Other Premium",0]
["Sch X(d)","CAT Return - Region Perils Exposure to Zones and Lines of Business",null,"North American Earthquake - Zone 5","Select Yes/No"]
["Sch X(d)","CAT Return - Region Perils Exposure to Zones and Lines of Business",null,"European Windstorm - Zone 5","Select Yes/No"]
["Sch X(d)","CAT Return - Region Perils Exposure to Zones and Lines of Business",null,"All Other - Zone 4","Select Yes/No"]
["Sch X(d)","CAT Return - Region Perils Exposure to Zones and Lines of Business",null,"All Other - Zone 5","Select Yes/No"]
["Sch X(d)","CAT Return - Region Perils Exposure to Zones and Lines of Business",null,"Atlantic Hurricane - Line 17","Select Yes/No"]
["Sch X(d)","CAT Return - Region Perils Exposure to Zones and Lines of Business",null,"North American Earthquake - Line 15","Select Yes/No"]
["Sch X(d)","CAT Return - Region Perils Exposure to Zones and Lines of Business",null,"European Windstorm - Line 16","Select Yes/No"]
["Sch X(d)","CAT Return - Region Perils Exposure to Zones and Lines of Business",null,"Japan Earthquake - Line 17","Select Yes/No"]
["Sch X(d)","CAT Return - Region Perils Exposure to Zones and Lines of Business",null,"Japan Typhoon - Line 11","Select Yes/No"]
["Sch X(d)","CAT Return - Region Perils Exposure to Zones and Lines of Business",null,"Japan Typhoon - Line 20","Select Yes/No"]
["Sch X(d)","CAT Return - Region Perils Exposure to Zones and Lines of Business",null,"All Other - Line 17","Select Yes/No"]
["Sch X(f)","CAT Return - Data Analysis",null,"1. All - Total - US - Contract",0]
["Sch X(f)","CAT Return - Data Analysis",null,"2. Modellable - Total - Other -Contract",0]
["Sch X(f)","CAT Return - Data Analysis",null,"3. Modelled - Agg. Data - US - Net Limit",0]
["Sch X(f)","CAT Return - Data Analysis",null,"4. Not Modelled - Model Deficient - US - Contract",0]
["Sch X(f)","CAT Return - Data Analysis",null,"4. Not Modelled - Other - US - Gross Limit",0]
["Sch X(f)","CAT Return - Data Analysis",null,"6. Unable Model - No Cat. Model - Other - Contract",0]
["Sch X(f)","CAT Return - Data Analysis",null,"6. Unable Model - Model Deficient - Other - Net Limit",0]
["Sch X(g)","CAT Return - Reinsurance Disclosures",null,"US - Occuren. - Property Cat. Contracts",0]
["Sch X(g)","CAT Return - Reinsurance Disclosures",null,"World - Premium - Surplus Share Contracts",0]
["Sch X(g)","CAT Return - Reinsurance Disclosures",null,"Other - Premium - Catastrophe Swaps",0]
["Sch X(h)","CAT Return - Insurance Terrorism Exposure",null,"Insurance - Convent. Terrorism - State 4",0]
["Sch X(h)","CAT Return - Insurance Terrorism Exposure",null,"Insurance - Convent. Terrorism - Property Exposure 9",0]
["Sch X(h)","CAT Return - Insurance Terrorism Exposure",null,"Insurance - Convent. Terrorism - R/I Recover. 3",0]
["Sch X(h)","CAT Return - Insurance Terrorism Exposure",null,"Insurance - NBCR Terrorism - State 6",0]
["Sch X(h)","CAT Return - Insurance Terrorism Exposure",null,"Insurance - NBCR Terrorism - Gross Exposure 1",0]
["Sch X(h)","CAT Return - Insurance Terrorism Exposure",null,"Insurance - NBCR Terrorism - R/I Recover. 2",0]
["Sch X(i)","CAT Return - Reinsurance Terrorism Exposure",null,"Reins. - Convent. Terrorism - State 4",0]
["Sch X(i)","CAT Return - Reinsurance Terrorism Exposure",null,"Reins. - Convent. Terrorism - Property Exposure 2",0]
["Sch X(i)","CAT Return - Reinsurance Terrorism Exposure",null,"Reins. - Convent. Terrorism - TRIP Recover. 3",0]
["Sch X(i)","CAT Return - Reinsurance Terrorism Exposure",null,"Reins. - NBCR Terrorism - Country 2",0]
["Sch X(i)","CAT Return - Reinsurance Terrorism Exposure",null,"Reins. - NBCR Terrorism - Property Exposure 10",0]
["Sch X(i)","CAT Return - Reinsurance Terrorism Exposure",null,"Reins. - NBCR Terrorism - Gross Exposure 5",0]
["Sch X(i)","CAT Return - Reinsurance Terrorism Exposure",null,"Reins. - NBCR Terrorism - R/I Recover. 10",0]
["Sch X(j)","CAT Return - Assumed Exchange Rates",null,"Exchange Rate - USD:Other 5",0]
["Sch XI(a)","Reg. Non-Ins. Financial",null,"Name of Entity - 26",0]
["Sch XI(a)","Reg. Non-Ins. Financial",null,"Regulatory Capital of Entity - 16",0]
["Sch XI(b)","Unreg. Parent Control",null,"# of Unregulated Entities Parent Control",0]
["Sch XI(b)","Unreg. Parent Control",null,"Name of Entity - 6",0]
["Sch XI(b)","Unreg. Parent Control",null,"Name of Entity - 27",0]
["Sch XI(b)","Unreg. Parent Control",null,"Name of Entity - 52",0]
["Sch XI(b)","Unreg. Parent Control",null,"Name of Entity - 74",0]
["Sch XI(b)","Unreg. Parent Control",null,"Name of Entity - 99",0]
["Sch XI(b)","Unreg. Parent Control",null,"Category of Entity - 4","Select"]
["Sch XI(b)","Unreg. Parent Control",null,"Category of Entity - 25","Select"]
["Sch XI(b)","Unreg. Parent Control",null,"Category of Entity - 60","Select"]
["Sch XI(b)","Unreg. Parent Control",null,"Category of Entity - 76","Select"]
["Sch XI(b)","Unreg. Parent Control",null,"Category of Entity - 97","Select"]
["Sch XI(c)","Unreg. Parent Sig. Influence",null,"Name of Entity - 20",0]
["Sch XI(c)","Unreg. Parent Sig. Influence",null,"Category of Entity - 5","Select"]
["Sch XI(c)","Unreg. Parent Sig. Influence",null,"Category of Entity - 12","Select"]
["Sch XI(d)","Entities Deducted from Capital",null,"# of Entities Deducted from Capital & Surplus",0]
["Sch XI(d)","Entities Deducted from Capital",null,"Name of Entity - 19",0]
["Sch XI(d)","Entities Deducted from Capital",null,"Category of Entity - 12","Select"]
["Sch XI(d)","Entities Deducted from Capital",null,"Reason for Deficiency of Entity - 2","Select"]
["Sch XI(d)","Entities Deducted from Capital",null,"Reason for Deficiency of Entity - 3","Select"]
["Sch XI(d)","Entities Deducted from Capital",null,"Reason for Deficiency of Entity - 31","Select"]
["Sch XII","Solvency Analysis",null,"Name of Entity - 13",0]
["Sch XII","Solvency Analysis",null,"Name of Entity - 38",0]
["Sch XII","Solvency Analysis",null,"Name of Entity - 63",0]
["Sch XII","Solvency Analysis",null,"Minimum Margin of Solvency of Entity - 10",0]
["Sch XII","Solvency Analysis",null,"Minimum Margin of Solvency of Entity - 20",0]
["Sch XII","Solvency Analysis",null,"Minimum Margin of Solvency of Entity - 45",0]
["Sch XII","Solvency Analysis",null,"Regulatory Capital of Entity - 8",0]
["Sch XII","Solvency Analysis",null,"Regulatory Capital of Entity - 22",0]
["Sch XII","Solvency Analysis",null,"Regulatory Capital of Entity - 43",0]
["Sch XII","Solvency Analysis",null,"Regulatory Capital of Entity - 68",0]
["Sch XII","Solvency Analysis",null,"Regulatory Capital of Entity - 69",0]
["SchXIII(a)","Eligible Capital",null,"Tier 2 Ancillary - a. Unpaid Common Shares",null,null,null,null,0]
["SchXIII(b)","Eligible Capital - Additional Details",null,"Description of Capital Instrument 11",0]
["SchXIII(b)","Eligible Capital - Additional Details",null,"Date of Issue - Instrument 16","00:00:00"]
["SchXIII(b)","Eligible Capital - Additional Details",null,"Maturity Date - Instrument 6","00:00:00"]
["SchXIII(b)","Eligible Capital - Additional Details",null,"Authority Approval Date - Instrument 3","00:00:00"]
["SchXIII(b)","Eligible Capital - Additional Details",null,"Valuation - Instrument 4",0]
["SchXIII(b)","Eligible Capital - Additional Details",null,"Tier - Instrument 14",0]
["Sch XVIII","Ceded Reins",null,"Name of Reinsurer - 13",0,null,null,null,0]
["Sch XVIII","Ceded Reins",null,"Name of Reinsurer - 34",0,null,null,null,0]
["Sch XVIII","Ceded Reins",null,"Rating of Reinsurer - 24",0,null,null,null,0]
["Sch XVIII","Ceded Reins",null,"Rating Agency of Reinsurer - 8",0,null,null,null,0]
["Sch XVIII","Ceded Reins",null,"Rating Agency of Reinsurer - 16",0,null,null,null,0]
["Sch XVIII","Ceded Reins",null,"BSCR Rating of Reinsurer - 6","Select",null,null,null,"Select"]
["Sch XVIII","Ceded Reins",null,"BSCR Rating of Reinsurer - 20","Select",null,null,null,"Select"]
["Sch XVIII","Ceded Reins",null,"Jurisdiction of Reinsurer - 18",0,null,null,null,0]
["Sch XVIII","Ceded Reins",null,"Jurisdiction of Reinsurer - 23",0,null,null,null,0]
["Sch XVIII","Ceded Reins",null,"Premiums Ceded of Reinsurer - 9",0,null,null,null,0]
["Sch XVIII","Ceded Reins",null,"Premiums Ceded of Reinsurer - 32",0,null,null,null,0]
["Sch XVIII","Ceded Reins",null,"R/I Recoverable of Reinsurer - 20",0,null,null,null,0]
["Sch XVIII","Ceded Reins",null,"Market Risk of Reinsurer - 9",0,null,null,null,0]
["Sch XVIII","Ceded Reins",null,"Market Risk of Reinsurer - 34",0,null,null,null,0]
["Sch XVIII","Ceded Reins",null,"R/I Payable of Reinsurer - 10",0,null,null,null,0]
["Sch XVIII","Ceded Reins",null,"R/I Payable of Reinsurer - 25",0,null,null,null,0]
["Sch XVIII","Ceded Reins",null,"R/I Due -180 Days of Reinsurer - 14",0,null,null,null,0]
["Sch XVIII","Ceded Reins",null,"Collateral of Reinsurer - 6",0,null,null,null,0]
["Sch XVIII","Ceded Reins",null,"Collateral of Reinsurer - 25",0,null,null,null,0]
["Sch XVIII","Ceded Reins",null,"R/I Recoverable - Exposure Total",0,null,null,null,0]
["Sch XVIII","Ceded Reins",null,"Market Risk - Exposure BSCR Rating 4",0,null,null,null,0]
["Sch XIX","Cash Counterpart",null,"Name - Counterparty 11",0]
["Sch XIX","Cash Counterpart",null,"BSCR Rating - Counterparty 1","Select"]
["Sch XIX","Cash Counterpart",null,"EBS - Counterparty Value 6",0]
["Sch XIX","Cash Counterpart",null,"EBS - Exposure BSCR Rate 5",0]
["Sch XX","Currency Analysis",null,"EBS Assets - Other 1",0]
["Sch XX","Currency Analysis",null,"EBS Hedge Assets - Other 7",0]
["Sch XX","Currency Analysis",null,"EBS Hedge Liab. - USD",0]
["Sch XXI","Inv Con Risk",null,"Name of Exposure - 3",0]
["Sch XXI","Inv Con Risk",null,"Name of Exposure - 29",0]
["Sch XXI","Inv Con Risk",null,"Name of Exposure - 50",0]
["Sch XXI","Inv Con Risk",null,"EBS Asset Type - 25","Select"]
["Sch XXI","Inv Con Risk",null,"EBS Asset Type - 39","Select"]
["Sch XXI","Inv Con Risk",null,"EBS Bond Type - 2","Select"]
["Sch XXI","Inv Con Risk",null,"EBS Bond Type - 27","Select"]
["Sch XXI","Inv Con Risk",null,"EBS Bond Type - 48","Select"]
["Sch XXI","Inv Con Risk",null,"EBS BSCR Rating - 21","Select"]
["Sch XXI","Inv Con Risk",null,"EBS BSCR Rating - 45","Select"]
["Sch XXI","Inv Con Risk",null,"EBS BSCR Rating - 50","Select"]
["Sch XXI","Inv Con Risk",null,"EBS Asset Value - 18",0]
["Sch XXI","Inv Con Risk",null,"EBS Asset Value - 47",0]
["Op Risk","Indentification",null,"Identification - Info. Systems "]
["Op Risk","Mont. & Reporting",null,"Mont. & Reporting - Compliance "]
[]
["Sch IIB","Investments",null,"Commercial MBS - BSCR Rate 3",null,null,null,null,0,null,0]
["Sch IIB","Investments",null,"Long Positions - Before - Listed Equity Securities in Developed Markets",null,null,null,null,0]
["Sch IIB","Investments",null,"Long Positions - After - Preferred Stocks, BSCR Rating 3",null,null,null,null,0]
["Sch IIB","Investments",null,"Long Positions - After - Equity Real Estate 2",null,null,null,null,0]
["Sch IIB","Investments",null,"Short - After - Qualified Assets - Preferred Stocks, BSCR Rating 6",null,null,null,null,0]
["Sch IIB","Investments",null,"Short - After - Qualified Assets - Other Equities",null,null,null,null,0]
["Sch IIB","Investments",null,"Short - After - UnQualified Assets - Duration Based",null,null,null,null,0]
["Sch IIB","Investments",null,"Short - After - UnQualified Assets - Pension Benefit Surplus",null,null,null,null,0]
["Sch IIB","Investments",null,"Liabilities - Before - W/O Mgmt Actions - Derivatives on Infrastructure",null,null,null,null,0]
["Sch IIB","Investments",null,"Liabilities - After - W/O Mgmt Actions - Infrastructure",null,null,null,null,0]
["Sch IIB","Investments",null,"Liabilities - After - With Mgmt Actions - Equity Real Estate 2",null,null,null,null,0]
["Sch IIB","Investments",null,"Credit Derivatives - Up - Before - Long-Rating 5",null,null,null,null,0]
["Sch IIB","Investments",null,"Credit Derivatives - Up - Before - Short- Rating 8",null,null,null,null,0]
["Sch IIB","Investments",null,"Credit Derivatives - Down - After - Long- Rating 6",null,null,null,null,0]
["Sch IIB","Investments",null,"Credit Derivatives - Down - After - Short- Rating 1",null,null,null,null,0]
["Sch IIB","Investments",null,"Counterparty Default Risk - MV of Collateral - Rating 8",null,null,null,null,0]
["Sch IIB","Investments",null,"NAIC Resid. MBS - Orig. Class 4",null,null,null,null,0]
["Sch IIB","Investments",null,"NAIC Rating Corp & Sov. Bond - Class 5",null,null,null,null,0]
["Sch IIB","Investments",null,"NAIC Rating Bond Mutual - Class 2",null,null,null,null,0]
["Sch IIB","Investments",null,"NAIC Rating Other Assets - Class 6",null,null,null,null,0]
["Sch IIC","Funds Held",null,"Commercial MBS - BSCR Rate 2",null,null,null,null,0,null,0]
["Sch IIC","Funds Held",null,"Mortgage Loans - Other Residential",null,null,null,null,0,null,0]
["Sch IIC","Funds Held",null,"Long Positions - After - Preferred Stocks, BSCR Rating 3",null,null,null,null,0]
["Sch IIC","Funds Held",null,"Long Positions - After - Preferred Stocks, BSCR Rating 8",null,null,null,null,0]
["Sch IIC","Funds Held",null,"Short - Before - Qualified Assets - Other Equities",null,null,null,null,0]
["Sch IIC","Funds Held",null,"Short - After - Qualified Assets - Infrastructure",null,null,null,null,0]
["Sch IIC","Funds Held",null,"Short - Before - UnQualified Assets - Pension Benefit Surplus",null,null,null,null,0]
["Sch IIC","Funds Held",null,"Short - After - UnQualified Assets - Derivatives on Infrastructure",null,null,null,null,0]
["Sch IIC","Funds Held",null,"Short - After - UnQualified Assets - Equity Real Estate 2",null,null,null,null,0]
["Sch IIC","Funds Held",null,"Liabilities - After - W/O Mgmt Actions - Listed Equity Securities in Developed Markets",null,null,null,null,0]
["Sch IIC","Funds Held",null,"Liabilities - After - With Mgmt Actions - Duration Based",null,null,null,null,0]
["Sch IIC","Funds Held",null,"Credit Derivatives - Up - Before - Long-Rating 4",null,null,null,null,0]
["Sch IIC","Funds Held",null,"Credit Derivatives - Up - After - Long- Rating 6",null,null,null,null,0]
["Sch IIC","Funds Held",null,"Credit Derivatives - Down - After - Long- Rating 6",null,null,null,null,0]
["Sch IIC","Funds Held",null,"Credit Derivatives - Down - Before - Short- Rating 2",null,null,null,null,0]
["Sch IIC","Funds Held",null,"Counterparty Default Risk - MV of Derivatives - MV Positive - Rating 5",null,null,null,null,0]
["Sch IIC","Funds Held",null,"NAIC Rating Corp & Sov. Bond - Class 2",null,null,null,null,0]
["Sch IIC","Funds Held",null,"NAIC Rating Mort. Loan - Class 1",null,null,null,null,0]
[]
["Sch IID","Segregated Acc",null,"Residential MBS - BSCR Rate 2",null,null,null,null,0]
["Sch IID","Segregated Acc",null,"Liabilities Supported by Residential MBS - BSCR Rate 5",null,null,null,null,0]
["Sch IID","Segregated Acc",null,"Bonds Mutual Fund - BSCR Rate 1",null,null,null,null,0]
["Sch IID","Segregated Acc",null,"Long Positions - Before - Strategic Holdings - Listed",null,null,null,null,0]
["Sch IID","Segregated Acc",null,"Long Positions - After - Preferred Stocks, BSCR Rating 5",null,null,null,null,0]
["Sch IID","Segregated Acc",null,"Short - Before - Qualified Assets - Preferred Stocks, BSCR Rating 1",null,null,null,null,0]
["Sch IID","Segregated Acc",null,"Short - Before - Qualified Assets - Preferred Stocks, BSCR Rating 6",null,null,null,null,0]
["Sch IID","Segregated Acc",null,"Short - After - Qualified Assets - Preferred Stocks, BSCR Rating 5",null,null,null,null,0]
["Sch IID","Segregated Acc",null,"Short - After - UnQualified Assets - Duration Based",null,null,null,null,0]
["Sch IID","Segregated Acc",null,"Short - After - UnQualified Assets - Preferred Stocks, BSCR Rating 8",null,null,null,null,0]
["Sch IID","Segregated Acc",null,"Liabilities - Before - W/O Mgmt Actions - Other Equities",null,null,null,null,0]
["Sch IID","Segregated Acc",null,"Liabilities - After - W/O Mgmt Actions - Preferred Stocks, BSCR Rating 2",null,null,null,null,0]
["Sch IID","Segregated Acc",null,"Liabilities - After - With Mgmt Actions - Pension Benefit Surplus",null,null,null,null,0]
["Sch IID","Segregated Acc",null,"Liabilities - After - With Mgmt Actions - Equity Real Estate 2",null,null,null,null,0]
["Sch IID","Segregated Acc",null,"Credit Derivatives - Up - Before - Short- Rating 6",null,null,null,null,0]
["Sch IID","Segregated Acc",null,"Credit Derivatives - Down - After - Long- Rating 1",null,null,null,null,0]
["Sch IID","Segregated Acc",null,"Credit Derivatives - Down - After - Short- Rating 8",null,null,null,null,0]
["Sch IID","Segregated Acc",null,"Counterparty Default Risk - MV of Collateral - Rating 2",null,null,null,null,0]
["Sch IID","Segregated Acc",null,"Counterparty Default Risk - MV of Collateral - Rating 7",null,null,null,null,0]
["Sch IID","Segregated Acc",null,"NAIC Rating Mort. Loan - Class 1",null,null,null,null,0]
["Sch IID","Segregated Acc",null,"NAIC Rating Other Assets - Class 3",null,null,null,null,0]
["Sch IIE","Deposits",null,"Commercial MBS - BSCR Rate 3",null,null,null,null,0,null,0]
["Sch IIE","Deposits",null,"Long Positions - Before - Preferred Stocks, BSCR Rating 6",null,null,null,null,0]
["Sch IIE","Deposits",null,"Long Positions - After - Preferred Stocks, BSCR Rating 4",null,null,null,null,0]
["Sch IIE","Deposits",null,"Long Positions - After - Equity Derivatives on Type 1 Equities",null,null,null,null,0]
["Sch IIE","Deposits",null,"Short - Before - Qualified Assets - Preferred Stocks, BSCR Rating 8",null,null,null,null,0]
["Sch IIE","Deposits",null,"Short - After - Qualified Assets - Preferred Stocks, BSCR Rating 5",null,null,null,null,0]
["Sch IIE","Deposits",null,"Short - Before - UnQualified Assets - Equity Derivatives on Type 2 Equities",null,null,null,null,0]
["Sch IIE","Deposits",null,"Short - After - UnQualified Assets - Pension Benefit Surplus",null,null,null,null,0]
["Sch IIE","Deposits",null,"Short - After - UnQualified Assets - Equity Real Estate 2",null,null,null,null,0]
["Sch IIE","Deposits",null,"Liabilities - After - W/O Mgmt Actions - Preferred Stocks, BSCR Rating 3",null,null,null,null,0]
["Sch IIE","Deposits",null,"Liabilities - After - With Mgmt Actions - Listed Equity Securities in Developed Markets",null,null,null,null,0]
["Sch IIE","Deposits",null,"Credit Derivatives - Up - Before - Long-Rating 5",null,null,null,null,0]
["Sch IIE","Deposits",null,"Credit Derivatives - Up - After - Short- Rating 2",null,null,null,null,0]
["Sch IIE","Deposits",null,"Credit Derivatives - Down - After - Long- Rating 7",null,null,null,null,0]
["Sch IIE","Deposits",null,"Credit Derivatives - Down - Before - Short- Rating 3",null,null,null,null,0]
["Sch IIE","Deposits",null,"Counterparty Default Risk - MV of Derivatives - MV Positive - Rating 6",null,null,null,null,0]
["Sch IIE","Deposits",null,"NAIC Rating Resid. MBS - Class 5",null,null,null,null,0]
["Sch IIE","Deposits",null,"NAIC Rating Bond Mutual - Class 5",null,null,null,null,0]
["Sch IIF","Other Sundry",null,"Corp. Bonds - BSCR Rate 0",null,null,null,null,0,null,0]
["Sch IIF","Other Sundry",null,"Corp. Bonds - BSCR Rate 8",null,null,null,null,0,null,0]
["Sch IIF","Other Sundry",null,"Bonds Mutual Fund - BSCR Rate 2",null,null,null,null,0,null,0]
["Sch IIF","Other Sundry",null,"Long Positions - Before - Letters of Credit",null,null,null,null,0]
["Sch IIF","Other Sundry",null,"Long Positions - After - Other Equities",null,null,null,null,0]
["Sch IIF","Other Sundry",null,"Short - Before - Qualified Assets - Strategic Holdings - Unlisted",null,null,null,null,0]
["Sch IIF","Other Sundry",null,"Short - After - Qualified Assets - Equity Real Estate 1",null,null,null,null,0]
["Sch IIF","Other Sundry",null,"Short - Before - UnQualified Assets - Derivatives on Infrastructure",null,null,null,null,0]
["Sch IIF","Other Sundry",null,"Short - After - UnQualified Assets - Listed Equity Securities in Developed Markets",null,null,null,null,0]
["Sch IIF","Other Sundry",null,"Liabilities - Before - W/O Mgmt Actions - Preferred Stocks, BSCR Rating 4",null,null,null,null,0]
["Sch IIF","Other Sundry",null,"Liabilities - After - W/O Mgmt Actions - Preferred Stocks, BSCR Rating 3",null,null,null,null,0]
["Sch IIF","Other Sundry",null,"Liabilities - After - With Mgmt Actions - Preferred Stocks, BSCR Rating 6",null,null,null,null,0]
["Sch IIF","Other Sundry",null,"Credit Derivatives - Up - After - Long- Rating 3",null,null,null,null,0]
["Sch IIF","Other Sundry",null,"Credit Derivatives - Up - After - Short- Rating 6",null,null,null,null,0]
["Sch IIF","Other Sundry",null,"Credit Derivatives - Down - Before - Long-Rating 2",null,null,null,null,0]
["Sch IIF","Other Sundry",null,"Credit Derivatives - Down - Before - Short- Rating 5",null,null,null,null,0]
["Sch IIF","Other Sundry",null,"Counterparty Default Risk - MV of Collateral - Rating 4",null,null,null,null,0]
["Sch IIF","Other Sundry",null,"NAIC Rating Resid. MBS - Class 4",null,null,null,null,0]
["Sch IIF","Other Sundry",null,"NAIC Rating Mort. Loan - Class 4",null,null,null,null,0]
["Sch IIF","Other Sundry",null,"NAIC Rating Pref. Stock - Class 2",null,null,null,null,0]
["Sch IVD","Exposure by Line",null,"NPE - Est. Next 12 Month - Energy",0]
["Sch IVD","Exposure by Line",null,"NPE FP Existing - Credit Surety Non-Prop.",0]
["Sch IVD","Exposure by Line",null,"NPE FP Future - Credit Surety Non-Prop.",0]
["Sch IVD","Exposure by Line",null,"Gross Premium Exposure - Property Non-Proportion",0]
["Sch IVE","Net Prem by Zone",null,"NPE Zn 1 - Personal Acc. Non Prop.",0]
["Sch IVE","Net Prem by Zone",null,"NPE Zn 2 - Property Catastrophe",0]
["Sch IVE","Net Prem by Zone",null,"NPE Zn 2 - Aviation",0]
["Sch IVE","Net Prem by Zone",null,"NPE Zn 3 - Credit Surety Non-Prop.",0]
["Sch IVE","Net Prem by Zone",null,"NPE Zn 4 - Property Non-Proportion",0]
["Sch IVE","Net Prem by Zone",null,"NPE Zn 5 - Property Non-Proportion",0]
["Sch IVE","Net Prem by Zone",null,"NPE Zn 5 - Credit Surety",0]
["Sch IVE","Net Prem by Zone",null,"NPE Zn 6 - Int'l Casualty",0]
["Sch IVE","Net Prem by Zone",null,"NPE Zn 7 - Personal Acc. Non Prop.",0]
["Sch IVE","Net Prem by Zone",null,"NPE Zn 8 - Property Catastrophe",0]
["Sch IVE","Net Prem by Zone",null,"NPE Zn 8 - US Specialty Non-Prop.",0]
["Sch IVE","Net Prem by Zone",null,"NPE Zn 10 - Property",0]
["Sch IVE","Net Prem by Zone",null,"NPE Zn 10 - Structured / Finite R/I",0]
["Sch IVE","Net Prem by Zone",null,"NPE Zn 11 - Property Non-Proportion",0]
["Sch IVE","Net Prem by Zone",null,"NPE Zn 11 - Health",0]
["Sch IVE","Net Prem by Zone",null,"NPE Zn 12 - Total",0]
["Sch IVE","Net Prem by Zone",null,"NPE Zn 13 - Total",0]
["Sch IVE","Net Prem by Zone",null,"NPE Zn 14 - Int'l Casualty Non-Prop.",0]
["Sch IVE","Net Prem by Zone",null,"NPE Zn 15 - Energy",0]
["Sch IVE","Net Prem by Zone",null,"NPE Zn 16 - Property",0]
["Sch IVE","Net Prem by Zone",null,"NPE Zn 16 - Structured / Finite R/I",0]
["Sch IVE","Net Prem by Zone",null,"NPE Zn 18 - Property Non-Proportion",0]
["Sch IVE","Net Prem by Zone",null,"NPE Zn 18 - Int'l Casualty",0]
["Sch IVF","Exposure of Risk",null,"1. # of Subsidiaries - 19.Malta",0]
["Sch IVF","Exposure of Risk",null,"1. # of Subsidiaries - 24.Slovakia",0]
["Sch IVF","Exposure of Risk",null,"2. GPW Cat - 3.Bulgaria",0]
["Sch IVF","Exposure of Risk",null,"2. GPW Cat - 32.United States of America",0]
["Sch IVF","Exposure of Risk",null,"3. GPW Other - 18.Luxembourg",0]
["Sch IVF","Exposure of Risk",null,"3. GPW Other - 39.Total",0]
["Sch IVF","Exposure of Risk",null,"4. Ceded Cat - 7.Denmark",0]
["Sch IVF","Exposure of Risk",null,"4. Ceded Cat - 27.Sweden",0]
["Sch IVF","Exposure of Risk",null,"5. Ceded Other - 13.Hungary",0]
["Sch IVF","Exposure of Risk",null,"5. Ceded Other - 36.Hong Kong",0]
["Sch IVF","Exposure of Risk",null,"6. Losses Cat - 21.Poland",0]
["Sch IVF","Exposure of Risk",null,"7. Losses Other - 7.Denmark",0]
["Sch IVF","Exposure of Risk",null,"7. Losses Other - 28.Sub Total European Union",0]
["Sch IVF","Exposure of Risk",null,"8. GB Reserves - 5.Cyprus",0]
["Sch IVF","Exposure of Risk",null,"8. GB Reserves - 20.Netherlands",0]
["Sch IVF","Exposure of Risk",null,"9. LT Mortality Reserve - 2.Belgium",0]
["Sch IVF","Exposure of Risk",null,"9. LT Mortality Reserve - 27.Sweden",0]
["Sch IVF","Exposure of Risk",null,"10. LT Longevity Reserve - 9.Finland",0]
["Sch IVF","Exposure of Risk",null,"10. LT Longevity Reserve - 35.Japan",0]
["Sch IVF","Exposure of Risk",null,"11. LT Accumulation Reserve - 1.Austria",0]
["Sch IVF","Exposure of Risk",null,"11. LT Accumulation Reserve - 21.Poland",0]
["Sch IVF","Exposure of Risk",null,"12. LT Disability Reserve - 9.Finland",0]
["Sch IVF","Exposure of Risk",null,"12. LT Disability Reserve - 34.China",0]
["Sch IVF","Exposure of Risk",null,"13. LT Group Reserve - 16.Latvia",0]
["Sch IVF","Exposure of Risk",null,"13. LT Group Reserve - 25.Slovenia",0]
["Sch IVF","Exposure of Risk",null,"14. LT Var. Annuity Reserve - 8.Estonia",0]
["Sch IVF","Exposure of Risk",null,"14. LT Var. Annuity Reserve - 29.Bermuda",0]
["Sch IVF","Exposure of Risk",null,"15. LT Other Reserve - 15.Italy",0]
["Sch IVF","Exposure of Risk",null,"15. LT Other Reserve - 33.Canada",0]
["Sch IVF","Exposure of Risk",null,"16. LT Claims Paid - 23.Romania",0]
["Sch IVF","Exposure of Risk",null,"16. LT Claims Paid - 28.Sub Total European Union",0]
["Sch XIXA","Cash Counterpart",null,"BSCR Rating - Counterparty 1",null,null,null,null,"Select"]
["Sch XIXA","Cash Counterpart",null,"BSCR Rating - Counterparty 14",null,null,null,null,"Select"]
["Sch XIXA","Cash Counterpart",null,"EBS - Counterparty Value 15",null,null,null,null,0]
["Sch XXA","Currency Shock",null,"Other Currency 9",null,null,null,null,"Other currency 9"]
["Sch XXA","Currency Shock",null,"Before Shock - Assets - Excluding Currency - Sensitive Derivatives Other currency 9",null,null,null,null,0]
["Sch XXA","Currency Shock",null,"Before Shock - Long Exposures - Currency Derivatives Qualifying as held for risk-mitigation purposes Qatari Riyals",null,null,null,null,0]
["Sch XXA","Currency Shock",null,"Before Shock - Long Exposures - Currency Derivatives Not Qualifying as held for risk-mitigation purposes Euro",null,null,null,null,0]
["Sch XXA","Currency Shock",null,"Before Shock - Short Exposures - Currency Derivatives Qualifying as held for risk-mitigation purposes Bulgarian Levs",null,null,null,null,0]
["Sch XXA","Currency Shock",null,"Before Shock - Short Exposures - Currency Derivatives Qualifying as held for risk-mitigation purposes Other currency 5",null,null,null,null,0]
["Sch XXA","Currency Shock",null,"Before Shock - B.E. Liabilities West African CFA Francs",null,null,null,null,0]
["Sch XXA","Currency Shock",null,"After Shock - Assets - Excluding Currency - Sensitive Derivatives Danish Krones",null,null,null,null,0]
["Sch XXA","Currency Shock",null,"After Shock - Assets - Excluding Currency - Sensitive Derivatives Other currency 4",null,null,null,null,0]
["Sch XXA","Currency Shock",null,"After Shock - Long Exposures - Currency Derivatives Qualifying as held for risk-mitigation purposes Other currency 1",null,null,null,null,0]
["Sch XXA","Currency Shock",null,"After Shock - Long Exposures - Currency Derivatives Not Qualifying as held for risk-mitigation purposes CAD$",null,null,null,null,0]
["Sch XXA","Currency Shock",null,"After Shock - Short Exposures - Currency Derivatives Qualifying as held for risk-mitigation purposes Other currency 1",null,null,null,null,0]
["Sch XXA","Currency Shock",null,"After Shock - Short Exposures - Currency Derivatives Not Qualifying as held for risk-mitigation purposes GBP",null,null,null,null,0]
["Sch XXA","Currency Shock",null,"After Shock - Short Exposures - Currency Derivatives Not Qualifying as held for risk-mitigation purposes Other currency 5",null,null,null,null,0]
["Sch XXA","Currency Shock",null,"After Shock - B.E. Liabilities Other currency 7",null,null,null,null,0]
["Sch XXA","Currency Shock",null,"After Shock - Liabilities w Mgmt. Actions Other currency 5",null,null,null,null,0]
["Sch XXIA","Inv Con Risk",null,"Name of Exposure - 16",null,null,null,null,0]
["Sch XXIA","Inv Con Risk",null,"Name of Exposure - 38",null,null,null,null,0]
["Sch XXIA","Inv Con Risk",null,"EBS Asset Type - 9",null,null,null,null,"Select"]
["Sch XXIA","Inv Con Risk",null,"EBS Asset Type - 13",null,null,null,null,"Select"]
["Sch XXIA","Inv Con Risk",null,"EBS Asset Type - 36",null,null,null,null,"Select"]
["Sch XXIA","Inv Con Risk",null,"EBS Bond Type - 11",null,null,null,null,"Select"]
["Sch XXIA","Inv Con Risk",null,"EBS Bond Type - 36",null,null,null,null,"Select"]
["Sch XXIA","Inv Con Risk",null,"EBS Bond Type - 49",null,null,null,null,"Select"]
["Sch XXIA","Inv Con Risk",null,"EBS BSCR Rating - 33",null,null,null,null,"Select"]
["Sch XXIA","Inv Con Risk",null,"EBS BSCR Rating - 38",null,null,null,null,"Select"]
["Sch XXIA","Inv Con Risk",null,"EBS Asset Value - 9",null,null,null,null,0]
["Sch XXIA","Inv Con Risk",null,"EBS Asset Value - 31",null,null,null,null,0]
["Sch XXIII","Interest Rates",null,"Other currency 4",null,null,null,null,"Other currency 4"]
["Sch XXIII","Interest Rates",null,"Int. Down - Before Shock - Other - Qualifying Assets - Total",null,null,null,null,0]
["Sch XXIII","Interest Rates",null,"Int. Down - After Shock - Other - Qualifying Assets - Other currency 10",null,null,null,null,0]
["Sch XXIII","Interest Rates",null,"Int. Down - Before Shock - Other - Liab. w/o Mgmt Action - New Zealand Dollar",null,null,null,null,0]
["Sch XXIII","Interest Rates",null,"Int. Down - After Shock - Other - Liab. w/o Mgmt Action - Other currency 6",null,null,null,null,0]
["Sch XXIII","Interest Rates",null,"Int. Down - After Shock - Other - Liab. with Mgmt Action - Other currency 8",null,null,null,null,0]
["Sch XXIII","Interest Rates",null,"Int. Down - After Shock - Derivatives - Qualifying Assets - Other currency 1",null,null,null,null,0]
["Sch XXIII","Interest Rates",null,"Int. Down - Before Shock - Derivatives - Not Qualifying Assets - Other currency 2",null,null,null,null,0]
["Sch XXIII","Interest Rates",null,"Int. Down - After Shock - Derivatives - Not Qualifying Assets - Other currency 4",null,null,null,null,0]
["Sch XXIII","Interest Rates",null,"Int. Down - After Shock - Derivatives - Not Qualifying Assets - Other currency 10",null,null,null,null,0]
["Sch XXIII","Interest Rates",null,"Int. Down - Before Shock - Derivatives - Liab. w/o Mgmt Action - Other currency 7",null,null,null,null,0]
["Sch XXIII","Interest Rates",null,"Int. Down - Before Shock - Derivatives - Liab. w/o Mgmt Action - Other currency 8",null,null,null,null,0]
["Sch XXIII","Interest Rates",null,"Int. Down - Before Shock - Derivatives - Liab. w/o Mgmt Action - Other currency 9",null,null,null,null,0]
["Sch XXIII","Interest Rates",null,"Int. Down - Before Shock - Derivatives - Liab. w/o Mgmt Action - Other currency 10",null,null,null,null,0]
["Sch XXIII","Interest Rates",null,"Int. Down - Before Shock - Derivatives - Liab. w/o Mgmt Action - Total",null,null,null,null,0]
["Sch XXIII","Interest Rates",null,"Int. Down - After Shock - Derivatives - Liab. w/o Mgmt Action - United States Dollars",null,null,null,null,0]
["Sch XXIII","Interest Rates",null,"Int. Down - After Shock - Derivatives - Liab. w/o Mgmt Action - Euro",null,null,null,null,0]
["Sch XXIII","Interest Rates",null,"Int. Down - After Shock - Derivatives - Liab. w/o Mgmt Action - United Kingdom Pounds",null,null,null,null,0]
["Sch XXIII","Interest Rates",null,"Int. Down - After Shock - Derivatives - Liab. w/o Mgmt Action - Japan Yen",null,null,null,null,0]
["Sch XXIII","Interest Rates",null,"Int. Down - After Shock - Derivatives - Liab. w/o Mgmt Action - Canada Dollars",null,null,null,null,0]
["Sch XXIII","Interest Rates",null,"Int. Down - After Shock - Derivatives - Liab. w/o Mgmt Action - Swiss Francs",null,null,null,null,0]
["Sch XXIII","Interest Rates",null,"Int. Down - After Shock - Derivatives - Liab. w/o Mgmt Action - Australia Dollar",null,null,null,null,0]
["Sch XXIII","Interest Rates",null,"Int. Down - After Shock - Derivatives - Liab. w/o Mgmt Action - New Zealand Dollar",null,null,null,null,0]
["Sch XXIII","Interest Rates",null,"Int. Down - After Shock - Derivatives - Liab. w/o Mgmt Action - Other currency 1",null,null,null,null,0]
["Sch XXIII","Interest Rates",null,"Int. Down - After Shock - Derivatives - Liab. w/o Mgmt Action - Other currency 2",null,null,null,null,0]
["Sch XXIII","Interest Rates",null,"Int. Down - After Shock - Derivatives - Liab. w/o Mgmt Action - Other currency 3",null,null,null,null,0]
["Sch XXIII","Interest Rates",null,"Int. Down - After Shock - Derivatives - Liab. w/o Mgmt Action - Other currency 4",null,null,null,null,0]
["Sch XXIII","Interest Rates",null,"Int. Down - After Shock - Derivatives - Liab. w/o Mgmt Action - Other currency 5",null,null,null,null,0]
["Sch XXIII","Interest Rates",null,"Int. Down - After Shock - Derivatives - Liab. w/o Mgmt Action - Other currency 6",null,null,null,null,0]
["Sch XXIII","Interest Rates",null,"Int. Down - After Shock - Derivatives - Liab. w/o Mgmt Action - Other currency 7",null,null,null,null,0]
["Sch XXIII","Interest Rates",null,"Int. Down - After Shock - Derivatives - Liab. w/o Mgmt Action - Other currency 8",null,null,null,null,0]
["Sch XXIII","Interest Rates",null,"Int. Down - After Shock - Derivatives - Liab. w/o Mgmt Action - Other currency 9",null,null,null,null,0]
["Sch XXIII","Interest Rates",null,"Int. Down - After Shock - Derivatives - Liab. w/o Mgmt Action - Other currency 10",null,null,null,null,0]
["Sch XXIII","Interest Rates",null,"Int. Down - After Shock - Derivatives - Liab. w/o Mgmt Action - Total",null,null,null,null,0]
["Sch XXIII","Interest Rates",null,"Int. Down - After Shock - Derivatives - Liab. with Mgmt Action - United States Dollars",null,null,null,null,0]
["Sch XXIII","Interest Rates",null,"Int. Down - After Shock - Derivatives - Liab. with Mgmt Action - Euro",null,null,null,null,0]
["Sch XXIII","Interest Rates",null,"Int. Down - After Shock - Derivatives - Liab. with Mgmt Action - United Kingdom Pounds",null,null,null,null,0]
["Sch XXIII","Interest Rates",null,"Int. Down - After Shock - Derivatives - Liab. with Mgmt Action - Japan Yen",null,null,null,null,0]
["Sch XXIII","Interest Rates",null,"Int. Down - After Shock - Derivatives - Liab. with Mgmt Action - Canada Dollars",null,null,null,null,0]
["Sch XXIII","Interest Rates",null,"Int. Down - After Shock - Derivatives - Liab. with Mgmt Action - Swiss Francs",null,null,null,null,0]
["Sch XXIII","Interest Rates",null,"Int. Down - After Shock - Derivatives - Liab. with Mgmt Action - Australia Dollar",null,null,null,null,0]
["Sch XXIII","Interest Rates",null,"Int. Down - After Shock - Derivatives - Liab. with Mgmt Action - New Zealand Dollar",null,null,null,null,0]
["Sch XXIII","Interest Rates",null,"Int. Down - After Shock - Derivatives - Liab. with Mgmt Action - Other currency 1",null,null,null,null,0]
["Sch XXIII","Interest Rates",null,"Int. Down - After Shock - Derivatives - Liab. with Mgmt Action - Other currency 2",null,null,null,null,0]
["Sch XXIII","Interest Rates",null,"Int. Down - After Shock - Derivatives - Liab. with Mgmt Action - Other currency 3",null,null,null,null,0]
["Sch XXIII","Interest Rates",null,"Int. Down - After Shock - Derivatives - Liab. with Mgmt Action - Other currency 4",null,null,null,null,0]
["Sch XXIII","Interest Rates",null,"Int. Down - After Shock - Derivatives - Liab. with Mgmt Action - Other currency 5",null,null,null,null,0]
["Sch XXIII","Interest Rates",null,"Int. Down - After Shock - Derivatives - Liab. with Mgmt Action - Other currency 6",null,null,null,null,0]
["Sch XXIII","Interest Rates",null,"Int. Down - After Shock - Derivatives - Liab. with Mgmt Action - Other currency 7",null,null,null,null,0]
["Sch XXIII","Interest Rates",null,"Int. Down - After Shock - Derivatives - Liab. with Mgmt Action - Other currency 8",null,null,null,null,0]
["Sch XXIII","Interest Rates",null,"Int. Down - After Shock - Derivatives - Liab. with Mgmt Action - Other currency 9",null,null,null,null,0]
["Sch XXIII","Interest Rates",null,"Int. Down - After Shock - Derivatives - Liab. with Mgmt Action - Other currency 10",null,null,null,null,0]
["Sch XXIII","Interest Rates",null,"Int. Down - After Shock - Derivatives - Liab. with Mgmt Action - Total",null,null,null,null,0]
["Sch XXIII","Interest Rates",null,"Other currency 1",null,null,null,null,"Other currency 1"]
["Sch XXIII","Interest Rates",null,"Other currency 2",null,null,null,null,"Other currency 2"]
["Sch XXIII","Interest Rates",null,"Other currency 3",null,null,null,null,"Other currency 3"]
["Sch XXIII","Interest Rates",null,"Other currency 4",null,null,null,null,"Other currency 4"]
["Sch XXIII","Interest Rates",null,"Other currency 5",null,null,null,null,"Other currency 5"]
["Sch XXIII","Interest Rates",null,"Other currency 6",null,null,null,null,"Other currency 6"]
["Sch XXIII","Interest Rates",null,"Other currency 7",null,null,null,null,"Other currency 7"]
["Sch XXIII","Interest Rates",null,"Other currency 8",null,null,null,null,"Other currency 8"]
["Sch XXIII","Interest Rates",null,"Other currency 9",null,null,null,null,"Other currency 9"]
["Sch XXIII","Interest Rates",null,"Other currency 10",null,null,null,null,"Other currency 10"]
["Sch XXIII","Interest Rates",null,"Int. Up - Before Shock - Other - Qualifying Assets - United States Dollars",null,null,null,null,0]
["Sch XXIII","Interest Rates",null,"Int. Up - Before Shock - Other - Qualifying Assets - Euro",null,null,null,null,0]
["Sch XXIII","Interest Rates",null,"Int. Up - Before Shock - Other - Qualifying Assets - United Kingdom Pounds",null,null,null,null,0]
["Sch XXIII","Interest Rates",null,"Int. Up - Before Shock - Other - Qualifying Assets - Japan Yen",null,null,null,null,0]
["Sch XXIII","Interest Rates",null,"Int. Up - Before Shock - Other - Qualifying Assets - Canada Dollars",null,null,null,null,0]
["Sch XXIII","Interest Rates",null,"Int. Up - Before Shock - Other - Qualifying Assets - Swiss Francs",null,null,null,null,0]
["Sch XXIII","Interest Rates",null,"Int. Up - Before Shock - Other - Qualifying Assets - Australia Dollar",null,null,null,null,0]
["Sch XXIII","Interest Rates",null,"Int. Up - Before Shock - Other - Qualifying Assets - New Zealand Dollar",null,null,null,null,0]
["Sch XXIII","Interest Rates",null,"Int. Up - Before Shock - Other - Qualifying Assets - Other currency 1",null,null,null,null,0]
["Sch XXIII","Interest Rates",null,"Int. Up - Before Shock - Other - Qualifying Assets - Other currency 2",null,null,null,null,0]
["Sch XXIII","Interest Rates",null,"Int. Up - Before Shock - Other - Qualifying Assets - Other currency 3",null,null,null,null,0]
["Sch XXIII","Interest Rates",null,"Int. Up - Before Shock - Other - Qualifying Assets - Other currency 4",null,null,null,null,0]
["Sch XXIII","Interest Rates",null,"Int. Up - Before Shock - Other - Qualifying Assets - Other currency 5",null,null,null,null,0]
["Sch XXIII","Interest Rates",null,"Int. Up - Before Shock - Other - Qualifying Assets - Other currency 6",null,null,null,null,0]
["Sch XXIII","Interest Rates",null,"Int. Up - Before Shock - Other - Qualifying Assets - Other currency 7",null,null,null,null,0]
["Sch XXIII","Interest Rates",null,"Int. Up - Before Shock - Other - Qualifying Assets - Other currency 8",null,null,null,null,0]
["Sch XXIII","Interest Rates",null,"Int. Up - Before Shock - Other - Qualifying Assets - Other currency 9",null,null,null,null,0]
["Sch XXIII","Interest Rates",null,"Int. Up - Before Shock - Other - Qualifying Assets - Other currency 10",null,null,null,null,0]
["Sch XXIII","Interest Rates",null,"Int. Up - Before Shock - Other - Qualifying Assets - Total",null,null,null,null,0]
["Sch XXIII","Interest Rates",null,"Int. Up - After Shock - Other - Qualifying Assets - United States Dollars",null,null,null,null,0]
["Sch XXIII","Interest Rates",null,"Int. Up - After Shock - Other - Qualifying Assets - Euro",null,null,null,null,0]
["Sch XXIII","Interest Rates",null,"Int. Up - After Shock - Other - Qualifying Assets - United Kingdom Pounds",null,null,null,null,0]
["Sch XXIII","Interest Rates",null,"Int. Up - After Shock - Other - Qualifying Assets - Japan Yen",null,null,null,null,0]
["Sch XXIII","Interest Rates",null,"Int. Up - After Shock - Other - Qualifying Assets - Canada Dollars",null,null,null,null,0]
["Sch XXIII","Interest Rates",null,"Int. Up - After Shock - Other - Qualifying Assets - Swiss Francs",null,null,null,null,0]
["Sch XXIII","Interest Rates",null,"Int. Up - After Shock - Other - Qualifying Assets - Australia Dollar",null,null,null,null,0]
["Sch XXIII","Interest Rates",null,"Int. Up - After Shock - Other - Qualifying Assets - New Zealand Dollar",null,null,null,null,0]
["Sch XXIII","Interest Rates",null,"Int. Up - After Shock - Other - Qualifying Assets - Other currency 1",null,null,null,null,0]
["Sch XXIII","Interest Rates",null,"Int. Up - After Shock - Other - Qualifying Assets - Other currency 2",null,null,null,null,0]
["Sch XXIII","Interest Rates",null,"Int. Up - After Shock - Other - Qualifying Assets - Other currency 3",null,null,null,null,0]
["Sch XXIII","Interest Rates",null,"Int. Up - After Shock - Other - Qualifying Assets - Other currency 4",null,null,null,null,0]
["Sch XXIII","Interest Rates",null,"Int. Up - After Shock - Other - Qualifying Assets - Other currency 5",null,null,null,null,0]
["Sch XXIII","Interest Rates",null,"Int. Up - After Shock - Other - Qualifying Assets - Other currency 6",null,null,null,null,0]
["Sch XXIII","Interest Rates",null,"Int. Up - After Shock - Other - Qualifying Assets - Other currency 7",null,null,null,null,0]
["Sch XXIII","Interest Rates",null,"Int. Up - After Shock - Other - Qualifying Assets - Other currency 8",null,null,null,null,0]
["Sch XXIII","Interest Rates",null,"Int. Up - After Shock - Other - Qualifying Assets - Other currency 9",null,null,null,null,0]
["Sch XXIII","Interest Rates",null,"Int. Up - After Shock - Other - Qualifying Assets - Other currency 10",null,null,null,null,0]
["Sch XXIII","Interest Rates",null,"Int. Up - After Shock - Other - Qualifying Assets - Total",null,null,null,null,0]
["Sch XXIII","Interest Rates",null,"Int. Up - Before Shock - Other - Liab. w/o Mgmt Action - United States Dollars",null,null,null,null,0]
["Sch XXIII","Interest Rates",null,"Int. Up - Before Shock - Other - Liab. w/o Mgmt Action - Euro",null,null,null,null,0]
["Sch XXIII","Interest Rates",null,"Int. Up - Before Shock - Other - Liab. w/o Mgmt Action - United Kingdom Pounds",null,null,null,null,0]
["Sch XXIII","Interest Rates",null,"Int. Up - Before Shock - Other - Liab. w/o Mgmt Action - Japan Yen",null,null,null,null,0]
["Sch XXIII","Interest Rates",null,"Int. Up - Before Shock - Other - Liab. w/o Mgmt Action - Canada Dollars",null,null,null,null,0]
["Sch XXIII","Interest Rates",null,"Int. Up - Before Shock - Other - Liab. w/o Mgmt Action - Swiss Francs",null,null,null,null,0]
["Sch XXIII","Interest Rates",null,"Int. Up - Before Shock - Other - Liab. w/o Mgmt Action - Australia Dollar",null,null,null,null,0]
["Sch XXIII","Interest Rates",null,"Int. Up - Before Shock - Other - Liab. w/o Mgmt Action - New Zealand Dollar",null,null,null,null,0]
["Sch XXIII","Interest Rates",null,"Int. Up - Before Shock - Other - Liab. w/o Mgmt Action - Other currency 1",null,null,null,null,0]
["Sch XXIII","Interest Rates",null,"Int. Up - Before Shock - Other - Liab. w/o Mgmt Action - Other currency 2",null,null,null,null,0]
["Sch XXIII","Interest Rates",null,"Int. Up - Before Shock - Other - Liab. w/o Mgmt Action - Other currency 3",null,null,null,null,0]
["Sch XXIII","Interest Rates",null,"Int. Up - Before Shock - Other - Liab. w/o Mgmt Action - Other currency 4",null,null,null,null,0]
["Sch XXIII","Interest Rates",null,"Int. Up - Before Shock - Other - Liab. w/o Mgmt Action - Other currency 5",null,null,null,null,0]
["Sch XXIII","Interest Rates",null,"Int. Up - Before Shock - Other - Liab. w/o Mgmt Action - Other currency 6",null,null,null,null,0]
["Sch XXIII","Interest Rates",null,"Int. Up - Before Shock - Other - Liab. w/o Mgmt Action - Other currency 7",null,null,null,null,0]
["Sch XXIII","Interest Rates",null,"Int. Up - Before Shock - Other - Liab. w/o Mgmt Action - Other currency 8",null,null,null,null,0]
["Sch XXIII","Interest Rates",null,"Int. Up - Before Shock - Other - Liab. w/o Mgmt Action - Other currency 9",null,null,null,null,0]
["Sch XXIII","Interest Rates",null,"Int. Up - Before Shock - Other - Liab. w/o Mgmt Action - Other currency 10",null,null,null,null,0]
["Sch XXIII","Interest Rates",null,"Int. Up - Before Shock - Other - Liab. w/o Mgmt Action - Total",null,null,null,null,0]
["Sch XXIII","Interest Rates",null,"Int. Up - After Shock - Other - Liab. w/o Mgmt Action - United States Dollars",null,null,null,null,0]
["Sch XXIII","Interest Rates",null,"Int. Up - After Shock - Other - Liab. w/o Mgmt Action - Euro",null,null,null,null,0]
["Sch XXIII","Interest Rates",null,"Int. Up - After Shock - Other - Liab. w/o Mgmt Action - United Kingdom Pounds",null,null,null,null,0]
["Sch XXIII","Interest Rates",null,"Int. Up - After Shock - Other - Liab. w/o Mgmt Action - Japan Yen",null,null,null,null,0]
["Sch XXIII","Interest Rates",null,"Int. Up - After Shock - Other - Liab. w/o Mgmt Action - Canada Dollars",null,null,null,null,0]
["Sch XXIII","Interest Rates",null,"Int. Up - After Shock - Other - Liab. w/o Mgmt Action - Swiss Francs",null,null,null,null,0]
["Sch XXIII","Interest Rates",null,"Int. Up - After Shock - Other - Liab. w/o Mgmt Action - Australia Dollar",null,null,null,null,0]
["Sch XXIII","Interest Rates",null,"Int. Up - After Shock - Other - Liab. w/o Mgmt Action - New Zealand Dollar",null,null,null,null,0]
["Sch XXIII","Interest Rates",null,"Int. Up - After Shock - Other - Liab. w/o Mgmt Action - Other currency 1",null,null,null,null,0]
["Sch XXIII","Interest Rates",null,"Int. Up - After Shock - Other - Liab. w/o Mgmt Action - Other currency 2",null,null,null,null,0]
["Sch XXIII","Interest Rates",null,"Int. Up - After Shock - Other - Liab. w/o Mgmt Action - Other currency 3",null,null,null,null,0]
["Sch XXIII","Interest Rates",null,"Int. Up - After Shock - Other - Liab. w/o Mgmt Action - Other currency 4",null,null,null,null,0]
["Sch XXIII","Interest Rates",null,"Int. Up - After Shock - Other - Liab. w/o Mgmt Action - Other currency 5",null,null,null,null,0]
["Sch XXIII","Interest Rates",null,"Int. Up - After Shock - Other - Liab. w/o Mgmt Action - Other currency 6",null,null,null,null,0]
["Sch XXIII","Interest Rates",null,"Int. Up - After Shock - Other - Liab. w/o Mgmt Action - Other currency 7",null,null,null,null,0]
["Sch XXIII","Interest Rates",null,"Int. Up - After Shock - Other - Liab. w/o Mgmt Action - Other currency 8",null,null,null,null,0]
["Sch XXIII","Interest Rates",null,"Int. Up - After Shock - Other - Liab. w/o Mgmt Action - Other currency 9",null,null,null,null,0]
["Sch XXIII","Interest Rates",null,"Int. Up - After Shock - Other - Liab. w/o Mgmt Action - Other currency 10",null,null,null,null,0]
["Sch XXIII","Interest Rates",null,"Int. Up - After Shock - Other - Liab. w/o Mgmt Action - Total",null,null,null,null,0]
["Sch XXIII","Interest Rates",null,"Int. Up - After Shock - Other - Liab. with Mgmt Action - United States Dollars",null,null,null,null,0]
["Sch XXIII","Interest Rates",null,"Int. Up - After Shock - Other - Liab. with Mgmt Action - Euro",null,null,null,null,0]
["Sch XXIII","Interest Rates",null,"Int. Up - After Shock - Other - Liab. with Mgmt Action - United Kingdom Pounds",null,null,null,null,0]
["Sch XXIII","Interest Rates",null,"Int. Up - After Shock - Other - Liab. with Mgmt Action - Japan Yen",null,null,null,null,0]
["Sch XXIII","Interest Rates",null,"Int. Up - After Shock - Other - Liab. with Mgmt Action - Canada Dollars",null,null,null,null,0]
["Sch XXIII","Interest Rates",null,"Int. Up - After Shock - Other - Liab. with Mgmt Action - Swiss Francs",null,null,null,null,0]
["Sch XXIII","Interest Rates",null,"Int. Up - After Shock - Other - Liab. with Mgmt Action - Australia Dollar",null,null,null,null,0]
["Sch XXIII","Interest Rates",null,"Int. Up - After Shock - Other - Liab. with Mgmt Action - New Zealand Dollar",null,null,null,null,0]
["Sch XXIII","Interest Rates",null,"Int. Up - After Shock - Other - Liab. with Mgmt Action - Other currency 1",null,null,null,null,0]
["Sch XXIII","Interest Rates",null,"Int. Up - After Shock - Other - Liab. with Mgmt Action - Other currency 2",null,null,null,null,0]
["Sch XXIII","Interest Rates",null,"Int. Up - After Shock - Other - Liab. with Mgmt Action - Other currency 3",null,null,null,null,0]
["Sch XXIII","Interest Rates",null,"Int. Up - After Shock - Other - Liab. with Mgmt Action - Other currency 4",null,null,null,null,0]
["Sch XXIII","Interest Rates",null,"Int. Up - After Shock - Other - Liab. with Mgmt Action - Other currency 5",null,null,null,null,0]
["Sch XXIII","Interest Rates",null,"Int. Up - After Shock - Other - Liab. with Mgmt Action - Other currency 6",null,null,null,null,0]
["Sch XXIII","Interest Rates",null,"Int. Up - After Shock - Other - Liab. with Mgmt Action - Other currency 7",null,null,null,null,0]
["Sch XXIII","Interest Rates",null,"Int. Up - After Shock - Other - Liab. with Mgmt Action - Other currency 8",null,null,null,null,0]
["Sch XXIII","Interest Rates",null,"Int. Up - After Shock - Other - Liab. with Mgmt Action - Other currency 9",null,null,null,null,0]
["Sch XXIII","Interest Rates",null,"Int. Up - After Shock - Other - Liab. with Mgmt Action - Other currency 10",null,null,null,null,0]
["Sch XXIII","Interest Rates",null,"Int. Up - After Shock - Other - Liab. with Mgmt Action - Total",null,null,null,null,0]
["Sch XXIII","Interest Rates",null,"Int. Up - Before Shock - Derivatives - Qualifying Assets - United States Dollars",null,null,null,null,0]
["Sch XXIII","Interest Rates",null,"Int. Up - Before Shock - Derivatives - Qualifying Assets - Euro",null,null,null,null,0]
["Sch XXIII","Interest Rates",null,"Int. Up - Before Shock - Derivatives - Qualifying Assets - United Kingdom Pounds",null,null,null,null,0]
["Sch XXIII","Interest Rates",null,"Int. Up - Before Shock - Derivatives - Qualifying Assets - Japan Yen",null,null,null,null,0]
["Sch XXIII","Interest Rates",null,"Int. Up - Before Shock - Derivatives - Qualifying Assets - Canada Dollars",null,null,null,null,0]
["Sch XXIII","Interest Rates",null,"Int. Up - Before Shock - Derivatives - Qualifying Assets - Swiss Francs",null,null,null,null,0]
["Sch XXIII","Interest Rates",null,"Int. Up - Before Shock - Derivatives - Qualifying Assets - Australia Dollar",null,null,null,null,0]
["Sch XXIII","Interest Rates",null,"Int. Up - Before Shock - Derivatives - Qualifying Assets - New Zealand Dollar",null,null,null,null,0]
["Sch XXIII","Interest Rates",null,"Int. Up - Before Shock - Derivatives - Qualifying Assets - Other currency 1",null,null,null,null,0]
["Sch XXIII","Interest Rates",null,"Int. Up - Before Shock - Derivatives - Qualifying Assets - Other currency 2",null,null,null,null,0]
["Sch XXIII","Interest Rates",null,"Int. Up - Before Shock - Derivatives - Qualifying Assets - Other currency 3",null,null,null,null,0]
["Sch XXIII","Interest Rates",null,"Int. Up - Before Shock - Derivatives - Qualifying Assets - Other currency 4",null,null,null,null,0]
["Sch XXIII","Interest Rates",null,"Int. Up - Before Shock - Derivatives - Qualifying Assets - Other currency 5",null,null,null,null,0]
["Sch XXIII","Interest Rates",null,"Int. Up - Before Shock - Derivatives - Qualifying Assets - Other currency 6",null,null,null,null,0]
["Sch XXIII","Interest Rates",null,"Int. Up - Before Shock - Derivatives - Qualifying Assets - Other currency 7",null,null,null,null,0]
["Sch XXIII","Interest Rates",null,"Int. Up - Before Shock - Derivatives - Qualifying Assets - Other currency 8",null,null,null,null,0]
["Sch XXIII","Interest Rates",null,"Int. Up - Before Shock - Derivatives - Qualifying Assets - Other currency 9",null,null,null,null,0]
["Sch XXIII","Interest Rates",null,"Int. Up - Before Shock - Derivatives - Qualifying Assets - Other currency 10",null,null,null,null,0]
["Sch XXIII","Interest Rates",null,"Int. Up - Before Shock - Derivatives - Qualifying Assets - Total",null,null,null,null,0]
["Sch XXIII","Interest Rates",null,"Int. Up - After Shock - Derivatives - Qualifying Assets - United States Dollars",null,null,null,null,0]
["Sch XXIII","Interest Rates",null,"Int. Up - After Shock - Derivatives - Qualifying Assets - Euro",null,null,null,null,0]
["Sch XXIII","Interest Rates",null,"Int. Up - After Shock - Derivatives - Qualifying Assets - United Kingdom Pounds",null,null,null,null,0]
["Sch XXIII","Interest Rates",null,"Int. Up - After Shock - Derivatives - Qualifying Assets - Japan Yen",null,null,null,null,0]
["Sch XXIII","Interest Rates",null,"Int. Up - After Shock - Derivatives - Qualifying Assets - Canada Dollars",null,null,null,null,0]
["Sch XXIII","Interest Rates",null,"Int. Up - After Shock - Derivatives - Qualifying Assets - Swiss Francs",null,null,null,null,0]
["Sch XXIII","Interest Rates",null,"Int. Up - After Shock - Derivatives - Qualifying Assets - Australia Dollar",null,null,null,null,0]
["Sch XXIII","Interest Rates",null,"Int. Up - After Shock - Derivatives - Qualifying Assets - New Zealand Dollar",null,null,null,null,0]
["Sch XXIII","Interest Rates",null,"Int. Up - After Shock - Derivatives - Qualifying Assets - Other currency 1",null,null,null,null,0]
["Sch XXIII","Interest Rates",null,"Int. Up - After Shock - Derivatives - Qualifying Assets - Other currency 2",null,null,null,null,0]
["Sch XXIII","Interest Rates",null,"Int. Up - After Shock - Derivatives - Qualifying Assets - Other currency 3",null,null,null,null,0]
["Sch XXIII","Interest Rates",null,"Int. Up - After Shock - Derivatives - Qualifying Assets - Other currency 4",null,null,null,null,0]
["Sch XXIII","Interest Rates",null,"Int. Up - After Shock - Derivatives - Qualifying Assets - Other currency 5",null,null,null,null,0]
["Sch XXIII","Interest Rates",null,"Int. Up - After Shock - Derivatives - Qualifying Assets - Other currency 6",null,null,null,null,0]
["Sch XXIII","Interest Rates",null,"Int. Up - After Shock - Derivatives - Qualifying Assets - Other currency 7",null,null,null,null,0]
["Sch XXIII","Interest Rates",null,"Int. Up - After Shock - Derivatives - Qualifying Assets - Other currency 8",null,null,null,null,0]
["Sch XXIII","Interest Rates",null,"Int. Up - After Shock - Derivatives - Qualifying Assets - Other currency 9",null,null,null,null,0]
["Sch XXIII","Interest Rates",null,"Int. Up - After Shock - Derivatives - Qualifying Assets - Other currency 10",null,null,null,null,0]
["Sch XXIII","Interest Rates",null,"Int. Up - After Shock - Derivatives - Qualifying Assets - Total",null,null,null,null,0]
["Sch XXIII","Interest Rates",null,"Int. Up - Before Shock - Derivatives - Not Qualifying Assets - United States Dollars",null,null,null,null,0]
["Sch XXIII","Interest Rates",null,"Int. Up - Before Shock - Derivatives - Not Qualifying Assets - Euro",null,null,null,null,0]
["Sch XXIII","Interest Rates",null,"Int. Up - Before Shock - Derivatives - Not Qualifying Assets - United Kingdom Pounds",null,null,null,null,0]
["Sch XXIII","Interest Rates",null,"Int. Up - Before Shock - Derivatives - Not Qualifying Assets - Japan Yen",null,null,null,null,0]
["Sch XXIII","Interest Rates",null,"Int. Up - Before Shock - Derivatives - Not Qualifying Assets - Canada Dollars",null,null,null,null,0]
["Sch XXIII","Interest Rates",null,"Int. Up - Before Shock - Derivatives - Not Qualifying Assets - Swiss Francs",null,null,null,null,0]
["Sch XXIII","Interest Rates",null,"Int. Up - Before Shock - Derivatives - Not Qualifying Assets - Australia Dollar",null,null,null,null,0]
["Sch XXIII","Interest Rates",null,"Int. Up - Before Shock - Derivatives - Not Qualifying Assets - New Zealand Dollar",null,null,null,null,0]
["Sch XXIII","Interest Rates",null,"Int. Up - Before Shock - Derivatives - Not Qualifying Assets - Other currency 1",null,null,null,null,0]
["Sch XXIII","Interest Rates",null,"Int. Up - Before Shock - Derivatives - Not Qualifying Assets - Other currency 2",null,null,null,null,0]
["Sch XXIII","Interest Rates",null,"Int. Up - Before Shock - Derivatives - Not Qualifying Assets - Other currency 3",null,null,null,null,0]
["Sch XXIII","Interest Rates",null,"Int. Up - Before Shock - Derivatives - Not Qualifying Assets - Other currency 4",null,null,null,null,0]
["Sch XXIII","Interest Rates",null,"Int. Up - Before Shock - Derivatives - Not Qualifying Assets - Other currency 5",null,null,null,null,0]
["Sch XXIII","Interest Rates",null,"Int. Up - Before Shock - Derivatives - Not Qualifying Assets - Other currency 6",null,null,null,null,0]
["Sch XXIII","Interest Rates",null,"Int. Up - Before Shock - Derivatives - Not Qualifying Assets - Other currency 7",null,null,null,null,0]
["Sch XXIII","Interest Rates",null,"Int. Up - Before Shock - Derivatives - Not Qualifying Assets - Other currency 8",null,null,null,null,0]
["Sch XXIII","Interest Rates",null,"Int. Up - Before Shock - Derivatives - Not Qualifying Assets - Other currency 9",null,null,null,null,0]
["Sch XXIII","Interest Rates",null,"Int. Up - Before Shock - Derivatives - Not Qualifying Assets - Other currency 10",null,null,null,null,0]
["Sch XXIII","Interest Rates",null,"Int. Up - Before Shock - Derivatives - Not Qualifying Assets - Total",null,null,null,null,0]
["Sch XXIII","Interest Rates",null,"Int. Up - After Shock - Derivatives - Not Qualifying Assets - United States Dollars",null,null,null,null,0]
["Sch XXIII","Interest Rates",null,"Int. Up - After Shock - Derivatives - Not Qualifying Assets - Euro",null,null,null,null,0]
["Sch XXIII","Interest Rates",null,"Int. Up - After Shock - Derivatives - Not Qualifying Assets - United Kingdom Pounds",null,null,null,null,0]
["Sch XXIII","Interest Rates",null,"Int. Up - After Shock - Derivatives - Not Qualifying Assets - Japan Yen",null,null,null,null,0]
["Sch XXIII","Interest Rates",null,"Int. Up - After Shock - Derivatives - Not Qualifying Assets - Canada Dollars",null,null,null,null,0]
["Sch XXIII","Interest Rates",null,"Int. Up - After Shock - Derivatives - Not Qualifying Assets - Swiss Francs",null,null,null,null,0]
["Sch XXIII","Interest Rates",null,"Int. Up - After Shock - Derivatives - Not Qualifying Assets - Australia Dollar",null,null,null,null,0]
["Sch XXIII","Interest Rates",null,"Int. Up - After Shock - Derivatives - Not Qualifying Assets - New Zealand Dollar",null,null,null,null,0]
["Sch XXIII","Interest Rates",null,"Int. Up - After Shock - Derivatives - Not Qualifying Assets - Other currency 1",null,null,null,null,0]
["Sch XXIII","Interest Rates",null,"Int. Up - After Shock - Derivatives - Not Qualifying Assets - Other currency 2",null,null,null,null,0]
["Sch XXIII","Interest Rates",null,"Int. Up - After Shock - Derivatives - Not Qualifying Assets - Other currency 3",null,null,null,null,0]
["Sch XXIII","Interest Rates",null,"Int. Up - After Shock - Derivatives - Not Qualifying Assets - Other currency 4",null,null,null,null,0]
["Sch XXIII","Interest Rates",null,"Int. Up - After Shock - Derivatives - Not Qualifying Assets - Other currency 5",null,null,null,null,0]
["Sch XXIII","Interest Rates",null,"Int. Up - After Shock - Derivatives - Not Qualifying Assets - Other currency 6",null,null,null,null,0]
["Sch XXIII","Interest Rates",null,"Int. Up - After Shock - Derivatives - Not Qualifying Assets - Other currency 7",null,null,null,null,0]
["Sch XXIII","Interest Rates",null,"Int. Up - After Shock - Derivatives - Not Qualifying Assets - Other currency 8",null,null,null,null,0]
["Sch XXIII","Interest Rates",null,"Int. Up - After Shock - Derivatives - Not Qualifying Assets - Other currency 9",null,null,null,null,0]
["Sch XXIII","Interest Rates",null,"Int. Up - After Shock - Derivatives - Not Qualifying Assets - Other currency 10",null,null,null,null,0]
["Sch XXIII","Interest Rates",null,"Int. Up - After Shock - Derivatives - Not Qualifying Assets - Total",null,null,null,null,0]
["Sch XXIII","Interest Rates",null,"Int. Up - Before Shock - Derivatives - Liab. w/o Mgmt Action - United States Dollars",null,null,null,null,0]
["Sch XXIII","Interest Rates",null,"Int. Up - Before Shock - Derivatives - Liab. w/o Mgmt Action - Euro",null,null,null,null,0]
["Sch XXIII","Interest Rates",null,"Int. Up - Before Shock - Derivatives - Liab. w/o Mgmt Action - United Kingdom Pounds",null,null,null,null,0]
["Sch XXIII","Interest Rates",null,"Int. Up - Before Shock - Derivatives - Liab. w/o Mgmt Action - Japan Yen",null,null,null,null,0]
["Sch XXIII","Interest Rates",null,"Int. Up - Before Shock - Derivatives - Liab. w/o Mgmt Action - Canada Dollars",null,null,null,null,0]
["Sch XXIII","Interest Rates",null,"Int. Up - Before Shock - Derivatives - Liab. w/o Mgmt Action - Swiss Francs",null,null,null,null,0]
["Sch XXIII","Interest Rates",null,"Int. Up - Before Shock - Derivatives - Liab. w/o Mgmt Action - Australia Dollar",null,null,null,null,0]
["Sch XXIII","Interest Rates",null,"Int. Up - Before Shock - Derivatives - Liab. w/o Mgmt Action - New Zealand Dollar",null,null,null,null,0]
["Sch XXIII","Interest Rates",null,"Int. Up - Before Shock - Derivatives - Liab. w/o Mgmt Action - Other currency 1",null,null,null,null,0]
["Sch XXIII","Interest Rates",null,"Int. Up - Before Shock - Derivatives - Liab. w/o Mgmt Action - Other currency 2",null,null,null,null,0]
["Sch XXIII","Interest Rates",null,"Int. Up - Before Shock - Derivatives - Liab. w/o Mgmt Action - Other currency 3",null,null,null,null,0]
["Sch XXIII","Interest Rates",null,"Int. Up - Before Shock - Derivatives - Liab. w/o Mgmt Action - Other currency 4",null,null,null,null,0]
["Sch XXIII","Interest Rates",null,"Int. Up - Before Shock - Derivatives - Liab. w/o Mgmt Action - Other currency 5",null,null,null,null,0]
["Sch XXIII","Interest Rates",null,"Int. Up - Before Shock - Derivatives - Liab. w/o Mgmt Action - Other currency 6",null,null,null,null,0]
["Sch XXIII","Interest Rates",null,"Int. Up - Before Shock - Derivatives - Liab. w/o Mgmt Action - Other currency 7",null,null,null,null,0]
["Sch XXIII","Interest Rates",null,"Int. Up - Before Shock - Derivatives - Liab. w/o Mgmt Action - Other currency 8",null,null,null,null,0]
["Sch XXIII","Interest Rates",null,"Int. Up - Before Shock - Derivatives - Liab. w/o Mgmt Action - Other currency 9",null,null,null,null,0]
["Sch XXIII","Interest Rates",null,"Int. Up - Before Shock - Derivatives - Liab. w/o Mgmt Action - Other currency 10",null,null,null,null,0]
["Sch XXIII","Interest Rates",null,"Int. Up - Before Shock - Derivatives - Liab. w/o Mgmt Action - Total",null,null,null,null,0]
["Sch XXIII","Interest Rates",null,"Int. Up - After Shock - Derivatives - Liab. w/o Mgmt Action - United States Dollars",null,null,null,null,0]
["Sch XXIII","Interest Rates",null,"Int. Up - After Shock - Derivatives - Liab. w/o Mgmt Action - Euro",null,null,null,null,0]
["Sch XXIII","Interest Rates",null,"Int. Up - After Shock - Derivatives - Liab. w/o Mgmt Action - United Kingdom Pounds",null,null,null,null,0]
["Sch XXIII","Interest Rates",null,"Int. Up - After Shock - Derivatives - Liab. w/o Mgmt Action - Japan Yen",null,null,null,null,0]
["Sch XXIII","Interest Rates",null,"Int. Up - After Shock - Derivatives - Liab. w/o Mgmt Action - Canada Dollars",null,null,null,null,0]
["Sch XXIII","Interest Rates",null,"Int. Up - After Shock - Derivatives - Liab. w/o Mgmt Action - Swiss Francs",null,null,null,null,0]
["Sch XXIII","Interest Rates",null,"Int. Up - After Shock - Derivatives - Liab. w/o Mgmt Action - Australia Dollar",null,null,null,null,0]
["Sch XXIII","Interest Rates",null,"Int. Up - After Shock - Derivatives - Liab. w/o Mgmt Action - New Zealand Dollar",null,null,null,null,0]
["Sch XXIII","Interest Rates",null,"Int. Up - After Shock - Derivatives - Liab. w/o Mgmt Action - Other currency 1",null,null,null,null,0]
["Sch XXIII","Interest Rates",null,"Int. Up - After Shock - Derivatives - Liab. w/o Mgmt Action - Other currency 2",null,null,null,null,0]
["Sch XXIII","Interest Rates",null,"Int. Up - After Shock - Derivatives - Liab. w/o Mgmt Action - Other currency 3",null,null,null,null,0]
["Sch XXIII","Interest Rates",null,"Int. Up - After Shock - Derivatives - Liab. w/o Mgmt Action - Other currency 4",null,null,null,null,0]
["Sch XXIII","Interest Rates",null,"Int. Up - After Shock - Derivatives - Liab. w/o Mgmt Action - Other currency 5",null,null,null,null,0]
["Sch XXIII","Interest Rates",null,"Int. Up - After Shock - Derivatives - Liab. w/o Mgmt Action - Other currency 6",null,null,null,null,0]
["Sch XXIII","Interest Rates",null,"Int. Up - After Shock - Derivatives - Liab. w/o Mgmt Action - Other currency 7",null,null,null,null,0]
["Sch XXIII","Interest Rates",null,"Int. Up - After Shock - Derivatives - Liab. w/o Mgmt Action - Other currency 8",null,null,null,null,0]
["Sch XXIII","Interest Rates",null,"Int. Up - After Shock - Derivatives - Liab. w/o Mgmt Action - Other currency 9",null,null,null,null,0]
["Sch XXIII","Interest Rates",null,"Int. Up - After Shock - Derivatives - Liab. w/o Mgmt Action - Other currency 10",null,null,null,null,0]
["Sch XXIII","Interest Rates",null,"Int. Up - After Shock - Derivatives - Liab. w/o Mgmt Action - Total",null,null,null,null,0]
["Sch XXIII","Interest Rates",null,"Int. Up - After Shock - Derivatives - Liab. with Mgmt Action - United States Dollars",null,null,null,null,0]
["Sch XXIII","Interest Rates",null,"Int. Up - After Shock - Derivatives - Liab. with Mgmt Action - Euro",null,null,null,null,0]
["Sch XXIII","Interest Rates",null,"Int. Up - After Shock - Derivatives - Liab. with Mgmt Action - United Kingdom Pounds",null,null,null,null,0]
["Sch XXIII","Interest Rates",null,"Int. Up - After Shock - Derivatives - Liab. with Mgmt Action - Japan Yen",null,null,null,null,0]
["Sch XXIII","Interest Rates",null,"Int. Up - After Shock - Derivatives - Liab. with Mgmt Action - Canada Dollars",null,null,null,null,0]
["Sch XXIII","Interest Rates",null,"Int. Up - After Shock - Derivatives - Liab. with Mgmt Action - Swiss Francs",null,null,null,null,0]
["Sch XXIII","Interest Rates",null,"Int. Up - After Shock - Derivatives - Liab. with Mgmt Action - Australia Dollar",null,null,null,null,0]
["Sch XXIII","Interest Rates",null,"Int. Up - After Shock - Derivatives - Liab. with Mgmt Action - New Zealand Dollar",null,null,null,null,0]
["Sch XXIII","Interest Rates",null,"Int. Up - After Shock - Derivatives - Liab. with Mgmt Action - Other currency 1",null,null,null,null,0]
["Sch XXIII","Interest Rates",null,"Int. Up - After Shock - Derivatives - Liab. with Mgmt Action - Other currency 2",null,null,null,null,0]
["Sch XXIII","Interest Rates",null,"Int. Up - After Shock - Derivatives - Liab. with Mgmt Action - Other currency 3",null,null,null,null,0]
["Sch XXIII","Interest Rates",null,"Int. Up - After Shock - Derivatives - Liab. with Mgmt Action - Other currency 4",null,null,null,null,0]
["Sch XXIII","Interest Rates",null,"Int. Up - After Shock - Derivatives - Liab. with Mgmt Action - Other currency 5",null,null,null,null,0]
["Sch XXIII","Interest Rates",null,"Int. Up - After Shock - Derivatives - Liab. with Mgmt Action - Other currency 6",null,null,null,null,0]
["Sch XXIII","Interest Rates",null,"Int. Up - After Shock - Derivatives - Liab. with Mgmt Action - Other currency 7",null,null,null,null,0]
["Sch XXIII","Interest Rates",null,"Int. Up - After Shock - Derivatives - Liab. with Mgmt Action - Other currency 8",null,null,null,null,0]
["Sch XXIII","Interest Rates",null,"Int. Up - After Shock - Derivatives - Liab. with Mgmt Action - Other currency 9",null,null,null,null,0]
["Sch XXIII","Interest Rates",null,"Int. Up - After Shock - Derivatives - Liab. with Mgmt Action - Other currency 10",null,null,null,null,0]
["Sch XXIII","Interest Rates",null,"Int. Up - After Shock - Derivatives - Liab. with Mgmt Action - Total",null,null,null,null,0]
[]
["Equity Grandfather","Equity Grandfather",null,"Long Positions - Before - Strategic Holdings - Listed",null,null,null,null,0]
["Equity Grandfather","Equity Grandfather",null,"Long Positions - Before - Duration Based",null,null,null,null,0]
["Equity Grandfather","Equity Grandfather",null,"Long Positions - Before - Listed Equity Securities in Developed Markets",null,null,null,null,0]
["Equity Grandfather","Equity Grandfather",null,"Long Positions - Before - Preferred Stocks, BSCR Rating 1",null,null,null,null,0]
["Equity Grandfather","Equity Grandfather",null,"Long Positions - Before - Preferred Stocks, BSCR Rating 2",null,null,null,null,0]
["Equity Grandfather","Equity Grandfather",null,"Long Positions - Before - Preferred Stocks, BSCR Rating 3",null,null,null,null,0]
["Equity Grandfather","Equity Grandfather",null,"Long Positions - Before - Preferred Stocks, BSCR Rating 4",null,null,null,null,0]
["Equity Grandfather","Equity Grandfather",null,"Long Positions - Before - Preferred Stocks, BSCR Rating 5",null,null,null,null,0]
["Equity Grandfather","Equity Grandfather",null,"Long Positions - Before - Preferred Stocks, BSCR Rating 6",null,null,null,null,0]
["Equity Grandfather","Equity Grandfather",null,"Long Positions - Before - Preferred Stocks, BSCR Rating 7",null,null,null,null,0]
["Equity Grandfather","Equity Grandfather",null,"Long Positions - Before - Preferred Stocks, BSCR Rating 8",null,null,null,null,0]
["Equity Grandfather","Equity Grandfather",null,"Long Positions - Before - Equity Derivatives on Type 1 Equities",null,null,null,null,0]
["Equity Grandfather","Equity Grandfather",null,"Long Positions - Before - Strategic Holdings - Unlisted",null,null,null,null,0]
["Equity Grandfather","Equity Grandfather",null,"Long Positions - Before - Other Equities",null,null,null,null,0]
["Equity Grandfather","Equity Grandfather",null,"Long Positions - Before - Letters of Credit",null,null,null,null,0]
["Equity Grandfather","Equity Grandfather",null,"Long Positions - Before - Intangible assets",null,null,null,null,0]
["Equity Grandfather","Equity Grandfather",null,"Long Positions - Before - Pension Benefit Surplus",null,null,null,null,0]
["Equity Grandfather","Equity Grandfather",null,"Long Positions - Before - Equity Derivatives on Type 2 Equities",null,null,null,null,0]
["Equity Grandfather","Equity Grandfather",null,"Long Positions - Before - Infrastructure",null,null,null,null,0]
["Equity Grandfather","Equity Grandfather",null,"Long Positions - Before - Derivatives on Infrastructure",null,null,null,null,0]
["Equity Grandfather","Equity Grandfather",null,"Long Positions - Before - Equity Real Estate 1",null,null,null,null,0]
["Equity Grandfather","Equity Grandfather",null,"Long Positions - Before - Equity Real Estate 2",null,null,null,null,0]
["Equity Grandfather","Equity Grandfather",null,"Long Positions - After - Strategic Holdings - Listed",null,null,null,null,0]
["Equity Grandfather","Equity Grandfather",null,"Long Positions - After - Duration Based",null,null,null,null,0]
["Equity Grandfather","Equity Grandfather",null,"Long Positions - After - Listed Equity Securities in Developed Markets",null,null,null,null,0]
["Equity Grandfather","Equity Grandfather",null,"Long Positions - After - Preferred Stocks, BSCR Rating 1",null,null,null,null,0]
["Equity Grandfather","Equity Grandfather",null,"Long Positions - After - Preferred Stocks, BSCR Rating 2",null,null,null,null,0]
["Equity Grandfather","Equity Grandfather",null,"Long Positions - After - Preferred Stocks, BSCR Rating 3",null,null,null,null,0]
["Equity Grandfather","Equity Grandfather",null,"Long Positions - After - Preferred Stocks, BSCR Rating 4",null,null,null,null,0]
["Equity Grandfather","Equity Grandfather",null,"Long Positions - After - Preferred Stocks, BSCR Rating 5",null,null,null,null,0]
["Equity Grandfather","Equity Grandfather",null,"Long Positions - After - Preferred Stocks, BSCR Rating 6",null,null,null,null,0]
["Equity Grandfather","Equity Grandfather",null,"Long Positions - After - Preferred Stocks, BSCR Rating 7",null,null,null,null,0]
["Equity Grandfather","Equity Grandfather",null,"Long Positions - After - Preferred Stocks, BSCR Rating 8",null,null,null,null,0]
["Equity Grandfather","Equity Grandfather",null,"Long Positions - After - Equity Derivatives on Type 1 Equities",null,null,null,null,0]
["Equity Grandfather","Equity Grandfather",null,"Long Positions - After - Strategic Holdings - Unlisted",null,null,null,null,0]
["Equity Grandfather","Equity Grandfather",null,"Long Positions - After - Other Equities",null,null,null,null,0]
["Equity Grandfather","Equity Grandfather",null,"Long Positions - After - Letters of Credit",null,null,null,null,0]
["Equity Grandfather","Equity Grandfather",null,"Long Positions - After - Intangible assets",null,null,null,null,0]
["Equity Grandfather","Equity Grandfather",null,"Long Positions - After - Pension Benefit Surplus",null,null,null,null,0]
["Equity Grandfather","Equity Grandfather",null,"Long Positions - After - Equity Derivatives on Type 2 Equities",null,null,null,null,0]
["Equity Grandfather","Equity Grandfather",null,"Long Positions - After - Infrastructure",null,null,null,null,0]
["Equity Grandfather","Equity Grandfather",null,"Long Positions - After - Derivatives on Infrastructure",null,null,null,null,0]
["Equity Grandfather","Equity Grandfather",null,"Long Positions - After - Equity Real Estate 1",null,null,null,null,0]
["Equity Grandfather","Equity Grandfather",null,"Long Positions - After - Equity Real Estate 2",null,null,null,null,0]
["Equity Grandfather","Equity Grandfather",null,"Short - Before - Qualified Assets - Strategic Holdings - Listed",null,null,null,null,0]
["Equity Grandfather","Equity Grandfather",null,"Short - Before - Qualified Assets - Duration Based",null,null,null,null,0]
["Equity Grandfather","Equity Grandfather",null,"Short - Before - Qualified Assets - Listed Equity Securities in Developed Markets",null,null,null,null,0]
["Equity Grandfather","Equity Grandfather",null,"Short - Before - Qualified Assets - Preferred Stocks, BSCR Rating 1",null,null,null,null,0]
["Equity Grandfather","Equity Grandfather",null,"Short - Before - Qualified Assets - Preferred Stocks, BSCR Rating 2",null,null,null,null,0]
["Equity Grandfather","Equity Grandfather",null,"Short - Before - Qualified Assets - Preferred Stocks, BSCR Rating 3",null,null,null,null,0]
["Equity Grandfather","Equity Grandfather",null,"Short - Before - Qualified Assets - Preferred Stocks, BSCR Rating 4",null,null,null,null,0]
["Equity Grandfather","Equity Grandfather",null,"Short - Before - Qualified Assets - Preferred Stocks, BSCR Rating 5",null,null,null,null,0]
["Equity Grandfather","Equity Grandfather",null,"Short - Before - Qualified Assets - Preferred Stocks, BSCR Rating 6",null,null,null,null,0]
["Equity Grandfather","Equity Grandfather",null,"Short - Before - Qualified Assets - Preferred Stocks, BSCR Rating 7",null,null,null,null,0]
["Equity Grandfather","Equity Grandfather",null,"Short - Before - Qualified Assets - Preferred Stocks, BSCR Rating 8",null,null,null,null,0]
["Equity Grandfather","Equity Grandfather",null,"Short - Before - Qualified Assets - Equity Derivatives on Type 1 Equities",null,null,null,null,0]
["Equity Grandfather","Equity Grandfather",null,"Short - Before - Qualified Assets - Strategic Holdings - Unlisted",null,null,null,null,0]
["Equity Grandfather","Equity Grandfather",null,"Short - Before - Qualified Assets - Other Equities",null,null,null,null,0]
["Equity Grandfather","Equity Grandfather",null,"Short - Before - Qualified Assets - Letters of Credit",null,null,null,null,0]
["Equity Grandfather","Equity Grandfather",null,"Short - Before - Qualified Assets - Intangible assets",null,null,null,null,0]
["Equity Grandfather","Equity Grandfather",null,"Short - Before - Qualified Assets - Pension Benefit Surplus",null,null,null,null,0]
["Equity Grandfather","Equity Grandfather",null,"Short - Before - Qualified Assets - Equity Derivatives on Type 2 Equities",null,null,null,null,0]
["Equity Grandfather","Equity Grandfather",null,"Short - Before - Qualified Assets - Infrastructure",null,null,null,null,0]
["Equity Grandfather","Equity Grandfather",null,"Short - Before - Qualified Assets - Derivatives on Infrastructure",null,null,null,null,0]
["Equity Grandfather","Equity Grandfather",null,"Short - Before - Qualified Assets - Equity Real Estate 1",null,null,null,null,0]
["Equity Grandfather","Equity Grandfather",null,"Short - Before - Qualified Assets - Equity Real Estate 2",null,null,null,null,0]
["Equity Grandfather","Equity Grandfather",null,"Short - After - Qualified Assets - Strategic Holdings - Listed",null,null,null,null,0]
["Equity Grandfather","Equity Grandfather",null,"Short - After - Qualified Assets - Duration Based",null,null,null,null,0]
["Equity Grandfather","Equity Grandfather",null,"Short - After - Qualified Assets - Listed Equity Securities in Developed Markets",null,null,null,null,0]
["Equity Grandfather","Equity Grandfather",null,"Short - After - Qualified Assets - Preferred Stocks, BSCR Rating 1",null,null,null,null,0]
["Equity Grandfather","Equity Grandfather",null,"Short - After - Qualified Assets - Preferred Stocks, BSCR Rating 2",null,null,null,null,0]
["Equity Grandfather","Equity Grandfather",null,"Short - After - Qualified Assets - Preferred Stocks, BSCR Rating 3",null,null,null,null,0]
["Equity Grandfather","Equity Grandfather",null,"Short - After - Qualified Assets - Preferred Stocks, BSCR Rating 4",null,null,null,null,0]
["Equity Grandfather","Equity Grandfather",null,"Short - After - Qualified Assets - Preferred Stocks, BSCR Rating 5",null,null,null,null,0]
["Equity Grandfather","Equity Grandfather",null,"Short - After - Qualified Assets - Preferred Stocks, BSCR Rating 6",null,null,null,null,0]
["Equity Grandfather","Equity Grandfather",null,"Short - After - Qualified Assets - Preferred Stocks, BSCR Rating 7",null,null,null,null,0]
["Equity Grandfather","Equity Grandfather",null,"Short - After - Qualified Assets - Preferred Stocks, BSCR Rating 8",null,null,null,null,0]
["Equity Grandfather","Equity Grandfather",null,"Short - After - Qualified Assets - Equity Derivatives on Type 1 Equities",null,null,null,null,0]
["Equity Grandfather","Equity Grandfather",null,"Short - After - Qualified Assets - Strategic Holdings - Unlisted",null,null,null,null,0]
["Equity Grandfather","Equity Grandfather",null,"Short - After - Qualified Assets - Other Equities",null,null,null,null,0]
["Equity Grandfather","Equity Grandfather",null,"Short - After - Qualified Assets - Letters of Credit",null,null,null,null,0]
["Equity Grandfather","Equity Grandfather",null,"Short - After - Qualified Assets - Intangible assets",null,null,null,null,0]
["Equity Grandfather","Equity Grandfather",null,"Short - After - Qualified Assets - Pension Benefit Surplus",null,null,null,null,0]
["Equity Grandfather","Equity Grandfather",null,"Short - After - Qualified Assets - Equity Derivatives on Type 2 Equities",null,null,null,null,0]
["Equity Grandfather","Equity Grandfather",null,"Short - After - Qualified Assets - Infrastructure",null,null,null,null,0]
["Equity Grandfather","Equity Grandfather",null,"Short - After - Qualified Assets - Derivatives on Infrastructure",null,null,null,null,0]
["Equity Grandfather","Equity Grandfather",null,"Short - After - Qualified Assets - Equity Real Estate 1",null,null,null,null,0]
["Equity Grandfather","Equity Grandfather",null,"Short - After - Qualified Assets - Equity Real Estate 2",null,null,null,null,0]
["Equity Grandfather","Equity Grandfather",null,"Short - Before - UnQualified Assets - Strategic Holdings - Listed",null,null,null,null,0]
["Equity Grandfather","Equity Grandfather",null,"Short - Before - UnQualified Assets - Duration Based",null,null,null,null,0]
["Equity Grandfather","Equity Grandfather",null,"Short - Before - UnQualified Assets - Listed Equity Securities in Developed Markets",null,null,null,null,0]
["Equity Grandfather","Equity Grandfather",null,"Short - Before - UnQualified Assets - Preferred Stocks, BSCR Rating 1",null,null,null,null,0]
["Equity Grandfather","Equity Grandfather",null,"Short - Before - UnQualified Assets - Preferred Stocks, BSCR Rating 2",null,null,null,null,0]
["Equity Grandfather","Equity Grandfather",null,"Short - Before - UnQualified Assets - Preferred Stocks, BSCR Rating 3",null,null,null,null,0]
["Equity Grandfather","Equity Grandfather",null,"Short - Before - UnQualified Assets - Preferred Stocks, BSCR Rating 4",null,null,null,null,0]
["Equity Grandfather","Equity Grandfather",null,"Short - Before - UnQualified Assets - Preferred Stocks, BSCR Rating 5",null,null,null,null,0]
["Equity Grandfather","Equity Grandfather",null,"Short - Before - UnQualified Assets - Preferred Stocks, BSCR Rating 6",null,null,null,null,0]
["Equity Grandfather","Equity Grandfather",null,"Short - Before - UnQualified Assets - Preferred Stocks, BSCR Rating 7",null,null,null,null,0]
["Equity Grandfather","Equity Grandfather",null,"Short - Before - UnQualified Assets - Preferred Stocks, BSCR Rating 8",null,null,null,null,0]
["Equity Grandfather","Equity Grandfather",null,"Short - Before - UnQualified Assets - Equity Derivatives on Type 1 Equities",null,null,null,null,0]
["Equity Grandfather","Equity Grandfather",null,"Short - Before - UnQualified Assets - Strategic Holdings - Unlisted",null,null,null,null,0]
["Equity Grandfather","Equity Grandfather",null,"Short - Before - UnQualified Assets - Other Equities",null,null,null,null,0]
["Equity Grandfather","Equity Grandfather",null,"Short - Before - UnQualified Assets - Letters of Credit",null,null,null,null,0]
["Equity Grandfather","Equity Grandfather",null,"Short - Before - UnQualified Assets - Intangible assets",null,null,null,null,0]
["Equity Grandfather","Equity Grandfather",null,"Short - Before - UnQualified Assets - Pension Benefit Surplus",null,null,null,null,0]
["Equity Grandfather","Equity Grandfather",null,"Short - Before - UnQualified Assets - Equity Derivatives on Type 2 Equities",null,null,null,null,0]
["Equity Grandfather","Equity Grandfather",null,"Short - Before - UnQualified Assets - Infrastructure",null,null,null,null,0]
["Equity Grandfather","Equity Grandfather",null,"Short - Before - UnQualified Assets - Derivatives on Infrastructure",null,null,null,null,0]
["Equity Grandfather","Equity Grandfather",null,"Short - Before - UnQualified Assets - Equity Real Estate 1",null,null,null,null,0]
["Equity Grandfather","Equity Grandfather",null,"Short - Before - UnQualified Assets - Equity Real Estate 2",null,null,null,null,0]
["Equity Grandfather","Equity Grandfather",null,"Short - After - UnQualified Assets - Strategic Holdings - Listed",null,null,null,null,0]
["Equity Grandfather","Equity Grandfather",null,"Short - After - UnQualified Assets - Duration Based",null,null,null,null,0]
["Equity Grandfather","Equity Grandfather",null,"Short - After - UnQualified Assets - Listed Equity Securities in Developed Markets",null,null,null,null,0]
["Equity Grandfather","Equity Grandfather",null,"Short - After - UnQualified Assets - Preferred Stocks, BSCR Rating 1",null,null,null,null,0]
["Equity Grandfather","Equity Grandfather",null,"Short - After - UnQualified Assets - Preferred Stocks, BSCR Rating 2",null,null,null,null,0]
["Equity Grandfather","Equity Grandfather",null,"Short - After - UnQualified Assets - Preferred Stocks, BSCR Rating 3",null,null,null,null,0]
["Equity Grandfather","Equity Grandfather",null,"Short - After - UnQualified Assets - Preferred Stocks, BSCR Rating 4",null,null,null,null,0]
["Equity Grandfather","Equity Grandfather",null,"Short - After - UnQualified Assets - Preferred Stocks, BSCR Rating 5",null,null,null,null,0]
["Equity Grandfather","Equity Grandfather",null,"Short - After - UnQualified Assets - Preferred Stocks, BSCR Rating 6",null,null,null,null,0]
["Equity Grandfather","Equity Grandfather",null,"Short - After - UnQualified Assets - Preferred Stocks, BSCR Rating 7",null,null,null,null,0]
["Equity Grandfather","Equity Grandfather",null,"Short - After - UnQualified Assets - Preferred Stocks, BSCR Rating 8",null,null,null,null,0]
["Equity Grandfather","Equity Grandfather",null,"Short - After - UnQualified Assets - Equity Derivatives on Type 1 Equities",null,null,null,null,0]
["Equity Grandfather","Equity Grandfather",null,"Short - After - UnQualified Assets - Strategic Holdings - Unlisted",null,null,null,null,0]
["Equity Grandfather","Equity Grandfather",null,"Short - After - UnQualified Assets - Other Equities",null,null,null,null,0]
["Equity Grandfather","Equity Grandfather",null,"Short - After - UnQualified Assets - Letters of Credit",null,null,null,null,0]
["Equity Grandfather","Equity Grandfather",null,"Short - After - UnQualified Assets - Intangible assets",null,null,null,null,0]
["Equity Grandfather","Equity Grandfather",null,"Short - After - UnQualified Assets - Pension Benefit Surplus",null,null,null,null,0]
["Equity Grandfather","Equity Grandfather",null,"Short - After - UnQualified Assets - Equity Derivatives on Type 2 Equities",null,null,null,null,0]
["Equity Grandfather","Equity Grandfather",null,"Short - After - UnQualified Assets - Infrastructure",null,null,null,null,0]
["Equity Grandfather","Equity Grandfather",null,"Short - After - UnQualified Assets - Derivatives on Infrastructure",null,null,null,null,0]
["Equity Grandfather","Equity Grandfather",null,"Short - After - UnQualified Assets - Equity Real Estate 1",null,null,null,null,0]
["Equity Grandfather","Equity Grandfather",null,"Short - After - UnQualified Assets - Equity Real Estate 2",null,null,null,null,0]
["Equity Grandfather","Equity Grandfather",null,"Liabilities - Before - W/O Mgmt Actions - Strategic Holdings - Listed",null,null,null,null,0]
["Equity Grandfather","Equity Grandfather",null,"Liabilities - Before - W/O Mgmt Actions - Duration Based",null,null,null,null,0]
["Equity Grandfather","Equity Grandfather",null,"Liabilities - Before - W/O Mgmt Actions - Listed Equity Securities in Developed Markets",null,null,null,null,0]
["Equity Grandfather","Equity Grandfather",null,"Liabilities - Before - W/O Mgmt Actions - Preferred Stocks, BSCR Rating 1",null,null,null,null,0]
["Equity Grandfather","Equity Grandfather",null,"Liabilities - Before - W/O Mgmt Actions - Preferred Stocks, BSCR Rating 2",null,null,null,null,0]
["Equity Grandfather","Equity Grandfather",null,"Liabilities - Before - W/O Mgmt Actions - Preferred Stocks, BSCR Rating 3",null,null,null,null,0]
["Equity Grandfather","Equity Grandfather",null,"Liabilities - Before - W/O Mgmt Actions - Preferred Stocks, BSCR Rating 4",null,null,null,null,0]
["Equity Grandfather","Equity Grandfather",null,"Liabilities - Before - W/O Mgmt Actions - Preferred Stocks, BSCR Rating 5",null,null,null,null,0]
["Equity Grandfather","Equity Grandfather",null,"Liabilities - Before - W/O Mgmt Actions - Preferred Stocks, BSCR Rating 6",null,null,null,null,0]
["Equity Grandfather","Equity Grandfather",null,"Liabilities - Before - W/O Mgmt Actions - Preferred Stocks, BSCR Rating 7",null,null,null,null,0]
["Equity Grandfather","Equity Grandfather",null,"Liabilities - Before - W/O Mgmt Actions - Preferred Stocks, BSCR Rating 8",null,null,null,null,0]
["Equity Grandfather","Equity Grandfather",null,"Liabilities - Before - W/O Mgmt Actions - Equity Derivatives on Type 1 Equities",null,null,null,null,0]
["Equity Grandfather","Equity Grandfather",null,"Liabilities - Before - W/O Mgmt Actions - Strategic Holdings - Unlisted",null,null,null,null,0]
["Equity Grandfather","Equity Grandfather",null,"Liabilities - Before - W/O Mgmt Actions - Other Equities",null,null,null,null,0]
["Equity Grandfather","Equity Grandfather",null,"Liabilities - Before - W/O Mgmt Actions - Letters of Credit",null,null,null,null,0]
["Equity Grandfather","Equity Grandfather",null,"Liabilities - Before - W/O Mgmt Actions - Intangible assets",null,null,null,null,0]
["Equity Grandfather","Equity Grandfather",null,"Liabilities - Before - W/O Mgmt Actions - Pension Benefit Surplus",null,null,null,null,0]
["Equity Grandfather","Equity Grandfather",null,"Liabilities - Before - W/O Mgmt Actions - Equity Derivatives on Type 2 Equities",null,null,null,null,0]
["Equity Grandfather","Equity Grandfather",null,"Liabilities - Before - W/O Mgmt Actions - Infrastructure",null,null,null,null,0]
["Equity Grandfather","Equity Grandfather",null,"Liabilities - Before - W/O Mgmt Actions - Derivatives on Infrastructure",null,null,null,null,0]
["Equity Grandfather","Equity Grandfather",null,"Liabilities - Before - W/O Mgmt Actions - Equity Real Estate 1",null,null,null,null,0]
["Equity Grandfather","Equity Grandfather",null,"Liabilities - Before - W/O Mgmt Actions - Equity Real Estate 2",null,null,null,null,0]
["Equity Grandfather","Equity Grandfather",null,"Liabilities - After - W/O Mgmt Actions - Strategic Holdings - Listed",null,null,null,null,0]
["Equity Grandfather","Equity Grandfather",null,"Liabilities - After - W/O Mgmt Actions - Duration Based",null,null,null,null,0]
["Equity Grandfather","Equity Grandfather",null,"Liabilities - After - W/O Mgmt Actions - Listed Equity Securities in Developed Markets",null,null,null,null,0]
["Equity Grandfather","Equity Grandfather",null,"Liabilities - After - W/O Mgmt Actions - Preferred Stocks, BSCR Rating 1",null,null,null,null,0]
["Equity Grandfather","Equity Grandfather",null,"Liabilities - After - W/O Mgmt Actions - Preferred Stocks, BSCR Rating 2",null,null,null,null,0]
["Equity Grandfather","Equity Grandfather",null,"Liabilities - After - W/O Mgmt Actions - Preferred Stocks, BSCR Rating 3",null,null,null,null,0]
["Equity Grandfather","Equity Grandfather",null,"Liabilities - After - W/O Mgmt Actions - Preferred Stocks, BSCR Rating 4",null,null,null,null,0]
["Equity Grandfather","Equity Grandfather",null,"Liabilities - After - W/O Mgmt Actions - Preferred Stocks, BSCR Rating 5",null,null,null,null,0]
["Equity Grandfather","Equity Grandfather",null,"Liabilities - After - W/O Mgmt Actions - Preferred Stocks, BSCR Rating 6",null,null,null,null,0]
["Equity Grandfather","Equity Grandfather",null,"Liabilities - After - W/O Mgmt Actions - Preferred Stocks, BSCR Rating 7",null,null,null,null,0]
["Equity Grandfather","Equity Grandfather",null,"Liabilities - After - W/O Mgmt Actions - Preferred Stocks, BSCR Rating 8",null,null,null,null,0]
["Equity Grandfather","Equity Grandfather",null,"Liabilities - After - W/O Mgmt Actions - Equity Derivatives on Type 1 Equities",null,null,null,null,0]
["Equity Grandfather","Equity Grandfather",null,"Liabilities - After - W/O Mgmt Actions - Strategic Holdings - Unlisted",null,null,null,null,0]
["Equity Grandfather","Equity Grandfather",null,"Liabilities - After - W/O Mgmt Actions - Other Equities",null,null,null,null,0]
["Equity Grandfather","Equity Grandfather",null,"Liabilities - After - W/O Mgmt Actions - Letters of Credit",null,null,null,null,0]
["Equity Grandfather","Equity Grandfather",null,"Liabilities - After - W/O Mgmt Actions - Intangible assets",null,null,null,null,0]
["Equity Grandfather","Equity Grandfather",null,"Liabilities - After - W/O Mgmt Actions - Pension Benefit Surplus",null,null,null,null,0]
["Equity Grandfather","Equity Grandfather",null,"Liabilities - After - W/O Mgmt Actions - Equity Derivatives on Type 2 Equities",null,null,null,null,0]
["Equity Grandfather","Equity Grandfather",null,"Liabilities - After - W/O Mgmt Actions - Infrastructure",null,null,null,null,0]
["Equity Grandfather","Equity Grandfather",null,"Liabilities - After - W/O Mgmt Actions - Derivatives on Infrastructure",null,null,null,null,0]
["Equity Grandfather","Equity Grandfather",null,"Liabilities - After - W/O Mgmt Actions - Equity Real Estate 1",null,null,null,null,0]
["Equity Grandfather","Equity Grandfather",null,"Liabilities - After - W/O Mgmt Actions - Equity Real Estate 2",null,null,null,null,0]
["Equity Grandfather","Equity Grandfather",null,"Liabilities - After - With Mgmt Actions - Strategic Holdings - Listed",null,null,null,null,0]
["Equity Grandfather","Equity Grandfather",null,"Liabilities - After - With Mgmt Actions - Duration Based",null,null,null,null,0]
["Equity Grandfather","Equity Grandfather",null,"Liabilities - After - With Mgmt Actions - Listed Equity Securities in Developed Markets",null,null,null,null,0]
["Equity Grandfather","Equity Grandfather",null,"Liabilities - After - With Mgmt Actions - Preferred Stocks, BSCR Rating 1",null,null,null,null,0]
["Equity Grandfather","Equity Grandfather",null,"Liabilities - After - With Mgmt Actions - Preferred Stocks, BSCR Rating 2",null,null,null,null,0]
["Equity Grandfather","Equity Grandfather",null,"Liabilities - After - With Mgmt Actions - Preferred Stocks, BSCR Rating 3",null,null,null,null,0]
["Equity Grandfather","Equity Grandfather",null,"Liabilities - After - With Mgmt Actions - Preferred Stocks, BSCR Rating 4",null,null,null,null,0]
["Equity Grandfather","Equity Grandfather",null,"Liabilities - After - With Mgmt Actions - Preferred Stocks, BSCR Rating 5",null,null,null,null,0]
["Equity Grandfather","Equity Grandfather",null,"Liabilities - After - With Mgmt Actions - Preferred Stocks, BSCR Rating 6",null,null,null,null,0]
["Equity Grandfather","Equity Grandfather",null,"Liabilities - After - With Mgmt Actions - Preferred Stocks, BSCR Rating 7",null,null,null,null,0]
["Equity Grandfather","Equity Grandfather",null,"Liabilities - After - With Mgmt Actions - Preferred Stocks, BSCR Rating 8",null,null,null,null,0]
["Equity Grandfather","Equity Grandfather",null,"Liabilities - After - With Mgmt Actions - Equity Derivatives on Type 1 Equities",null,null,null,null,0]
["Equity Grandfather","Equity Grandfather",null,"Liabilities - After - With Mgmt Actions - Strategic Holdings - Unlisted",null,null,null,null,0]
["Equity Grandfather","Equity Grandfather",null,"Liabilities - After - With Mgmt Actions - Other Equities",null,null,null,null,0]
["Equity Grandfather","Equity Grandfather",null,"Liabilities - After - With Mgmt Actions - Letters of Credit",null,null,null,null,0]
["Equity Grandfather","Equity Grandfather",null,"Liabilities - After - With Mgmt Actions - Intangible assets",null,null,null,null,0]
["Equity Grandfather","Equity Grandfather",null,"Liabilities - After - With Mgmt Actions - Pension Benefit Surplus",null,null,null,null,0]
["Equity Grandfather","Equity Grandfather",null,"Liabilities - After - With Mgmt Actions - Equity Derivatives on Type 2 Equities",null,null,null,null,0]
["Equity Grandfather","Equity Grandfather",null,"Liabilities - After - With Mgmt Actions - Infrastructure",null,null,null,null,0]
["Equity Grandfather","Equity Grandfather",null,"Liabilities - After - With Mgmt Actions - Derivatives on Infrastructure",null,null,null,null,0]
["Equity Grandfather","Equity Grandfather",null,"Liabilities - After - With Mgmt Actions - Equity Real Estate 1",null,null,null,null,0]
["Equity Grandfather","Equity Grandfather",null,"Liabilities - After - With Mgmt Actions - Equity Real Estate 2",null,null,null,null,0]
[]
["Equity Grandfather","Equity Grandfather",null,"Common Shares - Quoted",null,null,null,null,0]
["Equity Grandfather","Equity Grandfather",null,"Common Shares - Unquoted",null,null,null,null,0]
["Equity Grandfather","Equity Grandfather",null,"Equity Mutual Funds",null,null,null,null,0]
["Equity Grandfather","Equity Grandfather",null,"Preferred Shares - BSCR Rate 1",null,null,null,null,0]
["Equity Grandfather","Equity Grandfather",null,"Preferred Shares - BSCR Rate 2",null,null,null,null,0]
["Equity Grandfather","Equity Grandfather",null,"Preferred Shares - BSCR Rate 3",null,null,null,null,0]
["Equity Grandfather","Equity Grandfather",null,"Preferred Shares - BSCR Rate 4",null,null,null,null,0]
["Equity Grandfather","Equity Grandfather",null,"Preferred Shares - BSCR Rate 5",null,null,null,null,0]
["Equity Grandfather","Equity Grandfather",null,"Preferred Shares - BSCR Rate 6",null,null,null,null,0]
["Equity Grandfather","Equity Grandfather",null,"Preferred Shares - BSCR Rate 7",null,null,null,null,0]
["Equity Grandfather","Equity Grandfather",null,"Preferred Shares - BSCR Rate 8",null,null,null,null,0]
["Equity Grandfather","Equity Grandfather",null,"Real Estate - Occupied by Company",null,null,null,null,0]
["Equity Grandfather","Equity Grandfather",null,"Real Estate - Other",null,null,null,null,0]
["Equity Grandfather","Equity Grandfather",null,"Other Investments",null,null,null,null,0]
["Equity Grandfather","Equity Grandfather",null,"Sundry Assets",null,null,null,null,0]
["Equity Grandfather","Equity Grandfather",null,"Inv. In Affiliates - Unregulated Ancillary",null,null,null,null,0]
["Equity Grandfather","Equity Grandfather",null,"Inv. In Affiliates - Unregulated Non-Fin. Oper.",null,null,null,null,0]
["Equity Grandfather","Equity Grandfather",null,"Inv. In Affiliates - Unregulated Fin. Operating",null,null,null,null,0]
["Equity Grandfather","Equity Grandfather",null,"Inv. In Affiliates - Regulated Insurance",null,null,null,null,0]

{"sheet":"Export","index":8,"n_rows":43047,"n_cols":11,"rows_kept":4500,"cut":true,"hidden":false,"merged":[[0,4,0,6],[0,8,0,10]],"bounds":{"rows_first":2000,"rows_last":500,"rows_between":2000,"halvings":0}}
[null,null,null,null,"Consolidated",null,null,null,"EBS"]
["Sheet Name","Sheet Short Description","Field Code","Field Description",{"$f":"YEAR('Group Information'!$C$3)","v":2023},null,{"$f":"E2-1","v":2022},null,{"$f":"YEAR('Group Information'!$C$3)","v":2023},null,{"$f":"I2-1","v":2022}]
["Summary",null,null,"Comments",{"$f":"+Submission!B15","v":0}]
[]
[null,null,null,"Balance Sheet"]
["Form 1/1EBS","Balance Sheet CON/EBS","1F1","Cash and Cash Equivalents",{"$f":"'Form 1'!F10","v":0},null,{"$f":"'Form 1'!H10","v":0},null,{"$f":"'Form 1EBS'!F10","v":0},null,{"$f":"'Form 1EBS'!H10","v":0}]
["Form 1/1EBS","Balance Sheet CON/EBS","1F2ai","Quoted - Bonds - Held to Maturity",{"$f":"'Form 1'!F14","v":0},null,{"$f":"'Form 1'!H14","v":0}]
["Form 1/1EBS","Balance Sheet CON/EBS","1F2aii","Quoted - Bonds - Other",{"$f":"'Form 1'!F15","v":0},null,{"$f":"'Form 1'!H15","v":0}]
["Form 1/1EBS","Balance Sheet CON/EBS","1EBS2b","Quoted - Bonds - Total",null,null,null,null,{"$f":"'Form 1EBS'!F14","v":0},null,{"$f":"'Form 1EBS'!H14","v":0}]
["Form 1/1EBS","Balance Sheet CON/EBS","1F2ci","Quoted - Equities - Common Stocks",{"$f":"'Form 1'!F18","v":0},null,{"$f":"'Form 1'!H18","v":0},null,{"$f":"'Form 1EBS'!F16","v":0},null,{"$f":"'Form 1EBS'!H16","v":0}]
["Form 1/1EBS","Balance Sheet CON/EBS","1F2cii","Quoted - Equities - Preferred Stocks",{"$f":"'Form 1'!F19","v":0},null,{"$f":"'Form 1'!H19","v":0},null,{"$f":"'Form 1EBS'!F17","v":0},null,{"$f":"'Form 1EBS'!H17","v":0}]
["Form 1/1EBS","Balance Sheet CON/EBS","1F2ciii","Quoted - Equities - Mutual Funds",{"$f":"'Form 1'!F20","v":0},null,{"$f":"'Form 1'!H20","v":0},null,{"$f":"'Form 1EBS'!F18","v":0},null,{"$f":"'Form 1EBS'!H18","v":0}]
["Form 1/1EBS","Balance Sheet CON/EBS","1F2e","Quoted - Other Investments",{"$f":"'Form 1'!F22","v":0},null,{"$f":"'Form 1'!H22","v":0},null,{"$f":"'Form 1EBS'!F20","v":0},null,{"$f":"'Form 1EBS'!H20","v":0}]
["Form 1/1EBS","Balance Sheet CON/EBS","1F3ai","Unquoted - Bonds - Held to Maturity",{"$f":"'Form 1'!F27","v":0},null,{"$f":"'Form 1'!H27","v":0}]
["Form 1/1EBS","Balance Sheet CON/EBS","1F3aii","Unquoted - Bonds - Other",{"$f":"'Form 1'!F28","v":0},null,{"$f":"'Form 1'!H28","v":0}]
["Form 1/1EBS","Balance Sheet CON/EBS","1EBS3b","Unquoted - Bonds - Held to Maturity",null,null,null,null,{"$f":"'Form 1EBS'!F25","v":0},null,{"$f":"'Form 1EBS'!H25","v":0}]
["Form 1/1EBS","Balance Sheet CON/EBS","1F3ci","Unquoted - Equities - Common Stocks",{"$f":"'Form 1'!F31","v":0},null,{"$f":"'Form 1'!H31","v":0},null,{"$f":"'Form 1EBS'!F27","v":0},null,{"$f":"'Form 1EBS'!H27","v":0}]
["Form 1/1EBS","Balance Sheet CON/EBS","1F3cii","Unquoted - Equities - Preferred Stocks",{"$f":"'Form 1'!F32","v":0},null,{"$f":"'Form 1'!H32","v":0},null,{"$f":"'Form 1EBS'!F28","v":0},null,{"$f":"'Form 1EBS'!H28","v":0}]
["Form 1/1EBS","Balance Sheet CON/EBS","1F3ciii","Unquoted - Equities - Mutual Funds",{"$f":"'Form 1'!F33","v":0},null,{"$f":"'Form 1'!H33","v":0},null,{"$f":"'Form 1EBS'!F29","v":0},null,{"$f":"'Form 1EBS'!H29","v":0}]
["Form 1/1EBS","Balance Sheet CON/EBS","1F3e","Unquoted - Other Investments",{"$f":"'Form 1'!F35","v":0},null,{"$f":"'Form 1'!H35","v":0},null,{"$f":"'Form 1EBS'!F31","v":0},null,{"$f":"'Form 1EBS'!H31","v":0}]
["Form 1/1EBS","Balance Sheet CON/EBS","1F4a","Inv. In Affiliates - Unregulated Ancillary",{"$f":"'Form 1'!F39","v":0},null,{"$f":"'Form 1'!H39","v":0},null,{"$f":"'Form 1EBS'!F35","v":0},null,{"$f":"'Form 1EBS'!H35","v":0}]
["Form 1/1EBS","Balance Sheet CON/EBS","1F4b","Inv. In Affiliates - Unregulated Non-Fin. Oper.",{"$f":"'Form 1'!F40","v":0},null,{"$f":"'Form 1'!H40","v":0},null,{"$f":"'Form 1EBS'!F36","v":0},null,{"$f":"'Form 1EBS'!H36","v":0}]
["Form 1/1EBS","Balance Sheet CON/EBS","1F4c","Inv. In Affiliates - Unregulated Fin. Operating",{"$f":"'Form 1'!F41","v":0},null,{"$f":"'Form 1'!H41","v":0},null,{"$f":"'Form 1EBS'!F37","v":0},null,{"$f":"'Form 1EBS'!H37","v":0}]
["Form 1/1EBS","Balance Sheet CON/EBS","1F4d","Inv. In Affiliates - Regulated Non-Insurance",{"$f":"'Form 1'!F42","v":0},null,{"$f":"'Form 1'!H42","v":0},null,{"$f":"'Form 1EBS'!F38","v":0},null,{"$f":"'Form 1EBS'!H38","v":0}]
["Form 1/1EBS","Balance Sheet CON/EBS","1F4e","Inv. In Affiliates - Regulated Insurance",{"$f":"'Form 1'!F43","v":0},null,{"$f":"'Form 1'!H43","v":0},null,{"$f":"'Form 1EBS'!F39","v":0},null,{"$f":"'Form 1EBS'!H39","v":0}]
["Form 1/1EBS","Balance Sheet CON/EBS","1F4g","Advances To Affiliates",{"$f":"'Form 1'!F45","v":0},null,{"$f":"'Form 1'!H45","v":0},null,{"$f":"'Form 1EBS'!F41","v":0},null,{"$f":"'Form 1EBS'!H41","v":0}]
["Form 1/1EBS","Balance Sheet CON/EBS","1F5a","Inv. In Mortg. Loans on Real Estate - 1st Lien",{"$f":"'Form 1'!F49","v":0},null,{"$f":"'Form 1'!H49","v":0},null,{"$f":"'Form 1EBS'!F45","v":0},null,{"$f":"'Form 1EBS'!H45","v":0}]
["Form 1/1EBS","Balance Sheet CON/EBS","1F5b","Inv. In Mortg. Loans on Real Estate - Other",{"$f":"'Form 1'!F50","v":0},null,{"$f":"'Form 1'!H50","v":0},null,{"$f":"'Form 1EBS'!F46","v":0},null,{"$f":"'Form 1EBS'!H46","v":0}]
["Form 1/1EBS","Balance Sheet CON/EBS","1F6","Policy Loans",{"$f":"'Form 1'!F53","v":0},null,{"$f":"'Form 1'!H53","v":0},null,{"$f":"'Form 1EBS'!F49","v":0},null,{"$f":"'Form 1EBS'!H49","v":0}]
["Form 1/1EBS","Balance Sheet CON/EBS","1F7a","Real Estate - Occupied by Company",{"$f":"'Form 1'!F56","v":0},null,{"$f":"'Form 1'!H56","v":0},null,{"$f":"'Form 1EBS'!F52","v":0},null,{"$f":"'Form 1EBS'!H52","v":0}]
["Form 1/1EBS","Balance Sheet CON/EBS","1F7b","Real Estate - Other",{"$f":"'Form 1'!F57","v":0},null,{"$f":"'Form 1'!H57","v":0},null,{"$f":"'Form 1EBS'!F53","v":0},null,{"$f":"'Form 1EBS'!H53","v":0}]
["Form 1/1EBS","Balance Sheet CON/EBS","1F8","Collateral Loans",{"$f":"'Form 1'!F60","v":0},null,{"$f":"'Form 1'!H60","v":0},null,{"$f":"'Form 1EBS'!F56","v":0},null,{"$f":"'Form 1EBS'!H56","v":0}]
["Form 1/1EBS","Balance Sheet CON/EBS","1F9","Investment Income Due and Accrued",{"$f":"'Form 1'!F62","v":0},null,{"$f":"'Form 1'!H62","v":0},null,{"$f":"'Form 1EBS'!F58","v":0},null,{"$f":"'Form 1EBS'!H58","v":0}]
["Form 1/1EBS","Balance Sheet CON/EBS","1F10a","Accounts & Premium Rec. - In Collection",{"$f":"'Form 1'!F65","v":0},null,{"$f":"'Form 1'!H65","v":0},null,{"$f":"'Form 1EBS'!F61","v":0},null,{"$f":"'Form 1EBS'!H61","v":0}]
["Form 1/1EBS","Balance Sheet CON/EBS","1F10b","Accounts & Premium Rec. - Not Yet Due ",{"$f":"'Form 1'!F66","v":0},null,{"$f":"'Form 1'!H66","v":0}]
["Form 1/1EBS","Balance Sheet CON/EBS","1F10c","Accounts & Premium Rec. - Retro. Contracts",{"$f":"'Form 1'!F67","v":0},null,{"$f":"'Form 1'!H67","v":0},null,{"$f":"'Form 1EBS'!F62","v":0},null,{"$f":"'Form 1EBS'!H62","v":0}]
["Form 1/1EBS","Balance Sheet CON/EBS","1F11a","R/I Balances Receivable - Foreign Affiliates",{"$f":"'Form 1'!F71","v":0},null,{"$f":"'Form 1'!H71","v":0},null,{"$f":"'Form 1EBS'!F66","v":0},null,{"$f":"'Form 1EBS'!H66","v":0}]
["Form 1/1EBS","Balance Sheet CON/EBS","1F11b","R/I Balances Receivable - Domestic Affiliates",{"$f":"'Form 1'!F72","v":0},null,{"$f":"'Form 1'!H72","v":0},null,{"$f":"'Form 1EBS'!F67","v":0},null,{"$f":"'Form 1EBS'!H67","v":0}]
["Form 1/1EBS","Balance Sheet CON/EBS","1F11c","R/I Balances Receivable - Pools & Assoc.",{"$f":"'Form 1'!F73","v":0},null,{"$f":"'Form 1'!H73","v":0},null,{"$f":"'Form 1EBS'!F68","v":0},null,{"$f":"'Form 1EBS'!H68","v":0}]
["Form 1/1EBS","Balance Sheet CON/EBS","1F11d","R/I Balances Receivable - All Other",{"$f":"'Form 1'!F74","v":0},null,{"$f":"'Form 1'!H74","v":0},null,{"$f":"'Form 1EBS'!F69","v":0},null,{"$f":"'Form 1EBS'!H69","v":0}]
["Form 1/1EBS","Balance Sheet CON/EBS","1EBS12a","Funds Held by Ceding Companies - Affiliates",null,null,null,null,{"$f":"'Form 1EBS'!F73","v":0},null,{"$f":"'Form 1EBS'!H73","v":0}]
["Form 1/1EBS","Balance Sheet CON/EBS","1EBS12b","Funds Held by Ceding Companies - Non-Aff.",null,null,null,null,{"$f":"'Form 1EBS'!F74","v":0},null,{"$f":"'Form 1EBS'!H74","v":0}]
["Form 1/1EBS","Balance Sheet CON/EBS","1F12","Funds Held by Ceding Companies ",{"$f":"'Form 1'!F77","v":0},null,{"$f":"'Form 1'!H77","v":0}]
["Form 1/1EBS","Balance Sheet CON/EBS","1F13a","Sundry Assets - Derivatives",{"$f":"'Form 1'!F80","v":0},null,{"$f":"'Form 1'!H80","v":0},null,{"$f":"'Form 1EBS'!F78","v":0},null,{"$f":"'Form 1EBS'!H78","v":0}]
["Form 1/1EBS","Balance Sheet CON/EBS","1F13b","Sundry Assets - SAC - LT- Variable Annuities",{"$f":"'Form 1'!F81","v":0},null,{"$f":"'Form 1'!H81","v":0},null,{"$f":"'Form 1EBS'!F79","v":0},null,{"$f":"'Form 1EBS'!H79","v":0}]
["Form 1/1EBS","Balance Sheet CON/EBS","1F13c","Sundry Assets - SAC - LT- Others",{"$f":"'Form 1'!F82","v":0},null,{"$f":"'Form 1'!H82","v":0},null,{"$f":"'Form 1EBS'!F80","v":0},null,{"$f":"'Form 1EBS'!H80","v":0}]
["Form 1/1EBS","Balance Sheet CON/EBS","1F13d","Sundry Assets - SAC - General Business",{"$f":"'Form 1'!F83","v":0},null,{"$f":"'Form 1'!H83","v":0},null,{"$f":"'Form 1EBS'!F81","v":0},null,{"$f":"'Form 1EBS'!H81","v":0}]
["Form 1/1EBS","Balance Sheet CON/EBS","1F13e","Sundry Assets - Deposit Assets",{"$f":"'Form 1'!F84","v":0},null,{"$f":"'Form 1'!H84","v":0},null,{"$f":"'Form 1EBS'!F82","v":0},null,{"$f":"'Form 1EBS'!H82","v":0}]
["Form 1/1EBS","Balance Sheet CON/EBS","1EBS13f","Sundry Assets - Net Rec. for Investments",null,null,null,null,{"$f":"'Form 1EBS'!F83","v":0},null,{"$f":"'Form 1EBS'!H83","v":0}]
["Form 1/1EBS","Balance Sheet CON/EBS","1EBS13g","Sundry Assets - Intangible Assets",null,null,null,null,{"$f":"'Form 1EBS'!F84","v":0},null,{"$f":"'Form 1EBS'!H84","v":0}]
["Form 1/1EBS","Balance Sheet CON/EBS","1EBS13h","Sundry Assets - Deferred Tax Assets",null,null,null,null,{"$f":"'Form 1EBS'!F85","v":0},null,{"$f":"'Form 1EBS'!H85","v":0}]
["Form 1/1EBS","Balance Sheet CON/EBS","1EBS13i","Sundry Assets - Pension Benefit Surplus",null,null,null,null,{"$f":"'Form 1EBS'!F86","v":0},null,{"$f":"'Form 1EBS'!H86","v":0}]
["Form 1/1EBS","Balance Sheet CON/EBS","1F13f","Sundry Assets - Other ",{"$f":"'Form 1'!F85","v":0},null,{"$f":"'Form 1'!H85","v":0},null,{"$f":"'Form 1EBS'!F87","v":0},null,{"$f":"'Form 1EBS'!H87","v":0}]
["Form 1/1EBS","Balance Sheet CON/EBS","1F14a","Letters of Credit",{"$f":"'Form 1'!F89","v":0},null,{"$f":"'Form 1'!H89","v":0},null,{"$f":"'Form 1EBS'!F91","v":0},null,{"$f":"'Form 1EBS'!H91","v":0}]
["Form 1/1EBS","Balance Sheet CON/EBS","1F14b","Guarantees",{"$f":"'Form 1'!F90","v":0},null,{"$f":"'Form 1'!H90","v":0},null,{"$f":"'Form 1EBS'!F92","v":0},null,{"$f":"'Form 1EBS'!H92","v":0}]
["Form 1/1EBS","Balance Sheet CON/EBS","1F14c","Other Instruments",{"$f":"'Form 1'!F91","v":0},null,{"$f":"'Form 1'!H91","v":0},null,{"$f":"'Form 1EBS'!F93","v":0},null,{"$f":"'Form 1EBS'!H93","v":0}]
["Form 1/1EBS","Balance Sheet CON/EBS","1EBS16a","Premium Provision - Gross",null,null,null,null,{"$f":"'Form 1EBS'!F104","v":0},null,{"$f":"'Form 1EBS'!H104","v":0}]
["Form 1/1EBS","Balance Sheet CON/EBS","1EBS16bi","UPR - Ceded - Foreign Affiliates",null,null,null,null,{"$f":"'Form 1EBS'!F106","v":0},null,{"$f":"'Form 1EBS'!H106","v":0}]
["Form 1/1EBS","Balance Sheet CON/EBS","1EBS16bii","UPR - Ceded - Domestic Affiliates",null,null,null,null,{"$f":"'Form 1EBS'!F107","v":0},null,{"$f":"'Form 1EBS'!H107","v":0}]
["Form 1/1EBS","Balance Sheet CON/EBS","1EBS16biii","UPR - Ceded - Pools & Assoc.",null,null,null,null,{"$f":"'Form 1EBS'!F108","v":0},null,{"$f":"'Form 1EBS'!H108","v":0}]
["Form 1/1EBS","Balance Sheet CON/EBS","1EBS16biv","UPR - Ceded - All Other",null,null,null,null,{"$f":"'Form 1EBS'!F109","v":0},null,{"$f":"'Form 1EBS'!H109","v":0}]
["Form 1/1EBS","Balance Sheet CON/EBS","1F16","Unearned Premium Reserve ",{"$f":"'Form 1'!F101","v":0},null,{"$f":"'Form 1'!H101","v":0}]
["Form 1/1EBS","Balance Sheet CON/EBS","1F17a","Loss Provision - Gross",{"$f":"'Form 1'!F104","v":0},null,{"$f":"'Form 1'!H104","v":0},null,{"$f":"'Form 1EBS'!F114","v":0},null,{"$f":"'Form 1EBS'!H114","v":0}]
["Form 1/1EBS","Balance Sheet CON/EBS","1F17bi","R/I Recoverable - Foreign Affiliates",{"$f":"'Form 1'!F106","v":0},null,{"$f":"'Form 1'!H106","v":0},null,{"$f":"'Form 1EBS'!F116","v":0},null,{"$f":"'Form 1EBS'!H116","v":0}]
["Form 1/1EBS","Balance Sheet CON/EBS","1F17bii","R/I Recoverable - Domestic Affiliates",{"$f":"'Form 1'!F107","v":0},null,{"$f":"'Form 1'!H107","v":0},null,{"$f":"'Form 1EBS'!F117","v":0},null,{"$f":"'Form 1EBS'!H117","v":0}]
["Form 1/1EBS","Balance Sheet CON/EBS","1F17biii","R/I Recoverable - Pools & Assoc.",{"$f":"'Form 1'!F108","v":0},null,{"$f":"'Form 1'!H108","v":0},null,{"$f":"'Form 1EBS'!F118","v":0},null,{"$f":"'Form 1EBS'!H118","v":0}]
["Form 1/1EBS","Balance Sheet CON/EBS","1F17biv","R/I Recoverable - All Other",{"$f":"'Form 1'!F109","v":0},null,{"$f":"'Form 1'!H109","v":0},null,{"$f":"'Form 1EBS'!F119","v":0},null,{"$f":"'Form 1EBS'!H119","v":0}]
["Form 1/1EBS","Balance Sheet CON/EBS","1F18","Other Insurance Reserves",{"$f":"'Form 1'!F113","v":0},null,{"$f":"'Form 1'!H113","v":0},null,{"$f":"'Form 1EBS'!F123","v":0},null,{"$f":"'Form 1EBS'!H123","v":0}]
["Form 1/1EBS","Balance Sheet CON/EBS","1F20","Net - Reserves for Reported Claims",{"$f":"'Form 1'!F119","v":0},null,{"$f":"'Form 1'!H119","v":0},null,{"$f":"'Form 1EBS'!F129","v":0},null,{"$f":"'Form 1EBS'!H129","v":0}]
["Form 1/1EBS","Balance Sheet CON/EBS","1F21","Net - Reserves for Unreported Claims",{"$f":"'Form 1'!F121","v":0},null,{"$f":"'Form 1'!H121","v":0},null,{"$f":"'Form 1EBS'!F131","v":0},null,{"$f":"'Form 1EBS'!H131","v":0}]
["Form 1/1EBS","Balance Sheet CON/EBS","1F22","Net - Policy Reserves - Life",{"$f":"'Form 1'!F123","v":0},null,{"$f":"'Form 1'!H123","v":0},null,{"$f":"'Form 1EBS'!F133","v":0},null,{"$f":"'Form 1EBS'!H133","v":0}]
["Form 1/1EBS","Balance Sheet CON/EBS","1F23","Net - Policy Reserves - Accident & Health",{"$f":"'Form 1'!F125","v":0},null,{"$f":"'Form 1'!H125","v":0},null,{"$f":"'Form 1EBS'!F135","v":0},null,{"$f":"'Form 1EBS'!H135","v":0}]
["Form 1/1EBS","Balance Sheet CON/EBS","1F24","Net - Policyholder's Funds on Deposit",{"$f":"'Form 1'!F127","v":0},null,{"$f":"'Form 1'!H127","v":0},null,{"$f":"'Form 1EBS'!F137","v":0},null,{"$f":"'Form 1EBS'!H137","v":0}]
["Form 1/1EBS","Balance Sheet CON/EBS","1F25","Net - Liability for Future Policyholder Dividends",{"$f":"'Form 1'!F129","v":0},null,{"$f":"'Form 1'!H129","v":0},null,{"$f":"'Form 1EBS'!F139","v":0},null,{"$f":"'Form 1EBS'!H139","v":0}]
["Form 1/1EBS","Balance Sheet CON/EBS","1F26","Net - Other LT Insurance Reserves",{"$f":"'Form 1'!F131","v":0},null,{"$f":"'Form 1'!H131","v":0},null,{"$f":"'Form 1EBS'!F141","v":0},null,{"$f":"'Form 1EBS'!H141","v":0}]
["Form 1/1EBS","Balance Sheet CON/EBS","1F27bi","R/I Recoverable - Foreign Affiliates",{"$f":"'Form 1'!F136","v":0},null,{"$f":"'Form 1'!H136","v":0},null,{"$f":"'Form 1EBS'!F146","v":0},null,{"$f":"'Form 1EBS'!H146","v":0}]
["Form 1/1EBS","Balance Sheet CON/EBS","1F27bii","R/I Recoverable - Domestic Affiliates",{"$f":"'Form 1'!F137","v":0},null,{"$f":"'Form 1'!H137","v":0},null,{"$f":"'Form 1EBS'!F147","v":0},null,{"$f":"'Form 1EBS'!H147","v":0}]
["Form 1/1EBS","Balance Sheet CON/EBS","1F27biii","R/I Recoverable - Pools & Assoc.",{"$f":"'Form 1'!F138","v":0},null,{"$f":"'Form 1'!H138","v":0},null,{"$f":"'Form 1EBS'!F148","v":0},null,{"$f":"'Form 1EBS'!H148","v":0}]
["Form 1/1EBS","Balance Sheet CON/EBS","1F27biv","R/I Recoverable - All Other",{"$f":"'Form 1'!F139","v":0},null,{"$f":"'Form 1'!H139","v":0},null,{"$f":"'Form 1EBS'!F149","v":0},null,{"$f":"'Form 1EBS'!H149","v":0}]
["Form 1/1EBS","Balance Sheet CON/EBS","1EBS27A","Risk Margin",null,null,null,null,{"$f":"'Form 1EBS'!F153","v":0},null,{"$f":"'Form 1EBS'!H153","v":0}]
["Form 1/1EBS","Balance Sheet CON/EBS","1EBS27Ba","Gross Provision - Tech. Prov. Calc. on Whole",null,null,null,null,{"$f":"'Form 1EBS'!F156","v":0},null,{"$f":"'Form 1EBS'!H156","v":0}]
["Form 1/1EBS","Balance Sheet CON/EBS","1EBS27Bbi","R/I Recoverable - Foreign Affiliates",null,null,null,null,{"$f":"'Form 1EBS'!F158","v":0},null,{"$f":"'Form 1EBS'!H158","v":0}]
["Form 1/1EBS","Balance Sheet CON/EBS","1EBS27Bbii","R/I Recoverable - Domestic Affiliates",null,null,null,null,{"$f":"'Form 1EBS'!F159","v":0},null,{"$f":"'Form 1EBS'!H159","v":0}]
["Form 1/1EBS","Balance Sheet CON/EBS","1EBS27Bbiii","R/I Recoverable - Pools & Assoc.",null,null,null,null,{"$f":"'Form 1EBS'!F160","v":0},null,{"$f":"'Form 1EBS'!H160","v":0}]
["Form 1/1EBS","Balance Sheet CON/EBS","1EBS27Bbiv","R/I Recoverable - All Other",null,null,null,null,{"$f":"'Form 1EBS'!F161","v":0},null,{"$f":"'Form 1EBS'!H161","v":0}]
["Form 1/1EBS","Balance Sheet CON/EBS","1F28","Insurance & R/I Balances Payable",{"$f":"'Form 1'!F145","v":0},null,{"$f":"'Form 1'!H145","v":0},null,{"$f":"'Form 1EBS'!F169","v":0},null,{"$f":"'Form 1EBS'!H169","v":0}]
["Form 1/1EBS","Balance Sheet CON/EBS","1F29","Commissions, Expenses and Taxes Payable",{"$f":"'Form 1'!F147","v":0},null,{"$f":"'Form 1'!H147","v":0},null,{"$f":"'Form 1EBS'!F171","v":0},null,{"$f":"'Form 1EBS'!H171","v":0}]
["Form 1/1EBS","Balance Sheet CON/EBS","1F30","Loans and Notes Payable",{"$f":"'Form 1'!F149","v":0},null,{"$f":"'Form 1'!H149","v":0},null,{"$f":"'Form 1EBS'!F173","v":0},null,{"$f":"'Form 1EBS'!H173","v":0}]
["Form 1/1EBS","Balance Sheet CON/EBS","1F31a","Income Taxes Payable",{"$f":"'Form 1'!F151","v":0},null,{"$f":"'Form 1'!H151","v":0},null,{"$f":"'Form 1EBS'!F176","v":0},null,{"$f":"'Form 1EBS'!H176","v":0}]
["Form 1/1EBS","Balance Sheet CON/EBS","1F31b","Deferred Taxes Payable",{"$f":"'Form 1'!F153","v":0},null,{"$f":"'Form 1'!H153","v":0},null,{"$f":"'Form 1EBS'!F177","v":0},null,{"$f":"'Form 1EBS'!H177","v":0}]
["Form 1/1EBS","Balance Sheet CON/EBS","1F32","Amounts Due to Affiliates",{"$f":"'Form 1'!F155","v":0},null,{"$f":"'Form 1'!H155","v":0},null,{"$f":"'Form 1EBS'!F179","v":0},null,{"$f":"'Form 1EBS'!H179","v":0}]
["Form 1/1EBS","Balance Sheet CON/EBS","1F33","Accounts Payable and Accrued Liabilities",{"$f":"'Form 1'!F157","v":0},null,{"$f":"'Form 1'!H157","v":0},null,{"$f":"'Form 1EBS'!F181","v":0},null,{"$f":"'Form 1EBS'!H181","v":0}]
["Form 1/1EBS","Balance Sheet CON/EBS","1EBS34a","Funds Held under R/I Contracts - Affiliates",null,null,null,null,{"$f":"'Form 1EBS'!F184","v":0},null,{"$f":"'Form 1EBS'!H184","v":0}]
["Form 1/1EBS","Balance Sheet CON/EBS","1EBS34b","Funds Held under R/I Contracts - Non-Aff.",null,null,null,null,{"$f":"'Form 1EBS'!F185","v":0},null,{"$f":"'Form 1EBS'!H185","v":0}]
["Form 1/1EBS","Balance Sheet CON/EBS","1F34","Funds Held under R/I Contracts",{"$f":"'Form 1'!F159","v":0},null,{"$f":"'Form 1'!H159","v":0}]
["Form 1/1EBS","Balance Sheet CON/EBS","1F35","Dividends Payable",{"$f":"'Form 1'!F161","v":0},null,{"$f":"'Form 1'!H161","v":0},null,{"$f":"'Form 1EBS'!F188","v":0},null,{"$f":"'Form 1EBS'!H188","v":0}]
["Form 1/1EBS","Balance Sheet CON/EBS","1F36a","Sundry Liabilities - Derivative Instruments",{"$f":"'Form 1'!F164","v":0},null,{"$f":"'Form 1'!H164","v":0},null,{"$f":"'Form 1EBS'!F191","v":0},null,{"$f":"'Form 1EBS'!H191","v":0}]
["Form 1/1EBS","Balance Sheet CON/EBS",null,"Sundry Liabilities - Der. Instr. - Non-Hedge Purp.",null,null,null,null,{"$f":"'Form 1EBS'!F192","v":0},null,{"$f":"'Form 1EBS'!H192","v":0}]
["Form 1/1EBS","Balance Sheet CON/EBS","1F36b","Sundry Liabilities - SAC - LT - Variable Annuities",{"$f":"'Form 1'!F165","v":0},null,{"$f":"'Form 1'!H165","v":0},null,{"$f":"'Form 1EBS'!F193","v":0},null,{"$f":"'Form 1EBS'!H193","v":0}]
["Form 1/1EBS","Balance Sheet CON/EBS","1F36c","Sundry Liabilities - SAC - LT - Other",{"$f":"'Form 1'!F166","v":0},null,{"$f":"'Form 1'!H166","v":0},null,{"$f":"'Form 1EBS'!F194","v":0},null,{"$f":"'Form 1EBS'!H194","v":0}]
["Form 1/1EBS","Balance Sheet CON/EBS","1F36d","Sundry Liabilities - SAC - General Business",{"$f":"'Form 1'!F167","v":0},null,{"$f":"'Form 1'!H167","v":0},null,{"$f":"'Form 1EBS'!F195","v":0},null,{"$f":"'Form 1EBS'!H195","v":0}]
["Form 1/1EBS","Balance Sheet CON/EBS","1F36e","Sundry Liabilities - Deposit Liabilities",{"$f":"'Form 1'!F168","v":0},null,{"$f":"'Form 1'!H168","v":0},null,{"$f":"'Form 1EBS'!F196","v":0},null,{"$f":"'Form 1EBS'!H196","v":0}]
["Form 1/1EBS","Balance Sheet CON/EBS",null,"Sundry Liabilities - Pension Benefit Oblig.",null,null,null,null,{"$f":"'Form 1EBS'!F197","v":0},null,{"$f":"'Form 1EBS'!H197","v":0}]
["Form 1/1EBS","Balance Sheet CON/EBS",null,"Sundry Liabilities - Investments Purchased",null,null,null,null,{"$f":"'Form 1EBS'!F198","v":0},null,{"$f":"'Form 1EBS'!H198","v":0}]
["Form 1/1EBS","Balance Sheet CON/EBS","1F36f","Sundry Liabilities - Other ",{"$f":"'Form 1'!F169","v":0},null,{"$f":"'Form 1'!H169","v":0},null,{"$f":"'Form 1EBS'!F199","v":0},null,{"$f":"'Form 1EBS'!H199","v":0}]
["Form 1/1EBS","Balance Sheet CON/EBS","1F37a","Letters of Credit",{"$f":"'Form 1'!F173","v":0},null,{"$f":"'Form 1'!H173","v":0},null,{"$f":"'Form 1EBS'!F203","v":0},null,{"$f":"'Form 1EBS'!H203","v":0}]
["Form 1/1EBS","Balance Sheet CON/EBS","1F37b","Guarantees",{"$f":"'Form 1'!F174","v":0},null,{"$f":"'Form 1'!H174","v":0},null,{"$f":"'Form 1EBS'!F204","v":0},null,{"$f":"'Form 1EBS'!H204","v":0}]
["Form 1/1EBS","Balance Sheet CON/EBS","1F37c","Other Instruments",{"$f":"'Form 1'!F175","v":0},null,{"$f":"'Form 1'!H175","v":0},null,{"$f":"'Form 1EBS'!F205","v":0},null,{"$f":"'Form 1EBS'!H205","v":0}]
["Form 1/1EBS","Balance Sheet CON/EBS","1EBS40","Economic Capital & Surplus",null,null,null,null,{"$f":"'Form 1EBS'!F214","v":0},null,{"$f":"'Form 1EBS'!H214","v":0}]
[]
["Form 1/1EBS","Notes","Form 1EBS","Line 10 - Collaterized Balances",{"$f":"'Form 1'!F196","v":0},null,{"$f":"'Form 1'!H196","v":0},null,{"$f":"'Form 1EBS'!F225","v":0}]
["Form 1/1EBS","Notes","Form 1EBS","Line 11(e) - Collaterized Balances",{"$f":"'Form 1'!F198","v":0},null,{"$f":"'Form 1'!H198","v":0},null,{"$f":"'Form 1EBS'!F226","v":0}]
["Form 1/1EBS","Notes","Form 1","Line 17c & 27c - Collaterized Balances",{"$f":"'Form 1'!F201","v":0},null,{"$f":"'Form 1'!H201","v":0}]
["Form 1/1EBS","Notes","Form 1","Line 11 - Letters of Credit",{"$f":"'Form 1'!F203","v":0},null,{"$f":"'Form 1'!H203","v":0}]
["Form 1/1EBS","Notes","Form 1EBS","Line 17cii - Collat. in Favour of Group",null,null,null,null,{"$f":"'Form 1EBS'!F227","v":0}]
["Form 1/1EBS","Notes","Form 1EBS","Line 27cii - Collat. in Favour of Group",null,null,null,null,{"$f":"'Form 1EBS'!F228","v":0}]
["Form 1/1EBS","Notes","Form 1EBS","Line 27Bcii - Collat. in Favour of Group",null,null,null,null,{"$f":"'Form 1EBS'!F229","v":0}]
["Form 1/1EBS","Notes","Form 1EBS","Line 13(j) - Any Other Assets",null,null,null,null,{"$f":"'Form 1EBS'!F230","v":0}]
["Form 1/1EBS","Notes","Form 1EBS","Line 36(i) - Any Other Liabilities",null,null,null,null,{"$f":"'Form 1EBS'!F231","v":0}]
["Form 1/1EBS","Notes","Form 1EBS","Line 15 - Policy. Oblig. - Cash",{"$f":"'Form 1'!F208","v":0},null,{"$f":"'Form 1'!H208","v":0},null,{"$f":"'Form 1EBS'!F236","v":0},null,{"$f":"'Form 1EBS'!H236","v":0}]
["Form 1/1EBS","Notes","Form 1EBS","Line 15 - Policy. Oblig. - Quoted. Inv.",{"$f":"'Form 1'!F209","v":0},null,{"$f":"'Form 1'!H209","v":0},null,{"$f":"'Form 1EBS'!F237","v":0},null,{"$f":"'Form 1EBS'!H237","v":0}]
["Form 1/1EBS","Notes","Form 1EBS","Line 15 - Policy. Oblig. - Unquoted. Inv.",{"$f":"'Form 1'!F210","v":0},null,{"$f":"'Form 1'!H210","v":0},null,{"$f":"'Form 1EBS'!F238","v":0},null,{"$f":"'Form 1EBS'!H238","v":0}]
["Form 1/1EBS","Notes","Form 1EBS","Line 15 - Policy. Oblig. - Funds Held",{"$f":"'Form 1'!F211","v":0},null,{"$f":"'Form 1'!H211","v":0},null,{"$f":"'Form 1EBS'!F239","v":0},null,{"$f":"'Form 1EBS'!H239","v":0}]
["Form 1/1EBS","Notes","Form 1EBS","Line 15 - Policy. Oblig. - Other Assets",{"$f":"'Form 1'!F212","v":0},null,{"$f":"'Form 1'!H212","v":0},null,{"$f":"'Form 1EBS'!F240","v":0},null,{"$f":"'Form 1EBS'!H240","v":0}]
["Form 1/1EBS","Notes","Form 1EBS","Line 15 - Policy. Oblig. - Total",{"$f":"'Form 1'!F213","v":0},null,{"$f":"'Form 1'!H213","v":0},null,{"$f":"'Form 1EBS'!F241","v":0},null,{"$f":"'Form 1EBS'!H241","v":0}]
["Form 1/1EBS","Notes","Form 1","Line 15 - Other - Cash - Comment",{"$f":"+'Form 1'!D218","v":0},null,null,null,{"$f":"'Form 1EBS'!D246","v":0}]
["Form 1/1EBS","Notes","Form 1","Line 15 - Other - Quoted. Inv. - Comment",{"$f":"+'Form 1'!D219","v":0},null,null,null,{"$f":"'Form 1EBS'!D247","v":0}]
["Form 1/1EBS","Notes","Form 1","Line 15 - Other - Unquoted. Inv. - Comment",{"$f":"+'Form 1'!D220","v":0},null,null,null,{"$f":"'Form 1EBS'!D248","v":0}]
["Form 1/1EBS","Notes","Form 1","Line 15 - Other - Other Assets - Comment",{"$f":"+'Form 1'!D221","v":0},null,null,null,{"$f":"'Form 1EBS'!D249","v":0}]
["Form 1/1EBS","Notes","Form 1EBS","Line 15 - Other - Cash",{"$f":"'Form 1'!F218","v":0},null,{"$f":"'Form 1'!H218","v":0},null,{"$f":"'Form 1EBS'!F246","v":0},null,{"$f":"'Form 1EBS'!H246","v":0}]
["Form 1/1EBS","Notes","Form 1EBS","Line 15 - Other - Quoted. Inv.",{"$f":"'Form 1'!F219","v":0},null,{"$f":"'Form 1'!H219","v":0},null,{"$f":"'Form 1EBS'!F247","v":0},null,{"$f":"'Form 1EBS'!H247","v":0}]
["Form 1/1EBS","Notes","Form 1EBS","Line 15 - Other - Unquoted. Inv.",{"$f":"'Form 1'!F220","v":0},null,{"$f":"'Form 1'!H220","v":0},null,{"$f":"'Form 1EBS'!F248","v":0},null,{"$f":"'Form 1EBS'!H248","v":0}]
["Form 1/1EBS","Notes","Form 1EBS","Line 15 - Other - Other Assets",{"$f":"'Form 1'!F221","v":0},null,{"$f":"'Form 1'!H221","v":0},null,{"$f":"'Form 1EBS'!F249","v":0},null,{"$f":"'Form 1EBS'!H249","v":0}]
["Form 1/1EBS","Notes","Form 1EBS","Line 15 - Other - Total",{"$f":"'Form 1'!F222","v":0},null,{"$f":"'Form 1'!H222","v":0},null,{"$f":"'Form 1EBS'!F250","v":0},null,{"$f":"'Form 1EBS'!H250","v":0}]
["Form 1/1EBS","Notes","Form 1EBS","Line 13(e) - Details of Deposit Assets",null,null,null,null,{"$f":"'Form 1EBS'!F252","v":0}]
["Form 1/1EBS","Notes","Form 1EBS","Line 36(f) - Details of Deposit Liab.",null,null,null,null,{"$f":"'Form 1EBS'!F253","v":0}]
["Form 1/1EBS","Notes","Form 1EBS","Line 37 - Details of Amounts Disclosed",null,null,null,null,{"$f":"'Form 1EBS'!F254","v":0}]
["Form 1/1EBS","Notes","Form 1EBS","Line 40 - Recon. 1SFS 40 to EBS 40",null,null,null,null,{"$f":"'Form 1EBS'!F255","v":0}]
["Form 1/1EBS","Notes","Form 1EBS","Line 16c - Adj. Counterparty Default",null,null,null,null,{"$f":"'Form 1EBS'!F259","v":0}]
["Form 1/1EBS","Notes","Form 1EBS","Line 17ci - Adj. Counterparty Default",null,null,null,null,{"$f":"'Form 1EBS'!F260","v":0}]
["Form 1/1EBS","Notes","Form 1EBS","Line 16di - BBNI Premium",null,null,null,null,{"$f":"'Form 1EBS'!F261","v":0},null,{"$f":"'Form 1EBS'!H261","v":0}]
["Form 1/1EBS","Notes","Form 1EBS","Line 16dii - BBNI Best Est. Prem",null,null,null,null,{"$f":"'Form 1EBS'!F262","v":0},null,{"$f":"'Form 1EBS'!H262","v":0}]
["Form 1/1EBS","Notes","Form 1EBS","Line 17di - Loss Provision Discount",null,null,null,null,{"$f":"'Form 1EBS'!F263","v":0},null,{"$f":"'Form 1EBS'!H263","v":0}]
["Form 1/1EBS","Notes","Form 1EBS","Line 17dii - Scenario Based Approach",null,null,null,null,{"$f":"'Form 1EBS'!F264","v":0},null,{"$f":"'Form 1EBS'!H264","v":0}]
["Form 1/1EBS","Notes","Form 1EBS","Line 27ci - Adj. Counterparty Default",null,null,null,null,{"$f":"'Form 1EBS'!F267","v":0}]
["Form 1/1EBS","Notes","Form 1EBS","Line 27di - Premium in BBNI",null,null,null,null,{"$f":"'Form 1EBS'!F268","v":0},null,{"$f":"'Form 1EBS'!H268","v":0}]
["Form 1/1EBS","Notes","Form 1EBS","Line 27dii - Tech Prov. In BBNI",null,null,null,null,{"$f":"'Form 1EBS'!F269","v":0},null,{"$f":"'Form 1EBS'!H269","v":0}]
["Form 1/1EBS","Notes","Form 1EBS","Line 27diii - Best Est. that used Trans. Arrang.",null,null,null,null,{"$f":"'Form 1EBS'!F270","v":0},null,{"$f":"'Form 1EBS'!H270","v":0}]
["Form 1/1EBS","Notes","Form 1EBS","Line 27div - Best Est. that not used Trans. Arrang.",null,null,null,null,{"$f":"'Form 1EBS'!F271","v":0},null,{"$f":"'Form 1EBS'!H271","v":0}]
["Form 1/1EBS","Notes","Form 1EBS","Line 27dv - Scenario Based used",null,null,null,null,{"$f":"'Form 1EBS'!F272","v":0},null,{"$f":"'Form 1EBS'!H272","v":0}]
["Form 1/1EBS","Notes","Form 1EBS","Line 27dvi - Scen. Based used Stand. Appro.",null,null,null,null,{"$f":"'Form 1EBS'!F273","v":0},null,{"$f":"'Form 1EBS'!H273","v":0}]
["Form 1/1EBS","Notes","Form 1EBS","Line 27dvii - Scen. Based used Base Appro.",null,null,null,null,{"$f":"'Form 1EBS'!F274","v":0},null,{"$f":"'Form 1EBS'!H274","v":0}]
["Form 1/1EBS","Notes","Form 1EBS","Line 27Bci - Adj. Counterparty Default",null,null,null,null,{"$f":"'Form 1EBS'!F275","v":0}]
["Form 1/1EBS","Notes","Form 1EBS","Line 27Bdi - Premium in BBNI",null,null,null,null,{"$f":"'Form 1EBS'!F276","v":0},null,{"$f":"'Form 1EBS'!H276","v":0}]
["Form 1/1EBS","Notes","Form 1EBS","Line 27Bdii - Tech Prov. In BBNI",null,null,null,null,{"$f":"'Form 1EBS'!F277","v":0},null,{"$f":"'Form 1EBS'!H277","v":0}]
["Form 1/1EBS","Notes","Form 1","Gross Provision - Beg. Of Year",{"$f":"'Form 1'!F224","v":0},null,{"$f":"'Form 1'!H224","v":0}]
["Form 1/1EBS","Notes","Form 1","R/I Recoverable - Beg. Of Year",{"$f":"'Form 1'!F226","v":0},null,{"$f":"'Form 1'!H226","v":0}]
["Form 1/1EBS","Notes","Form 1","Net Provision - Beg. Of Year",{"$f":"'Form 1'!F228","v":0},null,{"$f":"'Form 1'!H228","v":0}]
["Form 1/1EBS","Notes","Form 1","Acquisition / Sale of loss reserves (net):",{"$f":"'Form 1'!F230","v":0},null,{"$f":"'Form 1'!H230","v":0}]
["Form 1/1EBS","Notes","Form 1","Net Losses Incurred - Current Year",{"$f":"'Form 1'!F234","v":0},null,{"$f":"'Form 1'!H234","v":0}]
["Form 1/1EBS","Notes","Form 1","Net Losses Incurred - Prior Years",{"$f":"'Form 1'!F235","v":0},null,{"$f":"'Form 1'!H235","v":0}]
["Form 1/1EBS","Notes","Form 1","Net Losses Incurred - Total",{"$f":"'Form 1'!F237","v":0},null,{"$f":"'Form 1'!H237","v":0}]
["Form 1/1EBS","Notes","Form 1","Losses Paid - Current Year",{"$f":"'Form 1'!F241","v":0},null,{"$f":"'Form 1'!H241","v":0}]
["Form 1/1EBS","Notes","Form 1","Losses Paid - Prior Years",{"$f":"'Form 1'!F242","v":0},null,{"$f":"'Form 1'!H242","v":0}]
["Form 1/1EBS","Notes","Form 1","Losses Paid - Total",{"$f":"'Form 1'!F244","v":0},null,{"$f":"'Form 1'!H244","v":0}]
["Form 1/1EBS","Notes","Form 1","Foreign Exchange and Other",{"$f":"'Form 1'!F246","v":0},null,{"$f":"'Form 1'!H246","v":0}]
["Form 1/1EBS","Notes","Form 1","Net Provision - End Of Year",{"$f":"'Form 1'!F248","v":0},null,{"$f":"'Form 1'!H248","v":0}]
["Form 1/1EBS","Notes","Form 1","R/I Recoverable - End Of Year",{"$f":"'Form 1'!F250","v":0},null,{"$f":"'Form 1'!H250","v":0}]
["Form 1/1EBS","Notes","Form 1","Gross Provision - End Of Year",{"$f":"'Form 1'!F252","v":0},null,{"$f":"'Form 1'!H252","v":0}]
["Form 1/1EBS","Notes","Form 1","Gross Provision - Beg. Of Year",{"$f":"'Form 1'!F260","v":0},null,{"$f":"'Form 1'!H260","v":0}]
["Form 1/1EBS","Notes","Form 1","R/I Recoverable - Beg. Of Year",{"$f":"'Form 1'!F262","v":0},null,{"$f":"'Form 1'!H262","v":0}]
["Form 1/1EBS","Notes","Form 1","Net Provision - Beg. Of Year",{"$f":"'Form 1'!F264","v":0},null,{"$f":"'Form 1'!H264","v":0}]
["Form 1/1EBS","Notes","Form 1","Acquisition / Sale of loss reserves (net):",{"$f":"'Form 1'!F266","v":0},null,{"$f":"'Form 1'!H266","v":0}]
["Form 1/1EBS","Notes","Form 1","Net Losses Incurred - Current Year",{"$f":"'Form 1'!F270","v":0},null,{"$f":"'Form 1'!H270","v":0}]
["Form 1/1EBS","Notes","Form 1","Net Losses Incurred - Prior Years",{"$f":"'Form 1'!F271","v":0},null,{"$f":"'Form 1'!H271","v":0}]
["Form 1/1EBS","Notes","Form 1","Net Losses Incurred - Total",{"$f":"'Form 1'!F273","v":0},null,{"$f":"'Form 1'!H273","v":0}]
["Form 1/1EBS","Notes","Form 1","Losses Paid - Current Year",{"$f":"'Form 1'!F277","v":0},null,{"$f":"'Form 1'!H277","v":0}]
["Form 1/1EBS","Notes","Form 1","Losses Paid - Prior Years",{"$f":"'Form 1'!F278","v":0},null,{"$f":"'Form 1'!H278","v":0}]
["Form 1/1EBS","Notes","Form 1","Losses Paid - Total",{"$f":"'Form 1'!F280","v":0},null,{"$f":"'Form 1'!H280","v":0}]
["Form 1/1EBS","Notes","Form 1","Net Provision - End Of Year",{"$f":"'Form 1'!F282","v":0},null,{"$f":"'Form 1'!H282","v":0}]
["Form 1/1EBS","Notes","Form 1","R/I Recoverable - End Of Year",{"$f":"'Form 1'!F284","v":0},null,{"$f":"'Form 1'!H284","v":0}]
["Form 1/1EBS","Notes","Form 1","Gross Provision - End Of Year",{"$f":"'Form 1'!F286","v":0},null,{"$f":"'Form 1'!H286","v":0}]
["Form 1/1EBS","Notes","Form 1","Discount Rate on PV Calculations",{"$f":"'Form 1'!F294","v":0},null,{"$f":"'Form 1'!H294","v":0}]
["Form 1/1EBS","Notes","Form 1","Aggregated Undiscounted of Liabilities",{"$f":"'Form 1'!F296","v":0},null,{"$f":"'Form 1'!H296","v":0}]
["Form 1/1EBS","Notes","Form 1EBS","Best Estimate Provision - Beg. Of Year",null,null,null,null,{"$f":"'Form 1EBS'!F280","v":0},null,{"$f":"'Form 1EBS'!H280","v":0}]
["Form 1/1EBS","Notes","Form 1EBS","Unwind of Discount",null,null,null,null,{"$f":"'Form 1EBS'!F282","v":0},null,{"$f":"'Form 1EBS'!H282","v":0}]
["Form 1/1EBS","Notes","Form 1EBS","Net Loss Paid - Prior Years",null,null,null,null,{"$f":"'Form 1EBS'!F283","v":0},null,{"$f":"'Form 1EBS'!H283","v":0}]
["Form 1/1EBS","Notes","Form 1EBS","Net Losses Incurred - Prior Years",null,null,null,null,{"$f":"'Form 1EBS'!F284","v":0},null,{"$f":"'Form 1EBS'!H284","v":0}]
["Form 1/1EBS","Notes","Form 1EBS","Best Estimate Provision - From PY",null,null,null,null,{"$f":"'Form 1EBS'!F285","v":0},null,{"$f":"'Form 1EBS'!H285","v":0}]
["Form 1/1EBS","Notes","Form 1EBS","Net Losses Incurred - Current Year",null,null,null,null,{"$f":"'Form 1EBS'!F287","v":0},null,{"$f":"'Form 1EBS'!H287","v":0}]
["Form 1/1EBS","Notes","Form 1EBS","Net Loss Paid - Current Year",null,null,null,null,{"$f":"'Form 1EBS'!F288","v":0},null,{"$f":"'Form 1EBS'!H288","v":0}]
["Form 1/1EBS","Notes","Form 1EBS","Foreign Exchange and Other",null,null,null,null,{"$f":"'Form 1EBS'!F289","v":0},null,{"$f":"'Form 1EBS'!H289","v":0}]
["Form 1/1EBS","Notes","Form 1EBS","Best Estimate Provision - From CY",null,null,null,null,{"$f":"'Form 1EBS'!F290","v":0},null,{"$f":"'Form 1EBS'!H290","v":0}]
["Form 1/1EBS","Notes","Form 1EBS","Impact of Change in Discount Curve",null,null,null,null,{"$f":"'Form 1EBS'!F292","v":0},null,{"$f":"'Form 1EBS'!H292","v":0}]
["Form 1/1EBS","Notes","Form 1EBS","Best Estimate Provision - End Of Year",null,null,null,null,{"$f":"'Form 1EBS'!F294","v":0},null,{"$f":"'Form 1EBS'!H294","v":0}]
[]
[null,null,null,"Income Statement"]
["Form 2","Income Stmt CON","2F1a","Gross Premium Written - Direct",{"$f":"'Form 2'!E12","v":0},null,{"$f":"'Form 2'!G12","v":0}]
["Form 2","Income Stmt CON","2F1b","Gross Premium Written - Assumed",{"$f":"'Form 2'!E13","v":0},null,{"$f":"'Form 2'!G13","v":0}]
["Form 2","Income Stmt CON","2F2","R/I Premiums Ceded",{"$f":"'Form 2'!E16","v":0},null,{"$f":"'Form 2'!G16","v":0}]
["Form 2","Income Stmt CON","2F4","Change in Unearned Premiums",{"$f":"'Form 2'!E20","v":0},null,{"$f":"'Form 2'!G20","v":0}]
["Form 2","Income Stmt CON","2F6","Other Insurance Income",{"$f":"'Form 2'!E24","v":0},null,{"$f":"'Form 2'!G24","v":0}]
["Form 2","Income Stmt CON","2F8","Net Losses Incurred",{"$f":"'Form 2'!E30","v":0},null,{"$f":"'Form 2'!G30","v":0}]
["Form 2","Income Stmt CON","2F9","Commissions & Brokerage",{"$f":"'Form 2'!E32","v":0},null,{"$f":"'Form 2'!G32","v":0}]
["Form 2","Income Stmt CON","2F12a","Gross Premium Written - Direct",{"$f":"'Form 2'!E41","v":0},null,{"$f":"'Form 2'!G41","v":0}]
["Form 2","Income Stmt CON","2F12b","Gross Premium Written - Assumed",{"$f":"'Form 2'!E42","v":0},null,{"$f":"'Form 2'!G42","v":0}]
["Form 2","Income Stmt CON","2F13","R/I Premiums Ceded",{"$f":"'Form 2'!E45","v":0},null,{"$f":"'Form 2'!G45","v":0}]
["Form 2","Income Stmt CON","2F14a","NPW - Life",{"$f":"'Form 2'!E48","v":0},null,{"$f":"'Form 2'!G48","v":0}]
["Form 2","Income Stmt CON","2F14b","NPW - Annuities",{"$f":"'Form 2'!E49","v":0},null,{"$f":"'Form 2'!G49","v":0}]
["Form 2","Income Stmt CON","2F14c","NPW - Accident & Health",{"$f":"'Form 2'!E50","v":0},null,{"$f":"'Form 2'!G50","v":0}]
["Form 2","Income Stmt CON","2F15","Other Insurance Income",{"$f":"'Form 2'!E53","v":0},null,{"$f":"'Form 2'!G53","v":0}]
["Form 2","Income Stmt CON","2F17","Claims - Life",{"$f":"'Form 2'!E59","v":0},null,{"$f":"'Form 2'!G59","v":0}]
["Form 2","Income Stmt CON","2F18","Policyholders' Dividends",{"$f":"'Form 2'!E61","v":0},null,{"$f":"'Form 2'!G61","v":0}]
["Form 2","Income Stmt CON","2F19","Surrenders",{"$f":"'Form 2'!E63","v":0},null,{"$f":"'Form 2'!G63","v":0}]
["Form 2","Income Stmt CON","2F20","Maturities",{"$f":"'Form 2'!E65","v":0},null,{"$f":"'Form 2'!G65","v":0}]
["Form 2","Income Stmt CON","2F21","Annuities",{"$f":"'Form 2'!E67","v":0},null,{"$f":"'Form 2'!G67","v":0}]
["Form 2","Income Stmt CON","2F22","Accident & Health Benefits",{"$f":"'Form 2'!E69","v":0},null,{"$f":"'Form 2'!G69","v":0}]
["Form 2","Income Stmt CON","2F23","Commissions",{"$f":"'Form 2'!E71","v":0},null,{"$f":"'Form 2'!G71","v":0}]
["Form 2","Income Stmt CON","2F24","Other",{"$f":"'Form 2'!E73","v":0},null,{"$f":"'Form 2'!G73","v":0}]
["Form 2","Income Stmt CON","2F26a","Change in Policy Reserves - Life",{"$f":"'Form 2'!E78","v":0},null,{"$f":"'Form 2'!G78","v":0}]
["Form 2","Income Stmt CON","2F26b","Change in Policy Reserves - Annuities",{"$f":"'Form 2'!E79","v":0},null,{"$f":"'Form 2'!G79","v":0}]
["Form 2","Income Stmt CON","2F26c","Change in Policy Reserves - Accid. & Health",{"$f":"'Form 2'!E80","v":0},null,{"$f":"'Form 2'!G80","v":0}]
["Form 2","Income Stmt CON","2F30a","Operating Expense - G&A",{"$f":"'Form 2'!E93","v":0},null,{"$f":"'Form 2'!G93","v":0}]
["Form 2","Income Stmt CON","2F30b","Operating Expense - Personnel Costs",{"$f":"'Form 2'!E94","v":0},null,{"$f":"'Form 2'!G94","v":0}]
["Form 2","Income Stmt CON","2F30c","Operating Expense - Other",{"$f":"'Form 2'!E95","v":0},null,{"$f":"'Form 2'!G95","v":0}]
["Form 2","Income Stmt CON","2F31","Investment Income",{"$f":"'Form 2'!E98","v":0},null,{"$f":"'Form 2'!G98","v":0}]
["Form 2","Income Stmt CON","2F32","Other Income",{"$f":"'Form 2'!E100","v":0},null,{"$f":"'Form 2'!G100","v":0}]
["Form 2","Income Stmt CON","2F34a","Income Tax - Current",{"$f":"'Form 2'!E105","v":0},null,{"$f":"'Form 2'!G105","v":0}]
["Form 2","Income Stmt CON","2F34b","Income Tax - Deferred",{"$f":"'Form 2'!E106","v":0},null,{"$f":"'Form 2'!G106","v":0}]
["Form 2","Income Stmt CON","2SFS36","Realized Gains/Losses",{"$f":"'Form 2'!E111","v":0},null,{"$f":"'Form 2'!G111","v":0}]
["Form 2","Income Stmt CON","2SFS37","Interest Charges",{"$f":"'Form 2'!E113","v":0},null,{"$f":"'Form 2'!G113","v":0}]
["Form 2","Income Stmt CON","2F31N1","31. Nature of Material Items Amount - 1",{"$f":"'Form 2'!E120","v":0},null,{"$f":"'Form 2'!G120","v":0}]
["Form 2","Income Stmt CON","2F31N2","31. Nature of Material Items Amount - 2",{"$f":"'Form 2'!E121","v":0},null,{"$f":"'Form 2'!G121","v":0}]
["Form 2","Income Stmt CON","2F31N3","31. Nature of Material Items Amount - 3",{"$f":"'Form 2'!E122","v":0},null,{"$f":"'Form 2'!G122","v":0}]
["Form 2","Income Stmt CON","2F31N4","31. Nature of Material Items Amount - 4",{"$f":"'Form 2'!E123","v":0},null,{"$f":"'Form 2'!G123","v":0}]
["Form 2","Income Stmt CON","2F31N5","31. Nature of Material Items Amount - 5",{"$f":"'Form 2'!E124","v":0},null,{"$f":"'Form 2'!G124","v":0}]
["Form 2","Income Stmt CON","2F31N6","31. Nature of Material Items Amount - 6",{"$f":"'Form 2'!E125","v":0},null,{"$f":"'Form 2'!G125","v":0}]
["Form 2","Income Stmt CON","2F31N7","31. Nature of Material Items Amount - 7",{"$f":"'Form 2'!E126","v":0},null,{"$f":"'Form 2'!G126","v":0}]
["Form 2","Income Stmt CON","2F31N8","31. Nature of Material Items Amount - 8",{"$f":"'Form 2'!E127","v":0},null,{"$f":"'Form 2'!G127","v":0}]
["Form 2","Income Stmt CON","2F31N9","31. Nature of Material Items Amount - Total",{"$f":"'Form 2'!E128","v":0},null,{"$f":"'Form 2'!G128","v":0}]
["Form 2","Income Stmt CON","2F31Com1","31. Nature of Material Items - 1",{"$f":"'Form 2'!C120","v":0}]
["Form 2","Income Stmt CON","2F31Com2","31. Nature of Material Items - 2",{"$f":"'Form 2'!C121","v":0}]
["Form 2","Income Stmt CON","2F31Com3","31. Nature of Material Items - 3",{"$f":"'Form 2'!C122","v":0}]
["Form 2","Income Stmt CON","2F31Com4","31. Nature of Material Items - 4",{"$f":"'Form 2'!C123","v":0}]
["Form 2","Income Stmt CON","2F31Com5","31. Nature of Material Items - 5",{"$f":"'Form 2'!C124","v":0}]
["Form 2","Income Stmt CON","2F31Com6","31. Nature of Material Items - 6",{"$f":"'Form 2'!C125","v":0}]
["Form 2","Income Stmt CON","2F31Com7","31. Nature of Material Items - 7",{"$f":"'Form 2'!C126","v":0}]
["Form 2","Income Stmt CON","2F31Com8","31. Nature of Material Items - 8",{"$f":"'Form 2'!C127","v":0}]
["Form 2","Income Stmt CON","2F32N1","32. Nature of Material Items Amount - 1",{"$f":"'Form 2'!E131","v":0},null,{"$f":"'Form 2'!G131","v":0}]
["Form 2","Income Stmt CON","2F32N2","32. Nature of Material Items Amount - 2",{"$f":"'Form 2'!E132","v":0},null,{"$f":"'Form 2'!G132","v":0}]
["Form 2","Income Stmt CON","2F32N3","32. Nature of Material Items Amount - 3",{"$f":"'Form 2'!E133","v":0},null,{"$f":"'Form 2'!G133","v":0}]
["Form 2","Income Stmt CON","2F32N4","32. Nature of Material Items Amount - 4",{"$f":"'Form 2'!E134","v":0},null,{"$f":"'Form 2'!G134","v":0}]
["Form 2","Income Stmt CON","2F32N5","32. Nature of Material Items Amount - 5",{"$f":"'Form 2'!E135","v":0},null,{"$f":"'Form 2'!G135","v":0}]
["Form 2","Income Stmt CON","2F32N6","32. Nature of Material Items Amount - 6",{"$f":"'Form 2'!E136","v":0},null,{"$f":"'Form 2'!G136","v":0}]
["Form 2","Income Stmt CON","2F32N7","32. Nature of Material Items Amount - 7",{"$f":"'Form 2'!E137","v":0},null,{"$f":"'Form 2'!G137","v":0}]
["Form 2","Income Stmt CON","2F32N8","32. Nature of Material Items Amount - 8",{"$f":"'Form 2'!E138","v":0},null,{"$f":"'Form 2'!G138","v":0}]
["Form 2","Income Stmt CON","2F32N9","32. Nature of Material Items Amount - Total",{"$f":"'Form 2'!E139","v":0},null,{"$f":"'Form 2'!G139","v":0}]
["Form 2","Income Stmt CON","2F32Com1","32. Nature of Material Items - 1",{"$f":"'Form 2'!C131","v":0}]
["Form 2","Income Stmt CON","2F32Com2","32. Nature of Material Items - 2",{"$f":"'Form 2'!C132","v":0}]
["Form 2","Income Stmt CON","2F32Com3","32. Nature of Material Items - 3",{"$f":"'Form 2'!C133","v":0}]
["Form 2","Income Stmt CON","2F32Com4","32. Nature of Material Items - 4",{"$f":"'Form 2'!C134","v":0}]
["Form 2","Income Stmt CON","2F32Com5","32. Nature of Material Items - 5",{"$f":"'Form 2'!C135","v":0}]
["Form 2","Income Stmt CON","2F32Com6","32. Nature of Material Items - 6",{"$f":"'Form 2'!C136","v":0}]
["Form 2","Income Stmt CON","2F32Com7","32. Nature of Material Items - 7",{"$f":"'Form 2'!C137","v":0}]
["Form 2","Income Stmt CON","2F32Com8","32. Nature of Material Items - 8",{"$f":"'Form 2'!C138","v":0}]
["Form 2","Income Stmt CON","2F36N1","36. Nature of Material Items Amount - 1",{"$f":"'Form 2'!E142","v":0},null,{"$f":"'Form 2'!G142","v":0}]
["Form 2","Income Stmt CON","2F36N2","36. Nature of Material Items Amount - 2",{"$f":"'Form 2'!E143","v":0},null,{"$f":"'Form 2'!G143","v":0}]
["Form 2","Income Stmt CON","2F36N3","36. Nature of Material Items Amount - 3",{"$f":"'Form 2'!E144","v":0},null,{"$f":"'Form 2'!G144","v":0}]
["Form 2","Income Stmt CON","2F36N4","36. Nature of Material Items Amount - 4",{"$f":"'Form 2'!E145","v":0},null,{"$f":"'Form 2'!G145","v":0}]
["Form 2","Income Stmt CON","2F36N5","36. Nature of Material Items Amount - 5",{"$f":"'Form 2'!E146","v":0},null,{"$f":"'Form 2'!G146","v":0}]
["Form 2","Income Stmt CON","2F36N6","36. Nature of Material Items Amount - 6",{"$f":"'Form 2'!E147","v":0},null,{"$f":"'Form 2'!G147","v":0}]
["Form 2","Income Stmt CON","2F36N7","36. Nature of Material Items Amount - 7",{"$f":"'Form 2'!E148","v":0},null,{"$f":"'Form 2'!G148","v":0}]
["Form 2","Income Stmt CON","2F36N8","36. Nature of Material Items Amount - 8",{"$f":"'Form 2'!E149","v":0},null,{"$f":"'Form 2'!G149","v":0}]
["Form 2","Income Stmt CON","2F36N9","36. Nature of Material Items Amount - Total",{"$f":"'Form 2'!E150","v":0},null,{"$f":"'Form 2'!G150","v":0}]
["Form 2","Income Stmt CON","2F36Com1","36. Nature of Material Items - 1",{"$f":"'Form 2'!C142","v":0}]
["Form 2","Income Stmt CON","2F36Com2","36. Nature of Material Items - 2",{"$f":"'Form 2'!C143","v":0}]
["Form 2","Income Stmt CON","2F36Com3","36. Nature of Material Items - 3",{"$f":"'Form 2'!C144","v":0}]
["Form 2","Income Stmt CON","2F36Com4","36. Nature of Material Items - 4",{"$f":"'Form 2'!C145","v":0}]
["Form 2","Income Stmt CON","2F36Com5","36. Nature of Material Items - 5",{"$f":"'Form 2'!C146","v":0}]
["Form 2","Income Stmt CON","2F36Com6","36. Nature of Material Items - 6",{"$f":"'Form 2'!C147","v":0}]
["Form 2","Income Stmt CON","2F36Com7","36. Nature of Material Items - 7",{"$f":"'Form 2'!C148","v":0}]
["Form 2","Income Stmt CON","2F36Com8","36. Nature of Material Items - 8",{"$f":"'Form 2'!C149","v":0}]
[]
[null,null,null,"Statement of Capital & Surplus"]
["Form 8","Stmt of C&S CON","8F1ai","Capital Stock",{"$f":"'Form 8'!G12","v":0},null,{"$f":"'Form 8'!I12","v":0}]
["Form 8","Stmt of C&S CON","8F1aiiA","Preferred Shares",{"$f":"'Form 8'!G17","v":0},null,{"$f":"'Form 8'!I17","v":0}]
["Form 8","Stmt of C&S CON","8F1aiiB","Preferred Shares - Subsidiary",{"$f":"'Form 8'!G25","v":0},null,{"$f":"'Form 8'!I25","v":0}]
["Form 8","Stmt of C&S CON","8F1aiii","Treasury Shares",{"$f":"'Form 8'!G33","v":0},null,{"$f":"'Form 8'!I33","v":0}]
["Form 8","Stmt of C&S CON","8F1b","Contributed Surplus",{"$f":"'Form 8'!G37","v":0},null,{"$f":"'Form 8'!I37","v":0}]
["Form 8","Stmt of C&S CON","8F1ci","Other Fixed Capital - Hybrid Instruments",{"$f":"'Form 8'!G40","v":0},null,{"$f":"'Form 8'!I40","v":0}]
["Form 8","Stmt of C&S CON","8F1cii","Other Fixed Capital - Guarantees & Others",{"$f":"'Form 8'!G41","v":0},null,{"$f":"'Form 8'!I41","v":0}]
["Form 8","Stmt of C&S CON","8F2a","Statutory Surplus - Beginning of Year",{"$f":"'Form 8'!G48","v":0},null,{"$f":"'Form 8'!I48","v":0}]
["Form 8","Stmt of C&S CON","8F2c","Dividends",{"$f":"'Form 8'!G52","v":0},null,{"$f":"'Form 8'!I52","v":0}]
["Form 8","Stmt of C&S CON","8F2d","Unrealized Change in Investments",{"$f":"'Form 8'!G54","v":0},null,{"$f":"'Form 8'!I54","v":0}]
["Form 8","Stmt of C&S CON","8F2e","Change in Non-Admitted Assets",{"$f":"'Form 8'!G56","v":0},null,{"$f":"'Form 8'!I56","v":0}]
["Form 8","Stmt of C&S CON","8F2f","Change in Real Estate",{"$f":"'Form 8'!G58","v":0},null,{"$f":"'Form 8'!I58","v":0}]
["Form 8","Stmt of C&S CON","8F2g","Change in Other Statutory Capital",{"$f":"'Form 8'!G60","v":0},null,{"$f":"'Form 8'!I60","v":0}]
["Form 8","Stmt of C&S CON","8F3","Minority Interest",{"$f":"'Form 8'!G64","v":0},null,{"$f":"'Form 8'!I64","v":0}]
[]
[null,null,null,"IFRS Balance Sheet"]
["Form 1A","Balance Sheet CON","1A1","Cash and Cash Equivalents",{"$f":"'Form 1A'!M10","v":0},null,{"$f":"'Form 1A'!O10","v":0}]
["Form 1A","Balance Sheet CON","1A2ai","Quoted - Bonds - Held to Maturity",{"$f":"'Form 1A'!M14","v":0},null,{"$f":"'Form 1A'!O14","v":0}]
["Form 1A","Balance Sheet CON","1A2aii","Quoted - Bonds - Other",{"$f":"'Form 1A'!M15","v":0},null,{"$f":"'Form 1A'!O15","v":0}]
["Form 1A","Balance Sheet CON","1A2ci","Quoted - Equities - Common Stocks",{"$f":"'Form 1A'!M18","v":0},null,{"$f":"'Form 1A'!O18","v":0}]
["Form 1A","Balance Sheet CON","1A2cii","Quoted - Equities - Preferred Stocks",{"$f":"'Form 1A'!M19","v":0},null,{"$f":"'Form 1A'!O19","v":0}]
["Form 1A","Balance Sheet CON","1A2ciii","Quoted - Equities - Mutual Funds",{"$f":"'Form 1A'!M20","v":0},null,{"$f":"'Form 1A'!O20","v":0}]
["Form 1A","Balance Sheet CON","1A2e","Quoted - Other Investments",{"$f":"'Form 1A'!M22","v":0},null,{"$f":"'Form 1A'!O22","v":0}]
["Form 1A","Balance Sheet CON","1A3ai","Unquoted - Bonds - Held to Maturity",{"$f":"'Form 1A'!M27","v":0},null,{"$f":"'Form 1A'!O27","v":0}]
["Form 1A","Balance Sheet CON","1A3aii","Unquoted - Bonds - Other",{"$f":"'Form 1A'!M28","v":0},null,{"$f":"'Form 1A'!O28","v":0}]
["Form 1A","Balance Sheet CON","1A3ci","Unquoted - Equities - Common Stocks",{"$f":"'Form 1A'!M31","v":0},null,{"$f":"'Form 1A'!O31","v":0}]
["Form 1A","Balance Sheet CON","1A3cii","Unquoted - Equities - Preferred Stocks",{"$f":"'Form 1A'!M32","v":0},null,{"$f":"'Form 1A'!O32","v":0}]
["Form 1A","Balance Sheet CON","1A3ciii","Unquoted - Equities - Mutual Funds",{"$f":"'Form 1A'!M33","v":0},null,{"$f":"'Form 1A'!O33","v":0}]
["Form 1A","Balance Sheet CON","1A3e","Unquoted - Other Investments",{"$f":"'Form 1A'!M35","v":0},null,{"$f":"'Form 1A'!O35","v":0}]
["Form 1A","Balance Sheet CON","1A4a","Inv. In Affiliates - Unregulated Ancillary",{"$f":"'Form 1A'!M39","v":0},null,{"$f":"'Form 1A'!O39","v":0}]
["Form 1A","Balance Sheet CON","1A4b","Inv. In Affiliates - Unregulated Non-Fin. Oper.",{"$f":"'Form 1A'!M40","v":0},null,{"$f":"'Form 1A'!O40","v":0}]
["Form 1A","Balance Sheet CON","1A4c","Inv. In Affiliates - Unregulated Fin. Operating",{"$f":"'Form 1A'!M41","v":0},null,{"$f":"'Form 1A'!O41","v":0}]
["Form 1A","Balance Sheet CON","1A4d","Inv. In Affiliates - Regulated Non-Insurance",{"$f":"'Form 1A'!M42","v":0},null,{"$f":"'Form 1A'!O42","v":0}]
["Form 1A","Balance Sheet CON","1A4e","Inv. In Affiliates - Regulated Insurance",{"$f":"'Form 1A'!M43","v":0},null,{"$f":"'Form 1A'!O43","v":0}]
["Form 1A","Balance Sheet CON","1A4g","Advances To Affiliates",{"$f":"'Form 1A'!M45","v":0},null,{"$f":"'Form 1A'!O45","v":0}]
["Form 1A","Balance Sheet CON","1A5a","Inv. In Mortg. Loans on Real Estate - 1st Lien",{"$f":"'Form 1A'!M49","v":0},null,{"$f":"'Form 1A'!O49","v":0}]
["Form 1A","Balance Sheet CON","1A5b","Inv. In Mortg. Loans on Real Estate - Other",{"$f":"'Form 1A'!M50","v":0},null,{"$f":"'Form 1A'!O50","v":0}]
["Form 1A","Balance Sheet CON","1A7a","Real Estate - Occupied by Company",{"$f":"'Form 1A'!M54","v":0},null,{"$f":"'Form 1A'!O54","v":0}]
["Form 1A","Balance Sheet CON","1A7b","Real Estate - Other",{"$f":"'Form 1A'!M55","v":0},null,{"$f":"'Form 1A'!O55","v":0}]
["Form 1A","Balance Sheet CON","1A8","Collateral Loans",{"$f":"'Form 1A'!M58","v":0},null,{"$f":"'Form 1A'!O58","v":0}]
["Form 1A","Balance Sheet CON","1A9","Investment Income Due and Accrued",{"$f":"'Form 1A'!M60","v":0},null,{"$f":"'Form 1A'!O60","v":0}]
["Form 1A","Balance Sheet CON","1A10","Accounts Receivable",{"$f":"'Form 1A'!M62","v":0},null,{"$f":"'Form 1A'!O62","v":0}]
["Form 1A","Balance Sheet CON","1A11a","Insurance Contract Assets",{"$f":"'Form 1A'!M65","v":0},null,{"$f":"'Form 1A'!O65","v":0}]
["Form 1A","Balance Sheet CON","1A11b","Reinsurance Contract Assets",{"$f":"'Form 1A'!M66","v":0},null,{"$f":"'Form 1A'!O66","v":0}]
["Form 1A","Balance Sheet CON","1A11c","Investment Contracts with DPF Assets",{"$f":"'Form 1A'!M67","v":0},null,{"$f":"'Form 1A'!O67","v":0}]
["Form 1A","Balance Sheet CON","1A13a","Sundry Assets - Derivatives",{"$f":"'Form 1A'!M71","v":0},null,{"$f":"'Form 1A'!O71","v":0}]
["Form 1A","Balance Sheet CON","1A13b","Sundry Assets - SAC - LT- Variable Annuities",{"$f":"'Form 1A'!M72","v":0},null,{"$f":"'Form 1A'!O72","v":0}]
["Form 1A","Balance Sheet CON","1A13c","Sundry Assets - SAC - LT- Others",{"$f":"'Form 1A'!M73","v":0},null,{"$f":"'Form 1A'!O73","v":0}]
["Form 1A","Balance Sheet CON","1A13d","Sundry Assets - SAC - General Business",{"$f":"'Form 1A'!M74","v":0},null,{"$f":"'Form 1A'!O74","v":0}]
["Form 1A","Balance Sheet CON","1A13e","Sundry Assets - Deposit Assets",{"$f":"'Form 1A'!M75","v":0},null,{"$f":"'Form 1A'!O75","v":0}]
["Form 1A","Balance Sheet CON","1A13f","Sundry Assets - Net Rec. for Investments",{"$f":"'Form 1A'!M76","v":0},null,{"$f":"'Form 1A'!O76","v":0}]
["Form 1A","Balance Sheet CON","1A13g","Sundry Assets - Other 1",{"$f":"'Form 1A'!M77","v":0},null,{"$f":"'Form 1A'!O77","v":0}]
["Form 1A","Balance Sheet CON","1A13h","Sundry Assets - Other 2",{"$f":"'Form 1A'!M78","v":0},null,{"$f":"'Form 1A'!O78","v":0}]
["Form 1A","Balance Sheet CON","1A13i","Sundry Assets - Other 3",{"$f":"'Form 1A'!M79","v":0},null,{"$f":"'Form 1A'!O79","v":0}]
["Form 1A","Balance Sheet CON","1A14a","Letters of Credit",{"$f":"'Form 1A'!M83","v":0},null,{"$f":"'Form 1A'!O83","v":0}]
["Form 1A","Balance Sheet CON","1A14b","Guarantees",{"$f":"'Form 1A'!M84","v":0},null,{"$f":"'Form 1A'!O84","v":0}]
["Form 1A","Balance Sheet CON","1A14c","Other Instruments",{"$f":"'Form 1A'!M85","v":0},null,{"$f":"'Form 1A'!O85","v":0}]
["Form 1A","Balance Sheet CON","1A15","Total Assets",{"$f":"'Form 1A'!M88","v":0},null,{"$f":"'Form 1A'!O88","v":0}]
["Form 1A","Balance Sheet CON","1A17","General Business Insurance Contract Liabilities",{"$f":"'Form 1A'!M94","v":0},null,{"$f":"'Form 1A'!O94","v":0}]
["Form 1A","Balance Sheet CON","1A17A","General Business Reinsurance Contract Liabilities",{"$f":"'Form 1A'!M96","v":0},null,{"$f":"'Form 1A'!O96","v":0}]
["Form 1A","Balance Sheet CON","1A18","Investment Contracts with DPF Liabilities",{"$f":"'Form 1A'!M98","v":0},null,{"$f":"'Form 1A'!O98","v":0}]
["Form 1A","Balance Sheet CON","1A27","Long-Term Business Insurance Contract Liabilities",{"$f":"'Form 1A'!M100","v":0},null,{"$f":"'Form 1A'!O100","v":0}]
["Form 1A","Balance Sheet CON","1A27A","Long-Term Business Reinsurance Contract Liabilities",{"$f":"'Form 1A'!M102","v":0},null,{"$f":"'Form 1A'!O102","v":0}]
["Form 1A","Balance Sheet CON","1A29","Commissions, Expenses and Taxes Payable",{"$f":"'Form 1A'!M106","v":0},null,{"$f":"'Form 1A'!O106","v":0}]
["Form 1A","Balance Sheet CON","1A30","Loans and Notes Payable",{"$f":"'Form 1A'!M108","v":0},null,{"$f":"'Form 1A'!O108","v":0}]
["Form 1A","Balance Sheet CON","1A31a","Income Taxes Payable",{"$f":"'Form 1A'!M110","v":0},null,{"$f":"'Form 1A'!O110","v":0}]
["Form 1A","Balance Sheet CON","1A31b","Deferred Taxes Payable",{"$f":"'Form 1A'!M112","v":0},null,{"$f":"'Form 1A'!O112","v":0}]
["Form 1A","Balance Sheet CON","1A32","Amounts Due to Affiliates",{"$f":"'Form 1A'!M114","v":0},null,{"$f":"'Form 1A'!O114","v":0}]
["Form 1A","Balance Sheet CON","1A33","Accounts Payable and Accrued Liabilities",{"$f":"'Form 1A'!M116","v":0},null,{"$f":"'Form 1A'!O116","v":0}]
["Form 1A","Balance Sheet CON","1A35","Dividends Payable",{"$f":"'Form 1A'!M118","v":0},null,{"$f":"'Form 1A'!O118","v":0}]
["Form 1A","Balance Sheet CON","1A36a","Sundry Liabilities - Derivative Instruments",{"$f":"'Form 1A'!M121","v":0},null,{"$f":"'Form 1A'!O121","v":0}]
["Form 1A","Balance Sheet CON","1A36b","Sundry Liabilities - Seg. Accounts",{"$f":"'Form 1A'!M122","v":0},null,{"$f":"'Form 1A'!O122","v":0}]
["Form 1A","Balance Sheet CON","1A36c","Sundry Liabilities - Deposit Liabilities",{"$f":"'Form 1A'!M123","v":0},null,{"$f":"'Form 1A'!O123","v":0}]
["Form 1A","Balance Sheet CON","1A36d","Sundry Liabilities - Investments Purchased",{"$f":"'Form 1A'!M124","v":0},null,{"$f":"'Form 1A'!O124","v":0}]
["Form 1A","Balance Sheet CON","1A36e","Sundry Liabilities - Other 1",{"$f":"'Form 1A'!M125","v":0},null,{"$f":"'Form 1A'!O125","v":0}]
["Form 1A","Balance Sheet CON","1A36f","Sundry Liabilities - Other 2",{"$f":"'Form 1A'!M126","v":0},null,{"$f":"'Form 1A'!O126","v":0}]
["Form 1A","Balance Sheet CON","1A36g","Sundry Liabilities - Other 3",{"$f":"'Form 1A'!M127","v":0},null,{"$f":"'Form 1A'!O127","v":0}]
["Form 1A","Balance Sheet CON","1A37a","Letters of Credit",{"$f":"'Form 1A'!M131","v":0},null,{"$f":"'Form 1A'!O131","v":0}]
["Form 1A","Balance Sheet CON","1A37b","Guarantees",{"$f":"'Form 1A'!M132","v":0},null,{"$f":"'Form 1A'!O132","v":0}]
["Form 1A","Balance Sheet CON","1A37c","Other Instruments",{"$f":"'Form 1A'!M133","v":0},null,{"$f":"'Form 1A'!O133","v":0}]
[]
["Form 1A","Notes","Form 1A","Premium Receivable - in course of collection",{"$f":"'Form 1A'!M155","v":0},null,{"$f":"'Form 1A'!O155","v":0}]
["Form 1A","Notes","Form 1A","Premium Receivable - Deferred not yet due",{"$f":"'Form 1A'!M156","v":0},null,{"$f":"'Form 1A'!O156","v":0}]
["Form 1A","Notes","Form 1A","Premium Receivable - receivable from retrocessional contracts",{"$f":"'Form 1A'!M157","v":0},null,{"$f":"'Form 1A'!O157","v":0}]
["Form 1A","Notes","Form 1A","Premium Receivable - Total",{"$f":"'Form 1A'!M158","v":0},null,{"$f":"'Form 1A'!O158","v":0}]
["Form 1A","Notes","Form 1A","Reinsurance Balances Receivable",{"$f":"'Form 1A'!M160","v":0},null,{"$f":"'Form 1A'!O160","v":0}]
["Form 1A","Notes","Form 1A","Funds Held by Ceding Reinsurers",{"$f":"'Form 1A'!M162","v":0},null,{"$f":"'Form 1A'!O162","v":0}]
["Form 1A","Notes","Form 1A","Line 10 - Collaterized Balances",{"$f":"'Form 1A'!M164","v":0},null,{"$f":"'Form 1A'!O164","v":0}]
["Form 1A","Notes","Form 1A","Line 13(a) Natue of Sundry Assets",{"$f":"'Form 1A'!M167","v":0}]
["Form 1A","Notes","Form 1A","Line 13(b)(i) Description of Derivatives policies",{"$f":"'Form 1A'!M168","v":0}]
["Form 1A","Notes","Form 1A","Line 13(b)(ii) MV and Nominal Exposure of derivatives",{"$f":"'Form 1A'!M169","v":0}]
["Form 1A","Notes","Form 1A","Line 15 - Policy. Oblig. - Cash",{"$f":"'Form 1A'!M174","v":0},null,{"$f":"'Form 1A'!O174","v":0}]
["Form 1A","Notes","Form 1A","Line 15 - Policy. Oblig. - Quoted. Inv.",{"$f":"'Form 1A'!M175","v":0},null,{"$f":"'Form 1A'!O175","v":0}]
["Form 1A","Notes","Form 1A","Line 15 - Policy. Oblig. - Unquoted. Inv.",{"$f":"'Form 1A'!M176","v":0},null,{"$f":"'Form 1A'!O176","v":0}]
["Form 1A","Notes","Form 1A","Line 15 - Policy. Oblig. - Other Assets",{"$f":"'Form 1A'!M178","v":0},null,{"$f":"'Form 1A'!O178","v":0}]
["Form 1A","Notes","Form 1A","Line 15 - Policy. Oblig. - Total",{"$f":"'Form 1A'!M179","v":0},null,{"$f":"'Form 1A'!O179","v":0}]
["Form 1A","Notes","Form 1A","Line 15 - Other - Cash",{"$f":"'Form 1A'!M184","v":0},null,{"$f":"'Form 1A'!O184","v":0}]
["Form 1A","Notes","Form 1A","Line 15 - Other - Quoted. Inv.",{"$f":"'Form 1A'!M185","v":0},null,{"$f":"'Form 1A'!O185","v":0}]
["Form 1A","Notes","Form 1A","Line 15 - Other - Unquoted. Inv.",{"$f":"'Form 1A'!M186","v":0},null,{"$f":"'Form 1A'!O186","v":0}]
["Form 1A","Notes","Form 1A","Line 15 - Other - Other Assets",{"$f":"'Form 1A'!M187","v":0},null,{"$f":"'Form 1A'!O187","v":0}]
["Form 1A","Notes","Form 1A","Line 15 - Other - Total",{"$f":"'Form 1A'!M188","v":0},null,{"$f":"'Form 1A'!O188","v":0}]
["Form 1A","Notes","Form 1A","Line 36(a) Natue of Sundry Liabilities",{"$f":"'Form 1A'!M191","v":0}]
["Form 1A","Notes","Form 1A","Line 13(b)(i) Description of Derivatives policies",{"$f":"'Form 1A'!M192","v":0}]
["Form 1A","Notes","Form 1A","Line 13(b)(ii) MV and Nominal Exposure of derivatives",{"$f":"'Form 1A'!M193","v":0}]
["Form 1A","Notes","Form 1A","Line 37 - LOC's & Guarantees",{"$f":"'Form 1A'!M195","v":0},null,{"$f":"'Form 1A'!O195","v":0}]
["Form 1A","Notes","Form 1A","L17 - PAA Exc. Loss Comp - Open Assets",{"$f":"'Form 1A'!E201","v":0}]
["Form 1A","Notes","Form 1A","L17 - PAA Exc. Loss Comp - Open Liabilities",{"$f":"'Form 1A'!E202","v":0}]
["Form 1A","Notes","Form 1A","L17 - PAA Exc. Loss Comp - Net Open",{"$f":"'Form 1A'!E203","v":0}]
["Form 1A","Notes","Form 1A","L17 - PAA Exc. Loss Comp - Insurance Revenue",{"$f":"'Form 1A'!E207","v":0}]
["Form 1A","Notes","Form 1A","L17 - PAA Exc. Loss Comp - Amort. Cash Flows",{"$f":"'Form 1A'!E210","v":0}]
["Form 1A","Notes","Form 1A","L17 - PAA Exc. Loss Comp - Incurred Claims",{"$f":"'Form 1A'!E211","v":0}]
["Form 1A","Notes","Form 1A","L17 - PAA Exc. Loss Comp - Losses on enerous contracts",{"$f":"'Form 1A'!E212","v":0}]
["Form 1A","Notes","Form 1A","L17 - PAA Exc. Loss Comp - Adj to Liabilities for Incurred Claims",{"$f":"'Form 1A'!E213","v":0}]
["Form 1A","Notes","Form 1A","L17 - PAA Exc. Loss Comp - Total Insurance Service Expenses",{"$f":"'Form 1A'!E214","v":0}]
["Form 1A","Notes","Form 1A","L17 - PAA Exc. Loss Comp - Investment Components",{"$f":"'Form 1A'!E216","v":0}]
["Form 1A","Notes","Form 1A","L17 - PAA Exc. Loss Comp - Insurance Service Results",{"$f":"'Form 1A'!E217","v":0}]
["Form 1A","Notes","Form 1A","L17 - PAA Exc. Loss Comp - Net finance expenses",{"$f":"'Form 1A'!E219","v":0}]
["Form 1A","Notes","Form 1A","L17 - PAA Exc. Loss Comp - Foreign Exchange",{"$f":"'Form 1A'!E220","v":0}]
["Form 1A","Notes","Form 1A","L17 - PAA Exc. Loss Comp - Change in Profit or Loss",{"$f":"'Form 1A'!E221","v":0}]
["Form 1A","Notes","Form 1A","L17 - PAA Exc. Loss Comp - CF Premium Received",{"$f":"'Form 1A'!E224","v":0}]
["Form 1A","Notes","Form 1A","L17 - PAA Exc. Loss Comp - CF Insurance Acquisition",{"$f":"'Form 1A'!E225","v":0}]
["Form 1A","Notes","Form 1A","L17 - PAA Exc. Loss Comp - CF Claims Paid",{"$f":"'Form 1A'!E226","v":0}]
["Form 1A","Notes","Form 1A","L17 - PAA Exc. Loss Comp - Total CF",{"$f":"'Form 1A'!E227","v":0}]
["Form 1A","Notes","Form 1A","L17 - PAA Exc. Loss Comp - Contracts Trans. Acquisition Sub.",{"$f":"'Form 1A'!E228","v":0}]
["Form 1A","Notes","Form 1A","L17 - PAA Exc. Loss Comp - Contracts Trans. Disposal Sub.",{"$f":"'Form 1A'!E229","v":0}]
["Form 1A","Notes","Form 1A","L17 - PAA Exc. Loss Comp - Net Closing Balance",{"$f":"'Form 1A'!E230","v":0}]
["Form 1A","Notes","Form 1A","L17 - PAA Exc. Loss Comp - Closing Assets",{"$f":"'Form 1A'!E232","v":0}]
["Form 1A","Notes","Form 1A","L17 - PAA Exc. Loss Comp - Closing Liabilities",{"$f":"'Form 1A'!E233","v":0}]
["Form 1A","Notes","Form 1A","L17 - PAA Exc. Loss Comp - Net Closing Balance",{"$f":"'Form 1A'!E234","v":0}]
["Form 1A","Notes","Form 1A","L17 - PAA Loss Comp - Open Assets",{"$f":"'Form 1A'!G201","v":0}]
["Form 1A","Notes","Form 1A","L17 - PAA Loss Comp - Open Liabilities",{"$f":"'Form 1A'!G202","v":0}]
["Form 1A","Notes","Form 1A","L17 - PAA Loss Comp - Net Open",{"$f":"'Form 1A'!G203","v":0}]
["Form 1A","Notes","Form 1A","L17 - PAA Loss Comp - Insurance Revenue",{"$f":"'Form 1A'!G207","v":0}]
["Form 1A","Notes","Form 1A","L17 - PAA Loss Comp - Amort. Cash Flows",{"$f":"'Form 1A'!G210","v":0}]
["Form 1A","Notes","Form 1A","L17 - PAA Loss Comp - Incurred Claims",{"$f":"'Form 1A'!G211","v":0}]
["Form 1A","Notes","Form 1A","L17 - PAA Loss Comp - Losses on enerous contracts",{"$f":"'Form 1A'!G212","v":0}]
["Form 1A","Notes","Form 1A","L17 - PAA Loss Comp - Adj to Liabilities for Incurred Claims",{"$f":"'Form 1A'!G213","v":0}]
["Form 1A","Notes","Form 1A","L17 - PAA Loss Comp - Total Insurance Service Expenses",{"$f":"'Form 1A'!G214","v":0}]
["Form 1A","Notes","Form 1A","L17 - PAA Loss Comp - Investment Components",{"$f":"'Form 1A'!G216","v":0}]
["Form 1A","Notes","Form 1A","L17 - PAA Loss Comp - Insurance Service Results",{"$f":"'Form 1A'!G217","v":0}]
["Form 1A","Notes","Form 1A","L17 - PAA Loss Comp - Net finance expenses",{"$f":"'Form 1A'!G219","v":0}]
["Form 1A","Notes","Form 1A","L17 - PAA Loss Comp - Foreign Exchange",{"$f":"'Form 1A'!G220","v":0}]
["Form 1A","Notes","Form 1A","L17 - PAA Loss Comp - Change in Profit or Loss",{"$f":"'Form 1A'!G221","v":0}]
["Form 1A","Notes","Form 1A","L17 - PAA Loss Comp - CF Premium Received",{"$f":"'Form 1A'!G224","v":0}]
["Form 1A","Notes","Form 1A","L17 - PAA Loss Comp - CF Insurance Acquisition",{"$f":"'Form 1A'!G225","v":0}]
["Form 1A","Notes","Form 1A","L17 - PAA Loss Comp - CF Claims Paid",{"$f":"'Form 1A'!G226","v":0}]
["Form 1A","Notes","Form 1A","L17 - PAA Loss Comp - Total CF",{"$f":"'Form 1A'!G227","v":0}]
["Form 1A","Notes","Form 1A","L17 - PAA Loss Comp - Contracts Trans. Acquisition Sub.",{"$f":"'Form 1A'!G228","v":0}]
["Form 1A","Notes","Form 1A","L17 - PAA Loss Comp - Contracts Trans. Disposal Sub.",{"$f":"'Form 1A'!G229","v":0}]
["Form 1A","Notes","Form 1A","L17 - PAA Loss Comp - Net Closing Balance",{"$f":"'Form 1A'!G230","v":0}]
["Form 1A","Notes","Form 1A","L17 - PAA Loss Comp - Closing Assets",{"$f":"'Form 1A'!G232","v":0}]
["Form 1A","Notes","Form 1A","L17 - PAA Loss Comp - Closing Liabilities",{"$f":"'Form 1A'!G233","v":0}]
["Form 1A","Notes","Form 1A","L17 - PAA Loss Comp - Net Closing Balance",{"$f":"'Form 1A'!G234","v":0}]
["Form 1A","Notes","Form 1A","L17 - GMM Liab. for Incurred - Open Assets",{"$f":"'Form 1A'!I201","v":0}]
["Form 1A","Notes","Form 1A","L17 - GMM Liab. for Incurred - Open Liabilities",{"$f":"'Form 1A'!I202","v":0}]
["Form 1A","Notes","Form 1A","L17 - GMM Liab. for Incurred - Net Open",{"$f":"'Form 1A'!I203","v":0}]
["Form 1A","Notes","Form 1A","L17 - GMM Liab. for Incurred - Insurance Revenue",{"$f":"'Form 1A'!I207","v":0}]
["Form 1A","Notes","Form 1A","L17 - GMM Liab. for Incurred - Amort. Cash Flows",{"$f":"'Form 1A'!I210","v":0}]
["Form 1A","Notes","Form 1A","L17 - GMM Liab. for Incurred - Incurred Claims",{"$f":"'Form 1A'!I211","v":0}]
["Form 1A","Notes","Form 1A","L17 - GMM Liab. for Incurred - Losses on enerous contracts",{"$f":"'Form 1A'!I212","v":0}]
["Form 1A","Notes","Form 1A","L17 - GMM Liab. for Incurred - Adj to Liabilities for Incurred Claims",{"$f":"'Form 1A'!I213","v":0}]
["Form 1A","Notes","Form 1A","L17 - GMM Liab. for Incurred - Total Insurance Service Expenses",{"$f":"'Form 1A'!I214","v":0}]
["Form 1A","Notes","Form 1A","L17 - GMM Liab. for Incurred - Investment Components",{"$f":"'Form 1A'!I216","v":0}]
["Form 1A","Notes","Form 1A","L17 - GMM Liab. for Incurred - Insurance Service Results",{"$f":"'Form 1A'!I217","v":0}]
["Form 1A","Notes","Form 1A","L17 - GMM Liab. for Incurred - Net finance expenses",{"$f":"'Form 1A'!I219","v":0}]
["Form 1A","Notes","Form 1A","L17 - GMM Liab. for Incurred - Foreign Exchange",{"$f":"'Form 1A'!I220","v":0}]
["Form 1A","Notes","Form 1A","L17 - GMM Liab. for Incurred - Change in Profit or Loss",{"$f":"'Form 1A'!I221","v":0}]
["Form 1A","Notes","Form 1A","L17 - GMM Liab. for Incurred - CF Premium Received",{"$f":"'Form 1A'!I224","v":0}]
["Form 1A","Notes","Form 1A","L17 - GMM Liab. for Incurred - CF Insurance Acquisition",{"$f":"'Form 1A'!I225","v":0}]
["Form 1A","Notes","Form 1A","L17 - GMM Liab. for Incurred - CF Claims Paid",{"$f":"'Form 1A'!I226","v":0}]
["Form 1A","Notes","Form 1A","L17 - GMM Liab. for Incurred - Total CF",{"$f":"'Form 1A'!I227","v":0}]
["Form 1A","Notes","Form 1A","L17 - GMM Liab. for Incurred - Contracts Trans. Acquisition Sub.",{"$f":"'Form 1A'!I228","v":0}]
["Form 1A","Notes","Form 1A","L17 - GMM Liab. for Incurred - Contracts Trans. Disposal Sub.",{"$f":"'Form 1A'!I229","v":0}]
["Form 1A","Notes","Form 1A","L17 - GMM Liab. for Incurred - Net Closing Balance",{"$f":"'Form 1A'!I230","v":0}]
["Form 1A","Notes","Form 1A","L17 - GMM Liab. for Incurred - Closing Assets",{"$f":"'Form 1A'!I232","v":0}]
["Form 1A","Notes","Form 1A","L17 - GMM Liab. for Incurred - Closing Liabilities",{"$f":"'Form 1A'!I233","v":0}]
["Form 1A","Notes","Form 1A","L17 - GMM Liab. for Incurred - Net Closing Balance",{"$f":"'Form 1A'!I234","v":0}]
["Form 1A","Notes","Form 1A","L17 - GMM PV Cash Flow - Open Assets",{"$f":"'Form 1A'!K201","v":0}]
["Form 1A","Notes","Form 1A","L17 - GMM PV Cash Flow - Open Liabilities",{"$f":"'Form 1A'!K202","v":0}]
["Form 1A","Notes","Form 1A","L17 - GMM PV Cash Flow - Net Open",{"$f":"'Form 1A'!K203","v":0}]
["Form 1A","Notes","Form 1A","L17 - GMM PV Cash Flow - Insurance Revenue",{"$f":"'Form 1A'!K207","v":0}]
["Form 1A","Notes","Form 1A","L17 - GMM PV Cash Flow - Amort. Cash Flows",{"$f":"'Form 1A'!K210","v":0}]
["Form 1A","Notes","Form 1A","L17 - GMM PV Cash Flow - Incurred Claims",{"$f":"'Form 1A'!K211","v":0}]
["Form 1A","Notes","Form 1A","L17 - GMM PV Cash Flow - Losses on enerous contracts",{"$f":"'Form 1A'!K212","v":0}]
["Form 1A","Notes","Form 1A","L17 - GMM PV Cash Flow - Adj to Liabilities for Incurred Claims",{"$f":"'Form 1A'!K213","v":0}]
["Form 1A","Notes","Form 1A","L17 - GMM PV Cash Flow - Total Insurance Service Expenses",{"$f":"'Form 1A'!K214","v":0}]
["Form 1A","Notes","Form 1A","L17 - GMM PV Cash Flow - Investment Components",{"$f":"'Form 1A'!K216","v":0}]
["Form 1A","Notes","Form 1A","L17 - GMM PV Cash Flow - Insurance Service Results",{"$f":"'Form 1A'!K217","v":0}]
["Form 1A","Notes","Form 1A","L17 - GMM PV Cash Flow - Net finance expenses",{"$f":"'Form 1A'!K219","v":0}]
["Form 1A","Notes","Form 1A","L17 - GMM PV Cash Flow - Foreign Exchange",{"$f":"'Form 1A'!K220","v":0}]
["Form 1A","Notes","Form 1A","L17 - GMM PV Cash Flow - Change in Profit or Loss",{"$f":"'Form 1A'!K221","v":0}]
["Form 1A","Notes","Form 1A","L17 - GMM PV Cash Flow - CF Premium Received",{"$f":"'Form 1A'!K224","v":0}]
["Form 1A","Notes","Form 1A","L17 - GMM PV Cash Flow - CF Insurance Acquisition",{"$f":"'Form 1A'!K225","v":0}]
["Form 1A","Notes","Form 1A","L17 - GMM PV Cash Flow - CF Claims Paid",{"$f":"'Form 1A'!K226","v":0}]
["Form 1A","Notes","Form 1A","L17 - GMM PV Cash Flow - Total CF",{"$f":"'Form 1A'!K227","v":0}]
["Form 1A","Notes","Form 1A","L17 - GMM PV Cash Flow - Contracts Trans. Acquisition Sub.",{"$f":"'Form 1A'!K228","v":0}]
["Form 1A","Notes","Form 1A","L17 - GMM PV Cash Flow - Contracts Trans. Disposal Sub.",{"$f":"'Form 1A'!K229","v":0}]
["Form 1A","Notes","Form 1A","L17 - GMM PV Cash Flow - Net Closing Balance",{"$f":"'Form 1A'!K230","v":0}]
["Form 1A","Notes","Form 1A","L17 - GMM PV Cash Flow - Closing Assets",{"$f":"'Form 1A'!K232","v":0}]
["Form 1A","Notes","Form 1A","L17 - GMM PV Cash Flow - Closing Liabilities",{"$f":"'Form 1A'!K233","v":0}]
["Form 1A","Notes","Form 1A","L17 - GMM PV Cash Flow - Net Closing Balance",{"$f":"'Form 1A'!K234","v":0}]
["Form 1A","Notes","Form 1A","L17 - GMM Risk Adj - Open Assets",{"$f":"'Form 1A'!M201","v":0}]
["Form 1A","Notes","Form 1A","L17 - GMM Risk Adj - Open Liabilities",{"$f":"'Form 1A'!M202","v":0}]
["Form 1A","Notes","Form 1A","L17 - GMM Risk Adj - Net Open",{"$f":"'Form 1A'!M203","v":0}]
["Form 1A","Notes","Form 1A","L17 - GMM Risk Adj - Insurance Revenue",{"$f":"'Form 1A'!M207","v":0}]
["Form 1A","Notes","Form 1A","L17 - GMM Risk Adj - Amort. Cash Flows",{"$f":"'Form 1A'!M210","v":0}]
["Form 1A","Notes","Form 1A","L17 - GMM Risk Adj - Incurred Claims",{"$f":"'Form 1A'!M211","v":0}]
["Form 1A","Notes","Form 1A","L17 - GMM Risk Adj - Losses on enerous contracts",{"$f":"'Form 1A'!M212","v":0}]
["Form 1A","Notes","Form 1A","L17 - GMM Risk Adj - Adj to Liabilities for Incurred Claims",{"$f":"'Form 1A'!M213","v":0}]
["Form 1A","Notes","Form 1A","L17 - GMM Risk Adj - Total Insurance Service Expenses",{"$f":"'Form 1A'!M214","v":0}]
["Form 1A","Notes","Form 1A","L17 - GMM Risk Adj - Investment Components",{"$f":"'Form 1A'!M216","v":0}]
["Form 1A","Notes","Form 1A","L17 - GMM Risk Adj - Insurance Service Results",{"$f":"'Form 1A'!M217","v":0}]
["Form 1A","Notes","Form 1A","L17 - GMM Risk Adj - Net finance expenses",{"$f":"'Form 1A'!M219","v":0}]
["Form 1A","Notes","Form 1A","L17 - GMM Risk Adj - Foreign Exchange",{"$f":"'Form 1A'!M220","v":0}]
["Form 1A","Notes","Form 1A","L17 - GMM Risk Adj - Change in Profit or Loss",{"$f":"'Form 1A'!M221","v":0}]
["Form 1A","Notes","Form 1A","L17 - GMM Risk Adj - CF Premium Received",{"$f":"'Form 1A'!M224","v":0}]
["Form 1A","Notes","Form 1A","L17 - GMM Risk Adj - CF Insurance Acquisition",{"$f":"'Form 1A'!M225","v":0}]
["Form 1A","Notes","Form 1A","L17 - GMM Risk Adj - CF Claims Paid",{"$f":"'Form 1A'!M226","v":0}]
["Form 1A","Notes","Form 1A","L17 - GMM Risk Adj - Total CF",{"$f":"'Form 1A'!M227","v":0}]
["Form 1A","Notes","Form 1A","L17 - GMM Risk Adj - Contracts Trans. Acquisition Sub.",{"$f":"'Form 1A'!M228","v":0}]
["Form 1A","Notes","Form 1A","L17 - GMM Risk Adj - Contracts Trans. Disposal Sub.",{"$f":"'Form 1A'!M229","v":0}]
["Form 1A","Notes","Form 1A","L17 - GMM Risk Adj - Net Closing Balance",{"$f":"'Form 1A'!M230","v":0}]
["Form 1A","Notes","Form 1A","L17 - GMM Risk Adj - Closing Assets",{"$f":"'Form 1A'!M232","v":0}]
["Form 1A","Notes","Form 1A","L17 - GMM Risk Adj - Closing Liabilities",{"$f":"'Form 1A'!M233","v":0}]
["Form 1A","Notes","Form 1A","L17 - GMM Risk Adj - Net Closing Balance",{"$f":"'Form 1A'!M234","v":0}]
["Form 1A","Notes","Form 1A","L27 - PAA Exc. Loss Comp - Open Assets",{"$f":"'Form 1A'!E241","v":0}]
["Form 1A","Notes","Form 1A","L27 - PAA Exc. Loss Comp - Open Liabilities",{"$f":"'Form 1A'!E242","v":0}]
["Form 1A","Notes","Form 1A","L27 - PAA Exc. Loss Comp - Net Open",{"$f":"'Form 1A'!E243","v":0}]
["Form 1A","Notes","Form 1A","L27 - PAA Exc. Loss Comp - Insurance Revenue",{"$f":"'Form 1A'!E247","v":0}]
["Form 1A","Notes","Form 1A","L27 - PAA Exc. Loss Comp - Amort. Cash Flows",{"$f":"'Form 1A'!E250","v":0}]
["Form 1A","Notes","Form 1A","L27 - PAA Exc. Loss Comp - Incurred Claims",{"$f":"'Form 1A'!E251","v":0}]
["Form 1A","Notes","Form 1A","L27 - PAA Exc. Loss Comp - Losses on enerous contracts",{"$f":"'Form 1A'!E252","v":0}]
["Form 1A","Notes","Form 1A","L27 - PAA Exc. Loss Comp - Adj to Liabilities for Incurred Claims",{"$f":"'Form 1A'!E253","v":0}]
["Form 1A","Notes","Form 1A","L27 - PAA Exc. Loss Comp - Total Insurance Service Expenses",{"$f":"'Form 1A'!E254","v":0}]
["Form 1A","Notes","Form 1A","L27 - PAA Exc. Loss Comp - Investment Components",{"$f":"'Form 1A'!E256","v":0}]
["Form 1A","Notes","Form 1A","L27 - PAA Exc. Loss Comp - Insurance Service Results",{"$f":"'Form 1A'!E257","v":0}]
["Form 1A","Notes","Form 1A","L27 - PAA Exc. Loss Comp - Net finance expenses",{"$f":"'Form 1A'!E259","v":0}]
["Form 1A","Notes","Form 1A","L27 - PAA Exc. Loss Comp - Foreign Exchange",{"$f":"'Form 1A'!E260","v":0}]
["Form 1A","Notes","Form 1A","L27 - PAA Exc. Loss Comp - Change in Profit or Loss",{"$f":"'Form 1A'!E261","v":0}]
["Form 1A","Notes","Form 1A","L27 - PAA Exc. Loss Comp - CF Premium Received",{"$f":"'Form 1A'!E264","v":0}]
["Form 1A","Notes","Form 1A","L27 - PAA Exc. Loss Comp - CF Insurance Acquisition",{"$f":"'Form 1A'!E265","v":0}]
["Form 1A","Notes","Form 1A","L27 - PAA Exc. Loss Comp - CF Claims Paid",{"$f":"'Form 1A'!E266","v":0}]
["Form 1A","Notes","Form 1A","L27 - PAA Exc. Loss Comp - Total CF",{"$f":"'Form 1A'!E267","v":0}]
["Form 1A","Notes","Form 1A","L27 - PAA Exc. Loss Comp - Contracts Trans. Acquisition Sub.",{"$f":"'Form 1A'!E268","v":0}]
["Form 1A","Notes","Form 1A","L27 - PAA Exc. Loss Comp - Contracts Trans. Disposal Sub.",{"$f":"'Form 1A'!E269","v":0}]
["Form 1A","Notes","Form 1A","L27 - PAA Exc. Loss Comp - Net Closing Balance",{"$f":"'Form 1A'!E270","v":0}]
["Form 1A","Notes","Form 1A","L27 - PAA Exc. Loss Comp - Closing Assets",{"$f":"'Form 1A'!E272","v":0}]
["Form 1A","Notes","Form 1A","L27 - PAA Exc. Loss Comp - Closing Liabilities",{"$f":"'Form 1A'!E273","v":0}]
["Form 1A","Notes","Form 1A","L27 - PAA Exc. Loss Comp - Net Closing Balance",{"$f":"'Form 1A'!E274","v":0}]
["Form 1A","Notes","Form 1A","L27 - PAA Loss Comp - Open Assets",{"$f":"'Form 1A'!G241","v":0}]
["Form 1A","Notes","Form 1A","L27 - PAA Loss Comp - Open Liabilities",{"$f":"'Form 1A'!G242","v":0}]
["Form 1A","Notes","Form 1A","L27 - PAA Loss Comp - Net Open",{"$f":"'Form 1A'!G243","v":0}]
["Form 1A","Notes","Form 1A","L27 - PAA Loss Comp - Insurance Revenue",{"$f":"'Form 1A'!G247","v":0}]
["Form 1A","Notes","Form 1A","L27 - PAA Loss Comp - Amort. Cash Flows",{"$f":"'Form 1A'!G250","v":0}]
["Form 1A","Notes","Form 1A","L27 - PAA Loss Comp - Incurred Claims",{"$f":"'Form 1A'!G251","v":0}]
["Form 1A","Notes","Form 1A","L27 - PAA Loss Comp - Losses on enerous contracts",{"$f":"'Form 1A'!G252","v":0}]
["Form 1A","Notes","Form 1A","L27 - PAA Loss Comp - Adj to Liabilities for Incurred Claims",{"$f":"'Form 1A'!G253","v":0}]
["Form 1A","Notes","Form 1A","L27 - PAA Loss Comp - Total Insurance Service Expenses",{"$f":"'Form 1A'!G254","v":0}]
["Form 1A","Notes","Form 1A","L27 - PAA Loss Comp - Investment Components",{"$f":"'Form 1A'!G256","v":0}]
["Form 1A","Notes","Form 1A","L27 - PAA Loss Comp - Insurance Service Results",{"$f":"'Form 1A'!G257","v":0}]
["Form 1A","Notes","Form 1A","L27 - PAA Loss Comp - Net finance expenses",{"$f":"'Form 1A'!G259","v":0}]
["Form 1A","Notes","Form 1A","L27 - PAA Loss Comp - Foreign Exchange",{"$f":"'Form 1A'!G260","v":0}]
["Form 1A","Notes","Form 1A","L27 - PAA Loss Comp - Change in Profit or Loss",{"$f":"'Form 1A'!G261","v":0}]
["Form 1A","Notes","Form 1A","L27 - PAA Loss Comp - CF Premium Received",{"$f":"'Form 1A'!G264","v":0}]
["Form 1A","Notes","Form 1A","L27 - PAA Loss Comp - CF Insurance Acquisition",{"$f":"'Form 1A'!G265","v":0}]
["Form 1A","Notes","Form 1A","L27 - PAA Loss Comp - CF Claims Paid",{"$f":"'Form 1A'!G266","v":0}]
["Form 1A","Notes","Form 1A","L27 - PAA Loss Comp - Total CF",{"$f":"'Form 1A'!G267","v":0}]
["Form 1A","Notes","Form 1A","L27 - PAA Loss Comp - Contracts Trans. Acquisition Sub.",{"$f":"'Form 1A'!G268","v":0}]
["Form 1A","Notes","Form 1A","L27 - PAA Loss Comp - Contracts Trans. Disposal Sub.",{"$f":"'Form 1A'!G269","v":0}]
["Form 1A","Notes","Form 1A","L27 - PAA Loss Comp - Net Closing Balance",{"$f":"'Form 1A'!G270","v":0}]
["Form 1A","Notes","Form 1A","L27 - PAA Loss Comp - Closing Assets",{"$f":"'Form 1A'!G272","v":0}]
["Form 1A","Notes","Form 1A","L27 - PAA Loss Comp - Closing Liabilities",{"$f":"'Form 1A'!G273","v":0}]
["Form 1A","Notes","Form 1A","L27 - PAA Loss Comp - Net Closing Balance",{"$f":"'Form 1A'!G274","v":0}]
["Form 1A","Notes","Form 1A","L27 - GMM Liab. for Incurred - Open Assets",{"$f":"'Form 1A'!I241","v":0}]
["Form 1A","Notes","Form 1A","L27 - GMM Liab. for Incurred - Open Liabilities",{"$f":"'Form 1A'!I242","v":0}]
["Form 1A","Notes","Form 1A","L27 - GMM Liab. for Incurred - Net Open",{"$f":"'Form 1A'!I243","v":0}]
["Form 1A","Notes","Form 1A","L27 - GMM Liab. for Incurred - Insurance Revenue",{"$f":"'Form 1A'!I247","v":0}]
["Form 1A","Notes","Form 1A","L27 - GMM Liab. for Incurred - Amort. Cash Flows",{"$f":"'Form 1A'!I250","v":0}]
["Form 1A","Notes","Form 1A","L27 - GMM Liab. for Incurred - Incurred Claims",{"$f":"'Form 1A'!I251","v":0}]
["Form 1A","Notes","Form 1A","L27 - GMM Liab. for Incurred - Losses on enerous contracts",{"$f":"'Form 1A'!I252","v":0}]
["Form 1A","Notes","Form 1A","L27 - GMM Liab. for Incurred - Adj to Liabilities for Incurred Claims",{"$f":"'Form 1A'!I253","v":0}]
["Form 1A","Notes","Form 1A","L27 - GMM Liab. for Incurred - Total Insurance Service Expenses",{"$f":"'Form 1A'!I254","v":0}]
["Form 1A","Notes","Form 1A","L27 - GMM Liab. for Incurred - Investment Components",{"$f":"'Form 1A'!I256","v":0}]
["Form 1A","Notes","Form 1A","L27 - GMM Liab. for Incurred - Insurance Service Results",{"$f":"'Form 1A'!I257","v":0}]
["Form 1A","Notes","Form 1A","L27 - GMM Liab. for Incurred - Net finance expenses",{"$f":"'Form 1A'!I259","v":0}]
["Form 1A","Notes","Form 1A","L27 - GMM Liab. for Incurred - Foreign Exchange",{"$f":"'Form 1A'!I260","v":0}]
["Form 1A","Notes","Form 1A","L27 - GMM Liab. for Incurred - Change in Profit or Loss",{"$f":"'Form 1A'!I261","v":0}]
["Form 1A","Notes","Form 1A","L27 - GMM Liab. for Incurred - CF Premium Received",{"$f":"'Form 1A'!I264","v":0}]
["Form 1A","Notes","Form 1A","L27 - GMM Liab. for Incurred - CF Insurance Acquisition",{"$f":"'Form 1A'!I265","v":0}]
["Form 1A","Notes","Form 1A","L27 - GMM Liab. for Incurred - CF Claims Paid",{"$f":"'Form 1A'!I266","v":0}]
["Form 1A","Notes","Form 1A","L27 - GMM Liab. for Incurred - Total CF",{"$f":"'Form 1A'!I267","v":0}]
["Form 1A","Notes","Form 1A","L27 - GMM Liab. for Incurred - Contracts Trans. Acquisition Sub.",{"$f":"'Form 1A'!I268","v":0}]
["Form 1A","Notes","Form 1A","L27 - GMM Liab. for Incurred - Contracts Trans. Disposal Sub.",{"$f":"'Form 1A'!I269","v":0}]
["Form 1A","Notes","Form 1A","L27 - GMM Liab. for Incurred - Net Closing Balance",{"$f":"'Form 1A'!I270","v":0}]
["Form 1A","Notes","Form 1A","L27 - GMM Liab. for Incurred - Closing Assets",{"$f":"'Form 1A'!I272","v":0}]
["Form 1A","Notes","Form 1A","L27 - GMM Liab. for Incurred - Closing Liabilities",{"$f":"'Form 1A'!I273","v":0}]
["Form 1A","Notes","Form 1A","L27 - GMM Liab. for Incurred - Net Closing Balance",{"$f":"'Form 1A'!I274","v":0}]
["Form 1A","Notes","Form 1A","L27 - GMM PV Cash Flow - Open Assets",{"$f":"'Form 1A'!K241","v":0}]
["Form 1A","Notes","Form 1A","L27 - GMM PV Cash Flow - Open Liabilities",{"$f":"'Form 1A'!K242","v":0}]
["Form 1A","Notes","Form 1A","L27 - GMM PV Cash Flow - Net Open",{"$f":"'Form 1A'!K243","v":0}]
["Form 1A","Notes","Form 1A","L27 - GMM PV Cash Flow - Insurance Revenue",{"$f":"'Form 1A'!K247","v":0}]
["Form 1A","Notes","Form 1A","L27 - GMM PV Cash Flow - Amort. Cash Flows",{"$f":"'Form 1A'!K250","v":0}]
["Form 1A","Notes","Form 1A","L27 - GMM PV Cash Flow - Incurred Claims",{"$f":"'Form 1A'!K251","v":0}]
["Form 1A","Notes","Form 1A","L27 - GMM PV Cash Flow - Losses on enerous contracts",{"$f":"'Form 1A'!K252","v":0}]
["Form 1A","Notes","Form 1A","L27 - GMM PV Cash Flow - Adj to Liabilities for Incurred Claims",{"$f":"'Form 1A'!K253","v":0}]
["Form 1A","Notes","Form 1A","L27 - GMM PV Cash Flow - Total Insurance Service Expenses",{"$f":"'Form 1A'!K254","v":0}]
["Form 1A","Notes","Form 1A","L27 - GMM PV Cash Flow - Investment Components",{"$f":"'Form 1A'!K256","v":0}]
["Form 1A","Notes","Form 1A","L27 - GMM PV Cash Flow - Insurance Service Results",{"$f":"'Form 1A'!K257","v":0}]
["Form 1A","Notes","Form 1A","L27 - GMM PV Cash Flow - Net finance expenses",{"$f":"'Form 1A'!K259","v":0}]
["Form 1A","Notes","Form 1A","L27 - GMM PV Cash Flow - Foreign Exchange",{"$f":"'Form 1A'!K260","v":0}]
["Form 1A","Notes","Form 1A","L27 - GMM PV Cash Flow - Change in Profit or Loss",{"$f":"'Form 1A'!K261","v":0}]
["Form 1A","Notes","Form 1A","L27 - GMM PV Cash Flow - CF Premium Received",{"$f":"'Form 1A'!K264","v":0}]
["Form 1A","Notes","Form 1A","L27 - GMM PV Cash Flow - CF Insurance Acquisition",{"$f":"'Form 1A'!K265","v":0}]
["Form 1A","Notes","Form 1A","L27 - GMM PV Cash Flow - CF Claims Paid",{"$f":"'Form 1A'!K266","v":0}]
["Form 1A","Notes","Form 1A","L27 - GMM PV Cash Flow - Total CF",{"$f":"'Form 1A'!K267","v":0}]
["Form 1A","Notes","Form 1A","L27 - GMM PV Cash Flow - Contracts Trans. Acquisition Sub.",{"$f":"'Form 1A'!K268","v":0}]
["Form 1A","Notes","Form 1A","L27 - GMM PV Cash Flow - Contracts Trans. Disposal Sub.",{"$f":"'Form 1A'!K269","v":0}]
["Form 1A","Notes","Form 1A","L27 - GMM PV Cash Flow - Net Closing Balance",{"$f":"'Form 1A'!K270","v":0}]
["Form 1A","Notes","Form 1A","L27 - GMM PV Cash Flow - Closing Assets",{"$f":"'Form 1A'!K272","v":0}]
["Form 1A","Notes","Form 1A","L27 - GMM PV Cash Flow - Closing Liabilities",{"$f":"'Form 1A'!K273","v":0}]
["Form 1A","Notes","Form 1A","L27 - GMM PV Cash Flow - Net Closing Balance",{"$f":"'Form 1A'!K274","v":0}]
["Form 1A","Notes","Form 1A","L27 - GMM Risk Adj - Open Assets",{"$f":"'Form 1A'!M241","v":0}]
["Form 1A","Notes","Form 1A","L27 - GMM Risk Adj - Open Liabilities",{"$f":"'Form 1A'!M242","v":0}]
["Form 1A","Notes","Form 1A","L27 - GMM Risk Adj - Net Open",{"$f":"'Form 1A'!M243","v":0}]
["Form 1A","Notes","Form 1A","L27 - GMM Risk Adj - Insurance Revenue",{"$f":"'Form 1A'!M247","v":0}]
["Form 1A","Notes","Form 1A","L27 - GMM Risk Adj - Amort. Cash Flows",{"$f":"'Form 1A'!M250","v":0}]
["Form 1A","Notes","Form 1A","L27 - GMM Risk Adj - Incurred Claims",{"$f":"'Form 1A'!M251","v":0}]
["Form 1A","Notes","Form 1A","L27 - GMM Risk Adj - Losses on enerous contracts",{"$f":"'Form 1A'!M252","v":0}]
["Form 1A","Notes","Form 1A","L27 - GMM Risk Adj - Adj to Liabilities for Incurred Claims",{"$f":"'Form 1A'!M253","v":0}]
["Form 1A","Notes","Form 1A","L27 - GMM Risk Adj - Total Insurance Service Expenses",{"$f":"'Form 1A'!M254","v":0}]
["Form 1A","Notes","Form 1A","L27 - GMM Risk Adj - Investment Components",{"$f":"'Form 1A'!M256","v":0}]
["Form 1A","Notes","Form 1A","L27 - GMM Risk Adj - Insurance Service Results",{"$f":"'Form 1A'!M257","v":0}]
["Form 1A","Notes","Form 1A","L27 - GMM Risk Adj - Net finance expenses",{"$f":"'Form 1A'!M259","v":0}]
["Form 1A","Notes","Form 1A","L27 - GMM Risk Adj - Foreign Exchange",{"$f":"'Form 1A'!M260","v":0}]
["Form 1A","Notes","Form 1A","L27 - GMM Risk Adj - Change in Profit or Loss",{"$f":"'Form 1A'!M261","v":0}]
["Form 1A","Notes","Form 1A","L27 - GMM Risk Adj - CF Premium Received",{"$f":"'Form 1A'!M264","v":0}]
["Form 1A","Notes","Form 1A","L27 - GMM Risk Adj - CF Insurance Acquisition",{"$f":"'Form 1A'!M265","v":0}]
["Form 1A","Notes","Form 1A","L27 - GMM Risk Adj - CF Claims Paid",{"$f":"'Form 1A'!M266","v":0}]
["Form 1A","Notes","Form 1A","L27 - GMM Risk Adj - Total CF",{"$f":"'Form 1A'!M267","v":0}]
["Form 1A","Notes","Form 1A","L27 - GMM Risk Adj - Contracts Trans. Acquisition Sub.",{"$f":"'Form 1A'!M268","v":0}]
["Form 1A","Notes","Form 1A","L27 - GMM Risk Adj - Contracts Trans. Disposal Sub.",{"$f":"'Form 1A'!M269","v":0}]
["Form 1A","Notes","Form 1A","L27 - GMM Risk Adj - Net Closing Balance",{"$f":"'Form 1A'!M270","v":0}]
["Form 1A","Notes","Form 1A","L27 - GMM Risk Adj - Closing Assets",{"$f":"'Form 1A'!M272","v":0}]
["Form 1A","Notes","Form 1A","L27 - GMM Risk Adj - Closing Liabilities",{"$f":"'Form 1A'!M273","v":0}]
["Form 1A","Notes","Form 1A","L27 - GMM Risk Adj - Net Closing Balance",{"$f":"'Form 1A'!M274","v":0}]
["Form 1A","Notes","Form 1A","L17A - Coverage Exc. Loss Comp - Open Assets",{"$f":"'Form 1A'!E282","v":0}]
["Form 1A","Notes","Form 1A","L17A - Coverage Exc. Loss Comp - Open Liabilities",{"$f":"'Form 1A'!E283","v":0}]
["Form 1A","Notes","Form 1A","L17A - Coverage Exc. Loss Comp - Net Open",{"$f":"'Form 1A'!E284","v":0}]
["Form 1A","Notes","Form 1A","L17A - Coverage Exc. Loss Comp - Premiums Paid",{"$f":"'Form 1A'!E287","v":0}]
["Form 1A","Notes","Form 1A","L17A - Coverage Exc. Loss Comp - Recov. Incurred Claims",{"$f":"'Form 1A'!E290","v":0}]
["Form 1A","Notes","Form 1A","L17A - Coverage Exc. Loss Comp - Recov. on Reversals",{"$f":"'Form 1A'!E291","v":0}]
["Form 1A","Notes","Form 1A","L17A - Coverage Exc. Loss Comp - Adj to Assets for Incurred Claims",{"$f":"'Form 1A'!E292","v":0}]
["Form 1A","Notes","Form 1A","L17A - Coverage Exc. Loss Comp - Total Recov. From Reinsurers",{"$f":"'Form 1A'!E293","v":0}]
["Form 1A","Notes","Form 1A","L17A - Coverage Exc. Loss Comp - Investment Components",{"$f":"'Form 1A'!E295","v":0}]
["Form 1A","Notes","Form 1A","L17A - Coverage Exc. Loss Comp - Changes in Non-Performance Risk",{"$f":"'Form 1A'!E296","v":0}]
["Form 1A","Notes","Form 1A","L17A - Coverage Exc. Loss Comp - Net Expenses from R/I Contracts",{"$f":"'Form 1A'!E298","v":0}]
["Form 1A","Notes","Form 1A","L17A - Coverage Exc. Loss Comp - Net Finance profit",{"$f":"'Form 1A'!E300","v":0}]
["Form 1A","Notes","Form 1A","L17A - Coverage Exc. Loss Comp - Foreign Exchange",{"$f":"'Form 1A'!E301","v":0}]
["Form 1A","Notes","Form 1A","L17A - Coverage Exc. Loss Comp - Change in Profit or Loss",{"$f":"'Form 1A'!E302","v":0}]
["Form 1A","Notes","Form 1A","L17A - Coverage Exc. Loss Comp - CF Premium Received",{"$f":"'Form 1A'!E305","v":0}]
["Form 1A","Notes","Form 1A","L17A - Coverage Exc. Loss Comp - CF Incurred Claims",{"$f":"'Form 1A'!E306","v":0}]
["Form 1A","Notes","Form 1A","L17A - Coverage Exc. Loss Comp - Total CF",{"$f":"'Form 1A'!E307","v":0}]
["Form 1A","Notes","Form 1A","L17A - Coverage Exc. Loss Comp - Net Closing Balance",{"$f":"'Form 1A'!E308","v":0}]
["Form 1A","Notes","Form 1A","L17A - Coverage Exc. Loss Comp - Closing Assets",{"$f":"'Form 1A'!E310","v":0}]
["Form 1A","Notes","Form 1A","L17A - Coverage Exc. Loss Comp - Closing Liabilities",{"$f":"'Form 1A'!E311","v":0}]
["Form 1A","Notes","Form 1A","L17A - Coverage Exc. Loss Comp - Net Closing Balance",{"$f":"'Form 1A'!E312","v":0}]
["Form 1A","Notes","Form 1A","L17A - Coverage Inc. Loss Comp - Open Assets",{"$f":"'Form 1A'!G282","v":0}]
["Form 1A","Notes","Form 1A","L17A - Coverage Inc. Loss Comp - Open Liabilities",{"$f":"'Form 1A'!G283","v":0}]
["Form 1A","Notes","Form 1A","L17A - Coverage Inc. Loss Comp - Net Open",{"$f":"'Form 1A'!G284","v":0}]
["Form 1A","Notes","Form 1A","L17A - Coverage Inc. Loss Comp - Premiums Paid",{"$f":"'Form 1A'!G287","v":0}]
["Form 1A","Notes","Form 1A","L17A - Coverage Inc. Loss Comp - Recov. Incurred Claims",{"$f":"'Form 1A'!G290","v":0}]
["Form 1A","Notes","Form 1A","L17A - Coverage Inc. Loss Comp - Recov. on Reversals",{"$f":"'Form 1A'!G291","v":0}]
["Form 1A","Notes","Form 1A","L17A - Coverage Inc. Loss Comp - Adj to Assets for Incurred Claims",{"$f":"'Form 1A'!G292","v":0}]
["Form 1A","Notes","Form 1A","L17A - Coverage Inc. Loss Comp - Total Recov. From Reinsurers",{"$f":"'Form 1A'!G293","v":0}]
["Form 1A","Notes","Form 1A","L17A - Coverage Inc. Loss Comp - Investment Components",{"$f":"'Form 1A'!G295","v":0}]
["Form 1A","Notes","Form 1A","L17A - Coverage Inc. Loss Comp - Changes in Non-Performance Risk",{"$f":"'Form 1A'!G296","v":0}]
["Form 1A","Notes","Form 1A","L17A - Coverage Inc. Loss Comp - Net Expenses from R/I Contracts",{"$f":"'Form 1A'!G298","v":0}]
["Form 1A","Notes","Form 1A","L17A - Coverage Inc. Loss Comp - Net Finance profit",{"$f":"'Form 1A'!G300","v":0}]
["Form 1A","Notes","Form 1A","L17A - Coverage Inc. Loss Comp - Foreign Exchange",{"$f":"'Form 1A'!G301","v":0}]
["Form 1A","Notes","Form 1A","L17A - Coverage Inc. Loss Comp - Change in Profit or Loss",{"$f":"'Form 1A'!G302","v":0}]
["Form 1A","Notes","Form 1A","L17A - Coverage Inc. Loss Comp - CF Premium Received",{"$f":"'Form 1A'!G305","v":0}]
["Form 1A","Notes","Form 1A","L17A - Coverage Inc. Loss Comp - CF Incurred Claims",{"$f":"'Form 1A'!G306","v":0}]
["Form 1A","Notes","Form 1A","L17A - Coverage Inc. Loss Comp - Total CF",{"$f":"'Form 1A'!G307","v":0}]
["Form 1A","Notes","Form 1A","L17A - Coverage Inc. Loss Comp - Net Closing Balance",{"$f":"'Form 1A'!G308","v":0}]
["Form 1A","Notes","Form 1A","L17A - Coverage Inc. Loss Comp - Closing Assets",{"$f":"'Form 1A'!G310","v":0}]
["Form 1A","Notes","Form 1A","L17A - Coverage Inc. Loss Comp - Closing Liabilities",{"$f":"'Form 1A'!G311","v":0}]
["Form 1A","Notes","Form 1A","L17A - Coverage Inc. Loss Comp - Net Closing Balance",{"$f":"'Form 1A'!G312","v":0}]
["Form 1A","Notes","Form 1A","L17A - Inc. Claims Products Not PAA - Open Assets",{"$f":"'Form 1A'!I282","v":0}]
["Form 1A","Notes","Form 1A","L17A - Inc. Claims Products Not PAA - Open Liabilities",{"$f":"'Form 1A'!I283","v":0}]
["Form 1A","Notes","Form 1A","L17A - Inc. Claims Products Not PAA - Net Open",{"$f":"'Form 1A'!I284","v":0}]
["Form 1A","Notes","Form 1A","L17A - Inc. Claims Products Not PAA - Premiums Paid",{"$f":"'Form 1A'!I287","v":0}]
["Form 1A","Notes","Form 1A","L17A - Inc. Claims Products Not PAA - Recov. Incurred Claims",{"$f":"'Form 1A'!I290","v":0}]
["Form 1A","Notes","Form 1A","L17A - Inc. Claims Products Not PAA - Recov. on Reversals",{"$f":"'Form 1A'!I291","v":0}]
["Form 1A","Notes","Form 1A","L17A - Inc. Claims Products Not PAA - Adj to Assets for Incurred Claims",{"$f":"'Form 1A'!I292","v":0}]
["Form 1A","Notes","Form 1A","L17A - Inc. Claims Products Not PAA - Total Recov. From Reinsurers",{"$f":"'Form 1A'!I293","v":0}]
["Form 1A","Notes","Form 1A","L17A - Inc. Claims Products Not PAA - Investment Components",{"$f":"'Form 1A'!I295","v":0}]
["Form 1A","Notes","Form 1A","L17A - Inc. Claims Products Not PAA - Changes in Non-Performance Risk",{"$f":"'Form 1A'!I296","v":0}]
["Form 1A","Notes","Form 1A","L17A - Inc. Claims Products Not PAA - Net Expenses from R/I Contracts",{"$f":"'Form 1A'!I298","v":0}]
["Form 1A","Notes","Form 1A","L17A - Inc. Claims Products Not PAA - Net Finance profit",{"$f":"'Form 1A'!I300","v":0}]
["Form 1A","Notes","Form 1A","L17A - Inc. Claims Products Not PAA - Foreign Exchange",{"$f":"'Form 1A'!I301","v":0}]
["Form 1A","Notes","Form 1A","L17A - Inc. Claims Products Not PAA - Change in Profit or Loss",{"$f":"'Form 1A'!I302","v":0}]
["Form 1A","Notes","Form 1A","L17A - Inc. Claims Products Not PAA - CF Premium Received",{"$f":"'Form 1A'!I305","v":0}]
["Form 1A","Notes","Form 1A","L17A - Inc. Claims Products Not PAA - CF Incurred Claims",{"$f":"'Form 1A'!I306","v":0}]
["Form 1A","Notes","Form 1A","L17A - Inc. Claims Products Not PAA - Total CF",{"$f":"'Form 1A'!I307","v":0}]
["Form 1A","Notes","Form 1A","L17A - Inc. Claims Products Not PAA - Net Closing Balance",{"$f":"'Form 1A'!I308","v":0}]
["Form 1A","Notes","Form 1A","L17A - Inc. Claims Products Not PAA - Closing Assets",{"$f":"'Form 1A'!I310","v":0}]
["Form 1A","Notes","Form 1A","L17A - Inc. Claims Products Not PAA - Closing Liabilities",{"$f":"'Form 1A'!I311","v":0}]
["Form 1A","Notes","Form 1A","L17A - Inc. Claims Products Not PAA - Net Closing Balance",{"$f":"'Form 1A'!I312","v":0}]
["Form 1A","Notes","Form 1A","L17A - Inc. Claims PAA PV Cash Flow - Open Assets",{"$f":"'Form 1A'!K282","v":0}]
["Form 1A","Notes","Form 1A","L17A - Inc. Claims PAA PV Cash Flow - Open Liabilities",{"$f":"'Form 1A'!K283","v":0}]
["Form 1A","Notes","Form 1A","L17A - Inc. Claims PAA PV Cash Flow - Net Open",{"$f":"'Form 1A'!K284","v":0}]
["Form 1A","Notes","Form 1A","L17A - Inc. Claims PAA PV Cash Flow - Premiums Paid",{"$f":"'Form 1A'!K287","v":0}]
["Form 1A","Notes","Form 1A","L17A - Inc. Claims PAA PV Cash Flow - Recov. Incurred Claims",{"$f":"'Form 1A'!K290","v":0}]
["Form 1A","Notes","Form 1A","L17A - Inc. Claims PAA PV Cash Flow - Recov. on Reversals",{"$f":"'Form 1A'!K291","v":0}]
["Form 1A","Notes","Form 1A","L17A - Inc. Claims PAA PV Cash Flow - Adj to Assets for Incurred Claims",{"$f":"'Form 1A'!K292","v":0}]
["Form 1A","Notes","Form 1A","L17A - Inc. Claims PAA PV Cash Flow - Total Recov. From Reinsurers",{"$f":"'Form 1A'!K293","v":0}]
["Form 1A","Notes","Form 1A","L17A - Inc. Claims PAA PV Cash Flow - Investment Components",{"$f":"'Form 1A'!K295","v":0}]
["Form 1A","Notes","Form 1A","L17A - Inc. Claims PAA PV Cash Flow - Changes in Non-Performance Risk",{"$f":"'Form 1A'!K296","v":0}]
["Form 1A","Notes","Form 1A","L17A - Inc. Claims PAA PV Cash Flow - Net Expenses from R/I Contracts",{"$f":"'Form 1A'!K298","v":0}]
["Form 1A","Notes","Form 1A","L17A - Inc. Claims PAA PV Cash Flow - Net Finance profit",{"$f":"'Form 1A'!K300","v":0}]
["Form 1A","Notes","Form 1A","L17A - Inc. Claims PAA PV Cash Flow - Foreign Exchange",{"$f":"'Form 1A'!K301","v":0}]
["Form 1A","Notes","Form 1A","L17A - Inc. Claims PAA PV Cash Flow - Change in Profit or Loss",{"$f":"'Form 1A'!K302","v":0}]
["Form 1A","Notes","Form 1A","L17A - Inc. Claims PAA PV Cash Flow - CF Premium Received",{"$f":"'Form 1A'!K305","v":0}]
["Form 1A","Notes","Form 1A","L17A - Inc. Claims PAA PV Cash Flow - CF Incurred Claims",{"$f":"'Form 1A'!K306","v":0}]
["Form 1A","Notes","Form 1A","L17A - Inc. Claims PAA PV Cash Flow - Total CF",{"$f":"'Form 1A'!K307","v":0}]
["Form 1A","Notes","Form 1A","L17A - Inc. Claims PAA PV Cash Flow - Net Closing Balance",{"$f":"'Form 1A'!K308","v":0}]
["Form 1A","Notes","Form 1A","L17A - Inc. Claims PAA PV Cash Flow - Closing Assets",{"$f":"'Form 1A'!K310","v":0}]
["Form 1A","Notes","Form 1A","L17A - Inc. Claims PAA PV Cash Flow - Closing Liabilities",{"$f":"'Form 1A'!K311","v":0}]
["Form 1A","Notes","Form 1A","L17A - Inc. Claims PAA PV Cash Flow - Net Closing Balance",{"$f":"'Form 1A'!K312","v":0}]
["Form 1A","Notes","Form 1A","L17A - Inc. Claims PAA Adj Non Fin. - Open Assets",{"$f":"'Form 1A'!M282","v":0}]
["Form 1A","Notes","Form 1A","L17A - Inc. Claims PAA Adj Non Fin. - Open Liabilities",{"$f":"'Form 1A'!M283","v":0}]
["Form 1A","Notes","Form 1A","L17A - Inc. Claims PAA Adj Non Fin. - Net Open",{"$f":"'Form 1A'!M284","v":0}]
["Form 1A","Notes","Form 1A","L17A - Inc. Claims PAA Adj Non Fin. - Premiums Paid",{"$f":"'Form 1A'!M287","v":0}]
["Form 1A","Notes","Form 1A","L17A - Inc. Claims PAA Adj Non Fin. - Recov. Incurred Claims",{"$f":"'Form 1A'!M290","v":0}]
["Form 1A","Notes","Form 1A","L17A - Inc. Claims PAA Adj Non Fin. - Recov. on Reversals",{"$f":"'Form 1A'!M291","v":0}]
["Form 1A","Notes","Form 1A","L17A - Inc. Claims PAA Adj Non Fin. - Adj to Assets for Incurred Claims",{"$f":"'Form 1A'!M292","v":0}]
["Form 1A","Notes","Form 1A","L17A - Inc. Claims PAA Adj Non Fin. - Total Recov. From Reinsurers",{"$f":"'Form 1A'!M293","v":0}]
["Form 1A","Notes","Form 1A","L17A - Inc. Claims PAA Adj Non Fin. - Investment Components",{"$f":"'Form 1A'!M295","v":0}]
["Form 1A","Notes","Form 1A","L17A - Inc. Claims PAA Adj Non Fin. - Changes in Non-Performance Risk",{"$f":"'Form 1A'!M296","v":0}]
["Form 1A","Notes","Form 1A","L17A - Inc. Claims PAA Adj Non Fin. - Net Expenses from R/I Contracts",{"$f":"'Form 1A'!M298","v":0}]
["Form 1A","Notes","Form 1A","L17A - Inc. Claims PAA Adj Non Fin. - Net Finance profit",{"$f":"'Form 1A'!M300","v":0}]
["Form 1A","Notes","Form 1A","L17A - Inc. Claims PAA Adj Non Fin. - Foreign Exchange",{"$f":"'Form 1A'!M301","v":0}]
["Form 1A","Notes","Form 1A","L17A - Inc. Claims PAA Adj Non Fin. - Change in Profit or Loss",{"$f":"'Form 1A'!M302","v":0}]
["Form 1A","Notes","Form 1A","L17A - Inc. Claims PAA Adj Non Fin. - CF Premium Received",{"$f":"'Form 1A'!M305","v":0}]
["Form 1A","Notes","Form 1A","L17A - Inc. Claims PAA Adj Non Fin. - CF Incurred Claims",{"$f":"'Form 1A'!M306","v":0}]
["Form 1A","Notes","Form 1A","L17A - Inc. Claims PAA Adj Non Fin. - Total CF",{"$f":"'Form 1A'!M307","v":0}]
["Form 1A","Notes","Form 1A","L17A - Inc. Claims PAA Adj Non Fin. - Net Closing Balance",{"$f":"'Form 1A'!M308","v":0}]
["Form 1A","Notes","Form 1A","L17A - Inc. Claims PAA Adj Non Fin. - Closing Assets",{"$f":"'Form 1A'!M310","v":0}]
["Form 1A","Notes","Form 1A","L17A - Inc. Claims PAA Adj Non Fin. - Closing Liabilities",{"$f":"'Form 1A'!M311","v":0}]
["Form 1A","Notes","Form 1A","L17A - Inc. Claims PAA Adj Non Fin. - Net Closing Balance",{"$f":"'Form 1A'!M312","v":0}]
["Form 1A","Notes","Form 1A","L27A - Coverage Exc. Loss Comp - Open Assets",{"$f":"'Form 1A'!E320","v":0}]
["Form 1A","Notes","Form 1A","L27A - Coverage Exc. Loss Comp - Open Liabilities",{"$f":"'Form 1A'!E321","v":0}]
["Form 1A","Notes","Form 1A","L27A - Coverage Exc. Loss Comp - Net Open",{"$f":"'Form 1A'!E322","v":0}]
["Form 1A","Notes","Form 1A","L27A - Coverage Exc. Loss Comp - Premiums Paid",{"$f":"'Form 1A'!E325","v":0}]
["Form 1A","Notes","Form 1A","L27A - Coverage Exc. Loss Comp - Recov. Incurred Claims",{"$f":"'Form 1A'!E328","v":0}]
["Form 1A","Notes","Form 1A","L27A - Coverage Exc. Loss Comp - Recov. on Reversals",{"$f":"'Form 1A'!E329","v":0}]
["Form 1A","Notes","Form 1A","L27A - Coverage Exc. Loss Comp - Adj to Assets for Incurred Claims",{"$f":"'Form 1A'!E330","v":0}]
["Form 1A","Notes","Form 1A","L27A - Coverage Exc. Loss Comp - Total Recov. From Reinsurers",{"$f":"'Form 1A'!E331","v":0}]
["Form 1A","Notes","Form 1A","L27A - Coverage Exc. Loss Comp - Investment Components",{"$f":"'Form 1A'!E333","v":0}]
["Form 1A","Notes","Form 1A","L27A - Coverage Exc. Loss Comp - Changes in Non-Performance Risk",{"$f":"'Form 1A'!E334","v":0}]
["Form 1A","Notes","Form 1A","L27A - Coverage Exc. Loss Comp - Net Expenses from R/I Contracts",{"$f":"'Form 1A'!E336","v":0}]
["Form 1A","Notes","Form 1A","L27A - Coverage Exc. Loss Comp - Net Finance profit",{"$f":"'Form 1A'!E338","v":0}]
["Form 1A","Notes","Form 1A","L27A - Coverage Exc. Loss Comp - Foreign Exchange",{"$f":"'Form 1A'!E339","v":0}]
["Form 1A","Notes","Form 1A","L27A - Coverage Exc. Loss Comp - Change in Profit or Loss",{"$f":"'Form 1A'!E340","v":0}]
["Form 1A","Notes","Form 1A","L27A - Coverage Exc. Loss Comp - CF Premium Received",{"$f":"'Form 1A'!E343","v":0}]
["Form 1A","Notes","Form 1A","L27A - Coverage Exc. Loss Comp - CF Incurred Claims",{"$f":"'Form 1A'!E344","v":0}]
["Form 1A","Notes","Form 1A","L27A - Coverage Exc. Loss Comp - Total CF",{"$f":"'Form 1A'!E345","v":0}]
["Form 1A","Notes","Form 1A","L27A - Coverage Exc. Loss Comp - Net Closing Balance",{"$f":"'Form 1A'!E346","v":0}]
["Form 1A","Notes","Form 1A","L27A - Coverage Exc. Loss Comp - Closing Assets",{"$f":"'Form 1A'!E348","v":0}]
["Form 1A","Notes","Form 1A","L27A - Coverage Exc. Loss Comp - Closing Liabilities",{"$f":"'Form 1A'!E349","v":0}]
["Form 1A","Notes","Form 1A","L27A - Coverage Exc. Loss Comp - Net Closing Balance",{"$f":"'Form 1A'!E350","v":0}]
["Form 1A","Notes","Form 1A","L27A - Coverage Inc. Loss Comp - Open Assets",{"$f":"'Form 1A'!G320","v":0}]
["Form 1A","Notes","Form 1A","L27A - Coverage Inc. Loss Comp - Open Liabilities",{"$f":"'Form 1A'!G321","v":0}]
["Form 1A","Notes","Form 1A","L27A - Coverage Inc. Loss Comp - Net Open",{"$f":"'Form 1A'!G322","v":0}]
["Form 1A","Notes","Form 1A","L27A - Coverage Inc. Loss Comp - Premiums Paid",{"$f":"'Form 1A'!G325","v":0}]
["Form 1A","Notes","Form 1A","L27A - Coverage Inc. Loss Comp - Recov. Incurred Claims",{"$f":"'Form 1A'!G328","v":0}]
["Form 1A","Notes","Form 1A","L27A - Coverage Inc. Loss Comp - Recov. on Reversals",{"$f":"'Form 1A'!G329","v":0}]
["Form 1A","Notes","Form 1A","L27A - Coverage Inc. Loss Comp - Adj to Assets for Incurred Claims",{"$f":"'Form 1A'!G330","v":0}]
["Form 1A","Notes","Form 1A","L27A - Coverage Inc. Loss Comp - Total Recov. From Reinsurers",{"$f":"'Form 1A'!G331","v":0}]
["Form 1A","Notes","Form 1A","L27A - Coverage Inc. Loss Comp - Investment Components",{"$f":"'Form 1A'!G333","v":0}]
["Form 1A","Notes","Form 1A","L27A - Coverage Inc. Loss Comp - Changes in Non-Performance Risk",{"$f":"'Form 1A'!G334","v":0}]
["Form 1A","Notes","Form 1A","L27A - Coverage Inc. Loss Comp - Net Expenses from R/I Contracts",{"$f":"'Form 1A'!G336","v":0}]
["Form 1A","Notes","Form 1A","L27A - Coverage Inc. Loss Comp - Net Finance profit",{"$f":"'Form 1A'!G338","v":0}]
["Form 1A","Notes","Form 1A","L27A - Coverage Inc. Loss Comp - Foreign Exchange",{"$f":"'Form 1A'!G339","v":0}]
["Form 1A","Notes","Form 1A","L27A - Coverage Inc. Loss Comp - Change in Profit or Loss",{"$f":"'Form 1A'!G340","v":0}]
["Form 1A","Notes","Form 1A","L27A - Coverage Inc. Loss Comp - CF Premium Received",{"$f":"'Form 1A'!G343","v":0}]
["Form 1A","Notes","Form 1A","L27A - Coverage Inc. Loss Comp - CF Incurred Claims",{"$f":"'Form 1A'!G344","v":0}]
["Form 1A","Notes","Form 1A","L27A - Coverage Inc. Loss Comp - Total CF",{"$f":"'Form 1A'!G345","v":0}]
["Form 1A","Notes","Form 1A","L27A - Coverage Inc. Loss Comp - Net Closing Balance",{"$f":"'Form 1A'!G346","v":0}]
["Form 1A","Notes","Form 1A","L27A - Coverage Inc. Loss Comp - Closing Assets",{"$f":"'Form 1A'!G348","v":0}]
["Form 1A","Notes","Form 1A","L27A - Coverage Inc. Loss Comp - Closing Liabilities",{"$f":"'Form 1A'!G349","v":0}]
["Form 1A","Notes","Form 1A","L27A - Coverage Inc. Loss Comp - Net Closing Balance",{"$f":"'Form 1A'!G350","v":0}]
["Form 1A","Notes","Form 1A","L27A - Inc. Claims - Open Assets",{"$f":"'Form 1A'!I320","v":0}]
["Form 1A","Notes","Form 1A","L27A - Inc. Claims - Open Liabilities",{"$f":"'Form 1A'!I321","v":0}]
["Form 1A","Notes","Form 1A","L27A - Inc. Claims - Net Open",{"$f":"'Form 1A'!I322","v":0}]
["Form 1A","Notes","Form 1A","L27A - Inc. Claims - Premiums Paid",{"$f":"'Form 1A'!I325","v":0}]
["Form 1A","Notes","Form 1A","L27A - Inc. Claims - Recov. Incurred Claims",{"$f":"'Form 1A'!I328","v":0}]
["Form 1A","Notes","Form 1A","L27A - Inc. Claims - Recov. on Reversals",{"$f":"'Form 1A'!I329","v":0}]
["Form 1A","Notes","Form 1A","L27A - Inc. Claims - Adj to Assets for Incurred Claims",{"$f":"'Form 1A'!I330","v":0}]
["Form 1A","Notes","Form 1A","L27A - Inc. Claims - Total Recov. From Reinsurers",{"$f":"'Form 1A'!I331","v":0}]
["Form 1A","Notes","Form 1A","L27A - Inc. Claims - Investment Components",{"$f":"'Form 1A'!I333","v":0}]
["Form 1A","Notes","Form 1A","L27A - Inc. Claims - Changes in Non-Performance Risk",{"$f":"'Form 1A'!I334","v":0}]
["Form 1A","Notes","Form 1A","L27A - Inc. Claims - Net Expenses from R/I Contracts",{"$f":"'Form 1A'!I336","v":0}]
["Form 1A","Notes","Form 1A","L27A - Inc. Claims - Net Finance profit",{"$f":"'Form 1A'!I338","v":0}]
["Form 1A","Notes","Form 1A","L27A - Inc. Claims - Foreign Exchange",{"$f":"'Form 1A'!I339","v":0}]
["Form 1A","Notes","Form 1A","L27A - Inc. Claims - Change in Profit or Loss",{"$f":"'Form 1A'!I340","v":0}]
["Form 1A","Notes","Form 1A","L27A - Inc. Claims - CF Premium Received",{"$f":"'Form 1A'!I343","v":0}]
["Form 1A","Notes","Form 1A","L27A - Inc. Claims - CF Incurred Claims",{"$f":"'Form 1A'!I344","v":0}]
["Form 1A","Notes","Form 1A","L27A - Inc. Claims - Total CF",{"$f":"'Form 1A'!I345","v":0}]
["Form 1A","Notes","Form 1A","L27A - Inc. Claims - Net Closing Balance",{"$f":"'Form 1A'!I346","v":0}]
["Form 1A","Notes","Form 1A","L27A - Inc. Claims - Closing Assets",{"$f":"'Form 1A'!I348","v":0}]
["Form 1A","Notes","Form 1A","L27A - Inc. Claims - Closing Liabilities",{"$f":"'Form 1A'!I349","v":0}]
["Form 1A","Notes","Form 1A","L27A - Inc. Claims - Net Closing Balance",{"$f":"'Form 1A'!I350","v":0}]
[]
[null,null,null,"IFRS Income Statement"]
["Form 2A","Income Stmt CON","2A1","Insurance Contract Revenue",{"$f":"'Form 2A'!E11","v":0},null,{"$f":"'Form 2A'!G11","v":0}]
["Form 2A","Income Stmt CON","2A2a","Incurred Claims",{"$f":"'Form 2A'!E14","v":0},null,{"$f":"'Form 2A'!G14","v":0}]
["Form 2A","Income Stmt CON","2A2b","Acquisition Cash Flows",{"$f":"'Form 2A'!E15","v":0},null,{"$f":"'Form 2A'!G15","v":0}]
["Form 2A","Income Stmt CON","2A2c","Adj for Liability Incurred Claims",{"$f":"'Form 2A'!E16","v":0},null,{"$f":"'Form 2A'!G16","v":0}]
["Form 2A","Income Stmt CON","2A2d","Losses on Onerous Contracts",{"$f":"'Form 2A'!E17","v":0},null,{"$f":"'Form 2A'!G17","v":0}]
["Form 2A","Income Stmt CON","2A2e","Other Service Expenses",{"$f":"'Form 2A'!E18","v":0},null,{"$f":"'Form 2A'!G18","v":0}]
["Form 2A","Income Stmt CON","2A2f","Total Insurance Service Expense",{"$f":"'Form 2A'!E19","v":0},null,{"$f":"'Form 2A'!G19","v":0}]
["Form 2A","Income Stmt CON","2A3","Insurance Service Results Before R/I",{"$f":"'Form 2A'!E21","v":0},null,{"$f":"'Form 2A'!G21","v":0}]
["Form 2A","Income Stmt CON","2A4a","R/I Recoveries and Other Income",{"$f":"'Form 2A'!E24","v":0},null,{"$f":"'Form 2A'!G24","v":0}]
["Form 2A","Income Stmt CON","2A4b","R/I Expenses",{"$f":"'Form 2A'!E25","v":0},null,{"$f":"'Form 2A'!G25","v":0}]
["Form 2A","Income Stmt CON","2A4c","Net Expenses R/I Contracts Held",{"$f":"'Form 2A'!E26","v":0},null,{"$f":"'Form 2A'!G26","v":0}]
["Form 2A","Income Stmt CON","2A5","Insurance Service Results",{"$f":"'Form 2A'!E28","v":0},null,{"$f":"'Form 2A'!G28","v":0}]
["Form 2A","Income Stmt CON","2A6a","Net Interest Income",{"$f":"'Form 2A'!E31","v":0},null,{"$f":"'Form 2A'!G31","v":0}]
["Form 2A","Income Stmt CON","2A6b","Net Realized",{"$f":"'Form 2A'!E32","v":0},null,{"$f":"'Form 2A'!G32","v":0}]
["Form 2A","Income Stmt CON","2A6c","Net Foreign Exchange",{"$f":"'Form 2A'!E33","v":0},null,{"$f":"'Form 2A'!G33","v":0}]
["Form 2A","Income Stmt CON","2A6d","Credit Impairment Losses",{"$f":"'Form 2A'!E34","v":0},null,{"$f":"'Form 2A'!G34","v":0}]
["Form 2A","Income Stmt CON","2A6e","Other Investment Returns",{"$f":"'Form 2A'!E35","v":0},null,{"$f":"'Form 2A'!G35","v":0}]
["Form 2A","Income Stmt CON","2A6f","Total Investment Returns",{"$f":"'Form 2A'!E36","v":0},null,{"$f":"'Form 2A'!G36","v":0}]
["Form 2A","Income Stmt CON","2A7a","Net Finance Expense from Insurance",{"$f":"'Form 2A'!E39","v":0},null,{"$f":"'Form 2A'!G39","v":0}]
["Form 2A","Income Stmt CON","2A7b","Net Finance Expense from Reinsurance",{"$f":"'Form 2A'!E40","v":0},null,{"$f":"'Form 2A'!G40","v":0}]
["Form 2A","Income Stmt CON","2A7c","Insurance Finance Results",{"$f":"'Form 2A'!E41","v":0},null,{"$f":"'Form 2A'!G41","v":0}]
["Form 2A","Income Stmt CON","2A8","Net Insurance Financial and Investment Results",{"$f":"'Form 2A'!E43","v":0},null,{"$f":"'Form 2A'!G43","v":0}]
["Form 2A","Income Stmt CON","2A9","Other Income",{"$f":"'Form 2A'!E45","v":0},null,{"$f":"'Form 2A'!G45","v":0}]
["Form 2A","Income Stmt CON","2A10","Profit Before Tax",{"$f":"'Form 2A'!E48","v":0},null,{"$f":"'Form 2A'!G48","v":0}]
["Form 2A","Income Stmt CON","2A11","Income Tax",{"$f":"'Form 2A'!E50","v":0},null,{"$f":"'Form 2A'!G50","v":0}]
["Form 2A","Income Stmt CON","2A12","Net Income",{"$f":"'Form 2A'!E52","v":0},null,{"$f":"'Form 2A'!G52","v":0}]
[]
["Form 2A","Notes","Revenue","Expected Incurred Claims",{"$f":"'Form 2A'!E61","v":0}]
["Form 2A","Notes","Revenue","CSM for Services Provided",{"$f":"'Form 2A'!E63","v":0}]
["Form 2A","Notes","Revenue","Change in Risk Adjustment",{"$f":"'Form 2A'!E65","v":0}]
["Form 2A","Notes","Revenue","Recovery of Insurance Acqusition",{"$f":"'Form 2A'!E67","v":0}]
["Form 2A","Notes","Revenue","Contracts Measured under the General Model",{"$f":"'Form 2A'!E69","v":0}]
["Form 2A","Notes","Revenue","Contracts Measured under PAA",{"$f":"'Form 2A'!E71","v":0}]
["Form 2A","Notes","Revenue","Total Insurance Revenue",{"$f":"'Form 2A'!E73","v":0}]
["Form 2A","Notes","Premium","General Business GPW",{"$f":"'Form 2A'!E77","v":0}]
["Form 2A","Notes","Premium","General Business Premiums Ceded",{"$f":"'Form 2A'!E78","v":0}]
["Form 2A","Notes","Premium","General Business NPW",{"$f":"'Form 2A'!E79","v":0}]
["Form 2A","Notes","Premium","General Business Net Losses Incurred",{"$f":"'Form 2A'!E81","v":0}]
["Form 2A","Notes","Premium","Long-Term GPW",{"$f":"'Form 2A'!E83","v":0}]
["Form 2A","Notes","Premium","Long-Term Premiums Ceded",{"$f":"'Form 2A'!E84","v":0}]
["Form 2A","Notes","Premium","Long-Term NPW",{"$f":"'Form 2A'!E85","v":0}]
["Form 2A","Notes","Oper. Exp.","General and Administrative Expense",{"$f":"'Form 2A'!E89","v":0}]
["Form 2A","Notes","Oper. Exp.","Personnel Costs",{"$f":"'Form 2A'!E90","v":0}]
["Form 2A","Notes","Oper. Exp.","Other Expenses",{"$f":"'Form 2A'!E91","v":0}]
["Form 2A","Notes","Oper. Exp.","Total Combined Operating Expense",{"$f":"'Form 2A'!E92","v":0}]
[]
[null,null,null,"Statement of Capital & Surplus"]
["Form 8A","Stmt of C&S CON","8A1ai","Capital Stock"]
["Form 8A","Stmt of C&S CON",null,"Common Stock",{"$f":"'Form 8A'!G12","v":0},null,{"$f":"'Form 8A'!I12","v":0}]
["Form 8A","Stmt of C&S CON","8A1aii","Preferred Shares",{"$f":"'Form 8A'!G17","v":0},null,{"$f":"'Form 8A'!I17","v":0}]
["Form 8A","Stmt of C&S CON","8A1aiii","Treasury Shares",{"$f":"'Form 8A'!G25","v":0},null,{"$f":"'Form 8A'!I25","v":0}]
["Form 8A","Stmt of C&S CON","8A1b","Contributed Surplus",{"$f":"'Form 8A'!G29","v":0},null,{"$f":"'Form 8A'!I29","v":0}]
["Form 8A","Stmt of C&S CON","8A1ci","Other Fixed Capital - Hybrid Instruments",{"$f":"'Form 8A'!G32","v":0},null,{"$f":"'Form 8A'!I32","v":0}]
["Form 8A","Stmt of C&S CON","8A1cii","Other Fixed Capital - Guarantees & Others",{"$f":"'Form 8A'!G33","v":0},null,{"$f":"'Form 8A'!I33","v":0}]
["Form 8A","Stmt of C&S CON","8A2a","Statutory Surplus - Beginning of Year",{"$f":"'Form 8A'!G40","v":0},null,{"$f":"'Form 8A'!I40","v":0}]
["Form 8A","Stmt of C&S CON","8A2c","Dividends",{"$f":"'Form 8A'!G44","v":0},null,{"$f":"'Form 8A'!I44","v":0}]
["Form 8A","Stmt of C&S CON","8A2d","Unrealized Change in Investments",{"$f":"'Form 8A'!G46","v":0},null,{"$f":"'Form 8A'!I46","v":0}]
["Form 8A","Stmt of C&S CON","8A2e","Change in Non-Admitted Assets",{"$f":"'Form 8A'!G48","v":0},null,{"$f":"'Form 8A'!I48","v":0}]
["Form 8A","Stmt of C&S CON","8A2f","Change in Real Estate",{"$f":"'Form 8A'!G50","v":0},null,{"$f":"'Form 8A'!I50","v":0}]
["Form 8A","Stmt of C&S CON","8A2g","Change in Other Statutory Capital",{"$f":"'Form 8A'!G52","v":0},null,{"$f":"'Form 8A'!I52","v":0}]
["Form 8A","Stmt of C&S CON","8A3","Minority Interest",{"$f":"'Form 8A'!G56","v":0},null,{"$f":"'Form 8A'!I56","v":0}]
[]
["Form 8A","Notes","2g","Description 1",{"$f":"'Form 8A'!E61","v":0}]
["Form 8A","Notes","2g","Description 2",{"$f":"'Form 8A'!E62","v":0}]
["Form 8A","Notes","2g","Description 3",{"$f":"'Form 8A'!E63","v":0}]
["Form 8A","Notes","2g","Description 4",{"$f":"'Form 8A'!E64","v":0}]
["Form 8A","Notes","2g","IFRS 4 to 17 Adj",{"$f":"'Form 8A'!G61","v":0}]
["Form 8A","Notes","2g","Other Adj 1",{"$f":"'Form 8A'!G62","v":0}]
["Form 8A","Notes","2g","Other Adj 2",{"$f":"'Form 8A'!G63","v":0}]
["Form 8A","Notes","2g","Other Adj 3",{"$f":"'Form 8A'!G64","v":0}]
["Form 8A","Notes","2g","Other Adj 4",{"$f":"'Form 8A'!G65","v":0}]
[]
[null,null,null,"BSCR Schedules "]
["Sch II","Investments",null,"Corp. Bonds - BSCR Rate 0",{"$f":"'Schedule II'!D12","v":0},null,{"$f":"'Schedule II'!F12","v":0},null,{"$f":"'Schedule II (EBS)'!D12","v":0},null,{"$f":"'Schedule II (EBS)'!F12","v":0}]
["Sch II","Investments",null,"Corp. Bonds - BSCR Rate 1",{"$f":"'Schedule II'!D13","v":0},null,{"$f":"'Schedule II'!F13","v":0},null,{"$f":"'Schedule II (EBS)'!D13","v":0},null,{"$f":"'Schedule II (EBS)'!F13","v":0}]
["Sch II","Investments",null,"Corp. Bonds - BSCR Rate 2",{"$f":"'Schedule II'!D14","v":0},null,{"$f":"'Schedule II'!F14","v":0},null,{"$f":"'Schedule II (EBS)'!D14","v":0},null,{"$f":"'Schedule II (EBS)'!F14","v":0}]
["Sch II","Investments",null,"Corp. Bonds - BSCR Rate 3",{"$f":"'Schedule II'!D15","v":0},null,{"$f":"'Schedule II'!F15","v":0},null,{"$f":"'Schedule II (EBS)'!D15","v":0},null,{"$f":"'Schedule II (EBS)'!F15","v":0}]
["Sch II","Investments",null,"Corp. Bonds - BSCR Rate 4",{"$f":"'Schedule II'!D16","v":0},null,{"$f":"'Schedule II'!F16","v":0},null,{"$f":"'Schedule II (EBS)'!D16","v":0},null,{"$f":"'Schedule II (EBS)'!F16","v":0}]
["Sch II","Investments",null,"Corp. Bonds - BSCR Rate 5",{"$f":"'Schedule II'!D17","v":0},null,{"$f":"'Schedule II'!F17","v":0},null,{"$f":"'Schedule II (EBS)'!D17","v":0},null,{"$f":"'Schedule II (EBS)'!F17","v":0}]
["Sch II","Investments",null,"Corp. Bonds - BSCR Rate 6",{"$f":"'Schedule II'!D18","v":0},null,{"$f":"'Schedule II'!F18","v":0},null,{"$f":"'Schedule II (EBS)'!D18","v":0},null,{"$f":"'Schedule II (EBS)'!F18","v":0}]
["Sch II","Investments",null,"Corp. Bonds - BSCR Rate 7",{"$f":"'Schedule II'!D19","v":0},null,{"$f":"'Schedule II'!F19","v":0},null,{"$f":"'Schedule II (EBS)'!D19","v":0},null,{"$f":"'Schedule II (EBS)'!F19","v":0}]
["Sch II","Investments",null,"Corp. Bonds - BSCR Rate 8",{"$f":"'Schedule II'!D20","v":0},null,{"$f":"'Schedule II'!F20","v":0},null,{"$f":"'Schedule II (EBS)'!D20","v":0},null,{"$f":"'Schedule II (EBS)'!F20","v":0}]
["Sch II","Investments",null,"Residential MBS - BSCR Rate 1",{"$f":"'Schedule II'!H13","v":0},null,{"$f":"'Schedule II'!J13","v":0},null,{"$f":"'Schedule II (EBS)'!H13","v":0},null,{"$f":"'Schedule II (EBS)'!J13","v":0}]
["Sch II","Investments",null,"Residential MBS - BSCR Rate 2",{"$f":"'Schedule II'!H14","v":0},null,{"$f":"'Schedule II'!J14","v":0},null,{"$f":"'Schedule II (EBS)'!H14","v":0},null,{"$f":"'Schedule II (EBS)'!J14","v":0}]
["Sch II","Investments",null,"Residential MBS - BSCR Rate 3",{"$f":"'Schedule II'!H15","v":0},null,{"$f":"'Schedule II'!J15","v":0},null,{"$f":"'Schedule II (EBS)'!H15","v":0},null,{"$f":"'Schedule II (EBS)'!J15","v":0}]
["Sch II","Investments",null,"Residential MBS - BSCR Rate 4",{"$f":"'Schedule II'!H16","v":0},null,{"$f":"'Schedule II'!J16","v":0},null,{"$f":"'Schedule II (EBS)'!H16","v":0},null,{"$f":"'Schedule II (EBS)'!J16","v":0}]
["Sch II","Investments",null,"Residential MBS - BSCR Rate 5",{"$f":"'Schedule II'!H17","v":0},null,{"$f":"'Schedule II'!J17","v":0},null,{"$f":"'Schedule II (EBS)'!H17","v":0},null,{"$f":"'Schedule II (EBS)'!J17","v":0}]
["Sch II","Investments",null,"Residential MBS - BSCR Rate 6",{"$f":"'Schedule II'!H18","v":0},null,{"$f":"'Schedule II'!J18","v":0},null,{"$f":"'Schedule II (EBS)'!H18","v":0},null,{"$f":"'Schedule II (EBS)'!J18","v":0}]
["Sch II","Investments",null,"Residential MBS - BSCR Rate 7",{"$f":"'Schedule II'!H19","v":0},null,{"$f":"'Schedule II'!J19","v":0},null,{"$f":"'Schedule II (EBS)'!H19","v":0},null,{"$f":"'Schedule II (EBS)'!J19","v":0}]
["Sch II","Investments",null,"Residential MBS - BSCR Rate 8",{"$f":"'Schedule II'!H20","v":0},null,{"$f":"'Schedule II'!J20","v":0},null,{"$f":"'Schedule II (EBS)'!H20","v":0},null,{"$f":"'Schedule II (EBS)'!J20","v":0}]
["Sch II","Investments",null,"Commercial MBS - BSCR Rate 1",{"$f":"'Schedule II'!L13","v":0},null,{"$f":"'Schedule II'!N13","v":0},null,{"$f":"'Schedule II (EBS)'!L13","v":0},null,{"$f":"'Schedule II (EBS)'!N13","v":0}]
["Sch II","Investments",null,"Commercial MBS - BSCR Rate 2",{"$f":"'Schedule II'!L14","v":0},null,{"$f":"'Schedule II'!N14","v":0},null,{"$f":"'Schedule II (EBS)'!L14","v":0},null,{"$f":"'Schedule II (EBS)'!N14","v":0}]
["Sch II","Investments",null,"Commercial MBS - BSCR Rate 3",{"$f":"'Schedule II'!L15","v":0},null,{"$f":"'Schedule II'!N15","v":0},null,{"$f":"'Schedule II (EBS)'!L15","v":0},null,{"$f":"'Schedule II (EBS)'!N15","v":0}]
["Sch II","Investments",null,"Commercial MBS - BSCR Rate 4",{"$f":"'Schedule II'!L16","v":0},null,{"$f":"'Schedule II'!N16","v":0},null,{"$f":"'Schedule II (EBS)'!L16","v":0},null,{"$f":"'Schedule II (EBS)'!N16","v":0}]
["Sch II","Investments",null,"Commercial MBS - BSCR Rate 5",{"$f":"'Schedule II'!L17","v":0},null,{"$f":"'Schedule II'!N17","v":0},null,{"$f":"'Schedule II (EBS)'!L17","v":0},null,{"$f":"'Schedule II (EBS)'!N17","v":0}]
["Sch II","Investments",null,"Commercial MBS - BSCR Rate 6",{"$f":"'Schedule II'!L18","v":0},null,{"$f":"'Schedule II'!N18","v":0},null,{"$f":"'Schedule II (EBS)'!L18","v":0},null,{"$f":"'Schedule II (EBS)'!N18","v":0}]
["Sch II","Investments",null,"Commercial MBS - BSCR Rate 7",{"$f":"'Schedule II'!L19","v":0},null,{"$f":"'Schedule II'!N19","v":0},null,{"$f":"'Schedule II (EBS)'!L19","v":0},null,{"$f":"'Schedule II (EBS)'!N19","v":0}]
["Sch II","Investments",null,"Commercial MBS - BSCR Rate 8",{"$f":"'Schedule II'!L20","v":0},null,{"$f":"'Schedule II'!N20","v":0},null,{"$f":"'Schedule II (EBS)'!L20","v":0},null,{"$f":"'Schedule II (EBS)'!N20","v":0}]
["Sch II","Investments",null,"Bonds Mutual Fund - BSCR Rate 0",{"$f":"'Schedule II'!P12","v":0},null,{"$f":"'Schedule II'!R12","v":0},null,{"$f":"'Schedule II (EBS)'!P12","v":0},null,{"$f":"'Schedule II (EBS)'!R12","v":0}]
["Sch II","Investments",null,"Bonds Mutual Fund - BSCR Rate 1",{"$f":"'Schedule II'!P13","v":0},null,{"$f":"'Schedule II'!R13","v":0},null,{"$f":"'Schedule II (EBS)'!P13","v":0},null,{"$f":"'Schedule II (EBS)'!R13","v":0}]
["Sch II","Investments",null,"Bonds Mutual Fund - BSCR Rate 2",{"$f":"'Schedule II'!P14","v":0},null,{"$f":"'Schedule II'!R14","v":0},null,{"$f":"'Schedule II (EBS)'!P14","v":0},null,{"$f":"'Schedule II (EBS)'!R14","v":0}]
["Sch II","Investments",null,"Bonds Mutual Fund - BSCR Rate 3",{"$f":"'Schedule II'!P15","v":0},null,{"$f":"'Schedule II'!R15","v":0},null,{"$f":"'Schedule II (EBS)'!P15","v":0},null,{"$f":"'Schedule II (EBS)'!R15","v":0}]
["Sch II","Investments",null,"Bonds Mutual Fund - BSCR Rate 4",{"$f":"'Schedule II'!P16","v":0},null,{"$f":"'Schedule II'!R16","v":0},null,{"$f":"'Schedule II (EBS)'!P16","v":0},null,{"$f":"'Schedule II (EBS)'!R16","v":0}]
["Sch II","Investments",null,"Bonds Mutual Fund - BSCR Rate 5",{"$f":"'Schedule II'!P17","v":0},null,{"$f":"'Schedule II'!R17","v":0},null,{"$f":"'Schedule II (EBS)'!P17","v":0},null,{"$f":"'Schedule II (EBS)'!R17","v":0}]
["Sch II","Investments",null,"Bonds Mutual Fund - BSCR Rate 6",{"$f":"'Schedule II'!P18","v":0},null,{"$f":"'Schedule II'!R18","v":0},null,{"$f":"'Schedule II (EBS)'!P18","v":0},null,{"$f":"'Schedule II (EBS)'!R18","v":0}]
["Sch II","Investments",null,"Bonds Mutual Fund - BSCR Rate 7",{"$f":"'Schedule II'!P19","v":0},null,{"$f":"'Schedule II'!R19","v":0},null,{"$f":"'Schedule II (EBS)'!P19","v":0},null,{"$f":"'Schedule II (EBS)'!R19","v":0}]
["Sch II","Investments",null,"Bonds Mutual Fund - BSCR Rate 8",{"$f":"'Schedule II'!P20","v":0},null,{"$f":"'Schedule II'!R20","v":0},null,{"$f":"'Schedule II (EBS)'!P20","v":0},null,{"$f":"'Schedule II (EBS)'!R20","v":0}]
["Sch II","Investments",null,"Common Shares - Quoted",{"$f":"'Schedule II'!D41","v":0},null,{"$f":"'Schedule II'!F41","v":0},null,{"$f":"'Schedule II (EBS)'!D41","v":0},null,{"$f":"'Schedule II (EBS)'!F41","v":0}]
["Sch II","Investments",null,"Common Shares - Unquoted",{"$f":"'Schedule II'!D42","v":0},null,{"$f":"'Schedule II'!F42","v":0},null,{"$f":"'Schedule II (EBS)'!D42","v":0},null,{"$f":"'Schedule II (EBS)'!F42","v":0}]
["Sch II","Investments",null,"Preferred Shares - BSCR Rate 1",{"$f":"'Schedule II'!H33","v":0},null,{"$f":"'Schedule II'!J33","v":0},null,{"$f":"'Schedule II (EBS)'!H33","v":0},null,{"$f":"'Schedule II (EBS)'!J33","v":0}]
["Sch II","Investments",null,"Preferred Shares - BSCR Rate 2",{"$f":"'Schedule II'!H34","v":0},null,{"$f":"'Schedule II'!J34","v":0},null,{"$f":"'Schedule II (EBS)'!H34","v":0},null,{"$f":"'Schedule II (EBS)'!J34","v":0}]
["Sch II","Investments",null,"Preferred Shares - BSCR Rate 3",{"$f":"'Schedule II'!H35","v":0},null,{"$f":"'Schedule II'!J35","v":0},null,{"$f":"'Schedule II (EBS)'!H35","v":0},null,{"$f":"'Schedule II (EBS)'!J35","v":0}]
["Sch II","Investments",null,"Preferred Shares - BSCR Rate 4",{"$f":"'Schedule II'!H36","v":0},null,{"$f":"'Schedule II'!J36","v":0},null,{"$f":"'Schedule II (EBS)'!H36","v":0},null,{"$f":"'Schedule II (EBS)'!J36","v":0}]
["Sch II","Investments",null,"Preferred Shares - BSCR Rate 5",{"$f":"'Schedule II'!H37","v":0},null,{"$f":"'Schedule II'!J37","v":0},null,{"$f":"'Schedule II (EBS)'!H37","v":0},null,{"$f":"'Schedule II (EBS)'!J37","v":0}]
["Sch II","Investments",null,"Preferred Shares - BSCR Rate 6",{"$f":"'Schedule II'!H38","v":0},null,{"$f":"'Schedule II'!J38","v":0},null,{"$f":"'Schedule II (EBS)'!H38","v":0},null,{"$f":"'Schedule II (EBS)'!J38","v":0}]
["Sch II","Investments",null,"Preferred Shares - BSCR Rate 7",{"$f":"'Schedule II'!H39","v":0},null,{"$f":"'Schedule II'!J39","v":0},null,{"$f":"'Schedule II (EBS)'!H39","v":0},null,{"$f":"'Schedule II (EBS)'!J39","v":0}]
["Sch II","Investments",null,"Preferred Shares - BSCR Rate 8",{"$f":"'Schedule II'!H40","v":0},null,{"$f":"'Schedule II'!J40","v":0},null,{"$f":"'Schedule II (EBS)'!H40","v":0},null,{"$f":"'Schedule II (EBS)'!J40","v":0}]
["Sch II","Investments",null,"Equity Mutual Funds -  Quoted",{"$f":"'Schedule II'!L41","v":0},null,{"$f":"'Schedule II'!N41","v":0},null,{"$f":"'Schedule II (EBS)'!L41","v":0},null,{"$f":"'Schedule II (EBS)'!N41","v":0}]
["Sch II","Investments",null,"Equity Mutual Funds -  Unquoted",{"$f":"'Schedule II'!L42","v":0},null,{"$f":"'Schedule II'!N42","v":0},null,{"$f":"'Schedule II (EBS)'!L42","v":0},null,{"$f":"'Schedule II (EBS)'!N42","v":0}]
["Sch II","Investments",null,"Mortgage Loans - Insured",{"$f":"'Schedule II'!D57","v":0},null,{"$f":"'Schedule II'!F57","v":0},null,{"$f":"'Schedule II (EBS)'!D57","v":0},null,{"$f":"'Schedule II (EBS)'!F57","v":0}]
["Sch II","Investments",null,"Mortgage Loans - Other Commercial",{"$f":"'Schedule II'!D58","v":0},null,{"$f":"'Schedule II'!F58","v":0},null,{"$f":"'Schedule II (EBS)'!D58","v":0},null,{"$f":"'Schedule II (EBS)'!F58","v":0}]
["Sch II","Investments",null,"Mortgage Loans - Other Residential",{"$f":"'Schedule II'!D59","v":0},null,{"$f":"'Schedule II'!F59","v":0},null,{"$f":"'Schedule II (EBS)'!D59","v":0},null,{"$f":"'Schedule II (EBS)'!F59","v":0}]
["Sch II","Investments",null,"Mortgage Loans - Not Good Stand.",{"$f":"'Schedule II'!D60","v":0},null,{"$f":"'Schedule II'!F60","v":0},null,{"$f":"'Schedule II (EBS)'!D60","v":0},null,{"$f":"'Schedule II (EBS)'!F60","v":0}]
["Sch II","Investments",null,"NAIC Resid. MBS - Orig. Class 1",{"$f":"'Schedule II'!L55","v":0},null,null,null,{"$f":"'Schedule II (EBS)'!L56","v":0}]
["Sch II","Investments",null,"NAIC Resid. MBS - Orig. Class 2",{"$f":"'Schedule II'!L56","v":0},null,null,null,{"$f":"'Schedule II (EBS)'!L57","v":0}]
["Sch II","Investments",null,"NAIC Resid. MBS - Orig. Class 3",{"$f":"'Schedule II'!L57","v":0},null,null,null,{"$f":"'Schedule II (EBS)'!L58","v":0}]
["Sch II","Investments",null,"NAIC Resid. MBS - Orig. Class 4",{"$f":"'Schedule II'!L58","v":0},null,null,null,{"$f":"'Schedule II (EBS)'!L59","v":0}]
["Sch II","Investments",null,"NAIC Resid. MBS - Orig. Class 5",{"$f":"'Schedule II'!L59","v":0},null,null,null,{"$f":"'Schedule II (EBS)'!L60","v":0}]
["Sch II","Investments",null,"NAIC Resid. MBS - Orig. Class 6",{"$f":"'Schedule II'!L60","v":0},null,null,null,{"$f":"'Schedule II (EBS)'!L61","v":0}]
["Sch II","Investments",null,"NAIC Resid. MBS - Orig. Total",{"$f":"'Schedule II'!L62","v":0},null,null,null,{"$f":"'Schedule II (EBS)'!L63","v":0}]
["Sch II","Investments",null,"NAIC Resid. MBS - Rev. Class 1",{"$f":"'Schedule II'!N55","v":0},null,null,null,{"$f":"'Schedule II (EBS)'!N56","v":0}]
["Sch II","Investments",null,"NAIC Resid. MBS - Rev. Class 2",{"$f":"'Schedule II'!N56","v":0},null,null,null,{"$f":"'Schedule II (EBS)'!N57","v":0}]
["Sch II","Investments",null,"NAIC Resid. MBS - Rev. Class 3",{"$f":"'Schedule II'!N57","v":0},null,null,null,{"$f":"'Schedule II (EBS)'!N58","v":0}]
["Sch II","Investments",null,"NAIC Resid. MBS - Rev. Class 4",{"$f":"'Schedule II'!N58","v":0},null,null,null,{"$f":"'Schedule II (EBS)'!N59","v":0}]
["Sch II","Investments",null,"NAIC Resid. MBS - Rev. Class 5",{"$f":"'Schedule II'!N59","v":0},null,null,null,{"$f":"'Schedule II (EBS)'!N60","v":0}]
["Sch II","Investments",null,"NAIC Resid. MBS - Rev. Class 6",{"$f":"'Schedule II'!N60","v":0},null,null,null,{"$f":"'Schedule II (EBS)'!N61","v":0}]
["Sch II","Investments",null,"NAIC Resid. MBS - Rev. Total",{"$f":"'Schedule II'!N62","v":0},null,null,null,{"$f":"'Schedule II (EBS)'!N63","v":0}]
["Sch II","Investments",null,"NAIC Comm. MBS - Orig. Class 1",{"$f":"'Schedule II'!P55","v":0},null,null,null,{"$f":"'Schedule II (EBS)'!P56","v":0}]
["Sch II","Investments",null,"NAIC Comm. MBS - Orig. Class 2",{"$f":"'Schedule II'!P56","v":0},null,null,null,{"$f":"'Schedule II (EBS)'!P57","v":0}]
["Sch II","Investments",null,"NAIC Comm. MBS - Orig. Class 3",{"$f":"'Schedule II'!P57","v":0},null,null,null,{"$f":"'Schedule II (EBS)'!P58","v":0}]
["Sch II","Investments",null,"NAIC Comm. MBS - Orig. Class 4",{"$f":"'Schedule II'!P58","v":0},null,null,null,{"$f":"'Schedule II (EBS)'!P59","v":0}]
["Sch II","Investments",null,"NAIC Comm. MBS - Orig. Class 5",{"$f":"'Schedule II'!P59","v":0},null,null,null,{"$f":"'Schedule II (EBS)'!P60","v":0}]
["Sch II","Investments",null,"NAIC Comm. MBS - Orig. Class 6",{"$f":"'Schedule II'!P60","v":0},null,null,null,{"$f":"'Schedule II (EBS)'!P61","v":0}]
["Sch II","Investments",null,"NAIC Comm. MBS - Orig. Total",{"$f":"'Schedule II'!P62","v":0},null,null,null,{"$f":"'Schedule II (EBS)'!P63","v":0}]
["Sch II","Investments",null,"NAIC Comm. MBS - Rev. Class 1",{"$f":"'Schedule II'!R55","v":0},null,null,null,{"$f":"'Schedule II (EBS)'!R56","v":0}]
["Sch II","Investments",null,"NAIC Comm. MBS - Rev. Class 2",{"$f":"'Schedule II'!R56","v":0},null,null,null,{"$f":"'Schedule II (EBS)'!R57","v":0}]
["Sch II","Investments",null,"NAIC Comm. MBS - Rev. Class 3",{"$f":"'Schedule II'!R57","v":0},null,null,null,{"$f":"'Schedule II (EBS)'!R58","v":0}]
["Sch II","Investments",null,"NAIC Comm. MBS - Rev. Class 4",{"$f":"'Schedule II'!R58","v":0},null,null,null,{"$f":"'Schedule II (EBS)'!R59","v":0}]
["Sch II","Investments",null,"NAIC Comm. MBS - Rev. Class 5",{"$f":"'Schedule II'!R59","v":0},null,null,null,{"$f":"'Schedule II (EBS)'!R60","v":0}]
["Sch II","Investments",null,"NAIC Comm. MBS - Rev. Class 6",{"$f":"'Schedule II'!R60","v":0},null,null,null,{"$f":"'Schedule II (EBS)'!R61","v":0}]
["Sch II","Investments",null,"NAIC Comm. MBS - Rev. Total",{"$f":"'Schedule II'!R62","v":0},null,null,null,{"$f":"'Schedule II (EBS)'!R63","v":0}]
["Sch II","Investments",null,"NAIC Rating Corp & Sov. Bond - Class 1",{"$f":"'Schedule II'!D70","v":0},null,null,null,{"$f":"'Schedule II (EBS)'!D70","v":0}]
["Sch II","Investments",null,"NAIC Rating Corp & Sov. Bond - Class 2",{"$f":"'Schedule II'!D71","v":0},null,null,null,{"$f":"'Schedule II (EBS)'!D71","v":0}]
["Sch II","Investments",null,"NAIC Rating Corp & Sov. Bond - Class 3",{"$f":"'Schedule II'!D72","v":0},null,null,null,{"$f":"'Schedule II (EBS)'!D72","v":0}]
["Sch II","Investments",null,"NAIC Rating Corp & Sov. Bond - Class 4",{"$f":"'Schedule II'!D73","v":0},null,null,null,{"$f":"'Schedule II (EBS)'!D73","v":0}]
["Sch II","Investments",null,"NAIC Rating Corp & Sov. Bond - Class 5",{"$f":"'Schedule II'!D74","v":0},null,null,null,{"$f":"'Schedule II (EBS)'!D74","v":0}]
["Sch II","Investments",null,"NAIC Rating Corp & Sov. Bond - Class 6",{"$f":"'Schedule II'!D75","v":0},null,null,null,{"$f":"'Schedule II (EBS)'!D75","v":0}]
["Sch II","Investments",null,"NAIC Rating Corp & Sov. Bond - Total",{"$f":"'Schedule II'!D76","v":0},null,null,null,{"$f":"'Schedule II (EBS)'!D76","v":0}]
["Sch II","Investments",null,"NAIC Rating Resid. MBS - Class 1",{"$f":"'Schedule II'!F70","v":0},null,null,null,{"$f":"'Schedule II (EBS)'!F70","v":0}]
["Sch II","Investments",null,"NAIC Rating Resid. MBS - Class 2",{"$f":"'Schedule II'!F71","v":0},null,null,null,{"$f":"'Schedule II (EBS)'!F71","v":0}]
["Sch II","Investments",null,"NAIC Rating Resid. MBS - Class 3",{"$f":"'Schedule II'!F72","v":0},null,null,null,{"$f":"'Schedule II (EBS)'!F72","v":0}]
["Sch II","Investments",null,"NAIC Rating Resid. MBS - Class 4",{"$f":"'Schedule II'!F73","v":0},null,null,null,{"$f":"'Schedule II (EBS)'!F73","v":0}]
["Sch II","Investments",null,"NAIC Rating Resid. MBS - Class 5",{"$f":"'Schedule II'!F74","v":0},null,null,null,{"$f":"'Schedule II (EBS)'!F74","v":0}]
["Sch II","Investments",null,"NAIC Rating Resid. MBS - Class 6",{"$f":"'Schedule II'!F75","v":0},null,null,null,{"$f":"'Schedule II (EBS)'!F75","v":0}]
["Sch II","Investments",null,"NAIC Rating Resid. MBS - Total",{"$f":"'Schedule II'!F76","v":0},null,null,null,{"$f":"'Schedule II (EBS)'!F76","v":0}]
["Sch II","Investments",null,"NAIC Rating Comm. MBS - Class 1",{"$f":"'Schedule II'!H70","v":0},null,null,null,{"$f":"'Schedule II (EBS)'!H70","v":0}]
["Sch II","Investments",null,"NAIC Rating Comm. MBS - Class 2",{"$f":"'Schedule II'!H71","v":0},null,null,null,{"$f":"'Schedule II (EBS)'!H71","v":0}]
["Sch II","Investments",null,"NAIC Rating Comm. MBS - Class 3",{"$f":"'Schedule II'!H72","v":0},null,null,null,{"$f":"'Schedule II (EBS)'!H72","v":0}]
["Sch II","Investments",null,"NAIC Rating Comm. MBS - Class 4",{"$f":"'Schedule II'!H73","v":0},null,null,null,{"$f":"'Schedule II (EBS)'!H73","v":0}]
["Sch II","Investments",null,"NAIC Rating Comm. MBS - Class 5",{"$f":"'Schedule II'!H74","v":0},null,null,null,{"$f":"'Schedule II (EBS)'!H74","v":0}]
["Sch II","Investments",null,"NAIC Rating Comm. MBS - Class 6",{"$f":"'Schedule II'!H75","v":0},null,null,null,{"$f":"'Schedule II (EBS)'!H75","v":0}]
["Sch II","Investments",null,"NAIC Rating Comm. MBS - Total",{"$f":"'Schedule II'!H76","v":0},null,null,null,{"$f":"'Schedule II (EBS)'!H76","v":0}]
["Sch II","Investments",null,"NAIC Rating Bond Mutual - Class 1",{"$f":"'Schedule II'!J70","v":0},null,null,null,{"$f":"'Schedule II (EBS)'!J70","v":0}]
["Sch II","Investments",null,"NAIC Rating Bond Mutual - Class 2",{"$f":"'Schedule II'!J71","v":0},null,null,null,{"$f":"'Schedule II (EBS)'!J71","v":0}]
["Sch II","Investments",null,"NAIC Rating Bond Mutual - Class 3",{"$f":"'Schedule II'!J72","v":0},null,null,null,{"$f":"'Schedule II (EBS)'!J72","v":0}]
["Sch II","Investments",null,"NAIC Rating Bond Mutual - Class 4",{"$f":"'Schedule II'!J73","v":0},null,null,null,{"$f":"'Schedule II (EBS)'!J73","v":0}]
["Sch II","Investments",null,"NAIC Rating Bond Mutual - Class 5",{"$f":"'Schedule II'!J74","v":0},null,null,null,{"$f":"'Schedule II (EBS)'!J74","v":0}]
["Sch II","Investments",null,"NAIC Rating Bond Mutual - Class 6",{"$f":"'Schedule II'!J75","v":0},null,null,null,{"$f":"'Schedule II (EBS)'!J75","v":0}]
["Sch II","Investments",null,"NAIC Rating Bond Mutual - Total",{"$f":"'Schedule II'!J76","v":0},null,null,null,{"$f":"'Schedule II (EBS)'!J76","v":0}]
["Sch II","Investments",null,"NAIC Rating Mort. Loan - Class 1",{"$f":"'Schedule II'!L70","v":0},null,null,null,{"$f":"'Schedule II (EBS)'!L70","v":0}]
["Sch II","Investments",null,"NAIC Rating Mort. Loan - Class 2",{"$f":"'Schedule II'!L71","v":0},null,null,null,{"$f":"'Schedule II (EBS)'!L71","v":0}]
["Sch II","Investments",null,"NAIC Rating Mort. Loan - Class 3",{"$f":"'Schedule II'!L72","v":0},null,null,null,{"$f":"'Schedule II (EBS)'!L72","v":0}]
["Sch II","Investments",null,"NAIC Rating Mort. Loan - Class 4",{"$f":"'Schedule II'!L73","v":0},null,null,null,{"$f":"'Schedule II (EBS)'!L73","v":0}]
["Sch II","Investments",null,"NAIC Rating Mort. Loan - Class 5",{"$f":"'Schedule II'!L74","v":0},null,null,null,{"$f":"'Schedule II (EBS)'!L74","v":0}]
["Sch II","Investments",null,"NAIC Rating Mort. Loan - Class 6",{"$f":"'Schedule II'!L75","v":0},null,null,null,{"$f":"'Schedule II (EBS)'!L75","v":0}]
["Sch II","Investments",null,"NAIC Rating Mort. Loan - Total",{"$f":"'Schedule II'!L76","v":0},null,null,null,{"$f":"'Schedule II (EBS)'!L76","v":0}]
["Sch II","Investments",null,"NAIC Rating Pref. Stock - Class 1",{"$f":"'Schedule II'!N70","v":0},null,null,null,{"$f":"'Schedule II (EBS)'!N70","v":0}]
["Sch II","Investments",null,"NAIC Rating Pref. Stock - Class 2",{"$f":"'Schedule II'!N71","v":0},null,null,null,{"$f":"'Schedule II (EBS)'!N71","v":0}]
["Sch II","Investments",null,"NAIC Rating Pref. Stock - Class 3",{"$f":"'Schedule II'!N72","v":0},null,null,null,{"$f":"'Schedule II (EBS)'!N72","v":0}]
["Sch II","Investments",null,"NAIC Rating Pref. Stock - Class 4",{"$f":"'Schedule II'!N73","v":0},null,null,null,{"$f":"'Schedule II (EBS)'!N73","v":0}]
["Sch II","Investments",null,"NAIC Rating Pref. Stock - Class 5",{"$f":"'Schedule II'!N74","v":0},null,null,null,{"$f":"'Schedule II (EBS)'!N74","v":0}]
["Sch II","Investments",null,"NAIC Rating Pref. Stock - Class 6",{"$f":"'Schedule II'!N75","v":0},null,null,null,{"$f":"'Schedule II (EBS)'!N75","v":0}]
["Sch II","Investments",null,"NAIC Rating Pref. Stock - Total",{"$f":"'Schedule II'!N76","v":0},null,null,null,{"$f":"'Schedule II (EBS)'!N76","v":0}]
["Sch II","Investments",null,"NAIC Rating Other Assets - Class 1",{"$f":"'Schedule II'!P70","v":0},null,null,null,{"$f":"'Schedule II (EBS)'!P70","v":0}]
["Sch II","Investments",null,"NAIC Rating Other Assets - Class 2",{"$f":"'Schedule II'!P71","v":0},null,null,null,{"$f":"'Schedule II (EBS)'!P71","v":0}]
["Sch II","Investments",null,"NAIC Rating Other Assets - Class 3",{"$f":"'Schedule II'!P72","v":0},null,null,null,{"$f":"'Schedule II (EBS)'!P72","v":0}]
["Sch II","Investments",null,"NAIC Rating Other Assets - Class 4",{"$f":"'Schedule II'!P73","v":0},null,null,null,{"$f":"'Schedule II (EBS)'!P73","v":0}]
["Sch II","Investments",null,"NAIC Rating Other Assets - Class 5",{"$f":"'Schedule II'!P74","v":0},null,null,null,{"$f":"'Schedule II (EBS)'!P74","v":0}]
["Sch II","Investments",null,"NAIC Rating Other Assets - Class 6",{"$f":"'Schedule II'!P75","v":0},null,null,null,{"$f":"'Schedule II (EBS)'!P75","v":0}]
["Sch II","Investments",null,"NAIC Rating Other Assets - Total",{"$f":"'Schedule II'!P76","v":0},null,null,null,{"$f":"'Schedule II (EBS)'!P76","v":0}]
[]
["Sch IIA","Funds Held",null,"Corp. Bonds - BSCR Rate 0",{"$f":"'Schedule IIA'!D12","v":0},null,{"$f":"'Schedule IIA'!F12","v":0},null,{"$f":"'Schedule IIA (EBS)'!D12","v":0},null,{"$f":"'Schedule IIA (EBS)'!F12","v":0}]
["Sch IIA","Funds Held",null,"Corp. Bonds - BSCR Rate 1",{"$f":"'Schedule IIA'!D13","v":0},null,{"$f":"'Schedule IIA'!F13","v":0},null,{"$f":"'Schedule IIA (EBS)'!D13","v":0},null,{"$f":"'Schedule IIA (EBS)'!F13","v":0}]
["Sch IIA","Funds Held",null,"Corp. Bonds - BSCR Rate 2",{"$f":"'Schedule IIA'!D14","v":0},null,{"$f":"'Schedule IIA'!F14","v":0},null,{"$f":"'Schedule IIA (EBS)'!D14","v":0},null,{"$f":"'Schedule IIA (EBS)'!F14","v":0}]
["Sch IIA","Funds Held",null,"Corp. Bonds - BSCR Rate 3",{"$f":"'Schedule IIA'!D15","v":0},null,{"$f":"'Schedule IIA'!F15","v":0},null,{"$f":"'Schedule IIA (EBS)'!D15","v":0},null,{"$f":"'Schedule IIA (EBS)'!F15","v":0}]
["Sch IIA","Funds Held",null,"Corp. Bonds - BSCR Rate 4",{"$f":"'Schedule IIA'!D16","v":0},null,{"$f":"'Schedule IIA'!F16","v":0},null,{"$f":"'Schedule IIA (EBS)'!D16","v":0},null,{"$f":"'Schedule IIA (EBS)'!F16","v":0}]
["Sch IIA","Funds Held",null,"Corp. Bonds - BSCR Rate 5",{"$f":"'Schedule IIA'!D17","v":0},null,{"$f":"'Schedule IIA'!F17","v":0},null,{"$f":"'Schedule IIA (EBS)'!D17","v":0},null,{"$f":"'Schedule IIA (EBS)'!F17","v":0}]
["Sch IIA","Funds Held",null,"Corp. Bonds - BSCR Rate 6",{"$f":"'Schedule IIA'!D18","v":0},null,{"$f":"'Schedule IIA'!F18","v":0},null,{"$f":"'Schedule IIA (EBS)'!D18","v":0},null,{"$f":"'Schedule IIA (EBS)'!F18","v":0}]
["Sch IIA","Funds Held",null,"Corp. Bonds - BSCR Rate 7",{"$f":"'Schedule IIA'!D19","v":0},null,{"$f":"'Schedule IIA'!F19","v":0},null,{"$f":"'Schedule IIA (EBS)'!D19","v":0},null,{"$f":"'Schedule IIA (EBS)'!F19","v":0}]
["Sch IIA","Funds Held",null,"Corp. Bonds - BSCR Rate 8",{"$f":"'Schedule IIA'!D20","v":0},null,{"$f":"'Schedule IIA'!F20","v":0},null,{"$f":"'Schedule IIA (EBS)'!D20","v":0},null,{"$f":"'Schedule IIA (EBS)'!F20","v":0}]
["Sch IIA","Funds Held",null,"Residential MBS - BSCR Rate 1",{"$f":"'Schedule IIA'!H13","v":0},null,{"$f":"'Schedule IIA'!J13","v":0},null,{"$f":"'Schedule IIA (EBS)'!H13","v":0},null,{"$f":"'Schedule IIA (EBS)'!J13","v":0}]
["Sch IIA","Funds Held",null,"Residential MBS - BSCR Rate 2",{"$f":"'Schedule IIA'!H14","v":0},null,{"$f":"'Schedule IIA'!J14","v":0},null,{"$f":"'Schedule IIA (EBS)'!H14","v":0},null,{"$f":"'Schedule IIA (EBS)'!J14","v":0}]
["Sch IIA","Funds Held",null,"Residential MBS - BSCR Rate 3",{"$f":"'Schedule IIA'!H15","v":0},null,{"$f":"'Schedule IIA'!J15","v":0},null,{"$f":"'Schedule IIA (EBS)'!H15","v":0},null,{"$f":"'Schedule IIA (EBS)'!J15","v":0}]
["Sch IIA","Funds Held",null,"Residential MBS - BSCR Rate 4",{"$f":"'Schedule IIA'!H16","v":0},null,{"$f":"'Schedule IIA'!J16","v":0},null,{"$f":"'Schedule IIA (EBS)'!H16","v":0},null,{"$f":"'Schedule IIA (EBS)'!J16","v":0}]
["Sch IIA","Funds Held",null,"Residential MBS - BSCR Rate 5",{"$f":"'Schedule IIA'!H17","v":0},null,{"$f":"'Schedule IIA'!J17","v":0},null,{"$f":"'Schedule IIA (EBS)'!H17","v":0},null,{"$f":"'Schedule IIA (EBS)'!J17","v":0}]
["Sch IIA","Funds Held",null,"Residential MBS - BSCR Rate 6",{"$f":"'Schedule IIA'!H18","v":0},null,{"$f":"'Schedule IIA'!J18","v":0},null,{"$f":"'Schedule IIA (EBS)'!H18","v":0},null,{"$f":"'Schedule IIA (EBS)'!J18","v":0}]
["Sch IIA","Funds Held",null,"Residential MBS - BSCR Rate 7",{"$f":"'Schedule IIA'!H19","v":0},null,{"$f":"'Schedule IIA'!J19","v":0},null,{"$f":"'Schedule IIA (EBS)'!H19","v":0},null,{"$f":"'Schedule IIA (EBS)'!J19","v":0}]
["Sch IIA","Funds Held",null,"Residential MBS - BSCR Rate 8",{"$f":"'Schedule IIA'!H20","v":0},null,{"$f":"'Schedule IIA'!J20","v":0},null,{"$f":"'Schedule IIA (EBS)'!H20","v":0},null,{"$f":"'Schedule IIA (EBS)'!J20","v":0}]
["Sch IIA","Funds Held",null,"Commercial MBS - BSCR Rate 1",{"$f":"'Schedule IIA'!L13","v":0},null,{"$f":"'Schedule IIA'!N13","v":0},null,{"$f":"'Schedule IIA (EBS)'!L13","v":0},null,{"$f":"'Schedule IIA (EBS)'!N13","v":0}]
["Sch IIA","Funds Held",null,"Commercial MBS - BSCR Rate 2",{"$f":"'Schedule IIA'!L14","v":0},null,{"$f":"'Schedule IIA'!N14","v":0},null,{"$f":"'Schedule IIA (EBS)'!L14","v":0},null,{"$f":"'Schedule IIA (EBS)'!N14","v":0}]
["Sch IIA","Funds Held",null,"Commercial MBS - BSCR Rate 3",{"$f":"'Schedule IIA'!L15","v":0},null,{"$f":"'Schedule IIA'!N15","v":0},null,{"$f":"'Schedule IIA (EBS)'!L15","v":0},null,{"$f":"'Schedule IIA (EBS)'!N15","v":0}]
["Sch IIA","Funds Held",null,"Commercial MBS - BSCR Rate 4",{"$f":"'Schedule IIA'!L16","v":0},null,{"$f":"'Schedule IIA'!N16","v":0},null,{"$f":"'Schedule IIA (EBS)'!L16","v":0},null,{"$f":"'Schedule IIA (EBS)'!N16","v":0}]
["Sch IIA","Funds Held",null,"Commercial MBS - BSCR Rate 5",{"$f":"'Schedule IIA'!L17","v":0},null,{"$f":"'Schedule IIA'!N17","v":0},null,{"$f":"'Schedule IIA (EBS)'!L17","v":0},null,{"$f":"'Schedule IIA (EBS)'!N17","v":0}]
["Sch IIA","Funds Held",null,"Commercial MBS - BSCR Rate 6",{"$f":"'Schedule IIA'!L18","v":0},null,{"$f":"'Schedule IIA'!N18","v":0},null,{"$f":"'Schedule IIA (EBS)'!L18","v":0},null,{"$f":"'Schedule IIA (EBS)'!N18","v":0}]
["Sch IIA","Funds Held",null,"Commercial MBS - BSCR Rate 7",{"$f":"'Schedule IIA'!L19","v":0},null,{"$f":"'Schedule IIA'!N19","v":0},null,{"$f":"'Schedule IIA (EBS)'!L19","v":0},null,{"$f":"'Schedule IIA (EBS)'!N19","v":0}]
["Sch IIA","Funds Held",null,"Commercial MBS - BSCR Rate 8",{"$f":"'Schedule IIA'!L20","v":0},null,{"$f":"'Schedule IIA'!N20","v":0},null,{"$f":"'Schedule IIA (EBS)'!L20","v":0},null,{"$f":"'Schedule IIA (EBS)'!N20","v":0}]
["Sch IIA","Funds Held",null,"Bonds Mutual Fund - BSCR Rate 0",{"$f":"'Schedule IIA'!P12","v":0},null,{"$f":"'Schedule IIA'!R12","v":0},null,{"$f":"'Schedule IIA (EBS)'!P12","v":0},null,{"$f":"'Schedule IIA (EBS)'!R12","v":0}]
["Sch IIA","Funds Held",null,"Bonds Mutual Fund - BSCR Rate 1",{"$f":"'Schedule IIA'!P13","v":0},null,{"$f":"'Schedule IIA'!R13","v":0},null,{"$f":"'Schedule IIA (EBS)'!P13","v":0},null,{"$f":"'Schedule IIA (EBS)'!R13","v":0}]
["Sch IIA","Funds Held",null,"Bonds Mutual Fund - BSCR Rate 2",{"$f":"'Schedule IIA'!P14","v":0},null,{"$f":"'Schedule IIA'!R14","v":0},null,{"$f":"'Schedule IIA (EBS)'!P14","v":0},null,{"$f":"'Schedule IIA (EBS)'!R14","v":0}]
["Sch IIA","Funds Held",null,"Bonds Mutual Fund - BSCR Rate 3",{"$f":"'Schedule IIA'!P15","v":0},null,{"$f":"'Schedule IIA'!R15","v":0},null,{"$f":"'Schedule IIA (EBS)'!P15","v":0},null,{"$f":"'Schedule IIA (EBS)'!R15","v":0}]
["Sch IIA","Funds Held",null,"Bonds Mutual Fund - BSCR Rate 4",{"$f":"'Schedule IIA'!P16","v":0},null,{"$f":"'Schedule IIA'!R16","v":0},null,{"$f":"'Schedule IIA (EBS)'!P16","v":0},null,{"$f":"'Schedule IIA (EBS)'!R16","v":0}]
["Sch IIA","Funds Held",null,"Bonds Mutual Fund - BSCR Rate 5",{"$f":"'Schedule IIA'!P17","v":0},null,{"$f":"'Schedule IIA'!R17","v":0},null,{"$f":"'Schedule IIA (EBS)'!P17","v":0},null,{"$f":"'Schedule IIA (EBS)'!R17","v":0}]
["Sch IIA","Funds Held",null,"Bonds Mutual Fund - BSCR Rate 6",{"$f":"'Schedule IIA'!P18","v":0},null,{"$f":"'Schedule IIA'!R18","v":0},null,{"$f":"'Schedule IIA (EBS)'!P18","v":0},null,{"$f":"'Schedule IIA (EBS)'!R18","v":0}]
["Sch IIA","Funds Held",null,"Bonds Mutual Fund - BSCR Rate 7",{"$f":"'Schedule IIA'!P19","v":0},null,{"$f":"'Schedule IIA'!R19","v":0},null,{"$f":"'Schedule IIA (EBS)'!P19","v":0},null,{"$f":"'Schedule IIA (EBS)'!R19","v":0}]
["Sch IIA","Funds Held",null,"Bonds Mutual Fund - BSCR Rate 8",{"$f":"'Schedule IIA'!P20","v":0},null,{"$f":"'Schedule IIA'!R20","v":0},null,{"$f":"'Schedule IIA (EBS)'!P20","v":0},null,{"$f":"'Schedule IIA (EBS)'!R20","v":0}]
["Sch IIA","Funds Held",null,"Common Shares - Quoted",{"$f":"'Schedule IIA'!D41","v":0},null,{"$f":"'Schedule IIA'!F41","v":0},null,{"$f":"'Schedule IIA (EBS)'!D41","v":0},null,{"$f":"'Schedule IIA (EBS)'!F41","v":0}]
["Sch IIA","Funds Held",null,"Common Shares - Unquoted",{"$f":"'Schedule IIA'!D42","v":0},null,{"$f":"'Schedule IIA'!F42","v":0},null,{"$f":"'Schedule IIA (EBS)'!D42","v":0},null,{"$f":"'Schedule IIA (EBS)'!F42","v":0}]
["Sch IIA","Funds Held",null,"Preferred Shares - BSCR Rate 1",{"$f":"'Schedule IIA'!H33","v":0},null,{"$f":"'Schedule IIA'!J33","v":0},null,{"$f":"'Schedule IIA (EBS)'!H33","v":0},null,{"$f":"'Schedule IIA (EBS)'!J33","v":0}]
["Sch IIA","Funds Held",null,"Preferred Shares - BSCR Rate 2",{"$f":"'Schedule IIA'!H34","v":0},null,{"$f":"'Schedule IIA'!J34","v":0},null,{"$f":"'Schedule IIA (EBS)'!H34","v":0},null,{"$f":"'Schedule IIA (EBS)'!J34","v":0}]
["Sch IIA","Funds Held",null,"Preferred Shares - BSCR Rate 3",{"$f":"'Schedule IIA'!H35","v":0},null,{"$f":"'Schedule IIA'!J35","v":0},null,{"$f":"'Schedule IIA (EBS)'!H35","v":0},null,{"$f":"'Schedule IIA (EBS)'!J35","v":0}]
["Sch IIA","Funds Held",null,"Preferred Shares - BSCR Rate 4",{"$f":"'Schedule IIA'!H36","v":0},null,{"$f":"'Schedule IIA'!J36","v":0},null,{"$f":"'Schedule IIA (EBS)'!H36","v":0},null,{"$f":"'Schedule IIA (EBS)'!J36","v":0}]
["Sch IIA","Funds Held",null,"Preferred Shares - BSCR Rate 5",{"$f":"'Schedule IIA'!H37","v":0},null,{"$f":"'Schedule IIA'!J37","v":0},null,{"$f":"'Schedule IIA (EBS)'!H37","v":0},null,{"$f":"'Schedule IIA (EBS)'!J37","v":0}]
["Sch IIA","Funds Held",null,"Preferred Shares - BSCR Rate 6",{"$f":"'Schedule IIA'!H38","v":0},null,{"$f":"'Schedule IIA'!J38","v":0},null,{"$f":"'Schedule IIA (EBS)'!H38","v":0},null,{"$f":"'Schedule IIA (EBS)'!J38","v":0}]
["Sch IIA","Funds Held",null,"Preferred Shares - BSCR Rate 7",{"$f":"'Schedule IIA'!H39","v":0},null,{"$f":"'Schedule IIA'!J39","v":0},null,{"$f":"'Schedule IIA (EBS)'!H39","v":0},null,{"$f":"'Schedule IIA (EBS)'!J39","v":0}]
["Sch IIA","Funds Held",null,"Preferred Shares - BSCR Rate 8",{"$f":"'Schedule IIA'!H40","v":0},null,{"$f":"'Schedule IIA'!J40","v":0},null,{"$f":"'Schedule IIA (EBS)'!H40","v":0},null,{"$f":"'Schedule IIA (EBS)'!J40","v":0}]
["Sch IIA","Funds Held",null,"Equity Mutual Funds -  Quoted",{"$f":"'Schedule IIA'!L41","v":0},null,{"$f":"'Schedule IIA'!N41","v":0},null,{"$f":"'Schedule IIA (EBS)'!L41","v":0},null,{"$f":"'Schedule IIA (EBS)'!N41","v":0}]
["Sch IIA","Funds Held",null,"Equity Mutual Funds -  Unquoted",{"$f":"'Schedule IIA'!L42","v":0},null,{"$f":"'Schedule IIA'!N42","v":0},null,{"$f":"'Schedule IIA (EBS)'!L42","v":0},null,{"$f":"'Schedule IIA (EBS)'!N42","v":0}]
["Sch IIA","Funds Held",null,"Other Investments -  Quoted",{"$f":"'Schedule IIA'!P41","v":0},null,{"$f":"'Schedule IIA'!R41","v":0},null,{"$f":"'Schedule IIA (EBS)'!P41","v":0},null,{"$f":"'Schedule IIA (EBS)'!R41","v":0}]
["Sch IIA","Funds Held",null,"Other Investments -  Unquoted",{"$f":"'Schedule IIA'!P42","v":0},null,{"$f":"'Schedule IIA'!R42","v":0},null,{"$f":"'Schedule IIA (EBS)'!P42","v":0},null,{"$f":"'Schedule IIA (EBS)'!R42","v":0}]
["Sch IIA","Funds Held",null,"Mortgage Loans - Insured",{"$f":"'Schedule IIA'!D57","v":0},null,{"$f":"'Schedule IIA'!F57","v":0},null,{"$f":"'Schedule IIA (EBS)'!D57","v":0},null,{"$f":"'Schedule IIA (EBS)'!F57","v":0}]
["Sch IIA","Funds Held",null,"Mortgage Loans - Other Commercial",{"$f":"'Schedule IIA'!D58","v":0},null,{"$f":"'Schedule IIA'!F58","v":0},null,{"$f":"'Schedule IIA (EBS)'!D58","v":0},null,{"$f":"'Schedule IIA (EBS)'!F58","v":0}]
["Sch IIA","Funds Held",null,"Mortgage Loans - Other Residential",{"$f":"'Schedule IIA'!D59","v":0},null,{"$f":"'Schedule IIA'!F59","v":0},null,{"$f":"'Schedule IIA (EBS)'!D59","v":0},null,{"$f":"'Schedule IIA (EBS)'!F59","v":0}]
["Sch IIA","Funds Held",null,"Mortgage Loans - Not Good Stand.",{"$f":"'Schedule IIA'!D60","v":0},null,{"$f":"'Schedule IIA'!F60","v":0},null,{"$f":"'Schedule IIA (EBS)'!D60","v":0},null,{"$f":"'Schedule IIA (EBS)'!F60","v":0}]
["Sch IIA","Funds Held",null,"Cash and Cash Equivalents",{"$f":"'Schedule IIA'!D68","v":0},null,{"$f":"'Schedule IIA'!F68","v":0},null,{"$f":"'Schedule IIA (EBS)'!D68","v":0},null,{"$f":"'Schedule IIA (EBS)'!F68","v":0}]
["Sch IIA","Funds Held",null,"NAIC Resid. MBS - Orig. Class 1",{"$f":"'Schedule IIA'!L55","v":0},null,null,null,{"$f":"'Schedule IIA (EBS)'!L55","v":0}]
["Sch IIA","Funds Held",null,"NAIC Resid. MBS - Orig. Class 2",{"$f":"'Schedule IIA'!L56","v":0},null,null,null,{"$f":"'Schedule IIA (EBS)'!L56","v":0}]
["Sch IIA","Funds Held",null,"NAIC Resid. MBS - Orig. Class 3",{"$f":"'Schedule IIA'!L57","v":0},null,null,null,{"$f":"'Schedule IIA (EBS)'!L57","v":0}]
["Sch IIA","Funds Held",null,"NAIC Resid. MBS - Orig. Class 4",{"$f":"'Schedule IIA'!L58","v":0},null,null,null,{"$f":"'Schedule IIA (EBS)'!L58","v":0}]
["Sch IIA","Funds Held",null,"NAIC Resid. MBS - Orig. Class 5",{"$f":"'Schedule IIA'!L59","v":0},null,null,null,{"$f":"'Schedule IIA (EBS)'!L59","v":0}]
["Sch IIA","Funds Held",null,"NAIC Resid. MBS - Orig. Class 6",{"$f":"'Schedule IIA'!L60","v":0},null,null,null,{"$f":"'Schedule IIA (EBS)'!L60","v":0}]
["Sch IIA","Funds Held",null,"NAIC Resid. MBS - Orig. Total",{"$f":"'Schedule IIA'!L62","v":0},null,null,null,{"$f":"'Schedule IIA (EBS)'!L62","v":0}]
["Sch IIA","Funds Held",null,"NAIC Resid. MBS - Rev. Class 1",{"$f":"'Schedule IIA'!N55","v":0},null,null,null,{"$f":"'Schedule IIA (EBS)'!N55","v":0}]
["Sch IIA","Funds Held",null,"NAIC Resid. MBS - Rev. Class 2",{"$f":"'Schedule IIA'!N56","v":0},null,null,null,{"$f":"'Schedule IIA (EBS)'!N56","v":0}]
["Sch IIA","Funds Held",null,"NAIC Resid. MBS - Rev. Class 3",{"$f":"'Schedule IIA'!N57","v":0},null,null,null,{"$f":"'Schedule IIA (EBS)'!N57","v":0}]
["Sch IIA","Funds Held",null,"NAIC Resid. MBS - Rev. Class 4",{"$f":"'Schedule IIA'!N58","v":0},null,null,null,{"$f":"'Schedule IIA (EBS)'!N58","v":0}]
["Sch IIA","Funds Held",null,"NAIC Resid. MBS - Rev. Class 5",{"$f":"'Schedule IIA'!N59","v":0},null,null,null,{"$f":"'Schedule IIA (EBS)'!N59","v":0}]
["Sch IIA","Funds Held",null,"NAIC Resid. MBS - Rev. Class 6",{"$f":"'Schedule IIA'!N60","v":0},null,null,null,{"$f":"'Schedule IIA (EBS)'!N60","v":0}]
["Sch IIA","Funds Held",null,"NAIC Resid. MBS - Rev. Total",{"$f":"'Schedule IIA'!N62","v":0},null,null,null,{"$f":"'Schedule IIA (EBS)'!N62","v":0}]
["Sch IIA","Funds Held",null,"NAIC Comm. MBS - Orig. Class 1",{"$f":"'Schedule IIA'!P55","v":0},null,null,null,{"$f":"'Schedule IIA (EBS)'!P55","v":0}]
["Sch IIA","Funds Held",null,"NAIC Comm. MBS - Orig. Class 2",{"$f":"'Schedule IIA'!P56","v":0},null,null,null,{"$f":"'Schedule IIA (EBS)'!P56","v":0}]
["Sch IIA","Funds Held",null,"NAIC Comm. MBS - Orig. Class 3",{"$f":"'Schedule IIA'!P57","v":0},null,null,null,{"$f":"'Schedule IIA (EBS)'!P57","v":0}]
["Sch IIA","Funds Held",null,"NAIC Comm. MBS - Orig. Class 4",{"$f":"'Schedule IIA'!P58","v":0},null,null,null,{"$f":"'Schedule IIA (EBS)'!P58","v":0}]
["Sch IIA","Funds Held",null,"NAIC Comm. MBS - Orig. Class 5",{"$f":"'Schedule IIA'!P59","v":0},null,null,null,{"$f":"'Schedule IIA (EBS)'!P59","v":0}]
["Sch IIA","Funds Held",null,"NAIC Comm. MBS - Orig. Class 6",{"$f":"'Schedule IIA'!P60","v":0},null,null,null,{"$f":"'Schedule IIA (EBS)'!P60","v":0}]
["Sch IIA","Funds Held",null,"NAIC Comm. MBS - Orig. Total",{"$f":"'Schedule IIA'!P62","v":0},null,null,null,{"$f":"'Schedule IIA (EBS)'!P62","v":0}]
["Sch IIA","Funds Held",null,"NAIC Comm. MBS - Rev. Class 1",{"$f":"'Schedule IIA'!R55","v":0},null,null,null,{"$f":"'Schedule IIA (EBS)'!R55","v":0}]
["Sch IIA","Funds Held",null,"NAIC Comm. MBS - Rev. Class 2",{"$f":"'Schedule IIA'!R56","v":0},null,null,null,{"$f":"'Schedule IIA (EBS)'!R56","v":0}]
["Sch IIA","Funds Held",null,"NAIC Comm. MBS - Rev. Class 3",{"$f":"'Schedule IIA'!R57","v":0},null,null,null,{"$f":"'Schedule IIA (EBS)'!R57","v":0}]
["Sch IIA","Funds Held",null,"NAIC Comm. MBS - Rev. Class 4",{"$f":"'Schedule IIA'!R58","v":0},null,null,null,{"$f":"'Schedule IIA (EBS)'!R58","v":0}]
["Sch IIA","Funds Held",null,"NAIC Comm. MBS - Rev. Class 5",{"$f":"'Schedule IIA'!R59","v":0},null,null,null,{"$f":"'Schedule IIA (EBS)'!R59","v":0}]
["Sch IIA","Funds Held",null,"NAIC Comm. MBS - Rev. Class 6",{"$f":"'Schedule IIA'!R60","v":0},null,null,null,{"$f":"'Schedule IIA (EBS)'!R60","v":0}]
["Sch IIA","Funds Held",null,"NAIC Comm. MBS - Rev. Total",{"$f":"'Schedule IIA'!R62","v":0},null,null,null,{"$f":"'Schedule IIA (EBS)'!R62","v":0}]
["Sch IIA","Funds Held",null,"NAIC Rating Corp & Sov. Bond - Class 1",{"$f":"'Schedule IIA'!D78","v":0},null,null,null,{"$f":"'Schedule IIA (EBS)'!D78","v":0}]
["Sch IIA","Funds Held",null,"NAIC Rating Corp & Sov. Bond - Class 2",{"$f":"'Schedule IIA'!D79","v":0},null,null,null,{"$f":"'Schedule IIA (EBS)'!D79","v":0}]
["Sch IIA","Funds Held",null,"NAIC Rating Corp & Sov. Bond - Class 3",{"$f":"'Schedule IIA'!D80","v":0},null,null,null,{"$f":"'Schedule IIA (EBS)'!D80","v":0}]
["Sch IIA","Funds Held",null,"NAIC Rating Corp & Sov. Bond - Class 4",{"$f":"'Schedule IIA'!D81","v":0},null,null,null,{"$f":"'Schedule IIA (EBS)'!D81","v":0}]
["Sch IIA","Funds Held",null,"NAIC Rating Corp & Sov. Bond - Class 5",{"$f":"'Schedule IIA'!D82","v":0},null,null,null,{"$f":"'Schedule IIA (EBS)'!D82","v":0}]
["Sch IIA","Funds Held",null,"NAIC Rating Corp & Sov. Bond - Class 6",{"$f":"'Schedule IIA'!D83","v":0},null,null,null,{"$f":"'Schedule IIA (EBS)'!D83","v":0}]
["Sch IIA","Funds Held",null,"NAIC Rating Corp & Sov. Bond - Total",{"$f":"'Schedule IIA'!D84","v":0},null,null,null,{"$f":"'Schedule IIA (EBS)'!D84","v":0}]
["Sch IIA","Funds Held",null,"NAIC Rating Resid. MBS - Class 1",{"$f":"'Schedule IIA'!F78","v":0},null,null,null,{"$f":"'Schedule IIA (EBS)'!F78","v":0}]
["Sch IIA","Funds Held",null,"NAIC Rating Resid. MBS - Class 2",{"$f":"'Schedule IIA'!F79","v":0},null,null,null,{"$f":"'Schedule IIA (EBS)'!F79","v":0}]
["Sch IIA","Funds Held",null,"NAIC Rating Resid. MBS - Class 3",{"$f":"'Schedule IIA'!F80","v":0},null,null,null,{"$f":"'Schedule IIA (EBS)'!F80","v":0}]
["Sch IIA","Funds Held",null,"NAIC Rating Resid. MBS - Class 4",{"$f":"'Schedule IIA'!F81","v":0},null,null,null,{"$f":"'Schedule IIA (EBS)'!F81","v":0}]
["Sch IIA","Funds Held",null,"NAIC Rating Resid. MBS - Class 5",{"$f":"'Schedule IIA'!F82","v":0},null,null,null,{"$f":"'Schedule IIA (EBS)'!F82","v":0}]
["Sch IIA","Funds Held",null,"NAIC Rating Resid. MBS - Class 6",{"$f":"'Schedule IIA'!F83","v":0},null,null,null,{"$f":"'Schedule IIA (EBS)'!F83","v":0}]
["Sch IIA","Funds Held",null,"NAIC Rating Resid. MBS - Total",{"$f":"'Schedule IIA'!F84","v":0},null,null,null,{"$f":"'Schedule IIA (EBS)'!F84","v":0}]
["Sch IIA","Funds Held",null,"NAIC Rating Comm. MBS - Class 1",{"$f":"'Schedule IIA'!H78","v":0},null,null,null,{"$f":"'Schedule IIA (EBS)'!H78","v":0}]
["Sch IIA","Funds Held",null,"NAIC Rating Comm. MBS - Class 2",{"$f":"'Schedule IIA'!H79","v":0},null,null,null,{"$f":"'Schedule IIA (EBS)'!H79","v":0}]
["Sch IIA","Funds Held",null,"NAIC Rating Comm. MBS - Class 3",{"$f":"'Schedule IIA'!H80","v":0},null,null,null,{"$f":"'Schedule IIA (EBS)'!H80","v":0}]
["Sch IIA","Funds Held",null,"NAIC Rating Comm. MBS - Class 4",{"$f":"'Schedule IIA'!H81","v":0},null,null,null,{"$f":"'Schedule IIA (EBS)'!H81","v":0}]
["Sch IIA","Funds Held",null,"NAIC Rating Comm. MBS - Class 5",{"$f":"'Schedule IIA'!H82","v":0},null,null,null,{"$f":"'Schedule IIA (EBS)'!H82","v":0}]
["Sch IIA","Funds Held",null,"NAIC Rating Comm. MBS - Class 6",{"$f":"'Schedule IIA'!H83","v":0},null,null,null,{"$f":"'Schedule IIA (EBS)'!H83","v":0}]
["Sch IIA","Funds Held",null,"NAIC Rating Comm. MBS - Total",{"$f":"'Schedule IIA'!H84","v":0},null,null,null,{"$f":"'Schedule IIA (EBS)'!H84","v":0}]
["Sch IIA","Funds Held",null,"NAIC Rating Bond Mutual - Class 1",{"$f":"'Schedule IIA'!J78","v":0},null,null,null,{"$f":"'Schedule IIA (EBS)'!J78","v":0}]
["Sch IIA","Funds Held",null,"NAIC Rating Bond Mutual - Class 2",{"$f":"'Schedule IIA'!J79","v":0},null,null,null,{"$f":"'Schedule IIA (EBS)'!J79","v":0}]
["Sch IIA","Funds Held",null,"NAIC Rating Bond Mutual - Class 3",{"$f":"'Schedule IIA'!J80","v":0},null,null,null,{"$f":"'Schedule IIA (EBS)'!J80","v":0}]
["Sch IIA","Funds Held",null,"NAIC Rating Bond Mutual - Class 4",{"$f":"'Schedule IIA'!J81","v":0},null,null,null,{"$f":"'Schedule IIA (EBS)'!J81","v":0}]
["Sch IIA","Funds Held",null,"NAIC Rating Bond Mutual - Class 5",{"$f":"'Schedule IIA'!J82","v":0},null,null,null,{"$f":"'Schedule IIA (EBS)'!J82","v":0}]
["Sch IIA","Funds Held",null,"NAIC Rating Bond Mutual - Class 6",{"$f":"'Schedule IIA'!J83","v":0},null,null,null,{"$f":"'Schedule IIA (EBS)'!J83","v":0}]
["Sch IIA","Funds Held",null,"NAIC Rating Bond Mutual - Total",{"$f":"'Schedule IIA'!J84","v":0},null,null,null,{"$f":"'Schedule IIA (EBS)'!J84","v":0}]
["Sch IIA","Funds Held",null,"NAIC Rating Mort. Loan - Class 1",{"$f":"'Schedule IIA'!L78","v":0},null,null,null,{"$f":"'Schedule IIA (EBS)'!L78","v":0}]
["Sch IIA","Funds Held",null,"NAIC Rating Mort. Loan - Class 2",{"$f":"'Schedule IIA'!L79","v":0},null,null,null,{"$f":"'Schedule IIA (EBS)'!L79","v":0}]
["Sch IIA","Funds Held",null,"NAIC Rating Mort. Loan - Class 3",{"$f":"'Schedule IIA'!L80","v":0},null,null,null,{"$f":"'Schedule IIA (EBS)'!L80","v":0}]
["Sch IIA","Funds Held",null,"NAIC Rating Mort. Loan - Class 4",{"$f":"'Schedule IIA'!L81","v":0},null,null,null,{"$f":"'Schedule IIA (EBS)'!L81","v":0}]
["Sch IIA","Funds Held",null,"NAIC Rating Mort. Loan - Class 5",{"$f":"'Schedule IIA'!L82","v":0},null,null,null,{"$f":"'Schedule IIA (EBS)'!L82","v":0}]
["Sch IIA","Funds Held",null,"NAIC Rating Mort. Loan - Class 6",{"$f":"'Schedule IIA'!L83","v":0},null,null,null,{"$f":"'Schedule IIA (EBS)'!L83","v":0}]
["Sch IIA","Funds Held",null,"NAIC Rating Mort. Loan - Total",{"$f":"'Schedule IIA'!L84","v":0},null,null,null,{"$f":"'Schedule IIA (EBS)'!L84","v":0}]
["Sch IIA","Funds Held",null,"NAIC Rating Pref. Stock - Class 1",{"$f":"'Schedule IIA'!N78","v":0},null,null,null,{"$f":"'Schedule IIA (EBS)'!N78","v":0}]
["Sch IIA","Funds Held",null,"NAIC Rating Pref. Stock - Class 2",{"$f":"'Schedule IIA'!N79","v":0},null,null,null,{"$f":"'Schedule IIA (EBS)'!N79","v":0}]
["Sch IIA","Funds Held",null,"NAIC Rating Pref. Stock - Class 3",{"$f":"'Schedule IIA'!N80","v":0},null,null,null,{"$f":"'Schedule IIA (EBS)'!N80","v":0}]
["Sch IIA","Funds Held",null,"NAIC Rating Pref. Stock - Class 4",{"$f":"'Schedule IIA'!N81","v":0},null,null,null,{"$f":"'Schedule IIA (EBS)'!N81","v":0}]
["Sch IIA","Funds Held",null,"NAIC Rating Pref. Stock - Class 5",{"$f":"'Schedule IIA'!N82","v":0},null,null,null,{"$f":"'Schedule IIA (EBS)'!N82","v":0}]
["Sch IIA","Funds Held",null,"NAIC Rating Pref. Stock - Class 6",{"$f":"'Schedule IIA'!N83","v":0},null,null,null,{"$f":"'Schedule IIA (EBS)'!N83","v":0}]
["Sch IIA","Funds Held",null,"NAIC Rating Pref. Stock - Total",{"$f":"'Schedule IIA'!N84","v":0},null,null,null,{"$f":"'Schedule IIA (EBS)'!N84","v":0}]
["Sch IIA","Funds Held",null,"NAIC Rating Other Assets - Class 1",{"$f":"'Schedule IIA'!P78","v":0},null,null,null,{"$f":"'Schedule IIA (EBS)'!P78","v":0}]
["Sch IIA","Funds Held",null,"NAIC Rating Other Assets - Class 2",{"$f":"'Schedule IIA'!P79","v":0},null,null,null,{"$f":"'Schedule IIA (EBS)'!P79","v":0}]
["Sch IIA","Funds Held",null,"NAIC Rating Other Assets - Class 3",{"$f":"'Schedule IIA'!P80","v":0},null,null,null,{"$f":"'Schedule IIA (EBS)'!P80","v":0}]
["Sch IIA","Funds Held",null,"NAIC Rating Other Assets - Class 4",{"$f":"'Schedule IIA'!P81","v":0},null,null,null,{"$f":"'Schedule IIA (EBS)'!P81","v":0}]
["Sch IIA","Funds Held",null,"NAIC Rating Other Assets - Class 5",{"$f":"'Schedule IIA'!P82","v":0},null,null,null,{"$f":"'Schedule IIA (EBS)'!P82","v":0}]
["Sch IIA","Funds Held",null,"NAIC Rating Other Assets - Class 6",{"$f":"'Schedule IIA'!P83","v":0},null,null,null,{"$f":"'Schedule IIA (EBS)'!P83","v":0}]
["Sch IIA","Funds Held",null,"NAIC Rating Other Assets - Total",{"$f":"'Schedule IIA'!P84","v":0},null,null,null,{"$f":"'Schedule IIA (EBS)'!P84","v":0}]
[]
["Sch III","Losses by Line",null,"Reserve - Property Catastrophe",{"$f":"'Schedule III'!E9","v":0},null,{"$f":"'Schedule III'!G9","v":0}]
["Sch III","Losses by Line",null,"Reserve - Property",{"$f":"'Schedule III'!E10","v":0},null,{"$f":"'Schedule III'!G10","v":0}]
["Sch III","Losses by Line",null,"Reserve - Property Non-Proportion",{"$f":"'Schedule III'!E11","v":0},null,{"$f":"'Schedule III'!G11","v":0}]
["Sch III","Losses by Line",null,"Reserve - Personal Accident",{"$f":"'Schedule III'!E12","v":0},null,{"$f":"'Schedule III'!G12","v":0}]
["Sch III","Losses by Line",null,"Reserve - Personal Acc. Non Prop.",{"$f":"'Schedule III'!E13","v":0},null,{"$f":"'Schedule III'!G13","v":0}]
["Sch III","Losses by Line",null,"Reserve - Aviation",{"$f":"'Schedule III'!E14","v":0},null,{"$f":"'Schedule III'!G14","v":0}]
["Sch III","Losses by Line",null,"Reserve - Aviation Non-Proportional",{"$f":"'Schedule III'!E15","v":0},null,{"$f":"'Schedule III'!G15","v":0}]
["Sch III","Losses by Line",null,"Reserve - Credit Surety",{"$f":"'Schedule III'!E16","v":0},null,{"$f":"'Schedule III'!G16","v":0}]
["Sch III","Losses by Line",null,"Reserve - Credit Surety Non-Prop.",{"$f":"'Schedule III'!E17","v":0},null,{"$f":"'Schedule III'!G17","v":0}]
["Sch III","Losses by Line",null,"Reserve - Energy",{"$f":"'Schedule III'!E18","v":0},null,{"$f":"'Schedule III'!G18","v":0}]
["Sch III","Losses by Line",null,"Reserve - Energy Non-Proportional",{"$f":"'Schedule III'!E19","v":0},null,{"$f":"'Schedule III'!G19","v":0}]
["Sch III","Losses by Line",null,"Reserve - US Casualty",{"$f":"'Schedule III'!E20","v":0},null,{"$f":"'Schedule III'!G20","v":0}]
["Sch III","Losses by Line",null,"Reserve - US Casualty Non-Prop.",{"$f":"'Schedule III'!E21","v":0},null,{"$f":"'Schedule III'!G21","v":0}]
["Sch III","Losses by Line",null,"Reserve - US Professional",{"$f":"'Schedule III'!E22","v":0},null,{"$f":"'Schedule III'!G22","v":0}]
["Sch III","Losses by Line",null,"Reserve - US Professional Non-Prop.",{"$f":"'Schedule III'!E23","v":0},null,{"$f":"'Schedule III'!G23","v":0}]
["Sch III","Losses by Line",null,"Reserve - US Specialty",{"$f":"'Schedule III'!E24","v":0},null,{"$f":"'Schedule III'!G24","v":0}]
["Sch III","Losses by Line",null,"Reserve - US Specialty Non-Prop.",{"$f":"'Schedule III'!E25","v":0},null,{"$f":"'Schedule III'!G25","v":0}]
["Sch III","Losses by Line",null,"Reserve - Int'l Motor",{"$f":"'Schedule III'!E26","v":0},null,{"$f":"'Schedule III'!G26","v":0}]
["Sch III","Losses by Line",null,"Reserve - Int'l Motor Non-Prop.",{"$f":"'Schedule III'!E27","v":0},null,{"$f":"'Schedule III'!G27","v":0}]
["Sch III","Losses by Line",null,"Reserve - Int'l Casualty",{"$f":"'Schedule III'!E28","v":0},null,{"$f":"'Schedule III'!G28","v":0}]
["Sch III","Losses by Line",null,"Reserve - Int'l Casualty Non-Prop.",{"$f":"'Schedule III'!E29","v":0},null,{"$f":"'Schedule III'!G29","v":0}]
["Sch III","Losses by Line",null,"Reserve - Retro Property",{"$f":"'Schedule III'!E30","v":0},null,{"$f":"'Schedule III'!G30","v":0}]
["Sch III","Losses by Line",null,"Reserve - Structured / Finite R/I",{"$f":"'Schedule III'!E31","v":0},null,{"$f":"'Schedule III'!G31","v":0}]
["Sch III","Losses by Line",null,"Reserve - Health",{"$f":"'Schedule III'!E32","v":0},null,{"$f":"'Schedule III'!G32","v":0}]
[]
["Sch III","Losses by Line",null,"Res. Gross - Property Catastrophe",null,null,null,null,{"$f":"'Schedule III (EBS)'!D10","v":0}]
["Sch III","Losses by Line",null,"Res. Gross - Property",null,null,null,null,{"$f":"'Schedule III (EBS)'!D11","v":0}]
["Sch III","Losses by Line",null,"Res. Gross - Property Non-Proportion",null,null,null,null,{"$f":"'Schedule III (EBS)'!D12","v":0}]
["Sch III","Losses by Line",null,"Res. Gross - Personal Accident",null,null,null,null,{"$f":"'Schedule III (EBS)'!D13","v":0}]
["Sch III","Losses by Line",null,"Res. Gross - Personal Acc. Non Prop.",null,null,null,null,{"$f":"'Schedule III (EBS)'!D14","v":0}]
["Sch III","Losses by Line",null,"Res. Gross - Aviation",null,null,null,null,{"$f":"'Schedule III (EBS)'!D15","v":0}]
["Sch III","Losses by Line",null,"Res. Gross - Aviation Non-Proportional",null,null,null,null,{"$f":"'Schedule III (EBS)'!D16","v":0}]
["Sch III","Losses by Line",null,"Res. Gross - Credit Surety",null,null,null,null,{"$f":"'Schedule III (EBS)'!D17","v":0}]
["Sch III","Losses by Line",null,"Res. Gross - Credit Surety Non-Prop.",null,null,null,null,{"$f":"'Schedule III (EBS)'!D18","v":0}]
["Sch III","Losses by Line",null,"Res. Gross - Energy",null,null,null,null,{"$f":"'Schedule III (EBS)'!D19","v":0}]
["Sch III","Losses by Line",null,"Res. Gross - Energy Non-Proportional",null,null,null,null,{"$f":"'Schedule III (EBS)'!D20","v":0}]
["Sch III","Losses by Line",null,"Res. Gross - US Casualty",null,null,null,null,{"$f":"'Schedule III (EBS)'!D21","v":0}]
["Sch III","Losses by Line",null,"Res. Gross - US Casualty Non-Prop.",null,null,null,null,{"$f":"'Schedule III (EBS)'!D22","v":0}]
["Sch III","Losses by Line",null,"Res. Gross - US Professional",null,null,null,null,{"$f":"'Schedule III (EBS)'!D23","v":0}]
["Sch III","Losses by Line",null,"Res. Gross - US Professional Non-Prop.",null,null,null,null,{"$f":"'Schedule III (EBS)'!D24","v":0}]
["Sch III","Losses by Line",null,"Res. Gross - US Specialty",null,null,null,null,{"$f":"'Schedule III (EBS)'!D25","v":0}]
["Sch III","Losses by Line",null,"Res. Gross - US Specialty Non-Prop.",null,null,null,null,{"$f":"'Schedule III (EBS)'!D26","v":0}]
["Sch III","Losses by Line",null,"Res. Gross - Int'l Motor",null,null,null,null,{"$f":"'Schedule III (EBS)'!D27","v":0}]
["Sch III","Losses by Line",null,"Res. Gross - Int'l Motor Non-Prop.",null,null,null,null,{"$f":"'Schedule III (EBS)'!D28","v":0}]
["Sch III","Losses by Line",null,"Res. Gross - Int'l Casualty",null,null,null,null,{"$f":"'Schedule III (EBS)'!D29","v":0}]
["Sch III","Losses by Line",null,"Res. Gross - Int'l Casualty Non-Prop.",null,null,null,null,{"$f":"'Schedule III (EBS)'!D30","v":0}]
["Sch III","Losses by Line",null,"Res. Gross - Retro Property",null,null,null,null,{"$f":"'Schedule III (EBS)'!D31","v":0}]
["Sch III","Losses by Line",null,"Res. Gross - Structured / Finite R/I",null,null,null,null,{"$f":"'Schedule III (EBS)'!D32","v":0}]
["Sch III","Losses by Line",null,"Res. Gross - Health",null,null,null,null,{"$f":"'Schedule III (EBS)'!D33","v":0}]
["Sch III","Losses by Line",null,"Res. Net - Property Catastrophe",null,null,null,null,{"$f":"'Schedule III (EBS)'!F10","v":0}]
["Sch III","Losses by Line",null,"Res. Net - Property",null,null,null,null,{"$f":"'Schedule III (EBS)'!F11","v":0}]
["Sch III","Losses by Line",null,"Res. Net - Property Non-Proportion",null,null,null,null,{"$f":"'Schedule III (EBS)'!F12","v":0}]
["Sch III","Losses by Line",null,"Res. Net - Personal Accident",null,null,null,null,{"$f":"'Schedule III (EBS)'!F13","v":0}]
["Sch III","Losses by Line",null,"Res. Net - Personal Acc. Non Prop.",null,null,null,null,{"$f":"'Schedule III (EBS)'!F14","v":0}]
["Sch III","Losses by Line",null,"Res. Net - Aviation",null,null,null,null,{"$f":"'Schedule III (EBS)'!F15","v":0}]
["Sch III","Losses by Line",null,"Res. Net - Aviation Non-Proportional",null,null,null,null,{"$f":"'Schedule III (EBS)'!F16","v":0}]
["Sch III","Losses by Line",null,"Res. Net - Credit Surety",null,null,null,null,{"$f":"'Schedule III (EBS)'!F17","v":0}]
["Sch III","Losses by Line",null,"Res. Net - Credit Surety Non-Prop.",null,null,null,null,{"$f":"'Schedule III (EBS)'!F18","v":0}]
["Sch III","Losses by Line",null,"Res. Net - Energy",null,null,null,null,{"$f":"'Schedule III (EBS)'!F19","v":0}]
["Sch III","Losses by Line",null,"Res. Net - Energy Non-Proportional",null,null,null,null,{"$f":"'Schedule III (EBS)'!F20","v":0}]
["Sch III","Losses by Line",null,"Res. Net - US Casualty",null,null,null,null,{"$f":"'Schedule III (EBS)'!F21","v":0}]
["Sch III","Losses by Line",null,"Res. Net - US Casualty Non-Prop.",null,null,null,null,{"$f":"'Schedule III (EBS)'!F22","v":0}]
["Sch III","Losses by Line",null,"Res. Net - US Professional",null,null,null,null,{"$f":"'Schedule III (EBS)'!F23","v":0}]
["Sch III","Losses by Line",null,"Res. Net - US Professional Non-Prop.",null,null,null,null,{"$f":"'Schedule III (EBS)'!F24","v":0}]
["Sch III","Losses by Line",null,"Res. Net - US Specialty",null,null,null,null,{"$f":"'Schedule III (EBS)'!F25","v":0}]
["Sch III","Losses by Line",null,"Res. Net - US Specialty Non-Prop.",null,null,null,null,{"$f":"'Schedule III (EBS)'!F26","v":0}]
["Sch III","Losses by Line",null,"Res. Net - Int'l Motor",null,null,null,null,{"$f":"'Schedule III (EBS)'!F27","v":0}]
["Sch III","Losses by Line",null,"Res. Net - Int'l Motor Non-Prop.",null,null,null,null,{"$f":"'Schedule III (EBS)'!F28","v":0}]
["Sch III","Losses by Line",null,"Res. Net - Int'l Casualty",null,null,null,null,{"$f":"'Schedule III (EBS)'!F29","v":0}]
["Sch III","Losses by Line",null,"Res. Net - Int'l Casualty Non-Prop.",null,null,null,null,{"$f":"'Schedule III (EBS)'!F30","v":0}]
["Sch III","Losses by Line",null,"Res. Net - Retro Property",null,null,null,null,{"$f":"'Schedule III (EBS)'!F31","v":0}]
["Sch III","Losses by Line",null,"Res. Net - Structured / Finite R/I",null,null,null,null,{"$f":"'Schedule III (EBS)'!F32","v":0}]
["Sch III","Losses by Line",null,"Res. Net - Health",null,null,null,null,{"$f":"'Schedule III (EBS)'!F33","v":0}]
["Sch III","Losses by Line",null,"Note 16di - Property Catastrophe",null,null,null,null,{"$f":"'Schedule III (EBS)'!J10","v":0}]
["Sch III","Losses by Line",null,"Note 16di - Property",null,null,null,null,{"$f":"'Schedule III (EBS)'!J11","v":0}]
["Sch III","Losses by Line",null,"Note 16di - Property Non-Proportion",null,null,null,null,{"$f":"'Schedule III (EBS)'!J12","v":0}]
["Sch III","Losses by Line",null,"Note 16di - Personal Accident",null,null,null,null,{"$f":"'Schedule III (EBS)'!J13","v":0}]
["Sch III","Losses by Line",null,"Note 16di - Personal Acc. Non Prop.",null,null,null,null,{"$f":"'Schedule III (EBS)'!J14","v":0}]
["Sch III","Losses by Line",null,"Note 16di - Aviation",null,null,null,null,{"$f":"'Schedule III (EBS)'!J15","v":0}]
["Sch III","Losses by Line",null,"Note 16di - Aviation Non-Proportional",null,null,null,null,{"$f":"'Schedule III (EBS)'!J16","v":0}]
["Sch III","Losses by Line",null,"Note 16di - Credit Surety",null,null,null,null,{"$f":"'Schedule III (EBS)'!J17","v":0}]
["Sch III","Losses by Line",null,"Note 16di - Credit Surety Non-Prop.",null,null,null,null,{"$f":"'Schedule III (EBS)'!J18","v":0}]
["Sch III","Losses by Line",null,"Note 16di - Energy",null,null,null,null,{"$f":"'Schedule III (EBS)'!J19","v":0}]
["Sch III","Losses by Line",null,"Note 16di - Energy Non-Proportional",null,null,null,null,{"$f":"'Schedule III (EBS)'!J20","v":0}]
["Sch III","Losses by Line",null,"Note 16di - US Casualty",null,null,null,null,{"$f":"'Schedule III (EBS)'!J21","v":0}]
["Sch III","Losses by Line",null,"Note 16di - US Casualty Non-Prop.",null,null,null,null,{"$f":"'Schedule III (EBS)'!J22","v":0}]
["Sch III","Losses by Line",null,"Note 16di - US Professional",null,null,null,null,{"$f":"'Schedule III (EBS)'!J23","v":0}]
["Sch III","Losses by Line",null,"Note 16di - US Professional Non-Prop.",null,null,null,null,{"$f":"'Schedule III (EBS)'!J24","v":0}]
["Sch III","Losses by Line",null,"Note 16di - US Specialty",null,null,null,null,{"$f":"'Schedule III (EBS)'!J25","v":0}]
["Sch III","Losses by Line",null,"Note 16di - US Specialty Non-Prop.",null,null,null,null,{"$f":"'Schedule III (EBS)'!J26","v":0}]
["Sch III","Losses by Line",null,"Note 16di - Int'l Motor",null,null,null,null,{"$f":"'Schedule III (EBS)'!J27","v":0}]
["Sch III","Losses by Line",null,"Note 16di - Int'l Motor Non-Prop.",null,null,null,null,{"$f":"'Schedule III (EBS)'!J28","v":0}]
["Sch III","Losses by Line",null,"Note 16di - Int'l Casualty",null,null,null,null,{"$f":"'Schedule III (EBS)'!J29","v":0}]
["Sch III","Losses by Line",null,"Note 16di - Int'l Casualty Non-Prop.",null,null,null,null,{"$f":"'Schedule III (EBS)'!J30","v":0}]
["Sch III","Losses by Line",null,"Note 16di - Retro Property",null,null,null,null,{"$f":"'Schedule III (EBS)'!J31","v":0}]
["Sch III","Losses by Line",null,"Note 16di - Structured / Finite R/I",null,null,null,null,{"$f":"'Schedule III (EBS)'!J32","v":0}]
["Sch III","Losses by Line",null,"Note 16di - Health",null,null,null,null,{"$f":"'Schedule III (EBS)'!J33","v":0}]
["Sch III","Losses by Line",null,"Note 16dii - Property Catastrophe",null,null,null,null,{"$f":"'Schedule III (EBS)'!K10","v":0}]
["Sch III","Losses by Line",null,"Note 16dii - Property",null,null,null,null,{"$f":"'Schedule III (EBS)'!K11","v":0}]
["Sch III","Losses by Line",null,"Note 16dii - Property Non-Proportion",null,null,null,null,{"$f":"'Schedule III (EBS)'!K12","v":0}]
["Sch III","Losses by Line",null,"Note 16dii - Personal Accident",null,null,null,null,{"$f":"'Schedule III (EBS)'!K13","v":0}]
["Sch III","Losses by Line",null,"Note 16dii - Personal Acc. Non Prop.",null,null,null,null,{"$f":"'Schedule III (EBS)'!K14","v":0}]
["Sch III","Losses by Line",null,"Note 16dii - Aviation",null,null,null,null,{"$f":"'Schedule III (EBS)'!K15","v":0}]
["Sch III","Losses by Line",null,"Note 16dii - Aviation Non-Proportional",null,null,null,null,{"$f":"'Schedule III (EBS)'!K16","v":0}]
["Sch III","Losses by Line",null,"Note 16dii - Credit Surety",null,null,null,null,{"$f":"'Schedule III (EBS)'!K17","v":0}]
["Sch III","Losses by Line",null,"Note 16dii - Credit Surety Non-Prop.",null,null,null,null,{"$f":"'Schedule III (EBS)'!K18","v":0}]
["Sch III","Losses by Line",null,"Note 16dii - Energy",null,null,null,null,{"$f":"'Schedule III (EBS)'!K19","v":0}]
["Sch III","Losses by Line",null,"Note 16dii - Energy Non-Proportional",null,null,null,null,{"$f":"'Schedule III (EBS)'!K20","v":0}]
["Sch III","Losses by Line",null,"Note 16dii - US Casualty",null,null,null,null,{"$f":"'Schedule III (EBS)'!K21","v":0}]
["Sch III","Losses by Line",null,"Note 16dii - US Casualty Non-Prop.",null,null,null,null,{"$f":"'Schedule III (EBS)'!K22","v":0}]
["Sch III","Losses by Line",null,"Note 16dii - US Professional",null,null,null,null,{"$f":"'Schedule III (EBS)'!K23","v":0}]
["Sch III","Losses by Line",null,"Note 16dii - US Professional Non-Prop.",null,null,null,null,{"$f":"'Schedule III (EBS)'!K24","v":0}]
["Sch III","Losses by Line",null,"Note 16dii - US Specialty",null,null,null,null,{"$f":"'Schedule III (EBS)'!K25","v":0}]
["Sch III","Losses by Line",null,"Note 16dii - US Specialty Non-Prop.",null,null,null,null,{"$f":"'Schedule III (EBS)'!K26","v":0}]
["Sch III","Losses by Line",null,"Note 16dii - Int'l Motor",null,null,null,null,{"$f":"'Schedule III (EBS)'!K27","v":0}]
["Sch III","Losses by Line",null,"Note 16dii - Int'l Motor Non-Prop.",null,null,null,null,{"$f":"'Schedule III (EBS)'!K28","v":0}]
["Sch III","Losses by Line",null,"Note 16dii - Int'l Casualty",null,null,null,null,{"$f":"'Schedule III (EBS)'!K29","v":0}]
["Sch III","Losses by Line",null,"Note 16dii - Int'l Casualty Non-Prop.",null,null,null,null,{"$f":"'Schedule III (EBS)'!K30","v":0}]
["Sch III","Losses by Line",null,"Note 16dii - Retro Property",null,null,null,null,{"$f":"'Schedule III (EBS)'!K31","v":0}]
["Sch III","Losses by Line",null,"Note 16dii - Structured / Finite R/I",null,null,null,null,{"$f":"'Schedule III (EBS)'!K32","v":0}]
["Sch III","Losses by Line",null,"Note 16dii - Health",null,null,null,null,{"$f":"'Schedule III (EBS)'!K33","v":0}]
["Sch III","Losses by Line",null,"Note 17d - Property Catastrophe",null,null,null,null,{"$f":"'Schedule III (EBS)'!L10","v":0}]
["Sch III","Losses by Line",null,"Note 17d - Property",null,null,null,null,{"$f":"'Schedule III (EBS)'!L11","v":0}]
["Sch III","Losses by Line",null,"Note 17d - Property Non-Proportion",null,null,null,null,{"$f":"'Schedule III (EBS)'!L12","v":0}]
["Sch III","Losses by Line",null,"Note 17d - Personal Accident",null,null,null,null,{"$f":"'Schedule III (EBS)'!L13","v":0}]
["Sch III","Losses by Line",null,"Note 17d - Personal Acc. Non Prop.",null,null,null,null,{"$f":"'Schedule III (EBS)'!L14","v":0}]
["Sch III","Losses by Line",null,"Note 17d - Aviation",null,null,null,null,{"$f":"'Schedule III (EBS)'!L15","v":0}]
["Sch III","Losses by Line",null,"Note 17d - Aviation Non-Proportional",null,null,null,null,{"$f":"'Schedule III (EBS)'!L16","v":0}]
["Sch III","Losses by Line",null,"Note 17d - Credit Surety",null,null,null,null,{"$f":"'Schedule III (EBS)'!L17","v":0}]
["Sch III","Losses by Line",null,"Note 17d - Credit Surety Non-Prop.",null,null,null,null,{"$f":"'Schedule III (EBS)'!L18","v":0}]
["Sch III","Losses by Line",null,"Note 17d - Energy",null,null,null,null,{"$f":"'Schedule III (EBS)'!L19","v":0}]
["Sch III","Losses by Line",null,"Note 17d - Energy Non-Proportional",null,null,null,null,{"$f":"'Schedule III (EBS)'!L20","v":0}]
["Sch III","Losses by Line",null,"Note 17d - US Casualty",null,null,null,null,{"$f":"'Schedule III (EBS)'!L21","v":0}]
["Sch III","Losses by Line",null,"Note 17d - US Casualty Non-Prop.",null,null,null,null,{"$f":"'Schedule III (EBS)'!L22","v":0}]
["Sch III","Losses by Line",null,"Note 17d - US Professional",null,null,null,null,{"$f":"'Schedule III (EBS)'!L23","v":0}]
["Sch III","Losses by Line",null,"Note 17d - US Professional Non-Prop.",null,null,null,null,{"$f":"'Schedule III (EBS)'!L24","v":0}]
["Sch III","Losses by Line",null,"Note 17d - US Specialty",null,null,null,null,{"$f":"'Schedule III (EBS)'!L25","v":0}]
["Sch III","Losses by Line",null,"Note 17d - US Specialty Non-Prop.",null,null,null,null,{"$f":"'Schedule III (EBS)'!L26","v":0}]
["Sch III","Losses by Line",null,"Note 17d - Int'l Motor",null,null,null,null,{"$f":"'Schedule III (EBS)'!L27","v":0}]
["Sch III","Losses by Line",null,"Note 17d - Int'l Motor Non-Prop.",null,null,null,null,{"$f":"'Schedule III (EBS)'!L28","v":0}]
["Sch III","Losses by Line",null,"Note 17d - Int'l Casualty",null,null,null,null,{"$f":"'Schedule III (EBS)'!L29","v":0}]
["Sch III","Losses by Line",null,"Note 17d - Int'l Casualty Non-Prop.",null,null,null,null,{"$f":"'Schedule III (EBS)'!L30","v":0}]
["Sch III","Losses by Line",null,"Note 17d - Retro Property",null,null,null,null,{"$f":"'Schedule III (EBS)'!L31","v":0}]
["Sch III","Losses by Line",null,"Note 17d - Structured / Finite R/I",null,null,null,null,{"$f":"'Schedule III (EBS)'!L32","v":0}]
["Sch III","Losses by Line",null,"Note 17d - Health",null,null,null,null,{"$f":"'Schedule III (EBS)'!L33","v":0}]
["Sch IIIA",null,null,"Res. Zn 1 - Property Catastrophe",null,null,null,null,{"$f":"'Schedule IIIA (EBS)'!E10","v":0}]
["Sch IIIA","Losses by Zone",null,"Res. Zn 1 - Property",null,null,null,null,{"$f":"'Schedule IIIA (EBS)'!E11","v":0}]
["Sch IIIA","Losses by Zone",null,"Res. Zn 1 - Property Non-Proportion",null,null,null,null,{"$f":"'Schedule IIIA (EBS)'!E12","v":0}]
["Sch IIIA","Losses by Zone",null,"Res. Zn 1 - Personal Accident",null,null,null,null,{"$f":"'Schedule IIIA (EBS)'!E13","v":0}]
["Sch IIIA","Losses by Zone",null,"Res. Zn 1 - Personal Acc. Non Prop.",null,null,null,null,{"$f":"'Schedule IIIA (EBS)'!E14","v":0}]
["Sch IIIA","Losses by Zone",null,"Res. Zn 1 - Aviation",null,null,null,null,{"$f":"'Schedule IIIA (EBS)'!E15","v":0}]
["Sch IIIA","Losses by Zone",null,"Res. Zn 1 - Aviation Non-Proportional",null,null,null,null,{"$f":"'Schedule IIIA (EBS)'!E16","v":0}]
["Sch IIIA","Losses by Zone",null,"Res. Zn 1 - Credit Surety",null,null,null,null,{"$f":"'Schedule IIIA (EBS)'!E17","v":0}]
["Sch IIIA","Losses by Zone",null,"Res. Zn 1 - Credit Surety Non-Prop.",null,null,null,null,{"$f":"'Schedule IIIA (EBS)'!E18","v":0}]
["Sch IIIA","Losses by Zone",null,"Res. Zn 1 - Energy",null,null,null,null,{"$f":"'Schedule IIIA (EBS)'!E19","v":0}]
["Sch IIIA","Losses by Zone",null,"Res. Zn 1 - Energy Non-Proportional",null,null,null,null,{"$f":"'Schedule IIIA (EBS)'!E20","v":0}]
["Sch IIIA","Losses by Zone",null,"Res. Zn 1 - US Casualty",null,null,null,null,{"$f":"'Schedule IIIA (EBS)'!E21","v":0}]
["Sch IIIA","Losses by Zone",null,"Res. Zn 1 - US Casualty Non-Prop.",null,null,null,null,{"$f":"'Schedule IIIA (EBS)'!E22","v":0}]
["Sch IIIA","Losses by Zone",null,"Res. Zn 1 - US Professional",null,null,null,null,{"$f":"'Schedule IIIA (EBS)'!E23","v":0}]
["Sch IIIA","Losses by Zone",null,"Res. Zn 1 - US Professional Non-Prop.",null,null,null,null,{"$f":"'Schedule IIIA (EBS)'!E24","v":0}]
["Sch IIIA","Losses by Zone",null,"Res. Zn 1 - US Specialty",null,null,null,null,{"$f":"'Schedule IIIA (EBS)'!E25","v":0}]
["Sch IIIA","Losses by Zone",null,"Res. Zn 1 - US Specialty Non-Prop.",null,null,null,null,{"$f":"'Schedule IIIA (EBS)'!E26","v":0}]
["Sch IIIA","Losses by Zone",null,"Res. Zn 1 - Int'l Motor",null,null,null,null,{"$f":"'Schedule IIIA (EBS)'!E27","v":0}]
["Sch IIIA","Losses by Zone",null,"Res. Zn 1 - Int'l Motor Non-Prop.",null,null,null,null,{"$f":"'Schedule IIIA (EBS)'!E28","v":0}]
["Sch IIIA","Losses by Zone",null,"Res. Zn 1 - Int'l Casualty",null,null,null,null,{"$f":"'Schedule IIIA (EBS)'!E29","v":0}]
["Sch IIIA","Losses by Zone",null,"Res. Zn 1 - Int'l Casualty Non-Prop.",null,null,null,null,{"$f":"'Schedule IIIA (EBS)'!E30","v":0}]
["Sch IIIA","Losses by Zone",null,"Res. Zn 1 - Retro Property",null,null,null,null,{"$f":"'Schedule IIIA (EBS)'!E31","v":0}]
["Sch IIIA","Losses by Zone",null,"Res. Zn 1 - Structured / Finite R/I",null,null,null,null,{"$f":"'Schedule IIIA (EBS)'!E32","v":0}]
["Sch IIIA","Losses by Zone",null,"Res. Zn 1 - Health",null,null,null,null,{"$f":"'Schedule IIIA (EBS)'!E33","v":0}]
["Sch IIIA","Losses by Zone",null,"Res. Zn 1 - Total",null,null,null,null,{"$f":"'Schedule IIIA (EBS)'!E34","v":0}]
["Sch IIIA","Losses by Zone",null,"Res. Zn 2 - Property Catastrophe",null,null,null,null,{"$f":"'Schedule IIIA (EBS)'!F10","v":0}]
["Sch IIIA","Losses by Zone",null,"Res. Zn 2 - Property",null,null,null,null,{"$f":"'Schedule IIIA (EBS)'!F11","v":0}]
["Sch IIIA","Losses by Zone",null,"Res. Zn 2 - Property Non-Proportion",null,null,null,null,{"$f":"'Schedule IIIA (EBS)'!F12","v":0}]
["Sch IIIA","Losses by Zone",null,"Res. Zn 2 - Personal Accident",null,null,null,null,{"$f":"'Schedule IIIA (EBS)'!F13","v":0}]
["Sch IIIA","Losses by Zone",null,"Res. Zn 2 - Personal Acc. Non Prop.",null,null,null,null,{"$f":"'Schedule IIIA (EBS)'!F14","v":0}]
["Sch IIIA","Losses by Zone",null,"Res. Zn 2 - Aviation",null,null,null,null,{"$f":"'Schedule IIIA (EBS)'!F15","v":0}]
["Sch IIIA","Losses by Zone",null,"Res. Zn 2 - Aviation Non-Proportional",null,null,null,null,{"$f":"'Schedule IIIA (EBS)'!F16","v":0}]
["Sch IIIA","Losses by Zone",null,"Res. Zn 2 - Credit Surety",null,null,null,null,{"$f":"'Schedule IIIA (EBS)'!F17","v":0}]
["Sch IIIA","Losses by Zone",null,"Res. Zn 2 - Credit Surety Non-Prop.",null,null,null,null,{"$f":"'Schedule IIIA (EBS)'!F18","v":0}]
["Sch IIIA","Losses by Zone",null,"Res. Zn 2 - Energy",null,null,null,null,{"$f":"'Schedule IIIA (EBS)'!F19","v":0}]
["Sch IIIA","Losses by Zone",null,"Res. Zn 2 - Energy Non-Proportional",null,null,null,null,{"$f":"'Schedule IIIA (EBS)'!F20","v":0}]
["Sch IIIA","Losses by Zone",null,"Res. Zn 2 - US Casualty",null,null,null,null,{"$f":"'Schedule IIIA (EBS)'!F21","v":0}]
["Sch IIIA","Losses by Zone",null,"Res. Zn 2 - US Casualty Non-Prop.",null,null,null,null,{"$f":"'Schedule IIIA (EBS)'!F22","v":0}]
["Sch IIIA","Losses by Zone",null,"Res. Zn 2 - US Professional",null,null,null,null,{"$f":"'Schedule IIIA (EBS)'!F23","v":0}]
["Sch IIIA","Losses by Zone",null,"Res. Zn 2 - US Professional Non-Prop.",null,null,null,null,{"$f":"'Schedule IIIA (EBS)'!F24","v":0}]
["Sch IIIA","Losses by Zone",null,"Res. Zn 2 - US Specialty",null,null,null,null,{"$f":"'Schedule IIIA (EBS)'!F25","v":0}]
["Sch IIIA","Losses by Zone",null,"Res. Zn 2 - US Specialty Non-Prop.",null,null,null,null,{"$f":"'Schedule IIIA (EBS)'!F26","v":0}]
["Sch IIIA","Losses by Zone",null,"Res. Zn 2 - Int'l Motor",null,null,null,null,{"$f":"'Schedule IIIA (EBS)'!F27","v":0}]
["Sch IIIA","Losses by Zone",null,"Res. Zn 2 - Int'l Motor Non-Prop.",null,null,null,null,{"$f":"'Schedule IIIA (EBS)'!F28","v":0}]
["Sch IIIA","Losses by Zone",null,"Res. Zn 2 - Int'l Casualty",null,null,null,null,{"$f":"'Schedule IIIA (EBS)'!F29","v":0}]
["Sch IIIA","Losses by Zone",null,"Res. Zn 2 - Int'l Casualty Non-Prop.",null,null,null,null,{"$f":"'Schedule IIIA (EBS)'!F30","v":0}]
["Sch IIIA","Losses by Zone",null,"Res. Zn 2 - Retro Property",null,null,null,null,{"$f":"'Schedule IIIA (EBS)'!F31","v":0}]
["Sch IIIA","Losses by Zone",null,"Res. Zn 2 - Structured / Finite R/I",null,null,null,null,{"$f":"'Schedule IIIA (EBS)'!F32","v":0}]
["Sch IIIA","Losses by Zone",null,"Res. Zn 2 - Health",null,null,null,null,{"$f":"'Schedule IIIA (EBS)'!F33","v":0}]
["Sch IIIA","Losses by Zone",null,"Res. Zn 2 - Total",null,null,null,null,{"$f":"'Schedule IIIA (EBS)'!F34","v":0}]
["Sch IIIA","Losses by Zone",null,"Res. Zn 3 - Property Catastrophe",null,null,null,null,{"$f":"'Schedule IIIA (EBS)'!G10","v":0}]
["Sch IIIA","Losses by Zone",null,"Res. Zn 3 - Property",null,null,null,null,{"$f":"'Schedule IIIA (EBS)'!G11","v":0}]
["Sch IIIA","Losses by Zone",null,"Res. Zn 3 - Property Non-Proportion",null,null,null,null,{"$f":"'Schedule IIIA (EBS)'!G12","v":0}]
["Sch IIIA","Losses by Zone",null,"Res. Zn 3 - Personal Accident",null,null,null,null,{"$f":"'Schedule IIIA (EBS)'!G13","v":0}]
["Sch IIIA","Losses by Zone",null,"Res. Zn 3 - Personal Acc. Non Prop.",null,null,null,null,{"$f":"'Schedule IIIA (EBS)'!G14","v":0}]
["Sch IIIA","Losses by Zone",null,"Res. Zn 3 - Aviation",null,null,null,null,{"$f":"'Schedule IIIA (EBS)'!G15","v":0}]
["Sch IIIA","Losses by Zone",null,"Res. Zn 3 - Aviation Non-Proportional",null,null,null,null,{"$f":"'Schedule IIIA (EBS)'!G16","v":0}]
["Sch IIIA","Losses by Zone",null,"Res. Zn 3 - Credit Surety",null,null,null,null,{"$f":"'Schedule IIIA (EBS)'!G17","v":0}]
["Sch IIIA","Losses by Zone",null,"Res. Zn 3 - Credit Surety Non-Prop.",null,null,null,null,{"$f":"'Schedule IIIA (EBS)'!G18","v":0}]
["Sch IIIA","Losses by Zone",null,"Res. Zn 3 - Energy",null,null,null,null,{"$f":"'Schedule IIIA (EBS)'!G19","v":0}]
["Sch IIIA","Losses by Zone",null,"Res. Zn 3 - Energy Non-Proportional",null,null,null,null,{"$f":"'Schedule IIIA (EBS)'!G20","v":0}]
["Sch IIIA","Losses by Zone",null,"Res. Zn 3 - US Casualty",null,null,null,null,{"$f":"'Schedule IIIA (EBS)'!G21","v":0}]
["Sch IIIA","Losses by Zone",null,"Res. Zn 3 - US Casualty Non-Prop.",null,null,null,null,{"$f":"'Schedule IIIA (EBS)'!G22","v":0}]
["Sch IIIA","Losses by Zone",null,"Res. Zn 3 - US Professional",null,null,null,null,{"$f":"'Schedule IIIA (EBS)'!G23","v":0}]
["Sch IIIA","Losses by Zone",null,"Res. Zn 3 - US Professional Non-Prop.",null,null,null,null,{"$f":"'Schedule IIIA (EBS)'!G24","v":0}]
["Sch IIIA","Losses by Zone",null,"Res. Zn 3 - US Specialty",null,null,null,null,{"$f":"'Schedule IIIA (EBS)'!G25","v":0}]
["Sch IIIA","Losses by Zone",null,"Res. Zn 3 - US Specialty Non-Prop.",null,null,null,null,{"$f":"'Schedule IIIA (EBS)'!G26","v":0}]
["Sch IIIA","Losses by Zone",null,"Res. Zn 3 - Int'l Motor",null,null,null,null,{"$f":"'Schedule IIIA (EBS)'!G27","v":0}]
["Sch IIIA","Losses by Zone",null,"Res. Zn 3 - Int'l Motor Non-Prop.",null,null,null,null,{"$f":"'Schedule IIIA (EBS)'!G28","v":0}]
["Sch IIIA","Losses by Zone",null,"Res. Zn 3 - Int'l Casualty",null,null,null,null,{"$f":"'Schedule IIIA (EBS)'!G29","v":0}]
["Sch IIIA","Losses by Zone",null,"Res. Zn 3 - Int'l Casualty Non-Prop.",null,null,null,null,{"$f":"'Schedule IIIA (EBS)'!G30","v":0}]
["Sch IIIA","Losses by Zone",null,"Res. Zn 3 - Retro Property",null,null,null,null,{"$f":"'Schedule IIIA (EBS)'!G31","v":0}]
["Sch IIIA","Losses by Zone",null,"Res. Zn 3 - Structured / Finite R/I",null,null,null,null,{"$f":"'Schedule IIIA (EBS)'!G32","v":0}]
["Sch IIIA","Losses by Zone",null,"Res. Zn 3 - Health",null,null,null,null,{"$f":"'Schedule IIIA (EBS)'!G33","v":0}]
["Sch IIIA","Losses by Zone",null,"Res. Zn 3 - Total",null,null,null,null,{"$f":"'Schedule IIIA (EBS)'!G34","v":0}]
["Sch IIIA","Losses by Zone",null,"Res. Zn 4 - Property Catastrophe",null,null,null,null,{"$f":"'Schedule IIIA (EBS)'!H10","v":0}]
["Sch IIIA","Losses by Zone",null,"Res. Zn 4 - Property",null,null,null,null,{"$f":"'Schedule IIIA (EBS)'!H11","v":0}]
["Sch IIIA","Losses by Zone",null,"Res. Zn 4 - Property Non-Proportion",null,null,null,null,{"$f":"'Schedule IIIA (EBS)'!H12","v":0}]
["Sch IIIA","Losses by Zone",null,"Res. Zn 4 - Personal Accident",null,null,null,null,{"$f":"'Schedule IIIA (EBS)'!H13","v":0}]
["Sch IIIA","Losses by Zone",null,"Res. Zn 4 - Personal Acc. Non Prop.",null,null,null,null,{"$f":"'Schedule IIIA (EBS)'!H14","v":0}]
["Sch IIIA","Losses by Zone",null,"Res. Zn 4 - Aviation",null,null,null,null,{"$f":"'Schedule IIIA (EBS)'!H15","v":0}]
["Sch IIIA","Losses by Zone",null,"Res. Zn 4 - Aviation Non-Proportional",null,null,null,null,{"$f":"'Schedule IIIA (EBS)'!H16","v":0}]
["Sch IIIA","Losses by Zone",null,"Res. Zn 4 - Credit Surety",null,null,null,null,{"$f":"'Schedule IIIA (EBS)'!H17","v":0}]
["Sch IIIA","Losses by Zone",null,"Res. Zn 4 - Credit Surety Non-Prop.",null,null,null,null,{"$f":"'Schedule IIIA (EBS)'!H18","v":0}]
["Sch IIIA","Losses by Zone",null,"Res. Zn 4 - Energy",null,null,null,null,{"$f":"'Schedule IIIA (EBS)'!H19","v":0}]
["Sch IIIA","Losses by Zone",null,"Res. Zn 4 - Energy Non-Proportional",null,null,null,null,{"$f":"'Schedule IIIA (EBS)'!H20","v":0}]
["Sch IIIA","Losses by Zone",null,"Res. Zn 4 - US Casualty",null,null,null,null,{"$f":"'Schedule IIIA (EBS)'!H21","v":0}]
["Sch IIIA","Losses by Zone",null,"Res. Zn 4 - US Casualty Non-Prop.",null,null,null,null,{"$f":"'Schedule IIIA (EBS)'!H22","v":0}]
["Sch IIIA","Losses by Zone",null,"Res. Zn 4 - US Professional",null,null,null,null,{"$f":"'Schedule IIIA (EBS)'!H23","v":0}]
["Sch IIIA","Losses by Zone",null,"Res. Zn 4 - US Professional Non-Prop.",null,null,null,null,{"$f":"'Schedule IIIA (EBS)'!H24","v":0}]
["Sch IIIA","Losses by Zone",null,"Res. Zn 4 - US Specialty",null,null,null,null,{"$f":"'Schedule IIIA (EBS)'!H25","v":0}]
["Sch IIIA","Losses by Zone",null,"Res. Zn 4 - US Specialty Non-Prop.",null,null,null,null,{"$f":"'Schedule IIIA (EBS)'!H26","v":0}]
["Sch IIIA","Losses by Zone",null,"Res. Zn 4 - Int'l Motor",null,null,null,null,{"$f":"'Schedule IIIA (EBS)'!H27","v":0}]
["Sch IIIA","Losses by Zone",null,"Res. Zn 4 - Int'l Motor Non-Prop.",null,null,null,null,{"$f":"'Schedule IIIA (EBS)'!H28","v":0}]
["Sch IIIA","Losses by Zone",null,"Res. Zn 4 - Int'l Casualty",null,null,null,null,{"$f":"'Schedule IIIA (EBS)'!H29","v":0}]
["Sch IIIA","Losses by Zone",null,"Res. Zn 4 - Int'l Casualty Non-Prop.",null,null,null,null,{"$f":"'Schedule IIIA (EBS)'!H30","v":0}]
["Sch IIIA","Losses by Zone",null,"Res. Zn 4 - Retro Property",null,null,null,null,{"$f":"'Schedule IIIA (EBS)'!H31","v":0}]
["Sch IIIA","Losses by Zone",null,"Res. Zn 4 - Structured / Finite R/I",null,null,null,null,{"$f":"'Schedule IIIA (EBS)'!H32","v":0}]
["Sch IIIA","Losses by Zone",null,"Res. Zn 4 - Health",null,null,null,null,{"$f":"'Schedule IIIA (EBS)'!H33","v":0}]
["Sch IIIA","Losses by Zone",null,"Res. Zn 4 - Total",null,null,null,null,{"$f":"'Schedule IIIA (EBS)'!H34","v":0}]
["Sch IIIA","Losses by Zone",null,"Res. Zn 5 - Property Catastrophe",null,null,null,null,{"$f":"'Schedule IIIA (EBS)'!I10","v":0}]
["Sch IIIA","Losses by Zone",null,"Res. Zn 5 - Property",null,null,null,null,{"$f":"'Schedule IIIA (EBS)'!I11","v":0}]
["Sch IIIA","Losses by Zone",null,"Res. Zn 5 - Property Non-Proportion",null,null,null,null,{"$f":"'Schedule IIIA (EBS)'!I12","v":0}]
["Sch IIIA","Losses by Zone",null,"Res. Zn 5 - Personal Accident",null,null,null,null,{"$f":"'Schedule IIIA (EBS)'!I13","v":0}]
["Sch IIIA","Losses by Zone",null,"Res. Zn 5 - Personal Acc. Non Prop.",null,null,null,null,{"$f":"'Schedule IIIA (EBS)'!I14","v":0}]
["Sch IIIA","Losses by Zone",null,"Res. Zn 5 - Aviation",null,null,null,null,{"$f":"'Schedule IIIA (EBS)'!I15","v":0}]
["Sch IIIA","Losses by Zone",null,"Res. Zn 5 - Aviation Non-Proportional",null,null,null,null,{"$f":"'Schedule IIIA (EBS)'!I16","v":0}]
["Sch IIIA","Losses by Zone",null,"Res. Zn 5 - Credit Surety",null,null,null,null,{"$f":"'Schedule IIIA (EBS)'!I17","v":0}]
["Sch IIIA","Losses by Zone",null,"Res. Zn 5 - Credit Surety Non-Prop.",null,null,null,null,{"$f":"'Schedule IIIA (EBS)'!I18","v":0}]
["Sch IIIA","Losses by Zone",null,"Res. Zn 5 - Energy",null,null,null,null,{"$f":"'Schedule IIIA (EBS)'!I19","v":0}]
["Sch IIIA","Losses by Zone",null,"Res. Zn 5 - Energy Non-Proportional",null,null,null,null,{"$f":"'Schedule IIIA (EBS)'!I20","v":0}]
["Sch IIIA","Losses by Zone",null,"Res. Zn 5 - US Casualty",null,null,null,null,{"$f":"'Schedule IIIA (EBS)'!I21","v":0}]
["Sch IIIA","Losses by Zone",null,"Res. Zn 5 - US Casualty Non-Prop.",null,null,null,null,{"$f":"'Schedule IIIA (EBS)'!I22","v":0}]
["Sch IIIA","Losses by Zone",null,"Res. Zn 5 - US Professional",null,null,null,null,{"$f":"'Schedule IIIA (EBS)'!I23","v":0}]
["Sch IIIA","Losses by Zone",null,"Res. Zn 5 - US Professional Non-Prop.",null,null,null,null,{"$f":"'Schedule IIIA (EBS)'!I24","v":0}]
["Sch IIIA","Losses by Zone",null,"Res. Zn 5 - US Specialty",null,null,null,null,{"$f":"'Schedule IIIA (EBS)'!I25","v":0}]
["Sch IIIA","Losses by Zone",null,"Res. Zn 5 - US Specialty Non-Prop.",null,null,null,null,{"$f":"'Schedule IIIA (EBS)'!I26","v":0}]
["Sch IIIA","Losses by Zone",null,"Res. Zn 5 - Int'l Motor",null,null,null,null,{"$f":"'Schedule IIIA (EBS)'!I27","v":0}]
["Sch IIIA","Losses by Zone",null,"Res. Zn 5 - Int'l Motor Non-Prop.",null,null,null,null,{"$f":"'Schedule IIIA (EBS)'!I28","v":0}]
["Sch IIIA","Losses by Zone",null,"Res. Zn 5 - Int'l Casualty",null,null,null,null,{"$f":"'Schedule IIIA (EBS)'!I29","v":0}]
["Sch IIIA","Losses by Zone",null,"Res. Zn 5 - Int'l Casualty Non-Prop.",null,null,null,null,{"$f":"'Schedule IIIA (EBS)'!I30","v":0}]
["Sch IIIA","Losses by Zone",null,"Res. Zn 5 - Retro Property",null,null,null,null,{"$f":"'Schedule IIIA (EBS)'!I31","v":0}]
["Sch IIIA","Losses by Zone",null,"Res. Zn 5 - Structured / Finite R/I",null,null,null,null,{"$f":"'Schedule IIIA (EBS)'!I32","v":0}]
["Sch IIIA","Losses by Zone",null,"Res. Zn 5 - Health",null,null,null,null,{"$f":"'Schedule IIIA (EBS)'!I33","v":0}]
["Sch IIIA","Losses by Zone",null,"Res. Zn 5 - Total",null,null,null,null,{"$f":"'Schedule IIIA (EBS)'!I34","v":0}]
["Sch IIIA","Losses by Zone",null,"Res. Zn 6 - Property Catastrophe",null,null,null,null,{"$f":"'Schedule IIIA (EBS)'!J10","v":0}]
["Sch IIIA","Losses by Zone",null,"Res. Zn 6 - Property",null,null,null,null,{"$f":"'Schedule IIIA (EBS)'!J11","v":0}]
["Sch IIIA","Losses by Zone",null,"Res. Zn 6 - Property Non-Proportion",null,null,null,null,{"$f":"'Schedule IIIA (EBS)'!J12","v":0}]
["Sch IIIA","Losses by Zone",null,"Res. Zn 6 - Personal Accident",null,null,null,null,{"$f":"'Schedule IIIA (EBS)'!J13","v":0}]
["Sch IIIA","Losses by Zone",null,"Res. Zn 6 - Personal Acc. Non Prop.",null,null,null,null,{"$f":"'Schedule IIIA (EBS)'!J14","v":0}]
["Sch IIIA","Losses by Zone",null,"Res. Zn 6 - Aviation",null,null,null,null,{"$f":"'Schedule IIIA (EBS)'!J15","v":0}]
["Sch IIIA","Losses by Zone",null,"Res. Zn 6 - Aviation Non-Proportional",null,null,null,null,{"$f":"'Schedule IIIA (EBS)'!J16","v":0}]
["Sch IIIA","Losses by Zone",null,"Res. Zn 6 - Credit Surety",null,null,null,null,{"$f":"'Schedule IIIA (EBS)'!J17","v":0}]
["Sch IIIA","Losses by Zone",null,"Res. Zn 6 - Credit Surety Non-Prop.",null,null,null,null,{"$f":"'Schedule IIIA (EBS)'!J18","v":0}]
["Sch IIIA","Losses by Zone",null,"Res. Zn 6 - Energy",null,null,null,null,{"$f":"'Schedule IIIA (EBS)'!J19","v":0}]
["Sch IIIA","Losses by Zone",null,"Res. Zn 6 - Energy Non-Proportional",null,null,null,null,{"$f":"'Schedule IIIA (EBS)'!J20","v":0}]
["Sch IIIA","Losses by Zone",null,"Res. Zn 6 - US Casualty",null,null,null,null,{"$f":"'Schedule IIIA (EBS)'!J21","v":0}]
["Sch IIIA","Losses by Zone",null,"Res. Zn 6 - US Casualty Non-Prop.",null,null,null,null,{"$f":"'Schedule IIIA (EBS)'!J22","v":0}]
["Sch IIIA","Losses by Zone",null,"Res. Zn 6 - US Professional",null,null,null,null,{"$f":"'Schedule IIIA (EBS)'!J23","v":0}]
["Sch IIIA","Losses by Zone",null,"Res. Zn 6 - US Professional Non-Prop.",null,null,null,null,{"$f":"'Schedule IIIA (EBS)'!J24","v":0}]
["Sch IIIA","Losses by Zone",null,"Res. Zn 6 - US Specialty",null,null,null,null,{"$f":"'Schedule IIIA (EBS)'!J25","v":0}]
["Sch IIIA","Losses by Zone",null,"Res. Zn 6 - US Specialty Non-Prop.",null,null,null,null,{"$f":"'Schedule IIIA (EBS)'!J26","v":0}]
["Sch IIIA","Losses by Zone",null,"Res. Zn 6 - Int'l Motor",null,null,null,null,{"$f":"'Schedule IIIA (EBS)'!J27","v":0}]
["Sch IIIA","Losses by Zone",null,"Res. Zn 6 - Int'l Motor Non-Prop.",null,null,null,null,{"$f":"'Schedule IIIA (EBS)'!J28","v":0}]
["Sch IIIA","Losses by Zone",null,"Res. Zn 6 - Int'l Casualty",null,null,null,null,{"$f":"'Schedule IIIA (EBS)'!J29","v":0}]
["Sch IIIA","Losses by Zone",null,"Res. Zn 6 - Int'l Casualty Non-Prop.",null,null,null,null,{"$f":"'Schedule IIIA (EBS)'!J30","v":0}]
["Sch IIIA","Losses by Zone",null,"Res. Zn 6 - Retro Property",null,null,null,null,{"$f":"'Schedule IIIA (EBS)'!J31","v":0}]
["Sch IIIA","Losses by Zone",null,"Res. Zn 6 - Structured / Finite R/I",null,null,null,null,{"$f":"'Schedule IIIA (EBS)'!J32","v":0}]
["Sch IIIA","Losses by Zone",null,"Res. Zn 6 - Health",null,null,null,null,{"$f":"'Schedule IIIA (EBS)'!J33","v":0}]
["Sch IIIA","Losses by Zone",null,"Res. Zn 6 - Total",null,null,null,null,{"$f":"'Schedule IIIA (EBS)'!J34","v":0}]
["Sch IIIA","Losses by Zone",null,"Res. Zn 7 - Property Catastrophe",null,null,null,null,{"$f":"'Schedule IIIA (EBS)'!K10","v":0}]
["Sch IIIA","Losses by Zone",null,"Res. Zn 7 - Property",null,null,null,null,{"$f":"'Schedule IIIA (EBS)'!K11","v":0}]
["Sch IIIA","Losses by Zone",null,"Res. Zn 7 - Property Non-Proportion",null,null,null,null,{"$f":"'Schedule IIIA (EBS)'!K12","v":0}]
["Sch IIIA","Losses by Zone",null,"Res. Zn 7 - Personal Accident",null,null,null,null,{"$f":"'Schedule IIIA (EBS)'!K13","v":0}]
["Sch IIIA","Losses by Zone",null,"Res. Zn 7 - Personal Acc. Non Prop.",null,null,null,null,{"$f":"'Schedule IIIA (EBS)'!K14","v":0}]
["Sch IIIA","Losses by Zone",null,"Res. Zn 7 - Aviation",null,null,null,null,{"$f":"'Schedule IIIA (EBS)'!K15","v":0}]
["Sch IIIA","Losses by Zone",null,"Res. Zn 7 - Aviation Non-Proportional",null,null,null,null,{"$f":"'Schedule IIIA (EBS)'!K16","v":0}]
["Sch IIIA","Losses by Zone",null,"Res. Zn 7 - Credit Surety",null,null,null,null,{"$f":"'Schedule IIIA (EBS)'!K17","v":0}]
["Sch IIIA","Losses by Zone",null,"Res. Zn 7 - Credit Surety Non-Prop.",null,null,null,null,{"$f":"'Schedule IIIA (EBS)'!K18","v":0}]
["Sch IIIA","Losses by Zone",null,"Res. Zn 7 - Energy",null,null,null,null,{"$f":"'Schedule IIIA (EBS)'!K19","v":0}]
["Sch IIIA","Losses by Zone",null,"Res. Zn 7 - Energy Non-Proportional",null,null,null,null,{"$f":"'Schedule IIIA (EBS)'!K20","v":0}]
["Sch IIIA","Losses by Zone",null,"Res. Zn 7 - US Casualty",null,null,null,null,{"$f":"'Schedule IIIA (EBS)'!K21","v":0}]
["Sch IIIA","Losses by Zone",null,"Res. Zn 7 - US Casualty Non-Prop.",null,null,null,null,{"$f":"'Schedule IIIA (EBS)'!K22","v":0}]
["Sch IIIA","Losses by Zone",null,"Res. Zn 7 - US Professional",null,null,null,null,{"$f":"'Schedule IIIA (EBS)'!K23","v":0}]
["Sch IIIA","Losses by Zone",null,"Res. Zn 7 - US Professional Non-Prop.",null,null,null,null,{"$f":"'Schedule IIIA (EBS)'!K24","v":0}]
["Sch IIIA","Losses by Zone",null,"Res. Zn 7 - US Specialty",null,null,null,null,{"$f":"'Schedule IIIA (EBS)'!K25","v":0}]
["Sch IIIA","Losses by Zone",null,"Res. Zn 7 - US Specialty Non-Prop.",null,null,null,null,{"$f":"'Schedule IIIA (EBS)'!K26","v":0}]
["Sch IIIA","Losses by Zone",null,"Res. Zn 7 - Int'l Motor",null,null,null,null,{"$f":"'Schedule IIIA (EBS)'!K27","v":0}]
["Sch IIIA","Losses by Zone",null,"Res. Zn 7 - Int'l Motor Non-Prop.",null,null,null,null,{"$f":"'Schedule IIIA (EBS)'!K28","v":0}]
["Sch IIIA","Losses by Zone",null,"Res. Zn 7 - Int'l Casualty",null,null,null,null,{"$f":"'Schedule IIIA (EBS)'!K29","v":0}]
["Sch IIIA","Losses by Zone",null,"Res. Zn 7 - Int'l Casualty Non-Prop.",null,null,null,null,{"$f":"'Schedule IIIA (EBS)'!K30","v":0}]
["Sch IIIA","Losses by Zone",null,"Res. Zn 7 - Retro Property",null,null,null,null,{"$f":"'Schedule IIIA (EBS)'!K31","v":0}]
["Sch IIIA","Losses by Zone",null,"Res. Zn 7 - Structured / Finite R/I",null,null,null,null,{"$f":"'Schedule IIIA (EBS)'!K32","v":0}]
["Sch IIIA","Losses by Zone",null,"Res. Zn 7 - Health",null,null,null,null,{"$f":"'Schedule IIIA (EBS)'!K33","v":0}]
["Sch IIIA","Losses by Zone",null,"Res. Zn 7 - Total",null,null,null,null,{"$f":"'Schedule IIIA (EBS)'!K34","v":0}]
["Sch IIIA","Losses by Zone",null,"Res. Zn 8 - Property Catastrophe",null,null,null,null,{"$f":"'Schedule IIIA (EBS)'!L10","v":0}]
["Sch IIIA","Losses by Zone",null,"Res. Zn 8 - Property",null,null,null,null,{"$f":"'Schedule IIIA (EBS)'!L11","v":0}]
["Sch IIIA","Losses by Zone",null,"Res. Zn 8 - Property Non-Proportion",null,null,null,null,{"$f":"'Schedule IIIA (EBS)'!L12","v":0}]
["Sch IIIA","Losses by Zone",null,"Res. Zn 8 - Personal Accident",null,null,null,null,{"$f":"'Schedule IIIA (EBS)'!L13","v":0}]
["Sch IIIA","Losses by Zone",null,"Res. Zn 8 - Personal Acc. Non Prop.",null,null,null,null,{"$f":"'Schedule IIIA (EBS)'!L14","v":0}]
["Sch IIIA","Losses by Zone",null,"Res. Zn 8 - Aviation",null,null,null,null,{"$f":"'Schedule IIIA (EBS)'!L15","v":0}]
["Sch IIIA","Losses by Zone",null,"Res. Zn 8 - Aviation Non-Proportional",null,null,null,null,{"$f":"'Schedule IIIA (EBS)'!L16","v":0}]
["Sch IIIA","Losses by Zone",null,"Res. Zn 8 - Credit Surety",null,null,null,null,{"$f":"'Schedule IIIA (EBS)'!L17","v":0}]
["Sch IIIA","Losses by Zone",null,"Res. Zn 8 - Credit Surety Non-Prop.",null,null,null,null,{"$f":"'Schedule IIIA (EBS)'!L18","v":0}]
["Sch IIIA","Losses by Zone",null,"Res. Zn 8 - Energy",null,null,null,null,{"$f":"'Schedule IIIA (EBS)'!L19","v":0}]
["Sch IIIA","Losses by Zone",null,"Res. Zn 8 - Energy Non-Proportional",null,null,null,null,{"$f":"'Schedule IIIA (EBS)'!L20","v":0}]
["Sch IIIA","Losses by Zone",null,"Res. Zn 8 - US Casualty",null,null,null,null,{"$f":"'Schedule IIIA (EBS)'!L21","v":0}]
["Sch IIIA","Losses by Zone",null,"Res. Zn 8 - US Casualty Non-Prop.",null,null,null,null,{"$f":"'Schedule IIIA (EBS)'!L22","v":0}]
["Sch IIIA","Losses by Zone",null,"Res. Zn 8 - US Professional",null,null,null,null,{"$f":"'Schedule IIIA (EBS)'!L23","v":0}]
["Sch IIIA","Losses by Zone",null,"Res. Zn 8 - US Professional Non-Prop.",null,null,null,null,{"$f":"'Schedule IIIA (EBS)'!L24","v":0}]
["Sch IIIA","Losses by Zone",null,"Res. Zn 8 - US Specialty",null,null,null,null,{"$f":"'Schedule IIIA (EBS)'!L25","v":0}]
["Sch IIIA","Losses by Zone",null,"Res. Zn 8 - US Specialty Non-Prop.",null,null,null,null,{"$f":"'Schedule IIIA (EBS)'!L26","v":0}]
["Sch IIIA","Losses by Zone",null,"Res. Zn 8 - Int'l Motor",null,null,null,null,{"$f":"'Schedule IIIA (EBS)'!L27","v":0}]
["Sch IIIA","Losses by Zone",null,"Res. Zn 8 - Int'l Motor Non-Prop.",null,null,null,null,{"$f":"'Schedule IIIA (EBS)'!L28","v":0}]
["Sch IIIA","Losses by Zone",null,"Res. Zn 8 - Int'l Casualty",null,null,null,null,{"$f":"'Schedule IIIA (EBS)'!L29","v":0}]
["Sch IIIA","Losses by Zone",null,"Res. Zn 8 - Int'l Casualty Non-Prop.",null,null,null,null,{"$f":"'Schedule IIIA (EBS)'!L30","v":0}]
["Sch IIIA","Losses by Zone",null,"Res. Zn 8 - Retro Property",null,null,null,null,{"$f":"'Schedule IIIA (EBS)'!L31","v":0}]
["Sch IIIA","Losses by Zone",null,"Res. Zn 8 - Structured / Finite R/I",null,null,null,null,{"$f":"'Schedule IIIA (EBS)'!L32","v":0}]
["Sch IIIA","Losses by Zone",null,"Res. Zn 8 - Health",null,null,null,null,{"$f":"'Schedule IIIA (EBS)'!L33","v":0}]
["Sch IIIA","Losses by Zone",null,"Res. Zn 8 - Total",null,null,null,null,{"$f":"'Schedule IIIA (EBS)'!L34","v":0}]
["Sch IIIA","Losses by Zone",null,"Res. Zn 9 - Property Catastrophe",null,null,null,null,{"$f":"'Schedule IIIA (EBS)'!M10","v":0}]
["Sch IIIA","Losses by Zone",null,"Res. Zn 9 - Property",null,null,null,null,{"$f":"'Schedule IIIA (EBS)'!M11","v":0}]
["Sch IIIA","Losses by Zone",null,"Res. Zn 9 - Property Non-Proportion",null,null,null,null,{"$f":"'Schedule IIIA (EBS)'!M12","v":0}]
["Sch IIIA","Losses by Zone",null,"Res. Zn 9 - Personal Accident",null,null,null,null,{"$f":"'Schedule IIIA (EBS)'!M13","v":0}]
["Sch IIIA","Losses by Zone",null,"Res. Zn 9 - Personal Acc. Non Prop.",null,null,null,null,{"$f":"'Schedule IIIA (EBS)'!M14","v":0}]
["Sch IIIA","Losses by Zone",null,"Res. Zn 9 - Aviation",null,null,null,null,{"$f":"'Schedule IIIA (EBS)'!M15","v":0}]
["Sch IIIA","Losses by Zone",null,"Res. Zn 9 - Aviation Non-Proportional",null,null,null,null,{"$f":"'Schedule IIIA (EBS)'!M16","v":0}]
["Sch IIIA","Losses by Zone",null,"Res. Zn 9 - Credit Surety",null,null,null,null,{"$f":"'Schedule IIIA (EBS)'!M17","v":0}]
["Sch IIIA","Losses by Zone",null,"Res. Zn 9 - Credit Surety Non-Prop.",null,null,null,null,{"$f":"'Schedule IIIA (EBS)'!M18","v":0}]
["Sch IIIA","Losses by Zone",null,"Res. Zn 9 - Energy",null,null,null,null,{"$f":"'Schedule IIIA (EBS)'!M19","v":0}]
["Sch IIIA","Losses by Zone",null,"Res. Zn 9 - Energy Non-Proportional",null,null,null,null,{"$f":"'Schedule IIIA (EBS)'!M20","v":0}]
["Sch IIIA","Losses by Zone",null,"Res. Zn 9 - US Casualty",null,null,null,null,{"$f":"'Schedule IIIA (EBS)'!M21","v":0}]
["Sch IIIA","Losses by Zone",null,"Res. Zn 9 - US Casualty Non-Prop.",null,null,null,null,{"$f":"'Schedule IIIA (EBS)'!M22","v":0}]
["Sch IIIA","Losses by Zone",null,"Res. Zn 9 - US Professional",null,null,null,null,{"$f":"'Schedule IIIA (EBS)'!M23","v":0}]
["Sch IIIA","Losses by Zone",null,"Res. Zn 9 - US Professional Non-Prop.",null,null,null,null,{"$f":"'Schedule IIIA (EBS)'!M24","v":0}]
["Sch IIIA","Losses by Zone",null,"Res. Zn 9 - US Specialty",null,null,null,null,{"$f":"'Schedule IIIA (EBS)'!M25","v":0}]
["Sch IIIA","Losses by Zone",null,"Res. Zn 9 - US Specialty Non-Prop.",null,null,null,null,{"$f":"'Schedule IIIA (EBS)'!M26","v":0}]
["Sch IIIA","Losses by Zone",null,"Res. Zn 9 - Int'l Motor",null,null,null,null,{"$f":"'Schedule IIIA (EBS)'!M27","v":0}]
["Sch IIIA","Losses by Zone",null,"Res. Zn 9 - Int'l Motor Non-Prop.",null,null,null,null,{"$f":"'Schedule IIIA (EBS)'!M28","v":0}]
["Sch IIIA","Losses by Zone",null,"Res. Zn 9 - Int'l Casualty",null,null,null,null,{"$f":"'Schedule IIIA (EBS)'!M29","v":0}]
["Sch IIIA","Losses by Zone",null,"Res. Zn 9 - Int'l Casualty Non-Prop.",null,null,null,null,{"$f":"'Schedule IIIA (EBS)'!M30","v":0}]
["Sch IIIA","Losses by Zone",null,"Res. Zn 9 - Retro Property",null,null,null,null,{"$f":"'Schedule IIIA (EBS)'!M31","v":0}]
["Sch IIIA","Losses by Zone",null,"Res. Zn 9 - Structured / Finite R/I",null,null,null,null,{"$f":"'Schedule IIIA (EBS)'!M32","v":0}]
["Sch IIIA","Losses by Zone",null,"Res. Zn 9 - Health",null,null,null,null,{"$f":"'Schedule IIIA (EBS)'!M33","v":0}]
["Sch IIIA","Losses by Zone",null,"Res. Zn 9 - Total",null,null,null,null,{"$f":"'Schedule IIIA (EBS)'!M34","v":0}]
["Sch IIIA","Losses by Zone",null,"Res. Zn 10 - Property Catastrophe",null,null,null,null,{"$f":"'Schedule IIIA (EBS)'!N10","v":0}]
["Sch IIIA","Losses by Zone",null,"Res. Zn 10 - Property",null,null,null,null,{"$f":"'Schedule IIIA (EBS)'!N11","v":0}]
["Sch IIIA","Losses by Zone",null,"Res. Zn 10 - Property Non-Proportion",null,null,null,null,{"$f":"'Schedule IIIA (EBS)'!N12","v":0}]
["Sch IIIA","Losses by Zone",null,"Res. Zn 10 - Personal Accident",null,null,null,null,{"$f":"'Schedule IIIA (EBS)'!N13","v":0}]
["Sch IIIA","Losses by Zone",null,"Res. Zn 10 - Personal Acc. Non Prop.",null,null,null,null,{"$f":"'Schedule IIIA (EBS)'!N14","v":0}]
["Sch IIIA","Losses by Zone",null,"Res. Zn 10 - Aviation",null,null,null,null,{"$f":"'Schedule IIIA (EBS)'!N15","v":0}]
["Sch IIIA","Losses by Zone",null,"Res. Zn 10 - Aviation Non-Proportional",null,null,null,null,{"$f":"'Schedule IIIA (EBS)'!N16","v":0}]
["Sch IIIA","Losses by Zone",null,"Res. Zn 10 - Credit Surety",null,null,null,null,{"$f":"'Schedule IIIA (EBS)'!N17","v":0}]
["Sch IIIA","Losses by Zone",null,"Res. Zn 10 - Credit Surety Non-Prop.",null,null,null,null,{"$f":"'Schedule IIIA (EBS)'!N18","v":0}]
["Sch IIIA","Losses by Zone",null,"Res. Zn 10 - Energy",null,null,null,null,{"$f":"'Schedule IIIA (EBS)'!N19","v":0}]
["Sch IIIA","Losses by Zone",null,"Res. Zn 10 - Energy Non-Proportional",null,null,null,null,{"$f":"'Schedule IIIA (EBS)'!N20","v":0}]
["Sch IIIA","Losses by Zone",null,"Res. Zn 10 - US Casualty",null,null,null,null,{"$f":"'Schedule IIIA (EBS)'!N21","v":0}]
["Sch IIIA","Losses by Zone",null,"Res. Zn 10 - US Casualty Non-Prop.",null,null,null,null,{"$f":"'Schedule IIIA (EBS)'!N22","v":0}]
["Sch IIIA","Losses by Zone",null,"Res. Zn 10 - US Professional",null,null,null,null,{"$f":"'Schedule IIIA (EBS)'!N23","v":0}]
["Sch IIIA","Losses by Zone",null,"Res. Zn 10 - US Professional Non-Prop.",null,null,null,null,{"$f":"'Schedule IIIA (EBS)'!N24","v":0}]
["Sch IIIA","Losses by Zone",null,"Res. Zn 10 - US Specialty",null,null,null,null,{"$f":"'Schedule IIIA (EBS)'!N25","v":0}]
["Sch IIIA","Losses by Zone",null,"Res. Zn 10 - US Specialty Non-Prop.",null,null,null,null,{"$f":"'Schedule IIIA (EBS)'!N26","v":0}]
["Sch IIIA","Losses by Zone",null,"Res. Zn 10 - Int'l Motor",null,null,null,null,{"$f":"'Schedule IIIA (EBS)'!N27","v":0}]
["Sch IIIA","Losses by Zone",null,"Res. Zn 10 - Int'l Motor Non-Prop.",null,null,null,null,{"$f":"'Schedule IIIA (EBS)'!N28","v":0}]
["Sch IIIA","Losses by Zone",null,"Res. Zn 10 - Int'l Casualty",null,null,null,null,{"$f":"'Schedule IIIA (EBS)'!N29","v":0}]
["Sch IIIA","Losses by Zone",null,"Res. Zn 10 - Int'l Casualty Non-Prop.",null,null,null,null,{"$f":"'Schedule IIIA (EBS)'!N30","v":0}]
["Sch IIIA","Losses by Zone",null,"Res. Zn 10 - Retro Property",null,null,null,null,{"$f":"'Schedule IIIA (EBS)'!N31","v":0}]
["Sch IIIA","Losses by Zone",null,"Res. Zn 10 - Structured / Finite R/I",null,null,null,null,{"$f":"'Schedule IIIA (EBS)'!N32","v":0}]
["Sch IIIA","Losses by Zone",null,"Res. Zn 10 - Health",null,null,null,null,{"$f":"'Schedule IIIA (EBS)'!N33","v":0}]
["Sch IIIA","Losses by Zone",null,"Res. Zn 10 - Total",null,null,null,null,{"$f":"'Schedule IIIA (EBS)'!N34","v":0}]
["Sch IIIA","Losses by Zone",null,"Res. Zn 11 - Property Catastrophe",null,null,null,null,{"$f":"'Schedule IIIA (EBS)'!O10","v":0}]
["Sch IIIA","Losses by Zone",null,"Res. Zn 11 - Property",null,null,null,null,{"$f":"'Schedule IIIA (EBS)'!O11","v":0}]
["Sch IIIA","Losses by Zone",null,"Res. Zn 11 - Property Non-Proportion",null,null,null,null,{"$f":"'Schedule IIIA (EBS)'!O12","v":0}]
["Sch IIIA","Losses by Zone",null,"Res. Zn 11 - Personal Accident",null,null,null,null,{"$f":"'Schedule IIIA (EBS)'!O13","v":0}]
["Sch IIIA","Losses by Zone",null,"Res. Zn 11 - Personal Acc. Non Prop.",null,null,null,null,{"$f":"'Schedule IIIA (EBS)'!O14","v":0}]
["Sch IIIA","Losses by Zone",null,"Res. Zn 11 - Aviation",null,null,null,null,{"$f":"'Schedule IIIA (EBS)'!O15","v":0}]
["Sch IIIA","Losses by Zone",null,"Res. Zn 11 - Aviation Non-Proportional",null,null,null,null,{"$f":"'Schedule IIIA (EBS)'!O16","v":0}]
["Sch IIIA","Losses by Zone",null,"Res. Zn 11 - Credit Surety",null,null,null,null,{"$f":"'Schedule IIIA (EBS)'!O17","v":0}]
["Sch IIIA","Losses by Zone",null,"Res. Zn 11 - Credit Surety Non-Prop.",null,null,null,null,{"$f":"'Schedule IIIA (EBS)'!O18","v":0}]
["Sch IIIA","Losses by Zone",null,"Res. Zn 11 - Energy",null,null,null,null,{"$f":"'Schedule IIIA (EBS)'!O19","v":0}]
["Sch IIIA","Losses by Zone",null,"Res. Zn 11 - Energy Non-Proportional",null,null,null,null,{"$f":"'Schedule IIIA (EBS)'!O20","v":0}]
["Sch IIIA","Losses by Zone",null,"Res. Zn 11 - US Casualty",null,null,null,null,{"$f":"'Schedule IIIA (EBS)'!O21","v":0}]
["Sch IIIA","Losses by Zone",null,"Res. Zn 11 - US Casualty Non-Prop.",null,null,null,null,{"$f":"'Schedule IIIA (EBS)'!O22","v":0}]
["Sch IIIA","Losses by Zone",null,"Res. Zn 11 - US Professional",null,null,null,null,{"$f":"'Schedule IIIA (EBS)'!O23","v":0}]
["Sch IIIA","Losses by Zone",null,"Res. Zn 11 - US Professional Non-Prop.",null,null,null,null,{"$f":"'Schedule IIIA (EBS)'!O24","v":0}]
["Sch IIIA","Losses by Zone",null,"Res. Zn 11 - US Specialty",null,null,null,null,{"$f":"'Schedule IIIA (EBS)'!O25","v":0}]
["Sch IIIA","Losses by Zone",null,"Res. Zn 11 - US Specialty Non-Prop.",null,null,null,null,{"$f":"'Schedule IIIA (EBS)'!O26","v":0}]
["Sch IIIA","Losses by Zone",null,"Res. Zn 11 - Int'l Motor",null,null,null,null,{"$f":"'Schedule IIIA (EBS)'!O27","v":0}]
["Sch IIIA","Losses by Zone",null,"Res. Zn 11 - Int'l Motor Non-Prop.",null,null,null,null,{"$f":"'Schedule IIIA (EBS)'!O28","v":0}]
["Sch IIIA","Losses by Zone",null,"Res. Zn 11 - Int'l Casualty",null,null,null,null,{"$f":"'Schedule IIIA (EBS)'!O29","v":0}]
["Sch IIIA","Losses by Zone",null,"Res. Zn 11 - Int'l Casualty Non-Prop.",null,null,null,null,{"$f":"'Schedule IIIA (EBS)'!O30","v":0}]
["Sch IIIA","Losses by Zone",null,"Res. Zn 11 - Retro Property",null,null,null,null,{"$f":"'Schedule IIIA (EBS)'!O31","v":0}]
["Sch IIIA","Losses by Zone",null,"Res. Zn 11 - Structured / Finite R/I",null,null,null,null,{"$f":"'Schedule IIIA (EBS)'!O32","v":0}]
["Sch IIIA","Losses by Zone",null,"Res. Zn 11 - Health",null,null,null,null,{"$f":"'Schedule IIIA (EBS)'!O33","v":0}]
["Sch IIIA","Losses by Zone",null,"Res. Zn 11 - Total",null,null,null,null,{"$f":"'Schedule IIIA (EBS)'!O34","v":0}]
["Sch IIIA","Losses by Zone",null,"Res. Zn 12 - Property Catastrophe",null,null,null,null,{"$f":"'Schedule IIIA (EBS)'!P10","v":0}]
["Sch IIIA","Losses by Zone",null,"Res. Zn 12 - Property",null,null,null,null,{"$f":"'Schedule IIIA (EBS)'!P11","v":0}]
["Sch IIIA","Losses by Zone",null,"Res. Zn 12 - Property Non-Proportion",null,null,null,null,{"$f":"'Schedule IIIA (EBS)'!P12","v":0}]
["Sch IIIA","Losses by Zone",null,"Res. Zn 12 - Personal Accident",null,null,null,null,{"$f":"'Schedule IIIA (EBS)'!P13","v":0}]
["Sch IIIA","Losses by Zone",null,"Res. Zn 12 - Personal Acc. Non Prop.",null,null,null,null,{"$f":"'Schedule IIIA (EBS)'!P14","v":0}]
["Sch IIIA","Losses by Zone",null,"Res. Zn 12 - Aviation",null,null,null,null,{"$f":"'Schedule IIIA (EBS)'!P15","v":0}]
["Sch IIIA","Losses by Zone",null,"Res. Zn 12 - Aviation Non-Proportional",null,null,null,null,{"$f":"'Schedule IIIA (EBS)'!P16","v":0}]
["Sch IIIA","Losses by Zone",null,"Res. Zn 12 - Credit Surety",null,null,null,null,{"$f":"'Schedule IIIA (EBS)'!P17","v":0}]
["Sch IIIA","Losses by Zone",null,"Res. Zn 12 - Credit Surety Non-Prop.",null,null,null,null,{"$f":"'Schedule IIIA (EBS)'!P18","v":0}]
["Sch IIIA","Losses by Zone",null,"Res. Zn 12 - Energy",null,null,null,null,{"$f":"'Schedule IIIA (EBS)'!P19","v":0}]
["Sch IIIA","Losses by Zone",null,"Res. Zn 12 - Energy Non-Proportional",null,null,null,null,{"$f":"'Schedule IIIA (EBS)'!P20","v":0}]
["Sch IIIA","Losses by Zone",null,"Res. Zn 12 - US Casualty",null,null,null,null,{"$f":"'Schedule IIIA (EBS)'!P21","v":0}]
["Sch IIIA","Losses by Zone",null,"Res. Zn 12 - US Casualty Non-Prop.",null,null,null,null,{"$f":"'Schedule IIIA (EBS)'!P22","v":0}]
["Sch IIIA","Losses by Zone",null,"Res. Zn 12 - US Professional",null,null,null,null,{"$f":"'Schedule IIIA (EBS)'!P23","v":0}]
["Sch IIIA","Losses by Zone",null,"Res. Zn 12 - US Professional Non-Prop.",null,null,null,null,{"$f":"'Schedule IIIA (EBS)'!P24","v":0}]
["Sch IIIA","Losses by Zone",null,"Res. Zn 12 - US Specialty",null,null,null,null,{"$f":"'Schedule IIIA (EBS)'!P25","v":0}]
["Sch IIIA","Losses by Zone",null,"Res. Zn 12 - US Specialty Non-Prop.",null,null,null,null,{"$f":"'Schedule IIIA (EBS)'!P26","v":0}]
["Sch IIIA","Losses by Zone",null,"Res. Zn 12 - Int'l Motor",null,null,null,null,{"$f":"'Schedule IIIA (EBS)'!P27","v":0}]
["Sch IIIA","Losses by Zone",null,"Res. Zn 12 - Int'l Motor Non-Prop.",null,null,null,null,{"$f":"'Schedule IIIA (EBS)'!P28","v":0}]
["Sch IIIA","Losses by Zone",null,"Res. Zn 12 - Int'l Casualty",null,null,null,null,{"$f":"'Schedule IIIA (EBS)'!P29","v":0}]
["Sch IIIA","Losses by Zone",null,"Res. Zn 12 - Int'l Casualty Non-Prop.",null,null,null,null,{"$f":"'Schedule IIIA (EBS)'!P30","v":0}]
["Sch IIIA","Losses by Zone",null,"Res. Zn 12 - Retro Property",null,null,null,null,{"$f":"'Schedule IIIA (EBS)'!P31","v":0}]
["Sch IIIA","Losses by Zone",null,"Res. Zn 12 - Structured / Finite R/I",null,null,null,null,{"$f":"'Schedule IIIA (EBS)'!P32","v":0}]
["Sch IIIA","Losses by Zone",null,"Res. Zn 12 - Health",null,null,null,null,{"$f":"'Schedule IIIA (EBS)'!P33","v":0}]
["Sch IIIA","Losses by Zone",null,"Res. Zn 12 - Total",null,null,null,null,{"$f":"'Schedule IIIA (EBS)'!P34","v":0}]
["Sch IIIA","Losses by Zone",null,"Res. Zn 13 - Property Catastrophe",null,null,null,null,{"$f":"'Schedule IIIA (EBS)'!Q10","v":0}]
["Sch IIIA","Losses by Zone",null,"Res. Zn 13 - Property",null,null,null,null,{"$f":"'Schedule IIIA (EBS)'!Q11","v":0}]
["Sch IIIA","Losses by Zone",null,"Res. Zn 13 - Property Non-Proportion",null,null,null,null,{"$f":"'Schedule IIIA (EBS)'!Q12","v":0}]
["Sch IIIA","Losses by Zone",null,"Res. Zn 13 - Personal Accident",null,null,null,null,{"$f":"'Schedule IIIA (EBS)'!Q13","v":0}]
["Sch IIIA","Losses by Zone",null,"Res. Zn 13 - Personal Acc. Non Prop.",null,null,null,null,{"$f":"'Schedule IIIA (EBS)'!Q14","v":0}]
["Sch IIIA","Losses by Zone",null,"Res. Zn 13 - Aviation",null,null,null,null,{"$f":"'Schedule IIIA (EBS)'!Q15","v":0}]
["Sch IIIA","Losses by Zone",null,"Res. Zn 13 - Aviation Non-Proportional",null,null,null,null,{"$f":"'Schedule IIIA (EBS)'!Q16","v":0}]
["Sch IIIA","Losses by Zone",null,"Res. Zn 13 - Credit Surety",null,null,null,null,{"$f":"'Schedule IIIA (EBS)'!Q17","v":0}]
["Sch IIIA","Losses by Zone",null,"Res. Zn 13 - Credit Surety Non-Prop.",null,null,null,null,{"$f":"'Schedule IIIA (EBS)'!Q18","v":0}]
["Sch IIIA","Losses by Zone",null,"Res. Zn 13 - Energy",null,null,null,null,{"$f":"'Schedule IIIA (EBS)'!Q19","v":0}]
["Sch IIIA","Losses by Zone",null,"Res. Zn 13 - Energy Non-Proportional",null,null,null,null,{"$f":"'Schedule IIIA (EBS)'!Q20","v":0}]
["Sch IIIA","Losses by Zone",null,"Res. Zn 13 - US Casualty",null,null,null,null,{"$f":"'Schedule IIIA (EBS)'!Q21","v":0}]
["Sch IIIA","Losses by Zone",null,"Res. Zn 13 - US Casualty Non-Prop.",null,null,null,null,{"$f":"'Schedule IIIA (EBS)'!Q22","v":0}]
["Sch IIIA","Losses by Zone",null,"Res. Zn 13 - US Professional",null,null,null,null,{"$f":"'Schedule IIIA (EBS)'!Q23","v":0}]
["Sch IIIA","Losses by Zone",null,"Res. Zn 13 - US Professional Non-Prop.",null,null,null,null,{"$f":"'Schedule IIIA (EBS)'!Q24","v":0}]
["Sch IIIA","Losses by Zone",null,"Res. Zn 13 - US Specialty",null,null,null,null,{"$f":"'Schedule IIIA (EBS)'!Q25","v":0}]
["Sch IIIA","Losses by Zone",null,"Res. Zn 13 - US Specialty Non-Prop.",null,null,null,null,{"$f":"'Schedule IIIA (EBS)'!Q26","v":0}]
["Sch IIIA","Losses by Zone",null,"Res. Zn 13 - Int'l Motor",null,null,null,null,{"$f":"'Schedule IIIA (EBS)'!Q27","v":0}]
["Sch IIIA","Losses by Zone",null,"Res. Zn 13 - Int'l Motor Non-Prop.",null,null,null,null,{"$f":"'Schedule IIIA (EBS)'!Q28","v":0}]
["Sch IIIA","Losses by Zone",null,"Res. Zn 13 - Int'l Casualty",null,null,null,null,{"$f":"'Schedule IIIA (EBS)'!Q29","v":0}]
["Sch IIIA","Losses by Zone",null,"Res. Zn 13 - Int'l Casualty Non-Prop.",null,null,null,null,{"$f":"'Schedule IIIA (EBS)'!Q30","v":0}]
["Sch IIIA","Losses by Zone",null,"Res. Zn 13 - Retro Property",null,null,null,null,{"$f":"'Schedule IIIA (EBS)'!Q31","v":0}]
["Sch IIIA","Losses by Zone",null,"Res. Zn 13 - Structured / Finite R/I",null,null,null,null,{"$f":"'Schedule IIIA (EBS)'!Q32","v":0}]
["Sch IIIA","Losses by Zone",null,"Res. Zn 13 - Health",null,null,null,null,{"$f":"'Schedule IIIA (EBS)'!Q33","v":0}]
["Sch IIIA","Losses by Zone",null,"Res. Zn 13 - Total",null,null,null,null,{"$f":"'Schedule IIIA (EBS)'!Q34","v":0}]
["Sch IIIA","Losses by Zone",null,"Res. Zn 14 - Property Catastrophe",null,null,null,null,{"$f":"'Schedule IIIA (EBS)'!R10","v":0}]
["Sch IIIA","Losses by Zone",null,"Res. Zn 14 - Property",null,null,null,null,{"$f":"'Schedule IIIA (EBS)'!R11","v":0}]
["Sch IIIA","Losses by Zone",null,"Res. Zn 14 - Property Non-Proportion",null,null,null,null,{"$f":"'Schedule IIIA (EBS)'!R12","v":0}]
["Sch IIIA","Losses by Zone",null,"Res. Zn 14 - Personal Accident",null,null,null,null,{"$f":"'Schedule IIIA (EBS)'!R13","v":0}]
["Sch IIIA","Losses by Zone",null,"Res. Zn 14 - Personal Acc. Non Prop.",null,null,null,null,{"$f":"'Schedule IIIA (EBS)'!R14","v":0}]
["Sch IIIA","Losses by Zone",null,"Res. Zn 14 - Aviation",null,null,null,null,{"$f":"'Schedule IIIA (EBS)'!R15","v":0}]
["Sch IIIA","Losses by Zone",null,"Res. Zn 14 - Aviation Non-Proportional",null,null,null,null,{"$f":"'Schedule IIIA (EBS)'!R16","v":0}]
["Sch IIIA","Losses by Zone",null,"Res. Zn 14 - Credit Surety",null,null,null,null,{"$f":"'Schedule IIIA (EBS)'!R17","v":0}]
["Sch IIIA","Losses by Zone",null,"Res. Zn 14 - Credit Surety Non-Prop.",null,null,null,null,{"$f":"'Schedule IIIA (EBS)'!R18","v":0}]
["Sch IIIA","Losses by Zone",null,"Res. Zn 14 - Energy",null,null,null,null,{"$f":"'Schedule IIIA (EBS)'!R19","v":0}]
["Sch IIIA","Losses by Zone",null,"Res. Zn 14 - Energy Non-Proportional",null,null,null,null,{"$f":"'Schedule IIIA (EBS)'!R20","v":0}]
["Sch IIIA","Losses by Zone",null,"Res. Zn 14 - US Casualty",null,null,null,null,{"$f":"'Schedule IIIA (EBS)'!R21","v":0}]
["Sch IIIA","Losses by Zone",null,"Res. Zn 14 - US Casualty Non-Prop.",null,null,null,null,{"$f":"'Schedule IIIA (EBS)'!R22","v":0}]
["Sch IIIA","Losses by Zone",null,"Res. Zn 14 - US Professional",null,null,null,null,{"$f":"'Schedule IIIA (EBS)'!R23","v":0}]
["Sch IIIA","Losses by Zone",null,"Res. Zn 14 - US Professional Non-Prop.",null,null,null,null,{"$f":"'Schedule IIIA (EBS)'!R24","v":0}]
["Sch IIIA","Losses by Zone",null,"Res. Zn 14 - US Specialty",null,null,null,null,{"$f":"'Schedule IIIA (EBS)'!R25","v":0}]
["Sch IIIA","Losses by Zone",null,"Res. Zn 14 - US Specialty Non-Prop.",null,null,null,null,{"$f":"'Schedule IIIA (EBS)'!R26","v":0}]
["Sch IIIA","Losses by Zone",null,"Res. Zn 14 - Int'l Motor",null,null,null,null,{"$f":"'Schedule IIIA (EBS)'!R27","v":0}]
["Sch IIIA","Losses by Zone",null,"Res. Zn 14 - Int'l Motor Non-Prop.",null,null,null,null,{"$f":"'Schedule IIIA (EBS)'!R28","v":0}]
["Sch IIIA","Losses by Zone",null,"Res. Zn 14 - Int'l Casualty",null,null,null,null,{"$f":"'Schedule IIIA (EBS)'!R29","v":0}]
["Sch IIIA","Losses by Zone",null,"Res. Zn 14 - Int'l Casualty Non-Prop.",null,null,null,null,{"$f":"'Schedule IIIA (EBS)'!R30","v":0}]
["Sch IIIA","Losses by Zone",null,"Res. Zn 14 - Retro Property",null,null,null,null,{"$f":"'Schedule IIIA (EBS)'!R31","v":0}]
["Sch IIIA","Losses by Zone",null,"Res. Zn 14 - Structured / Finite R/I",null,null,null,null,{"$f":"'Schedule IIIA (EBS)'!R32","v":0}]
["Sch IIIA","Losses by Zone",null,"Res. Zn 14 - Health",null,null,null,null,{"$f":"'Schedule IIIA (EBS)'!R33","v":0}]
["Sch IIIA","Losses by Zone",null,"Res. Zn 14 - Total",null,null,null,null,{"$f":"'Schedule IIIA (EBS)'!R34","v":0}]
["Sch IIIA","Losses by Zone",null,"Res. Zn 15 - Property Catastrophe",null,null,null,null,{"$f":"'Schedule IIIA (EBS)'!S10","v":0}]
["Sch IIIA","Losses by Zone",null,"Res. Zn 15 - Property",null,null,null,null,{"$f":"'Schedule IIIA (EBS)'!S11","v":0}]
["Sch IIIA","Losses by Zone",null,"Res. Zn 15 - Property Non-Proportion",null,null,null,null,{"$f":"'Schedule IIIA (EBS)'!S12","v":0}]
["Sch IIIA","Losses by Zone",null,"Res. Zn 15 - Personal Accident",null,null,null,null,{"$f":"'Schedule IIIA (EBS)'!S13","v":0}]
["Sch IIIA","Losses by Zone",null,"Res. Zn 15 - Personal Acc. Non Prop.",null,null,null,null,{"$f":"'Schedule IIIA (EBS)'!S14","v":0}]
["Sch IIIA","Losses by Zone",null,"Res. Zn 15 - Aviation",null,null,null,null,{"$f":"'Schedule IIIA (EBS)'!S15","v":0}]
["Sch IIIA","Losses by Zone",null,"Res. Zn 15 - Aviation Non-Proportional",null,null,null,null,{"$f":"'Schedule IIIA (EBS)'!S16","v":0}]
["Sch IIIA","Losses by Zone",null,"Res. Zn 15 - Credit Surety",null,null,null,null,{"$f":"'Schedule IIIA (EBS)'!S17","v":0}]
["Sch IIIA","Losses by Zone",null,"Res. Zn 15 - Credit Surety Non-Prop.",null,null,null,null,{"$f":"'Schedule IIIA (EBS)'!S18","v":0}]
["Sch IIIA","Losses by Zone",null,"Res. Zn 15 - Energy",null,null,null,null,{"$f":"'Schedule IIIA (EBS)'!S19","v":0}]
["Sch IIIA","Losses by Zone",null,"Res. Zn 15 - Energy Non-Proportional",null,null,null,null,{"$f":"'Schedule IIIA (EBS)'!S20","v":0}]
["Sch IIIA","Losses by Zone",null,"Res. Zn 15 - US Casualty",null,null,null,null,{"$f":"'Schedule IIIA (EBS)'!S21","v":0}]
["Sch IIIA","Losses by Zone",null,"Res. Zn 15 - US Casualty Non-Prop.",null,null,null,null,{"$f":"'Schedule IIIA (EBS)'!S22","v":0}]
["Sch IIIA","Losses by Zone",null,"Res. Zn 15 - US Professional",null,null,null,null,{"$f":"'Schedule IIIA (EBS)'!S23","v":0}]
["Sch IIIA","Losses by Zone",null,"Res. Zn 15 - US Professional Non-Prop.",null,null,null,null,{"$f":"'Schedule IIIA (EBS)'!S24","v":0}]
["Sch IIIA","Losses by Zone",null,"Res. Zn 15 - US Specialty",null,null,null,null,{"$f":"'Schedule IIIA (EBS)'!S25","v":0}]
["Sch IIIA","Losses by Zone",null,"Res. Zn 15 - US Specialty Non-Prop.",null,null,null,null,{"$f":"'Schedule IIIA (EBS)'!S26","v":0}]
["Sch IIIA","Losses by Zone",null,"Res. Zn 15 - Int'l Motor",null,null,null,null,{"$f":"'Schedule IIIA (EBS)'!S27","v":0}]
["Sch IIIA","Losses by Zone",null,"Res. Zn 15 - Int'l Motor Non-Prop.",null,null,null,null,{"$f":"'Schedule IIIA (EBS)'!S28","v":0}]
["Sch IIIA","Losses by Zone",null,"Res. Zn 15 - Int'l Casualty",null,null,null,null,{"$f":"'Schedule IIIA (EBS)'!S29","v":0}]
["Sch IIIA","Losses by Zone",null,"Res. Zn 15 - Int'l Casualty Non-Prop.",null,null,null,null,{"$f":"'Schedule IIIA (EBS)'!S30","v":0}]
["Sch IIIA","Losses by Zone",null,"Res. Zn 15 - Retro Property",null,null,null,null,{"$f":"'Schedule IIIA (EBS)'!S31","v":0}]
["Sch IIIA","Losses by Zone",null,"Res. Zn 15 - Structured / Finite R/I",null,null,null,null,{"$f":"'Schedule IIIA (EBS)'!S32","v":0}]
["Sch IIIA","Losses by Zone",null,"Res. Zn 15 - Health",null,null,null,null,{"$f":"'Schedule IIIA (EBS)'!S33","v":0}]
["Sch IIIA","Losses by Zone",null,"Res. Zn 15 - Total",null,null,null,null,{"$f":"'Schedule IIIA (EBS)'!S34","v":0}]
["Sch IIIA","Losses by Zone",null,"Res. Zn 16 - Property Catastrophe",null,null,null,null,{"$f":"'Schedule IIIA (EBS)'!T10","v":0}]
["Sch IIIA","Losses by Zone",null,"Res. Zn 16 - Property",null,null,null,null,{"$f":"'Schedule IIIA (EBS)'!T11","v":0}]
["Sch IIIA","Losses by Zone",null,"Res. Zn 16 - Property Non-Proportion",null,null,null,null,{"$f":"'Schedule IIIA (EBS)'!T12","v":0}]
["Sch IIIA","Losses by Zone",null,"Res. Zn 16 - Personal Accident",null,null,null,null,{"$f":"'Schedule IIIA (EBS)'!T13","v":0}]
["Sch IIIA","Losses by Zone",null,"Res. Zn 16 - Personal Acc. Non Prop.",null,null,null,null,{"$f":"'Schedule IIIA (EBS)'!T14","v":0}]
["Sch IIIA","Losses by Zone",null,"Res. Zn 16 - Aviation",null,null,null,null,{"$f":"'Schedule IIIA (EBS)'!T15","v":0}]
["Sch IIIA","Losses by Zone",null,"Res. Zn 16 - Aviation Non-Proportional",null,null,null,null,{"$f":"'Schedule IIIA (EBS)'!T16","v":0}]
["Sch IIIA","Losses by Zone",null,"Res. Zn 16 - Credit Surety",null,null,null,null,{"$f":"'Schedule IIIA (EBS)'!T17","v":0}]
["Sch IIIA","Losses by Zone",null,"Res. Zn 16 - Credit Surety Non-Prop.",null,null,null,null,{"$f":"'Schedule IIIA (EBS)'!T18","v":0}]
["Sch IIIA","Losses by Zone",null,"Res. Zn 16 - Energy",null,null,null,null,{"$f":"'Schedule IIIA (EBS)'!T19","v":0}]
["Sch IIIA","Losses by Zone",null,"Res. Zn 16 - Energy Non-Proportional",null,null,null,null,{"$f":"'Schedule IIIA (EBS)'!T20","v":0}]
["Sch IIIA","Losses by Zone",null,"Res. Zn 16 - US Casualty",null,null,null,null,{"$f":"'Schedule IIIA (EBS)'!T21","v":0}]
["Sch IIIA","Losses by Zone",null,"Res. Zn 16 - US Casualty Non-Prop.",null,null,null,null,{"$f":"'Schedule IIIA (EBS)'!T22","v":0}]
["Sch IIIA","Losses by Zone",null,"Res. Zn 16 - US Professional",null,null,null,null,{"$f":"'Schedule IIIA (EBS)'!T23","v":0}]
["Sch IIIA","Losses by Zone",null,"Res. Zn 16 - US Professional Non-Prop.",null,null,null,null,{"$f":"'Schedule IIIA (EBS)'!T24","v":0}]
["Sch IIIA","Losses by Zone",null,"Res. Zn 16 - US Specialty",null,null,null,null,{"$f":"'Schedule IIIA (EBS)'!T25","v":0}]
["Sch IIIA","Losses by Zone",null,"Res. Zn 16 - US Specialty Non-Prop.",null,null,null,null,{"$f":"'Schedule IIIA (EBS)'!T26","v":0}]
["Sch IIIA","Losses by Zone",null,"Res. Zn 16 - Int'l Motor",null,null,null,null,{"$f":"'Schedule IIIA (EBS)'!T27","v":0}]
["Sch IIIA","Losses by Zone",null,"Res. Zn 16 - Int'l Motor Non-Prop.",null,null,null,null,{"$f":"'Schedule IIIA (EBS)'!T28","v":0}]
["Sch IIIA","Losses by Zone",null,"Res. Zn 16 - Int'l Casualty",null,null,null,null,{"$f":"'Schedule IIIA (EBS)'!T29","v":0}]
["Sch IIIA","Losses by Zone",null,"Res. Zn 16 - Int'l Casualty Non-Prop.",null,null,null,null,{"$f":"'Schedule IIIA (EBS)'!T30","v":0}]
["Sch IIIA","Losses by Zone",null,"Res. Zn 16 - Retro Property",null,null,null,null,{"$f":"'Schedule IIIA (EBS)'!T31","v":0}]
["Sch IIIA","Losses by Zone",null,"Res. Zn 16 - Structured / Finite R/I",null,null,null,null,{"$f":"'Schedule IIIA (EBS)'!T32","v":0}]
["Sch IIIA","Losses by Zone",null,"Res. Zn 16 - Health",null,null,null,null,{"$f":"'Schedule IIIA (EBS)'!T33","v":0}]
["Sch IIIA","Losses by Zone",null,"Res. Zn 16 - Total",null,null,null,null,{"$f":"'Schedule IIIA (EBS)'!T34","v":0}]
["Sch IIIA","Losses by Zone",null,"Res. Zn 17 - Property Catastrophe",null,null,null,null,{"$f":"'Schedule IIIA (EBS)'!U10","v":0}]
["Sch IIIA","Losses by Zone",null,"Res. Zn 17 - Property",null,null,null,null,{"$f":"'Schedule IIIA (EBS)'!U11","v":0}]
["Sch IIIA","Losses by Zone",null,"Res. Zn 17 - Property Non-Proportion",null,null,null,null,{"$f":"'Schedule IIIA (EBS)'!U12","v":0}]
["Sch IIIA","Losses by Zone",null,"Res. Zn 17 - Personal Accident",null,null,null,null,{"$f":"'Schedule IIIA (EBS)'!U13","v":0}]
["Sch IIIA","Losses by Zone",null,"Res. Zn 17 - Personal Acc. Non Prop.",null,null,null,null,{"$f":"'Schedule IIIA (EBS)'!U14","v":0}]
["Sch IIIA","Losses by Zone",null,"Res. Zn 17 - Aviation",null,null,null,null,{"$f":"'Schedule IIIA (EBS)'!U15","v":0}]
["Sch IIIA","Losses by Zone",null,"Res. Zn 17 - Aviation Non-Proportional",null,null,null,null,{"$f":"'Schedule IIIA (EBS)'!U16","v":0}]
["Sch IIIA","Losses by Zone",null,"Res. Zn 17 - Credit Surety",null,null,null,null,{"$f":"'Schedule IIIA (EBS)'!U17","v":0}]
["Sch IIIA","Losses by Zone",null,"Res. Zn 17 - Credit Surety Non-Prop.",null,null,null,null,{"$f":"'Schedule IIIA (EBS)'!U18","v":0}]
["Sch IIIA","Losses by Zone",null,"Res. Zn 17 - Energy",null,null,null,null,{"$f":"'Schedule IIIA (EBS)'!U19","v":0}]
["Sch IIIA","Losses by Zone",null,"Res. Zn 17 - Energy Non-Proportional",null,null,null,null,{"$f":"'Schedule IIIA (EBS)'!U20","v":0}]
["Sch IIIA","Losses by Zone",null,"Res. Zn 17 - US Casualty",null,null,null,null,{"$f":"'Schedule IIIA (EBS)'!U21","v":0}]
["Sch IIIA","Losses by Zone",null,"Res. Zn 17 - US Casualty Non-Prop.",null,null,null,null,{"$f":"'Schedule IIIA (EBS)'!U22","v":0}]
["Sch IIIA","Losses by Zone",null,"Res. Zn 17 - US Professional",null,null,null,null,{"$f":"'Schedule IIIA (EBS)'!U23","v":0}]
["Sch IIIA","Losses by Zone",null,"Res. Zn 17 - US Professional Non-Prop.",null,null,null,null,{"$f":"'Schedule IIIA (EBS)'!U24","v":0}]
["Sch IIIA","Losses by Zone",null,"Res. Zn 17 - US Specialty",null,null,null,null,{"$f":"'Schedule IIIA (EBS)'!U25","v":0}]
["Sch IIIA","Losses by Zone",null,"Res. Zn 17 - US Specialty Non-Prop.",null,null,null,null,{"$f":"'Schedule IIIA (EBS)'!U26","v":0}]
["Sch IIIA","Losses by Zone",null,"Res. Zn 17 - Int'l Motor",null,null,null,null,{"$f":"'Schedule IIIA (EBS)'!U27","v":0}]
["Sch IIIA","Losses by Zone",null,"Res. Zn 17 - Int'l Motor Non-Prop.",null,null,null,null,{"$f":"'Schedule IIIA (EBS)'!U28","v":0}]
["Sch IIIA","Losses by Zone",null,"Res. Zn 17 - Int'l Casualty",null,null,null,null,{"$f":"'Schedule IIIA (EBS)'!U29","v":0}]
["Sch IIIA","Losses by Zone",null,"Res. Zn 17 - Int'l Casualty Non-Prop.",null,null,null,null,{"$f":"'Schedule IIIA (EBS)'!U30","v":0}]
["Sch IIIA","Losses by Zone",null,"Res. Zn 17 - Retro Property",null,null,null,null,{"$f":"'Schedule IIIA (EBS)'!U31","v":0}]
["Sch IIIA","Losses by Zone",null,"Res. Zn 17 - Structured / Finite R/I",null,null,null,null,{"$f":"'Schedule IIIA (EBS)'!U32","v":0}]
["Sch IIIA","Losses by Zone",null,"Res. Zn 17 - Health",null,null,null,null,{"$f":"'Schedule IIIA (EBS)'!U33","v":0}]
["Sch IIIA","Losses by Zone",null,"Res. Zn 17 - Total",null,null,null,null,{"$f":"'Schedule IIIA (EBS)'!U34","v":0}]
["Sch IIIA","Losses by Zone",null,"Res. Zn 18 - Property Catastrophe",null,null,null,null,{"$f":"'Schedule IIIA (EBS)'!V10","v":0}]
["Sch IIIA","Losses by Zone",null,"Res. Zn 18 - Property",null,null,null,null,{"$f":"'Schedule IIIA (EBS)'!V11","v":0}]
["Sch IIIA","Losses by Zone",null,"Res. Zn 18 - Property Non-Proportion",null,null,null,null,{"$f":"'Schedule IIIA (EBS)'!V12","v":0}]
["Sch IIIA","Losses by Zone",null,"Res. Zn 18 - Personal Accident",null,null,null,null,{"$f":"'Schedule IIIA (EBS)'!V13","v":0}]
["Sch IIIA","Losses by Zone",null,"Res. Zn 18 - Personal Acc. Non Prop.",null,null,null,null,{"$f":"'Schedule IIIA (EBS)'!V14","v":0}]
["Sch IIIA","Losses by Zone",null,"Res. Zn 18 - Aviation",null,null,null,null,{"$f":"'Schedule IIIA (EBS)'!V15","v":0}]
["Sch IIIA","Losses by Zone",null,"Res. Zn 18 - Aviation Non-Proportional",null,null,null,null,{"$f":"'Schedule IIIA (EBS)'!V16","v":0}]
["Sch IIIA","Losses by Zone",null,"Res. Zn 18 - Credit Surety",null,null,null,null,{"$f":"'Schedule IIIA (EBS)'!V17","v":0}]
["Sch IIIA","Losses by Zone",null,"Res. Zn 18 - Credit Surety Non-Prop.",null,null,null,null,{"$f":"'Schedule IIIA (EBS)'!V18","v":0}]
["Sch IIIA","Losses by Zone",null,"Res. Zn 18 - Energy",null,null,null,null,{"$f":"'Schedule IIIA (EBS)'!V19","v":0}]
["Sch IIIA","Losses by Zone",null,"Res. Zn 18 - Energy Non-Proportional",null,null,null,null,{"$f":"'Schedule IIIA (EBS)'!V20","v":0}]
["Sch IIIA","Losses by Zone",null,"Res. Zn 18 - US Casualty",null,null,null,null,{"$f":"'Schedule IIIA (EBS)'!V21","v":0}]
["Sch IIIA","Losses by Zone",null,"Res. Zn 18 - US Casualty Non-Prop.",null,null,null,null,{"$f":"'Schedule IIIA (EBS)'!V22","v":0}]
["Sch IIIA","Losses by Zone",null,"Res. Zn 18 - US Professional",null,null,null,null,{"$f":"'Schedule IIIA (EBS)'!V23","v":0}]
["Sch IIIA","Losses by Zone",null,"Res. Zn 18 - US Professional Non-Prop.",null,null,null,null,{"$f":"'Schedule IIIA (EBS)'!V24","v":0}]
["Sch IIIA","Losses by Zone",null,"Res. Zn 18 - US Specialty",null,null,null,null,{"$f":"'Schedule IIIA (EBS)'!V25","v":0}]
["Sch IIIA","Losses by Zone",null,"Res. Zn 18 - US Specialty Non-Prop.",null,null,null,null,{"$f":"'Schedule IIIA (EBS)'!V26","v":0}]
["Sch IIIA","Losses by Zone",null,"Res. Zn 18 - Int'l Motor",null,null,null,null,{"$f":"'Schedule IIIA (EBS)'!V27","v":0}]
["Sch IIIA","Losses by Zone",null,"Res. Zn 18 - Int'l Motor Non-Prop.",null,null,null,null,{"$f":"'Schedule IIIA (EBS)'!V28","v":0}]
["Sch IIIA","Losses by Zone",null,"Res. Zn 18 - Int'l Casualty",null,null,null,null,{"$f":"'Schedule IIIA (EBS)'!V29","v":0}]
["Sch IIIA","Losses by Zone",null,"Res. Zn 18 - Int'l Casualty Non-Prop.",null,null,null,null,{"$f":"'Schedule IIIA (EBS)'!V30","v":0}]
["Sch IIIA","Losses by Zone",null,"Res. Zn 18 - Retro Property",null,null,null,null,{"$f":"'Schedule IIIA (EBS)'!V31","v":0}]
["Sch IIIA","Losses by Zone",null,"Res. Zn 18 - Structured / Finite R/I",null,null,null,null,{"$f":"'Schedule IIIA (EBS)'!V32","v":0}]
["Sch IIIA","Losses by Zone",null,"Res. Zn 18 - Health",null,null,null,null,{"$f":"'Schedule IIIA (EBS)'!V33","v":0}]
["Sch IIIA","Losses by Zone",null,"Res. Zn 18 - Total",null,null,null,null,{"$f":"'Schedule IIIA (EBS)'!V34","v":0}]
[]
["Sch IVA","Premium by Line",null,"Unrelated - Property Catastrophe",{"$f":"'Schedule IVA'!E11","v":0},null,{"$f":"'Schedule IVA'!G11","v":0}]
["Sch IVA","Premium by Line",null,"Unrelated - Property",{"$f":"'Schedule IVA'!E12","v":0},null,{"$f":"'Schedule IVA'!G12","v":0}]
["Sch IVA","Premium by Line",null,"Unrelated - Property Non-Proportion",{"$f":"'Schedule IVA'!E13","v":0},null,{"$f":"'Schedule IVA'!G13","v":0}]
["Sch IVA","Premium by Line",null,"Unrelated - Personal Accident",{"$f":"'Schedule IVA'!E14","v":0},null,{"$f":"'Schedule IVA'!G14","v":0}]
["Sch IVA","Premium by Line",null,"Unrelated - Personal Acc. Non Prop.",{"$f":"'Schedule IVA'!E15","v":0},null,{"$f":"'Schedule IVA'!G15","v":0}]
["Sch IVA","Premium by Line",null,"Unrelated - Aviation",{"$f":"'Schedule IVA'!E16","v":0},null,{"$f":"'Schedule IVA'!G16","v":0}]
["Sch IVA","Premium by Line",null,"Unrelated - Aviation Non-Proportional",{"$f":"'Schedule IVA'!E17","v":0},null,{"$f":"'Schedule IVA'!G17","v":0}]
["Sch IVA","Premium by Line",null,"Unrelated - Credit Surety",{"$f":"'Schedule IVA'!E18","v":0},null,{"$f":"'Schedule IVA'!G18","v":0}]
["Sch IVA","Premium by Line",null,"Unrelated - Credit Surety Non-Prop.",{"$f":"'Schedule IVA'!E19","v":0},null,{"$f":"'Schedule IVA'!G19","v":0}]
["Sch IVA","Premium by Line",null,"Unrelated - Energy",{"$f":"'Schedule IVA'!E20","v":0},null,{"$f":"'Schedule IVA'!G20","v":0}]
["Sch IVA","Premium by Line",null,"Unrelated - Energy Non-Proportional",{"$f":"'Schedule IVA'!E21","v":0},null,{"$f":"'Schedule IVA'!G21","v":0}]
["Sch IVA","Premium by Line",null,"Unrelated - US Casualty",{"$f":"'Schedule IVA'!E22","v":0},null,{"$f":"'Schedule IVA'!G22","v":0}]
["Sch IVA","Premium by Line",null,"Unrelated - US Casualty Non-Prop.",{"$f":"'Schedule IVA'!E23","v":0},null,{"$f":"'Schedule IVA'!G23","v":0}]
["Sch IVA","Premium by Line",null,"Unrelated - US Professional",{"$f":"'Schedule IVA'!E24","v":0},null,{"$f":"'Schedule IVA'!G24","v":0}]
["Sch IVA","Premium by Line",null,"Unrelated - US Professional Non-Prop.",{"$f":"'Schedule IVA'!E25","v":0},null,{"$f":"'Schedule IVA'!G25","v":0}]
["Sch IVA","Premium by Line",null,"Unrelated - US Specialty",{"$f":"'Schedule IVA'!E26","v":0},null,{"$f":"'Schedule IVA'!G26","v":0}]
["Sch IVA","Premium by Line",null,"Unrelated - US Specialty Non-Prop.",{"$f":"'Schedule IVA'!E27","v":0},null,{"$f":"'Schedule IVA'!G27","v":0}]
["Sch IVA","Premium by Line",null,"Unrelated - Int'l Motor",{"$f":"'Schedule IVA'!E28","v":0},null,{"$f":"'Schedule IVA'!G28","v":0}]
["Sch IVA","Premium by Line",null,"Unrelated - Int'l Motor Non-Prop.",{"$f":"'Schedule IVA'!E29","v":0},null,{"$f":"'Schedule IVA'!G29","v":0}]
["Sch IVA","Premium by Line",null,"Unrelated - Int'l Casualty",{"$f":"'Schedule IVA'!E30","v":0},null,{"$f":"'Schedule IVA'!G30","v":0}]
["Sch IVA","Premium by Line",null,"Unrelated - Int'l Casualty Non-Prop.",{"$f":"'Schedule IVA'!E31","v":0},null,{"$f":"'Schedule IVA'!G31","v":0}]
["Sch IVA","Premium by Line",null,"Unrelated - Retro Property",{"$f":"'Schedule IVA'!E32","v":0},null,{"$f":"'Schedule IVA'!G32","v":0}]
["Sch IVA","Premium by Line",null,"Unrelated - Structured / Finite R/I",{"$f":"'Schedule IVA'!E33","v":0},null,{"$f":"'Schedule IVA'!G33","v":0}]
["Sch IVA","Premium by Line",null,"Unrelated - Health",{"$f":"'Schedule IVA'!E34","v":0},null,{"$f":"'Schedule IVA'!G34","v":0}]
["Sch IVA","Premium by Line",null,"Related - Property Catastrophe",{"$f":"'Schedule IVA'!I11","v":0},null,{"$f":"'Schedule IVA'!K11","v":0}]
["Sch IVA","Premium by Line",null,"Related - Property",{"$f":"'Schedule IVA'!I12","v":0},null,{"$f":"'Schedule IVA'!K12","v":0}]
["Sch IVA","Premium by Line",null,"Related - Property Non-Proportion",{"$f":"'Schedule IVA'!I13","v":0},null,{"$f":"'Schedule IVA'!K13","v":0}]
["Sch IVA","Premium by Line",null,"Related - Personal Accident",{"$f":"'Schedule IVA'!I14","v":0},null,{"$f":"'Schedule IVA'!K14","v":0}]
["Sch IVA","Premium by Line",null,"Related - Personal Acc. Non Prop.",{"$f":"'Schedule IVA'!I15","v":0},null,{"$f":"'Schedule IVA'!K15","v":0}]
["Sch IVA","Premium by Line",null,"Related - Aviation",{"$f":"'Schedule IVA'!I16","v":0},null,{"$f":"'Schedule IVA'!K16","v":0}]
["Sch IVA","Premium by Line",null,"Related - Aviation Non-Proportional",{"$f":"'Schedule IVA'!I17","v":0},null,{"$f":"'Schedule IVA'!K17","v":0}]
["Sch IVA","Premium by Line",null,"Related - Credit Surety",{"$f":"'Schedule IVA'!I18","v":0},null,{"$f":"'Schedule IVA'!K18","v":0}]
["Sch IVA","Premium by Line",null,"Related - Credit Surety Non-Prop.",{"$f":"'Schedule IVA'!I19","v":0},null,{"$f":"'Schedule IVA'!K19","v":0}]
["Sch IVA","Premium by Line",null,"Related - Energy",{"$f":"'Schedule IVA'!I20","v":0},null,{"$f":"'Schedule IVA'!K20","v":0}]
["Sch IVA","Premium by Line",null,"Related - Energy Non-Proportional",{"$f":"'Schedule IVA'!I21","v":0},null,{"$f":"'Schedule IVA'!K21","v":0}]
["Sch IVA","Premium by Line",null,"Related - US Casualty",{"$f":"'Schedule IVA'!I22","v":0},null,{"$f":"'Schedule IVA'!K22","v":0}]
["Sch IVA","Premium by Line",null,"Related - US Casualty Non-Prop.",{"$f":"'Schedule IVA'!I23","v":0},null,{"$f":"'Schedule IVA'!K23","v":0}]
["Sch IVA","Premium by Line",null,"Related - US Professional",{"$f":"'Schedule IVA'!I24","v":0},null,{"$f":"'Schedule IVA'!K24","v":0}]
["Sch IVA","Premium by Line",null,"Related - US Professional Non-Prop.",{"$f":"'Schedule IVA'!I25","v":0},null,{"$f":"'Schedule IVA'!K25","v":0}]
["Sch IVA","Premium by Line",null,"Related - US Specialty",{"$f":"'Schedule IVA'!I26","v":0},null,{"$f":"'Schedule IVA'!K26","v":0}]
["Sch IVA","Premium by Line",null,"Related - US Specialty Non-Prop.",{"$f":"'Schedule IVA'!I27","v":0},null,{"$f":"'Schedule IVA'!K27","v":0}]
["Sch IVA","Premium by Line",null,"Related - Int'l Motor",{"$f":"'Schedule IVA'!I28","v":0},null,{"$f":"'Schedule IVA'!K28","v":0}]
["Sch IVA","Premium by Line",null,"Related - Int'l Motor Non-Prop.",{"$f":"'Schedule IVA'!I29","v":0},null,{"$f":"'Schedule IVA'!K29","v":0}]
["Sch IVA","Premium by Line",null,"Related - Int'l Casualty",{"$f":"'Schedule IVA'!I30","v":0},null,{"$f":"'Schedule IVA'!K30","v":0}]
["Sch IVA","Premium by Line",null,"Related - Int'l Casualty Non-Prop.",{"$f":"'Schedule IVA'!I31","v":0},null,{"$f":"'Schedule IVA'!K31","v":0}]
["Sch IVA","Premium by Line",null,"Related - Retro Property",{"$f":"'Schedule IVA'!I32","v":0},null,{"$f":"'Schedule IVA'!K32","v":0}]
["Sch IVA","Premium by Line",null,"Related - Structured / Finite R/I",{"$f":"'Schedule IVA'!I33","v":0},null,{"$f":"'Schedule IVA'!K33","v":0}]
["Sch IVA","Premium by Line",null,"Related - Health",{"$f":"'Schedule IVA'!I34","v":0},null,{"$f":"'Schedule IVA'!K34","v":0}]
["Sch IVA","Premium by Line",null,"NPW - Property Catastrophe",{"$f":"'Schedule IVA'!Q11","v":0},null,{"$f":"'Schedule IVA'!S11","v":0}]
["Sch IVA","Premium by Line",null,"NPW - Property",{"$f":"'Schedule IVA'!Q12","v":0},null,{"$f":"'Schedule IVA'!S12","v":0}]
["Sch IVA","Premium by Line",null,"NPW - Property Non-Proportion",{"$f":"'Schedule IVA'!Q13","v":0},null,{"$f":"'Schedule IVA'!S13","v":0}]
["Sch IVA","Premium by Line",null,"NPW - Personal Accident",{"$f":"'Schedule IVA'!Q14","v":0},null,{"$f":"'Schedule IVA'!S14","v":0}]
["Sch IVA","Premium by Line",null,"NPW - Personal Acc. Non Prop.",{"$f":"'Schedule IVA'!Q15","v":0},null,{"$f":"'Schedule IVA'!S15","v":0}]
["Sch IVA","Premium by Line",null,"NPW - Aviation",{"$f":"'Schedule IVA'!Q16","v":0},null,{"$f":"'Schedule IVA'!S16","v":0}]
["Sch IVA","Premium by Line",null,"NPW - Aviation Non-Proportional",{"$f":"'Schedule IVA'!Q17","v":0},null,{"$f":"'Schedule IVA'!S17","v":0}]
["Sch IVA","Premium by Line",null,"NPW - Credit Surety",{"$f":"'Schedule IVA'!Q18","v":0},null,{"$f":"'Schedule IVA'!S18","v":0}]
["Sch IVA","Premium by Line",null,"NPW - Credit Surety Non-Prop.",{"$f":"'Schedule IVA'!Q19","v":0},null,{"$f":"'Schedule IVA'!S19","v":0}]
["Sch IVA","Premium by Line",null,"NPW - Energy",{"$f":"'Schedule IVA'!Q20","v":0},null,{"$f":"'Schedule IVA'!S20","v":0}]
["Sch IVA","Premium by Line",null,"NPW - Energy Non-Proportional",{"$f":"'Schedule IVA'!Q21","v":0},null,{"$f":"'Schedule IVA'!S21","v":0}]
["Sch IVA","Premium by Line",null,"NPW - US Casualty",{"$f":"'Schedule IVA'!Q22","v":0},null,{"$f":"'Schedule IVA'!S22","v":0}]
["Sch IVA","Premium by Line",null,"NPW - US Casualty Non-Prop.",{"$f":"'Schedule IVA'!Q23","v":0},null,{"$f":"'Schedule IVA'!S23","v":0}]
["Sch IVA","Premium by Line",null,"NPW - US Professional",{"$f":"'Schedule IVA'!Q24","v":0},null,{"$f":"'Schedule IVA'!S24","v":0}]
["Sch IVA","Premium by Line",null,"NPW - US Professional Non-Prop.",{"$f":"'Schedule IVA'!Q25","v":0},null,{"$f":"'Schedule IVA'!S25","v":0}]
["Sch IVA","Premium by Line",null,"NPW - US Specialty",{"$f":"'Schedule IVA'!Q26","v":0},null,{"$f":"'Schedule IVA'!S26","v":0}]
["Sch IVA","Premium by Line",null,"NPW - US Specialty Non-Prop.",{"$f":"'Schedule IVA'!Q27","v":0},null,{"$f":"'Schedule IVA'!S27","v":0}]
["Sch IVA","Premium by Line",null,"NPW - Int'l Motor",{"$f":"'Schedule IVA'!Q28","v":0},null,{"$f":"'Schedule IVA'!S28","v":0}]
["Sch IVA","Premium by Line",null,"NPW - Int'l Motor Non-Prop.",{"$f":"'Schedule IVA'!Q29","v":0},null,{"$f":"'Schedule IVA'!S29","v":0}]
["Sch IVA","Premium by Line",null,"NPW - Int'l Casualty",{"$f":"'Schedule IVA'!Q30","v":0},null,{"$f":"'Schedule IVA'!S30","v":0}]
["Sch IVA","Premium by Line",null,"NPW - Int'l Casualty Non-Prop.",{"$f":"'Schedule IVA'!Q31","v":0},null,{"$f":"'Schedule IVA'!S31","v":0}]
["Sch IVA","Premium by Line",null,"NPW - Retro Property",{"$f":"'Schedule IVA'!Q32","v":0},null,{"$f":"'Schedule IVA'!S32","v":0}]
["Sch IVA","Premium by Line",null,"NPW - Structured / Finite R/I",{"$f":"'Schedule IVA'!Q33","v":0},null,{"$f":"'Schedule IVA'!S33","v":0}]
["Sch IVA","Premium by Line",null,"NPW - Health",{"$f":"'Schedule IVA'!Q34","v":0},null,{"$f":"'Schedule IVA'!S34","v":0}]
["Sch IVC","Premium by Zone",null,"NPW Zn 1 - Property Catastrophe",{"$f":"'Schedule IVC (EBS)'!E9","v":0}]
["Sch IVC","Premium by Zone",null,"NPW Zn 1 - Property",{"$f":"'Schedule IVC (EBS)'!E10","v":0}]
["Sch IVC","Premium by Zone",null,"NPW Zn 1 - Property Non-Proportion",{"$f":"'Schedule IVC (EBS)'!E11","v":0}]
["Sch IVC","Premium by Zone",null,"NPW Zn 1 - Personal Accident",{"$f":"'Schedule IVC (EBS)'!E12","v":0}]
["Sch IVC","Premium by Zone",null,"NPW Zn 1 - Personal Acc. Non Prop.",{"$f":"'Schedule IVC (EBS)'!E13","v":0}]
["Sch IVC","Premium by Zone",null,"NPW Zn 1 - Aviation",{"$f":"'Schedule IVC (EBS)'!E14","v":0}]
["Sch IVC","Premium by Zone",null,"NPW Zn 1 - Aviation Non-Proportional",{"$f":"'Schedule IVC (EBS)'!E15","v":0}]
["Sch IVC","Premium by Zone",null,"NPW Zn 1 - Credit Surety",{"$f":"'Schedule IVC (EBS)'!E16","v":0}]
["Sch IVC","Premium by Zone",null,"NPW Zn 1 - Credit Surety Non-Prop.",{"$f":"'Schedule IVC (EBS)'!E17","v":0}]
["Sch IVC","Premium by Zone",null,"NPW Zn 1 - Energy",{"$f":"'Schedule IVC (EBS)'!E18","v":0}]
["Sch IVC","Premium by Zone",null,"NPW Zn 1 - Energy Non-Proportional",{"$f":"'Schedule IVC (EBS)'!E19","v":0}]
["Sch IVC","Premium by Zone",null,"NPW Zn 1 - US Casualty",{"$f":"'Schedule IVC (EBS)'!E20","v":0}]
["Sch IVC","Premium by Zone",null,"NPW Zn 1 - US Casualty Non-Prop.",{"$f":"'Schedule IVC (EBS)'!E21","v":0}]
["Sch IVC","Premium by Zone",null,"NPW Zn 1 - US Professional",{"$f":"'Schedule IVC (EBS)'!E22","v":0}]
["Sch IVC","Premium by Zone",null,"NPW Zn 1 - US Professional Non-Prop.",{"$f":"'Schedule IVC (EBS)'!E23","v":0}]
["Sch IVC","Premium by Zone",null,"NPW Zn 1 - US Specialty",{"$f":"'Schedule IVC (EBS)'!E24","v":0}]
["Sch IVC","Premium by Zone",null,"NPW Zn 1 - US Specialty Non-Prop.",{"$f":"'Schedule IVC (EBS)'!E25","v":0}]
["Sch IVC","Premium by Zone",null,"NPW Zn 1 - Int'l Motor",{"$f":"'Schedule IVC (EBS)'!E26","v":0}]
["Sch IVC","Premium by Zone",null,"NPW Zn 1 - Int'l Motor Non-Prop.",{"$f":"'Schedule IVC (EBS)'!E27","v":0}]
["Sch IVC","Premium by Zone",null,"NPW Zn 1 - Int'l Casualty",{"$f":"'Schedule IVC (EBS)'!E28","v":0}]
["Sch IVC","Premium by Zone",null,"NPW Zn 1 - Int'l Casualty Non-Prop.",{"$f":"'Schedule IVC (EBS)'!E29","v":0}]
["Sch IVC","Premium by Zone",null,"NPW Zn 1 - Retro Property",{"$f":"'Schedule IVC (EBS)'!E30","v":0}]
["Sch IVC","Premium by Zone",null,"NPW Zn 1 - Structured / Finite R/I",{"$f":"'Schedule IVC (EBS)'!E31","v":0}]
["Sch IVC","Premium by Zone",null,"NPW Zn 1 - Health",{"$f":"'Schedule IVC (EBS)'!E32","v":0}]
["Sch IVC","Premium by Zone",null,"NPW Zn 1 - Total",{"$f":"'Schedule IVC (EBS)'!E33","v":0}]
["Sch IVC","Premium by Zone",null,"NPW Zn 2 - Property Catastrophe",{"$f":"'Schedule IVC (EBS)'!F9","v":0}]
["Sch IVC","Premium by Zone",null,"NPW Zn 2 - Property",{"$f":"'Schedule IVC (EBS)'!F10","v":0}]
["Sch IVC","Premium by Zone",null,"NPW Zn 2 - Property Non-Proportion",{"$f":"'Schedule IVC (EBS)'!F11","v":0}]
["Sch IVC","Premium by Zone",null,"NPW Zn 2 - Personal Accident",{"$f":"'Schedule IVC (EBS)'!F12","v":0}]
["Sch IVC","Premium by Zone",null,"NPW Zn 2 - Personal Acc. Non Prop.",{"$f":"'Schedule IVC (EBS)'!F13","v":0}]
["Sch IVC","Premium by Zone",null,"NPW Zn 2 - Aviation",{"$f":"'Schedule IVC (EBS)'!F14","v":0}]
["Sch IVC","Premium by Zone",null,"NPW Zn 2 - Aviation Non-Proportional",{"$f":"'Schedule IVC (EBS)'!F15","v":0}]
["Sch IVC","Premium by Zone",null,"NPW Zn 2 - Credit Surety",{"$f":"'Schedule IVC (EBS)'!F16","v":0}]
["Sch IVC","Premium by Zone",null,"NPW Zn 2 - Credit Surety Non-Prop.",{"$f":"'Schedule IVC (EBS)'!F17","v":0}]
["Sch IVC","Premium by Zone",null,"NPW Zn 2 - Energy",{"$f":"'Schedule IVC (EBS)'!F18","v":0}]
["Sch IVC","Premium by Zone",null,"NPW Zn 2 - Energy Non-Proportional",{"$f":"'Schedule IVC (EBS)'!F19","v":0}]
["Sch IVC","Premium by Zone",null,"NPW Zn 2 - US Casualty",{"$f":"'Schedule IVC (EBS)'!F20","v":0}]
["Sch IVC","Premium by Zone",null,"NPW Zn 2 - US Casualty Non-Prop.",{"$f":"'Schedule IVC (EBS)'!F21","v":0}]
["Sch IVC","Premium by Zone",null,"NPW Zn 2 - US Professional",{"$f":"'Schedule IVC (EBS)'!F22","v":0}]
["Sch IVC","Premium by Zone",null,"NPW Zn 2 - US Professional Non-Prop.",{"$f":"'Schedule IVC (EBS)'!F23","v":0}]
["Sch IVC","Premium by Zone",null,"NPW Zn 2 - US Specialty",{"$f":"'Schedule IVC (EBS)'!F24","v":0}]
["Sch IVC","Premium by Zone",null,"NPW Zn 2 - US Specialty Non-Prop.",{"$f":"'Schedule IVC (EBS)'!F25","v":0}]
["Sch IVC","Premium by Zone",null,"NPW Zn 2 - Int'l Motor",{"$f":"'Schedule IVC (EBS)'!F26","v":0}]
["Sch IVC","Premium by Zone",null,"NPW Zn 2 - Int'l Motor Non-Prop.",{"$f":"'Schedule IVC (EBS)'!F27","v":0}]
["Sch IVC","Premium by Zone",null,"NPW Zn 2 - Int'l Casualty",{"$f":"'Schedule IVC (EBS)'!F28","v":0}]
["Sch IVC","Premium by Zone",null,"NPW Zn 2 - Int'l Casualty Non-Prop.",{"$f":"'Schedule IVC (EBS)'!F29","v":0}]
["Sch IVC","Premium by Zone",null,"NPW Zn 2 - Retro Property",{"$f":"'Schedule IVC (EBS)'!F30","v":0}]
["Sch IVC","Premium by Zone",null,"NPW Zn 2 - Structured / Finite R/I",{"$f":"'Schedule IVC (EBS)'!F31","v":0}]
["Sch IVC","Premium by Zone",null,"NPW Zn 2 - Health",{"$f":"'Schedule IVC (EBS)'!F32","v":0}]
["Sch IVC","Premium by Zone",null,"NPW Zn 2 - Total",{"$f":"'Schedule IVC (EBS)'!F33","v":0}]
["Sch IVC","Premium by Zone",null,"NPW Zn 3 - Property Catastrophe",{"$f":"'Schedule IVC (EBS)'!G9","v":0}]
["Sch IVC","Premium by Zone",null,"NPW Zn 3 - Property",{"$f":"'Schedule IVC (EBS)'!G10","v":0}]
["Sch IVC","Premium by Zone",null,"NPW Zn 3 - Property Non-Proportion",{"$f":"'Schedule IVC (EBS)'!G11","v":0}]
["Sch IVC","Premium by Zone",null,"NPW Zn 3 - Personal Accident",{"$f":"'Schedule IVC (EBS)'!G12","v":0}]
["Sch IVC","Premium by Zone",null,"NPW Zn 3 - Personal Acc. Non Prop.",{"$f":"'Schedule IVC (EBS)'!G13","v":0}]
["Sch IVC","Premium by Zone",null,"NPW Zn 3 - Aviation",{"$f":"'Schedule IVC (EBS)'!G14","v":0}]
["Sch IVC","Premium by Zone",null,"NPW Zn 3 - Aviation Non-Proportional",{"$f":"'Schedule IVC (EBS)'!G15","v":0}]
["Sch IVC","Premium by Zone",null,"NPW Zn 3 - Credit Surety",{"$f":"'Schedule IVC (EBS)'!G16","v":0}]
["Sch IVC","Premium by Zone",null,"NPW Zn 3 - Credit Surety Non-Prop.",{"$f":"'Schedule IVC (EBS)'!G17","v":0}]
["Sch IVC","Premium by Zone",null,"NPW Zn 3 - Energy",{"$f":"'Schedule IVC (EBS)'!G18","v":0}]
["Sch IVC","Premium by Zone",null,"NPW Zn 3 - Energy Non-Proportional",{"$f":"'Schedule IVC (EBS)'!G19","v":0}]
["Sch IVC","Premium by Zone",null,"NPW Zn 3 - US Casualty",{"$f":"'Schedule IVC (EBS)'!G20","v":0}]
["Sch IVC","Premium by Zone",null,"NPW Zn 3 - US Casualty Non-Prop.",{"$f":"'Schedule IVC (EBS)'!G21","v":0}]
["Sch IVC","Premium by Zone",null,"NPW Zn 3 - US Professional",{"$f":"'Schedule IVC (EBS)'!G22","v":0}]
["Sch IVC","Premium by Zone",null,"NPW Zn 3 - US Professional Non-Prop.",{"$f":"'Schedule IVC (EBS)'!G23","v":0}]
["Sch IVC","Premium by Zone",null,"NPW Zn 3 - US Specialty",{"$f":"'Schedule IVC (EBS)'!G24","v":0}]
["Sch IVC","Premium by Zone",null,"NPW Zn 3 - US Specialty Non-Prop.",{"$f":"'Schedule IVC (EBS)'!G25","v":0}]
["Sch IVC","Premium by Zone",null,"NPW Zn 3 - Int'l Motor",{"$f":"'Schedule IVC (EBS)'!G26","v":0}]
["Sch IVC","Premium by Zone",null,"NPW Zn 3 - Int'l Motor Non-Prop.",{"$f":"'Schedule IVC (EBS)'!G27","v":0}]
["Sch IVC","Premium by Zone",null,"NPW Zn 3 - Int'l Casualty",{"$f":"'Schedule IVC (EBS)'!G28","v":0}]
["Sch IVC","Premium by Zone",null,"NPW Zn 3 - Int'l Casualty Non-Prop.",{"$f":"'Schedule IVC (EBS)'!G29","v":0}]
["Sch IVC","Premium by Zone",null,"NPW Zn 3 - Retro Property",{"$f":"'Schedule IVC (EBS)'!G30","v":0}]
["Sch IVC","Premium by Zone",null,"NPW Zn 3 - Structured / Finite R/I",{"$f":"'Schedule IVC (EBS)'!G31","v":0}]
["Sch IVC","Premium by Zone",null,"NPW Zn 3 - Health",{"$f":"'Schedule IVC (EBS)'!G32","v":0}]
["Sch IVC","Premium by Zone",null,"NPW Zn 3 - Total",{"$f":"'Schedule IVC (EBS)'!G33","v":0}]
["Sch IVC","Premium by Zone",null,"NPW Zn 4 - Property Catastrophe",{"$f":"'Schedule IVC (EBS)'!H9","v":0}]
["Sch IVC","Premium by Zone",null,"NPW Zn 4 - Property",{"$f":"'Schedule IVC (EBS)'!H10","v":0}]
["Sch IVC","Premium by Zone",null,"NPW Zn 4 - Property Non-Proportion",{"$f":"'Schedule IVC (EBS)'!H11","v":0}]
["Sch IVC","Premium by Zone",null,"NPW Zn 4 - Personal Accident",{"$f":"'Schedule IVC (EBS)'!H12","v":0}]
["Sch IVC","Premium by Zone",null,"NPW Zn 4 - Personal Acc. Non Prop.",{"$f":"'Schedule IVC (EBS)'!H13","v":0}]
["Sch IVC","Premium by Zone",null,"NPW Zn 4 - Aviation",{"$f":"'Schedule IVC (EBS)'!H14","v":0}]
["Sch IVC","Premium by Zone",null,"NPW Zn 4 - Aviation Non-Proportional",{"$f":"'Schedule IVC (EBS)'!H15","v":0}]
["Sch IVC","Premium by Zone",null,"NPW Zn 4 - Credit Surety",{"$f":"'Schedule IVC (EBS)'!H16","v":0}]
["Sch IVC","Premium by Zone",null,"NPW Zn 4 - Credit Surety Non-Prop.",{"$f":"'Schedule IVC (EBS)'!H17","v":0}]
["Sch IVC","Premium by Zone",null,"NPW Zn 4 - Energy",{"$f":"'Schedule IVC (EBS)'!H18","v":0}]
["Sch IVC","Premium by Zone",null,"NPW Zn 4 - Energy Non-Proportional",{"$f":"'Schedule IVC (EBS)'!H19","v":0}]
["Sch IVC","Premium by Zone",null,"NPW Zn 4 - US Casualty",{"$f":"'Schedule IVC (EBS)'!H20","v":0}]
["Sch IVC","Premium by Zone",null,"NPW Zn 4 - US Casualty Non-Prop.",{"$f":"'Schedule IVC (EBS)'!H21","v":0}]
["Sch IVC","Premium by Zone",null,"NPW Zn 4 - US Professional",{"$f":"'Schedule IVC (EBS)'!H22","v":0}]
["Sch IVC","Premium by Zone",null,"NPW Zn 4 - US Professional Non-Prop.",{"$f":"'Schedule IVC (EBS)'!H23","v":0}]
["Sch IVC","Premium by Zone",null,"NPW Zn 4 - US Specialty",{"$f":"'Schedule IVC (EBS)'!H24","v":0}]
["Sch IVC","Premium by Zone",null,"NPW Zn 4 - US Specialty Non-Prop.",{"$f":"'Schedule IVC (EBS)'!H25","v":0}]
["Sch IVC","Premium by Zone",null,"NPW Zn 4 - Int'l Motor",{"$f":"'Schedule IVC (EBS)'!H26","v":0}]
["Sch IVC","Premium by Zone",null,"NPW Zn 4 - Int'l Motor Non-Prop.",{"$f":"'Schedule IVC (EBS)'!H27","v":0}]
["Sch IVC","Premium by Zone",null,"NPW Zn 4 - Int'l Casualty",{"$f":"'Schedule IVC (EBS)'!H28","v":0}]
["Sch IVC","Premium by Zone",null,"NPW Zn 4 - Int'l Casualty Non-Prop.",{"$f":"'Schedule IVC (EBS)'!H29","v":0}]
["Sch IVC","Premium by Zone",null,"NPW Zn 4 - Retro Property",{"$f":"'Schedule IVC (EBS)'!H30","v":0}]
["Sch IVC","Premium by Zone",null,"NPW Zn 4 - Structured / Finite R/I",{"$f":"'Schedule IVC (EBS)'!H31","v":0}]
["Sch IVC","Premium by Zone",null,"NPW Zn 4 - Health",{"$f":"'Schedule IVC (EBS)'!H32","v":0}]
["Sch IVC","Premium by Zone",null,"NPW Zn 4 - Total",{"$f":"'Schedule IVC (EBS)'!H33","v":0}]
["Sch IVC","Premium by Zone",null,"NPW Zn 5 - Property Catastrophe",{"$f":"'Schedule IVC (EBS)'!I9","v":0}]
["Sch IVC","Premium by Zone",null,"NPW Zn 5 - Property",{"$f":"'Schedule IVC (EBS)'!I10","v":0}]
["Sch IVC","Premium by Zone",null,"NPW Zn 5 - Property Non-Proportion",{"$f":"'Schedule IVC (EBS)'!I11","v":0}]
["Sch IVC","Premium by Zone",null,"NPW Zn 5 - Personal Accident",{"$f":"'Schedule IVC (EBS)'!I12","v":0}]
["Sch IVC","Premium by Zone",null,"NPW Zn 5 - Personal Acc. Non Prop.",{"$f":"'Schedule IVC (EBS)'!I13","v":0}]
["Sch IVC","Premium by Zone",null,"NPW Zn 5 - Aviation",{"$f":"'Schedule IVC (EBS)'!I14","v":0}]
["Sch IVC","Premium by Zone",null,"NPW Zn 5 - Aviation Non-Proportional",{"$f":"'Schedule IVC (EBS)'!I15","v":0}]
["Sch IVC","Premium by Zone",null,"NPW Zn 5 - Credit Surety",{"$f":"'Schedule IVC (EBS)'!I16","v":0}]
["Sch IVC","Premium by Zone",null,"NPW Zn 5 - Credit Surety Non-Prop.",{"$f":"'Schedule IVC (EBS)'!I17","v":0}]
["Sch IVC","Premium by Zone",null,"NPW Zn 5 - Energy",{"$f":"'Schedule IVC (EBS)'!I18","v":0}]
["Sch IVC","Premium by Zone",null,"NPW Zn 5 - Energy Non-Proportional",{"$f":"'Schedule IVC (EBS)'!I19","v":0}]
["Sch IVC","Premium by Zone",null,"NPW Zn 5 - US Casualty",{"$f":"'Schedule IVC (EBS)'!I20","v":0}]
["Sch IVC","Premium by Zone",null,"NPW Zn 5 - US Casualty Non-Prop.",{"$f":"'Schedule IVC (EBS)'!I21","v":0}]
["Sch IVC","Premium by Zone",null,"NPW Zn 5 - US Professional",{"$f":"'Schedule IVC (EBS)'!I22","v":0}]
["Sch IVC","Premium by Zone",null,"NPW Zn 5 - US Professional Non-Prop.",{"$f":"'Schedule IVC (EBS)'!I23","v":0}]
["Sch IVC","Premium by Zone",null,"NPW Zn 5 - US Specialty",{"$f":"'Schedule IVC (EBS)'!I24","v":0}]
["Sch IVC","Premium by Zone",null,"NPW Zn 5 - US Specialty Non-Prop.",{"$f":"'Schedule IVC (EBS)'!I25","v":0}]
["Sch IVC","Premium by Zone",null,"NPW Zn 5 - Int'l Motor",{"$f":"'Schedule IVC (EBS)'!I26","v":0}]
["Sch IVC","Premium by Zone",null,"NPW Zn 5 - Int'l Motor Non-Prop.",{"$f":"'Schedule IVC (EBS)'!I27","v":0}]
["Sch IVC","Premium by Zone",null,"NPW Zn 5 - Int'l Casualty",{"$f":"'Schedule IVC (EBS)'!I28","v":0}]
["Sch IVC","Premium by Zone",null,"NPW Zn 5 - Int'l Casualty Non-Prop.",{"$f":"'Schedule IVC (EBS)'!I29","v":0}]
["Sch IVC","Premium by Zone",null,"NPW Zn 5 - Retro Property",{"$f":"'Schedule IVC (EBS)'!I30","v":0}]
["Sch IVC","Premium by Zone",null,"NPW Zn 5 - Structured / Finite R/I",{"$f":"'Schedule IVC (EBS)'!I31","v":0}]
["Sch IVC","Premium by Zone",null,"NPW Zn 5 - Health",{"$f":"'Schedule IVC (EBS)'!I32","v":0}]
["Sch IVC","Premium by Zone",null,"NPW Zn 5 - Total",{"$f":"'Schedule IVC (EBS)'!I33","v":0}]
["Sch IVC","Premium by Zone",null,"NPW Zn 6 - Property Catastrophe",{"$f":"'Schedule IVC (EBS)'!J9","v":0}]
["Sch IVC","Premium by Zone",null,"NPW Zn 6 - Property",{"$f":"'Schedule IVC (EBS)'!J10","v":0}]
["Sch IVC","Premium by Zone",null,"NPW Zn 6 - Property Non-Proportion",{"$f":"'Schedule IVC (EBS)'!J11","v":0}]
["Sch IVC","Premium by Zone",null,"NPW Zn 6 - Personal Accident",{"$f":"'Schedule IVC (EBS)'!J12","v":0}]
["Sch IVC","Premium by Zone",null,"NPW Zn 6 - Personal Acc. Non Prop.",{"$f":"'Schedule IVC (EBS)'!J13","v":0}]
["Sch IVC","Premium by Zone",null,"NPW Zn 6 - Aviation",{"$f":"'Schedule IVC (EBS)'!J14","v":0}]
["Sch IVC","Premium by Zone",null,"NPW Zn 6 - Aviation Non-Proportional",{"$f":"'Schedule IVC (EBS)'!J15","v":0}]
["Sch IVC","Premium by Zone",null,"NPW Zn 6 - Credit Surety",{"$f":"'Schedule IVC (EBS)'!J16","v":0}]
["Sch IVC","Premium by Zone",null,"NPW Zn 6 - Credit Surety Non-Prop.",{"$f":"'Schedule IVC (EBS)'!J17","v":0}]
["Sch IVC","Premium by Zone",null,"NPW Zn 6 - Energy",{"$f":"'Schedule IVC (EBS)'!J18","v":0}]
["Sch IVC","Premium by Zone",null,"NPW Zn 6 - Energy Non-Proportional",{"$f":"'Schedule IVC (EBS)'!J19","v":0}]
["Sch IVC","Premium by Zone",null,"NPW Zn 6 - US Casualty",{"$f":"'Schedule IVC (EBS)'!J20","v":0}]
["Sch IVC","Premium by Zone",null,"NPW Zn 6 - US Casualty Non-Prop.",{"$f":"'Schedule IVC (EBS)'!J21","v":0}]
["Sch IVC","Premium by Zone",null,"NPW Zn 6 - US Professional",{"$f":"'Schedule IVC (EBS)'!J22","v":0}]
["Sch IVC","Premium by Zone",null,"NPW Zn 6 - US Professional Non-Prop.",{"$f":"'Schedule IVC (EBS)'!J23","v":0}]
["Sch IVC","Premium by Zone",null,"NPW Zn 6 - US Specialty",{"$f":"'Schedule IVC (EBS)'!J24","v":0}]
["Sch IVC","Premium by Zone",null,"NPW Zn 6 - US Specialty Non-Prop.",{"$f":"'Schedule IVC (EBS)'!J25","v":0}]
["Sch IVC","Premium by Zone",null,"NPW Zn 6 - Int'l Motor",{"$f":"'Schedule IVC (EBS)'!J26","v":0}]
["Sch IVC","Premium by Zone",null,"NPW Zn 6 - Int'l Motor Non-Prop.",{"$f":"'Schedule IVC (EBS)'!J27","v":0}]
["Sch IVC","Premium by Zone",null,"NPW Zn 6 - Int'l Casualty",{"$f":"'Schedule IVC (EBS)'!J28","v":0}]
["Sch IVC","Premium by Zone",null,"NPW Zn 6 - Int'l Casualty Non-Prop.",{"$f":"'Schedule IVC (EBS)'!J29","v":0}]
["Sch IVC","Premium by Zone",null,"NPW Zn 6 - Retro Property",{"$f":"'Schedule IVC (EBS)'!J30","v":0}]
["Sch IVC","Premium by Zone",null,"NPW Zn 6 - Structured / Finite R/I",{"$f":"'Schedule IVC (EBS)'!J31","v":0}]
["Sch IVC","Premium by Zone",null,"NPW Zn 6 - Health",{"$f":"'Schedule IVC (EBS)'!J32","v":0}]
["Sch IVC","Premium by Zone",null,"NPW Zn 6 - Total",{"$f":"'Schedule IVC (EBS)'!J33","v":0}]
["Sch IVC","Premium by Zone",null,"NPW Zn 7 - Property Catastrophe",{"$f":"'Schedule IVC (EBS)'!K9","v":0}]
["Sch IVC","Premium by Zone",null,"NPW Zn 7 - Property",{"$f":"'Schedule IVC (EBS)'!K10","v":0}]
["Sch IVC","Premium by Zone",null,"NPW Zn 7 - Property Non-Proportion",{"$f":"'Schedule IVC (EBS)'!K11","v":0}]
["Sch IVC","Premium by Zone",null,"NPW Zn 7 - Personal Accident",{"$f":"'Schedule IVC (EBS)'!K12","v":0}]
["Sch IVC","Premium by Zone",null,"NPW Zn 7 - Personal Acc. Non Prop.",{"$f":"'Schedule IVC (EBS)'!K13","v":0}]
["Sch IVC","Premium by Zone",null,"NPW Zn 7 - Aviation",{"$f":"'Schedule IVC (EBS)'!K14","v":0}]
["Sch IVC","Premium by Zone",null,"NPW Zn 7 - Aviation Non-Proportional",{"$f":"'Schedule IVC (EBS)'!K15","v":0}]
["Sch IVC","Premium by Zone",null,"NPW Zn 7 - Credit Surety",{"$f":"'Schedule IVC (EBS)'!K16","v":0}]
["Sch IVC","Premium by Zone",null,"NPW Zn 7 - Credit Surety Non-Prop.",{"$f":"'Schedule IVC (EBS)'!K17","v":0}]
["Sch IVC","Premium by Zone",null,"NPW Zn 7 - Energy",{"$f":"'Schedule IVC (EBS)'!K18","v":0}]
["Sch IVC","Premium by Zone",null,"NPW Zn 7 - Energy Non-Proportional",{"$f":"'Schedule IVC (EBS)'!K19","v":0}]
["Sch IVC","Premium by Zone",null,"NPW Zn 7 - US Casualty",{"$f":"'Schedule IVC (EBS)'!K20","v":0}]
["Sch IVC","Premium by Zone",null,"NPW Zn 7 - US Casualty Non-Prop.",{"$f":"'Schedule IVC (EBS)'!K21","v":0}]
["Sch IVC","Premium by Zone",null,"NPW Zn 7 - US Professional",{"$f":"'Schedule IVC (EBS)'!K22","v":0}]
["Sch IVC","Premium by Zone",null,"NPW Zn 7 - US Professional Non-Prop.",{"$f":"'Schedule IVC (EBS)'!K23","v":0}]
["Sch IVC","Premium by Zone",null,"NPW Zn 7 - US Specialty",{"$f":"'Schedule IVC (EBS)'!K24","v":0}]
["Sch IVC","Premium by Zone",null,"NPW Zn 7 - US Specialty Non-Prop.",{"$f":"'Schedule IVC (EBS)'!K25","v":0}]
["Sch IVC","Premium by Zone",null,"NPW Zn 7 - Int'l Motor",{"$f":"'Schedule IVC (EBS)'!K26","v":0}]
["Sch IVC","Premium by Zone",null,"NPW Zn 7 - Int'l Motor Non-Prop.",{"$f":"'Schedule IVC (EBS)'!K27","v":0}]
["Sch IVC","Premium by Zone",null,"NPW Zn 7 - Int'l Casualty",{"$f":"'Schedule IVC (EBS)'!K28","v":0}]
["Sch IVC","Premium by Zone",null,"NPW Zn 7 - Int'l Casualty Non-Prop.",{"$f":"'Schedule IVC (EBS)'!K29","v":0}]
["Sch IVC","Premium by Zone",null,"NPW Zn 7 - Retro Property",{"$f":"'Schedule IVC (EBS)'!K30","v":0}]
["Sch IVC","Premium by Zone",null,"NPW Zn 7 - Structured / Finite R/I",{"$f":"'Schedule IVC (EBS)'!K31","v":0}]
["Sch IVC","Premium by Zone",null,"NPW Zn 7 - Health",{"$f":"'Schedule IVC (EBS)'!K32","v":0}]
["Sch IVC","Premium by Zone",null,"NPW Zn 7 - Total",{"$f":"'Schedule IVC (EBS)'!K33","v":0}]
["Sch IVC","Premium by Zone",null,"NPW Zn 8 - Property Catastrophe",{"$f":"'Schedule IVC (EBS)'!L9","v":0}]
["Sch IVC","Premium by Zone",null,"NPW Zn 8 - Property",{"$f":"'Schedule IVC (EBS)'!L10","v":0}]
["Sch IVC","Premium by Zone",null,"NPW Zn 8 - Property Non-Proportion",{"$f":"'Schedule IVC (EBS)'!L11","v":0}]
["Sch IVC","Premium by Zone",null,"NPW Zn 8 - Personal Accident",{"$f":"'Schedule IVC (EBS)'!L12","v":0}]
["Sch IVC","Premium by Zone",null,"NPW Zn 8 - Personal Acc. Non Prop.",{"$f":"'Schedule IVC (EBS)'!L13","v":0}]
["Sch IVC","Premium by Zone",null,"NPW Zn 8 - Aviation",{"$f":"'Schedule IVC (EBS)'!L14","v":0}]
["Sch IVC","Premium by Zone",null,"NPW Zn 8 - Aviation Non-Proportional",{"$f":"'Schedule IVC (EBS)'!L15","v":0}]
["Sch IVC","Premium by Zone",null,"NPW Zn 8 - Credit Surety",{"$f":"'Schedule IVC (EBS)'!L16","v":0}]
["Sch IVC","Premium by Zone",null,"NPW Zn 8 - Credit Surety Non-Prop.",{"$f":"'Schedule IVC (EBS)'!L17","v":0}]
["Sch IVC","Premium by Zone",null,"NPW Zn 8 - Energy",{"$f":"'Schedule IVC (EBS)'!L18","v":0}]
["Sch IVC","Premium by Zone",null,"NPW Zn 8 - Energy Non-Proportional",{"$f":"'Schedule IVC (EBS)'!L19","v":0}]
["Sch IVC","Premium by Zone",null,"NPW Zn 8 - US Casualty",{"$f":"'Schedule IVC (EBS)'!L20","v":0}]
["Sch IVC","Premium by Zone",null,"NPW Zn 8 - US Casualty Non-Prop.",{"$f":"'Schedule IVC (EBS)'!L21","v":0}]
["Sch IVC","Premium by Zone",null,"NPW Zn 8 - US Professional",{"$f":"'Schedule IVC (EBS)'!L22","v":0}]
["Sch IVC","Premium by Zone",null,"NPW Zn 8 - US Professional Non-Prop.",{"$f":"'Schedule IVC (EBS)'!L23","v":0}]
["Sch IVC","Premium by Zone",null,"NPW Zn 8 - US Specialty",{"$f":"'Schedule IVC (EBS)'!L24","v":0}]
["Sch IVC","Premium by Zone",null,"NPW Zn 8 - US Specialty Non-Prop.",{"$f":"'Schedule IVC (EBS)'!L25","v":0}]
["Sch IVC","Premium by Zone",null,"NPW Zn 8 - Int'l Motor",{"$f":"'Schedule IVC (EBS)'!L26","v":0}]
["Sch IVC","Premium by Zone",null,"NPW Zn 8 - Int'l Motor Non-Prop.",{"$f":"'Schedule IVC (EBS)'!L27","v":0}]
["Sch IVC","Premium by Zone",null,"NPW Zn 8 - Int'l Casualty",{"$f":"'Schedule IVC (EBS)'!L28","v":0}]
["Sch IVC","Premium by Zone",null,"NPW Zn 8 - Int'l Casualty Non-Prop.",{"$f":"'Schedule IVC (EBS)'!L29","v":0}]
["Sch IVC","Premium by Zone",null,"NPW Zn 8 - Retro Property",{"$f":"'Schedule IVC (EBS)'!L30","v":0}]
["Sch IVC","Premium by Zone",null,"NPW Zn 8 - Structured / Finite R/I",{"$f":"'Schedule IVC (EBS)'!L31","v":0}]
["Sch IVC","Premium by Zone",null,"NPW Zn 8 - Health",{"$f":"'Schedule IVC (EBS)'!L32","v":0}]
["Sch IVC","Premium by Zone",null,"NPW Zn 8 - Total",{"$f":"'Schedule IVC (EBS)'!L33","v":0}]
["Sch IVC","Premium by Zone",null,"NPW Zn 9 - Property Catastrophe",{"$f":"'Schedule IVC (EBS)'!M9","v":0}]
["Sch IVC","Premium by Zone",null,"NPW Zn 9 - Aviation Non-Proportional",{"$f":"'Schedule IVC (EBS)'!M15","v":0}]
["Sch IVC","Premium by Zone",null,"NPW Zn 10 - Property Non-Proportion",{"$f":"'Schedule IVC (EBS)'!N11","v":0}]
["Sch IVC","Premium by Zone",null,"NPW Zn 11 - Property Non-Proportion",{"$f":"'Schedule IVC (EBS)'!O11","v":0}]
["Sch IVC","Premium by Zone",null,"NPW Zn 11 - Int'l Casualty",{"$f":"'Schedule IVC (EBS)'!O28","v":0}]
["Sch IVC","Premium by Zone",null,"NPW Zn 12 - Total",{"$f":"'Schedule IVC (EBS)'!P33","v":0}]
["Sch IVC","Premium by Zone",null,"NPW Zn 13 - Personal Acc. Non Prop.",{"$f":"'Schedule IVC (EBS)'!Q13","v":0}]
["Sch IVC","Premium by Zone",null,"NPW Zn 14 - Property Catastrophe",{"$f":"'Schedule IVC (EBS)'!R9","v":0}]
["Sch IVC","Premium by Zone",null,"NPW Zn 15 - Property",{"$f":"'Schedule IVC (EBS)'!S10","v":0}]
["Sch IVC","Premium by Zone",null,"NPW Zn 15 - Structured / Finite R/I",{"$f":"'Schedule IVC (EBS)'!S31","v":0}]
["Sch IVC","Premium by Zone",null,"NPW Zn 16 - Structured / Finite R/I",{"$f":"'Schedule IVC (EBS)'!T31","v":0}]
["Sch IVC","Premium by Zone",null,"NPW Zn 17 - Int'l Casualty",{"$f":"'Schedule IVC (EBS)'!U28","v":0}]
["Sch IVC","Premium by Zone",null,"NPW Zn 17 - Total",{"$f":"'Schedule IVC (EBS)'!U33","v":0}]
["Sch IVC","Premium by Zone",null,"NPW Zn 18 - Total",{"$f":"'Schedule IVC (EBS)'!V33","v":0}]
["Sch IVB","LT Premium",null,"Related - 6. Dis. Income: Active Liv",{"$f":"'Schedule IVB'!I20","v":0},null,{"$f":"'Schedule IVB'!K20","v":0}]
["Sch IVB","LT Premium",null,"Adj. Benefit -2 Yrs - 5ii. Dis. Income: 1-5 Yrs",{"$f":"'Schedule IVB'!Q18","v":0},null,{"$f":"'Schedule IVB'!S18","v":0}]
[]
["Sch Va","Governance",null,"Director Name - 20",{"$f":"'Schedule V(a)'!C31","v":0}]
["Sch Va","Governance",null,"Director Position - 5",{"$f":"'Schedule V(a)'!D16","v":0}]
["Sch Va","Governance",null,"Director Residence - 4",{"$f":"'Schedule V(a)'!E15","v":0}]
["Sch Va","Governance",null,"Director Work Experience - 12",{"$f":"'Schedule V(a)'!F23","v":0}]
["Sch Va","Governance",null,"Director Status on Board - 17",{"$f":"'Schedule V(a)'!G28","v":"Select"}]
["Sch Va","Governance",null,"Executive Name - 15",{"$f":"'Schedule V(a)'!C51","v":0}]
["Sch Va","Governance",null,"Executive Residence - 3",{"$f":"'Schedule V(a)'!E39","v":0}]
["Sch Va","Governance",null,"Executive Residence - 8",{"$f":"'Schedule V(a)'!E44","v":0}]
["Sch Va","Governance",null,"Executive Work Experience - 9",{"$f":"'Schedule V(a)'!F45","v":0}]
["Sch Va","Governance",null,"Executive Employee Arrangement - 17",{"$f":"'Schedule V(a)'!G53","v":"Select"}]
["Sch Vb","Group Structure",null,"Name of Subsidiary - 18",{"$f":"'Schedule V(b)'!B29","v":0}]
["Sch Vb","Group Structure",null,"Name of Subsidiary - 39",{"$f":"'Schedule V(b)'!B50","v":0}]
["Sch Vb","Group Structure",null,"Name of Subsidiary - 44",{"$f":"'Schedule V(b)'!B55","v":0}]
["Sch Vb","Group Structure",null,"Name of Subsidiary - 81",{"$f":"'Schedule V(b)'!B92","v":0}]
["Sch Vb","Group Structure",null,"Name of Subsidiary - 91",{"$f":"'Schedule V(b)'!B102","v":0}]
["Sch Vb","Group Structure",null,"Jurisdiction of Subsidiary - 16",{"$f":"'Schedule V(b)'!D27","v":0}]
["Sch Vb","Group Structure",null,"Jurisdiction of Subsidiary - 28",{"$f":"'Schedule V(b)'!D39","v":0}]
["Sch Vb","Group Structure",null,"Jurisdiction of Subsidiary - 63",{"$f":"'Schedule V(b)'!D74","v":0}]
["Sch Vb","Group Structure",null,"Jurisdiction of Subsidiary - 68",{"$f":"'Schedule V(b)'!D79","v":0}]
["Sch Vb","Group Structure",null,"Jurisdiction of Subsidiary - 89",{"$f":"'Schedule V(b)'!D100","v":0}]
["Sch Vb","Group Structure",null,"Regulated Entity - 10",{"$f":"'Schedule V(b)'!F21","v":"Select Yes/No"}]
["Sch Vb","Group Structure",null,"Regulated Entity - 36",{"$f":"'Schedule V(b)'!F47","v":"Select Yes/No"}]
["Sch Vb","Group Structure",null,"Regulated Entity - 61",{"$f":"'Schedule V(b)'!F72","v":"Select Yes/No"}]
["Sch Vb","Group Structure",null,"Regulated Entity - 66",{"$f":"'Schedule V(b)'!F77","v":"Select Yes/No"}]
["Sch Vb","Group Structure",null,"Regulated Entity - 96",{"$f":"'Schedule V(b)'!F107","v":"Select Yes/No"}]
["Sch Vb","Group Structure",null,"Sector Classification of Subsidiary - 13",{"$f":"'Schedule V(b)'!H24","v":"Select"}]
["Sch Vb","Group Structure",null,"Sector Classification of Subsidiary - 34",{"$f":"'Schedule V(b)'!H45","v":"Select"}]
["Sch Vb","Group Structure",null,"Sector Classification of Subsidiary - 64",{"$f":"'Schedule V(b)'!H75","v":"Select"}]
["Sch Vb","Group Structure",null,"Sector Classification of Subsidiary - 85",{"$f":"'Schedule V(b)'!H96","v":"Select"}]
["Sch Vb","Group Structure",null,"Strategic Purpose of Subsidiary - 6",{"$f":"'Schedule V(b)'!J17","v":0}]
["Sch Vb","Group Structure",null,"Strategic Purpose of Subsidiary - 11",{"$f":"'Schedule V(b)'!J22","v":0}]
["Sch Vb","Group Structure",null,"Strategic Purpose of Subsidiary - 46",{"$f":"'Schedule V(b)'!J57","v":0}]
["Sch Vb","Group Structure",null,"Strategic Purpose of Subsidiary - 58",{"$f":"'Schedule V(b)'!J69","v":0}]
["Sch Vb","Group Structure",null,"Strategic Purpose of Subsidiary - 83",{"$f":"'Schedule V(b)'!J94","v":0}]
["Sch Vb","Group Structure",null,"Entity Type of Subsidiary - 4",{"$f":"'Schedule V(b)'!L15","v":"Select"}]
["Sch Vb","Group Structure",null,"Entity Type of Subsidiary - 11",{"$f":"'Schedule V(b)'!L22","v":"Select"}]
["Sch Vb","Group Structure",null,"Entity Type of Subsidiary - 35",{"$f":"'Schedule V(b)'!L46","v":"Select"}]
["Sch Vb","Group Structure",null,"Entity Type of Subsidiary - 56",{"$f":"'Schedule V(b)'!L67","v":"Select"}]
["Sch Vb","Group Structure",null,"Entity Type of Subsidiary - 79",{"$f":"'Schedule V(b)'!L90","v":"Select"}]
["Sch Vb","Group Structure",null,"Products & Services of Subsidiary - 3",{"$f":"'Schedule V(b)'!N14","v":0}]
["Sch Vb","Group Structure",null,"Products & Services of Subsidiary - 28",{"$f":"'Schedule V(b)'!N39","v":0}]
["Sch Vb","Group Structure",null,"Products & Services of Subsidiary - 33",{"$f":"'Schedule V(b)'!N44","v":0}]
["Sch Vb","Group Structure",null,"Products & Services of Subsidiary - 65",{"$f":"'Schedule V(b)'!N76","v":0}]
["Sch Vb","Group Structure",null,"Products & Services of Subsidiary - 80",{"$f":"'Schedule V(b)'!N91","v":0}]
["Sch Vb","Group Structure",null,"Participation of Subsidiary - 5",{"$f":"'Schedule V(b)'!P16","v":"Select"}]
["Sch Vb","Group Structure",null,"Participation of Subsidiary - 26",{"$f":"'Schedule V(b)'!P37","v":"Select"}]
["Sch Vb","Group Structure",null,"Participation of Subsidiary - 47",{"$f":"'Schedule V(b)'!P58","v":"Select"}]
["Sch Vb","Group Structure",null,"Participation of Subsidiary - 53",{"$f":"'Schedule V(b)'!P64","v":"Select"}]
["Sch Vb","Group Structure",null,"Participation of Subsidiary - 78",{"$f":"'Schedule V(b)'!P89","v":"Select"}]
["Sch Vb","Group Structure",null,"Participation of Subsidiary - 94",{"$f":"'Schedule V(b)'!P105","v":"Select"}]
["Sch Vb","Group Structure",null,"% Interest of Subsidiary - 25",{"$f":"'Schedule V(b)'!R36","v":0}]
["Sch Vb","Group Structure",null,"% Interest of Subsidiary - 50",{"$f":"'Schedule V(b)'!R61","v":0}]
["Sch Vb","Group Structure",null,"% Interest of Subsidiary - 55",{"$f":"'Schedule V(b)'!R66","v":0}]
["Sch Vb","Group Structure",null,"% Interest of Subsidiary - 80",{"$f":"'Schedule V(b)'!R91","v":0}]
["Sch Vb","Group Structure",null,"Gross Premium Written of Subsidiary - 2",{"$f":"'Schedule V(b)'!T13","v":0}]
["Sch Vb","Group Structure",null,"Gross Premium Written of Subsidiary - 23",{"$f":"'Schedule V(b)'!T34","v":0}]
["Sch Vb","Group Structure",null,"Gross Premium Written of Subsidiary - 48",{"$f":"'Schedule V(b)'!T59","v":0}]
["Sch Vb","Group Structure",null,"Gross Premium Written of Subsidiary - 62",{"$f":"'Schedule V(b)'!T73","v":0}]
["Sch Vb","Group Structure",null,"Gross Premium Written of Subsidiary - 95",{"$f":"'Schedule V(b)'!T106","v":0}]
["Sch Vb","Group Structure",null,"Gross Premium Written of Subsidiary - 100",{"$f":"'Schedule V(b)'!T111","v":0}]
["Sch Vb","Group Structure",null,"Net Premium Written of Subsidiary - 34",{"$f":"'Schedule V(b)'!V45","v":0}]
["Sch Vb","Group Structure",null,"Net Premium Written of Subsidiary - 47",{"$f":"'Schedule V(b)'!V58","v":0}]
["Sch Vb","Group Structure",null,"Net Premium Written of Subsidiary - 72",{"$f":"'Schedule V(b)'!V83","v":0}]
["Sch Vb","Group Structure",null,"Net Premium Written of Subsidiary - 93",{"$f":"'Schedule V(b)'!V104","v":0}]
["Sch Vb","Group Structure",null,"Net Assets of Subsidiary - 16",{"$f":"'Schedule V(b)'!X27","v":0}]
["Sch Vb","Group Structure",null,"Net Assets of Subsidiary - 24",{"$f":"'Schedule V(b)'!X35","v":0}]
["Sch Vb","Group Structure",null,"Net Assets of Subsidiary - 45",{"$f":"'Schedule V(b)'!X56","v":0}]
["Sch Vb","Group Structure",null,"Net Assets of Subsidiary - 70",{"$f":"'Schedule V(b)'!X81","v":0}]
["Sch Vb","Group Structure",null,"Net Assets of Subsidiary - 81",{"$f":"'Schedule V(b)'!X92","v":0}]
["Sch Vb","Group Structure",null,"Total Assets of Subsidiary - 17",{"$f":"'Schedule V(b)'!Z28","v":0}]
["Sch Vb","Group Structure",null,"Total Assets of Subsidiary - 22",{"$f":"'Schedule V(b)'!Z33","v":0}]
["Sch Vb","Group Structure",null,"Total Assets of Subsidiary - 49",{"$f":"'Schedule V(b)'!Z60","v":0}]
["Sch Vb","Group Structure",null,"Total Assets of Subsidiary - 69",{"$f":"'Schedule V(b)'!Z80","v":0}]
["Sch Vb","Group Structure",null,"Total Assets of Subsidiary - 94",{"$f":"'Schedule V(b)'!Z105","v":0}]
["Sch Vc","Intra-Group",null,"Issuer/Borrower Name - 13",{"$f":"'Schedule V(c)'!C26","v":0}]
["Sch Vc","Intra-Group",null,"Issuer Jurisdiction - 4",{"$f":"'Schedule V(c)'!D17","v":0}]
["Sch Vc","Intra-Group",null,"Issuer Jurisdiction - 15",{"$f":"'Schedule V(c)'!D28","v":0}]
["Sch Vc","Intra-Group",null,"Investor/Lendor Name - 15",{"$f":"'Schedule V(c)'!E28","v":0}]
["Sch Vc","Intra-Group",null,"Investor Jurisdiction - 15",{"$f":"'Schedule V(c)'!F28","v":0}]
["Sch Vc","Intra-Group",null,"Transaction Details - 15",{"$f":"'Schedule V(c)'!G28","v":0}]
["Sch Vc","Intra-Group",null,"Exposure Value - 12",{"$f":"'Schedule V(c)'!J25","v":0}]
["Sch Vc","Intra-Group",null,"Assuming Party Name - 7",{"$f":"'Schedule V(c)'!C53","v":0}]
["Sch Vc","Intra-Group",null,"Assuming Party Name - 11",{"$f":"'Schedule V(c)'!C57","v":0}]
["Sch Vc","Intra-Group",null,"Assuming Party Jurisdiction - 13",{"$f":"'Schedule V(c)'!D59","v":0}]
["Sch Vc","Intra-Group",null,"Assuming Party Rating - 9",{"$f":"'Schedule V(c)'!E55","v":0}]
["Sch Vc","Intra-Group",null,"Ceding Party Name - 9",{"$f":"'Schedule V(c)'!F55","v":0}]
["Sch Vc","Intra-Group",null,"Ceding Party Name - 18",{"$f":"'Schedule V(c)'!F64","v":0}]
["Sch Vc","Intra-Group",null,"Ceding Party Jurisdiction - 11",{"$f":"'Schedule V(c)'!G57","v":0}]
["Sch Vc","Intra-Group",null,"Ceding Party Rating - 11",{"$f":"'Schedule V(c)'!H57","v":0}]
["Sch Vc","Intra-Group",null,"Gross Exposure Limit - 7",{"$f":"'Schedule V(c)'!I53","v":0}]
["Sch Vc","Intra-Group",null,"Net Exposure Limit - 4",{"$f":"'Schedule V(c)'!J50","v":0}]
["Sch Vc","Intra-Group",null,"Gross Premium Written - 8",{"$f":"'Schedule V(c)'!K54","v":0}]
["Sch Vc","Intra-Group",null,"Net Premium Written - 4",{"$f":"'Schedule V(c)'!L50","v":0}]
["Sch Vc","Intra-Group",null,"Net Premium Written - 22",{"$f":"'Schedule V(c)'!L68","v":0}]
["Sch Vc","Intra-Group",null,"Counterparty Name - 4",{"$f":"'Schedule V(c)'!C85","v":0}]
["Sch Vc","Intra-Group",null,"Counterparty Name - 29",{"$f":"'Schedule V(c)'!C110","v":0}]
["Sch Vc","Intra-Group",null,"Counterparty Location - 14",{"$f":"'Schedule V(c)'!G95","v":0}]
["Sch Vc","Intra-Group",null,"Exposure Face Value - 1",{"$f":"'Schedule V(c)'!H82","v":0}]
["Sch Vc","Intra-Group",null,"Exposure Face Value - 21",{"$f":"'Schedule V(c)'!H102","v":0}]
["Sch Vc","Intra-Group",null,"Exposure Face Value - 26",{"$f":"'Schedule V(c)'!H107","v":0}]
["Sch Vc","Intra-Group",null,"Exposure Market Value - 7",{"$f":"'Schedule V(c)'!I88","v":0}]
["Sch Vc","Intra-Group",null,"Exposure Market Value - 22",{"$f":"'Schedule V(c)'!I103","v":0}]
["Sch Vc","Intra-Group",null,"Transaction Type - 14",{"$f":"'Schedule V(c)'!J95","v":0}]
["Sch Vc","Intra-Group",null,"Transaction Type - 39",{"$f":"'Schedule V(c)'!J120","v":0}]
["Sch Ve","Scenario Tests",null,"R8 Scenario Severe Inflation - Assets",null,null,null,null,{"$f":"'Schedule V(e)'!F20","v":0}]
["Sch Ve","Scenario Tests",null,"R5 - Argentina",null,null,null,null,{"$f":"'Schedule V(e)'!I24","v":0}]
["Sch Ve","Scenario Tests",null,"Mortgage Loan - NPW - Unrelated - Insurance - Other",null,null,null,null,{"$f":"'Schedule V(e)'!G35","v":0}]
["Sch Ve","Scenario Tests",null,"Mortgage Loan - Capital Held - Internal",null,null,null,null,{"$f":"'Schedule V(e)'!F41","v":0}]
["Sch Ve","Scenario Tests",null,"M1. Gross Loss ",null,null,null,null,{"$f":"'Schedule V(e)'!D65","v":0}]
["Sch Ve","Scenario Tests",null,"UW2. Net Loss - Cat Mitigation Tech.",null,null,null,null,{"$f":"'Schedule V(e)'!G54","v":0}]
["Sch Ve","Scenario Tests",null,"UW4. Return Period 1",null,null,null,null,{"$f":"'Schedule V(e)'!J56","v":0}]
["Sch Ve","Scenario Tests",null,"UE1. Return Period 2",null,null,null,null,{"$f":"'Schedule V(e)'!K58","v":0}]
["Sch Ve","Scenario Tests",null,"N3. Return Period 2",null,null,null,null,{"$f":"'Schedule V(e)'!K69","v":0}]
["Sch Ve","Scenario Tests",null," Other Scenario - Name 1",null,null,null,null,{"$f":"'Schedule V(e)'!B81","v":0}]
["Sch Ve","Scenario Tests",null,"Latent Liab - Scen 1 - NPW - Product Liab - Pro - Other Developed Mkts",null,null,null,null,{"$f":"'Schedule V(e)'!D103","v":0}]
["Sch Ve","Scenario Tests",null,"Latent Liab - Scen 1 - NPW - Gen Comm Liab - Pro - EEA & Switzerland",null,null,null,null,{"$f":"'Schedule V(e)'!F99","v":0}]
["Sch Ve","Scenario Tests",null,"Latent Liab - Scen 1 - NPW - Empl. Liab/Workers Comp - Non Pro - US/Canada",null,null,null,null,{"$f":"'Schedule V(e)'!I100","v":0}]
["Sch Ve","Scenario Tests",null,"Latent Liab - Scen 1 - Prem. Growth - Gen Comm Liab - Non Pro - Japan",null,null,null,null,{"$f":"'Schedule V(e)'!G110","v":0}]
["Sch Ve","Scenario Tests",null,"Latent Liab - Scen 1 - Yr Growth - Product Liab - Pro - Emerging Mkts",null,null,null,null,{"$f":"'Schedule V(e)'!L113","v":0}]
["Sch Ve","Scenario Tests",null,"Latent Liab - Scen 1 - Yr Growth - Gen Comm Liab - Non Pro - Other Developed Mkts",null,null,null,null,{"$f":"'Schedule V(e)'!O112","v":0}]
["Sch Ve","Scenario Tests",null,"Latent Liab - Scen 2 - US Enviro - PY+1 Yr - Net Paid",null,null,null,null,{"$f":"'Schedule V(e)'!J137","v":0}]
["Sch Ve","Scenario Tests",null,"2b. Specific WC Scen.- RP 2",null,null,null,null,{"$f":"'Schedule V(e)'!D204","v":0}]
["Sch Ve","Scenario Tests",null," Terrorism Loss 1 - Location",null,null,null,null,{"$f":"'Schedule V(e)'!D226","v":0}]
["Sch Ve","Scenario Tests",null," Terrorism Loss 3 - Location",null,null,null,null,{"$f":"'Schedule V(e)'!F226","v":0}]
["Sch Ve","Scenario Tests",null," Terrorism Loss 7 - TRIP",null,null,null,null,{"$f":"'Schedule V(e)'!J223","v":0}]
["Sch Ve","Scenario Tests",null,"Cyber - 1. Cyber Policies in Force - No - Direct",null,null,null,null,{"$f":"'Schedule V(e)'!D243","v":0},null,{"$f":"'Schedule V(e)'!E243","v":0}]
["Sch Ve","Scenario Tests",null,"Cyber - 1. Gross Reserves - R/I",null,null,null,null,{"$f":"'Schedule V(e)'!G250","v":0},null,{"$f":"'Schedule V(e)'!H250","v":0}]
["Sch Ve","Scenario Tests",null,"Cyber - 1. Cyber Avg. Claims - R/I",null,null,null,null,{"$f":"'Schedule V(e)'!G255","v":0},null,{"$f":"'Schedule V(e)'!H255","v":0}]
["Sch Ve","Scenario Tests",null,"Cyber - 1. # of Policies Direct - US",null,null,null,null,{"$f":"'Schedule V(e)'!D287","v":0}]
["Sch Ve","Scenario Tests",null,"Cyber - 1. Cyber Gross Exposure-Direct - Japan",null,null,null,null,{"$f":"'Schedule V(e)'!G291","v":0}]
["Sch Ve","Scenario Tests",null,"Cyber - 1. Cyber Gross Exposure-R/I - US",null,null,null,null,{"$f":"'Schedule V(e)'!L287","v":0}]
["Sch Ve","Scenario Tests",null,"Cyber - 1. # of Policies Package - UK & Europe",null,null,null,null,{"$f":"'Schedule V(e)'!N289","v":0}]
["Sch Ve","Scenario Tests",null,"Cyber - 1. Cyber Gross Exposure-Package - Other",null,null,null,null,{"$f":"'Schedule V(e)'!Q293","v":0}]
["Sch Ve","Scenario Tests",null,"Cyber - 1. Cyber Net Exposure-Package - Worldwide",null,null,null,null,{"$f":"'Schedule V(e)'!R292","v":0}]
["Sch Ve","Scenario Tests",null,"Cyber - 2. Exclusion Clause - International Casualty Non-Motor Non-Proportional",null,null,null,null,{"$f":"'Schedule V(e)'!F339","v":"Select"}]
["Sch Ve","Scenario Tests",null,"Cyber - 2. Current Yr Structured/Finite reinsurance",null,null,null,null,{"$f":"'Schedule V(e)'!G341","v":0}]
["Sch Ve","Scenario Tests",null,"Cyber - 2. Prior Yr International Casualty Non-Motor Non-Proportional",null,null,null,null,{"$f":"'Schedule V(e)'!H339","v":0}]
["Sch Ve","Scenario Tests",null,"Cyber - 2. Claims Made or Occurrence -  US Specialty Non-Proportional",null,null,null,null,{"$f":"'Schedule V(e)'!I335","v":"Select from Drop-down"}]
["Sch Ve","Scenario Tests",null,"Cyber - 3. 1. Cloud Outage - Net Coverage - 1. Crime",null,null,null,null,{"$f":"'Schedule V(e)'!F360","v":0}]
["Sch Ve","Scenario Tests",null,"Cyber - 3. 1. Cloud Outage - Net Coverage - 2. E&O Policies",null,null,null,null,{"$f":"'Schedule V(e)'!F361","v":0}]
["Sch Ve","Scenario Tests",null,"Cyber - 3. 3. Data Breach - Net Coverage - 3. Tech. E&O",null,null,null,null,{"$f":"'Schedule V(e)'!J362","v":0}]
["Sch Ve","Scenario Tests",null,"A13a) Designated IT Risk Manager Details",{"$f":"'Schedule V(e)'!N409","v":"Confirm role holder's name"}]
["Sch Ve","Scenario Tests",null,"B13) Penetration Testing completed within 1 yr",{"$f":"'Schedule V(e)'!L431","v":"Select Yes/No"}]
["Sch Vf","Coinsurance",null,"Mod Co - Ceding Insurer 4",{"$f":"+'Schedule V(f)'!C15","v":0}]
["Sch Vf","Coinsurance",null,"Mod Co - Coverage 13",{"$f":"+'Schedule V(f)'!F24","v":"Select from Drop-Down"}]
["Sch Vf","Coinsurance",null,"Mod Co - Reserve 1",{"$f":"'Schedule V(f)'!J12","v":0}]
["Sch Vf","Coinsurance",null,"Affiliated Cedant - Other 4",{"$f":"'Schedule V(f)'!F48","v":0}]
["Sch Vg","GAAP - BSCR Rec",null,"Assets Fin. Stmts. - Prepaid Expenses",{"$f":"'Schedule V(g)'!D11","v":0}]
["Sch Vg","GAAP - BSCR Rec",null,"Liab. Fin. Stmts. - Goodwill",{"$f":"'Schedule V(g)'!E12","v":0}]
["Sch Vg","GAAP - BSCR Rec",null,"Assets - Intangible",{"$f":"'Schedule V(g)'!D44","v":0}]
["Sch Vg","GAAP - BSCR Rec",null,"Liab. - Other 3",{"$f":"'Schedule V(g)'!E47","v":0}]
["Sch Vg","GAAP - BSCR Rec",null,"Net Inc. - Form 1SFS",{"$f":"'Schedule V(g)'!F30","v":0}]
["Sch Vg","GAAP - BSCR Rec",null,"Net Inc. - Total",{"$f":"'Schedule V(g)'!F51","v":0}]
["Sch Vk","Deposit Details",null,"Name of Exposure - 24",{"$f":"'Schedule V(k)'!C31","v":0}]
["Sch Vk","Deposit Details",null,"Line of Business - 24",{"$f":"'Schedule V(k)'!E31","v":0}]
["Sch Vk","Deposit Details",null,"Assets in Trust - 16",{"$f":"'Schedule V(k)'!F23","v":0}]
["Sch Vk","Deposit Details",null,"Assets in Trust - Total",{"$f":"'Schedule V(k)'!F58","v":0}]
["Sch Vk","Deposit Details",null,"Collateral - 21",{"$f":"'Schedule V(k)'!G28","v":0}]
["Sch Vk","Deposit Details",null,"GPW for the Period - 20",{"$f":"'Schedule V(k)'!H27","v":0}]
["Sch Vk","Deposit Details",null,"NPW for the Period - 20",{"$f":"'Schedule V(k)'!I27","v":0}]
["Sch Vk","Deposit Details",null,"Exposure - 15",{"$f":"'Schedule V(k)'!J22","v":0}]
["Sch Vk","Deposit Details",null,"Limit @ 99.0 TVAR - 14",{"$f":"'Schedule V(k)'!K21","v":0}]
["Sch Vk","Deposit Details",null,"Limit @ 99.0 TVAR - 19",{"$f":"'Schedule V(k)'!K26","v":0}]
["Sch VI","Schedule of Assets",null,"(A) Cash - Asset Type 1",{"$f":"'Schedule VI'!B11","v":"Select"},null,null,null,{"$f":"'Schedule VI (EBS)'!B11","v":"Select"}]
["Sch VI","Schedule of Assets",null,"(A) Cash - Asset Type 13",{"$f":"'Schedule VI'!B23","v":"Select"},null,null,null,{"$f":"'Schedule VI (EBS)'!B23","v":"Select"}]
["Sch VI","Schedule of Assets",null,"(A) Cash - Asset Type 34",{"$f":"'Schedule VI'!B44","v":"Select"},null,null,null,{"$f":"'Schedule VI (EBS)'!B44","v":"Select"}]
["Sch VI","Schedule of Assets",null,"(A) Cash - Asset Type 48",{"$f":"'Schedule VI'!B58","v":"Select"},null,null,null,{"$f":"'Schedule VI (EBS)'!B58","v":"Select"}]
["Sch VI","Schedule of Assets",null,"(A) Cash - Asset Type 65",{"$f":"'Schedule VI'!B75","v":"Select"},null,null,null,{"$f":"'Schedule VI (EBS)'!B75","v":"Select"}]
["Sch VI","Schedule of Assets",null,"(A) Cash - Asset Type 86",{"$f":"'Schedule VI'!B96","v":"Select"},null,null,null,{"$f":"'Schedule VI (EBS)'!B96","v":"Select"}]
["Sch VI","Schedule of Assets",null,"(A) Cash - Asset Type 111",{"$f":"'Schedule VI'!B121","v":"Select"},null,null,null,{"$f":"'Schedule VI (EBS)'!B121","v":"Select"}]
["Sch VI","Schedule of Assets",null,"(A) Cash - Asset Type 134",{"$f":"'Schedule VI'!B144","v":"Select"},null,null,null,{"$f":"'Schedule VI (EBS)'!B144","v":"Select"}]
["Sch VI","Schedule of Assets",null,"(A) Cash - Asset Type 158",{"$f":"'Schedule VI'!B168","v":"Select"},null,null,null,{"$f":"'Schedule VI (EBS)'!B168","v":"Select"}]
["Sch VI","Schedule of Assets",null,"(A) Cash - Asset Type 183",{"$f":"'Schedule VI'!B193","v":"Select"},null,null,null,{"$f":"'Schedule VI (EBS)'!B193","v":"Select"}]
["Sch VI","Schedule of Assets",null,"(A) Cash - Currency 4",{"$f":"'Schedule VI'!C14","v":"Select"},null,null,null,{"$f":"'Schedule VI (EBS)'!C14","v":"Select"}]
["Sch VI","Schedule of Assets",null,"(A) Cash - Currency 16",{"$f":"'Schedule VI'!C26","v":"Select"},null,null,null,{"$f":"'Schedule VI (EBS)'!C26","v":"Select"}]
["Sch VI","Schedule of Assets",null,"(A) Cash - Currency 35",{"$f":"'Schedule VI'!C45","v":"Select"},null,null,null,{"$f":"'Schedule VI (EBS)'!C45","v":"Select"}]
["Sch VI","Schedule of Assets",null,"(A) Cash - Currency 56",{"$f":"'Schedule VI'!C66","v":"Select"},null,null,null,{"$f":"'Schedule VI (EBS)'!C66","v":"Select"}]
["Sch VI","Schedule of Assets",null,"(A) Cash - Currency 84",{"$f":"'Schedule VI'!C94","v":"Select"},null,null,null,{"$f":"'Schedule VI (EBS)'!C94","v":"Select"}]
["Sch VI","Schedule of Assets",null,"(A) Cash - Currency 103",{"$f":"'Schedule VI'!C113","v":"Select"},null,null,null,{"$f":"'Schedule VI (EBS)'!C113","v":"Select"}]
["Sch VI","Schedule of Assets",null,"(A) Cash - Currency 108",{"$f":"'Schedule VI'!C118","v":"Select"},null,null,null,{"$f":"'Schedule VI (EBS)'!C118","v":"Select"}]
["Sch VI","Schedule of Assets",null,"(A) Cash - Currency 133",{"$f":"'Schedule VI'!C143","v":"Select"},null,null,null,{"$f":"'Schedule VI (EBS)'!C143","v":"Select"}]
["Sch VI","Schedule of Assets",null,"(A) Cash - Currency 149",{"$f":"'Schedule VI'!C159","v":"Select"},null,null,null,{"$f":"'Schedule VI (EBS)'!C159","v":"Select"}]
["Sch VI","Schedule of Assets",null,"(A) Cash - Currency 180",{"$f":"'Schedule VI'!C190","v":"Select"},null,null,null,{"$f":"'Schedule VI (EBS)'!C190","v":"Select"}]
["Sch VI","Schedule of Assets",null,"(A) Cash - Rating 1",{"$f":"'Schedule VI'!D11","v":"Select"},null,null,null,{"$f":"'Schedule VI (EBS)'!D11","v":"Select"}]
["Sch VI","Schedule of Assets",null,"(A) Cash - Rating 26",{"$f":"'Schedule VI'!D36","v":"Select"},null,null,null,{"$f":"'Schedule VI (EBS)'!D36","v":"Select"}]
["Sch VI","Schedule of Assets",null,"(A) Cash - Rating 31",{"$f":"'Schedule VI'!D41","v":"Select"},null,null,null,{"$f":"'Schedule VI (EBS)'!D41","v":"Select"}]
["Sch VI","Schedule of Assets",null,"(A) Cash - Rating 53",{"$f":"'Schedule VI'!D63","v":"Select"},null,null,null,{"$f":"'Schedule VI (EBS)'!D63","v":"Select"}]
["Sch VI","Schedule of Assets",null,"(A) Cash - Rating 78",{"$f":"'Schedule VI'!D88","v":"Select"},null,null,null,{"$f":"'Schedule VI (EBS)'!D88","v":"Select"}]
["Sch VI","Schedule of Assets",null,"(A) Cash - Rating 99",{"$f":"'Schedule VI'!D109","v":"Select"},null,null,null,{"$f":"'Schedule VI (EBS)'!D109","v":"Select"}]
["Sch VI","Schedule of Assets",null,"(A) Cash - Rating 125",{"$f":"'Schedule VI'!D135","v":"Select"},null,null,null,{"$f":"'Schedule VI (EBS)'!D135","v":"Select"}]
["Sch VI","Schedule of Assets",null,"(A) Cash - Rating 150",{"$f":"'Schedule VI'!D160","v":"Select"},null,null,null,{"$f":"'Schedule VI (EBS)'!D160","v":"Select"}]
["Sch VI","Schedule of Assets",null,"(A) Cash - Rating 151",{"$f":"'Schedule VI'!D161","v":"Select"},null,null,null,{"$f":"'Schedule VI (EBS)'!D161","v":"Select"}]
["Sch VI","Schedule of Assets",null,"(A) Cash - Rating 185",{"$f":"'Schedule VI'!D195","v":"Select"},null,null,null,{"$f":"'Schedule VI (EBS)'!D195","v":"Select"}]
["Sch VI","Schedule of Assets",null,"(A) Cash - Nominal 2",{"$f":"'Schedule VI'!E12","v":0},null,null,null,{"$f":"'Schedule VI (EBS)'!E12","v":0}]
["Sch VI","Schedule of Assets",null,"(A) Cash - Nominal 23",{"$f":"'Schedule VI'!E33","v":0},null,null,null,{"$f":"'Schedule VI (EBS)'!E33","v":0}]
["Sch VI","Schedule of Assets",null,"(A) Cash - Nominal 48",{"$f":"'Schedule VI'!E58","v":0},null,null,null,{"$f":"'Schedule VI (EBS)'!E58","v":0}]
["Sch VI","Schedule of Assets",null,"(A) Cash - Nominal 67",{"$f":"'Schedule VI'!E77","v":0},null,null,null,{"$f":"'Schedule VI (EBS)'!E77","v":0}]
["Sch VI","Schedule of Assets",null,"(A) Cash - Nominal 75",{"$f":"'Schedule VI'!E85","v":0},null,null,null,{"$f":"'Schedule VI (EBS)'!E85","v":0}]
["Sch VI","Schedule of Assets",null,"(A) Cash - Nominal 100",{"$f":"'Schedule VI'!E110","v":0},null,null,null,{"$f":"'Schedule VI (EBS)'!E110","v":0}]
["Sch VI","Schedule of Assets",null,"(A) Cash - Nominal 118",{"$f":"'Schedule VI'!E128","v":0},null,null,null,{"$f":"'Schedule VI (EBS)'!E128","v":0}]
["Sch VI","Schedule of Assets",null,"(A) Cash - Nominal 147",{"$f":"'Schedule VI'!E157","v":0},null,null,null,{"$f":"'Schedule VI (EBS)'!E157","v":0}]
["Sch VI","Schedule of Assets",null,"(A) Cash - Nominal 172",{"$f":"'Schedule VI'!E182","v":0},null,null,null,{"$f":"'Schedule VI (EBS)'!E182","v":0}]
["Sch VI","Schedule of Assets",null,"(A) Cash - Nominal 193",{"$f":"'Schedule VI'!E203","v":0},null,null,null,{"$f":"'Schedule VI (EBS)'!E203","v":0}]
["Sch VI","Schedule of Assets",null,"(A) Cash - Nominal 200",{"$f":"'Schedule VI'!E210","v":0},null,null,null,{"$f":"'Schedule VI (EBS)'!E210","v":0}]
["Sch VI","Schedule of Assets",null,"(A) Cash - Fair Value 20",{"$f":"'Schedule VI'!F30","v":0},null,null,null,{"$f":"'Schedule VI (EBS)'!F30","v":0}]
["Sch VI","Schedule of Assets",null,"(A) Cash - Fair Value 45",{"$f":"'Schedule VI'!F55","v":0},null,null,null,{"$f":"'Schedule VI (EBS)'!F55","v":0}]
["Sch VI","Schedule of Assets",null,"(A) Cash - Fair Value 70",{"$f":"'Schedule VI'!F80","v":0},null,null,null,{"$f":"'Schedule VI (EBS)'!F80","v":0}]
["Sch VI","Schedule of Assets",null,"(A) Cash - Fair Value 86",{"$f":"'Schedule VI'!F96","v":0},null,null,null,{"$f":"'Schedule VI (EBS)'!F96","v":0}]
["Sch VI","Schedule of Assets",null,"(A) Cash - Fair Value 97",{"$f":"'Schedule VI'!F107","v":0},null,null,null,{"$f":"'Schedule VI (EBS)'!F107","v":0}]
["Sch VI","Schedule of Assets",null,"(A) Cash - Fair Value 122",{"$f":"'Schedule VI'!F132","v":0},null,null,null,{"$f":"'Schedule VI (EBS)'!F132","v":0}]
["Sch VI","Schedule of Assets",null,"(A) Cash - Fair Value 154",{"$f":"'Schedule VI'!F164","v":0},null,null,null,{"$f":"'Schedule VI (EBS)'!F164","v":0}]
["Sch VI","Schedule of Assets",null,"(A) Cash - Fair Value 169",{"$f":"'Schedule VI'!F179","v":0},null,null,null,{"$f":"'Schedule VI (EBS)'!F179","v":0}]
["Sch VI","Schedule of Assets",null,"(A) Cash - Fair Value 190",{"$f":"'Schedule VI'!F200","v":0},null,null,null,{"$f":"'Schedule VI (EBS)'!F200","v":0}]
["Sch VI","Schedule of Assets",null,"(A) Cash - Comments 15",{"$f":"'Schedule VI'!G25","v":0},null,null,null,{"$f":"'Schedule VI (EBS)'!G25","v":0}]
["Sch VI","Schedule of Assets",null,"(A) Cash - Comments 36",{"$f":"'Schedule VI'!G46","v":0},null,null,null,{"$f":"'Schedule VI (EBS)'!G46","v":0}]
["Sch VI","Schedule of Assets",null,"(A) Cash - Comments 42",{"$f":"'Schedule VI'!G52","v":0},null,null,null,{"$f":"'Schedule VI (EBS)'!G52","v":0}]
["Sch VI","Schedule of Assets",null,"(A) Cash - Comments 67",{"$f":"'Schedule VI'!G77","v":0},null,null,null,{"$f":"'Schedule VI (EBS)'!G77","v":0}]
["Sch VI","Schedule of Assets",null,"(A) Cash - Comments 92",{"$f":"'Schedule VI'!G102","v":0},null,null,null,{"$f":"'Schedule VI (EBS)'!G102","v":0}]
["Sch VI","Schedule of Assets",null,"(A) Cash - Comments 101",{"$f":"'Schedule VI'!G111","v":0},null,null,null,{"$f":"'Schedule VI (EBS)'!G111","v":0}]
["Sch VI","Schedule of Assets",null,"(A) Cash - Comments 119",{"$f":"'Schedule VI'!G129","v":0},null,null,null,{"$f":"'Schedule VI (EBS)'!G129","v":0}]
["Sch VI","Schedule of Assets",null,"(A) Cash - Comments 140",{"$f":"'Schedule VI'!G150","v":0},null,null,null,{"$f":"'Schedule VI (EBS)'!G150","v":0}]
["Sch VI","Schedule of Assets",null,"(A) Cash - Comments 169",{"$f":"'Schedule VI'!G179","v":0},null,null,null,{"$f":"'Schedule VI (EBS)'!G179","v":0}]
["Sch VI","Schedule of Assets",null,"(A) Cash - Comments 191",{"$f":"'Schedule VI'!G201","v":0},null,null,null,{"$f":"'Schedule VI (EBS)'!G201","v":0}]
["Sch VI","Schedule of Assets",null,"(B) Bonds - Asset Type 11",{"$f":"'Schedule VI'!B229","v":"Select"},null,null,null,{"$f":"'Schedule VI (EBS)'!B229","v":"Select"}]
["Sch VI","Schedule of Assets",null,"(B) Bonds - Asset Type 36",{"$f":"'Schedule VI'!B254","v":"Select"},null,null,null,{"$f":"'Schedule VI (EBS)'!B254","v":"Select"}]
["Sch VI","Schedule of Assets",null,"(B) Bonds - Asset Type 54",{"$f":"'Schedule VI'!B272","v":"Select"},null,null,null,{"$f":"'Schedule VI (EBS)'!B272","v":"Select"}]
["Sch VI","Schedule of Assets",null,"(B) Bonds - Asset Type 63",{"$f":"'Schedule VI'!B281","v":"Select"},null,null,null,{"$f":"'Schedule VI (EBS)'!B281","v":"Select"}]
["Sch VI","Schedule of Assets",null,"(B) Bonds - Asset Type 88",{"$f":"'Schedule VI'!B306","v":"Select"},null,null,null,{"$f":"'Schedule VI (EBS)'!B306","v":"Select"}]
["Sch VI","Schedule of Assets",null,"(B) Bonds - Asset Type 101",{"$f":"'Schedule VI'!B319","v":"Select"},null,null,null,{"$f":"'Schedule VI (EBS)'!B319","v":"Select"}]
["Sch VI","Schedule of Assets",null,"(B) Bonds - Asset Type 135",{"$f":"'Schedule VI'!B353","v":"Select"},null,null,null,{"$f":"'Schedule VI (EBS)'!B353","v":"Select"}]
["Sch VI","Schedule of Assets",null,"(B) Bonds - Asset Type 160",{"$f":"'Schedule VI'!B378","v":"Select"},null,null,null,{"$f":"'Schedule VI (EBS)'!B378","v":"Select"}]
["Sch VI","Schedule of Assets",null,"(B) Bonds - Asset Type 161",{"$f":"'Schedule VI'!B379","v":"Select"},null,null,null,{"$f":"'Schedule VI (EBS)'!B379","v":"Select"}]
["Sch VI","Schedule of Assets",null,"(B) Bonds - Asset Type 183",{"$f":"'Schedule VI'!B401","v":"Select"},null,null,null,{"$f":"'Schedule VI (EBS)'!B401","v":"Select"}]
["Sch VI","Schedule of Assets",null,"(B) Bonds - Asset Type 208",{"$f":"'Schedule VI'!B426","v":"Select"},null,null,null,{"$f":"'Schedule VI (EBS)'!B426","v":"Select"}]
["Sch VI","Schedule of Assets",null,"(B) Bonds - Asset Type 233",{"$f":"'Schedule VI'!B451","v":"Select"},null,null,null,{"$f":"'Schedule VI (EBS)'!B451","v":"Select"}]
["Sch VI","Schedule of Assets",null,"(B) Bonds - Asset Type 258",{"$f":"'Schedule VI'!B476","v":"Select"},null,null,null,{"$f":"'Schedule VI (EBS)'!B476","v":"Select"}]
["Sch VI","Schedule of Assets",null,"(B) Bonds - Asset Type 269",{"$f":"'Schedule VI'!B487","v":"Select"},null,null,null,{"$f":"'Schedule VI (EBS)'!B487","v":"Select"}]
["Sch VI","Schedule of Assets",null,"(B) Bonds - Asset Type 285",{"$f":"'Schedule VI'!B503","v":"Select"},null,null,null,{"$f":"'Schedule VI (EBS)'!B503","v":"Select"}]
["Sch VI","Schedule of Assets",null,"(B) Bonds - Asset Type 306",{"$f":"'Schedule VI'!B524","v":"Select"},null,null,null,{"$f":"'Schedule VI (EBS)'!B524","v":"Select"}]
["Sch VI","Schedule of Assets",null,"(B) Bonds - Asset Type 337",{"$f":"'Schedule VI'!B555","v":"Select"},null,null,null,{"$f":"'Schedule VI (EBS)'!B555","v":"Select"}]
["Sch VI","Schedule of Assets",null,"(B) Bonds - Asset Type 357",{"$f":"'Schedule VI'!B575","v":"Select"},null,null,null,{"$f":"'Schedule VI (EBS)'!B575","v":"Select"}]
["Sch VI","Schedule of Assets",null,"(B) Bonds - Asset Type 378",{"$f":"'Schedule VI'!B596","v":"Select"},null,null,null,{"$f":"'Schedule VI (EBS)'!B596","v":"Select"}]
["Sch VI","Schedule of Assets",null,"(B) Bonds - Currency 3",{"$f":"'Schedule VI'!C221","v":"Select"},null,null,null,{"$f":"'Schedule VI (EBS)'!C221","v":"Select"}]
["Sch VI","Schedule of Assets",null,"(B) Bonds - Currency 19",{"$f":"'Schedule VI'!C237","v":"Select"},null,null,null,{"$f":"'Schedule VI (EBS)'!C237","v":"Select"}]
["Sch VI","Schedule of Assets",null,"(B) Bonds - Currency 30",{"$f":"'Schedule VI'!C248","v":"Select"},null,null,null,{"$f":"'Schedule VI (EBS)'!C248","v":"Select"}]
["Sch VI","Schedule of Assets",null,"(B) Bonds - Currency 55",{"$f":"'Schedule VI'!C273","v":"Select"},null,null,null,{"$f":"'Schedule VI (EBS)'!C273","v":"Select"}]
["Sch VI","Schedule of Assets",null,"(B) Bonds - Currency 76",{"$f":"'Schedule VI'!C294","v":"Select"},null,null,null,{"$f":"'Schedule VI (EBS)'!C294","v":"Select"}]
["Sch VI","Schedule of Assets",null,"(B) Bonds - Currency 105",{"$f":"'Schedule VI'!C323","v":"Select"},null,null,null,{"$f":"'Schedule VI (EBS)'!C323","v":"Select"}]
["Sch VI","Schedule of Assets",null,"(B) Bonds - Currency 107",{"$f":"'Schedule VI'!C325","v":"Select"},null,null,null,{"$f":"'Schedule VI (EBS)'!C325","v":"Select"}]
["Sch VI","Schedule of Assets",null,"(B) Bonds - Currency 128",{"$f":"'Schedule VI'!C346","v":"Select"},null,null,null,{"$f":"'Schedule VI (EBS)'!C346","v":"Select"}]
["Sch VI","Schedule of Assets",null,"(B) Bonds - Currency 152",{"$f":"'Schedule VI'!C370","v":"Select"},null,null,null,{"$f":"'Schedule VI (EBS)'!C370","v":"Select"}]
["Sch VI","Schedule of Assets",null,"(B) Bonds - Currency 179",{"$f":"'Schedule VI'!C397","v":"Select"},null,null,null,{"$f":"'Schedule VI (EBS)'!C397","v":"Select"}]
["Sch VI","Schedule of Assets",null,"(B) Bonds - Currency 200",{"$f":"'Schedule VI'!C418","v":"Select"},null,null,null,{"$f":"'Schedule VI (EBS)'!C418","v":"Select"}]
["Sch VI","Schedule of Assets",null,"(B) Bonds - Currency 225",{"$f":"'Schedule VI'!C443","v":"Select"},null,null,null,{"$f":"'Schedule VI (EBS)'!C443","v":"Select"}]
["Sch VI","Schedule of Assets",null,"(B) Bonds - Currency 238",{"$f":"'Schedule VI'!C456","v":"Select"},null,null,null,{"$f":"'Schedule VI (EBS)'!C456","v":"Select"}]
["Sch VI","Schedule of Assets",null,"(B) Bonds - Currency 252",{"$f":"'Schedule VI'!C470","v":"Select"},null,null,null,{"$f":"'Schedule VI (EBS)'!C470","v":"Select"}]
["Sch VI","Schedule of Assets",null,"(B) Bonds - Currency 277",{"$f":"'Schedule VI'!C495","v":"Select"},null,null,null,{"$f":"'Schedule VI (EBS)'!C495","v":"Select"}]
["Sch VI","Schedule of Assets",null,"(B) Bonds - Currency 298",{"$f":"'Schedule VI'!C516","v":"Select"},null,null,null,{"$f":"'Schedule VI (EBS)'!C516","v":"Select"}]
["Sch VI","Schedule of Assets",null,"(B) Bonds - Currency 320",{"$f":"'Schedule VI'!C538","v":"Select"},null,null,null,{"$f":"'Schedule VI (EBS)'!C538","v":"Select"}]
["Sch VI","Schedule of Assets",null,"(B) Bonds - Currency 345",{"$f":"'Schedule VI'!C563","v":"Select"},null,null,null,{"$f":"'Schedule VI (EBS)'!C563","v":"Select"}]
["Sch VI","Schedule of Assets",null,"(B) Bonds - Currency 350",{"$f":"'Schedule VI'!C568","v":"Select"},null,null,null,{"$f":"'Schedule VI (EBS)'!C568","v":"Select"}]
["Sch VI","Schedule of Assets",null,"(B) Bonds - Currency 388",{"$f":"'Schedule VI'!C606","v":"Select"},null,null,null,{"$f":"'Schedule VI (EBS)'!C606","v":"Select"}]
["Sch VI","Schedule of Assets",null,"(B) Bonds - Currency 397",{"$f":"'Schedule VI'!C615","v":"Select"},null,null,null,{"$f":"'Schedule VI (EBS)'!C615","v":"Select"}]
["Sch VI","Schedule of Assets",null,"(B) Bonds - Rating 22",{"$f":"'Schedule VI'!D240","v":"Select"},null,null,null,{"$f":"'Schedule VI (EBS)'!D240","v":"Select"}]
["Sch VI","Schedule of Assets",null,"(B) Bonds - Rating 47",{"$f":"'Schedule VI'!D265","v":"Select"},null,null,null,{"$f":"'Schedule VI (EBS)'!D265","v":"Select"}]
["Sch VI","Schedule of Assets",null,"(B) Bonds - Rating 53",{"$f":"'Schedule VI'!D271","v":"Select"},null,null,null,{"$f":"'Schedule VI (EBS)'!D271","v":"Select"}]
["Sch VI","Schedule of Assets",null,"(B) Bonds - Rating 74",{"$f":"'Schedule VI'!D292","v":"Select"},null,null,null,{"$f":"'Schedule VI (EBS)'!D292","v":"Select"}]
["Sch VI","Schedule of Assets",null,"(B) Bonds - Rating 95",{"$f":"'Schedule VI'!D313","v":"Select"},null,null,null,{"$f":"'Schedule VI (EBS)'!D313","v":"Select"}]
["Sch VI","Schedule of Assets",null,"(B) Bonds - Rating 120",{"$f":"'Schedule VI'!D338","v":"Select"},null,null,null,{"$f":"'Schedule VI (EBS)'!D338","v":"Select"}]
["Sch VI","Schedule of Assets",null,"(B) Bonds - Rating 135",{"$f":"'Schedule VI'!D353","v":"Select"},null,null,null,{"$f":"'Schedule VI (EBS)'!D353","v":"Select"}]
["Sch VI","Schedule of Assets",null,"(B) Bonds - Rating 167",{"$f":"'Schedule VI'!D385","v":"Select"},null,null,null,{"$f":"'Schedule VI (EBS)'!D385","v":"Select"}]
["Sch VI","Schedule of Assets",null,"(B) Bonds - Rating 172",{"$f":"'Schedule VI'!D390","v":"Select"},null,null,null,{"$f":"'Schedule VI (EBS)'!D390","v":"Select"}]
["Sch VI","Schedule of Assets",null,"(B) Bonds - Rating 207",{"$f":"'Schedule VI'!D425","v":"Select"},null,null,null,{"$f":"'Schedule VI (EBS)'!D425","v":"Select"}]
["Sch VI","Schedule of Assets",null,"(B) Bonds - Rating 219",{"$f":"'Schedule VI'!D437","v":"Select"},null,null,null,{"$f":"'Schedule VI (EBS)'!D437","v":"Select"}]
["Sch VI","Schedule of Assets",null,"(B) Bonds - Rating 244",{"$f":"'Schedule VI'!D462","v":"Select"},null,null,null,{"$f":"'Schedule VI (EBS)'!D462","v":"Select"}]
["Sch VI","Schedule of Assets",null,"(B) Bonds - Rating 265",{"$f":"'Schedule VI'!D483","v":"Select"},null,null,null,{"$f":"'Schedule VI (EBS)'!D483","v":"Select"}]
["Sch VI","Schedule of Assets",null,"(B) Bonds - Rating 289",{"$f":"'Schedule VI'!D507","v":"Select"},null,null,null,{"$f":"'Schedule VI (EBS)'!D507","v":"Select"}]
["Sch VI","Schedule of Assets",null,"(B) Bonds - Rating 296",{"$f":"'Schedule VI'!D514","v":"Select"},null,null,null,{"$f":"'Schedule VI (EBS)'!D514","v":"Select"}]
["Sch VI","Schedule of Assets",null,"(B) Bonds - Rating 317",{"$f":"'Schedule VI'!D535","v":"Select"},null,null,null,{"$f":"'Schedule VI (EBS)'!D535","v":"Select"}]
["Sch VI","Schedule of Assets",null,"(B) Bonds - Rating 342",{"$f":"'Schedule VI'!D560","v":"Select"},null,null,null,{"$f":"'Schedule VI (EBS)'!D560","v":"Select"}]
["Sch VI","Schedule of Assets",null,"(B) Bonds - Rating 354",{"$f":"'Schedule VI'!D572","v":"Select"},null,null,null,{"$f":"'Schedule VI (EBS)'!D572","v":"Select"}]
["Sch VI","Schedule of Assets",null,"(B) Bonds - Rating 389",{"$f":"'Schedule VI'!D607","v":"Select"},null,null,null,{"$f":"'Schedule VI (EBS)'!D607","v":"Select"}]
["Sch VI","Schedule of Assets",null,"(B) Bonds - Nominal 14",{"$f":"'Schedule VI'!E232","v":0},null,null,null,{"$f":"'Schedule VI (EBS)'!E232","v":0}]
["Sch VI","Schedule of Assets",null,"(B) Bonds - Nominal 22",{"$f":"'Schedule VI'!E240","v":0},null,null,null,{"$f":"'Schedule VI (EBS)'!E240","v":0}]
["Sch VI","Schedule of Assets",null,"(B) Bonds - Nominal 41",{"$f":"'Schedule VI'!E259","v":0},null,null,null,{"$f":"'Schedule VI (EBS)'!E259","v":0}]
["Sch VI","Schedule of Assets",null,"(B) Bonds - Nominal 66",{"$f":"'Schedule VI'!E284","v":0},null,null,null,{"$f":"'Schedule VI (EBS)'!E284","v":0}]
["Sch VI","Schedule of Assets",null,"(B) Bonds - Nominal 87",{"$f":"'Schedule VI'!E305","v":0},null,null,null,{"$f":"'Schedule VI (EBS)'!E305","v":0}]
["Sch VI","Schedule of Assets",null,"(B) Bonds - Nominal 104",{"$f":"'Schedule VI'!E322","v":0},null,null,null,{"$f":"'Schedule VI (EBS)'!E322","v":0}]
["Sch VI","Schedule of Assets",null,"(B) Bonds - Nominal 134",{"$f":"'Schedule VI'!E352","v":0},null,null,null,{"$f":"'Schedule VI (EBS)'!E352","v":0}]
["Sch VI","Schedule of Assets",null,"(B) Bonds - Nominal 139",{"$f":"'Schedule VI'!E357","v":0},null,null,null,{"$f":"'Schedule VI (EBS)'!E357","v":0}]
["Sch VI","Schedule of Assets",null,"(B) Bonds - Nominal 164",{"$f":"'Schedule VI'!E382","v":0},null,null,null,{"$f":"'Schedule VI (EBS)'!E382","v":0}]
["Sch VI","Schedule of Assets",null,"(B) Bonds - Nominal 190",{"$f":"'Schedule VI'!E408","v":0},null,null,null,{"$f":"'Schedule VI (EBS)'!E408","v":0}]
["Sch VI","Schedule of Assets",null,"(B) Bonds - Nominal 211",{"$f":"'Schedule VI'!E429","v":0},null,null,null,{"$f":"'Schedule VI (EBS)'!E429","v":0}]
["Sch VI","Schedule of Assets",null,"(B) Bonds - Nominal 232",{"$f":"'Schedule VI'!E450","v":0},null,null,null,{"$f":"'Schedule VI (EBS)'!E450","v":0}]
["Sch VI","Schedule of Assets",null,"(B) Bonds - Nominal 258",{"$f":"'Schedule VI'!E476","v":0},null,null,null,{"$f":"'Schedule VI (EBS)'!E476","v":0}]
["Sch VI","Schedule of Assets",null,"(B) Bonds - Nominal 263",{"$f":"'Schedule VI'!E481","v":0},null,null,null,{"$f":"'Schedule VI (EBS)'!E481","v":0}]
["Sch VI","Schedule of Assets",null,"(B) Bonds - Nominal 284",{"$f":"'Schedule VI'!E502","v":0},null,null,null,{"$f":"'Schedule VI (EBS)'!E502","v":0}]
["Sch VI","Schedule of Assets",null,"(B) Bonds - Nominal 309",{"$f":"'Schedule VI'!E527","v":0},null,null,null,{"$f":"'Schedule VI (EBS)'!E527","v":0}]
["Sch VI","Schedule of Assets",null,"(B) Bonds - Nominal 319",{"$f":"'Schedule VI'!E537","v":0},null,null,null,{"$f":"'Schedule VI (EBS)'!E537","v":0}]
["Sch VI","Schedule of Assets",null,"(B) Bonds - Nominal 356",{"$f":"'Schedule VI'!E574","v":0},null,null,null,{"$f":"'Schedule VI (EBS)'!E574","v":0}]
["Sch VI","Schedule of Assets",null,"(B) Bonds - Nominal 361",{"$f":"'Schedule VI'!E579","v":0},null,null,null,{"$f":"'Schedule VI (EBS)'!E579","v":0}]
["Sch VI","Schedule of Assets",null,"(B) Bonds - Nominal 382",{"$f":"'Schedule VI'!E600","v":0},null,null,null,{"$f":"'Schedule VI (EBS)'!E600","v":0}]
["Sch VI","Schedule of Assets",null,"(B) Bonds - Fair Value 5",{"$f":"'Schedule VI'!F223","v":0},null,null,null,{"$f":"'Schedule VI (EBS)'!F223","v":0}]
["Sch VI","Schedule of Assets",null,"(B) Bonds - Fair Value 33",{"$f":"'Schedule VI'!F251","v":0},null,null,null,{"$f":"'Schedule VI (EBS)'!F251","v":0}]
["Sch VI","Schedule of Assets",null,"(B) Bonds - Fair Value 54",{"$f":"'Schedule VI'!F272","v":0},null,null,null,{"$f":"'Schedule VI (EBS)'!F272","v":0}]
["Sch VI","Schedule of Assets",null,"(B) Bonds - Fair Value 73",{"$f":"'Schedule VI'!F291","v":0},null,null,null,{"$f":"'Schedule VI (EBS)'!F291","v":0}]
["Sch VI","Schedule of Assets",null,"(B) Bonds - Fair Value 85",{"$f":"'Schedule VI'!F303","v":0},null,null,null,{"$f":"'Schedule VI (EBS)'!F303","v":0}]
["Sch VI","Schedule of Assets",null,"(B) Bonds - Fair Value 106",{"$f":"'Schedule VI'!F324","v":0},null,null,null,{"$f":"'Schedule VI (EBS)'!F324","v":0}]
["Sch VI","Schedule of Assets",null,"(B) Bonds - Fair Value 131",{"$f":"'Schedule VI'!F349","v":0},null,null,null,{"$f":"'Schedule VI (EBS)'!F349","v":0}]
["Sch VI","Schedule of Assets",null,"(B) Bonds - Fair Value 159",{"$f":"'Schedule VI'!F377","v":0},null,null,null,{"$f":"'Schedule VI (EBS)'!F377","v":0}]
["Sch VI","Schedule of Assets",null,"(B) Bonds - Fair Value 178",{"$f":"'Schedule VI'!F396","v":0},null,null,null,{"$f":"'Schedule VI (EBS)'!F396","v":0}]
["Sch VI","Schedule of Assets",null,"(B) Bonds - Fair Value 183",{"$f":"'Schedule VI'!F401","v":0},null,null,null,{"$f":"'Schedule VI (EBS)'!F401","v":0}]
["Sch VI","Schedule of Assets",null,"(B) Bonds - Fair Value 204",{"$f":"'Schedule VI'!F422","v":0},null,null,null,{"$f":"'Schedule VI (EBS)'!F422","v":0}]
["Sch VI","Schedule of Assets",null,"(B) Bonds - Fair Value 241",{"$f":"'Schedule VI'!F459","v":0},null,null,null,{"$f":"'Schedule VI (EBS)'!F459","v":0}]
["Sch VI","Schedule of Assets",null,"(B) Bonds - Fair Value 251",{"$f":"'Schedule VI'!F469","v":0},null,null,null,{"$f":"'Schedule VI (EBS)'!F469","v":0}]
["Sch VI","Schedule of Assets",null,"(B) Bonds - Fair Value 276",{"$f":"'Schedule VI'!F494","v":0},null,null,null,{"$f":"'Schedule VI (EBS)'!F494","v":0}]
["Sch VI","Schedule of Assets",null,"(B) Bonds - Fair Value 288",{"$f":"'Schedule VI'!F506","v":0},null,null,null,{"$f":"'Schedule VI (EBS)'!F506","v":0}]
["Sch VI","Schedule of Assets",null,"(B) Bonds - Fair Value 323",{"$f":"'Schedule VI'!F541","v":0},null,null,null,{"$f":"'Schedule VI (EBS)'!F541","v":0}]
["Sch VI","Schedule of Assets",null,"(B) Bonds - Fair Value 328",{"$f":"'Schedule VI'!F546","v":0},null,null,null,{"$f":"'Schedule VI (EBS)'!F546","v":0}]
["Sch VI","Schedule of Assets",null,"(B) Bonds - Fair Value 353",{"$f":"'Schedule VI'!F571","v":0},null,null,null,{"$f":"'Schedule VI (EBS)'!F571","v":0}]
["Sch VI","Schedule of Assets",null,"(B) Bonds - Fair Value 374",{"$f":"'Schedule VI'!F592","v":0},null,null,null,{"$f":"'Schedule VI (EBS)'!F592","v":0}]
["Sch VI","Schedule of Assets",null,"(B) Bonds - Fair Value 400",{"$f":"'Schedule VI'!F618","v":0},null,null,null,{"$f":"'Schedule VI (EBS)'!F618","v":0}]
["Sch VI","Schedule of Assets",null,"(B) Bonds - Weighted Average YTM 21",{"$f":"'Schedule VI'!G239","v":0},null,null,null,{"$f":"'Schedule VI (EBS)'!G239","v":0}]
["Sch VI","Schedule of Assets",null,"(B) Bonds - Weighted Average YTM 26",{"$f":"'Schedule VI'!G244","v":0},null,null,null,{"$f":"'Schedule VI (EBS)'!G244","v":0}]
["Sch VI","Schedule of Assets",null,"(B) Bonds - Weighted Average YTM 56",{"$f":"'Schedule VI'!G274","v":0},null,null,null,{"$f":"'Schedule VI (EBS)'!G274","v":0}]
["Sch VI","Schedule of Assets",null,"(B) Bonds - Weighted Average YTM 73",{"$f":"'Schedule VI'!G291","v":0},null,null,null,{"$f":"'Schedule VI (EBS)'!G291","v":0}]
["Sch VI","Schedule of Assets",null,"(B) Bonds - Weighted Average YTM 98",{"$f":"'Schedule VI'!G316","v":0},null,null,null,{"$f":"'Schedule VI (EBS)'!G316","v":0}]
["Sch VI","Schedule of Assets",null,"(B) Bonds - Weighted Average YTM 107",{"$f":"'Schedule VI'!G325","v":0},null,null,null,{"$f":"'Schedule VI (EBS)'!G325","v":0}]
["Sch VI","Schedule of Assets",null,"(B) Bonds - Weighted Average YTM 145",{"$f":"'Schedule VI'!G363","v":0},null,null,null,{"$f":"'Schedule VI (EBS)'!G363","v":0}]
["Sch VI","Schedule of Assets",null,"(B) Bonds - Weighted Average YTM 150",{"$f":"'Schedule VI'!G368","v":0},null,null,null,{"$f":"'Schedule VI (EBS)'!G368","v":0}]
["Sch VI","Schedule of Assets",null,"(B) Bonds - Weighted Average YTM 171",{"$f":"'Schedule VI'!G389","v":0},null,null,null,{"$f":"'Schedule VI (EBS)'!G389","v":0}]
["Sch VI","Schedule of Assets",null,"(B) Bonds - Weighted Average YTM 189",{"$f":"'Schedule VI'!G407","v":0},null,null,null,{"$f":"'Schedule VI (EBS)'!G407","v":0}]
["Sch VI","Schedule of Assets",null,"(B) Bonds - Weighted Average YTM 222",{"$f":"'Schedule VI'!G440","v":0},null,null,null,{"$f":"'Schedule VI (EBS)'!G440","v":0}]
["Sch VI","Schedule of Assets",null,"(B) Bonds - Weighted Average YTM 243",{"$f":"'Schedule VI'!G461","v":0},null,null,null,{"$f":"'Schedule VI (EBS)'!G461","v":0}]
["Sch VI","Schedule of Assets",null,"(B) Bonds - Weighted Average YTM 268",{"$f":"'Schedule VI'!G486","v":0},null,null,null,{"$f":"'Schedule VI (EBS)'!G486","v":0}]
["Sch VI","Schedule of Assets",null,"(B) Bonds - Weighted Average YTM 275",{"$f":"'Schedule VI'!G493","v":0},null,null,null,{"$f":"'Schedule VI (EBS)'!G493","v":0}]
["Sch VI","Schedule of Assets",null,"(B) Bonds - Weighted Average YTM 295",{"$f":"'Schedule VI'!G513","v":0},null,null,null,{"$f":"'Schedule VI (EBS)'!G513","v":0}]
["Sch VI","Schedule of Assets",null,"(B) Bonds - Weighted Average YTM 320",{"$f":"'Schedule VI'!G538","v":0},null,null,null,{"$f":"'Schedule VI (EBS)'!G538","v":0}]
["Sch VI","Schedule of Assets",null,"(B) Bonds - Weighted Average YTM 343",{"$f":"'Schedule VI'!G561","v":0},null,null,null,{"$f":"'Schedule VI (EBS)'!G561","v":0}]
["Sch VI","Schedule of Assets",null,"(B) Bonds - Weighted Average YTM 367",{"$f":"'Schedule VI'!G585","v":0},null,null,null,{"$f":"'Schedule VI (EBS)'!G585","v":0}]
["Sch VI","Schedule of Assets",null,"(B) Bonds - Weighted Average YTM 372",{"$f":"'Schedule VI'!G590","v":0},null,null,null,{"$f":"'Schedule VI (EBS)'!G590","v":0}]
["Sch VI","Schedule of Assets",null,"(B) Bonds - Weighted Average YTM 393",{"$f":"'Schedule VI'!G611","v":0},null,null,null,{"$f":"'Schedule VI (EBS)'!G611","v":0}]
["Sch VI","Schedule of Assets",null,"(B) Bonds - Effective Duration 25",{"$f":"'Schedule VI'!H243","v":0},null,null,null,{"$f":"'Schedule VI (EBS)'!H243","v":0}]
["Sch VI","Schedule of Assets",null,"(B) Bonds - Effective Duration 40",{"$f":"'Schedule VI'!H258","v":0},null,null,null,{"$f":"'Schedule VI (EBS)'!H258","v":0}]
["Sch VI","Schedule of Assets",null,"(B) Bonds - Effective Duration 65",{"$f":"'Schedule VI'!H283","v":0},null,null,null,{"$f":"'Schedule VI (EBS)'!H283","v":0}]
["Sch VI","Schedule of Assets",null,"(B) Bonds - Effective Duration 72",{"$f":"'Schedule VI'!H290","v":0},null,null,null,{"$f":"'Schedule VI (EBS)'!H290","v":0}]
["Sch VI","Schedule of Assets",null,"(B) Bonds - Effective Duration 112",{"$f":"'Schedule VI'!H330","v":0},null,null,null,{"$f":"'Schedule VI (EBS)'!H330","v":0}]
["Sch VI","Schedule of Assets",null,"(B) Bonds - Effective Duration 117",{"$f":"'Schedule VI'!H335","v":0},null,null,null,{"$f":"'Schedule VI (EBS)'!H335","v":0}]
["Sch VI","Schedule of Assets",null,"(B) Bonds - Effective Duration 138",{"$f":"'Schedule VI'!H356","v":0},null,null,null,{"$f":"'Schedule VI (EBS)'!H356","v":0}]
["Sch VI","Schedule of Assets",null,"(B) Bonds - Effective Duration 158",{"$f":"'Schedule VI'!H376","v":0},null,null,null,{"$f":"'Schedule VI (EBS)'!H376","v":0}]
["Sch VI","Schedule of Assets",null,"(B) Bonds - Effective Duration 189",{"$f":"'Schedule VI'!H407","v":0},null,null,null,{"$f":"'Schedule VI (EBS)'!H407","v":0}]
["Sch VI","Schedule of Assets",null,"(B) Bonds - Effective Duration 210",{"$f":"'Schedule VI'!H428","v":0},null,null,null,{"$f":"'Schedule VI (EBS)'!H428","v":0}]
["Sch VI","Schedule of Assets",null,"(B) Bonds - Effective Duration 215",{"$f":"'Schedule VI'!H433","v":0},null,null,null,{"$f":"'Schedule VI (EBS)'!H433","v":0}]
["Sch VI","Schedule of Assets",null,"(B) Bonds - Effective Duration 240",{"$f":"'Schedule VI'!H458","v":0},null,null,null,{"$f":"'Schedule VI (EBS)'!H458","v":0}]
["Sch VI","Schedule of Assets",null,"(B) Bonds - Effective Duration 262",{"$f":"'Schedule VI'!H480","v":0},null,null,null,{"$f":"'Schedule VI (EBS)'!H480","v":0}]
["Sch VI","Schedule of Assets",null,"(B) Bonds - Effective Duration 287",{"$f":"'Schedule VI'!H505","v":0},null,null,null,{"$f":"'Schedule VI (EBS)'!H505","v":0}]
["Sch VI","Schedule of Assets",null,"(B) Bonds - Effective Duration 312",{"$f":"'Schedule VI'!H530","v":0},null,null,null,{"$f":"'Schedule VI (EBS)'!H530","v":0}]
["Sch VI","Schedule of Assets",null,"(B) Bonds - Effective Duration 334",{"$f":"'Schedule VI'!H552","v":0},null,null,null,{"$f":"'Schedule VI (EBS)'!H552","v":0}]
["Sch VI","Schedule of Assets",null,"(B) Bonds - Effective Duration 339",{"$f":"'Schedule VI'!H557","v":0},null,null,null,{"$f":"'Schedule VI (EBS)'!H557","v":0}]
["Sch VI","Schedule of Assets",null,"(B) Bonds - Effective Duration 360",{"$f":"'Schedule VI'!H578","v":0},null,null,null,{"$f":"'Schedule VI (EBS)'!H578","v":0}]
["Sch VI","Schedule of Assets",null,"(B) Bonds - Effective Duration 394",{"$f":"'Schedule VI'!H612","v":0},null,null,null,{"$f":"'Schedule VI (EBS)'!H612","v":0}]
["Sch VI","Schedule of Assets",null,"(B) Bonds - Comments 7",{"$f":"'Schedule VI'!I225","v":0},null,null,null,{"$f":"'Schedule VI (EBS)'!I225","v":0}]
["Sch VI","Schedule of Assets",null,"(B) Bonds - Comments 32",{"$f":"'Schedule VI'!I250","v":0},null,null,null,{"$f":"'Schedule VI (EBS)'!I250","v":0}]
["Sch VI","Schedule of Assets",null,"(B) Bonds - Comments 37",{"$f":"'Schedule VI'!I255","v":0},null,null,null,{"$f":"'Schedule VI (EBS)'!I255","v":0}]
["Sch VI","Schedule of Assets",null,"(B) Bonds - Comments 59",{"$f":"'Schedule VI'!I277","v":0},null,null,null,{"$f":"'Schedule VI (EBS)'!I277","v":0}]
["Sch VI","Schedule of Assets",null,"(B) Bonds - Comments 84",{"$f":"'Schedule VI'!I302","v":0},null,null,null,{"$f":"'Schedule VI (EBS)'!I302","v":0}]
["Sch VI","Schedule of Assets",null,"(B) Bonds - Comments 109",{"$f":"'Schedule VI'!I327","v":0},null,null,null,{"$f":"'Schedule VI (EBS)'!I327","v":0}]
["Sch VI","Schedule of Assets",null,"(B) Bonds - Comments 127",{"$f":"'Schedule VI'!I345","v":0},null,null,null,{"$f":"'Schedule VI (EBS)'!I345","v":0}]
["Sch VI","Schedule of Assets",null,"(B) Bonds - Comments 156",{"$f":"'Schedule VI'!I374","v":0},null,null,null,{"$f":"'Schedule VI (EBS)'!I374","v":0}]
["Sch VI","Schedule of Assets",null,"(B) Bonds - Comments 177",{"$f":"'Schedule VI'!I395","v":0},null,null,null,{"$f":"'Schedule VI (EBS)'!I395","v":0}]
["Sch VI","Schedule of Assets",null,"(B) Bonds - Comments 182",{"$f":"'Schedule VI'!I400","v":0},null,null,null,{"$f":"'Schedule VI (EBS)'!I400","v":0}]
["Sch VI","Schedule of Assets",null,"(B) Bonds - Comments 209",{"$f":"'Schedule VI'!I427","v":0},null,null,null,{"$f":"'Schedule VI (EBS)'!I427","v":0}]
["Sch VI","Schedule of Assets",null,"(B) Bonds - Comments 229",{"$f":"'Schedule VI'!I447","v":0},null,null,null,{"$f":"'Schedule VI (EBS)'!I447","v":0}]
["Sch VI","Schedule of Assets",null,"(B) Bonds - Comments 254",{"$f":"'Schedule VI'!I472","v":0},null,null,null,{"$f":"'Schedule VI (EBS)'!I472","v":0}]
["Sch VI","Schedule of Assets",null,"(B) Bonds - Comments 279",{"$f":"'Schedule VI'!I497","v":0},null,null,null,{"$f":"'Schedule VI (EBS)'!I497","v":0}]
["Sch VI","Schedule of Assets",null,"(B) Bonds - Comments 295",{"$f":"'Schedule VI'!I513","v":0},null,null,null,{"$f":"'Schedule VI (EBS)'!I513","v":0}]
["Sch VI","Schedule of Assets",null,"(B) Bonds - Comments 306",{"$f":"'Schedule VI'!I524","v":0},null,null,null,{"$f":"'Schedule VI (EBS)'!I524","v":0}]
["Sch VI","Schedule of Assets",null,"(B) Bonds - Comments 327",{"$f":"'Schedule VI'!I545","v":0},null,null,null,{"$f":"'Schedule VI (EBS)'!I545","v":0}]
["Sch VI","Schedule of Assets",null,"(B) Bonds - Comments 342",{"$f":"'Schedule VI'!I560","v":0},null,null,null,{"$f":"'Schedule VI (EBS)'!I560","v":0}]
["Sch VI","Schedule of Assets",null,"(B) Bonds - Comments 378",{"$f":"'Schedule VI'!I596","v":0},null,null,null,{"$f":"'Schedule VI (EBS)'!I596","v":0}]
["Sch VI","Schedule of Assets",null,"(B) Bonds - Comments 399",{"$f":"'Schedule VI'!I617","v":0},null,null,null,{"$f":"'Schedule VI (EBS)'!I617","v":0}]
["Sch VI","Schedule of Assets",null,"(B) Bonds Sovereign Debt - Country 3",{"$f":"'Schedule VI'!C629","v":"Select"},null,null,null,{"$f":"'Schedule VI (EBS)'!C629","v":"Select"}]
["Sch VI","Schedule of Assets",null,"(B) Bonds Sovereign Debt - Country 27",{"$f":"'Schedule VI'!C653","v":"Select"},null,null,null,{"$f":"'Schedule VI (EBS)'!C653","v":"Select"}]
["Sch VI","Schedule of Assets",null,"(B) Bonds Sovereign Debt - Country 50",{"$f":"'Schedule VI'!C676","v":"Select"},null,null,null,{"$f":"'Schedule VI (EBS)'!C676","v":"Select"}]
["Sch VI","Schedule of Assets",null,"(B) Bonds Sovereign Debt - Country 75",{"$f":"'Schedule VI'!C701","v":"Select"},null,null,null,{"$f":"'Schedule VI (EBS)'!C701","v":"Select"}]
["Sch VI","Schedule of Assets",null,"(B) Bonds Sovereign Debt - Country 96",{"$f":"'Schedule VI'!C722","v":"Select"},null,null,null,{"$f":"'Schedule VI (EBS)'!C722","v":"Select"}]
["Sch VI","Schedule of Assets",null,"(B) Bonds Sovereign Debt - Country 109",{"$f":"'Schedule VI'!C735","v":"Select"},null,null,null,{"$f":"'Schedule VI (EBS)'!C735","v":"Select"}]
["Sch VI","Schedule of Assets",null,"(B) Bonds Sovereign Debt - Country 127",{"$f":"'Schedule VI'!C753","v":"Select"},null,null,null,{"$f":"'Schedule VI (EBS)'!C753","v":"Select"}]
["Sch VI","Schedule of Assets",null,"(B) Bonds Sovereign Debt - Country 148",{"$f":"'Schedule VI'!C774","v":"Select"},null,null,null,{"$f":"'Schedule VI (EBS)'!C774","v":"Select"}]
["Sch VI","Schedule of Assets",null,"(B) Bonds Sovereign Debt - Country 177",{"$f":"'Schedule VI'!C803","v":"Select"},null,null,null,{"$f":"'Schedule VI (EBS)'!C803","v":"Select"}]
["Sch VI","Schedule of Assets",null,"(B) Bonds Sovereign Debt - Country 195",{"$f":"'Schedule VI'!C821","v":"Select"},null,null,null,{"$f":"'Schedule VI (EBS)'!C821","v":"Select"}]
["Sch VI","Schedule of Assets",null,"(B) Bonds Sovereign Debt - Currency 20",{"$f":"'Schedule VI'!D646","v":"Select"},null,null,null,{"$f":"'Schedule VI (EBS)'!D646","v":"Select"}]
["Sch VI","Schedule of Assets",null,"(B) Bonds Sovereign Debt - Currency 25",{"$f":"'Schedule VI'!D651","v":"Select"},null,null,null,{"$f":"'Schedule VI (EBS)'!D651","v":"Select"}]
["Sch VI","Schedule of Assets",null,"(B) Bonds Sovereign Debt - Currency 63",{"$f":"'Schedule VI'!D689","v":"Select"},null,null,null,{"$f":"'Schedule VI (EBS)'!D689","v":"Select"}]
["Sch VI","Schedule of Assets",null,"(B) Bonds Sovereign Debt - Currency 72",{"$f":"'Schedule VI'!D698","v":"Select"},null,null,null,{"$f":"'Schedule VI (EBS)'!D698","v":"Select"}]
["Sch VI","Schedule of Assets",null,"(B) Bonds Sovereign Debt - Currency 97",{"$f":"'Schedule VI'!D723","v":"Select"},null,null,null,{"$f":"'Schedule VI (EBS)'!D723","v":"Select"}]
["Sch VI","Schedule of Assets",null,"(B) Bonds Sovereign Debt - Currency 118",{"$f":"'Schedule VI'!D744","v":"Select"},null,null,null,{"$f":"'Schedule VI (EBS)'!D744","v":"Select"}]
["Sch VI","Schedule of Assets",null,"(B) Bonds Sovereign Debt - Currency 145",{"$f":"'Schedule VI'!D771","v":"Select"},null,null,null,{"$f":"'Schedule VI (EBS)'!D771","v":"Select"}]
["Sch VI","Schedule of Assets",null,"(B) Bonds Sovereign Debt - Currency 165",{"$f":"'Schedule VI'!D791","v":"Select"},null,null,null,{"$f":"'Schedule VI (EBS)'!D791","v":"Select"}]
["Sch VI","Schedule of Assets",null,"(B) Bonds Sovereign Debt - Currency 170",{"$f":"'Schedule VI'!D796","v":"Select"},null,null,null,{"$f":"'Schedule VI (EBS)'!D796","v":"Select"}]
["Sch VI","Schedule of Assets",null,"(B) Bonds Sovereign Debt - Currency 192",{"$f":"'Schedule VI'!D818","v":"Select"},null,null,null,{"$f":"'Schedule VI (EBS)'!D818","v":"Select"}]
["Sch VI","Schedule of Assets",null,"(B) Bonds Sovereign Debt - Rating 17",{"$f":"'Schedule VI'!E643","v":"Select"},null,null,null,{"$f":"'Schedule VI (EBS)'!E643","v":"Select"}]
["Sch VI","Schedule of Assets",null,"(B) Bonds Sovereign Debt - Rating 42",{"$f":"'Schedule VI'!E668","v":"Select"},null,null,null,{"$f":"'Schedule VI (EBS)'!E668","v":"Select"}]
["Sch VI","Schedule of Assets",null,"(B) Bonds Sovereign Debt - Rating 63",{"$f":"'Schedule VI'!E689","v":"Select"},null,null,null,{"$f":"'Schedule VI (EBS)'!E689","v":"Select"}]
["Sch VI","Schedule of Assets",null,"(B) Bonds Sovereign Debt - Rating 78",{"$f":"'Schedule VI'!E704","v":"Select"},null,null,null,{"$f":"'Schedule VI (EBS)'!E704","v":"Select"}]
["Sch VI","Schedule of Assets",null,"(B) Bonds Sovereign Debt - Rating 94",{"$f":"'Schedule VI'!E720","v":"Select"},null,null,null,{"$f":"'Schedule VI (EBS)'!E720","v":"Select"}]
["Sch VI","Schedule of Assets",null,"(B) Bonds Sovereign Debt - Rating 115",{"$f":"'Schedule VI'!E741","v":"Select"},null,null,null,{"$f":"'Schedule VI (EBS)'!E741","v":"Select"}]
["Sch VI","Schedule of Assets",null,"(B) Bonds Sovereign Debt - Rating 140",{"$f":"'Schedule VI'!E766","v":"Select"},null,null,null,{"$f":"'Schedule VI (EBS)'!E766","v":"Select"}]
["Sch VI","Schedule of Assets",null,"(B) Bonds Sovereign Debt - Rating 160",{"$f":"'Schedule VI'!E786","v":"Select"},null,null,null,{"$f":"'Schedule VI (EBS)'!E786","v":"Select"}]
["Sch VI","Schedule of Assets",null,"(B) Bonds Sovereign Debt - Rating 187",{"$f":"'Schedule VI'!E813","v":"Select"},null,null,null,{"$f":"'Schedule VI (EBS)'!E813","v":"Select"}]
["Sch VI","Schedule of Assets",null,"(B) Bonds Sovereign Debt - Rating 192",{"$f":"'Schedule VI'!E818","v":"Select"},null,null,null,{"$f":"'Schedule VI (EBS)'!E818","v":"Select"}]
["Sch VI","Schedule of Assets",null,"(B) Bonds Sovereign Debt - Fair Value 11",{"$f":"'Schedule VI'!F637","v":0},null,null,null,{"$f":"'Schedule VI (EBS)'!F637","v":0}]
["Sch VI","Schedule of Assets",null,"(B) Bonds Sovereign Debt - Fair Value 39",{"$f":"'Schedule VI'!F665","v":0},null,null,null,{"$f":"'Schedule VI (EBS)'!F665","v":0}]
["Sch VI","Schedule of Assets",null,"(B) Bonds Sovereign Debt - Fair Value 64",{"$f":"'Schedule VI'!F690","v":0},null,null,null,{"$f":"'Schedule VI (EBS)'!F690","v":0}]
["Sch VI","Schedule of Assets",null,"(B) Bonds Sovereign Debt - Fair Value 85",{"$f":"'Schedule VI'!F711","v":0},null,null,null,{"$f":"'Schedule VI (EBS)'!F711","v":0}]
["Sch VI","Schedule of Assets",null,"(B) Bonds Sovereign Debt - Fair Value 93",{"$f":"'Schedule VI'!F719","v":0},null,null,null,{"$f":"'Schedule VI (EBS)'!F719","v":0}]
["Sch VI","Schedule of Assets",null,"(B) Bonds Sovereign Debt - Fair Value 112",{"$f":"'Schedule VI'!F738","v":0},null,null,null,{"$f":"'Schedule VI (EBS)'!F738","v":0}]
["Sch VI","Schedule of Assets",null,"(B) Bonds Sovereign Debt - Fair Value 137",{"$f":"'Schedule VI'!F763","v":0},null,null,null,{"$f":"'Schedule VI (EBS)'!F763","v":0}]
["Sch VI","Schedule of Assets",null,"(B) Bonds Sovereign Debt - Fair Value 162",{"$f":"'Schedule VI'!F788","v":0},null,null,null,{"$f":"'Schedule VI (EBS)'!F788","v":0}]
["Sch VI","Schedule of Assets",null,"(B) Bonds Sovereign Debt - Fair Value 179",{"$f":"'Schedule VI'!F805","v":0},null,null,null,{"$f":"'Schedule VI (EBS)'!F805","v":0}]
["Sch VI","Schedule of Assets",null,"(B) Bonds Sovereign Debt - Comments 9",{"$f":"'Schedule VI'!G635","v":0},null,null,null,{"$f":"'Schedule VI (EBS)'!G635","v":0}]
["Sch VI","Schedule of Assets",null,"(B) Bonds Sovereign Debt - Comments 14",{"$f":"'Schedule VI'!G640","v":0},null,null,null,{"$f":"'Schedule VI (EBS)'!G640","v":0}]
["Sch VI","Schedule of Assets",null,"(B) Bonds Sovereign Debt - Comments 47",{"$f":"'Schedule VI'!G673","v":0},null,null,null,{"$f":"'Schedule VI (EBS)'!G673","v":0}]
["Sch VI","Schedule of Assets",null,"(B) Bonds Sovereign Debt - Comments 61",{"$f":"'Schedule VI'!G687","v":0},null,null,null,{"$f":"'Schedule VI (EBS)'!G687","v":0}]
["Sch VI","Schedule of Assets",null,"(B) Bonds Sovereign Debt - Comments 82",{"$f":"'Schedule VI'!G708","v":0},null,null,null,{"$f":"'Schedule VI (EBS)'!G708","v":0}]
["Sch VI","Schedule of Assets",null,"(B) Bonds Sovereign Debt - Comments 107",{"$f":"'Schedule VI'!G733","v":0},null,null,null,{"$f":"'Schedule VI (EBS)'!G733","v":0}]
["Sch VI","Schedule of Assets",null,"(B) Bonds Sovereign Debt - Comments 129",{"$f":"'Schedule VI'!G755","v":0},null,null,null,{"$f":"'Schedule VI (EBS)'!G755","v":0}]
["Sch VI","Schedule of Assets",null,"(B) Bonds Sovereign Debt - Comments 134",{"$f":"'Schedule VI'!G760","v":0},null,null,null,{"$f":"'Schedule VI (EBS)'!G760","v":0}]
["Sch VI","Schedule of Assets",null,"(B) Bonds Sovereign Debt - Comments 159",{"$f":"'Schedule VI'!G785","v":0},null,null,null,{"$f":"'Schedule VI (EBS)'!G785","v":0}]
["Sch VI","Schedule of Assets",null,"(B) Bonds Sovereign Debt - Comments 184",{"$f":"'Schedule VI'!G810","v":0},null,null,null,{"$f":"'Schedule VI (EBS)'!G810","v":0}]
["Sch VI","Schedule of Assets",null,"(B) Bonds Sovereign Debt - Comments 194",{"$f":"'Schedule VI'!G820","v":0},null,null,null,{"$f":"'Schedule VI (EBS)'!G820","v":0}]
["Sch VI","Schedule of Assets",null,"(C) ABS and Struct. Sec. - Asset Type 30",{"$f":"'Schedule VI'!B864","v":"Select"},null,null,null,{"$f":"'Schedule VI (EBS)'!B864","v":"Select"}]
["Sch VI","Schedule of Assets",null,"(C) ABS and Struct. Sec. - Asset Type 51",{"$f":"'Schedule VI'!B885","v":"Select"},null,null,null,{"$f":"'Schedule VI (EBS)'!B885","v":"Select"}]
["Sch VI","Schedule of Assets",null,"(C) ABS and Struct. Sec. - Asset Type 61",{"$f":"'Schedule VI'!B895","v":"Select"},null,null,null,{"$f":"'Schedule VI (EBS)'!B895","v":"Select"}]
["Sch VI","Schedule of Assets",null,"(C) ABS and Struct. Sec. - Asset Type 82",{"$f":"'Schedule VI'!B916","v":"Select"},null,null,null,{"$f":"'Schedule VI (EBS)'!B916","v":"Select"}]
["Sch VI","Schedule of Assets",null,"(C) ABS and Struct. Sec. - Asset Type 103",{"$f":"'Schedule VI'!B937","v":"Select"},null,null,null,{"$f":"'Schedule VI (EBS)'!B937","v":"Select"}]
["Sch VI","Schedule of Assets",null,"(C) ABS and Struct. Sec. - Asset Type 128",{"$f":"'Schedule VI'!B962","v":"Select"},null,null,null,{"$f":"'Schedule VI (EBS)'!B962","v":"Select"}]
["Sch VI","Schedule of Assets",null,"(C) ABS and Struct. Sec. - Asset Type 147",{"$f":"'Schedule VI'!B981","v":"Select"},null,null,null,{"$f":"'Schedule VI (EBS)'!B981","v":"Select"}]
["Sch VI","Schedule of Assets",null,"(C) ABS and Struct. Sec. - Currency 25",{"$f":"'Schedule VI'!C859","v":"Select"},null,null,null,{"$f":"'Schedule VI (EBS)'!C859","v":"Select"}]
["Sch VI","Schedule of Assets",null,"(C) ABS and Struct. Sec. - Currency 30",{"$f":"'Schedule VI'!C864","v":"Select"},null,null,null,{"$f":"'Schedule VI (EBS)'!C864","v":"Select"}]
["Sch VI","Schedule of Assets",null,"(C) ABS and Struct. Sec. - Currency 51",{"$f":"'Schedule VI'!C885","v":"Select"},null,null,null,{"$f":"'Schedule VI (EBS)'!C885","v":"Select"}]
["Sch VI","Schedule of Assets",null,"(C) ABS and Struct. Sec. - Currency 79",{"$f":"'Schedule VI'!C913","v":"Select"},null,null,null,{"$f":"'Schedule VI (EBS)'!C913","v":"Select"}]
["Sch VI","Schedule of Assets",null,"(C) ABS and Struct. Sec. - Currency 102",{"$f":"'Schedule VI'!C936","v":"Select"},null,null,null,{"$f":"'Schedule VI (EBS)'!C936","v":"Select"}]
["Sch VI","Schedule of Assets",null,"(C) ABS and Struct. Sec. - Currency 123",{"$f":"'Schedule VI'!C957","v":"Select"},null,null,null,{"$f":"'Schedule VI (EBS)'!C957","v":"Select"}]
["Sch VI","Schedule of Assets",null,"(C) ABS and Struct. Sec. - Currency 147",{"$f":"'Schedule VI'!C981","v":"Select"},null,null,null,{"$f":"'Schedule VI (EBS)'!C981","v":"Select"}]
["Sch VI","Schedule of Assets",null,"(C) ABS and Struct. Sec. - Currency 150",{"$f":"'Schedule VI'!C984","v":"Select"},null,null,null,{"$f":"'Schedule VI (EBS)'!C984","v":"Select"}]
["Sch VI","Schedule of Assets",null,"(C) ABS and Struct. Sec. - Rating 25",{"$f":"'Schedule VI'!D859","v":"Select"},null,null,null,{"$f":"'Schedule VI (EBS)'!D859","v":"Select"}]
["Sch VI","Schedule of Assets",null,"(C) ABS and Struct. Sec. - Rating 50",{"$f":"'Schedule VI'!D884","v":"Select"},null,null,null,{"$f":"'Schedule VI (EBS)'!D884","v":"Select"}]
["Sch VI","Schedule of Assets",null,"(C) ABS and Struct. Sec. - Rating 62",{"$f":"'Schedule VI'!D896","v":"Select"},null,null,null,{"$f":"'Schedule VI (EBS)'!D896","v":"Select"}]
["Sch VI","Schedule of Assets",null,"(C) ABS and Struct. Sec. - Rating 97",{"$f":"'Schedule VI'!D931","v":"Select"},null,null,null,{"$f":"'Schedule VI (EBS)'!D931","v":"Select"}]
["Sch VI","Schedule of Assets",null,"(C) ABS and Struct. Sec. - Rating 102",{"$f":"'Schedule VI'!D936","v":"Select"},null,null,null,{"$f":"'Schedule VI (EBS)'!D936","v":"Select"}]
["Sch VI","Schedule of Assets",null,"(C) ABS and Struct. Sec. - Rating 123",{"$f":"'Schedule VI'!D957","v":"Select"},null,null,null,{"$f":"'Schedule VI (EBS)'!D957","v":"Select"}]
["Sch VI","Schedule of Assets",null,"(C) ABS and Struct. Sec. - Rating 144",{"$f":"'Schedule VI'!D978","v":"Select"},null,null,null,{"$f":"'Schedule VI (EBS)'!D978","v":"Select"}]
["Sch VI","Schedule of Assets",null,"(C) ABS and Struct. Sec. - Nominal Amount 20",{"$f":"'Schedule VI'!E854","v":0},null,null,null,{"$f":"'Schedule VI (EBS)'!E854","v":0}]
["Sch VI","Schedule of Assets",null,"(C) ABS and Struct. Sec. - Nominal Amount 45",{"$f":"'Schedule VI'!E879","v":0},null,null,null,{"$f":"'Schedule VI (EBS)'!E879","v":0}]
["Sch VI","Schedule of Assets",null,"(C) ABS and Struct. Sec. - Nominal Amount 62",{"$f":"'Schedule VI'!E896","v":0},null,null,null,{"$f":"'Schedule VI (EBS)'!E896","v":0}]
["Sch VI","Schedule of Assets",null,"(C) ABS and Struct. Sec. - Nominal Amount 72",{"$f":"'Schedule VI'!E906","v":0},null,null,null,{"$f":"'Schedule VI (EBS)'!E906","v":0}]
["Sch VI","Schedule of Assets",null,"(C) ABS and Struct. Sec. - Nominal Amount 97",{"$f":"'Schedule VI'!E931","v":0},null,null,null,{"$f":"'Schedule VI (EBS)'!E931","v":0}]
["Sch VI","Schedule of Assets",null,"(C) ABS and Struct. Sec. - Nominal Amount 118",{"$f":"'Schedule VI'!E952","v":0},null,null,null,{"$f":"'Schedule VI (EBS)'!E952","v":0}]
["Sch VI","Schedule of Assets",null,"(C) ABS and Struct. Sec. - Nominal Amount 148",{"$f":"'Schedule VI'!E982","v":0},null,null,null,{"$f":"'Schedule VI (EBS)'!E982","v":0}]
["Sch VI","Schedule of Assets",null,"(C) ABS and Struct. Sec. - Fair Value 19",{"$f":"'Schedule VI'!F853","v":0},null,null,null,{"$f":"'Schedule VI (EBS)'!F853","v":0}]
["Sch VI","Schedule of Assets",null,"(C) ABS and Struct. Sec. - Fair Value 40",{"$f":"'Schedule VI'!F874","v":0},null,null,null,{"$f":"'Schedule VI (EBS)'!F874","v":0}]
["Sch VI","Schedule of Assets",null,"(C) ABS and Struct. Sec. - Fair Value 45",{"$f":"'Schedule VI'!F879","v":0},null,null,null,{"$f":"'Schedule VI (EBS)'!F879","v":0}]
["Sch VI","Schedule of Assets",null,"(C) ABS and Struct. Sec. - Fair Value 71",{"$f":"'Schedule VI'!F905","v":0},null,null,null,{"$f":"'Schedule VI (EBS)'!F905","v":0}]
["Sch VI","Schedule of Assets",null,"(C) ABS and Struct. Sec. - Fair Value 92",{"$f":"'Schedule VI'!F926","v":0},null,null,null,{"$f":"'Schedule VI (EBS)'!F926","v":0}]
["Sch VI","Schedule of Assets",null,"(C) ABS and Struct. Sec. - Fair Value 117",{"$f":"'Schedule VI'!F951","v":0},null,null,null,{"$f":"'Schedule VI (EBS)'!F951","v":0}]
["Sch VI","Schedule of Assets",null,"(C) ABS and Struct. Sec. - Fair Value 131",{"$f":"'Schedule VI'!F965","v":0},null,null,null,{"$f":"'Schedule VI (EBS)'!F965","v":0}]
["Sch VI","Schedule of Assets",null,"(C) ABS and Struct. Sec. - Fair Value 144",{"$f":"'Schedule VI'!F978","v":0},null,null,null,{"$f":"'Schedule VI (EBS)'!F978","v":0}]
["Sch VI","Schedule of Assets",null,"(C) ABS and Struct. Sec. - Weighted Avg YTM 19",{"$f":"'Schedule VI'!G853","v":0},null,null,null,{"$f":"'Schedule VI (EBS)'!G853","v":0}]
["Sch VI","Schedule of Assets",null,"(C) ABS and Struct. Sec. - Weighted Avg YTM 40",{"$f":"'Schedule VI'!G874","v":0},null,null,null,{"$f":"'Schedule VI (EBS)'!G874","v":0}]
["Sch VI","Schedule of Assets",null,"(C) ABS and Struct. Sec. - Weighted Avg YTM 63",{"$f":"'Schedule VI'!G897","v":0},null,null,null,{"$f":"'Schedule VI (EBS)'!G897","v":0}]
["Sch VI","Schedule of Assets",null,"(C) ABS and Struct. Sec. - Weighted Avg YTM 87",{"$f":"'Schedule VI'!G921","v":0},null,null,null,{"$f":"'Schedule VI (EBS)'!G921","v":0}]
["Sch VI","Schedule of Assets",null,"(C) ABS and Struct. Sec. - Weighted Avg YTM 112",{"$f":"'Schedule VI'!G946","v":0},null,null,null,{"$f":"'Schedule VI (EBS)'!G946","v":0}]
["Sch VI","Schedule of Assets",null,"(C) ABS and Struct. Sec. - Weighted Avg YTM 131",{"$f":"'Schedule VI'!G965","v":0},null,null,null,{"$f":"'Schedule VI (EBS)'!G965","v":0}]
["Sch VI","Schedule of Assets",null,"(C) ABS and Struct. Sec. - Weighted Avg YTM 139",{"$f":"'Schedule VI'!G973","v":0},null,null,null,{"$f":"'Schedule VI (EBS)'!G973","v":0}]
["Sch VI","Schedule of Assets",null,"(C) ABS and Struct. Sec. - Effective Duration 14",{"$f":"'Schedule VI'!H848","v":0},null,null,null,{"$f":"'Schedule VI (EBS)'!H848","v":0}]
["Sch VI","Schedule of Assets",null,"(C) ABS and Struct. Sec. - Effective Duration 39",{"$f":"'Schedule VI'!H873","v":0},null,null,null,{"$f":"'Schedule VI (EBS)'!H873","v":0}]
["Sch VI","Schedule of Assets",null,"(C) ABS and Struct. Sec. - Effective Duration 46",{"$f":"'Schedule VI'!H880","v":0},null,null,null,{"$f":"'Schedule VI (EBS)'!H880","v":0}]
["Sch VI","Schedule of Assets",null,"(C) ABS and Struct. Sec. - Effective Duration 86",{"$f":"'Schedule VI'!H920","v":0},null,null,null,{"$f":"'Schedule VI (EBS)'!H920","v":0}]
["Sch VI","Schedule of Assets",null,"(C) ABS and Struct. Sec. - Effective Duration 87",{"$f":"'Schedule VI'!H921","v":0},null,null,null,{"$f":"'Schedule VI (EBS)'!H921","v":0}]
["Sch VI","Schedule of Assets",null,"(C) ABS and Struct. Sec. - Effective Duration 112",{"$f":"'Schedule VI'!H946","v":0},null,null,null,{"$f":"'Schedule VI (EBS)'!H946","v":0}]
["Sch VI","Schedule of Assets",null,"(C) ABS and Struct. Sec. - Effective Duration 128",{"$f":"'Schedule VI'!H962","v":0},null,null,null,{"$f":"'Schedule VI (EBS)'!H962","v":0}]
["Sch VI","Schedule of Assets",null,"(C) ABS and Struct. Sec. - Comments 9",{"$f":"'Schedule VI'!I843","v":0},null,null,null,{"$f":"'Schedule VI (EBS)'!I843","v":0}]
["Sch VI","Schedule of Assets",null,"(C) ABS and Struct. Sec. - Comments 34",{"$f":"'Schedule VI'!I868","v":0},null,null,null,{"$f":"'Schedule VI (EBS)'!I868","v":0}]
["Sch VI","Schedule of Assets",null,"(C) ABS and Struct. Sec. - Comments 46",{"$f":"'Schedule VI'!I880","v":0},null,null,null,{"$f":"'Schedule VI (EBS)'!I880","v":0}]
["Sch VI","Schedule of Assets",null,"(C) ABS and Struct. Sec. - Comments 61",{"$f":"'Schedule VI'!I895","v":0},null,null,null,{"$f":"'Schedule VI (EBS)'!I895","v":0}]
["Sch VI","Schedule of Assets",null,"(C) ABS and Struct. Sec. - Comments 86",{"$f":"'Schedule VI'!I920","v":0},null,null,null,{"$f":"'Schedule VI (EBS)'!I920","v":0}]
["Sch VI","Schedule of Assets",null,"(C) ABS and Struct. Sec. - Comments 107",{"$f":"'Schedule VI'!I941","v":0},null,null,null,{"$f":"'Schedule VI (EBS)'!I941","v":0}]
["Sch VI","Schedule of Assets",null,"(C) ABS and Struct. Sec. - Comments 132",{"$f":"'Schedule VI'!I966","v":0},null,null,null,{"$f":"'Schedule VI (EBS)'!I966","v":0}]
["Sch VI","Schedule of Assets",null,"(D) Loans - Asset Type 7",{"$f":"'Schedule VI'!B999","v":"Select"},null,null,null,{"$f":"'Schedule VI (EBS)'!B999","v":"Select"}]
["Sch VI","Schedule of Assets",null,"(D) Loans - Asset Type 28",{"$f":"'Schedule VI'!B1020","v":"Select"},null,null,null,{"$f":"'Schedule VI (EBS)'!B1020","v":"Select"}]
["Sch VI","Schedule of Assets",null,"(D) Loans - Asset Type 33",{"$f":"'Schedule VI'!B1025","v":"Select"},null,null,null,{"$f":"'Schedule VI (EBS)'!B1025","v":"Select"}]
["Sch VI","Schedule of Assets",null,"(D) Loans - Asset Type 67",{"$f":"'Schedule VI'!B1059","v":"Select"},null,null,null,{"$f":"'Schedule VI (EBS)'!B1059","v":"Select"}]
["Sch VI","Schedule of Assets",null,"(D) Loans - Asset Type 80",{"$f":"'Schedule VI'!B1072","v":"Select"},null,null,null,{"$f":"'Schedule VI (EBS)'!B1072","v":"Select"}]
["Sch VI","Schedule of Assets",null,"(D) Loans - Currency 5",{"$f":"'Schedule VI'!C997","v":"Select"},null,null,null,{"$f":"'Schedule VI (EBS)'!C997","v":"Select"}]
["Sch VI","Schedule of Assets",null,"(D) Loans - Currency 14",{"$f":"'Schedule VI'!C1006","v":"Select"},null,null,null,{"$f":"'Schedule VI (EBS)'!C1006","v":"Select"}]
["Sch VI","Schedule of Assets",null,"(D) Loans - Currency 32",{"$f":"'Schedule VI'!C1024","v":"Select"},null,null,null,{"$f":"'Schedule VI (EBS)'!C1024","v":"Select"}]
["Sch VI","Schedule of Assets",null,"(D) Loans - Currency 57",{"$f":"'Schedule VI'!C1049","v":"Select"},null,null,null,{"$f":"'Schedule VI (EBS)'!C1049","v":"Select"}]
["Sch VI","Schedule of Assets",null,"(D) Loans - Currency 78",{"$f":"'Schedule VI'!C1070","v":"Select"},null,null,null,{"$f":"'Schedule VI (EBS)'!C1070","v":"Select"}]
["Sch VI","Schedule of Assets",null,"(D) Loans - Currency 96",{"$f":"'Schedule VI'!C1088","v":"Select"},null,null,null,{"$f":"'Schedule VI (EBS)'!C1088","v":"Select"}]
["Sch VI","Schedule of Assets",null,"(D) Loans - Country 25",{"$f":"'Schedule VI'!D1017","v":"Select"},null,null,null,{"$f":"'Schedule VI (EBS)'!D1017","v":"Select"}]
["Sch VI","Schedule of Assets",null,"(D) Loans - Country 50",{"$f":"'Schedule VI'!D1042","v":"Select"},null,null,null,{"$f":"'Schedule VI (EBS)'!D1042","v":"Select"}]
["Sch VI","Schedule of Assets",null,"(D) Loans - Country 55",{"$f":"'Schedule VI'!D1047","v":"Select"},null,null,null,{"$f":"'Schedule VI (EBS)'!D1047","v":"Select"}]
["Sch VI","Schedule of Assets",null,"(D) Loans - Country 82",{"$f":"'Schedule VI'!D1074","v":"Select"},null,null,null,{"$f":"'Schedule VI (EBS)'!D1074","v":"Select"}]
["Sch VI","Schedule of Assets",null,"(D) Loans - Rating 2",{"$f":"'Schedule VI'!E994","v":"Select"},null,null,null,{"$f":"'Schedule VI (EBS)'!E994","v":"Select"}]
["Sch VI","Schedule of Assets",null,"(D) Loans - Rating 23",{"$f":"'Schedule VI'!E1015","v":"Select"},null,null,null,{"$f":"'Schedule VI (EBS)'!E1015","v":"Select"}]
["Sch VI","Schedule of Assets",null,"(D) Loans - Rating 50",{"$f":"'Schedule VI'!E1042","v":"Select"},null,null,null,{"$f":"'Schedule VI (EBS)'!E1042","v":"Select"}]
["Sch VI","Schedule of Assets",null,"(D) Loans - Rating 54",{"$f":"'Schedule VI'!E1046","v":"Select"},null,null,null,{"$f":"'Schedule VI (EBS)'!E1046","v":"Select"}]
["Sch VI","Schedule of Assets",null,"(D) Loans - Rating 75",{"$f":"'Schedule VI'!E1067","v":"Select"},null,null,null,{"$f":"'Schedule VI (EBS)'!E1067","v":"Select"}]
["Sch VI","Schedule of Assets",null,"(D) Loans - Rating 100",{"$f":"'Schedule VI'!E1092","v":"Select"},null,null,null,{"$f":"'Schedule VI (EBS)'!E1092","v":"Select"}]
["Sch VI","Schedule of Assets",null,"(D) Loans - Nominal Amount 32",{"$f":"'Schedule VI'!F1024","v":0},null,null,null,{"$f":"'Schedule VI (EBS)'!F1024","v":0}]
["Sch VI","Schedule of Assets",null,"(D) Loans - Nominal Amount 47",{"$f":"'Schedule VI'!F1039","v":0},null,null,null,{"$f":"'Schedule VI (EBS)'!F1039","v":0}]
["Sch VI","Schedule of Assets",null,"(D) Loans - Nominal Amount 72",{"$f":"'Schedule VI'!F1064","v":0},null,null,null,{"$f":"'Schedule VI (EBS)'!F1064","v":0}]
["Sch VI","Schedule of Assets",null,"(D) Loans - Nominal Amount 93",{"$f":"'Schedule VI'!F1085","v":0},null,null,null,{"$f":"'Schedule VI (EBS)'!F1085","v":0}]
["Sch VI","Schedule of Assets",null,"(D) Loans - Nominal Amount 97",{"$f":"'Schedule VI'!F1089","v":0},null,null,null,{"$f":"'Schedule VI (EBS)'!F1089","v":0}]
["Sch VI","Schedule of Assets",null,"(D) Loans - Fair Value 24",{"$f":"'Schedule VI'!G1016","v":0},null,null,null,{"$f":"'Schedule VI (EBS)'!G1016","v":0}]
["Sch VI","Schedule of Assets",null,"(D) Loans - Fair Value 45",{"$f":"'Schedule VI'!G1037","v":0},null,null,null,{"$f":"'Schedule VI (EBS)'!G1037","v":0}]
["Sch VI","Schedule of Assets",null,"(D) Loans - Fair Value 65",{"$f":"'Schedule VI'!G1057","v":0},null,null,null,{"$f":"'Schedule VI (EBS)'!G1057","v":0}]
["Sch VI","Schedule of Assets",null,"(D) Loans - Fair Value 96",{"$f":"'Schedule VI'!G1088","v":0},null,null,null,{"$f":"'Schedule VI (EBS)'!G1088","v":0}]
["Sch VI","Schedule of Assets",null,"(D) Loans - Fair Value 97",{"$f":"'Schedule VI'!G1089","v":0},null,null,null,{"$f":"'Schedule VI (EBS)'!G1089","v":0}]
["Sch VI","Schedule of Assets",null,"(D) Loans - Weighted Avg YTM 22",{"$f":"'Schedule VI'!H1014","v":0},null,null,null,{"$f":"'Schedule VI (EBS)'!H1014","v":0}]
["Sch VI","Schedule of Assets",null,"(D) Loans - Weighted Avg YTM 51",{"$f":"'Schedule VI'!H1043","v":0},null,null,null,{"$f":"'Schedule VI (EBS)'!H1043","v":0}]
["Sch VI","Schedule of Assets",null,"(D) Loans - Weighted Avg YTM 69",{"$f":"'Schedule VI'!H1061","v":0},null,null,null,{"$f":"'Schedule VI (EBS)'!H1061","v":0}]
["Sch VI","Schedule of Assets",null,"(D) Loans - Weighted Avg YTM 94",{"$f":"'Schedule VI'!H1086","v":0},null,null,null,{"$f":"'Schedule VI (EBS)'!H1086","v":0}]
["Sch VI","Schedule of Assets",null,"(D) Loans - Effective Duration 15",{"$f":"'Schedule VI'!I1007","v":0},null,null,null,{"$f":"'Schedule VI (EBS)'!I1007","v":0}]
["Sch VI","Schedule of Assets",null,"(D) Loans - Effective Duration 33",{"$f":"'Schedule VI'!I1025","v":0},null,null,null,{"$f":"'Schedule VI (EBS)'!I1025","v":0}]
["Sch VI","Schedule of Assets",null,"(D) Loans - Effective Duration 42",{"$f":"'Schedule VI'!I1034","v":0},null,null,null,{"$f":"'Schedule VI (EBS)'!I1034","v":0}]
["Sch VI","Schedule of Assets",null,"(D) Loans - Effective Duration 67",{"$f":"'Schedule VI'!I1059","v":0},null,null,null,{"$f":"'Schedule VI (EBS)'!I1059","v":0}]
["Sch VI","Schedule of Assets",null,"(D) Loans - Effective Duration 80",{"$f":"'Schedule VI'!I1072","v":0},null,null,null,{"$f":"'Schedule VI (EBS)'!I1072","v":0}]
["Sch VI","Schedule of Assets",null,"(D) Loans - Comments 14",{"$f":"'Schedule VI'!J1006","v":0},null,null,null,{"$f":"'Schedule VI (EBS)'!J1006","v":0}]
["Sch VI","Schedule of Assets",null,"(D) Loans - Comments 39",{"$f":"'Schedule VI'!J1031","v":0},null,null,null,{"$f":"'Schedule VI (EBS)'!J1031","v":0}]
["Sch VI","Schedule of Assets",null,"(D) Loans - Comments 44",{"$f":"'Schedule VI'!J1036","v":0},null,null,null,{"$f":"'Schedule VI (EBS)'!J1036","v":0}]
["Sch VI","Schedule of Assets",null,"(D) Loans - Comments 66",{"$f":"'Schedule VI'!J1058","v":0},null,null,null,{"$f":"'Schedule VI (EBS)'!J1058","v":0}]
["Sch VI","Schedule of Assets",null,"(D) Loans - Comments 91",{"$f":"'Schedule VI'!J1083","v":0},null,null,null,{"$f":"'Schedule VI (EBS)'!J1083","v":0}]
["Sch VI","Schedule of Assets",null,"(D) Loans Not Perform. - Asset Type 11",{"$f":"'Schedule VI'!B1111","v":"Select"},null,null,null,{"$f":"'Schedule VI (EBS)'!B1111","v":"Select"}]
["Sch VI","Schedule of Assets",null,"(D) Loans Not Perform. - Currency 16",{"$f":"'Schedule VI'!C1116","v":"Select"},null,null,null,{"$f":"'Schedule VI (EBS)'!C1116","v":"Select"}]
["Sch VI","Schedule of Assets",null,"(D) Loans Not Perform. - Country 7",{"$f":"'Schedule VI'!D1107","v":"Select"},null,null,null,{"$f":"'Schedule VI (EBS)'!D1107","v":"Select"}]
["Sch VI","Schedule of Assets",null,"(D) Loans Not Perform. - Rating 3",{"$f":"'Schedule VI'!E1103","v":"Select"},null,null,null,{"$f":"'Schedule VI (EBS)'!E1103","v":"Select"}]
["Sch VI","Schedule of Assets",null,"(D) Loans Not Perform. - Nominal Amount 8",{"$f":"'Schedule VI'!F1108","v":0},null,null,null,{"$f":"'Schedule VI (EBS)'!F1108","v":0}]
["Sch VI","Schedule of Assets",null,"(D) Loans Not Perform. - Fair Value 15",{"$f":"'Schedule VI'!G1115","v":0},null,null,null,{"$f":"'Schedule VI (EBS)'!G1115","v":0}]
["Sch VI","Schedule of Assets",null,"(D) Loans Not Perform. - Comment 15",{"$f":"'Schedule VI'!H1115","v":0},null,null,null,{"$f":"'Schedule VI (EBS)'!H1115","v":0}]
["Sch VI","Schedule of Assets",null,"(E) Preferred Equities - Asset Type 19",{"$f":"'Schedule VI'!B1147","v":"Select"},null,null,null,{"$f":"'Schedule VI (EBS)'!B1147","v":"Select"}]
["Sch VI","Schedule of Assets",null,"(E) Preferred Equities - Asset Type 40",{"$f":"'Schedule VI'!B1168","v":"Select"},null,null,null,{"$f":"'Schedule VI (EBS)'!B1168","v":"Select"}]
["Sch VI","Schedule of Assets",null,"(E) Preferred Equities - Asset Type 60",{"$f":"'Schedule VI'!B1188","v":"Select"},null,null,null,{"$f":"'Schedule VI (EBS)'!B1188","v":"Select"}]
["Sch VI","Schedule of Assets",null,"(E) Preferred Equities - Asset Type 71",{"$f":"'Schedule VI'!B1199","v":"Select"},null,null,null,{"$f":"'Schedule VI (EBS)'!B1199","v":"Select"}]
["Sch VI","Schedule of Assets",null,"(E) Preferred Equities - Asset Type 92",{"$f":"'Schedule VI'!B1220","v":"Select"},null,null,null,{"$f":"'Schedule VI (EBS)'!B1220","v":"Select"}]
["Sch VI","Schedule of Assets",null,"(E) Preferred Equities - Currency 17",{"$f":"'Schedule VI'!C1145","v":"Select"},null,null,null,{"$f":"'Schedule VI (EBS)'!C1145","v":"Select"}]
["Sch VI","Schedule of Assets",null,"(E) Preferred Equities - Currency 25",{"$f":"'Schedule VI'!C1153","v":"Select"},null,null,null,{"$f":"'Schedule VI (EBS)'!C1153","v":"Select"}]
["Sch VI","Schedule of Assets",null,"(E) Preferred Equities - Currency 44",{"$f":"'Schedule VI'!C1172","v":"Select"},null,null,null,{"$f":"'Schedule VI (EBS)'!C1172","v":"Select"}]
["Sch VI","Schedule of Assets",null,"(E) Preferred Equities - Currency 69",{"$f":"'Schedule VI'!C1197","v":"Select"},null,null,null,{"$f":"'Schedule VI (EBS)'!C1197","v":"Select"}]
["Sch VI","Schedule of Assets",null,"(E) Preferred Equities - Currency 93",{"$f":"'Schedule VI'!C1221","v":"Select"},null,null,null,{"$f":"'Schedule VI (EBS)'!C1221","v":"Select"}]
["Sch VI","Schedule of Assets",null,"(E) Preferred Equities - Rating 16",{"$f":"'Schedule VI'!D1144","v":"Select"},null,null,null,{"$f":"'Schedule VI (EBS)'!D1144","v":"Select"}]
["Sch VI","Schedule of Assets",null,"(E) Preferred Equities - Rating 41",{"$f":"'Schedule VI'!D1169","v":"Select"},null,null,null,{"$f":"'Schedule VI (EBS)'!D1169","v":"Select"}]
["Sch VI","Schedule of Assets",null,"(E) Preferred Equities - Rating 62",{"$f":"'Schedule VI'!D1190","v":"Select"},null,null,null,{"$f":"'Schedule VI (EBS)'!D1190","v":"Select"}]
["Sch VI","Schedule of Assets",null,"(E) Preferred Equities - Rating 75",{"$f":"'Schedule VI'!D1203","v":"Select"},null,null,null,{"$f":"'Schedule VI (EBS)'!D1203","v":"Select"}]
["Sch VI","Schedule of Assets",null,"(E) Preferred Equities - Rating 89",{"$f":"'Schedule VI'!D1217","v":"Select"},null,null,null,{"$f":"'Schedule VI (EBS)'!D1217","v":"Select"}]
["Sch VI","Schedule of Assets",null,"(E) Preferred Equities - Nominal Amount 14",{"$f":"'Schedule VI'!E1142","v":0},null,null,null,{"$f":"'Schedule VI (EBS)'!E1142","v":0}]
["Sch VI","Schedule of Assets",null,"(E) Preferred Equities - Nominal Amount 39",{"$f":"'Schedule VI'!E1167","v":0},null,null,null,{"$f":"'Schedule VI (EBS)'!E1167","v":0}]
["Sch VI","Schedule of Assets",null,"(E) Preferred Equities - Nominal Amount 61",{"$f":"'Schedule VI'!E1189","v":0},null,null,null,{"$f":"'Schedule VI (EBS)'!E1189","v":0}]
["Sch VI","Schedule of Assets",null,"(E) Preferred Equities - Nominal Amount 66",{"$f":"'Schedule VI'!E1194","v":0},null,null,null,{"$f":"'Schedule VI (EBS)'!E1194","v":0}]
["Sch VI","Schedule of Assets",null,"(E) Preferred Equities - Nominal Amount 87",{"$f":"'Schedule VI'!E1215","v":0},null,null,null,{"$f":"'Schedule VI (EBS)'!E1215","v":0}]
["Sch VI","Schedule of Assets",null,"(E) Preferred Equities - Fair Value 8",{"$f":"'Schedule VI'!F1136","v":0},null,null,null,{"$f":"'Schedule VI (EBS)'!F1136","v":0}]
["Sch VI","Schedule of Assets",null,"(E) Preferred Equities - Fair Value 38",{"$f":"'Schedule VI'!F1166","v":0},null,null,null,{"$f":"'Schedule VI (EBS)'!F1166","v":0}]
["Sch VI","Schedule of Assets",null,"(E) Preferred Equities - Fair Value 59",{"$f":"'Schedule VI'!F1187","v":0},null,null,null,{"$f":"'Schedule VI (EBS)'!F1187","v":0}]
["Sch VI","Schedule of Assets",null,"(E) Preferred Equities - Fair Value 84",{"$f":"'Schedule VI'!F1212","v":0},null,null,null,{"$f":"'Schedule VI (EBS)'!F1212","v":0}]
["Sch VI","Schedule of Assets",null,"(E) Preferred Equities - Fair Value 90",{"$f":"'Schedule VI'!F1218","v":0},null,null,null,{"$f":"'Schedule VI (EBS)'!F1218","v":0}]
["Sch VI","Schedule of Assets",null,"(E) Preferred Equities - Weighted Avg YTM 11",{"$f":"'Schedule VI'!G1139","v":0},null,null,null,{"$f":"'Schedule VI (EBS)'!G1139","v":0}]
["Sch VI","Schedule of Assets",null,"(E) Preferred Equities - Weighted Avg YTM 36",{"$f":"'Schedule VI'!G1164","v":0},null,null,null,{"$f":"'Schedule VI (EBS)'!G1164","v":0}]
["Sch VI","Schedule of Assets",null,"(E) Preferred Equities - Weighted Avg YTM 57",{"$f":"'Schedule VI'!G1185","v":0},null,null,null,{"$f":"'Schedule VI (EBS)'!G1185","v":0}]
["Sch VI","Schedule of Assets",null,"(E) Preferred Equities - Weighted Avg YTM 76",{"$f":"'Schedule VI'!G1204","v":0},null,null,null,{"$f":"'Schedule VI (EBS)'!G1204","v":0}]
["Sch VI","Schedule of Assets",null,"(E) Preferred Equities - Effective Duration 8",{"$f":"'Schedule VI'!H1136","v":0},null,null,null,{"$f":"'Schedule VI (EBS)'!H1136","v":0}]
["Sch VI","Schedule of Assets",null,"(E) Preferred Equities - Effective Duration 9",{"$f":"'Schedule VI'!H1137","v":0},null,null,null,{"$f":"'Schedule VI (EBS)'!H1137","v":0}]
["Sch VI","Schedule of Assets",null,"(E) Preferred Equities - Effective Duration 44",{"$f":"'Schedule VI'!H1172","v":0},null,null,null,{"$f":"'Schedule VI (EBS)'!H1172","v":0}]
["Sch VI","Schedule of Assets",null,"(E) Preferred Equities - Effective Duration 60",{"$f":"'Schedule VI'!H1188","v":0},null,null,null,{"$f":"'Schedule VI (EBS)'!H1188","v":0}]
["Sch VI","Schedule of Assets",null,"(E) Preferred Equities - Effective Duration 81",{"$f":"'Schedule VI'!H1209","v":0},null,null,null,{"$f":"'Schedule VI (EBS)'!H1209","v":0}]
["Sch VI","Schedule of Assets",null,"(E) Preferred Equities - Comments 6",{"$f":"'Schedule VI'!I1134","v":0},null,null,null,{"$f":"'Schedule VI (EBS)'!I1134","v":0}]
["Sch VI","Schedule of Assets",null,"(E) Preferred Equities - Comments 30",{"$f":"'Schedule VI'!I1158","v":0},null,null,null,{"$f":"'Schedule VI (EBS)'!I1158","v":0}]
["Sch VI","Schedule of Assets",null,"(E) Preferred Equities - Comments 33",{"$f":"'Schedule VI'!I1161","v":0},null,null,null,{"$f":"'Schedule VI (EBS)'!I1161","v":0}]
["Sch VI","Schedule of Assets",null,"(E) Preferred Equities - Comments 58",{"$f":"'Schedule VI'!I1186","v":0},null,null,null,{"$f":"'Schedule VI (EBS)'!I1186","v":0}]
["Sch VI","Schedule of Assets",null,"(E) Preferred Equities - Comments 77",{"$f":"'Schedule VI'!I1205","v":0},null,null,null,{"$f":"'Schedule VI (EBS)'!I1205","v":0}]
["Sch VI","Schedule of Assets",null,"(F) Common Equities - Asset Type 4",{"$f":"'Schedule VI'!B1240","v":"Select"},null,null,null,{"$f":"'Schedule VI (EBS)'!B1240","v":"Select"}]
["Sch VI","Schedule of Assets",null,"(F) Common Equities - Asset Type 25",{"$f":"'Schedule VI'!B1261","v":"Select"},null,null,null,{"$f":"'Schedule VI (EBS)'!B1261","v":"Select"}]
["Sch VI","Schedule of Assets",null,"(F) Common Equities - Asset Type 50",{"$f":"'Schedule VI'!B1286","v":"Select"},null,null,null,{"$f":"'Schedule VI (EBS)'!B1286","v":"Select"}]
["Sch VI","Schedule of Assets",null,"(F) Common Equities - Asset Type 58",{"$f":"'Schedule VI'!B1294","v":"Select"},null,null,null,{"$f":"'Schedule VI (EBS)'!B1294","v":"Select"}]
["Sch VI","Schedule of Assets",null,"(F) Common Equities - Asset Type 77",{"$f":"'Schedule VI'!B1313","v":"Select"},null,null,null,{"$f":"'Schedule VI (EBS)'!B1313","v":"Select"}]
["Sch VI","Schedule of Assets",null,"(F) Common Equities - Currency 2",{"$f":"'Schedule VI'!C1238","v":"Select"},null,null,null,{"$f":"'Schedule VI (EBS)'!C1238","v":"Select"}]
["Sch VI","Schedule of Assets",null,"(F) Common Equities - Currency 27",{"$f":"'Schedule VI'!C1263","v":"Select"},null,null,null,{"$f":"'Schedule VI (EBS)'!C1263","v":"Select"}]
["Sch VI","Schedule of Assets",null,"(F) Common Equities - Currency 44",{"$f":"'Schedule VI'!C1280","v":"Select"},null,null,null,{"$f":"'Schedule VI (EBS)'!C1280","v":"Select"}]
["Sch VI","Schedule of Assets",null,"(F) Common Equities - Currency 54",{"$f":"'Schedule VI'!C1290","v":"Select"},null,null,null,{"$f":"'Schedule VI (EBS)'!C1290","v":"Select"}]
["Sch VI","Schedule of Assets",null,"(F) Common Equities - Currency 75",{"$f":"'Schedule VI'!C1311","v":"Select"},null,null,null,{"$f":"'Schedule VI (EBS)'!C1311","v":"Select"}]
["Sch VI","Schedule of Assets",null,"(F) Common Equities - Country 12",{"$f":"'Schedule VI'!D1248","v":"Select"},null,null,null,{"$f":"'Schedule VI (EBS)'!D1248","v":"Select"}]
["Sch VI","Schedule of Assets",null,"(F) Common Equities - Country 26",{"$f":"'Schedule VI'!D1262","v":"Select"},null,null,null,{"$f":"'Schedule VI (EBS)'!D1262","v":"Select"}]
["Sch VI","Schedule of Assets",null,"(F) Common Equities - Country 47",{"$f":"'Schedule VI'!D1283","v":"Select"},null,null,null,{"$f":"'Schedule VI (EBS)'!D1283","v":"Select"}]
["Sch VI","Schedule of Assets",null,"(F) Common Equities - Country 72",{"$f":"'Schedule VI'!D1308","v":"Select"},null,null,null,{"$f":"'Schedule VI (EBS)'!D1308","v":"Select"}]
["Sch VI","Schedule of Assets",null,"(F) Common Equities - Country 94",{"$f":"'Schedule VI'!D1330","v":"Select"},null,null,null,{"$f":"'Schedule VI (EBS)'!D1330","v":"Select"}]
["Sch VI","Schedule of Assets",null,"(F) Common Equities - Country 99",{"$f":"'Schedule VI'!D1335","v":"Select"},null,null,null,{"$f":"'Schedule VI (EBS)'!D1335","v":"Select"}]
["Sch VI","Schedule of Assets",null,"(F) Common Equities - Fair Value 24",{"$f":"'Schedule VI'!E1260","v":0},null,null,null,{"$f":"'Schedule VI (EBS)'!E1260","v":0}]
["Sch VI","Schedule of Assets",null,"(F) Common Equities - Fair Value 45",{"$f":"'Schedule VI'!E1281","v":0},null,null,null,{"$f":"'Schedule VI (EBS)'!E1281","v":0}]
["Sch VI","Schedule of Assets",null,"(F) Common Equities - Fair Value 59",{"$f":"'Schedule VI'!E1295","v":0},null,null,null,{"$f":"'Schedule VI (EBS)'!E1295","v":0}]
["Sch VI","Schedule of Assets",null,"(F) Common Equities - Fair Value 76",{"$f":"'Schedule VI'!E1312","v":0},null,null,null,{"$f":"'Schedule VI (EBS)'!E1312","v":0}]
["Sch VI","Schedule of Assets",null,"(F) Common Equities - Fair Value 97",{"$f":"'Schedule VI'!E1333","v":0},null,null,null,{"$f":"'Schedule VI (EBS)'!E1333","v":0}]
["Sch VI","Schedule of Assets",null,"(F) Common Equities - Comments 27",{"$f":"'Schedule VI'!F1263","v":0},null,null,null,{"$f":"'Schedule VI (EBS)'!F1263","v":0}]
["Sch VI","Schedule of Assets",null,"(F) Common Equities - Comments 44",{"$f":"'Schedule VI'!F1280","v":0},null,null,null,{"$f":"'Schedule VI (EBS)'!F1280","v":0}]
["Sch VI","Schedule of Assets",null,"(F) Common Equities - Comments 69",{"$f":"'Schedule VI'!F1305","v":0},null,null,null,{"$f":"'Schedule VI (EBS)'!F1305","v":0}]
["Sch VI","Schedule of Assets",null,"(F) Common Equities - Comments 94",{"$f":"'Schedule VI'!F1330","v":0},null,null,null,{"$f":"'Schedule VI (EBS)'!F1330","v":0}]
["Sch VI","Schedule of Assets",null,"(G) Real Estate - Asset Type 12",{"$f":"'Schedule VI'!B1356","v":"Select"},null,null,null,{"$f":"'Schedule VI (EBS)'!B1356","v":"Select"}]
["Sch VI","Schedule of Assets",null,"(G) Real Estate - Asset Type 20",{"$f":"'Schedule VI'!B1364","v":"Select"},null,null,null,{"$f":"'Schedule VI (EBS)'!B1364","v":"Select"}]
["Sch VI","Schedule of Assets",null,"(G) Real Estate - Asset Type 45",{"$f":"'Schedule VI'!B1389","v":"Select"},null,null,null,{"$f":"'Schedule VI (EBS)'!B1389","v":"Select"}]
["Sch VI","Schedule of Assets",null,"(G) Real Estate - Asset Type 66",{"$f":"'Schedule VI'!B1410","v":"Select"},null,null,null,{"$f":"'Schedule VI (EBS)'!B1410","v":"Select"}]
["Sch VI","Schedule of Assets",null,"(G) Real Estate - Asset Type 94",{"$f":"'Schedule VI'!B1438","v":"Select"},null,null,null,{"$f":"'Schedule VI (EBS)'!B1438","v":"Select"}]
["Sch VI","Schedule of Assets",null,"(G) Real Estate - Currency 13",{"$f":"'Schedule VI'!C1357","v":"Select"},null,null,null,{"$f":"'Schedule VI (EBS)'!C1357","v":"Select"}]
["Sch VI","Schedule of Assets",null,"(G) Real Estate - Currency 18",{"$f":"'Schedule VI'!C1362","v":"Select"},null,null,null,{"$f":"'Schedule VI (EBS)'!C1362","v":"Select"}]
["Sch VI","Schedule of Assets",null,"(G) Real Estate - Currency 41",{"$f":"'Schedule VI'!C1385","v":"Select"},null,null,null,{"$f":"'Schedule VI (EBS)'!C1385","v":"Select"}]
["Sch VI","Schedule of Assets",null,"(G) Real Estate - Currency 65",{"$f":"'Schedule VI'!C1409","v":"Select"},null,null,null,{"$f":"'Schedule VI (EBS)'!C1409","v":"Select"}]
["Sch VI","Schedule of Assets",null,"(G) Real Estate - Currency 90",{"$f":"'Schedule VI'!C1434","v":"Select"},null,null,null,{"$f":"'Schedule VI (EBS)'!C1434","v":"Select"}]
["Sch VI","Schedule of Assets",null,"(G) Real Estate - Country 11",{"$f":"'Schedule VI'!D1355","v":"Select"},null,null,null,{"$f":"'Schedule VI (EBS)'!D1355","v":"Select"}]
["Sch VI","Schedule of Assets",null,"(G) Real Estate - Country 27",{"$f":"'Schedule VI'!D1371","v":"Select"},null,null,null,{"$f":"'Schedule VI (EBS)'!D1371","v":"Select"}]
["Sch VI","Schedule of Assets",null,"(G) Real Estate - Country 42",{"$f":"'Schedule VI'!D1386","v":"Select"},null,null,null,{"$f":"'Schedule VI (EBS)'!D1386","v":"Select"}]
["Sch VI","Schedule of Assets",null,"(G) Real Estate - Country 63",{"$f":"'Schedule VI'!D1407","v":"Select"},null,null,null,{"$f":"'Schedule VI (EBS)'!D1407","v":"Select"}]
["Sch VI","Schedule of Assets",null,"(G) Real Estate - Country 88",{"$f":"'Schedule VI'!D1432","v":"Select"},null,null,null,{"$f":"'Schedule VI (EBS)'!D1432","v":"Select"}]
["Sch VI","Schedule of Assets",null,"(G) Real Estate - Purpose 9",{"$f":"'Schedule VI'!E1353","v":"Select"},null,null,null,{"$f":"'Schedule VI (EBS)'!E1353","v":"Select"}]
["Sch VI","Schedule of Assets",null,"(G) Real Estate - Purpose 35",{"$f":"'Schedule VI'!E1379","v":"Select"},null,null,null,{"$f":"'Schedule VI (EBS)'!E1379","v":"Select"}]
["Sch VI","Schedule of Assets",null,"(G) Real Estate - Purpose 60",{"$f":"'Schedule VI'!E1404","v":"Select"},null,null,null,{"$f":"'Schedule VI (EBS)'!E1404","v":"Select"}]
["Sch VI","Schedule of Assets",null,"(G) Real Estate - Purpose 81",{"$f":"'Schedule VI'!E1425","v":"Select"},null,null,null,{"$f":"'Schedule VI (EBS)'!E1425","v":"Select"}]
["Sch VI","Schedule of Assets",null,"(G) Real Estate - Purpose 87",{"$f":"'Schedule VI'!E1431","v":"Select"},null,null,null,{"$f":"'Schedule VI (EBS)'!E1431","v":"Select"}]
["Sch VI","Schedule of Assets",null,"(G) Real Estate - Cost 12",{"$f":"'Schedule VI'!F1356","v":0},null,null,null,{"$f":"'Schedule VI (EBS)'!F1356","v":0}]
["Sch VI","Schedule of Assets",null,"(G) Real Estate - Cost 33",{"$f":"'Schedule VI'!F1377","v":0},null,null,null,{"$f":"'Schedule VI (EBS)'!F1377","v":0}]
["Sch VI","Schedule of Assets",null,"(G) Real Estate - Cost 42",{"$f":"'Schedule VI'!F1386","v":0},null,null,null,{"$f":"'Schedule VI (EBS)'!F1386","v":0}]
["Sch VI","Schedule of Assets",null,"(G) Real Estate - Cost 64",{"$f":"'Schedule VI'!F1408","v":0},null,null,null,{"$f":"'Schedule VI (EBS)'!F1408","v":0}]
["Sch VI","Schedule of Assets",null,"(G) Real Estate - Cost 85",{"$f":"'Schedule VI'!F1429","v":0},null,null,null,{"$f":"'Schedule VI (EBS)'!F1429","v":0}]
["Sch VI","Schedule of Assets",null,"(G) Real Estate - Fair Value 10",{"$f":"'Schedule VI'!G1354","v":0},null,null,null,{"$f":"'Schedule VI (EBS)'!G1354","v":0}]
["Sch VI","Schedule of Assets",null,"(G) Real Estate - Fair Value 28",{"$f":"'Schedule VI'!G1372","v":0},null,null,null,{"$f":"'Schedule VI (EBS)'!G1372","v":0}]
["Sch VI","Schedule of Assets",null,"(G) Real Estate - Fair Value 57",{"$f":"'Schedule VI'!G1401","v":0},null,null,null,{"$f":"'Schedule VI (EBS)'!G1401","v":0}]
["Sch VI","Schedule of Assets",null,"(G) Real Estate - Fair Value 82",{"$f":"'Schedule VI'!G1426","v":0},null,null,null,{"$f":"'Schedule VI (EBS)'!G1426","v":0}]
["Sch VI","Schedule of Assets",null,"(G) Real Estate - Fair Value 96",{"$f":"'Schedule VI'!G1440","v":0},null,null,null,{"$f":"'Schedule VI (EBS)'!G1440","v":0}]
["Sch VI","Schedule of Assets",null,"(G) Real Estate - Comments 9",{"$f":"'Schedule VI'!H1353","v":0},null,null,null,{"$f":"'Schedule VI (EBS)'!H1353","v":0}]
["Sch VI","Schedule of Assets",null,"(G) Real Estate - Comments 30",{"$f":"'Schedule VI'!H1374","v":0},null,null,null,{"$f":"'Schedule VI (EBS)'!H1374","v":0}]
["Sch VI","Schedule of Assets",null,"(G) Real Estate - Comments 55",{"$f":"'Schedule VI'!H1399","v":0},null,null,null,{"$f":"'Schedule VI (EBS)'!H1399","v":0}]
["Sch VI","Schedule of Assets",null,"(G) Real Estate - Comments 78",{"$f":"'Schedule VI'!H1422","v":0},null,null,null,{"$f":"'Schedule VI (EBS)'!H1422","v":0}]
["Sch VI","Schedule of Assets",null,"(H) Other Alt. Inv. - Asset Type 1",{"$f":"'Schedule VI'!B1453","v":"Select"},null,null,null,{"$f":"'Schedule VI (EBS)'!B1453","v":"Select"}]
["Sch VI","Schedule of Assets",null,"(H) Other Alt. Inv. - Asset Type 6",{"$f":"'Schedule VI'!B1458","v":"Select"},null,null,null,{"$f":"'Schedule VI (EBS)'!B1458","v":"Select"}]
["Sch VI","Schedule of Assets",null,"(H) Other Alt. Inv. - Asset Type 31",{"$f":"'Schedule VI'!B1483","v":"Select"},null,null,null,{"$f":"'Schedule VI (EBS)'!B1483","v":"Select"}]
["Sch VI","Schedule of Assets",null,"(H) Other Alt. Inv. - Asset Type 63",{"$f":"'Schedule VI'!B1515","v":"Select"},null,null,null,{"$f":"'Schedule VI (EBS)'!B1515","v":"Select"}]
["Sch VI","Schedule of Assets",null,"(H) Other Alt. Inv. - Asset Type 78",{"$f":"'Schedule VI'!B1530","v":"Select"},null,null,null,{"$f":"'Schedule VI (EBS)'!B1530","v":"Select"}]
["Sch VI","Schedule of Assets",null,"(H) Other Alt. Inv. - Asset Type 99",{"$f":"'Schedule VI'!B1551","v":"Select"},null,null,null,{"$f":"'Schedule VI (EBS)'!B1551","v":"Select"}]
["Sch VI","Schedule of Assets",null,"(H) Other Alt. Inv. - Currency 10",{"$f":"'Schedule VI'!C1462","v":"Select"},null,null,null,{"$f":"'Schedule VI (EBS)'!C1462","v":"Select"}]
["Sch VI","Schedule of Assets",null,"(H) Other Alt. Inv. - Currency 30",{"$f":"'Schedule VI'!C1482","v":"Select"},null,null,null,{"$f":"'Schedule VI (EBS)'!C1482","v":"Select"}]
["Sch VI","Schedule of Assets",null,"(H) Other Alt. Inv. - Currency 51",{"$f":"'Schedule VI'!C1503","v":"Select"},null,null,null,{"$f":"'Schedule VI (EBS)'!C1503","v":"Select"}]
["Sch VI","Schedule of Assets",null,"(H) Other Alt. Inv. - Currency 76",{"$f":"'Schedule VI'!C1528","v":"Select"},null,null,null,{"$f":"'Schedule VI (EBS)'!C1528","v":"Select"}]
["Sch VI","Schedule of Assets",null,"(H) Other Alt. Inv. - Currency 96",{"$f":"'Schedule VI'!C1548","v":"Select"},null,null,null,{"$f":"'Schedule VI (EBS)'!C1548","v":"Select"}]
["Sch VI","Schedule of Assets",null,"(H) Other Alt. Inv. - Country 23",{"$f":"'Schedule VI'!D1475","v":"Select"},null,null,null,{"$f":"'Schedule VI (EBS)'!D1475","v":"Select"}]
["Sch VI","Schedule of Assets",null,"(H) Other Alt. Inv. - Country 28",{"$f":"'Schedule VI'!D1480","v":"Select"},null,null,null,{"$f":"'Schedule VI (EBS)'!D1480","v":"Select"}]
["Sch VI","Schedule of Assets",null,"(H) Other Alt. Inv. - Country 49",{"$f":"'Schedule VI'!D1501","v":"Select"},null,null,null,{"$f":"'Schedule VI (EBS)'!D1501","v":"Select"}]
["Sch VI","Schedule of Assets",null,"(H) Other Alt. Inv. - Country 78",{"$f":"'Schedule VI'!D1530","v":"Select"},null,null,null,{"$f":"'Schedule VI (EBS)'!D1530","v":"Select"}]
["Sch VI","Schedule of Assets",null,"(H) Other Alt. Inv. - Country 100",{"$f":"'Schedule VI'!D1552","v":"Select"},null,null,null,{"$f":"'Schedule VI (EBS)'!D1552","v":"Select"}]
["Sch VI","Schedule of Assets",null,"(H) Other Alt. Inv. - Rating 21",{"$f":"'Schedule VI'!E1473","v":"Select"},null,null,null,{"$f":"'Schedule VI (EBS)'!E1473","v":"Select"}]
["Sch VI","Schedule of Assets",null,"(H) Other Alt. Inv. - Rating 46",{"$f":"'Schedule VI'!E1498","v":"Select"},null,null,null,{"$f":"'Schedule VI (EBS)'!E1498","v":"Select"}]
["Sch VI","Schedule of Assets",null,"(H) Other Alt. Inv. - Rating 68",{"$f":"'Schedule VI'!E1520","v":"Select"},null,null,null,{"$f":"'Schedule VI (EBS)'!E1520","v":"Select"}]
["Sch VI","Schedule of Assets",null,"(H) Other Alt. Inv. - Rating 73",{"$f":"'Schedule VI'!E1525","v":"Select"},null,null,null,{"$f":"'Schedule VI (EBS)'!E1525","v":"Select"}]
["Sch VI","Schedule of Assets",null,"(H) Other Alt. Inv. - Rating 98",{"$f":"'Schedule VI'!E1550","v":"Select"},null,null,null,{"$f":"'Schedule VI (EBS)'!E1550","v":"Select"}]
["Sch VI","Schedule of Assets",null,"(H) Other Alt. Inv. - Nominal Amount 11",{"$f":"'Schedule VI'!F1463","v":0},null,null,null,{"$f":"'Schedule VI (EBS)'!F1463","v":0}]
["Sch VI","Schedule of Assets",null,"(H) Other Alt. Inv. - Nominal Amount 45",{"$f":"'Schedule VI'!F1497","v":0},null,null,null,{"$f":"'Schedule VI (EBS)'!F1497","v":0}]
["Sch VI","Schedule of Assets",null,"(H) Other Alt. Inv. - Nominal Amount 70",{"$f":"'Schedule VI'!F1522","v":0},null,null,null,{"$f":"'Schedule VI (EBS)'!F1522","v":0}]
["Sch VI","Schedule of Assets",null,"(H) Other Alt. Inv. - Nominal Amount 71",{"$f":"'Schedule VI'!F1523","v":0},null,null,null,{"$f":"'Schedule VI (EBS)'!F1523","v":0}]
["Sch VI","Schedule of Assets",null,"(H) Other Alt. Inv. - Nominal Amount 93",{"$f":"'Schedule VI'!F1545","v":0},null,null,null,{"$f":"'Schedule VI (EBS)'!F1545","v":0}]
["Sch VI","Schedule of Assets",null,"(H) Other Alt. Inv. - Fair Value 18",{"$f":"'Schedule VI'!G1470","v":0},null,null,null,{"$f":"'Schedule VI (EBS)'!G1470","v":0}]
["Sch VI","Schedule of Assets",null,"(H) Other Alt. Inv. - Fair Value 43",{"$f":"'Schedule VI'!G1495","v":0},null,null,null,{"$f":"'Schedule VI (EBS)'!G1495","v":0}]
["Sch VI","Schedule of Assets",null,"(H) Other Alt. Inv. - Fair Value 61",{"$f":"'Schedule VI'!G1513","v":0},null,null,null,{"$f":"'Schedule VI (EBS)'!G1513","v":0}]
["Sch VI","Schedule of Assets",null,"(H) Other Alt. Inv. - Fair Value 90",{"$f":"'Schedule VI'!G1542","v":0},null,null,null,{"$f":"'Schedule VI (EBS)'!G1542","v":0}]
["Sch VI","Schedule of Assets",null,"(H) Other Alt. Inv. - Fair Value 95",{"$f":"'Schedule VI'!G1547","v":0},null,null,null,{"$f":"'Schedule VI (EBS)'!G1547","v":0}]
["Sch VI","Schedule of Assets",null,"(H) Other Alt. Inv. - Weighted Avg YTM 16",{"$f":"'Schedule VI'!H1468","v":0},null,null,null,{"$f":"'Schedule VI (EBS)'!H1468","v":0}]
["Sch VI","Schedule of Assets",null,"(H) Other Alt. Inv. - Weighted Avg YTM 47",{"$f":"'Schedule VI'!H1499","v":0},null,null,null,{"$f":"'Schedule VI (EBS)'!H1499","v":0}]
["Sch VI","Schedule of Assets",null,"(H) Other Alt. Inv. - Weighted Avg YTM 67",{"$f":"'Schedule VI'!H1519","v":0},null,null,null,{"$f":"'Schedule VI (EBS)'!H1519","v":0}]
["Sch VI","Schedule of Assets",null,"(H) Other Alt. Inv. - Weighted Avg YTM 88",{"$f":"'Schedule VI'!H1540","v":0},null,null,null,{"$f":"'Schedule VI (EBS)'!H1540","v":0}]
["Sch VI","Schedule of Assets",null,"(H) Other Alt. Inv. - Effective Duration 13",{"$f":"'Schedule VI'!I1465","v":0},null,null,null,{"$f":"'Schedule VI (EBS)'!I1465","v":0}]
["Sch VI","Schedule of Assets",null,"(H) Other Alt. Inv. - Effective Duration 29",{"$f":"'Schedule VI'!I1481","v":0},null,null,null,{"$f":"'Schedule VI (EBS)'!I1481","v":0}]
["Sch VI","Schedule of Assets",null,"(H) Other Alt. Inv. - Effective Duration 40",{"$f":"'Schedule VI'!I1492","v":0},null,null,null,{"$f":"'Schedule VI (EBS)'!I1492","v":0}]
["Sch VI","Schedule of Assets",null,"(H) Other Alt. Inv. - Effective Duration 65",{"$f":"'Schedule VI'!I1517","v":0},null,null,null,{"$f":"'Schedule VI (EBS)'!I1517","v":0}]
["Sch VI","Schedule of Assets",null,"(H) Other Alt. Inv. - Effective Duration 80",{"$f":"'Schedule VI'!I1532","v":0},null,null,null,{"$f":"'Schedule VI (EBS)'!I1532","v":0}]
["Sch VI","Schedule of Assets",null,"(H) Other Alt. Inv. - Comments 12",{"$f":"'Schedule VI'!J1464","v":0},null,null,null,{"$f":"'Schedule VI (EBS)'!J1464","v":0}]
["Sch VI","Schedule of Assets",null,"(H) Other Alt. Inv. - Comments 17",{"$f":"'Schedule VI'!J1469","v":0},null,null,null,{"$f":"'Schedule VI (EBS)'!J1469","v":0}]
["Sch VI","Schedule of Assets",null,"(H) Other Alt. Inv. - Comments 38",{"$f":"'Schedule VI'!J1490","v":0},null,null,null,{"$f":"'Schedule VI (EBS)'!J1490","v":0}]
["Sch VI","Schedule of Assets",null,"(H) Other Alt. Inv. - Comments 62",{"$f":"'Schedule VI'!J1514","v":0},null,null,null,{"$f":"'Schedule VI (EBS)'!J1514","v":0}]
["Sch VI","Schedule of Assets",null,"(H) Other Alt. Inv. - Comments 89",{"$f":"'Schedule VI'!J1541","v":0},null,null,null,{"$f":"'Schedule VI (EBS)'!J1541","v":0}]
["Sch VI","Schedule of Assets",null,"(I) Derivatives - Derivative Type 9",{"$f":"'Schedule VI'!B1568","v":"Select"},null,null,null,{"$f":"'Schedule VI (EBS)'!B1568","v":"Select"}]
["Sch VI","Schedule of Assets",null,"(I) Derivatives - Derivative Type 34",{"$f":"'Schedule VI'!B1593","v":"Select"},null,null,null,{"$f":"'Schedule VI (EBS)'!B1593","v":"Select"}]
["Sch VI","Schedule of Assets",null,"(I) Derivatives - Derivative Type 47",{"$f":"'Schedule VI'!B1606","v":"Select"},null,null,null,{"$f":"'Schedule VI (EBS)'!B1606","v":"Select"}]
["Sch VI","Schedule of Assets",null,"(I) Derivatives - Derivative Type 61",{"$f":"'Schedule VI'!B1620","v":"Select"},null,null,null,{"$f":"'Schedule VI (EBS)'!B1620","v":"Select"}]
["Sch VI","Schedule of Assets",null,"(I) Derivatives - Derivative Type 86",{"$f":"'Schedule VI'!B1645","v":"Select"},null,null,null,{"$f":"'Schedule VI (EBS)'!B1645","v":"Select"}]
["Sch VI","Schedule of Assets",null,"(I) Derivatives - Derivative Type 115",{"$f":"'Schedule VI'!B1674","v":"Select"},null,null,null,{"$f":"'Schedule VI (EBS)'!B1674","v":"Select"}]
["Sch VI","Schedule of Assets",null,"(I) Derivatives - Derivative Type 133",{"$f":"'Schedule VI'!B1692","v":"Select"},null,null,null,{"$f":"'Schedule VI (EBS)'!B1692","v":"Select"}]
["Sch VI","Schedule of Assets",null,"(I) Derivatives - Derivative Type 154",{"$f":"'Schedule VI'!B1713","v":"Select"},null,null,null,{"$f":"'Schedule VI (EBS)'!B1713","v":"Select"}]
["Sch VI","Schedule of Assets",null,"(I) Derivatives - Derivative Type 159",{"$f":"'Schedule VI'!B1718","v":"Select"},null,null,null,{"$f":"'Schedule VI (EBS)'!B1718","v":"Select"}]
["Sch VI","Schedule of Assets",null,"(I) Derivatives - Derivative Type 197",{"$f":"'Schedule VI'!B1756","v":"Select"},null,null,null,{"$f":"'Schedule VI (EBS)'!B1756","v":"Select"}]
["Sch VI","Schedule of Assets",null,"(I) Derivatives - Underlying 6",{"$f":"'Schedule VI'!C1565","v":"Select"},null,null,null,{"$f":"'Schedule VI (EBS)'!C1565","v":"Select"}]
["Sch VI","Schedule of Assets",null,"(I) Derivatives - Underlying 31",{"$f":"'Schedule VI'!C1590","v":"Select"},null,null,null,{"$f":"'Schedule VI (EBS)'!C1590","v":"Select"}]
["Sch VI","Schedule of Assets",null,"(I) Derivatives - Underlying 44",{"$f":"'Schedule VI'!C1603","v":"Select"},null,null,null,{"$f":"'Schedule VI (EBS)'!C1603","v":"Select"}]
["Sch VI","Schedule of Assets",null,"(I) Derivatives - Underlying 78",{"$f":"'Schedule VI'!C1637","v":"Select"},null,null,null,{"$f":"'Schedule VI (EBS)'!C1637","v":"Select"}]
["Sch VI","Schedule of Assets",null,"(I) Derivatives - Underlying 83",{"$f":"'Schedule VI'!C1642","v":"Select"},null,null,null,{"$f":"'Schedule VI (EBS)'!C1642","v":"Select"}]
["Sch VI","Schedule of Assets",null,"(I) Derivatives - Underlying 104",{"$f":"'Schedule VI'!C1663","v":"Select"},null,null,null,{"$f":"'Schedule VI (EBS)'!C1663","v":"Select"}]
["Sch VI","Schedule of Assets",null,"(I) Derivatives - Underlying 130",{"$f":"'Schedule VI'!C1689","v":"Select"},null,null,null,{"$f":"'Schedule VI (EBS)'!C1689","v":"Select"}]
["Sch VI","Schedule of Assets",null,"(I) Derivatives - Underlying 155",{"$f":"'Schedule VI'!C1714","v":"Select"},null,null,null,{"$f":"'Schedule VI (EBS)'!C1714","v":"Select"}]
["Sch VI","Schedule of Assets",null,"(I) Derivatives - Underlying 176",{"$f":"'Schedule VI'!C1735","v":"Select"},null,null,null,{"$f":"'Schedule VI (EBS)'!C1735","v":"Select"}]
["Sch VI","Schedule of Assets",null,"(I) Derivatives - Underlying 181",{"$f":"'Schedule VI'!C1740","v":"Select"},null,null,null,{"$f":"'Schedule VI (EBS)'!C1740","v":"Select"}]
["Sch VI","Schedule of Assets",null,"(I) Derivatives - Currency 16",{"$f":"'Schedule VI'!D1575","v":"Select"},null,null,null,{"$f":"'Schedule VI (EBS)'!D1575","v":"Select"}]
["Sch VI","Schedule of Assets",null,"(I) Derivatives - Currency 28",{"$f":"'Schedule VI'!D1587","v":"Select"},null,null,null,{"$f":"'Schedule VI (EBS)'!D1587","v":"Select"}]
["Sch VI","Schedule of Assets",null,"(I) Derivatives - Currency 53",{"$f":"'Schedule VI'!D1612","v":"Select"},null,null,null,{"$f":"'Schedule VI (EBS)'!D1612","v":"Select"}]
["Sch VI","Schedule of Assets",null,"(I) Derivatives - Currency 63",{"$f":"'Schedule VI'!D1622","v":"Select"},null,null,null,{"$f":"'Schedule VI (EBS)'!D1622","v":"Select"}]
["Sch VI","Schedule of Assets",null,"(I) Derivatives - Currency 100",{"$f":"'Schedule VI'!D1659","v":"Select"},null,null,null,{"$f":"'Schedule VI (EBS)'!D1659","v":"Select"}]
["Sch VI","Schedule of Assets",null,"(I) Derivatives - Currency 105",{"$f":"'Schedule VI'!D1664","v":"Select"},null,null,null,{"$f":"'Schedule VI (EBS)'!D1664","v":"Select"}]
["Sch VI","Schedule of Assets",null,"(I) Derivatives - Currency 126",{"$f":"'Schedule VI'!D1685","v":"Select"},null,null,null,{"$f":"'Schedule VI (EBS)'!D1685","v":"Select"}]
["Sch VI","Schedule of Assets",null,"(I) Derivatives - Currency 145",{"$f":"'Schedule VI'!D1704","v":"Select"},null,null,null,{"$f":"'Schedule VI (EBS)'!D1704","v":"Select"}]
["Sch VI","Schedule of Assets",null,"(I) Derivatives - Currency 173",{"$f":"'Schedule VI'!D1732","v":"Select"},null,null,null,{"$f":"'Schedule VI (EBS)'!D1732","v":"Select"}]
["Sch VI","Schedule of Assets",null,"(I) Derivatives - Currency 198",{"$f":"'Schedule VI'!D1757","v":"Select"},null,null,null,{"$f":"'Schedule VI (EBS)'!D1757","v":"Select"}]
["Sch VI","Schedule of Assets",null,"(I) Derivatives - Trading Category 23",{"$f":"'Schedule VI'!E1582","v":"Select"},null,null,null,{"$f":"'Schedule VI (EBS)'!E1582","v":"Select"}]
["Sch VI","Schedule of Assets",null,"(I) Derivatives - Trading Category 31",{"$f":"'Schedule VI'!E1590","v":"Select"},null,null,null,{"$f":"'Schedule VI (EBS)'!E1590","v":"Select"}]
["Sch VI","Schedule of Assets",null,"(I) Derivatives - Trading Category 50",{"$f":"'Schedule VI'!E1609","v":"Select"},null,null,null,{"$f":"'Schedule VI (EBS)'!E1609","v":"Select"}]
["Sch VI","Schedule of Assets",null,"(I) Derivatives - Trading Category 75",{"$f":"'Schedule VI'!E1634","v":"Select"},null,null,null,{"$f":"'Schedule VI (EBS)'!E1634","v":"Select"}]
["Sch VI","Schedule of Assets",null,"(I) Derivatives - Trading Category 99",{"$f":"'Schedule VI'!E1658","v":"Select"},null,null,null,{"$f":"'Schedule VI (EBS)'!E1658","v":"Select"}]
["Sch VI","Schedule of Assets",null,"(I) Derivatives - Trading Category 122",{"$f":"'Schedule VI'!E1681","v":"Select"},null,null,null,{"$f":"'Schedule VI (EBS)'!E1681","v":"Select"}]
["Sch VI","Schedule of Assets",null,"(I) Derivatives - Trading Category 143",{"$f":"'Schedule VI'!E1702","v":"Select"},null,null,null,{"$f":"'Schedule VI (EBS)'!E1702","v":"Select"}]
["Sch VI","Schedule of Assets",null,"(I) Derivatives - Trading Category 148",{"$f":"'Schedule VI'!E1707","v":"Select"},null,null,null,{"$f":"'Schedule VI (EBS)'!E1707","v":"Select"}]
["Sch VI","Schedule of Assets",null,"(I) Derivatives - Trading Category 181",{"$f":"'Schedule VI'!E1740","v":"Select"},null,null,null,{"$f":"'Schedule VI (EBS)'!E1740","v":"Select"}]
["Sch VI","Schedule of Assets",null,"(I) Derivatives - Trading Category 195",{"$f":"'Schedule VI'!E1754","v":"Select"},null,null,null,{"$f":"'Schedule VI (EBS)'!E1754","v":"Select"}]
["Sch VI","Schedule of Assets",null,"(I) Derivatives - Purpose 20",{"$f":"'Schedule VI'!F1579","v":"Select"},null,null,null,{"$f":"'Schedule VI (EBS)'!F1579","v":"Select"}]
["Sch VI","Schedule of Assets",null,"(I) Derivatives - Purpose 41",{"$f":"'Schedule VI'!F1600","v":"Select"},null,null,null,{"$f":"'Schedule VI (EBS)'!F1600","v":"Select"}]
["Sch VI","Schedule of Assets",null,"(I) Derivatives - Purpose 67",{"$f":"'Schedule VI'!F1626","v":"Select"},null,null,null,{"$f":"'Schedule VI (EBS)'!F1626","v":"Select"}]
["Sch VI","Schedule of Assets",null,"(I) Derivatives - Purpose 72",{"$f":"'Schedule VI'!F1631","v":"Select"},null,null,null,{"$f":"'Schedule VI (EBS)'!F1631","v":"Select"}]
["Sch VI","Schedule of Assets",null,"(I) Derivatives - Purpose 93",{"$f":"'Schedule VI'!F1652","v":"Select"},null,null,null,{"$f":"'Schedule VI (EBS)'!F1652","v":"Select"}]
["Sch VI","Schedule of Assets",null,"(I) Derivatives - Purpose 114",{"$f":"'Schedule VI'!F1673","v":"Select"},null,null,null,{"$f":"'Schedule VI (EBS)'!F1673","v":"Select"}]
["Sch VI","Schedule of Assets",null,"(I) Derivatives - Purpose 144",{"$f":"'Schedule VI'!F1703","v":"Select"},null,null,null,{"$f":"'Schedule VI (EBS)'!F1703","v":"Select"}]
["Sch VI","Schedule of Assets",null,"(I) Derivatives - Purpose 165",{"$f":"'Schedule VI'!F1724","v":"Select"},null,null,null,{"$f":"'Schedule VI (EBS)'!F1724","v":"Select"}]
["Sch VI","Schedule of Assets",null,"(I) Derivatives - Purpose 170",{"$f":"'Schedule VI'!F1729","v":"Select"},null,null,null,{"$f":"'Schedule VI (EBS)'!F1729","v":"Select"}]
["Sch VI","Schedule of Assets",null,"(I) Derivatives - Purpose 200",{"$f":"'Schedule VI'!F1759","v":"Select"},null,null,null,{"$f":"'Schedule VI (EBS)'!F1759","v":"Select"}]
["Sch VI","Schedule of Assets",null,"(I) Derivatives - Position 17",{"$f":"'Schedule VI'!G1576","v":"Select"},null,null,null,{"$f":"'Schedule VI (EBS)'!G1576","v":"Select"}]
["Sch VI","Schedule of Assets",null,"(I) Derivatives - Position 42",{"$f":"'Schedule VI'!G1601","v":"Select"},null,null,null,{"$f":"'Schedule VI (EBS)'!G1601","v":"Select"}]
["Sch VI","Schedule of Assets",null,"(I) Derivatives - Position 63",{"$f":"'Schedule VI'!G1622","v":"Select"},null,null,null,{"$f":"'Schedule VI (EBS)'!G1622","v":"Select"}]
["Sch VI","Schedule of Assets",null,"(I) Derivatives - Position 82",{"$f":"'Schedule VI'!G1641","v":"Select"},null,null,null,{"$f":"'Schedule VI (EBS)'!G1641","v":"Select"}]
["Sch VI","Schedule of Assets",null,"(I) Derivatives - Position 110",{"$f":"'Schedule VI'!G1669","v":"Select"},null,null,null,{"$f":"'Schedule VI (EBS)'!G1669","v":"Select"}]
["Sch VI","Schedule of Assets",null,"(I) Derivatives - Position 115",{"$f":"'Schedule VI'!G1674","v":"Select"},null,null,null,{"$f":"'Schedule VI (EBS)'!G1674","v":"Select"}]
["Sch VI","Schedule of Assets",null,"(I) Derivatives - Position 150",{"$f":"'Schedule VI'!G1709","v":"Select"},null,null,null,{"$f":"'Schedule VI (EBS)'!G1709","v":"Select"}]
["Sch VI","Schedule of Assets",null,"(I) Derivatives - Position 162",{"$f":"'Schedule VI'!G1721","v":"Select"},null,null,null,{"$f":"'Schedule VI (EBS)'!G1721","v":"Select"}]
["Sch VI","Schedule of Assets",null,"(I) Derivatives - Position 187",{"$f":"'Schedule VI'!G1746","v":"Select"},null,null,null,{"$f":"'Schedule VI (EBS)'!G1746","v":"Select"}]
["Sch VI","Schedule of Assets",null,"(I) Derivatives - Position 192",{"$f":"'Schedule VI'!G1751","v":"Select"},null,null,null,{"$f":"'Schedule VI (EBS)'!G1751","v":"Select"}]
["Sch VI","Schedule of Assets",null,"(I) Derivatives - Pos./Neg. - 15",{"$f":"'Schedule VI'!H1574","v":"Select"},null,null,null,{"$f":"'Schedule VI (EBS)'!H1574","v":"Select"}]
["Sch VI","Schedule of Assets",null,"(I) Derivatives - Pos./Neg. - 39",{"$f":"'Schedule VI'!H1598","v":"Select"},null,null,null,{"$f":"'Schedule VI (EBS)'!H1598","v":"Select"}]
["Sch VI","Schedule of Assets",null,"(I) Derivatives - Pos./Neg. - 60",{"$f":"'Schedule VI'!H1619","v":"Select"},null,null,null,{"$f":"'Schedule VI (EBS)'!H1619","v":"Select"}]
["Sch VI","Schedule of Assets",null,"(I) Derivatives - Pos./Neg. - 85",{"$f":"'Schedule VI'!H1644","v":"Select"},null,null,null,{"$f":"'Schedule VI (EBS)'!H1644","v":"Select"}]
["Sch VI","Schedule of Assets",null,"(I) Derivatives - Pos./Neg. - 97",{"$f":"'Schedule VI'!H1656","v":"Select"},null,null,null,{"$f":"'Schedule VI (EBS)'!H1656","v":"Select"}]
["Sch VI","Schedule of Assets",null,"(I) Derivatives - Pos./Neg. - 132",{"$f":"'Schedule VI'!H1691","v":"Select"},null,null,null,{"$f":"'Schedule VI (EBS)'!H1691","v":"Select"}]
["Sch VI","Schedule of Assets",null,"(I) Derivatives - Pos./Neg. - 137",{"$f":"'Schedule VI'!H1696","v":"Select"},null,null,null,{"$f":"'Schedule VI (EBS)'!H1696","v":"Select"}]
["Sch VI","Schedule of Assets",null,"(I) Derivatives - Pos./Neg. - 165",{"$f":"'Schedule VI'!H1724","v":"Select"},null,null,null,{"$f":"'Schedule VI (EBS)'!H1724","v":"Select"}]
["Sch VI","Schedule of Assets",null,"(I) Derivatives - Pos./Neg. - 184",{"$f":"'Schedule VI'!H1743","v":"Select"},null,null,null,{"$f":"'Schedule VI (EBS)'!H1743","v":"Select"}]
["Sch VI","Schedule of Assets",null,"(I) Derivatives - Market Value 9",{"$f":"'Schedule VI'!I1568","v":0},null,null,null,{"$f":"'Schedule VI (EBS)'!I1568","v":0}]
["Sch VI","Schedule of Assets",null,"(I) Derivatives - Market Value 30",{"$f":"'Schedule VI'!I1589","v":0},null,null,null,{"$f":"'Schedule VI (EBS)'!I1589","v":0}]
["Sch VI","Schedule of Assets",null,"(I) Derivatives - Market Value 51",{"$f":"'Schedule VI'!I1610","v":0},null,null,null,{"$f":"'Schedule VI (EBS)'!I1610","v":0}]
["Sch VI","Schedule of Assets",null,"(I) Derivatives - Market Value 61",{"$f":"'Schedule VI'!I1620","v":0},null,null,null,{"$f":"'Schedule VI (EBS)'!I1620","v":0}]
["Sch VI","Schedule of Assets",null,"(I) Derivatives - Market Value 82",{"$f":"'Schedule VI'!I1641","v":0},null,null,null,{"$f":"'Schedule VI (EBS)'!I1641","v":0}]
["Sch VI","Schedule of Assets",null,"(I) Derivatives - Market Value 107",{"$f":"'Schedule VI'!I1666","v":0},null,null,null,{"$f":"'Schedule VI (EBS)'!I1666","v":0}]
["Sch VI","Schedule of Assets",null,"(I) Derivatives - Market Value 116",{"$f":"'Schedule VI'!I1675","v":0},null,null,null,{"$f":"'Schedule VI (EBS)'!I1675","v":0}]
["Sch VI","Schedule of Assets",null,"(I) Derivatives - Market Value 154",{"$f":"'Schedule VI'!I1713","v":0},null,null,null,{"$f":"'Schedule VI (EBS)'!I1713","v":0}]
["Sch VI","Schedule of Assets",null,"(I) Derivatives - Market Value 159",{"$f":"'Schedule VI'!I1718","v":0},null,null,null,{"$f":"'Schedule VI (EBS)'!I1718","v":0}]
["Sch VI","Schedule of Assets",null,"(I) Derivatives - Market Value 184",{"$f":"'Schedule VI'!I1743","v":0},null,null,null,{"$f":"'Schedule VI (EBS)'!I1743","v":0}]
["Sch VI","Schedule of Assets",null,"(I) Derivatives - Gross Notional Value 6",{"$f":"'Schedule VI'!J1565","v":0},null,null,null,{"$f":"'Schedule VI (EBS)'!J1565","v":0}]
["Sch VI","Schedule of Assets",null,"(I) Derivatives - Gross Notional Value 31",{"$f":"'Schedule VI'!J1590","v":0},null,null,null,{"$f":"'Schedule VI (EBS)'!J1590","v":0}]
["Sch VI","Schedule of Assets",null,"(I) Derivatives - Gross Notional Value 52",{"$f":"'Schedule VI'!J1611","v":0},null,null,null,{"$f":"'Schedule VI (EBS)'!J1611","v":0}]
["Sch VI","Schedule of Assets",null,"(I) Derivatives - Gross Notional Value 66",{"$f":"'Schedule VI'!J1625","v":0},null,null,null,{"$f":"'Schedule VI (EBS)'!J1625","v":0}]
["Sch VI","Schedule of Assets",null,"(I) Derivatives - Gross Notional Value 79",{"$f":"'Schedule VI'!J1638","v":0},null,null,null,{"$f":"'Schedule VI (EBS)'!J1638","v":0}]
["Sch VI","Schedule of Assets",null,"(I) Derivatives - Gross Notional Value 104",{"$f":"'Schedule VI'!J1663","v":0},null,null,null,{"$f":"'Schedule VI (EBS)'!J1663","v":0}]
["Sch VI","Schedule of Assets",null,"(I) Derivatives - Gross Notional Value 129",{"$f":"'Schedule VI'!J1688","v":0},null,null,null,{"$f":"'Schedule VI (EBS)'!J1688","v":0}]
["Sch VI","Schedule of Assets",null,"(I) Derivatives - Gross Notional Value 152",{"$f":"'Schedule VI'!J1711","v":0},null,null,null,{"$f":"'Schedule VI (EBS)'!J1711","v":0}]
["Sch VI","Schedule of Assets",null,"(I) Derivatives - Gross Notional Value 176",{"$f":"'Schedule VI'!J1735","v":0},null,null,null,{"$f":"'Schedule VI (EBS)'!J1735","v":0}]
["Sch VI","Schedule of Assets",null,"(I) Derivatives - Gross Notional Value 181",{"$f":"'Schedule VI'!J1740","v":0},null,null,null,{"$f":"'Schedule VI (EBS)'!J1740","v":0}]
["Sch VI","Schedule of Assets",null,"(I) Derivatives - Net Notional Value 20",{"$f":"'Schedule VI'!K1579","v":0},null,null,null,{"$f":"'Schedule VI (EBS)'!K1579","v":0}]
["Sch VI","Schedule of Assets",null,"(I) Derivatives - Net Notional Value 28",{"$f":"'Schedule VI'!K1587","v":0},null,null,null,{"$f":"'Schedule VI (EBS)'!K1587","v":0}]
["Sch VI","Schedule of Assets",null,"(I) Derivatives - Net Notional Value 49",{"$f":"'Schedule VI'!K1608","v":0},null,null,null,{"$f":"'Schedule VI (EBS)'!K1608","v":0}]
["Sch VI","Schedule of Assets",null,"(I) Derivatives - Net Notional Value 74",{"$f":"'Schedule VI'!K1633","v":0},null,null,null,{"$f":"'Schedule VI (EBS)'!K1633","v":0}]
["Sch VI","Schedule of Assets",null,"(I) Derivatives - Net Notional Value 81",{"$f":"'Schedule VI'!K1640","v":0},null,null,null,{"$f":"'Schedule VI (EBS)'!K1640","v":0}]
["Sch VI","Schedule of Assets",null,"(I) Derivatives - Net Notional Value 121",{"$f":"'Schedule VI'!K1680","v":0},null,null,null,{"$f":"'Schedule VI (EBS)'!K1680","v":0}]
["Sch VI","Schedule of Assets",null,"(I) Derivatives - Net Notional Value 126",{"$f":"'Schedule VI'!K1685","v":0},null,null,null,{"$f":"'Schedule VI (EBS)'!K1685","v":0}]
["Sch VI","Schedule of Assets",null,"(I) Derivatives - Net Notional Value 147",{"$f":"'Schedule VI'!K1706","v":0},null,null,null,{"$f":"'Schedule VI (EBS)'!K1706","v":0}]
["Sch VI","Schedule of Assets",null,"(I) Derivatives - Net Notional Value 167",{"$f":"'Schedule VI'!K1726","v":0},null,null,null,{"$f":"'Schedule VI (EBS)'!K1726","v":0}]
["Sch VI","Schedule of Assets",null,"(I) Derivatives - Net Notional Value 198",{"$f":"'Schedule VI'!K1757","v":0},null,null,null,{"$f":"'Schedule VI (EBS)'!K1757","v":0}]
["Sch VI","Schedule of Assets",null,"(I) Derivatives - Exposure 19",{"$f":"'Schedule VI'!L1578","v":0},null,null,null,{"$f":"'Schedule VI (EBS)'!L1578","v":0}]
["Sch VI","Schedule of Assets",null,"(I) Derivatives - Exposure 35",{"$f":"'Schedule VI'!L1594","v":0},null,null,null,{"$f":"'Schedule VI (EBS)'!L1594","v":0}]
["Sch VI","Schedule of Assets",null,"(I) Derivatives - Exposure 50",{"$f":"'Schedule VI'!L1609","v":0},null,null,null,{"$f":"'Schedule VI (EBS)'!L1609","v":0}]
["Sch VI","Schedule of Assets",null,"(I) Derivatives - Exposure 71",{"$f":"'Schedule VI'!L1630","v":0},null,null,null,{"$f":"'Schedule VI (EBS)'!L1630","v":0}]
["Sch VI","Schedule of Assets",null,"(I) Derivatives - Exposure 96",{"$f":"'Schedule VI'!L1655","v":0},null,null,null,{"$f":"'Schedule VI (EBS)'!L1655","v":0}]
["Sch VI","Schedule of Assets",null,"(I) Derivatives - Exposure 121",{"$f":"'Schedule VI'!L1680","v":0},null,null,null,{"$f":"'Schedule VI (EBS)'!L1680","v":0}]
["Sch VI","Schedule of Assets",null,"(I) Derivatives - Exposure 143",{"$f":"'Schedule VI'!L1702","v":0},null,null,null,{"$f":"'Schedule VI (EBS)'!L1702","v":0}]
["Sch VI","Schedule of Assets",null,"(I) Derivatives - Exposure 148",{"$f":"'Schedule VI'!L1707","v":0},null,null,null,{"$f":"'Schedule VI (EBS)'!L1707","v":0}]
["Sch VI","Schedule of Assets",null,"(I) Derivatives - Exposure 169",{"$f":"'Schedule VI'!L1728","v":0},null,null,null,{"$f":"'Schedule VI (EBS)'!L1728","v":0}]
["Sch VI","Schedule of Assets",null,"(I) Derivatives - Comments 3",{"$f":"'Schedule VI'!M1562","v":0},null,null,null,{"$f":"'Schedule VI (EBS)'!M1562","v":0}]
["Sch VI","Schedule of Assets",null,"(I) Derivatives - Comments 16",{"$f":"'Schedule VI'!M1575","v":0},null,null,null,{"$f":"'Schedule VI (EBS)'!M1575","v":0}]
["Sch VI","Schedule of Assets",null,"(I) Derivatives - Comments 41",{"$f":"'Schedule VI'!M1600","v":0},null,null,null,{"$f":"'Schedule VI (EBS)'!M1600","v":0}]
["Sch VI","Schedule of Assets",null,"(I) Derivatives - Comments 50",{"$f":"'Schedule VI'!M1609","v":0},null,null,null,{"$f":"'Schedule VI (EBS)'!M1609","v":0}]
["Sch VI","Schedule of Assets",null,"(I) Derivatives - Comments 68",{"$f":"'Schedule VI'!M1627","v":0},null,null,null,{"$f":"'Schedule VI (EBS)'!M1627","v":0}]
["Sch VI","Schedule of Assets",null,"(I) Derivatives - Comments 93",{"$f":"'Schedule VI'!M1652","v":0},null,null,null,{"$f":"'Schedule VI (EBS)'!M1652","v":0}]
["Sch VI","Schedule of Assets",null,"(I) Derivatives - Comments 118",{"$f":"'Schedule VI'!M1677","v":0},null,null,null,{"$f":"'Schedule VI (EBS)'!M1677","v":0}]
["Sch VI","Schedule of Assets",null,"(I) Derivatives - Comments 136",{"$f":"'Schedule VI'!M1695","v":0},null,null,null,{"$f":"'Schedule VI (EBS)'!M1695","v":0}]
["Sch VI","Schedule of Assets",null,"(I) Derivatives - Comments 165",{"$f":"'Schedule VI'!M1724","v":0},null,null,null,{"$f":"'Schedule VI (EBS)'!M1724","v":0}]
["Sch VI","Schedule of Assets",null,"(I) Derivatives - Comments 186",{"$f":"'Schedule VI'!M1745","v":0},null,null,null,{"$f":"'Schedule VI (EBS)'!M1745","v":0}]
["Sch VI","Schedule of Assets",null,"(I) Derivatives - Comments 191",{"$f":"'Schedule VI'!M1750","v":0},null,null,null,{"$f":"'Schedule VI (EBS)'!M1750","v":0}]
["Sch VI","Schedule of Assets",null,"(J) Fin. Inst. Rating 4 - Securitization",{"$f":"'Schedule VI'!G1768","v":0},null,null,null,{"$f":"'Schedule VI (EBS)'!G1768","v":0}]
["Sch VI","Schedule of Assets",null,"(J) Fin. Inst. Banks - Other",{"$f":"'Schedule VI'!F1775","v":0},null,null,null,{"$f":"'Schedule VI (EBS)'!F1775","v":0}]
["Sch VI","Schedule of Assets",null,"(J) Unlisted Counterparty Rating 8 - Comments",{"$f":"'Schedule VI'!J1786","v":0},null,null,null,{"$f":"'Schedule VI (EBS)'!J1786","v":0}]
["Sch VI","Schedule of Assets",null,"(K) Other Assets - Asset Type 22",{"$f":"'Schedule VI'!B1817","v":"Select"},null,null,null,{"$f":"'Schedule VI (EBS)'!B1817","v":"Select"}]
["Sch VI","Schedule of Assets",null,"(K) Other Assets - Asset Type 26",{"$f":"'Schedule VI'!B1821","v":"Select"},null,null,null,{"$f":"'Schedule VI (EBS)'!B1821","v":"Select"}]
["Sch VI","Schedule of Assets",null,"(K) Other Assets - Asset Type 51",{"$f":"'Schedule VI'!B1846","v":"Select"},null,null,null,{"$f":"'Schedule VI (EBS)'!B1846","v":"Select"}]
["Sch VI","Schedule of Assets",null,"(K) Other Assets - Asset Type 72",{"$f":"'Schedule VI'!B1867","v":"Select"},null,null,null,{"$f":"'Schedule VI (EBS)'!B1867","v":"Select"}]
["Sch VI","Schedule of Assets",null,"(K) Other Assets - Asset Type 87",{"$f":"'Schedule VI'!B1882","v":"Select"},null,null,null,{"$f":"'Schedule VI (EBS)'!B1882","v":"Select"}]
["Sch VI","Schedule of Assets",null,"(K) Other Assets - Asset Type 123",{"$f":"'Schedule VI'!B1918","v":"Select"},null,null,null,{"$f":"'Schedule VI (EBS)'!B1918","v":"Select"}]
["Sch VI","Schedule of Assets",null,"(K) Other Assets - Asset Type 144",{"$f":"'Schedule VI'!B1939","v":"Select"},null,null,null,{"$f":"'Schedule VI (EBS)'!B1939","v":"Select"}]
["Sch VI","Schedule of Assets",null,"(K) Other Assets - Asset Type 155",{"$f":"'Schedule VI'!B1950","v":"Select"},null,null,null,{"$f":"'Schedule VI (EBS)'!B1950","v":"Select"}]
["Sch VI","Schedule of Assets",null,"(K) Other Assets - Asset Type 171",{"$f":"'Schedule VI'!B1966","v":"Select"},null,null,null,{"$f":"'Schedule VI (EBS)'!B1966","v":"Select"}]
["Sch VI","Schedule of Assets",null,"(K) Other Assets - Asset Type 196",{"$f":"'Schedule VI'!B1991","v":"Select"},null,null,null,{"$f":"'Schedule VI (EBS)'!B1991","v":"Select"}]
["Sch VI","Schedule of Assets",null,"(K) Other Assets - Currency 21",{"$f":"'Schedule VI'!C1816","v":"Select"},null,null,null,{"$f":"'Schedule VI (EBS)'!C1816","v":"Select"}]
["Sch VI","Schedule of Assets",null,"(K) Other Assets - Currency 41",{"$f":"'Schedule VI'!C1836","v":"Select"},null,null,null,{"$f":"'Schedule VI (EBS)'!C1836","v":"Select"}]
["Sch VI","Schedule of Assets",null,"(K) Other Assets - Currency 68",{"$f":"'Schedule VI'!C1863","v":"Select"},null,null,null,{"$f":"'Schedule VI (EBS)'!C1863","v":"Select"}]
["Sch VI","Schedule of Assets",null,"(K) Other Assets - Currency 73",{"$f":"'Schedule VI'!C1868","v":"Select"},null,null,null,{"$f":"'Schedule VI (EBS)'!C1868","v":"Select"}]
["Sch VI","Schedule of Assets",null,"(K) Other Assets - Currency 94",{"$f":"'Schedule VI'!C1889","v":"Select"},null,null,null,{"$f":"'Schedule VI (EBS)'!C1889","v":"Select"}]
["Sch VI","Schedule of Assets",null,"(K) Other Assets - Currency 123",{"$f":"'Schedule VI'!C1918","v":"Select"},null,null,null,{"$f":"'Schedule VI (EBS)'!C1918","v":"Select"}]
["Sch VI","Schedule of Assets",null,"(K) Other Assets - Currency 141",{"$f":"'Schedule VI'!C1936","v":"Select"},null,null,null,{"$f":"'Schedule VI (EBS)'!C1936","v":"Select"}]
["Sch VI","Schedule of Assets",null,"(K) Other Assets - Currency 166",{"$f":"'Schedule VI'!C1961","v":"Select"},null,null,null,{"$f":"'Schedule VI (EBS)'!C1961","v":"Select"}]
["Sch VI","Schedule of Assets",null,"(K) Other Assets - Currency 170",{"$f":"'Schedule VI'!C1965","v":"Select"},null,null,null,{"$f":"'Schedule VI (EBS)'!C1965","v":"Select"}]
["Sch VI","Schedule of Assets",null,"(K) Other Assets - Currency 193",{"$f":"'Schedule VI'!C1988","v":"Select"},null,null,null,{"$f":"'Schedule VI (EBS)'!C1988","v":"Select"}]
["Sch VI","Schedule of Assets",null,"(K) Other Assets - Rating 18",{"$f":"'Schedule VI'!D1813","v":"Select"},null,null,null,{"$f":"'Schedule VI (EBS)'!D1813","v":"Select"}]
["Sch VI","Schedule of Assets",null,"(K) Other Assets - Rating 43",{"$f":"'Schedule VI'!D1838","v":"Select"},null,null,null,{"$f":"'Schedule VI (EBS)'!D1838","v":"Select"}]
["Sch VI","Schedule of Assets",null,"(K) Other Assets - Rating 56",{"$f":"'Schedule VI'!D1851","v":"Select"},null,null,null,{"$f":"'Schedule VI (EBS)'!D1851","v":"Select"}]
["Sch VI","Schedule of Assets",null,"(K) Other Assets - Rating 90",{"$f":"'Schedule VI'!D1885","v":"Select"},null,null,null,{"$f":"'Schedule VI (EBS)'!D1885","v":"Select"}]
["Sch VI","Schedule of Assets",null,"(K) Other Assets - Rating 111",{"$f":"'Schedule VI'!D1906","v":"Select"},null,null,null,{"$f":"'Schedule VI (EBS)'!D1906","v":"Select"}]
["Sch VI","Schedule of Assets",null,"(K) Other Assets - Rating 116",{"$f":"'Schedule VI'!D1911","v":"Select"},null,null,null,{"$f":"'Schedule VI (EBS)'!D1911","v":"Select"}]
["Sch VI","Schedule of Assets",null,"(K) Other Assets - Rating 138",{"$f":"'Schedule VI'!D1933","v":"Select"},null,null,null,{"$f":"'Schedule VI (EBS)'!D1933","v":"Select"}]
["Sch VI","Schedule of Assets",null,"(K) Other Assets - Rating 163",{"$f":"'Schedule VI'!D1958","v":"Select"},null,null,null,{"$f":"'Schedule VI (EBS)'!D1958","v":"Select"}]
["Sch VI","Schedule of Assets",null,"(K) Other Assets - Rating 188",{"$f":"'Schedule VI'!D1983","v":"Select"},null,null,null,{"$f":"'Schedule VI (EBS)'!D1983","v":"Select"}]
["Sch VI","Schedule of Assets",null,"(K) Other Assets - Nominal Amount 10",{"$f":"'Schedule VI'!E1805","v":0},null,null,null,{"$f":"'Schedule VI (EBS)'!E1805","v":0}]
["Sch VI","Schedule of Assets",null,"(K) Other Assets - Nominal Amount 15",{"$f":"'Schedule VI'!E1810","v":0},null,null,null,{"$f":"'Schedule VI (EBS)'!E1810","v":0}]
["Sch VI","Schedule of Assets",null,"(K) Other Assets - Nominal Amount 40",{"$f":"'Schedule VI'!E1835","v":0},null,null,null,{"$f":"'Schedule VI (EBS)'!E1835","v":0}]
["Sch VI","Schedule of Assets",null,"(K) Other Assets - Nominal Amount 61",{"$f":"'Schedule VI'!E1856","v":0},null,null,null,{"$f":"'Schedule VI (EBS)'!E1856","v":0}]
["Sch VI","Schedule of Assets",null,"(K) Other Assets - Nominal Amount 92",{"$f":"'Schedule VI'!E1887","v":0},null,null,null,{"$f":"'Schedule VI (EBS)'!E1887","v":0}]
["Sch VI","Schedule of Assets",null,"(K) Other Assets - Nominal Amount 112",{"$f":"'Schedule VI'!E1907","v":0},null,null,null,{"$f":"'Schedule VI (EBS)'!E1907","v":0}]
["Sch VI","Schedule of Assets",null,"(K) Other Assets - Nominal Amount 133",{"$f":"'Schedule VI'!E1928","v":0},null,null,null,{"$f":"'Schedule VI (EBS)'!E1928","v":0}]
["Sch VI","Schedule of Assets",null,"(K) Other Assets - Nominal Amount 138",{"$f":"'Schedule VI'!E1933","v":0},null,null,null,{"$f":"'Schedule VI (EBS)'!E1933","v":0}]
["Sch VI","Schedule of Assets",null,"(K) Other Assets - Nominal Amount 157",{"$f":"'Schedule VI'!E1952","v":0},null,null,null,{"$f":"'Schedule VI (EBS)'!E1952","v":0}]
["Sch VI","Schedule of Assets",null,"(K) Other Assets - Nominal Amount 185",{"$f":"'Schedule VI'!E1980","v":0},null,null,null,{"$f":"'Schedule VI (EBS)'!E1980","v":0}]
["Sch VI","Schedule of Assets",null,"(K) Other Assets - Fair Value 10",{"$f":"'Schedule VI'!F1805","v":0},null,null,null,{"$f":"'Schedule VI (EBS)'!F1805","v":0}]
["Sch VI","Schedule of Assets",null,"(K) Other Assets - Fair Value 25",{"$f":"'Schedule VI'!F1820","v":0},null,null,null,{"$f":"'Schedule VI (EBS)'!F1820","v":0}]
["Sch VI","Schedule of Assets",null,"(K) Other Assets - Fair Value 37",{"$f":"'Schedule VI'!F1832","v":0},null,null,null,{"$f":"'Schedule VI (EBS)'!F1832","v":0}]
["Sch VI","Schedule of Assets",null,"(K) Other Assets - Fair Value 58",{"$f":"'Schedule VI'!F1853","v":0},null,null,null,{"$f":"'Schedule VI (EBS)'!F1853","v":0}]
["Sch VI","Schedule of Assets",null,"(K) Other Assets - Fair Value 83",{"$f":"'Schedule VI'!F1878","v":0},null,null,null,{"$f":"'Schedule VI (EBS)'!F1878","v":0}]
["Sch VI","Schedule of Assets",null,"(K) Other Assets - Fair Value 107",{"$f":"'Schedule VI'!F1902","v":0},null,null,null,{"$f":"'Schedule VI (EBS)'!F1902","v":0}]
["Sch VI","Schedule of Assets",null,"(K) Other Assets - Fair Value 130",{"$f":"'Schedule VI'!F1925","v":0},null,null,null,{"$f":"'Schedule VI (EBS)'!F1925","v":0}]
["Sch VI","Schedule of Assets",null,"(K) Other Assets - Fair Value 155",{"$f":"'Schedule VI'!F1950","v":0},null,null,null,{"$f":"'Schedule VI (EBS)'!F1950","v":0}]
["Sch VI","Schedule of Assets",null,"(K) Other Assets - Fair Value 160",{"$f":"'Schedule VI'!F1955","v":0},null,null,null,{"$f":"'Schedule VI (EBS)'!F1955","v":0}]
["Sch VI","Schedule of Assets",null,"(K) Other Assets - Fair Value 193",{"$f":"'Schedule VI'!F1988","v":0},null,null,null,{"$f":"'Schedule VI (EBS)'!F1988","v":0}]
["Sch VI","Schedule of Assets",null,"(K) Other Assets - Comments 7",{"$f":"'Schedule VI'!G1802","v":0},null,null,null,{"$f":"'Schedule VI (EBS)'!G1802","v":0}]
["Sch VI","Schedule of Assets",null,"(K) Other Assets - Comments 28",{"$f":"'Schedule VI'!G1823","v":0},null,null,null,{"$f":"'Schedule VI (EBS)'!G1823","v":0}]
["Sch VI","Schedule of Assets",null,"(K) Other Assets - Comments 40",{"$f":"'Schedule VI'!G1835","v":0},null,null,null,{"$f":"'Schedule VI (EBS)'!G1835","v":0}]
["Sch VI","Schedule of Assets",null,"(K) Other Assets - Comments 79",{"$f":"'Schedule VI'!G1874","v":0},null,null,null,{"$f":"'Schedule VI (EBS)'!G1874","v":0}]
["Sch VI","Schedule of Assets",null,"(K) Other Assets - Comments 80",{"$f":"'Schedule VI'!G1875","v":0},null,null,null,{"$f":"'Schedule VI (EBS)'!G1875","v":0}]
["Sch VI","Schedule of Assets",null,"(K) Other Assets - Comments 105",{"$f":"'Schedule VI'!G1900","v":0},null,null,null,{"$f":"'Schedule VI (EBS)'!G1900","v":0}]
["Sch VI","Schedule of Assets",null,"(K) Other Assets - Comments 122",{"$f":"'Schedule VI'!G1917","v":0},null,null,null,{"$f":"'Schedule VI (EBS)'!G1917","v":0}]
["Sch VI","Schedule of Assets",null,"(K) Other Assets - Comments 152",{"$f":"'Schedule VI'!G1947","v":0},null,null,null,{"$f":"'Schedule VI (EBS)'!G1947","v":0}]
["Sch VI","Schedule of Assets",null,"(K) Other Assets - Comments 177",{"$f":"'Schedule VI'!G1972","v":0},null,null,null,{"$f":"'Schedule VI (EBS)'!G1972","v":0}]
["Sch VI","Schedule of Assets",null,"(K) Other Assets - Comments 198",{"$f":"'Schedule VI'!G1993","v":0},null,null,null,{"$f":"'Schedule VI (EBS)'!G1993","v":0}]
["Sch VI","Schedule of Assets",null,"(M) Add. Info. - Fair Value Unaffiliated Level 2 Assets",{"$f":"'Schedule VI'!C2022","v":0},null,null,null,{"$f":"'Schedule VI (EBS)'!C2022","v":0}]
["Sch VI","Schedule of Assets",null,"Fin. Inst. - Moody's Rating 8",{"$f":"'Schedule VI'!D2045","v":0},null,null,null,{"$f":"'Schedule VI (EBS)'!D2045","v":0}]
["Sch VI","Schedule of Assets",null,"ABS - Moody's Rating 5",{"$f":"'Schedule VI'!D2066","v":0},null,null,null,{"$f":"'Schedule VI (EBS)'!D2066","v":0}]
["Sch VI","Schedule of Assets",null,"Ins. Companies - S&P Rating 6",{"$f":"'Schedule VI'!E2051","v":0},null,null,null,{"$f":"'Schedule VI (EBS)'!E2051","v":0}]
["Sch VI","Schedule of Assets",null,"Gov. Securities - S&P Rating 2",{"$f":"'Schedule VI'!E2072","v":0},null,null,null,{"$f":"'Schedule VI (EBS)'!E2072","v":0}]
["Sch VI","Schedule of Assets",null,"Corp. Insurers - DBRS Rating 3",{"$f":"'Schedule VI'!F2056","v":0},null,null,null,{"$f":"'Schedule VI (EBS)'!F2056","v":0}]
["Sch VI","Schedule of Assets",null,"Corp. Insurers - DBRS Rating 8",{"$f":"'Schedule VI'!F2061","v":0},null,null,null,{"$f":"'Schedule VI (EBS)'!F2061","v":0}]
["Sch VI","Schedule of Assets",null,"Corp. Insurers - Kroll Rating 2",{"$f":"'Schedule VI'!G2055","v":0},null,null,null,{"$f":"'Schedule VI (EBS)'!G2055","v":0}]
["Sch VI","Schedule of Assets",null,"ABS - Kroll Rating 6",{"$f":"'Schedule VI'!G2067","v":0},null,null,null,{"$f":"'Schedule VI (EBS)'!G2067","v":0}]
["Sch VI","Schedule of Assets",null,"Ins. Companies - Egan Jones Rating 6",{"$f":"'Schedule VI'!H2051","v":0},null,null,null,{"$f":"'Schedule VI (EBS)'!H2051","v":0}]
["Sch VI","Schedule of Assets",null,"Gov. Securities - Egan Jones Rating 2",{"$f":"'Schedule VI'!H2072","v":0},null,null,null,{"$f":"'Schedule VI (EBS)'!H2072","v":0}]
["Sch VI","Schedule of Assets",null,"Corp. Insurers - Japan Credit Rating 2",{"$f":"'Schedule VI'!I2055","v":0},null,null,null,{"$f":"'Schedule VI (EBS)'!I2055","v":0}]
["Sch VI","Schedule of Assets",null,"Corp. Insurers - Japan Credit Rating 5",{"$f":"'Schedule VI'!I2058","v":0},null,null,null,{"$f":"'Schedule VI (EBS)'!I2058","v":0}]
["Sch VI","Schedule of Assets",null,"Fin. Inst. - BMA Approved Int. Rating 5",{"$f":"'Schedule VI'!J2042","v":0},null,null,null,{"$f":"'Schedule VI (EBS)'!J2042","v":0}]
["Sch VI","Schedule of Assets",null,"Corp. Insurers - BMA Approved Int. Rating 8",{"$f":"'Schedule VI'!J2061","v":0},null,null,null,{"$f":"'Schedule VI (EBS)'!J2061","v":0}]
["Sch VI","Schedule of Assets",null,"Ins. Companies - BMA Approved Agency 1 -  Rating 3",{"$f":"'Schedule VI'!K2048","v":0},null,null,null,{"$f":"'Schedule VI (EBS)'!K2048","v":0}]
["Sch VI","Schedule of Assets",null,"Gov. Securities - BMA Approved Agency 1 -  Rating 3",{"$f":"'Schedule VI'!K2073","v":0},null,null,null,{"$f":"'Schedule VI (EBS)'!K2073","v":0}]
["Sch VI","Schedule of Assets",null,"Ins. Companies - BMA Approved Agency 2 -  Rating 8",{"$f":"'Schedule VI'!L2053","v":0},null,null,null,{"$f":"'Schedule VI (EBS)'!L2053","v":0}]
["Sch VI","Schedule of Assets",null,"ABS - BMA Approved Agency 2 -  Rating 4",{"$f":"'Schedule VI'!L2065","v":0},null,null,null,{"$f":"'Schedule VI (EBS)'!L2065","v":0}]
["Sch VI","Schedule of Assets",null,"Fin. Inst. - BMA Approved Agency 3 -  Rating 6",{"$f":"'Schedule VI'!M2043","v":0},null,null,null,{"$f":"'Schedule VI (EBS)'!M2043","v":0}]
["Sch VI","Schedule of Assets",null,"ABS - BMA Approved Agency 3 -  Rating 3",{"$f":"'Schedule VI'!M2064","v":0},null,null,null,{"$f":"'Schedule VI (EBS)'!M2064","v":0}]
["Sch VIA","Schedule of Funds Held",null,"(A) Cash - Asset Type 4",{"$f":"'Schedule VIA'!B14","v":"Select"},null,null,null,{"$f":"'Schedule VIA (EBS)'!B14","v":"Select"}]
["Sch VIA","Schedule of Funds Held",null,"(A) Cash - Asset Type 21",{"$f":"'Schedule VIA'!B31","v":"Select"},null,null,null,{"$f":"'Schedule VIA (EBS)'!B31","v":"Select"}]
["Sch VIA","Schedule of Funds Held",null,"(A) Cash - Asset Type 31",{"$f":"'Schedule VIA'!B41","v":"Select"},null,null,null,{"$f":"'Schedule VIA (EBS)'!B41","v":"Select"}]
["Sch VIA","Schedule of Funds Held",null,"(A) Cash - Asset Type 56",{"$f":"'Schedule VIA'!B66","v":"Select"},null,null,null,{"$f":"'Schedule VIA (EBS)'!B66","v":"Select"}]
["Sch VIA","Schedule of Funds Held",null,"(A) Cash - Asset Type 72",{"$f":"'Schedule VIA'!B82","v":"Select"},null,null,null,{"$f":"'Schedule VIA (EBS)'!B82","v":"Select"}]
["Sch VIA","Schedule of Funds Held",null,"(A) Cash - Asset Type 103",{"$f":"'Schedule VIA'!B113","v":"Select"},null,null,null,{"$f":"'Schedule VIA (EBS)'!B113","v":"Select"}]
["Sch VIA","Schedule of Funds Held",null,"(A) Cash - Asset Type 128",{"$f":"'Schedule VIA'!B138","v":"Select"},null,null,null,{"$f":"'Schedule VIA (EBS)'!B138","v":"Select"}]
["Sch VIA","Schedule of Funds Held",null,"(A) Cash - Asset Type 149",{"$f":"'Schedule VIA'!B159","v":"Select"},null,null,null,{"$f":"'Schedule VIA (EBS)'!B159","v":"Select"}]
["Sch VIA","Schedule of Funds Held",null,"(A) Cash - Asset Type 154",{"$f":"'Schedule VIA'!B164","v":"Select"},null,null,null,{"$f":"'Schedule VIA (EBS)'!B164","v":"Select"}]
["Sch VIA","Schedule of Funds Held",null,"(A) Cash - Asset Type 180",{"$f":"'Schedule VIA'!B190","v":"Select"},null,null,null,{"$f":"'Schedule VIA (EBS)'!B190","v":"Select"}]
["Sch VIA","Schedule of Funds Held",null,"(A) Cash - Currency 1",{"$f":"'Schedule VIA'!C11","v":"Select"},null,null,null,{"$f":"'Schedule VIA (EBS)'!C11","v":"Select"}]
["Sch VIA","Schedule of Funds Held",null,"(A) Cash - Currency 26",{"$f":"'Schedule VIA'!C36","v":"Select"},null,null,null,{"$f":"'Schedule VIA (EBS)'!C36","v":"Select"}]
["Sch VIA","Schedule of Funds Held",null,"(A) Cash - Currency 40",{"$f":"'Schedule VIA'!C50","v":"Select"},null,null,null,{"$f":"'Schedule VIA (EBS)'!C50","v":"Select"}]
["Sch VIA","Schedule of Funds Held",null,"(A) Cash - Currency 53",{"$f":"'Schedule VIA'!C63","v":"Select"},null,null,null,{"$f":"'Schedule VIA (EBS)'!C63","v":"Select"}]
["Sch VIA","Schedule of Funds Held",null,"(A) Cash - Currency 78",{"$f":"'Schedule VIA'!C88","v":"Select"},null,null,null,{"$f":"'Schedule VIA (EBS)'!C88","v":"Select"}]
["Sch VIA","Schedule of Funds Held",null,"(A) Cash - Currency 108",{"$f":"'Schedule VIA'!C118","v":"Select"},null,null,null,{"$f":"'Schedule VIA (EBS)'!C118","v":"Select"}]
["Sch VIA","Schedule of Funds Held",null,"(A) Cash - Currency 125",{"$f":"'Schedule VIA'!C135","v":"Select"},null,null,null,{"$f":"'Schedule VIA (EBS)'!C135","v":"Select"}]
["Sch VIA","Schedule of Funds Held",null,"(A) Cash - Currency 146",{"$f":"'Schedule VIA'!C156","v":"Select"},null,null,null,{"$f":"'Schedule VIA (EBS)'!C156","v":"Select"}]
["Sch VIA","Schedule of Funds Held",null,"(A) Cash - Currency 171",{"$f":"'Schedule VIA'!C181","v":"Select"},null,null,null,{"$f":"'Schedule VIA (EBS)'!C181","v":"Select"}]
["Sch VIA","Schedule of Funds Held",null,"(A) Cash - Currency 190",{"$f":"'Schedule VIA'!C200","v":"Select"},null,null,null,{"$f":"'Schedule VIA (EBS)'!C200","v":"Select"}]
["Sch VIA","Schedule of Funds Held",null,"(A) Cash - Currency 198",{"$f":"'Schedule VIA'!C208","v":"Select"},null,null,null,{"$f":"'Schedule VIA (EBS)'!C208","v":"Select"}]
["Sch VIA","Schedule of Funds Held",null,"(A) Cash - Rating 23",{"$f":"'Schedule VIA'!D33","v":"Select"},null,null,null,{"$f":"'Schedule VIA (EBS)'!D33","v":"Select"}]
["Sch VIA","Schedule of Funds Held",null,"(A) Cash - Rating 48",{"$f":"'Schedule VIA'!D58","v":"Select"},null,null,null,{"$f":"'Schedule VIA (EBS)'!D58","v":"Select"}]
["Sch VIA","Schedule of Funds Held",null,"(A) Cash - Rating 55",{"$f":"'Schedule VIA'!D65","v":"Select"},null,null,null,{"$f":"'Schedule VIA (EBS)'!D65","v":"Select"}]
["Sch VIA","Schedule of Funds Held",null,"(A) Cash - Rating 95",{"$f":"'Schedule VIA'!D105","v":"Select"},null,null,null,{"$f":"'Schedule VIA (EBS)'!D105","v":"Select"}]
["Sch VIA","Schedule of Funds Held",null,"(A) Cash - Rating 96",{"$f":"'Schedule VIA'!D106","v":"Select"},null,null,null,{"$f":"'Schedule VIA (EBS)'!D106","v":"Select"}]
["Sch VIA","Schedule of Funds Held",null,"(A) Cash - Rating 123",{"$f":"'Schedule VIA'!D133","v":"Select"},null,null,null,{"$f":"'Schedule VIA (EBS)'!D133","v":"Select"}]
["Sch VIA","Schedule of Funds Held",null,"(A) Cash - Rating 147",{"$f":"'Schedule VIA'!D157","v":"Select"},null,null,null,{"$f":"'Schedule VIA (EBS)'!D157","v":"Select"}]
["Sch VIA","Schedule of Funds Held",null,"(A) Cash - Rating 168",{"$f":"'Schedule VIA'!D178","v":"Select"},null,null,null,{"$f":"'Schedule VIA (EBS)'!D178","v":"Select"}]
["Sch VIA","Schedule of Funds Held",null,"(A) Cash - Rating 193",{"$f":"'Schedule VIA'!D203","v":"Select"},null,null,null,{"$f":"'Schedule VIA (EBS)'!D203","v":"Select"}]
["Sch VIA","Schedule of Funds Held",null,"(A) Cash - Nominal 5",{"$f":"'Schedule VIA'!E15","v":0},null,null,null,{"$f":"'Schedule VIA (EBS)'!E15","v":0}]
["Sch VIA","Schedule of Funds Held",null,"(A) Cash - Nominal 20",{"$f":"'Schedule VIA'!E30","v":0},null,null,null,{"$f":"'Schedule VIA (EBS)'!E30","v":0}]
["Sch VIA","Schedule of Funds Held",null,"(A) Cash - Nominal 45",{"$f":"'Schedule VIA'!E55","v":0},null,null,null,{"$f":"'Schedule VIA (EBS)'!E55","v":0}]
["Sch VIA","Schedule of Funds Held",null,"(A) Cash - Nominal 66",{"$f":"'Schedule VIA'!E76","v":0},null,null,null,{"$f":"'Schedule VIA (EBS)'!E76","v":0}]
["Sch VIA","Schedule of Funds Held",null,"(A) Cash - Nominal 91",{"$f":"'Schedule VIA'!E101","v":0},null,null,null,{"$f":"'Schedule VIA (EBS)'!E101","v":0}]
["Sch VIA","Schedule of Funds Held",null,"(A) Cash - Nominal 117",{"$f":"'Schedule VIA'!E127","v":0},null,null,null,{"$f":"'Schedule VIA (EBS)'!E127","v":0}]
["Sch VIA","Schedule of Funds Held",null,"(A) Cash - Nominal 138",{"$f":"'Schedule VIA'!E148","v":0},null,null,null,{"$f":"'Schedule VIA (EBS)'!E148","v":0}]
["Sch VIA","Schedule of Funds Held",null,"(A) Cash - Nominal 159",{"$f":"'Schedule VIA'!E169","v":0},null,null,null,{"$f":"'Schedule VIA (EBS)'!E169","v":0}]
["Sch VIA","Schedule of Funds Held",null,"(A) Cash - Nominal 165",{"$f":"'Schedule VIA'!E175","v":0},null,null,null,{"$f":"'Schedule VIA (EBS)'!E175","v":0}]
["Sch VIA","Schedule of Funds Held",null,"(A) Cash - Nominal 190",{"$f":"'Schedule VIA'!E200","v":0},null,null,null,{"$f":"'Schedule VIA (EBS)'!E200","v":0}]
["Sch VIA","Schedule of Funds Held",null,"(A) Cash - Fair Value 15",{"$f":"'Schedule VIA'!F25","v":0},null,null,null,{"$f":"'Schedule VIA (EBS)'!F25","v":0}]
["Sch VIA","Schedule of Funds Held",null,"(A) Cash - Fair Value 24",{"$f":"'Schedule VIA'!F34","v":0},null,null,null,{"$f":"'Schedule VIA (EBS)'!F34","v":0}]
["Sch VIA","Schedule of Funds Held",null,"(A) Cash - Fair Value 42",{"$f":"'Schedule VIA'!F52","v":0},null,null,null,{"$f":"'Schedule VIA (EBS)'!F52","v":0}]
["Sch VIA","Schedule of Funds Held",null,"(A) Cash - Fair Value 67",{"$f":"'Schedule VIA'!F77","v":0},null,null,null,{"$f":"'Schedule VIA (EBS)'!F77","v":0}]
["Sch VIA","Schedule of Funds Held",null,"(A) Cash - Fair Value 92",{"$f":"'Schedule VIA'!F102","v":0},null,null,null,{"$f":"'Schedule VIA (EBS)'!F102","v":0}]
["Sch VIA","Schedule of Funds Held",null,"(A) Cash - Fair Value 114",{"$f":"'Schedule VIA'!F124","v":0},null,null,null,{"$f":"'Schedule VIA (EBS)'!F124","v":0}]
["Sch VIA","Schedule of Funds Held",null,"(A) Cash - Fair Value 135",{"$f":"'Schedule VIA'!F145","v":0},null,null,null,{"$f":"'Schedule VIA (EBS)'!F145","v":0}]
["Sch VIA","Schedule of Funds Held",null,"(A) Cash - Fair Value 160",{"$f":"'Schedule VIA'!F170","v":0},null,null,null,{"$f":"'Schedule VIA (EBS)'!F170","v":0}]
["Sch VIA","Schedule of Funds Held",null,"(A) Cash - Fair Value 174",{"$f":"'Schedule VIA'!F184","v":0},null,null,null,{"$f":"'Schedule VIA (EBS)'!F184","v":0}]
["Sch VIA","Schedule of Funds Held",null,"(A) Cash - Fair Value 187",{"$f":"'Schedule VIA'!F197","v":0},null,null,null,{"$f":"'Schedule VIA (EBS)'!F197","v":0}]
["Sch VIA","Schedule of Funds Held",null,"(A) Cash - Comments 12",{"$f":"'Schedule VIA'!G22","v":0},null,null,null,{"$f":"'Schedule VIA (EBS)'!G22","v":0}]
["Sch VIA","Schedule of Funds Held",null,"(A) Cash - Comments 33",{"$f":"'Schedule VIA'!G43","v":0},null,null,null,{"$f":"'Schedule VIA (EBS)'!G43","v":0}]
["Sch VIA","Schedule of Funds Held",null,"(A) Cash - Comments 60",{"$f":"'Schedule VIA'!G70","v":0},null,null,null,{"$f":"'Schedule VIA (EBS)'!G70","v":0}]
["Sch VIA","Schedule of Funds Held",null,"(A) Cash - Comments 64",{"$f":"'Schedule VIA'!G74","v":0},null,null,null,{"$f":"'Schedule VIA (EBS)'!G74","v":0}]
["Sch VIA","Schedule of Funds Held",null,"(A) Cash - Comments 85",{"$f":"'Schedule VIA'!G95","v":0},null,null,null,{"$f":"'Schedule VIA (EBS)'!G95","v":0}]
["Sch VIA","Schedule of Funds Held",null,"(A) Cash - Comments 107",{"$f":"'Schedule VIA'!G117","v":0},null,null,null,{"$f":"'Schedule VIA (EBS)'!G117","v":0}]
["Sch VIA","Schedule of Funds Held",null,"(A) Cash - Comments 136",{"$f":"'Schedule VIA'!G146","v":0},null,null,null,{"$f":"'Schedule VIA (EBS)'!G146","v":0}]
["Sch VIA","Schedule of Funds Held",null,"(A) Cash - Comments 157",{"$f":"'Schedule VIA'!G167","v":0},null,null,null,{"$f":"'Schedule VIA (EBS)'!G167","v":0}]
["Sch VIA","Schedule of Funds Held",null,"(A) Cash - Comments 182",{"$f":"'Schedule VIA'!G192","v":0},null,null,null,{"$f":"'Schedule VIA (EBS)'!G192","v":0}]
["Sch VIA","Schedule of Funds Held",null,"(A) Cash - Comments 193",{"$f":"'Schedule VIA'!G203","v":0},null,null,null,{"$f":"'Schedule VIA (EBS)'!G203","v":0}]
["Sch VIA","Schedule of Funds Held",null,"(B) Bonds - Asset Type 8",{"$f":"'Schedule VIA'!B226","v":"Select"},null,null,null,{"$f":"'Schedule VIA (EBS)'!B226","v":"Select"}]
["Sch VIA","Schedule of Funds Held",null,"(B) Bonds - Asset Type 33",{"$f":"'Schedule VIA'!B251","v":"Select"},null,null,null,{"$f":"'Schedule VIA (EBS)'!B251","v":"Select"}]
["Sch VIA","Schedule of Funds Held",null,"(B) Bonds - Asset Type 54",{"$f":"'Schedule VIA'!B272","v":"Select"},null,null,null,{"$f":"'Schedule VIA (EBS)'!B272","v":"Select"}]
["Sch VIA","Schedule of Funds Held",null,"(B) Bonds - Asset Type 74",{"$f":"'Schedule VIA'!B292","v":"Select"},null,null,null,{"$f":"'Schedule VIA (EBS)'!B292","v":"Select"}]
["Sch VIA","Schedule of Funds Held",null,"(B) Bonds - Asset Type 105",{"$f":"'Schedule VIA'!B323","v":"Select"},null,null,null,{"$f":"'Schedule VIA (EBS)'!B323","v":"Select"}]
["Sch VIA","Schedule of Funds Held",null,"(B) Bonds - Asset Type 106",{"$f":"'Schedule VIA'!B324","v":"Select"},null,null,null,{"$f":"'Schedule VIA (EBS)'!B324","v":"Select"}]
["Sch VIA","Schedule of Funds Held",null,"(B) Bonds - Asset Type 142",{"$f":"'Schedule VIA'!B360","v":"Select"},null,null,null,{"$f":"'Schedule VIA (EBS)'!B360","v":"Select"}]
["Sch VIA","Schedule of Funds Held",null,"(B) Bonds - Asset Type 153",{"$f":"'Schedule VIA'!B371","v":"Select"},null,null,null,{"$f":"'Schedule VIA (EBS)'!B371","v":"Select"}]
["Sch VIA","Schedule of Funds Held",null,"(B) Bonds - Asset Type 178",{"$f":"'Schedule VIA'!B396","v":"Select"},null,null,null,{"$f":"'Schedule VIA (EBS)'!B396","v":"Select"}]
["Sch VIA","Schedule of Funds Held",null,"(B) Bonds - Asset Type 203",{"$f":"'Schedule VIA'!B421","v":"Select"},null,null,null,{"$f":"'Schedule VIA (EBS)'!B421","v":"Select"}]
["Sch VIA","Schedule of Funds Held",null,"(B) Bonds - Asset Type 207",{"$f":"'Schedule VIA'!B425","v":"Select"},null,null,null,{"$f":"'Schedule VIA (EBS)'!B425","v":"Select"}]
["Sch VIA","Schedule of Funds Held",null,"(B) Bonds - Asset Type 230",{"$f":"'Schedule VIA'!B448","v":"Select"},null,null,null,{"$f":"'Schedule VIA (EBS)'!B448","v":"Select"}]
["Sch VIA","Schedule of Funds Held",null,"(B) Bonds - Asset Type 251",{"$f":"'Schedule VIA'!B469","v":"Select"},null,null,null,{"$f":"'Schedule VIA (EBS)'!B469","v":"Select"}]
["Sch VIA","Schedule of Funds Held",null,"(B) Bonds - Asset Type 276",{"$f":"'Schedule VIA'!B494","v":"Select"},null,null,null,{"$f":"'Schedule VIA (EBS)'!B494","v":"Select"}]
["Sch VIA","Schedule of Funds Held",null,"(B) Bonds - Asset Type 289",{"$f":"'Schedule VIA'!B507","v":"Select"},null,null,null,{"$f":"'Schedule VIA (EBS)'!B507","v":"Select"}]
["Sch VIA","Schedule of Funds Held",null,"(B) Bonds - Asset Type 323",{"$f":"'Schedule VIA'!B541","v":"Select"},null,null,null,{"$f":"'Schedule VIA (EBS)'!B541","v":"Select"}]
["Sch VIA","Schedule of Funds Held",null,"(B) Bonds - Asset Type 348",{"$f":"'Schedule VIA'!B566","v":"Select"},null,null,null,{"$f":"'Schedule VIA (EBS)'!B566","v":"Select"}]
["Sch VIA","Schedule of Funds Held",null,"(B) Bonds - Asset Type 357",{"$f":"'Schedule VIA'!B575","v":"Select"},null,null,null,{"$f":"'Schedule VIA (EBS)'!B575","v":"Select"}]
["Sch VIA","Schedule of Funds Held",null,"(B) Bonds - Asset Type 375",{"$f":"'Schedule VIA'!B593","v":"Select"},null,null,null,{"$f":"'Schedule VIA (EBS)'!B593","v":"Select"}]
["Sch VIA","Schedule of Funds Held",null,"(B) Bonds - Asset Type 400",{"$f":"'Schedule VIA'!B618","v":"Select"},null,null,null,{"$f":"'Schedule VIA (EBS)'!B618","v":"Select"}]
["Sch VIA","Schedule of Funds Held",null,"(B) Bonds - Currency 21",{"$f":"'Schedule VIA'!C239","v":"Select"},null,null,null,{"$f":"'Schedule VIA (EBS)'!C239","v":"Select"}]
["Sch VIA","Schedule of Funds Held",null,"(B) Bonds - Currency 43",{"$f":"'Schedule VIA'!C261","v":"Select"},null,null,null,{"$f":"'Schedule VIA (EBS)'!C261","v":"Select"}]
["Sch VIA","Schedule of Funds Held",null,"(B) Bonds - Currency 52",{"$f":"'Schedule VIA'!C270","v":"Select"},null,null,null,{"$f":"'Schedule VIA (EBS)'!C270","v":"Select"}]
["Sch VIA","Schedule of Funds Held",null,"(B) Bonds - Currency 73",{"$f":"'Schedule VIA'!C291","v":"Select"},null,null,null,{"$f":"'Schedule VIA (EBS)'!C291","v":"Select"}]
["Sch VIA","Schedule of Funds Held",null,"(B) Bonds - Currency 98",{"$f":"'Schedule VIA'!C316","v":"Select"},null,null,null,{"$f":"'Schedule VIA (EBS)'!C316","v":"Select"}]
["Sch VIA","Schedule of Funds Held",null,"(B) Bonds - Currency 129",{"$f":"'Schedule VIA'!C347","v":"Select"},null,null,null,{"$f":"'Schedule VIA (EBS)'!C347","v":"Select"}]
["Sch VIA","Schedule of Funds Held",null,"(B) Bonds - Currency 145",{"$f":"'Schedule VIA'!C363","v":"Select"},null,null,null,{"$f":"'Schedule VIA (EBS)'!C363","v":"Select"}]
["Sch VIA","Schedule of Funds Held",null,"(B) Bonds - Currency 170",{"$f":"'Schedule VIA'!C388","v":"Select"},null,null,null,{"$f":"'Schedule VIA (EBS)'!C388","v":"Select"}]
["Sch VIA","Schedule of Funds Held",null,"(B) Bonds - Currency 176",{"$f":"'Schedule VIA'!C394","v":"Select"},null,null,null,{"$f":"'Schedule VIA (EBS)'!C394","v":"Select"}]
["Sch VIA","Schedule of Funds Held",null,"(B) Bonds - Currency 197",{"$f":"'Schedule VIA'!C415","v":"Select"},null,null,null,{"$f":"'Schedule VIA (EBS)'!C415","v":"Select"}]
["Sch VIA","Schedule of Funds Held",null,"(B) Bonds - Currency 222",{"$f":"'Schedule VIA'!C440","v":"Select"},null,null,null,{"$f":"'Schedule VIA (EBS)'!C440","v":"Select"}]
["Sch VIA","Schedule of Funds Held",null,"(B) Bonds - Currency 243",{"$f":"'Schedule VIA'!C461","v":"Select"},null,null,null,{"$f":"'Schedule VIA (EBS)'!C461","v":"Select"}]
["Sch VIA","Schedule of Funds Held",null,"(B) Bonds - Currency 258",{"$f":"'Schedule VIA'!C476","v":"Select"},null,null,null,{"$f":"'Schedule VIA (EBS)'!C476","v":"Select"}]
["Sch VIA","Schedule of Funds Held",null,"(B) Bonds - Currency 290",{"$f":"'Schedule VIA'!C508","v":"Select"},null,null,null,{"$f":"'Schedule VIA (EBS)'!C508","v":"Select"}]
["Sch VIA","Schedule of Funds Held",null,"(B) Bonds - Currency 295",{"$f":"'Schedule VIA'!C513","v":"Select"},null,null,null,{"$f":"'Schedule VIA (EBS)'!C513","v":"Select"}]
["Sch VIA","Schedule of Funds Held",null,"(B) Bonds - Currency 320",{"$f":"'Schedule VIA'!C538","v":"Select"},null,null,null,{"$f":"'Schedule VIA (EBS)'!C538","v":"Select"}]
["Sch VIA","Schedule of Funds Held",null,"(B) Bonds - Currency 344",{"$f":"'Schedule VIA'!C562","v":"Select"},null,null,null,{"$f":"'Schedule VIA (EBS)'!C562","v":"Select"}]
["Sch VIA","Schedule of Funds Held",null,"(B) Bonds - Currency 367",{"$f":"'Schedule VIA'!C585","v":"Select"},null,null,null,{"$f":"'Schedule VIA (EBS)'!C585","v":"Select"}]
["Sch VIA","Schedule of Funds Held",null,"(B) Bonds - Currency 392",{"$f":"'Schedule VIA'!C610","v":"Select"},null,null,null,{"$f":"'Schedule VIA (EBS)'!C610","v":"Select"}]
["Sch VIA","Schedule of Funds Held",null,"(B) Bonds - Rating 12",{"$f":"'Schedule VIA'!D230","v":"Select"},null,null,null,{"$f":"'Schedule VIA (EBS)'!D230","v":"Select"}]
["Sch VIA","Schedule of Funds Held",null,"(B) Bonds - Rating 19",{"$f":"'Schedule VIA'!D237","v":"Select"},null,null,null,{"$f":"'Schedule VIA (EBS)'!D237","v":"Select"}]
["Sch VIA","Schedule of Funds Held",null,"(B) Bonds - Rating 40",{"$f":"'Schedule VIA'!D258","v":"Select"},null,null,null,{"$f":"'Schedule VIA (EBS)'!D258","v":"Select"}]
["Sch VIA","Schedule of Funds Held",null,"(B) Bonds - Rating 65",{"$f":"'Schedule VIA'!D283","v":"Select"},null,null,null,{"$f":"'Schedule VIA (EBS)'!D283","v":"Select"}]
["Sch VIA","Schedule of Funds Held",null,"(B) Bonds - Rating 94",{"$f":"'Schedule VIA'!D312","v":"Select"},null,null,null,{"$f":"'Schedule VIA (EBS)'!D312","v":"Select"}]
["Sch VIA","Schedule of Funds Held",null,"(B) Bonds - Rating 112",{"$f":"'Schedule VIA'!D330","v":"Select"},null,null,null,{"$f":"'Schedule VIA (EBS)'!D330","v":"Select"}]
["Sch VIA","Schedule of Funds Held",null,"(B) Bonds - Rating 117",{"$f":"'Schedule VIA'!D335","v":"Select"},null,null,null,{"$f":"'Schedule VIA (EBS)'!D335","v":"Select"}]
["Sch VIA","Schedule of Funds Held",null,"(B) Bonds - Rating 138",{"$f":"'Schedule VIA'!D356","v":"Select"},null,null,null,{"$f":"'Schedule VIA (EBS)'!D356","v":"Select"}]
["Sch VIA","Schedule of Funds Held",null,"(B) Bonds - Rating 159",{"$f":"'Schedule VIA'!D377","v":"Select"},null,null,null,{"$f":"'Schedule VIA (EBS)'!D377","v":"Select"}]
["Sch VIA","Schedule of Funds Held",null,"(B) Bonds - Rating 189",{"$f":"'Schedule VIA'!D407","v":"Select"},null,null,null,{"$f":"'Schedule VIA (EBS)'!D407","v":"Select"}]
["Sch VIA","Schedule of Funds Held",null,"(B) Bonds - Rating 210",{"$f":"'Schedule VIA'!D428","v":"Select"},null,null,null,{"$f":"'Schedule VIA (EBS)'!D428","v":"Select"}]
["Sch VIA","Schedule of Funds Held",null,"(B) Bonds - Rating 227",{"$f":"'Schedule VIA'!D445","v":"Select"},null,null,null,{"$f":"'Schedule VIA (EBS)'!D445","v":"Select"}]
["Sch VIA","Schedule of Funds Held",null,"(B) Bonds - Rating 241",{"$f":"'Schedule VIA'!D459","v":"Select"},null,null,null,{"$f":"'Schedule VIA (EBS)'!D459","v":"Select"}]
["Sch VIA","Schedule of Funds Held",null,"(B) Bonds - Rating 262",{"$f":"'Schedule VIA'!D480","v":"Select"},null,null,null,{"$f":"'Schedule VIA (EBS)'!D480","v":"Select"}]
["Sch VIA","Schedule of Funds Held",null,"(B) Bonds - Rating 287",{"$f":"'Schedule VIA'!D505","v":"Select"},null,null,null,{"$f":"'Schedule VIA (EBS)'!D505","v":"Select"}]
["Sch VIA","Schedule of Funds Held",null,"(B) Bonds - Rating 313",{"$f":"'Schedule VIA'!D531","v":"Select"},null,null,null,{"$f":"'Schedule VIA (EBS)'!D531","v":"Select"}]
["Sch VIA","Schedule of Funds Held",null,"(B) Bonds - Rating 334",{"$f":"'Schedule VIA'!D552","v":"Select"},null,null,null,{"$f":"'Schedule VIA (EBS)'!D552","v":"Select"}]
["Sch VIA","Schedule of Funds Held",null,"(B) Bonds - Rating 359",{"$f":"'Schedule VIA'!D577","v":"Select"},null,null,null,{"$f":"'Schedule VIA (EBS)'!D577","v":"Select"}]
["Sch VIA","Schedule of Funds Held",null,"(B) Bonds - Rating 360",{"$f":"'Schedule VIA'!D578","v":"Select"},null,null,null,{"$f":"'Schedule VIA (EBS)'!D578","v":"Select"}]
["Sch VIA","Schedule of Funds Held",null,"(B) Bonds - Rating 395",{"$f":"'Schedule VIA'!D613","v":"Select"},null,null,null,{"$f":"'Schedule VIA (EBS)'!D613","v":"Select"}]
["Sch VIA","Schedule of Funds Held",null,"(B) Bonds - Nominal 11",{"$f":"'Schedule VIA'!E229","v":0},null,null,null,{"$f":"'Schedule VIA (EBS)'!E229","v":0}]
["Sch VIA","Schedule of Funds Held",null,"(B) Bonds - Nominal 32",{"$f":"'Schedule VIA'!E250","v":0},null,null,null,{"$f":"'Schedule VIA (EBS)'!E250","v":0}]
["Sch VIA","Schedule of Funds Held",null,"(B) Bonds - Nominal 42",{"$f":"'Schedule VIA'!E260","v":0},null,null,null,{"$f":"'Schedule VIA (EBS)'!E260","v":0}]
["Sch VIA","Schedule of Funds Held",null,"(B) Bonds - Nominal 79",{"$f":"'Schedule VIA'!E297","v":0},null,null,null,{"$f":"'Schedule VIA (EBS)'!E297","v":0}]
["Sch VIA","Schedule of Funds Held",null,"(B) Bonds - Nominal 84",{"$f":"'Schedule VIA'!E302","v":0},null,null,null,{"$f":"'Schedule VIA (EBS)'!E302","v":0}]
["Sch VIA","Schedule of Funds Held",null,"(B) Bonds - Nominal 109",{"$f":"'Schedule VIA'!E327","v":0},null,null,null,{"$f":"'Schedule VIA (EBS)'!E327","v":0}]
["Sch VIA","Schedule of Funds Held",null,"(B) Bonds - Nominal 128",{"$f":"'Schedule VIA'!E346","v":0},null,null,null,{"$f":"'Schedule VIA (EBS)'!E346","v":0}]
["Sch VIA","Schedule of Funds Held",null,"(B) Bonds - Nominal 156",{"$f":"'Schedule VIA'!E374","v":0},null,null,null,{"$f":"'Schedule VIA (EBS)'!E374","v":0}]
["Sch VIA","Schedule of Funds Held",null,"(B) Bonds - Nominal 177",{"$f":"'Schedule VIA'!E395","v":0},null,null,null,{"$f":"'Schedule VIA (EBS)'!E395","v":0}]
["Sch VIA","Schedule of Funds Held",null,"(B) Bonds - Nominal 202",{"$f":"'Schedule VIA'!E420","v":0},null,null,null,{"$f":"'Schedule VIA (EBS)'!E420","v":0}]
["Sch VIA","Schedule of Funds Held",null,"(B) Bonds - Nominal 210",{"$f":"'Schedule VIA'!E428","v":0},null,null,null,{"$f":"'Schedule VIA (EBS)'!E428","v":0}]
["Sch VIA","Schedule of Funds Held",null,"(B) Bonds - Nominal 229",{"$f":"'Schedule VIA'!E447","v":0},null,null,null,{"$f":"'Schedule VIA (EBS)'!E447","v":0}]
["Sch VIA","Schedule of Funds Held",null,"(B) Bonds - Nominal 254",{"$f":"'Schedule VIA'!E472","v":0},null,null,null,{"$f":"'Schedule VIA (EBS)'!E472","v":0}]
["Sch VIA","Schedule of Funds Held",null,"(B) Bonds - Nominal 278",{"$f":"'Schedule VIA'!E496","v":0},null,null,null,{"$f":"'Schedule VIA (EBS)'!E496","v":0}]
["Sch VIA","Schedule of Funds Held",null,"(B) Bonds - Nominal 301",{"$f":"'Schedule VIA'!E519","v":0},null,null,null,{"$f":"'Schedule VIA (EBS)'!E519","v":0}]
["Sch VIA","Schedule of Funds Held",null,"(B) Bonds - Nominal 306",{"$f":"'Schedule VIA'!E524","v":0},null,null,null,{"$f":"'Schedule VIA (EBS)'!E524","v":0}]
["Sch VIA","Schedule of Funds Held",null,"(B) Bonds - Nominal 327",{"$f":"'Schedule VIA'!E545","v":0},null,null,null,{"$f":"'Schedule VIA (EBS)'!E545","v":0}]
["Sch VIA","Schedule of Funds Held",null,"(B) Bonds - Nominal 364",{"$f":"'Schedule VIA'!E582","v":0},null,null,null,{"$f":"'Schedule VIA (EBS)'!E582","v":0}]
["Sch VIA","Schedule of Funds Held",null,"(B) Bonds - Nominal 378",{"$f":"'Schedule VIA'!E596","v":0},null,null,null,{"$f":"'Schedule VIA (EBS)'!E596","v":0}]
["Sch VIA","Schedule of Funds Held",null,"(B) Bonds - Nominal 399",{"$f":"'Schedule VIA'!E617","v":0},null,null,null,{"$f":"'Schedule VIA (EBS)'!E617","v":0}]
["Sch VIA","Schedule of Funds Held",null,"(B) Bonds - Fair Value 24",{"$f":"'Schedule VIA'!F242","v":0},null,null,null,{"$f":"'Schedule VIA (EBS)'!F242","v":0}]
["Sch VIA","Schedule of Funds Held",null,"(B) Bonds - Fair Value 29",{"$f":"'Schedule VIA'!F247","v":0},null,null,null,{"$f":"'Schedule VIA (EBS)'!F247","v":0}]
["Sch VIA","Schedule of Funds Held",null,"(B) Bonds - Fair Value 51",{"$f":"'Schedule VIA'!F269","v":0},null,null,null,{"$f":"'Schedule VIA (EBS)'!F269","v":0}]
["Sch VIA","Schedule of Funds Held",null,"(B) Bonds - Fair Value 76",{"$f":"'Schedule VIA'!F294","v":0},null,null,null,{"$f":"'Schedule VIA (EBS)'!F294","v":0}]
["Sch VIA","Schedule of Funds Held",null,"(B) Bonds - Fair Value 97",{"$f":"'Schedule VIA'!F315","v":0},null,null,null,{"$f":"'Schedule VIA (EBS)'!F315","v":0}]
["Sch VIA","Schedule of Funds Held",null,"(B) Bonds - Fair Value 123",{"$f":"'Schedule VIA'!F341","v":0},null,null,null,{"$f":"'Schedule VIA (EBS)'!F341","v":0}]
["Sch VIA","Schedule of Funds Held",null,"(B) Bonds - Fair Value 128",{"$f":"'Schedule VIA'!F346","v":0},null,null,null,{"$f":"'Schedule VIA (EBS)'!F346","v":0}]
["Sch VIA","Schedule of Funds Held",null,"(B) Bonds - Fair Value 149",{"$f":"'Schedule VIA'!F367","v":0},null,null,null,{"$f":"'Schedule VIA (EBS)'!F367","v":0}]
["Sch VIA","Schedule of Funds Held",null,"(B) Bonds - Fair Value 179",{"$f":"'Schedule VIA'!F397","v":0},null,null,null,{"$f":"'Schedule VIA (EBS)'!F397","v":0}]
["Sch VIA","Schedule of Funds Held",null,"(B) Bonds - Fair Value 196",{"$f":"'Schedule VIA'!F414","v":0},null,null,null,{"$f":"'Schedule VIA (EBS)'!F414","v":0}]
["Sch VIA","Schedule of Funds Held",null,"(B) Bonds - Fair Value 221",{"$f":"'Schedule VIA'!F439","v":0},null,null,null,{"$f":"'Schedule VIA (EBS)'!F439","v":0}]
["Sch VIA","Schedule of Funds Held",null,"(B) Bonds - Fair Value 246",{"$f":"'Schedule VIA'!F464","v":0},null,null,null,{"$f":"'Schedule VIA (EBS)'!F464","v":0}]
["Sch VIA","Schedule of Funds Held",null,"(B) Bonds - Fair Value 265",{"$f":"'Schedule VIA'!F483","v":0},null,null,null,{"$f":"'Schedule VIA (EBS)'!F483","v":0}]
["Sch VIA","Schedule of Funds Held",null,"(B) Bonds - Fair Value 273",{"$f":"'Schedule VIA'!F491","v":0},null,null,null,{"$f":"'Schedule VIA (EBS)'!F491","v":0}]
["Sch VIA","Schedule of Funds Held",null,"(B) Bonds - Fair Value 298",{"$f":"'Schedule VIA'!F516","v":0},null,null,null,{"$f":"'Schedule VIA (EBS)'!F516","v":0}]
["Sch VIA","Schedule of Funds Held",null,"(B) Bonds - Fair Value 312",{"$f":"'Schedule VIA'!F530","v":0},null,null,null,{"$f":"'Schedule VIA (EBS)'!F530","v":0}]
["Sch VIA","Schedule of Funds Held",null,"(B) Bonds - Fair Value 345",{"$f":"'Schedule VIA'!F563","v":0},null,null,null,{"$f":"'Schedule VIA (EBS)'!F563","v":0}]
["Sch VIA","Schedule of Funds Held",null,"(B) Bonds - Fair Value 366",{"$f":"'Schedule VIA'!F584","v":0},null,null,null,{"$f":"'Schedule VIA (EBS)'!F584","v":0}]
["Sch VIA","Schedule of Funds Held",null,"(B) Bonds - Fair Value 371",{"$f":"'Schedule VIA'!F589","v":0},null,null,null,{"$f":"'Schedule VIA (EBS)'!F589","v":0}]
["Sch VIA","Schedule of Funds Held",null,"(B) Bonds - Fair Value 394",{"$f":"'Schedule VIA'!F612","v":0},null,null,null,{"$f":"'Schedule VIA (EBS)'!F612","v":0}]
["Sch VIA","Schedule of Funds Held",null,"(B) Bonds - Weighted Average YTM 18",{"$f":"'Schedule VIA'!G236","v":0},null,null,null,{"$f":"'Schedule VIA (EBS)'!G236","v":0}]
["Sch VIA","Schedule of Funds Held",null,"(B) Bonds - Weighted Average YTM 43",{"$f":"'Schedule VIA'!G261","v":0},null,null,null,{"$f":"'Schedule VIA (EBS)'!G261","v":0}]
["Sch VIA","Schedule of Funds Held",null,"(B) Bonds - Weighted Average YTM 66",{"$f":"'Schedule VIA'!G284","v":0},null,null,null,{"$f":"'Schedule VIA (EBS)'!G284","v":0}]
["Sch VIA","Schedule of Funds Held",null,"(B) Bonds - Weighted Average YTM 90",{"$f":"'Schedule VIA'!G308","v":0},null,null,null,{"$f":"'Schedule VIA (EBS)'!G308","v":0}]
["Sch VIA","Schedule of Funds Held",null,"(B) Bonds - Weighted Average YTM 95",{"$f":"'Schedule VIA'!G313","v":0},null,null,null,{"$f":"'Schedule VIA (EBS)'!G313","v":0}]
["Sch VIA","Schedule of Funds Held",null,"(B) Bonds - Weighted Average YTM 116",{"$f":"'Schedule VIA'!G334","v":0},null,null,null,{"$f":"'Schedule VIA (EBS)'!G334","v":0}]
["Sch VIA","Schedule of Funds Held",null,"(B) Bonds - Weighted Average YTM 148",{"$f":"'Schedule VIA'!G366","v":0},null,null,null,{"$f":"'Schedule VIA (EBS)'!G366","v":0}]
["Sch VIA","Schedule of Funds Held",null,"(B) Bonds - Weighted Average YTM 167",{"$f":"'Schedule VIA'!G385","v":0},null,null,null,{"$f":"'Schedule VIA (EBS)'!G385","v":0}]
["Sch VIA","Schedule of Funds Held",null,"(B) Bonds - Weighted Average YTM 188",{"$f":"'Schedule VIA'!G406","v":0},null,null,null,{"$f":"'Schedule VIA (EBS)'!G406","v":0}]
["Sch VIA","Schedule of Funds Held",null,"(B) Bonds - Weighted Average YTM 213",{"$f":"'Schedule VIA'!G431","v":0},null,null,null,{"$f":"'Schedule VIA (EBS)'!G431","v":0}]
["Sch VIA","Schedule of Funds Held",null,"(B) Bonds - Weighted Average YTM 234",{"$f":"'Schedule VIA'!G452","v":0},null,null,null,{"$f":"'Schedule VIA (EBS)'!G452","v":0}]
["Sch VIA","Schedule of Funds Held",null,"(B) Bonds - Weighted Average YTM 240",{"$f":"'Schedule VIA'!G458","v":0},null,null,null,{"$f":"'Schedule VIA (EBS)'!G458","v":0}]
["Sch VIA","Schedule of Funds Held",null,"(B) Bonds - Weighted Average YTM 265",{"$f":"'Schedule VIA'!G483","v":0},null,null,null,{"$f":"'Schedule VIA (EBS)'!G483","v":0}]
["Sch VIA","Schedule of Funds Held",null,"(B) Bonds - Weighted Average YTM 281",{"$f":"'Schedule VIA'!G499","v":0},null,null,null,{"$f":"'Schedule VIA (EBS)'!G499","v":0}]
["Sch VIA","Schedule of Funds Held",null,"(B) Bonds - Weighted Average YTM 312",{"$f":"'Schedule VIA'!G530","v":0},null,null,null,{"$f":"'Schedule VIA (EBS)'!G530","v":0}]
["Sch VIA","Schedule of Funds Held",null,"(B) Bonds - Weighted Average YTM 317",{"$f":"'Schedule VIA'!G535","v":0},null,null,null,{"$f":"'Schedule VIA (EBS)'!G535","v":0}]
["Sch VIA","Schedule of Funds Held",null,"(B) Bonds - Weighted Average YTM 338",{"$f":"'Schedule VIA'!G556","v":0},null,null,null,{"$f":"'Schedule VIA (EBS)'!G556","v":0}]
["Sch VIA","Schedule of Funds Held",null,"(B) Bonds - Weighted Average YTM 363",{"$f":"'Schedule VIA'!G581","v":0},null,null,null,{"$f":"'Schedule VIA (EBS)'!G581","v":0}]
["Sch VIA","Schedule of Funds Held",null,"(B) Bonds - Weighted Average YTM 385",{"$f":"'Schedule VIA'!G603","v":0},null,null,null,{"$f":"'Schedule VIA (EBS)'!G603","v":0}]
["Sch VIA","Schedule of Funds Held",null,"(B) Bonds - Effective Duration 10",{"$f":"'Schedule VIA'!H228","v":0},null,null,null,{"$f":"'Schedule VIA (EBS)'!H228","v":0}]
["Sch VIA","Schedule of Funds Held",null,"(B) Bonds - Effective Duration 35",{"$f":"'Schedule VIA'!H253","v":0},null,null,null,{"$f":"'Schedule VIA (EBS)'!H253","v":0}]
["Sch VIA","Schedule of Funds Held",null,"(B) Bonds - Effective Duration 49",{"$f":"'Schedule VIA'!H267","v":0},null,null,null,{"$f":"'Schedule VIA (EBS)'!H267","v":0}]
["Sch VIA","Schedule of Funds Held",null,"(B) Bonds - Effective Duration 62",{"$f":"'Schedule VIA'!H280","v":0},null,null,null,{"$f":"'Schedule VIA (EBS)'!H280","v":0}]
["Sch VIA","Schedule of Funds Held",null,"(B) Bonds - Effective Duration 83",{"$f":"'Schedule VIA'!H301","v":0},null,null,null,{"$f":"'Schedule VIA (EBS)'!H301","v":0}]
["Sch VIA","Schedule of Funds Held",null,"(B) Bonds - Effective Duration 117",{"$f":"'Schedule VIA'!H335","v":0},null,null,null,{"$f":"'Schedule VIA (EBS)'!H335","v":0}]
["Sch VIA","Schedule of Funds Held",null,"(B) Bonds - Effective Duration 134",{"$f":"'Schedule VIA'!H352","v":0},null,null,null,{"$f":"'Schedule VIA (EBS)'!H352","v":0}]
["Sch VIA","Schedule of Funds Held",null,"(B) Bonds - Effective Duration 155",{"$f":"'Schedule VIA'!H373","v":0},null,null,null,{"$f":"'Schedule VIA (EBS)'!H373","v":0}]
["Sch VIA","Schedule of Funds Held",null,"(B) Bonds - Effective Duration 160",{"$f":"'Schedule VIA'!H378","v":0},null,null,null,{"$f":"'Schedule VIA (EBS)'!H378","v":0}]
["Sch VIA","Schedule of Funds Held",null,"(B) Bonds - Effective Duration 199",{"$f":"'Schedule VIA'!H417","v":0},null,null,null,{"$f":"'Schedule VIA (EBS)'!H417","v":0}]
["Sch VIA","Schedule of Funds Held",null,"(B) Bonds - Effective Duration 207",{"$f":"'Schedule VIA'!H425","v":0},null,null,null,{"$f":"'Schedule VIA (EBS)'!H425","v":0}]
["Sch VIA","Schedule of Funds Held",null,"(B) Bonds - Effective Duration 232",{"$f":"'Schedule VIA'!H450","v":0},null,null,null,{"$f":"'Schedule VIA (EBS)'!H450","v":0}]
["Sch VIA","Schedule of Funds Held",null,"(B) Bonds - Effective Duration 253",{"$f":"'Schedule VIA'!H471","v":0},null,null,null,{"$f":"'Schedule VIA (EBS)'!H471","v":0}]
["Sch VIA","Schedule of Funds Held",null,"(B) Bonds - Effective Duration 264",{"$f":"'Schedule VIA'!H482","v":0},null,null,null,{"$f":"'Schedule VIA (EBS)'!H482","v":0}]
["Sch VIA","Schedule of Funds Held",null,"(B) Bonds - Effective Duration 284",{"$f":"'Schedule VIA'!H502","v":0},null,null,null,{"$f":"'Schedule VIA (EBS)'!H502","v":0}]
["Sch VIA","Schedule of Funds Held",null,"(B) Bonds - Effective Duration 305",{"$f":"'Schedule VIA'!H523","v":0},null,null,null,{"$f":"'Schedule VIA (EBS)'!H523","v":0}]
["Sch VIA","Schedule of Funds Held",null,"(B) Bonds - Effective Duration 332",{"$f":"'Schedule VIA'!H550","v":0},null,null,null,{"$f":"'Schedule VIA (EBS)'!H550","v":0}]
["Sch VIA","Schedule of Funds Held",null,"(B) Bonds - Effective Duration 352",{"$f":"'Schedule VIA'!H570","v":0},null,null,null,{"$f":"'Schedule VIA (EBS)'!H570","v":0}]
["Sch VIA","Schedule of Funds Held",null,"(B) Bonds - Effective Duration 377",{"$f":"'Schedule VIA'!H595","v":0},null,null,null,{"$f":"'Schedule VIA (EBS)'!H595","v":0}]
["Sch VIA","Schedule of Funds Held",null,"(B) Bonds - Effective Duration 382",{"$f":"'Schedule VIA'!H600","v":0},null,null,null,{"$f":"'Schedule VIA (EBS)'!H600","v":0}]
["Sch VIA","Schedule of Funds Held",null,"(B) Bonds - Comments 18",{"$f":"'Schedule VIA'!I236","v":0},null,null,null,{"$f":"'Schedule VIA (EBS)'!I236","v":0}]
["Sch VIA","Schedule of Funds Held",null,"(B) Bonds - Comments 29",{"$f":"'Schedule VIA'!I247","v":0},null,null,null,{"$f":"'Schedule VIA (EBS)'!I247","v":0}]
["Sch VIA","Schedule of Funds Held",null,"(B) Bonds - Comments 54",{"$f":"'Schedule VIA'!I272","v":0},null,null,null,{"$f":"'Schedule VIA (EBS)'!I272","v":0}]
["Sch VIA","Schedule of Funds Held",null,"(B) Bonds - Comments 75",{"$f":"'Schedule VIA'!I293","v":0},null,null,null,{"$f":"'Schedule VIA (EBS)'!I293","v":0}]
["Sch VIA","Schedule of Funds Held",null,"(B) Bonds - Comments 100",{"$f":"'Schedule VIA'!I318","v":0},null,null,null,{"$f":"'Schedule VIA (EBS)'!I318","v":0}]
["Sch VIA","Schedule of Funds Held",null,"(B) Bonds - Comments 122",{"$f":"'Schedule VIA'!I340","v":0},null,null,null,{"$f":"'Schedule VIA (EBS)'!I340","v":0}]
["Sch VIA","Schedule of Funds Held",null,"(B) Bonds - Comments 127",{"$f":"'Schedule VIA'!I345","v":0},null,null,null,{"$f":"'Schedule VIA (EBS)'!I345","v":0}]
["Sch VIA","Schedule of Funds Held",null,"(B) Bonds - Comments 147",{"$f":"'Schedule VIA'!I365","v":0},null,null,null,{"$f":"'Schedule VIA (EBS)'!I365","v":0}]
["Sch VIA","Schedule of Funds Held",null,"(B) Bonds - Comments 174",{"$f":"'Schedule VIA'!I392","v":0},null,null,null,{"$f":"'Schedule VIA (EBS)'!I392","v":0}]
["Sch VIA","Schedule of Funds Held",null,"(B) Bonds - Comments 199",{"$f":"'Schedule VIA'!I417","v":0},null,null,null,{"$f":"'Schedule VIA (EBS)'!I417","v":0}]
["Sch VIA","Schedule of Funds Held",null,"(B) Bonds - Comments 224",{"$f":"'Schedule VIA'!I442","v":0},null,null,null,{"$f":"'Schedule VIA (EBS)'!I442","v":0}]
["Sch VIA","Schedule of Funds Held",null,"(B) Bonds - Comments 233",{"$f":"'Schedule VIA'!I451","v":0},null,null,null,{"$f":"'Schedule VIA (EBS)'!I451","v":0}]
["Sch VIA","Schedule of Funds Held",null,"(B) Bonds - Comments 251",{"$f":"'Schedule VIA'!I469","v":0},null,null,null,{"$f":"'Schedule VIA (EBS)'!I469","v":0}]
["Sch VIA","Schedule of Funds Held",null,"(B) Bonds - Comments 272",{"$f":"'Schedule VIA'!I490","v":0},null,null,null,{"$f":"'Schedule VIA (EBS)'!I490","v":0}]
["Sch VIA","Schedule of Funds Held",null,"(B) Bonds - Comments 297",{"$f":"'Schedule VIA'!I515","v":0},null,null,null,{"$f":"'Schedule VIA (EBS)'!I515","v":0}]
["Sch VIA","Schedule of Funds Held",null,"(B) Bonds - Comments 315",{"$f":"'Schedule VIA'!I533","v":0},null,null,null,{"$f":"'Schedule VIA (EBS)'!I533","v":0}]
["Sch VIA","Schedule of Funds Held",null,"(B) Bonds - Comments 344",{"$f":"'Schedule VIA'!I562","v":0},null,null,null,{"$f":"'Schedule VIA (EBS)'!I562","v":0}]
["Sch VIA","Schedule of Funds Held",null,"(B) Bonds - Comments 349",{"$f":"'Schedule VIA'!I567","v":0},null,null,null,{"$f":"'Schedule VIA (EBS)'!I567","v":0}]
["Sch VIA","Schedule of Funds Held",null,"(B) Bonds - Comments 387",{"$f":"'Schedule VIA'!I605","v":0},null,null,null,{"$f":"'Schedule VIA (EBS)'!I605","v":0}]
["Sch VIA","Schedule of Funds Held",null,"(B) Bonds - Comments 396",{"$f":"'Schedule VIA'!I614","v":0},null,null,null,{"$f":"'Schedule VIA (EBS)'!I614","v":0}]
["Sch VIA","Schedule of Funds Held",null,"(B) Bonds Sovereign Debt - Country 20",{"$f":"'Schedule VIA'!C646","v":"Select"},null,null,null,{"$f":"'Schedule VIA (EBS)'!C646","v":"Select"}]
["Sch VIA","Schedule of Funds Held",null,"(B) Bonds Sovereign Debt - Country 41",{"$f":"'Schedule VIA'!C667","v":"Select"},null,null,null,{"$f":"'Schedule VIA (EBS)'!C667","v":"Select"}]
["Sch VIA","Schedule of Funds Held",null,"(B) Bonds Sovereign Debt - Country 47",{"$f":"'Schedule VIA'!C673","v":"Select"},null,null,null,{"$f":"'Schedule VIA (EBS)'!C673","v":"Select"}]
["Sch VIA","Schedule of Funds Held",null,"(B) Bonds Sovereign Debt - Country 72",{"$f":"'Schedule VIA'!C698","v":"Select"},null,null,null,{"$f":"'Schedule VIA (EBS)'!C698","v":"Select"}]
["Sch VIA","Schedule of Funds Held",null,"(B) Bonds Sovereign Debt - Country 93",{"$f":"'Schedule VIA'!C719","v":"Select"},null,null,null,{"$f":"'Schedule VIA (EBS)'!C719","v":"Select"}]
["Sch VIA","Schedule of Funds Held",null,"(B) Bonds Sovereign Debt - Country 118",{"$f":"'Schedule VIA'!C744","v":"Select"},null,null,null,{"$f":"'Schedule VIA (EBS)'!C744","v":"Select"}]
["Sch VIA","Schedule of Funds Held",null,"(B) Bonds Sovereign Debt - Country 133",{"$f":"'Schedule VIA'!C759","v":"Select"},null,null,null,{"$f":"'Schedule VIA (EBS)'!C759","v":"Select"}]
["Sch VIA","Schedule of Funds Held",null,"(B) Bonds Sovereign Debt - Country 165",{"$f":"'Schedule VIA'!C791","v":"Select"},null,null,null,{"$f":"'Schedule VIA (EBS)'!C791","v":"Select"}]
["Sch VIA","Schedule of Funds Held",null,"(B) Bonds Sovereign Debt - Country 170",{"$f":"'Schedule VIA'!C796","v":"Select"},null,null,null,{"$f":"'Schedule VIA (EBS)'!C796","v":"Select"}]
["Sch VIA","Schedule of Funds Held",null,"(B) Bonds Sovereign Debt - Currency 1",{"$f":"'Schedule VIA'!D627","v":"Select"},null,null,null,{"$f":"'Schedule VIA (EBS)'!D627","v":"Select"}]
["Sch VIA","Schedule of Funds Held",null,"(B) Bonds Sovereign Debt - Currency 17",{"$f":"'Schedule VIA'!D643","v":"Select"},null,null,null,{"$f":"'Schedule VIA (EBS)'!D643","v":"Select"}]
["Sch VIA","Schedule of Funds Held",null,"(B) Bonds Sovereign Debt - Currency 38",{"$f":"'Schedule VIA'!D664","v":"Select"},null,null,null,{"$f":"'Schedule VIA (EBS)'!D664","v":"Select"}]
["Sch VIA","Schedule of Funds Held",null,"(B) Bonds Sovereign Debt - Currency 63",{"$f":"'Schedule VIA'!D689","v":"Select"},null,null,null,{"$f":"'Schedule VIA (EBS)'!D689","v":"Select"}]
["Sch VIA","Schedule of Funds Held",null,"(B) Bonds Sovereign Debt - Currency 83",{"$f":"'Schedule VIA'!D709","v":"Select"},null,null,null,{"$f":"'Schedule VIA (EBS)'!D709","v":"Select"}]
["Sch VIA","Schedule of Funds Held",null,"(B) Bonds Sovereign Debt - Currency 110",{"$f":"'Schedule VIA'!D736","v":"Select"},null,null,null,{"$f":"'Schedule VIA (EBS)'!D736","v":"Select"}]
["Sch VIA","Schedule of Funds Held",null,"(B) Bonds Sovereign Debt - Currency 115",{"$f":"'Schedule VIA'!D741","v":"Select"},null,null,null,{"$f":"'Schedule VIA (EBS)'!D741","v":"Select"}]
["Sch VIA","Schedule of Funds Held",null,"(B) Bonds Sovereign Debt - Currency 140",{"$f":"'Schedule VIA'!D766","v":"Select"},null,null,null,{"$f":"'Schedule VIA (EBS)'!D766","v":"Select"}]
["Sch VIA","Schedule of Funds Held",null,"(B) Bonds Sovereign Debt - Currency 169",{"$f":"'Schedule VIA'!D795","v":"Select"},null,null,null,{"$f":"'Schedule VIA (EBS)'!D795","v":"Select"}]
["Sch VIA","Schedule of Funds Held",null,"(B) Bonds Sovereign Debt - Currency 187",{"$f":"'Schedule VIA'!D813","v":"Select"},null,null,null,{"$f":"'Schedule VIA (EBS)'!D813","v":"Select"}]
["Sch VIA","Schedule of Funds Held",null,"(B) Bonds Sovereign Debt - Rating 8",{"$f":"'Schedule VIA'!E634","v":"Select"},null,null,null,{"$f":"'Schedule VIA (EBS)'!E634","v":"Select"}]
["Sch VIA","Schedule of Funds Held",null,"(B) Bonds Sovereign Debt - Rating 16",{"$f":"'Schedule VIA'!E642","v":"Select"},null,null,null,{"$f":"'Schedule VIA (EBS)'!E642","v":"Select"}]
["Sch VIA","Schedule of Funds Held",null,"(B) Bonds Sovereign Debt - Rating 39",{"$f":"'Schedule VIA'!E665","v":"Select"},null,null,null,{"$f":"'Schedule VIA (EBS)'!E665","v":"Select"}]
["Sch VIA","Schedule of Funds Held",null,"(B) Bonds Sovereign Debt - Rating 60",{"$f":"'Schedule VIA'!E686","v":"Select"},null,null,null,{"$f":"'Schedule VIA (EBS)'!E686","v":"Select"}]
["Sch VIA","Schedule of Funds Held",null,"(B) Bonds Sovereign Debt - Rating 85",{"$f":"'Schedule VIA'!E711","v":"Select"},null,null,null,{"$f":"'Schedule VIA (EBS)'!E711","v":"Select"}]
["Sch VIA","Schedule of Funds Held",null,"(B) Bonds Sovereign Debt - Rating 98",{"$f":"'Schedule VIA'!E724","v":"Select"},null,null,null,{"$f":"'Schedule VIA (EBS)'!E724","v":"Select"}]
["Sch VIA","Schedule of Funds Held",null,"(B) Bonds Sovereign Debt - Rating 132",{"$f":"'Schedule VIA'!E758","v":"Select"},null,null,null,{"$f":"'Schedule VIA (EBS)'!E758","v":"Select"}]
["Sch VIA","Schedule of Funds Held",null,"(B) Bonds Sovereign Debt - Rating 137",{"$f":"'Schedule VIA'!E763","v":"Select"},null,null,null,{"$f":"'Schedule VIA (EBS)'!E763","v":"Select"}]
["Sch VIA","Schedule of Funds Held",null,"(B) Bonds Sovereign Debt - Rating 158",{"$f":"'Schedule VIA'!E784","v":"Select"},null,null,null,{"$f":"'Schedule VIA (EBS)'!E784","v":"Select"}]
["Sch VIA","Schedule of Funds Held",null,"(B) Bonds Sovereign Debt - Rating 184",{"$f":"'Schedule VIA'!E810","v":"Select"},null,null,null,{"$f":"'Schedule VIA (EBS)'!E810","v":"Select"}]
["Sch VIA","Schedule of Funds Held",null,"(B) Bonds Sovereign Debt - Fair Value 9",{"$f":"'Schedule VIA'!F635","v":0},null,null,null,{"$f":"'Schedule VIA (EBS)'!F635","v":0}]
["Sch VIA","Schedule of Funds Held",null,"(B) Bonds Sovereign Debt - Fair Value 30",{"$f":"'Schedule VIA'!F656","v":0},null,null,null,{"$f":"'Schedule VIA (EBS)'!F656","v":0}]
["Sch VIA","Schedule of Funds Held",null,"(B) Bonds Sovereign Debt - Fair Value 52",{"$f":"'Schedule VIA'!F678","v":0},null,null,null,{"$f":"'Schedule VIA (EBS)'!F678","v":0}]
["Sch VIA","Schedule of Funds Held",null,"(B) Bonds Sovereign Debt - Fair Value 57",{"$f":"'Schedule VIA'!F683","v":0},null,null,null,{"$f":"'Schedule VIA (EBS)'!F683","v":0}]
["Sch VIA","Schedule of Funds Held",null,"(B) Bonds Sovereign Debt - Fair Value 82",{"$f":"'Schedule VIA'!F708","v":0},null,null,null,{"$f":"'Schedule VIA (EBS)'!F708","v":0}]
["Sch VIA","Schedule of Funds Held",null,"(B) Bonds Sovereign Debt - Fair Value 107",{"$f":"'Schedule VIA'!F733","v":0},null,null,null,{"$f":"'Schedule VIA (EBS)'!F733","v":0}]
["Sch VIA","Schedule of Funds Held",null,"(B) Bonds Sovereign Debt - Fair Value 117",{"$f":"'Schedule VIA'!F743","v":0},null,null,null,{"$f":"'Schedule VIA (EBS)'!F743","v":0}]
["Sch VIA","Schedule of Funds Held",null,"(B) Bonds Sovereign Debt - Fair Value 154",{"$f":"'Schedule VIA'!F780","v":0},null,null,null,{"$f":"'Schedule VIA (EBS)'!F780","v":0}]
["Sch VIA","Schedule of Funds Held",null,"(B) Bonds Sovereign Debt - Fair Value 159",{"$f":"'Schedule VIA'!F785","v":0},null,null,null,{"$f":"'Schedule VIA (EBS)'!F785","v":0}]
["Sch VIA","Schedule of Funds Held",null,"(B) Bonds Sovereign Debt - Fair Value 180",{"$f":"'Schedule VIA'!F806","v":0},null,null,null,{"$f":"'Schedule VIA (EBS)'!F806","v":0}]
["Sch VIA","Schedule of Funds Held",null,"(B) Bonds Sovereign Debt - Fair Value 199",{"$f":"'Schedule VIA'!F825","v":0},null,null,null,{"$f":"'Schedule VIA (EBS)'!F825","v":0}]
["Sch VIA","Schedule of Funds Held",null,"(B) Bonds Sovereign Debt - Comments 27",{"$f":"'Schedule VIA'!G653","v":0},null,null,null,{"$f":"'Schedule VIA (EBS)'!G653","v":0}]
["Sch VIA","Schedule of Funds Held",null,"(B) Bonds Sovereign Debt - Comments 52",{"$f":"'Schedule VIA'!G678","v":0},null,null,null,{"$f":"'Schedule VIA (EBS)'!G678","v":0}]
["Sch VIA","Schedule of Funds Held",null,"(B) Bonds Sovereign Debt - Comments 67",{"$f":"'Schedule VIA'!G693","v":0},null,null,null,{"$f":"'Schedule VIA (EBS)'!G693","v":0}]
["Sch VIA","Schedule of Funds Held",null,"(B) Bonds Sovereign Debt - Comments 79",{"$f":"'Schedule VIA'!G705","v":0},null,null,null,{"$f":"'Schedule VIA (EBS)'!G705","v":0}]
["Sch VIA","Schedule of Funds Held",null,"(B) Bonds Sovereign Debt - Comments 104",{"$f":"'Schedule VIA'!G730","v":0},null,null,null,{"$f":"'Schedule VIA (EBS)'!G730","v":0}]
["Sch VIA","Schedule of Funds Held",null,"(B) Bonds Sovereign Debt - Comments 129",{"$f":"'Schedule VIA'!G755","v":0},null,null,null,{"$f":"'Schedule VIA (EBS)'!G755","v":0}]
["Sch VIA","Schedule of Funds Held",null,"(B) Bonds Sovereign Debt - Comments 153",{"$f":"'Schedule VIA'!G779","v":0},null,null,null,{"$f":"'Schedule VIA (EBS)'!G779","v":0}]
["Sch VIA","Schedule of Funds Held",null,"(B) Bonds Sovereign Debt - Comments 176",{"$f":"'Schedule VIA'!G802","v":0},null,null,null,{"$f":"'Schedule VIA (EBS)'!G802","v":0}]
["Sch VIA","Schedule of Funds Held",null,"(B) Bonds Sovereign Debt - Comments 197",{"$f":"'Schedule VIA'!G823","v":0},null,null,null,{"$f":"'Schedule VIA (EBS)'!G823","v":0}]
["Sch VIA","Schedule of Funds Held",null,"(C) ABS and Struct. Sec. - Asset Type 1",{"$f":"'Schedule VIA'!B835","v":"Select"},null,null,null,{"$f":"'Schedule VIA (EBS)'!B835","v":"Select"}]
["Sch VIA","Schedule of Funds Held",null,"(C) ABS and Struct. Sec. - Asset Type 34",{"$f":"'Schedule VIA'!B868","v":"Select"},null,null,null,{"$f":"'Schedule VIA (EBS)'!B868","v":"Select"}]
["Sch VIA","Schedule of Funds Held",null,"(C) ABS and Struct. Sec. - Asset Type 48",{"$f":"'Schedule VIA'!B882","v":"Select"},null,null,null,{"$f":"'Schedule VIA (EBS)'!B882","v":"Select"}]
["Sch VIA","Schedule of Funds Held",null,"(C) ABS and Struct. Sec. - Asset Type 73",{"$f":"'Schedule VIA'!B907","v":"Select"},null,null,null,{"$f":"'Schedule VIA (EBS)'!B907","v":"Select"}]
["Sch VIA","Schedule of Funds Held",null,"(C) ABS and Struct. Sec. - Asset Type 85",{"$f":"'Schedule VIA'!B919","v":"Select"},null,null,null,{"$f":"'Schedule VIA (EBS)'!B919","v":"Select"}]
["Sch VIA","Schedule of Funds Held",null,"(C) ABS and Struct. Sec. - Asset Type 120",{"$f":"'Schedule VIA'!B954","v":"Select"},null,null,null,{"$f":"'Schedule VIA (EBS)'!B954","v":"Select"}]
["Sch VIA","Schedule of Funds Held",null,"(C) ABS and Struct. Sec. - Asset Type 125",{"$f":"'Schedule VIA'!B959","v":"Select"},null,null,null,{"$f":"'Schedule VIA (EBS)'!B959","v":"Select"}]
["Sch VIA","Schedule of Funds Held",null,"(C) ABS and Struct. Sec. - Asset Type 146",{"$f":"'Schedule VIA'!B980","v":"Select"},null,null,null,{"$f":"'Schedule VIA (EBS)'!B980","v":"Select"}]
["Sch VIA","Schedule of Funds Held",null,"(C) ABS and Struct. Sec. - Currency 17",{"$f":"'Schedule VIA'!C851","v":"Select"},null,null,null,{"$f":"'Schedule VIA (EBS)'!C851","v":"Select"}]
["Sch VIA","Schedule of Funds Held",null,"(C) ABS and Struct. Sec. - Currency 47",{"$f":"'Schedule VIA'!C881","v":"Select"},null,null,null,{"$f":"'Schedule VIA (EBS)'!C881","v":"Select"}]
["Sch VIA","Schedule of Funds Held",null,"(C) ABS and Struct. Sec. - Currency 68",{"$f":"'Schedule VIA'!C902","v":"Select"},null,null,null,{"$f":"'Schedule VIA (EBS)'!C902","v":"Select"}]
["Sch VIA","Schedule of Funds Held",null,"(C) ABS and Struct. Sec. - Currency 85",{"$f":"'Schedule VIA'!C919","v":"Select"},null,null,null,{"$f":"'Schedule VIA (EBS)'!C919","v":"Select"}]
["Sch VIA","Schedule of Funds Held",null,"(C) ABS and Struct. Sec. - Currency 95",{"$f":"'Schedule VIA'!C929","v":"Select"},null,null,null,{"$f":"'Schedule VIA (EBS)'!C929","v":"Select"}]
["Sch VIA","Schedule of Funds Held",null,"(C) ABS and Struct. Sec. - Currency 120",{"$f":"'Schedule VIA'!C954","v":"Select"},null,null,null,{"$f":"'Schedule VIA (EBS)'!C954","v":"Select"}]
["Sch VIA","Schedule of Funds Held",null,"(C) ABS and Struct. Sec. - Currency 145",{"$f":"'Schedule VIA'!C979","v":"Select"},null,null,null,{"$f":"'Schedule VIA (EBS)'!C979","v":"Select"}]
["Sch VIA","Schedule of Funds Held",null,"(C) ABS and Struct. Sec. - Rating 21",{"$f":"'Schedule VIA'!D855","v":"Select"},null,null,null,{"$f":"'Schedule VIA (EBS)'!D855","v":"Select"}]
["Sch VIA","Schedule of Funds Held",null,"(C) ABS and Struct. Sec. - Rating 42",{"$f":"'Schedule VIA'!D876","v":"Select"},null,null,null,{"$f":"'Schedule VIA (EBS)'!D876","v":"Select"}]
["Sch VIA","Schedule of Funds Held",null,"(C) ABS and Struct. Sec. - Rating 63",{"$f":"'Schedule VIA'!D897","v":"Select"},null,null,null,{"$f":"'Schedule VIA (EBS)'!D897","v":"Select"}]
["Sch VIA","Schedule of Funds Held",null,"(C) ABS and Struct. Sec. - Rating 68",{"$f":"'Schedule VIA'!D902","v":"Select"},null,null,null,{"$f":"'Schedule VIA (EBS)'!D902","v":"Select"}]
["Sch VIA","Schedule of Funds Held",null,"(C) ABS and Struct. Sec. - Rating 103",{"$f":"'Schedule VIA'!D937","v":"Select"},null,null,null,{"$f":"'Schedule VIA (EBS)'!D937","v":"Select"}]
["Sch VIA","Schedule of Funds Held",null,"(C) ABS and Struct. Sec. - Rating 115",{"$f":"'Schedule VIA'!D949","v":"Select"},null,null,null,{"$f":"'Schedule VIA (EBS)'!D949","v":"Select"}]
["Sch VIA","Schedule of Funds Held",null,"(C) ABS and Struct. Sec. - Rating 140",{"$f":"'Schedule VIA'!D974","v":"Select"},null,null,null,{"$f":"'Schedule VIA (EBS)'!D974","v":"Select"}]
["Sch VIA","Schedule of Funds Held",null,"(C) ABS and Struct. Sec. - Rating 150",{"$f":"'Schedule VIA'!D984","v":"Select"},null,null,null,{"$f":"'Schedule VIA (EBS)'!D984","v":"Select"}]
["Sch VIA","Schedule of Funds Held",null,"(C) ABS and Struct. Sec. - Nominal Amount 17",{"$f":"'Schedule VIA'!E851","v":0},null,null,null,{"$f":"'Schedule VIA (EBS)'!E851","v":0}]
["Sch VIA","Schedule of Funds Held",null,"(C) ABS and Struct. Sec. - Nominal Amount 42",{"$f":"'Schedule VIA'!E876","v":0},null,null,null,{"$f":"'Schedule VIA (EBS)'!E876","v":0}]
["Sch VIA","Schedule of Funds Held",null,"(C) ABS and Struct. Sec. - Nominal Amount 63",{"$f":"'Schedule VIA'!E897","v":0},null,null,null,{"$f":"'Schedule VIA (EBS)'!E897","v":0}]
["Sch VIA","Schedule of Funds Held",null,"(C) ABS and Struct. Sec. - Nominal Amount 86",{"$f":"'Schedule VIA'!E920","v":0},null,null,null,{"$f":"'Schedule VIA (EBS)'!E920","v":0}]
["Sch VIA","Schedule of Funds Held",null,"(C) ABS and Struct. Sec. - Nominal Amount 114",{"$f":"'Schedule VIA'!E948","v":0},null,null,null,{"$f":"'Schedule VIA (EBS)'!E948","v":0}]
["Sch VIA","Schedule of Funds Held",null,"(C) ABS and Struct. Sec. - Nominal Amount 135",{"$f":"'Schedule VIA'!E969","v":0},null,null,null,{"$f":"'Schedule VIA (EBS)'!E969","v":0}]
["Sch VIA","Schedule of Funds Held",null,"(C) ABS and Struct. Sec. - Nominal Amount 140",{"$f":"'Schedule VIA'!E974","v":0},null,null,null,{"$f":"'Schedule VIA (EBS)'!E974","v":0}]
["Sch VIA","Schedule of Funds Held",null,"(C) ABS and Struct. Sec. - Fair Value 18",{"$f":"'Schedule VIA'!F852","v":0},null,null,null,{"$f":"'Schedule VIA (EBS)'!F852","v":0}]
["Sch VIA","Schedule of Funds Held",null,"(C) ABS and Struct. Sec. - Fair Value 37",{"$f":"'Schedule VIA'!F871","v":0},null,null,null,{"$f":"'Schedule VIA (EBS)'!F871","v":0}]
["Sch VIA","Schedule of Funds Held",null,"(C) ABS and Struct. Sec. - Fair Value 62",{"$f":"'Schedule VIA'!F896","v":0},null,null,null,{"$f":"'Schedule VIA (EBS)'!F896","v":0}]
["Sch VIA","Schedule of Funds Held",null,"(C) ABS and Struct. Sec. - Fair Value 69",{"$f":"'Schedule VIA'!F903","v":0},null,null,null,{"$f":"'Schedule VIA (EBS)'!F903","v":0}]
["Sch VIA","Schedule of Funds Held",null,"(C) ABS and Struct. Sec. - Fair Value 89",{"$f":"'Schedule VIA'!F923","v":0},null,null,null,{"$f":"'Schedule VIA (EBS)'!F923","v":0}]
["Sch VIA","Schedule of Funds Held",null,"(C) ABS and Struct. Sec. - Fair Value 114",{"$f":"'Schedule VIA'!F948","v":0},null,null,null,{"$f":"'Schedule VIA (EBS)'!F948","v":0}]
["Sch VIA","Schedule of Funds Held",null,"(C) ABS and Struct. Sec. - Fair Value 135",{"$f":"'Schedule VIA'!F969","v":0},null,null,null,{"$f":"'Schedule VIA (EBS)'!F969","v":0}]
["Sch VIA","Schedule of Funds Held",null,"(C) ABS and Struct. Sec. - Weighted Avg YTM 1",{"$f":"'Schedule VIA'!G835","v":0},null,null,null,{"$f":"'Schedule VIA (EBS)'!G835","v":0}]
["Sch VIA","Schedule of Funds Held",null,"(C) ABS and Struct. Sec. - Weighted Avg YTM 32",{"$f":"'Schedule VIA'!G866","v":0},null,null,null,{"$f":"'Schedule VIA (EBS)'!G866","v":0}]
["Sch VIA","Schedule of Funds Held",null,"(C) ABS and Struct. Sec. - Weighted Avg YTM 57",{"$f":"'Schedule VIA'!G891","v":0},null,null,null,{"$f":"'Schedule VIA (EBS)'!G891","v":0}]
["Sch VIA","Schedule of Funds Held",null,"(C) ABS and Struct. Sec. - Weighted Avg YTM 62",{"$f":"'Schedule VIA'!G896","v":0},null,null,null,{"$f":"'Schedule VIA (EBS)'!G896","v":0}]
["Sch VIA","Schedule of Funds Held",null,"(C) ABS and Struct. Sec. - Weighted Avg YTM 87",{"$f":"'Schedule VIA'!G921","v":0},null,null,null,{"$f":"'Schedule VIA (EBS)'!G921","v":0}]
["Sch VIA","Schedule of Funds Held",null,"(C) ABS and Struct. Sec. - Weighted Avg YTM 109",{"$f":"'Schedule VIA'!G943","v":0},null,null,null,{"$f":"'Schedule VIA (EBS)'!G943","v":0}]
["Sch VIA","Schedule of Funds Held",null,"(C) ABS and Struct. Sec. - Weighted Avg YTM 134",{"$f":"'Schedule VIA'!G968","v":0},null,null,null,{"$f":"'Schedule VIA (EBS)'!G968","v":0}]
["Sch VIA","Schedule of Funds Held",null,"(C) ABS and Struct. Sec. - Effective Duration 5",{"$f":"'Schedule VIA'!H839","v":0},null,null,null,{"$f":"'Schedule VIA (EBS)'!H839","v":0}]
["Sch VIA","Schedule of Funds Held",null,"(C) ABS and Struct. Sec. - Effective Duration 31",{"$f":"'Schedule VIA'!H865","v":0},null,null,null,{"$f":"'Schedule VIA (EBS)'!H865","v":0}]
["Sch VIA","Schedule of Funds Held",null,"(C) ABS and Struct. Sec. - Effective Duration 32",{"$f":"'Schedule VIA'!H866","v":0},null,null,null,{"$f":"'Schedule VIA (EBS)'!H866","v":0}]
["Sch VIA","Schedule of Funds Held",null,"(C) ABS and Struct. Sec. - Effective Duration 57",{"$f":"'Schedule VIA'!H891","v":0},null,null,null,{"$f":"'Schedule VIA (EBS)'!H891","v":0}]
["Sch VIA","Schedule of Funds Held",null,"(C) ABS and Struct. Sec. - Effective Duration 87",{"$f":"'Schedule VIA'!H921","v":0},null,null,null,{"$f":"'Schedule VIA (EBS)'!H921","v":0}]
["Sch VIA","Schedule of Funds Held",null,"(C) ABS and Struct. Sec. - Effective Duration 104",{"$f":"'Schedule VIA'!H938","v":0},null,null,null,{"$f":"'Schedule VIA (EBS)'!H938","v":0}]
["Sch VIA","Schedule of Funds Held",null,"(C) ABS and Struct. Sec. - Effective Duration 129",{"$f":"'Schedule VIA'!H963","v":0},null,null,null,{"$f":"'Schedule VIA (EBS)'!H963","v":0}]
["Sch VIA","Schedule of Funds Held",null,"(C) ABS and Struct. Sec. - Effective Duration 134",{"$f":"'Schedule VIA'!H968","v":0},null,null,null,{"$f":"'Schedule VIA (EBS)'!H968","v":0}]
["Sch VIA","Schedule of Funds Held",null,"(C) ABS and Struct. Sec. - Comments 23",{"$f":"'Schedule VIA'!I857","v":0},null,null,null,{"$f":"'Schedule VIA (EBS)'!I857","v":0}]
["Sch VIA","Schedule of Funds Held",null,"(C) ABS and Struct. Sec. - Comments 31",{"$f":"'Schedule VIA'!I865","v":0},null,null,null,{"$f":"'Schedule VIA (EBS)'!I865","v":0}]
["Sch VIA","Schedule of Funds Held",null,"(C) ABS and Struct. Sec. - Comments 52",{"$f":"'Schedule VIA'!I886","v":0},null,null,null,{"$f":"'Schedule VIA (EBS)'!I886","v":0}]
["Sch VIA","Schedule of Funds Held",null,"(C) ABS and Struct. Sec. - Comments 70",{"$f":"'Schedule VIA'!I904","v":0},null,null,null,{"$f":"'Schedule VIA (EBS)'!I904","v":0}]
["Sch VIA","Schedule of Funds Held",null,"(C) ABS and Struct. Sec. - Comments 103",{"$f":"'Schedule VIA'!I937","v":0},null,null,null,{"$f":"'Schedule VIA (EBS)'!I937","v":0}]
["Sch VIA","Schedule of Funds Held",null,"(C) ABS and Struct. Sec. - Comments 124",{"$f":"'Schedule VIA'!I958","v":0},null,null,null,{"$f":"'Schedule VIA (EBS)'!I958","v":0}]
["Sch VIA","Schedule of Funds Held",null,"(C) ABS and Struct. Sec. - Comments 129",{"$f":"'Schedule VIA'!I963","v":0},null,null,null,{"$f":"'Schedule VIA (EBS)'!I963","v":0}]
["Sch VIA","Schedule of Funds Held",null,"(D) Loans - Asset Type 5",{"$f":"'Schedule VIA'!B997","v":"Select"},null,null,null,{"$f":"'Schedule VIA (EBS)'!B997","v":"Select"}]
["Sch VIA","Schedule of Funds Held",null,"(D) Loans - Asset Type 25",{"$f":"'Schedule VIA'!B1017","v":"Select"},null,null,null,{"$f":"'Schedule VIA (EBS)'!B1017","v":"Select"}]
["Sch VIA","Schedule of Funds Held",null,"(D) Loans - Asset Type 50",{"$f":"'Schedule VIA'!B1042","v":"Select"},null,null,null,{"$f":"'Schedule VIA (EBS)'!B1042","v":"Select"}]
["Sch VIA","Schedule of Funds Held",null,"(D) Loans - Asset Type 71",{"$f":"'Schedule VIA'!B1063","v":"Select"},null,null,null,{"$f":"'Schedule VIA (EBS)'!B1063","v":"Select"}]
["Sch VIA","Schedule of Funds Held",null,"(D) Loans - Asset Type 87",{"$f":"'Schedule VIA'!B1079","v":"Select"},null,null,null,{"$f":"'Schedule VIA (EBS)'!B1079","v":"Select"}]
["Sch VIA","Schedule of Funds Held",null,"(D) Loans - Currency 2",{"$f":"'Schedule VIA'!C994","v":"Select"},null,null,null,{"$f":"'Schedule VIA (EBS)'!C994","v":"Select"}]
["Sch VIA","Schedule of Funds Held",null,"(D) Loans - Currency 23",{"$f":"'Schedule VIA'!C1015","v":"Select"},null,null,null,{"$f":"'Schedule VIA (EBS)'!C1015","v":"Select"}]
["Sch VIA","Schedule of Funds Held",null,"(D) Loans - Currency 55",{"$f":"'Schedule VIA'!C1047","v":"Select"},null,null,null,{"$f":"'Schedule VIA (EBS)'!C1047","v":"Select"}]
["Sch VIA","Schedule of Funds Held",null,"(D) Loans - Currency 70",{"$f":"'Schedule VIA'!C1062","v":"Select"},null,null,null,{"$f":"'Schedule VIA (EBS)'!C1062","v":"Select"}]
["Sch VIA","Schedule of Funds Held",null,"(D) Loans - Currency 95",{"$f":"'Schedule VIA'!C1087","v":"Select"},null,null,null,{"$f":"'Schedule VIA (EBS)'!C1087","v":"Select"}]
["Sch VIA","Schedule of Funds Held",null,"(D) Loans - Currency 100",{"$f":"'Schedule VIA'!C1092","v":"Select"},null,null,null,{"$f":"'Schedule VIA (EBS)'!C1092","v":"Select"}]
["Sch VIA","Schedule of Funds Held",null,"(D) Loans - Country 20",{"$f":"'Schedule VIA'!D1012","v":"Select"},null,null,null,{"$f":"'Schedule VIA (EBS)'!D1012","v":"Select"}]
["Sch VIA","Schedule of Funds Held",null,"(D) Loans - Country 47",{"$f":"'Schedule VIA'!D1039","v":"Select"},null,null,null,{"$f":"'Schedule VIA (EBS)'!D1039","v":"Select"}]
["Sch VIA","Schedule of Funds Held",null,"(D) Loans - Country 68",{"$f":"'Schedule VIA'!D1060","v":"Select"},null,null,null,{"$f":"'Schedule VIA (EBS)'!D1060","v":"Select"}]
["Sch VIA","Schedule of Funds Held",null,"(D) Loans - Country 93",{"$f":"'Schedule VIA'!D1085","v":"Select"},null,null,null,{"$f":"'Schedule VIA (EBS)'!D1085","v":"Select"}]
["Sch VIA","Schedule of Funds Held",null,"(D) Loans - Rating 2",{"$f":"'Schedule VIA'!E994","v":"Select"},null,null,null,{"$f":"'Schedule VIA (EBS)'!E994","v":"Select"}]
["Sch VIA","Schedule of Funds Held",null,"(D) Loans - Rating 20",{"$f":"'Schedule VIA'!E1012","v":"Select"},null,null,null,{"$f":"'Schedule VIA (EBS)'!E1012","v":"Select"}]
["Sch VIA","Schedule of Funds Held",null,"(D) Loans - Rating 45",{"$f":"'Schedule VIA'!E1037","v":"Select"},null,null,null,{"$f":"'Schedule VIA (EBS)'!E1037","v":"Select"}]
["Sch VIA","Schedule of Funds Held",null,"(D) Loans - Rating 70",{"$f":"'Schedule VIA'!E1062","v":"Select"},null,null,null,{"$f":"'Schedule VIA (EBS)'!E1062","v":"Select"}]
["Sch VIA","Schedule of Funds Held",null,"(D) Loans - Rating 92",{"$f":"'Schedule VIA'!E1084","v":"Select"},null,null,null,{"$f":"'Schedule VIA (EBS)'!E1084","v":"Select"}]
["Sch VIA","Schedule of Funds Held",null,"(D) Loans - Nominal Amount 17",{"$f":"'Schedule VIA'!F1009","v":0},null,null,null,{"$f":"'Schedule VIA (EBS)'!F1009","v":0}]
["Sch VIA","Schedule of Funds Held",null,"(D) Loans - Nominal Amount 38",{"$f":"'Schedule VIA'!F1030","v":0},null,null,null,{"$f":"'Schedule VIA (EBS)'!F1030","v":0}]
["Sch VIA","Schedule of Funds Held",null,"(D) Loans - Nominal Amount 56",{"$f":"'Schedule VIA'!F1048","v":0},null,null,null,{"$f":"'Schedule VIA (EBS)'!F1048","v":0}]
["Sch VIA","Schedule of Funds Held",null,"(D) Loans - Nominal Amount 69",{"$f":"'Schedule VIA'!F1061","v":0},null,null,null,{"$f":"'Schedule VIA (EBS)'!F1061","v":0}]
["Sch VIA","Schedule of Funds Held",null,"(D) Loans - Nominal Amount 90",{"$f":"'Schedule VIA'!F1082","v":0},null,null,null,{"$f":"'Schedule VIA (EBS)'!F1082","v":0}]
["Sch VIA","Schedule of Funds Held",null,"(D) Loans - Fair Value 15",{"$f":"'Schedule VIA'!G1007","v":0},null,null,null,{"$f":"'Schedule VIA (EBS)'!G1007","v":0}]
["Sch VIA","Schedule of Funds Held",null,"(D) Loans - Fair Value 38",{"$f":"'Schedule VIA'!G1030","v":0},null,null,null,{"$f":"'Schedule VIA (EBS)'!G1030","v":0}]
["Sch VIA","Schedule of Funds Held",null,"(D) Loans - Fair Value 42",{"$f":"'Schedule VIA'!G1034","v":0},null,null,null,{"$f":"'Schedule VIA (EBS)'!G1034","v":0}]
["Sch VIA","Schedule of Funds Held",null,"(D) Loans - Fair Value 67",{"$f":"'Schedule VIA'!G1059","v":0},null,null,null,{"$f":"'Schedule VIA (EBS)'!G1059","v":0}]
["Sch VIA","Schedule of Funds Held",null,"(D) Loans - Fair Value 89",{"$f":"'Schedule VIA'!G1081","v":0},null,null,null,{"$f":"'Schedule VIA (EBS)'!G1081","v":0}]
["Sch VIA","Schedule of Funds Held",null,"(D) Loans - Weighted Avg YTM 14",{"$f":"'Schedule VIA'!H1006","v":0},null,null,null,{"$f":"'Schedule VIA (EBS)'!H1006","v":0}]
["Sch VIA","Schedule of Funds Held",null,"(D) Loans - Weighted Avg YTM 39",{"$f":"'Schedule VIA'!H1031","v":0},null,null,null,{"$f":"'Schedule VIA (EBS)'!H1031","v":0}]
["Sch VIA","Schedule of Funds Held",null,"(D) Loans - Weighted Avg YTM 60",{"$f":"'Schedule VIA'!H1052","v":0},null,null,null,{"$f":"'Schedule VIA (EBS)'!H1052","v":0}]
["Sch VIA","Schedule of Funds Held",null,"(D) Loans - Weighted Avg YTM 71",{"$f":"'Schedule VIA'!H1063","v":0},null,null,null,{"$f":"'Schedule VIA (EBS)'!H1063","v":0}]
["Sch VIA","Schedule of Funds Held",null,"(D) Loans - Weighted Avg YTM 87",{"$f":"'Schedule VIA'!H1079","v":0},null,null,null,{"$f":"'Schedule VIA (EBS)'!H1079","v":0}]
["Sch VIA","Schedule of Funds Held",null,"(D) Loans - Effective Duration 12",{"$f":"'Schedule VIA'!I1004","v":0},null,null,null,{"$f":"'Schedule VIA (EBS)'!I1004","v":0}]
["Sch VIA","Schedule of Funds Held",null,"(D) Loans - Effective Duration 37",{"$f":"'Schedule VIA'!I1029","v":0},null,null,null,{"$f":"'Schedule VIA (EBS)'!I1029","v":0}]
["Sch VIA","Schedule of Funds Held",null,"(D) Loans - Effective Duration 57",{"$f":"'Schedule VIA'!I1049","v":0},null,null,null,{"$f":"'Schedule VIA (EBS)'!I1049","v":0}]
["Sch VIA","Schedule of Funds Held",null,"(D) Loans - Effective Duration 84",{"$f":"'Schedule VIA'!I1076","v":0},null,null,null,{"$f":"'Schedule VIA (EBS)'!I1076","v":0}]
["Sch VIA","Schedule of Funds Held",null,"(D) Loans - Effective Duration 89",{"$f":"'Schedule VIA'!I1081","v":0},null,null,null,{"$f":"'Schedule VIA (EBS)'!I1081","v":0}]
["Sch VIA","Schedule of Funds Held",null,"(D) Loans - Comments 25",{"$f":"'Schedule VIA'!J1017","v":0},null,null,null,{"$f":"'Schedule VIA (EBS)'!J1017","v":0}]
["Sch VIA","Schedule of Funds Held",null,"(D) Loans - Comments 36",{"$f":"'Schedule VIA'!J1028","v":0},null,null,null,{"$f":"'Schedule VIA (EBS)'!J1028","v":0}]
["Sch VIA","Schedule of Funds Held",null,"(D) Loans - Comments 57",{"$f":"'Schedule VIA'!J1049","v":0},null,null,null,{"$f":"'Schedule VIA (EBS)'!J1049","v":0}]
["Sch VIA","Schedule of Funds Held",null,"(D) Loans - Comments 82",{"$f":"'Schedule VIA'!J1074","v":0},null,null,null,{"$f":"'Schedule VIA (EBS)'!J1074","v":0}]
["Sch VIA","Schedule of Funds Held",null,"(D) Loans - Comments 86",{"$f":"'Schedule VIA'!J1078","v":0},null,null,null,{"$f":"'Schedule VIA (EBS)'!J1078","v":0}]
["Sch VIA","Schedule of Funds Held",null,"(D) Loans Not Perform. - Asset Type 8",{"$f":"'Schedule VIA'!B1108","v":"Select"},null,null,null,{"$f":"'Schedule VIA (EBS)'!B1108","v":"Select"}]
["Sch VIA","Schedule of Funds Held",null,"(D) Loans Not Perform. - Currency 13",{"$f":"'Schedule VIA'!C1113","v":"Select"},null,null,null,{"$f":"'Schedule VIA (EBS)'!C1113","v":"Select"}]
["Sch VIA","Schedule of Funds Held",null,"(D) Loans Not Perform. - Country 14",{"$f":"'Schedule VIA'!D1114","v":"Select"},null,null,null,{"$f":"'Schedule VIA (EBS)'!D1114","v":"Select"}]
["Sch VIA","Schedule of Funds Held",null,"(D) Loans Not Perform. - Rating 11",{"$f":"'Schedule VIA'!E1111","v":"Select"},null,null,null,{"$f":"'Schedule VIA (EBS)'!E1111","v":"Select"}]
["Sch VIA","Schedule of Funds Held",null,"(D) Loans Not Perform. - Fair Value 5",{"$f":"'Schedule VIA'!G1105","v":0},null,null,null,{"$f":"'Schedule VIA (EBS)'!G1105","v":0}]
["Sch VIA","Schedule of Funds Held",null,"(D) Loans Not Perform. - Comment 6",{"$f":"'Schedule VIA'!H1106","v":0},null,null,null,{"$f":"'Schedule VIA (EBS)'!H1106","v":0}]
["Sch VIA","Schedule of Funds Held",null,"(D) Loans Not Perform. - Comment 19",{"$f":"'Schedule VIA'!H1119","v":0},null,null,null,{"$f":"'Schedule VIA (EBS)'!H1119","v":0}]
["Sch VIA","Schedule of Funds Held",null,"(E) Preferred Equities - Asset Type 16",{"$f":"'Schedule VIA'!B1144","v":"Select"},null,null,null,{"$f":"'Schedule VIA (EBS)'!B1144","v":"Select"}]
["Sch VIA","Schedule of Funds Held",null,"(E) Preferred Equities - Asset Type 37",{"$f":"'Schedule VIA'!B1165","v":"Select"},null,null,null,{"$f":"'Schedule VIA (EBS)'!B1165","v":"Select"}]
["Sch VIA","Schedule of Funds Held",null,"(E) Preferred Equities - Asset Type 62",{"$f":"'Schedule VIA'!B1190","v":"Select"},null,null,null,{"$f":"'Schedule VIA (EBS)'!B1190","v":"Select"}]
["Sch VIA","Schedule of Funds Held",null,"(E) Preferred Equities - Asset Type 84",{"$f":"'Schedule VIA'!B1212","v":"Select"},null,null,null,{"$f":"'Schedule VIA (EBS)'!B1212","v":"Select"}]
["Sch VIA","Schedule of Funds Held",null,"(E) Preferred Equities - Asset Type 89",{"$f":"'Schedule VIA'!B1217","v":"Select"},null,null,null,{"$f":"'Schedule VIA (EBS)'!B1217","v":"Select"}]
["Sch VIA","Schedule of Funds Held",null,"(E) Preferred Equities - Currency 14",{"$f":"'Schedule VIA'!C1142","v":"Select"},null,null,null,{"$f":"'Schedule VIA (EBS)'!C1142","v":"Select"}]
["Sch VIA","Schedule of Funds Held",null,"(E) Preferred Equities - Currency 35",{"$f":"'Schedule VIA'!C1163","v":"Select"},null,null,null,{"$f":"'Schedule VIA (EBS)'!C1163","v":"Select"}]
["Sch VIA","Schedule of Funds Held",null,"(E) Preferred Equities - Currency 66",{"$f":"'Schedule VIA'!C1194","v":"Select"},null,null,null,{"$f":"'Schedule VIA (EBS)'!C1194","v":"Select"}]
["Sch VIA","Schedule of Funds Held",null,"(E) Preferred Equities - Currency 86",{"$f":"'Schedule VIA'!C1214","v":"Select"},null,null,null,{"$f":"'Schedule VIA (EBS)'!C1214","v":"Select"}]
["Sch VIA","Schedule of Funds Held",null,"(E) Preferred Equities - Rating 7",{"$f":"'Schedule VIA'!D1135","v":"Select"},null,null,null,{"$f":"'Schedule VIA (EBS)'!D1135","v":"Select"}]
["Sch VIA","Schedule of Funds Held",null,"(E) Preferred Equities - Rating 13",{"$f":"'Schedule VIA'!D1141","v":"Select"},null,null,null,{"$f":"'Schedule VIA (EBS)'!D1141","v":"Select"}]
["Sch VIA","Schedule of Funds Held",null,"(E) Preferred Equities - Rating 34",{"$f":"'Schedule VIA'!D1162","v":"Select"},null,null,null,{"$f":"'Schedule VIA (EBS)'!D1162","v":"Select"}]
["Sch VIA","Schedule of Funds Held",null,"(E) Preferred Equities - Rating 59",{"$f":"'Schedule VIA'!D1187","v":"Select"},null,null,null,{"$f":"'Schedule VIA (EBS)'!D1187","v":"Select"}]
["Sch VIA","Schedule of Funds Held",null,"(E) Preferred Equities - Rating 84",{"$f":"'Schedule VIA'!D1212","v":"Select"},null,null,null,{"$f":"'Schedule VIA (EBS)'!D1212","v":"Select"}]
["Sch VIA","Schedule of Funds Held",null,"(E) Preferred Equities - Rating 99",{"$f":"'Schedule VIA'!D1227","v":"Select"},null,null,null,{"$f":"'Schedule VIA (EBS)'!D1227","v":"Select"}]
["Sch VIA","Schedule of Funds Held",null,"(E) Preferred Equities - Nominal Amount 11",{"$f":"'Schedule VIA'!E1139","v":0},null,null,null,{"$f":"'Schedule VIA (EBS)'!E1139","v":0}]
["Sch VIA","Schedule of Funds Held",null,"(E) Preferred Equities - Nominal Amount 32",{"$f":"'Schedule VIA'!E1160","v":0},null,null,null,{"$f":"'Schedule VIA (EBS)'!E1160","v":0}]
["Sch VIA","Schedule of Funds Held",null,"(E) Preferred Equities - Nominal Amount 67",{"$f":"'Schedule VIA'!E1195","v":0},null,null,null,{"$f":"'Schedule VIA (EBS)'!E1195","v":0}]
["Sch VIA","Schedule of Funds Held",null,"(E) Preferred Equities - Nominal Amount 83",{"$f":"'Schedule VIA'!E1211","v":0},null,null,null,{"$f":"'Schedule VIA (EBS)'!E1211","v":0}]
["Sch VIA","Schedule of Funds Held",null,"(E) Preferred Equities - Fair Value 4",{"$f":"'Schedule VIA'!F1132","v":0},null,null,null,{"$f":"'Schedule VIA (EBS)'!F1132","v":0}]
["Sch VIA","Schedule of Funds Held",null,"(E) Preferred Equities - Fair Value 29",{"$f":"'Schedule VIA'!F1157","v":0},null,null,null,{"$f":"'Schedule VIA (EBS)'!F1157","v":0}]
["Sch VIA","Schedule of Funds Held",null,"(E) Preferred Equities - Fair Value 49",{"$f":"'Schedule VIA'!F1177","v":0},null,null,null,{"$f":"'Schedule VIA (EBS)'!F1177","v":0}]
["Sch VIA","Schedule of Funds Held",null,"(E) Preferred Equities - Fair Value 56",{"$f":"'Schedule VIA'!F1184","v":0},null,null,null,{"$f":"'Schedule VIA (EBS)'!F1184","v":0}]
["Sch VIA","Schedule of Funds Held",null,"(E) Preferred Equities - Fair Value 81",{"$f":"'Schedule VIA'!F1209","v":0},null,null,null,{"$f":"'Schedule VIA (EBS)'!F1209","v":0}]
["Sch VIA","Schedule of Funds Held",null,"(E) Preferred Equities - Weighted Avg YTM 2",{"$f":"'Schedule VIA'!G1130","v":0},null,null,null,{"$f":"'Schedule VIA (EBS)'!G1130","v":0}]
["Sch VIA","Schedule of Funds Held",null,"(E) Preferred Equities - Weighted Avg YTM 14",{"$f":"'Schedule VIA'!G1142","v":0},null,null,null,{"$f":"'Schedule VIA (EBS)'!G1142","v":0}]
["Sch VIA","Schedule of Funds Held",null,"(E) Preferred Equities - Weighted Avg YTM 53",{"$f":"'Schedule VIA'!G1181","v":0},null,null,null,{"$f":"'Schedule VIA (EBS)'!G1181","v":0}]
["Sch VIA","Schedule of Funds Held",null,"(E) Preferred Equities - Weighted Avg YTM 54",{"$f":"'Schedule VIA'!G1182","v":0},null,null,null,{"$f":"'Schedule VIA (EBS)'!G1182","v":0}]
["Sch VIA","Schedule of Funds Held",null,"(E) Preferred Equities - Weighted Avg YTM 82",{"$f":"'Schedule VIA'!G1210","v":0},null,null,null,{"$f":"'Schedule VIA (EBS)'!G1210","v":0}]
["Sch VIA","Schedule of Funds Held",null,"(E) Preferred Equities - Effective Duration 5",{"$f":"'Schedule VIA'!H1133","v":0},null,null,null,{"$f":"'Schedule VIA (EBS)'!H1133","v":0}]
["Sch VIA","Schedule of Funds Held",null,"(E) Preferred Equities - Effective Duration 26",{"$f":"'Schedule VIA'!H1154","v":0},null,null,null,{"$f":"'Schedule VIA (EBS)'!H1154","v":0}]
["Sch VIA","Schedule of Funds Held",null,"(E) Preferred Equities - Effective Duration 51",{"$f":"'Schedule VIA'!H1179","v":0},null,null,null,{"$f":"'Schedule VIA (EBS)'!H1179","v":0}]
["Sch VIA","Schedule of Funds Held",null,"(E) Preferred Equities - Effective Duration 68",{"$f":"'Schedule VIA'!H1196","v":0},null,null,null,{"$f":"'Schedule VIA (EBS)'!H1196","v":0}]
["Sch VIA","Schedule of Funds Held",null,"(E) Preferred Equities - Effective Duration 78",{"$f":"'Schedule VIA'!H1206","v":0},null,null,null,{"$f":"'Schedule VIA (EBS)'!H1206","v":0}]
["Sch VIA","Schedule of Funds Held",null,"(E) Preferred Equities - Comments 3",{"$f":"'Schedule VIA'!I1131","v":0},null,null,null,{"$f":"'Schedule VIA (EBS)'!I1131","v":0}]
["Sch VIA","Schedule of Funds Held",null,"(E) Preferred Equities - Comments 24",{"$f":"'Schedule VIA'!I1152","v":0},null,null,null,{"$f":"'Schedule VIA (EBS)'!I1152","v":0}]
["Sch VIA","Schedule of Funds Held",null,"(E) Preferred Equities - Comments 50",{"$f":"'Schedule VIA'!I1178","v":0},null,null,null,{"$f":"'Schedule VIA (EBS)'!I1178","v":0}]
["Sch VIA","Schedule of Funds Held",null,"(E) Preferred Equities - Comments 71",{"$f":"'Schedule VIA'!I1199","v":0},null,null,null,{"$f":"'Schedule VIA (EBS)'!I1199","v":0}]
["Sch VIA","Schedule of Funds Held",null,"(E) Preferred Equities - Comments 96",{"$f":"'Schedule VIA'!I1224","v":0},null,null,null,{"$f":"'Schedule VIA (EBS)'!I1224","v":0}]
["Sch VIA","Schedule of Funds Held",null,"(E) Preferred Equities - Comments 97",{"$f":"'Schedule VIA'!I1225","v":0},null,null,null,{"$f":"'Schedule VIA (EBS)'!I1225","v":0}]
["Sch VIA","Schedule of Funds Held",null,"(F) Common Equities - Asset Type 22",{"$f":"'Schedule VIA'!B1258","v":"Select"},null,null,null,{"$f":"'Schedule VIA (EBS)'!B1258","v":"Select"}]
["Sch VIA","Schedule of Funds Held",null,"(F) Common Equities - Asset Type 47",{"$f":"'Schedule VIA'!B1283","v":"Select"},null,null,null,{"$f":"'Schedule VIA (EBS)'!B1283","v":"Select"}]
["Sch VIA","Schedule of Funds Held",null,"(F) Common Equities - Asset Type 72",{"$f":"'Schedule VIA'!B1308","v":"Select"},null,null,null,{"$f":"'Schedule VIA (EBS)'!B1308","v":"Select"}]
["Sch VIA","Schedule of Funds Held",null,"(F) Common Equities - Asset Type 82",{"$f":"'Schedule VIA'!B1318","v":"Select"},null,null,null,{"$f":"'Schedule VIA (EBS)'!B1318","v":"Select"}]
["Sch VIA","Schedule of Funds Held",null,"(F) Common Equities - Asset Type 99",{"$f":"'Schedule VIA'!B1335","v":"Select"},null,null,null,{"$f":"'Schedule VIA (EBS)'!B1335","v":"Select"}]
["Sch VIA","Schedule of Funds Held",null,"(F) Common Equities - Currency 20",{"$f":"'Schedule VIA'!C1256","v":"Select"},null,null,null,{"$f":"'Schedule VIA (EBS)'!C1256","v":"Select"}]
["Sch VIA","Schedule of Funds Held",null,"(F) Common Equities - Currency 45",{"$f":"'Schedule VIA'!C1281","v":"Select"},null,null,null,{"$f":"'Schedule VIA (EBS)'!C1281","v":"Select"}]
["Sch VIA","Schedule of Funds Held",null,"(F) Common Equities - Currency 64",{"$f":"'Schedule VIA'!C1300","v":"Select"},null,null,null,{"$f":"'Schedule VIA (EBS)'!C1300","v":"Select"}]
["Sch VIA","Schedule of Funds Held",null,"(F) Common Equities - Currency 92",{"$f":"'Schedule VIA'!C1328","v":"Select"},null,null,null,{"$f":"'Schedule VIA (EBS)'!C1328","v":"Select"}]
["Sch VIA","Schedule of Funds Held",null,"(F) Common Equities - Country 17",{"$f":"'Schedule VIA'!D1253","v":"Select"},null,null,null,{"$f":"'Schedule VIA (EBS)'!D1253","v":"Select"}]
["Sch VIA","Schedule of Funds Held",null,"(F) Common Equities - Country 36",{"$f":"'Schedule VIA'!D1272","v":"Select"},null,null,null,{"$f":"'Schedule VIA (EBS)'!D1272","v":"Select"}]
["Sch VIA","Schedule of Funds Held",null,"(F) Common Equities - Country 44",{"$f":"'Schedule VIA'!D1280","v":"Select"},null,null,null,{"$f":"'Schedule VIA (EBS)'!D1280","v":"Select"}]
["Sch VIA","Schedule of Funds Held",null,"(F) Common Equities - Country 69",{"$f":"'Schedule VIA'!D1305","v":"Select"},null,null,null,{"$f":"'Schedule VIA (EBS)'!D1305","v":"Select"}]
["Sch VIA","Schedule of Funds Held",null,"(F) Common Equities - Country 90",{"$f":"'Schedule VIA'!D1326","v":"Select"},null,null,null,{"$f":"'Schedule VIA (EBS)'!D1326","v":"Select"}]
["Sch VIA","Schedule of Funds Held",null,"(F) Common Equities - Fair Value 18",{"$f":"'Schedule VIA'!E1254","v":0},null,null,null,{"$f":"'Schedule VIA (EBS)'!E1254","v":0}]
["Sch VIA","Schedule of Funds Held",null,"(F) Common Equities - Fair Value 21",{"$f":"'Schedule VIA'!E1257","v":0},null,null,null,{"$f":"'Schedule VIA (EBS)'!E1257","v":0}]
["Sch VIA","Schedule of Funds Held",null,"(F) Common Equities - Fair Value 42",{"$f":"'Schedule VIA'!E1278","v":0},null,null,null,{"$f":"'Schedule VIA (EBS)'!E1278","v":0}]
["Sch VIA","Schedule of Funds Held",null,"(F) Common Equities - Fair Value 67",{"$f":"'Schedule VIA'!E1303","v":0},null,null,null,{"$f":"'Schedule VIA (EBS)'!E1303","v":0}]
["Sch VIA","Schedule of Funds Held",null,"(F) Common Equities - Fair Value 83",{"$f":"'Schedule VIA'!E1319","v":0},null,null,null,{"$f":"'Schedule VIA (EBS)'!E1319","v":0}]
["Sch VIA","Schedule of Funds Held",null,"(F) Common Equities - Comments 14",{"$f":"'Schedule VIA'!F1250","v":0},null,null,null,{"$f":"'Schedule VIA (EBS)'!F1250","v":0}]
["Sch VIA","Schedule of Funds Held",null,"(F) Common Equities - Comments 39",{"$f":"'Schedule VIA'!F1275","v":0},null,null,null,{"$f":"'Schedule VIA (EBS)'!F1275","v":0}]
["Sch VIA","Schedule of Funds Held",null,"(F) Common Equities - Comments 51",{"$f":"'Schedule VIA'!F1287","v":0},null,null,null,{"$f":"'Schedule VIA (EBS)'!F1287","v":0}]
["Sch VIA","Schedule of Funds Held",null,"(F) Common Equities - Comments 66",{"$f":"'Schedule VIA'!F1302","v":0},null,null,null,{"$f":"'Schedule VIA (EBS)'!F1302","v":0}]
["Sch VIA","Schedule of Funds Held",null,"(F) Common Equities - Comments 91",{"$f":"'Schedule VIA'!F1327","v":0},null,null,null,{"$f":"'Schedule VIA (EBS)'!F1327","v":0}]
["Sch VIA","Schedule of Funds Held",null,"(G) Real Estate - Asset Type 11",{"$f":"'Schedule VIA'!B1355","v":"Select"},null,null,null,{"$f":"'Schedule VIA (EBS)'!B1355","v":"Select"}]
["Sch VIA","Schedule of Funds Held",null,"(G) Real Estate - Asset Type 32",{"$f":"'Schedule VIA'!B1376","v":"Select"},null,null,null,{"$f":"'Schedule VIA (EBS)'!B1376","v":"Select"}]
["Sch VIA","Schedule of Funds Held",null,"(G) Real Estate - Asset Type 58",{"$f":"'Schedule VIA'!B1402","v":"Select"},null,null,null,{"$f":"'Schedule VIA (EBS)'!B1402","v":"Select"}]
["Sch VIA","Schedule of Funds Held",null,"(G) Real Estate - Asset Type 63",{"$f":"'Schedule VIA'!B1407","v":"Select"},null,null,null,{"$f":"'Schedule VIA (EBS)'!B1407","v":"Select"}]
["Sch VIA","Schedule of Funds Held",null,"(G) Real Estate - Asset Type 88",{"$f":"'Schedule VIA'!B1432","v":"Select"},null,null,null,{"$f":"'Schedule VIA (EBS)'!B1432","v":"Select"}]
["Sch VIA","Schedule of Funds Held",null,"(G) Real Estate - Currency 18",{"$f":"'Schedule VIA'!C1362","v":"Select"},null,null,null,{"$f":"'Schedule VIA (EBS)'!C1362","v":"Select"}]
["Sch VIA","Schedule of Funds Held",null,"(G) Real Estate - Currency 35",{"$f":"'Schedule VIA'!C1379","v":"Select"},null,null,null,{"$f":"'Schedule VIA (EBS)'!C1379","v":"Select"}]
["Sch VIA","Schedule of Funds Held",null,"(G) Real Estate - Currency 56",{"$f":"'Schedule VIA'!C1400","v":"Select"},null,null,null,{"$f":"'Schedule VIA (EBS)'!C1400","v":"Select"}]
["Sch VIA","Schedule of Funds Held",null,"(G) Real Estate - Currency 65",{"$f":"'Schedule VIA'!C1409","v":"Select"},null,null,null,{"$f":"'Schedule VIA (EBS)'!C1409","v":"Select"}]
["Sch VIA","Schedule of Funds Held",null,"(G) Real Estate - Currency 87",{"$f":"'Schedule VIA'!C1431","v":"Select"},null,null,null,{"$f":"'Schedule VIA (EBS)'!C1431","v":"Select"}]
["Sch VIA","Schedule of Funds Held",null,"(G) Real Estate - Country 8",{"$f":"'Schedule VIA'!D1352","v":"Select"},null,null,null,{"$f":"'Schedule VIA (EBS)'!D1352","v":"Select"}]
["Sch VIA","Schedule of Funds Held",null,"(G) Real Estate - Country 33",{"$f":"'Schedule VIA'!D1377","v":"Select"},null,null,null,{"$f":"'Schedule VIA (EBS)'!D1377","v":"Select"}]
["Sch VIA","Schedule of Funds Held",null,"(G) Real Estate - Country 47",{"$f":"'Schedule VIA'!D1391","v":"Select"},null,null,null,{"$f":"'Schedule VIA (EBS)'!D1391","v":"Select"}]
["Sch VIA","Schedule of Funds Held",null,"(G) Real Estate - Country 80",{"$f":"'Schedule VIA'!D1424","v":"Select"},null,null,null,{"$f":"'Schedule VIA (EBS)'!D1424","v":"Select"}]
["Sch VIA","Schedule of Funds Held",null,"(G) Real Estate - Purpose 5",{"$f":"'Schedule VIA'!E1349","v":"Select"},null,null,null,{"$f":"'Schedule VIA (EBS)'!E1349","v":"Select"}]
["Sch VIA","Schedule of Funds Held",null,"(G) Real Estate - Purpose 6",{"$f":"'Schedule VIA'!E1350","v":"Select"},null,null,null,{"$f":"'Schedule VIA (EBS)'!E1350","v":"Select"}]
["Sch VIA","Schedule of Funds Held",null,"(G) Real Estate - Purpose 33",{"$f":"'Schedule VIA'!E1377","v":"Select"},null,null,null,{"$f":"'Schedule VIA (EBS)'!E1377","v":"Select"}]
["Sch VIA","Schedule of Funds Held",null,"(G) Real Estate - Purpose 57",{"$f":"'Schedule VIA'!E1401","v":"Select"},null,null,null,{"$f":"'Schedule VIA (EBS)'!E1401","v":"Select"}]
["Sch VIA","Schedule of Funds Held",null,"(G) Real Estate - Purpose 78",{"$f":"'Schedule VIA'!E1422","v":"Select"},null,null,null,{"$f":"'Schedule VIA (EBS)'!E1422","v":"Select"}]
["Sch VIA","Schedule of Funds Held",null,"(G) Real Estate - Cost 1",{"$f":"'Schedule VIA'!F1345","v":0},null,null,null,{"$f":"'Schedule VIA (EBS)'!F1345","v":0}]
["Sch VIA","Schedule of Funds Held",null,"(G) Real Estate - Cost 25",{"$f":"'Schedule VIA'!F1369","v":0},null,null,null,{"$f":"'Schedule VIA (EBS)'!F1369","v":0}]
["Sch VIA","Schedule of Funds Held",null,"(G) Real Estate - Cost 30",{"$f":"'Schedule VIA'!F1374","v":0},null,null,null,{"$f":"'Schedule VIA (EBS)'!F1374","v":0}]
["Sch VIA","Schedule of Funds Held",null,"(G) Real Estate - Cost 55",{"$f":"'Schedule VIA'!F1399","v":0},null,null,null,{"$f":"'Schedule VIA (EBS)'!F1399","v":0}]
["Sch VIA","Schedule of Funds Held",null,"(G) Real Estate - Cost 87",{"$f":"'Schedule VIA'!F1431","v":0},null,null,null,{"$f":"'Schedule VIA (EBS)'!F1431","v":0}]
["Sch VIA","Schedule of Funds Held",null,"(G) Real Estate - Fair Value 2",{"$f":"'Schedule VIA'!G1346","v":0},null,null,null,{"$f":"'Schedule VIA (EBS)'!G1346","v":0}]
["Sch VIA","Schedule of Funds Held",null,"(G) Real Estate - Fair Value 27",{"$f":"'Schedule VIA'!G1371","v":0},null,null,null,{"$f":"'Schedule VIA (EBS)'!G1371","v":0}]
["Sch VIA","Schedule of Funds Held",null,"(G) Real Estate - Fair Value 48",{"$f":"'Schedule VIA'!G1392","v":0},null,null,null,{"$f":"'Schedule VIA (EBS)'!G1392","v":0}]
["Sch VIA","Schedule of Funds Held",null,"(G) Real Estate - Fair Value 69",{"$f":"'Schedule VIA'!G1413","v":0},null,null,null,{"$f":"'Schedule VIA (EBS)'!G1413","v":0}]
["Sch VIA","Schedule of Funds Held",null,"(G) Real Estate - Fair Value 75",{"$f":"'Schedule VIA'!G1419","v":0},null,null,null,{"$f":"'Schedule VIA (EBS)'!G1419","v":0}]
["Sch VIA","Schedule of Funds Held",null,"(G) Real Estate - Fair Value 100",{"$f":"'Schedule VIA'!G1444","v":0},null,null,null,{"$f":"'Schedule VIA (EBS)'!G1444","v":0}]
["Sch VIA","Schedule of Funds Held",null,"(G) Real Estate - Comments 16",{"$f":"'Schedule VIA'!H1360","v":0},null,null,null,{"$f":"'Schedule VIA (EBS)'!H1360","v":0}]
["Sch VIA","Schedule of Funds Held",null,"(G) Real Estate - Comments 47",{"$f":"'Schedule VIA'!H1391","v":0},null,null,null,{"$f":"'Schedule VIA (EBS)'!H1391","v":0}]
["Sch VIA","Schedule of Funds Held",null,"(G) Real Estate - Comments 52",{"$f":"'Schedule VIA'!H1396","v":0},null,null,null,{"$f":"'Schedule VIA (EBS)'!H1396","v":0}]
["Sch VIA","Schedule of Funds Held",null,"(G) Real Estate - Comments 77",{"$f":"'Schedule VIA'!H1421","v":0},null,null,null,{"$f":"'Schedule VIA (EBS)'!H1421","v":0}]
["Sch VIA","Schedule of Funds Held",null,"(H) Other Alt. Inv. - Asset Type 1",{"$f":"'Schedule VIA'!B1453","v":"Select"},null,null,null,{"$f":"'Schedule VIA (EBS)'!B1453","v":"Select"}]
["Sch VIA","Schedule of Funds Held",null,"(H) Other Alt. Inv. - Asset Type 23",{"$f":"'Schedule VIA'!B1475","v":"Select"},null,null,null,{"$f":"'Schedule VIA (EBS)'!B1475","v":"Select"}]
["Sch VIA","Schedule of Funds Held",null,"(H) Other Alt. Inv. - Asset Type 44",{"$f":"'Schedule VIA'!B1496","v":"Select"},null,null,null,{"$f":"'Schedule VIA (EBS)'!B1496","v":"Select"}]
["Sch VIA","Schedule of Funds Held",null,"(H) Other Alt. Inv. - Asset Type 69",{"$f":"'Schedule VIA'!B1521","v":"Select"},null,null,null,{"$f":"'Schedule VIA (EBS)'!B1521","v":"Select"}]
["Sch VIA","Schedule of Funds Held",null,"(H) Other Alt. Inv. - Asset Type 83",{"$f":"'Schedule VIA'!B1535","v":"Select"},null,null,null,{"$f":"'Schedule VIA (EBS)'!B1535","v":"Select"}]
["Sch VIA","Schedule of Funds Held",null,"(H) Other Alt. Inv. - Asset Type 96",{"$f":"'Schedule VIA'!B1548","v":"Select"},null,null,null,{"$f":"'Schedule VIA (EBS)'!B1548","v":"Select"}]
["Sch VIA","Schedule of Funds Held",null,"(H) Other Alt. Inv. - Currency 21",{"$f":"'Schedule VIA'!C1473","v":"Select"},null,null,null,{"$f":"'Schedule VIA (EBS)'!C1473","v":"Select"}]
["Sch VIA","Schedule of Funds Held",null,"(H) Other Alt. Inv. - Currency 34",{"$f":"'Schedule VIA'!C1486","v":"Select"},null,null,null,{"$f":"'Schedule VIA (EBS)'!C1486","v":"Select"}]
["Sch VIA","Schedule of Funds Held",null,"(H) Other Alt. Inv. - Currency 68",{"$f":"'Schedule VIA'!C1520","v":"Select"},null,null,null,{"$f":"'Schedule VIA (EBS)'!C1520","v":"Select"}]
["Sch VIA","Schedule of Funds Held",null,"(H) Other Alt. Inv. - Currency 73",{"$f":"'Schedule VIA'!C1525","v":"Select"},null,null,null,{"$f":"'Schedule VIA (EBS)'!C1525","v":"Select"}]
["Sch VIA","Schedule of Funds Held",null,"(H) Other Alt. Inv. - Currency 94",{"$f":"'Schedule VIA'!C1546","v":"Select"},null,null,null,{"$f":"'Schedule VIA (EBS)'!C1546","v":"Select"}]
["Sch VIA","Schedule of Funds Held",null,"(H) Other Alt. Inv. - Country 16",{"$f":"'Schedule VIA'!D1468","v":"Select"},null,null,null,{"$f":"'Schedule VIA (EBS)'!D1468","v":"Select"}]
["Sch VIA","Schedule of Funds Held",null,"(H) Other Alt. Inv. - Country 45",{"$f":"'Schedule VIA'!D1497","v":"Select"},null,null,null,{"$f":"'Schedule VIA (EBS)'!D1497","v":"Select"}]
["Sch VIA","Schedule of Funds Held",null,"(H) Other Alt. Inv. - Country 66",{"$f":"'Schedule VIA'!D1518","v":"Select"},null,null,null,{"$f":"'Schedule VIA (EBS)'!D1518","v":"Select"}]
["Sch VIA","Schedule of Funds Held",null,"(H) Other Alt. Inv. - Country 91",{"$f":"'Schedule VIA'!D1543","v":"Select"},null,null,null,{"$f":"'Schedule VIA (EBS)'!D1543","v":"Select"}]
["Sch VIA","Schedule of Funds Held",null,"(H) Other Alt. Inv. - Rating 2",{"$f":"'Schedule VIA'!E1454","v":"Select"},null,null,null,{"$f":"'Schedule VIA (EBS)'!E1454","v":"Select"}]
["Sch VIA","Schedule of Funds Held",null,"(H) Other Alt. Inv. - Rating 18",{"$f":"'Schedule VIA'!E1470","v":"Select"},null,null,null,{"$f":"'Schedule VIA (EBS)'!E1470","v":"Select"}]
["Sch VIA","Schedule of Funds Held",null,"(H) Other Alt. Inv. - Rating 43",{"$f":"'Schedule VIA'!E1495","v":"Select"},null,null,null,{"$f":"'Schedule VIA (EBS)'!E1495","v":"Select"}]
["Sch VIA","Schedule of Funds Held",null,"(H) Other Alt. Inv. - Rating 70",{"$f":"'Schedule VIA'!E1522","v":"Select"},null,null,null,{"$f":"'Schedule VIA (EBS)'!E1522","v":"Select"}]
["Sch VIA","Schedule of Funds Held",null,"(H) Other Alt. Inv. - Rating 90",{"$f":"'Schedule VIA'!E1542","v":"Select"},null,null,null,{"$f":"'Schedule VIA (EBS)'!E1542","v":"Select"}]
["Sch VIA","Schedule of Funds Held",null,"(H) Other Alt. Inv. - Nominal Amount 15",{"$f":"'Schedule VIA'!F1467","v":0},null,null,null,{"$f":"'Schedule VIA (EBS)'!F1467","v":0}]
["Sch VIA","Schedule of Funds Held",null,"(H) Other Alt. Inv. - Nominal Amount 16",{"$f":"'Schedule VIA'!F1468","v":0},null,null,null,{"$f":"'Schedule VIA (EBS)'!F1468","v":0}]
["Sch VIA","Schedule of Funds Held",null,"(H) Other Alt. Inv. - Nominal Amount 52",{"$f":"'Schedule VIA'!F1504","v":0},null,null,null,{"$f":"'Schedule VIA (EBS)'!F1504","v":0}]
["Sch VIA","Schedule of Funds Held",null,"(H) Other Alt. Inv. - Nominal Amount 63",{"$f":"'Schedule VIA'!F1515","v":0},null,null,null,{"$f":"'Schedule VIA (EBS)'!F1515","v":0}]
["Sch VIA","Schedule of Funds Held",null,"(H) Other Alt. Inv. - Nominal Amount 88",{"$f":"'Schedule VIA'!F1540","v":0},null,null,null,{"$f":"'Schedule VIA (EBS)'!F1540","v":0}]
["Sch VIA","Schedule of Funds Held",null,"(H) Other Alt. Inv. - Fair Value 13",{"$f":"'Schedule VIA'!G1465","v":0},null,null,null,{"$f":"'Schedule VIA (EBS)'!G1465","v":0}]
["Sch VIA","Schedule of Funds Held",null,"(H) Other Alt. Inv. - Fair Value 17",{"$f":"'Schedule VIA'!G1469","v":0},null,null,null,{"$f":"'Schedule VIA (EBS)'!G1469","v":0}]
["Sch VIA","Schedule of Funds Held",null,"(H) Other Alt. Inv. - Fair Value 40",{"$f":"'Schedule VIA'!G1492","v":0},null,null,null,{"$f":"'Schedule VIA (EBS)'!G1492","v":0}]
["Sch VIA","Schedule of Funds Held",null,"(H) Other Alt. Inv. - Fair Value 61",{"$f":"'Schedule VIA'!G1513","v":0},null,null,null,{"$f":"'Schedule VIA (EBS)'!G1513","v":0}]
["Sch VIA","Schedule of Funds Held",null,"(H) Other Alt. Inv. - Fair Value 85",{"$f":"'Schedule VIA'!G1537","v":0},null,null,null,{"$f":"'Schedule VIA (EBS)'!G1537","v":0}]
["Sch VIA","Schedule of Funds Held",null,"(H) Other Alt. Inv. - Weighted Avg YTM 12",{"$f":"'Schedule VIA'!H1464","v":0},null,null,null,{"$f":"'Schedule VIA (EBS)'!H1464","v":0}]
["Sch VIA","Schedule of Funds Held",null,"(H) Other Alt. Inv. - Weighted Avg YTM 33",{"$f":"'Schedule VIA'!H1485","v":0},null,null,null,{"$f":"'Schedule VIA (EBS)'!H1485","v":0}]
["Sch VIA","Schedule of Funds Held",null,"(H) Other Alt. Inv. - Weighted Avg YTM 58",{"$f":"'Schedule VIA'!H1510","v":0},null,null,null,{"$f":"'Schedule VIA (EBS)'!H1510","v":0}]
["Sch VIA","Schedule of Funds Held",null,"(H) Other Alt. Inv. - Weighted Avg YTM 67",{"$f":"'Schedule VIA'!H1519","v":0},null,null,null,{"$f":"'Schedule VIA (EBS)'!H1519","v":0}]
["Sch VIA","Schedule of Funds Held",null,"(H) Other Alt. Inv. - Weighted Avg YTM 85",{"$f":"'Schedule VIA'!H1537","v":0},null,null,null,{"$f":"'Schedule VIA (EBS)'!H1537","v":0}]
["Sch VIA","Schedule of Funds Held",null,"(H) Other Alt. Inv. - Effective Duration 10",{"$f":"'Schedule VIA'!I1462","v":0},null,null,null,{"$f":"'Schedule VIA (EBS)'!I1462","v":0}]
["Sch VIA","Schedule of Funds Held",null,"(H) Other Alt. Inv. - Effective Duration 39",{"$f":"'Schedule VIA'!I1491","v":0},null,null,null,{"$f":"'Schedule VIA (EBS)'!I1491","v":0}]
["Sch VIA","Schedule of Funds Held",null,"(H) Other Alt. Inv. - Effective Duration 57",{"$f":"'Schedule VIA'!I1509","v":0},null,null,null,{"$f":"'Schedule VIA (EBS)'!I1509","v":0}]
["Sch VIA","Schedule of Funds Held",null,"(H) Other Alt. Inv. - Effective Duration 62",{"$f":"'Schedule VIA'!I1514","v":0},null,null,null,{"$f":"'Schedule VIA (EBS)'!I1514","v":0}]
["Sch VIA","Schedule of Funds Held",null,"(H) Other Alt. Inv. - Effective Duration 83",{"$f":"'Schedule VIA'!I1535","v":0},null,null,null,{"$f":"'Schedule VIA (EBS)'!I1535","v":0}]
["Sch VIA","Schedule of Funds Held",null,"(H) Other Alt. Inv. - Comments 21",{"$f":"'Schedule VIA'!J1473","v":0},null,null,null,{"$f":"'Schedule VIA (EBS)'!J1473","v":0}]
["Sch VIA","Schedule of Funds Held",null,"(H) Other Alt. Inv. - Comments 30",{"$f":"'Schedule VIA'!J1482","v":0},null,null,null,{"$f":"'Schedule VIA (EBS)'!J1482","v":0}]
["Sch VIA","Schedule of Funds Held",null,"(H) Other Alt. Inv. - Comments 55",{"$f":"'Schedule VIA'!J1507","v":0},null,null,null,{"$f":"'Schedule VIA (EBS)'!J1507","v":0}]
["Sch VIA","Schedule of Funds Held",null,"(H) Other Alt. Inv. - Comments 80",{"$f":"'Schedule VIA'!J1532","v":0},null,null,null,{"$f":"'Schedule VIA (EBS)'!J1532","v":0}]
["Sch VIA","Schedule of Funds Held",null,"(H) Other Alt. Inv. - Comments 86",{"$f":"'Schedule VIA'!J1538","v":0},null,null,null,{"$f":"'Schedule VIA (EBS)'!J1538","v":0}]
["Sch VIA","Schedule of Funds Held",null,"(I) Derivatives - Derivative Type 6",{"$f":"'Schedule VIA'!B1565","v":"Select"},null,null,null,{"$f":"'Schedule VIA (EBS)'!B1565","v":"Select"}]
["Sch VIA","Schedule of Funds Held",null,"(I) Derivatives - Derivative Type 31",{"$f":"'Schedule VIA'!B1590","v":"Select"},null,null,null,{"$f":"'Schedule VIA (EBS)'!B1590","v":"Select"}]
["Sch VIA","Schedule of Funds Held",null,"(I) Derivatives - Derivative Type 53",{"$f":"'Schedule VIA'!B1612","v":"Select"},null,null,null,{"$f":"'Schedule VIA (EBS)'!B1612","v":"Select"}]
["Sch VIA","Schedule of Funds Held",null,"(I) Derivatives - Derivative Type 78",{"$f":"'Schedule VIA'!B1637","v":"Select"},null,null,null,{"$f":"'Schedule VIA (EBS)'!B1637","v":"Select"}]
["Sch VIA","Schedule of Funds Held",null,"(I) Derivatives - Derivative Type 99",{"$f":"'Schedule VIA'!B1658","v":"Select"},null,null,null,{"$f":"'Schedule VIA (EBS)'!B1658","v":"Select"}]
["Sch VIA","Schedule of Funds Held",null,"(I) Derivatives - Derivative Type 104",{"$f":"'Schedule VIA'!B1663","v":"Select"},null,null,null,{"$f":"'Schedule VIA (EBS)'!B1663","v":"Select"}]
["Sch VIA","Schedule of Funds Held",null,"(I) Derivatives - Derivative Type 135",{"$f":"'Schedule VIA'!B1694","v":"Select"},null,null,null,{"$f":"'Schedule VIA (EBS)'!B1694","v":"Select"}]
["Sch VIA","Schedule of Funds Held",null,"(I) Derivatives - Derivative Type 151",{"$f":"'Schedule VIA'!B1710","v":"Select"},null,null,null,{"$f":"'Schedule VIA (EBS)'!B1710","v":"Select"}]
["Sch VIA","Schedule of Funds Held",null,"(I) Derivatives - Derivative Type 176",{"$f":"'Schedule VIA'!B1735","v":"Select"},null,null,null,{"$f":"'Schedule VIA (EBS)'!B1735","v":"Select"}]
["Sch VIA","Schedule of Funds Held",null,"(I) Derivatives - Underlying 1",{"$f":"'Schedule VIA'!C1560","v":"Select"},null,null,null,{"$f":"'Schedule VIA (EBS)'!C1560","v":"Select"}]
["Sch VIA","Schedule of Funds Held",null,"(I) Derivatives - Underlying 21",{"$f":"'Schedule VIA'!C1580","v":"Select"},null,null,null,{"$f":"'Schedule VIA (EBS)'!C1580","v":"Select"}]
["Sch VIA","Schedule of Funds Held",null,"(I) Derivatives - Underlying 28",{"$f":"'Schedule VIA'!C1587","v":"Select"},null,null,null,{"$f":"'Schedule VIA (EBS)'!C1587","v":"Select"}]
["Sch VIA","Schedule of Funds Held",null,"(I) Derivatives - Underlying 49",{"$f":"'Schedule VIA'!C1608","v":"Select"},null,null,null,{"$f":"'Schedule VIA (EBS)'!C1608","v":"Select"}]
["Sch VIA","Schedule of Funds Held",null,"(I) Derivatives - Underlying 68",{"$f":"'Schedule VIA'!C1627","v":"Select"},null,null,null,{"$f":"'Schedule VIA (EBS)'!C1627","v":"Select"}]
["Sch VIA","Schedule of Funds Held",null,"(I) Derivatives - Underlying 100",{"$f":"'Schedule VIA'!C1659","v":"Select"},null,null,null,{"$f":"'Schedule VIA (EBS)'!C1659","v":"Select"}]
["Sch VIA","Schedule of Funds Held",null,"(I) Derivatives - Underlying 121",{"$f":"'Schedule VIA'!C1680","v":"Select"},null,null,null,{"$f":"'Schedule VIA (EBS)'!C1680","v":"Select"}]
["Sch VIA","Schedule of Funds Held",null,"(I) Derivatives - Underlying 126",{"$f":"'Schedule VIA'!C1685","v":"Select"},null,null,null,{"$f":"'Schedule VIA (EBS)'!C1685","v":"Select"}]
["Sch VIA","Schedule of Funds Held",null,"(I) Derivatives - Underlying 154",{"$f":"'Schedule VIA'!C1713","v":"Select"},null,null,null,{"$f":"'Schedule VIA (EBS)'!C1713","v":"Select"}]
["Sch VIA","Schedule of Funds Held",null,"(I) Derivatives - Underlying 173",{"$f":"'Schedule VIA'!C1732","v":"Select"},null,null,null,{"$f":"'Schedule VIA (EBS)'!C1732","v":"Select"}]
["Sch VIA","Schedule of Funds Held",null,"(I) Derivatives - Underlying 198",{"$f":"'Schedule VIA'!C1757","v":"Select"},null,null,null,{"$f":"'Schedule VIA (EBS)'!C1757","v":"Select"}]
["Sch VIA","Schedule of Funds Held",null,"(I) Derivatives - Currency 19",{"$f":"'Schedule VIA'!D1578","v":"Select"},null,null,null,{"$f":"'Schedule VIA (EBS)'!D1578","v":"Select"}]
["Sch VIA","Schedule of Funds Held",null,"(I) Derivatives - Currency 36",{"$f":"'Schedule VIA'!D1595","v":"Select"},null,null,null,{"$f":"'Schedule VIA (EBS)'!D1595","v":"Select"}]
["Sch VIA","Schedule of Funds Held",null,"(I) Derivatives - Currency 50",{"$f":"'Schedule VIA'!D1609","v":"Select"},null,null,null,{"$f":"'Schedule VIA (EBS)'!D1609","v":"Select"}]
["Sch VIA","Schedule of Funds Held",null,"(I) Derivatives - Currency 71",{"$f":"'Schedule VIA'!D1630","v":"Select"},null,null,null,{"$f":"'Schedule VIA (EBS)'!D1630","v":"Select"}]
["Sch VIA","Schedule of Funds Held",null,"(I) Derivatives - Currency 104",{"$f":"'Schedule VIA'!D1663","v":"Select"},null,null,null,{"$f":"'Schedule VIA (EBS)'!D1663","v":"Select"}]
["Sch VIA","Schedule of Funds Held",null,"(I) Derivatives - Currency 118",{"$f":"'Schedule VIA'!D1677","v":"Select"},null,null,null,{"$f":"'Schedule VIA (EBS)'!D1677","v":"Select"}]
["Sch VIA","Schedule of Funds Held",null,"(I) Derivatives - Currency 143",{"$f":"'Schedule VIA'!D1702","v":"Select"},null,null,null,{"$f":"'Schedule VIA (EBS)'!D1702","v":"Select"}]
["Sch VIA","Schedule of Funds Held",null,"(I) Derivatives - Currency 168",{"$f":"'Schedule VIA'!D1727","v":"Select"},null,null,null,{"$f":"'Schedule VIA (EBS)'!D1727","v":"Select"}]
["Sch VIA","Schedule of Funds Held",null,"(I) Derivatives - Currency 169",{"$f":"'Schedule VIA'!D1728","v":"Select"},null,null,null,{"$f":"'Schedule VIA (EBS)'!D1728","v":"Select"}]
["Sch VIA","Schedule of Funds Held",null,"(I) Derivatives - Currency 195",{"$f":"'Schedule VIA'!D1754","v":"Select"},null,null,null,{"$f":"'Schedule VIA (EBS)'!D1754","v":"Select"}]
["Sch VIA","Schedule of Funds Held",null,"(I) Derivatives - Trading Category 20",{"$f":"'Schedule VIA'!E1579","v":"Select"},null,null,null,{"$f":"'Schedule VIA (EBS)'!E1579","v":"Select"}]
["Sch VIA","Schedule of Funds Held",null,"(I) Derivatives - Trading Category 41",{"$f":"'Schedule VIA'!E1600","v":"Select"},null,null,null,{"$f":"'Schedule VIA (EBS)'!E1600","v":"Select"}]
["Sch VIA","Schedule of Funds Held",null,"(I) Derivatives - Trading Category 51",{"$f":"'Schedule VIA'!E1610","v":"Select"},null,null,null,{"$f":"'Schedule VIA (EBS)'!E1610","v":"Select"}]
["Sch VIA","Schedule of Funds Held",null,"(I) Derivatives - Trading Category 88",{"$f":"'Schedule VIA'!E1647","v":"Select"},null,null,null,{"$f":"'Schedule VIA (EBS)'!E1647","v":"Select"}]
["Sch VIA","Schedule of Funds Held",null,"(I) Derivatives - Trading Category 93",{"$f":"'Schedule VIA'!E1652","v":"Select"},null,null,null,{"$f":"'Schedule VIA (EBS)'!E1652","v":"Select"}]
["Sch VIA","Schedule of Funds Held",null,"(I) Derivatives - Trading Category 119",{"$f":"'Schedule VIA'!E1678","v":"Select"},null,null,null,{"$f":"'Schedule VIA (EBS)'!E1678","v":"Select"}]
["Sch VIA","Schedule of Funds Held",null,"(I) Derivatives - Trading Category 140",{"$f":"'Schedule VIA'!E1699","v":"Select"},null,null,null,{"$f":"'Schedule VIA (EBS)'!E1699","v":"Select"}]
["Sch VIA","Schedule of Funds Held",null,"(I) Derivatives - Trading Category 165",{"$f":"'Schedule VIA'!E1724","v":"Select"},null,null,null,{"$f":"'Schedule VIA (EBS)'!E1724","v":"Select"}]
["Sch VIA","Schedule of Funds Held",null,"(I) Derivatives - Trading Category 186",{"$f":"'Schedule VIA'!E1745","v":"Select"},null,null,null,{"$f":"'Schedule VIA (EBS)'!E1745","v":"Select"}]
["Sch VIA","Schedule of Funds Held",null,"(I) Derivatives - Purpose 5",{"$f":"'Schedule VIA'!F1564","v":"Select"},null,null,null,{"$f":"'Schedule VIA (EBS)'!F1564","v":"Select"}]
["Sch VIA","Schedule of Funds Held",null,"(I) Derivatives - Purpose 17",{"$f":"'Schedule VIA'!F1576","v":"Select"},null,null,null,{"$f":"'Schedule VIA (EBS)'!F1576","v":"Select"}]
["Sch VIA","Schedule of Funds Held",null,"(I) Derivatives - Purpose 38",{"$f":"'Schedule VIA'!F1597","v":"Select"},null,null,null,{"$f":"'Schedule VIA (EBS)'!F1597","v":"Select"}]
["Sch VIA","Schedule of Funds Held",null,"(I) Derivatives - Purpose 63",{"$f":"'Schedule VIA'!F1622","v":"Select"},null,null,null,{"$f":"'Schedule VIA (EBS)'!F1622","v":"Select"}]
["Sch VIA","Schedule of Funds Held",null,"(I) Derivatives - Purpose 87",{"$f":"'Schedule VIA'!F1646","v":"Select"},null,null,null,{"$f":"'Schedule VIA (EBS)'!F1646","v":"Select"}]
["Sch VIA","Schedule of Funds Held",null,"(I) Derivatives - Purpose 110",{"$f":"'Schedule VIA'!F1669","v":"Select"},null,null,null,{"$f":"'Schedule VIA (EBS)'!F1669","v":"Select"}]
["Sch VIA","Schedule of Funds Held",null,"(I) Derivatives - Purpose 115",{"$f":"'Schedule VIA'!F1674","v":"Select"},null,null,null,{"$f":"'Schedule VIA (EBS)'!F1674","v":"Select"}]
["Sch VIA","Schedule of Funds Held",null,"(I) Derivatives - Purpose 138",{"$f":"'Schedule VIA'!F1697","v":"Select"},null,null,null,{"$f":"'Schedule VIA (EBS)'!F1697","v":"Select"}]
["Sch VIA","Schedule of Funds Held",null,"(I) Derivatives - Purpose 162",{"$f":"'Schedule VIA'!F1721","v":"Select"},null,null,null,{"$f":"'Schedule VIA (EBS)'!F1721","v":"Select"}]
["Sch VIA","Schedule of Funds Held",null,"(I) Derivatives - Purpose 187",{"$f":"'Schedule VIA'!F1746","v":"Select"},null,null,null,{"$f":"'Schedule VIA (EBS)'!F1746","v":"Select"}]
["Sch VIA","Schedule of Funds Held",null,"(I) Derivatives - Position 8",{"$f":"'Schedule VIA'!G1567","v":"Select"},null,null,null,{"$f":"'Schedule VIA (EBS)'!G1567","v":"Select"}]
["Sch VIA","Schedule of Funds Held",null,"(I) Derivatives - Position 20",{"$f":"'Schedule VIA'!G1579","v":"Select"},null,null,null,{"$f":"'Schedule VIA (EBS)'!G1579","v":"Select"}]
["Sch VIA","Schedule of Funds Held",null,"(I) Derivatives - Position 55",{"$f":"'Schedule VIA'!G1614","v":"Select"},null,null,null,{"$f":"'Schedule VIA (EBS)'!G1614","v":"Select"}]
["Sch VIA","Schedule of Funds Held",null,"(I) Derivatives - Position 60",{"$f":"'Schedule VIA'!G1619","v":"Select"},null,null,null,{"$f":"'Schedule VIA (EBS)'!G1619","v":"Select"}]
["Sch VIA","Schedule of Funds Held",null,"(I) Derivatives - Position 85",{"$f":"'Schedule VIA'!G1644","v":"Select"},null,null,null,{"$f":"'Schedule VIA (EBS)'!G1644","v":"Select"}]
["Sch VIA","Schedule of Funds Held",null,"(I) Derivatives - Position 106",{"$f":"'Schedule VIA'!G1665","v":"Select"},null,null,null,{"$f":"'Schedule VIA (EBS)'!G1665","v":"Select"}]
["Sch VIA","Schedule of Funds Held",null,"(I) Derivatives - Position 132",{"$f":"'Schedule VIA'!G1691","v":"Select"},null,null,null,{"$f":"'Schedule VIA (EBS)'!G1691","v":"Select"}]
["Sch VIA","Schedule of Funds Held",null,"(I) Derivatives - Position 137",{"$f":"'Schedule VIA'!G1696","v":"Select"},null,null,null,{"$f":"'Schedule VIA (EBS)'!G1696","v":"Select"}]
["Sch VIA","Schedule of Funds Held",null,"(I) Derivatives - Position 174",{"$f":"'Schedule VIA'!G1733","v":"Select"},null,null,null,{"$f":"'Schedule VIA (EBS)'!G1733","v":"Select"}]
["Sch VIA","Schedule of Funds Held",null,"(I) Derivatives - Position 184",{"$f":"'Schedule VIA'!G1743","v":"Select"},null,null,null,{"$f":"'Schedule VIA (EBS)'!G1743","v":"Select"}]
["Sch VIA","Schedule of Funds Held",null,"(I) Derivatives - Pos./Neg. - 5",{"$f":"'Schedule VIA'!H1564","v":"Select"},null,null,null,{"$f":"'Schedule VIA (EBS)'!H1564","v":"Select"}]
["Sch VIA","Schedule of Funds Held",null,"(I) Derivatives - Pos./Neg. - 30",{"$f":"'Schedule VIA'!H1589","v":"Select"},null,null,null,{"$f":"'Schedule VIA (EBS)'!H1589","v":"Select"}]
["Sch VIA","Schedule of Funds Held",null,"(I) Derivatives - Pos./Neg. - 56",{"$f":"'Schedule VIA'!H1615","v":"Select"},null,null,null,{"$f":"'Schedule VIA (EBS)'!H1615","v":"Select"}]
["Sch VIA","Schedule of Funds Held",null,"(I) Derivatives - Pos./Neg. - 77",{"$f":"'Schedule VIA'!H1636","v":"Select"},null,null,null,{"$f":"'Schedule VIA (EBS)'!H1636","v":"Select"}]
["Sch VIA","Schedule of Funds Held",null,"(I) Derivatives - Pos./Neg. - 82",{"$f":"'Schedule VIA'!H1641","v":"Select"},null,null,null,{"$f":"'Schedule VIA (EBS)'!H1641","v":"Select"}]
["Sch VIA","Schedule of Funds Held",null,"(I) Derivatives - Pos./Neg. - 107",{"$f":"'Schedule VIA'!H1666","v":"Select"},null,null,null,{"$f":"'Schedule VIA (EBS)'!H1666","v":"Select"}]
["Sch VIA","Schedule of Funds Held",null,"(I) Derivatives - Pos./Neg. - 121",{"$f":"'Schedule VIA'!H1680","v":"Select"},null,null,null,{"$f":"'Schedule VIA (EBS)'!H1680","v":"Select"}]
["Sch VIA","Schedule of Funds Held",null,"(I) Derivatives - Pos./Neg. - 154",{"$f":"'Schedule VIA'!H1713","v":"Select"},null,null,null,{"$f":"'Schedule VIA (EBS)'!H1713","v":"Select"}]
["Sch VIA","Schedule of Funds Held",null,"(I) Derivatives - Pos./Neg. - 175",{"$f":"'Schedule VIA'!H1734","v":"Select"},null,null,null,{"$f":"'Schedule VIA (EBS)'!H1734","v":"Select"}]
["Sch VIA","Schedule of Funds Held",null,"(I) Derivatives - Pos./Neg. - 189",{"$f":"'Schedule VIA'!H1748","v":"Select"},null,null,null,{"$f":"'Schedule VIA (EBS)'!H1748","v":"Select"}]
["Sch VIA","Schedule of Funds Held",null,"(I) Derivatives - Market Value 6",{"$f":"'Schedule VIA'!I1565","v":0},null,null,null,{"$f":"'Schedule VIA (EBS)'!I1565","v":0}]
["Sch VIA","Schedule of Funds Held",null,"(I) Derivatives - Market Value 27",{"$f":"'Schedule VIA'!I1586","v":0},null,null,null,{"$f":"'Schedule VIA (EBS)'!I1586","v":0}]
["Sch VIA","Schedule of Funds Held",null,"(I) Derivatives - Market Value 52",{"$f":"'Schedule VIA'!I1611","v":0},null,null,null,{"$f":"'Schedule VIA (EBS)'!I1611","v":0}]
["Sch VIA","Schedule of Funds Held",null,"(I) Derivatives - Market Value 75",{"$f":"'Schedule VIA'!I1634","v":0},null,null,null,{"$f":"'Schedule VIA (EBS)'!I1634","v":0}]
["Sch VIA","Schedule of Funds Held",null,"(I) Derivatives - Market Value 99",{"$f":"'Schedule VIA'!I1658","v":0},null,null,null,{"$f":"'Schedule VIA (EBS)'!I1658","v":0}]
["Sch VIA","Schedule of Funds Held",null,"(I) Derivatives - Market Value 104",{"$f":"'Schedule VIA'!I1663","v":0},null,null,null,{"$f":"'Schedule VIA (EBS)'!I1663","v":0}]
["Sch VIA","Schedule of Funds Held",null,"(I) Derivatives - Market Value 125",{"$f":"'Schedule VIA'!I1684","v":0},null,null,null,{"$f":"'Schedule VIA (EBS)'!I1684","v":0}]
["Sch VIA","Schedule of Funds Held",null,"(I) Derivatives - Market Value 157",{"$f":"'Schedule VIA'!I1716","v":0},null,null,null,{"$f":"'Schedule VIA (EBS)'!I1716","v":0}]
["Sch VIA","Schedule of Funds Held",null,"(I) Derivatives - Market Value 176",{"$f":"'Schedule VIA'!I1735","v":0},null,null,null,{"$f":"'Schedule VIA (EBS)'!I1735","v":0}]
["Sch VIA","Schedule of Funds Held",null,"(I) Derivatives - Market Value 197",{"$f":"'Schedule VIA'!I1756","v":0},null,null,null,{"$f":"'Schedule VIA (EBS)'!I1756","v":0}]
["Sch VIA","Schedule of Funds Held",null,"(I) Derivatives - Gross Notional Value 4",{"$f":"'Schedule VIA'!J1563","v":0},null,null,null,{"$f":"'Schedule VIA (EBS)'!J1563","v":0}]
["Sch VIA","Schedule of Funds Held",null,"(I) Derivatives - Gross Notional Value 24",{"$f":"'Schedule VIA'!J1583","v":0},null,null,null,{"$f":"'Schedule VIA (EBS)'!J1583","v":0}]
["Sch VIA","Schedule of Funds Held",null,"(I) Derivatives - Gross Notional Value 49",{"$f":"'Schedule VIA'!J1608","v":0},null,null,null,{"$f":"'Schedule VIA (EBS)'!J1608","v":0}]
["Sch VIA","Schedule of Funds Held",null,"(I) Derivatives - Gross Notional Value 74",{"$f":"'Schedule VIA'!J1633","v":0},null,null,null,{"$f":"'Schedule VIA (EBS)'!J1633","v":0}]
["Sch VIA","Schedule of Funds Held",null,"(I) Derivatives - Gross Notional Value 90",{"$f":"'Schedule VIA'!J1649","v":0},null,null,null,{"$f":"'Schedule VIA (EBS)'!J1649","v":0}]
["Sch VIA","Schedule of Funds Held",null,"(I) Derivatives - Gross Notional Value 121",{"$f":"'Schedule VIA'!J1680","v":0},null,null,null,{"$f":"'Schedule VIA (EBS)'!J1680","v":0}]
["Sch VIA","Schedule of Funds Held",null,"(I) Derivatives - Gross Notional Value 142",{"$f":"'Schedule VIA'!J1701","v":0},null,null,null,{"$f":"'Schedule VIA (EBS)'!J1701","v":0}]
["Sch VIA","Schedule of Funds Held",null,"(I) Derivatives - Gross Notional Value 147",{"$f":"'Schedule VIA'!J1706","v":0},null,null,null,{"$f":"'Schedule VIA (EBS)'!J1706","v":0}]
["Sch VIA","Schedule of Funds Held",null,"(I) Derivatives - Gross Notional Value 172",{"$f":"'Schedule VIA'!J1731","v":0},null,null,null,{"$f":"'Schedule VIA (EBS)'!J1731","v":0}]
["Sch VIA","Schedule of Funds Held",null,"(I) Derivatives - Gross Notional Value 194",{"$f":"'Schedule VIA'!J1753","v":0},null,null,null,{"$f":"'Schedule VIA (EBS)'!J1753","v":0}]
["Sch VIA","Schedule of Funds Held",null,"(I) Derivatives - Net Notional Value 19",{"$f":"'Schedule VIA'!K1578","v":0},null,null,null,{"$f":"'Schedule VIA (EBS)'!K1578","v":0}]
["Sch VIA","Schedule of Funds Held",null,"(I) Derivatives - Net Notional Value 40",{"$f":"'Schedule VIA'!K1599","v":0},null,null,null,{"$f":"'Schedule VIA (EBS)'!K1599","v":0}]
["Sch VIA","Schedule of Funds Held",null,"(I) Derivatives - Net Notional Value 66",{"$f":"'Schedule VIA'!K1625","v":0},null,null,null,{"$f":"'Schedule VIA (EBS)'!K1625","v":0}]
["Sch VIA","Schedule of Funds Held",null,"(I) Derivatives - Net Notional Value 71",{"$f":"'Schedule VIA'!K1630","v":0},null,null,null,{"$f":"'Schedule VIA (EBS)'!K1630","v":0}]
["Sch VIA","Schedule of Funds Held",null,"(I) Derivatives - Net Notional Value 92",{"$f":"'Schedule VIA'!K1651","v":0},null,null,null,{"$f":"'Schedule VIA (EBS)'!K1651","v":0}]
["Sch VIA","Schedule of Funds Held",null,"(I) Derivatives - Net Notional Value 126",{"$f":"'Schedule VIA'!K1685","v":0},null,null,null,{"$f":"'Schedule VIA (EBS)'!K1685","v":0}]
["Sch VIA","Schedule of Funds Held",null,"(I) Derivatives - Net Notional Value 143",{"$f":"'Schedule VIA'!K1702","v":0},null,null,null,{"$f":"'Schedule VIA (EBS)'!K1702","v":0}]
["Sch VIA","Schedule of Funds Held",null,"(I) Derivatives - Net Notional Value 164",{"$f":"'Schedule VIA'!K1723","v":0},null,null,null,{"$f":"'Schedule VIA (EBS)'!K1723","v":0}]
["Sch VIA","Schedule of Funds Held",null,"(I) Derivatives - Net Notional Value 169",{"$f":"'Schedule VIA'!K1728","v":0},null,null,null,{"$f":"'Schedule VIA (EBS)'!K1728","v":0}]
["Sch VIA","Schedule of Funds Held",null,"(I) Derivatives - Exposure 8",{"$f":"'Schedule VIA'!L1567","v":0},null,null,null,{"$f":"'Schedule VIA (EBS)'!L1567","v":0}]
["Sch VIA","Schedule of Funds Held",null,"(I) Derivatives - Exposure 16",{"$f":"'Schedule VIA'!L1575","v":0},null,null,null,{"$f":"'Schedule VIA (EBS)'!L1575","v":0}]
["Sch VIA","Schedule of Funds Held",null,"(I) Derivatives - Exposure 41",{"$f":"'Schedule VIA'!L1600","v":0},null,null,null,{"$f":"'Schedule VIA (EBS)'!L1600","v":0}]
["Sch VIA","Schedule of Funds Held",null,"(I) Derivatives - Exposure 59",{"$f":"'Schedule VIA'!L1618","v":0},null,null,null,{"$f":"'Schedule VIA (EBS)'!L1618","v":0}]
["Sch VIA","Schedule of Funds Held",null,"(I) Derivatives - Exposure 88",{"$f":"'Schedule VIA'!L1647","v":0},null,null,null,{"$f":"'Schedule VIA (EBS)'!L1647","v":0}]
["Sch VIA","Schedule of Funds Held",null,"(I) Derivatives - Exposure 93",{"$f":"'Schedule VIA'!L1652","v":0},null,null,null,{"$f":"'Schedule VIA (EBS)'!L1652","v":0}]
["Sch VIA","Schedule of Funds Held",null,"(I) Derivatives - Exposure 114",{"$f":"'Schedule VIA'!L1673","v":0},null,null,null,{"$f":"'Schedule VIA (EBS)'!L1673","v":0}]
["Sch VIA","Schedule of Funds Held",null,"(I) Derivatives - Exposure 141",{"$f":"'Schedule VIA'!L1700","v":0},null,null,null,{"$f":"'Schedule VIA (EBS)'!L1700","v":0}]
["Sch VIA","Schedule of Funds Held",null,"(I) Derivatives - Exposure 161",{"$f":"'Schedule VIA'!L1720","v":0},null,null,null,{"$f":"'Schedule VIA (EBS)'!L1720","v":0}]
["Sch VIA","Schedule of Funds Held",null,"(I) Derivatives - Exposure 186",{"$f":"'Schedule VIA'!L1745","v":0},null,null,null,{"$f":"'Schedule VIA (EBS)'!L1745","v":0}]
["Sch VIA","Schedule of Funds Held",null,"(I) Derivatives - Comments 9",{"$f":"'Schedule VIA'!M1568","v":0},null,null,null,{"$f":"'Schedule VIA (EBS)'!M1568","v":0}]
["Sch VIA","Schedule of Funds Held",null,"(I) Derivatives - Comments 13",{"$f":"'Schedule VIA'!M1572","v":0},null,null,null,{"$f":"'Schedule VIA (EBS)'!M1572","v":0}]
["Sch VIA","Schedule of Funds Held",null,"(I) Derivatives - Comments 38",{"$f":"'Schedule VIA'!M1597","v":0},null,null,null,{"$f":"'Schedule VIA (EBS)'!M1597","v":0}]
["Sch VIA","Schedule of Funds Held",null,"(I) Derivatives - Comments 63",{"$f":"'Schedule VIA'!M1622","v":0},null,null,null,{"$f":"'Schedule VIA (EBS)'!M1622","v":0}]
["Sch VIA","Schedule of Funds Held",null,"(I) Derivatives - Comments 74",{"$f":"'Schedule VIA'!M1633","v":0},null,null,null,{"$f":"'Schedule VIA (EBS)'!M1633","v":0}]
["Sch VIA","Schedule of Funds Held",null,"(I) Derivatives - Comments 110",{"$f":"'Schedule VIA'!M1669","v":0},null,null,null,{"$f":"'Schedule VIA (EBS)'!M1669","v":0}]
["Sch VIA","Schedule of Funds Held",null,"(I) Derivatives - Comments 131",{"$f":"'Schedule VIA'!M1690","v":0},null,null,null,{"$f":"'Schedule VIA (EBS)'!M1690","v":0}]
["Sch VIA","Schedule of Funds Held",null,"(I) Derivatives - Comments 136",{"$f":"'Schedule VIA'!M1695","v":0},null,null,null,{"$f":"'Schedule VIA (EBS)'!M1695","v":0}]
["Sch VIA","Schedule of Funds Held",null,"(I) Derivatives - Comments 156",{"$f":"'Schedule VIA'!M1715","v":0},null,null,null,{"$f":"'Schedule VIA (EBS)'!M1715","v":0}]
["Sch VIA","Schedule of Funds Held",null,"(I) Derivatives - Comments 183",{"$f":"'Schedule VIA'!M1742","v":0},null,null,null,{"$f":"'Schedule VIA (EBS)'!M1742","v":0}]
["Sch VIA","Schedule of Funds Held",null,"(J) Fin. Inst. Rating 8 - Corp Bonds",{"$f":"'Schedule VIA'!D1770","v":0},null,null,null,{"$f":"'Schedule VIA (EBS)'!D1770","v":0}]
["Sch VIA","Schedule of Funds Held",null,"(J) Fin. Inst. Rating 8 - Other Debt",{"$f":"'Schedule VIA'!H1770","v":0},null,null,null,{"$f":"'Schedule VIA (EBS)'!H1770","v":0}]
["Sch VIA","Schedule of Funds Held",null,"(J) Fin. Inst. Banks - Corp Loans",{"$f":"'Schedule VIA'!E1775","v":0},null,null,null,{"$f":"'Schedule VIA (EBS)'!E1775","v":0}]
["Sch VIA","Schedule of Funds Held",null,"(J) Unlisted Counterparty Rating 1-3 - Comments",{"$f":"'Schedule VIA'!J1783","v":0},null,null,null,{"$f":"'Schedule VIA (EBS)'!J1783","v":0}]
["Sch VIA","Schedule of Funds Held",null,"(K) Other Assets - Asset Type 17",{"$f":"'Schedule VIA'!B1812","v":"Select"},null,null,null,{"$f":"'Schedule VIA (EBS)'!B1812","v":"Select"}]
["Sch VIA","Schedule of Funds Held",null,"(K) Other Assets - Asset Type 46",{"$f":"'Schedule VIA'!B1841","v":"Select"},null,null,null,{"$f":"'Schedule VIA (EBS)'!B1841","v":"Select"}]
["Sch VIA","Schedule of Funds Held",null,"(K) Other Assets - Asset Type 68",{"$f":"'Schedule VIA'!B1863","v":"Select"},null,null,null,{"$f":"'Schedule VIA (EBS)'!B1863","v":"Select"}]
["Sch VIA","Schedule of Funds Held",null,"(K) Other Assets - Asset Type 89",{"$f":"'Schedule VIA'!B1884","v":"Select"},null,null,null,{"$f":"'Schedule VIA (EBS)'!B1884","v":"Select"}]
["Sch VIA","Schedule of Funds Held",null,"(K) Other Assets - Asset Type 94",{"$f":"'Schedule VIA'!B1889","v":"Select"},null,null,null,{"$f":"'Schedule VIA (EBS)'!B1889","v":"Select"}]
["Sch VIA","Schedule of Funds Held",null,"(K) Other Assets - Asset Type 132",{"$f":"'Schedule VIA'!B1927","v":"Select"},null,null,null,{"$f":"'Schedule VIA (EBS)'!B1927","v":"Select"}]
["Sch VIA","Schedule of Funds Held",null,"(K) Other Assets - Asset Type 141",{"$f":"'Schedule VIA'!B1936","v":"Select"},null,null,null,{"$f":"'Schedule VIA (EBS)'!B1936","v":"Select"}]
["Sch VIA","Schedule of Funds Held",null,"(K) Other Assets - Asset Type 166",{"$f":"'Schedule VIA'!B1961","v":"Select"},null,null,null,{"$f":"'Schedule VIA (EBS)'!B1961","v":"Select"}]
["Sch VIA","Schedule of Funds Held",null,"(K) Other Assets - Asset Type 179",{"$f":"'Schedule VIA'!B1974","v":"Select"},null,null,null,{"$f":"'Schedule VIA (EBS)'!B1974","v":"Select"}]
["Sch VIA","Schedule of Funds Held",null,"(K) Other Assets - Currency 13",{"$f":"'Schedule VIA'!C1808","v":"Select"},null,null,null,{"$f":"'Schedule VIA (EBS)'!C1808","v":"Select"}]
["Sch VIA","Schedule of Funds Held",null,"(K) Other Assets - Currency 18",{"$f":"'Schedule VIA'!C1813","v":"Select"},null,null,null,{"$f":"'Schedule VIA (EBS)'!C1813","v":"Select"}]
["Sch VIA","Schedule of Funds Held",null,"(K) Other Assets - Currency 39",{"$f":"'Schedule VIA'!C1834","v":"Select"},null,null,null,{"$f":"'Schedule VIA (EBS)'!C1834","v":"Select"}]
["Sch VIA","Schedule of Funds Held",null,"(K) Other Assets - Currency 61",{"$f":"'Schedule VIA'!C1856","v":"Select"},null,null,null,{"$f":"'Schedule VIA (EBS)'!C1856","v":"Select"}]
["Sch VIA","Schedule of Funds Held",null,"(K) Other Assets - Currency 86",{"$f":"'Schedule VIA'!C1881","v":"Select"},null,null,null,{"$f":"'Schedule VIA (EBS)'!C1881","v":"Select"}]
["Sch VIA","Schedule of Funds Held",null,"(K) Other Assets - Currency 111",{"$f":"'Schedule VIA'!C1906","v":"Select"},null,null,null,{"$f":"'Schedule VIA (EBS)'!C1906","v":"Select"}]
["Sch VIA","Schedule of Funds Held",null,"(K) Other Assets - Currency 116",{"$f":"'Schedule VIA'!C1911","v":"Select"},null,null,null,{"$f":"'Schedule VIA (EBS)'!C1911","v":"Select"}]
["Sch VIA","Schedule of Funds Held",null,"(K) Other Assets - Currency 147",{"$f":"'Schedule VIA'!C1942","v":"Select"},null,null,null,{"$f":"'Schedule VIA (EBS)'!C1942","v":"Select"}]
["Sch VIA","Schedule of Funds Held",null,"(K) Other Assets - Currency 163",{"$f":"'Schedule VIA'!C1958","v":"Select"},null,null,null,{"$f":"'Schedule VIA (EBS)'!C1958","v":"Select"}]
["Sch VIA","Schedule of Funds Held",null,"(K) Other Assets - Currency 184",{"$f":"'Schedule VIA'!C1979","v":"Select"},null,null,null,{"$f":"'Schedule VIA (EBS)'!C1979","v":"Select"}]
["Sch VIA","Schedule of Funds Held",null,"(K) Other Assets - Rating 15",{"$f":"'Schedule VIA'!D1810","v":"Select"},null,null,null,{"$f":"'Schedule VIA (EBS)'!D1810","v":"Select"}]
["Sch VIA","Schedule of Funds Held",null,"(K) Other Assets - Rating 35",{"$f":"'Schedule VIA'!D1830","v":"Select"},null,null,null,{"$f":"'Schedule VIA (EBS)'!D1830","v":"Select"}]
["Sch VIA","Schedule of Funds Held",null,"(K) Other Assets - Rating 56",{"$f":"'Schedule VIA'!D1851","v":"Select"},null,null,null,{"$f":"'Schedule VIA (EBS)'!D1851","v":"Select"}]
["Sch VIA","Schedule of Funds Held",null,"(K) Other Assets - Rating 61",{"$f":"'Schedule VIA'!D1856","v":"Select"},null,null,null,{"$f":"'Schedule VIA (EBS)'!D1856","v":"Select"}]
["Sch VIA","Schedule of Funds Held",null,"(K) Other Assets - Rating 97",{"$f":"'Schedule VIA'!D1892","v":"Select"},null,null,null,{"$f":"'Schedule VIA (EBS)'!D1892","v":"Select"}]
["Sch VIA","Schedule of Funds Held",null,"(K) Other Assets - Rating 108",{"$f":"'Schedule VIA'!D1903","v":"Select"},null,null,null,{"$f":"'Schedule VIA (EBS)'!D1903","v":"Select"}]
["Sch VIA","Schedule of Funds Held",null,"(K) Other Assets - Rating 133",{"$f":"'Schedule VIA'!D1928","v":"Select"},null,null,null,{"$f":"'Schedule VIA (EBS)'!D1928","v":"Select"}]
["Sch VIA","Schedule of Funds Held",null,"(K) Other Assets - Rating 154",{"$f":"'Schedule VIA'!D1949","v":"Select"},null,null,null,{"$f":"'Schedule VIA (EBS)'!D1949","v":"Select"}]
["Sch VIA","Schedule of Funds Held",null,"(K) Other Assets - Rating 162",{"$f":"'Schedule VIA'!D1957","v":"Select"},null,null,null,{"$f":"'Schedule VIA (EBS)'!D1957","v":"Select"}]
["Sch VIA","Schedule of Funds Held",null,"(K) Other Assets - Rating 185",{"$f":"'Schedule VIA'!D1980","v":"Select"},null,null,null,{"$f":"'Schedule VIA (EBS)'!D1980","v":"Select"}]
["Sch VIA","Schedule of Funds Held",null,"(K) Other Assets - Nominal Amount 6",{"$f":"'Schedule VIA'!E1801","v":0},null,null,null,{"$f":"'Schedule VIA (EBS)'!E1801","v":0}]
["Sch VIA","Schedule of Funds Held",null,"(K) Other Assets - Nominal Amount 30",{"$f":"'Schedule VIA'!E1825","v":0},null,null,null,{"$f":"'Schedule VIA (EBS)'!E1825","v":0}]
["Sch VIA","Schedule of Funds Held",null,"(K) Other Assets - Nominal Amount 57",{"$f":"'Schedule VIA'!E1852","v":0},null,null,null,{"$f":"'Schedule VIA (EBS)'!E1852","v":0}]
["Sch VIA","Schedule of Funds Held",null,"(K) Other Assets - Nominal Amount 78",{"$f":"'Schedule VIA'!E1873","v":0},null,null,null,{"$f":"'Schedule VIA (EBS)'!E1873","v":0}]
["Sch VIA","Schedule of Funds Held",null,"(K) Other Assets - Nominal Amount 83",{"$f":"'Schedule VIA'!E1878","v":0},null,null,null,{"$f":"'Schedule VIA (EBS)'!E1878","v":0}]
["Sch VIA","Schedule of Funds Held",null,"(K) Other Assets - Nominal Amount 116",{"$f":"'Schedule VIA'!E1911","v":0},null,null,null,{"$f":"'Schedule VIA (EBS)'!E1911","v":0}]
["Sch VIA","Schedule of Funds Held",null,"(K) Other Assets - Nominal Amount 130",{"$f":"'Schedule VIA'!E1925","v":0},null,null,null,{"$f":"'Schedule VIA (EBS)'!E1925","v":0}]
["Sch VIA","Schedule of Funds Held",null,"(K) Other Assets - Nominal Amount 155",{"$f":"'Schedule VIA'!E1950","v":0},null,null,null,{"$f":"'Schedule VIA (EBS)'!E1950","v":0}]
["Sch VIA","Schedule of Funds Held",null,"(K) Other Assets - Nominal Amount 176",{"$f":"'Schedule VIA'!E1971","v":0},null,null,null,{"$f":"'Schedule VIA (EBS)'!E1971","v":0}]
["Sch VIA","Schedule of Funds Held",null,"(K) Other Assets - Nominal Amount 198",{"$f":"'Schedule VIA'!E1993","v":0},null,null,null,{"$f":"'Schedule VIA (EBS)'!E1993","v":0}]
["Sch VIA","Schedule of Funds Held",null,"(K) Other Assets - Fair Value 3",{"$f":"'Schedule VIA'!F1798","v":0},null,null,null,{"$f":"'Schedule VIA (EBS)'!F1798","v":0}]
["Sch VIA","Schedule of Funds Held",null,"(K) Other Assets - Fair Value 28",{"$f":"'Schedule VIA'!F1823","v":0},null,null,null,{"$f":"'Schedule VIA (EBS)'!F1823","v":0}]
["Sch VIA","Schedule of Funds Held",null,"(K) Other Assets - Fair Value 45",{"$f":"'Schedule VIA'!F1840","v":0},null,null,null,{"$f":"'Schedule VIA (EBS)'!F1840","v":0}]
["Sch VIA","Schedule of Funds Held",null,"(K) Other Assets - Fair Value 75",{"$f":"'Schedule VIA'!F1870","v":0},null,null,null,{"$f":"'Schedule VIA (EBS)'!F1870","v":0}]
["Sch VIA","Schedule of Funds Held",null,"(K) Other Assets - Fair Value 100",{"$f":"'Schedule VIA'!F1895","v":0},null,null,null,{"$f":"'Schedule VIA (EBS)'!F1895","v":0}]
["Sch VIA","Schedule of Funds Held",null,"(K) Other Assets - Fair Value 105",{"$f":"'Schedule VIA'!F1900","v":0},null,null,null,{"$f":"'Schedule VIA (EBS)'!F1900","v":0}]
["Sch VIA","Schedule of Funds Held",null,"(K) Other Assets - Fair Value 131",{"$f":"'Schedule VIA'!F1926","v":0},null,null,null,{"$f":"'Schedule VIA (EBS)'!F1926","v":0}]
["Sch VIA","Schedule of Funds Held",null,"(K) Other Assets - Fair Value 152",{"$f":"'Schedule VIA'!F1947","v":0},null,null,null,{"$f":"'Schedule VIA (EBS)'!F1947","v":0}]
["Sch VIA","Schedule of Funds Held",null,"(K) Other Assets - Fair Value 173",{"$f":"'Schedule VIA'!F1968","v":0},null,null,null,{"$f":"'Schedule VIA (EBS)'!F1968","v":0}]
["Sch VIA","Schedule of Funds Held",null,"(K) Other Assets - Fair Value 198",{"$f":"'Schedule VIA'!F1993","v":0},null,null,null,{"$f":"'Schedule VIA (EBS)'!F1993","v":0}]
["Sch VIA","Schedule of Funds Held",null,"(K) Other Assets - Comments 13",{"$f":"'Schedule VIA'!G1808","v":0},null,null,null,{"$f":"'Schedule VIA (EBS)'!G1808","v":0}]
["Sch VIA","Schedule of Funds Held",null,"(K) Other Assets - Comments 25",{"$f":"'Schedule VIA'!G1820","v":0},null,null,null,{"$f":"'Schedule VIA (EBS)'!G1820","v":0}]
["Sch VIA","Schedule of Funds Held",null,"(K) Other Assets - Comments 50",{"$f":"'Schedule VIA'!G1845","v":0},null,null,null,{"$f":"'Schedule VIA (EBS)'!G1845","v":0}]
["Sch VIA","Schedule of Funds Held",null,"(K) Other Assets - Comments 81",{"$f":"'Schedule VIA'!G1876","v":0},null,null,null,{"$f":"'Schedule VIA (EBS)'!G1876","v":0}]
["Sch VIA","Schedule of Funds Held",null,"(K) Other Assets - Comments 97",{"$f":"'Schedule VIA'!G1892","v":0},null,null,null,{"$f":"'Schedule VIA (EBS)'!G1892","v":0}]
["Sch VIA","Schedule of Funds Held",null,"(K) Other Assets - Comments 122",{"$f":"'Schedule VIA'!G1917","v":0},null,null,null,{"$f":"'Schedule VIA (EBS)'!G1917","v":0}]
["Sch VIA","Schedule of Funds Held",null,"(K) Other Assets - Comments 143",{"$f":"'Schedule VIA'!G1938","v":0},null,null,null,{"$f":"'Schedule VIA (EBS)'!G1938","v":0}]
["Sch VIA","Schedule of Funds Held",null,"(K) Other Assets - Comments 146",{"$f":"'Schedule VIA'!G1941","v":0},null,null,null,{"$f":"'Schedule VIA (EBS)'!G1941","v":0}]
["Sch VIA","Schedule of Funds Held",null,"(K) Other Assets - Comments 174",{"$f":"'Schedule VIA'!G1969","v":0},null,null,null,{"$f":"'Schedule VIA (EBS)'!G1969","v":0}]
["Sch VIA","Schedule of Funds Held",null,"(K) Other Assets - Comments 195",{"$f":"'Schedule VIA'!G1990","v":0},null,null,null,{"$f":"'Schedule VIA (EBS)'!G1990","v":0}]
["Sch VIA","Schedule of Funds Held",null,"Other Approved Agency 2",{"$f":"'Schedule VIA'!L2036","v":0},null,null,null,{"$f":"'Schedule VIA (EBS)'!L2036","v":0}]
["Sch VIA","Schedule of Funds Held",null,"Ins. Companies - Moody's Rating 3",{"$f":"'Schedule VIA'!D2048","v":0},null,null,null,{"$f":"'Schedule VIA (EBS)'!D2048","v":0}]
["Sch VIA","Schedule of Funds Held",null,"Fin. Inst. - S&P Rating 5",{"$f":"'Schedule VIA'!E2042","v":0},null,null,null,{"$f":"'Schedule VIA (EBS)'!E2042","v":0}]
["Sch VIA","Schedule of Funds Held",null,"Ins. Companies - S&P Rating 2",{"$f":"'Schedule VIA'!E2047","v":0},null,null,null,{"$f":"'Schedule VIA (EBS)'!E2047","v":0}]
["Sch VIA","Schedule of Funds Held",null,"Gov. Securities - S&P Rating 5",{"$f":"'Schedule VIA'!E2075","v":0},null,null,null,{"$f":"'Schedule VIA (EBS)'!E2075","v":0}]
["Sch VIA","Schedule of Funds Held",null,"Ins. Companies - DBRS Rating 8",{"$f":"'Schedule VIA'!F2053","v":0},null,null,null,{"$f":"'Schedule VIA (EBS)'!F2053","v":0}]
["Sch VIA","Schedule of Funds Held",null,"Gov. Securities - DBRS Rating 8",{"$f":"'Schedule VIA'!F2078","v":0},null,null,null,{"$f":"'Schedule VIA (EBS)'!F2078","v":0}]
["Sch VIA","Schedule of Funds Held",null,"Corp. Insurers - Kroll Rating 5",{"$f":"'Schedule VIA'!G2058","v":0},null,null,null,{"$f":"'Schedule VIA (EBS)'!G2058","v":0}]
["Sch VIA","Schedule of Funds Held",null,"Gov. Securities - Kroll Rating 5",{"$f":"'Schedule VIA'!G2075","v":0},null,null,null,{"$f":"'Schedule VIA (EBS)'!G2075","v":0}]
["Sch VIA","Schedule of Funds Held",null,"Fin. Inst. - Egan Jones Rating 7",{"$f":"'Schedule VIA'!H2044","v":0},null,null,null,{"$f":"'Schedule VIA (EBS)'!H2044","v":0}]
["Sch VIA","Schedule of Funds Held",null,"ABS - Egan Jones Rating 8",{"$f":"'Schedule VIA'!H2069","v":0},null,null,null,{"$f":"'Schedule VIA (EBS)'!H2069","v":0}]
["Sch VIA","Schedule of Funds Held",null,"Ins. Companies - Japan Credit Rating 8",{"$f":"'Schedule VIA'!I2053","v":0},null,null,null,{"$f":"'Schedule VIA (EBS)'!I2053","v":0}]
["Sch VIA","Schedule of Funds Held",null,"Fin. Inst. - BMA Approved Int. Rating 1",{"$f":"'Schedule VIA'!J2038","v":0},null,null,null,{"$f":"'Schedule VIA (EBS)'!J2038","v":0}]
["Sch VIA","Schedule of Funds Held",null,"Corp. Insurers - BMA Approved Int. Rating 6",{"$f":"'Schedule VIA'!J2059","v":0},null,null,null,{"$f":"'Schedule VIA (EBS)'!J2059","v":0}]
["Sch VIA","Schedule of Funds Held",null,"Fin. Inst. - BMA Approved Agency 1 -  Rating 2",{"$f":"'Schedule VIA'!K2039","v":0},null,null,null,{"$f":"'Schedule VIA (EBS)'!K2039","v":0}]
["Sch VIA","Schedule of Funds Held",null,"Fin. Inst. - BMA Approved Agency 1 -  Rating 7",{"$f":"'Schedule VIA'!K2044","v":0},null,null,null,{"$f":"'Schedule VIA (EBS)'!K2044","v":0}]
["Sch VIA","Schedule of Funds Held",null,"Gov. Securities - BMA Approved Agency 1 -  Rating 0",{"$f":"'Schedule VIA'!K2070","v":0},null,null,null,{"$f":"'Schedule VIA (EBS)'!K2070","v":0}]
["Sch VIA","Schedule of Funds Held",null,"Ins. Companies - BMA Approved Agency 2 -  Rating 5",{"$f":"'Schedule VIA'!L2050","v":0},null,null,null,{"$f":"'Schedule VIA (EBS)'!L2050","v":0}]
["Sch VIA","Schedule of Funds Held",null,"Gov. Securities - BMA Approved Agency 2 -  Rating 5",{"$f":"'Schedule VIA'!L2075","v":0},null,null,null,{"$f":"'Schedule VIA (EBS)'!L2075","v":0}]
["Sch VIA","Schedule of Funds Held",null,"Fin. Inst. - BMA Approved Agency 3 -  Rating 7",{"$f":"'Schedule VIA'!M2044","v":0},null,null,null,{"$f":"'Schedule VIA (EBS)'!M2044","v":0}]
["Sch VIA","Schedule of Funds Held",null,"Corp. Insurers - BMA Approved Agency 3 -  Rating 8",{"$f":"'Schedule VIA'!M2061","v":0},null,null,null,{"$f":"'Schedule VIA (EBS)'!M2061","v":0}]
["Sch VII","LT Reserves",null,"Form 1 27d - 2. Critical Illness",{"$f":"'Schedule VII'!D11","v":0}]
["Sch VII","LT Reserves",null,"Form 1 27d - 12. Group Disability",{"$f":"'Schedule VII'!D41","v":0}]
["Sch VII","LT Reserves",null,"DAC - 6. Deferred Acc. Annuities",{"$f":"'Schedule VII'!E30","v":0}]
["Sch VII","LT Reserves",null,"VOBA - 5. Annuities Certain",{"$f":"'Schedule VII'!F29","v":0}]
["Sch VII","LT Reserves",null,"PVFP - 3f. Longevity - Imm Pay Total",{"$f":"'Schedule VII'!G19","v":0}]
["Sch VII","LT Reserves",null,"PVFP - 16. Sub Total",{"$f":"'Schedule VII'!G46","v":0}]
["Sch VII","LT Reserves",null,"Best Est. - 4b. Longevity - Def Pay 56-60",{"$f":"'Schedule VII'!H23","v":0}]
["Sch VII","LT Reserves",null,"Adj Prod. - 2. Critical Illness",{"$f":"'Schedule VII'!N11","v":0}]
["Sch VII","LT Reserves",null,"EBS 27d - 11. Group Life",null,null,null,null,{"$f":"'Schedule VII (EBS)'!D40","v":0}]
["Sch VII","LT Reserves",null,"EBS 27d - 18. Total",null,null,null,null,{"$f":"'Schedule VII (EBS)'!D48","v":0}]
["Sch VII","LT Reserves",null,"12. BBNI Prem. - 16. Sub Total",null,null,null,null,{"$f":"'Schedule VII (EBS)'!L46","v":0}]
["Sch VII","LT Reserves",null,"14. Best Est. Trans. - 5. Annuities Certain",null,null,null,null,{"$f":"'Schedule VII (EBS)'!N29","v":0}]
["Sch VII","LT Reserves",null,"15. Best Est. W/O Trans. - 8. Dis. Income: Active Liv",null,null,null,null,{"$f":"'Schedule VII (EBS)'!O37","v":0}]
["Sch VII","LT Reserves",null,"16. Scen. - 6. Deferred Acc. Annuities",null,null,null,null,{"$f":"'Schedule VII (EBS)'!P30","v":0}]
["Sch VII","LT Reserves",null,"18. Base Scen. - 1. Mortality",null,null,null,null,{"$f":"'Schedule VII (EBS)'!R10","v":0}]
["Sch VII","LT Reserves",null,"19. BBNI Prem. - 8. Dis. Income: Active Liv",null,null,null,null,{"$f":"'Schedule VII (EBS)'!S37","v":0}]
["Sch VII","LT Reserves",null,"20. BBNI Est . - 2. Critical Illness",null,null,null,null,{"$f":"'Schedule VII (EBS)'!T11","v":0}]
["Sch VII","LT Reserves",null,"20. BBNI Est . - 17. Variable Annuities",null,null,null,null,{"$f":"'Schedule VII (EBS)'!T47","v":0}]
["Sch VIII","LT Annuity",null,"1. Stat. Res. Out Money - 23. GMAB - Mat. 2-3 Yrs",{"$f":"'Schedule VIII'!F39","v":0},null,null,null,{"$f":"'Schedule VIII (EBS)'!F39","v":0}]
["Sch VIII","LT Annuity",null,"2. Vol. 0-10% Out Money - 17. GMDB - Enh. Benefit",{"$f":"'Schedule VIII'!H32","v":0},null,null,null,{"$f":"'Schedule VIII (EBS)'!H32","v":0}]
["Sch VIII","LT Annuity",null,"3. Vol. 10-15% In Money - 7. GMAB - Mat. 1-2 Yrs",{"$f":"'Schedule VIII'!J20","v":0},null,null,null,{"$f":"'Schedule VIII (EBS)'!J20","v":0}]
["Sch VIII","LT Annuity",null,"4. Vol. +15% In Money - 2. GMDB - Enh. Benefit",{"$f":"'Schedule VIII'!L14","v":0},null,null,null,{"$f":"'Schedule VIII (EBS)'!L14","v":0}]
["Sch VIII","LT Annuity",null,"4. Vol. +15% In Money - 3. GMIB",{"$f":"'Schedule VIII'!L15","v":0},null,null,null,{"$f":"'Schedule VIII (EBS)'!L15","v":0}]
["Sch VIII","LT Annuity",null,"4. Vol. +15% Out Money - 23. GMAB - Mat. 2-3 Yrs",{"$f":"'Schedule VIII'!L39","v":0},null,null,null,{"$f":"'Schedule VIII (EBS)'!L39","v":0}]
["Sch VIII","LT Annuity",null,"6. Vol. 10-15% In Money - 7. GMAB - Mat. 1-2 Yrs",{"$f":"'Schedule VIII'!P20","v":0},null,null,null,{"$f":"'Schedule VIII (EBS)'!P20","v":0}]
["Sch VIII","LT Annuity",null,"7. Vol. +15% In Money - 12. GMAB - Mat. 6-7 Yrs",{"$f":"'Schedule VIII'!R25","v":0},null,null,null,{"$f":"'Schedule VIII (EBS)'!R25","v":0}]
["Sch VIIIA","LT Internal Model",null,"6-7. 3c. Description of Test - 3",{"$f":"'Schedule VIII(a)'!O22","v":0},null,null,null,{"$f":"'Schedule VIIIA (EBS)'!O22","v":0}]
["Sch VIIIA","LT Internal Model",null,"Policy Type - 1. Stat Res. - GMIB - W/ Comp Guar.",{"$f":"'Schedule VIII(a)'!D19","v":0},null,null,null,{"$f":"'Schedule VIIIA (EBS)'!D19","v":0}]
["Sch VIIIA","LT Internal Model",null,"Policy Type - 2. Policy Count - GMAB",{"$f":"'Schedule VIII(a)'!F23","v":0},null,null,null,{"$f":"'Schedule VIIIA (EBS)'!F23","v":0}]
["Sch VIIIA","LT Internal Model",null,"Policy Type - 4. Guar. Val. - GEEB",{"$f":"'Schedule VIII(a)'!J20","v":0},null,null,null,{"$f":"'Schedule VIIIA (EBS)'!J20","v":0}]
["Sch VIIIA","LT Internal Model",null,"Years Since Issue - 1. Stat. Res. - 1",{"$f":"'Schedule VIII(a)'!D32","v":0},null,null,null,{"$f":"'Schedule VIIIA (EBS)'!D32","v":0}]
["Sch VIIIA","LT Internal Model",null,"Years Since Issue - 2. Policy Count - 1",{"$f":"'Schedule VIII(a)'!F32","v":0},null,null,null,{"$f":"'Schedule VIIIA (EBS)'!F32","v":0}]
["Sch VIIIA","LT Internal Model",null,"Years Since Issue - 3. Acc. Val. - 15+",{"$f":"'Schedule VIII(a)'!H47","v":0},null,null,null,{"$f":"'Schedule VIIIA (EBS)'!H47","v":0}]
["Sch VIIIA","LT Internal Model",null,"Years Since Issue - 5. NAR - 1",{"$f":"'Schedule VIII(a)'!L32","v":0},null,null,null,{"$f":"'Schedule VIIIA (EBS)'!L32","v":0}]
["Sch VIIIA","LT Internal Model",null,"Years Since Issue - 5. NAR - 15",{"$f":"'Schedule VIII(a)'!L46","v":0},null,null,null,{"$f":"'Schedule VIIIA (EBS)'!L46","v":0}]
["Sch VIIIA","LT Internal Model",null,"In/Out of Money - 2. Policy Count - +15%",{"$f":"'Schedule VIII(a)'!F58","v":0},null,null,null,{"$f":"'Schedule VIIIA (EBS)'!F58","v":0}]
["Sch VIIIA","LT Internal Model",null,"Fund Volatility - 2. Policy Count - 10-20%",{"$f":"'Schedule VIII(a)'!F66","v":0},null,null,null,{"$f":"'Schedule VIIIA (EBS)'!F66","v":0}]
["Sch VIIIA","LT Internal Model",null,"Yr to Next Maturity - 1. Stat. Res. - 10",{"$f":"'Schedule VIII(a)'!D84","v":0},null,null,null,{"$f":"'Schedule VIIIA (EBS)'!D84","v":0}]
["Sch VIIIA","LT Internal Model",null,"Yr to Next Maturity - 3. Acc. Val. - 9",{"$f":"'Schedule VIII(a)'!H83","v":0},null,null,null,{"$f":"'Schedule VIIIA (EBS)'!H83","v":0}]
["Sch VIIIA","LT Internal Model",null,"Yr to Next Maturity - 4. Guar. Val. - 1",{"$f":"'Schedule VIII(a)'!J75","v":0},null,null,null,{"$f":"'Schedule VIIIA (EBS)'!J75","v":0}]
["Sch IX(a)","CISSA Capital Summary",null,"Market Risk",null,null,null,null,{"$f":"'Schedule IX(a)'!E13","v":0}]
["Sch IX(a)","CISSA Capital Summary",null,"2. Agg. Risk Categories - Gumbel Copulas",{"$f":"IF('Schedule IX(a)'!B53=0,\"No\",'Schedule IX(a)'!B53)","v":"Select Yes/No"}]
["Sch IX(b)","CISSA General Questions",null,"1. CISSA Used For - Alloc. Bus. Seg. & LOB",{"$f":"IF('Schedule IX(b)'!F16=0,\"No\",'Schedule IX(b)'!F16)","v":"Select Yes/No"}]
["Sch IX(b)","CISSA General Questions",null,"5. BOD & Senior Officers Review oversight",{"$f":"IF('Schedule IX(b)'!F35=0,\"No\",'Schedule IX(b)'!F35)","v":"Select Yes/No"}]
["Sch IX(c)","CISSA Assessment of Material Risks",null,"12l. Risk Measure - Confidence Interval",{"$f":"'Schedule IX(c)'!E82","v":0}]
["Sch X(a)","CAT Return - EP Curve Total",null,"Gross Loss - Aggregate - 50 Yrs",{"$f":"'Schedule X(a)'!F9","v":0}]
["Sch X(a)","CAT Return - EP Curve Total",null,"Gross - Property Cat. Limited - Not Modelled",{"$f":"'Schedule X(a)'!E24","v":0}]
["Sch X(a)","CAT Return - EP Curve Total",null,"2. Onshore Energy",{"$f":"IF('Schedule X(a)'!E40=0,\"No\",'Schedule X(a)'!E40)","v":"Select"}]
["Sch X(a)","CAT Return - EP Curve Total",null,"6. Adj. for Insurance for Value",{"$f":"IF('Schedule X(a)'!E69=0,\"No\",'Schedule X(a)'!E69)","v":"Select Yes/No"}]
["Sch X(b)","CAT Return - EP Curve Insurance",null,"Gross Loss - Aggregate - 500 Yrs",{"$f":"'Schedule X(b)'!F14","v":0}]
["Sch X(b)","CAT Return - EP Curve Insurance",null,"Net Loss - Aggregate - 1,000 Yrs",{"$f":"'Schedule X(b)'!H15","v":0}]
["Sch X(b)","CAT Return - EP Curve Insurance",null,"Net - with Not Determinable TIV",{"$f":"'Schedule X(b)'!J30","v":0}]
["Sch X(c)","CAT Return - EP Curve Region Perils",null,"Atl. Hurr. - Gross All Other Premium",{"$f":"'Schedule X(c)'!E25","v":0}]
["Sch X(c)","CAT Return - EP Curve Region Perils",null,"NA. EQ. - Net Aggregate - 100 Yrs",{"$f":"'Schedule X(c)'!G39","v":0}]
["Sch X(c)","CAT Return - EP Curve Region Perils",null,"Eur. Wind - Gross Aggregate - 500 Yrs",{"$f":"'Schedule X(c)'!E63","v":0}]
["Sch X(c)","CAT Return - EP Curve Region Perils",null,"Japan EQ. - Gross Occurrence - 500 Yrs",{"$f":"'Schedule X(c)'!D85","v":0}]
["Sch X(c)","CAT Return - EP Curve Region Perils",null,"Japan EQ. - Gross Aggregate - 250 Yrs",{"$f":"'Schedule X(c)'!E84","v":0}]
["Sch X(c)","CAT Return - EP Curve Region Perils",null,"Jpn. Typ. - Gross Occurrence - 50 Yrs",{"$f":"'Schedule X(c)'!D104","v":0}]
["Sch X(c)","CAT Return - EP Curve Region Perils",null,"Jpn. Typ. - Net All Other Premium",{"$f":"'Schedule X(c)'!F113","v":0}]
["Sch X(d)","CAT Return - Region Perils Exposure to Zones and Lines of Business",null,"North American Earthquake - Zone 5",{"$f":"'Schedule X(d)'!D13","v":"Select Yes/No"}]
["Sch X(d)","CAT Return - Region Perils Exposure to Zones and Lines of Business",null,"European Windstorm - Zone 5",{"$f":"'Schedule X(d)'!E13","v":"Select Yes/No"}]
["Sch X(d)","CAT Return - Region Perils Exposure to Zones and Lines of Business",null,"All Other - Zone 4",{"$f":"'Schedule X(d)'!H12","v":"Select Yes/No"}]
["Sch X(d)","CAT Return - Region Perils Exposure to Zones and Lines of Business",null,"All Other - Zone 5",{"$f":"'Schedule X(d)'!H13","v":"Select Yes/No"}]
["Sch X(d)","CAT Return - Region Perils Exposure to Zones and Lines of Business",null,"Atlantic Hurricane - Line 17",{"$f":"'Schedule X(d)'!C41","v":"Select Yes/No"}]
["Sch X(d)","CAT Return - Region Perils Exposure to Zones and Lines of Business",null,"North American Earthquake - Line 15",{"$f":"'Schedule X(d)'!D39","v":"Select Yes/No"}]
["Sch X(d)","CAT Return - Region Perils Exposure to Zones and Lines of Business",null,"European Windstorm - Line 16",{"$f":"'Schedule X(d)'!E40","v":"Select Yes/No"}]
["Sch X(d)","CAT Return - Region Perils Exposure to Zones and Lines of Business",null,"Japan Earthquake - Line 17",{"$f":"'Schedule X(d)'!F41","v":"Select Yes/No"}]
["Sch X(d)","CAT Return - Region Perils Exposure to Zones and Lines of Business",null,"Japan Typhoon - Line 11",{"$f":"'Schedule X(d)'!G35","v":"Select Yes/No"}]
["Sch X(d)","CAT Return - Region Perils Exposure to Zones and Lines of Business",null,"Japan Typhoon - Line 20",{"$f":"'Schedule X(d)'!G44","v":"Select Yes/No"}]
["Sch X(d)","CAT Return - Region Perils Exposure to Zones and Lines of Business",null,"All Other - Line 17",{"$f":"'Schedule X(d)'!H41","v":"Select Yes/No"}]
["Sch X(f)","CAT Return - Data Analysis",null,"1. All - Total - US - Contract",{"$f":"'Schedule X(f)'!E12","v":0}]
["Sch X(f)","CAT Return - Data Analysis",null,"2. Modellable - Total - Other -Contract",{"$f":"'Schedule X(f)'!H21","v":0}]
["Sch X(f)","CAT Return - Data Analysis",null,"3. Modelled - Agg. Data - US - Net Limit",{"$f":"'Schedule X(f)'!G29","v":0}]
["Sch X(f)","CAT Return - Data Analysis",null,"4. Not Modelled - Model Deficient - US - Contract",{"$f":"'Schedule X(f)'!E44","v":0}]
["Sch X(f)","CAT Return - Data Analysis",null,"4. Not Modelled - Other - US - Gross Limit",{"$f":"'Schedule X(f)'!F45","v":0}]
["Sch X(f)","CAT Return - Data Analysis",null,"6. Unable Model - No Cat. Model - Other - Contract",{"$f":"'Schedule X(f)'!H61","v":0}]
["Sch X(f)","CAT Return - Data Analysis",null,"6. Unable Model - Model Deficient - Other - Net Limit",{"$f":"'Schedule X(f)'!J62","v":0}]
["Sch X(g)","CAT Return - Reinsurance Disclosures",null,"US - Occuren. - Property Cat. Contracts",{"$f":"'Schedule X(g)'!E13","v":0}]
["Sch X(g)","CAT Return - Reinsurance Disclosures",null,"World - Premium - Surplus Share Contracts",{"$f":"'Schedule X(g)'!F18","v":0}]
["Sch X(g)","CAT Return - Reinsurance Disclosures",null,"Other - Premium - Catastrophe Swaps",{"$f":"'Schedule X(g)'!H14","v":0}]
["Sch X(h)","CAT Return - Insurance Terrorism Exposure",null,"Insurance - Convent. Terrorism - State 4",{"$f":"'Schedule X(h)'!D12","v":0}]
["Sch X(h)","CAT Return - Insurance Terrorism Exposure",null,"Insurance - Convent. Terrorism - Property Exposure 9",{"$f":"'Schedule X(h)'!F17","v":0}]
["Sch X(h)","CAT Return - Insurance Terrorism Exposure",null,"Insurance - Convent. Terrorism - R/I Recover. 3",{"$f":"'Schedule X(h)'!I11","v":0}]
["Sch X(h)","CAT Return - Insurance Terrorism Exposure",null,"Insurance - NBCR Terrorism - State 6",{"$f":"'Schedule X(h)'!D29","v":0}]
["Sch X(h)","CAT Return - Insurance Terrorism Exposure",null,"Insurance - NBCR Terrorism - Gross Exposure 1",{"$f":"'Schedule X(h)'!G24","v":0}]
["Sch X(h)","CAT Return - Insurance Terrorism Exposure",null,"Insurance - NBCR Terrorism - R/I Recover. 2",{"$f":"'Schedule X(h)'!I25","v":0}]
["Sch X(i)","CAT Return - Reinsurance Terrorism Exposure",null,"Reins. - Convent. Terrorism - State 4",{"$f":"'Schedule X(i)'!E12","v":0}]
["Sch X(i)","CAT Return - Reinsurance Terrorism Exposure",null,"Reins. - Convent. Terrorism - Property Exposure 2",{"$f":"'Schedule X(i)'!G10","v":0}]
["Sch X(i)","CAT Return - Reinsurance Terrorism Exposure",null,"Reins. - Convent. Terrorism - TRIP Recover. 3",{"$f":"'Schedule X(i)'!I11","v":0}]
["Sch X(i)","CAT Return - Reinsurance Terrorism Exposure",null,"Reins. - NBCR Terrorism - Country 2",{"$f":"'Schedule X(i)'!F25","v":0}]
["Sch X(i)","CAT Return - Reinsurance Terrorism Exposure",null,"Reins. - NBCR Terrorism - Property Exposure 10",{"$f":"'Schedule X(i)'!G33","v":0}]
["Sch X(i)","CAT Return - Reinsurance Terrorism Exposure",null,"Reins. - NBCR Terrorism - Gross Exposure 5",{"$f":"'Schedule X(i)'!H28","v":0}]
["Sch X(i)","CAT Return - Reinsurance Terrorism Exposure",null,"Reins. - NBCR Terrorism - R/I Recover. 10",{"$f":"'Schedule X(i)'!J33","v":0}]
["Sch X(j)","CAT Return - Assumed Exchange Rates",null,"Exchange Rate - USD:Other 5",{"$f":"'Schedule X(j)'!D17","v":0}]
["Sch XI(a)","Reg. Non-Ins. Financial",null,"Name of Entity - 26",{"$f":"'Schedule XIA'!B37","v":0}]
["Sch XI(a)","Reg. Non-Ins. Financial",null,"Regulatory Capital of Entity - 16",{"$f":"'Schedule XIA'!V27","v":0}]
["Sch XI(b)","Unreg. Parent Control",null,"# of Unregulated Entities Parent Control",{"$f":"'Schedule XIB'!D7","v":0}]
["Sch XI(b)","Unreg. Parent Control",null,"Name of Entity - 6",{"$f":"'Schedule XIB'!B17","v":0}]
["Sch XI(b)","Unreg. Parent Control",null,"Name of Entity - 27",{"$f":"'Schedule XIB'!B38","v":0}]
["Sch XI(b)","Unreg. Parent Control",null,"Name of Entity - 52",{"$f":"'Schedule XIB'!B63","v":0}]
["Sch XI(b)","Unreg. Parent Control",null,"Name of Entity - 74",{"$f":"'Schedule XIB'!B85","v":0}]
["Sch XI(b)","Unreg. Parent Control",null,"Name of Entity - 99",{"$f":"'Schedule XIB'!B110","v":0}]
["Sch XI(b)","Unreg. Parent Control",null,"Category of Entity - 4",{"$f":"'Schedule XIB'!N15","v":"Select"}]
["Sch XI(b)","Unreg. Parent Control",null,"Category of Entity - 25",{"$f":"'Schedule XIB'!N36","v":"Select"}]
["Sch XI(b)","Unreg. Parent Control",null,"Category of Entity - 60",{"$f":"'Schedule XIB'!N71","v":"Select"}]
["Sch XI(b)","Unreg. Parent Control",null,"Category of Entity - 76",{"$f":"'Schedule XIB'!N87","v":"Select"}]
["Sch XI(b)","Unreg. Parent Control",null,"Category of Entity - 97",{"$f":"'Schedule XIB'!N108","v":"Select"}]
["Sch XI(c)","Unreg. Parent Sig. Influence",null,"Name of Entity - 20",{"$f":"'Schedule XIC'!B31","v":0}]
["Sch XI(c)","Unreg. Parent Sig. Influence",null,"Category of Entity - 5",{"$f":"'Schedule XIC'!N16","v":"Select"}]
["Sch XI(c)","Unreg. Parent Sig. Influence",null,"Category of Entity - 12",{"$f":"'Schedule XIC'!N23","v":"Select"}]
["Sch XI(d)","Entities Deducted from Capital",null,"# of Entities Deducted from Capital & Surplus",{"$f":"'Schedule XID'!D7","v":0}]
["Sch XI(d)","Entities Deducted from Capital",null,"Name of Entity - 19",{"$f":"'Schedule XID'!B30","v":0}]
["Sch XI(d)","Entities Deducted from Capital",null,"Category of Entity - 12",{"$f":"'Schedule XID'!P23","v":"Select"}]
["Sch XI(d)","Entities Deducted from Capital",null,"Reason for Deficiency of Entity - 2",{"$f":"'Schedule XID'!R13","v":"Select"}]
["Sch XI(d)","Entities Deducted from Capital",null,"Reason for Deficiency of Entity - 3",{"$f":"'Schedule XID'!R14","v":"Select"}]
["Sch XI(d)","Entities Deducted from Capital",null,"Reason for Deficiency of Entity - 31",{"$f":"'Schedule XID'!R42","v":"Select"}]
["Sch XII","Solvency Analysis",null,"Name of Entity - 13",{"$f":"'Schedule XII'!B24","v":0}]
["Sch XII","Solvency Analysis",null,"Name of Entity - 38",{"$f":"'Schedule XII'!B49","v":0}]
["Sch XII","Solvency Analysis",null,"Name of Entity - 63",{"$f":"'Schedule XII'!B74","v":0}]
["Sch XII","Solvency Analysis",null,"Minimum Margin of Solvency of Entity - 10",{"$f":"'Schedule XII'!P21","v":0}]
["Sch XII","Solvency Analysis",null,"Minimum Margin of Solvency of Entity - 20",{"$f":"'Schedule XII'!P31","v":0}]
["Sch XII","Solvency Analysis",null,"Minimum Margin of Solvency of Entity - 45",{"$f":"'Schedule XII'!P56","v":0}]
["Sch XII","Solvency Analysis",null,"Regulatory Capital of Entity - 8",{"$f":"'Schedule XII'!R19","v":0}]
["Sch XII","Solvency Analysis",null,"Regulatory Capital of Entity - 22",{"$f":"'Schedule XII'!R33","v":0}]
["Sch XII","Solvency Analysis",null,"Regulatory Capital of Entity - 43",{"$f":"'Schedule XII'!R54","v":0}]
["Sch XII","Solvency Analysis",null,"Regulatory Capital of Entity - 68",{"$f":"'Schedule XII'!R79","v":0}]
["Sch XII","Solvency Analysis",null,"Regulatory Capital of Entity - 69",{"$f":"'Schedule XII'!R80","v":0}]
["SchXIII(a)","Eligible Capital",null,"Tier 2 Ancillary - a. Unpaid Common Shares",null,null,null,null,{"$f":"'Schedule XIII(a)'!J64","v":0}]
["SchXIII(b)","Eligible Capital - Additional Details",null,"Description of Capital Instrument 11",{"$f":"'Schedule XIII(b)'!B21","v":0}]
["SchXIII(b)","Eligible Capital - Additional Details",null,"Date of Issue - Instrument 16",{"$f":"'Schedule XIII(b)'!C26","v":"00:00:00"}]
["SchXIII(b)","Eligible Capital - Additional Details",null,"Maturity Date - Instrument 6",{"$f":"'Schedule XIII(b)'!D16","v":"00:00:00"}]
["SchXIII(b)","Eligible Capital - Additional Details",null,"Authority Approval Date - Instrument 3",{"$f":"'Schedule XIII(b)'!E13","v":"00:00:00"}]
["SchXIII(b)","Eligible Capital - Additional Details",null,"Valuation - Instrument 4",{"$f":"+'Schedule XIII(b)'!G14","v":0}]
["SchXIII(b)","Eligible Capital - Additional Details",null,"Tier - Instrument 14",{"$f":"'Schedule XIII(b)'!H24","v":0}]
["Sch XVIII","Ceded Reins",null,"Name of Reinsurer - 13",{"$f":"'Schedule XVIII'!C25","v":0},null,null,null,{"$f":"'Schedule XVIII (EBS)'!C25","v":0}]
["Sch XVIII","Ceded Reins",null,"Name of Reinsurer - 34",{"$f":"'Schedule XVIII'!C46","v":0}]
["Sch XVIII","Ceded Reins",null,"Rating of Reinsurer - 24",{"$f":"'Schedule XVIII'!D36","v":0},null,null,null,{"$f":"'Schedule XVIII (EBS)'!D36","v":0}]
["Sch XVIII","Ceded Reins",null,"Rating Agency of Reinsurer - 8",{"$f":"'Schedule XVIII'!E20","v":0},null,null,null,{"$f":"'Schedule XVIII (EBS)'!E20","v":0}]
["Sch XVIII","Ceded Reins",null,"Rating Agency of Reinsurer - 16",{"$f":"'Schedule XVIII'!E28","v":0},null,null,null,{"$f":"'Schedule XVIII (EBS)'!E28","v":0}]
["Sch XVIII","Ceded Reins",null,"BSCR Rating of Reinsurer - 6",{"$f":"'Schedule XVIII'!F18","v":"Select"},null,null,null,{"$f":"'Schedule XVIII (EBS)'!F18","v":"Select"}]
["Sch XVIII","Ceded Reins",null,"BSCR Rating of Reinsurer - 20",{"$f":"'Schedule XVIII'!F32","v":"Select"},null,null,null,{"$f":"'Schedule XVIII (EBS)'!F32","v":"Select"}]
["Sch XVIII","Ceded Reins",null,"Jurisdiction of Reinsurer - 18",{"$f":"'Schedule XVIII'!G30","v":0},null,null,null,{"$f":"'Schedule XVIII (EBS)'!G30","v":0}]
["Sch XVIII","Ceded Reins",null,"Jurisdiction of Reinsurer - 23",{"$f":"'Schedule XVIII'!G35","v":0},null,null,null,{"$f":"'Schedule XVIII (EBS)'!G35","v":0}]
["Sch XVIII","Ceded Reins",null,"Premiums Ceded of Reinsurer - 9",{"$f":"'Schedule XVIII'!H21","v":0},null,null,null,{"$f":"'Schedule XVIII (EBS)'!H21","v":0}]
["Sch XVIII","Ceded Reins",null,"Premiums Ceded of Reinsurer - 32",{"$f":"'Schedule XVIII'!H44","v":0}]
["Sch XVIII","Ceded Reins",null,"R/I Recoverable of Reinsurer - 20",{"$f":"'Schedule XVIII'!I32","v":0},null,null,null,{"$f":"'Schedule XVIII (EBS)'!I32","v":0}]
["Sch XVIII","Ceded Reins",null,"Market Risk of Reinsurer - 9",{"$f":"'Schedule XVIII'!J21","v":0},null,null,null,{"$f":"'Schedule XVIII (EBS)'!J21","v":0}]
["Sch XVIII","Ceded Reins",null,"Market Risk of Reinsurer - 34",{"$f":"'Schedule XVIII'!J46","v":0}]
["Sch XVIII","Ceded Reins",null,"R/I Payable of Reinsurer - 10",{"$f":"'Schedule XVIII'!L22","v":0},null,null,null,{"$f":"'Schedule XVIII (EBS)'!L22","v":0}]
["Sch XVIII","Ceded Reins",null,"R/I Payable of Reinsurer - 25",{"$f":"'Schedule XVIII'!L37","v":0},null,null,null,{"$f":"'Schedule XVIII (EBS)'!L37","v":0}]
["Sch XVIII","Ceded Reins",null,"R/I Due -180 Days of Reinsurer - 14",{"$f":"'Schedule XVIII'!N26","v":0},null,null,null,{"$f":"'Schedule XVIII (EBS)'!N26","v":0}]
["Sch XVIII","Ceded Reins",null,"Collateral of Reinsurer - 6",{"$f":"'Schedule XVIII'!P18","v":0},null,null,null,{"$f":"'Schedule XVIII (EBS)'!P18","v":0}]
["Sch XVIII","Ceded Reins",null,"Collateral of Reinsurer - 25",{"$f":"'Schedule XVIII'!P37","v":0},null,null,null,{"$f":"'Schedule XVIII (EBS)'!P37","v":0}]
["Sch XVIII","Ceded Reins",null,"R/I Recoverable - Exposure Total",{"$f":"'Schedule XVIII'!I65","v":0},null,null,null,{"$f":"'Schedule XVIII (EBS)'!I65","v":0}]
["Sch XVIII","Ceded Reins",null,"Market Risk - Exposure BSCR Rating 4",{"$f":"'Schedule XVIII'!J60","v":0},null,null,null,{"$f":"'Schedule XVIII (EBS)'!J60","v":0}]
["Sch XIX","Cash Counterpart",null,"Name - Counterparty 11",{"$f":"'Schedule XIX'!C24","v":0}]
["Sch XIX","Cash Counterpart",null,"BSCR Rating - Counterparty 1",{"$f":"'Schedule XIX'!E14","v":"Select"}]
["Sch XIX","Cash Counterpart",null,"EBS - Counterparty Value 6",{"$f":"'Schedule XIX'!G19","v":0}]
["Sch XIX","Cash Counterpart",null,"EBS - Exposure BSCR Rate 5",{"$f":"'Schedule XIX'!G62","v":0}]
["Sch XX","Currency Analysis",null,"EBS Assets - Other 1",{"$f":"'Schedule XX'!E14","v":0}]
["Sch XX","Currency Analysis",null,"EBS Hedge Assets - Other 7",{"$f":"'Schedule XX'!G20","v":0}]
["Sch XX","Currency Analysis",null,"EBS Hedge Liab. - USD",{"$f":"'Schedule XX'!K9","v":0}]
["Sch XXI","Inv Con Risk",null,"Name of Exposure - 3",{"$f":"'Schedule XXI'!C10","v":0}]
["Sch XXI","Inv Con Risk",null,"Name of Exposure - 29",{"$f":"'Schedule XXI'!C36","v":0}]
["Sch XXI","Inv Con Risk",null,"Name of Exposure - 50",{"$f":"'Schedule XXI'!C57","v":0}]
["Sch XXI","Inv Con Risk",null,"EBS Asset Type - 25",{"$f":"'Schedule XXI'!E32","v":"Select"}]
["Sch XXI","Inv Con Risk",null,"EBS Asset Type - 39",{"$f":"'Schedule XXI'!E46","v":"Select"}]
["Sch XXI","Inv Con Risk",null,"EBS Bond Type - 2",{"$f":"'Schedule XXI'!F9","v":"Select"}]
["Sch XXI","Inv Con Risk",null,"EBS Bond Type - 27",{"$f":"'Schedule XXI'!F34","v":"Select"}]
["Sch XXI","Inv Con Risk",null,"EBS Bond Type - 48",{"$f":"'Schedule XXI'!F55","v":"Select"}]
["Sch XXI","Inv Con Risk",null,"EBS BSCR Rating - 21",{"$f":"'Schedule XXI'!G28","v":"Select"}]
["Sch XXI","Inv Con Risk",null,"EBS BSCR Rating - 45",{"$f":"'Schedule XXI'!G52","v":"Select"}]
["Sch XXI","Inv Con Risk",null,"EBS BSCR Rating - 50",{"$f":"'Schedule XXI'!G57","v":"Select"}]
["Sch XXI","Inv Con Risk",null,"EBS Asset Value - 18",{"$f":"'Schedule XXI'!H25","v":0}]
["Sch XXI","Inv Con Risk",null,"EBS Asset Value - 47",{"$f":"'Schedule XXI'!H54","v":0}]
["Op Risk","Indentification",null,"Identification - Info. Systems ",{"$f":"Identification!K19","v":0}]
["Op Risk","Mont. & Reporting",null,"Mont. & Reporting - Compliance ",{"$f":"'Monitoring & Reporting'!L19","v":0}]
[]
["Sch IIB","Investments",null,"Commercial MBS - BSCR Rate 3",null,null,null,null,{"$f":"'Schedule IIB (EBS)'!L16","v":0},null,{"$f":"'Schedule IIB (EBS)'!N16","v":0}]
["Sch IIB","Investments",null,"Long Positions - Before - Listed Equity Securities in Developed Markets",null,null,null,null,{"$f":"'Schedule IIB (EBS)'!D41","v":0}]
["Sch IIB","Investments",null,"Long Positions - After - Preferred Stocks, BSCR Rating 3",null,null,null,null,{"$f":"'Schedule IIB (EBS)'!F44","v":0}]
["Sch IIB","Investments",null,"Long Positions - After - Equity Real Estate 2",null,null,null,null,{"$f":"'Schedule IIB (EBS)'!F60","v":0}]
["Sch IIB","Investments",null,"Short - After - Qualified Assets - Preferred Stocks, BSCR Rating 6",null,null,null,null,{"$f":"'Schedule IIB (EBS)'!J47","v":0}]
["Sch IIB","Investments",null,"Short - After - Qualified Assets - Other Equities",null,null,null,null,{"$f":"'Schedule IIB (EBS)'!J52","v":0}]
["Sch IIB","Investments",null,"Short - After - UnQualified Assets - Duration Based",null,null,null,null,{"$f":"'Schedule IIB (EBS)'!N40","v":0}]
["Sch IIB","Investments",null,"Short - After - UnQualified Assets - Pension Benefit Surplus",null,null,null,null,{"$f":"'Schedule IIB (EBS)'!N55","v":0}]
["Sch IIB","Investments",null,"Liabilities - Before - W/O Mgmt Actions - Derivatives on Infrastructure",null,null,null,null,{"$f":"'Schedule IIB (EBS)'!P58","v":0}]
["Sch IIB","Investments",null,"Liabilities - After - W/O Mgmt Actions - Infrastructure",null,null,null,null,{"$f":"'Schedule IIB (EBS)'!R57","v":0}]
["Sch IIB","Investments",null,"Liabilities - After - With Mgmt Actions - Equity Real Estate 2",null,null,null,null,{"$f":"'Schedule IIB (EBS)'!T60","v":0}]
["Sch IIB","Investments",null,"Credit Derivatives - Up - Before - Long-Rating 5",null,null,null,null,{"$f":"'Schedule IIB (EBS)'!D73","v":0}]
["Sch IIB","Investments",null,"Credit Derivatives - Up - Before - Short- Rating 8",null,null,null,null,{"$f":"'Schedule IIB (EBS)'!H76","v":0}]
["Sch IIB","Investments",null,"Credit Derivatives - Down - After - Long- Rating 6",null,null,null,null,{"$f":"'Schedule IIB (EBS)'!P74","v":0}]
["Sch IIB","Investments",null,"Credit Derivatives - Down - After - Short- Rating 1",null,null,null,null,{"$f":"'Schedule IIB (EBS)'!T69","v":0}]
["Sch IIB","Investments",null,"Counterparty Default Risk - MV of Collateral - Rating 8",null,null,null,null,{"$f":"'Schedule IIB (EBS)'!H92","v":0}]
["Sch IIB","Investments",null,"NAIC Resid. MBS - Orig. Class 4",null,null,null,null,{"$f":"'Schedule IIB (EBS)'!N89","v":0}]
["Sch IIB","Investments",null,"NAIC Rating Corp & Sov. Bond - Class 5",null,null,null,null,{"$f":"'Schedule IIB (EBS)'!D105","v":0}]
["Sch IIB","Investments",null,"NAIC Rating Bond Mutual - Class 2",null,null,null,null,{"$f":"'Schedule IIB (EBS)'!J102","v":0}]
["Sch IIB","Investments",null,"NAIC Rating Other Assets - Class 6",null,null,null,null,{"$f":"'Schedule IIB (EBS)'!P106","v":0}]
["Sch IIC","Funds Held",null,"Commercial MBS - BSCR Rate 2",null,null,null,null,{"$f":"'Schedule IIC (EBS)'!L15","v":0},null,{"$f":"'Schedule IIC (EBS)'!N15","v":0}]
["Sch IIC","Funds Held",null,"Mortgage Loans - Other Residential",null,null,null,null,{"$f":"'Schedule IIC (EBS)'!T24","v":0},null,{"$f":"'Schedule IIC (EBS)'!V24","v":0}]
["Sch IIC","Funds Held",null,"Long Positions - After - Preferred Stocks, BSCR Rating 3",null,null,null,null,{"$f":"'Schedule IIC (EBS)'!F44","v":0}]
["Sch IIC","Funds Held",null,"Long Positions - After - Preferred Stocks, BSCR Rating 8",null,null,null,null,{"$f":"'Schedule IIC (EBS)'!F49","v":0}]
["Sch IIC","Funds Held",null,"Short - Before - Qualified Assets - Other Equities",null,null,null,null,{"$f":"'Schedule IIC (EBS)'!H52","v":0}]
["Sch IIC","Funds Held",null,"Short - After - Qualified Assets - Infrastructure",null,null,null,null,{"$f":"'Schedule IIC (EBS)'!J57","v":0}]
["Sch IIC","Funds Held",null,"Short - Before - UnQualified Assets - Pension Benefit Surplus",null,null,null,null,{"$f":"'Schedule IIC (EBS)'!L55","v":0}]
["Sch IIC","Funds Held",null,"Short - After - UnQualified Assets - Derivatives on Infrastructure",null,null,null,null,{"$f":"'Schedule IIC (EBS)'!N58","v":0}]
["Sch IIC","Funds Held",null,"Short - After - UnQualified Assets - Equity Real Estate 2",null,null,null,null,{"$f":"'Schedule IIC (EBS)'!N60","v":0}]
["Sch IIC","Funds Held",null,"Liabilities - After - W/O Mgmt Actions - Listed Equity Securities in Developed Markets",null,null,null,null,{"$f":"'Schedule IIC (EBS)'!R41","v":0}]
["Sch IIC","Funds Held",null,"Liabilities - After - With Mgmt Actions - Duration Based",null,null,null,null,{"$f":"'Schedule IIC (EBS)'!T40","v":0}]
["Sch IIC","Funds Held",null,"Credit Derivatives - Up - Before - Long-Rating 4",null,null,null,null,{"$f":"'Schedule IIC (EBS)'!D72","v":0}]
["Sch IIC","Funds Held",null,"Credit Derivatives - Up - After - Long- Rating 6",null,null,null,null,{"$f":"'Schedule IIC (EBS)'!F74","v":0}]
["Sch IIC","Funds Held",null,"Credit Derivatives - Down - After - Long- Rating 6",null,null,null,null,{"$f":"'Schedule IIC (EBS)'!P74","v":0}]
["Sch IIC","Funds Held",null,"Credit Derivatives - Down - Before - Short- Rating 2",null,null,null,null,{"$f":"'Schedule IIC (EBS)'!R70","v":0}]
["Sch IIC","Funds Held",null,"Counterparty Default Risk - MV of Derivatives - MV Positive - Rating 5",null,null,null,null,{"$f":"'Schedule IIC (EBS)'!D89","v":0}]
["Sch IIC","Funds Held",null,"NAIC Rating Corp & Sov. Bond - Class 2",null,null,null,null,{"$f":"'Schedule IIC (EBS)'!D102","v":0}]
["Sch IIC","Funds Held",null,"NAIC Rating Mort. Loan - Class 1",null,null,null,null,{"$f":"'Schedule IIC (EBS)'!L101","v":0}]
[]
["Sch IID","Segregated Acc",null,"Residential MBS - BSCR Rate 2",null,null,null,null,{"$f":"'Schedule IID (EBS)'!H15","v":0}]
["Sch IID","Segregated Acc",null,"Liabilities Supported by Residential MBS - BSCR Rate 5",null,null,null,null,{"$f":"'Schedule IID (EBS)'!J18","v":0}]
["Sch IID","Segregated Acc",null,"Bonds Mutual Fund - BSCR Rate 1",null,null,null,null,{"$f":"'Schedule IID (EBS)'!P14","v":0}]
["Sch IID","Segregated Acc",null,"Long Positions - Before - Strategic Holdings - Listed",null,null,null,null,{"$f":"'Schedule IID (EBS)'!D39","v":0}]
["Sch IID","Segregated Acc",null,"Long Positions - After - Preferred Stocks, BSCR Rating 5",null,null,null,null,{"$f":"'Schedule IID (EBS)'!F46","v":0}]
["Sch IID","Segregated Acc",null,"Short - Before - Qualified Assets - Preferred Stocks, BSCR Rating 1",null,null,null,null,{"$f":"'Schedule IID (EBS)'!H42","v":0}]
["Sch IID","Segregated Acc",null,"Short - Before - Qualified Assets - Preferred Stocks, BSCR Rating 6",null,null,null,null,{"$f":"'Schedule IID (EBS)'!H47","v":0}]
["Sch IID","Segregated Acc",null,"Short - After - Qualified Assets - Preferred Stocks, BSCR Rating 5",null,null,null,null,{"$f":"'Schedule IID (EBS)'!J46","v":0}]
["Sch IID","Segregated Acc",null,"Short - After - UnQualified Assets - Duration Based",null,null,null,null,{"$f":"'Schedule IID (EBS)'!N40","v":0}]
["Sch IID","Segregated Acc",null,"Short - After - UnQualified Assets - Preferred Stocks, BSCR Rating 8",null,null,null,null,{"$f":"'Schedule IID (EBS)'!N49","v":0}]
["Sch IID","Segregated Acc",null,"Liabilities - Before - W/O Mgmt Actions - Other Equities",null,null,null,null,{"$f":"'Schedule IID (EBS)'!P52","v":0}]
["Sch IID","Segregated Acc",null,"Liabilities - After - W/O Mgmt Actions - Preferred Stocks, BSCR Rating 2",null,null,null,null,{"$f":"'Schedule IID (EBS)'!R43","v":0}]
["Sch IID","Segregated Acc",null,"Liabilities - After - With Mgmt Actions - Pension Benefit Surplus",null,null,null,null,{"$f":"'Schedule IID (EBS)'!T55","v":0}]
["Sch IID","Segregated Acc",null,"Liabilities - After - With Mgmt Actions - Equity Real Estate 2",null,null,null,null,{"$f":"'Schedule IID (EBS)'!T60","v":0}]
["Sch IID","Segregated Acc",null,"Credit Derivatives - Up - Before - Short- Rating 6",null,null,null,null,{"$f":"'Schedule IID (EBS)'!H74","v":0}]
["Sch IID","Segregated Acc",null,"Credit Derivatives - Down - After - Long- Rating 1",null,null,null,null,{"$f":"'Schedule IID (EBS)'!P69","v":0}]
["Sch IID","Segregated Acc",null,"Credit Derivatives - Down - After - Short- Rating 8",null,null,null,null,{"$f":"'Schedule IID (EBS)'!T76","v":0}]
["Sch IID","Segregated Acc",null,"Counterparty Default Risk - MV of Collateral - Rating 2",null,null,null,null,{"$f":"'Schedule IID (EBS)'!H86","v":0}]
["Sch IID","Segregated Acc",null,"Counterparty Default Risk - MV of Collateral - Rating 7",null,null,null,null,{"$f":"'Schedule IID (EBS)'!H91","v":0}]
["Sch IID","Segregated Acc",null,"NAIC Rating Mort. Loan - Class 1",null,null,null,null,{"$f":"'Schedule IID (EBS)'!L101","v":0}]
["Sch IID","Segregated Acc",null,"NAIC Rating Other Assets - Class 3",null,null,null,null,{"$f":"'Schedule IID (EBS)'!P103","v":0}]
["Sch IIE","Deposits",null,"Commercial MBS - BSCR Rate 3",null,null,null,null,{"$f":"'Schedule IIE (EBS)'!L16","v":0},null,{"$f":"'Schedule IIE (EBS)'!N16","v":0}]
["Sch IIE","Deposits",null,"Long Positions - Before - Preferred Stocks, BSCR Rating 6",null,null,null,null,{"$f":"'Schedule IIE (EBS)'!D47","v":0}]
["Sch IIE","Deposits",null,"Long Positions - After - Preferred Stocks, BSCR Rating 4",null,null,null,null,{"$f":"'Schedule IIE (EBS)'!F45","v":0}]
["Sch IIE","Deposits",null,"Long Positions - After - Equity Derivatives on Type 1 Equities",null,null,null,null,{"$f":"'Schedule IIE (EBS)'!F50","v":0}]
["Sch IIE","Deposits",null,"Short - Before - Qualified Assets - Preferred Stocks, BSCR Rating 8",null,null,null,null,{"$f":"'Schedule IIE (EBS)'!H49","v":0}]
["Sch IIE","Deposits",null,"Short - After - Qualified Assets - Preferred Stocks, BSCR Rating 5",null,null,null,null,{"$f":"'Schedule IIE (EBS)'!J46","v":0}]
["Sch IIE","Deposits",null,"Short - Before - UnQualified Assets - Equity Derivatives on Type 2 Equities",null,null,null,null,{"$f":"'Schedule IIE (EBS)'!L56","v":0}]
["Sch IIE","Deposits",null,"Short - After - UnQualified Assets - Pension Benefit Surplus",null,null,null,null,{"$f":"'Schedule IIE (EBS)'!N55","v":0}]
["Sch IIE","Deposits",null,"Short - After - UnQualified Assets - Equity Real Estate 2",null,null,null,null,{"$f":"'Schedule IIE (EBS)'!N60","v":0}]
["Sch IIE","Deposits",null,"Liabilities - After - W/O Mgmt Actions - Preferred Stocks, BSCR Rating 3",null,null,null,null,{"$f":"'Schedule IIE (EBS)'!R44","v":0}]
["Sch IIE","Deposits",null,"Liabilities - After - With Mgmt Actions - Listed Equity Securities in Developed Markets",null,null,null,null,{"$f":"'Schedule IIE (EBS)'!T41","v":0}]
["Sch IIE","Deposits",null,"Credit Derivatives - Up - Before - Long-Rating 5",null,null,null,null,{"$f":"'Schedule IIE (EBS)'!D73","v":0}]
["Sch IIE","Deposits",null,"Credit Derivatives - Up - After - Short- Rating 2",null,null,null,null,{"$f":"'Schedule IIE (EBS)'!J70","v":0}]
["Sch IIE","Deposits",null,"Credit Derivatives - Down - After - Long- Rating 7",null,null,null,null,{"$f":"'Schedule IIE (EBS)'!P75","v":0}]
["Sch IIE","Deposits",null,"Credit Derivatives - Down - Before - Short- Rating 3",null,null,null,null,{"$f":"'Schedule IIE (EBS)'!R71","v":0}]
["Sch IIE","Deposits",null,"Counterparty Default Risk - MV of Derivatives - MV Positive - Rating 6",null,null,null,null,{"$f":"'Schedule IIE (EBS)'!D90","v":0}]
["Sch IIE","Deposits",null,"NAIC Rating Resid. MBS - Class 5",null,null,null,null,{"$f":"'Schedule IIE (EBS)'!F105","v":0}]
["Sch IIE","Deposits",null,"NAIC Rating Bond Mutual - Class 5",null,null,null,null,{"$f":"'Schedule IIE (EBS)'!J105","v":0}]
["Sch IIF","Other Sundry",null,"Corp. Bonds - BSCR Rate 0",null,null,null,null,{"$f":"'Schedule IIF (EBS)'!D13","v":0},null,{"$f":"'Schedule IIF (EBS)'!F13","v":0}]
["Sch IIF","Other Sundry",null,"Corp. Bonds - BSCR Rate 8",null,null,null,null,{"$f":"'Schedule IIF (EBS)'!D21","v":0},null,{"$f":"'Schedule IIF (EBS)'!F21","v":0}]
["Sch IIF","Other Sundry",null,"Bonds Mutual Fund - BSCR Rate 2",null,null,null,null,{"$f":"'Schedule IIF (EBS)'!P15","v":0},null,{"$f":"'Schedule IIF (EBS)'!R15","v":0}]
["Sch IIF","Other Sundry",null,"Long Positions - Before - Letters of Credit",null,null,null,null,{"$f":"'Schedule IIF (EBS)'!D53","v":0}]
["Sch IIF","Other Sundry",null,"Long Positions - After - Other Equities",null,null,null,null,{"$f":"'Schedule IIF (EBS)'!F52","v":0}]
["Sch IIF","Other Sundry",null,"Short - Before - Qualified Assets - Strategic Holdings - Unlisted",null,null,null,null,{"$f":"'Schedule IIF (EBS)'!H51","v":0}]
["Sch IIF","Other Sundry",null,"Short - After - Qualified Assets - Equity Real Estate 1",null,null,null,null,{"$f":"'Schedule IIF (EBS)'!J59","v":0}]
["Sch IIF","Other Sundry",null,"Short - Before - UnQualified Assets - Derivatives on Infrastructure",null,null,null,null,{"$f":"'Schedule IIF (EBS)'!L58","v":0}]
["Sch IIF","Other Sundry",null,"Short - After - UnQualified Assets - Listed Equity Securities in Developed Markets",null,null,null,null,{"$f":"'Schedule IIF (EBS)'!N41","v":0}]
["Sch IIF","Other Sundry",null,"Liabilities - Before - W/O Mgmt Actions - Preferred Stocks, BSCR Rating 4",null,null,null,null,{"$f":"'Schedule IIF (EBS)'!P45","v":0}]
["Sch IIF","Other Sundry",null,"Liabilities - After - W/O Mgmt Actions - Preferred Stocks, BSCR Rating 3",null,null,null,null,{"$f":"'Schedule IIF (EBS)'!R44","v":0}]
["Sch IIF","Other Sundry",null,"Liabilities - After - With Mgmt Actions - Preferred Stocks, BSCR Rating 6",null,null,null,null,{"$f":"'Schedule IIF (EBS)'!T47","v":0}]
["Sch IIF","Other Sundry",null,"Credit Derivatives - Up - After - Long- Rating 3",null,null,null,null,{"$f":"'Schedule IIF (EBS)'!F71","v":0}]
["Sch IIF","Other Sundry",null,"Credit Derivatives - Up - After - Short- Rating 6",null,null,null,null,{"$f":"'Schedule IIF (EBS)'!J74","v":0}]
["Sch IIF","Other Sundry",null,"Credit Derivatives - Down - Before - Long-Rating 2",null,null,null,null,{"$f":"'Schedule IIF (EBS)'!N70","v":0}]
["Sch IIF","Other Sundry",null,"Credit Derivatives - Down - Before - Short- Rating 5",null,null,null,null,{"$f":"'Schedule IIF (EBS)'!R73","v":0}]
["Sch IIF","Other Sundry",null,"Counterparty Default Risk - MV of Collateral - Rating 4",null,null,null,null,{"$f":"'Schedule IIF (EBS)'!H88","v":0}]
["Sch IIF","Other Sundry",null,"NAIC Rating Resid. MBS - Class 4",null,null,null,null,{"$f":"'Schedule IIF (EBS)'!F104","v":0}]
["Sch IIF","Other Sundry",null,"NAIC Rating Mort. Loan - Class 4",null,null,null,null,{"$f":"'Schedule IIF (EBS)'!L104","v":0}]
["Sch IIF","Other Sundry",null,"NAIC Rating Pref. Stock - Class 2",null,null,null,null,{"$f":"'Schedule IIF (EBS)'!N102","v":0}]
["Sch IVD","Exposure by Line",null,"NPE - Est. Next 12 Month - Energy",{"$f":"'Schedule IVD (EBS)'!G18","v":0}]
["Sch IVD","Exposure by Line",null,"NPE FP Existing - Credit Surety Non-Prop.",{"$f":"'Schedule IVD (EBS)'!K17","v":0}]
["Sch IVD","Exposure by Line",null,"NPE FP Future - Credit Surety Non-Prop.",{"$f":"'Schedule IVD (EBS)'!M17","v":0}]
["Sch IVD","Exposure by Line",null,"Gross Premium Exposure - Property Non-Proportion",{"$f":"'Schedule IVD (EBS)'!Q11","v":0}]
["Sch IVE","Net Prem by Zone",null,"NPE Zn 1 - Personal Acc. Non Prop.",{"$f":"'Schedule IVE (EBS)'!E13","v":0}]
["Sch IVE","Net Prem by Zone",null,"NPE Zn 2 - Property Catastrophe",{"$f":"'Schedule IVE (EBS)'!F9","v":0}]
["Sch IVE","Net Prem by Zone",null,"NPE Zn 2 - Aviation",{"$f":"'Schedule IVE (EBS)'!F14","v":0}]
["Sch IVE","Net Prem by Zone",null,"NPE Zn 3 - Credit Surety Non-Prop.",{"$f":"'Schedule IVE (EBS)'!G17","v":0}]
["Sch IVE","Net Prem by Zone",null,"NPE Zn 4 - Property Non-Proportion",{"$f":"'Schedule IVE (EBS)'!H11","v":0}]
["Sch IVE","Net Prem by Zone",null,"NPE Zn 5 - Property Non-Proportion",{"$f":"'Schedule IVE (EBS)'!I11","v":0}]
["Sch IVE","Net Prem by Zone",null,"NPE Zn 5 - Credit Surety",{"$f":"'Schedule IVE (EBS)'!I16","v":0}]
["Sch IVE","Net Prem by Zone",null,"NPE Zn 6 - Int'l Casualty",{"$f":"'Schedule IVE (EBS)'!J28","v":0}]
["Sch IVE","Net Prem by Zone",null,"NPE Zn 7 - Personal Acc. Non Prop.",{"$f":"'Schedule IVE (EBS)'!K13","v":0}]
["Sch IVE","Net Prem by Zone",null,"NPE Zn 8 - Property Catastrophe",{"$f":"'Schedule IVE (EBS)'!L9","v":0}]
["Sch IVE","Net Prem by Zone",null,"NPE Zn 8 - US Specialty Non-Prop.",{"$f":"'Schedule IVE (EBS)'!L25","v":0}]
["Sch IVE","Net Prem by Zone",null,"NPE Zn 10 - Property",{"$f":"'Schedule IVE (EBS)'!N10","v":0}]
["Sch IVE","Net Prem by Zone",null,"NPE Zn 10 - Structured / Finite R/I",{"$f":"'Schedule IVE (EBS)'!N31","v":0}]
["Sch IVE","Net Prem by Zone",null,"NPE Zn 11 - Property Non-Proportion",{"$f":"'Schedule IVE (EBS)'!O11","v":0}]
["Sch IVE","Net Prem by Zone",null,"NPE Zn 11 - Health",{"$f":"'Schedule IVE (EBS)'!O32","v":0}]
["Sch IVE","Net Prem by Zone",null,"NPE Zn 12 - Total",{"$f":"'Schedule IVE (EBS)'!P33","v":0}]
["Sch IVE","Net Prem by Zone",null,"NPE Zn 13 - Total",{"$f":"'Schedule IVE (EBS)'!Q33","v":0}]
["Sch IVE","Net Prem by Zone",null,"NPE Zn 14 - Int'l Casualty Non-Prop.",{"$f":"'Schedule IVE (EBS)'!R29","v":0}]
["Sch IVE","Net Prem by Zone",null,"NPE Zn 15 - Energy",{"$f":"'Schedule IVE (EBS)'!S18","v":0}]
["Sch IVE","Net Prem by Zone",null,"NPE Zn 16 - Property",{"$f":"'Schedule IVE (EBS)'!T10","v":0}]
["Sch IVE","Net Prem by Zone",null,"NPE Zn 16 - Structured / Finite R/I",{"$f":"'Schedule IVE (EBS)'!T31","v":0}]
["Sch IVE","Net Prem by Zone",null,"NPE Zn 18 - Property Non-Proportion",{"$f":"'Schedule IVE (EBS)'!V11","v":0}]
["Sch IVE","Net Prem by Zone",null,"NPE Zn 18 - Int'l Casualty",{"$f":"'Schedule IVE (EBS)'!V28","v":0}]
["Sch IVF","Exposure of Risk",null,"1. # of Subsidiaries - 19.Malta",{"$f":"'Schedule IVF'!D31","v":0}]
["Sch IVF","Exposure of Risk",null,"1. # of Subsidiaries - 24.Slovakia",{"$f":"'Schedule IVF'!D36","v":0}]
["Sch IVF","Exposure of Risk",null,"2. GPW Cat - 3.Bulgaria",{"$f":"'Schedule IVF'!E15","v":0}]
["Sch IVF","Exposure of Risk",null,"2. GPW Cat - 32.United States of America",{"$f":"'Schedule IVF'!E45","v":0}]
["Sch IVF","Exposure of Risk",null,"3. GPW Other - 18.Luxembourg",{"$f":"'Schedule IVF'!F30","v":0}]
["Sch IVF","Exposure of Risk",null,"3. GPW Other - 39.Total",{"$f":"'Schedule IVF'!F52","v":0}]
["Sch IVF","Exposure of Risk",null,"4. Ceded Cat - 7.Denmark",{"$f":"'Schedule IVF'!G19","v":0}]
["Sch IVF","Exposure of Risk",null,"4. Ceded Cat - 27.Sweden",{"$f":"'Schedule IVF'!G39","v":0}]
["Sch IVF","Exposure of Risk",null,"5. Ceded Other - 13.Hungary",{"$f":"'Schedule IVF'!H25","v":0}]
["Sch IVF","Exposure of Risk",null,"5. Ceded Other - 36.Hong Kong",{"$f":"'Schedule IVF'!H49","v":0}]
["Sch IVF","Exposure of Risk",null,"6. Losses Cat - 21.Poland",{"$f":"'Schedule IVF'!J33","v":0}]
["Sch IVF","Exposure of Risk",null,"7. Losses Other - 7.Denmark",{"$f":"'Schedule IVF'!K19","v":0}]
["Sch IVF","Exposure of Risk",null,"7. Losses Other - 28.Sub Total European Union",{"$f":"'Schedule IVF'!K40","v":0}]
["Sch IVF","Exposure of Risk",null,"8. GB Reserves - 5.Cyprus",{"$f":"'Schedule IVF'!L17","v":0}]
["Sch IVF","Exposure of Risk",null,"8. GB Reserves - 20.Netherlands",{"$f":"'Schedule IVF'!L32","v":0}]
["Sch IVF","Exposure of Risk",null,"9. LT Mortality Reserve - 2.Belgium",{"$f":"'Schedule IVF'!M14","v":0}]
["Sch IVF","Exposure of Risk",null,"9. LT Mortality Reserve - 27.Sweden",{"$f":"'Schedule IVF'!M39","v":0}]
["Sch IVF","Exposure of Risk",null,"10. LT Longevity Reserve - 9.Finland",{"$f":"'Schedule IVF'!N21","v":0}]
["Sch IVF","Exposure of Risk",null,"10. LT Longevity Reserve - 35.Japan",{"$f":"'Schedule IVF'!N48","v":0}]
["Sch IVF","Exposure of Risk",null,"11. LT Accumulation Reserve - 1.Austria",{"$f":"'Schedule IVF'!O13","v":0}]
["Sch IVF","Exposure of Risk",null,"11. LT Accumulation Reserve - 21.Poland",{"$f":"'Schedule IVF'!O33","v":0}]
["Sch IVF","Exposure of Risk",null,"12. LT Disability Reserve - 9.Finland",{"$f":"'Schedule IVF'!P21","v":0}]
["Sch IVF","Exposure of Risk",null,"12. LT Disability Reserve - 34.China",{"$f":"'Schedule IVF'!P47","v":0}]
["Sch IVF","Exposure of Risk",null,"13. LT Group Reserve - 16.Latvia",{"$f":"'Schedule IVF'!Q28","v":0}]
["Sch IVF","Exposure of Risk",null,"13. LT Group Reserve - 25.Slovenia",{"$f":"'Schedule IVF'!Q37","v":0}]
["Sch IVF","Exposure of Risk",null,"14. LT Var. Annuity Reserve - 8.Estonia",{"$f":"'Schedule IVF'!R20","v":0}]
["Sch IVF","Exposure of Risk",null,"14. LT Var. Annuity Reserve - 29.Bermuda",{"$f":"'Schedule IVF'!R42","v":0}]
["Sch IVF","Exposure of Risk",null,"15. LT Other Reserve - 15.Italy",{"$f":"'Schedule IVF'!S27","v":0}]
["Sch IVF","Exposure of Risk",null,"15. LT Other Reserve - 33.Canada",{"$f":"'Schedule IVF'!S46","v":0}]
["Sch IVF","Exposure of Risk",null,"16. LT Claims Paid - 23.Romania",{"$f":"'Schedule IVF'!T35","v":0}]
["Sch IVF","Exposure of Risk",null,"16. LT Claims Paid - 28.Sub Total European Union",{"$f":"'Schedule IVF'!T40","v":0}]
["Sch XIXA","Cash Counterpart",null,"BSCR Rating - Counterparty 1",null,null,null,null,{"$f":"'Schedule XIXA'!E14","v":"Select"}]
["Sch XIXA","Cash Counterpart",null,"BSCR Rating - Counterparty 14",null,null,null,null,{"$f":"'Schedule XIXA'!E27","v":"Select"}]
["Sch XIXA","Cash Counterpart",null,"EBS - Counterparty Value 15",null,null,null,null,{"$f":"'Schedule XIXA'!G28","v":0}]
["Sch XXA","Currency Shock",null,"Other Currency 9",null,null,null,null,{"$f":"'Schedule XXA'!B31","v":"Other currency 9"}]
["Sch XXA","Currency Shock",null,{"$f":"\"Before Shock - Assets - Excluding Currency - Sensitive Derivatives \"&'Schedule XXA'!$B$31","v":"Before Shock - Assets - Excluding Currency - Sensitive Derivatives Other currency 9"},null,null,null,null,{"$f":"'Schedule XXA'!D31","v":0}]
["Sch XXA","Currency Shock",null,{"$f":"\"Before Shock - Long Exposures - Currency Derivatives Qualifying as held for risk-mitigation purposes \"&'Schedule XXA'!$B$12","v":"Before Shock - Long Exposures - Currency Derivatives Qualifying as held for risk-mitigation purposes Qatari Riyals"},null,null,null,null,{"$f":"'Schedule XXA'!F12","v":0}]
["Sch XXA","Currency Shock",null,{"$f":"\"Before Shock - Long Exposures - Currency Derivatives Not Qualifying as held for risk-mitigation purposes \"&'Schedule XXA'!$B$14","v":"Before Shock - Long Exposures - Currency Derivatives Not Qualifying as held for risk-mitigation purposes Euro"},null,null,null,null,{"$f":"'Schedule XXA'!H14","v":0}]
["Sch XXA","Currency Shock",null,{"$f":"\"Before Shock - Short Exposures - Currency Derivatives Qualifying as held for risk-mitigation purposes \"&'Schedule XXA'!$B$16","v":"Before Shock - Short Exposures - Currency Derivatives Qualifying as held for risk-mitigation purposes Bulgarian Levs"},null,null,null,null,{"$f":"'Schedule XXA'!J16","v":0}]
["Sch XXA","Currency Shock",null,{"$f":"\"Before Shock - Short Exposures - Currency Derivatives Qualifying as held for risk-mitigation purposes \"&'Schedule XXA'!$B$27","v":"Before Shock - Short Exposures - Currency Derivatives Qualifying as held for risk-mitigation purposes Other currency 5"},null,null,null,null,{"$f":"'Schedule XXA'!J27","v":0}]
["Sch XXA","Currency Shock",null,{"$f":"\"Before Shock - B.E. Liabilities \"&'Schedule XXA'!$B$17","v":"Before Shock - B.E. Liabilities West African CFA Francs"},null,null,null,null,{"$f":"'Schedule XXA'!N17","v":0}]
["Sch XXA","Currency Shock",null,{"$f":"\"After Shock - Assets - Excluding Currency - Sensitive Derivatives \"&'Schedule XXA'!$B$15","v":"After Shock - Assets - Excluding Currency - Sensitive Derivatives Danish Krones"},null,null,null,null,{"$f":"'Schedule XXA'!V15","v":0}]
["Sch XXA","Currency Shock",null,{"$f":"\"After Shock - Assets - Excluding Currency - Sensitive Derivatives \"&'Schedule XXA'!$B$26","v":"After Shock - Assets - Excluding Currency - Sensitive Derivatives Other currency 4"},null,null,null,null,{"$f":"'Schedule XXA'!V26","v":0}]
["Sch XXA","Currency Shock",null,{"$f":"\"After Shock - Long Exposures - Currency Derivatives Qualifying as held for risk-mitigation purposes \"&'Schedule XXA'!$B$23","v":"After Shock - Long Exposures - Currency Derivatives Qualifying as held for risk-mitigation purposes Other currency 1"},null,null,null,null,{"$f":"'Schedule XXA'!X23","v":0}]
["Sch XXA","Currency Shock",null,{"$f":"\"After Shock - Long Exposures - Currency Derivatives Not Qualifying as held for risk-mitigation purposes \"&'Schedule XXA'!$B$21","v":"After Shock - Long Exposures - Currency Derivatives Not Qualifying as held for risk-mitigation purposes CAD$"},null,null,null,null,{"$f":"'Schedule XXA'!Z21","v":0}]
["Sch XXA","Currency Shock",null,{"$f":"\"After Shock - Short Exposures - Currency Derivatives Qualifying as held for risk-mitigation purposes \"&'Schedule XXA'!$B$23","v":"After Shock - Short Exposures - Currency Derivatives Qualifying as held for risk-mitigation purposes Other currency 1"},null,null,null,null,{"$f":"'Schedule XXA'!AB23","v":0}]
["Sch XXA","Currency Shock",null,{"$f":"\"After Shock - Short Exposures - Currency Derivatives Not Qualifying as held for risk-mitigation purposes \"&'Schedule XXA'!$B$20","v":"After Shock - Short Exposures - Currency Derivatives Not Qualifying as held for risk-mitigation purposes GBP"},null,null,null,null,{"$f":"'Schedule XXA'!AD20","v":0}]
["Sch XXA","Currency Shock",null,{"$f":"\"After Shock - Short Exposures - Currency Derivatives Not Qualifying as held for risk-mitigation purposes \"&'Schedule XXA'!$B$27","v":"After Shock - Short Exposures - Currency Derivatives Not Qualifying as held for risk-mitigation purposes Other currency 5"},null,null,null,null,{"$f":"'Schedule XXA'!AD27","v":0}]
["Sch XXA","Currency Shock",null,{"$f":"\"After Shock - B.E. Liabilities \"&'Schedule XXA'!$B$29","v":"After Shock - B.E. Liabilities Other currency 7"},null,null,null,null,{"$f":"'Schedule XXA'!AF29","v":0}]
["Sch XXA","Currency Shock",null,{"$f":"\"After Shock - Liabilities w Mgmt. Actions \"&'Schedule XXA'!$B$27","v":"After Shock - Liabilities w Mgmt. Actions Other currency 5"},null,null,null,null,{"$f":"'Schedule XXA'!AH27","v":0}]
["Sch XXIA","Inv Con Risk",null,"Name of Exposure - 16",null,null,null,null,{"$f":"'Schedule XXIA'!C23","v":0}]
["Sch XXIA","Inv Con Risk",null,"Name of Exposure - 38",null,null,null,null,{"$f":"'Schedule XXIA'!C45","v":0}]
["Sch XXIA","Inv Con Risk",null,"EBS Asset Type - 9",null,null,null,null,{"$f":"'Schedule XXIA'!E16","v":"Select"}]
["Sch XXIA","Inv Con Risk",null,"EBS Asset Type - 13",null,null,null,null,{"$f":"'Schedule XXIA'!E20","v":"Select"}]
["Sch XXIA","Inv Con Risk",null,"EBS Asset Type - 36",null,null,null,null,{"$f":"'Schedule XXIA'!E43","v":"Select"}]
["Sch XXIA","Inv Con Risk",null,"EBS Bond Type - 11",null,null,null,null,{"$f":"'Schedule XXIA'!F18","v":"Select"}]
["Sch XXIA","Inv Con Risk",null,"EBS Bond Type - 36",null,null,null,null,{"$f":"'Schedule XXIA'!F43","v":"Select"}]
["Sch XXIA","Inv Con Risk",null,"EBS Bond Type - 49",null,null,null,null,{"$f":"'Schedule XXIA'!F56","v":"Select"}]
["Sch XXIA","Inv Con Risk",null,"EBS BSCR Rating - 33",null,null,null,null,{"$f":"'Schedule XXIA'!G40","v":"Select"}]
["Sch XXIA","Inv Con Risk",null,"EBS BSCR Rating - 38",null,null,null,null,{"$f":"'Schedule XXIA'!G45","v":"Select"}]
["Sch XXIA","Inv Con Risk",null,"EBS Asset Value - 9",null,null,null,null,{"$f":"'Schedule XXIA'!H16","v":0}]
["Sch XXIA","Inv Con Risk",null,"EBS Asset Value - 31",null,null,null,null,{"$f":"'Schedule XXIA'!H38","v":0}]
["Sch XXIII","Interest Rates",null,"Other currency 4",null,null,null,null,{"$f":"'Schedule XXIII'!C21","v":"Other currency 4"}]
["Sch XXIII","Interest Rates",null,"Int. Down - Before Shock - Other - Qualifying Assets - Total",null,null,null,null,{"$f":"'Schedule XXIII'!E28","v":0}]
["Sch XXIII","Interest Rates",null,{"$f":"\"Int. Down - After Shock - Other - Qualifying Assets - \"&'Schedule XXIII'!$C$27","v":"Int. Down - After Shock - Other - Qualifying Assets - Other currency 10"},null,null,null,null,{"$f":"'Schedule XXIII'!F27","v":0}]
["Sch XXIII","Interest Rates",null,"Int. Down - Before Shock - Other - Liab. w/o Mgmt Action - New Zealand Dollar",null,null,null,null,{"$f":"'Schedule XXIII'!H17","v":0}]
["Sch XXIII","Interest Rates",null,{"$f":"\"Int. Down - After Shock - Other - Liab. w/o Mgmt Action - \"&'Schedule XXIII'!$C$23","v":"Int. Down - After Shock - Other - Liab. w/o Mgmt Action - Other currency 6"},null,null,null,null,{"$f":"'Schedule XXIII'!I23","v":0}]
["Sch XXIII","Interest Rates",null,{"$f":"\"Int. Down - After Shock - Other - Liab. with Mgmt Action - \"&'Schedule XXIII'!$C$25","v":"Int. Down - After Shock - Other - Liab. with Mgmt Action - Other currency 8"},null,null,null,null,{"$f":"'Schedule XXIII'!K25","v":0}]
["Sch XXIII","Interest Rates",null,{"$f":"\"Int. Down - After Shock - Derivatives - Qualifying Assets - \"&'Schedule XXIII'!$C$18","v":"Int. Down - After Shock - Derivatives - Qualifying Assets - Other currency 1"},null,null,null,null,{"$f":"'Schedule XXIII'!N18","v":0}]
["Sch XXIII","Interest Rates",null,{"$f":"\"Int. Down - Before Shock - Derivatives - Not Qualifying Assets - \"&'Schedule XXIII'!$C$19","v":"Int. Down - Before Shock - Derivatives - Not Qualifying Assets - Other currency 2"},null,null,null,null,{"$f":"'Schedule XXIII'!P19","v":0}]
["Sch XXIII","Interest Rates",null,{"$f":"\"Int. Down - After Shock - Derivatives - Not Qualifying Assets - \"&'Schedule XXIII'!$C$21","v":"Int. Down - After Shock - Derivatives - Not Qualifying Assets - Other currency 4"},null,null,null,null,{"$f":"'Schedule XXIII'!Q21","v":0}]
["Sch XXIII","Interest Rates",null,{"$f":"\"Int. Down - After Shock - Derivatives - Not Qualifying Assets - \"&'Schedule XXIII'!$C$27","v":"Int. Down - After Shock - Derivatives - Not Qualifying Assets - Other currency 10"},null,null,null,null,{"$f":"'Schedule XXIII'!Q27","v":0}]
["Sch XXIII","Interest Rates",null,{"$f":"\"Int. Down - Before Shock - Derivatives - Liab. w/o Mgmt Action - \"&'Schedule XXIII'!$C$24","v":"Int. Down - Before Shock - Derivatives - Liab. w/o Mgmt Action - Other currency 7"},null,null,null,null,{"$f":"'Schedule XXIII'!S24","v":0}]
["Sch XXIII","Interest Rates",null,{"$f":"\"Int. Down - Before Shock - Derivatives - Liab. w/o Mgmt Action - \"&'Schedule XXIII'!$C$25","v":"Int. Down - Before Shock - Derivatives - Liab. w/o Mgmt Action - Other currency 8"},null,null,null,null,{"$f":"'Schedule XXIII'!S25","v":0}]
["Sch XXIII","Interest Rates",null,{"$f":"\"Int. Down - Before Shock - Derivatives - Liab. w/o Mgmt Action - \"&'Schedule XXIII'!$C$26","v":"Int. Down - Before Shock - Derivatives - Liab. w/o Mgmt Action - Other currency 9"},null,null,null,null,{"$f":"'Schedule XXIII'!S26","v":0}]
["Sch XXIII","Interest Rates",null,{"$f":"\"Int. Down - Before Shock - Derivatives - Liab. w/o Mgmt Action - \"&'Schedule XXIII'!$C$27","v":"Int. Down - Before Shock - Derivatives - Liab. w/o Mgmt Action - Other currency 10"},null,null,null,null,{"$f":"'Schedule XXIII'!S27","v":0}]
["Sch XXIII","Interest Rates",null,"Int. Down - Before Shock - Derivatives - Liab. w/o Mgmt Action - Total",null,null,null,null,{"$f":"'Schedule XXIII'!S28","v":0}]
["Sch XXIII","Interest Rates",null,"Int. Down - After Shock - Derivatives - Liab. w/o Mgmt Action - United States Dollars",null,null,null,null,{"$f":"'Schedule XXIII'!T10","v":0}]
["Sch XXIII","Interest Rates",null,"Int. Down - After Shock - Derivatives - Liab. w/o Mgmt Action - Euro",null,null,null,null,{"$f":"'Schedule XXIII'!T11","v":0}]
["Sch XXIII","Interest Rates",null,"Int. Down - After Shock - Derivatives - Liab. w/o Mgmt Action - United Kingdom Pounds",null,null,null,null,{"$f":"'Schedule XXIII'!T12","v":0}]
["Sch XXIII","Interest Rates",null,"Int. Down - After Shock - Derivatives - Liab. w/o Mgmt Action - Japan Yen",null,null,null,null,{"$f":"'Schedule XXIII'!T13","v":0}]
["Sch XXIII","Interest Rates",null,"Int. Down - After Shock - Derivatives - Liab. w/o Mgmt Action - Canada Dollars",null,null,null,null,{"$f":"'Schedule XXIII'!T14","v":0}]
["Sch XXIII","Interest Rates",null,"Int. Down - After Shock - Derivatives - Liab. w/o Mgmt Action - Swiss Francs",null,null,null,null,{"$f":"'Schedule XXIII'!T15","v":0}]
["Sch XXIII","Interest Rates",null,"Int. Down - After Shock - Derivatives - Liab. w/o Mgmt Action - Australia Dollar",null,null,null,null,{"$f":"'Schedule XXIII'!T16","v":0}]
["Sch XXIII","Interest Rates",null,"Int. Down - After Shock - Derivatives - Liab. w/o Mgmt Action - New Zealand Dollar",null,null,null,null,{"$f":"'Schedule XXIII'!T17","v":0}]
["Sch XXIII","Interest Rates",null,{"$f":"\"Int. Down - After Shock - Derivatives - Liab. w/o Mgmt Action - \"&'Schedule XXIII'!$C$18","v":"Int. Down - After Shock - Derivatives - Liab. w/o Mgmt Action - Other currency 1"},null,null,null,null,{"$f":"'Schedule XXIII'!T18","v":0}]
["Sch XXIII","Interest Rates",null,{"$f":"\"Int. Down - After Shock - Derivatives - Liab. w/o Mgmt Action - \"&'Schedule XXIII'!$C$19","v":"Int. Down - After Shock - Derivatives - Liab. w/o Mgmt Action - Other currency 2"},null,null,null,null,{"$f":"'Schedule XXIII'!T19","v":0}]
["Sch XXIII","Interest Rates",null,{"$f":"\"Int. Down - After Shock - Derivatives - Liab. w/o Mgmt Action - \"&'Schedule XXIII'!$C$20","v":"Int. Down - After Shock - Derivatives - Liab. w/o Mgmt Action - Other currency 3"},null,null,null,null,{"$f":"'Schedule XXIII'!T20","v":0}]
["Sch XXIII","Interest Rates",null,{"$f":"\"Int. Down - After Shock - Derivatives - Liab. w/o Mgmt Action - \"&'Schedule XXIII'!$C$21","v":"Int. Down - After Shock - Derivatives - Liab. w/o Mgmt Action - Other currency 4"},null,null,null,null,{"$f":"'Schedule XXIII'!T21","v":0}]
["Sch XXIII","Interest Rates",null,{"$f":"\"Int. Down - After Shock - Derivatives - Liab. w/o Mgmt Action - \"&'Schedule XXIII'!$C$22","v":"Int. Down - After Shock - Derivatives - Liab. w/o Mgmt Action - Other currency 5"},null,null,null,null,{"$f":"'Schedule XXIII'!T22","v":0}]
["Sch XXIII","Interest Rates",null,{"$f":"\"Int. Down - After Shock - Derivatives - Liab. w/o Mgmt Action - \"&'Schedule XXIII'!$C$23","v":"Int. Down - After Shock - Derivatives - Liab. w/o Mgmt Action - Other currency 6"},null,null,null,null,{"$f":"'Schedule XXIII'!T23","v":0}]
["Sch XXIII","Interest Rates",null,{"$f":"\"Int. Down - After Shock - Derivatives - Liab. w/o Mgmt Action - \"&'Schedule XXIII'!$C$24","v":"Int. Down - After Shock - Derivatives - Liab. w/o Mgmt Action - Other currency 7"},null,null,null,null,{"$f":"'Schedule XXIII'!T24","v":0}]
["Sch XXIII","Interest Rates",null,{"$f":"\"Int. Down - After Shock - Derivatives - Liab. w/o Mgmt Action - \"&'Schedule XXIII'!$C$25","v":"Int. Down - After Shock - Derivatives - Liab. w/o Mgmt Action - Other currency 8"},null,null,null,null,{"$f":"'Schedule XXIII'!T25","v":0}]
["Sch XXIII","Interest Rates",null,{"$f":"\"Int. Down - After Shock - Derivatives - Liab. w/o Mgmt Action - \"&'Schedule XXIII'!$C$26","v":"Int. Down - After Shock - Derivatives - Liab. w/o Mgmt Action - Other currency 9"},null,null,null,null,{"$f":"'Schedule XXIII'!T26","v":0}]
["Sch XXIII","Interest Rates",null,{"$f":"\"Int. Down - After Shock - Derivatives - Liab. w/o Mgmt Action - \"&'Schedule XXIII'!$C$27","v":"Int. Down - After Shock - Derivatives - Liab. w/o Mgmt Action - Other currency 10"},null,null,null,null,{"$f":"'Schedule XXIII'!T27","v":0}]
["Sch XXIII","Interest Rates",null,"Int. Down - After Shock - Derivatives - Liab. w/o Mgmt Action - Total",null,null,null,null,{"$f":"'Schedule XXIII'!T28","v":0}]
["Sch XXIII","Interest Rates",null,"Int. Down - After Shock - Derivatives - Liab. with Mgmt Action - United States Dollars",null,null,null,null,{"$f":"'Schedule XXIII'!V10","v":0}]
["Sch XXIII","Interest Rates",null,"Int. Down - After Shock - Derivatives - Liab. with Mgmt Action - Euro",null,null,null,null,{"$f":"'Schedule XXIII'!V11","v":0}]
["Sch XXIII","Interest Rates",null,"Int. Down - After Shock - Derivatives - Liab. with Mgmt Action - United Kingdom Pounds",null,null,null,null,{"$f":"'Schedule XXIII'!V12","v":0}]
["Sch XXIII","Interest Rates",null,"Int. Down - After Shock - Derivatives - Liab. with Mgmt Action - Japan Yen",null,null,null,null,{"$f":"'Schedule XXIII'!V13","v":0}]
["Sch XXIII","Interest Rates",null,"Int. Down - After Shock - Derivatives - Liab. with Mgmt Action - Canada Dollars",null,null,null,null,{"$f":"'Schedule XXIII'!V14","v":0}]
["Sch XXIII","Interest Rates",null,"Int. Down - After Shock - Derivatives - Liab. with Mgmt Action - Swiss Francs",null,null,null,null,{"$f":"'Schedule XXIII'!V15","v":0}]
["Sch XXIII","Interest Rates",null,"Int. Down - After Shock - Derivatives - Liab. with Mgmt Action - Australia Dollar",null,null,null,null,{"$f":"'Schedule XXIII'!V16","v":0}]
["Sch XXIII","Interest Rates",null,"Int. Down - After Shock - Derivatives - Liab. with Mgmt Action - New Zealand Dollar",null,null,null,null,{"$f":"'Schedule XXIII'!V17","v":0}]
["Sch XXIII","Interest Rates",null,{"$f":"\"Int. Down - After Shock - Derivatives - Liab. with Mgmt Action - \"&'Schedule XXIII'!$C$18","v":"Int. Down - After Shock - Derivatives - Liab. with Mgmt Action - Other currency 1"},null,null,null,null,{"$f":"'Schedule XXIII'!V18","v":0}]
["Sch XXIII","Interest Rates",null,{"$f":"\"Int. Down - After Shock - Derivatives - Liab. with Mgmt Action - \"&'Schedule XXIII'!$C$19","v":"Int. Down - After Shock - Derivatives - Liab. with Mgmt Action - Other currency 2"},null,null,null,null,{"$f":"'Schedule XXIII'!V19","v":0}]
["Sch XXIII","Interest Rates",null,{"$f":"\"Int. Down - After Shock - Derivatives - Liab. with Mgmt Action - \"&'Schedule XXIII'!$C$20","v":"Int. Down - After Shock - Derivatives - Liab. with Mgmt Action - Other currency 3"},null,null,null,null,{"$f":"'Schedule XXIII'!V20","v":0}]
["Sch XXIII","Interest Rates",null,{"$f":"\"Int. Down - After Shock - Derivatives - Liab. with Mgmt Action - \"&'Schedule XXIII'!$C$21","v":"Int. Down - After Shock - Derivatives - Liab. with Mgmt Action - Other currency 4"},null,null,null,null,{"$f":"'Schedule XXIII'!V21","v":0}]
["Sch XXIII","Interest Rates",null,{"$f":"\"Int. Down - After Shock - Derivatives - Liab. with Mgmt Action - \"&'Schedule XXIII'!$C$22","v":"Int. Down - After Shock - Derivatives - Liab. with Mgmt Action - Other currency 5"},null,null,null,null,{"$f":"'Schedule XXIII'!V22","v":0}]
["Sch XXIII","Interest Rates",null,{"$f":"\"Int. Down - After Shock - Derivatives - Liab. with Mgmt Action - \"&'Schedule XXIII'!$C$23","v":"Int. Down - After Shock - Derivatives - Liab. with Mgmt Action - Other currency 6"},null,null,null,null,{"$f":"'Schedule XXIII'!V23","v":0}]
["Sch XXIII","Interest Rates",null,{"$f":"\"Int. Down - After Shock - Derivatives - Liab. with Mgmt Action - \"&'Schedule XXIII'!$C$24","v":"Int. Down - After Shock - Derivatives - Liab. with Mgmt Action - Other currency 7"},null,null,null,null,{"$f":"'Schedule XXIII'!V24","v":0}]
["Sch XXIII","Interest Rates",null,{"$f":"\"Int. Down - After Shock - Derivatives - Liab. with Mgmt Action - \"&'Schedule XXIII'!$C$25","v":"Int. Down - After Shock - Derivatives - Liab. with Mgmt Action - Other currency 8"},null,null,null,null,{"$f":"'Schedule XXIII'!V25","v":0}]
["Sch XXIII","Interest Rates",null,{"$f":"\"Int. Down - After Shock - Derivatives - Liab. with Mgmt Action - \"&'Schedule XXIII'!$C$26","v":"Int. Down - After Shock - Derivatives - Liab. with Mgmt Action - Other currency 9"},null,null,null,null,{"$f":"'Schedule XXIII'!V26","v":0}]
["Sch XXIII","Interest Rates",null,{"$f":"\"Int. Down - After Shock - Derivatives - Liab. with Mgmt Action - \"&'Schedule XXIII'!$C$27","v":"Int. Down - After Shock - Derivatives - Liab. with Mgmt Action - Other currency 10"},null,null,null,null,{"$f":"'Schedule XXIII'!V27","v":0}]
["Sch XXIII","Interest Rates",null,"Int. Down - After Shock - Derivatives - Liab. with Mgmt Action - Total",null,null,null,null,{"$f":"'Schedule XXIII'!V28","v":0}]
["Sch XXIII","Interest Rates",null,"Other currency 1",null,null,null,null,{"$f":"'Schedule XXIII'!C43","v":"Other currency 1"}]
["Sch XXIII","Interest Rates",null,"Other currency 2",null,null,null,null,{"$f":"'Schedule XXIII'!C44","v":"Other currency 2"}]
["Sch XXIII","Interest Rates",null,"Other currency 3",null,null,null,null,{"$f":"'Schedule XXIII'!C45","v":"Other currency 3"}]
["Sch XXIII","Interest Rates",null,"Other currency 4",null,null,null,null,{"$f":"'Schedule XXIII'!C46","v":"Other currency 4"}]
["Sch XXIII","Interest Rates",null,"Other currency 5",null,null,null,null,{"$f":"'Schedule XXIII'!C47","v":"Other currency 5"}]
["Sch XXIII","Interest Rates",null,"Other currency 6",null,null,null,null,{"$f":"'Schedule XXIII'!C48","v":"Other currency 6"}]
["Sch XXIII","Interest Rates",null,"Other currency 7",null,null,null,null,{"$f":"'Schedule XXIII'!C49","v":"Other currency 7"}]
["Sch XXIII","Interest Rates",null,"Other currency 8",null,null,null,null,{"$f":"'Schedule XXIII'!C50","v":"Other currency 8"}]
["Sch XXIII","Interest Rates",null,"Other currency 9",null,null,null,null,{"$f":"'Schedule XXIII'!C51","v":"Other currency 9"}]
["Sch XXIII","Interest Rates",null,"Other currency 10",null,null,null,null,{"$f":"'Schedule XXIII'!C52","v":"Other currency 10"}]
["Sch XXIII","Interest Rates",null,"Int. Up - Before Shock - Other - Qualifying Assets - United States Dollars",null,null,null,null,{"$f":"'Schedule XXIII'!E35","v":0}]
["Sch XXIII","Interest Rates",null,"Int. Up - Before Shock - Other - Qualifying Assets - Euro",null,null,null,null,{"$f":"'Schedule XXIII'!E36","v":0}]
["Sch XXIII","Interest Rates",null,"Int. Up - Before Shock - Other - Qualifying Assets - United Kingdom Pounds",null,null,null,null,{"$f":"'Schedule XXIII'!E37","v":0}]
["Sch XXIII","Interest Rates",null,"Int. Up - Before Shock - Other - Qualifying Assets - Japan Yen",null,null,null,null,{"$f":"'Schedule XXIII'!E38","v":0}]
["Sch XXIII","Interest Rates",null,"Int. Up - Before Shock - Other - Qualifying Assets - Canada Dollars",null,null,null,null,{"$f":"'Schedule XXIII'!E39","v":0}]
["Sch XXIII","Interest Rates",null,"Int. Up - Before Shock - Other - Qualifying Assets - Swiss Francs",null,null,null,null,{"$f":"'Schedule XXIII'!E40","v":0}]
["Sch XXIII","Interest Rates",null,"Int. Up - Before Shock - Other - Qualifying Assets - Australia Dollar",null,null,null,null,{"$f":"'Schedule XXIII'!E41","v":0}]
["Sch XXIII","Interest Rates",null,"Int. Up - Before Shock - Other - Qualifying Assets - New Zealand Dollar",null,null,null,null,{"$f":"'Schedule XXIII'!E42","v":0}]
["Sch XXIII","Interest Rates",null,{"$f":"\"Int. Up - Before Shock - Other - Qualifying Assets - \"&'Schedule XXIII'!$C$18","v":"Int. Up - Before Shock - Other - Qualifying Assets - Other currency 1"},null,null,null,null,{"$f":"'Schedule XXIII'!E43","v":0}]
["Sch XXIII","Interest Rates",null,{"$f":"\"Int. Up - Before Shock - Other - Qualifying Assets - \"&'Schedule XXIII'!$C$19","v":"Int. Up - Before Shock - Other - Qualifying Assets - Other currency 2"},null,null,null,null,{"$f":"'Schedule XXIII'!E44","v":0}]
["Sch XXIII","Interest Rates",null,{"$f":"\"Int. Up - Before Shock - Other - Qualifying Assets - \"&'Schedule XXIII'!$C$20","v":"Int. Up - Before Shock - Other - Qualifying Assets - Other currency 3"},null,null,null,null,{"$f":"'Schedule XXIII'!E45","v":0}]
["Sch XXIII","Interest Rates",null,{"$f":"\"Int. Up - Before Shock - Other - Qualifying Assets - \"&'Schedule XXIII'!$C$21","v":"Int. Up - Before Shock - Other - Qualifying Assets - Other currency 4"},null,null,null,null,{"$f":"'Schedule XXIII'!E46","v":0}]
["Sch XXIII","Interest Rates",null,{"$f":"\"Int. Up - Before Shock - Other - Qualifying Assets - \"&'Schedule XXIII'!$C$22","v":"Int. Up - Before Shock - Other - Qualifying Assets - Other currency 5"},null,null,null,null,{"$f":"'Schedule XXIII'!E47","v":0}]
["Sch XXIII","Interest Rates",null,{"$f":"\"Int. Up - Before Shock - Other - Qualifying Assets - \"&'Schedule XXIII'!$C$23","v":"Int. Up - Before Shock - Other - Qualifying Assets - Other currency 6"},null,null,null,null,{"$f":"'Schedule XXIII'!E48","v":0}]
["Sch XXIII","Interest Rates",null,{"$f":"\"Int. Up - Before Shock - Other - Qualifying Assets - \"&'Schedule XXIII'!$C$24","v":"Int. Up - Before Shock - Other - Qualifying Assets - Other currency 7"},null,null,null,null,{"$f":"'Schedule XXIII'!E49","v":0}]
["Sch XXIII","Interest Rates",null,{"$f":"\"Int. Up - Before Shock - Other - Qualifying Assets - \"&'Schedule XXIII'!$C$25","v":"Int. Up - Before Shock - Other - Qualifying Assets - Other currency 8"},null,null,null,null,{"$f":"'Schedule XXIII'!E50","v":0}]
["Sch XXIII","Interest Rates",null,{"$f":"\"Int. Up - Before Shock - Other - Qualifying Assets - \"&'Schedule XXIII'!$C$26","v":"Int. Up - Before Shock - Other - Qualifying Assets - Other currency 9"},null,null,null,null,{"$f":"'Schedule XXIII'!E51","v":0}]
["Sch XXIII","Interest Rates",null,{"$f":"\"Int. Up - Before Shock - Other - Qualifying Assets - \"&'Schedule XXIII'!$C$27","v":"Int. Up - Before Shock - Other - Qualifying Assets - Other currency 10"},null,null,null,null,{"$f":"'Schedule XXIII'!E52","v":0}]
["Sch XXIII","Interest Rates",null,"Int. Up - Before Shock - Other - Qualifying Assets - Total",null,null,null,null,{"$f":"'Schedule XXIII'!E53","v":0}]
["Sch XXIII","Interest Rates",null,"Int. Up - After Shock - Other - Qualifying Assets - United States Dollars",null,null,null,null,{"$f":"'Schedule XXIII'!F35","v":0}]
["Sch XXIII","Interest Rates",null,"Int. Up - After Shock - Other - Qualifying Assets - Euro",null,null,null,null,{"$f":"'Schedule XXIII'!F36","v":0}]
["Sch XXIII","Interest Rates",null,"Int. Up - After Shock - Other - Qualifying Assets - United Kingdom Pounds",null,null,null,null,{"$f":"'Schedule XXIII'!F37","v":0}]
["Sch XXIII","Interest Rates",null,"Int. Up - After Shock - Other - Qualifying Assets - Japan Yen",null,null,null,null,{"$f":"'Schedule XXIII'!F38","v":0}]
["Sch XXIII","Interest Rates",null,"Int. Up - After Shock - Other - Qualifying Assets - Canada Dollars",null,null,null,null,{"$f":"'Schedule XXIII'!F39","v":0}]
["Sch XXIII","Interest Rates",null,"Int. Up - After Shock - Other - Qualifying Assets - Swiss Francs",null,null,null,null,{"$f":"'Schedule XXIII'!F40","v":0}]
["Sch XXIII","Interest Rates",null,"Int. Up - After Shock - Other - Qualifying Assets - Australia Dollar",null,null,null,null,{"$f":"'Schedule XXIII'!F41","v":0}]
["Sch XXIII","Interest Rates",null,"Int. Up - After Shock - Other - Qualifying Assets - New Zealand Dollar",null,null,null,null,{"$f":"'Schedule XXIII'!F42","v":0}]
["Sch XXIII","Interest Rates",null,{"$f":"\"Int. Up - After Shock - Other - Qualifying Assets - \"&'Schedule XXIII'!$C$18","v":"Int. Up - After Shock - Other - Qualifying Assets - Other currency 1"},null,null,null,null,{"$f":"'Schedule XXIII'!F43","v":0}]
["Sch XXIII","Interest Rates",null,{"$f":"\"Int. Up - After Shock - Other - Qualifying Assets - \"&'Schedule XXIII'!$C$19","v":"Int. Up - After Shock - Other - Qualifying Assets - Other currency 2"},null,null,null,null,{"$f":"'Schedule XXIII'!F44","v":0}]
["Sch XXIII","Interest Rates",null,{"$f":"\"Int. Up - After Shock - Other - Qualifying Assets - \"&'Schedule XXIII'!$C$20","v":"Int. Up - After Shock - Other - Qualifying Assets - Other currency 3"},null,null,null,null,{"$f":"'Schedule XXIII'!F45","v":0}]
["Sch XXIII","Interest Rates",null,{"$f":"\"Int. Up - After Shock - Other - Qualifying Assets - \"&'Schedule XXIII'!$C$21","v":"Int. Up - After Shock - Other - Qualifying Assets - Other currency 4"},null,null,null,null,{"$f":"'Schedule XXIII'!F46","v":0}]
["Sch XXIII","Interest Rates",null,{"$f":"\"Int. Up - After Shock - Other - Qualifying Assets - \"&'Schedule XXIII'!$C$22","v":"Int. Up - After Shock - Other - Qualifying Assets - Other currency 5"},null,null,null,null,{"$f":"'Schedule XXIII'!F47","v":0}]
["Sch XXIII","Interest Rates",null,{"$f":"\"Int. Up - After Shock - Other - Qualifying Assets - \"&'Schedule XXIII'!$C$23","v":"Int. Up - After Shock - Other - Qualifying Assets - Other currency 6"},null,null,null,null,{"$f":"'Schedule XXIII'!F48","v":0}]
["Sch XXIII","Interest Rates",null,{"$f":"\"Int. Up - After Shock - Other - Qualifying Assets - \"&'Schedule XXIII'!$C$24","v":"Int. Up - After Shock - Other - Qualifying Assets - Other currency 7"},null,null,null,null,{"$f":"'Schedule XXIII'!F49","v":0}]
["Sch XXIII","Interest Rates",null,{"$f":"\"Int. Up - After Shock - Other - Qualifying Assets - \"&'Schedule XXIII'!$C$25","v":"Int. Up - After Shock - Other - Qualifying Assets - Other currency 8"},null,null,null,null,{"$f":"'Schedule XXIII'!F50","v":0}]
["Sch XXIII","Interest Rates",null,{"$f":"\"Int. Up - After Shock - Other - Qualifying Assets - \"&'Schedule XXIII'!$C$26","v":"Int. Up - After Shock - Other - Qualifying Assets - Other currency 9"},null,null,null,null,{"$f":"'Schedule XXIII'!F51","v":0}]
["Sch XXIII","Interest Rates",null,{"$f":"\"Int. Up - After Shock - Other - Qualifying Assets - \"&'Schedule XXIII'!$C$27","v":"Int. Up - After Shock - Other - Qualifying Assets - Other currency 10"},null,null,null,null,{"$f":"'Schedule XXIII'!F52","v":0}]
["Sch XXIII","Interest Rates",null,"Int. Up - After Shock - Other - Qualifying Assets - Total",null,null,null,null,{"$f":"'Schedule XXIII'!F53","v":0}]
["Sch XXIII","Interest Rates",null,"Int. Up - Before Shock - Other - Liab. w/o Mgmt Action - United States Dollars",null,null,null,null,{"$f":"'Schedule XXIII'!H35","v":0}]
["Sch XXIII","Interest Rates",null,"Int. Up - Before Shock - Other - Liab. w/o Mgmt Action - Euro",null,null,null,null,{"$f":"'Schedule XXIII'!H36","v":0}]
["Sch XXIII","Interest Rates",null,"Int. Up - Before Shock - Other - Liab. w/o Mgmt Action - United Kingdom Pounds",null,null,null,null,{"$f":"'Schedule XXIII'!H37","v":0}]
["Sch XXIII","Interest Rates",null,"Int. Up - Before Shock - Other - Liab. w/o Mgmt Action - Japan Yen",null,null,null,null,{"$f":"'Schedule XXIII'!H38","v":0}]
["Sch XXIII","Interest Rates",null,"Int. Up - Before Shock - Other - Liab. w/o Mgmt Action - Canada Dollars",null,null,null,null,{"$f":"'Schedule XXIII'!H39","v":0}]
["Sch XXIII","Interest Rates",null,"Int. Up - Before Shock - Other - Liab. w/o Mgmt Action - Swiss Francs",null,null,null,null,{"$f":"'Schedule XXIII'!H40","v":0}]
["Sch XXIII","Interest Rates",null,"Int. Up - Before Shock - Other - Liab. w/o Mgmt Action - Australia Dollar",null,null,null,null,{"$f":"'Schedule XXIII'!H41","v":0}]
["Sch XXIII","Interest Rates",null,"Int. Up - Before Shock - Other - Liab. w/o Mgmt Action - New Zealand Dollar",null,null,null,null,{"$f":"'Schedule XXIII'!H42","v":0}]
["Sch XXIII","Interest Rates",null,{"$f":"\"Int. Up - Before Shock - Other - Liab. w/o Mgmt Action - \"&'Schedule XXIII'!$C$18","v":"Int. Up - Before Shock - Other - Liab. w/o Mgmt Action - Other currency 1"},null,null,null,null,{"$f":"'Schedule XXIII'!H43","v":0}]
["Sch XXIII","Interest Rates",null,{"$f":"\"Int. Up - Before Shock - Other - Liab. w/o Mgmt Action - \"&'Schedule XXIII'!$C$19","v":"Int. Up - Before Shock - Other - Liab. w/o Mgmt Action - Other currency 2"},null,null,null,null,{"$f":"'Schedule XXIII'!H44","v":0}]
["Sch XXIII","Interest Rates",null,{"$f":"\"Int. Up - Before Shock - Other - Liab. w/o Mgmt Action - \"&'Schedule XXIII'!$C$20","v":"Int. Up - Before Shock - Other - Liab. w/o Mgmt Action - Other currency 3"},null,null,null,null,{"$f":"'Schedule XXIII'!H45","v":0}]
["Sch XXIII","Interest Rates",null,{"$f":"\"Int. Up - Before Shock - Other - Liab. w/o Mgmt Action - \"&'Schedule XXIII'!$C$21","v":"Int. Up - Before Shock - Other - Liab. w/o Mgmt Action - Other currency 4"},null,null,null,null,{"$f":"'Schedule XXIII'!H46","v":0}]
["Sch XXIII","Interest Rates",null,{"$f":"\"Int. Up - Before Shock - Other - Liab. w/o Mgmt Action - \"&'Schedule XXIII'!$C$22","v":"Int. Up - Before Shock - Other - Liab. w/o Mgmt Action - Other currency 5"},null,null,null,null,{"$f":"'Schedule XXIII'!H47","v":0}]
["Sch XXIII","Interest Rates",null,{"$f":"\"Int. Up - Before Shock - Other - Liab. w/o Mgmt Action - \"&'Schedule XXIII'!$C$23","v":"Int. Up - Before Shock - Other - Liab. w/o Mgmt Action - Other currency 6"},null,null,null,null,{"$f":"'Schedule XXIII'!H48","v":0}]
["Sch XXIII","Interest Rates",null,{"$f":"\"Int. Up - Before Shock - Other - Liab. w/o Mgmt Action - \"&'Schedule XXIII'!$C$24","v":"Int. Up - Before Shock - Other - Liab. w/o Mgmt Action - Other currency 7"},null,null,null,null,{"$f":"'Schedule XXIII'!H49","v":0}]
["Sch XXIII","Interest Rates",null,{"$f":"\"Int. Up - Before Shock - Other - Liab. w/o Mgmt Action - \"&'Schedule XXIII'!$C$25","v":"Int. Up - Before Shock - Other - Liab. w/o Mgmt Action - Other currency 8"},null,null,null,null,{"$f":"'Schedule XXIII'!H50","v":0}]
["Sch XXIII","Interest Rates",null,{"$f":"\"Int. Up - Before Shock - Other - Liab. w/o Mgmt Action - \"&'Schedule XXIII'!$C$26","v":"Int. Up - Before Shock - Other - Liab. w/o Mgmt Action - Other currency 9"},null,null,null,null,{"$f":"'Schedule XXIII'!H51","v":0}]
["Sch XXIII","Interest Rates",null,{"$f":"\"Int. Up - Before Shock - Other - Liab. w/o Mgmt Action - \"&'Schedule XXIII'!$C$27","v":"Int. Up - Before Shock - Other - Liab. w/o Mgmt Action - Other currency 10"},null,null,null,null,{"$f":"'Schedule XXIII'!H52","v":0}]
["Sch XXIII","Interest Rates",null,"Int. Up - Before Shock - Other - Liab. w/o Mgmt Action - Total",null,null,null,null,{"$f":"'Schedule XXIII'!H53","v":0}]
["Sch XXIII","Interest Rates",null,"Int. Up - After Shock - Other - Liab. w/o Mgmt Action - United States Dollars",null,null,null,null,{"$f":"'Schedule XXIII'!I35","v":0}]
["Sch XXIII","Interest Rates",null,"Int. Up - After Shock - Other - Liab. w/o Mgmt Action - Euro",null,null,null,null,{"$f":"'Schedule XXIII'!I36","v":0}]
["Sch XXIII","Interest Rates",null,"Int. Up - After Shock - Other - Liab. w/o Mgmt Action - United Kingdom Pounds",null,null,null,null,{"$f":"'Schedule XXIII'!I37","v":0}]
["Sch XXIII","Interest Rates",null,"Int. Up - After Shock - Other - Liab. w/o Mgmt Action - Japan Yen",null,null,null,null,{"$f":"'Schedule XXIII'!I38","v":0}]
["Sch XXIII","Interest Rates",null,"Int. Up - After Shock - Other - Liab. w/o Mgmt Action - Canada Dollars",null,null,null,null,{"$f":"'Schedule XXIII'!I39","v":0}]
["Sch XXIII","Interest Rates",null,"Int. Up - After Shock - Other - Liab. w/o Mgmt Action - Swiss Francs",null,null,null,null,{"$f":"'Schedule XXIII'!I40","v":0}]
["Sch XXIII","Interest Rates",null,"Int. Up - After Shock - Other - Liab. w/o Mgmt Action - Australia Dollar",null,null,null,null,{"$f":"'Schedule XXIII'!I41","v":0}]
["Sch XXIII","Interest Rates",null,"Int. Up - After Shock - Other - Liab. w/o Mgmt Action - New Zealand Dollar",null,null,null,null,{"$f":"'Schedule XXIII'!I42","v":0}]
["Sch XXIII","Interest Rates",null,{"$f":"\"Int. Up - After Shock - Other - Liab. w/o Mgmt Action - \"&'Schedule XXIII'!$C$18","v":"Int. Up - After Shock - Other - Liab. w/o Mgmt Action - Other currency 1"},null,null,null,null,{"$f":"'Schedule XXIII'!I43","v":0}]
["Sch XXIII","Interest Rates",null,{"$f":"\"Int. Up - After Shock - Other - Liab. w/o Mgmt Action - \"&'Schedule XXIII'!$C$19","v":"Int. Up - After Shock - Other - Liab. w/o Mgmt Action - Other currency 2"},null,null,null,null,{"$f":"'Schedule XXIII'!I44","v":0}]
["Sch XXIII","Interest Rates",null,{"$f":"\"Int. Up - After Shock - Other - Liab. w/o Mgmt Action - \"&'Schedule XXIII'!$C$20","v":"Int. Up - After Shock - Other - Liab. w/o Mgmt Action - Other currency 3"},null,null,null,null,{"$f":"'Schedule XXIII'!I45","v":0}]
["Sch XXIII","Interest Rates",null,{"$f":"\"Int. Up - After Shock - Other - Liab. w/o Mgmt Action - \"&'Schedule XXIII'!$C$21","v":"Int. Up - After Shock - Other - Liab. w/o Mgmt Action - Other currency 4"},null,null,null,null,{"$f":"'Schedule XXIII'!I46","v":0}]
["Sch XXIII","Interest Rates",null,{"$f":"\"Int. Up - After Shock - Other - Liab. w/o Mgmt Action - \"&'Schedule XXIII'!$C$22","v":"Int. Up - After Shock - Other - Liab. w/o Mgmt Action - Other currency 5"},null,null,null,null,{"$f":"'Schedule XXIII'!I47","v":0}]
["Sch XXIII","Interest Rates",null,{"$f":"\"Int. Up - After Shock - Other - Liab. w/o Mgmt Action - \"&'Schedule XXIII'!$C$23","v":"Int. Up - After Shock - Other - Liab. w/o Mgmt Action - Other currency 6"},null,null,null,null,{"$f":"'Schedule XXIII'!I48","v":0}]
["Sch XXIII","Interest Rates",null,{"$f":"\"Int. Up - After Shock - Other - Liab. w/o Mgmt Action - \"&'Schedule XXIII'!$C$24","v":"Int. Up - After Shock - Other - Liab. w/o Mgmt Action - Other currency 7"},null,null,null,null,{"$f":"'Schedule XXIII'!I49","v":0}]
["Sch XXIII","Interest Rates",null,{"$f":"\"Int. Up - After Shock - Other - Liab. w/o Mgmt Action - \"&'Schedule XXIII'!$C$25","v":"Int. Up - After Shock - Other - Liab. w/o Mgmt Action - Other currency 8"},null,null,null,null,{"$f":"'Schedule XXIII'!I50","v":0}]
["Sch XXIII","Interest Rates",null,{"$f":"\"Int. Up - After Shock - Other - Liab. w/o Mgmt Action - \"&'Schedule XXIII'!$C$26","v":"Int. Up - After Shock - Other - Liab. w/o Mgmt Action - Other currency 9"},null,null,null,null,{"$f":"'Schedule XXIII'!I51","v":0}]
["Sch XXIII","Interest Rates",null,{"$f":"\"Int. Up - After Shock - Other - Liab. w/o Mgmt Action - \"&'Schedule XXIII'!$C$27","v":"Int. Up - After Shock - Other - Liab. w/o Mgmt Action - Other currency 10"},null,null,null,null,{"$f":"'Schedule XXIII'!I52","v":0}]
["Sch XXIII","Interest Rates",null,"Int. Up - After Shock - Other - Liab. w/o Mgmt Action - Total",null,null,null,null,{"$f":"'Schedule XXIII'!I53","v":0}]
["Sch XXIII","Interest Rates",null,"Int. Up - After Shock - Other - Liab. with Mgmt Action - United States Dollars",null,null,null,null,{"$f":"'Schedule XXIII'!K35","v":0}]
["Sch XXIII","Interest Rates",null,"Int. Up - After Shock - Other - Liab. with Mgmt Action - Euro",null,null,null,null,{"$f":"'Schedule XXIII'!K36","v":0}]
["Sch XXIII","Interest Rates",null,"Int. Up - After Shock - Other - Liab. with Mgmt Action - United Kingdom Pounds",null,null,null,null,{"$f":"'Schedule XXIII'!K37","v":0}]
["Sch XXIII","Interest Rates",null,"Int. Up - After Shock - Other - Liab. with Mgmt Action - Japan Yen",null,null,null,null,{"$f":"'Schedule XXIII'!K38","v":0}]
["Sch XXIII","Interest Rates",null,"Int. Up - After Shock - Other - Liab. with Mgmt Action - Canada Dollars",null,null,null,null,{"$f":"'Schedule XXIII'!K39","v":0}]
["Sch XXIII","Interest Rates",null,"Int. Up - After Shock - Other - Liab. with Mgmt Action - Swiss Francs",null,null,null,null,{"$f":"'Schedule XXIII'!K40","v":0}]
["Sch XXIII","Interest Rates",null,"Int. Up - After Shock - Other - Liab. with Mgmt Action - Australia Dollar",null,null,null,null,{"$f":"'Schedule XXIII'!K41","v":0}]
["Sch XXIII","Interest Rates",null,"Int. Up - After Shock - Other - Liab. with Mgmt Action - New Zealand Dollar",null,null,null,null,{"$f":"'Schedule XXIII'!K42","v":0}]
["Sch XXIII","Interest Rates",null,{"$f":"\"Int. Up - After Shock - Other - Liab. with Mgmt Action - \"&'Schedule XXIII'!$C$18","v":"Int. Up - After Shock - Other - Liab. with Mgmt Action - Other currency 1"},null,null,null,null,{"$f":"'Schedule XXIII'!K43","v":0}]
["Sch XXIII","Interest Rates",null,{"$f":"\"Int. Up - After Shock - Other - Liab. with Mgmt Action - \"&'Schedule XXIII'!$C$19","v":"Int. Up - After Shock - Other - Liab. with Mgmt Action - Other currency 2"},null,null,null,null,{"$f":"'Schedule XXIII'!K44","v":0}]
["Sch XXIII","Interest Rates",null,{"$f":"\"Int. Up - After Shock - Other - Liab. with Mgmt Action - \"&'Schedule XXIII'!$C$20","v":"Int. Up - After Shock - Other - Liab. with Mgmt Action - Other currency 3"},null,null,null,null,{"$f":"'Schedule XXIII'!K45","v":0}]
["Sch XXIII","Interest Rates",null,{"$f":"\"Int. Up - After Shock - Other - Liab. with Mgmt Action - \"&'Schedule XXIII'!$C$21","v":"Int. Up - After Shock - Other - Liab. with Mgmt Action - Other currency 4"},null,null,null,null,{"$f":"'Schedule XXIII'!K46","v":0}]
["Sch XXIII","Interest Rates",null,{"$f":"\"Int. Up - After Shock - Other - Liab. with Mgmt Action - \"&'Schedule XXIII'!$C$22","v":"Int. Up - After Shock - Other - Liab. with Mgmt Action - Other currency 5"},null,null,null,null,{"$f":"'Schedule XXIII'!K47","v":0}]
["Sch XXIII","Interest Rates",null,{"$f":"\"Int. Up - After Shock - Other - Liab. with Mgmt Action - \"&'Schedule XXIII'!$C$23","v":"Int. Up - After Shock - Other - Liab. with Mgmt Action - Other currency 6"},null,null,null,null,{"$f":"'Schedule XXIII'!K48","v":0}]
["Sch XXIII","Interest Rates",null,{"$f":"\"Int. Up - After Shock - Other - Liab. with Mgmt Action - \"&'Schedule XXIII'!$C$24","v":"Int. Up - After Shock - Other - Liab. with Mgmt Action - Other currency 7"},null,null,null,null,{"$f":"'Schedule XXIII'!K49","v":0}]
["Sch XXIII","Interest Rates",null,{"$f":"\"Int. Up - After Shock - Other - Liab. with Mgmt Action - \"&'Schedule XXIII'!$C$25","v":"Int. Up - After Shock - Other - Liab. with Mgmt Action - Other currency 8"},null,null,null,null,{"$f":"'Schedule XXIII'!K50","v":0}]
["Sch XXIII","Interest Rates",null,{"$f":"\"Int. Up - After Shock - Other - Liab. with Mgmt Action - \"&'Schedule XXIII'!$C$26","v":"Int. Up - After Shock - Other - Liab. with Mgmt Action - Other currency 9"},null,null,null,null,{"$f":"'Schedule XXIII'!K51","v":0}]
["Sch XXIII","Interest Rates",null,{"$f":"\"Int. Up - After Shock - Other - Liab. with Mgmt Action - \"&'Schedule XXIII'!$C$27","v":"Int. Up - After Shock - Other - Liab. with Mgmt Action - Other currency 10"},null,null,null,null,{"$f":"'Schedule XXIII'!K52","v":0}]
["Sch XXIII","Interest Rates",null,"Int. Up - After Shock - Other - Liab. with Mgmt Action - Total",null,null,null,null,{"$f":"'Schedule XXIII'!K53","v":0}]
["Sch XXIII","Interest Rates",null,"Int. Up - Before Shock - Derivatives - Qualifying Assets - United States Dollars",null,null,null,null,{"$f":"'Schedule XXIII'!M35","v":0}]
["Sch XXIII","Interest Rates",null,"Int. Up - Before Shock - Derivatives - Qualifying Assets - Euro",null,null,null,null,{"$f":"'Schedule XXIII'!M36","v":0}]
["Sch XXIII","Interest Rates",null,"Int. Up - Before Shock - Derivatives - Qualifying Assets - United Kingdom Pounds",null,null,null,null,{"$f":"'Schedule XXIII'!M37","v":0}]
["Sch XXIII","Interest Rates",null,"Int. Up - Before Shock - Derivatives - Qualifying Assets - Japan Yen",null,null,null,null,{"$f":"'Schedule XXIII'!M38","v":0}]
["Sch XXIII","Interest Rates",null,"Int. Up - Before Shock - Derivatives - Qualifying Assets - Canada Dollars",null,null,null,null,{"$f":"'Schedule XXIII'!M39","v":0}]
["Sch XXIII","Interest Rates",null,"Int. Up - Before Shock - Derivatives - Qualifying Assets - Swiss Francs",null,null,null,null,{"$f":"'Schedule XXIII'!M40","v":0}]
["Sch XXIII","Interest Rates",null,"Int. Up - Before Shock - Derivatives - Qualifying Assets - Australia Dollar",null,null,null,null,{"$f":"'Schedule XXIII'!M41","v":0}]
["Sch XXIII","Interest Rates",null,"Int. Up - Before Shock - Derivatives - Qualifying Assets - New Zealand Dollar",null,null,null,null,{"$f":"'Schedule XXIII'!M42","v":0}]
["Sch XXIII","Interest Rates",null,{"$f":"\"Int. Up - Before Shock - Derivatives - Qualifying Assets - \"&'Schedule XXIII'!$C$18","v":"Int. Up - Before Shock - Derivatives - Qualifying Assets - Other currency 1"},null,null,null,null,{"$f":"'Schedule XXIII'!M43","v":0}]
["Sch XXIII","Interest Rates",null,{"$f":"\"Int. Up - Before Shock - Derivatives - Qualifying Assets - \"&'Schedule XXIII'!$C$19","v":"Int. Up - Before Shock - Derivatives - Qualifying Assets - Other currency 2"},null,null,null,null,{"$f":"'Schedule XXIII'!M44","v":0}]
["Sch XXIII","Interest Rates",null,{"$f":"\"Int. Up - Before Shock - Derivatives - Qualifying Assets - \"&'Schedule XXIII'!$C$20","v":"Int. Up - Before Shock - Derivatives - Qualifying Assets - Other currency 3"},null,null,null,null,{"$f":"'Schedule XXIII'!M45","v":0}]
["Sch XXIII","Interest Rates",null,{"$f":"\"Int. Up - Before Shock - Derivatives - Qualifying Assets - \"&'Schedule XXIII'!$C$21","v":"Int. Up - Before Shock - Derivatives - Qualifying Assets - Other currency 4"},null,null,null,null,{"$f":"'Schedule XXIII'!M46","v":0}]
["Sch XXIII","Interest Rates",null,{"$f":"\"Int. Up - Before Shock - Derivatives - Qualifying Assets - \"&'Schedule XXIII'!$C$22","v":"Int. Up - Before Shock - Derivatives - Qualifying Assets - Other currency 5"},null,null,null,null,{"$f":"'Schedule XXIII'!M47","v":0}]
["Sch XXIII","Interest Rates",null,{"$f":"\"Int. Up - Before Shock - Derivatives - Qualifying Assets - \"&'Schedule XXIII'!$C$23","v":"Int. Up - Before Shock - Derivatives - Qualifying Assets - Other currency 6"},null,null,null,null,{"$f":"'Schedule XXIII'!M48","v":0}]
["Sch XXIII","Interest Rates",null,{"$f":"\"Int. Up - Before Shock - Derivatives - Qualifying Assets - \"&'Schedule XXIII'!$C$24","v":"Int. Up - Before Shock - Derivatives - Qualifying Assets - Other currency 7"},null,null,null,null,{"$f":"'Schedule XXIII'!M49","v":0}]
["Sch XXIII","Interest Rates",null,{"$f":"\"Int. Up - Before Shock - Derivatives - Qualifying Assets - \"&'Schedule XXIII'!$C$25","v":"Int. Up - Before Shock - Derivatives - Qualifying Assets - Other currency 8"},null,null,null,null,{"$f":"'Schedule XXIII'!M50","v":0}]
["Sch XXIII","Interest Rates",null,{"$f":"\"Int. Up - Before Shock - Derivatives - Qualifying Assets - \"&'Schedule XXIII'!$C$26","v":"Int. Up - Before Shock - Derivatives - Qualifying Assets - Other currency 9"},null,null,null,null,{"$f":"'Schedule XXIII'!M51","v":0}]
["Sch XXIII","Interest Rates",null,{"$f":"\"Int. Up - Before Shock - Derivatives - Qualifying Assets - \"&'Schedule XXIII'!$C$27","v":"Int. Up - Before Shock - Derivatives - Qualifying Assets - Other currency 10"},null,null,null,null,{"$f":"'Schedule XXIII'!M52","v":0}]
["Sch XXIII","Interest Rates",null,"Int. Up - Before Shock - Derivatives - Qualifying Assets - Total",null,null,null,null,{"$f":"'Schedule XXIII'!M53","v":0}]
["Sch XXIII","Interest Rates",null,"Int. Up - After Shock - Derivatives - Qualifying Assets - United States Dollars",null,null,null,null,{"$f":"'Schedule XXIII'!N35","v":0}]
["Sch XXIII","Interest Rates",null,"Int. Up - After Shock - Derivatives - Qualifying Assets - Euro",null,null,null,null,{"$f":"'Schedule XXIII'!N36","v":0}]
["Sch XXIII","Interest Rates",null,"Int. Up - After Shock - Derivatives - Qualifying Assets - United Kingdom Pounds",null,null,null,null,{"$f":"'Schedule XXIII'!N37","v":0}]
["Sch XXIII","Interest Rates",null,"Int. Up - After Shock - Derivatives - Qualifying Assets - Japan Yen",null,null,null,null,{"$f":"'Schedule XXIII'!N38","v":0}]
["Sch XXIII","Interest Rates",null,"Int. Up - After Shock - Derivatives - Qualifying Assets - Canada Dollars",null,null,null,null,{"$f":"'Schedule XXIII'!N39","v":0}]
["Sch XXIII","Interest Rates",null,"Int. Up - After Shock - Derivatives - Qualifying Assets - Swiss Francs",null,null,null,null,{"$f":"'Schedule XXIII'!N40","v":0}]
["Sch XXIII","Interest Rates",null,"Int. Up - After Shock - Derivatives - Qualifying Assets - Australia Dollar",null,null,null,null,{"$f":"'Schedule XXIII'!N41","v":0}]
["Sch XXIII","Interest Rates",null,"Int. Up - After Shock - Derivatives - Qualifying Assets - New Zealand Dollar",null,null,null,null,{"$f":"'Schedule XXIII'!N42","v":0}]
["Sch XXIII","Interest Rates",null,{"$f":"\"Int. Up - After Shock - Derivatives - Qualifying Assets - \"&'Schedule XXIII'!$C$18","v":"Int. Up - After Shock - Derivatives - Qualifying Assets - Other currency 1"},null,null,null,null,{"$f":"'Schedule XXIII'!N43","v":0}]
["Sch XXIII","Interest Rates",null,{"$f":"\"Int. Up - After Shock - Derivatives - Qualifying Assets - \"&'Schedule XXIII'!$C$19","v":"Int. Up - After Shock - Derivatives - Qualifying Assets - Other currency 2"},null,null,null,null,{"$f":"'Schedule XXIII'!N44","v":0}]
["Sch XXIII","Interest Rates",null,{"$f":"\"Int. Up - After Shock - Derivatives - Qualifying Assets - \"&'Schedule XXIII'!$C$20","v":"Int. Up - After Shock - Derivatives - Qualifying Assets - Other currency 3"},null,null,null,null,{"$f":"'Schedule XXIII'!N45","v":0}]
["Sch XXIII","Interest Rates",null,{"$f":"\"Int. Up - After Shock - Derivatives - Qualifying Assets - \"&'Schedule XXIII'!$C$21","v":"Int. Up - After Shock - Derivatives - Qualifying Assets - Other currency 4"},null,null,null,null,{"$f":"'Schedule XXIII'!N46","v":0}]
["Sch XXIII","Interest Rates",null,{"$f":"\"Int. Up - After Shock - Derivatives - Qualifying Assets - \"&'Schedule XXIII'!$C$22","v":"Int. Up - After Shock - Derivatives - Qualifying Assets - Other currency 5"},null,null,null,null,{"$f":"'Schedule XXIII'!N47","v":0}]
["Sch XXIII","Interest Rates",null,{"$f":"\"Int. Up - After Shock - Derivatives - Qualifying Assets - \"&'Schedule XXIII'!$C$23","v":"Int. Up - After Shock - Derivatives - Qualifying Assets - Other currency 6"},null,null,null,null,{"$f":"'Schedule XXIII'!N48","v":0}]
["Sch XXIII","Interest Rates",null,{"$f":"\"Int. Up - After Shock - Derivatives - Qualifying Assets - \"&'Schedule XXIII'!$C$24","v":"Int. Up - After Shock - Derivatives - Qualifying Assets - Other currency 7"},null,null,null,null,{"$f":"'Schedule XXIII'!N49","v":0}]
["Sch XXIII","Interest Rates",null,{"$f":"\"Int. Up - After Shock - Derivatives - Qualifying Assets - \"&'Schedule XXIII'!$C$25","v":"Int. Up - After Shock - Derivatives - Qualifying Assets - Other currency 8"},null,null,null,null,{"$f":"'Schedule XXIII'!N50","v":0}]
["Sch XXIII","Interest Rates",null,{"$f":"\"Int. Up - After Shock - Derivatives - Qualifying Assets - \"&'Schedule XXIII'!$C$26","v":"Int. Up - After Shock - Derivatives - Qualifying Assets - Other currency 9"},null,null,null,null,{"$f":"'Schedule XXIII'!N51","v":0}]
["Sch XXIII","Interest Rates",null,{"$f":"\"Int. Up - After Shock - Derivatives - Qualifying Assets - \"&'Schedule XXIII'!$C$27","v":"Int. Up - After Shock - Derivatives - Qualifying Assets - Other currency 10"},null,null,null,null,{"$f":"'Schedule XXIII'!N52","v":0}]
["Sch XXIII","Interest Rates",null,"Int. Up - After Shock - Derivatives - Qualifying Assets - Total",null,null,null,null,{"$f":"'Schedule XXIII'!N53","v":0}]
["Sch XXIII","Interest Rates",null,"Int. Up - Before Shock - Derivatives - Not Qualifying Assets - United States Dollars",null,null,null,null,{"$f":"'Schedule XXIII'!P35","v":0}]
["Sch XXIII","Interest Rates",null,"Int. Up - Before Shock - Derivatives - Not Qualifying Assets - Euro",null,null,null,null,{"$f":"'Schedule XXIII'!P36","v":0}]
["Sch XXIII","Interest Rates",null,"Int. Up - Before Shock - Derivatives - Not Qualifying Assets - United Kingdom Pounds",null,null,null,null,{"$f":"'Schedule XXIII'!P37","v":0}]
["Sch XXIII","Interest Rates",null,"Int. Up - Before Shock - Derivatives - Not Qualifying Assets - Japan Yen",null,null,null,null,{"$f":"'Schedule XXIII'!P38","v":0}]
["Sch XXIII","Interest Rates",null,"Int. Up - Before Shock - Derivatives - Not Qualifying Assets - Canada Dollars",null,null,null,null,{"$f":"'Schedule XXIII'!P39","v":0}]
["Sch XXIII","Interest Rates",null,"Int. Up - Before Shock - Derivatives - Not Qualifying Assets - Swiss Francs",null,null,null,null,{"$f":"'Schedule XXIII'!P40","v":0}]
["Sch XXIII","Interest Rates",null,"Int. Up - Before Shock - Derivatives - Not Qualifying Assets - Australia Dollar",null,null,null,null,{"$f":"'Schedule XXIII'!P41","v":0}]
["Sch XXIII","Interest Rates",null,"Int. Up - Before Shock - Derivatives - Not Qualifying Assets - New Zealand Dollar",null,null,null,null,{"$f":"'Schedule XXIII'!P42","v":0}]
["Sch XXIII","Interest Rates",null,{"$f":"\"Int. Up - Before Shock - Derivatives - Not Qualifying Assets - \"&'Schedule XXIII'!$C$18","v":"Int. Up - Before Shock - Derivatives - Not Qualifying Assets - Other currency 1"},null,null,null,null,{"$f":"'Schedule XXIII'!P43","v":0}]
["Sch XXIII","Interest Rates",null,{"$f":"\"Int. Up - Before Shock - Derivatives - Not Qualifying Assets - \"&'Schedule XXIII'!$C$19","v":"Int. Up - Before Shock - Derivatives - Not Qualifying Assets - Other currency 2"},null,null,null,null,{"$f":"'Schedule XXIII'!P44","v":0}]
["Sch XXIII","Interest Rates",null,{"$f":"\"Int. Up - Before Shock - Derivatives - Not Qualifying Assets - \"&'Schedule XXIII'!$C$20","v":"Int. Up - Before Shock - Derivatives - Not Qualifying Assets - Other currency 3"},null,null,null,null,{"$f":"'Schedule XXIII'!P45","v":0}]
["Sch XXIII","Interest Rates",null,{"$f":"\"Int. Up - Before Shock - Derivatives - Not Qualifying Assets - \"&'Schedule XXIII'!$C$21","v":"Int. Up - Before Shock - Derivatives - Not Qualifying Assets - Other currency 4"},null,null,null,null,{"$f":"'Schedule XXIII'!P46","v":0}]
["Sch XXIII","Interest Rates",null,{"$f":"\"Int. Up - Before Shock - Derivatives - Not Qualifying Assets - \"&'Schedule XXIII'!$C$22","v":"Int. Up - Before Shock - Derivatives - Not Qualifying Assets - Other currency 5"},null,null,null,null,{"$f":"'Schedule XXIII'!P47","v":0}]
["Sch XXIII","Interest Rates",null,{"$f":"\"Int. Up - Before Shock - Derivatives - Not Qualifying Assets - \"&'Schedule XXIII'!$C$23","v":"Int. Up - Before Shock - Derivatives - Not Qualifying Assets - Other currency 6"},null,null,null,null,{"$f":"'Schedule XXIII'!P48","v":0}]
["Sch XXIII","Interest Rates",null,{"$f":"\"Int. Up - Before Shock - Derivatives - Not Qualifying Assets - \"&'Schedule XXIII'!$C$24","v":"Int. Up - Before Shock - Derivatives - Not Qualifying Assets - Other currency 7"},null,null,null,null,{"$f":"'Schedule XXIII'!P49","v":0}]
["Sch XXIII","Interest Rates",null,{"$f":"\"Int. Up - Before Shock - Derivatives - Not Qualifying Assets - \"&'Schedule XXIII'!$C$25","v":"Int. Up - Before Shock - Derivatives - Not Qualifying Assets - Other currency 8"},null,null,null,null,{"$f":"'Schedule XXIII'!P50","v":0}]
["Sch XXIII","Interest Rates",null,{"$f":"\"Int. Up - Before Shock - Derivatives - Not Qualifying Assets - \"&'Schedule XXIII'!$C$26","v":"Int. Up - Before Shock - Derivatives - Not Qualifying Assets - Other currency 9"},null,null,null,null,{"$f":"'Schedule XXIII'!P51","v":0}]
["Sch XXIII","Interest Rates",null,{"$f":"\"Int. Up - Before Shock - Derivatives - Not Qualifying Assets - \"&'Schedule XXIII'!$C$27","v":"Int. Up - Before Shock - Derivatives - Not Qualifying Assets - Other currency 10"},null,null,null,null,{"$f":"'Schedule XXIII'!P52","v":0}]
["Sch XXIII","Interest Rates",null,"Int. Up - Before Shock - Derivatives - Not Qualifying Assets - Total",null,null,null,null,{"$f":"'Schedule XXIII'!P53","v":0}]
["Sch XXIII","Interest Rates",null,"Int. Up - After Shock - Derivatives - Not Qualifying Assets - United States Dollars",null,null,null,null,{"$f":"'Schedule XXIII'!Q35","v":0}]
["Sch XXIII","Interest Rates",null,"Int. Up - After Shock - Derivatives - Not Qualifying Assets - Euro",null,null,null,null,{"$f":"'Schedule XXIII'!Q36","v":0}]
["Sch XXIII","Interest Rates",null,"Int. Up - After Shock - Derivatives - Not Qualifying Assets - United Kingdom Pounds",null,null,null,null,{"$f":"'Schedule XXIII'!Q37","v":0}]
["Sch XXIII","Interest Rates",null,"Int. Up - After Shock - Derivatives - Not Qualifying Assets - Japan Yen",null,null,null,null,{"$f":"'Schedule XXIII'!Q38","v":0}]
["Sch XXIII","Interest Rates",null,"Int. Up - After Shock - Derivatives - Not Qualifying Assets - Canada Dollars",null,null,null,null,{"$f":"'Schedule XXIII'!Q39","v":0}]
["Sch XXIII","Interest Rates",null,"Int. Up - After Shock - Derivatives - Not Qualifying Assets - Swiss Francs",null,null,null,null,{"$f":"'Schedule XXIII'!Q40","v":0}]
["Sch XXIII","Interest Rates",null,"Int. Up - After Shock - Derivatives - Not Qualifying Assets - Australia Dollar",null,null,null,null,{"$f":"'Schedule XXIII'!Q41","v":0}]
["Sch XXIII","Interest Rates",null,"Int. Up - After Shock - Derivatives - Not Qualifying Assets - New Zealand Dollar",null,null,null,null,{"$f":"'Schedule XXIII'!Q42","v":0}]
["Sch XXIII","Interest Rates",null,{"$f":"\"Int. Up - After Shock - Derivatives - Not Qualifying Assets - \"&'Schedule XXIII'!$C$18","v":"Int. Up - After Shock - Derivatives - Not Qualifying Assets - Other currency 1"},null,null,null,null,{"$f":"'Schedule XXIII'!Q43","v":0}]
["Sch XXIII","Interest Rates",null,{"$f":"\"Int. Up - After Shock - Derivatives - Not Qualifying Assets - \"&'Schedule XXIII'!$C$19","v":"Int. Up - After Shock - Derivatives - Not Qualifying Assets - Other currency 2"},null,null,null,null,{"$f":"'Schedule XXIII'!Q44","v":0}]
["Sch XXIII","Interest Rates",null,{"$f":"\"Int. Up - After Shock - Derivatives - Not Qualifying Assets - \"&'Schedule XXIII'!$C$20","v":"Int. Up - After Shock - Derivatives - Not Qualifying Assets - Other currency 3"},null,null,null,null,{"$f":"'Schedule XXIII'!Q45","v":0}]
["Sch XXIII","Interest Rates",null,{"$f":"\"Int. Up - After Shock - Derivatives - Not Qualifying Assets - \"&'Schedule XXIII'!$C$21","v":"Int. Up - After Shock - Derivatives - Not Qualifying Assets - Other currency 4"},null,null,null,null,{"$f":"'Schedule XXIII'!Q46","v":0}]
["Sch XXIII","Interest Rates",null,{"$f":"\"Int. Up - After Shock - Derivatives - Not Qualifying Assets - \"&'Schedule XXIII'!$C$22","v":"Int. Up - After Shock - Derivatives - Not Qualifying Assets - Other currency 5"},null,null,null,null,{"$f":"'Schedule XXIII'!Q47","v":0}]
["Sch XXIII","Interest Rates",null,{"$f":"\"Int. Up - After Shock - Derivatives - Not Qualifying Assets - \"&'Schedule XXIII'!$C$23","v":"Int. Up - After Shock - Derivatives - Not Qualifying Assets - Other currency 6"},null,null,null,null,{"$f":"'Schedule XXIII'!Q48","v":0}]
["Sch XXIII","Interest Rates",null,{"$f":"\"Int. Up - After Shock - Derivatives - Not Qualifying Assets - \"&'Schedule XXIII'!$C$24","v":"Int. Up - After Shock - Derivatives - Not Qualifying Assets - Other currency 7"},null,null,null,null,{"$f":"'Schedule XXIII'!Q49","v":0}]
["Sch XXIII","Interest Rates",null,{"$f":"\"Int. Up - After Shock - Derivatives - Not Qualifying Assets - \"&'Schedule XXIII'!$C$25","v":"Int. Up - After Shock - Derivatives - Not Qualifying Assets - Other currency 8"},null,null,null,null,{"$f":"'Schedule XXIII'!Q50","v":0}]
["Sch XXIII","Interest Rates",null,{"$f":"\"Int. Up - After Shock - Derivatives - Not Qualifying Assets - \"&'Schedule XXIII'!$C$26","v":"Int. Up - After Shock - Derivatives - Not Qualifying Assets - Other currency 9"},null,null,null,null,{"$f":"'Schedule XXIII'!Q51","v":0}]
["Sch XXIII","Interest Rates",null,{"$f":"\"Int. Up - After Shock - Derivatives - Not Qualifying Assets - \"&'Schedule XXIII'!$C$27","v":"Int. Up - After Shock - Derivatives - Not Qualifying Assets - Other currency 10"},null,null,null,null,{"$f":"'Schedule XXIII'!Q52","v":0}]
["Sch XXIII","Interest Rates",null,"Int. Up - After Shock - Derivatives - Not Qualifying Assets - Total",null,null,null,null,{"$f":"'Schedule XXIII'!Q53","v":0}]
["Sch XXIII","Interest Rates",null,"Int. Up - Before Shock - Derivatives - Liab. w/o Mgmt Action - United States Dollars",null,null,null,null,{"$f":"'Schedule XXIII'!S35","v":0}]
["Sch XXIII","Interest Rates",null,"Int. Up - Before Shock - Derivatives - Liab. w/o Mgmt Action - Euro",null,null,null,null,{"$f":"'Schedule XXIII'!S36","v":0}]
["Sch XXIII","Interest Rates",null,"Int. Up - Before Shock - Derivatives - Liab. w/o Mgmt Action - United Kingdom Pounds",null,null,null,null,{"$f":"'Schedule XXIII'!S37","v":0}]
["Sch XXIII","Interest Rates",null,"Int. Up - Before Shock - Derivatives - Liab. w/o Mgmt Action - Japan Yen",null,null,null,null,{"$f":"'Schedule XXIII'!S38","v":0}]
["Sch XXIII","Interest Rates",null,"Int. Up - Before Shock - Derivatives - Liab. w/o Mgmt Action - Canada Dollars",null,null,null,null,{"$f":"'Schedule XXIII'!S39","v":0}]
["Sch XXIII","Interest Rates",null,"Int. Up - Before Shock - Derivatives - Liab. w/o Mgmt Action - Swiss Francs",null,null,null,null,{"$f":"'Schedule XXIII'!S40","v":0}]
["Sch XXIII","Interest Rates",null,"Int. Up - Before Shock - Derivatives - Liab. w/o Mgmt Action - Australia Dollar",null,null,null,null,{"$f":"'Schedule XXIII'!S41","v":0}]
["Sch XXIII","Interest Rates",null,"Int. Up - Before Shock - Derivatives - Liab. w/o Mgmt Action - New Zealand Dollar",null,null,null,null,{"$f":"'Schedule XXIII'!S42","v":0}]
["Sch XXIII","Interest Rates",null,{"$f":"\"Int. Up - Before Shock - Derivatives - Liab. w/o Mgmt Action - \"&'Schedule XXIII'!$C$18","v":"Int. Up - Before Shock - Derivatives - Liab. w/o Mgmt Action - Other currency 1"},null,null,null,null,{"$f":"'Schedule XXIII'!S43","v":0}]
["Sch XXIII","Interest Rates",null,{"$f":"\"Int. Up - Before Shock - Derivatives - Liab. w/o Mgmt Action - \"&'Schedule XXIII'!$C$19","v":"Int. Up - Before Shock - Derivatives - Liab. w/o Mgmt Action - Other currency 2"},null,null,null,null,{"$f":"'Schedule XXIII'!S44","v":0}]
["Sch XXIII","Interest Rates",null,{"$f":"\"Int. Up - Before Shock - Derivatives - Liab. w/o Mgmt Action - \"&'Schedule XXIII'!$C$20","v":"Int. Up - Before Shock - Derivatives - Liab. w/o Mgmt Action - Other currency 3"},null,null,null,null,{"$f":"'Schedule XXIII'!S45","v":0}]
["Sch XXIII","Interest Rates",null,{"$f":"\"Int. Up - Before Shock - Derivatives - Liab. w/o Mgmt Action - \"&'Schedule XXIII'!$C$21","v":"Int. Up - Before Shock - Derivatives - Liab. w/o Mgmt Action - Other currency 4"},null,null,null,null,{"$f":"'Schedule XXIII'!S46","v":0}]
["Sch XXIII","Interest Rates",null,{"$f":"\"Int. Up - Before Shock - Derivatives - Liab. w/o Mgmt Action - \"&'Schedule XXIII'!$C$22","v":"Int. Up - Before Shock - Derivatives - Liab. w/o Mgmt Action - Other currency 5"},null,null,null,null,{"$f":"'Schedule XXIII'!S47","v":0}]
["Sch XXIII","Interest Rates",null,{"$f":"\"Int. Up - Before Shock - Derivatives - Liab. w/o Mgmt Action - \"&'Schedule XXIII'!$C$23","v":"Int. Up - Before Shock - Derivatives - Liab. w/o Mgmt Action - Other currency 6"},null,null,null,null,{"$f":"'Schedule XXIII'!S48","v":0}]
["Sch XXIII","Interest Rates",null,{"$f":"\"Int. Up - Before Shock - Derivatives - Liab. w/o Mgmt Action - \"&'Schedule XXIII'!$C$24","v":"Int. Up - Before Shock - Derivatives - Liab. w/o Mgmt Action - Other currency 7"},null,null,null,null,{"$f":"'Schedule XXIII'!S49","v":0}]
["Sch XXIII","Interest Rates",null,{"$f":"\"Int. Up - Before Shock - Derivatives - Liab. w/o Mgmt Action - \"&'Schedule XXIII'!$C$25","v":"Int. Up - Before Shock - Derivatives - Liab. w/o Mgmt Action - Other currency 8"},null,null,null,null,{"$f":"'Schedule XXIII'!S50","v":0}]
["Sch XXIII","Interest Rates",null,{"$f":"\"Int. Up - Before Shock - Derivatives - Liab. w/o Mgmt Action - \"&'Schedule XXIII'!$C$26","v":"Int. Up - Before Shock - Derivatives - Liab. w/o Mgmt Action - Other currency 9"},null,null,null,null,{"$f":"'Schedule XXIII'!S51","v":0}]
["Sch XXIII","Interest Rates",null,{"$f":"\"Int. Up - Before Shock - Derivatives - Liab. w/o Mgmt Action - \"&'Schedule XXIII'!$C$27","v":"Int. Up - Before Shock - Derivatives - Liab. w/o Mgmt Action - Other currency 10"},null,null,null,null,{"$f":"'Schedule XXIII'!S52","v":0}]
["Sch XXIII","Interest Rates",null,"Int. Up - Before Shock - Derivatives - Liab. w/o Mgmt Action - Total",null,null,null,null,{"$f":"'Schedule XXIII'!S53","v":0}]
["Sch XXIII","Interest Rates",null,"Int. Up - After Shock - Derivatives - Liab. w/o Mgmt Action - United States Dollars",null,null,null,null,{"$f":"'Schedule XXIII'!T35","v":0}]
["Sch XXIII","Interest Rates",null,"Int. Up - After Shock - Derivatives - Liab. w/o Mgmt Action - Euro",null,null,null,null,{"$f":"'Schedule XXIII'!T36","v":0}]
["Sch XXIII","Interest Rates",null,"Int. Up - After Shock - Derivatives - Liab. w/o Mgmt Action - United Kingdom Pounds",null,null,null,null,{"$f":"'Schedule XXIII'!T37","v":0}]
["Sch XXIII","Interest Rates",null,"Int. Up - After Shock - Derivatives - Liab. w/o Mgmt Action - Japan Yen",null,null,null,null,{"$f":"'Schedule XXIII'!T38","v":0}]
["Sch XXIII","Interest Rates",null,"Int. Up - After Shock - Derivatives - Liab. w/o Mgmt Action - Canada Dollars",null,null,null,null,{"$f":"'Schedule XXIII'!T39","v":0}]
["Sch XXIII","Interest Rates",null,"Int. Up - After Shock - Derivatives - Liab. w/o Mgmt Action - Swiss Francs",null,null,null,null,{"$f":"'Schedule XXIII'!T40","v":0}]
["Sch XXIII","Interest Rates",null,"Int. Up - After Shock - Derivatives - Liab. w/o Mgmt Action - Australia Dollar",null,null,null,null,{"$f":"'Schedule XXIII'!T41","v":0}]
["Sch XXIII","Interest Rates",null,"Int. Up - After Shock - Derivatives - Liab. w/o Mgmt Action - New Zealand Dollar",null,null,null,null,{"$f":"'Schedule XXIII'!T42","v":0}]
["Sch XXIII","Interest Rates",null,{"$f":"\"Int. Up - After Shock - Derivatives - Liab. w/o Mgmt Action - \"&'Schedule XXIII'!$C$18","v":"Int. Up - After Shock - Derivatives - Liab. w/o Mgmt Action - Other currency 1"},null,null,null,null,{"$f":"'Schedule XXIII'!T43","v":0}]
["Sch XXIII","Interest Rates",null,{"$f":"\"Int. Up - After Shock - Derivatives - Liab. w/o Mgmt Action - \"&'Schedule XXIII'!$C$19","v":"Int. Up - After Shock - Derivatives - Liab. w/o Mgmt Action - Other currency 2"},null,null,null,null,{"$f":"'Schedule XXIII'!T44","v":0}]
["Sch XXIII","Interest Rates",null,{"$f":"\"Int. Up - After Shock - Derivatives - Liab. w/o Mgmt Action - \"&'Schedule XXIII'!$C$20","v":"Int. Up - After Shock - Derivatives - Liab. w/o Mgmt Action - Other currency 3"},null,null,null,null,{"$f":"'Schedule XXIII'!T45","v":0}]
["Sch XXIII","Interest Rates",null,{"$f":"\"Int. Up - After Shock - Derivatives - Liab. w/o Mgmt Action - \"&'Schedule XXIII'!$C$21","v":"Int. Up - After Shock - Derivatives - Liab. w/o Mgmt Action - Other currency 4"},null,null,null,null,{"$f":"'Schedule XXIII'!T46","v":0}]
["Sch XXIII","Interest Rates",null,{"$f":"\"Int. Up - After Shock - Derivatives - Liab. w/o Mgmt Action - \"&'Schedule XXIII'!$C$22","v":"Int. Up - After Shock - Derivatives - Liab. w/o Mgmt Action - Other currency 5"},null,null,null,null,{"$f":"'Schedule XXIII'!T47","v":0}]
["Sch XXIII","Interest Rates",null,{"$f":"\"Int. Up - After Shock - Derivatives - Liab. w/o Mgmt Action - \"&'Schedule XXIII'!$C$23","v":"Int. Up - After Shock - Derivatives - Liab. w/o Mgmt Action - Other currency 6"},null,null,null,null,{"$f":"'Schedule XXIII'!T48","v":0}]
["Sch XXIII","Interest Rates",null,{"$f":"\"Int. Up - After Shock - Derivatives - Liab. w/o Mgmt Action - \"&'Schedule XXIII'!$C$24","v":"Int. Up - After Shock - Derivatives - Liab. w/o Mgmt Action - Other currency 7"},null,null,null,null,{"$f":"'Schedule XXIII'!T49","v":0}]
["Sch XXIII","Interest Rates",null,{"$f":"\"Int. Up - After Shock - Derivatives - Liab. w/o Mgmt Action - \"&'Schedule XXIII'!$C$25","v":"Int. Up - After Shock - Derivatives - Liab. w/o Mgmt Action - Other currency 8"},null,null,null,null,{"$f":"'Schedule XXIII'!T50","v":0}]
["Sch XXIII","Interest Rates",null,{"$f":"\"Int. Up - After Shock - Derivatives - Liab. w/o Mgmt Action - \"&'Schedule XXIII'!$C$26","v":"Int. Up - After Shock - Derivatives - Liab. w/o Mgmt Action - Other currency 9"},null,null,null,null,{"$f":"'Schedule XXIII'!T51","v":0}]
["Sch XXIII","Interest Rates",null,{"$f":"\"Int. Up - After Shock - Derivatives - Liab. w/o Mgmt Action - \"&'Schedule XXIII'!$C$27","v":"Int. Up - After Shock - Derivatives - Liab. w/o Mgmt Action - Other currency 10"},null,null,null,null,{"$f":"'Schedule XXIII'!T52","v":0}]
["Sch XXIII","Interest Rates",null,"Int. Up - After Shock - Derivatives - Liab. w/o Mgmt Action - Total",null,null,null,null,{"$f":"'Schedule XXIII'!T53","v":0}]
["Sch XXIII","Interest Rates",null,"Int. Up - After Shock - Derivatives - Liab. with Mgmt Action - United States Dollars",null,null,null,null,{"$f":"'Schedule XXIII'!V35","v":0}]
["Sch XXIII","Interest Rates",null,"Int. Up - After Shock - Derivatives - Liab. with Mgmt Action - Euro",null,null,null,null,{"$f":"'Schedule XXIII'!V36","v":0}]
["Sch XXIII","Interest Rates",null,"Int. Up - After Shock - Derivatives - Liab. with Mgmt Action - United Kingdom Pounds",null,null,null,null,{"$f":"'Schedule XXIII'!V37","v":0}]
["Sch XXIII","Interest Rates",null,"Int. Up - After Shock - Derivatives - Liab. with Mgmt Action - Japan Yen",null,null,null,null,{"$f":"'Schedule XXIII'!V38","v":0}]
["Sch XXIII","Interest Rates",null,"Int. Up - After Shock - Derivatives - Liab. with Mgmt Action - Canada Dollars",null,null,null,null,{"$f":"'Schedule XXIII'!V39","v":0}]
["Sch XXIII","Interest Rates",null,"Int. Up - After Shock - Derivatives - Liab. with Mgmt Action - Swiss Francs",null,null,null,null,{"$f":"'Schedule XXIII'!V40","v":0}]
["Sch XXIII","Interest Rates",null,"Int. Up - After Shock - Derivatives - Liab. with Mgmt Action - Australia Dollar",null,null,null,null,{"$f":"'Schedule XXIII'!V41","v":0}]
["Sch XXIII","Interest Rates",null,"Int. Up - After Shock - Derivatives - Liab. with Mgmt Action - New Zealand Dollar",null,null,null,null,{"$f":"'Schedule XXIII'!V42","v":0}]
["Sch XXIII","Interest Rates",null,{"$f":"\"Int. Up - After Shock - Derivatives - Liab. with Mgmt Action - \"&'Schedule XXIII'!$C$18","v":"Int. Up - After Shock - Derivatives - Liab. with Mgmt Action - Other currency 1"},null,null,null,null,{"$f":"'Schedule XXIII'!V43","v":0}]
["Sch XXIII","Interest Rates",null,{"$f":"\"Int. Up - After Shock - Derivatives - Liab. with Mgmt Action - \"&'Schedule XXIII'!$C$19","v":"Int. Up - After Shock - Derivatives - Liab. with Mgmt Action - Other currency 2"},null,null,null,null,{"$f":"'Schedule XXIII'!V44","v":0}]
["Sch XXIII","Interest Rates",null,{"$f":"\"Int. Up - After Shock - Derivatives - Liab. with Mgmt Action - \"&'Schedule XXIII'!$C$20","v":"Int. Up - After Shock - Derivatives - Liab. with Mgmt Action - Other currency 3"},null,null,null,null,{"$f":"'Schedule XXIII'!V45","v":0}]
["Sch XXIII","Interest Rates",null,{"$f":"\"Int. Up - After Shock - Derivatives - Liab. with Mgmt Action - \"&'Schedule XXIII'!$C$21","v":"Int. Up - After Shock - Derivatives - Liab. with Mgmt Action - Other currency 4"},null,null,null,null,{"$f":"'Schedule XXIII'!V46","v":0}]
["Sch XXIII","Interest Rates",null,{"$f":"\"Int. Up - After Shock - Derivatives - Liab. with Mgmt Action - \"&'Schedule XXIII'!$C$22","v":"Int. Up - After Shock - Derivatives - Liab. with Mgmt Action - Other currency 5"},null,null,null,null,{"$f":"'Schedule XXIII'!V47","v":0}]
["Sch XXIII","Interest Rates",null,{"$f":"\"Int. Up - After Shock - Derivatives - Liab. with Mgmt Action - \"&'Schedule XXIII'!$C$23","v":"Int. Up - After Shock - Derivatives - Liab. with Mgmt Action - Other currency 6"},null,null,null,null,{"$f":"'Schedule XXIII'!V48","v":0}]
["Sch XXIII","Interest Rates",null,{"$f":"\"Int. Up - After Shock - Derivatives - Liab. with Mgmt Action - \"&'Schedule XXIII'!$C$24","v":"Int. Up - After Shock - Derivatives - Liab. with Mgmt Action - Other currency 7"},null,null,null,null,{"$f":"'Schedule XXIII'!V49","v":0}]
["Sch XXIII","Interest Rates",null,{"$f":"\"Int. Up - After Shock - Derivatives - Liab. with Mgmt Action - \"&'Schedule XXIII'!$C$25","v":"Int. Up - After Shock - Derivatives - Liab. with Mgmt Action - Other currency 8"},null,null,null,null,{"$f":"'Schedule XXIII'!V50","v":0}]
["Sch XXIII","Interest Rates",null,{"$f":"\"Int. Up - After Shock - Derivatives - Liab. with Mgmt Action - \"&'Schedule XXIII'!$C$26","v":"Int. Up - After Shock - Derivatives - Liab. with Mgmt Action - Other currency 9"},null,null,null,null,{"$f":"'Schedule XXIII'!V51","v":0}]
["Sch XXIII","Interest Rates",null,{"$f":"\"Int. Up - After Shock - Derivatives - Liab. with Mgmt Action - \"&'Schedule XXIII'!$C$27","v":"Int. Up - After Shock - Derivatives - Liab. with Mgmt Action - Other currency 10"},null,null,null,null,{"$f":"'Schedule XXIII'!V52","v":0}]
["Sch XXIII","Interest Rates",null,"Int. Up - After Shock - Derivatives - Liab. with Mgmt Action - Total",null,null,null,null,{"$f":"'Schedule XXIII'!V53","v":0}]
[]
["Equity Grandfather","Equity Grandfather",null,"Long Positions - Before - Strategic Holdings - Listed",null,null,null,null,{"$f":"'Non-Grandfathered Equity Part'!D15","v":0}]
["Equity Grandfather","Equity Grandfather",null,"Long Positions - Before - Duration Based",null,null,null,null,{"$f":"'Non-Grandfathered Equity Part'!D16","v":0}]
["Equity Grandfather","Equity Grandfather",null,"Long Positions - Before - Listed Equity Securities in Developed Markets",null,null,null,null,{"$f":"'Non-Grandfathered Equity Part'!D17","v":0}]
["Equity Grandfather","Equity Grandfather",null,"Long Positions - Before - Preferred Stocks, BSCR Rating 1",null,null,null,null,{"$f":"'Non-Grandfathered Equity Part'!D18","v":0}]
["Equity Grandfather","Equity Grandfather",null,"Long Positions - Before - Preferred Stocks, BSCR Rating 2",null,null,null,null,{"$f":"'Non-Grandfathered Equity Part'!D19","v":0}]
["Equity Grandfather","Equity Grandfather",null,"Long Positions - Before - Preferred Stocks, BSCR Rating 3",null,null,null,null,{"$f":"'Non-Grandfathered Equity Part'!D20","v":0}]
["Equity Grandfather","Equity Grandfather",null,"Long Positions - Before - Preferred Stocks, BSCR Rating 4",null,null,null,null,{"$f":"'Non-Grandfathered Equity Part'!D21","v":0}]
["Equity Grandfather","Equity Grandfather",null,"Long Positions - Before - Preferred Stocks, BSCR Rating 5",null,null,null,null,{"$f":"'Non-Grandfathered Equity Part'!D22","v":0}]
["Equity Grandfather","Equity Grandfather",null,"Long Positions - Before - Preferred Stocks, BSCR Rating 6",null,null,null,null,{"$f":"'Non-Grandfathered Equity Part'!D23","v":0}]
["Equity Grandfather","Equity Grandfather",null,"Long Positions - Before - Preferred Stocks, BSCR Rating 7",null,null,null,null,{"$f":"'Non-Grandfathered Equity Part'!D24","v":0}]
["Equity Grandfather","Equity Grandfather",null,"Long Positions - Before - Preferred Stocks, BSCR Rating 8",null,null,null,null,{"$f":"'Non-Grandfathered Equity Part'!D25","v":0}]
["Equity Grandfather","Equity Grandfather",null,"Long Positions - Before - Equity Derivatives on Type 1 Equities",null,null,null,null,{"$f":"'Non-Grandfathered Equity Part'!D26","v":0}]
["Equity Grandfather","Equity Grandfather",null,"Long Positions - Before - Strategic Holdings - Unlisted",null,null,null,null,{"$f":"'Non-Grandfathered Equity Part'!D27","v":0}]
["Equity Grandfather","Equity Grandfather",null,"Long Positions - Before - Other Equities",null,null,null,null,{"$f":"'Non-Grandfathered Equity Part'!D28","v":0}]
["Equity Grandfather","Equity Grandfather",null,"Long Positions - Before - Letters of Credit",null,null,null,null,{"$f":"'Non-Grandfathered Equity Part'!D29","v":0}]
["Equity Grandfather","Equity Grandfather",null,"Long Positions - Before - Intangible assets",null,null,null,null,{"$f":"'Non-Grandfathered Equity Part'!D30","v":0}]
["Equity Grandfather","Equity Grandfather",null,"Long Positions - Before - Pension Benefit Surplus",null,null,null,null,{"$f":"'Non-Grandfathered Equity Part'!D31","v":0}]
["Equity Grandfather","Equity Grandfather",null,"Long Positions - Before - Equity Derivatives on Type 2 Equities",null,null,null,null,{"$f":"'Non-Grandfathered Equity Part'!D32","v":0}]
["Equity Grandfather","Equity Grandfather",null,"Long Positions - Before - Infrastructure",null,null,null,null,{"$f":"'Non-Grandfathered Equity Part'!D33","v":0}]
["Equity Grandfather","Equity Grandfather",null,"Long Positions - Before - Derivatives on Infrastructure",null,null,null,null,{"$f":"'Non-Grandfathered Equity Part'!D34","v":0}]
["Equity Grandfather","Equity Grandfather",null,"Long Positions - Before - Equity Real Estate 1",null,null,null,null,{"$f":"'Non-Grandfathered Equity Part'!D35","v":0}]
["Equity Grandfather","Equity Grandfather",null,"Long Positions - Before - Equity Real Estate 2",null,null,null,null,{"$f":"'Non-Grandfathered Equity Part'!D36","v":0}]
["Equity Grandfather","Equity Grandfather",null,"Long Positions - After - Strategic Holdings - Listed",null,null,null,null,{"$f":"'Non-Grandfathered Equity Part'!F15","v":0}]
["Equity Grandfather","Equity Grandfather",null,"Long Positions - After - Duration Based",null,null,null,null,{"$f":"'Non-Grandfathered Equity Part'!F16","v":0}]
["Equity Grandfather","Equity Grandfather",null,"Long Positions - After - Listed Equity Securities in Developed Markets",null,null,null,null,{"$f":"'Non-Grandfathered Equity Part'!F17","v":0}]
["Equity Grandfather","Equity Grandfather",null,"Long Positions - After - Preferred Stocks, BSCR Rating 1",null,null,null,null,{"$f":"'Non-Grandfathered Equity Part'!F18","v":0}]
["Equity Grandfather","Equity Grandfather",null,"Long Positions - After - Preferred Stocks, BSCR Rating 2",null,null,null,null,{"$f":"'Non-Grandfathered Equity Part'!F19","v":0}]
["Equity Grandfather","Equity Grandfather",null,"Long Positions - After - Preferred Stocks, BSCR Rating 3",null,null,null,null,{"$f":"'Non-Grandfathered Equity Part'!F20","v":0}]
["Equity Grandfather","Equity Grandfather",null,"Long Positions - After - Preferred Stocks, BSCR Rating 4",null,null,null,null,{"$f":"'Non-Grandfathered Equity Part'!F21","v":0}]
["Equity Grandfather","Equity Grandfather",null,"Long Positions - After - Preferred Stocks, BSCR Rating 5",null,null,null,null,{"$f":"'Non-Grandfathered Equity Part'!F22","v":0}]
["Equity Grandfather","Equity Grandfather",null,"Long Positions - After - Preferred Stocks, BSCR Rating 6",null,null,null,null,{"$f":"'Non-Grandfathered Equity Part'!F23","v":0}]
["Equity Grandfather","Equity Grandfather",null,"Long Positions - After - Preferred Stocks, BSCR Rating 7",null,null,null,null,{"$f":"'Non-Grandfathered Equity Part'!F24","v":0}]
["Equity Grandfather","Equity Grandfather",null,"Long Positions - After - Preferred Stocks, BSCR Rating 8",null,null,null,null,{"$f":"'Non-Grandfathered Equity Part'!F25","v":0}]
["Equity Grandfather","Equity Grandfather",null,"Long Positions - After - Equity Derivatives on Type 1 Equities",null,null,null,null,{"$f":"'Non-Grandfathered Equity Part'!F26","v":0}]
["Equity Grandfather","Equity Grandfather",null,"Long Positions - After - Strategic Holdings - Unlisted",null,null,null,null,{"$f":"'Non-Grandfathered Equity Part'!F27","v":0}]
["Equity Grandfather","Equity Grandfather",null,"Long Positions - After - Other Equities",null,null,null,null,{"$f":"'Non-Grandfathered Equity Part'!F28","v":0}]
["Equity Grandfather","Equity Grandfather",null,"Long Positions - After - Letters of Credit",null,null,null,null,{"$f":"'Non-Grandfathered Equity Part'!F29","v":0}]
["Equity Grandfather","Equity Grandfather",null,"Long Positions - After - Intangible assets",null,null,null,null,{"$f":"'Non-Grandfathered Equity Part'!F30","v":0}]
["Equity Grandfather","Equity Grandfather",null,"Long Positions - After - Pension Benefit Surplus",null,null,null,null,{"$f":"'Non-Grandfathered Equity Part'!F31","v":0}]
["Equity Grandfather","Equity Grandfather",null,"Long Positions - After - Equity Derivatives on Type 2 Equities",null,null,null,null,{"$f":"'Non-Grandfathered Equity Part'!F32","v":0}]
["Equity Grandfather","Equity Grandfather",null,"Long Positions - After - Infrastructure",null,null,null,null,{"$f":"'Non-Grandfathered Equity Part'!F33","v":0}]
["Equity Grandfather","Equity Grandfather",null,"Long Positions - After - Derivatives on Infrastructure",null,null,null,null,{"$f":"'Non-Grandfathered Equity Part'!F34","v":0}]
["Equity Grandfather","Equity Grandfather",null,"Long Positions - After - Equity Real Estate 1",null,null,null,null,{"$f":"'Non-Grandfathered Equity Part'!F35","v":0}]
["Equity Grandfather","Equity Grandfather",null,"Long Positions - After - Equity Real Estate 2",null,null,null,null,{"$f":"'Non-Grandfathered Equity Part'!F36","v":0}]
["Equity Grandfather","Equity Grandfather",null,"Short - Before - Qualified Assets - Strategic Holdings - Listed",null,null,null,null,{"$f":"'Non-Grandfathered Equity Part'!H15","v":0}]
["Equity Grandfather","Equity Grandfather",null,"Short - Before - Qualified Assets - Duration Based",null,null,null,null,{"$f":"'Non-Grandfathered Equity Part'!H16","v":0}]
["Equity Grandfather","Equity Grandfather",null,"Short - Before - Qualified Assets - Listed Equity Securities in Developed Markets",null,null,null,null,{"$f":"'Non-Grandfathered Equity Part'!H17","v":0}]
["Equity Grandfather","Equity Grandfather",null,"Short - Before - Qualified Assets - Preferred Stocks, BSCR Rating 1",null,null,null,null,{"$f":"'Non-Grandfathered Equity Part'!H18","v":0}]
["Equity Grandfather","Equity Grandfather",null,"Short - Before - Qualified Assets - Preferred Stocks, BSCR Rating 2",null,null,null,null,{"$f":"'Non-Grandfathered Equity Part'!H19","v":0}]
["Equity Grandfather","Equity Grandfather",null,"Short - Before - Qualified Assets - Preferred Stocks, BSCR Rating 3",null,null,null,null,{"$f":"'Non-Grandfathered Equity Part'!H20","v":0}]
["Equity Grandfather","Equity Grandfather",null,"Short - Before - Qualified Assets - Preferred Stocks, BSCR Rating 4",null,null,null,null,{"$f":"'Non-Grandfathered Equity Part'!H21","v":0}]
["Equity Grandfather","Equity Grandfather",null,"Short - Before - Qualified Assets - Preferred Stocks, BSCR Rating 5",null,null,null,null,{"$f":"'Non-Grandfathered Equity Part'!H22","v":0}]
["Equity Grandfather","Equity Grandfather",null,"Short - Before - Qualified Assets - Preferred Stocks, BSCR Rating 6",null,null,null,null,{"$f":"'Non-Grandfathered Equity Part'!H23","v":0}]
["Equity Grandfather","Equity Grandfather",null,"Short - Before - Qualified Assets - Preferred Stocks, BSCR Rating 7",null,null,null,null,{"$f":"'Non-Grandfathered Equity Part'!H24","v":0}]
["Equity Grandfather","Equity Grandfather",null,"Short - Before - Qualified Assets - Preferred Stocks, BSCR Rating 8",null,null,null,null,{"$f":"'Non-Grandfathered Equity Part'!H25","v":0}]
["Equity Grandfather","Equity Grandfather",null,"Short - Before - Qualified Assets - Equity Derivatives on Type 1 Equities",null,null,null,null,{"$f":"'Non-Grandfathered Equity Part'!H26","v":0}]
["Equity Grandfather","Equity Grandfather",null,"Short - Before - Qualified Assets - Strategic Holdings - Unlisted",null,null,null,null,{"$f":"'Non-Grandfathered Equity Part'!H27","v":0}]
["Equity Grandfather","Equity Grandfather",null,"Short - Before - Qualified Assets - Other Equities",null,null,null,null,{"$f":"'Non-Grandfathered Equity Part'!H28","v":0}]
["Equity Grandfather","Equity Grandfather",null,"Short - Before - Qualified Assets - Letters of Credit",null,null,null,null,{"$f":"'Non-Grandfathered Equity Part'!H29","v":0}]
["Equity Grandfather","Equity Grandfather",null,"Short - Before - Qualified Assets - Intangible assets",null,null,null,null,{"$f":"'Non-Grandfathered Equity Part'!H30","v":0}]
["Equity Grandfather","Equity Grandfather",null,"Short - Before - Qualified Assets - Pension Benefit Surplus",null,null,null,null,{"$f":"'Non-Grandfathered Equity Part'!H31","v":0}]
["Equity Grandfather","Equity Grandfather",null,"Short - Before - Qualified Assets - Equity Derivatives on Type 2 Equities",null,null,null,null,{"$f":"'Non-Grandfathered Equity Part'!H32","v":0}]
["Equity Grandfather","Equity Grandfather",null,"Short - Before - Qualified Assets - Infrastructure",null,null,null,null,{"$f":"'Non-Grandfathered Equity Part'!H33","v":0}]
["Equity Grandfather","Equity Grandfather",null,"Short - Before - Qualified Assets - Derivatives on Infrastructure",null,null,null,null,{"$f":"'Non-Grandfathered Equity Part'!H34","v":0}]
["Equity Grandfather","Equity Grandfather",null,"Short - Before - Qualified Assets - Equity Real Estate 1",null,null,null,null,{"$f":"'Non-Grandfathered Equity Part'!H35","v":0}]
["Equity Grandfather","Equity Grandfather",null,"Short - Before - Qualified Assets - Equity Real Estate 2",null,null,null,null,{"$f":"'Non-Grandfathered Equity Part'!H36","v":0}]
["Equity Grandfather","Equity Grandfather",null,"Short - After - Qualified Assets - Strategic Holdings - Listed",null,null,null,null,{"$f":"'Non-Grandfathered Equity Part'!J15","v":0}]
["Equity Grandfather","Equity Grandfather",null,"Short - After - Qualified Assets - Duration Based",null,null,null,null,{"$f":"'Non-Grandfathered Equity Part'!J16","v":0}]
["Equity Grandfather","Equity Grandfather",null,"Short - After - Qualified Assets - Listed Equity Securities in Developed Markets",null,null,null,null,{"$f":"'Non-Grandfathered Equity Part'!J17","v":0}]
["Equity Grandfather","Equity Grandfather",null,"Short - After - Qualified Assets - Preferred Stocks, BSCR Rating 1",null,null,null,null,{"$f":"'Non-Grandfathered Equity Part'!J18","v":0}]
["Equity Grandfather","Equity Grandfather",null,"Short - After - Qualified Assets - Preferred Stocks, BSCR Rating 2",null,null,null,null,{"$f":"'Non-Grandfathered Equity Part'!J19","v":0}]
["Equity Grandfather","Equity Grandfather",null,"Short - After - Qualified Assets - Preferred Stocks, BSCR Rating 3",null,null,null,null,{"$f":"'Non-Grandfathered Equity Part'!J20","v":0}]
["Equity Grandfather","Equity Grandfather",null,"Short - After - Qualified Assets - Preferred Stocks, BSCR Rating 4",null,null,null,null,{"$f":"'Non-Grandfathered Equity Part'!J21","v":0}]
["Equity Grandfather","Equity Grandfather",null,"Short - After - Qualified Assets - Preferred Stocks, BSCR Rating 5",null,null,null,null,{"$f":"'Non-Grandfathered Equity Part'!J22","v":0}]
["Equity Grandfather","Equity Grandfather",null,"Short - After - Qualified Assets - Preferred Stocks, BSCR Rating 6",null,null,null,null,{"$f":"'Non-Grandfathered Equity Part'!J23","v":0}]
["Equity Grandfather","Equity Grandfather",null,"Short - After - Qualified Assets - Preferred Stocks, BSCR Rating 7",null,null,null,null,{"$f":"'Non-Grandfathered Equity Part'!J24","v":0}]
["Equity Grandfather","Equity Grandfather",null,"Short - After - Qualified Assets - Preferred Stocks, BSCR Rating 8",null,null,null,null,{"$f":"'Non-Grandfathered Equity Part'!J25","v":0}]
["Equity Grandfather","Equity Grandfather",null,"Short - After - Qualified Assets - Equity Derivatives on Type 1 Equities",null,null,null,null,{"$f":"'Non-Grandfathered Equity Part'!J26","v":0}]
["Equity Grandfather","Equity Grandfather",null,"Short - After - Qualified Assets - Strategic Holdings - Unlisted",null,null,null,null,{"$f":"'Non-Grandfathered Equity Part'!J27","v":0}]
["Equity Grandfather","Equity Grandfather",null,"Short - After - Qualified Assets - Other Equities",null,null,null,null,{"$f":"'Non-Grandfathered Equity Part'!J28","v":0}]
["Equity Grandfather","Equity Grandfather",null,"Short - After - Qualified Assets - Letters of Credit",null,null,null,null,{"$f":"'Non-Grandfathered Equity Part'!J29","v":0}]
["Equity Grandfather","Equity Grandfather",null,"Short - After - Qualified Assets - Intangible assets",null,null,null,null,{"$f":"'Non-Grandfathered Equity Part'!J30","v":0}]
["Equity Grandfather","Equity Grandfather",null,"Short - After - Qualified Assets - Pension Benefit Surplus",null,null,null,null,{"$f":"'Non-Grandfathered Equity Part'!J31","v":0}]
["Equity Grandfather","Equity Grandfather",null,"Short - After - Qualified Assets - Equity Derivatives on Type 2 Equities",null,null,null,null,{"$f":"'Non-Grandfathered Equity Part'!J32","v":0}]
["Equity Grandfather","Equity Grandfather",null,"Short - After - Qualified Assets - Infrastructure",null,null,null,null,{"$f":"'Non-Grandfathered Equity Part'!J33","v":0}]
["Equity Grandfather","Equity Grandfather",null,"Short - After - Qualified Assets - Derivatives on Infrastructure",null,null,null,null,{"$f":"'Non-Grandfathered Equity Part'!J34","v":0}]
["Equity Grandfather","Equity Grandfather",null,"Short - After - Qualified Assets - Equity Real Estate 1",null,null,null,null,{"$f":"'Non-Grandfathered Equity Part'!J35","v":0}]
["Equity Grandfather","Equity Grandfather",null,"Short - After - Qualified Assets - Equity Real Estate 2",null,null,null,null,{"$f":"'Non-Grandfathered Equity Part'!J36","v":0}]
["Equity Grandfather","Equity Grandfather",null,"Short - Before - UnQualified Assets - Strategic Holdings - Listed",null,null,null,null,{"$f":"'Non-Grandfathered Equity Part'!L15","v":0}]
["Equity Grandfather","Equity Grandfather",null,"Short - Before - UnQualified Assets - Duration Based",null,null,null,null,{"$f":"'Non-Grandfathered Equity Part'!L16","v":0}]
["Equity Grandfather","Equity Grandfather",null,"Short - Before - UnQualified Assets - Listed Equity Securities in Developed Markets",null,null,null,null,{"$f":"'Non-Grandfathered Equity Part'!L17","v":0}]
["Equity Grandfather","Equity Grandfather",null,"Short - Before - UnQualified Assets - Preferred Stocks, BSCR Rating 1",null,null,null,null,{"$f":"'Non-Grandfathered Equity Part'!L18","v":0}]
["Equity Grandfather","Equity Grandfather",null,"Short - Before - UnQualified Assets - Preferred Stocks, BSCR Rating 2",null,null,null,null,{"$f":"'Non-Grandfathered Equity Part'!L19","v":0}]
["Equity Grandfather","Equity Grandfather",null,"Short - Before - UnQualified Assets - Preferred Stocks, BSCR Rating 3",null,null,null,null,{"$f":"'Non-Grandfathered Equity Part'!L20","v":0}]
["Equity Grandfather","Equity Grandfather",null,"Short - Before - UnQualified Assets - Preferred Stocks, BSCR Rating 4",null,null,null,null,{"$f":"'Non-Grandfathered Equity Part'!L21","v":0}]
["Equity Grandfather","Equity Grandfather",null,"Short - Before - UnQualified Assets - Preferred Stocks, BSCR Rating 5",null,null,null,null,{"$f":"'Non-Grandfathered Equity Part'!L22","v":0}]
["Equity Grandfather","Equity Grandfather",null,"Short - Before - UnQualified Assets - Preferred Stocks, BSCR Rating 6",null,null,null,null,{"$f":"'Non-Grandfathered Equity Part'!L23","v":0}]
["Equity Grandfather","Equity Grandfather",null,"Short - Before - UnQualified Assets - Preferred Stocks, BSCR Rating 7",null,null,null,null,{"$f":"'Non-Grandfathered Equity Part'!L24","v":0}]
["Equity Grandfather","Equity Grandfather",null,"Short - Before - UnQualified Assets - Preferred Stocks, BSCR Rating 8",null,null,null,null,{"$f":"'Non-Grandfathered Equity Part'!L25","v":0}]
["Equity Grandfather","Equity Grandfather",null,"Short - Before - UnQualified Assets - Equity Derivatives on Type 1 Equities",null,null,null,null,{"$f":"'Non-Grandfathered Equity Part'!L26","v":0}]
["Equity Grandfather","Equity Grandfather",null,"Short - Before - UnQualified Assets - Strategic Holdings - Unlisted",null,null,null,null,{"$f":"'Non-Grandfathered Equity Part'!L27","v":0}]
["Equity Grandfather","Equity Grandfather",null,"Short - Before - UnQualified Assets - Other Equities",null,null,null,null,{"$f":"'Non-Grandfathered Equity Part'!L28","v":0}]
["Equity Grandfather","Equity Grandfather",null,"Short - Before - UnQualified Assets - Letters of Credit",null,null,null,null,{"$f":"'Non-Grandfathered Equity Part'!L29","v":0}]
["Equity Grandfather","Equity Grandfather",null,"Short - Before - UnQualified Assets - Intangible assets",null,null,null,null,{"$f":"'Non-Grandfathered Equity Part'!L30","v":0}]
["Equity Grandfather","Equity Grandfather",null,"Short - Before - UnQualified Assets - Pension Benefit Surplus",null,null,null,null,{"$f":"'Non-Grandfathered Equity Part'!L31","v":0}]
["Equity Grandfather","Equity Grandfather",null,"Short - Before - UnQualified Assets - Equity Derivatives on Type 2 Equities",null,null,null,null,{"$f":"'Non-Grandfathered Equity Part'!L32","v":0}]
["Equity Grandfather","Equity Grandfather",null,"Short - Before - UnQualified Assets - Infrastructure",null,null,null,null,{"$f":"'Non-Grandfathered Equity Part'!L33","v":0}]
["Equity Grandfather","Equity Grandfather",null,"Short - Before - UnQualified Assets - Derivatives on Infrastructure",null,null,null,null,{"$f":"'Non-Grandfathered Equity Part'!L34","v":0}]
["Equity Grandfather","Equity Grandfather",null,"Short - Before - UnQualified Assets - Equity Real Estate 1",null,null,null,null,{"$f":"'Non-Grandfathered Equity Part'!L35","v":0}]
["Equity Grandfather","Equity Grandfather",null,"Short - Before - UnQualified Assets - Equity Real Estate 2",null,null,null,null,{"$f":"'Non-Grandfathered Equity Part'!L36","v":0}]
["Equity Grandfather","Equity Grandfather",null,"Short - After - UnQualified Assets - Strategic Holdings - Listed",null,null,null,null,{"$f":"'Non-Grandfathered Equity Part'!N15","v":0}]
["Equity Grandfather","Equity Grandfather",null,"Short - After - UnQualified Assets - Duration Based",null,null,null,null,{"$f":"'Non-Grandfathered Equity Part'!N16","v":0}]
["Equity Grandfather","Equity Grandfather",null,"Short - After - UnQualified Assets - Listed Equity Securities in Developed Markets",null,null,null,null,{"$f":"'Non-Grandfathered Equity Part'!N17","v":0}]
["Equity Grandfather","Equity Grandfather",null,"Short - After - UnQualified Assets - Preferred Stocks, BSCR Rating 1",null,null,null,null,{"$f":"'Non-Grandfathered Equity Part'!N18","v":0}]
["Equity Grandfather","Equity Grandfather",null,"Short - After - UnQualified Assets - Preferred Stocks, BSCR Rating 2",null,null,null,null,{"$f":"'Non-Grandfathered Equity Part'!N19","v":0}]
["Equity Grandfather","Equity Grandfather",null,"Short - After - UnQualified Assets - Preferred Stocks, BSCR Rating 3",null,null,null,null,{"$f":"'Non-Grandfathered Equity Part'!N20","v":0}]
["Equity Grandfather","Equity Grandfather",null,"Short - After - UnQualified Assets - Preferred Stocks, BSCR Rating 4",null,null,null,null,{"$f":"'Non-Grandfathered Equity Part'!N21","v":0}]
["Equity Grandfather","Equity Grandfather",null,"Short - After - UnQualified Assets - Preferred Stocks, BSCR Rating 5",null,null,null,null,{"$f":"'Non-Grandfathered Equity Part'!N22","v":0}]
["Equity Grandfather","Equity Grandfather",null,"Short - After - UnQualified Assets - Preferred Stocks, BSCR Rating 6",null,null,null,null,{"$f":"'Non-Grandfathered Equity Part'!N23","v":0}]
["Equity Grandfather","Equity Grandfather",null,"Short - After - UnQualified Assets - Preferred Stocks, BSCR Rating 7",null,null,null,null,{"$f":"'Non-Grandfathered Equity Part'!N24","v":0}]
["Equity Grandfather","Equity Grandfather",null,"Short - After - UnQualified Assets - Preferred Stocks, BSCR Rating 8",null,null,null,null,{"$f":"'Non-Grandfathered Equity Part'!N25","v":0}]
["Equity Grandfather","Equity Grandfather",null,"Short - After - UnQualified Assets - Equity Derivatives on Type 1 Equities",null,null,null,null,{"$f":"'Non-Grandfathered Equity Part'!N26","v":0}]
["Equity Grandfather","Equity Grandfather",null,"Short - After - UnQualified Assets - Strategic Holdings - Unlisted",null,null,null,null,{"$f":"'Non-Grandfathered Equity Part'!N27","v":0}]
["Equity Grandfather","Equity Grandfather",null,"Short - After - UnQualified Assets - Other Equities",null,null,null,null,{"$f":"'Non-Grandfathered Equity Part'!N28","v":0}]
["Equity Grandfather","Equity Grandfather",null,"Short - After - UnQualified Assets - Letters of Credit",null,null,null,null,{"$f":"'Non-Grandfathered Equity Part'!N29","v":0}]
["Equity Grandfather","Equity Grandfather",null,"Short - After - UnQualified Assets - Intangible assets",null,null,null,null,{"$f":"'Non-Grandfathered Equity Part'!N30","v":0}]
["Equity Grandfather","Equity Grandfather",null,"Short - After - UnQualified Assets - Pension Benefit Surplus",null,null,null,null,{"$f":"'Non-Grandfathered Equity Part'!N31","v":0}]
["Equity Grandfather","Equity Grandfather",null,"Short - After - UnQualified Assets - Equity Derivatives on Type 2 Equities",null,null,null,null,{"$f":"'Non-Grandfathered Equity Part'!N32","v":0}]
["Equity Grandfather","Equity Grandfather",null,"Short - After - UnQualified Assets - Infrastructure",null,null,null,null,{"$f":"'Non-Grandfathered Equity Part'!N33","v":0}]
["Equity Grandfather","Equity Grandfather",null,"Short - After - UnQualified Assets - Derivatives on Infrastructure",null,null,null,null,{"$f":"'Non-Grandfathered Equity Part'!N34","v":0}]
["Equity Grandfather","Equity Grandfather",null,"Short - After - UnQualified Assets - Equity Real Estate 1",null,null,null,null,{"$f":"'Non-Grandfathered Equity Part'!N35","v":0}]
["Equity Grandfather","Equity Grandfather",null,"Short - After - UnQualified Assets - Equity Real Estate 2",null,null,null,null,{"$f":"'Non-Grandfathered Equity Part'!N36","v":0}]
["Equity Grandfather","Equity Grandfather",null,"Liabilities - Before - W/O Mgmt Actions - Strategic Holdings - Listed",null,null,null,null,{"$f":"'Non-Grandfathered Equity Part'!P15","v":0}]
["Equity Grandfather","Equity Grandfather",null,"Liabilities - Before - W/O Mgmt Actions - Duration Based",null,null,null,null,{"$f":"'Non-Grandfathered Equity Part'!P16","v":0}]
["Equity Grandfather","Equity Grandfather",null,"Liabilities - Before - W/O Mgmt Actions - Listed Equity Securities in Developed Markets",null,null,null,null,{"$f":"'Non-Grandfathered Equity Part'!P17","v":0}]
["Equity Grandfather","Equity Grandfather",null,"Liabilities - Before - W/O Mgmt Actions - Preferred Stocks, BSCR Rating 1",null,null,null,null,{"$f":"'Non-Grandfathered Equity Part'!P18","v":0}]
["Equity Grandfather","Equity Grandfather",null,"Liabilities - Before - W/O Mgmt Actions - Preferred Stocks, BSCR Rating 2",null,null,null,null,{"$f":"'Non-Grandfathered Equity Part'!P19","v":0}]
["Equity Grandfather","Equity Grandfather",null,"Liabilities - Before - W/O Mgmt Actions - Preferred Stocks, BSCR Rating 3",null,null,null,null,{"$f":"'Non-Grandfathered Equity Part'!P20","v":0}]
["Equity Grandfather","Equity Grandfather",null,"Liabilities - Before - W/O Mgmt Actions - Preferred Stocks, BSCR Rating 4",null,null,null,null,{"$f":"'Non-Grandfathered Equity Part'!P21","v":0}]
["Equity Grandfather","Equity Grandfather",null,"Liabilities - Before - W/O Mgmt Actions - Preferred Stocks, BSCR Rating 5",null,null,null,null,{"$f":"'Non-Grandfathered Equity Part'!P22","v":0}]
["Equity Grandfather","Equity Grandfather",null,"Liabilities - Before - W/O Mgmt Actions - Preferred Stocks, BSCR Rating 6",null,null,null,null,{"$f":"'Non-Grandfathered Equity Part'!P23","v":0}]
["Equity Grandfather","Equity Grandfather",null,"Liabilities - Before - W/O Mgmt Actions - Preferred Stocks, BSCR Rating 7",null,null,null,null,{"$f":"'Non-Grandfathered Equity Part'!P24","v":0}]
["Equity Grandfather","Equity Grandfather",null,"Liabilities - Before - W/O Mgmt Actions - Preferred Stocks, BSCR Rating 8",null,null,null,null,{"$f":"'Non-Grandfathered Equity Part'!P25","v":0}]
["Equity Grandfather","Equity Grandfather",null,"Liabilities - Before - W/O Mgmt Actions - Equity Derivatives on Type 1 Equities",null,null,null,null,{"$f":"'Non-Grandfathered Equity Part'!P26","v":0}]
["Equity Grandfather","Equity Grandfather",null,"Liabilities - Before - W/O Mgmt Actions - Strategic Holdings - Unlisted",null,null,null,null,{"$f":"'Non-Grandfathered Equity Part'!P27","v":0}]
["Equity Grandfather","Equity Grandfather",null,"Liabilities - Before - W/O Mgmt Actions - Other Equities",null,null,null,null,{"$f":"'Non-Grandfathered Equity Part'!P28","v":0}]
["Equity Grandfather","Equity Grandfather",null,"Liabilities - Before - W/O Mgmt Actions - Letters of Credit",null,null,null,null,{"$f":"'Non-Grandfathered Equity Part'!P29","v":0}]
["Equity Grandfather","Equity Grandfather",null,"Liabilities - Before - W/O Mgmt Actions - Intangible assets",null,null,null,null,{"$f":"'Non-Grandfathered Equity Part'!P30","v":0}]
["Equity Grandfather","Equity Grandfather",null,"Liabilities - Before - W/O Mgmt Actions - Pension Benefit Surplus",null,null,null,null,{"$f":"'Non-Grandfathered Equity Part'!P31","v":0}]
["Equity Grandfather","Equity Grandfather",null,"Liabilities - Before - W/O Mgmt Actions - Equity Derivatives on Type 2 Equities",null,null,null,null,{"$f":"'Non-Grandfathered Equity Part'!P32","v":0}]
["Equity Grandfather","Equity Grandfather",null,"Liabilities - Before - W/O Mgmt Actions - Infrastructure",null,null,null,null,{"$f":"'Non-Grandfathered Equity Part'!P33","v":0}]
["Equity Grandfather","Equity Grandfather",null,"Liabilities - Before - W/O Mgmt Actions - Derivatives on Infrastructure",null,null,null,null,{"$f":"'Non-Grandfathered Equity Part'!P34","v":0}]
["Equity Grandfather","Equity Grandfather",null,"Liabilities - Before - W/O Mgmt Actions - Equity Real Estate 1",null,null,null,null,{"$f":"'Non-Grandfathered Equity Part'!P35","v":0}]
["Equity Grandfather","Equity Grandfather",null,"Liabilities - Before - W/O Mgmt Actions - Equity Real Estate 2",null,null,null,null,{"$f":"'Non-Grandfathered Equity Part'!P36","v":0}]
["Equity Grandfather","Equity Grandfather",null,"Liabilities - After - W/O Mgmt Actions - Strategic Holdings - Listed",null,null,null,null,{"$f":"'Non-Grandfathered Equity Part'!R15","v":0}]
["Equity Grandfather","Equity Grandfather",null,"Liabilities - After - W/O Mgmt Actions - Duration Based",null,null,null,null,{"$f":"'Non-Grandfathered Equity Part'!R16","v":0}]
["Equity Grandfather","Equity Grandfather",null,"Liabilities - After - W/O Mgmt Actions - Listed Equity Securities in Developed Markets",null,null,null,null,{"$f":"'Non-Grandfathered Equity Part'!R17","v":0}]
["Equity Grandfather","Equity Grandfather",null,"Liabilities - After - W/O Mgmt Actions - Preferred Stocks, BSCR Rating 1",null,null,null,null,{"$f":"'Non-Grandfathered Equity Part'!R18","v":0}]
["Equity Grandfather","Equity Grandfather",null,"Liabilities - After - W/O Mgmt Actions - Preferred Stocks, BSCR Rating 2",null,null,null,null,{"$f":"'Non-Grandfathered Equity Part'!R19","v":0}]
["Equity Grandfather","Equity Grandfather",null,"Liabilities - After - W/O Mgmt Actions - Preferred Stocks, BSCR Rating 3",null,null,null,null,{"$f":"'Non-Grandfathered Equity Part'!R20","v":0}]
["Equity Grandfather","Equity Grandfather",null,"Liabilities - After - W/O Mgmt Actions - Preferred Stocks, BSCR Rating 4",null,null,null,null,{"$f":"'Non-Grandfathered Equity Part'!R21","v":0}]
["Equity Grandfather","Equity Grandfather",null,"Liabilities - After - W/O Mgmt Actions - Preferred Stocks, BSCR Rating 5",null,null,null,null,{"$f":"'Non-Grandfathered Equity Part'!R22","v":0}]
["Equity Grandfather","Equity Grandfather",null,"Liabilities - After - W/O Mgmt Actions - Preferred Stocks, BSCR Rating 6",null,null,null,null,{"$f":"'Non-Grandfathered Equity Part'!R23","v":0}]
["Equity Grandfather","Equity Grandfather",null,"Liabilities - After - W/O Mgmt Actions - Preferred Stocks, BSCR Rating 7",null,null,null,null,{"$f":"'Non-Grandfathered Equity Part'!R24","v":0}]
["Equity Grandfather","Equity Grandfather",null,"Liabilities - After - W/O Mgmt Actions - Preferred Stocks, BSCR Rating 8",null,null,null,null,{"$f":"'Non-Grandfathered Equity Part'!R25","v":0}]
["Equity Grandfather","Equity Grandfather",null,"Liabilities - After - W/O Mgmt Actions - Equity Derivatives on Type 1 Equities",null,null,null,null,{"$f":"'Non-Grandfathered Equity Part'!R26","v":0}]
["Equity Grandfather","Equity Grandfather",null,"Liabilities - After - W/O Mgmt Actions - Strategic Holdings - Unlisted",null,null,null,null,{"$f":"'Non-Grandfathered Equity Part'!R27","v":0}]
["Equity Grandfather","Equity Grandfather",null,"Liabilities - After - W/O Mgmt Actions - Other Equities",null,null,null,null,{"$f":"'Non-Grandfathered Equity Part'!R28","v":0}]
["Equity Grandfather","Equity Grandfather",null,"Liabilities - After - W/O Mgmt Actions - Letters of Credit",null,null,null,null,{"$f":"'Non-Grandfathered Equity Part'!R29","v":0}]
["Equity Grandfather","Equity Grandfather",null,"Liabilities - After - W/O Mgmt Actions - Intangible assets",null,null,null,null,{"$f":"'Non-Grandfathered Equity Part'!R30","v":0}]
["Equity Grandfather","Equity Grandfather",null,"Liabilities - After - W/O Mgmt Actions - Pension Benefit Surplus",null,null,null,null,{"$f":"'Non-Grandfathered Equity Part'!R31","v":0}]
["Equity Grandfather","Equity Grandfather",null,"Liabilities - After - W/O Mgmt Actions - Equity Derivatives on Type 2 Equities",null,null,null,null,{"$f":"'Non-Grandfathered Equity Part'!R32","v":0}]
["Equity Grandfather","Equity Grandfather",null,"Liabilities - After - W/O Mgmt Actions - Infrastructure",null,null,null,null,{"$f":"'Non-Grandfathered Equity Part'!R33","v":0}]
["Equity Grandfather","Equity Grandfather",null,"Liabilities - After - W/O Mgmt Actions - Derivatives on Infrastructure",null,null,null,null,{"$f":"'Non-Grandfathered Equity Part'!R34","v":0}]
["Equity Grandfather","Equity Grandfather",null,"Liabilities - After - W/O Mgmt Actions - Equity Real Estate 1",null,null,null,null,{"$f":"'Non-Grandfathered Equity Part'!R35","v":0}]
["Equity Grandfather","Equity Grandfather",null,"Liabilities - After - W/O Mgmt Actions - Equity Real Estate 2",null,null,null,null,{"$f":"'Non-Grandfathered Equity Part'!R36","v":0}]
["Equity Grandfather","Equity Grandfather",null,"Liabilities - After - With Mgmt Actions - Strategic Holdings - Listed",null,null,null,null,{"$f":"'Non-Grandfathered Equity Part'!T15","v":0}]
["Equity Grandfather","Equity Grandfather",null,"Liabilities - After - With Mgmt Actions - Duration Based",null,null,null,null,{"$f":"'Non-Grandfathered Equity Part'!T16","v":0}]
["Equity Grandfather","Equity Grandfather",null,"Liabilities - After - With Mgmt Actions - Listed Equity Securities in Developed Markets",null,null,null,null,{"$f":"'Non-Grandfathered Equity Part'!T17","v":0}]
["Equity Grandfather","Equity Grandfather",null,"Liabilities - After - With Mgmt Actions - Preferred Stocks, BSCR Rating 1",null,null,null,null,{"$f":"'Non-Grandfathered Equity Part'!T18","v":0}]
["Equity Grandfather","Equity Grandfather",null,"Liabilities - After - With Mgmt Actions - Preferred Stocks, BSCR Rating 2",null,null,null,null,{"$f":"'Non-Grandfathered Equity Part'!T19","v":0}]
["Equity Grandfather","Equity Grandfather",null,"Liabilities - After - With Mgmt Actions - Preferred Stocks, BSCR Rating 3",null,null,null,null,{"$f":"'Non-Grandfathered Equity Part'!T20","v":0}]
["Equity Grandfather","Equity Grandfather",null,"Liabilities - After - With Mgmt Actions - Preferred Stocks, BSCR Rating 4",null,null,null,null,{"$f":"'Non-Grandfathered Equity Part'!T21","v":0}]
["Equity Grandfather","Equity Grandfather",null,"Liabilities - After - With Mgmt Actions - Preferred Stocks, BSCR Rating 5",null,null,null,null,{"$f":"'Non-Grandfathered Equity Part'!T22","v":0}]
["Equity Grandfather","Equity Grandfather",null,"Liabilities - After - With Mgmt Actions - Preferred Stocks, BSCR Rating 6",null,null,null,null,{"$f":"'Non-Grandfathered Equity Part'!T23","v":0}]
["Equity Grandfather","Equity Grandfather",null,"Liabilities - After - With Mgmt Actions - Preferred Stocks, BSCR Rating 7",null,null,null,null,{"$f":"'Non-Grandfathered Equity Part'!T24","v":0}]
["Equity Grandfather","Equity Grandfather",null,"Liabilities - After - With Mgmt Actions - Preferred Stocks, BSCR Rating 8",null,null,null,null,{"$f":"'Non-Grandfathered Equity Part'!T25","v":0}]
["Equity Grandfather","Equity Grandfather",null,"Liabilities - After - With Mgmt Actions - Equity Derivatives on Type 1 Equities",null,null,null,null,{"$f":"'Non-Grandfathered Equity Part'!T26","v":0}]
["Equity Grandfather","Equity Grandfather",null,"Liabilities - After - With Mgmt Actions - Strategic Holdings - Unlisted",null,null,null,null,{"$f":"'Non-Grandfathered Equity Part'!T27","v":0}]
["Equity Grandfather","Equity Grandfather",null,"Liabilities - After - With Mgmt Actions - Other Equities",null,null,null,null,{"$f":"'Non-Grandfathered Equity Part'!T28","v":0}]
["Equity Grandfather","Equity Grandfather",null,"Liabilities - After - With Mgmt Actions - Letters of Credit",null,null,null,null,{"$f":"'Non-Grandfathered Equity Part'!T29","v":0}]
["Equity Grandfather","Equity Grandfather",null,"Liabilities - After - With Mgmt Actions - Intangible assets",null,null,null,null,{"$f":"'Non-Grandfathered Equity Part'!T30","v":0}]
["Equity Grandfather","Equity Grandfather",null,"Liabilities - After - With Mgmt Actions - Pension Benefit Surplus",null,null,null,null,{"$f":"'Non-Grandfathered Equity Part'!T31","v":0}]
["Equity Grandfather","Equity Grandfather",null,"Liabilities - After - With Mgmt Actions - Equity Derivatives on Type 2 Equities",null,null,null,null,{"$f":"'Non-Grandfathered Equity Part'!T32","v":0}]
["Equity Grandfather","Equity Grandfather",null,"Liabilities - After - With Mgmt Actions - Infrastructure",null,null,null,null,{"$f":"'Non-Grandfathered Equity Part'!T33","v":0}]
["Equity Grandfather","Equity Grandfather",null,"Liabilities - After - With Mgmt Actions - Derivatives on Infrastructure",null,null,null,null,{"$f":"'Non-Grandfathered Equity Part'!T34","v":0}]
["Equity Grandfather","Equity Grandfather",null,"Liabilities - After - With Mgmt Actions - Equity Real Estate 1",null,null,null,null,{"$f":"'Non-Grandfathered Equity Part'!T35","v":0}]
["Equity Grandfather","Equity Grandfather",null,"Liabilities - After - With Mgmt Actions - Equity Real Estate 2",null,null,null,null,{"$f":"'Non-Grandfathered Equity Part'!T36","v":0}]
[]
["Equity Grandfather","Equity Grandfather",null,"Common Shares - Quoted",null,null,null,null,{"$f":"'Grandfathered Equity Part'!D11","v":0}]
["Equity Grandfather","Equity Grandfather",null,"Common Shares - Unquoted",null,null,null,null,{"$f":"'Grandfathered Equity Part'!D12","v":0}]
["Equity Grandfather","Equity Grandfather",null,"Equity Mutual Funds",null,null,null,null,{"$f":"'Grandfathered Equity Part'!D13","v":0}]
["Equity Grandfather","Equity Grandfather",null,"Preferred Shares - BSCR Rate 1",null,null,null,null,{"$f":"'Grandfathered Equity Part'!D20","v":0}]
["Equity Grandfather","Equity Grandfather",null,"Preferred Shares - BSCR Rate 2",null,null,null,null,{"$f":"'Grandfathered Equity Part'!D21","v":0}]
["Equity Grandfather","Equity Grandfather",null,"Preferred Shares - BSCR Rate 3",null,null,null,null,{"$f":"'Grandfathered Equity Part'!D22","v":0}]
["Equity Grandfather","Equity Grandfather",null,"Preferred Shares - BSCR Rate 4",null,null,null,null,{"$f":"'Grandfathered Equity Part'!D23","v":0}]
["Equity Grandfather","Equity Grandfather",null,"Preferred Shares - BSCR Rate 5",null,null,null,null,{"$f":"'Grandfathered Equity Part'!D24","v":0}]
["Equity Grandfather","Equity Grandfather",null,"Preferred Shares - BSCR Rate 6",null,null,null,null,{"$f":"'Grandfathered Equity Part'!D25","v":0}]
["Equity Grandfather","Equity Grandfather",null,"Preferred Shares - BSCR Rate 7",null,null,null,null,{"$f":"'Grandfathered Equity Part'!D26","v":0}]
["Equity Grandfather","Equity Grandfather",null,"Preferred Shares - BSCR Rate 8",null,null,null,null,{"$f":"'Grandfathered Equity Part'!D27","v":0}]
["Equity Grandfather","Equity Grandfather",null,"Real Estate - Occupied by Company",null,null,null,null,{"$f":"'Grandfathered Equity Part'!D34","v":0}]
["Equity Grandfather","Equity Grandfather",null,"Real Estate - Other",null,null,null,null,{"$f":"'Grandfathered Equity Part'!D35","v":0}]
["Equity Grandfather","Equity Grandfather",null,"Other Investments",null,null,null,null,{"$f":"'Grandfathered Equity Part'!D37","v":0}]
["Equity Grandfather","Equity Grandfather",null,"Sundry Assets",null,null,null,null,{"$f":"'Grandfathered Equity Part'!D38","v":0}]
["Equity Grandfather","Equity Grandfather",null,"Inv. In Affiliates - Unregulated Ancillary",null,null,null,null,{"$f":"'Grandfathered Equity Part'!D44","v":0}]
["Equity Grandfather","Equity Grandfather",null,"Inv. In Affiliates - Unregulated Non-Fin. Oper.",null,null,null,null,{"$f":"'Grandfathered Equity Part'!D45","v":0}]
["Equity Grandfather","Equity Grandfather",null,"Inv. In Affiliates - Unregulated Fin. Operating",null,null,null,null,{"$f":"'Grandfathered Equity Part'!D46","v":0}]
["Equity Grandfather","Equity Grandfather",null,"Inv. In Affiliates - Regulated Insurance",null,null,null,null,{"$f":"'Grandfathered Equity Part'!D47","v":0}]

{"sheet":"Attachments","index":9,"n_rows":214,"n_cols":11,"rows_kept":214,"cut":false,"hidden":false,"merged":[[160,2,160,4],[104,2,104,4],[200,2,200,4],[180,2,180,4],[181,2,181,4],[176,2,176,4],[177,2,177,4],[178,2,178,4],[135,2,135,4],[136,2,136,4],[138,2,138,4],[137,2,137,4],[141,2,141,4],[158,2,158,4],[164,2,164,4],[165,2,165,4],[166,2,166,4],[167,2,167,4],[153,2,153,4],[155,2,155,4],[157,2,157,4],[154,2,154,4],[156,2,156,4],[163,2,163,4],[162,2,162,4],[65,2,65,4],[69,2,69,4],[70,2,70,4],[86,2,86,4],[199,2,199,4],[62,2,62,4],[80,2,80,4],[124,2,124,4],[123,2,123,4],[128,2,128,4],[89,2,89,4],[93,2,93,4],[84,2,84,4],[87,2,87,4],[74,2,74,4],[119,2,119,4],[116,2,116,4],[98,2,98,4],[99,2,99,4],[115,2,115,4],[108,2,108,4],[102,2,102,4],[101,2,101,4],[96,2,96,4],[94,2,94,4],[95,2,95,4],[64,2,64,4],[50,2,50,4],[43,2,43,4],[44,2,44,4],[45,2,45,4],[46,2,46,4],[47,2,47,4],[48,2,48,4],[54,2,54,4],[81,2,81,4],[60,2,60,4],[51,2,51,4],[52,2,52,4],[53,2,53,4],[61,2,61,4],[56,2,56,4],[57,2,57,4],[77,2,77,4],[68,2,68,4],[75,2,75,4],[63,2,63,4],[145,2,145,4],[131,2,131,4],[76,2,76,4],[59,2,59,4],[152,2,152,4],[150,2,150,4],[146,2,146,4],[147,2,147,4],[149,2,149,4],[144,2,144,4],[140,2,140,4],[90,2,90,4],[126,2,126,4],[79,2,79,4],[82,2,82,4],[114,2,114,4],[73,2,73,4],[85,2,85,4],[113,2,113,4],[83,2,83,4],[66,2,66,4],[67,2,67,4],[97,2,97,4],[100,2,100,4],[42,2,42,4],[4,2,4,4],[20,2,20,4],[22,2,22,4],[23,2,23,4],[11,2,11,4],[19,2,19,4],[13,2,13,4],[14,2,14,4],[5,2,5,4],[6,2,6,4],[7,2,7,4],[8,2,8,4],[9,2,9,4],[10,2,10,4],[15,2,15,4],[16,2,16,4],[12,2,12,4],[92,2,92,4],[28,2,28,4],[109,2,109,4],[110,2,110,4],[105,2,105,4],[106,2,106,4],[25,2,25,4],[17,2,17,4],[29,2,29,4],[33,2,33,4],[18,2,18,4],[21,2,21,4],[107,2,107,4],[49,2,49,4],[58,2,58,4],[55,2,55,4],[71,2,71,4],[72,2,72,4],[26,2,26,4],[27,2,27,4],[31,2,31,4],[35,2,35,4],[36,2,36,4],[37,2,37,4],[129,2,129,4],[24,2,24,4],[111,2,111,4],[112,2,112,4],[88,2,88,4],[30,2,30,4],[133,2,133,4],[148,2,148,4],[125,2,125,4],[117,2,117,4],[122,2,122,4],[130,2,130,4],[127,2,127,4],[132,2,132,4],[34,2,34,4],[38,2,38,4],[39,2,39,4],[40,2,40,4],[41,2,41,4],[120,2,120,4],[121,2,121,4],[32,2,32,4],[91,2,91,4],[78,2,78,4],[197,2,197,4],[103,2,103,4],[161,2,161,4],[151,2,151,4],[143,2,143,4],[118,2,118,4],[195,2,195,4],[168,2,168,4],[169,2,169,4],[170,2,170,4],[171,2,171,4],[172,2,172,4],[173,2,173,4],[174,2,174,4],[175,2,175,4],[179,2,179,4],[188,2,188,4],[189,2,189,4],[182,2,182,4],[183,2,183,4],[194,2,194,4],[159,2,159,4],[139,2,139,4],[142,2,142,4],[198,2,198,4],[134,2,134,4],[208,2,208,4],[209,2,209,4],[210,2,210,4],[211,2,211,4],[212,2,212,4],[213,2,213,4],[206,2,206,4],[207,2,207,4],[184,2,184,4],[185,2,185,4],[186,2,186,4],[187,2,187,4],[190,2,190,4],[191,2,191,4],[192,2,192,4],[202,2,202,4],[204,2,204,4],[205,2,205,4],[193,2,193,4],[196,2,196,4],[203,2,203,4],[201,2,201,4]]}
[null,"File Attachments",null,null,null,null,null,null,null,{"$f":"HYPERLINK(\"#'Index'!A1\",\"Return to Index\")","v":"Return to Index"}]
[]
[]
[null,null,null,null,null,null,null,null,null,"Input comment for each attached file here."]
[null,"1.","GAAP/IFRS Financial Statements",null,null,"<Attach file>","Attach","View","Remove",null,"Governance structure"]
[null,null,null,null,null,null,null,null,null,null,"Governance structure"]
[null,null,null,null,null,null,null,null,null,null,"Governance structure"]
[null,null,null,null,null,null,null,null,null,null,"Governance structure"]
[null,null,null,null,null,null,null,null,null,null,"Governance structure"]
[null,null,null,null,null,null,null,null,null,null,"Governance structure"]
[null,null,null,null,null,null,null,null,null,null,"Governance structure"]
[null,null,null,null,null,null,null,null,null,null,"Governance structure"]
[null,null,null,null,null,null,null,null,null,"","Governance structure"]
[null,null,null,null,null,null,null,null,null,"","Governance structure"]
[null,"2.","Financial Condition Report",null,null,"<Attach file>","Attach","View","Remove",null,"Group Structure"]
[null,null,null,null,null,null,null,null,null,null,"Group Structure"]
[null,null,null,null,null,null,null,null,null,null,"Group Structure"]
[null,null,null,null,null,null,null,null,null,null,"Group Structure"]
[null,null,null,null,null,null,null,null,null,null,"Group Structure"]
[null,null,null,null,null,null,null,null,null,null,"Group Structure"]
[null,null,null,null,null,null,null,null,null,null,"Group Structure"]
[null,null,null,null,null,null,null,null,null,null,"Group Structure"]
[null,null,null,null,null,null,null,null,null,null,"Group Structure"]
[null,null,null,null,null,null,null,null,null,null,"Group Structure"]
[null,"3.","GSSA",null,null,"<Attach file>","Attach","View","Remove",null,"Group Structure"]
[null,null,null,null,null,"<Attach file>","Attach","View","Remove",null,"Group Structure"]
[null,null,null,null,null,"<Attach file>","Attach","View","Remove",null,"Group Structure"]
[null,null,null,null,null,"<Attach file>","Attach","View","Remove",null,"Group Structure"]
[null,null,null,null,null,"<Attach file>","Attach","View","Remove",null,"Group Structure"]
[null,null,null,null,null,"<Attach file>","Attach","View","Remove",null,"Group Structure"]
[null,null,null,null,null,"<Attach file>","Attach","View","Remove",null,"Group Structure"]
[null,null,null,null,null,"<Attach file>","Attach","View","Remove",null,"Group Structure"]
[null,null,null,null,null,"<Attach file>","Attach","View","Remove",null,"Group Structure"]
[null,null,null,null,null,"<Attach file>","Attach","View","Remove",null,"Group Structure"]
[null,"4.","Form 1EBS Attachments - Collateral Balances and Sundry Assets/Liabilities",null,null,"<Attach file>","Attach","View","Remove",null,"Intra-group exposures"]
[null,null,null,null,null,"<Attach file>","Attach","View","Remove",null,"Intra-group exposures"]
[null,null,null,null,null,"<Attach file>","Attach","View","Remove",null,"Intra-group exposures"]
[null,null,null,null,null,"<Attach file>","Attach","View","Remove",null,"Intra-group exposures"]
[null,null,null,null,null,"<Attach file>","Attach","View","Remove",null,"Intra-group exposures"]
[null,null,null,null,null,"<Attach file>","Attach","View","Remove",null,"Intra-group exposures"]
[null,null,null,null,null,"<Attach file>","Attach","View","Remove",null,"Intra-group exposures"]
[null,null,null,null,null,"<Attach file>","Attach","View","Remove",null,"Intra-group exposures"]
[null,null,null,null,null,"<Attach file>","Attach","View","Remove",null,"Intra-group exposures"]
[null,null,null,null,null,"<Attach file>","Attach","View","Remove",null,"Intra-group exposures"]
[null,"5.","Form 1EBS Attachments - General Business Reserves & Actuarial Memorandum",null,null,"<Attach file>","Attach","View","Remove",null,"Description of underwriting strategy"]
[null,null,null,null,null,"<Attach file>","Attach","View","Remove",null,"Description of underwriting strategy"]
[null,null,null,null,null,"<Attach file>","Attach","View","Remove",null,"Description of underwriting strategy"]
[null,null,null,null,null,"<Attach file>","Attach","View","Remove",null,"Description of underwriting strategy"]
[null,null,null,null,null,"<Attach file>","Attach","View","Remove",null,"Description of underwriting strategy"]
[null,null,null,null,null,"<Attach file>","Attach","View","Remove",null,"Description of underwriting strategy"]
[null,null,null,null,null,"<Attach file>","Attach","View","Remove",null,"Description of underwriting strategy"]
[null,null,null,null,null,"<Attach file>","Attach","View","Remove",null,"Description of underwriting strategy"]
[null,null,null,null,null,"<Attach file>","Attach","View","Remove",null,"Description of underwriting strategy"]
[null,null,null,null,null,"<Attach file>","Attach","View","Remove",null,"Description of underwriting strategy"]
[null,"6.","Form 1EBS Attachments - Long-Term Business Reserves & Actuarial Memorandum",null,null,"<Attach file>","Attach","View","Remove",null,"Description of underwriting strategy"]
[null,null,null,null,null,"<Attach file>","Attach","View","Remove",null,"Description of underwriting strategy"]
[null,null,null,null,null,"<Attach file>","Attach","View","Remove",null,"Description of underwriting strategy"]
[null,null,null,null,null,"<Attach file>","Attach","View","Remove",null,"Description of underwriting strategy"]
[null,null,null,null,null,"<Attach file>","Attach","View","Remove",null,"Description of underwriting strategy"]
[null,null,null,null,null,"<Attach file>","Attach","View","Remove",null,"Description of underwriting strategy"]
[null,null,null,null,null,"<Attach file>","Attach","View","Remove",null,"Description of underwriting strategy"]
[null,null,null,null,null,"<Attach file>","Attach","View","Remove",null,"Description of underwriting strategy"]
[null,null,null,null,null,"<Attach file>","Attach","View","Remove",null,"Description of underwriting strategy"]
[null,null,null,null,null,"<Attach file>","Attach","View","Remove",null,"Description of underwriting strategy"]
[null,"7.","Governance and group structure",null,null,"<Attach file>","Attach","View","Remove",null,"Description of underwriting strategy"]
[null,null,null,null,null,"<Attach file>","Attach","View","Remove",null,"Description of underwriting strategy"]
[null,null,null,null,null,"<Attach file>","Attach","View","Remove",null,"Description of underwriting strategy"]
[null,null,null,null,null,"<Attach file>","Attach","View","Remove",null,"Description of underwriting strategy"]
[null,null,null,null,null,"<Attach file>","Attach","View","Remove",null,"Description of underwriting strategy"]
[null,null,null,null,null,"<Attach file>","Attach","View","Remove",null,"Description of underwriting strategy"]
[null,null,null,null,null,"<Attach file>","Attach","View","Remove",null,"Description of underwriting strategy"]
[null,null,null,null,null,"<Attach file>","Attach","View","Remove",null,"Description of underwriting strategy"]
[null,null,null,null,null,"<Attach file>","Attach","View","Remove",null,"Description of underwriting strategy"]
[null,null,null,null,null,"<Attach file>","Attach","View","Remove",null,"Description of underwriting strategy"]
[null,"8.","Organisational Chart",null,null,"<Attach file>","Attach","View","Remove",null,"Description of the effective duration of assets and liabilities calculations and key assumptions"]
[null,null,null,null,null,"<Attach file>","Attach","View","Remove",null,"Description of the effective duration of assets and liabilities calculations and key assumptions"]
[null,null,null,null,null,"<Attach file>","Attach","View","Remove",null,"Description of the effective duration of assets and liabilities calculations and key assumptions"]
[null,null,null,null,null,"<Attach file>","Attach","View","Remove",null,"Description of the effective duration of assets and liabilities calculations and key assumptions"]
[null,null,null,null,null,"<Attach file>","Attach","View","Remove",null,"Description of the effective duration of assets and liabilities calculations and key assumptions"]
[null,null,null,null,null,"<Attach file>","Attach","View","Remove",null,"Description of the effective duration of assets and liabilities calculations and key assumptions"]
[null,null,null,null,null,"<Attach file>","Attach","View","Remove",null,"Description of the effective duration of assets and liabilities calculations and key assumptions"]
[null,null,null,null,null,"<Attach file>","Attach","View","Remove",null,"Description of the effective duration of assets and liabilities calculations and key assumptions"]
[null,null,null,null,null,"<Attach file>","Attach","View","Remove",null,"Description of the effective duration of assets and liabilities calculations and key assumptions"]
[null,null,null,null,null,"<Attach file>","Attach","View","Remove",null,"Description of the effective duration of assets and liabilities calculations and key assumptions"]
[null,"9.","Intra-group transactions and risk concentrations",null,null,"<Attach file>","Attach","View","Remove",null,"Description of the effective duration of assets and liabilities calculations and key assumptions"]
[null,null,null,null,null,"<Attach file>","Attach","View","Remove",null,"Description of the effective duration of assets and liabilities calculations and key assumptions"]
[null,null,null,null,null,"<Attach file>","Attach","View","Remove",null,"Description of the effective duration of assets and liabilities calculations and key assumptions"]
[null,null,null,null,null,"<Attach file>","Attach","View","Remove",null,"Description of the effective duration of assets and liabilities calculations and key assumptions"]
[null,null,null,null,null,"<Attach file>","Attach","View","Remove",null,"Description of the effective duration of assets and liabilities calculations and key assumptions"]
[null,null,null,null,null,"<Attach file>","Attach","View","Remove",null,"Description of the effective duration of assets and liabilities calculations and key assumptions"]
[null,null,null,null,null,"<Attach file>","Attach","View","Remove",null,"Description of the effective duration of assets and liabilities calculations and key assumptions"]
[null,null,null,null,null,"<Attach file>","Attach","View","Remove",null,"Description of the effective duration of assets and liabilities calculations and key assumptions"]
[null,null,null,null,null,"<Attach file>","Attach","View","Remove",null,"Description of the effective duration of assets and liabilities calculations and key assumptions"]
[null,null,null,null,null,"<Attach file>","Attach","View","Remove",null,"Description of the effective duration of assets and liabilities calculations and key assumptions"]
[null,"10.","Description of the effective duration of assets and liabilities calculations and key assumptions",null,null,"<Attach file>","Attach","View","Remove",null,"Investment policy"]
[null,null,null,null,null,"<Attach file>","Attach","View","Remove",null,"Investment policy"]
[null,null,null,null,null,"<Attach file>","Attach","View","Remove",null,"Investment policy"]
[null,null,null,null,null,"<Attach file>","Attach","View","Remove",null,"Investment policy"]
[null,null,null,null,null,"<Attach file>","Attach","View","Remove",null,"Investment policy"]
[null,null,null,null,null,"<Attach file>","Attach","View","Remove",null,"Investment policy"]
[null,null,null,null,null,"<Attach file>","Attach","View","Remove",null,"Investment policy"]
[null,null,null,null,null,"<Attach file>","Attach","View","Remove",null,"Investment policy"]
[null,null,null,null,null,"<Attach file>","Attach","View","Remove",null,"Investment policy"]
[null,null,null,null,null,"<Attach file>","Attach","View","Remove",null,"Investment policy"]
[null,"11.","Investments, derivatives strategies & policy",null,null,"<Attach file>","Attach","View","Remove",null,"Description of underwriting strategy"]
[null,null,null,null,null,"<Attach file>","Attach","View","Remove",null,"Description of underwriting strategy"]
[null,null,null,null,null,"<Attach file>","Attach","View","Remove",null,"Description of underwriting strategy"]
[null,null,null,null,null,"<Attach file>","Attach","View","Remove",null,"Description of underwriting strategy"]
[null,null,null,null,null,"<Attach file>","Attach","View","Remove",null,"Description of underwriting strategy"]
[null,null,null,null,null,"<Attach file>","Attach","View","Remove",null,"Description of underwriting strategy"]
[null,null,null,null,null,"<Attach file>","Attach","View","Remove",null,"Description of underwriting strategy"]
[null,null,null,null,null,"<Attach file>","Attach","View","Remove",null,"Description of underwriting strategy"]
[null,null,null,null,null,"<Attach file>","Attach","View","Remove",null,"Description of underwriting strategy"]
[null,null,null,null,null,"<Attach file>","Attach","View","Remove",null,"Description of underwriting strategy"]
[null,"12.","Bonds and debentures that have been reclassed in accordance with the NAIC",null,null,"<Attach file>","Attach","View","Remove",null,"Financial impact and description of stress & scenarios"]
[null,null,null,null,null,"<Attach file>","Attach","View","Remove",null,"Financial impact and description of stress & scenarios"]
[null,null,null,null,null,"<Attach file>","Attach","View","Remove",null,"Financial impact and description of stress & scenarios"]
[null,null,null,null,null,"<Attach file>","Attach","View","Remove",null,"Financial impact and description of stress & scenarios"]
[null,null,null,null,null,"<Attach file>","Attach","View","Remove",null,"Financial impact and description of stress & scenarios"]
[null,null,null,null,null,"<Attach file>","Attach","View","Remove",null,"Financial impact and description of stress & scenarios"]
[null,null,null,null,null,"<Attach file>","Attach","View","Remove",null,"Financial impact and description of stress & scenarios"]
[null,null,null,null,null,"<Attach file>","Attach","View","Remove",null,"Financial impact and description of stress & scenarios"]
[null,null,null,null,null,"<Attach file>","Attach","View","Remove",null,"Financial impact and description of stress & scenarios"]
[null,null,null,null,null,"<Attach file>","Attach","View","Remove",null,"Financial impact and description of stress & scenarios"]
[null,"13.","Mutual fund disclosures",null,null,"<Attach file>","Attach","View","Remove",null,"Description of the insurance group risk management program"]
[null,null,null,null,null,"<Attach file>","Attach","View","Remove",null,"Description of the insurance group risk management program"]
[null,null,null,null,null,"<Attach file>","Attach","View","Remove",null,"Description of the insurance group risk management program"]
[null,null,null,null,null,"<Attach file>","Attach","View","Remove",null,"Description of the insurance group risk management program"]
[null,null,null,null,null,"<Attach file>","Attach","View","Remove",null,"Description of the insurance group risk management program"]
[null,null,null,null,null,"<Attach file>","Attach","View","Remove",null,"Description of the insurance group risk management program"]
[null,null,null,null,null,"<Attach file>","Attach","View","Remove",null,"Description of the insurance group risk management program"]
[null,null,null,null,null,"<Attach file>","Attach","View","Remove",null,"Description of the insurance group risk management program"]
[null,null,null,null,null,"<Attach file>","Attach","View","Remove",null,"Description of the insurance group risk management program"]
[null,null,null,null,null,"<Attach file>","Attach","View","Remove",null,"Description of the insurance group risk management program"]
[null,"14.","Description of business and underwriting strategy",null,null,"<Attach file>","Attach","View","Remove",null,"Risk register"]
[null,null,null,null,null,"<Attach file>","Attach","View","Remove",null,"Risk register"]
[null,null,null,null,null,"<Attach file>","Attach","View","Remove",null,"Risk register"]
[null,null,null,null,null,"<Attach file>","Attach","View","Remove",null,"Risk register"]
[null,null,null,null,null,"<Attach file>","Attach","View","Remove",null,"Risk register"]
[null,null,null,null,null,"<Attach file>","Attach","View","Remove",null,"Risk register"]
[null,null,null,null,null,"<Attach file>","Attach","View","Remove",null,"Risk register"]
[null,null,null,null,null,"<Attach file>","Attach","View","Remove",null,"Risk register"]
[null,null,null,null,null,"<Attach file>","Attach","View","Remove",null,"Risk register"]
[null,null,null,null,null,"<Attach file>","Attach","View","Remove",null,"Risk register"]
[null,"15.","Summary of long-term product features and risks",null,null,"<Attach file>","Attach","View","Remove",null,"Risk register"]
[null,null,null,null,null,"<Attach file>","Attach","View","Remove",null,"Risk register"]
[null,null,null,null,null,"<Attach file>","Attach","View","Remove",null,"Risk register"]
[null,null,null,null,null,"<Attach file>","Attach","View","Remove",null,"Risk register"]
[null,null,null,null,null,"<Attach file>","Attach","View","Remove",null,"Risk register"]
[null,null,null,null,null,"<Attach file>","Attach","View","Remove",null,"Risk register"]
[null,null,null,null,null,"<Attach file>","Attach","View","Remove",null,"Risk register"]
[null,null,null,null,null,"<Attach file>","Attach","View","Remove",null,"Risk register"]
[null,null,null,null,null,"<Attach file>","Attach","View","Remove",null,"Risk register"]
[null,null,null,null,null,"<Attach file>","Attach","View","Remove",null,"Risk register"]
[null,"16.","Financial impact and description of stress & scenarios",null,null,"<Attach file>","Attach","View","Remove",null,"CISSA Attachments"]
[null,null,null,null,null,"<Attach file>","Attach","View","Remove",null,"CISSA Attachments"]
[null,null,null,null,null,"<Attach file>","Attach","View","Remove",null,"CISSA Attachments"]
[null,null,null,null,null,"<Attach file>","Attach","View","Remove",null,"CISSA Attachments"]
[null,null,null,null,null,"<Attach file>","Attach","View","Remove",null,"CISSA Attachments"]
[null,null,null,null,null,"<Attach file>","Attach","View","Remove",null,"CISSA Attachments"]
[null,null,null,null,null,"<Attach file>","Attach","View","Remove",null,"CISSA Attachments"]
[null,null,null,null,null,"<Attach file>","Attach","View","Remove",null,"CISSA Attachments"]
[null,null,null,null,null,"<Attach file>","Attach","View","Remove",null,"CISSA Attachments"]
[null,null,null,null,null,"<Attach file>","Attach","View","Remove",null,"CISSA Attachments"]
[null,"17.","Description of the insurance group risk management programme",null,null,"<Attach file>","Attach","View","Remove",null,"CISSA Attachments"]
[null,null,null,null,null,"<Attach file>","Attach","View","Remove",null,"CISSA Attachments"]
[null,null,null,null,null,"<Attach file>","Attach","View","Remove",null,"CISSA Attachments"]
[null,null,null,null,null,"<Attach file>","Attach","View","Remove",null,"CISSA Attachments"]
[null,null,null,null,null,"<Attach file>","Attach","View","Remove",null,"CISSA Attachments"]
[null,null,null,null,null,"<Attach file>","Attach","View","Remove",null,"CISSA Attachments"]
[null,null,null,null,null,"<Attach file>","Attach","View","Remove",null,"CISSA Attachments"]
[null,null,null,null,null,"<Attach file>","Attach","View","Remove",null,"CISSA Attachments"]
[null,null,null,null,null,"<Attach file>","Attach","View","Remove",null,"CISSA Attachments"]
[null,null,null,null,null,"<Attach file>","Attach","View","Remove",null,"CISSA Attachments"]
[null,"18.","Risk register",null,null,"<Attach file>","Attach","View","Remove",null,"CISSA Attachments"]
[null,null,null,null,null,"<Attach file>","Attach","View","Remove",null,"CISSA Attachments"]
[null,null,null,null,null,"<Attach file>","Attach","View","Remove",null,"CISSA Attachments"]
[null,null,null,null,null,"<Attach file>","Attach","View","Remove",null,"CISSA Attachments"]
[null,null,null,null,null,"<Attach file>","Attach","View","Remove",null,"CISSA Attachments"]
[null,null,null,null,null,"<Attach file>","Attach","View","Remove",null,"CISSA Attachments"]
[null,null,null,null,null,"<Attach file>","Attach","View","Remove",null,"CISSA Attachments"]
[null,null,null,null,null,"<Attach file>","Attach","View","Remove","","CISSA Attachments"]
[null,null,null,null,null,"<Attach file>","Attach","View","Remove","","CISSA Attachments"]
[null,null,null,null,null,"<Attach file>","Attach","View","Remove","","CISSA Attachments"]
[null,"19.","Group-Specific Parameters",null,null,"<Attach file>","Attach","View","Remove",null,"CISSA Attachments"]
[null,null,null,null,null,"<Attach file>","Attach","View","Remove",null,"CISSA Attachments"]
[null,null,null,null,null,"<Attach file>","Attach","View","Remove",null,"CISSA Attachments"]
[null,null,null,null,null,"<Attach file>","Attach","View","Remove",null,"CISSA Attachments"]
[null,null,null,null,null,"<Attach file>","Attach","View","Remove",null,"CISSA Attachments"]
[null,null,null,null,null,"<Attach file>","Attach","View","Remove",null,"CISSA Attachments"]
[null,null,null,null,null,"<Attach file>","Attach","View","Remove",null,"CISSA Attachments"]
[null,null,null,null,null,"<Attach file>","Attach","View","Remove","","CISSA Attachments"]
[null,null,null,null,null,"<Attach file>","Attach","View","Remove","","CISSA Attachments"]
[null,null,null,null,null,"<Attach file>","Attach","View","Remove","","CISSA Attachments"]
[null,"20.","Details of Deposit Assets and Liabilities",null,null,"<Attach file>","Attach","View","Remove",null,"CISSA Attachments"]
[null,null,null,null,null,"<Attach file>","Attach","View","Remove",null,"CISSA Attachments"]
[null,null,null,null,null,"<Attach file>","Attach","View","Remove",null,"CISSA Attachments"]
[null,null,null,null,null,"<Attach file>","Attach","View","Remove",null,"CISSA Attachments"]
[null,null,null,null,null,"<Attach file>","Attach","View","Remove",null,"CISSA Attachments"]
[null,null,null,null,null,"<Attach file>","Attach","View","Remove",null,"CISSA Attachments"]
[null,null,null,null,null,"<Attach file>","Attach","View","Remove",null,"CISSA Attachments"]
[null,null,null,null,null,"<Attach file>","Attach","View","Remove","","CISSA Attachments"]
[null,null,null,null,null,"<Attach file>","Attach","View","Remove","","CISSA Attachments"]
[null,null,null,null,null,"<Attach file>","Attach","View","Remove","","CISSA Attachments"]
[null,"21.","Capital and Solvency Return Declaration and Statutory Financial Statements",null,null,"<Attach file>","Attach","View","Remove",null,"CISSA Attachments"]
[null,null,null,null,null,"<Attach file>","Attach","View","Remove",null,"CISSA Attachments"]
[null,null,null,null,null,"<Attach file>","Attach","View","Remove",null,"CISSA Attachments"]
[null,null,null,null,null,"<Attach file>","Attach","View","Remove",null,"CISSA Attachments"]
[null,null,null,null,null,"<Attach file>","Attach","View","Remove",null,"CISSA Attachments"]
[null,null,null,null,null,"<Attach file>","Attach","View","Remove",null,"CISSA Attachments"]
[null,null,null,null,null,"<Attach file>","Attach","View","Remove",null,"CISSA Attachments"]
[null,null,null,null,null,"<Attach file>","Attach","View","Remove","","CISSA Attachments"]
[null,null,null,null,null,"<Attach file>","Attach","View","Remove","","CISSA Attachments"]
[null,null,null,null,null,"<Attach file>","Attach","View","Remove","","CISSA Attachments"]

{"sheet":"Declaration","index":10,"n_rows":41,"n_cols":8,"rows_kept":41,"cut":false,"hidden":false,"merged":[[36,2,36,6],[26,2,26,6],[21,2,21,6],[24,2,24,6],[31,2,31,6],[29,2,29,6],[0,1,0,6],[13,1,13,6],[16,2,16,6],[18,2,18,6],[33,2,33,6]]}
[null,"GROUP CAPITAL AND SOLVENCY RETURN DECLARATION"]
[null,null,null,null,null,null,null,{"$f":"HYPERLINK(\"#'Index'!A1\",\"Return to Index\")","v":"Return to Index"}]
[null,{"$f":"'Group Information'!C7","v":"Enter Group Company Name"}]
[null,{"$f":"'Group Information'!C3","v":"2023-12-31"}]
[]
[]
[]
[]
[]
[]
[]
[]
[]
[null,"We declare that to the best of our knowledge and belief, the information in this Group Capital and Solvency Return fairly represents the financial condition of the insurance group in all material respects."]
[]
[]
[null,"Signatory:"]
[]
[null,"Print Name:"]
[null,null,"Director"]
[]
[null,"Date:"]
[]
[]
[null,"Signatory:"]
[]
[null,"Print Name:"]
[null,null,"Director"]
[]
[null,"Date:"]
[]
[null,"Signatory:"]
[]
[null,"Print Name:"]
[null,null,"Chief Risk Officer or Chief Financial Officer"]
[]
[null,"Date:"]
[]
[null,"Insurer Name:",{"$f":"'Group Information'!C7","v":"Enter Group Company Name"}]
[]
[null,"Year-end:",{"$f":"'Group Information'!C3","v":"2023-12-31"}]

{"sheet":"Zones","index":11,"n_rows":143,"n_cols":12,"rows_kept":143,"cut":false,"hidden":false,"merged":[[134,3,134,9]]}
[null,"ZONE CATEGORISATION AND BSCR RATING SCHEDULE",null,null,null,null,null,null,null,{"$f":"HYPERLINK(\"#'Index'!A1\",\"Return to Index\")","v":"Return to Index"}]
[null,{"$f":"+'Group Information'!C9","v":"Enter Parent Company Name"}]
[]
[null,null,"Zone 1 - Central & Western Asia"]
[null,null,null,"Armenia",null,"Azerbaijan",null,"Bahrain",null,"Georgia"]
[null,null,null,"Iraq",null,"Israel",null,"Jordan",null,"Kazakhstan"]
[null,null,null,"Kuwait",null,"Kyrgyzstan",null,"Lebanon",null,"Oman"]
[null,null,null,"Palestinian",null,"Qatar",null,"Saudi Arabia",null,"Saudi Arab Republic"]
[null,null,null,"Tajikistan",null,"Turkey",null,"Turkmenistan",null,"United Arab Emirates"]
[null,null,null,"Uzbekistan",null,"Yemen"]
[]
[]
[null,null,"Zone 2 - Eastern Asia"]
[null,null,null,"China",null,"Hong Kong",null,"Japan",null,"Macao"]
[null,null,null,"Mongolia",null,"North Korea",null,"South Korea",null,"Taiwan"]
[]
[]
[null,null,"Zone 3 - South and South-Eastern Asia"]
[null,null,null,"Afghanistan",null,"Bangladesh",null,"Bhutan",null,"Brunei Darussalam"]
[null,null,null,"Cambodia",null,"India",null,"Indonesia",null,"Iran"]
[null,null,null,"Lao PDR",null,"Malaysia",null,"Maldives",null,"Myanmar"]
[null,null,null,"Nepal",null,"Pakistan",null,"Philippines",null,"Singapore"]
[null,null,null,"Sri Lanka",null,"Thailand",null,"Timor-Leste",null,"Vietnam"]
[]
[]
[null,null,"Zone 4 - Oceania"]
[null,null,null,"American Samoa",null,"Australia",null,"Cook Islands",null,"Fiji"]
[null,null,null,"French Polynesia",null,"Guam",null,"Kiribati",null,"Marshall Islands"]
[null,null,null,"Micronesia",null,"Nauru",null,"New Caledonia",null,"New Zealand"]
[null,null,null,"Niue",null,"Norfolk Island",null,"N. Mariana Islands",null,"Palau"]
[null,null,null,"Papua New Guinea",null,"Pitcairn",null,"Samoa",null,"Solomon Islands"]
[null,null,null,"Tokelau",null,"Tonga",null,"Tuvalu",null,"Vanuatu"]
[null,null,null,"Wallis & Futuna Islands"]
[]
[]
[null,null,"Zone 5 - Northern Africa"]
[null,null,null,"Algeria",null,"Benin",null,"Burkina Faso",null,"Cameroon"]
[null,null,null,"Cape Verde",null,"Central African Republic",null,"Chad",null,"Cote d' Ivoire"]
[null,null,null,"Egypt",null,"Gambia",null,"Ghana",null,"Guinea"]
[null,null,null,"Guinea-Bissau",null,"Liberia",null,"Libya",null,"Mali"]
[null,null,null,"Mauritania",null,"Morocco",null,"Niger",null,"Nigeria"]
[null,null,null,"Saint Helena",null,"Senegal",null,"Sierra Leone",null,"Sudan"]
[null,null,null,"Togo",null,"Tunisia",null,"Western Sahara"]
[]
[]
[null,null,"Zone 6 - Southern Africa"]
[null,null,null,"Angola",null,"Botswana",null,"Burundi",null,"Democratic Republic of Congo"]
[null,null,null,"Comoros",null,"Djibouti",null,"Equatorial Guinea",null,"Eritrea"]
[null,null,null,"Ethiopia",null,"Gabon",null,"Kenya",null,"Lesotho"]
[null,null,null,"Madagascar",null,"Malawi",null,"Mauritius",null,"Mayotte"]
[null,null,null,"Mozambique",null,"Namibia",null,"Republic of Congo",null,"Reunion"]
[null,null,null,"Rwanda",null,"Sao Tome & Principe",null,"Seychelles",null,"Somalia"]
[null,null,null,"South Africa",null,"Swaziland",null,"Uganda",null,"United Republic of Tanzania"]
[null,null,null,"Zambia",null,"Zimbabwe"]
[]
[]
[null,null,"Zone 7 - Eastern Europe"]
[null,null,null,"Belarus",null,"Bulgaria",null,"Czech Republic",null,"Hungary"]
[null,null,null,"Moldova",null,"Poland",null,"Romania",null,"Russian Federation"]
[null,null,null,"Slovakia",null,"Ukraine"]
[]
[null,null,"Zone 8 - Northern Europe"]
[null,null,null,"Aland Islands",null,"Channel Islands",null,"Denmark",null,"Estonia"]
[null,null,null,"Faeroe Islands",null,"Finland",null,"Guernsey",null,"Iceland"]
[null,null,null,"Republic of Ireland",null,"Isle of Man",null,"Jersey",null,"Latvia"]
[null,null,null,"Lithuania",null,"Norway",null,"Svalbard, Jan Mayen",null,"Sweden"]
[null,null,null,"United Kingdom"]
[]
[]
[null,null,"Zone 9 - Southern Europe"]
[null,null,null,"Albania",null,"Andorra",null,"Bosnia",null,"Croatia"]
[null,null,null,"Cyprus",null,"Gibraltar",null,"Greece",null,"Italy"]
[null,null,null,"fYR of Macedonia",null,"Malta",null,"Montenegro",null,"Portugal"]
[null,null,null,"San Marino",null,"Serbia",null,"Slovenia",null,"Spain"]
[null,null,null,"Vatican City"]
[]
[]
[null,null,"Zone 10 - Western Europe"]
[null,null,null,"Austria",null,"Belgium",null,"France",null,"Germany"]
[null,null,null,"Liechtenstein",null,"Luxembourg",null,"Monaco",null,"Netherlands"]
[null,null,null,"Switzerland"]
[]
[]
[null,null,"Zone 11 - Northern America (Excluding USA)"]
[null,null,null,"Bermuda",null,"Canada",null,"Greenland",null,"St Pierre & Miquelon"]
[]
[]
[null,null,"Zone 12 - Caribbean & Central America"]
[]
[null,null,null,"Anguilla",null,"Antigua & Barbuda",null,"Aruba",null,"Bahamas"]
[null,null,null,"Barbados",null,"Belize",null,"British Virgin Islands",null,"Cayman Islands"]
[null,null,null,"Costa Rica",null,"Cuba",null,"Dominica",null,"Dominican Republic"]
[null,null,null,"El Salvador",null,"Grenada",null,"Guadeloupe",null,"Guatemala"]
[null,null,null,"Haiti",null,"Honduras",null,"Jamaica",null,"Martinique"]
[null,null,null,"Mexico",null,"Montserrat",null,"Netherlands Antilles",null,"Nicaragua"]
[null,null,null,"Panama",null,"Puerto Rico",null,"St-Barthelemy",null,"St Kitts & Nevis"]
[null,null,null,"St Lucia",null,"St Martin",null,"St Vincent",null,"Trinidad & Tobago",null,"Tobago"]
[null,null,null,"Turks & Caicos Islands",null,"US Virgin Islands"]
[]
[]
[null,null,"Zone 13 - Eastern South America"]
[null,null,null,"Brazil",null,"Falkland Islands",null,"French Guiana",null,"Guyana"]
[null,null,null,"Paraguay",null,"Suriname",null,"Uruguay"]
[]
[]
[null,null,"Zone 14 - Northern, Southern and Western South America"]
[null,null,null,"Argentina",null,"Bolivia",null,"Chile",null,"Colombia"]
[null,null,null,"Ecuador",null,"Peru",null,"Venezuela"]
[]
[null,null,"Zone 15 - North-East United States"]
[null,null,null,"Connecticut",null,"Delaware",null,"District of Columbia",null,"Maine"]
[null,null,null,"Maryland",null,"Massachusetts",null,"New Hampshire",null,"New Jersey"]
[null,null,null,"New York",null,"Pennsylvania",null,"Rhode Island",null,"Vermont"]
[]
[null,null,"Zone 16 - South-East United States"]
[null,null,null,"Alabama",null,"Arkansas",null,"Florida",null,"Georgia"]
[null,null,null,"Kentucky",null,"Louisiana",null,"Mississippi",null,"North Carolina"]
[null,null,null,"South Carolina",null,"Tennessee",null,"Virginia",null,"West Virigina"]
[]
[]
[null,null,"Zone 17 - Mid-West United States"]
[null,null,null,"Illinois",null,"Indiana",null,"Iowa",null,"Kansas"]
[null,null,null,"Michigan",null,"Minnesota",null,"Missouri",null,"Nebraska"]
[null,null,null,"North Dakota",null,"Ohio",null,"Oklahoma",null,"South Dakota"]
[null,null,null,"Wisconsin"]
[]
[null,null,"Zone 18 - Western United States"]
[null,null,null,"Alaska",null,"Arizona",null,"California",null,"Colorado"]
[null,null,null,"Hawaii",null,"Idaho",null,"Montana",null,"Nevada"]
[null,null,null,"New Mexico",null,"Oregon",null,"Texas",null,"Utah"]
[null,null,null,"Washington",null,"Wyoming"]
[]
[null,"BSCR RATING SCHEDULE"]
[null,null,null,"Standard & Poor’s",null,"Moody’s",null,"AM Best",null,"Fitch"]
[null,0,null,"Sovereign debt issued by a country in its own currency that is rated AA- or better"]
[null,1,null,"AAA",null,"Aaa",null,"A++",null,"AAA"]
[null,2,null,"AA+ to AA-",null,"Aa1 to Aa3",null,"A+",null,"AA+ to AA-"]
[null,3,null,"A+ to A-",null,"A1 to A3",null,"A",null,"A+ to A-"]
[null,4,null,"BBB+ to BBB-",null,"Baa1 to Baa3",null,"A-",null,"BBB+ to BBB-"]
[null,5,null,"BB+ to BB-",null,"Ba1 to Ba3",null,"B++ to B",null,"BB+ to BB-"]
[null,6,null,"B+ to B-",null,"B1 to B3",null,"B- to C+",null,"B+ to B-"]
[null,7,null,"CCC+ to CCC-",null,"Caa1 to Caa3",null,"C, C-",null,"CCC+ to CCC-"]
[null,8,null,"Below CCC-",null,"Below Caa3",null,"Below C-",null,"Below CCC-"]

{"sheet":"Import Differences","index":12,"n_rows":8,"n_cols":4,"rows_kept":8,"cut":false,"hidden":false,"merged":[]}
["Group BSCR Model"]
["Import/Export Row Changes"]
["From the 2022 year-end model to 2023 year-end Model"]
[]
[null,"Schedule","Row(s)","Section"]
[1,"IFRS Schedules","Rows: 300:870","IFRS Financial Statements"]
[{"$f":"A6+1","v":2},"Schedule V(e) ","Rows: 4440:4441 & 4450:4451","Schedule of Stress Test Scenarios - Inflation Risk Financial Market Scenario"]
[{"$f":"A7+1","v":3},"Schedule VI & VIA","Rows: 5646:34948","Schedule of Assets and Schedule of Funds Held By Ceding Reinsurers"]

{"sheet":"Coversheet","index":13,"n_rows":39,"n_cols":9,"rows_kept":39,"cut":false,"hidden":false,"merged":[[5,2,6,7],[9,2,10,7]]}
[null,"COVER SHEET",null,null,null,null,null,null,{"$f":"HYPERLINK(\"#'Index'!A1\",\"Return to Index\")","v":"Return to Index"}]
[]
[null,"(a)","Name of Insurance Group:",null,null,null,null,null,{"$f":"+'Group Information'!C7","v":"Enter Group Company Name"}]
[]
[null,"(b)","Name and address of the designated insurer and the contact person:"]
[]
[]
[]
[null,"(c)","Name and address of other competent authorities supervising other companies that are members of the insurance group:"]
[]
[]
[]
[null,"(d)","The particulars in force, if any, of any direction issued by the Authority under Sections 6C and 32A of the Act or Rule 3(4)",null,null,null,null,null,"Enter Number of Conditions"]
[]
[null,null,null,null,"Effective Start Date","Effective End Date","Condition Description"]
[null,null,null,1]
[null,null,null,2]
[null,null,null,3]
[null,null,null,4]
[null,null,null,5]
[null,null,null,6]
[null,null,null,7]
[null,null,null,8]
[null,null,null,9]
[null,null,null,10]
[]
[null,"(e)","Filing Period:"]
[null,null,"Period Start Date:",null,null,null,null,null,"Enter Start Date"]
[null,null,"Period End Date:",null,null,null,null,null,{"$f":"+'Group Information'!C3","v":"2023-12-31"}]
[null,"(f)","the nature of the insurance business carried on by the group, that is to say—"]
[null,null,"(i) whether the insurance business carried on is general business or long-term business or both; and",null,null,null,null,null,"Select From Drop-Down"]
[]
[]
[]
[]
[null,null,null,"Select From Drop-Down"]
[null,null,null,"General Business"]
[null,null,null,"Long-Term Business"]
[null,null,null,"Both General and Long-Term"]

{"sheet":"Solvency Certificate","index":14,"n_rows":56,"n_cols":4,"rows_kept":56,"cut":false,"hidden":false,"merged":[[7,1,8,2],[10,1,11,2],[13,1,13,2],[15,1,15,2],[20,1,21,2],[22,1,23,2],[25,1,27,2],[29,1,30,2],[34,1,34,2],[38,1,39,2],[36,1,37,2]]}
[null,"SOLVENCY CERTIFICATE ",null,{"$f":"HYPERLINK(\"#'Index'!A1\",\"Return to Index\")","v":"Return to Index"}]
[]
["(1)","We, the Directors of: "]
[null,"hereinafter referred to as \"The Insurance Group\" do hereby certify that:",null,{"$f":"+'Group Information'!C7","v":"Enter Group Company Name"}]
[]
["(a)","The insurance group has prepared statutory financial statements in respect of the accounting year",null,{"$f":"+'Group Information'!C3","v":"2023-12-31"}]
[]
["(b)","whether or not the statements are available at the designated insurer's principal office in Bermuda pursuant to Rule 28 or, as the case may be, have been filed pursuant to Rules 23(9) and 24 to 27;",null,"Select from Drop-Down"]
[]
[]
["(c)","whether or not the group has complied with every direction issued by the Authority under the Act, rules, any regulations or legislation pertaining to it;",null,"Select from Drop-Down"]
[]
[]
["(d)","whether the group has complied with the minimum margin of solvency in accordance with these Rules;",null,"Select from Drop-Down"]
[]
["(e)","whether the group has complied with the requirements of the available statutory capital and surplus in accordance with Rules 22(1) and 22(3);",null,"Select from Drop-Down"]
[]
["(f)","the aggregate value of the group’s assets as shown in the group statutory balance sheet for the relevant year:",null,{"$f":"+'Form 1'!F94","v":0}]
[]
["(g)","whether in the opinion of those signing the certificate—"]
[null,"(i) that the group statutory balance sheet assets value was determined in  accordance with the requirements of the Act and of any applicable  Rules pursuant to Rule 24(2)",null,"Select from Drop-Down"]
[]
[null,"(ii) that the value of the group’s assets at the end of the relevant year was in the aggregate at least equal to the group statutory balance sheet assets value",null,"Select from Drop-Down"]
[]
[]
["(h)","whether in the opinion of those signing the certificate the aggregate amount of the group’s liabilities at the end of the relevant year (after taking into account all prospective and contingent liabilities, but not liabilities in respect of share capital) is not more than the aggregate amount of the liabilities as shown in the group’s statutory financial statements for that year;",null,"Select from Drop-Down"]
[]
[]
[]
["(i)","the aggregate amount of the statutory capital and surplus as shown in the group statutory statement of capital and surplus for the relevant year:"]
[null,null,null,{"$f":"+'Form 1'!F185","v":0}]
[]
["(j)","whether the currency in which amounts in the group’s statutory financial statements   for the relevant year have been shown;",null,"Select from Drop-Down"]
[]
["(k)","the rate of exchange used, in compliance with Rules 23(7), 24(3) and 26(3), for the purposes of any statement called for by these Rules.",null,1]
[]
["(3)","If any question in sub-paragraph  (1)(b), (c), (d), (e), (f), (g) or (h) of this paragraph has been answered in the negative, whether or not the parent company has taken corrective action",null,"Select from Drop-Down"]
[]
[]
[]
[]
[]
[null,"Director",null,"Date"]
[]
[]
[null,"Chief Executive",null,"Date"]
[]
[]
[null,"Chief Risk Officer",null,"Date"]
[]
[]
[]
[null,"Select from Drop-Down"]
[null,"Yes"]
[null,"No"]
[null,"N/A"]

{"sheet":"Financial Condition","index":15,"n_rows":501,"n_cols":9,"rows_kept":501,"cut":false,"hidden":true,"merged":[[105,1,105,2],[106,1,106,2],[107,1,107,2],[100,1,100,2],[101,1,101,2],[102,1,102,2],[103,1,103,2],[104,1,104,2],[95,1,95,2],[96,1,96,2],[97,1,97,2],[98,1,98,2],[99,1,99,2],[90,1,90,2],[91,1,91,2],[92,1,92,2],[93,1,93,2],[94,1,94,2],[447,1,448,5],[469,1,471,5],[451,1,451,5],[454,1,456,5],[458,1,458,5],[459,1,461,5],[463,1,463,5],[464,1,466,5],[422,1,424,5],[427,1,429,5],[432,1,434,5],[437,1,439,5],[442,1,444,5],[392,1,392,5],[400,1,402,5],[405,1,407,5],[410,1,412,5],[417,1,419,5],[373,1,375,5],[378,1,380,5],[383,1,385,5],[366,1,367,5],[388,1,390,5],[342,1,343,5],[344,1,346,5],[353,1,354,5],[355,1,357,5],[368,1,370,5],[319,1,321,5],[324,1,326,5],[329,1,331,5],[334,1,336,5],[338,1,338,5],[301,1,303,5],[306,1,308,5],[310,1,310,5],[313,1,315,5],[317,1,318,5],[277,1,278,5],[281,1,283,5],[286,1,288,5],[291,1,293,5],[296,1,298,5],[248,1,250,5],[255,1,257,5],[262,1,264,5],[267,1,269,5],[273,1,275,5],[219,1,221,5],[224,1,226,5],[229,1,231,5],[236,1,238,5],[241,1,243,5],[201,1,203,5],[179,1,181,5],[206,1,208,5],[213,1,215,5],[217,1,218,5],[136,1,138,5],[142,1,144,5],[184,1,186,5],[189,1,191,5],[194,1,196,5]]}
[null,"SCHEDULE OF FINANCIAL CONDITION REPORT"]
["i)","Business and Performance - particulars regarding the organisational structure, insurance business activities and financial performance "]
[]
["(a)","Name of the insurance group:"]
[null,null,null,null,null,{"$f":"+'Group Information'!C7","v":"Enter Group Company Name"}]
["(b)","Name and contact details of the group supervisor"]
[null,null,null,null,null,"Group Supervisor"]
[null,"Name:"]
[null,"Jurisdiction:"]
[null,"Email Address:"]
[null,"Phone Number:"]
[]
["(c)","Name and contact details of the Approved Group Auditor"]
[]
[null,"Organisation:"]
[null,"Name:"]
[null,"Jurisdiction:"]
[null,"Email Address:"]
[null,"Phone Number:"]
[]
["(d)","Ownership details: ",null,null,null,"Enter Number of Owners"]
[]
[null,null,null,"Owner Name",null,"Ownership Percentage"]
[null,null,1]
[null,null,2]
[null,null,3]
[null,null,4]
[null,null,5]
[null,null,6]
[null,null,7]
[null,null,8]
[null,null,9]
[null,null,10]
[null,null,11]
[null,null,12]
[null,null,13]
[null,null,14]
[null,null,15]
[]
["(e)","Group structure chart detailing the group structure"]
[]
["(f)","Insurance business written by business segment and by geographical region during the reporting period:"]
[null,"Line of Business",null,"Gross Premium Written",null,"Net Premium Written"]
[1,"Property Catastrophe",null,{"$f":"'Schedule IVA'!M11","v":0},null,{"$f":"+'Schedule IVA'!Q11","v":0}]
[2,"Property",null,{"$f":"'Schedule IVA'!M12","v":0},null,{"$f":"+'Schedule IVA'!Q12","v":0}]
[3,"Property Non – Proportional",null,{"$f":"'Schedule IVA'!M13","v":0},null,{"$f":"+'Schedule IVA'!Q13","v":0}]
[4,"Personal Accident",null,{"$f":"'Schedule IVA'!M14","v":0},null,{"$f":"+'Schedule IVA'!Q14","v":0}]
[5,"Personal Accident Non- Proportional",null,{"$f":"'Schedule IVA'!M15","v":0},null,{"$f":"+'Schedule IVA'!Q15","v":0}]
[6,"Aviation",null,{"$f":"'Schedule IVA'!M16","v":0},null,{"$f":"+'Schedule IVA'!Q16","v":0}]
[7,"Aviation Non – Proportional",null,{"$f":"'Schedule IVA'!M17","v":0},null,{"$f":"+'Schedule IVA'!Q17","v":0}]
[8,"Credit / Surety ",null,{"$f":"'Schedule IVA'!M18","v":0},null,{"$f":"+'Schedule IVA'!Q18","v":0}]
[9,"Credit / Surety Non – Proportional",null,{"$f":"'Schedule IVA'!M19","v":0},null,{"$f":"+'Schedule IVA'!Q19","v":0}]
[10,"Energy Offshore / Marine",null,{"$f":"'Schedule IVA'!M20","v":0},null,{"$f":"+'Schedule IVA'!Q20","v":0}]
[11,"Energy Offshore / Marine Non - Proportional ",null,{"$f":"'Schedule IVA'!M21","v":0},null,{"$f":"+'Schedule IVA'!Q21","v":0}]
[12,"US Casualty",null,{"$f":"'Schedule IVA'!M22","v":0},null,{"$f":"+'Schedule IVA'!Q22","v":0}]
[13,"US Casualty Non - Proportional ",null,{"$f":"'Schedule IVA'!M23","v":0},null,{"$f":"+'Schedule IVA'!Q23","v":0}]
[14,"US Professional",null,{"$f":"'Schedule IVA'!M24","v":0},null,{"$f":"+'Schedule IVA'!Q24","v":0}]
[15,"US Professional Non – Proportional",null,{"$f":"'Schedule IVA'!M25","v":0},null,{"$f":"+'Schedule IVA'!Q25","v":0}]
[16,"US Specialty ",null,{"$f":"'Schedule IVA'!M26","v":0},null,{"$f":"+'Schedule IVA'!Q26","v":0}]
[17,"US Specialty Non - Proportional",null,{"$f":"'Schedule IVA'!M27","v":0},null,{"$f":"+'Schedule IVA'!Q27","v":0}]
[18,"International Motor ",null,{"$f":"'Schedule IVA'!M28","v":0},null,{"$f":"+'Schedule IVA'!Q28","v":0}]
[19,"International Motor Non – Proportional",null,{"$f":"'Schedule IVA'!M29","v":0},null,{"$f":"+'Schedule IVA'!Q29","v":0}]
[20,"International Casualty Non – Motor ",null,{"$f":"'Schedule IVA'!M30","v":0},null,{"$f":"+'Schedule IVA'!Q30","v":0}]
[21,"International Casualty Non Motor Non – Proportional ",null,{"$f":"'Schedule IVA'!M31","v":0},null,{"$f":"+'Schedule IVA'!Q31","v":0}]
[22,"Retro Property",null,{"$f":"'Schedule IVA'!M32","v":0},null,{"$f":"+'Schedule IVA'!Q32","v":0}]
[23,"Structured / Finite Reinsurance",null,{"$f":"'Schedule IVA'!M33","v":0},null,{"$f":"+'Schedule IVA'!Q33","v":0}]
[24,"Health",null,{"$f":"'Schedule IVA'!M34","v":0},null,{"$f":"+'Schedule IVA'!Q34","v":0}]
[25,"Total ",null,{"$f":"SUM(D44:D67)","v":0},null,{"$f":"SUM(F44:F67)","v":0}]
[]
[null,"Line of Business",null,"Gross Premium Written",null,"Net Premium Written"]
[1,"Mortality ",null,{"$f":"+'Schedule IVB'!M12","v":0},null,{"$f":"+'Schedule IVB'!Y12","v":0}]
[2,"Critical Illness",null,{"$f":"+'Schedule IVB'!M13","v":0},null,{"$f":"+'Schedule IVB'!Y13","v":0}]
[3,"Longevity",null,{"$f":"+'Schedule IVB'!M14","v":0},null,{"$f":"+'Schedule IVB'!Y14","v":0}]
[4,"Deferred Annuities",null,{"$f":"+'Schedule IVB'!M15","v":0},null,{"$f":"+'Schedule IVB'!Y15","v":0}]
[5,"Disability Income: Active lives with premium guarantee of —"]
[null,"(i) Less than or equal to 1 year",null,{"$f":"+'Schedule IVB'!M17","v":0},null,{"$f":"+'Schedule IVB'!Q17+'Schedule IVB'!U17","v":0}]
[null,"(ii) More than 1 year but less than 5 years",null,{"$f":"+'Schedule IVB'!M18","v":0},null,{"$f":"+'Schedule IVB'!Q18+'Schedule IVB'!U18","v":0}]
[null,"(iii) Greater than 5 years",null,{"$f":"+'Schedule IVB'!M19","v":0},null,{"$f":"+'Schedule IVB'!Q19+'Schedule IVB'!U19","v":0}]
[6,"Disability Income: Actives lives for other accident and sickness",null,{"$f":"+'Schedule IVB'!M20","v":0},null,{"$f":"+'Schedule IVB'!Y20","v":0}]
[7,"Disability Income: Claims in payment ",null,{"$f":"+'Schedule IVB'!M22","v":0},null,{"$f":"+'Schedule IVB'!Y22","v":0}]
[8,"Disability Income: Claims in payment for other accident and sickness",null,{"$f":"+'Schedule IVB'!M23","v":0},null,{"$f":"+'Schedule IVB'!Y23","v":0}]
[9,"Group Life",null,{"$f":"+'Schedule IVB'!M25","v":0},null,{"$f":"+'Schedule IVB'!Y25","v":0}]
[10,"Group Disability",null,{"$f":"+'Schedule IVB'!M26","v":0},null,{"$f":"+'Schedule IVB'!Y26","v":0}]
[11,"Group Health",null,{"$f":"+'Schedule IVB'!M27","v":0},null,{"$f":"+'Schedule IVB'!Y27","v":0}]
[12,"Stop Loss",null,{"$f":"+'Schedule IVB'!M28","v":0},null,{"$f":"+'Schedule IVB'!Y28","v":0}]
[13,"Rider",null,{"$f":"+'Schedule IVB'!M29","v":0},null,{"$f":"+'Schedule IVB'!Y29","v":0}]
[14,"Variable Annuities",null,{"$f":"+'Schedule IVB'!M30","v":0},null,{"$f":"+'Schedule IVB'!Y30","v":0}]
[15,"Total ",null,{"$f":"SUM(D71:D87)","v":0},null,{"$f":"SUM(F71:F87)","v":0}]
[]
[null,"Geographical Location",null,"Gross Premium Written"]
[1,{"$f":"HYPERLINK(\"#'Zones'!c4\",\"Central & Western Asia\")","v":"Central & Western Asia"}]
[2,{"$f":"HYPERLINK(\"#'Zones'!c13\",\"Eastern Asia\")","v":"Eastern Asia"}]
[3,{"$f":"HYPERLINK(\"#'Zones'!c18\",\"South and South-Eastern Asia\")","v":"South and South-Eastern Asia"}]
[4,{"$f":"HYPERLINK(\"#'Zones'!c26\",\"Oceania\")","v":"Oceania"}]
[5,{"$f":"HYPERLINK(\"#'Zones'!c36\",\"Nothern Africa\")","v":"Nothern Africa"}]
[6,{"$f":"HYPERLINK(\"#'Zones'!c46\",\"Southern Africa\")","v":"Southern Africa"}]
[7,{"$f":"HYPERLINK(\"#'Zones'!c57\",\"Eastern Europe\")","v":"Eastern Europe"}]
[8,{"$f":"HYPERLINK(\"#'Zones'!c68\",\"Nothern Europe\")","v":"Nothern Europe"}]
[9,{"$f":"HYPERLINK(\"#'Zones'!c76\",\"Southern Europe\")","v":"Southern Europe"}]
[10,{"$f":"HYPERLINK(\"#'Zones'!c84\",\"Western Europe\")","v":"Western Europe"}]
[11,{"$f":"HYPERLINK(\"#'Zones'!c90\",\"Nothern America (Excluding USA)\")","v":"Nothern America (Excluding USA)"}]
[12,{"$f":"HYPERLINK(\"#'Zones'!c94\",\"Caribean & Centeral America\")","v":"Caribean & Centeral America"}]
[13,{"$f":"HYPERLINK(\"#'Zones'!c107\",\"Eastern South America\")","v":"Eastern South America"}]
[14,{"$f":"HYPERLINK(\"#'Zones'!c112\",\"Nothern, Southern, and Western South America\")","v":"Nothern, Southern, and Western South America"}]
[15,{"$f":"HYPERLINK(\"#'Zones'!c116\",\"North-East United States\")","v":"North-East United States"}]
[16,{"$f":"HYPERLINK(\"#'Zones'!c121\",\"South-East United States\")","v":"South-East United States"}]
[17,{"$f":"HYPERLINK(\"#'Zones'!c127\",\"Mid-West United States\")","v":"Mid-West United States"}]
[18,{"$f":"HYPERLINK(\"#'Zones'!c133\",\"Western United States\")","v":"Western United States"}]
[null,"TOTAL",null,{"$f":"SUM(D91:D108)","v":0}]
[]
["(g)","Performance  of  investments during the reporting period:"]
[null,null,null,"Market Value",null,"Performance"]
[1,{"$f":"+'Schedule VI PY'!C8","v":"U.S. Government "}]
[null,{"$f":"+'Schedule VI PY'!C9","v":"(a) U.S. Government Federal"},null,{"$f":"'Schedule VI (EBS) PY'!E9","v":0}]
[null,{"$f":"+'Schedule VI PY'!C10","v":"(b) U.S. Government Agency - mortgage-backed securities"},null,{"$f":"'Schedule VI (EBS) PY'!E10","v":0}]
[null,{"$f":"+'Schedule VI PY'!C11","v":"(c) U.S. Government Agency - other"},null,{"$f":"'Schedule VI (EBS) PY'!E11","v":0}]
[2,{"$f":"+'Schedule VI PY'!C12","v":"Non-U.S. Government"},null,{"$f":"'Schedule VI (EBS) PY'!E12","v":0}]
[3,{"$f":"+'Schedule VI PY'!C13","v":"States, Municipalities, and Political Subdivision"},null,{"$f":"'Schedule VI (EBS) PY'!E13","v":0}]
[4,{"$f":"+'Schedule VI PY'!C14","v":"Corporate Securities"}]
[null,{"$f":"+'Schedule VI PY'!C15","v":"(a) U.S. Government-backed Corporate"},null,{"$f":"'Schedule VI (EBS) PY'!E15","v":0}]
[null,{"$f":"+'Schedule VI PY'!C16","v":"(b) Non-U.S. Government-backed Corporate"},null,{"$f":"'Schedule VI (EBS) PY'!E16","v":0}]
[null,{"$f":"+'Schedule VI PY'!C17","v":"(c) FDIC Guaranteed Corporate"},null,{"$f":"'Schedule VI (EBS) PY'!E17","v":0}]
[null,{"$f":"+'Schedule VI PY'!C18","v":"(d) Other Corporate"},null,{"$f":"'Schedule VI (EBS) PY'!E18","v":0}]
[5,{"$f":"+'Schedule VI PY'!C19","v":"Asset-backed Securities"},null,{"$f":"'Schedule VI (EBS) PY'!E19","v":0}]
[6,{"$f":"+'Schedule VI PY'!C20","v":"Mortgage-backed Securities"}]
[null,{"$f":"+'Schedule VI PY'!C21","v":"(a) Residential Subprime"},null,{"$f":"'Schedule VI (EBS) PY'!E21","v":0}]
[null,{"$f":"+'Schedule VI PY'!C22","v":"(b) Residential Non-subprime"},null,{"$f":"'Schedule VI (EBS) PY'!E22","v":0}]
[null,{"$f":"+'Schedule VI PY'!C23","v":"(c) Commercial"},null,{"$f":"'Schedule VI (EBS) PY'!E23","v":0}]
[7,{"$f":"+'Schedule VI PY'!C24","v":"Mutual Funds"},null,{"$f":"'Schedule VI (EBS) PY'!E24","v":0}]
[8,{"$f":"+'Schedule VI PY'!C25","v":"Bank Loans"},null,{"$f":"'Schedule VI (EBS) PY'!E25","v":0}]
[9,{"$f":"+'Schedule VI PY'!C26","v":"Catastrophe Bonds and Insurance-Linked Securities"},null,{"$f":"'Schedule VI (EBS) PY'!E26","v":0}]
[10,{"$f":"+'Schedule VI PY'!C27","v":"Others (Briefly describe)"},null,{"$f":"'Schedule VI (EBS) PY'!E27","v":0}]
[null,{"$f":"+'Schedule VI PY'!C28","v":"TOTAL PORTFOLIO"},null,{"$f":"SUM(D113:D132)","v":0}]
[]
[]
[null,"Details  on  material income and expenses incurred"]
[]
[]
[]
[]
["(h)","Any other material information:"]
[]
[]
[]
[]
[]
["ii)","Governance Structure - particulars of corporate governance, risk management and solvency self-assessment frameworks"]
[]
["(a)","Board and Senior Executive:"]
[]
["i.","Directors",null,null,null,{"$f":"'Schedule V(a)'!D8","v":0}]
[]
[null,"Name","Board Position","Responsibilities"]
[1,{"$f":"'Schedule V(a)'!C12","v":0},{"$f":"'Schedule V(a)'!D12","v":0}]
[2,{"$f":"'Schedule V(a)'!C13","v":0},{"$f":"'Schedule V(a)'!D13","v":0}]
[3,{"$f":"'Schedule V(a)'!C14","v":0},{"$f":"'Schedule V(a)'!D14","v":0}]
[4,{"$f":"'Schedule V(a)'!C15","v":0},{"$f":"'Schedule V(a)'!D15","v":0}]
[5,{"$f":"'Schedule V(a)'!C16","v":0},{"$f":"'Schedule V(a)'!D16","v":0}]
[6,{"$f":"'Schedule V(a)'!C17","v":0},{"$f":"'Schedule V(a)'!D17","v":0}]
[7,{"$f":"'Schedule V(a)'!C18","v":0},{"$f":"'Schedule V(a)'!D18","v":0}]
[8,{"$f":"'Schedule V(a)'!C19","v":0},{"$f":"'Schedule V(a)'!D19","v":0}]
[9,{"$f":"'Schedule V(a)'!C20","v":0},{"$f":"'Schedule V(a)'!D20","v":0}]
[10,{"$f":"'Schedule V(a)'!C21","v":0},{"$f":"'Schedule V(a)'!D21","v":0}]
[]
[null,"Officers",null,null,null,{"$f":"'Schedule V(a)'!D33","v":0}]
[]
[null,"Name","Board Position","Responsibilities"]
[1,{"$f":"'Schedule V(a)'!C37","v":0},{"$f":"'Schedule V(a)'!D37","v":0}]
[2,{"$f":"'Schedule V(a)'!C38","v":0},{"$f":"'Schedule V(a)'!D38","v":0}]
[3,{"$f":"'Schedule V(a)'!C39","v":0},{"$f":"'Schedule V(a)'!D39","v":0}]
[4,{"$f":"'Schedule V(a)'!C40","v":0},{"$f":"'Schedule V(a)'!D40","v":0}]
[5,{"$f":"'Schedule V(a)'!C41","v":0},{"$f":"'Schedule V(a)'!D41","v":0}]
[6,{"$f":"'Schedule V(a)'!C42","v":0},{"$f":"'Schedule V(a)'!D42","v":0}]
[7,{"$f":"'Schedule V(a)'!C43","v":0},{"$f":"'Schedule V(a)'!D43","v":0}]
[8,{"$f":"'Schedule V(a)'!C44","v":0},{"$f":"'Schedule V(a)'!D44","v":0}]
[9,{"$f":"'Schedule V(a)'!C45","v":0},{"$f":"'Schedule V(a)'!D45","v":0}]
[10,{"$f":"'Schedule V(a)'!C46","v":0},{"$f":"'Schedule V(a)'!D46","v":0}]
[]
[null,"Description of segregation of these responsibilities"]
[]
[]
[]
[]
["ii.","Description of remuneration policy and practices and performance- based criteria governing the board, senior executive and employees"]
[]
[]
[]
[]
["iii.","Description of the supplementary pension or early retirement schemes for members, the board and senior executive"]
[]
[]
[]
[]
["iv.","Any material transactions with shareholder controllers, persons who exercise significant influence, the board or senior executive"]
[]
[]
[]
[]
["(b)","Fitness and Propriety Requirements"]
[]
["i.","Description of the fit and proper process in assessing the board and senior executive"]
[]
[]
[]
[]
["ii.","Description of the professional qualifications, skills, and expertise of the board and senior executives to carry out their functions"]
[]
[]
[]
[]
["(c)","Risk Management and Solvency Self-Assessment"]
[]
["i.","Description of  the risk management process and procedures to effectively identify, measure, manage and report on risk exposures"]
[]
[]
[]
[]
["ii.","Description of how the risk management and solvency self- assessment systems are implemented and integrated into the insurer’s operations; including strategic planning and organisational and decision making process"]
[]
[]
[]
[]
[]
["iii.","Description of the relationship between the solvency self- assessment, solvency needs, and capital and risk management systems"]
[]
[]
[]
[]
["iv.","Description of the solvency self-assessment approval process including the level of oversight and independent verification by the board and senior executives"]
[]
[]
[]
[]
["(d)","Internal Controls"]
[]
["i.","Description of the internal control system"]
[]
[]
[]
[]
["ii.","Description of how the compliance function is executed"]
[]
[]
[]
[]
["(e)","Internal Audit"]
[]
[null,"Description of how the internal audit function is implemented and how it maintains its independence and objectivity when conducting its functions"]
[]
[]
[]
[]
["(f)","Actuarial Function"]
[]
[null,"Description of how the actuarial function is implemented"]
[]
[]
[]
[]
["(g)","Outsourcing"]
[]
["i.","Description of the outsourcing policy and information on any key or important functions that have been outsourced"]
[]
[]
[]
[]
["ii.","Description of material intra-group outsourcing"]
[]
[]
[]
[]
["(h)","Any other material information:"]
[]
[]
[]
[]
[]
["iii)","Risk Profile - particulars on exposures on underwriting risk, market risk including off balance sheet exposures, credit risk, liquidity risk, operational risk and other material risks"]
[]
[]
["(a)","Material risks that the insurer is exposed to, including how these risks are measured and any material changes that have occurred during the reporting period:"]
[]
[]
[]
[]
["(b)","How risks are mitigated including the methods used and the process to monitor the effectiveness of these methods"]
[]
[]
[]
[]
["(c)","Material risk concentrations"]
[]
[]
[]
[]
["(d)","How assets are invested by and on behalf of an insurance group in accordance with the prudent person principle as stated in paragraph 12 (1) (a) of these Rules"]
[]
[]
[]
[]
["(e)","The stress testing and sensitivity analysis to assess material risks, including the methods and assumptions used, and the outcomes"]
[]
[]
[]
[]
["(f)","Any other material information:"]
[]
[]
[]
[]
["iv)","Solvency Valuation - particulars of the valuation bases, methods and assumptions on the inputs used to determine solvency"]
[]
["(a)","The valuation bases, assumptions and methods used to derive the value of each asset class"]
[]
[]
[]
[]
["(b)","The valuation bases, assumptions and methods used to derive the value of technical provisions and the amount of the best estimate. The amount of the risk margin as well as the level of uncertainty to determine the value of the technical provisions should be included"]
[]
[]
[]
[]
[]
["(c)","Description of recoverables from reinsurance contracts, including special purpose insurers and other risk transfer mechanisms"]
[]
[]
[]
[]
["(d)","The valuation bases, assumptions and methods used to derive the value of other liabilities"]
[]
[]
[]
[]
["(e)","Any other material information:"]
[]
[]
[]
[]
["v)","Capital Management - particulars regarding an assessment of capital needs and regulatory capital requirements"]
[]
["(a)","Eligible Capital"]
[]
["i.","Description of the capital management policy and process to determine capital needs for business planning, how capital is managed and any material changes during the reporting period"]
[]
[]
[]
[]
[]
["ii.","Eligible Capital"]
[null,"Tier 1",null,null,null,{"$f":"+'Schedule XIII(a)'!J57","v":0}]
[null,"Tier 2",null,null,null,{"$f":"+'Schedule XIII(a)'!J70","v":0}]
[null,"Tier 3",null,null,null,{"$f":"+'Schedule XIII(a)'!J78","v":0}]
[null,"Total",null,null,null,{"$f":"SUM(F350:F352)","v":0}]
[null,"Description of the eligible capital categorised by tiers in accordance with the Eligible Capital Rules"]
[]
[]
[]
[]
[]
["iii.","Eligible Capital by Regulatory Limitations"]
[null,null,"Limits:                 MSM                    ECR","Minimum Margin of Solvency",null,"Enhanced Capital Requirement"]
[null,"Tier 1","min                             80%                          60%",{"$f":"+'Schedule XIII(a)'!G94","v":0},null,{"$f":"+'Schedule XIII(a)'!I94","v":0}]
[null,"Tier 2","max                            20%                          40%",{"$f":"+'Schedule XIII(a)'!G95","v":0},null,{"$f":"+'Schedule XIII(a)'!I95","v":0}]
[null,"Tier 3","max                                                              15%",null,null,{"$f":"+'Schedule XIII(a)'!I96","v":0}]
[null,"Total",null,{"$f":"SUM(D362:D364)","v":0},null,{"$f":"SUM(F362:F364)","v":0}]
[]
[null,"Description of the  eligible capital categorised by tiers, in accordance with the Eligible Capital Rules used to meet the Enhanced Capital Requirement (“ECR”) and the Minimum Margin of Solvency (“MSM”) defined in accordance with section (1) (1) of the Act"]
[]
[]
[]
[]
[]
["iv.","Confirmation that eligible capital is subject to transitional arrangements as required under the Eligible Capital Rules",null,null,null,"Select from Drop-Down"]
[]
[]
[]
[]
["v.","Identification of any factors affecting encumbrances affecting the availability and transferability of capital to meet the ECR"]
[]
[]
[]
[]
["vi."," Identification of ancillary capital instruments that have been approved by the Authority"]
[]
[]
[]
[]
["vii.","Identification of differences in shareholder’s equity as stated in the financial statements versus available statutory capital and surplus"]
[]
[]
[]
[]
["(b)","Regulatory Capital Requirements"]
[]
["i.","Amount of the ECR and MSM at the end of the reporting period:"]
[null,null,null,null,null,"Amount"]
[null,"Minimum Margin of Solvency",null,null,null,{"$f":"Summary!M78","v":0}]
[null,"Enhanced Capital Requirement",null,null,null,{"$f":"Summary!M84","v":0}]
[]
["ii.","Identification of any non-compliance with the MSM and the ECR"]
[]
[]
[]
[]
["iii.","Description of the amount and circumstances surrounding the non-compliance, the remedial measures taken and their effectiveness"]
[]
[]
[]
[]
["iv.","Where the non-compliance has not been resolved, description of the amount of the non-compliance at the end of the reporting period"]
[]
[]
[]
[]
["(c)","Approved Internal Capital Model used to derive the ECR"]
[]
["i.","Description of the purpose and scope of the business and risk areas where the internal model is used"]
[]
[]
[]
[]
["ii.","where a partial internal model is used, description of how it is integrated with the BSCR Model"]
[]
[]
[]
[]
["iii.","Description of methods used in the internal model to calculate the ECR"]
[]
[]
[]
[]
["iv.","Description of aggregation methodologies and diversification effects"]
[]
[]
[]
[]
["v.","description of the main differences in the methods and assumptions used for the risk areas in the internal model versus the BSCR Model"]
[]
[]
[]
[]
["vi.","Description of the nature and suitability of the data used in the internal model"]
[]
[]
[]
[]
["vii.","Any other material information:"]
[]
[]
[]
[]
["vi)","Significant Event - particulars and explanations of a significant event including, but not limited to the following"]
[]
["(a)","Description of the significant event"]
[]
[]
[]
[]
["(b)","Approximate date(s) or proposed timing of the significant event"]
[]
[]
[]
[]
["(c)","Confirmation of how the significant event has impacted or will impact, any information provided in the most recent financial condition report filed with the Authority"]
[]
[]
[]
[]
["(d)","Any other material information:"]
[]
[]
[]
[]
[]
[]
[null,"Select from Drop-Down"]
[null,"Yes"]
[null,"No"]
[null,null,null,null,null,null,null,null,""]
[null,null,null,null,null,null,null,null,""]
[null,"General Questions"]
[null,"Select from Drop-Down"]
[null,"Yes"]
[null,"No"]
[]
[null,"Ra"]
[null,"Rating Agency"]
[null,"Select Rating Agency"]
[null,"Standard & Poor"]
[null,"Moody's"]
[null,"AM Best"]
[null,"Fitch"]
[null,"Standard & Poor","Moody's","AM Best","Fitch"]
[null,"AAA","Aaa","A++","AAA"]
[null,"AA+ to AA-","Aa1 to Aa3","A+","AA+ to AA-"]
[null,"A+ to A-","A1 to A3","A","A+ to A-"]
[null,"BBB+ to BBB-","Baa1 to Baa3","A-","BBB+ to BBB-"]
[null,"BB+ to BB-","Ba1 to Ba3","B++ to B","BB+ to BB-"]
[null,"B+ to B-","B1 to B3","B- to C+","B+ to B-"]
[null,"CCC+ to CCC-","Caa1 to Caa3","C, C-","CCC+ to CCC-"]
[null,"Below CCC-","Below Caa3","Below C-","Below CCC-"]

{"sheet":"Form 1","index":16,"n_rows":296,"n_cols":8,"rows_kept":296,"cut":false,"hidden":false,"merged":[[214,5,214,7],[216,5,216,7]]}
[null,"GROUP STATUTORY BALANCE SHEET"]
[null,{"$f":"'Group Information'!C9","v":"Enter Parent Company Name"},null,null,null,null,null,{"$f":"HYPERLINK(\"#'Index'!A1\",\"Return to Index\")","v":"Return to Index"}]
[null,"As at",{"$f":"'Group Information'!C3","v":"2023-12-31"}]
[null,"expressed in "," ['000s]United States Dollars",null,null,null,null,"FORM 1"]
[]
[null,"STMT."]
[null,"LINE No.",null,null,null,{"$f":"C3","v":"2023-12-31"},null,{"$f":"DATE(YEAR(C3) -1, MONTH(C3), DAY(C3))","v":"2022-12-31"}]
[null,null,null,null,null,"('000)",null,"('000)"]
[]
[null,"1.","CASH AND TIME DEPOSITS",null,null,{"$f":"Import!E6","v":0},null,{"$f":"Import!G6","v":0}]
[]
[null,"2.","QUOTED INVESTMENTS:"]
[null,"(a)","Bonds and debentures"]
[null,null,"  i.   Held to maturity",null,null,{"$f":"Import!E7","v":0},null,{"$f":"Import!G7","v":0}]
[null,null,"  ii.  Other",null,null,{"$f":"Import!E8","v":0},null,{"$f":"Import!G8","v":0}]
[null,"(b)","Total bonds and debentures",null,null,{"$f":"SUM(F14:F15)","v":0},null,{"$f":"SUM(H14:H15)","v":0}]
[null,"(c) ","Equities "]
[null,null,"  i.   Common stocks",null,null,{"$f":"Import!E10","v":0},null,{"$f":"Import!G10","v":0}]
[null,null,"  ii.  Preferred stocks",null,null,{"$f":"Import!E11","v":0},null,{"$f":"Import!G11","v":0}]
[null,null,"  iii. Mutual funds",null,null,{"$f":"Import!E12","v":0},null,{"$f":"Import!G12","v":0}]
[null,"(d) ","Total equities",null,null,{"$f":"SUM(F18:F20)","v":0},null,{"$f":"SUM(H18:H20)","v":0}]
[null,"(e)","Other quoted investments",null,null,{"$f":"Import!E13","v":0},null,{"$f":"Import!G13","v":0}]
[null,"(f)","Total quoted investments",null,null,{"$f":"F16+F21+F22","v":0},null,{"$f":"H16+H21+H22","v":0}]
[]
[null,"3.","UNQUOTED INVESTMENTS:"]
[null,"(a)","Bonds and debentures"]
[null,null,"  i.   Held to maturity",null,null,{"$f":"Import!E14","v":0},null,{"$f":"Import!G14","v":0}]
[null,null,"  ii.  Other",null,null,{"$f":"Import!E15","v":0},null,{"$f":"Import!G15","v":0}]
[null,"(b)","Total bonds and debentures",null,null,{"$f":"SUM(F27:F28)","v":0},null,{"$f":"SUM(H27:H28)","v":0}]
[null,"(c) ","Equities "]
[null,null,"  i.   Common stocks",null,null,{"$f":"Import!E17","v":0},null,{"$f":"Import!G17","v":0}]
[null,null,"  ii.  Preferred stocks",null,null,{"$f":"Import!E18","v":0},null,{"$f":"Import!G18","v":0}]
[null,null,"  iii. Mutual funds",null,null,{"$f":"Import!E19","v":0},null,{"$f":"Import!G19","v":0}]
[null,"(d) ","Total equities",null,null,{"$f":"SUM(F31:F33)","v":0},null,{"$f":"SUM(H31:H33)","v":0}]
[null,"(e) ","Other unquoted investments",null,null,{"$f":"Import!E20","v":0},null,{"$f":"Import!G20","v":0}]
[null,"(f) ","Total unquoted investments",null,null,{"$f":"F29+F34+F35","v":0},null,{"$f":"H29+H34+H35","v":0}]
[]
[null,"4.","INVESTMENTS IN AND ADVANCES TO AFFILIATES (EQUITY):"]
[null,"(a)","Unregulated entities that conduct ancillary services",null,null,{"$f":"Import!E21","v":0},null,{"$f":"Import!G21","v":0}]
[null,"(b)","Unregulated non-financial operating entities",null,null,{"$f":"Import!E22","v":0},null,{"$f":"Import!G22","v":0}]
[null,"(c)","Unregulated financial operating entities",null,null,{"$f":"Import!E23","v":0},null,{"$f":"Import!G23","v":0}]
[null,"(d)","Regulated non-insurance financial operating entities",null,null,{"$f":"Import!E24","v":0},null,{"$f":"Import!G24","v":0}]
[null,"(e)","Regulated insurance financial operating entities",null,null,{"$f":"Import!E25","v":0},null,{"$f":"Import!G25","v":0}]
[null,"(f)","Total investments in affiliates (equity)",null,null,{"$f":"SUM(F39:F43)","v":0},null,{"$f":"SUM(H39:H43)","v":0}]
[null,"(g)","Advances to affiliates",null,null,{"$f":"Import!E26","v":0},null,{"$f":"Import!G26","v":0}]
[null,"(h)","Total investments in and advances to affiliates (equity)",null,null,{"$f":"F44+F45","v":0},null,{"$f":"H44+H45","v":0}]
[]
[null,"5.","INVESTMENTS IN MORTGAGE LOANS ON REAL ESTATE:"]
[null,"(a)","First liens",null,null,{"$f":"Import!E27","v":0},null,{"$f":"Import!G27","v":0}]
[null,"(b)","Other than first liens ",null,null,{"$f":"Import!E28","v":0},null,{"$f":"Import!G28","v":0}]
[null,"(c) ","Total investments in mortgage loans on real estate",null,null,{"$f":"SUM(F49:F50)","v":0},null,{"$f":"SUM(H49:H50)","v":0}]
[]
[null,"6.","POLICY LOANS",null,null,{"$f":"Import!E29","v":0},null,{"$f":"Import!G29","v":0}]
[]
[null,"7.","REAL ESTATE:"]
[null,"(a)","Occupied by the group (less encumbrances)",null,null,{"$f":"Import!E30","v":0},null,{"$f":"Import!G30","v":0}]
[null,"(b)","Other properties (less encumbrances)",null,null,{"$f":"Import!E31","v":0},null,{"$f":"Import!G31","v":0}]
[null,"(c) ","Total real estate",null,null,{"$f":"SUM(F56:F57)","v":0},null,{"$f":"SUM(H56:H57)","v":0}]
[]
[null,"8.","COLLATERAL LOANS",null,null,{"$f":"Import!E32","v":0},null,{"$f":"Import!G32","v":0}]
[]
[null,"9.","INVESTMENT INCOME DUE AND ACCRUED",null,null,{"$f":"Import!E33","v":0},null,{"$f":"Import!G33","v":0}]
[]
[null,"10.","ACCOUNTS AND PREMIUMS RECEIVABLE:"]
[null,"(a)","In course of collection",null,null,{"$f":"Import!E34","v":0},null,{"$f":"Import!G34","v":0}]
[null,"(b)","Deferred - not yet due",null,null,{"$f":"Import!E35","v":0},null,{"$f":"Import!G35","v":0}]
[null,"(c) ","Receivables from retrocessional contracts",null,null,{"$f":"Import!E36","v":0},null,{"$f":"Import!G36","v":0}]
[null,"(d)","Total accounts and premiums receivable",null,null,{"$f":"SUM(F65:F67)","v":0},null,{"$f":"SUM(H65:H67)","v":0}]
[]
[null,"11.","REINSURANCE BALANCES RECEIVABLE:"]
[null,"(a)","Foreign affiliates ",null,null,{"$f":"Import!E37","v":0},null,{"$f":"Import!G37","v":0}]
[null,"(b)","Domestic affiliates ",null,null,{"$f":"Import!E38","v":0},null,{"$f":"Import!G38","v":0}]
[null,"(c)","Pools & associations",null,null,{"$f":"Import!E39","v":0},null,{"$f":"Import!G39","v":0}]
[null,"(d)","All other insurers",null,null,{"$f":"Import!E40","v":0},null,{"$f":"Import!G40","v":0}]
[null,"(e) ","Total reinsurance balances receivable",null,null,{"$f":"SUM(F71:F74)","v":0},null,{"$f":"SUM(H71:H74)","v":0}]
[]
[null,"12.","FUNDS HELD BY CEDING REINSURERS",null,null,{"$f":"Import!E43","v":0},null,{"$f":"Import!G43","v":0}]
[]
[null,"13.","SUNDRY ASSETS:"]
[null,"(a)","Derivative instruments",null,null,{"$f":"Import!E44","v":0},null,{"$f":"Import!G44","v":0}]
[null,"(b)","Segregated accounts companies - long-term business - variable annuities",null,null,{"$f":"Import!E45","v":0},null,{"$f":"Import!G45","v":0}]
[null,"(c)","Segregated accounts companies - long-term business - others",null,null,{"$f":"Import!E46","v":0},null,{"$f":"Import!G46","v":0}]
[null,"(d)","Segregated accounts companies - general business",null,null,{"$f":"Import!E47","v":0},null,{"$f":"Import!G47","v":0}]
[null,"(e)","Deposit assets",null,null,{"$f":"Import!E48","v":0},null,{"$f":"Import!G48","v":0}]
[null,"(f)","Other sundry assets (specify)",null,null,{"$f":"Import!E53","v":0},null,{"$f":"Import!G53","v":0}]
[null,"(g)","Total sundry assets",null,null,{"$f":"SUM(F80:F85)","v":0},null,{"$f":"SUM(H80:H85)","v":0}]
[]
[null,"14.","LETTERS OF CREDIT, GUARANTEES AND OTHER INSTRUMENTS:"]
[null,"(a)","Letters of credit ",null,null,{"$f":"Import!E54","v":0},null,{"$f":"Import!G54","v":0}]
[null,"(b)","Guarantees",null,null,{"$f":"Import!E55","v":0},null,{"$f":"Import!G55","v":0}]
[null,"(c) ","Other instruments",null,null,{"$f":"Import!E56","v":0},null,{"$f":"Import!G56","v":0}]
[null,"(d)","Total letters of credit, guarantees and other instruments",null,null,{"$f":"SUM(F89:F91)","v":0},null,{"$f":"SUM(H89:H91)","v":0}]
[]
[null,"15.","TOTAL",null,null,{"$f":"F10+F23+F36+F46+F51+F53+F58+F60+F62+F68+F75+F77+F86+F92","v":0},null,{"$f":"H10+H23+H36+H46+H51+H53+H58+H60+H62+H68+H75+H77+H86+H92","v":0}]
[]
[null,null,"TOTAL INSURANCE RESERVES, OTHER LIABILITIES AND "]
[null,null,"STATUTORY ECONOMIC CAPITAL AND SURPLUS"]
[]
[null,null,"GENERAL BUSINESS INSURANCE RESERVES"]
[]
[null,"16.","UNEARNED PREMIUMS",null,null,{"$f":"Import!E62","v":0},null,{"$f":"Import!G62","v":0}]
[]
[null,"17.","LOSS AND LOSS EXPENSE PROVISIONS:"]
[null,"(a)","Gross loss and loss expense provisions",null,null,{"$f":"Import!E63","v":0},null,{"$f":"Import!G63","v":0}]
[null,"(b)","Less : Reinsurance recoverable balance"]
[null,null,"  i.   Foreign affiliates",null,null,{"$f":"Import!E64","v":0},null,{"$f":"Import!G64","v":0}]
[null,null,"  ii.  Domestic affiliates",null,null,{"$f":"Import!E65","v":0},null,{"$f":"Import!G65","v":0}]
[null,null,"  iii. Pools & associations",null,null,{"$f":"Import!E66","v":0},null,{"$f":"Import!G66","v":0}]
[null,null,"  iv.  All other insurers",null,null,{"$f":"Import!E67","v":0},null,{"$f":"Import!G67","v":0}]
[null,"(c) ","Total reinsurance recoverable balance",null,null,{"$f":"SUM(F106:F109)","v":0},null,{"$f":"SUM(H106:H109)","v":0}]
[null,"(d) ","Net loss and loss expense provisions",null,null,{"$f":"F104-F110","v":0},null,{"$f":"H104-H110","v":0}]
[]
[null,"18.","OTHER INSURANCE RESERVES",null,null,{"$f":"Import!E68","v":0},null,{"$f":"Import!G68","v":0}]
[]
[null,"19.","TOTAL GENERAL BUSINESS - INSURANCE RESERVES",null,null,{"$f":"F101+F111+F113","v":0},null,{"$f":"H101+H111+H113","v":0}]
[]
[null,null,"LONG-TERM BUSINESS INSURANCE RESERVES"]
[]
[null,"20.","RESERVES FOR REPORTED CLAIMS",null,null,{"$f":"Import!E69","v":0},null,{"$f":"Import!G69","v":0}]
[]
[null,"21.","RESERVES FOR UNREPORTED CLAIMS",null,null,{"$f":"Import!E70","v":0},null,{"$f":"Import!G70","v":0}]
[]
[null,"22.","POLICY RESERVES - LIFE",null,null,{"$f":"Import!E71","v":0},null,{"$f":"Import!G71","v":0}]
[]
[null,"23.","POLICY RESERVES - ACCIDENT AND HEALTH",null,null,{"$f":"Import!E72","v":0},null,{"$f":"Import!G72","v":0}]
[]
[null,"24.","POLICYHOLDER'S FUNDS ON DEPOSIT",null,null,{"$f":"Import!E73","v":0},null,{"$f":"Import!G73","v":0}]
[]
[null,"25.","LIABILITY FOR FUTURE POLICYHOLDER DIVIDENDS",null,null,{"$f":"Import!E74","v":0},null,{"$f":"Import!G74","v":0}]
[]
[null,"26.","OTHER LONG-TERM BUSINESS INSURANCE RESERVES",null,null,{"$f":"Import!E75","v":0},null,{"$f":"Import!G75","v":0}]
[]
[null,"27.","TOTAL LONG-TERM BUSINESS INSURANCE RESERVES"]
[null,"(a)","Total Gross Long-Term Business Insurance Reserves",null,null,{"$f":"F140+F141","v":0},null,{"$f":"H140+H141","v":0}]
[null,"(b)","Less: Reinsurance Recoverable Balance:"]
[null,null,"(i) Foreign Affiliates",null,null,{"$f":"Import!E76","v":0},null,{"$f":"Import!G76","v":0}]
[null,null,"(ii) Domestic Affiliaties",null,null,{"$f":"Import!E77","v":0},null,{"$f":"Import!G77","v":0}]
[null,null,"(iii) Pools and Associations",null,null,{"$f":"Import!E78","v":0},null,{"$f":"Import!G78","v":0}]
[null,null,"(iv) All Other Insurers",null,null,{"$f":"Import!E79","v":0},null,{"$f":"Import!G79","v":0}]
[null,"(c)","Total Reinsurance Recoverable Balance",null,null,{"$f":"SUM(F136:F139)","v":0},null,{"$f":"SUM(H136:H139)","v":0}]
[null,"(d)","Net Long-Term Business Insurance Reserves",null,null,{"$f":"F119+F121+F123+F125+F127+F129+F131","v":0},null,{"$f":"H119+H121+H123+H125+H127+H129+H131","v":0}]
[]
[null,null,"OTHER LIABILITIES"]
[]
[null,"28.","INSURANCE AND REINSURANCE BALANCES PAYABLE",null,null,{"$f":"Import!E86","v":0},null,{"$f":"Import!G86","v":0}]
[]
[null,"29.","COMMISSIONS, EXPENSES, FEES AND TAXES PAYABLE",null,null,{"$f":"Import!E87","v":0},null,{"$f":"Import!G87","v":0}]
[]
[null,"30.","LOANS AND NOTES PAYABLE",null,null,{"$f":"Import!E88","v":0},null,{"$f":"Import!G88","v":0}]
[]
[null,"31.","(a) INCOME TAXES PAYABLE",null,null,{"$f":"Import!E89","v":0},null,{"$f":"Import!G89","v":0}]
[]
[null,null,"(b) DEFERRED INCOME TAXES",null,null,{"$f":"Import!E90","v":0},null,{"$f":"Import!G90","v":0}]
[]
[null,"32.","AMOUNTS DUE TO AFFILIATES",null,null,{"$f":"Import!E91","v":0},null,{"$f":"Import!G91","v":0}]
[]
[null,"33.","ACCOUNTS PAYABLE AND ACCRUED LIABILITIES",null,null,{"$f":"Import!E92","v":0},null,{"$f":"Import!G92","v":0}]
[]
[null,"34.","FUNDS HELD UNDER REINSURANCE CONTRACTS",null,null,{"$f":"Import!E95","v":0},null,{"$f":"Import!G95","v":0}]
[]
[null,"35.","DIVIDENDS PAYABLE",null,null,{"$f":"Import!E96","v":0},null,{"$f":"Import!G96","v":0}]
[]
[null,"36.","SUNDRY LIABILITIES:"]
[null,"(a)","Derivative instruments",null,null,{"$f":"Import!E97","v":0},null,{"$f":"Import!G97","v":0}]
[null,"(b)","Segregated accounts - LT business – variable annuities",null,null,{"$f":"Import!E99","v":0},null,{"$f":"Import!G99","v":0}]
[null,"(c)","Segregated accounts - LT business - other",null,null,{"$f":"Import!E100","v":0},null,{"$f":"Import!G100","v":0}]
[null,"(d)","Segregated accounts - General business",null,null,{"$f":"Import!E101","v":0},null,{"$f":"Import!G101","v":0}]
[null,"(e)","Deposit liabilities",null,null,{"$f":"Import!E102","v":0},null,{"$f":"Import!G102","v":0}]
[null,"(f)","Other sundry liabilities (specify)",null,null,{"$f":"Import!E105","v":0},null,{"$f":"Import!G105","v":0}]
[null,"(g)","Total sundry liabilities",null,null,{"$f":"SUM(F164:F169)","v":0},null,{"$f":"SUM(H164:H169)","v":0}]
[]
[null,"37.","LETTERS OF CREDIT, GUARANTEES AND OTHER INSTRUMENTS:"]
[null,"(a)","Letters of credit ",null,null,{"$f":"Import!E106","v":0},null,{"$f":"Import!G106","v":0}]
[null,"(b)","Guarantees",null,null,{"$f":"Import!E107","v":0},null,{"$f":"Import!G107","v":0}]
[null,"(c) ","Other instruments",null,null,{"$f":"Import!E108","v":0},null,{"$f":"Import!G108","v":0}]
[null,"(d)","Total letters of credit, guarantees and other instruments",null,null,{"$f":"SUM(F173:F175)","v":0},null,{"$f":"SUM(H173:H175)","v":0}]
[]
[]
[null,"38.","TOTAL OTHER LIABILITIES",null,null,{"$f":"F145+F147+F149+F151+F153+F155+F157+F159+F161+F170+F176","v":0},null,{"$f":"H145+H147+H149+H151+H153+H155+H157+H159+H161+H170+H176","v":0}]
[]
[null,"39.","TOTAL INSURANCE RESERVES AND OTHER LIABILITIES",null,null,{"$f":"F115+F141+F179","v":0},null,{"$f":"H115+H141+H179","v":0}]
[]
[null,null,"STATUTORY CAPITAL AND SURPLUS"]
[]
[null,"40.","STATUTORY CAPITAL AND SURPLUS",null,null,{"$f":"'Form 8'!G66","v":0},null,{"$f":"'Form 8'!I66","v":0}]
[]
[null,"41.","TOTAL",null,null,{"$f":"F181+F185","v":0},null,{"$f":"H181+H185","v":0}]
[]
[null,null,null,null,null,{"$f":"IF(F190=\"TRUE\",HYPERLINK(\"#'Form 1'!F94\",\"TRUE\"),HYPERLINK(\"#'Form 1'!F94\",\"FALSE\"))","v":"TRUE"},null,{"$f":"IF(H190=\"TRUE\",HYPERLINK(\"#'Form 1'!H94\",\"TRUE\"),HYPERLINK(\"#'Form 1'!H94\",\"FALSE\"))","v":"TRUE"}]
[null,null,null,null,null,{"$f":"IF(ROUND((F94-F187),0)=0,\"TRUE\",\"FALSE\")","v":"TRUE"},null,{"$f":"IF(ROUND((H94-H187),0)=0,\"TRUE\",\"FALSE\")","v":"TRUE"}]
[null,null,null,null,null,{"$f":"ROUND((F94-F187),0)","v":0},null,{"$f":"ROUND((H94-H187),0)","v":0}]
[]
[null,null,null,null,null,{"$f":"IF(F189=\"False\",\"Line 15 does not equal Line 41\",\"\")","v":""},null,{"$f":"IF(H189=\"False\",\"Line 15 does not equal Line 41\",\"\")","v":""}]
[]
[null,"Notes to Form 1"]
[null,"Line 10 ","Collateralized balances",null,null,{"$f":"Import!E111","v":0},null,{"$f":"Import!G111","v":0}]
[]
[null,"Line 11(e)","Collateralized balances",null,null,{"$f":"Import!E112","v":0},null,{"$f":"Import!G112","v":0}]
[]
[null,"Line 17(c) &"]
[null,"Line 27(c)","Collateralized balances",null,null,{"$f":"Import!E113","v":0},null,{"$f":"Import!G113","v":0}]
[]
[null,"Line 11","Letters of credit",null,null,{"$f":"Import!E114","v":0},null,{"$f":"Import!G114","v":0}]
[]
[null,"Line 15","Encumbered assets for policyholder obligations"]
[]
[null,null,"Asset"]
[null,null,"                Cash",null,null,{"$f":"Import!E120","v":0},null,{"$f":"Import!G120","v":0}]
[null,null,"                Total quoted investments",null,null,{"$f":"Import!E121","v":0},null,{"$f":"Import!G121","v":0}]
[null,null,"                Total unquoted investments",null,null,{"$f":"Import!E122","v":0},null,{"$f":"Import!G122","v":0}]
[null,null,"                Funds held by ceding reinsurers",null,null,{"$f":"F77","v":0},null,{"$f":"H77","v":0}]
[null,null,"                Other asset types",null,null,{"$f":"Import!E124","v":0},null,{"$f":"Import!G124","v":0}]
[null,null,"                Total assets encumbered",null,null,{"$f":"SUM(F208:F212)","v":0},null,{"$f":"SUM(H208:H212)","v":0}]
[]
[null,"Line 15","Encumbered assets not securing policyholder obligations"]
[]
[null,null,"Asset","Purpose of Encumbrance"]
[null,null,"                    Cash",{"$f":"Import!E126","v":0},null,{"$f":"Import!E130","v":0},null,{"$f":"Import!G130","v":0}]
[null,null,"                    Total quoted investments",{"$f":"Import!E127","v":0},null,{"$f":"Import!E131","v":0},null,{"$f":"Import!G131","v":0}]
[null,null,"                    Total unquoted investments",{"$f":"Import!E128","v":0},null,{"$f":"Import!E132","v":0},null,{"$f":"Import!G132","v":0}]
[null,null,"                    Other asset types",{"$f":"Import!E129","v":0},null,{"$f":"Import!E133","v":0},null,{"$f":"Import!G133","v":0}]
[null,null,"                    Total assets encumbered",null,null,{"$f":"SUM(F218:F221)","v":0},null,{"$f":"SUM(H218:H221)","v":0}]
[]
[null,"Line 17","Gross loss and loss expense provisions at beginning of year",null,null,{"$f":"Import!E156","v":0},null,{"$f":"Import!G156","v":0}]
[]
[null,null,"Less: Reinsurance recoverable at beginning of year",null,null,{"$f":"Import!E157","v":0},null,{"$f":"Import!G157","v":0}]
[]
[null,null,"Net loss and loss expense provisions at beginning of year",null,null,{"$f":"F224-F226","v":0},null,{"$f":"H224-H226","v":0}]
[]
[null,null,"Acquisition / Sale of loss reserves (net):",null,null,{"$f":"Import!E159","v":0},null,{"$f":"Import!G159","v":0}]
[]
[null,null,"Net losses incurred and net loss expenses incurred related to:"]
[]
[null,null,"               Current year",null,null,{"$f":"Import!E160","v":0},null,{"$f":"Import!G160","v":0}]
[null,null,"               Prior years",null,null,{"$f":"Import!E161","v":0},null,{"$f":"Import!G161","v":0}]
[]
[null,null,"Total net incurred losses & loss expenses",null,null,{"$f":"SUM(F234:F235)","v":0},null,{"$f":"SUM(H234:H235)","v":0}]
[]
[null,null,"Net losses and loss expenses paid or payable related to:"]
[]
[null,null,"               Current year",null,null,{"$f":"Import!E163","v":0},null,{"$f":"Import!G163","v":0}]
[null,null,"               Prior years",null,null,{"$f":"Import!E164","v":0},null,{"$f":"Import!G164","v":0}]
[]
[null,null,"Total losses and loss expenses paid or payable",null,null,{"$f":"SUM(F241:F242)","v":0},null,{"$f":"SUM(H241:H242)","v":0}]
[]
[null,null,"Foreign exchange and other",null,null,{"$f":"Import!E166","v":0},null,{"$f":"Import!G166","v":0}]
[]
[null,null,"Net loss and loss expense provisions at end of year",null,null,{"$f":"F228+F230+F237+F244+F246","v":0},null,{"$f":"H228+H230+H237+H244+H246","v":0}]
[]
[null,null,"Add: Reinsurance recoverable at end of year",null,null,{"$f":"Import!E168","v":0},null,{"$f":"Import!G168","v":0}]
[]
[null,null,"Gross loss and loss expense provisions at end of year",null,null,{"$f":"F248+F250","v":0},null,{"$f":"H248+H250","v":0}]
[]
[null,null,null,null,null,{"$f":"IF(F255=\"TRUE\",HYPERLINK(\"#'Form 1'!F104\",\"TRUE\"),HYPERLINK(\"#'Form 1'!F104\",\"FALSE\"))","v":"TRUE"},null,{"$f":"IF(H255=\"TRUE\",HYPERLINK(\"#'Form 1'!H104\",\"TRUE\"),HYPERLINK(\"#'Form 1'!H104\",\"FALSE\"))","v":"TRUE"}]
[null,null,null,null,null,{"$f":"IF(ROUND((F252-F104),0)=0,\"TRUE\",\"FALSE\")","v":"TRUE"},null,{"$f":"IF(ROUND((H252-H104),0)=0,\"TRUE\",\"FALSE\")","v":"TRUE"}]
[null,null,null,null,null,{"$f":"ROUND(F104-F252,0)","v":0},null,{"$f":"ROUND(H104-H252,0)","v":0}]
[]
[null,null,null,null,null,{"$f":"IF(F254=\"False\",\"Does not equal Line 17(a)\",\"\")","v":""},null,{"$f":"IF(H254=\"False\",\"Does not equal Line 17(a)\",\"\")","v":""}]
[]
[null,"Line 27","Total gross long-term business insurance reserves at beginning of year",null,null,{"$f":"Import!E170","v":0},null,{"$f":"Import!G170","v":0}]
[]
[null,null,"Less: Reinsurance recoverable on long-term business at beginning of year",null,null,{"$f":"Import!E171","v":0},null,{"$f":"Import!G171","v":0}]
[]
[null,null,"Total net long-term business insurance reserves at beginning of year",null,null,{"$f":"F260-F262","v":0},null,{"$f":"H260-H262","v":0}]
[]
[null,null,"Acquisition / Sale of loss reserves (net):",null,null,{"$f":"Import!E173","v":0},null,{"$f":"Import!G173","v":0}]
[]
[null,null,"Long-term business deductions related to:"]
[]
[null,null,"               Current year",null,null,{"$f":"Import!E174","v":0},null,{"$f":"Import!G174","v":0}]
[null,null,"               Prior years",null,null,{"$f":"Import!E175","v":0},null,{"$f":"Import!G175","v":0}]
[]
[null,null,"Total long-term business deductions",null,null,{"$f":"SUM(F270:F271)","v":0},null,{"$f":"SUM(H270:H271)","v":0}]
[]
[null,null,"Less: Long-term business deductions paid or payable related to:"]
[]
[null,null,"               Current year",null,null,{"$f":"Import!E177","v":0},null,{"$f":"Import!G177","v":0}]
[null,null,"               Prior years",null,null,{"$f":"Import!E178","v":0},null,{"$f":"Import!G178","v":0}]
[]
[null,null,"Total long-term business deductions paid or payable",null,null,{"$f":"SUM(F277:F278)","v":0},null,{"$f":"SUM(H277:H278)","v":0}]
[]
[null,null,"Total net long-term business insurance reserves at end of year",null,null,{"$f":"F264+F266+F273+F280","v":0},null,{"$f":"H264+H266+H273+H280","v":0}]
[]
[null,null,"Add: Reinsurance recoverable on long-term business at end of year",null,null,{"$f":"Import!E181","v":0},null,{"$f":"Import!G181","v":0}]
[]
[null,null,"Total gross long-term business insurance reserves at end of year",null,null,{"$f":"F282+F284","v":0},null,{"$f":"H282+H284","v":0}]
[]
[null,null,null,null,null,{"$f":"IF(F289=\"TRUE\",HYPERLINK(\"#'Form 1'!F134\",\"TRUE\"),HYPERLINK(\"#'Form 1'!F134\",\"FALSE\"))","v":"TRUE"},null,{"$f":"IF(H289=\"TRUE\",HYPERLINK(\"#'Form 1'!H134\",\"TRUE\"),HYPERLINK(\"#'Form 1'!H134\",\"FALSE\"))","v":"TRUE"}]
[null,null,null,null,null,{"$f":"IF(ROUND((F286-F134),0)=0,\"TRUE\",\"FALSE\")","v":"TRUE"},null,{"$f":"IF(ROUND((H286-H134),0)=0,\"TRUE\",\"FALSE\")","v":"TRUE"}]
[null,null,null,null,null,{"$f":"ROUND(F134-F286,0)","v":0},null,{"$f":"ROUND(H134-H286,0)","v":0}]
[]
[null,null,null,null,null,{"$f":"IF(F288=\"False\",\"Does not equal Line 27(a)\",\"\")","v":""},null,{"$f":"IF(H288=\"False\",\"Does not equal Line 27(a)\",\"\")","v":""}]
[]
[null,"Line 37","Discount rate or rates used in present value calculations",null,null,{"$f":"Import!E183","v":0},null,{"$f":"Import!G183","v":0}]
[]
[null,null,"Aggregate undiscounted value of liabilities or contingent liabilities",null,null,{"$f":"Import!E184","v":0},null,{"$f":"Import!G184","v":0}]

{"sheet":"Form 2","index":17,"n_rows":152,"n_cols":8,"rows_kept":152,"cut":false,"hidden":false,"merged":[]}
[null,"GROUP STATUTORY STATEMENT OF INCOME"]
[null,{"$f":"'Group Information'!C9","v":"Enter Parent Company Name"},null,null,null,null,{"$f":"HYPERLINK(\"#'Index'!A1\",\"Return to Index\")","v":"Return to Index"}]
[null,"For the year ending",{"$f":"'Group Information'!C3","v":"2023-12-31"}]
[null,"expressed in ",{"$f":"'Form 1EBS'!C4","v":" ['000s]United States Dollars"},null,null,null,"FORM 2"]
[]
[null,"STMT."]
[null,"LINE No.",null,null,{"$f":"'Form 1EBS'!F7","v":"2023-12-31"},null,{"$f":"'Form 1EBS'!H7","v":"2022-12-31"}]
[null,null,null,null,"('000)",null,"('000)"]
[null,null,"GENERAL BUSINESS UNDERWRITING INCOME"]
[]
[null,"1.","GROSS PREMIUMS WRITTEN:"]
[null,null,"(a) Direct gross premiums written",null,{"$f":"Import!E198","v":0},null,{"$f":"Import!G198","v":0}]
[null,null,"(b) Assumed gross premiums written",null,{"$f":"Import!E199","v":0},null,{"$f":"Import!G199","v":0}]
[null,null,"(c) Total gross premiums written",null,{"$f":"SUM(E12:E13)","v":0},null,{"$f":"SUM(G12:G13)","v":0}]
[]
[null,"2.","REINSURANCE PREMIUMS CEDED",null,{"$f":"Import!E200","v":0},null,{"$f":"Import!G200","v":0}]
[]
[null,"3.","NET PREMIUMS WRITTEN",null,{"$f":"E14-E16","v":0},null,{"$f":"G14-G16","v":0}]
[]
[null,"4.","INCREASE (DECREASE) IN UNEARNED PREMIUMS",null,{"$f":"Import!E201","v":0},null,{"$f":"Import!G201","v":0}]
[]
[null,"5.","NET PREMIUMS EARNED",null,{"$f":"E18+E20","v":0},null,{"$f":"G18+G20","v":0}]
[]
[null,"6.","OTHER INSURANCE INCOME",null,{"$f":"Import!E202","v":0},null,{"$f":"Import!G202","v":0}]
[]
[null,"7.",null,null,{"$f":"E22+E24","v":0},null,{"$f":"G22+G24","v":0}]
[]
[null,null,"GENERAL BUSINESS UNDERWRITING EXPENSES"]
[]
[null,"8.","NET LOSSES INCURRED AND NET LOSS EXPENSES INCURRED",null,{"$f":"Import!E203","v":0},null,{"$f":"Import!G203","v":0}]
[]
[null,"9.","COMMISSIONS AND BROKERAGE",null,{"$f":"Import!E204","v":0},null,{"$f":"Import!G204","v":0}]
[]
[null,"10.",null,null,{"$f":"E30+E32","v":0},null,{"$f":"G30+G32","v":0}]
[]
[null,"11.","NET UNDERWRITING PROFIT (LOSS) - GENERAL BUSINESS",null,{"$f":"E26-E34","v":0},null,{"$f":"G26-G34","v":0}]
[]
[null,null,"LONG-TERM BUSINESS UNDERWRITING INCOME"]
[]
[null,"12.","GROSS PREMIUMS AND OTHER CONSIDERATIONS:"]
[null,null,"(a) Direct gross premiums and other considerations",null,{"$f":"Import!E205","v":0},null,{"$f":"Import!G205","v":0}]
[null,null,"(b) Assumed gross premiums and other considerations",null,{"$f":"Import!E206","v":0},null,{"$f":"Import!G206","v":0}]
[null,null,"(c) Total gross premiums and other considerations",null,{"$f":"SUM(E41:E42)","v":0},null,{"$f":"SUM(G41:G42)","v":0}]
[]
[null,"13.","PREMIUMS CEDED",null,{"$f":"E43-E51","v":0},null,{"$f":"G43-G51","v":0}]
[]
[null,"14.","NET PREMIUMS AND OTHER CONSIDERATIONS:"]
[null,null,"(a) Life",null,{"$f":"Import!E208","v":0},null,{"$f":"Import!G208","v":0}]
[null,null,"(b) Annuities",null,{"$f":"Import!E209","v":0},null,{"$f":"Import!G209","v":0}]
[null,null,"(c) Accident and health",null,{"$f":"Import!E210","v":0},null,{"$f":"Import!G210","v":0}]
[null,null,"(d) Total net premiums and other considerations",null,{"$f":"SUM(E48:E50)","v":0},null,{"$f":"SUM(G48:G50)","v":0}]
[]
[null,"15.","OTHER INSURANCE INCOME",null,{"$f":"Import!E211","v":0},null,{"$f":"Import!G211","v":0}]
[]
[null,"16.",null,null,{"$f":"E51+E53","v":0},null,{"$f":"G51+G53","v":0}]
[]
[null,null,"LONG-TERM BUSINESS DEDUCTIONS AND EXPENSES"]
[]
[null,"17.","CLAIMS - LIFE",null,{"$f":"Import!E212","v":0},null,{"$f":"Import!G212","v":0}]
[]
[null,"18.","POLICYHOLDERS' DIVIDENDS",null,{"$f":"Import!E213","v":0},null,{"$f":"Import!G213","v":0}]
[]
[null,"19.","SURRENDERS",null,{"$f":"Import!E214","v":0},null,{"$f":"Import!G214","v":0}]
[]
[null,"20.","MATURITIES",null,{"$f":"Import!E215","v":0},null,{"$f":"Import!G215","v":0}]
[]
[null,"21.","ANNUITIES",null,{"$f":"Import!E216","v":0},null,{"$f":"Import!G216","v":0}]
[]
[null,"22.","ACCIDENT AND HEALTH BENEFITS",null,{"$f":"Import!E217","v":0},null,{"$f":"Import!G217","v":0}]
[]
[null,"23.","COMMISSIONS",null,{"$f":"Import!E218","v":0},null,{"$f":"Import!G218","v":0}]
[]
[null,"24.","OTHER",null,{"$f":"Import!E219","v":0},null,{"$f":"Import!G219","v":0}]
[]
[null,"25.",null,null,{"$f":"E59+E61+E63+E65+E67+E69+E71+E73","v":0},null,{"$f":"G59+G61+G63+G65+G67+G69+G71+G73","v":0}]
[]
[null,"26.","INCREASE (DECREASE) IN POLICY RESERVES:"]
[null,null,"(a) Life",null,{"$f":"Import!E220","v":0},null,{"$f":"Import!G220","v":0}]
[null,null,"(b) Annuities",null,{"$f":"Import!E221","v":0},null,{"$f":"Import!G221","v":0}]
[null,null,"(c) Accident and health",null,{"$f":"Import!E222","v":0},null,{"$f":"Import!G222","v":0}]
[null,null,"(d) Total increase (decrease) in policy reserves",null,{"$f":"SUM(E78:E80)","v":0},null,{"$f":"SUM(G78:G80)","v":0}]
[]
[null,"27.",null,null,{"$f":"E75+E81","v":0},null,{"$f":"G75+G81","v":0}]
[]
[null,"28.","NET UNDERWRITING PROFIT (LOSS) - LONG-TERM BUSINESS",null,{"$f":"E55-E83","v":0},null,{"$f":"G55-G83","v":0}]
[]
[null,"29.","COMBINED NET UNDERWRITING PROFIT (LOSS) BEFORE "]
[null,null,"THE UNDERNOTED ITEMS",null,{"$f":"E36+E85","v":0},null,{"$f":"G36+G85","v":0}]
[]
[null,null,"UNDERNOTED ITEMS"]
[]
[null,"30.","COMBINED OPERATING EXPENSES:"]
[null,null,"(a) General and administrative ",null,{"$f":"Import!E223","v":0},null,{"$f":"Import!G223","v":0}]
[null,null,"(b) Personnel Costs  ",null,{"$f":"Import!E224","v":0},null,{"$f":"Import!G224","v":0}]
[null,null,"(c) Other  ",null,{"$f":"Import!E225","v":0},null,{"$f":"Import!G225","v":0}]
[null,null,"(d) Total combined operating expenses  ",null,{"$f":"SUM(E93:E95)","v":0},null,{"$f":"SUM(G93:G95)","v":0}]
[]
[null,"31.","COMBINED INVESTMENT INCOME - NET",null,{"$f":"Import!E226","v":0},null,{"$f":"Import!G226","v":0}]
[]
[null,"32.","COMBINED OTHER INCOME (DEDUCTIONS)",null,{"$f":"Import!E227","v":0},null,{"$f":"Import!G227","v":0}]
[]
[null,"33.","COMBINED INCOME BEFORE TAXES",null,{"$f":"E88-E96+E98+E100","v":0},null,{"$f":"G88-G96+G98+G100","v":0}]
[]
[null,"34.","COMBINED INCOME TAXES (IF APPLICABLE):"]
[null,null,"(a) Current",null,{"$f":"Import!E228","v":0},null,{"$f":"Import!G228","v":0}]
[null,null,"(b) Deferred",null,{"$f":"Import!E229","v":0},null,{"$f":"Import!G229","v":0}]
[null,null,"(c) Total ",null,{"$f":"E105+E106","v":0},null,{"$f":"G105+G106","v":0}]
[]
[null,"35.","COMBINED INCOME BEFORE REALIZED GAINS (LOSSES)",null,{"$f":"E102-E107","v":0},null,{"$f":"G102-G107","v":0}]
[]
[null,"36.","COMBINED REALIZED GAINS (LOSSES)",null,{"$f":"Import!E230","v":0},null,{"$f":"Import!G230","v":0}]
[]
[null,"37.","COMBINED INTEREST CHARGES",null,{"$f":"Import!E231","v":0},null,{"$f":"Import!G231","v":0}]
[]
[null,"38.","NET INCOME",null,{"$f":"E109+E111-E113","v":0},null,{"$f":"G109+G111-G113","v":0}]
[]
[null,"Notes to Form 2"]
[]
[null,"Line 31","Nature and amount of material items"]
[null,null,{"$f":"Import!E241","v":0},null,{"$f":"Import!E232","v":0},null,{"$f":"Import!G232","v":0}]
[null,null,{"$f":"Import!E242","v":0},null,{"$f":"Import!E233","v":0},null,{"$f":"Import!G233","v":0}]
[null,null,{"$f":"Import!E243","v":0},null,{"$f":"Import!E234","v":0},null,{"$f":"Import!G234","v":0}]
[null,null,{"$f":"Import!E244","v":0},null,{"$f":"Import!E235","v":0},null,{"$f":"Import!G235","v":0}]
[null,null,{"$f":"Import!E245","v":0},null,{"$f":"Import!E236","v":0},null,{"$f":"Import!G236","v":0}]
[null,null,{"$f":"Import!E246","v":0},null,{"$f":"Import!E237","v":0},null,{"$f":"Import!G237","v":0}]
[null,null,{"$f":"Import!E247","v":0},null,{"$f":"Import!E238","v":0},null,{"$f":"Import!G238","v":0}]
[null,null,{"$f":"Import!E248","v":0},null,{"$f":"Import!E239","v":0},null,{"$f":"Import!G239","v":0}]
[null,null,"TOTAL",null,{"$f":"SUM(E120:E127)","v":0},null,{"$f":"SUM(G120:G127)","v":0}]
[]
[null,"Line 32","Nature and amount of material items"]
[null,null,{"$f":"Import!E258","v":0},null,{"$f":"Import!E249","v":0},null,{"$f":"Import!G249","v":0}]
[null,null,{"$f":"Import!E259","v":0},null,{"$f":"Import!E250","v":0},null,{"$f":"Import!G250","v":0}]
[null,null,{"$f":"Import!E260","v":0},null,{"$f":"Import!E251","v":0},null,{"$f":"Import!G251","v":0}]
[null,null,{"$f":"Import!E261","v":0},null,{"$f":"Import!E252","v":0},null,{"$f":"Import!G252","v":0}]
[null,null,{"$f":"Import!E262","v":0},null,{"$f":"Import!E253","v":0},null,{"$f":"Import!G253","v":0}]
[null,null,{"$f":"Import!E263","v":0},null,{"$f":"Import!E254","v":0},null,{"$f":"Import!G254","v":0}]
[null,null,{"$f":"Import!E264","v":0},null,{"$f":"Import!E255","v":0},null,{"$f":"Import!G255","v":0}]
[null,null,{"$f":"Import!E265","v":0},null,{"$f":"Import!E256","v":0},null,{"$f":"Import!G256","v":0}]
[null,null,"TOTAL",null,{"$f":"SUM(E131:E138)","v":0},null,{"$f":"SUM(G131:G138)","v":0}]
[]
[null,"Line 36","Nature and amount of material items"]
[null,null,{"$f":"Import!E275","v":0},null,{"$f":"Import!E266","v":0},null,{"$f":"Import!G266","v":0}]
[null,null,{"$f":"Import!E276","v":0},null,{"$f":"Import!E267","v":0},null,{"$f":"Import!G267","v":0}]
[null,null,{"$f":"Import!E277","v":0},null,{"$f":"Import!E268","v":0},null,{"$f":"Import!G268","v":0}]
[null,null,{"$f":"Import!E278","v":0},null,{"$f":"Import!E269","v":0},null,{"$f":"Import!G269","v":0}]
[null,null,{"$f":"Import!E279","v":0},null,{"$f":"Import!E270","v":0},null,{"$f":"Import!G270","v":0}]
[null,null,{"$f":"Import!E280","v":0},null,{"$f":"Import!E271","v":0},null,{"$f":"Import!G271","v":0}]
[null,null,{"$f":"Import!E281","v":0},null,{"$f":"Import!E272","v":0},null,{"$f":"Import!G272","v":0}]
[null,null,{"$f":"Import!E282","v":0},null,{"$f":"Import!E273","v":0},null,{"$f":"Import!G273","v":0}]
[null,null,"TOTAL",null,{"$f":"SUM(E142:E149)","v":0},null,{"$f":"SUM(G142:G149)","v":0}]
[]
[null,null,null,null,{"$f":"IF(((E43-E45)-E51)=0,\"TRUE\",\"FALSE\")","v":"TRUE"},null,{"$f":"IF(((G43-G45)-G51)=0,\"TRUE\",\"FALSE\")","v":"TRUE"},"CHECK"]

{"sheet":"Form 8","index":18,"n_rows":66,"n_cols":9,"rows_kept":66,"cut":false,"hidden":false,"merged":[[2,2,2,3],[3,2,3,3]]}
[null,"GROUP STATUTORY STATEMENT OF CAPITAL AND SURPLUS",null,null,null,null,null,null,{"$f":"HYPERLINK(\"#'Index'!A1\",\"Return to Index\")","v":"Return to Index"}]
[null,{"$f":"'Group Information'!C9","v":"Enter Parent Company Name"}]
[null,"For the year ending",{"$f":"'Group Information'!C3","v":"2023-12-31"}]
[null,"expressed in ",{"$f":"'Form 1EBS'!C4","v":" ['000s]United States Dollars"},null,null,null,null,null,"FORM 8"]
[]
[null,"STMT."]
[null,"LINE No.",null,null,null,null,{"$f":"'Form 1EBS'!F7","v":"2023-12-31"},null,{"$f":"'Form 1EBS'!H7","v":"2022-12-31"}]
[null,null,null,null,null,null,"('000)",null,"('000)"]
[null,"1.","STATUTORY CAPITAL"]
[]
[null,"(a)","Capital stock"]
[null,null,"i. Common shares",null,null,null,{"$f":"Import!E285","v":0},null,{"$f":"Import!G285","v":0}]
[null,null,"authorized",null,"shares of par"]
[null,null,"value",null,"each issued and"]
[null,null,"fully paid",null,"shares"]
[]
[null,null,"ii.A. Preferred shares",null,null,null,{"$f":"Import!E286","v":0},null,{"$f":"Import!G286","v":0}]
[null,null,"authorized",null,"shares of par"]
[null,null,"value",null,"each issued and"]
[null,null,"fully paid",null,"shares"]
[null,null,"aggregate liquidation value for —"]
[null,null,{"$f":"G7","v":"2023-12-31"}]
[null,null,{"$f":"I7","v":"2022-12-31"}]
[]
[null,null,"ii.B. Preferred shares issued by a subsidary",null,null,null,{"$f":"Import!E287","v":0},null,{"$f":"Import!G287","v":0}]
[null,null,"authorized",null,"shares of par"]
[null,null,"value",null,"each issued and"]
[null,null,"fully paid",null,"shares"]
[null,null,"aggregate liquidation value for —"]
[null,null,{"$f":"+C22","v":"2023-12-31"}]
[null,null,{"$f":"+C23","v":"2022-12-31"}]
[]
[null,null,"(iii) Treasury shares",null,null,null,{"$f":"Import!E288","v":0},null,{"$f":"Import!G288","v":0}]
[null,null,"repurchased",null,"shares of par"]
[null,null,"value",null,"each issued"]
[]
[null,"(b)","Contributed surplus",null,null,null,{"$f":"Import!E289","v":0},null,{"$f":"Import!G289","v":0}]
[]
[null,"(c)","Any other fixed capital"]
[null,null,"(i) Hybrid capital instruments",null,null,null,{"$f":"Import!E290","v":0},null,{"$f":"Import!G290","v":0}]
[null,null,"(ii) Guarantees and others",null,null,null,{"$f":"Import!E291","v":0},null,{"$f":"Import!G291","v":0}]
[null,null,"(iii) Total any other fixed capital",null,null,null,{"$f":"SUM(G40:G41)","v":0},null,{"$f":"SUM(I40:I41)","v":0}]
[]
[null,"(d)","Total Statutory Capital",null,null,null,{"$f":"G12+G17+-G33+G37+G25+G42","v":0},null,{"$f":"I12+I17+-I33+I37+I25+I42","v":0}]
[]
[null,"2.","STATUTORY SURPLUS"]
[]
[null,"(a)","Statutory Surplus - Beginning of Year",null,null,null,{"$f":"Import!E292","v":0},null,{"$f":"Import!G292","v":0}]
[]
[null,"(b)","Add: Income for Year",null,null,null,{"$f":"'Form 2'!E115","v":0},null,{"$f":"'Form 2'!G115","v":0}]
[]
[null,"(c)","Less: Dividends paid and payable",null,null,null,{"$f":"Import!E293","v":0},null,{"$f":"Import!G293","v":0}]
[]
[null,"(d)","Add (Deduct): Change in unrealized appreciation (depreciation) of investments",null,null,null,{"$f":"Import!E294","v":0},null,{"$f":"Import!G294","v":0}]
[]
[null,"(e)","Add (Deduct): Change in non-admitted assets",null,null,null,{"$f":"Import!E295","v":0},null,{"$f":"Import!G295","v":0}]
[]
[null,"(f)","Add (Deduct): Change in appraisal of real estate",null,null,null,{"$f":"Import!E296","v":0},null,{"$f":"Import!G296","v":0}]
[]
[null,"(g)","Add (Deduct): Change in any other statutory capital",null,null,null,{"$f":"Import!E297","v":0},null,{"$f":"Import!G297","v":0}]
[]
[null,"(h)","Statutory Surplus - End of Year",null,null,null,{"$f":"G48+G50+G52+G54+G56+G58+G60","v":0},null,{"$f":"I48+I50+I52+I54+I56+I58+I60","v":0}]
[]
[null,"3.","MINORITY INTEREST",null,null,null,{"$f":"Import!E298","v":0},null,{"$f":"Import!G298","v":0}]
[]
[null,"4.","TOTAL STATUTORY CAPITAL AND SURPLUS",null,null,null,{"$f":"G44+G62+G64","v":0},null,{"$f":"I44+I62+I64","v":0}]

{"sheet":"Form 1A","index":19,"n_rows":353,"n_cols":15,"rows_kept":353,"cut":false,"hidden":false,"merged":[[166,12,166,14],[167,12,167,14],[168,12,168,14],[173,8,173,10],[174,8,174,10],[279,4,279,6],[279,8,279,12],[175,8,175,10],[177,8,177,10],[183,8,183,10],[198,4,198,6],[198,8,198,12],[184,8,184,10],[185,8,185,10],[186,8,186,10],[176,8,176,10],[238,4,238,6],[238,8,238,12],[190,12,190,14],[191,12,191,14],[192,12,192,14],[305,1,305,2],[317,4,317,6],[289,1,289,2],[290,1,290,2],[294,1,294,2],[299,1,299,2],[301,1,301,2],[295,1,295,2]]}
[null,"STATUTORY BALANCE SHEET",null,null,null,null,null,null,null,null,null,null,null,null,{"$f":"HYPERLINK(\"#'Index'!A1\",\"Return to Index\")","v":"Return to Index"}]
[null,{"$f":"'Group Information'!C7","v":"Enter Group Company Name"}]
[null,"As at",{"$f":"'Group Information'!C3","v":"2023-12-31"},null,null,null,null,null,null,null,null,null,null,null,"FORM 1ASFS"]
[null,"Expressed in  ['000s]"," ['000s]United States Dollars"]
[]
[null,"STMT."]
[null,"LINE No.",null,null,null,null,null,null,null,null,null,null,{"$f":"C3","v":"2023-12-31"},null,{"$f":"DATE(YEAR(C3) -1, MONTH(C3), DAY(C3))","v":"2022-12-31"}]
[null,null,null,null,null,null,null,null,null,null,null,null," ('000s)",null," ('000s)"]
[]
[null,"1.","CASH AND CASH EQUIVALENTS",null,null,null,null,null,null,null,null,null,{"$f":"Import!E301","v":0},null,{"$f":"Import!G301","v":0}]
[]
[null,"2.","QUOTED INVESTMENTS:"]
[null,"(a)","Bonds and Debentures"]
[null,null,"  i.   Assets Held to maturity or collection",null,null,null,null,null,null,null,null,null,{"$f":"Import!E302","v":0},null,{"$f":"Import!G302","v":0}]
[null,null,"  ii.  Other",null,null,null,null,null,null,null,null,null,{"$f":"Import!E303","v":0},null,{"$f":"Import!G303","v":0}]
[null,"(b) ","Total Bonds and Debentures",null,null,null,null,null,null,null,null,null,{"$f":"SUM(M14:M15)","v":0},null,{"$f":"SUM(O14:O15)","v":0}]
[null,"(c) ","Equities "]
[null,null,"  i.  Common stocks",null,null,null,null,null,null,null,null,null,{"$f":"Import!E304","v":0},null,{"$f":"Import!G304","v":0}]
[null,null,"  ii. Preferred stocks",null,null,null,null,null,null,null,null,null,{"$f":"Import!E305","v":0},null,{"$f":"Import!G305","v":0}]
[null,null,"  iii. Mutual Funds",null,null,null,null,null,null,null,null,null,{"$f":"Import!E306","v":0},null,{"$f":"Import!G306","v":0}]
[null,"(d) ","Total Equity Investments",null,null,null,null,null,null,null,null,null,{"$f":"SUM(M18:M20)","v":0},null,{"$f":"SUM(O18:O20)","v":0}]
[null,"(e)","Other quoted investments",null,null,null,null,null,null,null,null,null,{"$f":"Import!E307","v":0},null,{"$f":"Import!G307","v":0}]
[null,"(f)","Total quoted investments",null,null,null,null,null,null,null,null,null,{"$f":"M16+M21+M22","v":0},null,{"$f":"O16+O21+O22","v":0}]
[]
[null,"3.","UNQUOTED INVESTMENTS:"]
[null,"(a)","Bonds and Debentures"]
[null,null,"  i.   Assets held to maturity or collection",null,null,null,null,null,null,null,null,null,{"$f":"Import!E308","v":0},null,{"$f":"Import!G308","v":0}]
[null,null,"  ii.  Other",null,null,null,null,null,null,null,null,null,{"$f":"Import!E309","v":0},null,{"$f":"Import!G309","v":0}]
[null,"(b) ","Total Bonds and Debentures",null,null,null,null,null,null,null,null,null,{"$f":"SUM(M27:M28)","v":0},null,{"$f":"SUM(O27:O28)","v":0}]
[null,"(c) ","Equities "]
[null,null,"  i.  Common stocks",null,null,null,null,null,null,null,null,null,{"$f":"Import!E310","v":0},null,{"$f":"Import!G310","v":0}]
[null,null,"  ii. Preferred stocks",null,null,null,null,null,null,null,null,null,{"$f":"Import!E311","v":0},null,{"$f":"Import!G311","v":0}]
[null,null,"  iii. Mutual Funds",null,null,null,null,null,null,null,null,null,{"$f":"Import!E312","v":0},null,{"$f":"Import!G312","v":0}]
[null,"(d) ","Total equity investments",null,null,null,null,null,null,null,null,null,{"$f":"SUM(M31:M33)","v":0},null,{"$f":"SUM(O31:O33)","v":0}]
[null,"(e)","Other unquoted investments",null,null,null,null,null,null,null,null,null,{"$f":"Import!E313","v":0},null,{"$f":"Import!G313","v":0}]
[null,"(f)","Total unquoted investments",null,null,null,null,null,null,null,null,null,{"$f":"M29+M34+M35","v":0},null,{"$f":"O29+O34+O35","v":0}]
[]
[null,"4.","INVESTMENTS IN AND ADVANCES TO AFFILIATES (EQUITY METHOD):"]
[null,"(a)","Unregulated entities that conduct ancillary services",null,null,null,null,null,null,null,null,null,{"$f":"Import!E314","v":0},null,{"$f":"Import!G314","v":0}]
[null,"(b)","Unregulated non-financial operating entities",null,null,null,null,null,null,null,null,null,{"$f":"Import!E315","v":0},null,{"$f":"Import!G315","v":0}]
[null,"(c)","Unregulated financial operating entities",null,null,null,null,null,null,null,null,null,{"$f":"Import!E316","v":0},null,{"$f":"Import!G316","v":0}]
[null,"(d)","Regulated non-insurance financial operating entities",null,null,null,null,null,null,null,null,null,{"$f":"Import!E317","v":0},null,{"$f":"Import!G317","v":0}]
[null,"(e)","Regulated insurance financial operating entities",null,null,null,null,null,null,null,null,null,{"$f":"Import!E318","v":0},null,{"$f":"Import!G318","v":0}]
[null,"(f)","Total investments in affiliates (equity method)",null,null,null,null,null,null,null,null,null,{"$f":"SUM(M39:M43)","v":0},null,{"$f":"SUM(O39:O43)","v":0}]
[null,"(g)","Advances to affiliates",null,null,null,null,null,null,null,null,null,{"$f":"Import!E319","v":0},null,{"$f":"Import!G319","v":0}]
[null,"(h)","Total investments in and advances to affiliates (equity method)",null,null,null,null,null,null,null,null,null,{"$f":"M44+M45","v":0},null,{"$f":"O44+O45","v":0}]
[]
[null,"5.","INVESTMENTS IN MORTGAGE LOANS ON REAL ESTATE:"]
[null,"(a)","First liens",null,null,null,null,null,null,null,null,null,{"$f":"Import!E320","v":0},null,{"$f":"Import!G320","v":0}]
[null,"(b) ","Other than first liens",null,null,null,null,null,null,null,null,null,{"$f":"Import!E321","v":0},null,{"$f":"Import!G321","v":0}]
[null,"(c) ","Total investments in mortgage loans on real estate",null,null,null,null,null,null,null,null,null,{"$f":"M49+M50","v":0},null,{"$f":"O49+O50","v":0}]
[]
[null,"7.","REAL ESTATE:"]
[null,"(a)","Occupied by the company (less encumbrances)",null,null,null,null,null,null,null,null,null,{"$f":"Import!E322","v":0},null,{"$f":"Import!G322","v":0}]
[null,"(b)","Other properties (less encumbrances)",null,null,null,null,null,null,null,null,null,{"$f":"Import!E323","v":0},null,{"$f":"Import!G323","v":0}]
[null,"(c) ","Total real estate",null,null,null,null,null,null,null,null,null,{"$f":"SUM(M54:M55)","v":0},null,{"$f":"SUM(O54:O55)","v":0}]
[]
[null,"8.","COLLATERAL LOANS",null,null,null,null,null,null,null,null,null,{"$f":"Import!E324","v":0},null,{"$f":"Import!G324","v":0}]
[]
[null,"9.","INVESTMENT INCOME DUE AND ACCRUED",null,null,null,null,null,null,null,null,null,{"$f":"Import!E325","v":0},null,{"$f":"Import!G325","v":0}]
[]
[null,"10.","ACCOUNTS RECEIVABLE",null,null,null,null,null,null,null,null,null,{"$f":"Import!E326","v":0},null,{"$f":"Import!G326","v":0}]
[]
[null,"11.","INSURANCE AND REINSURANCE CONTRACT ASSETS"]
[null,"(a)","Insurance Contract Assets",null,null,null,null,null,null,null,null,null,{"$f":"Import!E327","v":0},null,{"$f":"Import!G327","v":0}]
[null,"(b)","Reinsurance Contract Assets",null,null,null,null,null,null,null,null,null,{"$f":"Import!E328","v":0},null,{"$f":"Import!G328","v":0}]
[null,"(c)","Investment Contracts with Discretionary Participation Features (DPF) assets",null,null,null,null,null,null,null,null,null,{"$f":"Import!E329","v":0},null,{"$f":"Import!G329","v":0}]
[null,"(d) ","Total Insurance and Reinsurance Contract Assets",null,null,null,null,null,null,null,null,null,{"$f":"SUM(M65:M67)","v":0},null,{"$f":"SUM(O65:O67)","v":0}]
[]
[null,"13.","SUNDRY ASSETS:"]
[null,"(a)","Derivative instruments",null,null,null,null,null,null,null,null,null,{"$f":"Import!E330","v":0},null,{"$f":"Import!G330","v":0}]
[null,"(b)","Segregated accounts companies - long-term business - variable annuities",null,null,null,null,null,null,null,null,null,{"$f":"Import!E331","v":0},null,{"$f":"Import!G331","v":0}]
[null,"(c) ","Segregated accounts companies - long-term business - others",null,null,null,null,null,null,null,null,null,{"$f":"Import!E332","v":0},null,{"$f":"Import!G332","v":0}]
[null,"(d)","Segregated accounts companies - general business",null,null,null,null,null,null,null,null,null,{"$f":"Import!E333","v":0},null,{"$f":"Import!G333","v":0}]
[null,"(e) ","Deposit assets",null,null,null,null,null,null,null,null,null,{"$f":"Import!E334","v":0},null,{"$f":"Import!G334","v":0}]
[null,"(f) ","Net receivables for investments sold",null,null,null,null,null,null,null,null,null,{"$f":"Import!E335","v":0},null,{"$f":"Import!G335","v":0}]
[null,"(g) ","Other Sundry Assets - 1 (Specify)",null,null,null,null,null,null,null,null,null,{"$f":"Import!E336","v":0},null,{"$f":"Import!G336","v":0}]
[null,"(h) ","Other Sundry Assets - 2 (Specify)",null,null,null,null,null,null,null,null,null,{"$f":"Import!E337","v":0},null,{"$f":"Import!G337","v":0}]
[null,"(i) ","Other Sundry Assets - 3 (Specify)",null,null,null,null,null,null,null,null,null,{"$f":"Import!E338","v":0},null,{"$f":"Import!G338","v":0}]
[null,"(j)","Total sundry assets",null,null,null,null,null,null,null,null,null,{"$f":"SUM(M71:M79)","v":0},null,{"$f":"SUM(O71:O79)","v":0}]
[]
[null,"14.","LETTERS OF CREDIT, GUARANTEES AND OTHER INSTRUMENTS"]
[null,"(a)","Letters of credit ",null,null,null,null,null,null,null,null,null,{"$f":"Import!E339","v":0},null,{"$f":"Import!G339","v":0}]
[null,"(b)","Guarantees",null,null,null,null,null,null,null,null,null,{"$f":"Import!E340","v":0},null,{"$f":"Import!G340","v":0}]
[null,"(c) ","Other instruments",null,null,null,null,null,null,null,null,null,{"$f":"Import!E341","v":0},null,{"$f":"Import!G341","v":0}]
[null,"(d) ","Total letters of credit, guarantees and other instruments",null,null,null,null,null,null,null,null,null,{"$f":"SUM(M83:M85)","v":0},null,{"$f":"SUM(O83:O85)","v":0}]
[]
[null,"15.","TOTAL ASSETS",null,null,null,null,null,null,null,null,null,{"$f":"M10+M23+M36+M46+M51+M56+M58+M60+M62+M80+M86+M68","v":0},null,{"$f":"O10+O23+O36+O46+O51+O56+O58+O60+O62+O80+O86+O68","v":0}]
[]
[null,null,"INSURANCE LIABILITIES, OTHER LIABILITIES AND STATUTORY CAPITAL AND SURPLUS"]
[]
[null,null,"INSURANCE LIABILITIES"]
[]
[null,"17.","GENERAL BUSINESS INSURANCE CONTRACT LIABILITIES",null,null,null,null,null,null,null,null,null,{"$f":"Import!E343","v":0},null,{"$f":"Import!G343","v":0}]
[]
[null,"17A.","GENERAL BUSINESS REINSURANCE CONTRACT LIABILITIES",null,null,null,null,null,null,null,null,null,{"$f":"Import!E344","v":0},null,{"$f":"Import!G344","v":0}]
[]
[null,"18.","INVESTMENT CONTRACT WITH DPF LIABILITIES",null,null,null,null,null,null,null,null,null,{"$f":"Import!E345","v":0},null,{"$f":"Import!G345","v":0}]
[]
[null,"27.","LONG-TERM BUSINESS INSURANCE CONTRACT LIABILITIES",null,null,null,null,null,null,null,null,null,{"$f":"Import!E346","v":0},null,{"$f":"Import!G346","v":0}]
[]
[null,"27A.","LONG-TERM REINSURANCE CONTRACT LIABILITIES",null,null,null,null,null,null,null,null,null,{"$f":"Import!E347","v":0},null,{"$f":"Import!G347","v":0}]
[]
[null,null,"OTHER LIABILITIES"]
[]
[null,"29.","COMMISSIONS, EXPENSES, FEES AND TAXES PAYABLE",null,null,null,null,null,null,null,null,null,{"$f":"Import!E348","v":0},null,{"$f":"Import!G348","v":0}]
[]
[null,"30.","LOANS AND NOTES PAYABLE",null,null,null,null,null,null,null,null,null,{"$f":"Import!E349","v":0},null,{"$f":"Import!G349","v":0}]
[]
[null,"31.","(a) INCOME TAXES PAYABLE",null,null,null,null,null,null,null,null,null,{"$f":"Import!E350","v":0},null,{"$f":"Import!G350","v":0}]
[]
[null,null,"(b) DEFERRED INCOME TAXES",null,null,null,null,null,null,null,null,null,{"$f":"Import!E351","v":0},null,{"$f":"Import!G351","v":0}]
[]
[null,"32.","AMOUNTS DUE TO AFFILIATES",null,null,null,null,null,null,null,null,null,{"$f":"Import!E352","v":0},null,{"$f":"Import!G352","v":0}]
[]
[null,"33.","ACCOUNTS PAYABLE AND ACCRUED LIABILITIES",null,null,null,null,null,null,null,null,null,{"$f":"Import!E353","v":0},null,{"$f":"Import!G353","v":0}]
[]
[null,"35.","DIVIDENDS PAYABLE",null,null,null,null,null,null,null,null,null,{"$f":"Import!E354","v":0},null,{"$f":"Import!G354","v":0}]
[]
[null,"36.","SUNDRY LIABILITIES:"]
[null,"(a)","Derivative instruments",null,null,null,null,null,null,null,null,null,{"$f":"Import!E355","v":0},null,{"$f":"Import!G355","v":0}]
[null,"(b)","Segregated account companies",null,null,null,null,null,null,null,null,null,{"$f":"Import!E356","v":0},null,{"$f":"Import!G356","v":0}]
[null,"(c)","Deposit liabilities",null,null,null,null,null,null,null,null,null,{"$f":"Import!E357","v":0},null,{"$f":"Import!G357","v":0}]
[null,"(d)","Net payable for investments purchased",null,null,null,null,null,null,null,null,null,{"$f":"Import!E358","v":0},null,{"$f":"Import!G358","v":0}]
[null,"(e)","Other sundry liabilities - 1 (specify)",null,null,null,null,null,null,null,null,null,{"$f":"Import!E359","v":0},null,{"$f":"Import!G359","v":0}]
[null,"(f)","Other sundry liabilities - 2 (specify)",null,null,null,null,null,null,null,null,null,{"$f":"Import!E360","v":0},null,{"$f":"Import!G360","v":0}]
[null,"(g)","Other sundry liabilities - 3 (specify)",null,null,null,null,null,null,null,null,null,{"$f":"Import!E361","v":0},null,{"$f":"Import!G361","v":0}]
[null,"(h)","Total sundry liabilities",null,null,null,null,null,null,null,null,null,{"$f":"SUM(M121:M127)","v":0},null,{"$f":"SUM(O121:O127)","v":0}]
[]
[null,"37.","LETTERS OF CREDIT, GUARANTEES AND OTHER INSTRUMENTS"]
[null,"(a)","Letters of credit ",null,null,null,null,null,null,null,null,null,{"$f":"Import!E362","v":0},null,{"$f":"Import!G362","v":0}]
[null,"(b)","Guarantees",null,null,null,null,null,null,null,null,null,{"$f":"Import!E363","v":0},null,{"$f":"Import!G363","v":0}]
[null,"(c) ","Other instruments",null,null,null,null,null,null,null,null,null,{"$f":"Import!E364","v":0},null,{"$f":"Import!G364","v":0}]
[null,"(d)","Total letters of credit, guarantees and other instruments",null,null,null,null,null,null,null,null,null,{"$f":"SUM(M131:M133)","v":0},null,{"$f":"SUM(O131:O133)","v":0}]
[]
[null,"38.","TOTAL OTHER LIABILITIES",null,null,null,null,null,null,null,null,null,{"$f":"M106+M108+M110+M112+M114+M116+M118+M128+M134","v":0},null,{"$f":"O106+O108+O110+O112+O114+O116+O118+O128+O134","v":0}]
[]
[null,"39.","TOTAL INSURANCE LIABILITIES AND OTHER LIABILITIES",null,null,null,null,null,null,null,null,null,{"$f":"M94+M96+M100+M102+M98+M136","v":0},null,{"$f":"O94+O96+O100+O102+O98+O136","v":0}]
[]
[null,null,"STATUTORY CAPITAL AND SURPLUS"]
[]
[null,"40.","TOTAL STATUTORY CAPITAL AND SURPLUS ",null,null,null,null,null,null,null,null,null,{"$f":"'Form 8A'!G58","v":0},null,{"$f":"'Form 8A'!I58","v":0}]
[]
[null,"41.","TOTAL LIABILITIES AND STATUTORY CAPITAL AND SURPLUS",null,null,null,null,null,null,null,null,null,{"$f":"M138+M142","v":0},null,{"$f":"O138+O142","v":0}]
[]
[null,null,null,null,null,null,null,null,null,null,null,null,{"$f":"IF(M147=\"TRUE\",HYPERLINK(\"#'Form 1A'!M89\",\"TRUE\"),HYPERLINK(\"#'Form 1A'!M89\",\"FALSE\"))","v":"TRUE"},null,{"$f":"IF(O147=\"TRUE\",HYPERLINK(\"#'Form 1A'!O89\",\"TRUE\"),HYPERLINK(\"#'Form 1A'!O89\",\"FALSE\"))","v":"TRUE"}]
[null,null,null,null,null,null,null,null,null,null,null,null,{"$f":"IF(ROUND((M88-M144),0)=0,\"TRUE\",\"FALSE\")","v":"TRUE"},null,{"$f":"IF(ROUND((O88-O144),0)=0,\"TRUE\",\"FALSE\")","v":"TRUE"}]
[null,null,"Difference",null,null,null,null,null,null,null,null,null,{"$f":"ROUND((M88-M144),0)","v":0},null,{"$f":"ROUND((O88-O144),0)","v":0}]
[]
[null,null,null,null,null,null,null,null,null,null,null,null,{"$f":"IF(M146=\"False\",\"Line 15 does not equal Line 41\",\"\")","v":""},null,{"$f":"IF(O146=\"False\",\"Line 15 does not equal Line 41\",\"\")","v":""}]
[]
[null,"Notes to Form 1ASFS"]
[]
[null,null,"Premiums Receivable"]
[null,null,"In course of collection",null,null,null,null,null,null,null,null,null,{"$f":"Import!E366","v":0},null,{"$f":"Import!G366","v":0}]
[null,null,"Deferred - not yet due",null,null,null,null,null,null,null,null,null,{"$f":"Import!E367","v":0},null,{"$f":"Import!G367","v":0}]
[null,null,"Receivable from retrocessional contracts",null,null,null,null,null,null,null,null,null,{"$f":"Import!E368","v":0},null,{"$f":"Import!G368","v":0}]
[null,null,"Total Premium Receivable",null,null,null,null,null,null,null,null,null,{"$f":"SUM(M155:M157)","v":0},null,{"$f":"SUM(O155:O157)","v":0}]
[]
[null,null,"Reinsurance Balances Receivable",null,null,null,null,null,null,null,null,null,{"$f":"Import!E370","v":0},null,{"$f":"Import!G370","v":0}]
[]
[null,null,"Funds Held by Ceding Reinsurers",null,null,null,null,null,null,null,null,null,{"$f":"Import!E371","v":0},null,{"$f":"Import!G371","v":0}]
[]
[null,null,"Collateralized balances related to receivables from retrocessional contracts",null,null,null,null,null,null,null,null,null,{"$f":"Import!E372","v":0},null,{"$f":"Import!G372","v":0}]
[]
[null,"Line 13","Sundry assets"]
[null,null,"(a) Nature of the assets",null,null,null,null,null,null,null,null,null,{"$f":"Import!E373","v":0}]
[null,null,"(b) (i) Description of policies surrounding use of derivatives, if applicable",null,null,null,null,null,null,null,null,null,{"$f":"Import!E374","v":0}]
[null,null,"(b) (ii) Market value and nominal exposure of each derivative by issuer",null,null,null,null,null,null,null,null,null,{"$f":"Import!E375","v":0}]
[]
[null,"Line 15","Encumbered assets for policyholder obligations"]
[]
[null,null,"Asset",null,null,null,null,null,"Purpose of Encumbrance"]
[null,null,"             Cash",null,null,null,null,null,null,null,null,null,{"$f":"Import!E376","v":0},null,{"$f":"Import!G376","v":0}]
[null,null,"             Total quoted investments",null,null,null,null,null,null,null,null,null,{"$f":"Import!E377","v":0},null,{"$f":"Import!G377","v":0}]
[null,null,"             Total unquoted investments",null,null,null,null,null,null,null,null,null,{"$f":"Import!E378","v":0},null,{"$f":"Import!G378","v":0}]
[null,null,"             Funds held by ceding reinsurers"]
[null,null,"             Other asset types",null,null,null,null,null,null,null,null,null,{"$f":"Import!E379","v":0},null,{"$f":"Import!G379","v":0}]
[null,null,"                      Total assets encumbered",null,null,null,null,null,null,null,null,null,{"$f":"SUM(M174:M178)","v":0},null,{"$f":"SUM(O174:O178)","v":0}]
[]
[null,"Line 15","Encumbered assets not securing policyholder obligations"]
[]
[null,null,"Asset",null,null,null,null,null,"Purpose of Encumbrance"]
[null,null,"             Cash",null,null,null,null,null,null,null,null,null,{"$f":"Import!E381","v":0},null,{"$f":"Import!G381","v":0}]
[null,null,"             Total quoted investments",null,null,null,null,null,null,null,null,null,{"$f":"Import!E382","v":0},null,{"$f":"Import!G382","v":0}]
[null,null,"             Total unquoted investments",null,null,null,null,null,null,null,null,null,{"$f":"Import!E383","v":0},null,{"$f":"Import!G383","v":0}]
[null,null,"             Other asset types",null,null,null,null,null,null,null,null,null,{"$f":"Import!E384","v":0},null,{"$f":"Import!G384","v":0}]
[null,null,"                      Total assets encumbered",null,null,null,null,null,null,null,null,null,{"$f":"SUM(M184:M187)","v":0},null,{"$f":"SUM(O184:O187)","v":0}]
[]
[null,"Line 36","Sundry liabilities"]
[null,null,"(a) Nature of the liabilities and repayment terms",null,null,null,null,null,null,null,null,null,{"$f":"Import!E386","v":0}]
[null,null,"(b) (i) Description of policies surrounding use of derivatives, if applicable",null,null,null,null,null,null,null,null,null,{"$f":"Import!E387","v":0}]
[null,null,"(b) (ii) Market value and nominal exposure of each derivative by issuer",null,null,null,null,null,null,null,null,null,{"$f":"Import!E388","v":0}]
[]
[null,"Line 37","Letters of Credit, Guarantees and other Instruments",null,null,null,null,null,null,null,null,null,{"$f":"Import!E389","v":0},null,{"$f":"Import!G389","v":0}]
[]
[null,"Reconciliation of Net Changes in Insurance Contracts Liabilities by Remaining Coverage and Incurred Claim - General Business"]
[null,"Line 17 and 11(a)"]
[null,null,null,null,"Liability for Remaining Coverage",null,null,null,"Liabilities for Incurred Claims"]
[null,null,null,null,"Excluding loss component",null,"Loss component",null,"Products not under PAA",null,"(PAA) Estimates of present value of future cash flows",null," (PAA) Risk adjustment for non-financial risk",null,"Total"]
[null,"Opening assets",null,null,{"$f":"Import!E390","v":0},null,{"$f":"Import!E414","v":0},null,{"$f":"Import!E438","v":0},null,{"$f":"Import!E462","v":0},null,{"$f":"Import!E486","v":0},null,{"$f":"SUM(E201:M201)","v":0}]
[null,"Opening liabilities",null,null,{"$f":"Import!E391","v":0},null,{"$f":"Import!E415","v":0},null,{"$f":"Import!E439","v":0},null,{"$f":"Import!E463","v":0},null,{"$f":"Import!E487","v":0},null,{"$f":"SUM(E202:M202)","v":0}]
[null,"Net opening balance",null,null,{"$f":"E201-E202","v":0},null,{"$f":"G201-G202","v":0},null,{"$f":"I201-I202","v":0},null,{"$f":"K201-K202","v":0},null,{"$f":"M201-M202","v":0},null,{"$f":"O201-O202","v":0}]
[]
[null,"Changes in the statement of income or loss"]
[]
[null," Insurance revenue",null,null,{"$f":"Import!E393","v":0},null,{"$f":"Import!E417","v":0},null,{"$f":"Import!E441","v":0},null,{"$f":"Import!E465","v":0},null,{"$f":"Import!E489","v":0},null,{"$f":"SUM(E207:M207)","v":0}]
[]
[null,"Insurance service expenses"]
[null,"Amortisation of insurance acquisition cash flows",null,null,{"$f":"Import!E394","v":0},null,{"$f":"Import!E418","v":0},null,{"$f":"Import!E442","v":0},null,{"$f":"Import!E466","v":0},null,{"$f":"Import!E490","v":0},null,{"$f":"SUM(E210:M210)","v":0}]
[null,"Incurred claims and other insurance service expenses",null,null,{"$f":"Import!E395","v":0},null,{"$f":"Import!E419","v":0},null,{"$f":"Import!E443","v":0},null,{"$f":"Import!E467","v":0},null,{"$f":"Import!E491","v":0},null,{"$f":"SUM(E211:M211)","v":0}]
[null,"Losses and reversals on onerous contracts",null,null,{"$f":"Import!E396","v":0},null,{"$f":"Import!E420","v":0},null,{"$f":"Import!E444","v":0},null,{"$f":"Import!E468","v":0},null,{"$f":"Import!E492","v":0},null,{"$f":"SUM(E212:M212)","v":0}]
[null,"Adjustments to liabilities for incurred claims",null,null,{"$f":"Import!E397","v":0},null,{"$f":"Import!E421","v":0},null,{"$f":"Import!E445","v":0},null,{"$f":"Import!E469","v":0},null,{"$f":"Import!E493","v":0},null,{"$f":"SUM(E213:M213)","v":0}]
[null,"Total Insurance service expenses",null,null,{"$f":"SUM(E210:E213)","v":0},null,{"$f":"SUM(G210:G213)","v":0},null,{"$f":"SUM(I210:I213)","v":0},null,{"$f":"SUM(K210:K213)","v":0},null,{"$f":"SUM(M210:M213)","v":0},null,{"$f":"SUM(O210:O213)","v":0}]
[]
[null,"Investment components",null,null,{"$f":"Import!E399","v":0},null,{"$f":"Import!E423","v":0},null,{"$f":"Import!E447","v":0},null,{"$f":"Import!E471","v":0},null,{"$f":"Import!E495","v":0},null,{"$f":"SUM(E216:M216)","v":0}]
[null,"Insurance service result",null,null,{"$f":"E207+E214+E216","v":0},null,{"$f":"G207+G214+G216","v":0},null,{"$f":"I207+I214+I216","v":0},null,{"$f":"K207+K214+K216","v":0},null,{"$f":"M207+M214+M216","v":0},null,{"$f":"O207+O214+O216","v":0}]
[]
[null,"Net finance expenses from insurance contracts",null,null,{"$f":"Import!E401","v":0},null,{"$f":"Import!E425","v":0},null,{"$f":"Import!E449","v":0},null,{"$f":"Import!E473","v":0},null,{"$f":"Import!E497","v":0},null,{"$f":"SUM(E219:M219)","v":0}]
[null,"Effect of movements in exchange rates",null,null,{"$f":"Import!E402","v":0},null,{"$f":"Import!E426","v":0},null,{"$f":"Import!E450","v":0},null,{"$f":"Import!E474","v":0},null,{"$f":"Import!E498","v":0},null,{"$f":"SUM(E220:M220)","v":0}]
[null,"Total changes in the statement of income or loss ",null,null,{"$f":"E217+E219+E220","v":0},null,{"$f":"G217+G219+G220","v":0},null,{"$f":"I217+I219+I220","v":0},null,{"$f":"K217+K219+K220","v":0},null,{"$f":"M217+M219+M220","v":0},null,{"$f":"O217+O219+O220","v":0}]
[]
[null,"Cash flows"]
[null,"Premiums received",null,null,{"$f":"Import!E404","v":0},null,{"$f":"Import!E428","v":0},null,{"$f":"Import!E452","v":0},null,{"$f":"Import!E476","v":0},null,{"$f":"Import!E500","v":0},null,{"$f":"SUM(E224:M224)","v":0}]
[null,"Insurance acquisition cash flows",null,null,{"$f":"Import!E405","v":0},null,{"$f":"Import!E429","v":0},null,{"$f":"Import!E453","v":0},null,{"$f":"Import!E477","v":0},null,{"$f":"Import!E501","v":0},null,{"$f":"SUM(E225:M225)","v":0}]
[null,"Claims and other insurance service expenses paid",null,null,{"$f":"Import!E406","v":0},null,{"$f":"Import!E430","v":0},null,{"$f":"Import!E454","v":0},null,{"$f":"Import!E478","v":0},null,{"$f":"Import!E502","v":0},null,{"$f":"SUM(E226:M226)","v":0}]
[null,"Total cash flows",null,null,{"$f":"SUM(E224:E226)","v":0},null,{"$f":"SUM(G224:G226)","v":0},null,{"$f":"SUM(I224:I226)","v":0},null,{"$f":"SUM(K224:K226)","v":0},null,{"$f":"SUM(M224:M226)","v":0},null,{"$f":"SUM(O224:O226)","v":0}]
[null,"Contracts transferred on acquisition of subsidiary",null,null,{"$f":"Import!E408","v":0},null,{"$f":"Import!E432","v":0},null,{"$f":"Import!E456","v":0},null,{"$f":"Import!E480","v":0},null,{"$f":"Import!E504","v":0},null,{"$f":"SUM(E228:M228)","v":0}]
[null,"Contracts transferred on disposal of subsidiary",null,null,{"$f":"Import!E409","v":0},null,{"$f":"Import!E433","v":0},null,{"$f":"Import!E457","v":0},null,{"$f":"Import!E481","v":0},null,{"$f":"Import!E505","v":0},null,{"$f":"SUM(E229:M229)","v":0}]
[null,"Net closing balance",null,null,{"$f":"E203+E221+E227+E228+E229","v":0},null,{"$f":"G203+G221+G227+G228+G229","v":0},null,{"$f":"I203+I221+I227+I228+I229","v":0},null,{"$f":"K203+K221+K227+K228+K229","v":0},null,{"$f":"M203+M221+M227+M228+M229","v":0},null,{"$f":"O203+O221+O227+O228+O229","v":0}]
[]
[null,"Closing assets",null,null,{"$f":"Import!E411","v":0},null,{"$f":"Import!E435","v":0},null,{"$f":"Import!E459","v":0},null,{"$f":"Import!E483","v":0},null,{"$f":"Import!E507","v":0},null,{"$f":"SUM(E232:M232)","v":0}]
[null,"Closing liabilities",null,null,{"$f":"Import!E412","v":0},null,{"$f":"Import!E436","v":0},null,{"$f":"Import!E460","v":0},null,{"$f":"Import!E484","v":0},null,{"$f":"Import!E508","v":0},null,{"$f":"SUM(E233:M233)","v":0}]
[null,"Net closing balance",null,null,{"$f":"E232-E233","v":0},null,{"$f":"G232-G233","v":0},null,{"$f":"I232-I233","v":0},null,{"$f":"K232-K233","v":0},null,{"$f":"M232-M233","v":0},null,{"$f":"O232-O233","v":0}]
[]
[null,null,null,null,null,null,null,null,null,null,null,null,{"$f":"M65-M94","v":0},null,{"$f":"IF(ROUND((O234-(M65-M94)),0)=0,\"True\",\"False\")","v":"True"}]
[null,null,null,null,null,null,null,null,null,null,null,null,{"$f":"ROUND((O234-(M65-M94)),0)","v":0},null,{"$f":"IF(ROUND((O234-O230),0)=0,\"True\",\"False\")","v":"True"}]
[null,"Reconciliation of Net Changes in Insurance Contracts Liabilities by Remaining Coverage and Incurred Claim - Long-Term Business"]
[null,"Line 27 and 11(a)",null,null,"Liability for Remaining Coverage",null,null,null,"Liabilities for Incurred Claims"]
[null,null,null,null,"Excluding loss component",null,"Loss component",null,"Products not under PAA",null,"(PAA) Estimates of present value of future cash flows",null," (PAA) Risk adjustment for non-financial risk",null,"Total"]
[null,"Opening assets",null,null,{"$f":"Import!E510","v":0},null,{"$f":"Import!E534","v":0},null,{"$f":"Import!E558","v":0},null,{"$f":"Import!E582","v":0},null,{"$f":"Import!E606","v":0},null,{"$f":"SUM(E241:M241)","v":0}]
[null,"Opening liabilities",null,null,{"$f":"Import!E511","v":0},null,{"$f":"Import!E535","v":0},null,{"$f":"Import!E559","v":0},null,{"$f":"Import!E583","v":0},null,{"$f":"Import!E607","v":0},null,{"$f":"SUM(E242:M242)","v":0}]
[null,"Net opening balance",null,null,{"$f":"E241-E242","v":0},null,{"$f":"G241-G242","v":0},null,{"$f":"I241-I242","v":0},null,{"$f":"K241-K242","v":0},null,{"$f":"M241-M242","v":0},null,{"$f":"O241-O242","v":0}]
[]
[null,"Changes in the statement of income or loss "]
[]
[null,"Insurance revenue",null,null,{"$f":"Import!E513","v":0},null,{"$f":"Import!E537","v":0},null,{"$f":"Import!E561","v":0},null,{"$f":"Import!E585","v":0},null,{"$f":"Import!E609","v":0},null,{"$f":"SUM(E247:M247)","v":0}]
[]
[null,"Insurance service expenses"]
[null,"Amortisation of insurance acquisition cash flows",null,null,{"$f":"Import!E514","v":0},null,{"$f":"Import!E538","v":0},null,{"$f":"Import!E562","v":0},null,{"$f":"Import!E586","v":0},null,{"$f":"Import!E610","v":0},null,{"$f":"SUM(E250:M250)","v":0}]
[null,"Incurred claims and other insurance service expenses",null,null,{"$f":"Import!E515","v":0},null,{"$f":"Import!E539","v":0},null,0,null,{"$f":"Import!E587","v":0},null,{"$f":"Import!E611","v":0},null,{"$f":"SUM(E251:M251)","v":0}]
[null,"Losses and reversals on onerous contracts",null,null,{"$f":"Import!E516","v":0},null,{"$f":"Import!E540","v":0},null,{"$f":"Import!E564","v":0},null,{"$f":"Import!E588","v":0},null,{"$f":"Import!E612","v":0},null,{"$f":"SUM(E252:M252)","v":0}]
[null,"Adjustments to liabilities for incurred claims",null,null,{"$f":"Import!E517","v":0},null,{"$f":"Import!E541","v":0},null,{"$f":"Import!E565","v":0},null,{"$f":"Import!E589","v":0},null,{"$f":"Import!E613","v":0},null,{"$f":"SUM(E253:M253)","v":0}]
[null,"Total Insurance service expenses",null,null,{"$f":"SUM(E250:E253)","v":0},{"$f":"SUM(F250:F253)","v":0},0,0,0,0,0,0,0,0,0]
[]
[null,"Investment components",null,null,{"$f":"Import!E519","v":0},null,{"$f":"Import!E543","v":0},null,{"$f":"Import!E567","v":0},null,{"$f":"Import!E591","v":0},null,{"$f":"Import!E615","v":0},null,{"$f":"SUM(E256:M256)","v":0}]
[null,"Insurance service result",null,null,{"$f":"E247+E254+E256","v":0},null,{"$f":"G247+G254+G256","v":0},null,{"$f":"I247+I254+I256","v":0},null,{"$f":"K247+K254+K256","v":0},null,{"$f":"M247+M254+M256","v":0},null,{"$f":"O247+O254+O256","v":0}]
[]
[null,"Net finance expenses from insurance contracts",null,null,{"$f":"Import!E521","v":0},null,{"$f":"Import!E545","v":0},null,{"$f":"Import!E569","v":0},null,{"$f":"Import!E593","v":0},null,{"$f":"Import!E617","v":0},null,{"$f":"SUM(E259:M259)","v":0}]
[null,"Effect of movements in exchange rates",null,null,{"$f":"Import!E522","v":0},null,{"$f":"Import!E546","v":0},null,{"$f":"Import!E570","v":0},null,{"$f":"Import!E594","v":0},null,{"$f":"Import!E618","v":0},null,{"$f":"SUM(E260:M260)","v":0}]
[null,"Total changes in the statement of income or loss ",null,null,{"$f":"E257+E259+E260","v":0},null,{"$f":"G257+G259+G260","v":0},null,{"$f":"I257+I259+I260","v":0},null,{"$f":"K257+K259+K260","v":0},null,{"$f":"M257+M259+M260","v":0},null,{"$f":"O257+O259+O260","v":0}]
[]
[null,"Cash flows"]
[null,"Premiums received",null,null,{"$f":"Import!E524","v":0},null,{"$f":"Import!E548","v":0},null,{"$f":"Import!E572","v":0},null,{"$f":"Import!E596","v":0},null,{"$f":"Import!E620","v":0},null,{"$f":"SUM(E264:M264)","v":0}]
[null,"Insurance acquisition cash flows",null,null,{"$f":"Import!E525","v":0},null,{"$f":"Import!E549","v":0},null,{"$f":"Import!E573","v":0},null,{"$f":"Import!E597","v":0},null,{"$f":"Import!E621","v":0},null,{"$f":"SUM(E265:M265)","v":0}]
[null,"Claims and other insurance service expenses paid",null,null,{"$f":"Import!E526","v":0},null,{"$f":"Import!E550","v":0},null,{"$f":"Import!E574","v":0},null,{"$f":"Import!E598","v":0},null,{"$f":"Import!E622","v":0},null,{"$f":"SUM(E266:M266)","v":0}]
[null,"Total cash flows",null,null,{"$f":"SUM(E264:E266)","v":0},null,{"$f":"SUM(G264:G266)","v":0},null,{"$f":"SUM(I264:I266)","v":0},null,{"$f":"SUM(K264:K266)","v":0},null,{"$f":"SUM(M264:M266)","v":0},null,{"$f":"SUM(O264:O266)","v":0}]
[null,"Contracts transferred on acquisition of subsidiary",null,null,{"$f":"Import!E528","v":0},null,{"$f":"Import!E552","v":0},null,{"$f":"Import!E576","v":0},null,{"$f":"Import!E600","v":0},null,{"$f":"Import!E624","v":0},null,{"$f":"SUM(E268:M268)","v":0}]
[null,"Contracts transferred on disposal of subsidiary",null,null,{"$f":"Import!E529","v":0},null,{"$f":"Import!E553","v":0},null,{"$f":"Import!E577","v":0},null,{"$f":"Import!E601","v":0},null,{"$f":"Import!E625","v":0},null,{"$f":"SUM(E269:M269)","v":0}]
[null,"Net closing balance",null,null,{"$f":"E243+E261+E267+E268+E269","v":0},null,{"$f":"G243+G261+G267+G268+G269","v":0},null,{"$f":"I243+I261+I267+I268+I269","v":0},null,{"$f":"K243+K261+K267+K268+K269","v":0},null,{"$f":"M243+M261+M267+M268+M269","v":0},null,{"$f":"O243+O261+O267+O268+O269","v":0}]
[]
[null,"Closing assets",null,null,{"$f":"Import!E531","v":0},null,{"$f":"Import!E555","v":0},null,{"$f":"Import!E579","v":0},null,{"$f":"Import!E603","v":0},null,{"$f":"Import!E627","v":0},null,{"$f":"SUM(E272:M272)","v":0}]
[null,"Closing liabilities",null,null,{"$f":"Import!E532","v":0},null,{"$f":"Import!E556","v":0},null,{"$f":"Import!E580","v":0},null,{"$f":"Import!E604","v":0},null,{"$f":"Import!E628","v":0},null,{"$f":"SUM(E273:M273)","v":0}]
[null,"Net closing balance",null,null,{"$f":"E272-E273","v":0},null,{"$f":"G272-G273","v":0},null,{"$f":"I272-I273","v":0},null,{"$f":"K272-K273","v":0},null,{"$f":"M272-M273","v":0},null,{"$f":"O272-O273","v":0}]
[]
[null,null,null,null,null,null,null,null,null,null,null,null,{"$f":"M65-M100","v":0},null,{"$f":"IF(ROUND((O274-(M65-M100)),0)=0,\"True\",\"False\")","v":"True"}]
[null,null,null,null,null,null,null,null,null,null,null,null,{"$f":"ROUND((O274-(M65-M100)),0)","v":0},null,{"$f":"IF(ROUND((O274-O270),0)=0,\"True\",\"False\")","v":"True"}]
[null,"Reconciliation of Changes in Net Reinsurance Contracts Assets by Remaining Coverage and Incurred Claims- General Business"]
[null,"Line 11b and 17A "]
[null,null,null,null,"Assets for Remaining Coverage",null,null,null,"Assets for Incurred Claims"]
[null,null,null,null,"Excluding loss-recovery component",null,"Loss recovery component",null,"Products not under PAA",null,"(PAA) Estimates of present value of future cashflows",null,"(PAA) Risk adjustment for non-financial risk",null,"Total"]
[null,"Opening assets",null,null,{"$f":"Import!E630","v":0},null,{"$f":"Import!E651","v":0},null,{"$f":"Import!E672","v":0},null,{"$f":"Import!E693","v":0},null,{"$f":"Import!E714","v":0},null,{"$f":"SUM(E282:M282)","v":0}]
[null,"Opening liabilities",null,null,{"$f":"Import!E631","v":0},null,{"$f":"Import!E652","v":0},null,{"$f":"Import!E673","v":0},null,{"$f":"Import!E694","v":0},null,{"$f":"Import!E715","v":0},null,{"$f":"SUM(E283:M283)","v":0}]
[null,"Net opening balance",null,null,{"$f":"E282-E283","v":0},null,{"$f":"G282-G283","v":0},null,{"$f":"I282-I283","v":0},null,{"$f":"K282-K283","v":0},null,{"$f":"M282-M283","v":0},null,{"$f":"O282-O283","v":0}]
[]
[null,"Changes in the statement of income or loss"]
[null,"Allocation of reinsurance premiums paid",null,null,{"$f":"Import!E633","v":0},null,{"$f":"Import!E654","v":0},null,{"$f":"Import!E675","v":0},null,{"$f":"Import!E696","v":0},null,{"$f":"Import!E717","v":0},null,{"$f":"SUM(E287:M287)","v":0}]
[]
[null,"Amounts recovered from reinsurers"]
[null,"Recoveries on incurred claims and other incurred reinsurance service expenses",null,null,{"$f":"Import!E634","v":0},null,{"$f":"Import!E655","v":0},null,{"$f":"Import!E676","v":0},null,{"$f":"Import!E697","v":0},null,{"$f":"Import!E718","v":0},null,{"$f":"SUM(E290:M290)","v":0}]
[null,"Recoveries and reversals of recoveries of losses on onerous contracts",null,null,{"$f":"Import!E635","v":0},null,{"$f":"Import!E656","v":0},null,{"$f":"Import!E677","v":0},null,{"$f":"Import!E698","v":0},null,{"$f":"Import!E719","v":0},null,{"$f":"SUM(E291:M291)","v":0}]
[null,"Adjustments to assets for incurred claims",null,null,{"$f":"Import!E636","v":0},null,{"$f":"Import!E657","v":0},null,{"$f":"Import!E678","v":0},null,{"$f":"Import!E699","v":0},null,{"$f":"Import!E720","v":0},null,{"$f":"SUM(E292:M292)","v":0}]
[null,"Total Amounts recovered from reinsurers",null,null,{"$f":"SUM(E290:E292)","v":0},null,{"$f":"SUM(G290:G292)","v":0},null,{"$f":"SUM(I290:I292)","v":0},null,{"$f":"SUM(K290:K292)","v":0},null,{"$f":"SUM(M290:M292)","v":0},null,{"$f":"SUM(O290:O292)","v":0}]
[]
[null,"Investment components and premium refunds",null,null,{"$f":"Import!E638","v":0},null,{"$f":"Import!E659","v":0},null,{"$f":"Import!E680","v":0},null,{"$f":"Import!E701","v":0},null,{"$f":"Import!E722","v":0},null,{"$f":"SUM(E295:M295)","v":0}]
[null,"Effect of changes in non-performance risk of reinsurers",null,null,{"$f":"Import!E639","v":0},null,{"$f":"Import!E660","v":0},null,{"$f":"Import!E681","v":0},null,{"$f":"Import!E702","v":0},null,{"$f":"Import!E723","v":0},null,{"$f":"SUM(E296:M296)","v":0}]
[]
[null,"Net expenses from reinsurance contracts held",null,null,{"$f":"E287+E293+E295+E296","v":0},null,{"$f":"G287+G293+G295+G296","v":0},null,{"$f":"I287+I293+I295+I296","v":0},null,{"$f":"K287+K293+K295+K296","v":0},null,{"$f":"M287+M293+M295+M296","v":0},null,{"$f":"O287+O293+O295+O296","v":0}]
[]
[null,"Net Finance income or expenses from reinsurance contracts",null,null,{"$f":"Import!E641","v":0},null,{"$f":"Import!E662","v":0},null,{"$f":"Import!E683","v":0},null,{"$f":"Import!E704","v":0},null,{"$f":"Import!E725","v":0},null,{"$f":"SUM(E300:M300)","v":0}]
[null,"Effect of movements in exchange rates",null,null,{"$f":"Import!E642","v":0},null,{"$f":"Import!E663","v":0},null,{"$f":"Import!E684","v":0},null,{"$f":"Import!E705","v":0},null,{"$f":"Import!E726","v":0},null,{"$f":"SUM(E301:M301)","v":0}]
[null,"Total changes in the statement of income or loss ",null,null,{"$f":"SUM(E298:E301)","v":0},null,{"$f":"SUM(G298:G301)","v":0},null,{"$f":"SUM(I298:I301)","v":0},null,{"$f":"SUM(K298:K301)","v":0},null,{"$f":"SUM(M298:M301)","v":0},null,{"$f":"SUM(O298:O301)","v":0}]
[]
[null,"Cash flows"]
[null,"Premiums paid",null,null,{"$f":"Import!E644","v":0},null,{"$f":"Import!E665","v":0},null,{"$f":"Import!E686","v":0},null,{"$f":"Import!E707","v":0},null,{"$f":"Import!E728","v":0},null,{"$f":"SUM(E305:M305)","v":0}]
[null,"Amounts received from reinsurers relating to incurred claims",null,null,{"$f":"Import!E645","v":0},null,{"$f":"Import!E666","v":0},null,{"$f":"Import!E687","v":0},null,{"$f":"Import!E708","v":0},null,{"$f":"Import!E729","v":0},null,{"$f":"SUM(E306:M306)","v":0}]
[null,"Total cash flows",null,null,{"$f":"SUM(E305:E306)","v":0},null,{"$f":"SUM(G305:G306)","v":0},null,{"$f":"SUM(I305:I306)","v":0},null,{"$f":"SUM(K305:K306)","v":0},null,{"$f":"SUM(M305:M306)","v":0},null,{"$f":"SUM(O305:O306)","v":0}]
[null,"Net closing balance",null,null,{"$f":"E284+E302+E307","v":0},null,{"$f":"G284+G302+G307","v":0},null,{"$f":"I284+I302+I307","v":0},null,{"$f":"K284+K302+K307","v":0},null,{"$f":"M284+M302+M307","v":0},null,{"$f":"O284+O302+O307","v":0}]
[]
[null,"Closing assets",null,null,{"$f":"Import!E648","v":0},null,{"$f":"Import!E669","v":0},null,{"$f":"Import!E690","v":0},null,{"$f":"Import!E711","v":0},null,{"$f":"Import!E732","v":0},null,{"$f":"SUM(E310:M310)","v":0}]
[null,"Closing liabilities",null,null,{"$f":"Import!E649","v":0},null,{"$f":"Import!E670","v":0},null,{"$f":"Import!E691","v":0},null,{"$f":"Import!E712","v":0},null,{"$f":"Import!E733","v":0},null,{"$f":"SUM(E311:M311)","v":0}]
[null,"Net closing balance",null,null,{"$f":"E310-E311","v":0},null,{"$f":"G310-G311","v":0},null,{"$f":"I310-I311","v":0},null,{"$f":"K310-K311","v":0},null,{"$f":"M310-M311","v":0},null,{"$f":"O310-O311","v":0}]
[]
[null,null,null,null,null,null,null,null,null,null,null,null,{"$f":"M66-M96","v":0},null,{"$f":"IF(ROUND((O312-(M66-M96)),0)=0,\"True\",\"False\")","v":"True"}]
[null,null,null,null,null,null,null,null,null,null,null,null,{"$f":"ROUND((O312-(M66-M96)),0)","v":0},null,{"$f":"IF(ROUND((O312-O308),0)=0,\"True\",\"False\")","v":"True"}]
[null,"Reconciliation of Changes in Net Reinsurance Contracts Assets by Remaining Coverage and Incurred Claims- Long Term"]
[null,"Line 11b and 27A "]
[null,null,null,null,"Assets for Remaining Coverage"]
[null,null,null,null,"Excluding loss-recovery component",null,"Loss recovery component",null,"Amounts recoverable: Incurred claims",null,"Total"]
[null,"Opening assets",null,null,{"$f":"Import!E735","v":0},null,{"$f":"Import!E756","v":0},null,{"$f":"Import!E777","v":0},null,{"$f":"SUM(G320:I320)","v":0}]
[null,"Opening liabilities",null,null,{"$f":"Import!E736","v":0},null,{"$f":"Import!E757","v":0},null,{"$f":"Import!E778","v":0},null,{"$f":"SUM(G321:I321)","v":0}]
[null,"Net opening balance",null,null,{"$f":"E320-E321","v":0},null,{"$f":"G320-G321","v":0},null,{"$f":"I320-I321","v":0},null,{"$f":"K320-K321","v":0}]
[]
[null,"Changes in the statement of income or loss"]
[null,"Allocation of reinsurance premiums paid",null,null,{"$f":"Import!E738","v":0},null,{"$f":"Import!E759","v":0},null,{"$f":"Import!E780","v":0},null,{"$f":"SUM(G325:I325)","v":0}]
[]
[null,"Amounts recovered from reinsurers"]
[null,"Recoveries on incurred claims and other incurred reinsurance service expenses",null,null,{"$f":"Import!E739","v":0},null,{"$f":"Import!E760","v":0},null,{"$f":"Import!E781","v":0},null,{"$f":"SUM(G328:I328)","v":0}]
[null,"Recoveries and reversals of recoveries of losses on onerous contracts",null,null,{"$f":"Import!E740","v":0},null,{"$f":"Import!E761","v":0},null,{"$f":"Import!E782","v":0},null,{"$f":"SUM(G329:I329)","v":0}]
[null,"Adjustments to assets for incurred claims",null,null,{"$f":"Import!E741","v":0},null,{"$f":"Import!E762","v":0},null,{"$f":"Import!E783","v":0},null,{"$f":"SUM(G330:I330)","v":0}]
[null,"Total Amounts recovered from reinsurers",null,null,{"$f":"SUM(E328:E330)","v":0},null,{"$f":"SUM(G328:G330)","v":0},null,{"$f":"SUM(I328:I330)","v":0},null,{"$f":"SUM(K328:K330)","v":0}]
[]
[null,"Investment components and premium refunds",null,null,{"$f":"Import!E743","v":0},null,{"$f":"Import!E764","v":0},null,{"$f":"Import!E785","v":0},null,{"$f":"SUM(G333:I333)","v":0}]
[null,"Effect of changes in non-performance risk of reinsurers",null,null,{"$f":"Import!E744","v":0},null,{"$f":"Import!E765","v":0},null,{"$f":"Import!E786","v":0},null,{"$f":"SUM(G334:I334)","v":0}]
[]
[null,"Net expenses from reinsurance contracts held",null,null,{"$f":"E325+E331+E333+E334","v":0},null,{"$f":"G325+G331+G333+G334","v":0},null,{"$f":"I325+I331+I333+I334","v":0},null,{"$f":"K325+K331+K333+K334","v":0}]
[]
[null,"Net Finance income or expenses from reinsurance contracts",null,null,{"$f":"Import!E746","v":0},null,{"$f":"Import!E767","v":0},null,{"$f":"Import!E788","v":0},null,{"$f":"SUM(G338:I338)","v":0}]
[null,"Effect of movements in exchange rates",null,null,{"$f":"Import!E747","v":0},null,{"$f":"Import!E768","v":0},null,{"$f":"Import!E789","v":0},null,{"$f":"SUM(G339:I339)","v":0}]
[null,"Total changes in the statement of income or loss ",null,null,{"$f":"SUM(E336:E339)","v":0},null,{"$f":"SUM(G336:G339)","v":0},null,{"$f":"SUM(I336:I339)","v":0},null,{"$f":"SUM(K336:K339)","v":0}]
[]
[null,"Cash flows"]
[null,"Premiums paid",null,null,{"$f":"Import!E749","v":0},null,{"$f":"Import!E770","v":0},null,{"$f":"Import!E791","v":0},null,{"$f":"SUM(G343:I343)","v":0}]
[null,"Amounts received from reinsurers relating to incurred claims",null,null,{"$f":"Import!E750","v":0},null,{"$f":"Import!E771","v":0},null,{"$f":"Import!E792","v":0},null,{"$f":"SUM(G344:I344)","v":0}]
[null,"Total cash flows",null,null,{"$f":"SUM(E343:E344)","v":0},null,{"$f":"SUM(G343:G344)","v":0},null,{"$f":"SUM(I343:I344)","v":0},null,{"$f":"SUM(K343:K344)","v":0}]
[null,"Net closing balance",null,null,{"$f":"E322+E340+E345","v":0},null,{"$f":"G322+G340+G345","v":0},null,{"$f":"I322+I340+I345","v":0},null,{"$f":"K322+K340+K345","v":0}]
[]
[null,"Closing assets",null,null,{"$f":"Import!E753","v":0},null,{"$f":"Import!E774","v":0},null,{"$f":"Import!E795","v":0},null,{"$f":"SUM(G348:I348)","v":0}]
[null,"Closing liabilities",null,null,{"$f":"Import!E754","v":0},null,{"$f":"Import!E775","v":0},null,{"$f":"Import!E796","v":0},null,{"$f":"SUM(G349:I349)","v":0}]
[null,"Net closing balance",null,null,{"$f":"E348-E349","v":0},null,{"$f":"G348-G349","v":0},null,{"$f":"I348-I349","v":0},null,{"$f":"K348-K349","v":0}]
[]
[null,null,null,null,null,null,null,null,{"$f":"M66-M102","v":0},null,{"$f":"IF(ROUND((K350-(M66-M102)),0)=0,\"True\",\"False\")","v":"True"}]
[null,null,null,null,null,null,null,null,{"$f":"ROUND((K350-(M66-M102)),0)","v":0},null,{"$f":"IF(ROUND((K350-K346),0)=0,\"True\",\"False\")","v":"True"}]

{"sheet":"Form 2A","index":20,"n_rows":92,"n_cols":7,"rows_kept":92,"cut":false,"hidden":false,"merged":[]}
[null,"STATUTORY STATEMENT OF PROFIT OR LOSS",null,null,null,null,{"$f":"HYPERLINK(\"#'Index'!A1\",\"Return to Index\")","v":"Return to Index"}]
[null,{"$f":"'Group Information'!C9","v":"Enter Parent Company Name"}]
[null,"For the year ending",{"$f":"'Group Information'!C3","v":"2023-12-31"},null,null,null,"FORM 2ASFS"]
[null,"expressed in ",{"$f":"'Form 1EBS'!C4","v":" ['000s]United States Dollars"}]
[]
[null,"STMT."]
[null,"LINE No.",null,null,{"$f":"'Form 1EBS'!$F$7","v":"2023-12-31"},null,{"$f":"'Form 1EBS'!H7","v":"2022-12-31"}]
[null,null,null,null,"('000)",null,"('000)"]
[]
[]
[null,"1.","INSURANCE CONTRACT REVENUE",null,{"$f":"Import!E800","v":0},null,{"$f":"Import!G800","v":0}]
[]
[null,"2.","INSURANCE SERVICE EXPENSES"]
[null,"(a)","Incurred Claims and Insurance Contract Expenses",null,{"$f":"Import!E801","v":0},null,{"$f":"Import!G801","v":0}]
[null,"(b)","Insurance Contract Acquisition Cash Flows",null,{"$f":"Import!E802","v":0},null,{"$f":"Import!G802","v":0}]
[null,"(c)","Adjustments to Liabilities for Incurred Claims",null,{"$f":"Import!E803","v":0},null,{"$f":"Import!G803","v":0}]
[null,"(d)","Losses (and reversals of losses) on Onerous Insurance Contracts",null,{"$f":"Import!E804","v":0},null,{"$f":"Import!G804","v":0}]
[null,"(e)","Other Insurance Service Expenses",null,{"$f":"Import!E805","v":0},null,{"$f":"Import!G805","v":0}]
[null,"(f)","TOTAL INSURANCE SERVICE EXPENSES",null,{"$f":"SUM(E14:E18)","v":0},null,{"$f":"SUM(G14:G18)","v":0}]
[]
[null,"3.","INSURANCE SERVICE RESULTS BEFORE REINSURANCE",null,{"$f":"E11-E19","v":0},null,{"$f":"G11-G19","v":0}]
[]
[null,"4.","NET EXPENSES FROM REINSURANCE CONTRACT HELD"]
[null,"(a)","    Reinsurance recoveries and other income",null,{"$f":"Import!E808","v":0},null,{"$f":"Import!G808","v":0}]
[null,"(b)","    Reinsurance expenses (allocated reinsurance premiums)",null,{"$f":"Import!E809","v":0},null,{"$f":"Import!G809","v":0}]
[null,"(c)","TOTAL NET EXPENSES FROM REINSURANCE CONTRACTS HELD",null,{"$f":"SUM(E24:E25)","v":0},null,{"$f":"SUM(G24:G25)","v":0}]
[]
[null,"5.","NET INSURANCE SERVICE RESULTS",null,{"$f":"E21-E26","v":0},null,{"$f":"G21-G26","v":0}]
[]
[null,"6.","INVESTMENT RETURNS"]
[null,"(a)","Net interest revenue/investment income",null,{"$f":"Import!E812","v":0},null,{"$f":"Import!G812","v":0}]
[null,"(b)","Net realised fair value gains/(losses) through P&L",null,{"$f":"Import!E813","v":0},null,{"$f":"Import!G813","v":0}]
[null,"(c)","Net foreign exchange income",null,{"$f":"Import!E814","v":0},null,{"$f":"Import!G814","v":0}]
[null,"(d)","Credit impairment losses on financial assets",null,{"$f":"Import!E815","v":0},null,{"$f":"Import!G815","v":0}]
[null,"(e)","Other investment returns",null,{"$f":"Import!E816","v":0},null,{"$f":"Import!G816","v":0}]
[null,"(f)","TOTAL INVESTMENT RETURNS",null,{"$f":"E31+E32-E33+E34+E35","v":0},null,{"$f":"G31+G32-G33+G34+G35","v":0}]
[]
[null,"7.","INSURANCE FINANCE RESULTS"]
[null,"(a)","Net finance income and expenses from insurance contracts issued",null,{"$f":"Import!E818","v":0},null,{"$f":"Import!G818","v":0}]
[null,"(b)","Net finance income and expenses from reinsurance contracts held",null,{"$f":"Import!E819","v":0},null,{"$f":"Import!G819","v":0}]
[null,"(c)","TOTAL NET INSURANCE FINANCE RESULTS",null,{"$f":"SUM(E39:E40)","v":0},null,{"$f":"SUM(G39:G40)","v":0}]
[]
[null,"8.","NET INSURANCE FINANCIAL AND INVESTMENT RESULTS",null,{"$f":"E36+E41","v":0},null,{"$f":"G36+G41","v":0}]
[]
[null,"9.","COMBINED OTHER INCOME (DEDUCTIONS)",null,{"$f":"Import!E822","v":0},null,{"$f":"Import!G822","v":0}]
[]
[]
[null,"10.","PROFIT BEFORE TAX",null,{"$f":"E43+E28+E45","v":0},null,{"$f":"G43+G28+G45","v":0}]
[]
[null,"11.","INCOME TAX",null,{"$f":"Import!E824","v":0},null,{"$f":"Import!G824","v":0}]
[]
[null,"12.","NET INCOME",null,{"$f":"E48-E50","v":0},null,{"$f":"G48-G50","v":0}]
[]
[]
[null,"Disclosures for Statement of Profit or Loss"]
[null,"Line 1","Notes to Insurance Revenue"]
[]
[null,null,"Contracts not measured under the PAA"]
[null,null,"Amounts relating to changes in liabilities for remaining coverage"]
[]
[null,null,"Expected incurred claims and other insurance service expenses",null,{"$f":"Import!E827","v":0}]
[]
[null,null,"CSM recognised for services provided",null,{"$f":"Import!E828","v":0}]
[]
[null,null,"Change in risk adjustment for non-financial risk for risk expired",null,{"$f":"Import!E829","v":0}]
[]
[null,null,"Allocation of the portion of premiums that relate to the recovery of insurance acquisition cashflows",null,{"$f":"Import!E830","v":0}]
[]
[null,null,"Contracts measured under the General Model",null,{"$f":"E63+E65+E67+E61","v":0}]
[]
[null,null,"Contracts measured under the PAA",null,{"$f":"Import!E832","v":0}]
[]
[null,null,"Total Insurance Revenue",null,{"$f":"E69+E71","v":0}]
[]
[null,"SUPPLEMENTARY DISCLOSURES"]
[null,"Premium Disclosures",null,null,{"$f":"'Form 1EBS'!$F$7","v":"2023-12-31"}]
[null,null,"General Business - Gross premium written in the reporting Year",null,{"$f":"Import!E834","v":0}]
[null,null,"General Business - Premiums Ceded in the reporting Year",null,{"$f":"Import!E835","v":0}]
[null,null,"General Business - Net premium written in the reporting Year",null,{"$f":"E77-E78","v":0}]
[]
[null,null,"General Business - Net Losses Incurred in the reporting Year",null,{"$f":"Import!E837","v":0}]
[]
[null,null,"Long-Term Business - Gross premium written in the reporting Year",null,{"$f":"Import!E838","v":0}]
[null,null,"Long-Term Business - Premiums Ceded in the reporting Year",null,{"$f":"Import!E839","v":0}]
[null,null,"Long-Term Business - Net premium written in the reporting Year",null,{"$f":"E83-E84","v":0}]
[]
[null,"Operating Expenses Details"]
[]
[null,"(a)","General and administrative ",null,{"$f":"Import!E841","v":0}]
[null,"(b)","Personnel costs  ",null,{"$f":"Import!E842","v":0}]
[null,"(c)","Other  ",null,{"$f":"Import!E843","v":0}]
[null,"(d)","Total combined operating expenses  ",null,{"$f":"SUM(E89:E91)","v":0}]

{"sheet":"Form 8A","index":21,"n_rows":67,"n_cols":9,"rows_kept":67,"cut":false,"hidden":false,"merged":[[2,2,2,3],[3,2,3,3],[45,2,45,4],[66,6,66,8],[51,2,51,4],[60,2,60,4],[61,2,61,4],[62,2,62,4],[63,2,63,4],[66,2,66,4]]}
[null,"STATUTORY STATEMENT OF CAPITAL AND SURPLUS",null,null,null,null,null,null,{"$f":"HYPERLINK(\"#'Index'!A1\",\"Return to Index\")","v":"Return to Index"}]
[null,{"$f":"'Group Information'!C9","v":"Enter Parent Company Name"}]
[null,"For the year ending",{"$f":"'Group Information'!C3","v":"2023-12-31"},null,null,null,null,null,"FORM 8ASFS"]
[null,"expressed in ",{"$f":"'Form 1EBS'!C4","v":" ['000s]United States Dollars"}]
[]
[null,"STMT."]
[null,"LINE No.",null,null,null,null,{"$f":"'Form 1EBS'!F7","v":"2023-12-31"},null,{"$f":"'Form 1EBS'!H7","v":"2022-12-31"}]
[null,null,null,null,null,null,"('000)",null,"('000)"]
[null,"1.","STATUTORY CAPITAL"]
[]
[null,"(a) ","Capital stock"]
[null,null,"(i) Common shares",null,null,null,{"$f":"Import!E848","v":0},null,{"$f":"Import!G848","v":0}]
[null,null,"authorised",null,"shares of par"]
[null,null,"value",null,"each issued and"]
[null,null,"fully paid",null,"shares"]
[]
[null,null,"(ii) Preferred shares",null,null,null,{"$f":"Import!E849","v":0},null,{"$f":"Import!G849","v":0}]
[null,null,"authorised",null,"shares of par"]
[null,null,"value",null,"each issued and"]
[null,null,"fully paid",null,"shares"]
[null,null,"aggregate liquidation value for —"]
[null,null,{"$f":"G7","v":"2023-12-31"}]
[null,null,{"$f":"I7","v":"2022-12-31"}]
[]
[null,null,"(iii) Treasury shares",null,null,null,{"$f":"Import!E850","v":0},null,{"$f":"Import!G850","v":0}]
[null,null,"repurchased",null,"shares of par"]
[null,null,"value",null,"each issued"]
[]
[null,"(b)","Contributed surplus",null,null,null,{"$f":"Import!E851","v":0},null,{"$f":"Import!G851","v":0}]
[]
[null,"(c) ","Any other fixed capital"]
[null,null,"(i) Hybrid capital instruments",null,null,null,{"$f":"Import!E852","v":0},null,{"$f":"Import!G852","v":0}]
[null,null,"(ii) Guarantees and others",null,null,null,{"$f":"Import!E853","v":0},null,{"$f":"Import!G853","v":0}]
[null,null,"(iii) Total any other fixed capital",null,null,null,{"$f":"SUM(G32:G33)","v":0},null,{"$f":"SUM(I32:I33)","v":0}]
[]
[null,"(d)","Total Statutory Capital",null,null,null,{"$f":"G12+G17-G25+G29+G34","v":0},null,{"$f":"I12+I17-I25+I29+I34","v":0}]
[]
[null,"2.","STATUTORY SURPLUS:"]
[]
[null,"(a) ","Statutory Surplus - Beginning of Year",null,null,null,{"$f":"Import!E854","v":0},null,{"$f":"Import!G854","v":0}]
[]
[null,"(b)","Add: Income for Year",null,null,null,{"$f":"'Form 2A'!E52","v":0},null,{"$f":"'Form 2A'!G52","v":0}]
[]
[null,"(c) ","Less: Dividends paid and payable",null,null,null,{"$f":"Import!E855","v":0},null,{"$f":"Import!G855","v":0}]
[]
[null,"(d)","Add (Deduct) change in unrealized appreciation (depreciation) of investments",null,null,null,{"$f":"Import!E856","v":0},null,{"$f":"Import!G856","v":0}]
[]
[null,"(e)","Add (Deduct) change in non-admitted assets",null,null,null,{"$f":"Import!E857","v":0},null,{"$f":"Import!G857","v":0}]
[]
[null,"(f)","Add (Deduct) change in appraisal of real estate",null,null,null,{"$f":"Import!E858","v":0},null,{"$f":"Import!G858","v":0}]
[]
[null,"(g)","Add (Deduct) change in any other statutory capital",null,null,null,{"$f":"Import!E859","v":0},null,{"$f":"Import!G859","v":0}]
[]
[null,"(h)","Statutory Surplus - End of Year",null,null,null,{"$f":"G40+G42+G44+G46+G48+G50+G52","v":0},null,{"$f":"I40+I42+I44+I46+I48+I50+I52","v":0}]
[]
[null,"3.","MINORITY INTEREST",null,null,null,{"$f":"Import!E860","v":0},null,{"$f":"Import!G860","v":0}]
[]
[null,"4.","TOTAL STATUTORY CAPITAL AND SURPLUS",null,null,null,{"$f":"G36+G54+G56","v":0},null,{"$f":"I36+I54+I56","v":0}]
[]
[null,null,null,null,null,null,"Change in other statutory capital and surplus"]
[null,"Line 2g","Change in any other statutory capital - Change from IFRS 4 to 17",null,null,null,{"$f":"Import!E866","v":0}]
[null,"Line 2g","Change in any other statutory capital - 1 Other",null,null,null,{"$f":"Import!E867","v":0}]
[null,"Line 2g","Change in any other statutory capital - 2 Other",null,null,null,{"$f":"Import!E868","v":0}]
[null,"Line 2g","Change in any other statutory capital - 3 Other",null,null,null,{"$f":"Import!E869","v":0}]
[null,null,"Total",null,null,null,{"$f":"SUM(G61:G64)","v":0},null,{"$f":"IF(I67=0,\"True\",\"False\")","v":"True"}]
[null,null,null,null,null,null,null,null,{"$f":"IF(ROUND((I8-I63),0)=0,\"TRUE\",\"FALSE\")","v":{"$error":"#VALUE!"}}]
[null,"Line 4","Total Statutory Capital and Surplus",null,null,null,{"$f":"HYPERLINK(\"#'Schedule V(g)'!A1\",\"Refer to Schedule V(g)\")","v":"Refer to Schedule V(g)"}]

{"sheet":"Form 1EBS","index":22,"n_rows":300,"n_cols":8,"rows_kept":300,"cut":false,"hidden":false,"merged":[[242,5,242,7],[244,5,244,7],[289,2,289,3],[284,2,284,3]]}
[null,"GROUP STATUTORY BALANCE SHEET"]
[null,{"$f":"'Group Information'!C9","v":"Enter Parent Company Name"},null,null,null,null,null,{"$f":"HYPERLINK(\"#'Index'!A1\",\"Return to Index\")","v":"Return to Index"}]
[null,"As at",{"$f":"'Group Information'!C3","v":"2023-12-31"}]
[null,"expressed in "," ['000s]United States Dollars",null,null,null,null,"FORM 1EBS"]
[]
[null,"STMT."]
[null,"LINE No.",null,null,null,{"$f":"C3","v":"2023-12-31"},null,{"$f":"DATE(YEAR(C3) -1, MONTH(C3), DAY(C3))","v":"2022-12-31"}]
[null,null,null,null,null,"('000)",null,"('000)"]
[]
[null,"1.","CASH AND CASH EQUIVALENTS",null,null,{"$f":"Import!I6","v":0},null,{"$f":"Import!K6","v":0}]
[]
[null,"2.","QUOTED INVESTMENTS:"]
[null,"(a)","Bonds and debentures"]
[null,"(b)","Total bonds and debentures",null,null,{"$f":"Import!I9","v":0},null,{"$f":"Import!K9","v":0}]
[null,"(c) ","Equities "]
[null,null,"  i.   Common stocks",null,null,{"$f":"Import!I10","v":0},null,{"$f":"Import!K10","v":0}]
[null,null,"  ii.  Preferred stocks",null,null,{"$f":"Import!I11","v":0},null,{"$f":"Import!K11","v":0}]
[null,null,"  iii. Mutual funds",null,null,{"$f":"Import!I12","v":0},null,{"$f":"Import!K12","v":0}]
[null,"(d) ","Total equities",null,null,{"$f":"SUM(F16:F18)","v":0},null,{"$f":"SUM(H16:H18)","v":0}]
[null,"(e)","Other quoted investments",null,null,{"$f":"Import!I13","v":0},null,{"$f":"Import!K13","v":0}]
[null,"(f)","Total quoted investments",null,null,{"$f":"F14+F19+F20","v":0},null,{"$f":"H14+H19+H20","v":0}]
[]
[null,"3.","UNQUOTED INVESTMENTS:"]
[null,"(a)","Bonds and debentures"]
[null,"(b)","Total bonds and debentures",null,null,{"$f":"Import!I16","v":0},null,{"$f":"Import!K16","v":0}]
[null,"(c) ","Equities "]
[null,null,"  i.   Common stocks",null,null,{"$f":"Import!I17","v":0},null,{"$f":"Import!K17","v":0}]
[null,null,"  ii.  Preferred stocks",null,null,{"$f":"Import!I18","v":0},null,{"$f":"Import!K18","v":0}]
[null,null,"  iii. Mutual funds",null,null,{"$f":"Import!I19","v":0},null,{"$f":"Import!K19","v":0}]
[null,"(d) ","Total equities",null,null,{"$f":"SUM(F27:F29)","v":0},null,{"$f":"SUM(H27:H29)","v":0}]
[null,"(e) ","Other unquoted investments",null,null,{"$f":"Import!I20","v":0},null,{"$f":"Import!K20","v":0}]
[null,"(f) ","Total unquoted investments",null,null,{"$f":"F25+F30+F31","v":0},null,{"$f":"H25+H30+H31","v":0}]
[]
[null,"4.","INVESTMENTS IN AND ADVANCES TO AFFILIATES (EQUITY):"]
[null,"(a)","Unregulated entities that conduct ancillary services",null,null,{"$f":"Import!I21","v":0},null,{"$f":"Import!K21","v":0}]
[null,"(b)","Unregulated non-financial operating entities",null,null,{"$f":"Import!I22","v":0},null,{"$f":"Import!K22","v":0}]
[null,"(c)","Unregulated financial operating entities",null,null,{"$f":"Import!I23","v":0},null,{"$f":"Import!K23","v":0}]
[null,"(d)","Regulated non-insurance financial operating entities",null,null,{"$f":"Import!I24","v":0},null,{"$f":"Import!K24","v":0}]
[null,"(e)","Regulated insurance financial operating entities",null,null,{"$f":"Import!I25","v":0},null,{"$f":"Import!K25","v":0}]
[null,"(f)","Total investments in affiliates (equity)",null,null,{"$f":"SUM(F35:F39)","v":0},null,{"$f":"SUM(H35:H39)","v":0}]
[null,"(g)","Advances to affiliates",null,null,{"$f":"Import!I26","v":0},null,{"$f":"Import!K26","v":0}]
[null,"(h)","Total investments in and advances to affiliates (equity)",null,null,{"$f":"F40+F41","v":0},null,{"$f":"H40+H41","v":0}]
[]
[null,"5.","INVESTMENTS IN MORTGAGE LOANS ON REAL ESTATE:"]
[null,"(a)","First liens",null,null,{"$f":"Import!I27","v":0},null,{"$f":"Import!K27","v":0}]
[null,"(b)","Other than first liens ",null,null,{"$f":"Import!I28","v":0},null,{"$f":"Import!K28","v":0}]
[null,"(c) ","Total investments in mortgage loans on real estate",null,null,{"$f":"SUM(F45:F46)","v":0},null,{"$f":"SUM(H45:H46)","v":0}]
[]
[null,"6.","POLICY LOANS",null,null,{"$f":"Import!I29","v":0},null,{"$f":"Import!K29","v":0}]
[]
[null,"7.","REAL ESTATE:"]
[null,"(a)","Occupied by the group (less encumbrances)",null,null,{"$f":"Import!I30","v":0},null,{"$f":"Import!K30","v":0}]
[null,"(b)","Other properties (less encumbrances)",null,null,{"$f":"Import!I31","v":0},null,{"$f":"Import!K31","v":0}]
[null,"(c) ","Total real estate",null,null,{"$f":"SUM(F52:F53)","v":0},null,{"$f":"SUM(H52:H53)","v":0}]
[]
[null,"8.","COLLATERAL LOANS",null,null,{"$f":"Import!I32","v":0},null,{"$f":"Import!K32","v":0}]
[]
[null,"9.","INVESTMENT INCOME DUE AND ACCRUED",null,null,{"$f":"Import!I33","v":0},null,{"$f":"Import!K33","v":0}]
[]
[null,"10.","ACCOUNTS AND PREMIUMS RECEIVABLE:"]
[null,"(a)","In course of collection",null,null,{"$f":"Import!I34","v":0},null,{"$f":"Import!K34","v":0}]
[null,"(c) ","Receivables from retrocessional contracts",null,null,{"$f":"Import!I36","v":0},null,{"$f":"Import!K36","v":0}]
[null,"(d)","Total accounts and premiums receivable",null,null,{"$f":"SUM(F61:F62)","v":0},null,{"$f":"SUM(H61:H62)","v":0}]
[]
[null,"11.","REINSURANCE BALANCES RECEIVABLE:"]
[null,"(a)","Foreign affiliates ",null,null,{"$f":"Import!I37","v":0},null,{"$f":"Import!K37","v":0}]
[null,"(b)","Domestic affiliates ",null,null,{"$f":"Import!I38","v":0},null,{"$f":"Import!K38","v":0}]
[null,"(c)","Pools & associations",null,null,{"$f":"Import!I39","v":0},null,{"$f":"Import!K39","v":0}]
[null,"(d)","All other insurers",null,null,{"$f":"Import!I40","v":0},null,{"$f":"Import!K40","v":0}]
[null,"(e) ","Total reinsurance balances receivable",null,null,{"$f":"SUM(F66:F69)","v":0},null,{"$f":"SUM(H66:H69)","v":0}]
[]
[null,"12.","FUNDS HELD BY CEDING REINSURERS"]
[null,"(a)","Affiliated",null,null,{"$f":"Import!I41","v":0},null,{"$f":"Import!K41","v":0}]
[null,"(b)","Non-affiliated",null,null,{"$f":"Import!I42","v":0},null,{"$f":"Import!K42","v":0}]
[null,"(c) ","Total funds held by ceding reinsurers",null,null,{"$f":"SUM(F73:F74)","v":0},null,{"$f":"SUM(H73:H74)","v":0}]
[]
[null,"13.","SUNDRY ASSETS:"]
[null,"(a)","Derivative instruments",null,null,{"$f":"Import!I44","v":0},null,{"$f":"Import!K44","v":0}]
[null,"(b)","Segregated accounts companies - long-term business - variable annuities",null,null,{"$f":"Import!I45","v":0},null,{"$f":"Import!K45","v":0}]
[null,"(c)","Segregated accounts companies - long-term business - others",null,null,{"$f":"Import!I46","v":0},null,{"$f":"Import!K46","v":0}]
[null,"(d)","Segregated accounts companies - general business",null,null,{"$f":"Import!I47","v":0},null,{"$f":"Import!K47","v":0}]
[null,"(e)","Deposit assets",null,null,{"$f":"Import!I48","v":0},null,{"$f":"Import!K48","v":0}]
[null,"(f)","Balances receivable on sale of investments",null,null,{"$f":"Import!I49","v":0},null,{"$f":"Import!K49","v":0}]
[null,"(g)","Intangible assets",null,null,{"$f":"Import!I50","v":0},null,{"$f":"Import!K50","v":0}]
[null,"(h)","Deferred tax assets",null,null,{"$f":"Import!I51","v":0},null,{"$f":"Import!K51","v":0}]
[null,"(i)","Pension Benefit Surplus",null,null,{"$f":"Import!I52","v":0},null,{"$f":"Import!K52","v":0}]
[null,"(j)","Other sundry assets (specify)",null,null,{"$f":"Import!I53","v":0},null,{"$f":"Import!K53","v":0}]
[null,"(k)","Total sundry assets",null,null,{"$f":"SUM(F78:F87)","v":0},null,{"$f":"SUM(H78:H87)","v":0}]
[]
[null,"14.","LETTERS OF CREDIT, GUARANTEES AND OTHER INSTRUMENTS:"]
[null,"(a)","Letters of credit ",null,null,{"$f":"Import!I54","v":0},null,{"$f":"Import!K54","v":0}]
[null,"(b)","Guarantees",null,null,{"$f":"Import!I55","v":0},null,{"$f":"Import!K55","v":0}]
[null,"(c) ","Other instruments",null,null,{"$f":"Import!I56","v":0},null,{"$f":"Import!K56","v":0}]
[null,"(d)","Total letters of credit, guarantees and other instruments",null,null,{"$f":"SUM(F91:F93)","v":0},null,{"$f":"SUM(H91:H93)","v":0}]
[]
[null,"15.","TOTAL",null,null,{"$f":"F10+F21+F32+F42+F47+F49+F54+F56+F58+F63+F70+F75+F88+F94","v":0},null,{"$f":"H10+H21+H32+H42+H47+H49+H54+H56+H58+H63+H70+H75+H88+H94","v":0}]
[]
[null,null,"TOTAL INSURANCE TECHNICAL RESERVES, OTHER LIABILITIES AND "]
[null,null,"STATUTORY ECONOMIC CAPITAL AND SURPLUS"]
[]
[null,null,"GENERAL BUSINESS INSURANCE TECHNICAL PROVISIONS"]
[]
[null,"16.","BEST ESTIMATE PREMIUM PROVISIONS"]
[null,"(a)","Gross premium provisions",null,null,{"$f":"Import!I57","v":0},null,{"$f":"Import!K57","v":0}]
[null,"(b)","Less : Reinsurance recoverable balance"]
[null,null,"  i.   Foreign affiliates",null,null,{"$f":"Import!I58","v":0},null,{"$f":"Import!K58","v":0}]
[null,null,"  ii.  Domestic affiliates",null,null,{"$f":"Import!I59","v":0},null,{"$f":"Import!K59","v":0}]
[null,null,"  iii. Pools & associations",null,null,{"$f":"Import!I60","v":0},null,{"$f":"Import!K60","v":0}]
[null,null,"  iv.  All other insurers",null,null,{"$f":"Import!I61","v":0},null,{"$f":"Import!K61","v":0}]
[null,"(c) ","Total reinsurance recoverable balance",null,null,{"$f":"SUM(F106:F109)","v":0},null,{"$f":"SUM(H106:H109)","v":0}]
[null,"(d) ","Net premium provisions",null,null,{"$f":"F104-F110","v":0},null,{"$f":"H104-H110","v":0}]
[]
[null,"17.","BEST ESTIMATE LOSS AND LOSS EXPENSE PROVISIONS:"]
[null,"(a)","Less: Reinsurance recoverable balance",null,null,{"$f":"Import!I63","v":0},null,{"$f":"Import!K63","v":0}]
[null,"(b)","Less : Reinsurance recoverable balance"]
[null,null,"  i.   Foreign affiliates",null,null,{"$f":"Import!I64","v":0},null,{"$f":"Import!K64","v":0}]
[null,null,"  ii.  Domestic affiliates",null,null,{"$f":"Import!I65","v":0},null,{"$f":"Import!K65","v":0}]
[null,null,"  iii. Pools & associations",null,null,{"$f":"Import!I66","v":0},null,{"$f":"Import!K66","v":0}]
[null,null,"  iv.  All other insurers",null,null,{"$f":"Import!I67","v":0},null,{"$f":"Import!K67","v":0}]
[null,"(c) ","Total reinsurance recoverable balance",null,null,{"$f":"SUM(F116:F119)","v":0},null,{"$f":"SUM(H116:H119)","v":0}]
[null,"(d) ","Net loss and loss expense provisions",null,null,{"$f":"F114-F120","v":0},null,{"$f":"H114-H120","v":0}]
[]
[null,"18.","RISK MARGIN – GENERAL INSURANCE BUSINESS",null,null,{"$f":"Import!I68","v":0},null,{"$f":"Import!K68","v":0}]
[]
[null,"19.","TOTAL GENERAL BUSINESS INSURANCE TECHNICAL PROVISIONS",null,null,{"$f":"F111+F121+F123","v":0},null,{"$f":"H111+H121+H123","v":0}]
[]
[null,null,"LONG-TERM BUSINESS INSURANCE TECHNICAL PROVISIONS"]
[]
[null,"20.","BEST ESTIMATE RESERVES FOR REPORTED CLAIMS",null,null,{"$f":"Import!I69","v":0},null,{"$f":"Import!K69","v":0}]
[]
[null,"21.","BEST ESTIMATE RESERVES FOR UNREPORTED CLAIMS",null,null,{"$f":"Import!I70","v":0},null,{"$f":"Import!K70","v":0}]
[]
[null,"22.","BEST ESTIMATE POLICY RESERVES - LIFE",null,null,{"$f":"Import!I71","v":0},null,{"$f":"Import!K71","v":0}]
[]
[null,"23.","BEST ESTIMATE POLICY RESERVES - ACCIDENT AND HEALTH",null,null,{"$f":"Import!I72","v":0},null,{"$f":"Import!K72","v":0}]
[]
[null,"24.","BEST ESTIMATE POLICYHOLDER'S FUNDS ON DEPOSIT",null,null,{"$f":"Import!I73","v":0},null,{"$f":"Import!K73","v":0}]
[]
[null,"25.","BEST ESTIMATE LIABILITY FOR FUTURE POLICYHOLDER DIVIDENDS",null,null,{"$f":"Import!I74","v":0},null,{"$f":"Import!K74","v":0}]
[]
[null,"26.","BEST ESTIMATE OTHER LONG-TERM BUSINESS INSURANCE RESERVES",null,null,{"$f":"Import!I75","v":0},null,{"$f":"Import!K75","v":0}]
[]
[null,"27.","TOTAL BEST ESTIMATE LONG-TERM BUSINESS INSURANCE PROVISIONS"]
[null,"(a)","Total Gross Long-Term Business Insurance Provisions",null,null,{"$f":"F150+F151","v":0},null,{"$f":"H150+H151","v":0}]
[null,"(b)","Less: Reinsurance Recoverable Balance:"]
[null,null,"(i) Foreign Affiliates",null,null,{"$f":"Import!I76","v":0},null,{"$f":"Import!K76","v":0}]
[null,null,"(ii) Domestic Affiliaties",null,null,{"$f":"Import!I77","v":0},null,{"$f":"Import!K77","v":0}]
[null,null,"(iii) Pools and Associations",null,null,{"$f":"Import!I78","v":0},null,{"$f":"Import!K78","v":0}]
[null,null,"(iv) All Other Insurers",null,null,{"$f":"Import!I79","v":0},null,{"$f":"Import!K79","v":0}]
[null,"(c)","Total Reinsurance Recoverable Balance",null,null,{"$f":"SUM(F146:F149)","v":0},null,{"$f":"SUM(H146:H149)","v":0}]
[null,"(d)","Net Long-Term Business Insurance Provisions",null,null,{"$f":"F129+F131+F133+F135+F137+F139+F141","v":0},null,{"$f":"H129+H131+H133+H135+H137+H139+H141","v":0}]
[]
[null,"27A.","Risk Margin – Long-term insurance business",null,null,{"$f":"Import!I80","v":0},null,{"$f":"Import!K80","v":0}]
[]
[null,"27B.","LONG-TERM TECHNICAL PROVISIONS CALCULATED AS A WHOLE"]
[null,"(a)","Total Gross Long-Term Business Insurance Provisions",null,null,{"$f":"Import!I81","v":0},null,{"$f":"Import!K81","v":0}]
[null,"(b)","Less: Reinsurance Recoverable Balance:"]
[null,null,"(i) Foreign Affiliates",null,null,{"$f":"Import!I82","v":0},null,{"$f":"Import!K82","v":0}]
[null,null,"(ii) Domestic Affiliaties",null,null,{"$f":"Import!I83","v":0},null,{"$f":"Import!K83","v":0}]
[null,null,"(iii) Pools and Associations",null,null,{"$f":"Import!I84","v":0},null,{"$f":"Import!K84","v":0}]
[null,null,"(iv) All Other Insurers",null,null,{"$f":"Import!I85","v":0},null,{"$f":"Import!K85","v":0}]
[null,"(c)","Total Reinsurance Recoverable Balance",null,null,{"$f":"SUM(F158:F161)","v":0},null,{"$f":"SUM(H158:H161)","v":0}]
[null,"(d)","Net Long-Term Business Insurance Provisions",null,null,{"$f":"F156-F162","v":0},null,{"$f":"H156-H162","v":0}]
[]
[null,"27C.","TOTAL LONG-TERM INSURANCE BUSINESS TECHNICAL PROVISIONS",null,null,{"$f":"F151+F153+F163","v":0},null,{"$f":"H151+H153+H163","v":0}]
[]
[null,null,"OTHER LIABILITIES"]
[]
[null,"28.","INSURANCE AND REINSURANCE BALANCES PAYABLE",null,null,{"$f":"Import!I86","v":0},null,{"$f":"Import!K86","v":0}]
[]
[null,"29.","COMMISSIONS, EXPENSES, FEES AND TAXES PAYABLE",null,null,{"$f":"Import!I87","v":0},null,{"$f":"Import!K87","v":0}]
[]
[null,"30.","LOANS AND NOTES PAYABLE",null,null,{"$f":"Import!I88","v":0},null,{"$f":"Import!K88","v":0}]
[]
[null,"31.","TAX LIABILITIES"]
[null,"(a)","Income taxes payable",null,null,{"$f":"Import!I89","v":0},null,{"$f":"Import!K89","v":0}]
[null,"(b)","Deferred income taxes",null,null,{"$f":"Import!I90","v":0},null,{"$f":"Import!K90","v":0}]
[]
[null,"32.","AMOUNTS DUE TO AFFILIATES",null,null,{"$f":"Import!I91","v":0},null,{"$f":"Import!K91","v":0}]
[]
[null,"33.","ACCOUNTS PAYABLE AND ACCRUED LIABILITIES",null,null,{"$f":"Import!I92","v":0},null,{"$f":"Import!K92","v":0}]
[]
[null,"34.","FUNDS HELD UNDER REINSURANCE CONTRACTS"]
[null,"(a)","Affiliated",null,null,{"$f":"Import!I93","v":0},null,{"$f":"Import!K93","v":0}]
[null,"(b)","Non-affiliated",null,null,{"$f":"Import!I94","v":0},null,{"$f":"Import!K94","v":0}]
[null,"(c) ","Total funds held by ceding reinsurers",null,null,{"$f":"SUM(F184:F185)","v":0},null,{"$f":"SUM(H184:H185)","v":0}]
[]
[null,"35.","DIVIDENDS PAYABLE",null,null,{"$f":"Import!I96","v":0},null,{"$f":"Import!K96","v":0}]
[]
[null,"36.","SUNDRY LIABILITIES:"]
[null,"(a)","Derivative instruments – held for hedging purposes",null,null,{"$f":"Import!I97","v":0},null,{"$f":"Import!K97","v":0}]
[null,"(b)","Derivative instruments – not held for hedging purposes",null,null,{"$f":"Import!I98","v":0},null,{"$f":"Import!K98","v":0}]
[null,"(c)","Segregated accounts - LT business – variable annuities",null,null,{"$f":"Import!I99","v":0},null,{"$f":"Import!K99","v":0}]
[null,"(d)","Segregated accounts - LT business - other",null,null,{"$f":"Import!I100","v":0},null,{"$f":"Import!K100","v":0}]
[null,"(e)","Segregated accounts - General business",null,null,{"$f":"Import!I101","v":0},null,{"$f":"Import!K101","v":0}]
[null,"(f)","Deposit liabilities",null,null,{"$f":"Import!I102","v":0},null,{"$f":"Import!K102","v":0}]
[null,"(g)","Pension benefit obligations",null,null,{"$f":"Import!I103","v":0},null,{"$f":"Import!K103","v":0}]
[null,"(h)","Balances payable for purchase of investments",null,null,{"$f":"Import!I104","v":0},null,{"$f":"Import!K104","v":0}]
[null,"(i)","Other sundry liabilities (specify)",null,null,{"$f":"Import!I105","v":0},null,{"$f":"Import!K105","v":0}]
[null,"(j)","Total sundry liabilities",null,null,{"$f":"SUM(F191:F199)","v":0},null,{"$f":"SUM(H191:H199)","v":0}]
[]
[null,"37.","LETTERS OF CREDIT, GUARANTEES AND OTHER INSTRUMENTS:"]
[null,"(a)","Letters of credit ",null,null,{"$f":"Import!I106","v":0},null,{"$f":"Import!K106","v":0}]
[null,"(b)","Guarantees",null,null,{"$f":"Import!I107","v":0},null,{"$f":"Import!K107","v":0}]
[null,"(c) ","Other instruments",null,null,{"$f":"Import!I108","v":0},null,{"$f":"Import!K108","v":0}]
[null,"(d)","Total letters of credit, guarantees and other instruments",null,null,{"$f":"SUM(F203:F205)","v":0},null,{"$f":"SUM(H203:H205)","v":0}]
[]
[null,"38.","TOTAL OTHER LIABILITIES",null,null,{"$f":"F169+F171+F173+F176+F177+F179+F181+F186+F188+F200+F206","v":0},null,{"$f":"H169+H171+H173+H176+H177+H179+H181+H186+H188+H200+H206","v":0}]
[]
[null,"39.","TOTAL INSURANCE TECHNICAL PROVISIONS AND OTHER LIABILITIES",null,null,{"$f":"F125+F165+F208","v":0},null,{"$f":"H125+H165+H208","v":0}]
[]
[null,null,"STATUTORY ECONOMIC CAPITAL AND SURPLUS"]
[]
[null,"40.","STATUTORY ECONOMIC CAPITAL AND SURPLUS",null,null,{"$f":"Import!I109","v":0},null,{"$f":"Import!K109","v":0}]
[]
[null,"41.","TOTAL",null,null,{"$f":"F210+F214","v":0},null,{"$f":"H210+H214","v":0}]
[]
[null,null,null,null,null,{"$f":"IF(F219=\"TRUE\",HYPERLINK(\"#'Form 1EBS'!F96\",\"TRUE\"),HYPERLINK(\"#'Form 1EBS'!F96\",\"FALSE\"))","v":"TRUE"},null,{"$f":"IF(H219=\"TRUE\",HYPERLINK(\"#'Form 1EBS'!H96\",\"TRUE\"),HYPERLINK(\"#'Form 1EBS'!H96\",\"FALSE\"))","v":"TRUE"}]
[null,null,null,null,null,{"$f":"IF(ROUND((F96-F216),0)=0,\"TRUE\",\"FALSE\")","v":"TRUE"},null,{"$f":"IF(ROUND((H96-H216),0)=0,\"TRUE\",\"FALSE\")","v":"TRUE"}]
[null,null,null,null,null,{"$f":"ROUND(F96-F216,0)","v":0},null,{"$f":"ROUND(H96-H216,0)","v":0}]
[]
[null,null,null,null,null,{"$f":"IF(F218=\"False\",\"Line 15 does not equal Line 41\",\"\")","v":""},null,{"$f":"IF(H218=\"False\",\"Line 15 does not equal Line 41\",\"\")","v":""}]
[]
[null,"Notes to Form 1EBS",null,"Additional Details"]
[null,"Line 10 ","Collateralized balances",null,null,{"$f":"Import!I111","v":0}]
[null,"Line 11(e)","Collateralized balances",null,null,{"$f":"Import!I112","v":0}]
[null,"Line 17(c)-(ii)","Collateral placed in favor of the group ",{"$f":"HYPERLINK(\"#'Attachments'!G225\",\"Attach file\")","v":"Attach file"},null,{"$f":"Import!I115","v":0}]
[null,"Line 27(c)-(ii)","Collateral placed in favor of the insurer ",{"$f":"HYPERLINK(\"#'Attachments'!G225\",\"Attach file\")","v":"Attach file"},null,{"$f":"Import!I116","v":0}]
[null,"Line 27B(c)-(ii)","Collateral placed in favor of the insurer ",{"$f":"HYPERLINK(\"#'Attachments'!G225\",\"Attach file\")","v":"Attach file"},null,{"$f":"Import!I117","v":0}]
[null,"Line 13(j)","Any other assets",{"$f":"HYPERLINK(\"#'Attachments'!G225\",\"Attach file\")","v":"Attach file"},null,{"$f":"Import!I118","v":0}]
[null,"Line 36(i)","Any other liabilities",{"$f":"HYPERLINK(\"#'Attachments'!G225\",\"Attach file\")","v":"Attach file"},null,{"$f":"Import!I119","v":0}]
[]
[null,"Line 15","Encumbered assets for policyholder obligations"]
[]
[null,null,"Asset"]
[null,null,"                Cash",null,null,{"$f":"Import!I120","v":0},null,{"$f":"Import!K120","v":0}]
[null,null,"                Total quoted investments",null,null,{"$f":"Import!I121","v":0},null,{"$f":"Import!K121","v":0}]
[null,null,"                Total unquoted investments",null,null,{"$f":"Import!I122","v":0},null,{"$f":"Import!K122","v":0}]
[null,null,"                Funds held by ceding reinsurers",null,null,{"$f":"F75","v":0},null,{"$f":"H75","v":0}]
[null,null,"                Other asset types",null,null,{"$f":"Import!I124","v":0},null,{"$f":"Import!K124","v":0}]
[null,null,"                Total assets encumbered",null,null,{"$f":"SUM(F236:F240)","v":0},null,{"$f":"SUM(H236:H240)","v":0}]
[]
[null,"Line 15","Encumbered assets not securing policyholder obligations"]
[]
[null,null,"Asset","Purpose of Encumbrance"]
[null,null,"                    Cash",{"$f":"Import!I126","v":0},null,{"$f":"Import!I130","v":0},null,{"$f":"Import!K130","v":0}]
[null,null,"                    Total quoted investments",{"$f":"Import!I127","v":0},null,{"$f":"Import!I131","v":0},null,{"$f":"Import!K131","v":0}]
[null,null,"                    Total unquoted investments",{"$f":"Import!I128","v":0},null,{"$f":"Import!I132","v":0},null,{"$f":"Import!K132","v":0}]
[null,null,"                    Other asset types",{"$f":"Import!I129","v":0},null,{"$f":"Import!I133","v":0},null,{"$f":"Import!K133","v":0}]
[null,null,"                    Total assets encumbered",null,null,{"$f":"SUM(F246:F249)","v":0},null,{"$f":"SUM(H246:H249)","v":0}]
[]
[null,"Line 13(e)","Details of business treated under deposit accounting techniques as an asset",{"$f":"HYPERLINK(\"#'Attachments'!G175\",\"Attach file\")","v":"Attach file"},null,{"$f":"Import!I135","v":0}]
[null,"Line 36(f)","Details of business treated under deposit accounting techniques as an liability",{"$f":"HYPERLINK(\"#'Attachments'!G175\",\"Attach file\")","v":"Attach file"},null,{"$f":"Import!I136","v":0}]
[null,"Line 37","Details of the basis used to derive the amounts disclosed",{"$f":"HYPERLINK(\"#'Attachments'!G175\",\"Attach file\")","v":"Attach file"},null,{"$f":"Import!I137","v":0}]
[null,"Line 40","Reconciliation between Line 40 of 1EBS and Line 40 of Form 1",{"$f":"HYPERLINK(\"#'Schedule V(g)'!A1\",\"Refer to Schedule V(g)\")","v":"Refer to Schedule V(g)"},null,{"$f":"Import!I138","v":0}]
[]
[]
[null,null,"General Business Provisions Additional Disclosures","Additional Details",null,null,null,"As per Supplementary Schedule"]
[null,"Line 16(c) ","Adjustment for counterparty default ",{"$f":"HYPERLINK(\"#'Attachments'!G185\",\"Attach file with Details of Line of Business\")","v":"Attach file with Details of Line of Business"},null,{"$f":"Import!I139","v":0}]
[null,"Line 17(c)-(i)","Adjustment for counterparty default ",{"$f":"HYPERLINK(\"#'Attachments'!G185\",\"Attach file\")","v":"Attach file"},null,{"$f":"Import!I140","v":0}]
[null,"Line 16(d)-(i)","Premium included as Bound But Not Incepted","See and complete Sch III (EBS)",null,{"$f":"Import!I141","v":0},null,{"$f":"+'Schedule III (EBS)'!J34","v":0}]
[null,"Line 16(d)-(ii)","Best estimate Premium included as Bound But Not Incepted","See and complete Sch III (EBS)",null,{"$f":"Import!I142","v":0},null,{"$f":"+'Schedule III (EBS)'!K34","v":0}]
[null,"Line 17(d)-(i)","Loss and loss expense provision discount","See and complete Sch III (EBS)",null,{"$f":"Import!I143","v":0},null,{"$f":"+'Schedule III (EBS)'!L34","v":0}]
[null,"Line 17(d)-(ii)","Scenario-based approach loss and loss expense provision ",{"$f":"HYPERLINK(\"#'Attachments'!G185\",\"Attach file with Details\")","v":"Attach file with Details"},null,{"$f":"Import!I144","v":0}]
[]
[null,null,"Long-Term Business Provisions Additional Disclosures","Additional Details",null,null,null,"As per Supplementary Schedule"]
[null,"Line 27(c)-(i)","Adjustment for counterparty default",{"$f":"HYPERLINK(\"#'Attachments'!G195\",\"Attach file with Details of Line of Business\")","v":"Attach file with Details of Line of Business"},null,{"$f":"Import!I145","v":0}]
[null,"Line 27(d)-(i)","Premium included as Bound But Not Incepted ","See and complete Sch VII",null,{"$f":"Import!I146","v":0},null,{"$f":"+'Schedule VII (EBS)'!L48","v":0}]
[null,"Line 27(d)-(ii)","Best estimate Premium included as Bound But Not Incepted","See and complete Sch VII",null,{"$f":"Import!I147","v":0},null,{"$f":"+'Schedule VII (EBS)'!M48","v":0}]
[null,"Line 27(d)-(iii)","Best estimate provisions that used trans. Arrangements","See and complete Sch VII",null,{"$f":"Import!I148","v":0},null,{"$f":"+'Schedule VII (EBS)'!N48","v":0}]
[null,"Line 27(d)-(iv)","Best estimate provisions if transitional arrangements were not applied","See and complete Sch VII",null,{"$f":"Import!I149","v":0},null,{"$f":"+'Schedule VII (EBS)'!O48","v":0}]
[null,"Line 27(d)-(v)","Scenario-based best estimate provisions that were used","See and complete Sch VII",null,{"$f":"Import!I150","v":0},null,{"$f":"+'Schedule VII (EBS)'!P48","v":0}]
[null,"Line 27(d)-(vi)","Scenario-based approach that used standard approach","See and complete Sch VII",null,{"$f":"Import!I151","v":0},null,{"$f":"+'Schedule VII (EBS)'!Q48","v":0}]
[null,"Line 27(d)-(vii)","Scenario-based approach that used base approach","See and complete Sch VII",null,{"$f":"Import!I152","v":0},null,{"$f":"+'Schedule VII (EBS)'!R48","v":0}]
[null,"Line 27B(c)-(i)","Adjustment for counterparty default","See and complete Sch VII",null,{"$f":"Import!I153","v":0}]
[null,"Line 27B(d)-(i)","Premium included as Bound But Not Incepted ","See and complete Sch VII",null,{"$f":"Import!I154","v":0},null,{"$f":"+'Schedule VII (EBS)'!S48","v":0}]
[null,"Line 27B(d)-(ii)","Best estimate provisions that used trans. Arrangements","See and complete Sch VII",null,{"$f":"Import!I155","v":0},null,{"$f":"+'Schedule VII (EBS)'!T48","v":0}]
[]
[null,null,"General Business Reserves:"]
[null,"Line 17","Net best estimate loss and loss expense provisions at start of year",null,null,{"$f":"Import!I185","v":0},null,{"$f":"Import!K185","v":0}]
[]
[null,null,"Unwind of discount (start year discount curve)",null,null,{"$f":"Import!I186","v":0},null,{"$f":"Import!K186","v":0}]
[null,null,"Net losses and loss expenses paid or payable related to prior years",null,null,{"$f":"Import!I187","v":0},null,{"$f":"Import!K187","v":0}]
[null,null,"Net losses incurred and net loss expenses incurred related to prior years",null,null,{"$f":"Import!I188","v":0},null,{"$f":"Import!K188","v":0}]
[null,null,"Undiscounted net best estimate loss and loss expense provisions at end of year related to prior years.",null,null,{"$f":"SUM(F280:F284)","v":0},null,{"$f":"SUM(H280:H284)","v":0}]
[]
[null,null,"Net losses incurred and net loss expenses incurred related to current year",null,null,{"$f":"Import!I190","v":0},null,{"$f":"Import!K190","v":0}]
[null,null,"Net losses and loss expenses paid or payable related to current year",null,null,{"$f":"Import!I191","v":0},null,{"$f":"Import!K191","v":0}]
[null,null,"Foreign exchange and other adjustments",null,null,{"$f":"Import!I192","v":0},null,{"$f":"Import!K192","v":0}]
[null,null,"Undiscounted net best estimate loss and loss expense provisions at end of year related to current year.",null,null,{"$f":"SUM(F287:F289)","v":0},null,{"$f":"SUM(H287:H289)","v":0}]
[]
[null,null,"Impact of change in discount curve",null,null,{"$f":"Import!I194","v":0},null,{"$f":"Import!K194","v":0}]
[]
[null,null,"Net best estimate loss and loss expense provisions at end of year",null,null,{"$f":"F285+F290+F292","v":0},null,{"$f":"H285+H290+H292","v":0}]
[]
[null,null,null,null,null,{"$f":"IF(F297=\"TRUE\",HYPERLINK(\"#'Form 1EBS'!F121\",\"TRUE\"),HYPERLINK(\"#'Form 1EBS'!F121\",\"FALSE\"))","v":"TRUE"},null,{"$f":"IF(H297=\"TRUE\",HYPERLINK(\"#'Form 1EBS'!H121\",\"TRUE\"),HYPERLINK(\"#'Form 1EBS'!H121\",\"FALSE\"))","v":"TRUE"}]
[null,null,null,null,null,{"$f":"IF(ROUND((F294-F121),0)=0,\"TRUE\",\"FALSE\")","v":"TRUE"},null,{"$f":"IF(ROUND((H294-H121),0)=0,\"TRUE\",\"FALSE\")","v":"TRUE"}]
[null,null,null,null,null,{"$f":"IF(F294=0,0,ROUND(F121-F294,0))","v":0},null,{"$f":"IF(H294=0,0,ROUND(H121-H294,0))","v":0}]
[]
[null,null,null,null,null,{"$f":"IF(F296=\"False\",\"Does not equal Line 17(d)\",\"\")","v":""},null,{"$f":"IF(H296=\"False\",\"Does not equal Line 17(d)\",\"\")","v":""}]

{"sheet":"Schedule II","index":23,"n_rows":76,"n_cols":22,"rows_kept":76,"cut":false,"hidden":false,"merged":[[6,15,6,17],[52,11,52,13],[52,15,52,17],[54,3,54,5],[6,19,6,21],[28,3,28,5],[28,7,28,9],[28,11,28,13],[28,19,28,21],[51,3,51,5],[51,8,51,18],[2,3,2,5],[3,3,3,5],[6,3,6,5],[6,7,6,9],[6,11,6,13]]}
[null,"SCHEDULE OF FIXED INCOME & EQUITY INVESTMENTS BY BSCR RATING",null,null,null,null,null,null,null,null,null,null,null,null,null,null,null,null,null,null,null,{"$f":"HYPERLINK(\"#'Index'!A1\",\"Return to Index\")","v":"Return to Index"}]
[null,null,{"$f":"+'Group Information'!C9","v":"Enter Parent Company Name"}]
[null,null,"As at",{"$f":"+'Group Information'!C3","v":"2023-12-31"},null,null,null,null,null,null,null,null,null,null,null,null,null,null,null,null,null,"SCHEDULE II"]
[null,null,{"$f":"+'Form 1EBS'!B4","v":"expressed in "},{"$f":"+'Form 1EBS'!C4","v":" ['000s]United States Dollars"}]
[]
[null,null,null,"(1)",null,"(2)",null,"(3)",null,"(4)",null,"(5)",null,"(6)",null,"(7)",null,"(8)",null,"(9)",null,"(10)"]
[null,null,null,"CORPORATE & SOVEREIGN BONDS",null,null,null,"RESIDENTIAL MORTGAGE-BACKED SECURITIES",null,null,null,"COMMERCIAL MORTGAGE-BACKED SECURITIES / ASSET-BACKED SECURITIES",null,null,null,"BOND MUTUAL FUNDS",null,null,null,"TOTAL\n[ Form 1 Lines 2(b) & 3(b)]"]
[null,null,null,{"$f":"+'Form 1EBS'!$F$7","v":"2023-12-31"},null,{"$f":"+'Form 1EBS'!$H$7","v":"2022-12-31"},null,{"$f":"+'Form 1EBS'!$F$7","v":"2023-12-31"},null,{"$f":"+'Form 1EBS'!$H$7","v":"2022-12-31"},null,{"$f":"+'Form 1EBS'!$F$7","v":"2023-12-31"},null,{"$f":"+'Form 1EBS'!$H$7","v":"2022-12-31"},null,{"$f":"+'Form 1EBS'!$F$7","v":"2023-12-31"},null,{"$f":"+'Form 1EBS'!$H$7","v":"2022-12-31"},null,{"$f":"+'Form 1EBS'!$F$7","v":"2023-12-31"},null,{"$f":"+'Form 1EBS'!$H$7","v":"2022-12-31"}]
[null,null,null,{"$f":"+'Form 1EBS'!$F$8","v":"('000)"},null,{"$f":"+'Form 1EBS'!$H$8","v":"('000)"},null,{"$f":"+'Form 1EBS'!$F$8","v":"('000)"},null,{"$f":"+'Form 1EBS'!$H$8","v":"('000)"},null,{"$f":"+'Form 1EBS'!$F$8","v":"('000)"},null,{"$f":"+'Form 1EBS'!$H$8","v":"('000)"},null,{"$f":"+'Form 1EBS'!$F$8","v":"('000)"},null,{"$f":"+'Form 1EBS'!$H$8","v":"('000)"},null,{"$f":"+'Form 1EBS'!$F$8","v":"('000)"},null,{"$f":"+'Form 1EBS'!$H$8","v":"('000)"}]
[null,"Line no. "]
[null,"Quoted and Unquoted Bonds and Debentures"]
[null,1,"BSCR Rating 0",{"$f":"Import!E873","v":0},null,{"$f":"Import!G873","v":0},null,null,null,null,null,null,null,null,null,{"$f":"Import!E898","v":0},null,{"$f":"Import!G898","v":0},null,{"$f":"D12+H12+L12+P12","v":0},null,{"$f":"F12+J12+N12+R12","v":0}]
[null,2,"BSCR Rating 1",{"$f":"Import!E874","v":0},null,{"$f":"Import!G874","v":0},null,{"$f":"Import!E882","v":0},null,{"$f":"Import!G882","v":0},null,{"$f":"Import!E890","v":0},null,{"$f":"Import!G890","v":0},null,{"$f":"Import!E899","v":0},null,{"$f":"Import!G899","v":0},null,{"$f":"D13+H13+L13+P13","v":0},null,0]
[null,3,"BSCR Rating 2",{"$f":"Import!E875","v":0},null,{"$f":"Import!G875","v":0},null,{"$f":"Import!E883","v":0},null,{"$f":"Import!G883","v":0},null,{"$f":"Import!E891","v":0},null,{"$f":"Import!G891","v":0},null,{"$f":"Import!E900","v":0},null,{"$f":"Import!G900","v":0},null,0,null,0]
[null,4,"BSCR Rating 3",{"$f":"Import!E876","v":0},null,{"$f":"Import!G876","v":0},null,{"$f":"Import!E884","v":0},null,{"$f":"Import!G884","v":0},null,{"$f":"Import!E892","v":0},null,{"$f":"Import!G892","v":0},null,{"$f":"Import!E901","v":0},null,{"$f":"Import!G901","v":0},null,0,null,0]
[null,5,"BSCR Rating 4",{"$f":"Import!E877","v":0},null,{"$f":"Import!G877","v":0},null,{"$f":"Import!E885","v":0},null,{"$f":"Import!G885","v":0},null,{"$f":"Import!E893","v":0},null,{"$f":"Import!G893","v":0},null,{"$f":"Import!E902","v":0},null,{"$f":"Import!G902","v":0},null,0,null,0]
[null,6,"BSCR Rating 5",{"$f":"Import!E878","v":0},null,{"$f":"Import!G878","v":0},null,{"$f":"Import!E886","v":0},null,{"$f":"Import!G886","v":0},null,{"$f":"Import!E894","v":0},null,{"$f":"Import!G894","v":0},null,{"$f":"Import!E903","v":0},null,{"$f":"Import!G903","v":0},null,0,null,0]
[null,7,"BSCR Rating 6",{"$f":"Import!E879","v":0},null,{"$f":"Import!G879","v":0},null,{"$f":"Import!E887","v":0},null,{"$f":"Import!G887","v":0},null,{"$f":"Import!E895","v":0},null,{"$f":"Import!G895","v":0},null,{"$f":"Import!E904","v":0},null,{"$f":"Import!G904","v":0},null,0,null,0]
[null,8,"BSCR Rating 7",{"$f":"Import!E880","v":0},null,{"$f":"Import!G880","v":0},null,{"$f":"Import!E888","v":0},null,{"$f":"Import!G888","v":0},null,{"$f":"Import!E896","v":0},null,{"$f":"Import!G896","v":0},null,{"$f":"Import!E905","v":0},null,{"$f":"Import!G905","v":0},null,0,null,0]
[null,9,"BSCR Rating 8",{"$f":"Import!E881","v":0},null,{"$f":"Import!G881","v":0},null,{"$f":"Import!E889","v":0},null,{"$f":"Import!G889","v":0},null,{"$f":"Import!E897","v":0},null,{"$f":"Import!G897","v":0},null,{"$f":"Import!E906","v":0},null,{"$f":"Import!G906","v":0},null,0,null,0]
[]
[null,10,"Total",{"$f":"SUM(D12:D20)","v":0},null,{"$f":"SUM(F12:F20)","v":0},null,{"$f":"SUM(H12:H20)","v":0},null,{"$f":"SUM(J12:J20)","v":0},null,{"$f":"SUM(L12:L20)","v":0},null,{"$f":"SUM(N12:N20)","v":0},null,{"$f":"SUM(P11:P20)","v":0},null,{"$f":"SUM(R11:R20)","v":0},null,{"$f":"SUM(T12:T20)","v":0},null,{"$f":"SUM(V12:V20)","v":0}]
[]
[null,null,null,null,null,null,null,null,null,null,null,null,null,null,null,null,null,null,null,{"$f":"IF(T25=\"TRUE\",HYPERLINK(\"#'Form 1'!F14:F29\",\"TRUE\"),HYPERLINK(\"#'Form 1'!F14:F29\",\"FALSE\"))","v":"TRUE"},null,{"$f":"IF(V25=\"TRUE\",HYPERLINK(\"#'Form 1'!H14:H29\",\"TRUE\"),HYPERLINK(\"#'Form 1'!H14:H29\",\"FALSE\"))","v":"TRUE"}]
[null,null,null,null,null,null,null,null,null,null,null,null,null,null,null,null,null,null,null,{"$f":"IF('Group Information'!$F$11=\"IFRS\",IF(ROUND((T22-('Form 1A'!M16+'Form 1A'!M29)),0)=0,\"TRUE\",\"FALSE\"),\nIF(ROUND((T22-('Form 1'!F16+'Form 1'!F29)),0)=0,\"TRUE\",\"FALSE\"))","v":"TRUE"},null,{"$f":"IF('Group Information'!$F$11=\"IFRS\",IF(ROUND((V22-('Form 1A'!O16+'Form 1A'!O29)),0)=0,\"TRUE\",\"FALSE\"),\nIF(ROUND((V22-('Form 1'!H16+'Form 1'!H29)),0)=0,\"TRUE\",\"FALSE\"))","v":"TRUE"}]
[null,null,"Difference",null,null,null,null,null,null,null,null,null,null,null,null," ",null,null,null,{"$f":"IF('Group Information'!$F$11=\"IFRS\",ROUND(('Form 1A'!M16+'Form 1A'!M29)-T22,0),ROUND(('Form 1'!F16+'Form 1'!F29)-T22,0))","v":0},null,{"$f":"IF('Group Information'!$F$11=\"IFRS\",ROUND(('Form 1A'!O16+'Form 1A'!O29)-V22,0),ROUND(('Form 1'!H16+'Form 1'!H29)-V22,0))","v":0}]
[]
[null,null,null,null,null,null,null,null,null,null,null,null,null,null,null,null,null,null,null,{"$f":"IF(T24=\"False\",\"Does not equal Form 1 Lines 2(b) & 3(b)\",\"\")","v":""},null,{"$f":"IF(V24=\"False\",\"Does not equal Form 1 Lines 2(b) & 3(b)\",\"\")","v":""}]
[null,null,null,"COMMON STOCK\n[ Form 1 Lines 2(c)(i) & 3(c)(i) ]",null,null,null,"PREFERRED STOCK\n[ Form 1 Lines 2(c)(ii) & 3(c)(ii) ]",null,null,null,"EQUITY MUTUAL FUNDS\n[ Form 1 Lines 2(c)(iii) & 3(c)(iii) ]",null,null,null,null,null,null,null,"TOTAL\n[ Form 1 Lines 2(d) & 3(d)]"]
[null,null,null,{"$f":"+'Form 1EBS'!$F$7","v":"2023-12-31"},null,{"$f":"+'Form 1EBS'!$H$7","v":"2022-12-31"},null,{"$f":"+'Form 1EBS'!$F$7","v":"2023-12-31"},null,{"$f":"+'Form 1EBS'!$H$7","v":"2022-12-31"},null,{"$f":"+'Form 1EBS'!$F$7","v":"2023-12-31"},null,{"$f":"+'Form 1EBS'!$H$7","v":"2022-12-31"},null,null,null,null,null,{"$f":"+'Form 1EBS'!$F$7","v":"2023-12-31"},null,{"$f":"+'Form 1EBS'!$H$7","v":"2022-12-31"}]
[null,null,null,{"$f":"+'Form 1EBS'!$F$8","v":"('000)"},null,{"$f":"+'Form 1EBS'!$H$8","v":"('000)"},null,{"$f":"+'Form 1EBS'!$F$8","v":"('000)"},null,{"$f":"+'Form 1EBS'!$H$8","v":"('000)"},null,{"$f":"+'Form 1EBS'!$F$8","v":"('000)"},null,{"$f":"+'Form 1EBS'!$H$8","v":"('000)"},null,null,null,null,null,{"$f":"+'Form 1EBS'!$F$8","v":"('000)"},null,{"$f":"+'Form 1EBS'!$H$8","v":"('000)"}]
[null,"Quoted and Unquoted Equities"]
[null,11,"BSCR Rating 1",null,null,null,null,{"$f":"Import!E909","v":0},null,{"$f":"Import!G909","v":0},null,null,null,null,null,null,null,null,null,{"$f":"D33+H33+L33","v":0},null,0]
[null,12,"BSCR Rating 2",null,null,null,null,{"$f":"Import!E910","v":0},null,{"$f":"Import!G910","v":0},null,null,null,null,null,null,null,null,null,0,null,0]
[null,13,"BSCR Rating 3",null,null,null,null,{"$f":"Import!E911","v":0},null,{"$f":"Import!G911","v":0},null,null,null,null,null,null,null,null,null,0,null,0]
[null,14,"BSCR Rating 4",null,null,null,null,{"$f":"Import!E912","v":0},null,{"$f":"Import!G912","v":0},null,null,null,null,null,null,null,null,null,0,null,0]
[null,15,"BSCR Rating 5",null,null,null,null,{"$f":"Import!E913","v":0},null,{"$f":"Import!G913","v":0},null,null,null,null,null,null,null,null,null,0,null,0]
[null,16,"BSCR Rating 6",null,null,null,null,{"$f":"Import!E914","v":0},null,{"$f":"Import!G914","v":0},null,null,null,null,null,null,null,null,null,0,null,0]
[null,17,"BSCR Rating 7",null,null,null,null,{"$f":"Import!E915","v":0},null,{"$f":"Import!G915","v":0},null,null,null,null,null,null,null,null,null,0,null,0]
[null,18,"BSCR Rating 8",null,null,null,null,{"$f":"Import!E916","v":0},null,{"$f":"Import!G916","v":0},null,null,null,null,null,null,null,null,null,0,null,0]
[null,19,"Quoted Equity Funds",{"$f":"IF('Group Information'!$F$11=\"IFRS\",'Form 1A'!M18,'Form 1'!F18)","v":0},null,{"$f":"IF('Group Information'!$F$11=\"IFRS\",'Form 1A'!O18,'Form 1'!H18)","v":0},null,null,null,null,null,{"$f":"IF('Group Information'!$F$11=\"IFRS\",'Form 1A'!M20,'Form 1'!F20)","v":0},null,{"$f":"IF('Group Information'!$F$11=\"IFRS\",'Form 1A'!O20,'Form 1'!H20)","v":0},null,null,null,null,null,{"$f":"D41+H41+L41","v":0},null,{"$f":"F41+J41+N41","v":0}]
[null,20,"Unquoted Equity Funds",{"$f":"IF('Group Information'!$F$11=\"IFRS\",'Form 1A'!M31,'Form 1'!F31)","v":0},null,{"$f":"IF('Group Information'!$F$11=\"IFRS\",'Form 1A'!O31,'Form 1'!H31)","v":0},null,null,null,null,null,{"$f":"IF('Group Information'!$F$11=\"IFRS\",'Form 1A'!M33,'Form 1'!F33)","v":0},null,{"$f":"IF('Group Information'!$F$11=\"IFRS\",'Form 1A'!O33,'Form 1'!H33)","v":0},null,null,null,null,null,{"$f":"D42+H42+L42","v":0},null,0]
[]
[null,21,"Total",{"$f":"SUM(D33:D42)","v":0},null,{"$f":"SUM(F33:F42)","v":0},null,{"$f":"SUM(H33:H42)","v":0},null,{"$f":"SUM(J33:J42)","v":0},null,{"$f":"SUM(L32:L42)","v":0},null,{"$f":"SUM(N32:N42)","v":0},null,null,null,null,null,{"$f":"SUM(T33:T42)","v":0},null,{"$f":"SUM(V33:V42)","v":0}]
[]
[null,null,null,{"$f":"IF(D47=\"TRUE\",HYPERLINK(\"#'Form 1'!F18:F31\",\"TRUE\"),HYPERLINK(\"#'Form 1'!F18:F31\",\"FALSE\"))","v":"TRUE"},null,{"$f":"IF(F47=\"TRUE\",HYPERLINK(\"#'Form 1'!H18:H31\",\"TRUE\"),HYPERLINK(\"#'Form 1'!H18:H31\",\"FALSE\"))","v":"TRUE"},null,{"$f":"IF(H47=\"TRUE\",HYPERLINK(\"#'Form 1'!F19:F32\",\"TRUE\"),HYPERLINK(\"#'Form 1'!F19:F32\",\"FALSE\"))","v":"TRUE"},null,{"$f":"IF(J47=\"TRUE\",HYPERLINK(\"#'Form 1'!H19:H32\",\"TRUE\"),HYPERLINK(\"#'Form 1'!H19:H32\",\"FALSE\"))","v":"TRUE"},null,{"$f":"IF(L47=\"TRUE\",HYPERLINK(\"#'Form 1'!F20:F33\",\"TRUE\"),HYPERLINK(\"#'Form 1'!F20:F33\",\"FALSE\"))","v":"TRUE"},null,{"$f":"IF(N47=\"TRUE\",HYPERLINK(\"#'Form 1'!H20:H33\",\"TRUE\"),HYPERLINK(\"#'Form 1'!H20:H33\",\"FALSE\"))","v":"TRUE"},null,null,null,null,null,{"$f":"IF(T47=\"TRUE\",HYPERLINK(\"#'Form 1'!F18:F34\",\"TRUE\"),HYPERLINK(\"#'Form 1'!F18:F34\",\"FALSE\"))","v":"TRUE"},null,{"$f":"IF(V47=\"TRUE\",HYPERLINK(\"#'Form 1'!H18:H34\",\"TRUE\"),HYPERLINK(\"#'Form 1'!H18:H34\",\"FALSE\"))","v":"TRUE"}]
[null,null,null,{"$f":"IF('Group Information'!$F$11=\"IFRS\",IF(ROUND(D44-('Form 1A'!M18+'Form 1A'!M31),0)=0,\"TRUE\",\"FALSE\"),IF(ROUND(D44-('Form 1'!F18+'Form 1'!F31),0)=0,\"TRUE\",\"FALSE\"))","v":"TRUE"},null,{"$f":"IF('Group Information'!$F$11=\"IFRS\",IF(ROUND(F44-('Form 1A'!O18+'Form 1A'!O31),0)=0,\"TRUE\",\"FALSE\"),IF(ROUND(F44-('Form 1'!H18+'Form 1'!H31),0)=0,\"TRUE\",\"FALSE\"))","v":"TRUE"},null,{"$f":"IF('Group Information'!$F$11=\"IFRS\",IF(ROUND(H44-('Form 1A'!M19+'Form 1A'!M32),0)=0,\"TRUE\",\"FALSE\"),IF(ROUND(H44-('Form 1'!F19+'Form 1'!F32),0)=0,\"TRUE\",\"FALSE\"))","v":"TRUE"},null,{"$f":"IF('Group Information'!$F$11=\"IFRS\",IF(ROUND(J44-('Form 1A'!O19+'Form 1A'!O32),0)=0,\"TRUE\",\"FALSE\"),IF(ROUND(J44-('Form 1'!H19+'Form 1'!H32),0)=0,\"TRUE\",\"FALSE\"))","v":"TRUE"},null,{"$f":"IF('Group Information'!$F$11=\"IFRS\",IF(ROUND(L44-('Form 1A'!M20+'Form 1A'!M33),0)=0,\"TRUE\",\"FALSE\"),IF(ROUND(L44-('Form 1'!F20+'Form 1'!F33),0)=0,\"TRUE\",\"FALSE\"))","v":"TRUE"},null,{"$f":"IF('Group Information'!$F$11=\"IFRS\",IF(ROUND(N44-('Form 1A'!O20+'Form 1A'!O33),0)=0,\"TRUE\",\"FALSE\"),IF(ROUND(N44-('Form 1'!H20+'Form 1'!H33),0)=0,\"TRUE\",\"FALSE\"))","v":"TRUE"},null,null,null,null,null,{"$f":"IF('Group Information'!$F$11=\"IFRS\",IF(ROUND(T44-('Form 1A'!M21+'Form 1A'!M34),0)=0,\"TRUE\",\"FALSE\"),IF(ROUND(T44-('Form 1'!F21+'Form 1'!F34),0)=0,\"TRUE\",\"FALSE\"))","v":"TRUE"},null,{"$f":"IF('Group Information'!$F$11=\"IFRS\",IF(ROUND(V44-('Form 1A'!O21+'Form 1A'!O34),0)=0,\"TRUE\",\"FALSE\"),IF(ROUND(V44-('Form 1'!H21+'Form 1'!H34),0)=0,\"TRUE\",\"FALSE\"))","v":"TRUE"}]
[null,null,null,{"$f":"IF('Group Information'!$F$11=\"IFRS\",ROUND(('Form 1A'!M18+'Form 1A'!M31)-D44,0),ROUND(('Form 1'!F18+'Form 1'!F31)-D44,0))","v":0},null,{"$f":"IF('Group Information'!$F$11=\"IFRS\",ROUND(('Form 1A'!O18+'Form 1A'!O31)-F44,0),ROUND(('Form 1'!H18+'Form 1'!H31)-F44,0))","v":0},null,{"$f":"IF('Group Information'!$F$11=\"IFRS\",ROUND(('Form 1A'!M19+'Form 1A'!M32)-H44,0),ROUND(('Form 1'!F19+'Form 1'!F32)-H44,0))","v":0},null,{"$f":"IF('Group Information'!$F$11=\"IFRS\",ROUND(('Form 1A'!O19+'Form 1A'!O32)-J44,0),ROUND(('Form 1'!H19+'Form 1'!H32)-J44,0))","v":0},null,{"$f":"IF('Group Information'!$F$11=\"IFRS\",ROUND(('Form 1A'!M20+'Form 1A'!M33)-L44,0),ROUND(('Form 1'!F20+'Form 1'!F33)-L44,0))","v":0},null,{"$f":"IF('Group Information'!$F$11=\"IFRS\",ROUND(('Form 1A'!O20+'Form 1A'!O33)-N44,0),ROUND(('Form 1'!H20+'Form 1'!H33)-N44,0))","v":0},null,null,null,null,null,{"$f":"IF('Group Information'!$F$11=\"IFRS\",ROUND(('Form 1A'!M21+'Form 1A'!M34)-T44,0),ROUND(('Form 1'!F21+'Form 1'!F34)-T44,0))","v":0},null,{"$f":"IF('Group Information'!$F$11=\"IFRS\",ROUND(('Form 1A'!O21+'Form 1A'!O34)-V44,0),ROUND(('Form 1'!H21+'Form 1'!H34)-V44,0))","v":0}]
[]
[null,null,null,{"$f":"IF(D46=\"False\",\"Does not equal Form 1 Lines 2(c)(i) & 3(c)(i)\",\"\")","v":""},null,{"$f":"IF(F46=\"False\",\"Does not equal Form 1 Lines 2(c)(i) & 3(c)(i)\",\"\")","v":""},null,{"$f":"IF(H46=\"False\",\"Does not equal Form 1 Lines 2(c)(ii) & 3(c)(ii)\",\"\")","v":""},null,{"$f":"IF(J46=\"False\",\"Does not equal Form 1 Lines 2(c)(ii) & 3(c)(ii)\",\"\")","v":""},null,{"$f":"IF(L46=\"False\",\"Does not equal Form 1 Lines 2(c)(iii) & 3(c)(iii)\",\"\")","v":""},null,{"$f":"IF(N46=\"False\",\"Does not equal Form 1 Lines 2(c)(iii) & 3(c)(iii)\",\"\")","v":""},null,null,null,null,null,{"$f":"IF(T46=\"False\",\"Does not equal Form 1 Lines 2(d) & 3(d)\",\"\")","v":""},null,{"$f":"IF(V46=\"False\",\"Does not equal Form 1 Lines 2(d) & 3(d)\",\"\")","v":""}]
[]
[null,null,null,"MORTGAGE LOANS\n[ Form 1 Lines 5(c) ]",null,null,null,null,"This Section is Only Applicable to Companies that have Mortgage Backed Securities that have been Reclassified in Accordance with the NAIC and that elect to use NAIC reclassifications to map to the BSCR classes"]
[null,null,null,{"$f":"+'Form 1EBS'!$F$7","v":"2023-12-31"},null,{"$f":"+'Form 1EBS'!$H$7","v":"2022-12-31"},null,null,null,null,null,"VALUES OF RESIDENTIAL MORTGAGE-BACKED SECURITIES",null,null,null,"VALUES OF COMMERCIAL MORTGAGE-BACKED SECURITIES / ASSET-BACKED SECURITIES"]
[null,null,null,{"$f":"+'Form 1EBS'!$F$8","v":"('000)"},null,{"$f":"+'Form 1EBS'!$H$8","v":"('000)"},null,null,null,null,null,"Original Classification",null,"Revised Classification",null,"Original Classification",null,"Revised Classification"]
[null,null,null,null,null,null,null,null,null,"NAIC Class 1",null,{"$f":"Import!E923","v":0},null,{"$f":"Import!E930","v":0},null,{"$f":"Import!E937","v":0},null,{"$f":"Import!E944","v":0}]
[null,"Mortgage Loans",null,null,null,null,null,null,null,"NAIC Class 2",null,{"$f":"Import!E924","v":0},null,{"$f":"Import!E931","v":0},null,{"$f":"Import!E938","v":0},null,{"$f":"Import!E945","v":0}]
[null,22,"Insured/Guaranteed Mortgages",{"$f":"Import!E919","v":0},null,{"$f":"Import!G919","v":0},null,null,null,"NAIC Class 3",null,{"$f":"Import!E925","v":0},null,{"$f":"Import!E932","v":0},null,{"$f":"Import!E939","v":0},null,{"$f":"Import!E946","v":0}]
[null,23,"Other Commercial and Farm Mortgages",{"$f":"Import!E920","v":0},null,{"$f":"Import!G920","v":0},null,null,null,"NAIC Class 4",null,{"$f":"Import!E926","v":0},null,{"$f":"Import!E933","v":0},null,{"$f":"Import!E940","v":0},null,{"$f":"Import!E947","v":0}]
[null,24,"Other Residential Mortgages",{"$f":"Import!E921","v":0},null,{"$f":"Import!G921","v":0},null,null,null,"NAIC Class 5",null,{"$f":"Import!E927","v":0},null,{"$f":"Import!E934","v":0},null,{"$f":"Import!E941","v":0},null,{"$f":"Import!E948","v":0}]
[null,25,"Mortgages Not In Good Standing",{"$f":"Import!E922","v":0},null,{"$f":"Import!G922","v":0},null,null,null,"NAIC Class 6",null,{"$f":"Import!E928","v":0},null,{"$f":"Import!E935","v":0},null,{"$f":"Import!E942","v":0},null,{"$f":"Import!E949","v":0}]
[]
[null,26,"Total",{"$f":"SUM(D57:D60)","v":0},null,{"$f":"SUM(F57:F60)","v":0},null,null,null,null,null,{"$f":"SUM(L55:L60)","v":0},null,{"$f":"SUM(N55:N60)","v":0},null,{"$f":"SUM(P55:P60)","v":0},null,{"$f":"SUM(R55:R60)","v":0}]
[]
[null,null,null,{"$f":"IF(D65=\"TRUE\",HYPERLINK(\"#'Form 1'!F51\",\"TRUE\"),HYPERLINK(\"#'Form 1'!F51\",\"FALSE\"))","v":"TRUE"},null,{"$f":"IF(F65=\"TRUE\",HYPERLINK(\"#'Form 1'!H51\",\"TRUE\"),HYPERLINK(\"#'Form 1'!H51\",\"FALSE\"))","v":"TRUE"},null,null,null,{"$f":"HYPERLINK(\"#'Attachments'!G55\",\"Attach file\")","v":"Attach file"}]
[null,null,null,{"$f":"IF('Group Information'!$F$11=\"IFRS\",IF(ROUND(D62-('Form 1A'!M51),0)=0,\"TRUE\",\"FALSE\"),IF(ROUND(D62-('Form 1'!F51),0)=0,\"TRUE\",\"FALSE\"))","v":"TRUE"},null,{"$f":"IF('Group Information'!$F$11=\"IFRS\",IF(ROUND(F62-('Form 1A'!O51),0)=0,\"TRUE\",\"FALSE\"),IF(ROUND(F62-('Form 1'!H51),0)=0,\"TRUE\",\"FALSE\"))","v":"TRUE"}]
[null,null,null,{"$f":"IF('Group Information'!$F$11=\"IFRS\",ROUND(('Form 1A'!M51)-D62,0),ROUND(('Form 1'!F51)-D62,0))","v":0},null,{"$f":"IF('Group Information'!$F$11=\"IFRS\",ROUND(('Form 1A'!O51)-F62,0),ROUND(('Form 1'!H51)-F62,0))","v":0}]
[]
[null,null,"Please include in the table below any assets, included in this Schedule, for which NAIC ratings were used to map to the BSCR rating classes"]
[null,null,"Information on the use of NAIC ratings\n(for disclosure purposes only)","CORPORATE & SOVEREIGN BONDS",null,"RESIDENTIAL MORTGAGE-BACKED SECURITIES",null,"COMMERCIAL MORTGAGE-BACKED SECURITIES / ASSET-BACKED SECURITIES",null,"BOND MUTUAL FUNDS",null,"MORTGAGE LOANS",null,"PREFERRED STOCKS",null,"OTHER ASSETS"]
[null,null,"NAIC Class 1",{"$f":"Import!E951","v":0},null,{"$f":"Import!E958","v":0},null,{"$f":"Import!E965","v":0},null,{"$f":"Import!E972","v":0},null,{"$f":"Import!E979","v":0},null,{"$f":"Import!E986","v":0},null,{"$f":"Import!E993","v":0}]
[null,null,"NAIC Class 2",{"$f":"Import!E952","v":0},null,{"$f":"Import!E959","v":0},null,{"$f":"Import!E966","v":0},null,{"$f":"Import!E973","v":0},null,{"$f":"Import!E980","v":0},null,{"$f":"Import!E987","v":0},null,{"$f":"Import!E994","v":0}]
[null,null,"NAIC Class 3",{"$f":"Import!E953","v":0},null,{"$f":"Import!E960","v":0},null,{"$f":"Import!E967","v":0},null,{"$f":"Import!E974","v":0},null,{"$f":"Import!E981","v":0},null,{"$f":"Import!E988","v":0},null,{"$f":"Import!E995","v":0}]
[null,null,"NAIC Class 4",{"$f":"Import!E954","v":0},null,{"$f":"Import!E961","v":0},null,{"$f":"Import!E968","v":0},null,{"$f":"Import!E975","v":0},null,{"$f":"Import!E982","v":0},null,{"$f":"Import!E989","v":0},null,{"$f":"Import!E996","v":0}]
[null,null,"NAIC Class 5",{"$f":"Import!E955","v":0},null,{"$f":"Import!E962","v":0},null,{"$f":"Import!E969","v":0},null,{"$f":"Import!E976","v":0},null,{"$f":"Import!E983","v":0},null,{"$f":"Import!E990","v":0},null,{"$f":"Import!E997","v":0}]
[null,null,"NAIC Class 6",{"$f":"Import!E956","v":0},null,{"$f":"Import!E963","v":0},null,{"$f":"Import!E970","v":0},null,{"$f":"Import!E977","v":0},null,{"$f":"Import!E984","v":0},null,{"$f":"Import!E991","v":0},null,{"$f":"Import!E998","v":0}]
[null,null,null,{"$f":"SUM(D70:D75)","v":0},null,{"$f":"SUM(F70:F75)","v":0},null,{"$f":"SUM(H70:H75)","v":0},null,{"$f":"SUM(J70:J75)","v":0},null,{"$f":"SUM(L70:L75)","v":0},null,{"$f":"SUM(N70:N75)","v":0},null,{"$f":"SUM(P70:P75)","v":0}]

{"sheet":"Schedule II (EBS)","index":24,"n_rows":76,"n_cols":22,"rows_kept":76,"cut":false,"hidden":false,"merged":[[6,15,6,17],[52,11,52,13],[52,15,52,17],[54,3,54,5],[6,19,6,21],[28,3,28,5],[28,7,28,9],[28,11,28,13],[28,19,28,21],[51,3,51,5],[51,8,51,18],[2,3,2,5],[3,3,3,5],[6,3,6,5],[6,7,6,9],[6,11,6,13]]}
[null,"SCHEDULE OF FIXED INCOME & EQUITY INVESTMENTS BY BSCR RATING",null,null,null,null,null,null,null,null,null,null,null,null,null,null,null,null,null,null,null,{"$f":"HYPERLINK(\"#'Index'!A1\",\"Return to Index\")","v":"Return to Index"}]
[null,null,{"$f":"+'Group Information'!C9","v":"Enter Parent Company Name"}]
[null,null,"As at",{"$f":"+'Group Information'!C3","v":"2023-12-31"},null,null,null,null,null,null,null,null,null,null,null,null,null,null,null,null,null,"SCHEDULE II (EBS)"]
[null,null,{"$f":"+'Form 1EBS'!B4","v":"expressed in "},{"$f":"+'Form 1EBS'!C4","v":" ['000s]United States Dollars"}]
[]
[null,null,null,"(1)",null,"(2)",null,"(3)",null,"(4)",null,"(5)",null,"(6)",null,"(7)",null,"(8)",null,"(9)",null,"(10)"]
[null,null,null,"CORPORATE & SOVEREIGN BONDS",null,null,null,"RESIDENTIAL MORTGAGE-BACKED SECURITIES",null,null,null,"COMMERCIAL MORTGAGE-BACKED SECURITIES / ASSET-BACKED SECURITIES",null,null,null,"BOND MUTUAL FUNDS",null,null,null,"TOTAL\n[ Form 1EBS Lines 2(b) & 3(b)]"]
[null,null,null,{"$f":"+'Form 1EBS'!$F$7","v":"2023-12-31"},null,{"$f":"+'Form 1EBS'!$H$7","v":"2022-12-31"},null,{"$f":"+'Form 1EBS'!$F$7","v":"2023-12-31"},null,{"$f":"+'Form 1EBS'!$H$7","v":"2022-12-31"},null,{"$f":"+'Form 1EBS'!$F$7","v":"2023-12-31"},null,{"$f":"+'Form 1EBS'!$H$7","v":"2022-12-31"},null,{"$f":"+'Form 1EBS'!$F$7","v":"2023-12-31"},null,{"$f":"+'Form 1EBS'!$H$7","v":"2022-12-31"},null,{"$f":"+'Form 1EBS'!$F$7","v":"2023-12-31"},null,{"$f":"+'Form 1EBS'!$H$7","v":"2022-12-31"}]
[null,null,null,{"$f":"+'Form 1EBS'!$F$8","v":"('000)"},null,{"$f":"+'Form 1EBS'!$H$8","v":"('000)"},null,{"$f":"+'Form 1EBS'!$F$8","v":"('000)"},null,{"$f":"+'Form 1EBS'!$H$8","v":"('000)"},null,{"$f":"+'Form 1EBS'!$F$8","v":"('000)"},null,{"$f":"+'Form 1EBS'!$H$8","v":"('000)"},null,{"$f":"+'Form 1EBS'!$F$8","v":"('000)"},null,{"$f":"+'Form 1EBS'!$H$8","v":"('000)"},null,{"$f":"+'Form 1EBS'!$F$8","v":"('000)"},null,{"$f":"+'Form 1EBS'!$H$8","v":"('000)"}]
[null,"Line no. "]
[null,"Quoted and Unquoted Bonds and Debentures"]
[null,1,"BSCR Rating 0",{"$f":"Import!I873","v":0},null,{"$f":"Import!K873","v":0},null,null,null,null,null,null,null,null,null,{"$f":"Import!I898","v":0},null,{"$f":"Import!K898","v":0},null,{"$f":"D12+H12+L12+P12","v":0},null,{"$f":"F12+J12+N12+R12","v":0}]
[null,2,"BSCR Rating 1",{"$f":"Import!I874","v":0},null,{"$f":"Import!K874","v":0},null,{"$f":"Import!I882","v":0},null,{"$f":"Import!K882","v":0},null,{"$f":"Import!I890","v":0},null,{"$f":"Import!K890","v":0},null,{"$f":"Import!I899","v":0},null,{"$f":"Import!K899","v":0},null,{"$f":"D13+H13+L13+P13","v":0},null,0]
[null,3,"BSCR Rating 2",{"$f":"Import!I875","v":0},null,{"$f":"Import!K875","v":0},null,{"$f":"Import!I883","v":0},null,{"$f":"Import!K883","v":0},null,{"$f":"Import!I891","v":0},null,{"$f":"Import!K891","v":0},null,{"$f":"Import!I900","v":0},null,{"$f":"Import!K900","v":0},null,0,null,0]
[null,4,"BSCR Rating 3",{"$f":"Import!I876","v":0},null,{"$f":"Import!K876","v":0},null,{"$f":"Import!I884","v":0},null,{"$f":"Import!K884","v":0},null,{"$f":"Import!I892","v":0},null,{"$f":"Import!K892","v":0},null,{"$f":"Import!I901","v":0},null,{"$f":"Import!K901","v":0},null,0,null,0]
[null,5,"BSCR Rating 4",{"$f":"Import!I877","v":0},null,{"$f":"Import!K877","v":0},null,{"$f":"Import!I885","v":0},null,{"$f":"Import!K885","v":0},null,{"$f":"Import!I893","v":0},null,{"$f":"Import!K893","v":0},null,{"$f":"Import!I902","v":0},null,{"$f":"Import!K902","v":0},null,0,null,0]
[null,6,"BSCR Rating 5",{"$f":"Import!I878","v":0},null,{"$f":"Import!K878","v":0},null,{"$f":"Import!I886","v":0},null,{"$f":"Import!K886","v":0},null,{"$f":"Import!I894","v":0},null,{"$f":"Import!K894","v":0},null,{"$f":"Import!I903","v":0},null,{"$f":"Import!K903","v":0},null,0,null,0]
[null,7,"BSCR Rating 6",{"$f":"Import!I879","v":0},null,{"$f":"Import!K879","v":0},null,{"$f":"Import!I887","v":0},null,{"$f":"Import!K887","v":0},null,{"$f":"Import!I895","v":0},null,{"$f":"Import!K895","v":0},null,{"$f":"Import!I904","v":0},null,{"$f":"Import!K904","v":0},null,0,null,0]
[null,8,"BSCR Rating 7",{"$f":"Import!I880","v":0},null,{"$f":"Import!K880","v":0},null,{"$f":"Import!I888","v":0},null,{"$f":"Import!K888","v":0},null,{"$f":"Import!I896","v":0},null,{"$f":"Import!K896","v":0},null,{"$f":"Import!I905","v":0},null,{"$f":"Import!K905","v":0},null,0,null,0]
[null,9,"BSCR Rating 8",{"$f":"Import!I881","v":0},null,{"$f":"Import!K881","v":0},null,{"$f":"Import!I889","v":0},null,{"$f":"Import!K889","v":0},null,{"$f":"Import!I897","v":0},null,{"$f":"Import!K897","v":0},null,{"$f":"Import!I906","v":0},null,{"$f":"Import!K906","v":0},null,0,null,0]
[]
[null,10,"Total",{"$f":"SUM(D12:D20)","v":0},null,{"$f":"SUM(F12:F20)","v":0},null,{"$f":"SUM(H12:H20)","v":0},null,{"$f":"SUM(J12:J20)","v":0},null,{"$f":"SUM(L12:L20)","v":0},null,{"$f":"SUM(N12:N20)","v":0},null,{"$f":"SUM(P11:P20)","v":0},null,{"$f":"SUM(R11:R20)","v":0},null,{"$f":"SUM(T12:T20)","v":0},null,{"$f":"SUM(V12:V20)","v":0}]
[]
[null,null,null,null,null,null,null,null,null,null,null,null,null,null,null,null,null,null,null,{"$f":"IF(T25=\"TRUE\",HYPERLINK(\"#'Form 1EBS'!F14:F25\",\"TRUE\"),HYPERLINK(\"#'Form 1EBS'!F14:F25\",\"FALSE\"))","v":"TRUE"},null,{"$f":"IF(V25=\"TRUE\",HYPERLINK(\"#'Form 1EBS'!H14:H25\",\"TRUE\"),HYPERLINK(\"#'Form 1EBS'!H14:H25\",\"FALSE\"))","v":"TRUE"}]
[null,null,null,null,null,null,null,null,null,null,null,null,null,null,null,null,null,null,null,{"$f":"IF(ROUND((T22-('Form 1EBS'!F14+'Form 1EBS'!F25)),0)=0,\"TRUE\",\"FALSE\")","v":"TRUE"},null,{"$f":"IF(ROUND((V22-('Form 1EBS'!H14+'Form 1EBS'!H25)),0)=0,\"TRUE\",\"FALSE\")","v":"TRUE"}]
[null,null,"Difference",null,null,null,null,null,null,null,null,null,null,null,null," ",null,null,null,{"$f":"ROUND(('Form 1EBS'!F14+'Form 1EBS'!F25)-T22,0)","v":0},null,{"$f":"ROUND(('Form 1EBS'!H14+'Form 1EBS'!H25)-V22,0)","v":0}]
[]
[null,null,null,null,null,null,null,null,null,null,null,null,null,null,null,null,null,null,null,{"$f":"IF(T24=\"False\",\"Does not equal Form 1EBS Lines 2(b) & 3(b)\",\"\")","v":""},null,{"$f":"IF(V24=\"False\",\"Does not equal Form 1EBS Lines 2(b) & 3(b)\",\"\")","v":""}]
[null,null,null,"COMMON STOCK\n[ Form 1EBS Lines 2(c)(i) & 3(c)(i) ]",null,null,null,"PREFERRED STOCK\n[ Form 1EBS Lines 2(c)(ii) & 3(c)(ii) ]",null,null,null,"EQUITY MUTUAL FUNDS\n[ Form 1EBS Lines 2(c)(iii) & 3(c)(iii) ]",null,null,null,null,null,null,null,"TOTAL\n[ Form 1EBS Lines 2(d) & 3(d)]"]
[null,null,null,{"$f":"+'Form 1EBS'!$F$7","v":"2023-12-31"},null,{"$f":"+'Form 1EBS'!$H$7","v":"2022-12-31"},null,{"$f":"+'Form 1EBS'!$F$7","v":"2023-12-31"},null,{"$f":"+'Form 1EBS'!$H$7","v":"2022-12-31"},null,{"$f":"+'Form 1EBS'!$F$7","v":"2023-12-31"},null,{"$f":"+'Form 1EBS'!$H$7","v":"2022-12-31"},null,null,null,null,null,{"$f":"+'Form 1EBS'!$F$7","v":"2023-12-31"},null,{"$f":"+'Form 1EBS'!$H$7","v":"2022-12-31"}]
[null,null,null,{"$f":"+'Form 1EBS'!$F$8","v":"('000)"},null,{"$f":"+'Form 1EBS'!$H$8","v":"('000)"},null,{"$f":"+'Form 1EBS'!$F$8","v":"('000)"},null,{"$f":"+'Form 1EBS'!$H$8","v":"('000)"},null,{"$f":"+'Form 1EBS'!$F$8","v":"('000)"},null,{"$f":"+'Form 1EBS'!$H$8","v":"('000)"},null,null,null,null,null,{"$f":"+'Form 1EBS'!$F$8","v":"('000)"},null,{"$f":"+'Form 1EBS'!$H$8","v":"('000)"}]
[null,"Quoted and Unquoted Equities"]
[null,11,"BSCR Rating 1",null,null,null,null,{"$f":"Import!I909","v":0},null,{"$f":"Import!K909","v":0},null,null,null,null,null,null,null,null,null,{"$f":"D33+H33+L33","v":0},null,0]
[null,12,"BSCR Rating 2",null,null,null,null,{"$f":"Import!I910","v":0},null,{"$f":"Import!K910","v":0},null,null,null,null,null,null,null,null,null,0,null,0]
[null,13,"BSCR Rating 3",null,null,null,null,{"$f":"Import!I911","v":0},null,{"$f":"Import!K911","v":0},null,null,null,null,null,null,null,null,null,0,null,0]
[null,14,"BSCR Rating 4",null,null,null,null,{"$f":"Import!I912","v":0},null,{"$f":"Import!K912","v":0},null,null,null,null,null,null,null,null,null,0,null,0]
[null,15,"BSCR Rating 5",null,null,null,null,{"$f":"Import!I913","v":0},null,{"$f":"Import!K913","v":0},null,null,null,null,null,null,null,null,null,0,null,0]
[null,16,"BSCR Rating 6",null,null,null,null,{"$f":"Import!I914","v":0},null,{"$f":"Import!K914","v":0},null,null,null,null,null,null,null,null,null,0,null,0]
[null,17,"BSCR Rating 7",null,null,null,null,{"$f":"Import!I915","v":0},null,{"$f":"Import!K915","v":0},null,null,null,null,null,null,null,null,null,0,null,0]
[null,18,"BSCR Rating 8",null,null,null,null,{"$f":"Import!I916","v":0},null,{"$f":"Import!K916","v":0},null,null,null,null,null,null,null,null,null,0,null,0]
[null,19,"Quoted Equity Funds",{"$f":"+'Form 1EBS'!F16","v":0},null,{"$f":"+'Form 1EBS'!H16","v":0},null,null,null,null,null,{"$f":"+'Form 1EBS'!F18","v":0},null,{"$f":"+'Form 1EBS'!H18","v":0},null,null,null,null,null,{"$f":"D41+H41+L41","v":0},null,{"$f":"F41+J41+N41","v":0}]
[null,20,"Unquoted Equity Funds",{"$f":"+'Form 1EBS'!F27","v":0},null,{"$f":"+'Form 1EBS'!H27","v":0},null,null,null,null,null,{"$f":"+'Form 1EBS'!F29","v":0},null,{"$f":"+'Form 1EBS'!H29","v":0},null,null,null,null,null,{"$f":"D42+H42+L42","v":0},null,0]
[]
[null,21,"Total",{"$f":"SUM(D33:D42)","v":0},null,{"$f":"SUM(F33:F42)","v":0},null,{"$f":"SUM(H33:H42)","v":0},null,{"$f":"SUM(J33:J42)","v":0},null,{"$f":"SUM(L32:L42)","v":0},null,{"$f":"SUM(N32:N42)","v":0},null,null,null,null,null,{"$f":"SUM(T33:T42)","v":0},null,{"$f":"SUM(V33:V42)","v":0}]
[]
[null,null,null,{"$f":"IF(D47=\"TRUE\",HYPERLINK(\"#'Form 1EBS'!F16:F27\",\"TRUE\"),HYPERLINK(\"#'Form 1EBS'!F16:F27\",\"FALSE\"))","v":"TRUE"},null,{"$f":"IF(F47=\"TRUE\",HYPERLINK(\"#'Form 1EBS'!H16:H27\",\"TRUE\"),HYPERLINK(\"#'Form 1EBS'!H16:H27\",\"FALSE\"))","v":"TRUE"},null,{"$f":"IF(H47=\"TRUE\",HYPERLINK(\"#'Form 1EBS'!F17:F28\",\"TRUE\"),HYPERLINK(\"#'Form 1EBS'!F17:F28\",\"FALSE\"))","v":"TRUE"},null,{"$f":"IF(J47=\"TRUE\",HYPERLINK(\"#'Form 1EBS'!H17:H28\",\"TRUE\"),HYPERLINK(\"#'Form 1EBS'!H17:H28\",\"FALSE\"))","v":"TRUE"},null,{"$f":"IF(L47=\"TRUE\",HYPERLINK(\"#'Form 1EBS'!F18:F29\",\"TRUE\"),HYPERLINK(\"#'Form 1EBS'!F18:F29\",\"FALSE\"))","v":"TRUE"},null,{"$f":"IF(N47=\"TRUE\",HYPERLINK(\"#'Form 1EBS'!H18:H29\",\"TRUE\"),HYPERLINK(\"#'Form 1EBS'!H18:H29\",\"FALSE\"))","v":"TRUE"},null,null,null,null,null,{"$f":"IF(T47=\"TRUE\",HYPERLINK(\"#'Form 1EBS'!F19:F30\",\"TRUE\"),HYPERLINK(\"#'Form 1EBS'!F19:F30\",\"FALSE\"))","v":"TRUE"},null,{"$f":"IF(V47=\"TRUE\",HYPERLINK(\"#'Form 1EBS'!H19:H30\",\"TRUE\"),HYPERLINK(\"#'Form 1EBS'!H19:H30\",\"FALSE\"))","v":"TRUE"}]
[null,null,null,{"$f":"IF(D44-('Form 1EBS'!F16+'Form 1EBS'!F27)=0,\"TRUE\",\"FALSE\")","v":"TRUE"},null,{"$f":"IF(F44-('Form 1EBS'!H16+'Form 1EBS'!H27)=0,\"TRUE\",\"FALSE\")","v":"TRUE"},null,{"$f":"IF(ROUND(H44-('Form 1EBS'!F17+'Form 1EBS'!F28),0)=0,\"TRUE\",\"FALSE\")","v":"TRUE"},null,{"$f":"IF(ROUND(J44-('Form 1EBS'!H17+'Form 1EBS'!H28),0)=0,\"TRUE\",\"FALSE\")","v":"TRUE"},null,{"$f":"IF(L44-('Form 1EBS'!F18+'Form 1EBS'!F29)=0,\"TRUE\",\"FALSE\")","v":"TRUE"},null,{"$f":"IF(N44-('Form 1EBS'!H18+'Form 1EBS'!H29)=0,\"TRUE\",\"FALSE\")","v":"TRUE"},null,null,null,null,null,{"$f":"IF(ROUND(T44-('Form 1EBS'!F19+'Form 1EBS'!F30),0)=0,\"TRUE\",\"FALSE\")","v":"TRUE"},null,{"$f":"IF(ROUND(V44-('Form 1EBS'!H19+'Form 1EBS'!H30),0)=0,\"TRUE\",\"FALSE\")","v":"TRUE"}]
[null,null,null,{"$f":"ROUND(('Form 1EBS'!F16+'Form 1EBS'!F27)-D44,0)","v":0},null,{"$f":"ROUND(('Form 1EBS'!H16+'Form 1EBS'!H27)-F44,0)","v":0},null,{"$f":"ROUND(('Form 1EBS'!F17+'Form 1EBS'!F28)-H44,0)","v":0},null,{"$f":"ROUND(('Form 1EBS'!H17+'Form 1EBS'!H28)-J44,0)","v":0},null,{"$f":"ROUND(('Form 1EBS'!F18+'Form 1EBS'!F29)-L44,0)","v":0},null,{"$f":"ROUND(('Form 1EBS'!H18+'Form 1EBS'!H29)-N44,0)","v":0},null,null,null,null,null,{"$f":"ROUND(('Form 1EBS'!F19+'Form 1EBS'!F30)-T44,0)","v":0},null,{"$f":"ROUND(('Form 1EBS'!H19+'Form 1EBS'!H30)-V44,0)","v":0}]
[]
[null,null,null,{"$f":"IF(D46=\"False\",\"Does not equal Form 1EBS Lines 2(c)(i) & 3(c)(i)\",\"\")","v":""},null,{"$f":"IF(F46=\"False\",\"Does not equal Form 1EBS Lines 2(c)(i) & 3(c)(i)\",\"\")","v":""},null,{"$f":"IF(H46=\"False\",\"Does not equal Form 1EBS Lines 2(c)(ii) & 3(c)(ii)\",\"\")","v":""},null,{"$f":"IF(J46=\"False\",\"Does not equal Form 1EBS Lines 2(c)(ii) & 3(c)(ii)\",\"\")","v":""},null,{"$f":"IF(L46=\"False\",\"Does not equal Form 1EBS Lines 2(c)(iii) & 3(c)(iii)\",\"\")","v":""},null,{"$f":"IF(N46=\"False\",\"Does not equal Form 1EBS Lines 2(c)(iii) & 3(c)(iii)\",\"\")","v":""},null,null,null,null,null,{"$f":"IF(T46=\"False\",\"Does not equal Form 1EBS Lines 2(d) & 3(d)\",\"\")","v":""},null,{"$f":"IF(V46=\"False\",\"Does not equal Form 1EBS Lines 2(d) & 3(d)\",\"\")","v":""}]
[]
[null,null,null,"MORTGAGE LOANS\n[ Form 1EBS Lines 5(c) ]",null,null,null,null,"This Section is Only Applicable to Companies that have Mortgage Backed Securities that have been Reclassified in Accordance with the NAIC and that elect to use NAIC reclassifications to map to the BSCR classes"]
[null,null,null,{"$f":"+'Form 1EBS'!$F$7","v":"2023-12-31"},null,{"$f":"+'Form 1EBS'!$H$7","v":"2022-12-31"},null,null,null,null,null,"VALUES OF RESIDENTIAL MORTGAGE-BACKED SECURITIES",null,null,null,"VALUES OF COMMERCIAL MORTGAGE-BACKED SECURITIES / ASSET-BACKED SECURITIES"]
[null,null,null,{"$f":"+'Form 1EBS'!$F$8","v":"('000)"},null,{"$f":"+'Form 1EBS'!$H$8","v":"('000)"},null,null,null,null,null,"Original Classification",null,"Revised Classification",null,"Original Classification",null,"Revised Classification"]
[null,null,null,null,null,null,null,null,null,"NAIC Class 1",null,{"$f":"Import!I923","v":0},null,{"$f":"Import!I930","v":0},null,{"$f":"Import!I937","v":0},null,{"$f":"Import!I944","v":0}]
[null,"Mortgage Loans",null,null,null,null,null,null,null,"NAIC Class 2",null,{"$f":"Import!I924","v":0},null,{"$f":"Import!I931","v":0},null,{"$f":"Import!I938","v":0},null,{"$f":"Import!I945","v":0}]
[null,22,"Insured/Guaranteed Mortgages",{"$f":"Import!I919","v":0},null,{"$f":"Import!K919","v":0},null,null,null,"NAIC Class 3",null,{"$f":"Import!I925","v":0},null,{"$f":"Import!I932","v":0},null,{"$f":"Import!I939","v":0},null,{"$f":"Import!I946","v":0}]
[null,23,"Other Commercial and Farm Mortgages",{"$f":"Import!I920","v":0},null,{"$f":"Import!K920","v":0},null,null,null,"NAIC Class 4",null,{"$f":"Import!I926","v":0},null,{"$f":"Import!I933","v":0},null,{"$f":"Import!I940","v":0},null,{"$f":"Import!I947","v":0}]
[null,24,"Other Residential Mortgages",{"$f":"Import!I921","v":0},null,{"$f":"Import!K921","v":0},null,null,null,"NAIC Class 5",null,{"$f":"Import!I927","v":0},null,{"$f":"Import!I934","v":0},null,{"$f":"Import!I941","v":0},null,{"$f":"Import!I948","v":0}]
[null,25,"Mortgages Not In Good Standing",{"$f":"Import!I922","v":0},null,{"$f":"Import!K922","v":0},null,null,null,"NAIC Class 6",null,{"$f":"Import!I928","v":0},null,{"$f":"Import!I935","v":0},null,{"$f":"Import!I942","v":0},null,{"$f":"Import!I949","v":0}]
[]
[null,26,"Total",{"$f":"SUM(D57:D60)","v":0},null,{"$f":"SUM(F57:F60)","v":0},null,null,null,null,null,{"$f":"SUM(L55:L60)","v":0},null,{"$f":"SUM(N55:N60)","v":0},null,{"$f":"SUM(P55:P60)","v":0},null,{"$f":"SUM(R55:R60)","v":0}]
[]
[null,null,null,{"$f":"IF(D65=\"TRUE\",HYPERLINK(\"#'Form 1EBS'!F47\",\"TRUE\"),HYPERLINK(\"#'Form 1EBS'!F47\",\"FALSE\"))","v":"TRUE"},null,{"$f":"IF(F65=\"TRUE\",HYPERLINK(\"#'Form 1EBS'!H47\",\"TRUE\"),HYPERLINK(\"#'Form 1EBS'!H47\",\"FALSE\"))","v":"TRUE"},null,null,null,{"$f":"HYPERLINK(\"#'Attachments'!G55\",\"Attach file\")","v":"Attach file"}]
[null,null,null,{"$f":"IF(ROUND((D62-'Form 1EBS'!F47),0)=0,\"TRUE\",\"FALSE\")","v":"TRUE"},null,{"$f":"IF(ROUND((F62-'Form 1EBS'!H47),0)=0,\"TRUE\",\"FALSE\")","v":"TRUE"}]
[null,null,null,{"$f":"ROUND(('Form 1EBS'!F47)-D62,0)","v":0},null,{"$f":"ROUND(('Form 1EBS'!H47)-F62,0)","v":0}]
[]
[null,null,"Please include in the table below any assets, included in this Schedule, for which NAIC ratings were used to map to the BSCR rating classes"]
[null,null,"Information on the use of NAIC ratings\n(for disclosure purposes only)","CORPORATE & SOVEREIGN BONDS",null,"RESIDENTIAL MORTGAGE-BACKED SECURITIES",null,"COMMERCIAL MORTGAGE-BACKED SECURITIES / ASSET-BACKED SECURITIES",null,"BOND MUTUAL FUNDS",null,"MORTGAGE LOANS",null,"PREFERRED STOCKS",null,"OTHER ASSETS"]
[null,null,"NAIC Class 1",{"$f":"Import!I951","v":0},null,{"$f":"Import!I958","v":0},null,{"$f":"Import!I965","v":0},null,{"$f":"Import!I972","v":0},null,{"$f":"Import!I979","v":0},null,{"$f":"Import!I986","v":0},null,{"$f":"Import!I993","v":0}]
[null,null,"NAIC Class 2",{"$f":"Import!I952","v":0},null,{"$f":"Import!I959","v":0},null,{"$f":"Import!I966","v":0},null,{"$f":"Import!I973","v":0},null,{"$f":"Import!I980","v":0},null,{"$f":"Import!I987","v":0},null,{"$f":"Import!I994","v":0}]
[null,null,"NAIC Class 3",{"$f":"Import!I953","v":0},null,{"$f":"Import!I960","v":0},null,{"$f":"Import!I967","v":0},null,{"$f":"Import!I974","v":0},null,{"$f":"Import!I981","v":0},null,{"$f":"Import!I988","v":0},null,{"$f":"Import!I995","v":0}]
[null,null,"NAIC Class 4",{"$f":"Import!I954","v":0},null,{"$f":"Import!I961","v":0},null,{"$f":"Import!I968","v":0},null,{"$f":"Import!I975","v":0},null,{"$f":"Import!I982","v":0},null,{"$f":"Import!I989","v":0},null,{"$f":"Import!I996","v":0}]
[null,null,"NAIC Class 5",{"$f":"Import!I955","v":0},null,{"$f":"Import!I962","v":0},null,{"$f":"Import!I969","v":0},null,{"$f":"Import!I976","v":0},null,{"$f":"Import!I983","v":0},null,{"$f":"Import!I990","v":0},null,{"$f":"Import!I997","v":0}]
[null,null,"NAIC Class 6",{"$f":"Import!I956","v":0},null,{"$f":"Import!I963","v":0},null,{"$f":"Import!I970","v":0},null,{"$f":"Import!I977","v":0},null,{"$f":"Import!I984","v":0},null,{"$f":"Import!I991","v":0},null,{"$f":"Import!I998","v":0}]
[null,null,null,{"$f":"SUM(D70:D75)","v":0},null,{"$f":"SUM(F70:F75)","v":0},null,{"$f":"SUM(H70:H75)","v":0},null,{"$f":"SUM(J70:J75)","v":0},null,{"$f":"SUM(L70:L75)","v":0},null,{"$f":"SUM(N70:N75)","v":0},null,{"$f":"SUM(P70:P75)","v":0}]

{"sheet":"Schedule IIA","index":25,"n_rows":84,"n_cols":22,"rows_kept":84,"cut":false,"hidden":false,"merged":[[52,11,52,13],[52,15,52,17],[63,3,63,5],[71,2,73,2],[28,3,28,5],[28,7,28,9],[28,11,28,13],[28,15,28,17],[28,19,28,21],[51,3,51,5],[50,8,51,20],[2,3,2,5],[6,3,6,5],[6,7,6,9],[6,11,6,13],[6,15,6,17],[6,19,6,21]]}
[null,"SCHEDULE OF FUNDS HELD BY CEDING REINSURERS IN SEGREGATED ACCOUNTS / TRUSTS BY BSCR RATING",null,null,null,null,null,null,null,null,null,null,null,null,null,null,null,null,null,null,null,{"$f":"HYPERLINK(\"#'Index'!A1\",\"Return to Index\")","v":"Return to Index"}]
[null,null,{"$f":"+'Group Information'!C9","v":"Enter Parent Company Name"}]
[null,null,"As at",{"$f":"+'Group Information'!C3","v":"2023-12-31"},null,null,null,null,null,null,null,null,null,null,null,null,null,null,null,null,null,"SCHEDULE IIA"]
[null,null,{"$f":"+'Form 1EBS'!B4","v":"expressed in "},{"$f":"+'Form 1EBS'!C4","v":" ['000s]United States Dollars"}]
[]
[null,null,null,"(1)",null,"(2)",null,"(3)",null,"(4)",null,"(5)",null,"(6)",null,"(7)",null,"(8)",null,"(9)",null,"(10)"]
[null,null,null,"CORPORATE & SOVEREIGN BONDS",null,null,null,"RESIDENTIAL MORTGAGE-BACKED SECURITIES",null,null,null,"COMMERCIAL MORTGAGE-BACKED SECURITIES / ASSET-BACKED SECURITIES",null,null,null,"BOND MUTUAL FUNDS",null,null,null,"TOTAL"]
[null,null,null,{"$f":"+'Form 1EBS'!$F$7","v":"2023-12-31"},null,{"$f":"+'Form 1EBS'!$H$7","v":"2022-12-31"},null,{"$f":"+'Form 1EBS'!$F$7","v":"2023-12-31"},null,{"$f":"+'Form 1EBS'!$H$7","v":"2022-12-31"},null,{"$f":"+'Form 1EBS'!$F$7","v":"2023-12-31"},null,{"$f":"+'Form 1EBS'!$H$7","v":"2022-12-31"},null,{"$f":"+'Form 1EBS'!$F$7","v":"2023-12-31"},null,{"$f":"+'Form 1EBS'!$H$7","v":"2022-12-31"},null,{"$f":"+'Form 1EBS'!$F$7","v":"2023-12-31"},null,{"$f":"+'Form 1EBS'!$H$7","v":"2022-12-31"}]
[null,null,null,{"$f":"+'Form 1EBS'!$F$8","v":"('000)"},null,{"$f":"+'Form 1EBS'!$H$8","v":"('000)"},null,{"$f":"+'Form 1EBS'!$F$8","v":"('000)"},null,{"$f":"+'Form 1EBS'!$H$8","v":"('000)"},null,{"$f":"+'Form 1EBS'!$F$8","v":"('000)"},null,{"$f":"+'Form 1EBS'!$H$8","v":"('000)"},null,{"$f":"+'Form 1EBS'!$F$8","v":"('000)"},null,{"$f":"+'Form 1EBS'!$H$8","v":"('000)"},null,{"$f":"+'Form 1EBS'!$F$8","v":"('000)"},null,{"$f":"+'Form 1EBS'!$H$8","v":"('000)"}]
[null,"Line no. "]
[null,"Quoted and Unquoted Bonds and Debentures"]
[null,1,"BSCR Rating 0",{"$f":"Import!E1001","v":0},null,{"$f":"Import!G1001","v":0},null,null,null,null,null,null,null,null,null,{"$f":"Import!E1026","v":0},null,{"$f":"Import!G1026","v":0},null,{"$f":"D12+H12+L12+P12","v":0},null,{"$f":"F12+J12+N12+R12","v":0}]
[null,2,"BSCR Rating 1",{"$f":"Import!E1002","v":0},null,{"$f":"Import!G1002","v":0},null,{"$f":"Import!E1010","v":0},null,{"$f":"Import!G1010","v":0},null,{"$f":"Import!E1018","v":0},null,{"$f":"Import!G1018","v":0},null,{"$f":"Import!E1027","v":0},null,{"$f":"Import!G1027","v":0},null,{"$f":"D13+H13+L13+P13","v":0},null,0]
[null,3,"BSCR Rating 2",{"$f":"Import!E1003","v":0},null,{"$f":"Import!G1003","v":0},null,{"$f":"Import!E1011","v":0},null,{"$f":"Import!G1011","v":0},null,{"$f":"Import!E1019","v":0},null,{"$f":"Import!G1019","v":0},null,{"$f":"Import!E1028","v":0},null,{"$f":"Import!G1028","v":0},null,0,null,0]
[null,4,"BSCR Rating 3",{"$f":"Import!E1004","v":0},null,{"$f":"Import!G1004","v":0},null,{"$f":"Import!E1012","v":0},null,{"$f":"Import!G1012","v":0},null,{"$f":"Import!E1020","v":0},null,{"$f":"Import!G1020","v":0},null,{"$f":"Import!E1029","v":0},null,{"$f":"Import!G1029","v":0},null,0,null,0]
[null,5,"BSCR Rating 4",{"$f":"Import!E1005","v":0},null,{"$f":"Import!G1005","v":0},null,{"$f":"Import!E1013","v":0},null,{"$f":"Import!G1013","v":0},null,{"$f":"Import!E1021","v":0},null,{"$f":"Import!G1021","v":0},null,{"$f":"Import!E1030","v":0},null,{"$f":"Import!G1030","v":0},null,0,null,0]
[null,6,"BSCR Rating 5",{"$f":"Import!E1006","v":0},null,{"$f":"Import!G1006","v":0},null,{"$f":"Import!E1014","v":0},null,{"$f":"Import!G1014","v":0},null,{"$f":"Import!E1022","v":0},null,{"$f":"Import!G1022","v":0},null,{"$f":"Import!E1031","v":0},null,{"$f":"Import!G1031","v":0},null,0,null,0]
[null,7,"BSCR Rating 6",{"$f":"Import!E1007","v":0},null,{"$f":"Import!G1007","v":0},null,{"$f":"Import!E1015","v":0},null,{"$f":"Import!G1015","v":0},null,{"$f":"Import!E1023","v":0},null,{"$f":"Import!G1023","v":0},null,{"$f":"Import!E1032","v":0},null,{"$f":"Import!G1032","v":0},null,0,null,0]
[null,8,"BSCR Rating 7",{"$f":"Import!E1008","v":0},null,{"$f":"Import!G1008","v":0},null,{"$f":"Import!E1016","v":0},null,{"$f":"Import!G1016","v":0},null,{"$f":"Import!E1024","v":0},null,{"$f":"Import!G1024","v":0},null,{"$f":"Import!E1033","v":0},null,{"$f":"Import!G1033","v":0},null,0,null,0]
[null,9,"BSCR Rating 8",{"$f":"Import!E1009","v":0},null,{"$f":"Import!G1009","v":0},null,{"$f":"Import!E1017","v":0},null,{"$f":"Import!G1017","v":0},null,{"$f":"Import!E1025","v":0},null,{"$f":"Import!G1025","v":0},null,{"$f":"Import!E1034","v":0},null,{"$f":"Import!G1034","v":0},null,0,null,0]
[]
[null,10,"Total",{"$f":"SUM(D12:D20)","v":0},null,{"$f":"SUM(F12:F20)","v":0},null,{"$f":"SUM(H12:H20)","v":0},null,{"$f":"SUM(J12:J20)","v":0},null,{"$f":"SUM(L12:L20)","v":0},null,{"$f":"SUM(N12:N20)","v":0},null,{"$f":"SUM(P12:P20)","v":0},null,{"$f":"SUM(R12:R20)","v":0},null,{"$f":"SUM(T12:T20)","v":0},null,{"$f":"SUM(V12:V20)","v":0}]
[]
[]
[]
[]
[]
[]
[null,null,null,"COMMON STOCK",null,null,null,"PREFERRED STOCK",null,null,null,"EQUITY MUTUAL FUNDS",null,null,null,"OTHER INVESTMENTS",null,null,null,"TOTAL\n"]
[null,null,null,{"$f":"+'Form 1EBS'!$F$7","v":"2023-12-31"},null,{"$f":"+'Form 1EBS'!$H$7","v":"2022-12-31"},null,{"$f":"+'Form 1EBS'!$F$7","v":"2023-12-31"},null,{"$f":"+'Form 1EBS'!$H$7","v":"2022-12-31"},null,{"$f":"+'Form 1EBS'!$F$7","v":"2023-12-31"},null,{"$f":"+'Form 1EBS'!$H$7","v":"2022-12-31"},null,{"$f":"+'Form 1EBS'!$F$7","v":"2023-12-31"},null,{"$f":"+'Form 1EBS'!$H$7","v":"2022-12-31"},null,{"$f":"+'Form 1EBS'!$F$7","v":"2023-12-31"},null,{"$f":"+'Form 1EBS'!$H$7","v":"2022-12-31"}]
[null,null,null,{"$f":"+'Form 1EBS'!$F$8","v":"('000)"},null,{"$f":"+'Form 1EBS'!$H$8","v":"('000)"},null,{"$f":"+'Form 1EBS'!$F$8","v":"('000)"},null,{"$f":"+'Form 1EBS'!$H$8","v":"('000)"},null,{"$f":"+'Form 1EBS'!$F$8","v":"('000)"},null,{"$f":"+'Form 1EBS'!$H$8","v":"('000)"},null,{"$f":"+'Form 1EBS'!$F$8","v":"('000)"},null,{"$f":"+'Form 1EBS'!$H$8","v":"('000)"},null,{"$f":"+'Form 1EBS'!$F$8","v":"('000)"},null,{"$f":"+'Form 1EBS'!$H$8","v":"('000)"}]
[null,"Quoted and Unquoted Equities"]
[null,11,"BSCR Rating 1",null,null,null,null,{"$f":"Import!E1037","v":0},null,{"$f":"Import!G1037","v":0},null,null,null,null,null,null,null,null,null,{"$f":"D33+H33+L33","v":0},null,{"$f":"F33+J33+N33","v":0}]
[null,12,"BSCR Rating 2",null,null,null,null,{"$f":"Import!E1038","v":0},null,{"$f":"Import!G1038","v":0},null,null,null,null,null,null,null,null,null,0,null,0]
[null,13,"BSCR Rating 3",null,null,null,null,{"$f":"Import!E1039","v":0},null,{"$f":"Import!G1039","v":0},null,null,null,null,null,null,null,null,null,0,null,0]
[null,14,"BSCR Rating 4",null,null,null,null,{"$f":"Import!E1040","v":0},null,{"$f":"Import!G1040","v":0},null,null,null,null,null,null,null,null,null,0,null,0]
[null,15,"BSCR Rating 5",null,null,null,null,{"$f":"Import!E1041","v":0},null,{"$f":"Import!G1041","v":0},null,null,null,null,null,null,null,null,null,0,null,0]
[null,16,"BSCR Rating 6",null,null,null,null,{"$f":"Import!E1042","v":0},null,{"$f":"Import!G1042","v":0},null,null,null,null,null,null,null,null,null,0,null,0]
[null,17,"BSCR Rating 7",null,null,null,null,{"$f":"Import!E1043","v":0},null,{"$f":"Import!G1043","v":0},null,null,null,null,null,null,null,null,null,0,null,0]
[null,18,"BSCR Rating 8",null,null,null,null,{"$f":"Import!E1044","v":0},null,{"$f":"Import!G1044","v":0},null,null,null,null,null,null,null,null,null,0,null,0]
[null,19,"Quoted Equity Funds",{"$f":"Import!E1035","v":0},null,{"$f":"Import!G1035","v":0},null,null,null,null,null,{"$f":"Import!E1045","v":0},null,{"$f":"Import!G1045","v":0},null,{"$f":"Import!E1047","v":0},null,{"$f":"Import!G1047","v":0},null,{"$f":"D41+H41+L41+P41","v":0},0,0]
[null,20,"Unquoted Equity Funds",{"$f":"Import!E1036","v":0},null,{"$f":"Import!G1036","v":0},null,null,null,null,null,{"$f":"Import!E1046","v":0},null,{"$f":"Import!G1046","v":0},null,{"$f":"Import!E1048","v":0},null,{"$f":"Import!G1048","v":0},null,0,0,0]
[]
[null,21,"Total",{"$f":"SUM(D33:D42)","v":0},null,{"$f":"SUM(F33:F42)","v":0},null,{"$f":"SUM(H33:H42)","v":0},null,{"$f":"SUM(J33:J42)","v":0},null,{"$f":"SUM(L33:L42)","v":0},null,{"$f":"SUM(N33:N42)","v":0},null,{"$f":"SUM(P33:P42)","v":0},null,{"$f":"SUM(R33:R42)","v":0},null,{"$f":"SUM(T33:T42)","v":0},null,{"$f":"SUM(V33:V42)","v":0}]
[]
[]
[]
[]
[]
[]
[null,null,null,null,null,null,null,null,"This Section is Only Applicable to Companies that have Mortgage Backed Securities that have been Reclassified in Accordance with the NAIC and that elect to use NAIC reclassifications to map to the BSCR classes"]
[null,null,null,"MORTGAGE LOANS"]
[null,null,null,{"$f":"+'Form 1EBS'!$F$7","v":"2023-12-31"},null,{"$f":"+'Form 1EBS'!$H$7","v":"2022-12-31"},null,null,null,null,null,"VALUES OF RESIDENTIAL MORTGAGE-BACKED SECURITIES",null,null,null,"VALUES OF COMMERCIAL MORTGAGE-BACKED SECURITIES / ASSET-BACKED SECURITIES"]
[null,null,null,{"$f":"+'Form 1EBS'!$F$8","v":"('000)"},null,{"$f":"+'Form 1EBS'!$H$8","v":"('000)"},null,null,null,null,null,"Original Classification",null,"Revised Classification",null,"Original Classification",null,"Revised Classification"]
[null,null,null,null,null,null,null,null,null,"NAIC Class 1",null,{"$f":"Import!E1054","v":0},null,{"$f":"Import!E1061","v":0},null,{"$f":"Import!E1068","v":0},null,{"$f":"Import!E1075","v":0}]
[null,"Mortgage Loans",null,null,null,null,null,null,null,"NAIC Class 2",null,{"$f":"Import!E1055","v":0},null,{"$f":"Import!E1062","v":0},null,{"$f":"Import!E1069","v":0},null,{"$f":"Import!E1076","v":0}]
[null,22,"Insured/Guaranteed Mortgages",{"$f":"Import!E1049","v":0},null,{"$f":"Import!G1049","v":0},null,null,null,"NAIC Class 3",null,{"$f":"Import!E1056","v":0},null,{"$f":"Import!E1063","v":0},null,{"$f":"Import!E1070","v":0},null,{"$f":"Import!E1077","v":0}]
[null,23,"Other Commercial and Farm Mortgages",{"$f":"Import!E1050","v":0},null,{"$f":"Import!G1050","v":0},null,null,null,"NAIC Class 4",null,{"$f":"Import!E1057","v":0},null,{"$f":"Import!E1064","v":0},null,{"$f":"Import!E1071","v":0},null,{"$f":"Import!E1078","v":0}]
[null,24,"Other Residential Mortgages",{"$f":"Import!E1051","v":0},null,{"$f":"Import!G1051","v":0},null,null,null,"NAIC Class 5",null,{"$f":"Import!E1058","v":0},null,{"$f":"Import!E1065","v":0},null,{"$f":"Import!E1072","v":0},null,{"$f":"Import!E1079","v":0}]
[null,25,"Mortgages Not In Good Standing",{"$f":"Import!E1052","v":0},null,{"$f":"Import!G1052","v":0},null,null,null,"NAIC Class 6",null,{"$f":"Import!E1059","v":0},null,{"$f":"Import!E1066","v":0},null,{"$f":"Import!E1073","v":0},null,{"$f":"Import!E1080","v":0}]
[]
[null,26,"Total",{"$f":"SUM(D57:D60)","v":0},null,{"$f":"SUM(F57:F60)","v":0},null,null,null,null,null,{"$f":"SUM(L55:L60)","v":0},null,{"$f":"SUM(N55:N60)","v":0},null,{"$f":"SUM(P55:P60)","v":0},null,{"$f":"SUM(R55:R60)","v":0}]
[]
[null,null,null,"CASH AND CASH EQUIVALENTS",null,null,null,null,null,{"$f":"HYPERLINK(\"#'Attachments'!G55\",\"Attach file\")","v":"Attach file"}]
[null,null,null,{"$f":"+'Form 1EBS'!$F$7","v":"2023-12-31"},null,{"$f":"+'Form 1EBS'!$H$7","v":"2022-12-31"}]
[null,null,null,{"$f":"+'Form 1EBS'!$F$8","v":"('000)"},null,{"$f":"+'Form 1EBS'!$H$8","v":"('000)"}]
[]
[null,27,"Cash and Cash Equivalents",{"$f":"Import!E1053","v":0},null,{"$f":"Import!G1053","v":0}]
[]
[null,null,null,{"$f":"+'Form 1EBS'!$F$7","v":"2023-12-31"},null,{"$f":"+'Form 1EBS'!$H$7","v":"2022-12-31"}]
[null,null,null,{"$f":"+'Form 1EBS'!$F$8","v":"('000)"},null,{"$f":"+'Form 1EBS'!$H$8","v":"('000)"}]
[null,null,"Total Funds Held by Ceding Reinsurers in Segregated Accounts / Trusts (Lines 10, 21, 26 and 27)"]
[]
[null,{"$f":"B68+1","v":28},null,{"$f":"T22+T44+D62+D68","v":0},null,{"$f":"V22+V44+F62+F68","v":0}]
[]
[null,null,"Please include in the table below any assets, included in this Schedule, for which NAIC ratings were used to map to the BSCR rating classes"]
[null,null,"Information on the use of NAIC ratings\n(for disclosure purposes only)","CORPORATE & SOVEREIGN BONDS",null,"RESIDENTIAL MORTGAGE-BACKED SECURITIES",null,"COMMERCIAL MORTGAGE-BACKED SECURITIES / ASSET-BACKED SECURITIES",null,"BOND MUTUAL FUNDS",null,"MORTGAGE LOANS",null,"PREFERRED STOCKS",null,"OTHER ASSETS"]
[null,null,"NAIC Class 1",{"$f":"Import!E1082","v":0},null,{"$f":"Import!E1089","v":0},null,{"$f":"Import!E1096","v":0},null,{"$f":"Import!E1103","v":0},null,{"$f":"Import!E1110","v":0},null,{"$f":"Import!E1117","v":0},null,{"$f":"Import!E1124","v":0}]
[null,null,"NAIC Class 2",{"$f":"Import!E1083","v":0},null,{"$f":"Import!E1090","v":0},null,{"$f":"Import!E1097","v":0},null,{"$f":"Import!E1104","v":0},null,{"$f":"Import!E1111","v":0},null,{"$f":"Import!E1118","v":0},null,{"$f":"Import!E1125","v":0}]
[null,null,"NAIC Class 3",{"$f":"Import!E1084","v":0},null,{"$f":"Import!E1091","v":0},null,{"$f":"Import!E1098","v":0},null,{"$f":"Import!E1105","v":0},null,{"$f":"Import!E1112","v":0},null,{"$f":"Import!E1119","v":0},null,{"$f":"Import!E1126","v":0}]
[null,null,"NAIC Class 4",{"$f":"Import!E1085","v":0},null,{"$f":"Import!E1092","v":0},null,{"$f":"Import!E1099","v":0},null,{"$f":"Import!E1106","v":0},null,{"$f":"Import!E1113","v":0},null,{"$f":"Import!E1120","v":0},null,{"$f":"Import!E1127","v":0}]
[null,null,"NAIC Class 5",{"$f":"Import!E1086","v":0},null,{"$f":"Import!E1093","v":0},null,{"$f":"Import!E1100","v":0},null,{"$f":"Import!E1107","v":0},null,{"$f":"Import!E1114","v":0},null,{"$f":"Import!E1121","v":0},null,{"$f":"Import!E1128","v":0}]
[null,null,"NAIC Class 6",{"$f":"Import!E1087","v":0},null,{"$f":"Import!E1094","v":0},null,{"$f":"Import!E1101","v":0},null,{"$f":"Import!E1108","v":0},null,{"$f":"Import!E1115","v":0},null,{"$f":"Import!E1122","v":0},null,{"$f":"Import!E1129","v":0}]
[null,null,null,{"$f":"SUM(D78:D83)","v":0},null,{"$f":"SUM(F78:F83)","v":0},null,{"$f":"SUM(H78:H83)","v":0},null,{"$f":"SUM(J78:J83)","v":0},null,{"$f":"SUM(L78:L83)","v":0},null,{"$f":"SUM(N78:N83)","v":0},null,{"$f":"SUM(P78:P83)","v":0}]

{"sheet":"Schedule IIA (EBS)","index":26,"n_rows":84,"n_cols":22,"rows_kept":84,"cut":false,"hidden":false,"merged":[[63,3,63,5],[71,2,73,2],[6,3,6,5],[6,7,6,9],[6,11,6,13],[28,3,28,5],[28,7,28,9],[28,11,28,13],[2,3,2,5],[51,3,51,5],[50,8,51,20],[52,11,52,13],[52,15,52,17],[6,15,6,17],[6,19,6,21],[28,19,28,21],[28,15,28,17]]}
[null,"SCHEDULE OF FUNDS HELD BY CEDING REINSURERS IN SEGREGATED ACCOUNTS / TRUSTS BY BSCR RATING",null,null,null,null,null,null,null,null,null,null,null,null,null,null,null,null,null,null,null,{"$f":"HYPERLINK(\"#'Index'!A1\",\"Return to Index\")","v":"Return to Index"}]
[null,null,{"$f":"+'Group Information'!C9","v":"Enter Parent Company Name"}]
[null,null,"As at",{"$f":"+'Group Information'!C3","v":"2023-12-31"},null,null,null,null,null,null,null,null,null,null,null,null,null,null,null,null,null,"SCHEDULE IIA (EBS)"]
[null,null,{"$f":"+'Form 1EBS'!B4","v":"expressed in "},{"$f":"+'Form 1EBS'!C4","v":" ['000s]United States Dollars"}]
[]
[null,null,null,"(1)",null,"(2)",null,"(3)",null,"(4)",null,"(5)",null,"(6)",null,"(7)",null,"(8)",null,"(9)",null,"(10)"]
[null,null,null,"CORPORATE & SOVEREIGN BONDS",null,null,null,"RESIDENTIAL MORTGAGE-BACKED SECURITIES",null,null,null,"COMMERCIAL MORTGAGE-BACKED SECURITIES / ASSET-BACKED SECURITIES",null,null,null,"BOND MUTUAL FUNDS",null,null,null,"TOTAL"]
[null,null,null,{"$f":"+'Form 1EBS'!$F$7","v":"2023-12-31"},null,{"$f":"+'Form 1EBS'!$H$7","v":"2022-12-31"},null,{"$f":"+'Form 1EBS'!$F$7","v":"2023-12-31"},null,{"$f":"+'Form 1EBS'!$H$7","v":"2022-12-31"},null,{"$f":"+'Form 1EBS'!$F$7","v":"2023-12-31"},null,{"$f":"+'Form 1EBS'!$H$7","v":"2022-12-31"},null,{"$f":"+'Form 1EBS'!$F$7","v":"2023-12-31"},null,{"$f":"+'Form 1EBS'!$H$7","v":"2022-12-31"},null,{"$f":"+'Form 1EBS'!$F$7","v":"2023-12-31"},null,{"$f":"+'Form 1EBS'!$H$7","v":"2022-12-31"}]
[null,null,null,{"$f":"+'Form 1EBS'!$F$8","v":"('000)"},null,{"$f":"+'Form 1EBS'!$H$8","v":"('000)"},null,{"$f":"+'Form 1EBS'!$F$8","v":"('000)"},null,{"$f":"+'Form 1EBS'!$H$8","v":"('000)"},null,{"$f":"+'Form 1EBS'!$F$8","v":"('000)"},null,{"$f":"+'Form 1EBS'!$H$8","v":"('000)"},null,{"$f":"+'Form 1EBS'!$F$8","v":"('000)"},null,{"$f":"+'Form 1EBS'!$H$8","v":"('000)"},null,{"$f":"+'Form 1EBS'!$F$8","v":"('000)"},null,{"$f":"+'Form 1EBS'!$H$8","v":"('000)"}]
[null,"Line no. "]
[null,"Quoted and Unquoted Bonds and Debentures"]
[null,1,"BSCR Rating 0",{"$f":"Import!I1001","v":0},null,{"$f":"Import!K1001","v":0},null,null,null,null,null,null,null,null,null,{"$f":"Import!I1026","v":0},null,{"$f":"Import!K1026","v":0},null,{"$f":"D12+H12+L12+P12","v":0},null,{"$f":"F12+J12+N12+R12","v":0}]
[null,2,"BSCR Rating 1",{"$f":"Import!I1002","v":0},null,{"$f":"Import!K1002","v":0},null,{"$f":"Import!I1010","v":0},null,{"$f":"Import!K1010","v":0},null,{"$f":"Import!I1018","v":0},null,{"$f":"Import!K1018","v":0},null,{"$f":"Import!I1027","v":0},null,{"$f":"Import!K1027","v":0},null,{"$f":"D13+H13+L13+P13","v":0},null,0]
[null,3,"BSCR Rating 2",{"$f":"Import!I1003","v":0},null,{"$f":"Import!K1003","v":0},null,{"$f":"Import!I1011","v":0},null,{"$f":"Import!K1011","v":0},null,{"$f":"Import!I1019","v":0},null,{"$f":"Import!K1019","v":0},null,{"$f":"Import!I1028","v":0},null,{"$f":"Import!K1028","v":0},null,0,null,0]
[null,4,"BSCR Rating 3",{"$f":"Import!I1004","v":0},null,{"$f":"Import!K1004","v":0},null,{"$f":"Import!I1012","v":0},null,{"$f":"Import!K1012","v":0},null,{"$f":"Import!I1020","v":0},null,{"$f":"Import!K1020","v":0},null,{"$f":"Import!I1029","v":0},null,{"$f":"Import!K1029","v":0},null,0,null,0]
[null,5,"BSCR Rating 4",{"$f":"Import!I1005","v":0},null,{"$f":"Import!K1005","v":0},null,{"$f":"Import!I1013","v":0},null,{"$f":"Import!K1013","v":0},null,{"$f":"Import!I1021","v":0},null,{"$f":"Import!K1021","v":0},null,{"$f":"Import!I1030","v":0},null,{"$f":"Import!K1030","v":0},null,0,null,0]
[null,6,"BSCR Rating 5",{"$f":"Import!I1006","v":0},null,{"$f":"Import!K1006","v":0},null,{"$f":"Import!I1014","v":0},null,{"$f":"Import!K1014","v":0},null,{"$f":"Import!I1022","v":0},null,{"$f":"Import!K1022","v":0},null,{"$f":"Import!I1031","v":0},null,{"$f":"Import!K1031","v":0},null,0,null,0]
[null,7,"BSCR Rating 6",{"$f":"Import!I1007","v":0},null,{"$f":"Import!K1007","v":0},null,{"$f":"Import!I1015","v":0},null,{"$f":"Import!K1015","v":0},null,{"$f":"Import!I1023","v":0},null,{"$f":"Import!K1023","v":0},null,{"$f":"Import!I1032","v":0},null,{"$f":"Import!K1032","v":0},null,0,null,0]
[null,8,"BSCR Rating 7",{"$f":"Import!I1008","v":0},null,{"$f":"Import!K1008","v":0},null,{"$f":"Import!I1016","v":0},null,{"$f":"Import!K1016","v":0},null,{"$f":"Import!I1024","v":0},null,{"$f":"Import!K1024","v":0},null,{"$f":"Import!I1033","v":0},null,{"$f":"Import!K1033","v":0},null,0,null,0]
[null,9,"BSCR Rating 8",{"$f":"Import!I1009","v":0},null,{"$f":"Import!K1009","v":0},null,{"$f":"Import!I1017","v":0},null,{"$f":"Import!K1017","v":0},null,{"$f":"Import!I1025","v":0},null,{"$f":"Import!K1025","v":0},null,{"$f":"Import!I1034","v":0},null,{"$f":"Import!K1034","v":0},null,0,null,0]
[]
[null,10,"Total",{"$f":"SUM(D12:D20)","v":0},null,{"$f":"SUM(F12:F20)","v":0},null,{"$f":"SUM(H12:H20)","v":0},null,{"$f":"SUM(J12:J20)","v":0},null,{"$f":"SUM(L12:L20)","v":0},null,{"$f":"SUM(N12:N20)","v":0},null,{"$f":"SUM(P12:P20)","v":0},null,{"$f":"SUM(R12:R20)","v":0},null,{"$f":"SUM(T12:T20)","v":0},null,{"$f":"SUM(V12:V20)","v":0}]
[]
[]
[]
[]
[]
[]
[null,null,null,"COMMON STOCK",null,null,null,"PREFERRED STOCK",null,null,null,"EQUITY MUTUAL FUNDS",null,null,null,"OTHER INVESTMENTS",null,null,null,"TOTAL\n"]
[null,null,null,{"$f":"+'Form 1EBS'!$F$7","v":"2023-12-31"},null,{"$f":"+'Form 1EBS'!$H$7","v":"2022-12-31"},null,{"$f":"+'Form 1EBS'!$F$7","v":"2023-12-31"},null,{"$f":"+'Form 1EBS'!$H$7","v":"2022-12-31"},null,{"$f":"+'Form 1EBS'!$F$7","v":"2023-12-31"},null,{"$f":"+'Form 1EBS'!$H$7","v":"2022-12-31"},null,{"$f":"+'Form 1EBS'!$F$7","v":"2023-12-31"},null,{"$f":"+'Form 1EBS'!$H$7","v":"2022-12-31"},null,{"$f":"+'Form 1EBS'!$F$7","v":"2023-12-31"},null,{"$f":"+'Form 1EBS'!$H$7","v":"2022-12-31"}]
[null,null,null,{"$f":"+'Form 1EBS'!$F$8","v":"('000)"},null,{"$f":"+'Form 1EBS'!$H$8","v":"('000)"},null,{"$f":"+'Form 1EBS'!$F$8","v":"('000)"},null,{"$f":"+'Form 1EBS'!$H$8","v":"('000)"},null,{"$f":"+'Form 1EBS'!$F$8","v":"('000)"},null,{"$f":"+'Form 1EBS'!$H$8","v":"('000)"},null,{"$f":"+'Form 1EBS'!$F$8","v":"('000)"},null,{"$f":"+'Form 1EBS'!$H$8","v":"('000)"},null,{"$f":"+'Form 1EBS'!$F$8","v":"('000)"},null,{"$f":"+'Form 1EBS'!$H$8","v":"('000)"}]
[null,"Quoted and Unquoted Equities"]
[null,11,"BSCR Rating 1",null,null,null,null,{"$f":"Import!I1037","v":0},null,{"$f":"Import!K1037","v":0},null,null,null,null,null,null,null,null,null,{"$f":"D33+H33+L33","v":0},null,{"$f":"F33+J33+N33","v":0}]
[null,12,"BSCR Rating 2",null,null,null,null,{"$f":"Import!I1038","v":0},null,{"$f":"Import!K1038","v":0},null,null,null,null,null,null,null,null,null,0,null,0]
[null,13,"BSCR Rating 3",null,null,null,null,{"$f":"Import!I1039","v":0},null,{"$f":"Import!K1039","v":0},null,null,null,null,null,null,null,null,null,0,null,0]
[null,14,"BSCR Rating 4",null,null,null,null,{"$f":"Import!I1040","v":0},null,{"$f":"Import!K1040","v":0},null,null,null,null,null,null,null,null,null,0,null,0]
[null,15,"BSCR Rating 5",null,null,null,null,{"$f":"Import!I1041","v":0},null,{"$f":"Import!K1041","v":0},null,null,null,null,null,null,null,null,null,0,null,0]
[null,16,"BSCR Rating 6",null,null,null,null,{"$f":"Import!I1042","v":0},null,{"$f":"Import!K1042","v":0},null,null,null,null,null,null,null,null,null,0,null,0]
[null,17,"BSCR Rating 7",null,null,null,null,{"$f":"Import!I1043","v":0},null,{"$f":"Import!K1043","v":0},null,null,null,null,null,null,null,null,null,0,null,0]
[null,18,"BSCR Rating 8",null,null,null,null,{"$f":"Import!I1044","v":0},null,{"$f":"Import!K1044","v":0},null,null,null,null,null,null,null,null,null,0,null,0]
[null,19,"Quoted Equity Funds",{"$f":"Import!I1035","v":0},null,{"$f":"Import!K1035","v":0},null,null,null,null,null,{"$f":"Import!I1045","v":0},null,{"$f":"Import!K1045","v":0},null,{"$f":"Import!I1047","v":0},null,{"$f":"Import!K1047","v":0},null,{"$f":"D41+H41+L41+P41","v":0},0,0]
[null,20,"Unquoted Equity Funds",{"$f":"Import!I1036","v":0},null,{"$f":"Import!K1036","v":0},null,null,null,null,null,{"$f":"Import!I1046","v":0},null,{"$f":"Import!K1046","v":0},null,{"$f":"Import!I1048","v":0},null,{"$f":"Import!K1048","v":0},null,0,0,0]
[]
[null,21,"Total",{"$f":"SUM(D33:D42)","v":0},null,{"$f":"SUM(F33:F42)","v":0},null,{"$f":"SUM(H33:H42)","v":0},null,{"$f":"SUM(J33:J42)","v":0},null,{"$f":"SUM(L33:L42)","v":0},null,{"$f":"SUM(N33:N42)","v":0},null,{"$f":"SUM(P33:P42)","v":0},null,{"$f":"SUM(R33:R42)","v":0},null,{"$f":"SUM(T33:T42)","v":0},null,{"$f":"SUM(V33:V42)","v":0}]
[]
[]
[]
[]
[]
[]
[null,null,null,null,null,null,null,null,"This Section is Only Applicable to Companies that have Mortgage Backed Securities that have been Reclassified in Accordance with the NAIC and that elect to use NAIC reclassifications to map to the BSCR classes"]
[null,null,null,"MORTGAGE LOANS"]
[null,null,null,{"$f":"+'Form 1EBS'!$F$7","v":"2023-12-31"},null,{"$f":"+'Form 1EBS'!$H$7","v":"2022-12-31"},null,null,null,null,null,"VALUES OF RESIDENTIAL MORTGAGE-BACKED SECURITIES",null,null,null,"VALUES OF COMMERCIAL MORTGAGE-BACKED SECURITIES / ASSET-BACKED SECURITIES"]
[null,null,null,{"$f":"+'Form 1EBS'!$F$8","v":"('000)"},null,{"$f":"+'Form 1EBS'!$H$8","v":"('000)"},null,null,null,null,null,"Original Classification",null,"Revised Classification",null,"Original Classification",null,"Revised Classification"]
[null,null,null,null,null,null,null,null,null,"NAIC Class 1",null,{"$f":"Import!I1054","v":0},null,{"$f":"Import!I1061","v":0},null,{"$f":"Import!I1068","v":0},null,{"$f":"Import!I1075","v":0}]
[null,"Mortgage Loans",null,null,null,null,null,null,null,"NAIC Class 2",null,{"$f":"Import!I1055","v":0},null,{"$f":"Import!I1062","v":0},null,{"$f":"Import!I1069","v":0},null,{"$f":"Import!I1076","v":0}]
[null,22,"Insured/Guaranteed Mortgages",{"$f":"Import!I1049","v":0},null,{"$f":"Import!K1049","v":0},null,null,null,"NAIC Class 3",null,{"$f":"Import!I1056","v":0},null,{"$f":"Import!I1063","v":0},null,{"$f":"Import!I1070","v":0},null,{"$f":"Import!I1077","v":0}]
[null,23,"Other Commercial and Farm Mortgages",{"$f":"Import!I1050","v":0},null,{"$f":"Import!K1050","v":0},null,null,null,"NAIC Class 4",null,{"$f":"Import!I1057","v":0},null,{"$f":"Import!I1064","v":0},null,{"$f":"Import!I1071","v":0},null,{"$f":"Import!I1078","v":0}]
[null,24,"Other Residential Mortgages",{"$f":"Import!I1051","v":0},null,{"$f":"Import!K1051","v":0},null,null,null,"NAIC Class 5",null,{"$f":"Import!I1058","v":0},null,{"$f":"Import!I1065","v":0},null,{"$f":"Import!I1072","v":0},null,{"$f":"Import!I1079","v":0}]
[null,25,"Mortgages Not In Good Standing",{"$f":"Import!I1052","v":0},null,{"$f":"Import!K1052","v":0},null,null,null,"NAIC Class 6",null,{"$f":"Import!I1059","v":0},null,{"$f":"Import!I1066","v":0},null,{"$f":"Import!I1073","v":0},null,{"$f":"Import!I1080","v":0}]
[]
[null,26,"Total",{"$f":"SUM(D57:D60)","v":0},null,{"$f":"SUM(F57:F60)","v":0},null,null,null,null,null,{"$f":"SUM(L55:L60)","v":0},null,{"$f":"SUM(N55:N60)","v":0},null,{"$f":"SUM(P55:P60)","v":0},null,{"$f":"SUM(R55:R60)","v":0}]
[]
[null,null,null,"CASH AND CASH EQUIVALENTS",null,null,null,null,null,{"$f":"HYPERLINK(\"#'Attachments'!G55\",\"Attach file\")","v":"Attach file"}]
[null,null,null,{"$f":"+'Form 1EBS'!$F$7","v":"2023-12-31"},null,{"$f":"+'Form 1EBS'!$H$7","v":"2022-12-31"}]
[null,null,null,{"$f":"+'Form 1EBS'!$F$8","v":"('000)"},null,{"$f":"+'Form 1EBS'!$H$8","v":"('000)"}]
[]
[null,27,"Cash and Cash Equivalents",{"$f":"Import!I1053","v":0},null,{"$f":"Import!K1053","v":0}]
[]
[null,null,null,{"$f":"+'Form 1EBS'!$F$7","v":"2023-12-31"},null,{"$f":"+'Form 1EBS'!$H$7","v":"2022-12-31"}]
[null,null,null,{"$f":"+'Form 1EBS'!$F$8","v":"('000)"},null,{"$f":"+'Form 1EBS'!$H$8","v":"('000)"}]
[null,null,"Total Funds Held by Ceding Reinsurers in Segregated Accounts / Trusts (Lines 10, 21, 26 and 27)"]
[]
[null,{"$f":"B68+1","v":28},null,{"$f":"T22+T44+D62+D68","v":0},null,{"$f":"V22+V44+F62+F68","v":0}]
[]
[null,null,"Please include in the table below any assets, included in this Schedule, for which NAIC ratings were used to map to the BSCR rating classes"]
[null,null,"Information on the use of NAIC ratings\n(for disclosure purposes only)","CORPORATE & SOVEREIGN BONDS",null,"RESIDENTIAL MORTGAGE-BACKED SECURITIES",null,"COMMERCIAL MORTGAGE-BACKED SECURITIES / ASSET-BACKED SECURITIES",null,"BOND MUTUAL FUNDS",null,"MORTGAGE LOANS",null,"PREFERRED STOCKS",null,"OTHER ASSETS"]
[null,null,"NAIC Class 1",{"$f":"Import!I1082","v":0},null,{"$f":"Import!I1089","v":0},null,{"$f":"Import!I1096","v":0},null,{"$f":"Import!I1103","v":0},null,{"$f":"Import!I1110","v":0},null,{"$f":"Import!I1117","v":0},null,{"$f":"Import!I1124","v":0}]
[null,null,"NAIC Class 2",{"$f":"Import!I1083","v":0},null,{"$f":"Import!I1090","v":0},null,{"$f":"Import!I1097","v":0},null,{"$f":"Import!I1104","v":0},null,{"$f":"Import!I1111","v":0},null,{"$f":"Import!I1118","v":0},null,{"$f":"Import!I1125","v":0}]
[null,null,"NAIC Class 3",{"$f":"Import!I1084","v":0},null,{"$f":"Import!I1091","v":0},null,{"$f":"Import!I1098","v":0},null,{"$f":"Import!I1105","v":0},null,{"$f":"Import!I1112","v":0},null,{"$f":"Import!I1119","v":0},null,{"$f":"Import!I1126","v":0}]
[null,null,"NAIC Class 4",{"$f":"Import!I1085","v":0},null,{"$f":"Import!I1092","v":0},null,{"$f":"Import!I1099","v":0},null,{"$f":"Import!I1106","v":0},null,{"$f":"Import!I1113","v":0},null,{"$f":"Import!I1120","v":0},null,{"$f":"Import!I1127","v":0}]
[null,null,"NAIC Class 5",{"$f":"Import!I1086","v":0},null,{"$f":"Import!I1093","v":0},null,{"$f":"Import!I1100","v":0},null,{"$f":"Import!I1107","v":0},null,{"$f":"Import!I1114","v":0},null,{"$f":"Import!I1121","v":0},null,{"$f":"Import!I1128","v":0}]
[null,null,"NAIC Class 6",{"$f":"Import!I1087","v":0},null,{"$f":"Import!I1094","v":0},null,{"$f":"Import!I1101","v":0},null,{"$f":"Import!I1108","v":0},null,{"$f":"Import!I1115","v":0},null,{"$f":"Import!I1122","v":0},null,{"$f":"Import!I1129","v":0}]
[null,null,null,{"$f":"SUM(D78:D83)","v":0},null,{"$f":"SUM(F78:F83)","v":0},null,{"$f":"SUM(H78:H83)","v":0},null,{"$f":"SUM(J78:J83)","v":0},null,{"$f":"SUM(L78:L83)","v":0},null,{"$f":"SUM(N78:N83)","v":0},null,{"$f":"SUM(P78:P83)","v":0}]

{"sheet":"Investment Reconciliation","index":27,"n_rows":61,"n_cols":18,"rows_kept":61,"cut":false,"hidden":false,"merged":[[0,2,0,8],[7,3,7,5],[7,6,7,17],[33,2,33,11]]}
[null,null,"INVESTMENT RECONCILIATION ",null,null,null,null,null,null,null,null,null,null,null,null,null,null,{"$f":"HYPERLINK(\"#'Index'!A1\",\"Return to Index\")","v":"Return to Index"}]
[null,null,{"$f":"'Group Information'!C9","v":"Enter Parent Company Name"}]
[null,null,{"$f":"'Form 1EBS'!C3","v":"2023-12-31"}]
[null,null,{"$f":"'Form 1EBS'!C4","v":" ['000s]United States Dollars"}]
[]
[null,null,"A reconciliation of investments reported on Form 1EBS to Schedules IIB, IIC, IID, IIE and IIF"]
[]
[null,null,null,"Amounts as Reported in Balance Sheet",null,null,"Amounts results from Look-Through"]
[null,null,"Adjustment Description","Form 1EBS Balance","Form 1EBS Balance - Amounts Reported under Bonds and Debentures","Form 1EBS Balance - Amounts reported under Equities","Schedule IIB - Interest rate-sensitive investments","Schedule IIB - Investments sensitive to equity prices","Schedule IIC - Interest rate-sensitive investments","Schedule IIC - Investments sensitive to equity prices","Schedule IID - Interest rate-sensitive investments","Schedule IID - Investments sensitive to equity prices","Schedule IIE - Interest rate-sensitive investments","Schedule IIE - Investments sensitive to equity prices","Schedule IIF - Interest rate-sensitive investments","Schedule IIF - Investments sensitive to equity prices","Total - Interest rate-sensitive investments","Total - Investments sensitive to equity prices"]
[null,1,"Form 1EBS Open Balance",null,null,null,{"$f":"'Form 1EBS'!F14+'Form 1EBS'!F25+'Form 1EBS'!F47","v":0},{"$f":"'Form 1EBS'!F19+'Form 1EBS'!F20+'Form 1EBS'!F30+'Form 1EBS'!F31+'Form 1EBS'!F40+'Form 1EBS'!F54","v":0},{"$f":"'Schedule IIA (EBS)'!T22","v":0},{"$f":"'Schedule IIA (EBS)'!T44","v":0},null,null,null,null,null,{"$f":"'Form 1EBS'!F84+'Form 1EBS'!F86+'Form 1EBS'!F87","v":0},{"$f":"G10+I10+K10+M10+O10","v":0},{"$f":"H10+J10+L10+N10+P10","v":0}]
[null,{"$f":"B10+1","v":2},"Cash and Cash Equivalents",null,null,null,null,null,null,null,null,null,null,null,null,null,{"$f":"G11+I11+K11+M11+O11-E11","v":0},{"$f":"H11+J11+L11+N11+P11-F11","v":0}]
[null,{"$f":"B11+1","v":3},"Bonds and Debentures",null,null,null,null,null,null,null,null,null,null,null,null,null,{"$f":"G12+I12+K12+M12+O12-E12","v":0},0]
[null,4,"Equities ",null,null,null,null,null,null,null,null,null,null,null,null,null,0,0]
[null,5,"Real Estate",null,null,null,null,null,null,null,null,null,null,null,null,null,0,0]
[1,6,"Collective Investment Vehicles",null,null,null,null,null,null,null,null,null,null,null,null,null,0,0]
[null,7,"Derivatives",null,null,null,null,null,null,null,null,null,null,null,null,null,0,0]
[null,8,"Funds withheld",null,null,null,null,null,null,null,null,null,null,null,null,null,0,0]
[null,9,"Segregated Accounts Assets",null,null,null,null,null,null,null,null,null,null,null,null,null,0,0]
[null,10,"Deposit Assets",null,null,null,null,null,null,null,null,null,null,null,null,null,0,0]
[null,11,"Other Sundry Assets",null,null,null,null,null,null,null,null,null,null,null,null,null,0,0]
[null,12,"Other Adjustment ",null,null,null,null,null,null,null,null,null,null,null,null,null,0,0]
[null,13,"Other Adjustment ",null,null,null,null,null,null,null,null,null,null,null,null,null,0,0]
[null,14,"Other Adjustment ",null,null,null,null,null,null,null,null,null,null,null,null,null,{"$f":"G23+I23+K23+M23+O23-E23","v":0},{"$f":"H23+J23+L23+N23+P23-F23","v":0}]
[null,15,"Other Adjustment ",null,null,null,null,null,null,null,null,null,null,null,null,null,0,0]
[null,16,"Other Adjustment ",null,null,null,null,null,null,null,null,null,null,null,null,null,0,0]
[null,17,"Other Adjustment ",null,null,null,null,null,null,null,null,null,null,null,null,null,0,0]
[null,18,"Calculated Balances",null,null,null,{"$f":"G10+SUM(G11:G26)-SUM(E11:E26)","v":0},{"$f":"H10+SUM(H11:H26)-SUM(F11:F26)","v":0},{"$f":"SUM(I10:I26)","v":0},0,0,0,0,0,0,0,0,0]
[null,null,"Balance after Look-Through adjustments",null,null,null,{"$f":"'Schedule IIB (EBS)'!X27","v":0},{"$f":"'Schedule IIB (EBS)'!X62","v":0},{"$f":"'Schedule IIC (EBS)'!X27","v":0},{"$f":"'Schedule IIC (EBS)'!X62","v":0},{"$f":"'Schedule IID (EBS)'!X27","v":0},{"$f":"'Schedule IID (EBS)'!X62","v":0},{"$f":"'Schedule IIE (EBS)'!X27","v":0},{"$f":"'Schedule IIE (EBS)'!X62","v":0},{"$f":"'Schedule IIF (EBS)'!X27","v":0},{"$f":"'Schedule IIF (EBS)'!X62","v":0},{"$f":"G28+I28+K28+M28+O28-E28","v":0},{"$f":"H28+J28+L28+N28+P28-F28","v":0}]
[]
[null,null,null,null,null,null,{"$f":"IF(ROUND((G28-G27),0)=0,\"TRUE\",\"FALSE\")","v":"TRUE"},{"$f":"IF(ROUND((H28-H27),0)=0,\"TRUE\",\"FALSE\")","v":"TRUE"},"TRUE","TRUE","TRUE","TRUE","TRUE","TRUE","TRUE","TRUE","TRUE","TRUE"]
[]
[null,null,null,null,null,null,{"$f":"G27-G28","v":0},{"$f":"H27-H28","v":0},0,0,0,0,0,0,0,0,0,0]
[]
[null,null,"A reconciliation of investments reported on Schedules IIB, IIC, IID, IIE and IIF to exposures in Equity Risk and Interest Rate Risk calculations taking into account look-through"]
[]
[null,null,"Adjustment Description",null,null,null,"Interest rate-sensitive investments","Investments sensitive to equity prices","Interest rate-sensitive investments","Investments sensitive to equity prices","Interest rate-sensitive investments","Investments sensitive to equity prices","Interest rate-sensitive investments","Investments sensitive to equity prices","Interest rate-sensitive investments","Investments sensitive to equity prices","Total - Interest rate-sensitive investments","Total - Investments sensitive to equity prices"]
[null,null,"Schedule IIB, IIC, IID, IIE & IIF Balances",null,null,null,{"$f":"'Schedule IIB (EBS)'!X27","v":0},{"$f":"'Schedule IIB (EBS)'!X62","v":0},{"$f":"'Schedule IIC (EBS)'!X27","v":0},{"$f":"'Schedule IIC (EBS)'!X62","v":0},{"$f":"'Schedule IID (EBS)'!X27","v":0},{"$f":"'Schedule IID (EBS)'!X62","v":0},{"$f":"'Schedule IIE (EBS)'!X27","v":0},{"$f":"'Schedule IIE (EBS)'!X62","v":0},{"$f":"'Schedule IIF (EBS)'!X27","v":0},{"$f":"'Schedule IIF (EBS)'!X62","v":0},{"$f":"G37+I37+K37+M37+O37","v":0},{"$f":"H37+J37+L37+N37+P37","v":0}]
[null,{"$f":"B27+1","v":19},"Cash and Cash Equivalents",null,null,null,null,null,null,null,null,null,null,null,null,null,{"$f":"G38+I38+K38+M38+O38","v":0},0]
[null,{"$f":"B38+1","v":20},"Derivatives not included in Schedules IIB-IIF",null,null,null,null,null,null,null,null,null,null,null,null,null,0,0]
[null,{"$f":"B39+1","v":21},"Other Interest/Equity sensitive items not included in Schedules IIB-IIF",null,null,null,null,null,null,null,null,null,null,null,null,null,0,0]
[null,22,"Other Interest/Equity sensitive items not included in Schedules IIB-IIF",null,null,null,null,null,null,null,null,null,null,null,null,null,0,0]
[null,23,"Other Interest/Equity sensitive items not included in Schedules IIB-IIF",null,null,null,null,null,null,null,null,null,null,null,null,null,0,0]
[null,24,"Other Interest/Equity sensitive items not included in Schedules IIB-IIF",null,null,null,null,null,null,null,null,null,null,null,null,null,0,0]
[null,25,"Other Interest/Equity sensitive items not included in Schedules IIB-IIF",null,null,null,null,null,null,null,null,null,null,null,null,null,0,0]
[null,26,"Other Interest/Equity sensitive items not included in Schedules IIB-IIF",null,null,null,null,null,null,null,null,null,null,null,null,null,0,0]
[null,27,"Other Interest/Equity sensitive items not included in Schedules IIB-IIF",null,null,null,null,null,null,null,null,null,null,null,null,null,0,0]
[null,28,"Other Interest/Equity sensitive items not included in Schedules IIB-IIF",null,null,null,null,null,null,null,null,null,null,null,null,null,0,0]
[null,29,"Other Interest/Equity sensitive items not included in Schedules IIB-IIF",null,null,null,null,null,null,null,null,null,null,null,null,null,0,0]
[null,30,"Other Interest/Equity sensitive items not included in Schedules IIB-IIF",null,null,null,null,null,null,null,null,null,null,null,null,null,0,0]
[null,31,"Exposures after adjustments",null,null,null,{"$f":"SUM(G37:G49)","v":0},{"$f":"SUM(H37:H49)","v":0},0,0,0,0,0,0,0,0,{"$f":"SUM(Q37:Q49)","v":0},{"$f":"SUM(R37:R49)","v":0}]
[null,null,"Total Exposure in Risk calculations",null,null,null,null,null,null,null,null,null,null,null,null,null,{"$f":"'Interest Rate-Liquidity (Rev.)'!C51","v":0},{"$f":"'Equity Investments (Revised)'!D48+'Equity Investments (Revised)'!F48+'Equity Investments (Revised)'!H48","v":0}]
[]
[null,null,null,null,null,null,null,null,null,null,null,null,null,null,null,null,{"$f":"IF(ROUND((Q51-Q50),0)=0,\"TRUE\",\"FALSE\")","v":"TRUE"},{"$f":"IF(ROUND((R51-R50),0)=0,\"TRUE\",\"FALSE\")","v":"TRUE"}]
[null,null,"Interest rate-sensitive investments",null,"Total","Difference"]
[null,null,"Amount after Look-through",null,{"$f":"Q50","v":0},null,null,null,null,null,null,null,null,null,null,null,{"$f":"Q50-Q51","v":0},{"$f":"R50-R51","v":0}]
[null,null,"Amount in Interest Rate & Liquidity Risk calculation",null,{"$f":"'Interest Rate-Liquidity (Rev.)'!C51","v":0},{"$f":"E56-E55","v":0},{"$f":"IF(Summary!E12=\"Shock-Based Approach\",IF(ROUND(F56,0)=0,\"TRUE\",\"FALSE\"),\"N/A\")","v":"N/A"}]
[]
[]
[null,null,"Investments sensitive to equity prices",null,"Total","Difference"]
[null,null,"Amount after Look-through",null,{"$f":"R50","v":0}]
[null,null,"Amount in Equity Risk calculations",null,{"$f":"'Equity Investments (Revised)'!D48+'Equity Investments (Revised)'!F48+'Equity Investments (Revised)'!H48","v":0},{"$f":"E61-E60","v":0},{"$f":"IF(ROUND(F61,0)=0,\"TRUE\",\"FALSE\")","v":"TRUE"}]

{"sheet":"Schedule IIB (EBS)","index":28,"n_rows":107,"n_cols":28,"rows_kept":107,"cut":false,"hidden":false,"merged":[[33,27,34,27],[7,23,7,25],[83,13,84,13],[83,15,84,15],[83,17,84,17],[83,19,84,19],[82,12,82,15],[7,15,7,17],[7,11,7,13],[7,19,7,21],[33,23,34,23],[32,15,32,19],[33,15,34,15],[64,13,64,15],[64,17,64,19],[3,5,3,7],[4,5,4,7],[7,3,7,5],[7,7,7,9],[32,3,32,13],[34,7,34,9],[34,11,34,13],[82,16,82,19],[81,11,81,20],[33,3,34,5],[33,7,33,13],[33,17,34,17],[33,19,34,19],[63,3,63,11],[63,13,63,21],[64,3,64,5],[64,7,64,9]]}
[null,"SCHEDULE OF FIXED INCOME & EQUITY INVESTMENTS BY BSCR RATING",null,null,null,null,null,null,null,null,null,null,null,null,null,null,null,null,null,null,null,null,null,null,null,null,null,{"$f":"HYPERLINK(\"#'Index'!A1\",\"Return to Index\")","v":"Return to Index"}]
[]
[null,null,null,{"$f":"+'Group Information'!C9","v":"Enter Parent Company Name"}]
[null,null,null,"As at",null,{"$f":"+'Group Information'!C3","v":"2023-12-31"},null,null,null,null,null,null,null,null,null,null,null,null,null,null,null,null,null,null,null,"SCHEDULE IIB (EBS)"]
[null,null,null,{"$f":"+'Form 1EBS'!B4","v":"expressed in "},null,{"$f":"+'Form 1EBS'!C4","v":" ['000s]United States Dollars"}]
[]
[null,null,null,"(1)",null,"(2)",null,"(3)",null,"(4)",null,"(5)",null,"(6)",null,"(7)",null,"(8)",null,"(9)",null,"(10)",null,"(11)",null,"(12)"]
[null,null,null,"CORPORATE & SOVEREIGN BONDS",null,null,null,"RESIDENTIAL MORTGAGE-BACKED SECURITIES",null,null,null,"COMMERCIAL MORTGAGE-BACKED SECURITIES / ASSET-BACKED SECURITIES",null,null,null,"BOND MUTUAL FUNDS",null,null,null,"MORTGAGE LOANS",null,null,null,"TOTAL\n[ Form 1EBS Lines 2(b) & 3(b)]"]
[null,null,null,{"$f":"+'Form 1EBS'!$F$7","v":"2023-12-31"},null,{"$f":"+'Form 1EBS'!$H$7","v":"2022-12-31"},null,{"$f":"+'Form 1EBS'!$F$7","v":"2023-12-31"},null,{"$f":"+'Form 1EBS'!$H$7","v":"2022-12-31"},null,{"$f":"+'Form 1EBS'!$F$7","v":"2023-12-31"},null,{"$f":"+'Form 1EBS'!$H$7","v":"2022-12-31"},null,{"$f":"+'Form 1EBS'!$F$7","v":"2023-12-31"},null,{"$f":"+'Form 1EBS'!$H$7","v":"2022-12-31"},null,{"$f":"+'Form 1EBS'!$F$7","v":"2023-12-31"},null,{"$f":"+'Form 1EBS'!$H$7","v":"2022-12-31"},null,{"$f":"+'Form 1EBS'!$F$7","v":"2023-12-31"},null,{"$f":"+'Form 1EBS'!$H$7","v":"2022-12-31"}]
[null,null,null,{"$f":"+'Form 1EBS'!$F$8","v":"('000)"},null,{"$f":"+'Form 1EBS'!$H$8","v":"('000)"},null,{"$f":"+'Form 1EBS'!$F$8","v":"('000)"},null,{"$f":"+'Form 1EBS'!$H$8","v":"('000)"},null,{"$f":"+'Form 1EBS'!$F$8","v":"('000)"},null,{"$f":"+'Form 1EBS'!$H$8","v":"('000)"},null,{"$f":"+'Form 1EBS'!$F$8","v":"('000)"},null,{"$f":"+'Form 1EBS'!$H$8","v":"('000)"},null,{"$f":"+'Form 1EBS'!$F$8","v":"('000)"},null,{"$f":"+'Form 1EBS'!$H$8","v":"('000)"},null,{"$f":"+'Form 1EBS'!$F$8","v":"('000)"},null,{"$f":"+'Form 1EBS'!$H$8","v":"('000)"}]
[null,"Line no. "]
[null,"Quoted and Unquoted Bonds and Debentures"]
[null,1,"BSCR Rating 0",{"$f":"Import!I38539","v":0},null,{"$f":"Import!K38539","v":0},null,null,null,null,null,null,null,null,null,{"$f":"Import!I38564","v":0},null,{"$f":"Import!K38564","v":0},null,null,null,null,null,{"$f":"D13+H13+L13+P13","v":0},null,{"$f":"F13+J13+N13+R13","v":0}]
[null,{"$f":"B13+1","v":2},"BSCR Rating 1",{"$f":"Import!I38540","v":0},null,{"$f":"Import!K38540","v":0},null,{"$f":"Import!I38548","v":0},null,{"$f":"Import!K38548","v":0},null,{"$f":"Import!I38556","v":0},null,{"$f":"Import!K38556","v":0},null,{"$f":"Import!I38565","v":0},null,{"$f":"Import!K38565","v":0},null,null,null,null,null,{"$f":"D14+H14+L14+P14","v":0},null,0]
[null,{"$f":"B14+1","v":3},"BSCR Rating 2",{"$f":"Import!I38541","v":0},null,{"$f":"Import!K38541","v":0},null,{"$f":"Import!I38549","v":0},null,{"$f":"Import!K38549","v":0},null,{"$f":"Import!I38557","v":0},null,{"$f":"Import!K38557","v":0},null,{"$f":"Import!I38566","v":0},null,{"$f":"Import!K38566","v":0},null,null,null,null,null,0,null,0]
[null,4,"BSCR Rating 3",{"$f":"Import!I38542","v":0},null,{"$f":"Import!K38542","v":0},null,{"$f":"Import!I38550","v":0},null,{"$f":"Import!K38550","v":0},null,{"$f":"Import!I38558","v":0},null,{"$f":"Import!K38558","v":0},null,{"$f":"Import!I38567","v":0},null,{"$f":"Import!K38567","v":0},null,null,null,null,null,0,null,0]
[null,5,"BSCR Rating 4",{"$f":"Import!I38543","v":0},null,{"$f":"Import!K38543","v":0},null,{"$f":"Import!I38551","v":0},null,{"$f":"Import!K38551","v":0},null,{"$f":"Import!I38559","v":0},null,{"$f":"Import!K38559","v":0},null,{"$f":"Import!I38568","v":0},null,{"$f":"Import!K38568","v":0},null,null,null,null,null,0,null,0]
[null,6,"BSCR Rating 5",{"$f":"Import!I38544","v":0},null,{"$f":"Import!K38544","v":0},null,{"$f":"Import!I38552","v":0},null,{"$f":"Import!K38552","v":0},null,{"$f":"Import!I38560","v":0},null,{"$f":"Import!K38560","v":0},null,{"$f":"Import!I38569","v":0},null,{"$f":"Import!K38569","v":0},null,null,null,null,null,0,null,0]
[null,7,"BSCR Rating 6",{"$f":"Import!I38545","v":0},null,{"$f":"Import!K38545","v":0},null,{"$f":"Import!I38553","v":0},null,{"$f":"Import!K38553","v":0},null,{"$f":"Import!I38561","v":0},null,{"$f":"Import!K38561","v":0},null,{"$f":"Import!I38570","v":0},null,{"$f":"Import!K38570","v":0},null,null,null,null,null,0,null,0]
[null,8,"BSCR Rating 7",{"$f":"Import!I38546","v":0},null,{"$f":"Import!K38546","v":0},null,{"$f":"Import!I38554","v":0},null,{"$f":"Import!K38554","v":0},null,{"$f":"Import!I38562","v":0},null,{"$f":"Import!K38562","v":0},null,{"$f":"Import!I38571","v":0},null,{"$f":"Import!K38571","v":0},null,null,null,null,null,0,null,0]
[null,9,"BSCR Rating 8",{"$f":"Import!I38547","v":0},null,{"$f":"Import!K38547","v":0},null,{"$f":"Import!I38555","v":0},null,{"$f":"Import!K38555","v":0},null,{"$f":"Import!I38563","v":0},null,{"$f":"Import!K38563","v":0},null,{"$f":"Import!I38572","v":0},null,{"$f":"Import!K38572","v":0},null,null,null,null,null,{"$f":"D21+H21+L21+P21","v":0},null,{"$f":"F21+J21+N21+R21","v":0}]
[null,10,"Insured/Guaranteed Mortgages",null,null,null,null,null,null,null,null,null,null,null,null,null,null,null,null,{"$f":"Import!I38573","v":0},null,{"$f":"Import!K38573","v":0},null,{"$f":"D22+H22+L22+P22+T22","v":0},null,{"$f":"F22+J22+N22+R22+V22","v":0}]
[null,11,"Other Commercial and Farm Mortgages",null,null,null,null,null,null,null,null,null,null,null,null,null,null,null,null,{"$f":"Import!I38574","v":0},null,{"$f":"Import!K38574","v":0},null,{"$f":"D23+H23+L23+P23+T23","v":0},null,0]
[null,12,"Other Residential Mortgages",null,null,null,null,null,null,null,null,null,null,null,null,null,null,null,null,{"$f":"Import!I38575","v":0},null,{"$f":"Import!K38575","v":0},null,0,null,0]
[null,13,"Mortgages Not In Good Standing",null,null,null,null,null,null,null,null,null,null,null,null,null,null,null,null,{"$f":"Import!I38576","v":0},null,{"$f":"Import!K38576","v":0},null,0,null,0]
[]
[null,{"$f":"B25+1","v":14},"Total",{"$f":"SUM(D13:D21)","v":0},null,{"$f":"SUM(F13:F21)","v":0},null,{"$f":"SUM(H13:H21)","v":0},null,{"$f":"SUM(J13:J21)","v":0},null,{"$f":"SUM(L13:L21)","v":0},null,{"$f":"SUM(N13:N21)","v":0},null,{"$f":"SUM(P12:P21)","v":0},null,{"$f":"SUM(R12:R21)","v":0},null,{"$f":"SUM(T12:T26)","v":0},null,{"$f":"SUM(V12:V26)","v":0},null,{"$f":"SUM(X12:X26)","v":0},null,{"$f":"SUM(Z12:Z26)","v":0}]
[]
[null,null,null,null,null,null,null,null,null,null,null,null,null,null,null,null,null,null,null,null,null,null,null,{"$f":"IF((X27-('Form 1EBS'!F14+'Form 1EBS'!F25))=0,TRUE,FALSE)","v":true},null,{"$f":"IF((Z27-('Form 1EBS'!H14+'Form 1EBS'!H25))=0,TRUE,FALSE)","v":true}]
[]
[null,null,null,null,null,null,null,null,null,null,null,null,null,null,null," ",null,null,null,null,null,null,null,{"$f":"('Form 1EBS'!F14+'Form 1EBS'!F25)-X27","v":0},null,{"$f":"('Form 1EBS'!H14+'Form 1EBS'!H25)-Z27","v":0}]
[]
[null,null,null,"ASSETS",null,null,null,null,null,null,null,null,null,null,null,"Liabilities"]
[null,null,null,"Long Exposures",null,null,null,"Short Exposures",null,null,null,null,null,null,null,null,null,"Without Management Actions",null,"With Management Actions",null,null,null,"Total Assets Before Shock",null,null,null,"Shocks"]
[null,null,null,null,null,null,null,"Qualifying as Assets held for risk-mitigation purposes",null,null,null,"Not Qualifying as Assets held for risk-mitigation purposes",null,null,null,null,null,null,null,null,null,null,null,null,null,null,null,"Shocks"]
[null,null,null,"Before Shock",null,"After Shock",null,"Before Shock",null,"After Shock",null,"Before Shock",null,"After Shock",null,"Before Shock",null,"After Shock",null,"After Shock"]
[null,null,null,{"$f":"+'Form 1EBS'!$F$8","v":"('000)"},null,{"$f":"+'Form 1EBS'!$H$8","v":"('000)"},null,{"$f":"+'Form 1EBS'!$F$8","v":"('000)"},null,{"$f":"+'Form 1EBS'!$H$8","v":"('000)"},null,{"$f":"+'Form 1EBS'!$F$8","v":"('000)"},null,{"$f":"+'Form 1EBS'!$H$8","v":"('000)"},null,{"$f":"+'Form 1EBS'!$F$8","v":"('000)"},null,{"$f":"+'Form 1EBS'!$H$8","v":"('000)"},null,{"$f":"+'Form 1EBS'!$H$8","v":"('000)"},null,null,null,{"$f":"+'Form 1EBS'!$F$8","v":"('000)"}]
[null,"Equity Holdings "]
[null,{"$f":"B27+1","v":15},"Strategic Holdings - Listed",{"$f":"Import!I38577","v":0},null,{"$f":"IF(OR(Import!I38599=0,Import!I38599=\"\"),(1-$AB39)*D39,Import!I38599)","v":0},null,{"$f":"Import!I38621","v":0},null,{"$f":"IF(OR(Import!I38643=0,Import!I38643=\"\"),(1-$AB39)*H39,Import!I38643)","v":0},null,{"$f":"Import!I38665","v":0},null,{"$f":"IF(OR(Import!I38687=0,Import!I38687=\"\"),(1-$AB39)*L39,Import!I38687)","v":0},null,{"$f":"Import!I38709","v":0},null,{"$f":"IF(OR(Import!I38731=0,Import!I38731=\"\"),P39,Import!I38731)","v":0},null,{"$f":"IF(OR(Import!I38753=0,Import!I38753),R39,Import!I38753)","v":0},null,null,null,{"$f":"D39+H39+L39","v":0},null,null,null,0.2]
[null,{"$f":"B39+1","v":16},"Duration Based",{"$f":"Import!I38578","v":0},null,{"$f":"IF(OR(Import!I38600=0,Import!I38600=\"\"),(1-$AB40)*D40,Import!I38600)","v":0},null,{"$f":"Import!I38622","v":0},null,{"$f":"IF(OR(Import!I38644=0,Import!I38644=\"\"),(1-$AB40)*H40,Import!I38644)","v":0},null,{"$f":"Import!I38666","v":0},null,{"$f":"IF(OR(Import!I38688=0,Import!I38688=\"\"),(1-$AB40)*L40,Import!I38688)","v":0},null,{"$f":"Import!I38710","v":0},null,{"$f":"IF(OR(Import!I38732=0,Import!I38732=\"\"),P40,Import!I38732)","v":0},null,{"$f":"IF(OR(Import!I38754=0,Import!I38754),R40,Import!I38754)","v":0},null,null,null,{"$f":"D40+H40+L40","v":0},null,null,null,0.2]
[null,17,"Listed Equity Securities in Developed Markets",{"$f":"Import!I38579","v":0},null,{"$f":"IF(OR(Import!I38601=0,Import!I38601=\"\"),(1-$AB41)*D41,Import!I38601)","v":0},null,{"$f":"Import!I38623","v":0},null,{"$f":"IF(OR(Import!I38645=0,Import!I38645=\"\"),(1-$AB41)*H41,Import!I38645)","v":0},null,{"$f":"Import!I38667","v":0},null,{"$f":"IF(OR(Import!I38689=0,Import!I38689=\"\"),(1-$AB41)*L41,Import!I38689)","v":0},null,{"$f":"Import!I38711","v":0},null,{"$f":"IF(OR(Import!I38733=0,Import!I38733=\"\"),P41,Import!I38733)","v":0},null,{"$f":"IF(OR(Import!I38755=0,Import!I38755),R41,Import!I38755)","v":0},null,null,null,0,null,null,null,0.35]
[null,18,"Preferred Stocks, BSCR Rating 1",{"$f":"Import!I38580","v":0},null,{"$f":"IF(OR(Import!I38602=0,Import!I38602=\"\"),(1-$AB42)*D42,Import!I38602)","v":0},null,{"$f":"Import!I38624","v":0},null,{"$f":"IF(OR(Import!I38646=0,Import!I38646=\"\"),(1-$AB42)*H42,Import!I38646)","v":0},null,{"$f":"Import!I38668","v":0},null,{"$f":"IF(OR(Import!I38690=0,Import!I38690=\"\"),(1-$AB42)*L42,Import!I38690)","v":0},null,{"$f":"Import!I38712","v":0},null,{"$f":"IF(OR(Import!I38734=0,Import!I38734=\"\"),P42,Import!I38734)","v":0},null,{"$f":"IF(OR(Import!I38756=0,Import!I38756),R42,Import!I38756)","v":0},null,null,null,0,null,null,null,6.0000000000000001E-3]
[null,19,"Preferred Stocks, BSCR Rating 2",{"$f":"Import!I38581","v":0},null,{"$f":"IF(OR(Import!I38603=0,Import!I38603=\"\"),(1-$AB43)*D43,Import!I38603)","v":0},null,{"$f":"Import!I38625","v":0},null,{"$f":"IF(OR(Import!I38647=0,Import!I38647=\"\"),(1-$AB43)*H43,Import!I38647)","v":0},null,{"$f":"Import!I38669","v":0},null,{"$f":"IF(OR(Import!I38691=0,Import!I38691=\"\"),(1-$AB43)*L43,Import!I38691)","v":0},null,{"$f":"Import!I38713","v":0},null,{"$f":"IF(OR(Import!I38735=0,Import!I38735=\"\"),P43,Import!I38735)","v":0},null,{"$f":"IF(OR(Import!I38757=0,Import!I38757),R43,Import!I38757)","v":0},null,null,null,0,null,null,null,1.2E-2]
[null,20,"Preferred Stocks, BSCR Rating 3",{"$f":"Import!I38582","v":0},null,{"$f":"IF(OR(Import!I38604=0,Import!I38604=\"\"),(1-$AB44)*D44,Import!I38604)","v":0},null,{"$f":"Import!I38626","v":0},null,{"$f":"IF(OR(Import!I38648=0,Import!I38648=\"\"),(1-$AB44)*H44,Import!I38648)","v":0},null,{"$f":"Import!I38670","v":0},null,{"$f":"IF(OR(Import!I38692=0,Import!I38692=\"\"),(1-$AB44)*L44,Import!I38692)","v":0},null,{"$f":"Import!I38714","v":0},null,{"$f":"IF(OR(Import!I38736=0,Import!I38736=\"\"),P44,Import!I38736)","v":0},null,{"$f":"IF(OR(Import!I38758=0,Import!I38758),R44,Import!I38758)","v":0},null,null,null,0,null,null,null,0.02]
[null,21,"Preferred Stocks, BSCR Rating 4",{"$f":"Import!I38583","v":0},null,{"$f":"IF(OR(Import!I38605=0,Import!I38605=\"\"),(1-$AB45)*D45,Import!I38605)","v":0},null,{"$f":"Import!I38627","v":0},null,{"$f":"IF(OR(Import!I38649=0,Import!I38649=\"\"),(1-$AB45)*H45,Import!I38649)","v":0},null,{"$f":"Import!I38671","v":0},null,{"$f":"IF(OR(Import!I38693=0,Import!I38693=\"\"),(1-$AB45)*L45,Import!I38693)","v":0},null,{"$f":"Import!I38715","v":0},null,{"$f":"IF(OR(Import!I38737=0,Import!I38737=\"\"),P45,Import!I38737)","v":0},null,{"$f":"IF(OR(Import!I38759=0,Import!I38759),R45,Import!I38759)","v":0},null,null,null,0,null,null,null,0.04]
[null,22,"Preferred Stocks, BSCR Rating 5",{"$f":"Import!I38584","v":0},null,{"$f":"IF(OR(Import!I38606=0,Import!I38606=\"\"),(1-$AB46)*D46,Import!I38606)","v":0},null,{"$f":"Import!I38628","v":0},null,{"$f":"IF(OR(Import!I38650=0,Import!I38650=\"\"),(1-$AB46)*H46,Import!I38650)","v":0},null,{"$f":"Import!I38672","v":0},null,{"$f":"IF(OR(Import!I38694=0,Import!I38694=\"\"),(1-$AB46)*L46,Import!I38694)","v":0},null,{"$f":"Import!I38716","v":0},null,{"$f":"IF(OR(Import!I38738=0,Import!I38738=\"\"),P46,Import!I38738)","v":0},null,{"$f":"IF(OR(Import!I38760=0,Import!I38760),R46,Import!I38760)","v":0},null,null,null,0,null,null,null,0.11]
[null,23,"Preferred Stocks, BSCR Rating 6",{"$f":"Import!I38585","v":0},null,{"$f":"IF(OR(Import!I38607=0,Import!I38607=\"\"),(1-$AB47)*D47,Import!I38607)","v":0},null,{"$f":"Import!I38629","v":0},null,{"$f":"IF(OR(Import!I38651=0,Import!I38651=\"\"),(1-$AB47)*H47,Import!I38651)","v":0},null,{"$f":"Import!I38673","v":0},null,{"$f":"IF(OR(Import!I38695=0,Import!I38695=\"\"),(1-$AB47)*L47,Import!I38695)","v":0},null,{"$f":"Import!I38717","v":0},null,{"$f":"IF(OR(Import!I38739=0,Import!I38739=\"\"),P47,Import!I38739)","v":0},null,{"$f":"IF(OR(Import!I38761=0,Import!I38761),R47,Import!I38761)","v":0},null,null,null,0,null,null,null,0.25]
[null,24,"Preferred Stocks, BSCR Rating 7",{"$f":"Import!I38586","v":0},null,{"$f":"IF(OR(Import!I38608=0,Import!I38608=\"\"),(1-$AB48)*D48,Import!I38608)","v":0},null,{"$f":"Import!I38630","v":0},null,{"$f":"IF(OR(Import!I38652=0,Import!I38652=\"\"),(1-$AB48)*H48,Import!I38652)","v":0},null,{"$f":"Import!I38674","v":0},null,{"$f":"IF(OR(Import!I38696=0,Import!I38696=\"\"),(1-$AB48)*L48,Import!I38696)","v":0},null,{"$f":"Import!I38718","v":0},null,{"$f":"IF(OR(Import!I38740=0,Import!I38740=\"\"),P48,Import!I38740)","v":0},null,{"$f":"IF(OR(Import!I38762=0,Import!I38762),R48,Import!I38762)","v":0},null,null,null,0,null,null,null,0.35]
[null,25,"Preferred Stocks, BSCR Rating 8",{"$f":"Import!I38587","v":0},null,{"$f":"IF(OR(Import!I38609=0,Import!I38609=\"\"),(1-$AB49)*D49,Import!I38609)","v":0},null,{"$f":"Import!I38631","v":0},null,{"$f":"IF(OR(Import!I38653=0,Import!I38653=\"\"),(1-$AB49)*H49,Import!I38653)","v":0},null,{"$f":"Import!I38675","v":0},null,{"$f":"IF(OR(Import!I38697=0,Import!I38697=\"\"),(1-$AB49)*L49,Import!I38697)","v":0},null,{"$f":"Import!I38719","v":0},null,{"$f":"IF(OR(Import!I38741=0,Import!I38741=\"\"),P49,Import!I38741)","v":0},null,{"$f":"IF(OR(Import!I38763=0,Import!I38763),R49,Import!I38763)","v":0},null,null,null,0,null,null,null,0.35]
[null,26,"Equity Derivatives on Type 1 Equities",{"$f":"Import!I38588","v":0},null,{"$f":"Import!I38610","v":0},null,{"$f":"Import!I38632","v":0},null,{"$f":"Import!I38654","v":0},null,{"$f":"Import!I38676","v":0},null,{"$f":"Import!I38698","v":0},null,{"$f":"Import!I38720","v":0},null,{"$f":"IF(OR(Import!I38742=0,Import!I38742=\"\"),P50,Import!I38742)","v":0},null,{"$f":"IF(OR(Import!I38764=0,Import!I38764),R50,Import!I38764)","v":0},null,null,null,0,null,null,null,0.35]
[null,27,"Strategic Holdings - Unlisted",{"$f":"Import!I38589","v":0},null,{"$f":"IF(OR(Import!I38611=0,Import!I38611=\"\"),(1-$AB51)*D51,Import!I38611)","v":0},null,{"$f":"Import!I38633","v":0},null,{"$f":"IF(OR(Import!I38655=0,Import!I38655=\"\"),(1-$AB51)*H51,Import!I38655)","v":0},null,{"$f":"Import!I38677","v":0},null,{"$f":"IF(OR(Import!I38699=0,Import!I38699=\"\"),(1-$AB51)*L51,Import!I38699)","v":0},null,{"$f":"Import!I38721","v":0},null,{"$f":"IF(OR(Import!I38743=0,Import!I38743=\"\"),P51,Import!I38743)","v":0},null,{"$f":"IF(OR(Import!I38765=0,Import!I38765),R51,Import!I38765)","v":0},null,null,null,0,null,null,null,0.2]
[null,28,"Other Equities / Other Assets",{"$f":"Import!I38590","v":0},null,{"$f":"IF(OR(Import!I38612=0,Import!I38612=\"\"),(1-$AB52)*D52,Import!I38612)","v":0},null,{"$f":"Import!I38634","v":0},null,{"$f":"IF(OR(Import!I38656=0,Import!I38656=\"\"),(1-$AB52)*H52,Import!I38656)","v":0},null,{"$f":"Import!I38678","v":0},null,{"$f":"IF(OR(Import!I38700=0,Import!I38700=\"\"),(1-$AB52)*L52,Import!I38700)","v":0},null,{"$f":"Import!I38722","v":0},null,{"$f":"IF(OR(Import!I38744=0,Import!I38744=\"\"),P52,Import!I38744)","v":0},null,{"$f":"IF(OR(Import!I38766=0,Import!I38766),R52,Import!I38766)","v":0},null,null,null,0,null,null,null,0.45]
[null,29,"Letters of Credit",{"$f":"Import!I38591","v":0},null,{"$f":"IF(OR(Import!I38613=0,Import!I38613=\"\"),(1-$AB53)*D53,Import!I38613)","v":0},null,{"$f":"Import!I38635","v":0},null,{"$f":"IF(OR(Import!I38657=0,Import!I38657=\"\"),(1-$AB53)*H53,Import!I38657)","v":0},null,{"$f":"Import!I38679","v":0},null,{"$f":"IF(OR(Import!I38701=0,Import!I38701=\"\"),(1-$AB53)*L53,Import!I38701)","v":0},null,{"$f":"Import!I38723","v":0},null,{"$f":"IF(OR(Import!I38745=0,Import!I38745=\"\"),P53,Import!I38745)","v":0},null,{"$f":"IF(OR(Import!I38767=0,Import!I38767),R53,Import!I38767)","v":0},null,null,null,0,null,null,null,0.2]
[null,30,"Intangible assets",{"$f":"Import!I38592","v":0},null,{"$f":"IF(OR(Import!I38614=0,Import!I38614=\"\"),(1-$AB54)*D54,Import!I38614)","v":0},null,{"$f":"Import!I38636","v":0},null,{"$f":"IF(OR(Import!I38658=0,Import!I38658=\"\"),(1-$AB54)*H54,Import!I38658)","v":0},null,{"$f":"Import!I38680","v":0},null,{"$f":"IF(OR(Import!I38702=0,Import!I38702=\"\"),(1-$AB54)*L54,Import!I38702)","v":0},null,{"$f":"Import!I38724","v":0},null,{"$f":"IF(OR(Import!I38746=0,Import!I38746=\"\"),P54,Import!I38746)","v":0},null,{"$f":"IF(OR(Import!I38768=0,Import!I38768),R54,Import!I38768)","v":0},null,null,null,0,null,null,null,0.2]
[null,31,"Pension Benefit Surplus",{"$f":"Import!I38593","v":0},null,{"$f":"IF(OR(Import!I38615=0,Import!I38615=\"\"),(1-$AB55)*D55,Import!I38615)","v":0},null,{"$f":"Import!I38637","v":0},null,{"$f":"IF(OR(Import!I38659=0,Import!I38659=\"\"),(1-$AB55)*H55,Import!I38659)","v":0},null,{"$f":"Import!I38681","v":0},null,{"$f":"IF(OR(Import!I38703=0,Import!I38703=\"\"),(1-$AB55)*L55,Import!I38703)","v":0},null,{"$f":"Import!I38725","v":0},null,{"$f":"IF(OR(Import!I38747=0,Import!I38747=\"\"),P55,Import!I38747)","v":0},null,{"$f":"IF(OR(Import!I38769=0,Import!I38769),R55,Import!I38769)","v":0},null,null,null,0,null,null,null,0.2]
[null,32,"Equity Derivatives on Type 2 Equities",{"$f":"Import!I38594","v":0},null,{"$f":"Import!I38616","v":0},null,{"$f":"Import!I38638","v":0},null,{"$f":"Import!I38660","v":0},null,{"$f":"Import!I38682","v":0},null,{"$f":"Import!I38704","v":0},null,{"$f":"Import!I38726","v":0},null,{"$f":"IF(OR(Import!I38748=0,Import!I38748=\"\"),P56,Import!I38748)","v":0},null,{"$f":"IF(OR(Import!I38770=0,Import!I38770),R56,Import!I38770)","v":0},null,null,null,0,null,null,null,0.45]
[null,33,"Infrastructure",{"$f":"Import!I38595","v":0},null,{"$f":"IF(OR(Import!I38617=0,Import!I38617=\"\"),(1-$AB57)*D57,Import!I38617)","v":0},null,{"$f":"Import!I38639","v":0},null,{"$f":"IF(OR(Import!I38661=0,Import!I38661=\"\"),(1-$AB57)*H57,Import!I38661)","v":0},null,{"$f":"Import!I38683","v":0},null,{"$f":"IF(OR(Import!I38705=0,Import!I38705=\"\"),(1-$AB57)*L57,Import!I38705)","v":0},null,{"$f":"Import!I38727","v":0},null,{"$f":"IF(OR(Import!I38749=0,Import!I38749=\"\"),P57,Import!I38749)","v":0},null,{"$f":"IF(OR(Import!I38771=0,Import!I38771),R57,Import!I38771)","v":0},null,null,null,0,null,null,null,0.25]
[null,34,"Derivatives on Infrastructure",{"$f":"Import!I38596","v":0},null,{"$f":"Import!I38618","v":0},null,{"$f":"Import!I38640","v":0},null,{"$f":"Import!I38662","v":0},null,{"$f":"Import!I38684","v":0},null,{"$f":"Import!I38706","v":0},null,{"$f":"Import!I38728","v":0},null,{"$f":"IF(OR(Import!I38750=0,Import!I38750=\"\"),P58,Import!I38750)","v":0},null,{"$f":"IF(OR(Import!I38772=0,Import!I38772),R58,Import!I38772)","v":0},null,null,null,0,null,null,null,0.25]
[null,35,"Equity Real Estate 1",{"$f":"Import!I38597","v":0},null,{"$f":"IF(OR(Import!I38619=0,Import!I38619=\"\"),(1-$AB59)*D59,Import!I38619)","v":0},null,{"$f":"Import!I38641","v":0},null,{"$f":"IF(OR(Import!I38663=0,Import!I38663=\"\"),(1-$AB59)*H59,Import!I38663)","v":0},null,{"$f":"Import!I38685","v":0},null,{"$f":"IF(OR(Import!I38707=0,Import!I38707=\"\"),(1-$AB59)*L59,Import!I38707)","v":0},null,{"$f":"Import!I38729","v":0},null,{"$f":"IF(OR(Import!I38751=0,Import!I38751=\"\"),P59,Import!I38751)","v":0},null,{"$f":"IF(OR(Import!I38773=0,Import!I38773),R59,Import!I38773)","v":0},null,null,null,0,null,null,null,0.1]
[null,36,"Equity Real Estate 2",{"$f":"Import!I38598","v":0},null,{"$f":"IF(OR(Import!I38620=0,Import!I38620=\"\"),(1-$AB60)*D60,Import!I38620)","v":0},null,{"$f":"Import!I38642","v":0},null,{"$f":"IF(OR(Import!I38664=0,Import!I38664=\"\"),(1-$AB60)*H60,Import!I38664)","v":0},null,{"$f":"Import!I38686","v":0},null,{"$f":"IF(OR(Import!I38708=0,Import!I38708=\"\"),(1-$AB60)*L60,Import!I38708)","v":0},null,{"$f":"Import!I38730","v":0},null,{"$f":"IF(OR(Import!I38752=0,Import!I38752=\"\"),P60,Import!I38752)","v":0},null,{"$f":"IF(OR(Import!I38774=0,Import!I38774),R60,Import!I38774)","v":0},null,null,null,0,null,null,null,0.2]
[]
[null,{"$f":"B60+1","v":37},"Total Equity Holdings",{"$f":"SUM(D38:D61)","v":0},null,{"$f":"SUM(F38:F61)","v":0},null,{"$f":"SUM(H38:H61)","v":0},null,{"$f":"SUM(J38:J61)","v":0},null,{"$f":"SUM(L38:L61)","v":0},null,{"$f":"SUM(N38:N61)","v":0},null,{"$f":"SUM(P38:P61)","v":0},null,{"$f":"SUM(R38:R61)","v":0},null,{"$f":"SUM(T38:T61)","v":0},null,null,null,{"$f":"SUM(X38:X61)","v":0}]
[]
[null,null,null,"Spread Up",null,null,null,null,null,null,null,null,null,"Spread Down"]
[null,null,null,"Long Exposures",null,null,null,"Short Exposures",null,null,null,"Shock (bps)",null,"Long Exposures",null,null,null,"Short Exposures",null,null,null,"Shock Rates"]
[null,null,null,"Before Shock",null,"After Shock",null,"Before Shock",null,"After Shock",null,null,null,"Before Shock",null,"After Shock",null,"Before Shock",null,"After Shock"]
[null,null,"Spread Risk for Credit Derivatives"]
[null,{"$f":"B62+1","v":38},"BSCR Rating 0",{"$f":"Import!I38775","v":0},null,{"$f":"Import!I38784","v":0},null,{"$f":"Import!I38793","v":0},null,{"$f":"Import!I38802","v":0},null,0,null,{"$f":"Import!I38811","v":0},null,{"$f":"Import!I38820","v":0},null,{"$f":"Import!I38829","v":0},null,{"$f":"Import!I38838","v":0},null,0]
[null,{"$f":"B68+1","v":39},"BSCR Rating 1",{"$f":"Import!I38776","v":0},null,{"$f":"Import!I38785","v":0},null,{"$f":"Import!I38794","v":0},null,{"$f":"Import!I38803","v":0},null,130,null,{"$f":"Import!I38812","v":0},null,{"$f":"Import!I38821","v":0},null,{"$f":"Import!I38830","v":0},null,{"$f":"Import!I38839","v":0},null,-0.75]
[null,{"$f":"B69+1","v":40},"BSCR Rating 2",{"$f":"Import!I38777","v":0},null,{"$f":"Import!I38786","v":0},null,{"$f":"Import!I38795","v":0},null,{"$f":"Import!I38804","v":0},null,150,null,{"$f":"Import!I38813","v":0},null,{"$f":"Import!I38822","v":0},null,{"$f":"Import!I38831","v":0},null,{"$f":"Import!I38840","v":0},null,-0.75]
[null,41,"BSCR Rating 3",{"$f":"Import!I38778","v":0},null,{"$f":"Import!I38787","v":0},null,{"$f":"Import!I38796","v":0},null,{"$f":"Import!I38805","v":0},null,260,null,{"$f":"Import!I38814","v":0},null,{"$f":"Import!I38823","v":0},null,{"$f":"Import!I38832","v":0},null,{"$f":"Import!I38841","v":0},null,-0.75]
[null,42,"BSCR Rating 4",{"$f":"Import!I38779","v":0},null,{"$f":"Import!I38788","v":0},null,{"$f":"Import!I38797","v":0},null,{"$f":"Import!I38806","v":0},null,450,null,{"$f":"Import!I38815","v":0},null,{"$f":"Import!I38824","v":0},null,{"$f":"Import!I38833","v":0},null,{"$f":"Import!I38842","v":0},null,-0.75]
[null,43,"BSCR Rating 5",{"$f":"Import!I38780","v":0},null,{"$f":"Import!I38789","v":0},null,{"$f":"Import!I38798","v":0},null,{"$f":"Import!I38807","v":0},null,840,null,{"$f":"Import!I38816","v":0},null,{"$f":"Import!I38825","v":0},null,{"$f":"Import!I38834","v":0},null,{"$f":"Import!I38843","v":0},null,-0.75]
[null,44,"BSCR Rating 6",{"$f":"Import!I38781","v":0},null,{"$f":"Import!I38790","v":0},null,{"$f":"Import!I38799","v":0},null,{"$f":"Import!I38808","v":0},null,1620,null,{"$f":"Import!I38817","v":0},null,{"$f":"Import!I38826","v":0},null,{"$f":"Import!I38835","v":0},null,{"$f":"Import!I38844","v":0},null,-0.75]
[null,45,"BSCR Rating 7",{"$f":"Import!I38782","v":0},null,{"$f":"Import!I38791","v":0},null,{"$f":"Import!I38800","v":0},null,{"$f":"Import!I38809","v":0},null,1620,null,{"$f":"Import!I38818","v":0},null,{"$f":"Import!I38827","v":0},null,{"$f":"Import!I38836","v":0},null,{"$f":"Import!I38845","v":0},null,-0.75]
[null,46,"BSCR Rating 8",{"$f":"Import!I38783","v":0},null,{"$f":"Import!I38792","v":0},null,{"$f":"Import!I38801","v":0},null,{"$f":"Import!I38810","v":0},null,1620,null,{"$f":"Import!I38819","v":0},null,{"$f":"Import!I38828","v":0},null,{"$f":"Import!I38837","v":0},null,{"$f":"Import!I38846","v":0},null,-0.75]
[null,47,"Total Spread",{"$f":"SUM(D67:D76)","v":0},null,{"$f":"SUM(F67:F76)","v":0},null,{"$f":"SUM(H67:H76)","v":0},null,{"$f":"SUM(J67:J76)","v":0},null,null,null,{"$f":"SUM(N67:N76)","v":0},null,{"$f":"SUM(P67:P76)","v":0},null,{"$f":"SUM(R67:R76)","v":0},null,{"$f":"SUM(T67:T76)","v":0}]
[]
[null,null,"Spread Risk Check",null,null,null,null,null,null,null,null,null,null,{"$f":"IF(ROUND(D77-N77,0)=0,\"Yes\",\"No\")","v":"Yes"},null,null,null,{"$f":"IF(ROUND(H77-R77,0)=0,\"Yes\",\"No\")","v":"Yes"}]
[null,null,"Difference",null,null,null,null,null,null,null,null,null,null,{"$f":"ROUND(D77-N77,0)","v":0},null,null,null,{"$f":"ROUND(H77-R77,0)","v":0}]
[]
[null,null,null,"Market Value of Derivatives with Positive Market Value",null,"Market Value of Derivatives with Negative Market Value",null,"Market Value of Collateral, Excluding any over-collateralization",null,null,null,"This Section is Only Applicable to Companies that have Mortgage Backed Securities that have been Reclassified in Accordance with the NAIC and that elect to use NAIC reclassifications to map to the BSCR classes"]
[null,null,"Counterparty Default Risk for OTC Derivatives",null,null,null,null,null,null,null,null,null,"VALUES OF RESIDENTIAL MORTGAGE-BACKED SECURITIES",null,null,null,"VALUES OF COMMERCIAL MORTGAGE-BACKED SECURITIES / ASSET-BACKED SECURITIES"]
[null,{"$f":"B77+1","v":48},"BSCR Rating 0",{"$f":"Import!I38847","v":0},null,{"$f":"Import!I38856","v":0},null,{"$f":"Import!I38865","v":0},null,null,null,null,null,"Original Classification",null,"Revised Classification",null,"Original Classification",null,"Revised Classification"]
[null,{"$f":"B84+1","v":49},"BSCR Rating 1",{"$f":"Import!I38848","v":0},null,{"$f":"Import!I38857","v":0},null,{"$f":"Import!I38866","v":0},null,null,null,null,null,{"$f":"Import!I274","v":"00:00:00"},null,{"$f":"Import!I281","v":"00:00:00"},null,{"$f":"Import!I288","v":"00:00:00"},null,{"$f":"Import!I295","v":"00:00:00"}]
[null,{"$f":"B85+1","v":50},"BSCR Rating 2",{"$f":"Import!I38849","v":0},null,{"$f":"Import!I38858","v":0},null,{"$f":"Import!I38867","v":0},null,null,null,"NAIC Class 1",null,{"$f":"Import!I38875","v":0},null,{"$f":"Import!I38882","v":0},null,{"$f":"Import!I38889","v":0},null,{"$f":"Import!I38896","v":0}]
[null,51,"BSCR Rating 3",{"$f":"Import!I38850","v":0},null,{"$f":"Import!I38859","v":0},null,{"$f":"Import!I38868","v":0},null,null,null,"NAIC Class 2",null,{"$f":"Import!I38876","v":0},null,{"$f":"Import!I38883","v":0},null,{"$f":"Import!I38890","v":0},null,{"$f":"Import!I38897","v":0}]
[null,52,"BSCR Rating 4",{"$f":"Import!I38851","v":0},null,{"$f":"Import!I38860","v":0},null,{"$f":"Import!I38869","v":0},null,null,null,"NAIC Class 3",null,{"$f":"Import!I38877","v":0},null,{"$f":"Import!I38884","v":0},null,{"$f":"Import!I38891","v":0},null,{"$f":"Import!I38898","v":0}]
[null,53,"BSCR Rating 5",{"$f":"Import!I38852","v":0},null,{"$f":"Import!I38861","v":0},null,{"$f":"Import!I38870","v":0},null,null,null,"NAIC Class 4",null,{"$f":"Import!I38878","v":0},null,{"$f":"Import!I38885","v":0},null,{"$f":"Import!I38892","v":0},null,{"$f":"Import!I38899","v":0}]
[null,54,"BSCR Rating 6",{"$f":"Import!I38853","v":0},null,{"$f":"Import!I38862","v":0},null,{"$f":"Import!I38871","v":0},null,null,null,"NAIC Class 5",null,{"$f":"Import!I38879","v":0},null,{"$f":"Import!I38886","v":0},null,{"$f":"Import!I38893","v":0},null,{"$f":"Import!I38900","v":0}]
[null,55,"BSCR Rating 7",{"$f":"Import!I38854","v":0},null,{"$f":"Import!I38863","v":0},null,{"$f":"Import!I38872","v":0},null,null,null,"NAIC Class 6",null,{"$f":"Import!I38880","v":0},null,{"$f":"Import!I38887","v":0},null,{"$f":"Import!I38894","v":0},null,{"$f":"Import!I38901","v":0}]
[null,56,"BSCR Rating 8",{"$f":"Import!I38855","v":0},null,{"$f":"Import!I38864","v":0},null,{"$f":"Import!I38873","v":0},null,null,null,{"$f":"HYPERLINK(\"#'Attachments'!G55\",\"Attach file\")","v":"Attach file"},null,{"$f":"SUM(N86:N91)","v":0},null,{"$f":"SUM(P86:P91)","v":0},null,{"$f":"SUM(R86:R91)","v":0},null,{"$f":"SUM(T86:T91)","v":0}]
[null,57,"Total Default Risk for OTC Derivatives ",0,null,0,null,0]
[]
[null,{"$f":"B93+1","v":58},"Cash and Cash Equivalents",{"$f":"Import!I38874","v":0}]
[]
[null,{"$f":"B95+1","v":59},"Total Fixed Income & Equity Investments",{"$f":"X27+X62+D77+H77+D93+F93+H93+D95","v":0}]
[]
[null,null,"Please include in the table below any assets, included in this Schedule, for which NAIC ratings were used to map to the BSCR rating classes"]
[null,null,"Information on the use of NAIC ratings\n(for disclosure purposes only)","CORPORATE & SOVEREIGN BONDS",null,"RESIDENTIAL MORTGAGE-BACKED SECURITIES",null,"COMMERCIAL MORTGAGE-BACKED SECURITIES / ASSET-BACKED SECURITIES",null,"BOND MUTUAL FUNDS",null,"MORTGAGE LOANS",null,"PREFERRED STOCKS",null,"OTHER ASSETS"]
[null,null,"NAIC Class 1",{"$f":"Import!I38903","v":0},null,{"$f":"Import!I38910","v":0},null,{"$f":"Import!I38917","v":0},null,{"$f":"Import!I38924","v":0},null,{"$f":"Import!I38931","v":0},null,{"$f":"Import!I38938","v":0},null,{"$f":"Import!I38945","v":0}]
[null,null,"NAIC Class 2",{"$f":"Import!I38904","v":0},null,{"$f":"Import!I38911","v":0},null,{"$f":"Import!I38918","v":0},null,{"$f":"Import!I38925","v":0},null,{"$f":"Import!I38932","v":0},null,{"$f":"Import!I38939","v":0},null,{"$f":"Import!I38946","v":0}]
[null,null,"NAIC Class 3",{"$f":"Import!I38905","v":0},null,{"$f":"Import!I38912","v":0},null,{"$f":"Import!I38919","v":0},null,{"$f":"Import!I38926","v":0},null,{"$f":"Import!I38933","v":0},null,{"$f":"Import!I38940","v":0},null,{"$f":"Import!I38947","v":0}]
[null,null,"NAIC Class 4",{"$f":"Import!I38906","v":0},null,{"$f":"Import!I38913","v":0},null,{"$f":"Import!I38920","v":0},null,{"$f":"Import!I38927","v":0},null,{"$f":"Import!I38934","v":0},null,{"$f":"Import!I38941","v":0},null,{"$f":"Import!I38948","v":0}]
[null,null,"NAIC Class 5",{"$f":"Import!I38907","v":0},null,{"$f":"Import!I38914","v":0},null,{"$f":"Import!I38921","v":0},null,{"$f":"Import!I38928","v":0},null,{"$f":"Import!I38935","v":0},null,{"$f":"Import!I38942","v":0},null,{"$f":"Import!I38949","v":0}]
[null,null,"NAIC Class 6",{"$f":"Import!I38908","v":0},null,{"$f":"Import!I38915","v":0},null,{"$f":"Import!I38922","v":0},null,{"$f":"Import!I38929","v":0},null,{"$f":"Import!I38936","v":0},null,{"$f":"Import!I38943","v":0},null,{"$f":"Import!I38950","v":0}]
[null,null,null,{"$f":"SUM(D101:D106)","v":0},null,{"$f":"SUM(F101:F106)","v":0},null,{"$f":"SUM(H101:H106)","v":0},null,{"$f":"SUM(J101:J106)","v":0},null,{"$f":"SUM(L101:L106)","v":0},null,{"$f":"SUM(N101:N106)","v":0},null,{"$f":"SUM(P101:P106)","v":0}]

{"sheet":"Schedule IIC (EBS)","index":29,"n_rows":107,"n_cols":28,"rows_kept":107,"cut":false,"hidden":false,"merged":[[33,27,34,27],[3,3,3,5],[7,3,7,5],[7,7,7,9],[7,11,7,13],[7,15,7,17],[7,23,7,25],[7,19,7,21],[32,3,32,13],[33,3,34,5],[33,7,33,13],[33,15,34,15],[33,17,34,17],[33,19,34,19],[32,15,32,19],[33,23,34,23],[34,7,34,9],[34,11,34,13],[63,3,63,11],[63,13,63,21],[64,3,64,5],[64,7,64,9],[64,13,64,15],[64,17,64,19]]}
[null,"SCHEDULE OF FUNDS HELD",null,null,null,null,null,null,null,null,null,null,null,null,null,null,null,null,null,null,null,null,null,null,null,null,null,{"$f":"HYPERLINK(\"#'Index'!A1\",\"Return to Index\")","v":"Return to Index"}]
[]
[null,{"$f":"+'Group Information'!C9","v":"Enter Parent Company Name"}]
[null,"As at",null,{"$f":"+'Group Information'!C3","v":"2023-12-31"},null,null,null,null,null,null,null,null,null,null,null,null,null,null,null,null,null,null,null,null,null,"SCHEDULE IIC (EBS)"]
[null,{"$f":"+'Form 1EBS'!B4","v":"expressed in "},null,{"$f":"+'Form 1EBS'!C4","v":" ['000s]United States Dollars"}]
[]
[null,null,null,"(1)",null,"(2)",null,"(3)",null,"(4)",null,"(5)",null,"(6)",null,"(7)",null,"(8)",null,"(9)",null,"(10)",null,"(11)",null,"(12)"]
[null,null,null,"Corporate & Sovereign Bonds",null,null,null,"Residential Mortgage Backed Securities",null,null,null,"Commercial Mortgage Backed Securities / Asset- Backed Securities",null,null,null,"Bond Mutual Funds",null,null,null,"Mortgage Loans",null,null,null,"TOTAL"]
[null,null,null,{"$f":"+'Form 1EBS'!$F$7","v":"2023-12-31"},null,{"$f":"+'Form 1EBS'!$H$7","v":"2022-12-31"},null,{"$f":"+'Form 1EBS'!$F$7","v":"2023-12-31"},null,{"$f":"+'Form 1EBS'!$H$7","v":"2022-12-31"},null,{"$f":"+'Form 1EBS'!$F$7","v":"2023-12-31"},null,{"$f":"+'Form 1EBS'!$H$7","v":"2022-12-31"},null,{"$f":"+'Form 1EBS'!$F$7","v":"2023-12-31"},null,{"$f":"+'Form 1EBS'!$H$7","v":"2022-12-31"},null,{"$f":"+'Form 1EBS'!$F$7","v":"2023-12-31"},null,{"$f":"+'Form 1EBS'!$H$7","v":"2022-12-31"},null,{"$f":"D9","v":"2023-12-31"},null,{"$f":"F9","v":"2022-12-31"}]
[null,null,null,{"$f":"+'Form 1EBS'!$F$8","v":"('000)"},null,{"$f":"+'Form 1EBS'!$H$8","v":"('000)"},null,{"$f":"+'Form 1EBS'!$F$8","v":"('000)"},null,{"$f":"+'Form 1EBS'!$H$8","v":"('000)"},null,{"$f":"+'Form 1EBS'!$F$8","v":"('000)"},null,{"$f":"+'Form 1EBS'!$H$8","v":"('000)"},null,{"$f":"+'Form 1EBS'!$F$8","v":"('000)"},null,{"$f":"+'Form 1EBS'!$H$8","v":"('000)"},null,{"$f":"+'Form 1EBS'!$F$8","v":"('000)"},null,{"$f":"+'Form 1EBS'!$H$8","v":"('000)"},null,{"$f":"+'Form 1EBS'!$F$8","v":"('000)"},null,{"$f":"+'Form 1EBS'!$H$8","v":"('000)"}]
[null,"Line no. "]
[null,"Quoted and Unquoted Bonds and Debentures"]
[null,1,"BSCR Rating 0",{"$f":"Import!I38953","v":0},null,{"$f":"Import!K38953","v":0},null,null,null,null,null,null,null,null,null,{"$f":"Import!I38978","v":0},null,{"$f":"Import!K38978","v":0},null,null,null,null,null,{"$f":"D13+H13+L13+P13","v":0},null,{"$f":"F13+J13+N13+R13","v":0}]
[null,{"$f":"B13+1","v":2},"BSCR Rating 1",{"$f":"Import!I38954","v":0},null,{"$f":"Import!K38954","v":0},null,{"$f":"Import!I38962","v":0},null,{"$f":"Import!K38962","v":0},null,{"$f":"Import!I38970","v":0},null,{"$f":"Import!K38970","v":0},null,{"$f":"Import!I38979","v":0},null,{"$f":"Import!K38979","v":0},null,null,null,null,null,{"$f":"D14+H14+L14+P14","v":0},null,0]
[null,{"$f":"B14+1","v":3},"BSCR Rating 2",{"$f":"Import!I38955","v":0},null,{"$f":"Import!K38955","v":0},null,{"$f":"Import!I38963","v":0},null,{"$f":"Import!K38963","v":0},null,{"$f":"Import!I38971","v":0},null,{"$f":"Import!K38971","v":0},null,{"$f":"Import!I38980","v":0},null,{"$f":"Import!K38980","v":0},null,null,null,null,null,0,null,0]
[null,4,"BSCR Rating 3",{"$f":"Import!I38956","v":0},null,{"$f":"Import!K38956","v":0},null,{"$f":"Import!I38964","v":0},null,{"$f":"Import!K38964","v":0},null,{"$f":"Import!I38972","v":0},null,{"$f":"Import!K38972","v":0},null,{"$f":"Import!I38981","v":0},null,{"$f":"Import!K38981","v":0},null,null,null,null,null,0,null,0]
[null,5,"BSCR Rating 4",{"$f":"Import!I38957","v":0},null,{"$f":"Import!K38957","v":0},null,{"$f":"Import!I38965","v":0},null,{"$f":"Import!K38965","v":0},null,{"$f":"Import!I38973","v":0},null,{"$f":"Import!K38973","v":0},null,{"$f":"Import!I38982","v":0},null,{"$f":"Import!K38982","v":0},null,null,null,null,null,0,null,0]
[null,6,"BSCR Rating 5",{"$f":"Import!I38958","v":0},null,{"$f":"Import!K38958","v":0},null,{"$f":"Import!I38966","v":0},null,{"$f":"Import!K38966","v":0},null,{"$f":"Import!I38974","v":0},null,{"$f":"Import!K38974","v":0},null,{"$f":"Import!I38983","v":0},null,{"$f":"Import!K38983","v":0},null,null,null,null,null,0,null,0]
[null,7,"BSCR Rating 6",{"$f":"Import!I38959","v":0},null,{"$f":"Import!K38959","v":0},null,{"$f":"Import!I38967","v":0},null,{"$f":"Import!K38967","v":0},null,{"$f":"Import!I38975","v":0},null,{"$f":"Import!K38975","v":0},null,{"$f":"Import!I38984","v":0},null,{"$f":"Import!K38984","v":0},null,null,null,null,null,0,null,0]
[null,8,"BSCR Rating 7",{"$f":"Import!I38960","v":0},null,{"$f":"Import!K38960","v":0},null,{"$f":"Import!I38968","v":0},null,{"$f":"Import!K38968","v":0},null,{"$f":"Import!I38976","v":0},null,{"$f":"Import!K38976","v":0},null,{"$f":"Import!I38985","v":0},null,{"$f":"Import!K38985","v":0},null,null,null,null,null,0,null,0]
[null,9,"BSCR Rating 8",{"$f":"Import!I38961","v":0},null,{"$f":"Import!K38961","v":0},null,{"$f":"Import!I38969","v":0},null,{"$f":"Import!K38969","v":0},null,{"$f":"Import!I38977","v":0},null,{"$f":"Import!K38977","v":0},null,{"$f":"Import!I38986","v":0},null,{"$f":"Import!K38986","v":0},null,null,null,null,null,{"$f":"D21+H21+L21+P21","v":0},null,{"$f":"F21+J21+N21+R21","v":0}]
[null,10,"Insured/Guaranteed Mortgages",null,null,null,null,null,null,null,null,null,null,null,null,null,null,null,null,{"$f":"Import!I38987","v":0},null,{"$f":"Import!K38987","v":0},null,{"$f":"D22+H22+L22+P22+T22","v":0},null,{"$f":"F22+J22+N22+R22+V22","v":0}]
[null,11,"Other Commercial and Farm Mortgages",null,null,null,null,null,null,null,null,null,null,null,null,null,null,null,null,{"$f":"Import!I38988","v":0},null,{"$f":"Import!K38988","v":0},null,{"$f":"D23+H23+L23+P23+T23","v":0},null,0]
[null,12,"Other Residential Mortgages",null,null,null,null,null,null,null,null,null,null,null,null,null,null,null,null,{"$f":"Import!I38989","v":0},null,{"$f":"Import!K38989","v":0},null,0,null,0]
[null,13,"Mortgages Not In Good Standing",null,null,null,null,null,null,null,null,null,null,null,null,null,null,null,null,{"$f":"Import!I38990","v":0},null,{"$f":"Import!K38990","v":0},null,0,null,0]
[]
[null,{"$f":"B25+1","v":14},"Total",{"$f":"SUM(D13:D21)","v":0},null,{"$f":"SUM(F13:F21)","v":0},null,{"$f":"SUM(H13:H21)","v":0},null,{"$f":"SUM(J13:J21)","v":0},null,{"$f":"SUM(L13:L21)","v":0},null,{"$f":"SUM(N13:N21)","v":0},null,{"$f":"SUM(P13:P21)","v":0},null,{"$f":"SUM(R13:R21)","v":0},null,{"$f":"SUM(T13:T26)","v":0},null,{"$f":"SUM(V13:V26)","v":0},null,{"$f":"SUM(X13:X26)","v":0},null,{"$f":"SUM(Z13:Z26)","v":0}]
[]
[]
[]
[]
[]
[null,null,null,"ASSETS",null,null,null,null,null,null,null,null,null,null,null,"Liabilities"]
[null,null,null,"Long Exposures",null,null,null,"Short Exposures",null,null,null,null,null,null,null,null,null,"Without Management Actions",null,"With Management Actions",null,null,null,"Total Assets Before Shock",null,null,null,"Shocks"]
[null,null,null,null,null,null,null,"Qualifying as Assets held for risk-mitigation purposes",null,null,null,"Not Qualifying as Assets held for risk-mitigation purposes",null,null,null,null,null,null,null,null,null,null,null,null,null,null,null,"Shocks"]
[null,null,null,"Before Shock",null,"After Shock",null,"Before Shock",null,"After Shock",null,"Before Shock",null,"After Shock",null,"Before Shock",null,"After Shock",null,"After Shock"]
[null,null,null,{"$f":"+'Form 1EBS'!$F$8","v":"('000)"},null,{"$f":"+'Form 1EBS'!$H$8","v":"('000)"},null,{"$f":"+'Form 1EBS'!$F$8","v":"('000)"},null,{"$f":"+'Form 1EBS'!$H$8","v":"('000)"},null,{"$f":"+'Form 1EBS'!$F$8","v":"('000)"},null,{"$f":"+'Form 1EBS'!$H$8","v":"('000)"},null,{"$f":"+'Form 1EBS'!$F$8","v":"('000)"},null,{"$f":"+'Form 1EBS'!$H$8","v":"('000)"},null,{"$f":"+'Form 1EBS'!$H$8","v":"('000)"},null,null,null,{"$f":"+'Form 1EBS'!$F$8","v":"('000)"}]
[null,"Equity Holdings "]
[null,{"$f":"B27+1","v":15},"Strategic Holdings - Listed",{"$f":"Import!I38991","v":0},null,{"$f":"IF(OR(Import!I39013=0,Import!I39013=\"\"),(1-$AB39)*D39,Import!I39013)","v":0},null,{"$f":"Import!I39035","v":0},null,{"$f":"IF(OR(Import!I39057=0,Import!I39057=\"\"),(1-$AB39)*H39,Import!I39057)","v":0},null,{"$f":"Import!I39079","v":0},null,{"$f":"IF(OR(Import!I39101=0,Import!I39101=\"\"),(1-$AB39)*L39,Import!I39101)","v":0},null,{"$f":"Import!I39123","v":0},null,{"$f":"IF(OR(Import!I39145=0,Import!I39145=\"\"),P39,Import!I39145)","v":0},null,{"$f":"IF(OR(Import!I39167=0,Import!I39167=\"\"),R39,Import!I39167)","v":0},null,null,null,{"$f":"D39+H39+L39","v":0},null,null,null,0.2]
[null,{"$f":"B39+1","v":16},"Duration Based",{"$f":"Import!I38992","v":0},null,{"$f":"IF(OR(Import!I39014=0,Import!I39014=\"\"),(1-$AB40)*D40,Import!I39014)","v":0},null,{"$f":"Import!I39036","v":0},null,{"$f":"IF(OR(Import!I39058=0,Import!I39058=\"\"),(1-$AB40)*H40,Import!I39058)","v":0},null,{"$f":"Import!I39080","v":0},null,{"$f":"IF(OR(Import!I39102=0,Import!I39102=\"\"),(1-$AB40)*L40,Import!I39102)","v":0},null,{"$f":"Import!I39124","v":0},null,{"$f":"IF(OR(Import!I39146=0,Import!I39146=\"\"),P40,Import!I39146)","v":0},null,{"$f":"IF(OR(Import!I39168=0,Import!I39168=\"\"),R40,Import!I39168)","v":0},null,null,null,{"$f":"D40+H40+L40","v":0},null,null,null,0.2]
[null,17,"Listed Equity Securities in Developed Markets",{"$f":"Import!I38993","v":0},null,{"$f":"IF(OR(Import!I39015=0,Import!I39015=\"\"),(1-$AB41)*D41,Import!I39015)","v":0},null,{"$f":"Import!I39037","v":0},null,{"$f":"IF(OR(Import!I39059=0,Import!I39059=\"\"),(1-$AB41)*H41,Import!I39059)","v":0},null,{"$f":"Import!I39081","v":0},null,{"$f":"IF(OR(Import!I39103=0,Import!I39103=\"\"),(1-$AB41)*L41,Import!I39103)","v":0},null,{"$f":"Import!I39125","v":0},null,{"$f":"IF(OR(Import!I39147=0,Import!I39147=\"\"),P41,Import!I39147)","v":0},null,{"$f":"IF(OR(Import!I39169=0,Import!I39169=\"\"),R41,Import!I39169)","v":0},null,null,null,0,null,null,null,0.35]
[null,18,"Preferred Stocks, BSCR Rating 1",{"$f":"Import!I38994","v":0},null,{"$f":"IF(OR(Import!I39016=0,Import!I39016=\"\"),(1-$AB42)*D42,Import!I39016)","v":0},null,{"$f":"Import!I39038","v":0},null,{"$f":"IF(OR(Import!I39060=0,Import!I39060=\"\"),(1-$AB42)*H42,Import!I39060)","v":0},null,{"$f":"Import!I39082","v":0},null,{"$f":"IF(OR(Import!I39104=0,Import!I39104=\"\"),(1-$AB42)*L42,Import!I39104)","v":0},null,{"$f":"Import!I39126","v":0},null,{"$f":"IF(OR(Import!I39148=0,Import!I39148=\"\"),P42,Import!I39148)","v":0},null,{"$f":"IF(OR(Import!I39170=0,Import!I39170=\"\"),R42,Import!I39170)","v":0},null,null,null,0,null,null,null,6.0000000000000001E-3]
[null,19,"Preferred Stocks, BSCR Rating 2",{"$f":"Import!I38995","v":0},null,{"$f":"IF(OR(Import!I39017=0,Import!I39017=\"\"),(1-$AB43)*D43,Import!I39017)","v":0},null,{"$f":"Import!I39039","v":0},null,{"$f":"IF(OR(Import!I39061=0,Import!I39061=\"\"),(1-$AB43)*H43,Import!I39061)","v":0},null,{"$f":"Import!I39083","v":0},null,{"$f":"IF(OR(Import!I39105=0,Import!I39105=\"\"),(1-$AB43)*L43,Import!I39105)","v":0},null,{"$f":"Import!I39127","v":0},null,{"$f":"IF(OR(Import!I39149=0,Import!I39149=\"\"),P43,Import!I39149)","v":0},null,{"$f":"IF(OR(Import!I39171=0,Import!I39171=\"\"),R43,Import!I39171)","v":0},null,null,null,0,null,null,null,1.2E-2]
[null,20,"Preferred Stocks, BSCR Rating 3",{"$f":"Import!I38996","v":0},null,{"$f":"IF(OR(Import!I39018=0,Import!I39018=\"\"),(1-$AB44)*D44,Import!I39018)","v":0},null,{"$f":"Import!I39040","v":0},null,{"$f":"IF(OR(Import!I39062=0,Import!I39062=\"\"),(1-$AB44)*H44,Import!I39062)","v":0},null,{"$f":"Import!I39084","v":0},null,{"$f":"IF(OR(Import!I39106=0,Import!I39106=\"\"),(1-$AB44)*L44,Import!I39106)","v":0},null,{"$f":"Import!I39128","v":0},null,{"$f":"IF(OR(Import!I39150=0,Import!I39150=\"\"),P44,Import!I39150)","v":0},null,{"$f":"IF(OR(Import!I39172=0,Import!I39172=\"\"),R44,Import!I39172)","v":0},null,null,null,0,null,null,null,0.02]
[null,21,"Preferred Stocks, BSCR Rating 4",{"$f":"Import!I38997","v":0},null,{"$f":"IF(OR(Import!I39019=0,Import!I39019=\"\"),(1-$AB45)*D45,Import!I39019)","v":0},null,{"$f":"Import!I39041","v":0},null,{"$f":"IF(OR(Import!I39063=0,Import!I39063=\"\"),(1-$AB45)*H45,Import!I39063)","v":0},null,{"$f":"Import!I39085","v":0},null,{"$f":"IF(OR(Import!I39107=0,Import!I39107=\"\"),(1-$AB45)*L45,Import!I39107)","v":0},null,{"$f":"Import!I39129","v":0},null,{"$f":"IF(OR(Import!I39151=0,Import!I39151=\"\"),P45,Import!I39151)","v":0},null,{"$f":"IF(OR(Import!I39173=0,Import!I39173=\"\"),R45,Import!I39173)","v":0},null,null,null,0,null,null,null,0.04]
[null,22,"Preferred Stocks, BSCR Rating 5",{"$f":"Import!I38998","v":0},null,{"$f":"IF(OR(Import!I39020=0,Import!I39020=\"\"),(1-$AB46)*D46,Import!I39020)","v":0},null,{"$f":"Import!I39042","v":0},null,{"$f":"IF(OR(Import!I39064=0,Import!I39064=\"\"),(1-$AB46)*H46,Import!I39064)","v":0},null,{"$f":"Import!I39086","v":0},null,{"$f":"IF(OR(Import!I39108=0,Import!I39108=\"\"),(1-$AB46)*L46,Import!I39108)","v":0},null,{"$f":"Import!I39130","v":0},null,{"$f":"IF(OR(Import!I39152=0,Import!I39152=\"\"),P46,Import!I39152)","v":0},null,{"$f":"IF(OR(Import!I39174=0,Import!I39174=\"\"),R46,Import!I39174)","v":0},null,null,null,0,null,null,null,0.11]
[null,23,"Preferred Stocks, BSCR Rating 6",{"$f":"Import!I38999","v":0},null,{"$f":"IF(OR(Import!I39021=0,Import!I39021=\"\"),(1-$AB47)*D47,Import!I39021)","v":0},null,{"$f":"Import!I39043","v":0},null,{"$f":"IF(OR(Import!I39065=0,Import!I39065=\"\"),(1-$AB47)*H47,Import!I39065)","v":0},null,{"$f":"Import!I39087","v":0},null,{"$f":"IF(OR(Import!I39109=0,Import!I39109=\"\"),(1-$AB47)*L47,Import!I39109)","v":0},null,{"$f":"Import!I39131","v":0},null,{"$f":"IF(OR(Import!I39153=0,Import!I39153=\"\"),P47,Import!I39153)","v":0},null,{"$f":"IF(OR(Import!I39175=0,Import!I39175=\"\"),R47,Import!I39175)","v":0},null,null,null,0,null,null,null,0.25]
[null,24,"Preferred Stocks, BSCR Rating 7",{"$f":"Import!I39000","v":0},null,{"$f":"IF(OR(Import!I39022=0,Import!I39022=\"\"),(1-$AB48)*D48,Import!I39022)","v":0},null,{"$f":"Import!I39044","v":0},null,{"$f":"IF(OR(Import!I39066=0,Import!I39066=\"\"),(1-$AB48)*H48,Import!I39066)","v":0},null,{"$f":"Import!I39088","v":0},null,{"$f":"IF(OR(Import!I39110=0,Import!I39110=\"\"),(1-$AB48)*L48,Import!I39110)","v":0},null,{"$f":"Import!I39132","v":0},null,{"$f":"IF(OR(Import!I39154=0,Import!I39154=\"\"),P48,Import!I39154)","v":0},null,{"$f":"IF(OR(Import!I39176=0,Import!I39176=\"\"),R48,Import!I39176)","v":0},null,null,null,0,null,null,null,0.35]
[null,25,"Preferred Stocks, BSCR Rating 8",{"$f":"Import!I39001","v":0},null,{"$f":"IF(OR(Import!I39023=0,Import!I39023=\"\"),(1-$AB49)*D49,Import!I39023)","v":0},null,{"$f":"Import!I39045","v":0},null,{"$f":"IF(OR(Import!I39067=0,Import!I39067=\"\"),(1-$AB49)*H49,Import!I39067)","v":0},null,{"$f":"Import!I39089","v":0},null,{"$f":"IF(OR(Import!I39111=0,Import!I39111=\"\"),(1-$AB49)*L49,Import!I39111)","v":0},null,{"$f":"Import!I39133","v":0},null,{"$f":"IF(OR(Import!I39155=0,Import!I39155=\"\"),P49,Import!I39155)","v":0},null,{"$f":"IF(OR(Import!I39177=0,Import!I39177=\"\"),R49,Import!I39177)","v":0},null,null,null,0,null,null,null,0.35]
[null,26,"Equity Derivatives on Type 1 Equities",{"$f":"Import!I39002","v":0},null,{"$f":"Import!I39024","v":0},null,{"$f":"Import!I39046","v":0},null,{"$f":"Import!I39068","v":0},null,{"$f":"Import!I39090","v":0},null,{"$f":"Import!I39112","v":0},null,{"$f":"Import!I39134","v":0},null,{"$f":"IF(OR(Import!I39156=0,Import!I39156=\"\"),P50,Import!I39156)","v":0},null,{"$f":"IF(OR(Import!I39178=0,Import!I39178=\"\"),R50,Import!I39178)","v":0},null,null,null,0,null,null,null,0.35]
[null,27,"Strategic Holdings - Unlisted",{"$f":"Import!I39003","v":0},null,{"$f":"IF(OR(Import!I39025=0,Import!I39025=\"\"),(1-$AB51)*D51,Import!I39025)","v":0},null,{"$f":"Import!I39047","v":0},null,{"$f":"IF(OR(Import!I39069=0,Import!I39069=\"\"),(1-$AB51)*H51,Import!I39069)","v":0},null,{"$f":"Import!I39091","v":0},null,{"$f":"IF(OR(Import!I39113=0,Import!I39113=\"\"),(1-$AB51)*L51,Import!I39113)","v":0},null,{"$f":"Import!I39135","v":0},null,{"$f":"IF(OR(Import!I39157=0,Import!I39157=\"\"),P51,Import!I39157)","v":0},null,{"$f":"IF(OR(Import!I39179=0,Import!I39179=\"\"),R51,Import!I39179)","v":0},null,null,null,0,null,null,null,0.2]
[null,28,"Other Equities / Other Assets",{"$f":"Import!I39004","v":0},null,{"$f":"IF(OR(Import!I39026=0,Import!I39026=\"\"),(1-$AB52)*D52,Import!I39026)","v":0},null,{"$f":"Import!I39048","v":0},null,{"$f":"IF(OR(Import!I39070=0,Import!I39070=\"\"),(1-$AB52)*H52,Import!I39070)","v":0},null,{"$f":"Import!I39092","v":0},null,{"$f":"IF(OR(Import!I39114=0,Import!I39114=\"\"),(1-$AB52)*L52,Import!I39114)","v":0},null,{"$f":"Import!I39136","v":0},null,{"$f":"IF(OR(Import!I39158=0,Import!I39158=\"\"),P52,Import!I39158)","v":0},null,{"$f":"IF(OR(Import!I39180=0,Import!I39180=\"\"),R52,Import!I39180)","v":0},null,null,null,0,null,null,null,0.45]
[null,29,"Letters of Credit",{"$f":"Import!I39005","v":0},null,{"$f":"IF(OR(Import!I39027=0,Import!I39027=\"\"),(1-$AB53)*D53,Import!I39027)","v":0},null,{"$f":"Import!I39049","v":0},null,{"$f":"IF(OR(Import!I39071=0,Import!I39071=\"\"),(1-$AB53)*H53,Import!I39071)","v":0},null,{"$f":"Import!I39093","v":0},null,{"$f":"IF(OR(Import!I39115=0,Import!I39115=\"\"),(1-$AB53)*L53,Import!I39115)","v":0},null,{"$f":"Import!I39137","v":0},null,{"$f":"IF(OR(Import!I39159=0,Import!I39159=\"\"),P53,Import!I39159)","v":0},null,{"$f":"IF(OR(Import!I39181=0,Import!I39181=\"\"),R53,Import!I39181)","v":0},null,null,null,0,null,null,null,0.2]
[null,30,"Intangible assets",{"$f":"Import!I39006","v":0},null,{"$f":"IF(OR(Import!I39028=0,Import!I39028=\"\"),(1-$AB54)*D54,Import!I39028)","v":0},null,{"$f":"Import!I39050","v":0},null,{"$f":"IF(OR(Import!I39072=0,Import!I39072=\"\"),(1-$AB54)*H54,Import!I39072)","v":0},null,{"$f":"Import!I39094","v":0},null,{"$f":"IF(OR(Import!I39116=0,Import!I39116=\"\"),(1-$AB54)*L54,Import!I39116)","v":0},null,{"$f":"Import!I39138","v":0},null,{"$f":"IF(OR(Import!I39160=0,Import!I39160=\"\"),P54,Import!I39160)","v":0},null,{"$f":"IF(OR(Import!I39182=0,Import!I39182=\"\"),R54,Import!I39182)","v":0},null,null,null,0,null,null,null,0.2]
[null,31,"Pension Benefit Surplus",{"$f":"Import!I39007","v":0},null,{"$f":"IF(OR(Import!I39029=0,Import!I39029=\"\"),(1-$AB55)*D55,Import!I39029)","v":0},null,{"$f":"Import!I39051","v":0},null,{"$f":"IF(OR(Import!I39073=0,Import!I39073=\"\"),(1-$AB55)*H55,Import!I39073)","v":0},null,{"$f":"Import!I39095","v":0},null,{"$f":"IF(OR(Import!I39117=0,Import!I39117=\"\"),(1-$AB55)*L55,Import!I39117)","v":0},null,{"$f":"Import!I39139","v":0},null,{"$f":"IF(OR(Import!I39161=0,Import!I39161=\"\"),P55,Import!I39161)","v":0},null,{"$f":"IF(OR(Import!I39183=0,Import!I39183=\"\"),R55,Import!I39183)","v":0},null,null,null,0,null,null,null,0.2]
[null,32,"Equity Derivatives on Type 2 Equities",{"$f":"Import!I39008","v":0},null,{"$f":"Import!I39030","v":0},null,{"$f":"Import!I39052","v":0},null,{"$f":"Import!I39074","v":0},null,{"$f":"Import!I39096","v":0},null,{"$f":"Import!I39118","v":0},null,{"$f":"Import!I39140","v":0},null,{"$f":"IF(OR(Import!I39162=0,Import!I39162=\"\"),P56,Import!I39162)","v":0},null,{"$f":"IF(OR(Import!I39184=0,Import!I39184=\"\"),R56,Import!I39184)","v":0},null,null,null,0,null,null,null,0.45]
[null,33,"Infrastructure",{"$f":"Import!I39009","v":0},null,{"$f":"IF(OR(Import!I39031=0,Import!I39031=\"\"),(1-$AB57)*D57,Import!I39031)","v":0},null,{"$f":"Import!I39053","v":0},null,{"$f":"IF(OR(Import!I39075=0,Import!I39075=\"\"),(1-$AB57)*H57,Import!I39075)","v":0},null,{"$f":"Import!I39097","v":0},null,{"$f":"IF(OR(Import!I39119=0,Import!I39119=\"\"),(1-$AB57)*L57,Import!I39119)","v":0},null,{"$f":"Import!I39141","v":0},null,{"$f":"IF(OR(Import!I39163=0,Import!I39163=\"\"),P57,Import!I39163)","v":0},null,{"$f":"IF(OR(Import!I39185=0,Import!I39185=\"\"),R57,Import!I39185)","v":0},null,null,null,0,null,null,null,0.25]
[null,34,"Derivatives on Infrastructure",{"$f":"Import!I39010","v":0},null,{"$f":"Import!I39032","v":0},null,{"$f":"Import!I39054","v":0},null,{"$f":"Import!I39076","v":0},null,{"$f":"Import!I39098","v":0},null,{"$f":"Import!I39120","v":0},null,{"$f":"Import!I39142","v":0},null,{"$f":"IF(OR(Import!I39164=0,Import!I39164=\"\"),P58,Import!I39164)","v":0},null,{"$f":"IF(OR(Import!I39186=0,Import!I39186=\"\"),R58,Import!I39186)","v":0},null,null,null,0,null,null,null,0.25]
[null,35,"Equity Real Estate 1",{"$f":"Import!I39011","v":0},null,{"$f":"IF(OR(Import!I39033=0,Import!I39033=\"\"),(1-$AB59)*D59,Import!I39033)","v":0},null,{"$f":"Import!I39055","v":0},null,{"$f":"IF(OR(Import!I39077=0,Import!I39077=\"\"),(1-$AB59)*H59,Import!I39077)","v":0},null,{"$f":"Import!I39099","v":0},null,{"$f":"IF(OR(Import!I39121=0,Import!I39121=\"\"),(1-$AB59)*L59,Import!I39121)","v":0},null,{"$f":"Import!I39143","v":0},null,{"$f":"IF(OR(Import!I39165=0,Import!I39165=\"\"),P59,Import!I39165)","v":0},null,{"$f":"IF(OR(Import!I39187=0,Import!I39187=\"\"),R59,Import!I39187)","v":0},null,null,null,0,null,null,null,0.1]
[null,36,"Equity Real Estate 2",{"$f":"Import!I39012","v":0},null,{"$f":"IF(OR(Import!I39034=0,Import!I39034=\"\"),(1-$AB60)*D60,Import!I39034)","v":0},null,{"$f":"Import!I39056","v":0},null,{"$f":"IF(OR(Import!I39078=0,Import!I39078=\"\"),(1-$AB60)*H60,Import!I39078)","v":0},null,{"$f":"Import!I39100","v":0},null,{"$f":"IF(OR(Import!I39122=0,Import!I39122=\"\"),(1-$AB60)*L60,Import!I39122)","v":0},null,{"$f":"Import!I39144","v":0},null,{"$f":"IF(OR(Import!I39166=0,Import!I39166=\"\"),P60,Import!I39166)","v":0},null,{"$f":"IF(OR(Import!I39188=0,Import!I39188=\"\"),R60,Import!I39188)","v":0},null,null,null,0,null,null,null,0.2]
[]
[null,{"$f":"B60+1","v":37},"Total Equity Holdings",{"$f":"SUM(D38:D61)","v":0},null,{"$f":"SUM(F38:F61)","v":0},null,{"$f":"SUM(H38:H61)","v":0},null,{"$f":"SUM(J38:J61)","v":0},null,{"$f":"SUM(L38:L61)","v":0},null,{"$f":"SUM(N38:N61)","v":0},null,{"$f":"SUM(P38:P61)","v":0},null,{"$f":"SUM(R38:R61)","v":0},null,{"$f":"SUM(T38:T61)","v":0},null,null,null,{"$f":"SUM(X38:X61)","v":0}]
[]
[null,null,null,"Spread Up",null,null,null,null,null,null,null,null,null,"Spread Down"]
[null,null,null,"Long Exposures",null,null,null,"Short Exposures",null,null,null,"Shock (bps)",null,"Long Exposures",null,null,null,"Short Exposures",null,null,null,"Shock Rates"]
[null,null,null,"Before Shock",null,"After Shock",null,"Before Shock",null,"After Shock",null,null,null,"Before Shock",null,"After Shock",null,"Before Shock",null,"After Shock"]
[null,null,"Spread Risk for Credit Derivatives"]
[null,{"$f":"B62+1","v":38},"BSCR Rating 0",{"$f":"Import!I39189","v":0},null,{"$f":"Import!I39198","v":0},null,{"$f":"Import!I39207","v":0},null,{"$f":"Import!I39216","v":0},null,0,null,{"$f":"Import!I39225","v":0},null,{"$f":"Import!I39234","v":0},null,{"$f":"Import!I39243","v":0},null,{"$f":"Import!I39252","v":0},null,0]
[null,{"$f":"B68+1","v":39},"BSCR Rating 1",{"$f":"Import!I39190","v":0},null,{"$f":"Import!I39199","v":0},null,{"$f":"Import!I39208","v":0},null,{"$f":"Import!I39217","v":0},null,130,null,{"$f":"Import!I39226","v":0},null,{"$f":"Import!I39235","v":0},null,{"$f":"Import!I39244","v":0},null,{"$f":"Import!I39253","v":0},null,-0.75]
[null,{"$f":"B69+1","v":40},"BSCR Rating 2",{"$f":"Import!I39191","v":0},null,{"$f":"Import!I39200","v":0},null,{"$f":"Import!I39209","v":0},null,{"$f":"Import!I39218","v":0},null,150,null,{"$f":"Import!I39227","v":0},null,{"$f":"Import!I39236","v":0},null,{"$f":"Import!I39245","v":0},null,{"$f":"Import!I39254","v":0},null,-0.75]
[null,41,"BSCR Rating 3",{"$f":"Import!I39192","v":0},null,{"$f":"Import!I39201","v":0},null,{"$f":"Import!I39210","v":0},null,{"$f":"Import!I39219","v":0},null,260,null,{"$f":"Import!I39228","v":0},null,{"$f":"Import!I39237","v":0},null,{"$f":"Import!I39246","v":0},null,{"$f":"Import!I39255","v":0},null,-0.75]
[null,42,"BSCR Rating 4",{"$f":"Import!I39193","v":0},null,{"$f":"Import!I39202","v":0},null,{"$f":"Import!I39211","v":0},null,{"$f":"Import!I39220","v":0},null,450,null,{"$f":"Import!I39229","v":0},null,{"$f":"Import!I39238","v":0},null,{"$f":"Import!I39247","v":0},null,{"$f":"Import!I39256","v":0},null,-0.75]
[null,43,"BSCR Rating 5",{"$f":"Import!I39194","v":0},null,{"$f":"Import!I39203","v":0},null,{"$f":"Import!I39212","v":0},null,{"$f":"Import!I39221","v":0},null,840,null,{"$f":"Import!I39230","v":0},null,{"$f":"Import!I39239","v":0},null,{"$f":"Import!I39248","v":0},null,{"$f":"Import!I39257","v":0},null,-0.75]
[null,44,"BSCR Rating 6",{"$f":"Import!I39195","v":0},null,{"$f":"Import!I39204","v":0},null,{"$f":"Import!I39213","v":0},null,{"$f":"Import!I39222","v":0},null,1620,null,{"$f":"Import!I39231","v":0},null,{"$f":"Import!I39240","v":0},null,{"$f":"Import!I39249","v":0},null,{"$f":"Import!I39258","v":0},null,-0.75]
[null,45,"BSCR Rating 7",{"$f":"Import!I39196","v":0},null,{"$f":"Import!I39205","v":0},null,{"$f":"Import!I39214","v":0},null,{"$f":"Import!I39223","v":0},null,1620,null,{"$f":"Import!I39232","v":0},null,{"$f":"Import!I39241","v":0},null,{"$f":"Import!I39250","v":0},null,{"$f":"Import!I39259","v":0},null,-0.75]
[null,46,"BSCR Rating 8",{"$f":"Import!I39197","v":0},null,{"$f":"Import!I39206","v":0},null,{"$f":"Import!I39215","v":0},null,{"$f":"Import!I39224","v":0},null,1620,null,{"$f":"Import!I39233","v":0},null,{"$f":"Import!I39242","v":0},null,{"$f":"Import!I39251","v":0},null,{"$f":"Import!I39260","v":0},null,-0.75]
[null,47,"Total Spread",{"$f":"SUM(D67:D76)","v":0},null,{"$f":"SUM(F67:F76)","v":0},null,{"$f":"SUM(H67:H76)","v":0},null,{"$f":"SUM(J67:J76)","v":0},null,null,null,{"$f":"SUM(N67:N76)","v":0},null,{"$f":"SUM(P67:P76)","v":0},null,{"$f":"SUM(R67:R76)","v":0},null,{"$f":"SUM(T67:T76)","v":0}]
[]
[null,null,"Spread Risk Check",null,null,null,null,null,null,null,null,null,null,{"$f":"IF(ROUND(D77-N77,0)=0,\"Yes\",\"No\")","v":"Yes"},null,null,null,{"$f":"IF(ROUND(H77-R77,0)=0,\"Yes\",\"No\")","v":"Yes"}]
[null,null,"Difference",null,null,null,null,null,null,null,null,null,null,{"$f":"ROUND(D77-N77,0)","v":0},null,null,null,{"$f":"ROUND(H77-R77,0)","v":0}]
[]
[null,null,null,"Market Value of Derivatives with Positive Market Value",null,"Market Value of Derivatives with Negative Market Value",null,"Market Value of Collateral, Excluding any over-collateralization"]
[null,null,"Counterparty Default Risk for OTC Derivatives"]
[null,{"$f":"B77+1","v":48},"BSCR Rating 0",{"$f":"Import!I39261","v":0},null,{"$f":"Import!I39270","v":0},null,{"$f":"Import!I39279","v":0}]
[null,{"$f":"B84+1","v":49},"BSCR Rating 1",{"$f":"Import!I39262","v":0},null,{"$f":"Import!I39271","v":0},null,{"$f":"Import!I39280","v":0}]
[null,{"$f":"B85+1","v":50},"BSCR Rating 2",{"$f":"Import!I39263","v":0},null,{"$f":"Import!I39272","v":0},null,{"$f":"Import!I39281","v":0}]
[null,51,"BSCR Rating 3",{"$f":"Import!I39264","v":0},null,{"$f":"Import!I39273","v":0},null,{"$f":"Import!I39282","v":0}]
[null,52,"BSCR Rating 4",{"$f":"Import!I39265","v":0},null,{"$f":"Import!I39274","v":0},null,{"$f":"Import!I39283","v":0}]
[null,53,"BSCR Rating 5",{"$f":"Import!I39266","v":0},null,{"$f":"Import!I39275","v":0},null,{"$f":"Import!I39284","v":0}]
[null,54,"BSCR Rating 6",{"$f":"Import!I39267","v":0},null,{"$f":"Import!I39276","v":0},null,{"$f":"Import!I39285","v":0}]
[null,55,"BSCR Rating 7",{"$f":"Import!I39268","v":0},null,{"$f":"Import!I39277","v":0},null,{"$f":"Import!I39286","v":0}]
[null,56,"BSCR Rating 8",{"$f":"Import!I39269","v":0},null,{"$f":"Import!I39278","v":0},null,{"$f":"Import!I39287","v":0}]
[null,57,"Total Default Risk for OTC Derivatives ",0,null,0,null,0]
[]
[null,{"$f":"B93+1","v":58},"Cash and Cash Equivalents",{"$f":"Import!I39288","v":0}]
[]
[null,{"$f":"B95+1","v":59},"Total",{"$f":"X27+X62+D77+H77+D93+F93+H93+D95","v":0}]
[]
[null,null,"Please include in the table below any assets, included in this Schedule, for which NAIC ratings were used to map to the BSCR rating classes"]
[null,null,"Information on the use of NAIC ratings\n(for disclosure purposes only)","CORPORATE & SOVEREIGN BONDS",null,"RESIDENTIAL MORTGAGE-BACKED SECURITIES",null,"COMMERCIAL MORTGAGE-BACKED SECURITIES / ASSET-BACKED SECURITIES",null,"BOND MUTUAL FUNDS",null,"MORTGAGE LOANS",null,"PREFERRED STOCKS",null,"OTHER ASSETS"]
[null,null,"NAIC Class 1",{"$f":"Import!I39289","v":0},null,{"$f":"Import!I39296","v":0},null,{"$f":"Import!I39303","v":0},null,{"$f":"Import!I39310","v":0},null,{"$f":"Import!I39317","v":0},null,{"$f":"Import!I39324","v":0},null,{"$f":"Import!I39331","v":0}]
[null,null,"NAIC Class 2",{"$f":"Import!I39290","v":0},null,{"$f":"Import!I39297","v":0},null,{"$f":"Import!I39304","v":0},null,{"$f":"Import!I39311","v":0},null,{"$f":"Import!I39318","v":0},null,{"$f":"Import!I39325","v":0},null,{"$f":"Import!I39332","v":0}]
[null,null,"NAIC Class 3",{"$f":"Import!I39291","v":0},null,{"$f":"Import!I39298","v":0},null,{"$f":"Import!I39305","v":0},null,{"$f":"Import!I39312","v":0},null,{"$f":"Import!I39319","v":0},null,{"$f":"Import!I39326","v":0},null,{"$f":"Import!I39333","v":0}]
[null,null,"NAIC Class 4",{"$f":"Import!I39292","v":0},null,{"$f":"Import!I39299","v":0},null,{"$f":"Import!I39306","v":0},null,{"$f":"Import!I39313","v":0},null,{"$f":"Import!I39320","v":0},null,{"$f":"Import!I39327","v":0},null,{"$f":"Import!I39334","v":0}]
[null,null,"NAIC Class 5",{"$f":"Import!I39293","v":0},null,{"$f":"Import!I39300","v":0},null,{"$f":"Import!I39307","v":0},null,{"$f":"Import!I39314","v":0},null,{"$f":"Import!I39321","v":0},null,{"$f":"Import!I39328","v":0},null,{"$f":"Import!I39335","v":0}]
[null,null,"NAIC Class 6",{"$f":"Import!I39294","v":0},null,{"$f":"Import!I39301","v":0},null,{"$f":"Import!I39308","v":0},null,{"$f":"Import!I39315","v":0},null,{"$f":"Import!I39322","v":0},null,{"$f":"Import!I39329","v":0},null,{"$f":"Import!I39336","v":0}]
[null,null,null,{"$f":"SUM(D101:D106)","v":0},null,{"$f":"SUM(F101:F106)","v":0},null,{"$f":"SUM(H101:H106)","v":0},null,{"$f":"SUM(J101:J106)","v":0},null,{"$f":"SUM(L101:L106)","v":0},null,{"$f":"SUM(N101:N106)","v":0},null,{"$f":"SUM(P101:P106)","v":0}]

{"sheet":"Schedule IID (EBS)","index":30,"n_rows":107,"n_cols":28,"rows_kept":107,"cut":false,"hidden":false,"merged":[[33,27,34,27],[7,23,7,25],[32,3,32,13],[33,3,34,5],[33,7,33,13],[33,23,34,23],[34,7,34,9],[7,19,7,21],[34,11,34,13],[32,15,32,19],[33,17,34,17],[33,19,34,19],[33,15,34,15],[3,3,3,5],[7,3,7,5],[7,7,7,9],[7,11,7,13],[7,15,7,17],[63,3,63,11],[63,13,63,21],[64,3,64,5],[64,7,64,9],[64,13,64,15],[64,17,64,19]]}
[null,"SEGREGATED ACCOUNTS\n",null,null,null,null,null,null,null,null,null,null,null,null,null,null,null,null,null,null,null,null,null,null,null,null,null,{"$f":"HYPERLINK(\"#'Index'!A1\",\"Return to Index\")","v":"Return to Index"}]
[]
[null,{"$f":"+'Group Information'!C9","v":"Enter Parent Company Name"}]
[null,"As at",null,{"$f":"+'Group Information'!C3","v":"2023-12-31"},null,null,null,null,null,null,null,null,null,null,null,null,null,null,null,null,null,null,null,null,null,"SCHEDULE IID (EBS)"]
[null,{"$f":"+'Form 1EBS'!B4","v":"expressed in "},null,{"$f":"+'Form 1EBS'!C4","v":" ['000s]United States Dollars"}]
[]
[null,null,null,"(1)",null,"(2)",null,"(3)",null,"(4)",null,"(5)",null,"(6)",null,"(7)",null,"(8)",null,"(9)",null,"(10)",null,"(11)",null,"(12)"]
[null,null,null,"Corporate & Sovereign Bonds",null,null,null,"Residential Mortgage Backed Securities",null,null,null,"Commercial Mortgage Backed Securities / Asset- Backed Securities",null,null,null,"Bond Mutual Funds",null,null,null,"Mortgage Loans",null,null,null,"TOTAL"]
[null,null,null,"Assets",null,"Liabilities",null,"Assets",null,"Liabilities",null,"Assets",null,"Liabilities",null,"Assets",null,"Liabilities",null,"Assets",null,"Liabilities",null,{"$f":"D9","v":"Assets"},null,{"$f":"F9","v":"Liabilities"}]
[null,null,null,{"$f":"+'Form 1EBS'!$F$8","v":"('000)"},null,{"$f":"+'Form 1EBS'!$H$8","v":"('000)"},null,{"$f":"+'Form 1EBS'!$F$8","v":"('000)"},null,{"$f":"+'Form 1EBS'!$H$8","v":"('000)"},null,{"$f":"+'Form 1EBS'!$F$8","v":"('000)"},null,{"$f":"+'Form 1EBS'!$H$8","v":"('000)"},null,{"$f":"+'Form 1EBS'!$F$8","v":"('000)"},null,{"$f":"+'Form 1EBS'!$H$8","v":"('000)"},null,{"$f":"+'Form 1EBS'!$F$8","v":"('000)"},null,{"$f":"+'Form 1EBS'!$H$8","v":"('000)"},null,{"$f":"+'Form 1EBS'!$F$8","v":"('000)"},null,{"$f":"+'Form 1EBS'!$H$8","v":"('000)"}]
[null,"Line no. "]
[null,"Quoted and Unquoted Bonds and Debentures"]
[null,1,"BSCR Rating 0",{"$f":"Import!I39339","v":0},null,{"$f":"Import!I39348","v":0},null,null,null,null,null,null,null,null,null,{"$f":"Import!I39389","v":0},null,{"$f":"Import!I39398","v":0},null,null,null,null,null,{"$f":"D13+H13+L13+P13","v":0},null,{"$f":"F13+J13+N13+R13","v":0}]
[null,{"$f":"B13+1","v":2},"BSCR Rating 1",{"$f":"Import!I39340","v":0},null,{"$f":"Import!I39349","v":0},null,{"$f":"Import!I39357","v":0},null,{"$f":"Import!I39365","v":0},null,{"$f":"Import!I39373","v":0},null,{"$f":"Import!I39381","v":0},null,{"$f":"Import!I39390","v":0},null,{"$f":"Import!I39399","v":0},null,null,null,null,null,{"$f":"D14+H14+L14+P14","v":0},null,0]
[null,{"$f":"B14+1","v":3},"BSCR Rating 2",{"$f":"Import!I39341","v":0},null,{"$f":"Import!I39350","v":0},null,{"$f":"Import!I39358","v":0},null,{"$f":"Import!I39366","v":0},null,{"$f":"Import!I39374","v":0},null,{"$f":"Import!I39382","v":0},null,{"$f":"Import!I39391","v":0},null,{"$f":"Import!I39400","v":0},null,null,null,null,null,0,null,0]
[null,4,"BSCR Rating 3",{"$f":"Import!I39342","v":0},null,{"$f":"Import!I39351","v":0},null,{"$f":"Import!I39359","v":0},null,{"$f":"Import!I39367","v":0},null,{"$f":"Import!I39375","v":0},null,{"$f":"Import!I39383","v":0},null,{"$f":"Import!I39392","v":0},null,{"$f":"Import!I39401","v":0},null,null,null,null,null,0,null,0]
[null,5,"BSCR Rating 4",{"$f":"Import!I39343","v":0},null,{"$f":"Import!I39352","v":0},null,{"$f":"Import!I39360","v":0},null,{"$f":"Import!I39368","v":0},null,{"$f":"Import!I39376","v":0},null,{"$f":"Import!I39384","v":0},null,{"$f":"Import!I39393","v":0},null,{"$f":"Import!I39402","v":0},null,null,null,null,null,0,null,0]
[null,6,"BSCR Rating 5",{"$f":"Import!I39344","v":0},null,{"$f":"Import!I39353","v":0},null,{"$f":"Import!I39361","v":0},null,{"$f":"Import!I39369","v":0},null,{"$f":"Import!I39377","v":0},null,{"$f":"Import!I39385","v":0},null,{"$f":"Import!I39394","v":0},null,{"$f":"Import!I39403","v":0},null,null,null,null,null,0,null,0]
[null,7,"BSCR Rating 6",{"$f":"Import!I39345","v":0},null,{"$f":"Import!I39354","v":0},null,{"$f":"Import!I39362","v":0},null,{"$f":"Import!I39370","v":0},null,{"$f":"Import!I39378","v":0},null,{"$f":"Import!I39386","v":0},null,{"$f":"Import!I39395","v":0},null,{"$f":"Import!I39404","v":0},null,null,null,null,null,0,null,0]
[null,8,"BSCR Rating 7",{"$f":"Import!I39346","v":0},null,{"$f":"Import!I39355","v":0},null,{"$f":"Import!I39363","v":0},null,{"$f":"Import!I39371","v":0},null,{"$f":"Import!I39379","v":0},null,{"$f":"Import!I39387","v":0},null,{"$f":"Import!I39396","v":0},null,{"$f":"Import!I39405","v":0},null,null,null,null,null,0,null,0]
[null,9,"BSCR Rating 8",{"$f":"Import!I39347","v":0},null,{"$f":"Import!I39356","v":0},null,{"$f":"Import!I39364","v":0},null,{"$f":"Import!I39372","v":0},null,{"$f":"Import!I39380","v":0},null,{"$f":"Import!I39388","v":0},null,{"$f":"Import!I39397","v":0},null,{"$f":"Import!I39406","v":0},null,null,null,null,null,0,null,0]
[null,10,"Insured/Guaranteed Mortgages",null,null,null,null,null,null,null,null,null,null,null,null,null,null,null,null,{"$f":"Import!I39407","v":0},null,{"$f":"Import!I39411","v":0},null,{"$f":"D22+H22+L22+P22+T22","v":0},null,{"$f":"F22+J22+N22+R22+V22","v":0}]
[null,11,"Other Commercial and Farm Mortgages",null,null,null,null,null,null,null,null,null,null,null,null,null,null,null,null,{"$f":"Import!I39408","v":0},null,{"$f":"Import!I39412","v":0},null,{"$f":"D23+H23+L23+P23+T23","v":0},null,0]
[null,12,"Other Residential Mortgages",null,null,null,null,null,null,null,null,null,null,null,null,null,null,null,null,{"$f":"Import!I39409","v":0},null,{"$f":"Import!I39413","v":0},null,0,null,0]
[null,13,"Mortgages Not In Good Standing",null,null,null,null,null,null,null,null,null,null,null,null,null,null,null,null,{"$f":"Import!I39410","v":0},null,{"$f":"Import!I39414","v":0},null,0,null,0]
[]
[null,{"$f":"B25+1","v":14},"Total",{"$f":"SUM(D13:D21)","v":0},null,{"$f":"SUM(F13:F21)","v":0},null,{"$f":"SUM(H13:H21)","v":0},null,{"$f":"SUM(J13:J21)","v":0},null,{"$f":"SUM(L13:L21)","v":0},null,{"$f":"SUM(N13:N21)","v":0},null,{"$f":"SUM(P13:P21)","v":0},null,{"$f":"SUM(R13:R21)","v":0},null,{"$f":"SUM(T13:T26)","v":0},null,{"$f":"SUM(V13:V26)","v":0},null,{"$f":"SUM(X13:X26)","v":0},null,{"$f":"SUM(Z13:Z26)","v":0}]
[]
[]
[]
[]
[]
[null,null,null,"ASSETS",null,null,null,null,null,null,null,null,null,null,null,"Liabilities"]
[null,null,null,"Long Exposures",null,null,null,"Short Exposures",null,null,null,null,null,null,null,null,null,"Without Management Actions",null,"With Management Actions",null,null,null,"Total Assets Before Shock",null,null,null,"Shocks"]
[null,null,null,null,null,null,null,"Qualifying as Assets held for risk-mitigation purposes",null,null,null,"Not Qualifying as Assets held for risk-mitigation purposes",null,null,null,null,null,null,null,null,null,null,null,null,null,null,null,"Shocks"]
[null,null,null,"Before Shock",null,"After Shock",null,"Before Shock",null,"After Shock",null,"Before Shock",null,"After Shock",null,"Before Shock",null,"After Shock",null,"After Shock"]
[null,null,null,{"$f":"+'Form 1EBS'!$F$8","v":"('000)"},null,{"$f":"+'Form 1EBS'!$H$8","v":"('000)"},null,{"$f":"+'Form 1EBS'!$F$8","v":"('000)"},null,{"$f":"+'Form 1EBS'!$H$8","v":"('000)"},null,{"$f":"+'Form 1EBS'!$F$8","v":"('000)"},null,{"$f":"+'Form 1EBS'!$H$8","v":"('000)"},null,{"$f":"+'Form 1EBS'!$F$8","v":"('000)"},null,{"$f":"+'Form 1EBS'!$H$8","v":"('000)"},null,{"$f":"+'Form 1EBS'!$H$8","v":"('000)"},null,null,null,{"$f":"+'Form 1EBS'!$F$8","v":"('000)"}]
[null,"Equity Holdings "]
[null,{"$f":"B27+1","v":15},"Strategic Holdings - Listed",{"$f":"Import!I39415","v":0},null,{"$f":"IF(OR(Import!I39437=0,Import!I39437=\"\"),(1-$AB39)*D39,Import!I39437)","v":0},null,{"$f":"Import!I39459","v":0},null,{"$f":"IF(OR(Import!I39481=0,Import!I39481=\"\"),(1-$AB39)*H39,Import!I39481)","v":0},null,{"$f":"Import!I39503","v":0},null,{"$f":"IF(OR(Import!I39525=0,Import!I39525=\"\"),(1-$AB39)*L39,Import!I39525)","v":0},null,{"$f":"Import!I39547","v":0},null,{"$f":"IF(OR(Import!I39569=0,Import!I39569=\"\"),P39,Import!I39569)","v":0},null,{"$f":"IF(OR(Import!I39591=0,Import!I39591=\"\"),R39,Import!I39591)","v":0},null,null,null,{"$f":"D39+H39+L39","v":0},null,null,null,0.2]
[null,{"$f":"B39+1","v":16},"Duration Based",{"$f":"Import!I39416","v":0},null,{"$f":"IF(OR(Import!I39438=0,Import!I39438=\"\"),(1-$AB40)*D40,Import!I39438)","v":0},null,{"$f":"Import!I39460","v":0},null,{"$f":"IF(OR(Import!I39482=0,Import!I39482=\"\"),(1-$AB40)*H40,Import!I39482)","v":0},null,{"$f":"Import!I39504","v":0},null,{"$f":"IF(OR(Import!I39526=0,Import!I39526=\"\"),(1-$AB40)*L40,Import!I39526)","v":0},null,{"$f":"Import!I39548","v":0},null,{"$f":"IF(OR(Import!I39570=0,Import!I39570=\"\"),P40,Import!I39570)","v":0},null,{"$f":"IF(OR(Import!I39592=0,Import!I39592=\"\"),R40,Import!I39592)","v":0},null,null,null,{"$f":"D40+H40+L40","v":0},null,null,null,0.2]
[null,17,"Listed Equity Securities in Developed Markets",{"$f":"Import!I39417","v":0},null,{"$f":"IF(OR(Import!I39439=0,Import!I39439=\"\"),(1-$AB41)*D41,Import!I39439)","v":0},null,{"$f":"Import!I39461","v":0},null,{"$f":"IF(OR(Import!I39483=0,Import!I39483=\"\"),(1-$AB41)*H41,Import!I39483)","v":0},null,{"$f":"Import!I39505","v":0},null,{"$f":"IF(OR(Import!I39527=0,Import!I39527=\"\"),(1-$AB41)*L41,Import!I39527)","v":0},null,{"$f":"Import!I39549","v":0},null,{"$f":"IF(OR(Import!I39571=0,Import!I39571=\"\"),P41,Import!I39571)","v":0},null,{"$f":"IF(OR(Import!I39593=0,Import!I39593=\"\"),R41,Import!I39593)","v":0},null,null,null,0,null,null,null,0.35]
[null,18,"Preferred Stocks, BSCR Rating 1",{"$f":"Import!I39418","v":0},null,{"$f":"IF(OR(Import!I39440=0,Import!I39440=\"\"),(1-$AB42)*D42,Import!I39440)","v":0},null,{"$f":"Import!I39462","v":0},null,{"$f":"IF(OR(Import!I39484=0,Import!I39484=\"\"),(1-$AB42)*H42,Import!I39484)","v":0},null,{"$f":"Import!I39506","v":0},null,{"$f":"IF(OR(Import!I39528=0,Import!I39528=\"\"),(1-$AB42)*L42,Import!I39528)","v":0},null,{"$f":"Import!I39550","v":0},null,{"$f":"IF(OR(Import!I39572=0,Import!I39572=\"\"),P42,Import!I39572)","v":0},null,{"$f":"IF(OR(Import!I39594=0,Import!I39594=\"\"),R42,Import!I39594)","v":0},null,null,null,0,null,null,null,6.0000000000000001E-3]
[null,19,"Preferred Stocks, BSCR Rating 2",{"$f":"Import!I39419","v":0},null,{"$f":"IF(OR(Import!I39441=0,Import!I39441=\"\"),(1-$AB43)*D43,Import!I39441)","v":0},null,{"$f":"Import!I39463","v":0},null,{"$f":"IF(OR(Import!I39485=0,Import!I39485=\"\"),(1-$AB43)*H43,Import!I39485)","v":0},null,{"$f":"Import!I39507","v":0},null,{"$f":"IF(OR(Import!I39529=0,Import!I39529=\"\"),(1-$AB43)*L43,Import!I39529)","v":0},null,{"$f":"Import!I39551","v":0},null,{"$f":"IF(OR(Import!I39573=0,Import!I39573=\"\"),P43,Import!I39573)","v":0},null,{"$f":"IF(OR(Import!I39595=0,Import!I39595=\"\"),R43,Import!I39595)","v":0},null,null,null,0,null,null,null,1.2E-2]
[null,20,"Preferred Stocks, BSCR Rating 3",{"$f":"Import!I39420","v":0},null,{"$f":"IF(OR(Import!I39442=0,Import!I39442=\"\"),(1-$AB44)*D44,Import!I39442)","v":0},null,{"$f":"Import!I39464","v":0},null,{"$f":"IF(OR(Import!I39486=0,Import!I39486=\"\"),(1-$AB44)*H44,Import!I39486)","v":0},null,{"$f":"Import!I39508","v":0},null,{"$f":"IF(OR(Import!I39530=0,Import!I39530=\"\"),(1-$AB44)*L44,Import!I39530)","v":0},null,{"$f":"Import!I39552","v":0},null,{"$f":"IF(OR(Import!I39574=0,Import!I39574=\"\"),P44,Import!I39574)","v":0},null,{"$f":"IF(OR(Import!I39596=0,Import!I39596=\"\"),R44,Import!I39596)","v":0},null,null,null,0,null,null,null,0.02]
[null,21,"Preferred Stocks, BSCR Rating 4",{"$f":"Import!I39421","v":0},null,{"$f":"IF(OR(Import!I39443=0,Import!I39443=\"\"),(1-$AB45)*D45,Import!I39443)","v":0},null,{"$f":"Import!I39465","v":0},null,{"$f":"IF(OR(Import!I39487=0,Import!I39487=\"\"),(1-$AB45)*H45,Import!I39487)","v":0},null,{"$f":"Import!I39509","v":0},null,{"$f":"IF(OR(Import!I39531=0,Import!I39531=\"\"),(1-$AB45)*L45,Import!I39531)","v":0},null,{"$f":"Import!I39553","v":0},null,{"$f":"IF(OR(Import!I39575=0,Import!I39575=\"\"),P45,Import!I39575)","v":0},null,{"$f":"IF(OR(Import!I39597=0,Import!I39597=\"\"),R45,Import!I39597)","v":0},null,null,null,0,null,null,null,0.04]
[null,22,"Preferred Stocks, BSCR Rating 5",{"$f":"Import!I39422","v":0},null,{"$f":"IF(OR(Import!I39444=0,Import!I39444=\"\"),(1-$AB46)*D46,Import!I39444)","v":0},null,{"$f":"Import!I39466","v":0},null,{"$f":"IF(OR(Import!I39488=0,Import!I39488=\"\"),(1-$AB46)*H46,Import!I39488)","v":0},null,{"$f":"Import!I39510","v":0},null,{"$f":"IF(OR(Import!I39532=0,Import!I39532=\"\"),(1-$AB46)*L46,Import!I39532)","v":0},null,{"$f":"Import!I39554","v":0},null,{"$f":"IF(OR(Import!I39576=0,Import!I39576=\"\"),P46,Import!I39576)","v":0},null,{"$f":"IF(OR(Import!I39598=0,Import!I39598=\"\"),R46,Import!I39598)","v":0},null,null,null,0,null,null,null,0.11]
[null,23,"Preferred Stocks, BSCR Rating 6",{"$f":"Import!I39423","v":0},null,{"$f":"IF(OR(Import!I39445=0,Import!I39445=\"\"),(1-$AB47)*D47,Import!I39445)","v":0},null,{"$f":"Import!I39467","v":0},null,{"$f":"IF(OR(Import!I39489=0,Import!I39489=\"\"),(1-$AB47)*H47,Import!I39489)","v":0},null,{"$f":"Import!I39511","v":0},null,{"$f":"IF(OR(Import!I39533=0,Import!I39533=\"\"),(1-$AB47)*L47,Import!I39533)","v":0},null,{"$f":"Import!I39555","v":0},null,{"$f":"IF(OR(Import!I39577=0,Import!I39577=\"\"),P47,Import!I39577)","v":0},null,{"$f":"IF(OR(Import!I39599=0,Import!I39599=\"\"),R47,Import!I39599)","v":0},null,null,null,0,null,null,null,0.25]
[null,24,"Preferred Stocks, BSCR Rating 7",{"$f":"Import!I39424","v":0},null,{"$f":"IF(OR(Import!I39446=0,Import!I39446=\"\"),(1-$AB48)*D48,Import!I39446)","v":0},null,{"$f":"Import!I39468","v":0},null,{"$f":"IF(OR(Import!I39490=0,Import!I39490=\"\"),(1-$AB48)*H48,Import!I39490)","v":0},null,{"$f":"Import!I39512","v":0},null,{"$f":"IF(OR(Import!I39534=0,Import!I39534=\"\"),(1-$AB48)*L48,Import!I39534)","v":0},null,{"$f":"Import!I39556","v":0},null,{"$f":"IF(OR(Import!I39578=0,Import!I39578=\"\"),P48,Import!I39578)","v":0},null,{"$f":"IF(OR(Import!I39600=0,Import!I39600=\"\"),R48,Import!I39600)","v":0},null,null,null,0,null,null,null,0.35]
[null,25,"Preferred Stocks, BSCR Rating 8",{"$f":"Import!I39425","v":0},null,{"$f":"IF(OR(Import!I39447=0,Import!I39447=\"\"),(1-$AB49)*D49,Import!I39447)","v":0},null,{"$f":"Import!I39469","v":0},null,{"$f":"IF(OR(Import!I39491=0,Import!I39491=\"\"),(1-$AB49)*H49,Import!I39491)","v":0},null,{"$f":"Import!I39513","v":0},null,{"$f":"IF(OR(Import!I39535=0,Import!I39535=\"\"),(1-$AB49)*L49,Import!I39535)","v":0},null,{"$f":"Import!I39557","v":0},null,{"$f":"IF(OR(Import!I39579=0,Import!I39579=\"\"),P49,Import!I39579)","v":0},null,{"$f":"IF(OR(Import!I39601=0,Import!I39601=\"\"),R49,Import!I39601)","v":0},null,null,null,0,null,null,null,0.35]
[null,26,"Equity Derivatives on Type 1 Equities",{"$f":"Import!I39426","v":0},null,{"$f":"Import!I39448","v":0},null,{"$f":"Import!I39470","v":0},null,{"$f":"Import!I39492","v":0},null,{"$f":"Import!I39514","v":0},null,{"$f":"Import!I39536","v":0},null,{"$f":"Import!I39558","v":0},null,{"$f":"IF(OR(Import!I39580=0,Import!I39580=\"\"),P50,Import!I39580)","v":0},null,{"$f":"IF(OR(Import!I39602=0,Import!I39602=\"\"),R50,Import!I39602)","v":0},null,null,null,0,null,null,null,0.35]
[null,27,"Strategic Holdings - Unlisted",{"$f":"Import!I39427","v":0},null,{"$f":"IF(OR(Import!I39449=0,Import!I39449=\"\"),(1-$AB51)*D51,Import!I39449)","v":0},null,{"$f":"Import!I39471","v":0},null,{"$f":"IF(OR(Import!I39493=0,Import!I39493=\"\"),(1-$AB51)*H51,Import!I39493)","v":0},null,{"$f":"Import!I39515","v":0},null,{"$f":"IF(OR(Import!I39537=0,Import!I39537=\"\"),(1-$AB51)*L51,Import!I39537)","v":0},null,{"$f":"Import!I39559","v":0},null,{"$f":"IF(OR(Import!I39581=0,Import!I39581=\"\"),P51,Import!I39581)","v":0},null,{"$f":"IF(OR(Import!I39603=0,Import!I39603=\"\"),R51,Import!I39603)","v":0},null,null,null,0,null,null,null,0.2]
[null,28,"Other Equities / Other Assets",{"$f":"Import!I39428","v":0},null,{"$f":"IF(OR(Import!I39450=0,Import!I39450=\"\"),(1-$AB52)*D52,Import!I39450)","v":0},null,{"$f":"Import!I39472","v":0},null,{"$f":"IF(OR(Import!I39494=0,Import!I39494=\"\"),(1-$AB52)*H52,Import!I39494)","v":0},null,{"$f":"Import!I39516","v":0},null,{"$f":"IF(OR(Import!I39538=0,Import!I39538=\"\"),(1-$AB52)*L52,Import!I39538)","v":0},null,{"$f":"Import!I39560","v":0},null,{"$f":"IF(OR(Import!I39582=0,Import!I39582=\"\"),P52,Import!I39582)","v":0},null,{"$f":"IF(OR(Import!I39604=0,Import!I39604=\"\"),R52,Import!I39604)","v":0},null,null,null,0,null,null,null,0.45]
[null,29,"Letters of Credit",{"$f":"Import!I39429","v":0},null,{"$f":"IF(OR(Import!I39451=0,Import!I39451=\"\"),(1-$AB53)*D53,Import!I39451)","v":0},null,{"$f":"Import!I39473","v":0},null,{"$f":"IF(OR(Import!I39495=0,Import!I39495=\"\"),(1-$AB53)*H53,Import!I39495)","v":0},null,{"$f":"Import!I39517","v":0},null,{"$f":"IF(OR(Import!I39539=0,Import!I39539=\"\"),(1-$AB53)*L53,Import!I39539)","v":0},null,{"$f":"Import!I39561","v":0},null,{"$f":"IF(OR(Import!I39583=0,Import!I39583=\"\"),P53,Import!I39583)","v":0},null,{"$f":"IF(OR(Import!I39605=0,Import!I39605=\"\"),R53,Import!I39605)","v":0},null,null,null,0,null,null,null,0.2]
[null,30,"Intangible assets",{"$f":"Import!I39430","v":0},null,{"$f":"IF(OR(Import!I39452=0,Import!I39452=\"\"),(1-$AB54)*D54,Import!I39452)","v":0},null,{"$f":"Import!I39474","v":0},null,{"$f":"IF(OR(Import!I39496=0,Import!I39496=\"\"),(1-$AB54)*H54,Import!I39496)","v":0},null,{"$f":"Import!I39518","v":0},null,{"$f":"IF(OR(Import!I39540=0,Import!I39540=\"\"),(1-$AB54)*L54,Import!I39540)","v":0},null,{"$f":"Import!I39562","v":0},null,{"$f":"IF(OR(Import!I39584=0,Import!I39584=\"\"),P54,Import!I39584)","v":0},null,{"$f":"IF(OR(Import!I39606=0,Import!I39606=\"\"),R54,Import!I39606)","v":0},null,null,null,0,null,null,null,0.2]
[null,31,"Pension Benefit Surplus",{"$f":"Import!I39431","v":0},null,{"$f":"IF(OR(Import!I39453=0,Import!I39453=\"\"),(1-$AB55)*D55,Import!I39453)","v":0},null,{"$f":"Import!I39475","v":0},null,{"$f":"IF(OR(Import!I39497=0,Import!I39497=\"\"),(1-$AB55)*H55,Import!I39497)","v":0},null,{"$f":"Import!I39519","v":0},null,{"$f":"IF(OR(Import!I39541=0,Import!I39541=\"\"),(1-$AB55)*L55,Import!I39541)","v":0},null,{"$f":"Import!I39563","v":0},null,{"$f":"IF(OR(Import!I39585=0,Import!I39585=\"\"),P55,Import!I39585)","v":0},null,{"$f":"IF(OR(Import!I39607=0,Import!I39607=\"\"),R55,Import!I39607)","v":0},null,null,null,0,null,null,null,0.2]
[null,32,"Equity Derivatives on Type 2 Equities",{"$f":"Import!I39432","v":0},null,{"$f":"Import!I39454","v":0},null,{"$f":"Import!I39476","v":0},null,{"$f":"Import!I39498","v":0},null,{"$f":"Import!I39520","v":0},null,{"$f":"Import!I39542","v":0},null,{"$f":"Import!I39564","v":0},null,{"$f":"IF(OR(Import!I39586=0,Import!I39586=\"\"),P56,Import!I39586)","v":0},null,{"$f":"IF(OR(Import!I39608=0,Import!I39608=\"\"),R56,Import!I39608)","v":0},null,null,null,0,null,null,null,0.45]
[null,33,"Infrastructure",{"$f":"Import!I39433","v":0},null,{"$f":"IF(OR(Import!I39455=0,Import!I39455=\"\"),(1-$AB57)*D57,Import!I39455)","v":0},null,{"$f":"Import!I39477","v":0},null,{"$f":"IF(OR(Import!I39499=0,Import!I39499=\"\"),(1-$AB57)*H57,Import!I39499)","v":0},null,{"$f":"Import!I39521","v":0},null,{"$f":"IF(OR(Import!I39543=0,Import!I39543=\"\"),(1-$AB57)*L57,Import!I39543)","v":0},null,{"$f":"Import!I39565","v":0},null,{"$f":"IF(OR(Import!I39587=0,Import!I39587=\"\"),P57,Import!I39587)","v":0},null,{"$f":"IF(OR(Import!I39609=0,Import!I39609=\"\"),R57,Import!I39609)","v":0},null,null,null,0,null,null,null,0.25]
[null,34,"Derivatives on Infrastructure",{"$f":"Import!I39434","v":0},null,{"$f":"Import!I39456","v":0},null,{"$f":"Import!I39478","v":0},null,{"$f":"Import!I39500","v":0},null,{"$f":"Import!I39522","v":0},null,{"$f":"Import!I39544","v":0},null,{"$f":"Import!I39566","v":0},null,{"$f":"IF(OR(Import!I39588=0,Import!I39588=\"\"),P58,Import!I39588)","v":0},null,{"$f":"IF(OR(Import!I39610=0,Import!I39610=\"\"),R58,Import!I39610)","v":0},null,null,null,0,null,null,null,0.25]
[null,35,"Equity Real Estate 1",{"$f":"Import!I39435","v":0},null,{"$f":"IF(OR(Import!I39457=0,Import!I39457=\"\"),(1-$AB59)*D59,Import!I39457)","v":0},null,{"$f":"Import!I39479","v":0},null,{"$f":"IF(OR(Import!I39501=0,Import!I39501=\"\"),(1-$AB59)*H59,Import!I39501)","v":0},null,{"$f":"Import!I39523","v":0},null,{"$f":"IF(OR(Import!I39545=0,Import!I39545=\"\"),(1-$AB59)*L59,Import!I39545)","v":0},null,{"$f":"Import!I39567","v":0},null,{"$f":"IF(OR(Import!I39589=0,Import!I39589=\"\"),P59,Import!I39589)","v":0},null,{"$f":"IF(OR(Import!I39611=0,Import!I39611=\"\"),R59,Import!I39611)","v":0},null,null,null,0,null,null,null,0.1]
[null,36,"Equity Real Estate 2",{"$f":"Import!I39436","v":0},null,{"$f":"IF(OR(Import!I39458=0,Import!I39458=\"\"),(1-$AB60)*D60,Import!I39458)","v":0},null,{"$f":"Import!I39480","v":0},null,{"$f":"IF(OR(Import!I39502=0,Import!I39502=\"\"),(1-$AB60)*H60,Import!I39502)","v":0},null,{"$f":"Import!I39524","v":0},null,{"$f":"IF(OR(Import!I39546=0,Import!I39546=\"\"),(1-$AB60)*L60,Import!I39546)","v":0},null,{"$f":"Import!I39568","v":0},null,{"$f":"IF(OR(Import!I39590=0,Import!I39590=\"\"),P60,Import!I39590)","v":0},null,{"$f":"IF(OR(Import!I39612=0,Import!I39612=\"\"),R60,Import!I39612)","v":0},null,null,null,0,null,null,null,0.2]
[]
[null,{"$f":"B60+1","v":37},"Total Equity Holdings",{"$f":"SUM(D38:D61)","v":0},null,{"$f":"SUM(F38:F61)","v":0},null,{"$f":"SUM(H38:H61)","v":0},null,{"$f":"SUM(J38:J61)","v":0},null,{"$f":"SUM(L38:L61)","v":0},null,{"$f":"SUM(N38:N61)","v":0},null,{"$f":"SUM(P38:P61)","v":0},null,{"$f":"SUM(R38:R61)","v":0},null,{"$f":"SUM(T38:T61)","v":0},null,null,null,{"$f":"SUM(X38:X61)","v":0}]
[]
[null,null,null,"Spread Up",null,null,null,null,null,null,null,null,null,"Spread Down"]
[null,null,null,"Long Exposures",null,null,null,"Short Exposures",null,null,null,"Shock (bps)",null,"Long Exposures",null,null,null,"Short Exposures",null,null,null,"Shock Rates"]
[null,null,null,"Before Shock",null,"After Shock",null,"Before Shock",null,"After Shock",null,null,null,"Before Shock",null,"After Shock",null,"Before Shock",null,"After Shock"]
[null,null,"Spread Risk for Credit Derivatives"]
[null,{"$f":"B62+1","v":38},"BSCR Rating 0",{"$f":"Import!I39613","v":0},null,{"$f":"Import!I39622","v":0},null,{"$f":"Import!I39631","v":0},null,{"$f":"Import!I39640","v":0},null,0,null,{"$f":"Import!I39649","v":0},null,{"$f":"Import!I39658","v":0},null,{"$f":"Import!I39667","v":0},null,{"$f":"Import!I39676","v":0},null,0]
[null,{"$f":"B68+1","v":39},"BSCR Rating 1",{"$f":"Import!I39614","v":0},null,{"$f":"Import!I39623","v":0},null,{"$f":"Import!I39632","v":0},null,{"$f":"Import!I39641","v":0},null,130,null,{"$f":"Import!I39650","v":0},null,{"$f":"Import!I39659","v":0},null,{"$f":"Import!I39668","v":0},null,{"$f":"Import!I39677","v":0},null,-0.75]
[null,{"$f":"B69+1","v":40},"BSCR Rating 2",{"$f":"Import!I39615","v":0},null,{"$f":"Import!I39624","v":0},null,{"$f":"Import!I39633","v":0},null,{"$f":"Import!I39642","v":0},null,150,null,{"$f":"Import!I39651","v":0},null,{"$f":"Import!I39660","v":0},null,{"$f":"Import!I39669","v":0},null,{"$f":"Import!I39678","v":0},null,-0.75]
[null,41,"BSCR Rating 3",{"$f":"Import!I39616","v":0},null,{"$f":"Import!I39625","v":0},null,{"$f":"Import!I39634","v":0},null,{"$f":"Import!I39643","v":0},null,260,null,{"$f":"Import!I39652","v":0},null,{"$f":"Import!I39661","v":0},null,{"$f":"Import!I39670","v":0},null,{"$f":"Import!I39679","v":0},null,-0.75]
[null,42,"BSCR Rating 4",{"$f":"Import!I39617","v":0},null,{"$f":"Import!I39626","v":0},null,{"$f":"Import!I39635","v":0},null,{"$f":"Import!I39644","v":0},null,450,null,{"$f":"Import!I39653","v":0},null,{"$f":"Import!I39662","v":0},null,{"$f":"Import!I39671","v":0},null,{"$f":"Import!I39680","v":0},null,-0.75]
[null,43,"BSCR Rating 5",{"$f":"Import!I39618","v":0},null,{"$f":"Import!I39627","v":0},null,{"$f":"Import!I39636","v":0},null,{"$f":"Import!I39645","v":0},null,840,null,{"$f":"Import!I39654","v":0},null,{"$f":"Import!I39663","v":0},null,{"$f":"Import!I39672","v":0},null,{"$f":"Import!I39681","v":0},null,-0.75]
[null,44,"BSCR Rating 6",{"$f":"Import!I39619","v":0},null,{"$f":"Import!I39628","v":0},null,{"$f":"Import!I39637","v":0},null,{"$f":"Import!I39646","v":0},null,1620,null,{"$f":"Import!I39655","v":0},null,{"$f":"Import!I39664","v":0},null,{"$f":"Import!I39673","v":0},null,{"$f":"Import!I39682","v":0},null,-0.75]
[null,45,"BSCR Rating 7",{"$f":"Import!I39620","v":0},null,{"$f":"Import!I39629","v":0},null,{"$f":"Import!I39638","v":0},null,{"$f":"Import!I39647","v":0},null,1620,null,{"$f":"Import!I39656","v":0},null,{"$f":"Import!I39665","v":0},null,{"$f":"Import!I39674","v":0},null,{"$f":"Import!I39683","v":0},null,-0.75]
[null,46,"BSCR Rating 8",{"$f":"Import!I39621","v":0},null,{"$f":"Import!I39630","v":0},null,{"$f":"Import!I39639","v":0},null,{"$f":"Import!I39648","v":0},null,1620,null,{"$f":"Import!I39657","v":0},null,{"$f":"Import!I39666","v":0},null,{"$f":"Import!I39675","v":0},null,{"$f":"Import!I39684","v":0},null,-0.75]
[null,47,"Total Spread",{"$f":"SUM(D67:D76)","v":0},null,{"$f":"SUM(F67:F76)","v":0},null,{"$f":"SUM(H67:H76)","v":0},null,{"$f":"SUM(J67:J76)","v":0},null,null,null,{"$f":"SUM(N67:N76)","v":0},null,{"$f":"SUM(P67:P76)","v":0},null,{"$f":"SUM(R67:R76)","v":0},null,{"$f":"SUM(T67:T76)","v":0}]
[]
[null,null,"Spread Risk Check",null,null,null,null,null,null,null,null,null,null,{"$f":"IF(ROUND(D77-N77,0)=0,\"Yes\",\"No\")","v":"Yes"},null,null,null,{"$f":"IF(ROUND(H77-R77,0)=0,\"Yes\",\"No\")","v":"Yes"}]
[null,null,"Difference",null,null,null,null,null,null,null,null,null,null,{"$f":"ROUND(D77-N77,0)","v":0},null,null,null,{"$f":"ROUND(H77-R77,0)","v":0}]
[]
[null,null,null,"Market Value of Derivatives with Positive Market Value",null,"Market Value of Derivatives with Negative Market Value",null,"Market Value of Collateral, Excluding any over-collateralization"]
[null,null,"Counterparty Default Risk for OTC Derivatives"]
[null,{"$f":"B77+1","v":48},"BSCR Rating 0",{"$f":"Import!I39685","v":0},null,{"$f":"Import!I39694","v":0},null,{"$f":"Import!I39703","v":0}]
[null,{"$f":"B84+1","v":49},"BSCR Rating 1",{"$f":"Import!I39686","v":0},null,{"$f":"Import!I39695","v":0},null,{"$f":"Import!I39704","v":0}]
[null,{"$f":"B85+1","v":50},"BSCR Rating 2",{"$f":"Import!I39687","v":0},null,{"$f":"Import!I39696","v":0},null,{"$f":"Import!I39705","v":0}]
[null,51,"BSCR Rating 3",{"$f":"Import!I39688","v":0},null,{"$f":"Import!I39697","v":0},null,{"$f":"Import!I39706","v":0}]
[null,52,"BSCR Rating 4",{"$f":"Import!I39689","v":0},null,{"$f":"Import!I39698","v":0},null,{"$f":"Import!I39707","v":0}]
[null,53,"BSCR Rating 5",{"$f":"Import!I39690","v":0},null,{"$f":"Import!I39699","v":0},null,{"$f":"Import!I39708","v":0}]
[null,54,"BSCR Rating 6",{"$f":"Import!I39691","v":0},null,{"$f":"Import!I39700","v":0},null,{"$f":"Import!I39709","v":0}]
[null,55,"BSCR Rating 7",{"$f":"Import!I39692","v":0},null,{"$f":"Import!I39701","v":0},null,{"$f":"Import!I39710","v":0}]
[null,56,"BSCR Rating 8",{"$f":"Import!I39693","v":0},null,{"$f":"Import!I39702","v":0},null,{"$f":"Import!I39711","v":0}]
[null,57,"Total Default Risk for OTC Derivatives ",0,null,0,null,0]
[]
[null,{"$f":"B93+1","v":58},"Cash and Cash Equivalents",{"$f":"Import!I39712","v":0}]
[]
[null,{"$f":"B95+1","v":59},"Total Segregated Account Assets",{"$f":"X27+X62+D77+H77+D93+F93+H93+D95","v":0}]
[]
[null,null,"Please include in the table below any assets, included in this Schedule, for which NAIC ratings were used to map to the BSCR rating classes"]
[null,null,"Information on the use of NAIC ratings\n(for disclosure purposes only)","CORPORATE & SOVEREIGN BONDS",null,"RESIDENTIAL MORTGAGE-BACKED SECURITIES",null,"COMMERCIAL MORTGAGE-BACKED SECURITIES / ASSET-BACKED SECURITIES",null,"BOND MUTUAL FUNDS",null,"MORTGAGE LOANS",null,"PREFERRED STOCKS",null,"OTHER ASSETS"]
[null,null,"NAIC Class 1",{"$f":"Import!I39713","v":0},null,{"$f":"Import!I39720","v":0},null,{"$f":"Import!I39727","v":0},null,{"$f":"Import!I39734","v":0},null,{"$f":"Import!I39741","v":0},null,{"$f":"Import!I39748","v":0},null,{"$f":"Import!I39755","v":0}]
[null,null,"NAIC Class 2",{"$f":"Import!I39714","v":0},null,{"$f":"Import!I39721","v":0},null,{"$f":"Import!I39728","v":0},null,{"$f":"Import!I39735","v":0},null,{"$f":"Import!I39742","v":0},null,{"$f":"Import!I39749","v":0},null,{"$f":"Import!I39756","v":0}]
[null,null,"NAIC Class 3",{"$f":"Import!I39715","v":0},null,{"$f":"Import!I39722","v":0},null,{"$f":"Import!I39729","v":0},null,{"$f":"Import!I39736","v":0},null,{"$f":"Import!I39743","v":0},null,{"$f":"Import!I39750","v":0},null,{"$f":"Import!I39757","v":0}]
[null,null,"NAIC Class 4",{"$f":"Import!I39716","v":0},null,{"$f":"Import!I39723","v":0},null,{"$f":"Import!I39730","v":0},null,{"$f":"Import!I39737","v":0},null,{"$f":"Import!I39744","v":0},null,{"$f":"Import!I39751","v":0},null,{"$f":"Import!I39758","v":0}]
[null,null,"NAIC Class 5",{"$f":"Import!I39717","v":0},null,{"$f":"Import!I39724","v":0},null,{"$f":"Import!I39731","v":0},null,{"$f":"Import!I39738","v":0},null,{"$f":"Import!I39745","v":0},null,{"$f":"Import!I39752","v":0},null,{"$f":"Import!I39759","v":0}]
[null,null,"NAIC Class 6",{"$f":"Import!I39718","v":0},null,{"$f":"Import!I39725","v":0},null,{"$f":"Import!I39732","v":0},null,{"$f":"Import!I39739","v":0},null,{"$f":"Import!I39746","v":0},null,{"$f":"Import!I39753","v":0},null,{"$f":"Import!I39760","v":0}]
[null,null,null,{"$f":"SUM(D101:D106)","v":0},null,{"$f":"SUM(F101:F106)","v":0},null,{"$f":"SUM(H101:H106)","v":0},null,{"$f":"SUM(J101:J106)","v":0},null,{"$f":"SUM(L101:L106)","v":0},null,{"$f":"SUM(N101:N106)","v":0},null,{"$f":"SUM(P101:P106)","v":0}]

{"sheet":"Schedule IIE (EBS)","index":31,"n_rows":107,"n_cols":28,"rows_kept":107,"cut":false,"hidden":false,"merged":[[33,27,34,27],[7,23,7,25],[32,3,32,13],[33,3,34,5],[33,7,33,13],[33,23,34,23],[34,7,34,9],[7,19,7,21],[34,11,34,13],[32,15,32,19],[33,15,34,15],[33,17,34,17],[33,19,34,19],[3,3,3,5],[7,3,7,5],[7,7,7,9],[7,11,7,13],[7,15,7,17],[63,3,63,11],[63,13,63,21],[64,3,64,5],[64,7,64,9],[64,13,64,15],[64,17,64,19]]}
[null,"DEPOSIT ASSETS AND LIABILITIES",null,null,null,null,null,null,null,null,null,null,null,null,null,null,null,null,null,null,null,null,null,null,null,null,null,{"$f":"HYPERLINK(\"#'Index'!A1\",\"Return to Index\")","v":"Return to Index"}]
[]
[null,{"$f":"+'Group Information'!C9","v":"Enter Parent Company Name"}]
[null,"As at",null,{"$f":"+'Group Information'!C3","v":"2023-12-31"},null,null,null,null,null,null,null,null,null,null,null,null,null,null,null,null,null,null,null,null,null,"SCHEDULE IIE (EBS)"]
[null,{"$f":"+'Form 1EBS'!B4","v":"expressed in "},null,{"$f":"+'Form 1EBS'!C4","v":" ['000s]United States Dollars"}]
[]
[null,null,null,"(1)",null,"(2)",null,"(3)",null,"(4)",null,"(5)",null,"(6)",null,"(7)",null,"(8)",null,"(9)",null,"(10)",null,"(11)",null,"(12)"]
[null,null,null,"Corporate & Sovereign Bonds",null,null,null,"Residential Mortgage Backed Securities",null,null,null,"Commercial Mortgage Backed Securities / Asset- Backed Securities",null,null,null,"Bond Mutual Funds",null,null,null,"Mortgage Loans",null,null,null,"TOTAL"]
[null,null,null,{"$f":"+'Form 1EBS'!$F$7","v":"2023-12-31"},null,{"$f":"+'Form 1EBS'!$H$7","v":"2022-12-31"},null,{"$f":"+'Form 1EBS'!$F$7","v":"2023-12-31"},null,{"$f":"+'Form 1EBS'!$H$7","v":"2022-12-31"},null,{"$f":"+'Form 1EBS'!$F$7","v":"2023-12-31"},null,{"$f":"+'Form 1EBS'!$H$7","v":"2022-12-31"},null,{"$f":"+'Form 1EBS'!$F$7","v":"2023-12-31"},null,{"$f":"+'Form 1EBS'!$H$7","v":"2022-12-31"},null,{"$f":"+'Form 1EBS'!$F$7","v":"2023-12-31"},null,{"$f":"+'Form 1EBS'!$H$7","v":"2022-12-31"},null,{"$f":"+'Form 1EBS'!$F$7","v":"2023-12-31"},null,{"$f":"+'Form 1EBS'!$H$7","v":"2022-12-31"}]
[null,null,null,{"$f":"+'Form 1EBS'!$F$8","v":"('000)"},null,{"$f":"+'Form 1EBS'!$H$8","v":"('000)"},null,{"$f":"+'Form 1EBS'!$F$8","v":"('000)"},null,{"$f":"+'Form 1EBS'!$H$8","v":"('000)"},null,{"$f":"+'Form 1EBS'!$F$8","v":"('000)"},null,{"$f":"+'Form 1EBS'!$H$8","v":"('000)"},null,{"$f":"+'Form 1EBS'!$F$8","v":"('000)"},null,{"$f":"+'Form 1EBS'!$H$8","v":"('000)"},null,{"$f":"+'Form 1EBS'!$F$8","v":"('000)"},null,{"$f":"+'Form 1EBS'!$H$8","v":"('000)"},null,{"$f":"+'Form 1EBS'!$F$8","v":"('000)"},null,{"$f":"+'Form 1EBS'!$H$8","v":"('000)"}]
[null,"Line no. "]
[null,"Quoted and Unquoted Bonds and Debentures"]
[null,1,"BSCR Rating 0",{"$f":"Import!I39763","v":0},null,{"$f":"Import!K39763","v":0},null,null,null,null,null,null,null,null,null,{"$f":"Import!I39788","v":0},null,{"$f":"Import!K39788","v":0},null,null,null,null,null,{"$f":"D13+H13+L13+P13","v":0},null,{"$f":"F13+J13+N13+R13","v":0}]
[null,{"$f":"B13+1","v":2},"BSCR Rating 1",{"$f":"Import!I39764","v":0},null,{"$f":"Import!K39764","v":0},null,{"$f":"Import!I39772","v":0},null,{"$f":"Import!K39772","v":0},null,{"$f":"Import!I39780","v":0},null,{"$f":"Import!K39780","v":0},null,{"$f":"Import!I39789","v":0},null,{"$f":"Import!K39789","v":0},null,null,null,null,null,{"$f":"D14+H14+L14+P14","v":0},null,0]
[null,{"$f":"B14+1","v":3},"BSCR Rating 2",{"$f":"Import!I39765","v":0},null,{"$f":"Import!K39765","v":0},null,{"$f":"Import!I39773","v":0},null,{"$f":"Import!K39773","v":0},null,{"$f":"Import!I39781","v":0},null,{"$f":"Import!K39781","v":0},null,{"$f":"Import!I39790","v":0},null,{"$f":"Import!K39790","v":0},null,null,null,null,null,0,null,0]
[null,4,"BSCR Rating 3",{"$f":"Import!I39766","v":0},null,{"$f":"Import!K39766","v":0},null,{"$f":"Import!I39774","v":0},null,{"$f":"Import!K39774","v":0},null,{"$f":"Import!I39782","v":0},null,{"$f":"Import!K39782","v":0},null,{"$f":"Import!I39791","v":0},null,{"$f":"Import!K39791","v":0},null,null,null,null,null,0,null,0]
[null,5,"BSCR Rating 4",{"$f":"Import!I39767","v":0},null,{"$f":"Import!K39767","v":0},null,{"$f":"Import!I39775","v":0},null,{"$f":"Import!K39775","v":0},null,{"$f":"Import!I39783","v":0},null,{"$f":"Import!K39783","v":0},null,{"$f":"Import!I39792","v":0},null,{"$f":"Import!K39792","v":0},null,null,null,null,null,0,null,0]
[null,6,"BSCR Rating 5",{"$f":"Import!I39768","v":0},null,{"$f":"Import!K39768","v":0},null,{"$f":"Import!I39776","v":0},null,{"$f":"Import!K39776","v":0},null,{"$f":"Import!I39784","v":0},null,{"$f":"Import!K39784","v":0},null,{"$f":"Import!I39793","v":0},null,{"$f":"Import!K39793","v":0},null,null,null,null,null,0,null,0]
[null,7,"BSCR Rating 6",{"$f":"Import!I39769","v":0},null,{"$f":"Import!K39769","v":0},null,{"$f":"Import!I39777","v":0},null,{"$f":"Import!K39777","v":0},null,{"$f":"Import!I39785","v":0},null,{"$f":"Import!K39785","v":0},null,{"$f":"Import!I39794","v":0},null,{"$f":"Import!K39794","v":0},null,null,null,null,null,0,null,0]
[null,8,"BSCR Rating 7",{"$f":"Import!I39770","v":0},null,{"$f":"Import!K39770","v":0},null,{"$f":"Import!I39778","v":0},null,{"$f":"Import!K39778","v":0},null,{"$f":"Import!I39786","v":0},null,{"$f":"Import!K39786","v":0},null,{"$f":"Import!I39795","v":0},null,{"$f":"Import!K39795","v":0},null,null,null,null,null,0,null,0]
[null,9,"BSCR Rating 8",{"$f":"Import!I39771","v":0},null,{"$f":"Import!K39771","v":0},null,{"$f":"Import!I39779","v":0},null,{"$f":"Import!K39779","v":0},null,{"$f":"Import!I39787","v":0},null,{"$f":"Import!K39787","v":0},null,{"$f":"Import!I39796","v":0},null,{"$f":"Import!K39796","v":0},null,null,null,null,null,0,null,0]
[null,10,"Insured/Guaranteed Mortgages",null,null,null,null,null,null,null,null,null,null,null,null,null,null,null,null,{"$f":"Import!I39797","v":0},null,{"$f":"Import!K39797","v":0},null,{"$f":"D22+H22+L22+P22+T22","v":0},null,{"$f":"F22+J22+N22+R22+V22","v":0}]
[null,11,"Other Commercial and Farm Mortgages",null,null,null,null,null,null,null,null,null,null,null,null,null,null,null,null,{"$f":"Import!I39798","v":0},null,{"$f":"Import!K39798","v":0},null,{"$f":"D23+H23+L23+P23+T23","v":0},null,0]
[null,12,"Other Residential Mortgages",null,null,null,null,null,null,null,null,null,null,null,null,null,null,null,null,{"$f":"Import!I39799","v":0},null,{"$f":"Import!K39799","v":0},null,0,null,0]
[null,13,"Mortgages Not In Good Standing",null,null,null,null,null,null,null,null,null,null,null,null,null,null,null,null,{"$f":"Import!I39800","v":0},null,{"$f":"Import!K39800","v":0},null,0,null,0]
[]
[null,{"$f":"B25+1","v":14},"Total",{"$f":"SUM(D13:D21)","v":0},null,{"$f":"SUM(F13:F21)","v":0},null,{"$f":"SUM(H13:H21)","v":0},null,{"$f":"SUM(J13:J21)","v":0},null,{"$f":"SUM(L13:L21)","v":0},null,{"$f":"SUM(N13:N21)","v":0},null,{"$f":"SUM(P13:P21)","v":0},null,{"$f":"SUM(R13:R21)","v":0},null,{"$f":"SUM(T13:T26)","v":0},null,{"$f":"SUM(V13:V26)","v":0},null,{"$f":"SUM(X13:X26)","v":0},null,{"$f":"SUM(Z13:Z26)","v":0}]
[]
[]
[]
[]
[]
[null,null,null,"ASSETS",null,null,null,null,null,null,null,null,null,null,null,"Liabilities"]
[null,null,null,"Long Exposures",null,null,null,"Short Exposures",null,null,null,null,null,null,null,null,null,"Without Management Actions",null,"With Management Actions",null,null,null,"Total Assets Before Shock",null,null,null,"Shocks"]
[null,null,null,null,null,null,null,"Qualifying as Assets held for risk-mitigation purposes",null,null,null,"Not Qualifying as Assets held for risk-mitigation purposes",null,null,null,null,null,null,null,null,null,null,null,null,null,null,null,"Shocks"]
[null,null,null,"Before Shock",null,"After Shock",null,"Before Shock",null,"After Shock",null,"Before Shock",null,"After Shock",null,"Before Shock",null,"After Shock",null,"After Shock"]
[null,null,null,{"$f":"+'Form 1EBS'!$F$8","v":"('000)"},null,{"$f":"+'Form 1EBS'!$H$8","v":"('000)"},null,{"$f":"+'Form 1EBS'!$F$8","v":"('000)"},null,{"$f":"+'Form 1EBS'!$H$8","v":"('000)"},null,{"$f":"+'Form 1EBS'!$F$8","v":"('000)"},null,{"$f":"+'Form 1EBS'!$H$8","v":"('000)"},null,{"$f":"+'Form 1EBS'!$F$8","v":"('000)"},null,{"$f":"+'Form 1EBS'!$H$8","v":"('000)"},null,{"$f":"+'Form 1EBS'!$H$8","v":"('000)"},null,null,null,{"$f":"+'Form 1EBS'!$F$8","v":"('000)"}]
[null,"Equity Holdings "]
[null,{"$f":"B27+1","v":15},"Strategic Holdings - Listed",{"$f":"Import!I39801","v":0},null,{"$f":"IF(OR(Import!I39823=0,Import!I39823=\"\"),(1-$AB39)*D39,Import!I39823)","v":0},null,{"$f":"Import!I39845","v":0},null,{"$f":"IF(OR(Import!I39867=0,Import!I39867=\"\"),(1-$AB39)*H39,Import!I39867)","v":0},null,{"$f":"Import!I39889","v":0},null,{"$f":"IF(OR(Import!I39911=0,Import!I39911=\"\"),(1-$AB39)*L39,Import!I39911)","v":0},null,{"$f":"Import!I39933","v":0},null,{"$f":"IF(OR(Import!I39955=0,Import!I39955=\"\"),P39,Import!I39955)","v":0},null,{"$f":"IF(OR(Import!I39977=0,Import!I39977=\"\"),R39,Import!I39977)","v":0},null,null,null,{"$f":"D39+H39+L39","v":0},null,null,null,0.2]
[null,{"$f":"B39+1","v":16},"Duration Based",{"$f":"Import!I39802","v":0},null,{"$f":"IF(OR(Import!I39824=0,Import!I39824=\"\"),(1-$AB40)*D40,Import!I39824)","v":0},null,{"$f":"Import!I39846","v":0},null,{"$f":"IF(OR(Import!I39868=0,Import!I39868=\"\"),(1-$AB40)*H40,Import!I39868)","v":0},null,{"$f":"Import!I39890","v":0},null,{"$f":"IF(OR(Import!I39912=0,Import!I39912=\"\"),(1-$AB40)*L40,Import!I39912)","v":0},null,{"$f":"Import!I39934","v":0},null,{"$f":"IF(OR(Import!I39956=0,Import!I39956=\"\"),P40,Import!I39956)","v":0},null,{"$f":"IF(OR(Import!I39978=0,Import!I39978=\"\"),R40,Import!I39978)","v":0},null,null,null,{"$f":"D40+H40+L40","v":0},null,null,null,0.2]
[null,17,"Listed Equity Securities in Developed Markets",{"$f":"Import!I39803","v":0},null,{"$f":"IF(OR(Import!I39825=0,Import!I39825=\"\"),(1-$AB41)*D41,Import!I39825)","v":0},null,{"$f":"Import!I39847","v":0},null,{"$f":"IF(OR(Import!I39869=0,Import!I39869=\"\"),(1-$AB41)*H41,Import!I39869)","v":0},null,{"$f":"Import!I39891","v":0},null,{"$f":"IF(OR(Import!I39913=0,Import!I39913=\"\"),(1-$AB41)*L41,Import!I39913)","v":0},null,{"$f":"Import!I39935","v":0},null,{"$f":"IF(OR(Import!I39957=0,Import!I39957=\"\"),P41,Import!I39957)","v":0},null,{"$f":"IF(OR(Import!I39979=0,Import!I39979=\"\"),R41,Import!I39979)","v":0},null,null,null,0,null,null,null,0.35]
[null,18,"Preferred Stocks, BSCR Rating 1",{"$f":"Import!I39804","v":0},null,{"$f":"IF(OR(Import!I39826=0,Import!I39826=\"\"),(1-$AB42)*D42,Import!I39826)","v":0},null,{"$f":"Import!I39848","v":0},null,{"$f":"IF(OR(Import!I39870=0,Import!I39870=\"\"),(1-$AB42)*H42,Import!I39870)","v":0},null,{"$f":"Import!I39892","v":0},null,{"$f":"IF(OR(Import!I39914=0,Import!I39914=\"\"),(1-$AB42)*L42,Import!I39914)","v":0},null,{"$f":"Import!I39936","v":0},null,{"$f":"IF(OR(Import!I39958=0,Import!I39958=\"\"),P42,Import!I39958)","v":0},null,{"$f":"IF(OR(Import!I39980=0,Import!I39980=\"\"),R42,Import!I39980)","v":0},null,null,null,0,null,null,null,6.0000000000000001E-3]
[null,19,"Preferred Stocks, BSCR Rating 2",{"$f":"Import!I39805","v":0},null,{"$f":"IF(OR(Import!I39827=0,Import!I39827=\"\"),(1-$AB43)*D43,Import!I39827)","v":0},null,{"$f":"Import!I39849","v":0},null,{"$f":"IF(OR(Import!I39871=0,Import!I39871=\"\"),(1-$AB43)*H43,Import!I39871)","v":0},null,{"$f":"Import!I39893","v":0},null,{"$f":"IF(OR(Import!I39915=0,Import!I39915=\"\"),(1-$AB43)*L43,Import!I39915)","v":0},null,{"$f":"Import!I39937","v":0},null,{"$f":"IF(OR(Import!I39959=0,Import!I39959=\"\"),P43,Import!I39959)","v":0},null,{"$f":"IF(OR(Import!I39981=0,Import!I39981=\"\"),R43,Import!I39981)","v":0},null,null,null,0,null,null,null,1.2E-2]
[null,20,"Preferred Stocks, BSCR Rating 3",{"$f":"Import!I39806","v":0},null,{"$f":"IF(OR(Import!I39828=0,Import!I39828=\"\"),(1-$AB44)*D44,Import!I39828)","v":0},null,{"$f":"Import!I39850","v":0},null,{"$f":"IF(OR(Import!I39872=0,Import!I39872=\"\"),(1-$AB44)*H44,Import!I39872)","v":0},null,{"$f":"Import!I39894","v":0},null,{"$f":"IF(OR(Import!I39916=0,Import!I39916=\"\"),(1-$AB44)*L44,Import!I39916)","v":0},null,{"$f":"Import!I39938","v":0},null,{"$f":"IF(OR(Import!I39960=0,Import!I39960=\"\"),P44,Import!I39960)","v":0},null,{"$f":"IF(OR(Import!I39982=0,Import!I39982=\"\"),R44,Import!I39982)","v":0},null,null,null,0,null,null,null,0.02]
[null,21,"Preferred Stocks, BSCR Rating 4",{"$f":"Import!I39807","v":0},null,{"$f":"IF(OR(Import!I39829=0,Import!I39829=\"\"),(1-$AB45)*D45,Import!I39829)","v":0},null,{"$f":"Import!I39851","v":0},null,{"$f":"IF(OR(Import!I39873=0,Import!I39873=\"\"),(1-$AB45)*H45,Import!I39873)","v":0},null,{"$f":"Import!I39895","v":0},null,{"$f":"IF(OR(Import!I39917=0,Import!I39917=\"\"),(1-$AB45)*L45,Import!I39917)","v":0},null,{"$f":"Import!I39939","v":0},null,{"$f":"IF(OR(Import!I39961=0,Import!I39961=\"\"),P45,Import!I39961)","v":0},null,{"$f":"IF(OR(Import!I39983=0,Import!I39983=\"\"),R45,Import!I39983)","v":0},null,null,null,0,null,null,null,0.04]
[null,22,"Preferred Stocks, BSCR Rating 5",{"$f":"Import!I39808","v":0},null,{"$f":"IF(OR(Import!I39830=0,Import!I39830=\"\"),(1-$AB46)*D46,Import!I39830)","v":0},null,{"$f":"Import!I39852","v":0},null,{"$f":"IF(OR(Import!I39874=0,Import!I39874=\"\"),(1-$AB46)*H46,Import!I39874)","v":0},null,{"$f":"Import!I39896","v":0},null,{"$f":"IF(OR(Import!I39918=0,Import!I39918=\"\"),(1-$AB46)*L46,Import!I39918)","v":0},null,{"$f":"Import!I39940","v":0},null,{"$f":"IF(OR(Import!I39962=0,Import!I39962=\"\"),P46,Import!I39962)","v":0},null,{"$f":"IF(OR(Import!I39984=0,Import!I39984=\"\"),R46,Import!I39984)","v":0},null,null,null,0,null,null,null,0.11]
[null,23,"Preferred Stocks, BSCR Rating 6",{"$f":"Import!I39809","v":0},null,{"$f":"IF(OR(Import!I39831=0,Import!I39831=\"\"),(1-$AB47)*D47,Import!I39831)","v":0},null,{"$f":"Import!I39853","v":0},null,{"$f":"IF(OR(Import!I39875=0,Import!I39875=\"\"),(1-$AB47)*H47,Import!I39875)","v":0},null,{"$f":"Import!I39897","v":0},null,{"$f":"IF(OR(Import!I39919=0,Import!I39919=\"\"),(1-$AB47)*L47,Import!I39919)","v":0},null,{"$f":"Import!I39941","v":0},null,{"$f":"IF(OR(Import!I39963=0,Import!I39963=\"\"),P47,Import!I39963)","v":0},null,{"$f":"IF(OR(Import!I39985=0,Import!I39985=\"\"),R47,Import!I39985)","v":0},null,null,null,0,null,null,null,0.25]
[null,24,"Preferred Stocks, BSCR Rating 7",{"$f":"Import!I39810","v":0},null,{"$f":"IF(OR(Import!I39832=0,Import!I39832=\"\"),(1-$AB48)*D48,Import!I39832)","v":0},null,{"$f":"Import!I39854","v":0},null,{"$f":"IF(OR(Import!I39876=0,Import!I39876=\"\"),(1-$AB48)*H48,Import!I39876)","v":0},null,{"$f":"Import!I39898","v":0},null,{"$f":"IF(OR(Import!I39920=0,Import!I39920=\"\"),(1-$AB48)*L48,Import!I39920)","v":0},null,{"$f":"Import!I39942","v":0},null,{"$f":"IF(OR(Import!I39964=0,Import!I39964=\"\"),P48,Import!I39964)","v":0},null,{"$f":"IF(OR(Import!I39986=0,Import!I39986=\"\"),R48,Import!I39986)","v":0},null,null,null,0,null,null,null,0.35]
[null,25,"Preferred Stocks, BSCR Rating 8",{"$f":"Import!I39811","v":0},null,{"$f":"IF(OR(Import!I39833=0,Import!I39833=\"\"),(1-$AB49)*D49,Import!I39833)","v":0},null,{"$f":"Import!I39855","v":0},null,{"$f":"IF(OR(Import!I39877=0,Import!I39877=\"\"),(1-$AB49)*H49,Import!I39877)","v":0},null,{"$f":"Import!I39899","v":0},null,{"$f":"IF(OR(Import!I39921=0,Import!I39921=\"\"),(1-$AB49)*L49,Import!I39921)","v":0},null,{"$f":"Import!I39943","v":0},null,{"$f":"IF(OR(Import!I39965=0,Import!I39965=\"\"),P49,Import!I39965)","v":0},null,{"$f":"IF(OR(Import!I39987=0,Import!I39987=\"\"),R49,Import!I39987)","v":0},null,null,null,0,null,null,null,0.35]
[null,26,"Equity Derivatives on Type 1 Equities",{"$f":"Import!I39812","v":0},null,{"$f":"Import!I39834","v":0},null,{"$f":"Import!I39856","v":0},null,{"$f":"Import!I39878","v":0},null,{"$f":"Import!I39900","v":0},null,{"$f":"Import!I39922","v":0},null,{"$f":"Import!I39944","v":0},null,{"$f":"IF(OR(Import!I39966=0,Import!I39966=\"\"),P50,Import!I39966)","v":0},null,{"$f":"IF(OR(Import!I39988=0,Import!I39988=\"\"),R50,Import!I39988)","v":0},null,null,null,0,null,null,null,0.35]
[null,27,"Strategic Holdings - Unlisted",{"$f":"Import!I39813","v":0},null,{"$f":"IF(OR(Import!I39835=0,Import!I39835=\"\"),(1-$AB51)*D51,Import!I39835)","v":0},null,{"$f":"Import!I39857","v":0},null,{"$f":"IF(OR(Import!I39879=0,Import!I39879=\"\"),(1-$AB51)*H51,Import!I39879)","v":0},null,{"$f":"Import!I39901","v":0},null,{"$f":"IF(OR(Import!I39923=0,Import!I39923=\"\"),(1-$AB51)*L51,Import!I39923)","v":0},null,{"$f":"Import!I39945","v":0},null,{"$f":"IF(OR(Import!I39967=0,Import!I39967=\"\"),P51,Import!I39967)","v":0},null,{"$f":"IF(OR(Import!I39989=0,Import!I39989=\"\"),R51,Import!I39989)","v":0},null,null,null,0,null,null,null,0.2]
[null,28,"Other Equities / Other Assets",{"$f":"Import!I39814","v":0},null,{"$f":"IF(OR(Import!I39836=0,Import!I39836=\"\"),(1-$AB52)*D52,Import!I39836)","v":0},null,{"$f":"Import!I39858","v":0},null,{"$f":"IF(OR(Import!I39880=0,Import!I39880=\"\"),(1-$AB52)*H52,Import!I39880)","v":0},null,{"$f":"Import!I39902","v":0},null,{"$f":"IF(OR(Import!I39924=0,Import!I39924=\"\"),(1-$AB52)*L52,Import!I39924)","v":0},null,{"$f":"Import!I39946","v":0},null,{"$f":"IF(OR(Import!I39968=0,Import!I39968=\"\"),P52,Import!I39968)","v":0},null,{"$f":"IF(OR(Import!I39990=0,Import!I39990=\"\"),R52,Import!I39990)","v":0},null,null,null,0,null,null,null,0.45]
[null,29,"Letters of Credit",{"$f":"Import!I39815","v":0},null,{"$f":"IF(OR(Import!I39837=0,Import!I39837=\"\"),(1-$AB53)*D53,Import!I39837)","v":0},null,{"$f":"Import!I39859","v":0},null,{"$f":"IF(OR(Import!I39881=0,Import!I39881=\"\"),(1-$AB53)*H53,Import!I39881)","v":0},null,{"$f":"Import!I39903","v":0},null,{"$f":"IF(OR(Import!I39925=0,Import!I39925=\"\"),(1-$AB53)*L53,Import!I39925)","v":0},null,{"$f":"Import!I39947","v":0},null,{"$f":"IF(OR(Import!I39969=0,Import!I39969=\"\"),P53,Import!I39969)","v":0},null,{"$f":"IF(OR(Import!I39991=0,Import!I39991=\"\"),R53,Import!I39991)","v":0},null,null,null,0,null,null,null,0.2]
[null,30,"Intangible assets",{"$f":"Import!I39816","v":0},null,{"$f":"IF(OR(Import!I39838=0,Import!I39838=\"\"),(1-$AB54)*D54,Import!I39838)","v":0},null,{"$f":"Import!I39860","v":0},null,{"$f":"IF(OR(Import!I39882=0,Import!I39882=\"\"),(1-$AB54)*H54,Import!I39882)","v":0},null,{"$f":"Import!I39904","v":0},null,{"$f":"IF(OR(Import!I39926=0,Import!I39926=\"\"),(1-$AB54)*L54,Import!I39926)","v":0},null,{"$f":"Import!I39948","v":0},null,{"$f":"IF(OR(Import!I39970=0,Import!I39970=\"\"),P54,Import!I39970)","v":0},null,{"$f":"IF(OR(Import!I39992=0,Import!I39992=\"\"),R54,Import!I39992)","v":0},null,null,null,0,null,null,null,0.2]
[null,31,"Pension Benefit Surplus",{"$f":"Import!I39817","v":0},null,{"$f":"IF(OR(Import!I39839=0,Import!I39839=\"\"),(1-$AB55)*D55,Import!I39839)","v":0},null,{"$f":"Import!I39861","v":0},null,{"$f":"IF(OR(Import!I39883=0,Import!I39883=\"\"),(1-$AB55)*H55,Import!I39883)","v":0},null,{"$f":"Import!I39905","v":0},null,{"$f":"IF(OR(Import!I39927=0,Import!I39927=\"\"),(1-$AB55)*L55,Import!I39927)","v":0},null,{"$f":"Import!I39949","v":0},null,{"$f":"IF(OR(Import!I39971=0,Import!I39971=\"\"),P55,Import!I39971)","v":0},null,{"$f":"IF(OR(Import!I39993=0,Import!I39993=\"\"),R55,Import!I39993)","v":0},null,null,null,0,null,null,null,0.2]
[null,32,"Equity Derivatives on Type 2 Equities",{"$f":"Import!I39818","v":0},null,{"$f":"Import!I39840","v":0},null,{"$f":"Import!I39862","v":0},null,{"$f":"Import!I39884","v":0},null,{"$f":"Import!I39906","v":0},null,{"$f":"Import!I39928","v":0},null,{"$f":"Import!I39950","v":0},null,{"$f":"IF(OR(Import!I39972=0,Import!I39972=\"\"),P56,Import!I39972)","v":0},null,{"$f":"IF(OR(Import!I39994=0,Import!I39994=\"\"),R56,Import!I39994)","v":0},null,null,null,0,null,null,null,0.45]
[null,33,"Infrastructure",{"$f":"Import!I39819","v":0},null,{"$f":"IF(OR(Import!I39841=0,Import!I39841=\"\"),(1-$AB57)*D57,Import!I39841)","v":0},null,{"$f":"Import!I39863","v":0},null,{"$f":"IF(OR(Import!I39885=0,Import!I39885=\"\"),(1-$AB57)*H57,Import!I39885)","v":0},null,{"$f":"Import!I39907","v":0},null,{"$f":"IF(OR(Import!I39929=0,Import!I39929=\"\"),(1-$AB57)*L57,Import!I39929)","v":0},null,{"$f":"Import!I39951","v":0},null,{"$f":"IF(OR(Import!I39973=0,Import!I39973=\"\"),P57,Import!I39973)","v":0},null,{"$f":"IF(OR(Import!I39995=0,Import!I39995=\"\"),R57,Import!I39995)","v":0},null,null,null,0,null,null,null,0.25]
[null,34,"Derivatives on Infrastructure",{"$f":"Import!I39820","v":0},null,{"$f":"Import!I39842","v":0},null,{"$f":"Import!I39864","v":0},null,{"$f":"Import!I39886","v":0},null,{"$f":"Import!I39908","v":0},null,{"$f":"Import!I39930","v":0},null,{"$f":"Import!I39952","v":0},null,{"$f":"IF(OR(Import!I39974=0,Import!I39974=\"\"),P58,Import!I39974)","v":0},null,{"$f":"IF(OR(Import!I39996=0,Import!I39996=\"\"),R58,Import!I39996)","v":0},null,null,null,0,null,null,null,0.25]
[null,35,"Equity Real Estate 1",{"$f":"Import!I39821","v":0},null,{"$f":"IF(OR(Import!I39843=0,Import!I39843=\"\"),(1-$AB59)*D59,Import!I39843)","v":0},null,{"$f":"Import!I39865","v":0},null,{"$f":"IF(OR(Import!I39887=0,Import!I39887=\"\"),(1-$AB59)*H59,Import!I39887)","v":0},null,{"$f":"Import!I39909","v":0},null,{"$f":"IF(OR(Import!I39931=0,Import!I39931=\"\"),(1-$AB59)*L59,Import!I39931)","v":0},null,{"$f":"Import!I39953","v":0},null,{"$f":"IF(OR(Import!I39975=0,Import!I39975=\"\"),P59,Import!I39975)","v":0},null,{"$f":"IF(OR(Import!I39997=0,Import!I39997=\"\"),R59,Import!I39997)","v":0},null,null,null,0,null,null,null,0.1]
[null,36,"Equity Real Estate 2",{"$f":"Import!I39822","v":0},null,{"$f":"IF(OR(Import!I39844=0,Import!I39844=\"\"),(1-$AB60)*D60,Import!I39844)","v":0},null,{"$f":"Import!I39866","v":0},null,{"$f":"IF(OR(Import!I39888=0,Import!I39888=\"\"),(1-$AB60)*H60,Import!I39888)","v":0},null,{"$f":"Import!I39910","v":0},null,{"$f":"IF(OR(Import!I39932=0,Import!I39932=\"\"),(1-$AB60)*L60,Import!I39932)","v":0},null,{"$f":"Import!I39954","v":0},null,{"$f":"IF(OR(Import!I39976=0,Import!I39976=\"\"),P60,Import!I39976)","v":0},null,{"$f":"IF(OR(Import!I39998=0,Import!I39998=\"\"),R60,Import!I39998)","v":0},null,null,null,0,null,null,null,0.2]
[]
[null,{"$f":"B60+1","v":37},"Total Equity Holdings",{"$f":"SUM(D38:D61)","v":0},null,{"$f":"SUM(F38:F61)","v":0},null,{"$f":"SUM(H38:H61)","v":0},null,{"$f":"SUM(J38:J61)","v":0},null,{"$f":"SUM(L38:L61)","v":0},null,{"$f":"SUM(N38:N61)","v":0},null,{"$f":"SUM(P38:P61)","v":0},null,{"$f":"SUM(R38:R61)","v":0},null,{"$f":"SUM(T38:T61)","v":0},null,null,null,{"$f":"SUM(X38:X61)","v":0}]
[]
[null,null,null,"Spread Up",null,null,null,null,null,null,null,null,null,"Spread Down"]
[null,null,null,"Long Exposures",null,null,null,"Short Exposures",null,null,null,"Shock (bps)",null,"Long Exposures",null,null,null,"Short Exposures",null,null,null,"Shock Rates"]
[null,null,null,"Before Shock",null,"After Shock",null,"Before Shock",null,"After Shock",null,null,null,"Before Shock",null,"After Shock",null,"Before Shock",null,"After Shock"]
[null,null,"Spread Risk for Credit Derivatives"]
[null,{"$f":"B62+1","v":38},"BSCR Rating 0",{"$f":"Import!I39999","v":0},null,{"$f":"Import!I40008","v":0},null,{"$f":"Import!I40017","v":0},null,{"$f":"Import!I40026","v":0},null,0,null,{"$f":"Import!I40035","v":0},null,{"$f":"Import!I40044","v":0},null,{"$f":"Import!I40053","v":0},null,{"$f":"Import!I40062","v":0},null,0]
[null,{"$f":"B68+1","v":39},"BSCR Rating 1",{"$f":"Import!I40000","v":0},null,{"$f":"Import!I40009","v":0},null,{"$f":"Import!I40018","v":0},null,{"$f":"Import!I40027","v":0},null,130,null,{"$f":"Import!I40036","v":0},null,{"$f":"Import!I40045","v":0},null,{"$f":"Import!I40054","v":0},null,{"$f":"Import!I40063","v":0},null,-0.75]
[null,{"$f":"B69+1","v":40},"BSCR Rating 2",{"$f":"Import!I40001","v":0},null,{"$f":"Import!I40010","v":0},null,{"$f":"Import!I40019","v":0},null,{"$f":"Import!I40028","v":0},null,150,null,{"$f":"Import!I40037","v":0},null,{"$f":"Import!I40046","v":0},null,{"$f":"Import!I40055","v":0},null,{"$f":"Import!I40064","v":0},null,-0.75]
[null,41,"BSCR Rating 3",{"$f":"Import!I40002","v":0},null,{"$f":"Import!I40011","v":0},null,{"$f":"Import!I40020","v":0},null,{"$f":"Import!I40029","v":0},null,260,null,{"$f":"Import!I40038","v":0},null,{"$f":"Import!I40047","v":0},null,{"$f":"Import!I40056","v":0},null,{"$f":"Import!I40065","v":0},null,-0.75]
[null,42,"BSCR Rating 4",{"$f":"Import!I40003","v":0},null,{"$f":"Import!I40012","v":0},null,{"$f":"Import!I40021","v":0},null,{"$f":"Import!I40030","v":0},null,450,null,{"$f":"Import!I40039","v":0},null,{"$f":"Import!I40048","v":0},null,{"$f":"Import!I40057","v":0},null,{"$f":"Import!I40066","v":0},null,-0.75]
[null,43,"BSCR Rating 5",{"$f":"Import!I40004","v":0},null,{"$f":"Import!I40013","v":0},null,{"$f":"Import!I40022","v":0},null,{"$f":"Import!I40031","v":0},null,840,null,{"$f":"Import!I40040","v":0},null,{"$f":"Import!I40049","v":0},null,{"$f":"Import!I40058","v":0},null,{"$f":"Import!I40067","v":0},null,-0.75]
[null,44,"BSCR Rating 6",{"$f":"Import!I40005","v":0},null,{"$f":"Import!I40014","v":0},null,{"$f":"Import!I40023","v":0},null,{"$f":"Import!I40032","v":0},null,1620,null,{"$f":"Import!I40041","v":0},null,{"$f":"Import!I40050","v":0},null,{"$f":"Import!I40059","v":0},null,{"$f":"Import!I40068","v":0},null,-0.75]
[null,45,"BSCR Rating 7",{"$f":"Import!I40006","v":0},null,{"$f":"Import!I40015","v":0},null,{"$f":"Import!I40024","v":0},null,{"$f":"Import!I40033","v":0},null,1620,null,{"$f":"Import!I40042","v":0},null,{"$f":"Import!I40051","v":0},null,{"$f":"Import!I40060","v":0},null,{"$f":"Import!I40069","v":0},null,-0.75]
[null,46,"BSCR Rating 8",{"$f":"Import!I40007","v":0},null,{"$f":"Import!I40016","v":0},null,{"$f":"Import!I40025","v":0},null,{"$f":"Import!I40034","v":0},null,1620,null,{"$f":"Import!I40043","v":0},null,{"$f":"Import!I40052","v":0},null,{"$f":"Import!I40061","v":0},null,{"$f":"Import!I40070","v":0},null,-0.75]
[null,47,"Total Spread",{"$f":"SUM(D67:D76)","v":0},null,{"$f":"SUM(F67:F76)","v":0},null,{"$f":"SUM(H67:H76)","v":0},null,{"$f":"SUM(J67:J76)","v":0},null,null,null,{"$f":"SUM(N67:N76)","v":0},null,{"$f":"SUM(P67:P76)","v":0},null,{"$f":"SUM(R67:R76)","v":0},null,{"$f":"SUM(T67:T76)","v":0}]
[]
[null,null,"Spread Risk Check",null,null,null,null,null,null,null,null,null,null,{"$f":"IF(ROUND(D77-N77,0)=0,\"Yes\",\"No\")","v":"Yes"},null,null,null,{"$f":"IF(ROUND(H77-R77,0)=0,\"Yes\",\"No\")","v":"Yes"}]
[null,null,"Difference",null,null,null,null,null,null,null,null,null,null,{"$f":"ROUND(D77-N77,0)","v":0},null,null,null,{"$f":"ROUND(H77-R77,0)","v":0}]
[]
[null,null,null,"Market Value of Derivatives with Positive Market Value",null,"Market Value of Derivatives with Negative Market Value",null,"Market Value of Collateral, Excluding any over-collateralization"]
[null,null,"Counterparty Default Risk for OTC Derivatives"]
[null,{"$f":"B77+1","v":48},"BSCR Rating 0",{"$f":"Import!I40071","v":0},null,{"$f":"Import!I40080","v":0},null,{"$f":"Import!I40089","v":0}]
[null,{"$f":"B84+1","v":49},"BSCR Rating 1",{"$f":"Import!I40072","v":0},null,{"$f":"Import!I40081","v":0},null,{"$f":"Import!I40090","v":0}]
[null,{"$f":"B85+1","v":50},"BSCR Rating 2",{"$f":"Import!I40073","v":0},null,{"$f":"Import!I40082","v":0},null,{"$f":"Import!I40091","v":0}]
[null,51,"BSCR Rating 3",{"$f":"Import!I40074","v":0},null,{"$f":"Import!I40083","v":0},null,{"$f":"Import!I40092","v":0}]
[null,52,"BSCR Rating 4",{"$f":"Import!I40075","v":0},null,{"$f":"Import!I40084","v":0},null,{"$f":"Import!I40093","v":0}]
[null,53,"BSCR Rating 5",{"$f":"Import!I40076","v":0},null,{"$f":"Import!I40085","v":0},null,{"$f":"Import!I40094","v":0}]
[null,54,"BSCR Rating 6",{"$f":"Import!I40077","v":0},null,{"$f":"Import!I40086","v":0},null,{"$f":"Import!I40095","v":0}]
[null,55,"BSCR Rating 7",{"$f":"Import!I40078","v":0},null,{"$f":"Import!I40087","v":0},null,{"$f":"Import!I40096","v":0}]
[null,56,"BSCR Rating 8",{"$f":"Import!I40079","v":0},null,{"$f":"Import!I40088","v":0},null,{"$f":"Import!I40097","v":0}]
[null,57,"Total Default Risk for OTC Derivatives ",0,null,0,null,0]
[]
[null,{"$f":"B93+1","v":58},"Cash and Cash Equivalents",{"$f":"Import!I40098","v":0}]
[]
[null,{"$f":"B95+1","v":59},"Total Deposit Assets",{"$f":"X27+X62+D77+H77+D93+F93+H93+D95","v":0}]
[]
[null,null,"Please include in the table below any assets, included in this Schedule, for which NAIC ratings were used to map to the BSCR rating classes"]
[null,null,"Information on the use of NAIC ratings\n(for disclosure purposes only)","CORPORATE & SOVEREIGN BONDS",null,"RESIDENTIAL MORTGAGE-BACKED SECURITIES",null,"COMMERCIAL MORTGAGE-BACKED SECURITIES / ASSET-BACKED SECURITIES",null,"BOND MUTUAL FUNDS",null,"MORTGAGE LOANS",null,"PREFERRED STOCKS",null,"OTHER ASSETS"]
[null,null,"NAIC Class 1",{"$f":"Import!I40099","v":0},null,{"$f":"Import!I40106","v":0},null,{"$f":"Import!I40113","v":0},null,{"$f":"Import!I40120","v":0},null,{"$f":"Import!I40127","v":0},null,{"$f":"Import!I40134","v":0},null,{"$f":"Import!I40141","v":0}]
[null,null,"NAIC Class 2",{"$f":"Import!I40100","v":0},null,{"$f":"Import!I40107","v":0},null,{"$f":"Import!I40114","v":0},null,{"$f":"Import!I40121","v":0},null,{"$f":"Import!I40128","v":0},null,{"$f":"Import!I40135","v":0},null,{"$f":"Import!I40142","v":0}]
[null,null,"NAIC Class 3",{"$f":"Import!I40101","v":0},null,{"$f":"Import!I40108","v":0},null,{"$f":"Import!I40115","v":0},null,{"$f":"Import!I40122","v":0},null,{"$f":"Import!I40129","v":0},null,{"$f":"Import!I40136","v":0},null,{"$f":"Import!I40143","v":0}]
[null,null,"NAIC Class 4",{"$f":"Import!I40102","v":0},null,{"$f":"Import!I40109","v":0},null,{"$f":"Import!I40116","v":0},null,{"$f":"Import!I40123","v":0},null,{"$f":"Import!I40130","v":0},null,{"$f":"Import!I40137","v":0},null,{"$f":"Import!I40144","v":0}]
[null,null,"NAIC Class 5",{"$f":"Import!I40103","v":0},null,{"$f":"Import!I40110","v":0},null,{"$f":"Import!I40117","v":0},null,{"$f":"Import!I40124","v":0},null,{"$f":"Import!I40131","v":0},null,{"$f":"Import!I40138","v":0},null,{"$f":"Import!I40145","v":0}]
[null,null,"NAIC Class 6",{"$f":"Import!I40104","v":0},null,{"$f":"Import!I40111","v":0},null,{"$f":"Import!I40118","v":0},null,{"$f":"Import!I40125","v":0},null,{"$f":"Import!I40132","v":0},null,{"$f":"Import!I40139","v":0},null,{"$f":"Import!I40146","v":0}]
[null,null,null,{"$f":"SUM(D101:D106)","v":0},null,{"$f":"SUM(F101:F106)","v":0},null,{"$f":"SUM(H101:H106)","v":0},null,{"$f":"SUM(J101:J106)","v":0},null,{"$f":"SUM(L101:L106)","v":0},null,{"$f":"SUM(N101:N106)","v":0},null,{"$f":"SUM(P101:P106)","v":0}]

{"sheet":"Schedule IIF (EBS)","index":32,"n_rows":107,"n_cols":28,"rows_kept":107,"cut":false,"hidden":false,"merged":[[33,27,34,27],[7,23,7,25],[32,3,32,13],[33,3,34,5],[33,7,33,13],[33,23,34,23],[34,7,34,9],[7,19,7,21],[34,11,34,13],[32,15,32,19],[33,15,34,15],[33,17,34,17],[33,19,34,19],[3,3,3,5],[7,3,7,5],[7,7,7,9],[7,11,7,13],[7,15,7,17],[63,3,63,11],[63,13,63,21],[64,3,64,5],[64,7,64,9],[64,13,64,15],[64,17,64,19]]}
[null,"OTHER SUNDRY ASSETS AND LIABILITIES",null,null,null,null,null,null,null,null,null,null,null,null,null,null,null,null,null,null,null,null,null,null,null,null,null,{"$f":"HYPERLINK(\"#'Index'!A1\",\"Return to Index\")","v":"Return to Index"}]
[]
[null,{"$f":"+'Group Information'!C9","v":"Enter Parent Company Name"}]
[null,"As at",null,{"$f":"+'Group Information'!C3","v":"2023-12-31"},null,null,null,null,null,null,null,null,null,null,null,null,null,null,null,null,null,null,null,null,null,"SCHEDULE IIF (EBS)"]
[null,{"$f":"+'Form 1EBS'!B4","v":"expressed in "},null,{"$f":"+'Form 1EBS'!C4","v":" ['000s]United States Dollars"}]
[]
[null,null,null,"(1)",null,"(2)",null,"(3)",null,"(4)",null,"(5)",null,"(6)",null,"(7)",null,"(8)",null,"(9)",null,"(10)",null,"(11)",null,"(12)"]
[null,null,null,"Corporate & Sovereign Bonds",null,null,null,"Residential Mortgage Backed Securities",null,null,null,"Commercial Mortgage Backed Securities / Asset- Backed Securities",null,null,null,"Bond Mutual Funds",null,null,null,"Mortgage Loans",null,null,null,"TOTAL"]
[null,null,null,{"$f":"+'Form 1EBS'!$F$7","v":"2023-12-31"},null,{"$f":"+'Form 1EBS'!$H$7","v":"2022-12-31"},null,{"$f":"+'Form 1EBS'!$F$7","v":"2023-12-31"},null,{"$f":"+'Form 1EBS'!$H$7","v":"2022-12-31"},null,{"$f":"+'Form 1EBS'!$F$7","v":"2023-12-31"},null,{"$f":"+'Form 1EBS'!$H$7","v":"2022-12-31"},null,{"$f":"+'Form 1EBS'!$F$7","v":"2023-12-31"},null,{"$f":"+'Form 1EBS'!$H$7","v":"2022-12-31"},null,{"$f":"+'Form 1EBS'!$F$7","v":"2023-12-31"},null,{"$f":"+'Form 1EBS'!$H$7","v":"2022-12-31"},null,{"$f":"+'Form 1EBS'!$F$7","v":"2023-12-31"},null,{"$f":"+'Form 1EBS'!$H$7","v":"2022-12-31"}]
[null,null,null,{"$f":"+'Form 1EBS'!$F$8","v":"('000)"},null,{"$f":"+'Form 1EBS'!$H$8","v":"('000)"},null,{"$f":"+'Form 1EBS'!$F$8","v":"('000)"},null,{"$f":"+'Form 1EBS'!$H$8","v":"('000)"},null,{"$f":"+'Form 1EBS'!$F$8","v":"('000)"},null,{"$f":"+'Form 1EBS'!$H$8","v":"('000)"},null,{"$f":"+'Form 1EBS'!$F$8","v":"('000)"},null,{"$f":"+'Form 1EBS'!$H$8","v":"('000)"},null,{"$f":"+'Form 1EBS'!$F$8","v":"('000)"},null,{"$f":"+'Form 1EBS'!$H$8","v":"('000)"},null,{"$f":"+'Form 1EBS'!$F$8","v":"('000)"},null,{"$f":"+'Form 1EBS'!$H$8","v":"('000)"}]
[null,"Line no. "]
[null,"Quoted and Unquoted Bonds and Debentures"]
[null,1,"BSCR Rating 0",{"$f":"Import!I40149","v":0},null,{"$f":"Import!K40149","v":0},null,null,null,null,null,null,null,null,null,{"$f":"Import!I40174","v":0},null,{"$f":"Import!K40174","v":0},null,null,null,null,null,{"$f":"D13+H13+L13+P13","v":0},null,{"$f":"F13+J13+N13+R13","v":0}]
[null,{"$f":"B13+1","v":2},"BSCR Rating 1",{"$f":"Import!I40150","v":0},null,{"$f":"Import!K40150","v":0},null,{"$f":"Import!I40158","v":0},null,{"$f":"Import!K40158","v":0},null,{"$f":"Import!I40166","v":0},null,{"$f":"Import!K40166","v":0},null,{"$f":"Import!I40175","v":0},null,{"$f":"Import!K40175","v":0},null,null,null,null,null,{"$f":"D14+H14+L14+P14","v":0},null,0]
[null,{"$f":"B14+1","v":3},"BSCR Rating 2",{"$f":"Import!I40151","v":0},null,{"$f":"Import!K40151","v":0},null,{"$f":"Import!I40159","v":0},null,{"$f":"Import!K40159","v":0},null,{"$f":"Import!I40167","v":0},null,{"$f":"Import!K40167","v":0},null,{"$f":"Import!I40176","v":0},null,{"$f":"Import!K40176","v":0},null,null,null,null,null,0,null,0]
[null,4,"BSCR Rating 3",{"$f":"Import!I40152","v":0},null,{"$f":"Import!K40152","v":0},null,{"$f":"Import!I40160","v":0},null,{"$f":"Import!K40160","v":0},null,{"$f":"Import!I40168","v":0},null,{"$f":"Import!K40168","v":0},null,{"$f":"Import!I40177","v":0},null,{"$f":"Import!K40177","v":0},null,null,null,null,null,0,null,0]
[null,5,"BSCR Rating 4",{"$f":"Import!I40153","v":0},null,{"$f":"Import!K40153","v":0},null,{"$f":"Import!I40161","v":0},null,{"$f":"Import!K40161","v":0},null,{"$f":"Import!I40169","v":0},null,{"$f":"Import!K40169","v":0},null,{"$f":"Import!I40178","v":0},null,{"$f":"Import!K40178","v":0},null,null,null,null,null,0,null,0]
[null,6,"BSCR Rating 5",{"$f":"Import!I40154","v":0},null,{"$f":"Import!K40154","v":0},null,{"$f":"Import!I40162","v":0},null,{"$f":"Import!K40162","v":0},null,{"$f":"Import!I40170","v":0},null,{"$f":"Import!K40170","v":0},null,{"$f":"Import!I40179","v":0},null,{"$f":"Import!K40179","v":0},null,null,null,null,null,0,null,0]
[null,7,"BSCR Rating 6",{"$f":"Import!I40155","v":0},null,{"$f":"Import!K40155","v":0},null,{"$f":"Import!I40163","v":0},null,{"$f":"Import!K40163","v":0},null,{"$f":"Import!I40171","v":0},null,{"$f":"Import!K40171","v":0},null,{"$f":"Import!I40180","v":0},null,{"$f":"Import!K40180","v":0},null,null,null,null,null,0,null,0]
[null,8,"BSCR Rating 7",{"$f":"Import!I40156","v":0},null,{"$f":"Import!K40156","v":0},null,{"$f":"Import!I40164","v":0},null,{"$f":"Import!K40164","v":0},null,{"$f":"Import!I40172","v":0},null,{"$f":"Import!K40172","v":0},null,{"$f":"Import!I40181","v":0},null,{"$f":"Import!K40181","v":0},null,null,null,null,null,0,null,0]
[null,9,"BSCR Rating 8",{"$f":"Import!I40157","v":0},null,{"$f":"Import!K40157","v":0},null,{"$f":"Import!I40165","v":0},null,{"$f":"Import!K40165","v":0},null,{"$f":"Import!I40173","v":0},null,{"$f":"Import!K40173","v":0},null,{"$f":"Import!I40182","v":0},null,{"$f":"Import!K40182","v":0},null,null,null,null,null,0,null,0]
[null,10,"Insured/Guaranteed Mortgages",null,null,null,null,null,null,null,null,null,null,null,null,null,null,null,null,{"$f":"Import!I40183","v":0},null,{"$f":"Import!K40183","v":0},null,{"$f":"D22+H22+L22+P22+T22","v":0},null,{"$f":"F22+J22+N22+R22+V22","v":0}]
[null,11,"Other Commercial and Farm Mortgages",null,null,null,null,null,null,null,null,null,null,null,null,null,null,null,null,{"$f":"Import!I40184","v":0},null,{"$f":"Import!K40184","v":0},null,{"$f":"D23+H23+L23+P23+T23","v":0},null,0]
[null,12,"Other Residential Mortgages",null,null,null,null,null,null,null,null,null,null,null,null,null,null,null,null,{"$f":"Import!I40185","v":0},null,{"$f":"Import!K40185","v":0},null,0,null,0]
[null,13,"Mortgages Not In Good Standing",null,null,null,null,null,null,null,null,null,null,null,null,null,null,null,null,{"$f":"Import!I40186","v":0},null,{"$f":"Import!K40186","v":0},null,0,null,0]
[]
[null,{"$f":"B25+1","v":14},"Total",{"$f":"SUM(D13:D21)","v":0},null,{"$f":"SUM(F13:F21)","v":0},null,{"$f":"SUM(H13:H21)","v":0},null,{"$f":"SUM(J13:J21)","v":0},null,{"$f":"SUM(L13:L21)","v":0},null,{"$f":"SUM(N13:N21)","v":0},null,{"$f":"SUM(P13:P21)","v":0},null,{"$f":"SUM(R13:R21)","v":0},null,{"$f":"SUM(T13:T26)","v":0},null,{"$f":"SUM(V13:V26)","v":0},null,{"$f":"SUM(X13:X26)","v":0},null,{"$f":"SUM(Z13:Z26)","v":0}]
[]
[]
[]
[]
[]
[null,null,null,"ASSETS",null,null,null,null,null,null,null,null,null,null,null,"Liabilities"]
[null,null,null,"Long Exposures",null,null,null,"Short Exposures",null,null,null,null,null,null,null,null,null,"Without Management Actions",null,"With Management Actions",null,null,null,"Total Assets Before Shock",null,null,null,"Shocks"]
[null,null,null,null,null,null,null,"Qualifying as Assets held for risk-mitigation purposes",null,null,null,"Not Qualifying as Assets held for risk-mitigation purposes",null,null,null,null,null,null,null,null,null,null,null,null,null,null,null,"Shocks"]
[null,null,null,"Before Shock",null,"After Shock",null,"Before Shock",null,"After Shock",null,"Before Shock",null,"After Shock",null,"Before Shock",null,"After Shock",null,"After Shock"]
[null,null,null,{"$f":"+'Form 1EBS'!$F$8","v":"('000)"},null,{"$f":"+'Form 1EBS'!$H$8","v":"('000)"},null,{"$f":"+'Form 1EBS'!$F$8","v":"('000)"},null,{"$f":"+'Form 1EBS'!$H$8","v":"('000)"},null,{"$f":"+'Form 1EBS'!$F$8","v":"('000)"},null,{"$f":"+'Form 1EBS'!$H$8","v":"('000)"},null,{"$f":"+'Form 1EBS'!$F$8","v":"('000)"},null,{"$f":"+'Form 1EBS'!$H$8","v":"('000)"},null,{"$f":"+'Form 1EBS'!$H$8","v":"('000)"},null,null,null,{"$f":"+'Form 1EBS'!$F$8","v":"('000)"}]
[null,"Equity Holdings "]
[null,{"$f":"B27+1","v":15},"Strategic Holdings - Listed",{"$f":"Import!I40187","v":0},null,{"$f":"IF(OR(Import!I40209=0,Import!I40209=\"\"),(1-$AB39)*D39,Import!I40209)","v":0},null,{"$f":"Import!I40231","v":0},null,{"$f":"IF(OR(Import!I40253=0,Import!I40253=\"\"),(1-$AB39)*H39,Import!I40253)","v":0},null,{"$f":"Import!I40275","v":0},null,{"$f":"IF(OR(Import!I40297=0,Import!I40297=\"\"),(1-$AB39)*L39,Import!I40297)","v":0},null,{"$f":"Import!I40319","v":0},null,{"$f":"IF(OR(Import!I40341=0,Import!I40341=\"\"),P39,Import!I40341)","v":0},null,{"$f":"IF(OR(Import!I40363=0,Import!I40363=\"\"),R39,Import!I40363)","v":0},null,null,null,{"$f":"D39+H39+L39","v":0},null,null,null,0.2]
[null,{"$f":"B39+1","v":16},"Duration Based",{"$f":"Import!I40188","v":0},null,{"$f":"IF(OR(Import!I40210=0,Import!I40210=\"\"),(1-$AB40)*D40,Import!I40210)","v":0},null,{"$f":"Import!I40232","v":0},null,{"$f":"IF(OR(Import!I40254=0,Import!I40254=\"\"),(1-$AB40)*H40,Import!I40254)","v":0},null,{"$f":"Import!I40276","v":0},null,{"$f":"IF(OR(Import!I40298=0,Import!I40298=\"\"),(1-$AB40)*L40,Import!I40298)","v":0},null,{"$f":"Import!I40320","v":0},null,{"$f":"IF(OR(Import!I40342=0,Import!I40342=\"\"),P40,Import!I40342)","v":0},null,{"$f":"IF(OR(Import!I40364=0,Import!I40364=\"\"),R40,Import!I40364)","v":0},null,null,null,{"$f":"D40+H40+L40","v":0},null,null,null,0.2]
[null,17,"Listed Equity Securities in Developed Markets",{"$f":"Import!I40189","v":0},null,{"$f":"IF(OR(Import!I40211=0,Import!I40211=\"\"),(1-$AB41)*D41,Import!I40211)","v":0},null,{"$f":"Import!I40233","v":0},null,{"$f":"IF(OR(Import!I40255=0,Import!I40255=\"\"),(1-$AB41)*H41,Import!I40255)","v":0},null,{"$f":"Import!I40277","v":0},null,{"$f":"IF(OR(Import!I40299=0,Import!I40299=\"\"),(1-$AB41)*L41,Import!I40299)","v":0},null,{"$f":"Import!I40321","v":0},null,{"$f":"IF(OR(Import!I40343=0,Import!I40343=\"\"),P41,Import!I40343)","v":0},null,{"$f":"IF(OR(Import!I40365=0,Import!I40365=\"\"),R41,Import!I40365)","v":0},null,null,null,0,null,null,null,0.35]
[null,18,"Preferred Stocks, BSCR Rating 1",{"$f":"Import!I40190","v":0},null,{"$f":"IF(OR(Import!I40212=0,Import!I40212=\"\"),(1-$AB42)*D42,Import!I40212)","v":0},null,{"$f":"Import!I40234","v":0},null,{"$f":"IF(OR(Import!I40256=0,Import!I40256=\"\"),(1-$AB42)*H42,Import!I40256)","v":0},null,{"$f":"Import!I40278","v":0},null,{"$f":"IF(OR(Import!I40300=0,Import!I40300=\"\"),(1-$AB42)*L42,Import!I40300)","v":0},null,{"$f":"Import!I40322","v":0},null,{"$f":"IF(OR(Import!I40344=0,Import!I40344=\"\"),P42,Import!I40344)","v":0},null,{"$f":"IF(OR(Import!I40366=0,Import!I40366=\"\"),R42,Import!I40366)","v":0},null,null,null,0,null,null,null,6.0000000000000001E-3]
[null,19,"Preferred Stocks, BSCR Rating 2",{"$f":"Import!I40191","v":0},null,{"$f":"IF(OR(Import!I40213=0,Import!I40213=\"\"),(1-$AB43)*D43,Import!I40213)","v":0},null,{"$f":"Import!I40235","v":0},null,{"$f":"IF(OR(Import!I40257=0,Import!I40257=\"\"),(1-$AB43)*H43,Import!I40257)","v":0},null,{"$f":"Import!I40279","v":0},null,{"$f":"IF(OR(Import!I40301=0,Import!I40301=\"\"),(1-$AB43)*L43,Import!I40301)","v":0},null,{"$f":"Import!I40323","v":0},null,{"$f":"IF(OR(Import!I40345=0,Import!I40345=\"\"),P43,Import!I40345)","v":0},null,{"$f":"IF(OR(Import!I40367=0,Import!I40367=\"\"),R43,Import!I40367)","v":0},null,null,null,0,null,null,null,1.2E-2]
[null,20,"Preferred Stocks, BSCR Rating 3",{"$f":"Import!I40192","v":0},null,{"$f":"IF(OR(Import!I40214=0,Import!I40214=\"\"),(1-$AB44)*D44,Import!I40214)","v":0},null,{"$f":"Import!I40236","v":0},null,{"$f":"IF(OR(Import!I40258=0,Import!I40258=\"\"),(1-$AB44)*H44,Import!I40258)","v":0},null,{"$f":"Import!I40280","v":0},null,{"$f":"IF(OR(Import!I40302=0,Import!I40302=\"\"),(1-$AB44)*L44,Import!I40302)","v":0},null,{"$f":"Import!I40324","v":0},null,{"$f":"IF(OR(Import!I40346=0,Import!I40346=\"\"),P44,Import!I40346)","v":0},null,{"$f":"IF(OR(Import!I40368=0,Import!I40368=\"\"),R44,Import!I40368)","v":0},null,null,null,0,null,null,null,0.02]
[null,21,"Preferred Stocks, BSCR Rating 4",{"$f":"Import!I40193","v":0},null,{"$f":"IF(OR(Import!I40215=0,Import!I40215=\"\"),(1-$AB45)*D45,Import!I40215)","v":0},null,{"$f":"Import!I40237","v":0},null,{"$f":"IF(OR(Import!I40259=0,Import!I40259=\"\"),(1-$AB45)*H45,Import!I40259)","v":0},null,{"$f":"Import!I40281","v":0},null,{"$f":"IF(OR(Import!I40303=0,Import!I40303=\"\"),(1-$AB45)*L45,Import!I40303)","v":0},null,{"$f":"Import!I40325","v":0},null,{"$f":"IF(OR(Import!I40347=0,Import!I40347=\"\"),P45,Import!I40347)","v":0},null,{"$f":"IF(OR(Import!I40369=0,Import!I40369=\"\"),R45,Import!I40369)","v":0},null,null,null,0,null,null,null,0.04]
[null,22,"Preferred Stocks, BSCR Rating 5",{"$f":"Import!I40194","v":0},null,{"$f":"IF(OR(Import!I40216=0,Import!I40216=\"\"),(1-$AB46)*D46,Import!I40216)","v":0},null,{"$f":"Import!I40238","v":0},null,{"$f":"IF(OR(Import!I40260=0,Import!I40260=\"\"),(1-$AB46)*H46,Import!I40260)","v":0},null,{"$f":"Import!I40282","v":0},null,{"$f":"IF(OR(Import!I40304=0,Import!I40304=\"\"),(1-$AB46)*L46,Import!I40304)","v":0},null,{"$f":"Import!I40326","v":0},null,{"$f":"IF(OR(Import!I40348=0,Import!I40348=\"\"),P46,Import!I40348)","v":0},null,{"$f":"IF(OR(Import!I40370=0,Import!I40370=\"\"),R46,Import!I40370)","v":0},null,null,null,0,null,null,null,0.11]
[null,23,"Preferred Stocks, BSCR Rating 6",{"$f":"Import!I40195","v":0},null,{"$f":"IF(OR(Import!I40217=0,Import!I40217=\"\"),(1-$AB47)*D47,Import!I40217)","v":0},null,{"$f":"Import!I40239","v":0},null,{"$f":"IF(OR(Import!I40261=0,Import!I40261=\"\"),(1-$AB47)*H47,Import!I40261)","v":0},null,{"$f":"Import!I40283","v":0},null,{"$f":"IF(OR(Import!I40305=0,Import!I40305=\"\"),(1-$AB47)*L47,Import!I40305)","v":0},null,{"$f":"Import!I40327","v":0},null,{"$f":"IF(OR(Import!I40349=0,Import!I40349=\"\"),P47,Import!I40349)","v":0},null,{"$f":"IF(OR(Import!I40371=0,Import!I40371=\"\"),R47,Import!I40371)","v":0},null,null,null,0,null,null,null,0.25]
[null,24,"Preferred Stocks, BSCR Rating 7",{"$f":"Import!I40196","v":0},null,{"$f":"IF(OR(Import!I40218=0,Import!I40218=\"\"),(1-$AB48)*D48,Import!I40218)","v":0},null,{"$f":"Import!I40240","v":0},null,{"$f":"IF(OR(Import!I40262=0,Import!I40262=\"\"),(1-$AB48)*H48,Import!I40262)","v":0},null,{"$f":"Import!I40284","v":0},null,{"$f":"IF(OR(Import!I40306=0,Import!I40306=\"\"),(1-$AB48)*L48,Import!I40306)","v":0},null,{"$f":"Import!I40328","v":0},null,{"$f":"IF(OR(Import!I40350=0,Import!I40350=\"\"),P48,Import!I40350)","v":0},null,{"$f":"IF(OR(Import!I40372=0,Import!I40372=\"\"),R48,Import!I40372)","v":0},null,null,null,0,null,null,null,0.35]
[null,25,"Preferred Stocks, BSCR Rating 8",{"$f":"Import!I40197","v":0},null,{"$f":"IF(OR(Import!I40219=0,Import!I40219=\"\"),(1-$AB49)*D49,Import!I40219)","v":0},null,{"$f":"Import!I40241","v":0},null,{"$f":"IF(OR(Import!I40263=0,Import!I40263=\"\"),(1-$AB49)*H49,Import!I40263)","v":0},null,{"$f":"Import!I40285","v":0},null,{"$f":"IF(OR(Import!I40307=0,Import!I40307=\"\"),(1-$AB49)*L49,Import!I40307)","v":0},null,{"$f":"Import!I40329","v":0},null,{"$f":"IF(OR(Import!I40351=0,Import!I40351=\"\"),P49,Import!I40351)","v":0},null,{"$f":"IF(OR(Import!I40373=0,Import!I40373=\"\"),R49,Import!I40373)","v":0},null,null,null,0,null,null,null,0.35]
[null,26,"Equity Derivatives on Type 1 Equities",{"$f":"Import!I40198","v":0},null,{"$f":"Import!I40220","v":0},null,{"$f":"Import!I40242","v":0},null,{"$f":"Import!I40264","v":0},null,{"$f":"Import!I40286","v":0},null,{"$f":"Import!I40308","v":0},null,{"$f":"Import!I40330","v":0},null,{"$f":"IF(OR(Import!I40352=0,Import!I40352=\"\"),P50,Import!I40352)","v":0},null,{"$f":"IF(OR(Import!I40374=0,Import!I40374=\"\"),R50,Import!I40374)","v":0},null,null,null,0,null,null,null,0.35]
[null,27,"Strategic Holdings - Unlisted",{"$f":"Import!I40199","v":0},null,{"$f":"IF(OR(Import!I40221=0,Import!I40221=\"\"),(1-$AB51)*D51,Import!I40221)","v":0},null,{"$f":"Import!I40243","v":0},null,{"$f":"IF(OR(Import!I40265=0,Import!I40265=\"\"),(1-$AB51)*H51,Import!I40265)","v":0},null,{"$f":"Import!I40287","v":0},null,{"$f":"IF(OR(Import!I40309=0,Import!I40309=\"\"),(1-$AB51)*L51,Import!I40309)","v":0},null,{"$f":"Import!I40331","v":0},null,{"$f":"IF(OR(Import!I40353=0,Import!I40353=\"\"),P51,Import!I40353)","v":0},null,{"$f":"IF(OR(Import!I40375=0,Import!I40375=\"\"),R51,Import!I40375)","v":0},null,null,null,0,null,null,null,0.2]
[null,28,"Other Equities / Other Assets",{"$f":"IF(OR(Import!I40200=0,Import!I40200=\"\"),'Form 1EBS'!F87,Import!I40200)","v":0},null,{"$f":"IF(OR(Import!I40222=0,Import!I40222=\"\"),(1-$AB52)*D52,Import!I40222)","v":0},null,{"$f":"Import!I40244","v":0},null,{"$f":"IF(OR(Import!I40266=0,Import!I40266=\"\"),(1-$AB52)*H52,Import!I40266)","v":0},null,{"$f":"Import!I40288","v":0},null,{"$f":"IF(OR(Import!I40310=0,Import!I40310=\"\"),(1-$AB52)*L52,Import!I40310)","v":0},null,{"$f":"Import!I40332","v":0},null,{"$f":"IF(OR(Import!I40354=0,Import!I40354=\"\"),P52,Import!I40354)","v":0},null,{"$f":"IF(OR(Import!I40376=0,Import!I40376=\"\"),R52,Import!I40376)","v":0},null,null,null,0,null,null,null,0.45]
[null,29,"Letters of Credit",{"$f":"IF(OR(Import!I40201=0,Import!I40201=\"\"),'Form 1EBS'!F94,Import!I40201)","v":0},null,{"$f":"IF(OR(Import!I40223=0,Import!I40223=\"\"),(1-$AB53)*D53,Import!I40223)","v":0},null,{"$f":"Import!I40245","v":0},null,{"$f":"IF(OR(Import!I40267=0,Import!I40267=\"\"),(1-$AB53)*H53,Import!I40267)","v":0},null,{"$f":"Import!I40289","v":0},null,{"$f":"IF(OR(Import!I40311=0,Import!I40311=\"\"),(1-$AB53)*L53,Import!I40311)","v":0},null,{"$f":"Import!I40333","v":0},null,{"$f":"IF(OR(Import!I40355=0,Import!I40355=\"\"),P53,Import!I40355)","v":0},null,{"$f":"IF(OR(Import!I40377=0,Import!I40377=\"\"),R53,Import!I40377)","v":0},null,null,null,0,null,null,null,0.2]
[null,30,"Intangible assets",{"$f":"IF(OR(Import!I40202=0,Import!I40202=\"\"),'Form 1EBS'!F84,Import!I40202)","v":0},null,{"$f":"IF(OR(Import!I40224=0,Import!I40224=\"\"),(1-$AB54)*D54,Import!I40224)","v":0},null,{"$f":"Import!I40246","v":0},null,{"$f":"IF(OR(Import!I40268=0,Import!I40268=\"\"),(1-$AB54)*H54,Import!I40268)","v":0},null,{"$f":"Import!I40290","v":0},null,{"$f":"IF(OR(Import!I40312=0,Import!I40312=\"\"),(1-$AB54)*L54,Import!I40312)","v":0},null,{"$f":"Import!I40334","v":0},null,{"$f":"IF(OR(Import!I40356=0,Import!I40356=\"\"),P54,Import!I40356)","v":0},null,{"$f":"IF(OR(Import!I40378=0,Import!I40378=\"\"),R54,Import!I40378)","v":0},null,null,null,0,null,null,null,0.2]
[null,31,"Pension Benefit Surplus",{"$f":"IF(OR(Import!I40203=0,Import!I40203=\"\"),'Form 1EBS'!F86,Import!I40203)","v":0},null,{"$f":"IF(OR(Import!I40225=0,Import!I40225=\"\"),(1-$AB55)*D55,Import!I40225)","v":0},null,{"$f":"Import!I40247","v":0},null,{"$f":"IF(OR(Import!I40269=0,Import!I40269=\"\"),(1-$AB55)*H55,Import!I40269)","v":0},null,{"$f":"Import!I40291","v":0},null,{"$f":"IF(OR(Import!I40313=0,Import!I40313=\"\"),(1-$AB55)*L55,Import!I40313)","v":0},null,{"$f":"Import!I40335","v":0},null,{"$f":"IF(OR(Import!I40357=0,Import!I40357=\"\"),P55,Import!I40357)","v":0},null,{"$f":"IF(OR(Import!I40379=0,Import!I40379=\"\"),R55,Import!I40379)","v":0},null,null,null,0,null,null,null,0.2]
[null,32,"Equity Derivatives on Type 2 Equities",{"$f":"Import!I40204","v":0},null,{"$f":"Import!I40226","v":0},null,{"$f":"Import!I40248","v":0},null,{"$f":"Import!I40270","v":0},null,{"$f":"Import!I40292","v":0},null,{"$f":"Import!I40314","v":0},null,{"$f":"Import!I40336","v":0},null,{"$f":"IF(OR(Import!I40358=0,Import!I40358=\"\"),P56,Import!I40358)","v":0},null,{"$f":"IF(OR(Import!I40380=0,Import!I40380=\"\"),R56,Import!I40380)","v":0},null,null,null,0,null,null,null,0.45]
[null,33,"Infrastructure",{"$f":"Import!I40205","v":0},null,{"$f":"IF(OR(Import!I40227=0,Import!I40227=\"\"),(1-$AB57)*D57,Import!I40227)","v":0},null,{"$f":"Import!I40249","v":0},null,{"$f":"IF(OR(Import!I40271=0,Import!I40271=\"\"),(1-$AB57)*H57,Import!I40271)","v":0},null,{"$f":"Import!I40293","v":0},null,{"$f":"IF(OR(Import!I40315=0,Import!I40315=\"\"),(1-$AB57)*L57,Import!I40315)","v":0},null,{"$f":"Import!I40337","v":0},null,{"$f":"IF(OR(Import!I40359=0,Import!I40359=\"\"),P57,Import!I40359)","v":0},null,{"$f":"IF(OR(Import!I40381=0,Import!I40381=\"\"),R57,Import!I40381)","v":0},null,null,null,0,null,null,null,0.25]
[null,34,"Derivatives on Infrastructure",{"$f":"Import!I40206","v":0},null,{"$f":"Import!I40228","v":0},null,{"$f":"Import!I40250","v":0},null,{"$f":"Import!I40272","v":0},null,{"$f":"Import!I40294","v":0},null,{"$f":"Import!I40316","v":0},null,{"$f":"Import!I40338","v":0},null,{"$f":"IF(OR(Import!I40360=0,Import!I40360=\"\"),P58,Import!I40360)","v":0},null,{"$f":"IF(OR(Import!I40382=0,Import!I40382=\"\"),R58,Import!I40382)","v":0},null,null,null,0,null,null,null,0.25]
[null,35,"Equity Real Estate 1",{"$f":"Import!I40207","v":0},null,{"$f":"IF(OR(Import!I40229=0,Import!I40229=\"\"),(1-$AB59)*D59,Import!I40229)","v":0},null,{"$f":"Import!I40251","v":0},null,{"$f":"IF(OR(Import!I40273=0,Import!I40273=\"\"),(1-$AB59)*H59,Import!I40273)","v":0},null,{"$f":"Import!I40295","v":0},null,{"$f":"IF(OR(Import!I40317=0,Import!I40317=\"\"),(1-$AB59)*L59,Import!I40317)","v":0},null,{"$f":"Import!I40339","v":0},null,{"$f":"IF(OR(Import!I40361=0,Import!I40361=\"\"),P59,Import!I40361)","v":0},null,{"$f":"IF(OR(Import!I40383=0,Import!I40383=\"\"),R59,Import!I40383)","v":0},null,null,null,0,null,null,null,0.1]
[null,36,"Equity Real Estate 2",{"$f":"Import!I40208","v":0},null,{"$f":"IF(OR(Import!I40230=0,Import!I40230=\"\"),(1-$AB60)*D60,Import!I40230)","v":0},null,{"$f":"Import!I40252","v":0},null,{"$f":"IF(OR(Import!I40274=0,Import!I40274=\"\"),(1-$AB60)*H60,Import!I40274)","v":0},null,{"$f":"Import!I40296","v":0},null,{"$f":"IF(OR(Import!I40318=0,Import!I40318=\"\"),(1-$AB60)*L60,Import!I40318)","v":0},null,{"$f":"Import!I40340","v":0},null,{"$f":"IF(OR(Import!I40362=0,Import!I40362=\"\"),P60,Import!I40362)","v":0},null,{"$f":"IF(OR(Import!I40384=0,Import!I40384=\"\"),R60,Import!I40384)","v":0},null,null,null,0,null,null,null,0.2]
[]
[null,{"$f":"B60+1","v":37},"Total Equity Holdings",{"$f":"SUM(D38:D61)","v":0},null,{"$f":"SUM(F38:F61)","v":0},null,{"$f":"SUM(H38:H61)","v":0},null,{"$f":"SUM(J38:J61)","v":0},null,{"$f":"SUM(L38:L61)","v":0},null,{"$f":"SUM(N38:N61)","v":0},null,{"$f":"SUM(P38:P61)","v":0},null,{"$f":"SUM(R38:R61)","v":0},null,{"$f":"SUM(T38:T61)","v":0},null,null,null,{"$f":"SUM(X38:X61)","v":0}]
[]
[null,null,null,"Spread Up",null,null,null,null,null,null,null,null,null,"Spread Down"]
[null,null,null,"Long Exposures",null,null,null,"Short Exposures",null,null,null,"Shock (bps)",null,"Long Exposures",null,null,null,"Short Exposures",null,null,null,"Shock Rates"]
[null,null,null,"Before Shock",null,"After Shock",null,"Before Shock",null,"After Shock",null,null,null,"Before Shock",null,"After Shock",null,"Before Shock",null,"After Shock"]
[null,null,"Spread Risk for Credit Derivatives"]
[null,{"$f":"B62+1","v":38},"BSCR Rating 0",{"$f":"Import!I40385","v":0},null,{"$f":"Import!I40394","v":0},null,{"$f":"Import!I40403","v":0},null,{"$f":"Import!I40412","v":0},null,0,null,{"$f":"Import!I40421","v":0},null,{"$f":"Import!I40430","v":0},null,{"$f":"Import!I40439","v":0},null,{"$f":"Import!I40448","v":0},null,0]
[null,{"$f":"B68+1","v":39},"BSCR Rating 1",{"$f":"Import!I40386","v":0},null,{"$f":"Import!I40395","v":0},null,{"$f":"Import!I40404","v":0},null,{"$f":"Import!I40413","v":0},null,130,null,{"$f":"Import!I40422","v":0},null,{"$f":"Import!I40431","v":0},null,{"$f":"Import!I40440","v":0},null,{"$f":"Import!I40449","v":0},null,-0.75]
[null,{"$f":"B69+1","v":40},"BSCR Rating 2",{"$f":"Import!I40387","v":0},null,{"$f":"Import!I40396","v":0},null,{"$f":"Import!I40405","v":0},null,{"$f":"Import!I40414","v":0},null,150,null,{"$f":"Import!I40423","v":0},null,{"$f":"Import!I40432","v":0},null,{"$f":"Import!I40441","v":0},null,{"$f":"Import!I40450","v":0},null,-0.75]
[null,41,"BSCR Rating 3",{"$f":"Import!I40388","v":0},null,{"$f":"Import!I40397","v":0},null,{"$f":"Import!I40406","v":0},null,{"$f":"Import!I40415","v":0},null,260,null,{"$f":"Import!I40424","v":0},null,{"$f":"Import!I40433","v":0},null,{"$f":"Import!I40442","v":0},null,{"$f":"Import!I40451","v":0},null,-0.75]
[null,42,"BSCR Rating 4",{"$f":"Import!I40389","v":0},null,{"$f":"Import!I40398","v":0},null,{"$f":"Import!I40407","v":0},null,{"$f":"Import!I40416","v":0},null,450,null,{"$f":"Import!I40425","v":0},null,{"$f":"Import!I40434","v":0},null,{"$f":"Import!I40443","v":0},null,{"$f":"Import!I40452","v":0},null,-0.75]
[null,43,"BSCR Rating 5",{"$f":"Import!I40390","v":0},null,{"$f":"Import!I40399","v":0},null,{"$f":"Import!I40408","v":0},null,{"$f":"Import!I40417","v":0},null,840,null,{"$f":"Import!I40426","v":0},null,{"$f":"Import!I40435","v":0},null,{"$f":"Import!I40444","v":0},null,{"$f":"Import!I40453","v":0},null,-0.75]
[null,44,"BSCR Rating 6",{"$f":"Import!I40391","v":0},null,{"$f":"Import!I40400","v":0},null,{"$f":"Import!I40409","v":0},null,{"$f":"Import!I40418","v":0},null,1620,null,{"$f":"Import!I40427","v":0},null,{"$f":"Import!I40436","v":0},null,{"$f":"Import!I40445","v":0},null,{"$f":"Import!I40454","v":0},null,-0.75]
[null,45,"BSCR Rating 7",{"$f":"Import!I40392","v":0},null,{"$f":"Import!I40401","v":0},null,{"$f":"Import!I40410","v":0},null,{"$f":"Import!I40419","v":0},null,1620,null,{"$f":"Import!I40428","v":0},null,{"$f":"Import!I40437","v":0},null,{"$f":"Import!I40446","v":0},null,{"$f":"Import!I40455","v":0},null,-0.75]
[null,46,"BSCR Rating 8",{"$f":"Import!I40393","v":0},null,{"$f":"Import!I40402","v":0},null,{"$f":"Import!I40411","v":0},null,{"$f":"Import!I40420","v":0},null,1620,null,{"$f":"Import!I40429","v":0},null,{"$f":"Import!I40438","v":0},null,{"$f":"Import!I40447","v":0},null,{"$f":"Import!I40456","v":0},null,-0.75]
[null,47,"Total Spread",{"$f":"SUM(D67:D76)","v":0},null,{"$f":"SUM(F67:F76)","v":0},null,{"$f":"SUM(H67:H76)","v":0},null,{"$f":"SUM(J67:J76)","v":0},null,null,null,{"$f":"SUM(N67:N76)","v":0},null,{"$f":"SUM(P67:P76)","v":0},null,{"$f":"SUM(R67:R76)","v":0},null,{"$f":"SUM(T67:T76)","v":0}]
[]
[null,null,"Spread Risk Check",null,null,null,null,null,null,null,null,null,null,{"$f":"IF(ROUND(D77-N77,0)=0,\"Yes\",\"No\")","v":"Yes"},null,null,null,{"$f":"IF(ROUND(H77-R77,0)=0,\"Yes\",\"No\")","v":"Yes"}]
[null,null,"Difference",null,null,null,null,null,null,null,null,null,null,{"$f":"ROUND(D77-N77,0)","v":0},null,null,null,{"$f":"ROUND(H77-R77,0)","v":0}]
[]
[null,null,null,"Market Value of Derivatives with Positive Market Value",null,"Market Value of Derivatives with Negative Market Value",null,"Market Value of Collateral, Excluding any over-collateralization"]
[null,null,"Counterparty Default Risk for OTC Derivatives"]
[null,{"$f":"B77+1","v":48},"BSCR Rating 0",{"$f":"Import!I40457","v":0},null,{"$f":"Import!I40466","v":0},null,{"$f":"Import!I40475","v":0}]
[null,{"$f":"B84+1","v":49},"BSCR Rating 1",{"$f":"Import!I40458","v":0},null,{"$f":"Import!I40467","v":0},null,{"$f":"Import!I40476","v":0}]
[null,{"$f":"B85+1","v":50},"BSCR Rating 2",{"$f":"Import!I40459","v":0},null,{"$f":"Import!I40468","v":0},null,{"$f":"Import!I40477","v":0}]
[null,51,"BSCR Rating 3",{"$f":"Import!I40460","v":0},null,{"$f":"Import!I40469","v":0},null,{"$f":"Import!I40478","v":0}]
[null,52,"BSCR Rating 4",{"$f":"Import!I40461","v":0},null,{"$f":"Import!I40470","v":0},null,{"$f":"Import!I40479","v":0}]
[null,53,"BSCR Rating 5",{"$f":"Import!I40462","v":0},null,{"$f":"Import!I40471","v":0},null,{"$f":"Import!I40480","v":0}]
[null,54,"BSCR Rating 6",{"$f":"Import!I40463","v":0},null,{"$f":"Import!I40472","v":0},null,{"$f":"Import!I40481","v":0}]
[null,55,"BSCR Rating 7",{"$f":"Import!I40464","v":0},null,{"$f":"Import!I40473","v":0},null,{"$f":"Import!I40482","v":0}]
[null,56,"BSCR Rating 8",{"$f":"Import!I40465","v":0},null,{"$f":"Import!I40474","v":0},null,{"$f":"Import!I40483","v":0}]
[null,57,"Total Default Risk for OTC Derivatives ",0,null,0,null,0]
[]
[null,{"$f":"B93+1","v":58},"Cash and Cash Equivalents",{"$f":"Import!I40484","v":0}]
[]
[null,{"$f":"B95+1","v":59},"Total Other Sundry Assets",{"$f":"X27+X62+D77+H77+D93+F93+H93+D95","v":0}]
[]
[null,null,"Please include in the table below any assets, included in this Schedule, for which NAIC ratings were used to map to the BSCR rating classes"]
[null,null,"Information on the use of NAIC ratings\n(for disclosure purposes only)","CORPORATE & SOVEREIGN BONDS",null,"RESIDENTIAL MORTGAGE-BACKED SECURITIES",null,"COMMERCIAL MORTGAGE-BACKED SECURITIES / ASSET-BACKED SECURITIES",null,"BOND MUTUAL FUNDS",null,"MORTGAGE LOANS",null,"PREFERRED STOCKS",null,"OTHER ASSETS"]
[null,null,"NAIC Class 1",{"$f":"Import!I40485","v":0},null,{"$f":"Import!I40492","v":0},null,{"$f":"Import!I40499","v":0},null,{"$f":"Import!I40506","v":0},null,{"$f":"Import!I40513","v":0},null,{"$f":"Import!I40520","v":0},null,{"$f":"Import!I40527","v":0}]
[null,null,"NAIC Class 2",{"$f":"Import!I40486","v":0},null,{"$f":"Import!I40493","v":0},null,{"$f":"Import!I40500","v":0},null,{"$f":"Import!I40507","v":0},null,{"$f":"Import!I40514","v":0},null,{"$f":"Import!I40521","v":0},null,{"$f":"Import!I40528","v":0}]
[null,null,"NAIC Class 3",{"$f":"Import!I40487","v":0},null,{"$f":"Import!I40494","v":0},null,{"$f":"Import!I40501","v":0},null,{"$f":"Import!I40508","v":0},null,{"$f":"Import!I40515","v":0},null,{"$f":"Import!I40522","v":0},null,{"$f":"Import!I40529","v":0}]
[null,null,"NAIC Class 4",{"$f":"Import!I40488","v":0},null,{"$f":"Import!I40495","v":0},null,{"$f":"Import!I40502","v":0},null,{"$f":"Import!I40509","v":0},null,{"$f":"Import!I40516","v":0},null,{"$f":"Import!I40523","v":0},null,{"$f":"Import!I40530","v":0}]
[null,null,"NAIC Class 5",{"$f":"Import!I40489","v":0},null,{"$f":"Import!I40496","v":0},null,{"$f":"Import!I40503","v":0},null,{"$f":"Import!I40510","v":0},null,{"$f":"Import!I40517","v":0},null,{"$f":"Import!I40524","v":0},null,{"$f":"Import!I40531","v":0}]
[null,null,"NAIC Class 6",{"$f":"Import!I40490","v":0},null,{"$f":"Import!I40497","v":0},null,{"$f":"Import!I40504","v":0},null,{"$f":"Import!I40511","v":0},null,{"$f":"Import!I40518","v":0},null,{"$f":"Import!I40525","v":0},null,{"$f":"Import!I40532","v":0}]
[null,null,null,{"$f":"SUM(D101:D106)","v":0},null,{"$f":"SUM(F101:F106)","v":0},null,{"$f":"SUM(H101:H106)","v":0},null,{"$f":"SUM(J101:J106)","v":0},null,{"$f":"SUM(L101:L106)","v":0},null,{"$f":"SUM(N101:N106)","v":0},null,{"$f":"SUM(P101:P106)","v":0}]

{"sheet":"Grandfathered Equity Part","index":33,"n_rows":51,"n_cols":5,"rows_kept":51,"cut":false,"hidden":false,"merged":[[0,3,0,4],[52,0,52,1]]}
["GRANDFATHERED PORTION OF EQUITY INVESTMENTS",null,null,{"$f":"HYPERLINK(\"#'Index'!A1\",\"Return to Index\")","v":"Return to Index"}]
[{"$f":"'Group Information'!C7","v":"Enter Group Company Name"}]
[{"$f":"\"Grandfathered Equity Investments\"& \" ($\" & IF(CONFIGURATION!$B$12>1,\"'\"&MID(CONFIGURATION!$B$12,2,LEN(CONFIGURATION!$B$12)),\"\") & \")\"","v":"Grandfathered Equity Investments ($'000)"},null,{"$f":" TEXT('Group Information'!C3,\"dd mmmm yyyy\")","v":"31 December 2023"},"(1)","(2)"]
[]
[]
[null,"TYPE OF ",null,"ASSET","CAPITAL"]
[null,"EQUITY INVESTMENTS",null,"VALUE","FACTOR"]
[]
[null,"(a)  Common Stocks"]
[]
[null,"Non-Affiliated (Quoted)",null,{"$f":"Import!I43029","v":0},0.14399999999999999]
[null,"Non-Affiliated (Unquoted)",null,{"$f":"Import!I43030","v":0},0.14399999999999999]
[null,"Equity mutual funds",null,{"$f":"Import!I43031","v":0},0.14399999999999999]
[]
[null,"(a)  SUBTOTAL - COMMON STOCKS",null,{"$f":"SUM(D11:D13)","v":0}]
[]
[null,"(b)  Preferred Stocks"]
[]
[null,"BSCR Rating"]
[null,1,null,{"$f":"Import!I43032","v":0},6.0000000000000001E-3]
[null,2,null,{"$f":"Import!I43033","v":0},1.2E-2]
[null,3,null,{"$f":"Import!I43034","v":0},0.02]
[null,4,null,{"$f":"Import!I43035","v":0},0.04]
[null,5,null,{"$f":"Import!I43036","v":0},0.11]
[null,6,null,{"$f":"Import!I43037","v":0},0.25]
[null,7,null,{"$f":"Import!I43038","v":0},0.35]
[null,8,null,{"$f":"Import!I43039","v":0},0.35]
[]
[null,"(b)  SUBTOTAL - PREFERRED STOCKS",null,{"$f":"SUM(D19:D27)","v":0}]
[]
[null,"(c)  Other Equity Investments"]
[]
[null,"Real Estate"]
[null,"Company-Occupied Less Encumbrances",null,{"$f":"Import!I43040","v":0},0.1]
[null,"Investments Less Encumbrances",null,{"$f":"Import!I43041","v":0},0.2]
[]
[null,"Other Equity Investments",null,{"$f":"Import!I43042","v":0},0.2]
[null,"Other Tangible Assets (Net of Segregated Accounts Companies)",null,{"$f":"Import!I43043","v":0},0.2]
[]
[null,"(c)  SUBTOTAL - OTHER EQUITY INVESTMENTS",null,{"$f":"SUM(D34:D35,D37:D38)","v":0}]
[]
[null,"(d)  Investments in Affiliates"]
[]
[null,"Unregulated Entities That Conduct Ancillary Services",null,{"$f":"Import!I43044","v":0},0.05]
[null,"Unregulated Non-Financial Operating Entities",null,{"$f":"Import!I43045","v":0},0.2]
[null,"Unregulated Financial Operating Entities",null,{"$f":"Import!I43046","v":0},0.55000000000000004]
[null,"Regulated Insurance Financial Operating Entities",null,{"$f":"Import!I43047","v":0},0.2]
[]
[null,"(d)  SUBTOTAL - INVESTMENTS IN AFFILIATES",null,{"$f":"SUM(D44:D47)","v":0}]
[]
[null,"(e)  TOTAL EQUITY INVESTMENTS [ (a) + (b) + (c) + (d) ]",null,{"$f":"D15+D29+D40+D49","v":0}]

{"sheet":"Non-Grandfathered Equity Part","index":34,"n_rows":38,"n_cols":28,"rows_kept":38,"cut":false,"hidden":false,"merged":[[9,23,10,23],[9,27,10,27],[10,7,10,9],[10,11,10,13],[2,3,2,5],[3,5,3,7],[4,5,4,7],[8,3,8,13],[8,15,8,19],[9,3,10,5],[9,7,9,13],[9,15,10,15],[9,17,10,17],[9,19,10,19]]}
[null,"NON-GRANDFATHERED PORTION OF EQUITY INVESTMENTS (TOTAL EQUITIES - GRANDFATHERED EQUITIES)",null,null,null,null,null,null,null,null,null,null,null,null,null,null,null,null,null,null,null,null,null,null,null,null,null,{"$f":"HYPERLINK(\"#'Index'!A1\",\"Return to Index\")","v":"Return to Index"}]
[]
[null,null,null,{"$f":"'Group Information'!C7","v":"Enter Group Company Name"}]
[null,null,null,"As at",null,{"$f":"'Group Information'!C3","v":"2023-12-31"}]
[null,null,null,{"$f":"\"Expressed in \" & IF(CONFIGURATION!$B$12>1,\" ['\"&MID(CONFIGURATION!$B$12,2,LEN(CONFIGURATION!$B$12))&\"s]\",\"\")","v":"Expressed in  ['000s]"},null,{"$f":"'Form 1EBS'!C4","v":" ['000s]United States Dollars"}]
[]
[null,null,null,"(1)",null,"(2)",null,"(3)",null,"(4)",null,"(5)",null,"(6)",null,"(7)",null,"(8)",null,"(9)",null,"(10)",null,"(11)",null,"(12)"]
[]
[null,null,null,"ASSETS",null,null,null,null,null,null,null,null,null,null,null,"Liabilities"]
[null,null,null,"Long Exposures",null,null,null,"Short Exposures",null,null,null,null,null,null,null,null,null,"Without Management Actions",null,"With Management Actions",null,null,null,"Total Assets Before Shock",null,null,null,"Shocks"]
[null,null,null,null,null,null,null,"Qualifying as Assets held for risk-mitigation purposes",null,null,null,"Not Qualifying as Assets held for risk-mitigation purposes",null,null,null,null,null,null,null,null,null,null,null,null,null,null,null,"Shocks"]
[null,null,null,"Before Shock",null,"After Shock",null,"Before Shock",null,"After Shock",null,"Before Shock",null,"After Shock",null,"Before Shock",null,"After Shock",null,"After Shock"]
[null,null,null,{"$f":"CONFIGURATION!$D$12","v":" ('000s)"},null,{"$f":"CONFIGURATION!$D$12","v":" ('000s)"},null,{"$f":"CONFIGURATION!$D$12","v":" ('000s)"},null,{"$f":"CONFIGURATION!$D$12","v":" ('000s)"},null,{"$f":"CONFIGURATION!$D$12","v":" ('000s)"},null,{"$f":"CONFIGURATION!$D$12","v":" ('000s)"},null,{"$f":"CONFIGURATION!$D$12","v":" ('000s)"},null,{"$f":"CONFIGURATION!$D$12","v":" ('000s)"},null,{"$f":"CONFIGURATION!$D$12","v":" ('000s)"},null,null,null,{"$f":"CONFIGURATION!$D$12","v":" ('000s)"}]
[null,"Equity Holdings "]
[null,1,"Strategic Holdings - Listed",{"$f":"Import!I42830","v":0},null,{"$f":"IF(OR(Import!I42852=0,Import!I42852=\"\"),(1-$AB15)*D15,Import!I42852)","v":0},null,{"$f":"Import!I42874","v":0},null,{"$f":"IF(OR(Import!I42896=0,Import!I42896=\"\"),(1-$AB15)*H15,Import!I42896)","v":0},null,{"$f":"Import!I42918","v":0},null,{"$f":"IF(OR(Import!I42940=0,Import!I42940=\"\"),(1-$AB15)*L15,Import!I42940)","v":0},null,{"$f":"Import!I42962","v":0},null,{"$f":"IF(OR(Import!I42984=0,Import!I42984=\"\"),P15,Import!I42984)","v":0},null,{"$f":"IF(OR(Import!I43006=0,Import!I43006=\"\"),R15,Import!I43006)","v":0},null,null,null,{"$f":"D15+H15+L15","v":0},null,null,null,0.2]
[null,{"$f":"B15+1","v":2},"Duration Based",{"$f":"Import!I42831","v":0},null,{"$f":"IF(OR(Import!I42853=0,Import!I42853=\"\"),(1-$AB16)*D16,Import!I42853)","v":0},null,{"$f":"Import!I42875","v":0},null,{"$f":"IF(OR(Import!I42897=0,Import!I42897=\"\"),(1-$AB16)*H16,Import!I42897)","v":0},null,{"$f":"Import!I42919","v":0},null,{"$f":"IF(OR(Import!I42941=0,Import!I42941=\"\"),(1-$AB16)*L16,Import!I42941)","v":0},null,{"$f":"Import!I42963","v":0},null,{"$f":"IF(OR(Import!I42985=0,Import!I42985=\"\"),P16,Import!I42985)","v":0},null,{"$f":"IF(OR(Import!I43007=0,Import!I43007=\"\"),R16,Import!I43007)","v":0},null,null,null,{"$f":"D16+H16+L16","v":0},null,null,null,0.2]
[null,3,"Listed Equity Securities in Developed Markets",{"$f":"Import!I42832","v":0},null,{"$f":"IF(OR(Import!I42854=0,Import!I42854=\"\"),(1-$AB17)*D17,Import!I42854)","v":0},null,{"$f":"Import!I42876","v":0},null,{"$f":"IF(OR(Import!I42898=0,Import!I42898=\"\"),(1-$AB17)*H17,Import!I42898)","v":0},null,{"$f":"Import!I42920","v":0},null,{"$f":"IF(OR(Import!I42942=0,Import!I42942=\"\"),(1-$AB17)*L17,Import!I42942)","v":0},null,{"$f":"Import!I42964","v":0},null,{"$f":"IF(OR(Import!I42986=0,Import!I42986=\"\"),P17,Import!I42986)","v":0},null,{"$f":"IF(OR(Import!I43008=0,Import!I43008=\"\"),R17,Import!I43008)","v":0},null,null,null,{"$f":"D17+H17+L17","v":0},null,null,null,0.35]
[null,4,"Preferred Stocks, BSCR Rating 1",{"$f":"Import!I42833","v":0},null,{"$f":"IF(OR(Import!I42855=0,Import!I42855=\"\"),(1-$AB18)*D18,Import!I42855)","v":0},null,{"$f":"Import!I42877","v":0},null,{"$f":"IF(OR(Import!I42899=0,Import!I42899=\"\"),(1-$AB18)*H18,Import!I42899)","v":0},null,{"$f":"Import!I42921","v":0},null,{"$f":"IF(OR(Import!I42943=0,Import!I42943=\"\"),(1-$AB18)*L18,Import!I42943)","v":0},null,{"$f":"Import!I42965","v":0},null,{"$f":"IF(OR(Import!I42987=0,Import!I42987=\"\"),P18,Import!I42987)","v":0},null,{"$f":"IF(OR(Import!I43009=0,Import!I43009=\"\"),R18,Import!I43009)","v":0},null,null,null,0,null,null,null,6.0000000000000001E-3]
[null,5,"Preferred Stocks, BSCR Rating 2",{"$f":"Import!I42834","v":0},null,{"$f":"IF(OR(Import!I42856=0,Import!I42856=\"\"),(1-$AB19)*D19,Import!I42856)","v":0},null,{"$f":"Import!I42878","v":0},null,{"$f":"IF(OR(Import!I42900=0,Import!I42900=\"\"),(1-$AB19)*H19,Import!I42900)","v":0},null,{"$f":"Import!I42922","v":0},null,{"$f":"IF(OR(Import!I42944=0,Import!I42944=\"\"),(1-$AB19)*L19,Import!I42944)","v":0},null,{"$f":"Import!I42966","v":0},null,{"$f":"IF(OR(Import!I42988=0,Import!I42988=\"\"),P19,Import!I42988)","v":0},null,{"$f":"IF(OR(Import!I43010=0,Import!I43010=\"\"),R19,Import!I43010)","v":0},null,null,null,0,null,null,null,1.2E-2]
[null,6,"Preferred Stocks, BSCR Rating 3",{"$f":"Import!I42835","v":0},null,{"$f":"IF(OR(Import!I42857=0,Import!I42857=\"\"),(1-$AB20)*D20,Import!I42857)","v":0},null,{"$f":"Import!I42879","v":0},null,{"$f":"IF(OR(Import!I42901=0,Import!I42901=\"\"),(1-$AB20)*H20,Import!I42901)","v":0},null,{"$f":"Import!I42923","v":0},null,{"$f":"IF(OR(Import!I42945=0,Import!I42945=\"\"),(1-$AB20)*L20,Import!I42945)","v":0},null,{"$f":"Import!I42967","v":0},null,{"$f":"IF(OR(Import!I42989=0,Import!I42989=\"\"),P20,Import!I42989)","v":0},null,{"$f":"IF(OR(Import!I43011=0,Import!I43011=\"\"),R20,Import!I43011)","v":0},null,null,null,0,null,null,null,0.02]
[null,7,"Preferred Stocks, BSCR Rating 4",{"$f":"Import!I42836","v":0},null,{"$f":"IF(OR(Import!I42858=0,Import!I42858=\"\"),(1-$AB21)*D21,Import!I42858)","v":0},null,{"$f":"Import!I42880","v":0},null,{"$f":"IF(OR(Import!I42902=0,Import!I42902=\"\"),(1-$AB21)*H21,Import!I42902)","v":0},null,{"$f":"Import!I42924","v":0},null,{"$f":"IF(OR(Import!I42946=0,Import!I42946=\"\"),(1-$AB21)*L21,Import!I42946)","v":0},null,{"$f":"Import!I42968","v":0},null,{"$f":"IF(OR(Import!I42990=0,Import!I42990=\"\"),P21,Import!I42990)","v":0},null,{"$f":"IF(OR(Import!I43012=0,Import!I43012=\"\"),R21,Import!I43012)","v":0},null,null,null,0,null,null,null,0.04]
[null,8,"Preferred Stocks, BSCR Rating 5",{"$f":"Import!I42837","v":0},null,{"$f":"IF(OR(Import!I42859=0,Import!I42859=\"\"),(1-$AB22)*D22,Import!I42859)","v":0},null,{"$f":"Import!I42881","v":0},null,{"$f":"IF(OR(Import!I42903=0,Import!I42903=\"\"),(1-$AB22)*H22,Import!I42903)","v":0},null,{"$f":"Import!I42925","v":0},null,{"$f":"IF(OR(Import!I42947=0,Import!I42947=\"\"),(1-$AB22)*L22,Import!I42947)","v":0},null,{"$f":"Import!I42969","v":0},null,{"$f":"IF(OR(Import!I42991=0,Import!I42991=\"\"),P22,Import!I42991)","v":0},null,{"$f":"IF(OR(Import!I43013=0,Import!I43013=\"\"),R22,Import!I43013)","v":0},null,null,null,0,null,null,null,0.11]
[null,9,"Preferred Stocks, BSCR Rating 6",{"$f":"Import!I42838","v":0},null,{"$f":"IF(OR(Import!I42860=0,Import!I42860=\"\"),(1-$AB23)*D23,Import!I42860)","v":0},null,{"$f":"Import!I42882","v":0},null,{"$f":"IF(OR(Import!I42904=0,Import!I42904=\"\"),(1-$AB23)*H23,Import!I42904)","v":0},null,{"$f":"Import!I42926","v":0},null,{"$f":"IF(OR(Import!I42948=0,Import!I42948=\"\"),(1-$AB23)*L23,Import!I42948)","v":0},null,{"$f":"Import!I42970","v":0},null,{"$f":"IF(OR(Import!I42992=0,Import!I42992=\"\"),P23,Import!I42992)","v":0},null,{"$f":"IF(OR(Import!I43014=0,Import!I43014=\"\"),R23,Import!I43014)","v":0},null,null,null,0,null,null,null,0.25]
[null,10,"Preferred Stocks, BSCR Rating 7",{"$f":"Import!I42839","v":0},null,{"$f":"IF(OR(Import!I42861=0,Import!I42861=\"\"),(1-$AB24)*D24,Import!I42861)","v":0},null,{"$f":"Import!I42883","v":0},null,{"$f":"IF(OR(Import!I42905=0,Import!I42905=\"\"),(1-$AB24)*H24,Import!I42905)","v":0},null,{"$f":"Import!I42927","v":0},null,{"$f":"IF(OR(Import!I42949=0,Import!I42949=\"\"),(1-$AB24)*L24,Import!I42949)","v":0},null,{"$f":"Import!I42971","v":0},null,{"$f":"IF(OR(Import!I42993=0,Import!I42993=\"\"),P24,Import!I42993)","v":0},null,{"$f":"IF(OR(Import!I43015=0,Import!I43015=\"\"),R24,Import!I43015)","v":0},null,null,null,0,null,null,null,0.35]
[null,11,"Preferred Stocks, BSCR Rating 8",{"$f":"Import!I42840","v":0},null,{"$f":"IF(OR(Import!I42862=0,Import!I42862=\"\"),(1-$AB25)*D25,Import!I42862)","v":0},null,{"$f":"Import!I42884","v":0},null,{"$f":"IF(OR(Import!I42906=0,Import!I42906=\"\"),(1-$AB25)*H25,Import!I42906)","v":0},null,{"$f":"Import!I42928","v":0},null,{"$f":"IF(OR(Import!I42950=0,Import!I42950=\"\"),(1-$AB25)*L25,Import!I42950)","v":0},null,{"$f":"Import!I42972","v":0},null,{"$f":"IF(OR(Import!I42994=0,Import!I42994=\"\"),P25,Import!I42994)","v":0},null,{"$f":"IF(OR(Import!I43016=0,Import!I43016=\"\"),R25,Import!I43016)","v":0},null,null,null,0,null,null,null,0.35]
[null,12,"Equity Derivatives on Type 1 Equities",{"$f":"Import!I42841","v":0},null,{"$f":"Import!I42863","v":0},null,{"$f":"Import!I42885","v":0},null,{"$f":"Import!I42907","v":0},null,{"$f":"Import!I42929","v":0},null,{"$f":"Import!I42951","v":0},null,{"$f":"Import!I42973","v":0},null,{"$f":"IF(OR(Import!I42995=0,Import!I42995=\"\"),P26,Import!I42995)","v":0},null,{"$f":"IF(OR(Import!I43017=0,Import!I43017=\"\"),R26,Import!I43017)","v":0},null,null,null,0,null,null,null,0.35]
[null,13,"Strategic Holdings - Unlisted",{"$f":"Import!I42842","v":0},null,{"$f":"IF(OR(Import!I42864=0,Import!I42864=\"\"),(1-$AB27)*D27,Import!I42864)","v":0},null,{"$f":"Import!I42886","v":0},null,{"$f":"IF(OR(Import!I42908=0,Import!I42908=\"\"),(1-$AB27)*H27,Import!I42908)","v":0},null,{"$f":"Import!I42930","v":0},null,{"$f":"IF(OR(Import!I42952=0,Import!I42952=\"\"),(1-$AB27)*L27,Import!I42952)","v":0},null,{"$f":"Import!I42974","v":0},null,{"$f":"IF(OR(Import!I42996=0,Import!I42996=\"\"),P27,Import!I42996)","v":0},null,{"$f":"IF(OR(Import!I43018=0,Import!I43018=\"\"),R27,Import!I43018)","v":0},null,null,null,0,null,null,null,0.2]
[null,14,"Other Equities / Other Assets",{"$f":"Import!I42843","v":0},null,{"$f":"IF(OR(Import!I42865=0,Import!I42865=\"\"),(1-$AB28)*D28,Import!I42865)","v":0},null,{"$f":"Import!I42887","v":0},null,{"$f":"IF(OR(Import!I42909=0,Import!I42909=\"\"),(1-$AB28)*H28,Import!I42909)","v":0},null,{"$f":"Import!I42931","v":0},null,{"$f":"IF(OR(Import!I42953=0,Import!I42953=\"\"),(1-$AB28)*L28,Import!I42953)","v":0},null,{"$f":"Import!I42975","v":0},null,{"$f":"IF(OR(Import!I42997=0,Import!I42997=\"\"),P28,Import!I42997)","v":0},null,{"$f":"IF(OR(Import!I43019=0,Import!I43019=\"\"),R28,Import!I43019)","v":0},null,null,null,0,null,null,null,0.45]
[null,15,"Letters of Credit",{"$f":"Import!I42844","v":0},null,{"$f":"IF(OR(Import!I42866=0,Import!I42866=\"\"),(1-$AB29)*D29,Import!I42866)","v":0},null,{"$f":"Import!I42888","v":0},null,{"$f":"IF(OR(Import!I42910=0,Import!I42910=\"\"),(1-$AB29)*H29,Import!I42910)","v":0},null,{"$f":"Import!I42932","v":0},null,{"$f":"IF(OR(Import!I42954=0,Import!I42954=\"\"),(1-$AB29)*L29,Import!I42954)","v":0},null,{"$f":"Import!I42976","v":0},null,{"$f":"IF(OR(Import!I42998=0,Import!I42998=\"\"),P29,Import!I42998)","v":0},null,{"$f":"IF(OR(Import!I43020=0,Import!I43020=\"\"),R29,Import!I43020)","v":0},null,null,null,0,null,null,null,0.2]
[null,16,"Intangible assets",{"$f":"Import!I42845","v":0},null,{"$f":"IF(OR(Import!I42867=0,Import!I42867=\"\"),(1-$AB30)*D30,Import!I42867)","v":0},null,{"$f":"Import!I42889","v":0},null,{"$f":"IF(OR(Import!I42911=0,Import!I42911=\"\"),(1-$AB30)*H30,Import!I42911)","v":0},null,{"$f":"Import!I42933","v":0},null,{"$f":"IF(OR(Import!I42955=0,Import!I42955=\"\"),(1-$AB30)*L30,Import!I42955)","v":0},null,{"$f":"Import!I42977","v":0},null,{"$f":"IF(OR(Import!I42999=0,Import!I42999=\"\"),P30,Import!I42999)","v":0},null,{"$f":"IF(OR(Import!I43021=0,Import!I43021=\"\"),R30,Import!I43021)","v":0},null,null,null,0,null,null,null,0.2]
[null,17,"Pension Benefit Surplus",{"$f":"Import!I42846","v":0},null,{"$f":"IF(OR(Import!I42868=0,Import!I42868=\"\"),(1-$AB31)*D31,Import!I42868)","v":0},null,{"$f":"Import!I42890","v":0},null,{"$f":"IF(OR(Import!I42912=0,Import!I42912=\"\"),(1-$AB31)*H31,Import!I42912)","v":0},null,{"$f":"Import!I42934","v":0},null,{"$f":"IF(OR(Import!I42956=0,Import!I42956=\"\"),(1-$AB31)*L31,Import!I42956)","v":0},null,{"$f":"Import!I42978","v":0},null,{"$f":"IF(OR(Import!I43000=0,Import!I43000=\"\"),P31,Import!I43000)","v":0},null,{"$f":"IF(OR(Import!I43022=0,Import!I43022=\"\"),R31,Import!I43022)","v":0},null,null,null,0,null,null,null,0.2]
[null,18,"Equity Derivatives on Type 2 Equities",{"$f":"Import!I42847","v":0},null,{"$f":"Import!I42869","v":0},null,{"$f":"Import!I42891","v":0},null,{"$f":"Import!I42913","v":0},null,{"$f":"Import!I42935","v":0},null,{"$f":"Import!I42957","v":0},null,{"$f":"Import!I42979","v":0},null,{"$f":"IF(OR(Import!I43001=0,Import!I43001=\"\"),P32,Import!I43001)","v":0},null,{"$f":"IF(OR(Import!I43023=0,Import!I43023=\"\"),R32,Import!I43023)","v":0},null,null,null,0,null,null,null,0.45]
[null,19,"Infrastructure",{"$f":"Import!I42848","v":0},null,{"$f":"IF(OR(Import!I42870=0,Import!I42870=\"\"),(1-$AB33)*D33,Import!I42870)","v":0},null,{"$f":"Import!I42892","v":0},null,{"$f":"IF(OR(Import!I42914=0,Import!I42914=\"\"),(1-$AB33)*H33,Import!I42914)","v":0},null,{"$f":"Import!I42936","v":0},null,{"$f":"IF(OR(Import!I42958=0,Import!I42958=\"\"),(1-$AB33)*L33,Import!I42958)","v":0},null,{"$f":"Import!I42980","v":0},null,{"$f":"IF(OR(Import!I43002=0,Import!I43002=\"\"),P33,Import!I43002)","v":0},null,{"$f":"IF(OR(Import!I43024=0,Import!I43024=\"\"),R33,Import!I43024)","v":0},null,null,null,0,null,null,null,0.25]
[null,20,"Derivatives on Infrastructure",{"$f":"Import!I42849","v":0},null,{"$f":"Import!I42871","v":0},null,{"$f":"Import!I42893","v":0},null,{"$f":"Import!I42915","v":0},null,{"$f":"Import!I42937","v":0},null,{"$f":"Import!I42959","v":0},null,{"$f":"Import!I42981","v":0},null,{"$f":"IF(OR(Import!I43003=0,Import!I43003=\"\"),P34,Import!I43003)","v":0},null,{"$f":"IF(OR(Import!I43025=0,Import!I43025=\"\"),R34,Import!I43025)","v":0},null,null,null,0,null,null,null,0.25]
[null,21,"Equity Real Estate 1",{"$f":"Import!I42850","v":0},null,{"$f":"IF(OR(Import!I42872=0,Import!I42872=\"\"),(1-$AB35)*D35,Import!I42872)","v":0},null,{"$f":"Import!I42894","v":0},null,{"$f":"IF(OR(Import!I42916=0,Import!I42916=\"\"),(1-$AB35)*H35,Import!I42916)","v":0},null,{"$f":"Import!I42938","v":0},null,{"$f":"IF(OR(Import!I42960=0,Import!I42960=\"\"),(1-$AB35)*L35,Import!I42960)","v":0},null,{"$f":"Import!I42982","v":0},null,{"$f":"IF(OR(Import!I43004=0,Import!I43004=\"\"),P35,Import!I43004)","v":0},null,{"$f":"IF(OR(Import!I43026=0,Import!I43026=\"\"),R35,Import!I43026)","v":0},null,null,null,0,null,null,null,0.1]
[null,22,"Equity Real Estate 2",{"$f":"Import!I42851","v":0},null,{"$f":"IF(OR(Import!I42873=0,Import!I42873=\"\"),(1-$AB36)*D36,Import!I42873)","v":0},null,{"$f":"Import!I42895","v":0},null,{"$f":"IF(OR(Import!I42917=0,Import!I42917=\"\"),(1-$AB36)*H36,Import!I42917)","v":0},null,{"$f":"Import!I42939","v":0},null,{"$f":"IF(OR(Import!I42961=0,Import!I42961=\"\"),(1-$AB36)*L36,Import!I42961)","v":0},null,{"$f":"Import!I42983","v":0},null,{"$f":"IF(OR(Import!I43005=0,Import!I43005=\"\"),P36,Import!I43005)","v":0},null,{"$f":"IF(OR(Import!I43027=0,Import!I43027=\"\"),R36,Import!I43027)","v":0},null,null,null,0,null,null,null,0.2]
[]
[null,{"$f":"B36+1","v":23},"Total Equity Holdings",{"$f":"SUM(D14:D37)","v":0},null,{"$f":"SUM(F14:F37)","v":0},null,{"$f":"SUM(H14:H37)","v":0},null,{"$f":"SUM(J14:J37)","v":0},null,{"$f":"SUM(L14:L37)","v":0},null,{"$f":"SUM(N14:N37)","v":0},null,{"$f":"SUM(P14:P37)","v":0},null,{"$f":"SUM(R14:R37)","v":0},null,{"$f":"SUM(T14:T37)","v":0},null,null,null,{"$f":"SUM(X14:X37)","v":0}]

{"sheet":"Schedule III","index":35,"n_rows":39,"n_cols":7,"rows_kept":39,"cut":false,"hidden":false,"merged":[[27,2,27,3],[28,2,28,3],[29,2,29,3],[30,2,30,3],[31,2,31,3],[22,2,22,3],[23,2,23,3],[24,2,24,3],[25,2,25,3],[26,2,26,3],[0,1,0,4],[44,1,44,6],[8,2,8,3],[9,2,9,3],[10,2,10,3],[11,2,11,3],[12,2,12,3],[13,2,13,3],[14,2,14,3],[15,2,15,3],[16,2,16,3],[17,2,17,3],[18,2,18,3],[19,2,19,3],[20,2,20,3],[21,2,21,3]]}
[null,"SCHEDULE OF NET LOSS AND LOSS EXPENSE PROVISIONS BY LINE OF GENERAL BUSINESS",null,null,null,null,{"$f":"HYPERLINK(\"#'Index'!A1\",\"Return to Index\")","v":"Return to Index"}]
[null,{"$f":"'Group Information'!C9","v":"Enter Parent Company Name"}]
[null,"As at",null,{"$f":"'Group Information'!C3","v":"2023-12-31"}]
[null,"expressed in ",null,{"$f":"'Form 1EBS'!C4","v":" ['000s]United States Dollars"},null,null,"SCHEDULE III"]
[]
[null,"Schedule ",null,null,{"$f":"+'Schedule II'!D8","v":"2023-12-31"},null,{"$f":"+'Schedule II'!F8","v":"2022-12-31"}]
[null,"Line no. ",null,null,"('000)",null,"('000)"]
[]
[null,1,"Property Catastrophe",null,{"$f":"Import!E1132","v":0},null,{"$f":"Import!G1132","v":0}]
[null,2,"Property",null,{"$f":"Import!E1133","v":0},null,{"$f":"Import!G1133","v":0}]
[null,3,"Property Non – Proportional",null,{"$f":"Import!E1134","v":0},null,{"$f":"Import!G1134","v":0}]
[null,4,"Personal Accident",null,{"$f":"Import!E1135","v":0},null,{"$f":"Import!G1135","v":0}]
[null,5,"Personal Accident Non- Proportional",null,{"$f":"Import!E1136","v":0},null,{"$f":"Import!G1136","v":0}]
[null,6,"Aviation",null,{"$f":"Import!E1137","v":0},null,{"$f":"Import!G1137","v":0}]
[null,7,"Aviation Non – Proportional",null,{"$f":"Import!E1138","v":0},null,{"$f":"Import!G1138","v":0}]
[null,8,"Credit / Surety",null,{"$f":"Import!E1139","v":0},null,{"$f":"Import!G1139","v":0}]
[null,9,"Credit / Surety Non – Proportional",null,{"$f":"Import!E1140","v":0},null,{"$f":"Import!G1140","v":0}]
[null,10,"Energy Offshore / Marine",null,{"$f":"Import!E1141","v":0},null,{"$f":"Import!G1141","v":0}]
[null,11,"Energy Offshore / Marine Non - Proportional ",null,{"$f":"Import!E1142","v":0},null,{"$f":"Import!G1142","v":0}]
[null,12,"US Casualty",null,{"$f":"Import!E1143","v":0},null,{"$f":"Import!G1143","v":0}]
[null,13,"US Casualty Non - Proportional ",null,{"$f":"Import!E1144","v":0},null,{"$f":"Import!G1144","v":0}]
[null,14,"US Professional",null,{"$f":"Import!E1145","v":0},null,{"$f":"Import!G1145","v":0}]
[null,15,"US Professional Non – Proportional",null,{"$f":"Import!E1146","v":0},null,{"$f":"Import!G1146","v":0}]
[null,16,"US Specialty",null,{"$f":"Import!E1147","v":0},null,{"$f":"Import!G1147","v":0}]
[null,17,"US Specialty Non - Proportional",null,{"$f":"Import!E1148","v":0},null,{"$f":"Import!G1148","v":0}]
[null,18,"International Motor",null,{"$f":"Import!E1149","v":0},null,{"$f":"Import!G1149","v":0}]
[null,19,"International Motor Non – Proportional",null,{"$f":"Import!E1150","v":0},null,{"$f":"Import!G1150","v":0}]
[null,20,"International Casualty Non Motor",null,{"$f":"Import!E1151","v":0},null,{"$f":"Import!G1151","v":0}]
[null,21,"International Casualty Non Motor Non – Proportional ",null,{"$f":"Import!E1152","v":0},null,{"$f":"Import!G1152","v":0}]
[null,22,"Retro Property",null,{"$f":"Import!E1153","v":0},null,{"$f":"Import!G1153","v":0}]
[null,23,"Structured / Finite Reinsurance",null,{"$f":"Import!E1154","v":0},null,{"$f":"Import!G1154","v":0}]
[null,24,"Health",null,{"$f":"Import!E1155","v":0},null,{"$f":"Import!G1155","v":0}]
[null,25,"Total ",null,{"$f":"SUM(E9:E32)","v":0},null,{"$f":"SUM(G9:G32)","v":0}]
[]
[null,null,null,null,{"$f":"IF(E36=\"TRUE\",HYPERLINK(\"#'Form 1'!F111\",\"TRUE\"),HYPERLINK(\"#'Form 1'!F111\",\"FALSE\"))","v":"TRUE"},null,{"$f":"IF(G36=\"TRUE\",HYPERLINK(\"#'Form 1'!H111\",\"TRUE\"),HYPERLINK(\"#'Form 1'!H111\",\"FALSE\"))","v":"TRUE"}]
[null,null,null,null,{"$f":"IF('Group Information'!$F$11=\"IFRS\",\nIF(ROUND(E33-('Form 1A'!I234+'Form 1A'!K234+'Form 1A'!M234-'Form 1A'!I312-'Form 1A'!K312-'Form 1A'!M312),0)=0,\"TRUE\",\"FALSE\"),\nIF(ROUND((E33-'Form 1'!F111),0)=0,\"TRUE\",\"FALSE\"))","v":"TRUE"},null,{"$f":"IF('Group Information'!$F$11=\"IFRS\",\nIF(ROUND(E33-('Form 1A'!I203+'Form 1A'!K203+'Form 1A'!M203-'Form 1A'!I284-'Form 1A'!K284-'Form 1A'!M284),0)=0,\"TRUE\",\"FALSE\"),\nIF(ROUND((G33-'Form 1'!H111),0)=0,\"TRUE\",\"FALSE\"))","v":"TRUE"}]
[null,null,null,null,{"$f":"IF('Group Information'!$F$11=\"IFRS\",\nROUND(('Form 1A'!I234+'Form 1A'!K234+'Form 1A'!M234-'Form 1A'!I312-'Form 1A'!K312-'Form 1A'!M312)-E33,0),\nROUND('Form 1'!F111-E33,0))","v":0},null,{"$f":"IF('Group Information'!$F$11=\"IFRS\",\nROUND(('Form 1A'!I203+'Form 1A'!K203+'Form 1A'!M203-'Form 1A'!I284-'Form 1A'!K284-'Form 1A'!M284)-G33,0),\nROUND('Form 1'!H111-G33,0))","v":0}]
[]
[null,null,null,null,{"$f":"IF(E35=\"False\",\"Does not equal Form 1 Line 17(d)\",\"\")","v":""},null,{"$f":"IF(G35=\"False\",\"Does not equal Form 1 Line 17(d)\",\"\")","v":""}]

{"sheet":"Schedule III (EBS)","index":36,"n_rows":42,"n_cols":12,"rows_kept":42,"cut":false,"hidden":false,"merged":[[0,1,0,10],[47,1,47,11],[5,3,5,7],[5,9,5,11]]}
[null,"SCHEDULE OF NET LOSS AND LOSS EXPENSE PROVISIONS BY LINE OF GENERAL BUSINESS",null,null,null,null,null,null,null,null,null,{"$f":"HYPERLINK(\"#'Index'!A1\",\"Return to Index\")","v":"Return to Index"}]
[null,{"$f":"'Group Information'!C9","v":"Enter Parent Company Name"}]
[null,"As at",{"$f":"'Group Information'!C3","v":"2023-12-31"},null,null,null,null,null,null,null,null,"SCHEDULE III (EBS)"]
[null,"expressed in ",{"$f":"'Form 1EBS'!C4","v":" ['000s]United States Dollars"},"(A)",null,"(B)",null,"(C)",null,"(D)","(E)","(F)"]
[]
[null,null,null,{"$f":"'Form 1EBS'!$F$7","v":"2023-12-31"},null,null,null,null,null,"Supplemental Notes to General Business Provisions"]
[null,"Schedule ",null,"Gross Loss Reserves",null,"Net Loss Reserves",null,"Geo Loss Reserves",null,"Bound But Not Incepted (BBNI) Premium","Best Estimate Premium Provision In Respect of BBNI","Discount included in Best Estimate Loss and Loss Expense Provisions"]
[null,"Line no. ",null,"[Form 1EBS, Line 17(a)]",null,"[Form 1EBS, Line 17(d)]",null,"[ Schedule III(a) ]",null,"[ Form 1EBS, note Line 16(d)-(i) ]","[ Form 1EBS,note Line 16(d)-(ii) ]","[ Form 1EBS,note Line 17(d) ]"]
[]
[null,1,"Property Catastrophe",{"$f":"Import!I1157","v":0},null,{"$f":"Import!I1181","v":0},null,{"$f":"+'Schedule IIIA (EBS)'!X10","v":0},null,{"$f":"Import!I1205","v":0},{"$f":"Import!I1229","v":0},{"$f":"Import!I1253","v":0}]
[null,2,"Property",{"$f":"Import!I1158","v":0},null,{"$f":"Import!I1182","v":0},null,{"$f":"+'Schedule IIIA (EBS)'!X11","v":0},null,{"$f":"Import!I1206","v":0},{"$f":"Import!I1230","v":0},{"$f":"Import!I1254","v":0}]
[null,3,"Property Non – Proportional",{"$f":"Import!I1159","v":0},null,{"$f":"Import!I1183","v":0},null,{"$f":"+'Schedule IIIA (EBS)'!X12","v":0},null,{"$f":"Import!I1207","v":0},{"$f":"Import!I1231","v":0},{"$f":"Import!I1255","v":0}]
[null,4,"Personal Accident",{"$f":"Import!I1160","v":0},null,{"$f":"Import!I1184","v":0},null,{"$f":"+'Schedule IIIA (EBS)'!X13","v":0},null,{"$f":"Import!I1208","v":0},{"$f":"Import!I1232","v":0},{"$f":"Import!I1256","v":0}]
[null,5,"Personal Accident Non- Proportional",{"$f":"Import!I1161","v":0},null,{"$f":"Import!I1185","v":0},null,{"$f":"+'Schedule IIIA (EBS)'!X14","v":0},null,{"$f":"Import!I1209","v":0},{"$f":"Import!I1233","v":0},{"$f":"Import!I1257","v":0}]
[null,6,"Aviation",{"$f":"Import!I1162","v":0},null,{"$f":"Import!I1186","v":0},null,{"$f":"+'Schedule IIIA (EBS)'!X15","v":0},null,{"$f":"Import!I1210","v":0},{"$f":"Import!I1234","v":0},{"$f":"Import!I1258","v":0}]
[null,7,"Aviation Non – Proportional",{"$f":"Import!I1163","v":0},null,{"$f":"Import!I1187","v":0},null,{"$f":"+'Schedule IIIA (EBS)'!X16","v":0},null,{"$f":"Import!I1211","v":0},{"$f":"Import!I1235","v":0},{"$f":"Import!I1259","v":0}]
[null,8,"Credit / Surety ",{"$f":"Import!I1164","v":0},null,{"$f":"Import!I1188","v":0},null,{"$f":"+'Schedule IIIA (EBS)'!X17","v":0},null,{"$f":"Import!I1212","v":0},{"$f":"Import!I1236","v":0},{"$f":"Import!I1260","v":0}]
[null,9,"Credit / Surety Non – Proportional",{"$f":"Import!I1165","v":0},null,{"$f":"Import!I1189","v":0},null,{"$f":"+'Schedule IIIA (EBS)'!X18","v":0},null,{"$f":"Import!I1213","v":0},{"$f":"Import!I1237","v":0},{"$f":"Import!I1261","v":0}]
[null,10,"Energy Offshore / Marine",{"$f":"Import!I1166","v":0},null,{"$f":"Import!I1190","v":0},null,{"$f":"+'Schedule IIIA (EBS)'!X19","v":0},null,{"$f":"Import!I1214","v":0},{"$f":"Import!I1238","v":0},{"$f":"Import!I1262","v":0}]
[null,11,"Energy Offshore / Marine Non - Proportional ",{"$f":"Import!I1167","v":0},null,{"$f":"Import!I1191","v":0},null,{"$f":"+'Schedule IIIA (EBS)'!X20","v":0},null,{"$f":"Import!I1215","v":0},{"$f":"Import!I1239","v":0},{"$f":"Import!I1263","v":0}]
[null,12,"US Casualty",{"$f":"Import!I1168","v":0},null,{"$f":"Import!I1192","v":0},null,{"$f":"+'Schedule IIIA (EBS)'!X21","v":0},null,{"$f":"Import!I1216","v":0},{"$f":"Import!I1240","v":0},{"$f":"Import!I1264","v":0}]
[null,13,"US Casualty Non - Proportional ",{"$f":"Import!I1169","v":0},null,{"$f":"Import!I1193","v":0},null,{"$f":"+'Schedule IIIA (EBS)'!X22","v":0},null,{"$f":"Import!I1217","v":0},{"$f":"Import!I1241","v":0},{"$f":"Import!I1265","v":0}]
[null,14,"US Professional",{"$f":"Import!I1170","v":0},null,{"$f":"Import!I1194","v":0},null,{"$f":"+'Schedule IIIA (EBS)'!X23","v":0},null,{"$f":"Import!I1218","v":0},{"$f":"Import!I1242","v":0},{"$f":"Import!I1266","v":0}]
[null,15,"US Professional Non – Proportional",{"$f":"Import!I1171","v":0},null,{"$f":"Import!I1195","v":0},null,{"$f":"+'Schedule IIIA (EBS)'!X24","v":0},null,{"$f":"Import!I1219","v":0},{"$f":"Import!I1243","v":0},{"$f":"Import!I1267","v":0}]
[null,16,"US Specialty ",{"$f":"Import!I1172","v":0},null,{"$f":"Import!I1196","v":0},null,{"$f":"+'Schedule IIIA (EBS)'!X25","v":0},null,{"$f":"Import!I1220","v":0},{"$f":"Import!I1244","v":0},{"$f":"Import!I1268","v":0}]
[null,17,"US Specialty Non - Proportional",{"$f":"Import!I1173","v":0},null,{"$f":"Import!I1197","v":0},null,{"$f":"+'Schedule IIIA (EBS)'!X26","v":0},null,{"$f":"Import!I1221","v":0},{"$f":"Import!I1245","v":0},{"$f":"Import!I1269","v":0}]
[null,18,"International Motor ",{"$f":"Import!I1174","v":0},null,{"$f":"Import!I1198","v":0},null,{"$f":"+'Schedule IIIA (EBS)'!X27","v":0},null,{"$f":"Import!I1222","v":0},{"$f":"Import!I1246","v":0},{"$f":"Import!I1270","v":0}]
[null,19,"International Motor Non – Proportional",{"$f":"Import!I1175","v":0},null,{"$f":"Import!I1199","v":0},null,{"$f":"+'Schedule IIIA (EBS)'!X28","v":0},null,{"$f":"Import!I1223","v":0},{"$f":"Import!I1247","v":0},{"$f":"Import!I1271","v":0}]
[null,20,"International Casualty Non – Motor ",{"$f":"Import!I1176","v":0},null,{"$f":"Import!I1200","v":0},null,{"$f":"+'Schedule IIIA (EBS)'!X29","v":0},null,{"$f":"Import!I1224","v":0},{"$f":"Import!I1248","v":0},{"$f":"Import!I1272","v":0}]
[null,21,"International Casualty Non Motor Non – Proportional ",{"$f":"Import!I1177","v":0},null,{"$f":"Import!I1201","v":0},null,{"$f":"+'Schedule IIIA (EBS)'!X30","v":0},null,{"$f":"Import!I1225","v":0},{"$f":"Import!I1249","v":0},{"$f":"Import!I1273","v":0}]
[null,22,"Retro Property",{"$f":"Import!I1178","v":0},null,{"$f":"Import!I1202","v":0},null,{"$f":"+'Schedule IIIA (EBS)'!X31","v":0},null,{"$f":"Import!I1226","v":0},{"$f":"Import!I1250","v":0},{"$f":"Import!I1274","v":0}]
[null,23,"Structured / Finite Reinsurance",{"$f":"Import!I1179","v":0},null,{"$f":"Import!I1203","v":0},null,{"$f":"+'Schedule IIIA (EBS)'!X32","v":0},null,{"$f":"Import!I1227","v":0},{"$f":"Import!I1251","v":0},{"$f":"Import!I1275","v":0}]
[null,24,"Health",{"$f":"Import!I1180","v":0},null,{"$f":"Import!I1204","v":0},null,{"$f":"+'Schedule IIIA (EBS)'!X33","v":0},null,{"$f":"Import!I1228","v":0},{"$f":"Import!I1252","v":0},{"$f":"Import!I1276","v":0}]
[null,25,"Total  ",{"$f":"SUM(D10:D33)","v":0},null,{"$f":"SUM(F10:F33)","v":0},null,{"$f":"SUM(H10:H33)","v":0},null,{"$f":"SUM(J10:J33)","v":0},{"$f":"SUM(K10:K33)","v":0},{"$f":"SUM(L10:L33)","v":0}]
[]
[null,null,"Form 1EBS Check",{"$f":"'Form 1EBS'!F114","v":0},null,{"$f":"'Form 1EBS'!F121","v":0},null,null,null,{"$f":"+'Form 1EBS'!F261","v":0},{"$f":"+'Form 1EBS'!F262","v":0},{"$f":"+'Form 1EBS'!F263","v":0}]
[]
[null,null,null,{"$f":"IF(D39=\"TRUE\",HYPERLINK(\"#'Form 1EBS'!F114\",\"TRUE\"),HYPERLINK(\"#'Form 1EBS'!F114\",\"FALSE\"))","v":"TRUE"},null,{"$f":"IF(F39=\"TRUE\",HYPERLINK(\"#'Form 1EBS'!F121\",\"TRUE\"),HYPERLINK(\"#'Form 1EBS'!F121\",\"FALSE\"))","v":"TRUE"},null,null,null,{"$f":"IF(J39=\"TRUE\",HYPERLINK(\"#'Form 1EBS'!F261\",\"TRUE\"),HYPERLINK(\"#'Form 1EBS'!F261\",\"FALSE\"))","v":"TRUE"},{"$f":"IF(K39=\"TRUE\",HYPERLINK(\"#'Form 1EBS'!F262\",\"TRUE\"),HYPERLINK(\"#'Form 1EBS'!F262\",\"FALSE\"))","v":"TRUE"},{"$f":"IF(L39=\"TRUE\",HYPERLINK(\"#'Form 1EBS'!F263\",\"TRUE\"),HYPERLINK(\"#'Form 1EBS'!F263\",\"FALSE\"))","v":"TRUE"}]
[null,null,null,{"$f":"IF(ROUND((D34-'Form 1EBS'!F114),0)=0,\"TRUE\",\"FALSE\")","v":"TRUE"},null,{"$f":"IF(ROUND((F34-'Form 1EBS'!F121),0)=0,\"TRUE\",\"FALSE\")","v":"TRUE"},null,null,null,{"$f":"IF(ROUND((J34-'Form 1EBS'!F261),0)=0,\"TRUE\",\"FALSE\")","v":"TRUE"},{"$f":"IF(ROUND((K34-'Form 1EBS'!F262),0)=0,\"TRUE\",\"FALSE\")","v":"TRUE"},{"$f":"IF(ROUND((L34-'Form 1EBS'!F263),0)=0,\"TRUE\",\"FALSE\")","v":"TRUE"}]
[null,null,null,{"$f":"ROUND('Form 1EBS'!F114-D34,0)","v":0},null,{"$f":"ROUND('Form 1EBS'!F121-F34,0)","v":0},null,null,null,{"$f":"ROUND('Form 1EBS'!F261-J34,0)","v":0},{"$f":"ROUND('Form 1EBS'!F262-K34,0)","v":0},{"$f":"ROUND('Form 1EBS'!F263-L34,0)","v":0}]
[]
[null,null,null,{"$f":"IF(D38=\"False\",\"Does not equal Form 1EBS Line 17(a)\",\"\")","v":""},null,{"$f":"IF(F38=\"False\",\"Does not equal Form 1EBS Line 17(d)\",\"\")","v":""},null,null,null,{"$f":"IF(J38=\"False\",\"Does not equal Form 1EBS Note Line 16(d)(i)\",\"\")","v":""},{"$f":"IF(K38=\"False\",\"Does not equal Form 1EBS Note Line 16(d)(ii)\",\"\")","v":""},{"$f":"IF(L38=\"False\",\"Does not equal Form 1EBS Note Line 17(d)(i)\",\"\")","v":""}]

{"sheet":"Schedule IIIA (EBS)","index":37,"n_rows":34,"n_cols":28,"rows_kept":34,"cut":false,"hidden":false,"merged":[[42,1,42,25]]}
[null,"SCHEDULE OF GEOGRAPHICAL DIVERSIFICATION OF NET LOSS AND LOSS EXPENSE PROVISIONS",null,null,null,null,null,null,null,null,null,null,null,null,null,null,null,null,null,null,null,null,null,null,null,{"$f":"HYPERLINK(\"#'Index'!A1\",\"Return to Index\")","v":"Return to Index"}]
[null,{"$f":"'Group Information'!C9","v":"Enter Parent Company Name"}]
[null,"As at",{"$f":"'Group Information'!C3","v":"2023-12-31"},null,null,null,null,null,null,null,null,null,null,null,null,null,null,null,null,null,null,null,null,null,null,"SCHEDULE III(a) (EBS)"]
[null,"expressed in ",{"$f":"'Form 1EBS'!C4","v":" ['000s]United States Dollars"}]
[null,null,null,null,null,null,null,null,null,null,null,null,null,null,null,null,null,null,null,null,null,null,null,{"$f":"\"Confirmation that \"&B2& \" Is Taking Advantage of Geographical Diversification of Reserves\"","v":"Confirmation that Enter Parent Company Name Is Taking Advantage of Geographical Diversification of Reserves"},null,"Yes"]
[]
[null,"Schedule ",null,null,{"$f":"HYPERLINK(\"#'Zones'!c4\",\"Zone 1\")","v":"Zone 1"},{"$f":"HYPERLINK(\"#'Zones'!c13\",\"Zone 2\")","v":"Zone 2"},{"$f":"HYPERLINK(\"#'Zones'!c18\",\"Zone 3\")","v":"Zone 3"},{"$f":"HYPERLINK(\"#'Zones'!c26\",\"Zone 4\")","v":"Zone 4"},{"$f":"HYPERLINK(\"#'Zones'!c36\",\"Zone 5\")","v":"Zone 5"},{"$f":"HYPERLINK(\"#'Zones'!c46\",\"Zone 6\")","v":"Zone 6"},{"$f":"HYPERLINK(\"#'Zones'!c57\",\"Zone 7\")","v":"Zone 7"},{"$f":"HYPERLINK(\"#'Zones'!c68\",\"Zone 8\")","v":"Zone 8"},{"$f":"HYPERLINK(\"#'Zones'!c76\",\"Zone 9\")","v":"Zone 9"},{"$f":"HYPERLINK(\"#'Zones'!c84\",\"Zone 10\")","v":"Zone 10"},{"$f":"HYPERLINK(\"#'Zones'!c90\",\"Zone 11\")","v":"Zone 11"},{"$f":"HYPERLINK(\"#'Zones'!c94\",\"Zone 12\")","v":"Zone 12"},{"$f":"HYPERLINK(\"#'Zones'!c107\",\"Zone 13\")","v":"Zone 13"},{"$f":"HYPERLINK(\"#'Zones'!c112\",\"Zone 14\")","v":"Zone 14"},{"$f":"HYPERLINK(\"#'Zones'!c116\",\"Zone 15\")","v":"Zone 15"},{"$f":"HYPERLINK(\"#'Zones'!c121\",\"Zone 16\")","v":"Zone 16"},{"$f":"HYPERLINK(\"#'Zones'!c127\",\"Zone 17\")","v":"Zone 17"},{"$f":"HYPERLINK(\"#'Zones'!c133\",\"Zone 18\")","v":"Zone 18"},null,"Geo Net Provision",null,"Net Loss Provision"]
[null,"Line no. ",null,null,"('000)","('000)","('000)","('000)","('000)","('000)","('000)","('000)","('000)","('000)","('000)","('000)","('000)","('000)","('000)","('000)","('000)","('000)",null,"('000)",null,"('000)"]
[]
[null,1,"Property Catastrophe",null,{"$f":"Import!I1277","v":0},{"$f":"Import!I1302","v":0},{"$f":"Import!I1327","v":0},{"$f":"Import!I1352","v":0},{"$f":"Import!I1377","v":0},{"$f":"Import!I1402","v":0},{"$f":"Import!I1427","v":0},{"$f":"Import!I1452","v":0},{"$f":"Import!I1477","v":0},{"$f":"Import!I1502","v":0},{"$f":"Import!I1527","v":0},{"$f":"Import!I1552","v":0},{"$f":"Import!I1577","v":0},{"$f":"Import!I1602","v":0},{"$f":"Import!I1627","v":0},{"$f":"Import!I1652","v":0},{"$f":"Import!I1677","v":0},{"$f":"Import!I1702","v":0},null,{"$f":"ROUND(SUM(E10:V10),0)","v":0},null,{"$f":"ROUND('Schedule III (EBS)'!F10,0)","v":0},null,{"$f":"IF($Z$5=\"Yes\",IF(X10=0,\" - \",IF(ROUND(SUM(X10-Z10),0)=0,\"TRUE\",\"FALSE\")),\"N/A\")","v":" - "}]
[null,2,"Property",null,{"$f":"Import!I1278","v":0},{"$f":"Import!I1303","v":0},{"$f":"Import!I1328","v":0},{"$f":"Import!I1353","v":0},{"$f":"Import!I1378","v":0},{"$f":"Import!I1403","v":0},{"$f":"Import!I1428","v":0},{"$f":"Import!I1453","v":0},{"$f":"Import!I1478","v":0},{"$f":"Import!I1503","v":0},{"$f":"Import!I1528","v":0},{"$f":"Import!I1553","v":0},{"$f":"Import!I1578","v":0},{"$f":"Import!I1603","v":0},{"$f":"Import!I1628","v":0},{"$f":"Import!I1653","v":0},{"$f":"Import!I1678","v":0},{"$f":"Import!I1703","v":0},null,{"$f":"ROUND(SUM(E11:V11),0)","v":0},null,{"$f":"ROUND('Schedule III (EBS)'!F11,0)","v":0},null,{"$f":"IF($Z$5=\"Yes\",IF(X11=0,\" - \",IF(ROUND(SUM(X11-Z11),0)=0,\"TRUE\",\"FALSE\")),\"N/A\")","v":" - "}]
[null,3,"Property Non – Proportional",null,{"$f":"Import!I1279","v":0},{"$f":"Import!I1304","v":0},{"$f":"Import!I1329","v":0},{"$f":"Import!I1354","v":0},{"$f":"Import!I1379","v":0},{"$f":"Import!I1404","v":0},{"$f":"Import!I1429","v":0},{"$f":"Import!I1454","v":0},{"$f":"Import!I1479","v":0},{"$f":"Import!I1504","v":0},{"$f":"Import!I1529","v":0},{"$f":"Import!I1554","v":0},{"$f":"Import!I1579","v":0},{"$f":"Import!I1604","v":0},{"$f":"Import!I1629","v":0},{"$f":"Import!I1654","v":0},{"$f":"Import!I1679","v":0},{"$f":"Import!I1704","v":0},null,0,null,{"$f":"ROUND('Schedule III (EBS)'!F12,0)","v":0},null," - "]
[null,4,"Personal Accident",null,{"$f":"Import!I1280","v":0},{"$f":"Import!I1305","v":0},{"$f":"Import!I1330","v":0},{"$f":"Import!I1355","v":0},{"$f":"Import!I1380","v":0},{"$f":"Import!I1405","v":0},{"$f":"Import!I1430","v":0},{"$f":"Import!I1455","v":0},{"$f":"Import!I1480","v":0},{"$f":"Import!I1505","v":0},{"$f":"Import!I1530","v":0},{"$f":"Import!I1555","v":0},{"$f":"Import!I1580","v":0},{"$f":"Import!I1605","v":0},{"$f":"Import!I1630","v":0},{"$f":"Import!I1655","v":0},{"$f":"Import!I1680","v":0},{"$f":"Import!I1705","v":0},null,0,null,{"$f":"ROUND('Schedule III (EBS)'!F13,0)","v":0},null," - "]
[null,5,"Personal Accident Non- Proportional",null,{"$f":"Import!I1281","v":0},{"$f":"Import!I1306","v":0},{"$f":"Import!I1331","v":0},{"$f":"Import!I1356","v":0},{"$f":"Import!I1381","v":0},{"$f":"Import!I1406","v":0},{"$f":"Import!I1431","v":0},{"$f":"Import!I1456","v":0},{"$f":"Import!I1481","v":0},{"$f":"Import!I1506","v":0},{"$f":"Import!I1531","v":0},{"$f":"Import!I1556","v":0},{"$f":"Import!I1581","v":0},{"$f":"Import!I1606","v":0},{"$f":"Import!I1631","v":0},{"$f":"Import!I1656","v":0},{"$f":"Import!I1681","v":0},{"$f":"Import!I1706","v":0},null,0,null,{"$f":"ROUND('Schedule III (EBS)'!F14,0)","v":0},null," - "]
[null,6,"Aviation",null,{"$f":"Import!I1282","v":0},{"$f":"Import!I1307","v":0},{"$f":"Import!I1332","v":0},{"$f":"Import!I1357","v":0},{"$f":"Import!I1382","v":0},{"$f":"Import!I1407","v":0},{"$f":"Import!I1432","v":0},{"$f":"Import!I1457","v":0},{"$f":"Import!I1482","v":0},{"$f":"Import!I1507","v":0},{"$f":"Import!I1532","v":0},{"$f":"Import!I1557","v":0},{"$f":"Import!I1582","v":0},{"$f":"Import!I1607","v":0},{"$f":"Import!I1632","v":0},{"$f":"Import!I1657","v":0},{"$f":"Import!I1682","v":0},{"$f":"Import!I1707","v":0},null,0,null,{"$f":"ROUND('Schedule III (EBS)'!F15,0)","v":0},null," - "]
[null,7,"Aviation Non – Proportional",null,{"$f":"Import!I1283","v":0},{"$f":"Import!I1308","v":0},{"$f":"Import!I1333","v":0},{"$f":"Import!I1358","v":0},{"$f":"Import!I1383","v":0},{"$f":"Import!I1408","v":0},{"$f":"Import!I1433","v":0},{"$f":"Import!I1458","v":0},{"$f":"Import!I1483","v":0},{"$f":"Import!I1508","v":0},{"$f":"Import!I1533","v":0},{"$f":"Import!I1558","v":0},{"$f":"Import!I1583","v":0},{"$f":"Import!I1608","v":0},{"$f":"Import!I1633","v":0},{"$f":"Import!I1658","v":0},{"$f":"Import!I1683","v":0},{"$f":"Import!I1708","v":0},null,0,null,{"$f":"ROUND('Schedule III (EBS)'!F16,0)","v":0},null," - "]
[null,8,"Credit / Surety ",null,{"$f":"Import!I1284","v":0},{"$f":"Import!I1309","v":0},{"$f":"Import!I1334","v":0},{"$f":"Import!I1359","v":0},{"$f":"Import!I1384","v":0},{"$f":"Import!I1409","v":0},{"$f":"Import!I1434","v":0},{"$f":"Import!I1459","v":0},{"$f":"Import!I1484","v":0},{"$f":"Import!I1509","v":0},{"$f":"Import!I1534","v":0},{"$f":"Import!I1559","v":0},{"$f":"Import!I1584","v":0},{"$f":"Import!I1609","v":0},{"$f":"Import!I1634","v":0},{"$f":"Import!I1659","v":0},{"$f":"Import!I1684","v":0},{"$f":"Import!I1709","v":0},null,0,null,{"$f":"ROUND('Schedule III (EBS)'!F17,0)","v":0},null," - "]
[null,9,"Credit / Surety Non – Proportional",null,{"$f":"Import!I1285","v":0},{"$f":"Import!I1310","v":0},{"$f":"Import!I1335","v":0},{"$f":"Import!I1360","v":0},{"$f":"Import!I1385","v":0},{"$f":"Import!I1410","v":0},{"$f":"Import!I1435","v":0},{"$f":"Import!I1460","v":0},{"$f":"Import!I1485","v":0},{"$f":"Import!I1510","v":0},{"$f":"Import!I1535","v":0},{"$f":"Import!I1560","v":0},{"$f":"Import!I1585","v":0},{"$f":"Import!I1610","v":0},{"$f":"Import!I1635","v":0},{"$f":"Import!I1660","v":0},{"$f":"Import!I1685","v":0},{"$f":"Import!I1710","v":0},null,0,null,{"$f":"ROUND('Schedule III (EBS)'!F18,0)","v":0},null," - "]
[null,10,"Energy Offshore / Marine",null,{"$f":"Import!I1286","v":0},{"$f":"Import!I1311","v":0},{"$f":"Import!I1336","v":0},{"$f":"Import!I1361","v":0},{"$f":"Import!I1386","v":0},{"$f":"Import!I1411","v":0},{"$f":"Import!I1436","v":0},{"$f":"Import!I1461","v":0},{"$f":"Import!I1486","v":0},{"$f":"Import!I1511","v":0},{"$f":"Import!I1536","v":0},{"$f":"Import!I1561","v":0},{"$f":"Import!I1586","v":0},{"$f":"Import!I1611","v":0},{"$f":"Import!I1636","v":0},{"$f":"Import!I1661","v":0},{"$f":"Import!I1686","v":0},{"$f":"Import!I1711","v":0},null,0,null,{"$f":"ROUND('Schedule III (EBS)'!F19,0)","v":0},null," - "]
[null,11,"Energy Offshore / Marine Non - Proportional ",null,{"$f":"Import!I1287","v":0},{"$f":"Import!I1312","v":0},{"$f":"Import!I1337","v":0},{"$f":"Import!I1362","v":0},{"$f":"Import!I1387","v":0},{"$f":"Import!I1412","v":0},{"$f":"Import!I1437","v":0},{"$f":"Import!I1462","v":0},{"$f":"Import!I1487","v":0},{"$f":"Import!I1512","v":0},{"$f":"Import!I1537","v":0},{"$f":"Import!I1562","v":0},{"$f":"Import!I1587","v":0},{"$f":"Import!I1612","v":0},{"$f":"Import!I1637","v":0},{"$f":"Import!I1662","v":0},{"$f":"Import!I1687","v":0},{"$f":"Import!I1712","v":0},null,0,null,{"$f":"ROUND('Schedule III (EBS)'!F20,0)","v":0},null," - "]
[null,12,"US Casualty",null,{"$f":"Import!I1288","v":0},{"$f":"Import!I1313","v":0},{"$f":"Import!I1338","v":0},{"$f":"Import!I1363","v":0},{"$f":"Import!I1388","v":0},{"$f":"Import!I1413","v":0},{"$f":"Import!I1438","v":0},{"$f":"Import!I1463","v":0},{"$f":"Import!I1488","v":0},{"$f":"Import!I1513","v":0},{"$f":"Import!I1538","v":0},{"$f":"Import!I1563","v":0},{"$f":"Import!I1588","v":0},{"$f":"Import!I1613","v":0},{"$f":"Import!I1638","v":0},{"$f":"Import!I1663","v":0},{"$f":"Import!I1688","v":0},{"$f":"Import!I1713","v":0},null,0,null,{"$f":"ROUND('Schedule III (EBS)'!F21,0)","v":0},null," - "]
[null,13,"US Casualty Non - Proportional ",null,{"$f":"Import!I1289","v":0},{"$f":"Import!I1314","v":0},{"$f":"Import!I1339","v":0},{"$f":"Import!I1364","v":0},{"$f":"Import!I1389","v":0},{"$f":"Import!I1414","v":0},{"$f":"Import!I1439","v":0},{"$f":"Import!I1464","v":0},{"$f":"Import!I1489","v":0},{"$f":"Import!I1514","v":0},{"$f":"Import!I1539","v":0},{"$f":"Import!I1564","v":0},{"$f":"Import!I1589","v":0},{"$f":"Import!I1614","v":0},{"$f":"Import!I1639","v":0},{"$f":"Import!I1664","v":0},{"$f":"Import!I1689","v":0},{"$f":"Import!I1714","v":0},null,0,null,{"$f":"ROUND('Schedule III (EBS)'!F22,0)","v":0},null," - "]
[null,14,"US Professional",null,{"$f":"Import!I1290","v":0},{"$f":"Import!I1315","v":0},{"$f":"Import!I1340","v":0},{"$f":"Import!I1365","v":0},{"$f":"Import!I1390","v":0},{"$f":"Import!I1415","v":0},{"$f":"Import!I1440","v":0},{"$f":"Import!I1465","v":0},{"$f":"Import!I1490","v":0},{"$f":"Import!I1515","v":0},{"$f":"Import!I1540","v":0},{"$f":"Import!I1565","v":0},{"$f":"Import!I1590","v":0},{"$f":"Import!I1615","v":0},{"$f":"Import!I1640","v":0},{"$f":"Import!I1665","v":0},{"$f":"Import!I1690","v":0},{"$f":"Import!I1715","v":0},null,0,null,{"$f":"ROUND('Schedule III (EBS)'!F23,0)","v":0},null," - "]
[null,15,"US Professional Non – Proportional",null,{"$f":"Import!I1291","v":0},{"$f":"Import!I1316","v":0},{"$f":"Import!I1341","v":0},{"$f":"Import!I1366","v":0},{"$f":"Import!I1391","v":0},{"$f":"Import!I1416","v":0},{"$f":"Import!I1441","v":0},{"$f":"Import!I1466","v":0},{"$f":"Import!I1491","v":0},{"$f":"Import!I1516","v":0},{"$f":"Import!I1541","v":0},{"$f":"Import!I1566","v":0},{"$f":"Import!I1591","v":0},{"$f":"Import!I1616","v":0},{"$f":"Import!I1641","v":0},{"$f":"Import!I1666","v":0},{"$f":"Import!I1691","v":0},{"$f":"Import!I1716","v":0},null,0,null,{"$f":"ROUND('Schedule III (EBS)'!F24,0)","v":0},null," - "]
[null,16,"US Specialty ",null,{"$f":"Import!I1292","v":0},{"$f":"Import!I1317","v":0},{"$f":"Import!I1342","v":0},{"$f":"Import!I1367","v":0},{"$f":"Import!I1392","v":0},{"$f":"Import!I1417","v":0},{"$f":"Import!I1442","v":0},{"$f":"Import!I1467","v":0},{"$f":"Import!I1492","v":0},{"$f":"Import!I1517","v":0},{"$f":"Import!I1542","v":0},{"$f":"Import!I1567","v":0},{"$f":"Import!I1592","v":0},{"$f":"Import!I1617","v":0},{"$f":"Import!I1642","v":0},{"$f":"Import!I1667","v":0},{"$f":"Import!I1692","v":0},{"$f":"Import!I1717","v":0},null,0,null,{"$f":"ROUND('Schedule III (EBS)'!F25,0)","v":0},null," - "]
[null,17,"US Specialty Non - Proportional",null,{"$f":"Import!I1293","v":0},{"$f":"Import!I1318","v":0},{"$f":"Import!I1343","v":0},{"$f":"Import!I1368","v":0},{"$f":"Import!I1393","v":0},{"$f":"Import!I1418","v":0},{"$f":"Import!I1443","v":0},{"$f":"Import!I1468","v":0},{"$f":"Import!I1493","v":0},{"$f":"Import!I1518","v":0},{"$f":"Import!I1543","v":0},{"$f":"Import!I1568","v":0},{"$f":"Import!I1593","v":0},{"$f":"Import!I1618","v":0},{"$f":"Import!I1643","v":0},{"$f":"Import!I1668","v":0},{"$f":"Import!I1693","v":0},{"$f":"Import!I1718","v":0},null,0,null,{"$f":"ROUND('Schedule III (EBS)'!F26,0)","v":0},null," - "]
[null,18,"International Motor ",null,{"$f":"Import!I1294","v":0},{"$f":"Import!I1319","v":0},{"$f":"Import!I1344","v":0},{"$f":"Import!I1369","v":0},{"$f":"Import!I1394","v":0},{"$f":"Import!I1419","v":0},{"$f":"Import!I1444","v":0},{"$f":"Import!I1469","v":0},{"$f":"Import!I1494","v":0},{"$f":"Import!I1519","v":0},{"$f":"Import!I1544","v":0},{"$f":"Import!I1569","v":0},{"$f":"Import!I1594","v":0},{"$f":"Import!I1619","v":0},{"$f":"Import!I1644","v":0},{"$f":"Import!I1669","v":0},{"$f":"Import!I1694","v":0},{"$f":"Import!I1719","v":0},null,0,null,{"$f":"ROUND('Schedule III (EBS)'!F27,0)","v":0},null," - "]
[null,19,"International Motor Non – Proportional",null,{"$f":"Import!I1295","v":0},{"$f":"Import!I1320","v":0},{"$f":"Import!I1345","v":0},{"$f":"Import!I1370","v":0},{"$f":"Import!I1395","v":0},{"$f":"Import!I1420","v":0},{"$f":"Import!I1445","v":0},{"$f":"Import!I1470","v":0},{"$f":"Import!I1495","v":0},{"$f":"Import!I1520","v":0},{"$f":"Import!I1545","v":0},{"$f":"Import!I1570","v":0},{"$f":"Import!I1595","v":0},{"$f":"Import!I1620","v":0},{"$f":"Import!I1645","v":0},{"$f":"Import!I1670","v":0},{"$f":"Import!I1695","v":0},{"$f":"Import!I1720","v":0},null,0,null,{"$f":"ROUND('Schedule III (EBS)'!F28,0)","v":0},null," - "]
[null,20,"International Casualty Non – Motor ",null,{"$f":"Import!I1296","v":0},{"$f":"Import!I1321","v":0},{"$f":"Import!I1346","v":0},{"$f":"Import!I1371","v":0},{"$f":"Import!I1396","v":0},{"$f":"Import!I1421","v":0},{"$f":"Import!I1446","v":0},{"$f":"Import!I1471","v":0},{"$f":"Import!I1496","v":0},{"$f":"Import!I1521","v":0},{"$f":"Import!I1546","v":0},{"$f":"Import!I1571","v":0},{"$f":"Import!I1596","v":0},{"$f":"Import!I1621","v":0},{"$f":"Import!I1646","v":0},{"$f":"Import!I1671","v":0},{"$f":"Import!I1696","v":0},{"$f":"Import!I1721","v":0},null,0,null,{"$f":"ROUND('Schedule III (EBS)'!F29,0)","v":0},null," - "]
[null,21,"International Casualty Non Motor Non – Proportional ",null,{"$f":"Import!I1297","v":0},{"$f":"Import!I1322","v":0},{"$f":"Import!I1347","v":0},{"$f":"Import!I1372","v":0},{"$f":"Import!I1397","v":0},{"$f":"Import!I1422","v":0},{"$f":"Import!I1447","v":0},{"$f":"Import!I1472","v":0},{"$f":"Import!I1497","v":0},{"$f":"Import!I1522","v":0},{"$f":"Import!I1547","v":0},{"$f":"Import!I1572","v":0},{"$f":"Import!I1597","v":0},{"$f":"Import!I1622","v":0},{"$f":"Import!I1647","v":0},{"$f":"Import!I1672","v":0},{"$f":"Import!I1697","v":0},{"$f":"Import!I1722","v":0},null,0,null,{"$f":"ROUND('Schedule III (EBS)'!F30,0)","v":0},null," - "]
[null,22,"Retro Property",null,{"$f":"Import!I1298","v":0},{"$f":"Import!I1323","v":0},{"$f":"Import!I1348","v":0},{"$f":"Import!I1373","v":0},{"$f":"Import!I1398","v":0},{"$f":"Import!I1423","v":0},{"$f":"Import!I1448","v":0},{"$f":"Import!I1473","v":0},{"$f":"Import!I1498","v":0},{"$f":"Import!I1523","v":0},{"$f":"Import!I1548","v":0},{"$f":"Import!I1573","v":0},{"$f":"Import!I1598","v":0},{"$f":"Import!I1623","v":0},{"$f":"Import!I1648","v":0},{"$f":"Import!I1673","v":0},{"$f":"Import!I1698","v":0},{"$f":"Import!I1723","v":0},null,0,null,{"$f":"ROUND('Schedule III (EBS)'!F31,0)","v":0},null," - "]
[null,23,"Structured / Finite Reinsurance",null,{"$f":"Import!I1299","v":0},{"$f":"Import!I1324","v":0},{"$f":"Import!I1349","v":0},{"$f":"Import!I1374","v":0},{"$f":"Import!I1399","v":0},{"$f":"Import!I1424","v":0},{"$f":"Import!I1449","v":0},{"$f":"Import!I1474","v":0},{"$f":"Import!I1499","v":0},{"$f":"Import!I1524","v":0},{"$f":"Import!I1549","v":0},{"$f":"Import!I1574","v":0},{"$f":"Import!I1599","v":0},{"$f":"Import!I1624","v":0},{"$f":"Import!I1649","v":0},{"$f":"Import!I1674","v":0},{"$f":"Import!I1699","v":0},{"$f":"Import!I1724","v":0},null,0,null,{"$f":"ROUND('Schedule III (EBS)'!F32,0)","v":0},null," - "]
[null,24,"Health",null,{"$f":"Import!I1300","v":0},{"$f":"Import!I1325","v":0},{"$f":"Import!I1350","v":0},{"$f":"Import!I1375","v":0},{"$f":"Import!I1400","v":0},{"$f":"Import!I1425","v":0},{"$f":"Import!I1450","v":0},{"$f":"Import!I1475","v":0},{"$f":"Import!I1500","v":0},{"$f":"Import!I1525","v":0},{"$f":"Import!I1550","v":0},{"$f":"Import!I1575","v":0},{"$f":"Import!I1600","v":0},{"$f":"Import!I1625","v":0},{"$f":"Import!I1650","v":0},{"$f":"Import!I1675","v":0},{"$f":"Import!I1700","v":0},{"$f":"Import!I1725","v":0},null,0,null,{"$f":"ROUND('Schedule III (EBS)'!F33,0)","v":0},null," - "]
[null,25,"Total  ",null,{"$f":"SUM(E10:E33)","v":0},{"$f":"SUM(F10:F33)","v":0},0,0,0,0,0,0,0,0,0,0,0,0,0,0,{"$f":"SUM(U10:U33)","v":0},{"$f":"SUM(V10:V33)","v":0},null,{"$f":"SUM(X10:X33)","v":0},null,{"$f":"SUM(Z10:Z33)","v":0}]

{"sheet":"Schedule IVA","index":38,"n_rows":41,"n_cols":21,"rows_kept":41,"cut":false,"hidden":false,"merged":[[6,16,6,18],[6,4,6,6],[6,8,6,10],[4,16,4,18],[5,16,5,18],[5,4,5,6],[5,8,5,10],[4,4,4,14],[5,12,5,14],[6,12,6,14]]}
[null,"SCHEDULE OF PREMIUMS WRITTEN BY LINE OF GENERAL BUSINESS",null,null,null,null,null,null,null,null,null,null,null,null,null,null,null,null,null,null,{"$f":"HYPERLINK(\"#'Index'!A1\",\"Return to Index\")","v":"Return to Index"}]
[null,{"$f":"'Group Information'!C9","v":"Enter Parent Company Name"}]
[null,{"$f":"\"For the year ending \"&TEXT('Group Information'!C3,\"DD MMMM YYYY\")","v":"For the year ending 31 December 2023"}]
[null,{"$f":"\"expressed in \"&'Form 1EBS'!C4","v":"expressed in  ['000s]United States Dollars"},null,null,null,null,null,null,null,null,null,null,null,null,null,null,null,null,null,null,"SCHEDULE IV(A) (EBS)"]
[null,null,null,null,"Gross  Premiums Written",null,null,null,null,null,null,null,null,null,null,null,"Net Premiums Written",null,null,null,"Geo NPW"]
[null,null,null,null,"Unrelated",null,null,null,"Related",null,null,null,"Total",null,null,null,"Total"]
[null,"Schedule ",null,null,null,null,null,null,null,null,null,null,"[Form 2EBS, Line 1(c)]",null,null,null,"[Form 2EBS, Line 3]",null,null,null,"[ Schedule IV(C) ]"]
[null,"Line no. ",null,null,{"$f":"'Form 1EBS'!F7","v":"2023-12-31"},null,{"$f":"'Form 1EBS'!H7","v":"2022-12-31"},null,{"$f":"'Form 1EBS'!F7","v":"2023-12-31"},null,{"$f":"'Form 1EBS'!H7","v":"2022-12-31"},null,{"$f":"'Form 1EBS'!F7","v":"2023-12-31"},null,{"$f":"'Form 1EBS'!H7","v":"2022-12-31"},null,{"$f":"'Form 1EBS'!F7","v":"2023-12-31"},null,{"$f":"'Form 1EBS'!H7","v":"2022-12-31"},null,{"$f":"'Form 1EBS'!F7","v":"2023-12-31"}]
[null,null,null,null,"('000)",null,"('000)",null,"('000)",null,"('000)",null,"('000)",null,"('000)",null,"('000)",null,"('000)",null,"('000)"]
[]
[null,1,"Property Catastrophe",null,{"$f":"Import!E1728","v":0},null,{"$f":"Import!G1728","v":0},null,{"$f":"Import!E1752","v":0},null,{"$f":"Import!G1752","v":0},null,{"$f":"E11+I11","v":0},null,{"$f":"G11+K11","v":0},null,{"$f":"Import!E1776","v":0},null,{"$f":"Import!G1776","v":0},null,{"$f":"+'Schedule IVC (EBS)'!X9","v":0}]
[null,2,"Property",null,{"$f":"Import!E1729","v":0},null,{"$f":"Import!G1729","v":0},null,{"$f":"Import!E1753","v":0},null,{"$f":"Import!G1753","v":0},null,{"$f":"E12+I12","v":0},null,{"$f":"G12+K12","v":0},null,{"$f":"Import!E1777","v":0},null,{"$f":"Import!G1777","v":0},null,{"$f":"+'Schedule IVC (EBS)'!X10","v":0}]
[null,3,"Property Non – Proportional",null,{"$f":"Import!E1730","v":0},null,{"$f":"Import!G1730","v":0},null,{"$f":"Import!E1754","v":0},null,{"$f":"Import!G1754","v":0},null,0,null,0,null,{"$f":"Import!E1778","v":0},null,{"$f":"Import!G1778","v":0},null,{"$f":"+'Schedule IVC (EBS)'!X11","v":0}]
[null,4,"Personal Accident",null,{"$f":"Import!E1731","v":0},null,{"$f":"Import!G1731","v":0},null,{"$f":"Import!E1755","v":0},null,{"$f":"Import!G1755","v":0},null,0,null,0,null,{"$f":"Import!E1779","v":0},null,{"$f":"Import!G1779","v":0},null,{"$f":"+'Schedule IVC (EBS)'!X12","v":0}]
[null,5,"Personal Accident Non- Proportional",null,{"$f":"Import!E1732","v":0},null,{"$f":"Import!G1732","v":0},null,{"$f":"Import!E1756","v":0},null,{"$f":"Import!G1756","v":0},null,0,null,0,null,{"$f":"Import!E1780","v":0},null,{"$f":"Import!G1780","v":0},null,{"$f":"+'Schedule IVC (EBS)'!X13","v":0}]
[null,6,"Aviation",null,{"$f":"Import!E1733","v":0},null,{"$f":"Import!G1733","v":0},null,{"$f":"Import!E1757","v":0},null,{"$f":"Import!G1757","v":0},null,0,null,0,null,{"$f":"Import!E1781","v":0},null,{"$f":"Import!G1781","v":0},null,{"$f":"+'Schedule IVC (EBS)'!X14","v":0}]
[null,7,"Aviation Non – Proportional",null,{"$f":"Import!E1734","v":0},null,{"$f":"Import!G1734","v":0},null,{"$f":"Import!E1758","v":0},null,{"$f":"Import!G1758","v":0},null,0,null,0,null,{"$f":"Import!E1782","v":0},null,{"$f":"Import!G1782","v":0},null,{"$f":"+'Schedule IVC (EBS)'!X15","v":0}]
[null,8,"Credit / Surety ",null,{"$f":"Import!E1735","v":0},null,{"$f":"Import!G1735","v":0},null,{"$f":"Import!E1759","v":0},null,{"$f":"Import!G1759","v":0},null,0,null,0,null,{"$f":"Import!E1783","v":0},null,{"$f":"Import!G1783","v":0},null,{"$f":"+'Schedule IVC (EBS)'!X16","v":0}]
[null,9,"Credit / Surety Non – Proportional",null,{"$f":"Import!E1736","v":0},null,{"$f":"Import!G1736","v":0},null,{"$f":"Import!E1760","v":0},null,{"$f":"Import!G1760","v":0},null,0,null,0,null,{"$f":"Import!E1784","v":0},null,{"$f":"Import!G1784","v":0},null,{"$f":"+'Schedule IVC (EBS)'!X17","v":0}]
[null,10,"Energy Offshore / Marine",null,{"$f":"Import!E1737","v":0},null,{"$f":"Import!G1737","v":0},null,{"$f":"Import!E1761","v":0},null,{"$f":"Import!G1761","v":0},null,0,null,0,null,{"$f":"Import!E1785","v":0},null,{"$f":"Import!G1785","v":0},null,{"$f":"+'Schedule IVC (EBS)'!X18","v":0}]
[null,11,"Energy Offshore / Marine Non - Proportional ","  ",{"$f":"Import!E1738","v":0},null,{"$f":"Import!G1738","v":0},null,{"$f":"Import!E1762","v":0},null,{"$f":"Import!G1762","v":0},null,0,null,0,null,{"$f":"Import!E1786","v":0},null,{"$f":"Import!G1786","v":0},null,{"$f":"+'Schedule IVC (EBS)'!X19","v":0}]
[null,12,"US Casualty",null,{"$f":"Import!E1739","v":0},null,{"$f":"Import!G1739","v":0},null,{"$f":"Import!E1763","v":0},null,{"$f":"Import!G1763","v":0},null,0,null,0,null,{"$f":"Import!E1787","v":0},null,{"$f":"Import!G1787","v":0},null,{"$f":"+'Schedule IVC (EBS)'!X20","v":0}]
[null,13,"US Casualty Non - Proportional ",null,{"$f":"Import!E1740","v":0},null,{"$f":"Import!G1740","v":0},null,{"$f":"Import!E1764","v":0},null,{"$f":"Import!G1764","v":0},null,0,null,0,null,{"$f":"Import!E1788","v":0},null,{"$f":"Import!G1788","v":0},null,{"$f":"+'Schedule IVC (EBS)'!X21","v":0}]
[null,14,"US Professional",null,{"$f":"Import!E1741","v":0},null,{"$f":"Import!G1741","v":0},null,{"$f":"Import!E1765","v":0},null,{"$f":"Import!G1765","v":0},null,0,null,0,null,{"$f":"Import!E1789","v":0},null,{"$f":"Import!G1789","v":0},null,{"$f":"+'Schedule IVC (EBS)'!X22","v":0}]
[null,15,"US Professional Non – Proportional",null,{"$f":"Import!E1742","v":0},null,{"$f":"Import!G1742","v":0},null,{"$f":"Import!E1766","v":0},null,{"$f":"Import!G1766","v":0},null,0,null,0,null,{"$f":"Import!E1790","v":0},null,{"$f":"Import!G1790","v":0},null,{"$f":"+'Schedule IVC (EBS)'!X23","v":0}]
[null,16,"US Specialty ",null,{"$f":"Import!E1743","v":0},null,{"$f":"Import!G1743","v":0},null,{"$f":"Import!E1767","v":0},null,{"$f":"Import!G1767","v":0},null,0,null,0,null,{"$f":"Import!E1791","v":0},null,{"$f":"Import!G1791","v":0},null,{"$f":"+'Schedule IVC (EBS)'!X24","v":0}]
[null,17,"US Specialty Non - Proportional",null,{"$f":"Import!E1744","v":0},null,{"$f":"Import!G1744","v":0},null,{"$f":"Import!E1768","v":0},null,{"$f":"Import!G1768","v":0},null,0,null,0,null,{"$f":"Import!E1792","v":0},null,{"$f":"Import!G1792","v":0},null,{"$f":"+'Schedule IVC (EBS)'!X25","v":0}]
[null,18,"International Motor ",null,{"$f":"Import!E1745","v":0},null,{"$f":"Import!G1745","v":0},null,{"$f":"Import!E1769","v":0},null,{"$f":"Import!G1769","v":0},null,0,null,0,null,{"$f":"Import!E1793","v":0},null,{"$f":"Import!G1793","v":0},null,{"$f":"+'Schedule IVC (EBS)'!X26","v":0}]
[null,19,"International Motor Non – Proportional",null,{"$f":"Import!E1746","v":0},null,{"$f":"Import!G1746","v":0},null,{"$f":"Import!E1770","v":0},null,{"$f":"Import!G1770","v":0},null,0,null,0,null,{"$f":"Import!E1794","v":0},null,{"$f":"Import!G1794","v":0},null,{"$f":"+'Schedule IVC (EBS)'!X27","v":0}]
[null,20,"International Casualty Non – Motor ",null,{"$f":"Import!E1747","v":0},null,{"$f":"Import!G1747","v":0},null,{"$f":"Import!E1771","v":0},null,{"$f":"Import!G1771","v":0},null,0,null,0,null,{"$f":"Import!E1795","v":0},null,{"$f":"Import!G1795","v":0},null,{"$f":"+'Schedule IVC (EBS)'!X28","v":0}]
[null,21,"International Casualty Non Motor Non – Proportional ",null,{"$f":"Import!E1748","v":0},null,{"$f":"Import!G1748","v":0},null,{"$f":"Import!E1772","v":0},null,{"$f":"Import!G1772","v":0},null,0,null,0,null,{"$f":"Import!E1796","v":0},null,{"$f":"Import!G1796","v":0},null,{"$f":"+'Schedule IVC (EBS)'!X29","v":0}]
[null,22,"Retro Property",null,{"$f":"Import!E1749","v":0},null,{"$f":"Import!G1749","v":0},null,{"$f":"Import!E1773","v":0},null,{"$f":"Import!G1773","v":0},null,0,null,0,null,{"$f":"Import!E1797","v":0},null,{"$f":"Import!G1797","v":0},null,{"$f":"+'Schedule IVC (EBS)'!X30","v":0}]
[null,23,"Structured / Finite Reinsurance",null,{"$f":"Import!E1750","v":0},null,{"$f":"Import!G1750","v":0},null,{"$f":"Import!E1774","v":0},null,{"$f":"Import!G1774","v":0},null,0,null,0,null,{"$f":"Import!E1798","v":0},null,{"$f":"Import!G1798","v":0},null,{"$f":"+'Schedule IVC (EBS)'!X31","v":0}]
[null,24,"Health",null,{"$f":"Import!E1751","v":0},null,{"$f":"Import!G1751","v":0},null,{"$f":"Import!E1775","v":0},null,{"$f":"Import!G1775","v":0},null,0,null,0,null,{"$f":"Import!E1799","v":0},null,{"$f":"Import!G1799","v":0},null,{"$f":"+'Schedule IVC (EBS)'!X32","v":0}]
[null,25,"Total ",null,{"$f":"SUM(E11:E34)","v":0},null,{"$f":"SUM(G11:G34)","v":0},null,{"$f":"SUM(I11:I34)","v":0},null,{"$f":"SUM(K11:K34)","v":0},null,{"$f":"SUM(M11:M34)","v":0},null,{"$f":"SUM(O11:O34)","v":0},null,{"$f":"SUM(Q11:Q34)","v":0},null,{"$f":"SUM(S11:S34)","v":0},null,{"$f":"SUM(U11:U34)","v":0}]
[]
[null,null,null,null,null,null,null,null,null,null,null,null,{"$f":"IF(M38=\"TRUE\",HYPERLINK(\"#'Form 2'!E14\",\"TRUE\"),HYPERLINK(\"#'Form 2'!E14\",\"FALSE\"))","v":"TRUE"},null,{"$f":"IF(O38=\"TRUE\",HYPERLINK(\"#'Form 2'!G14\",\"TRUE\"),HYPERLINK(\"#'Form 2'!G14\",\"FALSE\"))","v":"TRUE"},null,{"$f":"IF(Q38=\"TRUE\",HYPERLINK(\"#'Form 2'!E18\",\"TRUE\"),HYPERLINK(\"#'Form 2'!E18\",\"FALSE\"))","v":"TRUE"},null,{"$f":"IF(S38=\"TRUE\",HYPERLINK(\"#'Form 2'!G18\",\"TRUE\"),HYPERLINK(\"#'Form 2'!G18\",\"FALSE\"))","v":"TRUE"}]
[null,null,null,null,null,null,null,null,null,null,null,null,{"$f":"IF('Group Information'!$F$11=\"IFRS\",IF(ROUND((M35-'Form 2A'!E77),0)=0,\"TRUE\",\"FALSE\"),IF(ROUND((M35-'Form 2'!E14),0)=0,\"TRUE\",\"FALSE\"))","v":"TRUE"},null,{"$f":"IF('Group Information'!$F$11=\"IFRS\",IF(ROUND((O35-'Form 2A'!G77),0)=0,\"TRUE\",\"FALSE\"),IF(ROUND((O35-'Form 2'!G14),0)=0,\"TRUE\",\"FALSE\"))","v":"TRUE"},null,{"$f":"IF('Group Information'!$F$11=\"IFRS\",IF(ROUND((Q35-'Form 2A'!E79),0)=0,\"TRUE\",\"FALSE\"),IF(ROUND((Q35-'Form 2'!E18),0)=0,\"TRUE\",\"FALSE\"))","v":"TRUE"},null,{"$f":"IF('Group Information'!$F$11=\"IFRS\",IF(ROUND((S35-'Form 2A'!G79),0)=0,\"TRUE\",\"FALSE\"),IF(ROUND((S35-'Form 2'!G18),0)=0,\"TRUE\",\"FALSE\"))","v":"TRUE"}]
[null,null,null,null,null,null,null,null,null,null,null,null,{"$f":"IF('Group Information'!$F$11=\"IFRS\",ROUND(M35-'Form 2A'!E77,0),ROUND(M35-'Form 2'!E14,0))","v":0},null,{"$f":"IF('Group Information'!$F$11=\"IFRS\",ROUND(O35-'Form 2A'!G77,0),ROUND(O35-'Form 2'!G14,0))","v":0},null,{"$f":"IF('Group Information'!$F$11=\"IFRS\",ROUND(Q35-'Form 2A'!E79,0),ROUND(Q35-'Form 2'!E18,0))","v":0},null,{"$f":"IF('Group Information'!$F$11=\"IFRS\",ROUND(S35-'Form 2A'!G79,0),ROUND(S35-'Form 2'!G18,0))","v":0}]
[]
[null,null,null,null,null,null,null,null,null,null,null,null,{"$f":"IF(M37=\"False\",\"Does not equal Form 2 Line 1(c)\",\"\")","v":""},null,{"$f":"IF(O37=\"False\",\"Does not equal Form 2 Line 1(c)\",\"\")","v":""},null,{"$f":"IF(Q37=\"False\",\"Does not equal Form 2 Line 3\",\"\")","v":""},null,{"$f":"IF(S37=\"False\",\"Does not equal Form 2 Line 3\",\"\")","v":""}]

{"sheet":"Schedule IVB","index":39,"n_rows":37,"n_cols":27,"rows_kept":37,"cut":false,"hidden":false,"merged":[[6,24,7,26],[2,4,2,6],[4,4,4,14],[4,16,4,26],[5,12,5,14],[5,24,5,26],[6,4,7,6],[6,8,7,10],[6,12,7,14],[6,16,7,18],[6,20,7,22]]}
[null,"SCHEDULE OF LONG-TERM BUSINESS PREMIUMS",null,null,null,null,null,null,null,null,null,null,null,null,null,null,null,null,null,null,null,null,null,null,null,null,{"$f":"HYPERLINK(\"#'Index'!A1\",\"Return to Index\")","v":"Return to Index"}]
[null,{"$f":"'Group Information'!C9","v":"Enter Parent Company Name"}]
[null,"For the year ending",null,null,{"$f":"'Group Information'!C3","v":"2023-12-31"},null,null,null,null,null,null,null,null,null,null,null,null,null,null,null,null,null,null,null,null,null,"SCHEDULE IV(B) (EBS)"]
[null,"expressed in ",null,null,{"$f":"'Form 1EBS'!C4","v":" ['000s]United States Dollars"}]
[null,null,null,null,"Gross Premiums",null,null,null,null,null,null,null,null,null,null,null,"Net Premiums "]
[null,null,null,null,null,null,null,null,null,null,null,null,"[Form 2, Line 12(c)]",null,null,null,null,null,null,null,null,null,null,null,"[Form 2, Line 14(d)]"]
[null,null,null,null,"Unrelated",null,null,null,"Related",null,null,null,"Total",null,null,null,"Adjustable / Benefit Period \n<= 2 Years",null,null,null,"Non-Adjustable / Benefit Period \n> 2 Years",null,null,null,"Total"]
[null,"Schedule "]
[null,"Line no. ",null,null,{"$f":"'Form 1EBS'!F7","v":"2023-12-31"},null,{"$f":"'Form 1EBS'!H7","v":"2022-12-31"},null,{"$f":"'Form 1EBS'!F7","v":"2023-12-31"},null,{"$f":"'Form 1EBS'!H7","v":"2022-12-31"},null,{"$f":"'Form 1EBS'!F7","v":"2023-12-31"},null,{"$f":"'Form 1EBS'!H7","v":"2022-12-31"},null,{"$f":"M9","v":"2023-12-31"},null,{"$f":"O9","v":"2022-12-31"},null,{"$f":"Q9","v":"2023-12-31"},null,{"$f":"S9","v":"2022-12-31"},null,{"$f":"'Form 1EBS'!F7","v":"2023-12-31"},null,{"$f":"'Form 1EBS'!H7","v":"2022-12-31"}]
[null,null,null,null,"('000)",null,"('000)",null,"('000)",null,"('000)",null,"('000)",null,"('000)",null,"('000)",null,"('000)",null,"('000)",null,"('000)",null,"('000)",null,"('000)"]
[]
[null,1,"Mortality ",null,{"$f":"Import!E2251","v":0},null,{"$f":"Import!G2251","v":0},null,{"$f":"Import!E2267","v":0},null,{"$f":"Import!G2267","v":0},null,{"$f":"E12+I12","v":0},null,{"$f":"G12+K12","v":0},null,null,null,null,null,null,null,null,null,{"$f":"Import!E2289","v":0},null,{"$f":"Import!G2289","v":0}]
[null,2,"Critical Illness",null,{"$f":"Import!E2252","v":0},null,{"$f":"Import!G2252","v":0},null,{"$f":"Import!E2268","v":0},null,{"$f":"Import!G2268","v":0},null,{"$f":"E13+I13","v":0},null,{"$f":"G13+K13","v":0},null,null,null,null,null,null,null,null,null,{"$f":"Import!E2290","v":0},null,{"$f":"Import!G2290","v":0}]
[null,3,"Longevity",null,{"$f":"Import!E2253","v":0},null,{"$f":"Import!G2253","v":0},null,{"$f":"Import!E2269","v":0},null,{"$f":"Import!G2269","v":0},null,{"$f":"E14+I14","v":0},null,{"$f":"G14+K14","v":0},null,null,null,null,null,null,null,null,null,{"$f":"Import!E2291","v":0},null,{"$f":"Import!G2291","v":0}]
[null,4,"Deferred Annuities",null,{"$f":"Import!E2254","v":0},null,{"$f":"Import!G2254","v":0},null,{"$f":"Import!E2270","v":0},null,{"$f":"Import!G2270","v":0},null,{"$f":"E15+I15","v":0},null,{"$f":"G15+K15","v":0},null,null,null,null,null,null,null,null,null,{"$f":"Import!E2292","v":0},null,{"$f":"Import!G2292","v":0}]
[null,5,"Disability Income: Active lives with premium guarantee of —"]
[null,null,"(i) Less than or equal to 1 year",null,{"$f":"Import!E2255","v":0},null,{"$f":"Import!G2255","v":0},null,{"$f":"Import!E2271","v":0},null,{"$f":"Import!G2271","v":0},null,{"$f":"E17+I17","v":0},null,{"$f":"G17+K17","v":0},null,{"$f":"Import!E2283","v":0},null,{"$f":"Import!G2283","v":0},null,{"$f":"Import!E2286","v":0},null,{"$f":"Import!G2286","v":0}]
[null,null,"(ii) More than 1 year but less than 5 years",null,{"$f":"Import!E2256","v":0},null,{"$f":"Import!G2256","v":0},null,{"$f":"Import!E2272","v":0},null,{"$f":"Import!G2272","v":0},null,{"$f":"E18+I18","v":0},null,0,null,{"$f":"Import!E2284","v":0},null,{"$f":"Import!G2284","v":0},null,{"$f":"Import!E2287","v":0},null,{"$f":"Import!G2287","v":0}]
[null,null,"(iii) Greater than 5 years",null,{"$f":"Import!E2257","v":0},null,{"$f":"Import!G2257","v":0},null,{"$f":"Import!E2273","v":0},null,{"$f":"Import!G2273","v":0},null,{"$f":"E19+I19","v":0},null,0,null,{"$f":"Import!E2285","v":0},null,{"$f":"Import!G2285","v":0},null,{"$f":"Import!E2288","v":0},null,{"$f":"Import!G2288","v":0}]
[null,6,"Disability Income: Actives lives for other ",null,{"$f":"Import!E2258","v":0},null,{"$f":"Import!G2258","v":0},null,{"$f":"Import!E2274","v":0},null,{"$f":"Import!G2274","v":0},null,{"$f":"E20+I20","v":0},null,0,null,null,null,null,null,null,null,null,null,{"$f":"Import!E2293","v":0},null,{"$f":"Import!G2293","v":0}]
[null,null,"accident and sickness"]
[null,7,"Disability Income: Claims in payment ",null,{"$f":"Import!E2259","v":0},null,{"$f":"Import!G2259","v":0},null,{"$f":"Import!E2275","v":0},null,{"$f":"Import!G2275","v":0},null,{"$f":"E22+I22","v":0},null,0,null,null,null,null,null,null,null,null,null,{"$f":"Import!E2294","v":0},null,{"$f":"Import!G2294","v":0}]
[null,8,"Disability Income: Claims in payment for other",null,{"$f":"Import!E2260","v":0},null,{"$f":"Import!G2260","v":0},null,{"$f":"Import!E2276","v":0},null,{"$f":"Import!G2276","v":0},null,{"$f":"E23+I23","v":0},null,0,null,null,null,null,null,null,null,null,null,{"$f":"Import!E2295","v":0},null,{"$f":"Import!G2295","v":0}]
[null,null,"accident and sickness"]
[null,9,"Group Life",null,{"$f":"Import!E2261","v":0},null,{"$f":"Import!G2261","v":0},null,{"$f":"Import!E2277","v":0},null,{"$f":"Import!G2277","v":0},null,{"$f":"E25+I25","v":0},null,0,null,null,null,null,null,null,null,null,null,{"$f":"Import!E2296","v":0},null,{"$f":"Import!G2296","v":0}]
[null,10,"Group Disability",null,{"$f":"Import!E2262","v":0},null,{"$f":"Import!G2262","v":0},null,{"$f":"Import!E2278","v":0},null,{"$f":"Import!G2278","v":0},null,0,null,0,null,null,null,null,null,null,null,null,null,{"$f":"Import!E2297","v":0},null,{"$f":"Import!G2297","v":0}]
[null,11,"Group Health",null,{"$f":"Import!E2263","v":0},null,{"$f":"Import!G2263","v":0},null,{"$f":"Import!E2279","v":0},null,{"$f":"Import!G2279","v":0},null,0,null,0,null,null,null,null,null,null,null,null,null,{"$f":"Import!E2298","v":0},null,{"$f":"Import!G2298","v":0}]
[null,12,"Stop Loss",null,{"$f":"Import!E2264","v":0},null,{"$f":"Import!G2264","v":0},null,{"$f":"Import!E2280","v":0},null,{"$f":"Import!G2280","v":0},null,0,null,0,null,null,null,null,null,null,null,null,null,{"$f":"Import!E2299","v":0},null,{"$f":"Import!G2299","v":0}]
[null,13,"Rider",null,{"$f":"Import!E2265","v":0},null,{"$f":"Import!G2265","v":0},null,{"$f":"Import!E2281","v":0},null,{"$f":"Import!G2281","v":0},null,0,null,0,null,null,null,null,null,null,null,null,null,{"$f":"Import!E2300","v":0},null,{"$f":"Import!G2300","v":0}]
[null,14,"Variable Annuities",null,{"$f":"Import!E2266","v":0},null,{"$f":"Import!G2266","v":0},null,{"$f":"Import!E2282","v":0},null,{"$f":"Import!G2282","v":0},null,0,null,0,null,null,null,null,null,null,null,null,null,{"$f":"Import!E2301","v":0},null,{"$f":"Import!G2301","v":0}]
[null,15,"Total ",null,{"$f":"SUM(E12:E30)","v":0},null,{"$f":"SUM(G12:G30)","v":0},null,{"$f":"SUM(I12:I30)","v":0},null,{"$f":"SUM(K12:K30)","v":0},null,{"$f":"SUM(M12:M30)","v":0},null,{"$f":"SUM(O12:O30)","v":0},null,{"$f":"SUM(Q12:Q30)","v":0},null,{"$f":"SUM(S12:S30)","v":0},null,{"$f":"SUM(U12:U30)","v":0},null,{"$f":"SUM(W12:W30)","v":0},null,{"$f":"SUM(Y12:Y30)","v":0},null,{"$f":"SUM(AA12:AA30)","v":0}]
[]
[null,null,null,null,null,null,null,null,null,null,null,null,{"$f":"IF(M34=\"TRUE\",HYPERLINK(\"#'Form 2'!E43\",\"TRUE\"),HYPERLINK(\"#'Form 2'!E43\",\"FALSE\"))","v":"TRUE"},null,{"$f":"IF(O34=\"TRUE\",HYPERLINK(\"#'Form 2'!G43\",\"TRUE\"),HYPERLINK(\"#'Form 2'!G43\",\"FALSE\"))","v":"TRUE"},null,null,null,null,null,null,null,null,null,{"$f":"IF(Y34=\"TRUE\",HYPERLINK(\"#'Form 2'!E51\",\"TRUE\"),HYPERLINK(\"#'Form 2'!E51\",\"FALSE\"))","v":"TRUE"},null,{"$f":"IF(AA34=\"TRUE\",HYPERLINK(\"#'Form 2'!G51\",\"TRUE\"),HYPERLINK(\"#'Form 2'!G51\",\"FALSE\"))","v":"TRUE"}]
[null,null,null,null,null,null,null,null,null,null,null,null,{"$f":"IF('Group Information'!$F$11=\"IFRS\",IF(ROUND((M31-'Form 2A'!E83),0)=0,\"TRUE\",\"FALSE\"),IF(ROUND((M31-'Form 2'!E43),0)=0,\"TRUE\",\"FALSE\"))","v":"TRUE"},null,{"$f":"IF('Group Information'!$F$11=\"IFRS\",IF(ROUND((O31-'Form 2A'!G83),0)=0,\"TRUE\",\"FALSE\"),IF(ROUND((O31-'Form 2'!G43),0)=0,\"TRUE\",\"FALSE\"))","v":"TRUE"},null,null,null,null,null,null,null,null,null,{"$f":"IF('Group Information'!$F$11=\"IFRS\",IF(ROUND((Y31+Q31+U31-'Form 2A'!E85),0)=0,\"TRUE\",\"FALSE\"),IF(ROUND((Y31+Q31+U31-'Form 2'!E51),0)=0,\"TRUE\",\"FALSE\"))","v":"TRUE"},null,{"$f":"IF('Group Information'!$F$11=\"IFRS\",IF(ROUND((AA31+S31+W31-'Form 2A'!G85),0)=0,\"TRUE\",\"FALSE\"),IF(ROUND((AA31+S31+W31-'Form 2'!G51),0)=0,\"TRUE\",\"FALSE\"))","v":"TRUE"}]
[null,null,null,null,null,null,null,null,null,null,null,null,{"$f":"IF('Group Information'!$F$11=\"IFRS\",ROUND('Form 2A'!E83-M31,0),ROUND('Form 2'!E43-M31,0))","v":0},null,{"$f":"IF('Group Information'!$F$11=\"IFRS\",ROUND('Form 2A'!G83-O31,0),ROUND('Form 2'!G43-O31,0))","v":0},null,null,null,null,null,null,null,null,null,{"$f":"IF('Group Information'!$F$11=\"IFRS\",ROUND('Form 2A'!E85-(Y31+Q31+U31),0),ROUND('Form 2'!E51-(Y31+Q31+U31),0))","v":0},null,{"$f":"IF('Group Information'!$F$11=\"IFRS\",ROUND('Form 2A'!G85-(AA31+S31+W31),0),ROUND('Form 2'!G51-(AA31+S31+W31),0))","v":0}]
[]
[null,null,null,null,null,null,null,null,null,null,null,null,{"$f":"IF(M33=\"False\",\"Does not equal Form 2 Line 12(c)\",\"\")","v":""},null,{"$f":"IF(O33=\"False\",\"Does not equal Form 2 Line 12(c)\",\"\")","v":""},null,null,null,null,null,null,null,null,null,{"$f":"IF(Y33=\"False\",\"Does not equal Form 2 Line 14(d)\",\"\")","v":""},null,{"$f":"IF(AA33=\"False\",\"Does not equal Form 2 Line 14(d)\",\"\")","v":""}]

{"sheet":"Schedule IVC (EBS)","index":40,"n_rows":79,"n_cols":28,"rows_kept":79,"cut":false,"hidden":false,"merged":[]}
[null,"SCHEDULE OF GEOGRAPHIC DIVERSIFICATION OF PREMIUMS WRITTEN ",null,null,null,null,null,null,null,null,null,null,null,null,null,null,null,null,null,null,null,null,null,null,null,{"$f":"HYPERLINK(\"#'Index'!A1\",\"Return to Index\")","v":"Return to Index"}]
[null,{"$f":"'Group Information'!C9","v":"Enter Parent Company Name"}]
[null,{"$f":"\"For the year ending \"&TEXT('Group Information'!C3,\"DD MMMM YYYY\")","v":"For the year ending 31 December 2023"},null,null,null,null,null,null,null,null,null,null,null,null,null,null,null,null,null,null,null,null,null,null,null,"SCHEDULE IV(C) (EBS)"]
[null,null,null,null,null,null,null,null,null,null,null,null,null,null,null,null,null,null,null,null,null,null,null,{"$f":"\"Confirmation that \"&B2& \" Is Taking Advantage of Geographic Diversification of Premiums\"","v":"Confirmation that Enter Parent Company Name Is Taking Advantage of Geographic Diversification of Premiums"},null,"Yes"]
[null,{"$f":"\"expressed in \"&'Form 1EBS'!C4","v":"expressed in  ['000s]United States Dollars"}]
[null,"Schedule ",null,null,{"$f":"HYPERLINK(\"#'Zones'!c4\",\"Zone 1\")","v":"Zone 1"},{"$f":"HYPERLINK(\"#'Zones'!c13\",\"Zone 2\")","v":"Zone 2"},{"$f":"HYPERLINK(\"#'Zones'!c18\",\"Zone 3\")","v":"Zone 3"},{"$f":"HYPERLINK(\"#'Zones'!c26\",\"Zone 4\")","v":"Zone 4"},{"$f":"HYPERLINK(\"#'Zones'!c36\",\"Zone 5\")","v":"Zone 5"},{"$f":"HYPERLINK(\"#'Zones'!c46\",\"Zone 6\")","v":"Zone 6"},{"$f":"HYPERLINK(\"#'Zones'!c57\",\"Zone 7\")","v":"Zone 7"},{"$f":"HYPERLINK(\"#'Zones'!c68\",\"Zone 8\")","v":"Zone 8"},{"$f":"HYPERLINK(\"#'Zones'!c76\",\"Zone 9\")","v":"Zone 9"},{"$f":"HYPERLINK(\"#'Zones'!c84\",\"Zone 10\")","v":"Zone 10"},{"$f":"HYPERLINK(\"#'Zones'!c90\",\"Zone 11\")","v":"Zone 11"},{"$f":"HYPERLINK(\"#'Zones'!c94\",\"Zone 12\")","v":"Zone 12"},{"$f":"HYPERLINK(\"#'Zones'!c107\",\"Zone 13\")","v":"Zone 13"},{"$f":"HYPERLINK(\"#'Zones'!c112\",\"Zone 14\")","v":"Zone 14"},{"$f":"HYPERLINK(\"#'Zones'!c116\",\"Zone 15\")","v":"Zone 15"},{"$f":"HYPERLINK(\"#'Zones'!c121\",\"Zone 16\")","v":"Zone 16"},{"$f":"HYPERLINK(\"#'Zones'!c127\",\"Zone 17\")","v":"Zone 17"},{"$f":"HYPERLINK(\"#'Zones'!c133\",\"Zone 18\")","v":"Zone 18"},null,"Total Geo NPW",null,"Total NPW"]
[null,"Line no. ",null,null,"('000)","('000)","('000)","('000)","('000)","('000)","('000)","('000)","('000)","('000)","('000)","('000)","('000)","('000)","('000)","('000)","('000)","('000)",null,"('000)",null,"('000)"]
[]
[null,1,"Property Catastrophe",null,{"$f":"Import!E1800","v":0},{"$f":"Import!E1825","v":0},{"$f":"Import!E1850","v":0},{"$f":"Import!E1875","v":0},{"$f":"Import!E1900","v":0},{"$f":"Import!E1925","v":0},{"$f":"Import!E1950","v":0},{"$f":"Import!E1975","v":0},{"$f":"Import!E2000","v":0},{"$f":"Import!E2025","v":0},{"$f":"Import!E2050","v":0},{"$f":"Import!E2075","v":0},{"$f":"Import!E2100","v":0},{"$f":"Import!E2125","v":0},{"$f":"Import!E2150","v":0},{"$f":"Import!E2175","v":0},{"$f":"Import!E2200","v":0},{"$f":"Import!E2225","v":0},null,{"$f":"SUM(E9:V9)","v":0},null,{"$f":"+'Schedule IVA'!Q11","v":0},null,{"$f":"IF($Z$4=\"Yes\",IF(X9=0,\" - \",IF(ROUND(SUM(X9-Z9),0)=0,\"TRUE\",\"FALSE\")),\"N/A\")","v":" - "}]
[null,2,"Property",null,{"$f":"Import!E1801","v":0},{"$f":"Import!E1826","v":0},{"$f":"Import!E1851","v":0},{"$f":"Import!E1876","v":0},{"$f":"Import!E1901","v":0},{"$f":"Import!E1926","v":0},{"$f":"Import!E1951","v":0},{"$f":"Import!E1976","v":0},{"$f":"Import!E2001","v":0},{"$f":"Import!E2026","v":0},{"$f":"Import!E2051","v":0},{"$f":"Import!E2076","v":0},{"$f":"Import!E2101","v":0},{"$f":"Import!E2126","v":0},{"$f":"Import!E2151","v":0},{"$f":"Import!E2176","v":0},{"$f":"Import!E2201","v":0},{"$f":"Import!E2226","v":0},null,{"$f":"SUM(E10:V10)","v":0},null,{"$f":"+'Schedule IVA'!Q12","v":0},null,{"$f":"IF($Z$4=\"Yes\",IF(X10=0,\" - \",IF(ROUND(SUM(X10-Z10),0)=0,\"TRUE\",\"FALSE\")),\"N/A\")","v":" - "}]
[null,3,"Property Non – Proportional",null,{"$f":"Import!E1802","v":0},{"$f":"Import!E1827","v":0},{"$f":"Import!E1852","v":0},{"$f":"Import!E1877","v":0},{"$f":"Import!E1902","v":0},{"$f":"Import!E1927","v":0},{"$f":"Import!E1952","v":0},{"$f":"Import!E1977","v":0},{"$f":"Import!E2002","v":0},{"$f":"Import!E2027","v":0},{"$f":"Import!E2052","v":0},{"$f":"Import!E2077","v":0},{"$f":"Import!E2102","v":0},{"$f":"Import!E2127","v":0},{"$f":"Import!E2152","v":0},{"$f":"Import!E2177","v":0},{"$f":"Import!E2202","v":0},{"$f":"Import!E2227","v":0},null,0,null,{"$f":"+'Schedule IVA'!Q13","v":0},null," - "]
[null,4,"Personal Accident",null,{"$f":"Import!E1803","v":0},{"$f":"Import!E1828","v":0},{"$f":"Import!E1853","v":0},{"$f":"Import!E1878","v":0},{"$f":"Import!E1903","v":0},{"$f":"Import!E1928","v":0},{"$f":"Import!E1953","v":0},{"$f":"Import!E1978","v":0},{"$f":"Import!E2003","v":0},{"$f":"Import!E2028","v":0},{"$f":"Import!E2053","v":0},{"$f":"Import!E2078","v":0},{"$f":"Import!E2103","v":0},{"$f":"Import!E2128","v":0},{"$f":"Import!E2153","v":0},{"$f":"Import!E2178","v":0},{"$f":"Import!E2203","v":0},{"$f":"Import!E2228","v":0},null,0,null,{"$f":"+'Schedule IVA'!Q14","v":0},null," - "]
[null,5,"Personal Accident Non- Proportional",null,{"$f":"Import!E1804","v":0},{"$f":"Import!E1829","v":0},{"$f":"Import!E1854","v":0},{"$f":"Import!E1879","v":0},{"$f":"Import!E1904","v":0},{"$f":"Import!E1929","v":0},{"$f":"Import!E1954","v":0},{"$f":"Import!E1979","v":0},{"$f":"Import!E2004","v":0},{"$f":"Import!E2029","v":0},{"$f":"Import!E2054","v":0},{"$f":"Import!E2079","v":0},{"$f":"Import!E2104","v":0},{"$f":"Import!E2129","v":0},{"$f":"Import!E2154","v":0},{"$f":"Import!E2179","v":0},{"$f":"Import!E2204","v":0},{"$f":"Import!E2229","v":0},null,0,null,{"$f":"+'Schedule IVA'!Q15","v":0},null," - "]
[null,6,"Aviation",null,{"$f":"Import!E1805","v":0},{"$f":"Import!E1830","v":0},{"$f":"Import!E1855","v":0},{"$f":"Import!E1880","v":0},{"$f":"Import!E1905","v":0},{"$f":"Import!E1930","v":0},{"$f":"Import!E1955","v":0},{"$f":"Import!E1980","v":0},{"$f":"Import!E2005","v":0},{"$f":"Import!E2030","v":0},{"$f":"Import!E2055","v":0},{"$f":"Import!E2080","v":0},{"$f":"Import!E2105","v":0},{"$f":"Import!E2130","v":0},{"$f":"Import!E2155","v":0},{"$f":"Import!E2180","v":0},{"$f":"Import!E2205","v":0},{"$f":"Import!E2230","v":0},null,0,null,{"$f":"+'Schedule IVA'!Q16","v":0},null," - "]
[null,7,"Aviation Non – Proportional",null,{"$f":"Import!E1806","v":0},{"$f":"Import!E1831","v":0},{"$f":"Import!E1856","v":0},{"$f":"Import!E1881","v":0},{"$f":"Import!E1906","v":0},{"$f":"Import!E1931","v":0},{"$f":"Import!E1956","v":0},{"$f":"Import!E1981","v":0},{"$f":"Import!E2006","v":0},{"$f":"Import!E2031","v":0},{"$f":"Import!E2056","v":0},{"$f":"Import!E2081","v":0},{"$f":"Import!E2106","v":0},{"$f":"Import!E2131","v":0},{"$f":"Import!E2156","v":0},{"$f":"Import!E2181","v":0},{"$f":"Import!E2206","v":0},{"$f":"Import!E2231","v":0},null,0,null,{"$f":"+'Schedule IVA'!Q17","v":0},null," - "]
[null,8,"Credit / Surety ",null,{"$f":"Import!E1807","v":0},{"$f":"Import!E1832","v":0},{"$f":"Import!E1857","v":0},{"$f":"Import!E1882","v":0},{"$f":"Import!E1907","v":0},{"$f":"Import!E1932","v":0},{"$f":"Import!E1957","v":0},{"$f":"Import!E1982","v":0},{"$f":"Import!E2007","v":0},{"$f":"Import!E2032","v":0},{"$f":"Import!E2057","v":0},{"$f":"Import!E2082","v":0},{"$f":"Import!E2107","v":0},{"$f":"Import!E2132","v":0},{"$f":"Import!E2157","v":0},{"$f":"Import!E2182","v":0},{"$f":"Import!E2207","v":0},{"$f":"Import!E2232","v":0},null,0,null,{"$f":"+'Schedule IVA'!Q18","v":0},null," - "]
[null,9,"Credit / Surety Non – Proportional",null,{"$f":"Import!E1808","v":0},{"$f":"Import!E1833","v":0},{"$f":"Import!E1858","v":0},{"$f":"Import!E1883","v":0},{"$f":"Import!E1908","v":0},{"$f":"Import!E1933","v":0},{"$f":"Import!E1958","v":0},{"$f":"Import!E1983","v":0},{"$f":"Import!E2008","v":0},{"$f":"Import!E2033","v":0},{"$f":"Import!E2058","v":0},{"$f":"Import!E2083","v":0},{"$f":"Import!E2108","v":0},{"$f":"Import!E2133","v":0},{"$f":"Import!E2158","v":0},{"$f":"Import!E2183","v":0},{"$f":"Import!E2208","v":0},{"$f":"Import!E2233","v":0},null,0,null,{"$f":"+'Schedule IVA'!Q19","v":0},null," - "]
[null,10,"Energy Offshore / Marine",null,{"$f":"Import!E1809","v":0},{"$f":"Import!E1834","v":0},{"$f":"Import!E1859","v":0},{"$f":"Import!E1884","v":0},{"$f":"Import!E1909","v":0},{"$f":"Import!E1934","v":0},{"$f":"Import!E1959","v":0},{"$f":"Import!E1984","v":0},{"$f":"Import!E2009","v":0},{"$f":"Import!E2034","v":0},{"$f":"Import!E2059","v":0},{"$f":"Import!E2084","v":0},{"$f":"Import!E2109","v":0},{"$f":"Import!E2134","v":0},{"$f":"Import!E2159","v":0},{"$f":"Import!E2184","v":0},{"$f":"Import!E2209","v":0},{"$f":"Import!E2234","v":0},null,0,null,{"$f":"+'Schedule IVA'!Q20","v":0},null," - "]
[null,11,"Energy Offshore / Marine Non - Proportional ","  ",{"$f":"Import!E1810","v":0},{"$f":"Import!E1835","v":0},{"$f":"Import!E1860","v":0},{"$f":"Import!E1885","v":0},{"$f":"Import!E1910","v":0},{"$f":"Import!E1935","v":0},{"$f":"Import!E1960","v":0},{"$f":"Import!E1985","v":0},{"$f":"Import!E2010","v":0},{"$f":"Import!E2035","v":0},{"$f":"Import!E2060","v":0},{"$f":"Import!E2085","v":0},{"$f":"Import!E2110","v":0},{"$f":"Import!E2135","v":0},{"$f":"Import!E2160","v":0},{"$f":"Import!E2185","v":0},{"$f":"Import!E2210","v":0},{"$f":"Import!E2235","v":0},null,0,null,{"$f":"+'Schedule IVA'!Q21","v":0},null," - "]
[null,12,"US Casualty",null,{"$f":"Import!E1811","v":0},{"$f":"Import!E1836","v":0},{"$f":"Import!E1861","v":0},{"$f":"Import!E1886","v":0},{"$f":"Import!E1911","v":0},{"$f":"Import!E1936","v":0},{"$f":"Import!E1961","v":0},{"$f":"Import!E1986","v":0},{"$f":"Import!E2011","v":0},{"$f":"Import!E2036","v":0},{"$f":"Import!E2061","v":0},{"$f":"Import!E2086","v":0},{"$f":"Import!E2111","v":0},{"$f":"Import!E2136","v":0},{"$f":"Import!E2161","v":0},{"$f":"Import!E2186","v":0},{"$f":"Import!E2211","v":0},{"$f":"Import!E2236","v":0},null,0,null,{"$f":"+'Schedule IVA'!Q22","v":0},null," - "]
[null,13,"US Casualty Non - Proportional ",null,{"$f":"Import!E1812","v":0},{"$f":"Import!E1837","v":0},{"$f":"Import!E1862","v":0},{"$f":"Import!E1887","v":0},{"$f":"Import!E1912","v":0},{"$f":"Import!E1937","v":0},{"$f":"Import!E1962","v":0},{"$f":"Import!E1987","v":0},{"$f":"Import!E2012","v":0},{"$f":"Import!E2037","v":0},{"$f":"Import!E2062","v":0},{"$f":"Import!E2087","v":0},{"$f":"Import!E2112","v":0},{"$f":"Import!E2137","v":0},{"$f":"Import!E2162","v":0},{"$f":"Import!E2187","v":0},{"$f":"Import!E2212","v":0},{"$f":"Import!E2237","v":0},null,0,null,{"$f":"+'Schedule IVA'!Q23","v":0},null," - "]
[null,14,"US Professional",null,{"$f":"Import!E1813","v":0},{"$f":"Import!E1838","v":0},{"$f":"Import!E1863","v":0},{"$f":"Import!E1888","v":0},{"$f":"Import!E1913","v":0},{"$f":"Import!E1938","v":0},{"$f":"Import!E1963","v":0},{"$f":"Import!E1988","v":0},{"$f":"Import!E2013","v":0},{"$f":"Import!E2038","v":0},{"$f":"Import!E2063","v":0},{"$f":"Import!E2088","v":0},{"$f":"Import!E2113","v":0},{"$f":"Import!E2138","v":0},{"$f":"Import!E2163","v":0},{"$f":"Import!E2188","v":0},{"$f":"Import!E2213","v":0},{"$f":"Import!E2238","v":0},null,0,null,{"$f":"+'Schedule IVA'!Q24","v":0},null," - "]
[null,15,"US Professional Non – Proportional",null,{"$f":"Import!E1814","v":0},{"$f":"Import!E1839","v":0},{"$f":"Import!E1864","v":0},{"$f":"Import!E1889","v":0},{"$f":"Import!E1914","v":0},{"$f":"Import!E1939","v":0},{"$f":"Import!E1964","v":0},{"$f":"Import!E1989","v":0},{"$f":"Import!E2014","v":0},{"$f":"Import!E2039","v":0},{"$f":"Import!E2064","v":0},{"$f":"Import!E2089","v":0},{"$f":"Import!E2114","v":0},{"$f":"Import!E2139","v":0},{"$f":"Import!E2164","v":0},{"$f":"Import!E2189","v":0},{"$f":"Import!E2214","v":0},{"$f":"Import!E2239","v":0},null,0,null,{"$f":"+'Schedule IVA'!Q25","v":0},null," - "]
[null,16,"US Specialty ",null,{"$f":"Import!E1815","v":0},{"$f":"Import!E1840","v":0},{"$f":"Import!E1865","v":0},{"$f":"Import!E1890","v":0},{"$f":"Import!E1915","v":0},{"$f":"Import!E1940","v":0},{"$f":"Import!E1965","v":0},{"$f":"Import!E1990","v":0},{"$f":"Import!E2015","v":0},{"$f":"Import!E2040","v":0},{"$f":"Import!E2065","v":0},{"$f":"Import!E2090","v":0},{"$f":"Import!E2115","v":0},{"$f":"Import!E2140","v":0},{"$f":"Import!E2165","v":0},{"$f":"Import!E2190","v":0},{"$f":"Import!E2215","v":0},{"$f":"Import!E2240","v":0},null,0,null,{"$f":"+'Schedule IVA'!Q26","v":0},null," - "]
[null,17,"US Specialty Non - Proportional",null,{"$f":"Import!E1816","v":0},{"$f":"Import!E1841","v":0},{"$f":"Import!E1866","v":0},{"$f":"Import!E1891","v":0},{"$f":"Import!E1916","v":0},{"$f":"Import!E1941","v":0},{"$f":"Import!E1966","v":0},{"$f":"Import!E1991","v":0},{"$f":"Import!E2016","v":0},{"$f":"Import!E2041","v":0},{"$f":"Import!E2066","v":0},{"$f":"Import!E2091","v":0},{"$f":"Import!E2116","v":0},{"$f":"Import!E2141","v":0},{"$f":"Import!E2166","v":0},{"$f":"Import!E2191","v":0},{"$f":"Import!E2216","v":0},{"$f":"Import!E2241","v":0},null,0,null,{"$f":"+'Schedule IVA'!Q27","v":0},null," - "]
[null,18,"International Motor ",null,{"$f":"Import!E1817","v":0},{"$f":"Import!E1842","v":0},{"$f":"Import!E1867","v":0},{"$f":"Import!E1892","v":0},{"$f":"Import!E1917","v":0},{"$f":"Import!E1942","v":0},{"$f":"Import!E1967","v":0},{"$f":"Import!E1992","v":0},{"$f":"Import!E2017","v":0},{"$f":"Import!E2042","v":0},{"$f":"Import!E2067","v":0},{"$f":"Import!E2092","v":0},{"$f":"Import!E2117","v":0},{"$f":"Import!E2142","v":0},{"$f":"Import!E2167","v":0},{"$f":"Import!E2192","v":0},{"$f":"Import!E2217","v":0},{"$f":"Import!E2242","v":0},null,0,null,{"$f":"+'Schedule IVA'!Q28","v":0},null," - "]
[null,19,"International Motor Non – Proportional",null,{"$f":"Import!E1818","v":0},{"$f":"Import!E1843","v":0},{"$f":"Import!E1868","v":0},{"$f":"Import!E1893","v":0},{"$f":"Import!E1918","v":0},{"$f":"Import!E1943","v":0},{"$f":"Import!E1968","v":0},{"$f":"Import!E1993","v":0},{"$f":"Import!E2018","v":0},{"$f":"Import!E2043","v":0},{"$f":"Import!E2068","v":0},{"$f":"Import!E2093","v":0},{"$f":"Import!E2118","v":0},{"$f":"Import!E2143","v":0},{"$f":"Import!E2168","v":0},{"$f":"Import!E2193","v":0},{"$f":"Import!E2218","v":0},{"$f":"Import!E2243","v":0},null,0,null,{"$f":"+'Schedule IVA'!Q29","v":0},null," - "]
[null,20,"International Casualty Non – Motor ",null,{"$f":"Import!E1819","v":0},{"$f":"Import!E1844","v":0},{"$f":"Import!E1869","v":0},{"$f":"Import!E1894","v":0},{"$f":"Import!E1919","v":0},{"$f":"Import!E1944","v":0},{"$f":"Import!E1969","v":0},{"$f":"Import!E1994","v":0},{"$f":"Import!E2019","v":0},{"$f":"Import!E2044","v":0},{"$f":"Import!E2069","v":0},{"$f":"Import!E2094","v":0},{"$f":"Import!E2119","v":0},{"$f":"Import!E2144","v":0},{"$f":"Import!E2169","v":0},{"$f":"Import!E2194","v":0},{"$f":"Import!E2219","v":0},{"$f":"Import!E2244","v":0},null,0,null,{"$f":"+'Schedule IVA'!Q30","v":0},null," - "]
[null,21,"International Casualty Non Motor Non – Proportional ",null,{"$f":"Import!E1820","v":0},{"$f":"Import!E1845","v":0},{"$f":"Import!E1870","v":0},{"$f":"Import!E1895","v":0},{"$f":"Import!E1920","v":0},{"$f":"Import!E1945","v":0},{"$f":"Import!E1970","v":0},{"$f":"Import!E1995","v":0},{"$f":"Import!E2020","v":0},{"$f":"Import!E2045","v":0},{"$f":"Import!E2070","v":0},{"$f":"Import!E2095","v":0},{"$f":"Import!E2120","v":0},{"$f":"Import!E2145","v":0},{"$f":"Import!E2170","v":0},{"$f":"Import!E2195","v":0},{"$f":"Import!E2220","v":0},{"$f":"Import!E2245","v":0},null,0,null,{"$f":"+'Schedule IVA'!Q31","v":0},null," - "]
[null,22,"Retro Property",null,{"$f":"Import!E1821","v":0},{"$f":"Import!E1846","v":0},{"$f":"Import!E1871","v":0},{"$f":"Import!E1896","v":0},{"$f":"Import!E1921","v":0},{"$f":"Import!E1946","v":0},{"$f":"Import!E1971","v":0},{"$f":"Import!E1996","v":0},{"$f":"Import!E2021","v":0},{"$f":"Import!E2046","v":0},{"$f":"Import!E2071","v":0},{"$f":"Import!E2096","v":0},{"$f":"Import!E2121","v":0},{"$f":"Import!E2146","v":0},{"$f":"Import!E2171","v":0},{"$f":"Import!E2196","v":0},{"$f":"Import!E2221","v":0},{"$f":"Import!E2246","v":0},null,0,null,{"$f":"+'Schedule IVA'!Q32","v":0},null," - "]
[null,23,"Structured / Finite Reinsurance",null,{"$f":"Import!E1822","v":0},{"$f":"Import!E1847","v":0},{"$f":"Import!E1872","v":0},{"$f":"Import!E1897","v":0},{"$f":"Import!E1922","v":0},{"$f":"Import!E1947","v":0},{"$f":"Import!E1972","v":0},{"$f":"Import!E1997","v":0},{"$f":"Import!E2022","v":0},{"$f":"Import!E2047","v":0},{"$f":"Import!E2072","v":0},{"$f":"Import!E2097","v":0},{"$f":"Import!E2122","v":0},{"$f":"Import!E2147","v":0},{"$f":"Import!E2172","v":0},{"$f":"Import!E2197","v":0},{"$f":"Import!E2222","v":0},{"$f":"Import!E2247","v":0},null,0,null,{"$f":"+'Schedule IVA'!Q33","v":0},null," - "]
[null,24,"Health",null,{"$f":"Import!E1823","v":0},{"$f":"Import!E1848","v":0},{"$f":"Import!E1873","v":0},{"$f":"Import!E1898","v":0},{"$f":"Import!E1923","v":0},{"$f":"Import!E1948","v":0},{"$f":"Import!E1973","v":0},{"$f":"Import!E1998","v":0},{"$f":"Import!E2023","v":0},{"$f":"Import!E2048","v":0},{"$f":"Import!E2073","v":0},{"$f":"Import!E2098","v":0},{"$f":"Import!E2123","v":0},{"$f":"Import!E2148","v":0},{"$f":"Import!E2173","v":0},{"$f":"Import!E2198","v":0},{"$f":"Import!E2223","v":0},{"$f":"Import!E2248","v":0},null,0,null,{"$f":"+'Schedule IVA'!Q34","v":0},null," - "]
[null,25,"Total ",null,{"$f":"SUM(E9:E32)","v":0},{"$f":"SUM(F9:F32)","v":0},0,0,0,0,0,0,0,0,0,0,0,0,0,0,0,0,null,{"$f":"SUM(X9:X32)","v":0},null,{"$f":"SUM(Z9:Z32)","v":0}]
[]
[]
[]
[]
[]
[]
[]
[]
[]
[]
[]
[]
[]
[]
[]
[]
[]
[]
[]
[]
[]
[]
[]
[]
[]
[]
[]
[]
[]
[]
[]
[]
[]
[]
[]
[]
[]
[]
[]
[]
[]
[]
[]
[]
[null,null,null,null,null,null,null,null,null,null,null,null,null,null,null,null,null,null,null,null,null,null,null,null,null,"Yes"]
[null,null,null,null,null,null,null,null,null,null,null,null,null,null,null,null,null,null,null,null,null,null,null,null,null,"No"]

{"sheet":"Schedule IVD (EBS)","index":41,"n_rows":46,"n_cols":19,"rows_kept":46,"cut":false,"hidden":false,"merged":[[4,16,5,16],[4,8,5,8],[4,4,5,4],[4,14,5,14],[4,6,5,6],[4,10,5,10],[4,12,5,12]]}
[null,"SCHEDULE OF EXPOSURE MEASURE BY LINE OF BUSINESS",null,null,null,null,null,null,null,null,null,null,null,null,null,null,null,null,{"$f":"HYPERLINK(\"#'Index'!A1\",\"Return to Index\")","v":"Return to Index"}]
[null,{"$f":"'Group Information'!C9","v":"Enter Parent Company Name"}]
[null,{"$f":"\"For the year ending \"&TEXT('Group Information'!C3,\"DD MMMM YYYY\")","v":"For the year ending 31 December 2023"},null,null,null,null,null,null,null,null,null,null,null,null,null,null,null,null,"SCHEDULE IV(D) (EBS)"]
[null,{"$f":"\"expressed in \"&'Form 1EBS'!C4","v":"expressed in  ['000s]United States Dollars"},null,null,"(A)",null,"(B)",null,"(C)",null,"(D)",null,"(E)",null,"(F)",null,"(G)",null,"(H)"]
[null,null,null,null,"Net Premiums Written",null,"Est. of Net Earned Premiums for Next 12 Months",null,"Net Base Exposure",null,"Net FP (Exisiting) ",null,"Net FP (Future) ",null,"Net Premium Exposure Measure",null,"Gross Premium Exposure Measure",null,"Geo Net Exp Mea"]
[null,null,null,null,null,null,null,null,null,null,null,null,null,null,null,null,null,null,"[ Schedule IV(C) ]"]
[null,"Line no. ",null,null,{"$f":"'Form 1EBS'!$F$7","v":"2023-12-31"},null,{"$f":"'Form 1EBS'!$F$7+1","v":"2024-01-01"},null,{"$f":"'Form 1EBS'!$F$7+1","v":"2024-01-01"},null,{"$f":"'Form 1EBS'!$F$7+1","v":"2024-01-01"},null,{"$f":"'Form 1EBS'!$F$7+1","v":"2024-01-01"},null,{"$f":"'Form 1EBS'!$F$7+1","v":"2024-01-01"},null,{"$f":"'Form 1EBS'!$F$7+1","v":"2024-01-01"},null,{"$f":"'Form 1EBS'!$F$7+1","v":"2024-01-01"}]
[null,null,null,null,"('000)",null,"('000)",null,"('000)",null,"('000)",null,"('000)",null,"('000)",null,"('000)",null,"('000)"]
[null,1,"Property Catastrophe",null,{"$f":"'Schedule IVA'!Q11","v":0},null,{"$f":"Import!E40535","v":0},null,{"$f":"IF($E$33>$G$33,E9,G9)","v":0},null,{"$f":"Import!E40560","v":0},null,{"$f":"Import!E40585","v":0},null,{"$f":"SUM(I9:M9)","v":0},null,{"$f":"Import!E40610","v":0},null,{"$f":"+'Schedule IVE (EBS)'!X9","v":0}]
[null,2,"Property",null,{"$f":"'Schedule IVA'!Q12","v":0},null,{"$f":"Import!E40536","v":0},null,{"$f":"IF($E$33>$G$33,E10,G10)","v":0},null,{"$f":"Import!E40561","v":0},null,{"$f":"Import!E40586","v":0},null,{"$f":"SUM(I10:M10)","v":0},null,{"$f":"Import!E40611","v":0},null,{"$f":"+'Schedule IVE (EBS)'!X10","v":0}]
[null,3,"Property Non – Proportional",null,{"$f":"'Schedule IVA'!Q13","v":0},null,{"$f":"Import!E40537","v":0},null,0,null,{"$f":"Import!E40562","v":0},null,{"$f":"Import!E40587","v":0},null,0,null,{"$f":"Import!E40612","v":0},null,{"$f":"+'Schedule IVE (EBS)'!X11","v":0}]
[null,4,"Personal Accident",null,{"$f":"'Schedule IVA'!Q14","v":0},null,{"$f":"Import!E40538","v":0},null,0,null,{"$f":"Import!E40563","v":0},null,{"$f":"Import!E40588","v":0},null,0,null,{"$f":"Import!E40613","v":0},null,{"$f":"+'Schedule IVE (EBS)'!X12","v":0}]
[null,5,"Personal Accident Non- Proportional",null,{"$f":"'Schedule IVA'!Q15","v":0},null,{"$f":"Import!E40539","v":0},null,0,null,{"$f":"Import!E40564","v":0},null,{"$f":"Import!E40589","v":0},null,0,null,{"$f":"Import!E40614","v":0},null,{"$f":"+'Schedule IVE (EBS)'!X13","v":0}]
[null,6,"Aviation",null,{"$f":"'Schedule IVA'!Q16","v":0},null,{"$f":"Import!E40540","v":0},null,0,null,{"$f":"Import!E40565","v":0},null,{"$f":"Import!E40590","v":0},null,0,null,{"$f":"Import!E40615","v":0},null,{"$f":"+'Schedule IVE (EBS)'!X14","v":0}]
[null,7,"Aviation Non – Proportional",null,{"$f":"'Schedule IVA'!Q17","v":0},null,{"$f":"Import!E40541","v":0},null,0,null,{"$f":"Import!E40566","v":0},null,{"$f":"Import!E40591","v":0},null,0,null,{"$f":"Import!E40616","v":0},null,{"$f":"+'Schedule IVE (EBS)'!X15","v":0}]
[null,8,"Credit / Surety ",null,{"$f":"'Schedule IVA'!Q18","v":0},null,{"$f":"Import!E40542","v":0},null,0,null,{"$f":"Import!E40567","v":0},null,{"$f":"Import!E40592","v":0},null,0,null,{"$f":"Import!E40617","v":0},null,{"$f":"+'Schedule IVE (EBS)'!X16","v":0}]
[null,9,"Credit / Surety Non – Proportional",null,{"$f":"'Schedule IVA'!Q19","v":0},null,{"$f":"Import!E40543","v":0},null,0,null,{"$f":"Import!E40568","v":0},null,{"$f":"Import!E40593","v":0},null,0,null,{"$f":"Import!E40618","v":0},null,{"$f":"+'Schedule IVE (EBS)'!X17","v":0}]
[null,10,"Energy Offshore / Marine",null,{"$f":"'Schedule IVA'!Q20","v":0},null,{"$f":"Import!E40544","v":0},null,0,null,{"$f":"Import!E40569","v":0},null,{"$f":"Import!E40594","v":0},null,0,null,{"$f":"Import!E40619","v":0},null,{"$f":"+'Schedule IVE (EBS)'!X18","v":0}]
[null,11,"Energy Offshore / Marine Non - Proportional ","  ",{"$f":"'Schedule IVA'!Q21","v":0},null,{"$f":"Import!E40545","v":0},null,0,null,{"$f":"Import!E40570","v":0},null,{"$f":"Import!E40595","v":0},null,0,null,{"$f":"Import!E40620","v":0},null,{"$f":"+'Schedule IVE (EBS)'!X19","v":0}]
[null,12,"US Casualty",null,{"$f":"'Schedule IVA'!Q22","v":0},null,{"$f":"Import!E40546","v":0},null,0,null,{"$f":"Import!E40571","v":0},null,{"$f":"Import!E40596","v":0},null,0,null,{"$f":"Import!E40621","v":0},null,{"$f":"+'Schedule IVE (EBS)'!X20","v":0}]
[null,13,"US Casualty Non - Proportional ",null,{"$f":"'Schedule IVA'!Q23","v":0},null,{"$f":"Import!E40547","v":0},null,0,null,{"$f":"Import!E40572","v":0},null,{"$f":"Import!E40597","v":0},null,0,null,{"$f":"Import!E40622","v":0},null,{"$f":"+'Schedule IVE (EBS)'!X21","v":0}]
[null,14,"US Professional",null,{"$f":"'Schedule IVA'!Q24","v":0},null,{"$f":"Import!E40548","v":0},null,0,null,{"$f":"Import!E40573","v":0},null,{"$f":"Import!E40598","v":0},null,0,null,{"$f":"Import!E40623","v":0},null,{"$f":"+'Schedule IVE (EBS)'!X22","v":0}]
[null,15,"US Professional Non – Proportional",null,{"$f":"'Schedule IVA'!Q25","v":0},null,{"$f":"Import!E40549","v":0},null,0,null,{"$f":"Import!E40574","v":0},null,{"$f":"Import!E40599","v":0},null,0,null,{"$f":"Import!E40624","v":0},null,{"$f":"+'Schedule IVE (EBS)'!X23","v":0}]
[null,16,"US Specialty ",null,{"$f":"'Schedule IVA'!Q26","v":0},null,{"$f":"Import!E40550","v":0},null,0,null,{"$f":"Import!E40575","v":0},null,{"$f":"Import!E40600","v":0},null,0,null,{"$f":"Import!E40625","v":0},null,{"$f":"+'Schedule IVE (EBS)'!X24","v":0}]
[null,17,"US Specialty Non - Proportional",null,{"$f":"'Schedule IVA'!Q27","v":0},null,{"$f":"Import!E40551","v":0},null,0,null,{"$f":"Import!E40576","v":0},null,{"$f":"Import!E40601","v":0},null,0,null,{"$f":"Import!E40626","v":0},null,{"$f":"+'Schedule IVE (EBS)'!X25","v":0}]
[null,18,"International Motor ",null,{"$f":"'Schedule IVA'!Q28","v":0},null,{"$f":"Import!E40552","v":0},null,0,null,{"$f":"Import!E40577","v":0},null,{"$f":"Import!E40602","v":0},null,0,null,{"$f":"Import!E40627","v":0},null,{"$f":"+'Schedule IVE (EBS)'!X26","v":0}]
[null,19,"International Motor Non – Proportional",null,{"$f":"'Schedule IVA'!Q29","v":0},null,{"$f":"Import!E40553","v":0},null,0,null,{"$f":"Import!E40578","v":0},null,{"$f":"Import!E40603","v":0},null,0,null,{"$f":"Import!E40628","v":0},null,{"$f":"+'Schedule IVE (EBS)'!X27","v":0}]
[null,20,"International Casualty Non – Motor ",null,{"$f":"'Schedule IVA'!Q30","v":0},null,{"$f":"Import!E40554","v":0},null,0,null,{"$f":"Import!E40579","v":0},null,{"$f":"Import!E40604","v":0},null,0,null,{"$f":"Import!E40629","v":0},null,{"$f":"+'Schedule IVE (EBS)'!X28","v":0}]
[null,21,"International Casualty Non Motor Non – Proportional ",null,{"$f":"'Schedule IVA'!Q31","v":0},null,{"$f":"Import!E40555","v":0},null,0,null,{"$f":"Import!E40580","v":0},null,{"$f":"Import!E40605","v":0},null,0,null,{"$f":"Import!E40630","v":0},null,{"$f":"+'Schedule IVE (EBS)'!X29","v":0}]
[null,22,"Retro Property",null,{"$f":"'Schedule IVA'!Q32","v":0},null,{"$f":"Import!E40556","v":0},null,0,null,{"$f":"Import!E40581","v":0},null,{"$f":"Import!E40606","v":0},null,0,null,{"$f":"Import!E40631","v":0},null,{"$f":"+'Schedule IVE (EBS)'!X30","v":0}]
[null,23,"Structured / Finite Reinsurance",null,{"$f":"'Schedule IVA'!Q33","v":0},null,{"$f":"Import!E40557","v":0},null,0,null,{"$f":"Import!E40582","v":0},null,{"$f":"Import!E40607","v":0},null,0,null,{"$f":"Import!E40632","v":0},null,{"$f":"+'Schedule IVE (EBS)'!X31","v":0}]
[null,24,"Health",null,{"$f":"'Schedule IVA'!Q34","v":0},null,{"$f":"Import!E40558","v":0},null,0,null,{"$f":"Import!E40583","v":0},null,{"$f":"Import!E40608","v":0},null,0,null,{"$f":"Import!E40633","v":0},null,{"$f":"+'Schedule IVE (EBS)'!X32","v":0}]
[null,25,"Total ",null,{"$f":"SUM(E9:E32)","v":0},null,{"$f":"SUM(G9:G32)","v":0},null,{"$f":"SUM(I9:I32)","v":0},null,{"$f":"SUM(K9:K32)","v":0},null,{"$f":"SUM(M9:M32)","v":0},null,{"$f":"SUM(O9:O32)","v":0},null,{"$f":"SUM(Q9:Q32)","v":0},null,{"$f":"SUM(S9:S32)","v":0}]
[]
[null,null,"Details of Premiums Ceded"]
[null,null,"Gross Exposure Measure",null,{"$f":"Q33","v":0}]
[null,null,"Net Exposure Measure",null,{"$f":"O33","v":0}]
[null,null,"Ceded Exposure Measure",null,{"$f":"E36-E37","v":0}]
[]
[null,"*Exposure Measure is to include:"]
[null,"1. Base Exposure shall be the greater of:"]
[null,"(a) Estimate of the net premiums to be earned by the insurer during the next 12 months accounting period;"]
[null,"(b) Net Premiums Written for the reporting period."]
[null,"2. Include Multi-year exposure for:"]
[null,"(a) FP (Exisiting) - shall include the expected present value of premiums to be earned by the insurer after the next 12 months accounting period for existing contracts"]
[null,"(b) FP (future) - The expected present value of net premiums to be earned by the insurer after the next 12 month accounting period for contracts where the initial recognition date falls in the following 12 months."]

{"sheet":"Schedule IVE (EBS)","index":42,"n_rows":83,"n_cols":28,"rows_kept":83,"cut":false,"hidden":false,"merged":[]}
[null,"SCHEDULE OF GEOGRAPHIC DIVERSIFICATION OF NET EXPOSURE MEASURE",null,null,null,null,null,null,null,null,null,null,null,null,null,null,null,null,null,null,null,null,null,null,null,{"$f":"HYPERLINK(\"#'Index'!A1\",\"Return to Index\")","v":"Return to Index"}]
[null,{"$f":"'Group Information'!C9","v":"Enter Parent Company Name"}]
[null,{"$f":"\"For the year ending \"&TEXT('Group Information'!C3,\"DD MMMM YYYY\")","v":"For the year ending 31 December 2023"},null,null,null,null,null,null,null,null,null,null,null,null,null,null,null,null,null,null,null,null,null,null,null,"SCHEDULE IV(E) (EBS)"]
[null,null,null,null,null,null,null,null,null,null,null,null,null,null,null,null,null,null,null,null,null,null,null,{"$f":"\"Confirmation that \"&B2& \" Is Taking Advantage of Geographic Diversification of Premiums\"","v":"Confirmation that Enter Parent Company Name Is Taking Advantage of Geographic Diversification of Premiums"},null,"Yes"]
[null,{"$f":"\"expressed in \"&'Form 1EBS'!C4","v":"expressed in  ['000s]United States Dollars"}]
[null,"Schedule ",null,null,{"$f":"HYPERLINK(\"#'Zones'!c4\",\"Zone 1\")","v":"Zone 1"},{"$f":"HYPERLINK(\"#'Zones'!c13\",\"Zone 2\")","v":"Zone 2"},{"$f":"HYPERLINK(\"#'Zones'!c18\",\"Zone 3\")","v":"Zone 3"},{"$f":"HYPERLINK(\"#'Zones'!c26\",\"Zone 4\")","v":"Zone 4"},{"$f":"HYPERLINK(\"#'Zones'!c36\",\"Zone 5\")","v":"Zone 5"},{"$f":"HYPERLINK(\"#'Zones'!c46\",\"Zone 6\")","v":"Zone 6"},{"$f":"HYPERLINK(\"#'Zones'!c57\",\"Zone 7\")","v":"Zone 7"},{"$f":"HYPERLINK(\"#'Zones'!c68\",\"Zone 8\")","v":"Zone 8"},{"$f":"HYPERLINK(\"#'Zones'!c76\",\"Zone 9\")","v":"Zone 9"},{"$f":"HYPERLINK(\"#'Zones'!c84\",\"Zone 10\")","v":"Zone 10"},{"$f":"HYPERLINK(\"#'Zones'!c90\",\"Zone 11\")","v":"Zone 11"},{"$f":"HYPERLINK(\"#'Zones'!c94\",\"Zone 12\")","v":"Zone 12"},{"$f":"HYPERLINK(\"#'Zones'!c107\",\"Zone 13\")","v":"Zone 13"},{"$f":"HYPERLINK(\"#'Zones'!c112\",\"Zone 14\")","v":"Zone 14"},{"$f":"HYPERLINK(\"#'Zones'!c116\",\"Zone 15\")","v":"Zone 15"},{"$f":"HYPERLINK(\"#'Zones'!c121\",\"Zone 16\")","v":"Zone 16"},{"$f":"HYPERLINK(\"#'Zones'!c127\",\"Zone 17\")","v":"Zone 17"},{"$f":"HYPERLINK(\"#'Zones'!c133\",\"Zone 18\")","v":"Zone 18"},null,"Geo Net Exp Mea",null,"Total Net Exp"]
[null,"Line no. ",null,null,"('000)","('000)","('000)","('000)","('000)","('000)","('000)","('000)","('000)","('000)","('000)","('000)","('000)","('000)","('000)","('000)","('000)","('000)",null,"('000)",null,"('000)"]
[]
[null,1,"Property Catastrophe",null,{"$f":"Import!E40636","v":0},{"$f":"Import!E40661","v":0},{"$f":"Import!E40686","v":0},{"$f":"Import!E40711","v":0},{"$f":"Import!E40736","v":0},{"$f":"Import!E40761","v":0},{"$f":"Import!E40786","v":0},{"$f":"Import!E40811","v":0},{"$f":"Import!E40836","v":0},{"$f":"Import!E40861","v":0},{"$f":"Import!E40886","v":0},{"$f":"Import!E40911","v":0},{"$f":"Import!E40936","v":0},{"$f":"Import!E40961","v":0},{"$f":"Import!E40986","v":0},{"$f":"Import!E41011","v":0},{"$f":"Import!E41036","v":0},{"$f":"Import!E41061","v":0},null,{"$f":"SUM(E9:V9)","v":0},null,{"$f":"+'Schedule IVD (EBS)'!O9","v":0},null,{"$f":"IF($Z$4=\"Yes\",IF(X9=0,\" - \",IF(ROUND(SUM(X9-Z9),0)=0,\"TRUE\",\"FALSE\")),\"N/A\")","v":" - "}]
[null,2,"Property",null,{"$f":"Import!E40637","v":0},{"$f":"Import!E40662","v":0},{"$f":"Import!E40687","v":0},{"$f":"Import!E40712","v":0},{"$f":"Import!E40737","v":0},{"$f":"Import!E40762","v":0},{"$f":"Import!E40787","v":0},{"$f":"Import!E40812","v":0},{"$f":"Import!E40837","v":0},{"$f":"Import!E40862","v":0},{"$f":"Import!E40887","v":0},{"$f":"Import!E40912","v":0},{"$f":"Import!E40937","v":0},{"$f":"Import!E40962","v":0},{"$f":"Import!E40987","v":0},{"$f":"Import!E41012","v":0},{"$f":"Import!E41037","v":0},{"$f":"Import!E41062","v":0},null,{"$f":"SUM(E10:V10)","v":0},null,{"$f":"+'Schedule IVD (EBS)'!O10","v":0},null,{"$f":"IF($Z$4=\"Yes\",IF(X10=0,\" - \",IF(ROUND(SUM(X10-Z10),0)=0,\"TRUE\",\"FALSE\")),\"N/A\")","v":" - "}]
[null,3,"Property Non – Proportional",null,{"$f":"Import!E40638","v":0},{"$f":"Import!E40663","v":0},{"$f":"Import!E40688","v":0},{"$f":"Import!E40713","v":0},{"$f":"Import!E40738","v":0},{"$f":"Import!E40763","v":0},{"$f":"Import!E40788","v":0},{"$f":"Import!E40813","v":0},{"$f":"Import!E40838","v":0},{"$f":"Import!E40863","v":0},{"$f":"Import!E40888","v":0},{"$f":"Import!E40913","v":0},{"$f":"Import!E40938","v":0},{"$f":"Import!E40963","v":0},{"$f":"Import!E40988","v":0},{"$f":"Import!E41013","v":0},{"$f":"Import!E41038","v":0},{"$f":"Import!E41063","v":0},null,0,null,{"$f":"+'Schedule IVD (EBS)'!O11","v":0},null," - "]
[null,4,"Personal Accident",null,{"$f":"Import!E40639","v":0},{"$f":"Import!E40664","v":0},{"$f":"Import!E40689","v":0},{"$f":"Import!E40714","v":0},{"$f":"Import!E40739","v":0},{"$f":"Import!E40764","v":0},{"$f":"Import!E40789","v":0},{"$f":"Import!E40814","v":0},{"$f":"Import!E40839","v":0},{"$f":"Import!E40864","v":0},{"$f":"Import!E40889","v":0},{"$f":"Import!E40914","v":0},{"$f":"Import!E40939","v":0},{"$f":"Import!E40964","v":0},{"$f":"Import!E40989","v":0},{"$f":"Import!E41014","v":0},{"$f":"Import!E41039","v":0},{"$f":"Import!E41064","v":0},null,0,null,{"$f":"+'Schedule IVD (EBS)'!O12","v":0},null," - "]
[null,5,"Personal Accident Non- Proportional",null,{"$f":"Import!E40640","v":0},{"$f":"Import!E40665","v":0},{"$f":"Import!E40690","v":0},{"$f":"Import!E40715","v":0},{"$f":"Import!E40740","v":0},{"$f":"Import!E40765","v":0},{"$f":"Import!E40790","v":0},{"$f":"Import!E40815","v":0},{"$f":"Import!E40840","v":0},{"$f":"Import!E40865","v":0},{"$f":"Import!E40890","v":0},{"$f":"Import!E40915","v":0},{"$f":"Import!E40940","v":0},{"$f":"Import!E40965","v":0},{"$f":"Import!E40990","v":0},{"$f":"Import!E41015","v":0},{"$f":"Import!E41040","v":0},{"$f":"Import!E41065","v":0},null,0,null,{"$f":"+'Schedule IVD (EBS)'!O13","v":0},null," - "]
[null,6,"Aviation",null,{"$f":"Import!E40641","v":0},{"$f":"Import!E40666","v":0},{"$f":"Import!E40691","v":0},{"$f":"Import!E40716","v":0},{"$f":"Import!E40741","v":0},{"$f":"Import!E40766","v":0},{"$f":"Import!E40791","v":0},{"$f":"Import!E40816","v":0},{"$f":"Import!E40841","v":0},{"$f":"Import!E40866","v":0},{"$f":"Import!E40891","v":0},{"$f":"Import!E40916","v":0},{"$f":"Import!E40941","v":0},{"$f":"Import!E40966","v":0},{"$f":"Import!E40991","v":0},{"$f":"Import!E41016","v":0},{"$f":"Import!E41041","v":0},{"$f":"Import!E41066","v":0},null,0,null,{"$f":"+'Schedule IVD (EBS)'!O14","v":0},null," - "]
[null,7,"Aviation Non – Proportional",null,{"$f":"Import!E40642","v":0},{"$f":"Import!E40667","v":0},{"$f":"Import!E40692","v":0},{"$f":"Import!E40717","v":0},{"$f":"Import!E40742","v":0},{"$f":"Import!E40767","v":0},{"$f":"Import!E40792","v":0},{"$f":"Import!E40817","v":0},{"$f":"Import!E40842","v":0},{"$f":"Import!E40867","v":0},{"$f":"Import!E40892","v":0},{"$f":"Import!E40917","v":0},{"$f":"Import!E40942","v":0},{"$f":"Import!E40967","v":0},{"$f":"Import!E40992","v":0},{"$f":"Import!E41017","v":0},{"$f":"Import!E41042","v":0},{"$f":"Import!E41067","v":0},null,0,null,{"$f":"+'Schedule IVD (EBS)'!O15","v":0},null," - "]
[null,8,"Credit / Surety ",null,{"$f":"Import!E40643","v":0},{"$f":"Import!E40668","v":0},{"$f":"Import!E40693","v":0},{"$f":"Import!E40718","v":0},{"$f":"Import!E40743","v":0},{"$f":"Import!E40768","v":0},{"$f":"Import!E40793","v":0},{"$f":"Import!E40818","v":0},{"$f":"Import!E40843","v":0},{"$f":"Import!E40868","v":0},{"$f":"Import!E40893","v":0},{"$f":"Import!E40918","v":0},{"$f":"Import!E40943","v":0},{"$f":"Import!E40968","v":0},{"$f":"Import!E40993","v":0},{"$f":"Import!E41018","v":0},{"$f":"Import!E41043","v":0},{"$f":"Import!E41068","v":0},null,0,null,{"$f":"+'Schedule IVD (EBS)'!O16","v":0},null," - "]
[null,9,"Credit / Surety Non – Proportional",null,{"$f":"Import!E40644","v":0},{"$f":"Import!E40669","v":0},{"$f":"Import!E40694","v":0},{"$f":"Import!E40719","v":0},{"$f":"Import!E40744","v":0},{"$f":"Import!E40769","v":0},{"$f":"Import!E40794","v":0},{"$f":"Import!E40819","v":0},{"$f":"Import!E40844","v":0},{"$f":"Import!E40869","v":0},{"$f":"Import!E40894","v":0},{"$f":"Import!E40919","v":0},{"$f":"Import!E40944","v":0},{"$f":"Import!E40969","v":0},{"$f":"Import!E40994","v":0},{"$f":"Import!E41019","v":0},{"$f":"Import!E41044","v":0},{"$f":"Import!E41069","v":0},null,0,null,{"$f":"+'Schedule IVD (EBS)'!O17","v":0},null," - "]
[null,10,"Energy Offshore / Marine",null,{"$f":"Import!E40645","v":0},{"$f":"Import!E40670","v":0},{"$f":"Import!E40695","v":0},{"$f":"Import!E40720","v":0},{"$f":"Import!E40745","v":0},{"$f":"Import!E40770","v":0},{"$f":"Import!E40795","v":0},{"$f":"Import!E40820","v":0},{"$f":"Import!E40845","v":0},{"$f":"Import!E40870","v":0},{"$f":"Import!E40895","v":0},{"$f":"Import!E40920","v":0},{"$f":"Import!E40945","v":0},{"$f":"Import!E40970","v":0},{"$f":"Import!E40995","v":0},{"$f":"Import!E41020","v":0},{"$f":"Import!E41045","v":0},{"$f":"Import!E41070","v":0},null,0,null,{"$f":"+'Schedule IVD (EBS)'!O18","v":0},null," - "]
[null,11,"Energy Offshore / Marine Non - Proportional ","  ",{"$f":"Import!E40646","v":0},{"$f":"Import!E40671","v":0},{"$f":"Import!E40696","v":0},{"$f":"Import!E40721","v":0},{"$f":"Import!E40746","v":0},{"$f":"Import!E40771","v":0},{"$f":"Import!E40796","v":0},{"$f":"Import!E40821","v":0},{"$f":"Import!E40846","v":0},{"$f":"Import!E40871","v":0},{"$f":"Import!E40896","v":0},{"$f":"Import!E40921","v":0},{"$f":"Import!E40946","v":0},{"$f":"Import!E40971","v":0},{"$f":"Import!E40996","v":0},{"$f":"Import!E41021","v":0},{"$f":"Import!E41046","v":0},{"$f":"Import!E41071","v":0},null,0,null,{"$f":"+'Schedule IVD (EBS)'!O19","v":0},null," - "]
[null,12,"US Casualty",null,{"$f":"Import!E40647","v":0},{"$f":"Import!E40672","v":0},{"$f":"Import!E40697","v":0},{"$f":"Import!E40722","v":0},{"$f":"Import!E40747","v":0},{"$f":"Import!E40772","v":0},{"$f":"Import!E40797","v":0},{"$f":"Import!E40822","v":0},{"$f":"Import!E40847","v":0},{"$f":"Import!E40872","v":0},{"$f":"Import!E40897","v":0},{"$f":"Import!E40922","v":0},{"$f":"Import!E40947","v":0},{"$f":"Import!E40972","v":0},{"$f":"Import!E40997","v":0},{"$f":"Import!E41022","v":0},{"$f":"Import!E41047","v":0},{"$f":"Import!E41072","v":0},null,0,null,{"$f":"+'Schedule IVD (EBS)'!O20","v":0},null," - "]
[null,13,"US Casualty Non - Proportional ",null,{"$f":"Import!E40648","v":0},{"$f":"Import!E40673","v":0},{"$f":"Import!E40698","v":0},{"$f":"Import!E40723","v":0},{"$f":"Import!E40748","v":0},{"$f":"Import!E40773","v":0},{"$f":"Import!E40798","v":0},{"$f":"Import!E40823","v":0},{"$f":"Import!E40848","v":0},{"$f":"Import!E40873","v":0},{"$f":"Import!E40898","v":0},{"$f":"Import!E40923","v":0},{"$f":"Import!E40948","v":0},{"$f":"Import!E40973","v":0},{"$f":"Import!E40998","v":0},{"$f":"Import!E41023","v":0},{"$f":"Import!E41048","v":0},{"$f":"Import!E41073","v":0},null,0,null,{"$f":"+'Schedule IVD (EBS)'!O21","v":0},null," - "]
[null,14,"US Professional",null,{"$f":"Import!E40649","v":0},{"$f":"Import!E40674","v":0},{"$f":"Import!E40699","v":0},{"$f":"Import!E40724","v":0},{"$f":"Import!E40749","v":0},{"$f":"Import!E40774","v":0},{"$f":"Import!E40799","v":0},{"$f":"Import!E40824","v":0},{"$f":"Import!E40849","v":0},{"$f":"Import!E40874","v":0},{"$f":"Import!E40899","v":0},{"$f":"Import!E40924","v":0},{"$f":"Import!E40949","v":0},{"$f":"Import!E40974","v":0},{"$f":"Import!E40999","v":0},{"$f":"Import!E41024","v":0},{"$f":"Import!E41049","v":0},{"$f":"Import!E41074","v":0},null,0,null,{"$f":"+'Schedule IVD (EBS)'!O22","v":0},null," - "]
[null,15,"US Professional Non – Proportional",null,{"$f":"Import!E40650","v":0},{"$f":"Import!E40675","v":0},{"$f":"Import!E40700","v":0},{"$f":"Import!E40725","v":0},{"$f":"Import!E40750","v":0},{"$f":"Import!E40775","v":0},{"$f":"Import!E40800","v":0},{"$f":"Import!E40825","v":0},{"$f":"Import!E40850","v":0},{"$f":"Import!E40875","v":0},{"$f":"Import!E40900","v":0},{"$f":"Import!E40925","v":0},{"$f":"Import!E40950","v":0},{"$f":"Import!E40975","v":0},{"$f":"Import!E41000","v":0},{"$f":"Import!E41025","v":0},{"$f":"Import!E41050","v":0},{"$f":"Import!E41075","v":0},null,0,null,{"$f":"+'Schedule IVD (EBS)'!O23","v":0},null," - "]
[null,16,"US Specialty ",null,{"$f":"Import!E40651","v":0},{"$f":"Import!E40676","v":0},{"$f":"Import!E40701","v":0},{"$f":"Import!E40726","v":0},{"$f":"Import!E40751","v":0},{"$f":"Import!E40776","v":0},{"$f":"Import!E40801","v":0},{"$f":"Import!E40826","v":0},{"$f":"Import!E40851","v":0},{"$f":"Import!E40876","v":0},{"$f":"Import!E40901","v":0},{"$f":"Import!E40926","v":0},{"$f":"Import!E40951","v":0},{"$f":"Import!E40976","v":0},{"$f":"Import!E41001","v":0},{"$f":"Import!E41026","v":0},{"$f":"Import!E41051","v":0},{"$f":"Import!E41076","v":0},null,0,null,{"$f":"+'Schedule IVD (EBS)'!O24","v":0},null," - "]
[null,17,"US Specialty Non - Proportional",null,{"$f":"Import!E40652","v":0},{"$f":"Import!E40677","v":0},{"$f":"Import!E40702","v":0},{"$f":"Import!E40727","v":0},{"$f":"Import!E40752","v":0},{"$f":"Import!E40777","v":0},{"$f":"Import!E40802","v":0},{"$f":"Import!E40827","v":0},{"$f":"Import!E40852","v":0},{"$f":"Import!E40877","v":0},{"$f":"Import!E40902","v":0},{"$f":"Import!E40927","v":0},{"$f":"Import!E40952","v":0},{"$f":"Import!E40977","v":0},{"$f":"Import!E41002","v":0},{"$f":"Import!E41027","v":0},{"$f":"Import!E41052","v":0},{"$f":"Import!E41077","v":0},null,0,null,{"$f":"+'Schedule IVD (EBS)'!O25","v":0},null," - "]
[null,18,"International Motor ",null,{"$f":"Import!E40653","v":0},{"$f":"Import!E40678","v":0},{"$f":"Import!E40703","v":0},{"$f":"Import!E40728","v":0},{"$f":"Import!E40753","v":0},{"$f":"Import!E40778","v":0},{"$f":"Import!E40803","v":0},{"$f":"Import!E40828","v":0},{"$f":"Import!E40853","v":0},{"$f":"Import!E40878","v":0},{"$f":"Import!E40903","v":0},{"$f":"Import!E40928","v":0},{"$f":"Import!E40953","v":0},{"$f":"Import!E40978","v":0},{"$f":"Import!E41003","v":0},{"$f":"Import!E41028","v":0},{"$f":"Import!E41053","v":0},{"$f":"Import!E41078","v":0},null,0,null,{"$f":"+'Schedule IVD (EBS)'!O26","v":0},null," - "]
[null,19,"International Motor Non – Proportional",null,{"$f":"Import!E40654","v":0},{"$f":"Import!E40679","v":0},{"$f":"Import!E40704","v":0},{"$f":"Import!E40729","v":0},{"$f":"Import!E40754","v":0},{"$f":"Import!E40779","v":0},{"$f":"Import!E40804","v":0},{"$f":"Import!E40829","v":0},{"$f":"Import!E40854","v":0},{"$f":"Import!E40879","v":0},{"$f":"Import!E40904","v":0},{"$f":"Import!E40929","v":0},{"$f":"Import!E40954","v":0},{"$f":"Import!E40979","v":0},{"$f":"Import!E41004","v":0},{"$f":"Import!E41029","v":0},{"$f":"Import!E41054","v":0},{"$f":"Import!E41079","v":0},null,0,null,{"$f":"+'Schedule IVD (EBS)'!O27","v":0},null," - "]
[null,20,"International Casualty Non – Motor ",null,{"$f":"Import!E40655","v":0},{"$f":"Import!E40680","v":0},{"$f":"Import!E40705","v":0},{"$f":"Import!E40730","v":0},{"$f":"Import!E40755","v":0},{"$f":"Import!E40780","v":0},{"$f":"Import!E40805","v":0},{"$f":"Import!E40830","v":0},{"$f":"Import!E40855","v":0},{"$f":"Import!E40880","v":0},{"$f":"Import!E40905","v":0},{"$f":"Import!E40930","v":0},{"$f":"Import!E40955","v":0},{"$f":"Import!E40980","v":0},{"$f":"Import!E41005","v":0},{"$f":"Import!E41030","v":0},{"$f":"Import!E41055","v":0},{"$f":"Import!E41080","v":0},null,0,null,{"$f":"+'Schedule IVD (EBS)'!O28","v":0},null," - "]
[null,21,"International Casualty Non Motor Non – Proportional ",null,{"$f":"Import!E40656","v":0},{"$f":"Import!E40681","v":0},{"$f":"Import!E40706","v":0},{"$f":"Import!E40731","v":0},{"$f":"Import!E40756","v":0},{"$f":"Import!E40781","v":0},{"$f":"Import!E40806","v":0},{"$f":"Import!E40831","v":0},{"$f":"Import!E40856","v":0},{"$f":"Import!E40881","v":0},{"$f":"Import!E40906","v":0},{"$f":"Import!E40931","v":0},{"$f":"Import!E40956","v":0},{"$f":"Import!E40981","v":0},{"$f":"Import!E41006","v":0},{"$f":"Import!E41031","v":0},{"$f":"Import!E41056","v":0},{"$f":"Import!E41081","v":0},null,0,null,{"$f":"+'Schedule IVD (EBS)'!O29","v":0},null," - "]
[null,22,"Retro Property",null,{"$f":"Import!E40657","v":0},{"$f":"Import!E40682","v":0},{"$f":"Import!E40707","v":0},{"$f":"Import!E40732","v":0},{"$f":"Import!E40757","v":0},{"$f":"Import!E40782","v":0},{"$f":"Import!E40807","v":0},{"$f":"Import!E40832","v":0},{"$f":"Import!E40857","v":0},{"$f":"Import!E40882","v":0},{"$f":"Import!E40907","v":0},{"$f":"Import!E40932","v":0},{"$f":"Import!E40957","v":0},{"$f":"Import!E40982","v":0},{"$f":"Import!E41007","v":0},{"$f":"Import!E41032","v":0},{"$f":"Import!E41057","v":0},{"$f":"Import!E41082","v":0},null,0,null,{"$f":"+'Schedule IVD (EBS)'!O30","v":0},null," - "]
[null,23,"Structured / Finite Reinsurance",null,{"$f":"Import!E40658","v":0},{"$f":"Import!E40683","v":0},{"$f":"Import!E40708","v":0},{"$f":"Import!E40733","v":0},{"$f":"Import!E40758","v":0},{"$f":"Import!E40783","v":0},{"$f":"Import!E40808","v":0},{"$f":"Import!E40833","v":0},{"$f":"Import!E40858","v":0},{"$f":"Import!E40883","v":0},{"$f":"Import!E40908","v":0},{"$f":"Import!E40933","v":0},{"$f":"Import!E40958","v":0},{"$f":"Import!E40983","v":0},{"$f":"Import!E41008","v":0},{"$f":"Import!E41033","v":0},{"$f":"Import!E41058","v":0},{"$f":"Import!E41083","v":0},null,0,null,{"$f":"+'Schedule IVD (EBS)'!O31","v":0},null," - "]
[null,24,"Health",null,{"$f":"Import!E40659","v":0},{"$f":"Import!E40684","v":0},{"$f":"Import!E40709","v":0},{"$f":"Import!E40734","v":0},{"$f":"Import!E40759","v":0},{"$f":"Import!E40784","v":0},{"$f":"Import!E40809","v":0},{"$f":"Import!E40834","v":0},{"$f":"Import!E40859","v":0},{"$f":"Import!E40884","v":0},{"$f":"Import!E40909","v":0},{"$f":"Import!E40934","v":0},{"$f":"Import!E40959","v":0},{"$f":"Import!E40984","v":0},{"$f":"Import!E41009","v":0},{"$f":"Import!E41034","v":0},{"$f":"Import!E41059","v":0},{"$f":"Import!E41084","v":0},null,0,null,{"$f":"+'Schedule IVD (EBS)'!O32","v":0},null," - "]
[null,25,"Total ",null,{"$f":"SUM(E9:E32)","v":0},{"$f":"SUM(F9:F32)","v":0},0,0,0,0,0,0,0,0,0,0,0,0,0,0,0,0,null,{"$f":"SUM(X9:X32)","v":0},null,{"$f":"SUM(Z9:Z32)","v":0}]
[]
[]
[]
[]
[]
[]
[]
[]
[]
[]
[]
[]
[]
[]
[]
[]
[]
[]
[]
[]
[]
[]
[]
[]
[]
[]
[]
[]
[]
[]
[]
[]
[]
[]
[]
[]
[]
[]
[]
[]
[]
[]
[]
[]
[]
[]
[]
[]
[null,null,null,null,null,null,null,null,null,null,null,null,null,null,null,null,null,null,null,null,null,null,null,null,null,"Yes"]
[null,null,null,null,null,null,null,null,null,null,null,null,null,null,null,null,null,null,null,null,null,null,null,null,null,"No"]

{"sheet":"Schedule IVF","index":43,"n_rows":90,"n_cols":21,"rows_kept":90,"cut":false,"hidden":false,"merged":[[1,1,1,2],[5,3,5,4],[7,1,7,19],[9,4,9,11],[9,12,9,19]]}
[null,"SCHEDULE OF EXPOSURE OF RISK",null,null,null,null,null,null,null,null,null,null,null,null,null,null,null,null,null,null,{"$f":"HYPERLINK(\"#'Index'!A1\",\"Return to Index\")","v":"Return to Index"}]
[null,{"$f":"'Group Information'!C9","v":"Enter Parent Company Name"}]
[null,{"$f":"\"For the year ending \"&TEXT('Group Information'!C3,\"DD MMMM YYYY\")","v":"For the year ending 31 December 2023"}]
[null,{"$f":"\"expressed in\"& IF(CONFIGURATION!$B$12>1,\" ['\"&MID(CONFIGURATION!$B$12,2,LEN(CONFIGURATION!$B$12))&\"s]\",\"\")&\" \"&'Form 1EBS'!C4","v":"expressed in ['000s]  ['000s]United States Dollars"},null,null,null,null,null,null,null,null,null,null,null,null,null,null,null,null,null,null,"Schedule IVF"]
[]
[null,"1. Jurisdiction of Ultimate Parent"]
[]
[null,"1. Financial Activity for the reporting period. Note location is to be based on the location of the risk being underwritten. In the instance that the location of risk being underwriting is not available, insurers can provide the location based on the location of the cedant."]
[]
[null,null,null,"ALL","General Business",null,null,null,null,null,null,null,"Long-Term Business"]
[null,null,null,"Number of Subsidiaries","GPW - Property Catastrophe","GPW - Other Lines other than Property Cat","Reinsurance - Retroceded to Bermuda Cedants","Reinsurance - Retroceded to Other Cedants","Net Premium Written","Gross Incurred Losses - Property Catastrophe","Gross Incurred Losses - Other Lines Other than Property","Gross Reserves at Year-End","Gross Reserve - Mortality Risk","Gross Reserve - Longevity Risk","Gross Reserve - Deferred Accumulation Annuities Business Risk","Gross Reserve - Disability","Gross Reserve - Group","Gross Reserve - Variable Annuities","Gross Reserve - Other Products","Claims and Benefits Paid"]
[null,null,null,null,{"$f":"CONFIGURATION!$D$12","v":" ('000s)"},{"$f":"CONFIGURATION!$D$12","v":" ('000s)"},{"$f":"CONFIGURATION!$D$12","v":" ('000s)"},{"$f":"CONFIGURATION!$D$12","v":" ('000s)"},{"$f":"CONFIGURATION!$D$12","v":" ('000s)"},{"$f":"CONFIGURATION!$D$12","v":" ('000s)"},{"$f":"CONFIGURATION!$D$12","v":" ('000s)"},{"$f":"CONFIGURATION!$D$12","v":" ('000s)"},{"$f":"CONFIGURATION!$D$12","v":" ('000s)"},{"$f":"CONFIGURATION!$D$12","v":" ('000s)"},{"$f":"CONFIGURATION!$D$12","v":" ('000s)"},{"$f":"CONFIGURATION!$D$12","v":" ('000s)"},{"$f":"CONFIGURATION!$D$12","v":" ('000s)"},{"$f":"CONFIGURATION!$D$12","v":" ('000s)"},{"$f":"CONFIGURATION!$D$12","v":" ('000s)"},{"$f":"CONFIGURATION!$D$12","v":" ('000s)"}]
[null,1,"Austria",{"$f":"Import!E41087","v":0},{"$f":"Import!E41126","v":0},{"$f":"Import!E41165","v":0},{"$f":"Import!E41204","v":0},{"$f":"Import!E41243","v":0},{"$f":"E13+F13-G13-H13","v":0},{"$f":"Import!E41282","v":0},{"$f":"Import!E41321","v":0},{"$f":"Import!E41360","v":0},{"$f":"Import!E41399","v":0},{"$f":"Import!E41438","v":0},{"$f":"Import!E41477","v":0},{"$f":"Import!E41516","v":0},{"$f":"Import!E41555","v":0},{"$f":"Import!E41594","v":0},{"$f":"Import!E41633","v":0},{"$f":"Import!E41672","v":0}]
[null,2,"Belgium",{"$f":"Import!E41088","v":0},{"$f":"Import!E41127","v":0},{"$f":"Import!E41166","v":0},{"$f":"Import!E41205","v":0},{"$f":"Import!E41244","v":0},{"$f":"E14+F14-G14-H14","v":0},{"$f":"Import!E41283","v":0},{"$f":"Import!E41322","v":0},{"$f":"Import!E41361","v":0},{"$f":"Import!E41400","v":0},{"$f":"Import!E41439","v":0},{"$f":"Import!E41478","v":0},{"$f":"Import!E41517","v":0},{"$f":"Import!E41556","v":0},{"$f":"Import!E41595","v":0},{"$f":"Import!E41634","v":0},{"$f":"Import!E41673","v":0}]
[null,3,"Bulgaria",{"$f":"Import!E41089","v":0},{"$f":"Import!E41128","v":0},{"$f":"Import!E41167","v":0},{"$f":"Import!E41206","v":0},{"$f":"Import!E41245","v":0},0,{"$f":"Import!E41284","v":0},{"$f":"Import!E41323","v":0},{"$f":"Import!E41362","v":0},{"$f":"Import!E41401","v":0},{"$f":"Import!E41440","v":0},{"$f":"Import!E41479","v":0},{"$f":"Import!E41518","v":0},{"$f":"Import!E41557","v":0},{"$f":"Import!E41596","v":0},{"$f":"Import!E41635","v":0},{"$f":"Import!E41674","v":0}]
[null,4,"Croatia",{"$f":"Import!E41090","v":0},{"$f":"Import!E41129","v":0},{"$f":"Import!E41168","v":0},{"$f":"Import!E41207","v":0},{"$f":"Import!E41246","v":0},0,{"$f":"Import!E41285","v":0},{"$f":"Import!E41324","v":0},{"$f":"Import!E41363","v":0},{"$f":"Import!E41402","v":0},{"$f":"Import!E41441","v":0},{"$f":"Import!E41480","v":0},{"$f":"Import!E41519","v":0},{"$f":"Import!E41558","v":0},{"$f":"Import!E41597","v":0},{"$f":"Import!E41636","v":0},{"$f":"Import!E41675","v":0}]
[null,5,"Cyprus",{"$f":"Import!E41091","v":0},{"$f":"Import!E41130","v":0},{"$f":"Import!E41169","v":0},{"$f":"Import!E41208","v":0},{"$f":"Import!E41247","v":0},0,{"$f":"Import!E41286","v":0},{"$f":"Import!E41325","v":0},{"$f":"Import!E41364","v":0},{"$f":"Import!E41403","v":0},{"$f":"Import!E41442","v":0},{"$f":"Import!E41481","v":0},{"$f":"Import!E41520","v":0},{"$f":"Import!E41559","v":0},{"$f":"Import!E41598","v":0},{"$f":"Import!E41637","v":0},{"$f":"Import!E41676","v":0}]
[null,6,"Czechia",{"$f":"Import!E41092","v":0},{"$f":"Import!E41131","v":0},{"$f":"Import!E41170","v":0},{"$f":"Import!E41209","v":0},{"$f":"Import!E41248","v":0},0,{"$f":"Import!E41287","v":0},{"$f":"Import!E41326","v":0},{"$f":"Import!E41365","v":0},{"$f":"Import!E41404","v":0},{"$f":"Import!E41443","v":0},{"$f":"Import!E41482","v":0},{"$f":"Import!E41521","v":0},{"$f":"Import!E41560","v":0},{"$f":"Import!E41599","v":0},{"$f":"Import!E41638","v":0},{"$f":"Import!E41677","v":0}]
[null,7,"Denmark",{"$f":"Import!E41093","v":0},{"$f":"Import!E41132","v":0},{"$f":"Import!E41171","v":0},{"$f":"Import!E41210","v":0},{"$f":"Import!E41249","v":0},0,{"$f":"Import!E41288","v":0},{"$f":"Import!E41327","v":0},{"$f":"Import!E41366","v":0},{"$f":"Import!E41405","v":0},{"$f":"Import!E41444","v":0},{"$f":"Import!E41483","v":0},{"$f":"Import!E41522","v":0},{"$f":"Import!E41561","v":0},{"$f":"Import!E41600","v":0},{"$f":"Import!E41639","v":0},{"$f":"Import!E41678","v":0}]
[null,8,"Estonia",{"$f":"Import!E41094","v":0},{"$f":"Import!E41133","v":0},{"$f":"Import!E41172","v":0},{"$f":"Import!E41211","v":0},{"$f":"Import!E41250","v":0},0,{"$f":"Import!E41289","v":0},{"$f":"Import!E41328","v":0},{"$f":"Import!E41367","v":0},{"$f":"Import!E41406","v":0},{"$f":"Import!E41445","v":0},{"$f":"Import!E41484","v":0},{"$f":"Import!E41523","v":0},{"$f":"Import!E41562","v":0},{"$f":"Import!E41601","v":0},{"$f":"Import!E41640","v":0},{"$f":"Import!E41679","v":0}]
[null,9,"Finland",{"$f":"Import!E41095","v":0},{"$f":"Import!E41134","v":0},{"$f":"Import!E41173","v":0},{"$f":"Import!E41212","v":0},{"$f":"Import!E41251","v":0},0,{"$f":"Import!E41290","v":0},{"$f":"Import!E41329","v":0},{"$f":"Import!E41368","v":0},{"$f":"Import!E41407","v":0},{"$f":"Import!E41446","v":0},{"$f":"Import!E41485","v":0},{"$f":"Import!E41524","v":0},{"$f":"Import!E41563","v":0},{"$f":"Import!E41602","v":0},{"$f":"Import!E41641","v":0},{"$f":"Import!E41680","v":0}]
[null,10,"France",{"$f":"Import!E41096","v":0},{"$f":"Import!E41135","v":0},{"$f":"Import!E41174","v":0},{"$f":"Import!E41213","v":0},{"$f":"Import!E41252","v":0},0,{"$f":"Import!E41291","v":0},{"$f":"Import!E41330","v":0},{"$f":"Import!E41369","v":0},{"$f":"Import!E41408","v":0},{"$f":"Import!E41447","v":0},{"$f":"Import!E41486","v":0},{"$f":"Import!E41525","v":0},{"$f":"Import!E41564","v":0},{"$f":"Import!E41603","v":0},{"$f":"Import!E41642","v":0},{"$f":"Import!E41681","v":0}]
[null,11,"Germany",{"$f":"Import!E41097","v":0},{"$f":"Import!E41136","v":0},{"$f":"Import!E41175","v":0},{"$f":"Import!E41214","v":0},{"$f":"Import!E41253","v":0},0,{"$f":"Import!E41292","v":0},{"$f":"Import!E41331","v":0},{"$f":"Import!E41370","v":0},{"$f":"Import!E41409","v":0},{"$f":"Import!E41448","v":0},{"$f":"Import!E41487","v":0},{"$f":"Import!E41526","v":0},{"$f":"Import!E41565","v":0},{"$f":"Import!E41604","v":0},{"$f":"Import!E41643","v":0},{"$f":"Import!E41682","v":0}]
[null,12,"Greece",{"$f":"Import!E41098","v":0},{"$f":"Import!E41137","v":0},{"$f":"Import!E41176","v":0},{"$f":"Import!E41215","v":0},{"$f":"Import!E41254","v":0},0,{"$f":"Import!E41293","v":0},{"$f":"Import!E41332","v":0},{"$f":"Import!E41371","v":0},{"$f":"Import!E41410","v":0},{"$f":"Import!E41449","v":0},{"$f":"Import!E41488","v":0},{"$f":"Import!E41527","v":0},{"$f":"Import!E41566","v":0},{"$f":"Import!E41605","v":0},{"$f":"Import!E41644","v":0},{"$f":"Import!E41683","v":0}]
[null,13,"Hungary",{"$f":"Import!E41099","v":0},{"$f":"Import!E41138","v":0},{"$f":"Import!E41177","v":0},{"$f":"Import!E41216","v":0},{"$f":"Import!E41255","v":0},0,{"$f":"Import!E41294","v":0},{"$f":"Import!E41333","v":0},{"$f":"Import!E41372","v":0},{"$f":"Import!E41411","v":0},{"$f":"Import!E41450","v":0},{"$f":"Import!E41489","v":0},{"$f":"Import!E41528","v":0},{"$f":"Import!E41567","v":0},{"$f":"Import!E41606","v":0},{"$f":"Import!E41645","v":0},{"$f":"Import!E41684","v":0}]
[null,14,"Ireland",{"$f":"Import!E41100","v":0},{"$f":"Import!E41139","v":0},{"$f":"Import!E41178","v":0},{"$f":"Import!E41217","v":0},{"$f":"Import!E41256","v":0},0,{"$f":"Import!E41295","v":0},{"$f":"Import!E41334","v":0},{"$f":"Import!E41373","v":0},{"$f":"Import!E41412","v":0},{"$f":"Import!E41451","v":0},{"$f":"Import!E41490","v":0},{"$f":"Import!E41529","v":0},{"$f":"Import!E41568","v":0},{"$f":"Import!E41607","v":0},{"$f":"Import!E41646","v":0},{"$f":"Import!E41685","v":0}]
[null,15,"Italy",{"$f":"Import!E41101","v":0},{"$f":"Import!E41140","v":0},{"$f":"Import!E41179","v":0},{"$f":"Import!E41218","v":0},{"$f":"Import!E41257","v":0},0,{"$f":"Import!E41296","v":0},{"$f":"Import!E41335","v":0},{"$f":"Import!E41374","v":0},{"$f":"Import!E41413","v":0},{"$f":"Import!E41452","v":0},{"$f":"Import!E41491","v":0},{"$f":"Import!E41530","v":0},{"$f":"Import!E41569","v":0},{"$f":"Import!E41608","v":0},{"$f":"Import!E41647","v":0},{"$f":"Import!E41686","v":0}]
[null,16,"Latvia",{"$f":"Import!E41102","v":0},{"$f":"Import!E41141","v":0},{"$f":"Import!E41180","v":0},{"$f":"Import!E41219","v":0},{"$f":"Import!E41258","v":0},0,{"$f":"Import!E41297","v":0},{"$f":"Import!E41336","v":0},{"$f":"Import!E41375","v":0},{"$f":"Import!E41414","v":0},{"$f":"Import!E41453","v":0},{"$f":"Import!E41492","v":0},{"$f":"Import!E41531","v":0},{"$f":"Import!E41570","v":0},{"$f":"Import!E41609","v":0},{"$f":"Import!E41648","v":0},{"$f":"Import!E41687","v":0}]
[null,17,"Lithuania",{"$f":"Import!E41103","v":0},{"$f":"Import!E41142","v":0},{"$f":"Import!E41181","v":0},{"$f":"Import!E41220","v":0},{"$f":"Import!E41259","v":0},0,{"$f":"Import!E41298","v":0},{"$f":"Import!E41337","v":0},{"$f":"Import!E41376","v":0},{"$f":"Import!E41415","v":0},{"$f":"Import!E41454","v":0},{"$f":"Import!E41493","v":0},{"$f":"Import!E41532","v":0},{"$f":"Import!E41571","v":0},{"$f":"Import!E41610","v":0},{"$f":"Import!E41649","v":0},{"$f":"Import!E41688","v":0}]
[null,18,"Luxembourg",{"$f":"Import!E41104","v":0},{"$f":"Import!E41143","v":0},{"$f":"Import!E41182","v":0},{"$f":"Import!E41221","v":0},{"$f":"Import!E41260","v":0},0,{"$f":"Import!E41299","v":0},{"$f":"Import!E41338","v":0},{"$f":"Import!E41377","v":0},{"$f":"Import!E41416","v":0},{"$f":"Import!E41455","v":0},{"$f":"Import!E41494","v":0},{"$f":"Import!E41533","v":0},{"$f":"Import!E41572","v":0},{"$f":"Import!E41611","v":0},{"$f":"Import!E41650","v":0},{"$f":"Import!E41689","v":0}]
[null,19,"Malta",{"$f":"Import!E41105","v":0},{"$f":"Import!E41144","v":0},{"$f":"Import!E41183","v":0},{"$f":"Import!E41222","v":0},{"$f":"Import!E41261","v":0},0,{"$f":"Import!E41300","v":0},{"$f":"Import!E41339","v":0},{"$f":"Import!E41378","v":0},{"$f":"Import!E41417","v":0},{"$f":"Import!E41456","v":0},{"$f":"Import!E41495","v":0},{"$f":"Import!E41534","v":0},{"$f":"Import!E41573","v":0},{"$f":"Import!E41612","v":0},{"$f":"Import!E41651","v":0},{"$f":"Import!E41690","v":0}]
[null,20,"Netherlands",{"$f":"Import!E41106","v":0},{"$f":"Import!E41145","v":0},{"$f":"Import!E41184","v":0},{"$f":"Import!E41223","v":0},{"$f":"Import!E41262","v":0},0,{"$f":"Import!E41301","v":0},{"$f":"Import!E41340","v":0},{"$f":"Import!E41379","v":0},{"$f":"Import!E41418","v":0},{"$f":"Import!E41457","v":0},{"$f":"Import!E41496","v":0},{"$f":"Import!E41535","v":0},{"$f":"Import!E41574","v":0},{"$f":"Import!E41613","v":0},{"$f":"Import!E41652","v":0},{"$f":"Import!E41691","v":0}]
[null,21,"Poland",{"$f":"Import!E41107","v":0},{"$f":"Import!E41146","v":0},{"$f":"Import!E41185","v":0},{"$f":"Import!E41224","v":0},{"$f":"Import!E41263","v":0},0,{"$f":"Import!E41302","v":0},{"$f":"Import!E41341","v":0},{"$f":"Import!E41380","v":0},{"$f":"Import!E41419","v":0},{"$f":"Import!E41458","v":0},{"$f":"Import!E41497","v":0},{"$f":"Import!E41536","v":0},{"$f":"Import!E41575","v":0},{"$f":"Import!E41614","v":0},{"$f":"Import!E41653","v":0},{"$f":"Import!E41692","v":0}]
[null,22,"Portugal",{"$f":"Import!E41108","v":0},{"$f":"Import!E41147","v":0},{"$f":"Import!E41186","v":0},{"$f":"Import!E41225","v":0},{"$f":"Import!E41264","v":0},0,{"$f":"Import!E41303","v":0},{"$f":"Import!E41342","v":0},{"$f":"Import!E41381","v":0},{"$f":"Import!E41420","v":0},{"$f":"Import!E41459","v":0},{"$f":"Import!E41498","v":0},{"$f":"Import!E41537","v":0},{"$f":"Import!E41576","v":0},{"$f":"Import!E41615","v":0},{"$f":"Import!E41654","v":0},{"$f":"Import!E41693","v":0}]
[null,23,"Romania",{"$f":"Import!E41109","v":0},{"$f":"Import!E41148","v":0},{"$f":"Import!E41187","v":0},{"$f":"Import!E41226","v":0},{"$f":"Import!E41265","v":0},0,{"$f":"Import!E41304","v":0},{"$f":"Import!E41343","v":0},{"$f":"Import!E41382","v":0},{"$f":"Import!E41421","v":0},{"$f":"Import!E41460","v":0},{"$f":"Import!E41499","v":0},{"$f":"Import!E41538","v":0},{"$f":"Import!E41577","v":0},{"$f":"Import!E41616","v":0},{"$f":"Import!E41655","v":0},{"$f":"Import!E41694","v":0}]
[null,24,"Slovakia",{"$f":"Import!E41110","v":0},{"$f":"Import!E41149","v":0},{"$f":"Import!E41188","v":0},{"$f":"Import!E41227","v":0},{"$f":"Import!E41266","v":0},0,{"$f":"Import!E41305","v":0},{"$f":"Import!E41344","v":0},{"$f":"Import!E41383","v":0},{"$f":"Import!E41422","v":0},{"$f":"Import!E41461","v":0},{"$f":"Import!E41500","v":0},{"$f":"Import!E41539","v":0},{"$f":"Import!E41578","v":0},{"$f":"Import!E41617","v":0},{"$f":"Import!E41656","v":0},{"$f":"Import!E41695","v":0}]
[null,25,"Slovenia",{"$f":"Import!E41111","v":0},{"$f":"Import!E41150","v":0},{"$f":"Import!E41189","v":0},{"$f":"Import!E41228","v":0},{"$f":"Import!E41267","v":0},0,{"$f":"Import!E41306","v":0},{"$f":"Import!E41345","v":0},{"$f":"Import!E41384","v":0},{"$f":"Import!E41423","v":0},{"$f":"Import!E41462","v":0},{"$f":"Import!E41501","v":0},{"$f":"Import!E41540","v":0},{"$f":"Import!E41579","v":0},{"$f":"Import!E41618","v":0},{"$f":"Import!E41657","v":0},{"$f":"Import!E41696","v":0}]
[null,26,"Spain",{"$f":"Import!E41112","v":0},{"$f":"Import!E41151","v":0},{"$f":"Import!E41190","v":0},{"$f":"Import!E41229","v":0},{"$f":"Import!E41268","v":0},0,{"$f":"Import!E41307","v":0},{"$f":"Import!E41346","v":0},{"$f":"Import!E41385","v":0},{"$f":"Import!E41424","v":0},{"$f":"Import!E41463","v":0},{"$f":"Import!E41502","v":0},{"$f":"Import!E41541","v":0},{"$f":"Import!E41580","v":0},{"$f":"Import!E41619","v":0},{"$f":"Import!E41658","v":0},{"$f":"Import!E41697","v":0}]
[null,27,"Sweden",{"$f":"Import!E41113","v":0},{"$f":"Import!E41152","v":0},{"$f":"Import!E41191","v":0},{"$f":"Import!E41230","v":0},{"$f":"Import!E41269","v":0},0,{"$f":"Import!E41308","v":0},{"$f":"Import!E41347","v":0},{"$f":"Import!E41386","v":0},{"$f":"Import!E41425","v":0},{"$f":"Import!E41464","v":0},{"$f":"Import!E41503","v":0},{"$f":"Import!E41542","v":0},{"$f":"Import!E41581","v":0},{"$f":"Import!E41620","v":0},{"$f":"Import!E41659","v":0},{"$f":"Import!E41698","v":0}]
[null,28,"Sub Total European Union",{"$f":"SUM(D13:D39)","v":0},0,0,0,0,0,0,0,0,0,0,0,0,0,0,0,0]
[]
[null,{"$f":"B40+1","v":29},"Bermuda",{"$f":"Import!E41115","v":0},{"$f":"Import!E41154","v":0},{"$f":"Import!E41193","v":0},{"$f":"Import!E41232","v":0},{"$f":"Import!E41271","v":0},{"$f":"E42+F42-G42-H42","v":0},{"$f":"Import!E41310","v":0},{"$f":"Import!E41349","v":0},{"$f":"Import!E41388","v":0},{"$f":"Import!E41427","v":0},{"$f":"Import!E41466","v":0},{"$f":"Import!E41505","v":0},{"$f":"Import!E41544","v":0},{"$f":"Import!E41583","v":0},{"$f":"Import!E41622","v":0},{"$f":"Import!E41661","v":0},{"$f":"Import!E41700","v":0}]
[null,30,"United Kingdom",{"$f":"Import!E41116","v":0},{"$f":"Import!E41155","v":0},{"$f":"Import!E41194","v":0},{"$f":"Import!E41233","v":0},{"$f":"Import!E41272","v":0},0,{"$f":"Import!E41311","v":0},{"$f":"Import!E41350","v":0},{"$f":"Import!E41389","v":0},{"$f":"Import!E41428","v":0},{"$f":"Import!E41467","v":0},{"$f":"Import!E41506","v":0},{"$f":"Import!E41545","v":0},{"$f":"Import!E41584","v":0},{"$f":"Import!E41623","v":0},{"$f":"Import!E41662","v":0},{"$f":"Import!E41701","v":0}]
[null,31,"Switzerland",{"$f":"Import!E41117","v":0},{"$f":"Import!E41156","v":0},{"$f":"Import!E41195","v":0},{"$f":"Import!E41234","v":0},{"$f":"Import!E41273","v":0},0,{"$f":"Import!E41312","v":0},{"$f":"Import!E41351","v":0},{"$f":"Import!E41390","v":0},{"$f":"Import!E41429","v":0},{"$f":"Import!E41468","v":0},{"$f":"Import!E41507","v":0},{"$f":"Import!E41546","v":0},{"$f":"Import!E41585","v":0},{"$f":"Import!E41624","v":0},{"$f":"Import!E41663","v":0},{"$f":"Import!E41702","v":0}]
[null,32,"United States of America",{"$f":"Import!E41118","v":0},{"$f":"Import!E41157","v":0},{"$f":"Import!E41196","v":0},{"$f":"Import!E41235","v":0},{"$f":"Import!E41274","v":0},0,{"$f":"Import!E41313","v":0},{"$f":"Import!E41352","v":0},{"$f":"Import!E41391","v":0},{"$f":"Import!E41430","v":0},{"$f":"Import!E41469","v":0},{"$f":"Import!E41508","v":0},{"$f":"Import!E41547","v":0},{"$f":"Import!E41586","v":0},{"$f":"Import!E41625","v":0},{"$f":"Import!E41664","v":0},{"$f":"Import!E41703","v":0}]
[null,33,"Canada",{"$f":"Import!E41119","v":0},{"$f":"Import!E41158","v":0},{"$f":"Import!E41197","v":0},{"$f":"Import!E41236","v":0},{"$f":"Import!E41275","v":0},0,{"$f":"Import!E41314","v":0},{"$f":"Import!E41353","v":0},{"$f":"Import!E41392","v":0},{"$f":"Import!E41431","v":0},{"$f":"Import!E41470","v":0},{"$f":"Import!E41509","v":0},{"$f":"Import!E41548","v":0},{"$f":"Import!E41587","v":0},{"$f":"Import!E41626","v":0},{"$f":"Import!E41665","v":0},{"$f":"Import!E41704","v":0}]
[null,34,"China",{"$f":"Import!E41120","v":0},{"$f":"Import!E41159","v":0},{"$f":"Import!E41198","v":0},{"$f":"Import!E41237","v":0},{"$f":"Import!E41276","v":0},0,{"$f":"Import!E41315","v":0},{"$f":"Import!E41354","v":0},{"$f":"Import!E41393","v":0},{"$f":"Import!E41432","v":0},{"$f":"Import!E41471","v":0},{"$f":"Import!E41510","v":0},{"$f":"Import!E41549","v":0},{"$f":"Import!E41588","v":0},{"$f":"Import!E41627","v":0},{"$f":"Import!E41666","v":0},{"$f":"Import!E41705","v":0}]
[null,35,"Japan",{"$f":"Import!E41121","v":0},{"$f":"Import!E41160","v":0},{"$f":"Import!E41199","v":0},{"$f":"Import!E41238","v":0},{"$f":"Import!E41277","v":0},0,{"$f":"Import!E41316","v":0},{"$f":"Import!E41355","v":0},{"$f":"Import!E41394","v":0},{"$f":"Import!E41433","v":0},{"$f":"Import!E41472","v":0},{"$f":"Import!E41511","v":0},{"$f":"Import!E41550","v":0},{"$f":"Import!E41589","v":0},{"$f":"Import!E41628","v":0},{"$f":"Import!E41667","v":0},{"$f":"Import!E41706","v":0}]
[null,36,"Hong Kong",{"$f":"Import!E41122","v":0},{"$f":"Import!E41161","v":0},{"$f":"Import!E41200","v":0},{"$f":"Import!E41239","v":0},{"$f":"Import!E41278","v":0},0,{"$f":"Import!E41317","v":0},{"$f":"Import!E41356","v":0},{"$f":"Import!E41395","v":0},{"$f":"Import!E41434","v":0},{"$f":"Import!E41473","v":0},{"$f":"Import!E41512","v":0},{"$f":"Import!E41551","v":0},{"$f":"Import!E41590","v":0},{"$f":"Import!E41629","v":0},{"$f":"Import!E41668","v":0},{"$f":"Import!E41707","v":0}]
[null,37,"Australia",{"$f":"Import!E41123","v":0},{"$f":"Import!E41162","v":0},{"$f":"Import!E41201","v":0},{"$f":"Import!E41240","v":0},{"$f":"Import!E41279","v":0},0,{"$f":"Import!E41318","v":0},{"$f":"Import!E41357","v":0},{"$f":"Import!E41396","v":0},{"$f":"Import!E41435","v":0},{"$f":"Import!E41474","v":0},{"$f":"Import!E41513","v":0},{"$f":"Import!E41552","v":0},{"$f":"Import!E41591","v":0},{"$f":"Import!E41630","v":0},{"$f":"Import!E41669","v":0},{"$f":"Import!E41708","v":0}]
[null,38,"All Other Locations",{"$f":"Import!E41124","v":0},{"$f":"Import!E41163","v":0},{"$f":"Import!E41202","v":0},{"$f":"Import!E41241","v":0},{"$f":"Import!E41280","v":0},0,{"$f":"Import!E41319","v":0},{"$f":"Import!E41358","v":0},{"$f":"Import!E41397","v":0},{"$f":"Import!E41436","v":0},{"$f":"Import!E41475","v":0},{"$f":"Import!E41514","v":0},{"$f":"Import!E41553","v":0},{"$f":"Import!E41592","v":0},{"$f":"Import!E41631","v":0},{"$f":"Import!E41670","v":0},{"$f":"Import!E41709","v":0}]
[null,39,"Total",{"$f":"D40+SUM(D42:D51)","v":0},0,0,0,0,0,0,0,0,0,0,0,0,0,0,0,0]
[null,null,null,null,null,{"$f":"IF(F54=\"TRUE\",HYPERLINK(\"#'Form 2'!E14\",\"TRUE\"),HYPERLINK(\"#'Form 2'!E14\",\"FALSE\"))","v":"TRUE"},null,null,{"$f":"IF(I54=\"TRUE\",HYPERLINK(\"#'Form 2'!E18\",\"TRUE\"),HYPERLINK(\"#'Form 2'!E18\",\"FALSE\"))","v":"TRUE"},null,null,{"$f":"IF(L54=\"TRUE\",HYPERLINK(\"#'Form 1'!F104\",\"TRUE\"),HYPERLINK(\"#'Form 1'!F104\",\"FALSE\"))","v":"TRUE"},null,null,null,null,null,null,{"$f":"IF(S54=\"TRUE\",HYPERLINK(\"#'Form 1'!F134\",\"TRUE\"),HYPERLINK(\"#'Form 1'!F134\",\"FALSE\"))","v":"TRUE"},{"$f":"IF(T54=\"TRUE\",HYPERLINK(\"#'Form 2'!E75\",\"TRUE\"),HYPERLINK(\"#'Form 2'!E75\",\"FALSE\"))","v":"TRUE"}]
[null,null,null,null,null,{"$f":"IF('Group Information'!$F$11=\"IFRS\",IF(ROUND((E52+F52-'Form 2A'!E77),0)=0,\"TRUE\",\"FALSE\"),\nIF(ROUND((E52+F52-'Form 2'!E14),0)=0,\"TRUE\",\"FALSE\"))","v":"TRUE"},null,null,{"$f":"IF('Group Information'!$F$11=\"IFRS\",IF(ROUND((I52-'Form 2A'!E79),0)=0,\"TRUE\",\"FALSE\"),\nIF(ROUND((I52-'Form 2'!E18),0)=0,\"TRUE\",\"FALSE\"))","v":"TRUE"},null,null,{"$f":"IF('Group Information'!$F$11=\"IFRS\",\"TRUE\",\nIF(ROUND((L52-'Form 1'!F104),0)=0,\"TRUE\",\"FALSE\"))","v":"TRUE"},null,null,null,null,null,null,{"$f":"IF('Group Information'!$F$11=\"IFRS\",\"TRUE\",\nIF(ROUND(((SUM(M52:S52))-'Form 1'!F134),0)=0,\"TRUE\",\"FALSE\"))","v":"TRUE"},{"$f":"IF('Group Information'!$F$11=\"IFRS\",\"TRUE\",\nIF(ROUND((T52-'Form 2'!E75),0)=0,\"TRUE\",\"FALSE\"))","v":"TRUE"}]
[null,null,null,null,null,{"$f":"IF('Group Information'!$F$11=\"IFRS\",ROUND('Form 2A'!E77-E52-F52,0),\nROUND('Form 2'!E14-E52-F52,0))","v":0},null,null,{"$f":"IF('Group Information'!$F$11=\"IFRS\",ROUND('Form 2A'!E79-I52,0),\nROUND('Form 2'!E18-I52,0))","v":0},null,null,{"$f":"IF('Group Information'!$F$11=\"IFRS\",\"TRUE\",\nROUND('Form 1'!F104-L52,0))","v":0},null,null,null,null,null,null,{"$f":"IF('Group Information'!$F$11=\"IFRS\",\"TRUE\",\nROUND('Form 1'!F134-(SUM(M52:S52)),0))","v":0},{"$f":"IF('Group Information'!$F$11=\"IFRS\",\"TRUE\",\nROUND('Form 2'!E75-T52,0))","v":0}]
[]
[]
[null,null,"Select"]
[null,null,"Bermuda"]
[null,null,"United Kingdom"]
[null,null,"Switzerland"]
[null,null,"United States of America"]
[null,null,"Austria"]
[null,null,"Belgium"]
[null,null,"Bulgaria"]
[null,null,"Croatia"]
[null,null,"Cyprus"]
[null,null,"Czechia"]
[null,null,"Denmark"]
[null,null,"Estonia"]
[null,null,"Finland"]
[null,null,"France"]
[null,null,"Germany"]
[null,null,"Greece"]
[null,null,"Hungary"]
[null,null,"Ireland"]
[null,null,"Italy"]
[null,null,"Latvia"]
[null,null,"Lithuania"]
[null,null,"Luxembourg"]
[null,null,"Malta"]
[null,null,"Netherlands"]
[null,null,"Poland"]
[null,null,"Portugal"]
[null,null,"Romania"]
[null,null,"Slovakia"]
[null,null,"Slovenia"]
[null,null,"Spain"]
[null,null,"Sweden"]
[null,null,"All Other Locations"]

{"sheet":"Schedule V","index":44,"n_rows":66,"n_cols":6,"rows_kept":66,"cut":false,"hidden":false,"merged":[[38,2,39,2]]}
[null,"SCHEDULE OF RISK MANAGEMENT",null,null,null,{"$f":"HYPERLINK(\"#'Index'!A1\",\"Return to Index\")","v":"Return to Index"}]
[null,{"$f":"'Group Information'!C9","v":"Enter Parent Company Name"}]
[null,"For the year ending",{"$f":"'Group Information'!C3","v":"2023-12-31"}]
[null,"expressed in ",{"$f":"'Form 1EBS'!C4","v":" ['000s]United States Dollars"},null,null,"SCHEDULE V"]
[]
[null,"(a)","Governance structure",null,null,{"$f":"HYPERLINK(\"#'Schedule V(a)'!b1\",\"See and complete Schedule V(a)\")","v":"See and complete Schedule V(a)"}]
[]
[null,"(b)","Group structure",null,null,{"$f":"HYPERLINK(\"#'Schedule V(b)'!b1\",\"See and complete Schedule V(b)\")","v":"See and complete Schedule V(b)"}]
[]
[null,"(c)","Intra-group transactions and the insurance group's risk concentrations",null,null,{"$f":"HYPERLINK(\"#'Schedule V(c)'!b1\",\"See and complete Schedule V(c)\")","v":"See and complete Schedule V(c)"}]
[]
[null,"(e)","Effective duration of assets",null,null,{"$f":"Import!I2303","v":0}]
[]
[null,"(f)","Effective duration of liabilities",null,null,{"$f":"Import!I2304","v":0}]
[null,null,null,null,null,"Document Name & Page Number"]
[null,"(g)","Description of the effective duration of assets and liabilities calculations and key assumptions",{"$f":"HYPERLINK(\"#'Attachments'!G95\",\"Attach file\")","v":"Attach file"}]
[]
[null,"(h)","Gross probable maximum loss",null,null,{"$f":"Import!I2305","v":0}]
[]
[null,"(i)","Net probable maximum loss",null,null,{"$f":"Import!I2306","v":0}]
[]
[null,"(j)","Average annual loss for general insurance business excluding property catastrophe",null,null,{"$f":"Import!I2307","v":0}]
[]
[null,"(k)","Actual attritional losses and large claims losses in the relevant year",null,null,{"$f":"Import!I2308","v":0}]
[]
[null,"(l)","Arrangements with respect to property catastrophe recoverables"]
[null,null,"(i) Collateral",null,null,{"$f":"Import!I2309","v":0}]
[null,null,"(ii) Catastrophe bonds",null,null,{"$f":"Import!I2310","v":0}]
[null,null,"(iii) Special purpose insurer (indemnity basis)",null,null,{"$f":"Import!I2311","v":0}]
[null,null,"(iv) Special purpose insurer (other basis)",null,null,{"$f":"Import!I2312","v":0}]
[null,null,"(v) Total",null,null,{"$f":"SUM(F27:F30)","v":0}]
[null,null,null,null,null,"Document Name & Page Number"]
[null,"(m)","Mutual fund disclosures",{"$f":"HYPERLINK(\"#'Attachments'!G125\",\"Attach file\")","v":"Attach file"}]
[]
[null,"(n)","Summary of projected performance - "]
[null,null,"(i) The insurance group's latest estimate of annual net premiums written",null,null,{"$f":"Import!I2314","v":0}]
[null,null,"(ii) The estimated underwriting profit or loss",null,null,{"$f":"Import!I2315","v":0}]
[null,null,"(iii) The estimated net income or loss",null,null,{"$f":"Import!I2316","v":0}]
[null,null,"(iv) A qualitative description of the insurance group's business and underwriting strategy to be used in an attempt to achieve the projections in i) to iii) above",null,null,"Document Name & Page Number"]
[null,null,null,{"$f":"HYPERLINK(\"#'Attachments'!G135\",\"Attach file\")","v":"Attach file"}]
[null,null,null,null,null,"Document Name & Page Number"]
[null,"(o)","Summary of long-term product features and risks",{"$f":"HYPERLINK(\"#'Attachments'!G145\",\"Attach file\")","v":"Attach file"}]
[]
[null,"(p)","Financial impact and description of stress & scenario tests ",null,null,{"$f":"HYPERLINK(\"#'Schedule V(e)'!b1\",\"See and complete Schedule V(e)\")","v":"See and complete Schedule V(e)"}]
[null,null,null,null,null,"Document Name & Page Number"]
[null,"(q)","Investments and derivatives strategies and policy",{"$f":"HYPERLINK(\"#'Attachments'!G105\",\"Attach file\")","v":"Attach file"}]
[]
[null,"(r)","Modified co-insurance arrangements",null,null,{"$f":"HYPERLINK(\"#'Schedule V(f)'!b1\",\"See and complete Schedule V(f)\")","v":"See and complete Schedule V(f)"}]
[]
[null,"(s)","Deferred accumulation annuities disclosure"]
[null,null,"(a) Total reserves for deferred accumulation annuities",null,null,{"$f":"Import!I2317","v":0}]
[null,null,"(b) Total reserves for deferred accumulation annuities with contractual guaranteed annuitisation rates",null,null,{"$f":"Import!I2318","v":0}]
[null,null,"(c) Total reserves for deferred accumulation annuities annuitised in the past year at contractual guaranteed rates (prior to annuitisation)",null,null,{"$f":"Import!I2319","v":0}]
[null,null,"(d) Total reserves for deferred accumulation annuities annuitised in the past year at contractual guaranteed rates (post to annuitisation)",null,null,{"$f":"Import!I2320","v":0}]
[]
[null,"(t)","Reconciliation from Form 1 to group Form 1EBS",null,null,{"$f":"HYPERLINK(\"#'Schedule V(g)'!b1\",\"See and complete Schedule V(g)\")","v":"See and complete Schedule V(g)"}]
[null,null,null,null,null,"Document Name & Page Number"]
[null,"(u)","Description of the insurance group risk management programme",{"$f":"HYPERLINK(\"#'Attachments'!G10\\65\",\"Attach file\")","v":"Attach file"}]
[null,null,null,null,null,"Document Name & Page Number"]
[null,"(v)","Risk register",{"$f":"HYPERLINK(\"#'Attachments'!G175\",\"Attach file\")","v":"Attach file"}]
[]
[null,"(w)","List of statutory general business lines and statutory territories that have catastrophe exposures",null,null,{"$f":"HYPERLINK(\"#'Schedule X(d)'!b1\",\"See and complete Schedule X(d)\")","v":"See and complete Schedule X(d)"}]
[]
[null,"(aa)","Details of deposit assets and liabilities",null,null,{"$f":"HYPERLINK(\"#'Schedule V(k)'!b1\",\"See and complete Schedule V(k)\")","v":"See and complete Schedule V(k)"}]
[]
[null,"(ab)","Details of segregated accounts",null,null,{"$f":"HYPERLINK(\"#'Schedule V(l)'!b1\",\"See and complete Schedule V(l)\")","v":"See and complete Schedule V(l)"}]

{"sheet":"Schedule V(a)","index":45,"n_rows":90,"n_cols":7,"rows_kept":90,"cut":false,"hidden":false,"merged":[]}
[null,null,"SCHEDULE OF RISK MANAGEMENT - GOVERNANCE STRUCTURE",null,null,null,{"$f":"HYPERLINK(\"#'Index'!A1\",\"Return to Index\")","v":"Return to Index"}]
[null,null,{"$f":"'Group Information'!C9","v":"Enter Parent Company Name"}]
[null,null,{"$f":"'Group Information'!C3","v":"2023-12-31"},null,null,null,"SCHEDULE V(a)"]
[]
[]
[null,1,"Structure of the board of directors, including names, role, residence and work experience - "]
[]
[null,null," Enter Number of Directors",{"$f":"Import!E2322","v":0}]
[null,null," Enter information for each Director"]
[]
[null,null,"Name","Board Position","Country of Residence","Work Experience","Status on Board\n(Select from Drop Down)"]
[null,1,{"$f":"Import!E2323","v":0},{"$f":"Import!E2343","v":0},{"$f":"Import!E2363","v":0},{"$f":"Import!E2383","v":0},{"$f":"Import!E2403","v":"Select"}]
[null,2,{"$f":"Import!E2324","v":0},{"$f":"Import!E2344","v":0},{"$f":"Import!E2364","v":0},{"$f":"Import!E2384","v":0},{"$f":"Import!E2404","v":"Select"}]
[null,3,{"$f":"Import!E2325","v":0},{"$f":"Import!E2345","v":0},{"$f":"Import!E2365","v":0},{"$f":"Import!E2385","v":0},{"$f":"Import!E2405","v":"Select"}]
[null,4,{"$f":"Import!E2326","v":0},{"$f":"Import!E2346","v":0},{"$f":"Import!E2366","v":0},{"$f":"Import!E2386","v":0},{"$f":"Import!E2406","v":"Select"}]
[null,5,{"$f":"Import!E2327","v":0},{"$f":"Import!E2347","v":0},{"$f":"Import!E2367","v":0},{"$f":"Import!E2387","v":0},{"$f":"Import!E2407","v":"Select"}]
[null,6,{"$f":"Import!E2328","v":0},{"$f":"Import!E2348","v":0},{"$f":"Import!E2368","v":0},{"$f":"Import!E2388","v":0},{"$f":"Import!E2408","v":"Select"}]
[null,7,{"$f":"Import!E2329","v":0},{"$f":"Import!E2349","v":0},{"$f":"Import!E2369","v":0},{"$f":"Import!E2389","v":0},{"$f":"Import!E2409","v":"Select"}]
[null,8,{"$f":"Import!E2330","v":0},{"$f":"Import!E2350","v":0},{"$f":"Import!E2370","v":0},{"$f":"Import!E2390","v":0},{"$f":"Import!E2410","v":"Select"}]
[null,9,{"$f":"Import!E2331","v":0},{"$f":"Import!E2351","v":0},{"$f":"Import!E2371","v":0},{"$f":"Import!E2391","v":0},{"$f":"Import!E2411","v":"Select"}]
[null,10,{"$f":"Import!E2332","v":0},{"$f":"Import!E2352","v":0},{"$f":"Import!E2372","v":0},{"$f":"Import!E2392","v":0},{"$f":"Import!E2412","v":"Select"}]
[null,11,{"$f":"Import!E2333","v":0},{"$f":"Import!E2353","v":0},{"$f":"Import!E2373","v":0},{"$f":"Import!E2393","v":0},{"$f":"Import!E2413","v":"Select"}]
[null,12,{"$f":"Import!E2334","v":0},{"$f":"Import!E2354","v":0},{"$f":"Import!E2374","v":0},{"$f":"Import!E2394","v":0},{"$f":"Import!E2414","v":"Select"}]
[null,13,{"$f":"Import!E2335","v":0},{"$f":"Import!E2355","v":0},{"$f":"Import!E2375","v":0},{"$f":"Import!E2395","v":0},{"$f":"Import!E2415","v":"Select"}]
[null,14,{"$f":"Import!E2336","v":0},{"$f":"Import!E2356","v":0},{"$f":"Import!E2376","v":0},{"$f":"Import!E2396","v":0},{"$f":"Import!E2416","v":"Select"}]
[null,15,{"$f":"Import!E2337","v":0},{"$f":"Import!E2357","v":0},{"$f":"Import!E2377","v":0},{"$f":"Import!E2397","v":0},{"$f":"Import!E2417","v":"Select"}]
[null,16,{"$f":"Import!E2338","v":0},{"$f":"Import!E2358","v":0},{"$f":"Import!E2378","v":0},{"$f":"Import!E2398","v":0},{"$f":"Import!E2418","v":"Select"}]
[null,17,{"$f":"Import!E2339","v":0},{"$f":"Import!E2359","v":0},{"$f":"Import!E2379","v":0},{"$f":"Import!E2399","v":0},{"$f":"Import!E2419","v":"Select"}]
[null,18,{"$f":"Import!E2340","v":0},{"$f":"Import!E2360","v":0},{"$f":"Import!E2380","v":0},{"$f":"Import!E2400","v":0},{"$f":"Import!E2420","v":"Select"}]
[null,19,{"$f":"Import!E2341","v":0},{"$f":"Import!E2361","v":0},{"$f":"Import!E2381","v":0},{"$f":"Import!E2401","v":0},{"$f":"Import!E2421","v":"Select"}]
[null,20,{"$f":"Import!E2342","v":0},{"$f":"Import!E2362","v":0},{"$f":"Import!E2382","v":0},{"$f":"Import!E2402","v":0},{"$f":"Import!E2422","v":"Select"}]
[null,null,"Structure of the chief and senior executive management, including names, roles, work experience, employee arrangement and description of responsibilities"]
[null,2," Enter Number of Officers",{"$f":"Import!E2423","v":0}]
[]
[]
[null,null,"Name","Chief and Senior Executive Position","Country of Residence","Work Experience","Employee Arrangement (Select from Drop Down)"]
[null,1,{"$f":"Import!E2424","v":0},{"$f":"Import!E2444","v":0},{"$f":"Import!E2464","v":0},{"$f":"Import!E2484","v":0},{"$f":"Import!E2504","v":"Select"}]
[null,2,{"$f":"Import!E2425","v":0},{"$f":"Import!E2445","v":0},{"$f":"Import!E2465","v":0},{"$f":"Import!E2485","v":0},{"$f":"Import!E2505","v":"Select"}]
[null,3,{"$f":"Import!E2426","v":0},{"$f":"Import!E2446","v":0},{"$f":"Import!E2466","v":0},{"$f":"Import!E2486","v":0},{"$f":"Import!E2506","v":"Select"}]
[null,4,{"$f":"Import!E2427","v":0},{"$f":"Import!E2447","v":0},{"$f":"Import!E2467","v":0},{"$f":"Import!E2487","v":0},{"$f":"Import!E2507","v":"Select"}]
[null,5,{"$f":"Import!E2428","v":0},{"$f":"Import!E2448","v":0},{"$f":"Import!E2468","v":0},{"$f":"Import!E2488","v":0},{"$f":"Import!E2508","v":"Select"}]
[null,6,{"$f":"Import!E2429","v":0},{"$f":"Import!E2449","v":0},{"$f":"Import!E2469","v":0},{"$f":"Import!E2489","v":0},{"$f":"Import!E2509","v":"Select"}]
[null,7,{"$f":"Import!E2430","v":0},{"$f":"Import!E2450","v":0},{"$f":"Import!E2470","v":0},{"$f":"Import!E2490","v":0},{"$f":"Import!E2510","v":"Select"}]
[null,8,{"$f":"Import!E2431","v":0},{"$f":"Import!E2451","v":0},{"$f":"Import!E2471","v":0},{"$f":"Import!E2491","v":0},{"$f":"Import!E2511","v":"Select"}]
[null,9,{"$f":"Import!E2432","v":0},{"$f":"Import!E2452","v":0},{"$f":"Import!E2472","v":0},{"$f":"Import!E2492","v":0},{"$f":"Import!E2512","v":"Select"}]
[null,10,{"$f":"Import!E2433","v":0},{"$f":"Import!E2453","v":0},{"$f":"Import!E2473","v":0},{"$f":"Import!E2493","v":0},{"$f":"Import!E2513","v":"Select"}]
[null,11,{"$f":"Import!E2434","v":0},{"$f":"Import!E2454","v":0},{"$f":"Import!E2474","v":0},{"$f":"Import!E2494","v":0},{"$f":"Import!E2514","v":"Select"}]
[null,12,{"$f":"Import!E2435","v":0},{"$f":"Import!E2455","v":0},{"$f":"Import!E2475","v":0},{"$f":"Import!E2495","v":0},{"$f":"Import!E2515","v":"Select"}]
[null,13,{"$f":"Import!E2436","v":0},{"$f":"Import!E2456","v":0},{"$f":"Import!E2476","v":0},{"$f":"Import!E2496","v":0},{"$f":"Import!E2516","v":"Select"}]
[null,14,{"$f":"Import!E2437","v":0},{"$f":"Import!E2457","v":0},{"$f":"Import!E2477","v":0},{"$f":"Import!E2497","v":0},{"$f":"Import!E2517","v":"Select"}]
[null,15,{"$f":"Import!E2438","v":0},{"$f":"Import!E2458","v":0},{"$f":"Import!E2478","v":0},{"$f":"Import!E2498","v":0},{"$f":"Import!E2518","v":"Select"}]
[null,16,{"$f":"Import!E2439","v":0},{"$f":"Import!E2459","v":0},{"$f":"Import!E2479","v":0},{"$f":"Import!E2499","v":0},{"$f":"Import!E2519","v":"Select"}]
[null,17,{"$f":"Import!E2440","v":0},{"$f":"Import!E2460","v":0},{"$f":"Import!E2480","v":0},{"$f":"Import!E2500","v":0},{"$f":"Import!E2520","v":"Select"}]
[null,18,{"$f":"Import!E2441","v":0},{"$f":"Import!E2461","v":0},{"$f":"Import!E2481","v":0},{"$f":"Import!E2501","v":0},{"$f":"Import!E2521","v":"Select"}]
[null,19,{"$f":"Import!E2442","v":0},{"$f":"Import!E2462","v":0},{"$f":"Import!E2482","v":0},{"$f":"Import!E2502","v":0},{"$f":"Import!E2522","v":"Select"}]
[null,20,{"$f":"Import!E2443","v":0},{"$f":"Import!E2463","v":0},{"$f":"Import!E2483","v":0},{"$f":"Import!E2503","v":0},{"$f":"Import!E2523","v":"Select"}]
[null,null,null,null,null,"Document Name Page Number"]
[null,3,"Terms of reference of the board of directors and its sub-committees —",null,null,null,{"$f":"HYPERLINK(\"#'Attachments'!G75\",\"Attach file\")","v":"Attach file"}]
[]
[null,4,"List of major shareholder controllers —",null,null,null,{"$f":"HYPERLINK(\"#'Attachments'!G75\",\"Attach file\")","v":"Attach file"}]
[]
[null,5,"Group organisational chart —",null,null,null,{"$f":"HYPERLINK(\"#'Attachments'!G85\",\"Attach file\")","v":"Attach file"}]
[]
[null,null,null,null,null,null,"Select"]
[null,null,null,null,null,"Insurer","Insurance Group"]
[null,null,null,null,null,"Outsourced","External service provider "]
[null,null,null,null,null,"Group Affiliate"]
[]
[]
[]
[]
[]
[]
[]
[]
[]
[]
[]
[]
[]
[null,null,null,null,null,"Select"]
[null,null,null,null,null,"Non-executive (Independent)"]
[null,null,null,null,null,"Non-executive (Service Provider)"]
[null,null,null,null,null,"Non-executive (Other)"]
[null,null,null,null,null,"Executive"]
[]
[]
[null,null,null,null,null,"A - Has authority to make key strategic, underwriting or investment decisions, etc."]
[null,null,null,null,null,"B - Has authority to make key strategic, underwriting or investments decision, etc., within the risk appetite explicitly set by the Board of Directors of the Parent."]
[null,null,null,null,null,"C - Must get key strategic, underwriting, or investment decisions signed-off by Board of Directors of the Parent before executing."]

{"sheet":"Schedule V(b)","index":46,"n_rows":313,"n_cols":31,"rows_kept":313,"cut":false,"hidden":false,"merged":[]}
[null,"SCHEDULE OF RISK MANAGEMENT - GROUP STRUCTURE",null,null,null,null,null,null,null,null,null,null,null,null,null,null,null,null,null,null,null,null,null,null,null,{"$f":"HYPERLINK(\"#'Index'!A1\",\"Return to Index\")","v":"Return to Index"}]
[null,null,null,null,null,null,null,null,null,null,null,null,null,null,null,null,null,null,null,null,null,null,null,null,null,null,null,"Select","Select",null,"Select Yes/No"]
[null,{"$f":"'Group Information'!C9","v":"Enter Parent Company Name"},null,null,null,null,null,null,null,null,null,null,null,null,null,null,null,null,null,null,null,null,null,null,null,null,null,"Energy","Significant Influence",null,"Yes"]
[null,{"$f":"'Form 1EBS'!C3","v":"2023-12-31"},null,null,null,null,null,null,null,null,null,null,null,null,null,null,null,null,null,null,null,null,null,null,null,null,null,"Materials","Control",null,"No"]
[null,{"$f":"'Form 1EBS'!C4","v":" ['000s]United States Dollars"},null,null,null,null,null,null,null,null,null,null,null,null,null,null,null,null,null,null,null,null,null,null,null,"SCHEDULE V(b)",null,"Industrial"]
[null,null,null,null,null,null,null,null,null,null,null,null,null,null,null,null,null,null,null,null,null,null,null,null,null,null,null,"Consumer Discretionary",null,null,"Select"]
[null,"Enter Number of Affiliates",null,{"$f":"Import!E2525","v":0},null,null,null,null,null,null,null,null,null,null,null,null,null,null,null,null,null,null,null,null,null,null,null,"Consumer Staples",null,null,"Holding Entity"]
[null,"Enter information for each Affiliate",null,null,null,null,null,null,null,null,null,null,null,null,null,null,null,null,null,null,null,null,null,null,null,null,null,"Healthcare",null,null,"Operating Entity"]
[null,"(1)",null,"(2)",null,"(3)",null,"(4)",null,"(5)",null,"(6)",null,"(7)",null,"(8)",null,"(9)",null,"(11)",null,"(12)",null,"(13)",null,"(14)",null,"Financial",null,null,"Branch"]
[null,"Group Member Name",null,"Jurisdiction",null,"Regulated Entity (Companies and Branches)\n(Select 'Yes' or 'No')",null,"Sector Classification \n(Select from drop-down list)",null,"Strategic Purpose",null,"Entity Type\n(Select from drop - down list)",null,"Products & Services Offered to External Parties",null,"Participation (Select from drop-down list)",null,"Percent of Participating Interest",null,"Gross Premium Written \n(if applicable)",null,"Net Premium Written \n(if applicable)",null,"Investment Amount (equity method) / \nNet Assets",null,"Total Assets",null,"Information Technology",null,null,"Other"]
[null,null,null,null,null,null,null,null,null,null,null,null,null,null,null,null,null,null,null,null,null,null,null,null,null,null,null,"Telecommunication Services"]
[1,{"$f":"Import!E2526","v":0},null,{"$f":"Import!E2626","v":0},null,{"$f":"Import!E2726","v":"Select Yes/No"},null,{"$f":"Import!E2826","v":"Select"},null,{"$f":"Import!E2926","v":0},null,{"$f":"Import!E3026","v":"Select"},null,{"$f":"Import!E3126","v":0},null,{"$f":"Import!E3226","v":"Select"},null,{"$f":"Import!E3326","v":0},null,{"$f":"Import!E3426","v":0},null,{"$f":"Import!E3526","v":0},null,{"$f":"Import!E3626","v":0},null,{"$f":"Import!E3726","v":0},null,"Utilities"]
[2,{"$f":"Import!E2527","v":0},null,{"$f":"Import!E2627","v":0},null,{"$f":"Import!E2727","v":"Select Yes/No"},null,{"$f":"Import!E2827","v":"Select"},null,{"$f":"Import!E2927","v":0},null,{"$f":"Import!E3027","v":"Select"},null,{"$f":"Import!E3127","v":0},null,{"$f":"Import!E3227","v":"Select"},null,{"$f":"Import!E3327","v":0},null,{"$f":"Import!E3427","v":0},null,{"$f":"Import!E3527","v":0},null,{"$f":"Import!E3627","v":0},null,{"$f":"Import!E3727","v":0},null,"Other"]
[3,{"$f":"Import!E2528","v":0},null,{"$f":"Import!E2628","v":0},null,{"$f":"Import!E2728","v":"Select Yes/No"},null,{"$f":"Import!E2828","v":"Select"},null,{"$f":"Import!E2928","v":0},null,{"$f":"Import!E3028","v":"Select"},null,{"$f":"Import!E3128","v":0},null,{"$f":"Import!E3228","v":"Select"},null,{"$f":"Import!E3328","v":0},null,{"$f":"Import!E3428","v":0},null,{"$f":"Import!E3528","v":0},null,{"$f":"Import!E3628","v":0},null,{"$f":"Import!E3728","v":0}]
[4,{"$f":"Import!E2529","v":0},null,{"$f":"Import!E2629","v":0},null,{"$f":"Import!E2729","v":"Select Yes/No"},null,{"$f":"Import!E2829","v":"Select"},null,{"$f":"Import!E2929","v":0},null,{"$f":"Import!E3029","v":"Select"},null,{"$f":"Import!E3129","v":0},null,{"$f":"Import!E3229","v":"Select"},null,{"$f":"Import!E3329","v":0},null,{"$f":"Import!E3429","v":0},null,{"$f":"Import!E3529","v":0},null,{"$f":"Import!E3629","v":0},null,{"$f":"Import!E3729","v":0}]
[5,{"$f":"Import!E2530","v":0},null,{"$f":"Import!E2630","v":0},null,{"$f":"Import!E2730","v":"Select Yes/No"},null,{"$f":"Import!E2830","v":"Select"},null,{"$f":"Import!E2930","v":0},null,{"$f":"Import!E3030","v":"Select"},null,{"$f":"Import!E3130","v":0},null,{"$f":"Import!E3230","v":"Select"},null,{"$f":"Import!E3330","v":0},null,{"$f":"Import!E3430","v":0},null,{"$f":"Import!E3530","v":0},null,{"$f":"Import!E3630","v":0},null,{"$f":"Import!E3730","v":0}]
[6,{"$f":"Import!E2531","v":0},null,{"$f":"Import!E2631","v":0},null,{"$f":"Import!E2731","v":"Select Yes/No"},null,{"$f":"Import!E2831","v":"Select"},null,{"$f":"Import!E2931","v":0},null,{"$f":"Import!E3031","v":"Select"},null,{"$f":"Import!E3131","v":0},null,{"$f":"Import!E3231","v":"Select"},null,{"$f":"Import!E3331","v":0},null,{"$f":"Import!E3431","v":0},null,{"$f":"Import!E3531","v":0},null,{"$f":"Import!E3631","v":0},null,{"$f":"Import!E3731","v":0}]
[7,{"$f":"Import!E2532","v":0},null,{"$f":"Import!E2632","v":0},null,{"$f":"Import!E2732","v":"Select Yes/No"},null,{"$f":"Import!E2832","v":"Select"},null,{"$f":"Import!E2932","v":0},null,{"$f":"Import!E3032","v":"Select"},null,{"$f":"Import!E3132","v":0},null,{"$f":"Import!E3232","v":"Select"},null,{"$f":"Import!E3332","v":0},null,{"$f":"Import!E3432","v":0},null,{"$f":"Import!E3532","v":0},null,{"$f":"Import!E3632","v":0},null,{"$f":"Import!E3732","v":0}]
[8,{"$f":"Import!E2533","v":0},null,{"$f":"Import!E2633","v":0},null,{"$f":"Import!E2733","v":"Select Yes/No"},null,{"$f":"Import!E2833","v":"Select"},null,{"$f":"Import!E2933","v":0},null,{"$f":"Import!E3033","v":"Select"},null,{"$f":"Import!E3133","v":0},null,{"$f":"Import!E3233","v":"Select"},null,{"$f":"Import!E3333","v":0},null,{"$f":"Import!E3433","v":0},null,{"$f":"Import!E3533","v":0},null,{"$f":"Import!E3633","v":0},null,{"$f":"Import!E3733","v":0}]
[9,{"$f":"Import!E2534","v":0},null,{"$f":"Import!E2634","v":0},null,{"$f":"Import!E2734","v":"Select Yes/No"},null,{"$f":"Import!E2834","v":"Select"},null,{"$f":"Import!E2934","v":0},null,{"$f":"Import!E3034","v":"Select"},null,{"$f":"Import!E3134","v":0},null,{"$f":"Import!E3234","v":"Select"},null,{"$f":"Import!E3334","v":0},null,{"$f":"Import!E3434","v":0},null,{"$f":"Import!E3534","v":0},null,{"$f":"Import!E3634","v":0},null,{"$f":"Import!E3734","v":0}]
[10,{"$f":"Import!E2535","v":0},null,{"$f":"Import!E2635","v":0},null,{"$f":"Import!E2735","v":"Select Yes/No"},null,{"$f":"Import!E2835","v":"Select"},null,{"$f":"Import!E2935","v":0},null,{"$f":"Import!E3035","v":"Select"},null,{"$f":"Import!E3135","v":0},null,{"$f":"Import!E3235","v":"Select"},null,{"$f":"Import!E3335","v":0},null,{"$f":"Import!E3435","v":0},null,{"$f":"Import!E3535","v":0},null,{"$f":"Import!E3635","v":0},null,{"$f":"Import!E3735","v":0}]
[11,{"$f":"Import!E2536","v":0},null,{"$f":"Import!E2636","v":0},null,{"$f":"Import!E2736","v":"Select Yes/No"},null,{"$f":"Import!E2836","v":"Select"},null,{"$f":"Import!E2936","v":0},null,{"$f":"Import!E3036","v":"Select"},null,{"$f":"Import!E3136","v":0},null,{"$f":"Import!E3236","v":"Select"},null,{"$f":"Import!E3336","v":0},null,{"$f":"Import!E3436","v":0},null,{"$f":"Import!E3536","v":0},null,{"$f":"Import!E3636","v":0},null,{"$f":"Import!E3736","v":0}]
[12,{"$f":"Import!E2537","v":0},null,{"$f":"Import!E2637","v":0},null,{"$f":"Import!E2737","v":"Select Yes/No"},null,{"$f":"Import!E2837","v":"Select"},null,{"$f":"Import!E2937","v":0},null,{"$f":"Import!E3037","v":"Select"},null,{"$f":"Import!E3137","v":0},null,{"$f":"Import!E3237","v":"Select"},null,{"$f":"Import!E3337","v":0},null,{"$f":"Import!E3437","v":0},null,{"$f":"Import!E3537","v":0},null,{"$f":"Import!E3637","v":0},null,{"$f":"Import!E3737","v":0}]
[13,{"$f":"Import!E2538","v":0},null,{"$f":"Import!E2638","v":0},null,{"$f":"Import!E2738","v":"Select Yes/No"},null,{"$f":"Import!E2838","v":"Select"},null,{"$f":"Import!E2938","v":0},null,{"$f":"Import!E3038","v":"Select"},null,{"$f":"Import!E3138","v":0},null,{"$f":"Import!E3238","v":"Select"},null,{"$f":"Import!E3338","v":0},null,{"$f":"Import!E3438","v":0},null,{"$f":"Import!E3538","v":0},null,{"$f":"Import!E3638","v":0},null,{"$f":"Import!E3738","v":0}]
[14,{"$f":"Import!E2539","v":0},null,{"$f":"Import!E2639","v":0},null,{"$f":"Import!E2739","v":"Select Yes/No"},null,{"$f":"Import!E2839","v":"Select"},null,{"$f":"Import!E2939","v":0},null,{"$f":"Import!E3039","v":"Select"},null,{"$f":"Import!E3139","v":0},null,{"$f":"Import!E3239","v":"Select"},null,{"$f":"Import!E3339","v":0},null,{"$f":"Import!E3439","v":0},null,{"$f":"Import!E3539","v":0},null,{"$f":"Import!E3639","v":0},null,{"$f":"Import!E3739","v":0}]
[15,{"$f":"Import!E2540","v":0},null,{"$f":"Import!E2640","v":0},null,{"$f":"Import!E2740","v":"Select Yes/No"},null,{"$f":"Import!E2840","v":"Select"},null,{"$f":"Import!E2940","v":0},null,{"$f":"Import!E3040","v":"Select"},null,{"$f":"Import!E3140","v":0},null,{"$f":"Import!E3240","v":"Select"},null,{"$f":"Import!E3340","v":0},null,{"$f":"Import!E3440","v":0},null,{"$f":"Import!E3540","v":0},null,{"$f":"Import!E3640","v":0},null,{"$f":"Import!E3740","v":0}]
[16,{"$f":"Import!E2541","v":0},null,{"$f":"Import!E2641","v":0},null,{"$f":"Import!E2741","v":"Select Yes/No"},null,{"$f":"Import!E2841","v":"Select"},null,{"$f":"Import!E2941","v":0},null,{"$f":"Import!E3041","v":"Select"},null,{"$f":"Import!E3141","v":0},null,{"$f":"Import!E3241","v":"Select"},null,{"$f":"Import!E3341","v":0},null,{"$f":"Import!E3441","v":0},null,{"$f":"Import!E3541","v":0},null,{"$f":"Import!E3641","v":0},null,{"$f":"Import!E3741","v":0}]
[17,{"$f":"Import!E2542","v":0},null,{"$f":"Import!E2642","v":0},null,{"$f":"Import!E2742","v":"Select Yes/No"},null,{"$f":"Import!E2842","v":"Select"},null,{"$f":"Import!E2942","v":0},null,{"$f":"Import!E3042","v":"Select"},null,{"$f":"Import!E3142","v":0},null,{"$f":"Import!E3242","v":"Select"},null,{"$f":"Import!E3342","v":0},null,{"$f":"Import!E3442","v":0},null,{"$f":"Import!E3542","v":0},null,{"$f":"Import!E3642","v":0},null,{"$f":"Import!E3742","v":0}]
[18,{"$f":"Import!E2543","v":0},null,{"$f":"Import!E2643","v":0},null,{"$f":"Import!E2743","v":"Select Yes/No"},null,{"$f":"Import!E2843","v":"Select"},null,{"$f":"Import!E2943","v":0},null,{"$f":"Import!E3043","v":"Select"},null,{"$f":"Import!E3143","v":0},null,{"$f":"Import!E3243","v":"Select"},null,{"$f":"Import!E3343","v":0},null,{"$f":"Import!E3443","v":0},null,{"$f":"Import!E3543","v":0},null,{"$f":"Import!E3643","v":0},null,{"$f":"Import!E3743","v":0}]
[19,{"$f":"Import!E2544","v":0},null,{"$f":"Import!E2644","v":0},null,{"$f":"Import!E2744","v":"Select Yes/No"},null,{"$f":"Import!E2844","v":"Select"},null,{"$f":"Import!E2944","v":0},null,{"$f":"Import!E3044","v":"Select"},null,{"$f":"Import!E3144","v":0},null,{"$f":"Import!E3244","v":"Select"},null,{"$f":"Import!E3344","v":0},null,{"$f":"Import!E3444","v":0},null,{"$f":"Import!E3544","v":0},null,{"$f":"Import!E3644","v":0},null,{"$f":"Import!E3744","v":0}]
[20,{"$f":"Import!E2545","v":0},null,{"$f":"Import!E2645","v":0},null,{"$f":"Import!E2745","v":"Select Yes/No"},null,{"$f":"Import!E2845","v":"Select"},null,{"$f":"Import!E2945","v":0},null,{"$f":"Import!E3045","v":"Select"},null,{"$f":"Import!E3145","v":0},null,{"$f":"Import!E3245","v":"Select"},null,{"$f":"Import!E3345","v":0},null,{"$f":"Import!E3445","v":0},null,{"$f":"Import!E3545","v":0},null,{"$f":"Import!E3645","v":0},null,{"$f":"Import!E3745","v":0}]
[21,{"$f":"Import!E2546","v":0},null,{"$f":"Import!E2646","v":0},null,{"$f":"Import!E2746","v":"Select Yes/No"},null,{"$f":"Import!E2846","v":"Select"},null,{"$f":"Import!E2946","v":0},null,{"$f":"Import!E3046","v":"Select"},null,{"$f":"Import!E3146","v":0},null,{"$f":"Import!E3246","v":"Select"},null,{"$f":"Import!E3346","v":0},null,{"$f":"Import!E3446","v":0},null,{"$f":"Import!E3546","v":0},null,{"$f":"Import!E3646","v":0},null,{"$f":"Import!E3746","v":0}]
[22,{"$f":"Import!E2547","v":0},null,{"$f":"Import!E2647","v":0},null,{"$f":"Import!E2747","v":"Select Yes/No"},null,{"$f":"Import!E2847","v":"Select"},null,{"$f":"Import!E2947","v":0},null,{"$f":"Import!E3047","v":"Select"},null,{"$f":"Import!E3147","v":0},null,{"$f":"Import!E3247","v":"Select"},null,{"$f":"Import!E3347","v":0},null,{"$f":"Import!E3447","v":0},null,{"$f":"Import!E3547","v":0},null,{"$f":"Import!E3647","v":0},null,{"$f":"Import!E3747","v":0}]
[23,{"$f":"Import!E2548","v":0},null,{"$f":"Import!E2648","v":0},null,{"$f":"Import!E2748","v":"Select Yes/No"},null,{"$f":"Import!E2848","v":"Select"},null,{"$f":"Import!E2948","v":0},null,{"$f":"Import!E3048","v":"Select"},null,{"$f":"Import!E3148","v":0},null,{"$f":"Import!E3248","v":"Select"},null,{"$f":"Import!E3348","v":0},null,{"$f":"Import!E3448","v":0},null,{"$f":"Import!E3548","v":0},null,{"$f":"Import!E3648","v":0},null,{"$f":"Import!E3748","v":0}]
[24,{"$f":"Import!E2549","v":0},null,{"$f":"Import!E2649","v":0},null,{"$f":"Import!E2749","v":"Select Yes/No"},null,{"$f":"Import!E2849","v":"Select"},null,{"$f":"Import!E2949","v":0},null,{"$f":"Import!E3049","v":"Select"},null,{"$f":"Import!E3149","v":0},null,{"$f":"Import!E3249","v":"Select"},null,{"$f":"Import!E3349","v":0},null,{"$f":"Import!E3449","v":0},null,{"$f":"Import!E3549","v":0},null,{"$f":"Import!E3649","v":0},null,{"$f":"Import!E3749","v":0}]
[25,{"$f":"Import!E2550","v":0},null,{"$f":"Import!E2650","v":0},null,{"$f":"Import!E2750","v":"Select Yes/No"},null,{"$f":"Import!E2850","v":"Select"},null,{"$f":"Import!E2950","v":0},null,{"$f":"Import!E3050","v":"Select"},null,{"$f":"Import!E3150","v":0},null,{"$f":"Import!E3250","v":"Select"},null,{"$f":"Import!E3350","v":0},null,{"$f":"Import!E3450","v":0},null,{"$f":"Import!E3550","v":0},null,{"$f":"Import!E3650","v":0},null,{"$f":"Import!E3750","v":0}]
[26,{"$f":"Import!E2551","v":0},null,{"$f":"Import!E2651","v":0},null,{"$f":"Import!E2751","v":"Select Yes/No"},null,{"$f":"Import!E2851","v":"Select"},null,{"$f":"Import!E2951","v":0},null,{"$f":"Import!E3051","v":"Select"},null,{"$f":"Import!E3151","v":0},null,{"$f":"Import!E3251","v":"Select"},null,{"$f":"Import!E3351","v":0},null,{"$f":"Import!E3451","v":0},null,{"$f":"Import!E3551","v":0},null,{"$f":"Import!E3651","v":0},null,{"$f":"Import!E3751","v":0}]
[27,{"$f":"Import!E2552","v":0},null,{"$f":"Import!E2652","v":0},null,{"$f":"Import!E2752","v":"Select Yes/No"},null,{"$f":"Import!E2852","v":"Select"},null,{"$f":"Import!E2952","v":0},null,{"$f":"Import!E3052","v":"Select"},null,{"$f":"Import!E3152","v":0},null,{"$f":"Import!E3252","v":"Select"},null,{"$f":"Import!E3352","v":0},null,{"$f":"Import!E3452","v":0},null,{"$f":"Import!E3552","v":0},null,{"$f":"Import!E3652","v":0},null,{"$f":"Import!E3752","v":0}]
[28,{"$f":"Import!E2553","v":0},null,{"$f":"Import!E2653","v":0},null,{"$f":"Import!E2753","v":"Select Yes/No"},null,{"$f":"Import!E2853","v":"Select"},null,{"$f":"Import!E2953","v":0},null,{"$f":"Import!E3053","v":"Select"},null,{"$f":"Import!E3153","v":0},null,{"$f":"Import!E3253","v":"Select"},null,{"$f":"Import!E3353","v":0},null,{"$f":"Import!E3453","v":0},null,{"$f":"Import!E3553","v":0},null,{"$f":"Import!E3653","v":0},null,{"$f":"Import!E3753","v":0}]
[29,{"$f":"Import!E2554","v":0},null,{"$f":"Import!E2654","v":0},null,{"$f":"Import!E2754","v":"Select Yes/No"},null,{"$f":"Import!E2854","v":"Select"},null,{"$f":"Import!E2954","v":0},null,{"$f":"Import!E3054","v":"Select"},null,{"$f":"Import!E3154","v":0},null,{"$f":"Import!E3254","v":"Select"},null,{"$f":"Import!E3354","v":0},null,{"$f":"Import!E3454","v":0},null,{"$f":"Import!E3554","v":0},null,{"$f":"Import!E3654","v":0},null,{"$f":"Import!E3754","v":0}]
[30,{"$f":"Import!E2555","v":0},null,{"$f":"Import!E2655","v":0},null,{"$f":"Import!E2755","v":"Select Yes/No"},null,{"$f":"Import!E2855","v":"Select"},null,{"$f":"Import!E2955","v":0},null,{"$f":"Import!E3055","v":"Select"},null,{"$f":"Import!E3155","v":0},null,{"$f":"Import!E3255","v":"Select"},null,{"$f":"Import!E3355","v":0},null,{"$f":"Import!E3455","v":0},null,{"$f":"Import!E3555","v":0},null,{"$f":"Import!E3655","v":0},null,{"$f":"Import!E3755","v":0}]
[31,{"$f":"Import!E2556","v":0},null,{"$f":"Import!E2656","v":0},null,{"$f":"Import!E2756","v":"Select Yes/No"},null,{"$f":"Import!E2856","v":"Select"},null,{"$f":"Import!E2956","v":0},null,{"$f":"Import!E3056","v":"Select"},null,{"$f":"Import!E3156","v":0},null,{"$f":"Import!E3256","v":"Select"},null,{"$f":"Import!E3356","v":0},null,{"$f":"Import!E3456","v":0},null,{"$f":"Import!E3556","v":0},null,{"$f":"Import!E3656","v":0},null,{"$f":"Import!E3756","v":0}]
[32,{"$f":"Import!E2557","v":0},null,{"$f":"Import!E2657","v":0},null,{"$f":"Import!E2757","v":"Select Yes/No"},null,{"$f":"Import!E2857","v":"Select"},null,{"$f":"Import!E2957","v":0},null,{"$f":"Import!E3057","v":"Select"},null,{"$f":"Import!E3157","v":0},null,{"$f":"Import!E3257","v":"Select"},null,{"$f":"Import!E3357","v":0},null,{"$f":"Import!E3457","v":0},null,{"$f":"Import!E3557","v":0},null,{"$f":"Import!E3657","v":0},null,{"$f":"Import!E3757","v":0}]
[33,{"$f":"Import!E2558","v":0},null,{"$f":"Import!E2658","v":0},null,{"$f":"Import!E2758","v":"Select Yes/No"},null,{"$f":"Import!E2858","v":"Select"},null,{"$f":"Import!E2958","v":0},null,{"$f":"Import!E3058","v":"Select"},null,{"$f":"Import!E3158","v":0},null,{"$f":"Import!E3258","v":"Select"},null,{"$f":"Import!E3358","v":0},null,{"$f":"Import!E3458","v":0},null,{"$f":"Import!E3558","v":0},null,{"$f":"Import!E3658","v":0},null,{"$f":"Import!E3758","v":0}]
[34,{"$f":"Import!E2559","v":0},null,{"$f":"Import!E2659","v":0},null,{"$f":"Import!E2759","v":"Select Yes/No"},null,{"$f":"Import!E2859","v":"Select"},null,{"$f":"Import!E2959","v":0},null,{"$f":"Import!E3059","v":"Select"},null,{"$f":"Import!E3159","v":0},null,{"$f":"Import!E3259","v":"Select"},null,{"$f":"Import!E3359","v":0},null,{"$f":"Import!E3459","v":0},null,{"$f":"Import!E3559","v":0},null,{"$f":"Import!E3659","v":0},null,{"$f":"Import!E3759","v":0}]
[35,{"$f":"Import!E2560","v":0},null,{"$f":"Import!E2660","v":0},null,{"$f":"Import!E2760","v":"Select Yes/No"},null,{"$f":"Import!E2860","v":"Select"},null,{"$f":"Import!E2960","v":0},null,{"$f":"Import!E3060","v":"Select"},null,{"$f":"Import!E3160","v":0},null,{"$f":"Import!E3260","v":"Select"},null,{"$f":"Import!E3360","v":0},null,{"$f":"Import!E3460","v":0},null,{"$f":"Import!E3560","v":0},null,{"$f":"Import!E3660","v":0},null,{"$f":"Import!E3760","v":0}]
[36,{"$f":"Import!E2561","v":0},null,{"$f":"Import!E2661","v":0},null,{"$f":"Import!E2761","v":"Select Yes/No"},null,{"$f":"Import!E2861","v":"Select"},null,{"$f":"Import!E2961","v":0},null,{"$f":"Import!E3061","v":"Select"},null,{"$f":"Import!E3161","v":0},null,{"$f":"Import!E3261","v":"Select"},null,{"$f":"Import!E3361","v":0},null,{"$f":"Import!E3461","v":0},null,{"$f":"Import!E3561","v":0},null,{"$f":"Import!E3661","v":0},null,{"$f":"Import!E3761","v":0}]
[37,{"$f":"Import!E2562","v":0},null,{"$f":"Import!E2662","v":0},null,{"$f":"Import!E2762","v":"Select Yes/No"},null,{"$f":"Import!E2862","v":"Select"},null,{"$f":"Import!E2962","v":0},null,{"$f":"Import!E3062","v":"Select"},null,{"$f":"Import!E3162","v":0},null,{"$f":"Import!E3262","v":"Select"},null,{"$f":"Import!E3362","v":0},null,{"$f":"Import!E3462","v":0},null,{"$f":"Import!E3562","v":0},null,{"$f":"Import!E3662","v":0},null,{"$f":"Import!E3762","v":0}]
[38,{"$f":"Import!E2563","v":0},null,{"$f":"Import!E2663","v":0},null,{"$f":"Import!E2763","v":"Select Yes/No"},null,{"$f":"Import!E2863","v":"Select"},null,{"$f":"Import!E2963","v":0},null,{"$f":"Import!E3063","v":"Select"},null,{"$f":"Import!E3163","v":0},null,{"$f":"Import!E3263","v":"Select"},null,{"$f":"Import!E3363","v":0},null,{"$f":"Import!E3463","v":0},null,{"$f":"Import!E3563","v":0},null,{"$f":"Import!E3663","v":0},null,{"$f":"Import!E3763","v":0}]
[39,{"$f":"Import!E2564","v":0},null,{"$f":"Import!E2664","v":0},null,{"$f":"Import!E2764","v":"Select Yes/No"},null,{"$f":"Import!E2864","v":"Select"},null,{"$f":"Import!E2964","v":0},null,{"$f":"Import!E3064","v":"Select"},null,{"$f":"Import!E3164","v":0},null,{"$f":"Import!E3264","v":"Select"},null,{"$f":"Import!E3364","v":0},null,{"$f":"Import!E3464","v":0},null,{"$f":"Import!E3564","v":0},null,{"$f":"Import!E3664","v":0},null,{"$f":"Import!E3764","v":0}]
[40,{"$f":"Import!E2565","v":0},null,{"$f":"Import!E2665","v":0},null,{"$f":"Import!E2765","v":"Select Yes/No"},null,{"$f":"Import!E2865","v":"Select"},null,{"$f":"Import!E2965","v":0},null,{"$f":"Import!E3065","v":"Select"},null,{"$f":"Import!E3165","v":0},null,{"$f":"Import!E3265","v":"Select"},null,{"$f":"Import!E3365","v":0},null,{"$f":"Import!E3465","v":0},null,{"$f":"Import!E3565","v":0},null,{"$f":"Import!E3665","v":0},null,{"$f":"Import!E3765","v":0}]
[41,{"$f":"Import!E2566","v":0},null,{"$f":"Import!E2666","v":0},null,{"$f":"Import!E2766","v":"Select Yes/No"},null,{"$f":"Import!E2866","v":"Select"},null,{"$f":"Import!E2966","v":0},null,{"$f":"Import!E3066","v":"Select"},null,{"$f":"Import!E3166","v":0},null,{"$f":"Import!E3266","v":"Select"},null,{"$f":"Import!E3366","v":0},null,{"$f":"Import!E3466","v":0},null,{"$f":"Import!E3566","v":0},null,{"$f":"Import!E3666","v":0},null,{"$f":"Import!E3766","v":0}]
[42,{"$f":"Import!E2567","v":0},null,{"$f":"Import!E2667","v":0},null,{"$f":"Import!E2767","v":"Select Yes/No"},null,{"$f":"Import!E2867","v":"Select"},null,{"$f":"Import!E2967","v":0},null,{"$f":"Import!E3067","v":"Select"},null,{"$f":"Import!E3167","v":0},null,{"$f":"Import!E3267","v":"Select"},null,{"$f":"Import!E3367","v":0},null,{"$f":"Import!E3467","v":0},null,{"$f":"Import!E3567","v":0},null,{"$f":"Import!E3667","v":0},null,{"$f":"Import!E3767","v":0}]
[43,{"$f":"Import!E2568","v":0},null,{"$f":"Import!E2668","v":0},null,{"$f":"Import!E2768","v":"Select Yes/No"},null,{"$f":"Import!E2868","v":"Select"},null,{"$f":"Import!E2968","v":0},null,{"$f":"Import!E3068","v":"Select"},null,{"$f":"Import!E3168","v":0},null,{"$f":"Import!E3268","v":"Select"},null,{"$f":"Import!E3368","v":0},null,{"$f":"Import!E3468","v":0},null,{"$f":"Import!E3568","v":0},null,{"$f":"Import!E3668","v":0},null,{"$f":"Import!E3768","v":0}]
[44,{"$f":"Import!E2569","v":0},null,{"$f":"Import!E2669","v":0},null,{"$f":"Import!E2769","v":"Select Yes/No"},null,{"$f":"Import!E2869","v":"Select"},null,{"$f":"Import!E2969","v":0},null,{"$f":"Import!E3069","v":"Select"},null,{"$f":"Import!E3169","v":0},null,{"$f":"Import!E3269","v":"Select"},null,{"$f":"Import!E3369","v":0},null,{"$f":"Import!E3469","v":0},null,{"$f":"Import!E3569","v":0},null,{"$f":"Import!E3669","v":0},null,{"$f":"Import!E3769","v":0}]
[45,{"$f":"Import!E2570","v":0},null,{"$f":"Import!E2670","v":0},null,{"$f":"Import!E2770","v":"Select Yes/No"},null,{"$f":"Import!E2870","v":"Select"},null,{"$f":"Import!E2970","v":0},null,{"$f":"Import!E3070","v":"Select"},null,{"$f":"Import!E3170","v":0},null,{"$f":"Import!E3270","v":"Select"},null,{"$f":"Import!E3370","v":0},null,{"$f":"Import!E3470","v":0},null,{"$f":"Import!E3570","v":0},null,{"$f":"Import!E3670","v":0},null,{"$f":"Import!E3770","v":0}]
[46,{"$f":"Import!E2571","v":0},null,{"$f":"Import!E2671","v":0},null,{"$f":"Import!E2771","v":"Select Yes/No"},null,{"$f":"Import!E2871","v":"Select"},null,{"$f":"Import!E2971","v":0},null,{"$f":"Import!E3071","v":"Select"},null,{"$f":"Import!E3171","v":0},null,{"$f":"Import!E3271","v":"Select"},null,{"$f":"Import!E3371","v":0},null,{"$f":"Import!E3471","v":0},null,{"$f":"Import!E3571","v":0},null,{"$f":"Import!E3671","v":0},null,{"$f":"Import!E3771","v":0}]
[47,{"$f":"Import!E2572","v":0},null,{"$f":"Import!E2672","v":0},null,{"$f":"Import!E2772","v":"Select Yes/No"},null,{"$f":"Import!E2872","v":"Select"},null,{"$f":"Import!E2972","v":0},null,{"$f":"Import!E3072","v":"Select"},null,{"$f":"Import!E3172","v":0},null,{"$f":"Import!E3272","v":"Select"},null,{"$f":"Import!E3372","v":0},null,{"$f":"Import!E3472","v":0},null,{"$f":"Import!E3572","v":0},null,{"$f":"Import!E3672","v":0},null,{"$f":"Import!E3772","v":0}]
[48,{"$f":"Import!E2573","v":0},null,{"$f":"Import!E2673","v":0},null,{"$f":"Import!E2773","v":"Select Yes/No"},null,{"$f":"Import!E2873","v":"Select"},null,{"$f":"Import!E2973","v":0},null,{"$f":"Import!E3073","v":"Select"},null,{"$f":"Import!E3173","v":0},null,{"$f":"Import!E3273","v":"Select"},null,{"$f":"Import!E3373","v":0},null,{"$f":"Import!E3473","v":0},null,{"$f":"Import!E3573","v":0},null,{"$f":"Import!E3673","v":0},null,{"$f":"Import!E3773","v":0}]
[49,{"$f":"Import!E2574","v":0},null,{"$f":"Import!E2674","v":0},null,{"$f":"Import!E2774","v":"Select Yes/No"},null,{"$f":"Import!E2874","v":"Select"},null,{"$f":"Import!E2974","v":0},null,{"$f":"Import!E3074","v":"Select"},null,{"$f":"Import!E3174","v":0},null,{"$f":"Import!E3274","v":"Select"},null,{"$f":"Import!E3374","v":0},null,{"$f":"Import!E3474","v":0},null,{"$f":"Import!E3574","v":0},null,{"$f":"Import!E3674","v":0},null,{"$f":"Import!E3774","v":0}]
[50,{"$f":"Import!E2575","v":0},null,{"$f":"Import!E2675","v":0},null,{"$f":"Import!E2775","v":"Select Yes/No"},null,{"$f":"Import!E2875","v":"Select"},null,{"$f":"Import!E2975","v":0},null,{"$f":"Import!E3075","v":"Select"},null,{"$f":"Import!E3175","v":0},null,{"$f":"Import!E3275","v":"Select"},null,{"$f":"Import!E3375","v":0},null,{"$f":"Import!E3475","v":0},null,{"$f":"Import!E3575","v":0},null,{"$f":"Import!E3675","v":0},null,{"$f":"Import!E3775","v":0}]
[51,{"$f":"Import!E2576","v":0},null,{"$f":"Import!E2676","v":0},null,{"$f":"Import!E2776","v":"Select Yes/No"},null,{"$f":"Import!E2876","v":"Select"},null,{"$f":"Import!E2976","v":0},null,{"$f":"Import!E3076","v":"Select"},null,{"$f":"Import!E3176","v":0},null,{"$f":"Import!E3276","v":"Select"},null,{"$f":"Import!E3376","v":0},null,{"$f":"Import!E3476","v":0},null,{"$f":"Import!E3576","v":0},null,{"$f":"Import!E3676","v":0},null,{"$f":"Import!E3776","v":0}]
[52,{"$f":"Import!E2577","v":0},null,{"$f":"Import!E2677","v":0},null,{"$f":"Import!E2777","v":"Select Yes/No"},null,{"$f":"Import!E2877","v":"Select"},null,{"$f":"Import!E2977","v":0},null,{"$f":"Import!E3077","v":"Select"},null,{"$f":"Import!E3177","v":0},null,{"$f":"Import!E3277","v":"Select"},null,{"$f":"Import!E3377","v":0},null,{"$f":"Import!E3477","v":0},null,{"$f":"Import!E3577","v":0},null,{"$f":"Import!E3677","v":0},null,{"$f":"Import!E3777","v":0}]
[53,{"$f":"Import!E2578","v":0},null,{"$f":"Import!E2678","v":0},null,{"$f":"Import!E2778","v":"Select Yes/No"},null,{"$f":"Import!E2878","v":"Select"},null,{"$f":"Import!E2978","v":0},null,{"$f":"Import!E3078","v":"Select"},null,{"$f":"Import!E3178","v":0},null,{"$f":"Import!E3278","v":"Select"},null,{"$f":"Import!E3378","v":0},null,{"$f":"Import!E3478","v":0},null,{"$f":"Import!E3578","v":0},null,{"$f":"Import!E3678","v":0},null,{"$f":"Import!E3778","v":0}]
[54,{"$f":"Import!E2579","v":0},null,{"$f":"Import!E2679","v":0},null,{"$f":"Import!E2779","v":"Select Yes/No"},null,{"$f":"Import!E2879","v":"Select"},null,{"$f":"Import!E2979","v":0},null,{"$f":"Import!E3079","v":"Select"},null,{"$f":"Import!E3179","v":0},null,{"$f":"Import!E3279","v":"Select"},null,{"$f":"Import!E3379","v":0},null,{"$f":"Import!E3479","v":0},null,{"$f":"Import!E3579","v":0},null,{"$f":"Import!E3679","v":0},null,{"$f":"Import!E3779","v":0}]
[55,{"$f":"Import!E2580","v":0},null,{"$f":"Import!E2680","v":0},null,{"$f":"Import!E2780","v":"Select Yes/No"},null,{"$f":"Import!E2880","v":"Select"},null,{"$f":"Import!E2980","v":0},null,{"$f":"Import!E3080","v":"Select"},null,{"$f":"Import!E3180","v":0},null,{"$f":"Import!E3280","v":"Select"},null,{"$f":"Import!E3380","v":0},null,{"$f":"Import!E3480","v":0},null,{"$f":"Import!E3580","v":0},null,{"$f":"Import!E3680","v":0},null,{"$f":"Import!E3780","v":0}]
[56,{"$f":"Import!E2581","v":0},null,{"$f":"Import!E2681","v":0},null,{"$f":"Import!E2781","v":"Select Yes/No"},null,{"$f":"Import!E2881","v":"Select"},null,{"$f":"Import!E2981","v":0},null,{"$f":"Import!E3081","v":"Select"},null,{"$f":"Import!E3181","v":0},null,{"$f":"Import!E3281","v":"Select"},null,{"$f":"Import!E3381","v":0},null,{"$f":"Import!E3481","v":0},null,{"$f":"Import!E3581","v":0},null,{"$f":"Import!E3681","v":0},null,{"$f":"Import!E3781","v":0}]
[57,{"$f":"Import!E2582","v":0},null,{"$f":"Import!E2682","v":0},null,{"$f":"Import!E2782","v":"Select Yes/No"},null,{"$f":"Import!E2882","v":"Select"},null,{"$f":"Import!E2982","v":0},null,{"$f":"Import!E3082","v":"Select"},null,{"$f":"Import!E3182","v":0},null,{"$f":"Import!E3282","v":"Select"},null,{"$f":"Import!E3382","v":0},null,{"$f":"Import!E3482","v":0},null,{"$f":"Import!E3582","v":0},null,{"$f":"Import!E3682","v":0},null,{"$f":"Import!E3782","v":0}]
[58,{"$f":"Import!E2583","v":0},null,{"$f":"Import!E2683","v":0},null,{"$f":"Import!E2783","v":"Select Yes/No"},null,{"$f":"Import!E2883","v":"Select"},null,{"$f":"Import!E2983","v":0},null,{"$f":"Import!E3083","v":"Select"},null,{"$f":"Import!E3183","v":0},null,{"$f":"Import!E3283","v":"Select"},null,{"$f":"Import!E3383","v":0},null,{"$f":"Import!E3483","v":0},null,{"$f":"Import!E3583","v":0},null,{"$f":"Import!E3683","v":0},null,{"$f":"Import!E3783","v":0}]
[59,{"$f":"Import!E2584","v":0},null,{"$f":"Import!E2684","v":0},null,{"$f":"Import!E2784","v":"Select Yes/No"},null,{"$f":"Import!E2884","v":"Select"},null,{"$f":"Import!E2984","v":0},null,{"$f":"Import!E3084","v":"Select"},null,{"$f":"Import!E3184","v":0},null,{"$f":"Import!E3284","v":"Select"},null,{"$f":"Import!E3384","v":0},null,{"$f":"Import!E3484","v":0},null,{"$f":"Import!E3584","v":0},null,{"$f":"Import!E3684","v":0},null,{"$f":"Import!E3784","v":0}]
[60,{"$f":"Import!E2585","v":0},null,{"$f":"Import!E2685","v":0},null,{"$f":"Import!E2785","v":"Select Yes/No"},null,{"$f":"Import!E2885","v":"Select"},null,{"$f":"Import!E2985","v":0},null,{"$f":"Import!E3085","v":"Select"},null,{"$f":"Import!E3185","v":0},null,{"$f":"Import!E3285","v":"Select"},null,{"$f":"Import!E3385","v":0},null,{"$f":"Import!E3485","v":0},null,{"$f":"Import!E3585","v":0},null,{"$f":"Import!E3685","v":0},null,{"$f":"Import!E3785","v":0}]
[61,{"$f":"Import!E2586","v":0},null,{"$f":"Import!E2686","v":0},null,{"$f":"Import!E2786","v":"Select Yes/No"},null,{"$f":"Import!E2886","v":"Select"},null,{"$f":"Import!E2986","v":0},null,{"$f":"Import!E3086","v":"Select"},null,{"$f":"Import!E3186","v":0},null,{"$f":"Import!E3286","v":"Select"},null,{"$f":"Import!E3386","v":0},null,{"$f":"Import!E3486","v":0},null,{"$f":"Import!E3586","v":0},null,{"$f":"Import!E3686","v":0},null,{"$f":"Import!E3786","v":0}]
[62,{"$f":"Import!E2587","v":0},null,{"$f":"Import!E2687","v":0},null,{"$f":"Import!E2787","v":"Select Yes/No"},null,{"$f":"Import!E2887","v":"Select"},null,{"$f":"Import!E2987","v":0},null,{"$f":"Import!E3087","v":"Select"},null,{"$f":"Import!E3187","v":0},null,{"$f":"Import!E3287","v":"Select"},null,{"$f":"Import!E3387","v":0},null,{"$f":"Import!E3487","v":0},null,{"$f":"Import!E3587","v":0},null,{"$f":"Import!E3687","v":0},null,{"$f":"Import!E3787","v":0}]
[63,{"$f":"Import!E2588","v":0},null,{"$f":"Import!E2688","v":0},null,{"$f":"Import!E2788","v":"Select Yes/No"},null,{"$f":"Import!E2888","v":"Select"},null,{"$f":"Import!E2988","v":0},null,{"$f":"Import!E3088","v":"Select"},null,{"$f":"Import!E3188","v":0},null,{"$f":"Import!E3288","v":"Select"},null,{"$f":"Import!E3388","v":0},null,{"$f":"Import!E3488","v":0},null,{"$f":"Import!E3588","v":0},null,{"$f":"Import!E3688","v":0},null,{"$f":"Import!E3788","v":0}]
[64,{"$f":"Import!E2589","v":0},null,{"$f":"Import!E2689","v":0},null,{"$f":"Import!E2789","v":"Select Yes/No"},null,{"$f":"Import!E2889","v":"Select"},null,{"$f":"Import!E2989","v":0},null,{"$f":"Import!E3089","v":"Select"},null,{"$f":"Import!E3189","v":0},null,{"$f":"Import!E3289","v":"Select"},null,{"$f":"Import!E3389","v":0},null,{"$f":"Import!E3489","v":0},null,{"$f":"Import!E3589","v":0},null,{"$f":"Import!E3689","v":0},null,{"$f":"Import!E3789","v":0}]
[65,{"$f":"Import!E2590","v":0},null,{"$f":"Import!E2690","v":0},null,{"$f":"Import!E2790","v":"Select Yes/No"},null,{"$f":"Import!E2890","v":"Select"},null,{"$f":"Import!E2990","v":0},null,{"$f":"Import!E3090","v":"Select"},null,{"$f":"Import!E3190","v":0},null,{"$f":"Import!E3290","v":"Select"},null,{"$f":"Import!E3390","v":0},null,{"$f":"Import!E3490","v":0},null,{"$f":"Import!E3590","v":0},null,{"$f":"Import!E3690","v":0},null,{"$f":"Import!E3790","v":0}]
[66,{"$f":"Import!E2591","v":0},null,{"$f":"Import!E2691","v":0},null,{"$f":"Import!E2791","v":"Select Yes/No"},null,{"$f":"Import!E2891","v":"Select"},null,{"$f":"Import!E2991","v":0},null,{"$f":"Import!E3091","v":"Select"},null,{"$f":"Import!E3191","v":0},null,{"$f":"Import!E3291","v":"Select"},null,{"$f":"Import!E3391","v":0},null,{"$f":"Import!E3491","v":0},null,{"$f":"Import!E3591","v":0},null,{"$f":"Import!E3691","v":0},null,{"$f":"Import!E3791","v":0}]
[67,{"$f":"Import!E2592","v":0},null,{"$f":"Import!E2692","v":0},null,{"$f":"Import!E2792","v":"Select Yes/No"},null,{"$f":"Import!E2892","v":"Select"},null,{"$f":"Import!E2992","v":0},null,{"$f":"Import!E3092","v":"Select"},null,{"$f":"Import!E3192","v":0},null,{"$f":"Import!E3292","v":"Select"},null,{"$f":"Import!E3392","v":0},null,{"$f":"Import!E3492","v":0},null,{"$f":"Import!E3592","v":0},null,{"$f":"Import!E3692","v":0},null,{"$f":"Import!E3792","v":0}]
[68,{"$f":"Import!E2593","v":0},null,{"$f":"Import!E2693","v":0},null,{"$f":"Import!E2793","v":"Select Yes/No"},null,{"$f":"Import!E2893","v":"Select"},null,{"$f":"Import!E2993","v":0},null,{"$f":"Import!E3093","v":"Select"},null,{"$f":"Import!E3193","v":0},null,{"$f":"Import!E3293","v":"Select"},null,{"$f":"Import!E3393","v":0},null,{"$f":"Import!E3493","v":0},null,{"$f":"Import!E3593","v":0},null,{"$f":"Import!E3693","v":0},null,{"$f":"Import!E3793","v":0}]
[69,{"$f":"Import!E2594","v":0},null,{"$f":"Import!E2694","v":0},null,{"$f":"Import!E2794","v":"Select Yes/No"},null,{"$f":"Import!E2894","v":"Select"},null,{"$f":"Import!E2994","v":0},null,{"$f":"Import!E3094","v":"Select"},null,{"$f":"Import!E3194","v":0},null,{"$f":"Import!E3294","v":"Select"},null,{"$f":"Import!E3394","v":0},null,{"$f":"Import!E3494","v":0},null,{"$f":"Import!E3594","v":0},null,{"$f":"Import!E3694","v":0},null,{"$f":"Import!E3794","v":0}]
[70,{"$f":"Import!E2595","v":0},null,{"$f":"Import!E2695","v":0},null,{"$f":"Import!E2795","v":"Select Yes/No"},null,{"$f":"Import!E2895","v":"Select"},null,{"$f":"Import!E2995","v":0},null,{"$f":"Import!E3095","v":"Select"},null,{"$f":"Import!E3195","v":0},null,{"$f":"Import!E3295","v":"Select"},null,{"$f":"Import!E3395","v":0},null,{"$f":"Import!E3495","v":0},null,{"$f":"Import!E3595","v":0},null,{"$f":"Import!E3695","v":0},null,{"$f":"Import!E3795","v":0}]
[71,{"$f":"Import!E2596","v":0},null,{"$f":"Import!E2696","v":0},null,{"$f":"Import!E2796","v":"Select Yes/No"},null,{"$f":"Import!E2896","v":"Select"},null,{"$f":"Import!E2996","v":0},null,{"$f":"Import!E3096","v":"Select"},null,{"$f":"Import!E3196","v":0},null,{"$f":"Import!E3296","v":"Select"},null,{"$f":"Import!E3396","v":0},null,{"$f":"Import!E3496","v":0},null,{"$f":"Import!E3596","v":0},null,{"$f":"Import!E3696","v":0},null,{"$f":"Import!E3796","v":0}]
[72,{"$f":"Import!E2597","v":0},null,{"$f":"Import!E2697","v":0},null,{"$f":"Import!E2797","v":"Select Yes/No"},null,{"$f":"Import!E2897","v":"Select"},null,{"$f":"Import!E2997","v":0},null,{"$f":"Import!E3097","v":"Select"},null,{"$f":"Import!E3197","v":0},null,{"$f":"Import!E3297","v":"Select"},null,{"$f":"Import!E3397","v":0},null,{"$f":"Import!E3497","v":0},null,{"$f":"Import!E3597","v":0},null,{"$f":"Import!E3697","v":0},null,{"$f":"Import!E3797","v":0}]
[73,{"$f":"Import!E2598","v":0},null,{"$f":"Import!E2698","v":0},null,{"$f":"Import!E2798","v":"Select Yes/No"},null,{"$f":"Import!E2898","v":"Select"},null,{"$f":"Import!E2998","v":0},null,{"$f":"Import!E3098","v":"Select"},null,{"$f":"Import!E3198","v":0},null,{"$f":"Import!E3298","v":"Select"},null,{"$f":"Import!E3398","v":0},null,{"$f":"Import!E3498","v":0},null,{"$f":"Import!E3598","v":0},null,{"$f":"Import!E3698","v":0},null,{"$f":"Import!E3798","v":0}]
[74,{"$f":"Import!E2599","v":0},null,{"$f":"Import!E2699","v":0},null,{"$f":"Import!E2799","v":"Select Yes/No"},null,{"$f":"Import!E2899","v":"Select"},null,{"$f":"Import!E2999","v":0},null,{"$f":"Import!E3099","v":"Select"},null,{"$f":"Import!E3199","v":0},null,{"$f":"Import!E3299","v":"Select"},null,{"$f":"Import!E3399","v":0},null,{"$f":"Import!E3499","v":0},null,{"$f":"Import!E3599","v":0},null,{"$f":"Import!E3699","v":0},null,{"$f":"Import!E3799","v":0}]
[75,{"$f":"Import!E2600","v":0},null,{"$f":"Import!E2700","v":0},null,{"$f":"Import!E2800","v":"Select Yes/No"},null,{"$f":"Import!E2900","v":"Select"},null,{"$f":"Import!E3000","v":0},null,{"$f":"Import!E3100","v":"Select"},null,{"$f":"Import!E3200","v":0},null,{"$f":"Import!E3300","v":"Select"},null,{"$f":"Import!E3400","v":0},null,{"$f":"Import!E3500","v":0},null,{"$f":"Import!E3600","v":0},null,{"$f":"Import!E3700","v":0},null,{"$f":"Import!E3800","v":0}]
[76,{"$f":"Import!E2601","v":0},null,{"$f":"Import!E2701","v":0},null,{"$f":"Import!E2801","v":"Select Yes/No"},null,{"$f":"Import!E2901","v":"Select"},null,{"$f":"Import!E3001","v":0},null,{"$f":"Import!E3101","v":"Select"},null,{"$f":"Import!E3201","v":0},null,{"$f":"Import!E3301","v":"Select"},null,{"$f":"Import!E3401","v":0},null,{"$f":"Import!E3501","v":0},null,{"$f":"Import!E3601","v":0},null,{"$f":"Import!E3701","v":0},null,{"$f":"Import!E3801","v":0}]
[77,{"$f":"Import!E2602","v":0},null,{"$f":"Import!E2702","v":0},null,{"$f":"Import!E2802","v":"Select Yes/No"},null,{"$f":"Import!E2902","v":"Select"},null,{"$f":"Import!E3002","v":0},null,{"$f":"Import!E3102","v":"Select"},null,{"$f":"Import!E3202","v":0},null,{"$f":"Import!E3302","v":"Select"},null,{"$f":"Import!E3402","v":0},null,{"$f":"Import!E3502","v":0},null,{"$f":"Import!E3602","v":0},null,{"$f":"Import!E3702","v":0},null,{"$f":"Import!E3802","v":0}]
[78,{"$f":"Import!E2603","v":0},null,{"$f":"Import!E2703","v":0},null,{"$f":"Import!E2803","v":"Select Yes/No"},null,{"$f":"Import!E2903","v":"Select"},null,{"$f":"Import!E3003","v":0},null,{"$f":"Import!E3103","v":"Select"},null,{"$f":"Import!E3203","v":0},null,{"$f":"Import!E3303","v":"Select"},null,{"$f":"Import!E3403","v":0},null,{"$f":"Import!E3503","v":0},null,{"$f":"Import!E3603","v":0},null,{"$f":"Import!E3703","v":0},null,{"$f":"Import!E3803","v":0}]
[79,{"$f":"Import!E2604","v":0},null,{"$f":"Import!E2704","v":0},null,{"$f":"Import!E2804","v":"Select Yes/No"},null,{"$f":"Import!E2904","v":"Select"},null,{"$f":"Import!E3004","v":0},null,{"$f":"Import!E3104","v":"Select"},null,{"$f":"Import!E3204","v":0},null,{"$f":"Import!E3304","v":"Select"},null,{"$f":"Import!E3404","v":0},null,{"$f":"Import!E3504","v":0},null,{"$f":"Import!E3604","v":0},null,{"$f":"Import!E3704","v":0},null,{"$f":"Import!E3804","v":0}]
[80,{"$f":"Import!E2605","v":0},null,{"$f":"Import!E2705","v":0},null,{"$f":"Import!E2805","v":"Select Yes/No"},null,{"$f":"Import!E2905","v":"Select"},null,{"$f":"Import!E3005","v":0},null,{"$f":"Import!E3105","v":"Select"},null,{"$f":"Import!E3205","v":0},null,{"$f":"Import!E3305","v":"Select"},null,{"$f":"Import!E3405","v":0},null,{"$f":"Import!E3505","v":0},null,{"$f":"Import!E3605","v":0},null,{"$f":"Import!E3705","v":0},null,{"$f":"Import!E3805","v":0}]
[81,{"$f":"Import!E2606","v":0},null,{"$f":"Import!E2706","v":0},null,{"$f":"Import!E2806","v":"Select Yes/No"},null,{"$f":"Import!E2906","v":"Select"},null,{"$f":"Import!E3006","v":0},null,{"$f":"Import!E3106","v":"Select"},null,{"$f":"Import!E3206","v":0},null,{"$f":"Import!E3306","v":"Select"},null,{"$f":"Import!E3406","v":0},null,{"$f":"Import!E3506","v":0},null,{"$f":"Import!E3606","v":0},null,{"$f":"Import!E3706","v":0},null,{"$f":"Import!E3806","v":0}]
[82,{"$f":"Import!E2607","v":0},null,{"$f":"Import!E2707","v":0},null,{"$f":"Import!E2807","v":"Select Yes/No"},null,{"$f":"Import!E2907","v":"Select"},null,{"$f":"Import!E3007","v":0},null,{"$f":"Import!E3107","v":"Select"},null,{"$f":"Import!E3207","v":0},null,{"$f":"Import!E3307","v":"Select"},null,{"$f":"Import!E3407","v":0},null,{"$f":"Import!E3507","v":0},null,{"$f":"Import!E3607","v":0},null,{"$f":"Import!E3707","v":0},null,{"$f":"Import!E3807","v":0}]
[83,{"$f":"Import!E2608","v":0},null,{"$f":"Import!E2708","v":0},null,{"$f":"Import!E2808","v":"Select Yes/No"},null,{"$f":"Import!E2908","v":"Select"},null,{"$f":"Import!E3008","v":0},null,{"$f":"Import!E3108","v":"Select"},null,{"$f":"Import!E3208","v":0},null,{"$f":"Import!E3308","v":"Select"},null,{"$f":"Import!E3408","v":0},null,{"$f":"Import!E3508","v":0},null,{"$f":"Import!E3608","v":0},null,{"$f":"Import!E3708","v":0},null,{"$f":"Import!E3808","v":0}]
[84,{"$f":"Import!E2609","v":0},null,{"$f":"Import!E2709","v":0},null,{"$f":"Import!E2809","v":"Select Yes/No"},null,{"$f":"Import!E2909","v":"Select"},null,{"$f":"Import!E3009","v":0},null,{"$f":"Import!E3109","v":"Select"},null,{"$f":"Import!E3209","v":0},null,{"$f":"Import!E3309","v":"Select"},null,{"$f":"Import!E3409","v":0},null,{"$f":"Import!E3509","v":0},null,{"$f":"Import!E3609","v":0},null,{"$f":"Import!E3709","v":0},null,{"$f":"Import!E3809","v":0}]
[85,{"$f":"Import!E2610","v":0},null,{"$f":"Import!E2710","v":0},null,{"$f":"Import!E2810","v":"Select Yes/No"},null,{"$f":"Import!E2910","v":"Select"},null,{"$f":"Import!E3010","v":0},null,{"$f":"Import!E3110","v":"Select"},null,{"$f":"Import!E3210","v":0},null,{"$f":"Import!E3310","v":"Select"},null,{"$f":"Import!E3410","v":0},null,{"$f":"Import!E3510","v":0},null,{"$f":"Import!E3610","v":0},null,{"$f":"Import!E3710","v":0},null,{"$f":"Import!E3810","v":0}]
[86,{"$f":"Import!E2611","v":0},null,{"$f":"Import!E2711","v":0},null,{"$f":"Import!E2811","v":"Select Yes/No"},null,{"$f":"Import!E2911","v":"Select"},null,{"$f":"Import!E3011","v":0},null,{"$f":"Import!E3111","v":"Select"},null,{"$f":"Import!E3211","v":0},null,{"$f":"Import!E3311","v":"Select"},null,{"$f":"Import!E3411","v":0},null,{"$f":"Import!E3511","v":0},null,{"$f":"Import!E3611","v":0},null,{"$f":"Import!E3711","v":0},null,{"$f":"Import!E3811","v":0}]
[87,{"$f":"Import!E2612","v":0},null,{"$f":"Import!E2712","v":0},null,{"$f":"Import!E2812","v":"Select Yes/No"},null,{"$f":"Import!E2912","v":"Select"},null,{"$f":"Import!E3012","v":0},null,{"$f":"Import!E3112","v":"Select"},null,{"$f":"Import!E3212","v":0},null,{"$f":"Import!E3312","v":"Select"},null,{"$f":"Import!E3412","v":0},null,{"$f":"Import!E3512","v":0},null,{"$f":"Import!E3612","v":0},null,{"$f":"Import!E3712","v":0},null,{"$f":"Import!E3812","v":0}]
[88,{"$f":"Import!E2613","v":0},null,{"$f":"Import!E2713","v":0},null,{"$f":"Import!E2813","v":"Select Yes/No"},null,{"$f":"Import!E2913","v":"Select"},null,{"$f":"Import!E3013","v":0},null,{"$f":"Import!E3113","v":"Select"},null,{"$f":"Import!E3213","v":0},null,{"$f":"Import!E3313","v":"Select"},null,{"$f":"Import!E3413","v":0},null,{"$f":"Import!E3513","v":0},null,{"$f":"Import!E3613","v":0},null,{"$f":"Import!E3713","v":0},null,{"$f":"Import!E3813","v":0}]
[89,{"$f":"Import!E2614","v":0},null,{"$f":"Import!E2714","v":0},null,{"$f":"Import!E2814","v":"Select Yes/No"},null,{"$f":"Import!E2914","v":"Select"},null,{"$f":"Import!E3014","v":0},null,{"$f":"Import!E3114","v":"Select"},null,{"$f":"Import!E3214","v":0},null,{"$f":"Import!E3314","v":"Select"},null,{"$f":"Import!E3414","v":0},null,{"$f":"Import!E3514","v":0},null,{"$f":"Import!E3614","v":0},null,{"$f":"Import!E3714","v":0},null,{"$f":"Import!E3814","v":0}]
[90,{"$f":"Import!E2615","v":0},null,{"$f":"Import!E2715","v":0},null,{"$f":"Import!E2815","v":"Select Yes/No"},null,{"$f":"Import!E2915","v":"Select"},null,{"$f":"Import!E3015","v":0},null,{"$f":"Import!E3115","v":"Select"},null,{"$f":"Import!E3215","v":0},null,{"$f":"Import!E3315","v":"Select"},null,{"$f":"Import!E3415","v":0},null,{"$f":"Import!E3515","v":0},null,{"$f":"Import!E3615","v":0},null,{"$f":"Import!E3715","v":0},null,{"$f":"Import!E3815","v":0}]
[91,{"$f":"Import!E2616","v":0},null,{"$f":"Import!E2716","v":0},null,{"$f":"Import!E2816","v":"Select Yes/No"},null,{"$f":"Import!E2916","v":"Select"},null,{"$f":"Import!E3016","v":0},null,{"$f":"Import!E3116","v":"Select"},null,{"$f":"Import!E3216","v":0},null,{"$f":"Import!E3316","v":"Select"},null,{"$f":"Import!E3416","v":0},null,{"$f":"Import!E3516","v":0},null,{"$f":"Import!E3616","v":0},null,{"$f":"Import!E3716","v":0},null,{"$f":"Import!E3816","v":0}]
[92,{"$f":"Import!E2617","v":0},null,{"$f":"Import!E2717","v":0},null,{"$f":"Import!E2817","v":"Select Yes/No"},null,{"$f":"Import!E2917","v":"Select"},null,{"$f":"Import!E3017","v":0},null,{"$f":"Import!E3117","v":"Select"},null,{"$f":"Import!E3217","v":0},null,{"$f":"Import!E3317","v":"Select"},null,{"$f":"Import!E3417","v":0},null,{"$f":"Import!E3517","v":0},null,{"$f":"Import!E3617","v":0},null,{"$f":"Import!E3717","v":0},null,{"$f":"Import!E3817","v":0}]
[93,{"$f":"Import!E2618","v":0},null,{"$f":"Import!E2718","v":0},null,{"$f":"Import!E2818","v":"Select Yes/No"},null,{"$f":"Import!E2918","v":"Select"},null,{"$f":"Import!E3018","v":0},null,{"$f":"Import!E3118","v":"Select"},null,{"$f":"Import!E3218","v":0},null,{"$f":"Import!E3318","v":"Select"},null,{"$f":"Import!E3418","v":0},null,{"$f":"Import!E3518","v":0},null,{"$f":"Import!E3618","v":0},null,{"$f":"Import!E3718","v":0},null,{"$f":"Import!E3818","v":0}]
[94,{"$f":"Import!E2619","v":0},null,{"$f":"Import!E2719","v":0},null,{"$f":"Import!E2819","v":"Select Yes/No"},null,{"$f":"Import!E2919","v":"Select"},null,{"$f":"Import!E3019","v":0},null,{"$f":"Import!E3119","v":"Select"},null,{"$f":"Import!E3219","v":0},null,{"$f":"Import!E3319","v":"Select"},null,{"$f":"Import!E3419","v":0},null,{"$f":"Import!E3519","v":0},null,{"$f":"Import!E3619","v":0},null,{"$f":"Import!E3719","v":0},null,{"$f":"Import!E3819","v":0}]
[95,{"$f":"Import!E2620","v":0},null,{"$f":"Import!E2720","v":0},null,{"$f":"Import!E2820","v":"Select Yes/No"},null,{"$f":"Import!E2920","v":"Select"},null,{"$f":"Import!E3020","v":0},null,{"$f":"Import!E3120","v":"Select"},null,{"$f":"Import!E3220","v":0},null,{"$f":"Import!E3320","v":"Select"},null,{"$f":"Import!E3420","v":0},null,{"$f":"Import!E3520","v":0},null,{"$f":"Import!E3620","v":0},null,{"$f":"Import!E3720","v":0},null,{"$f":"Import!E3820","v":0}]
[96,{"$f":"Import!E2621","v":0},null,{"$f":"Import!E2721","v":0},null,{"$f":"Import!E2821","v":"Select Yes/No"},null,{"$f":"Import!E2921","v":"Select"},null,{"$f":"Import!E3021","v":0},null,{"$f":"Import!E3121","v":"Select"},null,{"$f":"Import!E3221","v":0},null,{"$f":"Import!E3321","v":"Select"},null,{"$f":"Import!E3421","v":0},null,{"$f":"Import!E3521","v":0},null,{"$f":"Import!E3621","v":0},null,{"$f":"Import!E3721","v":0},null,{"$f":"Import!E3821","v":0}]
[97,{"$f":"Import!E2622","v":0},null,{"$f":"Import!E2722","v":0},null,{"$f":"Import!E2822","v":"Select Yes/No"},null,{"$f":"Import!E2922","v":"Select"},null,{"$f":"Import!E3022","v":0},null,{"$f":"Import!E3122","v":"Select"},null,{"$f":"Import!E3222","v":0},null,{"$f":"Import!E3322","v":"Select"},null,{"$f":"Import!E3422","v":0},null,{"$f":"Import!E3522","v":0},null,{"$f":"Import!E3622","v":0},null,{"$f":"Import!E3722","v":0},null,{"$f":"Import!E3822","v":0}]
[98,{"$f":"Import!E2623","v":0},null,{"$f":"Import!E2723","v":0},null,{"$f":"Import!E2823","v":"Select Yes/No"},null,{"$f":"Import!E2923","v":"Select"},null,{"$f":"Import!E3023","v":0},null,{"$f":"Import!E3123","v":"Select"},null,{"$f":"Import!E3223","v":0},null,{"$f":"Import!E3323","v":"Select"},null,{"$f":"Import!E3423","v":0},null,{"$f":"Import!E3523","v":0},null,{"$f":"Import!E3623","v":0},null,{"$f":"Import!E3723","v":0},null,{"$f":"Import!E3823","v":0}]
[99,{"$f":"Import!E2624","v":0},null,{"$f":"Import!E2724","v":0},null,{"$f":"Import!E2824","v":"Select Yes/No"},null,{"$f":"Import!E2924","v":"Select"},null,{"$f":"Import!E3024","v":0},null,{"$f":"Import!E3124","v":"Select"},null,{"$f":"Import!E3224","v":0},null,{"$f":"Import!E3324","v":"Select"},null,{"$f":"Import!E3424","v":0},null,{"$f":"Import!E3524","v":0},null,{"$f":"Import!E3624","v":0},null,{"$f":"Import!E3724","v":0},null,{"$f":"Import!E3824","v":0}]
[100,{"$f":"Import!E2625","v":0},null,{"$f":"Import!E2725","v":0},null,{"$f":"Import!E2825","v":"Select Yes/No"},null,{"$f":"Import!E2925","v":"Select"},null,{"$f":"Import!E3025","v":0},null,{"$f":"Import!E3125","v":"Select"},null,{"$f":"Import!E3225","v":0},null,{"$f":"Import!E3325","v":"Select"},null,{"$f":"Import!E3425","v":0},null,{"$f":"Import!E3525","v":0},null,{"$f":"Import!E3625","v":0},null,{"$f":"Import!E3725","v":0},null,{"$f":"Import!E3825","v":0}]
[101]
[102]
[103]
[104]
[105]
[106]
[107]
[108]
[109]
[110]
[111]
[112]
[113]
[114]
[115]
[116]
[117]
[118]
[119]
[120]
[121]
[122]
[123]
[124]
[125]
[126]
[127]
[128]
[129]
[130]
[131]
[132]
[133]
[134]
[135]
[136]
[137]
[138]
[139]
[140]
[141]
[142]
[143]
[144]
[145]
[146]
[147]
[148]
[149]
[150]
[151]
[152]
[153]
[154]
[155]
[156]
[157]
[158]
[159]
[160]
[161]
[162]
[163]
[164]
[165]
[166]
[167]
[168]
[169]
[170]
[171]
[172]
[173]
[174]
[175]
[176]
[177]
[178]
[179]
[180]
[181]
[182]
[183]
[184]
[185]
[186]
[187]
[188]
[189]
[190]
[191]
[192]
[193]
[194]
[195]
[196]
[197]
[198]
[199]
[200]
[201]
[202]
[203]
[204]
[205]
[206]
[207]
[208]
[209]
[210]
[211]
[212]
[213]
[214]
[215]
[216]
[217]
[218]
[219]
[220]
[221]
[222]
[223]
[224]
[225]
[226]
[227]
[228]
[229]
[230]
[231]
[232]
[233]
[234]
[235]
[236]
[237]
[238]
[239]
[240]
[241]
[242]
[243]
[244]
[245]
[246]
[247]
[248]
[249]
[250]
[251]
[252]
[253]
[254]
[255]
[256]
[257]
[258]
[259]
[260]
[261]
[262]
[263]
[264]
[265]
[266]
[267]
[268]
[269]
[270]
[271]
[272]
[273]
[274]
[275]
[276]
[277]
[278]
[279]
[280]
[281]
[282]
[283]
[284]
[285]
[286]
[287]
[288]
[289]
[290]
[291]
[292]
[293]
[294]
[295]
[296]
[297]
[298]
[299]
[300]
[]
[null,null,null,null,null,null,null,null,null,null,null,null,null,null,null,null,null,null,null,null,null,null,null,null,null,{"$f":"SUM(Z12:Z311)","v":0}]

{"sheet":"Schedule V(c)","index":47,"n_rows":121,"n_cols":12,"rows_kept":121,"cut":false,"hidden":false,"merged":[[13,6,13,8],[14,6,14,8],[15,6,15,8],[16,6,16,8],[17,6,17,8],[18,6,18,8],[9,9,12,9],[11,2,12,2],[11,4,12,4],[11,3,12,3],[11,5,12,5],[9,6,12,8],[9,2,10,5],[25,6,25,8],[26,6,26,8],[27,6,27,8],[28,6,28,8],[29,6,29,8],[30,6,30,8],[19,6,19,8],[20,6,20,8],[21,6,21,8],[22,6,22,8],[23,6,23,8],[24,6,24,8],[37,6,37,8],[72,2,72,9],[79,2,80,5],[79,6,80,6],[79,9,80,10],[43,10,44,11],[43,8,44,9],[31,6,31,8],[32,6,32,8],[33,6,33,8],[34,6,34,8],[35,6,35,8],[36,6,36,8],[43,2,44,7],[40,6,41,11],[120,9,120,10],[79,7,79,8],[80,7,80,8],[111,9,111,10],[112,9,112,10],[113,9,113,10],[114,9,114,10],[115,9,115,10],[116,9,116,10],[105,9,105,10],[106,9,106,10],[107,9,107,10],[108,9,108,10],[109,9,109,10],[110,9,110,10],[99,9,99,10],[100,9,100,10],[101,9,101,10],[102,9,102,10],[103,9,103,10],[104,9,104,10],[93,9,93,10],[94,9,94,10],[95,9,95,10],[81,2,81,5],[82,2,82,5],[83,2,83,5],[84,2,84,5],[85,2,85,5],[86,2,86,5],[117,9,117,10],[118,9,118,10],[119,9,119,10],[96,9,96,10],[97,9,97,10],[98,9,98,10],[87,9,87,10],[88,9,88,10],[89,9,89,10],[90,9,90,10],[91,9,91,10],[92,9,92,10],[81,9,81,10],[82,9,82,10],[83,9,83,10],[84,9,84,10],[85,9,85,10],[86,9,86,10],[93,2,93,5],[94,2,94,5],[95,2,95,5],[96,2,96,5],[97,2,97,5],[98,2,98,5],[87,2,87,5],[88,2,88,5],[89,2,89,5],[90,2,90,5],[91,2,91,5],[92,2,92,5],[105,2,105,5],[106,2,106,5],[107,2,107,5],[108,2,108,5],[109,2,109,5],[110,2,110,5],[99,2,99,5],[100,2,100,5],[101,2,101,5],[102,2,102,5],[103,2,103,5],[104,2,104,5],[117,2,117,5],[118,2,118,5],[119,2,119,5],[120,2,120,5],[111,2,111,5],[112,2,112,5],[113,2,113,5],[114,2,114,5],[115,2,115,5],[116,2,116,5]]}
[null,null,"SCHEDULE OF RISK MANAGEMENT - INTRA-GROUP EXPOSURES AND RISK CONCENTRATIONS",null,null,null,null,null,null,null,null,{"$f":"HYPERLINK(\"#'Index'!A1\",\"Return to Index\")","v":"Return to Index"}]
[null,null,{"$f":"'Group Information'!C9","v":"Enter Parent Company Name"}]
[null,null,{"$f":"'Form 1EBS'!C3","v":"2023-12-31"}]
[null,null,{"$f":"'Form 1EBS'!C4","v":" ['000s]United States Dollars"},null,null,null,null,null,null,null,null,"SCHEDULE V(c)"]
[]
[null,1,"Details of material intra-group transactions between and among the members of the group, including (where applicable): "]
[null,null,"Enter Number of Material Intra-Group Transactions"]
[null,null,"Enter information for each transaction",null,{"$f":"Import!E3827","v":0}]
[]
[null,null,"Counterparties Involved Including Where They Are Located",null,null,null,"Summary Details of the Transactions \n(Purpose, terms, transaction cost, duration and performance trigger)",null,null,"Exposure Value \n(face value or market value, if the latter is available)"]
[]
[null,null,"Issuer/Borrower/Debtor","Jurisdiction","Investor/Lender/Creditor","Jurisdiction"]
[]
[null,1,{"$f":"Import!E3828","v":0},{"$f":"Import!E3853","v":0},{"$f":"Import!E3878","v":0},{"$f":"Import!E3903","v":0},{"$f":"Import!E3928","v":0},null,null,{"$f":"Import!E3953","v":0}]
[null,2,{"$f":"Import!E3829","v":0},{"$f":"Import!E3854","v":0},{"$f":"Import!E3879","v":0},{"$f":"Import!E3904","v":0},{"$f":"Import!E3929","v":0},null,null,{"$f":"Import!E3954","v":0}]
[null,3,{"$f":"Import!E3830","v":0},{"$f":"Import!E3855","v":0},{"$f":"Import!E3880","v":0},{"$f":"Import!E3905","v":0},{"$f":"Import!E3930","v":0},null,null,{"$f":"Import!E3955","v":0}]
[null,4,{"$f":"Import!E3831","v":0},{"$f":"Import!E3856","v":0},{"$f":"Import!E3881","v":0},{"$f":"Import!E3906","v":0},{"$f":"Import!E3931","v":0},null,null,{"$f":"Import!E3956","v":0}]
[null,5,{"$f":"Import!E3832","v":0},{"$f":"Import!E3857","v":0},{"$f":"Import!E3882","v":0},{"$f":"Import!E3907","v":0},{"$f":"Import!E3932","v":0},null,null,{"$f":"Import!E3957","v":0}]
[null,6,{"$f":"Import!E3833","v":0},{"$f":"Import!E3858","v":0},{"$f":"Import!E3883","v":0},{"$f":"Import!E3908","v":0},{"$f":"Import!E3933","v":0},null,null,{"$f":"Import!E3958","v":0}]
[null,7,{"$f":"Import!E3834","v":0},{"$f":"Import!E3859","v":0},{"$f":"Import!E3884","v":0},{"$f":"Import!E3909","v":0},{"$f":"Import!E3934","v":0},null,null,{"$f":"Import!E3959","v":0}]
[null,8,{"$f":"Import!E3835","v":0},{"$f":"Import!E3860","v":0},{"$f":"Import!E3885","v":0},{"$f":"Import!E3910","v":0},{"$f":"Import!E3935","v":0},null,null,{"$f":"Import!E3960","v":0}]
[null,9,{"$f":"Import!E3836","v":0},{"$f":"Import!E3861","v":0},{"$f":"Import!E3886","v":0},{"$f":"Import!E3911","v":0},{"$f":"Import!E3936","v":0},null,null,{"$f":"Import!E3961","v":0}]
[null,10,{"$f":"Import!E3837","v":0},{"$f":"Import!E3862","v":0},{"$f":"Import!E3887","v":0},{"$f":"Import!E3912","v":0},{"$f":"Import!E3937","v":0},null,null,{"$f":"Import!E3962","v":0}]
[null,11,{"$f":"Import!E3838","v":0},{"$f":"Import!E3863","v":0},{"$f":"Import!E3888","v":0},{"$f":"Import!E3913","v":0},{"$f":"Import!E3938","v":0},null,null,{"$f":"Import!E3963","v":0}]
[null,12,{"$f":"Import!E3839","v":0},{"$f":"Import!E3864","v":0},{"$f":"Import!E3889","v":0},{"$f":"Import!E3914","v":0},{"$f":"Import!E3939","v":0},null,null,{"$f":"Import!E3964","v":0}]
[null,13,{"$f":"Import!E3840","v":0},{"$f":"Import!E3865","v":0},{"$f":"Import!E3890","v":0},{"$f":"Import!E3915","v":0},{"$f":"Import!E3940","v":0},null,null,{"$f":"Import!E3965","v":0}]
[null,14,{"$f":"Import!E3841","v":0},{"$f":"Import!E3866","v":0},{"$f":"Import!E3891","v":0},{"$f":"Import!E3916","v":0},{"$f":"Import!E3941","v":0},null,null,{"$f":"Import!E3966","v":0}]
[null,15,{"$f":"Import!E3842","v":0},{"$f":"Import!E3867","v":0},{"$f":"Import!E3892","v":0},{"$f":"Import!E3917","v":0},{"$f":"Import!E3942","v":0},null,null,{"$f":"Import!E3967","v":0}]
[null,16,{"$f":"Import!E3843","v":0},{"$f":"Import!E3868","v":0},{"$f":"Import!E3893","v":0},{"$f":"Import!E3918","v":0},{"$f":"Import!E3943","v":0},null,null,{"$f":"Import!E3968","v":0}]
[null,17,{"$f":"Import!E3844","v":0},{"$f":"Import!E3869","v":0},{"$f":"Import!E3894","v":0},{"$f":"Import!E3919","v":0},{"$f":"Import!E3944","v":0},null,null,{"$f":"Import!E3969","v":0}]
[null,18,{"$f":"Import!E3845","v":0},{"$f":"Import!E3870","v":0},{"$f":"Import!E3895","v":0},{"$f":"Import!E3920","v":0},{"$f":"Import!E3945","v":0},null,null,{"$f":"Import!E3970","v":0}]
[null,19,{"$f":"Import!E3846","v":0},{"$f":"Import!E3871","v":0},{"$f":"Import!E3896","v":0},{"$f":"Import!E3921","v":0},{"$f":"Import!E3946","v":0},null,null,{"$f":"Import!E3971","v":0}]
[null,20,{"$f":"Import!E3847","v":0},{"$f":"Import!E3872","v":0},{"$f":"Import!E3897","v":0},{"$f":"Import!E3922","v":0},{"$f":"Import!E3947","v":0},null,null,{"$f":"Import!E3972","v":0}]
[null,21,{"$f":"Import!E3848","v":0},{"$f":"Import!E3873","v":0},{"$f":"Import!E3898","v":0},{"$f":"Import!E3923","v":0},{"$f":"Import!E3948","v":0},null,null,{"$f":"Import!E3973","v":0}]
[null,22,{"$f":"Import!E3849","v":0},{"$f":"Import!E3874","v":0},{"$f":"Import!E3899","v":0},{"$f":"Import!E3924","v":0},{"$f":"Import!E3949","v":0},null,null,{"$f":"Import!E3974","v":0}]
[null,23,{"$f":"Import!E3850","v":0},{"$f":"Import!E3875","v":0},{"$f":"Import!E3900","v":0},{"$f":"Import!E3925","v":0},{"$f":"Import!E3950","v":0},null,null,{"$f":"Import!E3975","v":0}]
[null,24,{"$f":"Import!E3851","v":0},{"$f":"Import!E3876","v":0},{"$f":"Import!E3901","v":0},{"$f":"Import!E3926","v":0},{"$f":"Import!E3951","v":0},null,null,{"$f":"Import!E3976","v":0}]
[null,25,{"$f":"Import!E3852","v":0},{"$f":"Import!E3877","v":0},{"$f":"Import!E3902","v":0},{"$f":"Import!E3927","v":0},{"$f":"Import!E3952","v":0},null,null,{"$f":"Import!E3977","v":0}]
[]
[null,2,"Details of all intra-group reinsurance and retrocession arrangements and other intra-group risk transfer insurance business arrangements including:"]
[null,null,"Enter Number of Intra-Group (Re)insurance Arrangements",null,null,null,{"$f":"IF(E42>25,\"Group arrangements with the same cedent and assuming parties together. Only 25 arrangements can be populated below. Additional arrangements must be provided as an attachment.\",\"\")","v":""}]
[null,null,"Enter information for each arrangement",null,{"$f":"Import!E3978","v":0}]
[]
[null,null,"Counterparties Involved ",null,null,null,null,null,"Aggregated values of the exposure limits by counterparties broken down by counterparty rating;",null,"Aggregated premium flows between counterparties "]
[]
[null,null,"Assuming party ","Jurisdiction","Rating","Ceding party ","Jurisdiction","Rating","Gross","Net","Gross","Net"]
[null,1,{"$f":"Import!E3979","v":0},{"$f":"Import!E4004","v":0},{"$f":"Import!E4029","v":0},{"$f":"Import!E4054","v":0},{"$f":"Import!E4079","v":0},{"$f":"Import!E4104","v":0},{"$f":"Import!E4129","v":0},{"$f":"Import!E4154","v":0},{"$f":"Import!E4179","v":0},{"$f":"Import!E4204","v":0}]
[null,2,{"$f":"Import!E3980","v":0},{"$f":"Import!E4005","v":0},{"$f":"Import!E4030","v":0},{"$f":"Import!E4055","v":0},{"$f":"Import!E4080","v":0},{"$f":"Import!E4105","v":0},{"$f":"Import!E4130","v":0},{"$f":"Import!E4155","v":0},{"$f":"Import!E4180","v":0},{"$f":"Import!E4205","v":0}]
[null,3,{"$f":"Import!E3981","v":0},{"$f":"Import!E4006","v":0},{"$f":"Import!E4031","v":0},{"$f":"Import!E4056","v":0},{"$f":"Import!E4081","v":0},{"$f":"Import!E4106","v":0},{"$f":"Import!E4131","v":0},{"$f":"Import!E4156","v":0},{"$f":"Import!E4181","v":0},{"$f":"Import!E4206","v":0}]
[null,4,{"$f":"Import!E3982","v":0},{"$f":"Import!E4007","v":0},{"$f":"Import!E4032","v":0},{"$f":"Import!E4057","v":0},{"$f":"Import!E4082","v":0},{"$f":"Import!E4107","v":0},{"$f":"Import!E4132","v":0},{"$f":"Import!E4157","v":0},{"$f":"Import!E4182","v":0},{"$f":"Import!E4207","v":0}]
[null,5,{"$f":"Import!E3983","v":0},{"$f":"Import!E4008","v":0},{"$f":"Import!E4033","v":0},{"$f":"Import!E4058","v":0},{"$f":"Import!E4083","v":0},{"$f":"Import!E4108","v":0},{"$f":"Import!E4133","v":0},{"$f":"Import!E4158","v":0},{"$f":"Import!E4183","v":0},{"$f":"Import!E4208","v":0}]
[null,6,{"$f":"Import!E3984","v":0},{"$f":"Import!E4009","v":0},{"$f":"Import!E4034","v":0},{"$f":"Import!E4059","v":0},{"$f":"Import!E4084","v":0},{"$f":"Import!E4109","v":0},{"$f":"Import!E4134","v":0},{"$f":"Import!E4159","v":0},{"$f":"Import!E4184","v":0},{"$f":"Import!E4209","v":0}]
[null,7,{"$f":"Import!E3985","v":0},{"$f":"Import!E4010","v":0},{"$f":"Import!E4035","v":0},{"$f":"Import!E4060","v":0},{"$f":"Import!E4085","v":0},{"$f":"Import!E4110","v":0},{"$f":"Import!E4135","v":0},{"$f":"Import!E4160","v":0},{"$f":"Import!E4185","v":0},{"$f":"Import!E4210","v":0}]
[null,8,{"$f":"Import!E3986","v":0},{"$f":"Import!E4011","v":0},{"$f":"Import!E4036","v":0},{"$f":"Import!E4061","v":0},{"$f":"Import!E4086","v":0},{"$f":"Import!E4111","v":0},{"$f":"Import!E4136","v":0},{"$f":"Import!E4161","v":0},{"$f":"Import!E4186","v":0},{"$f":"Import!E4211","v":0}]
[null,9,{"$f":"Import!E3987","v":0},{"$f":"Import!E4012","v":0},{"$f":"Import!E4037","v":0},{"$f":"Import!E4062","v":0},{"$f":"Import!E4087","v":0},{"$f":"Import!E4112","v":0},{"$f":"Import!E4137","v":0},{"$f":"Import!E4162","v":0},{"$f":"Import!E4187","v":0},{"$f":"Import!E4212","v":0}]
[null,10,{"$f":"Import!E3988","v":0},{"$f":"Import!E4013","v":0},{"$f":"Import!E4038","v":0},{"$f":"Import!E4063","v":0},{"$f":"Import!E4088","v":0},{"$f":"Import!E4113","v":0},{"$f":"Import!E4138","v":0},{"$f":"Import!E4163","v":0},{"$f":"Import!E4188","v":0},{"$f":"Import!E4213","v":0}]
[null,11,{"$f":"Import!E3989","v":0},{"$f":"Import!E4014","v":0},{"$f":"Import!E4039","v":0},{"$f":"Import!E4064","v":0},{"$f":"Import!E4089","v":0},{"$f":"Import!E4114","v":0},{"$f":"Import!E4139","v":0},{"$f":"Import!E4164","v":0},{"$f":"Import!E4189","v":0},{"$f":"Import!E4214","v":0}]
[null,12,{"$f":"Import!E3990","v":0},{"$f":"Import!E4015","v":0},{"$f":"Import!E4040","v":0},{"$f":"Import!E4065","v":0},{"$f":"Import!E4090","v":0},{"$f":"Import!E4115","v":0},{"$f":"Import!E4140","v":0},{"$f":"Import!E4165","v":0},{"$f":"Import!E4190","v":0},{"$f":"Import!E4215","v":0}]
[null,13,{"$f":"Import!E3991","v":0},{"$f":"Import!E4016","v":0},{"$f":"Import!E4041","v":0},{"$f":"Import!E4066","v":0},{"$f":"Import!E4091","v":0},{"$f":"Import!E4116","v":0},{"$f":"Import!E4141","v":0},{"$f":"Import!E4166","v":0},{"$f":"Import!E4191","v":0},{"$f":"Import!E4216","v":0}]
[null,14,{"$f":"Import!E3992","v":0},{"$f":"Import!E4017","v":0},{"$f":"Import!E4042","v":0},{"$f":"Import!E4067","v":0},{"$f":"Import!E4092","v":0},{"$f":"Import!E4117","v":0},{"$f":"Import!E4142","v":0},{"$f":"Import!E4167","v":0},{"$f":"Import!E4192","v":0},{"$f":"Import!E4217","v":0}]
[null,15,{"$f":"Import!E3993","v":0},{"$f":"Import!E4018","v":0},{"$f":"Import!E4043","v":0},{"$f":"Import!E4068","v":0},{"$f":"Import!E4093","v":0},{"$f":"Import!E4118","v":0},{"$f":"Import!E4143","v":0},{"$f":"Import!E4168","v":0},{"$f":"Import!E4193","v":0},{"$f":"Import!E4218","v":0}]
[null,16,{"$f":"Import!E3994","v":0},{"$f":"Import!E4019","v":0},{"$f":"Import!E4044","v":0},{"$f":"Import!E4069","v":0},{"$f":"Import!E4094","v":0},{"$f":"Import!E4119","v":0},{"$f":"Import!E4144","v":0},{"$f":"Import!E4169","v":0},{"$f":"Import!E4194","v":0},{"$f":"Import!E4219","v":0}]
[null,17,{"$f":"Import!E3995","v":0},{"$f":"Import!E4020","v":0},{"$f":"Import!E4045","v":0},{"$f":"Import!E4070","v":0},{"$f":"Import!E4095","v":0},{"$f":"Import!E4120","v":0},{"$f":"Import!E4145","v":0},{"$f":"Import!E4170","v":0},{"$f":"Import!E4195","v":0},{"$f":"Import!E4220","v":0}]
[null,18,{"$f":"Import!E3996","v":0},{"$f":"Import!E4021","v":0},{"$f":"Import!E4046","v":0},{"$f":"Import!E4071","v":0},{"$f":"Import!E4096","v":0},{"$f":"Import!E4121","v":0},{"$f":"Import!E4146","v":0},{"$f":"Import!E4171","v":0},{"$f":"Import!E4196","v":0},{"$f":"Import!E4221","v":0}]
[null,19,{"$f":"Import!E3997","v":0},{"$f":"Import!E4022","v":0},{"$f":"Import!E4047","v":0},{"$f":"Import!E4072","v":0},{"$f":"Import!E4097","v":0},{"$f":"Import!E4122","v":0},{"$f":"Import!E4147","v":0},{"$f":"Import!E4172","v":0},{"$f":"Import!E4197","v":0},{"$f":"Import!E4222","v":0}]
[null,20,{"$f":"Import!E3998","v":0},{"$f":"Import!E4023","v":0},{"$f":"Import!E4048","v":0},{"$f":"Import!E4073","v":0},{"$f":"Import!E4098","v":0},{"$f":"Import!E4123","v":0},{"$f":"Import!E4148","v":0},{"$f":"Import!E4173","v":0},{"$f":"Import!E4198","v":0},{"$f":"Import!E4223","v":0}]
[null,21,{"$f":"Import!E3999","v":0},{"$f":"Import!E4024","v":0},{"$f":"Import!E4049","v":0},{"$f":"Import!E4074","v":0},{"$f":"Import!E4099","v":0},{"$f":"Import!E4124","v":0},{"$f":"Import!E4149","v":0},{"$f":"Import!E4174","v":0},{"$f":"Import!E4199","v":0},{"$f":"Import!E4224","v":0}]
[null,22,{"$f":"Import!E4000","v":0},{"$f":"Import!E4025","v":0},{"$f":"Import!E4050","v":0},{"$f":"Import!E4075","v":0},{"$f":"Import!E4100","v":0},{"$f":"Import!E4125","v":0},{"$f":"Import!E4150","v":0},{"$f":"Import!E4175","v":0},{"$f":"Import!E4200","v":0},{"$f":"Import!E4225","v":0}]
[null,23,{"$f":"Import!E4001","v":0},{"$f":"Import!E4026","v":0},{"$f":"Import!E4051","v":0},{"$f":"Import!E4076","v":0},{"$f":"Import!E4101","v":0},{"$f":"Import!E4126","v":0},{"$f":"Import!E4151","v":0},{"$f":"Import!E4176","v":0},{"$f":"Import!E4201","v":0},{"$f":"Import!E4226","v":0}]
[null,24,{"$f":"Import!E4002","v":0},{"$f":"Import!E4027","v":0},{"$f":"Import!E4052","v":0},{"$f":"Import!E4077","v":0},{"$f":"Import!E4102","v":0},{"$f":"Import!E4127","v":0},{"$f":"Import!E4152","v":0},{"$f":"Import!E4177","v":0},{"$f":"Import!E4202","v":0},{"$f":"Import!E4227","v":0}]
[null,25,{"$f":"Import!E4003","v":0},{"$f":"Import!E4028","v":0},{"$f":"Import!E4053","v":0},{"$f":"Import!E4078","v":0},{"$f":"Import!E4103","v":0},{"$f":"Import!E4128","v":0},{"$f":"Import!E4153","v":0},{"$f":"Import!E4178","v":0},{"$f":"Import!E4203","v":0},{"$f":"Import!E4228","v":0}]
[]
[null,3,"The proportion of the group's insurance business exposure covered by internal reinsurance, retrocession and other risk transfer insurance business arrangements — (in percentage)",null,null,null,null,null,null,null,null,{"$f":"Import!E4229","v":0}]
[]
[null,4,"Details of the ten largest exposures to unaffiliated counterparties and any other unaffiliated counterparty exposures or series of linked unaffiliated counterparty "]
[null,null,"exposures exceeding 10% of the group’s statutory capital and surplus, including:"]
[null,null,"Enter Number of Material Counterparty Exposures"]
[null,null,"Enter information for each exposure",null,null,{"$f":"Import!E4230","v":0}]
[]
[null,null,"Name of Unaffiliated Counterparty",null,null,null,"Jurisdiction)","Exposure Values \n",null,"Transaction Type"]
[null,null,null,null,null,null,null,"(Face Value or Market Value)"]
[null,1,{"$f":"Import!E4231","v":0},null,null,null,{"$f":"Import!E4271","v":0},{"$f":"Import!E4311","v":0},{"$f":"Import!E4351","v":0},{"$f":"Import!E4391","v":0}]
[null,2,{"$f":"Import!E4232","v":0},null,null,null,{"$f":"Import!E4272","v":0},{"$f":"Import!E4312","v":0},{"$f":"Import!E4352","v":0},{"$f":"Import!E4392","v":0}]
[null,3,{"$f":"Import!E4233","v":0},null,null,null,{"$f":"Import!E4273","v":0},{"$f":"Import!E4313","v":0},{"$f":"Import!E4353","v":0},{"$f":"Import!E4393","v":0}]
[null,4,{"$f":"Import!E4234","v":0},null,null,null,{"$f":"Import!E4274","v":0},{"$f":"Import!E4314","v":0},{"$f":"Import!E4354","v":0},{"$f":"Import!E4394","v":0}]
[null,5,{"$f":"Import!E4235","v":0},null,null,null,{"$f":"Import!E4275","v":0},{"$f":"Import!E4315","v":0},{"$f":"Import!E4355","v":0},{"$f":"Import!E4395","v":0}]
[null,6,{"$f":"Import!E4236","v":0},null,null,null,{"$f":"Import!E4276","v":0},{"$f":"Import!E4316","v":0},{"$f":"Import!E4356","v":0},{"$f":"Import!E4396","v":0}]
[null,7,{"$f":"Import!E4237","v":0},null,null,null,{"$f":"Import!E4277","v":0},{"$f":"Import!E4317","v":0},{"$f":"Import!E4357","v":0},{"$f":"Import!E4397","v":0}]
[null,8,{"$f":"Import!E4238","v":0},null,null,null,{"$f":"Import!E4278","v":0},{"$f":"Import!E4318","v":0},{"$f":"Import!E4358","v":0},{"$f":"Import!E4398","v":0}]
[null,9,{"$f":"Import!E4239","v":0},null,null,null,{"$f":"Import!E4279","v":0},{"$f":"Import!E4319","v":0},{"$f":"Import!E4359","v":0},{"$f":"Import!E4399","v":0}]
[null,10,{"$f":"Import!E4240","v":0},null,null,null,{"$f":"Import!E4280","v":0},{"$f":"Import!E4320","v":0},{"$f":"Import!E4360","v":0},{"$f":"Import!E4400","v":0}]
[null,11,{"$f":"Import!E4241","v":0},null,null,null,{"$f":"Import!E4281","v":0},{"$f":"Import!E4321","v":0},{"$f":"Import!E4361","v":0},{"$f":"Import!E4401","v":0}]
[null,12,{"$f":"Import!E4242","v":0},null,null,null,{"$f":"Import!E4282","v":0},{"$f":"Import!E4322","v":0},{"$f":"Import!E4362","v":0},{"$f":"Import!E4402","v":0}]
[null,13,{"$f":"Import!E4243","v":0},null,null,null,{"$f":"Import!E4283","v":0},{"$f":"Import!E4323","v":0},{"$f":"Import!E4363","v":0},{"$f":"Import!E4403","v":0}]
[null,14,{"$f":"Import!E4244","v":0},null,null,null,{"$f":"Import!E4284","v":0},{"$f":"Import!E4324","v":0},{"$f":"Import!E4364","v":0},{"$f":"Import!E4404","v":0}]
[null,15,{"$f":"Import!E4245","v":0},null,null,null,{"$f":"Import!E4285","v":0},{"$f":"Import!E4325","v":0},{"$f":"Import!E4365","v":0},{"$f":"Import!E4405","v":0}]
[null,16,{"$f":"Import!E4246","v":0},null,null,null,{"$f":"Import!E4286","v":0},{"$f":"Import!E4326","v":0},{"$f":"Import!E4366","v":0},{"$f":"Import!E4406","v":0}]
[null,17,{"$f":"Import!E4247","v":0},null,null,null,{"$f":"Import!E4287","v":0},{"$f":"Import!E4327","v":0},{"$f":"Import!E4367","v":0},{"$f":"Import!E4407","v":0}]
[null,18,{"$f":"Import!E4248","v":0},null,null,null,{"$f":"Import!E4288","v":0},{"$f":"Import!E4328","v":0},{"$f":"Import!E4368","v":0},{"$f":"Import!E4408","v":0}]
[null,19,{"$f":"Import!E4249","v":0},null,null,null,{"$f":"Import!E4289","v":0},{"$f":"Import!E4329","v":0},{"$f":"Import!E4369","v":0},{"$f":"Import!E4409","v":0}]
[null,20,{"$f":"Import!E4250","v":0},null,null,null,{"$f":"Import!E4290","v":0},{"$f":"Import!E4330","v":0},{"$f":"Import!E4370","v":0},{"$f":"Import!E4410","v":0}]
[null,21,{"$f":"Import!E4251","v":0},null,null,null,{"$f":"Import!E4291","v":0},{"$f":"Import!E4331","v":0},{"$f":"Import!E4371","v":0},{"$f":"Import!E4411","v":0}]
[null,22,{"$f":"Import!E4252","v":0},null,null,null,{"$f":"Import!E4292","v":0},{"$f":"Import!E4332","v":0},{"$f":"Import!E4372","v":0},{"$f":"Import!E4412","v":0}]
[null,23,{"$f":"Import!E4253","v":0},null,null,null,{"$f":"Import!E4293","v":0},{"$f":"Import!E4333","v":0},{"$f":"Import!E4373","v":0},{"$f":"Import!E4413","v":0}]
[null,24,{"$f":"Import!E4254","v":0},null,null,null,{"$f":"Import!E4294","v":0},{"$f":"Import!E4334","v":0},{"$f":"Import!E4374","v":0},{"$f":"Import!E4414","v":0}]
[null,25,{"$f":"Import!E4255","v":0},null,null,null,{"$f":"Import!E4295","v":0},{"$f":"Import!E4335","v":0},{"$f":"Import!E4375","v":0},{"$f":"Import!E4415","v":0}]
[null,26,{"$f":"Import!E4256","v":0},null,null,null,{"$f":"Import!E4296","v":0},{"$f":"Import!E4336","v":0},{"$f":"Import!E4376","v":0},{"$f":"Import!E4416","v":0}]
[null,27,{"$f":"Import!E4257","v":0},null,null,null,{"$f":"Import!E4297","v":0},{"$f":"Import!E4337","v":0},{"$f":"Import!E4377","v":0},{"$f":"Import!E4417","v":0}]
[null,28,{"$f":"Import!E4258","v":0},null,null,null,{"$f":"Import!E4298","v":0},{"$f":"Import!E4338","v":0},{"$f":"Import!E4378","v":0},{"$f":"Import!E4418","v":0}]
[null,29,{"$f":"Import!E4259","v":0},null,null,null,{"$f":"Import!E4299","v":0},{"$f":"Import!E4339","v":0},{"$f":"Import!E4379","v":0},{"$f":"Import!E4419","v":0}]
[null,30,{"$f":"Import!E4260","v":0},null,null,null,{"$f":"Import!E4300","v":0},{"$f":"Import!E4340","v":0},{"$f":"Import!E4380","v":0},{"$f":"Import!E4420","v":0}]
[null,31,{"$f":"Import!E4261","v":0},null,null,null,{"$f":"Import!E4301","v":0},{"$f":"Import!E4341","v":0},{"$f":"Import!E4381","v":0},{"$f":"Import!E4421","v":0}]
[null,32,{"$f":"Import!E4262","v":0},null,null,null,{"$f":"Import!E4302","v":0},{"$f":"Import!E4342","v":0},{"$f":"Import!E4382","v":0},{"$f":"Import!E4422","v":0}]
[null,33,{"$f":"Import!E4263","v":0},null,null,null,{"$f":"Import!E4303","v":0},{"$f":"Import!E4343","v":0},{"$f":"Import!E4383","v":0},{"$f":"Import!E4423","v":0}]
[null,34,{"$f":"Import!E4264","v":0},null,null,null,{"$f":"Import!E4304","v":0},{"$f":"Import!E4344","v":0},{"$f":"Import!E4384","v":0},{"$f":"Import!E4424","v":0}]
[null,35,{"$f":"Import!E4265","v":0},null,null,null,{"$f":"Import!E4305","v":0},{"$f":"Import!E4345","v":0},{"$f":"Import!E4385","v":0},{"$f":"Import!E4425","v":0}]
[null,36,{"$f":"Import!E4266","v":0},null,null,null,{"$f":"Import!E4306","v":0},{"$f":"Import!E4346","v":0},{"$f":"Import!E4386","v":0},{"$f":"Import!E4426","v":0}]
[null,37,{"$f":"Import!E4267","v":0},null,null,null,{"$f":"Import!E4307","v":0},{"$f":"Import!E4347","v":0},{"$f":"Import!E4387","v":0},{"$f":"Import!E4427","v":0}]
[null,38,{"$f":"Import!E4268","v":0},null,null,null,{"$f":"Import!E4308","v":0},{"$f":"Import!E4348","v":0},{"$f":"Import!E4388","v":0},{"$f":"Import!E4428","v":0}]
[null,39,{"$f":"Import!E4269","v":0},null,null,null,{"$f":"Import!E4309","v":0},{"$f":"Import!E4349","v":0},{"$f":"Import!E4389","v":0},{"$f":"Import!E4429","v":0}]
[null,40,{"$f":"Import!E4270","v":0},null,null,null,{"$f":"Import!E4310","v":0},{"$f":"Import!E4350","v":0},{"$f":"Import!E4390","v":0},{"$f":"Import!E4430","v":0}]

{"sheet":"Schedule V(e)","index":48,"n_rows":478,"n_cols":38,"rows_kept":478,"cut":false,"hidden":false,"merged":[[160,1,162,1],[160,2,160,3],[161,2,161,3],[162,2,162,3],[149,4,149,6],[151,1,153,1],[151,2,151,3],[152,5,152,6],[153,5,153,6],[155,1,156,1],[155,5,155,6],[156,5,156,6],[157,1,159,1],[157,2,157,3],[158,2,158,3],[159,2,159,3],[91,3,91,4],[91,5,91,6],[140,5,140,6],[141,5,141,6],[135,1,139,1],[140,1,141,1],[142,1,144,1],[145,1,147,1],[451,13,451,15],[432,13,432,15],[439,13,439,15],[408,13,408,15],[409,13,409,15],[410,13,410,15],[411,13,411,15],[450,13,450,15],[341,8,341,9],[342,1,342,4],[371,3,371,4],[372,3,372,4],[371,1,371,2],[372,1,372,2],[369,3,370,8],[330,8,330,9],[93,1,93,2],[96,2,97,2],[105,9,106,10],[48,3,48,4],[225,1,225,2],[226,1,226,2],[224,1,224,2],[138,2,138,3],[139,2,139,3],[142,2,142,3],[105,2,106,2],[114,2,115,2],[144,2,144,3],[201,1,201,2],[214,1,214,2],[216,1,216,2],[208,1,209,2],[178,1,178,2],[214,3,214,4],[193,1,193,2],[189,3,189,4],[192,1,192,2],[190,1,190,2],[191,1,191,2],[38,5,38,6],[38,7,39,7],[30,9,30,10],[22,2,23,3],[30,3,30,4],[87,1,87,2],[88,1,88,2],[89,1,89,2],[30,5,30,6],[14,2,14,3],[42,2,42,7],[43,2,43,7],[211,1,211,2],[211,3,211,4],[200,3,200,4],[203,1,203,2],[194,3,194,4],[176,1,176,2],[189,1,189,2],[190,3,190,4],[186,1,186,13],[203,3,203,4],[208,3,209,13],[204,3,204,4],[204,1,204,2],[38,11,39,11],[38,12,39,12],[38,13,39,13],[35,1,35,2],[36,1,36,2],[38,3,39,3],[143,2,143,3],[38,4,39,4],[111,9,111,10],[112,9,112,10],[136,2,136,3],[2,1,2,2],[18,2,18,3],[45,2,45,7],[11,2,11,3],[12,2,12,3],[34,1,34,2],[30,7,30,8],[38,8,39,8],[133,7,133,9],[38,9,39,9],[32,1,32,2],[33,1,33,2],[44,2,44,7],[27,1,27,2],[28,1,28,2],[15,2,15,3],[16,2,16,3],[17,2,17,3],[84,1,84,4],[38,10,39,10],[13,2,13,3],[191,3,191,4],[193,3,193,4],[192,3,192,4],[137,2,137,3],[180,1,180,2],[82,1,82,2],[183,37,183,38],[177,37,177,38],[178,37,178,38],[180,37,180,38],[181,37,181,38],[182,37,182,38],[179,37,179,38],[166,1,170,13],[180,3,180,4],[179,1,179,2],[179,3,179,4],[178,3,178,4],[181,3,181,4],[147,2,147,3],[176,3,176,4],[175,3,175,4],[123,2,124,2],[133,4,133,6],[185,1,185,2],[43,8,43,9],[44,8,44,9],[45,8,45,9],[181,1,181,2],[188,1,188,2],[187,3,187,4],[42,8,42,9],[177,3,177,4],[177,1,177,2],[188,3,188,4],[187,1,187,2],[107,9,107,10],[108,9,108,10],[109,9,109,10],[48,1,48,2],[80,1,80,2],[79,1,79,2],[135,2,135,3],[164,1,164,2],[172,1,172,4],[146,2,146,3],[81,1,81,2],[110,9,110,10],[229,1,229,2],[198,1,199,2],[198,3,199,13],[227,1,227,2],[227,3,227,4],[256,3,256,4],[256,6,256,7],[256,9,256,10],[240,1,241,2],[243,1,243,2],[244,1,244,2],[250,1,250,2],[240,3,240,4],[240,6,240,7],[240,9,240,10],[243,5,244,5],[247,5,248,5],[249,5,250,5],[242,1,242,2],[243,11,244,11],[247,11,248,11],[249,11,250,11],[243,8,244,8],[247,8,248,8],[194,1,194,2],[206,1,206,4],[202,1,202,2],[202,3,202,4],[201,3,201,4],[219,1,219,2],[226,3,226,4],[223,1,223,2],[200,1,200,2],[222,1,222,2],[212,3,212,4],[213,3,213,4],[220,1,220,2],[212,1,212,2],[213,1,213,2],[196,1,196,4],[221,1,221,2],[210,1,210,2],[210,3,210,4],[352,12,352,13],[353,12,353,13],[354,12,354,13],[355,12,355,13],[357,1,357,3],[357,4,357,5],[357,6,357,7],[357,8,357,9],[358,1,358,3],[376,1,376,2],[376,3,376,4],[429,13,429,15],[386,1,387,16],[377,1,377,2],[377,3,377,4],[382,1,384,16],[412,13,412,15],[413,13,413,15],[428,13,428,15],[419,13,419,15],[400,2,400,8],[373,1,373,2],[373,3,373,4],[374,1,374,2],[374,3,374,4],[375,1,375,2],[375,3,375,4],[331,8,331,9],[339,8,339,9],[340,8,340,9],[369,1,370,2],[336,8,336,9],[337,8,337,9],[338,8,338,9],[334,8,334,9],[335,8,335,9],[332,8,332,9],[333,8,333,9],[359,1,359,3],[360,1,360,3],[361,1,361,3],[362,1,362,3],[363,1,363,3],[365,1,365,3],[345,1,345,13],[249,8,250,8],[313,8,318,9],[319,8,319,9],[320,8,320,9],[283,1,283,2],[283,3,283,7],[283,8,283,12],[283,13,283,17],[284,3,285,3],[284,4,284,5],[284,6,284,7],[284,8,285,8],[284,9,284,10],[284,11,284,12],[284,13,285,13],[284,14,284,15],[284,16,284,17],[285,1,285,2],[251,1,251,2],[252,1,252,2],[253,1,253,2],[254,1,254,2],[257,1,257,2],[258,1,258,2],[19,2,19,3],[20,2,20,3],[346,1,346,13],[347,1,350,13],[286,1,286,2],[287,1,287,2],[288,1,288,2],[289,1,289,2],[290,1,290,2],[291,1,291,2],[292,1,292,2],[293,1,293,2],[294,1,294,2],[325,8,325,9],[329,8,329,9],[326,8,326,9],[327,8,327,9],[328,8,328,9],[324,8,324,9],[313,6,316,7],[321,8,321,9],[322,8,322,9],[323,8,323,9],[313,5,318,5]]}
[null,"SCHEDULE OF RISK MANAGEMENT - STRESS/SCENARIO TESTS",null,null,null,null,null,null,null,null,null,null,null,null,null,null,{"$f":"HYPERLINK(\"#'Index'!A1\",\"Return to Index\")","v":"Return to Index"}]
[null,{"$f":"'Form 1EBS'!B2","v":"Enter Parent Company Name"},null,null,null,null,null,null,null,null,null,null,null,null,null,null,"SCHEDULE V(e)"]
[null,{"$f":"'Form 1EBS'!C3+1","v":"2024-01-01"}]
[null,"expressed in ",{"$f":"'Form 1EBS'!C4","v":" ['000s]United States Dollars"}]
[null,null,null,null,null,"EBS Assets","EBS Liabilities","EBS Capital & Surplus"]
[null,null,null,null,"Pre-stress/scenario position",{"$f":"'Form 1EBS'!F96","v":0},{"$f":"'Form 1EBS'!F210","v":0},{"$f":"'Form 1EBS'!F214","v":0}]
[null,null,null,null,null,null,null,null,null,null,null,null,null,null,null,null,null,null,null,null,null,""]
[null,"Insurance Group Confirms that Loss Scenarios left blank/omitted, result in no loss exposure"]
[null,null,null,null,null,null,null,null,"Confirm with \"X\""]
[null,"A. FINANCIAL MARKET SCENARIOS",null,null,null,null,null,null,null,null,null,null,null,null,null,null,null,null,null,null,null,null,null,null,null,null,null,null,null,null,null,null,null,null,null,null,null,""]
[null,null,null,null,"Loss","EBS Assets","EBS Liabilities","EBS Capital & Surplus"]
[null,"R1.","40% decline in equity prices",null,{"$f":"IF(SUM(F12:G12)=0,0,($F$6-F12)+(G12-$G$6))","v":0},{"$f":"Import!I4432","v":0},{"$f":"Import!I4442","v":0},{"$f":"$H$6-E12","v":0}]
[null,"R2.","Alternative Investments and Real Estate",null,0,{"$f":"Import!I4433","v":0},{"$f":"Import!I4443","v":0},0]
[null,"R3.","Yield Curve Stress",null,0,{"$f":"Import!I4434","v":0},{"$f":"Import!I4444","v":0},0]
[null,"R4.","General widening of credit spreads",null,0,{"$f":"Import!I4435","v":0},{"$f":"Import!I4445","v":0},{"$f":"$H$6-E15","v":0}]
[null,"R5.","Combined R1, R2, R3 and R4.",null,0,{"$f":"Import!I4436","v":0},{"$f":"Import!I4446","v":0},0]
[null,"R6.","Foreign currency shocks",null,0,{"$f":"Import!I4437","v":0},{"$f":"Import!I4447","v":0},0]
[null,"R7.","Escalation of sovereign risk ",null,0,{"$f":"Import!I4438","v":0},{"$f":"Import!I4448","v":0},0]
[null,"R8.","Inflation and Monetary Policy Risk - Moderate inflation",null,{"$f":"IF(SUM(F19:G19)=0,0,($F$6-F19)+(G19-$G$6))","v":0},{"$f":"Import!I4439","v":0},{"$f":"Import!I4449","v":0},{"$f":"$H$6-E19","v":0}]
[null,"R8.","Inflation and Monetary Policy Risk - Severe inflation",null,{"$f":"IF(SUM(F20:G20)=0,0,($F$6-F20)+(G20-$G$6))","v":0},{"$f":"Import!I4440","v":0},{"$f":"Import!I4450","v":0},{"$f":"$H$6-E20","v":0}]
[null,"R8.","Inflation and Monetary Policy Risk - Deflation scenario",null,0,{"$f":"Import!I4441","v":0},{"$f":"Import!I4451","v":0},0]
[]
[null,null,"Valuation losses on debt securities and loans issued by creditors in each European state —",null,"Greece","Italy","Portugal","Ukraine","Argentina","Turkey"]
[null,null,null,null,{"$f":"Import!I4452","v":0},{"$f":"Import!I4453","v":0},{"$f":"Import!I4454","v":0},{"$f":"Import!I4455","v":0},{"$f":"Import!I4456","v":0},{"$f":"Import!I4457","v":0}]
[]
[null,"B. MORTGAGE INSURANCE"]
[]
[null,"Mortgage Loan Shock 1",null,{"$f":"Import!I4458","v":9.4700000000000006E-2},{"$f":"IF(SUM(F28:G28)=0,0,($F$6-F28)+(G28-$G$6))","v":0},{"$f":"Import!I4460","v":0},{"$f":"Import!I4462","v":0},{"$f":"$H$6-E28","v":0}]
[null,"Mortgage Loan Shock 2",null,{"$f":"Import!I4459","v":"Select"},{"$f":"IF(SUM(F29:G29)=0,0,($F$6-F29)+(G29-$G$6))","v":0},{"$f":"Import!I4461","v":0},{"$f":"Import!I4463","v":0},{"$f":"$H$6-E29","v":0}]
[]
[null,null,null,"Gross Premium",null,"Net Premium",null,"Claims Paid",null,"Loss Reserves"]
[null,null,null,"Related","Unrelated","Related","Unrelated","Related","Unrelated","Gross ","Net "]
[null,"Mortgage Insurance - US",null,{"$f":"Import!I4464","v":0},{"$f":"Import!I4469","v":0},{"$f":"Import!I4474","v":0},{"$f":"Import!I4479","v":0},{"$f":"Import!I4484","v":0},{"$f":"Import!I4489","v":0},{"$f":"Import!I4494","v":0},{"$f":"Import!I4499","v":0}]
[null,"Mortgage Reinsurance - US",null,{"$f":"Import!I4465","v":0},{"$f":"Import!I4470","v":0},{"$f":"Import!I4475","v":0},{"$f":"Import!I4480","v":0},{"$f":"Import!I4485","v":0},{"$f":"Import!I4490","v":0},{"$f":"Import!I4495","v":0},{"$f":"Import!I4500","v":0}]
[null,"Mortgage Insurance - Non-US",null,{"$f":"Import!I4466","v":0},{"$f":"Import!I4471","v":0},{"$f":"Import!I4476","v":0},{"$f":"Import!I4481","v":0},{"$f":"Import!I4486","v":0},{"$f":"Import!I4491","v":0},{"$f":"Import!I4496","v":0},{"$f":"Import!I4501","v":0}]
[null,"Mortgage Reinsurance - Non-US",null,{"$f":"Import!I4467","v":0},{"$f":"Import!I4472","v":0},{"$f":"Import!I4477","v":0},{"$f":"Import!I4482","v":0},{"$f":"Import!I4487","v":0},{"$f":"Import!I4492","v":0},{"$f":"Import!I4497","v":0},{"$f":"Import!I4502","v":0}]
[null,"Total",null,{"$f":"SUM(D33:D36)","v":0},{"$f":"SUM(E33:E36)","v":0},0,0,0,0,0,0]
[]
[null,null,null,"Insurance in Force (IIF)","Risk in Force (RIF)","Capital Held",null,"Risk to MI Capital Ratio","Collateral Posted","# of Policies in Force","Loss Ratio (UW)","Combined Ratio (UW)","Weighted Ave. LTV","Weighted Ave. FICO Score"]
[null,null,null,null,null,"Internal ","Regulatory "]
[null,"Supplemental Disclosures",null,{"$f":"Import!I4504","v":0},{"$f":"Import!I4505","v":0},{"$f":"Import!I4506","v":0},{"$f":"((F37+G37)*0.454)+(K37*0.435)","v":0},{"$f":"IF(G41=0,0,E41/G41)","v":0},{"$f":"Import!I4508","v":0},{"$f":"Import!I4509","v":0},{"$f":"Import!I4510","v":0},{"$f":"Import!I4511","v":0},{"$f":"Import!I4512","v":0},{"$f":"Import!I4513","v":0}]
[]
[null,"R8.","1. How do you define your risk appetite for this type of business, in terms metrics, tolerance levels and limits?",null,null,null,null,null,{"$f":"HYPERLINK(\"#'Attachments'!G155\",\"Attach file\")","v":"Attach file"}]
[null,"R8.","2. What key drivers do you monitor in the risk management and business performance assessment of this LoB?",null,null,null,null,null,{"$f":"HYPERLINK(\"#'Attachments'!G155\",\"Attach file\")","v":"Attach file"}]
[null,"R8.","3. How do you allocate capital to this LoB in terms of methodology and metrics used?",null,null,null,null,null,{"$f":"HYPERLINK(\"#'Attachments'!G155\",\"Attach file\")","v":"Attach file"}]
[null,"R8.","4. How do you calculate the CISSA standalone capital requirement, what methodology and risk factors do you model?",null,null,null,null,null,{"$f":"HYPERLINK(\"#'Attachments'!G155\",\"Attach file\")","v":"Attach file"}]
[]
[null,"C. UNDERWRITING LOSS SCENARIOS",null,null,null,"Doc Name","Page Number"]
[null,"Internal model key assumptions and parameters",null,{"$f":"HYPERLINK(\"#'Attachments'!G155\",\"Attach file\")","v":"Attach file"}]
[]
[]
[null,null,null,"Gross Loss Impact","EBS Capital & Surplus After Gross Loss","Net Loss After Reinsurance","Catastrophe Mitigation Techniques","Net Loss Impact","EBS Capital & Surplus After Net Loss","Occurrence Return Period ","Relative Return Period 2","Proprietary/ Vendor Model & Version",null,null,null,null,null,null," Gross Loss Check "," Net Loss Check "," Gross Loss and Net Loss Check "]
[null,"UW1. ","Northeast Hurricane",{"$f":"Import!I4514","v":0},{"$f":"$H$6-D53","v":0},{"$f":"Import!I4533","v":0},{"$f":"Import!I4552","v":0},{"$f":"F53-G53","v":0},{"$f":"$H$6-H53","v":0},{"$f":"Import!I4571","v":0},{"$f":"Import!I4589","v":0},{"$f":"Import!I4607","v":0},null,null,null,null,null,null,{"$f":"IF(E53<0,\"Gross Impact - C&S Negative\",\"Gross Impact - Check Ok\")","v":"Gross Impact - Check Ok"},{"$f":"IF(I53<0,\"Net Impact - C&S Negative\",\"Net Impact - Check Ok\")","v":"Net Impact - Check Ok"},{"$f":"IF(H53>D53,\"Net Impact Greater than Gross Impact\",\"Gross to Net Impact - Check Ok\")","v":"Gross to Net Impact - Check Ok"}]
[null,"UW2.","Carolinas Hurricane",{"$f":"Import!I4515","v":0},{"$f":"$H$6-D54","v":0},{"$f":"Import!I4534","v":0},{"$f":"Import!I4553","v":0},{"$f":"F54-G54","v":0},{"$f":"$H$6-H54","v":0},{"$f":"Import!I4572","v":0},{"$f":"Import!I4590","v":0},{"$f":"Import!I4608","v":0},null,null,null,null,null,null,"Gross Impact - Check Ok","Net Impact - Check Ok","Gross to Net Impact - Check Ok"]
[null,"UW3.","Miami-Dade Hurricane",{"$f":"Import!I4516","v":0},0,{"$f":"Import!I4535","v":0},{"$f":"Import!I4554","v":0},0,0,{"$f":"Import!I4573","v":0},{"$f":"Import!I4591","v":0},{"$f":"Import!I4609","v":0},null,null,null,null,null,null,"Gross Impact - Check Ok","Net Impact - Check Ok","Gross to Net Impact - Check Ok"]
[null,"UW4.","Pinellas Hurricane",{"$f":"Import!I4517","v":0},0,{"$f":"Import!I4536","v":0},{"$f":"Import!I4555","v":0},0,0,{"$f":"Import!I4574","v":0},{"$f":"Import!I4592","v":0},{"$f":"Import!I4610","v":0},null,null,null,null,null,null,"Gross Impact - Check Ok","Net Impact - Check Ok","Gross to Net Impact - Check Ok"]
[null,"UW5.","Gulf Windstorm (onshore)",{"$f":"Import!I4518","v":0},0,{"$f":"Import!I4537","v":0},{"$f":"Import!I4556","v":0},0,0,{"$f":"Import!I4575","v":0},{"$f":"Import!I4593","v":0},{"$f":"Import!I4611","v":0},null,null,null,null,null,null,"Gross Impact - Check Ok","Net Impact - Check Ok","Gross to Net Impact - Check Ok"]
[null,"UE1.","Los Angeles Earthquake",{"$f":"Import!I4519","v":0},0,{"$f":"Import!I4538","v":0},{"$f":"Import!I4557","v":0},0,0,{"$f":"Import!I4576","v":0},{"$f":"Import!I4594","v":0},{"$f":"Import!I4612","v":0},null,null,null,null,null,null,"Gross Impact - Check Ok","Net Impact - Check Ok","Gross to Net Impact - Check Ok"]
[null,"UE2.","San Francisco Earthquake",{"$f":"Import!I4520","v":0},0,{"$f":"Import!I4539","v":0},{"$f":"Import!I4558","v":0},0,0,{"$f":"Import!I4577","v":0},{"$f":"Import!I4595","v":0},{"$f":"Import!I4613","v":0},null,null,null,null,null,null,"Gross Impact - Check Ok","Net Impact - Check Ok","Gross to Net Impact - Check Ok"]
[null,"UE3.","New Madrid (NM) RDS",{"$f":"Import!I4521","v":0},0,{"$f":"Import!I4540","v":0},{"$f":"Import!I4559","v":0},0,0,{"$f":"Import!I4578","v":0},{"$f":"Import!I4596","v":0},{"$f":"Import!I4614","v":0},null,null,null,null,null,null,"Gross Impact - Check Ok","Net Impact - Check Ok","Gross to Net Impact - Check Ok"]
[null,"IW1. ","European Windstorm",{"$f":"Import!I4522","v":0},0,{"$f":"Import!I4541","v":0},{"$f":"Import!I4560","v":0},0,0,{"$f":"Import!I4579","v":0},{"$f":"Import!I4597","v":0},{"$f":"Import!I4615","v":0},null,null,null,null,null,null,"Gross Impact - Check Ok","Net Impact - Check Ok","Gross to Net Impact - Check Ok"]
[null,"IW2.","Japanese Typhoon",{"$f":"Import!I4523","v":0},0,{"$f":"Import!I4542","v":0},{"$f":"Import!I4561","v":0},0,0,{"$f":"Import!I4580","v":0},{"$f":"Import!I4598","v":0},{"$f":"Import!I4616","v":0},null,null,null,null,null,null,"Gross Impact - Check Ok","Net Impact - Check Ok","Gross to Net Impact - Check Ok"]
[null,"IE1.","Japanese Earthquake",{"$f":"Import!I4524","v":0},0,{"$f":"Import!I4543","v":0},{"$f":"Import!I4562","v":0},0,0,{"$f":"Import!I4581","v":0},{"$f":"Import!I4599","v":0},{"$f":"Import!I4617","v":0},null,null,null,null,null,null,"Gross Impact - Check Ok","Net Impact - Check Ok","Gross to Net Impact - Check Ok"]
[null,"A1.","Aviation Collision",{"$f":"Import!I4525","v":0},0,{"$f":"Import!I4544","v":0},{"$f":"Import!I4563","v":0},0,0,{"$f":"Import!I4582","v":0},{"$f":"Import!I4600","v":0},{"$f":"Import!I4618","v":0},null,null,null,null,null,null,"Gross Impact - Check Ok","Net Impact - Check Ok","Gross to Net Impact - Check Ok"]
[null,"M1.","Marine Collision in Prince William",{"$f":"Import!I4526","v":0},0,{"$f":"Import!I4545","v":0},{"$f":"Import!I4564","v":0},0,0,{"$f":"Import!I4583","v":0},{"$f":"Import!I4601","v":0},{"$f":"Import!I4619","v":0},null,null,null,null,null,null,"Gross Impact - Check Ok","Net Impact - Check Ok","Gross to Net Impact - Check Ok"]
[null,"M2.","Major Cruise Vessel Incident",{"$f":"Import!I4527","v":0},0,{"$f":"Import!I4546","v":0},{"$f":"Import!I4565","v":0},0,0,{"$f":"Import!I4584","v":0},{"$f":"Import!I4602","v":0},{"$f":"Import!I4620","v":0},null,null,null,null,null,null,"Gross Impact - Check Ok","Net Impact - Check Ok","Gross to Net Impact - Check Ok"]
[null,"N1.","US Oil Spill",{"$f":"Import!I4528","v":0},0,{"$f":"Import!I4547","v":0},{"$f":"Import!I4566","v":0},0,0,{"$f":"Import!I4585","v":0},{"$f":"Import!I4603","v":0},{"$f":"Import!I4621","v":0},null,null,null,null,null,null,"Gross Impact - Check Ok","Net Impact - Check Ok","Gross to Net Impact - Check Ok"]
[null,"N2.","US Tornadoes",{"$f":"Import!I4529","v":0},0,{"$f":"Import!I4548","v":0},{"$f":"Import!I4567","v":0},0,0,{"$f":"Import!I4586","v":0},{"$f":"Import!I4604","v":0},{"$f":"Import!I4622","v":0},null,null,null,null,null,null,"Gross Impact - Check Ok","Net Impact - Check Ok","Gross to Net Impact - Check Ok"]
[null,"N3.","Australian Flooding",{"$f":"Import!I4530","v":0},0,{"$f":"Import!I4549","v":0},{"$f":"Import!I4568","v":0},0,0,{"$f":"Import!I4587","v":0},{"$f":"Import!I4605","v":0},{"$f":"Import!I4623","v":0},null,null,null,null,null,null,"Gross Impact - Check Ok","Net Impact - Check Ok","Gross to Net Impact - Check Ok"]
[null,"N4.","Australian Wildfires",{"$f":"Import!I4531","v":0},0,{"$f":"Import!I4550","v":0},{"$f":"Import!I4569","v":0},0,0,{"$f":"Import!I4588","v":0},{"$f":"Import!I4606","v":0},{"$f":"Import!I4624","v":0},null,null,null,null,null,null,"Gross Impact - Check Ok","Net Impact - Check Ok","Gross to Net Impact - Check Ok"]
[null,"P1.","Contamination Food Exposure (Domestic Health Writers Only)",{"$f":"Import!I4532","v":0},0,{"$f":"Import!I4551","v":0},{"$f":"Import!I4570","v":0},0,0,null,null,{"$f":"Import!I4625","v":0},null,null,null,null,null,null,"Gross Impact - Check Ok","Net Impact - Check Ok","Gross to Net Impact - Check Ok"]
[null,null,null,null,null,null,null,null,null,null,null,null,null,null,null,null,null,null,{"$f":"IF(COUNTIF(S53:S71,\"Gross Impact - Check Ok\")=19,\"True\",\"False\")","v":"True"},{"$f":"IF(COUNTIF(T53:T71,\"Net Impact - Check Ok\")=19,\"True\",\"False\")","v":"True"},{"$f":"IF(COUNTIF(U53:U71,\"Gross to Net Impact - Check Ok\")=19,\"True\",\"False\")","v":"True"}]
[null,1,"Post-stress/scenario net loss is Post-stress/scenario gross loss, net of reinsurance and/or other loss mitigation instruments"]
[null,2,"The relative return period should be calculated using the underlying loss distribution for its aggregate Net Probable Maximum Loss, as submitted in the BSCR"]
[]
[null,"D. OTHER UNDERWRITING SCENARIOS"]
[null,"Where \"B. Underwriting loss scenarios\" above is either not applicable or only partially applicable, the group is to submit the description of three of its own underwriting scenarios "]
[null,"and related key assumptions with the impact on the economic balance sheet."]
[]
[null,"Description",null,"Assumptions","Doc Name","Page Number","Gross Loss Impact","EBS Capital & Surplus","Net Loss After Reinsurance","Catastrophe Mitigation Techniques","Net Loss Impact","EBS Capital & Surplus","Occurrence Return Period ","Relative Return Period 2","Proprietary/ Vendor Model & Version"]
[null,{"$f":"Import!I4626","v":0},null,{"$f":"HYPERLINK(\"#'Attachments'!G95\",\"Attach file\")","v":"Attach file"},null,null,{"$f":"Import!I4629","v":0},{"$f":"$H$6-G81","v":0},{"$f":"Import!I4632","v":0},{"$f":"Import!I4635","v":0},{"$f":"I81-J81","v":0},{"$f":"$H$6-K81","v":0},{"$f":"Import!I4638","v":0},{"$f":"Import!I4641","v":0},{"$f":"Import!I4644","v":0}]
[null,{"$f":"Import!I4627","v":0},null,{"$f":"HYPERLINK(\"#'Attachments'!G95\",\"Attach file\")","v":"Attach file"},null,null,{"$f":"Import!I4630","v":0},{"$f":"$H$6-G82","v":0},{"$f":"Import!I4633","v":0},{"$f":"Import!I4636","v":0},{"$f":"I82-J82","v":0},{"$f":"$H$6-K82","v":0},{"$f":"Import!I4639","v":0},{"$f":"Import!I4642","v":0},{"$f":"Import!I4645","v":0}]
[null,{"$f":"Import!I4628","v":0},null,{"$f":"HYPERLINK(\"#'Attachments'!G95\",\"Attach file\")","v":"Attach file"},null,null,{"$f":"Import!I4631","v":0},{"$f":"$H$6-G83","v":0},{"$f":"Import!I4634","v":0},{"$f":"Import!I4637","v":0},{"$f":"I83-J83","v":0},{"$f":"$H$6-K83","v":0},{"$f":"Import!I4640","v":0},{"$f":"Import!I4643","v":0},{"$f":"Import!I4646","v":0}]
[]
[null,"E. LIABILITY LOSS ACCUMULATION SCENARIOS"]
[]
[null,"0. Results"]
[]
[null,"Description",null,"Net Loss Impact","EBS Capital & Surplus"]
[null,"1. New latent liability",null,{"$f":"SUM(D126:I131)","v":0},{"$f":"$H$6-D90","v":0}]
[]
[null,null,null,"One Year View",null,"Ultimate View"]
[null,null,null,"Net Loss Impact","EBS Capital & Surplus","Net Loss Impact","EBS Capital & Surplus"]
[null,"2. Deterioration in existing US A&E reserves",null,{"$f":"+E148-E136+H148-H136","v":0},{"$f":"$H$6-D94","v":0},{"$f":"+E146-E136+H146-H136+E161-E152","v":0},{"$f":"$H$6-F94","v":0}]
[]
[null,"a) Scenario 1 - New latent liability"]
[null,null,{"$f":"\"NWP for the most recent year\"&\" (\"&TEXT('Group Information'!$C$3,\"YYYY\")&\")\"","v":"NWP for the most recent year (2023)"},"product liability","product liability","gen comm liability","gen comm liability","empl liab/ workers comp","empl liab/ workers comp"]
[null,null,null,"P","NP","P","NP","P","NP"]
[null,null,"EEA and Switzerland",{"$f":"Import!I4647","v":0},{"$f":"Import!I4653","v":0},{"$f":"Import!I4659","v":0},{"$f":"Import!I4665","v":0},{"$f":"Import!I4671","v":0},{"$f":"Import!I4677","v":0}]
[null,null,"US/Canada",{"$f":"Import!I4648","v":0},{"$f":"Import!I4654","v":0},{"$f":"Import!I4660","v":0},{"$f":"Import!I4666","v":0},{"$f":"Import!I4672","v":0},{"$f":"Import!I4678","v":0}]
[null,null,"Japan",{"$f":"Import!I4649","v":0},{"$f":"Import!I4655","v":0},{"$f":"Import!I4661","v":0},{"$f":"Import!I4667","v":0},{"$f":"Import!I4673","v":0},{"$f":"Import!I4679","v":0}]
[null,null,"China",{"$f":"Import!I4650","v":0},{"$f":"Import!I4656","v":0},{"$f":"Import!I4662","v":0},{"$f":"Import!I4668","v":0},{"$f":"Import!I4674","v":0},{"$f":"Import!I4680","v":0}]
[null,null,"Other developed markets",{"$f":"Import!I4651","v":0},{"$f":"Import!I4657","v":0},{"$f":"Import!I4663","v":0},{"$f":"Import!I4669","v":0},{"$f":"Import!I4675","v":0},{"$f":"Import!I4681","v":0}]
[null,null,"Emerging markets",{"$f":"Import!I4652","v":0},{"$f":"Import!I4658","v":0},{"$f":"Import!I4664","v":0},{"$f":"Import!I4670","v":0},{"$f":"Import!I4676","v":0},{"$f":"Import!I4682","v":0}]
[]
[null,null,"Average Annual Premium Growth over the last 8 years (3 years for US Workers Comp)","Product Liability","Product Liability","Gen Comm Liability","Gen Comm Liability","Empl Liab/ Workers Comp","Empl Liab/ Workers Comp","Number of Years over which the annual growth is calculated (subject to the max of 8 or 3 years for US/CA WC) ",null,"Product Liability","Product Liability","Gen Comm Liability","Gen Comm Liability","Empl Liab/ Workers Comp","Empl Liab/ Workers Comp"]
[null,null,null,"P","NP","P","NP","P","NP",null,null,"P","NP","P","NP","P","NP"]
[null,null,"EEA and Switzerland",{"$f":"Import!I4683","v":0},{"$f":"Import!I4689","v":0},{"$f":"Import!I4695","v":0},{"$f":"Import!I4701","v":0},{"$f":"Import!I4707","v":0},{"$f":"Import!I4713","v":0},"EEA and Switzerland",null,{"$f":"Import!I4719","v":0},{"$f":"Import!I4725","v":0},{"$f":"Import!I4731","v":0},{"$f":"Import!I4737","v":0},{"$f":"Import!I4743","v":0},{"$f":"Import!I4749","v":0}]
[null,null,"US/Canada",{"$f":"Import!I4684","v":0},{"$f":"Import!I4690","v":0},{"$f":"Import!I4696","v":0},{"$f":"Import!I4702","v":0},{"$f":"Import!I4708","v":0},{"$f":"Import!I4714","v":0},"US/Canada",null,{"$f":"Import!I4720","v":0},{"$f":"Import!I4726","v":0},{"$f":"Import!I4732","v":0},{"$f":"Import!I4738","v":0},{"$f":"Import!I4744","v":0},{"$f":"Import!I4750","v":0}]
[null,null,"Japan",{"$f":"Import!I4685","v":0},{"$f":"Import!I4691","v":0},{"$f":"Import!I4697","v":0},{"$f":"Import!I4703","v":0},{"$f":"Import!I4709","v":0},{"$f":"Import!I4715","v":0},"Japan",null,{"$f":"Import!I4721","v":0},{"$f":"Import!I4727","v":0},{"$f":"Import!I4733","v":0},{"$f":"Import!I4739","v":0},{"$f":"Import!I4745","v":0},{"$f":"Import!I4751","v":0}]
[null,null,"China",{"$f":"Import!I4686","v":0},{"$f":"Import!I4692","v":0},{"$f":"Import!I4698","v":0},{"$f":"Import!I4704","v":0},{"$f":"Import!I4710","v":0},{"$f":"Import!I4716","v":0},"China",null,{"$f":"Import!I4722","v":0},{"$f":"Import!I4728","v":0},{"$f":"Import!I4734","v":0},{"$f":"Import!I4740","v":0},{"$f":"Import!I4746","v":0},{"$f":"Import!I4752","v":0}]
[null,null,"Other developed markets",{"$f":"Import!I4687","v":0},{"$f":"Import!I4693","v":0},{"$f":"Import!I4699","v":0},{"$f":"Import!I4705","v":0},{"$f":"Import!I4711","v":0},{"$f":"Import!I4717","v":0},"Other developed markets",null,{"$f":"Import!I4723","v":0},{"$f":"Import!I4729","v":0},{"$f":"Import!I4735","v":0},{"$f":"Import!I4741","v":0},{"$f":"Import!I4747","v":0},{"$f":"Import!I4753","v":0}]
[null,null,"Emerging markets",{"$f":"Import!I4688","v":0},{"$f":"Import!I4694","v":0},{"$f":"Import!I4700","v":0},{"$f":"Import!I4706","v":0},{"$f":"Import!I4712","v":0},{"$f":"Import!I4718","v":0},"Emerging markets",null,{"$f":"Import!I4724","v":0},{"$f":"Import!I4730","v":0},{"$f":"Import!I4736","v":0},{"$f":"Import!I4742","v":0},{"$f":"Import!I4748","v":0},{"$f":"Import!I4754","v":0}]
[]
[null,null,"Risk factors by segment","Product Liability","Product Liability","Gen Comm Liability","Gen Comm Liability","Empl Liab/ Workers Comp","Empl Liab/ Workers Comp"]
[null,null,null,"P","NP","P","NP","P","NP"]
[null,null,"EEA and Switzerland",0.45,0.9,0.25,0.5,0.25,0.5]
[null,null,"US/Canada",0.65,1.3,0.35,0.75,0.15,0.3]
[null,null,"Japan",0.35,0.65,0.2,0.35,0.2,0.35]
[null,null,"China",0.25,0.5,0.15,0.3,0.15,0.3]
[null,null,"Other developed markets",0.3,0.6,0.15,0.35,0.15,0.35]
[null,null,"Emerging markets",0.25,0.5,0.15,0.3,0.15,0.3]
[]
[null,null,"Estimated Reserve Deterioration","Product Liability","Product Liability","Gen Comm Liability","Gen Comm Liability","Empl Liab/ Workers Comp","Empl Liab/ Workers Comp"]
[null,null,null,"P","NP","P","NP","P","NP"]
[null,null,"EEA and Switzerland",{"$f":"MAX(MAX(IFERROR((((1-(1+D108)^(L108))/(1-(1+D108)))/L108)/((1+D108)^(L108-1)),1),0)*D117*D99*MIN(IF(L108>=1,L108/8,1),1),0)","v":0},0,0,0,0,0]
[null,null,"US/Canada",{"$f":"MAX(MAX(IFERROR((((1-(1+D109)^(L109))/(1-(1+D109)))/L109)/((1+D109)^(L109-1)),1),0)*D118*D100*MIN(IF(L109>=1,L109/8,1),1),0)","v":0},0,0,0,{"$f":"MAX(MAX(IFERROR((((1-(1+H109)^(P109))/(1-(1+H109)))/P109)/((1+H109)^(P109-1)),1),0)*H118*H100*MIN(IF(P109>=1,P109/3,1),1),0)","v":0},{"$f":"MAX(MAX(IFERROR((((1-(1+I109)^(Q109))/(1-(1+I109)))/Q109)/((1+I109)^(Q109-1)),1),0)*I118*I100*MIN(IF(Q109>=1,Q109/3,1),1),0)","v":0}]
[null,null,"Japan",0,0,0,0,0,0]
[null,null,"China",0,0,0,0,0,0]
[null,null,"Other developed markets",0,0,0,0,0,0]
[null,null,"Emerging markets",0,0,0,0,0,0]
[]
[null,"b) Scenario 2 - Deterioration in existing US A&E reserves"]
[null,null,null,null,"US Asbestos",null,null,"US Environmental"]
[null,null,null,null,{"$f":"+TEXT('Group Information'!$C$3,\"YYYY\")","v":"2023"},{"$f":"+E135-1","v":2022},{"$f":"+F135-1","v":2021},{"$f":"+TEXT('Group Information'!$C$3,\"YYYY\")","v":"2023"},{"$f":"+H135-1","v":2022},{"$f":"+I135-1","v":2021}]
[null,"1. Survival Ratio stress","Year-end Net GAAP Reserves ",null,{"$f":"Import!I4755","v":0},{"$f":"Import!I4762","v":0},{"$f":"Import!I4764","v":0},{"$f":"Import!I4766","v":0},{"$f":"Import!I4772","v":0},{"$f":"Import!I4774","v":0}]
[null,null,"Net Paid on Yearend GAAP Reserves",null,{"$f":"Import!I4756","v":0},{"$f":"Import!I4763","v":0},{"$f":"Import!I4765","v":0},{"$f":"Import!I4767","v":0},{"$f":"Import!I4773","v":0},{"$f":"Import!I4775","v":0}]
[null,null,"Survival Ratio of US Reserves",null,{"$f":"Import!I4757","v":0},"Est Surv Ratio",{"$f":"IFERROR(E136/AVERAGE(IF(E137:G137>0,E137:G137,\"\")),0)","v":0},{"$f":"Import!I4768","v":0},"Est Surv Ratio",{"$f":"IFERROR(H136/AVERAGE(IF(H137:J137>0,H137:J137,\"\")),0)","v":0}]
[null,null,"Target Survival Ratio",null,15,null,null,12]
[null,null,"GAAP Reserves at target Survival Ratio",null,{"$f":"IF(E138=0,0,MAX((E139/E138)*E136,E136))","v":0},null,null,{"$f":"IF(H138=0,0,MAX((H139/H138)*H136,H136))","v":0}]
[null,"2. Med Adv Stress","Group's loading for future medical advances",null,{"$f":"Import!I4758","v":0},"Uplift for medical developments"]
[null,null,"Stress loading for future medical developments",null,{"$f":"IFERROR(MIN(MAX((1+F142)/(1+E141)-1,0),F142),0)","v":0.1},0.1,null,"N/A"]
[null,"3. Claims Inflation Stress","Effective Duration of Liabilities",null,{"$f":"Import!I4759","v":0},null,null,{"$f":"Import!I4769","v":0}]
[null,null,"Increase in Claims Inflation",null,0.04,"Approximated",null,0.04,"Approximated"]
[null,null,"GAAP Reserves after 4% Inflation stress",null,{"$f":"Import!I4760","v":0},{"$f":"E136*(1+E144)^E143","v":0},null,{"$f":"Import!I4770","v":0},{"$f":"H136*(1+H144)^H143","v":0}]
[null,"Stress Results","GAAP Reserves Ultimate Stress",null,{"$f":"IF(E136=0,0,E140*MAX((E145/E136),1)*(1+E142))","v":0},"Uplift",{"$f":"IF(E136=0,0,E146/E136-1)","v":0},{"$f":"IF(H136=0,0,H140*MAX((H145/H136),1))","v":0},"Uplift",{"$f":"IF(H136=0,0,H146/H136-1)","v":0}]
[null,null,"1 year emergence factor",null,{"$f":"Import!I4761","v":0},null,null,{"$f":"Import!I4771","v":0}]
[null,null,"GAAP Reserves 1-year Stress",null,{"$f":"IF(E136=0,0,E140*(1+E142)*(1+MAX(E145/E136-1,0)*E147))","v":0},"Uplift",{"$f":"IF(E136=0,0,E148/E136-1)","v":0},{"$f":"IF(H136=0,0,H140*(1+MAX(H145/H136-1,0)*H147))","v":0},"Uplift",{"$f":"IF(H136=0,0,H148/H136-1)","v":0}]
[]
[null,null,null,null,"UK Asbestos"]
[null,null,null,null,{"$f":"+TEXT('Group Information'!$C$3,\"YYYY\")","v":"2023"}]
[null,"1. New claims beyond 2050 stress","Year-end Net GAAP Reserves ",null,{"$f":"Import!I4776","v":0}]
[null,null,"Insurer's reserve proportion for post 2050 claims",null,{"$f":"Import!I4777","v":0},"Uplift for new claims past 2050"]
[null,null,"Stress for new claims arising beyond 2050",null,{"$f":"IFERROR(MIN(MAX((1+F154)/(1+E153/(1-E153))-1,0),F154),0)","v":0.14999999999999991},0.15]
[null,"2. Claim count stress","Stress on projected claims count up to 2050",null,0.15]
[null,"3. Med Adv Stress","Insurer's loading for future medical advances",null,{"$f":"Import!I4778","v":0},"Uplift for medical developments"]
[null,null,"Stress for future medical developments",null,{"$f":"IFERROR(MIN(MAX((1+F157)/(1+E156)-1,0),F157),0)","v":0.1},0.1]
[null,"4. Claims Inflation Stress","Effective Duration of Liabilities",null,{"$f":"Import!I4779","v":0}]
[null,null,"Increase in Claims Inflation",null,0.03,"Approximated"]
[null,null,"GAAP Reserves after 3% Inflation stress",null,{"$f":"Import!I4780","v":0},{"$f":"E152*(1+E159)^E158","v":0}]
[null,"Stress Results","GAAP Reserves Ultimate Stress",null,{"$f":"IF(E152=0,0,E152*(1+E154)*(1+E157)*(1+E155)*E160/E152)","v":0},"Uplift",{"$f":"IF(E152=0,0,E161/E152-1)","v":0}]
[null,null,"1 year emergence factor",null,{"$f":"Import!I4781","v":0}]
[null,null,"GAAP Reserves 1-year Stress",null,{"$f":"IF(E152=0,0,E152*(1+E154)*(1+E157)*(1+E155*E162)*((E160/E152-1)*E162+1))","v":0},"Uplift",{"$f":"IF(E152=0,0,E163/E152-1)","v":0}]
[]
[null,"F. RATING DOWNGRADE"]
[null,"The group is to submit a detailed disclosure on the impact of a ratings downgrade of any of its major operating entities or the group by TWO NOTCHES OR BELOW A-, WHICHEVER IS LOWER."]
[null,{"$f":"Import!I4782","v":0}]
[]
[]
[]
[]
[]
[null,"G. WORST-CASE ANNUAL AGGREGATE LOSS SCENARIO"]
[null,"The group is to submit the following: (1) and either (2a) or (2b) below"]
[null,"(1) R4 above and the three largest underwriting scenarios"]
[null,null,null,"Worst-case "]
[null,"R5.",null,{"$f":"E16","v":0}]
[null,"Aggregate of 3 largest net underwriting losses",null,{"$f":"IF(SUM(K81:K83,H53:H71)=0,0,IF(COUNT(K81:K83,H53:H71)=1,LARGE((H53:H71,K81:K83),1),IF(COUNT(K81:K83,H53:H71)=2,LARGE((H53:H71,K81:K83),1)+LARGE((H53:H71,K81:K83),2),LARGE((H53:H71,K81:K83),1)+LARGE((H53:H71,K81:K83),2)+LARGE((H53:H71,K81:K83),3))))","v":0}]
[null,"Total loss",null,{"$f":"SUM(D177:E178)","v":0}]
[null,"Occurrence Return period",null,{"$f":"Import!I4783","v":0}]
[null,"Relative Return period",null,{"$f":"Import!I4784","v":0},null,"Doc Name","Page Number"]
[null,"Assumptions ",null,{"$f":"HYPERLINK(\"#'Attachments'!G155\",\"Attach file\")","v":"Attach file"}]
[]
[null,"(2) Either (2a) or (2b):"]
[]
[null,"(2a) Series of loss simulations "]
[null,{"$f":"\"The group is to run a series of loss simulations or other analysis performed related to extreme tail events that include all in-force policies for \"&TEXT(B3,\"d mmmm yyyy\")","v":"The group is to run a series of loss simulations or other analysis performed related to extreme tail events that include all in-force policies for 1 January 2024"}]
[null,"Gross loss",null,{"$f":"Import!I4785","v":0}]
[null,"Net loss",null,{"$f":"Import!I4786","v":0}]
[null,"Risk measure",null,{"$f":"Import!I4787","v":0}]
[null,"Time horizon",null,{"$f":"Import!I4788","v":0}]
[null,"Occurrence Return period",null,{"$f":"Import!I4789","v":0}]
[null,"Relative Return period",null,{"$f":"Import!I4790","v":0}]
[null,"Proprietary / vendor model and version",null,{"$f":"Import!I4791","v":0},null,"Doc Name","Page Number"]
[null,"Assumptions ",null,{"$f":"HYPERLINK(\"#'Attachments'!G155\",\"Attach file\")","v":"Attach file"}]
[]
[null,"(2b) (Re)insurer-specific worst-case scenario"]
[null,"The group is to submit a description of its own worst-case annual aggregate loss scenario and the underlying assumptions. "]
[null,"Worst-case annual aggregate loss \nscenario description",null,{"$f":"Import!I4792","v":0}]
[]
[null,"Gross loss",null,{"$f":"Import!I4793","v":0}]
[null,"Net loss",null,{"$f":"Import!I4794","v":0}]
[null,"Occurrence Return period",null,{"$f":"Import!I4795","v":0}]
[null,"Relative Return period",null,{"$f":"Import!I4796","v":0},null,"Doc Name","Page Number"]
[null,"Underlying assumptions",null,{"$f":"HYPERLINK(\"#'Attachments'!G155\",\"Attach file\")","v":"Attach file"}]
[]
[null,"H. REVERSE STRESS TEST SCENARIO"]
[null,"The insurance group is to submit key assumptions and scenarios that would cause business failure as determined by a reverse stress test scenario."]
[null,"Reverse stress test scenario description",null,{"$f":"Import!I4797","v":0}]
[]
[null,"Gross loss",null,{"$f":"Import!I4798","v":0}]
[null,"Net loss",null,{"$f":"Import!I4799","v":0}]
[null,"Occurrence Return period",null,{"$f":"Import!I4800","v":0}]
[null,"Relative Return period",null,{"$f":"Import!I4801","v":0},null,"Doc Name","Page Number"]
[null,"Underlying assumptions",null,{"$f":"HYPERLINK(\"#'Attachments'!G155\",\"Attach file\")","v":"Attach file"}]
[]
[null,"I. TERRORISM"]
[null,{"$f":"\"The group is to submit the estimated top ten LARGEST losses (in DESCENDING order) arising from EXPLOSION OF A TWO-TONNE BOMB based upon policies in force at \"&TEXT(B3,\"d mmmm yyyy\")","v":"The group is to submit the estimated top ten LARGEST losses (in DESCENDING order) arising from EXPLOSION OF A TWO-TONNE BOMB based upon policies in force at 1 January 2024"}]
[null,null,null,"Loss 1","Loss 2","Loss 3","Loss 4","Loss 5","Loss 6","Loss 7","Loss 8","Loss 9","Loss 10"]
[null,"State / province",null,{"$f":"Import!I4803","v":0},{"$f":"Import!I4810","v":0},{"$f":"Import!I4817","v":0},{"$f":"Import!I4824","v":0},{"$f":"Import!I4831","v":0},{"$f":"Import!I4838","v":0},{"$f":"Import!I4845","v":0},{"$f":"Import!I4852","v":0},{"$f":"Import!I4859","v":0},{"$f":"Import!I4866","v":0}]
[null,"Country",null,{"$f":"Import!I4804","v":0},{"$f":"Import!I4811","v":0},{"$f":"Import!I4818","v":0},{"$f":"Import!I4825","v":0},{"$f":"Import!I4832","v":0},{"$f":"Import!I4839","v":0},{"$f":"Import!I4846","v":0},{"$f":"Import!I4853","v":0},{"$f":"Import!I4860","v":0},{"$f":"Import!I4867","v":0}]
[null,"Total gross loss estimate",null,{"$f":"Import!I4805","v":0},{"$f":"Import!I4812","v":0},{"$f":"Import!I4819","v":0},{"$f":"Import!I4826","v":0},{"$f":"Import!I4833","v":0},{"$f":"Import!I4840","v":0},{"$f":"Import!I4847","v":0},{"$f":"Import!I4854","v":0},{"$f":"Import!I4861","v":0},{"$f":"Import!I4868","v":0}]
[null,"TRIP or other recoverable, if any",null,{"$f":"Import!I4806","v":0},{"$f":"Import!I4813","v":0},{"$f":"Import!I4820","v":0},{"$f":"Import!I4827","v":0},{"$f":"Import!I4834","v":0},{"$f":"Import!I4841","v":0},{"$f":"Import!I4848","v":0},{"$f":"Import!I4855","v":0},{"$f":"Import!I4862","v":0},{"$f":"Import!I4869","v":0}]
[null,"Reinsurance recoveries, if any",null,{"$f":"Import!I4807","v":0},{"$f":"Import!I4814","v":0},{"$f":"Import!I4821","v":0},{"$f":"Import!I4828","v":0},{"$f":"Import!I4835","v":0},{"$f":"Import!I4842","v":0},{"$f":"Import!I4849","v":0},{"$f":"Import!I4856","v":0},{"$f":"Import!I4863","v":0},{"$f":"Import!I4870","v":0}]
[null,"Total net loss estimate",null,{"$f":"Import!I4808","v":0},{"$f":"Import!I4815","v":0},{"$f":"Import!I4822","v":0},{"$f":"Import!I4829","v":0},{"$f":"Import!I4836","v":0},{"$f":"Import!I4843","v":0},{"$f":"Import!I4850","v":0},{"$f":"Import!I4857","v":0},{"$f":"Import!I4864","v":0},{"$f":"Import!I4871","v":0}]
[null,"Target location if known",null,{"$f":"Import!I4809","v":0},{"$f":"Import!I4816","v":0},{"$f":"Import!I4823","v":0},{"$f":"Import!I4830","v":0},{"$f":"Import!I4837","v":0},{"$f":"Import!I4844","v":0},{"$f":"Import!I4851","v":0},{"$f":"Import!I4858","v":0},{"$f":"Import!I4865","v":0},{"$f":"Import!I4872","v":0}]
[null,"Proprietary / vendor model and version",null,{"$f":"Import!I4802","v":0},null,"Doc Name","Page Number"]
[null,"All assumptions and calculations",null,{"$f":"HYPERLINK(\"#'Attachments'!G155\",\"Attach file\")","v":"Attach file"}]
[]
[null,"J. TECHNOLOGY RISK"]
[null,"a) CYBER RISK - UNDERWRITING "]
[]
[null,"a) If the Group writes affirmative cyber risk policies, provide details for the policies written during the reporting period"]
[null,"b) If the (Re)Insurer does not write any affirmative cyber policies, skip item 1 and proceed to item 2 to provide details of non-affirmative cyber exposures for all other policies written. This section must be completed by affirmative cyber writers as well in addition to a)."]
[]
[]
[]
[]
[]
[null,"CONSOLIDATED RESULTS (Bermuda + Subsidiaries)"]
[null,"Policy Type",null,"Direct & Facultative",null,null,"Reinsurance",null,null,"Package "]
[null,null,null,{"$f":"YEAR($B$3-1)","v":2023},{"$f":"D242-1","v":2022},null,{"$f":"YEAR($B$3-1)","v":2023},{"$f":"G242-1","v":2022},null,{"$f":"YEAR($B$3-1)","v":2023},{"$f":"J242-1","v":2022}]
["(i)","Total number of cyber policies in force (units) ",null,{"$f":"Import!I4873","v":0},{"$f":"Import!K4873","v":0},null,{"$f":"Import!I4889","v":0},{"$f":"Import!K4889","v":0},null,{"$f":"Import!I4905","v":0},{"$f":"Import!K4905","v":0}]
["(ii)","Gross Exposure for Policies in force ('$000)",null,{"$f":"Import!I4874","v":0},{"$f":"Import!K4874","v":0},{"$f":"IF(D244>=D245,\"TRUE\",\"FALSE\")","v":"TRUE"},{"$f":"Import!I4890","v":0},{"$f":"Import!K4890","v":0},{"$f":"IF(G244>=G245,\"TRUE\",\"FALSE\")","v":"TRUE"},{"$f":"Import!I4906","v":0},{"$f":"Import!K4906","v":0},{"$f":"IF(J244>=J245,\"TRUE\",\"FALSE\")","v":"TRUE"}]
["(iii)","Net Exposure for Policies in force ($'000)",null,{"$f":"Import!I4875","v":0},{"$f":"Import!K4875","v":0},null,{"$f":"Import!I4891","v":0},{"$f":"Import!K4891","v":0},null,{"$f":"Import!I4907","v":0},{"$f":"Import!K4907","v":0}]
["(iv).1","GPW - Proportional ('$000)",null,{"$f":"Import!I4876","v":0},{"$f":"Import!K4876","v":0},null,{"$f":"Import!I4892","v":0},{"$f":"Import!K4892","v":0},null,{"$f":"Import!I4908","v":0},{"$f":"Import!K4908","v":0}]
["(iv).2","GPW - Non-Proportional ('$000)",null,{"$f":"Import!I4877","v":0},{"$f":"Import!K4877","v":0},null,{"$f":"Import!I4893","v":0},{"$f":"Import!K4893","v":0},null,{"$f":"Import!I4909","v":0},{"$f":"Import!K4909","v":0}]
["(iv)","Gross Premium Written ('$000)",null,{"$f":"SUM(D246:D247)","v":0},{"$f":"SUM(E246:E247)","v":0},{"$f":"IF(D248>=D249,\"TRUE\",\"FALSE\")","v":"TRUE"},{"$f":"SUM(G246:G247)","v":0},{"$f":"SUM(H246:H247)","v":0},{"$f":"IF(G248>=G249,\"TRUE\",\"FALSE\")","v":"TRUE"},{"$f":"SUM(J246:J247)","v":0},{"$f":"SUM(K246:K247)","v":0},{"$f":"IF(J248>=J249,\"TRUE\",\"FALSE\")","v":"TRUE"}]
["(v)","Net Premium Written ($'000)",null,{"$f":"Import!I4878","v":0},{"$f":"Import!K4878","v":0},null,{"$f":"Import!I4894","v":0},{"$f":"Import!K4894","v":0},null,{"$f":"Import!I4910","v":0},{"$f":"Import!K4910","v":0}]
["(vi)","Gross Loss Reserves ('$000)",null,{"$f":"Import!I4879","v":0},{"$f":"Import!K4879","v":0},{"$f":"IF(D250>=D251,\"TRUE\",\"FALSE\")","v":"TRUE"},{"$f":"Import!I4895","v":0},{"$f":"Import!K4895","v":0},{"$f":"IF(G250>=G251,\"TRUE\",\"FALSE\")","v":"TRUE"},{"$f":"Import!I4911","v":0},{"$f":"Import!K4911","v":0},{"$f":"IF(J250>=J251,\"TRUE\",\"FALSE\")","v":"TRUE"}]
["(vii)","Net Loss Reserves ($'000)",null,{"$f":"Import!I4880","v":0},{"$f":"Import!K4880","v":0},null,{"$f":"Import!I4896","v":0},{"$f":"Import!K4896","v":0},null,{"$f":"Import!I4912","v":0},{"$f":"Import!K4912","v":0}]
["(viii)","Number of Reported Claims (units) ",null,{"$f":"Import!I4881","v":0},{"$f":"Import!K4881","v":0},null,{"$f":"Import!I4897","v":0},{"$f":"Import!K4897","v":0},null,{"$f":"Import!I4913","v":0},{"$f":"Import!K4913","v":0}]
["(ix)","Paid Claims ($'000)",null,{"$f":"Import!I4882","v":0},{"$f":"Import!K4882","v":0},null,{"$f":"Import!I4898","v":0},{"$f":"Import!K4898","v":0},null,{"$f":"Import!I4914","v":0},{"$f":"Import!K4914","v":0}]
["(x)","Incurred Losses ($'000)",null,{"$f":"Import!I4883","v":0},{"$f":"Import!K4883","v":0},null,{"$f":"Import!I4899","v":0},{"$f":"Import!K4899","v":0},null,{"$f":"Import!I4915","v":0},{"$f":"Import!K4915","v":0}]
["(xi)","Approximate Average Size of Claims ($'000)",null,{"$f":"Import!I4884","v":0},{"$f":"Import!K4884","v":0},null,{"$f":"Import!I4900","v":0},{"$f":"Import!K4900","v":0},null,{"$f":"Import!I4916","v":0},{"$f":"Import!K4916","v":0}]
["(xii)","Largest Cyber Claim ($'000)",null,{"$f":"Import!I4885","v":0},{"$f":"Import!K4885","v":0},null,{"$f":"Import!I4901","v":0},{"$f":"Import!K4901","v":0},null,{"$f":"Import!I4917","v":0},{"$f":"Import!K4917","v":0}]
["(xiii)","Brief Description of largest claim (text)",null,{"$f":"Import!I4886","v":0},null,null,{"$f":"Import!I4902","v":0},null,null,{"$f":"Import!I4918","v":0}]
["xiv)","Gross Policy Limits",null,{"$f":"Import!I4887","v":0},{"$f":"Import!K4887","v":0},null,{"$f":"Import!I4903","v":0},{"$f":"Import!K4903","v":0},null,{"$f":"Import!I4919","v":0},{"$f":"Import!K4919","v":0}]
["xv)","Net Policy Limits",null,{"$f":"Import!I4888","v":0},{"$f":"Import!K4888","v":0},null,{"$f":"Import!I4904","v":0},{"$f":"Import!K4904","v":0},null,{"$f":"Import!I4920","v":0},{"$f":"Import!K4920","v":0}]
[]
[]
[]
[]
[]
[]
[]
[]
[]
[]
[]
[]
[]
[]
[]
[]
[]
[]
[]
[]
[]
[]
[null,"GEOGRAPHIC SPECIFIC INFORMATION"]
[null,"CONSOLIDATED RESULTS (Bermuda + Subsidiaries)"]
[null,"Policy Type",null,"Direct & Facultative ",null,null,null,null,"Reinsurance ",null,null,null,null,"Package "]
[null,null,null,"# of Policies",{"$f":"YEAR($B$3-1)&\" Cyber Premiums Written\"","v":"2023 Cyber Premiums Written"},null,{"$f":"YEAR($B$3-1)&\"  Exposure\"","v":"2023  Exposure"},null,"# of Policies",{"$f":"YEAR($B$3-1)&\" Cyber Premiums Written\"","v":"2023 Cyber Premiums Written"},null,{"$f":"YEAR($B$3-1)&\"  Exposure\"","v":"2023  Exposure"},null,"# of Policies",{"$f":"YEAR($B$3-1)&\" Cyber Premiums Written\"","v":"2023 Cyber Premiums Written"},null,{"$f":"YEAR($B$3-1)&\"  Exposure\"","v":"2023  Exposure"}]
[null,"Location",null,null,"Gross ('$000)","Net ('$000)","Gross ('$000)","Net ('$000)",null,"Gross ('$000)","Net ('$000)","Gross ('$000)","Net ('$000)",null,"Gross ('$000)","Net ('$000)","Gross ('$000)","Net ('$000)"]
[null,"United States (all states)",null,{"$f":"Import!I4921","v":0},{"$f":"Import!I4928","v":0},{"$f":"Import!I4935","v":0},{"$f":"Import!I4942","v":0},{"$f":"Import!I4949","v":0},{"$f":"Import!I4956","v":0},{"$f":"Import!I4963","v":0},{"$f":"Import!I4970","v":0},{"$f":"Import!I4977","v":0},{"$f":"Import!I4984","v":0},{"$f":"Import!I4991","v":0},{"$f":"Import!I4998","v":0},{"$f":"Import!I5005","v":0},{"$f":"Import!I5012","v":0},{"$f":"Import!I5019","v":0}]
[null,"Canada",null,{"$f":"Import!I4922","v":0},{"$f":"Import!I4929","v":0},{"$f":"Import!I4936","v":0},{"$f":"Import!I4943","v":0},{"$f":"Import!I4950","v":0},{"$f":"Import!I4957","v":0},{"$f":"Import!I4964","v":0},{"$f":"Import!I4971","v":0},{"$f":"Import!I4978","v":0},{"$f":"Import!I4985","v":0},{"$f":"Import!I4992","v":0},{"$f":"Import!I4999","v":0},{"$f":"Import!I5006","v":0},{"$f":"Import!I5013","v":0},{"$f":"Import!I5020","v":0}]
[null,"UK, Continental Europe",null,{"$f":"Import!I4923","v":0},{"$f":"Import!I4930","v":0},{"$f":"Import!I4937","v":0},{"$f":"Import!I4944","v":0},{"$f":"Import!I4951","v":0},{"$f":"Import!I4958","v":0},{"$f":"Import!I4965","v":0},{"$f":"Import!I4972","v":0},{"$f":"Import!I4979","v":0},{"$f":"Import!I4986","v":0},{"$f":"Import!I4993","v":0},{"$f":"Import!I5000","v":0},{"$f":"Import!I5007","v":0},{"$f":"Import!I5014","v":0},{"$f":"Import!I5021","v":0}]
[null,"Australia, New Zealand",null,{"$f":"Import!I4924","v":0},{"$f":"Import!I4931","v":0},{"$f":"Import!I4938","v":0},{"$f":"Import!I4945","v":0},{"$f":"Import!I4952","v":0},{"$f":"Import!I4959","v":0},{"$f":"Import!I4966","v":0},{"$f":"Import!I4973","v":0},{"$f":"Import!I4980","v":0},{"$f":"Import!I4987","v":0},{"$f":"Import!I4994","v":0},{"$f":"Import!I5001","v":0},{"$f":"Import!I5008","v":0},{"$f":"Import!I5015","v":0},{"$f":"Import!I5022","v":0}]
[null,"Japan",null,{"$f":"Import!I4925","v":0},{"$f":"Import!I4932","v":0},{"$f":"Import!I4939","v":0},{"$f":"Import!I4946","v":0},{"$f":"Import!I4953","v":0},{"$f":"Import!I4960","v":0},{"$f":"Import!I4967","v":0},{"$f":"Import!I4974","v":0},{"$f":"Import!I4981","v":0},{"$f":"Import!I4988","v":0},{"$f":"Import!I4995","v":0},{"$f":"Import!I5002","v":0},{"$f":"Import!I5009","v":0},{"$f":"Import!I5016","v":0},{"$f":"Import!I5023","v":0}]
[null,"Worldwide covers",null,{"$f":"Import!I4926","v":0},{"$f":"Import!I4933","v":0},{"$f":"Import!I4940","v":0},{"$f":"Import!I4947","v":0},{"$f":"Import!I4954","v":0},{"$f":"Import!I4961","v":0},{"$f":"Import!I4968","v":0},{"$f":"Import!I4975","v":0},{"$f":"Import!I4982","v":0},{"$f":"Import!I4989","v":0},{"$f":"Import!I4996","v":0},{"$f":"Import!I5003","v":0},{"$f":"Import!I5010","v":0},{"$f":"Import!I5017","v":0},{"$f":"Import!I5024","v":0}]
[null,"Other",null,{"$f":"Import!I4927","v":0},{"$f":"Import!I4934","v":0},{"$f":"Import!I4941","v":0},{"$f":"Import!I4948","v":0},{"$f":"Import!I4955","v":0},{"$f":"Import!I4962","v":0},{"$f":"Import!I4969","v":0},{"$f":"Import!I4976","v":0},{"$f":"Import!I4983","v":0},{"$f":"Import!I4990","v":0},{"$f":"Import!I4997","v":0},{"$f":"Import!I5004","v":0},{"$f":"Import!I5011","v":0},{"$f":"Import!I5018","v":0},{"$f":"Import!I5025","v":0}]
[null,"TOTAL",null,{"$f":"SUM(D287:D293)=D243","v":true},{"$f":"SUM(E287:E293)=D248","v":true},{"$f":"SUM(F287:F293)=D249","v":true},{"$f":"SUM(G287:G293)=D244","v":true},{"$f":"SUM(H287:H293)=D245","v":true},{"$f":"SUM(I287:I293)=G243","v":true},{"$f":"SUM(J287:J293)=G248","v":true},{"$f":"SUM(K287:K293)=G249","v":true},{"$f":"SUM(L287:L293)=G244","v":true},{"$f":"SUM(M287:M293)=G245","v":true},{"$f":"SUM(N287:N293)=J243","v":true},{"$f":"SUM(O287:O293)=J248","v":true},{"$f":"SUM(P287:P293)=J249","v":true},{"$f":"SUM(Q287:Q293)=J244","v":true},{"$f":"SUM(R287:R293)=J245","v":true}]
[null,"Cyber Underwriting risk appetite and limits",null,{"$f":"HYPERLINK(\"#'Attachments'!G85\",\"Attach file\")","v":"Attach file"}]
[]
[]
[]
[]
[]
[]
[]
[]
[]
[]
[]
[]
[]
[]
[]
[2,"For all other non-cyber-specific (re)insurance policies issued, provide the following on a consolidated EBS basis (applicable to all insurers whether or not they write affirmative cyber policies):"]
[null,"Answering YES or NO, in which of the following lines of business has a cyber exclusion clause been included based on the policies enforced during the reporting period"]
[]
[null,null,null,null,null,"Does the company have exclusion clause in place for this LOB in its portfolio?","If NO, provide ESTIMATED Potential Gross Exposure for portfolio where no cyber exclusion clause has been included in the policy:",null,"Indicate if portfolio has predominantly claims-made (CM) or occurrence (OCC) claims trigger"]
[]
[]
[]
[null,null,null,null,null,null,{"$f":"YEAR($B$3-1)","v":2023},{"$f":"G318-1","v":2022}]
[null,"Line of Business",null,null,null,null,"('$000)","('$000)"]
[null,"Property",null,null,null,{"$f":"Import!I5026","v":"Select"},{"$f":"Import!I5049","v":0},{"$f":"Import!I5072","v":0},{"$f":"Import!I5095","v":"Select from Drop-down"},0]
[null,"Property Non-Proportional",null,null,null,{"$f":"Import!I5027","v":"Select"},{"$f":"Import!I5050","v":0},{"$f":"Import!I5073","v":0},{"$f":"Import!I5096","v":"Select from Drop-down"},0]
[null,"Personal Accident",null,null,null,{"$f":"Import!I5028","v":"Select"},{"$f":"Import!I5051","v":0},{"$f":"Import!I5074","v":0},{"$f":"Import!I5097","v":"Select from Drop-down"},0]
[null,"Personal Accident Non-Proportional",null,null,null,{"$f":"Import!I5029","v":"Select"},{"$f":"Import!I5052","v":0},{"$f":"Import!I5075","v":0},{"$f":"Import!I5098","v":"Select from Drop-down"},0]
[null,"Aviation",null,null,null,{"$f":"Import!I5030","v":"Select"},{"$f":"Import!I5053","v":0},{"$f":"Import!I5076","v":0},{"$f":"Import!I5099","v":"Select from Drop-down"},0]
[null,"Aviation Non-Proportional",null,null,null,{"$f":"Import!I5031","v":"Select"},{"$f":"Import!I5054","v":0},{"$f":"Import!I5077","v":0},{"$f":"Import!I5100","v":"Select from Drop-down"},0]
[null,"Credit/Surety",null,null,null,{"$f":"Import!I5032","v":"Select"},{"$f":"Import!I5055","v":0},{"$f":"Import!I5078","v":0},{"$f":"Import!I5101","v":"Select from Drop-down"},0]
[null,"Credit/Surety - Non-Proportional",null,null,null,{"$f":"Import!I5033","v":"Select"},{"$f":"Import!I5056","v":0},{"$f":"Import!I5079","v":0},{"$f":"Import!I5102","v":"Select from Drop-down"},0]
[null,"Energy Offshore/Marine",null,null,null,{"$f":"Import!I5034","v":"Select"},{"$f":"Import!I5057","v":0},{"$f":"Import!I5080","v":0},{"$f":"Import!I5103","v":"Select from Drop-down"},0]
[null,"Energy offshore/Marine Non-Proportional",null,null,null,{"$f":"Import!I5035","v":"Select"},{"$f":"Import!I5058","v":0},{"$f":"Import!I5081","v":0},{"$f":"Import!I5104","v":"Select from Drop-down"},0]
[null,"US Casualty",null,null,null,{"$f":"Import!I5036","v":"Select"},{"$f":"Import!I5059","v":0},{"$f":"Import!I5082","v":0},{"$f":"Import!I5105","v":"Select from Drop-down"},0]
[null,"US Casualty Non-Proportional",null,null,null,{"$f":"Import!I5037","v":"Select"},{"$f":"Import!I5060","v":0},{"$f":"Import!I5083","v":0},{"$f":"Import!I5106","v":"Select from Drop-down"},0]
[null,"US Professional",null,null,null,{"$f":"Import!I5038","v":"Select"},{"$f":"Import!I5061","v":0},{"$f":"Import!I5084","v":0},{"$f":"Import!I5107","v":"Select from Drop-down"},0]
[null,"US Professional Non-Proportional",null,null,null,{"$f":"Import!I5039","v":"Select"},{"$f":"Import!I5062","v":0},{"$f":"Import!I5085","v":0},{"$f":"Import!I5108","v":"Select from Drop-down"},0]
[null,"US Specialty",null,null,null,{"$f":"Import!I5040","v":"Select"},{"$f":"Import!I5063","v":0},{"$f":"Import!I5086","v":0},{"$f":"Import!I5109","v":"Select from Drop-down"},0]
[null,"US Specialty Non-Proportional",null,null,null,{"$f":"Import!I5041","v":"Select"},{"$f":"Import!I5064","v":0},{"$f":"Import!I5087","v":0},{"$f":"Import!I5110","v":"Select from Drop-down"},0]
[null,"International Motor",null,null,null,{"$f":"Import!I5042","v":"Select"},{"$f":"Import!I5065","v":0},{"$f":"Import!I5088","v":0},{"$f":"Import!I5111","v":"Select from Drop-down"},0]
[null,"International Motor Non-Proportional",null,null,null,{"$f":"Import!I5043","v":"Select"},{"$f":"Import!I5066","v":0},{"$f":"Import!I5089","v":0},{"$f":"Import!I5112","v":"Select from Drop-down"},0]
[null,"International Casualty Non-Motor",null,null,null,{"$f":"Import!I5044","v":"Select"},{"$f":"Import!I5067","v":0},{"$f":"Import!I5090","v":0},{"$f":"Import!I5113","v":"Select from Drop-down"},0]
[null,"International Casualty Non-Motor Non-Proportional",null,null,null,{"$f":"Import!I5045","v":"Select"},{"$f":"Import!I5068","v":0},{"$f":"Import!I5091","v":0},{"$f":"Import!I5114","v":"Select from Drop-down"},0]
[null,"Retro Property",null,null,null,{"$f":"Import!I5046","v":"Select"},{"$f":"Import!I5069","v":0},{"$f":"Import!I5092","v":0},{"$f":"Import!I5115","v":"Select from Drop-down"},0]
[null,"Structured/Finite reinsurance",null,null,null,{"$f":"Import!I5047","v":"Select"},{"$f":"Import!I5070","v":0},{"$f":"Import!I5093","v":0},{"$f":"Import!I5116","v":"Select from Drop-down"},0]
[null,"Health",null,null,null,{"$f":"Import!I5048","v":"Select"},{"$f":"Import!I5071","v":0},{"$f":"Import!I5094","v":0},{"$f":"Import!I5117","v":"Select from Drop-down"},0]
[null,"TOTAL",null,null,null,null,{"$f":"SUM(G320:G342)","v":0},{"$f":"SUM(H320:H342)","v":0}]
[]
[3,"BMA-Prescribed Cyber Stress Scenarios for insurers writing affirmative cyber covers or those that have material non-affirmative cyber exposures"]
[null,"Assume cyber underwriting scenarios are generated by a perpetrator that is not a nation state and that these scenarios do not trigger any cyber war or other similar exclusions"]
[null,"For reinsurers, please calculate separately on the basis that these attacks are deemed both as one event and as ten separate events, returning whichever causes the largest net loss."]
[null,"For the purpose of these scenarios, we define Materiality to be any one the following metrics:\n1. Affirmative Cyber GWP represents 15% or more of the total GWP for the current year\n2. Gross estimated affirmative cyber loss accounts for 10% of the current capital and surplus (C&S)\n3. Gross estimated non-affirmative cyber loss accounts for 5% of the current C&S \n4. Cyber-related loss events (either arising from affirmative cyber policy or non-affirmative policy responding to a cyber loss event) constitute 15% of the total losses incurred for the most recent year end\n"]
[]
[]
[]
[]
[null,null,null,"Total Estimated Gross Loss (000's)","Total Estimated Net Loss (000's)","Gross loss - affirmative cyber cover (000's)"," Net loss - affirmative cyber cover (000's)","Cyber Gross Premium Written (000's)","Cyber Net Premium Written (000's)","Occurrence Return Period ","Proprietary/ Vendor Model Used & Version (if applicable)","Assumptions Used+ Other supporting documents","Potential Management Action/mitigation plans to be taken post-stress scenario"]
[null,1,"Cloud outage",{"$f":"F354+E366","v":0},{"$f":"G354+F366","v":0},{"$f":"Import!I5118","v":0},{"$f":"Import!I5121","v":0},{"$f":"Import!I5124","v":0},{"$f":"Import!I5127","v":0},{"$f":"Import!I5130","v":0},{"$f":"Import!I5133","v":0},{"$f":"HYPERLINK(\"#'Attachments'!G95\",\"Attach file\")","v":"Attach file"},"Attach file"]
[null,2,"Ransomware",{"$f":"F355+G366","v":0},{"$f":"G355+H366","v":0},{"$f":"Import!I5119","v":0},{"$f":"Import!I5122","v":0},{"$f":"Import!I5125","v":0},{"$f":"Import!I5128","v":0},{"$f":"Import!I5131","v":0},{"$f":"Import!I5134","v":0},"Attach file","Attach file"]
[null,3,"Data Breach",{"$f":"F356+I366","v":0},{"$f":"G356+J366","v":0},{"$f":"Import!I5120","v":0},{"$f":"Import!I5123","v":0},{"$f":"Import!I5126","v":0},{"$f":"Import!I5129","v":0},{"$f":"Import!I5132","v":0},{"$f":"Import!I5135","v":0},"Attach file","Attach file"]
[]
[null,"Summary of Non-affirmative cyber exposure per stress scenario",null,null,"1. Cloud Outage",null,"2. Ransomware",null,"3. Data Breach"]
[null,"Line of Business",null,null,"Gross loss - non-affirmative (000's)","Net loss - non-affirmative (000's)","Gross loss - non-affirmative (000's)","Net loss - non-affirmative (000's)","Gross loss - non-affirmative (000's)","Net loss - non-affirmative (000's)"]
[null,"1. Crime ",null,null,{"$f":"Import!I5136","v":0},{"$f":"Import!I5142","v":0},{"$f":"Import!I5148","v":0},{"$f":"Import!I5154","v":0},{"$f":"Import!I5160","v":0},{"$f":"Import!I5166","v":0}]
[null,"2. E&O policies",null,null,{"$f":"Import!I5137","v":0},{"$f":"Import!I5143","v":0},{"$f":"Import!I5149","v":0},{"$f":"Import!I5155","v":0},{"$f":"Import!I5161","v":0},{"$f":"Import!I5167","v":0}]
[null,"3. Technology E&O ",null,null,{"$f":"Import!I5138","v":0},{"$f":"Import!I5144","v":0},{"$f":"Import!I5150","v":0},{"$f":"Import!I5156","v":0},{"$f":"Import!I5162","v":0},{"$f":"Import!I5168","v":0}]
[null,"4. D&O ",null,null,{"$f":"Import!I5139","v":0},{"$f":"Import!I5145","v":0},{"$f":"Import!I5151","v":0},{"$f":"Import!I5157","v":0},{"$f":"Import!I5163","v":0},{"$f":"Import!I5169","v":0}]
[null,"5. GL / failure to supply ",null,null,{"$f":"Import!I5140","v":0},{"$f":"Import!I5146","v":0},{"$f":"Import!I5152","v":0},{"$f":"Import!I5158","v":0},{"$f":"Import!I5164","v":0},{"$f":"Import!I5170","v":0}]
[null,"6. Other policies that may respond to the stress scenario",null,null,{"$f":"Import!I5141","v":0},{"$f":"Import!I5147","v":0},{"$f":"Import!I5153","v":0},{"$f":"Import!I5159","v":0},{"$f":"Import!I5165","v":0},{"$f":"Import!I5171","v":0}]
[null,"Total",null,null,{"$f":"SUM(E360:E365)","v":0},0,0,0,0,0]
[]
[4,"Group-specific/own cyber stress scenario (for those that write affirmative cyber coverage) on a consolidated basis: "]
[null,"The group is to submit a description of its own cyber risk worst-case annual aggregate loss scenario and the underlying assumptions. "]
[null,"Worst-case annual aggregate loss \nscenario description",null,{"$f":"Import!I5172","v":0}]
[]
[null,"Gross policy limits",null,{"$f":"Import!I5173","v":0}]
[null,"Net Policy limits",null,{"$f":"Import!I5174","v":0}]
[null,"Gross loss ('$000)",null,{"$f":"Import!I5175","v":0}]
[null,"Net loss ('$000)",null,{"$f":"Import!I5176","v":0}]
[null,"Occurrence Return period",null,{"$f":"Import!I5177","v":0}]
[null,"Relative Return period",null,{"$f":"Import!I5178","v":0},null,"Doc Name","Page Number"]
[null,"Underlying assumptions:",null,{"$f":"HYPERLINK(\"#'Attachments'!G155\",\"Attach file\")","v":"Attach file"}]
[]
[null,"b) TECHNOLOGY RISK - GROUP OWN/OPERATIONAL CYBERSECURITY AND RESILIENCE CAPABILITIES  "]
[null,"Technology Risk Guidance"]
[]
[null,"Technology Risk is a key enterprise risk that entities in the financial sectors regulated by the Authority must manage. The questionnaire below is designed to assess Technology Risk, including Information Security, Data Protection and IT or Cybersecurity. The Authority expects that the board of directors of all licensed entities will have evaluated the aforementioned risks. These risks should be managed as part of an overall Enterprise Risk Management Process. This assessment is designed to assess Technology Risk controls. The IT or Cybersecurity controls are grounded in the \"National Institute of Standards and Technology Cybersecurity Framework\" (NIST). The assessment focuses on several areas, to include: governance, policies and procedures, ongoing training, critical/sensitive asset identification, protective measures, detection of anomalous activity, documented incident response plans, and effective business recovery processes. "]
[]
[]
[]
[null,"The Authority recognises that there is no “one size fits all” approach to addressing these risks, as specific business circumstances may vary greatly from entity to entity. Each entity must assess their risks, create prudent policies and procedures to mitigate known risks, and ensure that the organisation is properly trained and equipped.\n"]
[]
[]
[null,"Select one response from the drop-down list. Where required/applicable, attach the relevant document indicating the document name and identifying the applicable page numbers"]
[]
[null,"SECTION A - BUSINESS SUMMARY QUESTIONS"]
[null,"Geographical details",null,null,null,null,null,null,null,null,null,"Responses",null,"Complete where prompted"]
[null,1,"Is the company headquartered in Bermuda",null,null,null,null,null,null,null,null,{"$f":"Import!E5179","v":"Select Yes/No"}]
[null,{"$f":"B394+1","v":2},"Number of users located in Bermuda",null,null,null,null,null,null,null,null,{"$f":"Import!E5180","v":"Select Amount"}]
[null,{"$f":"B395+1","v":3},"Number of users Globally ",null,null,null,null,null,null,null,null,{"$f":"Import!E5181","v":"Select Amount"}]
[null,{"$f":"B396+1","v":4},"Do you have a data centre in Bermuda to host your servers",null,null,null,null,null,null,null,null,{"$f":"Import!E5182","v":"Select Yes/No"}]
[null,{"$f":"B397+1","v":5},"Do you utilise a cloud hosting company to host your servers",null,null,null,null,null,null,null,null,{"$f":"Import!E5183","v":"Select Yes/No"}]
[null,{"$f":"B398+1","v":6},"Does the organisation have cybersecurity insurance coverage (i.e. to cover internal risk from security incidents)",null,null,null,null,null,null,null,null,{"$f":"Import!E5184","v":"Select Yes/No"}]
[null,"Is the following data type stored/processed"]
[null,{"$f":"B399+1","v":7},"Do you collect/store/process personally identifiable information (PII) of your customers? examples include but are not limited to: customer name, email address, social security number",null,null,null,null,null,null,null,null,{"$f":"Import!E5185","v":"Select Yes/No"}]
[null,{"$f":"B401+1","v":8},"Payment card data (i.e. credit/debit card)",null,null,null,null,null,null,null,null,{"$f":"Import!E5186","v":"Select Yes/No"}]
[null,{"$f":"B402+1","v":9},"Is customer PII collected/stored/processed by this entity on behalf of other entities ",null,null,null,null,null,null,null,null,{"$f":"Import!E5187","v":"Select Yes/No"}]
[null,"Are the following internet facing services in place "]
[null,{"$f":"B403+1","v":10},"Brochureware (static content only)",null,null,null,null,null,null,null,null,{"$f":"Import!E5188","v":"Select Yes/No"}]
[null,{"$f":"B405+1","v":11},"Web applications",null,null,null,null,null,null,null,null,{"$f":"Import!E5189","v":"Select Yes/No"}]
[null,{"$f":"B406+1","v":12},"Web applications that process (query, reference, capture, store, transmit) personal data or payment card data ",null,null,null,null,null,null,null,null,{"$f":"Import!E5190","v":"Select Yes/No"}]
[null,"Roles & Responsibilities"]
[null,{"$f":"B407+1","v":13},"Is there a designated IT Risk Manager, if not which job title holds this responsibility",null,null,null,null,null,null,null,null,{"$f":"Import!E5191","v":"Select Yes/No"},null,{"$f":"Import!E5192","v":"Confirm role holder's name"}]
[null,{"$f":"B409+1","v":14},"Is there a designated IT Security Manager, if not which job title holds this responsibility",null,null,null,null,null,null,null,null,{"$f":"Import!E5193","v":"Select Yes/No"},null,{"$f":"Import!E5194","v":"Confirm role holder's name"}]
[null,{"$f":"B410+1","v":15},"Is there a designated IT Disaster Recovery Manager, if not which job title holds this responsibility",null,null,null,null,null,null,null,null,{"$f":"Import!E5195","v":"Select Yes/No"},null,{"$f":"Import!E5196","v":"Confirm role holder's name"}]
[null,{"$f":"B411+1","v":16},"Is there a designated Business Continuity Manager (BCP) in place, if not which job title holds this responsibility",null,null,null,null,null,null,null,null,{"$f":"Import!E5197","v":"Select Yes/No"},null,{"$f":"Import!E5198","v":"Confirm role holder's name"}]
[null,{"$f":"B412+1","v":17},"Does the organisation have a designated Data Privacy Officer",null,null,null,null,null,null,null,null,{"$f":"Import!E5199","v":"Select Yes/No"},null,{"$f":"Import!E5200","v":"Confirm role holder's name"}]
[null,{"$f":"B413+1","v":18},"Is there an annual IT audit plan in place i.e. detailing any IT audit activity for the year ",null,null,null,null,null,null,null,null,{"$f":"Import!E5201","v":"Select Yes/No"},null,{"$f":"Import!E5202","v":"Date of last internal/external IT audit"}]
[]
[null,"SECTION B - NIST CONTROL SUMMARY - Answer YES/NO"]
[null,"Identify",null,null,null,null,null,null,null,null,null,"Responses"]
[null,1,"Is there a Cyber Risk Management Programme in place (i.e. assessing all IT risk to include IT Security Risk)",null,null,null,null,null,null,null,null,{"$f":"Import!E5203","v":"Select Yes/No"}]
[null,{"$f":"B418+1","v":2},"Is the status of the Cyber Risk Management Programme communicated to the Senior Mgt. team & the Board of Directors on a regular basis",null,null,null,null,null,null,null,null,{"$f":"Import!E5204","v":"Select Yes/No"}]
[null,3,"Has a Cyber Risk Policy (or Cybersecurity Policy) been approved by the Board and is annually updated",null,null,null,null,null,null,null,null,{"$f":"Import!E5205","v":"Select Yes/No"},null,"Specify name of relevant document"]
[null,4,"Are the roles and responsibilities of each of the three lines of defence clearly defined",null,null,null,null,null,null,null,null,{"$f":"Import!E5206","v":"Select Yes/No"}]
[null,5,"Has the organisation performed an assessment of compliance against Data Protection regulatory requirements ",null,null,null,null,null,null,null,null,{"$f":"Import!E5207","v":"Select Yes/No"}]
[null,6,"Asset Management - are physical devices, information systems, and data within the organisation inventoried",null,null,null,null,null,null,null,null,{"$f":"Import!E5208","v":"Select Yes/No"}]
[null,7,"Has the organisation classified all data ",null,null,null,null,null,null,null,null,{"$f":"Import!E5209","v":"Select Yes/No"}]
[null,8,"Has a third-party security risk assessment been completed during the past year? i.e. to assess IT risks arising from third parties",null,null,null,null,null,null,null,null,{"$f":"Import!E5210","v":"Select Yes/No"}]
[null,"Protect"]
[null,9,"Is data that is classified as critical, encrypted in transit and at rest  ",null,null,null,null,null,null,null,null,{"$f":"Import!E5211","v":"Select Yes/No"}]
[null,{"$f":"B427+1","v":10},"Is there a formal process to ensure maintenance of software and hardware (i.e., patching & managing end-of-life technologies) ",null,null,null,null,null,null,null,null,{"$f":"Import!E5212","v":"Select Yes/No"}]
[null,11,"Is there a Logical Access Management Standard defining how systems access is verified, managed, revoked, and audited ",null,null,null,null,null,null,null,null,{"$f":"Import!E5213","v":"Select Yes/No"},null,"Specify name of relevant document"]
[null,12,"Do all staff complete cybersecurity training annually",null,null,null,null,null,null,null,null,{"$f":"Import!E5214","v":"Select Yes/No"},null,"Specify name of relevant document"]
[null,13,"Has a penetration test been completed in the last year",null,null,null,null,null,null,null,null,{"$f":"Import!E5215","v":"Select Yes/No"}]
[null,14,"Has the company segregated the enterprise network into multiple, separate trust zones",null,null,null,null,null,null,null,null,{"$f":"Import!E5216","v":"Select Yes/No"}]
[null,15,"Is there a process detailing IT service management controls i.e. change, release & configuration management",null,null,null,null,null,null,null,null,{"$f":"Import!E5217","v":"Select Yes/No"},null,"Specify name of relevant document"]
[null,16,"Does the company document and enforce security configuration standards of all network devices",null,null,null,null,null,null,null,null,{"$f":"Import!E5218","v":"Select Yes/No"}]
[null,"Detect"]
[null,{"$f":"B434+1","v":17},"Is there a process enabling the review of threat intelligence & vulnerability alerting data",null,null,null,null,null,null,null,null,{"$f":"Import!E5219","v":"Select Yes/No"}]
[null,{"$f":"B436+1","v":18},"Is there a process in place to monitor information systems and assets to identify cybersecurity events ",null,null,null,null,null,null,null,null,{"$f":"Import!E5220","v":"Select Yes/No"}]
[null,{"$f":"B437+1","v":19},"The company centrally stores & archives security event logs",null,null,null,null,null,null,null,null,{"$f":"Import!E5221","v":"Select Yes/No"}]
[null,"Respond"]
[null,{"$f":"B438+1","v":20},"Is there a documented security incident response plan in place, including internal & external communications & crisis management ",null,null,null,null,null,null,null,null,{"$f":"Import!E5222","v":"Select Yes/No"},null,"Specify name of relevant document"]
[null,{"$f":"B440+1","v":21},"In the event of a major incident, is the company contracted to a \"4th line\" IT security expert service (for example a Managed Security Services Provider - MSSP)  ",null,null,null,null,null,null,null,null,{"$f":"Import!E5223","v":"Select Yes/No"}]
[null,"Recover"]
[null,{"$f":"B441+1","v":22},"Has a test of the Business Continuity and IT Disaster Recovery plans been performed during the past 12 months ",null,null,null,null,null,null,null,null,{"$f":"Import!E5224","v":"Select Yes/No"}]
[null,{"$f":"B443+1","v":23},"Has the organisation been subject to a significant cyber incident during the past 12 months",null,null,null,null,null,null,null,null,{"$f":"Import!E5225","v":"Select Yes/No"}]
[]
[null,"SECTION C - Technical Security Controls - Answer YES/NO"]
[null,"Technical controls summary",null,null,null,null,null,null,null,null,null,{"$f":"Import!E5225","v":"Select Yes/No"}]
[null,1,"Antivirus software is installed on all Microsoft Operating System endpoints",null,null,null,null,null,null,null,null,{"$f":"Import!E5226","v":"Select Yes/No"}]
[null,{"$f":"B448+1","v":2},"Is there an endpoint Advanced Persistent Threat (APT) control in place ",null,null,null,null,null,null,null,null,{"$f":"Import!E5227","v":"Select Yes/No"}]
[null,3,"Are Data Loss Prevention (DLP) controls in place i.e.: to prevent unauthorized data leaving the enterprise\n\n",null,null,null,null,null,null,null,null,{"$f":"Import!E5228","v":"Select Yes/No"}]
[null,4,"Is INTERNAL vulnerability scanning conducted (& what is the frequency)",null,null,null,null,null,null,null,null,{"$f":"Import!E5229","v":"Select Yes/No"},null,{"$f":"Import!E5230","v":"Select Frequency"}]
[null,{"$f":"B451+1","v":5},"Is EXTERNAL vulnerability scanning conducted (& what is the frequency)",null,null,null,null,null,null,null,null,{"$f":"Import!E5231","v":"Select Yes/No"},null,{"$f":"Import!E5232","v":"Select Frequency"}]
[null,{"$f":"B452+1","v":6},"Are there regular (6 monthly minimum) firewall ruleset reviews",null,null,null,null,null,null,null,null,{"$f":"Import!E5233","v":"Select Yes/No"}]
[null,7,"Is there a network perimeter Intrusion Detection or Prevention (IDS/IPS) control",null,null,null,null,null,null,null,null,{"$f":"Import!E5234","v":"Select Yes/No"}]
[null,8,"Is there DDOS defence in place for internet gateways",null,null,null,null,null,null,null,null,{"$f":"Import!E5235","v":"Select Yes/No"}]
[]
[null,null,null,null,null,null,null,null,null,null,null,"Yes",null,null,null,null,"Select all from drop down list"]
[null,"Industry Sector",null,null,null,null,null,null,null,null,null,"No",null,null,null,null,"PCI - payment Card Industry Standard"]
[null,"Select from Drop-Down",null,null,null,null,null,null,null,null,null,null,null,null,null,null,"GDPR - General Data Protection Regulation "]
[null,"Administrative and Support Services",null,null,null,null,null,null,null,null,null,null,null,null,null,null,"EU U.S. - Privacy Shield Framework "]
[null,"Agriculture, Mining, Forestry and Fishing",null,null,null,null,null,null,null,null,null,null,null,null,null,null,"PIPA - Personal Information Privacy Act"]
[null,"Automotive, Manufacturing and Retail",null,null,null,null,null,null,null,null,null,null,null,null,null,null,"HIPAA - Health Insurance Portability and Accountability Act"]
[null,"Charities & Non-profit Organisations",null,null,null,null,null,null,null,null,null,null,null,null,null,null,"PIPEDA - Federal Personal Information Protection and Electronic Documents Act"]
[null,"Chemical and Pharmaceutical",null,null,null,null,null,null,null,null,null,null,null,null,null,null,"SOLVENCY II"]
[null,"Construction",null,null,null,null,null,null,null,null,null,null,null,null,null,null,"SEC - U.S. Securities and Exchange Commission"]
[null,"Education",null,null,null,null,null,null,null,null,null,null,null,null,null,null,"SOX - Sarbanes Oxley Act"]
[null,"Energy, Power and Utilities",null,null,null,null,null,null,null,null,null,null,null,null,null,null,"(FISMA) Federal Information Security Management Act of 2002 "]
[null,"Financial Institution",null,null,null,null,null,null,null,null,null,null,null,null,null,null,"(GLBA) Gramm Leach Bliley Act"]
[null,"Government or Public Sector",null,null,null,null,null,null,null,null,null,null,null,null,null,null,"other"]
[null,"Healthcare"]
[null,"Hospitality",null,null,null,null,null,null,null,null,null,null,null,null,null,null,"Select all from drop down list"]
[null,"Leisure",null,null,null,null,null,null,null,null,null,null,null,null,null,null,"COBIT - Control Objectives for Information and Related Technologies"]
[null,"Media and Gaming",null,null,null,null,null,null,null,null,null,null,null,null,null,null,"NIST - National Institute of Standards and Technology"]
[null,"Professional Services",null,null,null,null,null,null,null,null,null,null,null,null,null,null,"ISO27001 - Information Security Management System "]
[null,"Science and Research",null,null,null,null,null,null,null,null,null,null,null,null,null,null,"ISO27002 - Information Security Standard  "]
[null,"Shipping, Transport & Storage",null,null,null,null,null,null,null,null,null,null,null,null,null,null,"ITIL - Information Technology Infrastructure Library"]
[null,"Technology and Telecoms"]
[null,"Wholesale and Retail"]

{"sheet":"Schedule V(f)","index":49,"n_rows":72,"n_cols":10,"rows_kept":72,"cut":false,"hidden":false,"merged":[[10,5,10,7],[0,2,0,8],[1,2,1,9],[8,2,8,9],[9,2,9,3],[9,5,9,7],[11,2,11,3],[11,5,11,7],[12,2,12,3],[12,5,12,7],[13,2,13,3],[13,5,13,7],[14,2,14,3],[14,5,14,7],[15,2,15,3],[15,5,15,7],[16,2,16,3],[16,5,16,7],[17,2,17,3],[17,5,17,7],[18,2,18,3],[18,5,18,7],[19,2,19,3],[19,5,19,7],[20,2,20,3],[20,5,20,7],[21,2,21,3],[21,5,21,7],[22,2,22,3],[22,5,22,7],[23,2,23,3],[23,5,23,7],[24,2,24,3],[24,5,24,7],[25,2,25,3],[25,5,25,7],[26,2,26,3],[26,5,26,7],[27,2,27,3],[27,5,27,7],[28,2,28,3],[28,5,28,7],[29,2,29,3],[29,5,29,7],[30,2,30,3],[30,5,30,7],[35,2,35,9]]}
[null,null,"SCHEDULE OF LONG-TERM INSURANCE - MODIFIED COINSURANCE ARRANGEMENTS (ON A CONSOLIDATED BASIS)",null,null,null,null,null,null,{"$f":"HYPERLINK(\"#'Index'!A1\",\"Return to Index\")","v":"Return to Index"}]
[null,null,"FOR DISCLOSURE PURPOSES ONLY"]
[]
[null,null,{"$f":"'Group Information'!C9","v":"Enter Parent Company Name"}]
[null,null,{"$f":"'Group Information'!C3","v":"2023-12-31"},null,null,null,null,null,null,"SCHEDULE V(f)"]
[null,null,{"$f":"+'Form 1EBS'!C4","v":" ['000s]United States Dollars"}]
[]
[]
[null,null,"Details of Modified Coinsurance Arrangements "]
[null,null,"Name of Ceding Insurer",null,null,"Coverage Type",null,null,null,"Reserve Amount"]
[null,null,null,null,null,"Pick from Drop Down"]
[null,1,{"$f":"Import!E5237","v":0},null,null,{"$f":"Import!E5252","v":"Select from Drop-Down"},null,null,null,{"$f":"Import!E5267","v":0}]
[null,2,{"$f":"Import!E5238","v":0},null,null,{"$f":"Import!E5253","v":"Select from Drop-Down"},null,null,null,{"$f":"Import!E5268","v":0}]
[null,3,{"$f":"Import!E5239","v":0},null,null,{"$f":"Import!E5254","v":"Select from Drop-Down"},null,null,null,{"$f":"Import!E5269","v":0}]
[null,4,{"$f":"Import!E5240","v":0},null,null,{"$f":"Import!E5255","v":"Select from Drop-Down"},null,null,null,{"$f":"Import!E5270","v":0}]
[null,5,{"$f":"Import!E5241","v":0},null,null,{"$f":"Import!E5256","v":"Select from Drop-Down"},null,null,null,{"$f":"Import!E5271","v":0}]
[null,6,{"$f":"Import!E5242","v":0},null,null,{"$f":"Import!E5257","v":"Select from Drop-Down"},null,null,null,{"$f":"Import!E5272","v":0}]
[null,7,{"$f":"Import!E5243","v":0},null,null,{"$f":"Import!E5258","v":"Select from Drop-Down"},null,null,null,{"$f":"Import!E5273","v":0}]
[null,8,{"$f":"Import!E5244","v":0},null,null,{"$f":"Import!E5259","v":"Select from Drop-Down"},null,null,null,{"$f":"Import!E5274","v":0}]
[null,9,{"$f":"Import!E5245","v":0},null,null,{"$f":"Import!E5260","v":"Select from Drop-Down"},null,null,null,{"$f":"Import!E5275","v":0}]
[null,10,{"$f":"Import!E5246","v":0},null,null,{"$f":"Import!E5261","v":"Select from Drop-Down"},null,null,null,{"$f":"Import!E5276","v":0}]
[null,11,{"$f":"Import!E5247","v":0},null,null,{"$f":"Import!E5262","v":"Select from Drop-Down"},null,null,null,{"$f":"Import!E5277","v":0}]
[null,12,{"$f":"Import!E5248","v":0},null,null,{"$f":"Import!E5263","v":"Select from Drop-Down"},null,null,null,{"$f":"Import!E5278","v":0}]
[null,13,{"$f":"Import!E5249","v":0},null,null,{"$f":"Import!E5264","v":"Select from Drop-Down"},null,null,null,{"$f":"Import!E5279","v":0}]
[null,14,{"$f":"Import!E5250","v":0},null,null,{"$f":"Import!E5265","v":"Select from Drop-Down"},null,null,null,{"$f":"Import!E5280","v":0}]
[null,15,{"$f":"Import!E5251","v":0},null,null,{"$f":"Import!E5266","v":"Select from Drop-Down"},null,null,null,{"$f":"Import!E5281","v":0}]
[null,16]
[null,17]
[null,18]
[null,19]
[null,20]
[null,null,null,null,null,null,null,null,null,{"$f":"SUM(J12:J31)","v":0}]
[]
[]
[]
[null,null,"Aggregate Asset Allocation (Book Value)"]
[null,null,null,"Investment Type",null,"Affiliated Cedant",null,"Non-affiliate Cedant"]
[]
[null,null,1,"Cash",null,{"$f":"Import!E5283","v":0},null,{"$f":"Import!E5297","v":0}]
[null,null,2,"Corporate bonds",null,{"$f":"Import!E5284","v":0},null,{"$f":"Import!E5298","v":0}]
[null,null,3,"Sovereign bonds",null,{"$f":"Import!E5285","v":0},null,{"$f":"Import!E5299","v":0}]
[null,null,4,"Mortgage-backed securities",null,{"$f":"Import!E5286","v":0},null,{"$f":"Import!E5300","v":0}]
[null,null,5,"Mortgage loans",null,{"$f":"Import!E5287","v":0},null,{"$f":"Import!E5301","v":0}]
[null,null,6,"Equities",null,{"$f":"Import!E5288","v":0},null,{"$f":"Import!E5302","v":0}]
[null,null,7,"Other (provide description)",null,{"$f":"Import!E5289","v":0},null,{"$f":"Import!E5303","v":0}]
[null,null,8,"Other (provide description)",null,{"$f":"Import!E5290","v":0},null,{"$f":"Import!E5304","v":0}]
[null,null,9,"Other (provide description)",null,{"$f":"Import!E5291","v":0},null,{"$f":"Import!E5305","v":0}]
[null,null,10,"Other (provide description)",null,{"$f":"Import!E5292","v":0},null,{"$f":"Import!E5306","v":0}]
[null,null,11,"Other (provide description)",null,{"$f":"Import!E5293","v":0},null,{"$f":"Import!E5307","v":0}]
[null,null,12,"Other (provide description)",null,{"$f":"Import!E5294","v":0},null,{"$f":"Import!E5308","v":0}]
[null,null,13,"Other (provide description)",null,{"$f":"Import!E5295","v":0},null,{"$f":"Import!E5309","v":0}]
[null,null,14,"Total",null,{"$f":"SUM(F39:F51)","v":0},null,{"$f":"SUM(H39:H51)","v":0}]
[]
[]
[]
[null,null,null,null,null,"Select from Drop-Down"]
[null,null,null,null,null,"Mortality "]
[null,null,null,null,null,"Critical Illness"]
[null,null,null,null,null,"Longevity (Immediate pay-out annutities)"]
[null,null,null,null,null,"Longevity (Deferred pay-out annutities)"]
[null,null,null,null,null,"Annuities certain only"]
[null,null,null,null,null,"Deferred accumulation annuities"]
[null,null,null,null,null,"Disability Income: Active lives with premium guarantee"]
[null,null,null,null,null,"Disability Income: Actives lives for other accident and sickness"]
[null,null,null,null,null,"Disability Income: Claims in payment "]
[null,null,null,null,null,"Disability Income: Claims in payment for other accident and sickness"]
[null,null,null,null,null,"Group Life"]
[null,null,null,null,null,"Group Disability"]
[null,null,null,null,null,"Group Health"]
[null,null,null,null,null,"Stop Loss"]
[null,null,null,null,null,"Rider"]
[null,null,null,null,null,"Variable Annuities"]

{"sheet":"Schedule V(g)","index":50,"n_rows":57,"n_cols":7,"rows_kept":57,"cut":false,"hidden":false,"merged":[[0,2,0,5]]}
[null,null,"SCHEDULE OF RISK MANAGEMENT - FINANCIAL STATEMENT RECONCILIATION",null,null,null,{"$f":"HYPERLINK(\"#'Index'!A1\",\"Return to Index\")","v":"Return to Index"}]
[null,null,{"$f":"'Group Information'!C9","v":"Enter Parent Company Name"}]
[null,null,{"$f":"'Form 1EBS'!C3","v":"2023-12-31"}]
[null,null,{"$f":"'Form 1EBS'!C4","v":" ['000s]United States Dollars"},null,null,null,"SCHEDULE V(g)"]
[]
[null,null,"A reconciliation of amounts reported in total assets, total liabilities, net income, and total statutory economic capital and surplus"]
[null,null,"comprised of any adjustments applied to the Form 1 to arrive at the amounts disclosed in Form 1EBS"]
[]
[null,null,"Adjustment Description","Assets","Liabilities","Net Income","Capital and Surplus"]
[null,null,"GAAP/IFRS Financial Statements ",{"$f":"Import!E5312","v":0},{"$f":"Import!E5323","v":0},{"$f":"Import!E5334","v":0},{"$f":"Import!E5345","v":0}]
[1,{"$f":"B10+1","v":1},"Prepaid Expenses",{"$f":"Import!E5313","v":0},{"$f":"Import!E5324","v":0},{"$f":"Import!E5335","v":0},{"$f":"D11-E11","v":0}]
[null,{"$f":"B11+1","v":2},"Goodwill",{"$f":"Import!E5314","v":0},{"$f":"Import!E5325","v":0},{"$f":"Import!E5336","v":0},0]
[null,{"$f":"B12+1","v":3},"Intangible Assets",{"$f":"Import!E5315","v":0},{"$f":"Import!E5326","v":0},{"$f":"Import!E5337","v":0},0]
[null,4,"(Enter other adjustments from Financials Statements to Form 1SFS)",{"$f":"Import!E5316","v":0},{"$f":"Import!E5327","v":0},{"$f":"Import!E5338","v":0},0]
[null,5,"(Enter other adjustments from Financials Statements to Form 1SFS)",{"$f":"Import!E5317","v":0},{"$f":"Import!E5328","v":0},{"$f":"Import!E5339","v":0},0]
[null,6,"(Enter other adjustments from Financials Statements to Form 1SFS)",{"$f":"Import!E5318","v":0},{"$f":"Import!E5329","v":0},{"$f":"Import!E5340","v":0},0]
[null,7,"(Enter other adjustments from Financials Statements to Form 1SFS)",{"$f":"Import!E5319","v":0},{"$f":"Import!E5330","v":0},{"$f":"Import!E5341","v":0},0]
[null,8,"(Enter other adjustments from Financials Statements to Form 1SFS)",{"$f":"Import!E5320","v":0},{"$f":"Import!E5331","v":0},{"$f":"Import!E5342","v":0},0]
[null,9,"(Enter other adjustments from Financials Statements to Form 1SFS)",{"$f":"Import!E5321","v":0},{"$f":"Import!E5332","v":0},{"$f":"Import!E5343","v":0},0]
[null,10,"(Enter other adjustments from Financials Statements to Form 1SFS)",{"$f":"Import!E5322","v":0},{"$f":"Import!E5333","v":0},{"$f":"Import!E5344","v":0},0]
[null,null,{"$f":"IF('Group Information'!$F$11=\"IFRS\",\"Form 1A\",\"Form 1\")","v":"Form 1"},{"$f":"SUM(D10:D20)","v":0},{"$f":"SUM(E10:E20)","v":0},{"$f":"SUM(F10:F20)","v":0},{"$f":"SUM(G10:G20)","v":0}]
[]
[null,null,"Check",{"$f":"IF(D24=\"TRUE\",HYPERLINK(\"#'Form 1'!F94\",\"TRUE\"),HYPERLINK(\"#'Form 1'!F94\",\"FALSE\"))","v":"TRUE"},{"$f":"IF(E24=\"TRUE\",HYPERLINK(\"#'Form 1'!F181\",\"TRUE\"),HYPERLINK(\"#'Form 1'!F181\",\"FALSE\"))","v":"TRUE"},null,{"$f":"IF(G24=\"TRUE\",HYPERLINK(\"#'Form 1'!F185\",\"TRUE\"),HYPERLINK(\"#'Form 1'!F185\",\"FALSE\"))","v":"TRUE"}]
[null,null,null,{"$f":"IF('Group Information'!$F$11=\"IFRS\",\nIF(ROUND(D21-'Form 1A'!M88,0)=0,\"TRUE\",\"FALSE\"),\nIF(ROUND((D21-'Form 1'!F94),0)=0,\"TRUE\",\"FALSE\"))","v":"TRUE"},{"$f":"IF('Group Information'!$F$11=\"IFRS\",\nIF(ROUND(E21-'Form 1A'!M138,0)=0,\"TRUE\",\"FALSE\"),\nIF(ROUND((E21-'Form 1'!F181),0)=0,\"TRUE\",\"FALSE\"))","v":"TRUE"},null,{"$f":"IF('Group Information'!$F$11=\"IFRS\",\nIF(ROUND(G21-'Form 1A'!M142,0)=0,\"TRUE\",\"FALSE\"),\nIF(ROUND((G21-'Form 1'!F185),0)=0,\"TRUE\",\"FALSE\"))","v":"TRUE"}]
[null,null,null,{"$f":"IF('Group Information'!$F$11=\"IFRS\",ROUND(D21-'Form 1A'!M88,0),\nROUND(D21-'Form 1'!F94,0))","v":0},{"$f":"IF('Group Information'!$F$11=\"IFRS\",ROUND(E21-'Form 1A'!M138,0),\nROUND(E21-'Form 1'!F181,0))","v":0},null,{"$f":"IF('Group Information'!$F$11=\"IFRS\",ROUND(G21-'Form 1A'!M142,0),\nROUND(G21-'Form 1'!F185,0))","v":0}]
[]
[null,null,null,{"$f":"IF(D23=\"False\",\"Does not equal Form 1 Line 15\",\"\")","v":""},{"$f":"IF(E23=\"False\",\"Does not equal Form 1 Line 39\",\"\")","v":""},null,{"$f":"IF(G23=\"False\",\"Does not equal Form 1 Line 40\",\"\")","v":""}]
[]
[null,null,"Adjustment Description","Assets","Liabilities","Net Income","Capital and Surplus"]
[null,null,{"$f":"IF('Group Information'!$F$11=\"IFRS\",\"Form 1A\",\"Form 1\")","v":"Form 1"},{"$f":"IF('Group Information'!$F$11=\"IFRS\",'Form 1A'!M88,'Form 1'!F94)","v":0},{"$f":"IF('Group Information'!$F$11=\"IFRS\",'Form 1A'!M138,'Form 1'!F181)","v":0},{"$f":"IF('Group Information'!$F$11=\"IFRS\",'Form 2A'!E52,'Form 2'!E115)","v":0},{"$f":"IF('Group Information'!$F$11=\"IFRS\",'Form 1A'!M142,'Form 1'!F185)","v":0}]
[1,{"$f":"B30+1","v":1},"Gross Loss and Loss Expense Provision",{"$f":"Import!E5347","v":0},{"$f":"Import!E5369","v":0},{"$f":"Import!E5391","v":0},{"$f":"D31-E31","v":0}]
[null,{"$f":"B31+1","v":2},"Gross Premium Provisions",{"$f":"Import!E5348","v":0},{"$f":"Import!E5370","v":0},{"$f":"Import!E5392","v":0},0]
[null,{"$f":"B32+1","v":3},"Reinsurance Recoverables",{"$f":"Import!E5349","v":0},{"$f":"Import!E5371","v":0},{"$f":"Import!E5393","v":0},0]
[null,4,"Risk Margin",{"$f":"Import!E5350","v":0},{"$f":"Import!E5372","v":0},{"$f":"Import!E5394","v":0},0]
[null,5,"Contingent Liabilities",{"$f":"Import!E5351","v":0},{"$f":"Import!E5373","v":0},{"$f":"Import!E5395","v":0},0]
[null,6,"Goodwill",{"$f":"Import!E5352","v":0},{"$f":"Import!E5374","v":0},{"$f":"Import!E5396","v":0},0]
[null,7,"Deferred Taxes Valuation",{"$f":"Import!E5353","v":0},{"$f":"Import!E5375","v":0},{"$f":"Import!E5397","v":0},0]
[null,8,"Quoted Investments",{"$f":"Import!E5354","v":0},{"$f":"Import!E5376","v":0},{"$f":"Import!E5398","v":0},0]
[null,9,"Unquoted Investments",{"$f":"Import!E5355","v":0},{"$f":"Import!E5377","v":0},{"$f":"Import!E5399","v":0},0]
[null,10,"Investments in affiliates",{"$f":"Import!E5356","v":0},{"$f":"Import!E5378","v":0},{"$f":"Import!E5400","v":0},0]
[null,11,"Real Estate ",{"$f":"Import!E5357","v":0},{"$f":"Import!E5379","v":0},{"$f":"Import!E5401","v":0},0]
[null,12,"Off Balance Sheet Instruments approved as statutory capital",{"$f":"Import!E5358","v":0},{"$f":"Import!E5380","v":0},{"$f":"Import!E5402","v":0},0]
[null,13,"Debt Instruments approved as statutory Capital ",{"$f":"Import!E5359","v":0},{"$f":"Import!E5381","v":0},{"$f":"Import!E5403","v":0},0]
[null,14,"Other Intangible Assets (Specify)",{"$f":"Import!E5360","v":0},{"$f":"Import!E5382","v":0},{"$f":"Import!E5404","v":0},0]
[null,15,"(enter other adjustments from Form 1 to Form 1EBS)",{"$f":"Import!E5361","v":0},{"$f":"Import!E5383","v":0},{"$f":"Import!E5405","v":0},0]
[null,16,"(enter other adjustments from Form 1 to Form 1EBS)",{"$f":"Import!E5362","v":0},{"$f":"Import!E5384","v":0},{"$f":"Import!E5406","v":0},0]
[null,17,"(enter other adjustments from Form 1 to Form 1EBS)",{"$f":"Import!E5363","v":0},{"$f":"Import!E5385","v":0},{"$f":"Import!E5407","v":0},0]
[null,18,"(enter other adjustments from Form 1 to Form 1EBS)",{"$f":"Import!E5364","v":0},{"$f":"Import!E5386","v":0},{"$f":"Import!E5408","v":0},0]
[null,19,"(enter other adjustments from Form 1 to Form 1EBS)",{"$f":"Import!E5365","v":0},{"$f":"Import!E5387","v":0},{"$f":"Import!E5409","v":0},0]
[null,20,"(enter other adjustments from Form 1 to Form 1EBS)",{"$f":"Import!E5366","v":0},{"$f":"Import!E5388","v":0},{"$f":"Import!E5410","v":0},0]
[null,null,"Group Form 1EBS",{"$f":"SUM(D30:D50)","v":0},{"$f":"SUM(E30:E50)","v":0},{"$f":"SUM(F30:F50)","v":0},{"$f":"SUM(G30:G50)","v":0}]
[]
[null,null,"Check",{"$f":"IF(D54=\"TRUE\",HYPERLINK(\"#'Form 1EBS'!F100\",\"TRUE\"),HYPERLINK(\"#'Form 1EBS'!F100\",\"FALSE\"))","v":"TRUE"},{"$f":"IF(E54=\"TRUE\",HYPERLINK(\"#'Form 1EBS'!F214\",\"TRUE\"),HYPERLINK(\"#'Form 1EBS'!F214\",\"FALSE\"))","v":"TRUE"},null,{"$f":"IF(G54=\"TRUE\",HYPERLINK(\"#'Form 1EBS'!F218\",\"TRUE\"),HYPERLINK(\"#'Form 1EBS'!F218\",\"FALSE\"))","v":"TRUE"}]
[null,null,null,{"$f":"IF(ROUND((D51-'Form 1EBS'!F96),0)=0,\"TRUE\",\"FALSE\")","v":"TRUE"},{"$f":"IF(ROUND((E51-'Form 1EBS'!F210),0)=0,\"TRUE\",\"FALSE\")","v":"TRUE"},null,{"$f":"IF(ROUND((G51-'Form 1EBS'!F214),0)=0,\"TRUE\",\"FALSE\")","v":"TRUE"}]
[null,null,null,{"$f":"ROUND(D51-'Form 1EBS'!F96,0)","v":0},{"$f":"ROUND(E51-'Form 1EBS'!F210,0)","v":0},null,{"$f":"ROUND(G51-'Form 1EBS'!F214,0)","v":0}]
[]
[null,null,null,{"$f":"IF(D53=\"False\",\"Does not equal Form 1EBS Line 15\",\"\")","v":""},{"$f":"IF(E53=\"False\",\"Does not equal Form 1EBS Line 39\",\"\")","v":""},null,{"$f":"IF(G53=\"False\",\"Does not equal Form 1EBS Line 40\",\"\")","v":""}]

{"sheet":"Schedule V(k)","index":51,"n_rows":59,"n_cols":44,"rows_kept":59,"cut":false,"hidden":false,"merged":[[2,1,2,2]]}
[null,null,"Details of Deposit Asset and Liabilities",null,null,null,null,null,null,null,null,{"$f":"HYPERLINK(\"#'Index'!A1\",\"Return to Index\")","v":"Return to Index"}]
[null,{"$f":"'Group Information'!C9","v":"Enter Parent Company Name"}]
[null,{"$f":"'Form 1EBS'!C3","v":"2023-12-31"},null,null,{"$f":"Import!E5413","v":0},null,"Enter Number of Rows Required","Enter Number of Rows Required",null,null,null,"Schedule V(k)"]
[null,{"$f":"'Form 1EBS'!C4","v":" ['000s]United States Dollars"}]
[null,null,null,null,"(A)","(B)","(C)","(D)","(E)","(F)","(G)","(H)"]
[null,null,"Description of Business",null,"Lines of Business Written","Assets in Trust","Other Collateral","GPW for the Period","NPW for the Period","Limits/Maximum Exposure","Limits at \n99.0 TvaR","Unlimited Exposure Details"]
[]
[null,1,{"$f":"Import!E5414","v":0},null,{"$f":"Import!E5439","v":0},{"$f":"Import!E5464","v":0},{"$f":"Import!E5490","v":0},{"$f":"Import!E5516","v":0},{"$f":"Import!E5542","v":0},{"$f":"Import!E5568","v":0},{"$f":"Import!E5594","v":0},{"$f":"Import!E5620","v":0}]
[null,{"$f":"B8+1","v":2},{"$f":"Import!E5415","v":0},null,{"$f":"Import!E5440","v":0},{"$f":"Import!E5465","v":0},{"$f":"Import!E5491","v":0},{"$f":"Import!E5517","v":0},{"$f":"Import!E5543","v":0},{"$f":"Import!E5569","v":0},{"$f":"Import!E5595","v":0},{"$f":"Import!E5621","v":0}]
[null,{"$f":"B9+1","v":3},{"$f":"Import!E5416","v":0},null,{"$f":"Import!E5441","v":0},{"$f":"Import!E5466","v":0},{"$f":"Import!E5492","v":0},{"$f":"Import!E5518","v":0},{"$f":"Import!E5544","v":0},{"$f":"Import!E5570","v":0},{"$f":"Import!E5596","v":0},{"$f":"Import!E5622","v":0}]
[null,4,{"$f":"Import!E5417","v":0},null,{"$f":"Import!E5442","v":0},{"$f":"Import!E5467","v":0},{"$f":"Import!E5493","v":0},{"$f":"Import!E5519","v":0},{"$f":"Import!E5545","v":0},{"$f":"Import!E5571","v":0},{"$f":"Import!E5597","v":0},{"$f":"Import!E5623","v":0}]
[null,5,{"$f":"Import!E5418","v":0},null,{"$f":"Import!E5443","v":0},{"$f":"Import!E5468","v":0},{"$f":"Import!E5494","v":0},{"$f":"Import!E5520","v":0},{"$f":"Import!E5546","v":0},{"$f":"Import!E5572","v":0},{"$f":"Import!E5598","v":0},{"$f":"Import!E5624","v":0}]
[null,6,{"$f":"Import!E5419","v":0},null,{"$f":"Import!E5444","v":0},{"$f":"Import!E5469","v":0},{"$f":"Import!E5495","v":0},{"$f":"Import!E5521","v":0},{"$f":"Import!E5547","v":0},{"$f":"Import!E5573","v":0},{"$f":"Import!E5599","v":0},{"$f":"Import!E5625","v":0}]
[null,7,{"$f":"Import!E5420","v":0},null,{"$f":"Import!E5445","v":0},{"$f":"Import!E5470","v":0},{"$f":"Import!E5496","v":0},{"$f":"Import!E5522","v":0},{"$f":"Import!E5548","v":0},{"$f":"Import!E5574","v":0},{"$f":"Import!E5600","v":0},{"$f":"Import!E5626","v":0}]
[null,8,{"$f":"Import!E5421","v":0},null,{"$f":"Import!E5446","v":0},{"$f":"Import!E5471","v":0},{"$f":"Import!E5497","v":0},{"$f":"Import!E5523","v":0},{"$f":"Import!E5549","v":0},{"$f":"Import!E5575","v":0},{"$f":"Import!E5601","v":0},{"$f":"Import!E5627","v":0}]
[null,9,{"$f":"Import!E5422","v":0},null,{"$f":"Import!E5447","v":0},{"$f":"Import!E5472","v":0},{"$f":"Import!E5498","v":0},{"$f":"Import!E5524","v":0},{"$f":"Import!E5550","v":0},{"$f":"Import!E5576","v":0},{"$f":"Import!E5602","v":0},{"$f":"Import!E5628","v":0}]
[null,10,{"$f":"Import!E5423","v":0},null,{"$f":"Import!E5448","v":0},{"$f":"Import!E5473","v":0},{"$f":"Import!E5499","v":0},{"$f":"Import!E5525","v":0},{"$f":"Import!E5551","v":0},{"$f":"Import!E5577","v":0},{"$f":"Import!E5603","v":0},{"$f":"Import!E5629","v":0}]
[null,11,{"$f":"Import!E5424","v":0},null,{"$f":"Import!E5449","v":0},{"$f":"Import!E5474","v":0},{"$f":"Import!E5500","v":0},{"$f":"Import!E5526","v":0},{"$f":"Import!E5552","v":0},{"$f":"Import!E5578","v":0},{"$f":"Import!E5604","v":0},{"$f":"Import!E5630","v":0}]
[null,12,{"$f":"Import!E5425","v":0},null,{"$f":"Import!E5450","v":0},{"$f":"Import!E5475","v":0},{"$f":"Import!E5501","v":0},{"$f":"Import!E5527","v":0},{"$f":"Import!E5553","v":0},{"$f":"Import!E5579","v":0},{"$f":"Import!E5605","v":0},{"$f":"Import!E5631","v":0}]
[null,13,{"$f":"Import!E5426","v":0},null,{"$f":"Import!E5451","v":0},{"$f":"Import!E5476","v":0},{"$f":"Import!E5502","v":0},{"$f":"Import!E5528","v":0},{"$f":"Import!E5554","v":0},{"$f":"Import!E5580","v":0},{"$f":"Import!E5606","v":0},{"$f":"Import!E5632","v":0}]
[null,14,{"$f":"Import!E5427","v":0},null,{"$f":"Import!E5452","v":0},{"$f":"Import!E5477","v":0},{"$f":"Import!E5503","v":0},{"$f":"Import!E5529","v":0},{"$f":"Import!E5555","v":0},{"$f":"Import!E5581","v":0},{"$f":"Import!E5607","v":0},{"$f":"Import!E5633","v":0}]
[null,15,{"$f":"Import!E5428","v":0},null,{"$f":"Import!E5453","v":0},{"$f":"Import!E5478","v":0},{"$f":"Import!E5504","v":0},{"$f":"Import!E5530","v":0},{"$f":"Import!E5556","v":0},{"$f":"Import!E5582","v":0},{"$f":"Import!E5608","v":0},{"$f":"Import!E5634","v":0}]
[null,16,{"$f":"Import!E5429","v":0},null,{"$f":"Import!E5454","v":0},{"$f":"Import!E5479","v":0},{"$f":"Import!E5505","v":0},{"$f":"Import!E5531","v":0},{"$f":"Import!E5557","v":0},{"$f":"Import!E5583","v":0},{"$f":"Import!E5609","v":0},{"$f":"Import!E5635","v":0}]
[null,17,{"$f":"Import!E5430","v":0},null,{"$f":"Import!E5455","v":0},{"$f":"Import!E5480","v":0},{"$f":"Import!E5506","v":0},{"$f":"Import!E5532","v":0},{"$f":"Import!E5558","v":0},{"$f":"Import!E5584","v":0},{"$f":"Import!E5610","v":0},{"$f":"Import!E5636","v":0}]
[null,18,{"$f":"Import!E5431","v":0},null,{"$f":"Import!E5456","v":0},{"$f":"Import!E5481","v":0},{"$f":"Import!E5507","v":0},{"$f":"Import!E5533","v":0},{"$f":"Import!E5559","v":0},{"$f":"Import!E5585","v":0},{"$f":"Import!E5611","v":0},{"$f":"Import!E5637","v":0}]
[null,19,{"$f":"Import!E5432","v":0},null,{"$f":"Import!E5457","v":0},{"$f":"Import!E5482","v":0},{"$f":"Import!E5508","v":0},{"$f":"Import!E5534","v":0},{"$f":"Import!E5560","v":0},{"$f":"Import!E5586","v":0},{"$f":"Import!E5612","v":0},{"$f":"Import!E5638","v":0}]
[null,20,{"$f":"Import!E5433","v":0},null,{"$f":"Import!E5458","v":0},{"$f":"Import!E5483","v":0},{"$f":"Import!E5509","v":0},{"$f":"Import!E5535","v":0},{"$f":"Import!E5561","v":0},{"$f":"Import!E5587","v":0},{"$f":"Import!E5613","v":0},{"$f":"Import!E5639","v":0}]
[null,21,{"$f":"Import!E5434","v":0},null,{"$f":"Import!E5459","v":0},{"$f":"Import!E5484","v":0},{"$f":"Import!E5510","v":0},{"$f":"Import!E5536","v":0},{"$f":"Import!E5562","v":0},{"$f":"Import!E5588","v":0},{"$f":"Import!E5614","v":0},{"$f":"Import!E5640","v":0}]
[null,22,{"$f":"Import!E5435","v":0},null,{"$f":"Import!E5460","v":0},{"$f":"Import!E5485","v":0},{"$f":"Import!E5511","v":0},{"$f":"Import!E5537","v":0},{"$f":"Import!E5563","v":0},{"$f":"Import!E5589","v":0},{"$f":"Import!E5615","v":0},{"$f":"Import!E5641","v":0}]
[null,23,{"$f":"Import!E5436","v":0},null,{"$f":"Import!E5461","v":0},{"$f":"Import!E5486","v":0},{"$f":"Import!E5512","v":0},{"$f":"Import!E5538","v":0},{"$f":"Import!E5564","v":0},{"$f":"Import!E5590","v":0},{"$f":"Import!E5616","v":0},{"$f":"Import!E5642","v":0}]
[null,24,{"$f":"Import!E5437","v":0},null,{"$f":"Import!E5462","v":0},{"$f":"Import!E5487","v":0},{"$f":"Import!E5513","v":0},{"$f":"Import!E5539","v":0},{"$f":"Import!E5565","v":0},{"$f":"Import!E5591","v":0},{"$f":"Import!E5617","v":0},{"$f":"Import!E5643","v":0}]
[null,25,{"$f":"Import!E5438","v":0},null,{"$f":"Import!E5463","v":0},{"$f":"Import!E5488","v":0},{"$f":"Import!E5514","v":0},{"$f":"Import!E5540","v":0},{"$f":"Import!E5566","v":0},{"$f":"Import!E5592","v":0},{"$f":"Import!E5618","v":0},{"$f":"Import!E5644","v":0}]
[null,26]
[null,27]
[null,28]
[null,29]
[null,30]
[null,31]
[null,32]
[null,33]
[null,34]
[null,35]
[null,36]
[null,37]
[null,38]
[null,39]
[null,40]
[null,41]
[null,42]
[null,43]
[null,44]
[null,45]
[null,46]
[null,47]
[null,48]
[null,49]
[null,50]
[null,null,"Total",null,null,{"$f":"SUM(F8:F57)","v":0},0,0,0,0,0]
[null,null,null,null,null,null,null,null,null,null,null,null,null,null,null,null,null,null,null,null,null,null,null,null,null,null,null,null,null,null,null,null,null,null,null,null,null,"",null,"",null,"",null,""]

{"sheet":"Schedule VI","index":52,"n_rows":2357,"n_cols":18,"rows_kept":2357,"cut":false,"hidden":false,"merged":[[1339,1,1339,2],[5,1,5,2],[213,1,213,2],[216,1,216,2],[987,1,987,2],[990,1,990,2],[1095,1,1095,2],[1098,1,1098,2],[1123,1,1123,2],[1126,1,1126,2],[1231,1,1231,2],[1234,1,1234,2],[1764,6,1765,6],[1764,7,1765,7],[1789,1,1789,2],[1793,1,1793,2],[1342,1,1342,2],[1447,1,1447,2],[1450,1,1450,2],[1555,1,1555,2],[1763,5,1765,5]]}
[null,"SCHEDULE OF ASSETS",null,null,null,null,null,null,null,null,null,null,null,{"$f":"HYPERLINK(\"#'Index'!A1\",\"Return to Index\")","v":"Return to Index"}]
[null,{"$f":"'Group Information'!C9","v":"Enter Parent Company Name"}]
[null,"As at",{"$f":"'Group Information'!C3","v":"2023-12-31"}]
[null,"expressed in ['000s]",{"$f":"'Form 1'!C4","v":" ['000s]United States Dollars"},null,null,null,null,null,null,null,null,null,null,"Schedule VI"]
[]
[null,"(A) CASH AND CASH EQUIVALENTS"]
[]
[null,null,"Enter # of Asset Types",{"$f":"Import!E5646","v":0}]
[null,null,null,null,{"$f":"YEAR($C$3)","v":2023},{"$f":"YEAR($C$3)","v":2023}]
[null,"Asset Type","Currency","BSCR Rating","Nominal Amount","Fair Value","Comments"]
[1,{"$f":"Import!E5647","v":"Select"},{"$f":"Import!E5847","v":"Select"},{"$f":"Import!E6047","v":"Select"},{"$f":"Import!E6247","v":0},{"$f":"Import!E6447","v":0},{"$f":"Import!E6647","v":0}]
[{"$f":"A11+1","v":2},{"$f":"Import!E5648","v":"Select"},{"$f":"Import!E5848","v":"Select"},{"$f":"Import!E6048","v":"Select"},{"$f":"Import!E6248","v":0},{"$f":"Import!E6448","v":0},{"$f":"Import!E6648","v":0}]
[{"$f":"A12+1","v":3},{"$f":"Import!E5649","v":"Select"},{"$f":"Import!E5849","v":"Select"},{"$f":"Import!E6049","v":"Select"},{"$f":"Import!E6249","v":0},{"$f":"Import!E6449","v":0},{"$f":"Import!E6649","v":0}]
[4,{"$f":"Import!E5650","v":"Select"},{"$f":"Import!E5850","v":"Select"},{"$f":"Import!E6050","v":"Select"},{"$f":"Import!E6250","v":0},{"$f":"Import!E6450","v":0},{"$f":"Import!E6650","v":0}]
[5,{"$f":"Import!E5651","v":"Select"},{"$f":"Import!E5851","v":"Select"},{"$f":"Import!E6051","v":"Select"},{"$f":"Import!E6251","v":0},{"$f":"Import!E6451","v":0},{"$f":"Import!E6651","v":0}]
[6,{"$f":"Import!E5652","v":"Select"},{"$f":"Import!E5852","v":"Select"},{"$f":"Import!E6052","v":"Select"},{"$f":"Import!E6252","v":0},{"$f":"Import!E6452","v":0},{"$f":"Import!E6652","v":0}]
[7,{"$f":"Import!E5653","v":"Select"},{"$f":"Import!E5853","v":"Select"},{"$f":"Import!E6053","v":"Select"},{"$f":"Import!E6253","v":0},{"$f":"Import!E6453","v":0},{"$f":"Import!E6653","v":0}]
[8,{"$f":"Import!E5654","v":"Select"},{"$f":"Import!E5854","v":"Select"},{"$f":"Import!E6054","v":"Select"},{"$f":"Import!E6254","v":0},{"$f":"Import!E6454","v":0},{"$f":"Import!E6654","v":0}]
[9,{"$f":"Import!E5655","v":"Select"},{"$f":"Import!E5855","v":"Select"},{"$f":"Import!E6055","v":"Select"},{"$f":"Import!E6255","v":0},{"$f":"Import!E6455","v":0},{"$f":"Import!E6655","v":0}]
[10,{"$f":"Import!E5656","v":"Select"},{"$f":"Import!E5856","v":"Select"},{"$f":"Import!E6056","v":"Select"},{"$f":"Import!E6256","v":0},{"$f":"Import!E6456","v":0},{"$f":"Import!E6656","v":0}]
[11,{"$f":"Import!E5657","v":"Select"},{"$f":"Import!E5857","v":"Select"},{"$f":"Import!E6057","v":"Select"},{"$f":"Import!E6257","v":0},{"$f":"Import!E6457","v":0},{"$f":"Import!E6657","v":0}]
[12,{"$f":"Import!E5658","v":"Select"},{"$f":"Import!E5858","v":"Select"},{"$f":"Import!E6058","v":"Select"},{"$f":"Import!E6258","v":0},{"$f":"Import!E6458","v":0},{"$f":"Import!E6658","v":0}]
[13,{"$f":"Import!E5659","v":"Select"},{"$f":"Import!E5859","v":"Select"},{"$f":"Import!E6059","v":"Select"},{"$f":"Import!E6259","v":0},{"$f":"Import!E6459","v":0},{"$f":"Import!E6659","v":0}]
[14,{"$f":"Import!E5660","v":"Select"},{"$f":"Import!E5860","v":"Select"},{"$f":"Import!E6060","v":"Select"},{"$f":"Import!E6260","v":0},{"$f":"Import!E6460","v":0},{"$f":"Import!E6660","v":0}]
[15,{"$f":"Import!E5661","v":"Select"},{"$f":"Import!E5861","v":"Select"},{"$f":"Import!E6061","v":"Select"},{"$f":"Import!E6261","v":0},{"$f":"Import!E6461","v":0},{"$f":"Import!E6661","v":0}]
[16,{"$f":"Import!E5662","v":"Select"},{"$f":"Import!E5862","v":"Select"},{"$f":"Import!E6062","v":"Select"},{"$f":"Import!E6262","v":0},{"$f":"Import!E6462","v":0},{"$f":"Import!E6662","v":0}]
[17,{"$f":"Import!E5663","v":"Select"},{"$f":"Import!E5863","v":"Select"},{"$f":"Import!E6063","v":"Select"},{"$f":"Import!E6263","v":0},{"$f":"Import!E6463","v":0},{"$f":"Import!E6663","v":0}]
[18,{"$f":"Import!E5664","v":"Select"},{"$f":"Import!E5864","v":"Select"},{"$f":"Import!E6064","v":"Select"},{"$f":"Import!E6264","v":0},{"$f":"Import!E6464","v":0},{"$f":"Import!E6664","v":0}]
[19,{"$f":"Import!E5665","v":"Select"},{"$f":"Import!E5865","v":"Select"},{"$f":"Import!E6065","v":"Select"},{"$f":"Import!E6265","v":0},{"$f":"Import!E6465","v":0},{"$f":"Import!E6665","v":0}]
[20,{"$f":"Import!E5666","v":"Select"},{"$f":"Import!E5866","v":"Select"},{"$f":"Import!E6066","v":"Select"},{"$f":"Import!E6266","v":0},{"$f":"Import!E6466","v":0},{"$f":"Import!E6666","v":0}]
[21,{"$f":"Import!E5667","v":"Select"},{"$f":"Import!E5867","v":"Select"},{"$f":"Import!E6067","v":"Select"},{"$f":"Import!E6267","v":0},{"$f":"Import!E6467","v":0},{"$f":"Import!E6667","v":0}]
[22,{"$f":"Import!E5668","v":"Select"},{"$f":"Import!E5868","v":"Select"},{"$f":"Import!E6068","v":"Select"},{"$f":"Import!E6268","v":0},{"$f":"Import!E6468","v":0},{"$f":"Import!E6668","v":0}]
[23,{"$f":"Import!E5669","v":"Select"},{"$f":"Import!E5869","v":"Select"},{"$f":"Import!E6069","v":"Select"},{"$f":"Import!E6269","v":0},{"$f":"Import!E6469","v":0},{"$f":"Import!E6669","v":0}]
[24,{"$f":"Import!E5670","v":"Select"},{"$f":"Import!E5870","v":"Select"},{"$f":"Import!E6070","v":"Select"},{"$f":"Import!E6270","v":0},{"$f":"Import!E6470","v":0},{"$f":"Import!E6670","v":0}]
[25,{"$f":"Import!E5671","v":"Select"},{"$f":"Import!E5871","v":"Select"},{"$f":"Import!E6071","v":"Select"},{"$f":"Import!E6271","v":0},{"$f":"Import!E6471","v":0},{"$f":"Import!E6671","v":0}]
[26,{"$f":"Import!E5672","v":"Select"},{"$f":"Import!E5872","v":"Select"},{"$f":"Import!E6072","v":"Select"},{"$f":"Import!E6272","v":0},{"$f":"Import!E6472","v":0},{"$f":"Import!E6672","v":0}]
[27,{"$f":"Import!E5673","v":"Select"},{"$f":"Import!E5873","v":"Select"},{"$f":"Import!E6073","v":"Select"},{"$f":"Import!E6273","v":0},{"$f":"Import!E6473","v":0},{"$f":"Import!E6673","v":0}]
[28,{"$f":"Import!E5674","v":"Select"},{"$f":"Import!E5874","v":"Select"},{"$f":"Import!E6074","v":"Select"},{"$f":"Import!E6274","v":0},{"$f":"Import!E6474","v":0},{"$f":"Import!E6674","v":0}]
[29,{"$f":"Import!E5675","v":"Select"},{"$f":"Import!E5875","v":"Select"},{"$f":"Import!E6075","v":"Select"},{"$f":"Import!E6275","v":0},{"$f":"Import!E6475","v":0},{"$f":"Import!E6675","v":0}]
[30,{"$f":"Import!E5676","v":"Select"},{"$f":"Import!E5876","v":"Select"},{"$f":"Import!E6076","v":"Select"},{"$f":"Import!E6276","v":0},{"$f":"Import!E6476","v":0},{"$f":"Import!E6676","v":0}]
[31,{"$f":"Import!E5677","v":"Select"},{"$f":"Import!E5877","v":"Select"},{"$f":"Import!E6077","v":"Select"},{"$f":"Import!E6277","v":0},{"$f":"Import!E6477","v":0},{"$f":"Import!E6677","v":0}]
[32,{"$f":"Import!E5678","v":"Select"},{"$f":"Import!E5878","v":"Select"},{"$f":"Import!E6078","v":"Select"},{"$f":"Import!E6278","v":0},{"$f":"Import!E6478","v":0},{"$f":"Import!E6678","v":0}]
[33,{"$f":"Import!E5679","v":"Select"},{"$f":"Import!E5879","v":"Select"},{"$f":"Import!E6079","v":"Select"},{"$f":"Import!E6279","v":0},{"$f":"Import!E6479","v":0},{"$f":"Import!E6679","v":0}]
[34,{"$f":"Import!E5680","v":"Select"},{"$f":"Import!E5880","v":"Select"},{"$f":"Import!E6080","v":"Select"},{"$f":"Import!E6280","v":0},{"$f":"Import!E6480","v":0},{"$f":"Import!E6680","v":0}]
[35,{"$f":"Import!E5681","v":"Select"},{"$f":"Import!E5881","v":"Select"},{"$f":"Import!E6081","v":"Select"},{"$f":"Import!E6281","v":0},{"$f":"Import!E6481","v":0},{"$f":"Import!E6681","v":0}]
[36,{"$f":"Import!E5682","v":"Select"},{"$f":"Import!E5882","v":"Select"},{"$f":"Import!E6082","v":"Select"},{"$f":"Import!E6282","v":0},{"$f":"Import!E6482","v":0},{"$f":"Import!E6682","v":0}]
[37,{"$f":"Import!E5683","v":"Select"},{"$f":"Import!E5883","v":"Select"},{"$f":"Import!E6083","v":"Select"},{"$f":"Import!E6283","v":0},{"$f":"Import!E6483","v":0},{"$f":"Import!E6683","v":0}]
[38,{"$f":"Import!E5684","v":"Select"},{"$f":"Import!E5884","v":"Select"},{"$f":"Import!E6084","v":"Select"},{"$f":"Import!E6284","v":0},{"$f":"Import!E6484","v":0},{"$f":"Import!E6684","v":0}]
[39,{"$f":"Import!E5685","v":"Select"},{"$f":"Import!E5885","v":"Select"},{"$f":"Import!E6085","v":"Select"},{"$f":"Import!E6285","v":0},{"$f":"Import!E6485","v":0},{"$f":"Import!E6685","v":0}]
[40,{"$f":"Import!E5686","v":"Select"},{"$f":"Import!E5886","v":"Select"},{"$f":"Import!E6086","v":"Select"},{"$f":"Import!E6286","v":0},{"$f":"Import!E6486","v":0},{"$f":"Import!E6686","v":0}]
[41,{"$f":"Import!E5687","v":"Select"},{"$f":"Import!E5887","v":"Select"},{"$f":"Import!E6087","v":"Select"},{"$f":"Import!E6287","v":0},{"$f":"Import!E6487","v":0},{"$f":"Import!E6687","v":0}]
[42,{"$f":"Import!E5688","v":"Select"},{"$f":"Import!E5888","v":"Select"},{"$f":"Import!E6088","v":"Select"},{"$f":"Import!E6288","v":0},{"$f":"Import!E6488","v":0},{"$f":"Import!E6688","v":0}]
[43,{"$f":"Import!E5689","v":"Select"},{"$f":"Import!E5889","v":"Select"},{"$f":"Import!E6089","v":"Select"},{"$f":"Import!E6289","v":0},{"$f":"Import!E6489","v":0},{"$f":"Import!E6689","v":0}]
[44,{"$f":"Import!E5690","v":"Select"},{"$f":"Import!E5890","v":"Select"},{"$f":"Import!E6090","v":"Select"},{"$f":"Import!E6290","v":0},{"$f":"Import!E6490","v":0},{"$f":"Import!E6690","v":0}]
[45,{"$f":"Import!E5691","v":"Select"},{"$f":"Import!E5891","v":"Select"},{"$f":"Import!E6091","v":"Select"},{"$f":"Import!E6291","v":0},{"$f":"Import!E6491","v":0},{"$f":"Import!E6691","v":0}]
[46,{"$f":"Import!E5692","v":"Select"},{"$f":"Import!E5892","v":"Select"},{"$f":"Import!E6092","v":"Select"},{"$f":"Import!E6292","v":0},{"$f":"Import!E6492","v":0},{"$f":"Import!E6692","v":0}]
[47,{"$f":"Import!E5693","v":"Select"},{"$f":"Import!E5893","v":"Select"},{"$f":"Import!E6093","v":"Select"},{"$f":"Import!E6293","v":0},{"$f":"Import!E6493","v":0},{"$f":"Import!E6693","v":0}]
[48,{"$f":"Import!E5694","v":"Select"},{"$f":"Import!E5894","v":"Select"},{"$f":"Import!E6094","v":"Select"},{"$f":"Import!E6294","v":0},{"$f":"Import!E6494","v":0},{"$f":"Import!E6694","v":0}]
[49,{"$f":"Import!E5695","v":"Select"},{"$f":"Import!E5895","v":"Select"},{"$f":"Import!E6095","v":"Select"},{"$f":"Import!E6295","v":0},{"$f":"Import!E6495","v":0},{"$f":"Import!E6695","v":0}]
[50,{"$f":"Import!E5696","v":"Select"},{"$f":"Import!E5896","v":"Select"},{"$f":"Import!E6096","v":"Select"},{"$f":"Import!E6296","v":0},{"$f":"Import!E6496","v":0},{"$f":"Import!E6696","v":0}]
[51,{"$f":"Import!E5697","v":"Select"},{"$f":"Import!E5897","v":"Select"},{"$f":"Import!E6097","v":"Select"},{"$f":"Import!E6297","v":0},{"$f":"Import!E6497","v":0},{"$f":"Import!E6697","v":0}]
[52,{"$f":"Import!E5698","v":"Select"},{"$f":"Import!E5898","v":"Select"},{"$f":"Import!E6098","v":"Select"},{"$f":"Import!E6298","v":0},{"$f":"Import!E6498","v":0},{"$f":"Import!E6698","v":0}]
[53,{"$f":"Import!E5699","v":"Select"},{"$f":"Import!E5899","v":"Select"},{"$f":"Import!E6099","v":"Select"},{"$f":"Import!E6299","v":0},{"$f":"Import!E6499","v":0},{"$f":"Import!E6699","v":0}]
[54,{"$f":"Import!E5700","v":"Select"},{"$f":"Import!E5900","v":"Select"},{"$f":"Import!E6100","v":"Select"},{"$f":"Import!E6300","v":0},{"$f":"Import!E6500","v":0},{"$f":"Import!E6700","v":0}]
[55,{"$f":"Import!E5701","v":"Select"},{"$f":"Import!E5901","v":"Select"},{"$f":"Import!E6101","v":"Select"},{"$f":"Import!E6301","v":0},{"$f":"Import!E6501","v":0},{"$f":"Import!E6701","v":0}]
[56,{"$f":"Import!E5702","v":"Select"},{"$f":"Import!E5902","v":"Select"},{"$f":"Import!E6102","v":"Select"},{"$f":"Import!E6302","v":0},{"$f":"Import!E6502","v":0},{"$f":"Import!E6702","v":0}]
[57,{"$f":"Import!E5703","v":"Select"},{"$f":"Import!E5903","v":"Select"},{"$f":"Import!E6103","v":"Select"},{"$f":"Import!E6303","v":0},{"$f":"Import!E6503","v":0},{"$f":"Import!E6703","v":0}]
[58,{"$f":"Import!E5704","v":"Select"},{"$f":"Import!E5904","v":"Select"},{"$f":"Import!E6104","v":"Select"},{"$f":"Import!E6304","v":0},{"$f":"Import!E6504","v":0},{"$f":"Import!E6704","v":0}]
[59,{"$f":"Import!E5705","v":"Select"},{"$f":"Import!E5905","v":"Select"},{"$f":"Import!E6105","v":"Select"},{"$f":"Import!E6305","v":0},{"$f":"Import!E6505","v":0},{"$f":"Import!E6705","v":0}]
[60,{"$f":"Import!E5706","v":"Select"},{"$f":"Import!E5906","v":"Select"},{"$f":"Import!E6106","v":"Select"},{"$f":"Import!E6306","v":0},{"$f":"Import!E6506","v":0},{"$f":"Import!E6706","v":0}]
[61,{"$f":"Import!E5707","v":"Select"},{"$f":"Import!E5907","v":"Select"},{"$f":"Import!E6107","v":"Select"},{"$f":"Import!E6307","v":0},{"$f":"Import!E6507","v":0},{"$f":"Import!E6707","v":0}]
[62,{"$f":"Import!E5708","v":"Select"},{"$f":"Import!E5908","v":"Select"},{"$f":"Import!E6108","v":"Select"},{"$f":"Import!E6308","v":0},{"$f":"Import!E6508","v":0},{"$f":"Import!E6708","v":0}]
[63,{"$f":"Import!E5709","v":"Select"},{"$f":"Import!E5909","v":"Select"},{"$f":"Import!E6109","v":"Select"},{"$f":"Import!E6309","v":0},{"$f":"Import!E6509","v":0},{"$f":"Import!E6709","v":0}]
[64,{"$f":"Import!E5710","v":"Select"},{"$f":"Import!E5910","v":"Select"},{"$f":"Import!E6110","v":"Select"},{"$f":"Import!E6310","v":0},{"$f":"Import!E6510","v":0},{"$f":"Import!E6710","v":0}]
[65,{"$f":"Import!E5711","v":"Select"},{"$f":"Import!E5911","v":"Select"},{"$f":"Import!E6111","v":"Select"},{"$f":"Import!E6311","v":0},{"$f":"Import!E6511","v":0},{"$f":"Import!E6711","v":0}]
[66,{"$f":"Import!E5712","v":"Select"},{"$f":"Import!E5912","v":"Select"},{"$f":"Import!E6112","v":"Select"},{"$f":"Import!E6312","v":0},{"$f":"Import!E6512","v":0},{"$f":"Import!E6712","v":0}]
[{"$f":"A76+1","v":67},{"$f":"Import!E5713","v":"Select"},{"$f":"Import!E5913","v":"Select"},{"$f":"Import!E6113","v":"Select"},{"$f":"Import!E6313","v":0},{"$f":"Import!E6513","v":0},{"$f":"Import!E6713","v":0}]
[68,{"$f":"Import!E5714","v":"Select"},{"$f":"Import!E5914","v":"Select"},{"$f":"Import!E6114","v":"Select"},{"$f":"Import!E6314","v":0},{"$f":"Import!E6514","v":0},{"$f":"Import!E6714","v":0}]
[69,{"$f":"Import!E5715","v":"Select"},{"$f":"Import!E5915","v":"Select"},{"$f":"Import!E6115","v":"Select"},{"$f":"Import!E6315","v":0},{"$f":"Import!E6515","v":0},{"$f":"Import!E6715","v":0}]
[70,{"$f":"Import!E5716","v":"Select"},{"$f":"Import!E5916","v":"Select"},{"$f":"Import!E6116","v":"Select"},{"$f":"Import!E6316","v":0},{"$f":"Import!E6516","v":0},{"$f":"Import!E6716","v":0}]
[71,{"$f":"Import!E5717","v":"Select"},{"$f":"Import!E5917","v":"Select"},{"$f":"Import!E6117","v":"Select"},{"$f":"Import!E6317","v":0},{"$f":"Import!E6517","v":0},{"$f":"Import!E6717","v":0}]
[72,{"$f":"Import!E5718","v":"Select"},{"$f":"Import!E5918","v":"Select"},{"$f":"Import!E6118","v":"Select"},{"$f":"Import!E6318","v":0},{"$f":"Import!E6518","v":0},{"$f":"Import!E6718","v":0}]
[73,{"$f":"Import!E5719","v":"Select"},{"$f":"Import!E5919","v":"Select"},{"$f":"Import!E6119","v":"Select"},{"$f":"Import!E6319","v":0},{"$f":"Import!E6519","v":0},{"$f":"Import!E6719","v":0}]
[74,{"$f":"Import!E5720","v":"Select"},{"$f":"Import!E5920","v":"Select"},{"$f":"Import!E6120","v":"Select"},{"$f":"Import!E6320","v":0},{"$f":"Import!E6520","v":0},{"$f":"Import!E6720","v":0}]
[75,{"$f":"Import!E5721","v":"Select"},{"$f":"Import!E5921","v":"Select"},{"$f":"Import!E6121","v":"Select"},{"$f":"Import!E6321","v":0},{"$f":"Import!E6521","v":0},{"$f":"Import!E6721","v":0}]
[76,{"$f":"Import!E5722","v":"Select"},{"$f":"Import!E5922","v":"Select"},{"$f":"Import!E6122","v":"Select"},{"$f":"Import!E6322","v":0},{"$f":"Import!E6522","v":0},{"$f":"Import!E6722","v":0}]
[77,{"$f":"Import!E5723","v":"Select"},{"$f":"Import!E5923","v":"Select"},{"$f":"Import!E6123","v":"Select"},{"$f":"Import!E6323","v":0},{"$f":"Import!E6523","v":0},{"$f":"Import!E6723","v":0}]
[78,{"$f":"Import!E5724","v":"Select"},{"$f":"Import!E5924","v":"Select"},{"$f":"Import!E6124","v":"Select"},{"$f":"Import!E6324","v":0},{"$f":"Import!E6524","v":0},{"$f":"Import!E6724","v":0}]
[79,{"$f":"Import!E5725","v":"Select"},{"$f":"Import!E5925","v":"Select"},{"$f":"Import!E6125","v":"Select"},{"$f":"Import!E6325","v":0},{"$f":"Import!E6525","v":0},{"$f":"Import!E6725","v":0}]
[80,{"$f":"Import!E5726","v":"Select"},{"$f":"Import!E5926","v":"Select"},{"$f":"Import!E6126","v":"Select"},{"$f":"Import!E6326","v":0},{"$f":"Import!E6526","v":0},{"$f":"Import!E6726","v":0}]
[81,{"$f":"Import!E5727","v":"Select"},{"$f":"Import!E5927","v":"Select"},{"$f":"Import!E6127","v":"Select"},{"$f":"Import!E6327","v":0},{"$f":"Import!E6527","v":0},{"$f":"Import!E6727","v":0}]
[82,{"$f":"Import!E5728","v":"Select"},{"$f":"Import!E5928","v":"Select"},{"$f":"Import!E6128","v":"Select"},{"$f":"Import!E6328","v":0},{"$f":"Import!E6528","v":0},{"$f":"Import!E6728","v":0}]
[83,{"$f":"Import!E5729","v":"Select"},{"$f":"Import!E5929","v":"Select"},{"$f":"Import!E6129","v":"Select"},{"$f":"Import!E6329","v":0},{"$f":"Import!E6529","v":0},{"$f":"Import!E6729","v":0}]
[84,{"$f":"Import!E5730","v":"Select"},{"$f":"Import!E5930","v":"Select"},{"$f":"Import!E6130","v":"Select"},{"$f":"Import!E6330","v":0},{"$f":"Import!E6530","v":0},{"$f":"Import!E6730","v":0}]
[85,{"$f":"Import!E5731","v":"Select"},{"$f":"Import!E5931","v":"Select"},{"$f":"Import!E6131","v":"Select"},{"$f":"Import!E6331","v":0},{"$f":"Import!E6531","v":0},{"$f":"Import!E6731","v":0}]
[86,{"$f":"Import!E5732","v":"Select"},{"$f":"Import!E5932","v":"Select"},{"$f":"Import!E6132","v":"Select"},{"$f":"Import!E6332","v":0},{"$f":"Import!E6532","v":0},{"$f":"Import!E6732","v":0}]
[87,{"$f":"Import!E5733","v":"Select"},{"$f":"Import!E5933","v":"Select"},{"$f":"Import!E6133","v":"Select"},{"$f":"Import!E6333","v":0},{"$f":"Import!E6533","v":0},{"$f":"Import!E6733","v":0}]
[88,{"$f":"Import!E5734","v":"Select"},{"$f":"Import!E5934","v":"Select"},{"$f":"Import!E6134","v":"Select"},{"$f":"Import!E6334","v":0},{"$f":"Import!E6534","v":0},{"$f":"Import!E6734","v":0}]
[89,{"$f":"Import!E5735","v":"Select"},{"$f":"Import!E5935","v":"Select"},{"$f":"Import!E6135","v":"Select"},{"$f":"Import!E6335","v":0},{"$f":"Import!E6535","v":0},{"$f":"Import!E6735","v":0}]
[90,{"$f":"Import!E5736","v":"Select"},{"$f":"Import!E5936","v":"Select"},{"$f":"Import!E6136","v":"Select"},{"$f":"Import!E6336","v":0},{"$f":"Import!E6536","v":0},{"$f":"Import!E6736","v":0}]
[91,{"$f":"Import!E5737","v":"Select"},{"$f":"Import!E5937","v":"Select"},{"$f":"Import!E6137","v":"Select"},{"$f":"Import!E6337","v":0},{"$f":"Import!E6537","v":0},{"$f":"Import!E6737","v":0}]
[92,{"$f":"Import!E5738","v":"Select"},{"$f":"Import!E5938","v":"Select"},{"$f":"Import!E6138","v":"Select"},{"$f":"Import!E6338","v":0},{"$f":"Import!E6538","v":0},{"$f":"Import!E6738","v":0}]
[93,{"$f":"Import!E5739","v":"Select"},{"$f":"Import!E5939","v":"Select"},{"$f":"Import!E6139","v":"Select"},{"$f":"Import!E6339","v":0},{"$f":"Import!E6539","v":0},{"$f":"Import!E6739","v":0}]
[94,{"$f":"Import!E5740","v":"Select"},{"$f":"Import!E5940","v":"Select"},{"$f":"Import!E6140","v":"Select"},{"$f":"Import!E6340","v":0},{"$f":"Import!E6540","v":0},{"$f":"Import!E6740","v":0}]
[95,{"$f":"Import!E5741","v":"Select"},{"$f":"Import!E5941","v":"Select"},{"$f":"Import!E6141","v":"Select"},{"$f":"Import!E6341","v":0},{"$f":"Import!E6541","v":0},{"$f":"Import!E6741","v":0}]
[96,{"$f":"Import!E5742","v":"Select"},{"$f":"Import!E5942","v":"Select"},{"$f":"Import!E6142","v":"Select"},{"$f":"Import!E6342","v":0},{"$f":"Import!E6542","v":0},{"$f":"Import!E6742","v":0}]
[97,{"$f":"Import!E5743","v":"Select"},{"$f":"Import!E5943","v":"Select"},{"$f":"Import!E6143","v":"Select"},{"$f":"Import!E6343","v":0},{"$f":"Import!E6543","v":0},{"$f":"Import!E6743","v":0}]
[98,{"$f":"Import!E5744","v":"Select"},{"$f":"Import!E5944","v":"Select"},{"$f":"Import!E6144","v":"Select"},{"$f":"Import!E6344","v":0},{"$f":"Import!E6544","v":0},{"$f":"Import!E6744","v":0}]
[99,{"$f":"Import!E5745","v":"Select"},{"$f":"Import!E5945","v":"Select"},{"$f":"Import!E6145","v":"Select"},{"$f":"Import!E6345","v":0},{"$f":"Import!E6545","v":0},{"$f":"Import!E6745","v":0}]
[100,{"$f":"Import!E5746","v":"Select"},{"$f":"Import!E5946","v":"Select"},{"$f":"Import!E6146","v":"Select"},{"$f":"Import!E6346","v":0},{"$f":"Import!E6546","v":0},{"$f":"Import!E6746","v":0}]
[101,{"$f":"Import!E5747","v":"Select"},{"$f":"Import!E5947","v":"Select"},{"$f":"Import!E6147","v":"Select"},{"$f":"Import!E6347","v":0},{"$f":"Import!E6547","v":0},{"$f":"Import!E6747","v":0}]
[102,{"$f":"Import!E5748","v":"Select"},{"$f":"Import!E5948","v":"Select"},{"$f":"Import!E6148","v":"Select"},{"$f":"Import!E6348","v":0},{"$f":"Import!E6548","v":0},{"$f":"Import!E6748","v":0}]
[103,{"$f":"Import!E5749","v":"Select"},{"$f":"Import!E5949","v":"Select"},{"$f":"Import!E6149","v":"Select"},{"$f":"Import!E6349","v":0},{"$f":"Import!E6549","v":0},{"$f":"Import!E6749","v":0}]
[104,{"$f":"Import!E5750","v":"Select"},{"$f":"Import!E5950","v":"Select"},{"$f":"Import!E6150","v":"Select"},{"$f":"Import!E6350","v":0},{"$f":"Import!E6550","v":0},{"$f":"Import!E6750","v":0}]
[105,{"$f":"Import!E5751","v":"Select"},{"$f":"Import!E5951","v":"Select"},{"$f":"Import!E6151","v":"Select"},{"$f":"Import!E6351","v":0},{"$f":"Import!E6551","v":0},{"$f":"Import!E6751","v":0}]
[106,{"$f":"Import!E5752","v":"Select"},{"$f":"Import!E5952","v":"Select"},{"$f":"Import!E6152","v":"Select"},{"$f":"Import!E6352","v":0},{"$f":"Import!E6552","v":0},{"$f":"Import!E6752","v":0}]
[107,{"$f":"Import!E5753","v":"Select"},{"$f":"Import!E5953","v":"Select"},{"$f":"Import!E6153","v":"Select"},{"$f":"Import!E6353","v":0},{"$f":"Import!E6553","v":0},{"$f":"Import!E6753","v":0}]
[108,{"$f":"Import!E5754","v":"Select"},{"$f":"Import!E5954","v":"Select"},{"$f":"Import!E6154","v":"Select"},{"$f":"Import!E6354","v":0},{"$f":"Import!E6554","v":0},{"$f":"Import!E6754","v":0}]
[109,{"$f":"Import!E5755","v":"Select"},{"$f":"Import!E5955","v":"Select"},{"$f":"Import!E6155","v":"Select"},{"$f":"Import!E6355","v":0},{"$f":"Import!E6555","v":0},{"$f":"Import!E6755","v":0}]
[110,{"$f":"Import!E5756","v":"Select"},{"$f":"Import!E5956","v":"Select"},{"$f":"Import!E6156","v":"Select"},{"$f":"Import!E6356","v":0},{"$f":"Import!E6556","v":0},{"$f":"Import!E6756","v":0}]
[111,{"$f":"Import!E5757","v":"Select"},{"$f":"Import!E5957","v":"Select"},{"$f":"Import!E6157","v":"Select"},{"$f":"Import!E6357","v":0},{"$f":"Import!E6557","v":0},{"$f":"Import!E6757","v":0}]
[112,{"$f":"Import!E5758","v":"Select"},{"$f":"Import!E5958","v":"Select"},{"$f":"Import!E6158","v":"Select"},{"$f":"Import!E6358","v":0},{"$f":"Import!E6558","v":0},{"$f":"Import!E6758","v":0}]
[113,{"$f":"Import!E5759","v":"Select"},{"$f":"Import!E5959","v":"Select"},{"$f":"Import!E6159","v":"Select"},{"$f":"Import!E6359","v":0},{"$f":"Import!E6559","v":0},{"$f":"Import!E6759","v":0}]
[114,{"$f":"Import!E5760","v":"Select"},{"$f":"Import!E5960","v":"Select"},{"$f":"Import!E6160","v":"Select"},{"$f":"Import!E6360","v":0},{"$f":"Import!E6560","v":0},{"$f":"Import!E6760","v":0}]
[115,{"$f":"Import!E5761","v":"Select"},{"$f":"Import!E5961","v":"Select"},{"$f":"Import!E6161","v":"Select"},{"$f":"Import!E6361","v":0},{"$f":"Import!E6561","v":0},{"$f":"Import!E6761","v":0}]
[116,{"$f":"Import!E5762","v":"Select"},{"$f":"Import!E5962","v":"Select"},{"$f":"Import!E6162","v":"Select"},{"$f":"Import!E6362","v":0},{"$f":"Import!E6562","v":0},{"$f":"Import!E6762","v":0}]
[117,{"$f":"Import!E5763","v":"Select"},{"$f":"Import!E5963","v":"Select"},{"$f":"Import!E6163","v":"Select"},{"$f":"Import!E6363","v":0},{"$f":"Import!E6563","v":0},{"$f":"Import!E6763","v":0}]
[118,{"$f":"Import!E5764","v":"Select"},{"$f":"Import!E5964","v":"Select"},{"$f":"Import!E6164","v":"Select"},{"$f":"Import!E6364","v":0},{"$f":"Import!E6564","v":0},{"$f":"Import!E6764","v":0}]
[119,{"$f":"Import!E5765","v":"Select"},{"$f":"Import!E5965","v":"Select"},{"$f":"Import!E6165","v":"Select"},{"$f":"Import!E6365","v":0},{"$f":"Import!E6565","v":0},{"$f":"Import!E6765","v":0}]
[120,{"$f":"Import!E5766","v":"Select"},{"$f":"Import!E5966","v":"Select"},{"$f":"Import!E6166","v":"Select"},{"$f":"Import!E6366","v":0},{"$f":"Import!E6566","v":0},{"$f":"Import!E6766","v":0}]
[121,{"$f":"Import!E5767","v":"Select"},{"$f":"Import!E5967","v":"Select"},{"$f":"Import!E6167","v":"Select"},{"$f":"Import!E6367","v":0},{"$f":"Import!E6567","v":0},{"$f":"Import!E6767","v":0}]
[122,{"$f":"Import!E5768","v":"Select"},{"$f":"Import!E5968","v":"Select"},{"$f":"Import!E6168","v":"Select"},{"$f":"Import!E6368","v":0},{"$f":"Import!E6568","v":0},{"$f":"Import!E6768","v":0}]
[123,{"$f":"Import!E5769","v":"Select"},{"$f":"Import!E5969","v":"Select"},{"$f":"Import!E6169","v":"Select"},{"$f":"Import!E6369","v":0},{"$f":"Import!E6569","v":0},{"$f":"Import!E6769","v":0}]
[124,{"$f":"Import!E5770","v":"Select"},{"$f":"Import!E5970","v":"Select"},{"$f":"Import!E6170","v":"Select"},{"$f":"Import!E6370","v":0},{"$f":"Import!E6570","v":0},{"$f":"Import!E6770","v":0}]
[125,{"$f":"Import!E5771","v":"Select"},{"$f":"Import!E5971","v":"Select"},{"$f":"Import!E6171","v":"Select"},{"$f":"Import!E6371","v":0},{"$f":"Import!E6571","v":0},{"$f":"Import!E6771","v":0}]
[126,{"$f":"Import!E5772","v":"Select"},{"$f":"Import!E5972","v":"Select"},{"$f":"Import!E6172","v":"Select"},{"$f":"Import!E6372","v":0},{"$f":"Import!E6572","v":0},{"$f":"Import!E6772","v":0}]
[127,{"$f":"Import!E5773","v":"Select"},{"$f":"Import!E5973","v":"Select"},{"$f":"Import!E6173","v":"Select"},{"$f":"Import!E6373","v":0},{"$f":"Import!E6573","v":0},{"$f":"Import!E6773","v":0}]
[128,{"$f":"Import!E5774","v":"Select"},{"$f":"Import!E5974","v":"Select"},{"$f":"Import!E6174","v":"Select"},{"$f":"Import!E6374","v":0},{"$f":"Import!E6574","v":0},{"$f":"Import!E6774","v":0}]
[129,{"$f":"Import!E5775","v":"Select"},{"$f":"Import!E5975","v":"Select"},{"$f":"Import!E6175","v":"Select"},{"$f":"Import!E6375","v":0},{"$f":"Import!E6575","v":0},{"$f":"Import!E6775","v":0}]
[130,{"$f":"Import!E5776","v":"Select"},{"$f":"Import!E5976","v":"Select"},{"$f":"Import!E6176","v":"Select"},{"$f":"Import!E6376","v":0},{"$f":"Import!E6576","v":0},{"$f":"Import!E6776","v":0}]
[{"$f":"A140+1","v":131},{"$f":"Import!E5777","v":"Select"},{"$f":"Import!E5977","v":"Select"},{"$f":"Import!E6177","v":"Select"},{"$f":"Import!E6377","v":0},{"$f":"Import!E6577","v":0},{"$f":"Import!E6777","v":0}]
[132,{"$f":"Import!E5778","v":"Select"},{"$f":"Import!E5978","v":"Select"},{"$f":"Import!E6178","v":"Select"},{"$f":"Import!E6378","v":0},{"$f":"Import!E6578","v":0},{"$f":"Import!E6778","v":0}]
[133,{"$f":"Import!E5779","v":"Select"},{"$f":"Import!E5979","v":"Select"},{"$f":"Import!E6179","v":"Select"},{"$f":"Import!E6379","v":0},{"$f":"Import!E6579","v":0},{"$f":"Import!E6779","v":0}]
[134,{"$f":"Import!E5780","v":"Select"},{"$f":"Import!E5980","v":"Select"},{"$f":"Import!E6180","v":"Select"},{"$f":"Import!E6380","v":0},{"$f":"Import!E6580","v":0},{"$f":"Import!E6780","v":0}]
[135,{"$f":"Import!E5781","v":"Select"},{"$f":"Import!E5981","v":"Select"},{"$f":"Import!E6181","v":"Select"},{"$f":"Import!E6381","v":0},{"$f":"Import!E6581","v":0},{"$f":"Import!E6781","v":0}]
[136,{"$f":"Import!E5782","v":"Select"},{"$f":"Import!E5982","v":"Select"},{"$f":"Import!E6182","v":"Select"},{"$f":"Import!E6382","v":0},{"$f":"Import!E6582","v":0},{"$f":"Import!E6782","v":0}]
[137,{"$f":"Import!E5783","v":"Select"},{"$f":"Import!E5983","v":"Select"},{"$f":"Import!E6183","v":"Select"},{"$f":"Import!E6383","v":0},{"$f":"Import!E6583","v":0},{"$f":"Import!E6783","v":0}]
[138,{"$f":"Import!E5784","v":"Select"},{"$f":"Import!E5984","v":"Select"},{"$f":"Import!E6184","v":"Select"},{"$f":"Import!E6384","v":0},{"$f":"Import!E6584","v":0},{"$f":"Import!E6784","v":0}]
[139,{"$f":"Import!E5785","v":"Select"},{"$f":"Import!E5985","v":"Select"},{"$f":"Import!E6185","v":"Select"},{"$f":"Import!E6385","v":0},{"$f":"Import!E6585","v":0},{"$f":"Import!E6785","v":0}]
[140,{"$f":"Import!E5786","v":"Select"},{"$f":"Import!E5986","v":"Select"},{"$f":"Import!E6186","v":"Select"},{"$f":"Import!E6386","v":0},{"$f":"Import!E6586","v":0},{"$f":"Import!E6786","v":0}]
[141,{"$f":"Import!E5787","v":"Select"},{"$f":"Import!E5987","v":"Select"},{"$f":"Import!E6187","v":"Select"},{"$f":"Import!E6387","v":0},{"$f":"Import!E6587","v":0},{"$f":"Import!E6787","v":0}]
[142,{"$f":"Import!E5788","v":"Select"},{"$f":"Import!E5988","v":"Select"},{"$f":"Import!E6188","v":"Select"},{"$f":"Import!E6388","v":0},{"$f":"Import!E6588","v":0},{"$f":"Import!E6788","v":0}]
[143,{"$f":"Import!E5789","v":"Select"},{"$f":"Import!E5989","v":"Select"},{"$f":"Import!E6189","v":"Select"},{"$f":"Import!E6389","v":0},{"$f":"Import!E6589","v":0},{"$f":"Import!E6789","v":0}]
[144,{"$f":"Import!E5790","v":"Select"},{"$f":"Import!E5990","v":"Select"},{"$f":"Import!E6190","v":"Select"},{"$f":"Import!E6390","v":0},{"$f":"Import!E6590","v":0},{"$f":"Import!E6790","v":0}]
[145,{"$f":"Import!E5791","v":"Select"},{"$f":"Import!E5991","v":"Select"},{"$f":"Import!E6191","v":"Select"},{"$f":"Import!E6391","v":0},{"$f":"Import!E6591","v":0},{"$f":"Import!E6791","v":0}]
[146,{"$f":"Import!E5792","v":"Select"},{"$f":"Import!E5992","v":"Select"},{"$f":"Import!E6192","v":"Select"},{"$f":"Import!E6392","v":0},{"$f":"Import!E6592","v":0},{"$f":"Import!E6792","v":0}]
[147,{"$f":"Import!E5793","v":"Select"},{"$f":"Import!E5993","v":"Select"},{"$f":"Import!E6193","v":"Select"},{"$f":"Import!E6393","v":0},{"$f":"Import!E6593","v":0},{"$f":"Import!E6793","v":0}]
[148,{"$f":"Import!E5794","v":"Select"},{"$f":"Import!E5994","v":"Select"},{"$f":"Import!E6194","v":"Select"},{"$f":"Import!E6394","v":0},{"$f":"Import!E6594","v":0},{"$f":"Import!E6794","v":0}]
[149,{"$f":"Import!E5795","v":"Select"},{"$f":"Import!E5995","v":"Select"},{"$f":"Import!E6195","v":"Select"},{"$f":"Import!E6395","v":0},{"$f":"Import!E6595","v":0},{"$f":"Import!E6795","v":0}]
[150,{"$f":"Import!E5796","v":"Select"},{"$f":"Import!E5996","v":"Select"},{"$f":"Import!E6196","v":"Select"},{"$f":"Import!E6396","v":0},{"$f":"Import!E6596","v":0},{"$f":"Import!E6796","v":0}]
[151,{"$f":"Import!E5797","v":"Select"},{"$f":"Import!E5997","v":"Select"},{"$f":"Import!E6197","v":"Select"},{"$f":"Import!E6397","v":0},{"$f":"Import!E6597","v":0},{"$f":"Import!E6797","v":0}]
[152,{"$f":"Import!E5798","v":"Select"},{"$f":"Import!E5998","v":"Select"},{"$f":"Import!E6198","v":"Select"},{"$f":"Import!E6398","v":0},{"$f":"Import!E6598","v":0},{"$f":"Import!E6798","v":0}]
[153,{"$f":"Import!E5799","v":"Select"},{"$f":"Import!E5999","v":"Select"},{"$f":"Import!E6199","v":"Select"},{"$f":"Import!E6399","v":0},{"$f":"Import!E6599","v":0},{"$f":"Import!E6799","v":0}]
[154,{"$f":"Import!E5800","v":"Select"},{"$f":"Import!E6000","v":"Select"},{"$f":"Import!E6200","v":"Select"},{"$f":"Import!E6400","v":0},{"$f":"Import!E6600","v":0},{"$f":"Import!E6800","v":0}]
[155,{"$f":"Import!E5801","v":"Select"},{"$f":"Import!E6001","v":"Select"},{"$f":"Import!E6201","v":"Select"},{"$f":"Import!E6401","v":0},{"$f":"Import!E6601","v":0},{"$f":"Import!E6801","v":0}]
[156,{"$f":"Import!E5802","v":"Select"},{"$f":"Import!E6002","v":"Select"},{"$f":"Import!E6202","v":"Select"},{"$f":"Import!E6402","v":0},{"$f":"Import!E6602","v":0},{"$f":"Import!E6802","v":0}]
[157,{"$f":"Import!E5803","v":"Select"},{"$f":"Import!E6003","v":"Select"},{"$f":"Import!E6203","v":"Select"},{"$f":"Import!E6403","v":0},{"$f":"Import!E6603","v":0},{"$f":"Import!E6803","v":0}]
[158,{"$f":"Import!E5804","v":"Select"},{"$f":"Import!E6004","v":"Select"},{"$f":"Import!E6204","v":"Select"},{"$f":"Import!E6404","v":0},{"$f":"Import!E6604","v":0},{"$f":"Import!E6804","v":0}]
[159,{"$f":"Import!E5805","v":"Select"},{"$f":"Import!E6005","v":"Select"},{"$f":"Import!E6205","v":"Select"},{"$f":"Import!E6405","v":0},{"$f":"Import!E6605","v":0},{"$f":"Import!E6805","v":0}]
[160,{"$f":"Import!E5806","v":"Select"},{"$f":"Import!E6006","v":"Select"},{"$f":"Import!E6206","v":"Select"},{"$f":"Import!E6406","v":0},{"$f":"Import!E6606","v":0},{"$f":"Import!E6806","v":0}]
[161,{"$f":"Import!E5807","v":"Select"},{"$f":"Import!E6007","v":"Select"},{"$f":"Import!E6207","v":"Select"},{"$f":"Import!E6407","v":0},{"$f":"Import!E6607","v":0},{"$f":"Import!E6807","v":0}]
[162,{"$f":"Import!E5808","v":"Select"},{"$f":"Import!E6008","v":"Select"},{"$f":"Import!E6208","v":"Select"},{"$f":"Import!E6408","v":0},{"$f":"Import!E6608","v":0},{"$f":"Import!E6808","v":0}]
[163,{"$f":"Import!E5809","v":"Select"},{"$f":"Import!E6009","v":"Select"},{"$f":"Import!E6209","v":"Select"},{"$f":"Import!E6409","v":0},{"$f":"Import!E6609","v":0},{"$f":"Import!E6809","v":0}]
[164,{"$f":"Import!E5810","v":"Select"},{"$f":"Import!E6010","v":"Select"},{"$f":"Import!E6210","v":"Select"},{"$f":"Import!E6410","v":0},{"$f":"Import!E6610","v":0},{"$f":"Import!E6810","v":0}]
[165,{"$f":"Import!E5811","v":"Select"},{"$f":"Import!E6011","v":"Select"},{"$f":"Import!E6211","v":"Select"},{"$f":"Import!E6411","v":0},{"$f":"Import!E6611","v":0},{"$f":"Import!E6811","v":0}]
[166,{"$f":"Import!E5812","v":"Select"},{"$f":"Import!E6012","v":"Select"},{"$f":"Import!E6212","v":"Select"},{"$f":"Import!E6412","v":0},{"$f":"Import!E6612","v":0},{"$f":"Import!E6812","v":0}]
[167,{"$f":"Import!E5813","v":"Select"},{"$f":"Import!E6013","v":"Select"},{"$f":"Import!E6213","v":"Select"},{"$f":"Import!E6413","v":0},{"$f":"Import!E6613","v":0},{"$f":"Import!E6813","v":0}]
[168,{"$f":"Import!E5814","v":"Select"},{"$f":"Import!E6014","v":"Select"},{"$f":"Import!E6214","v":"Select"},{"$f":"Import!E6414","v":0},{"$f":"Import!E6614","v":0},{"$f":"Import!E6814","v":0}]
[169,{"$f":"Import!E5815","v":"Select"},{"$f":"Import!E6015","v":"Select"},{"$f":"Import!E6215","v":"Select"},{"$f":"Import!E6415","v":0},{"$f":"Import!E6615","v":0},{"$f":"Import!E6815","v":0}]
[170,{"$f":"Import!E5816","v":"Select"},{"$f":"Import!E6016","v":"Select"},{"$f":"Import!E6216","v":"Select"},{"$f":"Import!E6416","v":0},{"$f":"Import!E6616","v":0},{"$f":"Import!E6816","v":0}]
[171,{"$f":"Import!E5817","v":"Select"},{"$f":"Import!E6017","v":"Select"},{"$f":"Import!E6217","v":"Select"},{"$f":"Import!E6417","v":0},{"$f":"Import!E6617","v":0},{"$f":"Import!E6817","v":0}]
[172,{"$f":"Import!E5818","v":"Select"},{"$f":"Import!E6018","v":"Select"},{"$f":"Import!E6218","v":"Select"},{"$f":"Import!E6418","v":0},{"$f":"Import!E6618","v":0},{"$f":"Import!E6818","v":0}]
[173,{"$f":"Import!E5819","v":"Select"},{"$f":"Import!E6019","v":"Select"},{"$f":"Import!E6219","v":"Select"},{"$f":"Import!E6419","v":0},{"$f":"Import!E6619","v":0},{"$f":"Import!E6819","v":0}]
[174,{"$f":"Import!E5820","v":"Select"},{"$f":"Import!E6020","v":"Select"},{"$f":"Import!E6220","v":"Select"},{"$f":"Import!E6420","v":0},{"$f":"Import!E6620","v":0},{"$f":"Import!E6820","v":0}]
[175,{"$f":"Import!E5821","v":"Select"},{"$f":"Import!E6021","v":"Select"},{"$f":"Import!E6221","v":"Select"},{"$f":"Import!E6421","v":0},{"$f":"Import!E6621","v":0},{"$f":"Import!E6821","v":0}]
[176,{"$f":"Import!E5822","v":"Select"},{"$f":"Import!E6022","v":"Select"},{"$f":"Import!E6222","v":"Select"},{"$f":"Import!E6422","v":0},{"$f":"Import!E6622","v":0},{"$f":"Import!E6822","v":0}]
[177,{"$f":"Import!E5823","v":"Select"},{"$f":"Import!E6023","v":"Select"},{"$f":"Import!E6223","v":"Select"},{"$f":"Import!E6423","v":0},{"$f":"Import!E6623","v":0},{"$f":"Import!E6823","v":0}]
[178,{"$f":"Import!E5824","v":"Select"},{"$f":"Import!E6024","v":"Select"},{"$f":"Import!E6224","v":"Select"},{"$f":"Import!E6424","v":0},{"$f":"Import!E6624","v":0},{"$f":"Import!E6824","v":0}]
[179,{"$f":"Import!E5825","v":"Select"},{"$f":"Import!E6025","v":"Select"},{"$f":"Import!E6225","v":"Select"},{"$f":"Import!E6425","v":0},{"$f":"Import!E6625","v":0},{"$f":"Import!E6825","v":0}]
[180,{"$f":"Import!E5826","v":"Select"},{"$f":"Import!E6026","v":"Select"},{"$f":"Import!E6226","v":"Select"},{"$f":"Import!E6426","v":0},{"$f":"Import!E6626","v":0},{"$f":"Import!E6826","v":0}]
[181,{"$f":"Import!E5827","v":"Select"},{"$f":"Import!E6027","v":"Select"},{"$f":"Import!E6227","v":"Select"},{"$f":"Import!E6427","v":0},{"$f":"Import!E6627","v":0},{"$f":"Import!E6827","v":0}]
[182,{"$f":"Import!E5828","v":"Select"},{"$f":"Import!E6028","v":"Select"},{"$f":"Import!E6228","v":"Select"},{"$f":"Import!E6428","v":0},{"$f":"Import!E6628","v":0},{"$f":"Import!E6828","v":0}]
[183,{"$f":"Import!E5829","v":"Select"},{"$f":"Import!E6029","v":"Select"},{"$f":"Import!E6229","v":"Select"},{"$f":"Import!E6429","v":0},{"$f":"Import!E6629","v":0},{"$f":"Import!E6829","v":0}]
[184,{"$f":"Import!E5830","v":"Select"},{"$f":"Import!E6030","v":"Select"},{"$f":"Import!E6230","v":"Select"},{"$f":"Import!E6430","v":0},{"$f":"Import!E6630","v":0},{"$f":"Import!E6830","v":0}]
[185,{"$f":"Import!E5831","v":"Select"},{"$f":"Import!E6031","v":"Select"},{"$f":"Import!E6231","v":"Select"},{"$f":"Import!E6431","v":0},{"$f":"Import!E6631","v":0},{"$f":"Import!E6831","v":0}]
[186,{"$f":"Import!E5832","v":"Select"},{"$f":"Import!E6032","v":"Select"},{"$f":"Import!E6232","v":"Select"},{"$f":"Import!E6432","v":0},{"$f":"Import!E6632","v":0},{"$f":"Import!E6832","v":0}]
[187,{"$f":"Import!E5833","v":"Select"},{"$f":"Import!E6033","v":"Select"},{"$f":"Import!E6233","v":"Select"},{"$f":"Import!E6433","v":0},{"$f":"Import!E6633","v":0},{"$f":"Import!E6833","v":0}]
[188,{"$f":"Import!E5834","v":"Select"},{"$f":"Import!E6034","v":"Select"},{"$f":"Import!E6234","v":"Select"},{"$f":"Import!E6434","v":0},{"$f":"Import!E6634","v":0},{"$f":"Import!E6834","v":0}]
[189,{"$f":"Import!E5835","v":"Select"},{"$f":"Import!E6035","v":"Select"},{"$f":"Import!E6235","v":"Select"},{"$f":"Import!E6435","v":0},{"$f":"Import!E6635","v":0},{"$f":"Import!E6835","v":0}]
[190,{"$f":"Import!E5836","v":"Select"},{"$f":"Import!E6036","v":"Select"},{"$f":"Import!E6236","v":"Select"},{"$f":"Import!E6436","v":0},{"$f":"Import!E6636","v":0},{"$f":"Import!E6836","v":0}]
[191,{"$f":"Import!E5837","v":"Select"},{"$f":"Import!E6037","v":"Select"},{"$f":"Import!E6237","v":"Select"},{"$f":"Import!E6437","v":0},{"$f":"Import!E6637","v":0},{"$f":"Import!E6837","v":0}]
[192,{"$f":"Import!E5838","v":"Select"},{"$f":"Import!E6038","v":"Select"},{"$f":"Import!E6238","v":"Select"},{"$f":"Import!E6438","v":0},{"$f":"Import!E6638","v":0},{"$f":"Import!E6838","v":0}]
[193,{"$f":"Import!E5839","v":"Select"},{"$f":"Import!E6039","v":"Select"},{"$f":"Import!E6239","v":"Select"},{"$f":"Import!E6439","v":0},{"$f":"Import!E6639","v":0},{"$f":"Import!E6839","v":0}]
[194,{"$f":"Import!E5840","v":"Select"},{"$f":"Import!E6040","v":"Select"},{"$f":"Import!E6240","v":"Select"},{"$f":"Import!E6440","v":0},{"$f":"Import!E6640","v":0},{"$f":"Import!E6840","v":0}]
[{"$f":"A204+1","v":195},{"$f":"Import!E5841","v":"Select"},{"$f":"Import!E6041","v":"Select"},{"$f":"Import!E6241","v":"Select"},{"$f":"Import!E6441","v":0},{"$f":"Import!E6641","v":0},{"$f":"Import!E6841","v":0}]
[196,{"$f":"Import!E5842","v":"Select"},{"$f":"Import!E6042","v":"Select"},{"$f":"Import!E6242","v":"Select"},{"$f":"Import!E6442","v":0},{"$f":"Import!E6642","v":0},{"$f":"Import!E6842","v":0}]
[197,{"$f":"Import!E5843","v":"Select"},{"$f":"Import!E6043","v":"Select"},{"$f":"Import!E6243","v":"Select"},{"$f":"Import!E6443","v":0},{"$f":"Import!E6643","v":0},{"$f":"Import!E6843","v":0}]
[198,{"$f":"Import!E5844","v":"Select"},{"$f":"Import!E6044","v":"Select"},{"$f":"Import!E6244","v":"Select"},{"$f":"Import!E6444","v":0},{"$f":"Import!E6644","v":0},{"$f":"Import!E6844","v":0}]
[199,{"$f":"Import!E5845","v":"Select"},{"$f":"Import!E6045","v":"Select"},{"$f":"Import!E6245","v":"Select"},{"$f":"Import!E6445","v":0},{"$f":"Import!E6645","v":0},{"$f":"Import!E6845","v":0}]
[200,{"$f":"Import!E5846","v":"Select"},{"$f":"Import!E6046","v":"Select"},{"$f":"Import!E6246","v":"Select"},{"$f":"Import!E6446","v":0},{"$f":"Import!E6646","v":0},{"$f":"Import!E6846","v":0}]
[]
[null,"Total Cash and Cash Equivalents",null,null,{"$f":"SUM(E11:E210)","v":0},{"$f":"SUM(F11:F210)","v":0}]
[]
[null,"(B) BONDS AND DEBENTURES"]
[]
[null,null,"Enter # of Asset Types",{"$f":"Import!E6847","v":0}]
[null,null,null,null,{"$f":"YEAR($C$3)","v":2023},2023,"Weighted"]
[null,"Asset Type","Currency","BSCR Rating","Nominal Amount","Fair Value","Average YTM","Effective Duration","Comments"]
[1,{"$f":"Import!E6848","v":"Select"},{"$f":"Import!E7248","v":"Select"},{"$f":"Import!E7648","v":"Select"},{"$f":"Import!E8048","v":0},{"$f":"Import!E8448","v":0},{"$f":"Import!E8848","v":0},{"$f":"Import!E9248","v":0},{"$f":"Import!E9648","v":0}]
[{"$f":"A219+1","v":2},{"$f":"Import!E6849","v":"Select"},{"$f":"Import!E7249","v":"Select"},{"$f":"Import!E7649","v":"Select"},{"$f":"Import!E8049","v":0},{"$f":"Import!E8449","v":0},{"$f":"Import!E8849","v":0},{"$f":"Import!E9249","v":0},{"$f":"Import!E9649","v":0}]
[{"$f":"A220+1","v":3},{"$f":"Import!E6850","v":"Select"},{"$f":"Import!E7250","v":"Select"},{"$f":"Import!E7650","v":"Select"},{"$f":"Import!E8050","v":0},{"$f":"Import!E8450","v":0},{"$f":"Import!E8850","v":0},{"$f":"Import!E9250","v":0},{"$f":"Import!E9650","v":0}]
[4,{"$f":"Import!E6851","v":"Select"},{"$f":"Import!E7251","v":"Select"},{"$f":"Import!E7651","v":"Select"},{"$f":"Import!E8051","v":0},{"$f":"Import!E8451","v":0},{"$f":"Import!E8851","v":0},{"$f":"Import!E9251","v":0},{"$f":"Import!E9651","v":0}]
[5,{"$f":"Import!E6852","v":"Select"},{"$f":"Import!E7252","v":"Select"},{"$f":"Import!E7652","v":"Select"},{"$f":"Import!E8052","v":0},{"$f":"Import!E8452","v":0},{"$f":"Import!E8852","v":0},{"$f":"Import!E9252","v":0},{"$f":"Import!E9652","v":0}]
[6,{"$f":"Import!E6853","v":"Select"},{"$f":"Import!E7253","v":"Select"},{"$f":"Import!E7653","v":"Select"},{"$f":"Import!E8053","v":0},{"$f":"Import!E8453","v":0},{"$f":"Import!E8853","v":0},{"$f":"Import!E9253","v":0},{"$f":"Import!E9653","v":0}]
[7,{"$f":"Import!E6854","v":"Select"},{"$f":"Import!E7254","v":"Select"},{"$f":"Import!E7654","v":"Select"},{"$f":"Import!E8054","v":0},{"$f":"Import!E8454","v":0},{"$f":"Import!E8854","v":0},{"$f":"Import!E9254","v":0},{"$f":"Import!E9654","v":0}]
[8,{"$f":"Import!E6855","v":"Select"},{"$f":"Import!E7255","v":"Select"},{"$f":"Import!E7655","v":"Select"},{"$f":"Import!E8055","v":0},{"$f":"Import!E8455","v":0},{"$f":"Import!E8855","v":0},{"$f":"Import!E9255","v":0},{"$f":"Import!E9655","v":0}]
[9,{"$f":"Import!E6856","v":"Select"},{"$f":"Import!E7256","v":"Select"},{"$f":"Import!E7656","v":"Select"},{"$f":"Import!E8056","v":0},{"$f":"Import!E8456","v":0},{"$f":"Import!E8856","v":0},{"$f":"Import!E9256","v":0},{"$f":"Import!E9656","v":0}]
[10,{"$f":"Import!E6857","v":"Select"},{"$f":"Import!E7257","v":"Select"},{"$f":"Import!E7657","v":"Select"},{"$f":"Import!E8057","v":0},{"$f":"Import!E8457","v":0},{"$f":"Import!E8857","v":0},{"$f":"Import!E9257","v":0},{"$f":"Import!E9657","v":0}]
[11,{"$f":"Import!E6858","v":"Select"},{"$f":"Import!E7258","v":"Select"},{"$f":"Import!E7658","v":"Select"},{"$f":"Import!E8058","v":0},{"$f":"Import!E8458","v":0},{"$f":"Import!E8858","v":0},{"$f":"Import!E9258","v":0},{"$f":"Import!E9658","v":0}]
[12,{"$f":"Import!E6859","v":"Select"},{"$f":"Import!E7259","v":"Select"},{"$f":"Import!E7659","v":"Select"},{"$f":"Import!E8059","v":0},{"$f":"Import!E8459","v":0},{"$f":"Import!E8859","v":0},{"$f":"Import!E9259","v":0},{"$f":"Import!E9659","v":0}]
[13,{"$f":"Import!E6860","v":"Select"},{"$f":"Import!E7260","v":"Select"},{"$f":"Import!E7660","v":"Select"},{"$f":"Import!E8060","v":0},{"$f":"Import!E8460","v":0},{"$f":"Import!E8860","v":0},{"$f":"Import!E9260","v":0},{"$f":"Import!E9660","v":0}]
[14,{"$f":"Import!E6861","v":"Select"},{"$f":"Import!E7261","v":"Select"},{"$f":"Import!E7661","v":"Select"},{"$f":"Import!E8061","v":0},{"$f":"Import!E8461","v":0},{"$f":"Import!E8861","v":0},{"$f":"Import!E9261","v":0},{"$f":"Import!E9661","v":0}]
[15,{"$f":"Import!E6862","v":"Select"},{"$f":"Import!E7262","v":"Select"},{"$f":"Import!E7662","v":"Select"},{"$f":"Import!E8062","v":0},{"$f":"Import!E8462","v":0},{"$f":"Import!E8862","v":0},{"$f":"Import!E9262","v":0},{"$f":"Import!E9662","v":0}]
[16,{"$f":"Import!E6863","v":"Select"},{"$f":"Import!E7263","v":"Select"},{"$f":"Import!E7663","v":"Select"},{"$f":"Import!E8063","v":0},{"$f":"Import!E8463","v":0},{"$f":"Import!E8863","v":0},{"$f":"Import!E9263","v":0},{"$f":"Import!E9663","v":0}]
[17,{"$f":"Import!E6864","v":"Select"},{"$f":"Import!E7264","v":"Select"},{"$f":"Import!E7664","v":"Select"},{"$f":"Import!E8064","v":0},{"$f":"Import!E8464","v":0},{"$f":"Import!E8864","v":0},{"$f":"Import!E9264","v":0},{"$f":"Import!E9664","v":0}]
[18,{"$f":"Import!E6865","v":"Select"},{"$f":"Import!E7265","v":"Select"},{"$f":"Import!E7665","v":"Select"},{"$f":"Import!E8065","v":0},{"$f":"Import!E8465","v":0},{"$f":"Import!E8865","v":0},{"$f":"Import!E9265","v":0},{"$f":"Import!E9665","v":0}]
[19,{"$f":"Import!E6866","v":"Select"},{"$f":"Import!E7266","v":"Select"},{"$f":"Import!E7666","v":"Select"},{"$f":"Import!E8066","v":0},{"$f":"Import!E8466","v":0},{"$f":"Import!E8866","v":0},{"$f":"Import!E9266","v":0},{"$f":"Import!E9666","v":0}]
[20,{"$f":"Import!E6867","v":"Select"},{"$f":"Import!E7267","v":"Select"},{"$f":"Import!E7667","v":"Select"},{"$f":"Import!E8067","v":0},{"$f":"Import!E8467","v":0},{"$f":"Import!E8867","v":0},{"$f":"Import!E9267","v":0},{"$f":"Import!E9667","v":0}]
[21,{"$f":"Import!E6868","v":"Select"},{"$f":"Import!E7268","v":"Select"},{"$f":"Import!E7668","v":"Select"},{"$f":"Import!E8068","v":0},{"$f":"Import!E8468","v":0},{"$f":"Import!E8868","v":0},{"$f":"Import!E9268","v":0},{"$f":"Import!E9668","v":0}]
[22,{"$f":"Import!E6869","v":"Select"},{"$f":"Import!E7269","v":"Select"},{"$f":"Import!E7669","v":"Select"},{"$f":"Import!E8069","v":0},{"$f":"Import!E8469","v":0},{"$f":"Import!E8869","v":0},{"$f":"Import!E9269","v":0},{"$f":"Import!E9669","v":0}]
[23,{"$f":"Import!E6870","v":"Select"},{"$f":"Import!E7270","v":"Select"},{"$f":"Import!E7670","v":"Select"},{"$f":"Import!E8070","v":0},{"$f":"Import!E8470","v":0},{"$f":"Import!E8870","v":0},{"$f":"Import!E9270","v":0},{"$f":"Import!E9670","v":0}]
[24,{"$f":"Import!E6871","v":"Select"},{"$f":"Import!E7271","v":"Select"},{"$f":"Import!E7671","v":"Select"},{"$f":"Import!E8071","v":0},{"$f":"Import!E8471","v":0},{"$f":"Import!E8871","v":0},{"$f":"Import!E9271","v":0},{"$f":"Import!E9671","v":0}]
[25,{"$f":"Import!E6872","v":"Select"},{"$f":"Import!E7272","v":"Select"},{"$f":"Import!E7672","v":"Select"},{"$f":"Import!E8072","v":0},{"$f":"Import!E8472","v":0},{"$f":"Import!E8872","v":0},{"$f":"Import!E9272","v":0},{"$f":"Import!E9672","v":0}]
[26,{"$f":"Import!E6873","v":"Select"},{"$f":"Import!E7273","v":"Select"},{"$f":"Import!E7673","v":"Select"},{"$f":"Import!E8073","v":0},{"$f":"Import!E8473","v":0},{"$f":"Import!E8873","v":0},{"$f":"Import!E9273","v":0},{"$f":"Import!E9673","v":0}]
[27,{"$f":"Import!E6874","v":"Select"},{"$f":"Import!E7274","v":"Select"},{"$f":"Import!E7674","v":"Select"},{"$f":"Import!E8074","v":0},{"$f":"Import!E8474","v":0},{"$f":"Import!E8874","v":0},{"$f":"Import!E9274","v":0},{"$f":"Import!E9674","v":0}]
[28,{"$f":"Import!E6875","v":"Select"},{"$f":"Import!E7275","v":"Select"},{"$f":"Import!E7675","v":"Select"},{"$f":"Import!E8075","v":0},{"$f":"Import!E8475","v":0},{"$f":"Import!E8875","v":0},{"$f":"Import!E9275","v":0},{"$f":"Import!E9675","v":0}]
[29,{"$f":"Import!E6876","v":"Select"},{"$f":"Import!E7276","v":"Select"},{"$f":"Import!E7676","v":"Select"},{"$f":"Import!E8076","v":0},{"$f":"Import!E8476","v":0},{"$f":"Import!E8876","v":0},{"$f":"Import!E9276","v":0},{"$f":"Import!E9676","v":0}]
[30,{"$f":"Import!E6877","v":"Select"},{"$f":"Import!E7277","v":"Select"},{"$f":"Import!E7677","v":"Select"},{"$f":"Import!E8077","v":0},{"$f":"Import!E8477","v":0},{"$f":"Import!E8877","v":0},{"$f":"Import!E9277","v":0},{"$f":"Import!E9677","v":0}]
[31,{"$f":"Import!E6878","v":"Select"},{"$f":"Import!E7278","v":"Select"},{"$f":"Import!E7678","v":"Select"},{"$f":"Import!E8078","v":0},{"$f":"Import!E8478","v":0},{"$f":"Import!E8878","v":0},{"$f":"Import!E9278","v":0},{"$f":"Import!E9678","v":0}]
[32,{"$f":"Import!E6879","v":"Select"},{"$f":"Import!E7279","v":"Select"},{"$f":"Import!E7679","v":"Select"},{"$f":"Import!E8079","v":0},{"$f":"Import!E8479","v":0},{"$f":"Import!E8879","v":0},{"$f":"Import!E9279","v":0},{"$f":"Import!E9679","v":0}]
[33,{"$f":"Import!E6880","v":"Select"},{"$f":"Import!E7280","v":"Select"},{"$f":"Import!E7680","v":"Select"},{"$f":"Import!E8080","v":0},{"$f":"Import!E8480","v":0},{"$f":"Import!E8880","v":0},{"$f":"Import!E9280","v":0},{"$f":"Import!E9680","v":0}]
[34,{"$f":"Import!E6881","v":"Select"},{"$f":"Import!E7281","v":"Select"},{"$f":"Import!E7681","v":"Select"},{"$f":"Import!E8081","v":0},{"$f":"Import!E8481","v":0},{"$f":"Import!E8881","v":0},{"$f":"Import!E9281","v":0},{"$f":"Import!E9681","v":0}]
[35,{"$f":"Import!E6882","v":"Select"},{"$f":"Import!E7282","v":"Select"},{"$f":"Import!E7682","v":"Select"},{"$f":"Import!E8082","v":0},{"$f":"Import!E8482","v":0},{"$f":"Import!E8882","v":0},{"$f":"Import!E9282","v":0},{"$f":"Import!E9682","v":0}]
[36,{"$f":"Import!E6883","v":"Select"},{"$f":"Import!E7283","v":"Select"},{"$f":"Import!E7683","v":"Select"},{"$f":"Import!E8083","v":0},{"$f":"Import!E8483","v":0},{"$f":"Import!E8883","v":0},{"$f":"Import!E9283","v":0},{"$f":"Import!E9683","v":0}]
[37,{"$f":"Import!E6884","v":"Select"},{"$f":"Import!E7284","v":"Select"},{"$f":"Import!E7684","v":"Select"},{"$f":"Import!E8084","v":0},{"$f":"Import!E8484","v":0},{"$f":"Import!E8884","v":0},{"$f":"Import!E9284","v":0},{"$f":"Import!E9684","v":0}]
[38,{"$f":"Import!E6885","v":"Select"},{"$f":"Import!E7285","v":"Select"},{"$f":"Import!E7685","v":"Select"},{"$f":"Import!E8085","v":0},{"$f":"Import!E8485","v":0},{"$f":"Import!E8885","v":0},{"$f":"Import!E9285","v":0},{"$f":"Import!E9685","v":0}]
[39,{"$f":"Import!E6886","v":"Select"},{"$f":"Import!E7286","v":"Select"},{"$f":"Import!E7686","v":"Select"},{"$f":"Import!E8086","v":0},{"$f":"Import!E8486","v":0},{"$f":"Import!E8886","v":0},{"$f":"Import!E9286","v":0},{"$f":"Import!E9686","v":0}]
[40,{"$f":"Import!E6887","v":"Select"},{"$f":"Import!E7287","v":"Select"},{"$f":"Import!E7687","v":"Select"},{"$f":"Import!E8087","v":0},{"$f":"Import!E8487","v":0},{"$f":"Import!E8887","v":0},{"$f":"Import!E9287","v":0},{"$f":"Import!E9687","v":0}]
[41,{"$f":"Import!E6888","v":"Select"},{"$f":"Import!E7288","v":"Select"},{"$f":"Import!E7688","v":"Select"},{"$f":"Import!E8088","v":0},{"$f":"Import!E8488","v":0},{"$f":"Import!E8888","v":0},{"$f":"Import!E9288","v":0},{"$f":"Import!E9688","v":0}]
[42,{"$f":"Import!E6889","v":"Select"},{"$f":"Import!E7289","v":"Select"},{"$f":"Import!E7689","v":"Select"},{"$f":"Import!E8089","v":0},{"$f":"Import!E8489","v":0},{"$f":"Import!E8889","v":0},{"$f":"Import!E9289","v":0},{"$f":"Import!E9689","v":0}]
[43,{"$f":"Import!E6890","v":"Select"},{"$f":"Import!E7290","v":"Select"},{"$f":"Import!E7690","v":"Select"},{"$f":"Import!E8090","v":0},{"$f":"Import!E8490","v":0},{"$f":"Import!E8890","v":0},{"$f":"Import!E9290","v":0},{"$f":"Import!E9690","v":0}]
[44,{"$f":"Import!E6891","v":"Select"},{"$f":"Import!E7291","v":"Select"},{"$f":"Import!E7691","v":"Select"},{"$f":"Import!E8091","v":0},{"$f":"Import!E8491","v":0},{"$f":"Import!E8891","v":0},{"$f":"Import!E9291","v":0},{"$f":"Import!E9691","v":0}]
[45,{"$f":"Import!E6892","v":"Select"},{"$f":"Import!E7292","v":"Select"},{"$f":"Import!E7692","v":"Select"},{"$f":"Import!E8092","v":0},{"$f":"Import!E8492","v":0},{"$f":"Import!E8892","v":0},{"$f":"Import!E9292","v":0},{"$f":"Import!E9692","v":0}]
[46,{"$f":"Import!E6893","v":"Select"},{"$f":"Import!E7293","v":"Select"},{"$f":"Import!E7693","v":"Select"},{"$f":"Import!E8093","v":0},{"$f":"Import!E8493","v":0},{"$f":"Import!E8893","v":0},{"$f":"Import!E9293","v":0},{"$f":"Import!E9693","v":0}]
[47,{"$f":"Import!E6894","v":"Select"},{"$f":"Import!E7294","v":"Select"},{"$f":"Import!E7694","v":"Select"},{"$f":"Import!E8094","v":0},{"$f":"Import!E8494","v":0},{"$f":"Import!E8894","v":0},{"$f":"Import!E9294","v":0},{"$f":"Import!E9694","v":0}]
[48,{"$f":"Import!E6895","v":"Select"},{"$f":"Import!E7295","v":"Select"},{"$f":"Import!E7695","v":"Select"},{"$f":"Import!E8095","v":0},{"$f":"Import!E8495","v":0},{"$f":"Import!E8895","v":0},{"$f":"Import!E9295","v":0},{"$f":"Import!E9695","v":0}]
[49,{"$f":"Import!E6896","v":"Select"},{"$f":"Import!E7296","v":"Select"},{"$f":"Import!E7696","v":"Select"},{"$f":"Import!E8096","v":0},{"$f":"Import!E8496","v":0},{"$f":"Import!E8896","v":0},{"$f":"Import!E9296","v":0},{"$f":"Import!E9696","v":0}]
[50,{"$f":"Import!E6897","v":"Select"},{"$f":"Import!E7297","v":"Select"},{"$f":"Import!E7697","v":"Select"},{"$f":"Import!E8097","v":0},{"$f":"Import!E8497","v":0},{"$f":"Import!E8897","v":0},{"$f":"Import!E9297","v":0},{"$f":"Import!E9697","v":0}]
[51,{"$f":"Import!E6898","v":"Select"},{"$f":"Import!E7298","v":"Select"},{"$f":"Import!E7698","v":"Select"},{"$f":"Import!E8098","v":0},{"$f":"Import!E8498","v":0},{"$f":"Import!E8898","v":0},{"$f":"Import!E9298","v":0},{"$f":"Import!E9698","v":0}]
[52,{"$f":"Import!E6899","v":"Select"},{"$f":"Import!E7299","v":"Select"},{"$f":"Import!E7699","v":"Select"},{"$f":"Import!E8099","v":0},{"$f":"Import!E8499","v":0},{"$f":"Import!E8899","v":0},{"$f":"Import!E9299","v":0},{"$f":"Import!E9699","v":0}]
[53,{"$f":"Import!E6900","v":"Select"},{"$f":"Import!E7300","v":"Select"},{"$f":"Import!E7700","v":"Select"},{"$f":"Import!E8100","v":0},{"$f":"Import!E8500","v":0},{"$f":"Import!E8900","v":0},{"$f":"Import!E9300","v":0},{"$f":"Import!E9700","v":0}]
[54,{"$f":"Import!E6901","v":"Select"},{"$f":"Import!E7301","v":"Select"},{"$f":"Import!E7701","v":"Select"},{"$f":"Import!E8101","v":0},{"$f":"Import!E8501","v":0},{"$f":"Import!E8901","v":0},{"$f":"Import!E9301","v":0},{"$f":"Import!E9701","v":0}]
[55,{"$f":"Import!E6902","v":"Select"},{"$f":"Import!E7302","v":"Select"},{"$f":"Import!E7702","v":"Select"},{"$f":"Import!E8102","v":0},{"$f":"Import!E8502","v":0},{"$f":"Import!E8902","v":0},{"$f":"Import!E9302","v":0},{"$f":"Import!E9702","v":0}]
[56,{"$f":"Import!E6903","v":"Select"},{"$f":"Import!E7303","v":"Select"},{"$f":"Import!E7703","v":"Select"},{"$f":"Import!E8103","v":0},{"$f":"Import!E8503","v":0},{"$f":"Import!E8903","v":0},{"$f":"Import!E9303","v":0},{"$f":"Import!E9703","v":0}]
[57,{"$f":"Import!E6904","v":"Select"},{"$f":"Import!E7304","v":"Select"},{"$f":"Import!E7704","v":"Select"},{"$f":"Import!E8104","v":0},{"$f":"Import!E8504","v":0},{"$f":"Import!E8904","v":0},{"$f":"Import!E9304","v":0},{"$f":"Import!E9704","v":0}]
[58,{"$f":"Import!E6905","v":"Select"},{"$f":"Import!E7305","v":"Select"},{"$f":"Import!E7705","v":"Select"},{"$f":"Import!E8105","v":0},{"$f":"Import!E8505","v":0},{"$f":"Import!E8905","v":0},{"$f":"Import!E9305","v":0},{"$f":"Import!E9705","v":0}]
[59,{"$f":"Import!E6906","v":"Select"},{"$f":"Import!E7306","v":"Select"},{"$f":"Import!E7706","v":"Select"},{"$f":"Import!E8106","v":0},{"$f":"Import!E8506","v":0},{"$f":"Import!E8906","v":0},{"$f":"Import!E9306","v":0},{"$f":"Import!E9706","v":0}]
[60,{"$f":"Import!E6907","v":"Select"},{"$f":"Import!E7307","v":"Select"},{"$f":"Import!E7707","v":"Select"},{"$f":"Import!E8107","v":0},{"$f":"Import!E8507","v":0},{"$f":"Import!E8907","v":0},{"$f":"Import!E9307","v":0},{"$f":"Import!E9707","v":0}]
[61,{"$f":"Import!E6908","v":"Select"},{"$f":"Import!E7308","v":"Select"},{"$f":"Import!E7708","v":"Select"},{"$f":"Import!E8108","v":0},{"$f":"Import!E8508","v":0},{"$f":"Import!E8908","v":0},{"$f":"Import!E9308","v":0},{"$f":"Import!E9708","v":0}]
[62,{"$f":"Import!E6909","v":"Select"},{"$f":"Import!E7309","v":"Select"},{"$f":"Import!E7709","v":"Select"},{"$f":"Import!E8109","v":0},{"$f":"Import!E8509","v":0},{"$f":"Import!E8909","v":0},{"$f":"Import!E9309","v":0},{"$f":"Import!E9709","v":0}]
[63,{"$f":"Import!E6910","v":"Select"},{"$f":"Import!E7310","v":"Select"},{"$f":"Import!E7710","v":"Select"},{"$f":"Import!E8110","v":0},{"$f":"Import!E8510","v":0},{"$f":"Import!E8910","v":0},{"$f":"Import!E9310","v":0},{"$f":"Import!E9710","v":0}]
[64,{"$f":"Import!E6911","v":"Select"},{"$f":"Import!E7311","v":"Select"},{"$f":"Import!E7711","v":"Select"},{"$f":"Import!E8111","v":0},{"$f":"Import!E8511","v":0},{"$f":"Import!E8911","v":0},{"$f":"Import!E9311","v":0},{"$f":"Import!E9711","v":0}]
[65,{"$f":"Import!E6912","v":"Select"},{"$f":"Import!E7312","v":"Select"},{"$f":"Import!E7712","v":"Select"},{"$f":"Import!E8112","v":0},{"$f":"Import!E8512","v":0},{"$f":"Import!E8912","v":0},{"$f":"Import!E9312","v":0},{"$f":"Import!E9712","v":0}]
[66,{"$f":"Import!E6913","v":"Select"},{"$f":"Import!E7313","v":"Select"},{"$f":"Import!E7713","v":"Select"},{"$f":"Import!E8113","v":0},{"$f":"Import!E8513","v":0},{"$f":"Import!E8913","v":0},{"$f":"Import!E9313","v":0},{"$f":"Import!E9713","v":0}]
[{"$f":"A284+1","v":67},{"$f":"Import!E6914","v":"Select"},{"$f":"Import!E7314","v":"Select"},{"$f":"Import!E7714","v":"Select"},{"$f":"Import!E8114","v":0},{"$f":"Import!E8514","v":0},{"$f":"Import!E8914","v":0},{"$f":"Import!E9314","v":0},{"$f":"Import!E9714","v":0}]
[68,{"$f":"Import!E6915","v":"Select"},{"$f":"Import!E7315","v":"Select"},{"$f":"Import!E7715","v":"Select"},{"$f":"Import!E8115","v":0},{"$f":"Import!E8515","v":0},{"$f":"Import!E8915","v":0},{"$f":"Import!E9315","v":0},{"$f":"Import!E9715","v":0}]
[69,{"$f":"Import!E6916","v":"Select"},{"$f":"Import!E7316","v":"Select"},{"$f":"Import!E7716","v":"Select"},{"$f":"Import!E8116","v":0},{"$f":"Import!E8516","v":0},{"$f":"Import!E8916","v":0},{"$f":"Import!E9316","v":0},{"$f":"Import!E9716","v":0}]
[70,{"$f":"Import!E6917","v":"Select"},{"$f":"Import!E7317","v":"Select"},{"$f":"Import!E7717","v":"Select"},{"$f":"Import!E8117","v":0},{"$f":"Import!E8517","v":0},{"$f":"Import!E8917","v":0},{"$f":"Import!E9317","v":0},{"$f":"Import!E9717","v":0}]
[71,{"$f":"Import!E6918","v":"Select"},{"$f":"Import!E7318","v":"Select"},{"$f":"Import!E7718","v":"Select"},{"$f":"Import!E8118","v":0},{"$f":"Import!E8518","v":0},{"$f":"Import!E8918","v":0},{"$f":"Import!E9318","v":0},{"$f":"Import!E9718","v":0}]
[72,{"$f":"Import!E6919","v":"Select"},{"$f":"Import!E7319","v":"Select"},{"$f":"Import!E7719","v":"Select"},{"$f":"Import!E8119","v":0},{"$f":"Import!E8519","v":0},{"$f":"Import!E8919","v":0},{"$f":"Import!E9319","v":0},{"$f":"Import!E9719","v":0}]
[73,{"$f":"Import!E6920","v":"Select"},{"$f":"Import!E7320","v":"Select"},{"$f":"Import!E7720","v":"Select"},{"$f":"Import!E8120","v":0},{"$f":"Import!E8520","v":0},{"$f":"Import!E8920","v":0},{"$f":"Import!E9320","v":0},{"$f":"Import!E9720","v":0}]
[74,{"$f":"Import!E6921","v":"Select"},{"$f":"Import!E7321","v":"Select"},{"$f":"Import!E7721","v":"Select"},{"$f":"Import!E8121","v":0},{"$f":"Import!E8521","v":0},{"$f":"Import!E8921","v":0},{"$f":"Import!E9321","v":0},{"$f":"Import!E9721","v":0}]
[75,{"$f":"Import!E6922","v":"Select"},{"$f":"Import!E7322","v":"Select"},{"$f":"Import!E7722","v":"Select"},{"$f":"Import!E8122","v":0},{"$f":"Import!E8522","v":0},{"$f":"Import!E8922","v":0},{"$f":"Import!E9322","v":0},{"$f":"Import!E9722","v":0}]
[76,{"$f":"Import!E6923","v":"Select"},{"$f":"Import!E7323","v":"Select"},{"$f":"Import!E7723","v":"Select"},{"$f":"Import!E8123","v":0},{"$f":"Import!E8523","v":0},{"$f":"Import!E8923","v":0},{"$f":"Import!E9323","v":0},{"$f":"Import!E9723","v":0}]
[77,{"$f":"Import!E6924","v":"Select"},{"$f":"Import!E7324","v":"Select"},{"$f":"Import!E7724","v":"Select"},{"$f":"Import!E8124","v":0},{"$f":"Import!E8524","v":0},{"$f":"Import!E8924","v":0},{"$f":"Import!E9324","v":0},{"$f":"Import!E9724","v":0}]
[78,{"$f":"Import!E6925","v":"Select"},{"$f":"Import!E7325","v":"Select"},{"$f":"Import!E7725","v":"Select"},{"$f":"Import!E8125","v":0},{"$f":"Import!E8525","v":0},{"$f":"Import!E8925","v":0},{"$f":"Import!E9325","v":0},{"$f":"Import!E9725","v":0}]
[79,{"$f":"Import!E6926","v":"Select"},{"$f":"Import!E7326","v":"Select"},{"$f":"Import!E7726","v":"Select"},{"$f":"Import!E8126","v":0},{"$f":"Import!E8526","v":0},{"$f":"Import!E8926","v":0},{"$f":"Import!E9326","v":0},{"$f":"Import!E9726","v":0}]
[80,{"$f":"Import!E6927","v":"Select"},{"$f":"Import!E7327","v":"Select"},{"$f":"Import!E7727","v":"Select"},{"$f":"Import!E8127","v":0},{"$f":"Import!E8527","v":0},{"$f":"Import!E8927","v":0},{"$f":"Import!E9327","v":0},{"$f":"Import!E9727","v":0}]
[81,{"$f":"Import!E6928","v":"Select"},{"$f":"Import!E7328","v":"Select"},{"$f":"Import!E7728","v":"Select"},{"$f":"Import!E8128","v":0},{"$f":"Import!E8528","v":0},{"$f":"Import!E8928","v":0},{"$f":"Import!E9328","v":0},{"$f":"Import!E9728","v":0}]
[82,{"$f":"Import!E6929","v":"Select"},{"$f":"Import!E7329","v":"Select"},{"$f":"Import!E7729","v":"Select"},{"$f":"Import!E8129","v":0},{"$f":"Import!E8529","v":0},{"$f":"Import!E8929","v":0},{"$f":"Import!E9329","v":0},{"$f":"Import!E9729","v":0}]
[83,{"$f":"Import!E6930","v":"Select"},{"$f":"Import!E7330","v":"Select"},{"$f":"Import!E7730","v":"Select"},{"$f":"Import!E8130","v":0},{"$f":"Import!E8530","v":0},{"$f":"Import!E8930","v":0},{"$f":"Import!E9330","v":0},{"$f":"Import!E9730","v":0}]
[84,{"$f":"Import!E6931","v":"Select"},{"$f":"Import!E7331","v":"Select"},{"$f":"Import!E7731","v":"Select"},{"$f":"Import!E8131","v":0},{"$f":"Import!E8531","v":0},{"$f":"Import!E8931","v":0},{"$f":"Import!E9331","v":0},{"$f":"Import!E9731","v":0}]
[85,{"$f":"Import!E6932","v":"Select"},{"$f":"Import!E7332","v":"Select"},{"$f":"Import!E7732","v":"Select"},{"$f":"Import!E8132","v":0},{"$f":"Import!E8532","v":0},{"$f":"Import!E8932","v":0},{"$f":"Import!E9332","v":0},{"$f":"Import!E9732","v":0}]
[86,{"$f":"Import!E6933","v":"Select"},{"$f":"Import!E7333","v":"Select"},{"$f":"Import!E7733","v":"Select"},{"$f":"Import!E8133","v":0},{"$f":"Import!E8533","v":0},{"$f":"Import!E8933","v":0},{"$f":"Import!E9333","v":0},{"$f":"Import!E9733","v":0}]
[87,{"$f":"Import!E6934","v":"Select"},{"$f":"Import!E7334","v":"Select"},{"$f":"Import!E7734","v":"Select"},{"$f":"Import!E8134","v":0},{"$f":"Import!E8534","v":0},{"$f":"Import!E8934","v":0},{"$f":"Import!E9334","v":0},{"$f":"Import!E9734","v":0}]
[88,{"$f":"Import!E6935","v":"Select"},{"$f":"Import!E7335","v":"Select"},{"$f":"Import!E7735","v":"Select"},{"$f":"Import!E8135","v":0},{"$f":"Import!E8535","v":0},{"$f":"Import!E8935","v":0},{"$f":"Import!E9335","v":0},{"$f":"Import!E9735","v":0}]
[89,{"$f":"Import!E6936","v":"Select"},{"$f":"Import!E7336","v":"Select"},{"$f":"Import!E7736","v":"Select"},{"$f":"Import!E8136","v":0},{"$f":"Import!E8536","v":0},{"$f":"Import!E8936","v":0},{"$f":"Import!E9336","v":0},{"$f":"Import!E9736","v":0}]
[90,{"$f":"Import!E6937","v":"Select"},{"$f":"Import!E7337","v":"Select"},{"$f":"Import!E7737","v":"Select"},{"$f":"Import!E8137","v":0},{"$f":"Import!E8537","v":0},{"$f":"Import!E8937","v":0},{"$f":"Import!E9337","v":0},{"$f":"Import!E9737","v":0}]
[91,{"$f":"Import!E6938","v":"Select"},{"$f":"Import!E7338","v":"Select"},{"$f":"Import!E7738","v":"Select"},{"$f":"Import!E8138","v":0},{"$f":"Import!E8538","v":0},{"$f":"Import!E8938","v":0},{"$f":"Import!E9338","v":0},{"$f":"Import!E9738","v":0}]
[92,{"$f":"Import!E6939","v":"Select"},{"$f":"Import!E7339","v":"Select"},{"$f":"Import!E7739","v":"Select"},{"$f":"Import!E8139","v":0},{"$f":"Import!E8539","v":0},{"$f":"Import!E8939","v":0},{"$f":"Import!E9339","v":0},{"$f":"Import!E9739","v":0}]
[93,{"$f":"Import!E6940","v":"Select"},{"$f":"Import!E7340","v":"Select"},{"$f":"Import!E7740","v":"Select"},{"$f":"Import!E8140","v":0},{"$f":"Import!E8540","v":0},{"$f":"Import!E8940","v":0},{"$f":"Import!E9340","v":0},{"$f":"Import!E9740","v":0}]
[94,{"$f":"Import!E6941","v":"Select"},{"$f":"Import!E7341","v":"Select"},{"$f":"Import!E7741","v":"Select"},{"$f":"Import!E8141","v":0},{"$f":"Import!E8541","v":0},{"$f":"Import!E8941","v":0},{"$f":"Import!E9341","v":0},{"$f":"Import!E9741","v":0}]
[95,{"$f":"Import!E6942","v":"Select"},{"$f":"Import!E7342","v":"Select"},{"$f":"Import!E7742","v":"Select"},{"$f":"Import!E8142","v":0},{"$f":"Import!E8542","v":0},{"$f":"Import!E8942","v":0},{"$f":"Import!E9342","v":0},{"$f":"Import!E9742","v":0}]
[96,{"$f":"Import!E6943","v":"Select"},{"$f":"Import!E7343","v":"Select"},{"$f":"Import!E7743","v":"Select"},{"$f":"Import!E8143","v":0},{"$f":"Import!E8543","v":0},{"$f":"Import!E8943","v":0},{"$f":"Import!E9343","v":0},{"$f":"Import!E9743","v":0}]
[97,{"$f":"Import!E6944","v":"Select"},{"$f":"Import!E7344","v":"Select"},{"$f":"Import!E7744","v":"Select"},{"$f":"Import!E8144","v":0},{"$f":"Import!E8544","v":0},{"$f":"Import!E8944","v":0},{"$f":"Import!E9344","v":0},{"$f":"Import!E9744","v":0}]
[98,{"$f":"Import!E6945","v":"Select"},{"$f":"Import!E7345","v":"Select"},{"$f":"Import!E7745","v":"Select"},{"$f":"Import!E8145","v":0},{"$f":"Import!E8545","v":0},{"$f":"Import!E8945","v":0},{"$f":"Import!E9345","v":0},{"$f":"Import!E9745","v":0}]
[99,{"$f":"Import!E6946","v":"Select"},{"$f":"Import!E7346","v":"Select"},{"$f":"Import!E7746","v":"Select"},{"$f":"Import!E8146","v":0},{"$f":"Import!E8546","v":0},{"$f":"Import!E8946","v":0},{"$f":"Import!E9346","v":0},{"$f":"Import!E9746","v":0}]
[100,{"$f":"Import!E6947","v":"Select"},{"$f":"Import!E7347","v":"Select"},{"$f":"Import!E7747","v":"Select"},{"$f":"Import!E8147","v":0},{"$f":"Import!E8547","v":0},{"$f":"Import!E8947","v":0},{"$f":"Import!E9347","v":0},{"$f":"Import!E9747","v":0}]
[101,{"$f":"Import!E6948","v":"Select"},{"$f":"Import!E7348","v":"Select"},{"$f":"Import!E7748","v":"Select"},{"$f":"Import!E8148","v":0},{"$f":"Import!E8548","v":0},{"$f":"Import!E8948","v":0},{"$f":"Import!E9348","v":0},{"$f":"Import!E9748","v":0}]
[102,{"$f":"Import!E6949","v":"Select"},{"$f":"Import!E7349","v":"Select"},{"$f":"Import!E7749","v":"Select"},{"$f":"Import!E8149","v":0},{"$f":"Import!E8549","v":0},{"$f":"Import!E8949","v":0},{"$f":"Import!E9349","v":0},{"$f":"Import!E9749","v":0}]
[103,{"$f":"Import!E6950","v":"Select"},{"$f":"Import!E7350","v":"Select"},{"$f":"Import!E7750","v":"Select"},{"$f":"Import!E8150","v":0},{"$f":"Import!E8550","v":0},{"$f":"Import!E8950","v":0},{"$f":"Import!E9350","v":0},{"$f":"Import!E9750","v":0}]
[104,{"$f":"Import!E6951","v":"Select"},{"$f":"Import!E7351","v":"Select"},{"$f":"Import!E7751","v":"Select"},{"$f":"Import!E8151","v":0},{"$f":"Import!E8551","v":0},{"$f":"Import!E8951","v":0},{"$f":"Import!E9351","v":0},{"$f":"Import!E9751","v":0}]
[105,{"$f":"Import!E6952","v":"Select"},{"$f":"Import!E7352","v":"Select"},{"$f":"Import!E7752","v":"Select"},{"$f":"Import!E8152","v":0},{"$f":"Import!E8552","v":0},{"$f":"Import!E8952","v":0},{"$f":"Import!E9352","v":0},{"$f":"Import!E9752","v":0}]
[106,{"$f":"Import!E6953","v":"Select"},{"$f":"Import!E7353","v":"Select"},{"$f":"Import!E7753","v":"Select"},{"$f":"Import!E8153","v":0},{"$f":"Import!E8553","v":0},{"$f":"Import!E8953","v":0},{"$f":"Import!E9353","v":0},{"$f":"Import!E9753","v":0}]
[107,{"$f":"Import!E6954","v":"Select"},{"$f":"Import!E7354","v":"Select"},{"$f":"Import!E7754","v":"Select"},{"$f":"Import!E8154","v":0},{"$f":"Import!E8554","v":0},{"$f":"Import!E8954","v":0},{"$f":"Import!E9354","v":0},{"$f":"Import!E9754","v":0}]
[108,{"$f":"Import!E6955","v":"Select"},{"$f":"Import!E7355","v":"Select"},{"$f":"Import!E7755","v":"Select"},{"$f":"Import!E8155","v":0},{"$f":"Import!E8555","v":0},{"$f":"Import!E8955","v":0},{"$f":"Import!E9355","v":0},{"$f":"Import!E9755","v":0}]
[109,{"$f":"Import!E6956","v":"Select"},{"$f":"Import!E7356","v":"Select"},{"$f":"Import!E7756","v":"Select"},{"$f":"Import!E8156","v":0},{"$f":"Import!E8556","v":0},{"$f":"Import!E8956","v":0},{"$f":"Import!E9356","v":0},{"$f":"Import!E9756","v":0}]
[110,{"$f":"Import!E6957","v":"Select"},{"$f":"Import!E7357","v":"Select"},{"$f":"Import!E7757","v":"Select"},{"$f":"Import!E8157","v":0},{"$f":"Import!E8557","v":0},{"$f":"Import!E8957","v":0},{"$f":"Import!E9357","v":0},{"$f":"Import!E9757","v":0}]
[111,{"$f":"Import!E6958","v":"Select"},{"$f":"Import!E7358","v":"Select"},{"$f":"Import!E7758","v":"Select"},{"$f":"Import!E8158","v":0},{"$f":"Import!E8558","v":0},{"$f":"Import!E8958","v":0},{"$f":"Import!E9358","v":0},{"$f":"Import!E9758","v":0}]
[112,{"$f":"Import!E6959","v":"Select"},{"$f":"Import!E7359","v":"Select"},{"$f":"Import!E7759","v":"Select"},{"$f":"Import!E8159","v":0},{"$f":"Import!E8559","v":0},{"$f":"Import!E8959","v":0},{"$f":"Import!E9359","v":0},{"$f":"Import!E9759","v":0}]
[113,{"$f":"Import!E6960","v":"Select"},{"$f":"Import!E7360","v":"Select"},{"$f":"Import!E7760","v":"Select"},{"$f":"Import!E8160","v":0},{"$f":"Import!E8560","v":0},{"$f":"Import!E8960","v":0},{"$f":"Import!E9360","v":0},{"$f":"Import!E9760","v":0}]
[114,{"$f":"Import!E6961","v":"Select"},{"$f":"Import!E7361","v":"Select"},{"$f":"Import!E7761","v":"Select"},{"$f":"Import!E8161","v":0},{"$f":"Import!E8561","v":0},{"$f":"Import!E8961","v":0},{"$f":"Import!E9361","v":0},{"$f":"Import!E9761","v":0}]
[115,{"$f":"Import!E6962","v":"Select"},{"$f":"Import!E7362","v":"Select"},{"$f":"Import!E7762","v":"Select"},{"$f":"Import!E8162","v":0},{"$f":"Import!E8562","v":0},{"$f":"Import!E8962","v":0},{"$f":"Import!E9362","v":0},{"$f":"Import!E9762","v":0}]
[116,{"$f":"Import!E6963","v":"Select"},{"$f":"Import!E7363","v":"Select"},{"$f":"Import!E7763","v":"Select"},{"$f":"Import!E8163","v":0},{"$f":"Import!E8563","v":0},{"$f":"Import!E8963","v":0},{"$f":"Import!E9363","v":0},{"$f":"Import!E9763","v":0}]
[117,{"$f":"Import!E6964","v":"Select"},{"$f":"Import!E7364","v":"Select"},{"$f":"Import!E7764","v":"Select"},{"$f":"Import!E8164","v":0},{"$f":"Import!E8564","v":0},{"$f":"Import!E8964","v":0},{"$f":"Import!E9364","v":0},{"$f":"Import!E9764","v":0}]
[118,{"$f":"Import!E6965","v":"Select"},{"$f":"Import!E7365","v":"Select"},{"$f":"Import!E7765","v":"Select"},{"$f":"Import!E8165","v":0},{"$f":"Import!E8565","v":0},{"$f":"Import!E8965","v":0},{"$f":"Import!E9365","v":0},{"$f":"Import!E9765","v":0}]
[119,{"$f":"Import!E6966","v":"Select"},{"$f":"Import!E7366","v":"Select"},{"$f":"Import!E7766","v":"Select"},{"$f":"Import!E8166","v":0},{"$f":"Import!E8566","v":0},{"$f":"Import!E8966","v":0},{"$f":"Import!E9366","v":0},{"$f":"Import!E9766","v":0}]
[120,{"$f":"Import!E6967","v":"Select"},{"$f":"Import!E7367","v":"Select"},{"$f":"Import!E7767","v":"Select"},{"$f":"Import!E8167","v":0},{"$f":"Import!E8567","v":0},{"$f":"Import!E8967","v":0},{"$f":"Import!E9367","v":0},{"$f":"Import!E9767","v":0}]
[121,{"$f":"Import!E6968","v":"Select"},{"$f":"Import!E7368","v":"Select"},{"$f":"Import!E7768","v":"Select"},{"$f":"Import!E8168","v":0},{"$f":"Import!E8568","v":0},{"$f":"Import!E8968","v":0},{"$f":"Import!E9368","v":0},{"$f":"Import!E9768","v":0}]
[122,{"$f":"Import!E6969","v":"Select"},{"$f":"Import!E7369","v":"Select"},{"$f":"Import!E7769","v":"Select"},{"$f":"Import!E8169","v":0},{"$f":"Import!E8569","v":0},{"$f":"Import!E8969","v":0},{"$f":"Import!E9369","v":0},{"$f":"Import!E9769","v":0}]
[123,{"$f":"Import!E6970","v":"Select"},{"$f":"Import!E7370","v":"Select"},{"$f":"Import!E7770","v":"Select"},{"$f":"Import!E8170","v":0},{"$f":"Import!E8570","v":0},{"$f":"Import!E8970","v":0},{"$f":"Import!E9370","v":0},{"$f":"Import!E9770","v":0}]
[124,{"$f":"Import!E6971","v":"Select"},{"$f":"Import!E7371","v":"Select"},{"$f":"Import!E7771","v":"Select"},{"$f":"Import!E8171","v":0},{"$f":"Import!E8571","v":0},{"$f":"Import!E8971","v":0},{"$f":"Import!E9371","v":0},{"$f":"Import!E9771","v":0}]
[125,{"$f":"Import!E6972","v":"Select"},{"$f":"Import!E7372","v":"Select"},{"$f":"Import!E7772","v":"Select"},{"$f":"Import!E8172","v":0},{"$f":"Import!E8572","v":0},{"$f":"Import!E8972","v":0},{"$f":"Import!E9372","v":0},{"$f":"Import!E9772","v":0}]
[126,{"$f":"Import!E6973","v":"Select"},{"$f":"Import!E7373","v":"Select"},{"$f":"Import!E7773","v":"Select"},{"$f":"Import!E8173","v":0},{"$f":"Import!E8573","v":0},{"$f":"Import!E8973","v":0},{"$f":"Import!E9373","v":0},{"$f":"Import!E9773","v":0}]
[127,{"$f":"Import!E6974","v":"Select"},{"$f":"Import!E7374","v":"Select"},{"$f":"Import!E7774","v":"Select"},{"$f":"Import!E8174","v":0},{"$f":"Import!E8574","v":0},{"$f":"Import!E8974","v":0},{"$f":"Import!E9374","v":0},{"$f":"Import!E9774","v":0}]
[128,{"$f":"Import!E6975","v":"Select"},{"$f":"Import!E7375","v":"Select"},{"$f":"Import!E7775","v":"Select"},{"$f":"Import!E8175","v":0},{"$f":"Import!E8575","v":0},{"$f":"Import!E8975","v":0},{"$f":"Import!E9375","v":0},{"$f":"Import!E9775","v":0}]
[129,{"$f":"Import!E6976","v":"Select"},{"$f":"Import!E7376","v":"Select"},{"$f":"Import!E7776","v":"Select"},{"$f":"Import!E8176","v":0},{"$f":"Import!E8576","v":0},{"$f":"Import!E8976","v":0},{"$f":"Import!E9376","v":0},{"$f":"Import!E9776","v":0}]
[130,{"$f":"Import!E6977","v":"Select"},{"$f":"Import!E7377","v":"Select"},{"$f":"Import!E7777","v":"Select"},{"$f":"Import!E8177","v":0},{"$f":"Import!E8577","v":0},{"$f":"Import!E8977","v":0},{"$f":"Import!E9377","v":0},{"$f":"Import!E9777","v":0}]
[{"$f":"A348+1","v":131},{"$f":"Import!E6978","v":"Select"},{"$f":"Import!E7378","v":"Select"},{"$f":"Import!E7778","v":"Select"},{"$f":"Import!E8178","v":0},{"$f":"Import!E8578","v":0},{"$f":"Import!E8978","v":0},{"$f":"Import!E9378","v":0},{"$f":"Import!E9778","v":0}]
[132,{"$f":"Import!E6979","v":"Select"},{"$f":"Import!E7379","v":"Select"},{"$f":"Import!E7779","v":"Select"},{"$f":"Import!E8179","v":0},{"$f":"Import!E8579","v":0},{"$f":"Import!E8979","v":0},{"$f":"Import!E9379","v":0},{"$f":"Import!E9779","v":0}]
[133,{"$f":"Import!E6980","v":"Select"},{"$f":"Import!E7380","v":"Select"},{"$f":"Import!E7780","v":"Select"},{"$f":"Import!E8180","v":0},{"$f":"Import!E8580","v":0},{"$f":"Import!E8980","v":0},{"$f":"Import!E9380","v":0},{"$f":"Import!E9780","v":0}]
[134,{"$f":"Import!E6981","v":"Select"},{"$f":"Import!E7381","v":"Select"},{"$f":"Import!E7781","v":"Select"},{"$f":"Import!E8181","v":0},{"$f":"Import!E8581","v":0},{"$f":"Import!E8981","v":0},{"$f":"Import!E9381","v":0},{"$f":"Import!E9781","v":0}]
[135,{"$f":"Import!E6982","v":"Select"},{"$f":"Import!E7382","v":"Select"},{"$f":"Import!E7782","v":"Select"},{"$f":"Import!E8182","v":0},{"$f":"Import!E8582","v":0},{"$f":"Import!E8982","v":0},{"$f":"Import!E9382","v":0},{"$f":"Import!E9782","v":0}]
[136,{"$f":"Import!E6983","v":"Select"},{"$f":"Import!E7383","v":"Select"},{"$f":"Import!E7783","v":"Select"},{"$f":"Import!E8183","v":0},{"$f":"Import!E8583","v":0},{"$f":"Import!E8983","v":0},{"$f":"Import!E9383","v":0},{"$f":"Import!E9783","v":0}]
[137,{"$f":"Import!E6984","v":"Select"},{"$f":"Import!E7384","v":"Select"},{"$f":"Import!E7784","v":"Select"},{"$f":"Import!E8184","v":0},{"$f":"Import!E8584","v":0},{"$f":"Import!E8984","v":0},{"$f":"Import!E9384","v":0},{"$f":"Import!E9784","v":0}]
[138,{"$f":"Import!E6985","v":"Select"},{"$f":"Import!E7385","v":"Select"},{"$f":"Import!E7785","v":"Select"},{"$f":"Import!E8185","v":0},{"$f":"Import!E8585","v":0},{"$f":"Import!E8985","v":0},{"$f":"Import!E9385","v":0},{"$f":"Import!E9785","v":0}]
[139,{"$f":"Import!E6986","v":"Select"},{"$f":"Import!E7386","v":"Select"},{"$f":"Import!E7786","v":"Select"},{"$f":"Import!E8186","v":0},{"$f":"Import!E8586","v":0},{"$f":"Import!E8986","v":0},{"$f":"Import!E9386","v":0},{"$f":"Import!E9786","v":0}]
[140,{"$f":"Import!E6987","v":"Select"},{"$f":"Import!E7387","v":"Select"},{"$f":"Import!E7787","v":"Select"},{"$f":"Import!E8187","v":0},{"$f":"Import!E8587","v":0},{"$f":"Import!E8987","v":0},{"$f":"Import!E9387","v":0},{"$f":"Import!E9787","v":0}]
[141,{"$f":"Import!E6988","v":"Select"},{"$f":"Import!E7388","v":"Select"},{"$f":"Import!E7788","v":"Select"},{"$f":"Import!E8188","v":0},{"$f":"Import!E8588","v":0},{"$f":"Import!E8988","v":0},{"$f":"Import!E9388","v":0},{"$f":"Import!E9788","v":0}]
[142,{"$f":"Import!E6989","v":"Select"},{"$f":"Import!E7389","v":"Select"},{"$f":"Import!E7789","v":"Select"},{"$f":"Import!E8189","v":0},{"$f":"Import!E8589","v":0},{"$f":"Import!E8989","v":0},{"$f":"Import!E9389","v":0},{"$f":"Import!E9789","v":0}]
[143,{"$f":"Import!E6990","v":"Select"},{"$f":"Import!E7390","v":"Select"},{"$f":"Import!E7790","v":"Select"},{"$f":"Import!E8190","v":0},{"$f":"Import!E8590","v":0},{"$f":"Import!E8990","v":0},{"$f":"Import!E9390","v":0},{"$f":"Import!E9790","v":0}]
[144,{"$f":"Import!E6991","v":"Select"},{"$f":"Import!E7391","v":"Select"},{"$f":"Import!E7791","v":"Select"},{"$f":"Import!E8191","v":0},{"$f":"Import!E8591","v":0},{"$f":"Import!E8991","v":0},{"$f":"Import!E9391","v":0},{"$f":"Import!E9791","v":0}]
[145,{"$f":"Import!E6992","v":"Select"},{"$f":"Import!E7392","v":"Select"},{"$f":"Import!E7792","v":"Select"},{"$f":"Import!E8192","v":0},{"$f":"Import!E8592","v":0},{"$f":"Import!E8992","v":0},{"$f":"Import!E9392","v":0},{"$f":"Import!E9792","v":0}]
[146,{"$f":"Import!E6993","v":"Select"},{"$f":"Import!E7393","v":"Select"},{"$f":"Import!E7793","v":"Select"},{"$f":"Import!E8193","v":0},{"$f":"Import!E8593","v":0},{"$f":"Import!E8993","v":0},{"$f":"Import!E9393","v":0},{"$f":"Import!E9793","v":0}]
[147,{"$f":"Import!E6994","v":"Select"},{"$f":"Import!E7394","v":"Select"},{"$f":"Import!E7794","v":"Select"},{"$f":"Import!E8194","v":0},{"$f":"Import!E8594","v":0},{"$f":"Import!E8994","v":0},{"$f":"Import!E9394","v":0},{"$f":"Import!E9794","v":0}]
[148,{"$f":"Import!E6995","v":"Select"},{"$f":"Import!E7395","v":"Select"},{"$f":"Import!E7795","v":"Select"},{"$f":"Import!E8195","v":0},{"$f":"Import!E8595","v":0},{"$f":"Import!E8995","v":0},{"$f":"Import!E9395","v":0},{"$f":"Import!E9795","v":0}]
[149,{"$f":"Import!E6996","v":"Select"},{"$f":"Import!E7396","v":"Select"},{"$f":"Import!E7796","v":"Select"},{"$f":"Import!E8196","v":0},{"$f":"Import!E8596","v":0},{"$f":"Import!E8996","v":0},{"$f":"Import!E9396","v":0},{"$f":"Import!E9796","v":0}]
[150,{"$f":"Import!E6997","v":"Select"},{"$f":"Import!E7397","v":"Select"},{"$f":"Import!E7797","v":"Select"},{"$f":"Import!E8197","v":0},{"$f":"Import!E8597","v":0},{"$f":"Import!E8997","v":0},{"$f":"Import!E9397","v":0},{"$f":"Import!E9797","v":0}]
[151,{"$f":"Import!E6998","v":"Select"},{"$f":"Import!E7398","v":"Select"},{"$f":"Import!E7798","v":"Select"},{"$f":"Import!E8198","v":0},{"$f":"Import!E8598","v":0},{"$f":"Import!E8998","v":0},{"$f":"Import!E9398","v":0},{"$f":"Import!E9798","v":0}]
[152,{"$f":"Import!E6999","v":"Select"},{"$f":"Import!E7399","v":"Select"},{"$f":"Import!E7799","v":"Select"},{"$f":"Import!E8199","v":0},{"$f":"Import!E8599","v":0},{"$f":"Import!E8999","v":0},{"$f":"Import!E9399","v":0},{"$f":"Import!E9799","v":0}]
[153,{"$f":"Import!E7000","v":"Select"},{"$f":"Import!E7400","v":"Select"},{"$f":"Import!E7800","v":"Select"},{"$f":"Import!E8200","v":0},{"$f":"Import!E8600","v":0},{"$f":"Import!E9000","v":0},{"$f":"Import!E9400","v":0},{"$f":"Import!E9800","v":0}]
[154,{"$f":"Import!E7001","v":"Select"},{"$f":"Import!E7401","v":"Select"},{"$f":"Import!E7801","v":"Select"},{"$f":"Import!E8201","v":0},{"$f":"Import!E8601","v":0},{"$f":"Import!E9001","v":0},{"$f":"Import!E9401","v":0},{"$f":"Import!E9801","v":0}]
[155,{"$f":"Import!E7002","v":"Select"},{"$f":"Import!E7402","v":"Select"},{"$f":"Import!E7802","v":"Select"},{"$f":"Import!E8202","v":0},{"$f":"Import!E8602","v":0},{"$f":"Import!E9002","v":0},{"$f":"Import!E9402","v":0},{"$f":"Import!E9802","v":0}]
[156,{"$f":"Import!E7003","v":"Select"},{"$f":"Import!E7403","v":"Select"},{"$f":"Import!E7803","v":"Select"},{"$f":"Import!E8203","v":0},{"$f":"Import!E8603","v":0},{"$f":"Import!E9003","v":0},{"$f":"Import!E9403","v":0},{"$f":"Import!E9803","v":0}]
[157,{"$f":"Import!E7004","v":"Select"},{"$f":"Import!E7404","v":"Select"},{"$f":"Import!E7804","v":"Select"},{"$f":"Import!E8204","v":0},{"$f":"Import!E8604","v":0},{"$f":"Import!E9004","v":0},{"$f":"Import!E9404","v":0},{"$f":"Import!E9804","v":0}]
[158,{"$f":"Import!E7005","v":"Select"},{"$f":"Import!E7405","v":"Select"},{"$f":"Import!E7805","v":"Select"},{"$f":"Import!E8205","v":0},{"$f":"Import!E8605","v":0},{"$f":"Import!E9005","v":0},{"$f":"Import!E9405","v":0},{"$f":"Import!E9805","v":0}]
[159,{"$f":"Import!E7006","v":"Select"},{"$f":"Import!E7406","v":"Select"},{"$f":"Import!E7806","v":"Select"},{"$f":"Import!E8206","v":0},{"$f":"Import!E8606","v":0},{"$f":"Import!E9006","v":0},{"$f":"Import!E9406","v":0},{"$f":"Import!E9806","v":0}]
[160,{"$f":"Import!E7007","v":"Select"},{"$f":"Import!E7407","v":"Select"},{"$f":"Import!E7807","v":"Select"},{"$f":"Import!E8207","v":0},{"$f":"Import!E8607","v":0},{"$f":"Import!E9007","v":0},{"$f":"Import!E9407","v":0},{"$f":"Import!E9807","v":0}]
[161,{"$f":"Import!E7008","v":"Select"},{"$f":"Import!E7408","v":"Select"},{"$f":"Import!E7808","v":"Select"},{"$f":"Import!E8208","v":0},{"$f":"Import!E8608","v":0},{"$f":"Import!E9008","v":0},{"$f":"Import!E9408","v":0},{"$f":"Import!E9808","v":0}]
[162,{"$f":"Import!E7009","v":"Select"},{"$f":"Import!E7409","v":"Select"},{"$f":"Import!E7809","v":"Select"},{"$f":"Import!E8209","v":0},{"$f":"Import!E8609","v":0},{"$f":"Import!E9009","v":0},{"$f":"Import!E9409","v":0},{"$f":"Import!E9809","v":0}]
[163,{"$f":"Import!E7010","v":"Select"},{"$f":"Import!E7410","v":"Select"},{"$f":"Import!E7810","v":"Select"},{"$f":"Import!E8210","v":0},{"$f":"Import!E8610","v":0},{"$f":"Import!E9010","v":0},{"$f":"Import!E9410","v":0},{"$f":"Import!E9810","v":0}]
[164,{"$f":"Import!E7011","v":"Select"},{"$f":"Import!E7411","v":"Select"},{"$f":"Import!E7811","v":"Select"},{"$f":"Import!E8211","v":0},{"$f":"Import!E8611","v":0},{"$f":"Import!E9011","v":0},{"$f":"Import!E9411","v":0},{"$f":"Import!E9811","v":0}]
[165,{"$f":"Import!E7012","v":"Select"},{"$f":"Import!E7412","v":"Select"},{"$f":"Import!E7812","v":"Select"},{"$f":"Import!E8212","v":0},{"$f":"Import!E8612","v":0},{"$f":"Import!E9012","v":0},{"$f":"Import!E9412","v":0},{"$f":"Import!E9812","v":0}]
[166,{"$f":"Import!E7013","v":"Select"},{"$f":"Import!E7413","v":"Select"},{"$f":"Import!E7813","v":"Select"},{"$f":"Import!E8213","v":0},{"$f":"Import!E8613","v":0},{"$f":"Import!E9013","v":0},{"$f":"Import!E9413","v":0},{"$f":"Import!E9813","v":0}]
[167,{"$f":"Import!E7014","v":"Select"},{"$f":"Import!E7414","v":"Select"},{"$f":"Import!E7814","v":"Select"},{"$f":"Import!E8214","v":0},{"$f":"Import!E8614","v":0},{"$f":"Import!E9014","v":0},{"$f":"Import!E9414","v":0},{"$f":"Import!E9814","v":0}]
[168,{"$f":"Import!E7015","v":"Select"},{"$f":"Import!E7415","v":"Select"},{"$f":"Import!E7815","v":"Select"},{"$f":"Import!E8215","v":0},{"$f":"Import!E8615","v":0},{"$f":"Import!E9015","v":0},{"$f":"Import!E9415","v":0},{"$f":"Import!E9815","v":0}]
[169,{"$f":"Import!E7016","v":"Select"},{"$f":"Import!E7416","v":"Select"},{"$f":"Import!E7816","v":"Select"},{"$f":"Import!E8216","v":0},{"$f":"Import!E8616","v":0},{"$f":"Import!E9016","v":0},{"$f":"Import!E9416","v":0},{"$f":"Import!E9816","v":0}]
[170,{"$f":"Import!E7017","v":"Select"},{"$f":"Import!E7417","v":"Select"},{"$f":"Import!E7817","v":"Select"},{"$f":"Import!E8217","v":0},{"$f":"Import!E8617","v":0},{"$f":"Import!E9017","v":0},{"$f":"Import!E9417","v":0},{"$f":"Import!E9817","v":0}]
[171,{"$f":"Import!E7018","v":"Select"},{"$f":"Import!E7418","v":"Select"},{"$f":"Import!E7818","v":"Select"},{"$f":"Import!E8218","v":0},{"$f":"Import!E8618","v":0},{"$f":"Import!E9018","v":0},{"$f":"Import!E9418","v":0},{"$f":"Import!E9818","v":0}]
[172,{"$f":"Import!E7019","v":"Select"},{"$f":"Import!E7419","v":"Select"},{"$f":"Import!E7819","v":"Select"},{"$f":"Import!E8219","v":0},{"$f":"Import!E8619","v":0},{"$f":"Import!E9019","v":0},{"$f":"Import!E9419","v":0},{"$f":"Import!E9819","v":0}]
[173,{"$f":"Import!E7020","v":"Select"},{"$f":"Import!E7420","v":"Select"},{"$f":"Import!E7820","v":"Select"},{"$f":"Import!E8220","v":0},{"$f":"Import!E8620","v":0},{"$f":"Import!E9020","v":0},{"$f":"Import!E9420","v":0},{"$f":"Import!E9820","v":0}]
[174,{"$f":"Import!E7021","v":"Select"},{"$f":"Import!E7421","v":"Select"},{"$f":"Import!E7821","v":"Select"},{"$f":"Import!E8221","v":0},{"$f":"Import!E8621","v":0},{"$f":"Import!E9021","v":0},{"$f":"Import!E9421","v":0},{"$f":"Import!E9821","v":0}]
[175,{"$f":"Import!E7022","v":"Select"},{"$f":"Import!E7422","v":"Select"},{"$f":"Import!E7822","v":"Select"},{"$f":"Import!E8222","v":0},{"$f":"Import!E8622","v":0},{"$f":"Import!E9022","v":0},{"$f":"Import!E9422","v":0},{"$f":"Import!E9822","v":0}]
[176,{"$f":"Import!E7023","v":"Select"},{"$f":"Import!E7423","v":"Select"},{"$f":"Import!E7823","v":"Select"},{"$f":"Import!E8223","v":0},{"$f":"Import!E8623","v":0},{"$f":"Import!E9023","v":0},{"$f":"Import!E9423","v":0},{"$f":"Import!E9823","v":0}]
[177,{"$f":"Import!E7024","v":"Select"},{"$f":"Import!E7424","v":"Select"},{"$f":"Import!E7824","v":"Select"},{"$f":"Import!E8224","v":0},{"$f":"Import!E8624","v":0},{"$f":"Import!E9024","v":0},{"$f":"Import!E9424","v":0},{"$f":"Import!E9824","v":0}]
[178,{"$f":"Import!E7025","v":"Select"},{"$f":"Import!E7425","v":"Select"},{"$f":"Import!E7825","v":"Select"},{"$f":"Import!E8225","v":0},{"$f":"Import!E8625","v":0},{"$f":"Import!E9025","v":0},{"$f":"Import!E9425","v":0},{"$f":"Import!E9825","v":0}]
[179,{"$f":"Import!E7026","v":"Select"},{"$f":"Import!E7426","v":"Select"},{"$f":"Import!E7826","v":"Select"},{"$f":"Import!E8226","v":0},{"$f":"Import!E8626","v":0},{"$f":"Import!E9026","v":0},{"$f":"Import!E9426","v":0},{"$f":"Import!E9826","v":0}]
[180,{"$f":"Import!E7027","v":"Select"},{"$f":"Import!E7427","v":"Select"},{"$f":"Import!E7827","v":"Select"},{"$f":"Import!E8227","v":0},{"$f":"Import!E8627","v":0},{"$f":"Import!E9027","v":0},{"$f":"Import!E9427","v":0},{"$f":"Import!E9827","v":0}]
[181,{"$f":"Import!E7028","v":"Select"},{"$f":"Import!E7428","v":"Select"},{"$f":"Import!E7828","v":"Select"},{"$f":"Import!E8228","v":0},{"$f":"Import!E8628","v":0},{"$f":"Import!E9028","v":0},{"$f":"Import!E9428","v":0},{"$f":"Import!E9828","v":0}]
[182,{"$f":"Import!E7029","v":"Select"},{"$f":"Import!E7429","v":"Select"},{"$f":"Import!E7829","v":"Select"},{"$f":"Import!E8229","v":0},{"$f":"Import!E8629","v":0},{"$f":"Import!E9029","v":0},{"$f":"Import!E9429","v":0},{"$f":"Import!E9829","v":0}]
[183,{"$f":"Import!E7030","v":"Select"},{"$f":"Import!E7430","v":"Select"},{"$f":"Import!E7830","v":"Select"},{"$f":"Import!E8230","v":0},{"$f":"Import!E8630","v":0},{"$f":"Import!E9030","v":0},{"$f":"Import!E9430","v":0},{"$f":"Import!E9830","v":0}]
[184,{"$f":"Import!E7031","v":"Select"},{"$f":"Import!E7431","v":"Select"},{"$f":"Import!E7831","v":"Select"},{"$f":"Import!E8231","v":0},{"$f":"Import!E8631","v":0},{"$f":"Import!E9031","v":0},{"$f":"Import!E9431","v":0},{"$f":"Import!E9831","v":0}]
[185,{"$f":"Import!E7032","v":"Select"},{"$f":"Import!E7432","v":"Select"},{"$f":"Import!E7832","v":"Select"},{"$f":"Import!E8232","v":0},{"$f":"Import!E8632","v":0},{"$f":"Import!E9032","v":0},{"$f":"Import!E9432","v":0},{"$f":"Import!E9832","v":0}]
[186,{"$f":"Import!E7033","v":"Select"},{"$f":"Import!E7433","v":"Select"},{"$f":"Import!E7833","v":"Select"},{"$f":"Import!E8233","v":0},{"$f":"Import!E8633","v":0},{"$f":"Import!E9033","v":0},{"$f":"Import!E9433","v":0},{"$f":"Import!E9833","v":0}]
[187,{"$f":"Import!E7034","v":"Select"},{"$f":"Import!E7434","v":"Select"},{"$f":"Import!E7834","v":"Select"},{"$f":"Import!E8234","v":0},{"$f":"Import!E8634","v":0},{"$f":"Import!E9034","v":0},{"$f":"Import!E9434","v":0},{"$f":"Import!E9834","v":0}]
[188,{"$f":"Import!E7035","v":"Select"},{"$f":"Import!E7435","v":"Select"},{"$f":"Import!E7835","v":"Select"},{"$f":"Import!E8235","v":0},{"$f":"Import!E8635","v":0},{"$f":"Import!E9035","v":0},{"$f":"Import!E9435","v":0},{"$f":"Import!E9835","v":0}]
[189,{"$f":"Import!E7036","v":"Select"},{"$f":"Import!E7436","v":"Select"},{"$f":"Import!E7836","v":"Select"},{"$f":"Import!E8236","v":0},{"$f":"Import!E8636","v":0},{"$f":"Import!E9036","v":0},{"$f":"Import!E9436","v":0},{"$f":"Import!E9836","v":0}]
[190,{"$f":"Import!E7037","v":"Select"},{"$f":"Import!E7437","v":"Select"},{"$f":"Import!E7837","v":"Select"},{"$f":"Import!E8237","v":0},{"$f":"Import!E8637","v":0},{"$f":"Import!E9037","v":0},{"$f":"Import!E9437","v":0},{"$f":"Import!E9837","v":0}]
[191,{"$f":"Import!E7038","v":"Select"},{"$f":"Import!E7438","v":"Select"},{"$f":"Import!E7838","v":"Select"},{"$f":"Import!E8238","v":0},{"$f":"Import!E8638","v":0},{"$f":"Import!E9038","v":0},{"$f":"Import!E9438","v":0},{"$f":"Import!E9838","v":0}]
[192,{"$f":"Import!E7039","v":"Select"},{"$f":"Import!E7439","v":"Select"},{"$f":"Import!E7839","v":"Select"},{"$f":"Import!E8239","v":0},{"$f":"Import!E8639","v":0},{"$f":"Import!E9039","v":0},{"$f":"Import!E9439","v":0},{"$f":"Import!E9839","v":0}]
[193,{"$f":"Import!E7040","v":"Select"},{"$f":"Import!E7440","v":"Select"},{"$f":"Import!E7840","v":"Select"},{"$f":"Import!E8240","v":0},{"$f":"Import!E8640","v":0},{"$f":"Import!E9040","v":0},{"$f":"Import!E9440","v":0},{"$f":"Import!E9840","v":0}]
[194,{"$f":"Import!E7041","v":"Select"},{"$f":"Import!E7441","v":"Select"},{"$f":"Import!E7841","v":"Select"},{"$f":"Import!E8241","v":0},{"$f":"Import!E8641","v":0},{"$f":"Import!E9041","v":0},{"$f":"Import!E9441","v":0},{"$f":"Import!E9841","v":0}]
[{"$f":"A412+1","v":195},{"$f":"Import!E7042","v":"Select"},{"$f":"Import!E7442","v":"Select"},{"$f":"Import!E7842","v":"Select"},{"$f":"Import!E8242","v":0},{"$f":"Import!E8642","v":0},{"$f":"Import!E9042","v":0},{"$f":"Import!E9442","v":0},{"$f":"Import!E9842","v":0}]
[196,{"$f":"Import!E7043","v":"Select"},{"$f":"Import!E7443","v":"Select"},{"$f":"Import!E7843","v":"Select"},{"$f":"Import!E8243","v":0},{"$f":"Import!E8643","v":0},{"$f":"Import!E9043","v":0},{"$f":"Import!E9443","v":0},{"$f":"Import!E9843","v":0}]
[197,{"$f":"Import!E7044","v":"Select"},{"$f":"Import!E7444","v":"Select"},{"$f":"Import!E7844","v":"Select"},{"$f":"Import!E8244","v":0},{"$f":"Import!E8644","v":0},{"$f":"Import!E9044","v":0},{"$f":"Import!E9444","v":0},{"$f":"Import!E9844","v":0}]
[198,{"$f":"Import!E7045","v":"Select"},{"$f":"Import!E7445","v":"Select"},{"$f":"Import!E7845","v":"Select"},{"$f":"Import!E8245","v":0},{"$f":"Import!E8645","v":0},{"$f":"Import!E9045","v":0},{"$f":"Import!E9445","v":0},{"$f":"Import!E9845","v":0}]
[199,{"$f":"Import!E7046","v":"Select"},{"$f":"Import!E7446","v":"Select"},{"$f":"Import!E7846","v":"Select"},{"$f":"Import!E8246","v":0},{"$f":"Import!E8646","v":0},{"$f":"Import!E9046","v":0},{"$f":"Import!E9446","v":0},{"$f":"Import!E9846","v":0}]
[200,{"$f":"Import!E7047","v":"Select"},{"$f":"Import!E7447","v":"Select"},{"$f":"Import!E7847","v":"Select"},{"$f":"Import!E8247","v":0},{"$f":"Import!E8647","v":0},{"$f":"Import!E9047","v":0},{"$f":"Import!E9447","v":0},{"$f":"Import!E9847","v":0}]
[201,{"$f":"Import!E7048","v":"Select"},{"$f":"Import!E7448","v":"Select"},{"$f":"Import!E7848","v":"Select"},{"$f":"Import!E8248","v":0},{"$f":"Import!E8648","v":0},{"$f":"Import!E9048","v":0},{"$f":"Import!E9448","v":0},{"$f":"Import!E9848","v":0}]
[202,{"$f":"Import!E7049","v":"Select"},{"$f":"Import!E7449","v":"Select"},{"$f":"Import!E7849","v":"Select"},{"$f":"Import!E8249","v":0},{"$f":"Import!E8649","v":0},{"$f":"Import!E9049","v":0},{"$f":"Import!E9449","v":0},{"$f":"Import!E9849","v":0}]
[203,{"$f":"Import!E7050","v":"Select"},{"$f":"Import!E7450","v":"Select"},{"$f":"Import!E7850","v":"Select"},{"$f":"Import!E8250","v":0},{"$f":"Import!E8650","v":0},{"$f":"Import!E9050","v":0},{"$f":"Import!E9450","v":0},{"$f":"Import!E9850","v":0}]
[204,{"$f":"Import!E7051","v":"Select"},{"$f":"Import!E7451","v":"Select"},{"$f":"Import!E7851","v":"Select"},{"$f":"Import!E8251","v":0},{"$f":"Import!E8651","v":0},{"$f":"Import!E9051","v":0},{"$f":"Import!E9451","v":0},{"$f":"Import!E9851","v":0}]
[205,{"$f":"Import!E7052","v":"Select"},{"$f":"Import!E7452","v":"Select"},{"$f":"Import!E7852","v":"Select"},{"$f":"Import!E8252","v":0},{"$f":"Import!E8652","v":0},{"$f":"Import!E9052","v":0},{"$f":"Import!E9452","v":0},{"$f":"Import!E9852","v":0}]
[206,{"$f":"Import!E7053","v":"Select"},{"$f":"Import!E7453","v":"Select"},{"$f":"Import!E7853","v":"Select"},{"$f":"Import!E8253","v":0},{"$f":"Import!E8653","v":0},{"$f":"Import!E9053","v":0},{"$f":"Import!E9453","v":0},{"$f":"Import!E9853","v":0}]
[207,{"$f":"Import!E7054","v":"Select"},{"$f":"Import!E7454","v":"Select"},{"$f":"Import!E7854","v":"Select"},{"$f":"Import!E8254","v":0},{"$f":"Import!E8654","v":0},{"$f":"Import!E9054","v":0},{"$f":"Import!E9454","v":0},{"$f":"Import!E9854","v":0}]
[208,{"$f":"Import!E7055","v":"Select"},{"$f":"Import!E7455","v":"Select"},{"$f":"Import!E7855","v":"Select"},{"$f":"Import!E8255","v":0},{"$f":"Import!E8655","v":0},{"$f":"Import!E9055","v":0},{"$f":"Import!E9455","v":0},{"$f":"Import!E9855","v":0}]
[209,{"$f":"Import!E7056","v":"Select"},{"$f":"Import!E7456","v":"Select"},{"$f":"Import!E7856","v":"Select"},{"$f":"Import!E8256","v":0},{"$f":"Import!E8656","v":0},{"$f":"Import!E9056","v":0},{"$f":"Import!E9456","v":0},{"$f":"Import!E9856","v":0}]
[210,{"$f":"Import!E7057","v":"Select"},{"$f":"Import!E7457","v":"Select"},{"$f":"Import!E7857","v":"Select"},{"$f":"Import!E8257","v":0},{"$f":"Import!E8657","v":0},{"$f":"Import!E9057","v":0},{"$f":"Import!E9457","v":0},{"$f":"Import!E9857","v":0}]
[211,{"$f":"Import!E7058","v":"Select"},{"$f":"Import!E7458","v":"Select"},{"$f":"Import!E7858","v":"Select"},{"$f":"Import!E8258","v":0},{"$f":"Import!E8658","v":0},{"$f":"Import!E9058","v":0},{"$f":"Import!E9458","v":0},{"$f":"Import!E9858","v":0}]
[212,{"$f":"Import!E7059","v":"Select"},{"$f":"Import!E7459","v":"Select"},{"$f":"Import!E7859","v":"Select"},{"$f":"Import!E8259","v":0},{"$f":"Import!E8659","v":0},{"$f":"Import!E9059","v":0},{"$f":"Import!E9459","v":0},{"$f":"Import!E9859","v":0}]
[213,{"$f":"Import!E7060","v":"Select"},{"$f":"Import!E7460","v":"Select"},{"$f":"Import!E7860","v":"Select"},{"$f":"Import!E8260","v":0},{"$f":"Import!E8660","v":0},{"$f":"Import!E9060","v":0},{"$f":"Import!E9460","v":0},{"$f":"Import!E9860","v":0}]
[214,{"$f":"Import!E7061","v":"Select"},{"$f":"Import!E7461","v":"Select"},{"$f":"Import!E7861","v":"Select"},{"$f":"Import!E8261","v":0},{"$f":"Import!E8661","v":0},{"$f":"Import!E9061","v":0},{"$f":"Import!E9461","v":0},{"$f":"Import!E9861","v":0}]
[215,{"$f":"Import!E7062","v":"Select"},{"$f":"Import!E7462","v":"Select"},{"$f":"Import!E7862","v":"Select"},{"$f":"Import!E8262","v":0},{"$f":"Import!E8662","v":0},{"$f":"Import!E9062","v":0},{"$f":"Import!E9462","v":0},{"$f":"Import!E9862","v":0}]
[216,{"$f":"Import!E7063","v":"Select"},{"$f":"Import!E7463","v":"Select"},{"$f":"Import!E7863","v":"Select"},{"$f":"Import!E8263","v":0},{"$f":"Import!E8663","v":0},{"$f":"Import!E9063","v":0},{"$f":"Import!E9463","v":0},{"$f":"Import!E9863","v":0}]
[217,{"$f":"Import!E7064","v":"Select"},{"$f":"Import!E7464","v":"Select"},{"$f":"Import!E7864","v":"Select"},{"$f":"Import!E8264","v":0},{"$f":"Import!E8664","v":0},{"$f":"Import!E9064","v":0},{"$f":"Import!E9464","v":0},{"$f":"Import!E9864","v":0}]
[218,{"$f":"Import!E7065","v":"Select"},{"$f":"Import!E7465","v":"Select"},{"$f":"Import!E7865","v":"Select"},{"$f":"Import!E8265","v":0},{"$f":"Import!E8665","v":0},{"$f":"Import!E9065","v":0},{"$f":"Import!E9465","v":0},{"$f":"Import!E9865","v":0}]
[219,{"$f":"Import!E7066","v":"Select"},{"$f":"Import!E7466","v":"Select"},{"$f":"Import!E7866","v":"Select"},{"$f":"Import!E8266","v":0},{"$f":"Import!E8666","v":0},{"$f":"Import!E9066","v":0},{"$f":"Import!E9466","v":0},{"$f":"Import!E9866","v":0}]
[220,{"$f":"Import!E7067","v":"Select"},{"$f":"Import!E7467","v":"Select"},{"$f":"Import!E7867","v":"Select"},{"$f":"Import!E8267","v":0},{"$f":"Import!E8667","v":0},{"$f":"Import!E9067","v":0},{"$f":"Import!E9467","v":0},{"$f":"Import!E9867","v":0}]
[221,{"$f":"Import!E7068","v":"Select"},{"$f":"Import!E7468","v":"Select"},{"$f":"Import!E7868","v":"Select"},{"$f":"Import!E8268","v":0},{"$f":"Import!E8668","v":0},{"$f":"Import!E9068","v":0},{"$f":"Import!E9468","v":0},{"$f":"Import!E9868","v":0}]
[222,{"$f":"Import!E7069","v":"Select"},{"$f":"Import!E7469","v":"Select"},{"$f":"Import!E7869","v":"Select"},{"$f":"Import!E8269","v":0},{"$f":"Import!E8669","v":0},{"$f":"Import!E9069","v":0},{"$f":"Import!E9469","v":0},{"$f":"Import!E9869","v":0}]
[223,{"$f":"Import!E7070","v":"Select"},{"$f":"Import!E7470","v":"Select"},{"$f":"Import!E7870","v":"Select"},{"$f":"Import!E8270","v":0},{"$f":"Import!E8670","v":0},{"$f":"Import!E9070","v":0},{"$f":"Import!E9470","v":0},{"$f":"Import!E9870","v":0}]
[224,{"$f":"Import!E7071","v":"Select"},{"$f":"Import!E7471","v":"Select"},{"$f":"Import!E7871","v":"Select"},{"$f":"Import!E8271","v":0},{"$f":"Import!E8671","v":0},{"$f":"Import!E9071","v":0},{"$f":"Import!E9471","v":0},{"$f":"Import!E9871","v":0}]
[225,{"$f":"Import!E7072","v":"Select"},{"$f":"Import!E7472","v":"Select"},{"$f":"Import!E7872","v":"Select"},{"$f":"Import!E8272","v":0},{"$f":"Import!E8672","v":0},{"$f":"Import!E9072","v":0},{"$f":"Import!E9472","v":0},{"$f":"Import!E9872","v":0}]
[226,{"$f":"Import!E7073","v":"Select"},{"$f":"Import!E7473","v":"Select"},{"$f":"Import!E7873","v":"Select"},{"$f":"Import!E8273","v":0},{"$f":"Import!E8673","v":0},{"$f":"Import!E9073","v":0},{"$f":"Import!E9473","v":0},{"$f":"Import!E9873","v":0}]
[227,{"$f":"Import!E7074","v":"Select"},{"$f":"Import!E7474","v":"Select"},{"$f":"Import!E7874","v":"Select"},{"$f":"Import!E8274","v":0},{"$f":"Import!E8674","v":0},{"$f":"Import!E9074","v":0},{"$f":"Import!E9474","v":0},{"$f":"Import!E9874","v":0}]
[228,{"$f":"Import!E7075","v":"Select"},{"$f":"Import!E7475","v":"Select"},{"$f":"Import!E7875","v":"Select"},{"$f":"Import!E8275","v":0},{"$f":"Import!E8675","v":0},{"$f":"Import!E9075","v":0},{"$f":"Import!E9475","v":0},{"$f":"Import!E9875","v":0}]
[229,{"$f":"Import!E7076","v":"Select"},{"$f":"Import!E7476","v":"Select"},{"$f":"Import!E7876","v":"Select"},{"$f":"Import!E8276","v":0},{"$f":"Import!E8676","v":0},{"$f":"Import!E9076","v":0},{"$f":"Import!E9476","v":0},{"$f":"Import!E9876","v":0}]
[230,{"$f":"Import!E7077","v":"Select"},{"$f":"Import!E7477","v":"Select"},{"$f":"Import!E7877","v":"Select"},{"$f":"Import!E8277","v":0},{"$f":"Import!E8677","v":0},{"$f":"Import!E9077","v":0},{"$f":"Import!E9477","v":0},{"$f":"Import!E9877","v":0}]
[231,{"$f":"Import!E7078","v":"Select"},{"$f":"Import!E7478","v":"Select"},{"$f":"Import!E7878","v":"Select"},{"$f":"Import!E8278","v":0},{"$f":"Import!E8678","v":0},{"$f":"Import!E9078","v":0},{"$f":"Import!E9478","v":0},{"$f":"Import!E9878","v":0}]
[232,{"$f":"Import!E7079","v":"Select"},{"$f":"Import!E7479","v":"Select"},{"$f":"Import!E7879","v":"Select"},{"$f":"Import!E8279","v":0},{"$f":"Import!E8679","v":0},{"$f":"Import!E9079","v":0},{"$f":"Import!E9479","v":0},{"$f":"Import!E9879","v":0}]
[233,{"$f":"Import!E7080","v":"Select"},{"$f":"Import!E7480","v":"Select"},{"$f":"Import!E7880","v":"Select"},{"$f":"Import!E8280","v":0},{"$f":"Import!E8680","v":0},{"$f":"Import!E9080","v":0},{"$f":"Import!E9480","v":0},{"$f":"Import!E9880","v":0}]
[234,{"$f":"Import!E7081","v":"Select"},{"$f":"Import!E7481","v":"Select"},{"$f":"Import!E7881","v":"Select"},{"$f":"Import!E8281","v":0},{"$f":"Import!E8681","v":0},{"$f":"Import!E9081","v":0},{"$f":"Import!E9481","v":0},{"$f":"Import!E9881","v":0}]
[235,{"$f":"Import!E7082","v":"Select"},{"$f":"Import!E7482","v":"Select"},{"$f":"Import!E7882","v":"Select"},{"$f":"Import!E8282","v":0},{"$f":"Import!E8682","v":0},{"$f":"Import!E9082","v":0},{"$f":"Import!E9482","v":0},{"$f":"Import!E9882","v":0}]
[236,{"$f":"Import!E7083","v":"Select"},{"$f":"Import!E7483","v":"Select"},{"$f":"Import!E7883","v":"Select"},{"$f":"Import!E8283","v":0},{"$f":"Import!E8683","v":0},{"$f":"Import!E9083","v":0},{"$f":"Import!E9483","v":0},{"$f":"Import!E9883","v":0}]
[237,{"$f":"Import!E7084","v":"Select"},{"$f":"Import!E7484","v":"Select"},{"$f":"Import!E7884","v":"Select"},{"$f":"Import!E8284","v":0},{"$f":"Import!E8684","v":0},{"$f":"Import!E9084","v":0},{"$f":"Import!E9484","v":0},{"$f":"Import!E9884","v":0}]
[238,{"$f":"Import!E7085","v":"Select"},{"$f":"Import!E7485","v":"Select"},{"$f":"Import!E7885","v":"Select"},{"$f":"Import!E8285","v":0},{"$f":"Import!E8685","v":0},{"$f":"Import!E9085","v":0},{"$f":"Import!E9485","v":0},{"$f":"Import!E9885","v":0}]
[239,{"$f":"Import!E7086","v":"Select"},{"$f":"Import!E7486","v":"Select"},{"$f":"Import!E7886","v":"Select"},{"$f":"Import!E8286","v":0},{"$f":"Import!E8686","v":0},{"$f":"Import!E9086","v":0},{"$f":"Import!E9486","v":0},{"$f":"Import!E9886","v":0}]
[240,{"$f":"Import!E7087","v":"Select"},{"$f":"Import!E7487","v":"Select"},{"$f":"Import!E7887","v":"Select"},{"$f":"Import!E8287","v":0},{"$f":"Import!E8687","v":0},{"$f":"Import!E9087","v":0},{"$f":"Import!E9487","v":0},{"$f":"Import!E9887","v":0}]
[241,{"$f":"Import!E7088","v":"Select"},{"$f":"Import!E7488","v":"Select"},{"$f":"Import!E7888","v":"Select"},{"$f":"Import!E8288","v":0},{"$f":"Import!E8688","v":0},{"$f":"Import!E9088","v":0},{"$f":"Import!E9488","v":0},{"$f":"Import!E9888","v":0}]
[242,{"$f":"Import!E7089","v":"Select"},{"$f":"Import!E7489","v":"Select"},{"$f":"Import!E7889","v":"Select"},{"$f":"Import!E8289","v":0},{"$f":"Import!E8689","v":0},{"$f":"Import!E9089","v":0},{"$f":"Import!E9489","v":0},{"$f":"Import!E9889","v":0}]
[243,{"$f":"Import!E7090","v":"Select"},{"$f":"Import!E7490","v":"Select"},{"$f":"Import!E7890","v":"Select"},{"$f":"Import!E8290","v":0},{"$f":"Import!E8690","v":0},{"$f":"Import!E9090","v":0},{"$f":"Import!E9490","v":0},{"$f":"Import!E9890","v":0}]
[244,{"$f":"Import!E7091","v":"Select"},{"$f":"Import!E7491","v":"Select"},{"$f":"Import!E7891","v":"Select"},{"$f":"Import!E8291","v":0},{"$f":"Import!E8691","v":0},{"$f":"Import!E9091","v":0},{"$f":"Import!E9491","v":0},{"$f":"Import!E9891","v":0}]
[245,{"$f":"Import!E7092","v":"Select"},{"$f":"Import!E7492","v":"Select"},{"$f":"Import!E7892","v":"Select"},{"$f":"Import!E8292","v":0},{"$f":"Import!E8692","v":0},{"$f":"Import!E9092","v":0},{"$f":"Import!E9492","v":0},{"$f":"Import!E9892","v":0}]
[246,{"$f":"Import!E7093","v":"Select"},{"$f":"Import!E7493","v":"Select"},{"$f":"Import!E7893","v":"Select"},{"$f":"Import!E8293","v":0},{"$f":"Import!E8693","v":0},{"$f":"Import!E9093","v":0},{"$f":"Import!E9493","v":0},{"$f":"Import!E9893","v":0}]
[247,{"$f":"Import!E7094","v":"Select"},{"$f":"Import!E7494","v":"Select"},{"$f":"Import!E7894","v":"Select"},{"$f":"Import!E8294","v":0},{"$f":"Import!E8694","v":0},{"$f":"Import!E9094","v":0},{"$f":"Import!E9494","v":0},{"$f":"Import!E9894","v":0}]
[248,{"$f":"Import!E7095","v":"Select"},{"$f":"Import!E7495","v":"Select"},{"$f":"Import!E7895","v":"Select"},{"$f":"Import!E8295","v":0},{"$f":"Import!E8695","v":0},{"$f":"Import!E9095","v":0},{"$f":"Import!E9495","v":0},{"$f":"Import!E9895","v":0}]
[249,{"$f":"Import!E7096","v":"Select"},{"$f":"Import!E7496","v":"Select"},{"$f":"Import!E7896","v":"Select"},{"$f":"Import!E8296","v":0},{"$f":"Import!E8696","v":0},{"$f":"Import!E9096","v":0},{"$f":"Import!E9496","v":0},{"$f":"Import!E9896","v":0}]
[250,{"$f":"Import!E7097","v":"Select"},{"$f":"Import!E7497","v":"Select"},{"$f":"Import!E7897","v":"Select"},{"$f":"Import!E8297","v":0},{"$f":"Import!E8697","v":0},{"$f":"Import!E9097","v":0},{"$f":"Import!E9497","v":0},{"$f":"Import!E9897","v":0}]
[251,{"$f":"Import!E7098","v":"Select"},{"$f":"Import!E7498","v":"Select"},{"$f":"Import!E7898","v":"Select"},{"$f":"Import!E8298","v":0},{"$f":"Import!E8698","v":0},{"$f":"Import!E9098","v":0},{"$f":"Import!E9498","v":0},{"$f":"Import!E9898","v":0}]
[252,{"$f":"Import!E7099","v":"Select"},{"$f":"Import!E7499","v":"Select"},{"$f":"Import!E7899","v":"Select"},{"$f":"Import!E8299","v":0},{"$f":"Import!E8699","v":0},{"$f":"Import!E9099","v":0},{"$f":"Import!E9499","v":0},{"$f":"Import!E9899","v":0}]
[253,{"$f":"Import!E7100","v":"Select"},{"$f":"Import!E7500","v":"Select"},{"$f":"Import!E7900","v":"Select"},{"$f":"Import!E8300","v":0},{"$f":"Import!E8700","v":0},{"$f":"Import!E9100","v":0},{"$f":"Import!E9500","v":0},{"$f":"Import!E9900","v":0}]
[254,{"$f":"Import!E7101","v":"Select"},{"$f":"Import!E7501","v":"Select"},{"$f":"Import!E7901","v":"Select"},{"$f":"Import!E8301","v":0},{"$f":"Import!E8701","v":0},{"$f":"Import!E9101","v":0},{"$f":"Import!E9501","v":0},{"$f":"Import!E9901","v":0}]
[255,{"$f":"Import!E7102","v":"Select"},{"$f":"Import!E7502","v":"Select"},{"$f":"Import!E7902","v":"Select"},{"$f":"Import!E8302","v":0},{"$f":"Import!E8702","v":0},{"$f":"Import!E9102","v":0},{"$f":"Import!E9502","v":0},{"$f":"Import!E9902","v":0}]
[256,{"$f":"Import!E7103","v":"Select"},{"$f":"Import!E7503","v":"Select"},{"$f":"Import!E7903","v":"Select"},{"$f":"Import!E8303","v":0},{"$f":"Import!E8703","v":0},{"$f":"Import!E9103","v":0},{"$f":"Import!E9503","v":0},{"$f":"Import!E9903","v":0}]
[257,{"$f":"Import!E7104","v":"Select"},{"$f":"Import!E7504","v":"Select"},{"$f":"Import!E7904","v":"Select"},{"$f":"Import!E8304","v":0},{"$f":"Import!E8704","v":0},{"$f":"Import!E9104","v":0},{"$f":"Import!E9504","v":0},{"$f":"Import!E9904","v":0}]
[258,{"$f":"Import!E7105","v":"Select"},{"$f":"Import!E7505","v":"Select"},{"$f":"Import!E7905","v":"Select"},{"$f":"Import!E8305","v":0},{"$f":"Import!E8705","v":0},{"$f":"Import!E9105","v":0},{"$f":"Import!E9505","v":0},{"$f":"Import!E9905","v":0}]
[{"$f":"A476+1","v":259},{"$f":"Import!E7106","v":"Select"},{"$f":"Import!E7506","v":"Select"},{"$f":"Import!E7906","v":"Select"},{"$f":"Import!E8306","v":0},{"$f":"Import!E8706","v":0},{"$f":"Import!E9106","v":0},{"$f":"Import!E9506","v":0},{"$f":"Import!E9906","v":0}]
[260,{"$f":"Import!E7107","v":"Select"},{"$f":"Import!E7507","v":"Select"},{"$f":"Import!E7907","v":"Select"},{"$f":"Import!E8307","v":0},{"$f":"Import!E8707","v":0},{"$f":"Import!E9107","v":0},{"$f":"Import!E9507","v":0},{"$f":"Import!E9907","v":0}]
[261,{"$f":"Import!E7108","v":"Select"},{"$f":"Import!E7508","v":"Select"},{"$f":"Import!E7908","v":"Select"},{"$f":"Import!E8308","v":0},{"$f":"Import!E8708","v":0},{"$f":"Import!E9108","v":0},{"$f":"Import!E9508","v":0},{"$f":"Import!E9908","v":0}]
[262,{"$f":"Import!E7109","v":"Select"},{"$f":"Import!E7509","v":"Select"},{"$f":"Import!E7909","v":"Select"},{"$f":"Import!E8309","v":0},{"$f":"Import!E8709","v":0},{"$f":"Import!E9109","v":0},{"$f":"Import!E9509","v":0},{"$f":"Import!E9909","v":0}]
[263,{"$f":"Import!E7110","v":"Select"},{"$f":"Import!E7510","v":"Select"},{"$f":"Import!E7910","v":"Select"},{"$f":"Import!E8310","v":0},{"$f":"Import!E8710","v":0},{"$f":"Import!E9110","v":0},{"$f":"Import!E9510","v":0},{"$f":"Import!E9910","v":0}]
[264,{"$f":"Import!E7111","v":"Select"},{"$f":"Import!E7511","v":"Select"},{"$f":"Import!E7911","v":"Select"},{"$f":"Import!E8311","v":0},{"$f":"Import!E8711","v":0},{"$f":"Import!E9111","v":0},{"$f":"Import!E9511","v":0},{"$f":"Import!E9911","v":0}]
[265,{"$f":"Import!E7112","v":"Select"},{"$f":"Import!E7512","v":"Select"},{"$f":"Import!E7912","v":"Select"},{"$f":"Import!E8312","v":0},{"$f":"Import!E8712","v":0},{"$f":"Import!E9112","v":0},{"$f":"Import!E9512","v":0},{"$f":"Import!E9912","v":0}]
[266,{"$f":"Import!E7113","v":"Select"},{"$f":"Import!E7513","v":"Select"},{"$f":"Import!E7913","v":"Select"},{"$f":"Import!E8313","v":0},{"$f":"Import!E8713","v":0},{"$f":"Import!E9113","v":0},{"$f":"Import!E9513","v":0},{"$f":"Import!E9913","v":0}]
[267,{"$f":"Import!E7114","v":"Select"},{"$f":"Import!E7514","v":"Select"},{"$f":"Import!E7914","v":"Select"},{"$f":"Import!E8314","v":0},{"$f":"Import!E8714","v":0},{"$f":"Import!E9114","v":0},{"$f":"Import!E9514","v":0},{"$f":"Import!E9914","v":0}]
[268,{"$f":"Import!E7115","v":"Select"},{"$f":"Import!E7515","v":"Select"},{"$f":"Import!E7915","v":"Select"},{"$f":"Import!E8315","v":0},{"$f":"Import!E8715","v":0},{"$f":"Import!E9115","v":0},{"$f":"Import!E9515","v":0},{"$f":"Import!E9915","v":0}]
[269,{"$f":"Import!E7116","v":"Select"},{"$f":"Import!E7516","v":"Select"},{"$f":"Import!E7916","v":"Select"},{"$f":"Import!E8316","v":0},{"$f":"Import!E8716","v":0},{"$f":"Import!E9116","v":0},{"$f":"Import!E9516","v":0},{"$f":"Import!E9916","v":0}]
[270,{"$f":"Import!E7117","v":"Select"},{"$f":"Import!E7517","v":"Select"},{"$f":"Import!E7917","v":"Select"},{"$f":"Import!E8317","v":0},{"$f":"Import!E8717","v":0},{"$f":"Import!E9117","v":0},{"$f":"Import!E9517","v":0},{"$f":"Import!E9917","v":0}]
[271,{"$f":"Import!E7118","v":"Select"},{"$f":"Import!E7518","v":"Select"},{"$f":"Import!E7918","v":"Select"},{"$f":"Import!E8318","v":0},{"$f":"Import!E8718","v":0},{"$f":"Import!E9118","v":0},{"$f":"Import!E9518","v":0},{"$f":"Import!E9918","v":0}]
[272,{"$f":"Import!E7119","v":"Select"},{"$f":"Import!E7519","v":"Select"},{"$f":"Import!E7919","v":"Select"},{"$f":"Import!E8319","v":0},{"$f":"Import!E8719","v":0},{"$f":"Import!E9119","v":0},{"$f":"Import!E9519","v":0},{"$f":"Import!E9919","v":0}]
[273,{"$f":"Import!E7120","v":"Select"},{"$f":"Import!E7520","v":"Select"},{"$f":"Import!E7920","v":"Select"},{"$f":"Import!E8320","v":0},{"$f":"Import!E8720","v":0},{"$f":"Import!E9120","v":0},{"$f":"Import!E9520","v":0},{"$f":"Import!E9920","v":0}]
[274,{"$f":"Import!E7121","v":"Select"},{"$f":"Import!E7521","v":"Select"},{"$f":"Import!E7921","v":"Select"},{"$f":"Import!E8321","v":0},{"$f":"Import!E8721","v":0},{"$f":"Import!E9121","v":0},{"$f":"Import!E9521","v":0},{"$f":"Import!E9921","v":0}]
[275,{"$f":"Import!E7122","v":"Select"},{"$f":"Import!E7522","v":"Select"},{"$f":"Import!E7922","v":"Select"},{"$f":"Import!E8322","v":0},{"$f":"Import!E8722","v":0},{"$f":"Import!E9122","v":0},{"$f":"Import!E9522","v":0},{"$f":"Import!E9922","v":0}]
[276,{"$f":"Import!E7123","v":"Select"},{"$f":"Import!E7523","v":"Select"},{"$f":"Import!E7923","v":"Select"},{"$f":"Import!E8323","v":0},{"$f":"Import!E8723","v":0},{"$f":"Import!E9123","v":0},{"$f":"Import!E9523","v":0},{"$f":"Import!E9923","v":0}]
[277,{"$f":"Import!E7124","v":"Select"},{"$f":"Import!E7524","v":"Select"},{"$f":"Import!E7924","v":"Select"},{"$f":"Import!E8324","v":0},{"$f":"Import!E8724","v":0},{"$f":"Import!E9124","v":0},{"$f":"Import!E9524","v":0},{"$f":"Import!E9924","v":0}]
[278,{"$f":"Import!E7125","v":"Select"},{"$f":"Import!E7525","v":"Select"},{"$f":"Import!E7925","v":"Select"},{"$f":"Import!E8325","v":0},{"$f":"Import!E8725","v":0},{"$f":"Import!E9125","v":0},{"$f":"Import!E9525","v":0},{"$f":"Import!E9925","v":0}]
[279,{"$f":"Import!E7126","v":"Select"},{"$f":"Import!E7526","v":"Select"},{"$f":"Import!E7926","v":"Select"},{"$f":"Import!E8326","v":0},{"$f":"Import!E8726","v":0},{"$f":"Import!E9126","v":0},{"$f":"Import!E9526","v":0},{"$f":"Import!E9926","v":0}]
[280,{"$f":"Import!E7127","v":"Select"},{"$f":"Import!E7527","v":"Select"},{"$f":"Import!E7927","v":"Select"},{"$f":"Import!E8327","v":0},{"$f":"Import!E8727","v":0},{"$f":"Import!E9127","v":0},{"$f":"Import!E9527","v":0},{"$f":"Import!E9927","v":0}]
[281,{"$f":"Import!E7128","v":"Select"},{"$f":"Import!E7528","v":"Select"},{"$f":"Import!E7928","v":"Select"},{"$f":"Import!E8328","v":0},{"$f":"Import!E8728","v":0},{"$f":"Import!E9128","v":0},{"$f":"Import!E9528","v":0},{"$f":"Import!E9928","v":0}]
[282,{"$f":"Import!E7129","v":"Select"},{"$f":"Import!E7529","v":"Select"},{"$f":"Import!E7929","v":"Select"},{"$f":"Import!E8329","v":0},{"$f":"Import!E8729","v":0},{"$f":"Import!E9129","v":0},{"$f":"Import!E9529","v":0},{"$f":"Import!E9929","v":0}]
[283,{"$f":"Import!E7130","v":"Select"},{"$f":"Import!E7530","v":"Select"},{"$f":"Import!E7930","v":"Select"},{"$f":"Import!E8330","v":0},{"$f":"Import!E8730","v":0},{"$f":"Import!E9130","v":0},{"$f":"Import!E9530","v":0},{"$f":"Import!E9930","v":0}]
[284,{"$f":"Import!E7131","v":"Select"},{"$f":"Import!E7531","v":"Select"},{"$f":"Import!E7931","v":"Select"},{"$f":"Import!E8331","v":0},{"$f":"Import!E8731","v":0},{"$f":"Import!E9131","v":0},{"$f":"Import!E9531","v":0},{"$f":"Import!E9931","v":0}]
[285,{"$f":"Import!E7132","v":"Select"},{"$f":"Import!E7532","v":"Select"},{"$f":"Import!E7932","v":"Select"},{"$f":"Import!E8332","v":0},{"$f":"Import!E8732","v":0},{"$f":"Import!E9132","v":0},{"$f":"Import!E9532","v":0},{"$f":"Import!E9932","v":0}]
[286,{"$f":"Import!E7133","v":"Select"},{"$f":"Import!E7533","v":"Select"},{"$f":"Import!E7933","v":"Select"},{"$f":"Import!E8333","v":0},{"$f":"Import!E8733","v":0},{"$f":"Import!E9133","v":0},{"$f":"Import!E9533","v":0},{"$f":"Import!E9933","v":0}]
[287,{"$f":"Import!E7134","v":"Select"},{"$f":"Import!E7534","v":"Select"},{"$f":"Import!E7934","v":"Select"},{"$f":"Import!E8334","v":0},{"$f":"Import!E8734","v":0},{"$f":"Import!E9134","v":0},{"$f":"Import!E9534","v":0},{"$f":"Import!E9934","v":0}]
[288,{"$f":"Import!E7135","v":"Select"},{"$f":"Import!E7535","v":"Select"},{"$f":"Import!E7935","v":"Select"},{"$f":"Import!E8335","v":0},{"$f":"Import!E8735","v":0},{"$f":"Import!E9135","v":0},{"$f":"Import!E9535","v":0},{"$f":"Import!E9935","v":0}]
[289,{"$f":"Import!E7136","v":"Select"},{"$f":"Import!E7536","v":"Select"},{"$f":"Import!E7936","v":"Select"},{"$f":"Import!E8336","v":0},{"$f":"Import!E8736","v":0},{"$f":"Import!E9136","v":0},{"$f":"Import!E9536","v":0},{"$f":"Import!E9936","v":0}]
[290,{"$f":"Import!E7137","v":"Select"},{"$f":"Import!E7537","v":"Select"},{"$f":"Import!E7937","v":"Select"},{"$f":"Import!E8337","v":0},{"$f":"Import!E8737","v":0},{"$f":"Import!E9137","v":0},{"$f":"Import!E9537","v":0},{"$f":"Import!E9937","v":0}]
[291,{"$f":"Import!E7138","v":"Select"},{"$f":"Import!E7538","v":"Select"},{"$f":"Import!E7938","v":"Select"},{"$f":"Import!E8338","v":0},{"$f":"Import!E8738","v":0},{"$f":"Import!E9138","v":0},{"$f":"Import!E9538","v":0},{"$f":"Import!E9938","v":0}]
[292,{"$f":"Import!E7139","v":"Select"},{"$f":"Import!E7539","v":"Select"},{"$f":"Import!E7939","v":"Select"},{"$f":"Import!E8339","v":0},{"$f":"Import!E8739","v":0},{"$f":"Import!E9139","v":0},{"$f":"Import!E9539","v":0},{"$f":"Import!E9939","v":0}]
[293,{"$f":"Import!E7140","v":"Select"},{"$f":"Import!E7540","v":"Select"},{"$f":"Import!E7940","v":"Select"},{"$f":"Import!E8340","v":0},{"$f":"Import!E8740","v":0},{"$f":"Import!E9140","v":0},{"$f":"Import!E9540","v":0},{"$f":"Import!E9940","v":0}]
[294,{"$f":"Import!E7141","v":"Select"},{"$f":"Import!E7541","v":"Select"},{"$f":"Import!E7941","v":"Select"},{"$f":"Import!E8341","v":0},{"$f":"Import!E8741","v":0},{"$f":"Import!E9141","v":0},{"$f":"Import!E9541","v":0},{"$f":"Import!E9941","v":0}]
[295,{"$f":"Import!E7142","v":"Select"},{"$f":"Import!E7542","v":"Select"},{"$f":"Import!E7942","v":"Select"},{"$f":"Import!E8342","v":0},{"$f":"Import!E8742","v":0},{"$f":"Import!E9142","v":0},{"$f":"Import!E9542","v":0},{"$f":"Import!E9942","v":0}]
[296,{"$f":"Import!E7143","v":"Select"},{"$f":"Import!E7543","v":"Select"},{"$f":"Import!E7943","v":"Select"},{"$f":"Import!E8343","v":0},{"$f":"Import!E8743","v":0},{"$f":"Import!E9143","v":0},{"$f":"Import!E9543","v":0},{"$f":"Import!E9943","v":0}]
[297,{"$f":"Import!E7144","v":"Select"},{"$f":"Import!E7544","v":"Select"},{"$f":"Import!E7944","v":"Select"},{"$f":"Import!E8344","v":0},{"$f":"Import!E8744","v":0},{"$f":"Import!E9144","v":0},{"$f":"Import!E9544","v":0},{"$f":"Import!E9944","v":0}]
[298,{"$f":"Import!E7145","v":"Select"},{"$f":"Import!E7545","v":"Select"},{"$f":"Import!E7945","v":"Select"},{"$f":"Import!E8345","v":0},{"$f":"Import!E8745","v":0},{"$f":"Import!E9145","v":0},{"$f":"Import!E9545","v":0},{"$f":"Import!E9945","v":0}]
[299,{"$f":"Import!E7146","v":"Select"},{"$f":"Import!E7546","v":"Select"},{"$f":"Import!E7946","v":"Select"},{"$f":"Import!E8346","v":0},{"$f":"Import!E8746","v":0},{"$f":"Import!E9146","v":0},{"$f":"Import!E9546","v":0},{"$f":"Import!E9946","v":0}]
[300,{"$f":"Import!E7147","v":"Select"},{"$f":"Import!E7547","v":"Select"},{"$f":"Import!E7947","v":"Select"},{"$f":"Import!E8347","v":0},{"$f":"Import!E8747","v":0},{"$f":"Import!E9147","v":0},{"$f":"Import!E9547","v":0},{"$f":"Import!E9947","v":0}]
[301,{"$f":"Import!E7148","v":"Select"},{"$f":"Import!E7548","v":"Select"},{"$f":"Import!E7948","v":"Select"},{"$f":"Import!E8348","v":0},{"$f":"Import!E8748","v":0},{"$f":"Import!E9148","v":0},{"$f":"Import!E9548","v":0},{"$f":"Import!E9948","v":0}]
[302,{"$f":"Import!E7149","v":"Select"},{"$f":"Import!E7549","v":"Select"},{"$f":"Import!E7949","v":"Select"},{"$f":"Import!E8349","v":0},{"$f":"Import!E8749","v":0},{"$f":"Import!E9149","v":0},{"$f":"Import!E9549","v":0},{"$f":"Import!E9949","v":0}]
[303,{"$f":"Import!E7150","v":"Select"},{"$f":"Import!E7550","v":"Select"},{"$f":"Import!E7950","v":"Select"},{"$f":"Import!E8350","v":0},{"$f":"Import!E8750","v":0},{"$f":"Import!E9150","v":0},{"$f":"Import!E9550","v":0},{"$f":"Import!E9950","v":0}]
[304,{"$f":"Import!E7151","v":"Select"},{"$f":"Import!E7551","v":"Select"},{"$f":"Import!E7951","v":"Select"},{"$f":"Import!E8351","v":0},{"$f":"Import!E8751","v":0},{"$f":"Import!E9151","v":0},{"$f":"Import!E9551","v":0},{"$f":"Import!E9951","v":0}]
[305,{"$f":"Import!E7152","v":"Select"},{"$f":"Import!E7552","v":"Select"},{"$f":"Import!E7952","v":"Select"},{"$f":"Import!E8352","v":0},{"$f":"Import!E8752","v":0},{"$f":"Import!E9152","v":0},{"$f":"Import!E9552","v":0},{"$f":"Import!E9952","v":0}]
[306,{"$f":"Import!E7153","v":"Select"},{"$f":"Import!E7553","v":"Select"},{"$f":"Import!E7953","v":"Select"},{"$f":"Import!E8353","v":0},{"$f":"Import!E8753","v":0},{"$f":"Import!E9153","v":0},{"$f":"Import!E9553","v":0},{"$f":"Import!E9953","v":0}]
[307,{"$f":"Import!E7154","v":"Select"},{"$f":"Import!E7554","v":"Select"},{"$f":"Import!E7954","v":"Select"},{"$f":"Import!E8354","v":0},{"$f":"Import!E8754","v":0},{"$f":"Import!E9154","v":0},{"$f":"Import!E9554","v":0},{"$f":"Import!E9954","v":0}]
[308,{"$f":"Import!E7155","v":"Select"},{"$f":"Import!E7555","v":"Select"},{"$f":"Import!E7955","v":"Select"},{"$f":"Import!E8355","v":0},{"$f":"Import!E8755","v":0},{"$f":"Import!E9155","v":0},{"$f":"Import!E9555","v":0},{"$f":"Import!E9955","v":0}]
[309,{"$f":"Import!E7156","v":"Select"},{"$f":"Import!E7556","v":"Select"},{"$f":"Import!E7956","v":"Select"},{"$f":"Import!E8356","v":0},{"$f":"Import!E8756","v":0},{"$f":"Import!E9156","v":0},{"$f":"Import!E9556","v":0},{"$f":"Import!E9956","v":0}]
[310,{"$f":"Import!E7157","v":"Select"},{"$f":"Import!E7557","v":"Select"},{"$f":"Import!E7957","v":"Select"},{"$f":"Import!E8357","v":0},{"$f":"Import!E8757","v":0},{"$f":"Import!E9157","v":0},{"$f":"Import!E9557","v":0},{"$f":"Import!E9957","v":0}]
[311,{"$f":"Import!E7158","v":"Select"},{"$f":"Import!E7558","v":"Select"},{"$f":"Import!E7958","v":"Select"},{"$f":"Import!E8358","v":0},{"$f":"Import!E8758","v":0},{"$f":"Import!E9158","v":0},{"$f":"Import!E9558","v":0},{"$f":"Import!E9958","v":0}]
[312,{"$f":"Import!E7159","v":"Select"},{"$f":"Import!E7559","v":"Select"},{"$f":"Import!E7959","v":"Select"},{"$f":"Import!E8359","v":0},{"$f":"Import!E8759","v":0},{"$f":"Import!E9159","v":0},{"$f":"Import!E9559","v":0},{"$f":"Import!E9959","v":0}]
[313,{"$f":"Import!E7160","v":"Select"},{"$f":"Import!E7560","v":"Select"},{"$f":"Import!E7960","v":"Select"},{"$f":"Import!E8360","v":0},{"$f":"Import!E8760","v":0},{"$f":"Import!E9160","v":0},{"$f":"Import!E9560","v":0},{"$f":"Import!E9960","v":0}]
[314,{"$f":"Import!E7161","v":"Select"},{"$f":"Import!E7561","v":"Select"},{"$f":"Import!E7961","v":"Select"},{"$f":"Import!E8361","v":0},{"$f":"Import!E8761","v":0},{"$f":"Import!E9161","v":0},{"$f":"Import!E9561","v":0},{"$f":"Import!E9961","v":0}]
[315,{"$f":"Import!E7162","v":"Select"},{"$f":"Import!E7562","v":"Select"},{"$f":"Import!E7962","v":"Select"},{"$f":"Import!E8362","v":0},{"$f":"Import!E8762","v":0},{"$f":"Import!E9162","v":0},{"$f":"Import!E9562","v":0},{"$f":"Import!E9962","v":0}]
[316,{"$f":"Import!E7163","v":"Select"},{"$f":"Import!E7563","v":"Select"},{"$f":"Import!E7963","v":"Select"},{"$f":"Import!E8363","v":0},{"$f":"Import!E8763","v":0},{"$f":"Import!E9163","v":0},{"$f":"Import!E9563","v":0},{"$f":"Import!E9963","v":0}]
[317,{"$f":"Import!E7164","v":"Select"},{"$f":"Import!E7564","v":"Select"},{"$f":"Import!E7964","v":"Select"},{"$f":"Import!E8364","v":0},{"$f":"Import!E8764","v":0},{"$f":"Import!E9164","v":0},{"$f":"Import!E9564","v":0},{"$f":"Import!E9964","v":0}]
[318,{"$f":"Import!E7165","v":"Select"},{"$f":"Import!E7565","v":"Select"},{"$f":"Import!E7965","v":"Select"},{"$f":"Import!E8365","v":0},{"$f":"Import!E8765","v":0},{"$f":"Import!E9165","v":0},{"$f":"Import!E9565","v":0},{"$f":"Import!E9965","v":0}]
[319,{"$f":"Import!E7166","v":"Select"},{"$f":"Import!E7566","v":"Select"},{"$f":"Import!E7966","v":"Select"},{"$f":"Import!E8366","v":0},{"$f":"Import!E8766","v":0},{"$f":"Import!E9166","v":0},{"$f":"Import!E9566","v":0},{"$f":"Import!E9966","v":0}]
[320,{"$f":"Import!E7167","v":"Select"},{"$f":"Import!E7567","v":"Select"},{"$f":"Import!E7967","v":"Select"},{"$f":"Import!E8367","v":0},{"$f":"Import!E8767","v":0},{"$f":"Import!E9167","v":0},{"$f":"Import!E9567","v":0},{"$f":"Import!E9967","v":0}]
[321,{"$f":"Import!E7168","v":"Select"},{"$f":"Import!E7568","v":"Select"},{"$f":"Import!E7968","v":"Select"},{"$f":"Import!E8368","v":0},{"$f":"Import!E8768","v":0},{"$f":"Import!E9168","v":0},{"$f":"Import!E9568","v":0},{"$f":"Import!E9968","v":0}]
[322,{"$f":"Import!E7169","v":"Select"},{"$f":"Import!E7569","v":"Select"},{"$f":"Import!E7969","v":"Select"},{"$f":"Import!E8369","v":0},{"$f":"Import!E8769","v":0},{"$f":"Import!E9169","v":0},{"$f":"Import!E9569","v":0},{"$f":"Import!E9969","v":0}]
[{"$f":"A540+1","v":323},{"$f":"Import!E7170","v":"Select"},{"$f":"Import!E7570","v":"Select"},{"$f":"Import!E7970","v":"Select"},{"$f":"Import!E8370","v":0},{"$f":"Import!E8770","v":0},{"$f":"Import!E9170","v":0},{"$f":"Import!E9570","v":0},{"$f":"Import!E9970","v":0}]
[324,{"$f":"Import!E7171","v":"Select"},{"$f":"Import!E7571","v":"Select"},{"$f":"Import!E7971","v":"Select"},{"$f":"Import!E8371","v":0},{"$f":"Import!E8771","v":0},{"$f":"Import!E9171","v":0},{"$f":"Import!E9571","v":0},{"$f":"Import!E9971","v":0}]
[325,{"$f":"Import!E7172","v":"Select"},{"$f":"Import!E7572","v":"Select"},{"$f":"Import!E7972","v":"Select"},{"$f":"Import!E8372","v":0},{"$f":"Import!E8772","v":0},{"$f":"Import!E9172","v":0},{"$f":"Import!E9572","v":0},{"$f":"Import!E9972","v":0}]
[326,{"$f":"Import!E7173","v":"Select"},{"$f":"Import!E7573","v":"Select"},{"$f":"Import!E7973","v":"Select"},{"$f":"Import!E8373","v":0},{"$f":"Import!E8773","v":0},{"$f":"Import!E9173","v":0},{"$f":"Import!E9573","v":0},{"$f":"Import!E9973","v":0}]
[327,{"$f":"Import!E7174","v":"Select"},{"$f":"Import!E7574","v":"Select"},{"$f":"Import!E7974","v":"Select"},{"$f":"Import!E8374","v":0},{"$f":"Import!E8774","v":0},{"$f":"Import!E9174","v":0},{"$f":"Import!E9574","v":0},{"$f":"Import!E9974","v":0}]
[328,{"$f":"Import!E7175","v":"Select"},{"$f":"Import!E7575","v":"Select"},{"$f":"Import!E7975","v":"Select"},{"$f":"Import!E8375","v":0},{"$f":"Import!E8775","v":0},{"$f":"Import!E9175","v":0},{"$f":"Import!E9575","v":0},{"$f":"Import!E9975","v":0}]
[329,{"$f":"Import!E7176","v":"Select"},{"$f":"Import!E7576","v":"Select"},{"$f":"Import!E7976","v":"Select"},{"$f":"Import!E8376","v":0},{"$f":"Import!E8776","v":0},{"$f":"Import!E9176","v":0},{"$f":"Import!E9576","v":0},{"$f":"Import!E9976","v":0}]
[330,{"$f":"Import!E7177","v":"Select"},{"$f":"Import!E7577","v":"Select"},{"$f":"Import!E7977","v":"Select"},{"$f":"Import!E8377","v":0},{"$f":"Import!E8777","v":0},{"$f":"Import!E9177","v":0},{"$f":"Import!E9577","v":0},{"$f":"Import!E9977","v":0}]
[331,{"$f":"Import!E7178","v":"Select"},{"$f":"Import!E7578","v":"Select"},{"$f":"Import!E7978","v":"Select"},{"$f":"Import!E8378","v":0},{"$f":"Import!E8778","v":0},{"$f":"Import!E9178","v":0},{"$f":"Import!E9578","v":0},{"$f":"Import!E9978","v":0}]
[332,{"$f":"Import!E7179","v":"Select"},{"$f":"Import!E7579","v":"Select"},{"$f":"Import!E7979","v":"Select"},{"$f":"Import!E8379","v":0},{"$f":"Import!E8779","v":0},{"$f":"Import!E9179","v":0},{"$f":"Import!E9579","v":0},{"$f":"Import!E9979","v":0}]
[333,{"$f":"Import!E7180","v":"Select"},{"$f":"Import!E7580","v":"Select"},{"$f":"Import!E7980","v":"Select"},{"$f":"Import!E8380","v":0},{"$f":"Import!E8780","v":0},{"$f":"Import!E9180","v":0},{"$f":"Import!E9580","v":0},{"$f":"Import!E9980","v":0}]
[334,{"$f":"Import!E7181","v":"Select"},{"$f":"Import!E7581","v":"Select"},{"$f":"Import!E7981","v":"Select"},{"$f":"Import!E8381","v":0},{"$f":"Import!E8781","v":0},{"$f":"Import!E9181","v":0},{"$f":"Import!E9581","v":0},{"$f":"Import!E9981","v":0}]
[335,{"$f":"Import!E7182","v":"Select"},{"$f":"Import!E7582","v":"Select"},{"$f":"Import!E7982","v":"Select"},{"$f":"Import!E8382","v":0},{"$f":"Import!E8782","v":0},{"$f":"Import!E9182","v":0},{"$f":"Import!E9582","v":0},{"$f":"Import!E9982","v":0}]
[336,{"$f":"Import!E7183","v":"Select"},{"$f":"Import!E7583","v":"Select"},{"$f":"Import!E7983","v":"Select"},{"$f":"Import!E8383","v":0},{"$f":"Import!E8783","v":0},{"$f":"Import!E9183","v":0},{"$f":"Import!E9583","v":0},{"$f":"Import!E9983","v":0}]
[337,{"$f":"Import!E7184","v":"Select"},{"$f":"Import!E7584","v":"Select"},{"$f":"Import!E7984","v":"Select"},{"$f":"Import!E8384","v":0},{"$f":"Import!E8784","v":0},{"$f":"Import!E9184","v":0},{"$f":"Import!E9584","v":0},{"$f":"Import!E9984","v":0}]
[338,{"$f":"Import!E7185","v":"Select"},{"$f":"Import!E7585","v":"Select"},{"$f":"Import!E7985","v":"Select"},{"$f":"Import!E8385","v":0},{"$f":"Import!E8785","v":0},{"$f":"Import!E9185","v":0},{"$f":"Import!E9585","v":0},{"$f":"Import!E9985","v":0}]
[339,{"$f":"Import!E7186","v":"Select"},{"$f":"Import!E7586","v":"Select"},{"$f":"Import!E7986","v":"Select"},{"$f":"Import!E8386","v":0},{"$f":"Import!E8786","v":0},{"$f":"Import!E9186","v":0},{"$f":"Import!E9586","v":0},{"$f":"Import!E9986","v":0}]
[340,{"$f":"Import!E7187","v":"Select"},{"$f":"Import!E7587","v":"Select"},{"$f":"Import!E7987","v":"Select"},{"$f":"Import!E8387","v":0},{"$f":"Import!E8787","v":0},{"$f":"Import!E9187","v":0},{"$f":"Import!E9587","v":0},{"$f":"Import!E9987","v":0}]
[341,{"$f":"Import!E7188","v":"Select"},{"$f":"Import!E7588","v":"Select"},{"$f":"Import!E7988","v":"Select"},{"$f":"Import!E8388","v":0},{"$f":"Import!E8788","v":0},{"$f":"Import!E9188","v":0},{"$f":"Import!E9588","v":0},{"$f":"Import!E9988","v":0}]
[342,{"$f":"Import!E7189","v":"Select"},{"$f":"Import!E7589","v":"Select"},{"$f":"Import!E7989","v":"Select"},{"$f":"Import!E8389","v":0},{"$f":"Import!E8789","v":0},{"$f":"Import!E9189","v":0},{"$f":"Import!E9589","v":0},{"$f":"Import!E9989","v":0}]
[343,{"$f":"Import!E7190","v":"Select"},{"$f":"Import!E7590","v":"Select"},{"$f":"Import!E7990","v":"Select"},{"$f":"Import!E8390","v":0},{"$f":"Import!E8790","v":0},{"$f":"Import!E9190","v":0},{"$f":"Import!E9590","v":0},{"$f":"Import!E9990","v":0}]
[344,{"$f":"Import!E7191","v":"Select"},{"$f":"Import!E7591","v":"Select"},{"$f":"Import!E7991","v":"Select"},{"$f":"Import!E8391","v":0},{"$f":"Import!E8791","v":0},{"$f":"Import!E9191","v":0},{"$f":"Import!E9591","v":0},{"$f":"Import!E9991","v":0}]
[345,{"$f":"Import!E7192","v":"Select"},{"$f":"Import!E7592","v":"Select"},{"$f":"Import!E7992","v":"Select"},{"$f":"Import!E8392","v":0},{"$f":"Import!E8792","v":0},{"$f":"Import!E9192","v":0},{"$f":"Import!E9592","v":0},{"$f":"Import!E9992","v":0}]
[346,{"$f":"Import!E7193","v":"Select"},{"$f":"Import!E7593","v":"Select"},{"$f":"Import!E7993","v":"Select"},{"$f":"Import!E8393","v":0},{"$f":"Import!E8793","v":0},{"$f":"Import!E9193","v":0},{"$f":"Import!E9593","v":0},{"$f":"Import!E9993","v":0}]
[347,{"$f":"Import!E7194","v":"Select"},{"$f":"Import!E7594","v":"Select"},{"$f":"Import!E7994","v":"Select"},{"$f":"Import!E8394","v":0},{"$f":"Import!E8794","v":0},{"$f":"Import!E9194","v":0},{"$f":"Import!E9594","v":0},{"$f":"Import!E9994","v":0}]
[348,{"$f":"Import!E7195","v":"Select"},{"$f":"Import!E7595","v":"Select"},{"$f":"Import!E7995","v":"Select"},{"$f":"Import!E8395","v":0},{"$f":"Import!E8795","v":0},{"$f":"Import!E9195","v":0},{"$f":"Import!E9595","v":0},{"$f":"Import!E9995","v":0}]
[349,{"$f":"Import!E7196","v":"Select"},{"$f":"Import!E7596","v":"Select"},{"$f":"Import!E7996","v":"Select"},{"$f":"Import!E8396","v":0},{"$f":"Import!E8796","v":0},{"$f":"Import!E9196","v":0},{"$f":"Import!E9596","v":0},{"$f":"Import!E9996","v":0}]
[350,{"$f":"Import!E7197","v":"Select"},{"$f":"Import!E7597","v":"Select"},{"$f":"Import!E7997","v":"Select"},{"$f":"Import!E8397","v":0},{"$f":"Import!E8797","v":0},{"$f":"Import!E9197","v":0},{"$f":"Import!E9597","v":0},{"$f":"Import!E9997","v":0}]
[351,{"$f":"Import!E7198","v":"Select"},{"$f":"Import!E7598","v":"Select"},{"$f":"Import!E7998","v":"Select"},{"$f":"Import!E8398","v":0},{"$f":"Import!E8798","v":0},{"$f":"Import!E9198","v":0},{"$f":"Import!E9598","v":0},{"$f":"Import!E9998","v":0}]
[352,{"$f":"Import!E7199","v":"Select"},{"$f":"Import!E7599","v":"Select"},{"$f":"Import!E7999","v":"Select"},{"$f":"Import!E8399","v":0},{"$f":"Import!E8799","v":0},{"$f":"Import!E9199","v":0},{"$f":"Import!E9599","v":0},{"$f":"Import!E9999","v":0}]
[353,{"$f":"Import!E7200","v":"Select"},{"$f":"Import!E7600","v":"Select"},{"$f":"Import!E8000","v":"Select"},{"$f":"Import!E8400","v":0},{"$f":"Import!E8800","v":0},{"$f":"Import!E9200","v":0},{"$f":"Import!E9600","v":0},{"$f":"Import!E10000","v":0}]
[354,{"$f":"Import!E7201","v":"Select"},{"$f":"Import!E7601","v":"Select"},{"$f":"Import!E8001","v":"Select"},{"$f":"Import!E8401","v":0},{"$f":"Import!E8801","v":0},{"$f":"Import!E9201","v":0},{"$f":"Import!E9601","v":0},{"$f":"Import!E10001","v":0}]
[355,{"$f":"Import!E7202","v":"Select"},{"$f":"Import!E7602","v":"Select"},{"$f":"Import!E8002","v":"Select"},{"$f":"Import!E8402","v":0},{"$f":"Import!E8802","v":0},{"$f":"Import!E9202","v":0},{"$f":"Import!E9602","v":0},{"$f":"Import!E10002","v":0}]
[356,{"$f":"Import!E7203","v":"Select"},{"$f":"Import!E7603","v":"Select"},{"$f":"Import!E8003","v":"Select"},{"$f":"Import!E8403","v":0},{"$f":"Import!E8803","v":0},{"$f":"Import!E9203","v":0},{"$f":"Import!E9603","v":0},{"$f":"Import!E10003","v":0}]
[357,{"$f":"Import!E7204","v":"Select"},{"$f":"Import!E7604","v":"Select"},{"$f":"Import!E8004","v":"Select"},{"$f":"Import!E8404","v":0},{"$f":"Import!E8804","v":0},{"$f":"Import!E9204","v":0},{"$f":"Import!E9604","v":0},{"$f":"Import!E10004","v":0}]
[358,{"$f":"Import!E7205","v":"Select"},{"$f":"Import!E7605","v":"Select"},{"$f":"Import!E8005","v":"Select"},{"$f":"Import!E8405","v":0},{"$f":"Import!E8805","v":0},{"$f":"Import!E9205","v":0},{"$f":"Import!E9605","v":0},{"$f":"Import!E10005","v":0}]
[359,{"$f":"Import!E7206","v":"Select"},{"$f":"Import!E7606","v":"Select"},{"$f":"Import!E8006","v":"Select"},{"$f":"Import!E8406","v":0},{"$f":"Import!E8806","v":0},{"$f":"Import!E9206","v":0},{"$f":"Import!E9606","v":0},{"$f":"Import!E10006","v":0}]
[360,{"$f":"Import!E7207","v":"Select"},{"$f":"Import!E7607","v":"Select"},{"$f":"Import!E8007","v":"Select"},{"$f":"Import!E8407","v":0},{"$f":"Import!E8807","v":0},{"$f":"Import!E9207","v":0},{"$f":"Import!E9607","v":0},{"$f":"Import!E10007","v":0}]
[361,{"$f":"Import!E7208","v":"Select"},{"$f":"Import!E7608","v":"Select"},{"$f":"Import!E8008","v":"Select"},{"$f":"Import!E8408","v":0},{"$f":"Import!E8808","v":0},{"$f":"Import!E9208","v":0},{"$f":"Import!E9608","v":0},{"$f":"Import!E10008","v":0}]
[362,{"$f":"Import!E7209","v":"Select"},{"$f":"Import!E7609","v":"Select"},{"$f":"Import!E8009","v":"Select"},{"$f":"Import!E8409","v":0},{"$f":"Import!E8809","v":0},{"$f":"Import!E9209","v":0},{"$f":"Import!E9609","v":0},{"$f":"Import!E10009","v":0}]
[363,{"$f":"Import!E7210","v":"Select"},{"$f":"Import!E7610","v":"Select"},{"$f":"Import!E8010","v":"Select"},{"$f":"Import!E8410","v":0},{"$f":"Import!E8810","v":0},{"$f":"Import!E9210","v":0},{"$f":"Import!E9610","v":0},{"$f":"Import!E10010","v":0}]
[364,{"$f":"Import!E7211","v":"Select"},{"$f":"Import!E7611","v":"Select"},{"$f":"Import!E8011","v":"Select"},{"$f":"Import!E8411","v":0},{"$f":"Import!E8811","v":0},{"$f":"Import!E9211","v":0},{"$f":"Import!E9611","v":0},{"$f":"Import!E10011","v":0}]
[365,{"$f":"Import!E7212","v":"Select"},{"$f":"Import!E7612","v":"Select"},{"$f":"Import!E8012","v":"Select"},{"$f":"Import!E8412","v":0},{"$f":"Import!E8812","v":0},{"$f":"Import!E9212","v":0},{"$f":"Import!E9612","v":0},{"$f":"Import!E10012","v":0}]
[366,{"$f":"Import!E7213","v":"Select"},{"$f":"Import!E7613","v":"Select"},{"$f":"Import!E8013","v":"Select"},{"$f":"Import!E8413","v":0},{"$f":"Import!E8813","v":0},{"$f":"Import!E9213","v":0},{"$f":"Import!E9613","v":0},{"$f":"Import!E10013","v":0}]
[367,{"$f":"Import!E7214","v":"Select"},{"$f":"Import!E7614","v":"Select"},{"$f":"Import!E8014","v":"Select"},{"$f":"Import!E8414","v":0},{"$f":"Import!E8814","v":0},{"$f":"Import!E9214","v":0},{"$f":"Import!E9614","v":0},{"$f":"Import!E10014","v":0}]
[368,{"$f":"Import!E7215","v":"Select"},{"$f":"Import!E7615","v":"Select"},{"$f":"Import!E8015","v":"Select"},{"$f":"Import!E8415","v":0},{"$f":"Import!E8815","v":0},{"$f":"Import!E9215","v":0},{"$f":"Import!E9615","v":0},{"$f":"Import!E10015","v":0}]
[369,{"$f":"Import!E7216","v":"Select"},{"$f":"Import!E7616","v":"Select"},{"$f":"Import!E8016","v":"Select"},{"$f":"Import!E8416","v":0},{"$f":"Import!E8816","v":0},{"$f":"Import!E9216","v":0},{"$f":"Import!E9616","v":0},{"$f":"Import!E10016","v":0}]
[370,{"$f":"Import!E7217","v":"Select"},{"$f":"Import!E7617","v":"Select"},{"$f":"Import!E8017","v":"Select"},{"$f":"Import!E8417","v":0},{"$f":"Import!E8817","v":0},{"$f":"Import!E9217","v":0},{"$f":"Import!E9617","v":0},{"$f":"Import!E10017","v":0}]
[371,{"$f":"Import!E7218","v":"Select"},{"$f":"Import!E7618","v":"Select"},{"$f":"Import!E8018","v":"Select"},{"$f":"Import!E8418","v":0},{"$f":"Import!E8818","v":0},{"$f":"Import!E9218","v":0},{"$f":"Import!E9618","v":0},{"$f":"Import!E10018","v":0}]
[372,{"$f":"Import!E7219","v":"Select"},{"$f":"Import!E7619","v":"Select"},{"$f":"Import!E8019","v":"Select"},{"$f":"Import!E8419","v":0},{"$f":"Import!E8819","v":0},{"$f":"Import!E9219","v":0},{"$f":"Import!E9619","v":0},{"$f":"Import!E10019","v":0}]
[373,{"$f":"Import!E7220","v":"Select"},{"$f":"Import!E7620","v":"Select"},{"$f":"Import!E8020","v":"Select"},{"$f":"Import!E8420","v":0},{"$f":"Import!E8820","v":0},{"$f":"Import!E9220","v":0},{"$f":"Import!E9620","v":0},{"$f":"Import!E10020","v":0}]
[374,{"$f":"Import!E7221","v":"Select"},{"$f":"Import!E7621","v":"Select"},{"$f":"Import!E8021","v":"Select"},{"$f":"Import!E8421","v":0},{"$f":"Import!E8821","v":0},{"$f":"Import!E9221","v":0},{"$f":"Import!E9621","v":0},{"$f":"Import!E10021","v":0}]
[375,{"$f":"Import!E7222","v":"Select"},{"$f":"Import!E7622","v":"Select"},{"$f":"Import!E8022","v":"Select"},{"$f":"Import!E8422","v":0},{"$f":"Import!E8822","v":0},{"$f":"Import!E9222","v":0},{"$f":"Import!E9622","v":0},{"$f":"Import!E10022","v":0}]
[376,{"$f":"Import!E7223","v":"Select"},{"$f":"Import!E7623","v":"Select"},{"$f":"Import!E8023","v":"Select"},{"$f":"Import!E8423","v":0},{"$f":"Import!E8823","v":0},{"$f":"Import!E9223","v":0},{"$f":"Import!E9623","v":0},{"$f":"Import!E10023","v":0}]
[377,{"$f":"Import!E7224","v":"Select"},{"$f":"Import!E7624","v":"Select"},{"$f":"Import!E8024","v":"Select"},{"$f":"Import!E8424","v":0},{"$f":"Import!E8824","v":0},{"$f":"Import!E9224","v":0},{"$f":"Import!E9624","v":0},{"$f":"Import!E10024","v":0}]
[378,{"$f":"Import!E7225","v":"Select"},{"$f":"Import!E7625","v":"Select"},{"$f":"Import!E8025","v":"Select"},{"$f":"Import!E8425","v":0},{"$f":"Import!E8825","v":0},{"$f":"Import!E9225","v":0},{"$f":"Import!E9625","v":0},{"$f":"Import!E10025","v":0}]
[379,{"$f":"Import!E7226","v":"Select"},{"$f":"Import!E7626","v":"Select"},{"$f":"Import!E8026","v":"Select"},{"$f":"Import!E8426","v":0},{"$f":"Import!E8826","v":0},{"$f":"Import!E9226","v":0},{"$f":"Import!E9626","v":0},{"$f":"Import!E10026","v":0}]
[380,{"$f":"Import!E7227","v":"Select"},{"$f":"Import!E7627","v":"Select"},{"$f":"Import!E8027","v":"Select"},{"$f":"Import!E8427","v":0},{"$f":"Import!E8827","v":0},{"$f":"Import!E9227","v":0},{"$f":"Import!E9627","v":0},{"$f":"Import!E10027","v":0}]
[381,{"$f":"Import!E7228","v":"Select"},{"$f":"Import!E7628","v":"Select"},{"$f":"Import!E8028","v":"Select"},{"$f":"Import!E8428","v":0},{"$f":"Import!E8828","v":0},{"$f":"Import!E9228","v":0},{"$f":"Import!E9628","v":0},{"$f":"Import!E10028","v":0}]
[382,{"$f":"Import!E7229","v":"Select"},{"$f":"Import!E7629","v":"Select"},{"$f":"Import!E8029","v":"Select"},{"$f":"Import!E8429","v":0},{"$f":"Import!E8829","v":0},{"$f":"Import!E9229","v":0},{"$f":"Import!E9629","v":0},{"$f":"Import!E10029","v":0}]
[383,{"$f":"Import!E7230","v":"Select"},{"$f":"Import!E7630","v":"Select"},{"$f":"Import!E8030","v":"Select"},{"$f":"Import!E8430","v":0},{"$f":"Import!E8830","v":0},{"$f":"Import!E9230","v":0},{"$f":"Import!E9630","v":0},{"$f":"Import!E10030","v":0}]
[384,{"$f":"Import!E7231","v":"Select"},{"$f":"Import!E7631","v":"Select"},{"$f":"Import!E8031","v":"Select"},{"$f":"Import!E8431","v":0},{"$f":"Import!E8831","v":0},{"$f":"Import!E9231","v":0},{"$f":"Import!E9631","v":0},{"$f":"Import!E10031","v":0}]
[385,{"$f":"Import!E7232","v":"Select"},{"$f":"Import!E7632","v":"Select"},{"$f":"Import!E8032","v":"Select"},{"$f":"Import!E8432","v":0},{"$f":"Import!E8832","v":0},{"$f":"Import!E9232","v":0},{"$f":"Import!E9632","v":0},{"$f":"Import!E10032","v":0}]
[386,{"$f":"Import!E7233","v":"Select"},{"$f":"Import!E7633","v":"Select"},{"$f":"Import!E8033","v":"Select"},{"$f":"Import!E8433","v":0},{"$f":"Import!E8833","v":0},{"$f":"Import!E9233","v":0},{"$f":"Import!E9633","v":0},{"$f":"Import!E10033","v":0}]
[{"$f":"A604+1","v":387},{"$f":"Import!E7234","v":"Select"},{"$f":"Import!E7634","v":"Select"},{"$f":"Import!E8034","v":"Select"},{"$f":"Import!E8434","v":0},{"$f":"Import!E8834","v":0},{"$f":"Import!E9234","v":0},{"$f":"Import!E9634","v":0},{"$f":"Import!E10034","v":0}]
[388,{"$f":"Import!E7235","v":"Select"},{"$f":"Import!E7635","v":"Select"},{"$f":"Import!E8035","v":"Select"},{"$f":"Import!E8435","v":0},{"$f":"Import!E8835","v":0},{"$f":"Import!E9235","v":0},{"$f":"Import!E9635","v":0},{"$f":"Import!E10035","v":0}]
[389,{"$f":"Import!E7236","v":"Select"},{"$f":"Import!E7636","v":"Select"},{"$f":"Import!E8036","v":"Select"},{"$f":"Import!E8436","v":0},{"$f":"Import!E8836","v":0},{"$f":"Import!E9236","v":0},{"$f":"Import!E9636","v":0},{"$f":"Import!E10036","v":0}]
[390,{"$f":"Import!E7237","v":"Select"},{"$f":"Import!E7637","v":"Select"},{"$f":"Import!E8037","v":"Select"},{"$f":"Import!E8437","v":0},{"$f":"Import!E8837","v":0},{"$f":"Import!E9237","v":0},{"$f":"Import!E9637","v":0},{"$f":"Import!E10037","v":0}]
[391,{"$f":"Import!E7238","v":"Select"},{"$f":"Import!E7638","v":"Select"},{"$f":"Import!E8038","v":"Select"},{"$f":"Import!E8438","v":0},{"$f":"Import!E8838","v":0},{"$f":"Import!E9238","v":0},{"$f":"Import!E9638","v":0},{"$f":"Import!E10038","v":0}]
[392,{"$f":"Import!E7239","v":"Select"},{"$f":"Import!E7639","v":"Select"},{"$f":"Import!E8039","v":"Select"},{"$f":"Import!E8439","v":0},{"$f":"Import!E8839","v":0},{"$f":"Import!E9239","v":0},{"$f":"Import!E9639","v":0},{"$f":"Import!E10039","v":0}]
[393,{"$f":"Import!E7240","v":"Select"},{"$f":"Import!E7640","v":"Select"},{"$f":"Import!E8040","v":"Select"},{"$f":"Import!E8440","v":0},{"$f":"Import!E8840","v":0},{"$f":"Import!E9240","v":0},{"$f":"Import!E9640","v":0},{"$f":"Import!E10040","v":0}]
[394,{"$f":"Import!E7241","v":"Select"},{"$f":"Import!E7641","v":"Select"},{"$f":"Import!E8041","v":"Select"},{"$f":"Import!E8441","v":0},{"$f":"Import!E8841","v":0},{"$f":"Import!E9241","v":0},{"$f":"Import!E9641","v":0},{"$f":"Import!E10041","v":0}]
[395,{"$f":"Import!E7242","v":"Select"},{"$f":"Import!E7642","v":"Select"},{"$f":"Import!E8042","v":"Select"},{"$f":"Import!E8442","v":0},{"$f":"Import!E8842","v":0},{"$f":"Import!E9242","v":0},{"$f":"Import!E9642","v":0},{"$f":"Import!E10042","v":0}]
[396,{"$f":"Import!E7243","v":"Select"},{"$f":"Import!E7643","v":"Select"},{"$f":"Import!E8043","v":"Select"},{"$f":"Import!E8443","v":0},{"$f":"Import!E8843","v":0},{"$f":"Import!E9243","v":0},{"$f":"Import!E9643","v":0},{"$f":"Import!E10043","v":0}]
[397,{"$f":"Import!E7244","v":"Select"},{"$f":"Import!E7644","v":"Select"},{"$f":"Import!E8044","v":"Select"},{"$f":"Import!E8444","v":0},{"$f":"Import!E8844","v":0},{"$f":"Import!E9244","v":0},{"$f":"Import!E9644","v":0},{"$f":"Import!E10044","v":0}]
[398,{"$f":"Import!E7245","v":"Select"},{"$f":"Import!E7645","v":"Select"},{"$f":"Import!E8045","v":"Select"},{"$f":"Import!E8445","v":0},{"$f":"Import!E8845","v":0},{"$f":"Import!E9245","v":0},{"$f":"Import!E9645","v":0},{"$f":"Import!E10045","v":0}]
[399,{"$f":"Import!E7246","v":"Select"},{"$f":"Import!E7646","v":"Select"},{"$f":"Import!E8046","v":"Select"},{"$f":"Import!E8446","v":0},{"$f":"Import!E8846","v":0},{"$f":"Import!E9246","v":0},{"$f":"Import!E9646","v":0},{"$f":"Import!E10046","v":0}]
[400,{"$f":"Import!E7247","v":"Select"},{"$f":"Import!E7647","v":"Select"},{"$f":"Import!E8047","v":"Select"},{"$f":"Import!E8447","v":0},{"$f":"Import!E8847","v":0},{"$f":"Import!E9247","v":0},{"$f":"Import!E9647","v":0},{"$f":"Import!E10047","v":0}]
[]
[null,"Total Bonds and Debentures",null,null,{"$f":"SUM(E219:E618)","v":0},{"$f":"SUM(F219:F618)","v":0},{"$f":"IFERROR(SUMPRODUCT(G219:G618,$F219:$F618)/SUM($F219:$F618),0)","v":0},{"$f":"IFERROR(SUMPRODUCT(H219:H618,$F219:$F618)/SUM($F219:$F618),0)","v":0}]
[]
[null,"- ADDITIONAL INFORMATION ON SOVEREIGN DEBT EXPOSURES"]
[]
[null,null,"Enter # of Asset Types",{"$f":"Import!E10048","v":0}]
[null,null,null,null,null,{"$f":"YEAR($C$3)","v":2023}]
[null,null,"Country","Currency","BSCR Rating","Fair Value","Comments"]
[null,1,{"$f":"Import!E10049","v":"Select"},{"$f":"Import!E10249","v":"Select"},{"$f":"Import!E10449","v":"Select"},{"$f":"Import!E10649","v":0},{"$f":"Import!E10849","v":0}]
[null,{"$f":"B627+1","v":2},{"$f":"Import!E10050","v":"Select"},{"$f":"Import!E10250","v":"Select"},{"$f":"Import!E10450","v":"Select"},{"$f":"Import!E10650","v":0},{"$f":"Import!E10850","v":0}]
[null,{"$f":"B628+1","v":3},{"$f":"Import!E10051","v":"Select"},{"$f":"Import!E10251","v":"Select"},{"$f":"Import!E10451","v":"Select"},{"$f":"Import!E10651","v":0},{"$f":"Import!E10851","v":0}]
[null,4,{"$f":"Import!E10052","v":"Select"},{"$f":"Import!E10252","v":"Select"},{"$f":"Import!E10452","v":"Select"},{"$f":"Import!E10652","v":0},{"$f":"Import!E10852","v":0}]
[null,5,{"$f":"Import!E10053","v":"Select"},{"$f":"Import!E10253","v":"Select"},{"$f":"Import!E10453","v":"Select"},{"$f":"Import!E10653","v":0},{"$f":"Import!E10853","v":0}]
[null,6,{"$f":"Import!E10054","v":"Select"},{"$f":"Import!E10254","v":"Select"},{"$f":"Import!E10454","v":"Select"},{"$f":"Import!E10654","v":0},{"$f":"Import!E10854","v":0}]
[null,7,{"$f":"Import!E10055","v":"Select"},{"$f":"Import!E10255","v":"Select"},{"$f":"Import!E10455","v":"Select"},{"$f":"Import!E10655","v":0},{"$f":"Import!E10855","v":0}]
[null,8,{"$f":"Import!E10056","v":"Select"},{"$f":"Import!E10256","v":"Select"},{"$f":"Import!E10456","v":"Select"},{"$f":"Import!E10656","v":0},{"$f":"Import!E10856","v":0}]
[null,9,{"$f":"Import!E10057","v":"Select"},{"$f":"Import!E10257","v":"Select"},{"$f":"Import!E10457","v":"Select"},{"$f":"Import!E10657","v":0},{"$f":"Import!E10857","v":0}]
[null,10,{"$f":"Import!E10058","v":"Select"},{"$f":"Import!E10258","v":"Select"},{"$f":"Import!E10458","v":"Select"},{"$f":"Import!E10658","v":0},{"$f":"Import!E10858","v":0}]
[null,11,{"$f":"Import!E10059","v":"Select"},{"$f":"Import!E10259","v":"Select"},{"$f":"Import!E10459","v":"Select"},{"$f":"Import!E10659","v":0},{"$f":"Import!E10859","v":0}]
[null,12,{"$f":"Import!E10060","v":"Select"},{"$f":"Import!E10260","v":"Select"},{"$f":"Import!E10460","v":"Select"},{"$f":"Import!E10660","v":0},{"$f":"Import!E10860","v":0}]
[null,13,{"$f":"Import!E10061","v":"Select"},{"$f":"Import!E10261","v":"Select"},{"$f":"Import!E10461","v":"Select"},{"$f":"Import!E10661","v":0},{"$f":"Import!E10861","v":0}]
[null,14,{"$f":"Import!E10062","v":"Select"},{"$f":"Import!E10262","v":"Select"},{"$f":"Import!E10462","v":"Select"},{"$f":"Import!E10662","v":0},{"$f":"Import!E10862","v":0}]
[null,15,{"$f":"Import!E10063","v":"Select"},{"$f":"Import!E10263","v":"Select"},{"$f":"Import!E10463","v":"Select"},{"$f":"Import!E10663","v":0},{"$f":"Import!E10863","v":0}]
[null,16,{"$f":"Import!E10064","v":"Select"},{"$f":"Import!E10264","v":"Select"},{"$f":"Import!E10464","v":"Select"},{"$f":"Import!E10664","v":0},{"$f":"Import!E10864","v":0}]
[null,17,{"$f":"Import!E10065","v":"Select"},{"$f":"Import!E10265","v":"Select"},{"$f":"Import!E10465","v":"Select"},{"$f":"Import!E10665","v":0},{"$f":"Import!E10865","v":0}]
[null,18,{"$f":"Import!E10066","v":"Select"},{"$f":"Import!E10266","v":"Select"},{"$f":"Import!E10466","v":"Select"},{"$f":"Import!E10666","v":0},{"$f":"Import!E10866","v":0}]
[null,19,{"$f":"Import!E10067","v":"Select"},{"$f":"Import!E10267","v":"Select"},{"$f":"Import!E10467","v":"Select"},{"$f":"Import!E10667","v":0},{"$f":"Import!E10867","v":0}]
[null,20,{"$f":"Import!E10068","v":"Select"},{"$f":"Import!E10268","v":"Select"},{"$f":"Import!E10468","v":"Select"},{"$f":"Import!E10668","v":0},{"$f":"Import!E10868","v":0}]
[null,21,{"$f":"Import!E10069","v":"Select"},{"$f":"Import!E10269","v":"Select"},{"$f":"Import!E10469","v":"Select"},{"$f":"Import!E10669","v":0},{"$f":"Import!E10869","v":0}]
[null,22,{"$f":"Import!E10070","v":"Select"},{"$f":"Import!E10270","v":"Select"},{"$f":"Import!E10470","v":"Select"},{"$f":"Import!E10670","v":0},{"$f":"Import!E10870","v":0}]
[null,23,{"$f":"Import!E10071","v":"Select"},{"$f":"Import!E10271","v":"Select"},{"$f":"Import!E10471","v":"Select"},{"$f":"Import!E10671","v":0},{"$f":"Import!E10871","v":0}]
[null,24,{"$f":"Import!E10072","v":"Select"},{"$f":"Import!E10272","v":"Select"},{"$f":"Import!E10472","v":"Select"},{"$f":"Import!E10672","v":0},{"$f":"Import!E10872","v":0}]
[null,25,{"$f":"Import!E10073","v":"Select"},{"$f":"Import!E10273","v":"Select"},{"$f":"Import!E10473","v":"Select"},{"$f":"Import!E10673","v":0},{"$f":"Import!E10873","v":0}]
[null,26,{"$f":"Import!E10074","v":"Select"},{"$f":"Import!E10274","v":"Select"},{"$f":"Import!E10474","v":"Select"},{"$f":"Import!E10674","v":0},{"$f":"Import!E10874","v":0}]
[null,27,{"$f":"Import!E10075","v":"Select"},{"$f":"Import!E10275","v":"Select"},{"$f":"Import!E10475","v":"Select"},{"$f":"Import!E10675","v":0},{"$f":"Import!E10875","v":0}]
[null,28,{"$f":"Import!E10076","v":"Select"},{"$f":"Import!E10276","v":"Select"},{"$f":"Import!E10476","v":"Select"},{"$f":"Import!E10676","v":0},{"$f":"Import!E10876","v":0}]
[null,29,{"$f":"Import!E10077","v":"Select"},{"$f":"Import!E10277","v":"Select"},{"$f":"Import!E10477","v":"Select"},{"$f":"Import!E10677","v":0},{"$f":"Import!E10877","v":0}]
[null,30,{"$f":"Import!E10078","v":"Select"},{"$f":"Import!E10278","v":"Select"},{"$f":"Import!E10478","v":"Select"},{"$f":"Import!E10678","v":0},{"$f":"Import!E10878","v":0}]
[null,31,{"$f":"Import!E10079","v":"Select"},{"$f":"Import!E10279","v":"Select"},{"$f":"Import!E10479","v":"Select"},{"$f":"Import!E10679","v":0},{"$f":"Import!E10879","v":0}]
[null,32,{"$f":"Import!E10080","v":"Select"},{"$f":"Import!E10280","v":"Select"},{"$f":"Import!E10480","v":"Select"},{"$f":"Import!E10680","v":0},{"$f":"Import!E10880","v":0}]
[null,33,{"$f":"Import!E10081","v":"Select"},{"$f":"Import!E10281","v":"Select"},{"$f":"Import!E10481","v":"Select"},{"$f":"Import!E10681","v":0},{"$f":"Import!E10881","v":0}]
[null,34,{"$f":"Import!E10082","v":"Select"},{"$f":"Import!E10282","v":"Select"},{"$f":"Import!E10482","v":"Select"},{"$f":"Import!E10682","v":0},{"$f":"Import!E10882","v":0}]
[null,35,{"$f":"Import!E10083","v":"Select"},{"$f":"Import!E10283","v":"Select"},{"$f":"Import!E10483","v":"Select"},{"$f":"Import!E10683","v":0},{"$f":"Import!E10883","v":0}]
[null,36,{"$f":"Import!E10084","v":"Select"},{"$f":"Import!E10284","v":"Select"},{"$f":"Import!E10484","v":"Select"},{"$f":"Import!E10684","v":0},{"$f":"Import!E10884","v":0}]
[null,37,{"$f":"Import!E10085","v":"Select"},{"$f":"Import!E10285","v":"Select"},{"$f":"Import!E10485","v":"Select"},{"$f":"Import!E10685","v":0},{"$f":"Import!E10885","v":0}]
[null,38,{"$f":"Import!E10086","v":"Select"},{"$f":"Import!E10286","v":"Select"},{"$f":"Import!E10486","v":"Select"},{"$f":"Import!E10686","v":0},{"$f":"Import!E10886","v":0}]
[null,39,{"$f":"Import!E10087","v":"Select"},{"$f":"Import!E10287","v":"Select"},{"$f":"Import!E10487","v":"Select"},{"$f":"Import!E10687","v":0},{"$f":"Import!E10887","v":0}]
[null,40,{"$f":"Import!E10088","v":"Select"},{"$f":"Import!E10288","v":"Select"},{"$f":"Import!E10488","v":"Select"},{"$f":"Import!E10688","v":0},{"$f":"Import!E10888","v":0}]
[null,41,{"$f":"Import!E10089","v":"Select"},{"$f":"Import!E10289","v":"Select"},{"$f":"Import!E10489","v":"Select"},{"$f":"Import!E10689","v":0},{"$f":"Import!E10889","v":0}]
[null,42,{"$f":"Import!E10090","v":"Select"},{"$f":"Import!E10290","v":"Select"},{"$f":"Import!E10490","v":"Select"},{"$f":"Import!E10690","v":0},{"$f":"Import!E10890","v":0}]
[null,43,{"$f":"Import!E10091","v":"Select"},{"$f":"Import!E10291","v":"Select"},{"$f":"Import!E10491","v":"Select"},{"$f":"Import!E10691","v":0},{"$f":"Import!E10891","v":0}]
[null,44,{"$f":"Import!E10092","v":"Select"},{"$f":"Import!E10292","v":"Select"},{"$f":"Import!E10492","v":"Select"},{"$f":"Import!E10692","v":0},{"$f":"Import!E10892","v":0}]
[null,45,{"$f":"Import!E10093","v":"Select"},{"$f":"Import!E10293","v":"Select"},{"$f":"Import!E10493","v":"Select"},{"$f":"Import!E10693","v":0},{"$f":"Import!E10893","v":0}]
[null,46,{"$f":"Import!E10094","v":"Select"},{"$f":"Import!E10294","v":"Select"},{"$f":"Import!E10494","v":"Select"},{"$f":"Import!E10694","v":0},{"$f":"Import!E10894","v":0}]
[null,47,{"$f":"Import!E10095","v":"Select"},{"$f":"Import!E10295","v":"Select"},{"$f":"Import!E10495","v":"Select"},{"$f":"Import!E10695","v":0},{"$f":"Import!E10895","v":0}]
[null,48,{"$f":"Import!E10096","v":"Select"},{"$f":"Import!E10296","v":"Select"},{"$f":"Import!E10496","v":"Select"},{"$f":"Import!E10696","v":0},{"$f":"Import!E10896","v":0}]
[null,49,{"$f":"Import!E10097","v":"Select"},{"$f":"Import!E10297","v":"Select"},{"$f":"Import!E10497","v":"Select"},{"$f":"Import!E10697","v":0},{"$f":"Import!E10897","v":0}]
[null,50,{"$f":"Import!E10098","v":"Select"},{"$f":"Import!E10298","v":"Select"},{"$f":"Import!E10498","v":"Select"},{"$f":"Import!E10698","v":0},{"$f":"Import!E10898","v":0}]
[null,51,{"$f":"Import!E10099","v":"Select"},{"$f":"Import!E10299","v":"Select"},{"$f":"Import!E10499","v":"Select"},{"$f":"Import!E10699","v":0},{"$f":"Import!E10899","v":0}]
[null,52,{"$f":"Import!E10100","v":"Select"},{"$f":"Import!E10300","v":"Select"},{"$f":"Import!E10500","v":"Select"},{"$f":"Import!E10700","v":0},{"$f":"Import!E10900","v":0}]
[null,53,{"$f":"Import!E10101","v":"Select"},{"$f":"Import!E10301","v":"Select"},{"$f":"Import!E10501","v":"Select"},{"$f":"Import!E10701","v":0},{"$f":"Import!E10901","v":0}]
[null,54,{"$f":"Import!E10102","v":"Select"},{"$f":"Import!E10302","v":"Select"},{"$f":"Import!E10502","v":"Select"},{"$f":"Import!E10702","v":0},{"$f":"Import!E10902","v":0}]
[null,55,{"$f":"Import!E10103","v":"Select"},{"$f":"Import!E10303","v":"Select"},{"$f":"Import!E10503","v":"Select"},{"$f":"Import!E10703","v":0},{"$f":"Import!E10903","v":0}]
[null,56,{"$f":"Import!E10104","v":"Select"},{"$f":"Import!E10304","v":"Select"},{"$f":"Import!E10504","v":"Select"},{"$f":"Import!E10704","v":0},{"$f":"Import!E10904","v":0}]
[null,57,{"$f":"Import!E10105","v":"Select"},{"$f":"Import!E10305","v":"Select"},{"$f":"Import!E10505","v":"Select"},{"$f":"Import!E10705","v":0},{"$f":"Import!E10905","v":0}]
[null,58,{"$f":"Import!E10106","v":"Select"},{"$f":"Import!E10306","v":"Select"},{"$f":"Import!E10506","v":"Select"},{"$f":"Import!E10706","v":0},{"$f":"Import!E10906","v":0}]
[null,59,{"$f":"Import!E10107","v":"Select"},{"$f":"Import!E10307","v":"Select"},{"$f":"Import!E10507","v":"Select"},{"$f":"Import!E10707","v":0},{"$f":"Import!E10907","v":0}]
[null,60,{"$f":"Import!E10108","v":"Select"},{"$f":"Import!E10308","v":"Select"},{"$f":"Import!E10508","v":"Select"},{"$f":"Import!E10708","v":0},{"$f":"Import!E10908","v":0}]
[null,61,{"$f":"Import!E10109","v":"Select"},{"$f":"Import!E10309","v":"Select"},{"$f":"Import!E10509","v":"Select"},{"$f":"Import!E10709","v":0},{"$f":"Import!E10909","v":0}]
[null,62,{"$f":"Import!E10110","v":"Select"},{"$f":"Import!E10310","v":"Select"},{"$f":"Import!E10510","v":"Select"},{"$f":"Import!E10710","v":0},{"$f":"Import!E10910","v":0}]
[null,63,{"$f":"Import!E10111","v":"Select"},{"$f":"Import!E10311","v":"Select"},{"$f":"Import!E10511","v":"Select"},{"$f":"Import!E10711","v":0},{"$f":"Import!E10911","v":0}]
[null,64,{"$f":"Import!E10112","v":"Select"},{"$f":"Import!E10312","v":"Select"},{"$f":"Import!E10512","v":"Select"},{"$f":"Import!E10712","v":0},{"$f":"Import!E10912","v":0}]
[null,65,{"$f":"Import!E10113","v":"Select"},{"$f":"Import!E10313","v":"Select"},{"$f":"Import!E10513","v":"Select"},{"$f":"Import!E10713","v":0},{"$f":"Import!E10913","v":0}]
[null,66,{"$f":"Import!E10114","v":"Select"},{"$f":"Import!E10314","v":"Select"},{"$f":"Import!E10514","v":"Select"},{"$f":"Import!E10714","v":0},{"$f":"Import!E10914","v":0}]
[null,{"$f":"B692+1","v":67},{"$f":"Import!E10115","v":"Select"},{"$f":"Import!E10315","v":"Select"},{"$f":"Import!E10515","v":"Select"},{"$f":"Import!E10715","v":0},{"$f":"Import!E10915","v":0}]
[null,68,{"$f":"Import!E10116","v":"Select"},{"$f":"Import!E10316","v":"Select"},{"$f":"Import!E10516","v":"Select"},{"$f":"Import!E10716","v":0},{"$f":"Import!E10916","v":0}]
[null,69,{"$f":"Import!E10117","v":"Select"},{"$f":"Import!E10317","v":"Select"},{"$f":"Import!E10517","v":"Select"},{"$f":"Import!E10717","v":0},{"$f":"Import!E10917","v":0}]
[null,70,{"$f":"Import!E10118","v":"Select"},{"$f":"Import!E10318","v":"Select"},{"$f":"Import!E10518","v":"Select"},{"$f":"Import!E10718","v":0},{"$f":"Import!E10918","v":0}]
[null,71,{"$f":"Import!E10119","v":"Select"},{"$f":"Import!E10319","v":"Select"},{"$f":"Import!E10519","v":"Select"},{"$f":"Import!E10719","v":0},{"$f":"Import!E10919","v":0}]
[null,72,{"$f":"Import!E10120","v":"Select"},{"$f":"Import!E10320","v":"Select"},{"$f":"Import!E10520","v":"Select"},{"$f":"Import!E10720","v":0},{"$f":"Import!E10920","v":0}]
[null,73,{"$f":"Import!E10121","v":"Select"},{"$f":"Import!E10321","v":"Select"},{"$f":"Import!E10521","v":"Select"},{"$f":"Import!E10721","v":0},{"$f":"Import!E10921","v":0}]
[null,74,{"$f":"Import!E10122","v":"Select"},{"$f":"Import!E10322","v":"Select"},{"$f":"Import!E10522","v":"Select"},{"$f":"Import!E10722","v":0},{"$f":"Import!E10922","v":0}]
[null,75,{"$f":"Import!E10123","v":"Select"},{"$f":"Import!E10323","v":"Select"},{"$f":"Import!E10523","v":"Select"},{"$f":"Import!E10723","v":0},{"$f":"Import!E10923","v":0}]
[null,76,{"$f":"Import!E10124","v":"Select"},{"$f":"Import!E10324","v":"Select"},{"$f":"Import!E10524","v":"Select"},{"$f":"Import!E10724","v":0},{"$f":"Import!E10924","v":0}]
[null,77,{"$f":"Import!E10125","v":"Select"},{"$f":"Import!E10325","v":"Select"},{"$f":"Import!E10525","v":"Select"},{"$f":"Import!E10725","v":0},{"$f":"Import!E10925","v":0}]
[null,78,{"$f":"Import!E10126","v":"Select"},{"$f":"Import!E10326","v":"Select"},{"$f":"Import!E10526","v":"Select"},{"$f":"Import!E10726","v":0},{"$f":"Import!E10926","v":0}]
[null,79,{"$f":"Import!E10127","v":"Select"},{"$f":"Import!E10327","v":"Select"},{"$f":"Import!E10527","v":"Select"},{"$f":"Import!E10727","v":0},{"$f":"Import!E10927","v":0}]
[null,80,{"$f":"Import!E10128","v":"Select"},{"$f":"Import!E10328","v":"Select"},{"$f":"Import!E10528","v":"Select"},{"$f":"Import!E10728","v":0},{"$f":"Import!E10928","v":0}]
[null,81,{"$f":"Import!E10129","v":"Select"},{"$f":"Import!E10329","v":"Select"},{"$f":"Import!E10529","v":"Select"},{"$f":"Import!E10729","v":0},{"$f":"Import!E10929","v":0}]
[null,82,{"$f":"Import!E10130","v":"Select"},{"$f":"Import!E10330","v":"Select"},{"$f":"Import!E10530","v":"Select"},{"$f":"Import!E10730","v":0},{"$f":"Import!E10930","v":0}]
[null,83,{"$f":"Import!E10131","v":"Select"},{"$f":"Import!E10331","v":"Select"},{"$f":"Import!E10531","v":"Select"},{"$f":"Import!E10731","v":0},{"$f":"Import!E10931","v":0}]
[null,84,{"$f":"Import!E10132","v":"Select"},{"$f":"Import!E10332","v":"Select"},{"$f":"Import!E10532","v":"Select"},{"$f":"Import!E10732","v":0},{"$f":"Import!E10932","v":0}]
[null,85,{"$f":"Import!E10133","v":"Select"},{"$f":"Import!E10333","v":"Select"},{"$f":"Import!E10533","v":"Select"},{"$f":"Import!E10733","v":0},{"$f":"Import!E10933","v":0}]
[null,86,{"$f":"Import!E10134","v":"Select"},{"$f":"Import!E10334","v":"Select"},{"$f":"Import!E10534","v":"Select"},{"$f":"Import!E10734","v":0},{"$f":"Import!E10934","v":0}]
[null,87,{"$f":"Import!E10135","v":"Select"},{"$f":"Import!E10335","v":"Select"},{"$f":"Import!E10535","v":"Select"},{"$f":"Import!E10735","v":0},{"$f":"Import!E10935","v":0}]
[null,88,{"$f":"Import!E10136","v":"Select"},{"$f":"Import!E10336","v":"Select"},{"$f":"Import!E10536","v":"Select"},{"$f":"Import!E10736","v":0},{"$f":"Import!E10936","v":0}]
[null,89,{"$f":"Import!E10137","v":"Select"},{"$f":"Import!E10337","v":"Select"},{"$f":"Import!E10537","v":"Select"},{"$f":"Import!E10737","v":0},{"$f":"Import!E10937","v":0}]
[null,90,{"$f":"Import!E10138","v":"Select"},{"$f":"Import!E10338","v":"Select"},{"$f":"Import!E10538","v":"Select"},{"$f":"Import!E10738","v":0},{"$f":"Import!E10938","v":0}]
[null,91,{"$f":"Import!E10139","v":"Select"},{"$f":"Import!E10339","v":"Select"},{"$f":"Import!E10539","v":"Select"},{"$f":"Import!E10739","v":0},{"$f":"Import!E10939","v":0}]
[null,92,{"$f":"Import!E10140","v":"Select"},{"$f":"Import!E10340","v":"Select"},{"$f":"Import!E10540","v":"Select"},{"$f":"Import!E10740","v":0},{"$f":"Import!E10940","v":0}]
[null,93,{"$f":"Import!E10141","v":"Select"},{"$f":"Import!E10341","v":"Select"},{"$f":"Import!E10541","v":"Select"},{"$f":"Import!E10741","v":0},{"$f":"Import!E10941","v":0}]
[null,94,{"$f":"Import!E10142","v":"Select"},{"$f":"Import!E10342","v":"Select"},{"$f":"Import!E10542","v":"Select"},{"$f":"Import!E10742","v":0},{"$f":"Import!E10942","v":0}]
[null,95,{"$f":"Import!E10143","v":"Select"},{"$f":"Import!E10343","v":"Select"},{"$f":"Import!E10543","v":"Select"},{"$f":"Import!E10743","v":0},{"$f":"Import!E10943","v":0}]
[null,96,{"$f":"Import!E10144","v":"Select"},{"$f":"Import!E10344","v":"Select"},{"$f":"Import!E10544","v":"Select"},{"$f":"Import!E10744","v":0},{"$f":"Import!E10944","v":0}]
[null,97,{"$f":"Import!E10145","v":"Select"},{"$f":"Import!E10345","v":"Select"},{"$f":"Import!E10545","v":"Select"},{"$f":"Import!E10745","v":0},{"$f":"Import!E10945","v":0}]
[null,98,{"$f":"Import!E10146","v":"Select"},{"$f":"Import!E10346","v":"Select"},{"$f":"Import!E10546","v":"Select"},{"$f":"Import!E10746","v":0},{"$f":"Import!E10946","v":0}]
[null,99,{"$f":"Import!E10147","v":"Select"},{"$f":"Import!E10347","v":"Select"},{"$f":"Import!E10547","v":"Select"},{"$f":"Import!E10747","v":0},{"$f":"Import!E10947","v":0}]
[null,100,{"$f":"Import!E10148","v":"Select"},{"$f":"Import!E10348","v":"Select"},{"$f":"Import!E10548","v":"Select"},{"$f":"Import!E10748","v":0},{"$f":"Import!E10948","v":0}]
[null,101,{"$f":"Import!E10149","v":"Select"},{"$f":"Import!E10349","v":"Select"},{"$f":"Import!E10549","v":"Select"},{"$f":"Import!E10749","v":0},{"$f":"Import!E10949","v":0}]
[null,102,{"$f":"Import!E10150","v":"Select"},{"$f":"Import!E10350","v":"Select"},{"$f":"Import!E10550","v":"Select"},{"$f":"Import!E10750","v":0},{"$f":"Import!E10950","v":0}]
[null,103,{"$f":"Import!E10151","v":"Select"},{"$f":"Import!E10351","v":"Select"},{"$f":"Import!E10551","v":"Select"},{"$f":"Import!E10751","v":0},{"$f":"Import!E10951","v":0}]
[null,104,{"$f":"Import!E10152","v":"Select"},{"$f":"Import!E10352","v":"Select"},{"$f":"Import!E10552","v":"Select"},{"$f":"Import!E10752","v":0},{"$f":"Import!E10952","v":0}]
[null,105,{"$f":"Import!E10153","v":"Select"},{"$f":"Import!E10353","v":"Select"},{"$f":"Import!E10553","v":"Select"},{"$f":"Import!E10753","v":0},{"$f":"Import!E10953","v":0}]
[null,106,{"$f":"Import!E10154","v":"Select"},{"$f":"Import!E10354","v":"Select"},{"$f":"Import!E10554","v":"Select"},{"$f":"Import!E10754","v":0},{"$f":"Import!E10954","v":0}]
[null,107,{"$f":"Import!E10155","v":"Select"},{"$f":"Import!E10355","v":"Select"},{"$f":"Import!E10555","v":"Select"},{"$f":"Import!E10755","v":0},{"$f":"Import!E10955","v":0}]
[null,108,{"$f":"Import!E10156","v":"Select"},{"$f":"Import!E10356","v":"Select"},{"$f":"Import!E10556","v":"Select"},{"$f":"Import!E10756","v":0},{"$f":"Import!E10956","v":0}]
[null,109,{"$f":"Import!E10157","v":"Select"},{"$f":"Import!E10357","v":"Select"},{"$f":"Import!E10557","v":"Select"},{"$f":"Import!E10757","v":0},{"$f":"Import!E10957","v":0}]
[null,110,{"$f":"Import!E10158","v":"Select"},{"$f":"Import!E10358","v":"Select"},{"$f":"Import!E10558","v":"Select"},{"$f":"Import!E10758","v":0},{"$f":"Import!E10958","v":0}]
[null,111,{"$f":"Import!E10159","v":"Select"},{"$f":"Import!E10359","v":"Select"},{"$f":"Import!E10559","v":"Select"},{"$f":"Import!E10759","v":0},{"$f":"Import!E10959","v":0}]
[null,112,{"$f":"Import!E10160","v":"Select"},{"$f":"Import!E10360","v":"Select"},{"$f":"Import!E10560","v":"Select"},{"$f":"Import!E10760","v":0},{"$f":"Import!E10960","v":0}]
[null,113,{"$f":"Import!E10161","v":"Select"},{"$f":"Import!E10361","v":"Select"},{"$f":"Import!E10561","v":"Select"},{"$f":"Import!E10761","v":0},{"$f":"Import!E10961","v":0}]
[null,114,{"$f":"Import!E10162","v":"Select"},{"$f":"Import!E10362","v":"Select"},{"$f":"Import!E10562","v":"Select"},{"$f":"Import!E10762","v":0},{"$f":"Import!E10962","v":0}]
[null,115,{"$f":"Import!E10163","v":"Select"},{"$f":"Import!E10363","v":"Select"},{"$f":"Import!E10563","v":"Select"},{"$f":"Import!E10763","v":0},{"$f":"Import!E10963","v":0}]
[null,116,{"$f":"Import!E10164","v":"Select"},{"$f":"Import!E10364","v":"Select"},{"$f":"Import!E10564","v":"Select"},{"$f":"Import!E10764","v":0},{"$f":"Import!E10964","v":0}]
[null,117,{"$f":"Import!E10165","v":"Select"},{"$f":"Import!E10365","v":"Select"},{"$f":"Import!E10565","v":"Select"},{"$f":"Import!E10765","v":0},{"$f":"Import!E10965","v":0}]
[null,118,{"$f":"Import!E10166","v":"Select"},{"$f":"Import!E10366","v":"Select"},{"$f":"Import!E10566","v":"Select"},{"$f":"Import!E10766","v":0},{"$f":"Import!E10966","v":0}]
[null,119,{"$f":"Import!E10167","v":"Select"},{"$f":"Import!E10367","v":"Select"},{"$f":"Import!E10567","v":"Select"},{"$f":"Import!E10767","v":0},{"$f":"Import!E10967","v":0}]
[null,120,{"$f":"Import!E10168","v":"Select"},{"$f":"Import!E10368","v":"Select"},{"$f":"Import!E10568","v":"Select"},{"$f":"Import!E10768","v":0},{"$f":"Import!E10968","v":0}]
[null,121,{"$f":"Import!E10169","v":"Select"},{"$f":"Import!E10369","v":"Select"},{"$f":"Import!E10569","v":"Select"},{"$f":"Import!E10769","v":0},{"$f":"Import!E10969","v":0}]
[null,122,{"$f":"Import!E10170","v":"Select"},{"$f":"Import!E10370","v":"Select"},{"$f":"Import!E10570","v":"Select"},{"$f":"Import!E10770","v":0},{"$f":"Import!E10970","v":0}]
[null,123,{"$f":"Import!E10171","v":"Select"},{"$f":"Import!E10371","v":"Select"},{"$f":"Import!E10571","v":"Select"},{"$f":"Import!E10771","v":0},{"$f":"Import!E10971","v":0}]
[null,124,{"$f":"Import!E10172","v":"Select"},{"$f":"Import!E10372","v":"Select"},{"$f":"Import!E10572","v":"Select"},{"$f":"Import!E10772","v":0},{"$f":"Import!E10972","v":0}]
[null,125,{"$f":"Import!E10173","v":"Select"},{"$f":"Import!E10373","v":"Select"},{"$f":"Import!E10573","v":"Select"},{"$f":"Import!E10773","v":0},{"$f":"Import!E10973","v":0}]
[null,126,{"$f":"Import!E10174","v":"Select"},{"$f":"Import!E10374","v":"Select"},{"$f":"Import!E10574","v":"Select"},{"$f":"Import!E10774","v":0},{"$f":"Import!E10974","v":0}]
[null,127,{"$f":"Import!E10175","v":"Select"},{"$f":"Import!E10375","v":"Select"},{"$f":"Import!E10575","v":"Select"},{"$f":"Import!E10775","v":0},{"$f":"Import!E10975","v":0}]
[null,128,{"$f":"Import!E10176","v":"Select"},{"$f":"Import!E10376","v":"Select"},{"$f":"Import!E10576","v":"Select"},{"$f":"Import!E10776","v":0},{"$f":"Import!E10976","v":0}]
[null,129,{"$f":"Import!E10177","v":"Select"},{"$f":"Import!E10377","v":"Select"},{"$f":"Import!E10577","v":"Select"},{"$f":"Import!E10777","v":0},{"$f":"Import!E10977","v":0}]
[null,130,{"$f":"Import!E10178","v":"Select"},{"$f":"Import!E10378","v":"Select"},{"$f":"Import!E10578","v":"Select"},{"$f":"Import!E10778","v":0},{"$f":"Import!E10978","v":0}]
[null,{"$f":"B756+1","v":131},{"$f":"Import!E10179","v":"Select"},{"$f":"Import!E10379","v":"Select"},{"$f":"Import!E10579","v":"Select"},{"$f":"Import!E10779","v":0},{"$f":"Import!E10979","v":0}]
[null,132,{"$f":"Import!E10180","v":"Select"},{"$f":"Import!E10380","v":"Select"},{"$f":"Import!E10580","v":"Select"},{"$f":"Import!E10780","v":0},{"$f":"Import!E10980","v":0}]
[null,133,{"$f":"Import!E10181","v":"Select"},{"$f":"Import!E10381","v":"Select"},{"$f":"Import!E10581","v":"Select"},{"$f":"Import!E10781","v":0},{"$f":"Import!E10981","v":0}]
[null,134,{"$f":"Import!E10182","v":"Select"},{"$f":"Import!E10382","v":"Select"},{"$f":"Import!E10582","v":"Select"},{"$f":"Import!E10782","v":0},{"$f":"Import!E10982","v":0}]
[null,135,{"$f":"Import!E10183","v":"Select"},{"$f":"Import!E10383","v":"Select"},{"$f":"Import!E10583","v":"Select"},{"$f":"Import!E10783","v":0},{"$f":"Import!E10983","v":0}]
[null,136,{"$f":"Import!E10184","v":"Select"},{"$f":"Import!E10384","v":"Select"},{"$f":"Import!E10584","v":"Select"},{"$f":"Import!E10784","v":0},{"$f":"Import!E10984","v":0}]
[null,137,{"$f":"Import!E10185","v":"Select"},{"$f":"Import!E10385","v":"Select"},{"$f":"Import!E10585","v":"Select"},{"$f":"Import!E10785","v":0},{"$f":"Import!E10985","v":0}]
[null,138,{"$f":"Import!E10186","v":"Select"},{"$f":"Import!E10386","v":"Select"},{"$f":"Import!E10586","v":"Select"},{"$f":"Import!E10786","v":0},{"$f":"Import!E10986","v":0}]
[null,139,{"$f":"Import!E10187","v":"Select"},{"$f":"Import!E10387","v":"Select"},{"$f":"Import!E10587","v":"Select"},{"$f":"Import!E10787","v":0},{"$f":"Import!E10987","v":0}]
[null,140,{"$f":"Import!E10188","v":"Select"},{"$f":"Import!E10388","v":"Select"},{"$f":"Import!E10588","v":"Select"},{"$f":"Import!E10788","v":0},{"$f":"Import!E10988","v":0}]
[null,141,{"$f":"Import!E10189","v":"Select"},{"$f":"Import!E10389","v":"Select"},{"$f":"Import!E10589","v":"Select"},{"$f":"Import!E10789","v":0},{"$f":"Import!E10989","v":0}]
[null,142,{"$f":"Import!E10190","v":"Select"},{"$f":"Import!E10390","v":"Select"},{"$f":"Import!E10590","v":"Select"},{"$f":"Import!E10790","v":0},{"$f":"Import!E10990","v":0}]
[null,143,{"$f":"Import!E10191","v":"Select"},{"$f":"Import!E10391","v":"Select"},{"$f":"Import!E10591","v":"Select"},{"$f":"Import!E10791","v":0},{"$f":"Import!E10991","v":0}]
[null,144,{"$f":"Import!E10192","v":"Select"},{"$f":"Import!E10392","v":"Select"},{"$f":"Import!E10592","v":"Select"},{"$f":"Import!E10792","v":0},{"$f":"Import!E10992","v":0}]
[null,145,{"$f":"Import!E10193","v":"Select"},{"$f":"Import!E10393","v":"Select"},{"$f":"Import!E10593","v":"Select"},{"$f":"Import!E10793","v":0},{"$f":"Import!E10993","v":0}]
[null,146,{"$f":"Import!E10194","v":"Select"},{"$f":"Import!E10394","v":"Select"},{"$f":"Import!E10594","v":"Select"},{"$f":"Import!E10794","v":0},{"$f":"Import!E10994","v":0}]
[null,147,{"$f":"Import!E10195","v":"Select"},{"$f":"Import!E10395","v":"Select"},{"$f":"Import!E10595","v":"Select"},{"$f":"Import!E10795","v":0},{"$f":"Import!E10995","v":0}]
[null,148,{"$f":"Import!E10196","v":"Select"},{"$f":"Import!E10396","v":"Select"},{"$f":"Import!E10596","v":"Select"},{"$f":"Import!E10796","v":0},{"$f":"Import!E10996","v":0}]
[null,149,{"$f":"Import!E10197","v":"Select"},{"$f":"Import!E10397","v":"Select"},{"$f":"Import!E10597","v":"Select"},{"$f":"Import!E10797","v":0},{"$f":"Import!E10997","v":0}]
[null,150,{"$f":"Import!E10198","v":"Select"},{"$f":"Import!E10398","v":"Select"},{"$f":"Import!E10598","v":"Select"},{"$f":"Import!E10798","v":0},{"$f":"Import!E10998","v":0}]
[null,151,{"$f":"Import!E10199","v":"Select"},{"$f":"Import!E10399","v":"Select"},{"$f":"Import!E10599","v":"Select"},{"$f":"Import!E10799","v":0},{"$f":"Import!E10999","v":0}]
[null,152,{"$f":"Import!E10200","v":"Select"},{"$f":"Import!E10400","v":"Select"},{"$f":"Import!E10600","v":"Select"},{"$f":"Import!E10800","v":0},{"$f":"Import!E11000","v":0}]
[null,153,{"$f":"Import!E10201","v":"Select"},{"$f":"Import!E10401","v":"Select"},{"$f":"Import!E10601","v":"Select"},{"$f":"Import!E10801","v":0},{"$f":"Import!E11001","v":0}]
[null,154,{"$f":"Import!E10202","v":"Select"},{"$f":"Import!E10402","v":"Select"},{"$f":"Import!E10602","v":"Select"},{"$f":"Import!E10802","v":0},{"$f":"Import!E11002","v":0}]
[null,155,{"$f":"Import!E10203","v":"Select"},{"$f":"Import!E10403","v":"Select"},{"$f":"Import!E10603","v":"Select"},{"$f":"Import!E10803","v":0},{"$f":"Import!E11003","v":0}]
[null,156,{"$f":"Import!E10204","v":"Select"},{"$f":"Import!E10404","v":"Select"},{"$f":"Import!E10604","v":"Select"},{"$f":"Import!E10804","v":0},{"$f":"Import!E11004","v":0}]
[null,157,{"$f":"Import!E10205","v":"Select"},{"$f":"Import!E10405","v":"Select"},{"$f":"Import!E10605","v":"Select"},{"$f":"Import!E10805","v":0},{"$f":"Import!E11005","v":0}]
[null,158,{"$f":"Import!E10206","v":"Select"},{"$f":"Import!E10406","v":"Select"},{"$f":"Import!E10606","v":"Select"},{"$f":"Import!E10806","v":0},{"$f":"Import!E11006","v":0}]
[null,159,{"$f":"Import!E10207","v":"Select"},{"$f":"Import!E10407","v":"Select"},{"$f":"Import!E10607","v":"Select"},{"$f":"Import!E10807","v":0},{"$f":"Import!E11007","v":0}]
[null,160,{"$f":"Import!E10208","v":"Select"},{"$f":"Import!E10408","v":"Select"},{"$f":"Import!E10608","v":"Select"},{"$f":"Import!E10808","v":0},{"$f":"Import!E11008","v":0}]
[null,161,{"$f":"Import!E10209","v":"Select"},{"$f":"Import!E10409","v":"Select"},{"$f":"Import!E10609","v":"Select"},{"$f":"Import!E10809","v":0},{"$f":"Import!E11009","v":0}]
[null,162,{"$f":"Import!E10210","v":"Select"},{"$f":"Import!E10410","v":"Select"},{"$f":"Import!E10610","v":"Select"},{"$f":"Import!E10810","v":0},{"$f":"Import!E11010","v":0}]
[null,163,{"$f":"Import!E10211","v":"Select"},{"$f":"Import!E10411","v":"Select"},{"$f":"Import!E10611","v":"Select"},{"$f":"Import!E10811","v":0},{"$f":"Import!E11011","v":0}]
[null,164,{"$f":"Import!E10212","v":"Select"},{"$f":"Import!E10412","v":"Select"},{"$f":"Import!E10612","v":"Select"},{"$f":"Import!E10812","v":0},{"$f":"Import!E11012","v":0}]
[null,165,{"$f":"Import!E10213","v":"Select"},{"$f":"Import!E10413","v":"Select"},{"$f":"Import!E10613","v":"Select"},{"$f":"Import!E10813","v":0},{"$f":"Import!E11013","v":0}]
[null,166,{"$f":"Import!E10214","v":"Select"},{"$f":"Import!E10414","v":"Select"},{"$f":"Import!E10614","v":"Select"},{"$f":"Import!E10814","v":0},{"$f":"Import!E11014","v":0}]
[null,167,{"$f":"Import!E10215","v":"Select"},{"$f":"Import!E10415","v":"Select"},{"$f":"Import!E10615","v":"Select"},{"$f":"Import!E10815","v":0},{"$f":"Import!E11015","v":0}]
[null,168,{"$f":"Import!E10216","v":"Select"},{"$f":"Import!E10416","v":"Select"},{"$f":"Import!E10616","v":"Select"},{"$f":"Import!E10816","v":0},{"$f":"Import!E11016","v":0}]
[null,169,{"$f":"Import!E10217","v":"Select"},{"$f":"Import!E10417","v":"Select"},{"$f":"Import!E10617","v":"Select"},{"$f":"Import!E10817","v":0},{"$f":"Import!E11017","v":0}]
[null,170,{"$f":"Import!E10218","v":"Select"},{"$f":"Import!E10418","v":"Select"},{"$f":"Import!E10618","v":"Select"},{"$f":"Import!E10818","v":0},{"$f":"Import!E11018","v":0}]
[null,171,{"$f":"Import!E10219","v":"Select"},{"$f":"Import!E10419","v":"Select"},{"$f":"Import!E10619","v":"Select"},{"$f":"Import!E10819","v":0},{"$f":"Import!E11019","v":0}]
[null,172,{"$f":"Import!E10220","v":"Select"},{"$f":"Import!E10420","v":"Select"},{"$f":"Import!E10620","v":"Select"},{"$f":"Import!E10820","v":0},{"$f":"Import!E11020","v":0}]
[null,173,{"$f":"Import!E10221","v":"Select"},{"$f":"Import!E10421","v":"Select"},{"$f":"Import!E10621","v":"Select"},{"$f":"Import!E10821","v":0},{"$f":"Import!E11021","v":0}]
[null,174,{"$f":"Import!E10222","v":"Select"},{"$f":"Import!E10422","v":"Select"},{"$f":"Import!E10622","v":"Select"},{"$f":"Import!E10822","v":0},{"$f":"Import!E11022","v":0}]
[null,175,{"$f":"Import!E10223","v":"Select"},{"$f":"Import!E10423","v":"Select"},{"$f":"Import!E10623","v":"Select"},{"$f":"Import!E10823","v":0},{"$f":"Import!E11023","v":0}]
[null,176,{"$f":"Import!E10224","v":"Select"},{"$f":"Import!E10424","v":"Select"},{"$f":"Import!E10624","v":"Select"},{"$f":"Import!E10824","v":0},{"$f":"Import!E11024","v":0}]
[null,177,{"$f":"Import!E10225","v":"Select"},{"$f":"Import!E10425","v":"Select"},{"$f":"Import!E10625","v":"Select"},{"$f":"Import!E10825","v":0},{"$f":"Import!E11025","v":0}]
[null,178,{"$f":"Import!E10226","v":"Select"},{"$f":"Import!E10426","v":"Select"},{"$f":"Import!E10626","v":"Select"},{"$f":"Import!E10826","v":0},{"$f":"Import!E11026","v":0}]
[null,179,{"$f":"Import!E10227","v":"Select"},{"$f":"Import!E10427","v":"Select"},{"$f":"Import!E10627","v":"Select"},{"$f":"Import!E10827","v":0},{"$f":"Import!E11027","v":0}]
[null,180,{"$f":"Import!E10228","v":"Select"},{"$f":"Import!E10428","v":"Select"},{"$f":"Import!E10628","v":"Select"},{"$f":"Import!E10828","v":0},{"$f":"Import!E11028","v":0}]
[null,181,{"$f":"Import!E10229","v":"Select"},{"$f":"Import!E10429","v":"Select"},{"$f":"Import!E10629","v":"Select"},{"$f":"Import!E10829","v":0},{"$f":"Import!E11029","v":0}]
[null,182,{"$f":"Import!E10230","v":"Select"},{"$f":"Import!E10430","v":"Select"},{"$f":"Import!E10630","v":"Select"},{"$f":"Import!E10830","v":0},{"$f":"Import!E11030","v":0}]
[null,183,{"$f":"Import!E10231","v":"Select"},{"$f":"Import!E10431","v":"Select"},{"$f":"Import!E10631","v":"Select"},{"$f":"Import!E10831","v":0},{"$f":"Import!E11031","v":0}]
[null,184,{"$f":"Import!E10232","v":"Select"},{"$f":"Import!E10432","v":"Select"},{"$f":"Import!E10632","v":"Select"},{"$f":"Import!E10832","v":0},{"$f":"Import!E11032","v":0}]
[null,185,{"$f":"Import!E10233","v":"Select"},{"$f":"Import!E10433","v":"Select"},{"$f":"Import!E10633","v":"Select"},{"$f":"Import!E10833","v":0},{"$f":"Import!E11033","v":0}]
[null,186,{"$f":"Import!E10234","v":"Select"},{"$f":"Import!E10434","v":"Select"},{"$f":"Import!E10634","v":"Select"},{"$f":"Import!E10834","v":0},{"$f":"Import!E11034","v":0}]
[null,187,{"$f":"Import!E10235","v":"Select"},{"$f":"Import!E10435","v":"Select"},{"$f":"Import!E10635","v":"Select"},{"$f":"Import!E10835","v":0},{"$f":"Import!E11035","v":0}]
[null,188,{"$f":"Import!E10236","v":"Select"},{"$f":"Import!E10436","v":"Select"},{"$f":"Import!E10636","v":"Select"},{"$f":"Import!E10836","v":0},{"$f":"Import!E11036","v":0}]
[null,189,{"$f":"Import!E10237","v":"Select"},{"$f":"Import!E10437","v":"Select"},{"$f":"Import!E10637","v":"Select"},{"$f":"Import!E10837","v":0},{"$f":"Import!E11037","v":0}]
[null,190,{"$f":"Import!E10238","v":"Select"},{"$f":"Import!E10438","v":"Select"},{"$f":"Import!E10638","v":"Select"},{"$f":"Import!E10838","v":0},{"$f":"Import!E11038","v":0}]
[null,191,{"$f":"Import!E10239","v":"Select"},{"$f":"Import!E10439","v":"Select"},{"$f":"Import!E10639","v":"Select"},{"$f":"Import!E10839","v":0},{"$f":"Import!E11039","v":0}]
[null,192,{"$f":"Import!E10240","v":"Select"},{"$f":"Import!E10440","v":"Select"},{"$f":"Import!E10640","v":"Select"},{"$f":"Import!E10840","v":0},{"$f":"Import!E11040","v":0}]
[null,193,{"$f":"Import!E10241","v":"Select"},{"$f":"Import!E10441","v":"Select"},{"$f":"Import!E10641","v":"Select"},{"$f":"Import!E10841","v":0},{"$f":"Import!E11041","v":0}]
[null,194,{"$f":"Import!E10242","v":"Select"},{"$f":"Import!E10442","v":"Select"},{"$f":"Import!E10642","v":"Select"},{"$f":"Import!E10842","v":0},{"$f":"Import!E11042","v":0}]
[null,{"$f":"B820+1","v":195},{"$f":"Import!E10243","v":"Select"},{"$f":"Import!E10443","v":"Select"},{"$f":"Import!E10643","v":"Select"},{"$f":"Import!E10843","v":0},{"$f":"Import!E11043","v":0}]
[null,196,{"$f":"Import!E10244","v":"Select"},{"$f":"Import!E10444","v":"Select"},{"$f":"Import!E10644","v":"Select"},{"$f":"Import!E10844","v":0},{"$f":"Import!E11044","v":0}]
[null,197,{"$f":"Import!E10245","v":"Select"},{"$f":"Import!E10445","v":"Select"},{"$f":"Import!E10645","v":"Select"},{"$f":"Import!E10845","v":0},{"$f":"Import!E11045","v":0}]
[null,198,{"$f":"Import!E10246","v":"Select"},{"$f":"Import!E10446","v":"Select"},{"$f":"Import!E10646","v":"Select"},{"$f":"Import!E10846","v":0},{"$f":"Import!E11046","v":0}]
[null,199,{"$f":"Import!E10247","v":"Select"},{"$f":"Import!E10447","v":"Select"},{"$f":"Import!E10647","v":"Select"},{"$f":"Import!E10847","v":0},{"$f":"Import!E11047","v":0}]
[null,200,{"$f":"Import!E10248","v":"Select"},{"$f":"Import!E10448","v":"Select"},{"$f":"Import!E10648","v":"Select"},{"$f":"Import!E10848","v":0},{"$f":"Import!E11048","v":0}]
[]
[null,null,null,null,null,{"$f":"SUM(F627:F826)","v":0}]
[]
[null,"(C) ASSET-BACKED AND STRUCTURED SECURITIES"]
[]
[null,null,"Enter # of Asset Types",{"$f":"Import!E11049","v":0}]
[null,null,null,null,{"$f":"YEAR($C$3)","v":2023},2023,"Weighted"]
[null,"Asset Type","Currency","BSCR Rating","Nominal Amount","Fair Value","Average YTM","Effective Duration","Comments"]
[1,{"$f":"Import!E11050","v":"Select"},{"$f":"Import!E11200","v":"Select"},{"$f":"Import!E11350","v":"Select"},{"$f":"Import!E11500","v":0},{"$f":"Import!E11650","v":0},{"$f":"Import!E11800","v":0},{"$f":"Import!E11950","v":0},{"$f":"Import!E12100","v":0}]
[{"$f":"A835+1","v":2},{"$f":"Import!E11051","v":"Select"},{"$f":"Import!E11201","v":"Select"},{"$f":"Import!E11351","v":"Select"},{"$f":"Import!E11501","v":0},{"$f":"Import!E11651","v":0},{"$f":"Import!E11801","v":0},{"$f":"Import!E11951","v":0},{"$f":"Import!E12101","v":0}]
[{"$f":"A836+1","v":3},{"$f":"Import!E11052","v":"Select"},{"$f":"Import!E11202","v":"Select"},{"$f":"Import!E11352","v":"Select"},{"$f":"Import!E11502","v":0},{"$f":"Import!E11652","v":0},{"$f":"Import!E11802","v":0},{"$f":"Import!E11952","v":0},{"$f":"Import!E12102","v":0}]
[4,{"$f":"Import!E11053","v":"Select"},{"$f":"Import!E11203","v":"Select"},{"$f":"Import!E11353","v":"Select"},{"$f":"Import!E11503","v":0},{"$f":"Import!E11653","v":0},{"$f":"Import!E11803","v":0},{"$f":"Import!E11953","v":0},{"$f":"Import!E12103","v":0}]
[5,{"$f":"Import!E11054","v":"Select"},{"$f":"Import!E11204","v":"Select"},{"$f":"Import!E11354","v":"Select"},{"$f":"Import!E11504","v":0},{"$f":"Import!E11654","v":0},{"$f":"Import!E11804","v":0},{"$f":"Import!E11954","v":0},{"$f":"Import!E12104","v":0}]
[6,{"$f":"Import!E11055","v":"Select"},{"$f":"Import!E11205","v":"Select"},{"$f":"Import!E11355","v":"Select"},{"$f":"Import!E11505","v":0},{"$f":"Import!E11655","v":0},{"$f":"Import!E11805","v":0},{"$f":"Import!E11955","v":0},{"$f":"Import!E12105","v":0}]
[7,{"$f":"Import!E11056","v":"Select"},{"$f":"Import!E11206","v":"Select"},{"$f":"Import!E11356","v":"Select"},{"$f":"Import!E11506","v":0},{"$f":"Import!E11656","v":0},{"$f":"Import!E11806","v":0},{"$f":"Import!E11956","v":0},{"$f":"Import!E12106","v":0}]
[8,{"$f":"Import!E11057","v":"Select"},{"$f":"Import!E11207","v":"Select"},{"$f":"Import!E11357","v":"Select"},{"$f":"Import!E11507","v":0},{"$f":"Import!E11657","v":0},{"$f":"Import!E11807","v":0},{"$f":"Import!E11957","v":0},{"$f":"Import!E12107","v":0}]
[9,{"$f":"Import!E11058","v":"Select"},{"$f":"Import!E11208","v":"Select"},{"$f":"Import!E11358","v":"Select"},{"$f":"Import!E11508","v":0},{"$f":"Import!E11658","v":0},{"$f":"Import!E11808","v":0},{"$f":"Import!E11958","v":0},{"$f":"Import!E12108","v":0}]
[10,{"$f":"Import!E11059","v":"Select"},{"$f":"Import!E11209","v":"Select"},{"$f":"Import!E11359","v":"Select"},{"$f":"Import!E11509","v":0},{"$f":"Import!E11659","v":0},{"$f":"Import!E11809","v":0},{"$f":"Import!E11959","v":0},{"$f":"Import!E12109","v":0}]
[11,{"$f":"Import!E11060","v":"Select"},{"$f":"Import!E11210","v":"Select"},{"$f":"Import!E11360","v":"Select"},{"$f":"Import!E11510","v":0},{"$f":"Import!E11660","v":0},{"$f":"Import!E11810","v":0},{"$f":"Import!E11960","v":0},{"$f":"Import!E12110","v":0}]
[12,{"$f":"Import!E11061","v":"Select"},{"$f":"Import!E11211","v":"Select"},{"$f":"Import!E11361","v":"Select"},{"$f":"Import!E11511","v":0},{"$f":"Import!E11661","v":0},{"$f":"Import!E11811","v":0},{"$f":"Import!E11961","v":0},{"$f":"Import!E12111","v":0}]
[13,{"$f":"Import!E11062","v":"Select"},{"$f":"Import!E11212","v":"Select"},{"$f":"Import!E11362","v":"Select"},{"$f":"Import!E11512","v":0},{"$f":"Import!E11662","v":0},{"$f":"Import!E11812","v":0},{"$f":"Import!E11962","v":0},{"$f":"Import!E12112","v":0}]
[14,{"$f":"Import!E11063","v":"Select"},{"$f":"Import!E11213","v":"Select"},{"$f":"Import!E11363","v":"Select"},{"$f":"Import!E11513","v":0},{"$f":"Import!E11663","v":0},{"$f":"Import!E11813","v":0},{"$f":"Import!E11963","v":0},{"$f":"Import!E12113","v":0}]
[15,{"$f":"Import!E11064","v":"Select"},{"$f":"Import!E11214","v":"Select"},{"$f":"Import!E11364","v":"Select"},{"$f":"Import!E11514","v":0},{"$f":"Import!E11664","v":0},{"$f":"Import!E11814","v":0},{"$f":"Import!E11964","v":0},{"$f":"Import!E12114","v":0}]
[16,{"$f":"Import!E11065","v":"Select"},{"$f":"Import!E11215","v":"Select"},{"$f":"Import!E11365","v":"Select"},{"$f":"Import!E11515","v":0},{"$f":"Import!E11665","v":0},{"$f":"Import!E11815","v":0},{"$f":"Import!E11965","v":0},{"$f":"Import!E12115","v":0}]
[17,{"$f":"Import!E11066","v":"Select"},{"$f":"Import!E11216","v":"Select"},{"$f":"Import!E11366","v":"Select"},{"$f":"Import!E11516","v":0},{"$f":"Import!E11666","v":0},{"$f":"Import!E11816","v":0},{"$f":"Import!E11966","v":0},{"$f":"Import!E12116","v":0}]
[18,{"$f":"Import!E11067","v":"Select"},{"$f":"Import!E11217","v":"Select"},{"$f":"Import!E11367","v":"Select"},{"$f":"Import!E11517","v":0},{"$f":"Import!E11667","v":0},{"$f":"Import!E11817","v":0},{"$f":"Import!E11967","v":0},{"$f":"Import!E12117","v":0}]
[19,{"$f":"Import!E11068","v":"Select"},{"$f":"Import!E11218","v":"Select"},{"$f":"Import!E11368","v":"Select"},{"$f":"Import!E11518","v":0},{"$f":"Import!E11668","v":0},{"$f":"Import!E11818","v":0},{"$f":"Import!E11968","v":0},{"$f":"Import!E12118","v":0}]
[20,{"$f":"Import!E11069","v":"Select"},{"$f":"Import!E11219","v":"Select"},{"$f":"Import!E11369","v":"Select"},{"$f":"Import!E11519","v":0},{"$f":"Import!E11669","v":0},{"$f":"Import!E11819","v":0},{"$f":"Import!E11969","v":0},{"$f":"Import!E12119","v":0}]
[21,{"$f":"Import!E11070","v":"Select"},{"$f":"Import!E11220","v":"Select"},{"$f":"Import!E11370","v":"Select"},{"$f":"Import!E11520","v":0},{"$f":"Import!E11670","v":0},{"$f":"Import!E11820","v":0},{"$f":"Import!E11970","v":0},{"$f":"Import!E12120","v":0}]
[22,{"$f":"Import!E11071","v":"Select"},{"$f":"Import!E11221","v":"Select"},{"$f":"Import!E11371","v":"Select"},{"$f":"Import!E11521","v":0},{"$f":"Import!E11671","v":0},{"$f":"Import!E11821","v":0},{"$f":"Import!E11971","v":0},{"$f":"Import!E12121","v":0}]
[23,{"$f":"Import!E11072","v":"Select"},{"$f":"Import!E11222","v":"Select"},{"$f":"Import!E11372","v":"Select"},{"$f":"Import!E11522","v":0},{"$f":"Import!E11672","v":0},{"$f":"Import!E11822","v":0},{"$f":"Import!E11972","v":0},{"$f":"Import!E12122","v":0}]
[24,{"$f":"Import!E11073","v":"Select"},{"$f":"Import!E11223","v":"Select"},{"$f":"Import!E11373","v":"Select"},{"$f":"Import!E11523","v":0},{"$f":"Import!E11673","v":0},{"$f":"Import!E11823","v":0},{"$f":"Import!E11973","v":0},{"$f":"Import!E12123","v":0}]
[25,{"$f":"Import!E11074","v":"Select"},{"$f":"Import!E11224","v":"Select"},{"$f":"Import!E11374","v":"Select"},{"$f":"Import!E11524","v":0},{"$f":"Import!E11674","v":0},{"$f":"Import!E11824","v":0},{"$f":"Import!E11974","v":0},{"$f":"Import!E12124","v":0}]
[26,{"$f":"Import!E11075","v":"Select"},{"$f":"Import!E11225","v":"Select"},{"$f":"Import!E11375","v":"Select"},{"$f":"Import!E11525","v":0},{"$f":"Import!E11675","v":0},{"$f":"Import!E11825","v":0},{"$f":"Import!E11975","v":0},{"$f":"Import!E12125","v":0}]
[27,{"$f":"Import!E11076","v":"Select"},{"$f":"Import!E11226","v":"Select"},{"$f":"Import!E11376","v":"Select"},{"$f":"Import!E11526","v":0},{"$f":"Import!E11676","v":0},{"$f":"Import!E11826","v":0},{"$f":"Import!E11976","v":0},{"$f":"Import!E12126","v":0}]
[28,{"$f":"Import!E11077","v":"Select"},{"$f":"Import!E11227","v":"Select"},{"$f":"Import!E11377","v":"Select"},{"$f":"Import!E11527","v":0},{"$f":"Import!E11677","v":0},{"$f":"Import!E11827","v":0},{"$f":"Import!E11977","v":0},{"$f":"Import!E12127","v":0}]
[29,{"$f":"Import!E11078","v":"Select"},{"$f":"Import!E11228","v":"Select"},{"$f":"Import!E11378","v":"Select"},{"$f":"Import!E11528","v":0},{"$f":"Import!E11678","v":0},{"$f":"Import!E11828","v":0},{"$f":"Import!E11978","v":0},{"$f":"Import!E12128","v":0}]
[30,{"$f":"Import!E11079","v":"Select"},{"$f":"Import!E11229","v":"Select"},{"$f":"Import!E11379","v":"Select"},{"$f":"Import!E11529","v":0},{"$f":"Import!E11679","v":0},{"$f":"Import!E11829","v":0},{"$f":"Import!E11979","v":0},{"$f":"Import!E12129","v":0}]
[31,{"$f":"Import!E11080","v":"Select"},{"$f":"Import!E11230","v":"Select"},{"$f":"Import!E11380","v":"Select"},{"$f":"Import!E11530","v":0},{"$f":"Import!E11680","v":0},{"$f":"Import!E11830","v":0},{"$f":"Import!E11980","v":0},{"$f":"Import!E12130","v":0}]
[32,{"$f":"Import!E11081","v":"Select"},{"$f":"Import!E11231","v":"Select"},{"$f":"Import!E11381","v":"Select"},{"$f":"Import!E11531","v":0},{"$f":"Import!E11681","v":0},{"$f":"Import!E11831","v":0},{"$f":"Import!E11981","v":0},{"$f":"Import!E12131","v":0}]
[33,{"$f":"Import!E11082","v":"Select"},{"$f":"Import!E11232","v":"Select"},{"$f":"Import!E11382","v":"Select"},{"$f":"Import!E11532","v":0},{"$f":"Import!E11682","v":0},{"$f":"Import!E11832","v":0},{"$f":"Import!E11982","v":0},{"$f":"Import!E12132","v":0}]
[34,{"$f":"Import!E11083","v":"Select"},{"$f":"Import!E11233","v":"Select"},{"$f":"Import!E11383","v":"Select"},{"$f":"Import!E11533","v":0},{"$f":"Import!E11683","v":0},{"$f":"Import!E11833","v":0},{"$f":"Import!E11983","v":0},{"$f":"Import!E12133","v":0}]
[35,{"$f":"Import!E11084","v":"Select"},{"$f":"Import!E11234","v":"Select"},{"$f":"Import!E11384","v":"Select"},{"$f":"Import!E11534","v":0},{"$f":"Import!E11684","v":0},{"$f":"Import!E11834","v":0},{"$f":"Import!E11984","v":0},{"$f":"Import!E12134","v":0}]
[36,{"$f":"Import!E11085","v":"Select"},{"$f":"Import!E11235","v":"Select"},{"$f":"Import!E11385","v":"Select"},{"$f":"Import!E11535","v":0},{"$f":"Import!E11685","v":0},{"$f":"Import!E11835","v":0},{"$f":"Import!E11985","v":0},{"$f":"Import!E12135","v":0}]
[37,{"$f":"Import!E11086","v":"Select"},{"$f":"Import!E11236","v":"Select"},{"$f":"Import!E11386","v":"Select"},{"$f":"Import!E11536","v":0},{"$f":"Import!E11686","v":0},{"$f":"Import!E11836","v":0},{"$f":"Import!E11986","v":0},{"$f":"Import!E12136","v":0}]
[38,{"$f":"Import!E11087","v":"Select"},{"$f":"Import!E11237","v":"Select"},{"$f":"Import!E11387","v":"Select"},{"$f":"Import!E11537","v":0},{"$f":"Import!E11687","v":0},{"$f":"Import!E11837","v":0},{"$f":"Import!E11987","v":0},{"$f":"Import!E12137","v":0}]
[39,{"$f":"Import!E11088","v":"Select"},{"$f":"Import!E11238","v":"Select"},{"$f":"Import!E11388","v":"Select"},{"$f":"Import!E11538","v":0},{"$f":"Import!E11688","v":0},{"$f":"Import!E11838","v":0},{"$f":"Import!E11988","v":0},{"$f":"Import!E12138","v":0}]
[40,{"$f":"Import!E11089","v":"Select"},{"$f":"Import!E11239","v":"Select"},{"$f":"Import!E11389","v":"Select"},{"$f":"Import!E11539","v":0},{"$f":"Import!E11689","v":0},{"$f":"Import!E11839","v":0},{"$f":"Import!E11989","v":0},{"$f":"Import!E12139","v":0}]
[41,{"$f":"Import!E11090","v":"Select"},{"$f":"Import!E11240","v":"Select"},{"$f":"Import!E11390","v":"Select"},{"$f":"Import!E11540","v":0},{"$f":"Import!E11690","v":0},{"$f":"Import!E11840","v":0},{"$f":"Import!E11990","v":0},{"$f":"Import!E12140","v":0}]
[42,{"$f":"Import!E11091","v":"Select"},{"$f":"Import!E11241","v":"Select"},{"$f":"Import!E11391","v":"Select"},{"$f":"Import!E11541","v":0},{"$f":"Import!E11691","v":0},{"$f":"Import!E11841","v":0},{"$f":"Import!E11991","v":0},{"$f":"Import!E12141","v":0}]
[43,{"$f":"Import!E11092","v":"Select"},{"$f":"Import!E11242","v":"Select"},{"$f":"Import!E11392","v":"Select"},{"$f":"Import!E11542","v":0},{"$f":"Import!E11692","v":0},{"$f":"Import!E11842","v":0},{"$f":"Import!E11992","v":0},{"$f":"Import!E12142","v":0}]
[44,{"$f":"Import!E11093","v":"Select"},{"$f":"Import!E11243","v":"Select"},{"$f":"Import!E11393","v":"Select"},{"$f":"Import!E11543","v":0},{"$f":"Import!E11693","v":0},{"$f":"Import!E11843","v":0},{"$f":"Import!E11993","v":0},{"$f":"Import!E12143","v":0}]
[45,{"$f":"Import!E11094","v":"Select"},{"$f":"Import!E11244","v":"Select"},{"$f":"Import!E11394","v":"Select"},{"$f":"Import!E11544","v":0},{"$f":"Import!E11694","v":0},{"$f":"Import!E11844","v":0},{"$f":"Import!E11994","v":0},{"$f":"Import!E12144","v":0}]
[46,{"$f":"Import!E11095","v":"Select"},{"$f":"Import!E11245","v":"Select"},{"$f":"Import!E11395","v":"Select"},{"$f":"Import!E11545","v":0},{"$f":"Import!E11695","v":0},{"$f":"Import!E11845","v":0},{"$f":"Import!E11995","v":0},{"$f":"Import!E12145","v":0}]
[47,{"$f":"Import!E11096","v":"Select"},{"$f":"Import!E11246","v":"Select"},{"$f":"Import!E11396","v":"Select"},{"$f":"Import!E11546","v":0},{"$f":"Import!E11696","v":0},{"$f":"Import!E11846","v":0},{"$f":"Import!E11996","v":0},{"$f":"Import!E12146","v":0}]
[48,{"$f":"Import!E11097","v":"Select"},{"$f":"Import!E11247","v":"Select"},{"$f":"Import!E11397","v":"Select"},{"$f":"Import!E11547","v":0},{"$f":"Import!E11697","v":0},{"$f":"Import!E11847","v":0},{"$f":"Import!E11997","v":0},{"$f":"Import!E12147","v":0}]
[49,{"$f":"Import!E11098","v":"Select"},{"$f":"Import!E11248","v":"Select"},{"$f":"Import!E11398","v":"Select"},{"$f":"Import!E11548","v":0},{"$f":"Import!E11698","v":0},{"$f":"Import!E11848","v":0},{"$f":"Import!E11998","v":0},{"$f":"Import!E12148","v":0}]
[50,{"$f":"Import!E11099","v":"Select"},{"$f":"Import!E11249","v":"Select"},{"$f":"Import!E11399","v":"Select"},{"$f":"Import!E11549","v":0},{"$f":"Import!E11699","v":0},{"$f":"Import!E11849","v":0},{"$f":"Import!E11999","v":0},{"$f":"Import!E12149","v":0}]
[51,{"$f":"Import!E11100","v":"Select"},{"$f":"Import!E11250","v":"Select"},{"$f":"Import!E11400","v":"Select"},{"$f":"Import!E11550","v":0},{"$f":"Import!E11700","v":0},{"$f":"Import!E11850","v":0},{"$f":"Import!E12000","v":0},{"$f":"Import!E12150","v":0}]
[52,{"$f":"Import!E11101","v":"Select"},{"$f":"Import!E11251","v":"Select"},{"$f":"Import!E11401","v":"Select"},{"$f":"Import!E11551","v":0},{"$f":"Import!E11701","v":0},{"$f":"Import!E11851","v":0},{"$f":"Import!E12001","v":0},{"$f":"Import!E12151","v":0}]
[53,{"$f":"Import!E11102","v":"Select"},{"$f":"Import!E11252","v":"Select"},{"$f":"Import!E11402","v":"Select"},{"$f":"Import!E11552","v":0},{"$f":"Import!E11702","v":0},{"$f":"Import!E11852","v":0},{"$f":"Import!E12002","v":0},{"$f":"Import!E12152","v":0}]
[54,{"$f":"Import!E11103","v":"Select"},{"$f":"Import!E11253","v":"Select"},{"$f":"Import!E11403","v":"Select"},{"$f":"Import!E11553","v":0},{"$f":"Import!E11703","v":0},{"$f":"Import!E11853","v":0},{"$f":"Import!E12003","v":0},{"$f":"Import!E12153","v":0}]
[55,{"$f":"Import!E11104","v":"Select"},{"$f":"Import!E11254","v":"Select"},{"$f":"Import!E11404","v":"Select"},{"$f":"Import!E11554","v":0},{"$f":"Import!E11704","v":0},{"$f":"Import!E11854","v":0},{"$f":"Import!E12004","v":0},{"$f":"Import!E12154","v":0}]
[56,{"$f":"Import!E11105","v":"Select"},{"$f":"Import!E11255","v":"Select"},{"$f":"Import!E11405","v":"Select"},{"$f":"Import!E11555","v":0},{"$f":"Import!E11705","v":0},{"$f":"Import!E11855","v":0},{"$f":"Import!E12005","v":0},{"$f":"Import!E12155","v":0}]
[57,{"$f":"Import!E11106","v":"Select"},{"$f":"Import!E11256","v":"Select"},{"$f":"Import!E11406","v":"Select"},{"$f":"Import!E11556","v":0},{"$f":"Import!E11706","v":0},{"$f":"Import!E11856","v":0},{"$f":"Import!E12006","v":0},{"$f":"Import!E12156","v":0}]
[58,{"$f":"Import!E11107","v":"Select"},{"$f":"Import!E11257","v":"Select"},{"$f":"Import!E11407","v":"Select"},{"$f":"Import!E11557","v":0},{"$f":"Import!E11707","v":0},{"$f":"Import!E11857","v":0},{"$f":"Import!E12007","v":0},{"$f":"Import!E12157","v":0}]
[59,{"$f":"Import!E11108","v":"Select"},{"$f":"Import!E11258","v":"Select"},{"$f":"Import!E11408","v":"Select"},{"$f":"Import!E11558","v":0},{"$f":"Import!E11708","v":0},{"$f":"Import!E11858","v":0},{"$f":"Import!E12008","v":0},{"$f":"Import!E12158","v":0}]
[60,{"$f":"Import!E11109","v":"Select"},{"$f":"Import!E11259","v":"Select"},{"$f":"Import!E11409","v":"Select"},{"$f":"Import!E11559","v":0},{"$f":"Import!E11709","v":0},{"$f":"Import!E11859","v":0},{"$f":"Import!E12009","v":0},{"$f":"Import!E12159","v":0}]
[61,{"$f":"Import!E11110","v":"Select"},{"$f":"Import!E11260","v":"Select"},{"$f":"Import!E11410","v":"Select"},{"$f":"Import!E11560","v":0},{"$f":"Import!E11710","v":0},{"$f":"Import!E11860","v":0},{"$f":"Import!E12010","v":0},{"$f":"Import!E12160","v":0}]
[62,{"$f":"Import!E11111","v":"Select"},{"$f":"Import!E11261","v":"Select"},{"$f":"Import!E11411","v":"Select"},{"$f":"Import!E11561","v":0},{"$f":"Import!E11711","v":0},{"$f":"Import!E11861","v":0},{"$f":"Import!E12011","v":0},{"$f":"Import!E12161","v":0}]
[63,{"$f":"Import!E11112","v":"Select"},{"$f":"Import!E11262","v":"Select"},{"$f":"Import!E11412","v":"Select"},{"$f":"Import!E11562","v":0},{"$f":"Import!E11712","v":0},{"$f":"Import!E11862","v":0},{"$f":"Import!E12012","v":0},{"$f":"Import!E12162","v":0}]
[64,{"$f":"Import!E11113","v":"Select"},{"$f":"Import!E11263","v":"Select"},{"$f":"Import!E11413","v":"Select"},{"$f":"Import!E11563","v":0},{"$f":"Import!E11713","v":0},{"$f":"Import!E11863","v":0},{"$f":"Import!E12013","v":0},{"$f":"Import!E12163","v":0}]
[65,{"$f":"Import!E11114","v":"Select"},{"$f":"Import!E11264","v":"Select"},{"$f":"Import!E11414","v":"Select"},{"$f":"Import!E11564","v":0},{"$f":"Import!E11714","v":0},{"$f":"Import!E11864","v":0},{"$f":"Import!E12014","v":0},{"$f":"Import!E12164","v":0}]
[66,{"$f":"Import!E11115","v":"Select"},{"$f":"Import!E11265","v":"Select"},{"$f":"Import!E11415","v":"Select"},{"$f":"Import!E11565","v":0},{"$f":"Import!E11715","v":0},{"$f":"Import!E11865","v":0},{"$f":"Import!E12015","v":0},{"$f":"Import!E12165","v":0}]
[{"$f":"A900+1","v":67},{"$f":"Import!E11116","v":"Select"},{"$f":"Import!E11266","v":"Select"},{"$f":"Import!E11416","v":"Select"},{"$f":"Import!E11566","v":0},{"$f":"Import!E11716","v":0},{"$f":"Import!E11866","v":0},{"$f":"Import!E12016","v":0},{"$f":"Import!E12166","v":0}]
[68,{"$f":"Import!E11117","v":"Select"},{"$f":"Import!E11267","v":"Select"},{"$f":"Import!E11417","v":"Select"},{"$f":"Import!E11567","v":0},{"$f":"Import!E11717","v":0},{"$f":"Import!E11867","v":0},{"$f":"Import!E12017","v":0},{"$f":"Import!E12167","v":0}]
[69,{"$f":"Import!E11118","v":"Select"},{"$f":"Import!E11268","v":"Select"},{"$f":"Import!E11418","v":"Select"},{"$f":"Import!E11568","v":0},{"$f":"Import!E11718","v":0},{"$f":"Import!E11868","v":0},{"$f":"Import!E12018","v":0},{"$f":"Import!E12168","v":0}]
[70,{"$f":"Import!E11119","v":"Select"},{"$f":"Import!E11269","v":"Select"},{"$f":"Import!E11419","v":"Select"},{"$f":"Import!E11569","v":0},{"$f":"Import!E11719","v":0},{"$f":"Import!E11869","v":0},{"$f":"Import!E12019","v":0},{"$f":"Import!E12169","v":0}]
[71,{"$f":"Import!E11120","v":"Select"},{"$f":"Import!E11270","v":"Select"},{"$f":"Import!E11420","v":"Select"},{"$f":"Import!E11570","v":0},{"$f":"Import!E11720","v":0},{"$f":"Import!E11870","v":0},{"$f":"Import!E12020","v":0},{"$f":"Import!E12170","v":0}]
[72,{"$f":"Import!E11121","v":"Select"},{"$f":"Import!E11271","v":"Select"},{"$f":"Import!E11421","v":"Select"},{"$f":"Import!E11571","v":0},{"$f":"Import!E11721","v":0},{"$f":"Import!E11871","v":0},{"$f":"Import!E12021","v":0},{"$f":"Import!E12171","v":0}]
[73,{"$f":"Import!E11122","v":"Select"},{"$f":"Import!E11272","v":"Select"},{"$f":"Import!E11422","v":"Select"},{"$f":"Import!E11572","v":0},{"$f":"Import!E11722","v":0},{"$f":"Import!E11872","v":0},{"$f":"Import!E12022","v":0},{"$f":"Import!E12172","v":0}]
[74,{"$f":"Import!E11123","v":"Select"},{"$f":"Import!E11273","v":"Select"},{"$f":"Import!E11423","v":"Select"},{"$f":"Import!E11573","v":0},{"$f":"Import!E11723","v":0},{"$f":"Import!E11873","v":0},{"$f":"Import!E12023","v":0},{"$f":"Import!E12173","v":0}]
[75,{"$f":"Import!E11124","v":"Select"},{"$f":"Import!E11274","v":"Select"},{"$f":"Import!E11424","v":"Select"},{"$f":"Import!E11574","v":0},{"$f":"Import!E11724","v":0},{"$f":"Import!E11874","v":0},{"$f":"Import!E12024","v":0},{"$f":"Import!E12174","v":0}]
[76,{"$f":"Import!E11125","v":"Select"},{"$f":"Import!E11275","v":"Select"},{"$f":"Import!E11425","v":"Select"},{"$f":"Import!E11575","v":0},{"$f":"Import!E11725","v":0},{"$f":"Import!E11875","v":0},{"$f":"Import!E12025","v":0},{"$f":"Import!E12175","v":0}]
[77,{"$f":"Import!E11126","v":"Select"},{"$f":"Import!E11276","v":"Select"},{"$f":"Import!E11426","v":"Select"},{"$f":"Import!E11576","v":0},{"$f":"Import!E11726","v":0},{"$f":"Import!E11876","v":0},{"$f":"Import!E12026","v":0},{"$f":"Import!E12176","v":0}]
[78,{"$f":"Import!E11127","v":"Select"},{"$f":"Import!E11277","v":"Select"},{"$f":"Import!E11427","v":"Select"},{"$f":"Import!E11577","v":0},{"$f":"Import!E11727","v":0},{"$f":"Import!E11877","v":0},{"$f":"Import!E12027","v":0},{"$f":"Import!E12177","v":0}]
[79,{"$f":"Import!E11128","v":"Select"},{"$f":"Import!E11278","v":"Select"},{"$f":"Import!E11428","v":"Select"},{"$f":"Import!E11578","v":0},{"$f":"Import!E11728","v":0},{"$f":"Import!E11878","v":0},{"$f":"Import!E12028","v":0},{"$f":"Import!E12178","v":0}]
[80,{"$f":"Import!E11129","v":"Select"},{"$f":"Import!E11279","v":"Select"},{"$f":"Import!E11429","v":"Select"},{"$f":"Import!E11579","v":0},{"$f":"Import!E11729","v":0},{"$f":"Import!E11879","v":0},{"$f":"Import!E12029","v":0},{"$f":"Import!E12179","v":0}]
[81,{"$f":"Import!E11130","v":"Select"},{"$f":"Import!E11280","v":"Select"},{"$f":"Import!E11430","v":"Select"},{"$f":"Import!E11580","v":0},{"$f":"Import!E11730","v":0},{"$f":"Import!E11880","v":0},{"$f":"Import!E12030","v":0},{"$f":"Import!E12180","v":0}]
[82,{"$f":"Import!E11131","v":"Select"},{"$f":"Import!E11281","v":"Select"},{"$f":"Import!E11431","v":"Select"},{"$f":"Import!E11581","v":0},{"$f":"Import!E11731","v":0},{"$f":"Import!E11881","v":0},{"$f":"Import!E12031","v":0},{"$f":"Import!E12181","v":0}]
[83,{"$f":"Import!E11132","v":"Select"},{"$f":"Import!E11282","v":"Select"},{"$f":"Import!E11432","v":"Select"},{"$f":"Import!E11582","v":0},{"$f":"Import!E11732","v":0},{"$f":"Import!E11882","v":0},{"$f":"Import!E12032","v":0},{"$f":"Import!E12182","v":0}]
[84,{"$f":"Import!E11133","v":"Select"},{"$f":"Import!E11283","v":"Select"},{"$f":"Import!E11433","v":"Select"},{"$f":"Import!E11583","v":0},{"$f":"Import!E11733","v":0},{"$f":"Import!E11883","v":0},{"$f":"Import!E12033","v":0},{"$f":"Import!E12183","v":0}]
[85,{"$f":"Import!E11134","v":"Select"},{"$f":"Import!E11284","v":"Select"},{"$f":"Import!E11434","v":"Select"},{"$f":"Import!E11584","v":0},{"$f":"Import!E11734","v":0},{"$f":"Import!E11884","v":0},{"$f":"Import!E12034","v":0},{"$f":"Import!E12184","v":0}]
[86,{"$f":"Import!E11135","v":"Select"},{"$f":"Import!E11285","v":"Select"},{"$f":"Import!E11435","v":"Select"},{"$f":"Import!E11585","v":0},{"$f":"Import!E11735","v":0},{"$f":"Import!E11885","v":0},{"$f":"Import!E12035","v":0},{"$f":"Import!E12185","v":0}]
[87,{"$f":"Import!E11136","v":"Select"},{"$f":"Import!E11286","v":"Select"},{"$f":"Import!E11436","v":"Select"},{"$f":"Import!E11586","v":0},{"$f":"Import!E11736","v":0},{"$f":"Import!E11886","v":0},{"$f":"Import!E12036","v":0},{"$f":"Import!E12186","v":0}]
[88,{"$f":"Import!E11137","v":"Select"},{"$f":"Import!E11287","v":"Select"},{"$f":"Import!E11437","v":"Select"},{"$f":"Import!E11587","v":0},{"$f":"Import!E11737","v":0},{"$f":"Import!E11887","v":0},{"$f":"Import!E12037","v":0},{"$f":"Import!E12187","v":0}]
[89,{"$f":"Import!E11138","v":"Select"},{"$f":"Import!E11288","v":"Select"},{"$f":"Import!E11438","v":"Select"},{"$f":"Import!E11588","v":0},{"$f":"Import!E11738","v":0},{"$f":"Import!E11888","v":0},{"$f":"Import!E12038","v":0},{"$f":"Import!E12188","v":0}]
[90,{"$f":"Import!E11139","v":"Select"},{"$f":"Import!E11289","v":"Select"},{"$f":"Import!E11439","v":"Select"},{"$f":"Import!E11589","v":0},{"$f":"Import!E11739","v":0},{"$f":"Import!E11889","v":0},{"$f":"Import!E12039","v":0},{"$f":"Import!E12189","v":0}]
[91,{"$f":"Import!E11140","v":"Select"},{"$f":"Import!E11290","v":"Select"},{"$f":"Import!E11440","v":"Select"},{"$f":"Import!E11590","v":0},{"$f":"Import!E11740","v":0},{"$f":"Import!E11890","v":0},{"$f":"Import!E12040","v":0},{"$f":"Import!E12190","v":0}]
[92,{"$f":"Import!E11141","v":"Select"},{"$f":"Import!E11291","v":"Select"},{"$f":"Import!E11441","v":"Select"},{"$f":"Import!E11591","v":0},{"$f":"Import!E11741","v":0},{"$f":"Import!E11891","v":0},{"$f":"Import!E12041","v":0},{"$f":"Import!E12191","v":0}]
[93,{"$f":"Import!E11142","v":"Select"},{"$f":"Import!E11292","v":"Select"},{"$f":"Import!E11442","v":"Select"},{"$f":"Import!E11592","v":0},{"$f":"Import!E11742","v":0},{"$f":"Import!E11892","v":0},{"$f":"Import!E12042","v":0},{"$f":"Import!E12192","v":0}]
[94,{"$f":"Import!E11143","v":"Select"},{"$f":"Import!E11293","v":"Select"},{"$f":"Import!E11443","v":"Select"},{"$f":"Import!E11593","v":0},{"$f":"Import!E11743","v":0},{"$f":"Import!E11893","v":0},{"$f":"Import!E12043","v":0},{"$f":"Import!E12193","v":0}]
[95,{"$f":"Import!E11144","v":"Select"},{"$f":"Import!E11294","v":"Select"},{"$f":"Import!E11444","v":"Select"},{"$f":"Import!E11594","v":0},{"$f":"Import!E11744","v":0},{"$f":"Import!E11894","v":0},{"$f":"Import!E12044","v":0},{"$f":"Import!E12194","v":0}]
[96,{"$f":"Import!E11145","v":"Select"},{"$f":"Import!E11295","v":"Select"},{"$f":"Import!E11445","v":"Select"},{"$f":"Import!E11595","v":0},{"$f":"Import!E11745","v":0},{"$f":"Import!E11895","v":0},{"$f":"Import!E12045","v":0},{"$f":"Import!E12195","v":0}]
[97,{"$f":"Import!E11146","v":"Select"},{"$f":"Import!E11296","v":"Select"},{"$f":"Import!E11446","v":"Select"},{"$f":"Import!E11596","v":0},{"$f":"Import!E11746","v":0},{"$f":"Import!E11896","v":0},{"$f":"Import!E12046","v":0},{"$f":"Import!E12196","v":0}]
[98,{"$f":"Import!E11147","v":"Select"},{"$f":"Import!E11297","v":"Select"},{"$f":"Import!E11447","v":"Select"},{"$f":"Import!E11597","v":0},{"$f":"Import!E11747","v":0},{"$f":"Import!E11897","v":0},{"$f":"Import!E12047","v":0},{"$f":"Import!E12197","v":0}]
[99,{"$f":"Import!E11148","v":"Select"},{"$f":"Import!E11298","v":"Select"},{"$f":"Import!E11448","v":"Select"},{"$f":"Import!E11598","v":0},{"$f":"Import!E11748","v":0},{"$f":"Import!E11898","v":0},{"$f":"Import!E12048","v":0},{"$f":"Import!E12198","v":0}]
[100,{"$f":"Import!E11149","v":"Select"},{"$f":"Import!E11299","v":"Select"},{"$f":"Import!E11449","v":"Select"},{"$f":"Import!E11599","v":0},{"$f":"Import!E11749","v":0},{"$f":"Import!E11899","v":0},{"$f":"Import!E12049","v":0},{"$f":"Import!E12199","v":0}]
[101,{"$f":"Import!E11150","v":"Select"},{"$f":"Import!E11300","v":"Select"},{"$f":"Import!E11450","v":"Select"},{"$f":"Import!E11600","v":0},{"$f":"Import!E11750","v":0},{"$f":"Import!E11900","v":0},{"$f":"Import!E12050","v":0},{"$f":"Import!E12200","v":0}]
[102,{"$f":"Import!E11151","v":"Select"},{"$f":"Import!E11301","v":"Select"},{"$f":"Import!E11451","v":"Select"},{"$f":"Import!E11601","v":0},{"$f":"Import!E11751","v":0},{"$f":"Import!E11901","v":0},{"$f":"Import!E12051","v":0},{"$f":"Import!E12201","v":0}]
[103,{"$f":"Import!E11152","v":"Select"},{"$f":"Import!E11302","v":"Select"},{"$f":"Import!E11452","v":"Select"},{"$f":"Import!E11602","v":0},{"$f":"Import!E11752","v":0},{"$f":"Import!E11902","v":0},{"$f":"Import!E12052","v":0},{"$f":"Import!E12202","v":0}]
[104,{"$f":"Import!E11153","v":"Select"},{"$f":"Import!E11303","v":"Select"},{"$f":"Import!E11453","v":"Select"},{"$f":"Import!E11603","v":0},{"$f":"Import!E11753","v":0},{"$f":"Import!E11903","v":0},{"$f":"Import!E12053","v":0},{"$f":"Import!E12203","v":0}]
[105,{"$f":"Import!E11154","v":"Select"},{"$f":"Import!E11304","v":"Select"},{"$f":"Import!E11454","v":"Select"},{"$f":"Import!E11604","v":0},{"$f":"Import!E11754","v":0},{"$f":"Import!E11904","v":0},{"$f":"Import!E12054","v":0},{"$f":"Import!E12204","v":0}]
[106,{"$f":"Import!E11155","v":"Select"},{"$f":"Import!E11305","v":"Select"},{"$f":"Import!E11455","v":"Select"},{"$f":"Import!E11605","v":0},{"$f":"Import!E11755","v":0},{"$f":"Import!E11905","v":0},{"$f":"Import!E12055","v":0},{"$f":"Import!E12205","v":0}]
[107,{"$f":"Import!E11156","v":"Select"},{"$f":"Import!E11306","v":"Select"},{"$f":"Import!E11456","v":"Select"},{"$f":"Import!E11606","v":0},{"$f":"Import!E11756","v":0},{"$f":"Import!E11906","v":0},{"$f":"Import!E12056","v":0},{"$f":"Import!E12206","v":0}]
[108,{"$f":"Import!E11157","v":"Select"},{"$f":"Import!E11307","v":"Select"},{"$f":"Import!E11457","v":"Select"},{"$f":"Import!E11607","v":0},{"$f":"Import!E11757","v":0},{"$f":"Import!E11907","v":0},{"$f":"Import!E12057","v":0},{"$f":"Import!E12207","v":0}]
[109,{"$f":"Import!E11158","v":"Select"},{"$f":"Import!E11308","v":"Select"},{"$f":"Import!E11458","v":"Select"},{"$f":"Import!E11608","v":0},{"$f":"Import!E11758","v":0},{"$f":"Import!E11908","v":0},{"$f":"Import!E12058","v":0},{"$f":"Import!E12208","v":0}]
[110,{"$f":"Import!E11159","v":"Select"},{"$f":"Import!E11309","v":"Select"},{"$f":"Import!E11459","v":"Select"},{"$f":"Import!E11609","v":0},{"$f":"Import!E11759","v":0},{"$f":"Import!E11909","v":0},{"$f":"Import!E12059","v":0},{"$f":"Import!E12209","v":0}]
[111,{"$f":"Import!E11160","v":"Select"},{"$f":"Import!E11310","v":"Select"},{"$f":"Import!E11460","v":"Select"},{"$f":"Import!E11610","v":0},{"$f":"Import!E11760","v":0},{"$f":"Import!E11910","v":0},{"$f":"Import!E12060","v":0},{"$f":"Import!E12210","v":0}]
[112,{"$f":"Import!E11161","v":"Select"},{"$f":"Import!E11311","v":"Select"},{"$f":"Import!E11461","v":"Select"},{"$f":"Import!E11611","v":0},{"$f":"Import!E11761","v":0},{"$f":"Import!E11911","v":0},{"$f":"Import!E12061","v":0},{"$f":"Import!E12211","v":0}]
[113,{"$f":"Import!E11162","v":"Select"},{"$f":"Import!E11312","v":"Select"},{"$f":"Import!E11462","v":"Select"},{"$f":"Import!E11612","v":0},{"$f":"Import!E11762","v":0},{"$f":"Import!E11912","v":0},{"$f":"Import!E12062","v":0},{"$f":"Import!E12212","v":0}]
[114,{"$f":"Import!E11163","v":"Select"},{"$f":"Import!E11313","v":"Select"},{"$f":"Import!E11463","v":"Select"},{"$f":"Import!E11613","v":0},{"$f":"Import!E11763","v":0},{"$f":"Import!E11913","v":0},{"$f":"Import!E12063","v":0},{"$f":"Import!E12213","v":0}]
[115,{"$f":"Import!E11164","v":"Select"},{"$f":"Import!E11314","v":"Select"},{"$f":"Import!E11464","v":"Select"},{"$f":"Import!E11614","v":0},{"$f":"Import!E11764","v":0},{"$f":"Import!E11914","v":0},{"$f":"Import!E12064","v":0},{"$f":"Import!E12214","v":0}]
[116,{"$f":"Import!E11165","v":"Select"},{"$f":"Import!E11315","v":"Select"},{"$f":"Import!E11465","v":"Select"},{"$f":"Import!E11615","v":0},{"$f":"Import!E11765","v":0},{"$f":"Import!E11915","v":0},{"$f":"Import!E12065","v":0},{"$f":"Import!E12215","v":0}]
[117,{"$f":"Import!E11166","v":"Select"},{"$f":"Import!E11316","v":"Select"},{"$f":"Import!E11466","v":"Select"},{"$f":"Import!E11616","v":0},{"$f":"Import!E11766","v":0},{"$f":"Import!E11916","v":0},{"$f":"Import!E12066","v":0},{"$f":"Import!E12216","v":0}]
[118,{"$f":"Import!E11167","v":"Select"},{"$f":"Import!E11317","v":"Select"},{"$f":"Import!E11467","v":"Select"},{"$f":"Import!E11617","v":0},{"$f":"Import!E11767","v":0},{"$f":"Import!E11917","v":0},{"$f":"Import!E12067","v":0},{"$f":"Import!E12217","v":0}]
[119,{"$f":"Import!E11168","v":"Select"},{"$f":"Import!E11318","v":"Select"},{"$f":"Import!E11468","v":"Select"},{"$f":"Import!E11618","v":0},{"$f":"Import!E11768","v":0},{"$f":"Import!E11918","v":0},{"$f":"Import!E12068","v":0},{"$f":"Import!E12218","v":0}]
[120,{"$f":"Import!E11169","v":"Select"},{"$f":"Import!E11319","v":"Select"},{"$f":"Import!E11469","v":"Select"},{"$f":"Import!E11619","v":0},{"$f":"Import!E11769","v":0},{"$f":"Import!E11919","v":0},{"$f":"Import!E12069","v":0},{"$f":"Import!E12219","v":0}]
[121,{"$f":"Import!E11170","v":"Select"},{"$f":"Import!E11320","v":"Select"},{"$f":"Import!E11470","v":"Select"},{"$f":"Import!E11620","v":0},{"$f":"Import!E11770","v":0},{"$f":"Import!E11920","v":0},{"$f":"Import!E12070","v":0},{"$f":"Import!E12220","v":0}]
[122,{"$f":"Import!E11171","v":"Select"},{"$f":"Import!E11321","v":"Select"},{"$f":"Import!E11471","v":"Select"},{"$f":"Import!E11621","v":0},{"$f":"Import!E11771","v":0},{"$f":"Import!E11921","v":0},{"$f":"Import!E12071","v":0},{"$f":"Import!E12221","v":0}]
[123,{"$f":"Import!E11172","v":"Select"},{"$f":"Import!E11322","v":"Select"},{"$f":"Import!E11472","v":"Select"},{"$f":"Import!E11622","v":0},{"$f":"Import!E11772","v":0},{"$f":"Import!E11922","v":0},{"$f":"Import!E12072","v":0},{"$f":"Import!E12222","v":0}]
[124,{"$f":"Import!E11173","v":"Select"},{"$f":"Import!E11323","v":"Select"},{"$f":"Import!E11473","v":"Select"},{"$f":"Import!E11623","v":0},{"$f":"Import!E11773","v":0},{"$f":"Import!E11923","v":0},{"$f":"Import!E12073","v":0},{"$f":"Import!E12223","v":0}]
[125,{"$f":"Import!E11174","v":"Select"},{"$f":"Import!E11324","v":"Select"},{"$f":"Import!E11474","v":"Select"},{"$f":"Import!E11624","v":0},{"$f":"Import!E11774","v":0},{"$f":"Import!E11924","v":0},{"$f":"Import!E12074","v":0},{"$f":"Import!E12224","v":0}]
[126,{"$f":"Import!E11175","v":"Select"},{"$f":"Import!E11325","v":"Select"},{"$f":"Import!E11475","v":"Select"},{"$f":"Import!E11625","v":0},{"$f":"Import!E11775","v":0},{"$f":"Import!E11925","v":0},{"$f":"Import!E12075","v":0},{"$f":"Import!E12225","v":0}]
[127,{"$f":"Import!E11176","v":"Select"},{"$f":"Import!E11326","v":"Select"},{"$f":"Import!E11476","v":"Select"},{"$f":"Import!E11626","v":0},{"$f":"Import!E11776","v":0},{"$f":"Import!E11926","v":0},{"$f":"Import!E12076","v":0},{"$f":"Import!E12226","v":0}]
[128,{"$f":"Import!E11177","v":"Select"},{"$f":"Import!E11327","v":"Select"},{"$f":"Import!E11477","v":"Select"},{"$f":"Import!E11627","v":0},{"$f":"Import!E11777","v":0},{"$f":"Import!E11927","v":0},{"$f":"Import!E12077","v":0},{"$f":"Import!E12227","v":0}]
[129,{"$f":"Import!E11178","v":"Select"},{"$f":"Import!E11328","v":"Select"},{"$f":"Import!E11478","v":"Select"},{"$f":"Import!E11628","v":0},{"$f":"Import!E11778","v":0},{"$f":"Import!E11928","v":0},{"$f":"Import!E12078","v":0},{"$f":"Import!E12228","v":0}]
[130,{"$f":"Import!E11179","v":"Select"},{"$f":"Import!E11329","v":"Select"},{"$f":"Import!E11479","v":"Select"},{"$f":"Import!E11629","v":0},{"$f":"Import!E11779","v":0},{"$f":"Import!E11929","v":0},{"$f":"Import!E12079","v":0},{"$f":"Import!E12229","v":0}]
[{"$f":"A964+1","v":131},{"$f":"Import!E11180","v":"Select"},{"$f":"Import!E11330","v":"Select"},{"$f":"Import!E11480","v":"Select"},{"$f":"Import!E11630","v":0},{"$f":"Import!E11780","v":0},{"$f":"Import!E11930","v":0},{"$f":"Import!E12080","v":0},{"$f":"Import!E12230","v":0}]
[132,{"$f":"Import!E11181","v":"Select"},{"$f":"Import!E11331","v":"Select"},{"$f":"Import!E11481","v":"Select"},{"$f":"Import!E11631","v":0},{"$f":"Import!E11781","v":0},{"$f":"Import!E11931","v":0},{"$f":"Import!E12081","v":0},{"$f":"Import!E12231","v":0}]
[133,{"$f":"Import!E11182","v":"Select"},{"$f":"Import!E11332","v":"Select"},{"$f":"Import!E11482","v":"Select"},{"$f":"Import!E11632","v":0},{"$f":"Import!E11782","v":0},{"$f":"Import!E11932","v":0},{"$f":"Import!E12082","v":0},{"$f":"Import!E12232","v":0}]
[134,{"$f":"Import!E11183","v":"Select"},{"$f":"Import!E11333","v":"Select"},{"$f":"Import!E11483","v":"Select"},{"$f":"Import!E11633","v":0},{"$f":"Import!E11783","v":0},{"$f":"Import!E11933","v":0},{"$f":"Import!E12083","v":0},{"$f":"Import!E12233","v":0}]
[135,{"$f":"Import!E11184","v":"Select"},{"$f":"Import!E11334","v":"Select"},{"$f":"Import!E11484","v":"Select"},{"$f":"Import!E11634","v":0},{"$f":"Import!E11784","v":0},{"$f":"Import!E11934","v":0},{"$f":"Import!E12084","v":0},{"$f":"Import!E12234","v":0}]
[136,{"$f":"Import!E11185","v":"Select"},{"$f":"Import!E11335","v":"Select"},{"$f":"Import!E11485","v":"Select"},{"$f":"Import!E11635","v":0},{"$f":"Import!E11785","v":0},{"$f":"Import!E11935","v":0},{"$f":"Import!E12085","v":0},{"$f":"Import!E12235","v":0}]
[137,{"$f":"Import!E11186","v":"Select"},{"$f":"Import!E11336","v":"Select"},{"$f":"Import!E11486","v":"Select"},{"$f":"Import!E11636","v":0},{"$f":"Import!E11786","v":0},{"$f":"Import!E11936","v":0},{"$f":"Import!E12086","v":0},{"$f":"Import!E12236","v":0}]
[138,{"$f":"Import!E11187","v":"Select"},{"$f":"Import!E11337","v":"Select"},{"$f":"Import!E11487","v":"Select"},{"$f":"Import!E11637","v":0},{"$f":"Import!E11787","v":0},{"$f":"Import!E11937","v":0},{"$f":"Import!E12087","v":0},{"$f":"Import!E12237","v":0}]
[139,{"$f":"Import!E11188","v":"Select"},{"$f":"Import!E11338","v":"Select"},{"$f":"Import!E11488","v":"Select"},{"$f":"Import!E11638","v":0},{"$f":"Import!E11788","v":0},{"$f":"Import!E11938","v":0},{"$f":"Import!E12088","v":0},{"$f":"Import!E12238","v":0}]
[140,{"$f":"Import!E11189","v":"Select"},{"$f":"Import!E11339","v":"Select"},{"$f":"Import!E11489","v":"Select"},{"$f":"Import!E11639","v":0},{"$f":"Import!E11789","v":0},{"$f":"Import!E11939","v":0},{"$f":"Import!E12089","v":0},{"$f":"Import!E12239","v":0}]
[141,{"$f":"Import!E11190","v":"Select"},{"$f":"Import!E11340","v":"Select"},{"$f":"Import!E11490","v":"Select"},{"$f":"Import!E11640","v":0},{"$f":"Import!E11790","v":0},{"$f":"Import!E11940","v":0},{"$f":"Import!E12090","v":0},{"$f":"Import!E12240","v":0}]
[142,{"$f":"Import!E11191","v":"Select"},{"$f":"Import!E11341","v":"Select"},{"$f":"Import!E11491","v":"Select"},{"$f":"Import!E11641","v":0},{"$f":"Import!E11791","v":0},{"$f":"Import!E11941","v":0},{"$f":"Import!E12091","v":0},{"$f":"Import!E12241","v":0}]
[143,{"$f":"Import!E11192","v":"Select"},{"$f":"Import!E11342","v":"Select"},{"$f":"Import!E11492","v":"Select"},{"$f":"Import!E11642","v":0},{"$f":"Import!E11792","v":0},{"$f":"Import!E11942","v":0},{"$f":"Import!E12092","v":0},{"$f":"Import!E12242","v":0}]
[144,{"$f":"Import!E11193","v":"Select"},{"$f":"Import!E11343","v":"Select"},{"$f":"Import!E11493","v":"Select"},{"$f":"Import!E11643","v":0},{"$f":"Import!E11793","v":0},{"$f":"Import!E11943","v":0},{"$f":"Import!E12093","v":0},{"$f":"Import!E12243","v":0}]
[145,{"$f":"Import!E11194","v":"Select"},{"$f":"Import!E11344","v":"Select"},{"$f":"Import!E11494","v":"Select"},{"$f":"Import!E11644","v":0},{"$f":"Import!E11794","v":0},{"$f":"Import!E11944","v":0},{"$f":"Import!E12094","v":0},{"$f":"Import!E12244","v":0}]
[146,{"$f":"Import!E11195","v":"Select"},{"$f":"Import!E11345","v":"Select"},{"$f":"Import!E11495","v":"Select"},{"$f":"Import!E11645","v":0},{"$f":"Import!E11795","v":0},{"$f":"Import!E11945","v":0},{"$f":"Import!E12095","v":0},{"$f":"Import!E12245","v":0}]
[147,{"$f":"Import!E11196","v":"Select"},{"$f":"Import!E11346","v":"Select"},{"$f":"Import!E11496","v":"Select"},{"$f":"Import!E11646","v":0},{"$f":"Import!E11796","v":0},{"$f":"Import!E11946","v":0},{"$f":"Import!E12096","v":0},{"$f":"Import!E12246","v":0}]
[148,{"$f":"Import!E11197","v":"Select"},{"$f":"Import!E11347","v":"Select"},{"$f":"Import!E11497","v":"Select"},{"$f":"Import!E11647","v":0},{"$f":"Import!E11797","v":0},{"$f":"Import!E11947","v":0},{"$f":"Import!E12097","v":0},{"$f":"Import!E12247","v":0}]
[149,{"$f":"Import!E11198","v":"Select"},{"$f":"Import!E11348","v":"Select"},{"$f":"Import!E11498","v":"Select"},{"$f":"Import!E11648","v":0},{"$f":"Import!E11798","v":0},{"$f":"Import!E11948","v":0},{"$f":"Import!E12098","v":0},{"$f":"Import!E12248","v":0}]
[150,{"$f":"Import!E11199","v":"Select"},{"$f":"Import!E11349","v":"Select"},{"$f":"Import!E11499","v":"Select"},{"$f":"Import!E11649","v":0},{"$f":"Import!E11799","v":0},{"$f":"Import!E11949","v":0},{"$f":"Import!E12099","v":0},{"$f":"Import!E12249","v":0}]
[]
[null,"Total Asset-Backed and Structured Securities",null,null,{"$f":"SUM(E835:E984)","v":0},{"$f":"SUM(F835:F984)","v":0},{"$f":"IFERROR(SUMPRODUCT(G835:G984,$F835:$F984)/SUM($F835:$F984),0)","v":0},{"$f":"IFERROR(SUMPRODUCT(H835:H984,$F835:$F984)/SUM($F835:$F984),0)","v":0}]
[]
[null,"(D) LOANS"]
[]
[null,null,"Enter # of Asset Types",{"$f":"Import!E12250","v":0}]
[null,null,null,null,null,{"$f":"YEAR($C$3)","v":2023},2023,"Weighted"]
[null,"Asset Type","Currency","Country","BSCR Rating","Nominal Amount","Fair Value","Average YTM","Effective Duration","Comments"]
[1,{"$f":"Import!E12251","v":"Select"},{"$f":"Import!E12351","v":"Select"},{"$f":"Import!E12451","v":"Select"},{"$f":"Import!E12551","v":"Select"},{"$f":"Import!E12651","v":0},{"$f":"Import!E12751","v":0},{"$f":"Import!E12851","v":0},{"$f":"Import!E12951","v":0},{"$f":"Import!E13051","v":0}]
[{"$f":"A993+1","v":2},{"$f":"Import!E12252","v":"Select"},{"$f":"Import!E12352","v":"Select"},{"$f":"Import!E12452","v":"Select"},{"$f":"Import!E12552","v":"Select"},{"$f":"Import!E12652","v":0},{"$f":"Import!E12752","v":0},{"$f":"Import!E12852","v":0},{"$f":"Import!E12952","v":0},{"$f":"Import!E13052","v":0}]
[{"$f":"A994+1","v":3},{"$f":"Import!E12253","v":"Select"},{"$f":"Import!E12353","v":"Select"},{"$f":"Import!E12453","v":"Select"},{"$f":"Import!E12553","v":"Select"},{"$f":"Import!E12653","v":0},{"$f":"Import!E12753","v":0},{"$f":"Import!E12853","v":0},{"$f":"Import!E12953","v":0},{"$f":"Import!E13053","v":0}]
[4,{"$f":"Import!E12254","v":"Select"},{"$f":"Import!E12354","v":"Select"},{"$f":"Import!E12454","v":"Select"},{"$f":"Import!E12554","v":"Select"},{"$f":"Import!E12654","v":0},{"$f":"Import!E12754","v":0},{"$f":"Import!E12854","v":0},{"$f":"Import!E12954","v":0},{"$f":"Import!E13054","v":0}]
[5,{"$f":"Import!E12255","v":"Select"},{"$f":"Import!E12355","v":"Select"},{"$f":"Import!E12455","v":"Select"},{"$f":"Import!E12555","v":"Select"},{"$f":"Import!E12655","v":0},{"$f":"Import!E12755","v":0},{"$f":"Import!E12855","v":0},{"$f":"Import!E12955","v":0},{"$f":"Import!E13055","v":0}]
[6,{"$f":"Import!E12256","v":"Select"},{"$f":"Import!E12356","v":"Select"},{"$f":"Import!E12456","v":"Select"},{"$f":"Import!E12556","v":"Select"},{"$f":"Import!E12656","v":0},{"$f":"Import!E12756","v":0},{"$f":"Import!E12856","v":0},{"$f":"Import!E12956","v":0},{"$f":"Import!E13056","v":0}]
[7,{"$f":"Import!E12257","v":"Select"},{"$f":"Import!E12357","v":"Select"},{"$f":"Import!E12457","v":"Select"},{"$f":"Import!E12557","v":"Select"},{"$f":"Import!E12657","v":0},{"$f":"Import!E12757","v":0},{"$f":"Import!E12857","v":0},{"$f":"Import!E12957","v":0},{"$f":"Import!E13057","v":0}]
[8,{"$f":"Import!E12258","v":"Select"},{"$f":"Import!E12358","v":"Select"},{"$f":"Import!E12458","v":"Select"},{"$f":"Import!E12558","v":"Select"},{"$f":"Import!E12658","v":0},{"$f":"Import!E12758","v":0},{"$f":"Import!E12858","v":0},{"$f":"Import!E12958","v":0},{"$f":"Import!E13058","v":0}]
[9,{"$f":"Import!E12259","v":"Select"},{"$f":"Import!E12359","v":"Select"},{"$f":"Import!E12459","v":"Select"},{"$f":"Import!E12559","v":"Select"},{"$f":"Import!E12659","v":0},{"$f":"Import!E12759","v":0},{"$f":"Import!E12859","v":0},{"$f":"Import!E12959","v":0},{"$f":"Import!E13059","v":0}]
[10,{"$f":"Import!E12260","v":"Select"},{"$f":"Import!E12360","v":"Select"},{"$f":"Import!E12460","v":"Select"},{"$f":"Import!E12560","v":"Select"},{"$f":"Import!E12660","v":0},{"$f":"Import!E12760","v":0},{"$f":"Import!E12860","v":0},{"$f":"Import!E12960","v":0},{"$f":"Import!E13060","v":0}]
[11,{"$f":"Import!E12261","v":"Select"},{"$f":"Import!E12361","v":"Select"},{"$f":"Import!E12461","v":"Select"},{"$f":"Import!E12561","v":"Select"},{"$f":"Import!E12661","v":0},{"$f":"Import!E12761","v":0},{"$f":"Import!E12861","v":0},{"$f":"Import!E12961","v":0},{"$f":"Import!E13061","v":0}]
[12,{"$f":"Import!E12262","v":"Select"},{"$f":"Import!E12362","v":"Select"},{"$f":"Import!E12462","v":"Select"},{"$f":"Import!E12562","v":"Select"},{"$f":"Import!E12662","v":0},{"$f":"Import!E12762","v":0},{"$f":"Import!E12862","v":0},{"$f":"Import!E12962","v":0},{"$f":"Import!E13062","v":0}]
[13,{"$f":"Import!E12263","v":"Select"},{"$f":"Import!E12363","v":"Select"},{"$f":"Import!E12463","v":"Select"},{"$f":"Import!E12563","v":"Select"},{"$f":"Import!E12663","v":0},{"$f":"Import!E12763","v":0},{"$f":"Import!E12863","v":0},{"$f":"Import!E12963","v":0},{"$f":"Import!E13063","v":0}]
[14,{"$f":"Import!E12264","v":"Select"},{"$f":"Import!E12364","v":"Select"},{"$f":"Import!E12464","v":"Select"},{"$f":"Import!E12564","v":"Select"},{"$f":"Import!E12664","v":0},{"$f":"Import!E12764","v":0},{"$f":"Import!E12864","v":0},{"$f":"Import!E12964","v":0},{"$f":"Import!E13064","v":0}]
[15,{"$f":"Import!E12265","v":"Select"},{"$f":"Import!E12365","v":"Select"},{"$f":"Import!E12465","v":"Select"},{"$f":"Import!E12565","v":"Select"},{"$f":"Import!E12665","v":0},{"$f":"Import!E12765","v":0},{"$f":"Import!E12865","v":0},{"$f":"Import!E12965","v":0},{"$f":"Import!E13065","v":0}]
[16,{"$f":"Import!E12266","v":"Select"},{"$f":"Import!E12366","v":"Select"},{"$f":"Import!E12466","v":"Select"},{"$f":"Import!E12566","v":"Select"},{"$f":"Import!E12666","v":0},{"$f":"Import!E12766","v":0},{"$f":"Import!E12866","v":0},{"$f":"Import!E12966","v":0},{"$f":"Import!E13066","v":0}]
[17,{"$f":"Import!E12267","v":"Select"},{"$f":"Import!E12367","v":"Select"},{"$f":"Import!E12467","v":"Select"},{"$f":"Import!E12567","v":"Select"},{"$f":"Import!E12667","v":0},{"$f":"Import!E12767","v":0},{"$f":"Import!E12867","v":0},{"$f":"Import!E12967","v":0},{"$f":"Import!E13067","v":0}]
[18,{"$f":"Import!E12268","v":"Select"},{"$f":"Import!E12368","v":"Select"},{"$f":"Import!E12468","v":"Select"},{"$f":"Import!E12568","v":"Select"},{"$f":"Import!E12668","v":0},{"$f":"Import!E12768","v":0},{"$f":"Import!E12868","v":0},{"$f":"Import!E12968","v":0},{"$f":"Import!E13068","v":0}]
[19,{"$f":"Import!E12269","v":"Select"},{"$f":"Import!E12369","v":"Select"},{"$f":"Import!E12469","v":"Select"},{"$f":"Import!E12569","v":"Select"},{"$f":"Import!E12669","v":0},{"$f":"Import!E12769","v":0},{"$f":"Import!E12869","v":0},{"$f":"Import!E12969","v":0},{"$f":"Import!E13069","v":0}]
[20,{"$f":"Import!E12270","v":"Select"},{"$f":"Import!E12370","v":"Select"},{"$f":"Import!E12470","v":"Select"},{"$f":"Import!E12570","v":"Select"},{"$f":"Import!E12670","v":0},{"$f":"Import!E12770","v":0},{"$f":"Import!E12870","v":0},{"$f":"Import!E12970","v":0},{"$f":"Import!E13070","v":0}]
[21,{"$f":"Import!E12271","v":"Select"},{"$f":"Import!E12371","v":"Select"},{"$f":"Import!E12471","v":"Select"},{"$f":"Import!E12571","v":"Select"},{"$f":"Import!E12671","v":0},{"$f":"Import!E12771","v":0},{"$f":"Import!E12871","v":0},{"$f":"Import!E12971","v":0},{"$f":"Import!E13071","v":0}]
[22,{"$f":"Import!E12272","v":"Select"},{"$f":"Import!E12372","v":"Select"},{"$f":"Import!E12472","v":"Select"},{"$f":"Import!E12572","v":"Select"},{"$f":"Import!E12672","v":0},{"$f":"Import!E12772","v":0},{"$f":"Import!E12872","v":0},{"$f":"Import!E12972","v":0},{"$f":"Import!E13072","v":0}]
[23,{"$f":"Import!E12273","v":"Select"},{"$f":"Import!E12373","v":"Select"},{"$f":"Import!E12473","v":"Select"},{"$f":"Import!E12573","v":"Select"},{"$f":"Import!E12673","v":0},{"$f":"Import!E12773","v":0},{"$f":"Import!E12873","v":0},{"$f":"Import!E12973","v":0},{"$f":"Import!E13073","v":0}]
[24,{"$f":"Import!E12274","v":"Select"},{"$f":"Import!E12374","v":"Select"},{"$f":"Import!E12474","v":"Select"},{"$f":"Import!E12574","v":"Select"},{"$f":"Import!E12674","v":0},{"$f":"Import!E12774","v":0},{"$f":"Import!E12874","v":0},{"$f":"Import!E12974","v":0},{"$f":"Import!E13074","v":0}]
[25,{"$f":"Import!E12275","v":"Select"},{"$f":"Import!E12375","v":"Select"},{"$f":"Import!E12475","v":"Select"},{"$f":"Import!E12575","v":"Select"},{"$f":"Import!E12675","v":0},{"$f":"Import!E12775","v":0},{"$f":"Import!E12875","v":0},{"$f":"Import!E12975","v":0},{"$f":"Import!E13075","v":0}]
[26,{"$f":"Import!E12276","v":"Select"},{"$f":"Import!E12376","v":"Select"},{"$f":"Import!E12476","v":"Select"},{"$f":"Import!E12576","v":"Select"},{"$f":"Import!E12676","v":0},{"$f":"Import!E12776","v":0},{"$f":"Import!E12876","v":0},{"$f":"Import!E12976","v":0},{"$f":"Import!E13076","v":0}]
[27,{"$f":"Import!E12277","v":"Select"},{"$f":"Import!E12377","v":"Select"},{"$f":"Import!E12477","v":"Select"},{"$f":"Import!E12577","v":"Select"},{"$f":"Import!E12677","v":0},{"$f":"Import!E12777","v":0},{"$f":"Import!E12877","v":0},{"$f":"Import!E12977","v":0},{"$f":"Import!E13077","v":0}]
[28,{"$f":"Import!E12278","v":"Select"},{"$f":"Import!E12378","v":"Select"},{"$f":"Import!E12478","v":"Select"},{"$f":"Import!E12578","v":"Select"},{"$f":"Import!E12678","v":0},{"$f":"Import!E12778","v":0},{"$f":"Import!E12878","v":0},{"$f":"Import!E12978","v":0},{"$f":"Import!E13078","v":0}]
[29,{"$f":"Import!E12279","v":"Select"},{"$f":"Import!E12379","v":"Select"},{"$f":"Import!E12479","v":"Select"},{"$f":"Import!E12579","v":"Select"},{"$f":"Import!E12679","v":0},{"$f":"Import!E12779","v":0},{"$f":"Import!E12879","v":0},{"$f":"Import!E12979","v":0},{"$f":"Import!E13079","v":0}]
[30,{"$f":"Import!E12280","v":"Select"},{"$f":"Import!E12380","v":"Select"},{"$f":"Import!E12480","v":"Select"},{"$f":"Import!E12580","v":"Select"},{"$f":"Import!E12680","v":0},{"$f":"Import!E12780","v":0},{"$f":"Import!E12880","v":0},{"$f":"Import!E12980","v":0},{"$f":"Import!E13080","v":0}]
[31,{"$f":"Import!E12281","v":"Select"},{"$f":"Import!E12381","v":"Select"},{"$f":"Import!E12481","v":"Select"},{"$f":"Import!E12581","v":"Select"},{"$f":"Import!E12681","v":0},{"$f":"Import!E12781","v":0},{"$f":"Import!E12881","v":0},{"$f":"Import!E12981","v":0},{"$f":"Import!E13081","v":0}]
[32,{"$f":"Import!E12282","v":"Select"},{"$f":"Import!E12382","v":"Select"},{"$f":"Import!E12482","v":"Select"},{"$f":"Import!E12582","v":"Select"},{"$f":"Import!E12682","v":0},{"$f":"Import!E12782","v":0},{"$f":"Import!E12882","v":0},{"$f":"Import!E12982","v":0},{"$f":"Import!E13082","v":0}]
[33,{"$f":"Import!E12283","v":"Select"},{"$f":"Import!E12383","v":"Select"},{"$f":"Import!E12483","v":"Select"},{"$f":"Import!E12583","v":"Select"},{"$f":"Import!E12683","v":0},{"$f":"Import!E12783","v":0},{"$f":"Import!E12883","v":0},{"$f":"Import!E12983","v":0},{"$f":"Import!E13083","v":0}]
[34,{"$f":"Import!E12284","v":"Select"},{"$f":"Import!E12384","v":"Select"},{"$f":"Import!E12484","v":"Select"},{"$f":"Import!E12584","v":"Select"},{"$f":"Import!E12684","v":0},{"$f":"Import!E12784","v":0},{"$f":"Import!E12884","v":0},{"$f":"Import!E12984","v":0},{"$f":"Import!E13084","v":0}]
[35,{"$f":"Import!E12285","v":"Select"},{"$f":"Import!E12385","v":"Select"},{"$f":"Import!E12485","v":"Select"},{"$f":"Import!E12585","v":"Select"},{"$f":"Import!E12685","v":0},{"$f":"Import!E12785","v":0},{"$f":"Import!E12885","v":0},{"$f":"Import!E12985","v":0},{"$f":"Import!E13085","v":0}]
[36,{"$f":"Import!E12286","v":"Select"},{"$f":"Import!E12386","v":"Select"},{"$f":"Import!E12486","v":"Select"},{"$f":"Import!E12586","v":"Select"},{"$f":"Import!E12686","v":0},{"$f":"Import!E12786","v":0},{"$f":"Import!E12886","v":0},{"$f":"Import!E12986","v":0},{"$f":"Import!E13086","v":0}]
[37,{"$f":"Import!E12287","v":"Select"},{"$f":"Import!E12387","v":"Select"},{"$f":"Import!E12487","v":"Select"},{"$f":"Import!E12587","v":"Select"},{"$f":"Import!E12687","v":0},{"$f":"Import!E12787","v":0},{"$f":"Import!E12887","v":0},{"$f":"Import!E12987","v":0},{"$f":"Import!E13087","v":0}]
[38,{"$f":"Import!E12288","v":"Select"},{"$f":"Import!E12388","v":"Select"},{"$f":"Import!E12488","v":"Select"},{"$f":"Import!E12588","v":"Select"},{"$f":"Import!E12688","v":0},{"$f":"Import!E12788","v":0},{"$f":"Import!E12888","v":0},{"$f":"Import!E12988","v":0},{"$f":"Import!E13088","v":0}]
[39,{"$f":"Import!E12289","v":"Select"},{"$f":"Import!E12389","v":"Select"},{"$f":"Import!E12489","v":"Select"},{"$f":"Import!E12589","v":"Select"},{"$f":"Import!E12689","v":0},{"$f":"Import!E12789","v":0},{"$f":"Import!E12889","v":0},{"$f":"Import!E12989","v":0},{"$f":"Import!E13089","v":0}]
[40,{"$f":"Import!E12290","v":"Select"},{"$f":"Import!E12390","v":"Select"},{"$f":"Import!E12490","v":"Select"},{"$f":"Import!E12590","v":"Select"},{"$f":"Import!E12690","v":0},{"$f":"Import!E12790","v":0},{"$f":"Import!E12890","v":0},{"$f":"Import!E12990","v":0},{"$f":"Import!E13090","v":0}]
[41,{"$f":"Import!E12291","v":"Select"},{"$f":"Import!E12391","v":"Select"},{"$f":"Import!E12491","v":"Select"},{"$f":"Import!E12591","v":"Select"},{"$f":"Import!E12691","v":0},{"$f":"Import!E12791","v":0},{"$f":"Import!E12891","v":0},{"$f":"Import!E12991","v":0},{"$f":"Import!E13091","v":0}]
[42,{"$f":"Import!E12292","v":"Select"},{"$f":"Import!E12392","v":"Select"},{"$f":"Import!E12492","v":"Select"},{"$f":"Import!E12592","v":"Select"},{"$f":"Import!E12692","v":0},{"$f":"Import!E12792","v":0},{"$f":"Import!E12892","v":0},{"$f":"Import!E12992","v":0},{"$f":"Import!E13092","v":0}]
[43,{"$f":"Import!E12293","v":"Select"},{"$f":"Import!E12393","v":"Select"},{"$f":"Import!E12493","v":"Select"},{"$f":"Import!E12593","v":"Select"},{"$f":"Import!E12693","v":0},{"$f":"Import!E12793","v":0},{"$f":"Import!E12893","v":0},{"$f":"Import!E12993","v":0},{"$f":"Import!E13093","v":0}]
[44,{"$f":"Import!E12294","v":"Select"},{"$f":"Import!E12394","v":"Select"},{"$f":"Import!E12494","v":"Select"},{"$f":"Import!E12594","v":"Select"},{"$f":"Import!E12694","v":0},{"$f":"Import!E12794","v":0},{"$f":"Import!E12894","v":0},{"$f":"Import!E12994","v":0},{"$f":"Import!E13094","v":0}]
[45,{"$f":"Import!E12295","v":"Select"},{"$f":"Import!E12395","v":"Select"},{"$f":"Import!E12495","v":"Select"},{"$f":"Import!E12595","v":"Select"},{"$f":"Import!E12695","v":0},{"$f":"Import!E12795","v":0},{"$f":"Import!E12895","v":0},{"$f":"Import!E12995","v":0},{"$f":"Import!E13095","v":0}]
[46,{"$f":"Import!E12296","v":"Select"},{"$f":"Import!E12396","v":"Select"},{"$f":"Import!E12496","v":"Select"},{"$f":"Import!E12596","v":"Select"},{"$f":"Import!E12696","v":0},{"$f":"Import!E12796","v":0},{"$f":"Import!E12896","v":0},{"$f":"Import!E12996","v":0},{"$f":"Import!E13096","v":0}]
[47,{"$f":"Import!E12297","v":"Select"},{"$f":"Import!E12397","v":"Select"},{"$f":"Import!E12497","v":"Select"},{"$f":"Import!E12597","v":"Select"},{"$f":"Import!E12697","v":0},{"$f":"Import!E12797","v":0},{"$f":"Import!E12897","v":0},{"$f":"Import!E12997","v":0},{"$f":"Import!E13097","v":0}]
[48,{"$f":"Import!E12298","v":"Select"},{"$f":"Import!E12398","v":"Select"},{"$f":"Import!E12498","v":"Select"},{"$f":"Import!E12598","v":"Select"},{"$f":"Import!E12698","v":0},{"$f":"Import!E12798","v":0},{"$f":"Import!E12898","v":0},{"$f":"Import!E12998","v":0},{"$f":"Import!E13098","v":0}]
[49,{"$f":"Import!E12299","v":"Select"},{"$f":"Import!E12399","v":"Select"},{"$f":"Import!E12499","v":"Select"},{"$f":"Import!E12599","v":"Select"},{"$f":"Import!E12699","v":0},{"$f":"Import!E12799","v":0},{"$f":"Import!E12899","v":0},{"$f":"Import!E12999","v":0},{"$f":"Import!E13099","v":0}]
[50,{"$f":"Import!E12300","v":"Select"},{"$f":"Import!E12400","v":"Select"},{"$f":"Import!E12500","v":"Select"},{"$f":"Import!E12600","v":"Select"},{"$f":"Import!E12700","v":0},{"$f":"Import!E12800","v":0},{"$f":"Import!E12900","v":0},{"$f":"Import!E13000","v":0},{"$f":"Import!E13100","v":0}]
[51,{"$f":"Import!E12301","v":"Select"},{"$f":"Import!E12401","v":"Select"},{"$f":"Import!E12501","v":"Select"},{"$f":"Import!E12601","v":"Select"},{"$f":"Import!E12701","v":0},{"$f":"Import!E12801","v":0},{"$f":"Import!E12901","v":0},{"$f":"Import!E13001","v":0},{"$f":"Import!E13101","v":0}]
[52,{"$f":"Import!E12302","v":"Select"},{"$f":"Import!E12402","v":"Select"},{"$f":"Import!E12502","v":"Select"},{"$f":"Import!E12602","v":"Select"},{"$f":"Import!E12702","v":0},{"$f":"Import!E12802","v":0},{"$f":"Import!E12902","v":0},{"$f":"Import!E13002","v":0},{"$f":"Import!E13102","v":0}]
[53,{"$f":"Import!E12303","v":"Select"},{"$f":"Import!E12403","v":"Select"},{"$f":"Import!E12503","v":"Select"},{"$f":"Import!E12603","v":"Select"},{"$f":"Import!E12703","v":0},{"$f":"Import!E12803","v":0},{"$f":"Import!E12903","v":0},{"$f":"Import!E13003","v":0},{"$f":"Import!E13103","v":0}]
[54,{"$f":"Import!E12304","v":"Select"},{"$f":"Import!E12404","v":"Select"},{"$f":"Import!E12504","v":"Select"},{"$f":"Import!E12604","v":"Select"},{"$f":"Import!E12704","v":0},{"$f":"Import!E12804","v":0},{"$f":"Import!E12904","v":0},{"$f":"Import!E13004","v":0},{"$f":"Import!E13104","v":0}]
[55,{"$f":"Import!E12305","v":"Select"},{"$f":"Import!E12405","v":"Select"},{"$f":"Import!E12505","v":"Select"},{"$f":"Import!E12605","v":"Select"},{"$f":"Import!E12705","v":0},{"$f":"Import!E12805","v":0},{"$f":"Import!E12905","v":0},{"$f":"Import!E13005","v":0},{"$f":"Import!E13105","v":0}]
[56,{"$f":"Import!E12306","v":"Select"},{"$f":"Import!E12406","v":"Select"},{"$f":"Import!E12506","v":"Select"},{"$f":"Import!E12606","v":"Select"},{"$f":"Import!E12706","v":0},{"$f":"Import!E12806","v":0},{"$f":"Import!E12906","v":0},{"$f":"Import!E13006","v":0},{"$f":"Import!E13106","v":0}]
[57,{"$f":"Import!E12307","v":"Select"},{"$f":"Import!E12407","v":"Select"},{"$f":"Import!E12507","v":"Select"},{"$f":"Import!E12607","v":"Select"},{"$f":"Import!E12707","v":0},{"$f":"Import!E12807","v":0},{"$f":"Import!E12907","v":0},{"$f":"Import!E13007","v":0},{"$f":"Import!E13107","v":0}]
[58,{"$f":"Import!E12308","v":"Select"},{"$f":"Import!E12408","v":"Select"},{"$f":"Import!E12508","v":"Select"},{"$f":"Import!E12608","v":"Select"},{"$f":"Import!E12708","v":0},{"$f":"Import!E12808","v":0},{"$f":"Import!E12908","v":0},{"$f":"Import!E13008","v":0},{"$f":"Import!E13108","v":0}]
[59,{"$f":"Import!E12309","v":"Select"},{"$f":"Import!E12409","v":"Select"},{"$f":"Import!E12509","v":"Select"},{"$f":"Import!E12609","v":"Select"},{"$f":"Import!E12709","v":0},{"$f":"Import!E12809","v":0},{"$f":"Import!E12909","v":0},{"$f":"Import!E13009","v":0},{"$f":"Import!E13109","v":0}]
[60,{"$f":"Import!E12310","v":"Select"},{"$f":"Import!E12410","v":"Select"},{"$f":"Import!E12510","v":"Select"},{"$f":"Import!E12610","v":"Select"},{"$f":"Import!E12710","v":0},{"$f":"Import!E12810","v":0},{"$f":"Import!E12910","v":0},{"$f":"Import!E13010","v":0},{"$f":"Import!E13110","v":0}]
[61,{"$f":"Import!E12311","v":"Select"},{"$f":"Import!E12411","v":"Select"},{"$f":"Import!E12511","v":"Select"},{"$f":"Import!E12611","v":"Select"},{"$f":"Import!E12711","v":0},{"$f":"Import!E12811","v":0},{"$f":"Import!E12911","v":0},{"$f":"Import!E13011","v":0},{"$f":"Import!E13111","v":0}]
[62,{"$f":"Import!E12312","v":"Select"},{"$f":"Import!E12412","v":"Select"},{"$f":"Import!E12512","v":"Select"},{"$f":"Import!E12612","v":"Select"},{"$f":"Import!E12712","v":0},{"$f":"Import!E12812","v":0},{"$f":"Import!E12912","v":0},{"$f":"Import!E13012","v":0},{"$f":"Import!E13112","v":0}]
[63,{"$f":"Import!E12313","v":"Select"},{"$f":"Import!E12413","v":"Select"},{"$f":"Import!E12513","v":"Select"},{"$f":"Import!E12613","v":"Select"},{"$f":"Import!E12713","v":0},{"$f":"Import!E12813","v":0},{"$f":"Import!E12913","v":0},{"$f":"Import!E13013","v":0},{"$f":"Import!E13113","v":0}]
[64,{"$f":"Import!E12314","v":"Select"},{"$f":"Import!E12414","v":"Select"},{"$f":"Import!E12514","v":"Select"},{"$f":"Import!E12614","v":"Select"},{"$f":"Import!E12714","v":0},{"$f":"Import!E12814","v":0},{"$f":"Import!E12914","v":0},{"$f":"Import!E13014","v":0},{"$f":"Import!E13114","v":0}]
[65,{"$f":"Import!E12315","v":"Select"},{"$f":"Import!E12415","v":"Select"},{"$f":"Import!E12515","v":"Select"},{"$f":"Import!E12615","v":"Select"},{"$f":"Import!E12715","v":0},{"$f":"Import!E12815","v":0},{"$f":"Import!E12915","v":0},{"$f":"Import!E13015","v":0},{"$f":"Import!E13115","v":0}]
[66,{"$f":"Import!E12316","v":"Select"},{"$f":"Import!E12416","v":"Select"},{"$f":"Import!E12516","v":"Select"},{"$f":"Import!E12616","v":"Select"},{"$f":"Import!E12716","v":0},{"$f":"Import!E12816","v":0},{"$f":"Import!E12916","v":0},{"$f":"Import!E13016","v":0},{"$f":"Import!E13116","v":0}]
[{"$f":"A1058+1","v":67},{"$f":"Import!E12317","v":"Select"},{"$f":"Import!E12417","v":"Select"},{"$f":"Import!E12517","v":"Select"},{"$f":"Import!E12617","v":"Select"},{"$f":"Import!E12717","v":0},{"$f":"Import!E12817","v":0},{"$f":"Import!E12917","v":0},{"$f":"Import!E13017","v":0},{"$f":"Import!E13117","v":0}]
[68,{"$f":"Import!E12318","v":"Select"},{"$f":"Import!E12418","v":"Select"},{"$f":"Import!E12518","v":"Select"},{"$f":"Import!E12618","v":"Select"},{"$f":"Import!E12718","v":0},{"$f":"Import!E12818","v":0},{"$f":"Import!E12918","v":0},{"$f":"Import!E13018","v":0},{"$f":"Import!E13118","v":0}]
[69,{"$f":"Import!E12319","v":"Select"},{"$f":"Import!E12419","v":"Select"},{"$f":"Import!E12519","v":"Select"},{"$f":"Import!E12619","v":"Select"},{"$f":"Import!E12719","v":0},{"$f":"Import!E12819","v":0},{"$f":"Import!E12919","v":0},{"$f":"Import!E13019","v":0},{"$f":"Import!E13119","v":0}]
[70,{"$f":"Import!E12320","v":"Select"},{"$f":"Import!E12420","v":"Select"},{"$f":"Import!E12520","v":"Select"},{"$f":"Import!E12620","v":"Select"},{"$f":"Import!E12720","v":0},{"$f":"Import!E12820","v":0},{"$f":"Import!E12920","v":0},{"$f":"Import!E13020","v":0},{"$f":"Import!E13120","v":0}]
[71,{"$f":"Import!E12321","v":"Select"},{"$f":"Import!E12421","v":"Select"},{"$f":"Import!E12521","v":"Select"},{"$f":"Import!E12621","v":"Select"},{"$f":"Import!E12721","v":0},{"$f":"Import!E12821","v":0},{"$f":"Import!E12921","v":0},{"$f":"Import!E13021","v":0},{"$f":"Import!E13121","v":0}]
[72,{"$f":"Import!E12322","v":"Select"},{"$f":"Import!E12422","v":"Select"},{"$f":"Import!E12522","v":"Select"},{"$f":"Import!E12622","v":"Select"},{"$f":"Import!E12722","v":0},{"$f":"Import!E12822","v":0},{"$f":"Import!E12922","v":0},{"$f":"Import!E13022","v":0},{"$f":"Import!E13122","v":0}]
[73,{"$f":"Import!E12323","v":"Select"},{"$f":"Import!E12423","v":"Select"},{"$f":"Import!E12523","v":"Select"},{"$f":"Import!E12623","v":"Select"},{"$f":"Import!E12723","v":0},{"$f":"Import!E12823","v":0},{"$f":"Import!E12923","v":0},{"$f":"Import!E13023","v":0},{"$f":"Import!E13123","v":0}]
[74,{"$f":"Import!E12324","v":"Select"},{"$f":"Import!E12424","v":"Select"},{"$f":"Import!E12524","v":"Select"},{"$f":"Import!E12624","v":"Select"},{"$f":"Import!E12724","v":0},{"$f":"Import!E12824","v":0},{"$f":"Import!E12924","v":0},{"$f":"Import!E13024","v":0},{"$f":"Import!E13124","v":0}]
[75,{"$f":"Import!E12325","v":"Select"},{"$f":"Import!E12425","v":"Select"},{"$f":"Import!E12525","v":"Select"},{"$f":"Import!E12625","v":"Select"},{"$f":"Import!E12725","v":0},{"$f":"Import!E12825","v":0},{"$f":"Import!E12925","v":0},{"$f":"Import!E13025","v":0},{"$f":"Import!E13125","v":0}]
[76,{"$f":"Import!E12326","v":"Select"},{"$f":"Import!E12426","v":"Select"},{"$f":"Import!E12526","v":"Select"},{"$f":"Import!E12626","v":"Select"},{"$f":"Import!E12726","v":0},{"$f":"Import!E12826","v":0},{"$f":"Import!E12926","v":0},{"$f":"Import!E13026","v":0},{"$f":"Import!E13126","v":0}]
[77,{"$f":"Import!E12327","v":"Select"},{"$f":"Import!E12427","v":"Select"},{"$f":"Import!E12527","v":"Select"},{"$f":"Import!E12627","v":"Select"},{"$f":"Import!E12727","v":0},{"$f":"Import!E12827","v":0},{"$f":"Import!E12927","v":0},{"$f":"Import!E13027","v":0},{"$f":"Import!E13127","v":0}]
[78,{"$f":"Import!E12328","v":"Select"},{"$f":"Import!E12428","v":"Select"},{"$f":"Import!E12528","v":"Select"},{"$f":"Import!E12628","v":"Select"},{"$f":"Import!E12728","v":0},{"$f":"Import!E12828","v":0},{"$f":"Import!E12928","v":0},{"$f":"Import!E13028","v":0},{"$f":"Import!E13128","v":0}]
[79,{"$f":"Import!E12329","v":"Select"},{"$f":"Import!E12429","v":"Select"},{"$f":"Import!E12529","v":"Select"},{"$f":"Import!E12629","v":"Select"},{"$f":"Import!E12729","v":0},{"$f":"Import!E12829","v":0},{"$f":"Import!E12929","v":0},{"$f":"Import!E13029","v":0},{"$f":"Import!E13129","v":0}]
[80,{"$f":"Import!E12330","v":"Select"},{"$f":"Import!E12430","v":"Select"},{"$f":"Import!E12530","v":"Select"},{"$f":"Import!E12630","v":"Select"},{"$f":"Import!E12730","v":0},{"$f":"Import!E12830","v":0},{"$f":"Import!E12930","v":0},{"$f":"Import!E13030","v":0},{"$f":"Import!E13130","v":0}]
[81,{"$f":"Import!E12331","v":"Select"},{"$f":"Import!E12431","v":"Select"},{"$f":"Import!E12531","v":"Select"},{"$f":"Import!E12631","v":"Select"},{"$f":"Import!E12731","v":0},{"$f":"Import!E12831","v":0},{"$f":"Import!E12931","v":0},{"$f":"Import!E13031","v":0},{"$f":"Import!E13131","v":0}]
[82,{"$f":"Import!E12332","v":"Select"},{"$f":"Import!E12432","v":"Select"},{"$f":"Import!E12532","v":"Select"},{"$f":"Import!E12632","v":"Select"},{"$f":"Import!E12732","v":0},{"$f":"Import!E12832","v":0},{"$f":"Import!E12932","v":0},{"$f":"Import!E13032","v":0},{"$f":"Import!E13132","v":0}]
[83,{"$f":"Import!E12333","v":"Select"},{"$f":"Import!E12433","v":"Select"},{"$f":"Import!E12533","v":"Select"},{"$f":"Import!E12633","v":"Select"},{"$f":"Import!E12733","v":0},{"$f":"Import!E12833","v":0},{"$f":"Import!E12933","v":0},{"$f":"Import!E13033","v":0},{"$f":"Import!E13133","v":0}]
[84,{"$f":"Import!E12334","v":"Select"},{"$f":"Import!E12434","v":"Select"},{"$f":"Import!E12534","v":"Select"},{"$f":"Import!E12634","v":"Select"},{"$f":"Import!E12734","v":0},{"$f":"Import!E12834","v":0},{"$f":"Import!E12934","v":0},{"$f":"Import!E13034","v":0},{"$f":"Import!E13134","v":0}]
[85,{"$f":"Import!E12335","v":"Select"},{"$f":"Import!E12435","v":"Select"},{"$f":"Import!E12535","v":"Select"},{"$f":"Import!E12635","v":"Select"},{"$f":"Import!E12735","v":0},{"$f":"Import!E12835","v":0},{"$f":"Import!E12935","v":0},{"$f":"Import!E13035","v":0},{"$f":"Import!E13135","v":0}]
[86,{"$f":"Import!E12336","v":"Select"},{"$f":"Import!E12436","v":"Select"},{"$f":"Import!E12536","v":"Select"},{"$f":"Import!E12636","v":"Select"},{"$f":"Import!E12736","v":0},{"$f":"Import!E12836","v":0},{"$f":"Import!E12936","v":0},{"$f":"Import!E13036","v":0},{"$f":"Import!E13136","v":0}]
[87,{"$f":"Import!E12337","v":"Select"},{"$f":"Import!E12437","v":"Select"},{"$f":"Import!E12537","v":"Select"},{"$f":"Import!E12637","v":"Select"},{"$f":"Import!E12737","v":0},{"$f":"Import!E12837","v":0},{"$f":"Import!E12937","v":0},{"$f":"Import!E13037","v":0},{"$f":"Import!E13137","v":0}]
[88,{"$f":"Import!E12338","v":"Select"},{"$f":"Import!E12438","v":"Select"},{"$f":"Import!E12538","v":"Select"},{"$f":"Import!E12638","v":"Select"},{"$f":"Import!E12738","v":0},{"$f":"Import!E12838","v":0},{"$f":"Import!E12938","v":0},{"$f":"Import!E13038","v":0},{"$f":"Import!E13138","v":0}]
[89,{"$f":"Import!E12339","v":"Select"},{"$f":"Import!E12439","v":"Select"},{"$f":"Import!E12539","v":"Select"},{"$f":"Import!E12639","v":"Select"},{"$f":"Import!E12739","v":0},{"$f":"Import!E12839","v":0},{"$f":"Import!E12939","v":0},{"$f":"Import!E13039","v":0},{"$f":"Import!E13139","v":0}]
[90,{"$f":"Import!E12340","v":"Select"},{"$f":"Import!E12440","v":"Select"},{"$f":"Import!E12540","v":"Select"},{"$f":"Import!E12640","v":"Select"},{"$f":"Import!E12740","v":0},{"$f":"Import!E12840","v":0},{"$f":"Import!E12940","v":0},{"$f":"Import!E13040","v":0},{"$f":"Import!E13140","v":0}]
[91,{"$f":"Import!E12341","v":"Select"},{"$f":"Import!E12441","v":"Select"},{"$f":"Import!E12541","v":"Select"},{"$f":"Import!E12641","v":"Select"},{"$f":"Import!E12741","v":0},{"$f":"Import!E12841","v":0},{"$f":"Import!E12941","v":0},{"$f":"Import!E13041","v":0},{"$f":"Import!E13141","v":0}]
[92,{"$f":"Import!E12342","v":"Select"},{"$f":"Import!E12442","v":"Select"},{"$f":"Import!E12542","v":"Select"},{"$f":"Import!E12642","v":"Select"},{"$f":"Import!E12742","v":0},{"$f":"Import!E12842","v":0},{"$f":"Import!E12942","v":0},{"$f":"Import!E13042","v":0},{"$f":"Import!E13142","v":0}]
[93,{"$f":"Import!E12343","v":"Select"},{"$f":"Import!E12443","v":"Select"},{"$f":"Import!E12543","v":"Select"},{"$f":"Import!E12643","v":"Select"},{"$f":"Import!E12743","v":0},{"$f":"Import!E12843","v":0},{"$f":"Import!E12943","v":0},{"$f":"Import!E13043","v":0},{"$f":"Import!E13143","v":0}]
[94,{"$f":"Import!E12344","v":"Select"},{"$f":"Import!E12444","v":"Select"},{"$f":"Import!E12544","v":"Select"},{"$f":"Import!E12644","v":"Select"},{"$f":"Import!E12744","v":0},{"$f":"Import!E12844","v":0},{"$f":"Import!E12944","v":0},{"$f":"Import!E13044","v":0},{"$f":"Import!E13144","v":0}]
[95,{"$f":"Import!E12345","v":"Select"},{"$f":"Import!E12445","v":"Select"},{"$f":"Import!E12545","v":"Select"},{"$f":"Import!E12645","v":"Select"},{"$f":"Import!E12745","v":0},{"$f":"Import!E12845","v":0},{"$f":"Import!E12945","v":0},{"$f":"Import!E13045","v":0},{"$f":"Import!E13145","v":0}]
[96,{"$f":"Import!E12346","v":"Select"},{"$f":"Import!E12446","v":"Select"},{"$f":"Import!E12546","v":"Select"},{"$f":"Import!E12646","v":"Select"},{"$f":"Import!E12746","v":0},{"$f":"Import!E12846","v":0},{"$f":"Import!E12946","v":0},{"$f":"Import!E13046","v":0},{"$f":"Import!E13146","v":0}]
[97,{"$f":"Import!E12347","v":"Select"},{"$f":"Import!E12447","v":"Select"},{"$f":"Import!E12547","v":"Select"},{"$f":"Import!E12647","v":"Select"},{"$f":"Import!E12747","v":0},{"$f":"Import!E12847","v":0},{"$f":"Import!E12947","v":0},{"$f":"Import!E13047","v":0},{"$f":"Import!E13147","v":0}]
[98,{"$f":"Import!E12348","v":"Select"},{"$f":"Import!E12448","v":"Select"},{"$f":"Import!E12548","v":"Select"},{"$f":"Import!E12648","v":"Select"},{"$f":"Import!E12748","v":0},{"$f":"Import!E12848","v":0},{"$f":"Import!E12948","v":0},{"$f":"Import!E13048","v":0},{"$f":"Import!E13148","v":0}]
[99,{"$f":"Import!E12349","v":"Select"},{"$f":"Import!E12449","v":"Select"},{"$f":"Import!E12549","v":"Select"},{"$f":"Import!E12649","v":"Select"},{"$f":"Import!E12749","v":0},{"$f":"Import!E12849","v":0},{"$f":"Import!E12949","v":0},{"$f":"Import!E13049","v":0},{"$f":"Import!E13149","v":0}]
[100,{"$f":"Import!E12350","v":"Select"},{"$f":"Import!E12450","v":"Select"},{"$f":"Import!E12550","v":"Select"},{"$f":"Import!E12650","v":"Select"},{"$f":"Import!E12750","v":0},{"$f":"Import!E12850","v":0},{"$f":"Import!E12950","v":0},{"$f":"Import!E13050","v":0},{"$f":"Import!E13150","v":0}]
[]
[null,"Total Loans",null,null,null,{"$f":"SUM(F993:F1092)","v":0},{"$f":"SUM(G993:G1092)","v":0},{"$f":"IFERROR(SUMPRODUCT(H993:H1092,$G993:$G1092)/SUM($G993:$G1092),0)","v":0},{"$f":"IFERROR(SUMPRODUCT(I993:I1092,$G993:$G1092)/SUM($G993:$G1092),0)","v":0}]
[]
[null,"- OF WHICH NON-PERFORMING LOANS"]
[]
[null,null,"Enter # of Asset Types",{"$f":"Import!E13151","v":0}]
[null,null,null,null,null,{"$f":"YEAR($C$3)","v":2023},2023]
[null,"Asset Type","Currency","Country","BSCR Rating","Nominal Amount","Fair Value","Comments"]
[1,{"$f":"Import!E13152","v":"Select"},{"$f":"Import!E13172","v":"Select"},{"$f":"Import!E13192","v":"Select"},{"$f":"Import!E13212","v":"Select"},{"$f":"Import!E13232","v":0},{"$f":"Import!E13252","v":0},{"$f":"Import!E13272","v":0}]
[{"$f":"A1101+1","v":2},"Select",{"$f":"Import!E13173","v":"Select"},{"$f":"Import!E13193","v":"Select"},{"$f":"Import!E13213","v":"Select"},{"$f":"Import!E13233","v":0},{"$f":"Import!E13253","v":0},{"$f":"Import!E13273","v":0}]
[{"$f":"A1102+1","v":3},"Select",{"$f":"Import!E13174","v":"Select"},{"$f":"Import!E13194","v":"Select"},{"$f":"Import!E13214","v":"Select"},{"$f":"Import!E13234","v":0},{"$f":"Import!E13254","v":0},{"$f":"Import!E13274","v":0}]
[4,"Select",{"$f":"Import!E13175","v":"Select"},{"$f":"Import!E13195","v":"Select"},{"$f":"Import!E13215","v":"Select"},{"$f":"Import!E13235","v":0},{"$f":"Import!E13255","v":0},{"$f":"Import!E13275","v":0}]
[5,"Select",{"$f":"Import!E13176","v":"Select"},{"$f":"Import!E13196","v":"Select"},{"$f":"Import!E13216","v":"Select"},{"$f":"Import!E13236","v":0},{"$f":"Import!E13256","v":0},{"$f":"Import!E13276","v":0}]
[6,"Select",{"$f":"Import!E13177","v":"Select"},{"$f":"Import!E13197","v":"Select"},{"$f":"Import!E13217","v":"Select"},{"$f":"Import!E13237","v":0},{"$f":"Import!E13257","v":0},{"$f":"Import!E13277","v":0}]
[7,"Select",{"$f":"Import!E13178","v":"Select"},{"$f":"Import!E13198","v":"Select"},{"$f":"Import!E13218","v":"Select"},{"$f":"Import!E13238","v":0},{"$f":"Import!E13258","v":0},{"$f":"Import!E13278","v":0}]
[8,"Select",{"$f":"Import!E13179","v":"Select"},{"$f":"Import!E13199","v":"Select"},{"$f":"Import!E13219","v":"Select"},{"$f":"Import!E13239","v":0},{"$f":"Import!E13259","v":0},{"$f":"Import!E13279","v":0}]
[9,"Select",{"$f":"Import!E13180","v":"Select"},{"$f":"Import!E13200","v":"Select"},{"$f":"Import!E13220","v":"Select"},{"$f":"Import!E13240","v":0},{"$f":"Import!E13260","v":0},{"$f":"Import!E13280","v":0}]
[10,"Select",{"$f":"Import!E13181","v":"Select"},{"$f":"Import!E13201","v":"Select"},{"$f":"Import!E13221","v":"Select"},{"$f":"Import!E13241","v":0},{"$f":"Import!E13261","v":0},{"$f":"Import!E13281","v":0}]
[11,"Select",{"$f":"Import!E13182","v":"Select"},{"$f":"Import!E13202","v":"Select"},{"$f":"Import!E13222","v":"Select"},{"$f":"Import!E13242","v":0},{"$f":"Import!E13262","v":0},{"$f":"Import!E13282","v":0}]
[12,"Select",{"$f":"Import!E13183","v":"Select"},{"$f":"Import!E13203","v":"Select"},{"$f":"Import!E13223","v":"Select"},{"$f":"Import!E13243","v":0},{"$f":"Import!E13263","v":0},{"$f":"Import!E13283","v":0}]
[13,"Select",{"$f":"Import!E13184","v":"Select"},{"$f":"Import!E13204","v":"Select"},{"$f":"Import!E13224","v":"Select"},{"$f":"Import!E13244","v":0},{"$f":"Import!E13264","v":0},{"$f":"Import!E13284","v":0}]
[14,"Select",{"$f":"Import!E13185","v":"Select"},{"$f":"Import!E13205","v":"Select"},{"$f":"Import!E13225","v":"Select"},{"$f":"Import!E13245","v":0},{"$f":"Import!E13265","v":0},{"$f":"Import!E13285","v":0}]
[15,"Select",{"$f":"Import!E13186","v":"Select"},{"$f":"Import!E13206","v":"Select"},{"$f":"Import!E13226","v":"Select"},{"$f":"Import!E13246","v":0},{"$f":"Import!E13266","v":0},{"$f":"Import!E13286","v":0}]
[16,"Select",{"$f":"Import!E13187","v":"Select"},{"$f":"Import!E13207","v":"Select"},{"$f":"Import!E13227","v":"Select"},{"$f":"Import!E13247","v":0},{"$f":"Import!E13267","v":0},{"$f":"Import!E13287","v":0}]
[17,"Select",{"$f":"Import!E13188","v":"Select"},{"$f":"Import!E13208","v":"Select"},{"$f":"Import!E13228","v":"Select"},{"$f":"Import!E13248","v":0},{"$f":"Import!E13268","v":0},{"$f":"Import!E13288","v":0}]
[18,"Select",{"$f":"Import!E13189","v":"Select"},{"$f":"Import!E13209","v":"Select"},{"$f":"Import!E13229","v":"Select"},{"$f":"Import!E13249","v":0},{"$f":"Import!E13269","v":0},{"$f":"Import!E13289","v":0}]
[19,"Select",{"$f":"Import!E13190","v":"Select"},{"$f":"Import!E13210","v":"Select"},{"$f":"Import!E13230","v":"Select"},{"$f":"Import!E13250","v":0},{"$f":"Import!E13270","v":0},{"$f":"Import!E13290","v":0}]
[20,"Select",{"$f":"Import!E13191","v":"Select"},{"$f":"Import!E13211","v":"Select"},{"$f":"Import!E13231","v":"Select"},{"$f":"Import!E13251","v":0},{"$f":"Import!E13271","v":0},{"$f":"Import!E13291","v":0}]
[]
[null,"Total Non-Performing Loans",null,null,null,{"$f":"SUM(F1101:F1120)","v":0},{"$f":"SUM(G1101:G1120)","v":0}]
[]
[null,"(E) PREFERRED EQUITIES"]
[]
[null,null,"Enter # of Asset Types",{"$f":"Import!E13292","v":0}]
[null,null,null,null,{"$f":"YEAR($C$3)","v":2023},2023,"Weighted"]
[null,"Asset Type","Currency","BSCR Rating","Nominal Amount","Fair Value","Average YTM","Effective Duration","Comments"]
[1,{"$f":"Import!E13293","v":"Select"},{"$f":"Import!E13393","v":"Select"},{"$f":"Import!E13493","v":"Select"},{"$f":"Import!E13593","v":0},{"$f":"Import!E13693","v":0},{"$f":"Import!E13793","v":0},{"$f":"Import!E13893","v":0},{"$f":"Import!E13993","v":0}]
[{"$f":"A1129+1","v":2},{"$f":"Import!E13294","v":"Select"},{"$f":"Import!E13394","v":"Select"},{"$f":"Import!E13494","v":"Select"},{"$f":"Import!E13594","v":0},{"$f":"Import!E13694","v":0},{"$f":"Import!E13794","v":0},{"$f":"Import!E13894","v":0},{"$f":"Import!E13994","v":0}]
[{"$f":"A1130+1","v":3},{"$f":"Import!E13295","v":"Select"},{"$f":"Import!E13395","v":"Select"},{"$f":"Import!E13495","v":"Select"},{"$f":"Import!E13595","v":0},{"$f":"Import!E13695","v":0},{"$f":"Import!E13795","v":0},{"$f":"Import!E13895","v":0},{"$f":"Import!E13995","v":0}]
[4,{"$f":"Import!E13296","v":"Select"},{"$f":"Import!E13396","v":"Select"},{"$f":"Import!E13496","v":"Select"},{"$f":"Import!E13596","v":0},{"$f":"Import!E13696","v":0},{"$f":"Import!E13796","v":0},{"$f":"Import!E13896","v":0},{"$f":"Import!E13996","v":0}]
[5,{"$f":"Import!E13297","v":"Select"},{"$f":"Import!E13397","v":"Select"},{"$f":"Import!E13497","v":"Select"},{"$f":"Import!E13597","v":0},{"$f":"Import!E13697","v":0},{"$f":"Import!E13797","v":0},{"$f":"Import!E13897","v":0},{"$f":"Import!E13997","v":0}]
[6,{"$f":"Import!E13298","v":"Select"},{"$f":"Import!E13398","v":"Select"},{"$f":"Import!E13498","v":"Select"},{"$f":"Import!E13598","v":0},{"$f":"Import!E13698","v":0},{"$f":"Import!E13798","v":0},{"$f":"Import!E13898","v":0},{"$f":"Import!E13998","v":0}]
[7,{"$f":"Import!E13299","v":"Select"},{"$f":"Import!E13399","v":"Select"},{"$f":"Import!E13499","v":"Select"},{"$f":"Import!E13599","v":0},{"$f":"Import!E13699","v":0},{"$f":"Import!E13799","v":0},{"$f":"Import!E13899","v":0},{"$f":"Import!E13999","v":0}]
[8,{"$f":"Import!E13300","v":"Select"},{"$f":"Import!E13400","v":"Select"},{"$f":"Import!E13500","v":"Select"},{"$f":"Import!E13600","v":0},{"$f":"Import!E13700","v":0},{"$f":"Import!E13800","v":0},{"$f":"Import!E13900","v":0},{"$f":"Import!E14000","v":0}]
[9,{"$f":"Import!E13301","v":"Select"},{"$f":"Import!E13401","v":"Select"},{"$f":"Import!E13501","v":"Select"},{"$f":"Import!E13601","v":0},{"$f":"Import!E13701","v":0},{"$f":"Import!E13801","v":0},{"$f":"Import!E13901","v":0},{"$f":"Import!E14001","v":0}]
[10,{"$f":"Import!E13302","v":"Select"},{"$f":"Import!E13402","v":"Select"},{"$f":"Import!E13502","v":"Select"},{"$f":"Import!E13602","v":0},{"$f":"Import!E13702","v":0},{"$f":"Import!E13802","v":0},{"$f":"Import!E13902","v":0},{"$f":"Import!E14002","v":0}]
[11,{"$f":"Import!E13303","v":"Select"},{"$f":"Import!E13403","v":"Select"},{"$f":"Import!E13503","v":"Select"},{"$f":"Import!E13603","v":0},{"$f":"Import!E13703","v":0},{"$f":"Import!E13803","v":0},{"$f":"Import!E13903","v":0},{"$f":"Import!E14003","v":0}]
[12,{"$f":"Import!E13304","v":"Select"},{"$f":"Import!E13404","v":"Select"},{"$f":"Import!E13504","v":"Select"},{"$f":"Import!E13604","v":0},{"$f":"Import!E13704","v":0},{"$f":"Import!E13804","v":0},{"$f":"Import!E13904","v":0},{"$f":"Import!E14004","v":0}]
[13,{"$f":"Import!E13305","v":"Select"},{"$f":"Import!E13405","v":"Select"},{"$f":"Import!E13505","v":"Select"},{"$f":"Import!E13605","v":0},{"$f":"Import!E13705","v":0},{"$f":"Import!E13805","v":0},{"$f":"Import!E13905","v":0},{"$f":"Import!E14005","v":0}]
[14,{"$f":"Import!E13306","v":"Select"},{"$f":"Import!E13406","v":"Select"},{"$f":"Import!E13506","v":"Select"},{"$f":"Import!E13606","v":0},{"$f":"Import!E13706","v":0},{"$f":"Import!E13806","v":0},{"$f":"Import!E13906","v":0},{"$f":"Import!E14006","v":0}]
[15,{"$f":"Import!E13307","v":"Select"},{"$f":"Import!E13407","v":"Select"},{"$f":"Import!E13507","v":"Select"},{"$f":"Import!E13607","v":0},{"$f":"Import!E13707","v":0},{"$f":"Import!E13807","v":0},{"$f":"Import!E13907","v":0},{"$f":"Import!E14007","v":0}]
[16,{"$f":"Import!E13308","v":"Select"},{"$f":"Import!E13408","v":"Select"},{"$f":"Import!E13508","v":"Select"},{"$f":"Import!E13608","v":0},{"$f":"Import!E13708","v":0},{"$f":"Import!E13808","v":0},{"$f":"Import!E13908","v":0},{"$f":"Import!E14008","v":0}]
[17,{"$f":"Import!E13309","v":"Select"},{"$f":"Import!E13409","v":"Select"},{"$f":"Import!E13509","v":"Select"},{"$f":"Import!E13609","v":0},{"$f":"Import!E13709","v":0},{"$f":"Import!E13809","v":0},{"$f":"Import!E13909","v":0},{"$f":"Import!E14009","v":0}]
[18,{"$f":"Import!E13310","v":"Select"},{"$f":"Import!E13410","v":"Select"},{"$f":"Import!E13510","v":"Select"},{"$f":"Import!E13610","v":0},{"$f":"Import!E13710","v":0},{"$f":"Import!E13810","v":0},{"$f":"Import!E13910","v":0},{"$f":"Import!E14010","v":0}]
[19,{"$f":"Import!E13311","v":"Select"},{"$f":"Import!E13411","v":"Select"},{"$f":"Import!E13511","v":"Select"},{"$f":"Import!E13611","v":0},{"$f":"Import!E13711","v":0},{"$f":"Import!E13811","v":0},{"$f":"Import!E13911","v":0},{"$f":"Import!E14011","v":0}]
[20,{"$f":"Import!E13312","v":"Select"},{"$f":"Import!E13412","v":"Select"},{"$f":"Import!E13512","v":"Select"},{"$f":"Import!E13612","v":0},{"$f":"Import!E13712","v":0},{"$f":"Import!E13812","v":0},{"$f":"Import!E13912","v":0},{"$f":"Import!E14012","v":0}]
[21,{"$f":"Import!E13313","v":"Select"},{"$f":"Import!E13413","v":"Select"},{"$f":"Import!E13513","v":"Select"},{"$f":"Import!E13613","v":0},{"$f":"Import!E13713","v":0},{"$f":"Import!E13813","v":0},{"$f":"Import!E13913","v":0},{"$f":"Import!E14013","v":0}]
[22,{"$f":"Import!E13314","v":"Select"},{"$f":"Import!E13414","v":"Select"},{"$f":"Import!E13514","v":"Select"},{"$f":"Import!E13614","v":0},{"$f":"Import!E13714","v":0},{"$f":"Import!E13814","v":0},{"$f":"Import!E13914","v":0},{"$f":"Import!E14014","v":0}]
[23,{"$f":"Import!E13315","v":"Select"},{"$f":"Import!E13415","v":"Select"},{"$f":"Import!E13515","v":"Select"},{"$f":"Import!E13615","v":0},{"$f":"Import!E13715","v":0},{"$f":"Import!E13815","v":0},{"$f":"Import!E13915","v":0},{"$f":"Import!E14015","v":0}]
[24,{"$f":"Import!E13316","v":"Select"},{"$f":"Import!E13416","v":"Select"},{"$f":"Import!E13516","v":"Select"},{"$f":"Import!E13616","v":0},{"$f":"Import!E13716","v":0},{"$f":"Import!E13816","v":0},{"$f":"Import!E13916","v":0},{"$f":"Import!E14016","v":0}]
[25,{"$f":"Import!E13317","v":"Select"},{"$f":"Import!E13417","v":"Select"},{"$f":"Import!E13517","v":"Select"},{"$f":"Import!E13617","v":0},{"$f":"Import!E13717","v":0},{"$f":"Import!E13817","v":0},{"$f":"Import!E13917","v":0},{"$f":"Import!E14017","v":0}]
[26,{"$f":"Import!E13318","v":"Select"},{"$f":"Import!E13418","v":"Select"},{"$f":"Import!E13518","v":"Select"},{"$f":"Import!E13618","v":0},{"$f":"Import!E13718","v":0},{"$f":"Import!E13818","v":0},{"$f":"Import!E13918","v":0},{"$f":"Import!E14018","v":0}]
[27,{"$f":"Import!E13319","v":"Select"},{"$f":"Import!E13419","v":"Select"},{"$f":"Import!E13519","v":"Select"},{"$f":"Import!E13619","v":0},{"$f":"Import!E13719","v":0},{"$f":"Import!E13819","v":0},{"$f":"Import!E13919","v":0},{"$f":"Import!E14019","v":0}]
[28,{"$f":"Import!E13320","v":"Select"},{"$f":"Import!E13420","v":"Select"},{"$f":"Import!E13520","v":"Select"},{"$f":"Import!E13620","v":0},{"$f":"Import!E13720","v":0},{"$f":"Import!E13820","v":0},{"$f":"Import!E13920","v":0},{"$f":"Import!E14020","v":0}]
[29,{"$f":"Import!E13321","v":"Select"},{"$f":"Import!E13421","v":"Select"},{"$f":"Import!E13521","v":"Select"},{"$f":"Import!E13621","v":0},{"$f":"Import!E13721","v":0},{"$f":"Import!E13821","v":0},{"$f":"Import!E13921","v":0},{"$f":"Import!E14021","v":0}]
[30,{"$f":"Import!E13322","v":"Select"},{"$f":"Import!E13422","v":"Select"},{"$f":"Import!E13522","v":"Select"},{"$f":"Import!E13622","v":0},{"$f":"Import!E13722","v":0},{"$f":"Import!E13822","v":0},{"$f":"Import!E13922","v":0},{"$f":"Import!E14022","v":0}]
[31,{"$f":"Import!E13323","v":"Select"},{"$f":"Import!E13423","v":"Select"},{"$f":"Import!E13523","v":"Select"},{"$f":"Import!E13623","v":0},{"$f":"Import!E13723","v":0},{"$f":"Import!E13823","v":0},{"$f":"Import!E13923","v":0},{"$f":"Import!E14023","v":0}]
[32,{"$f":"Import!E13324","v":"Select"},{"$f":"Import!E13424","v":"Select"},{"$f":"Import!E13524","v":"Select"},{"$f":"Import!E13624","v":0},{"$f":"Import!E13724","v":0},{"$f":"Import!E13824","v":0},{"$f":"Import!E13924","v":0},{"$f":"Import!E14024","v":0}]
[33,{"$f":"Import!E13325","v":"Select"},{"$f":"Import!E13425","v":"Select"},{"$f":"Import!E13525","v":"Select"},{"$f":"Import!E13625","v":0},{"$f":"Import!E13725","v":0},{"$f":"Import!E13825","v":0},{"$f":"Import!E13925","v":0},{"$f":"Import!E14025","v":0}]
[34,{"$f":"Import!E13326","v":"Select"},{"$f":"Import!E13426","v":"Select"},{"$f":"Import!E13526","v":"Select"},{"$f":"Import!E13626","v":0},{"$f":"Import!E13726","v":0},{"$f":"Import!E13826","v":0},{"$f":"Import!E13926","v":0},{"$f":"Import!E14026","v":0}]
[35,{"$f":"Import!E13327","v":"Select"},{"$f":"Import!E13427","v":"Select"},{"$f":"Import!E13527","v":"Select"},{"$f":"Import!E13627","v":0},{"$f":"Import!E13727","v":0},{"$f":"Import!E13827","v":0},{"$f":"Import!E13927","v":0},{"$f":"Import!E14027","v":0}]
[36,{"$f":"Import!E13328","v":"Select"},{"$f":"Import!E13428","v":"Select"},{"$f":"Import!E13528","v":"Select"},{"$f":"Import!E13628","v":0},{"$f":"Import!E13728","v":0},{"$f":"Import!E13828","v":0},{"$f":"Import!E13928","v":0},{"$f":"Import!E14028","v":0}]
[37,{"$f":"Import!E13329","v":"Select"},{"$f":"Import!E13429","v":"Select"},{"$f":"Import!E13529","v":"Select"},{"$f":"Import!E13629","v":0},{"$f":"Import!E13729","v":0},{"$f":"Import!E13829","v":0},{"$f":"Import!E13929","v":0},{"$f":"Import!E14029","v":0}]
[38,{"$f":"Import!E13330","v":"Select"},{"$f":"Import!E13430","v":"Select"},{"$f":"Import!E13530","v":"Select"},{"$f":"Import!E13630","v":0},{"$f":"Import!E13730","v":0},{"$f":"Import!E13830","v":0},{"$f":"Import!E13930","v":0},{"$f":"Import!E14030","v":0}]
[39,{"$f":"Import!E13331","v":"Select"},{"$f":"Import!E13431","v":"Select"},{"$f":"Import!E13531","v":"Select"},{"$f":"Import!E13631","v":0},{"$f":"Import!E13731","v":0},{"$f":"Import!E13831","v":0},{"$f":"Import!E13931","v":0},{"$f":"Import!E14031","v":0}]
[40,{"$f":"Import!E13332","v":"Select"},{"$f":"Import!E13432","v":"Select"},{"$f":"Import!E13532","v":"Select"},{"$f":"Import!E13632","v":0},{"$f":"Import!E13732","v":0},{"$f":"Import!E13832","v":0},{"$f":"Import!E13932","v":0},{"$f":"Import!E14032","v":0}]
[41,{"$f":"Import!E13333","v":"Select"},{"$f":"Import!E13433","v":"Select"},{"$f":"Import!E13533","v":"Select"},{"$f":"Import!E13633","v":0},{"$f":"Import!E13733","v":0},{"$f":"Import!E13833","v":0},{"$f":"Import!E13933","v":0},{"$f":"Import!E14033","v":0}]
[42,{"$f":"Import!E13334","v":"Select"},{"$f":"Import!E13434","v":"Select"},{"$f":"Import!E13534","v":"Select"},{"$f":"Import!E13634","v":0},{"$f":"Import!E13734","v":0},{"$f":"Import!E13834","v":0},{"$f":"Import!E13934","v":0},{"$f":"Import!E14034","v":0}]
[43,{"$f":"Import!E13335","v":"Select"},{"$f":"Import!E13435","v":"Select"},{"$f":"Import!E13535","v":"Select"},{"$f":"Import!E13635","v":0},{"$f":"Import!E13735","v":0},{"$f":"Import!E13835","v":0},{"$f":"Import!E13935","v":0},{"$f":"Import!E14035","v":0}]
[44,{"$f":"Import!E13336","v":"Select"},{"$f":"Import!E13436","v":"Select"},{"$f":"Import!E13536","v":"Select"},{"$f":"Import!E13636","v":0},{"$f":"Import!E13736","v":0},{"$f":"Import!E13836","v":0},{"$f":"Import!E13936","v":0},{"$f":"Import!E14036","v":0}]
[45,{"$f":"Import!E13337","v":"Select"},{"$f":"Import!E13437","v":"Select"},{"$f":"Import!E13537","v":"Select"},{"$f":"Import!E13637","v":0},{"$f":"Import!E13737","v":0},{"$f":"Import!E13837","v":0},{"$f":"Import!E13937","v":0},{"$f":"Import!E14037","v":0}]
[46,{"$f":"Import!E13338","v":"Select"},{"$f":"Import!E13438","v":"Select"},{"$f":"Import!E13538","v":"Select"},{"$f":"Import!E13638","v":0},{"$f":"Import!E13738","v":0},{"$f":"Import!E13838","v":0},{"$f":"Import!E13938","v":0},{"$f":"Import!E14038","v":0}]
[47,{"$f":"Import!E13339","v":"Select"},{"$f":"Import!E13439","v":"Select"},{"$f":"Import!E13539","v":"Select"},{"$f":"Import!E13639","v":0},{"$f":"Import!E13739","v":0},{"$f":"Import!E13839","v":0},{"$f":"Import!E13939","v":0},{"$f":"Import!E14039","v":0}]
[48,{"$f":"Import!E13340","v":"Select"},{"$f":"Import!E13440","v":"Select"},{"$f":"Import!E13540","v":"Select"},{"$f":"Import!E13640","v":0},{"$f":"Import!E13740","v":0},{"$f":"Import!E13840","v":0},{"$f":"Import!E13940","v":0},{"$f":"Import!E14040","v":0}]
[49,{"$f":"Import!E13341","v":"Select"},{"$f":"Import!E13441","v":"Select"},{"$f":"Import!E13541","v":"Select"},{"$f":"Import!E13641","v":0},{"$f":"Import!E13741","v":0},{"$f":"Import!E13841","v":0},{"$f":"Import!E13941","v":0},{"$f":"Import!E14041","v":0}]
[50,{"$f":"Import!E13342","v":"Select"},{"$f":"Import!E13442","v":"Select"},{"$f":"Import!E13542","v":"Select"},{"$f":"Import!E13642","v":0},{"$f":"Import!E13742","v":0},{"$f":"Import!E13842","v":0},{"$f":"Import!E13942","v":0},{"$f":"Import!E14042","v":0}]
[51,{"$f":"Import!E13343","v":"Select"},{"$f":"Import!E13443","v":"Select"},{"$f":"Import!E13543","v":"Select"},{"$f":"Import!E13643","v":0},{"$f":"Import!E13743","v":0},{"$f":"Import!E13843","v":0},{"$f":"Import!E13943","v":0},{"$f":"Import!E14043","v":0}]
[52,{"$f":"Import!E13344","v":"Select"},{"$f":"Import!E13444","v":"Select"},{"$f":"Import!E13544","v":"Select"},{"$f":"Import!E13644","v":0},{"$f":"Import!E13744","v":0},{"$f":"Import!E13844","v":0},{"$f":"Import!E13944","v":0},{"$f":"Import!E14044","v":0}]
[53,{"$f":"Import!E13345","v":"Select"},{"$f":"Import!E13445","v":"Select"},{"$f":"Import!E13545","v":"Select"},{"$f":"Import!E13645","v":0},{"$f":"Import!E13745","v":0},{"$f":"Import!E13845","v":0},{"$f":"Import!E13945","v":0},{"$f":"Import!E14045","v":0}]
[54,{"$f":"Import!E13346","v":"Select"},{"$f":"Import!E13446","v":"Select"},{"$f":"Import!E13546","v":"Select"},{"$f":"Import!E13646","v":0},{"$f":"Import!E13746","v":0},{"$f":"Import!E13846","v":0},{"$f":"Import!E13946","v":0},{"$f":"Import!E14046","v":0}]
[55,{"$f":"Import!E13347","v":"Select"},{"$f":"Import!E13447","v":"Select"},{"$f":"Import!E13547","v":"Select"},{"$f":"Import!E13647","v":0},{"$f":"Import!E13747","v":0},{"$f":"Import!E13847","v":0},{"$f":"Import!E13947","v":0},{"$f":"Import!E14047","v":0}]
[56,{"$f":"Import!E13348","v":"Select"},{"$f":"Import!E13448","v":"Select"},{"$f":"Import!E13548","v":"Select"},{"$f":"Import!E13648","v":0},{"$f":"Import!E13748","v":0},{"$f":"Import!E13848","v":0},{"$f":"Import!E13948","v":0},{"$f":"Import!E14048","v":0}]
[57,{"$f":"Import!E13349","v":"Select"},{"$f":"Import!E13449","v":"Select"},{"$f":"Import!E13549","v":"Select"},{"$f":"Import!E13649","v":0},{"$f":"Import!E13749","v":0},{"$f":"Import!E13849","v":0},{"$f":"Import!E13949","v":0},{"$f":"Import!E14049","v":0}]
[58,{"$f":"Import!E13350","v":"Select"},{"$f":"Import!E13450","v":"Select"},{"$f":"Import!E13550","v":"Select"},{"$f":"Import!E13650","v":0},{"$f":"Import!E13750","v":0},{"$f":"Import!E13850","v":0},{"$f":"Import!E13950","v":0},{"$f":"Import!E14050","v":0}]
[59,{"$f":"Import!E13351","v":"Select"},{"$f":"Import!E13451","v":"Select"},{"$f":"Import!E13551","v":"Select"},{"$f":"Import!E13651","v":0},{"$f":"Import!E13751","v":0},{"$f":"Import!E13851","v":0},{"$f":"Import!E13951","v":0},{"$f":"Import!E14051","v":0}]
[60,{"$f":"Import!E13352","v":"Select"},{"$f":"Import!E13452","v":"Select"},{"$f":"Import!E13552","v":"Select"},{"$f":"Import!E13652","v":0},{"$f":"Import!E13752","v":0},{"$f":"Import!E13852","v":0},{"$f":"Import!E13952","v":0},{"$f":"Import!E14052","v":0}]
[61,{"$f":"Import!E13353","v":"Select"},{"$f":"Import!E13453","v":"Select"},{"$f":"Import!E13553","v":"Select"},{"$f":"Import!E13653","v":0},{"$f":"Import!E13753","v":0},{"$f":"Import!E13853","v":0},{"$f":"Import!E13953","v":0},{"$f":"Import!E14053","v":0}]
[62,{"$f":"Import!E13354","v":"Select"},{"$f":"Import!E13454","v":"Select"},{"$f":"Import!E13554","v":"Select"},{"$f":"Import!E13654","v":0},{"$f":"Import!E13754","v":0},{"$f":"Import!E13854","v":0},{"$f":"Import!E13954","v":0},{"$f":"Import!E14054","v":0}]
[63,{"$f":"Import!E13355","v":"Select"},{"$f":"Import!E13455","v":"Select"},{"$f":"Import!E13555","v":"Select"},{"$f":"Import!E13655","v":0},{"$f":"Import!E13755","v":0},{"$f":"Import!E13855","v":0},{"$f":"Import!E13955","v":0},{"$f":"Import!E14055","v":0}]
[64,{"$f":"Import!E13356","v":"Select"},{"$f":"Import!E13456","v":"Select"},{"$f":"Import!E13556","v":"Select"},{"$f":"Import!E13656","v":0},{"$f":"Import!E13756","v":0},{"$f":"Import!E13856","v":0},{"$f":"Import!E13956","v":0},{"$f":"Import!E14056","v":0}]
[65,{"$f":"Import!E13357","v":"Select"},{"$f":"Import!E13457","v":"Select"},{"$f":"Import!E13557","v":"Select"},{"$f":"Import!E13657","v":0},{"$f":"Import!E13757","v":0},{"$f":"Import!E13857","v":0},{"$f":"Import!E13957","v":0},{"$f":"Import!E14057","v":0}]
[66,{"$f":"Import!E13358","v":"Select"},{"$f":"Import!E13458","v":"Select"},{"$f":"Import!E13558","v":"Select"},{"$f":"Import!E13658","v":0},{"$f":"Import!E13758","v":0},{"$f":"Import!E13858","v":0},{"$f":"Import!E13958","v":0},{"$f":"Import!E14058","v":0}]
[{"$f":"A1194+1","v":67},{"$f":"Import!E13359","v":"Select"},{"$f":"Import!E13459","v":"Select"},{"$f":"Import!E13559","v":"Select"},{"$f":"Import!E13659","v":0},{"$f":"Import!E13759","v":0},{"$f":"Import!E13859","v":0},{"$f":"Import!E13959","v":0},{"$f":"Import!E14059","v":0}]
[68,{"$f":"Import!E13360","v":"Select"},{"$f":"Import!E13460","v":"Select"},{"$f":"Import!E13560","v":"Select"},{"$f":"Import!E13660","v":0},{"$f":"Import!E13760","v":0},{"$f":"Import!E13860","v":0},{"$f":"Import!E13960","v":0},{"$f":"Import!E14060","v":0}]
[69,{"$f":"Import!E13361","v":"Select"},{"$f":"Import!E13461","v":"Select"},{"$f":"Import!E13561","v":"Select"},{"$f":"Import!E13661","v":0},{"$f":"Import!E13761","v":0},{"$f":"Import!E13861","v":0},{"$f":"Import!E13961","v":0},{"$f":"Import!E14061","v":0}]
[70,{"$f":"Import!E13362","v":"Select"},{"$f":"Import!E13462","v":"Select"},{"$f":"Import!E13562","v":"Select"},{"$f":"Import!E13662","v":0},{"$f":"Import!E13762","v":0},{"$f":"Import!E13862","v":0},{"$f":"Import!E13962","v":0},{"$f":"Import!E14062","v":0}]
[71,{"$f":"Import!E13363","v":"Select"},{"$f":"Import!E13463","v":"Select"},{"$f":"Import!E13563","v":"Select"},{"$f":"Import!E13663","v":0},{"$f":"Import!E13763","v":0},{"$f":"Import!E13863","v":0},{"$f":"Import!E13963","v":0},{"$f":"Import!E14063","v":0}]
[72,{"$f":"Import!E13364","v":"Select"},{"$f":"Import!E13464","v":"Select"},{"$f":"Import!E13564","v":"Select"},{"$f":"Import!E13664","v":0},{"$f":"Import!E13764","v":0},{"$f":"Import!E13864","v":0},{"$f":"Import!E13964","v":0},{"$f":"Import!E14064","v":0}]
[73,{"$f":"Import!E13365","v":"Select"},{"$f":"Import!E13465","v":"Select"},{"$f":"Import!E13565","v":"Select"},{"$f":"Import!E13665","v":0},{"$f":"Import!E13765","v":0},{"$f":"Import!E13865","v":0},{"$f":"Import!E13965","v":0},{"$f":"Import!E14065","v":0}]
[74,{"$f":"Import!E13366","v":"Select"},{"$f":"Import!E13466","v":"Select"},{"$f":"Import!E13566","v":"Select"},{"$f":"Import!E13666","v":0},{"$f":"Import!E13766","v":0},{"$f":"Import!E13866","v":0},{"$f":"Import!E13966","v":0},{"$f":"Import!E14066","v":0}]
[75,{"$f":"Import!E13367","v":"Select"},{"$f":"Import!E13467","v":"Select"},{"$f":"Import!E13567","v":"Select"},{"$f":"Import!E13667","v":0},{"$f":"Import!E13767","v":0},{"$f":"Import!E13867","v":0},{"$f":"Import!E13967","v":0},{"$f":"Import!E14067","v":0}]
[76,{"$f":"Import!E13368","v":"Select"},{"$f":"Import!E13468","v":"Select"},{"$f":"Import!E13568","v":"Select"},{"$f":"Import!E13668","v":0},{"$f":"Import!E13768","v":0},{"$f":"Import!E13868","v":0},{"$f":"Import!E13968","v":0},{"$f":"Import!E14068","v":0}]
[77,{"$f":"Import!E13369","v":"Select"},{"$f":"Import!E13469","v":"Select"},{"$f":"Import!E13569","v":"Select"},{"$f":"Import!E13669","v":0},{"$f":"Import!E13769","v":0},{"$f":"Import!E13869","v":0},{"$f":"Import!E13969","v":0},{"$f":"Import!E14069","v":0}]
[78,{"$f":"Import!E13370","v":"Select"},{"$f":"Import!E13470","v":"Select"},{"$f":"Import!E13570","v":"Select"},{"$f":"Import!E13670","v":0},{"$f":"Import!E13770","v":0},{"$f":"Import!E13870","v":0},{"$f":"Import!E13970","v":0},{"$f":"Import!E14070","v":0}]
[79,{"$f":"Import!E13371","v":"Select"},{"$f":"Import!E13471","v":"Select"},{"$f":"Import!E13571","v":"Select"},{"$f":"Import!E13671","v":0},{"$f":"Import!E13771","v":0},{"$f":"Import!E13871","v":0},{"$f":"Import!E13971","v":0},{"$f":"Import!E14071","v":0}]
[80,{"$f":"Import!E13372","v":"Select"},{"$f":"Import!E13472","v":"Select"},{"$f":"Import!E13572","v":"Select"},{"$f":"Import!E13672","v":0},{"$f":"Import!E13772","v":0},{"$f":"Import!E13872","v":0},{"$f":"Import!E13972","v":0},{"$f":"Import!E14072","v":0}]
[81,{"$f":"Import!E13373","v":"Select"},{"$f":"Import!E13473","v":"Select"},{"$f":"Import!E13573","v":"Select"},{"$f":"Import!E13673","v":0},{"$f":"Import!E13773","v":0},{"$f":"Import!E13873","v":0},{"$f":"Import!E13973","v":0},{"$f":"Import!E14073","v":0}]
[82,{"$f":"Import!E13374","v":"Select"},{"$f":"Import!E13474","v":"Select"},{"$f":"Import!E13574","v":"Select"},{"$f":"Import!E13674","v":0},{"$f":"Import!E13774","v":0},{"$f":"Import!E13874","v":0},{"$f":"Import!E13974","v":0},{"$f":"Import!E14074","v":0}]
[83,{"$f":"Import!E13375","v":"Select"},{"$f":"Import!E13475","v":"Select"},{"$f":"Import!E13575","v":"Select"},{"$f":"Import!E13675","v":0},{"$f":"Import!E13775","v":0},{"$f":"Import!E13875","v":0},{"$f":"Import!E13975","v":0},{"$f":"Import!E14075","v":0}]
[84,{"$f":"Import!E13376","v":"Select"},{"$f":"Import!E13476","v":"Select"},{"$f":"Import!E13576","v":"Select"},{"$f":"Import!E13676","v":0},{"$f":"Import!E13776","v":0},{"$f":"Import!E13876","v":0},{"$f":"Import!E13976","v":0},{"$f":"Import!E14076","v":0}]
[85,{"$f":"Import!E13377","v":"Select"},{"$f":"Import!E13477","v":"Select"},{"$f":"Import!E13577","v":"Select"},{"$f":"Import!E13677","v":0},{"$f":"Import!E13777","v":0},{"$f":"Import!E13877","v":0},{"$f":"Import!E13977","v":0},{"$f":"Import!E14077","v":0}]
[86,{"$f":"Import!E13378","v":"Select"},{"$f":"Import!E13478","v":"Select"},{"$f":"Import!E13578","v":"Select"},{"$f":"Import!E13678","v":0},{"$f":"Import!E13778","v":0},{"$f":"Import!E13878","v":0},{"$f":"Import!E13978","v":0},{"$f":"Import!E14078","v":0}]
[87,{"$f":"Import!E13379","v":"Select"},{"$f":"Import!E13479","v":"Select"},{"$f":"Import!E13579","v":"Select"},{"$f":"Import!E13679","v":0},{"$f":"Import!E13779","v":0},{"$f":"Import!E13879","v":0},{"$f":"Import!E13979","v":0},{"$f":"Import!E14079","v":0}]
[88,{"$f":"Import!E13380","v":"Select"},{"$f":"Import!E13480","v":"Select"},{"$f":"Import!E13580","v":"Select"},{"$f":"Import!E13680","v":0},{"$f":"Import!E13780","v":0},{"$f":"Import!E13880","v":0},{"$f":"Import!E13980","v":0},{"$f":"Import!E14080","v":0}]
[89,{"$f":"Import!E13381","v":"Select"},{"$f":"Import!E13481","v":"Select"},{"$f":"Import!E13581","v":"Select"},{"$f":"Import!E13681","v":0},{"$f":"Import!E13781","v":0},{"$f":"Import!E13881","v":0},{"$f":"Import!E13981","v":0},{"$f":"Import!E14081","v":0}]
[90,{"$f":"Import!E13382","v":"Select"},{"$f":"Import!E13482","v":"Select"},{"$f":"Import!E13582","v":"Select"},{"$f":"Import!E13682","v":0},{"$f":"Import!E13782","v":0},{"$f":"Import!E13882","v":0},{"$f":"Import!E13982","v":0},{"$f":"Import!E14082","v":0}]
[91,{"$f":"Import!E13383","v":"Select"},{"$f":"Import!E13483","v":"Select"},{"$f":"Import!E13583","v":"Select"},{"$f":"Import!E13683","v":0},{"$f":"Import!E13783","v":0},{"$f":"Import!E13883","v":0},{"$f":"Import!E13983","v":0},{"$f":"Import!E14083","v":0}]
[92,{"$f":"Import!E13384","v":"Select"},{"$f":"Import!E13484","v":"Select"},{"$f":"Import!E13584","v":"Select"},{"$f":"Import!E13684","v":0},{"$f":"Import!E13784","v":0},{"$f":"Import!E13884","v":0},{"$f":"Import!E13984","v":0},{"$f":"Import!E14084","v":0}]
[93,{"$f":"Import!E13385","v":"Select"},{"$f":"Import!E13485","v":"Select"},{"$f":"Import!E13585","v":"Select"},{"$f":"Import!E13685","v":0},{"$f":"Import!E13785","v":0},{"$f":"Import!E13885","v":0},{"$f":"Import!E13985","v":0},{"$f":"Import!E14085","v":0}]
[94,{"$f":"Import!E13386","v":"Select"},{"$f":"Import!E13486","v":"Select"},{"$f":"Import!E13586","v":"Select"},{"$f":"Import!E13686","v":0},{"$f":"Import!E13786","v":0},{"$f":"Import!E13886","v":0},{"$f":"Import!E13986","v":0},{"$f":"Import!E14086","v":0}]
[95,{"$f":"Import!E13387","v":"Select"},{"$f":"Import!E13487","v":"Select"},{"$f":"Import!E13587","v":"Select"},{"$f":"Import!E13687","v":0},{"$f":"Import!E13787","v":0},{"$f":"Import!E13887","v":0},{"$f":"Import!E13987","v":0},{"$f":"Import!E14087","v":0}]
[96,{"$f":"Import!E13388","v":"Select"},{"$f":"Import!E13488","v":"Select"},{"$f":"Import!E13588","v":"Select"},{"$f":"Import!E13688","v":0},{"$f":"Import!E13788","v":0},{"$f":"Import!E13888","v":0},{"$f":"Import!E13988","v":0},{"$f":"Import!E14088","v":0}]
[97,{"$f":"Import!E13389","v":"Select"},{"$f":"Import!E13489","v":"Select"},{"$f":"Import!E13589","v":"Select"},{"$f":"Import!E13689","v":0},{"$f":"Import!E13789","v":0},{"$f":"Import!E13889","v":0},{"$f":"Import!E13989","v":0},{"$f":"Import!E14089","v":0}]
[98,{"$f":"Import!E13390","v":"Select"},{"$f":"Import!E13490","v":"Select"},{"$f":"Import!E13590","v":"Select"},{"$f":"Import!E13690","v":0},{"$f":"Import!E13790","v":0},{"$f":"Import!E13890","v":0},{"$f":"Import!E13990","v":0},{"$f":"Import!E14090","v":0}]
[99,{"$f":"Import!E13391","v":"Select"},{"$f":"Import!E13491","v":"Select"},{"$f":"Import!E13591","v":"Select"},{"$f":"Import!E13691","v":0},{"$f":"Import!E13791","v":0},{"$f":"Import!E13891","v":0},{"$f":"Import!E13991","v":0},{"$f":"Import!E14091","v":0}]
[100,{"$f":"Import!E13392","v":"Select"},{"$f":"Import!E13492","v":"Select"},{"$f":"Import!E13592","v":"Select"},{"$f":"Import!E13692","v":0},{"$f":"Import!E13792","v":0},{"$f":"Import!E13892","v":0},{"$f":"Import!E13992","v":0},{"$f":"Import!E14092","v":0}]
[]
[null,"Total Preferred Equities",null,null,{"$f":"SUM(E1129:E1228)","v":0},{"$f":"SUM(F1129:F1228)","v":0},{"$f":"IFERROR(SUMPRODUCT(G1129:G1228,$F1129:$F1228)/SUM($F1129:$F1228),0)","v":0},{"$f":"IFERROR(SUMPRODUCT(H1129:H1228,$F1129:$F1228)/SUM($F1129:$F1228),0)","v":0}]
[]
[null,"(F) COMMON EQUITIES"]
[]
[null,null,"Enter # of Asset Types",{"$f":"Import!E14093","v":0}]
[null,null,null,null,{"$f":"YEAR($C$3)","v":2023}]
[null,"Asset Type","Currency","Country","Fair Value","Comments"]
[1,{"$f":"Import!E14094","v":"Select"},{"$f":"Import!E14194","v":"Select"},{"$f":"Import!E14294","v":"Select"},{"$f":"Import!E14394","v":0},{"$f":"Import!E14494","v":0}]
[{"$f":"A1237+1","v":2},{"$f":"Import!E14095","v":"Select"},{"$f":"Import!E14195","v":"Select"},{"$f":"Import!E14295","v":"Select"},{"$f":"Import!E14395","v":0},{"$f":"Import!E14495","v":0}]
[{"$f":"A1238+1","v":3},{"$f":"Import!E14096","v":"Select"},{"$f":"Import!E14196","v":"Select"},{"$f":"Import!E14296","v":"Select"},{"$f":"Import!E14396","v":0},{"$f":"Import!E14496","v":0}]
[4,{"$f":"Import!E14097","v":"Select"},{"$f":"Import!E14197","v":"Select"},{"$f":"Import!E14297","v":"Select"},{"$f":"Import!E14397","v":0},{"$f":"Import!E14497","v":0}]
[5,{"$f":"Import!E14098","v":"Select"},{"$f":"Import!E14198","v":"Select"},{"$f":"Import!E14298","v":"Select"},{"$f":"Import!E14398","v":0},{"$f":"Import!E14498","v":0}]
[6,{"$f":"Import!E14099","v":"Select"},{"$f":"Import!E14199","v":"Select"},{"$f":"Import!E14299","v":"Select"},{"$f":"Import!E14399","v":0},{"$f":"Import!E14499","v":0}]
[7,{"$f":"Import!E14100","v":"Select"},{"$f":"Import!E14200","v":"Select"},{"$f":"Import!E14300","v":"Select"},{"$f":"Import!E14400","v":0},{"$f":"Import!E14500","v":0}]
[8,{"$f":"Import!E14101","v":"Select"},{"$f":"Import!E14201","v":"Select"},{"$f":"Import!E14301","v":"Select"},{"$f":"Import!E14401","v":0},{"$f":"Import!E14501","v":0}]
[9,{"$f":"Import!E14102","v":"Select"},{"$f":"Import!E14202","v":"Select"},{"$f":"Import!E14302","v":"Select"},{"$f":"Import!E14402","v":0},{"$f":"Import!E14502","v":0}]
[10,{"$f":"Import!E14103","v":"Select"},{"$f":"Import!E14203","v":"Select"},{"$f":"Import!E14303","v":"Select"},{"$f":"Import!E14403","v":0},{"$f":"Import!E14503","v":0}]
[11,{"$f":"Import!E14104","v":"Select"},{"$f":"Import!E14204","v":"Select"},{"$f":"Import!E14304","v":"Select"},{"$f":"Import!E14404","v":0},{"$f":"Import!E14504","v":0}]
[12,{"$f":"Import!E14105","v":"Select"},{"$f":"Import!E14205","v":"Select"},{"$f":"Import!E14305","v":"Select"},{"$f":"Import!E14405","v":0},{"$f":"Import!E14505","v":0}]
[13,{"$f":"Import!E14106","v":"Select"},{"$f":"Import!E14206","v":"Select"},{"$f":"Import!E14306","v":"Select"},{"$f":"Import!E14406","v":0},{"$f":"Import!E14506","v":0}]
[14,{"$f":"Import!E14107","v":"Select"},{"$f":"Import!E14207","v":"Select"},{"$f":"Import!E14307","v":"Select"},{"$f":"Import!E14407","v":0},{"$f":"Import!E14507","v":0}]
[15,{"$f":"Import!E14108","v":"Select"},{"$f":"Import!E14208","v":"Select"},{"$f":"Import!E14308","v":"Select"},{"$f":"Import!E14408","v":0},{"$f":"Import!E14508","v":0}]
[16,{"$f":"Import!E14109","v":"Select"},{"$f":"Import!E14209","v":"Select"},{"$f":"Import!E14309","v":"Select"},{"$f":"Import!E14409","v":0},{"$f":"Import!E14509","v":0}]
[17,{"$f":"Import!E14110","v":"Select"},{"$f":"Import!E14210","v":"Select"},{"$f":"Import!E14310","v":"Select"},{"$f":"Import!E14410","v":0},{"$f":"Import!E14510","v":0}]
[18,{"$f":"Import!E14111","v":"Select"},{"$f":"Import!E14211","v":"Select"},{"$f":"Import!E14311","v":"Select"},{"$f":"Import!E14411","v":0},{"$f":"Import!E14511","v":0}]
[19,{"$f":"Import!E14112","v":"Select"},{"$f":"Import!E14212","v":"Select"},{"$f":"Import!E14312","v":"Select"},{"$f":"Import!E14412","v":0},{"$f":"Import!E14512","v":0}]
[20,{"$f":"Import!E14113","v":"Select"},{"$f":"Import!E14213","v":"Select"},{"$f":"Import!E14313","v":"Select"},{"$f":"Import!E14413","v":0},{"$f":"Import!E14513","v":0}]
[21,{"$f":"Import!E14114","v":"Select"},{"$f":"Import!E14214","v":"Select"},{"$f":"Import!E14314","v":"Select"},{"$f":"Import!E14414","v":0},{"$f":"Import!E14514","v":0}]
[22,{"$f":"Import!E14115","v":"Select"},{"$f":"Import!E14215","v":"Select"},{"$f":"Import!E14315","v":"Select"},{"$f":"Import!E14415","v":0},{"$f":"Import!E14515","v":0}]
[23,{"$f":"Import!E14116","v":"Select"},{"$f":"Import!E14216","v":"Select"},{"$f":"Import!E14316","v":"Select"},{"$f":"Import!E14416","v":0},{"$f":"Import!E14516","v":0}]
[24,{"$f":"Import!E14117","v":"Select"},{"$f":"Import!E14217","v":"Select"},{"$f":"Import!E14317","v":"Select"},{"$f":"Import!E14417","v":0},{"$f":"Import!E14517","v":0}]
[25,{"$f":"Import!E14118","v":"Select"},{"$f":"Import!E14218","v":"Select"},{"$f":"Import!E14318","v":"Select"},{"$f":"Import!E14418","v":0},{"$f":"Import!E14518","v":0}]
[26,{"$f":"Import!E14119","v":"Select"},{"$f":"Import!E14219","v":"Select"},{"$f":"Import!E14319","v":"Select"},{"$f":"Import!E14419","v":0},{"$f":"Import!E14519","v":0}]
[27,{"$f":"Import!E14120","v":"Select"},{"$f":"Import!E14220","v":"Select"},{"$f":"Import!E14320","v":"Select"},{"$f":"Import!E14420","v":0},{"$f":"Import!E14520","v":0}]
[28,{"$f":"Import!E14121","v":"Select"},{"$f":"Import!E14221","v":"Select"},{"$f":"Import!E14321","v":"Select"},{"$f":"Import!E14421","v":0},{"$f":"Import!E14521","v":0}]
[29,{"$f":"Import!E14122","v":"Select"},{"$f":"Import!E14222","v":"Select"},{"$f":"Import!E14322","v":"Select"},{"$f":"Import!E14422","v":0},{"$f":"Import!E14522","v":0}]
[30,{"$f":"Import!E14123","v":"Select"},{"$f":"Import!E14223","v":"Select"},{"$f":"Import!E14323","v":"Select"},{"$f":"Import!E14423","v":0},{"$f":"Import!E14523","v":0}]
[31,{"$f":"Import!E14124","v":"Select"},{"$f":"Import!E14224","v":"Select"},{"$f":"Import!E14324","v":"Select"},{"$f":"Import!E14424","v":0},{"$f":"Import!E14524","v":0}]
[32,{"$f":"Import!E14125","v":"Select"},{"$f":"Import!E14225","v":"Select"},{"$f":"Import!E14325","v":"Select"},{"$f":"Import!E14425","v":0},{"$f":"Import!E14525","v":0}]
[33,{"$f":"Import!E14126","v":"Select"},{"$f":"Import!E14226","v":"Select"},{"$f":"Import!E14326","v":"Select"},{"$f":"Import!E14426","v":0},{"$f":"Import!E14526","v":0}]
[34,{"$f":"Import!E14127","v":"Select"},{"$f":"Import!E14227","v":"Select"},{"$f":"Import!E14327","v":"Select"},{"$f":"Import!E14427","v":0},{"$f":"Import!E14527","v":0}]
[35,{"$f":"Import!E14128","v":"Select"},{"$f":"Import!E14228","v":"Select"},{"$f":"Import!E14328","v":"Select"},{"$f":"Import!E14428","v":0},{"$f":"Import!E14528","v":0}]
[36,{"$f":"Import!E14129","v":"Select"},{"$f":"Import!E14229","v":"Select"},{"$f":"Import!E14329","v":"Select"},{"$f":"Import!E14429","v":0},{"$f":"Import!E14529","v":0}]
[37,{"$f":"Import!E14130","v":"Select"},{"$f":"Import!E14230","v":"Select"},{"$f":"Import!E14330","v":"Select"},{"$f":"Import!E14430","v":0},{"$f":"Import!E14530","v":0}]
[38,{"$f":"Import!E14131","v":"Select"},{"$f":"Import!E14231","v":"Select"},{"$f":"Import!E14331","v":"Select"},{"$f":"Import!E14431","v":0},{"$f":"Import!E14531","v":0}]
[39,{"$f":"Import!E14132","v":"Select"},{"$f":"Import!E14232","v":"Select"},{"$f":"Import!E14332","v":"Select"},{"$f":"Import!E14432","v":0},{"$f":"Import!E14532","v":0}]
[40,{"$f":"Import!E14133","v":"Select"},{"$f":"Import!E14233","v":"Select"},{"$f":"Import!E14333","v":"Select"},{"$f":"Import!E14433","v":0},{"$f":"Import!E14533","v":0}]
[41,{"$f":"Import!E14134","v":"Select"},{"$f":"Import!E14234","v":"Select"},{"$f":"Import!E14334","v":"Select"},{"$f":"Import!E14434","v":0},{"$f":"Import!E14534","v":0}]
[42,{"$f":"Import!E14135","v":"Select"},{"$f":"Import!E14235","v":"Select"},{"$f":"Import!E14335","v":"Select"},{"$f":"Import!E14435","v":0},{"$f":"Import!E14535","v":0}]
[43,{"$f":"Import!E14136","v":"Select"},{"$f":"Import!E14236","v":"Select"},{"$f":"Import!E14336","v":"Select"},{"$f":"Import!E14436","v":0},{"$f":"Import!E14536","v":0}]
[44,{"$f":"Import!E14137","v":"Select"},{"$f":"Import!E14237","v":"Select"},{"$f":"Import!E14337","v":"Select"},{"$f":"Import!E14437","v":0},{"$f":"Import!E14537","v":0}]
[45,{"$f":"Import!E14138","v":"Select"},{"$f":"Import!E14238","v":"Select"},{"$f":"Import!E14338","v":"Select"},{"$f":"Import!E14438","v":0},{"$f":"Import!E14538","v":0}]
[46,{"$f":"Import!E14139","v":"Select"},{"$f":"Import!E14239","v":"Select"},{"$f":"Import!E14339","v":"Select"},{"$f":"Import!E14439","v":0},{"$f":"Import!E14539","v":0}]
[47,{"$f":"Import!E14140","v":"Select"},{"$f":"Import!E14240","v":"Select"},{"$f":"Import!E14340","v":"Select"},{"$f":"Import!E14440","v":0},{"$f":"Import!E14540","v":0}]
[48,{"$f":"Import!E14141","v":"Select"},{"$f":"Import!E14241","v":"Select"},{"$f":"Import!E14341","v":"Select"},{"$f":"Import!E14441","v":0},{"$f":"Import!E14541","v":0}]
[49,{"$f":"Import!E14142","v":"Select"},{"$f":"Import!E14242","v":"Select"},{"$f":"Import!E14342","v":"Select"},{"$f":"Import!E14442","v":0},{"$f":"Import!E14542","v":0}]
[50,{"$f":"Import!E14143","v":"Select"},{"$f":"Import!E14243","v":"Select"},{"$f":"Import!E14343","v":"Select"},{"$f":"Import!E14443","v":0},{"$f":"Import!E14543","v":0}]
[51,{"$f":"Import!E14144","v":"Select"},{"$f":"Import!E14244","v":"Select"},{"$f":"Import!E14344","v":"Select"},{"$f":"Import!E14444","v":0},{"$f":"Import!E14544","v":0}]
[52,{"$f":"Import!E14145","v":"Select"},{"$f":"Import!E14245","v":"Select"},{"$f":"Import!E14345","v":"Select"},{"$f":"Import!E14445","v":0},{"$f":"Import!E14545","v":0}]
[53,{"$f":"Import!E14146","v":"Select"},{"$f":"Import!E14246","v":"Select"},{"$f":"Import!E14346","v":"Select"},{"$f":"Import!E14446","v":0},{"$f":"Import!E14546","v":0}]
[54,{"$f":"Import!E14147","v":"Select"},{"$f":"Import!E14247","v":"Select"},{"$f":"Import!E14347","v":"Select"},{"$f":"Import!E14447","v":0},{"$f":"Import!E14547","v":0}]
[55,{"$f":"Import!E14148","v":"Select"},{"$f":"Import!E14248","v":"Select"},{"$f":"Import!E14348","v":"Select"},{"$f":"Import!E14448","v":0},{"$f":"Import!E14548","v":0}]
[56,{"$f":"Import!E14149","v":"Select"},{"$f":"Import!E14249","v":"Select"},{"$f":"Import!E14349","v":"Select"},{"$f":"Import!E14449","v":0},{"$f":"Import!E14549","v":0}]
[57,{"$f":"Import!E14150","v":"Select"},{"$f":"Import!E14250","v":"Select"},{"$f":"Import!E14350","v":"Select"},{"$f":"Import!E14450","v":0},{"$f":"Import!E14550","v":0}]
[58,{"$f":"Import!E14151","v":"Select"},{"$f":"Import!E14251","v":"Select"},{"$f":"Import!E14351","v":"Select"},{"$f":"Import!E14451","v":0},{"$f":"Import!E14551","v":0}]
[59,{"$f":"Import!E14152","v":"Select"},{"$f":"Import!E14252","v":"Select"},{"$f":"Import!E14352","v":"Select"},{"$f":"Import!E14452","v":0},{"$f":"Import!E14552","v":0}]
[60,{"$f":"Import!E14153","v":"Select"},{"$f":"Import!E14253","v":"Select"},{"$f":"Import!E14353","v":"Select"},{"$f":"Import!E14453","v":0},{"$f":"Import!E14553","v":0}]
[61,{"$f":"Import!E14154","v":"Select"},{"$f":"Import!E14254","v":"Select"},{"$f":"Import!E14354","v":"Select"},{"$f":"Import!E14454","v":0},{"$f":"Import!E14554","v":0}]
[62,{"$f":"Import!E14155","v":"Select"},{"$f":"Import!E14255","v":"Select"},{"$f":"Import!E14355","v":"Select"},{"$f":"Import!E14455","v":0},{"$f":"Import!E14555","v":0}]
[63,{"$f":"Import!E14156","v":"Select"},{"$f":"Import!E14256","v":"Select"},{"$f":"Import!E14356","v":"Select"},{"$f":"Import!E14456","v":0},{"$f":"Import!E14556","v":0}]
[64,{"$f":"Import!E14157","v":"Select"},{"$f":"Import!E14257","v":"Select"},{"$f":"Import!E14357","v":"Select"},{"$f":"Import!E14457","v":0},{"$f":"Import!E14557","v":0}]
[65,{"$f":"Import!E14158","v":"Select"},{"$f":"Import!E14258","v":"Select"},{"$f":"Import!E14358","v":"Select"},{"$f":"Import!E14458","v":0},{"$f":"Import!E14558","v":0}]
[66,{"$f":"Import!E14159","v":"Select"},{"$f":"Import!E14259","v":"Select"},{"$f":"Import!E14359","v":"Select"},{"$f":"Import!E14459","v":0},{"$f":"Import!E14559","v":0}]
[{"$f":"A1302+1","v":67},{"$f":"Import!E14160","v":"Select"},{"$f":"Import!E14260","v":"Select"},{"$f":"Import!E14360","v":"Select"},{"$f":"Import!E14460","v":0},{"$f":"Import!E14560","v":0}]
[68,{"$f":"Import!E14161","v":"Select"},{"$f":"Import!E14261","v":"Select"},{"$f":"Import!E14361","v":"Select"},{"$f":"Import!E14461","v":0},{"$f":"Import!E14561","v":0}]
[69,{"$f":"Import!E14162","v":"Select"},{"$f":"Import!E14262","v":"Select"},{"$f":"Import!E14362","v":"Select"},{"$f":"Import!E14462","v":0},{"$f":"Import!E14562","v":0}]
[70,{"$f":"Import!E14163","v":"Select"},{"$f":"Import!E14263","v":"Select"},{"$f":"Import!E14363","v":"Select"},{"$f":"Import!E14463","v":0},{"$f":"Import!E14563","v":0}]
[71,{"$f":"Import!E14164","v":"Select"},{"$f":"Import!E14264","v":"Select"},{"$f":"Import!E14364","v":"Select"},{"$f":"Import!E14464","v":0},{"$f":"Import!E14564","v":0}]
[72,{"$f":"Import!E14165","v":"Select"},{"$f":"Import!E14265","v":"Select"},{"$f":"Import!E14365","v":"Select"},{"$f":"Import!E14465","v":0},{"$f":"Import!E14565","v":0}]
[73,{"$f":"Import!E14166","v":"Select"},{"$f":"Import!E14266","v":"Select"},{"$f":"Import!E14366","v":"Select"},{"$f":"Import!E14466","v":0},{"$f":"Import!E14566","v":0}]
[74,{"$f":"Import!E14167","v":"Select"},{"$f":"Import!E14267","v":"Select"},{"$f":"Import!E14367","v":"Select"},{"$f":"Import!E14467","v":0},{"$f":"Import!E14567","v":0}]
[75,{"$f":"Import!E14168","v":"Select"},{"$f":"Import!E14268","v":"Select"},{"$f":"Import!E14368","v":"Select"},{"$f":"Import!E14468","v":0},{"$f":"Import!E14568","v":0}]
[76,{"$f":"Import!E14169","v":"Select"},{"$f":"Import!E14269","v":"Select"},{"$f":"Import!E14369","v":"Select"},{"$f":"Import!E14469","v":0},{"$f":"Import!E14569","v":0}]
[77,{"$f":"Import!E14170","v":"Select"},{"$f":"Import!E14270","v":"Select"},{"$f":"Import!E14370","v":"Select"},{"$f":"Import!E14470","v":0},{"$f":"Import!E14570","v":0}]
[78,{"$f":"Import!E14171","v":"Select"},{"$f":"Import!E14271","v":"Select"},{"$f":"Import!E14371","v":"Select"},{"$f":"Import!E14471","v":0},{"$f":"Import!E14571","v":0}]
[79,{"$f":"Import!E14172","v":"Select"},{"$f":"Import!E14272","v":"Select"},{"$f":"Import!E14372","v":"Select"},{"$f":"Import!E14472","v":0},{"$f":"Import!E14572","v":0}]
[80,{"$f":"Import!E14173","v":"Select"},{"$f":"Import!E14273","v":"Select"},{"$f":"Import!E14373","v":"Select"},{"$f":"Import!E14473","v":0},{"$f":"Import!E14573","v":0}]
[81,{"$f":"Import!E14174","v":"Select"},{"$f":"Import!E14274","v":"Select"},{"$f":"Import!E14374","v":"Select"},{"$f":"Import!E14474","v":0},{"$f":"Import!E14574","v":0}]
[82,{"$f":"Import!E14175","v":"Select"},{"$f":"Import!E14275","v":"Select"},{"$f":"Import!E14375","v":"Select"},{"$f":"Import!E14475","v":0},{"$f":"Import!E14575","v":0}]
[83,{"$f":"Import!E14176","v":"Select"},{"$f":"Import!E14276","v":"Select"},{"$f":"Import!E14376","v":"Select"},{"$f":"Import!E14476","v":0},{"$f":"Import!E14576","v":0}]
[84,{"$f":"Import!E14177","v":"Select"},{"$f":"Import!E14277","v":"Select"},{"$f":"Import!E14377","v":"Select"},{"$f":"Import!E14477","v":0},{"$f":"Import!E14577","v":0}]
[85,{"$f":"Import!E14178","v":"Select"},{"$f":"Import!E14278","v":"Select"},{"$f":"Import!E14378","v":"Select"},{"$f":"Import!E14478","v":0},{"$f":"Import!E14578","v":0}]
[86,{"$f":"Import!E14179","v":"Select"},{"$f":"Import!E14279","v":"Select"},{"$f":"Import!E14379","v":"Select"},{"$f":"Import!E14479","v":0},{"$f":"Import!E14579","v":0}]
[87,{"$f":"Import!E14180","v":"Select"},{"$f":"Import!E14280","v":"Select"},{"$f":"Import!E14380","v":"Select"},{"$f":"Import!E14480","v":0},{"$f":"Import!E14580","v":0}]
[88,{"$f":"Import!E14181","v":"Select"},{"$f":"Import!E14281","v":"Select"},{"$f":"Import!E14381","v":"Select"},{"$f":"Import!E14481","v":0},{"$f":"Import!E14581","v":0}]
[89,{"$f":"Import!E14182","v":"Select"},{"$f":"Import!E14282","v":"Select"},{"$f":"Import!E14382","v":"Select"},{"$f":"Import!E14482","v":0},{"$f":"Import!E14582","v":0}]
[90,{"$f":"Import!E14183","v":"Select"},{"$f":"Import!E14283","v":"Select"},{"$f":"Import!E14383","v":"Select"},{"$f":"Import!E14483","v":0},{"$f":"Import!E14583","v":0}]
[91,{"$f":"Import!E14184","v":"Select"},{"$f":"Import!E14284","v":"Select"},{"$f":"Import!E14384","v":"Select"},{"$f":"Import!E14484","v":0},{"$f":"Import!E14584","v":0}]
[92,{"$f":"Import!E14185","v":"Select"},{"$f":"Import!E14285","v":"Select"},{"$f":"Import!E14385","v":"Select"},{"$f":"Import!E14485","v":0},{"$f":"Import!E14585","v":0}]
[93,{"$f":"Import!E14186","v":"Select"},{"$f":"Import!E14286","v":"Select"},{"$f":"Import!E14386","v":"Select"},{"$f":"Import!E14486","v":0},{"$f":"Import!E14586","v":0}]
[94,{"$f":"Import!E14187","v":"Select"},{"$f":"Import!E14287","v":"Select"},{"$f":"Import!E14387","v":"Select"},{"$f":"Import!E14487","v":0},{"$f":"Import!E14587","v":0}]
[95,{"$f":"Import!E14188","v":"Select"},{"$f":"Import!E14288","v":"Select"},{"$f":"Import!E14388","v":"Select"},{"$f":"Import!E14488","v":0},{"$f":"Import!E14588","v":0}]
[96,{"$f":"Import!E14189","v":"Select"},{"$f":"Import!E14289","v":"Select"},{"$f":"Import!E14389","v":"Select"},{"$f":"Import!E14489","v":0},{"$f":"Import!E14589","v":0}]
[97,{"$f":"Import!E14190","v":"Select"},{"$f":"Import!E14290","v":"Select"},{"$f":"Import!E14390","v":"Select"},{"$f":"Import!E14490","v":0},{"$f":"Import!E14590","v":0}]
[98,{"$f":"Import!E14191","v":"Select"},{"$f":"Import!E14291","v":"Select"},{"$f":"Import!E14391","v":"Select"},{"$f":"Import!E14491","v":0},{"$f":"Import!E14591","v":0}]
[99,{"$f":"Import!E14192","v":"Select"},{"$f":"Import!E14292","v":"Select"},{"$f":"Import!E14392","v":"Select"},{"$f":"Import!E14492","v":0},{"$f":"Import!E14592","v":0}]
[100,{"$f":"Import!E14193","v":"Select"},{"$f":"Import!E14293","v":"Select"},{"$f":"Import!E14393","v":"Select"},{"$f":"Import!E14493","v":0},{"$f":"Import!E14593","v":0}]
[]
[null,"Total Common Equities",null,null,{"$f":"SUM(E1237:E1336)","v":0}]
[]
[null,"(G) REAL ESTATE"]
[]
[null,null,"Enter # of Asset Types",{"$f":"Import!E14594","v":0}]
[null,null,null,null,null,{"$f":"YEAR($C$3)","v":2023},2023]
[null,"Asset Type","Currency","Country","Purpose","Cost","Fair Value","Comments"]
[1,{"$f":"Import!E14595","v":"Select"},{"$f":"Import!E14695","v":"Select"},{"$f":"Import!E14795","v":"Select"},{"$f":"Import!E14895","v":"Select"},{"$f":"Import!E14995","v":0},{"$f":"Import!E15095","v":0},{"$f":"Import!E15195","v":0}]
[{"$f":"A1345+1","v":2},{"$f":"Import!E14596","v":"Select"},{"$f":"Import!E14696","v":"Select"},{"$f":"Import!E14796","v":"Select"},"Select",{"$f":"Import!E14996","v":0},{"$f":"Import!E15096","v":0},{"$f":"Import!E15196","v":0}]
[{"$f":"A1346+1","v":3},{"$f":"Import!E14597","v":"Select"},{"$f":"Import!E14697","v":"Select"},{"$f":"Import!E14797","v":"Select"},"Select",{"$f":"Import!E14997","v":0},{"$f":"Import!E15097","v":0},{"$f":"Import!E15197","v":0}]
[4,{"$f":"Import!E14598","v":"Select"},{"$f":"Import!E14698","v":"Select"},{"$f":"Import!E14798","v":"Select"},"Select",{"$f":"Import!E14998","v":0},{"$f":"Import!E15098","v":0},{"$f":"Import!E15198","v":0}]
[5,{"$f":"Import!E14599","v":"Select"},{"$f":"Import!E14699","v":"Select"},{"$f":"Import!E14799","v":"Select"},"Select",{"$f":"Import!E14999","v":0},{"$f":"Import!E15099","v":0},{"$f":"Import!E15199","v":0}]
[6,{"$f":"Import!E14600","v":"Select"},{"$f":"Import!E14700","v":"Select"},{"$f":"Import!E14800","v":"Select"},"Select",{"$f":"Import!E15000","v":0},{"$f":"Import!E15100","v":0},{"$f":"Import!E15200","v":0}]
[7,{"$f":"Import!E14601","v":"Select"},{"$f":"Import!E14701","v":"Select"},{"$f":"Import!E14801","v":"Select"},"Select",{"$f":"Import!E15001","v":0},{"$f":"Import!E15101","v":0},{"$f":"Import!E15201","v":0}]
[8,{"$f":"Import!E14602","v":"Select"},{"$f":"Import!E14702","v":"Select"},{"$f":"Import!E14802","v":"Select"},"Select",{"$f":"Import!E15002","v":0},{"$f":"Import!E15102","v":0},{"$f":"Import!E15202","v":0}]
[9,{"$f":"Import!E14603","v":"Select"},{"$f":"Import!E14703","v":"Select"},{"$f":"Import!E14803","v":"Select"},"Select",{"$f":"Import!E15003","v":0},{"$f":"Import!E15103","v":0},{"$f":"Import!E15203","v":0}]
[10,{"$f":"Import!E14604","v":"Select"},{"$f":"Import!E14704","v":"Select"},{"$f":"Import!E14804","v":"Select"},"Select",{"$f":"Import!E15004","v":0},{"$f":"Import!E15104","v":0},{"$f":"Import!E15204","v":0}]
[11,{"$f":"Import!E14605","v":"Select"},{"$f":"Import!E14705","v":"Select"},{"$f":"Import!E14805","v":"Select"},"Select",{"$f":"Import!E15005","v":0},{"$f":"Import!E15105","v":0},{"$f":"Import!E15205","v":0}]
[12,{"$f":"Import!E14606","v":"Select"},{"$f":"Import!E14706","v":"Select"},{"$f":"Import!E14806","v":"Select"},"Select",{"$f":"Import!E15006","v":0},{"$f":"Import!E15106","v":0},{"$f":"Import!E15206","v":0}]
[13,{"$f":"Import!E14607","v":"Select"},{"$f":"Import!E14707","v":"Select"},{"$f":"Import!E14807","v":"Select"},"Select",{"$f":"Import!E15007","v":0},{"$f":"Import!E15107","v":0},{"$f":"Import!E15207","v":0}]
[14,{"$f":"Import!E14608","v":"Select"},{"$f":"Import!E14708","v":"Select"},{"$f":"Import!E14808","v":"Select"},"Select",{"$f":"Import!E15008","v":0},{"$f":"Import!E15108","v":0},{"$f":"Import!E15208","v":0}]
[15,{"$f":"Import!E14609","v":"Select"},{"$f":"Import!E14709","v":"Select"},{"$f":"Import!E14809","v":"Select"},"Select",{"$f":"Import!E15009","v":0},{"$f":"Import!E15109","v":0},{"$f":"Import!E15209","v":0}]
[16,{"$f":"Import!E14610","v":"Select"},{"$f":"Import!E14710","v":"Select"},{"$f":"Import!E14810","v":"Select"},"Select",{"$f":"Import!E15010","v":0},{"$f":"Import!E15110","v":0},{"$f":"Import!E15210","v":0}]
[17,{"$f":"Import!E14611","v":"Select"},{"$f":"Import!E14711","v":"Select"},{"$f":"Import!E14811","v":"Select"},"Select",{"$f":"Import!E15011","v":0},{"$f":"Import!E15111","v":0},{"$f":"Import!E15211","v":0}]
[18,{"$f":"Import!E14612","v":"Select"},{"$f":"Import!E14712","v":"Select"},{"$f":"Import!E14812","v":"Select"},"Select",{"$f":"Import!E15012","v":0},{"$f":"Import!E15112","v":0},{"$f":"Import!E15212","v":0}]
[19,{"$f":"Import!E14613","v":"Select"},{"$f":"Import!E14713","v":"Select"},{"$f":"Import!E14813","v":"Select"},"Select",{"$f":"Import!E15013","v":0},{"$f":"Import!E15113","v":0},{"$f":"Import!E15213","v":0}]
[20,{"$f":"Import!E14614","v":"Select"},{"$f":"Import!E14714","v":"Select"},{"$f":"Import!E14814","v":"Select"},"Select",{"$f":"Import!E15014","v":0},{"$f":"Import!E15114","v":0},{"$f":"Import!E15214","v":0}]
[21,{"$f":"Import!E14615","v":"Select"},{"$f":"Import!E14715","v":"Select"},{"$f":"Import!E14815","v":"Select"},"Select",{"$f":"Import!E15015","v":0},{"$f":"Import!E15115","v":0},{"$f":"Import!E15215","v":0}]
[22,{"$f":"Import!E14616","v":"Select"},{"$f":"Import!E14716","v":"Select"},{"$f":"Import!E14816","v":"Select"},"Select",{"$f":"Import!E15016","v":0},{"$f":"Import!E15116","v":0},{"$f":"Import!E15216","v":0}]
[23,{"$f":"Import!E14617","v":"Select"},{"$f":"Import!E14717","v":"Select"},{"$f":"Import!E14817","v":"Select"},"Select",{"$f":"Import!E15017","v":0},{"$f":"Import!E15117","v":0},{"$f":"Import!E15217","v":0}]
[24,{"$f":"Import!E14618","v":"Select"},{"$f":"Import!E14718","v":"Select"},{"$f":"Import!E14818","v":"Select"},"Select",{"$f":"Import!E15018","v":0},{"$f":"Import!E15118","v":0},{"$f":"Import!E15218","v":0}]
[25,{"$f":"Import!E14619","v":"Select"},{"$f":"Import!E14719","v":"Select"},{"$f":"Import!E14819","v":"Select"},"Select",{"$f":"Import!E15019","v":0},{"$f":"Import!E15119","v":0},{"$f":"Import!E15219","v":0}]
[26,{"$f":"Import!E14620","v":"Select"},{"$f":"Import!E14720","v":"Select"},{"$f":"Import!E14820","v":"Select"},"Select",{"$f":"Import!E15020","v":0},{"$f":"Import!E15120","v":0},{"$f":"Import!E15220","v":0}]
[27,{"$f":"Import!E14621","v":"Select"},{"$f":"Import!E14721","v":"Select"},{"$f":"Import!E14821","v":"Select"},"Select",{"$f":"Import!E15021","v":0},{"$f":"Import!E15121","v":0},{"$f":"Import!E15221","v":0}]
[28,{"$f":"Import!E14622","v":"Select"},{"$f":"Import!E14722","v":"Select"},{"$f":"Import!E14822","v":"Select"},"Select",{"$f":"Import!E15022","v":0},{"$f":"Import!E15122","v":0},{"$f":"Import!E15222","v":0}]
[29,{"$f":"Import!E14623","v":"Select"},{"$f":"Import!E14723","v":"Select"},{"$f":"Import!E14823","v":"Select"},"Select",{"$f":"Import!E15023","v":0},{"$f":"Import!E15123","v":0},{"$f":"Import!E15223","v":0}]
[30,{"$f":"Import!E14624","v":"Select"},{"$f":"Import!E14724","v":"Select"},{"$f":"Import!E14824","v":"Select"},"Select",{"$f":"Import!E15024","v":0},{"$f":"Import!E15124","v":0},{"$f":"Import!E15224","v":0}]
[31,{"$f":"Import!E14625","v":"Select"},{"$f":"Import!E14725","v":"Select"},{"$f":"Import!E14825","v":"Select"},"Select",{"$f":"Import!E15025","v":0},{"$f":"Import!E15125","v":0},{"$f":"Import!E15225","v":0}]
[32,{"$f":"Import!E14626","v":"Select"},{"$f":"Import!E14726","v":"Select"},{"$f":"Import!E14826","v":"Select"},"Select",{"$f":"Import!E15026","v":0},{"$f":"Import!E15126","v":0},{"$f":"Import!E15226","v":0}]
[33,{"$f":"Import!E14627","v":"Select"},{"$f":"Import!E14727","v":"Select"},{"$f":"Import!E14827","v":"Select"},"Select",{"$f":"Import!E15027","v":0},{"$f":"Import!E15127","v":0},{"$f":"Import!E15227","v":0}]
[34,{"$f":"Import!E14628","v":"Select"},{"$f":"Import!E14728","v":"Select"},{"$f":"Import!E14828","v":"Select"},"Select",{"$f":"Import!E15028","v":0},{"$f":"Import!E15128","v":0},{"$f":"Import!E15228","v":0}]
[35,{"$f":"Import!E14629","v":"Select"},{"$f":"Import!E14729","v":"Select"},{"$f":"Import!E14829","v":"Select"},"Select",{"$f":"Import!E15029","v":0},{"$f":"Import!E15129","v":0},{"$f":"Import!E15229","v":0}]
[36,{"$f":"Import!E14630","v":"Select"},{"$f":"Import!E14730","v":"Select"},{"$f":"Import!E14830","v":"Select"},"Select",{"$f":"Import!E15030","v":0},{"$f":"Import!E15130","v":0},{"$f":"Import!E15230","v":0}]
[37,{"$f":"Import!E14631","v":"Select"},{"$f":"Import!E14731","v":"Select"},{"$f":"Import!E14831","v":"Select"},"Select",{"$f":"Import!E15031","v":0},{"$f":"Import!E15131","v":0},{"$f":"Import!E15231","v":0}]
[38,{"$f":"Import!E14632","v":"Select"},{"$f":"Import!E14732","v":"Select"},{"$f":"Import!E14832","v":"Select"},"Select",{"$f":"Import!E15032","v":0},{"$f":"Import!E15132","v":0},{"$f":"Import!E15232","v":0}]
[39,{"$f":"Import!E14633","v":"Select"},{"$f":"Import!E14733","v":"Select"},{"$f":"Import!E14833","v":"Select"},"Select",{"$f":"Import!E15033","v":0},{"$f":"Import!E15133","v":0},{"$f":"Import!E15233","v":0}]
[40,{"$f":"Import!E14634","v":"Select"},{"$f":"Import!E14734","v":"Select"},{"$f":"Import!E14834","v":"Select"},"Select",{"$f":"Import!E15034","v":0},{"$f":"Import!E15134","v":0},{"$f":"Import!E15234","v":0}]
[41,{"$f":"Import!E14635","v":"Select"},{"$f":"Import!E14735","v":"Select"},{"$f":"Import!E14835","v":"Select"},"Select",{"$f":"Import!E15035","v":0},{"$f":"Import!E15135","v":0},{"$f":"Import!E15235","v":0}]
[42,{"$f":"Import!E14636","v":"Select"},{"$f":"Import!E14736","v":"Select"},{"$f":"Import!E14836","v":"Select"},"Select",{"$f":"Import!E15036","v":0},{"$f":"Import!E15136","v":0},{"$f":"Import!E15236","v":0}]
[43,{"$f":"Import!E14637","v":"Select"},{"$f":"Import!E14737","v":"Select"},{"$f":"Import!E14837","v":"Select"},"Select",{"$f":"Import!E15037","v":0},{"$f":"Import!E15137","v":0},{"$f":"Import!E15237","v":0}]
[44,{"$f":"Import!E14638","v":"Select"},{"$f":"Import!E14738","v":"Select"},{"$f":"Import!E14838","v":"Select"},"Select",{"$f":"Import!E15038","v":0},{"$f":"Import!E15138","v":0},{"$f":"Import!E15238","v":0}]
[45,{"$f":"Import!E14639","v":"Select"},{"$f":"Import!E14739","v":"Select"},{"$f":"Import!E14839","v":"Select"},"Select",{"$f":"Import!E15039","v":0},{"$f":"Import!E15139","v":0},{"$f":"Import!E15239","v":0}]
[46,{"$f":"Import!E14640","v":"Select"},{"$f":"Import!E14740","v":"Select"},{"$f":"Import!E14840","v":"Select"},"Select",{"$f":"Import!E15040","v":0},{"$f":"Import!E15140","v":0},{"$f":"Import!E15240","v":0}]
[47,{"$f":"Import!E14641","v":"Select"},{"$f":"Import!E14741","v":"Select"},{"$f":"Import!E14841","v":"Select"},"Select",{"$f":"Import!E15041","v":0},{"$f":"Import!E15141","v":0},{"$f":"Import!E15241","v":0}]
[48,{"$f":"Import!E14642","v":"Select"},{"$f":"Import!E14742","v":"Select"},{"$f":"Import!E14842","v":"Select"},"Select",{"$f":"Import!E15042","v":0},{"$f":"Import!E15142","v":0},{"$f":"Import!E15242","v":0}]
[49,{"$f":"Import!E14643","v":"Select"},{"$f":"Import!E14743","v":"Select"},{"$f":"Import!E14843","v":"Select"},"Select",{"$f":"Import!E15043","v":0},{"$f":"Import!E15143","v":0},{"$f":"Import!E15243","v":0}]
[50,{"$f":"Import!E14644","v":"Select"},{"$f":"Import!E14744","v":"Select"},{"$f":"Import!E14844","v":"Select"},"Select",{"$f":"Import!E15044","v":0},{"$f":"Import!E15144","v":0},{"$f":"Import!E15244","v":0}]
[51,{"$f":"Import!E14645","v":"Select"},{"$f":"Import!E14745","v":"Select"},{"$f":"Import!E14845","v":"Select"},"Select",{"$f":"Import!E15045","v":0},{"$f":"Import!E15145","v":0},{"$f":"Import!E15245","v":0}]
[52,{"$f":"Import!E14646","v":"Select"},{"$f":"Import!E14746","v":"Select"},{"$f":"Import!E14846","v":"Select"},"Select",{"$f":"Import!E15046","v":0},{"$f":"Import!E15146","v":0},{"$f":"Import!E15246","v":0}]
[53,{"$f":"Import!E14647","v":"Select"},{"$f":"Import!E14747","v":"Select"},{"$f":"Import!E14847","v":"Select"},"Select",{"$f":"Import!E15047","v":0},{"$f":"Import!E15147","v":0},{"$f":"Import!E15247","v":0}]
[54,{"$f":"Import!E14648","v":"Select"},{"$f":"Import!E14748","v":"Select"},{"$f":"Import!E14848","v":"Select"},"Select",{"$f":"Import!E15048","v":0},{"$f":"Import!E15148","v":0},{"$f":"Import!E15248","v":0}]
[55,{"$f":"Import!E14649","v":"Select"},{"$f":"Import!E14749","v":"Select"},{"$f":"Import!E14849","v":"Select"},"Select",{"$f":"Import!E15049","v":0},{"$f":"Import!E15149","v":0},{"$f":"Import!E15249","v":0}]
[56,{"$f":"Import!E14650","v":"Select"},{"$f":"Import!E14750","v":"Select"},{"$f":"Import!E14850","v":"Select"},"Select",{"$f":"Import!E15050","v":0},{"$f":"Import!E15150","v":0},{"$f":"Import!E15250","v":0}]
[57,{"$f":"Import!E14651","v":"Select"},{"$f":"Import!E14751","v":"Select"},{"$f":"Import!E14851","v":"Select"},"Select",{"$f":"Import!E15051","v":0},{"$f":"Import!E15151","v":0},{"$f":"Import!E15251","v":0}]
[58,{"$f":"Import!E14652","v":"Select"},{"$f":"Import!E14752","v":"Select"},{"$f":"Import!E14852","v":"Select"},"Select",{"$f":"Import!E15052","v":0},{"$f":"Import!E15152","v":0},{"$f":"Import!E15252","v":0}]
[59,{"$f":"Import!E14653","v":"Select"},{"$f":"Import!E14753","v":"Select"},{"$f":"Import!E14853","v":"Select"},"Select",{"$f":"Import!E15053","v":0},{"$f":"Import!E15153","v":0},{"$f":"Import!E15253","v":0}]
[60,{"$f":"Import!E14654","v":"Select"},{"$f":"Import!E14754","v":"Select"},{"$f":"Import!E14854","v":"Select"},"Select",{"$f":"Import!E15054","v":0},{"$f":"Import!E15154","v":0},{"$f":"Import!E15254","v":0}]
[61,{"$f":"Import!E14655","v":"Select"},{"$f":"Import!E14755","v":"Select"},{"$f":"Import!E14855","v":"Select"},"Select",{"$f":"Import!E15055","v":0},{"$f":"Import!E15155","v":0},{"$f":"Import!E15255","v":0}]
[62,{"$f":"Import!E14656","v":"Select"},{"$f":"Import!E14756","v":"Select"},{"$f":"Import!E14856","v":"Select"},"Select",{"$f":"Import!E15056","v":0},{"$f":"Import!E15156","v":0},{"$f":"Import!E15256","v":0}]
[63,{"$f":"Import!E14657","v":"Select"},{"$f":"Import!E14757","v":"Select"},{"$f":"Import!E14857","v":"Select"},"Select",{"$f":"Import!E15057","v":0},{"$f":"Import!E15157","v":0},{"$f":"Import!E15257","v":0}]
[64,{"$f":"Import!E14658","v":"Select"},{"$f":"Import!E14758","v":"Select"},{"$f":"Import!E14858","v":"Select"},"Select",{"$f":"Import!E15058","v":0},{"$f":"Import!E15158","v":0},{"$f":"Import!E15258","v":0}]
[65,{"$f":"Import!E14659","v":"Select"},{"$f":"Import!E14759","v":"Select"},{"$f":"Import!E14859","v":"Select"},"Select",{"$f":"Import!E15059","v":0},{"$f":"Import!E15159","v":0},{"$f":"Import!E15259","v":0}]
[66,{"$f":"Import!E14660","v":"Select"},{"$f":"Import!E14760","v":"Select"},{"$f":"Import!E14860","v":"Select"},"Select",{"$f":"Import!E15060","v":0},{"$f":"Import!E15160","v":0},{"$f":"Import!E15260","v":0}]
[{"$f":"A1410+1","v":67},{"$f":"Import!E14661","v":"Select"},{"$f":"Import!E14761","v":"Select"},{"$f":"Import!E14861","v":"Select"},"Select",{"$f":"Import!E15061","v":0},{"$f":"Import!E15161","v":0},{"$f":"Import!E15261","v":0}]
[68,{"$f":"Import!E14662","v":"Select"},{"$f":"Import!E14762","v":"Select"},{"$f":"Import!E14862","v":"Select"},"Select",{"$f":"Import!E15062","v":0},{"$f":"Import!E15162","v":0},{"$f":"Import!E15262","v":0}]
[69,{"$f":"Import!E14663","v":"Select"},{"$f":"Import!E14763","v":"Select"},{"$f":"Import!E14863","v":"Select"},"Select",{"$f":"Import!E15063","v":0},{"$f":"Import!E15163","v":0},{"$f":"Import!E15263","v":0}]
[70,{"$f":"Import!E14664","v":"Select"},{"$f":"Import!E14764","v":"Select"},{"$f":"Import!E14864","v":"Select"},"Select",{"$f":"Import!E15064","v":0},{"$f":"Import!E15164","v":0},{"$f":"Import!E15264","v":0}]
[71,{"$f":"Import!E14665","v":"Select"},{"$f":"Import!E14765","v":"Select"},{"$f":"Import!E14865","v":"Select"},"Select",{"$f":"Import!E15065","v":0},{"$f":"Import!E15165","v":0},{"$f":"Import!E15265","v":0}]
[72,{"$f":"Import!E14666","v":"Select"},{"$f":"Import!E14766","v":"Select"},{"$f":"Import!E14866","v":"Select"},"Select",{"$f":"Import!E15066","v":0},{"$f":"Import!E15166","v":0},{"$f":"Import!E15266","v":0}]
[73,{"$f":"Import!E14667","v":"Select"},{"$f":"Import!E14767","v":"Select"},{"$f":"Import!E14867","v":"Select"},"Select",{"$f":"Import!E15067","v":0},{"$f":"Import!E15167","v":0},{"$f":"Import!E15267","v":0}]
[74,{"$f":"Import!E14668","v":"Select"},{"$f":"Import!E14768","v":"Select"},{"$f":"Import!E14868","v":"Select"},"Select",{"$f":"Import!E15068","v":0},{"$f":"Import!E15168","v":0},{"$f":"Import!E15268","v":0}]
[75,{"$f":"Import!E14669","v":"Select"},{"$f":"Import!E14769","v":"Select"},{"$f":"Import!E14869","v":"Select"},"Select",{"$f":"Import!E15069","v":0},{"$f":"Import!E15169","v":0},{"$f":"Import!E15269","v":0}]
[76,{"$f":"Import!E14670","v":"Select"},{"$f":"Import!E14770","v":"Select"},{"$f":"Import!E14870","v":"Select"},"Select",{"$f":"Import!E15070","v":0},{"$f":"Import!E15170","v":0},{"$f":"Import!E15270","v":0}]
[77,{"$f":"Import!E14671","v":"Select"},{"$f":"Import!E14771","v":"Select"},{"$f":"Import!E14871","v":"Select"},"Select",{"$f":"Import!E15071","v":0},{"$f":"Import!E15171","v":0},{"$f":"Import!E15271","v":0}]
[78,{"$f":"Import!E14672","v":"Select"},{"$f":"Import!E14772","v":"Select"},{"$f":"Import!E14872","v":"Select"},"Select",{"$f":"Import!E15072","v":0},{"$f":"Import!E15172","v":0},{"$f":"Import!E15272","v":0}]
[79,{"$f":"Import!E14673","v":"Select"},{"$f":"Import!E14773","v":"Select"},{"$f":"Import!E14873","v":"Select"},"Select",{"$f":"Import!E15073","v":0},{"$f":"Import!E15173","v":0},{"$f":"Import!E15273","v":0}]
[80,{"$f":"Import!E14674","v":"Select"},{"$f":"Import!E14774","v":"Select"},{"$f":"Import!E14874","v":"Select"},"Select",{"$f":"Import!E15074","v":0},{"$f":"Import!E15174","v":0},{"$f":"Import!E15274","v":0}]
[81,{"$f":"Import!E14675","v":"Select"},{"$f":"Import!E14775","v":"Select"},{"$f":"Import!E14875","v":"Select"},"Select",{"$f":"Import!E15075","v":0},{"$f":"Import!E15175","v":0},{"$f":"Import!E15275","v":0}]
[82,{"$f":"Import!E14676","v":"Select"},{"$f":"Import!E14776","v":"Select"},{"$f":"Import!E14876","v":"Select"},"Select",{"$f":"Import!E15076","v":0},{"$f":"Import!E15176","v":0},{"$f":"Import!E15276","v":0}]
[83,{"$f":"Import!E14677","v":"Select"},{"$f":"Import!E14777","v":"Select"},{"$f":"Import!E14877","v":"Select"},"Select",{"$f":"Import!E15077","v":0},{"$f":"Import!E15177","v":0},{"$f":"Import!E15277","v":0}]
[84,{"$f":"Import!E14678","v":"Select"},{"$f":"Import!E14778","v":"Select"},{"$f":"Import!E14878","v":"Select"},"Select",{"$f":"Import!E15078","v":0},{"$f":"Import!E15178","v":0},{"$f":"Import!E15278","v":0}]
[85,{"$f":"Import!E14679","v":"Select"},{"$f":"Import!E14779","v":"Select"},{"$f":"Import!E14879","v":"Select"},"Select",{"$f":"Import!E15079","v":0},{"$f":"Import!E15179","v":0},{"$f":"Import!E15279","v":0}]
[86,{"$f":"Import!E14680","v":"Select"},{"$f":"Import!E14780","v":"Select"},{"$f":"Import!E14880","v":"Select"},"Select",{"$f":"Import!E15080","v":0},{"$f":"Import!E15180","v":0},{"$f":"Import!E15280","v":0}]
[87,{"$f":"Import!E14681","v":"Select"},{"$f":"Import!E14781","v":"Select"},{"$f":"Import!E14881","v":"Select"},"Select",{"$f":"Import!E15081","v":0},{"$f":"Import!E15181","v":0},{"$f":"Import!E15281","v":0}]
[88,{"$f":"Import!E14682","v":"Select"},{"$f":"Import!E14782","v":"Select"},{"$f":"Import!E14882","v":"Select"},"Select",{"$f":"Import!E15082","v":0},{"$f":"Import!E15182","v":0},{"$f":"Import!E15282","v":0}]
[89,{"$f":"Import!E14683","v":"Select"},{"$f":"Import!E14783","v":"Select"},{"$f":"Import!E14883","v":"Select"},"Select",{"$f":"Import!E15083","v":0},{"$f":"Import!E15183","v":0},{"$f":"Import!E15283","v":0}]
[90,{"$f":"Import!E14684","v":"Select"},{"$f":"Import!E14784","v":"Select"},{"$f":"Import!E14884","v":"Select"},"Select",{"$f":"Import!E15084","v":0},{"$f":"Import!E15184","v":0},{"$f":"Import!E15284","v":0}]
[91,{"$f":"Import!E14685","v":"Select"},{"$f":"Import!E14785","v":"Select"},{"$f":"Import!E14885","v":"Select"},"Select",{"$f":"Import!E15085","v":0},{"$f":"Import!E15185","v":0},{"$f":"Import!E15285","v":0}]
[92,{"$f":"Import!E14686","v":"Select"},{"$f":"Import!E14786","v":"Select"},{"$f":"Import!E14886","v":"Select"},"Select",{"$f":"Import!E15086","v":0},{"$f":"Import!E15186","v":0},{"$f":"Import!E15286","v":0}]
[93,{"$f":"Import!E14687","v":"Select"},{"$f":"Import!E14787","v":"Select"},{"$f":"Import!E14887","v":"Select"},"Select",{"$f":"Import!E15087","v":0},{"$f":"Import!E15187","v":0},{"$f":"Import!E15287","v":0}]
[94,{"$f":"Import!E14688","v":"Select"},{"$f":"Import!E14788","v":"Select"},{"$f":"Import!E14888","v":"Select"},"Select",{"$f":"Import!E15088","v":0},{"$f":"Import!E15188","v":0},{"$f":"Import!E15288","v":0}]
[95,{"$f":"Import!E14689","v":"Select"},{"$f":"Import!E14789","v":"Select"},{"$f":"Import!E14889","v":"Select"},"Select",{"$f":"Import!E15089","v":0},{"$f":"Import!E15189","v":0},{"$f":"Import!E15289","v":0}]
[96,{"$f":"Import!E14690","v":"Select"},{"$f":"Import!E14790","v":"Select"},{"$f":"Import!E14890","v":"Select"},"Select",{"$f":"Import!E15090","v":0},{"$f":"Import!E15190","v":0},{"$f":"Import!E15290","v":0}]
[97,{"$f":"Import!E14691","v":"Select"},{"$f":"Import!E14791","v":"Select"},{"$f":"Import!E14891","v":"Select"},"Select",{"$f":"Import!E15091","v":0},{"$f":"Import!E15191","v":0},{"$f":"Import!E15291","v":0}]
[98,{"$f":"Import!E14692","v":"Select"},{"$f":"Import!E14792","v":"Select"},{"$f":"Import!E14892","v":"Select"},"Select",{"$f":"Import!E15092","v":0},{"$f":"Import!E15192","v":0},{"$f":"Import!E15292","v":0}]
[99,{"$f":"Import!E14693","v":"Select"},{"$f":"Import!E14793","v":"Select"},{"$f":"Import!E14893","v":"Select"},"Select",{"$f":"Import!E15093","v":0},{"$f":"Import!E15193","v":0},{"$f":"Import!E15293","v":0}]
[100,{"$f":"Import!E14694","v":"Select"},{"$f":"Import!E14794","v":"Select"},{"$f":"Import!E14894","v":"Select"},"Select",{"$f":"Import!E15094","v":0},{"$f":"Import!E15194","v":0},{"$f":"Import!E15294","v":0}]
[]
[null,"Total Real Estate",null,null,null,{"$f":"SUM(F1345:F1444)","v":0},{"$f":"SUM(G1345:G1444)","v":0}]
[]
[null,"(H) OTHER ALTERNATIVE INVESTMENTS"]
[]
[null,null,"Enter # of Asset Types",{"$f":"Import!E15295","v":0}]
[null,null,null,null,null,{"$f":"YEAR($C$3)","v":2023},2023,"Weighted"]
[null,"Asset Type","Currency","Country","BSCR Rating","Nominal Amount","Fair Value","Average YTM","Effective Duration","Comments"]
[1,{"$f":"Import!E15296","v":"Select"},{"$f":"Import!E15396","v":"Select"},{"$f":"Import!E15496","v":"Select"},{"$f":"Import!E15596","v":"Select"},{"$f":"Import!E15696","v":0},{"$f":"Import!E15796","v":0},{"$f":"Import!E15896","v":0},{"$f":"Import!E15996","v":0},{"$f":"Import!E16096","v":0}]
[{"$f":"A1453+1","v":2},{"$f":"Import!E15297","v":"Select"},{"$f":"Import!E15397","v":"Select"},{"$f":"Import!E15497","v":"Select"},{"$f":"Import!E15597","v":"Select"},{"$f":"Import!E15697","v":0},{"$f":"Import!E15797","v":0},{"$f":"Import!E15897","v":0},{"$f":"Import!E15997","v":0},{"$f":"Import!E16097","v":0}]
[{"$f":"A1454+1","v":3},{"$f":"Import!E15298","v":"Select"},{"$f":"Import!E15398","v":"Select"},{"$f":"Import!E15498","v":"Select"},{"$f":"Import!E15598","v":"Select"},{"$f":"Import!E15698","v":0},{"$f":"Import!E15798","v":0},{"$f":"Import!E15898","v":0},{"$f":"Import!E15998","v":0},{"$f":"Import!E16098","v":0}]
[4,{"$f":"Import!E15299","v":"Select"},{"$f":"Import!E15399","v":"Select"},{"$f":"Import!E15499","v":"Select"},{"$f":"Import!E15599","v":"Select"},{"$f":"Import!E15699","v":0},{"$f":"Import!E15799","v":0},{"$f":"Import!E15899","v":0},{"$f":"Import!E15999","v":0},{"$f":"Import!E16099","v":0}]
[5,{"$f":"Import!E15300","v":"Select"},{"$f":"Import!E15400","v":"Select"},{"$f":"Import!E15500","v":"Select"},{"$f":"Import!E15600","v":"Select"},{"$f":"Import!E15700","v":0},{"$f":"Import!E15800","v":0},{"$f":"Import!E15900","v":0},{"$f":"Import!E16000","v":0},{"$f":"Import!E16100","v":0}]
[6,{"$f":"Import!E15301","v":"Select"},{"$f":"Import!E15401","v":"Select"},{"$f":"Import!E15501","v":"Select"},{"$f":"Import!E15601","v":"Select"},{"$f":"Import!E15701","v":0},{"$f":"Import!E15801","v":0},{"$f":"Import!E15901","v":0},{"$f":"Import!E16001","v":0},{"$f":"Import!E16101","v":0}]
[7,{"$f":"Import!E15302","v":"Select"},{"$f":"Import!E15402","v":"Select"},{"$f":"Import!E15502","v":"Select"},{"$f":"Import!E15602","v":"Select"},{"$f":"Import!E15702","v":0},{"$f":"Import!E15802","v":0},{"$f":"Import!E15902","v":0},{"$f":"Import!E16002","v":0},{"$f":"Import!E16102","v":0}]
[8,{"$f":"Import!E15303","v":"Select"},{"$f":"Import!E15403","v":"Select"},{"$f":"Import!E15503","v":"Select"},{"$f":"Import!E15603","v":"Select"},{"$f":"Import!E15703","v":0},{"$f":"Import!E15803","v":0},{"$f":"Import!E15903","v":0},{"$f":"Import!E16003","v":0},{"$f":"Import!E16103","v":0}]
[9,{"$f":"Import!E15304","v":"Select"},{"$f":"Import!E15404","v":"Select"},{"$f":"Import!E15504","v":"Select"},{"$f":"Import!E15604","v":"Select"},{"$f":"Import!E15704","v":0},{"$f":"Import!E15804","v":0},{"$f":"Import!E15904","v":0},{"$f":"Import!E16004","v":0},{"$f":"Import!E16104","v":0}]
[10,{"$f":"Import!E15305","v":"Select"},{"$f":"Import!E15405","v":"Select"},{"$f":"Import!E15505","v":"Select"},{"$f":"Import!E15605","v":"Select"},{"$f":"Import!E15705","v":0},{"$f":"Import!E15805","v":0},{"$f":"Import!E15905","v":0},{"$f":"Import!E16005","v":0},{"$f":"Import!E16105","v":0}]
[11,{"$f":"Import!E15306","v":"Select"},{"$f":"Import!E15406","v":"Select"},{"$f":"Import!E15506","v":"Select"},{"$f":"Import!E15606","v":"Select"},{"$f":"Import!E15706","v":0},{"$f":"Import!E15806","v":0},{"$f":"Import!E15906","v":0},{"$f":"Import!E16006","v":0},{"$f":"Import!E16106","v":0}]
[12,{"$f":"Import!E15307","v":"Select"},{"$f":"Import!E15407","v":"Select"},{"$f":"Import!E15507","v":"Select"},{"$f":"Import!E15607","v":"Select"},{"$f":"Import!E15707","v":0},{"$f":"Import!E15807","v":0},{"$f":"Import!E15907","v":0},{"$f":"Import!E16007","v":0},{"$f":"Import!E16107","v":0}]
[13,{"$f":"Import!E15308","v":"Select"},{"$f":"Import!E15408","v":"Select"},{"$f":"Import!E15508","v":"Select"},{"$f":"Import!E15608","v":"Select"},{"$f":"Import!E15708","v":0},{"$f":"Import!E15808","v":0},{"$f":"Import!E15908","v":0},{"$f":"Import!E16008","v":0},{"$f":"Import!E16108","v":0}]
[14,{"$f":"Import!E15309","v":"Select"},{"$f":"Import!E15409","v":"Select"},{"$f":"Import!E15509","v":"Select"},{"$f":"Import!E15609","v":"Select"},{"$f":"Import!E15709","v":0},{"$f":"Import!E15809","v":0},{"$f":"Import!E15909","v":0},{"$f":"Import!E16009","v":0},{"$f":"Import!E16109","v":0}]
[15,{"$f":"Import!E15310","v":"Select"},{"$f":"Import!E15410","v":"Select"},{"$f":"Import!E15510","v":"Select"},{"$f":"Import!E15610","v":"Select"},{"$f":"Import!E15710","v":0},{"$f":"Import!E15810","v":0},{"$f":"Import!E15910","v":0},{"$f":"Import!E16010","v":0},{"$f":"Import!E16110","v":0}]
[16,{"$f":"Import!E15311","v":"Select"},{"$f":"Import!E15411","v":"Select"},{"$f":"Import!E15511","v":"Select"},{"$f":"Import!E15611","v":"Select"},{"$f":"Import!E15711","v":0},{"$f":"Import!E15811","v":0},{"$f":"Import!E15911","v":0},{"$f":"Import!E16011","v":0},{"$f":"Import!E16111","v":0}]
[17,{"$f":"Import!E15312","v":"Select"},{"$f":"Import!E15412","v":"Select"},{"$f":"Import!E15512","v":"Select"},{"$f":"Import!E15612","v":"Select"},{"$f":"Import!E15712","v":0},{"$f":"Import!E15812","v":0},{"$f":"Import!E15912","v":0},{"$f":"Import!E16012","v":0},{"$f":"Import!E16112","v":0}]
[18,{"$f":"Import!E15313","v":"Select"},{"$f":"Import!E15413","v":"Select"},{"$f":"Import!E15513","v":"Select"},{"$f":"Import!E15613","v":"Select"},{"$f":"Import!E15713","v":0},{"$f":"Import!E15813","v":0},{"$f":"Import!E15913","v":0},{"$f":"Import!E16013","v":0},{"$f":"Import!E16113","v":0}]
[19,{"$f":"Import!E15314","v":"Select"},{"$f":"Import!E15414","v":"Select"},{"$f":"Import!E15514","v":"Select"},{"$f":"Import!E15614","v":"Select"},{"$f":"Import!E15714","v":0},{"$f":"Import!E15814","v":0},{"$f":"Import!E15914","v":0},{"$f":"Import!E16014","v":0},{"$f":"Import!E16114","v":0}]
[20,{"$f":"Import!E15315","v":"Select"},{"$f":"Import!E15415","v":"Select"},{"$f":"Import!E15515","v":"Select"},{"$f":"Import!E15615","v":"Select"},{"$f":"Import!E15715","v":0},{"$f":"Import!E15815","v":0},{"$f":"Import!E15915","v":0},{"$f":"Import!E16015","v":0},{"$f":"Import!E16115","v":0}]
[21,{"$f":"Import!E15316","v":"Select"},{"$f":"Import!E15416","v":"Select"},{"$f":"Import!E15516","v":"Select"},{"$f":"Import!E15616","v":"Select"},{"$f":"Import!E15716","v":0},{"$f":"Import!E15816","v":0},{"$f":"Import!E15916","v":0},{"$f":"Import!E16016","v":0},{"$f":"Import!E16116","v":0}]
[22,{"$f":"Import!E15317","v":"Select"},{"$f":"Import!E15417","v":"Select"},{"$f":"Import!E15517","v":"Select"},{"$f":"Import!E15617","v":"Select"},{"$f":"Import!E15717","v":0},{"$f":"Import!E15817","v":0},{"$f":"Import!E15917","v":0},{"$f":"Import!E16017","v":0},{"$f":"Import!E16117","v":0}]
[23,{"$f":"Import!E15318","v":"Select"},{"$f":"Import!E15418","v":"Select"},{"$f":"Import!E15518","v":"Select"},{"$f":"Import!E15618","v":"Select"},{"$f":"Import!E15718","v":0},{"$f":"Import!E15818","v":0},{"$f":"Import!E15918","v":0},{"$f":"Import!E16018","v":0},{"$f":"Import!E16118","v":0}]
[24,{"$f":"Import!E15319","v":"Select"},{"$f":"Import!E15419","v":"Select"},{"$f":"Import!E15519","v":"Select"},{"$f":"Import!E15619","v":"Select"},{"$f":"Import!E15719","v":0},{"$f":"Import!E15819","v":0},{"$f":"Import!E15919","v":0},{"$f":"Import!E16019","v":0},{"$f":"Import!E16119","v":0}]
[25,{"$f":"Import!E15320","v":"Select"},{"$f":"Import!E15420","v":"Select"},{"$f":"Import!E15520","v":"Select"},{"$f":"Import!E15620","v":"Select"},{"$f":"Import!E15720","v":0},{"$f":"Import!E15820","v":0},{"$f":"Import!E15920","v":0},{"$f":"Import!E16020","v":0},{"$f":"Import!E16120","v":0}]
[26,{"$f":"Import!E15321","v":"Select"},{"$f":"Import!E15421","v":"Select"},{"$f":"Import!E15521","v":"Select"},{"$f":"Import!E15621","v":"Select"},{"$f":"Import!E15721","v":0},{"$f":"Import!E15821","v":0},{"$f":"Import!E15921","v":0},{"$f":"Import!E16021","v":0},{"$f":"Import!E16121","v":0}]
[27,{"$f":"Import!E15322","v":"Select"},{"$f":"Import!E15422","v":"Select"},{"$f":"Import!E15522","v":"Select"},{"$f":"Import!E15622","v":"Select"},{"$f":"Import!E15722","v":0},{"$f":"Import!E15822","v":0},{"$f":"Import!E15922","v":0},{"$f":"Import!E16022","v":0},{"$f":"Import!E16122","v":0}]
[28,{"$f":"Import!E15323","v":"Select"},{"$f":"Import!E15423","v":"Select"},{"$f":"Import!E15523","v":"Select"},{"$f":"Import!E15623","v":"Select"},{"$f":"Import!E15723","v":0},{"$f":"Import!E15823","v":0},{"$f":"Import!E15923","v":0},{"$f":"Import!E16023","v":0},{"$f":"Import!E16123","v":0}]
[29,{"$f":"Import!E15324","v":"Select"},{"$f":"Import!E15424","v":"Select"},{"$f":"Import!E15524","v":"Select"},{"$f":"Import!E15624","v":"Select"},{"$f":"Import!E15724","v":0},{"$f":"Import!E15824","v":0},{"$f":"Import!E15924","v":0},{"$f":"Import!E16024","v":0},{"$f":"Import!E16124","v":0}]
[30,{"$f":"Import!E15325","v":"Select"},{"$f":"Import!E15425","v":"Select"},{"$f":"Import!E15525","v":"Select"},{"$f":"Import!E15625","v":"Select"},{"$f":"Import!E15725","v":0},{"$f":"Import!E15825","v":0},{"$f":"Import!E15925","v":0},{"$f":"Import!E16025","v":0},{"$f":"Import!E16125","v":0}]
[31,{"$f":"Import!E15326","v":"Select"},{"$f":"Import!E15426","v":"Select"},{"$f":"Import!E15526","v":"Select"},{"$f":"Import!E15626","v":"Select"},{"$f":"Import!E15726","v":0},{"$f":"Import!E15826","v":0},{"$f":"Import!E15926","v":0},{"$f":"Import!E16026","v":0},{"$f":"Import!E16126","v":0}]
[32,{"$f":"Import!E15327","v":"Select"},{"$f":"Import!E15427","v":"Select"},{"$f":"Import!E15527","v":"Select"},{"$f":"Import!E15627","v":"Select"},{"$f":"Import!E15727","v":0},{"$f":"Import!E15827","v":0},{"$f":"Import!E15927","v":0},{"$f":"Import!E16027","v":0},{"$f":"Import!E16127","v":0}]
[33,{"$f":"Import!E15328","v":"Select"},{"$f":"Import!E15428","v":"Select"},{"$f":"Import!E15528","v":"Select"},{"$f":"Import!E15628","v":"Select"},{"$f":"Import!E15728","v":0},{"$f":"Import!E15828","v":0},{"$f":"Import!E15928","v":0},{"$f":"Import!E16028","v":0},{"$f":"Import!E16128","v":0}]
[34,{"$f":"Import!E15329","v":"Select"},{"$f":"Import!E15429","v":"Select"},{"$f":"Import!E15529","v":"Select"},{"$f":"Import!E15629","v":"Select"},{"$f":"Import!E15729","v":0},{"$f":"Import!E15829","v":0},{"$f":"Import!E15929","v":0},{"$f":"Import!E16029","v":0},{"$f":"Import!E16129","v":0}]
[35,{"$f":"Import!E15330","v":"Select"},{"$f":"Import!E15430","v":"Select"},{"$f":"Import!E15530","v":"Select"},{"$f":"Import!E15630","v":"Select"},{"$f":"Import!E15730","v":0},{"$f":"Import!E15830","v":0},{"$f":"Import!E15930","v":0},{"$f":"Import!E16030","v":0},{"$f":"Import!E16130","v":0}]
[36,{"$f":"Import!E15331","v":"Select"},{"$f":"Import!E15431","v":"Select"},{"$f":"Import!E15531","v":"Select"},{"$f":"Import!E15631","v":"Select"},{"$f":"Import!E15731","v":0},{"$f":"Import!E15831","v":0},{"$f":"Import!E15931","v":0},{"$f":"Import!E16031","v":0},{"$f":"Import!E16131","v":0}]
[37,{"$f":"Import!E15332","v":"Select"},{"$f":"Import!E15432","v":"Select"},{"$f":"Import!E15532","v":"Select"},{"$f":"Import!E15632","v":"Select"},{"$f":"Import!E15732","v":0},{"$f":"Import!E15832","v":0},{"$f":"Import!E15932","v":0},{"$f":"Import!E16032","v":0},{"$f":"Import!E16132","v":0}]
[38,{"$f":"Import!E15333","v":"Select"},{"$f":"Import!E15433","v":"Select"},{"$f":"Import!E15533","v":"Select"},{"$f":"Import!E15633","v":"Select"},{"$f":"Import!E15733","v":0},{"$f":"Import!E15833","v":0},{"$f":"Import!E15933","v":0},{"$f":"Import!E16033","v":0},{"$f":"Import!E16133","v":0}]
[39,{"$f":"Import!E15334","v":"Select"},{"$f":"Import!E15434","v":"Select"},{"$f":"Import!E15534","v":"Select"},{"$f":"Import!E15634","v":"Select"},{"$f":"Import!E15734","v":0},{"$f":"Import!E15834","v":0},{"$f":"Import!E15934","v":0},{"$f":"Import!E16034","v":0},{"$f":"Import!E16134","v":0}]
[40,{"$f":"Import!E15335","v":"Select"},{"$f":"Import!E15435","v":"Select"},{"$f":"Import!E15535","v":"Select"},{"$f":"Import!E15635","v":"Select"},{"$f":"Import!E15735","v":0},{"$f":"Import!E15835","v":0},{"$f":"Import!E15935","v":0},{"$f":"Import!E16035","v":0},{"$f":"Import!E16135","v":0}]
[41,{"$f":"Import!E15336","v":"Select"},{"$f":"Import!E15436","v":"Select"},{"$f":"Import!E15536","v":"Select"},{"$f":"Import!E15636","v":"Select"},{"$f":"Import!E15736","v":0},{"$f":"Import!E15836","v":0},{"$f":"Import!E15936","v":0},{"$f":"Import!E16036","v":0},{"$f":"Import!E16136","v":0}]
[42,{"$f":"Import!E15337","v":"Select"},{"$f":"Import!E15437","v":"Select"},{"$f":"Import!E15537","v":"Select"},{"$f":"Import!E15637","v":"Select"},{"$f":"Import!E15737","v":0},{"$f":"Import!E15837","v":0},{"$f":"Import!E15937","v":0},{"$f":"Import!E16037","v":0},{"$f":"Import!E16137","v":0}]
[43,{"$f":"Import!E15338","v":"Select"},{"$f":"Import!E15438","v":"Select"},{"$f":"Import!E15538","v":"Select"},{"$f":"Import!E15638","v":"Select"},{"$f":"Import!E15738","v":0},{"$f":"Import!E15838","v":0},{"$f":"Import!E15938","v":0},{"$f":"Import!E16038","v":0},{"$f":"Import!E16138","v":0}]
[44,{"$f":"Import!E15339","v":"Select"},{"$f":"Import!E15439","v":"Select"},{"$f":"Import!E15539","v":"Select"},{"$f":"Import!E15639","v":"Select"},{"$f":"Import!E15739","v":0},{"$f":"Import!E15839","v":0},{"$f":"Import!E15939","v":0},{"$f":"Import!E16039","v":0},{"$f":"Import!E16139","v":0}]
[45,{"$f":"Import!E15340","v":"Select"},{"$f":"Import!E15440","v":"Select"},{"$f":"Import!E15540","v":"Select"},{"$f":"Import!E15640","v":"Select"},{"$f":"Import!E15740","v":0},{"$f":"Import!E15840","v":0},{"$f":"Import!E15940","v":0},{"$f":"Import!E16040","v":0},{"$f":"Import!E16140","v":0}]
[46,{"$f":"Import!E15341","v":"Select"},{"$f":"Import!E15441","v":"Select"},{"$f":"Import!E15541","v":"Select"},{"$f":"Import!E15641","v":"Select"},{"$f":"Import!E15741","v":0},{"$f":"Import!E15841","v":0},{"$f":"Import!E15941","v":0},{"$f":"Import!E16041","v":0},{"$f":"Import!E16141","v":0}]
[47,{"$f":"Import!E15342","v":"Select"},{"$f":"Import!E15442","v":"Select"},{"$f":"Import!E15542","v":"Select"},{"$f":"Import!E15642","v":"Select"},{"$f":"Import!E15742","v":0},{"$f":"Import!E15842","v":0},{"$f":"Import!E15942","v":0},{"$f":"Import!E16042","v":0},{"$f":"Import!E16142","v":0}]
[48,{"$f":"Import!E15343","v":"Select"},{"$f":"Import!E15443","v":"Select"},{"$f":"Import!E15543","v":"Select"},{"$f":"Import!E15643","v":"Select"},{"$f":"Import!E15743","v":0},{"$f":"Import!E15843","v":0},{"$f":"Import!E15943","v":0},{"$f":"Import!E16043","v":0},{"$f":"Import!E16143","v":0}]
[49,{"$f":"Import!E15344","v":"Select"},{"$f":"Import!E15444","v":"Select"},{"$f":"Import!E15544","v":"Select"},{"$f":"Import!E15644","v":"Select"},{"$f":"Import!E15744","v":0},{"$f":"Import!E15844","v":0},{"$f":"Import!E15944","v":0},{"$f":"Import!E16044","v":0},{"$f":"Import!E16144","v":0}]
[50,{"$f":"Import!E15345","v":"Select"},{"$f":"Import!E15445","v":"Select"},{"$f":"Import!E15545","v":"Select"},{"$f":"Import!E15645","v":"Select"},{"$f":"Import!E15745","v":0},{"$f":"Import!E15845","v":0},{"$f":"Import!E15945","v":0},{"$f":"Import!E16045","v":0},{"$f":"Import!E16145","v":0}]
[51,{"$f":"Import!E15346","v":"Select"},{"$f":"Import!E15446","v":"Select"},{"$f":"Import!E15546","v":"Select"},{"$f":"Import!E15646","v":"Select"},{"$f":"Import!E15746","v":0},{"$f":"Import!E15846","v":0},{"$f":"Import!E15946","v":0},{"$f":"Import!E16046","v":0},{"$f":"Import!E16146","v":0}]
[52,{"$f":"Import!E15347","v":"Select"},{"$f":"Import!E15447","v":"Select"},{"$f":"Import!E15547","v":"Select"},{"$f":"Import!E15647","v":"Select"},{"$f":"Import!E15747","v":0},{"$f":"Import!E15847","v":0},{"$f":"Import!E15947","v":0},{"$f":"Import!E16047","v":0},{"$f":"Import!E16147","v":0}]
[53,{"$f":"Import!E15348","v":"Select"},{"$f":"Import!E15448","v":"Select"},{"$f":"Import!E15548","v":"Select"},{"$f":"Import!E15648","v":"Select"},{"$f":"Import!E15748","v":0},{"$f":"Import!E15848","v":0},{"$f":"Import!E15948","v":0},{"$f":"Import!E16048","v":0},{"$f":"Import!E16148","v":0}]
[54,{"$f":"Import!E15349","v":"Select"},{"$f":"Import!E15449","v":"Select"},{"$f":"Import!E15549","v":"Select"},{"$f":"Import!E15649","v":"Select"},{"$f":"Import!E15749","v":0},{"$f":"Import!E15849","v":0},{"$f":"Import!E15949","v":0},{"$f":"Import!E16049","v":0},{"$f":"Import!E16149","v":0}]
[55,{"$f":"Import!E15350","v":"Select"},{"$f":"Import!E15450","v":"Select"},{"$f":"Import!E15550","v":"Select"},{"$f":"Import!E15650","v":"Select"},{"$f":"Import!E15750","v":0},{"$f":"Import!E15850","v":0},{"$f":"Import!E15950","v":0},{"$f":"Import!E16050","v":0},{"$f":"Import!E16150","v":0}]
[56,{"$f":"Import!E15351","v":"Select"},{"$f":"Import!E15451","v":"Select"},{"$f":"Import!E15551","v":"Select"},{"$f":"Import!E15651","v":"Select"},{"$f":"Import!E15751","v":0},{"$f":"Import!E15851","v":0},{"$f":"Import!E15951","v":0},{"$f":"Import!E16051","v":0},{"$f":"Import!E16151","v":0}]
[57,{"$f":"Import!E15352","v":"Select"},{"$f":"Import!E15452","v":"Select"},{"$f":"Import!E15552","v":"Select"},{"$f":"Import!E15652","v":"Select"},{"$f":"Import!E15752","v":0},{"$f":"Import!E15852","v":0},{"$f":"Import!E15952","v":0},{"$f":"Import!E16052","v":0},{"$f":"Import!E16152","v":0}]
[58,{"$f":"Import!E15353","v":"Select"},{"$f":"Import!E15453","v":"Select"},{"$f":"Import!E15553","v":"Select"},{"$f":"Import!E15653","v":"Select"},{"$f":"Import!E15753","v":0},{"$f":"Import!E15853","v":0},{"$f":"Import!E15953","v":0},{"$f":"Import!E16053","v":0},{"$f":"Import!E16153","v":0}]
[59,{"$f":"Import!E15354","v":"Select"},{"$f":"Import!E15454","v":"Select"},{"$f":"Import!E15554","v":"Select"},{"$f":"Import!E15654","v":"Select"},{"$f":"Import!E15754","v":0},{"$f":"Import!E15854","v":0},{"$f":"Import!E15954","v":0},{"$f":"Import!E16054","v":0},{"$f":"Import!E16154","v":0}]
[60,{"$f":"Import!E15355","v":"Select"},{"$f":"Import!E15455","v":"Select"},{"$f":"Import!E15555","v":"Select"},{"$f":"Import!E15655","v":"Select"},{"$f":"Import!E15755","v":0},{"$f":"Import!E15855","v":0},{"$f":"Import!E15955","v":0},{"$f":"Import!E16055","v":0},{"$f":"Import!E16155","v":0}]
[61,{"$f":"Import!E15356","v":"Select"},{"$f":"Import!E15456","v":"Select"},{"$f":"Import!E15556","v":"Select"},{"$f":"Import!E15656","v":"Select"},{"$f":"Import!E15756","v":0},{"$f":"Import!E15856","v":0},{"$f":"Import!E15956","v":0},{"$f":"Import!E16056","v":0},{"$f":"Import!E16156","v":0}]
[62,{"$f":"Import!E15357","v":"Select"},{"$f":"Import!E15457","v":"Select"},{"$f":"Import!E15557","v":"Select"},{"$f":"Import!E15657","v":"Select"},{"$f":"Import!E15757","v":0},{"$f":"Import!E15857","v":0},{"$f":"Import!E15957","v":0},{"$f":"Import!E16057","v":0},{"$f":"Import!E16157","v":0}]
[63,{"$f":"Import!E15358","v":"Select"},{"$f":"Import!E15458","v":"Select"},{"$f":"Import!E15558","v":"Select"},{"$f":"Import!E15658","v":"Select"},{"$f":"Import!E15758","v":0},{"$f":"Import!E15858","v":0},{"$f":"Import!E15958","v":0},{"$f":"Import!E16058","v":0},{"$f":"Import!E16158","v":0}]
[64,{"$f":"Import!E15359","v":"Select"},{"$f":"Import!E15459","v":"Select"},{"$f":"Import!E15559","v":"Select"},{"$f":"Import!E15659","v":"Select"},{"$f":"Import!E15759","v":0},{"$f":"Import!E15859","v":0},{"$f":"Import!E15959","v":0},{"$f":"Import!E16059","v":0},{"$f":"Import!E16159","v":0}]
[65,{"$f":"Import!E15360","v":"Select"},{"$f":"Import!E15460","v":"Select"},{"$f":"Import!E15560","v":"Select"},{"$f":"Import!E15660","v":"Select"},{"$f":"Import!E15760","v":0},{"$f":"Import!E15860","v":0},{"$f":"Import!E15960","v":0},{"$f":"Import!E16060","v":0},{"$f":"Import!E16160","v":0}]
[66,{"$f":"Import!E15361","v":"Select"},{"$f":"Import!E15461","v":"Select"},{"$f":"Import!E15561","v":"Select"},{"$f":"Import!E15661","v":"Select"},{"$f":"Import!E15761","v":0},{"$f":"Import!E15861","v":0},{"$f":"Import!E15961","v":0},{"$f":"Import!E16061","v":0},{"$f":"Import!E16161","v":0}]
[{"$f":"A1518+1","v":67},{"$f":"Import!E15362","v":"Select"},{"$f":"Import!E15462","v":"Select"},{"$f":"Import!E15562","v":"Select"},{"$f":"Import!E15662","v":"Select"},{"$f":"Import!E15762","v":0},{"$f":"Import!E15862","v":0},{"$f":"Import!E15962","v":0},{"$f":"Import!E16062","v":0},{"$f":"Import!E16162","v":0}]
[68,{"$f":"Import!E15363","v":"Select"},{"$f":"Import!E15463","v":"Select"},{"$f":"Import!E15563","v":"Select"},{"$f":"Import!E15663","v":"Select"},{"$f":"Import!E15763","v":0},{"$f":"Import!E15863","v":0},{"$f":"Import!E15963","v":0},{"$f":"Import!E16063","v":0},{"$f":"Import!E16163","v":0}]
[69,{"$f":"Import!E15364","v":"Select"},{"$f":"Import!E15464","v":"Select"},{"$f":"Import!E15564","v":"Select"},{"$f":"Import!E15664","v":"Select"},{"$f":"Import!E15764","v":0},{"$f":"Import!E15864","v":0},{"$f":"Import!E15964","v":0},{"$f":"Import!E16064","v":0},{"$f":"Import!E16164","v":0}]
[70,{"$f":"Import!E15365","v":"Select"},{"$f":"Import!E15465","v":"Select"},{"$f":"Import!E15565","v":"Select"},{"$f":"Import!E15665","v":"Select"},{"$f":"Import!E15765","v":0},{"$f":"Import!E15865","v":0},{"$f":"Import!E15965","v":0},{"$f":"Import!E16065","v":0},{"$f":"Import!E16165","v":0}]
[71,{"$f":"Import!E15366","v":"Select"},{"$f":"Import!E15466","v":"Select"},{"$f":"Import!E15566","v":"Select"},{"$f":"Import!E15666","v":"Select"},{"$f":"Import!E15766","v":0},{"$f":"Import!E15866","v":0},{"$f":"Import!E15966","v":0},{"$f":"Import!E16066","v":0},{"$f":"Import!E16166","v":0}]
[72,{"$f":"Import!E15367","v":"Select"},{"$f":"Import!E15467","v":"Select"},{"$f":"Import!E15567","v":"Select"},{"$f":"Import!E15667","v":"Select"},{"$f":"Import!E15767","v":0},{"$f":"Import!E15867","v":0},{"$f":"Import!E15967","v":0},{"$f":"Import!E16067","v":0},{"$f":"Import!E16167","v":0}]
[73,{"$f":"Import!E15368","v":"Select"},{"$f":"Import!E15468","v":"Select"},{"$f":"Import!E15568","v":"Select"},{"$f":"Import!E15668","v":"Select"},{"$f":"Import!E15768","v":0},{"$f":"Import!E15868","v":0},{"$f":"Import!E15968","v":0},{"$f":"Import!E16068","v":0},{"$f":"Import!E16168","v":0}]
[74,{"$f":"Import!E15369","v":"Select"},{"$f":"Import!E15469","v":"Select"},{"$f":"Import!E15569","v":"Select"},{"$f":"Import!E15669","v":"Select"},{"$f":"Import!E15769","v":0},{"$f":"Import!E15869","v":0},{"$f":"Import!E15969","v":0},{"$f":"Import!E16069","v":0},{"$f":"Import!E16169","v":0}]
[75,{"$f":"Import!E15370","v":"Select"},{"$f":"Import!E15470","v":"Select"},{"$f":"Import!E15570","v":"Select"},{"$f":"Import!E15670","v":"Select"},{"$f":"Import!E15770","v":0},{"$f":"Import!E15870","v":0},{"$f":"Import!E15970","v":0},{"$f":"Import!E16070","v":0},{"$f":"Import!E16170","v":0}]
[76,{"$f":"Import!E15371","v":"Select"},{"$f":"Import!E15471","v":"Select"},{"$f":"Import!E15571","v":"Select"},{"$f":"Import!E15671","v":"Select"},{"$f":"Import!E15771","v":0},{"$f":"Import!E15871","v":0},{"$f":"Import!E15971","v":0},{"$f":"Import!E16071","v":0},{"$f":"Import!E16171","v":0}]
[77,{"$f":"Import!E15372","v":"Select"},{"$f":"Import!E15472","v":"Select"},{"$f":"Import!E15572","v":"Select"},{"$f":"Import!E15672","v":"Select"},{"$f":"Import!E15772","v":0},{"$f":"Import!E15872","v":0},{"$f":"Import!E15972","v":0},{"$f":"Import!E16072","v":0},{"$f":"Import!E16172","v":0}]
[78,{"$f":"Import!E15373","v":"Select"},{"$f":"Import!E15473","v":"Select"},{"$f":"Import!E15573","v":"Select"},{"$f":"Import!E15673","v":"Select"},{"$f":"Import!E15773","v":0},{"$f":"Import!E15873","v":0},{"$f":"Import!E15973","v":0},{"$f":"Import!E16073","v":0},{"$f":"Import!E16173","v":0}]
[79,{"$f":"Import!E15374","v":"Select"},{"$f":"Import!E15474","v":"Select"},{"$f":"Import!E15574","v":"Select"},{"$f":"Import!E15674","v":"Select"},{"$f":"Import!E15774","v":0},{"$f":"Import!E15874","v":0},{"$f":"Import!E15974","v":0},{"$f":"Import!E16074","v":0},{"$f":"Import!E16174","v":0}]
[80,{"$f":"Import!E15375","v":"Select"},{"$f":"Import!E15475","v":"Select"},{"$f":"Import!E15575","v":"Select"},{"$f":"Import!E15675","v":"Select"},{"$f":"Import!E15775","v":0},{"$f":"Import!E15875","v":0},{"$f":"Import!E15975","v":0},{"$f":"Import!E16075","v":0},{"$f":"Import!E16175","v":0}]
[81,{"$f":"Import!E15376","v":"Select"},{"$f":"Import!E15476","v":"Select"},{"$f":"Import!E15576","v":"Select"},{"$f":"Import!E15676","v":"Select"},{"$f":"Import!E15776","v":0},{"$f":"Import!E15876","v":0},{"$f":"Import!E15976","v":0},{"$f":"Import!E16076","v":0},{"$f":"Import!E16176","v":0}]
[82,{"$f":"Import!E15377","v":"Select"},{"$f":"Import!E15477","v":"Select"},{"$f":"Import!E15577","v":"Select"},{"$f":"Import!E15677","v":"Select"},{"$f":"Import!E15777","v":0},{"$f":"Import!E15877","v":0},{"$f":"Import!E15977","v":0},{"$f":"Import!E16077","v":0},{"$f":"Import!E16177","v":0}]
[83,{"$f":"Import!E15378","v":"Select"},{"$f":"Import!E15478","v":"Select"},{"$f":"Import!E15578","v":"Select"},{"$f":"Import!E15678","v":"Select"},{"$f":"Import!E15778","v":0},{"$f":"Import!E15878","v":0},{"$f":"Import!E15978","v":0},{"$f":"Import!E16078","v":0},{"$f":"Import!E16178","v":0}]
[84,{"$f":"Import!E15379","v":"Select"},{"$f":"Import!E15479","v":"Select"},{"$f":"Import!E15579","v":"Select"},{"$f":"Import!E15679","v":"Select"},{"$f":"Import!E15779","v":0},{"$f":"Import!E15879","v":0},{"$f":"Import!E15979","v":0},{"$f":"Import!E16079","v":0},{"$f":"Import!E16179","v":0}]
[85,{"$f":"Import!E15380","v":"Select"},{"$f":"Import!E15480","v":"Select"},{"$f":"Import!E15580","v":"Select"},{"$f":"Import!E15680","v":"Select"},{"$f":"Import!E15780","v":0},{"$f":"Import!E15880","v":0},{"$f":"Import!E15980","v":0},{"$f":"Import!E16080","v":0},{"$f":"Import!E16180","v":0}]
[86,{"$f":"Import!E15381","v":"Select"},{"$f":"Import!E15481","v":"Select"},{"$f":"Import!E15581","v":"Select"},{"$f":"Import!E15681","v":"Select"},{"$f":"Import!E15781","v":0},{"$f":"Import!E15881","v":0},{"$f":"Import!E15981","v":0},{"$f":"Import!E16081","v":0},{"$f":"Import!E16181","v":0}]
[87,{"$f":"Import!E15382","v":"Select"},{"$f":"Import!E15482","v":"Select"},{"$f":"Import!E15582","v":"Select"},{"$f":"Import!E15682","v":"Select"},{"$f":"Import!E15782","v":0},{"$f":"Import!E15882","v":0},{"$f":"Import!E15982","v":0},{"$f":"Import!E16082","v":0},{"$f":"Import!E16182","v":0}]
[88,{"$f":"Import!E15383","v":"Select"},{"$f":"Import!E15483","v":"Select"},{"$f":"Import!E15583","v":"Select"},{"$f":"Import!E15683","v":"Select"},{"$f":"Import!E15783","v":0},{"$f":"Import!E15883","v":0},{"$f":"Import!E15983","v":0},{"$f":"Import!E16083","v":0},{"$f":"Import!E16183","v":0}]
[89,{"$f":"Import!E15384","v":"Select"},{"$f":"Import!E15484","v":"Select"},{"$f":"Import!E15584","v":"Select"},{"$f":"Import!E15684","v":"Select"},{"$f":"Import!E15784","v":0},{"$f":"Import!E15884","v":0},{"$f":"Import!E15984","v":0},{"$f":"Import!E16084","v":0},{"$f":"Import!E16184","v":0}]
[90,{"$f":"Import!E15385","v":"Select"},{"$f":"Import!E15485","v":"Select"},{"$f":"Import!E15585","v":"Select"},{"$f":"Import!E15685","v":"Select"},{"$f":"Import!E15785","v":0},{"$f":"Import!E15885","v":0},{"$f":"Import!E15985","v":0},{"$f":"Import!E16085","v":0},{"$f":"Import!E16185","v":0}]
[91,{"$f":"Import!E15386","v":"Select"},{"$f":"Import!E15486","v":"Select"},{"$f":"Import!E15586","v":"Select"},{"$f":"Import!E15686","v":"Select"},{"$f":"Import!E15786","v":0},{"$f":"Import!E15886","v":0},{"$f":"Import!E15986","v":0},{"$f":"Import!E16086","v":0},{"$f":"Import!E16186","v":0}]
[92,{"$f":"Import!E15387","v":"Select"},{"$f":"Import!E15487","v":"Select"},{"$f":"Import!E15587","v":"Select"},{"$f":"Import!E15687","v":"Select"},{"$f":"Import!E15787","v":0},{"$f":"Import!E15887","v":0},{"$f":"Import!E15987","v":0},{"$f":"Import!E16087","v":0},{"$f":"Import!E16187","v":0}]
[93,{"$f":"Import!E15388","v":"Select"},{"$f":"Import!E15488","v":"Select"},{"$f":"Import!E15588","v":"Select"},{"$f":"Import!E15688","v":"Select"},{"$f":"Import!E15788","v":0},{"$f":"Import!E15888","v":0},{"$f":"Import!E15988","v":0},{"$f":"Import!E16088","v":0},{"$f":"Import!E16188","v":0}]
[94,{"$f":"Import!E15389","v":"Select"},{"$f":"Import!E15489","v":"Select"},{"$f":"Import!E15589","v":"Select"},{"$f":"Import!E15689","v":"Select"},{"$f":"Import!E15789","v":0},{"$f":"Import!E15889","v":0},{"$f":"Import!E15989","v":0},{"$f":"Import!E16089","v":0},{"$f":"Import!E16189","v":0}]
[95,{"$f":"Import!E15390","v":"Select"},{"$f":"Import!E15490","v":"Select"},{"$f":"Import!E15590","v":"Select"},{"$f":"Import!E15690","v":"Select"},{"$f":"Import!E15790","v":0},{"$f":"Import!E15890","v":0},{"$f":"Import!E15990","v":0},{"$f":"Import!E16090","v":0},{"$f":"Import!E16190","v":0}]
[96,{"$f":"Import!E15391","v":"Select"},{"$f":"Import!E15491","v":"Select"},{"$f":"Import!E15591","v":"Select"},{"$f":"Import!E15691","v":"Select"},{"$f":"Import!E15791","v":0},{"$f":"Import!E15891","v":0},{"$f":"Import!E15991","v":0},{"$f":"Import!E16091","v":0},{"$f":"Import!E16191","v":0}]
[97,{"$f":"Import!E15392","v":"Select"},{"$f":"Import!E15492","v":"Select"},{"$f":"Import!E15592","v":"Select"},{"$f":"Import!E15692","v":"Select"},{"$f":"Import!E15792","v":0},{"$f":"Import!E15892","v":0},{"$f":"Import!E15992","v":0},{"$f":"Import!E16092","v":0},{"$f":"Import!E16192","v":0}]
[98,{"$f":"Import!E15393","v":"Select"},{"$f":"Import!E15493","v":"Select"},{"$f":"Import!E15593","v":"Select"},{"$f":"Import!E15693","v":"Select"},{"$f":"Import!E15793","v":0},{"$f":"Import!E15893","v":0},{"$f":"Import!E15993","v":0},{"$f":"Import!E16093","v":0},{"$f":"Import!E16193","v":0}]
[99,{"$f":"Import!E15394","v":"Select"},{"$f":"Import!E15494","v":"Select"},{"$f":"Import!E15594","v":"Select"},{"$f":"Import!E15694","v":"Select"},{"$f":"Import!E15794","v":0},{"$f":"Import!E15894","v":0},{"$f":"Import!E15994","v":0},{"$f":"Import!E16094","v":0},{"$f":"Import!E16194","v":0}]
[100,{"$f":"Import!E15395","v":"Select"},{"$f":"Import!E15495","v":"Select"},{"$f":"Import!E15595","v":"Select"},{"$f":"Import!E15695","v":"Select"},{"$f":"Import!E15795","v":0},{"$f":"Import!E15895","v":0},{"$f":"Import!E15995","v":0},{"$f":"Import!E16095","v":0},{"$f":"Import!E16195","v":0}]
[]
[null,"Total Other Alternative Investments",null,null,null,{"$f":"SUM(F1453:F1552)","v":0},{"$f":"SUM(G1453:G1552)","v":0},{"$f":"IFERROR(SUMPRODUCT(H1453:H1552,$G1453:$G1552)/SUM($G1453:$G1552),0)","v":0},{"$f":"IFERROR(SUMPRODUCT(I1453:I1552,$G1453:$G1552)/SUM($G1453:$G1552),0)","v":0}]
[]
[null,"(I) DERIVATIVES"]
[]
[null,null,"Enter # of Derivative Types",{"$f":"Import!E16196","v":0}]
[null,"Derivative Type","Underlying","Currency","Trading Category","Purpose","Position","Confirm line contains only derivatives with:",{"$f":"YEAR($C$3)&\" \nMarket Value\"","v":"2023 \nMarket Value"},"Gross Notional Value","Net Notional Value","Exposure (Dollar Delta, DV01, CS01","Comments"]
[1,{"$f":"Import!E16197","v":"Select"},{"$f":"Import!E16397","v":"Select"},{"$f":"Import!E16597","v":"Select"},{"$f":"Import!E16797","v":"Select"},{"$f":"Import!E16997","v":"Select"},{"$f":"Import!E17197","v":"Select"},{"$f":"Import!E17397","v":"Select"},{"$f":"Import!E17597","v":0},{"$f":"Import!E17797","v":0},{"$f":"Import!E17997","v":0},{"$f":"Import!E18197","v":0},{"$f":"Import!E18397","v":0}]
[{"$f":"A1560+1","v":2},{"$f":"Import!E16198","v":"Select"},{"$f":"Import!E16398","v":"Select"},{"$f":"Import!E16598","v":"Select"},{"$f":"Import!E16798","v":"Select"},{"$f":"Import!E16998","v":"Select"},{"$f":"Import!E17198","v":"Select"},{"$f":"Import!E17398","v":"Select"},{"$f":"Import!E17598","v":0},{"$f":"Import!E17798","v":0},{"$f":"Import!E17998","v":0},{"$f":"Import!E18198","v":0},{"$f":"Import!E18398","v":0}]
[{"$f":"A1561+1","v":3},{"$f":"Import!E16199","v":"Select"},{"$f":"Import!E16399","v":"Select"},{"$f":"Import!E16599","v":"Select"},{"$f":"Import!E16799","v":"Select"},{"$f":"Import!E16999","v":"Select"},{"$f":"Import!E17199","v":"Select"},{"$f":"Import!E17399","v":"Select"},{"$f":"Import!E17599","v":0},{"$f":"Import!E17799","v":0},{"$f":"Import!E17999","v":0},{"$f":"Import!E18199","v":0},{"$f":"Import!E18399","v":0}]
[4,{"$f":"Import!E16200","v":"Select"},{"$f":"Import!E16400","v":"Select"},{"$f":"Import!E16600","v":"Select"},{"$f":"Import!E16800","v":"Select"},{"$f":"Import!E17000","v":"Select"},{"$f":"Import!E17200","v":"Select"},{"$f":"Import!E17400","v":"Select"},{"$f":"Import!E17600","v":0},{"$f":"Import!E17800","v":0},{"$f":"Import!E18000","v":0},{"$f":"Import!E18200","v":0},{"$f":"Import!E18400","v":0}]
[5,{"$f":"Import!E16201","v":"Select"},{"$f":"Import!E16401","v":"Select"},{"$f":"Import!E16601","v":"Select"},{"$f":"Import!E16801","v":"Select"},{"$f":"Import!E17001","v":"Select"},{"$f":"Import!E17201","v":"Select"},{"$f":"Import!E17401","v":"Select"},{"$f":"Import!E17601","v":0},{"$f":"Import!E17801","v":0},{"$f":"Import!E18001","v":0},{"$f":"Import!E18201","v":0},{"$f":"Import!E18401","v":0}]
[6,{"$f":"Import!E16202","v":"Select"},{"$f":"Import!E16402","v":"Select"},{"$f":"Import!E16602","v":"Select"},{"$f":"Import!E16802","v":"Select"},{"$f":"Import!E17002","v":"Select"},{"$f":"Import!E17202","v":"Select"},{"$f":"Import!E17402","v":"Select"},{"$f":"Import!E17602","v":0},{"$f":"Import!E17802","v":0},{"$f":"Import!E18002","v":0},{"$f":"Import!E18202","v":0},{"$f":"Import!E18402","v":0}]
[7,{"$f":"Import!E16203","v":"Select"},{"$f":"Import!E16403","v":"Select"},{"$f":"Import!E16603","v":"Select"},{"$f":"Import!E16803","v":"Select"},{"$f":"Import!E17003","v":"Select"},{"$f":"Import!E17203","v":"Select"},{"$f":"Import!E17403","v":"Select"},{"$f":"Import!E17603","v":0},{"$f":"Import!E17803","v":0},{"$f":"Import!E18003","v":0},{"$f":"Import!E18203","v":0},{"$f":"Import!E18403","v":0}]
[8,{"$f":"Import!E16204","v":"Select"},{"$f":"Import!E16404","v":"Select"},{"$f":"Import!E16604","v":"Select"},{"$f":"Import!E16804","v":"Select"},{"$f":"Import!E17004","v":"Select"},{"$f":"Import!E17204","v":"Select"},{"$f":"Import!E17404","v":"Select"},{"$f":"Import!E17604","v":0},{"$f":"Import!E17804","v":0},{"$f":"Import!E18004","v":0},{"$f":"Import!E18204","v":0},{"$f":"Import!E18404","v":0}]
[9,{"$f":"Import!E16205","v":"Select"},{"$f":"Import!E16405","v":"Select"},{"$f":"Import!E16605","v":"Select"},{"$f":"Import!E16805","v":"Select"},{"$f":"Import!E17005","v":"Select"},{"$f":"Import!E17205","v":"Select"},{"$f":"Import!E17405","v":"Select"},{"$f":"Import!E17605","v":0},{"$f":"Import!E17805","v":0},{"$f":"Import!E18005","v":0},{"$f":"Import!E18205","v":0},{"$f":"Import!E18405","v":0}]
[10,{"$f":"Import!E16206","v":"Select"},{"$f":"Import!E16406","v":"Select"},{"$f":"Import!E16606","v":"Select"},{"$f":"Import!E16806","v":"Select"},{"$f":"Import!E17006","v":"Select"},{"$f":"Import!E17206","v":"Select"},{"$f":"Import!E17406","v":"Select"},{"$f":"Import!E17606","v":0},{"$f":"Import!E17806","v":0},{"$f":"Import!E18006","v":0},{"$f":"Import!E18206","v":0},{"$f":"Import!E18406","v":0}]
[11,{"$f":"Import!E16207","v":"Select"},{"$f":"Import!E16407","v":"Select"},{"$f":"Import!E16607","v":"Select"},{"$f":"Import!E16807","v":"Select"},{"$f":"Import!E17007","v":"Select"},{"$f":"Import!E17207","v":"Select"},{"$f":"Import!E17407","v":"Select"},{"$f":"Import!E17607","v":0},{"$f":"Import!E17807","v":0},{"$f":"Import!E18007","v":0},{"$f":"Import!E18207","v":0},{"$f":"Import!E18407","v":0}]
[12,{"$f":"Import!E16208","v":"Select"},{"$f":"Import!E16408","v":"Select"},{"$f":"Import!E16608","v":"Select"},{"$f":"Import!E16808","v":"Select"},{"$f":"Import!E17008","v":"Select"},{"$f":"Import!E17208","v":"Select"},{"$f":"Import!E17408","v":"Select"},{"$f":"Import!E17608","v":0},{"$f":"Import!E17808","v":0},{"$f":"Import!E18008","v":0},{"$f":"Import!E18208","v":0},{"$f":"Import!E18408","v":0}]
[13,{"$f":"Import!E16209","v":"Select"},{"$f":"Import!E16409","v":"Select"},{"$f":"Import!E16609","v":"Select"},{"$f":"Import!E16809","v":"Select"},{"$f":"Import!E17009","v":"Select"},{"$f":"Import!E17209","v":"Select"},{"$f":"Import!E17409","v":"Select"},{"$f":"Import!E17609","v":0},{"$f":"Import!E17809","v":0},{"$f":"Import!E18009","v":0},{"$f":"Import!E18209","v":0},{"$f":"Import!E18409","v":0}]
[14,{"$f":"Import!E16210","v":"Select"},{"$f":"Import!E16410","v":"Select"},{"$f":"Import!E16610","v":"Select"},{"$f":"Import!E16810","v":"Select"},{"$f":"Import!E17010","v":"Select"},{"$f":"Import!E17210","v":"Select"},{"$f":"Import!E17410","v":"Select"},{"$f":"Import!E17610","v":0},{"$f":"Import!E17810","v":0},{"$f":"Import!E18010","v":0},{"$f":"Import!E18210","v":0},{"$f":"Import!E18410","v":0}]
[15,{"$f":"Import!E16211","v":"Select"},{"$f":"Import!E16411","v":"Select"},{"$f":"Import!E16611","v":"Select"},{"$f":"Import!E16811","v":"Select"},{"$f":"Import!E17011","v":"Select"},{"$f":"Import!E17211","v":"Select"},{"$f":"Import!E17411","v":"Select"},{"$f":"Import!E17611","v":0},{"$f":"Import!E17811","v":0},{"$f":"Import!E18011","v":0},{"$f":"Import!E18211","v":0},{"$f":"Import!E18411","v":0}]
[16,{"$f":"Import!E16212","v":"Select"},{"$f":"Import!E16412","v":"Select"},{"$f":"Import!E16612","v":"Select"},{"$f":"Import!E16812","v":"Select"},{"$f":"Import!E17012","v":"Select"},{"$f":"Import!E17212","v":"Select"},{"$f":"Import!E17412","v":"Select"},{"$f":"Import!E17612","v":0},{"$f":"Import!E17812","v":0},{"$f":"Import!E18012","v":0},{"$f":"Import!E18212","v":0},{"$f":"Import!E18412","v":0}]
[17,{"$f":"Import!E16213","v":"Select"},{"$f":"Import!E16413","v":"Select"},{"$f":"Import!E16613","v":"Select"},{"$f":"Import!E16813","v":"Select"},{"$f":"Import!E17013","v":"Select"},{"$f":"Import!E17213","v":"Select"},{"$f":"Import!E17413","v":"Select"},{"$f":"Import!E17613","v":0},{"$f":"Import!E17813","v":0},{"$f":"Import!E18013","v":0},{"$f":"Import!E18213","v":0},{"$f":"Import!E18413","v":0}]
[18,{"$f":"Import!E16214","v":"Select"},{"$f":"Import!E16414","v":"Select"},{"$f":"Import!E16614","v":"Select"},{"$f":"Import!E16814","v":"Select"},{"$f":"Import!E17014","v":"Select"},{"$f":"Import!E17214","v":"Select"},{"$f":"Import!E17414","v":"Select"},{"$f":"Import!E17614","v":0},{"$f":"Import!E17814","v":0},{"$f":"Import!E18014","v":0},{"$f":"Import!E18214","v":0},{"$f":"Import!E18414","v":0}]
[19,{"$f":"Import!E16215","v":"Select"},{"$f":"Import!E16415","v":"Select"},{"$f":"Import!E16615","v":"Select"},{"$f":"Import!E16815","v":"Select"},{"$f":"Import!E17015","v":"Select"},{"$f":"Import!E17215","v":"Select"},{"$f":"Import!E17415","v":"Select"},{"$f":"Import!E17615","v":0},{"$f":"Import!E17815","v":0},{"$f":"Import!E18015","v":0},{"$f":"Import!E18215","v":0},{"$f":"Import!E18415","v":0}]
[20,{"$f":"Import!E16216","v":"Select"},{"$f":"Import!E16416","v":"Select"},{"$f":"Import!E16616","v":"Select"},{"$f":"Import!E16816","v":"Select"},{"$f":"Import!E17016","v":"Select"},{"$f":"Import!E17216","v":"Select"},{"$f":"Import!E17416","v":"Select"},{"$f":"Import!E17616","v":0},{"$f":"Import!E17816","v":0},{"$f":"Import!E18016","v":0},{"$f":"Import!E18216","v":0},{"$f":"Import!E18416","v":0}]
[21,{"$f":"Import!E16217","v":"Select"},{"$f":"Import!E16417","v":"Select"},{"$f":"Import!E16617","v":"Select"},{"$f":"Import!E16817","v":"Select"},{"$f":"Import!E17017","v":"Select"},{"$f":"Import!E17217","v":"Select"},{"$f":"Import!E17417","v":"Select"},{"$f":"Import!E17617","v":0},{"$f":"Import!E17817","v":0},{"$f":"Import!E18017","v":0},{"$f":"Import!E18217","v":0},{"$f":"Import!E18417","v":0}]
[22,{"$f":"Import!E16218","v":"Select"},{"$f":"Import!E16418","v":"Select"},{"$f":"Import!E16618","v":"Select"},{"$f":"Import!E16818","v":"Select"},{"$f":"Import!E17018","v":"Select"},{"$f":"Import!E17218","v":"Select"},{"$f":"Import!E17418","v":"Select"},{"$f":"Import!E17618","v":0},{"$f":"Import!E17818","v":0},{"$f":"Import!E18018","v":0},{"$f":"Import!E18218","v":0},{"$f":"Import!E18418","v":0}]
[23,{"$f":"Import!E16219","v":"Select"},{"$f":"Import!E16419","v":"Select"},{"$f":"Import!E16619","v":"Select"},{"$f":"Import!E16819","v":"Select"},{"$f":"Import!E17019","v":"Select"},{"$f":"Import!E17219","v":"Select"},{"$f":"Import!E17419","v":"Select"},{"$f":"Import!E17619","v":0},{"$f":"Import!E17819","v":0},{"$f":"Import!E18019","v":0},{"$f":"Import!E18219","v":0},{"$f":"Import!E18419","v":0}]
[24,{"$f":"Import!E16220","v":"Select"},{"$f":"Import!E16420","v":"Select"},{"$f":"Import!E16620","v":"Select"},{"$f":"Import!E16820","v":"Select"},{"$f":"Import!E17020","v":"Select"},{"$f":"Import!E17220","v":"Select"},{"$f":"Import!E17420","v":"Select"},{"$f":"Import!E17620","v":0},{"$f":"Import!E17820","v":0},{"$f":"Import!E18020","v":0},{"$f":"Import!E18220","v":0},{"$f":"Import!E18420","v":0}]
[25,{"$f":"Import!E16221","v":"Select"},{"$f":"Import!E16421","v":"Select"},{"$f":"Import!E16621","v":"Select"},{"$f":"Import!E16821","v":"Select"},{"$f":"Import!E17021","v":"Select"},{"$f":"Import!E17221","v":"Select"},{"$f":"Import!E17421","v":"Select"},{"$f":"Import!E17621","v":0},{"$f":"Import!E17821","v":0},{"$f":"Import!E18021","v":0},{"$f":"Import!E18221","v":0},{"$f":"Import!E18421","v":0}]
[26,{"$f":"Import!E16222","v":"Select"},{"$f":"Import!E16422","v":"Select"},{"$f":"Import!E16622","v":"Select"},{"$f":"Import!E16822","v":"Select"},{"$f":"Import!E17022","v":"Select"},{"$f":"Import!E17222","v":"Select"},{"$f":"Import!E17422","v":"Select"},{"$f":"Import!E17622","v":0},{"$f":"Import!E17822","v":0},{"$f":"Import!E18022","v":0},{"$f":"Import!E18222","v":0},{"$f":"Import!E18422","v":0}]
[27,{"$f":"Import!E16223","v":"Select"},{"$f":"Import!E16423","v":"Select"},{"$f":"Import!E16623","v":"Select"},{"$f":"Import!E16823","v":"Select"},{"$f":"Import!E17023","v":"Select"},{"$f":"Import!E17223","v":"Select"},{"$f":"Import!E17423","v":"Select"},{"$f":"Import!E17623","v":0},{"$f":"Import!E17823","v":0},{"$f":"Import!E18023","v":0},{"$f":"Import!E18223","v":0},{"$f":"Import!E18423","v":0}]
[28,{"$f":"Import!E16224","v":"Select"},{"$f":"Import!E16424","v":"Select"},{"$f":"Import!E16624","v":"Select"},{"$f":"Import!E16824","v":"Select"},{"$f":"Import!E17024","v":"Select"},{"$f":"Import!E17224","v":"Select"},{"$f":"Import!E17424","v":"Select"},{"$f":"Import!E17624","v":0},{"$f":"Import!E17824","v":0},{"$f":"Import!E18024","v":0},{"$f":"Import!E18224","v":0},{"$f":"Import!E18424","v":0}]
[29,{"$f":"Import!E16225","v":"Select"},{"$f":"Import!E16425","v":"Select"},{"$f":"Import!E16625","v":"Select"},{"$f":"Import!E16825","v":"Select"},{"$f":"Import!E17025","v":"Select"},{"$f":"Import!E17225","v":"Select"},{"$f":"Import!E17425","v":"Select"},{"$f":"Import!E17625","v":0},{"$f":"Import!E17825","v":0},{"$f":"Import!E18025","v":0},{"$f":"Import!E18225","v":0},{"$f":"Import!E18425","v":0}]
[30,{"$f":"Import!E16226","v":"Select"},{"$f":"Import!E16426","v":"Select"},{"$f":"Import!E16626","v":"Select"},{"$f":"Import!E16826","v":"Select"},{"$f":"Import!E17026","v":"Select"},{"$f":"Import!E17226","v":"Select"},{"$f":"Import!E17426","v":"Select"},{"$f":"Import!E17626","v":0},{"$f":"Import!E17826","v":0},{"$f":"Import!E18026","v":0},{"$f":"Import!E18226","v":0},{"$f":"Import!E18426","v":0}]
[31,{"$f":"Import!E16227","v":"Select"},{"$f":"Import!E16427","v":"Select"},{"$f":"Import!E16627","v":"Select"},{"$f":"Import!E16827","v":"Select"},{"$f":"Import!E17027","v":"Select"},{"$f":"Import!E17227","v":"Select"},{"$f":"Import!E17427","v":"Select"},{"$f":"Import!E17627","v":0},{"$f":"Import!E17827","v":0},{"$f":"Import!E18027","v":0},{"$f":"Import!E18227","v":0},{"$f":"Import!E18427","v":0}]
[32,{"$f":"Import!E16228","v":"Select"},{"$f":"Import!E16428","v":"Select"},{"$f":"Import!E16628","v":"Select"},{"$f":"Import!E16828","v":"Select"},{"$f":"Import!E17028","v":"Select"},{"$f":"Import!E17228","v":"Select"},{"$f":"Import!E17428","v":"Select"},{"$f":"Import!E17628","v":0},{"$f":"Import!E17828","v":0},{"$f":"Import!E18028","v":0},{"$f":"Import!E18228","v":0},{"$f":"Import!E18428","v":0}]
[33,{"$f":"Import!E16229","v":"Select"},{"$f":"Import!E16429","v":"Select"},{"$f":"Import!E16629","v":"Select"},{"$f":"Import!E16829","v":"Select"},{"$f":"Import!E17029","v":"Select"},{"$f":"Import!E17229","v":"Select"},{"$f":"Import!E17429","v":"Select"},{"$f":"Import!E17629","v":0},{"$f":"Import!E17829","v":0},{"$f":"Import!E18029","v":0},{"$f":"Import!E18229","v":0},{"$f":"Import!E18429","v":0}]
[34,{"$f":"Import!E16230","v":"Select"},{"$f":"Import!E16430","v":"Select"},{"$f":"Import!E16630","v":"Select"},{"$f":"Import!E16830","v":"Select"},{"$f":"Import!E17030","v":"Select"},{"$f":"Import!E17230","v":"Select"},{"$f":"Import!E17430","v":"Select"},{"$f":"Import!E17630","v":0},{"$f":"Import!E17830","v":0},{"$f":"Import!E18030","v":0},{"$f":"Import!E18230","v":0},{"$f":"Import!E18430","v":0}]
[35,{"$f":"Import!E16231","v":"Select"},{"$f":"Import!E16431","v":"Select"},{"$f":"Import!E16631","v":"Select"},{"$f":"Import!E16831","v":"Select"},{"$f":"Import!E17031","v":"Select"},{"$f":"Import!E17231","v":"Select"},{"$f":"Import!E17431","v":"Select"},{"$f":"Import!E17631","v":0},{"$f":"Import!E17831","v":0},{"$f":"Import!E18031","v":0},{"$f":"Import!E18231","v":0},{"$f":"Import!E18431","v":0}]
[36,{"$f":"Import!E16232","v":"Select"},{"$f":"Import!E16432","v":"Select"},{"$f":"Import!E16632","v":"Select"},{"$f":"Import!E16832","v":"Select"},{"$f":"Import!E17032","v":"Select"},{"$f":"Import!E17232","v":"Select"},{"$f":"Import!E17432","v":"Select"},{"$f":"Import!E17632","v":0},{"$f":"Import!E17832","v":0},{"$f":"Import!E18032","v":0},{"$f":"Import!E18232","v":0},{"$f":"Import!E18432","v":0}]
[37,{"$f":"Import!E16233","v":"Select"},{"$f":"Import!E16433","v":"Select"},{"$f":"Import!E16633","v":"Select"},{"$f":"Import!E16833","v":"Select"},{"$f":"Import!E17033","v":"Select"},{"$f":"Import!E17233","v":"Select"},{"$f":"Import!E17433","v":"Select"},{"$f":"Import!E17633","v":0},{"$f":"Import!E17833","v":0},{"$f":"Import!E18033","v":0},{"$f":"Import!E18233","v":0},{"$f":"Import!E18433","v":0}]
[38,{"$f":"Import!E16234","v":"Select"},{"$f":"Import!E16434","v":"Select"},{"$f":"Import!E16634","v":"Select"},{"$f":"Import!E16834","v":"Select"},{"$f":"Import!E17034","v":"Select"},{"$f":"Import!E17234","v":"Select"},{"$f":"Import!E17434","v":"Select"},{"$f":"Import!E17634","v":0},{"$f":"Import!E17834","v":0},{"$f":"Import!E18034","v":0},{"$f":"Import!E18234","v":0},{"$f":"Import!E18434","v":0}]
[39,{"$f":"Import!E16235","v":"Select"},{"$f":"Import!E16435","v":"Select"},{"$f":"Import!E16635","v":"Select"},{"$f":"Import!E16835","v":"Select"},{"$f":"Import!E17035","v":"Select"},{"$f":"Import!E17235","v":"Select"},{"$f":"Import!E17435","v":"Select"},{"$f":"Import!E17635","v":0},{"$f":"Import!E17835","v":0},{"$f":"Import!E18035","v":0},{"$f":"Import!E18235","v":0},{"$f":"Import!E18435","v":0}]
[40,{"$f":"Import!E16236","v":"Select"},{"$f":"Import!E16436","v":"Select"},{"$f":"Import!E16636","v":"Select"},{"$f":"Import!E16836","v":"Select"},{"$f":"Import!E17036","v":"Select"},{"$f":"Import!E17236","v":"Select"},{"$f":"Import!E17436","v":"Select"},{"$f":"Import!E17636","v":0},{"$f":"Import!E17836","v":0},{"$f":"Import!E18036","v":0},{"$f":"Import!E18236","v":0},{"$f":"Import!E18436","v":0}]
[41,{"$f":"Import!E16237","v":"Select"},{"$f":"Import!E16437","v":"Select"},{"$f":"Import!E16637","v":"Select"},{"$f":"Import!E16837","v":"Select"},{"$f":"Import!E17037","v":"Select"},{"$f":"Import!E17237","v":"Select"},{"$f":"Import!E17437","v":"Select"},{"$f":"Import!E17637","v":0},{"$f":"Import!E17837","v":0},{"$f":"Import!E18037","v":0},{"$f":"Import!E18237","v":0},{"$f":"Import!E18437","v":0}]
[42,{"$f":"Import!E16238","v":"Select"},{"$f":"Import!E16438","v":"Select"},{"$f":"Import!E16638","v":"Select"},{"$f":"Import!E16838","v":"Select"},{"$f":"Import!E17038","v":"Select"},{"$f":"Import!E17238","v":"Select"},{"$f":"Import!E17438","v":"Select"},{"$f":"Import!E17638","v":0},{"$f":"Import!E17838","v":0},{"$f":"Import!E18038","v":0},{"$f":"Import!E18238","v":0},{"$f":"Import!E18438","v":0}]
[43,{"$f":"Import!E16239","v":"Select"},{"$f":"Import!E16439","v":"Select"},{"$f":"Import!E16639","v":"Select"},{"$f":"Import!E16839","v":"Select"},{"$f":"Import!E17039","v":"Select"},{"$f":"Import!E17239","v":"Select"},{"$f":"Import!E17439","v":"Select"},{"$f":"Import!E17639","v":0},{"$f":"Import!E17839","v":0},{"$f":"Import!E18039","v":0},{"$f":"Import!E18239","v":0},{"$f":"Import!E18439","v":0}]
[44,{"$f":"Import!E16240","v":"Select"},{"$f":"Import!E16440","v":"Select"},{"$f":"Import!E16640","v":"Select"},{"$f":"Import!E16840","v":"Select"},{"$f":"Import!E17040","v":"Select"},{"$f":"Import!E17240","v":"Select"},{"$f":"Import!E17440","v":"Select"},{"$f":"Import!E17640","v":0},{"$f":"Import!E17840","v":0},{"$f":"Import!E18040","v":0},{"$f":"Import!E18240","v":0},{"$f":"Import!E18440","v":0}]
[45,{"$f":"Import!E16241","v":"Select"},{"$f":"Import!E16441","v":"Select"},{"$f":"Import!E16641","v":"Select"},{"$f":"Import!E16841","v":"Select"},{"$f":"Import!E17041","v":"Select"},{"$f":"Import!E17241","v":"Select"},{"$f":"Import!E17441","v":"Select"},{"$f":"Import!E17641","v":0},{"$f":"Import!E17841","v":0},{"$f":"Import!E18041","v":0},{"$f":"Import!E18241","v":0},{"$f":"Import!E18441","v":0}]
[46,{"$f":"Import!E16242","v":"Select"},{"$f":"Import!E16442","v":"Select"},{"$f":"Import!E16642","v":"Select"},{"$f":"Import!E16842","v":"Select"},{"$f":"Import!E17042","v":"Select"},{"$f":"Import!E17242","v":"Select"},{"$f":"Import!E17442","v":"Select"},{"$f":"Import!E17642","v":0},{"$f":"Import!E17842","v":0},{"$f":"Import!E18042","v":0},{"$f":"Import!E18242","v":0},{"$f":"Import!E18442","v":0}]
[47,{"$f":"Import!E16243","v":"Select"},{"$f":"Import!E16443","v":"Select"},{"$f":"Import!E16643","v":"Select"},{"$f":"Import!E16843","v":"Select"},{"$f":"Import!E17043","v":"Select"},{"$f":"Import!E17243","v":"Select"},{"$f":"Import!E17443","v":"Select"},{"$f":"Import!E17643","v":0},{"$f":"Import!E17843","v":0},{"$f":"Import!E18043","v":0},{"$f":"Import!E18243","v":0},{"$f":"Import!E18443","v":0}]
[48,{"$f":"Import!E16244","v":"Select"},{"$f":"Import!E16444","v":"Select"},{"$f":"Import!E16644","v":"Select"},{"$f":"Import!E16844","v":"Select"},{"$f":"Import!E17044","v":"Select"},{"$f":"Import!E17244","v":"Select"},{"$f":"Import!E17444","v":"Select"},{"$f":"Import!E17644","v":0},{"$f":"Import!E17844","v":0},{"$f":"Import!E18044","v":0},{"$f":"Import!E18244","v":0},{"$f":"Import!E18444","v":0}]
[49,{"$f":"Import!E16245","v":"Select"},{"$f":"Import!E16445","v":"Select"},{"$f":"Import!E16645","v":"Select"},{"$f":"Import!E16845","v":"Select"},{"$f":"Import!E17045","v":"Select"},{"$f":"Import!E17245","v":"Select"},{"$f":"Import!E17445","v":"Select"},{"$f":"Import!E17645","v":0},{"$f":"Import!E17845","v":0},{"$f":"Import!E18045","v":0},{"$f":"Import!E18245","v":0},{"$f":"Import!E18445","v":0}]
[50,{"$f":"Import!E16246","v":"Select"},{"$f":"Import!E16446","v":"Select"},{"$f":"Import!E16646","v":"Select"},{"$f":"Import!E16846","v":"Select"},{"$f":"Import!E17046","v":"Select"},{"$f":"Import!E17246","v":"Select"},{"$f":"Import!E17446","v":"Select"},{"$f":"Import!E17646","v":0},{"$f":"Import!E17846","v":0},{"$f":"Import!E18046","v":0},{"$f":"Import!E18246","v":0},{"$f":"Import!E18446","v":0}]
[51,{"$f":"Import!E16247","v":"Select"},{"$f":"Import!E16447","v":"Select"},{"$f":"Import!E16647","v":"Select"},{"$f":"Import!E16847","v":"Select"},{"$f":"Import!E17047","v":"Select"},{"$f":"Import!E17247","v":"Select"},{"$f":"Import!E17447","v":"Select"},{"$f":"Import!E17647","v":0},{"$f":"Import!E17847","v":0},{"$f":"Import!E18047","v":0},{"$f":"Import!E18247","v":0},{"$f":"Import!E18447","v":0}]
[52,{"$f":"Import!E16248","v":"Select"},{"$f":"Import!E16448","v":"Select"},{"$f":"Import!E16648","v":"Select"},{"$f":"Import!E16848","v":"Select"},{"$f":"Import!E17048","v":"Select"},{"$f":"Import!E17248","v":"Select"},{"$f":"Import!E17448","v":"Select"},{"$f":"Import!E17648","v":0},{"$f":"Import!E17848","v":0},{"$f":"Import!E18048","v":0},{"$f":"Import!E18248","v":0},{"$f":"Import!E18448","v":0}]
[53,{"$f":"Import!E16249","v":"Select"},{"$f":"Import!E16449","v":"Select"},{"$f":"Import!E16649","v":"Select"},{"$f":"Import!E16849","v":"Select"},{"$f":"Import!E17049","v":"Select"},{"$f":"Import!E17249","v":"Select"},{"$f":"Import!E17449","v":"Select"},{"$f":"Import!E17649","v":0},{"$f":"Import!E17849","v":0},{"$f":"Import!E18049","v":0},{"$f":"Import!E18249","v":0},{"$f":"Import!E18449","v":0}]
[54,{"$f":"Import!E16250","v":"Select"},{"$f":"Import!E16450","v":"Select"},{"$f":"Import!E16650","v":"Select"},{"$f":"Import!E16850","v":"Select"},{"$f":"Import!E17050","v":"Select"},{"$f":"Import!E17250","v":"Select"},{"$f":"Import!E17450","v":"Select"},{"$f":"Import!E17650","v":0},{"$f":"Import!E17850","v":0},{"$f":"Import!E18050","v":0},{"$f":"Import!E18250","v":0},{"$f":"Import!E18450","v":0}]
[55,{"$f":"Import!E16251","v":"Select"},{"$f":"Import!E16451","v":"Select"},{"$f":"Import!E16651","v":"Select"},{"$f":"Import!E16851","v":"Select"},{"$f":"Import!E17051","v":"Select"},{"$f":"Import!E17251","v":"Select"},{"$f":"Import!E17451","v":"Select"},{"$f":"Import!E17651","v":0},{"$f":"Import!E17851","v":0},{"$f":"Import!E18051","v":0},{"$f":"Import!E18251","v":0},{"$f":"Import!E18451","v":0}]
[56,{"$f":"Import!E16252","v":"Select"},{"$f":"Import!E16452","v":"Select"},{"$f":"Import!E16652","v":"Select"},{"$f":"Import!E16852","v":"Select"},{"$f":"Import!E17052","v":"Select"},{"$f":"Import!E17252","v":"Select"},{"$f":"Import!E17452","v":"Select"},{"$f":"Import!E17652","v":0},{"$f":"Import!E17852","v":0},{"$f":"Import!E18052","v":0},{"$f":"Import!E18252","v":0},{"$f":"Import!E18452","v":0}]
[57,{"$f":"Import!E16253","v":"Select"},{"$f":"Import!E16453","v":"Select"},{"$f":"Import!E16653","v":"Select"},{"$f":"Import!E16853","v":"Select"},{"$f":"Import!E17053","v":"Select"},{"$f":"Import!E17253","v":"Select"},{"$f":"Import!E17453","v":"Select"},{"$f":"Import!E17653","v":0},{"$f":"Import!E17853","v":0},{"$f":"Import!E18053","v":0},{"$f":"Import!E18253","v":0},{"$f":"Import!E18453","v":0}]
[58,{"$f":"Import!E16254","v":"Select"},{"$f":"Import!E16454","v":"Select"},{"$f":"Import!E16654","v":"Select"},{"$f":"Import!E16854","v":"Select"},{"$f":"Import!E17054","v":"Select"},{"$f":"Import!E17254","v":"Select"},{"$f":"Import!E17454","v":"Select"},{"$f":"Import!E17654","v":0},{"$f":"Import!E17854","v":0},{"$f":"Import!E18054","v":0},{"$f":"Import!E18254","v":0},{"$f":"Import!E18454","v":0}]
[59,{"$f":"Import!E16255","v":"Select"},{"$f":"Import!E16455","v":"Select"},{"$f":"Import!E16655","v":"Select"},{"$f":"Import!E16855","v":"Select"},{"$f":"Import!E17055","v":"Select"},{"$f":"Import!E17255","v":"Select"},{"$f":"Import!E17455","v":"Select"},{"$f":"Import!E17655","v":0},{"$f":"Import!E17855","v":0},{"$f":"Import!E18055","v":0},{"$f":"Import!E18255","v":0},{"$f":"Import!E18455","v":0}]
[60,{"$f":"Import!E16256","v":"Select"},{"$f":"Import!E16456","v":"Select"},{"$f":"Import!E16656","v":"Select"},{"$f":"Import!E16856","v":"Select"},{"$f":"Import!E17056","v":"Select"},{"$f":"Import!E17256","v":"Select"},{"$f":"Import!E17456","v":"Select"},{"$f":"Import!E17656","v":0},{"$f":"Import!E17856","v":0},{"$f":"Import!E18056","v":0},{"$f":"Import!E18256","v":0},{"$f":"Import!E18456","v":0}]
[61,{"$f":"Import!E16257","v":"Select"},{"$f":"Import!E16457","v":"Select"},{"$f":"Import!E16657","v":"Select"},{"$f":"Import!E16857","v":"Select"},{"$f":"Import!E17057","v":"Select"},{"$f":"Import!E17257","v":"Select"},{"$f":"Import!E17457","v":"Select"},{"$f":"Import!E17657","v":0},{"$f":"Import!E17857","v":0},{"$f":"Import!E18057","v":0},{"$f":"Import!E18257","v":0},{"$f":"Import!E18457","v":0}]
[62,{"$f":"Import!E16258","v":"Select"},{"$f":"Import!E16458","v":"Select"},{"$f":"Import!E16658","v":"Select"},{"$f":"Import!E16858","v":"Select"},{"$f":"Import!E17058","v":"Select"},{"$f":"Import!E17258","v":"Select"},{"$f":"Import!E17458","v":"Select"},{"$f":"Import!E17658","v":0},{"$f":"Import!E17858","v":0},{"$f":"Import!E18058","v":0},{"$f":"Import!E18258","v":0},{"$f":"Import!E18458","v":0}]
[63,{"$f":"Import!E16259","v":"Select"},{"$f":"Import!E16459","v":"Select"},{"$f":"Import!E16659","v":"Select"},{"$f":"Import!E16859","v":"Select"},{"$f":"Import!E17059","v":"Select"},{"$f":"Import!E17259","v":"Select"},{"$f":"Import!E17459","v":"Select"},{"$f":"Import!E17659","v":0},{"$f":"Import!E17859","v":0},{"$f":"Import!E18059","v":0},{"$f":"Import!E18259","v":0},{"$f":"Import!E18459","v":0}]
[64,{"$f":"Import!E16260","v":"Select"},{"$f":"Import!E16460","v":"Select"},{"$f":"Import!E16660","v":"Select"},{"$f":"Import!E16860","v":"Select"},{"$f":"Import!E17060","v":"Select"},{"$f":"Import!E17260","v":"Select"},{"$f":"Import!E17460","v":"Select"},{"$f":"Import!E17660","v":0},{"$f":"Import!E17860","v":0},{"$f":"Import!E18060","v":0},{"$f":"Import!E18260","v":0},{"$f":"Import!E18460","v":0}]
[65,{"$f":"Import!E16261","v":"Select"},{"$f":"Import!E16461","v":"Select"},{"$f":"Import!E16661","v":"Select"},{"$f":"Import!E16861","v":"Select"},{"$f":"Import!E17061","v":"Select"},{"$f":"Import!E17261","v":"Select"},{"$f":"Import!E17461","v":"Select"},{"$f":"Import!E17661","v":0},{"$f":"Import!E17861","v":0},{"$f":"Import!E18061","v":0},{"$f":"Import!E18261","v":0},{"$f":"Import!E18461","v":0}]
[66,{"$f":"Import!E16262","v":"Select"},{"$f":"Import!E16462","v":"Select"},{"$f":"Import!E16662","v":"Select"},{"$f":"Import!E16862","v":"Select"},{"$f":"Import!E17062","v":"Select"},{"$f":"Import!E17262","v":"Select"},{"$f":"Import!E17462","v":"Select"},{"$f":"Import!E17662","v":0},{"$f":"Import!E17862","v":0},{"$f":"Import!E18062","v":0},{"$f":"Import!E18262","v":0},{"$f":"Import!E18462","v":0}]
[{"$f":"A1625+1","v":67},{"$f":"Import!E16263","v":"Select"},{"$f":"Import!E16463","v":"Select"},{"$f":"Import!E16663","v":"Select"},{"$f":"Import!E16863","v":"Select"},{"$f":"Import!E17063","v":"Select"},{"$f":"Import!E17263","v":"Select"},{"$f":"Import!E17463","v":"Select"},{"$f":"Import!E17663","v":0},{"$f":"Import!E17863","v":0},{"$f":"Import!E18063","v":0},{"$f":"Import!E18263","v":0},{"$f":"Import!E18463","v":0}]
[68,{"$f":"Import!E16264","v":"Select"},{"$f":"Import!E16464","v":"Select"},{"$f":"Import!E16664","v":"Select"},{"$f":"Import!E16864","v":"Select"},{"$f":"Import!E17064","v":"Select"},{"$f":"Import!E17264","v":"Select"},{"$f":"Import!E17464","v":"Select"},{"$f":"Import!E17664","v":0},{"$f":"Import!E17864","v":0},{"$f":"Import!E18064","v":0},{"$f":"Import!E18264","v":0},{"$f":"Import!E18464","v":0}]
[69,{"$f":"Import!E16265","v":"Select"},{"$f":"Import!E16465","v":"Select"},{"$f":"Import!E16665","v":"Select"},{"$f":"Import!E16865","v":"Select"},{"$f":"Import!E17065","v":"Select"},{"$f":"Import!E17265","v":"Select"},{"$f":"Import!E17465","v":"Select"},{"$f":"Import!E17665","v":0},{"$f":"Import!E17865","v":0},{"$f":"Import!E18065","v":0},{"$f":"Import!E18265","v":0},{"$f":"Import!E18465","v":0}]
[70,{"$f":"Import!E16266","v":"Select"},{"$f":"Import!E16466","v":"Select"},{"$f":"Import!E16666","v":"Select"},{"$f":"Import!E16866","v":"Select"},{"$f":"Import!E17066","v":"Select"},{"$f":"Import!E17266","v":"Select"},{"$f":"Import!E17466","v":"Select"},{"$f":"Import!E17666","v":0},{"$f":"Import!E17866","v":0},{"$f":"Import!E18066","v":0},{"$f":"Import!E18266","v":0},{"$f":"Import!E18466","v":0}]
[71,{"$f":"Import!E16267","v":"Select"},{"$f":"Import!E16467","v":"Select"},{"$f":"Import!E16667","v":"Select"},{"$f":"Import!E16867","v":"Select"},{"$f":"Import!E17067","v":"Select"},{"$f":"Import!E17267","v":"Select"},{"$f":"Import!E17467","v":"Select"},{"$f":"Import!E17667","v":0},{"$f":"Import!E17867","v":0},{"$f":"Import!E18067","v":0},{"$f":"Import!E18267","v":0},{"$f":"Import!E18467","v":0}]
[72,{"$f":"Import!E16268","v":"Select"},{"$f":"Import!E16468","v":"Select"},{"$f":"Import!E16668","v":"Select"},{"$f":"Import!E16868","v":"Select"},{"$f":"Import!E17068","v":"Select"},{"$f":"Import!E17268","v":"Select"},{"$f":"Import!E17468","v":"Select"},{"$f":"Import!E17668","v":0},{"$f":"Import!E17868","v":0},{"$f":"Import!E18068","v":0},{"$f":"Import!E18268","v":0},{"$f":"Import!E18468","v":0}]
[73,{"$f":"Import!E16269","v":"Select"},{"$f":"Import!E16469","v":"Select"},{"$f":"Import!E16669","v":"Select"},{"$f":"Import!E16869","v":"Select"},{"$f":"Import!E17069","v":"Select"},{"$f":"Import!E17269","v":"Select"},{"$f":"Import!E17469","v":"Select"},{"$f":"Import!E17669","v":0},{"$f":"Import!E17869","v":0},{"$f":"Import!E18069","v":0},{"$f":"Import!E18269","v":0},{"$f":"Import!E18469","v":0}]
[74,{"$f":"Import!E16270","v":"Select"},{"$f":"Import!E16470","v":"Select"},{"$f":"Import!E16670","v":"Select"},{"$f":"Import!E16870","v":"Select"},{"$f":"Import!E17070","v":"Select"},{"$f":"Import!E17270","v":"Select"},{"$f":"Import!E17470","v":"Select"},{"$f":"Import!E17670","v":0},{"$f":"Import!E17870","v":0},{"$f":"Import!E18070","v":0},{"$f":"Import!E18270","v":0},{"$f":"Import!E18470","v":0}]
[75,{"$f":"Import!E16271","v":"Select"},{"$f":"Import!E16471","v":"Select"},{"$f":"Import!E16671","v":"Select"},{"$f":"Import!E16871","v":"Select"},{"$f":"Import!E17071","v":"Select"},{"$f":"Import!E17271","v":"Select"},{"$f":"Import!E17471","v":"Select"},{"$f":"Import!E17671","v":0},{"$f":"Import!E17871","v":0},{"$f":"Import!E18071","v":0},{"$f":"Import!E18271","v":0},{"$f":"Import!E18471","v":0}]
[76,{"$f":"Import!E16272","v":"Select"},{"$f":"Import!E16472","v":"Select"},{"$f":"Import!E16672","v":"Select"},{"$f":"Import!E16872","v":"Select"},{"$f":"Import!E17072","v":"Select"},{"$f":"Import!E17272","v":"Select"},{"$f":"Import!E17472","v":"Select"},{"$f":"Import!E17672","v":0},{"$f":"Import!E17872","v":0},{"$f":"Import!E18072","v":0},{"$f":"Import!E18272","v":0},{"$f":"Import!E18472","v":0}]
[77,{"$f":"Import!E16273","v":"Select"},{"$f":"Import!E16473","v":"Select"},{"$f":"Import!E16673","v":"Select"},{"$f":"Import!E16873","v":"Select"},{"$f":"Import!E17073","v":"Select"},{"$f":"Import!E17273","v":"Select"},{"$f":"Import!E17473","v":"Select"},{"$f":"Import!E17673","v":0},{"$f":"Import!E17873","v":0},{"$f":"Import!E18073","v":0},{"$f":"Import!E18273","v":0},{"$f":"Import!E18473","v":0}]
[78,{"$f":"Import!E16274","v":"Select"},{"$f":"Import!E16474","v":"Select"},{"$f":"Import!E16674","v":"Select"},{"$f":"Import!E16874","v":"Select"},{"$f":"Import!E17074","v":"Select"},{"$f":"Import!E17274","v":"Select"},{"$f":"Import!E17474","v":"Select"},{"$f":"Import!E17674","v":0},{"$f":"Import!E17874","v":0},{"$f":"Import!E18074","v":0},{"$f":"Import!E18274","v":0},{"$f":"Import!E18474","v":0}]
[79,{"$f":"Import!E16275","v":"Select"},{"$f":"Import!E16475","v":"Select"},{"$f":"Import!E16675","v":"Select"},{"$f":"Import!E16875","v":"Select"},{"$f":"Import!E17075","v":"Select"},{"$f":"Import!E17275","v":"Select"},{"$f":"Import!E17475","v":"Select"},{"$f":"Import!E17675","v":0},{"$f":"Import!E17875","v":0},{"$f":"Import!E18075","v":0},{"$f":"Import!E18275","v":0},{"$f":"Import!E18475","v":0}]
[80,{"$f":"Import!E16276","v":"Select"},{"$f":"Import!E16476","v":"Select"},{"$f":"Import!E16676","v":"Select"},{"$f":"Import!E16876","v":"Select"},{"$f":"Import!E17076","v":"Select"},{"$f":"Import!E17276","v":"Select"},{"$f":"Import!E17476","v":"Select"},{"$f":"Import!E17676","v":0},{"$f":"Import!E17876","v":0},{"$f":"Import!E18076","v":0},{"$f":"Import!E18276","v":0},{"$f":"Import!E18476","v":0}]
[81,{"$f":"Import!E16277","v":"Select"},{"$f":"Import!E16477","v":"Select"},{"$f":"Import!E16677","v":"Select"},{"$f":"Import!E16877","v":"Select"},{"$f":"Import!E17077","v":"Select"},{"$f":"Import!E17277","v":"Select"},{"$f":"Import!E17477","v":"Select"},{"$f":"Import!E17677","v":0},{"$f":"Import!E17877","v":0},{"$f":"Import!E18077","v":0},{"$f":"Import!E18277","v":0},{"$f":"Import!E18477","v":0}]
[82,{"$f":"Import!E16278","v":"Select"},{"$f":"Import!E16478","v":"Select"},{"$f":"Import!E16678","v":"Select"},{"$f":"Import!E16878","v":"Select"},{"$f":"Import!E17078","v":"Select"},{"$f":"Import!E17278","v":"Select"},{"$f":"Import!E17478","v":"Select"},{"$f":"Import!E17678","v":0},{"$f":"Import!E17878","v":0},{"$f":"Import!E18078","v":0},{"$f":"Import!E18278","v":0},{"$f":"Import!E18478","v":0}]
[83,{"$f":"Import!E16279","v":"Select"},{"$f":"Import!E16479","v":"Select"},{"$f":"Import!E16679","v":"Select"},{"$f":"Import!E16879","v":"Select"},{"$f":"Import!E17079","v":"Select"},{"$f":"Import!E17279","v":"Select"},{"$f":"Import!E17479","v":"Select"},{"$f":"Import!E17679","v":0},{"$f":"Import!E17879","v":0},{"$f":"Import!E18079","v":0},{"$f":"Import!E18279","v":0},{"$f":"Import!E18479","v":0}]
[84,{"$f":"Import!E16280","v":"Select"},{"$f":"Import!E16480","v":"Select"},{"$f":"Import!E16680","v":"Select"},{"$f":"Import!E16880","v":"Select"},{"$f":"Import!E17080","v":"Select"},{"$f":"Import!E17280","v":"Select"},{"$f":"Import!E17480","v":"Select"},{"$f":"Import!E17680","v":0},{"$f":"Import!E17880","v":0},{"$f":"Import!E18080","v":0},{"$f":"Import!E18280","v":0},{"$f":"Import!E18480","v":0}]
[85,{"$f":"Import!E16281","v":"Select"},{"$f":"Import!E16481","v":"Select"},{"$f":"Import!E16681","v":"Select"},{"$f":"Import!E16881","v":"Select"},{"$f":"Import!E17081","v":"Select"},{"$f":"Import!E17281","v":"Select"},{"$f":"Import!E17481","v":"Select"},{"$f":"Import!E17681","v":0},{"$f":"Import!E17881","v":0},{"$f":"Import!E18081","v":0},{"$f":"Import!E18281","v":0},{"$f":"Import!E18481","v":0}]
[86,{"$f":"Import!E16282","v":"Select"},{"$f":"Import!E16482","v":"Select"},{"$f":"Import!E16682","v":"Select"},{"$f":"Import!E16882","v":"Select"},{"$f":"Import!E17082","v":"Select"},{"$f":"Import!E17282","v":"Select"},{"$f":"Import!E17482","v":"Select"},{"$f":"Import!E17682","v":0},{"$f":"Import!E17882","v":0},{"$f":"Import!E18082","v":0},{"$f":"Import!E18282","v":0},{"$f":"Import!E18482","v":0}]
[87,{"$f":"Import!E16283","v":"Select"},{"$f":"Import!E16483","v":"Select"},{"$f":"Import!E16683","v":"Select"},{"$f":"Import!E16883","v":"Select"},{"$f":"Import!E17083","v":"Select"},{"$f":"Import!E17283","v":"Select"},{"$f":"Import!E17483","v":"Select"},{"$f":"Import!E17683","v":0},{"$f":"Import!E17883","v":0},{"$f":"Import!E18083","v":0},{"$f":"Import!E18283","v":0},{"$f":"Import!E18483","v":0}]
[88,{"$f":"Import!E16284","v":"Select"},{"$f":"Import!E16484","v":"Select"},{"$f":"Import!E16684","v":"Select"},{"$f":"Import!E16884","v":"Select"},{"$f":"Import!E17084","v":"Select"},{"$f":"Import!E17284","v":"Select"},{"$f":"Import!E17484","v":"Select"},{"$f":"Import!E17684","v":0},{"$f":"Import!E17884","v":0},{"$f":"Import!E18084","v":0},{"$f":"Import!E18284","v":0},{"$f":"Import!E18484","v":0}]
[89,{"$f":"Import!E16285","v":"Select"},{"$f":"Import!E16485","v":"Select"},{"$f":"Import!E16685","v":"Select"},{"$f":"Import!E16885","v":"Select"},{"$f":"Import!E17085","v":"Select"},{"$f":"Import!E17285","v":"Select"},{"$f":"Import!E17485","v":"Select"},{"$f":"Import!E17685","v":0},{"$f":"Import!E17885","v":0},{"$f":"Import!E18085","v":0},{"$f":"Import!E18285","v":0},{"$f":"Import!E18485","v":0}]
[90,{"$f":"Import!E16286","v":"Select"},{"$f":"Import!E16486","v":"Select"},{"$f":"Import!E16686","v":"Select"},{"$f":"Import!E16886","v":"Select"},{"$f":"Import!E17086","v":"Select"},{"$f":"Import!E17286","v":"Select"},{"$f":"Import!E17486","v":"Select"},{"$f":"Import!E17686","v":0},{"$f":"Import!E17886","v":0},{"$f":"Import!E18086","v":0},{"$f":"Import!E18286","v":0},{"$f":"Import!E18486","v":0}]
[91,{"$f":"Import!E16287","v":"Select"},{"$f":"Import!E16487","v":"Select"},{"$f":"Import!E16687","v":"Select"},{"$f":"Import!E16887","v":"Select"},{"$f":"Import!E17087","v":"Select"},{"$f":"Import!E17287","v":"Select"},{"$f":"Import!E17487","v":"Select"},{"$f":"Import!E17687","v":0},{"$f":"Import!E17887","v":0},{"$f":"Import!E18087","v":0},{"$f":"Import!E18287","v":0},{"$f":"Import!E18487","v":0}]
[92,{"$f":"Import!E16288","v":"Select"},{"$f":"Import!E16488","v":"Select"},{"$f":"Import!E16688","v":"Select"},{"$f":"Import!E16888","v":"Select"},{"$f":"Import!E17088","v":"Select"},{"$f":"Import!E17288","v":"Select"},{"$f":"Import!E17488","v":"Select"},{"$f":"Import!E17688","v":0},{"$f":"Import!E17888","v":0},{"$f":"Import!E18088","v":0},{"$f":"Import!E18288","v":0},{"$f":"Import!E18488","v":0}]
[93,{"$f":"Import!E16289","v":"Select"},{"$f":"Import!E16489","v":"Select"},{"$f":"Import!E16689","v":"Select"},{"$f":"Import!E16889","v":"Select"},{"$f":"Import!E17089","v":"Select"},{"$f":"Import!E17289","v":"Select"},{"$f":"Import!E17489","v":"Select"},{"$f":"Import!E17689","v":0},{"$f":"Import!E17889","v":0},{"$f":"Import!E18089","v":0},{"$f":"Import!E18289","v":0},{"$f":"Import!E18489","v":0}]
[94,{"$f":"Import!E16290","v":"Select"},{"$f":"Import!E16490","v":"Select"},{"$f":"Import!E16690","v":"Select"},{"$f":"Import!E16890","v":"Select"},{"$f":"Import!E17090","v":"Select"},{"$f":"Import!E17290","v":"Select"},{"$f":"Import!E17490","v":"Select"},{"$f":"Import!E17690","v":0},{"$f":"Import!E17890","v":0},{"$f":"Import!E18090","v":0},{"$f":"Import!E18290","v":0},{"$f":"Import!E18490","v":0}]
[95,{"$f":"Import!E16291","v":"Select"},{"$f":"Import!E16491","v":"Select"},{"$f":"Import!E16691","v":"Select"},{"$f":"Import!E16891","v":"Select"},{"$f":"Import!E17091","v":"Select"},{"$f":"Import!E17291","v":"Select"},{"$f":"Import!E17491","v":"Select"},{"$f":"Import!E17691","v":0},{"$f":"Import!E17891","v":0},{"$f":"Import!E18091","v":0},{"$f":"Import!E18291","v":0},{"$f":"Import!E18491","v":0}]
[96,{"$f":"Import!E16292","v":"Select"},{"$f":"Import!E16492","v":"Select"},{"$f":"Import!E16692","v":"Select"},{"$f":"Import!E16892","v":"Select"},{"$f":"Import!E17092","v":"Select"},{"$f":"Import!E17292","v":"Select"},{"$f":"Import!E17492","v":"Select"},{"$f":"Import!E17692","v":0},{"$f":"Import!E17892","v":0},{"$f":"Import!E18092","v":0},{"$f":"Import!E18292","v":0},{"$f":"Import!E18492","v":0}]
[97,{"$f":"Import!E16293","v":"Select"},{"$f":"Import!E16493","v":"Select"},{"$f":"Import!E16693","v":"Select"},{"$f":"Import!E16893","v":"Select"},{"$f":"Import!E17093","v":"Select"},{"$f":"Import!E17293","v":"Select"},{"$f":"Import!E17493","v":"Select"},{"$f":"Import!E17693","v":0},{"$f":"Import!E17893","v":0},{"$f":"Import!E18093","v":0},{"$f":"Import!E18293","v":0},{"$f":"Import!E18493","v":0}]
[98,{"$f":"Import!E16294","v":"Select"},{"$f":"Import!E16494","v":"Select"},{"$f":"Import!E16694","v":"Select"},{"$f":"Import!E16894","v":"Select"},{"$f":"Import!E17094","v":"Select"},{"$f":"Import!E17294","v":"Select"},{"$f":"Import!E17494","v":"Select"},{"$f":"Import!E17694","v":0},{"$f":"Import!E17894","v":0},{"$f":"Import!E18094","v":0},{"$f":"Import!E18294","v":0},{"$f":"Import!E18494","v":0}]
[99,{"$f":"Import!E16295","v":"Select"},{"$f":"Import!E16495","v":"Select"},{"$f":"Import!E16695","v":"Select"},{"$f":"Import!E16895","v":"Select"},{"$f":"Import!E17095","v":"Select"},{"$f":"Import!E17295","v":"Select"},{"$f":"Import!E17495","v":"Select"},{"$f":"Import!E17695","v":0},{"$f":"Import!E17895","v":0},{"$f":"Import!E18095","v":0},{"$f":"Import!E18295","v":0},{"$f":"Import!E18495","v":0}]
[100,{"$f":"Import!E16296","v":"Select"},{"$f":"Import!E16496","v":"Select"},{"$f":"Import!E16696","v":"Select"},{"$f":"Import!E16896","v":"Select"},{"$f":"Import!E17096","v":"Select"},{"$f":"Import!E17296","v":"Select"},{"$f":"Import!E17496","v":"Select"},{"$f":"Import!E17696","v":0},{"$f":"Import!E17896","v":0},{"$f":"Import!E18096","v":0},{"$f":"Import!E18296","v":0},{"$f":"Import!E18496","v":0}]
[101,{"$f":"Import!E16297","v":"Select"},{"$f":"Import!E16497","v":"Select"},{"$f":"Import!E16697","v":"Select"},{"$f":"Import!E16897","v":"Select"},{"$f":"Import!E17097","v":"Select"},{"$f":"Import!E17297","v":"Select"},{"$f":"Import!E17497","v":"Select"},{"$f":"Import!E17697","v":0},{"$f":"Import!E17897","v":0},{"$f":"Import!E18097","v":0},{"$f":"Import!E18297","v":0},{"$f":"Import!E18497","v":0}]
[102,{"$f":"Import!E16298","v":"Select"},{"$f":"Import!E16498","v":"Select"},{"$f":"Import!E16698","v":"Select"},{"$f":"Import!E16898","v":"Select"},{"$f":"Import!E17098","v":"Select"},{"$f":"Import!E17298","v":"Select"},{"$f":"Import!E17498","v":"Select"},{"$f":"Import!E17698","v":0},{"$f":"Import!E17898","v":0},{"$f":"Import!E18098","v":0},{"$f":"Import!E18298","v":0},{"$f":"Import!E18498","v":0}]
[103,{"$f":"Import!E16299","v":"Select"},{"$f":"Import!E16499","v":"Select"},{"$f":"Import!E16699","v":"Select"},{"$f":"Import!E16899","v":"Select"},{"$f":"Import!E17099","v":"Select"},{"$f":"Import!E17299","v":"Select"},{"$f":"Import!E17499","v":"Select"},{"$f":"Import!E17699","v":0},{"$f":"Import!E17899","v":0},{"$f":"Import!E18099","v":0},{"$f":"Import!E18299","v":0},{"$f":"Import!E18499","v":0}]
[104,{"$f":"Import!E16300","v":"Select"},{"$f":"Import!E16500","v":"Select"},{"$f":"Import!E16700","v":"Select"},{"$f":"Import!E16900","v":"Select"},{"$f":"Import!E17100","v":"Select"},{"$f":"Import!E17300","v":"Select"},{"$f":"Import!E17500","v":"Select"},{"$f":"Import!E17700","v":0},{"$f":"Import!E17900","v":0},{"$f":"Import!E18100","v":0},{"$f":"Import!E18300","v":0},{"$f":"Import!E18500","v":0}]
[105,{"$f":"Import!E16301","v":"Select"},{"$f":"Import!E16501","v":"Select"},{"$f":"Import!E16701","v":"Select"},{"$f":"Import!E16901","v":"Select"},{"$f":"Import!E17101","v":"Select"},{"$f":"Import!E17301","v":"Select"},{"$f":"Import!E17501","v":"Select"},{"$f":"Import!E17701","v":0},{"$f":"Import!E17901","v":0},{"$f":"Import!E18101","v":0},{"$f":"Import!E18301","v":0},{"$f":"Import!E18501","v":0}]
[106,{"$f":"Import!E16302","v":"Select"},{"$f":"Import!E16502","v":"Select"},{"$f":"Import!E16702","v":"Select"},{"$f":"Import!E16902","v":"Select"},{"$f":"Import!E17102","v":"Select"},{"$f":"Import!E17302","v":"Select"},{"$f":"Import!E17502","v":"Select"},{"$f":"Import!E17702","v":0},{"$f":"Import!E17902","v":0},{"$f":"Import!E18102","v":0},{"$f":"Import!E18302","v":0},{"$f":"Import!E18502","v":0}]
[107,{"$f":"Import!E16303","v":"Select"},{"$f":"Import!E16503","v":"Select"},{"$f":"Import!E16703","v":"Select"},{"$f":"Import!E16903","v":"Select"},{"$f":"Import!E17103","v":"Select"},{"$f":"Import!E17303","v":"Select"},{"$f":"Import!E17503","v":"Select"},{"$f":"Import!E17703","v":0},{"$f":"Import!E17903","v":0},{"$f":"Import!E18103","v":0},{"$f":"Import!E18303","v":0},{"$f":"Import!E18503","v":0}]
[108,{"$f":"Import!E16304","v":"Select"},{"$f":"Import!E16504","v":"Select"},{"$f":"Import!E16704","v":"Select"},{"$f":"Import!E16904","v":"Select"},{"$f":"Import!E17104","v":"Select"},{"$f":"Import!E17304","v":"Select"},{"$f":"Import!E17504","v":"Select"},{"$f":"Import!E17704","v":0},{"$f":"Import!E17904","v":0},{"$f":"Import!E18104","v":0},{"$f":"Import!E18304","v":0},{"$f":"Import!E18504","v":0}]
[109,{"$f":"Import!E16305","v":"Select"},{"$f":"Import!E16505","v":"Select"},{"$f":"Import!E16705","v":"Select"},{"$f":"Import!E16905","v":"Select"},{"$f":"Import!E17105","v":"Select"},{"$f":"Import!E17305","v":"Select"},{"$f":"Import!E17505","v":"Select"},{"$f":"Import!E17705","v":0},{"$f":"Import!E17905","v":0},{"$f":"Import!E18105","v":0},{"$f":"Import!E18305","v":0},{"$f":"Import!E18505","v":0}]
[110,{"$f":"Import!E16306","v":"Select"},{"$f":"Import!E16506","v":"Select"},{"$f":"Import!E16706","v":"Select"},{"$f":"Import!E16906","v":"Select"},{"$f":"Import!E17106","v":"Select"},{"$f":"Import!E17306","v":"Select"},{"$f":"Import!E17506","v":"Select"},{"$f":"Import!E17706","v":0},{"$f":"Import!E17906","v":0},{"$f":"Import!E18106","v":0},{"$f":"Import!E18306","v":0},{"$f":"Import!E18506","v":0}]
[111,{"$f":"Import!E16307","v":"Select"},{"$f":"Import!E16507","v":"Select"},{"$f":"Import!E16707","v":"Select"},{"$f":"Import!E16907","v":"Select"},{"$f":"Import!E17107","v":"Select"},{"$f":"Import!E17307","v":"Select"},{"$f":"Import!E17507","v":"Select"},{"$f":"Import!E17707","v":0},{"$f":"Import!E17907","v":0},{"$f":"Import!E18107","v":0},{"$f":"Import!E18307","v":0},{"$f":"Import!E18507","v":0}]
[112,{"$f":"Import!E16308","v":"Select"},{"$f":"Import!E16508","v":"Select"},{"$f":"Import!E16708","v":"Select"},{"$f":"Import!E16908","v":"Select"},{"$f":"Import!E17108","v":"Select"},{"$f":"Import!E17308","v":"Select"},{"$f":"Import!E17508","v":"Select"},{"$f":"Import!E17708","v":0},{"$f":"Import!E17908","v":0},{"$f":"Import!E18108","v":0},{"$f":"Import!E18308","v":0},{"$f":"Import!E18508","v":0}]
[113,{"$f":"Import!E16309","v":"Select"},{"$f":"Import!E16509","v":"Select"},{"$f":"Import!E16709","v":"Select"},{"$f":"Import!E16909","v":"Select"},{"$f":"Import!E17109","v":"Select"},{"$f":"Import!E17309","v":"Select"},{"$f":"Import!E17509","v":"Select"},{"$f":"Import!E17709","v":0},{"$f":"Import!E17909","v":0},{"$f":"Import!E18109","v":0},{"$f":"Import!E18309","v":0},{"$f":"Import!E18509","v":0}]
[114,{"$f":"Import!E16310","v":"Select"},{"$f":"Import!E16510","v":"Select"},{"$f":"Import!E16710","v":"Select"},{"$f":"Import!E16910","v":"Select"},{"$f":"Import!E17110","v":"Select"},{"$f":"Import!E17310","v":"Select"},{"$f":"Import!E17510","v":"Select"},{"$f":"Import!E17710","v":0},{"$f":"Import!E17910","v":0},{"$f":"Import!E18110","v":0},{"$f":"Import!E18310","v":0},{"$f":"Import!E18510","v":0}]
[115,{"$f":"Import!E16311","v":"Select"},{"$f":"Import!E16511","v":"Select"},{"$f":"Import!E16711","v":"Select"},{"$f":"Import!E16911","v":"Select"},{"$f":"Import!E17111","v":"Select"},{"$f":"Import!E17311","v":"Select"},{"$f":"Import!E17511","v":"Select"},{"$f":"Import!E17711","v":0},{"$f":"Import!E17911","v":0},{"$f":"Import!E18111","v":0},{"$f":"Import!E18311","v":0},{"$f":"Import!E18511","v":0}]
[116,{"$f":"Import!E16312","v":"Select"},{"$f":"Import!E16512","v":"Select"},{"$f":"Import!E16712","v":"Select"},{"$f":"Import!E16912","v":"Select"},{"$f":"Import!E17112","v":"Select"},{"$f":"Import!E17312","v":"Select"},{"$f":"Import!E17512","v":"Select"},{"$f":"Import!E17712","v":0},{"$f":"Import!E17912","v":0},{"$f":"Import!E18112","v":0},{"$f":"Import!E18312","v":0},{"$f":"Import!E18512","v":0}]
[117,{"$f":"Import!E16313","v":"Select"},{"$f":"Import!E16513","v":"Select"},{"$f":"Import!E16713","v":"Select"},{"$f":"Import!E16913","v":"Select"},{"$f":"Import!E17113","v":"Select"},{"$f":"Import!E17313","v":"Select"},{"$f":"Import!E17513","v":"Select"},{"$f":"Import!E17713","v":0},{"$f":"Import!E17913","v":0},{"$f":"Import!E18113","v":0},{"$f":"Import!E18313","v":0},{"$f":"Import!E18513","v":0}]
[118,{"$f":"Import!E16314","v":"Select"},{"$f":"Import!E16514","v":"Select"},{"$f":"Import!E16714","v":"Select"},{"$f":"Import!E16914","v":"Select"},{"$f":"Import!E17114","v":"Select"},{"$f":"Import!E17314","v":"Select"},{"$f":"Import!E17514","v":"Select"},{"$f":"Import!E17714","v":0},{"$f":"Import!E17914","v":0},{"$f":"Import!E18114","v":0},{"$f":"Import!E18314","v":0},{"$f":"Import!E18514","v":0}]
[119,{"$f":"Import!E16315","v":"Select"},{"$f":"Import!E16515","v":"Select"},{"$f":"Import!E16715","v":"Select"},{"$f":"Import!E16915","v":"Select"},{"$f":"Import!E17115","v":"Select"},{"$f":"Import!E17315","v":"Select"},{"$f":"Import!E17515","v":"Select"},{"$f":"Import!E17715","v":0},{"$f":"Import!E17915","v":0},{"$f":"Import!E18115","v":0},{"$f":"Import!E18315","v":0},{"$f":"Import!E18515","v":0}]
[120,{"$f":"Import!E16316","v":"Select"},{"$f":"Import!E16516","v":"Select"},{"$f":"Import!E16716","v":"Select"},{"$f":"Import!E16916","v":"Select"},{"$f":"Import!E17116","v":"Select"},{"$f":"Import!E17316","v":"Select"},{"$f":"Import!E17516","v":"Select"},{"$f":"Import!E17716","v":0},{"$f":"Import!E17916","v":0},{"$f":"Import!E18116","v":0},{"$f":"Import!E18316","v":0},{"$f":"Import!E18516","v":0}]
[121,{"$f":"Import!E16317","v":"Select"},{"$f":"Import!E16517","v":"Select"},{"$f":"Import!E16717","v":"Select"},{"$f":"Import!E16917","v":"Select"},{"$f":"Import!E17117","v":"Select"},{"$f":"Import!E17317","v":"Select"},{"$f":"Import!E17517","v":"Select"},{"$f":"Import!E17717","v":0},{"$f":"Import!E17917","v":0},{"$f":"Import!E18117","v":0},{"$f":"Import!E18317","v":0},{"$f":"Import!E18517","v":0}]
[122,{"$f":"Import!E16318","v":"Select"},{"$f":"Import!E16518","v":"Select"},{"$f":"Import!E16718","v":"Select"},{"$f":"Import!E16918","v":"Select"},{"$f":"Import!E17118","v":"Select"},{"$f":"Import!E17318","v":"Select"},{"$f":"Import!E17518","v":"Select"},{"$f":"Import!E17718","v":0},{"$f":"Import!E17918","v":0},{"$f":"Import!E18118","v":0},{"$f":"Import!E18318","v":0},{"$f":"Import!E18518","v":0}]
[123,{"$f":"Import!E16319","v":"Select"},{"$f":"Import!E16519","v":"Select"},{"$f":"Import!E16719","v":"Select"},{"$f":"Import!E16919","v":"Select"},{"$f":"Import!E17119","v":"Select"},{"$f":"Import!E17319","v":"Select"},{"$f":"Import!E17519","v":"Select"},{"$f":"Import!E17719","v":0},{"$f":"Import!E17919","v":0},{"$f":"Import!E18119","v":0},{"$f":"Import!E18319","v":0},{"$f":"Import!E18519","v":0}]
[124,{"$f":"Import!E16320","v":"Select"},{"$f":"Import!E16520","v":"Select"},{"$f":"Import!E16720","v":"Select"},{"$f":"Import!E16920","v":"Select"},{"$f":"Import!E17120","v":"Select"},{"$f":"Import!E17320","v":"Select"},{"$f":"Import!E17520","v":"Select"},{"$f":"Import!E17720","v":0},{"$f":"Import!E17920","v":0},{"$f":"Import!E18120","v":0},{"$f":"Import!E18320","v":0},{"$f":"Import!E18520","v":0}]
[125,{"$f":"Import!E16321","v":"Select"},{"$f":"Import!E16521","v":"Select"},{"$f":"Import!E16721","v":"Select"},{"$f":"Import!E16921","v":"Select"},{"$f":"Import!E17121","v":"Select"},{"$f":"Import!E17321","v":"Select"},{"$f":"Import!E17521","v":"Select"},{"$f":"Import!E17721","v":0},{"$f":"Import!E17921","v":0},{"$f":"Import!E18121","v":0},{"$f":"Import!E18321","v":0},{"$f":"Import!E18521","v":0}]
[126,{"$f":"Import!E16322","v":"Select"},{"$f":"Import!E16522","v":"Select"},{"$f":"Import!E16722","v":"Select"},{"$f":"Import!E16922","v":"Select"},{"$f":"Import!E17122","v":"Select"},{"$f":"Import!E17322","v":"Select"},{"$f":"Import!E17522","v":"Select"},{"$f":"Import!E17722","v":0},{"$f":"Import!E17922","v":0},{"$f":"Import!E18122","v":0},{"$f":"Import!E18322","v":0},{"$f":"Import!E18522","v":0}]
[127,{"$f":"Import!E16323","v":"Select"},{"$f":"Import!E16523","v":"Select"},{"$f":"Import!E16723","v":"Select"},{"$f":"Import!E16923","v":"Select"},{"$f":"Import!E17123","v":"Select"},{"$f":"Import!E17323","v":"Select"},{"$f":"Import!E17523","v":"Select"},{"$f":"Import!E17723","v":0},{"$f":"Import!E17923","v":0},{"$f":"Import!E18123","v":0},{"$f":"Import!E18323","v":0},{"$f":"Import!E18523","v":0}]
[128,{"$f":"Import!E16324","v":"Select"},{"$f":"Import!E16524","v":"Select"},{"$f":"Import!E16724","v":"Select"},{"$f":"Import!E16924","v":"Select"},{"$f":"Import!E17124","v":"Select"},{"$f":"Import!E17324","v":"Select"},{"$f":"Import!E17524","v":"Select"},{"$f":"Import!E17724","v":0},{"$f":"Import!E17924","v":0},{"$f":"Import!E18124","v":0},{"$f":"Import!E18324","v":0},{"$f":"Import!E18524","v":0}]
[129,{"$f":"Import!E16325","v":"Select"},{"$f":"Import!E16525","v":"Select"},{"$f":"Import!E16725","v":"Select"},{"$f":"Import!E16925","v":"Select"},{"$f":"Import!E17125","v":"Select"},{"$f":"Import!E17325","v":"Select"},{"$f":"Import!E17525","v":"Select"},{"$f":"Import!E17725","v":0},{"$f":"Import!E17925","v":0},{"$f":"Import!E18125","v":0},{"$f":"Import!E18325","v":0},{"$f":"Import!E18525","v":0}]
[130,{"$f":"Import!E16326","v":"Select"},{"$f":"Import!E16526","v":"Select"},{"$f":"Import!E16726","v":"Select"},{"$f":"Import!E16926","v":"Select"},{"$f":"Import!E17126","v":"Select"},{"$f":"Import!E17326","v":"Select"},{"$f":"Import!E17526","v":"Select"},{"$f":"Import!E17726","v":0},{"$f":"Import!E17926","v":0},{"$f":"Import!E18126","v":0},{"$f":"Import!E18326","v":0},{"$f":"Import!E18526","v":0}]
[{"$f":"A1689+1","v":131},{"$f":"Import!E16327","v":"Select"},{"$f":"Import!E16527","v":"Select"},{"$f":"Import!E16727","v":"Select"},{"$f":"Import!E16927","v":"Select"},{"$f":"Import!E17127","v":"Select"},{"$f":"Import!E17327","v":"Select"},{"$f":"Import!E17527","v":"Select"},{"$f":"Import!E17727","v":0},{"$f":"Import!E17927","v":0},{"$f":"Import!E18127","v":0},{"$f":"Import!E18327","v":0},{"$f":"Import!E18527","v":0}]
[132,{"$f":"Import!E16328","v":"Select"},{"$f":"Import!E16528","v":"Select"},{"$f":"Import!E16728","v":"Select"},{"$f":"Import!E16928","v":"Select"},{"$f":"Import!E17128","v":"Select"},{"$f":"Import!E17328","v":"Select"},{"$f":"Import!E17528","v":"Select"},{"$f":"Import!E17728","v":0},{"$f":"Import!E17928","v":0},{"$f":"Import!E18128","v":0},{"$f":"Import!E18328","v":0},{"$f":"Import!E18528","v":0}]
[133,{"$f":"Import!E16329","v":"Select"},{"$f":"Import!E16529","v":"Select"},{"$f":"Import!E16729","v":"Select"},{"$f":"Import!E16929","v":"Select"},{"$f":"Import!E17129","v":"Select"},{"$f":"Import!E17329","v":"Select"},{"$f":"Import!E17529","v":"Select"},{"$f":"Import!E17729","v":0},{"$f":"Import!E17929","v":0},{"$f":"Import!E18129","v":0},{"$f":"Import!E18329","v":0},{"$f":"Import!E18529","v":0}]
[134,{"$f":"Import!E16330","v":"Select"},{"$f":"Import!E16530","v":"Select"},{"$f":"Import!E16730","v":"Select"},{"$f":"Import!E16930","v":"Select"},{"$f":"Import!E17130","v":"Select"},{"$f":"Import!E17330","v":"Select"},{"$f":"Import!E17530","v":"Select"},{"$f":"Import!E17730","v":0},{"$f":"Import!E17930","v":0},{"$f":"Import!E18130","v":0},{"$f":"Import!E18330","v":0},{"$f":"Import!E18530","v":0}]
[135,{"$f":"Import!E16331","v":"Select"},{"$f":"Import!E16531","v":"Select"},{"$f":"Import!E16731","v":"Select"},{"$f":"Import!E16931","v":"Select"},{"$f":"Import!E17131","v":"Select"},{"$f":"Import!E17331","v":"Select"},{"$f":"Import!E17531","v":"Select"},{"$f":"Import!E17731","v":0},{"$f":"Import!E17931","v":0},{"$f":"Import!E18131","v":0},{"$f":"Import!E18331","v":0},{"$f":"Import!E18531","v":0}]
[136,{"$f":"Import!E16332","v":"Select"},{"$f":"Import!E16532","v":"Select"},{"$f":"Import!E16732","v":"Select"},{"$f":"Import!E16932","v":"Select"},{"$f":"Import!E17132","v":"Select"},{"$f":"Import!E17332","v":"Select"},{"$f":"Import!E17532","v":"Select"},{"$f":"Import!E17732","v":0},{"$f":"Import!E17932","v":0},{"$f":"Import!E18132","v":0},{"$f":"Import!E18332","v":0},{"$f":"Import!E18532","v":0}]
[137,{"$f":"Import!E16333","v":"Select"},{"$f":"Import!E16533","v":"Select"},{"$f":"Import!E16733","v":"Select"},{"$f":"Import!E16933","v":"Select"},{"$f":"Import!E17133","v":"Select"},{"$f":"Import!E17333","v":"Select"},{"$f":"Import!E17533","v":"Select"},{"$f":"Import!E17733","v":0},{"$f":"Import!E17933","v":0},{"$f":"Import!E18133","v":0},{"$f":"Import!E18333","v":0},{"$f":"Import!E18533","v":0}]
[138,{"$f":"Import!E16334","v":"Select"},{"$f":"Import!E16534","v":"Select"},{"$f":"Import!E16734","v":"Select"},{"$f":"Import!E16934","v":"Select"},{"$f":"Import!E17134","v":"Select"},{"$f":"Import!E17334","v":"Select"},{"$f":"Import!E17534","v":"Select"},{"$f":"Import!E17734","v":0},{"$f":"Import!E17934","v":0},{"$f":"Import!E18134","v":0},{"$f":"Import!E18334","v":0},{"$f":"Import!E18534","v":0}]
[139,{"$f":"Import!E16335","v":"Select"},{"$f":"Import!E16535","v":"Select"},{"$f":"Import!E16735","v":"Select"},{"$f":"Import!E16935","v":"Select"},{"$f":"Import!E17135","v":"Select"},{"$f":"Import!E17335","v":"Select"},{"$f":"Import!E17535","v":"Select"},{"$f":"Import!E17735","v":0},{"$f":"Import!E17935","v":0},{"$f":"Import!E18135","v":0},{"$f":"Import!E18335","v":0},{"$f":"Import!E18535","v":0}]
[140,{"$f":"Import!E16336","v":"Select"},{"$f":"Import!E16536","v":"Select"},{"$f":"Import!E16736","v":"Select"},{"$f":"Import!E16936","v":"Select"},{"$f":"Import!E17136","v":"Select"},{"$f":"Import!E17336","v":"Select"},{"$f":"Import!E17536","v":"Select"},{"$f":"Import!E17736","v":0},{"$f":"Import!E17936","v":0},{"$f":"Import!E18136","v":0},{"$f":"Import!E18336","v":0},{"$f":"Import!E18536","v":0}]
[141,{"$f":"Import!E16337","v":"Select"},{"$f":"Import!E16537","v":"Select"},{"$f":"Import!E16737","v":"Select"},{"$f":"Import!E16937","v":"Select"},{"$f":"Import!E17137","v":"Select"},{"$f":"Import!E17337","v":"Select"},{"$f":"Import!E17537","v":"Select"},{"$f":"Import!E17737","v":0},{"$f":"Import!E17937","v":0},{"$f":"Import!E18137","v":0},{"$f":"Import!E18337","v":0},{"$f":"Import!E18537","v":0}]
[142,{"$f":"Import!E16338","v":"Select"},{"$f":"Import!E16538","v":"Select"},{"$f":"Import!E16738","v":"Select"},{"$f":"Import!E16938","v":"Select"},{"$f":"Import!E17138","v":"Select"},{"$f":"Import!E17338","v":"Select"},{"$f":"Import!E17538","v":"Select"},{"$f":"Import!E17738","v":0},{"$f":"Import!E17938","v":0},{"$f":"Import!E18138","v":0},{"$f":"Import!E18338","v":0},{"$f":"Import!E18538","v":0}]
[143,{"$f":"Import!E16339","v":"Select"},{"$f":"Import!E16539","v":"Select"},{"$f":"Import!E16739","v":"Select"},{"$f":"Import!E16939","v":"Select"},{"$f":"Import!E17139","v":"Select"},{"$f":"Import!E17339","v":"Select"},{"$f":"Import!E17539","v":"Select"},{"$f":"Import!E17739","v":0},{"$f":"Import!E17939","v":0},{"$f":"Import!E18139","v":0},{"$f":"Import!E18339","v":0},{"$f":"Import!E18539","v":0}]
[144,{"$f":"Import!E16340","v":"Select"},{"$f":"Import!E16540","v":"Select"},{"$f":"Import!E16740","v":"Select"},{"$f":"Import!E16940","v":"Select"},{"$f":"Import!E17140","v":"Select"},{"$f":"Import!E17340","v":"Select"},{"$f":"Import!E17540","v":"Select"},{"$f":"Import!E17740","v":0},{"$f":"Import!E17940","v":0},{"$f":"Import!E18140","v":0},{"$f":"Import!E18340","v":0},{"$f":"Import!E18540","v":0}]
[145,{"$f":"Import!E16341","v":"Select"},{"$f":"Import!E16541","v":"Select"},{"$f":"Import!E16741","v":"Select"},{"$f":"Import!E16941","v":"Select"},{"$f":"Import!E17141","v":"Select"},{"$f":"Import!E17341","v":"Select"},{"$f":"Import!E17541","v":"Select"},{"$f":"Import!E17741","v":0},{"$f":"Import!E17941","v":0},{"$f":"Import!E18141","v":0},{"$f":"Import!E18341","v":0},{"$f":"Import!E18541","v":0}]
[146,{"$f":"Import!E16342","v":"Select"},{"$f":"Import!E16542","v":"Select"},{"$f":"Import!E16742","v":"Select"},{"$f":"Import!E16942","v":"Select"},{"$f":"Import!E17142","v":"Select"},{"$f":"Import!E17342","v":"Select"},{"$f":"Import!E17542","v":"Select"},{"$f":"Import!E17742","v":0},{"$f":"Import!E17942","v":0},{"$f":"Import!E18142","v":0},{"$f":"Import!E18342","v":0},{"$f":"Import!E18542","v":0}]
[147,{"$f":"Import!E16343","v":"Select"},{"$f":"Import!E16543","v":"Select"},{"$f":"Import!E16743","v":"Select"},{"$f":"Import!E16943","v":"Select"},{"$f":"Import!E17143","v":"Select"},{"$f":"Import!E17343","v":"Select"},{"$f":"Import!E17543","v":"Select"},{"$f":"Import!E17743","v":0},{"$f":"Import!E17943","v":0},{"$f":"Import!E18143","v":0},{"$f":"Import!E18343","v":0},{"$f":"Import!E18543","v":0}]
[148,{"$f":"Import!E16344","v":"Select"},{"$f":"Import!E16544","v":"Select"},{"$f":"Import!E16744","v":"Select"},{"$f":"Import!E16944","v":"Select"},{"$f":"Import!E17144","v":"Select"},{"$f":"Import!E17344","v":"Select"},{"$f":"Import!E17544","v":"Select"},{"$f":"Import!E17744","v":0},{"$f":"Import!E17944","v":0},{"$f":"Import!E18144","v":0},{"$f":"Import!E18344","v":0},{"$f":"Import!E18544","v":0}]
[149,{"$f":"Import!E16345","v":"Select"},{"$f":"Import!E16545","v":"Select"},{"$f":"Import!E16745","v":"Select"},{"$f":"Import!E16945","v":"Select"},{"$f":"Import!E17145","v":"Select"},{"$f":"Import!E17345","v":"Select"},{"$f":"Import!E17545","v":"Select"},{"$f":"Import!E17745","v":0},{"$f":"Import!E17945","v":0},{"$f":"Import!E18145","v":0},{"$f":"Import!E18345","v":0},{"$f":"Import!E18545","v":0}]
[150,{"$f":"Import!E16346","v":"Select"},{"$f":"Import!E16546","v":"Select"},{"$f":"Import!E16746","v":"Select"},{"$f":"Import!E16946","v":"Select"},{"$f":"Import!E17146","v":"Select"},{"$f":"Import!E17346","v":"Select"},{"$f":"Import!E17546","v":"Select"},{"$f":"Import!E17746","v":0},{"$f":"Import!E17946","v":0},{"$f":"Import!E18146","v":0},{"$f":"Import!E18346","v":0},{"$f":"Import!E18546","v":0}]
[151,{"$f":"Import!E16347","v":"Select"},{"$f":"Import!E16547","v":"Select"},{"$f":"Import!E16747","v":"Select"},{"$f":"Import!E16947","v":"Select"},{"$f":"Import!E17147","v":"Select"},{"$f":"Import!E17347","v":"Select"},{"$f":"Import!E17547","v":"Select"},{"$f":"Import!E17747","v":0},{"$f":"Import!E17947","v":0},{"$f":"Import!E18147","v":0},{"$f":"Import!E18347","v":0},{"$f":"Import!E18547","v":0}]
[152,{"$f":"Import!E16348","v":"Select"},{"$f":"Import!E16548","v":"Select"},{"$f":"Import!E16748","v":"Select"},{"$f":"Import!E16948","v":"Select"},{"$f":"Import!E17148","v":"Select"},{"$f":"Import!E17348","v":"Select"},{"$f":"Import!E17548","v":"Select"},{"$f":"Import!E17748","v":0},{"$f":"Import!E17948","v":0},{"$f":"Import!E18148","v":0},{"$f":"Import!E18348","v":0},{"$f":"Import!E18548","v":0}]
[153,{"$f":"Import!E16349","v":"Select"},{"$f":"Import!E16549","v":"Select"},{"$f":"Import!E16749","v":"Select"},{"$f":"Import!E16949","v":"Select"},{"$f":"Import!E17149","v":"Select"},{"$f":"Import!E17349","v":"Select"},{"$f":"Import!E17549","v":"Select"},{"$f":"Import!E17749","v":0},{"$f":"Import!E17949","v":0},{"$f":"Import!E18149","v":0},{"$f":"Import!E18349","v":0},{"$f":"Import!E18549","v":0}]
[154,{"$f":"Import!E16350","v":"Select"},{"$f":"Import!E16550","v":"Select"},{"$f":"Import!E16750","v":"Select"},{"$f":"Import!E16950","v":"Select"},{"$f":"Import!E17150","v":"Select"},{"$f":"Import!E17350","v":"Select"},{"$f":"Import!E17550","v":"Select"},{"$f":"Import!E17750","v":0},{"$f":"Import!E17950","v":0},{"$f":"Import!E18150","v":0},{"$f":"Import!E18350","v":0},{"$f":"Import!E18550","v":0}]
[155,{"$f":"Import!E16351","v":"Select"},{"$f":"Import!E16551","v":"Select"},{"$f":"Import!E16751","v":"Select"},{"$f":"Import!E16951","v":"Select"},{"$f":"Import!E17151","v":"Select"},{"$f":"Import!E17351","v":"Select"},{"$f":"Import!E17551","v":"Select"},{"$f":"Import!E17751","v":0},{"$f":"Import!E17951","v":0},{"$f":"Import!E18151","v":0},{"$f":"Import!E18351","v":0},{"$f":"Import!E18551","v":0}]
[156,{"$f":"Import!E16352","v":"Select"},{"$f":"Import!E16552","v":"Select"},{"$f":"Import!E16752","v":"Select"},{"$f":"Import!E16952","v":"Select"},{"$f":"Import!E17152","v":"Select"},{"$f":"Import!E17352","v":"Select"},{"$f":"Import!E17552","v":"Select"},{"$f":"Import!E17752","v":0},{"$f":"Import!E17952","v":0},{"$f":"Import!E18152","v":0},{"$f":"Import!E18352","v":0},{"$f":"Import!E18552","v":0}]
[157,{"$f":"Import!E16353","v":"Select"},{"$f":"Import!E16553","v":"Select"},{"$f":"Import!E16753","v":"Select"},{"$f":"Import!E16953","v":"Select"},{"$f":"Import!E17153","v":"Select"},{"$f":"Import!E17353","v":"Select"},{"$f":"Import!E17553","v":"Select"},{"$f":"Import!E17753","v":0},{"$f":"Import!E17953","v":0},{"$f":"Import!E18153","v":0},{"$f":"Import!E18353","v":0},{"$f":"Import!E18553","v":0}]
[158,{"$f":"Import!E16354","v":"Select"},{"$f":"Import!E16554","v":"Select"},{"$f":"Import!E16754","v":"Select"},{"$f":"Import!E16954","v":"Select"},{"$f":"Import!E17154","v":"Select"},{"$f":"Import!E17354","v":"Select"},{"$f":"Import!E17554","v":"Select"},{"$f":"Import!E17754","v":0},{"$f":"Import!E17954","v":0},{"$f":"Import!E18154","v":0},{"$f":"Import!E18354","v":0},{"$f":"Import!E18554","v":0}]
[159,{"$f":"Import!E16355","v":"Select"},{"$f":"Import!E16555","v":"Select"},{"$f":"Import!E16755","v":"Select"},{"$f":"Import!E16955","v":"Select"},{"$f":"Import!E17155","v":"Select"},{"$f":"Import!E17355","v":"Select"},{"$f":"Import!E17555","v":"Select"},{"$f":"Import!E17755","v":0},{"$f":"Import!E17955","v":0},{"$f":"Import!E18155","v":0},{"$f":"Import!E18355","v":0},{"$f":"Import!E18555","v":0}]
[160,{"$f":"Import!E16356","v":"Select"},{"$f":"Import!E16556","v":"Select"},{"$f":"Import!E16756","v":"Select"},{"$f":"Import!E16956","v":"Select"},{"$f":"Import!E17156","v":"Select"},{"$f":"Import!E17356","v":"Select"},{"$f":"Import!E17556","v":"Select"},{"$f":"Import!E17756","v":0},{"$f":"Import!E17956","v":0},{"$f":"Import!E18156","v":0},{"$f":"Import!E18356","v":0},{"$f":"Import!E18556","v":0}]
[161,{"$f":"Import!E16357","v":"Select"},{"$f":"Import!E16557","v":"Select"},{"$f":"Import!E16757","v":"Select"},{"$f":"Import!E16957","v":"Select"},{"$f":"Import!E17157","v":"Select"},{"$f":"Import!E17357","v":"Select"},{"$f":"Import!E17557","v":"Select"},{"$f":"Import!E17757","v":0},{"$f":"Import!E17957","v":0},{"$f":"Import!E18157","v":0},{"$f":"Import!E18357","v":0},{"$f":"Import!E18557","v":0}]
[162,{"$f":"Import!E16358","v":"Select"},{"$f":"Import!E16558","v":"Select"},{"$f":"Import!E16758","v":"Select"},{"$f":"Import!E16958","v":"Select"},{"$f":"Import!E17158","v":"Select"},{"$f":"Import!E17358","v":"Select"},{"$f":"Import!E17558","v":"Select"},{"$f":"Import!E17758","v":0},{"$f":"Import!E17958","v":0},{"$f":"Import!E18158","v":0},{"$f":"Import!E18358","v":0},{"$f":"Import!E18558","v":0}]
[163,{"$f":"Import!E16359","v":"Select"},{"$f":"Import!E16559","v":"Select"},{"$f":"Import!E16759","v":"Select"},{"$f":"Import!E16959","v":"Select"},{"$f":"Import!E17159","v":"Select"},{"$f":"Import!E17359","v":"Select"},{"$f":"Import!E17559","v":"Select"},{"$f":"Import!E17759","v":0},{"$f":"Import!E17959","v":0},{"$f":"Import!E18159","v":0},{"$f":"Import!E18359","v":0},{"$f":"Import!E18559","v":0}]
[164,{"$f":"Import!E16360","v":"Select"},{"$f":"Import!E16560","v":"Select"},{"$f":"Import!E16760","v":"Select"},{"$f":"Import!E16960","v":"Select"},{"$f":"Import!E17160","v":"Select"},{"$f":"Import!E17360","v":"Select"},{"$f":"Import!E17560","v":"Select"},{"$f":"Import!E17760","v":0},{"$f":"Import!E17960","v":0},{"$f":"Import!E18160","v":0},{"$f":"Import!E18360","v":0},{"$f":"Import!E18560","v":0}]
[165,{"$f":"Import!E16361","v":"Select"},{"$f":"Import!E16561","v":"Select"},{"$f":"Import!E16761","v":"Select"},{"$f":"Import!E16961","v":"Select"},{"$f":"Import!E17161","v":"Select"},{"$f":"Import!E17361","v":"Select"},{"$f":"Import!E17561","v":"Select"},{"$f":"Import!E17761","v":0},{"$f":"Import!E17961","v":0},{"$f":"Import!E18161","v":0},{"$f":"Import!E18361","v":0},{"$f":"Import!E18561","v":0}]
[166,{"$f":"Import!E16362","v":"Select"},{"$f":"Import!E16562","v":"Select"},{"$f":"Import!E16762","v":"Select"},{"$f":"Import!E16962","v":"Select"},{"$f":"Import!E17162","v":"Select"},{"$f":"Import!E17362","v":"Select"},{"$f":"Import!E17562","v":"Select"},{"$f":"Import!E17762","v":0},{"$f":"Import!E17962","v":0},{"$f":"Import!E18162","v":0},{"$f":"Import!E18362","v":0},{"$f":"Import!E18562","v":0}]
[167,{"$f":"Import!E16363","v":"Select"},{"$f":"Import!E16563","v":"Select"},{"$f":"Import!E16763","v":"Select"},{"$f":"Import!E16963","v":"Select"},{"$f":"Import!E17163","v":"Select"},{"$f":"Import!E17363","v":"Select"},{"$f":"Import!E17563","v":"Select"},{"$f":"Import!E17763","v":0},{"$f":"Import!E17963","v":0},{"$f":"Import!E18163","v":0},{"$f":"Import!E18363","v":0},{"$f":"Import!E18563","v":0}]
[168,{"$f":"Import!E16364","v":"Select"},{"$f":"Import!E16564","v":"Select"},{"$f":"Import!E16764","v":"Select"},{"$f":"Import!E16964","v":"Select"},{"$f":"Import!E17164","v":"Select"},{"$f":"Import!E17364","v":"Select"},{"$f":"Import!E17564","v":"Select"},{"$f":"Import!E17764","v":0},{"$f":"Import!E17964","v":0},{"$f":"Import!E18164","v":0},{"$f":"Import!E18364","v":0},{"$f":"Import!E18564","v":0}]
[169,{"$f":"Import!E16365","v":"Select"},{"$f":"Import!E16565","v":"Select"},{"$f":"Import!E16765","v":"Select"},{"$f":"Import!E16965","v":"Select"},{"$f":"Import!E17165","v":"Select"},{"$f":"Import!E17365","v":"Select"},{"$f":"Import!E17565","v":"Select"},{"$f":"Import!E17765","v":0},{"$f":"Import!E17965","v":0},{"$f":"Import!E18165","v":0},{"$f":"Import!E18365","v":0},{"$f":"Import!E18565","v":0}]
[170,{"$f":"Import!E16366","v":"Select"},{"$f":"Import!E16566","v":"Select"},{"$f":"Import!E16766","v":"Select"},{"$f":"Import!E16966","v":"Select"},{"$f":"Import!E17166","v":"Select"},{"$f":"Import!E17366","v":"Select"},{"$f":"Import!E17566","v":"Select"},{"$f":"Import!E17766","v":0},{"$f":"Import!E17966","v":0},{"$f":"Import!E18166","v":0},{"$f":"Import!E18366","v":0},{"$f":"Import!E18566","v":0}]
[171,{"$f":"Import!E16367","v":"Select"},{"$f":"Import!E16567","v":"Select"},{"$f":"Import!E16767","v":"Select"},{"$f":"Import!E16967","v":"Select"},{"$f":"Import!E17167","v":"Select"},{"$f":"Import!E17367","v":"Select"},{"$f":"Import!E17567","v":"Select"},{"$f":"Import!E17767","v":0},{"$f":"Import!E17967","v":0},{"$f":"Import!E18167","v":0},{"$f":"Import!E18367","v":0},{"$f":"Import!E18567","v":0}]
[172,{"$f":"Import!E16368","v":"Select"},{"$f":"Import!E16568","v":"Select"},{"$f":"Import!E16768","v":"Select"},{"$f":"Import!E16968","v":"Select"},{"$f":"Import!E17168","v":"Select"},{"$f":"Import!E17368","v":"Select"},{"$f":"Import!E17568","v":"Select"},{"$f":"Import!E17768","v":0},{"$f":"Import!E17968","v":0},{"$f":"Import!E18168","v":0},{"$f":"Import!E18368","v":0},{"$f":"Import!E18568","v":0}]
[173,{"$f":"Import!E16369","v":"Select"},{"$f":"Import!E16569","v":"Select"},{"$f":"Import!E16769","v":"Select"},{"$f":"Import!E16969","v":"Select"},{"$f":"Import!E17169","v":"Select"},{"$f":"Import!E17369","v":"Select"},{"$f":"Import!E17569","v":"Select"},{"$f":"Import!E17769","v":0},{"$f":"Import!E17969","v":0},{"$f":"Import!E18169","v":0},{"$f":"Import!E18369","v":0},{"$f":"Import!E18569","v":0}]
[174,{"$f":"Import!E16370","v":"Select"},{"$f":"Import!E16570","v":"Select"},{"$f":"Import!E16770","v":"Select"},{"$f":"Import!E16970","v":"Select"},{"$f":"Import!E17170","v":"Select"},{"$f":"Import!E17370","v":"Select"},{"$f":"Import!E17570","v":"Select"},{"$f":"Import!E17770","v":0},{"$f":"Import!E17970","v":0},{"$f":"Import!E18170","v":0},{"$f":"Import!E18370","v":0},{"$f":"Import!E18570","v":0}]
[175,{"$f":"Import!E16371","v":"Select"},{"$f":"Import!E16571","v":"Select"},{"$f":"Import!E16771","v":"Select"},{"$f":"Import!E16971","v":"Select"},{"$f":"Import!E17171","v":"Select"},{"$f":"Import!E17371","v":"Select"},{"$f":"Import!E17571","v":"Select"},{"$f":"Import!E17771","v":0},{"$f":"Import!E17971","v":0},{"$f":"Import!E18171","v":0},{"$f":"Import!E18371","v":0},{"$f":"Import!E18571","v":0}]
[176,{"$f":"Import!E16372","v":"Select"},{"$f":"Import!E16572","v":"Select"},{"$f":"Import!E16772","v":"Select"},{"$f":"Import!E16972","v":"Select"},{"$f":"Import!E17172","v":"Select"},{"$f":"Import!E17372","v":"Select"},{"$f":"Import!E17572","v":"Select"},{"$f":"Import!E17772","v":0},{"$f":"Import!E17972","v":0},{"$f":"Import!E18172","v":0},{"$f":"Import!E18372","v":0},{"$f":"Import!E18572","v":0}]
[177,{"$f":"Import!E16373","v":"Select"},{"$f":"Import!E16573","v":"Select"},{"$f":"Import!E16773","v":"Select"},{"$f":"Import!E16973","v":"Select"},{"$f":"Import!E17173","v":"Select"},{"$f":"Import!E17373","v":"Select"},{"$f":"Import!E17573","v":"Select"},{"$f":"Import!E17773","v":0},{"$f":"Import!E17973","v":0},{"$f":"Import!E18173","v":0},{"$f":"Import!E18373","v":0},{"$f":"Import!E18573","v":0}]
[178,{"$f":"Import!E16374","v":"Select"},{"$f":"Import!E16574","v":"Select"},{"$f":"Import!E16774","v":"Select"},{"$f":"Import!E16974","v":"Select"},{"$f":"Import!E17174","v":"Select"},{"$f":"Import!E17374","v":"Select"},{"$f":"Import!E17574","v":"Select"},{"$f":"Import!E17774","v":0},{"$f":"Import!E17974","v":0},{"$f":"Import!E18174","v":0},{"$f":"Import!E18374","v":0},{"$f":"Import!E18574","v":0}]
[179,{"$f":"Import!E16375","v":"Select"},{"$f":"Import!E16575","v":"Select"},{"$f":"Import!E16775","v":"Select"},{"$f":"Import!E16975","v":"Select"},{"$f":"Import!E17175","v":"Select"},{"$f":"Import!E17375","v":"Select"},{"$f":"Import!E17575","v":"Select"},{"$f":"Import!E17775","v":0},{"$f":"Import!E17975","v":0},{"$f":"Import!E18175","v":0},{"$f":"Import!E18375","v":0},{"$f":"Import!E18575","v":0}]
[180,{"$f":"Import!E16376","v":"Select"},{"$f":"Import!E16576","v":"Select"},{"$f":"Import!E16776","v":"Select"},{"$f":"Import!E16976","v":"Select"},{"$f":"Import!E17176","v":"Select"},{"$f":"Import!E17376","v":"Select"},{"$f":"Import!E17576","v":"Select"},{"$f":"Import!E17776","v":0},{"$f":"Import!E17976","v":0},{"$f":"Import!E18176","v":0},{"$f":"Import!E18376","v":0},{"$f":"Import!E18576","v":0}]
[181,{"$f":"Import!E16377","v":"Select"},{"$f":"Import!E16577","v":"Select"},{"$f":"Import!E16777","v":"Select"},{"$f":"Import!E16977","v":"Select"},{"$f":"Import!E17177","v":"Select"},{"$f":"Import!E17377","v":"Select"},{"$f":"Import!E17577","v":"Select"},{"$f":"Import!E17777","v":0},{"$f":"Import!E17977","v":0},{"$f":"Import!E18177","v":0},{"$f":"Import!E18377","v":0},{"$f":"Import!E18577","v":0}]
[182,{"$f":"Import!E16378","v":"Select"},{"$f":"Import!E16578","v":"Select"},{"$f":"Import!E16778","v":"Select"},{"$f":"Import!E16978","v":"Select"},{"$f":"Import!E17178","v":"Select"},{"$f":"Import!E17378","v":"Select"},{"$f":"Import!E17578","v":"Select"},{"$f":"Import!E17778","v":0},{"$f":"Import!E17978","v":0},{"$f":"Import!E18178","v":0},{"$f":"Import!E18378","v":0},{"$f":"Import!E18578","v":0}]
[183,{"$f":"Import!E16379","v":"Select"},{"$f":"Import!E16579","v":"Select"},{"$f":"Import!E16779","v":"Select"},{"$f":"Import!E16979","v":"Select"},{"$f":"Import!E17179","v":"Select"},{"$f":"Import!E17379","v":"Select"},{"$f":"Import!E17579","v":"Select"},{"$f":"Import!E17779","v":0},{"$f":"Import!E17979","v":0},{"$f":"Import!E18179","v":0},{"$f":"Import!E18379","v":0},{"$f":"Import!E18579","v":0}]
[184,{"$f":"Import!E16380","v":"Select"},{"$f":"Import!E16580","v":"Select"},{"$f":"Import!E16780","v":"Select"},{"$f":"Import!E16980","v":"Select"},{"$f":"Import!E17180","v":"Select"},{"$f":"Import!E17380","v":"Select"},{"$f":"Import!E17580","v":"Select"},{"$f":"Import!E17780","v":0},{"$f":"Import!E17980","v":0},{"$f":"Import!E18180","v":0},{"$f":"Import!E18380","v":0},{"$f":"Import!E18580","v":0}]
[185,{"$f":"Import!E16381","v":"Select"},{"$f":"Import!E16581","v":"Select"},{"$f":"Import!E16781","v":"Select"},{"$f":"Import!E16981","v":"Select"},{"$f":"Import!E17181","v":"Select"},{"$f":"Import!E17381","v":"Select"},{"$f":"Import!E17581","v":"Select"},{"$f":"Import!E17781","v":0},{"$f":"Import!E17981","v":0},{"$f":"Import!E18181","v":0},{"$f":"Import!E18381","v":0},{"$f":"Import!E18581","v":0}]
[186,{"$f":"Import!E16382","v":"Select"},{"$f":"Import!E16582","v":"Select"},{"$f":"Import!E16782","v":"Select"},{"$f":"Import!E16982","v":"Select"},{"$f":"Import!E17182","v":"Select"},{"$f":"Import!E17382","v":"Select"},{"$f":"Import!E17582","v":"Select"},{"$f":"Import!E17782","v":0},{"$f":"Import!E17982","v":0},{"$f":"Import!E18182","v":0},{"$f":"Import!E18382","v":0},{"$f":"Import!E18582","v":0}]
[187,{"$f":"Import!E16383","v":"Select"},{"$f":"Import!E16583","v":"Select"},{"$f":"Import!E16783","v":"Select"},{"$f":"Import!E16983","v":"Select"},{"$f":"Import!E17183","v":"Select"},{"$f":"Import!E17383","v":"Select"},{"$f":"Import!E17583","v":"Select"},{"$f":"Import!E17783","v":0},{"$f":"Import!E17983","v":0},{"$f":"Import!E18183","v":0},{"$f":"Import!E18383","v":0},{"$f":"Import!E18583","v":0}]
[188,{"$f":"Import!E16384","v":"Select"},{"$f":"Import!E16584","v":"Select"},{"$f":"Import!E16784","v":"Select"},{"$f":"Import!E16984","v":"Select"},{"$f":"Import!E17184","v":"Select"},{"$f":"Import!E17384","v":"Select"},{"$f":"Import!E17584","v":"Select"},{"$f":"Import!E17784","v":0},{"$f":"Import!E17984","v":0},{"$f":"Import!E18184","v":0},{"$f":"Import!E18384","v":0},{"$f":"Import!E18584","v":0}]
[189,{"$f":"Import!E16385","v":"Select"},{"$f":"Import!E16585","v":"Select"},{"$f":"Import!E16785","v":"Select"},{"$f":"Import!E16985","v":"Select"},{"$f":"Import!E17185","v":"Select"},{"$f":"Import!E17385","v":"Select"},{"$f":"Import!E17585","v":"Select"},{"$f":"Import!E17785","v":0},{"$f":"Import!E17985","v":0},{"$f":"Import!E18185","v":0},{"$f":"Import!E18385","v":0},{"$f":"Import!E18585","v":0}]
[190,{"$f":"Import!E16386","v":"Select"},{"$f":"Import!E16586","v":"Select"},{"$f":"Import!E16786","v":"Select"},{"$f":"Import!E16986","v":"Select"},{"$f":"Import!E17186","v":"Select"},{"$f":"Import!E17386","v":"Select"},{"$f":"Import!E17586","v":"Select"},{"$f":"Import!E17786","v":0},{"$f":"Import!E17986","v":0},{"$f":"Import!E18186","v":0},{"$f":"Import!E18386","v":0},{"$f":"Import!E18586","v":0}]
[191,{"$f":"Import!E16387","v":"Select"},{"$f":"Import!E16587","v":"Select"},{"$f":"Import!E16787","v":"Select"},{"$f":"Import!E16987","v":"Select"},{"$f":"Import!E17187","v":"Select"},{"$f":"Import!E17387","v":"Select"},{"$f":"Import!E17587","v":"Select"},{"$f":"Import!E17787","v":0},{"$f":"Import!E17987","v":0},{"$f":"Import!E18187","v":0},{"$f":"Import!E18387","v":0},{"$f":"Import!E18587","v":0}]
[192,{"$f":"Import!E16388","v":"Select"},{"$f":"Import!E16588","v":"Select"},{"$f":"Import!E16788","v":"Select"},{"$f":"Import!E16988","v":"Select"},{"$f":"Import!E17188","v":"Select"},{"$f":"Import!E17388","v":"Select"},{"$f":"Import!E17588","v":"Select"},{"$f":"Import!E17788","v":0},{"$f":"Import!E17988","v":0},{"$f":"Import!E18188","v":0},{"$f":"Import!E18388","v":0},{"$f":"Import!E18588","v":0}]
[193,{"$f":"Import!E16389","v":"Select"},{"$f":"Import!E16589","v":"Select"},{"$f":"Import!E16789","v":"Select"},{"$f":"Import!E16989","v":"Select"},{"$f":"Import!E17189","v":"Select"},{"$f":"Import!E17389","v":"Select"},{"$f":"Import!E17589","v":"Select"},{"$f":"Import!E17789","v":0},{"$f":"Import!E17989","v":0},{"$f":"Import!E18189","v":0},{"$f":"Import!E18389","v":0},{"$f":"Import!E18589","v":0}]
[194,{"$f":"Import!E16390","v":"Select"},{"$f":"Import!E16590","v":"Select"},{"$f":"Import!E16790","v":"Select"},{"$f":"Import!E16990","v":"Select"},{"$f":"Import!E17190","v":"Select"},{"$f":"Import!E17390","v":"Select"},{"$f":"Import!E17590","v":"Select"},{"$f":"Import!E17790","v":0},{"$f":"Import!E17990","v":0},{"$f":"Import!E18190","v":0},{"$f":"Import!E18390","v":0},{"$f":"Import!E18590","v":0}]
[{"$f":"A1753+1","v":195},{"$f":"Import!E16391","v":"Select"},{"$f":"Import!E16591","v":"Select"},{"$f":"Import!E16791","v":"Select"},{"$f":"Import!E16991","v":"Select"},{"$f":"Import!E17191","v":"Select"},{"$f":"Import!E17391","v":"Select"},{"$f":"Import!E17591","v":"Select"},{"$f":"Import!E17791","v":0},{"$f":"Import!E17991","v":0},{"$f":"Import!E18191","v":0},{"$f":"Import!E18391","v":0},{"$f":"Import!E18591","v":0}]
[196,{"$f":"Import!E16392","v":"Select"},{"$f":"Import!E16592","v":"Select"},{"$f":"Import!E16792","v":"Select"},{"$f":"Import!E16992","v":"Select"},{"$f":"Import!E17192","v":"Select"},{"$f":"Import!E17392","v":"Select"},{"$f":"Import!E17592","v":"Select"},{"$f":"Import!E17792","v":0},{"$f":"Import!E17992","v":0},{"$f":"Import!E18192","v":0},{"$f":"Import!E18392","v":0},{"$f":"Import!E18592","v":0}]
[197,{"$f":"Import!E16393","v":"Select"},{"$f":"Import!E16593","v":"Select"},{"$f":"Import!E16793","v":"Select"},{"$f":"Import!E16993","v":"Select"},{"$f":"Import!E17193","v":"Select"},{"$f":"Import!E17393","v":"Select"},{"$f":"Import!E17593","v":"Select"},{"$f":"Import!E17793","v":0},{"$f":"Import!E17993","v":0},{"$f":"Import!E18193","v":0},{"$f":"Import!E18393","v":0},{"$f":"Import!E18593","v":0}]
[198,{"$f":"Import!E16394","v":"Select"},{"$f":"Import!E16594","v":"Select"},{"$f":"Import!E16794","v":"Select"},{"$f":"Import!E16994","v":"Select"},{"$f":"Import!E17194","v":"Select"},{"$f":"Import!E17394","v":"Select"},{"$f":"Import!E17594","v":"Select"},{"$f":"Import!E17794","v":0},{"$f":"Import!E17994","v":0},{"$f":"Import!E18194","v":0},{"$f":"Import!E18394","v":0},{"$f":"Import!E18594","v":0}]
[199,{"$f":"Import!E16395","v":"Select"},{"$f":"Import!E16595","v":"Select"},{"$f":"Import!E16795","v":"Select"},{"$f":"Import!E16995","v":"Select"},{"$f":"Import!E17195","v":"Select"},{"$f":"Import!E17395","v":"Select"},{"$f":"Import!E17595","v":"Select"},{"$f":"Import!E17795","v":0},{"$f":"Import!E17995","v":0},{"$f":"Import!E18195","v":0},{"$f":"Import!E18395","v":0},{"$f":"Import!E18595","v":0}]
[200,{"$f":"Import!E16396","v":"Select"},{"$f":"Import!E16596","v":"Select"},{"$f":"Import!E16796","v":"Select"},{"$f":"Import!E16996","v":"Select"},{"$f":"Import!E17196","v":"Select"},{"$f":"Import!E17396","v":"Select"},{"$f":"Import!E17596","v":"Select"},{"$f":"Import!E17796","v":0},{"$f":"Import!E17996","v":0},{"$f":"Import!E18196","v":0},{"$f":"Import!E18396","v":0},{"$f":"Import!E18596","v":0}]
[]
[null,"Total Derivatives",null,null,null,null,null,null,{"$f":"SUM(I1560:I1759)","v":0},{"$f":"SUM(J1560:J1759)","v":0},{"$f":"SUM(K1560:K1759)","v":0}]
[]
[null,"(J) INFORMATION ON EXPOSURES TO FINANCIAL INSTITUTIONS AND UNLISTED COUNTERPARTIES"]
[null,null,null,null,null,"Commercial Loans and Mortgages"]
[null,null,{"$f":"YEAR($C$3)","v":2023},"Fair Value",null,null,"Securitisations ","Other debt securities"]
[null,"Financial Institutions","Equities","Corporate Bonds","Corporate Loans",null,null,null,null,"Comments"]
[1,"Exposure to Financial Institutions (Banks, Insurance Companies, Other Financials) - Investment Grade, BSCR Rating 1-3",{"$f":"Import!E18597","v":0},{"$f":"Import!E18601","v":0},{"$f":"Import!E18605","v":0},{"$f":"Import!E18609","v":0},{"$f":"Import!E18613","v":0},{"$f":"Import!E18617","v":0},null,{"$f":"Import!E18621","v":0}]
[2,"Exposure to Financial Institutions (Banks, Insurance Companies, Other Financials) - Investment Grade, BSCR Rating 4",{"$f":"Import!E18598","v":0},{"$f":"Import!E18602","v":0},{"$f":"Import!E18606","v":0},{"$f":"Import!E18610","v":0},{"$f":"Import!E18614","v":0},{"$f":"Import!E18618","v":0},null,{"$f":"Import!E18622","v":0}]
[3,"Exposure to Financial Institutions (Banks, Insurance Companies, Other Financials) - Below Investment Grade",{"$f":"Import!E18599","v":0},{"$f":"Import!E18603","v":0},{"$f":"Import!E18607","v":0},{"$f":"Import!E18611","v":0},{"$f":"Import!E18615","v":0},{"$f":"Import!E18619","v":0},null,{"$f":"Import!E18623","v":0}]
[4,"Exposure to Financial Institutions (Banks, Insurance Companies, Other Financials) - Unrated",{"$f":"Import!E18600","v":0},{"$f":"Import!E18604","v":0},{"$f":"Import!E18608","v":0},{"$f":"Import!E18612","v":0},{"$f":"Import!E18616","v":0},{"$f":"Import!E18620","v":0},null,{"$f":"Import!E18624","v":0}]
[]
[null,"Total Exposures to Financial Institutions",{"$f":"SUM(C1767:C1770)","v":0},{"$f":"SUM(D1767:D1770)","v":0},0,0,0,0]
[]
[null,"Of which","Equities","Corporate Bonds","Corporate Loans","Other",null,null,null,"Comments"]
[5,"- exposures to Banks",{"$f":"Import!E18625","v":0},{"$f":"Import!E18628","v":0},{"$f":"Import!E18631","v":0},{"$f":"Import!E18634","v":0},null,null,null,{"$f":"Import!E18637","v":0}]
[6,"- exposures to Insurers",{"$f":"Import!E18626","v":0},{"$f":"Import!E18629","v":0},{"$f":"Import!E18632","v":0},{"$f":"Import!E18635","v":0},null,null,null,{"$f":"Import!E18638","v":0}]
[7,"- exposures to Other Financial Institutions",{"$f":"Import!E18627","v":0},{"$f":"Import!E18630","v":0},{"$f":"Import!E18633","v":0},{"$f":"Import!E18636","v":0},null,null,null,{"$f":"Import!E18639","v":0}]
[]
[null,"Total Exposures",{"$f":"SUM(C1775:C1777)","v":0},{"$f":"SUM(D1775:D1777)","v":0},{"$f":"SUM(E1775:E1777)","v":0},{"$f":"SUM(F1775:F1777)","v":0}]
[]
[null,null,{"$f":"YEAR($C$3)","v":2023},"Fair Value"]
[null,"Unlisted Counterparties","Equities","Corporate Bonds","Corporate Loans","Other",null,null,null,"Comments"]
[8,"Direct Exposure to Unlisted Counterparties - Investment Grade, BSCR Rating 1-3",{"$f":"Import!E18640","v":0},{"$f":"Import!E18644","v":0},{"$f":"Import!E18648","v":0},{"$f":"Import!E18652","v":0},null,null,null,{"$f":"Import!E18656","v":0}]
[9,"Direct Exposure to Unlisted Counterparties - Investment Grade, BSCR Rating 4",{"$f":"Import!E18641","v":0},{"$f":"Import!E18645","v":0},{"$f":"Import!E18649","v":0},{"$f":"Import!E18653","v":0},null,null,null,{"$f":"Import!E18657","v":0}]
[10,"Direct Exposure to Unlisted Counterparties - Below Investment Grade",{"$f":"Import!E18642","v":0},{"$f":"Import!E18646","v":0},{"$f":"Import!E18650","v":0},{"$f":"Import!E18654","v":0},null,null,null,{"$f":"Import!E18658","v":0}]
[11,"Direct Exposure to Unlisted Counterparties - Unrated",{"$f":"Import!E18643","v":0},{"$f":"Import!E18647","v":0},{"$f":"Import!E18651","v":0},{"$f":"Import!E18655","v":0},null,null,null,{"$f":"Import!E18659","v":0}]
[]
[null,"Total Direct Exposures to Unlisted Counterparties",{"$f":"SUM(C1783:C1786)","v":0},{"$f":"SUM(D1783:D1786)","v":0},0,0]
[]
[null,"(K) OTHER ASSETS"]
[]
[null,null,"Enter # of Asset Types",{"$f":"Import!E18660","v":0}]
[]
[null,null,null,null,{"$f":"YEAR($C$3)","v":2023},2023]
[null,"Asset Type","Currency","BSCR Rating","Nominal Amount","Fair Value","Comments"]
[1,{"$f":"Import!E18661","v":"Select"},{"$f":"Import!E18861","v":"Select"},{"$f":"Import!E19061","v":"Select"},{"$f":"Import!E19261","v":0},{"$f":"Import!E19461","v":0},{"$f":"Import!E19661","v":0}]
[{"$f":"A1796+1","v":2},{"$f":"Import!E18662","v":"Select"},{"$f":"Import!E18862","v":"Select"},{"$f":"Import!E19062","v":"Select"},{"$f":"Import!E19262","v":0},{"$f":"Import!E19462","v":0},{"$f":"Import!E19662","v":0}]
[{"$f":"A1797+1","v":3},{"$f":"Import!E18663","v":"Select"},{"$f":"Import!E18863","v":"Select"},{"$f":"Import!E19063","v":"Select"},{"$f":"Import!E19263","v":0},{"$f":"Import!E19463","v":0},{"$f":"Import!E19663","v":0}]
[4,{"$f":"Import!E18664","v":"Select"},{"$f":"Import!E18864","v":"Select"},{"$f":"Import!E19064","v":"Select"},{"$f":"Import!E19264","v":0},{"$f":"Import!E19464","v":0},{"$f":"Import!E19664","v":0}]
[5,{"$f":"Import!E18665","v":"Select"},{"$f":"Import!E18865","v":"Select"},{"$f":"Import!E19065","v":"Select"},{"$f":"Import!E19265","v":0},{"$f":"Import!E19465","v":0},{"$f":"Import!E19665","v":0}]
[6,{"$f":"Import!E18666","v":"Select"},{"$f":"Import!E18866","v":"Select"},{"$f":"Import!E19066","v":"Select"},{"$f":"Import!E19266","v":0},{"$f":"Import!E19466","v":0},{"$f":"Import!E19666","v":0}]
[7,{"$f":"Import!E18667","v":"Select"},{"$f":"Import!E18867","v":"Select"},{"$f":"Import!E19067","v":"Select"},{"$f":"Import!E19267","v":0},{"$f":"Import!E19467","v":0},{"$f":"Import!E19667","v":0}]
[8,{"$f":"Import!E18668","v":"Select"},{"$f":"Import!E18868","v":"Select"},{"$f":"Import!E19068","v":"Select"},{"$f":"Import!E19268","v":0},{"$f":"Import!E19468","v":0},{"$f":"Import!E19668","v":0}]
[9,{"$f":"Import!E18669","v":"Select"},{"$f":"Import!E18869","v":"Select"},{"$f":"Import!E19069","v":"Select"},{"$f":"Import!E19269","v":0},{"$f":"Import!E19469","v":0},{"$f":"Import!E19669","v":0}]
[10,{"$f":"Import!E18670","v":"Select"},{"$f":"Import!E18870","v":"Select"},{"$f":"Import!E19070","v":"Select"},{"$f":"Import!E19270","v":0},{"$f":"Import!E19470","v":0},{"$f":"Import!E19670","v":0}]
[11,{"$f":"Import!E18671","v":"Select"},{"$f":"Import!E18871","v":"Select"},{"$f":"Import!E19071","v":"Select"},{"$f":"Import!E19271","v":0},{"$f":"Import!E19471","v":0},{"$f":"Import!E19671","v":0}]
[12,{"$f":"Import!E18672","v":"Select"},{"$f":"Import!E18872","v":"Select"},{"$f":"Import!E19072","v":"Select"},{"$f":"Import!E19272","v":0},{"$f":"Import!E19472","v":0},{"$f":"Import!E19672","v":0}]
[13,{"$f":"Import!E18673","v":"Select"},{"$f":"Import!E18873","v":"Select"},{"$f":"Import!E19073","v":"Select"},{"$f":"Import!E19273","v":0},{"$f":"Import!E19473","v":0},{"$f":"Import!E19673","v":0}]
[14,{"$f":"Import!E18674","v":"Select"},{"$f":"Import!E18874","v":"Select"},{"$f":"Import!E19074","v":"Select"},{"$f":"Import!E19274","v":0},{"$f":"Import!E19474","v":0},{"$f":"Import!E19674","v":0}]
[15,{"$f":"Import!E18675","v":"Select"},{"$f":"Import!E18875","v":"Select"},{"$f":"Import!E19075","v":"Select"},{"$f":"Import!E19275","v":0},{"$f":"Import!E19475","v":0},{"$f":"Import!E19675","v":0}]
[16,{"$f":"Import!E18676","v":"Select"},{"$f":"Import!E18876","v":"Select"},{"$f":"Import!E19076","v":"Select"},{"$f":"Import!E19276","v":0},{"$f":"Import!E19476","v":0},{"$f":"Import!E19676","v":0}]
[17,{"$f":"Import!E18677","v":"Select"},{"$f":"Import!E18877","v":"Select"},{"$f":"Import!E19077","v":"Select"},{"$f":"Import!E19277","v":0},{"$f":"Import!E19477","v":0},{"$f":"Import!E19677","v":0}]
[18,{"$f":"Import!E18678","v":"Select"},{"$f":"Import!E18878","v":"Select"},{"$f":"Import!E19078","v":"Select"},{"$f":"Import!E19278","v":0},{"$f":"Import!E19478","v":0},{"$f":"Import!E19678","v":0}]
[19,{"$f":"Import!E18679","v":"Select"},{"$f":"Import!E18879","v":"Select"},{"$f":"Import!E19079","v":"Select"},{"$f":"Import!E19279","v":0},{"$f":"Import!E19479","v":0},{"$f":"Import!E19679","v":0}]
[20,{"$f":"Import!E18680","v":"Select"},{"$f":"Import!E18880","v":"Select"},{"$f":"Import!E19080","v":"Select"},{"$f":"Import!E19280","v":0},{"$f":"Import!E19480","v":0},{"$f":"Import!E19680","v":0}]
[21,{"$f":"Import!E18681","v":"Select"},{"$f":"Import!E18881","v":"Select"},{"$f":"Import!E19081","v":"Select"},{"$f":"Import!E19281","v":0},{"$f":"Import!E19481","v":0},{"$f":"Import!E19681","v":0}]
[22,{"$f":"Import!E18682","v":"Select"},{"$f":"Import!E18882","v":"Select"},{"$f":"Import!E19082","v":"Select"},{"$f":"Import!E19282","v":0},{"$f":"Import!E19482","v":0},{"$f":"Import!E19682","v":0}]
[23,{"$f":"Import!E18683","v":"Select"},{"$f":"Import!E18883","v":"Select"},{"$f":"Import!E19083","v":"Select"},{"$f":"Import!E19283","v":0},{"$f":"Import!E19483","v":0},{"$f":"Import!E19683","v":0}]
[24,{"$f":"Import!E18684","v":"Select"},{"$f":"Import!E18884","v":"Select"},{"$f":"Import!E19084","v":"Select"},{"$f":"Import!E19284","v":0},{"$f":"Import!E19484","v":0},{"$f":"Import!E19684","v":0}]
[25,{"$f":"Import!E18685","v":"Select"},{"$f":"Import!E18885","v":"Select"},{"$f":"Import!E19085","v":"Select"},{"$f":"Import!E19285","v":0},{"$f":"Import!E19485","v":0},{"$f":"Import!E19685","v":0}]
[26,{"$f":"Import!E18686","v":"Select"},{"$f":"Import!E18886","v":"Select"},{"$f":"Import!E19086","v":"Select"},{"$f":"Import!E19286","v":0},{"$f":"Import!E19486","v":0},{"$f":"Import!E19686","v":0}]
[27,{"$f":"Import!E18687","v":"Select"},{"$f":"Import!E18887","v":"Select"},{"$f":"Import!E19087","v":"Select"},{"$f":"Import!E19287","v":0},{"$f":"Import!E19487","v":0},{"$f":"Import!E19687","v":0}]
[28,{"$f":"Import!E18688","v":"Select"},{"$f":"Import!E18888","v":"Select"},{"$f":"Import!E19088","v":"Select"},{"$f":"Import!E19288","v":0},{"$f":"Import!E19488","v":0},{"$f":"Import!E19688","v":0}]
[29,{"$f":"Import!E18689","v":"Select"},{"$f":"Import!E18889","v":"Select"},{"$f":"Import!E19089","v":"Select"},{"$f":"Import!E19289","v":0},{"$f":"Import!E19489","v":0},{"$f":"Import!E19689","v":0}]
[30,{"$f":"Import!E18690","v":"Select"},{"$f":"Import!E18890","v":"Select"},{"$f":"Import!E19090","v":"Select"},{"$f":"Import!E19290","v":0},{"$f":"Import!E19490","v":0},{"$f":"Import!E19690","v":0}]
[31,{"$f":"Import!E18691","v":"Select"},{"$f":"Import!E18891","v":"Select"},{"$f":"Import!E19091","v":"Select"},{"$f":"Import!E19291","v":0},{"$f":"Import!E19491","v":0},{"$f":"Import!E19691","v":0}]
[32,{"$f":"Import!E18692","v":"Select"},{"$f":"Import!E18892","v":"Select"},{"$f":"Import!E19092","v":"Select"},{"$f":"Import!E19292","v":0},{"$f":"Import!E19492","v":0},{"$f":"Import!E19692","v":0}]
[33,{"$f":"Import!E18693","v":"Select"},{"$f":"Import!E18893","v":"Select"},{"$f":"Import!E19093","v":"Select"},{"$f":"Import!E19293","v":0},{"$f":"Import!E19493","v":0},{"$f":"Import!E19693","v":0}]
[34,{"$f":"Import!E18694","v":"Select"},{"$f":"Import!E18894","v":"Select"},{"$f":"Import!E19094","v":"Select"},{"$f":"Import!E19294","v":0},{"$f":"Import!E19494","v":0},{"$f":"Import!E19694","v":0}]
[35,{"$f":"Import!E18695","v":"Select"},{"$f":"Import!E18895","v":"Select"},{"$f":"Import!E19095","v":"Select"},{"$f":"Import!E19295","v":0},{"$f":"Import!E19495","v":0},{"$f":"Import!E19695","v":0}]
[36,{"$f":"Import!E18696","v":"Select"},{"$f":"Import!E18896","v":"Select"},{"$f":"Import!E19096","v":"Select"},{"$f":"Import!E19296","v":0},{"$f":"Import!E19496","v":0},{"$f":"Import!E19696","v":0}]
[37,{"$f":"Import!E18697","v":"Select"},{"$f":"Import!E18897","v":"Select"},{"$f":"Import!E19097","v":"Select"},{"$f":"Import!E19297","v":0},{"$f":"Import!E19497","v":0},{"$f":"Import!E19697","v":0}]
[38,{"$f":"Import!E18698","v":"Select"},{"$f":"Import!E18898","v":"Select"},{"$f":"Import!E19098","v":"Select"},{"$f":"Import!E19298","v":0},{"$f":"Import!E19498","v":0},{"$f":"Import!E19698","v":0}]
[39,{"$f":"Import!E18699","v":"Select"},{"$f":"Import!E18899","v":"Select"},{"$f":"Import!E19099","v":"Select"},{"$f":"Import!E19299","v":0},{"$f":"Import!E19499","v":0},{"$f":"Import!E19699","v":0}]
[40,{"$f":"Import!E18700","v":"Select"},{"$f":"Import!E18900","v":"Select"},{"$f":"Import!E19100","v":"Select"},{"$f":"Import!E19300","v":0},{"$f":"Import!E19500","v":0},{"$f":"Import!E19700","v":0}]
[41,{"$f":"Import!E18701","v":"Select"},{"$f":"Import!E18901","v":"Select"},{"$f":"Import!E19101","v":"Select"},{"$f":"Import!E19301","v":0},{"$f":"Import!E19501","v":0},{"$f":"Import!E19701","v":0}]
[42,{"$f":"Import!E18702","v":"Select"},{"$f":"Import!E18902","v":"Select"},{"$f":"Import!E19102","v":"Select"},{"$f":"Import!E19302","v":0},{"$f":"Import!E19502","v":0},{"$f":"Import!E19702","v":0}]
[43,{"$f":"Import!E18703","v":"Select"},{"$f":"Import!E18903","v":"Select"},{"$f":"Import!E19103","v":"Select"},{"$f":"Import!E19303","v":0},{"$f":"Import!E19503","v":0},{"$f":"Import!E19703","v":0}]
[44,{"$f":"Import!E18704","v":"Select"},{"$f":"Import!E18904","v":"Select"},{"$f":"Import!E19104","v":"Select"},{"$f":"Import!E19304","v":0},{"$f":"Import!E19504","v":0},{"$f":"Import!E19704","v":0}]
[45,{"$f":"Import!E18705","v":"Select"},{"$f":"Import!E18905","v":"Select"},{"$f":"Import!E19105","v":"Select"},{"$f":"Import!E19305","v":0},{"$f":"Import!E19505","v":0},{"$f":"Import!E19705","v":0}]
[46,{"$f":"Import!E18706","v":"Select"},{"$f":"Import!E18906","v":"Select"},{"$f":"Import!E19106","v":"Select"},{"$f":"Import!E19306","v":0},{"$f":"Import!E19506","v":0},{"$f":"Import!E19706","v":0}]
[47,{"$f":"Import!E18707","v":"Select"},{"$f":"Import!E18907","v":"Select"},{"$f":"Import!E19107","v":"Select"},{"$f":"Import!E19307","v":0},{"$f":"Import!E19507","v":0},{"$f":"Import!E19707","v":0}]
[48,{"$f":"Import!E18708","v":"Select"},{"$f":"Import!E18908","v":"Select"},{"$f":"Import!E19108","v":"Select"},{"$f":"Import!E19308","v":0},{"$f":"Import!E19508","v":0},{"$f":"Import!E19708","v":0}]
[49,{"$f":"Import!E18709","v":"Select"},{"$f":"Import!E18909","v":"Select"},{"$f":"Import!E19109","v":"Select"},{"$f":"Import!E19309","v":0},{"$f":"Import!E19509","v":0},{"$f":"Import!E19709","v":0}]
[50,{"$f":"Import!E18710","v":"Select"},{"$f":"Import!E18910","v":"Select"},{"$f":"Import!E19110","v":"Select"},{"$f":"Import!E19310","v":0},{"$f":"Import!E19510","v":0},{"$f":"Import!E19710","v":0}]
[51,{"$f":"Import!E18711","v":"Select"},{"$f":"Import!E18911","v":"Select"},{"$f":"Import!E19111","v":"Select"},{"$f":"Import!E19311","v":0},{"$f":"Import!E19511","v":0},{"$f":"Import!E19711","v":0}]
[52,{"$f":"Import!E18712","v":"Select"},{"$f":"Import!E18912","v":"Select"},{"$f":"Import!E19112","v":"Select"},{"$f":"Import!E19312","v":0},{"$f":"Import!E19512","v":0},{"$f":"Import!E19712","v":0}]
[53,{"$f":"Import!E18713","v":"Select"},{"$f":"Import!E18913","v":"Select"},{"$f":"Import!E19113","v":"Select"},{"$f":"Import!E19313","v":0},{"$f":"Import!E19513","v":0},{"$f":"Import!E19713","v":0}]
[54,{"$f":"Import!E18714","v":"Select"},{"$f":"Import!E18914","v":"Select"},{"$f":"Import!E19114","v":"Select"},{"$f":"Import!E19314","v":0},{"$f":"Import!E19514","v":0},{"$f":"Import!E19714","v":0}]
[55,{"$f":"Import!E18715","v":"Select"},{"$f":"Import!E18915","v":"Select"},{"$f":"Import!E19115","v":"Select"},{"$f":"Import!E19315","v":0},{"$f":"Import!E19515","v":0},{"$f":"Import!E19715","v":0}]
[56,{"$f":"Import!E18716","v":"Select"},{"$f":"Import!E18916","v":"Select"},{"$f":"Import!E19116","v":"Select"},{"$f":"Import!E19316","v":0},{"$f":"Import!E19516","v":0},{"$f":"Import!E19716","v":0}]
[57,{"$f":"Import!E18717","v":"Select"},{"$f":"Import!E18917","v":"Select"},{"$f":"Import!E19117","v":"Select"},{"$f":"Import!E19317","v":0},{"$f":"Import!E19517","v":0},{"$f":"Import!E19717","v":0}]
[58,{"$f":"Import!E18718","v":"Select"},{"$f":"Import!E18918","v":"Select"},{"$f":"Import!E19118","v":"Select"},{"$f":"Import!E19318","v":0},{"$f":"Import!E19518","v":0},{"$f":"Import!E19718","v":0}]
[59,{"$f":"Import!E18719","v":"Select"},{"$f":"Import!E18919","v":"Select"},{"$f":"Import!E19119","v":"Select"},{"$f":"Import!E19319","v":0},{"$f":"Import!E19519","v":0},{"$f":"Import!E19719","v":0}]
[60,{"$f":"Import!E18720","v":"Select"},{"$f":"Import!E18920","v":"Select"},{"$f":"Import!E19120","v":"Select"},{"$f":"Import!E19320","v":0},{"$f":"Import!E19520","v":0},{"$f":"Import!E19720","v":0}]
[61,{"$f":"Import!E18721","v":"Select"},{"$f":"Import!E18921","v":"Select"},{"$f":"Import!E19121","v":"Select"},{"$f":"Import!E19321","v":0},{"$f":"Import!E19521","v":0},{"$f":"Import!E19721","v":0}]
[62,{"$f":"Import!E18722","v":"Select"},{"$f":"Import!E18922","v":"Select"},{"$f":"Import!E19122","v":"Select"},{"$f":"Import!E19322","v":0},{"$f":"Import!E19522","v":0},{"$f":"Import!E19722","v":0}]
[63,{"$f":"Import!E18723","v":"Select"},{"$f":"Import!E18923","v":"Select"},{"$f":"Import!E19123","v":"Select"},{"$f":"Import!E19323","v":0},{"$f":"Import!E19523","v":0},{"$f":"Import!E19723","v":0}]
[64,{"$f":"Import!E18724","v":"Select"},{"$f":"Import!E18924","v":"Select"},{"$f":"Import!E19124","v":"Select"},{"$f":"Import!E19324","v":0},{"$f":"Import!E19524","v":0},{"$f":"Import!E19724","v":0}]
[65,{"$f":"Import!E18725","v":"Select"},{"$f":"Import!E18925","v":"Select"},{"$f":"Import!E19125","v":"Select"},{"$f":"Import!E19325","v":0},{"$f":"Import!E19525","v":0},{"$f":"Import!E19725","v":0}]
[66,{"$f":"Import!E18726","v":"Select"},{"$f":"Import!E18926","v":"Select"},{"$f":"Import!E19126","v":"Select"},{"$f":"Import!E19326","v":0},{"$f":"Import!E19526","v":0},{"$f":"Import!E19726","v":0}]
[{"$f":"A1861+1","v":67},{"$f":"Import!E18727","v":"Select"},{"$f":"Import!E18927","v":"Select"},{"$f":"Import!E19127","v":"Select"},{"$f":"Import!E19327","v":0},{"$f":"Import!E19527","v":0},{"$f":"Import!E19727","v":0}]
[68,{"$f":"Import!E18728","v":"Select"},{"$f":"Import!E18928","v":"Select"},{"$f":"Import!E19128","v":"Select"},{"$f":"Import!E19328","v":0},{"$f":"Import!E19528","v":0},{"$f":"Import!E19728","v":0}]
[69,{"$f":"Import!E18729","v":"Select"},{"$f":"Import!E18929","v":"Select"},{"$f":"Import!E19129","v":"Select"},{"$f":"Import!E19329","v":0},{"$f":"Import!E19529","v":0},{"$f":"Import!E19729","v":0}]
[70,{"$f":"Import!E18730","v":"Select"},{"$f":"Import!E18930","v":"Select"},{"$f":"Import!E19130","v":"Select"},{"$f":"Import!E19330","v":0},{"$f":"Import!E19530","v":0},{"$f":"Import!E19730","v":0}]
[71,{"$f":"Import!E18731","v":"Select"},{"$f":"Import!E18931","v":"Select"},{"$f":"Import!E19131","v":"Select"},{"$f":"Import!E19331","v":0},{"$f":"Import!E19531","v":0},{"$f":"Import!E19731","v":0}]
[72,{"$f":"Import!E18732","v":"Select"},{"$f":"Import!E18932","v":"Select"},{"$f":"Import!E19132","v":"Select"},{"$f":"Import!E19332","v":0},{"$f":"Import!E19532","v":0},{"$f":"Import!E19732","v":0}]
[73,{"$f":"Import!E18733","v":"Select"},{"$f":"Import!E18933","v":"Select"},{"$f":"Import!E19133","v":"Select"},{"$f":"Import!E19333","v":0},{"$f":"Import!E19533","v":0},{"$f":"Import!E19733","v":0}]
[74,{"$f":"Import!E18734","v":"Select"},{"$f":"Import!E18934","v":"Select"},{"$f":"Import!E19134","v":"Select"},{"$f":"Import!E19334","v":0},{"$f":"Import!E19534","v":0},{"$f":"Import!E19734","v":0}]
[75,{"$f":"Import!E18735","v":"Select"},{"$f":"Import!E18935","v":"Select"},{"$f":"Import!E19135","v":"Select"},{"$f":"Import!E19335","v":0},{"$f":"Import!E19535","v":0},{"$f":"Import!E19735","v":0}]
[76,{"$f":"Import!E18736","v":"Select"},{"$f":"Import!E18936","v":"Select"},{"$f":"Import!E19136","v":"Select"},{"$f":"Import!E19336","v":0},{"$f":"Import!E19536","v":0},{"$f":"Import!E19736","v":0}]
[77,{"$f":"Import!E18737","v":"Select"},{"$f":"Import!E18937","v":"Select"},{"$f":"Import!E19137","v":"Select"},{"$f":"Import!E19337","v":0},{"$f":"Import!E19537","v":0},{"$f":"Import!E19737","v":0}]
[78,{"$f":"Import!E18738","v":"Select"},{"$f":"Import!E18938","v":"Select"},{"$f":"Import!E19138","v":"Select"},{"$f":"Import!E19338","v":0},{"$f":"Import!E19538","v":0},{"$f":"Import!E19738","v":0}]
[79,{"$f":"Import!E18739","v":"Select"},{"$f":"Import!E18939","v":"Select"},{"$f":"Import!E19139","v":"Select"},{"$f":"Import!E19339","v":0},{"$f":"Import!E19539","v":0},{"$f":"Import!E19739","v":0}]
[80,{"$f":"Import!E18740","v":"Select"},{"$f":"Import!E18940","v":"Select"},{"$f":"Import!E19140","v":"Select"},{"$f":"Import!E19340","v":0},{"$f":"Import!E19540","v":0},{"$f":"Import!E19740","v":0}]
[81,{"$f":"Import!E18741","v":"Select"},{"$f":"Import!E18941","v":"Select"},{"$f":"Import!E19141","v":"Select"},{"$f":"Import!E19341","v":0},{"$f":"Import!E19541","v":0},{"$f":"Import!E19741","v":0}]
[82,{"$f":"Import!E18742","v":"Select"},{"$f":"Import!E18942","v":"Select"},{"$f":"Import!E19142","v":"Select"},{"$f":"Import!E19342","v":0},{"$f":"Import!E19542","v":0},{"$f":"Import!E19742","v":0}]
[83,{"$f":"Import!E18743","v":"Select"},{"$f":"Import!E18943","v":"Select"},{"$f":"Import!E19143","v":"Select"},{"$f":"Import!E19343","v":0},{"$f":"Import!E19543","v":0},{"$f":"Import!E19743","v":0}]
[84,{"$f":"Import!E18744","v":"Select"},{"$f":"Import!E18944","v":"Select"},{"$f":"Import!E19144","v":"Select"},{"$f":"Import!E19344","v":0},{"$f":"Import!E19544","v":0},{"$f":"Import!E19744","v":0}]
[85,{"$f":"Import!E18745","v":"Select"},{"$f":"Import!E18945","v":"Select"},{"$f":"Import!E19145","v":"Select"},{"$f":"Import!E19345","v":0},{"$f":"Import!E19545","v":0},{"$f":"Import!E19745","v":0}]
[86,{"$f":"Import!E18746","v":"Select"},{"$f":"Import!E18946","v":"Select"},{"$f":"Import!E19146","v":"Select"},{"$f":"Import!E19346","v":0},{"$f":"Import!E19546","v":0},{"$f":"Import!E19746","v":0}]
[87,{"$f":"Import!E18747","v":"Select"},{"$f":"Import!E18947","v":"Select"},{"$f":"Import!E19147","v":"Select"},{"$f":"Import!E19347","v":0},{"$f":"Import!E19547","v":0},{"$f":"Import!E19747","v":0}]
[88,{"$f":"Import!E18748","v":"Select"},{"$f":"Import!E18948","v":"Select"},{"$f":"Import!E19148","v":"Select"},{"$f":"Import!E19348","v":0},{"$f":"Import!E19548","v":0},{"$f":"Import!E19748","v":0}]
[89,{"$f":"Import!E18749","v":"Select"},{"$f":"Import!E18949","v":"Select"},{"$f":"Import!E19149","v":"Select"},{"$f":"Import!E19349","v":0},{"$f":"Import!E19549","v":0},{"$f":"Import!E19749","v":0}]
[90,{"$f":"Import!E18750","v":"Select"},{"$f":"Import!E18950","v":"Select"},{"$f":"Import!E19150","v":"Select"},{"$f":"Import!E19350","v":0},{"$f":"Import!E19550","v":0},{"$f":"Import!E19750","v":0}]
[91,{"$f":"Import!E18751","v":"Select"},{"$f":"Import!E18951","v":"Select"},{"$f":"Import!E19151","v":"Select"},{"$f":"Import!E19351","v":0},{"$f":"Import!E19551","v":0},{"$f":"Import!E19751","v":0}]
[92,{"$f":"Import!E18752","v":"Select"},{"$f":"Import!E18952","v":"Select"},{"$f":"Import!E19152","v":"Select"},{"$f":"Import!E19352","v":0},{"$f":"Import!E19552","v":0},{"$f":"Import!E19752","v":0}]
[93,{"$f":"Import!E18753","v":"Select"},{"$f":"Import!E18953","v":"Select"},{"$f":"Import!E19153","v":"Select"},{"$f":"Import!E19353","v":0},{"$f":"Import!E19553","v":0},{"$f":"Import!E19753","v":0}]
[94,{"$f":"Import!E18754","v":"Select"},{"$f":"Import!E18954","v":"Select"},{"$f":"Import!E19154","v":"Select"},{"$f":"Import!E19354","v":0},{"$f":"Import!E19554","v":0},{"$f":"Import!E19754","v":0}]
[95,{"$f":"Import!E18755","v":"Select"},{"$f":"Import!E18955","v":"Select"},{"$f":"Import!E19155","v":"Select"},{"$f":"Import!E19355","v":0},{"$f":"Import!E19555","v":0},{"$f":"Import!E19755","v":0}]
[96,{"$f":"Import!E18756","v":"Select"},{"$f":"Import!E18956","v":"Select"},{"$f":"Import!E19156","v":"Select"},{"$f":"Import!E19356","v":0},{"$f":"Import!E19556","v":0},{"$f":"Import!E19756","v":0}]
[97,{"$f":"Import!E18757","v":"Select"},{"$f":"Import!E18957","v":"Select"},{"$f":"Import!E19157","v":"Select"},{"$f":"Import!E19357","v":0},{"$f":"Import!E19557","v":0},{"$f":"Import!E19757","v":0}]
[98,{"$f":"Import!E18758","v":"Select"},{"$f":"Import!E18958","v":"Select"},{"$f":"Import!E19158","v":"Select"},{"$f":"Import!E19358","v":0},{"$f":"Import!E19558","v":0},{"$f":"Import!E19758","v":0}]
[99,{"$f":"Import!E18759","v":"Select"},{"$f":"Import!E18959","v":"Select"},{"$f":"Import!E19159","v":"Select"},{"$f":"Import!E19359","v":0},{"$f":"Import!E19559","v":0},{"$f":"Import!E19759","v":0}]
[100,{"$f":"Import!E18760","v":"Select"},{"$f":"Import!E18960","v":"Select"},{"$f":"Import!E19160","v":"Select"},{"$f":"Import!E19360","v":0},{"$f":"Import!E19560","v":0},{"$f":"Import!E19760","v":0}]
[101,{"$f":"Import!E18761","v":"Select"},{"$f":"Import!E18961","v":"Select"},{"$f":"Import!E19161","v":"Select"},{"$f":"Import!E19361","v":0},{"$f":"Import!E19561","v":0},{"$f":"Import!E19761","v":0}]
[102,{"$f":"Import!E18762","v":"Select"},{"$f":"Import!E18962","v":"Select"},{"$f":"Import!E19162","v":"Select"},{"$f":"Import!E19362","v":0},{"$f":"Import!E19562","v":0},{"$f":"Import!E19762","v":0}]
[103,{"$f":"Import!E18763","v":"Select"},{"$f":"Import!E18963","v":"Select"},{"$f":"Import!E19163","v":"Select"},{"$f":"Import!E19363","v":0},{"$f":"Import!E19563","v":0},{"$f":"Import!E19763","v":0}]
[104,{"$f":"Import!E18764","v":"Select"},{"$f":"Import!E18964","v":"Select"},{"$f":"Import!E19164","v":"Select"},{"$f":"Import!E19364","v":0},{"$f":"Import!E19564","v":0},{"$f":"Import!E19764","v":0}]
[105,{"$f":"Import!E18765","v":"Select"},{"$f":"Import!E18965","v":"Select"},{"$f":"Import!E19165","v":"Select"},{"$f":"Import!E19365","v":0},{"$f":"Import!E19565","v":0},{"$f":"Import!E19765","v":0}]
[106,{"$f":"Import!E18766","v":"Select"},{"$f":"Import!E18966","v":"Select"},{"$f":"Import!E19166","v":"Select"},{"$f":"Import!E19366","v":0},{"$f":"Import!E19566","v":0},{"$f":"Import!E19766","v":0}]
[107,{"$f":"Import!E18767","v":"Select"},{"$f":"Import!E18967","v":"Select"},{"$f":"Import!E19167","v":"Select"},{"$f":"Import!E19367","v":0},{"$f":"Import!E19567","v":0},{"$f":"Import!E19767","v":0}]
[108,{"$f":"Import!E18768","v":"Select"},{"$f":"Import!E18968","v":"Select"},{"$f":"Import!E19168","v":"Select"},{"$f":"Import!E19368","v":0},{"$f":"Import!E19568","v":0},{"$f":"Import!E19768","v":0}]
[109,{"$f":"Import!E18769","v":"Select"},{"$f":"Import!E18969","v":"Select"},{"$f":"Import!E19169","v":"Select"},{"$f":"Import!E19369","v":0},{"$f":"Import!E19569","v":0},{"$f":"Import!E19769","v":0}]
[110,{"$f":"Import!E18770","v":"Select"},{"$f":"Import!E18970","v":"Select"},{"$f":"Import!E19170","v":"Select"},{"$f":"Import!E19370","v":0},{"$f":"Import!E19570","v":0},{"$f":"Import!E19770","v":0}]
[111,{"$f":"Import!E18771","v":"Select"},{"$f":"Import!E18971","v":"Select"},{"$f":"Import!E19171","v":"Select"},{"$f":"Import!E19371","v":0},{"$f":"Import!E19571","v":0},{"$f":"Import!E19771","v":0}]
[112,{"$f":"Import!E18772","v":"Select"},{"$f":"Import!E18972","v":"Select"},{"$f":"Import!E19172","v":"Select"},{"$f":"Import!E19372","v":0},{"$f":"Import!E19572","v":0},{"$f":"Import!E19772","v":0}]
[113,{"$f":"Import!E18773","v":"Select"},{"$f":"Import!E18973","v":"Select"},{"$f":"Import!E19173","v":"Select"},{"$f":"Import!E19373","v":0},{"$f":"Import!E19573","v":0},{"$f":"Import!E19773","v":0}]
[114,{"$f":"Import!E18774","v":"Select"},{"$f":"Import!E18974","v":"Select"},{"$f":"Import!E19174","v":"Select"},{"$f":"Import!E19374","v":0},{"$f":"Import!E19574","v":0},{"$f":"Import!E19774","v":0}]
[115,{"$f":"Import!E18775","v":"Select"},{"$f":"Import!E18975","v":"Select"},{"$f":"Import!E19175","v":"Select"},{"$f":"Import!E19375","v":0},{"$f":"Import!E19575","v":0},{"$f":"Import!E19775","v":0}]
[116,{"$f":"Import!E18776","v":"Select"},{"$f":"Import!E18976","v":"Select"},{"$f":"Import!E19176","v":"Select"},{"$f":"Import!E19376","v":0},{"$f":"Import!E19576","v":0},{"$f":"Import!E19776","v":0}]
[117,{"$f":"Import!E18777","v":"Select"},{"$f":"Import!E18977","v":"Select"},{"$f":"Import!E19177","v":"Select"},{"$f":"Import!E19377","v":0},{"$f":"Import!E19577","v":0},{"$f":"Import!E19777","v":0}]
[118,{"$f":"Import!E18778","v":"Select"},{"$f":"Import!E18978","v":"Select"},{"$f":"Import!E19178","v":"Select"},{"$f":"Import!E19378","v":0},{"$f":"Import!E19578","v":0},{"$f":"Import!E19778","v":0}]
[119,{"$f":"Import!E18779","v":"Select"},{"$f":"Import!E18979","v":"Select"},{"$f":"Import!E19179","v":"Select"},{"$f":"Import!E19379","v":0},{"$f":"Import!E19579","v":0},{"$f":"Import!E19779","v":0}]
[120,{"$f":"Import!E18780","v":"Select"},{"$f":"Import!E18980","v":"Select"},{"$f":"Import!E19180","v":"Select"},{"$f":"Import!E19380","v":0},{"$f":"Import!E19580","v":0},{"$f":"Import!E19780","v":0}]
[121,{"$f":"Import!E18781","v":"Select"},{"$f":"Import!E18981","v":"Select"},{"$f":"Import!E19181","v":"Select"},{"$f":"Import!E19381","v":0},{"$f":"Import!E19581","v":0},{"$f":"Import!E19781","v":0}]
[122,{"$f":"Import!E18782","v":"Select"},{"$f":"Import!E18982","v":"Select"},{"$f":"Import!E19182","v":"Select"},{"$f":"Import!E19382","v":0},{"$f":"Import!E19582","v":0},{"$f":"Import!E19782","v":0}]
[123,{"$f":"Import!E18783","v":"Select"},{"$f":"Import!E18983","v":"Select"},{"$f":"Import!E19183","v":"Select"},{"$f":"Import!E19383","v":0},{"$f":"Import!E19583","v":0},{"$f":"Import!E19783","v":0}]
[124,{"$f":"Import!E18784","v":"Select"},{"$f":"Import!E18984","v":"Select"},{"$f":"Import!E19184","v":"Select"},{"$f":"Import!E19384","v":0},{"$f":"Import!E19584","v":0},{"$f":"Import!E19784","v":0}]
[125,{"$f":"Import!E18785","v":"Select"},{"$f":"Import!E18985","v":"Select"},{"$f":"Import!E19185","v":"Select"},{"$f":"Import!E19385","v":0},{"$f":"Import!E19585","v":0},{"$f":"Import!E19785","v":0}]
[126,{"$f":"Import!E18786","v":"Select"},{"$f":"Import!E18986","v":"Select"},{"$f":"Import!E19186","v":"Select"},{"$f":"Import!E19386","v":0},{"$f":"Import!E19586","v":0},{"$f":"Import!E19786","v":0}]
[127,{"$f":"Import!E18787","v":"Select"},{"$f":"Import!E18987","v":"Select"},{"$f":"Import!E19187","v":"Select"},{"$f":"Import!E19387","v":0},{"$f":"Import!E19587","v":0},{"$f":"Import!E19787","v":0}]
[128,{"$f":"Import!E18788","v":"Select"},{"$f":"Import!E18988","v":"Select"},{"$f":"Import!E19188","v":"Select"},{"$f":"Import!E19388","v":0},{"$f":"Import!E19588","v":0},{"$f":"Import!E19788","v":0}]
[129,{"$f":"Import!E18789","v":"Select"},{"$f":"Import!E18989","v":"Select"},{"$f":"Import!E19189","v":"Select"},{"$f":"Import!E19389","v":0},{"$f":"Import!E19589","v":0},{"$f":"Import!E19789","v":0}]
[130,{"$f":"Import!E18790","v":"Select"},{"$f":"Import!E18990","v":"Select"},{"$f":"Import!E19190","v":"Select"},{"$f":"Import!E19390","v":0},{"$f":"Import!E19590","v":0},{"$f":"Import!E19790","v":0}]
[{"$f":"A1925+1","v":131},{"$f":"Import!E18791","v":"Select"},{"$f":"Import!E18991","v":"Select"},{"$f":"Import!E19191","v":"Select"},{"$f":"Import!E19391","v":0},{"$f":"Import!E19591","v":0},{"$f":"Import!E19791","v":0}]
[132,{"$f":"Import!E18792","v":"Select"},{"$f":"Import!E18992","v":"Select"},{"$f":"Import!E19192","v":"Select"},{"$f":"Import!E19392","v":0},{"$f":"Import!E19592","v":0},{"$f":"Import!E19792","v":0}]
[133,{"$f":"Import!E18793","v":"Select"},{"$f":"Import!E18993","v":"Select"},{"$f":"Import!E19193","v":"Select"},{"$f":"Import!E19393","v":0},{"$f":"Import!E19593","v":0},{"$f":"Import!E19793","v":0}]
[134,{"$f":"Import!E18794","v":"Select"},{"$f":"Import!E18994","v":"Select"},{"$f":"Import!E19194","v":"Select"},{"$f":"Import!E19394","v":0},{"$f":"Import!E19594","v":0},{"$f":"Import!E19794","v":0}]
[135,{"$f":"Import!E18795","v":"Select"},{"$f":"Import!E18995","v":"Select"},{"$f":"Import!E19195","v":"Select"},{"$f":"Import!E19395","v":0},{"$f":"Import!E19595","v":0},{"$f":"Import!E19795","v":0}]
[136,{"$f":"Import!E18796","v":"Select"},{"$f":"Import!E18996","v":"Select"},{"$f":"Import!E19196","v":"Select"},{"$f":"Import!E19396","v":0},{"$f":"Import!E19596","v":0},{"$f":"Import!E19796","v":0}]
[137,{"$f":"Import!E18797","v":"Select"},{"$f":"Import!E18997","v":"Select"},{"$f":"Import!E19197","v":"Select"},{"$f":"Import!E19397","v":0},{"$f":"Import!E19597","v":0},{"$f":"Import!E19797","v":0}]
[138,{"$f":"Import!E18798","v":"Select"},{"$f":"Import!E18998","v":"Select"},{"$f":"Import!E19198","v":"Select"},{"$f":"Import!E19398","v":0},{"$f":"Import!E19598","v":0},{"$f":"Import!E19798","v":0}]
[139,{"$f":"Import!E18799","v":"Select"},{"$f":"Import!E18999","v":"Select"},{"$f":"Import!E19199","v":"Select"},{"$f":"Import!E19399","v":0},{"$f":"Import!E19599","v":0},{"$f":"Import!E19799","v":0}]
[140,{"$f":"Import!E18800","v":"Select"},{"$f":"Import!E19000","v":"Select"},{"$f":"Import!E19200","v":"Select"},{"$f":"Import!E19400","v":0},{"$f":"Import!E19600","v":0},{"$f":"Import!E19800","v":0}]
[141,{"$f":"Import!E18801","v":"Select"},{"$f":"Import!E19001","v":"Select"},{"$f":"Import!E19201","v":"Select"},{"$f":"Import!E19401","v":0},{"$f":"Import!E19601","v":0},{"$f":"Import!E19801","v":0}]
[142,{"$f":"Import!E18802","v":"Select"},{"$f":"Import!E19002","v":"Select"},{"$f":"Import!E19202","v":"Select"},{"$f":"Import!E19402","v":0},{"$f":"Import!E19602","v":0},{"$f":"Import!E19802","v":0}]
[143,{"$f":"Import!E18803","v":"Select"},{"$f":"Import!E19003","v":"Select"},{"$f":"Import!E19203","v":"Select"},{"$f":"Import!E19403","v":0},{"$f":"Import!E19603","v":0},{"$f":"Import!E19803","v":0}]
[144,{"$f":"Import!E18804","v":"Select"},{"$f":"Import!E19004","v":"Select"},{"$f":"Import!E19204","v":"Select"},{"$f":"Import!E19404","v":0},{"$f":"Import!E19604","v":0},{"$f":"Import!E19804","v":0}]
[145,{"$f":"Import!E18805","v":"Select"},{"$f":"Import!E19005","v":"Select"},{"$f":"Import!E19205","v":"Select"},{"$f":"Import!E19405","v":0},{"$f":"Import!E19605","v":0},{"$f":"Import!E19805","v":0}]
[146,{"$f":"Import!E18806","v":"Select"},{"$f":"Import!E19006","v":"Select"},{"$f":"Import!E19206","v":"Select"},{"$f":"Import!E19406","v":0},{"$f":"Import!E19606","v":0},{"$f":"Import!E19806","v":0}]
[147,{"$f":"Import!E18807","v":"Select"},{"$f":"Import!E19007","v":"Select"},{"$f":"Import!E19207","v":"Select"},{"$f":"Import!E19407","v":0},{"$f":"Import!E19607","v":0},{"$f":"Import!E19807","v":0}]
[148,{"$f":"Import!E18808","v":"Select"},{"$f":"Import!E19008","v":"Select"},{"$f":"Import!E19208","v":"Select"},{"$f":"Import!E19408","v":0},{"$f":"Import!E19608","v":0},{"$f":"Import!E19808","v":0}]
[149,{"$f":"Import!E18809","v":"Select"},{"$f":"Import!E19009","v":"Select"},{"$f":"Import!E19209","v":"Select"},{"$f":"Import!E19409","v":0},{"$f":"Import!E19609","v":0},{"$f":"Import!E19809","v":0}]
[150,{"$f":"Import!E18810","v":"Select"},{"$f":"Import!E19010","v":"Select"},{"$f":"Import!E19210","v":"Select"},{"$f":"Import!E19410","v":0},{"$f":"Import!E19610","v":0},{"$f":"Import!E19810","v":0}]
[151,{"$f":"Import!E18811","v":"Select"},{"$f":"Import!E19011","v":"Select"},{"$f":"Import!E19211","v":"Select"},{"$f":"Import!E19411","v":0},{"$f":"Import!E19611","v":0},{"$f":"Import!E19811","v":0}]
[152,{"$f":"Import!E18812","v":"Select"},{"$f":"Import!E19012","v":"Select"},{"$f":"Import!E19212","v":"Select"},{"$f":"Import!E19412","v":0},{"$f":"Import!E19612","v":0},{"$f":"Import!E19812","v":0}]
[153,{"$f":"Import!E18813","v":"Select"},{"$f":"Import!E19013","v":"Select"},{"$f":"Import!E19213","v":"Select"},{"$f":"Import!E19413","v":0},{"$f":"Import!E19613","v":0},{"$f":"Import!E19813","v":0}]
[154,{"$f":"Import!E18814","v":"Select"},{"$f":"Import!E19014","v":"Select"},{"$f":"Import!E19214","v":"Select"},{"$f":"Import!E19414","v":0},{"$f":"Import!E19614","v":0},{"$f":"Import!E19814","v":0}]
[155,{"$f":"Import!E18815","v":"Select"},{"$f":"Import!E19015","v":"Select"},{"$f":"Import!E19215","v":"Select"},{"$f":"Import!E19415","v":0},{"$f":"Import!E19615","v":0},{"$f":"Import!E19815","v":0}]
[156,{"$f":"Import!E18816","v":"Select"},{"$f":"Import!E19016","v":"Select"},{"$f":"Import!E19216","v":"Select"},{"$f":"Import!E19416","v":0},{"$f":"Import!E19616","v":0},{"$f":"Import!E19816","v":0}]
[157,{"$f":"Import!E18817","v":"Select"},{"$f":"Import!E19017","v":"Select"},{"$f":"Import!E19217","v":"Select"},{"$f":"Import!E19417","v":0},{"$f":"Import!E19617","v":0},{"$f":"Import!E19817","v":0}]
[158,{"$f":"Import!E18818","v":"Select"},{"$f":"Import!E19018","v":"Select"},{"$f":"Import!E19218","v":"Select"},{"$f":"Import!E19418","v":0},{"$f":"Import!E19618","v":0},{"$f":"Import!E19818","v":0}]
[159,{"$f":"Import!E18819","v":"Select"},{"$f":"Import!E19019","v":"Select"},{"$f":"Import!E19219","v":"Select"},{"$f":"Import!E19419","v":0},{"$f":"Import!E19619","v":0},{"$f":"Import!E19819","v":0}]
[160,{"$f":"Import!E18820","v":"Select"},{"$f":"Import!E19020","v":"Select"},{"$f":"Import!E19220","v":"Select"},{"$f":"Import!E19420","v":0},{"$f":"Import!E19620","v":0},{"$f":"Import!E19820","v":0}]
[161,{"$f":"Import!E18821","v":"Select"},{"$f":"Import!E19021","v":"Select"},{"$f":"Import!E19221","v":"Select"},{"$f":"Import!E19421","v":0},{"$f":"Import!E19621","v":0},{"$f":"Import!E19821","v":0}]
[162,{"$f":"Import!E18822","v":"Select"},{"$f":"Import!E19022","v":"Select"},{"$f":"Import!E19222","v":"Select"},{"$f":"Import!E19422","v":0},{"$f":"Import!E19622","v":0},{"$f":"Import!E19822","v":0}]
[163,{"$f":"Import!E18823","v":"Select"},{"$f":"Import!E19023","v":"Select"},{"$f":"Import!E19223","v":"Select"},{"$f":"Import!E19423","v":0},{"$f":"Import!E19623","v":0},{"$f":"Import!E19823","v":0}]
[164,{"$f":"Import!E18824","v":"Select"},{"$f":"Import!E19024","v":"Select"},{"$f":"Import!E19224","v":"Select"},{"$f":"Import!E19424","v":0},{"$f":"Import!E19624","v":0},{"$f":"Import!E19824","v":0}]
[165,{"$f":"Import!E18825","v":"Select"},{"$f":"Import!E19025","v":"Select"},{"$f":"Import!E19225","v":"Select"},{"$f":"Import!E19425","v":0},{"$f":"Import!E19625","v":0},{"$f":"Import!E19825","v":0}]
[166,{"$f":"Import!E18826","v":"Select"},{"$f":"Import!E19026","v":"Select"},{"$f":"Import!E19226","v":"Select"},{"$f":"Import!E19426","v":0},{"$f":"Import!E19626","v":0},{"$f":"Import!E19826","v":0}]
[167,{"$f":"Import!E18827","v":"Select"},{"$f":"Import!E19027","v":"Select"},{"$f":"Import!E19227","v":"Select"},{"$f":"Import!E19427","v":0},{"$f":"Import!E19627","v":0},{"$f":"Import!E19827","v":0}]
[168,{"$f":"Import!E18828","v":"Select"},{"$f":"Import!E19028","v":"Select"},{"$f":"Import!E19228","v":"Select"},{"$f":"Import!E19428","v":0},{"$f":"Import!E19628","v":0},{"$f":"Import!E19828","v":0}]
[169,{"$f":"Import!E18829","v":"Select"},{"$f":"Import!E19029","v":"Select"},{"$f":"Import!E19229","v":"Select"},{"$f":"Import!E19429","v":0},{"$f":"Import!E19629","v":0},{"$f":"Import!E19829","v":0}]
[170,{"$f":"Import!E18830","v":"Select"},{"$f":"Import!E19030","v":"Select"},{"$f":"Import!E19230","v":"Select"},{"$f":"Import!E19430","v":0},{"$f":"Import!E19630","v":0},{"$f":"Import!E19830","v":0}]
[171,{"$f":"Import!E18831","v":"Select"},{"$f":"Import!E19031","v":"Select"},{"$f":"Import!E19231","v":"Select"},{"$f":"Import!E19431","v":0},{"$f":"Import!E19631","v":0},{"$f":"Import!E19831","v":0}]
[172,{"$f":"Import!E18832","v":"Select"},{"$f":"Import!E19032","v":"Select"},{"$f":"Import!E19232","v":"Select"},{"$f":"Import!E19432","v":0},{"$f":"Import!E19632","v":0},{"$f":"Import!E19832","v":0}]
[173,{"$f":"Import!E18833","v":"Select"},{"$f":"Import!E19033","v":"Select"},{"$f":"Import!E19233","v":"Select"},{"$f":"Import!E19433","v":0},{"$f":"Import!E19633","v":0},{"$f":"Import!E19833","v":0}]
[174,{"$f":"Import!E18834","v":"Select"},{"$f":"Import!E19034","v":"Select"},{"$f":"Import!E19234","v":"Select"},{"$f":"Import!E19434","v":0},{"$f":"Import!E19634","v":0},{"$f":"Import!E19834","v":0}]
[175,{"$f":"Import!E18835","v":"Select"},{"$f":"Import!E19035","v":"Select"},{"$f":"Import!E19235","v":"Select"},{"$f":"Import!E19435","v":0},{"$f":"Import!E19635","v":0},{"$f":"Import!E19835","v":0}]
[176,{"$f":"Import!E18836","v":"Select"},{"$f":"Import!E19036","v":"Select"},{"$f":"Import!E19236","v":"Select"},{"$f":"Import!E19436","v":0},{"$f":"Import!E19636","v":0},{"$f":"Import!E19836","v":0}]
[177,{"$f":"Import!E18837","v":"Select"},{"$f":"Import!E19037","v":"Select"},{"$f":"Import!E19237","v":"Select"},{"$f":"Import!E19437","v":0},{"$f":"Import!E19637","v":0},{"$f":"Import!E19837","v":0}]
[178,{"$f":"Import!E18838","v":"Select"},{"$f":"Import!E19038","v":"Select"},{"$f":"Import!E19238","v":"Select"},{"$f":"Import!E19438","v":0},{"$f":"Import!E19638","v":0},{"$f":"Import!E19838","v":0}]
[179,{"$f":"Import!E18839","v":"Select"},{"$f":"Import!E19039","v":"Select"},{"$f":"Import!E19239","v":"Select"},{"$f":"Import!E19439","v":0},{"$f":"Import!E19639","v":0},{"$f":"Import!E19839","v":0}]
[180,{"$f":"Import!E18840","v":"Select"},{"$f":"Import!E19040","v":"Select"},{"$f":"Import!E19240","v":"Select"},{"$f":"Import!E19440","v":0},{"$f":"Import!E19640","v":0},{"$f":"Import!E19840","v":0}]
[181,{"$f":"Import!E18841","v":"Select"},{"$f":"Import!E19041","v":"Select"},{"$f":"Import!E19241","v":"Select"},{"$f":"Import!E19441","v":0},{"$f":"Import!E19641","v":0},{"$f":"Import!E19841","v":0}]
[182,{"$f":"Import!E18842","v":"Select"},{"$f":"Import!E19042","v":"Select"},{"$f":"Import!E19242","v":"Select"},{"$f":"Import!E19442","v":0},{"$f":"Import!E19642","v":0},{"$f":"Import!E19842","v":0}]
[183,{"$f":"Import!E18843","v":"Select"},{"$f":"Import!E19043","v":"Select"},{"$f":"Import!E19243","v":"Select"},{"$f":"Import!E19443","v":0},{"$f":"Import!E19643","v":0},{"$f":"Import!E19843","v":0}]
[184,{"$f":"Import!E18844","v":"Select"},{"$f":"Import!E19044","v":"Select"},{"$f":"Import!E19244","v":"Select"},{"$f":"Import!E19444","v":0},{"$f":"Import!E19644","v":0},{"$f":"Import!E19844","v":0}]
[185,{"$f":"Import!E18845","v":"Select"},{"$f":"Import!E19045","v":"Select"},{"$f":"Import!E19245","v":"Select"},{"$f":"Import!E19445","v":0},{"$f":"Import!E19645","v":0},{"$f":"Import!E19845","v":0}]
[186,{"$f":"Import!E18846","v":"Select"},{"$f":"Import!E19046","v":"Select"},{"$f":"Import!E19246","v":"Select"},{"$f":"Import!E19446","v":0},{"$f":"Import!E19646","v":0},{"$f":"Import!E19846","v":0}]
[187,{"$f":"Import!E18847","v":"Select"},{"$f":"Import!E19047","v":"Select"},{"$f":"Import!E19247","v":"Select"},{"$f":"Import!E19447","v":0},{"$f":"Import!E19647","v":0},{"$f":"Import!E19847","v":0}]
[188,{"$f":"Import!E18848","v":"Select"},{"$f":"Import!E19048","v":"Select"},{"$f":"Import!E19248","v":"Select"},{"$f":"Import!E19448","v":0},{"$f":"Import!E19648","v":0},{"$f":"Import!E19848","v":0}]
[189,{"$f":"Import!E18849","v":"Select"},{"$f":"Import!E19049","v":"Select"},{"$f":"Import!E19249","v":"Select"},{"$f":"Import!E19449","v":0},{"$f":"Import!E19649","v":0},{"$f":"Import!E19849","v":0}]
[190,{"$f":"Import!E18850","v":"Select"},{"$f":"Import!E19050","v":"Select"},{"$f":"Import!E19250","v":"Select"},{"$f":"Import!E19450","v":0},{"$f":"Import!E19650","v":0},{"$f":"Import!E19850","v":0}]
[191,{"$f":"Import!E18851","v":"Select"},{"$f":"Import!E19051","v":"Select"},{"$f":"Import!E19251","v":"Select"},{"$f":"Import!E19451","v":0},{"$f":"Import!E19651","v":0},{"$f":"Import!E19851","v":0}]
[192,{"$f":"Import!E18852","v":"Select"},{"$f":"Import!E19052","v":"Select"},{"$f":"Import!E19252","v":"Select"},{"$f":"Import!E19452","v":0},{"$f":"Import!E19652","v":0},{"$f":"Import!E19852","v":0}]
[193,{"$f":"Import!E18853","v":"Select"},{"$f":"Import!E19053","v":"Select"},{"$f":"Import!E19253","v":"Select"},{"$f":"Import!E19453","v":0},{"$f":"Import!E19653","v":0},{"$f":"Import!E19853","v":0}]
[194,{"$f":"Import!E18854","v":"Select"},{"$f":"Import!E19054","v":"Select"},{"$f":"Import!E19254","v":"Select"},{"$f":"Import!E19454","v":0},{"$f":"Import!E19654","v":0},{"$f":"Import!E19854","v":0}]
[{"$f":"A1989+1","v":195},{"$f":"Import!E18855","v":"Select"},{"$f":"Import!E19055","v":"Select"},{"$f":"Import!E19255","v":"Select"},{"$f":"Import!E19455","v":0},{"$f":"Import!E19655","v":0},{"$f":"Import!E19855","v":0}]
[196,{"$f":"Import!E18856","v":"Select"},{"$f":"Import!E19056","v":"Select"},{"$f":"Import!E19256","v":"Select"},{"$f":"Import!E19456","v":0},{"$f":"Import!E19656","v":0},{"$f":"Import!E19856","v":0}]
[197,{"$f":"Import!E18857","v":"Select"},{"$f":"Import!E19057","v":"Select"},{"$f":"Import!E19257","v":"Select"},{"$f":"Import!E19457","v":0},{"$f":"Import!E19657","v":0},{"$f":"Import!E19857","v":0}]
[198,{"$f":"Import!E18858","v":"Select"},{"$f":"Import!E19058","v":"Select"},{"$f":"Import!E19258","v":"Select"},{"$f":"Import!E19458","v":0},{"$f":"Import!E19658","v":0},{"$f":"Import!E19858","v":0}]
[199,{"$f":"Import!E18859","v":"Select"},{"$f":"Import!E19059","v":"Select"},{"$f":"Import!E19259","v":"Select"},{"$f":"Import!E19459","v":0},{"$f":"Import!E19659","v":0},{"$f":"Import!E19859","v":0}]
[200,{"$f":"Import!E18860","v":"Select"},{"$f":"Import!E19060","v":"Select"},{"$f":"Import!E19260","v":"Select"},{"$f":"Import!E19460","v":0},{"$f":"Import!E19660","v":0},{"$f":"Import!E19860","v":0}]
[]
[null,"Total Other Assets",null,null,null,{"$f":"SUM(F1796:F1995)","v":0}]
[]
[]
[null,"TOTAL ASSETS (Schedules VI and VIA)",null,null,null,{"$f":"F212+F620+F986+G1094+F1230+E1338+G1446+G1554+I1761+F1997+'Schedule VIA'!F2000","v":0}]
[]
[null,{"$f":"IF('Group Information'!$F$11=\"IFRS\",\"TOTAL ASSETS (Form 1A Line 15)\",\"TOTAL ASSETS (Form 1 Line 15)\")","v":"TOTAL ASSETS (Form 1 Line 15)"},null,null,null,{"$f":"IF('Group Information'!$F$11=\"IFRS\",'Form 1A'!M88,'Form 1'!F94)","v":0}]
[]
[null,{"$f":"IF('Group Information'!$F$11=\"IFRS\",\"Check Form 1\",\"Check Form 1\")","v":"Check Form 1"},null,null,null,{"$f":"IF(F2006=0,\"TRUE\",\"FALSE\")","v":"TRUE"}]
[]
[null,"Difference",null,null,null,{"$f":"ROUND(F2002-F2000,0)","v":0}]
[]
[null,"(L) INFORMATION ON SECURITIES LENDING AND REPURCHASE TRANSACTIONS"]
[]
[null,null,{"$f":"YEAR($C$3)","v":2023}]
[null,null,"Notional Value","Fair Value",null,"Comments"]
[null,"Securities Lending transactions",{"$f":"Import!E19861","v":0},{"$f":"Import!E19863","v":0},null,{"$f":"Import!E19865","v":0}]
[null,"Repo / Reverse Repo transactions",{"$f":"Import!E19862","v":0},{"$f":"Import!E19864","v":0},null,{"$f":"Import!E19866","v":0}]
[]
[null,"Total",{"$f":"SUM(C2012:C2013)","v":0},{"$f":"SUM(D2012:D2013)","v":0}]
[]
[null,"(M) INFORMATION ON FAIR VALUATION HIERARCHY"]
[]
[null,null,{"$f":"YEAR($C$3)","v":2023},"Fair Value"]
[null,null,"Unaffiliated","Affiliated","Total","Comments"]
[null,"Level 1 Assets (according to Fair Value hierarchy)",{"$f":"Import!E19867","v":0},{"$f":"Import!E19870","v":0},{"$f":"SUM(C2021:D2021)","v":0},{"$f":"Import!E19873","v":0}]
[null,"Level 2 Assets (according to Fair Value hierarchy)",{"$f":"Import!E19868","v":0},{"$f":"Import!E19871","v":0},{"$f":"SUM(C2022:D2022)","v":0},{"$f":"Import!E19874","v":0}]
[null,"Level 3 Assets (according to Fair Value hierarchy)",{"$f":"Import!E19869","v":0},{"$f":"Import!E19872","v":0},{"$f":"SUM(C2023:D2023)","v":0},{"$f":"Import!E19875","v":0}]
[]
[null,"Total",{"$f":"SUM(C2021:C2023)","v":0},{"$f":"SUM(D2021:D2023)","v":0},{"$f":"SUM(E2021:E2023)","v":0}]
[]
[null,"Check Securities Allocated by Levels 1-3",null,null,{"$f":"F212+F620+F986+G1094+F1230+E1338+G1446+G1554","v":0}]
[]
[null,"Difference",null,null,{"$f":"ROUND(E2025-E2027,0)","v":0},{"$f":"IF(E2029=0,\"TRUE\",\"FALSE\")","v":"TRUE"}]
[]
[null,"EFFECTIVE DURATION",null,null,{"$f":"Import!E19876","v":0}]
[]
[null,"EFFECTIVE CONVEXITY",null,null,{"$f":"Import!E19877","v":0}]
[]
[null,"Fair Values",{"$f":"YEAR(C3)","v":2023}]
[null,null,null,null,null,null,null,null,"If Other Rating Agency is used, specify the name of such agency (if applicable)",{"$f":"Import!E19878","v":0},{"$f":"Import!E19879","v":0},{"$f":"Import!E19880","v":0},{"$f":"Import!E19881","v":0}]
[null,"Asset/Rating Category","BSCR Rating","Moody's Investor's Service","Standard and Poor's","Dominion Bond Rating Service","Kroll Bond Rating Agency","Egan Jones Rating Company","Japan Credit Rating Agency","BMA-approved Internal Ratings","Other BMA-approved Rating Agency 1","Other BMA-approved Rating Agency 2","Other BMA-approved Rating Agency 3","Total"]
[null,"Financial institutions, brokers and dealers",1,{"$f":"Import!E19882","v":0},{"$f":"Import!E19923","v":0},{"$f":"Import!E19964","v":0},{"$f":"Import!E20005","v":0},{"$f":"Import!E20046","v":0},{"$f":"Import!E20087","v":0},{"$f":"Import!E20128","v":0},{"$f":"Import!E20169","v":0},{"$f":"Import!E20210","v":0},{"$f":"Import!E20251","v":0},{"$f":"SUM(D2038:M2038)","v":0}]
[null,"Financial institutions, brokers and dealers",2,{"$f":"Import!E19883","v":0},{"$f":"Import!E19924","v":0},{"$f":"Import!E19965","v":0},{"$f":"Import!E20006","v":0},{"$f":"Import!E20047","v":0},{"$f":"Import!E20088","v":0},{"$f":"Import!E20129","v":0},{"$f":"Import!E20170","v":0},{"$f":"Import!E20211","v":0},{"$f":"Import!E20252","v":0},{"$f":"SUM(D2039:M2039)","v":0}]
[null,"Financial institutions, brokers and dealers",3,{"$f":"Import!E19884","v":0},{"$f":"Import!E19925","v":0},{"$f":"Import!E19966","v":0},{"$f":"Import!E20007","v":0},{"$f":"Import!E20048","v":0},{"$f":"Import!E20089","v":0},{"$f":"Import!E20130","v":0},{"$f":"Import!E20171","v":0},{"$f":"Import!E20212","v":0},{"$f":"Import!E20253","v":0},0]
[null,"Financial institutions, brokers and dealers",4,{"$f":"Import!E19885","v":0},{"$f":"Import!E19926","v":0},{"$f":"Import!E19967","v":0},{"$f":"Import!E20008","v":0},{"$f":"Import!E20049","v":0},{"$f":"Import!E20090","v":0},{"$f":"Import!E20131","v":0},{"$f":"Import!E20172","v":0},{"$f":"Import!E20213","v":0},{"$f":"Import!E20254","v":0},0]
[null,"Financial institutions, brokers and dealers",5,{"$f":"Import!E19886","v":0},{"$f":"Import!E19927","v":0},{"$f":"Import!E19968","v":0},{"$f":"Import!E20009","v":0},{"$f":"Import!E20050","v":0},{"$f":"Import!E20091","v":0},{"$f":"Import!E20132","v":0},{"$f":"Import!E20173","v":0},{"$f":"Import!E20214","v":0},{"$f":"Import!E20255","v":0},0]
[null,"Financial institutions, brokers and dealers",6,{"$f":"Import!E19887","v":0},{"$f":"Import!E19928","v":0},{"$f":"Import!E19969","v":0},{"$f":"Import!E20010","v":0},{"$f":"Import!E20051","v":0},{"$f":"Import!E20092","v":0},{"$f":"Import!E20133","v":0},{"$f":"Import!E20174","v":0},{"$f":"Import!E20215","v":0},{"$f":"Import!E20256","v":0},0]
[null,"Financial institutions, brokers and dealers",7,{"$f":"Import!E19888","v":0},{"$f":"Import!E19929","v":0},{"$f":"Import!E19970","v":0},{"$f":"Import!E20011","v":0},{"$f":"Import!E20052","v":0},{"$f":"Import!E20093","v":0},{"$f":"Import!E20134","v":0},{"$f":"Import!E20175","v":0},{"$f":"Import!E20216","v":0},{"$f":"Import!E20257","v":0},0]
[null,"Financial institutions, brokers and dealers",8,{"$f":"Import!E19889","v":0},{"$f":"Import!E19930","v":0},{"$f":"Import!E19971","v":0},{"$f":"Import!E20012","v":0},{"$f":"Import!E20053","v":0},{"$f":"Import!E20094","v":0},{"$f":"Import!E20135","v":0},{"$f":"Import!E20176","v":0},{"$f":"Import!E20217","v":0},{"$f":"Import!E20258","v":0},0]
[null,"Insurance companies",1,{"$f":"Import!E19890","v":0},{"$f":"Import!E19931","v":0},{"$f":"Import!E19972","v":0},{"$f":"Import!E20013","v":0},{"$f":"Import!E20054","v":0},{"$f":"Import!E20095","v":0},{"$f":"Import!E20136","v":0},{"$f":"Import!E20177","v":0},{"$f":"Import!E20218","v":0},{"$f":"Import!E20259","v":0},0]
[null,"Insurance companies",2,{"$f":"Import!E19891","v":0},{"$f":"Import!E19932","v":0},{"$f":"Import!E19973","v":0},{"$f":"Import!E20014","v":0},{"$f":"Import!E20055","v":0},{"$f":"Import!E20096","v":0},{"$f":"Import!E20137","v":0},{"$f":"Import!E20178","v":0},{"$f":"Import!E20219","v":0},{"$f":"Import!E20260","v":0},0]
[null,"Insurance companies",3,{"$f":"Import!E19892","v":0},{"$f":"Import!E19933","v":0},{"$f":"Import!E19974","v":0},{"$f":"Import!E20015","v":0},{"$f":"Import!E20056","v":0},{"$f":"Import!E20097","v":0},{"$f":"Import!E20138","v":0},{"$f":"Import!E20179","v":0},{"$f":"Import!E20220","v":0},{"$f":"Import!E20261","v":0},0]
[null,"Insurance companies",4,{"$f":"Import!E19893","v":0},{"$f":"Import!E19934","v":0},{"$f":"Import!E19975","v":0},{"$f":"Import!E20016","v":0},{"$f":"Import!E20057","v":0},{"$f":"Import!E20098","v":0},{"$f":"Import!E20139","v":0},{"$f":"Import!E20180","v":0},{"$f":"Import!E20221","v":0},{"$f":"Import!E20262","v":0},0]
[null,"Insurance companies",5,{"$f":"Import!E19894","v":0},{"$f":"Import!E19935","v":0},{"$f":"Import!E19976","v":0},{"$f":"Import!E20017","v":0},{"$f":"Import!E20058","v":0},{"$f":"Import!E20099","v":0},{"$f":"Import!E20140","v":0},{"$f":"Import!E20181","v":0},{"$f":"Import!E20222","v":0},{"$f":"Import!E20263","v":0},0]
[null,"Insurance companies",6,{"$f":"Import!E19895","v":0},{"$f":"Import!E19936","v":0},{"$f":"Import!E19977","v":0},{"$f":"Import!E20018","v":0},{"$f":"Import!E20059","v":0},{"$f":"Import!E20100","v":0},{"$f":"Import!E20141","v":0},{"$f":"Import!E20182","v":0},{"$f":"Import!E20223","v":0},{"$f":"Import!E20264","v":0},0]
[null,"Insurance companies",7,{"$f":"Import!E19896","v":0},{"$f":"Import!E19937","v":0},{"$f":"Import!E19978","v":0},{"$f":"Import!E20019","v":0},{"$f":"Import!E20060","v":0},{"$f":"Import!E20101","v":0},{"$f":"Import!E20142","v":0},{"$f":"Import!E20183","v":0},{"$f":"Import!E20224","v":0},{"$f":"Import!E20265","v":0},0]
[null,"Insurance companies",8,{"$f":"Import!E19897","v":0},{"$f":"Import!E19938","v":0},{"$f":"Import!E19979","v":0},{"$f":"Import!E20020","v":0},{"$f":"Import!E20061","v":0},{"$f":"Import!E20102","v":0},{"$f":"Import!E20143","v":0},{"$f":"Import!E20184","v":0},{"$f":"Import!E20225","v":0},{"$f":"Import!E20266","v":0},0]
[null,"Corporate issuers",1,{"$f":"Import!E19898","v":0},{"$f":"Import!E19939","v":0},{"$f":"Import!E19980","v":0},{"$f":"Import!E20021","v":0},{"$f":"Import!E20062","v":0},{"$f":"Import!E20103","v":0},{"$f":"Import!E20144","v":0},{"$f":"Import!E20185","v":0},{"$f":"Import!E20226","v":0},{"$f":"Import!E20267","v":0},0]
[null,"Corporate issuers",2,{"$f":"Import!E19899","v":0},{"$f":"Import!E19940","v":0},{"$f":"Import!E19981","v":0},{"$f":"Import!E20022","v":0},{"$f":"Import!E20063","v":0},{"$f":"Import!E20104","v":0},{"$f":"Import!E20145","v":0},{"$f":"Import!E20186","v":0},{"$f":"Import!E20227","v":0},{"$f":"Import!E20268","v":0},0]
[null,"Corporate issuers",3,{"$f":"Import!E19900","v":0},{"$f":"Import!E19941","v":0},{"$f":"Import!E19982","v":0},{"$f":"Import!E20023","v":0},{"$f":"Import!E20064","v":0},{"$f":"Import!E20105","v":0},{"$f":"Import!E20146","v":0},{"$f":"Import!E20187","v":0},{"$f":"Import!E20228","v":0},{"$f":"Import!E20269","v":0},0]
[null,"Corporate issuers",4,{"$f":"Import!E19901","v":0},{"$f":"Import!E19942","v":0},{"$f":"Import!E19983","v":0},{"$f":"Import!E20024","v":0},{"$f":"Import!E20065","v":0},{"$f":"Import!E20106","v":0},{"$f":"Import!E20147","v":0},{"$f":"Import!E20188","v":0},{"$f":"Import!E20229","v":0},{"$f":"Import!E20270","v":0},0]
[null,"Corporate issuers",5,{"$f":"Import!E19902","v":0},{"$f":"Import!E19943","v":0},{"$f":"Import!E19984","v":0},{"$f":"Import!E20025","v":0},{"$f":"Import!E20066","v":0},{"$f":"Import!E20107","v":0},{"$f":"Import!E20148","v":0},{"$f":"Import!E20189","v":0},{"$f":"Import!E20230","v":0},{"$f":"Import!E20271","v":0},0]
[null,"Corporate issuers",6,{"$f":"Import!E19903","v":0},{"$f":"Import!E19944","v":0},{"$f":"Import!E19985","v":0},{"$f":"Import!E20026","v":0},{"$f":"Import!E20067","v":0},{"$f":"Import!E20108","v":0},{"$f":"Import!E20149","v":0},{"$f":"Import!E20190","v":0},{"$f":"Import!E20231","v":0},{"$f":"Import!E20272","v":0},0]
[null,"Corporate issuers",7,{"$f":"Import!E19904","v":0},{"$f":"Import!E19945","v":0},{"$f":"Import!E19986","v":0},{"$f":"Import!E20027","v":0},{"$f":"Import!E20068","v":0},{"$f":"Import!E20109","v":0},{"$f":"Import!E20150","v":0},{"$f":"Import!E20191","v":0},{"$f":"Import!E20232","v":0},{"$f":"Import!E20273","v":0},0]
[null,"Corporate issuers",8,{"$f":"Import!E19905","v":0},{"$f":"Import!E19946","v":0},{"$f":"Import!E19987","v":0},{"$f":"Import!E20028","v":0},{"$f":"Import!E20069","v":0},{"$f":"Import!E20110","v":0},{"$f":"Import!E20151","v":0},{"$f":"Import!E20192","v":0},{"$f":"Import!E20233","v":0},{"$f":"Import!E20274","v":0},0]
[null,"Issuers of asset-backed securities",1,{"$f":"Import!E19906","v":0},{"$f":"Import!E19947","v":0},{"$f":"Import!E19988","v":0},{"$f":"Import!E20029","v":0},{"$f":"Import!E20070","v":0},{"$f":"Import!E20111","v":0},{"$f":"Import!E20152","v":0},{"$f":"Import!E20193","v":0},{"$f":"Import!E20234","v":0},{"$f":"Import!E20275","v":0},0]
[null,"Issuers of asset-backed securities",2,{"$f":"Import!E19907","v":0},{"$f":"Import!E19948","v":0},{"$f":"Import!E19989","v":0},{"$f":"Import!E20030","v":0},{"$f":"Import!E20071","v":0},{"$f":"Import!E20112","v":0},{"$f":"Import!E20153","v":0},{"$f":"Import!E20194","v":0},{"$f":"Import!E20235","v":0},{"$f":"Import!E20276","v":0},0]
[null,"Issuers of asset-backed securities",3,{"$f":"Import!E19908","v":0},{"$f":"Import!E19949","v":0},{"$f":"Import!E19990","v":0},{"$f":"Import!E20031","v":0},{"$f":"Import!E20072","v":0},{"$f":"Import!E20113","v":0},{"$f":"Import!E20154","v":0},{"$f":"Import!E20195","v":0},{"$f":"Import!E20236","v":0},{"$f":"Import!E20277","v":0},0]
[null,"Issuers of asset-backed securities",4,{"$f":"Import!E19909","v":0},{"$f":"Import!E19950","v":0},{"$f":"Import!E19991","v":0},{"$f":"Import!E20032","v":0},{"$f":"Import!E20073","v":0},{"$f":"Import!E20114","v":0},{"$f":"Import!E20155","v":0},{"$f":"Import!E20196","v":0},{"$f":"Import!E20237","v":0},{"$f":"Import!E20278","v":0},0]
[null,"Issuers of asset-backed securities",5,{"$f":"Import!E19910","v":0},{"$f":"Import!E19951","v":0},{"$f":"Import!E19992","v":0},{"$f":"Import!E20033","v":0},{"$f":"Import!E20074","v":0},{"$f":"Import!E20115","v":0},{"$f":"Import!E20156","v":0},{"$f":"Import!E20197","v":0},{"$f":"Import!E20238","v":0},{"$f":"Import!E20279","v":0},0]
[null,"Issuers of asset-backed securities",6,{"$f":"Import!E19911","v":0},{"$f":"Import!E19952","v":0},{"$f":"Import!E19993","v":0},{"$f":"Import!E20034","v":0},{"$f":"Import!E20075","v":0},{"$f":"Import!E20116","v":0},{"$f":"Import!E20157","v":0},{"$f":"Import!E20198","v":0},{"$f":"Import!E20239","v":0},{"$f":"Import!E20280","v":0},0]
[null,"Issuers of asset-backed securities",7,{"$f":"Import!E19912","v":0},{"$f":"Import!E19953","v":0},{"$f":"Import!E19994","v":0},{"$f":"Import!E20035","v":0},{"$f":"Import!E20076","v":0},{"$f":"Import!E20117","v":0},{"$f":"Import!E20158","v":0},{"$f":"Import!E20199","v":0},{"$f":"Import!E20240","v":0},{"$f":"Import!E20281","v":0},0]
[null,"Issuers of asset-backed securities",8,{"$f":"Import!E19913","v":0},{"$f":"Import!E19954","v":0},{"$f":"Import!E19995","v":0},{"$f":"Import!E20036","v":0},{"$f":"Import!E20077","v":0},{"$f":"Import!E20118","v":0},{"$f":"Import!E20159","v":0},{"$f":"Import!E20200","v":0},{"$f":"Import!E20241","v":0},{"$f":"Import!E20282","v":0},0]
[null,"Government securities, municipal securities, foreign government securities",0,{"$f":"Import!E19914","v":0},{"$f":"Import!E19955","v":0},{"$f":"Import!E19996","v":0},{"$f":"Import!E20037","v":0},{"$f":"Import!E20078","v":0},{"$f":"Import!E20119","v":0},{"$f":"Import!E20160","v":0},{"$f":"Import!E20201","v":0},{"$f":"Import!E20242","v":0},{"$f":"Import!E20283","v":0},0]
[null,"Government securities, municipal securities, foreign government securities",1,{"$f":"Import!E19915","v":0},{"$f":"Import!E19956","v":0},{"$f":"Import!E19997","v":0},{"$f":"Import!E20038","v":0},{"$f":"Import!E20079","v":0},{"$f":"Import!E20120","v":0},{"$f":"Import!E20161","v":0},{"$f":"Import!E20202","v":0},{"$f":"Import!E20243","v":0},{"$f":"Import!E20284","v":0},0]
[null,"Government securities, municipal securities, foreign government securities",2,{"$f":"Import!E19916","v":0},{"$f":"Import!E19957","v":0},{"$f":"Import!E19998","v":0},{"$f":"Import!E20039","v":0},{"$f":"Import!E20080","v":0},{"$f":"Import!E20121","v":0},{"$f":"Import!E20162","v":0},{"$f":"Import!E20203","v":0},{"$f":"Import!E20244","v":0},{"$f":"Import!E20285","v":0},0]
[null,"Government securities, municipal securities, foreign government securities",3,{"$f":"Import!E19917","v":0},{"$f":"Import!E19958","v":0},{"$f":"Import!E19999","v":0},{"$f":"Import!E20040","v":0},{"$f":"Import!E20081","v":0},{"$f":"Import!E20122","v":0},{"$f":"Import!E20163","v":0},{"$f":"Import!E20204","v":0},{"$f":"Import!E20245","v":0},{"$f":"Import!E20286","v":0},0]
[null,"Government securities, municipal securities, foreign government securities",4,{"$f":"Import!E19918","v":0},{"$f":"Import!E19959","v":0},{"$f":"Import!E20000","v":0},{"$f":"Import!E20041","v":0},{"$f":"Import!E20082","v":0},{"$f":"Import!E20123","v":0},{"$f":"Import!E20164","v":0},{"$f":"Import!E20205","v":0},{"$f":"Import!E20246","v":0},{"$f":"Import!E20287","v":0},0]
[null,"Government securities, municipal securities, foreign government securities",5,{"$f":"Import!E19919","v":0},{"$f":"Import!E19960","v":0},{"$f":"Import!E20001","v":0},{"$f":"Import!E20042","v":0},{"$f":"Import!E20083","v":0},{"$f":"Import!E20124","v":0},{"$f":"Import!E20165","v":0},{"$f":"Import!E20206","v":0},{"$f":"Import!E20247","v":0},{"$f":"Import!E20288","v":0},0]
[null,"Government securities, municipal securities, foreign government securities",6,{"$f":"Import!E19920","v":0},{"$f":"Import!E19961","v":0},{"$f":"Import!E20002","v":0},{"$f":"Import!E20043","v":0},{"$f":"Import!E20084","v":0},{"$f":"Import!E20125","v":0},{"$f":"Import!E20166","v":0},{"$f":"Import!E20207","v":0},{"$f":"Import!E20248","v":0},{"$f":"Import!E20289","v":0},0]
[null,"Government securities, municipal securities, foreign government securities",7,{"$f":"Import!E19921","v":0},{"$f":"Import!E19962","v":0},{"$f":"Import!E20003","v":0},{"$f":"Import!E20044","v":0},{"$f":"Import!E20085","v":0},{"$f":"Import!E20126","v":0},{"$f":"Import!E20167","v":0},{"$f":"Import!E20208","v":0},{"$f":"Import!E20249","v":0},{"$f":"Import!E20290","v":0},0]
[null,"Government securities, municipal securities, foreign government securities",8,{"$f":"Import!E19922","v":0},{"$f":"Import!E19963","v":0},{"$f":"Import!E20004","v":0},{"$f":"Import!E20045","v":0},{"$f":"Import!E20086","v":0},{"$f":"Import!E20127","v":0},{"$f":"Import!E20168","v":0},{"$f":"Import!E20209","v":0},{"$f":"Import!E20250","v":0},{"$f":"Import!E20291","v":0},0]
[null,null,null,null,null,null,null,null,null,null,null,null,"Total",{"$f":"SUM(N2038:N2078)","v":0}]
[]
[null,"Total rated assets","BSCR Rating","Moody's Investor's Service","Standard and Poor's","Dominion Bond Rating Service","Kroll Bond Rating Agency","Egan Jones Rating Company","Japan Credit Rating Agency","BMA-approved Internal Ratings","Other BMA-approved Rating Agency 1","Other BMA-approved Rating Agency 2","Other BMA-approved Rating Agency 3","Total"]
[null,"Total rated assets",0,{"$f":"D2070","v":0},{"$f":"E2070","v":0},0,0,0,0,0,0,0,0,{"$f":"SUM(D2082:M2082)","v":0}]
[null,"Total rated assets",1,{"$f":"D2038+D2046+D2054+D2062+D2071","v":0},{"$f":"E2038+E2046+E2054+E2062+E2071","v":0},0,0,0,0,0,0,0,0,{"$f":"SUM(D2083:M2083)","v":0}]
[null,"Total rated assets",2,{"$f":"D2039+D2047+D2055+D2063+D2072","v":0},0,0,0,0,0,0,0,0,0,0]
[null,"Total rated assets",3,0,0,0,0,0,0,0,0,0,0,0]
[null,"Total rated assets",4,0,0,0,0,0,0,0,0,0,0,0]
[null,"Total rated assets",5,0,0,0,0,0,0,0,0,0,0,0]
[null,"Total rated assets",6,0,0,0,0,0,0,0,0,0,0,0]
[null,"Total rated assets",7,0,0,0,0,0,0,0,0,0,0,0]
[null,"Total rated assets",8,0,0,0,0,0,0,0,0,0,0,0]
[null,"Total rated assets","Total",{"$f":"SUM(D2082:D2090)","v":0},{"$f":"SUM(E2082:E2090)","v":0},0,0,0,0,0,0,0,0,0]
[]
[null,"Asset/Rating Category","BSCR Rating","Unrated"]
[null,"Financial institutions, brokers and dealers",8,{"$f":"Import!E20292","v":0}]
[null,"Insurance companies",8,{"$f":"Import!E20293","v":0}]
[null,"Corporate issuers",8,{"$f":"Import!E20294","v":0}]
[null,"Issuers of asset-backed securities",8,{"$f":"Import!E20295","v":0}]
[null,"Government securities, municipal securities, foreign government securities",8,{"$f":"Import!E20296","v":0}]
[null,"Total unrated assets","Total",{"$f":"SUM(D2094:D2098)","v":0}]
[]
[null,"Asset/Rating Category","BSCR Rating","Financial institutions, brokers and dealers","Insurance companies","Corporate issuers","Issuers of asset-backed securities","Government securities, municipal securities, foreign government securities","Total"]
[null,"Total",0,null,null,null,null,{"$f":"N2070","v":0},{"$f":"SUM(H2102)","v":0}]
[null,"Total",1,{"$f":"N2038","v":0},{"$f":"N2046","v":0},{"$f":"N2054","v":0},{"$f":"N2062","v":0},0,{"$f":"SUM(D2103:H2103)","v":0}]
[null,"Total",2,0,0,0,0,0,{"$f":"SUM(D2104:H2104)","v":0}]
[null,"Total",3,0,0,0,0,0,0]
[null,"Total",4,0,0,0,0,0,0]
[null,"Total",5,0,0,0,0,0,0]
[null,"Total",6,0,0,0,0,0,0]
[null,"Total",7,0,0,0,0,0,0]
[null,"Total",8,{"$f":"N2045+D2094","v":0},{"$f":"N2053+D2095","v":0},{"$f":"N2061+D2096","v":0},{"$f":"N2069+D2097","v":0},{"$f":"N2078+D2098","v":0},0]
[null,"Total fixed income assets","Total",{"$f":"SUM(D2103:D2110)","v":0},{"$f":"SUM(E2103:E2110)","v":0},{"$f":"SUM(F2103:F2110)","v":0},{"$f":"SUM(G2103:G2110)","v":0},{"$f":"SUM(H2102:H2110)","v":0},{"$f":"SUM(D2111:H2111)","v":0}]
[null,"Unrated","- of which unrated",{"$f":"D2094","v":0},{"$f":"D2095","v":0},{"$f":"D2096","v":0},{"$f":"D2097","v":0},{"$f":"D2098","v":0},{"$f":"SUM(D2112:H2112)","v":0}]
[]
[]
["Cash","Sovereign Bonds","RMBS - Agency","Listed Preferred Equity - Direct","Hedge Funds","Investment Income Due and Accrued","Energy","Holding Entity","Significant Influence","United States Dollars","Positive market value",null,null,null,null,"Residential Mortgages",null,"United States of America"]
["Certificates of Deposit","Municipals","RMBS - Non-agency","Listed Preferred Equity - ETF","Equity investments in Infrastructure","Accounts and Premiums Receivable","Materials","Operating Entity","Control","Euro","Negative market value",null,null,null,null,"Other Residential Loans",null,"Bermuda"]
["Short-Term Commercial Paper","Supranationals (multilateral development banks and international organizations)","CMBS","Listed Preferred Equity - Mutual Fund","Commodities - Direct","Reinsurance Balance Receivable","Industrial","Branch","Select","Afghanistan Afghanis","Select",null,null,null,null,"Commercial and Farm Mortgages",null,"United Kingdom of Great Britain and Northern Ireland"]
["Money Market Funds","Corporate bonds","CLOs","Private Preferred Equity - Direct","Commodities - ETF","Funds Held by Ceding Reinsurers","Consumer Discretionary","Select",null,"Albania Leke",null,null,null,null,null,"Other Commercial Real Estate Loans",null,"Canada"]
["Other","Private Placements","CDOs","Private Preferred Equity - Fund","Commodities - Mutual Funds","SAC - long-term business - variable annuities","Consumer Staples",null,null,"Armenia Drams",null,null,null,null,null,"Middle Market Loans"]
["Select","Other - Secured Bonds","Auto Loan ABS","Other - Listed Preferred Equity","Catastrophe Bonds","SAC - long-term business - others","Healthcare",null,null,"Netherlands Antilles Guilders",null,null,null,null,null,"Leveraged Loans",null,"Afghanistan"]
[null,"Other - Unsecured Bonds","Student Loan ABS","Other - Private Preferred Equity","Other Insurance-Linked Securities","SAC - general business","Financial",null,null,"Angola Kwanza",null,null,null,null,null,"Other Direct Private Lending",null,"Aland Islands"]
[null,"Exchange-Traded Fund - Sovereigns","Credit Card Receivable ABS","Select","Advances to Affiliates","Deposit assets","Select",null,null,"Argentina Pesos",null,null,null,null,null,"Infrastructure Loans",null,"Albania"]
[null,"Mutual Fund - Sovereigns","Other ABS",null,"Investments in Affiliates","Other Sundry Assets",null,null,null,"Australia Dollars",null,null,null,null,null,"Collateral Loans",null,"Algeria"]
[null,"Exchange-Traded Fund - Corporates","Select",null,"Other","Letter of Credit, Guarantees and Other Instruments",null,null,null,"Aruba Guilders",null,null,null,null,null,"Equity Release / Reverse Mortgages",null,"American Samoa"]
[null,"Mutual Fund - Corporates",null,null,"Select","Other",null,null,null,"Azerbaijan New Manats",null,null,null,null,null,"Policy Loans",null,"Andorra"]
[null,"Other Funds",null,null,null,"Select",null,null,null,"Bosnia and Herzegovina Convertible Marka",null,null,null,null,null,"Other Direct Loans",null,"Angola"]
[null,"Select",null,null,null,null,null,null,null,"Barbados Dollars",null,null,null,null,null,"Mortgage Loan Fund - Residential",null,"Anguilla"]
[null,null,null,null,null,null,null,null,null,"Bangladesh Taka",null,null,null,null,null,"Mortgage Loan Fund - Commercial",null,"Antigua and Barbuda"]
[null,null,null,null,null,null,null,null,null,"Bulgaria Leva",null,null,null,null,null,"Private Credit Fund",null,"Argentina"]
[null,null,null,null,null,null,null,null,null,"Bahrain Dinars",null,null,null,null,null,"Other Loan Fund",null,"Armenia"]
["Listed options","Equity","Hedging","Long / Receive Fixed / Sell Protection","Private Equities","Investment Income Due and Accrued","Direct Real Estate - Residential",null,null,"Burundi Francs",null,null,null,null,null,"Select",null,"Aruba"]
["Futures","Debt","Speculative","Short / Receive Floating / Buy Protection","Investment Funds","Accounts and Premiums Receivable","Direct Real Estate - Commercial",null,null,"Bermuda Dollars",null,null,null,null,null,null,null,"Australia"]
["Forwards","Interest Rate","Select","Select","Hedge Funds","Reinsurance Balance Receivable","Direct Real-Estate - Industrial",null,null,"Brunei Dollars",null,null,null,null,null,"Insured/Guaranteed Mortgages",null,"Austria"]
["Swaps","Inflation",null,null,"Private Credit Funds","SAC - long-term business - variable annuities","Direct Real Estate - Land",null,null,"Bolivia Bolivianos",null,null,null,null,null,"Other Commercial and Farm Mortgages",null,"Azerbaijan"]
["Swaptions","Credit",null,null,"Catastrophe Bonds","SAC - long-term business - others","Real Estate Funds - Residential",null,null,"Brazil Reais",null,null,null,null,null,"Other Residential Mortgages",null,"Bahamas"]
["OTC options","Currencies","Yes","Exchange-traded","Other Insurance-Linked Securities","SAC - general business","Real Estate Funds - Commercial",null,null,"Bahamas Dollars",null,null,null,null,null,"Mortgages Not In Good Standing",null,"Bahrain"]
["Other","Commodities","No","OTC – Centrally-cleared","Infrastructure Debt","Deposit assets","Real-Estate Funds - Industrial",null,null,"Bhutan Ngultrum",null,null,null,null,null,"Collateral Loans",null,"Bangladesh"]
["Select","Other","Select","OTC – Not centrally-cleared","Equity Investments in Infrastructure","Other Sundry Assets","Real Estate Funds - Land",null,null,"Botswana Pulas",null,null,null,null,null,"Middle Market Loans",null,"Barbados"]
[null,"Select",null,"Select","Other","Letter of Credit, Guarantees and Other Instruments","Direct Real Estate - Other",null,null,"Belarus Rubles",null,null,null,null,null,"Other Direct Private Lending",null,"Belarus"]
[null,null,null,null,"Select","Other","Real Estate Funds - Other",null,null,"Belize Dollars",null,null,null,null,null,"Policy Loans",null,"Belgium"]
[null,null,null,null,null,"Select","Select",null,null,"Canada Dollars",null,null,null,null,null,"Other",null,"Belize"]
[null,null,null,null,null,null,null,null,null,"Congo/Kinshasa Francs",null,null,null,null,null,"Select",null,"Benin"]
[null,null,null,null,null,null,null,null,null,"Switzerland Francs",null,null,null,null,null,null,null,"Bhutan"]
["BSCR Rating",null,"Listed Equity - Direct",null,null,null,null,null,null,"Chile Pesos",null,null,null,null,null,null,null,"Bolivia (Plurinational State of)"]
["Select",null,"Listed Equity - ETF",null,null,null,"Investment",null,null,"China Yuan Renminbi",null,null,null,null,null,null,null,"Bonaire, Sint Eustatius and Saba"]
["BSCR Rating 0",null,"Listed Equity - Mutual Fund",null,null,null,"Owner-occupied",null,null,"Colombia Pesos",null,null,null,null,null,null,null,"Bosnia and Herzegovina"]
["BSCR Rating 1",null,"Private Equity - Direct",null,null,null,"Select",null,null,"Costa Rica Colones",null,null,null,null,null,null,null,"Botswana"]
["BSCR Rating 2",null,"Private Equity - Fund",null,null,null,null,null,null,"Cuba Convertible Pesos",null,null,null,null,null,null,null,"Brazil"]
["BSCR Rating 3",null,"Other - Listed Equity",null,null,null,null,null,null,"Cuba Pesos",null,null,null,null,null,null,null,"British Virgin Islands"]
["BSCR Rating 4",null,"Other - Private Equity",null,null,null,null,null,null,"Cape Verde Escudos",null,null,null,null,null,null,null,"Brunei Darussalam"]
["BSCR Rating 5",null,"Select",null,null,null,null,null,null,"Czech Republic Koruny",null,null,null,null,null,null,null,"Bulgaria"]
["BSCR Rating 6",null,null,null,null,null,null,null,null,"Djibouti Francs",null,null,null,null,null,null,null,"Burkina Faso"]
["BSCR Rating 7",null,null,null,null,null,null,null,null,"Denmark Kroner",null,null,null,null,null,null,null,"Burundi"]
["BSCR Rating 8",null,null,null,null,null,null,null,null,"Dominican Republic Pesos",null,null,null,null,null,null,null,"Cabo Verde (Cape Verde)"]
[null,null,null,null,null,null,null,null,null,"Algeria Dinars",null,null,null,null,null,null,null,"Cambodia"]
[null,null,null,null,null,null,null,null,null,"Estonia Krooni",null,null,null,null,null,null,null,"Cameroon"]
[null,null,null,null,null,null,null,null,null,"Egypt Pounds",null,null,null,null,null,null,null,"Cayman Islands"]
[null,null,null,null,null,null,null,null,null,"Eritrea Nakfa",null,null,null,null,null,null,null,"Central African Republic"]
[null,null,null,null,null,null,null,null,null,"Ethiopia Birr",null,null,null,null,null,null,null,"Chad"]
[null,null,null,null,null,null,null,null,null,"Fiji Dollars",null,null,null,null,null,null,null,"Chile"]
[null,null,null,null,null,null,null,null,null,"Falkland Islands Pounds",null,null,null,null,null,null,null,"China"]
[null,null,null,null,null,null,null,null,null,"United Kingdom Pounds",null,null,null,null,null,null,null,"China, Hong Kong SAR"]
[null,null,null,null,null,null,null,null,null,"Georgia Lari",null,null,null,null,null,null,null,"China, Macao SAR "]
[null,null,null,null,null,null,null,null,null,"Guernsey Pounds",null,null,null,null,null,null,null,"Colombia"]
[null,null,null,null,null,null,null,null,null,"Ghana Cedis",null,null,null,null,null,null,null,"Comoros"]
[null,null,null,null,null,null,null,null,null,"Gibraltar Pounds",null,null,null,null,null,null,null,"Congo"]
[null,null,null,null,null,null,null,null,null,"Gambia Dalasi",null,null,null,null,null,null,null,"Cook Islands"]
[null,null,null,null,null,null,null,null,null,"Guinea Francs",null,null,null,null,null,null,null,"Costa Rica"]
[null,null,null,null,null,null,null,null,null,"Guatemala Quetzales",null,null,null,null,null,null,null,"Cote d' Ivoire"]
[null,null,null,null,null,null,null,null,null,"Guyana Dollars",null,null,null,null,null,null,null,"Croatia"]
[null,null,null,null,null,null,null,null,null,"Hong Kong Dollars",null,null,null,null,null,null,null,"Cuba"]
[null,null,null,null,null,null,null,null,null,"Honduras Lempiras",null,null,null,null,null,null,null,"Curacao"]
[null,null,null,null,null,null,null,null,null,"Croatia Kuna",null,null,null,null,null,null,null,"Cyprus"]
[null,null,null,null,null,null,null,null,null,"Haiti Gourdes",null,null,null,null,null,null,null,"Czech Republic"]
[null,null,null,null,null,null,null,null,null,"Hungary Forint",null,null,null,null,null,null,null,"Democratic People's Republic of Korea (North Korea)"]
[null,null,null,null,null,null,null,null,null,"Indonesia Rupiahs",null,null,null,null,null,null,null,"Democratic Republic of the Congo"]
[null,null,null,null,null,null,null,null,null,"Israel New Shekels",null,null,null,null,null,null,null,"Denmark"]
[null,null,null,null,null,null,null,null,null,"Isle of Man Pounds",null,null,null,null,null,null,null,"Djibouti"]
[null,null,null,null,null,null,null,null,null,"India Rupees",null,null,null,null,null,null,null,"Dominica"]
[null,null,null,null,null,null,null,null,null,"Iraq Dinars",null,null,null,null,null,null,null,"Dominican Republic"]
[null,null,null,null,null,null,null,null,null,"Iran Rials",null,null,null,null,null,null,null,"Ecuador"]
[null,null,null,null,null,null,null,null,null,"Iceland Kronur",null,null,null,null,null,null,null,"Egypt"]
[null,null,null,null,null,null,null,null,null,"Jersey Pounds",null,null,null,null,null,null,null,"El Salvador"]
[null,null,null,null,null,null,null,null,null,"Jamaica Dollars",null,null,null,null,null,null,null,"Equatorial Guinea"]
[null,null,null,null,null,null,null,null,null,"Jordan Dinars",null,null,null,null,null,null,null,"Eritrea"]
[null,null,null,null,null,null,null,null,null,"Japan Yen",null,null,null,null,null,null,null,"Estonia"]
[null,null,null,null,null,null,null,null,null,"Kenya Shillings",null,null,null,null,null,null,null,"Eswatini (Kingdom of Swaziland)"]
[null,null,null,null,null,null,null,null,null,"Kyrgyzstan Soms",null,null,null,null,null,null,null,"Ethiopia"]
[null,null,null,null,null,null,null,null,null,"Cambodia Riels",null,null,null,null,null,null,null,"Falkland Islands"]
[null,null,null,null,null,null,null,null,null,"Comoros Francs",null,null,null,null,null,null,null,"Faroe Islands"]
[null,null,null,null,null,null,null,null,null,"North Korea Won",null,null,null,null,null,null,null,"Fiji"]
[null,null,null,null,null,null,null,null,null,"South Korea Won",null,null,null,null,null,null,null,"Finland"]
[null,null,null,null,null,null,null,null,null,"Kuwait Dinars",null,null,null,null,null,null,null,"France"]
[null,null,null,null,null,null,null,null,null,"Cayman Islands Dollars",null,null,null,null,null,null,null,"French Guiana"]
[null,null,null,null,null,null,null,null,null,"Kazakhstan Tenge",null,null,null,null,null,null,null,"French Polynesia"]
[null,null,null,null,null,null,null,null,null,"Laos Kips",null,null,null,null,null,null,null,"Gabon"]
[null,null,null,null,null,null,null,null,null,"Lebanon Pounds",null,null,null,null,null,null,null,"Gambia (Republic of The)"]
[null,null,null,null,null,null,null,null,null,"Sri Lanka Rupees",null,null,null,null,null,null,null,"Georgia"]
[null,null,null,null,null,null,null,null,null,"Liberia Dollars",null,null,null,null,null,null,null,"Germany"]
[null,null,null,null,null,null,null,null,null,"Lesotho Maloti",null,null,null,null,null,null,null,"Ghana"]
[null,null,null,null,null,null,null,null,null,"Lithuania Litai",null,null,null,null,null,null,null,"Gibraltar"]
[null,null,null,null,null,null,null,null,null,"Latvia Lati",null,null,null,null,null,null,null,"Greece"]
[null,null,null,null,null,null,null,null,null,"Libya Dinars",null,null,null,null,null,null,null,"Greenland"]
[null,null,null,null,null,null,null,null,null,"Morocco Dirhams",null,null,null,null,null,null,null,"Grenada"]
[null,null,null,null,null,null,null,null,null,"Moldova Lei",null,null,null,null,null,null,null,"Guadeloupe"]
[null,null,null,null,null,null,null,null,null,"Madagascar Ariary",null,null,null,null,null,null,null,"Guam"]
[null,null,null,null,null,null,null,null,null,"Macedonia Denars",null,null,null,null,null,null,null,"Guatemala"]
[null,null,null,null,null,null,null,null,null,"Myanmar Kyats",null,null,null,null,null,null,null,"Guernsey"]
[null,null,null,null,null,null,null,null,null,"Mongolia Tugriks",null,null,null,null,null,null,null,"Guinea"]
[null,null,null,null,null,null,null,null,null,"Macau Patacas",null,null,null,null,null,null,null,"Guinea-Bissau"]
[null,null,null,null,null,null,null,null,null,"Mauritania Ouguiyas",null,null,null,null,null,null,null,"Guyana"]
[null,null,null,null,null,null,null,null,null,"Mauritius Rupees",null,null,null,null,null,null,null,"Haiti"]
[null,null,null,null,null,null,null,null,null,"Maldives Rufiyaa",null,null,null,null,null,null,null,"Holy See"]
[null,null,null,null,null,null,null,null,null,"Malawi Kwachas",null,null,null,null,null,null,null,"Honduras"]
[null,null,null,null,null,null,null,null,null,"Mexico Pesos",null,null,null,null,null,null,null,"Hungary"]
[null,null,null,null,null,null,null,null,null,"Malaysia Ringgits",null,null,null,null,null,null,null,"Iceland"]
[null,null,null,null,null,null,null,null,null,"Mozambique Meticais",null,null,null,null,null,null,null,"India"]
[null,null,null,null,null,null,null,null,null,"Namibia Dollars",null,null,null,null,null,null,null,"Indonesia"]
[null,null,null,null,null,null,null,null,null,"Nigeria Nairas",null,null,null,null,null,null,null,"Iran (Islamic Republic of)"]
[null,null,null,null,null,null,null,null,null,"Nicaragua Cordobas",null,null,null,null,null,null,null,"Iraq"]
[null,null,null,null,null,null,null,null,null,"Norway Kroner",null,null,null,null,null,null,null,"Ireland"]
[null,null,null,null,null,null,null,null,null,"Nepal Rupees",null,null,null,null,null,null,null,"Isle of Man"]
[null,null,null,null,null,null,null,null,null,"New Zealand Dollars",null,null,null,null,null,null,null,"Israel"]
[null,null,null,null,null,null,null,null,null,"Oman Rials",null,null,null,null,null,null,null,"Italy"]
[null,null,null,null,null,null,null,null,null,"Panama Balboas",null,null,null,null,null,null,null,"Jamaica"]
[null,null,null,null,null,null,null,null,null,"Peru Nuevos Soles",null,null,null,null,null,null,null,"Japan"]
[null,null,null,null,null,null,null,null,null,"Papua New Guinea Kina",null,null,null,null,null,null,null,"Jersey"]
[null,null,null,null,null,null,null,null,null,"Philippines Pesos",null,null,null,null,null,null,null,"Jordan"]
[null,null,null,null,null,null,null,null,null,"Pakistan Rupees",null,null,null,null,null,null,null,"Kazakhstan"]
[null,null,null,null,null,null,null,null,null,"Poland Zlotych",null,null,null,null,null,null,null,"Kenya"]
[null,null,null,null,null,null,null,null,null,"Paraguay Guarani",null,null,null,null,null,null,null,"Kiribati"]
[null,null,null,null,null,null,null,null,null,"Qatar Riyals",null,null,null,null,null,null,null,"Kuwait"]
[null,null,null,null,null,null,null,null,null,"Romania New Lei",null,null,null,null,null,null,null,"Kyrgyzstan"]
[null,null,null,null,null,null,null,null,null,"Serbia Dinars",null,null,null,null,null,null,null,"Lao People's Democratic Republic"]
[null,null,null,null,null,null,null,null,null,"Russia Rubles",null,null,null,null,null,null,null,"Latvia"]
[null,null,null,null,null,null,null,null,null,"Rwanda Francs",null,null,null,null,null,null,null,"Lebanon"]
[null,null,null,null,null,null,null,null,null,"Saudi Arabia Riyals",null,null,null,null,null,null,null,"Lesotho"]
[null,null,null,null,null,null,null,null,null,"Solomon Islands Dollars",null,null,null,null,null,null,null,"Liberia"]
[null,null,null,null,null,null,null,null,null,"Seychelles Rupees",null,null,null,null,null,null,null,"Libya"]
[null,null,null,null,null,null,null,null,null,"Sudan Pounds",null,null,null,null,null,null,null,"Liechtenstein"]
[null,null,null,null,null,null,null,null,null,"Sweden Kronor",null,null,null,null,null,null,null,"Lithuania"]
[null,null,null,null,null,null,null,null,null,"Singapore Dollars",null,null,null,null,null,null,null,"Luxembourg"]
[null,null,null,null,null,null,null,null,null,"Saint Helena Pounds",null,null,null,null,null,null,null,"Madagascar"]
[null,null,null,null,null,null,null,null,null,"Slovakia Koruny",null,null,null,null,null,null,null,"Malawi"]
[null,null,null,null,null,null,null,null,null,"Sierra Leone Leones",null,null,null,null,null,null,null,"Malaysia"]
[null,null,null,null,null,null,null,null,null,"Somalia Shillings",null,null,null,null,null,null,null,"Maldives"]
[null,null,null,null,null,null,null,null,null,"Seborga Luigini",null,null,null,null,null,null,null,"Mali"]
[null,null,null,null,null,null,null,null,null,"Suriname Dollars",null,null,null,null,null,null,null,"Malta"]
[null,null,null,null,null,null,null,null,null,"São Tome and Principe Dobras",null,null,null,null,null,null,null,"Marshall Islands"]
[null,null,null,null,null,null,null,null,null,"El Salvador Colones",null,null,null,null,null,null,null,"Martinique"]
[null,null,null,null,null,null,null,null,null,"Syria Pounds",null,null,null,null,null,null,null,"Mauritania"]
[null,null,null,null,null,null,null,null,null,"Swaziland Emalangeni",null,null,null,null,null,null,null,"Mauritius"]
[null,null,null,null,null,null,null,null,null,"Thailand Baht",null,null,null,null,null,null,null,"Mayotte"]
[null,null,null,null,null,null,null,null,null,"Tajikistan Somoni",null,null,null,null,null,null,null,"Mexico"]
[null,null,null,null,null,null,null,null,null,"Turkmenistan Manats",null,null,null,null,null,null,null,"Micronesia (Federated States of)"]
[null,null,null,null,null,null,null,null,null,"Tunisia Dinars",null,null,null,null,null,null,null,"Monaco"]
[null,null,null,null,null,null,null,null,null,"Tonga Pa'anga",null,null,null,null,null,null,null,"Mongolia"]
[null,null,null,null,null,null,null,null,null,"Turkey New Lira",null,null,null,null,null,null,null,"Montenegro"]
[null,null,null,null,null,null,null,null,null,"Trinidad and Tobago Dollars",null,null,null,null,null,null,null,"Montserrat"]
[null,null,null,null,null,null,null,null,null,"Tuvalu Dollars",null,null,null,null,null,null,null,"Morocco"]
[null,null,null,null,null,null,null,null,null,"Taiwan New Dollars",null,null,null,null,null,null,null,"Mozambique"]
[null,null,null,null,null,null,null,null,null,"Tanzania Shillings",null,null,null,null,null,null,null,"Myanmar"]
[null,null,null,null,null,null,null,null,null,"Ukraine Hryvnia",null,null,null,null,null,null,null,"Namibia"]
[null,null,null,null,null,null,null,null,null,"Uganda Shillings",null,null,null,null,null,null,null,"Nauru"]
[null,null,null,null,null,null,null,null,null,"Uruguay Pesos",null,null,null,null,null,null,null,"Nepal"]
[null,null,null,null,null,null,null,null,null,"Uzbekistan Sums",null,null,null,null,null,null,null,"Netherlands"]
[null,null,null,null,null,null,null,null,null,"Venezuela Bolivares",null,null,null,null,null,null,null,"New Caledonia"]
[null,null,null,null,null,null,null,null,null,"Venezuela Bolivares Fuertes",null,null,null,null,null,null,null,"New Zealand"]
[null,null,null,null,null,null,null,null,null,"Vietnam Dong",null,null,null,null,null,null,null,"Nicaragua"]
[null,null,null,null,null,null,null,null,null,"Vanuatu Vatu",null,null,null,null,null,null,null,"Niger"]
[null,null,null,null,null,null,null,null,null,"Samoa Tala",null,null,null,null,null,null,null,"Nigeria"]
[null,null,null,null,null,null,null,null,null,"Communauté Financière Africaine Francs BEAC",null,null,null,null,null,null,null,"Niue"]
[null,null,null,null,null,null,null,null,null,"Silver Ounces",null,null,null,null,null,null,null,"Norfolk Island"]
[null,null,null,null,null,null,null,null,null,"Gold Ounces",null,null,null,null,null,null,null,"North Macedonia"]
[null,null,null,null,null,null,null,null,null,"East Caribbean Dollars",null,null,null,null,null,null,null,"Northern Mariana Islands"]
[null,null,null,null,null,null,null,null,null,"International Monetary Fund Special Drawing Rights",null,null,null,null,null,null,null,"Norway"]
[null,null,null,null,null,null,null,null,null,"Communauté Financière Africaine Francs BCEAO",null,null,null,null,null,null,null,"Oman"]
[null,null,null,null,null,null,null,null,null,"Palladium Ounces",null,null,null,null,null,null,null,"Pakistan"]
[null,null,null,null,null,null,null,null,null,"Comptoirs Français du Pacifique Francs",null,null,null,null,null,null,null,"Palau"]
[null,null,null,null,null,null,null,null,null,"Platinum Ounces",null,null,null,null,null,null,null,"Panama"]
[null,null,null,null,null,null,null,null,null,"Yemen Rials",null,null,null,null,null,null,null,"Papua New Guinea"]
[null,null,null,null,null,null,null,null,null,"South Africa Rand",null,null,null,null,null,null,null,"Paraguay"]
[null,null,null,null,null,null,null,null,null,"Zambia Kwacha",null,null,null,null,null,null,null,"Peru"]
[null,null,null,null,null,null,null,null,null,"Zimbabwe Dollars",null,null,null,null,null,null,null,"Philippines"]
[null,null,null,null,null,null,null,null,null,null,null,null,null,null,null,null,null,"Pitcairn"]
[null,null,null,null,null,null,null,null,null,null,null,null,null,null,null,null,null,"Poland"]
[null,null,null,null,null,null,null,null,null,null,null,null,null,null,null,null,null,"Portugal"]
[null,null,null,null,null,null,null,null,null,null,null,null,null,null,null,null,null,"Puerto Rico"]
[null,null,null,null,null,null,null,null,null,null,null,null,null,null,null,null,null,"Qatar"]
[null,null,null,null,null,null,null,null,null,null,null,null,null,null,null,null,null,"Republic of Korea (South Korea)"]
[null,null,null,null,null,null,null,null,null,null,null,null,null,null,null,null,null,"Republic of Moldova"]
[null,null,null,null,null,null,null,null,null,null,null,null,null,null,null,null,null,"Reunion"]
[null,null,null,null,null,null,null,null,null,null,null,null,null,null,null,null,null,"Romania"]
[null,null,null,null,null,null,null,null,null,null,null,null,null,null,null,null,null,"Russian Federation"]
[null,null,null,null,null,null,null,null,null,null,null,null,null,null,null,null,null,"Rwanda"]
[null,null,null,null,null,null,null,null,null,null,null,null,null,null,null,null,null,"Saint Barthelemy (St. Barts)"]
[null,null,null,null,null,null,null,null,null,null,null,null,null,null,null,null,null,"Saint Helena"]
[null,null,null,null,null,null,null,null,null,null,null,null,null,null,null,null,null,"Saint Kitts and Nevis"]
[null,null,null,null,null,null,null,null,null,null,null,null,null,null,null,null,null,"Saint Lucia"]
[null,null,null,null,null,null,null,null,null,null,null,null,null,null,null,null,null,"Saint Martin"]
[null,null,null,null,null,null,null,null,null,null,null,null,null,null,null,null,null,"Saint Pierre and Miquelon"]
[null,null,null,null,null,null,null,null,null,null,null,null,null,null,null,null,null,"Saint Vincent and The Grenadines"]
[null,null,null,null,null,null,null,null,null,null,null,null,null,null,null,null,null,"Samoa"]
[null,null,null,null,null,null,null,null,null,null,null,null,null,null,null,null,null,"San Marino"]
[null,null,null,null,null,null,null,null,null,null,null,null,null,null,null,null,null,"Sao Tome and Principe"]
[null,null,null,null,null,null,null,null,null,null,null,null,null,null,null,null,null,"Sark"]
[null,null,null,null,null,null,null,null,null,null,null,null,null,null,null,null,null,"Saudi Arabia"]
[null,null,null,null,null,null,null,null,null,null,null,null,null,null,null,null,null,"Senegal"]
[null,null,null,null,null,null,null,null,null,null,null,null,null,null,null,null,null,"Serbia"]
[null,null,null,null,null,null,null,null,null,null,null,null,null,null,null,null,null,"Seychelles"]
[null,null,null,null,null,null,null,null,null,null,null,null,null,null,null,null,null,"Sierra Leone"]
[null,null,null,null,null,null,null,null,null,null,null,null,null,null,null,null,null,"Singapore"]
[null,null,null,null,null,null,null,null,null,null,null,null,null,null,null,null,null,"Sint Maarten"]
[null,null,null,null,null,null,null,null,null,null,null,null,null,null,null,null,null,"Slovakia"]
[null,null,null,null,null,null,null,null,null,null,null,null,null,null,null,null,null,"Slovenia"]
[null,null,null,null,null,null,null,null,null,null,null,null,null,null,null,null,null,"Solomon Islands"]
[null,null,null,null,null,null,null,null,null,null,null,null,null,null,null,null,null,"Somalia"]
[null,null,null,null,null,null,null,null,null,null,null,null,null,null,null,null,null,"South Africa"]
[null,null,null,null,null,null,null,null,null,null,null,null,null,null,null,null,null,"South Sudan"]
[null,null,null,null,null,null,null,null,null,null,null,null,null,null,null,null,null,"Spain"]
[null,null,null,null,null,null,null,null,null,null,null,null,null,null,null,null,null,"Sri Lanka"]
[null,null,null,null,null,null,null,null,null,null,null,null,null,null,null,null,null,"State of Palestine"]
[null,null,null,null,null,null,null,null,null,null,null,null,null,null,null,null,null,"Sudan"]
[null,null,null,null,null,null,null,null,null,null,null,null,null,null,null,null,null,"Suriname"]
[null,null,null,null,null,null,null,null,null,null,null,null,null,null,null,null,null,"Svalbard, Jan Mayen"]
[null,null,null,null,null,null,null,null,null,null,null,null,null,null,null,null,null,"Sweden"]
[null,null,null,null,null,null,null,null,null,null,null,null,null,null,null,null,null,"Switzerland"]
[null,null,null,null,null,null,null,null,null,null,null,null,null,null,null,null,null,"Syrian Arab Republic"]
[null,null,null,null,null,null,null,null,null,null,null,null,null,null,null,null,null,"Taiwan"]
[null,null,null,null,null,null,null,null,null,null,null,null,null,null,null,null,null,"Tajikistan"]
[null,null,null,null,null,null,null,null,null,null,null,null,null,null,null,null,null,"Thailand"]
[null,null,null,null,null,null,null,null,null,null,null,null,null,null,null,null,null,"Timor-Leste"]
[null,null,null,null,null,null,null,null,null,null,null,null,null,null,null,null,null,"Togo"]
[null,null,null,null,null,null,null,null,null,null,null,null,null,null,null,null,null,"Tokelau"]
[null,null,null,null,null,null,null,null,null,null,null,null,null,null,null,null,null,"Tonga"]
[null,null,null,null,null,null,null,null,null,null,null,null,null,null,null,null,null,"Trinidad and Tobago"]
[null,null,null,null,null,null,null,null,null,null,null,null,null,null,null,null,null,"Tunisia"]
[null,null,null,null,null,null,null,null,null,null,null,null,null,null,null,null,null,"Turkey"]
[null,null,null,null,null,null,null,null,null,null,null,null,null,null,null,null,null,"Turkmenistan"]
[null,null,null,null,null,null,null,null,null,null,null,null,null,null,null,null,null,"Turks & Caicos Islands"]
[null,null,null,null,null,null,null,null,null,null,null,null,null,null,null,null,null,"Tuvalu"]
[null,null,null,null,null,null,null,null,null,null,null,null,null,null,null,null,null,"Uganda"]
[null,null,null,null,null,null,null,null,null,null,null,null,null,null,null,null,null,"Ukraine"]
[null,null,null,null,null,null,null,null,null,null,null,null,null,null,null,null,null,"United Arab Emirates"]
[null,null,null,null,null,null,null,null,null,null,null,null,null,null,null,null,null,"United Republic of Tanzania"]
[null,null,null,null,null,null,null,null,null,null,null,null,null,null,null,null,null,"Uruguay"]
[null,null,null,null,null,null,null,null,null,null,null,null,null,null,null,null,null,"US Virgin Islands"]
[null,null,null,null,null,null,null,null,null,null,null,null,null,null,null,null,null,"Uzbekistan"]
[null,null,null,null,null,null,null,null,null,null,null,null,null,null,null,null,null,"Vanuatu"]
[null,null,null,null,null,null,null,null,null,null,null,null,null,null,null,null,null,"Venezuela, Bolivarian Republic of "]
[null,null,null,null,null,null,null,null,null,null,null,null,null,null,null,null,null,"Vietnam"]
[null,null,null,null,null,null,null,null,null,null,null,null,null,null,null,null,null,"Wallis & Futuna Islands"]
[null,null,null,null,null,null,null,null,null,null,null,null,null,null,null,null,null,"Western Sahara"]
[null,null,null,null,null,null,null,null,null,null,null,null,null,null,null,null,null,"Yemen"]
[null,null,null,null,null,null,null,null,null,null,null,null,null,null,null,null,null,"Zambia"]
[null,null,null,null,null,null,null,null,null,null,null,null,null,null,null,null,null,"Zimbabwe"]
[null,null,null,null,null,null,null,null,null,null,null,null,null,null,null,null,null,"Select"]

{"sheet":"Schedule VIA","index":53,"n_rows":2357,"n_cols":18,"rows_kept":2357,"cut":false,"hidden":false,"merged":[[1764,7,1765,7],[1789,1,1789,2],[1763,5,1765,5],[1793,1,1793,2],[1339,1,1339,2],[1342,1,1342,2],[1447,1,1447,2],[1450,1,1450,2],[1555,1,1555,2],[1764,6,1765,6],[5,1,5,2],[213,1,213,2],[216,1,216,2],[987,1,987,2],[990,1,990,2],[1234,1,1234,2],[1095,1,1095,2],[1098,1,1098,2],[1123,1,1123,2],[1126,1,1126,2],[1231,1,1231,2]]}
[null,"SCHEDULE OF FUNDS HELD BY CEDING REINSURERS",null,null,null,null,null,null,null,null,null,null,null,{"$f":"HYPERLINK(\"#'Index'!A1\",\"Return to Index\")","v":"Return to Index"}]
[null,{"$f":"'Group Information'!C9","v":"Enter Parent Company Name"}]
[null,"As at",{"$f":"'Group Information'!C3","v":"2023-12-31"}]
[null,"expressed in ['000s]",{"$f":"'Form 1'!C4","v":" ['000s]United States Dollars"},null,null,null,null,null,null,null,null,null,null,"Schedule VIA"]
[]
[null,"(A) CASH AND CASH EQUIVALENTS"]
[]
[null,null,"Enter # of Asset Types",{"$f":"Import!E20298","v":0}]
[null,null,null,null,{"$f":"YEAR($C$3)","v":2023},{"$f":"YEAR($C$3)","v":2023}]
[null,"Asset Type","Currency","BSCR Rating","Nominal Amount","Fair Value","Comments"]
[1,{"$f":"Import!E20299","v":"Select"},{"$f":"Import!E20499","v":"Select"},{"$f":"Import!E20699","v":"Select"},{"$f":"Import!E20899","v":0},{"$f":"Import!E21099","v":0},{"$f":"Import!E21299","v":0}]
[{"$f":"A11+1","v":2},{"$f":"Import!E20300","v":"Select"},{"$f":"Import!E20500","v":"Select"},{"$f":"Import!E20700","v":"Select"},{"$f":"Import!E20900","v":0},{"$f":"Import!E21100","v":0},{"$f":"Import!E21300","v":0}]
[{"$f":"A12+1","v":3},{"$f":"Import!E20301","v":"Select"},{"$f":"Import!E20501","v":"Select"},{"$f":"Import!E20701","v":"Select"},{"$f":"Import!E20901","v":0},{"$f":"Import!E21101","v":0},{"$f":"Import!E21301","v":0}]
[4,{"$f":"Import!E20302","v":"Select"},{"$f":"Import!E20502","v":"Select"},{"$f":"Import!E20702","v":"Select"},{"$f":"Import!E20902","v":0},{"$f":"Import!E21102","v":0},{"$f":"Import!E21302","v":0}]
[5,{"$f":"Import!E20303","v":"Select"},{"$f":"Import!E20503","v":"Select"},{"$f":"Import!E20703","v":"Select"},{"$f":"Import!E20903","v":0},{"$f":"Import!E21103","v":0},{"$f":"Import!E21303","v":0}]
[6,{"$f":"Import!E20304","v":"Select"},{"$f":"Import!E20504","v":"Select"},{"$f":"Import!E20704","v":"Select"},{"$f":"Import!E20904","v":0},{"$f":"Import!E21104","v":0},{"$f":"Import!E21304","v":0}]
[7,{"$f":"Import!E20305","v":"Select"},{"$f":"Import!E20505","v":"Select"},{"$f":"Import!E20705","v":"Select"},{"$f":"Import!E20905","v":0},{"$f":"Import!E21105","v":0},{"$f":"Import!E21305","v":0}]
[8,{"$f":"Import!E20306","v":"Select"},{"$f":"Import!E20506","v":"Select"},{"$f":"Import!E20706","v":"Select"},{"$f":"Import!E20906","v":0},{"$f":"Import!E21106","v":0},{"$f":"Import!E21306","v":0}]
[9,{"$f":"Import!E20307","v":"Select"},{"$f":"Import!E20507","v":"Select"},{"$f":"Import!E20707","v":"Select"},{"$f":"Import!E20907","v":0},{"$f":"Import!E21107","v":0},{"$f":"Import!E21307","v":0}]
[10,{"$f":"Import!E20308","v":"Select"},{"$f":"Import!E20508","v":"Select"},{"$f":"Import!E20708","v":"Select"},{"$f":"Import!E20908","v":0},{"$f":"Import!E21108","v":0},{"$f":"Import!E21308","v":0}]
[11,{"$f":"Import!E20309","v":"Select"},{"$f":"Import!E20509","v":"Select"},{"$f":"Import!E20709","v":"Select"},{"$f":"Import!E20909","v":0},{"$f":"Import!E21109","v":0},{"$f":"Import!E21309","v":0}]
[12,{"$f":"Import!E20310","v":"Select"},{"$f":"Import!E20510","v":"Select"},{"$f":"Import!E20710","v":"Select"},{"$f":"Import!E20910","v":0},{"$f":"Import!E21110","v":0},{"$f":"Import!E21310","v":0}]
[13,{"$f":"Import!E20311","v":"Select"},{"$f":"Import!E20511","v":"Select"},{"$f":"Import!E20711","v":"Select"},{"$f":"Import!E20911","v":0},{"$f":"Import!E21111","v":0},{"$f":"Import!E21311","v":0}]
[14,{"$f":"Import!E20312","v":"Select"},{"$f":"Import!E20512","v":"Select"},{"$f":"Import!E20712","v":"Select"},{"$f":"Import!E20912","v":0},{"$f":"Import!E21112","v":0},{"$f":"Import!E21312","v":0}]
[15,{"$f":"Import!E20313","v":"Select"},{"$f":"Import!E20513","v":"Select"},{"$f":"Import!E20713","v":"Select"},{"$f":"Import!E20913","v":0},{"$f":"Import!E21113","v":0},{"$f":"Import!E21313","v":0}]
[16,{"$f":"Import!E20314","v":"Select"},{"$f":"Import!E20514","v":"Select"},{"$f":"Import!E20714","v":"Select"},{"$f":"Import!E20914","v":0},{"$f":"Import!E21114","v":0},{"$f":"Import!E21314","v":0}]
[17,{"$f":"Import!E20315","v":"Select"},{"$f":"Import!E20515","v":"Select"},{"$f":"Import!E20715","v":"Select"},{"$f":"Import!E20915","v":0},{"$f":"Import!E21115","v":0},{"$f":"Import!E21315","v":0}]
[18,{"$f":"Import!E20316","v":"Select"},{"$f":"Import!E20516","v":"Select"},{"$f":"Import!E20716","v":"Select"},{"$f":"Import!E20916","v":0},{"$f":"Import!E21116","v":0},{"$f":"Import!E21316","v":0}]
[19,{"$f":"Import!E20317","v":"Select"},{"$f":"Import!E20517","v":"Select"},{"$f":"Import!E20717","v":"Select"},{"$f":"Import!E20917","v":0},{"$f":"Import!E21117","v":0},{"$f":"Import!E21317","v":0}]
[20,{"$f":"Import!E20318","v":"Select"},{"$f":"Import!E20518","v":"Select"},{"$f":"Import!E20718","v":"Select"},{"$f":"Import!E20918","v":0},{"$f":"Import!E21118","v":0},{"$f":"Import!E21318","v":0}]
[21,{"$f":"Import!E20319","v":"Select"},{"$f":"Import!E20519","v":"Select"},{"$f":"Import!E20719","v":"Select"},{"$f":"Import!E20919","v":0},{"$f":"Import!E21119","v":0},{"$f":"Import!E21319","v":0}]
[22,{"$f":"Import!E20320","v":"Select"},{"$f":"Import!E20520","v":"Select"},{"$f":"Import!E20720","v":"Select"},{"$f":"Import!E20920","v":0},{"$f":"Import!E21120","v":0},{"$f":"Import!E21320","v":0}]
[23,{"$f":"Import!E20321","v":"Select"},{"$f":"Import!E20521","v":"Select"},{"$f":"Import!E20721","v":"Select"},{"$f":"Import!E20921","v":0},{"$f":"Import!E21121","v":0},{"$f":"Import!E21321","v":0}]
[24,{"$f":"Import!E20322","v":"Select"},{"$f":"Import!E20522","v":"Select"},{"$f":"Import!E20722","v":"Select"},{"$f":"Import!E20922","v":0},{"$f":"Import!E21122","v":0},{"$f":"Import!E21322","v":0}]
[25,{"$f":"Import!E20323","v":"Select"},{"$f":"Import!E20523","v":"Select"},{"$f":"Import!E20723","v":"Select"},{"$f":"Import!E20923","v":0},{"$f":"Import!E21123","v":0},{"$f":"Import!E21323","v":0}]
[26,{"$f":"Import!E20324","v":"Select"},{"$f":"Import!E20524","v":"Select"},{"$f":"Import!E20724","v":"Select"},{"$f":"Import!E20924","v":0},{"$f":"Import!E21124","v":0},{"$f":"Import!E21324","v":0}]
[27,{"$f":"Import!E20325","v":"Select"},{"$f":"Import!E20525","v":"Select"},{"$f":"Import!E20725","v":"Select"},{"$f":"Import!E20925","v":0},{"$f":"Import!E21125","v":0},{"$f":"Import!E21325","v":0}]
[28,{"$f":"Import!E20326","v":"Select"},{"$f":"Import!E20526","v":"Select"},{"$f":"Import!E20726","v":"Select"},{"$f":"Import!E20926","v":0},{"$f":"Import!E21126","v":0},{"$f":"Import!E21326","v":0}]
[29,{"$f":"Import!E20327","v":"Select"},{"$f":"Import!E20527","v":"Select"},{"$f":"Import!E20727","v":"Select"},{"$f":"Import!E20927","v":0},{"$f":"Import!E21127","v":0},{"$f":"Import!E21327","v":0}]
[30,{"$f":"Import!E20328","v":"Select"},{"$f":"Import!E20528","v":"Select"},{"$f":"Import!E20728","v":"Select"},{"$f":"Import!E20928","v":0},{"$f":"Import!E21128","v":0},{"$f":"Import!E21328","v":0}]
[31,{"$f":"Import!E20329","v":"Select"},{"$f":"Import!E20529","v":"Select"},{"$f":"Import!E20729","v":"Select"},{"$f":"Import!E20929","v":0},{"$f":"Import!E21129","v":0},{"$f":"Import!E21329","v":0}]
[32,{"$f":"Import!E20330","v":"Select"},{"$f":"Import!E20530","v":"Select"},{"$f":"Import!E20730","v":"Select"},{"$f":"Import!E20930","v":0},{"$f":"Import!E21130","v":0},{"$f":"Import!E21330","v":0}]
[33,{"$f":"Import!E20331","v":"Select"},{"$f":"Import!E20531","v":"Select"},{"$f":"Import!E20731","v":"Select"},{"$f":"Import!E20931","v":0},{"$f":"Import!E21131","v":0},{"$f":"Import!E21331","v":0}]
[34,{"$f":"Import!E20332","v":"Select"},{"$f":"Import!E20532","v":"Select"},{"$f":"Import!E20732","v":"Select"},{"$f":"Import!E20932","v":0},{"$f":"Import!E21132","v":0},{"$f":"Import!E21332","v":0}]
[35,{"$f":"Import!E20333","v":"Select"},{"$f":"Import!E20533","v":"Select"},{"$f":"Import!E20733","v":"Select"},{"$f":"Import!E20933","v":0},{"$f":"Import!E21133","v":0},{"$f":"Import!E21333","v":0}]
[36,{"$f":"Import!E20334","v":"Select"},{"$f":"Import!E20534","v":"Select"},{"$f":"Import!E20734","v":"Select"},{"$f":"Import!E20934","v":0},{"$f":"Import!E21134","v":0},{"$f":"Import!E21334","v":0}]
[37,{"$f":"Import!E20335","v":"Select"},{"$f":"Import!E20535","v":"Select"},{"$f":"Import!E20735","v":"Select"},{"$f":"Import!E20935","v":0},{"$f":"Import!E21135","v":0},{"$f":"Import!E21335","v":0}]
[38,{"$f":"Import!E20336","v":"Select"},{"$f":"Import!E20536","v":"Select"},{"$f":"Import!E20736","v":"Select"},{"$f":"Import!E20936","v":0},{"$f":"Import!E21136","v":0},{"$f":"Import!E21336","v":0}]
[39,{"$f":"Import!E20337","v":"Select"},{"$f":"Import!E20537","v":"Select"},{"$f":"Import!E20737","v":"Select"},{"$f":"Import!E20937","v":0},{"$f":"Import!E21137","v":0},{"$f":"Import!E21337","v":0}]
[40,{"$f":"Import!E20338","v":"Select"},{"$f":"Import!E20538","v":"Select"},{"$f":"Import!E20738","v":"Select"},{"$f":"Import!E20938","v":0},{"$f":"Import!E21138","v":0},{"$f":"Import!E21338","v":0}]
[41,{"$f":"Import!E20339","v":"Select"},{"$f":"Import!E20539","v":"Select"},{"$f":"Import!E20739","v":"Select"},{"$f":"Import!E20939","v":0},{"$f":"Import!E21139","v":0},{"$f":"Import!E21339","v":0}]
[42,{"$f":"Import!E20340","v":"Select"},{"$f":"Import!E20540","v":"Select"},{"$f":"Import!E20740","v":"Select"},{"$f":"Import!E20940","v":0},{"$f":"Import!E21140","v":0},{"$f":"Import!E21340","v":0}]
[43,{"$f":"Import!E20341","v":"Select"},{"$f":"Import!E20541","v":"Select"},{"$f":"Import!E20741","v":"Select"},{"$f":"Import!E20941","v":0},{"$f":"Import!E21141","v":0},{"$f":"Import!E21341","v":0}]
[44,{"$f":"Import!E20342","v":"Select"},{"$f":"Import!E20542","v":"Select"},{"$f":"Import!E20742","v":"Select"},{"$f":"Import!E20942","v":0},{"$f":"Import!E21142","v":0},{"$f":"Import!E21342","v":0}]
[45,{"$f":"Import!E20343","v":"Select"},{"$f":"Import!E20543","v":"Select"},{"$f":"Import!E20743","v":"Select"},{"$f":"Import!E20943","v":0},{"$f":"Import!E21143","v":0},{"$f":"Import!E21343","v":0}]
[46,{"$f":"Import!E20344","v":"Select"},{"$f":"Import!E20544","v":"Select"},{"$f":"Import!E20744","v":"Select"},{"$f":"Import!E20944","v":0},{"$f":"Import!E21144","v":0},{"$f":"Import!E21344","v":0}]
[47,{"$f":"Import!E20345","v":"Select"},{"$f":"Import!E20545","v":"Select"},{"$f":"Import!E20745","v":"Select"},{"$f":"Import!E20945","v":0},{"$f":"Import!E21145","v":0},{"$f":"Import!E21345","v":0}]
[48,{"$f":"Import!E20346","v":"Select"},{"$f":"Import!E20546","v":"Select"},{"$f":"Import!E20746","v":"Select"},{"$f":"Import!E20946","v":0},{"$f":"Import!E21146","v":0},{"$f":"Import!E21346","v":0}]
[49,{"$f":"Import!E20347","v":"Select"},{"$f":"Import!E20547","v":"Select"},{"$f":"Import!E20747","v":"Select"},{"$f":"Import!E20947","v":0},{"$f":"Import!E21147","v":0},{"$f":"Import!E21347","v":0}]
[50,{"$f":"Import!E20348","v":"Select"},{"$f":"Import!E20548","v":"Select"},{"$f":"Import!E20748","v":"Select"},{"$f":"Import!E20948","v":0},{"$f":"Import!E21148","v":0},{"$f":"Import!E21348","v":0}]
[51,{"$f":"Import!E20349","v":"Select"},{"$f":"Import!E20549","v":"Select"},{"$f":"Import!E20749","v":"Select"},{"$f":"Import!E20949","v":0},{"$f":"Import!E21149","v":0},{"$f":"Import!E21349","v":0}]
[52,{"$f":"Import!E20350","v":"Select"},{"$f":"Import!E20550","v":"Select"},{"$f":"Import!E20750","v":"Select"},{"$f":"Import!E20950","v":0},{"$f":"Import!E21150","v":0},{"$f":"Import!E21350","v":0}]
[53,{"$f":"Import!E20351","v":"Select"},{"$f":"Import!E20551","v":"Select"},{"$f":"Import!E20751","v":"Select"},{"$f":"Import!E20951","v":0},{"$f":"Import!E21151","v":0},{"$f":"Import!E21351","v":0}]
[54,{"$f":"Import!E20352","v":"Select"},{"$f":"Import!E20552","v":"Select"},{"$f":"Import!E20752","v":"Select"},{"$f":"Import!E20952","v":0},{"$f":"Import!E21152","v":0},{"$f":"Import!E21352","v":0}]
[55,{"$f":"Import!E20353","v":"Select"},{"$f":"Import!E20553","v":"Select"},{"$f":"Import!E20753","v":"Select"},{"$f":"Import!E20953","v":0},{"$f":"Import!E21153","v":0},{"$f":"Import!E21353","v":0}]
[56,{"$f":"Import!E20354","v":"Select"},{"$f":"Import!E20554","v":"Select"},{"$f":"Import!E20754","v":"Select"},{"$f":"Import!E20954","v":0},{"$f":"Import!E21154","v":0},{"$f":"Import!E21354","v":0}]
[57,{"$f":"Import!E20355","v":"Select"},{"$f":"Import!E20555","v":"Select"},{"$f":"Import!E20755","v":"Select"},{"$f":"Import!E20955","v":0},{"$f":"Import!E21155","v":0},{"$f":"Import!E21355","v":0}]
[58,{"$f":"Import!E20356","v":"Select"},{"$f":"Import!E20556","v":"Select"},{"$f":"Import!E20756","v":"Select"},{"$f":"Import!E20956","v":0},{"$f":"Import!E21156","v":0},{"$f":"Import!E21356","v":0}]
[59,{"$f":"Import!E20357","v":"Select"},{"$f":"Import!E20557","v":"Select"},{"$f":"Import!E20757","v":"Select"},{"$f":"Import!E20957","v":0},{"$f":"Import!E21157","v":0},{"$f":"Import!E21357","v":0}]
[60,{"$f":"Import!E20358","v":"Select"},{"$f":"Import!E20558","v":"Select"},{"$f":"Import!E20758","v":"Select"},{"$f":"Import!E20958","v":0},{"$f":"Import!E21158","v":0},{"$f":"Import!E21358","v":0}]
[61,{"$f":"Import!E20359","v":"Select"},{"$f":"Import!E20559","v":"Select"},{"$f":"Import!E20759","v":"Select"},{"$f":"Import!E20959","v":0},{"$f":"Import!E21159","v":0},{"$f":"Import!E21359","v":0}]
[62,{"$f":"Import!E20360","v":"Select"},{"$f":"Import!E20560","v":"Select"},{"$f":"Import!E20760","v":"Select"},{"$f":"Import!E20960","v":0},{"$f":"Import!E21160","v":0},{"$f":"Import!E21360","v":0}]
[63,{"$f":"Import!E20361","v":"Select"},{"$f":"Import!E20561","v":"Select"},{"$f":"Import!E20761","v":"Select"},{"$f":"Import!E20961","v":0},{"$f":"Import!E21161","v":0},{"$f":"Import!E21361","v":0}]
[64,{"$f":"Import!E20362","v":"Select"},{"$f":"Import!E20562","v":"Select"},{"$f":"Import!E20762","v":"Select"},{"$f":"Import!E20962","v":0},{"$f":"Import!E21162","v":0},{"$f":"Import!E21362","v":0}]
[65,{"$f":"Import!E20363","v":"Select"},{"$f":"Import!E20563","v":"Select"},{"$f":"Import!E20763","v":"Select"},{"$f":"Import!E20963","v":0},{"$f":"Import!E21163","v":0},{"$f":"Import!E21363","v":0}]
[66,{"$f":"Import!E20364","v":"Select"},{"$f":"Import!E20564","v":"Select"},{"$f":"Import!E20764","v":"Select"},{"$f":"Import!E20964","v":0},{"$f":"Import!E21164","v":0},{"$f":"Import!E21364","v":0}]
[{"$f":"A76+1","v":67},{"$f":"Import!E20365","v":"Select"},{"$f":"Import!E20565","v":"Select"},{"$f":"Import!E20765","v":"Select"},{"$f":"Import!E20965","v":0},{"$f":"Import!E21165","v":0},{"$f":"Import!E21365","v":0}]
[68,{"$f":"Import!E20366","v":"Select"},{"$f":"Import!E20566","v":"Select"},{"$f":"Import!E20766","v":"Select"},{"$f":"Import!E20966","v":0},{"$f":"Import!E21166","v":0},{"$f":"Import!E21366","v":0}]
[69,{"$f":"Import!E20367","v":"Select"},{"$f":"Import!E20567","v":"Select"},{"$f":"Import!E20767","v":"Select"},{"$f":"Import!E20967","v":0},{"$f":"Import!E21167","v":0},{"$f":"Import!E21367","v":0}]
[70,{"$f":"Import!E20368","v":"Select"},{"$f":"Import!E20568","v":"Select"},{"$f":"Import!E20768","v":"Select"},{"$f":"Import!E20968","v":0},{"$f":"Import!E21168","v":0},{"$f":"Import!E21368","v":0}]
[71,{"$f":"Import!E20369","v":"Select"},{"$f":"Import!E20569","v":"Select"},{"$f":"Import!E20769","v":"Select"},{"$f":"Import!E20969","v":0},{"$f":"Import!E21169","v":0},{"$f":"Import!E21369","v":0}]
[72,{"$f":"Import!E20370","v":"Select"},{"$f":"Import!E20570","v":"Select"},{"$f":"Import!E20770","v":"Select"},{"$f":"Import!E20970","v":0},{"$f":"Import!E21170","v":0},{"$f":"Import!E21370","v":0}]
[73,{"$f":"Import!E20371","v":"Select"},{"$f":"Import!E20571","v":"Select"},{"$f":"Import!E20771","v":"Select"},{"$f":"Import!E20971","v":0},{"$f":"Import!E21171","v":0},{"$f":"Import!E21371","v":0}]
[74,{"$f":"Import!E20372","v":"Select"},{"$f":"Import!E20572","v":"Select"},{"$f":"Import!E20772","v":"Select"},{"$f":"Import!E20972","v":0},{"$f":"Import!E21172","v":0},{"$f":"Import!E21372","v":0}]
[75,{"$f":"Import!E20373","v":"Select"},{"$f":"Import!E20573","v":"Select"},{"$f":"Import!E20773","v":"Select"},{"$f":"Import!E20973","v":0},{"$f":"Import!E21173","v":0},{"$f":"Import!E21373","v":0}]
[76,{"$f":"Import!E20374","v":"Select"},{"$f":"Import!E20574","v":"Select"},{"$f":"Import!E20774","v":"Select"},{"$f":"Import!E20974","v":0},{"$f":"Import!E21174","v":0},{"$f":"Import!E21374","v":0}]
[77,{"$f":"Import!E20375","v":"Select"},{"$f":"Import!E20575","v":"Select"},{"$f":"Import!E20775","v":"Select"},{"$f":"Import!E20975","v":0},{"$f":"Import!E21175","v":0},{"$f":"Import!E21375","v":0}]
[78,{"$f":"Import!E20376","v":"Select"},{"$f":"Import!E20576","v":"Select"},{"$f":"Import!E20776","v":"Select"},{"$f":"Import!E20976","v":0},{"$f":"Import!E21176","v":0},{"$f":"Import!E21376","v":0}]
[79,{"$f":"Import!E20377","v":"Select"},{"$f":"Import!E20577","v":"Select"},{"$f":"Import!E20777","v":"Select"},{"$f":"Import!E20977","v":0},{"$f":"Import!E21177","v":0},{"$f":"Import!E21377","v":0}]
[80,{"$f":"Import!E20378","v":"Select"},{"$f":"Import!E20578","v":"Select"},{"$f":"Import!E20778","v":"Select"},{"$f":"Import!E20978","v":0},{"$f":"Import!E21178","v":0},{"$f":"Import!E21378","v":0}]
[81,{"$f":"Import!E20379","v":"Select"},{"$f":"Import!E20579","v":"Select"},{"$f":"Import!E20779","v":"Select"},{"$f":"Import!E20979","v":0},{"$f":"Import!E21179","v":0},{"$f":"Import!E21379","v":0}]
[82,{"$f":"Import!E20380","v":"Select"},{"$f":"Import!E20580","v":"Select"},{"$f":"Import!E20780","v":"Select"},{"$f":"Import!E20980","v":0},{"$f":"Import!E21180","v":0},{"$f":"Import!E21380","v":0}]
[83,{"$f":"Import!E20381","v":"Select"},{"$f":"Import!E20581","v":"Select"},{"$f":"Import!E20781","v":"Select"},{"$f":"Import!E20981","v":0},{"$f":"Import!E21181","v":0},{"$f":"Import!E21381","v":0}]
[84,{"$f":"Import!E20382","v":"Select"},{"$f":"Import!E20582","v":"Select"},{"$f":"Import!E20782","v":"Select"},{"$f":"Import!E20982","v":0},{"$f":"Import!E21182","v":0},{"$f":"Import!E21382","v":0}]
[85,{"$f":"Import!E20383","v":"Select"},{"$f":"Import!E20583","v":"Select"},{"$f":"Import!E20783","v":"Select"},{"$f":"Import!E20983","v":0},{"$f":"Import!E21183","v":0},{"$f":"Import!E21383","v":0}]
[86,{"$f":"Import!E20384","v":"Select"},{"$f":"Import!E20584","v":"Select"},{"$f":"Import!E20784","v":"Select"},{"$f":"Import!E20984","v":0},{"$f":"Import!E21184","v":0},{"$f":"Import!E21384","v":0}]
[87,{"$f":"Import!E20385","v":"Select"},{"$f":"Import!E20585","v":"Select"},{"$f":"Import!E20785","v":"Select"},{"$f":"Import!E20985","v":0},{"$f":"Import!E21185","v":0},{"$f":"Import!E21385","v":0}]
[88,{"$f":"Import!E20386","v":"Select"},{"$f":"Import!E20586","v":"Select"},{"$f":"Import!E20786","v":"Select"},{"$f":"Import!E20986","v":0},{"$f":"Import!E21186","v":0},{"$f":"Import!E21386","v":0}]
[89,{"$f":"Import!E20387","v":"Select"},{"$f":"Import!E20587","v":"Select"},{"$f":"Import!E20787","v":"Select"},{"$f":"Import!E20987","v":0},{"$f":"Import!E21187","v":0},{"$f":"Import!E21387","v":0}]
[90,{"$f":"Import!E20388","v":"Select"},{"$f":"Import!E20588","v":"Select"},{"$f":"Import!E20788","v":"Select"},{"$f":"Import!E20988","v":0},{"$f":"Import!E21188","v":0},{"$f":"Import!E21388","v":0}]
[91,{"$f":"Import!E20389","v":"Select"},{"$f":"Import!E20589","v":"Select"},{"$f":"Import!E20789","v":"Select"},{"$f":"Import!E20989","v":0},{"$f":"Import!E21189","v":0},{"$f":"Import!E21389","v":0}]
[92,{"$f":"Import!E20390","v":"Select"},{"$f":"Import!E20590","v":"Select"},{"$f":"Import!E20790","v":"Select"},{"$f":"Import!E20990","v":0},{"$f":"Import!E21190","v":0},{"$f":"Import!E21390","v":0}]
[93,{"$f":"Import!E20391","v":"Select"},{"$f":"Import!E20591","v":"Select"},{"$f":"Import!E20791","v":"Select"},{"$f":"Import!E20991","v":0},{"$f":"Import!E21191","v":0},{"$f":"Import!E21391","v":0}]
[94,{"$f":"Import!E20392","v":"Select"},{"$f":"Import!E20592","v":"Select"},{"$f":"Import!E20792","v":"Select"},{"$f":"Import!E20992","v":0},{"$f":"Import!E21192","v":0},{"$f":"Import!E21392","v":0}]
[95,{"$f":"Import!E20393","v":"Select"},{"$f":"Import!E20593","v":"Select"},{"$f":"Import!E20793","v":"Select"},{"$f":"Import!E20993","v":0},{"$f":"Import!E21193","v":0},{"$f":"Import!E21393","v":0}]
[96,{"$f":"Import!E20394","v":"Select"},{"$f":"Import!E20594","v":"Select"},{"$f":"Import!E20794","v":"Select"},{"$f":"Import!E20994","v":0},{"$f":"Import!E21194","v":0},{"$f":"Import!E21394","v":0}]
[97,{"$f":"Import!E20395","v":"Select"},{"$f":"Import!E20595","v":"Select"},{"$f":"Import!E20795","v":"Select"},{"$f":"Import!E20995","v":0},{"$f":"Import!E21195","v":0},{"$f":"Import!E21395","v":0}]
[98,{"$f":"Import!E20396","v":"Select"},{"$f":"Import!E20596","v":"Select"},{"$f":"Import!E20796","v":"Select"},{"$f":"Import!E20996","v":0},{"$f":"Import!E21196","v":0},{"$f":"Import!E21396","v":0}]
[99,{"$f":"Import!E20397","v":"Select"},{"$f":"Import!E20597","v":"Select"},{"$f":"Import!E20797","v":"Select"},{"$f":"Import!E20997","v":0},{"$f":"Import!E21197","v":0},{"$f":"Import!E21397","v":0}]
[100,{"$f":"Import!E20398","v":"Select"},{"$f":"Import!E20598","v":"Select"},{"$f":"Import!E20798","v":"Select"},{"$f":"Import!E20998","v":0},{"$f":"Import!E21198","v":0},{"$f":"Import!E21398","v":0}]
[101,{"$f":"Import!E20399","v":"Select"},{"$f":"Import!E20599","v":"Select"},{"$f":"Import!E20799","v":"Select"},{"$f":"Import!E20999","v":0},{"$f":"Import!E21199","v":0},{"$f":"Import!E21399","v":0}]
[102,{"$f":"Import!E20400","v":"Select"},{"$f":"Import!E20600","v":"Select"},{"$f":"Import!E20800","v":"Select"},{"$f":"Import!E21000","v":0},{"$f":"Import!E21200","v":0},{"$f":"Import!E21400","v":0}]
[103,{"$f":"Import!E20401","v":"Select"},{"$f":"Import!E20601","v":"Select"},{"$f":"Import!E20801","v":"Select"},{"$f":"Import!E21001","v":0},{"$f":"Import!E21201","v":0},{"$f":"Import!E21401","v":0}]
[104,{"$f":"Import!E20402","v":"Select"},{"$f":"Import!E20602","v":"Select"},{"$f":"Import!E20802","v":"Select"},{"$f":"Import!E21002","v":0},{"$f":"Import!E21202","v":0},{"$f":"Import!E21402","v":0}]
[105,{"$f":"Import!E20403","v":"Select"},{"$f":"Import!E20603","v":"Select"},{"$f":"Import!E20803","v":"Select"},{"$f":"Import!E21003","v":0},{"$f":"Import!E21203","v":0},{"$f":"Import!E21403","v":0}]
[106,{"$f":"Import!E20404","v":"Select"},{"$f":"Import!E20604","v":"Select"},{"$f":"Import!E20804","v":"Select"},{"$f":"Import!E21004","v":0},{"$f":"Import!E21204","v":0},{"$f":"Import!E21404","v":0}]
[107,{"$f":"Import!E20405","v":"Select"},{"$f":"Import!E20605","v":"Select"},{"$f":"Import!E20805","v":"Select"},{"$f":"Import!E21005","v":0},{"$f":"Import!E21205","v":0},{"$f":"Import!E21405","v":0}]
[108,{"$f":"Import!E20406","v":"Select"},{"$f":"Import!E20606","v":"Select"},{"$f":"Import!E20806","v":"Select"},{"$f":"Import!E21006","v":0},{"$f":"Import!E21206","v":0},{"$f":"Import!E21406","v":0}]
[109,{"$f":"Import!E20407","v":"Select"},{"$f":"Import!E20607","v":"Select"},{"$f":"Import!E20807","v":"Select"},{"$f":"Import!E21007","v":0},{"$f":"Import!E21207","v":0},{"$f":"Import!E21407","v":0}]
[110,{"$f":"Import!E20408","v":"Select"},{"$f":"Import!E20608","v":"Select"},{"$f":"Import!E20808","v":"Select"},{"$f":"Import!E21008","v":0},{"$f":"Import!E21208","v":0},{"$f":"Import!E21408","v":0}]
[111,{"$f":"Import!E20409","v":"Select"},{"$f":"Import!E20609","v":"Select"},{"$f":"Import!E20809","v":"Select"},{"$f":"Import!E21009","v":0},{"$f":"Import!E21209","v":0},{"$f":"Import!E21409","v":0}]
[112,{"$f":"Import!E20410","v":"Select"},{"$f":"Import!E20610","v":"Select"},{"$f":"Import!E20810","v":"Select"},{"$f":"Import!E21010","v":0},{"$f":"Import!E21210","v":0},{"$f":"Import!E21410","v":0}]
[113,{"$f":"Import!E20411","v":"Select"},{"$f":"Import!E20611","v":"Select"},{"$f":"Import!E20811","v":"Select"},{"$f":"Import!E21011","v":0},{"$f":"Import!E21211","v":0},{"$f":"Import!E21411","v":0}]
[114,{"$f":"Import!E20412","v":"Select"},{"$f":"Import!E20612","v":"Select"},{"$f":"Import!E20812","v":"Select"},{"$f":"Import!E21012","v":0},{"$f":"Import!E21212","v":0},{"$f":"Import!E21412","v":0}]
[115,{"$f":"Import!E20413","v":"Select"},{"$f":"Import!E20613","v":"Select"},{"$f":"Import!E20813","v":"Select"},{"$f":"Import!E21013","v":0},{"$f":"Import!E21213","v":0},{"$f":"Import!E21413","v":0}]
[116,{"$f":"Import!E20414","v":"Select"},{"$f":"Import!E20614","v":"Select"},{"$f":"Import!E20814","v":"Select"},{"$f":"Import!E21014","v":0},{"$f":"Import!E21214","v":0},{"$f":"Import!E21414","v":0}]
[117,{"$f":"Import!E20415","v":"Select"},{"$f":"Import!E20615","v":"Select"},{"$f":"Import!E20815","v":"Select"},{"$f":"Import!E21015","v":0},{"$f":"Import!E21215","v":0},{"$f":"Import!E21415","v":0}]
[118,{"$f":"Import!E20416","v":"Select"},{"$f":"Import!E20616","v":"Select"},{"$f":"Import!E20816","v":"Select"},{"$f":"Import!E21016","v":0},{"$f":"Import!E21216","v":0},{"$f":"Import!E21416","v":0}]
[119,{"$f":"Import!E20417","v":"Select"},{"$f":"Import!E20617","v":"Select"},{"$f":"Import!E20817","v":"Select"},{"$f":"Import!E21017","v":0},{"$f":"Import!E21217","v":0},{"$f":"Import!E21417","v":0}]
[120,{"$f":"Import!E20418","v":"Select"},{"$f":"Import!E20618","v":"Select"},{"$f":"Import!E20818","v":"Select"},{"$f":"Import!E21018","v":0},{"$f":"Import!E21218","v":0},{"$f":"Import!E21418","v":0}]
[121,{"$f":"Import!E20419","v":"Select"},{"$f":"Import!E20619","v":"Select"},{"$f":"Import!E20819","v":"Select"},{"$f":"Import!E21019","v":0},{"$f":"Import!E21219","v":0},{"$f":"Import!E21419","v":0}]
[122,{"$f":"Import!E20420","v":"Select"},{"$f":"Import!E20620","v":"Select"},{"$f":"Import!E20820","v":"Select"},{"$f":"Import!E21020","v":0},{"$f":"Import!E21220","v":0},{"$f":"Import!E21420","v":0}]
[123,{"$f":"Import!E20421","v":"Select"},{"$f":"Import!E20621","v":"Select"},{"$f":"Import!E20821","v":"Select"},{"$f":"Import!E21021","v":0},{"$f":"Import!E21221","v":0},{"$f":"Import!E21421","v":0}]
[124,{"$f":"Import!E20422","v":"Select"},{"$f":"Import!E20622","v":"Select"},{"$f":"Import!E20822","v":"Select"},{"$f":"Import!E21022","v":0},{"$f":"Import!E21222","v":0},{"$f":"Import!E21422","v":0}]
[125,{"$f":"Import!E20423","v":"Select"},{"$f":"Import!E20623","v":"Select"},{"$f":"Import!E20823","v":"Select"},{"$f":"Import!E21023","v":0},{"$f":"Import!E21223","v":0},{"$f":"Import!E21423","v":0}]
[126,{"$f":"Import!E20424","v":"Select"},{"$f":"Import!E20624","v":"Select"},{"$f":"Import!E20824","v":"Select"},{"$f":"Import!E21024","v":0},{"$f":"Import!E21224","v":0},{"$f":"Import!E21424","v":0}]
[127,{"$f":"Import!E20425","v":"Select"},{"$f":"Import!E20625","v":"Select"},{"$f":"Import!E20825","v":"Select"},{"$f":"Import!E21025","v":0},{"$f":"Import!E21225","v":0},{"$f":"Import!E21425","v":0}]
[128,{"$f":"Import!E20426","v":"Select"},{"$f":"Import!E20626","v":"Select"},{"$f":"Import!E20826","v":"Select"},{"$f":"Import!E21026","v":0},{"$f":"Import!E21226","v":0},{"$f":"Import!E21426","v":0}]
[129,{"$f":"Import!E20427","v":"Select"},{"$f":"Import!E20627","v":"Select"},{"$f":"Import!E20827","v":"Select"},{"$f":"Import!E21027","v":0},{"$f":"Import!E21227","v":0},{"$f":"Import!E21427","v":0}]
[130,{"$f":"Import!E20428","v":"Select"},{"$f":"Import!E20628","v":"Select"},{"$f":"Import!E20828","v":"Select"},{"$f":"Import!E21028","v":0},{"$f":"Import!E21228","v":0},{"$f":"Import!E21428","v":0}]
[{"$f":"A140+1","v":131},{"$f":"Import!E20429","v":"Select"},{"$f":"Import!E20629","v":"Select"},{"$f":"Import!E20829","v":"Select"},{"$f":"Import!E21029","v":0},{"$f":"Import!E21229","v":0},{"$f":"Import!E21429","v":0}]
[132,{"$f":"Import!E20430","v":"Select"},{"$f":"Import!E20630","v":"Select"},{"$f":"Import!E20830","v":"Select"},{"$f":"Import!E21030","v":0},{"$f":"Import!E21230","v":0},{"$f":"Import!E21430","v":0}]
[133,{"$f":"Import!E20431","v":"Select"},{"$f":"Import!E20631","v":"Select"},{"$f":"Import!E20831","v":"Select"},{"$f":"Import!E21031","v":0},{"$f":"Import!E21231","v":0},{"$f":"Import!E21431","v":0}]
[134,{"$f":"Import!E20432","v":"Select"},{"$f":"Import!E20632","v":"Select"},{"$f":"Import!E20832","v":"Select"},{"$f":"Import!E21032","v":0},{"$f":"Import!E21232","v":0},{"$f":"Import!E21432","v":0}]
[135,{"$f":"Import!E20433","v":"Select"},{"$f":"Import!E20633","v":"Select"},{"$f":"Import!E20833","v":"Select"},{"$f":"Import!E21033","v":0},{"$f":"Import!E21233","v":0},{"$f":"Import!E21433","v":0}]
[136,{"$f":"Import!E20434","v":"Select"},{"$f":"Import!E20634","v":"Select"},{"$f":"Import!E20834","v":"Select"},{"$f":"Import!E21034","v":0},{"$f":"Import!E21234","v":0},{"$f":"Import!E21434","v":0}]
[137,{"$f":"Import!E20435","v":"Select"},{"$f":"Import!E20635","v":"Select"},{"$f":"Import!E20835","v":"Select"},{"$f":"Import!E21035","v":0},{"$f":"Import!E21235","v":0},{"$f":"Import!E21435","v":0}]
[138,{"$f":"Import!E20436","v":"Select"},{"$f":"Import!E20636","v":"Select"},{"$f":"Import!E20836","v":"Select"},{"$f":"Import!E21036","v":0},{"$f":"Import!E21236","v":0},{"$f":"Import!E21436","v":0}]
[139,{"$f":"Import!E20437","v":"Select"},{"$f":"Import!E20637","v":"Select"},{"$f":"Import!E20837","v":"Select"},{"$f":"Import!E21037","v":0},{"$f":"Import!E21237","v":0},{"$f":"Import!E21437","v":0}]
[140,{"$f":"Import!E20438","v":"Select"},{"$f":"Import!E20638","v":"Select"},{"$f":"Import!E20838","v":"Select"},{"$f":"Import!E21038","v":0},{"$f":"Import!E21238","v":0},{"$f":"Import!E21438","v":0}]
[141,{"$f":"Import!E20439","v":"Select"},{"$f":"Import!E20639","v":"Select"},{"$f":"Import!E20839","v":"Select"},{"$f":"Import!E21039","v":0},{"$f":"Import!E21239","v":0},{"$f":"Import!E21439","v":0}]
[142,{"$f":"Import!E20440","v":"Select"},{"$f":"Import!E20640","v":"Select"},{"$f":"Import!E20840","v":"Select"},{"$f":"Import!E21040","v":0},{"$f":"Import!E21240","v":0},{"$f":"Import!E21440","v":0}]
[143,{"$f":"Import!E20441","v":"Select"},{"$f":"Import!E20641","v":"Select"},{"$f":"Import!E20841","v":"Select"},{"$f":"Import!E21041","v":0},{"$f":"Import!E21241","v":0},{"$f":"Import!E21441","v":0}]
[144,{"$f":"Import!E20442","v":"Select"},{"$f":"Import!E20642","v":"Select"},{"$f":"Import!E20842","v":"Select"},{"$f":"Import!E21042","v":0},{"$f":"Import!E21242","v":0},{"$f":"Import!E21442","v":0}]
[145,{"$f":"Import!E20443","v":"Select"},{"$f":"Import!E20643","v":"Select"},{"$f":"Import!E20843","v":"Select"},{"$f":"Import!E21043","v":0},{"$f":"Import!E21243","v":0},{"$f":"Import!E21443","v":0}]
[146,{"$f":"Import!E20444","v":"Select"},{"$f":"Import!E20644","v":"Select"},{"$f":"Import!E20844","v":"Select"},{"$f":"Import!E21044","v":0},{"$f":"Import!E21244","v":0},{"$f":"Import!E21444","v":0}]
[147,{"$f":"Import!E20445","v":"Select"},{"$f":"Import!E20645","v":"Select"},{"$f":"Import!E20845","v":"Select"},{"$f":"Import!E21045","v":0},{"$f":"Import!E21245","v":0},{"$f":"Import!E21445","v":0}]
[148,{"$f":"Import!E20446","v":"Select"},{"$f":"Import!E20646","v":"Select"},{"$f":"Import!E20846","v":"Select"},{"$f":"Import!E21046","v":0},{"$f":"Import!E21246","v":0},{"$f":"Import!E21446","v":0}]
[149,{"$f":"Import!E20447","v":"Select"},{"$f":"Import!E20647","v":"Select"},{"$f":"Import!E20847","v":"Select"},{"$f":"Import!E21047","v":0},{"$f":"Import!E21247","v":0},{"$f":"Import!E21447","v":0}]
[150,{"$f":"Import!E20448","v":"Select"},{"$f":"Import!E20648","v":"Select"},{"$f":"Import!E20848","v":"Select"},{"$f":"Import!E21048","v":0},{"$f":"Import!E21248","v":0},{"$f":"Import!E21448","v":0}]
[151,{"$f":"Import!E20449","v":"Select"},{"$f":"Import!E20649","v":"Select"},{"$f":"Import!E20849","v":"Select"},{"$f":"Import!E21049","v":0},{"$f":"Import!E21249","v":0},{"$f":"Import!E21449","v":0}]
[152,{"$f":"Import!E20450","v":"Select"},{"$f":"Import!E20650","v":"Select"},{"$f":"Import!E20850","v":"Select"},{"$f":"Import!E21050","v":0},{"$f":"Import!E21250","v":0},{"$f":"Import!E21450","v":0}]
[153,{"$f":"Import!E20451","v":"Select"},{"$f":"Import!E20651","v":"Select"},{"$f":"Import!E20851","v":"Select"},{"$f":"Import!E21051","v":0},{"$f":"Import!E21251","v":0},{"$f":"Import!E21451","v":0}]
[154,{"$f":"Import!E20452","v":"Select"},{"$f":"Import!E20652","v":"Select"},{"$f":"Import!E20852","v":"Select"},{"$f":"Import!E21052","v":0},{"$f":"Import!E21252","v":0},{"$f":"Import!E21452","v":0}]
[155,{"$f":"Import!E20453","v":"Select"},{"$f":"Import!E20653","v":"Select"},{"$f":"Import!E20853","v":"Select"},{"$f":"Import!E21053","v":0},{"$f":"Import!E21253","v":0},{"$f":"Import!E21453","v":0}]
[156,{"$f":"Import!E20454","v":"Select"},{"$f":"Import!E20654","v":"Select"},{"$f":"Import!E20854","v":"Select"},{"$f":"Import!E21054","v":0},{"$f":"Import!E21254","v":0},{"$f":"Import!E21454","v":0}]
[157,{"$f":"Import!E20455","v":"Select"},{"$f":"Import!E20655","v":"Select"},{"$f":"Import!E20855","v":"Select"},{"$f":"Import!E21055","v":0},{"$f":"Import!E21255","v":0},{"$f":"Import!E21455","v":0}]
[158,{"$f":"Import!E20456","v":"Select"},{"$f":"Import!E20656","v":"Select"},{"$f":"Import!E20856","v":"Select"},{"$f":"Import!E21056","v":0},{"$f":"Import!E21256","v":0},{"$f":"Import!E21456","v":0}]
[159,{"$f":"Import!E20457","v":"Select"},{"$f":"Import!E20657","v":"Select"},{"$f":"Import!E20857","v":"Select"},{"$f":"Import!E21057","v":0},{"$f":"Import!E21257","v":0},{"$f":"Import!E21457","v":0}]
[160,{"$f":"Import!E20458","v":"Select"},{"$f":"Import!E20658","v":"Select"},{"$f":"Import!E20858","v":"Select"},{"$f":"Import!E21058","v":0},{"$f":"Import!E21258","v":0},{"$f":"Import!E21458","v":0}]
[161,{"$f":"Import!E20459","v":"Select"},{"$f":"Import!E20659","v":"Select"},{"$f":"Import!E20859","v":"Select"},{"$f":"Import!E21059","v":0},{"$f":"Import!E21259","v":0},{"$f":"Import!E21459","v":0}]
[162,{"$f":"Import!E20460","v":"Select"},{"$f":"Import!E20660","v":"Select"},{"$f":"Import!E20860","v":"Select"},{"$f":"Import!E21060","v":0},{"$f":"Import!E21260","v":0},{"$f":"Import!E21460","v":0}]
[163,{"$f":"Import!E20461","v":"Select"},{"$f":"Import!E20661","v":"Select"},{"$f":"Import!E20861","v":"Select"},{"$f":"Import!E21061","v":0},{"$f":"Import!E21261","v":0},{"$f":"Import!E21461","v":0}]
[164,{"$f":"Import!E20462","v":"Select"},{"$f":"Import!E20662","v":"Select"},{"$f":"Import!E20862","v":"Select"},{"$f":"Import!E21062","v":0},{"$f":"Import!E21262","v":0},{"$f":"Import!E21462","v":0}]
[165,{"$f":"Import!E20463","v":"Select"},{"$f":"Import!E20663","v":"Select"},{"$f":"Import!E20863","v":"Select"},{"$f":"Import!E21063","v":0},{"$f":"Import!E21263","v":0},{"$f":"Import!E21463","v":0}]
[166,{"$f":"Import!E20464","v":"Select"},{"$f":"Import!E20664","v":"Select"},{"$f":"Import!E20864","v":"Select"},{"$f":"Import!E21064","v":0},{"$f":"Import!E21264","v":0},{"$f":"Import!E21464","v":0}]
[167,{"$f":"Import!E20465","v":"Select"},{"$f":"Import!E20665","v":"Select"},{"$f":"Import!E20865","v":"Select"},{"$f":"Import!E21065","v":0},{"$f":"Import!E21265","v":0},{"$f":"Import!E21465","v":0}]
[168,{"$f":"Import!E20466","v":"Select"},{"$f":"Import!E20666","v":"Select"},{"$f":"Import!E20866","v":"Select"},{"$f":"Import!E21066","v":0},{"$f":"Import!E21266","v":0},{"$f":"Import!E21466","v":0}]
[169,{"$f":"Import!E20467","v":"Select"},{"$f":"Import!E20667","v":"Select"},{"$f":"Import!E20867","v":"Select"},{"$f":"Import!E21067","v":0},{"$f":"Import!E21267","v":0},{"$f":"Import!E21467","v":0}]
[170,{"$f":"Import!E20468","v":"Select"},{"$f":"Import!E20668","v":"Select"},{"$f":"Import!E20868","v":"Select"},{"$f":"Import!E21068","v":0},{"$f":"Import!E21268","v":0},{"$f":"Import!E21468","v":0}]
[171,{"$f":"Import!E20469","v":"Select"},{"$f":"Import!E20669","v":"Select"},{"$f":"Import!E20869","v":"Select"},{"$f":"Import!E21069","v":0},{"$f":"Import!E21269","v":0},{"$f":"Import!E21469","v":0}]
[172,{"$f":"Import!E20470","v":"Select"},{"$f":"Import!E20670","v":"Select"},{"$f":"Import!E20870","v":"Select"},{"$f":"Import!E21070","v":0},{"$f":"Import!E21270","v":0},{"$f":"Import!E21470","v":0}]
[173,{"$f":"Import!E20471","v":"Select"},{"$f":"Import!E20671","v":"Select"},{"$f":"Import!E20871","v":"Select"},{"$f":"Import!E21071","v":0},{"$f":"Import!E21271","v":0},{"$f":"Import!E21471","v":0}]
[174,{"$f":"Import!E20472","v":"Select"},{"$f":"Import!E20672","v":"Select"},{"$f":"Import!E20872","v":"Select"},{"$f":"Import!E21072","v":0},{"$f":"Import!E21272","v":0},{"$f":"Import!E21472","v":0}]
[175,{"$f":"Import!E20473","v":"Select"},{"$f":"Import!E20673","v":"Select"},{"$f":"Import!E20873","v":"Select"},{"$f":"Import!E21073","v":0},{"$f":"Import!E21273","v":0},{"$f":"Import!E21473","v":0}]
[176,{"$f":"Import!E20474","v":"Select"},{"$f":"Import!E20674","v":"Select"},{"$f":"Import!E20874","v":"Select"},{"$f":"Import!E21074","v":0},{"$f":"Import!E21274","v":0},{"$f":"Import!E21474","v":0}]
[177,{"$f":"Import!E20475","v":"Select"},{"$f":"Import!E20675","v":"Select"},{"$f":"Import!E20875","v":"Select"},{"$f":"Import!E21075","v":0},{"$f":"Import!E21275","v":0},{"$f":"Import!E21475","v":0}]
[178,{"$f":"Import!E20476","v":"Select"},{"$f":"Import!E20676","v":"Select"},{"$f":"Import!E20876","v":"Select"},{"$f":"Import!E21076","v":0},{"$f":"Import!E21276","v":0},{"$f":"Import!E21476","v":0}]
[179,{"$f":"Import!E20477","v":"Select"},{"$f":"Import!E20677","v":"Select"},{"$f":"Import!E20877","v":"Select"},{"$f":"Import!E21077","v":0},{"$f":"Import!E21277","v":0},{"$f":"Import!E21477","v":0}]
[180,{"$f":"Import!E20478","v":"Select"},{"$f":"Import!E20678","v":"Select"},{"$f":"Import!E20878","v":"Select"},{"$f":"Import!E21078","v":0},{"$f":"Import!E21278","v":0},{"$f":"Import!E21478","v":0}]
[181,{"$f":"Import!E20479","v":"Select"},{"$f":"Import!E20679","v":"Select"},{"$f":"Import!E20879","v":"Select"},{"$f":"Import!E21079","v":0},{"$f":"Import!E21279","v":0},{"$f":"Import!E21479","v":0}]
[182,{"$f":"Import!E20480","v":"Select"},{"$f":"Import!E20680","v":"Select"},{"$f":"Import!E20880","v":"Select"},{"$f":"Import!E21080","v":0},{"$f":"Import!E21280","v":0},{"$f":"Import!E21480","v":0}]
[183,{"$f":"Import!E20481","v":"Select"},{"$f":"Import!E20681","v":"Select"},{"$f":"Import!E20881","v":"Select"},{"$f":"Import!E21081","v":0},{"$f":"Import!E21281","v":0},{"$f":"Import!E21481","v":0}]
[184,{"$f":"Import!E20482","v":"Select"},{"$f":"Import!E20682","v":"Select"},{"$f":"Import!E20882","v":"Select"},{"$f":"Import!E21082","v":0},{"$f":"Import!E21282","v":0},{"$f":"Import!E21482","v":0}]
[185,{"$f":"Import!E20483","v":"Select"},{"$f":"Import!E20683","v":"Select"},{"$f":"Import!E20883","v":"Select"},{"$f":"Import!E21083","v":0},{"$f":"Import!E21283","v":0},{"$f":"Import!E21483","v":0}]
[186,{"$f":"Import!E20484","v":"Select"},{"$f":"Import!E20684","v":"Select"},{"$f":"Import!E20884","v":"Select"},{"$f":"Import!E21084","v":0},{"$f":"Import!E21284","v":0},{"$f":"Import!E21484","v":0}]
[187,{"$f":"Import!E20485","v":"Select"},{"$f":"Import!E20685","v":"Select"},{"$f":"Import!E20885","v":"Select"},{"$f":"Import!E21085","v":0},{"$f":"Import!E21285","v":0},{"$f":"Import!E21485","v":0}]
[188,{"$f":"Import!E20486","v":"Select"},{"$f":"Import!E20686","v":"Select"},{"$f":"Import!E20886","v":"Select"},{"$f":"Import!E21086","v":0},{"$f":"Import!E21286","v":0},{"$f":"Import!E21486","v":0}]
[189,{"$f":"Import!E20487","v":"Select"},{"$f":"Import!E20687","v":"Select"},{"$f":"Import!E20887","v":"Select"},{"$f":"Import!E21087","v":0},{"$f":"Import!E21287","v":0},{"$f":"Import!E21487","v":0}]
[190,{"$f":"Import!E20488","v":"Select"},{"$f":"Import!E20688","v":"Select"},{"$f":"Import!E20888","v":"Select"},{"$f":"Import!E21088","v":0},{"$f":"Import!E21288","v":0},{"$f":"Import!E21488","v":0}]
[191,{"$f":"Import!E20489","v":"Select"},{"$f":"Import!E20689","v":"Select"},{"$f":"Import!E20889","v":"Select"},{"$f":"Import!E21089","v":0},{"$f":"Import!E21289","v":0},{"$f":"Import!E21489","v":0}]
[192,{"$f":"Import!E20490","v":"Select"},{"$f":"Import!E20690","v":"Select"},{"$f":"Import!E20890","v":"Select"},{"$f":"Import!E21090","v":0},{"$f":"Import!E21290","v":0},{"$f":"Import!E21490","v":0}]
[193,{"$f":"Import!E20491","v":"Select"},{"$f":"Import!E20691","v":"Select"},{"$f":"Import!E20891","v":"Select"},{"$f":"Import!E21091","v":0},{"$f":"Import!E21291","v":0},{"$f":"Import!E21491","v":0}]
[194,{"$f":"Import!E20492","v":"Select"},{"$f":"Import!E20692","v":"Select"},{"$f":"Import!E20892","v":"Select"},{"$f":"Import!E21092","v":0},{"$f":"Import!E21292","v":0},{"$f":"Import!E21492","v":0}]
[{"$f":"A204+1","v":195},{"$f":"Import!E20493","v":"Select"},{"$f":"Import!E20693","v":"Select"},{"$f":"Import!E20893","v":"Select"},{"$f":"Import!E21093","v":0},{"$f":"Import!E21293","v":0},{"$f":"Import!E21493","v":0}]
[196,{"$f":"Import!E20494","v":"Select"},{"$f":"Import!E20694","v":"Select"},{"$f":"Import!E20894","v":"Select"},{"$f":"Import!E21094","v":0},{"$f":"Import!E21294","v":0},{"$f":"Import!E21494","v":0}]
[197,{"$f":"Import!E20495","v":"Select"},{"$f":"Import!E20695","v":"Select"},{"$f":"Import!E20895","v":"Select"},{"$f":"Import!E21095","v":0},{"$f":"Import!E21295","v":0},{"$f":"Import!E21495","v":0}]
[198,{"$f":"Import!E20496","v":"Select"},{"$f":"Import!E20696","v":"Select"},{"$f":"Import!E20896","v":"Select"},{"$f":"Import!E21096","v":0},{"$f":"Import!E21296","v":0},{"$f":"Import!E21496","v":0}]
[199,{"$f":"Import!E20497","v":"Select"},{"$f":"Import!E20697","v":"Select"},{"$f":"Import!E20897","v":"Select"},{"$f":"Import!E21097","v":0},{"$f":"Import!E21297","v":0},{"$f":"Import!E21497","v":0}]
[200,{"$f":"Import!E20498","v":"Select"},{"$f":"Import!E20698","v":"Select"},{"$f":"Import!E20898","v":"Select"},{"$f":"Import!E21098","v":0},{"$f":"Import!E21298","v":0},{"$f":"Import!E21498","v":0}]
[]
[null,"Total Cash and Cash Equivalents",null,null,{"$f":"SUM(E11:E210)","v":0},{"$f":"SUM(F11:F210)","v":0}]
[]
[null,"(B) BONDS AND DEBENTURES"]
[]
[null,null,"Enter # of Asset Types",{"$f":"Import!E21499","v":0}]
[null,null,null,null,{"$f":"YEAR($C$3)","v":2023},2023,"Weighted"]
[null,"Asset Type","Currency","BSCR Rating","Nominal Amount","Fair Value","Average YTM","Effective Duration","Comments"]
[1,{"$f":"Import!E21500","v":"Select"},{"$f":"Import!E21900","v":"Select"},{"$f":"Import!E22300","v":"Select"},{"$f":"Import!E22700","v":0},{"$f":"Import!E23100","v":0},{"$f":"Import!E23500","v":0},{"$f":"Import!E23900","v":0},{"$f":"Import!E24300","v":0}]
[{"$f":"A219+1","v":2},{"$f":"Import!E21501","v":"Select"},{"$f":"Import!E21901","v":"Select"},{"$f":"Import!E22301","v":"Select"},{"$f":"Import!E22701","v":0},{"$f":"Import!E23101","v":0},{"$f":"Import!E23501","v":0},{"$f":"Import!E23901","v":0},{"$f":"Import!E24301","v":0}]
[{"$f":"A220+1","v":3},{"$f":"Import!E21502","v":"Select"},{"$f":"Import!E21902","v":"Select"},{"$f":"Import!E22302","v":"Select"},{"$f":"Import!E22702","v":0},{"$f":"Import!E23102","v":0},{"$f":"Import!E23502","v":0},{"$f":"Import!E23902","v":0},{"$f":"Import!E24302","v":0}]
[4,{"$f":"Import!E21503","v":"Select"},{"$f":"Import!E21903","v":"Select"},{"$f":"Import!E22303","v":"Select"},{"$f":"Import!E22703","v":0},{"$f":"Import!E23103","v":0},{"$f":"Import!E23503","v":0},{"$f":"Import!E23903","v":0},{"$f":"Import!E24303","v":0}]
[5,{"$f":"Import!E21504","v":"Select"},{"$f":"Import!E21904","v":"Select"},{"$f":"Import!E22304","v":"Select"},{"$f":"Import!E22704","v":0},{"$f":"Import!E23104","v":0},{"$f":"Import!E23504","v":0},{"$f":"Import!E23904","v":0},{"$f":"Import!E24304","v":0}]
[6,{"$f":"Import!E21505","v":"Select"},{"$f":"Import!E21905","v":"Select"},{"$f":"Import!E22305","v":"Select"},{"$f":"Import!E22705","v":0},{"$f":"Import!E23105","v":0},{"$f":"Import!E23505","v":0},{"$f":"Import!E23905","v":0},{"$f":"Import!E24305","v":0}]
[7,{"$f":"Import!E21506","v":"Select"},{"$f":"Import!E21906","v":"Select"},{"$f":"Import!E22306","v":"Select"},{"$f":"Import!E22706","v":0},{"$f":"Import!E23106","v":0},{"$f":"Import!E23506","v":0},{"$f":"Import!E23906","v":0},{"$f":"Import!E24306","v":0}]
[8,{"$f":"Import!E21507","v":"Select"},{"$f":"Import!E21907","v":"Select"},{"$f":"Import!E22307","v":"Select"},{"$f":"Import!E22707","v":0},{"$f":"Import!E23107","v":0},{"$f":"Import!E23507","v":0},{"$f":"Import!E23907","v":0},{"$f":"Import!E24307","v":0}]
[9,{"$f":"Import!E21508","v":"Select"},{"$f":"Import!E21908","v":"Select"},{"$f":"Import!E22308","v":"Select"},{"$f":"Import!E22708","v":0},{"$f":"Import!E23108","v":0},{"$f":"Import!E23508","v":0},{"$f":"Import!E23908","v":0},{"$f":"Import!E24308","v":0}]
[10,{"$f":"Import!E21509","v":"Select"},{"$f":"Import!E21909","v":"Select"},{"$f":"Import!E22309","v":"Select"},{"$f":"Import!E22709","v":0},{"$f":"Import!E23109","v":0},{"$f":"Import!E23509","v":0},{"$f":"Import!E23909","v":0},{"$f":"Import!E24309","v":0}]
[11,{"$f":"Import!E21510","v":"Select"},{"$f":"Import!E21910","v":"Select"},{"$f":"Import!E22310","v":"Select"},{"$f":"Import!E22710","v":0},{"$f":"Import!E23110","v":0},{"$f":"Import!E23510","v":0},{"$f":"Import!E23910","v":0},{"$f":"Import!E24310","v":0}]
[12,{"$f":"Import!E21511","v":"Select"},{"$f":"Import!E21911","v":"Select"},{"$f":"Import!E22311","v":"Select"},{"$f":"Import!E22711","v":0},{"$f":"Import!E23111","v":0},{"$f":"Import!E23511","v":0},{"$f":"Import!E23911","v":0},{"$f":"Import!E24311","v":0}]
[13,{"$f":"Import!E21512","v":"Select"},{"$f":"Import!E21912","v":"Select"},{"$f":"Import!E22312","v":"Select"},{"$f":"Import!E22712","v":0},{"$f":"Import!E23112","v":0},{"$f":"Import!E23512","v":0},{"$f":"Import!E23912","v":0},{"$f":"Import!E24312","v":0}]
[14,{"$f":"Import!E21513","v":"Select"},{"$f":"Import!E21913","v":"Select"},{"$f":"Import!E22313","v":"Select"},{"$f":"Import!E22713","v":0},{"$f":"Import!E23113","v":0},{"$f":"Import!E23513","v":0},{"$f":"Import!E23913","v":0},{"$f":"Import!E24313","v":0}]
[15,{"$f":"Import!E21514","v":"Select"},{"$f":"Import!E21914","v":"Select"},{"$f":"Import!E22314","v":"Select"},{"$f":"Import!E22714","v":0},{"$f":"Import!E23114","v":0},{"$f":"Import!E23514","v":0},{"$f":"Import!E23914","v":0},{"$f":"Import!E24314","v":0}]
[16,{"$f":"Import!E21515","v":"Select"},{"$f":"Import!E21915","v":"Select"},{"$f":"Import!E22315","v":"Select"},{"$f":"Import!E22715","v":0},{"$f":"Import!E23115","v":0},{"$f":"Import!E23515","v":0},{"$f":"Import!E23915","v":0},{"$f":"Import!E24315","v":0}]
[17,{"$f":"Import!E21516","v":"Select"},{"$f":"Import!E21916","v":"Select"},{"$f":"Import!E22316","v":"Select"},{"$f":"Import!E22716","v":0},{"$f":"Import!E23116","v":0},{"$f":"Import!E23516","v":0},{"$f":"Import!E23916","v":0},{"$f":"Import!E24316","v":0}]
[18,{"$f":"Import!E21517","v":"Select"},{"$f":"Import!E21917","v":"Select"},{"$f":"Import!E22317","v":"Select"},{"$f":"Import!E22717","v":0},{"$f":"Import!E23117","v":0},{"$f":"Import!E23517","v":0},{"$f":"Import!E23917","v":0},{"$f":"Import!E24317","v":0}]
[19,{"$f":"Import!E21518","v":"Select"},{"$f":"Import!E21918","v":"Select"},{"$f":"Import!E22318","v":"Select"},{"$f":"Import!E22718","v":0},{"$f":"Import!E23118","v":0},{"$f":"Import!E23518","v":0},{"$f":"Import!E23918","v":0},{"$f":"Import!E24318","v":0}]
[20,{"$f":"Import!E21519","v":"Select"},{"$f":"Import!E21919","v":"Select"},{"$f":"Import!E22319","v":"Select"},{"$f":"Import!E22719","v":0},{"$f":"Import!E23119","v":0},{"$f":"Import!E23519","v":0},{"$f":"Import!E23919","v":0},{"$f":"Import!E24319","v":0}]
[21,{"$f":"Import!E21520","v":"Select"},{"$f":"Import!E21920","v":"Select"},{"$f":"Import!E22320","v":"Select"},{"$f":"Import!E22720","v":0},{"$f":"Import!E23120","v":0},{"$f":"Import!E23520","v":0},{"$f":"Import!E23920","v":0},{"$f":"Import!E24320","v":0}]
[22,{"$f":"Import!E21521","v":"Select"},{"$f":"Import!E21921","v":"Select"},{"$f":"Import!E22321","v":"Select"},{"$f":"Import!E22721","v":0},{"$f":"Import!E23121","v":0},{"$f":"Import!E23521","v":0},{"$f":"Import!E23921","v":0},{"$f":"Import!E24321","v":0}]
[23,{"$f":"Import!E21522","v":"Select"},{"$f":"Import!E21922","v":"Select"},{"$f":"Import!E22322","v":"Select"},{"$f":"Import!E22722","v":0},{"$f":"Import!E23122","v":0},{"$f":"Import!E23522","v":0},{"$f":"Import!E23922","v":0},{"$f":"Import!E24322","v":0}]
[24,{"$f":"Import!E21523","v":"Select"},{"$f":"Import!E21923","v":"Select"},{"$f":"Import!E22323","v":"Select"},{"$f":"Import!E22723","v":0},{"$f":"Import!E23123","v":0},{"$f":"Import!E23523","v":0},{"$f":"Import!E23923","v":0},{"$f":"Import!E24323","v":0}]
[25,{"$f":"Import!E21524","v":"Select"},{"$f":"Import!E21924","v":"Select"},{"$f":"Import!E22324","v":"Select"},{"$f":"Import!E22724","v":0},{"$f":"Import!E23124","v":0},{"$f":"Import!E23524","v":0},{"$f":"Import!E23924","v":0},{"$f":"Import!E24324","v":0}]
[26,{"$f":"Import!E21525","v":"Select"},{"$f":"Import!E21925","v":"Select"},{"$f":"Import!E22325","v":"Select"},{"$f":"Import!E22725","v":0},{"$f":"Import!E23125","v":0},{"$f":"Import!E23525","v":0},{"$f":"Import!E23925","v":0},{"$f":"Import!E24325","v":0}]
[27,{"$f":"Import!E21526","v":"Select"},{"$f":"Import!E21926","v":"Select"},{"$f":"Import!E22326","v":"Select"},{"$f":"Import!E22726","v":0},{"$f":"Import!E23126","v":0},{"$f":"Import!E23526","v":0},{"$f":"Import!E23926","v":0},{"$f":"Import!E24326","v":0}]
[28,{"$f":"Import!E21527","v":"Select"},{"$f":"Import!E21927","v":"Select"},{"$f":"Import!E22327","v":"Select"},{"$f":"Import!E22727","v":0},{"$f":"Import!E23127","v":0},{"$f":"Import!E23527","v":0},{"$f":"Import!E23927","v":0},{"$f":"Import!E24327","v":0}]
[29,{"$f":"Import!E21528","v":"Select"},{"$f":"Import!E21928","v":"Select"},{"$f":"Import!E22328","v":"Select"},{"$f":"Import!E22728","v":0},{"$f":"Import!E23128","v":0},{"$f":"Import!E23528","v":0},{"$f":"Import!E23928","v":0},{"$f":"Import!E24328","v":0}]
[30,{"$f":"Import!E21529","v":"Select"},{"$f":"Import!E21929","v":"Select"},{"$f":"Import!E22329","v":"Select"},{"$f":"Import!E22729","v":0},{"$f":"Import!E23129","v":0},{"$f":"Import!E23529","v":0},{"$f":"Import!E23929","v":0},{"$f":"Import!E24329","v":0}]
[31,{"$f":"Import!E21530","v":"Select"},{"$f":"Import!E21930","v":"Select"},{"$f":"Import!E22330","v":"Select"},{"$f":"Import!E22730","v":0},{"$f":"Import!E23130","v":0},{"$f":"Import!E23530","v":0},{"$f":"Import!E23930","v":0},{"$f":"Import!E24330","v":0}]
[32,{"$f":"Import!E21531","v":"Select"},{"$f":"Import!E21931","v":"Select"},{"$f":"Import!E22331","v":"Select"},{"$f":"Import!E22731","v":0},{"$f":"Import!E23131","v":0},{"$f":"Import!E23531","v":0},{"$f":"Import!E23931","v":0},{"$f":"Import!E24331","v":0}]
[33,{"$f":"Import!E21532","v":"Select"},{"$f":"Import!E21932","v":"Select"},{"$f":"Import!E22332","v":"Select"},{"$f":"Import!E22732","v":0},{"$f":"Import!E23132","v":0},{"$f":"Import!E23532","v":0},{"$f":"Import!E23932","v":0},{"$f":"Import!E24332","v":0}]
[34,{"$f":"Import!E21533","v":"Select"},{"$f":"Import!E21933","v":"Select"},{"$f":"Import!E22333","v":"Select"},{"$f":"Import!E22733","v":0},{"$f":"Import!E23133","v":0},{"$f":"Import!E23533","v":0},{"$f":"Import!E23933","v":0},{"$f":"Import!E24333","v":0}]
[35,{"$f":"Import!E21534","v":"Select"},{"$f":"Import!E21934","v":"Select"},{"$f":"Import!E22334","v":"Select"},{"$f":"Import!E22734","v":0},{"$f":"Import!E23134","v":0},{"$f":"Import!E23534","v":0},{"$f":"Import!E23934","v":0},{"$f":"Import!E24334","v":0}]
[36,{"$f":"Import!E21535","v":"Select"},{"$f":"Import!E21935","v":"Select"},{"$f":"Import!E22335","v":"Select"},{"$f":"Import!E22735","v":0},{"$f":"Import!E23135","v":0},{"$f":"Import!E23535","v":0},{"$f":"Import!E23935","v":0},{"$f":"Import!E24335","v":0}]
[37,{"$f":"Import!E21536","v":"Select"},{"$f":"Import!E21936","v":"Select"},{"$f":"Import!E22336","v":"Select"},{"$f":"Import!E22736","v":0},{"$f":"Import!E23136","v":0},{"$f":"Import!E23536","v":0},{"$f":"Import!E23936","v":0},{"$f":"Import!E24336","v":0}]
[38,{"$f":"Import!E21537","v":"Select"},{"$f":"Import!E21937","v":"Select"},{"$f":"Import!E22337","v":"Select"},{"$f":"Import!E22737","v":0},{"$f":"Import!E23137","v":0},{"$f":"Import!E23537","v":0},{"$f":"Import!E23937","v":0},{"$f":"Import!E24337","v":0}]
[39,{"$f":"Import!E21538","v":"Select"},{"$f":"Import!E21938","v":"Select"},{"$f":"Import!E22338","v":"Select"},{"$f":"Import!E22738","v":0},{"$f":"Import!E23138","v":0},{"$f":"Import!E23538","v":0},{"$f":"Import!E23938","v":0},{"$f":"Import!E24338","v":0}]
[40,{"$f":"Import!E21539","v":"Select"},{"$f":"Import!E21939","v":"Select"},{"$f":"Import!E22339","v":"Select"},{"$f":"Import!E22739","v":0},{"$f":"Import!E23139","v":0},{"$f":"Import!E23539","v":0},{"$f":"Import!E23939","v":0},{"$f":"Import!E24339","v":0}]
[41,{"$f":"Import!E21540","v":"Select"},{"$f":"Import!E21940","v":"Select"},{"$f":"Import!E22340","v":"Select"},{"$f":"Import!E22740","v":0},{"$f":"Import!E23140","v":0},{"$f":"Import!E23540","v":0},{"$f":"Import!E23940","v":0},{"$f":"Import!E24340","v":0}]
[42,{"$f":"Import!E21541","v":"Select"},{"$f":"Import!E21941","v":"Select"},{"$f":"Import!E22341","v":"Select"},{"$f":"Import!E22741","v":0},{"$f":"Import!E23141","v":0},{"$f":"Import!E23541","v":0},{"$f":"Import!E23941","v":0},{"$f":"Import!E24341","v":0}]
[43,{"$f":"Import!E21542","v":"Select"},{"$f":"Import!E21942","v":"Select"},{"$f":"Import!E22342","v":"Select"},{"$f":"Import!E22742","v":0},{"$f":"Import!E23142","v":0},{"$f":"Import!E23542","v":0},{"$f":"Import!E23942","v":0},{"$f":"Import!E24342","v":0}]
[44,{"$f":"Import!E21543","v":"Select"},{"$f":"Import!E21943","v":"Select"},{"$f":"Import!E22343","v":"Select"},{"$f":"Import!E22743","v":0},{"$f":"Import!E23143","v":0},{"$f":"Import!E23543","v":0},{"$f":"Import!E23943","v":0},{"$f":"Import!E24343","v":0}]
[45,{"$f":"Import!E21544","v":"Select"},{"$f":"Import!E21944","v":"Select"},{"$f":"Import!E22344","v":"Select"},{"$f":"Import!E22744","v":0},{"$f":"Import!E23144","v":0},{"$f":"Import!E23544","v":0},{"$f":"Import!E23944","v":0},{"$f":"Import!E24344","v":0}]
[46,{"$f":"Import!E21545","v":"Select"},{"$f":"Import!E21945","v":"Select"},{"$f":"Import!E22345","v":"Select"},{"$f":"Import!E22745","v":0},{"$f":"Import!E23145","v":0},{"$f":"Import!E23545","v":0},{"$f":"Import!E23945","v":0},{"$f":"Import!E24345","v":0}]
[47,{"$f":"Import!E21546","v":"Select"},{"$f":"Import!E21946","v":"Select"},{"$f":"Import!E22346","v":"Select"},{"$f":"Import!E22746","v":0},{"$f":"Import!E23146","v":0},{"$f":"Import!E23546","v":0},{"$f":"Import!E23946","v":0},{"$f":"Import!E24346","v":0}]
[48,{"$f":"Import!E21547","v":"Select"},{"$f":"Import!E21947","v":"Select"},{"$f":"Import!E22347","v":"Select"},{"$f":"Import!E22747","v":0},{"$f":"Import!E23147","v":0},{"$f":"Import!E23547","v":0},{"$f":"Import!E23947","v":0},{"$f":"Import!E24347","v":0}]
[49,{"$f":"Import!E21548","v":"Select"},{"$f":"Import!E21948","v":"Select"},{"$f":"Import!E22348","v":"Select"},{"$f":"Import!E22748","v":0},{"$f":"Import!E23148","v":0},{"$f":"Import!E23548","v":0},{"$f":"Import!E23948","v":0},{"$f":"Import!E24348","v":0}]
[50,{"$f":"Import!E21549","v":"Select"},{"$f":"Import!E21949","v":"Select"},{"$f":"Import!E22349","v":"Select"},{"$f":"Import!E22749","v":0},{"$f":"Import!E23149","v":0},{"$f":"Import!E23549","v":0},{"$f":"Import!E23949","v":0},{"$f":"Import!E24349","v":0}]
[51,{"$f":"Import!E21550","v":"Select"},{"$f":"Import!E21950","v":"Select"},{"$f":"Import!E22350","v":"Select"},{"$f":"Import!E22750","v":0},{"$f":"Import!E23150","v":0},{"$f":"Import!E23550","v":0},{"$f":"Import!E23950","v":0},{"$f":"Import!E24350","v":0}]
[52,{"$f":"Import!E21551","v":"Select"},{"$f":"Import!E21951","v":"Select"},{"$f":"Import!E22351","v":"Select"},{"$f":"Import!E22751","v":0},{"$f":"Import!E23151","v":0},{"$f":"Import!E23551","v":0},{"$f":"Import!E23951","v":0},{"$f":"Import!E24351","v":0}]
[53,{"$f":"Import!E21552","v":"Select"},{"$f":"Import!E21952","v":"Select"},{"$f":"Import!E22352","v":"Select"},{"$f":"Import!E22752","v":0},{"$f":"Import!E23152","v":0},{"$f":"Import!E23552","v":0},{"$f":"Import!E23952","v":0},{"$f":"Import!E24352","v":0}]
[54,{"$f":"Import!E21553","v":"Select"},{"$f":"Import!E21953","v":"Select"},{"$f":"Import!E22353","v":"Select"},{"$f":"Import!E22753","v":0},{"$f":"Import!E23153","v":0},{"$f":"Import!E23553","v":0},{"$f":"Import!E23953","v":0},{"$f":"Import!E24353","v":0}]
[55,{"$f":"Import!E21554","v":"Select"},{"$f":"Import!E21954","v":"Select"},{"$f":"Import!E22354","v":"Select"},{"$f":"Import!E22754","v":0},{"$f":"Import!E23154","v":0},{"$f":"Import!E23554","v":0},{"$f":"Import!E23954","v":0},{"$f":"Import!E24354","v":0}]
[56,{"$f":"Import!E21555","v":"Select"},{"$f":"Import!E21955","v":"Select"},{"$f":"Import!E22355","v":"Select"},{"$f":"Import!E22755","v":0},{"$f":"Import!E23155","v":0},{"$f":"Import!E23555","v":0},{"$f":"Import!E23955","v":0},{"$f":"Import!E24355","v":0}]
[57,{"$f":"Import!E21556","v":"Select"},{"$f":"Import!E21956","v":"Select"},{"$f":"Import!E22356","v":"Select"},{"$f":"Import!E22756","v":0},{"$f":"Import!E23156","v":0},{"$f":"Import!E23556","v":0},{"$f":"Import!E23956","v":0},{"$f":"Import!E24356","v":0}]
[58,{"$f":"Import!E21557","v":"Select"},{"$f":"Import!E21957","v":"Select"},{"$f":"Import!E22357","v":"Select"},{"$f":"Import!E22757","v":0},{"$f":"Import!E23157","v":0},{"$f":"Import!E23557","v":0},{"$f":"Import!E23957","v":0},{"$f":"Import!E24357","v":0}]
[59,{"$f":"Import!E21558","v":"Select"},{"$f":"Import!E21958","v":"Select"},{"$f":"Import!E22358","v":"Select"},{"$f":"Import!E22758","v":0},{"$f":"Import!E23158","v":0},{"$f":"Import!E23558","v":0},{"$f":"Import!E23958","v":0},{"$f":"Import!E24358","v":0}]
[60,{"$f":"Import!E21559","v":"Select"},{"$f":"Import!E21959","v":"Select"},{"$f":"Import!E22359","v":"Select"},{"$f":"Import!E22759","v":0},{"$f":"Import!E23159","v":0},{"$f":"Import!E23559","v":0},{"$f":"Import!E23959","v":0},{"$f":"Import!E24359","v":0}]
[61,{"$f":"Import!E21560","v":"Select"},{"$f":"Import!E21960","v":"Select"},{"$f":"Import!E22360","v":"Select"},{"$f":"Import!E22760","v":0},{"$f":"Import!E23160","v":0},{"$f":"Import!E23560","v":0},{"$f":"Import!E23960","v":0},{"$f":"Import!E24360","v":0}]
[62,{"$f":"Import!E21561","v":"Select"},{"$f":"Import!E21961","v":"Select"},{"$f":"Import!E22361","v":"Select"},{"$f":"Import!E22761","v":0},{"$f":"Import!E23161","v":0},{"$f":"Import!E23561","v":0},{"$f":"Import!E23961","v":0},{"$f":"Import!E24361","v":0}]
[63,{"$f":"Import!E21562","v":"Select"},{"$f":"Import!E21962","v":"Select"},{"$f":"Import!E22362","v":"Select"},{"$f":"Import!E22762","v":0},{"$f":"Import!E23162","v":0},{"$f":"Import!E23562","v":0},{"$f":"Import!E23962","v":0},{"$f":"Import!E24362","v":0}]
[64,{"$f":"Import!E21563","v":"Select"},{"$f":"Import!E21963","v":"Select"},{"$f":"Import!E22363","v":"Select"},{"$f":"Import!E22763","v":0},{"$f":"Import!E23163","v":0},{"$f":"Import!E23563","v":0},{"$f":"Import!E23963","v":0},{"$f":"Import!E24363","v":0}]
[65,{"$f":"Import!E21564","v":"Select"},{"$f":"Import!E21964","v":"Select"},{"$f":"Import!E22364","v":"Select"},{"$f":"Import!E22764","v":0},{"$f":"Import!E23164","v":0},{"$f":"Import!E23564","v":0},{"$f":"Import!E23964","v":0},{"$f":"Import!E24364","v":0}]
[66,{"$f":"Import!E21565","v":"Select"},{"$f":"Import!E21965","v":"Select"},{"$f":"Import!E22365","v":"Select"},{"$f":"Import!E22765","v":0},{"$f":"Import!E23165","v":0},{"$f":"Import!E23565","v":0},{"$f":"Import!E23965","v":0},{"$f":"Import!E24365","v":0}]
[{"$f":"A284+1","v":67},{"$f":"Import!E21566","v":"Select"},{"$f":"Import!E21966","v":"Select"},{"$f":"Import!E22366","v":"Select"},{"$f":"Import!E22766","v":0},{"$f":"Import!E23166","v":0},{"$f":"Import!E23566","v":0},{"$f":"Import!E23966","v":0},{"$f":"Import!E24366","v":0}]
[68,{"$f":"Import!E21567","v":"Select"},{"$f":"Import!E21967","v":"Select"},{"$f":"Import!E22367","v":"Select"},{"$f":"Import!E22767","v":0},{"$f":"Import!E23167","v":0},{"$f":"Import!E23567","v":0},{"$f":"Import!E23967","v":0},{"$f":"Import!E24367","v":0}]
[69,{"$f":"Import!E21568","v":"Select"},{"$f":"Import!E21968","v":"Select"},{"$f":"Import!E22368","v":"Select"},{"$f":"Import!E22768","v":0},{"$f":"Import!E23168","v":0},{"$f":"Import!E23568","v":0},{"$f":"Import!E23968","v":0},{"$f":"Import!E24368","v":0}]
[70,{"$f":"Import!E21569","v":"Select"},{"$f":"Import!E21969","v":"Select"},{"$f":"Import!E22369","v":"Select"},{"$f":"Import!E22769","v":0},{"$f":"Import!E23169","v":0},{"$f":"Import!E23569","v":0},{"$f":"Import!E23969","v":0},{"$f":"Import!E24369","v":0}]
[71,{"$f":"Import!E21570","v":"Select"},{"$f":"Import!E21970","v":"Select"},{"$f":"Import!E22370","v":"Select"},{"$f":"Import!E22770","v":0},{"$f":"Import!E23170","v":0},{"$f":"Import!E23570","v":0},{"$f":"Import!E23970","v":0},{"$f":"Import!E24370","v":0}]
[72,{"$f":"Import!E21571","v":"Select"},{"$f":"Import!E21971","v":"Select"},{"$f":"Import!E22371","v":"Select"},{"$f":"Import!E22771","v":0},{"$f":"Import!E23171","v":0},{"$f":"Import!E23571","v":0},{"$f":"Import!E23971","v":0},{"$f":"Import!E24371","v":0}]
[73,{"$f":"Import!E21572","v":"Select"},{"$f":"Import!E21972","v":"Select"},{"$f":"Import!E22372","v":"Select"},{"$f":"Import!E22772","v":0},{"$f":"Import!E23172","v":0},{"$f":"Import!E23572","v":0},{"$f":"Import!E23972","v":0},{"$f":"Import!E24372","v":0}]
[74,{"$f":"Import!E21573","v":"Select"},{"$f":"Import!E21973","v":"Select"},{"$f":"Import!E22373","v":"Select"},{"$f":"Import!E22773","v":0},{"$f":"Import!E23173","v":0},{"$f":"Import!E23573","v":0},{"$f":"Import!E23973","v":0},{"$f":"Import!E24373","v":0}]
[75,{"$f":"Import!E21574","v":"Select"},{"$f":"Import!E21974","v":"Select"},{"$f":"Import!E22374","v":"Select"},{"$f":"Import!E22774","v":0},{"$f":"Import!E23174","v":0},{"$f":"Import!E23574","v":0},{"$f":"Import!E23974","v":0},{"$f":"Import!E24374","v":0}]
[76,{"$f":"Import!E21575","v":"Select"},{"$f":"Import!E21975","v":"Select"},{"$f":"Import!E22375","v":"Select"},{"$f":"Import!E22775","v":0},{"$f":"Import!E23175","v":0},{"$f":"Import!E23575","v":0},{"$f":"Import!E23975","v":0},{"$f":"Import!E24375","v":0}]
[77,{"$f":"Import!E21576","v":"Select"},{"$f":"Import!E21976","v":"Select"},{"$f":"Import!E22376","v":"Select"},{"$f":"Import!E22776","v":0},{"$f":"Import!E23176","v":0},{"$f":"Import!E23576","v":0},{"$f":"Import!E23976","v":0},{"$f":"Import!E24376","v":0}]
[78,{"$f":"Import!E21577","v":"Select"},{"$f":"Import!E21977","v":"Select"},{"$f":"Import!E22377","v":"Select"},{"$f":"Import!E22777","v":0},{"$f":"Import!E23177","v":0},{"$f":"Import!E23577","v":0},{"$f":"Import!E23977","v":0},{"$f":"Import!E24377","v":0}]
[79,{"$f":"Import!E21578","v":"Select"},{"$f":"Import!E21978","v":"Select"},{"$f":"Import!E22378","v":"Select"},{"$f":"Import!E22778","v":0},{"$f":"Import!E23178","v":0},{"$f":"Import!E23578","v":0},{"$f":"Import!E23978","v":0},{"$f":"Import!E24378","v":0}]
[80,{"$f":"Import!E21579","v":"Select"},{"$f":"Import!E21979","v":"Select"},{"$f":"Import!E22379","v":"Select"},{"$f":"Import!E22779","v":0},{"$f":"Import!E23179","v":0},{"$f":"Import!E23579","v":0},{"$f":"Import!E23979","v":0},{"$f":"Import!E24379","v":0}]
[81,{"$f":"Import!E21580","v":"Select"},{"$f":"Import!E21980","v":"Select"},{"$f":"Import!E22380","v":"Select"},{"$f":"Import!E22780","v":0},{"$f":"Import!E23180","v":0},{"$f":"Import!E23580","v":0},{"$f":"Import!E23980","v":0},{"$f":"Import!E24380","v":0}]
[82,{"$f":"Import!E21581","v":"Select"},{"$f":"Import!E21981","v":"Select"},{"$f":"Import!E22381","v":"Select"},{"$f":"Import!E22781","v":0},{"$f":"Import!E23181","v":0},{"$f":"Import!E23581","v":0},{"$f":"Import!E23981","v":0},{"$f":"Import!E24381","v":0}]
[83,{"$f":"Import!E21582","v":"Select"},{"$f":"Import!E21982","v":"Select"},{"$f":"Import!E22382","v":"Select"},{"$f":"Import!E22782","v":0},{"$f":"Import!E23182","v":0},{"$f":"Import!E23582","v":0},{"$f":"Import!E23982","v":0},{"$f":"Import!E24382","v":0}]
[84,{"$f":"Import!E21583","v":"Select"},{"$f":"Import!E21983","v":"Select"},{"$f":"Import!E22383","v":"Select"},{"$f":"Import!E22783","v":0},{"$f":"Import!E23183","v":0},{"$f":"Import!E23583","v":0},{"$f":"Import!E23983","v":0},{"$f":"Import!E24383","v":0}]
[85,{"$f":"Import!E21584","v":"Select"},{"$f":"Import!E21984","v":"Select"},{"$f":"Import!E22384","v":"Select"},{"$f":"Import!E22784","v":0},{"$f":"Import!E23184","v":0},{"$f":"Import!E23584","v":0},{"$f":"Import!E23984","v":0},{"$f":"Import!E24384","v":0}]
[86,{"$f":"Import!E21585","v":"Select"},{"$f":"Import!E21985","v":"Select"},{"$f":"Import!E22385","v":"Select"},{"$f":"Import!E22785","v":0},{"$f":"Import!E23185","v":0},{"$f":"Import!E23585","v":0},{"$f":"Import!E23985","v":0},{"$f":"Import!E24385","v":0}]
[87,{"$f":"Import!E21586","v":"Select"},{"$f":"Import!E21986","v":"Select"},{"$f":"Import!E22386","v":"Select"},{"$f":"Import!E22786","v":0},{"$f":"Import!E23186","v":0},{"$f":"Import!E23586","v":0},{"$f":"Import!E23986","v":0},{"$f":"Import!E24386","v":0}]
[88,{"$f":"Import!E21587","v":"Select"},{"$f":"Import!E21987","v":"Select"},{"$f":"Import!E22387","v":"Select"},{"$f":"Import!E22787","v":0},{"$f":"Import!E23187","v":0},{"$f":"Import!E23587","v":0},{"$f":"Import!E23987","v":0},{"$f":"Import!E24387","v":0}]
[89,{"$f":"Import!E21588","v":"Select"},{"$f":"Import!E21988","v":"Select"},{"$f":"Import!E22388","v":"Select"},{"$f":"Import!E22788","v":0},{"$f":"Import!E23188","v":0},{"$f":"Import!E23588","v":0},{"$f":"Import!E23988","v":0},{"$f":"Import!E24388","v":0}]
[90,{"$f":"Import!E21589","v":"Select"},{"$f":"Import!E21989","v":"Select"},{"$f":"Import!E22389","v":"Select"},{"$f":"Import!E22789","v":0},{"$f":"Import!E23189","v":0},{"$f":"Import!E23589","v":0},{"$f":"Import!E23989","v":0},{"$f":"Import!E24389","v":0}]
[91,{"$f":"Import!E21590","v":"Select"},{"$f":"Import!E21990","v":"Select"},{"$f":"Import!E22390","v":"Select"},{"$f":"Import!E22790","v":0},{"$f":"Import!E23190","v":0},{"$f":"Import!E23590","v":0},{"$f":"Import!E23990","v":0},{"$f":"Import!E24390","v":0}]
[92,{"$f":"Import!E21591","v":"Select"},{"$f":"Import!E21991","v":"Select"},{"$f":"Import!E22391","v":"Select"},{"$f":"Import!E22791","v":0},{"$f":"Import!E23191","v":0},{"$f":"Import!E23591","v":0},{"$f":"Import!E23991","v":0},{"$f":"Import!E24391","v":0}]
[93,{"$f":"Import!E21592","v":"Select"},{"$f":"Import!E21992","v":"Select"},{"$f":"Import!E22392","v":"Select"},{"$f":"Import!E22792","v":0},{"$f":"Import!E23192","v":0},{"$f":"Import!E23592","v":0},{"$f":"Import!E23992","v":0},{"$f":"Import!E24392","v":0}]
[94,{"$f":"Import!E21593","v":"Select"},{"$f":"Import!E21993","v":"Select"},{"$f":"Import!E22393","v":"Select"},{"$f":"Import!E22793","v":0},{"$f":"Import!E23193","v":0},{"$f":"Import!E23593","v":0},{"$f":"Import!E23993","v":0},{"$f":"Import!E24393","v":0}]
[95,{"$f":"Import!E21594","v":"Select"},{"$f":"Import!E21994","v":"Select"},{"$f":"Import!E22394","v":"Select"},{"$f":"Import!E22794","v":0},{"$f":"Import!E23194","v":0},{"$f":"Import!E23594","v":0},{"$f":"Import!E23994","v":0},{"$f":"Import!E24394","v":0}]
[96,{"$f":"Import!E21595","v":"Select"},{"$f":"Import!E21995","v":"Select"},{"$f":"Import!E22395","v":"Select"},{"$f":"Import!E22795","v":0},{"$f":"Import!E23195","v":0},{"$f":"Import!E23595","v":0},{"$f":"Import!E23995","v":0},{"$f":"Import!E24395","v":0}]
[97,{"$f":"Import!E21596","v":"Select"},{"$f":"Import!E21996","v":"Select"},{"$f":"Import!E22396","v":"Select"},{"$f":"Import!E22796","v":0},{"$f":"Import!E23196","v":0},{"$f":"Import!E23596","v":0},{"$f":"Import!E23996","v":0},{"$f":"Import!E24396","v":0}]
[98,{"$f":"Import!E21597","v":"Select"},{"$f":"Import!E21997","v":"Select"},{"$f":"Import!E22397","v":"Select"},{"$f":"Import!E22797","v":0},{"$f":"Import!E23197","v":0},{"$f":"Import!E23597","v":0},{"$f":"Import!E23997","v":0},{"$f":"Import!E24397","v":0}]
[99,{"$f":"Import!E21598","v":"Select"},{"$f":"Import!E21998","v":"Select"},{"$f":"Import!E22398","v":"Select"},{"$f":"Import!E22798","v":0},{"$f":"Import!E23198","v":0},{"$f":"Import!E23598","v":0},{"$f":"Import!E23998","v":0},{"$f":"Import!E24398","v":0}]
[100,{"$f":"Import!E21599","v":"Select"},{"$f":"Import!E21999","v":"Select"},{"$f":"Import!E22399","v":"Select"},{"$f":"Import!E22799","v":0},{"$f":"Import!E23199","v":0},{"$f":"Import!E23599","v":0},{"$f":"Import!E23999","v":0},{"$f":"Import!E24399","v":0}]
[101,{"$f":"Import!E21600","v":"Select"},{"$f":"Import!E22000","v":"Select"},{"$f":"Import!E22400","v":"Select"},{"$f":"Import!E22800","v":0},{"$f":"Import!E23200","v":0},{"$f":"Import!E23600","v":0},{"$f":"Import!E24000","v":0},{"$f":"Import!E24400","v":0}]
[102,{"$f":"Import!E21601","v":"Select"},{"$f":"Import!E22001","v":"Select"},{"$f":"Import!E22401","v":"Select"},{"$f":"Import!E22801","v":0},{"$f":"Import!E23201","v":0},{"$f":"Import!E23601","v":0},{"$f":"Import!E24001","v":0},{"$f":"Import!E24401","v":0}]
[103,{"$f":"Import!E21602","v":"Select"},{"$f":"Import!E22002","v":"Select"},{"$f":"Import!E22402","v":"Select"},{"$f":"Import!E22802","v":0},{"$f":"Import!E23202","v":0},{"$f":"Import!E23602","v":0},{"$f":"Import!E24002","v":0},{"$f":"Import!E24402","v":0}]
[104,{"$f":"Import!E21603","v":"Select"},{"$f":"Import!E22003","v":"Select"},{"$f":"Import!E22403","v":"Select"},{"$f":"Import!E22803","v":0},{"$f":"Import!E23203","v":0},{"$f":"Import!E23603","v":0},{"$f":"Import!E24003","v":0},{"$f":"Import!E24403","v":0}]
[105,{"$f":"Import!E21604","v":"Select"},{"$f":"Import!E22004","v":"Select"},{"$f":"Import!E22404","v":"Select"},{"$f":"Import!E22804","v":0},{"$f":"Import!E23204","v":0},{"$f":"Import!E23604","v":0},{"$f":"Import!E24004","v":0},{"$f":"Import!E24404","v":0}]
[106,{"$f":"Import!E21605","v":"Select"},{"$f":"Import!E22005","v":"Select"},{"$f":"Import!E22405","v":"Select"},{"$f":"Import!E22805","v":0},{"$f":"Import!E23205","v":0},{"$f":"Import!E23605","v":0},{"$f":"Import!E24005","v":0},{"$f":"Import!E24405","v":0}]
[107,{"$f":"Import!E21606","v":"Select"},{"$f":"Import!E22006","v":"Select"},{"$f":"Import!E22406","v":"Select"},{"$f":"Import!E22806","v":0},{"$f":"Import!E23206","v":0},{"$f":"Import!E23606","v":0},{"$f":"Import!E24006","v":0},{"$f":"Import!E24406","v":0}]
[108,{"$f":"Import!E21607","v":"Select"},{"$f":"Import!E22007","v":"Select"},{"$f":"Import!E22407","v":"Select"},{"$f":"Import!E22807","v":0},{"$f":"Import!E23207","v":0},{"$f":"Import!E23607","v":0},{"$f":"Import!E24007","v":0},{"$f":"Import!E24407","v":0}]
[109,{"$f":"Import!E21608","v":"Select"},{"$f":"Import!E22008","v":"Select"},{"$f":"Import!E22408","v":"Select"},{"$f":"Import!E22808","v":0},{"$f":"Import!E23208","v":0},{"$f":"Import!E23608","v":0},{"$f":"Import!E24008","v":0},{"$f":"Import!E24408","v":0}]
[110,{"$f":"Import!E21609","v":"Select"},{"$f":"Import!E22009","v":"Select"},{"$f":"Import!E22409","v":"Select"},{"$f":"Import!E22809","v":0},{"$f":"Import!E23209","v":0},{"$f":"Import!E23609","v":0},{"$f":"Import!E24009","v":0},{"$f":"Import!E24409","v":0}]
[111,{"$f":"Import!E21610","v":"Select"},{"$f":"Import!E22010","v":"Select"},{"$f":"Import!E22410","v":"Select"},{"$f":"Import!E22810","v":0},{"$f":"Import!E23210","v":0},{"$f":"Import!E23610","v":0},{"$f":"Import!E24010","v":0},{"$f":"Import!E24410","v":0}]
[112,{"$f":"Import!E21611","v":"Select"},{"$f":"Import!E22011","v":"Select"},{"$f":"Import!E22411","v":"Select"},{"$f":"Import!E22811","v":0},{"$f":"Import!E23211","v":0},{"$f":"Import!E23611","v":0},{"$f":"Import!E24011","v":0},{"$f":"Import!E24411","v":0}]
[113,{"$f":"Import!E21612","v":"Select"},{"$f":"Import!E22012","v":"Select"},{"$f":"Import!E22412","v":"Select"},{"$f":"Import!E22812","v":0},{"$f":"Import!E23212","v":0},{"$f":"Import!E23612","v":0},{"$f":"Import!E24012","v":0},{"$f":"Import!E24412","v":0}]
[114,{"$f":"Import!E21613","v":"Select"},{"$f":"Import!E22013","v":"Select"},{"$f":"Import!E22413","v":"Select"},{"$f":"Import!E22813","v":0},{"$f":"Import!E23213","v":0},{"$f":"Import!E23613","v":0},{"$f":"Import!E24013","v":0},{"$f":"Import!E24413","v":0}]
[115,{"$f":"Import!E21614","v":"Select"},{"$f":"Import!E22014","v":"Select"},{"$f":"Import!E22414","v":"Select"},{"$f":"Import!E22814","v":0},{"$f":"Import!E23214","v":0},{"$f":"Import!E23614","v":0},{"$f":"Import!E24014","v":0},{"$f":"Import!E24414","v":0}]
[116,{"$f":"Import!E21615","v":"Select"},{"$f":"Import!E22015","v":"Select"},{"$f":"Import!E22415","v":"Select"},{"$f":"Import!E22815","v":0},{"$f":"Import!E23215","v":0},{"$f":"Import!E23615","v":0},{"$f":"Import!E24015","v":0},{"$f":"Import!E24415","v":0}]
[117,{"$f":"Import!E21616","v":"Select"},{"$f":"Import!E22016","v":"Select"},{"$f":"Import!E22416","v":"Select"},{"$f":"Import!E22816","v":0},{"$f":"Import!E23216","v":0},{"$f":"Import!E23616","v":0},{"$f":"Import!E24016","v":0},{"$f":"Import!E24416","v":0}]
[118,{"$f":"Import!E21617","v":"Select"},{"$f":"Import!E22017","v":"Select"},{"$f":"Import!E22417","v":"Select"},{"$f":"Import!E22817","v":0},{"$f":"Import!E23217","v":0},{"$f":"Import!E23617","v":0},{"$f":"Import!E24017","v":0},{"$f":"Import!E24417","v":0}]
[119,{"$f":"Import!E21618","v":"Select"},{"$f":"Import!E22018","v":"Select"},{"$f":"Import!E22418","v":"Select"},{"$f":"Import!E22818","v":0},{"$f":"Import!E23218","v":0},{"$f":"Import!E23618","v":0},{"$f":"Import!E24018","v":0},{"$f":"Import!E24418","v":0}]
[120,{"$f":"Import!E21619","v":"Select"},{"$f":"Import!E22019","v":"Select"},{"$f":"Import!E22419","v":"Select"},{"$f":"Import!E22819","v":0},{"$f":"Import!E23219","v":0},{"$f":"Import!E23619","v":0},{"$f":"Import!E24019","v":0},{"$f":"Import!E24419","v":0}]
[121,{"$f":"Import!E21620","v":"Select"},{"$f":"Import!E22020","v":"Select"},{"$f":"Import!E22420","v":"Select"},{"$f":"Import!E22820","v":0},{"$f":"Import!E23220","v":0},{"$f":"Import!E23620","v":0},{"$f":"Import!E24020","v":0},{"$f":"Import!E24420","v":0}]
[122,{"$f":"Import!E21621","v":"Select"},{"$f":"Import!E22021","v":"Select"},{"$f":"Import!E22421","v":"Select"},{"$f":"Import!E22821","v":0},{"$f":"Import!E23221","v":0},{"$f":"Import!E23621","v":0},{"$f":"Import!E24021","v":0},{"$f":"Import!E24421","v":0}]
[123,{"$f":"Import!E21622","v":"Select"},{"$f":"Import!E22022","v":"Select"},{"$f":"Import!E22422","v":"Select"},{"$f":"Import!E22822","v":0},{"$f":"Import!E23222","v":0},{"$f":"Import!E23622","v":0},{"$f":"Import!E24022","v":0},{"$f":"Import!E24422","v":0}]
[124,{"$f":"Import!E21623","v":"Select"},{"$f":"Import!E22023","v":"Select"},{"$f":"Import!E22423","v":"Select"},{"$f":"Import!E22823","v":0},{"$f":"Import!E23223","v":0},{"$f":"Import!E23623","v":0},{"$f":"Import!E24023","v":0},{"$f":"Import!E24423","v":0}]
[125,{"$f":"Import!E21624","v":"Select"},{"$f":"Import!E22024","v":"Select"},{"$f":"Import!E22424","v":"Select"},{"$f":"Import!E22824","v":0},{"$f":"Import!E23224","v":0},{"$f":"Import!E23624","v":0},{"$f":"Import!E24024","v":0},{"$f":"Import!E24424","v":0}]
[126,{"$f":"Import!E21625","v":"Select"},{"$f":"Import!E22025","v":"Select"},{"$f":"Import!E22425","v":"Select"},{"$f":"Import!E22825","v":0},{"$f":"Import!E23225","v":0},{"$f":"Import!E23625","v":0},{"$f":"Import!E24025","v":0},{"$f":"Import!E24425","v":0}]
[127,{"$f":"Import!E21626","v":"Select"},{"$f":"Import!E22026","v":"Select"},{"$f":"Import!E22426","v":"Select"},{"$f":"Import!E22826","v":0},{"$f":"Import!E23226","v":0},{"$f":"Import!E23626","v":0},{"$f":"Import!E24026","v":0},{"$f":"Import!E24426","v":0}]
[128,{"$f":"Import!E21627","v":"Select"},{"$f":"Import!E22027","v":"Select"},{"$f":"Import!E22427","v":"Select"},{"$f":"Import!E22827","v":0},{"$f":"Import!E23227","v":0},{"$f":"Import!E23627","v":0},{"$f":"Import!E24027","v":0},{"$f":"Import!E24427","v":0}]
[129,{"$f":"Import!E21628","v":"Select"},{"$f":"Import!E22028","v":"Select"},{"$f":"Import!E22428","v":"Select"},{"$f":"Import!E22828","v":0},{"$f":"Import!E23228","v":0},{"$f":"Import!E23628","v":0},{"$f":"Import!E24028","v":0},{"$f":"Import!E24428","v":0}]
[130,{"$f":"Import!E21629","v":"Select"},{"$f":"Import!E22029","v":"Select"},{"$f":"Import!E22429","v":"Select"},{"$f":"Import!E22829","v":0},{"$f":"Import!E23229","v":0},{"$f":"Import!E23629","v":0},{"$f":"Import!E24029","v":0},{"$f":"Import!E24429","v":0}]
[{"$f":"A348+1","v":131},{"$f":"Import!E21630","v":"Select"},{"$f":"Import!E22030","v":"Select"},{"$f":"Import!E22430","v":"Select"},{"$f":"Import!E22830","v":0},{"$f":"Import!E23230","v":0},{"$f":"Import!E23630","v":0},{"$f":"Import!E24030","v":0},{"$f":"Import!E24430","v":0}]
[132,{"$f":"Import!E21631","v":"Select"},{"$f":"Import!E22031","v":"Select"},{"$f":"Import!E22431","v":"Select"},{"$f":"Import!E22831","v":0},{"$f":"Import!E23231","v":0},{"$f":"Import!E23631","v":0},{"$f":"Import!E24031","v":0},{"$f":"Import!E24431","v":0}]
[133,{"$f":"Import!E21632","v":"Select"},{"$f":"Import!E22032","v":"Select"},{"$f":"Import!E22432","v":"Select"},{"$f":"Import!E22832","v":0},{"$f":"Import!E23232","v":0},{"$f":"Import!E23632","v":0},{"$f":"Import!E24032","v":0},{"$f":"Import!E24432","v":0}]
[134,{"$f":"Import!E21633","v":"Select"},{"$f":"Import!E22033","v":"Select"},{"$f":"Import!E22433","v":"Select"},{"$f":"Import!E22833","v":0},{"$f":"Import!E23233","v":0},{"$f":"Import!E23633","v":0},{"$f":"Import!E24033","v":0},{"$f":"Import!E24433","v":0}]
[135,{"$f":"Import!E21634","v":"Select"},{"$f":"Import!E22034","v":"Select"},{"$f":"Import!E22434","v":"Select"},{"$f":"Import!E22834","v":0},{"$f":"Import!E23234","v":0},{"$f":"Import!E23634","v":0},{"$f":"Import!E24034","v":0},{"$f":"Import!E24434","v":0}]
[136,{"$f":"Import!E21635","v":"Select"},{"$f":"Import!E22035","v":"Select"},{"$f":"Import!E22435","v":"Select"},{"$f":"Import!E22835","v":0},{"$f":"Import!E23235","v":0},{"$f":"Import!E23635","v":0},{"$f":"Import!E24035","v":0},{"$f":"Import!E24435","v":0}]
[137,{"$f":"Import!E21636","v":"Select"},{"$f":"Import!E22036","v":"Select"},{"$f":"Import!E22436","v":"Select"},{"$f":"Import!E22836","v":0},{"$f":"Import!E23236","v":0},{"$f":"Import!E23636","v":0},{"$f":"Import!E24036","v":0},{"$f":"Import!E24436","v":0}]
[138,{"$f":"Import!E21637","v":"Select"},{"$f":"Import!E22037","v":"Select"},{"$f":"Import!E22437","v":"Select"},{"$f":"Import!E22837","v":0},{"$f":"Import!E23237","v":0},{"$f":"Import!E23637","v":0},{"$f":"Import!E24037","v":0},{"$f":"Import!E24437","v":0}]
[139,{"$f":"Import!E21638","v":"Select"},{"$f":"Import!E22038","v":"Select"},{"$f":"Import!E22438","v":"Select"},{"$f":"Import!E22838","v":0},{"$f":"Import!E23238","v":0},{"$f":"Import!E23638","v":0},{"$f":"Import!E24038","v":0},{"$f":"Import!E24438","v":0}]
[140,{"$f":"Import!E21639","v":"Select"},{"$f":"Import!E22039","v":"Select"},{"$f":"Import!E22439","v":"Select"},{"$f":"Import!E22839","v":0},{"$f":"Import!E23239","v":0},{"$f":"Import!E23639","v":0},{"$f":"Import!E24039","v":0},{"$f":"Import!E24439","v":0}]
[141,{"$f":"Import!E21640","v":"Select"},{"$f":"Import!E22040","v":"Select"},{"$f":"Import!E22440","v":"Select"},{"$f":"Import!E22840","v":0},{"$f":"Import!E23240","v":0},{"$f":"Import!E23640","v":0},{"$f":"Import!E24040","v":0},{"$f":"Import!E24440","v":0}]
[142,{"$f":"Import!E21641","v":"Select"},{"$f":"Import!E22041","v":"Select"},{"$f":"Import!E22441","v":"Select"},{"$f":"Import!E22841","v":0},{"$f":"Import!E23241","v":0},{"$f":"Import!E23641","v":0},{"$f":"Import!E24041","v":0},{"$f":"Import!E24441","v":0}]
[143,{"$f":"Import!E21642","v":"Select"},{"$f":"Import!E22042","v":"Select"},{"$f":"Import!E22442","v":"Select"},{"$f":"Import!E22842","v":0},{"$f":"Import!E23242","v":0},{"$f":"Import!E23642","v":0},{"$f":"Import!E24042","v":0},{"$f":"Import!E24442","v":0}]
[144,{"$f":"Import!E21643","v":"Select"},{"$f":"Import!E22043","v":"Select"},{"$f":"Import!E22443","v":"Select"},{"$f":"Import!E22843","v":0},{"$f":"Import!E23243","v":0},{"$f":"Import!E23643","v":0},{"$f":"Import!E24043","v":0},{"$f":"Import!E24443","v":0}]
[145,{"$f":"Import!E21644","v":"Select"},{"$f":"Import!E22044","v":"Select"},{"$f":"Import!E22444","v":"Select"},{"$f":"Import!E22844","v":0},{"$f":"Import!E23244","v":0},{"$f":"Import!E23644","v":0},{"$f":"Import!E24044","v":0},{"$f":"Import!E24444","v":0}]
[146,{"$f":"Import!E21645","v":"Select"},{"$f":"Import!E22045","v":"Select"},{"$f":"Import!E22445","v":"Select"},{"$f":"Import!E22845","v":0},{"$f":"Import!E23245","v":0},{"$f":"Import!E23645","v":0},{"$f":"Import!E24045","v":0},{"$f":"Import!E24445","v":0}]
[147,{"$f":"Import!E21646","v":"Select"},{"$f":"Import!E22046","v":"Select"},{"$f":"Import!E22446","v":"Select"},{"$f":"Import!E22846","v":0},{"$f":"Import!E23246","v":0},{"$f":"Import!E23646","v":0},{"$f":"Import!E24046","v":0},{"$f":"Import!E24446","v":0}]
[148,{"$f":"Import!E21647","v":"Select"},{"$f":"Import!E22047","v":"Select"},{"$f":"Import!E22447","v":"Select"},{"$f":"Import!E22847","v":0},{"$f":"Import!E23247","v":0},{"$f":"Import!E23647","v":0},{"$f":"Import!E24047","v":0},{"$f":"Import!E24447","v":0}]
[149,{"$f":"Import!E21648","v":"Select"},{"$f":"Import!E22048","v":"Select"},{"$f":"Import!E22448","v":"Select"},{"$f":"Import!E22848","v":0},{"$f":"Import!E23248","v":0},{"$f":"Import!E23648","v":0},{"$f":"Import!E24048","v":0},{"$f":"Import!E24448","v":0}]
[150,{"$f":"Import!E21649","v":"Select"},{"$f":"Import!E22049","v":"Select"},{"$f":"Import!E22449","v":"Select"},{"$f":"Import!E22849","v":0},{"$f":"Import!E23249","v":0},{"$f":"Import!E23649","v":0},{"$f":"Import!E24049","v":0},{"$f":"Import!E24449","v":0}]
[151,{"$f":"Import!E21650","v":"Select"},{"$f":"Import!E22050","v":"Select"},{"$f":"Import!E22450","v":"Select"},{"$f":"Import!E22850","v":0},{"$f":"Import!E23250","v":0},{"$f":"Import!E23650","v":0},{"$f":"Import!E24050","v":0},{"$f":"Import!E24450","v":0}]
[152,{"$f":"Import!E21651","v":"Select"},{"$f":"Import!E22051","v":"Select"},{"$f":"Import!E22451","v":"Select"},{"$f":"Import!E22851","v":0},{"$f":"Import!E23251","v":0},{"$f":"Import!E23651","v":0},{"$f":"Import!E24051","v":0},{"$f":"Import!E24451","v":0}]
[153,{"$f":"Import!E21652","v":"Select"},{"$f":"Import!E22052","v":"Select"},{"$f":"Import!E22452","v":"Select"},{"$f":"Import!E22852","v":0},{"$f":"Import!E23252","v":0},{"$f":"Import!E23652","v":0},{"$f":"Import!E24052","v":0},{"$f":"Import!E24452","v":0}]
[154,{"$f":"Import!E21653","v":"Select"},{"$f":"Import!E22053","v":"Select"},{"$f":"Import!E22453","v":"Select"},{"$f":"Import!E22853","v":0},{"$f":"Import!E23253","v":0},{"$f":"Import!E23653","v":0},{"$f":"Import!E24053","v":0},{"$f":"Import!E24453","v":0}]
[155,{"$f":"Import!E21654","v":"Select"},{"$f":"Import!E22054","v":"Select"},{"$f":"Import!E22454","v":"Select"},{"$f":"Import!E22854","v":0},{"$f":"Import!E23254","v":0},{"$f":"Import!E23654","v":0},{"$f":"Import!E24054","v":0},{"$f":"Import!E24454","v":0}]
[156,{"$f":"Import!E21655","v":"Select"},{"$f":"Import!E22055","v":"Select"},{"$f":"Import!E22455","v":"Select"},{"$f":"Import!E22855","v":0},{"$f":"Import!E23255","v":0},{"$f":"Import!E23655","v":0},{"$f":"Import!E24055","v":0},{"$f":"Import!E24455","v":0}]
[157,{"$f":"Import!E21656","v":"Select"},{"$f":"Import!E22056","v":"Select"},{"$f":"Import!E22456","v":"Select"},{"$f":"Import!E22856","v":0},{"$f":"Import!E23256","v":0},{"$f":"Import!E23656","v":0},{"$f":"Import!E24056","v":0},{"$f":"Import!E24456","v":0}]
[158,{"$f":"Import!E21657","v":"Select"},{"$f":"Import!E22057","v":"Select"},{"$f":"Import!E22457","v":"Select"},{"$f":"Import!E22857","v":0},{"$f":"Import!E23257","v":0},{"$f":"Import!E23657","v":0},{"$f":"Import!E24057","v":0},{"$f":"Import!E24457","v":0}]
[159,{"$f":"Import!E21658","v":"Select"},{"$f":"Import!E22058","v":"Select"},{"$f":"Import!E22458","v":"Select"},{"$f":"Import!E22858","v":0},{"$f":"Import!E23258","v":0},{"$f":"Import!E23658","v":0},{"$f":"Import!E24058","v":0},{"$f":"Import!E24458","v":0}]
[160,{"$f":"Import!E21659","v":"Select"},{"$f":"Import!E22059","v":"Select"},{"$f":"Import!E22459","v":"Select"},{"$f":"Import!E22859","v":0},{"$f":"Import!E23259","v":0},{"$f":"Import!E23659","v":0},{"$f":"Import!E24059","v":0},{"$f":"Import!E24459","v":0}]
[161,{"$f":"Import!E21660","v":"Select"},{"$f":"Import!E22060","v":"Select"},{"$f":"Import!E22460","v":"Select"},{"$f":"Import!E22860","v":0},{"$f":"Import!E23260","v":0},{"$f":"Import!E23660","v":0},{"$f":"Import!E24060","v":0},{"$f":"Import!E24460","v":0}]
[162,{"$f":"Import!E21661","v":"Select"},{"$f":"Import!E22061","v":"Select"},{"$f":"Import!E22461","v":"Select"},{"$f":"Import!E22861","v":0},{"$f":"Import!E23261","v":0},{"$f":"Import!E23661","v":0},{"$f":"Import!E24061","v":0},{"$f":"Import!E24461","v":0}]
[163,{"$f":"Import!E21662","v":"Select"},{"$f":"Import!E22062","v":"Select"},{"$f":"Import!E22462","v":"Select"},{"$f":"Import!E22862","v":0},{"$f":"Import!E23262","v":0},{"$f":"Import!E23662","v":0},{"$f":"Import!E24062","v":0},{"$f":"Import!E24462","v":0}]
[164,{"$f":"Import!E21663","v":"Select"},{"$f":"Import!E22063","v":"Select"},{"$f":"Import!E22463","v":"Select"},{"$f":"Import!E22863","v":0},{"$f":"Import!E23263","v":0},{"$f":"Import!E23663","v":0},{"$f":"Import!E24063","v":0},{"$f":"Import!E24463","v":0}]
[165,{"$f":"Import!E21664","v":"Select"},{"$f":"Import!E22064","v":"Select"},{"$f":"Import!E22464","v":"Select"},{"$f":"Import!E22864","v":0},{"$f":"Import!E23264","v":0},{"$f":"Import!E23664","v":0},{"$f":"Import!E24064","v":0},{"$f":"Import!E24464","v":0}]
[166,{"$f":"Import!E21665","v":"Select"},{"$f":"Import!E22065","v":"Select"},{"$f":"Import!E22465","v":"Select"},{"$f":"Import!E22865","v":0},{"$f":"Import!E23265","v":0},{"$f":"Import!E23665","v":0},{"$f":"Import!E24065","v":0},{"$f":"Import!E24465","v":0}]
[167,{"$f":"Import!E21666","v":"Select"},{"$f":"Import!E22066","v":"Select"},{"$f":"Import!E22466","v":"Select"},{"$f":"Import!E22866","v":0},{"$f":"Import!E23266","v":0},{"$f":"Import!E23666","v":0},{"$f":"Import!E24066","v":0},{"$f":"Import!E24466","v":0}]
[168,{"$f":"Import!E21667","v":"Select"},{"$f":"Import!E22067","v":"Select"},{"$f":"Import!E22467","v":"Select"},{"$f":"Import!E22867","v":0},{"$f":"Import!E23267","v":0},{"$f":"Import!E23667","v":0},{"$f":"Import!E24067","v":0},{"$f":"Import!E24467","v":0}]
[169,{"$f":"Import!E21668","v":"Select"},{"$f":"Import!E22068","v":"Select"},{"$f":"Import!E22468","v":"Select"},{"$f":"Import!E22868","v":0},{"$f":"Import!E23268","v":0},{"$f":"Import!E23668","v":0},{"$f":"Import!E24068","v":0},{"$f":"Import!E24468","v":0}]
[170,{"$f":"Import!E21669","v":"Select"},{"$f":"Import!E22069","v":"Select"},{"$f":"Import!E22469","v":"Select"},{"$f":"Import!E22869","v":0},{"$f":"Import!E23269","v":0},{"$f":"Import!E23669","v":0},{"$f":"Import!E24069","v":0},{"$f":"Import!E24469","v":0}]
[171,{"$f":"Import!E21670","v":"Select"},{"$f":"Import!E22070","v":"Select"},{"$f":"Import!E22470","v":"Select"},{"$f":"Import!E22870","v":0},{"$f":"Import!E23270","v":0},{"$f":"Import!E23670","v":0},{"$f":"Import!E24070","v":0},{"$f":"Import!E24470","v":0}]
[172,{"$f":"Import!E21671","v":"Select"},{"$f":"Import!E22071","v":"Select"},{"$f":"Import!E22471","v":"Select"},{"$f":"Import!E22871","v":0},{"$f":"Import!E23271","v":0},{"$f":"Import!E23671","v":0},{"$f":"Import!E24071","v":0},{"$f":"Import!E24471","v":0}]
[173,{"$f":"Import!E21672","v":"Select"},{"$f":"Import!E22072","v":"Select"},{"$f":"Import!E22472","v":"Select"},{"$f":"Import!E22872","v":0},{"$f":"Import!E23272","v":0},{"$f":"Import!E23672","v":0},{"$f":"Import!E24072","v":0},{"$f":"Import!E24472","v":0}]
[174,{"$f":"Import!E21673","v":"Select"},{"$f":"Import!E22073","v":"Select"},{"$f":"Import!E22473","v":"Select"},{"$f":"Import!E22873","v":0},{"$f":"Import!E23273","v":0},{"$f":"Import!E23673","v":0},{"$f":"Import!E24073","v":0},{"$f":"Import!E24473","v":0}]
[175,{"$f":"Import!E21674","v":"Select"},{"$f":"Import!E22074","v":"Select"},{"$f":"Import!E22474","v":"Select"},{"$f":"Import!E22874","v":0},{"$f":"Import!E23274","v":0},{"$f":"Import!E23674","v":0},{"$f":"Import!E24074","v":0},{"$f":"Import!E24474","v":0}]
[176,{"$f":"Import!E21675","v":"Select"},{"$f":"Import!E22075","v":"Select"},{"$f":"Import!E22475","v":"Select"},{"$f":"Import!E22875","v":0},{"$f":"Import!E23275","v":0},{"$f":"Import!E23675","v":0},{"$f":"Import!E24075","v":0},{"$f":"Import!E24475","v":0}]
[177,{"$f":"Import!E21676","v":"Select"},{"$f":"Import!E22076","v":"Select"},{"$f":"Import!E22476","v":"Select"},{"$f":"Import!E22876","v":0},{"$f":"Import!E23276","v":0},{"$f":"Import!E23676","v":0},{"$f":"Import!E24076","v":0},{"$f":"Import!E24476","v":0}]
[178,{"$f":"Import!E21677","v":"Select"},{"$f":"Import!E22077","v":"Select"},{"$f":"Import!E22477","v":"Select"},{"$f":"Import!E22877","v":0},{"$f":"Import!E23277","v":0},{"$f":"Import!E23677","v":0},{"$f":"Import!E24077","v":0},{"$f":"Import!E24477","v":0}]
[179,{"$f":"Import!E21678","v":"Select"},{"$f":"Import!E22078","v":"Select"},{"$f":"Import!E22478","v":"Select"},{"$f":"Import!E22878","v":0},{"$f":"Import!E23278","v":0},{"$f":"Import!E23678","v":0},{"$f":"Import!E24078","v":0},{"$f":"Import!E24478","v":0}]
[180,{"$f":"Import!E21679","v":"Select"},{"$f":"Import!E22079","v":"Select"},{"$f":"Import!E22479","v":"Select"},{"$f":"Import!E22879","v":0},{"$f":"Import!E23279","v":0},{"$f":"Import!E23679","v":0},{"$f":"Import!E24079","v":0},{"$f":"Import!E24479","v":0}]
[181,{"$f":"Import!E21680","v":"Select"},{"$f":"Import!E22080","v":"Select"},{"$f":"Import!E22480","v":"Select"},{"$f":"Import!E22880","v":0},{"$f":"Import!E23280","v":0},{"$f":"Import!E23680","v":0},{"$f":"Import!E24080","v":0},{"$f":"Import!E24480","v":0}]
[182,{"$f":"Import!E21681","v":"Select"},{"$f":"Import!E22081","v":"Select"},{"$f":"Import!E22481","v":"Select"},{"$f":"Import!E22881","v":0},{"$f":"Import!E23281","v":0},{"$f":"Import!E23681","v":0},{"$f":"Import!E24081","v":0},{"$f":"Import!E24481","v":0}]
[183,{"$f":"Import!E21682","v":"Select"},{"$f":"Import!E22082","v":"Select"},{"$f":"Import!E22482","v":"Select"},{"$f":"Import!E22882","v":0},{"$f":"Import!E23282","v":0},{"$f":"Import!E23682","v":0},{"$f":"Import!E24082","v":0},{"$f":"Import!E24482","v":0}]
[184,{"$f":"Import!E21683","v":"Select"},{"$f":"Import!E22083","v":"Select"},{"$f":"Import!E22483","v":"Select"},{"$f":"Import!E22883","v":0},{"$f":"Import!E23283","v":0},{"$f":"Import!E23683","v":0},{"$f":"Import!E24083","v":0},{"$f":"Import!E24483","v":0}]
[185,{"$f":"Import!E21684","v":"Select"},{"$f":"Import!E22084","v":"Select"},{"$f":"Import!E22484","v":"Select"},{"$f":"Import!E22884","v":0},{"$f":"Import!E23284","v":0},{"$f":"Import!E23684","v":0},{"$f":"Import!E24084","v":0},{"$f":"Import!E24484","v":0}]
[186,{"$f":"Import!E21685","v":"Select"},{"$f":"Import!E22085","v":"Select"},{"$f":"Import!E22485","v":"Select"},{"$f":"Import!E22885","v":0},{"$f":"Import!E23285","v":0},{"$f":"Import!E23685","v":0},{"$f":"Import!E24085","v":0},{"$f":"Import!E24485","v":0}]
[187,{"$f":"Import!E21686","v":"Select"},{"$f":"Import!E22086","v":"Select"},{"$f":"Import!E22486","v":"Select"},{"$f":"Import!E22886","v":0},{"$f":"Import!E23286","v":0},{"$f":"Import!E23686","v":0},{"$f":"Import!E24086","v":0},{"$f":"Import!E24486","v":0}]
[188,{"$f":"Import!E21687","v":"Select"},{"$f":"Import!E22087","v":"Select"},{"$f":"Import!E22487","v":"Select"},{"$f":"Import!E22887","v":0},{"$f":"Import!E23287","v":0},{"$f":"Import!E23687","v":0},{"$f":"Import!E24087","v":0},{"$f":"Import!E24487","v":0}]
[189,{"$f":"Import!E21688","v":"Select"},{"$f":"Import!E22088","v":"Select"},{"$f":"Import!E22488","v":"Select"},{"$f":"Import!E22888","v":0},{"$f":"Import!E23288","v":0},{"$f":"Import!E23688","v":0},{"$f":"Import!E24088","v":0},{"$f":"Import!E24488","v":0}]
[190,{"$f":"Import!E21689","v":"Select"},{"$f":"Import!E22089","v":"Select"},{"$f":"Import!E22489","v":"Select"},{"$f":"Import!E22889","v":0},{"$f":"Import!E23289","v":0},{"$f":"Import!E23689","v":0},{"$f":"Import!E24089","v":0},{"$f":"Import!E24489","v":0}]
[191,{"$f":"Import!E21690","v":"Select"},{"$f":"Import!E22090","v":"Select"},{"$f":"Import!E22490","v":"Select"},{"$f":"Import!E22890","v":0},{"$f":"Import!E23290","v":0},{"$f":"Import!E23690","v":0},{"$f":"Import!E24090","v":0},{"$f":"Import!E24490","v":0}]
[192,{"$f":"Import!E21691","v":"Select"},{"$f":"Import!E22091","v":"Select"},{"$f":"Import!E22491","v":"Select"},{"$f":"Import!E22891","v":0},{"$f":"Import!E23291","v":0},{"$f":"Import!E23691","v":0},{"$f":"Import!E24091","v":0},{"$f":"Import!E24491","v":0}]
[193,{"$f":"Import!E21692","v":"Select"},{"$f":"Import!E22092","v":"Select"},{"$f":"Import!E22492","v":"Select"},{"$f":"Import!E22892","v":0},{"$f":"Import!E23292","v":0},{"$f":"Import!E23692","v":0},{"$f":"Import!E24092","v":0},{"$f":"Import!E24492","v":0}]
[194,{"$f":"Import!E21693","v":"Select"},{"$f":"Import!E22093","v":"Select"},{"$f":"Import!E22493","v":"Select"},{"$f":"Import!E22893","v":0},{"$f":"Import!E23293","v":0},{"$f":"Import!E23693","v":0},{"$f":"Import!E24093","v":0},{"$f":"Import!E24493","v":0}]
[{"$f":"A412+1","v":195},{"$f":"Import!E21694","v":"Select"},{"$f":"Import!E22094","v":"Select"},{"$f":"Import!E22494","v":"Select"},{"$f":"Import!E22894","v":0},{"$f":"Import!E23294","v":0},{"$f":"Import!E23694","v":0},{"$f":"Import!E24094","v":0},{"$f":"Import!E24494","v":0}]
[196,{"$f":"Import!E21695","v":"Select"},{"$f":"Import!E22095","v":"Select"},{"$f":"Import!E22495","v":"Select"},{"$f":"Import!E22895","v":0},{"$f":"Import!E23295","v":0},{"$f":"Import!E23695","v":0},{"$f":"Import!E24095","v":0},{"$f":"Import!E24495","v":0}]
[197,{"$f":"Import!E21696","v":"Select"},{"$f":"Import!E22096","v":"Select"},{"$f":"Import!E22496","v":"Select"},{"$f":"Import!E22896","v":0},{"$f":"Import!E23296","v":0},{"$f":"Import!E23696","v":0},{"$f":"Import!E24096","v":0},{"$f":"Import!E24496","v":0}]
[198,{"$f":"Import!E21697","v":"Select"},{"$f":"Import!E22097","v":"Select"},{"$f":"Import!E22497","v":"Select"},{"$f":"Import!E22897","v":0},{"$f":"Import!E23297","v":0},{"$f":"Import!E23697","v":0},{"$f":"Import!E24097","v":0},{"$f":"Import!E24497","v":0}]
[199,{"$f":"Import!E21698","v":"Select"},{"$f":"Import!E22098","v":"Select"},{"$f":"Import!E22498","v":"Select"},{"$f":"Import!E22898","v":0},{"$f":"Import!E23298","v":0},{"$f":"Import!E23698","v":0},{"$f":"Import!E24098","v":0},{"$f":"Import!E24498","v":0}]
[200,{"$f":"Import!E21699","v":"Select"},{"$f":"Import!E22099","v":"Select"},{"$f":"Import!E22499","v":"Select"},{"$f":"Import!E22899","v":0},{"$f":"Import!E23299","v":0},{"$f":"Import!E23699","v":0},{"$f":"Import!E24099","v":0},{"$f":"Import!E24499","v":0}]
[201,{"$f":"Import!E21700","v":"Select"},{"$f":"Import!E22100","v":"Select"},{"$f":"Import!E22500","v":"Select"},{"$f":"Import!E22900","v":0},{"$f":"Import!E23300","v":0},{"$f":"Import!E23700","v":0},{"$f":"Import!E24100","v":0},{"$f":"Import!E24500","v":0}]
[202,{"$f":"Import!E21701","v":"Select"},{"$f":"Import!E22101","v":"Select"},{"$f":"Import!E22501","v":"Select"},{"$f":"Import!E22901","v":0},{"$f":"Import!E23301","v":0},{"$f":"Import!E23701","v":0},{"$f":"Import!E24101","v":0},{"$f":"Import!E24501","v":0}]
[203,{"$f":"Import!E21702","v":"Select"},{"$f":"Import!E22102","v":"Select"},{"$f":"Import!E22502","v":"Select"},{"$f":"Import!E22902","v":0},{"$f":"Import!E23302","v":0},{"$f":"Import!E23702","v":0},{"$f":"Import!E24102","v":0},{"$f":"Import!E24502","v":0}]
[204,{"$f":"Import!E21703","v":"Select"},{"$f":"Import!E22103","v":"Select"},{"$f":"Import!E22503","v":"Select"},{"$f":"Import!E22903","v":0},{"$f":"Import!E23303","v":0},{"$f":"Import!E23703","v":0},{"$f":"Import!E24103","v":0},{"$f":"Import!E24503","v":0}]
[205,{"$f":"Import!E21704","v":"Select"},{"$f":"Import!E22104","v":"Select"},{"$f":"Import!E22504","v":"Select"},{"$f":"Import!E22904","v":0},{"$f":"Import!E23304","v":0},{"$f":"Import!E23704","v":0},{"$f":"Import!E24104","v":0},{"$f":"Import!E24504","v":0}]
[206,{"$f":"Import!E21705","v":"Select"},{"$f":"Import!E22105","v":"Select"},{"$f":"Import!E22505","v":"Select"},{"$f":"Import!E22905","v":0},{"$f":"Import!E23305","v":0},{"$f":"Import!E23705","v":0},{"$f":"Import!E24105","v":0},{"$f":"Import!E24505","v":0}]
[207,{"$f":"Import!E21706","v":"Select"},{"$f":"Import!E22106","v":"Select"},{"$f":"Import!E22506","v":"Select"},{"$f":"Import!E22906","v":0},{"$f":"Import!E23306","v":0},{"$f":"Import!E23706","v":0},{"$f":"Import!E24106","v":0},{"$f":"Import!E24506","v":0}]
[208,{"$f":"Import!E21707","v":"Select"},{"$f":"Import!E22107","v":"Select"},{"$f":"Import!E22507","v":"Select"},{"$f":"Import!E22907","v":0},{"$f":"Import!E23307","v":0},{"$f":"Import!E23707","v":0},{"$f":"Import!E24107","v":0},{"$f":"Import!E24507","v":0}]
[209,{"$f":"Import!E21708","v":"Select"},{"$f":"Import!E22108","v":"Select"},{"$f":"Import!E22508","v":"Select"},{"$f":"Import!E22908","v":0},{"$f":"Import!E23308","v":0},{"$f":"Import!E23708","v":0},{"$f":"Import!E24108","v":0},{"$f":"Import!E24508","v":0}]
[210,{"$f":"Import!E21709","v":"Select"},{"$f":"Import!E22109","v":"Select"},{"$f":"Import!E22509","v":"Select"},{"$f":"Import!E22909","v":0},{"$f":"Import!E23309","v":0},{"$f":"Import!E23709","v":0},{"$f":"Import!E24109","v":0},{"$f":"Import!E24509","v":0}]
[211,{"$f":"Import!E21710","v":"Select"},{"$f":"Import!E22110","v":"Select"},{"$f":"Import!E22510","v":"Select"},{"$f":"Import!E22910","v":0},{"$f":"Import!E23310","v":0},{"$f":"Import!E23710","v":0},{"$f":"Import!E24110","v":0},{"$f":"Import!E24510","v":0}]
[212,{"$f":"Import!E21711","v":"Select"},{"$f":"Import!E22111","v":"Select"},{"$f":"Import!E22511","v":"Select"},{"$f":"Import!E22911","v":0},{"$f":"Import!E23311","v":0},{"$f":"Import!E23711","v":0},{"$f":"Import!E24111","v":0},{"$f":"Import!E24511","v":0}]
[213,{"$f":"Import!E21712","v":"Select"},{"$f":"Import!E22112","v":"Select"},{"$f":"Import!E22512","v":"Select"},{"$f":"Import!E22912","v":0},{"$f":"Import!E23312","v":0},{"$f":"Import!E23712","v":0},{"$f":"Import!E24112","v":0},{"$f":"Import!E24512","v":0}]
[214,{"$f":"Import!E21713","v":"Select"},{"$f":"Import!E22113","v":"Select"},{"$f":"Import!E22513","v":"Select"},{"$f":"Import!E22913","v":0},{"$f":"Import!E23313","v":0},{"$f":"Import!E23713","v":0},{"$f":"Import!E24113","v":0},{"$f":"Import!E24513","v":0}]
[215,{"$f":"Import!E21714","v":"Select"},{"$f":"Import!E22114","v":"Select"},{"$f":"Import!E22514","v":"Select"},{"$f":"Import!E22914","v":0},{"$f":"Import!E23314","v":0},{"$f":"Import!E23714","v":0},{"$f":"Import!E24114","v":0},{"$f":"Import!E24514","v":0}]
[216,{"$f":"Import!E21715","v":"Select"},{"$f":"Import!E22115","v":"Select"},{"$f":"Import!E22515","v":"Select"},{"$f":"Import!E22915","v":0},{"$f":"Import!E23315","v":0},{"$f":"Import!E23715","v":0},{"$f":"Import!E24115","v":0},{"$f":"Import!E24515","v":0}]
[217,{"$f":"Import!E21716","v":"Select"},{"$f":"Import!E22116","v":"Select"},{"$f":"Import!E22516","v":"Select"},{"$f":"Import!E22916","v":0},{"$f":"Import!E23316","v":0},{"$f":"Import!E23716","v":0},{"$f":"Import!E24116","v":0},{"$f":"Import!E24516","v":0}]
[218,{"$f":"Import!E21717","v":"Select"},{"$f":"Import!E22117","v":"Select"},{"$f":"Import!E22517","v":"Select"},{"$f":"Import!E22917","v":0},{"$f":"Import!E23317","v":0},{"$f":"Import!E23717","v":0},{"$f":"Import!E24117","v":0},{"$f":"Import!E24517","v":0}]
[219,{"$f":"Import!E21718","v":"Select"},{"$f":"Import!E22118","v":"Select"},{"$f":"Import!E22518","v":"Select"},{"$f":"Import!E22918","v":0},{"$f":"Import!E23318","v":0},{"$f":"Import!E23718","v":0},{"$f":"Import!E24118","v":0},{"$f":"Import!E24518","v":0}]
[220,{"$f":"Import!E21719","v":"Select"},{"$f":"Import!E22119","v":"Select"},{"$f":"Import!E22519","v":"Select"},{"$f":"Import!E22919","v":0},{"$f":"Import!E23319","v":0},{"$f":"Import!E23719","v":0},{"$f":"Import!E24119","v":0},{"$f":"Import!E24519","v":0}]
[221,{"$f":"Import!E21720","v":"Select"},{"$f":"Import!E22120","v":"Select"},{"$f":"Import!E22520","v":"Select"},{"$f":"Import!E22920","v":0},{"$f":"Import!E23320","v":0},{"$f":"Import!E23720","v":0},{"$f":"Import!E24120","v":0},{"$f":"Import!E24520","v":0}]
[222,{"$f":"Import!E21721","v":"Select"},{"$f":"Import!E22121","v":"Select"},{"$f":"Import!E22521","v":"Select"},{"$f":"Import!E22921","v":0},{"$f":"Import!E23321","v":0},{"$f":"Import!E23721","v":0},{"$f":"Import!E24121","v":0},{"$f":"Import!E24521","v":0}]
[223,{"$f":"Import!E21722","v":"Select"},{"$f":"Import!E22122","v":"Select"},{"$f":"Import!E22522","v":"Select"},{"$f":"Import!E22922","v":0},{"$f":"Import!E23322","v":0},{"$f":"Import!E23722","v":0},{"$f":"Import!E24122","v":0},{"$f":"Import!E24522","v":0}]
[224,{"$f":"Import!E21723","v":"Select"},{"$f":"Import!E22123","v":"Select"},{"$f":"Import!E22523","v":"Select"},{"$f":"Import!E22923","v":0},{"$f":"Import!E23323","v":0},{"$f":"Import!E23723","v":0},{"$f":"Import!E24123","v":0},{"$f":"Import!E24523","v":0}]
[225,{"$f":"Import!E21724","v":"Select"},{"$f":"Import!E22124","v":"Select"},{"$f":"Import!E22524","v":"Select"},{"$f":"Import!E22924","v":0},{"$f":"Import!E23324","v":0},{"$f":"Import!E23724","v":0},{"$f":"Import!E24124","v":0},{"$f":"Import!E24524","v":0}]
[226,{"$f":"Import!E21725","v":"Select"},{"$f":"Import!E22125","v":"Select"},{"$f":"Import!E22525","v":"Select"},{"$f":"Import!E22925","v":0},{"$f":"Import!E23325","v":0},{"$f":"Import!E23725","v":0},{"$f":"Import!E24125","v":0},{"$f":"Import!E24525","v":0}]
[227,{"$f":"Import!E21726","v":"Select"},{"$f":"Import!E22126","v":"Select"},{"$f":"Import!E22526","v":"Select"},{"$f":"Import!E22926","v":0},{"$f":"Import!E23326","v":0},{"$f":"Import!E23726","v":0},{"$f":"Import!E24126","v":0},{"$f":"Import!E24526","v":0}]
[228,{"$f":"Import!E21727","v":"Select"},{"$f":"Import!E22127","v":"Select"},{"$f":"Import!E22527","v":"Select"},{"$f":"Import!E22927","v":0},{"$f":"Import!E23327","v":0},{"$f":"Import!E23727","v":0},{"$f":"Import!E24127","v":0},{"$f":"Import!E24527","v":0}]
[229,{"$f":"Import!E21728","v":"Select"},{"$f":"Import!E22128","v":"Select"},{"$f":"Import!E22528","v":"Select"},{"$f":"Import!E22928","v":0},{"$f":"Import!E23328","v":0},{"$f":"Import!E23728","v":0},{"$f":"Import!E24128","v":0},{"$f":"Import!E24528","v":0}]
[230,{"$f":"Import!E21729","v":"Select"},{"$f":"Import!E22129","v":"Select"},{"$f":"Import!E22529","v":"Select"},{"$f":"Import!E22929","v":0},{"$f":"Import!E23329","v":0},{"$f":"Import!E23729","v":0},{"$f":"Import!E24129","v":0},{"$f":"Import!E24529","v":0}]
[231,{"$f":"Import!E21730","v":"Select"},{"$f":"Import!E22130","v":"Select"},{"$f":"Import!E22530","v":"Select"},{"$f":"Import!E22930","v":0},{"$f":"Import!E23330","v":0},{"$f":"Import!E23730","v":0},{"$f":"Import!E24130","v":0},{"$f":"Import!E24530","v":0}]
[232,{"$f":"Import!E21731","v":"Select"},{"$f":"Import!E22131","v":"Select"},{"$f":"Import!E22531","v":"Select"},{"$f":"Import!E22931","v":0},{"$f":"Import!E23331","v":0},{"$f":"Import!E23731","v":0},{"$f":"Import!E24131","v":0},{"$f":"Import!E24531","v":0}]
[233,{"$f":"Import!E21732","v":"Select"},{"$f":"Import!E22132","v":"Select"},{"$f":"Import!E22532","v":"Select"},{"$f":"Import!E22932","v":0},{"$f":"Import!E23332","v":0},{"$f":"Import!E23732","v":0},{"$f":"Import!E24132","v":0},{"$f":"Import!E24532","v":0}]
[234,{"$f":"Import!E21733","v":"Select"},{"$f":"Import!E22133","v":"Select"},{"$f":"Import!E22533","v":"Select"},{"$f":"Import!E22933","v":0},{"$f":"Import!E23333","v":0},{"$f":"Import!E23733","v":0},{"$f":"Import!E24133","v":0},{"$f":"Import!E24533","v":0}]
[235,{"$f":"Import!E21734","v":"Select"},{"$f":"Import!E22134","v":"Select"},{"$f":"Import!E22534","v":"Select"},{"$f":"Import!E22934","v":0},{"$f":"Import!E23334","v":0},{"$f":"Import!E23734","v":0},{"$f":"Import!E24134","v":0},{"$f":"Import!E24534","v":0}]
[236,{"$f":"Import!E21735","v":"Select"},{"$f":"Import!E22135","v":"Select"},{"$f":"Import!E22535","v":"Select"},{"$f":"Import!E22935","v":0},{"$f":"Import!E23335","v":0},{"$f":"Import!E23735","v":0},{"$f":"Import!E24135","v":0},{"$f":"Import!E24535","v":0}]
[237,{"$f":"Import!E21736","v":"Select"},{"$f":"Import!E22136","v":"Select"},{"$f":"Import!E22536","v":"Select"},{"$f":"Import!E22936","v":0},{"$f":"Import!E23336","v":0},{"$f":"Import!E23736","v":0},{"$f":"Import!E24136","v":0},{"$f":"Import!E24536","v":0}]
[238,{"$f":"Import!E21737","v":"Select"},{"$f":"Import!E22137","v":"Select"},{"$f":"Import!E22537","v":"Select"},{"$f":"Import!E22937","v":0},{"$f":"Import!E23337","v":0},{"$f":"Import!E23737","v":0},{"$f":"Import!E24137","v":0},{"$f":"Import!E24537","v":0}]
[239,{"$f":"Import!E21738","v":"Select"},{"$f":"Import!E22138","v":"Select"},{"$f":"Import!E22538","v":"Select"},{"$f":"Import!E22938","v":0},{"$f":"Import!E23338","v":0},{"$f":"Import!E23738","v":0},{"$f":"Import!E24138","v":0},{"$f":"Import!E24538","v":0}]
[240,{"$f":"Import!E21739","v":"Select"},{"$f":"Import!E22139","v":"Select"},{"$f":"Import!E22539","v":"Select"},{"$f":"Import!E22939","v":0},{"$f":"Import!E23339","v":0},{"$f":"Import!E23739","v":0},{"$f":"Import!E24139","v":0},{"$f":"Import!E24539","v":0}]
[241,{"$f":"Import!E21740","v":"Select"},{"$f":"Import!E22140","v":"Select"},{"$f":"Import!E22540","v":"Select"},{"$f":"Import!E22940","v":0},{"$f":"Import!E23340","v":0},{"$f":"Import!E23740","v":0},{"$f":"Import!E24140","v":0},{"$f":"Import!E24540","v":0}]
[242,{"$f":"Import!E21741","v":"Select"},{"$f":"Import!E22141","v":"Select"},{"$f":"Import!E22541","v":"Select"},{"$f":"Import!E22941","v":0},{"$f":"Import!E23341","v":0},{"$f":"Import!E23741","v":0},{"$f":"Import!E24141","v":0},{"$f":"Import!E24541","v":0}]
[243,{"$f":"Import!E21742","v":"Select"},{"$f":"Import!E22142","v":"Select"},{"$f":"Import!E22542","v":"Select"},{"$f":"Import!E22942","v":0},{"$f":"Import!E23342","v":0},{"$f":"Import!E23742","v":0},{"$f":"Import!E24142","v":0},{"$f":"Import!E24542","v":0}]
[244,{"$f":"Import!E21743","v":"Select"},{"$f":"Import!E22143","v":"Select"},{"$f":"Import!E22543","v":"Select"},{"$f":"Import!E22943","v":0},{"$f":"Import!E23343","v":0},{"$f":"Import!E23743","v":0},{"$f":"Import!E24143","v":0},{"$f":"Import!E24543","v":0}]
[245,{"$f":"Import!E21744","v":"Select"},{"$f":"Import!E22144","v":"Select"},{"$f":"Import!E22544","v":"Select"},{"$f":"Import!E22944","v":0},{"$f":"Import!E23344","v":0},{"$f":"Import!E23744","v":0},{"$f":"Import!E24144","v":0},{"$f":"Import!E24544","v":0}]
[246,{"$f":"Import!E21745","v":"Select"},{"$f":"Import!E22145","v":"Select"},{"$f":"Import!E22545","v":"Select"},{"$f":"Import!E22945","v":0},{"$f":"Import!E23345","v":0},{"$f":"Import!E23745","v":0},{"$f":"Import!E24145","v":0},{"$f":"Import!E24545","v":0}]
[247,{"$f":"Import!E21746","v":"Select"},{"$f":"Import!E22146","v":"Select"},{"$f":"Import!E22546","v":"Select"},{"$f":"Import!E22946","v":0},{"$f":"Import!E23346","v":0},{"$f":"Import!E23746","v":0},{"$f":"Import!E24146","v":0},{"$f":"Import!E24546","v":0}]
[248,{"$f":"Import!E21747","v":"Select"},{"$f":"Import!E22147","v":"Select"},{"$f":"Import!E22547","v":"Select"},{"$f":"Import!E22947","v":0},{"$f":"Import!E23347","v":0},{"$f":"Import!E23747","v":0},{"$f":"Import!E24147","v":0},{"$f":"Import!E24547","v":0}]
[249,{"$f":"Import!E21748","v":"Select"},{"$f":"Import!E22148","v":"Select"},{"$f":"Import!E22548","v":"Select"},{"$f":"Import!E22948","v":0},{"$f":"Import!E23348","v":0},{"$f":"Import!E23748","v":0},{"$f":"Import!E24148","v":0},{"$f":"Import!E24548","v":0}]
[250,{"$f":"Import!E21749","v":"Select"},{"$f":"Import!E22149","v":"Select"},{"$f":"Import!E22549","v":"Select"},{"$f":"Import!E22949","v":0},{"$f":"Import!E23349","v":0},{"$f":"Import!E23749","v":0},{"$f":"Import!E24149","v":0},{"$f":"Import!E24549","v":0}]
[251,{"$f":"Import!E21750","v":"Select"},{"$f":"Import!E22150","v":"Select"},{"$f":"Import!E22550","v":"Select"},{"$f":"Import!E22950","v":0},{"$f":"Import!E23350","v":0},{"$f":"Import!E23750","v":0},{"$f":"Import!E24150","v":0},{"$f":"Import!E24550","v":0}]
[252,{"$f":"Import!E21751","v":"Select"},{"$f":"Import!E22151","v":"Select"},{"$f":"Import!E22551","v":"Select"},{"$f":"Import!E22951","v":0},{"$f":"Import!E23351","v":0},{"$f":"Import!E23751","v":0},{"$f":"Import!E24151","v":0},{"$f":"Import!E24551","v":0}]
[253,{"$f":"Import!E21752","v":"Select"},{"$f":"Import!E22152","v":"Select"},{"$f":"Import!E22552","v":"Select"},{"$f":"Import!E22952","v":0},{"$f":"Import!E23352","v":0},{"$f":"Import!E23752","v":0},{"$f":"Import!E24152","v":0},{"$f":"Import!E24552","v":0}]
[254,{"$f":"Import!E21753","v":"Select"},{"$f":"Import!E22153","v":"Select"},{"$f":"Import!E22553","v":"Select"},{"$f":"Import!E22953","v":0},{"$f":"Import!E23353","v":0},{"$f":"Import!E23753","v":0},{"$f":"Import!E24153","v":0},{"$f":"Import!E24553","v":0}]
[255,{"$f":"Import!E21754","v":"Select"},{"$f":"Import!E22154","v":"Select"},{"$f":"Import!E22554","v":"Select"},{"$f":"Import!E22954","v":0},{"$f":"Import!E23354","v":0},{"$f":"Import!E23754","v":0},{"$f":"Import!E24154","v":0},{"$f":"Import!E24554","v":0}]
[256,{"$f":"Import!E21755","v":"Select"},{"$f":"Import!E22155","v":"Select"},{"$f":"Import!E22555","v":"Select"},{"$f":"Import!E22955","v":0},{"$f":"Import!E23355","v":0},{"$f":"Import!E23755","v":0},{"$f":"Import!E24155","v":0},{"$f":"Import!E24555","v":0}]
[257,{"$f":"Import!E21756","v":"Select"},{"$f":"Import!E22156","v":"Select"},{"$f":"Import!E22556","v":"Select"},{"$f":"Import!E22956","v":0},{"$f":"Import!E23356","v":0},{"$f":"Import!E23756","v":0},{"$f":"Import!E24156","v":0},{"$f":"Import!E24556","v":0}]
[258,{"$f":"Import!E21757","v":"Select"},{"$f":"Import!E22157","v":"Select"},{"$f":"Import!E22557","v":"Select"},{"$f":"Import!E22957","v":0},{"$f":"Import!E23357","v":0},{"$f":"Import!E23757","v":0},{"$f":"Import!E24157","v":0},{"$f":"Import!E24557","v":0}]
[{"$f":"A476+1","v":259},{"$f":"Import!E21758","v":"Select"},{"$f":"Import!E22158","v":"Select"},{"$f":"Import!E22558","v":"Select"},{"$f":"Import!E22958","v":0},{"$f":"Import!E23358","v":0},{"$f":"Import!E23758","v":0},{"$f":"Import!E24158","v":0},{"$f":"Import!E24558","v":0}]
[260,{"$f":"Import!E21759","v":"Select"},{"$f":"Import!E22159","v":"Select"},{"$f":"Import!E22559","v":"Select"},{"$f":"Import!E22959","v":0},{"$f":"Import!E23359","v":0},{"$f":"Import!E23759","v":0},{"$f":"Import!E24159","v":0},{"$f":"Import!E24559","v":0}]
[261,{"$f":"Import!E21760","v":"Select"},{"$f":"Import!E22160","v":"Select"},{"$f":"Import!E22560","v":"Select"},{"$f":"Import!E22960","v":0},{"$f":"Import!E23360","v":0},{"$f":"Import!E23760","v":0},{"$f":"Import!E24160","v":0},{"$f":"Import!E24560","v":0}]
[262,{"$f":"Import!E21761","v":"Select"},{"$f":"Import!E22161","v":"Select"},{"$f":"Import!E22561","v":"Select"},{"$f":"Import!E22961","v":0},{"$f":"Import!E23361","v":0},{"$f":"Import!E23761","v":0},{"$f":"Import!E24161","v":0},{"$f":"Import!E24561","v":0}]
[263,{"$f":"Import!E21762","v":"Select"},{"$f":"Import!E22162","v":"Select"},{"$f":"Import!E22562","v":"Select"},{"$f":"Import!E22962","v":0},{"$f":"Import!E23362","v":0},{"$f":"Import!E23762","v":0},{"$f":"Import!E24162","v":0},{"$f":"Import!E24562","v":0}]
[264,{"$f":"Import!E21763","v":"Select"},{"$f":"Import!E22163","v":"Select"},{"$f":"Import!E22563","v":"Select"},{"$f":"Import!E22963","v":0},{"$f":"Import!E23363","v":0},{"$f":"Import!E23763","v":0},{"$f":"Import!E24163","v":0},{"$f":"Import!E24563","v":0}]
[265,{"$f":"Import!E21764","v":"Select"},{"$f":"Import!E22164","v":"Select"},{"$f":"Import!E22564","v":"Select"},{"$f":"Import!E22964","v":0},{"$f":"Import!E23364","v":0},{"$f":"Import!E23764","v":0},{"$f":"Import!E24164","v":0},{"$f":"Import!E24564","v":0}]
[266,{"$f":"Import!E21765","v":"Select"},{"$f":"Import!E22165","v":"Select"},{"$f":"Import!E22565","v":"Select"},{"$f":"Import!E22965","v":0},{"$f":"Import!E23365","v":0},{"$f":"Import!E23765","v":0},{"$f":"Import!E24165","v":0},{"$f":"Import!E24565","v":0}]
[267,{"$f":"Import!E21766","v":"Select"},{"$f":"Import!E22166","v":"Select"},{"$f":"Import!E22566","v":"Select"},{"$f":"Import!E22966","v":0},{"$f":"Import!E23366","v":0},{"$f":"Import!E23766","v":0},{"$f":"Import!E24166","v":0},{"$f":"Import!E24566","v":0}]
[268,{"$f":"Import!E21767","v":"Select"},{"$f":"Import!E22167","v":"Select"},{"$f":"Import!E22567","v":"Select"},{"$f":"Import!E22967","v":0},{"$f":"Import!E23367","v":0},{"$f":"Import!E23767","v":0},{"$f":"Import!E24167","v":0},{"$f":"Import!E24567","v":0}]
[269,{"$f":"Import!E21768","v":"Select"},{"$f":"Import!E22168","v":"Select"},{"$f":"Import!E22568","v":"Select"},{"$f":"Import!E22968","v":0},{"$f":"Import!E23368","v":0},{"$f":"Import!E23768","v":0},{"$f":"Import!E24168","v":0},{"$f":"Import!E24568","v":0}]
[270,{"$f":"Import!E21769","v":"Select"},{"$f":"Import!E22169","v":"Select"},{"$f":"Import!E22569","v":"Select"},{"$f":"Import!E22969","v":0},{"$f":"Import!E23369","v":0},{"$f":"Import!E23769","v":0},{"$f":"Import!E24169","v":0},{"$f":"Import!E24569","v":0}]
[271,{"$f":"Import!E21770","v":"Select"},{"$f":"Import!E22170","v":"Select"},{"$f":"Import!E22570","v":"Select"},{"$f":"Import!E22970","v":0},{"$f":"Import!E23370","v":0},{"$f":"Import!E23770","v":0},{"$f":"Import!E24170","v":0},{"$f":"Import!E24570","v":0}]
[272,{"$f":"Import!E21771","v":"Select"},{"$f":"Import!E22171","v":"Select"},{"$f":"Import!E22571","v":"Select"},{"$f":"Import!E22971","v":0},{"$f":"Import!E23371","v":0},{"$f":"Import!E23771","v":0},{"$f":"Import!E24171","v":0},{"$f":"Import!E24571","v":0}]
[273,{"$f":"Import!E21772","v":"Select"},{"$f":"Import!E22172","v":"Select"},{"$f":"Import!E22572","v":"Select"},{"$f":"Import!E22972","v":0},{"$f":"Import!E23372","v":0},{"$f":"Import!E23772","v":0},{"$f":"Import!E24172","v":0},{"$f":"Import!E24572","v":0}]
[274,{"$f":"Import!E21773","v":"Select"},{"$f":"Import!E22173","v":"Select"},{"$f":"Import!E22573","v":"Select"},{"$f":"Import!E22973","v":0},{"$f":"Import!E23373","v":0},{"$f":"Import!E23773","v":0},{"$f":"Import!E24173","v":0},{"$f":"Import!E24573","v":0}]
[275,{"$f":"Import!E21774","v":"Select"},{"$f":"Import!E22174","v":"Select"},{"$f":"Import!E22574","v":"Select"},{"$f":"Import!E22974","v":0},{"$f":"Import!E23374","v":0},{"$f":"Import!E23774","v":0},{"$f":"Import!E24174","v":0},{"$f":"Import!E24574","v":0}]
[276,{"$f":"Import!E21775","v":"Select"},{"$f":"Import!E22175","v":"Select"},{"$f":"Import!E22575","v":"Select"},{"$f":"Import!E22975","v":0},{"$f":"Import!E23375","v":0},{"$f":"Import!E23775","v":0},{"$f":"Import!E24175","v":0},{"$f":"Import!E24575","v":0}]
[277,{"$f":"Import!E21776","v":"Select"},{"$f":"Import!E22176","v":"Select"},{"$f":"Import!E22576","v":"Select"},{"$f":"Import!E22976","v":0},{"$f":"Import!E23376","v":0},{"$f":"Import!E23776","v":0},{"$f":"Import!E24176","v":0},{"$f":"Import!E24576","v":0}]
[278,{"$f":"Import!E21777","v":"Select"},{"$f":"Import!E22177","v":"Select"},{"$f":"Import!E22577","v":"Select"},{"$f":"Import!E22977","v":0},{"$f":"Import!E23377","v":0},{"$f":"Import!E23777","v":0},{"$f":"Import!E24177","v":0},{"$f":"Import!E24577","v":0}]
[279,{"$f":"Import!E21778","v":"Select"},{"$f":"Import!E22178","v":"Select"},{"$f":"Import!E22578","v":"Select"},{"$f":"Import!E22978","v":0},{"$f":"Import!E23378","v":0},{"$f":"Import!E23778","v":0},{"$f":"Import!E24178","v":0},{"$f":"Import!E24578","v":0}]
[280,{"$f":"Import!E21779","v":"Select"},{"$f":"Import!E22179","v":"Select"},{"$f":"Import!E22579","v":"Select"},{"$f":"Import!E22979","v":0},{"$f":"Import!E23379","v":0},{"$f":"Import!E23779","v":0},{"$f":"Import!E24179","v":0},{"$f":"Import!E24579","v":0}]
[281,{"$f":"Import!E21780","v":"Select"},{"$f":"Import!E22180","v":"Select"},{"$f":"Import!E22580","v":"Select"},{"$f":"Import!E22980","v":0},{"$f":"Import!E23380","v":0},{"$f":"Import!E23780","v":0},{"$f":"Import!E24180","v":0},{"$f":"Import!E24580","v":0}]
[282,{"$f":"Import!E21781","v":"Select"},{"$f":"Import!E22181","v":"Select"},{"$f":"Import!E22581","v":"Select"},{"$f":"Import!E22981","v":0},{"$f":"Import!E23381","v":0},{"$f":"Import!E23781","v":0},{"$f":"Import!E24181","v":0},{"$f":"Import!E24581","v":0}]
[283,{"$f":"Import!E21782","v":"Select"},{"$f":"Import!E22182","v":"Select"},{"$f":"Import!E22582","v":"Select"},{"$f":"Import!E22982","v":0},{"$f":"Import!E23382","v":0},{"$f":"Import!E23782","v":0},{"$f":"Import!E24182","v":0},{"$f":"Import!E24582","v":0}]
[284,{"$f":"Import!E21783","v":"Select"},{"$f":"Import!E22183","v":"Select"},{"$f":"Import!E22583","v":"Select"},{"$f":"Import!E22983","v":0},{"$f":"Import!E23383","v":0},{"$f":"Import!E23783","v":0},{"$f":"Import!E24183","v":0},{"$f":"Import!E24583","v":0}]
[285,{"$f":"Import!E21784","v":"Select"},{"$f":"Import!E22184","v":"Select"},{"$f":"Import!E22584","v":"Select"},{"$f":"Import!E22984","v":0},{"$f":"Import!E23384","v":0},{"$f":"Import!E23784","v":0},{"$f":"Import!E24184","v":0},{"$f":"Import!E24584","v":0}]
[286,{"$f":"Import!E21785","v":"Select"},{"$f":"Import!E22185","v":"Select"},{"$f":"Import!E22585","v":"Select"},{"$f":"Import!E22985","v":0},{"$f":"Import!E23385","v":0},{"$f":"Import!E23785","v":0},{"$f":"Import!E24185","v":0},{"$f":"Import!E24585","v":0}]
[287,{"$f":"Import!E21786","v":"Select"},{"$f":"Import!E22186","v":"Select"},{"$f":"Import!E22586","v":"Select"},{"$f":"Import!E22986","v":0},{"$f":"Import!E23386","v":0},{"$f":"Import!E23786","v":0},{"$f":"Import!E24186","v":0},{"$f":"Import!E24586","v":0}]
[288,{"$f":"Import!E21787","v":"Select"},{"$f":"Import!E22187","v":"Select"},{"$f":"Import!E22587","v":"Select"},{"$f":"Import!E22987","v":0},{"$f":"Import!E23387","v":0},{"$f":"Import!E23787","v":0},{"$f":"Import!E24187","v":0},{"$f":"Import!E24587","v":0}]
[289,{"$f":"Import!E21788","v":"Select"},{"$f":"Import!E22188","v":"Select"},{"$f":"Import!E22588","v":"Select"},{"$f":"Import!E22988","v":0},{"$f":"Import!E23388","v":0},{"$f":"Import!E23788","v":0},{"$f":"Import!E24188","v":0},{"$f":"Import!E24588","v":0}]
[290,{"$f":"Import!E21789","v":"Select"},{"$f":"Import!E22189","v":"Select"},{"$f":"Import!E22589","v":"Select"},{"$f":"Import!E22989","v":0},{"$f":"Import!E23389","v":0},{"$f":"Import!E23789","v":0},{"$f":"Import!E24189","v":0},{"$f":"Import!E24589","v":0}]
[291,{"$f":"Import!E21790","v":"Select"},{"$f":"Import!E22190","v":"Select"},{"$f":"Import!E22590","v":"Select"},{"$f":"Import!E22990","v":0},{"$f":"Import!E23390","v":0},{"$f":"Import!E23790","v":0},{"$f":"Import!E24190","v":0},{"$f":"Import!E24590","v":0}]
[292,{"$f":"Import!E21791","v":"Select"},{"$f":"Import!E22191","v":"Select"},{"$f":"Import!E22591","v":"Select"},{"$f":"Import!E22991","v":0},{"$f":"Import!E23391","v":0},{"$f":"Import!E23791","v":0},{"$f":"Import!E24191","v":0},{"$f":"Import!E24591","v":0}]
[293,{"$f":"Import!E21792","v":"Select"},{"$f":"Import!E22192","v":"Select"},{"$f":"Import!E22592","v":"Select"},{"$f":"Import!E22992","v":0},{"$f":"Import!E23392","v":0},{"$f":"Import!E23792","v":0},{"$f":"Import!E24192","v":0},{"$f":"Import!E24592","v":0}]
[294,{"$f":"Import!E21793","v":"Select"},{"$f":"Import!E22193","v":"Select"},{"$f":"Import!E22593","v":"Select"},{"$f":"Import!E22993","v":0},{"$f":"Import!E23393","v":0},{"$f":"Import!E23793","v":0},{"$f":"Import!E24193","v":0},{"$f":"Import!E24593","v":0}]
[295,{"$f":"Import!E21794","v":"Select"},{"$f":"Import!E22194","v":"Select"},{"$f":"Import!E22594","v":"Select"},{"$f":"Import!E22994","v":0},{"$f":"Import!E23394","v":0},{"$f":"Import!E23794","v":0},{"$f":"Import!E24194","v":0},{"$f":"Import!E24594","v":0}]
[296,{"$f":"Import!E21795","v":"Select"},{"$f":"Import!E22195","v":"Select"},{"$f":"Import!E22595","v":"Select"},{"$f":"Import!E22995","v":0},{"$f":"Import!E23395","v":0},{"$f":"Import!E23795","v":0},{"$f":"Import!E24195","v":0},{"$f":"Import!E24595","v":0}]
[297,{"$f":"Import!E21796","v":"Select"},{"$f":"Import!E22196","v":"Select"},{"$f":"Import!E22596","v":"Select"},{"$f":"Import!E22996","v":0},{"$f":"Import!E23396","v":0},{"$f":"Import!E23796","v":0},{"$f":"Import!E24196","v":0},{"$f":"Import!E24596","v":0}]
[298,{"$f":"Import!E21797","v":"Select"},{"$f":"Import!E22197","v":"Select"},{"$f":"Import!E22597","v":"Select"},{"$f":"Import!E22997","v":0},{"$f":"Import!E23397","v":0},{"$f":"Import!E23797","v":0},{"$f":"Import!E24197","v":0},{"$f":"Import!E24597","v":0}]
[299,{"$f":"Import!E21798","v":"Select"},{"$f":"Import!E22198","v":"Select"},{"$f":"Import!E22598","v":"Select"},{"$f":"Import!E22998","v":0},{"$f":"Import!E23398","v":0},{"$f":"Import!E23798","v":0},{"$f":"Import!E24198","v":0},{"$f":"Import!E24598","v":0}]
[300,{"$f":"Import!E21799","v":"Select"},{"$f":"Import!E22199","v":"Select"},{"$f":"Import!E22599","v":"Select"},{"$f":"Import!E22999","v":0},{"$f":"Import!E23399","v":0},{"$f":"Import!E23799","v":0},{"$f":"Import!E24199","v":0},{"$f":"Import!E24599","v":0}]
[301,{"$f":"Import!E21800","v":"Select"},{"$f":"Import!E22200","v":"Select"},{"$f":"Import!E22600","v":"Select"},{"$f":"Import!E23000","v":0},{"$f":"Import!E23400","v":0},{"$f":"Import!E23800","v":0},{"$f":"Import!E24200","v":0},{"$f":"Import!E24600","v":0}]
[302,{"$f":"Import!E21801","v":"Select"},{"$f":"Import!E22201","v":"Select"},{"$f":"Import!E22601","v":"Select"},{"$f":"Import!E23001","v":0},{"$f":"Import!E23401","v":0},{"$f":"Import!E23801","v":0},{"$f":"Import!E24201","v":0},{"$f":"Import!E24601","v":0}]
[303,{"$f":"Import!E21802","v":"Select"},{"$f":"Import!E22202","v":"Select"},{"$f":"Import!E22602","v":"Select"},{"$f":"Import!E23002","v":0},{"$f":"Import!E23402","v":0},{"$f":"Import!E23802","v":0},{"$f":"Import!E24202","v":0},{"$f":"Import!E24602","v":0}]
[304,{"$f":"Import!E21803","v":"Select"},{"$f":"Import!E22203","v":"Select"},{"$f":"Import!E22603","v":"Select"},{"$f":"Import!E23003","v":0},{"$f":"Import!E23403","v":0},{"$f":"Import!E23803","v":0},{"$f":"Import!E24203","v":0},{"$f":"Import!E24603","v":0}]
[305,{"$f":"Import!E21804","v":"Select"},{"$f":"Import!E22204","v":"Select"},{"$f":"Import!E22604","v":"Select"},{"$f":"Import!E23004","v":0},{"$f":"Import!E23404","v":0},{"$f":"Import!E23804","v":0},{"$f":"Import!E24204","v":0},{"$f":"Import!E24604","v":0}]
[306,{"$f":"Import!E21805","v":"Select"},{"$f":"Import!E22205","v":"Select"},{"$f":"Import!E22605","v":"Select"},{"$f":"Import!E23005","v":0},{"$f":"Import!E23405","v":0},{"$f":"Import!E23805","v":0},{"$f":"Import!E24205","v":0},{"$f":"Import!E24605","v":0}]
[307,{"$f":"Import!E21806","v":"Select"},{"$f":"Import!E22206","v":"Select"},{"$f":"Import!E22606","v":"Select"},{"$f":"Import!E23006","v":0},{"$f":"Import!E23406","v":0},{"$f":"Import!E23806","v":0},{"$f":"Import!E24206","v":0},{"$f":"Import!E24606","v":0}]
[308,{"$f":"Import!E21807","v":"Select"},{"$f":"Import!E22207","v":"Select"},{"$f":"Import!E22607","v":"Select"},{"$f":"Import!E23007","v":0},{"$f":"Import!E23407","v":0},{"$f":"Import!E23807","v":0},{"$f":"Import!E24207","v":0},{"$f":"Import!E24607","v":0}]
[309,{"$f":"Import!E21808","v":"Select"},{"$f":"Import!E22208","v":"Select"},{"$f":"Import!E22608","v":"Select"},{"$f":"Import!E23008","v":0},{"$f":"Import!E23408","v":0},{"$f":"Import!E23808","v":0},{"$f":"Import!E24208","v":0},{"$f":"Import!E24608","v":0}]
[310,{"$f":"Import!E21809","v":"Select"},{"$f":"Import!E22209","v":"Select"},{"$f":"Import!E22609","v":"Select"},{"$f":"Import!E23009","v":0},{"$f":"Import!E23409","v":0},{"$f":"Import!E23809","v":0},{"$f":"Import!E24209","v":0},{"$f":"Import!E24609","v":0}]
[311,{"$f":"Import!E21810","v":"Select"},{"$f":"Import!E22210","v":"Select"},{"$f":"Import!E22610","v":"Select"},{"$f":"Import!E23010","v":0},{"$f":"Import!E23410","v":0},{"$f":"Import!E23810","v":0},{"$f":"Import!E24210","v":0},{"$f":"Import!E24610","v":0}]
[312,{"$f":"Import!E21811","v":"Select"},{"$f":"Import!E22211","v":"Select"},{"$f":"Import!E22611","v":"Select"},{"$f":"Import!E23011","v":0},{"$f":"Import!E23411","v":0},{"$f":"Import!E23811","v":0},{"$f":"Import!E24211","v":0},{"$f":"Import!E24611","v":0}]
[313,{"$f":"Import!E21812","v":"Select"},{"$f":"Import!E22212","v":"Select"},{"$f":"Import!E22612","v":"Select"},{"$f":"Import!E23012","v":0},{"$f":"Import!E23412","v":0},{"$f":"Import!E23812","v":0},{"$f":"Import!E24212","v":0},{"$f":"Import!E24612","v":0}]
[314,{"$f":"Import!E21813","v":"Select"},{"$f":"Import!E22213","v":"Select"},{"$f":"Import!E22613","v":"Select"},{"$f":"Import!E23013","v":0},{"$f":"Import!E23413","v":0},{"$f":"Import!E23813","v":0},{"$f":"Import!E24213","v":0},{"$f":"Import!E24613","v":0}]
[315,{"$f":"Import!E21814","v":"Select"},{"$f":"Import!E22214","v":"Select"},{"$f":"Import!E22614","v":"Select"},{"$f":"Import!E23014","v":0},{"$f":"Import!E23414","v":0},{"$f":"Import!E23814","v":0},{"$f":"Import!E24214","v":0},{"$f":"Import!E24614","v":0}]
[316,{"$f":"Import!E21815","v":"Select"},{"$f":"Import!E22215","v":"Select"},{"$f":"Import!E22615","v":"Select"},{"$f":"Import!E23015","v":0},{"$f":"Import!E23415","v":0},{"$f":"Import!E23815","v":0},{"$f":"Import!E24215","v":0},{"$f":"Import!E24615","v":0}]
[317,{"$f":"Import!E21816","v":"Select"},{"$f":"Import!E22216","v":"Select"},{"$f":"Import!E22616","v":"Select"},{"$f":"Import!E23016","v":0},{"$f":"Import!E23416","v":0},{"$f":"Import!E23816","v":0},{"$f":"Import!E24216","v":0},{"$f":"Import!E24616","v":0}]
[318,{"$f":"Import!E21817","v":"Select"},{"$f":"Import!E22217","v":"Select"},{"$f":"Import!E22617","v":"Select"},{"$f":"Import!E23017","v":0},{"$f":"Import!E23417","v":0},{"$f":"Import!E23817","v":0},{"$f":"Import!E24217","v":0},{"$f":"Import!E24617","v":0}]
[319,{"$f":"Import!E21818","v":"Select"},{"$f":"Import!E22218","v":"Select"},{"$f":"Import!E22618","v":"Select"},{"$f":"Import!E23018","v":0},{"$f":"Import!E23418","v":0},{"$f":"Import!E23818","v":0},{"$f":"Import!E24218","v":0},{"$f":"Import!E24618","v":0}]
[320,{"$f":"Import!E21819","v":"Select"},{"$f":"Import!E22219","v":"Select"},{"$f":"Import!E22619","v":"Select"},{"$f":"Import!E23019","v":0},{"$f":"Import!E23419","v":0},{"$f":"Import!E23819","v":0},{"$f":"Import!E24219","v":0},{"$f":"Import!E24619","v":0}]
[321,{"$f":"Import!E21820","v":"Select"},{"$f":"Import!E22220","v":"Select"},{"$f":"Import!E22620","v":"Select"},{"$f":"Import!E23020","v":0},{"$f":"Import!E23420","v":0},{"$f":"Import!E23820","v":0},{"$f":"Import!E24220","v":0},{"$f":"Import!E24620","v":0}]
[322,{"$f":"Import!E21821","v":"Select"},{"$f":"Import!E22221","v":"Select"},{"$f":"Import!E22621","v":"Select"},{"$f":"Import!E23021","v":0},{"$f":"Import!E23421","v":0},{"$f":"Import!E23821","v":0},{"$f":"Import!E24221","v":0},{"$f":"Import!E24621","v":0}]
[{"$f":"A540+1","v":323},{"$f":"Import!E21822","v":"Select"},{"$f":"Import!E22222","v":"Select"},{"$f":"Import!E22622","v":"Select"},{"$f":"Import!E23022","v":0},{"$f":"Import!E23422","v":0},{"$f":"Import!E23822","v":0},{"$f":"Import!E24222","v":0},{"$f":"Import!E24622","v":0}]
[324,{"$f":"Import!E21823","v":"Select"},{"$f":"Import!E22223","v":"Select"},{"$f":"Import!E22623","v":"Select"},{"$f":"Import!E23023","v":0},{"$f":"Import!E23423","v":0},{"$f":"Import!E23823","v":0},{"$f":"Import!E24223","v":0},{"$f":"Import!E24623","v":0}]
[325,{"$f":"Import!E21824","v":"Select"},{"$f":"Import!E22224","v":"Select"},{"$f":"Import!E22624","v":"Select"},{"$f":"Import!E23024","v":0},{"$f":"Import!E23424","v":0},{"$f":"Import!E23824","v":0},{"$f":"Import!E24224","v":0},{"$f":"Import!E24624","v":0}]
[326,{"$f":"Import!E21825","v":"Select"},{"$f":"Import!E22225","v":"Select"},{"$f":"Import!E22625","v":"Select"},{"$f":"Import!E23025","v":0},{"$f":"Import!E23425","v":0},{"$f":"Import!E23825","v":0},{"$f":"Import!E24225","v":0},{"$f":"Import!E24625","v":0}]
[327,{"$f":"Import!E21826","v":"Select"},{"$f":"Import!E22226","v":"Select"},{"$f":"Import!E22626","v":"Select"},{"$f":"Import!E23026","v":0},{"$f":"Import!E23426","v":0},{"$f":"Import!E23826","v":0},{"$f":"Import!E24226","v":0},{"$f":"Import!E24626","v":0}]
[328,{"$f":"Import!E21827","v":"Select"},{"$f":"Import!E22227","v":"Select"},{"$f":"Import!E22627","v":"Select"},{"$f":"Import!E23027","v":0},{"$f":"Import!E23427","v":0},{"$f":"Import!E23827","v":0},{"$f":"Import!E24227","v":0},{"$f":"Import!E24627","v":0}]
[329,{"$f":"Import!E21828","v":"Select"},{"$f":"Import!E22228","v":"Select"},{"$f":"Import!E22628","v":"Select"},{"$f":"Import!E23028","v":0},{"$f":"Import!E23428","v":0},{"$f":"Import!E23828","v":0},{"$f":"Import!E24228","v":0},{"$f":"Import!E24628","v":0}]
[330,{"$f":"Import!E21829","v":"Select"},{"$f":"Import!E22229","v":"Select"},{"$f":"Import!E22629","v":"Select"},{"$f":"Import!E23029","v":0},{"$f":"Import!E23429","v":0},{"$f":"Import!E23829","v":0},{"$f":"Import!E24229","v":0},{"$f":"Import!E24629","v":0}]
[331,{"$f":"Import!E21830","v":"Select"},{"$f":"Import!E22230","v":"Select"},{"$f":"Import!E22630","v":"Select"},{"$f":"Import!E23030","v":0},{"$f":"Import!E23430","v":0},{"$f":"Import!E23830","v":0},{"$f":"Import!E24230","v":0},{"$f":"Import!E24630","v":0}]
[332,{"$f":"Import!E21831","v":"Select"},{"$f":"Import!E22231","v":"Select"},{"$f":"Import!E22631","v":"Select"},{"$f":"Import!E23031","v":0},{"$f":"Import!E23431","v":0},{"$f":"Import!E23831","v":0},{"$f":"Import!E24231","v":0},{"$f":"Import!E24631","v":0}]
[333,{"$f":"Import!E21832","v":"Select"},{"$f":"Import!E22232","v":"Select"},{"$f":"Import!E22632","v":"Select"},{"$f":"Import!E23032","v":0},{"$f":"Import!E23432","v":0},{"$f":"Import!E23832","v":0},{"$f":"Import!E24232","v":0},{"$f":"Import!E24632","v":0}]
[334,{"$f":"Import!E21833","v":"Select"},{"$f":"Import!E22233","v":"Select"},{"$f":"Import!E22633","v":"Select"},{"$f":"Import!E23033","v":0},{"$f":"Import!E23433","v":0},{"$f":"Import!E23833","v":0},{"$f":"Import!E24233","v":0},{"$f":"Import!E24633","v":0}]
[335,{"$f":"Import!E21834","v":"Select"},{"$f":"Import!E22234","v":"Select"},{"$f":"Import!E22634","v":"Select"},{"$f":"Import!E23034","v":0},{"$f":"Import!E23434","v":0},{"$f":"Import!E23834","v":0},{"$f":"Import!E24234","v":0},{"$f":"Import!E24634","v":0}]
[336,{"$f":"Import!E21835","v":"Select"},{"$f":"Import!E22235","v":"Select"},{"$f":"Import!E22635","v":"Select"},{"$f":"Import!E23035","v":0},{"$f":"Import!E23435","v":0},{"$f":"Import!E23835","v":0},{"$f":"Import!E24235","v":0},{"$f":"Import!E24635","v":0}]
[337,{"$f":"Import!E21836","v":"Select"},{"$f":"Import!E22236","v":"Select"},{"$f":"Import!E22636","v":"Select"},{"$f":"Import!E23036","v":0},{"$f":"Import!E23436","v":0},{"$f":"Import!E23836","v":0},{"$f":"Import!E24236","v":0},{"$f":"Import!E24636","v":0}]
[338,{"$f":"Import!E21837","v":"Select"},{"$f":"Import!E22237","v":"Select"},{"$f":"Import!E22637","v":"Select"},{"$f":"Import!E23037","v":0},{"$f":"Import!E23437","v":0},{"$f":"Import!E23837","v":0},{"$f":"Import!E24237","v":0},{"$f":"Import!E24637","v":0}]
[339,{"$f":"Import!E21838","v":"Select"},{"$f":"Import!E22238","v":"Select"},{"$f":"Import!E22638","v":"Select"},{"$f":"Import!E23038","v":0},{"$f":"Import!E23438","v":0},{"$f":"Import!E23838","v":0},{"$f":"Import!E24238","v":0},{"$f":"Import!E24638","v":0}]
[340,{"$f":"Import!E21839","v":"Select"},{"$f":"Import!E22239","v":"Select"},{"$f":"Import!E22639","v":"Select"},{"$f":"Import!E23039","v":0},{"$f":"Import!E23439","v":0},{"$f":"Import!E23839","v":0},{"$f":"Import!E24239","v":0},{"$f":"Import!E24639","v":0}]
[341,{"$f":"Import!E21840","v":"Select"},{"$f":"Import!E22240","v":"Select"},{"$f":"Import!E22640","v":"Select"},{"$f":"Import!E23040","v":0},{"$f":"Import!E23440","v":0},{"$f":"Import!E23840","v":0},{"$f":"Import!E24240","v":0},{"$f":"Import!E24640","v":0}]
[342,{"$f":"Import!E21841","v":"Select"},{"$f":"Import!E22241","v":"Select"},{"$f":"Import!E22641","v":"Select"},{"$f":"Import!E23041","v":0},{"$f":"Import!E23441","v":0},{"$f":"Import!E23841","v":0},{"$f":"Import!E24241","v":0},{"$f":"Import!E24641","v":0}]
[343,{"$f":"Import!E21842","v":"Select"},{"$f":"Import!E22242","v":"Select"},{"$f":"Import!E22642","v":"Select"},{"$f":"Import!E23042","v":0},{"$f":"Import!E23442","v":0},{"$f":"Import!E23842","v":0},{"$f":"Import!E24242","v":0},{"$f":"Import!E24642","v":0}]
[344,{"$f":"Import!E21843","v":"Select"},{"$f":"Import!E22243","v":"Select"},{"$f":"Import!E22643","v":"Select"},{"$f":"Import!E23043","v":0},{"$f":"Import!E23443","v":0},{"$f":"Import!E23843","v":0},{"$f":"Import!E24243","v":0},{"$f":"Import!E24643","v":0}]
[345,{"$f":"Import!E21844","v":"Select"},{"$f":"Import!E22244","v":"Select"},{"$f":"Import!E22644","v":"Select"},{"$f":"Import!E23044","v":0},{"$f":"Import!E23444","v":0},{"$f":"Import!E23844","v":0},{"$f":"Import!E24244","v":0},{"$f":"Import!E24644","v":0}]
[346,{"$f":"Import!E21845","v":"Select"},{"$f":"Import!E22245","v":"Select"},{"$f":"Import!E22645","v":"Select"},{"$f":"Import!E23045","v":0},{"$f":"Import!E23445","v":0},{"$f":"Import!E23845","v":0},{"$f":"Import!E24245","v":0},{"$f":"Import!E24645","v":0}]
[347,{"$f":"Import!E21846","v":"Select"},{"$f":"Import!E22246","v":"Select"},{"$f":"Import!E22646","v":"Select"},{"$f":"Import!E23046","v":0},{"$f":"Import!E23446","v":0},{"$f":"Import!E23846","v":0},{"$f":"Import!E24246","v":0},{"$f":"Import!E24646","v":0}]
[348,{"$f":"Import!E21847","v":"Select"},{"$f":"Import!E22247","v":"Select"},{"$f":"Import!E22647","v":"Select"},{"$f":"Import!E23047","v":0},{"$f":"Import!E23447","v":0},{"$f":"Import!E23847","v":0},{"$f":"Import!E24247","v":0},{"$f":"Import!E24647","v":0}]
[349,{"$f":"Import!E21848","v":"Select"},{"$f":"Import!E22248","v":"Select"},{"$f":"Import!E22648","v":"Select"},{"$f":"Import!E23048","v":0},{"$f":"Import!E23448","v":0},{"$f":"Import!E23848","v":0},{"$f":"Import!E24248","v":0},{"$f":"Import!E24648","v":0}]
[350,{"$f":"Import!E21849","v":"Select"},{"$f":"Import!E22249","v":"Select"},{"$f":"Import!E22649","v":"Select"},{"$f":"Import!E23049","v":0},{"$f":"Import!E23449","v":0},{"$f":"Import!E23849","v":0},{"$f":"Import!E24249","v":0},{"$f":"Import!E24649","v":0}]
[351,{"$f":"Import!E21850","v":"Select"},{"$f":"Import!E22250","v":"Select"},{"$f":"Import!E22650","v":"Select"},{"$f":"Import!E23050","v":0},{"$f":"Import!E23450","v":0},{"$f":"Import!E23850","v":0},{"$f":"Import!E24250","v":0},{"$f":"Import!E24650","v":0}]
[352,{"$f":"Import!E21851","v":"Select"},{"$f":"Import!E22251","v":"Select"},{"$f":"Import!E22651","v":"Select"},{"$f":"Import!E23051","v":0},{"$f":"Import!E23451","v":0},{"$f":"Import!E23851","v":0},{"$f":"Import!E24251","v":0},{"$f":"Import!E24651","v":0}]
[353,{"$f":"Import!E21852","v":"Select"},{"$f":"Import!E22252","v":"Select"},{"$f":"Import!E22652","v":"Select"},{"$f":"Import!E23052","v":0},{"$f":"Import!E23452","v":0},{"$f":"Import!E23852","v":0},{"$f":"Import!E24252","v":0},{"$f":"Import!E24652","v":0}]
[354,{"$f":"Import!E21853","v":"Select"},{"$f":"Import!E22253","v":"Select"},{"$f":"Import!E22653","v":"Select"},{"$f":"Import!E23053","v":0},{"$f":"Import!E23453","v":0},{"$f":"Import!E23853","v":0},{"$f":"Import!E24253","v":0},{"$f":"Import!E24653","v":0}]
[355,{"$f":"Import!E21854","v":"Select"},{"$f":"Import!E22254","v":"Select"},{"$f":"Import!E22654","v":"Select"},{"$f":"Import!E23054","v":0},{"$f":"Import!E23454","v":0},{"$f":"Import!E23854","v":0},{"$f":"Import!E24254","v":0},{"$f":"Import!E24654","v":0}]
[356,{"$f":"Import!E21855","v":"Select"},{"$f":"Import!E22255","v":"Select"},{"$f":"Import!E22655","v":"Select"},{"$f":"Import!E23055","v":0},{"$f":"Import!E23455","v":0},{"$f":"Import!E23855","v":0},{"$f":"Import!E24255","v":0},{"$f":"Import!E24655","v":0}]
[357,{"$f":"Import!E21856","v":"Select"},{"$f":"Import!E22256","v":"Select"},{"$f":"Import!E22656","v":"Select"},{"$f":"Import!E23056","v":0},{"$f":"Import!E23456","v":0},{"$f":"Import!E23856","v":0},{"$f":"Import!E24256","v":0},{"$f":"Import!E24656","v":0}]
[358,{"$f":"Import!E21857","v":"Select"},{"$f":"Import!E22257","v":"Select"},{"$f":"Import!E22657","v":"Select"},{"$f":"Import!E23057","v":0},{"$f":"Import!E23457","v":0},{"$f":"Import!E23857","v":0},{"$f":"Import!E24257","v":0},{"$f":"Import!E24657","v":0}]
[359,{"$f":"Import!E21858","v":"Select"},{"$f":"Import!E22258","v":"Select"},{"$f":"Import!E22658","v":"Select"},{"$f":"Import!E23058","v":0},{"$f":"Import!E23458","v":0},{"$f":"Import!E23858","v":0},{"$f":"Import!E24258","v":0},{"$f":"Import!E24658","v":0}]
[360,{"$f":"Import!E21859","v":"Select"},{"$f":"Import!E22259","v":"Select"},{"$f":"Import!E22659","v":"Select"},{"$f":"Import!E23059","v":0},{"$f":"Import!E23459","v":0},{"$f":"Import!E23859","v":0},{"$f":"Import!E24259","v":0},{"$f":"Import!E24659","v":0}]
[361,{"$f":"Import!E21860","v":"Select"},{"$f":"Import!E22260","v":"Select"},{"$f":"Import!E22660","v":"Select"},{"$f":"Import!E23060","v":0},{"$f":"Import!E23460","v":0},{"$f":"Import!E23860","v":0},{"$f":"Import!E24260","v":0},{"$f":"Import!E24660","v":0}]
[362,{"$f":"Import!E21861","v":"Select"},{"$f":"Import!E22261","v":"Select"},{"$f":"Import!E22661","v":"Select"},{"$f":"Import!E23061","v":0},{"$f":"Import!E23461","v":0},{"$f":"Import!E23861","v":0},{"$f":"Import!E24261","v":0},{"$f":"Import!E24661","v":0}]
[363,{"$f":"Import!E21862","v":"Select"},{"$f":"Import!E22262","v":"Select"},{"$f":"Import!E22662","v":"Select"},{"$f":"Import!E23062","v":0},{"$f":"Import!E23462","v":0},{"$f":"Import!E23862","v":0},{"$f":"Import!E24262","v":0},{"$f":"Import!E24662","v":0}]
[364,{"$f":"Import!E21863","v":"Select"},{"$f":"Import!E22263","v":"Select"},{"$f":"Import!E22663","v":"Select"},{"$f":"Import!E23063","v":0},{"$f":"Import!E23463","v":0},{"$f":"Import!E23863","v":0},{"$f":"Import!E24263","v":0},{"$f":"Import!E24663","v":0}]
[365,{"$f":"Import!E21864","v":"Select"},{"$f":"Import!E22264","v":"Select"},{"$f":"Import!E22664","v":"Select"},{"$f":"Import!E23064","v":0},{"$f":"Import!E23464","v":0},{"$f":"Import!E23864","v":0},{"$f":"Import!E24264","v":0},{"$f":"Import!E24664","v":0}]
[366,{"$f":"Import!E21865","v":"Select"},{"$f":"Import!E22265","v":"Select"},{"$f":"Import!E22665","v":"Select"},{"$f":"Import!E23065","v":0},{"$f":"Import!E23465","v":0},{"$f":"Import!E23865","v":0},{"$f":"Import!E24265","v":0},{"$f":"Import!E24665","v":0}]
[367,{"$f":"Import!E21866","v":"Select"},{"$f":"Import!E22266","v":"Select"},{"$f":"Import!E22666","v":"Select"},{"$f":"Import!E23066","v":0},{"$f":"Import!E23466","v":0},{"$f":"Import!E23866","v":0},{"$f":"Import!E24266","v":0},{"$f":"Import!E24666","v":0}]
[368,{"$f":"Import!E21867","v":"Select"},{"$f":"Import!E22267","v":"Select"},{"$f":"Import!E22667","v":"Select"},{"$f":"Import!E23067","v":0},{"$f":"Import!E23467","v":0},{"$f":"Import!E23867","v":0},{"$f":"Import!E24267","v":0},{"$f":"Import!E24667","v":0}]
[369,{"$f":"Import!E21868","v":"Select"},{"$f":"Import!E22268","v":"Select"},{"$f":"Import!E22668","v":"Select"},{"$f":"Import!E23068","v":0},{"$f":"Import!E23468","v":0},{"$f":"Import!E23868","v":0},{"$f":"Import!E24268","v":0},{"$f":"Import!E24668","v":0}]
[370,{"$f":"Import!E21869","v":"Select"},{"$f":"Import!E22269","v":"Select"},{"$f":"Import!E22669","v":"Select"},{"$f":"Import!E23069","v":0},{"$f":"Import!E23469","v":0},{"$f":"Import!E23869","v":0},{"$f":"Import!E24269","v":0},{"$f":"Import!E24669","v":0}]
[371,{"$f":"Import!E21870","v":"Select"},{"$f":"Import!E22270","v":"Select"},{"$f":"Import!E22670","v":"Select"},{"$f":"Import!E23070","v":0},{"$f":"Import!E23470","v":0},{"$f":"Import!E23870","v":0},{"$f":"Import!E24270","v":0},{"$f":"Import!E24670","v":0}]
[372,{"$f":"Import!E21871","v":"Select"},{"$f":"Import!E22271","v":"Select"},{"$f":"Import!E22671","v":"Select"},{"$f":"Import!E23071","v":0},{"$f":"Import!E23471","v":0},{"$f":"Import!E23871","v":0},{"$f":"Import!E24271","v":0},{"$f":"Import!E24671","v":0}]
[373,{"$f":"Import!E21872","v":"Select"},{"$f":"Import!E22272","v":"Select"},{"$f":"Import!E22672","v":"Select"},{"$f":"Import!E23072","v":0},{"$f":"Import!E23472","v":0},{"$f":"Import!E23872","v":0},{"$f":"Import!E24272","v":0},{"$f":"Import!E24672","v":0}]
[374,{"$f":"Import!E21873","v":"Select"},{"$f":"Import!E22273","v":"Select"},{"$f":"Import!E22673","v":"Select"},{"$f":"Import!E23073","v":0},{"$f":"Import!E23473","v":0},{"$f":"Import!E23873","v":0},{"$f":"Import!E24273","v":0},{"$f":"Import!E24673","v":0}]
[375,{"$f":"Import!E21874","v":"Select"},{"$f":"Import!E22274","v":"Select"},{"$f":"Import!E22674","v":"Select"},{"$f":"Import!E23074","v":0},{"$f":"Import!E23474","v":0},{"$f":"Import!E23874","v":0},{"$f":"Import!E24274","v":0},{"$f":"Import!E24674","v":0}]
[376,{"$f":"Import!E21875","v":"Select"},{"$f":"Import!E22275","v":"Select"},{"$f":"Import!E22675","v":"Select"},{"$f":"Import!E23075","v":0},{"$f":"Import!E23475","v":0},{"$f":"Import!E23875","v":0},{"$f":"Import!E24275","v":0},{"$f":"Import!E24675","v":0}]
[377,{"$f":"Import!E21876","v":"Select"},{"$f":"Import!E22276","v":"Select"},{"$f":"Import!E22676","v":"Select"},{"$f":"Import!E23076","v":0},{"$f":"Import!E23476","v":0},{"$f":"Import!E23876","v":0},{"$f":"Import!E24276","v":0},{"$f":"Import!E24676","v":0}]
[378,{"$f":"Import!E21877","v":"Select"},{"$f":"Import!E22277","v":"Select"},{"$f":"Import!E22677","v":"Select"},{"$f":"Import!E23077","v":0},{"$f":"Import!E23477","v":0},{"$f":"Import!E23877","v":0},{"$f":"Import!E24277","v":0},{"$f":"Import!E24677","v":0}]
[379,{"$f":"Import!E21878","v":"Select"},{"$f":"Import!E22278","v":"Select"},{"$f":"Import!E22678","v":"Select"},{"$f":"Import!E23078","v":0},{"$f":"Import!E23478","v":0},{"$f":"Import!E23878","v":0},{"$f":"Import!E24278","v":0},{"$f":"Import!E24678","v":0}]
[380,{"$f":"Import!E21879","v":"Select"},{"$f":"Import!E22279","v":"Select"},{"$f":"Import!E22679","v":"Select"},{"$f":"Import!E23079","v":0},{"$f":"Import!E23479","v":0},{"$f":"Import!E23879","v":0},{"$f":"Import!E24279","v":0},{"$f":"Import!E24679","v":0}]
[381,{"$f":"Import!E21880","v":"Select"},{"$f":"Import!E22280","v":"Select"},{"$f":"Import!E22680","v":"Select"},{"$f":"Import!E23080","v":0},{"$f":"Import!E23480","v":0},{"$f":"Import!E23880","v":0},{"$f":"Import!E24280","v":0},{"$f":"Import!E24680","v":0}]
[382,{"$f":"Import!E21881","v":"Select"},{"$f":"Import!E22281","v":"Select"},{"$f":"Import!E22681","v":"Select"},{"$f":"Import!E23081","v":0},{"$f":"Import!E23481","v":0},{"$f":"Import!E23881","v":0},{"$f":"Import!E24281","v":0},{"$f":"Import!E24681","v":0}]
[383,{"$f":"Import!E21882","v":"Select"},{"$f":"Import!E22282","v":"Select"},{"$f":"Import!E22682","v":"Select"},{"$f":"Import!E23082","v":0},{"$f":"Import!E23482","v":0},{"$f":"Import!E23882","v":0},{"$f":"Import!E24282","v":0},{"$f":"Import!E24682","v":0}]
[384,{"$f":"Import!E21883","v":"Select"},{"$f":"Import!E22283","v":"Select"},{"$f":"Import!E22683","v":"Select"},{"$f":"Import!E23083","v":0},{"$f":"Import!E23483","v":0},{"$f":"Import!E23883","v":0},{"$f":"Import!E24283","v":0},{"$f":"Import!E24683","v":0}]
[385,{"$f":"Import!E21884","v":"Select"},{"$f":"Import!E22284","v":"Select"},{"$f":"Import!E22684","v":"Select"},{"$f":"Import!E23084","v":0},{"$f":"Import!E23484","v":0},{"$f":"Import!E23884","v":0},{"$f":"Import!E24284","v":0},{"$f":"Import!E24684","v":0}]
[386,{"$f":"Import!E21885","v":"Select"},{"$f":"Import!E22285","v":"Select"},{"$f":"Import!E22685","v":"Select"},{"$f":"Import!E23085","v":0},{"$f":"Import!E23485","v":0},{"$f":"Import!E23885","v":0},{"$f":"Import!E24285","v":0},{"$f":"Import!E24685","v":0}]
[{"$f":"A604+1","v":387},{"$f":"Import!E21886","v":"Select"},{"$f":"Import!E22286","v":"Select"},{"$f":"Import!E22686","v":"Select"},{"$f":"Import!E23086","v":0},{"$f":"Import!E23486","v":0},{"$f":"Import!E23886","v":0},{"$f":"Import!E24286","v":0},{"$f":"Import!E24686","v":0}]
[388,{"$f":"Import!E21887","v":"Select"},{"$f":"Import!E22287","v":"Select"},{"$f":"Import!E22687","v":"Select"},{"$f":"Import!E23087","v":0},{"$f":"Import!E23487","v":0},{"$f":"Import!E23887","v":0},{"$f":"Import!E24287","v":0},{"$f":"Import!E24687","v":0}]
[389,{"$f":"Import!E21888","v":"Select"},{"$f":"Import!E22288","v":"Select"},{"$f":"Import!E22688","v":"Select"},{"$f":"Import!E23088","v":0},{"$f":"Import!E23488","v":0},{"$f":"Import!E23888","v":0},{"$f":"Import!E24288","v":0},{"$f":"Import!E24688","v":0}]
[390,{"$f":"Import!E21889","v":"Select"},{"$f":"Import!E22289","v":"Select"},{"$f":"Import!E22689","v":"Select"},{"$f":"Import!E23089","v":0},{"$f":"Import!E23489","v":0},{"$f":"Import!E23889","v":0},{"$f":"Import!E24289","v":0},{"$f":"Import!E24689","v":0}]
[391,{"$f":"Import!E21890","v":"Select"},{"$f":"Import!E22290","v":"Select"},{"$f":"Import!E22690","v":"Select"},{"$f":"Import!E23090","v":0},{"$f":"Import!E23490","v":0},{"$f":"Import!E23890","v":0},{"$f":"Import!E24290","v":0},{"$f":"Import!E24690","v":0}]
[392,{"$f":"Import!E21891","v":"Select"},{"$f":"Import!E22291","v":"Select"},{"$f":"Import!E22691","v":"Select"},{"$f":"Import!E23091","v":0},{"$f":"Import!E23491","v":0},{"$f":"Import!E23891","v":0},{"$f":"Import!E24291","v":0},{"$f":"Import!E24691","v":0}]
[393,{"$f":"Import!E21892","v":"Select"},{"$f":"Import!E22292","v":"Select"},{"$f":"Import!E22692","v":"Select"},{"$f":"Import!E23092","v":0},{"$f":"Import!E23492","v":0},{"$f":"Import!E23892","v":0},{"$f":"Import!E24292","v":0},{"$f":"Import!E24692","v":0}]
[394,{"$f":"Import!E21893","v":"Select"},{"$f":"Import!E22293","v":"Select"},{"$f":"Import!E22693","v":"Select"},{"$f":"Import!E23093","v":0},{"$f":"Import!E23493","v":0},{"$f":"Import!E23893","v":0},{"$f":"Import!E24293","v":0},{"$f":"Import!E24693","v":0}]
[395,{"$f":"Import!E21894","v":"Select"},{"$f":"Import!E22294","v":"Select"},{"$f":"Import!E22694","v":"Select"},{"$f":"Import!E23094","v":0},{"$f":"Import!E23494","v":0},{"$f":"Import!E23894","v":0},{"$f":"Import!E24294","v":0},{"$f":"Import!E24694","v":0}]
[396,{"$f":"Import!E21895","v":"Select"},{"$f":"Import!E22295","v":"Select"},{"$f":"Import!E22695","v":"Select"},{"$f":"Import!E23095","v":0},{"$f":"Import!E23495","v":0},{"$f":"Import!E23895","v":0},{"$f":"Import!E24295","v":0},{"$f":"Import!E24695","v":0}]
[397,{"$f":"Import!E21896","v":"Select"},{"$f":"Import!E22296","v":"Select"},{"$f":"Import!E22696","v":"Select"},{"$f":"Import!E23096","v":0},{"$f":"Import!E23496","v":0},{"$f":"Import!E23896","v":0},{"$f":"Import!E24296","v":0},{"$f":"Import!E24696","v":0}]
[398,{"$f":"Import!E21897","v":"Select"},{"$f":"Import!E22297","v":"Select"},{"$f":"Import!E22697","v":"Select"},{"$f":"Import!E23097","v":0},{"$f":"Import!E23497","v":0},{"$f":"Import!E23897","v":0},{"$f":"Import!E24297","v":0},{"$f":"Import!E24697","v":0}]
[399,{"$f":"Import!E21898","v":"Select"},{"$f":"Import!E22298","v":"Select"},{"$f":"Import!E22698","v":"Select"},{"$f":"Import!E23098","v":0},{"$f":"Import!E23498","v":0},{"$f":"Import!E23898","v":0},{"$f":"Import!E24298","v":0},{"$f":"Import!E24698","v":0}]
[400,{"$f":"Import!E21899","v":"Select"},{"$f":"Import!E22299","v":"Select"},{"$f":"Import!E22699","v":"Select"},{"$f":"Import!E23099","v":0},{"$f":"Import!E23499","v":0},{"$f":"Import!E23899","v":0},{"$f":"Import!E24299","v":0},{"$f":"Import!E24699","v":0}]
[]
[null,"Total Bonds and Debentures",null,null,{"$f":"SUM(E219:E618)","v":0},{"$f":"SUM(F219:F618)","v":0},{"$f":"IFERROR(SUMPRODUCT(G219:G618,$F219:$F618)/SUM($F219:$F618),0)","v":0},{"$f":"IFERROR(SUMPRODUCT(H219:H618,$F219:$F618)/SUM($F219:$F618),0)","v":0}]
[]
[null,"- ADDITIONAL INFORMATION ON SOVEREIGN DEBT EXPOSURES"]
[]
[null,null,"Enter # of Asset Types",{"$f":"Import!E24700","v":0}]
[null,null,null,null,null,{"$f":"YEAR($C$3)","v":2023}]
[null,null,"Country","Currency","BSCR Rating","Fair Value","Comments"]
[null,1,{"$f":"Import!E24701","v":"Select"},{"$f":"Import!E24901","v":"Select"},{"$f":"Import!E25101","v":"Select"},{"$f":"Import!E25301","v":0},{"$f":"Import!E25501","v":0}]
[null,{"$f":"B627+1","v":2},{"$f":"Import!E24702","v":"Select"},{"$f":"Import!E24902","v":"Select"},{"$f":"Import!E25102","v":"Select"},{"$f":"Import!E25302","v":0},{"$f":"Import!E25502","v":0}]
[null,{"$f":"B628+1","v":3},{"$f":"Import!E24703","v":"Select"},{"$f":"Import!E24903","v":"Select"},{"$f":"Import!E25103","v":"Select"},{"$f":"Import!E25303","v":0},{"$f":"Import!E25503","v":0}]
[null,4,{"$f":"Import!E24704","v":"Select"},{"$f":"Import!E24904","v":"Select"},{"$f":"Import!E25104","v":"Select"},{"$f":"Import!E25304","v":0},{"$f":"Import!E25504","v":0}]
[null,5,{"$f":"Import!E24705","v":"Select"},{"$f":"Import!E24905","v":"Select"},{"$f":"Import!E25105","v":"Select"},{"$f":"Import!E25305","v":0},{"$f":"Import!E25505","v":0}]
[null,6,{"$f":"Import!E24706","v":"Select"},{"$f":"Import!E24906","v":"Select"},{"$f":"Import!E25106","v":"Select"},{"$f":"Import!E25306","v":0},{"$f":"Import!E25506","v":0}]
[null,7,{"$f":"Import!E24707","v":"Select"},{"$f":"Import!E24907","v":"Select"},{"$f":"Import!E25107","v":"Select"},{"$f":"Import!E25307","v":0},{"$f":"Import!E25507","v":0}]
[null,8,{"$f":"Import!E24708","v":"Select"},{"$f":"Import!E24908","v":"Select"},{"$f":"Import!E25108","v":"Select"},{"$f":"Import!E25308","v":0},{"$f":"Import!E25508","v":0}]
[null,9,{"$f":"Import!E24709","v":"Select"},{"$f":"Import!E24909","v":"Select"},{"$f":"Import!E25109","v":"Select"},{"$f":"Import!E25309","v":0},{"$f":"Import!E25509","v":0}]
[null,10,{"$f":"Import!E24710","v":"Select"},{"$f":"Import!E24910","v":"Select"},{"$f":"Import!E25110","v":"Select"},{"$f":"Import!E25310","v":0},{"$f":"Import!E25510","v":0}]
[null,11,{"$f":"Import!E24711","v":"Select"},{"$f":"Import!E24911","v":"Select"},{"$f":"Import!E25111","v":"Select"},{"$f":"Import!E25311","v":0},{"$f":"Import!E25511","v":0}]
[null,12,{"$f":"Import!E24712","v":"Select"},{"$f":"Import!E24912","v":"Select"},{"$f":"Import!E25112","v":"Select"},{"$f":"Import!E25312","v":0},{"$f":"Import!E25512","v":0}]
[null,13,{"$f":"Import!E24713","v":"Select"},{"$f":"Import!E24913","v":"Select"},{"$f":"Import!E25113","v":"Select"},{"$f":"Import!E25313","v":0},{"$f":"Import!E25513","v":0}]
[null,14,{"$f":"Import!E24714","v":"Select"},{"$f":"Import!E24914","v":"Select"},{"$f":"Import!E25114","v":"Select"},{"$f":"Import!E25314","v":0},{"$f":"Import!E25514","v":0}]
[null,15,{"$f":"Import!E24715","v":"Select"},{"$f":"Import!E24915","v":"Select"},{"$f":"Import!E25115","v":"Select"},{"$f":"Import!E25315","v":0},{"$f":"Import!E25515","v":0}]
[null,16,{"$f":"Import!E24716","v":"Select"},{"$f":"Import!E24916","v":"Select"},{"$f":"Import!E25116","v":"Select"},{"$f":"Import!E25316","v":0},{"$f":"Import!E25516","v":0}]
[null,17,{"$f":"Import!E24717","v":"Select"},{"$f":"Import!E24917","v":"Select"},{"$f":"Import!E25117","v":"Select"},{"$f":"Import!E25317","v":0},{"$f":"Import!E25517","v":0}]
[null,18,{"$f":"Import!E24718","v":"Select"},{"$f":"Import!E24918","v":"Select"},{"$f":"Import!E25118","v":"Select"},{"$f":"Import!E25318","v":0},{"$f":"Import!E25518","v":0}]
[null,19,{"$f":"Import!E24719","v":"Select"},{"$f":"Import!E24919","v":"Select"},{"$f":"Import!E25119","v":"Select"},{"$f":"Import!E25319","v":0},{"$f":"Import!E25519","v":0}]
[null,20,{"$f":"Import!E24720","v":"Select"},{"$f":"Import!E24920","v":"Select"},{"$f":"Import!E25120","v":"Select"},{"$f":"Import!E25320","v":0},{"$f":"Import!E25520","v":0}]
[null,21,{"$f":"Import!E24721","v":"Select"},{"$f":"Import!E24921","v":"Select"},{"$f":"Import!E25121","v":"Select"},{"$f":"Import!E25321","v":0},{"$f":"Import!E25521","v":0}]
[null,22,{"$f":"Import!E24722","v":"Select"},{"$f":"Import!E24922","v":"Select"},{"$f":"Import!E25122","v":"Select"},{"$f":"Import!E25322","v":0},{"$f":"Import!E25522","v":0}]
[null,23,{"$f":"Import!E24723","v":"Select"},{"$f":"Import!E24923","v":"Select"},{"$f":"Import!E25123","v":"Select"},{"$f":"Import!E25323","v":0},{"$f":"Import!E25523","v":0}]
[null,24,{"$f":"Import!E24724","v":"Select"},{"$f":"Import!E24924","v":"Select"},{"$f":"Import!E25124","v":"Select"},{"$f":"Import!E25324","v":0},{"$f":"Import!E25524","v":0}]
[null,25,{"$f":"Import!E24725","v":"Select"},{"$f":"Import!E24925","v":"Select"},{"$f":"Import!E25125","v":"Select"},{"$f":"Import!E25325","v":0},{"$f":"Import!E25525","v":0}]
[null,26,{"$f":"Import!E24726","v":"Select"},{"$f":"Import!E24926","v":"Select"},{"$f":"Import!E25126","v":"Select"},{"$f":"Import!E25326","v":0},{"$f":"Import!E25526","v":0}]
[null,27,{"$f":"Import!E24727","v":"Select"},{"$f":"Import!E24927","v":"Select"},{"$f":"Import!E25127","v":"Select"},{"$f":"Import!E25327","v":0},{"$f":"Import!E25527","v":0}]
[null,28,{"$f":"Import!E24728","v":"Select"},{"$f":"Import!E24928","v":"Select"},{"$f":"Import!E25128","v":"Select"},{"$f":"Import!E25328","v":0},{"$f":"Import!E25528","v":0}]
[null,29,{"$f":"Import!E24729","v":"Select"},{"$f":"Import!E24929","v":"Select"},{"$f":"Import!E25129","v":"Select"},{"$f":"Import!E25329","v":0},{"$f":"Import!E25529","v":0}]
[null,30,{"$f":"Import!E24730","v":"Select"},{"$f":"Import!E24930","v":"Select"},{"$f":"Import!E25130","v":"Select"},{"$f":"Import!E25330","v":0},{"$f":"Import!E25530","v":0}]
[null,31,{"$f":"Import!E24731","v":"Select"},{"$f":"Import!E24931","v":"Select"},{"$f":"Import!E25131","v":"Select"},{"$f":"Import!E25331","v":0},{"$f":"Import!E25531","v":0}]
[null,32,{"$f":"Import!E24732","v":"Select"},{"$f":"Import!E24932","v":"Select"},{"$f":"Import!E25132","v":"Select"},{"$f":"Import!E25332","v":0},{"$f":"Import!E25532","v":0}]
[null,33,{"$f":"Import!E24733","v":"Select"},{"$f":"Import!E24933","v":"Select"},{"$f":"Import!E25133","v":"Select"},{"$f":"Import!E25333","v":0},{"$f":"Import!E25533","v":0}]
[null,34,{"$f":"Import!E24734","v":"Select"},{"$f":"Import!E24934","v":"Select"},{"$f":"Import!E25134","v":"Select"},{"$f":"Import!E25334","v":0},{"$f":"Import!E25534","v":0}]
[null,35,{"$f":"Import!E24735","v":"Select"},{"$f":"Import!E24935","v":"Select"},{"$f":"Import!E25135","v":"Select"},{"$f":"Import!E25335","v":0},{"$f":"Import!E25535","v":0}]
[null,36,{"$f":"Import!E24736","v":"Select"},{"$f":"Import!E24936","v":"Select"},{"$f":"Import!E25136","v":"Select"},{"$f":"Import!E25336","v":0},{"$f":"Import!E25536","v":0}]
[null,37,{"$f":"Import!E24737","v":"Select"},{"$f":"Import!E24937","v":"Select"},{"$f":"Import!E25137","v":"Select"},{"$f":"Import!E25337","v":0},{"$f":"Import!E25537","v":0}]
[null,38,{"$f":"Import!E24738","v":"Select"},{"$f":"Import!E24938","v":"Select"},{"$f":"Import!E25138","v":"Select"},{"$f":"Import!E25338","v":0},{"$f":"Import!E25538","v":0}]
[null,39,{"$f":"Import!E24739","v":"Select"},{"$f":"Import!E24939","v":"Select"},{"$f":"Import!E25139","v":"Select"},{"$f":"Import!E25339","v":0},{"$f":"Import!E25539","v":0}]
[null,40,{"$f":"Import!E24740","v":"Select"},{"$f":"Import!E24940","v":"Select"},{"$f":"Import!E25140","v":"Select"},{"$f":"Import!E25340","v":0},{"$f":"Import!E25540","v":0}]
[null,41,{"$f":"Import!E24741","v":"Select"},{"$f":"Import!E24941","v":"Select"},{"$f":"Import!E25141","v":"Select"},{"$f":"Import!E25341","v":0},{"$f":"Import!E25541","v":0}]
[null,42,{"$f":"Import!E24742","v":"Select"},{"$f":"Import!E24942","v":"Select"},{"$f":"Import!E25142","v":"Select"},{"$f":"Import!E25342","v":0},{"$f":"Import!E25542","v":0}]
[null,43,{"$f":"Import!E24743","v":"Select"},{"$f":"Import!E24943","v":"Select"},{"$f":"Import!E25143","v":"Select"},{"$f":"Import!E25343","v":0},{"$f":"Import!E25543","v":0}]
[null,44,{"$f":"Import!E24744","v":"Select"},{"$f":"Import!E24944","v":"Select"},{"$f":"Import!E25144","v":"Select"},{"$f":"Import!E25344","v":0},{"$f":"Import!E25544","v":0}]
[null,45,{"$f":"Import!E24745","v":"Select"},{"$f":"Import!E24945","v":"Select"},{"$f":"Import!E25145","v":"Select"},{"$f":"Import!E25345","v":0},{"$f":"Import!E25545","v":0}]
[null,46,{"$f":"Import!E24746","v":"Select"},{"$f":"Import!E24946","v":"Select"},{"$f":"Import!E25146","v":"Select"},{"$f":"Import!E25346","v":0},{"$f":"Import!E25546","v":0}]
[null,47,{"$f":"Import!E24747","v":"Select"},{"$f":"Import!E24947","v":"Select"},{"$f":"Import!E25147","v":"Select"},{"$f":"Import!E25347","v":0},{"$f":"Import!E25547","v":0}]
[null,48,{"$f":"Import!E24748","v":"Select"},{"$f":"Import!E24948","v":"Select"},{"$f":"Import!E25148","v":"Select"},{"$f":"Import!E25348","v":0},{"$f":"Import!E25548","v":0}]
[null,49,{"$f":"Import!E24749","v":"Select"},{"$f":"Import!E24949","v":"Select"},{"$f":"Import!E25149","v":"Select"},{"$f":"Import!E25349","v":0},{"$f":"Import!E25549","v":0}]
[null,50,{"$f":"Import!E24750","v":"Select"},{"$f":"Import!E24950","v":"Select"},{"$f":"Import!E25150","v":"Select"},{"$f":"Import!E25350","v":0},{"$f":"Import!E25550","v":0}]
[null,51,{"$f":"Import!E24751","v":"Select"},{"$f":"Import!E24951","v":"Select"},{"$f":"Import!E25151","v":"Select"},{"$f":"Import!E25351","v":0},{"$f":"Import!E25551","v":0}]
[null,52,{"$f":"Import!E24752","v":"Select"},{"$f":"Import!E24952","v":"Select"},{"$f":"Import!E25152","v":"Select"},{"$f":"Import!E25352","v":0},{"$f":"Import!E25552","v":0}]
[null,53,{"$f":"Import!E24753","v":"Select"},{"$f":"Import!E24953","v":"Select"},{"$f":"Import!E25153","v":"Select"},{"$f":"Import!E25353","v":0},{"$f":"Import!E25553","v":0}]
[null,54,{"$f":"Import!E24754","v":"Select"},{"$f":"Import!E24954","v":"Select"},{"$f":"Import!E25154","v":"Select"},{"$f":"Import!E25354","v":0},{"$f":"Import!E25554","v":0}]
[null,55,{"$f":"Import!E24755","v":"Select"},{"$f":"Import!E24955","v":"Select"},{"$f":"Import!E25155","v":"Select"},{"$f":"Import!E25355","v":0},{"$f":"Import!E25555","v":0}]
[null,56,{"$f":"Import!E24756","v":"Select"},{"$f":"Import!E24956","v":"Select"},{"$f":"Import!E25156","v":"Select"},{"$f":"Import!E25356","v":0},{"$f":"Import!E25556","v":0}]
[null,57,{"$f":"Import!E24757","v":"Select"},{"$f":"Import!E24957","v":"Select"},{"$f":"Import!E25157","v":"Select"},{"$f":"Import!E25357","v":0},{"$f":"Import!E25557","v":0}]
[null,58,{"$f":"Import!E24758","v":"Select"},{"$f":"Import!E24958","v":"Select"},{"$f":"Import!E25158","v":"Select"},{"$f":"Import!E25358","v":0},{"$f":"Import!E25558","v":0}]
[null,59,{"$f":"Import!E24759","v":"Select"},{"$f":"Import!E24959","v":"Select"},{"$f":"Import!E25159","v":"Select"},{"$f":"Import!E25359","v":0},{"$f":"Import!E25559","v":0}]
[null,60,{"$f":"Import!E24760","v":"Select"},{"$f":"Import!E24960","v":"Select"},{"$f":"Import!E25160","v":"Select"},{"$f":"Import!E25360","v":0},{"$f":"Import!E25560","v":0}]
[null,61,{"$f":"Import!E24761","v":"Select"},{"$f":"Import!E24961","v":"Select"},{"$f":"Import!E25161","v":"Select"},{"$f":"Import!E25361","v":0},{"$f":"Import!E25561","v":0}]
[null,62,{"$f":"Import!E24762","v":"Select"},{"$f":"Import!E24962","v":"Select"},{"$f":"Import!E25162","v":"Select"},{"$f":"Import!E25362","v":0},{"$f":"Import!E25562","v":0}]
[null,63,{"$f":"Import!E24763","v":"Select"},{"$f":"Import!E24963","v":"Select"},{"$f":"Import!E25163","v":"Select"},{"$f":"Import!E25363","v":0},{"$f":"Import!E25563","v":0}]
[null,64,{"$f":"Import!E24764","v":"Select"},{"$f":"Import!E24964","v":"Select"},{"$f":"Import!E25164","v":"Select"},{"$f":"Import!E25364","v":0},{"$f":"Import!E25564","v":0}]
[null,65,{"$f":"Import!E24765","v":"Select"},{"$f":"Import!E24965","v":"Select"},{"$f":"Import!E25165","v":"Select"},{"$f":"Import!E25365","v":0},{"$f":"Import!E25565","v":0}]
[null,66,{"$f":"Import!E24766","v":"Select"},{"$f":"Import!E24966","v":"Select"},{"$f":"Import!E25166","v":"Select"},{"$f":"Import!E25366","v":0},{"$f":"Import!E25566","v":0}]
[null,{"$f":"B692+1","v":67},{"$f":"Import!E24767","v":"Select"},{"$f":"Import!E24967","v":"Select"},{"$f":"Import!E25167","v":"Select"},{"$f":"Import!E25367","v":0},{"$f":"Import!E25567","v":0}]
[null,68,{"$f":"Import!E24768","v":"Select"},{"$f":"Import!E24968","v":"Select"},{"$f":"Import!E25168","v":"Select"},{"$f":"Import!E25368","v":0},{"$f":"Import!E25568","v":0}]
[null,69,{"$f":"Import!E24769","v":"Select"},{"$f":"Import!E24969","v":"Select"},{"$f":"Import!E25169","v":"Select"},{"$f":"Import!E25369","v":0},{"$f":"Import!E25569","v":0}]
[null,70,{"$f":"Import!E24770","v":"Select"},{"$f":"Import!E24970","v":"Select"},{"$f":"Import!E25170","v":"Select"},{"$f":"Import!E25370","v":0},{"$f":"Import!E25570","v":0}]
[null,71,{"$f":"Import!E24771","v":"Select"},{"$f":"Import!E24971","v":"Select"},{"$f":"Import!E25171","v":"Select"},{"$f":"Import!E25371","v":0},{"$f":"Import!E25571","v":0}]
[null,72,{"$f":"Import!E24772","v":"Select"},{"$f":"Import!E24972","v":"Select"},{"$f":"Import!E25172","v":"Select"},{"$f":"Import!E25372","v":0},{"$f":"Import!E25572","v":0}]
[null,73,{"$f":"Import!E24773","v":"Select"},{"$f":"Import!E24973","v":"Select"},{"$f":"Import!E25173","v":"Select"},{"$f":"Import!E25373","v":0},{"$f":"Import!E25573","v":0}]
[null,74,{"$f":"Import!E24774","v":"Select"},{"$f":"Import!E24974","v":"Select"},{"$f":"Import!E25174","v":"Select"},{"$f":"Import!E25374","v":0},{"$f":"Import!E25574","v":0}]
[null,75,{"$f":"Import!E24775","v":"Select"},{"$f":"Import!E24975","v":"Select"},{"$f":"Import!E25175","v":"Select"},{"$f":"Import!E25375","v":0},{"$f":"Import!E25575","v":0}]
[null,76,{"$f":"Import!E24776","v":"Select"},{"$f":"Import!E24976","v":"Select"},{"$f":"Import!E25176","v":"Select"},{"$f":"Import!E25376","v":0},{"$f":"Import!E25576","v":0}]
[null,77,{"$f":"Import!E24777","v":"Select"},{"$f":"Import!E24977","v":"Select"},{"$f":"Import!E25177","v":"Select"},{"$f":"Import!E25377","v":0},{"$f":"Import!E25577","v":0}]
[null,78,{"$f":"Import!E24778","v":"Select"},{"$f":"Import!E24978","v":"Select"},{"$f":"Import!E25178","v":"Select"},{"$f":"Import!E25378","v":0},{"$f":"Import!E25578","v":0}]
[null,79,{"$f":"Import!E24779","v":"Select"},{"$f":"Import!E24979","v":"Select"},{"$f":"Import!E25179","v":"Select"},{"$f":"Import!E25379","v":0},{"$f":"Import!E25579","v":0}]
[null,80,{"$f":"Import!E24780","v":"Select"},{"$f":"Import!E24980","v":"Select"},{"$f":"Import!E25180","v":"Select"},{"$f":"Import!E25380","v":0},{"$f":"Import!E25580","v":0}]
[null,81,{"$f":"Import!E24781","v":"Select"},{"$f":"Import!E24981","v":"Select"},{"$f":"Import!E25181","v":"Select"},{"$f":"Import!E25381","v":0},{"$f":"Import!E25581","v":0}]
[null,82,{"$f":"Import!E24782","v":"Select"},{"$f":"Import!E24982","v":"Select"},{"$f":"Import!E25182","v":"Select"},{"$f":"Import!E25382","v":0},{"$f":"Import!E25582","v":0}]
[null,83,{"$f":"Import!E24783","v":"Select"},{"$f":"Import!E24983","v":"Select"},{"$f":"Import!E25183","v":"Select"},{"$f":"Import!E25383","v":0},{"$f":"Import!E25583","v":0}]
[null,84,{"$f":"Import!E24784","v":"Select"},{"$f":"Import!E24984","v":"Select"},{"$f":"Import!E25184","v":"Select"},{"$f":"Import!E25384","v":0},{"$f":"Import!E25584","v":0}]
[null,85,{"$f":"Import!E24785","v":"Select"},{"$f":"Import!E24985","v":"Select"},{"$f":"Import!E25185","v":"Select"},{"$f":"Import!E25385","v":0},{"$f":"Import!E25585","v":0}]
[null,86,{"$f":"Import!E24786","v":"Select"},{"$f":"Import!E24986","v":"Select"},{"$f":"Import!E25186","v":"Select"},{"$f":"Import!E25386","v":0},{"$f":"Import!E25586","v":0}]
[null,87,{"$f":"Import!E24787","v":"Select"},{"$f":"Import!E24987","v":"Select"},{"$f":"Import!E25187","v":"Select"},{"$f":"Import!E25387","v":0},{"$f":"Import!E25587","v":0}]
[null,88,{"$f":"Import!E24788","v":"Select"},{"$f":"Import!E24988","v":"Select"},{"$f":"Import!E25188","v":"Select"},{"$f":"Import!E25388","v":0},{"$f":"Import!E25588","v":0}]
[null,89,{"$f":"Import!E24789","v":"Select"},{"$f":"Import!E24989","v":"Select"},{"$f":"Import!E25189","v":"Select"},{"$f":"Import!E25389","v":0},{"$f":"Import!E25589","v":0}]
[null,90,{"$f":"Import!E24790","v":"Select"},{"$f":"Import!E24990","v":"Select"},{"$f":"Import!E25190","v":"Select"},{"$f":"Import!E25390","v":0},{"$f":"Import!E25590","v":0}]
[null,91,{"$f":"Import!E24791","v":"Select"},{"$f":"Import!E24991","v":"Select"},{"$f":"Import!E25191","v":"Select"},{"$f":"Import!E25391","v":0},{"$f":"Import!E25591","v":0}]
[null,92,{"$f":"Import!E24792","v":"Select"},{"$f":"Import!E24992","v":"Select"},{"$f":"Import!E25192","v":"Select"},{"$f":"Import!E25392","v":0},{"$f":"Import!E25592","v":0}]
[null,93,{"$f":"Import!E24793","v":"Select"},{"$f":"Import!E24993","v":"Select"},{"$f":"Import!E25193","v":"Select"},{"$f":"Import!E25393","v":0},{"$f":"Import!E25593","v":0}]
[null,94,{"$f":"Import!E24794","v":"Select"},{"$f":"Import!E24994","v":"Select"},{"$f":"Import!E25194","v":"Select"},{"$f":"Import!E25394","v":0},{"$f":"Import!E25594","v":0}]
[null,95,{"$f":"Import!E24795","v":"Select"},{"$f":"Import!E24995","v":"Select"},{"$f":"Import!E25195","v":"Select"},{"$f":"Import!E25395","v":0},{"$f":"Import!E25595","v":0}]
[null,96,{"$f":"Import!E24796","v":"Select"},{"$f":"Import!E24996","v":"Select"},{"$f":"Import!E25196","v":"Select"},{"$f":"Import!E25396","v":0},{"$f":"Import!E25596","v":0}]
[null,97,{"$f":"Import!E24797","v":"Select"},{"$f":"Import!E24997","v":"Select"},{"$f":"Import!E25197","v":"Select"},{"$f":"Import!E25397","v":0},{"$f":"Import!E25597","v":0}]
[null,98,{"$f":"Import!E24798","v":"Select"},{"$f":"Import!E24998","v":"Select"},{"$f":"Import!E25198","v":"Select"},{"$f":"Import!E25398","v":0},{"$f":"Import!E25598","v":0}]
[null,99,{"$f":"Import!E24799","v":"Select"},{"$f":"Import!E24999","v":"Select"},{"$f":"Import!E25199","v":"Select"},{"$f":"Import!E25399","v":0},{"$f":"Import!E25599","v":0}]
[null,100,{"$f":"Import!E24800","v":"Select"},{"$f":"Import!E25000","v":"Select"},{"$f":"Import!E25200","v":"Select"},{"$f":"Import!E25400","v":0},{"$f":"Import!E25600","v":0}]
[null,101,{"$f":"Import!E24801","v":"Select"},{"$f":"Import!E25001","v":"Select"},{"$f":"Import!E25201","v":"Select"},{"$f":"Import!E25401","v":0},{"$f":"Import!E25601","v":0}]
[null,102,{"$f":"Import!E24802","v":"Select"},{"$f":"Import!E25002","v":"Select"},{"$f":"Import!E25202","v":"Select"},{"$f":"Import!E25402","v":0},{"$f":"Import!E25602","v":0}]
[null,103,{"$f":"Import!E24803","v":"Select"},{"$f":"Import!E25003","v":"Select"},{"$f":"Import!E25203","v":"Select"},{"$f":"Import!E25403","v":0},{"$f":"Import!E25603","v":0}]
[null,104,{"$f":"Import!E24804","v":"Select"},{"$f":"Import!E25004","v":"Select"},{"$f":"Import!E25204","v":"Select"},{"$f":"Import!E25404","v":0},{"$f":"Import!E25604","v":0}]
[null,105,{"$f":"Import!E24805","v":"Select"},{"$f":"Import!E25005","v":"Select"},{"$f":"Import!E25205","v":"Select"},{"$f":"Import!E25405","v":0},{"$f":"Import!E25605","v":0}]
[null,106,{"$f":"Import!E24806","v":"Select"},{"$f":"Import!E25006","v":"Select"},{"$f":"Import!E25206","v":"Select"},{"$f":"Import!E25406","v":0},{"$f":"Import!E25606","v":0}]
[null,107,{"$f":"Import!E24807","v":"Select"},{"$f":"Import!E25007","v":"Select"},{"$f":"Import!E25207","v":"Select"},{"$f":"Import!E25407","v":0},{"$f":"Import!E25607","v":0}]
[null,108,{"$f":"Import!E24808","v":"Select"},{"$f":"Import!E25008","v":"Select"},{"$f":"Import!E25208","v":"Select"},{"$f":"Import!E25408","v":0},{"$f":"Import!E25608","v":0}]
[null,109,{"$f":"Import!E24809","v":"Select"},{"$f":"Import!E25009","v":"Select"},{"$f":"Import!E25209","v":"Select"},{"$f":"Import!E25409","v":0},{"$f":"Import!E25609","v":0}]
[null,110,{"$f":"Import!E24810","v":"Select"},{"$f":"Import!E25010","v":"Select"},{"$f":"Import!E25210","v":"Select"},{"$f":"Import!E25410","v":0},{"$f":"Import!E25610","v":0}]
[null,111,{"$f":"Import!E24811","v":"Select"},{"$f":"Import!E25011","v":"Select"},{"$f":"Import!E25211","v":"Select"},{"$f":"Import!E25411","v":0},{"$f":"Import!E25611","v":0}]
[null,112,{"$f":"Import!E24812","v":"Select"},{"$f":"Import!E25012","v":"Select"},{"$f":"Import!E25212","v":"Select"},{"$f":"Import!E25412","v":0},{"$f":"Import!E25612","v":0}]
[null,113,{"$f":"Import!E24813","v":"Select"},{"$f":"Import!E25013","v":"Select"},{"$f":"Import!E25213","v":"Select"},{"$f":"Import!E25413","v":0},{"$f":"Import!E25613","v":0}]
[null,114,{"$f":"Import!E24814","v":"Select"},{"$f":"Import!E25014","v":"Select"},{"$f":"Import!E25214","v":"Select"},{"$f":"Import!E25414","v":0},{"$f":"Import!E25614","v":0}]
[null,115,{"$f":"Import!E24815","v":"Select"},{"$f":"Import!E25015","v":"Select"},{"$f":"Import!E25215","v":"Select"},{"$f":"Import!E25415","v":0},{"$f":"Import!E25615","v":0}]
[null,116,{"$f":"Import!E24816","v":"Select"},{"$f":"Import!E25016","v":"Select"},{"$f":"Import!E25216","v":"Select"},{"$f":"Import!E25416","v":0},{"$f":"Import!E25616","v":0}]
[null,117,{"$f":"Import!E24817","v":"Select"},{"$f":"Import!E25017","v":"Select"},{"$f":"Import!E25217","v":"Select"},{"$f":"Import!E25417","v":0},{"$f":"Import!E25617","v":0}]
[null,118,{"$f":"Import!E24818","v":"Select"},{"$f":"Import!E25018","v":"Select"},{"$f":"Import!E25218","v":"Select"},{"$f":"Import!E25418","v":0},{"$f":"Import!E25618","v":0}]
[null,119,{"$f":"Import!E24819","v":"Select"},{"$f":"Import!E25019","v":"Select"},{"$f":"Import!E25219","v":"Select"},{"$f":"Import!E25419","v":0},{"$f":"Import!E25619","v":0}]
[null,120,{"$f":"Import!E24820","v":"Select"},{"$f":"Import!E25020","v":"Select"},{"$f":"Import!E25220","v":"Select"},{"$f":"Import!E25420","v":0},{"$f":"Import!E25620","v":0}]
[null,121,{"$f":"Import!E24821","v":"Select"},{"$f":"Import!E25021","v":"Select"},{"$f":"Import!E25221","v":"Select"},{"$f":"Import!E25421","v":0},{"$f":"Import!E25621","v":0}]
[null,122,{"$f":"Import!E24822","v":"Select"},{"$f":"Import!E25022","v":"Select"},{"$f":"Import!E25222","v":"Select"},{"$f":"Import!E25422","v":0},{"$f":"Import!E25622","v":0}]
[null,123,{"$f":"Import!E24823","v":"Select"},{"$f":"Import!E25023","v":"Select"},{"$f":"Import!E25223","v":"Select"},{"$f":"Import!E25423","v":0},{"$f":"Import!E25623","v":0}]
[null,124,{"$f":"Import!E24824","v":"Select"},{"$f":"Import!E25024","v":"Select"},{"$f":"Import!E25224","v":"Select"},{"$f":"Import!E25424","v":0},{"$f":"Import!E25624","v":0}]
[null,125,{"$f":"Import!E24825","v":"Select"},{"$f":"Import!E25025","v":"Select"},{"$f":"Import!E25225","v":"Select"},{"$f":"Import!E25425","v":0},{"$f":"Import!E25625","v":0}]
[null,126,{"$f":"Import!E24826","v":"Select"},{"$f":"Import!E25026","v":"Select"},{"$f":"Import!E25226","v":"Select"},{"$f":"Import!E25426","v":0},{"$f":"Import!E25626","v":0}]
[null,127,{"$f":"Import!E24827","v":"Select"},{"$f":"Import!E25027","v":"Select"},{"$f":"Import!E25227","v":"Select"},{"$f":"Import!E25427","v":0},{"$f":"Import!E25627","v":0}]
[null,128,{"$f":"Import!E24828","v":"Select"},{"$f":"Import!E25028","v":"Select"},{"$f":"Import!E25228","v":"Select"},{"$f":"Import!E25428","v":0},{"$f":"Import!E25628","v":0}]
[null,129,{"$f":"Import!E24829","v":"Select"},{"$f":"Import!E25029","v":"Select"},{"$f":"Import!E25229","v":"Select"},{"$f":"Import!E25429","v":0},{"$f":"Import!E25629","v":0}]
[null,130,{"$f":"Import!E24830","v":"Select"},{"$f":"Import!E25030","v":"Select"},{"$f":"Import!E25230","v":"Select"},{"$f":"Import!E25430","v":0},{"$f":"Import!E25630","v":0}]
[null,{"$f":"B756+1","v":131},{"$f":"Import!E24831","v":"Select"},{"$f":"Import!E25031","v":"Select"},{"$f":"Import!E25231","v":"Select"},{"$f":"Import!E25431","v":0},{"$f":"Import!E25631","v":0}]
[null,132,{"$f":"Import!E24832","v":"Select"},{"$f":"Import!E25032","v":"Select"},{"$f":"Import!E25232","v":"Select"},{"$f":"Import!E25432","v":0},{"$f":"Import!E25632","v":0}]
[null,133,{"$f":"Import!E24833","v":"Select"},{"$f":"Import!E25033","v":"Select"},{"$f":"Import!E25233","v":"Select"},{"$f":"Import!E25433","v":0},{"$f":"Import!E25633","v":0}]
[null,134,{"$f":"Import!E24834","v":"Select"},{"$f":"Import!E25034","v":"Select"},{"$f":"Import!E25234","v":"Select"},{"$f":"Import!E25434","v":0},{"$f":"Import!E25634","v":0}]
[null,135,{"$f":"Import!E24835","v":"Select"},{"$f":"Import!E25035","v":"Select"},{"$f":"Import!E25235","v":"Select"},{"$f":"Import!E25435","v":0},{"$f":"Import!E25635","v":0}]
[null,136,{"$f":"Import!E24836","v":"Select"},{"$f":"Import!E25036","v":"Select"},{"$f":"Import!E25236","v":"Select"},{"$f":"Import!E25436","v":0},{"$f":"Import!E25636","v":0}]
[null,137,{"$f":"Import!E24837","v":"Select"},{"$f":"Import!E25037","v":"Select"},{"$f":"Import!E25237","v":"Select"},{"$f":"Import!E25437","v":0},{"$f":"Import!E25637","v":0}]
[null,138,{"$f":"Import!E24838","v":"Select"},{"$f":"Import!E25038","v":"Select"},{"$f":"Import!E25238","v":"Select"},{"$f":"Import!E25438","v":0},{"$f":"Import!E25638","v":0}]
[null,139,{"$f":"Import!E24839","v":"Select"},{"$f":"Import!E25039","v":"Select"},{"$f":"Import!E25239","v":"Select"},{"$f":"Import!E25439","v":0},{"$f":"Import!E25639","v":0}]
[null,140,{"$f":"Import!E24840","v":"Select"},{"$f":"Import!E25040","v":"Select"},{"$f":"Import!E25240","v":"Select"},{"$f":"Import!E25440","v":0},{"$f":"Import!E25640","v":0}]
[null,141,{"$f":"Import!E24841","v":"Select"},{"$f":"Import!E25041","v":"Select"},{"$f":"Import!E25241","v":"Select"},{"$f":"Import!E25441","v":0},{"$f":"Import!E25641","v":0}]
[null,142,{"$f":"Import!E24842","v":"Select"},{"$f":"Import!E25042","v":"Select"},{"$f":"Import!E25242","v":"Select"},{"$f":"Import!E25442","v":0},{"$f":"Import!E25642","v":0}]
[null,143,{"$f":"Import!E24843","v":"Select"},{"$f":"Import!E25043","v":"Select"},{"$f":"Import!E25243","v":"Select"},{"$f":"Import!E25443","v":0},{"$f":"Import!E25643","v":0}]
[null,144,{"$f":"Import!E24844","v":"Select"},{"$f":"Import!E25044","v":"Select"},{"$f":"Import!E25244","v":"Select"},{"$f":"Import!E25444","v":0},{"$f":"Import!E25644","v":0}]
[null,145,{"$f":"Import!E24845","v":"Select"},{"$f":"Import!E25045","v":"Select"},{"$f":"Import!E25245","v":"Select"},{"$f":"Import!E25445","v":0},{"$f":"Import!E25645","v":0}]
[null,146,{"$f":"Import!E24846","v":"Select"},{"$f":"Import!E25046","v":"Select"},{"$f":"Import!E25246","v":"Select"},{"$f":"Import!E25446","v":0},{"$f":"Import!E25646","v":0}]
[null,147,{"$f":"Import!E24847","v":"Select"},{"$f":"Import!E25047","v":"Select"},{"$f":"Import!E25247","v":"Select"},{"$f":"Import!E25447","v":0},{"$f":"Import!E25647","v":0}]
[null,148,{"$f":"Import!E24848","v":"Select"},{"$f":"Import!E25048","v":"Select"},{"$f":"Import!E25248","v":"Select"},{"$f":"Import!E25448","v":0},{"$f":"Import!E25648","v":0}]
[null,149,{"$f":"Import!E24849","v":"Select"},{"$f":"Import!E25049","v":"Select"},{"$f":"Import!E25249","v":"Select"},{"$f":"Import!E25449","v":0},{"$f":"Import!E25649","v":0}]
[null,150,{"$f":"Import!E24850","v":"Select"},{"$f":"Import!E25050","v":"Select"},{"$f":"Import!E25250","v":"Select"},{"$f":"Import!E25450","v":0},{"$f":"Import!E25650","v":0}]
[null,151,{"$f":"Import!E24851","v":"Select"},{"$f":"Import!E25051","v":"Select"},{"$f":"Import!E25251","v":"Select"},{"$f":"Import!E25451","v":0},{"$f":"Import!E25651","v":0}]
[null,152,{"$f":"Import!E24852","v":"Select"},{"$f":"Import!E25052","v":"Select"},{"$f":"Import!E25252","v":"Select"},{"$f":"Import!E25452","v":0},{"$f":"Import!E25652","v":0}]
[null,153,{"$f":"Import!E24853","v":"Select"},{"$f":"Import!E25053","v":"Select"},{"$f":"Import!E25253","v":"Select"},{"$f":"Import!E25453","v":0},{"$f":"Import!E25653","v":0}]
[null,154,{"$f":"Import!E24854","v":"Select"},{"$f":"Import!E25054","v":"Select"},{"$f":"Import!E25254","v":"Select"},{"$f":"Import!E25454","v":0},{"$f":"Import!E25654","v":0}]
[null,155,{"$f":"Import!E24855","v":"Select"},{"$f":"Import!E25055","v":"Select"},{"$f":"Import!E25255","v":"Select"},{"$f":"Import!E25455","v":0},{"$f":"Import!E25655","v":0}]
[null,156,{"$f":"Import!E24856","v":"Select"},{"$f":"Import!E25056","v":"Select"},{"$f":"Import!E25256","v":"Select"},{"$f":"Import!E25456","v":0},{"$f":"Import!E25656","v":0}]
[null,157,{"$f":"Import!E24857","v":"Select"},{"$f":"Import!E25057","v":"Select"},{"$f":"Import!E25257","v":"Select"},{"$f":"Import!E25457","v":0},{"$f":"Import!E25657","v":0}]
[null,158,{"$f":"Import!E24858","v":"Select"},{"$f":"Import!E25058","v":"Select"},{"$f":"Import!E25258","v":"Select"},{"$f":"Import!E25458","v":0},{"$f":"Import!E25658","v":0}]
[null,159,{"$f":"Import!E24859","v":"Select"},{"$f":"Import!E25059","v":"Select"},{"$f":"Import!E25259","v":"Select"},{"$f":"Import!E25459","v":0},{"$f":"Import!E25659","v":0}]
[null,160,{"$f":"Import!E24860","v":"Select"},{"$f":"Import!E25060","v":"Select"},{"$f":"Import!E25260","v":"Select"},{"$f":"Import!E25460","v":0},{"$f":"Import!E25660","v":0}]
[null,161,{"$f":"Import!E24861","v":"Select"},{"$f":"Import!E25061","v":"Select"},{"$f":"Import!E25261","v":"Select"},{"$f":"Import!E25461","v":0},{"$f":"Import!E25661","v":0}]
[null,162,{"$f":"Import!E24862","v":"Select"},{"$f":"Import!E25062","v":"Select"},{"$f":"Import!E25262","v":"Select"},{"$f":"Import!E25462","v":0},{"$f":"Import!E25662","v":0}]
[null,163,{"$f":"Import!E24863","v":"Select"},{"$f":"Import!E25063","v":"Select"},{"$f":"Import!E25263","v":"Select"},{"$f":"Import!E25463","v":0},{"$f":"Import!E25663","v":0}]
[null,164,{"$f":"Import!E24864","v":"Select"},{"$f":"Import!E25064","v":"Select"},{"$f":"Import!E25264","v":"Select"},{"$f":"Import!E25464","v":0},{"$f":"Import!E25664","v":0}]
[null,165,{"$f":"Import!E24865","v":"Select"},{"$f":"Import!E25065","v":"Select"},{"$f":"Import!E25265","v":"Select"},{"$f":"Import!E25465","v":0},{"$f":"Import!E25665","v":0}]
[null,166,{"$f":"Import!E24866","v":"Select"},{"$f":"Import!E25066","v":"Select"},{"$f":"Import!E25266","v":"Select"},{"$f":"Import!E25466","v":0},{"$f":"Import!E25666","v":0}]
[null,167,{"$f":"Import!E24867","v":"Select"},{"$f":"Import!E25067","v":"Select"},{"$f":"Import!E25267","v":"Select"},{"$f":"Import!E25467","v":0},{"$f":"Import!E25667","v":0}]
[null,168,{"$f":"Import!E24868","v":"Select"},{"$f":"Import!E25068","v":"Select"},{"$f":"Import!E25268","v":"Select"},{"$f":"Import!E25468","v":0},{"$f":"Import!E25668","v":0}]
[null,169,{"$f":"Import!E24869","v":"Select"},{"$f":"Import!E25069","v":"Select"},{"$f":"Import!E25269","v":"Select"},{"$f":"Import!E25469","v":0},{"$f":"Import!E25669","v":0}]
[null,170,{"$f":"Import!E24870","v":"Select"},{"$f":"Import!E25070","v":"Select"},{"$f":"Import!E25270","v":"Select"},{"$f":"Import!E25470","v":0},{"$f":"Import!E25670","v":0}]
[null,171,{"$f":"Import!E24871","v":"Select"},{"$f":"Import!E25071","v":"Select"},{"$f":"Import!E25271","v":"Select"},{"$f":"Import!E25471","v":0},{"$f":"Import!E25671","v":0}]
[null,172,{"$f":"Import!E24872","v":"Select"},{"$f":"Import!E25072","v":"Select"},{"$f":"Import!E25272","v":"Select"},{"$f":"Import!E25472","v":0},{"$f":"Import!E25672","v":0}]
[null,173,{"$f":"Import!E24873","v":"Select"},{"$f":"Import!E25073","v":"Select"},{"$f":"Import!E25273","v":"Select"},{"$f":"Import!E25473","v":0},{"$f":"Import!E25673","v":0}]
[null,174,{"$f":"Import!E24874","v":"Select"},{"$f":"Import!E25074","v":"Select"},{"$f":"Import!E25274","v":"Select"},{"$f":"Import!E25474","v":0},{"$f":"Import!E25674","v":0}]
[null,175,{"$f":"Import!E24875","v":"Select"},{"$f":"Import!E25075","v":"Select"},{"$f":"Import!E25275","v":"Select"},{"$f":"Import!E25475","v":0},{"$f":"Import!E25675","v":0}]
[null,176,{"$f":"Import!E24876","v":"Select"},{"$f":"Import!E25076","v":"Select"},{"$f":"Import!E25276","v":"Select"},{"$f":"Import!E25476","v":0},{"$f":"Import!E25676","v":0}]
[null,177,{"$f":"Import!E24877","v":"Select"},{"$f":"Import!E25077","v":"Select"},{"$f":"Import!E25277","v":"Select"},{"$f":"Import!E25477","v":0},{"$f":"Import!E25677","v":0}]
[null,178,{"$f":"Import!E24878","v":"Select"},{"$f":"Import!E25078","v":"Select"},{"$f":"Import!E25278","v":"Select"},{"$f":"Import!E25478","v":0},{"$f":"Import!E25678","v":0}]
[null,179,{"$f":"Import!E24879","v":"Select"},{"$f":"Import!E25079","v":"Select"},{"$f":"Import!E25279","v":"Select"},{"$f":"Import!E25479","v":0},{"$f":"Import!E25679","v":0}]
[null,180,{"$f":"Import!E24880","v":"Select"},{"$f":"Import!E25080","v":"Select"},{"$f":"Import!E25280","v":"Select"},{"$f":"Import!E25480","v":0},{"$f":"Import!E25680","v":0}]
[null,181,{"$f":"Import!E24881","v":"Select"},{"$f":"Import!E25081","v":"Select"},{"$f":"Import!E25281","v":"Select"},{"$f":"Import!E25481","v":0},{"$f":"Import!E25681","v":0}]
[null,182,{"$f":"Import!E24882","v":"Select"},{"$f":"Import!E25082","v":"Select"},{"$f":"Import!E25282","v":"Select"},{"$f":"Import!E25482","v":0},{"$f":"Import!E25682","v":0}]
[null,183,{"$f":"Import!E24883","v":"Select"},{"$f":"Import!E25083","v":"Select"},{"$f":"Import!E25283","v":"Select"},{"$f":"Import!E25483","v":0},{"$f":"Import!E25683","v":0}]
[null,184,{"$f":"Import!E24884","v":"Select"},{"$f":"Import!E25084","v":"Select"},{"$f":"Import!E25284","v":"Select"},{"$f":"Import!E25484","v":0},{"$f":"Import!E25684","v":0}]
[null,185,{"$f":"Import!E24885","v":"Select"},{"$f":"Import!E25085","v":"Select"},{"$f":"Import!E25285","v":"Select"},{"$f":"Import!E25485","v":0},{"$f":"Import!E25685","v":0}]
[null,186,{"$f":"Import!E24886","v":"Select"},{"$f":"Import!E25086","v":"Select"},{"$f":"Import!E25286","v":"Select"},{"$f":"Import!E25486","v":0},{"$f":"Import!E25686","v":0}]
[null,187,{"$f":"Import!E24887","v":"Select"},{"$f":"Import!E25087","v":"Select"},{"$f":"Import!E25287","v":"Select"},{"$f":"Import!E25487","v":0},{"$f":"Import!E25687","v":0}]
[null,188,{"$f":"Import!E24888","v":"Select"},{"$f":"Import!E25088","v":"Select"},{"$f":"Import!E25288","v":"Select"},{"$f":"Import!E25488","v":0},{"$f":"Import!E25688","v":0}]
[null,189,{"$f":"Import!E24889","v":"Select"},{"$f":"Import!E25089","v":"Select"},{"$f":"Import!E25289","v":"Select"},{"$f":"Import!E25489","v":0},{"$f":"Import!E25689","v":0}]
[null,190,{"$f":"Import!E24890","v":"Select"},{"$f":"Import!E25090","v":"Select"},{"$f":"Import!E25290","v":"Select"},{"$f":"Import!E25490","v":0},{"$f":"Import!E25690","v":0}]
[null,191,{"$f":"Import!E24891","v":"Select"},{"$f":"Import!E25091","v":"Select"},{"$f":"Import!E25291","v":"Select"},{"$f":"Import!E25491","v":0},{"$f":"Import!E25691","v":0}]
[null,192,{"$f":"Import!E24892","v":"Select"},{"$f":"Import!E25092","v":"Select"},{"$f":"Import!E25292","v":"Select"},{"$f":"Import!E25492","v":0},{"$f":"Import!E25692","v":0}]
[null,193,{"$f":"Import!E24893","v":"Select"},{"$f":"Import!E25093","v":"Select"},{"$f":"Import!E25293","v":"Select"},{"$f":"Import!E25493","v":0},{"$f":"Import!E25693","v":0}]
[null,194,{"$f":"Import!E24894","v":"Select"},{"$f":"Import!E25094","v":"Select"},{"$f":"Import!E25294","v":"Select"},{"$f":"Import!E25494","v":0},{"$f":"Import!E25694","v":0}]
[null,{"$f":"B820+1","v":195},{"$f":"Import!E24895","v":"Select"},{"$f":"Import!E25095","v":"Select"},{"$f":"Import!E25295","v":"Select"},{"$f":"Import!E25495","v":0},{"$f":"Import!E25695","v":0}]
[null,196,{"$f":"Import!E24896","v":"Select"},{"$f":"Import!E25096","v":"Select"},{"$f":"Import!E25296","v":"Select"},{"$f":"Import!E25496","v":0},{"$f":"Import!E25696","v":0}]
[null,197,{"$f":"Import!E24897","v":"Select"},{"$f":"Import!E25097","v":"Select"},{"$f":"Import!E25297","v":"Select"},{"$f":"Import!E25497","v":0},{"$f":"Import!E25697","v":0}]
[null,198,{"$f":"Import!E24898","v":"Select"},{"$f":"Import!E25098","v":"Select"},{"$f":"Import!E25298","v":"Select"},{"$f":"Import!E25498","v":0},{"$f":"Import!E25698","v":0}]
[null,199,{"$f":"Import!E24899","v":"Select"},{"$f":"Import!E25099","v":"Select"},{"$f":"Import!E25299","v":"Select"},{"$f":"Import!E25499","v":0},{"$f":"Import!E25699","v":0}]
[null,200,{"$f":"Import!E24900","v":"Select"},{"$f":"Import!E25100","v":"Select"},{"$f":"Import!E25300","v":"Select"},{"$f":"Import!E25500","v":0},{"$f":"Import!E25700","v":0}]
[]
[null,null,null,null,null,{"$f":"SUM(F627:F826)","v":0}]
[]
[null,"(C) ASSET-BACKED AND STRUCTURED SECURITIES"]
[]
[null,null,"Enter # of Asset Types",{"$f":"Import!E25701","v":0}]
[null,null,null,null,{"$f":"YEAR($C$3)","v":2023},2023,"Weighted"]
[null,"Asset Type","Currency","BSCR Rating","Nominal Amount","Fair Value","Average YTM","Effective Duration","Comments"]
[1,{"$f":"Import!E25702","v":"Select"},{"$f":"Import!E25852","v":"Select"},{"$f":"Import!E26002","v":"Select"},{"$f":"Import!E26152","v":0},{"$f":"Import!E26302","v":0},{"$f":"Import!E26452","v":0},{"$f":"Import!E26602","v":0},{"$f":"Import!E26752","v":0}]
[{"$f":"A835+1","v":2},{"$f":"Import!E25703","v":"Select"},{"$f":"Import!E25853","v":"Select"},{"$f":"Import!E26003","v":"Select"},{"$f":"Import!E26153","v":0},{"$f":"Import!E26303","v":0},{"$f":"Import!E26453","v":0},{"$f":"Import!E26603","v":0},{"$f":"Import!E26753","v":0}]
[{"$f":"A836+1","v":3},{"$f":"Import!E25704","v":"Select"},{"$f":"Import!E25854","v":"Select"},{"$f":"Import!E26004","v":"Select"},{"$f":"Import!E26154","v":0},{"$f":"Import!E26304","v":0},{"$f":"Import!E26454","v":0},{"$f":"Import!E26604","v":0},{"$f":"Import!E26754","v":0}]
[4,{"$f":"Import!E25705","v":"Select"},{"$f":"Import!E25855","v":"Select"},{"$f":"Import!E26005","v":"Select"},{"$f":"Import!E26155","v":0},{"$f":"Import!E26305","v":0},{"$f":"Import!E26455","v":0},{"$f":"Import!E26605","v":0},{"$f":"Import!E26755","v":0}]
[5,{"$f":"Import!E25706","v":"Select"},{"$f":"Import!E25856","v":"Select"},{"$f":"Import!E26006","v":"Select"},{"$f":"Import!E26156","v":0},{"$f":"Import!E26306","v":0},{"$f":"Import!E26456","v":0},{"$f":"Import!E26606","v":0},{"$f":"Import!E26756","v":0}]
[6,{"$f":"Import!E25707","v":"Select"},{"$f":"Import!E25857","v":"Select"},{"$f":"Import!E26007","v":"Select"},{"$f":"Import!E26157","v":0},{"$f":"Import!E26307","v":0},{"$f":"Import!E26457","v":0},{"$f":"Import!E26607","v":0},{"$f":"Import!E26757","v":0}]
[7,{"$f":"Import!E25708","v":"Select"},{"$f":"Import!E25858","v":"Select"},{"$f":"Import!E26008","v":"Select"},{"$f":"Import!E26158","v":0},{"$f":"Import!E26308","v":0},{"$f":"Import!E26458","v":0},{"$f":"Import!E26608","v":0},{"$f":"Import!E26758","v":0}]
[8,{"$f":"Import!E25709","v":"Select"},{"$f":"Import!E25859","v":"Select"},{"$f":"Import!E26009","v":"Select"},{"$f":"Import!E26159","v":0},{"$f":"Import!E26309","v":0},{"$f":"Import!E26459","v":0},{"$f":"Import!E26609","v":0},{"$f":"Import!E26759","v":0}]
[9,{"$f":"Import!E25710","v":"Select"},{"$f":"Import!E25860","v":"Select"},{"$f":"Import!E26010","v":"Select"},{"$f":"Import!E26160","v":0},{"$f":"Import!E26310","v":0},{"$f":"Import!E26460","v":0},{"$f":"Import!E26610","v":0},{"$f":"Import!E26760","v":0}]
[10,{"$f":"Import!E25711","v":"Select"},{"$f":"Import!E25861","v":"Select"},{"$f":"Import!E26011","v":"Select"},{"$f":"Import!E26161","v":0},{"$f":"Import!E26311","v":0},{"$f":"Import!E26461","v":0},{"$f":"Import!E26611","v":0},{"$f":"Import!E26761","v":0}]
[11,{"$f":"Import!E25712","v":"Select"},{"$f":"Import!E25862","v":"Select"},{"$f":"Import!E26012","v":"Select"},{"$f":"Import!E26162","v":0},{"$f":"Import!E26312","v":0},{"$f":"Import!E26462","v":0},{"$f":"Import!E26612","v":0},{"$f":"Import!E26762","v":0}]
[12,{"$f":"Import!E25713","v":"Select"},{"$f":"Import!E25863","v":"Select"},{"$f":"Import!E26013","v":"Select"},{"$f":"Import!E26163","v":0},{"$f":"Import!E26313","v":0},{"$f":"Import!E26463","v":0},{"$f":"Import!E26613","v":0},{"$f":"Import!E26763","v":0}]
[13,{"$f":"Import!E25714","v":"Select"},{"$f":"Import!E25864","v":"Select"},{"$f":"Import!E26014","v":"Select"},{"$f":"Import!E26164","v":0},{"$f":"Import!E26314","v":0},{"$f":"Import!E26464","v":0},{"$f":"Import!E26614","v":0},{"$f":"Import!E26764","v":0}]
[14,{"$f":"Import!E25715","v":"Select"},{"$f":"Import!E25865","v":"Select"},{"$f":"Import!E26015","v":"Select"},{"$f":"Import!E26165","v":0},{"$f":"Import!E26315","v":0},{"$f":"Import!E26465","v":0},{"$f":"Import!E26615","v":0},{"$f":"Import!E26765","v":0}]
[15,{"$f":"Import!E25716","v":"Select"},{"$f":"Import!E25866","v":"Select"},{"$f":"Import!E26016","v":"Select"},{"$f":"Import!E26166","v":0},{"$f":"Import!E26316","v":0},{"$f":"Import!E26466","v":0},{"$f":"Import!E26616","v":0},{"$f":"Import!E26766","v":0}]
[16,{"$f":"Import!E25717","v":"Select"},{"$f":"Import!E25867","v":"Select"},{"$f":"Import!E26017","v":"Select"},{"$f":"Import!E26167","v":0},{"$f":"Import!E26317","v":0},{"$f":"Import!E26467","v":0},{"$f":"Import!E26617","v":0},{"$f":"Import!E26767","v":0}]
[17,{"$f":"Import!E25718","v":"Select"},{"$f":"Import!E25868","v":"Select"},{"$f":"Import!E26018","v":"Select"},{"$f":"Import!E26168","v":0},{"$f":"Import!E26318","v":0},{"$f":"Import!E26468","v":0},{"$f":"Import!E26618","v":0},{"$f":"Import!E26768","v":0}]
[18,{"$f":"Import!E25719","v":"Select"},{"$f":"Import!E25869","v":"Select"},{"$f":"Import!E26019","v":"Select"},{"$f":"Import!E26169","v":0},{"$f":"Import!E26319","v":0},{"$f":"Import!E26469","v":0},{"$f":"Import!E26619","v":0},{"$f":"Import!E26769","v":0}]
[19,{"$f":"Import!E25720","v":"Select"},{"$f":"Import!E25870","v":"Select"},{"$f":"Import!E26020","v":"Select"},{"$f":"Import!E26170","v":0},{"$f":"Import!E26320","v":0},{"$f":"Import!E26470","v":0},{"$f":"Import!E26620","v":0},{"$f":"Import!E26770","v":0}]
[20,{"$f":"Import!E25721","v":"Select"},{"$f":"Import!E25871","v":"Select"},{"$f":"Import!E26021","v":"Select"},{"$f":"Import!E26171","v":0},{"$f":"Import!E26321","v":0},{"$f":"Import!E26471","v":0},{"$f":"Import!E26621","v":0},{"$f":"Import!E26771","v":0}]
[21,{"$f":"Import!E25722","v":"Select"},{"$f":"Import!E25872","v":"Select"},{"$f":"Import!E26022","v":"Select"},{"$f":"Import!E26172","v":0},{"$f":"Import!E26322","v":0},{"$f":"Import!E26472","v":0},{"$f":"Import!E26622","v":0},{"$f":"Import!E26772","v":0}]
[22,{"$f":"Import!E25723","v":"Select"},{"$f":"Import!E25873","v":"Select"},{"$f":"Import!E26023","v":"Select"},{"$f":"Import!E26173","v":0},{"$f":"Import!E26323","v":0},{"$f":"Import!E26473","v":0},{"$f":"Import!E26623","v":0},{"$f":"Import!E26773","v":0}]
[23,{"$f":"Import!E25724","v":"Select"},{"$f":"Import!E25874","v":"Select"},{"$f":"Import!E26024","v":"Select"},{"$f":"Import!E26174","v":0},{"$f":"Import!E26324","v":0},{"$f":"Import!E26474","v":0},{"$f":"Import!E26624","v":0},{"$f":"Import!E26774","v":0}]
[24,{"$f":"Import!E25725","v":"Select"},{"$f":"Import!E25875","v":"Select"},{"$f":"Import!E26025","v":"Select"},{"$f":"Import!E26175","v":0},{"$f":"Import!E26325","v":0},{"$f":"Import!E26475","v":0},{"$f":"Import!E26625","v":0},{"$f":"Import!E26775","v":0}]
[25,{"$f":"Import!E25726","v":"Select"},{"$f":"Import!E25876","v":"Select"},{"$f":"Import!E26026","v":"Select"},{"$f":"Import!E26176","v":0},{"$f":"Import!E26326","v":0},{"$f":"Import!E26476","v":0},{"$f":"Import!E26626","v":0},{"$f":"Import!E26776","v":0}]
[26,{"$f":"Import!E25727","v":"Select"},{"$f":"Import!E25877","v":"Select"},{"$f":"Import!E26027","v":"Select"},{"$f":"Import!E26177","v":0},{"$f":"Import!E26327","v":0},{"$f":"Import!E26477","v":0},{"$f":"Import!E26627","v":0},{"$f":"Import!E26777","v":0}]
[27,{"$f":"Import!E25728","v":"Select"},{"$f":"Import!E25878","v":"Select"},{"$f":"Import!E26028","v":"Select"},{"$f":"Import!E26178","v":0},{"$f":"Import!E26328","v":0},{"$f":"Import!E26478","v":0},{"$f":"Import!E26628","v":0},{"$f":"Import!E26778","v":0}]
[28,{"$f":"Import!E25729","v":"Select"},{"$f":"Import!E25879","v":"Select"},{"$f":"Import!E26029","v":"Select"},{"$f":"Import!E26179","v":0},{"$f":"Import!E26329","v":0},{"$f":"Import!E26479","v":0},{"$f":"Import!E26629","v":0},{"$f":"Import!E26779","v":0}]
[29,{"$f":"Import!E25730","v":"Select"},{"$f":"Import!E25880","v":"Select"},{"$f":"Import!E26030","v":"Select"},{"$f":"Import!E26180","v":0},{"$f":"Import!E26330","v":0},{"$f":"Import!E26480","v":0},{"$f":"Import!E26630","v":0},{"$f":"Import!E26780","v":0}]
[30,{"$f":"Import!E25731","v":"Select"},{"$f":"Import!E25881","v":"Select"},{"$f":"Import!E26031","v":"Select"},{"$f":"Import!E26181","v":0},{"$f":"Import!E26331","v":0},{"$f":"Import!E26481","v":0},{"$f":"Import!E26631","v":0},{"$f":"Import!E26781","v":0}]
[31,{"$f":"Import!E25732","v":"Select"},{"$f":"Import!E25882","v":"Select"},{"$f":"Import!E26032","v":"Select"},{"$f":"Import!E26182","v":0},{"$f":"Import!E26332","v":0},{"$f":"Import!E26482","v":0},{"$f":"Import!E26632","v":0},{"$f":"Import!E26782","v":0}]
[32,{"$f":"Import!E25733","v":"Select"},{"$f":"Import!E25883","v":"Select"},{"$f":"Import!E26033","v":"Select"},{"$f":"Import!E26183","v":0},{"$f":"Import!E26333","v":0},{"$f":"Import!E26483","v":0},{"$f":"Import!E26633","v":0},{"$f":"Import!E26783","v":0}]
[33,{"$f":"Import!E25734","v":"Select"},{"$f":"Import!E25884","v":"Select"},{"$f":"Import!E26034","v":"Select"},{"$f":"Import!E26184","v":0},{"$f":"Import!E26334","v":0},{"$f":"Import!E26484","v":0},{"$f":"Import!E26634","v":0},{"$f":"Import!E26784","v":0}]
[34,{"$f":"Import!E25735","v":"Select"},{"$f":"Import!E25885","v":"Select"},{"$f":"Import!E26035","v":"Select"},{"$f":"Import!E26185","v":0},{"$f":"Import!E26335","v":0},{"$f":"Import!E26485","v":0},{"$f":"Import!E26635","v":0},{"$f":"Import!E26785","v":0}]
[35,{"$f":"Import!E25736","v":"Select"},{"$f":"Import!E25886","v":"Select"},{"$f":"Import!E26036","v":"Select"},{"$f":"Import!E26186","v":0},{"$f":"Import!E26336","v":0},{"$f":"Import!E26486","v":0},{"$f":"Import!E26636","v":0},{"$f":"Import!E26786","v":0}]
[36,{"$f":"Import!E25737","v":"Select"},{"$f":"Import!E25887","v":"Select"},{"$f":"Import!E26037","v":"Select"},{"$f":"Import!E26187","v":0},{"$f":"Import!E26337","v":0},{"$f":"Import!E26487","v":0},{"$f":"Import!E26637","v":0},{"$f":"Import!E26787","v":0}]
[37,{"$f":"Import!E25738","v":"Select"},{"$f":"Import!E25888","v":"Select"},{"$f":"Import!E26038","v":"Select"},{"$f":"Import!E26188","v":0},{"$f":"Import!E26338","v":0},{"$f":"Import!E26488","v":0},{"$f":"Import!E26638","v":0},{"$f":"Import!E26788","v":0}]
[38,{"$f":"Import!E25739","v":"Select"},{"$f":"Import!E25889","v":"Select"},{"$f":"Import!E26039","v":"Select"},{"$f":"Import!E26189","v":0},{"$f":"Import!E26339","v":0},{"$f":"Import!E26489","v":0},{"$f":"Import!E26639","v":0},{"$f":"Import!E26789","v":0}]
[39,{"$f":"Import!E25740","v":"Select"},{"$f":"Import!E25890","v":"Select"},{"$f":"Import!E26040","v":"Select"},{"$f":"Import!E26190","v":0},{"$f":"Import!E26340","v":0},{"$f":"Import!E26490","v":0},{"$f":"Import!E26640","v":0},{"$f":"Import!E26790","v":0}]
[40,{"$f":"Import!E25741","v":"Select"},{"$f":"Import!E25891","v":"Select"},{"$f":"Import!E26041","v":"Select"},{"$f":"Import!E26191","v":0},{"$f":"Import!E26341","v":0},{"$f":"Import!E26491","v":0},{"$f":"Import!E26641","v":0},{"$f":"Import!E26791","v":0}]
[41,{"$f":"Import!E25742","v":"Select"},{"$f":"Import!E25892","v":"Select"},{"$f":"Import!E26042","v":"Select"},{"$f":"Import!E26192","v":0},{"$f":"Import!E26342","v":0},{"$f":"Import!E26492","v":0},{"$f":"Import!E26642","v":0},{"$f":"Import!E26792","v":0}]
[42,{"$f":"Import!E25743","v":"Select"},{"$f":"Import!E25893","v":"Select"},{"$f":"Import!E26043","v":"Select"},{"$f":"Import!E26193","v":0},{"$f":"Import!E26343","v":0},{"$f":"Import!E26493","v":0},{"$f":"Import!E26643","v":0},{"$f":"Import!E26793","v":0}]
[43,{"$f":"Import!E25744","v":"Select"},{"$f":"Import!E25894","v":"Select"},{"$f":"Import!E26044","v":"Select"},{"$f":"Import!E26194","v":0},{"$f":"Import!E26344","v":0},{"$f":"Import!E26494","v":0},{"$f":"Import!E26644","v":0},{"$f":"Import!E26794","v":0}]
[44,{"$f":"Import!E25745","v":"Select"},{"$f":"Import!E25895","v":"Select"},{"$f":"Import!E26045","v":"Select"},{"$f":"Import!E26195","v":0},{"$f":"Import!E26345","v":0},{"$f":"Import!E26495","v":0},{"$f":"Import!E26645","v":0},{"$f":"Import!E26795","v":0}]
[45,{"$f":"Import!E25746","v":"Select"},{"$f":"Import!E25896","v":"Select"},{"$f":"Import!E26046","v":"Select"},{"$f":"Import!E26196","v":0},{"$f":"Import!E26346","v":0},{"$f":"Import!E26496","v":0},{"$f":"Import!E26646","v":0},{"$f":"Import!E26796","v":0}]
[46,{"$f":"Import!E25747","v":"Select"},{"$f":"Import!E25897","v":"Select"},{"$f":"Import!E26047","v":"Select"},{"$f":"Import!E26197","v":0},{"$f":"Import!E26347","v":0},{"$f":"Import!E26497","v":0},{"$f":"Import!E26647","v":0},{"$f":"Import!E26797","v":0}]
[47,{"$f":"Import!E25748","v":"Select"},{"$f":"Import!E25898","v":"Select"},{"$f":"Import!E26048","v":"Select"},{"$f":"Import!E26198","v":0},{"$f":"Import!E26348","v":0},{"$f":"Import!E26498","v":0},{"$f":"Import!E26648","v":0},{"$f":"Import!E26798","v":0}]
[48,{"$f":"Import!E25749","v":"Select"},{"$f":"Import!E25899","v":"Select"},{"$f":"Import!E26049","v":"Select"},{"$f":"Import!E26199","v":0},{"$f":"Import!E26349","v":0},{"$f":"Import!E26499","v":0},{"$f":"Import!E26649","v":0},{"$f":"Import!E26799","v":0}]
[49,{"$f":"Import!E25750","v":"Select"},{"$f":"Import!E25900","v":"Select"},{"$f":"Import!E26050","v":"Select"},{"$f":"Import!E26200","v":0},{"$f":"Import!E26350","v":0},{"$f":"Import!E26500","v":0},{"$f":"Import!E26650","v":0},{"$f":"Import!E26800","v":0}]
[50,{"$f":"Import!E25751","v":"Select"},{"$f":"Import!E25901","v":"Select"},{"$f":"Import!E26051","v":"Select"},{"$f":"Import!E26201","v":0},{"$f":"Import!E26351","v":0},{"$f":"Import!E26501","v":0},{"$f":"Import!E26651","v":0},{"$f":"Import!E26801","v":0}]
[51,{"$f":"Import!E25752","v":"Select"},{"$f":"Import!E25902","v":"Select"},{"$f":"Import!E26052","v":"Select"},{"$f":"Import!E26202","v":0},{"$f":"Import!E26352","v":0},{"$f":"Import!E26502","v":0},{"$f":"Import!E26652","v":0},{"$f":"Import!E26802","v":0}]
[52,{"$f":"Import!E25753","v":"Select"},{"$f":"Import!E25903","v":"Select"},{"$f":"Import!E26053","v":"Select"},{"$f":"Import!E26203","v":0},{"$f":"Import!E26353","v":0},{"$f":"Import!E26503","v":0},{"$f":"Import!E26653","v":0},{"$f":"Import!E26803","v":0}]
[53,{"$f":"Import!E25754","v":"Select"},{"$f":"Import!E25904","v":"Select"},{"$f":"Import!E26054","v":"Select"},{"$f":"Import!E26204","v":0},{"$f":"Import!E26354","v":0},{"$f":"Import!E26504","v":0},{"$f":"Import!E26654","v":0},{"$f":"Import!E26804","v":0}]
[54,{"$f":"Import!E25755","v":"Select"},{"$f":"Import!E25905","v":"Select"},{"$f":"Import!E26055","v":"Select"},{"$f":"Import!E26205","v":0},{"$f":"Import!E26355","v":0},{"$f":"Import!E26505","v":0},{"$f":"Import!E26655","v":0},{"$f":"Import!E26805","v":0}]
[55,{"$f":"Import!E25756","v":"Select"},{"$f":"Import!E25906","v":"Select"},{"$f":"Import!E26056","v":"Select"},{"$f":"Import!E26206","v":0},{"$f":"Import!E26356","v":0},{"$f":"Import!E26506","v":0},{"$f":"Import!E26656","v":0},{"$f":"Import!E26806","v":0}]
[56,{"$f":"Import!E25757","v":"Select"},{"$f":"Import!E25907","v":"Select"},{"$f":"Import!E26057","v":"Select"},{"$f":"Import!E26207","v":0},{"$f":"Import!E26357","v":0},{"$f":"Import!E26507","v":0},{"$f":"Import!E26657","v":0},{"$f":"Import!E26807","v":0}]
[57,{"$f":"Import!E25758","v":"Select"},{"$f":"Import!E25908","v":"Select"},{"$f":"Import!E26058","v":"Select"},{"$f":"Import!E26208","v":0},{"$f":"Import!E26358","v":0},{"$f":"Import!E26508","v":0},{"$f":"Import!E26658","v":0},{"$f":"Import!E26808","v":0}]
[58,{"$f":"Import!E25759","v":"Select"},{"$f":"Import!E25909","v":"Select"},{"$f":"Import!E26059","v":"Select"},{"$f":"Import!E26209","v":0},{"$f":"Import!E26359","v":0},{"$f":"Import!E26509","v":0},{"$f":"Import!E26659","v":0},{"$f":"Import!E26809","v":0}]
[59,{"$f":"Import!E25760","v":"Select"},{"$f":"Import!E25910","v":"Select"},{"$f":"Import!E26060","v":"Select"},{"$f":"Import!E26210","v":0},{"$f":"Import!E26360","v":0},{"$f":"Import!E26510","v":0},{"$f":"Import!E26660","v":0},{"$f":"Import!E26810","v":0}]
[60,{"$f":"Import!E25761","v":"Select"},{"$f":"Import!E25911","v":"Select"},{"$f":"Import!E26061","v":"Select"},{"$f":"Import!E26211","v":0},{"$f":"Import!E26361","v":0},{"$f":"Import!E26511","v":0},{"$f":"Import!E26661","v":0},{"$f":"Import!E26811","v":0}]
[61,{"$f":"Import!E25762","v":"Select"},{"$f":"Import!E25912","v":"Select"},{"$f":"Import!E26062","v":"Select"},{"$f":"Import!E26212","v":0},{"$f":"Import!E26362","v":0},{"$f":"Import!E26512","v":0},{"$f":"Import!E26662","v":0},{"$f":"Import!E26812","v":0}]
[62,{"$f":"Import!E25763","v":"Select"},{"$f":"Import!E25913","v":"Select"},{"$f":"Import!E26063","v":"Select"},{"$f":"Import!E26213","v":0},{"$f":"Import!E26363","v":0},{"$f":"Import!E26513","v":0},{"$f":"Import!E26663","v":0},{"$f":"Import!E26813","v":0}]
[63,{"$f":"Import!E25764","v":"Select"},{"$f":"Import!E25914","v":"Select"},{"$f":"Import!E26064","v":"Select"},{"$f":"Import!E26214","v":0},{"$f":"Import!E26364","v":0},{"$f":"Import!E26514","v":0},{"$f":"Import!E26664","v":0},{"$f":"Import!E26814","v":0}]
[64,{"$f":"Import!E25765","v":"Select"},{"$f":"Import!E25915","v":"Select"},{"$f":"Import!E26065","v":"Select"},{"$f":"Import!E26215","v":0},{"$f":"Import!E26365","v":0},{"$f":"Import!E26515","v":0},{"$f":"Import!E26665","v":0},{"$f":"Import!E26815","v":0}]
[65,{"$f":"Import!E25766","v":"Select"},{"$f":"Import!E25916","v":"Select"},{"$f":"Import!E26066","v":"Select"},{"$f":"Import!E26216","v":0},{"$f":"Import!E26366","v":0},{"$f":"Import!E26516","v":0},{"$f":"Import!E26666","v":0},{"$f":"Import!E26816","v":0}]
[66,{"$f":"Import!E25767","v":"Select"},{"$f":"Import!E25917","v":"Select"},{"$f":"Import!E26067","v":"Select"},{"$f":"Import!E26217","v":0},{"$f":"Import!E26367","v":0},{"$f":"Import!E26517","v":0},{"$f":"Import!E26667","v":0},{"$f":"Import!E26817","v":0}]
[{"$f":"A900+1","v":67},{"$f":"Import!E25768","v":"Select"},{"$f":"Import!E25918","v":"Select"},{"$f":"Import!E26068","v":"Select"},{"$f":"Import!E26218","v":0},{"$f":"Import!E26368","v":0},{"$f":"Import!E26518","v":0},{"$f":"Import!E26668","v":0},{"$f":"Import!E26818","v":0}]
[68,{"$f":"Import!E25769","v":"Select"},{"$f":"Import!E25919","v":"Select"},{"$f":"Import!E26069","v":"Select"},{"$f":"Import!E26219","v":0},{"$f":"Import!E26369","v":0},{"$f":"Import!E26519","v":0},{"$f":"Import!E26669","v":0},{"$f":"Import!E26819","v":0}]
[69,{"$f":"Import!E25770","v":"Select"},{"$f":"Import!E25920","v":"Select"},{"$f":"Import!E26070","v":"Select"},{"$f":"Import!E26220","v":0},{"$f":"Import!E26370","v":0},{"$f":"Import!E26520","v":0},{"$f":"Import!E26670","v":0},{"$f":"Import!E26820","v":0}]
[70,{"$f":"Import!E25771","v":"Select"},{"$f":"Import!E25921","v":"Select"},{"$f":"Import!E26071","v":"Select"},{"$f":"Import!E26221","v":0},{"$f":"Import!E26371","v":0},{"$f":"Import!E26521","v":0},{"$f":"Import!E26671","v":0},{"$f":"Import!E26821","v":0}]
[71,{"$f":"Import!E25772","v":"Select"},{"$f":"Import!E25922","v":"Select"},{"$f":"Import!E26072","v":"Select"},{"$f":"Import!E26222","v":0},{"$f":"Import!E26372","v":0},{"$f":"Import!E26522","v":0},{"$f":"Import!E26672","v":0},{"$f":"Import!E26822","v":0}]
[72,{"$f":"Import!E25773","v":"Select"},{"$f":"Import!E25923","v":"Select"},{"$f":"Import!E26073","v":"Select"},{"$f":"Import!E26223","v":0},{"$f":"Import!E26373","v":0},{"$f":"Import!E26523","v":0},{"$f":"Import!E26673","v":0},{"$f":"Import!E26823","v":0}]
[73,{"$f":"Import!E25774","v":"Select"},{"$f":"Import!E25924","v":"Select"},{"$f":"Import!E26074","v":"Select"},{"$f":"Import!E26224","v":0},{"$f":"Import!E26374","v":0},{"$f":"Import!E26524","v":0},{"$f":"Import!E26674","v":0},{"$f":"Import!E26824","v":0}]
[74,{"$f":"Import!E25775","v":"Select"},{"$f":"Import!E25925","v":"Select"},{"$f":"Import!E26075","v":"Select"},{"$f":"Import!E26225","v":0},{"$f":"Import!E26375","v":0},{"$f":"Import!E26525","v":0},{"$f":"Import!E26675","v":0},{"$f":"Import!E26825","v":0}]
[75,{"$f":"Import!E25776","v":"Select"},{"$f":"Import!E25926","v":"Select"},{"$f":"Import!E26076","v":"Select"},{"$f":"Import!E26226","v":0},{"$f":"Import!E26376","v":0},{"$f":"Import!E26526","v":0},{"$f":"Import!E26676","v":0},{"$f":"Import!E26826","v":0}]
[76,{"$f":"Import!E25777","v":"Select"},{"$f":"Import!E25927","v":"Select"},{"$f":"Import!E26077","v":"Select"},{"$f":"Import!E26227","v":0},{"$f":"Import!E26377","v":0},{"$f":"Import!E26527","v":0},{"$f":"Import!E26677","v":0},{"$f":"Import!E26827","v":0}]
[77,{"$f":"Import!E25778","v":"Select"},{"$f":"Import!E25928","v":"Select"},{"$f":"Import!E26078","v":"Select"},{"$f":"Import!E26228","v":0},{"$f":"Import!E26378","v":0},{"$f":"Import!E26528","v":0},{"$f":"Import!E26678","v":0},{"$f":"Import!E26828","v":0}]
[78,{"$f":"Import!E25779","v":"Select"},{"$f":"Import!E25929","v":"Select"},{"$f":"Import!E26079","v":"Select"},{"$f":"Import!E26229","v":0},{"$f":"Import!E26379","v":0},{"$f":"Import!E26529","v":0},{"$f":"Import!E26679","v":0},{"$f":"Import!E26829","v":0}]
[79,{"$f":"Import!E25780","v":"Select"},{"$f":"Import!E25930","v":"Select"},{"$f":"Import!E26080","v":"Select"},{"$f":"Import!E26230","v":0},{"$f":"Import!E26380","v":0},{"$f":"Import!E26530","v":0},{"$f":"Import!E26680","v":0},{"$f":"Import!E26830","v":0}]
[80,{"$f":"Import!E25781","v":"Select"},{"$f":"Import!E25931","v":"Select"},{"$f":"Import!E26081","v":"Select"},{"$f":"Import!E26231","v":0},{"$f":"Import!E26381","v":0},{"$f":"Import!E26531","v":0},{"$f":"Import!E26681","v":0},{"$f":"Import!E26831","v":0}]
[81,{"$f":"Import!E25782","v":"Select"},{"$f":"Import!E25932","v":"Select"},{"$f":"Import!E26082","v":"Select"},{"$f":"Import!E26232","v":0},{"$f":"Import!E26382","v":0},{"$f":"Import!E26532","v":0},{"$f":"Import!E26682","v":0},{"$f":"Import!E26832","v":0}]
[82,{"$f":"Import!E25783","v":"Select"},{"$f":"Import!E25933","v":"Select"},{"$f":"Import!E26083","v":"Select"},{"$f":"Import!E26233","v":0},{"$f":"Import!E26383","v":0},{"$f":"Import!E26533","v":0},{"$f":"Import!E26683","v":0},{"$f":"Import!E26833","v":0}]
[83,{"$f":"Import!E25784","v":"Select"},{"$f":"Import!E25934","v":"Select"},{"$f":"Import!E26084","v":"Select"},{"$f":"Import!E26234","v":0},{"$f":"Import!E26384","v":0},{"$f":"Import!E26534","v":0},{"$f":"Import!E26684","v":0},{"$f":"Import!E26834","v":0}]
[84,{"$f":"Import!E25785","v":"Select"},{"$f":"Import!E25935","v":"Select"},{"$f":"Import!E26085","v":"Select"},{"$f":"Import!E26235","v":0},{"$f":"Import!E26385","v":0},{"$f":"Import!E26535","v":0},{"$f":"Import!E26685","v":0},{"$f":"Import!E26835","v":0}]
[85,{"$f":"Import!E25786","v":"Select"},{"$f":"Import!E25936","v":"Select"},{"$f":"Import!E26086","v":"Select"},{"$f":"Import!E26236","v":0},{"$f":"Import!E26386","v":0},{"$f":"Import!E26536","v":0},{"$f":"Import!E26686","v":0},{"$f":"Import!E26836","v":0}]
[86,{"$f":"Import!E25787","v":"Select"},{"$f":"Import!E25937","v":"Select"},{"$f":"Import!E26087","v":"Select"},{"$f":"Import!E26237","v":0},{"$f":"Import!E26387","v":0},{"$f":"Import!E26537","v":0},{"$f":"Import!E26687","v":0},{"$f":"Import!E26837","v":0}]
[87,{"$f":"Import!E25788","v":"Select"},{"$f":"Import!E25938","v":"Select"},{"$f":"Import!E26088","v":"Select"},{"$f":"Import!E26238","v":0},{"$f":"Import!E26388","v":0},{"$f":"Import!E26538","v":0},{"$f":"Import!E26688","v":0},{"$f":"Import!E26838","v":0}]
[88,{"$f":"Import!E25789","v":"Select"},{"$f":"Import!E25939","v":"Select"},{"$f":"Import!E26089","v":"Select"},{"$f":"Import!E26239","v":0},{"$f":"Import!E26389","v":0},{"$f":"Import!E26539","v":0},{"$f":"Import!E26689","v":0},{"$f":"Import!E26839","v":0}]
[89,{"$f":"Import!E25790","v":"Select"},{"$f":"Import!E25940","v":"Select"},{"$f":"Import!E26090","v":"Select"},{"$f":"Import!E26240","v":0},{"$f":"Import!E26390","v":0},{"$f":"Import!E26540","v":0},{"$f":"Import!E26690","v":0},{"$f":"Import!E26840","v":0}]
[90,{"$f":"Import!E25791","v":"Select"},{"$f":"Import!E25941","v":"Select"},{"$f":"Import!E26091","v":"Select"},{"$f":"Import!E26241","v":0},{"$f":"Import!E26391","v":0},{"$f":"Import!E26541","v":0},{"$f":"Import!E26691","v":0},{"$f":"Import!E26841","v":0}]
[91,{"$f":"Import!E25792","v":"Select"},{"$f":"Import!E25942","v":"Select"},{"$f":"Import!E26092","v":"Select"},{"$f":"Import!E26242","v":0},{"$f":"Import!E26392","v":0},{"$f":"Import!E26542","v":0},{"$f":"Import!E26692","v":0},{"$f":"Import!E26842","v":0}]
[92,{"$f":"Import!E25793","v":"Select"},{"$f":"Import!E25943","v":"Select"},{"$f":"Import!E26093","v":"Select"},{"$f":"Import!E26243","v":0},{"$f":"Import!E26393","v":0},{"$f":"Import!E26543","v":0},{"$f":"Import!E26693","v":0},{"$f":"Import!E26843","v":0}]
[93,{"$f":"Import!E25794","v":"Select"},{"$f":"Import!E25944","v":"Select"},{"$f":"Import!E26094","v":"Select"},{"$f":"Import!E26244","v":0},{"$f":"Import!E26394","v":0},{"$f":"Import!E26544","v":0},{"$f":"Import!E26694","v":0},{"$f":"Import!E26844","v":0}]
[94,{"$f":"Import!E25795","v":"Select"},{"$f":"Import!E25945","v":"Select"},{"$f":"Import!E26095","v":"Select"},{"$f":"Import!E26245","v":0},{"$f":"Import!E26395","v":0},{"$f":"Import!E26545","v":0},{"$f":"Import!E26695","v":0},{"$f":"Import!E26845","v":0}]
[95,{"$f":"Import!E25796","v":"Select"},{"$f":"Import!E25946","v":"Select"},{"$f":"Import!E26096","v":"Select"},{"$f":"Import!E26246","v":0},{"$f":"Import!E26396","v":0},{"$f":"Import!E26546","v":0},{"$f":"Import!E26696","v":0},{"$f":"Import!E26846","v":0}]
[96,{"$f":"Import!E25797","v":"Select"},{"$f":"Import!E25947","v":"Select"},{"$f":"Import!E26097","v":"Select"},{"$f":"Import!E26247","v":0},{"$f":"Import!E26397","v":0},{"$f":"Import!E26547","v":0},{"$f":"Import!E26697","v":0},{"$f":"Import!E26847","v":0}]
[97,{"$f":"Import!E25798","v":"Select"},{"$f":"Import!E25948","v":"Select"},{"$f":"Import!E26098","v":"Select"},{"$f":"Import!E26248","v":0},{"$f":"Import!E26398","v":0},{"$f":"Import!E26548","v":0},{"$f":"Import!E26698","v":0},{"$f":"Import!E26848","v":0}]
[98,{"$f":"Import!E25799","v":"Select"},{"$f":"Import!E25949","v":"Select"},{"$f":"Import!E26099","v":"Select"},{"$f":"Import!E26249","v":0},{"$f":"Import!E26399","v":0},{"$f":"Import!E26549","v":0},{"$f":"Import!E26699","v":0},{"$f":"Import!E26849","v":0}]
[99,{"$f":"Import!E25800","v":"Select"},{"$f":"Import!E25950","v":"Select"},{"$f":"Import!E26100","v":"Select"},{"$f":"Import!E26250","v":0},{"$f":"Import!E26400","v":0},{"$f":"Import!E26550","v":0},{"$f":"Import!E26700","v":0},{"$f":"Import!E26850","v":0}]
[100,{"$f":"Import!E25801","v":"Select"},{"$f":"Import!E25951","v":"Select"},{"$f":"Import!E26101","v":"Select"},{"$f":"Import!E26251","v":0},{"$f":"Import!E26401","v":0},{"$f":"Import!E26551","v":0},{"$f":"Import!E26701","v":0},{"$f":"Import!E26851","v":0}]
[101,{"$f":"Import!E25802","v":"Select"},{"$f":"Import!E25952","v":"Select"},{"$f":"Import!E26102","v":"Select"},{"$f":"Import!E26252","v":0},{"$f":"Import!E26402","v":0},{"$f":"Import!E26552","v":0},{"$f":"Import!E26702","v":0},{"$f":"Import!E26852","v":0}]
[102,{"$f":"Import!E25803","v":"Select"},{"$f":"Import!E25953","v":"Select"},{"$f":"Import!E26103","v":"Select"},{"$f":"Import!E26253","v":0},{"$f":"Import!E26403","v":0},{"$f":"Import!E26553","v":0},{"$f":"Import!E26703","v":0},{"$f":"Import!E26853","v":0}]
[103,{"$f":"Import!E25804","v":"Select"},{"$f":"Import!E25954","v":"Select"},{"$f":"Import!E26104","v":"Select"},{"$f":"Import!E26254","v":0},{"$f":"Import!E26404","v":0},{"$f":"Import!E26554","v":0},{"$f":"Import!E26704","v":0},{"$f":"Import!E26854","v":0}]
[104,{"$f":"Import!E25805","v":"Select"},{"$f":"Import!E25955","v":"Select"},{"$f":"Import!E26105","v":"Select"},{"$f":"Import!E26255","v":0},{"$f":"Import!E26405","v":0},{"$f":"Import!E26555","v":0},{"$f":"Import!E26705","v":0},{"$f":"Import!E26855","v":0}]
[105,{"$f":"Import!E25806","v":"Select"},{"$f":"Import!E25956","v":"Select"},{"$f":"Import!E26106","v":"Select"},{"$f":"Import!E26256","v":0},{"$f":"Import!E26406","v":0},{"$f":"Import!E26556","v":0},{"$f":"Import!E26706","v":0},{"$f":"Import!E26856","v":0}]
[106,{"$f":"Import!E25807","v":"Select"},{"$f":"Import!E25957","v":"Select"},{"$f":"Import!E26107","v":"Select"},{"$f":"Import!E26257","v":0},{"$f":"Import!E26407","v":0},{"$f":"Import!E26557","v":0},{"$f":"Import!E26707","v":0},{"$f":"Import!E26857","v":0}]
[107,{"$f":"Import!E25808","v":"Select"},{"$f":"Import!E25958","v":"Select"},{"$f":"Import!E26108","v":"Select"},{"$f":"Import!E26258","v":0},{"$f":"Import!E26408","v":0},{"$f":"Import!E26558","v":0},{"$f":"Import!E26708","v":0},{"$f":"Import!E26858","v":0}]
[108,{"$f":"Import!E25809","v":"Select"},{"$f":"Import!E25959","v":"Select"},{"$f":"Import!E26109","v":"Select"},{"$f":"Import!E26259","v":0},{"$f":"Import!E26409","v":0},{"$f":"Import!E26559","v":0},{"$f":"Import!E26709","v":0},{"$f":"Import!E26859","v":0}]
[109,{"$f":"Import!E25810","v":"Select"},{"$f":"Import!E25960","v":"Select"},{"$f":"Import!E26110","v":"Select"},{"$f":"Import!E26260","v":0},{"$f":"Import!E26410","v":0},{"$f":"Import!E26560","v":0},{"$f":"Import!E26710","v":0},{"$f":"Import!E26860","v":0}]
[110,{"$f":"Import!E25811","v":"Select"},{"$f":"Import!E25961","v":"Select"},{"$f":"Import!E26111","v":"Select"},{"$f":"Import!E26261","v":0},{"$f":"Import!E26411","v":0},{"$f":"Import!E26561","v":0},{"$f":"Import!E26711","v":0},{"$f":"Import!E26861","v":0}]
[111,{"$f":"Import!E25812","v":"Select"},{"$f":"Import!E25962","v":"Select"},{"$f":"Import!E26112","v":"Select"},{"$f":"Import!E26262","v":0},{"$f":"Import!E26412","v":0},{"$f":"Import!E26562","v":0},{"$f":"Import!E26712","v":0},{"$f":"Import!E26862","v":0}]
[112,{"$f":"Import!E25813","v":"Select"},{"$f":"Import!E25963","v":"Select"},{"$f":"Import!E26113","v":"Select"},{"$f":"Import!E26263","v":0},{"$f":"Import!E26413","v":0},{"$f":"Import!E26563","v":0},{"$f":"Import!E26713","v":0},{"$f":"Import!E26863","v":0}]
[113,{"$f":"Import!E25814","v":"Select"},{"$f":"Import!E25964","v":"Select"},{"$f":"Import!E26114","v":"Select"},{"$f":"Import!E26264","v":0},{"$f":"Import!E26414","v":0},{"$f":"Import!E26564","v":0},{"$f":"Import!E26714","v":0},{"$f":"Import!E26864","v":0}]
[114,{"$f":"Import!E25815","v":"Select"},{"$f":"Import!E25965","v":"Select"},{"$f":"Import!E26115","v":"Select"},{"$f":"Import!E26265","v":0},{"$f":"Import!E26415","v":0},{"$f":"Import!E26565","v":0},{"$f":"Import!E26715","v":0},{"$f":"Import!E26865","v":0}]
[115,{"$f":"Import!E25816","v":"Select"},{"$f":"Import!E25966","v":"Select"},{"$f":"Import!E26116","v":"Select"},{"$f":"Import!E26266","v":0},{"$f":"Import!E26416","v":0},{"$f":"Import!E26566","v":0},{"$f":"Import!E26716","v":0},{"$f":"Import!E26866","v":0}]
[116,{"$f":"Import!E25817","v":"Select"},{"$f":"Import!E25967","v":"Select"},{"$f":"Import!E26117","v":"Select"},{"$f":"Import!E26267","v":0},{"$f":"Import!E26417","v":0},{"$f":"Import!E26567","v":0},{"$f":"Import!E26717","v":0},{"$f":"Import!E26867","v":0}]
[117,{"$f":"Import!E25818","v":"Select"},{"$f":"Import!E25968","v":"Select"},{"$f":"Import!E26118","v":"Select"},{"$f":"Import!E26268","v":0},{"$f":"Import!E26418","v":0},{"$f":"Import!E26568","v":0},{"$f":"Import!E26718","v":0},{"$f":"Import!E26868","v":0}]
[118,{"$f":"Import!E25819","v":"Select"},{"$f":"Import!E25969","v":"Select"},{"$f":"Import!E26119","v":"Select"},{"$f":"Import!E26269","v":0},{"$f":"Import!E26419","v":0},{"$f":"Import!E26569","v":0},{"$f":"Import!E26719","v":0},{"$f":"Import!E26869","v":0}]
[119,{"$f":"Import!E25820","v":"Select"},{"$f":"Import!E25970","v":"Select"},{"$f":"Import!E26120","v":"Select"},{"$f":"Import!E26270","v":0},{"$f":"Import!E26420","v":0},{"$f":"Import!E26570","v":0},{"$f":"Import!E26720","v":0},{"$f":"Import!E26870","v":0}]
[120,{"$f":"Import!E25821","v":"Select"},{"$f":"Import!E25971","v":"Select"},{"$f":"Import!E26121","v":"Select"},{"$f":"Import!E26271","v":0},{"$f":"Import!E26421","v":0},{"$f":"Import!E26571","v":0},{"$f":"Import!E26721","v":0},{"$f":"Import!E26871","v":0}]
[121,{"$f":"Import!E25822","v":"Select"},{"$f":"Import!E25972","v":"Select"},{"$f":"Import!E26122","v":"Select"},{"$f":"Import!E26272","v":0},{"$f":"Import!E26422","v":0},{"$f":"Import!E26572","v":0},{"$f":"Import!E26722","v":0},{"$f":"Import!E26872","v":0}]
[122,{"$f":"Import!E25823","v":"Select"},{"$f":"Import!E25973","v":"Select"},{"$f":"Import!E26123","v":"Select"},{"$f":"Import!E26273","v":0},{"$f":"Import!E26423","v":0},{"$f":"Import!E26573","v":0},{"$f":"Import!E26723","v":0},{"$f":"Import!E26873","v":0}]
[123,{"$f":"Import!E25824","v":"Select"},{"$f":"Import!E25974","v":"Select"},{"$f":"Import!E26124","v":"Select"},{"$f":"Import!E26274","v":0},{"$f":"Import!E26424","v":0},{"$f":"Import!E26574","v":0},{"$f":"Import!E26724","v":0},{"$f":"Import!E26874","v":0}]
[124,{"$f":"Import!E25825","v":"Select"},{"$f":"Import!E25975","v":"Select"},{"$f":"Import!E26125","v":"Select"},{"$f":"Import!E26275","v":0},{"$f":"Import!E26425","v":0},{"$f":"Import!E26575","v":0},{"$f":"Import!E26725","v":0},{"$f":"Import!E26875","v":0}]
[125,{"$f":"Import!E25826","v":"Select"},{"$f":"Import!E25976","v":"Select"},{"$f":"Import!E26126","v":"Select"},{"$f":"Import!E26276","v":0},{"$f":"Import!E26426","v":0},{"$f":"Import!E26576","v":0},{"$f":"Import!E26726","v":0},{"$f":"Import!E26876","v":0}]
[126,{"$f":"Import!E25827","v":"Select"},{"$f":"Import!E25977","v":"Select"},{"$f":"Import!E26127","v":"Select"},{"$f":"Import!E26277","v":0},{"$f":"Import!E26427","v":0},{"$f":"Import!E26577","v":0},{"$f":"Import!E26727","v":0},{"$f":"Import!E26877","v":0}]
[127,{"$f":"Import!E25828","v":"Select"},{"$f":"Import!E25978","v":"Select"},{"$f":"Import!E26128","v":"Select"},{"$f":"Import!E26278","v":0},{"$f":"Import!E26428","v":0},{"$f":"Import!E26578","v":0},{"$f":"Import!E26728","v":0},{"$f":"Import!E26878","v":0}]
[128,{"$f":"Import!E25829","v":"Select"},{"$f":"Import!E25979","v":"Select"},{"$f":"Import!E26129","v":"Select"},{"$f":"Import!E26279","v":0},{"$f":"Import!E26429","v":0},{"$f":"Import!E26579","v":0},{"$f":"Import!E26729","v":0},{"$f":"Import!E26879","v":0}]
[129,{"$f":"Import!E25830","v":"Select"},{"$f":"Import!E25980","v":"Select"},{"$f":"Import!E26130","v":"Select"},{"$f":"Import!E26280","v":0},{"$f":"Import!E26430","v":0},{"$f":"Import!E26580","v":0},{"$f":"Import!E26730","v":0},{"$f":"Import!E26880","v":0}]
[130,{"$f":"Import!E25831","v":"Select"},{"$f":"Import!E25981","v":"Select"},{"$f":"Import!E26131","v":"Select"},{"$f":"Import!E26281","v":0},{"$f":"Import!E26431","v":0},{"$f":"Import!E26581","v":0},{"$f":"Import!E26731","v":0},{"$f":"Import!E26881","v":0}]
[{"$f":"A964+1","v":131},{"$f":"Import!E25832","v":"Select"},{"$f":"Import!E25982","v":"Select"},{"$f":"Import!E26132","v":"Select"},{"$f":"Import!E26282","v":0},{"$f":"Import!E26432","v":0},{"$f":"Import!E26582","v":0},{"$f":"Import!E26732","v":0},{"$f":"Import!E26882","v":0}]
[132,{"$f":"Import!E25833","v":"Select"},{"$f":"Import!E25983","v":"Select"},{"$f":"Import!E26133","v":"Select"},{"$f":"Import!E26283","v":0},{"$f":"Import!E26433","v":0},{"$f":"Import!E26583","v":0},{"$f":"Import!E26733","v":0},{"$f":"Import!E26883","v":0}]
[133,{"$f":"Import!E25834","v":"Select"},{"$f":"Import!E25984","v":"Select"},{"$f":"Import!E26134","v":"Select"},{"$f":"Import!E26284","v":0},{"$f":"Import!E26434","v":0},{"$f":"Import!E26584","v":0},{"$f":"Import!E26734","v":0},{"$f":"Import!E26884","v":0}]
[134,{"$f":"Import!E25835","v":"Select"},{"$f":"Import!E25985","v":"Select"},{"$f":"Import!E26135","v":"Select"},{"$f":"Import!E26285","v":0},{"$f":"Import!E26435","v":0},{"$f":"Import!E26585","v":0},{"$f":"Import!E26735","v":0},{"$f":"Import!E26885","v":0}]
[135,{"$f":"Import!E25836","v":"Select"},{"$f":"Import!E25986","v":"Select"},{"$f":"Import!E26136","v":"Select"},{"$f":"Import!E26286","v":0},{"$f":"Import!E26436","v":0},{"$f":"Import!E26586","v":0},{"$f":"Import!E26736","v":0},{"$f":"Import!E26886","v":0}]
[136,{"$f":"Import!E25837","v":"Select"},{"$f":"Import!E25987","v":"Select"},{"$f":"Import!E26137","v":"Select"},{"$f":"Import!E26287","v":0},{"$f":"Import!E26437","v":0},{"$f":"Import!E26587","v":0},{"$f":"Import!E26737","v":0},{"$f":"Import!E26887","v":0}]
[137,{"$f":"Import!E25838","v":"Select"},{"$f":"Import!E25988","v":"Select"},{"$f":"Import!E26138","v":"Select"},{"$f":"Import!E26288","v":0},{"$f":"Import!E26438","v":0},{"$f":"Import!E26588","v":0},{"$f":"Import!E26738","v":0},{"$f":"Import!E26888","v":0}]
[138,{"$f":"Import!E25839","v":"Select"},{"$f":"Import!E25989","v":"Select"},{"$f":"Import!E26139","v":"Select"},{"$f":"Import!E26289","v":0},{"$f":"Import!E26439","v":0},{"$f":"Import!E26589","v":0},{"$f":"Import!E26739","v":0},{"$f":"Import!E26889","v":0}]
[139,{"$f":"Import!E25840","v":"Select"},{"$f":"Import!E25990","v":"Select"},{"$f":"Import!E26140","v":"Select"},{"$f":"Import!E26290","v":0},{"$f":"Import!E26440","v":0},{"$f":"Import!E26590","v":0},{"$f":"Import!E26740","v":0},{"$f":"Import!E26890","v":0}]
[140,{"$f":"Import!E25841","v":"Select"},{"$f":"Import!E25991","v":"Select"},{"$f":"Import!E26141","v":"Select"},{"$f":"Import!E26291","v":0},{"$f":"Import!E26441","v":0},{"$f":"Import!E26591","v":0},{"$f":"Import!E26741","v":0},{"$f":"Import!E26891","v":0}]
[141,{"$f":"Import!E25842","v":"Select"},{"$f":"Import!E25992","v":"Select"},{"$f":"Import!E26142","v":"Select"},{"$f":"Import!E26292","v":0},{"$f":"Import!E26442","v":0},{"$f":"Import!E26592","v":0},{"$f":"Import!E26742","v":0},{"$f":"Import!E26892","v":0}]
[142,{"$f":"Import!E25843","v":"Select"},{"$f":"Import!E25993","v":"Select"},{"$f":"Import!E26143","v":"Select"},{"$f":"Import!E26293","v":0},{"$f":"Import!E26443","v":0},{"$f":"Import!E26593","v":0},{"$f":"Import!E26743","v":0},{"$f":"Import!E26893","v":0}]
[143,{"$f":"Import!E25844","v":"Select"},{"$f":"Import!E25994","v":"Select"},{"$f":"Import!E26144","v":"Select"},{"$f":"Import!E26294","v":0},{"$f":"Import!E26444","v":0},{"$f":"Import!E26594","v":0},{"$f":"Import!E26744","v":0},{"$f":"Import!E26894","v":0}]
[144,{"$f":"Import!E25845","v":"Select"},{"$f":"Import!E25995","v":"Select"},{"$f":"Import!E26145","v":"Select"},{"$f":"Import!E26295","v":0},{"$f":"Import!E26445","v":0},{"$f":"Import!E26595","v":0},{"$f":"Import!E26745","v":0},{"$f":"Import!E26895","v":0}]
[145,{"$f":"Import!E25846","v":"Select"},{"$f":"Import!E25996","v":"Select"},{"$f":"Import!E26146","v":"Select"},{"$f":"Import!E26296","v":0},{"$f":"Import!E26446","v":0},{"$f":"Import!E26596","v":0},{"$f":"Import!E26746","v":0},{"$f":"Import!E26896","v":0}]
[146,{"$f":"Import!E25847","v":"Select"},{"$f":"Import!E25997","v":"Select"},{"$f":"Import!E26147","v":"Select"},{"$f":"Import!E26297","v":0},{"$f":"Import!E26447","v":0},{"$f":"Import!E26597","v":0},{"$f":"Import!E26747","v":0},{"$f":"Import!E26897","v":0}]
[147,{"$f":"Import!E25848","v":"Select"},{"$f":"Import!E25998","v":"Select"},{"$f":"Import!E26148","v":"Select"},{"$f":"Import!E26298","v":0},{"$f":"Import!E26448","v":0},{"$f":"Import!E26598","v":0},{"$f":"Import!E26748","v":0},{"$f":"Import!E26898","v":0}]
[148,{"$f":"Import!E25849","v":"Select"},{"$f":"Import!E25999","v":"Select"},{"$f":"Import!E26149","v":"Select"},{"$f":"Import!E26299","v":0},{"$f":"Import!E26449","v":0},{"$f":"Import!E26599","v":0},{"$f":"Import!E26749","v":0},{"$f":"Import!E26899","v":0}]
[149,{"$f":"Import!E25850","v":"Select"},{"$f":"Import!E26000","v":"Select"},{"$f":"Import!E26150","v":"Select"},{"$f":"Import!E26300","v":0},{"$f":"Import!E26450","v":0},{"$f":"Import!E26600","v":0},{"$f":"Import!E26750","v":0},{"$f":"Import!E26900","v":0}]
[150,{"$f":"Import!E25851","v":"Select"},{"$f":"Import!E26001","v":"Select"},{"$f":"Import!E26151","v":"Select"},{"$f":"Import!E26301","v":0},{"$f":"Import!E26451","v":0},{"$f":"Import!E26601","v":0},{"$f":"Import!E26751","v":0},{"$f":"Import!E26901","v":0}]
[]
[null,"Total Asset-Backed and Structured Securities",null,null,{"$f":"SUM(E835:E984)","v":0},{"$f":"SUM(F835:F984)","v":0},{"$f":"IFERROR(SUMPRODUCT(G835:G984,$F835:$F984)/SUM($F835:$F984),0)","v":0},{"$f":"IFERROR(SUMPRODUCT(H835:H984,$F835:$F984)/SUM($F835:$F984),0)","v":0}]
[]
[null,"(D) LOANS"]
[]
[null,null,"Enter # of Asset Types",{"$f":"Import!E26902","v":0}]
[null,null,null,null,null,{"$f":"YEAR($C$3)","v":2023},2023,"Weighted"]
[null,"Asset Type","Currency","Country","BSCR Rating","Nominal Amount","Fair Value","Average YTM","Effective Duration","Comments"]
[1,{"$f":"Import!E26903","v":"Select"},{"$f":"Import!E27003","v":"Select"},{"$f":"Import!E27103","v":"Select"},{"$f":"Import!E27203","v":"Select"},{"$f":"Import!E27303","v":0},{"$f":"Import!E27403","v":0},{"$f":"Import!E27503","v":0},{"$f":"Import!E27603","v":0},{"$f":"Import!E27703","v":0}]
[{"$f":"A993+1","v":2},{"$f":"Import!E26904","v":"Select"},{"$f":"Import!E27004","v":"Select"},{"$f":"Import!E27104","v":"Select"},{"$f":"Import!E27204","v":"Select"},{"$f":"Import!E27304","v":0},{"$f":"Import!E27404","v":0},{"$f":"Import!E27504","v":0},{"$f":"Import!E27604","v":0},{"$f":"Import!E27704","v":0}]
[{"$f":"A994+1","v":3},{"$f":"Import!E26905","v":"Select"},{"$f":"Import!E27005","v":"Select"},{"$f":"Import!E27105","v":"Select"},{"$f":"Import!E27205","v":"Select"},{"$f":"Import!E27305","v":0},{"$f":"Import!E27405","v":0},{"$f":"Import!E27505","v":0},{"$f":"Import!E27605","v":0},{"$f":"Import!E27705","v":0}]
[4,{"$f":"Import!E26906","v":"Select"},{"$f":"Import!E27006","v":"Select"},{"$f":"Import!E27106","v":"Select"},{"$f":"Import!E27206","v":"Select"},{"$f":"Import!E27306","v":0},{"$f":"Import!E27406","v":0},{"$f":"Import!E27506","v":0},{"$f":"Import!E27606","v":0},{"$f":"Import!E27706","v":0}]
[5,{"$f":"Import!E26907","v":"Select"},{"$f":"Import!E27007","v":"Select"},{"$f":"Import!E27107","v":"Select"},{"$f":"Import!E27207","v":"Select"},{"$f":"Import!E27307","v":0},{"$f":"Import!E27407","v":0},{"$f":"Import!E27507","v":0},{"$f":"Import!E27607","v":0},{"$f":"Import!E27707","v":0}]
[6,{"$f":"Import!E26908","v":"Select"},{"$f":"Import!E27008","v":"Select"},{"$f":"Import!E27108","v":"Select"},{"$f":"Import!E27208","v":"Select"},{"$f":"Import!E27308","v":0},{"$f":"Import!E27408","v":0},{"$f":"Import!E27508","v":0},{"$f":"Import!E27608","v":0},{"$f":"Import!E27708","v":0}]
[7,{"$f":"Import!E26909","v":"Select"},{"$f":"Import!E27009","v":"Select"},{"$f":"Import!E27109","v":"Select"},{"$f":"Import!E27209","v":"Select"},{"$f":"Import!E27309","v":0},{"$f":"Import!E27409","v":0},{"$f":"Import!E27509","v":0},{"$f":"Import!E27609","v":0},{"$f":"Import!E27709","v":0}]
[8,{"$f":"Import!E26910","v":"Select"},{"$f":"Import!E27010","v":"Select"},{"$f":"Import!E27110","v":"Select"},{"$f":"Import!E27210","v":"Select"},{"$f":"Import!E27310","v":0},{"$f":"Import!E27410","v":0},{"$f":"Import!E27510","v":0},{"$f":"Import!E27610","v":0},{"$f":"Import!E27710","v":0}]
[9,{"$f":"Import!E26911","v":"Select"},{"$f":"Import!E27011","v":"Select"},{"$f":"Import!E27111","v":"Select"},{"$f":"Import!E27211","v":"Select"},{"$f":"Import!E27311","v":0},{"$f":"Import!E27411","v":0},{"$f":"Import!E27511","v":0},{"$f":"Import!E27611","v":0},{"$f":"Import!E27711","v":0}]
[10,{"$f":"Import!E26912","v":"Select"},{"$f":"Import!E27012","v":"Select"},{"$f":"Import!E27112","v":"Select"},{"$f":"Import!E27212","v":"Select"},{"$f":"Import!E27312","v":0},{"$f":"Import!E27412","v":0},{"$f":"Import!E27512","v":0},{"$f":"Import!E27612","v":0},{"$f":"Import!E27712","v":0}]
[11,{"$f":"Import!E26913","v":"Select"},{"$f":"Import!E27013","v":"Select"},{"$f":"Import!E27113","v":"Select"},{"$f":"Import!E27213","v":"Select"},{"$f":"Import!E27313","v":0},{"$f":"Import!E27413","v":0},{"$f":"Import!E27513","v":0},{"$f":"Import!E27613","v":0},{"$f":"Import!E27713","v":0}]
[12,{"$f":"Import!E26914","v":"Select"},{"$f":"Import!E27014","v":"Select"},{"$f":"Import!E27114","v":"Select"},{"$f":"Import!E27214","v":"Select"},{"$f":"Import!E27314","v":0},{"$f":"Import!E27414","v":0},{"$f":"Import!E27514","v":0},{"$f":"Import!E27614","v":0},{"$f":"Import!E27714","v":0}]
[13,{"$f":"Import!E26915","v":"Select"},{"$f":"Import!E27015","v":"Select"},{"$f":"Import!E27115","v":"Select"},{"$f":"Import!E27215","v":"Select"},{"$f":"Import!E27315","v":0},{"$f":"Import!E27415","v":0},{"$f":"Import!E27515","v":0},{"$f":"Import!E27615","v":0},{"$f":"Import!E27715","v":0}]
[14,{"$f":"Import!E26916","v":"Select"},{"$f":"Import!E27016","v":"Select"},{"$f":"Import!E27116","v":"Select"},{"$f":"Import!E27216","v":"Select"},{"$f":"Import!E27316","v":0},{"$f":"Import!E27416","v":0},{"$f":"Import!E27516","v":0},{"$f":"Import!E27616","v":0},{"$f":"Import!E27716","v":0}]
[15,{"$f":"Import!E26917","v":"Select"},{"$f":"Import!E27017","v":"Select"},{"$f":"Import!E27117","v":"Select"},{"$f":"Import!E27217","v":"Select"},{"$f":"Import!E27317","v":0},{"$f":"Import!E27417","v":0},{"$f":"Import!E27517","v":0},{"$f":"Import!E27617","v":0},{"$f":"Import!E27717","v":0}]
[16,{"$f":"Import!E26918","v":"Select"},{"$f":"Import!E27018","v":"Select"},{"$f":"Import!E27118","v":"Select"},{"$f":"Import!E27218","v":"Select"},{"$f":"Import!E27318","v":0},{"$f":"Import!E27418","v":0},{"$f":"Import!E27518","v":0},{"$f":"Import!E27618","v":0},{"$f":"Import!E27718","v":0}]
[17,{"$f":"Import!E26919","v":"Select"},{"$f":"Import!E27019","v":"Select"},{"$f":"Import!E27119","v":"Select"},{"$f":"Import!E27219","v":"Select"},{"$f":"Import!E27319","v":0},{"$f":"Import!E27419","v":0},{"$f":"Import!E27519","v":0},{"$f":"Import!E27619","v":0},{"$f":"Import!E27719","v":0}]
[18,{"$f":"Import!E26920","v":"Select"},{"$f":"Import!E27020","v":"Select"},{"$f":"Import!E27120","v":"Select"},{"$f":"Import!E27220","v":"Select"},{"$f":"Import!E27320","v":0},{"$f":"Import!E27420","v":0},{"$f":"Import!E27520","v":0},{"$f":"Import!E27620","v":0},{"$f":"Import!E27720","v":0}]
[19,{"$f":"Import!E26921","v":"Select"},{"$f":"Import!E27021","v":"Select"},{"$f":"Import!E27121","v":"Select"},{"$f":"Import!E27221","v":"Select"},{"$f":"Import!E27321","v":0},{"$f":"Import!E27421","v":0},{"$f":"Import!E27521","v":0},{"$f":"Import!E27621","v":0},{"$f":"Import!E27721","v":0}]
[20,{"$f":"Import!E26922","v":"Select"},{"$f":"Import!E27022","v":"Select"},{"$f":"Import!E27122","v":"Select"},{"$f":"Import!E27222","v":"Select"},{"$f":"Import!E27322","v":0},{"$f":"Import!E27422","v":0},{"$f":"Import!E27522","v":0},{"$f":"Import!E27622","v":0},{"$f":"Import!E27722","v":0}]
[21,{"$f":"Import!E26923","v":"Select"},{"$f":"Import!E27023","v":"Select"},{"$f":"Import!E27123","v":"Select"},{"$f":"Import!E27223","v":"Select"},{"$f":"Import!E27323","v":0},{"$f":"Import!E27423","v":0},{"$f":"Import!E27523","v":0},{"$f":"Import!E27623","v":0},{"$f":"Import!E27723","v":0}]
[22,{"$f":"Import!E26924","v":"Select"},{"$f":"Import!E27024","v":"Select"},{"$f":"Import!E27124","v":"Select"},{"$f":"Import!E27224","v":"Select"},{"$f":"Import!E27324","v":0},{"$f":"Import!E27424","v":0},{"$f":"Import!E27524","v":0},{"$f":"Import!E27624","v":0},{"$f":"Import!E27724","v":0}]
[23,{"$f":"Import!E26925","v":"Select"},{"$f":"Import!E27025","v":"Select"},{"$f":"Import!E27125","v":"Select"},{"$f":"Import!E27225","v":"Select"},{"$f":"Import!E27325","v":0},{"$f":"Import!E27425","v":0},{"$f":"Import!E27525","v":0},{"$f":"Import!E27625","v":0},{"$f":"Import!E27725","v":0}]
[24,{"$f":"Import!E26926","v":"Select"},{"$f":"Import!E27026","v":"Select"},{"$f":"Import!E27126","v":"Select"},{"$f":"Import!E27226","v":"Select"},{"$f":"Import!E27326","v":0},{"$f":"Import!E27426","v":0},{"$f":"Import!E27526","v":0},{"$f":"Import!E27626","v":0},{"$f":"Import!E27726","v":0}]
[25,{"$f":"Import!E26927","v":"Select"},{"$f":"Import!E27027","v":"Select"},{"$f":"Import!E27127","v":"Select"},{"$f":"Import!E27227","v":"Select"},{"$f":"Import!E27327","v":0},{"$f":"Import!E27427","v":0},{"$f":"Import!E27527","v":0},{"$f":"Import!E27627","v":0},{"$f":"Import!E27727","v":0}]
[26,{"$f":"Import!E26928","v":"Select"},{"$f":"Import!E27028","v":"Select"},{"$f":"Import!E27128","v":"Select"},{"$f":"Import!E27228","v":"Select"},{"$f":"Import!E27328","v":0},{"$f":"Import!E27428","v":0},{"$f":"Import!E27528","v":0},{"$f":"Import!E27628","v":0},{"$f":"Import!E27728","v":0}]
[27,{"$f":"Import!E26929","v":"Select"},{"$f":"Import!E27029","v":"Select"},{"$f":"Import!E27129","v":"Select"},{"$f":"Import!E27229","v":"Select"},{"$f":"Import!E27329","v":0},{"$f":"Import!E27429","v":0},{"$f":"Import!E27529","v":0},{"$f":"Import!E27629","v":0},{"$f":"Import!E27729","v":0}]
[28,{"$f":"Import!E26930","v":"Select"},{"$f":"Import!E27030","v":"Select"},{"$f":"Import!E27130","v":"Select"},{"$f":"Import!E27230","v":"Select"},{"$f":"Import!E27330","v":0},{"$f":"Import!E27430","v":0},{"$f":"Import!E27530","v":0},{"$f":"Import!E27630","v":0},{"$f":"Import!E27730","v":0}]
[29,{"$f":"Import!E26931","v":"Select"},{"$f":"Import!E27031","v":"Select"},{"$f":"Import!E27131","v":"Select"},{"$f":"Import!E27231","v":"Select"},{"$f":"Import!E27331","v":0},{"$f":"Import!E27431","v":0},{"$f":"Import!E27531","v":0},{"$f":"Import!E27631","v":0},{"$f":"Import!E27731","v":0}]
[30,{"$f":"Import!E26932","v":"Select"},{"$f":"Import!E27032","v":"Select"},{"$f":"Import!E27132","v":"Select"},{"$f":"Import!E27232","v":"Select"},{"$f":"Import!E27332","v":0},{"$f":"Import!E27432","v":0},{"$f":"Import!E27532","v":0},{"$f":"Import!E27632","v":0},{"$f":"Import!E27732","v":0}]
[31,{"$f":"Import!E26933","v":"Select"},{"$f":"Import!E27033","v":"Select"},{"$f":"Import!E27133","v":"Select"},{"$f":"Import!E27233","v":"Select"},{"$f":"Import!E27333","v":0},{"$f":"Import!E27433","v":0},{"$f":"Import!E27533","v":0},{"$f":"Import!E27633","v":0},{"$f":"Import!E27733","v":0}]
[32,{"$f":"Import!E26934","v":"Select"},{"$f":"Import!E27034","v":"Select"},{"$f":"Import!E27134","v":"Select"},{"$f":"Import!E27234","v":"Select"},{"$f":"Import!E27334","v":0},{"$f":"Import!E27434","v":0},{"$f":"Import!E27534","v":0},{"$f":"Import!E27634","v":0},{"$f":"Import!E27734","v":0}]
[33,{"$f":"Import!E26935","v":"Select"},{"$f":"Import!E27035","v":"Select"},{"$f":"Import!E27135","v":"Select"},{"$f":"Import!E27235","v":"Select"},{"$f":"Import!E27335","v":0},{"$f":"Import!E27435","v":0},{"$f":"Import!E27535","v":0},{"$f":"Import!E27635","v":0},{"$f":"Import!E27735","v":0}]
[34,{"$f":"Import!E26936","v":"Select"},{"$f":"Import!E27036","v":"Select"},{"$f":"Import!E27136","v":"Select"},{"$f":"Import!E27236","v":"Select"},{"$f":"Import!E27336","v":0},{"$f":"Import!E27436","v":0},{"$f":"Import!E27536","v":0},{"$f":"Import!E27636","v":0},{"$f":"Import!E27736","v":0}]
[35,{"$f":"Import!E26937","v":"Select"},{"$f":"Import!E27037","v":"Select"},{"$f":"Import!E27137","v":"Select"},{"$f":"Import!E27237","v":"Select"},{"$f":"Import!E27337","v":0},{"$f":"Import!E27437","v":0},{"$f":"Import!E27537","v":0},{"$f":"Import!E27637","v":0},{"$f":"Import!E27737","v":0}]
[36,{"$f":"Import!E26938","v":"Select"},{"$f":"Import!E27038","v":"Select"},{"$f":"Import!E27138","v":"Select"},{"$f":"Import!E27238","v":"Select"},{"$f":"Import!E27338","v":0},{"$f":"Import!E27438","v":0},{"$f":"Import!E27538","v":0},{"$f":"Import!E27638","v":0},{"$f":"Import!E27738","v":0}]
[37,{"$f":"Import!E26939","v":"Select"},{"$f":"Import!E27039","v":"Select"},{"$f":"Import!E27139","v":"Select"},{"$f":"Import!E27239","v":"Select"},{"$f":"Import!E27339","v":0},{"$f":"Import!E27439","v":0},{"$f":"Import!E27539","v":0},{"$f":"Import!E27639","v":0},{"$f":"Import!E27739","v":0}]
[38,{"$f":"Import!E26940","v":"Select"},{"$f":"Import!E27040","v":"Select"},{"$f":"Import!E27140","v":"Select"},{"$f":"Import!E27240","v":"Select"},{"$f":"Import!E27340","v":0},{"$f":"Import!E27440","v":0},{"$f":"Import!E27540","v":0},{"$f":"Import!E27640","v":0},{"$f":"Import!E27740","v":0}]
[39,{"$f":"Import!E26941","v":"Select"},{"$f":"Import!E27041","v":"Select"},{"$f":"Import!E27141","v":"Select"},{"$f":"Import!E27241","v":"Select"},{"$f":"Import!E27341","v":0},{"$f":"Import!E27441","v":0},{"$f":"Import!E27541","v":0},{"$f":"Import!E27641","v":0},{"$f":"Import!E27741","v":0}]
[40,{"$f":"Import!E26942","v":"Select"},{"$f":"Import!E27042","v":"Select"},{"$f":"Import!E27142","v":"Select"},{"$f":"Import!E27242","v":"Select"},{"$f":"Import!E27342","v":0},{"$f":"Import!E27442","v":0},{"$f":"Import!E27542","v":0},{"$f":"Import!E27642","v":0},{"$f":"Import!E27742","v":0}]
[41,{"$f":"Import!E26943","v":"Select"},{"$f":"Import!E27043","v":"Select"},{"$f":"Import!E27143","v":"Select"},{"$f":"Import!E27243","v":"Select"},{"$f":"Import!E27343","v":0},{"$f":"Import!E27443","v":0},{"$f":"Import!E27543","v":0},{"$f":"Import!E27643","v":0},{"$f":"Import!E27743","v":0}]
[42,{"$f":"Import!E26944","v":"Select"},{"$f":"Import!E27044","v":"Select"},{"$f":"Import!E27144","v":"Select"},{"$f":"Import!E27244","v":"Select"},{"$f":"Import!E27344","v":0},{"$f":"Import!E27444","v":0},{"$f":"Import!E27544","v":0},{"$f":"Import!E27644","v":0},{"$f":"Import!E27744","v":0}]
[43,{"$f":"Import!E26945","v":"Select"},{"$f":"Import!E27045","v":"Select"},{"$f":"Import!E27145","v":"Select"},{"$f":"Import!E27245","v":"Select"},{"$f":"Import!E27345","v":0},{"$f":"Import!E27445","v":0},{"$f":"Import!E27545","v":0},{"$f":"Import!E27645","v":0},{"$f":"Import!E27745","v":0}]
[44,{"$f":"Import!E26946","v":"Select"},{"$f":"Import!E27046","v":"Select"},{"$f":"Import!E27146","v":"Select"},{"$f":"Import!E27246","v":"Select"},{"$f":"Import!E27346","v":0},{"$f":"Import!E27446","v":0},{"$f":"Import!E27546","v":0},{"$f":"Import!E27646","v":0},{"$f":"Import!E27746","v":0}]
[45,{"$f":"Import!E26947","v":"Select"},{"$f":"Import!E27047","v":"Select"},{"$f":"Import!E27147","v":"Select"},{"$f":"Import!E27247","v":"Select"},{"$f":"Import!E27347","v":0},{"$f":"Import!E27447","v":0},{"$f":"Import!E27547","v":0},{"$f":"Import!E27647","v":0},{"$f":"Import!E27747","v":0}]
[46,{"$f":"Import!E26948","v":"Select"},{"$f":"Import!E27048","v":"Select"},{"$f":"Import!E27148","v":"Select"},{"$f":"Import!E27248","v":"Select"},{"$f":"Import!E27348","v":0},{"$f":"Import!E27448","v":0},{"$f":"Import!E27548","v":0},{"$f":"Import!E27648","v":0},{"$f":"Import!E27748","v":0}]
[47,{"$f":"Import!E26949","v":"Select"},{"$f":"Import!E27049","v":"Select"},{"$f":"Import!E27149","v":"Select"},{"$f":"Import!E27249","v":"Select"},{"$f":"Import!E27349","v":0},{"$f":"Import!E27449","v":0},{"$f":"Import!E27549","v":0},{"$f":"Import!E27649","v":0},{"$f":"Import!E27749","v":0}]
[48,{"$f":"Import!E26950","v":"Select"},{"$f":"Import!E27050","v":"Select"},{"$f":"Import!E27150","v":"Select"},{"$f":"Import!E27250","v":"Select"},{"$f":"Import!E27350","v":0},{"$f":"Import!E27450","v":0},{"$f":"Import!E27550","v":0},{"$f":"Import!E27650","v":0},{"$f":"Import!E27750","v":0}]
[49,{"$f":"Import!E26951","v":"Select"},{"$f":"Import!E27051","v":"Select"},{"$f":"Import!E27151","v":"Select"},{"$f":"Import!E27251","v":"Select"},{"$f":"Import!E27351","v":0},{"$f":"Import!E27451","v":0},{"$f":"Import!E27551","v":0},{"$f":"Import!E27651","v":0},{"$f":"Import!E27751","v":0}]
[50,{"$f":"Import!E26952","v":"Select"},{"$f":"Import!E27052","v":"Select"},{"$f":"Import!E27152","v":"Select"},{"$f":"Import!E27252","v":"Select"},{"$f":"Import!E27352","v":0},{"$f":"Import!E27452","v":0},{"$f":"Import!E27552","v":0},{"$f":"Import!E27652","v":0},{"$f":"Import!E27752","v":0}]
[51,{"$f":"Import!E26953","v":"Select"},{"$f":"Import!E27053","v":"Select"},{"$f":"Import!E27153","v":"Select"},{"$f":"Import!E27253","v":"Select"},{"$f":"Import!E27353","v":0},{"$f":"Import!E27453","v":0},{"$f":"Import!E27553","v":0},{"$f":"Import!E27653","v":0},{"$f":"Import!E27753","v":0}]
[52,{"$f":"Import!E26954","v":"Select"},{"$f":"Import!E27054","v":"Select"},{"$f":"Import!E27154","v":"Select"},{"$f":"Import!E27254","v":"Select"},{"$f":"Import!E27354","v":0},{"$f":"Import!E27454","v":0},{"$f":"Import!E27554","v":0},{"$f":"Import!E27654","v":0},{"$f":"Import!E27754","v":0}]
[53,{"$f":"Import!E26955","v":"Select"},{"$f":"Import!E27055","v":"Select"},{"$f":"Import!E27155","v":"Select"},{"$f":"Import!E27255","v":"Select"},{"$f":"Import!E27355","v":0},{"$f":"Import!E27455","v":0},{"$f":"Import!E27555","v":0},{"$f":"Import!E27655","v":0},{"$f":"Import!E27755","v":0}]
[54,{"$f":"Import!E26956","v":"Select"},{"$f":"Import!E27056","v":"Select"},{"$f":"Import!E27156","v":"Select"},{"$f":"Import!E27256","v":"Select"},{"$f":"Import!E27356","v":0},{"$f":"Import!E27456","v":0},{"$f":"Import!E27556","v":0},{"$f":"Import!E27656","v":0},{"$f":"Import!E27756","v":0}]
[55,{"$f":"Import!E26957","v":"Select"},{"$f":"Import!E27057","v":"Select"},{"$f":"Import!E27157","v":"Select"},{"$f":"Import!E27257","v":"Select"},{"$f":"Import!E27357","v":0},{"$f":"Import!E27457","v":0},{"$f":"Import!E27557","v":0},{"$f":"Import!E27657","v":0},{"$f":"Import!E27757","v":0}]
[56,{"$f":"Import!E26958","v":"Select"},{"$f":"Import!E27058","v":"Select"},{"$f":"Import!E27158","v":"Select"},{"$f":"Import!E27258","v":"Select"},{"$f":"Import!E27358","v":0},{"$f":"Import!E27458","v":0},{"$f":"Import!E27558","v":0},{"$f":"Import!E27658","v":0},{"$f":"Import!E27758","v":0}]
[57,{"$f":"Import!E26959","v":"Select"},{"$f":"Import!E27059","v":"Select"},{"$f":"Import!E27159","v":"Select"},{"$f":"Import!E27259","v":"Select"},{"$f":"Import!E27359","v":0},{"$f":"Import!E27459","v":0},{"$f":"Import!E27559","v":0},{"$f":"Import!E27659","v":0},{"$f":"Import!E27759","v":0}]
[58,{"$f":"Import!E26960","v":"Select"},{"$f":"Import!E27060","v":"Select"},{"$f":"Import!E27160","v":"Select"},{"$f":"Import!E27260","v":"Select"},{"$f":"Import!E27360","v":0},{"$f":"Import!E27460","v":0},{"$f":"Import!E27560","v":0},{"$f":"Import!E27660","v":0},{"$f":"Import!E27760","v":0}]
[59,{"$f":"Import!E26961","v":"Select"},{"$f":"Import!E27061","v":"Select"},{"$f":"Import!E27161","v":"Select"},{"$f":"Import!E27261","v":"Select"},{"$f":"Import!E27361","v":0},{"$f":"Import!E27461","v":0},{"$f":"Import!E27561","v":0},{"$f":"Import!E27661","v":0},{"$f":"Import!E27761","v":0}]
[60,{"$f":"Import!E26962","v":"Select"},{"$f":"Import!E27062","v":"Select"},{"$f":"Import!E27162","v":"Select"},{"$f":"Import!E27262","v":"Select"},{"$f":"Import!E27362","v":0},{"$f":"Import!E27462","v":0},{"$f":"Import!E27562","v":0},{"$f":"Import!E27662","v":0},{"$f":"Import!E27762","v":0}]
[61,{"$f":"Import!E26963","v":"Select"},{"$f":"Import!E27063","v":"Select"},{"$f":"Import!E27163","v":"Select"},{"$f":"Import!E27263","v":"Select"},{"$f":"Import!E27363","v":0},{"$f":"Import!E27463","v":0},{"$f":"Import!E27563","v":0},{"$f":"Import!E27663","v":0},{"$f":"Import!E27763","v":0}]
[62,{"$f":"Import!E26964","v":"Select"},{"$f":"Import!E27064","v":"Select"},{"$f":"Import!E27164","v":"Select"},{"$f":"Import!E27264","v":"Select"},{"$f":"Import!E27364","v":0},{"$f":"Import!E27464","v":0},{"$f":"Import!E27564","v":0},{"$f":"Import!E27664","v":0},{"$f":"Import!E27764","v":0}]
[63,{"$f":"Import!E26965","v":"Select"},{"$f":"Import!E27065","v":"Select"},{"$f":"Import!E27165","v":"Select"},{"$f":"Import!E27265","v":"Select"},{"$f":"Import!E27365","v":0},{"$f":"Import!E27465","v":0},{"$f":"Import!E27565","v":0},{"$f":"Import!E27665","v":0},{"$f":"Import!E27765","v":0}]
[64,{"$f":"Import!E26966","v":"Select"},{"$f":"Import!E27066","v":"Select"},{"$f":"Import!E27166","v":"Select"},{"$f":"Import!E27266","v":"Select"},{"$f":"Import!E27366","v":0},{"$f":"Import!E27466","v":0},{"$f":"Import!E27566","v":0},{"$f":"Import!E27666","v":0},{"$f":"Import!E27766","v":0}]
[65,{"$f":"Import!E26967","v":"Select"},{"$f":"Import!E27067","v":"Select"},{"$f":"Import!E27167","v":"Select"},{"$f":"Import!E27267","v":"Select"},{"$f":"Import!E27367","v":0},{"$f":"Import!E27467","v":0},{"$f":"Import!E27567","v":0},{"$f":"Import!E27667","v":0},{"$f":"Import!E27767","v":0}]
[66,{"$f":"Import!E26968","v":"Select"},{"$f":"Import!E27068","v":"Select"},{"$f":"Import!E27168","v":"Select"},{"$f":"Import!E27268","v":"Select"},{"$f":"Import!E27368","v":0},{"$f":"Import!E27468","v":0},{"$f":"Import!E27568","v":0},{"$f":"Import!E27668","v":0},{"$f":"Import!E27768","v":0}]
[{"$f":"A1058+1","v":67},{"$f":"Import!E26969","v":"Select"},{"$f":"Import!E27069","v":"Select"},{"$f":"Import!E27169","v":"Select"},{"$f":"Import!E27269","v":"Select"},{"$f":"Import!E27369","v":0},{"$f":"Import!E27469","v":0},{"$f":"Import!E27569","v":0},{"$f":"Import!E27669","v":0},{"$f":"Import!E27769","v":0}]
[68,{"$f":"Import!E26970","v":"Select"},{"$f":"Import!E27070","v":"Select"},{"$f":"Import!E27170","v":"Select"},{"$f":"Import!E27270","v":"Select"},{"$f":"Import!E27370","v":0},{"$f":"Import!E27470","v":0},{"$f":"Import!E27570","v":0},{"$f":"Import!E27670","v":0},{"$f":"Import!E27770","v":0}]
[69,{"$f":"Import!E26971","v":"Select"},{"$f":"Import!E27071","v":"Select"},{"$f":"Import!E27171","v":"Select"},{"$f":"Import!E27271","v":"Select"},{"$f":"Import!E27371","v":0},{"$f":"Import!E27471","v":0},{"$f":"Import!E27571","v":0},{"$f":"Import!E27671","v":0},{"$f":"Import!E27771","v":0}]
[70,{"$f":"Import!E26972","v":"Select"},{"$f":"Import!E27072","v":"Select"},{"$f":"Import!E27172","v":"Select"},{"$f":"Import!E27272","v":"Select"},{"$f":"Import!E27372","v":0},{"$f":"Import!E27472","v":0},{"$f":"Import!E27572","v":0},{"$f":"Import!E27672","v":0},{"$f":"Import!E27772","v":0}]
[71,{"$f":"Import!E26973","v":"Select"},{"$f":"Import!E27073","v":"Select"},{"$f":"Import!E27173","v":"Select"},{"$f":"Import!E27273","v":"Select"},{"$f":"Import!E27373","v":0},{"$f":"Import!E27473","v":0},{"$f":"Import!E27573","v":0},{"$f":"Import!E27673","v":0},{"$f":"Import!E27773","v":0}]
[72,{"$f":"Import!E26974","v":"Select"},{"$f":"Import!E27074","v":"Select"},{"$f":"Import!E27174","v":"Select"},{"$f":"Import!E27274","v":"Select"},{"$f":"Import!E27374","v":0},{"$f":"Import!E27474","v":0},{"$f":"Import!E27574","v":0},{"$f":"Import!E27674","v":0},{"$f":"Import!E27774","v":0}]
[73,{"$f":"Import!E26975","v":"Select"},{"$f":"Import!E27075","v":"Select"},{"$f":"Import!E27175","v":"Select"},{"$f":"Import!E27275","v":"Select"},{"$f":"Import!E27375","v":0},{"$f":"Import!E27475","v":0},{"$f":"Import!E27575","v":0},{"$f":"Import!E27675","v":0},{"$f":"Import!E27775","v":0}]
[74,{"$f":"Import!E26976","v":"Select"},{"$f":"Import!E27076","v":"Select"},{"$f":"Import!E27176","v":"Select"},{"$f":"Import!E27276","v":"Select"},{"$f":"Import!E27376","v":0},{"$f":"Import!E27476","v":0},{"$f":"Import!E27576","v":0},{"$f":"Import!E27676","v":0},{"$f":"Import!E27776","v":0}]
[75,{"$f":"Import!E26977","v":"Select"},{"$f":"Import!E27077","v":"Select"},{"$f":"Import!E27177","v":"Select"},{"$f":"Import!E27277","v":"Select"},{"$f":"Import!E27377","v":0},{"$f":"Import!E27477","v":0},{"$f":"Import!E27577","v":0},{"$f":"Import!E27677","v":0},{"$f":"Import!E27777","v":0}]
[76,{"$f":"Import!E26978","v":"Select"},{"$f":"Import!E27078","v":"Select"},{"$f":"Import!E27178","v":"Select"},{"$f":"Import!E27278","v":"Select"},{"$f":"Import!E27378","v":0},{"$f":"Import!E27478","v":0},{"$f":"Import!E27578","v":0},{"$f":"Import!E27678","v":0},{"$f":"Import!E27778","v":0}]
[77,{"$f":"Import!E26979","v":"Select"},{"$f":"Import!E27079","v":"Select"},{"$f":"Import!E27179","v":"Select"},{"$f":"Import!E27279","v":"Select"},{"$f":"Import!E27379","v":0},{"$f":"Import!E27479","v":0},{"$f":"Import!E27579","v":0},{"$f":"Import!E27679","v":0},{"$f":"Import!E27779","v":0}]
[78,{"$f":"Import!E26980","v":"Select"},{"$f":"Import!E27080","v":"Select"},{"$f":"Import!E27180","v":"Select"},{"$f":"Import!E27280","v":"Select"},{"$f":"Import!E27380","v":0},{"$f":"Import!E27480","v":0},{"$f":"Import!E27580","v":0},{"$f":"Import!E27680","v":0},{"$f":"Import!E27780","v":0}]
[79,{"$f":"Import!E26981","v":"Select"},{"$f":"Import!E27081","v":"Select"},{"$f":"Import!E27181","v":"Select"},{"$f":"Import!E27281","v":"Select"},{"$f":"Import!E27381","v":0},{"$f":"Import!E27481","v":0},{"$f":"Import!E27581","v":0},{"$f":"Import!E27681","v":0},{"$f":"Import!E27781","v":0}]
[80,{"$f":"Import!E26982","v":"Select"},{"$f":"Import!E27082","v":"Select"},{"$f":"Import!E27182","v":"Select"},{"$f":"Import!E27282","v":"Select"},{"$f":"Import!E27382","v":0},{"$f":"Import!E27482","v":0},{"$f":"Import!E27582","v":0},{"$f":"Import!E27682","v":0},{"$f":"Import!E27782","v":0}]
[81,{"$f":"Import!E26983","v":"Select"},{"$f":"Import!E27083","v":"Select"},{"$f":"Import!E27183","v":"Select"},{"$f":"Import!E27283","v":"Select"},{"$f":"Import!E27383","v":0},{"$f":"Import!E27483","v":0},{"$f":"Import!E27583","v":0},{"$f":"Import!E27683","v":0},{"$f":"Import!E27783","v":0}]
[82,{"$f":"Import!E26984","v":"Select"},{"$f":"Import!E27084","v":"Select"},{"$f":"Import!E27184","v":"Select"},{"$f":"Import!E27284","v":"Select"},{"$f":"Import!E27384","v":0},{"$f":"Import!E27484","v":0},{"$f":"Import!E27584","v":0},{"$f":"Import!E27684","v":0},{"$f":"Import!E27784","v":0}]
[83,{"$f":"Import!E26985","v":"Select"},{"$f":"Import!E27085","v":"Select"},{"$f":"Import!E27185","v":"Select"},{"$f":"Import!E27285","v":"Select"},{"$f":"Import!E27385","v":0},{"$f":"Import!E27485","v":0},{"$f":"Import!E27585","v":0},{"$f":"Import!E27685","v":0},{"$f":"Import!E27785","v":0}]
[84,{"$f":"Import!E26986","v":"Select"},{"$f":"Import!E27086","v":"Select"},{"$f":"Import!E27186","v":"Select"},{"$f":"Import!E27286","v":"Select"},{"$f":"Import!E27386","v":0},{"$f":"Import!E27486","v":0},{"$f":"Import!E27586","v":0},{"$f":"Import!E27686","v":0},{"$f":"Import!E27786","v":0}]
[85,{"$f":"Import!E26987","v":"Select"},{"$f":"Import!E27087","v":"Select"},{"$f":"Import!E27187","v":"Select"},{"$f":"Import!E27287","v":"Select"},{"$f":"Import!E27387","v":0},{"$f":"Import!E27487","v":0},{"$f":"Import!E27587","v":0},{"$f":"Import!E27687","v":0},{"$f":"Import!E27787","v":0}]
[86,{"$f":"Import!E26988","v":"Select"},{"$f":"Import!E27088","v":"Select"},{"$f":"Import!E27188","v":"Select"},{"$f":"Import!E27288","v":"Select"},{"$f":"Import!E27388","v":0},{"$f":"Import!E27488","v":0},{"$f":"Import!E27588","v":0},{"$f":"Import!E27688","v":0},{"$f":"Import!E27788","v":0}]
[87,{"$f":"Import!E26989","v":"Select"},{"$f":"Import!E27089","v":"Select"},{"$f":"Import!E27189","v":"Select"},{"$f":"Import!E27289","v":"Select"},{"$f":"Import!E27389","v":0},{"$f":"Import!E27489","v":0},{"$f":"Import!E27589","v":0},{"$f":"Import!E27689","v":0},{"$f":"Import!E27789","v":0}]
[88,{"$f":"Import!E26990","v":"Select"},{"$f":"Import!E27090","v":"Select"},{"$f":"Import!E27190","v":"Select"},{"$f":"Import!E27290","v":"Select"},{"$f":"Import!E27390","v":0},{"$f":"Import!E27490","v":0},{"$f":"Import!E27590","v":0},{"$f":"Import!E27690","v":0},{"$f":"Import!E27790","v":0}]
[89,{"$f":"Import!E26991","v":"Select"},{"$f":"Import!E27091","v":"Select"},{"$f":"Import!E27191","v":"Select"},{"$f":"Import!E27291","v":"Select"},{"$f":"Import!E27391","v":0},{"$f":"Import!E27491","v":0},{"$f":"Import!E27591","v":0},{"$f":"Import!E27691","v":0},{"$f":"Import!E27791","v":0}]
[90,{"$f":"Import!E26992","v":"Select"},{"$f":"Import!E27092","v":"Select"},{"$f":"Import!E27192","v":"Select"},{"$f":"Import!E27292","v":"Select"},{"$f":"Import!E27392","v":0},{"$f":"Import!E27492","v":0},{"$f":"Import!E27592","v":0},{"$f":"Import!E27692","v":0},{"$f":"Import!E27792","v":0}]
[91,{"$f":"Import!E26993","v":"Select"},{"$f":"Import!E27093","v":"Select"},{"$f":"Import!E27193","v":"Select"},{"$f":"Import!E27293","v":"Select"},{"$f":"Import!E27393","v":0},{"$f":"Import!E27493","v":0},{"$f":"Import!E27593","v":0},{"$f":"Import!E27693","v":0},{"$f":"Import!E27793","v":0}]
[92,{"$f":"Import!E26994","v":"Select"},{"$f":"Import!E27094","v":"Select"},{"$f":"Import!E27194","v":"Select"},{"$f":"Import!E27294","v":"Select"},{"$f":"Import!E27394","v":0},{"$f":"Import!E27494","v":0},{"$f":"Import!E27594","v":0},{"$f":"Import!E27694","v":0},{"$f":"Import!E27794","v":0}]
[93,{"$f":"Import!E26995","v":"Select"},{"$f":"Import!E27095","v":"Select"},{"$f":"Import!E27195","v":"Select"},{"$f":"Import!E27295","v":"Select"},{"$f":"Import!E27395","v":0},{"$f":"Import!E27495","v":0},{"$f":"Import!E27595","v":0},{"$f":"Import!E27695","v":0},{"$f":"Import!E27795","v":0}]
[94,{"$f":"Import!E26996","v":"Select"},{"$f":"Import!E27096","v":"Select"},{"$f":"Import!E27196","v":"Select"},{"$f":"Import!E27296","v":"Select"},{"$f":"Import!E27396","v":0},{"$f":"Import!E27496","v":0},{"$f":"Import!E27596","v":0},{"$f":"Import!E27696","v":0},{"$f":"Import!E27796","v":0}]
[95,{"$f":"Import!E26997","v":"Select"},{"$f":"Import!E27097","v":"Select"},{"$f":"Import!E27197","v":"Select"},{"$f":"Import!E27297","v":"Select"},{"$f":"Import!E27397","v":0},{"$f":"Import!E27497","v":0},{"$f":"Import!E27597","v":0},{"$f":"Import!E27697","v":0},{"$f":"Import!E27797","v":0}]
[96,{"$f":"Import!E26998","v":"Select"},{"$f":"Import!E27098","v":"Select"},{"$f":"Import!E27198","v":"Select"},{"$f":"Import!E27298","v":"Select"},{"$f":"Import!E27398","v":0},{"$f":"Import!E27498","v":0},{"$f":"Import!E27598","v":0},{"$f":"Import!E27698","v":0},{"$f":"Import!E27798","v":0}]
[97,{"$f":"Import!E26999","v":"Select"},{"$f":"Import!E27099","v":"Select"},{"$f":"Import!E27199","v":"Select"},{"$f":"Import!E27299","v":"Select"},{"$f":"Import!E27399","v":0},{"$f":"Import!E27499","v":0},{"$f":"Import!E27599","v":0},{"$f":"Import!E27699","v":0},{"$f":"Import!E27799","v":0}]
[98,{"$f":"Import!E27000","v":"Select"},{"$f":"Import!E27100","v":"Select"},{"$f":"Import!E27200","v":"Select"},{"$f":"Import!E27300","v":"Select"},{"$f":"Import!E27400","v":0},{"$f":"Import!E27500","v":0},{"$f":"Import!E27600","v":0},{"$f":"Import!E27700","v":0},{"$f":"Import!E27800","v":0}]
[99,{"$f":"Import!E27001","v":"Select"},{"$f":"Import!E27101","v":"Select"},{"$f":"Import!E27201","v":"Select"},{"$f":"Import!E27301","v":"Select"},{"$f":"Import!E27401","v":0},{"$f":"Import!E27501","v":0},{"$f":"Import!E27601","v":0},{"$f":"Import!E27701","v":0},{"$f":"Import!E27801","v":0}]
[100,{"$f":"Import!E27002","v":"Select"},{"$f":"Import!E27102","v":"Select"},{"$f":"Import!E27202","v":"Select"},{"$f":"Import!E27302","v":"Select"},{"$f":"Import!E27402","v":0},{"$f":"Import!E27502","v":0},{"$f":"Import!E27602","v":0},{"$f":"Import!E27702","v":0},{"$f":"Import!E27802","v":0}]
[]
[null,"Total Loans",null,null,null,{"$f":"SUM(F993:F1092)","v":0},{"$f":"SUM(G993:G1092)","v":0},{"$f":"IFERROR(SUMPRODUCT(H993:H1092,$G993:$G1092)/SUM($G993:$G1092),0)","v":0},{"$f":"IFERROR(SUMPRODUCT(I993:I1092,$G993:$G1092)/SUM($G993:$G1092),0)","v":0}]
[]
[null,"- OF WHICH NON-PERFORMING LOANS"]
[]
[null,null,"Enter # of Asset Types",{"$f":"Import!E27803","v":0}]
[null,null,null,null,null,{"$f":"YEAR($C$3)","v":2023},2023]
[null,"Asset Type","Currency","Country","BSCR Rating","Nominal Amount","Fair Value","Comments"]
[1,{"$f":"Import!E27804","v":"Select"},{"$f":"Import!E27824","v":"Select"},{"$f":"Import!E27844","v":"Select"},{"$f":"Import!E27864","v":"Select"},{"$f":"Import!E27884","v":0},{"$f":"Import!E27904","v":0},{"$f":"Import!E27924","v":0}]
[{"$f":"A1101+1","v":2},{"$f":"Import!E27805","v":"Select"},{"$f":"Import!E27825","v":"Select"},{"$f":"Import!E27845","v":"Select"},{"$f":"Import!E27865","v":"Select"},{"$f":"Import!E27885","v":0},{"$f":"Import!E27905","v":0},{"$f":"Import!E27925","v":0}]
[{"$f":"A1102+1","v":3},{"$f":"Import!E27806","v":"Select"},{"$f":"Import!E27826","v":"Select"},{"$f":"Import!E27846","v":"Select"},{"$f":"Import!E27866","v":"Select"},{"$f":"Import!E27886","v":0},{"$f":"Import!E27906","v":0},{"$f":"Import!E27926","v":0}]
[4,{"$f":"Import!E27807","v":"Select"},{"$f":"Import!E27827","v":"Select"},{"$f":"Import!E27847","v":"Select"},{"$f":"Import!E27867","v":"Select"},{"$f":"Import!E27887","v":0},{"$f":"Import!E27907","v":0},{"$f":"Import!E27927","v":0}]
[5,{"$f":"Import!E27808","v":"Select"},{"$f":"Import!E27828","v":"Select"},{"$f":"Import!E27848","v":"Select"},{"$f":"Import!E27868","v":"Select"},{"$f":"Import!E27888","v":0},{"$f":"Import!E27908","v":0},{"$f":"Import!E27928","v":0}]
[6,{"$f":"Import!E27809","v":"Select"},{"$f":"Import!E27829","v":"Select"},{"$f":"Import!E27849","v":"Select"},{"$f":"Import!E27869","v":"Select"},{"$f":"Import!E27889","v":0},{"$f":"Import!E27909","v":0},{"$f":"Import!E27929","v":0}]
[7,{"$f":"Import!E27810","v":"Select"},{"$f":"Import!E27830","v":"Select"},{"$f":"Import!E27850","v":"Select"},{"$f":"Import!E27870","v":"Select"},{"$f":"Import!E27890","v":0},{"$f":"Import!E27910","v":0},{"$f":"Import!E27930","v":0}]
[8,{"$f":"Import!E27811","v":"Select"},{"$f":"Import!E27831","v":"Select"},{"$f":"Import!E27851","v":"Select"},{"$f":"Import!E27871","v":"Select"},{"$f":"Import!E27891","v":0},{"$f":"Import!E27911","v":0},{"$f":"Import!E27931","v":0}]
[9,{"$f":"Import!E27812","v":"Select"},{"$f":"Import!E27832","v":"Select"},{"$f":"Import!E27852","v":"Select"},{"$f":"Import!E27872","v":"Select"},{"$f":"Import!E27892","v":0},{"$f":"Import!E27912","v":0},{"$f":"Import!E27932","v":0}]
[10,{"$f":"Import!E27813","v":"Select"},{"$f":"Import!E27833","v":"Select"},{"$f":"Import!E27853","v":"Select"},{"$f":"Import!E27873","v":"Select"},{"$f":"Import!E27893","v":0},{"$f":"Import!E27913","v":0},{"$f":"Import!E27933","v":0}]
[11,{"$f":"Import!E27814","v":"Select"},{"$f":"Import!E27834","v":"Select"},{"$f":"Import!E27854","v":"Select"},{"$f":"Import!E27874","v":"Select"},{"$f":"Import!E27894","v":0},{"$f":"Import!E27914","v":0},{"$f":"Import!E27934","v":0}]
[12,{"$f":"Import!E27815","v":"Select"},{"$f":"Import!E27835","v":"Select"},{"$f":"Import!E27855","v":"Select"},{"$f":"Import!E27875","v":"Select"},{"$f":"Import!E27895","v":0},{"$f":"Import!E27915","v":0},{"$f":"Import!E27935","v":0}]
[13,{"$f":"Import!E27816","v":"Select"},{"$f":"Import!E27836","v":"Select"},{"$f":"Import!E27856","v":"Select"},{"$f":"Import!E27876","v":"Select"},{"$f":"Import!E27896","v":0},{"$f":"Import!E27916","v":0},{"$f":"Import!E27936","v":0}]
[14,{"$f":"Import!E27817","v":"Select"},{"$f":"Import!E27837","v":"Select"},{"$f":"Import!E27857","v":"Select"},{"$f":"Import!E27877","v":"Select"},{"$f":"Import!E27897","v":0},{"$f":"Import!E27917","v":0},{"$f":"Import!E27937","v":0}]
[15,{"$f":"Import!E27818","v":"Select"},{"$f":"Import!E27838","v":"Select"},{"$f":"Import!E27858","v":"Select"},{"$f":"Import!E27878","v":"Select"},{"$f":"Import!E27898","v":0},{"$f":"Import!E27918","v":0},{"$f":"Import!E27938","v":0}]
[16,{"$f":"Import!E27819","v":"Select"},{"$f":"Import!E27839","v":"Select"},{"$f":"Import!E27859","v":"Select"},{"$f":"Import!E27879","v":"Select"},{"$f":"Import!E27899","v":0},{"$f":"Import!E27919","v":0},{"$f":"Import!E27939","v":0}]
[17,{"$f":"Import!E27820","v":"Select"},{"$f":"Import!E27840","v":"Select"},{"$f":"Import!E27860","v":"Select"},{"$f":"Import!E27880","v":"Select"},{"$f":"Import!E27900","v":0},{"$f":"Import!E27920","v":0},{"$f":"Import!E27940","v":0}]
[18,{"$f":"Import!E27821","v":"Select"},{"$f":"Import!E27841","v":"Select"},{"$f":"Import!E27861","v":"Select"},{"$f":"Import!E27881","v":"Select"},{"$f":"Import!E27901","v":0},{"$f":"Import!E27921","v":0},{"$f":"Import!E27941","v":0}]
[19,{"$f":"Import!E27822","v":"Select"},{"$f":"Import!E27842","v":"Select"},{"$f":"Import!E27862","v":"Select"},{"$f":"Import!E27882","v":"Select"},{"$f":"Import!E27902","v":0},{"$f":"Import!E27922","v":0},{"$f":"Import!E27942","v":0}]
[20,{"$f":"Import!E27823","v":"Select"},{"$f":"Import!E27843","v":"Select"},{"$f":"Import!E27863","v":"Select"},{"$f":"Import!E27883","v":"Select"},{"$f":"Import!E27903","v":0},{"$f":"Import!E27923","v":0},{"$f":"Import!E27943","v":0}]
[]
[null,"Total Non-Performing Loans",null,null,null,{"$f":"SUM(F1101:F1120)","v":0},{"$f":"SUM(G1101:G1120)","v":0}]
[]
[null,"(E) PREFERRED EQUITIES"]
[]
[null,null,"Enter # of Asset Types",{"$f":"Import!E27944","v":0}]
[null,null,null,null,{"$f":"YEAR($C$3)","v":2023},2023,"Weighted"]
[null,"Asset Type","Currency","BSCR Rating","Nominal Amount","Fair Value","Average YTM","Effective Duration","Comments"]
[1,{"$f":"Import!E27945","v":"Select"},{"$f":"Import!E28045","v":"Select"},{"$f":"Import!E28145","v":"Select"},{"$f":"Import!E28245","v":0},{"$f":"Import!E28345","v":0},{"$f":"Import!E28445","v":0},{"$f":"Import!E28545","v":0},{"$f":"Import!E28645","v":0}]
[{"$f":"A1129+1","v":2},{"$f":"Import!E27946","v":"Select"},{"$f":"Import!E28046","v":"Select"},{"$f":"Import!E28146","v":"Select"},{"$f":"Import!E28246","v":0},{"$f":"Import!E28346","v":0},{"$f":"Import!E28446","v":0},{"$f":"Import!E28546","v":0},{"$f":"Import!E28646","v":0}]
[{"$f":"A1130+1","v":3},{"$f":"Import!E27947","v":"Select"},{"$f":"Import!E28047","v":"Select"},{"$f":"Import!E28147","v":"Select"},{"$f":"Import!E28247","v":0},{"$f":"Import!E28347","v":0},{"$f":"Import!E28447","v":0},{"$f":"Import!E28547","v":0},{"$f":"Import!E28647","v":0}]
[4,{"$f":"Import!E27948","v":"Select"},{"$f":"Import!E28048","v":"Select"},{"$f":"Import!E28148","v":"Select"},{"$f":"Import!E28248","v":0},{"$f":"Import!E28348","v":0},{"$f":"Import!E28448","v":0},{"$f":"Import!E28548","v":0},{"$f":"Import!E28648","v":0}]
[5,{"$f":"Import!E27949","v":"Select"},{"$f":"Import!E28049","v":"Select"},{"$f":"Import!E28149","v":"Select"},{"$f":"Import!E28249","v":0},{"$f":"Import!E28349","v":0},{"$f":"Import!E28449","v":0},{"$f":"Import!E28549","v":0},{"$f":"Import!E28649","v":0}]
[6,{"$f":"Import!E27950","v":"Select"},{"$f":"Import!E28050","v":"Select"},{"$f":"Import!E28150","v":"Select"},{"$f":"Import!E28250","v":0},{"$f":"Import!E28350","v":0},{"$f":"Import!E28450","v":0},{"$f":"Import!E28550","v":0},{"$f":"Import!E28650","v":0}]
[7,{"$f":"Import!E27951","v":"Select"},{"$f":"Import!E28051","v":"Select"},{"$f":"Import!E28151","v":"Select"},{"$f":"Import!E28251","v":0},{"$f":"Import!E28351","v":0},{"$f":"Import!E28451","v":0},{"$f":"Import!E28551","v":0},{"$f":"Import!E28651","v":0}]
[8,{"$f":"Import!E27952","v":"Select"},{"$f":"Import!E28052","v":"Select"},{"$f":"Import!E28152","v":"Select"},{"$f":"Import!E28252","v":0},{"$f":"Import!E28352","v":0},{"$f":"Import!E28452","v":0},{"$f":"Import!E28552","v":0},{"$f":"Import!E28652","v":0}]
[9,{"$f":"Import!E27953","v":"Select"},{"$f":"Import!E28053","v":"Select"},{"$f":"Import!E28153","v":"Select"},{"$f":"Import!E28253","v":0},{"$f":"Import!E28353","v":0},{"$f":"Import!E28453","v":0},{"$f":"Import!E28553","v":0},{"$f":"Import!E28653","v":0}]
[10,{"$f":"Import!E27954","v":"Select"},{"$f":"Import!E28054","v":"Select"},{"$f":"Import!E28154","v":"Select"},{"$f":"Import!E28254","v":0},{"$f":"Import!E28354","v":0},{"$f":"Import!E28454","v":0},{"$f":"Import!E28554","v":0},{"$f":"Import!E28654","v":0}]
[11,{"$f":"Import!E27955","v":"Select"},{"$f":"Import!E28055","v":"Select"},{"$f":"Import!E28155","v":"Select"},{"$f":"Import!E28255","v":0},{"$f":"Import!E28355","v":0},{"$f":"Import!E28455","v":0},{"$f":"Import!E28555","v":0},{"$f":"Import!E28655","v":0}]
[12,{"$f":"Import!E27956","v":"Select"},{"$f":"Import!E28056","v":"Select"},{"$f":"Import!E28156","v":"Select"},{"$f":"Import!E28256","v":0},{"$f":"Import!E28356","v":0},{"$f":"Import!E28456","v":0},{"$f":"Import!E28556","v":0},{"$f":"Import!E28656","v":0}]
[13,{"$f":"Import!E27957","v":"Select"},{"$f":"Import!E28057","v":"Select"},{"$f":"Import!E28157","v":"Select"},{"$f":"Import!E28257","v":0},{"$f":"Import!E28357","v":0},{"$f":"Import!E28457","v":0},{"$f":"Import!E28557","v":0},{"$f":"Import!E28657","v":0}]
[14,{"$f":"Import!E27958","v":"Select"},{"$f":"Import!E28058","v":"Select"},{"$f":"Import!E28158","v":"Select"},{"$f":"Import!E28258","v":0},{"$f":"Import!E28358","v":0},{"$f":"Import!E28458","v":0},{"$f":"Import!E28558","v":0},{"$f":"Import!E28658","v":0}]
[15,{"$f":"Import!E27959","v":"Select"},{"$f":"Import!E28059","v":"Select"},{"$f":"Import!E28159","v":"Select"},{"$f":"Import!E28259","v":0},{"$f":"Import!E28359","v":0},{"$f":"Import!E28459","v":0},{"$f":"Import!E28559","v":0},{"$f":"Import!E28659","v":0}]
[16,{"$f":"Import!E27960","v":"Select"},{"$f":"Import!E28060","v":"Select"},{"$f":"Import!E28160","v":"Select"},{"$f":"Import!E28260","v":0},{"$f":"Import!E28360","v":0},{"$f":"Import!E28460","v":0},{"$f":"Import!E28560","v":0},{"$f":"Import!E28660","v":0}]
[17,{"$f":"Import!E27961","v":"Select"},{"$f":"Import!E28061","v":"Select"},{"$f":"Import!E28161","v":"Select"},{"$f":"Import!E28261","v":0},{"$f":"Import!E28361","v":0},{"$f":"Import!E28461","v":0},{"$f":"Import!E28561","v":0},{"$f":"Import!E28661","v":0}]
[18,{"$f":"Import!E27962","v":"Select"},{"$f":"Import!E28062","v":"Select"},{"$f":"Import!E28162","v":"Select"},{"$f":"Import!E28262","v":0},{"$f":"Import!E28362","v":0},{"$f":"Import!E28462","v":0},{"$f":"Import!E28562","v":0},{"$f":"Import!E28662","v":0}]
[19,{"$f":"Import!E27963","v":"Select"},{"$f":"Import!E28063","v":"Select"},{"$f":"Import!E28163","v":"Select"},{"$f":"Import!E28263","v":0},{"$f":"Import!E28363","v":0},{"$f":"Import!E28463","v":0},{"$f":"Import!E28563","v":0},{"$f":"Import!E28663","v":0}]
[20,{"$f":"Import!E27964","v":"Select"},{"$f":"Import!E28064","v":"Select"},{"$f":"Import!E28164","v":"Select"},{"$f":"Import!E28264","v":0},{"$f":"Import!E28364","v":0},{"$f":"Import!E28464","v":0},{"$f":"Import!E28564","v":0},{"$f":"Import!E28664","v":0}]
[21,{"$f":"Import!E27965","v":"Select"},{"$f":"Import!E28065","v":"Select"},{"$f":"Import!E28165","v":"Select"},{"$f":"Import!E28265","v":0},{"$f":"Import!E28365","v":0},{"$f":"Import!E28465","v":0},{"$f":"Import!E28565","v":0},{"$f":"Import!E28665","v":0}]
[22,{"$f":"Import!E27966","v":"Select"},{"$f":"Import!E28066","v":"Select"},{"$f":"Import!E28166","v":"Select"},{"$f":"Import!E28266","v":0},{"$f":"Import!E28366","v":0},{"$f":"Import!E28466","v":0},{"$f":"Import!E28566","v":0},{"$f":"Import!E28666","v":0}]
[23,{"$f":"Import!E27967","v":"Select"},{"$f":"Import!E28067","v":"Select"},{"$f":"Import!E28167","v":"Select"},{"$f":"Import!E28267","v":0},{"$f":"Import!E28367","v":0},{"$f":"Import!E28467","v":0},{"$f":"Import!E28567","v":0},{"$f":"Import!E28667","v":0}]
[24,{"$f":"Import!E27968","v":"Select"},{"$f":"Import!E28068","v":"Select"},{"$f":"Import!E28168","v":"Select"},{"$f":"Import!E28268","v":0},{"$f":"Import!E28368","v":0},{"$f":"Import!E28468","v":0},{"$f":"Import!E28568","v":0},{"$f":"Import!E28668","v":0}]
[25,{"$f":"Import!E27969","v":"Select"},{"$f":"Import!E28069","v":"Select"},{"$f":"Import!E28169","v":"Select"},{"$f":"Import!E28269","v":0},{"$f":"Import!E28369","v":0},{"$f":"Import!E28469","v":0},{"$f":"Import!E28569","v":0},{"$f":"Import!E28669","v":0}]
[26,{"$f":"Import!E27970","v":"Select"},{"$f":"Import!E28070","v":"Select"},{"$f":"Import!E28170","v":"Select"},{"$f":"Import!E28270","v":0},{"$f":"Import!E28370","v":0},{"$f":"Import!E28470","v":0},{"$f":"Import!E28570","v":0},{"$f":"Import!E28670","v":0}]
[27,{"$f":"Import!E27971","v":"Select"},{"$f":"Import!E28071","v":"Select"},{"$f":"Import!E28171","v":"Select"},{"$f":"Import!E28271","v":0},{"$f":"Import!E28371","v":0},{"$f":"Import!E28471","v":0},{"$f":"Import!E28571","v":0},{"$f":"Import!E28671","v":0}]
[28,{"$f":"Import!E27972","v":"Select"},{"$f":"Import!E28072","v":"Select"},{"$f":"Import!E28172","v":"Select"},{"$f":"Import!E28272","v":0},{"$f":"Import!E28372","v":0},{"$f":"Import!E28472","v":0},{"$f":"Import!E28572","v":0},{"$f":"Import!E28672","v":0}]
[29,{"$f":"Import!E27973","v":"Select"},{"$f":"Import!E28073","v":"Select"},{"$f":"Import!E28173","v":"Select"},{"$f":"Import!E28273","v":0},{"$f":"Import!E28373","v":0},{"$f":"Import!E28473","v":0},{"$f":"Import!E28573","v":0},{"$f":"Import!E28673","v":0}]
[30,{"$f":"Import!E27974","v":"Select"},{"$f":"Import!E28074","v":"Select"},{"$f":"Import!E28174","v":"Select"},{"$f":"Import!E28274","v":0},{"$f":"Import!E28374","v":0},{"$f":"Import!E28474","v":0},{"$f":"Import!E28574","v":0},{"$f":"Import!E28674","v":0}]
[31,{"$f":"Import!E27975","v":"Select"},{"$f":"Import!E28075","v":"Select"},{"$f":"Import!E28175","v":"Select"},{"$f":"Import!E28275","v":0},{"$f":"Import!E28375","v":0},{"$f":"Import!E28475","v":0},{"$f":"Import!E28575","v":0},{"$f":"Import!E28675","v":0}]
[32,{"$f":"Import!E27976","v":"Select"},{"$f":"Import!E28076","v":"Select"},{"$f":"Import!E28176","v":"Select"},{"$f":"Import!E28276","v":0},{"$f":"Import!E28376","v":0},{"$f":"Import!E28476","v":0},{"$f":"Import!E28576","v":0},{"$f":"Import!E28676","v":0}]
[33,{"$f":"Import!E27977","v":"Select"},{"$f":"Import!E28077","v":"Select"},{"$f":"Import!E28177","v":"Select"},{"$f":"Import!E28277","v":0},{"$f":"Import!E28377","v":0},{"$f":"Import!E28477","v":0},{"$f":"Import!E28577","v":0},{"$f":"Import!E28677","v":0}]
[34,{"$f":"Import!E27978","v":"Select"},{"$f":"Import!E28078","v":"Select"},{"$f":"Import!E28178","v":"Select"},{"$f":"Import!E28278","v":0},{"$f":"Import!E28378","v":0},{"$f":"Import!E28478","v":0},{"$f":"Import!E28578","v":0},{"$f":"Import!E28678","v":0}]
[35,{"$f":"Import!E27979","v":"Select"},{"$f":"Import!E28079","v":"Select"},{"$f":"Import!E28179","v":"Select"},{"$f":"Import!E28279","v":0},{"$f":"Import!E28379","v":0},{"$f":"Import!E28479","v":0},{"$f":"Import!E28579","v":0},{"$f":"Import!E28679","v":0}]
[36,{"$f":"Import!E27980","v":"Select"},{"$f":"Import!E28080","v":"Select"},{"$f":"Import!E28180","v":"Select"},{"$f":"Import!E28280","v":0},{"$f":"Import!E28380","v":0},{"$f":"Import!E28480","v":0},{"$f":"Import!E28580","v":0},{"$f":"Import!E28680","v":0}]
[37,{"$f":"Import!E27981","v":"Select"},{"$f":"Import!E28081","v":"Select"},{"$f":"Import!E28181","v":"Select"},{"$f":"Import!E28281","v":0},{"$f":"Import!E28381","v":0},{"$f":"Import!E28481","v":0},{"$f":"Import!E28581","v":0},{"$f":"Import!E28681","v":0}]
[38,{"$f":"Import!E27982","v":"Select"},{"$f":"Import!E28082","v":"Select"},{"$f":"Import!E28182","v":"Select"},{"$f":"Import!E28282","v":0},{"$f":"Import!E28382","v":0},{"$f":"Import!E28482","v":0},{"$f":"Import!E28582","v":0},{"$f":"Import!E28682","v":0}]
[39,{"$f":"Import!E27983","v":"Select"},{"$f":"Import!E28083","v":"Select"},{"$f":"Import!E28183","v":"Select"},{"$f":"Import!E28283","v":0},{"$f":"Import!E28383","v":0},{"$f":"Import!E28483","v":0},{"$f":"Import!E28583","v":0},{"$f":"Import!E28683","v":0}]
[40,{"$f":"Import!E27984","v":"Select"},{"$f":"Import!E28084","v":"Select"},{"$f":"Import!E28184","v":"Select"},{"$f":"Import!E28284","v":0},{"$f":"Import!E28384","v":0},{"$f":"Import!E28484","v":0},{"$f":"Import!E28584","v":0},{"$f":"Import!E28684","v":0}]
[41,{"$f":"Import!E27985","v":"Select"},{"$f":"Import!E28085","v":"Select"},{"$f":"Import!E28185","v":"Select"},{"$f":"Import!E28285","v":0},{"$f":"Import!E28385","v":0},{"$f":"Import!E28485","v":0},{"$f":"Import!E28585","v":0},{"$f":"Import!E28685","v":0}]
[42,{"$f":"Import!E27986","v":"Select"},{"$f":"Import!E28086","v":"Select"},{"$f":"Import!E28186","v":"Select"},{"$f":"Import!E28286","v":0},{"$f":"Import!E28386","v":0},{"$f":"Import!E28486","v":0},{"$f":"Import!E28586","v":0},{"$f":"Import!E28686","v":0}]
[43,{"$f":"Import!E27987","v":"Select"},{"$f":"Import!E28087","v":"Select"},{"$f":"Import!E28187","v":"Select"},{"$f":"Import!E28287","v":0},{"$f":"Import!E28387","v":0},{"$f":"Import!E28487","v":0},{"$f":"Import!E28587","v":0},{"$f":"Import!E28687","v":0}]
[44,{"$f":"Import!E27988","v":"Select"},{"$f":"Import!E28088","v":"Select"},{"$f":"Import!E28188","v":"Select"},{"$f":"Import!E28288","v":0},{"$f":"Import!E28388","v":0},{"$f":"Import!E28488","v":0},{"$f":"Import!E28588","v":0},{"$f":"Import!E28688","v":0}]
[45,{"$f":"Import!E27989","v":"Select"},{"$f":"Import!E28089","v":"Select"},{"$f":"Import!E28189","v":"Select"},{"$f":"Import!E28289","v":0},{"$f":"Import!E28389","v":0},{"$f":"Import!E28489","v":0},{"$f":"Import!E28589","v":0},{"$f":"Import!E28689","v":0}]
[46,{"$f":"Import!E27990","v":"Select"},{"$f":"Import!E28090","v":"Select"},{"$f":"Import!E28190","v":"Select"},{"$f":"Import!E28290","v":0},{"$f":"Import!E28390","v":0},{"$f":"Import!E28490","v":0},{"$f":"Import!E28590","v":0},{"$f":"Import!E28690","v":0}]
[47,{"$f":"Import!E27991","v":"Select"},{"$f":"Import!E28091","v":"Select"},{"$f":"Import!E28191","v":"Select"},{"$f":"Import!E28291","v":0},{"$f":"Import!E28391","v":0},{"$f":"Import!E28491","v":0},{"$f":"Import!E28591","v":0},{"$f":"Import!E28691","v":0}]
[48,{"$f":"Import!E27992","v":"Select"},{"$f":"Import!E28092","v":"Select"},{"$f":"Import!E28192","v":"Select"},{"$f":"Import!E28292","v":0},{"$f":"Import!E28392","v":0},{"$f":"Import!E28492","v":0},{"$f":"Import!E28592","v":0},{"$f":"Import!E28692","v":0}]
[49,{"$f":"Import!E27993","v":"Select"},{"$f":"Import!E28093","v":"Select"},{"$f":"Import!E28193","v":"Select"},{"$f":"Import!E28293","v":0},{"$f":"Import!E28393","v":0},{"$f":"Import!E28493","v":0},{"$f":"Import!E28593","v":0},{"$f":"Import!E28693","v":0}]
[50,{"$f":"Import!E27994","v":"Select"},{"$f":"Import!E28094","v":"Select"},{"$f":"Import!E28194","v":"Select"},{"$f":"Import!E28294","v":0},{"$f":"Import!E28394","v":0},{"$f":"Import!E28494","v":0},{"$f":"Import!E28594","v":0},{"$f":"Import!E28694","v":0}]
[51,{"$f":"Import!E27995","v":"Select"},{"$f":"Import!E28095","v":"Select"},{"$f":"Import!E28195","v":"Select"},{"$f":"Import!E28295","v":0},{"$f":"Import!E28395","v":0},{"$f":"Import!E28495","v":0},{"$f":"Import!E28595","v":0},{"$f":"Import!E28695","v":0}]
[52,{"$f":"Import!E27996","v":"Select"},{"$f":"Import!E28096","v":"Select"},{"$f":"Import!E28196","v":"Select"},{"$f":"Import!E28296","v":0},{"$f":"Import!E28396","v":0},{"$f":"Import!E28496","v":0},{"$f":"Import!E28596","v":0},{"$f":"Import!E28696","v":0}]
[53,{"$f":"Import!E27997","v":"Select"},{"$f":"Import!E28097","v":"Select"},{"$f":"Import!E28197","v":"Select"},{"$f":"Import!E28297","v":0},{"$f":"Import!E28397","v":0},{"$f":"Import!E28497","v":0},{"$f":"Import!E28597","v":0},{"$f":"Import!E28697","v":0}]
[54,{"$f":"Import!E27998","v":"Select"},{"$f":"Import!E28098","v":"Select"},{"$f":"Import!E28198","v":"Select"},{"$f":"Import!E28298","v":0},{"$f":"Import!E28398","v":0},{"$f":"Import!E28498","v":0},{"$f":"Import!E28598","v":0},{"$f":"Import!E28698","v":0}]
[55,{"$f":"Import!E27999","v":"Select"},{"$f":"Import!E28099","v":"Select"},{"$f":"Import!E28199","v":"Select"},{"$f":"Import!E28299","v":0},{"$f":"Import!E28399","v":0},{"$f":"Import!E28499","v":0},{"$f":"Import!E28599","v":0},{"$f":"Import!E28699","v":0}]
[56,{"$f":"Import!E28000","v":"Select"},{"$f":"Import!E28100","v":"Select"},{"$f":"Import!E28200","v":"Select"},{"$f":"Import!E28300","v":0},{"$f":"Import!E28400","v":0},{"$f":"Import!E28500","v":0},{"$f":"Import!E28600","v":0},{"$f":"Import!E28700","v":0}]
[57,{"$f":"Import!E28001","v":"Select"},{"$f":"Import!E28101","v":"Select"},{"$f":"Import!E28201","v":"Select"},{"$f":"Import!E28301","v":0},{"$f":"Import!E28401","v":0},{"$f":"Import!E28501","v":0},{"$f":"Import!E28601","v":0},{"$f":"Import!E28701","v":0}]
[58,{"$f":"Import!E28002","v":"Select"},{"$f":"Import!E28102","v":"Select"},{"$f":"Import!E28202","v":"Select"},{"$f":"Import!E28302","v":0},{"$f":"Import!E28402","v":0},{"$f":"Import!E28502","v":0},{"$f":"Import!E28602","v":0},{"$f":"Import!E28702","v":0}]
[59,{"$f":"Import!E28003","v":"Select"},{"$f":"Import!E28103","v":"Select"},{"$f":"Import!E28203","v":"Select"},{"$f":"Import!E28303","v":0},{"$f":"Import!E28403","v":0},{"$f":"Import!E28503","v":0},{"$f":"Import!E28603","v":0},{"$f":"Import!E28703","v":0}]
[60,{"$f":"Import!E28004","v":"Select"},{"$f":"Import!E28104","v":"Select"},{"$f":"Import!E28204","v":"Select"},{"$f":"Import!E28304","v":0},{"$f":"Import!E28404","v":0},{"$f":"Import!E28504","v":0},{"$f":"Import!E28604","v":0},{"$f":"Import!E28704","v":0}]
[61,{"$f":"Import!E28005","v":"Select"},{"$f":"Import!E28105","v":"Select"},{"$f":"Import!E28205","v":"Select"},{"$f":"Import!E28305","v":0},{"$f":"Import!E28405","v":0},{"$f":"Import!E28505","v":0},{"$f":"Import!E28605","v":0},{"$f":"Import!E28705","v":0}]
[62,{"$f":"Import!E28006","v":"Select"},{"$f":"Import!E28106","v":"Select"},{"$f":"Import!E28206","v":"Select"},{"$f":"Import!E28306","v":0},{"$f":"Import!E28406","v":0},{"$f":"Import!E28506","v":0},{"$f":"Import!E28606","v":0},{"$f":"Import!E28706","v":0}]
[63,{"$f":"Import!E28007","v":"Select"},{"$f":"Import!E28107","v":"Select"},{"$f":"Import!E28207","v":"Select"},{"$f":"Import!E28307","v":0},{"$f":"Import!E28407","v":0},{"$f":"Import!E28507","v":0},{"$f":"Import!E28607","v":0},{"$f":"Import!E28707","v":0}]
[64,{"$f":"Import!E28008","v":"Select"},{"$f":"Import!E28108","v":"Select"},{"$f":"Import!E28208","v":"Select"},{"$f":"Import!E28308","v":0},{"$f":"Import!E28408","v":0},{"$f":"Import!E28508","v":0},{"$f":"Import!E28608","v":0},{"$f":"Import!E28708","v":0}]
[65,{"$f":"Import!E28009","v":"Select"},{"$f":"Import!E28109","v":"Select"},{"$f":"Import!E28209","v":"Select"},{"$f":"Import!E28309","v":0},{"$f":"Import!E28409","v":0},{"$f":"Import!E28509","v":0},{"$f":"Import!E28609","v":0},{"$f":"Import!E28709","v":0}]
[66,{"$f":"Import!E28010","v":"Select"},{"$f":"Import!E28110","v":"Select"},{"$f":"Import!E28210","v":"Select"},{"$f":"Import!E28310","v":0},{"$f":"Import!E28410","v":0},{"$f":"Import!E28510","v":0},{"$f":"Import!E28610","v":0},{"$f":"Import!E28710","v":0}]
[{"$f":"A1194+1","v":67},{"$f":"Import!E28011","v":"Select"},{"$f":"Import!E28111","v":"Select"},{"$f":"Import!E28211","v":"Select"},{"$f":"Import!E28311","v":0},{"$f":"Import!E28411","v":0},{"$f":"Import!E28511","v":0},{"$f":"Import!E28611","v":0},{"$f":"Import!E28711","v":0}]
[68,{"$f":"Import!E28012","v":"Select"},{"$f":"Import!E28112","v":"Select"},{"$f":"Import!E28212","v":"Select"},{"$f":"Import!E28312","v":0},{"$f":"Import!E28412","v":0},{"$f":"Import!E28512","v":0},{"$f":"Import!E28612","v":0},{"$f":"Import!E28712","v":0}]
[69,{"$f":"Import!E28013","v":"Select"},{"$f":"Import!E28113","v":"Select"},{"$f":"Import!E28213","v":"Select"},{"$f":"Import!E28313","v":0},{"$f":"Import!E28413","v":0},{"$f":"Import!E28513","v":0},{"$f":"Import!E28613","v":0},{"$f":"Import!E28713","v":0}]
[70,{"$f":"Import!E28014","v":"Select"},{"$f":"Import!E28114","v":"Select"},{"$f":"Import!E28214","v":"Select"},{"$f":"Import!E28314","v":0},{"$f":"Import!E28414","v":0},{"$f":"Import!E28514","v":0},{"$f":"Import!E28614","v":0},{"$f":"Import!E28714","v":0}]
[71,{"$f":"Import!E28015","v":"Select"},{"$f":"Import!E28115","v":"Select"},{"$f":"Import!E28215","v":"Select"},{"$f":"Import!E28315","v":0},{"$f":"Import!E28415","v":0},{"$f":"Import!E28515","v":0},{"$f":"Import!E28615","v":0},{"$f":"Import!E28715","v":0}]
[72,{"$f":"Import!E28016","v":"Select"},{"$f":"Import!E28116","v":"Select"},{"$f":"Import!E28216","v":"Select"},{"$f":"Import!E28316","v":0},{"$f":"Import!E28416","v":0},{"$f":"Import!E28516","v":0},{"$f":"Import!E28616","v":0},{"$f":"Import!E28716","v":0}]
[73,{"$f":"Import!E28017","v":"Select"},{"$f":"Import!E28117","v":"Select"},{"$f":"Import!E28217","v":"Select"},{"$f":"Import!E28317","v":0},{"$f":"Import!E28417","v":0},{"$f":"Import!E28517","v":0},{"$f":"Import!E28617","v":0},{"$f":"Import!E28717","v":0}]
[74,{"$f":"Import!E28018","v":"Select"},{"$f":"Import!E28118","v":"Select"},{"$f":"Import!E28218","v":"Select"},{"$f":"Import!E28318","v":0},{"$f":"Import!E28418","v":0},{"$f":"Import!E28518","v":0},{"$f":"Import!E28618","v":0},{"$f":"Import!E28718","v":0}]
[75,{"$f":"Import!E28019","v":"Select"},{"$f":"Import!E28119","v":"Select"},{"$f":"Import!E28219","v":"Select"},{"$f":"Import!E28319","v":0},{"$f":"Import!E28419","v":0},{"$f":"Import!E28519","v":0},{"$f":"Import!E28619","v":0},{"$f":"Import!E28719","v":0}]
[76,{"$f":"Import!E28020","v":"Select"},{"$f":"Import!E28120","v":"Select"},{"$f":"Import!E28220","v":"Select"},{"$f":"Import!E28320","v":0},{"$f":"Import!E28420","v":0},{"$f":"Import!E28520","v":0},{"$f":"Import!E28620","v":0},{"$f":"Import!E28720","v":0}]
[77,{"$f":"Import!E28021","v":"Select"},{"$f":"Import!E28121","v":"Select"},{"$f":"Import!E28221","v":"Select"},{"$f":"Import!E28321","v":0},{"$f":"Import!E28421","v":0},{"$f":"Import!E28521","v":0},{"$f":"Import!E28621","v":0},{"$f":"Import!E28721","v":0}]
[78,{"$f":"Import!E28022","v":"Select"},{"$f":"Import!E28122","v":"Select"},{"$f":"Import!E28222","v":"Select"},{"$f":"Import!E28322","v":0},{"$f":"Import!E28422","v":0},{"$f":"Import!E28522","v":0},{"$f":"Import!E28622","v":0},{"$f":"Import!E28722","v":0}]
[79,{"$f":"Import!E28023","v":"Select"},{"$f":"Import!E28123","v":"Select"},{"$f":"Import!E28223","v":"Select"},{"$f":"Import!E28323","v":0},{"$f":"Import!E28423","v":0},{"$f":"Import!E28523","v":0},{"$f":"Import!E28623","v":0},{"$f":"Import!E28723","v":0}]
[80,{"$f":"Import!E28024","v":"Select"},{"$f":"Import!E28124","v":"Select"},{"$f":"Import!E28224","v":"Select"},{"$f":"Import!E28324","v":0},{"$f":"Import!E28424","v":0},{"$f":"Import!E28524","v":0},{"$f":"Import!E28624","v":0},{"$f":"Import!E28724","v":0}]
[81,{"$f":"Import!E28025","v":"Select"},{"$f":"Import!E28125","v":"Select"},{"$f":"Import!E28225","v":"Select"},{"$f":"Import!E28325","v":0},{"$f":"Import!E28425","v":0},{"$f":"Import!E28525","v":0},{"$f":"Import!E28625","v":0},{"$f":"Import!E28725","v":0}]
[82,{"$f":"Import!E28026","v":"Select"},{"$f":"Import!E28126","v":"Select"},{"$f":"Import!E28226","v":"Select"},{"$f":"Import!E28326","v":0},{"$f":"Import!E28426","v":0},{"$f":"Import!E28526","v":0},{"$f":"Import!E28626","v":0},{"$f":"Import!E28726","v":0}]
[83,{"$f":"Import!E28027","v":"Select"},{"$f":"Import!E28127","v":"Select"},{"$f":"Import!E28227","v":"Select"},{"$f":"Import!E28327","v":0},{"$f":"Import!E28427","v":0},{"$f":"Import!E28527","v":0},{"$f":"Import!E28627","v":0},{"$f":"Import!E28727","v":0}]
[84,{"$f":"Import!E28028","v":"Select"},{"$f":"Import!E28128","v":"Select"},{"$f":"Import!E28228","v":"Select"},{"$f":"Import!E28328","v":0},{"$f":"Import!E28428","v":0},{"$f":"Import!E28528","v":0},{"$f":"Import!E28628","v":0},{"$f":"Import!E28728","v":0}]
[85,{"$f":"Import!E28029","v":"Select"},{"$f":"Import!E28129","v":"Select"},{"$f":"Import!E28229","v":"Select"},{"$f":"Import!E28329","v":0},{"$f":"Import!E28429","v":0},{"$f":"Import!E28529","v":0},{"$f":"Import!E28629","v":0},{"$f":"Import!E28729","v":0}]
[86,{"$f":"Import!E28030","v":"Select"},{"$f":"Import!E28130","v":"Select"},{"$f":"Import!E28230","v":"Select"},{"$f":"Import!E28330","v":0},{"$f":"Import!E28430","v":0},{"$f":"Import!E28530","v":0},{"$f":"Import!E28630","v":0},{"$f":"Import!E28730","v":0}]
[87,{"$f":"Import!E28031","v":"Select"},{"$f":"Import!E28131","v":"Select"},{"$f":"Import!E28231","v":"Select"},{"$f":"Import!E28331","v":0},{"$f":"Import!E28431","v":0},{"$f":"Import!E28531","v":0},{"$f":"Import!E28631","v":0},{"$f":"Import!E28731","v":0}]
[88,{"$f":"Import!E28032","v":"Select"},{"$f":"Import!E28132","v":"Select"},{"$f":"Import!E28232","v":"Select"},{"$f":"Import!E28332","v":0},{"$f":"Import!E28432","v":0},{"$f":"Import!E28532","v":0},{"$f":"Import!E28632","v":0},{"$f":"Import!E28732","v":0}]
[89,{"$f":"Import!E28033","v":"Select"},{"$f":"Import!E28133","v":"Select"},{"$f":"Import!E28233","v":"Select"},{"$f":"Import!E28333","v":0},{"$f":"Import!E28433","v":0},{"$f":"Import!E28533","v":0},{"$f":"Import!E28633","v":0},{"$f":"Import!E28733","v":0}]
[90,{"$f":"Import!E28034","v":"Select"},{"$f":"Import!E28134","v":"Select"},{"$f":"Import!E28234","v":"Select"},{"$f":"Import!E28334","v":0},{"$f":"Import!E28434","v":0},{"$f":"Import!E28534","v":0},{"$f":"Import!E28634","v":0},{"$f":"Import!E28734","v":0}]
[91,{"$f":"Import!E28035","v":"Select"},{"$f":"Import!E28135","v":"Select"},{"$f":"Import!E28235","v":"Select"},{"$f":"Import!E28335","v":0},{"$f":"Import!E28435","v":0},{"$f":"Import!E28535","v":0},{"$f":"Import!E28635","v":0},{"$f":"Import!E28735","v":0}]
[92,{"$f":"Import!E28036","v":"Select"},{"$f":"Import!E28136","v":"Select"},{"$f":"Import!E28236","v":"Select"},{"$f":"Import!E28336","v":0},{"$f":"Import!E28436","v":0},{"$f":"Import!E28536","v":0},{"$f":"Import!E28636","v":0},{"$f":"Import!E28736","v":0}]
[93,{"$f":"Import!E28037","v":"Select"},{"$f":"Import!E28137","v":"Select"},{"$f":"Import!E28237","v":"Select"},{"$f":"Import!E28337","v":0},{"$f":"Import!E28437","v":0},{"$f":"Import!E28537","v":0},{"$f":"Import!E28637","v":0},{"$f":"Import!E28737","v":0}]
[94,{"$f":"Import!E28038","v":"Select"},{"$f":"Import!E28138","v":"Select"},{"$f":"Import!E28238","v":"Select"},{"$f":"Import!E28338","v":0},{"$f":"Import!E28438","v":0},{"$f":"Import!E28538","v":0},{"$f":"Import!E28638","v":0},{"$f":"Import!E28738","v":0}]
[95,{"$f":"Import!E28039","v":"Select"},{"$f":"Import!E28139","v":"Select"},{"$f":"Import!E28239","v":"Select"},{"$f":"Import!E28339","v":0},{"$f":"Import!E28439","v":0},{"$f":"Import!E28539","v":0},{"$f":"Import!E28639","v":0},{"$f":"Import!E28739","v":0}]
[96,{"$f":"Import!E28040","v":"Select"},{"$f":"Import!E28140","v":"Select"},{"$f":"Import!E28240","v":"Select"},{"$f":"Import!E28340","v":0},{"$f":"Import!E28440","v":0},{"$f":"Import!E28540","v":0},{"$f":"Import!E28640","v":0},{"$f":"Import!E28740","v":0}]
[97,{"$f":"Import!E28041","v":"Select"},{"$f":"Import!E28141","v":"Select"},{"$f":"Import!E28241","v":"Select"},{"$f":"Import!E28341","v":0},{"$f":"Import!E28441","v":0},{"$f":"Import!E28541","v":0},{"$f":"Import!E28641","v":0},{"$f":"Import!E28741","v":0}]
[98,{"$f":"Import!E28042","v":"Select"},{"$f":"Import!E28142","v":"Select"},{"$f":"Import!E28242","v":"Select"},{"$f":"Import!E28342","v":0},{"$f":"Import!E28442","v":0},{"$f":"Import!E28542","v":0},{"$f":"Import!E28642","v":0},{"$f":"Import!E28742","v":0}]
[99,{"$f":"Import!E28043","v":"Select"},{"$f":"Import!E28143","v":"Select"},{"$f":"Import!E28243","v":"Select"},{"$f":"Import!E28343","v":0},{"$f":"Import!E28443","v":0},{"$f":"Import!E28543","v":0},{"$f":"Import!E28643","v":0},{"$f":"Import!E28743","v":0}]
[100,{"$f":"Import!E28044","v":"Select"},{"$f":"Import!E28144","v":"Select"},{"$f":"Import!E28244","v":"Select"},{"$f":"Import!E28344","v":0},{"$f":"Import!E28444","v":0},{"$f":"Import!E28544","v":0},{"$f":"Import!E28644","v":0},{"$f":"Import!E28744","v":0}]
[]
[null,"Total Preferred Equities",null,null,{"$f":"SUM(E1129:E1228)","v":0},{"$f":"SUM(F1129:F1228)","v":0},{"$f":"IFERROR(SUMPRODUCT(G1129:G1228,$F1129:$F1228)/SUM($F1129:$F1228),0)","v":0},{"$f":"IFERROR(SUMPRODUCT(H1129:H1228,$F1129:$F1228)/SUM($F1129:$F1228),0)","v":0}]
[]
[null,"(F) COMMON EQUITIES"]
[]
[null,null,"Enter # of Asset Types",{"$f":"Import!E28745","v":0}]
[null,null,null,null,{"$f":"YEAR($C$3)","v":2023}]
[null,"Asset Type","Currency","Country","Fair Value","Comments"]
[1,{"$f":"Import!E28746","v":"Select"},{"$f":"Import!E28846","v":"Select"},{"$f":"Import!E28946","v":"Select"},{"$f":"Import!E29046","v":0},{"$f":"Import!E29146","v":0}]
[{"$f":"A1237+1","v":2},{"$f":"Import!E28747","v":"Select"},{"$f":"Import!E28847","v":"Select"},{"$f":"Import!E28947","v":"Select"},{"$f":"Import!E29047","v":0},{"$f":"Import!E29147","v":0}]
[{"$f":"A1238+1","v":3},{"$f":"Import!E28748","v":"Select"},{"$f":"Import!E28848","v":"Select"},{"$f":"Import!E28948","v":"Select"},{"$f":"Import!E29048","v":0},{"$f":"Import!E29148","v":0}]
[4,{"$f":"Import!E28749","v":"Select"},{"$f":"Import!E28849","v":"Select"},{"$f":"Import!E28949","v":"Select"},{"$f":"Import!E29049","v":0},{"$f":"Import!E29149","v":0}]
[5,{"$f":"Import!E28750","v":"Select"},{"$f":"Import!E28850","v":"Select"},{"$f":"Import!E28950","v":"Select"},{"$f":"Import!E29050","v":0},{"$f":"Import!E29150","v":0}]
[6,{"$f":"Import!E28751","v":"Select"},{"$f":"Import!E28851","v":"Select"},{"$f":"Import!E28951","v":"Select"},{"$f":"Import!E29051","v":0},{"$f":"Import!E29151","v":0}]
[7,{"$f":"Import!E28752","v":"Select"},{"$f":"Import!E28852","v":"Select"},{"$f":"Import!E28952","v":"Select"},{"$f":"Import!E29052","v":0},{"$f":"Import!E29152","v":0}]
[8,{"$f":"Import!E28753","v":"Select"},{"$f":"Import!E28853","v":"Select"},{"$f":"Import!E28953","v":"Select"},{"$f":"Import!E29053","v":0},{"$f":"Import!E29153","v":0}]
[9,{"$f":"Import!E28754","v":"Select"},{"$f":"Import!E28854","v":"Select"},{"$f":"Import!E28954","v":"Select"},{"$f":"Import!E29054","v":0},{"$f":"Import!E29154","v":0}]
[10,{"$f":"Import!E28755","v":"Select"},{"$f":"Import!E28855","v":"Select"},{"$f":"Import!E28955","v":"Select"},{"$f":"Import!E29055","v":0},{"$f":"Import!E29155","v":0}]
[11,{"$f":"Import!E28756","v":"Select"},{"$f":"Import!E28856","v":"Select"},{"$f":"Import!E28956","v":"Select"},{"$f":"Import!E29056","v":0},{"$f":"Import!E29156","v":0}]
[12,{"$f":"Import!E28757","v":"Select"},{"$f":"Import!E28857","v":"Select"},{"$f":"Import!E28957","v":"Select"},{"$f":"Import!E29057","v":0},{"$f":"Import!E29157","v":0}]
[13,{"$f":"Import!E28758","v":"Select"},{"$f":"Import!E28858","v":"Select"},{"$f":"Import!E28958","v":"Select"},{"$f":"Import!E29058","v":0},{"$f":"Import!E29158","v":0}]
[14,{"$f":"Import!E28759","v":"Select"},{"$f":"Import!E28859","v":"Select"},{"$f":"Import!E28959","v":"Select"},{"$f":"Import!E29059","v":0},{"$f":"Import!E29159","v":0}]
[15,{"$f":"Import!E28760","v":"Select"},{"$f":"Import!E28860","v":"Select"},{"$f":"Import!E28960","v":"Select"},{"$f":"Import!E29060","v":0},{"$f":"Import!E29160","v":0}]
[16,{"$f":"Import!E28761","v":"Select"},{"$f":"Import!E28861","v":"Select"},{"$f":"Import!E28961","v":"Select"},{"$f":"Import!E29061","v":0},{"$f":"Import!E29161","v":0}]
[17,{"$f":"Import!E28762","v":"Select"},{"$f":"Import!E28862","v":"Select"},{"$f":"Import!E28962","v":"Select"},{"$f":"Import!E29062","v":0},{"$f":"Import!E29162","v":0}]
[18,{"$f":"Import!E28763","v":"Select"},{"$f":"Import!E28863","v":"Select"},{"$f":"Import!E28963","v":"Select"},{"$f":"Import!E29063","v":0},{"$f":"Import!E29163","v":0}]
[19,{"$f":"Import!E28764","v":"Select"},{"$f":"Import!E28864","v":"Select"},{"$f":"Import!E28964","v":"Select"},{"$f":"Import!E29064","v":0},{"$f":"Import!E29164","v":0}]
[20,{"$f":"Import!E28765","v":"Select"},{"$f":"Import!E28865","v":"Select"},{"$f":"Import!E28965","v":"Select"},{"$f":"Import!E29065","v":0},{"$f":"Import!E29165","v":0}]
[21,{"$f":"Import!E28766","v":"Select"},{"$f":"Import!E28866","v":"Select"},{"$f":"Import!E28966","v":"Select"},{"$f":"Import!E29066","v":0},{"$f":"Import!E29166","v":0}]
[22,{"$f":"Import!E28767","v":"Select"},{"$f":"Import!E28867","v":"Select"},{"$f":"Import!E28967","v":"Select"},{"$f":"Import!E29067","v":0},{"$f":"Import!E29167","v":0}]
[23,{"$f":"Import!E28768","v":"Select"},{"$f":"Import!E28868","v":"Select"},{"$f":"Import!E28968","v":"Select"},{"$f":"Import!E29068","v":0},{"$f":"Import!E29168","v":0}]
[24,{"$f":"Import!E28769","v":"Select"},{"$f":"Import!E28869","v":"Select"},{"$f":"Import!E28969","v":"Select"},{"$f":"Import!E29069","v":0},{"$f":"Import!E29169","v":0}]
[25,{"$f":"Import!E28770","v":"Select"},{"$f":"Import!E28870","v":"Select"},{"$f":"Import!E28970","v":"Select"},{"$f":"Import!E29070","v":0},{"$f":"Import!E29170","v":0}]
[26,{"$f":"Import!E28771","v":"Select"},{"$f":"Import!E28871","v":"Select"},{"$f":"Import!E28971","v":"Select"},{"$f":"Import!E29071","v":0},{"$f":"Import!E29171","v":0}]
[27,{"$f":"Import!E28772","v":"Select"},{"$f":"Import!E28872","v":"Select"},{"$f":"Import!E28972","v":"Select"},{"$f":"Import!E29072","v":0},{"$f":"Import!E29172","v":0}]
[28,{"$f":"Import!E28773","v":"Select"},{"$f":"Import!E28873","v":"Select"},{"$f":"Import!E28973","v":"Select"},{"$f":"Import!E29073","v":0},{"$f":"Import!E29173","v":0}]
[29,{"$f":"Import!E28774","v":"Select"},{"$f":"Import!E28874","v":"Select"},{"$f":"Import!E28974","v":"Select"},{"$f":"Import!E29074","v":0},{"$f":"Import!E29174","v":0}]
[30,{"$f":"Import!E28775","v":"Select"},{"$f":"Import!E28875","v":"Select"},{"$f":"Import!E28975","v":"Select"},{"$f":"Import!E29075","v":0},{"$f":"Import!E29175","v":0}]
[31,{"$f":"Import!E28776","v":"Select"},{"$f":"Import!E28876","v":"Select"},{"$f":"Import!E28976","v":"Select"},{"$f":"Import!E29076","v":0},{"$f":"Import!E29176","v":0}]
[32,{"$f":"Import!E28777","v":"Select"},{"$f":"Import!E28877","v":"Select"},{"$f":"Import!E28977","v":"Select"},{"$f":"Import!E29077","v":0},{"$f":"Import!E29177","v":0}]
[33,{"$f":"Import!E28778","v":"Select"},{"$f":"Import!E28878","v":"Select"},{"$f":"Import!E28978","v":"Select"},{"$f":"Import!E29078","v":0},{"$f":"Import!E29178","v":0}]
[34,{"$f":"Import!E28779","v":"Select"},{"$f":"Import!E28879","v":"Select"},{"$f":"Import!E28979","v":"Select"},{"$f":"Import!E29079","v":0},{"$f":"Import!E29179","v":0}]
[35,{"$f":"Import!E28780","v":"Select"},{"$f":"Import!E28880","v":"Select"},{"$f":"Import!E28980","v":"Select"},{"$f":"Import!E29080","v":0},{"$f":"Import!E29180","v":0}]
[36,{"$f":"Import!E28781","v":"Select"},{"$f":"Import!E28881","v":"Select"},{"$f":"Import!E28981","v":"Select"},{"$f":"Import!E29081","v":0},{"$f":"Import!E29181","v":0}]
[37,{"$f":"Import!E28782","v":"Select"},{"$f":"Import!E28882","v":"Select"},{"$f":"Import!E28982","v":"Select"},{"$f":"Import!E29082","v":0},{"$f":"Import!E29182","v":0}]
[38,{"$f":"Import!E28783","v":"Select"},{"$f":"Import!E28883","v":"Select"},{"$f":"Import!E28983","v":"Select"},{"$f":"Import!E29083","v":0},{"$f":"Import!E29183","v":0}]
[39,{"$f":"Import!E28784","v":"Select"},{"$f":"Import!E28884","v":"Select"},{"$f":"Import!E28984","v":"Select"},{"$f":"Import!E29084","v":0},{"$f":"Import!E29184","v":0}]
[40,{"$f":"Import!E28785","v":"Select"},{"$f":"Import!E28885","v":"Select"},{"$f":"Import!E28985","v":"Select"},{"$f":"Import!E29085","v":0},{"$f":"Import!E29185","v":0}]
[41,{"$f":"Import!E28786","v":"Select"},{"$f":"Import!E28886","v":"Select"},{"$f":"Import!E28986","v":"Select"},{"$f":"Import!E29086","v":0},{"$f":"Import!E29186","v":0}]
[42,{"$f":"Import!E28787","v":"Select"},{"$f":"Import!E28887","v":"Select"},{"$f":"Import!E28987","v":"Select"},{"$f":"Import!E29087","v":0},{"$f":"Import!E29187","v":0}]
[43,{"$f":"Import!E28788","v":"Select"},{"$f":"Import!E28888","v":"Select"},{"$f":"Import!E28988","v":"Select"},{"$f":"Import!E29088","v":0},{"$f":"Import!E29188","v":0}]
[44,{"$f":"Import!E28789","v":"Select"},{"$f":"Import!E28889","v":"Select"},{"$f":"Import!E28989","v":"Select"},{"$f":"Import!E29089","v":0},{"$f":"Import!E29189","v":0}]
[45,{"$f":"Import!E28790","v":"Select"},{"$f":"Import!E28890","v":"Select"},{"$f":"Import!E28990","v":"Select"},{"$f":"Import!E29090","v":0},{"$f":"Import!E29190","v":0}]
[46,{"$f":"Import!E28791","v":"Select"},{"$f":"Import!E28891","v":"Select"},{"$f":"Import!E28991","v":"Select"},{"$f":"Import!E29091","v":0},{"$f":"Import!E29191","v":0}]
[47,{"$f":"Import!E28792","v":"Select"},{"$f":"Import!E28892","v":"Select"},{"$f":"Import!E28992","v":"Select"},{"$f":"Import!E29092","v":0},{"$f":"Import!E29192","v":0}]
[48,{"$f":"Import!E28793","v":"Select"},{"$f":"Import!E28893","v":"Select"},{"$f":"Import!E28993","v":"Select"},{"$f":"Import!E29093","v":0},{"$f":"Import!E29193","v":0}]
[49,{"$f":"Import!E28794","v":"Select"},{"$f":"Import!E28894","v":"Select"},{"$f":"Import!E28994","v":"Select"},{"$f":"Import!E29094","v":0},{"$f":"Import!E29194","v":0}]
[50,{"$f":"Import!E28795","v":"Select"},{"$f":"Import!E28895","v":"Select"},{"$f":"Import!E28995","v":"Select"},{"$f":"Import!E29095","v":0},{"$f":"Import!E29195","v":0}]
[51,{"$f":"Import!E28796","v":"Select"},{"$f":"Import!E28896","v":"Select"},{"$f":"Import!E28996","v":"Select"},{"$f":"Import!E29096","v":0},{"$f":"Import!E29196","v":0}]
[52,{"$f":"Import!E28797","v":"Select"},{"$f":"Import!E28897","v":"Select"},{"$f":"Import!E28997","v":"Select"},{"$f":"Import!E29097","v":0},{"$f":"Import!E29197","v":0}]
[53,{"$f":"Import!E28798","v":"Select"},{"$f":"Import!E28898","v":"Select"},{"$f":"Import!E28998","v":"Select"},{"$f":"Import!E29098","v":0},{"$f":"Import!E29198","v":0}]
[54,{"$f":"Import!E28799","v":"Select"},{"$f":"Import!E28899","v":"Select"},{"$f":"Import!E28999","v":"Select"},{"$f":"Import!E29099","v":0},{"$f":"Import!E29199","v":0}]
[55,{"$f":"Import!E28800","v":"Select"},{"$f":"Import!E28900","v":"Select"},{"$f":"Import!E29000","v":"Select"},{"$f":"Import!E29100","v":0},{"$f":"Import!E29200","v":0}]
[56,{"$f":"Import!E28801","v":"Select"},{"$f":"Import!E28901","v":"Select"},{"$f":"Import!E29001","v":"Select"},{"$f":"Import!E29101","v":0},{"$f":"Import!E29201","v":0}]
[57,{"$f":"Import!E28802","v":"Select"},{"$f":"Import!E28902","v":"Select"},{"$f":"Import!E29002","v":"Select"},{"$f":"Import!E29102","v":0},{"$f":"Import!E29202","v":0}]
[58,{"$f":"Import!E28803","v":"Select"},{"$f":"Import!E28903","v":"Select"},{"$f":"Import!E29003","v":"Select"},{"$f":"Import!E29103","v":0},{"$f":"Import!E29203","v":0}]
[59,{"$f":"Import!E28804","v":"Select"},{"$f":"Import!E28904","v":"Select"},{"$f":"Import!E29004","v":"Select"},{"$f":"Import!E29104","v":0},{"$f":"Import!E29204","v":0}]
[60,{"$f":"Import!E28805","v":"Select"},{"$f":"Import!E28905","v":"Select"},{"$f":"Import!E29005","v":"Select"},{"$f":"Import!E29105","v":0},{"$f":"Import!E29205","v":0}]
[61,{"$f":"Import!E28806","v":"Select"},{"$f":"Import!E28906","v":"Select"},{"$f":"Import!E29006","v":"Select"},{"$f":"Import!E29106","v":0},{"$f":"Import!E29206","v":0}]
[62,{"$f":"Import!E28807","v":"Select"},{"$f":"Import!E28907","v":"Select"},{"$f":"Import!E29007","v":"Select"},{"$f":"Import!E29107","v":0},{"$f":"Import!E29207","v":0}]
[63,{"$f":"Import!E28808","v":"Select"},{"$f":"Import!E28908","v":"Select"},{"$f":"Import!E29008","v":"Select"},{"$f":"Import!E29108","v":0},{"$f":"Import!E29208","v":0}]
[64,{"$f":"Import!E28809","v":"Select"},{"$f":"Import!E28909","v":"Select"},{"$f":"Import!E29009","v":"Select"},{"$f":"Import!E29109","v":0},{"$f":"Import!E29209","v":0}]
[65,{"$f":"Import!E28810","v":"Select"},{"$f":"Import!E28910","v":"Select"},{"$f":"Import!E29010","v":"Select"},{"$f":"Import!E29110","v":0},{"$f":"Import!E29210","v":0}]
[66,{"$f":"Import!E28811","v":"Select"},{"$f":"Import!E28911","v":"Select"},{"$f":"Import!E29011","v":"Select"},{"$f":"Import!E29111","v":0},{"$f":"Import!E29211","v":0}]
[{"$f":"A1302+1","v":67},{"$f":"Import!E28812","v":"Select"},{"$f":"Import!E28912","v":"Select"},{"$f":"Import!E29012","v":"Select"},{"$f":"Import!E29112","v":0},{"$f":"Import!E29212","v":0}]
[68,{"$f":"Import!E28813","v":"Select"},{"$f":"Import!E28913","v":"Select"},{"$f":"Import!E29013","v":"Select"},{"$f":"Import!E29113","v":0},{"$f":"Import!E29213","v":0}]
[69,{"$f":"Import!E28814","v":"Select"},{"$f":"Import!E28914","v":"Select"},{"$f":"Import!E29014","v":"Select"},{"$f":"Import!E29114","v":0},{"$f":"Import!E29214","v":0}]
[70,{"$f":"Import!E28815","v":"Select"},{"$f":"Import!E28915","v":"Select"},{"$f":"Import!E29015","v":"Select"},{"$f":"Import!E29115","v":0},{"$f":"Import!E29215","v":0}]
[71,{"$f":"Import!E28816","v":"Select"},{"$f":"Import!E28916","v":"Select"},{"$f":"Import!E29016","v":"Select"},{"$f":"Import!E29116","v":0},{"$f":"Import!E29216","v":0}]
[72,{"$f":"Import!E28817","v":"Select"},{"$f":"Import!E28917","v":"Select"},{"$f":"Import!E29017","v":"Select"},{"$f":"Import!E29117","v":0},{"$f":"Import!E29217","v":0}]
[73,{"$f":"Import!E28818","v":"Select"},{"$f":"Import!E28918","v":"Select"},{"$f":"Import!E29018","v":"Select"},{"$f":"Import!E29118","v":0},{"$f":"Import!E29218","v":0}]
[74,{"$f":"Import!E28819","v":"Select"},{"$f":"Import!E28919","v":"Select"},{"$f":"Import!E29019","v":"Select"},{"$f":"Import!E29119","v":0},{"$f":"Import!E29219","v":0}]
[75,{"$f":"Import!E28820","v":"Select"},{"$f":"Import!E28920","v":"Select"},{"$f":"Import!E29020","v":"Select"},{"$f":"Import!E29120","v":0},{"$f":"Import!E29220","v":0}]
[76,{"$f":"Import!E28821","v":"Select"},{"$f":"Import!E28921","v":"Select"},{"$f":"Import!E29021","v":"Select"},{"$f":"Import!E29121","v":0},{"$f":"Import!E29221","v":0}]
[77,{"$f":"Import!E28822","v":"Select"},{"$f":"Import!E28922","v":"Select"},{"$f":"Import!E29022","v":"Select"},{"$f":"Import!E29122","v":0},{"$f":"Import!E29222","v":0}]
[78,{"$f":"Import!E28823","v":"Select"},{"$f":"Import!E28923","v":"Select"},{"$f":"Import!E29023","v":"Select"},{"$f":"Import!E29123","v":0},{"$f":"Import!E29223","v":0}]
[79,{"$f":"Import!E28824","v":"Select"},{"$f":"Import!E28924","v":"Select"},{"$f":"Import!E29024","v":"Select"},{"$f":"Import!E29124","v":0},{"$f":"Import!E29224","v":0}]
[80,{"$f":"Import!E28825","v":"Select"},{"$f":"Import!E28925","v":"Select"},{"$f":"Import!E29025","v":"Select"},{"$f":"Import!E29125","v":0},{"$f":"Import!E29225","v":0}]
[81,{"$f":"Import!E28826","v":"Select"},{"$f":"Import!E28926","v":"Select"},{"$f":"Import!E29026","v":"Select"},{"$f":"Import!E29126","v":0},{"$f":"Import!E29226","v":0}]
[82,{"$f":"Import!E28827","v":"Select"},{"$f":"Import!E28927","v":"Select"},{"$f":"Import!E29027","v":"Select"},{"$f":"Import!E29127","v":0},{"$f":"Import!E29227","v":0}]
[83,{"$f":"Import!E28828","v":"Select"},{"$f":"Import!E28928","v":"Select"},{"$f":"Import!E29028","v":"Select"},{"$f":"Import!E29128","v":0},{"$f":"Import!E29228","v":0}]
[84,{"$f":"Import!E28829","v":"Select"},{"$f":"Import!E28929","v":"Select"},{"$f":"Import!E29029","v":"Select"},{"$f":"Import!E29129","v":0},{"$f":"Import!E29229","v":0}]
[85,{"$f":"Import!E28830","v":"Select"},{"$f":"Import!E28930","v":"Select"},{"$f":"Import!E29030","v":"Select"},{"$f":"Import!E29130","v":0},{"$f":"Import!E29230","v":0}]
[86,{"$f":"Import!E28831","v":"Select"},{"$f":"Import!E28931","v":"Select"},{"$f":"Import!E29031","v":"Select"},{"$f":"Import!E29131","v":0},{"$f":"Import!E29231","v":0}]
[87,{"$f":"Import!E28832","v":"Select"},{"$f":"Import!E28932","v":"Select"},{"$f":"Import!E29032","v":"Select"},{"$f":"Import!E29132","v":0},{"$f":"Import!E29232","v":0}]
[88,{"$f":"Import!E28833","v":"Select"},{"$f":"Import!E28933","v":"Select"},{"$f":"Import!E29033","v":"Select"},{"$f":"Import!E29133","v":0},{"$f":"Import!E29233","v":0}]
[89,{"$f":"Import!E28834","v":"Select"},{"$f":"Import!E28934","v":"Select"},{"$f":"Import!E29034","v":"Select"},{"$f":"Import!E29134","v":0},{"$f":"Import!E29234","v":0}]
[90,{"$f":"Import!E28835","v":"Select"},{"$f":"Import!E28935","v":"Select"},{"$f":"Import!E29035","v":"Select"},{"$f":"Import!E29135","v":0},{"$f":"Import!E29235","v":0}]
[91,{"$f":"Import!E28836","v":"Select"},{"$f":"Import!E28936","v":"Select"},{"$f":"Import!E29036","v":"Select"},{"$f":"Import!E29136","v":0},{"$f":"Import!E29236","v":0}]
[92,{"$f":"Import!E28837","v":"Select"},{"$f":"Import!E28937","v":"Select"},{"$f":"Import!E29037","v":"Select"},{"$f":"Import!E29137","v":0},{"$f":"Import!E29237","v":0}]
[93,{"$f":"Import!E28838","v":"Select"},{"$f":"Import!E28938","v":"Select"},{"$f":"Import!E29038","v":"Select"},{"$f":"Import!E29138","v":0},{"$f":"Import!E29238","v":0}]
[94,{"$f":"Import!E28839","v":"Select"},{"$f":"Import!E28939","v":"Select"},{"$f":"Import!E29039","v":"Select"},{"$f":"Import!E29139","v":0},{"$f":"Import!E29239","v":0}]
[95,{"$f":"Import!E28840","v":"Select"},{"$f":"Import!E28940","v":"Select"},{"$f":"Import!E29040","v":"Select"},{"$f":"Import!E29140","v":0},{"$f":"Import!E29240","v":0}]
[96,{"$f":"Import!E28841","v":"Select"},{"$f":"Import!E28941","v":"Select"},{"$f":"Import!E29041","v":"Select"},{"$f":"Import!E29141","v":0},{"$f":"Import!E29241","v":0}]
[97,{"$f":"Import!E28842","v":"Select"},{"$f":"Import!E28942","v":"Select"},{"$f":"Import!E29042","v":"Select"},{"$f":"Import!E29142","v":0},{"$f":"Import!E29242","v":0}]
[98,{"$f":"Import!E28843","v":"Select"},{"$f":"Import!E28943","v":"Select"},{"$f":"Import!E29043","v":"Select"},{"$f":"Import!E29143","v":0},{"$f":"Import!E29243","v":0}]
[99,{"$f":"Import!E28844","v":"Select"},{"$f":"Import!E28944","v":"Select"},{"$f":"Import!E29044","v":"Select"},{"$f":"Import!E29144","v":0},{"$f":"Import!E29244","v":0}]
[100,{"$f":"Import!E28845","v":"Select"},{"$f":"Import!E28945","v":"Select"},{"$f":"Import!E29045","v":"Select"},{"$f":"Import!E29145","v":0},{"$f":"Import!E29245","v":0}]
[]
[null,"Total Common Equities",null,null,{"$f":"SUM(E1237:E1336)","v":0}]
[]
[null,"(G) REAL ESTATE"]
[]
[null,null,"Enter # of Asset Types",{"$f":"Import!E29246","v":0}]
[null,null,null,null,null,{"$f":"YEAR($C$3)","v":2023},2023]
[null,"Asset Type","Currency","Country","Purpose","Cost","Fair Value","Comments"]
[1,{"$f":"Import!E29247","v":"Select"},{"$f":"Import!E29347","v":"Select"},{"$f":"Import!E29447","v":"Select"},{"$f":"Import!E29547","v":"Select"},{"$f":"Import!E29647","v":0},{"$f":"Import!E29747","v":0},{"$f":"Import!E29847","v":0}]
[{"$f":"A1345+1","v":2},{"$f":"Import!E29248","v":"Select"},{"$f":"Import!E29348","v":"Select"},{"$f":"Import!E29448","v":"Select"},{"$f":"Import!E29548","v":"Select"},{"$f":"Import!E29648","v":0},{"$f":"Import!E29748","v":0},{"$f":"Import!E29848","v":0}]
[{"$f":"A1346+1","v":3},{"$f":"Import!E29249","v":"Select"},{"$f":"Import!E29349","v":"Select"},{"$f":"Import!E29449","v":"Select"},{"$f":"Import!E29549","v":"Select"},{"$f":"Import!E29649","v":0},{"$f":"Import!E29749","v":0},{"$f":"Import!E29849","v":0}]
[4,{"$f":"Import!E29250","v":"Select"},{"$f":"Import!E29350","v":"Select"},{"$f":"Import!E29450","v":"Select"},{"$f":"Import!E29550","v":"Select"},{"$f":"Import!E29650","v":0},{"$f":"Import!E29750","v":0},{"$f":"Import!E29850","v":0}]
[5,{"$f":"Import!E29251","v":"Select"},{"$f":"Import!E29351","v":"Select"},{"$f":"Import!E29451","v":"Select"},{"$f":"Import!E29551","v":"Select"},{"$f":"Import!E29651","v":0},{"$f":"Import!E29751","v":0},{"$f":"Import!E29851","v":0}]
[6,{"$f":"Import!E29252","v":"Select"},{"$f":"Import!E29352","v":"Select"},{"$f":"Import!E29452","v":"Select"},{"$f":"Import!E29552","v":"Select"},{"$f":"Import!E29652","v":0},{"$f":"Import!E29752","v":0},{"$f":"Import!E29852","v":0}]
[7,{"$f":"Import!E29253","v":"Select"},{"$f":"Import!E29353","v":"Select"},{"$f":"Import!E29453","v":"Select"},{"$f":"Import!E29553","v":"Select"},{"$f":"Import!E29653","v":0},{"$f":"Import!E29753","v":0},{"$f":"Import!E29853","v":0}]
[8,{"$f":"Import!E29254","v":"Select"},{"$f":"Import!E29354","v":"Select"},{"$f":"Import!E29454","v":"Select"},{"$f":"Import!E29554","v":"Select"},{"$f":"Import!E29654","v":0},{"$f":"Import!E29754","v":0},{"$f":"Import!E29854","v":0}]
[9,{"$f":"Import!E29255","v":"Select"},{"$f":"Import!E29355","v":"Select"},{"$f":"Import!E29455","v":"Select"},{"$f":"Import!E29555","v":"Select"},{"$f":"Import!E29655","v":0},{"$f":"Import!E29755","v":0},{"$f":"Import!E29855","v":0}]
[10,{"$f":"Import!E29256","v":"Select"},{"$f":"Import!E29356","v":"Select"},{"$f":"Import!E29456","v":"Select"},{"$f":"Import!E29556","v":"Select"},{"$f":"Import!E29656","v":0},{"$f":"Import!E29756","v":0},{"$f":"Import!E29856","v":0}]
[11,{"$f":"Import!E29257","v":"Select"},{"$f":"Import!E29357","v":"Select"},{"$f":"Import!E29457","v":"Select"},{"$f":"Import!E29557","v":"Select"},{"$f":"Import!E29657","v":0},{"$f":"Import!E29757","v":0},{"$f":"Import!E29857","v":0}]
[12,{"$f":"Import!E29258","v":"Select"},{"$f":"Import!E29358","v":"Select"},{"$f":"Import!E29458","v":"Select"},{"$f":"Import!E29558","v":"Select"},{"$f":"Import!E29658","v":0},{"$f":"Import!E29758","v":0},{"$f":"Import!E29858","v":0}]
[13,{"$f":"Import!E29259","v":"Select"},{"$f":"Import!E29359","v":"Select"},{"$f":"Import!E29459","v":"Select"},{"$f":"Import!E29559","v":"Select"},{"$f":"Import!E29659","v":0},{"$f":"Import!E29759","v":0},{"$f":"Import!E29859","v":0}]
[14,{"$f":"Import!E29260","v":"Select"},{"$f":"Import!E29360","v":"Select"},{"$f":"Import!E29460","v":"Select"},{"$f":"Import!E29560","v":"Select"},{"$f":"Import!E29660","v":0},{"$f":"Import!E29760","v":0},{"$f":"Import!E29860","v":0}]
[15,{"$f":"Import!E29261","v":"Select"},{"$f":"Import!E29361","v":"Select"},{"$f":"Import!E29461","v":"Select"},{"$f":"Import!E29561","v":"Select"},{"$f":"Import!E29661","v":0},{"$f":"Import!E29761","v":0},{"$f":"Import!E29861","v":0}]
[16,{"$f":"Import!E29262","v":"Select"},{"$f":"Import!E29362","v":"Select"},{"$f":"Import!E29462","v":"Select"},{"$f":"Import!E29562","v":"Select"},{"$f":"Import!E29662","v":0},{"$f":"Import!E29762","v":0},{"$f":"Import!E29862","v":0}]
[17,{"$f":"Import!E29263","v":"Select"},{"$f":"Import!E29363","v":"Select"},{"$f":"Import!E29463","v":"Select"},{"$f":"Import!E29563","v":"Select"},{"$f":"Import!E29663","v":0},{"$f":"Import!E29763","v":0},{"$f":"Import!E29863","v":0}]
[18,{"$f":"Import!E29264","v":"Select"},{"$f":"Import!E29364","v":"Select"},{"$f":"Import!E29464","v":"Select"},{"$f":"Import!E29564","v":"Select"},{"$f":"Import!E29664","v":0},{"$f":"Import!E29764","v":0},{"$f":"Import!E29864","v":0}]
[19,{"$f":"Import!E29265","v":"Select"},{"$f":"Import!E29365","v":"Select"},{"$f":"Import!E29465","v":"Select"},{"$f":"Import!E29565","v":"Select"},{"$f":"Import!E29665","v":0},{"$f":"Import!E29765","v":0},{"$f":"Import!E29865","v":0}]
[20,{"$f":"Import!E29266","v":"Select"},{"$f":"Import!E29366","v":"Select"},{"$f":"Import!E29466","v":"Select"},{"$f":"Import!E29566","v":"Select"},{"$f":"Import!E29666","v":0},{"$f":"Import!E29766","v":0},{"$f":"Import!E29866","v":0}]
[21,{"$f":"Import!E29267","v":"Select"},{"$f":"Import!E29367","v":"Select"},{"$f":"Import!E29467","v":"Select"},{"$f":"Import!E29567","v":"Select"},{"$f":"Import!E29667","v":0},{"$f":"Import!E29767","v":0},{"$f":"Import!E29867","v":0}]
[22,{"$f":"Import!E29268","v":"Select"},{"$f":"Import!E29368","v":"Select"},{"$f":"Import!E29468","v":"Select"},{"$f":"Import!E29568","v":"Select"},{"$f":"Import!E29668","v":0},{"$f":"Import!E29768","v":0},{"$f":"Import!E29868","v":0}]
[23,{"$f":"Import!E29269","v":"Select"},{"$f":"Import!E29369","v":"Select"},{"$f":"Import!E29469","v":"Select"},{"$f":"Import!E29569","v":"Select"},{"$f":"Import!E29669","v":0},{"$f":"Import!E29769","v":0},{"$f":"Import!E29869","v":0}]
[24,{"$f":"Import!E29270","v":"Select"},{"$f":"Import!E29370","v":"Select"},{"$f":"Import!E29470","v":"Select"},{"$f":"Import!E29570","v":"Select"},{"$f":"Import!E29670","v":0},{"$f":"Import!E29770","v":0},{"$f":"Import!E29870","v":0}]
[25,{"$f":"Import!E29271","v":"Select"},{"$f":"Import!E29371","v":"Select"},{"$f":"Import!E29471","v":"Select"},{"$f":"Import!E29571","v":"Select"},{"$f":"Import!E29671","v":0},{"$f":"Import!E29771","v":0},{"$f":"Import!E29871","v":0}]
[26,{"$f":"Import!E29272","v":"Select"},{"$f":"Import!E29372","v":"Select"},{"$f":"Import!E29472","v":"Select"},{"$f":"Import!E29572","v":"Select"},{"$f":"Import!E29672","v":0},{"$f":"Import!E29772","v":0},{"$f":"Import!E29872","v":0}]
[27,{"$f":"Import!E29273","v":"Select"},{"$f":"Import!E29373","v":"Select"},{"$f":"Import!E29473","v":"Select"},{"$f":"Import!E29573","v":"Select"},{"$f":"Import!E29673","v":0},{"$f":"Import!E29773","v":0},{"$f":"Import!E29873","v":0}]
[28,{"$f":"Import!E29274","v":"Select"},{"$f":"Import!E29374","v":"Select"},{"$f":"Import!E29474","v":"Select"},{"$f":"Import!E29574","v":"Select"},{"$f":"Import!E29674","v":0},{"$f":"Import!E29774","v":0},{"$f":"Import!E29874","v":0}]
[29,{"$f":"Import!E29275","v":"Select"},{"$f":"Import!E29375","v":"Select"},{"$f":"Import!E29475","v":"Select"},{"$f":"Import!E29575","v":"Select"},{"$f":"Import!E29675","v":0},{"$f":"Import!E29775","v":0},{"$f":"Import!E29875","v":0}]
[30,{"$f":"Import!E29276","v":"Select"},{"$f":"Import!E29376","v":"Select"},{"$f":"Import!E29476","v":"Select"},{"$f":"Import!E29576","v":"Select"},{"$f":"Import!E29676","v":0},{"$f":"Import!E29776","v":0},{"$f":"Import!E29876","v":0}]
[31,{"$f":"Import!E29277","v":"Select"},{"$f":"Import!E29377","v":"Select"},{"$f":"Import!E29477","v":"Select"},{"$f":"Import!E29577","v":"Select"},{"$f":"Import!E29677","v":0},{"$f":"Import!E29777","v":0},{"$f":"Import!E29877","v":0}]
[32,{"$f":"Import!E29278","v":"Select"},{"$f":"Import!E29378","v":"Select"},{"$f":"Import!E29478","v":"Select"},{"$f":"Import!E29578","v":"Select"},{"$f":"Import!E29678","v":0},{"$f":"Import!E29778","v":0},{"$f":"Import!E29878","v":0}]
[33,{"$f":"Import!E29279","v":"Select"},{"$f":"Import!E29379","v":"Select"},{"$f":"Import!E29479","v":"Select"},{"$f":"Import!E29579","v":"Select"},{"$f":"Import!E29679","v":0},{"$f":"Import!E29779","v":0},{"$f":"Import!E29879","v":0}]
[34,{"$f":"Import!E29280","v":"Select"},{"$f":"Import!E29380","v":"Select"},{"$f":"Import!E29480","v":"Select"},{"$f":"Import!E29580","v":"Select"},{"$f":"Import!E29680","v":0},{"$f":"Import!E29780","v":0},{"$f":"Import!E29880","v":0}]
[35,{"$f":"Import!E29281","v":"Select"},{"$f":"Import!E29381","v":"Select"},{"$f":"Import!E29481","v":"Select"},{"$f":"Import!E29581","v":"Select"},{"$f":"Import!E29681","v":0},{"$f":"Import!E29781","v":0},{"$f":"Import!E29881","v":0}]
[36,{"$f":"Import!E29282","v":"Select"},{"$f":"Import!E29382","v":"Select"},{"$f":"Import!E29482","v":"Select"},{"$f":"Import!E29582","v":"Select"},{"$f":"Import!E29682","v":0},{"$f":"Import!E29782","v":0},{"$f":"Import!E29882","v":0}]
[37,{"$f":"Import!E29283","v":"Select"},{"$f":"Import!E29383","v":"Select"},{"$f":"Import!E29483","v":"Select"},{"$f":"Import!E29583","v":"Select"},{"$f":"Import!E29683","v":0},{"$f":"Import!E29783","v":0},{"$f":"Import!E29883","v":0}]
[38,{"$f":"Import!E29284","v":"Select"},{"$f":"Import!E29384","v":"Select"},{"$f":"Import!E29484","v":"Select"},{"$f":"Import!E29584","v":"Select"},{"$f":"Import!E29684","v":0},{"$f":"Import!E29784","v":0},{"$f":"Import!E29884","v":0}]
[39,{"$f":"Import!E29285","v":"Select"},{"$f":"Import!E29385","v":"Select"},{"$f":"Import!E29485","v":"Select"},{"$f":"Import!E29585","v":"Select"},{"$f":"Import!E29685","v":0},{"$f":"Import!E29785","v":0},{"$f":"Import!E29885","v":0}]
[40,{"$f":"Import!E29286","v":"Select"},{"$f":"Import!E29386","v":"Select"},{"$f":"Import!E29486","v":"Select"},{"$f":"Import!E29586","v":"Select"},{"$f":"Import!E29686","v":0},{"$f":"Import!E29786","v":0},{"$f":"Import!E29886","v":0}]
[41,{"$f":"Import!E29287","v":"Select"},{"$f":"Import!E29387","v":"Select"},{"$f":"Import!E29487","v":"Select"},{"$f":"Import!E29587","v":"Select"},{"$f":"Import!E29687","v":0},{"$f":"Import!E29787","v":0},{"$f":"Import!E29887","v":0}]
[42,{"$f":"Import!E29288","v":"Select"},{"$f":"Import!E29388","v":"Select"},{"$f":"Import!E29488","v":"Select"},{"$f":"Import!E29588","v":"Select"},{"$f":"Import!E29688","v":0},{"$f":"Import!E29788","v":0},{"$f":"Import!E29888","v":0}]
[43,{"$f":"Import!E29289","v":"Select"},{"$f":"Import!E29389","v":"Select"},{"$f":"Import!E29489","v":"Select"},{"$f":"Import!E29589","v":"Select"},{"$f":"Import!E29689","v":0},{"$f":"Import!E29789","v":0},{"$f":"Import!E29889","v":0}]
[44,{"$f":"Import!E29290","v":"Select"},{"$f":"Import!E29390","v":"Select"},{"$f":"Import!E29490","v":"Select"},{"$f":"Import!E29590","v":"Select"},{"$f":"Import!E29690","v":0},{"$f":"Import!E29790","v":0},{"$f":"Import!E29890","v":0}]
[45,{"$f":"Import!E29291","v":"Select"},{"$f":"Import!E29391","v":"Select"},{"$f":"Import!E29491","v":"Select"},{"$f":"Import!E29591","v":"Select"},{"$f":"Import!E29691","v":0},{"$f":"Import!E29791","v":0},{"$f":"Import!E29891","v":0}]
[46,{"$f":"Import!E29292","v":"Select"},{"$f":"Import!E29392","v":"Select"},{"$f":"Import!E29492","v":"Select"},{"$f":"Import!E29592","v":"Select"},{"$f":"Import!E29692","v":0},{"$f":"Import!E29792","v":0},{"$f":"Import!E29892","v":0}]
[47,{"$f":"Import!E29293","v":"Select"},{"$f":"Import!E29393","v":"Select"},{"$f":"Import!E29493","v":"Select"},{"$f":"Import!E29593","v":"Select"},{"$f":"Import!E29693","v":0},{"$f":"Import!E29793","v":0},{"$f":"Import!E29893","v":0}]
[48,{"$f":"Import!E29294","v":"Select"},{"$f":"Import!E29394","v":"Select"},{"$f":"Import!E29494","v":"Select"},{"$f":"Import!E29594","v":"Select"},{"$f":"Import!E29694","v":0},{"$f":"Import!E29794","v":0},{"$f":"Import!E29894","v":0}]
[49,{"$f":"Import!E29295","v":"Select"},{"$f":"Import!E29395","v":"Select"},{"$f":"Import!E29495","v":"Select"},{"$f":"Import!E29595","v":"Select"},{"$f":"Import!E29695","v":0},{"$f":"Import!E29795","v":0},{"$f":"Import!E29895","v":0}]
[50,{"$f":"Import!E29296","v":"Select"},{"$f":"Import!E29396","v":"Select"},{"$f":"Import!E29496","v":"Select"},{"$f":"Import!E29596","v":"Select"},{"$f":"Import!E29696","v":0},{"$f":"Import!E29796","v":0},{"$f":"Import!E29896","v":0}]
[51,{"$f":"Import!E29297","v":"Select"},{"$f":"Import!E29397","v":"Select"},{"$f":"Import!E29497","v":"Select"},{"$f":"Import!E29597","v":"Select"},{"$f":"Import!E29697","v":0},{"$f":"Import!E29797","v":0},{"$f":"Import!E29897","v":0}]
[52,{"$f":"Import!E29298","v":"Select"},{"$f":"Import!E29398","v":"Select"},{"$f":"Import!E29498","v":"Select"},{"$f":"Import!E29598","v":"Select"},{"$f":"Import!E29698","v":0},{"$f":"Import!E29798","v":0},{"$f":"Import!E29898","v":0}]
[53,{"$f":"Import!E29299","v":"Select"},{"$f":"Import!E29399","v":"Select"},{"$f":"Import!E29499","v":"Select"},{"$f":"Import!E29599","v":"Select"},{"$f":"Import!E29699","v":0},{"$f":"Import!E29799","v":0},{"$f":"Import!E29899","v":0}]
[54,{"$f":"Import!E29300","v":"Select"},{"$f":"Import!E29400","v":"Select"},{"$f":"Import!E29500","v":"Select"},{"$f":"Import!E29600","v":"Select"},{"$f":"Import!E29700","v":0},{"$f":"Import!E29800","v":0},{"$f":"Import!E29900","v":0}]
[55,{"$f":"Import!E29301","v":"Select"},{"$f":"Import!E29401","v":"Select"},{"$f":"Import!E29501","v":"Select"},{"$f":"Import!E29601","v":"Select"},{"$f":"Import!E29701","v":0},{"$f":"Import!E29801","v":0},{"$f":"Import!E29901","v":0}]
[56,{"$f":"Import!E29302","v":"Select"},{"$f":"Import!E29402","v":"Select"},{"$f":"Import!E29502","v":"Select"},{"$f":"Import!E29602","v":"Select"},{"$f":"Import!E29702","v":0},{"$f":"Import!E29802","v":0},{"$f":"Import!E29902","v":0}]
[57,{"$f":"Import!E29303","v":"Select"},{"$f":"Import!E29403","v":"Select"},{"$f":"Import!E29503","v":"Select"},{"$f":"Import!E29603","v":"Select"},{"$f":"Import!E29703","v":0},{"$f":"Import!E29803","v":0},{"$f":"Import!E29903","v":0}]
[58,{"$f":"Import!E29304","v":"Select"},{"$f":"Import!E29404","v":"Select"},{"$f":"Import!E29504","v":"Select"},{"$f":"Import!E29604","v":"Select"},{"$f":"Import!E29704","v":0},{"$f":"Import!E29804","v":0},{"$f":"Import!E29904","v":0}]
[59,{"$f":"Import!E29305","v":"Select"},{"$f":"Import!E29405","v":"Select"},{"$f":"Import!E29505","v":"Select"},{"$f":"Import!E29605","v":"Select"},{"$f":"Import!E29705","v":0},{"$f":"Import!E29805","v":0},{"$f":"Import!E29905","v":0}]
[60,{"$f":"Import!E29306","v":"Select"},{"$f":"Import!E29406","v":"Select"},{"$f":"Import!E29506","v":"Select"},{"$f":"Import!E29606","v":"Select"},{"$f":"Import!E29706","v":0},{"$f":"Import!E29806","v":0},{"$f":"Import!E29906","v":0}]
[61,{"$f":"Import!E29307","v":"Select"},{"$f":"Import!E29407","v":"Select"},{"$f":"Import!E29507","v":"Select"},{"$f":"Import!E29607","v":"Select"},{"$f":"Import!E29707","v":0},{"$f":"Import!E29807","v":0},{"$f":"Import!E29907","v":0}]
[62,{"$f":"Import!E29308","v":"Select"},{"$f":"Import!E29408","v":"Select"},{"$f":"Import!E29508","v":"Select"},{"$f":"Import!E29608","v":"Select"},{"$f":"Import!E29708","v":0},{"$f":"Import!E29808","v":0},{"$f":"Import!E29908","v":0}]
[63,{"$f":"Import!E29309","v":"Select"},{"$f":"Import!E29409","v":"Select"},{"$f":"Import!E29509","v":"Select"},{"$f":"Import!E29609","v":"Select"},{"$f":"Import!E29709","v":0},{"$f":"Import!E29809","v":0},{"$f":"Import!E29909","v":0}]
[64,{"$f":"Import!E29310","v":"Select"},{"$f":"Import!E29410","v":"Select"},{"$f":"Import!E29510","v":"Select"},{"$f":"Import!E29610","v":"Select"},{"$f":"Import!E29710","v":0},{"$f":"Import!E29810","v":0},{"$f":"Import!E29910","v":0}]
[65,{"$f":"Import!E29311","v":"Select"},{"$f":"Import!E29411","v":"Select"},{"$f":"Import!E29511","v":"Select"},{"$f":"Import!E29611","v":"Select"},{"$f":"Import!E29711","v":0},{"$f":"Import!E29811","v":0},{"$f":"Import!E29911","v":0}]
[66,{"$f":"Import!E29312","v":"Select"},{"$f":"Import!E29412","v":"Select"},{"$f":"Import!E29512","v":"Select"},{"$f":"Import!E29612","v":"Select"},{"$f":"Import!E29712","v":0},{"$f":"Import!E29812","v":0},{"$f":"Import!E29912","v":0}]
[{"$f":"A1410+1","v":67},{"$f":"Import!E29313","v":"Select"},{"$f":"Import!E29413","v":"Select"},{"$f":"Import!E29513","v":"Select"},{"$f":"Import!E29613","v":"Select"},{"$f":"Import!E29713","v":0},{"$f":"Import!E29813","v":0},{"$f":"Import!E29913","v":0}]
[68,{"$f":"Import!E29314","v":"Select"},{"$f":"Import!E29414","v":"Select"},{"$f":"Import!E29514","v":"Select"},{"$f":"Import!E29614","v":"Select"},{"$f":"Import!E29714","v":0},{"$f":"Import!E29814","v":0},{"$f":"Import!E29914","v":0}]
[69,{"$f":"Import!E29315","v":"Select"},{"$f":"Import!E29415","v":"Select"},{"$f":"Import!E29515","v":"Select"},{"$f":"Import!E29615","v":"Select"},{"$f":"Import!E29715","v":0},{"$f":"Import!E29815","v":0},{"$f":"Import!E29915","v":0}]
[70,{"$f":"Import!E29316","v":"Select"},{"$f":"Import!E29416","v":"Select"},{"$f":"Import!E29516","v":"Select"},{"$f":"Import!E29616","v":"Select"},{"$f":"Import!E29716","v":0},{"$f":"Import!E29816","v":0},{"$f":"Import!E29916","v":0}]
[71,{"$f":"Import!E29317","v":"Select"},{"$f":"Import!E29417","v":"Select"},{"$f":"Import!E29517","v":"Select"},{"$f":"Import!E29617","v":"Select"},{"$f":"Import!E29717","v":0},{"$f":"Import!E29817","v":0},{"$f":"Import!E29917","v":0}]
[72,{"$f":"Import!E29318","v":"Select"},{"$f":"Import!E29418","v":"Select"},{"$f":"Import!E29518","v":"Select"},{"$f":"Import!E29618","v":"Select"},{"$f":"Import!E29718","v":0},{"$f":"Import!E29818","v":0},{"$f":"Import!E29918","v":0}]
[73,{"$f":"Import!E29319","v":"Select"},{"$f":"Import!E29419","v":"Select"},{"$f":"Import!E29519","v":"Select"},{"$f":"Import!E29619","v":"Select"},{"$f":"Import!E29719","v":0},{"$f":"Import!E29819","v":0},{"$f":"Import!E29919","v":0}]
[74,{"$f":"Import!E29320","v":"Select"},{"$f":"Import!E29420","v":"Select"},{"$f":"Import!E29520","v":"Select"},{"$f":"Import!E29620","v":"Select"},{"$f":"Import!E29720","v":0},{"$f":"Import!E29820","v":0},{"$f":"Import!E29920","v":0}]
[75,{"$f":"Import!E29321","v":"Select"},{"$f":"Import!E29421","v":"Select"},{"$f":"Import!E29521","v":"Select"},{"$f":"Import!E29621","v":"Select"},{"$f":"Import!E29721","v":0},{"$f":"Import!E29821","v":0},{"$f":"Import!E29921","v":0}]
[76,{"$f":"Import!E29322","v":"Select"},{"$f":"Import!E29422","v":"Select"},{"$f":"Import!E29522","v":"Select"},{"$f":"Import!E29622","v":"Select"},{"$f":"Import!E29722","v":0},{"$f":"Import!E29822","v":0},{"$f":"Import!E29922","v":0}]
[77,{"$f":"Import!E29323","v":"Select"},{"$f":"Import!E29423","v":"Select"},{"$f":"Import!E29523","v":"Select"},{"$f":"Import!E29623","v":"Select"},{"$f":"Import!E29723","v":0},{"$f":"Import!E29823","v":0},{"$f":"Import!E29923","v":0}]
[78,{"$f":"Import!E29324","v":"Select"},{"$f":"Import!E29424","v":"Select"},{"$f":"Import!E29524","v":"Select"},{"$f":"Import!E29624","v":"Select"},{"$f":"Import!E29724","v":0},{"$f":"Import!E29824","v":0},{"$f":"Import!E29924","v":0}]
[79,{"$f":"Import!E29325","v":"Select"},{"$f":"Import!E29425","v":"Select"},{"$f":"Import!E29525","v":"Select"},{"$f":"Import!E29625","v":"Select"},{"$f":"Import!E29725","v":0},{"$f":"Import!E29825","v":0},{"$f":"Import!E29925","v":0}]
[80,{"$f":"Import!E29326","v":"Select"},{"$f":"Import!E29426","v":"Select"},{"$f":"Import!E29526","v":"Select"},{"$f":"Import!E29626","v":"Select"},{"$f":"Import!E29726","v":0},{"$f":"Import!E29826","v":0},{"$f":"Import!E29926","v":0}]
[81,{"$f":"Import!E29327","v":"Select"},{"$f":"Import!E29427","v":"Select"},{"$f":"Import!E29527","v":"Select"},{"$f":"Import!E29627","v":"Select"},{"$f":"Import!E29727","v":0},{"$f":"Import!E29827","v":0},{"$f":"Import!E29927","v":0}]
[82,{"$f":"Import!E29328","v":"Select"},{"$f":"Import!E29428","v":"Select"},{"$f":"Import!E29528","v":"Select"},{"$f":"Import!E29628","v":"Select"},{"$f":"Import!E29728","v":0},{"$f":"Import!E29828","v":0},{"$f":"Import!E29928","v":0}]
[83,{"$f":"Import!E29329","v":"Select"},{"$f":"Import!E29429","v":"Select"},{"$f":"Import!E29529","v":"Select"},{"$f":"Import!E29629","v":"Select"},{"$f":"Import!E29729","v":0},{"$f":"Import!E29829","v":0},{"$f":"Import!E29929","v":0}]
[84,{"$f":"Import!E29330","v":"Select"},{"$f":"Import!E29430","v":"Select"},{"$f":"Import!E29530","v":"Select"},{"$f":"Import!E29630","v":"Select"},{"$f":"Import!E29730","v":0},{"$f":"Import!E29830","v":0},{"$f":"Import!E29930","v":0}]
[85,{"$f":"Import!E29331","v":"Select"},{"$f":"Import!E29431","v":"Select"},{"$f":"Import!E29531","v":"Select"},{"$f":"Import!E29631","v":"Select"},{"$f":"Import!E29731","v":0},{"$f":"Import!E29831","v":0},{"$f":"Import!E29931","v":0}]
[86,{"$f":"Import!E29332","v":"Select"},{"$f":"Import!E29432","v":"Select"},{"$f":"Import!E29532","v":"Select"},{"$f":"Import!E29632","v":"Select"},{"$f":"Import!E29732","v":0},{"$f":"Import!E29832","v":0},{"$f":"Import!E29932","v":0}]
[87,{"$f":"Import!E29333","v":"Select"},{"$f":"Import!E29433","v":"Select"},{"$f":"Import!E29533","v":"Select"},{"$f":"Import!E29633","v":"Select"},{"$f":"Import!E29733","v":0},{"$f":"Import!E29833","v":0},{"$f":"Import!E29933","v":0}]
[88,{"$f":"Import!E29334","v":"Select"},{"$f":"Import!E29434","v":"Select"},{"$f":"Import!E29534","v":"Select"},{"$f":"Import!E29634","v":"Select"},{"$f":"Import!E29734","v":0},{"$f":"Import!E29834","v":0},{"$f":"Import!E29934","v":0}]
[89,{"$f":"Import!E29335","v":"Select"},{"$f":"Import!E29435","v":"Select"},{"$f":"Import!E29535","v":"Select"},{"$f":"Import!E29635","v":"Select"},{"$f":"Import!E29735","v":0},{"$f":"Import!E29835","v":0},{"$f":"Import!E29935","v":0}]
[90,{"$f":"Import!E29336","v":"Select"},{"$f":"Import!E29436","v":"Select"},{"$f":"Import!E29536","v":"Select"},{"$f":"Import!E29636","v":"Select"},{"$f":"Import!E29736","v":0},{"$f":"Import!E29836","v":0},{"$f":"Import!E29936","v":0}]
[91,{"$f":"Import!E29337","v":"Select"},{"$f":"Import!E29437","v":"Select"},{"$f":"Import!E29537","v":"Select"},{"$f":"Import!E29637","v":"Select"},{"$f":"Import!E29737","v":0},{"$f":"Import!E29837","v":0},{"$f":"Import!E29937","v":0}]
[92,{"$f":"Import!E29338","v":"Select"},{"$f":"Import!E29438","v":"Select"},{"$f":"Import!E29538","v":"Select"},{"$f":"Import!E29638","v":"Select"},{"$f":"Import!E29738","v":0},{"$f":"Import!E29838","v":0},{"$f":"Import!E29938","v":0}]
[93,{"$f":"Import!E29339","v":"Select"},{"$f":"Import!E29439","v":"Select"},{"$f":"Import!E29539","v":"Select"},{"$f":"Import!E29639","v":"Select"},{"$f":"Import!E29739","v":0},{"$f":"Import!E29839","v":0},{"$f":"Import!E29939","v":0}]
[94,{"$f":"Import!E29340","v":"Select"},{"$f":"Import!E29440","v":"Select"},{"$f":"Import!E29540","v":"Select"},{"$f":"Import!E29640","v":"Select"},{"$f":"Import!E29740","v":0},{"$f":"Import!E29840","v":0},{"$f":"Import!E29940","v":0}]
[95,{"$f":"Import!E29341","v":"Select"},{"$f":"Import!E29441","v":"Select"},{"$f":"Import!E29541","v":"Select"},{"$f":"Import!E29641","v":"Select"},{"$f":"Import!E29741","v":0},{"$f":"Import!E29841","v":0},{"$f":"Import!E29941","v":0}]
[96,{"$f":"Import!E29342","v":"Select"},{"$f":"Import!E29442","v":"Select"},{"$f":"Import!E29542","v":"Select"},{"$f":"Import!E29642","v":"Select"},{"$f":"Import!E29742","v":0},{"$f":"Import!E29842","v":0},{"$f":"Import!E29942","v":0}]
[97,{"$f":"Import!E29343","v":"Select"},{"$f":"Import!E29443","v":"Select"},{"$f":"Import!E29543","v":"Select"},{"$f":"Import!E29643","v":"Select"},{"$f":"Import!E29743","v":0},{"$f":"Import!E29843","v":0},{"$f":"Import!E29943","v":0}]
[98,{"$f":"Import!E29344","v":"Select"},{"$f":"Import!E29444","v":"Select"},{"$f":"Import!E29544","v":"Select"},{"$f":"Import!E29644","v":"Select"},{"$f":"Import!E29744","v":0},{"$f":"Import!E29844","v":0},{"$f":"Import!E29944","v":0}]
[99,{"$f":"Import!E29345","v":"Select"},{"$f":"Import!E29445","v":"Select"},{"$f":"Import!E29545","v":"Select"},{"$f":"Import!E29645","v":"Select"},{"$f":"Import!E29745","v":0},{"$f":"Import!E29845","v":0},{"$f":"Import!E29945","v":0}]
[100,{"$f":"Import!E29346","v":"Select"},{"$f":"Import!E29446","v":"Select"},{"$f":"Import!E29546","v":"Select"},{"$f":"Import!E29646","v":"Select"},{"$f":"Import!E29746","v":0},{"$f":"Import!E29846","v":0},{"$f":"Import!E29946","v":0}]
[]
[null,"Total Real Estate",null,null,null,{"$f":"SUM(F1345:F1444)","v":0},{"$f":"SUM(G1345:G1444)","v":0}]
[]
[null,"(H) OTHER ALTERNATIVE INVESTMENTS"]
[]
[null,null,"Enter # of Asset Types",{"$f":"Import!E29947","v":0}]
[null,null,null,null,null,{"$f":"YEAR($C$3)","v":2023},2023,"Weighted"]
[null,"Asset Type","Currency","Country","BSCR Rating","Nominal Amount","Fair Value","Average YTM","Effective Duration","Comments"]
[1,{"$f":"Import!E29948","v":"Select"},{"$f":"Import!E30048","v":"Select"},{"$f":"Import!E30148","v":"Select"},{"$f":"Import!E30248","v":"Select"},{"$f":"Import!E30348","v":0},{"$f":"Import!E30448","v":0},{"$f":"Import!E30548","v":0},{"$f":"Import!E30648","v":0},{"$f":"Import!E30748","v":0}]
[{"$f":"A1453+1","v":2},{"$f":"Import!E29949","v":"Select"},{"$f":"Import!E30049","v":"Select"},{"$f":"Import!E30149","v":"Select"},{"$f":"Import!E30249","v":"Select"},{"$f":"Import!E30349","v":0},{"$f":"Import!E30449","v":0},{"$f":"Import!E30549","v":0},{"$f":"Import!E30649","v":0},{"$f":"Import!E30749","v":0}]
[{"$f":"A1454+1","v":3},{"$f":"Import!E29950","v":"Select"},{"$f":"Import!E30050","v":"Select"},{"$f":"Import!E30150","v":"Select"},{"$f":"Import!E30250","v":"Select"},{"$f":"Import!E30350","v":0},{"$f":"Import!E30450","v":0},{"$f":"Import!E30550","v":0},{"$f":"Import!E30650","v":0},{"$f":"Import!E30750","v":0}]
[4,{"$f":"Import!E29951","v":"Select"},{"$f":"Import!E30051","v":"Select"},{"$f":"Import!E30151","v":"Select"},{"$f":"Import!E30251","v":"Select"},{"$f":"Import!E30351","v":0},{"$f":"Import!E30451","v":0},{"$f":"Import!E30551","v":0},{"$f":"Import!E30651","v":0},{"$f":"Import!E30751","v":0}]
[5,{"$f":"Import!E29952","v":"Select"},{"$f":"Import!E30052","v":"Select"},{"$f":"Import!E30152","v":"Select"},{"$f":"Import!E30252","v":"Select"},{"$f":"Import!E30352","v":0},{"$f":"Import!E30452","v":0},{"$f":"Import!E30552","v":0},{"$f":"Import!E30652","v":0},{"$f":"Import!E30752","v":0}]
[6,{"$f":"Import!E29953","v":"Select"},{"$f":"Import!E30053","v":"Select"},{"$f":"Import!E30153","v":"Select"},{"$f":"Import!E30253","v":"Select"},{"$f":"Import!E30353","v":0},{"$f":"Import!E30453","v":0},{"$f":"Import!E30553","v":0},{"$f":"Import!E30653","v":0},{"$f":"Import!E30753","v":0}]
[7,{"$f":"Import!E29954","v":"Select"},{"$f":"Import!E30054","v":"Select"},{"$f":"Import!E30154","v":"Select"},{"$f":"Import!E30254","v":"Select"},{"$f":"Import!E30354","v":0},{"$f":"Import!E30454","v":0},{"$f":"Import!E30554","v":0},{"$f":"Import!E30654","v":0},{"$f":"Import!E30754","v":0}]
[8,{"$f":"Import!E29955","v":"Select"},{"$f":"Import!E30055","v":"Select"},{"$f":"Import!E30155","v":"Select"},{"$f":"Import!E30255","v":"Select"},{"$f":"Import!E30355","v":0},{"$f":"Import!E30455","v":0},{"$f":"Import!E30555","v":0},{"$f":"Import!E30655","v":0},{"$f":"Import!E30755","v":0}]
[9,{"$f":"Import!E29956","v":"Select"},{"$f":"Import!E30056","v":"Select"},{"$f":"Import!E30156","v":"Select"},{"$f":"Import!E30256","v":"Select"},{"$f":"Import!E30356","v":0},{"$f":"Import!E30456","v":0},{"$f":"Import!E30556","v":0},{"$f":"Import!E30656","v":0},{"$f":"Import!E30756","v":0}]
[10,{"$f":"Import!E29957","v":"Select"},{"$f":"Import!E30057","v":"Select"},{"$f":"Import!E30157","v":"Select"},{"$f":"Import!E30257","v":"Select"},{"$f":"Import!E30357","v":0},{"$f":"Import!E30457","v":0},{"$f":"Import!E30557","v":0},{"$f":"Import!E30657","v":0},{"$f":"Import!E30757","v":0}]
[11,{"$f":"Import!E29958","v":"Select"},{"$f":"Import!E30058","v":"Select"},{"$f":"Import!E30158","v":"Select"},{"$f":"Import!E30258","v":"Select"},{"$f":"Import!E30358","v":0},{"$f":"Import!E30458","v":0},{"$f":"Import!E30558","v":0},{"$f":"Import!E30658","v":0},{"$f":"Import!E30758","v":0}]
[12,{"$f":"Import!E29959","v":"Select"},{"$f":"Import!E30059","v":"Select"},{"$f":"Import!E30159","v":"Select"},{"$f":"Import!E30259","v":"Select"},{"$f":"Import!E30359","v":0},{"$f":"Import!E30459","v":0},{"$f":"Import!E30559","v":0},{"$f":"Import!E30659","v":0},{"$f":"Import!E30759","v":0}]
[13,{"$f":"Import!E29960","v":"Select"},{"$f":"Import!E30060","v":"Select"},{"$f":"Import!E30160","v":"Select"},{"$f":"Import!E30260","v":"Select"},{"$f":"Import!E30360","v":0},{"$f":"Import!E30460","v":0},{"$f":"Import!E30560","v":0},{"$f":"Import!E30660","v":0},{"$f":"Import!E30760","v":0}]
[14,{"$f":"Import!E29961","v":"Select"},{"$f":"Import!E30061","v":"Select"},{"$f":"Import!E30161","v":"Select"},{"$f":"Import!E30261","v":"Select"},{"$f":"Import!E30361","v":0},{"$f":"Import!E30461","v":0},{"$f":"Import!E30561","v":0},{"$f":"Import!E30661","v":0},{"$f":"Import!E30761","v":0}]
[15,{"$f":"Import!E29962","v":"Select"},{"$f":"Import!E30062","v":"Select"},{"$f":"Import!E30162","v":"Select"},{"$f":"Import!E30262","v":"Select"},{"$f":"Import!E30362","v":0},{"$f":"Import!E30462","v":0},{"$f":"Import!E30562","v":0},{"$f":"Import!E30662","v":0},{"$f":"Import!E30762","v":0}]
[16,{"$f":"Import!E29963","v":"Select"},{"$f":"Import!E30063","v":"Select"},{"$f":"Import!E30163","v":"Select"},{"$f":"Import!E30263","v":"Select"},{"$f":"Import!E30363","v":0},{"$f":"Import!E30463","v":0},{"$f":"Import!E30563","v":0},{"$f":"Import!E30663","v":0},{"$f":"Import!E30763","v":0}]
[17,{"$f":"Import!E29964","v":"Select"},{"$f":"Import!E30064","v":"Select"},{"$f":"Import!E30164","v":"Select"},{"$f":"Import!E30264","v":"Select"},{"$f":"Import!E30364","v":0},{"$f":"Import!E30464","v":0},{"$f":"Import!E30564","v":0},{"$f":"Import!E30664","v":0},{"$f":"Import!E30764","v":0}]
[18,{"$f":"Import!E29965","v":"Select"},{"$f":"Import!E30065","v":"Select"},{"$f":"Import!E30165","v":"Select"},{"$f":"Import!E30265","v":"Select"},{"$f":"Import!E30365","v":0},{"$f":"Import!E30465","v":0},{"$f":"Import!E30565","v":0},{"$f":"Import!E30665","v":0},{"$f":"Import!E30765","v":0}]
[19,{"$f":"Import!E29966","v":"Select"},{"$f":"Import!E30066","v":"Select"},{"$f":"Import!E30166","v":"Select"},{"$f":"Import!E30266","v":"Select"},{"$f":"Import!E30366","v":0},{"$f":"Import!E30466","v":0},{"$f":"Import!E30566","v":0},{"$f":"Import!E30666","v":0},{"$f":"Import!E30766","v":0}]
[20,{"$f":"Import!E29967","v":"Select"},{"$f":"Import!E30067","v":"Select"},{"$f":"Import!E30167","v":"Select"},{"$f":"Import!E30267","v":"Select"},{"$f":"Import!E30367","v":0},{"$f":"Import!E30467","v":0},{"$f":"Import!E30567","v":0},{"$f":"Import!E30667","v":0},{"$f":"Import!E30767","v":0}]
[21,{"$f":"Import!E29968","v":"Select"},{"$f":"Import!E30068","v":"Select"},{"$f":"Import!E30168","v":"Select"},{"$f":"Import!E30268","v":"Select"},{"$f":"Import!E30368","v":0},{"$f":"Import!E30468","v":0},{"$f":"Import!E30568","v":0},{"$f":"Import!E30668","v":0},{"$f":"Import!E30768","v":0}]
[22,{"$f":"Import!E29969","v":"Select"},{"$f":"Import!E30069","v":"Select"},{"$f":"Import!E30169","v":"Select"},{"$f":"Import!E30269","v":"Select"},{"$f":"Import!E30369","v":0},{"$f":"Import!E30469","v":0},{"$f":"Import!E30569","v":0},{"$f":"Import!E30669","v":0},{"$f":"Import!E30769","v":0}]
[23,{"$f":"Import!E29970","v":"Select"},{"$f":"Import!E30070","v":"Select"},{"$f":"Import!E30170","v":"Select"},{"$f":"Import!E30270","v":"Select"},{"$f":"Import!E30370","v":0},{"$f":"Import!E30470","v":0},{"$f":"Import!E30570","v":0},{"$f":"Import!E30670","v":0},{"$f":"Import!E30770","v":0}]
[24,{"$f":"Import!E29971","v":"Select"},{"$f":"Import!E30071","v":"Select"},{"$f":"Import!E30171","v":"Select"},{"$f":"Import!E30271","v":"Select"},{"$f":"Import!E30371","v":0},{"$f":"Import!E30471","v":0},{"$f":"Import!E30571","v":0},{"$f":"Import!E30671","v":0},{"$f":"Import!E30771","v":0}]
[25,{"$f":"Import!E29972","v":"Select"},{"$f":"Import!E30072","v":"Select"},{"$f":"Import!E30172","v":"Select"},{"$f":"Import!E30272","v":"Select"},{"$f":"Import!E30372","v":0},{"$f":"Import!E30472","v":0},{"$f":"Import!E30572","v":0},{"$f":"Import!E30672","v":0},{"$f":"Import!E30772","v":0}]
[26,{"$f":"Import!E29973","v":"Select"},{"$f":"Import!E30073","v":"Select"},{"$f":"Import!E30173","v":"Select"},{"$f":"Import!E30273","v":"Select"},{"$f":"Import!E30373","v":0},{"$f":"Import!E30473","v":0},{"$f":"Import!E30573","v":0},{"$f":"Import!E30673","v":0},{"$f":"Import!E30773","v":0}]
[27,{"$f":"Import!E29974","v":"Select"},{"$f":"Import!E30074","v":"Select"},{"$f":"Import!E30174","v":"Select"},{"$f":"Import!E30274","v":"Select"},{"$f":"Import!E30374","v":0},{"$f":"Import!E30474","v":0},{"$f":"Import!E30574","v":0},{"$f":"Import!E30674","v":0},{"$f":"Import!E30774","v":0}]
[28,{"$f":"Import!E29975","v":"Select"},{"$f":"Import!E30075","v":"Select"},{"$f":"Import!E30175","v":"Select"},{"$f":"Import!E30275","v":"Select"},{"$f":"Import!E30375","v":0},{"$f":"Import!E30475","v":0},{"$f":"Import!E30575","v":0},{"$f":"Import!E30675","v":0},{"$f":"Import!E30775","v":0}]
[29,{"$f":"Import!E29976","v":"Select"},{"$f":"Import!E30076","v":"Select"},{"$f":"Import!E30176","v":"Select"},{"$f":"Import!E30276","v":"Select"},{"$f":"Import!E30376","v":0},{"$f":"Import!E30476","v":0},{"$f":"Import!E30576","v":0},{"$f":"Import!E30676","v":0},{"$f":"Import!E30776","v":0}]
[30,{"$f":"Import!E29977","v":"Select"},{"$f":"Import!E30077","v":"Select"},{"$f":"Import!E30177","v":"Select"},{"$f":"Import!E30277","v":"Select"},{"$f":"Import!E30377","v":0},{"$f":"Import!E30477","v":0},{"$f":"Import!E30577","v":0},{"$f":"Import!E30677","v":0},{"$f":"Import!E30777","v":0}]
[31,{"$f":"Import!E29978","v":"Select"},{"$f":"Import!E30078","v":"Select"},{"$f":"Import!E30178","v":"Select"},{"$f":"Import!E30278","v":"Select"},{"$f":"Import!E30378","v":0},{"$f":"Import!E30478","v":0},{"$f":"Import!E30578","v":0},{"$f":"Import!E30678","v":0},{"$f":"Import!E30778","v":0}]
[32,{"$f":"Import!E29979","v":"Select"},{"$f":"Import!E30079","v":"Select"},{"$f":"Import!E30179","v":"Select"},{"$f":"Import!E30279","v":"Select"},{"$f":"Import!E30379","v":0},{"$f":"Import!E30479","v":0},{"$f":"Import!E30579","v":0},{"$f":"Import!E30679","v":0},{"$f":"Import!E30779","v":0}]
[33,{"$f":"Import!E29980","v":"Select"},{"$f":"Import!E30080","v":"Select"},{"$f":"Import!E30180","v":"Select"},{"$f":"Import!E30280","v":"Select"},{"$f":"Import!E30380","v":0},{"$f":"Import!E30480","v":0},{"$f":"Import!E30580","v":0},{"$f":"Import!E30680","v":0},{"$f":"Import!E30780","v":0}]
[34,{"$f":"Import!E29981","v":"Select"},{"$f":"Import!E30081","v":"Select"},{"$f":"Import!E30181","v":"Select"},{"$f":"Import!E30281","v":"Select"},{"$f":"Import!E30381","v":0},{"$f":"Import!E30481","v":0},{"$f":"Import!E30581","v":0},{"$f":"Import!E30681","v":0},{"$f":"Import!E30781","v":0}]
[35,{"$f":"Import!E29982","v":"Select"},{"$f":"Import!E30082","v":"Select"},{"$f":"Import!E30182","v":"Select"},{"$f":"Import!E30282","v":"Select"},{"$f":"Import!E30382","v":0},{"$f":"Import!E30482","v":0},{"$f":"Import!E30582","v":0},{"$f":"Import!E30682","v":0},{"$f":"Import!E30782","v":0}]
[36,{"$f":"Import!E29983","v":"Select"},{"$f":"Import!E30083","v":"Select"},{"$f":"Import!E30183","v":"Select"},{"$f":"Import!E30283","v":"Select"},{"$f":"Import!E30383","v":0},{"$f":"Import!E30483","v":0},{"$f":"Import!E30583","v":0},{"$f":"Import!E30683","v":0},{"$f":"Import!E30783","v":0}]
[37,{"$f":"Import!E29984","v":"Select"},{"$f":"Import!E30084","v":"Select"},{"$f":"Import!E30184","v":"Select"},{"$f":"Import!E30284","v":"Select"},{"$f":"Import!E30384","v":0},{"$f":"Import!E30484","v":0},{"$f":"Import!E30584","v":0},{"$f":"Import!E30684","v":0},{"$f":"Import!E30784","v":0}]
[38,{"$f":"Import!E29985","v":"Select"},{"$f":"Import!E30085","v":"Select"},{"$f":"Import!E30185","v":"Select"},{"$f":"Import!E30285","v":"Select"},{"$f":"Import!E30385","v":0},{"$f":"Import!E30485","v":0},{"$f":"Import!E30585","v":0},{"$f":"Import!E30685","v":0},{"$f":"Import!E30785","v":0}]
[39,{"$f":"Import!E29986","v":"Select"},{"$f":"Import!E30086","v":"Select"},{"$f":"Import!E30186","v":"Select"},{"$f":"Import!E30286","v":"Select"},{"$f":"Import!E30386","v":0},{"$f":"Import!E30486","v":0},{"$f":"Import!E30586","v":0},{"$f":"Import!E30686","v":0},{"$f":"Import!E30786","v":0}]
[40,{"$f":"Import!E29987","v":"Select"},{"$f":"Import!E30087","v":"Select"},{"$f":"Import!E30187","v":"Select"},{"$f":"Import!E30287","v":"Select"},{"$f":"Import!E30387","v":0},{"$f":"Import!E30487","v":0},{"$f":"Import!E30587","v":0},{"$f":"Import!E30687","v":0},{"$f":"Import!E30787","v":0}]
[41,{"$f":"Import!E29988","v":"Select"},{"$f":"Import!E30088","v":"Select"},{"$f":"Import!E30188","v":"Select"},{"$f":"Import!E30288","v":"Select"},{"$f":"Import!E30388","v":0},{"$f":"Import!E30488","v":0},{"$f":"Import!E30588","v":0},{"$f":"Import!E30688","v":0},{"$f":"Import!E30788","v":0}]
[42,{"$f":"Import!E29989","v":"Select"},{"$f":"Import!E30089","v":"Select"},{"$f":"Import!E30189","v":"Select"},{"$f":"Import!E30289","v":"Select"},{"$f":"Import!E30389","v":0},{"$f":"Import!E30489","v":0},{"$f":"Import!E30589","v":0},{"$f":"Import!E30689","v":0},{"$f":"Import!E30789","v":0}]
[43,{"$f":"Import!E29990","v":"Select"},{"$f":"Import!E30090","v":"Select"},{"$f":"Import!E30190","v":"Select"},{"$f":"Import!E30290","v":"Select"},{"$f":"Import!E30390","v":0},{"$f":"Import!E30490","v":0},{"$f":"Import!E30590","v":0},{"$f":"Import!E30690","v":0},{"$f":"Import!E30790","v":0}]
[44,{"$f":"Import!E29991","v":"Select"},{"$f":"Import!E30091","v":"Select"},{"$f":"Import!E30191","v":"Select"},{"$f":"Import!E30291","v":"Select"},{"$f":"Import!E30391","v":0},{"$f":"Import!E30491","v":0},{"$f":"Import!E30591","v":0},{"$f":"Import!E30691","v":0},{"$f":"Import!E30791","v":0}]
[45,{"$f":"Import!E29992","v":"Select"},{"$f":"Import!E30092","v":"Select"},{"$f":"Import!E30192","v":"Select"},{"$f":"Import!E30292","v":"Select"},{"$f":"Import!E30392","v":0},{"$f":"Import!E30492","v":0},{"$f":"Import!E30592","v":0},{"$f":"Import!E30692","v":0},{"$f":"Import!E30792","v":0}]
[46,{"$f":"Import!E29993","v":"Select"},{"$f":"Import!E30093","v":"Select"},{"$f":"Import!E30193","v":"Select"},{"$f":"Import!E30293","v":"Select"},{"$f":"Import!E30393","v":0},{"$f":"Import!E30493","v":0},{"$f":"Import!E30593","v":0},{"$f":"Import!E30693","v":0},{"$f":"Import!E30793","v":0}]
[47,{"$f":"Import!E29994","v":"Select"},{"$f":"Import!E30094","v":"Select"},{"$f":"Import!E30194","v":"Select"},{"$f":"Import!E30294","v":"Select"},{"$f":"Import!E30394","v":0},{"$f":"Import!E30494","v":0},{"$f":"Import!E30594","v":0},{"$f":"Import!E30694","v":0},{"$f":"Import!E30794","v":0}]
[48,{"$f":"Import!E29995","v":"Select"},{"$f":"Import!E30095","v":"Select"},{"$f":"Import!E30195","v":"Select"},{"$f":"Import!E30295","v":"Select"},{"$f":"Import!E30395","v":0},{"$f":"Import!E30495","v":0},{"$f":"Import!E30595","v":0},{"$f":"Import!E30695","v":0},{"$f":"Import!E30795","v":0}]
[49,{"$f":"Import!E29996","v":"Select"},{"$f":"Import!E30096","v":"Select"},{"$f":"Import!E30196","v":"Select"},{"$f":"Import!E30296","v":"Select"},{"$f":"Import!E30396","v":0},{"$f":"Import!E30496","v":0},{"$f":"Import!E30596","v":0},{"$f":"Import!E30696","v":0},{"$f":"Import!E30796","v":0}]
[50,{"$f":"Import!E29997","v":"Select"},{"$f":"Import!E30097","v":"Select"},{"$f":"Import!E30197","v":"Select"},{"$f":"Import!E30297","v":"Select"},{"$f":"Import!E30397","v":0},{"$f":"Import!E30497","v":0},{"$f":"Import!E30597","v":0},{"$f":"Import!E30697","v":0},{"$f":"Import!E30797","v":0}]
[51,{"$f":"Import!E29998","v":"Select"},{"$f":"Import!E30098","v":"Select"},{"$f":"Import!E30198","v":"Select"},{"$f":"Import!E30298","v":"Select"},{"$f":"Import!E30398","v":0},{"$f":"Import!E30498","v":0},{"$f":"Import!E30598","v":0},{"$f":"Import!E30698","v":0},{"$f":"Import!E30798","v":0}]
[52,{"$f":"Import!E29999","v":"Select"},{"$f":"Import!E30099","v":"Select"},{"$f":"Import!E30199","v":"Select"},{"$f":"Import!E30299","v":"Select"},{"$f":"Import!E30399","v":0},{"$f":"Import!E30499","v":0},{"$f":"Import!E30599","v":0},{"$f":"Import!E30699","v":0},{"$f":"Import!E30799","v":0}]
[53,{"$f":"Import!E30000","v":"Select"},{"$f":"Import!E30100","v":"Select"},{"$f":"Import!E30200","v":"Select"},{"$f":"Import!E30300","v":"Select"},{"$f":"Import!E30400","v":0},{"$f":"Import!E30500","v":0},{"$f":"Import!E30600","v":0},{"$f":"Import!E30700","v":0},{"$f":"Import!E30800","v":0}]
[54,{"$f":"Import!E30001","v":"Select"},{"$f":"Import!E30101","v":"Select"},{"$f":"Import!E30201","v":"Select"},{"$f":"Import!E30301","v":"Select"},{"$f":"Import!E30401","v":0},{"$f":"Import!E30501","v":0},{"$f":"Import!E30601","v":0},{"$f":"Import!E30701","v":0},{"$f":"Import!E30801","v":0}]
[55,{"$f":"Import!E30002","v":"Select"},{"$f":"Import!E30102","v":"Select"},{"$f":"Import!E30202","v":"Select"},{"$f":"Import!E30302","v":"Select"},{"$f":"Import!E30402","v":0},{"$f":"Import!E30502","v":0},{"$f":"Import!E30602","v":0},{"$f":"Import!E30702","v":0},{"$f":"Import!E30802","v":0}]
[56,{"$f":"Import!E30003","v":"Select"},{"$f":"Import!E30103","v":"Select"},{"$f":"Import!E30203","v":"Select"},{"$f":"Import!E30303","v":"Select"},{"$f":"Import!E30403","v":0},{"$f":"Import!E30503","v":0},{"$f":"Import!E30603","v":0},{"$f":"Import!E30703","v":0},{"$f":"Import!E30803","v":0}]
[57,{"$f":"Import!E30004","v":"Select"},{"$f":"Import!E30104","v":"Select"},{"$f":"Import!E30204","v":"Select"},{"$f":"Import!E30304","v":"Select"},{"$f":"Import!E30404","v":0},{"$f":"Import!E30504","v":0},{"$f":"Import!E30604","v":0},{"$f":"Import!E30704","v":0},{"$f":"Import!E30804","v":0}]
[58,{"$f":"Import!E30005","v":"Select"},{"$f":"Import!E30105","v":"Select"},{"$f":"Import!E30205","v":"Select"},{"$f":"Import!E30305","v":"Select"},{"$f":"Import!E30405","v":0},{"$f":"Import!E30505","v":0},{"$f":"Import!E30605","v":0},{"$f":"Import!E30705","v":0},{"$f":"Import!E30805","v":0}]
[59,{"$f":"Import!E30006","v":"Select"},{"$f":"Import!E30106","v":"Select"},{"$f":"Import!E30206","v":"Select"},{"$f":"Import!E30306","v":"Select"},{"$f":"Import!E30406","v":0},{"$f":"Import!E30506","v":0},{"$f":"Import!E30606","v":0},{"$f":"Import!E30706","v":0},{"$f":"Import!E30806","v":0}]
[60,{"$f":"Import!E30007","v":"Select"},{"$f":"Import!E30107","v":"Select"},{"$f":"Import!E30207","v":"Select"},{"$f":"Import!E30307","v":"Select"},{"$f":"Import!E30407","v":0},{"$f":"Import!E30507","v":0},{"$f":"Import!E30607","v":0},{"$f":"Import!E30707","v":0},{"$f":"Import!E30807","v":0}]
[61,{"$f":"Import!E30008","v":"Select"},{"$f":"Import!E30108","v":"Select"},{"$f":"Import!E30208","v":"Select"},{"$f":"Import!E30308","v":"Select"},{"$f":"Import!E30408","v":0},{"$f":"Import!E30508","v":0},{"$f":"Import!E30608","v":0},{"$f":"Import!E30708","v":0},{"$f":"Import!E30808","v":0}]
[62,{"$f":"Import!E30009","v":"Select"},{"$f":"Import!E30109","v":"Select"},{"$f":"Import!E30209","v":"Select"},{"$f":"Import!E30309","v":"Select"},{"$f":"Import!E30409","v":0},{"$f":"Import!E30509","v":0},{"$f":"Import!E30609","v":0},{"$f":"Import!E30709","v":0},{"$f":"Import!E30809","v":0}]
[63,{"$f":"Import!E30010","v":"Select"},{"$f":"Import!E30110","v":"Select"},{"$f":"Import!E30210","v":"Select"},{"$f":"Import!E30310","v":"Select"},{"$f":"Import!E30410","v":0},{"$f":"Import!E30510","v":0},{"$f":"Import!E30610","v":0},{"$f":"Import!E30710","v":0},{"$f":"Import!E30810","v":0}]
[64,{"$f":"Import!E30011","v":"Select"},{"$f":"Import!E30111","v":"Select"},{"$f":"Import!E30211","v":"Select"},{"$f":"Import!E30311","v":"Select"},{"$f":"Import!E30411","v":0},{"$f":"Import!E30511","v":0},{"$f":"Import!E30611","v":0},{"$f":"Import!E30711","v":0},{"$f":"Import!E30811","v":0}]
[65,{"$f":"Import!E30012","v":"Select"},{"$f":"Import!E30112","v":"Select"},{"$f":"Import!E30212","v":"Select"},{"$f":"Import!E30312","v":"Select"},{"$f":"Import!E30412","v":0},{"$f":"Import!E30512","v":0},{"$f":"Import!E30612","v":0},{"$f":"Import!E30712","v":0},{"$f":"Import!E30812","v":0}]
[66,{"$f":"Import!E30013","v":"Select"},{"$f":"Import!E30113","v":"Select"},{"$f":"Import!E30213","v":"Select"},{"$f":"Import!E30313","v":"Select"},{"$f":"Import!E30413","v":0},{"$f":"Import!E30513","v":0},{"$f":"Import!E30613","v":0},{"$f":"Import!E30713","v":0},{"$f":"Import!E30813","v":0}]
[{"$f":"A1518+1","v":67},{"$f":"Import!E30014","v":"Select"},{"$f":"Import!E30114","v":"Select"},{"$f":"Import!E30214","v":"Select"},{"$f":"Import!E30314","v":"Select"},{"$f":"Import!E30414","v":0},{"$f":"Import!E30514","v":0},{"$f":"Import!E30614","v":0},{"$f":"Import!E30714","v":0},{"$f":"Import!E30814","v":0}]
[68,{"$f":"Import!E30015","v":"Select"},{"$f":"Import!E30115","v":"Select"},{"$f":"Import!E30215","v":"Select"},{"$f":"Import!E30315","v":"Select"},{"$f":"Import!E30415","v":0},{"$f":"Import!E30515","v":0},{"$f":"Import!E30615","v":0},{"$f":"Import!E30715","v":0},{"$f":"Import!E30815","v":0}]
[69,{"$f":"Import!E30016","v":"Select"},{"$f":"Import!E30116","v":"Select"},{"$f":"Import!E30216","v":"Select"},{"$f":"Import!E30316","v":"Select"},{"$f":"Import!E30416","v":0},{"$f":"Import!E30516","v":0},{"$f":"Import!E30616","v":0},{"$f":"Import!E30716","v":0},{"$f":"Import!E30816","v":0}]
[70,{"$f":"Import!E30017","v":"Select"},{"$f":"Import!E30117","v":"Select"},{"$f":"Import!E30217","v":"Select"},{"$f":"Import!E30317","v":"Select"},{"$f":"Import!E30417","v":0},{"$f":"Import!E30517","v":0},{"$f":"Import!E30617","v":0},{"$f":"Import!E30717","v":0},{"$f":"Import!E30817","v":0}]
[71,{"$f":"Import!E30018","v":"Select"},{"$f":"Import!E30118","v":"Select"},{"$f":"Import!E30218","v":"Select"},{"$f":"Import!E30318","v":"Select"},{"$f":"Import!E30418","v":0},{"$f":"Import!E30518","v":0},{"$f":"Import!E30618","v":0},{"$f":"Import!E30718","v":0},{"$f":"Import!E30818","v":0}]
[72,{"$f":"Import!E30019","v":"Select"},{"$f":"Import!E30119","v":"Select"},{"$f":"Import!E30219","v":"Select"},{"$f":"Import!E30319","v":"Select"},{"$f":"Import!E30419","v":0},{"$f":"Import!E30519","v":0},{"$f":"Import!E30619","v":0},{"$f":"Import!E30719","v":0},{"$f":"Import!E30819","v":0}]
[73,{"$f":"Import!E30020","v":"Select"},{"$f":"Import!E30120","v":"Select"},{"$f":"Import!E30220","v":"Select"},{"$f":"Import!E30320","v":"Select"},{"$f":"Import!E30420","v":0},{"$f":"Import!E30520","v":0},{"$f":"Import!E30620","v":0},{"$f":"Import!E30720","v":0},{"$f":"Import!E30820","v":0}]
[74,{"$f":"Import!E30021","v":"Select"},{"$f":"Import!E30121","v":"Select"},{"$f":"Import!E30221","v":"Select"},{"$f":"Import!E30321","v":"Select"},{"$f":"Import!E30421","v":0},{"$f":"Import!E30521","v":0},{"$f":"Import!E30621","v":0},{"$f":"Import!E30721","v":0},{"$f":"Import!E30821","v":0}]
[75,{"$f":"Import!E30022","v":"Select"},{"$f":"Import!E30122","v":"Select"},{"$f":"Import!E30222","v":"Select"},{"$f":"Import!E30322","v":"Select"},{"$f":"Import!E30422","v":0},{"$f":"Import!E30522","v":0},{"$f":"Import!E30622","v":0},{"$f":"Import!E30722","v":0},{"$f":"Import!E30822","v":0}]
[76,{"$f":"Import!E30023","v":"Select"},{"$f":"Import!E30123","v":"Select"},{"$f":"Import!E30223","v":"Select"},{"$f":"Import!E30323","v":"Select"},{"$f":"Import!E30423","v":0},{"$f":"Import!E30523","v":0},{"$f":"Import!E30623","v":0},{"$f":"Import!E30723","v":0},{"$f":"Import!E30823","v":0}]
[77,{"$f":"Import!E30024","v":"Select"},{"$f":"Import!E30124","v":"Select"},{"$f":"Import!E30224","v":"Select"},{"$f":"Import!E30324","v":"Select"},{"$f":"Import!E30424","v":0},{"$f":"Import!E30524","v":0},{"$f":"Import!E30624","v":0},{"$f":"Import!E30724","v":0},{"$f":"Import!E30824","v":0}]
[78,{"$f":"Import!E30025","v":"Select"},{"$f":"Import!E30125","v":"Select"},{"$f":"Import!E30225","v":"Select"},{"$f":"Import!E30325","v":"Select"},{"$f":"Import!E30425","v":0},{"$f":"Import!E30525","v":0},{"$f":"Import!E30625","v":0},{"$f":"Import!E30725","v":0},{"$f":"Import!E30825","v":0}]
[79,{"$f":"Import!E30026","v":"Select"},{"$f":"Import!E30126","v":"Select"},{"$f":"Import!E30226","v":"Select"},{"$f":"Import!E30326","v":"Select"},{"$f":"Import!E30426","v":0},{"$f":"Import!E30526","v":0},{"$f":"Import!E30626","v":0},{"$f":"Import!E30726","v":0},{"$f":"Import!E30826","v":0}]
[80,{"$f":"Import!E30027","v":"Select"},{"$f":"Import!E30127","v":"Select"},{"$f":"Import!E30227","v":"Select"},{"$f":"Import!E30327","v":"Select"},{"$f":"Import!E30427","v":0},{"$f":"Import!E30527","v":0},{"$f":"Import!E30627","v":0},{"$f":"Import!E30727","v":0},{"$f":"Import!E30827","v":0}]
[81,{"$f":"Import!E30028","v":"Select"},{"$f":"Import!E30128","v":"Select"},{"$f":"Import!E30228","v":"Select"},{"$f":"Import!E30328","v":"Select"},{"$f":"Import!E30428","v":0},{"$f":"Import!E30528","v":0},{"$f":"Import!E30628","v":0},{"$f":"Import!E30728","v":0},{"$f":"Import!E30828","v":0}]
[82,{"$f":"Import!E30029","v":"Select"},{"$f":"Import!E30129","v":"Select"},{"$f":"Import!E30229","v":"Select"},{"$f":"Import!E30329","v":"Select"},{"$f":"Import!E30429","v":0},{"$f":"Import!E30529","v":0},{"$f":"Import!E30629","v":0},{"$f":"Import!E30729","v":0},{"$f":"Import!E30829","v":0}]
[83,{"$f":"Import!E30030","v":"Select"},{"$f":"Import!E30130","v":"Select"},{"$f":"Import!E30230","v":"Select"},{"$f":"Import!E30330","v":"Select"},{"$f":"Import!E30430","v":0},{"$f":"Import!E30530","v":0},{"$f":"Import!E30630","v":0},{"$f":"Import!E30730","v":0},{"$f":"Import!E30830","v":0}]
[84,{"$f":"Import!E30031","v":"Select"},{"$f":"Import!E30131","v":"Select"},{"$f":"Import!E30231","v":"Select"},{"$f":"Import!E30331","v":"Select"},{"$f":"Import!E30431","v":0},{"$f":"Import!E30531","v":0},{"$f":"Import!E30631","v":0},{"$f":"Import!E30731","v":0},{"$f":"Import!E30831","v":0}]
[85,{"$f":"Import!E30032","v":"Select"},{"$f":"Import!E30132","v":"Select"},{"$f":"Import!E30232","v":"Select"},{"$f":"Import!E30332","v":"Select"},{"$f":"Import!E30432","v":0},{"$f":"Import!E30532","v":0},{"$f":"Import!E30632","v":0},{"$f":"Import!E30732","v":0},{"$f":"Import!E30832","v":0}]
[86,{"$f":"Import!E30033","v":"Select"},{"$f":"Import!E30133","v":"Select"},{"$f":"Import!E30233","v":"Select"},{"$f":"Import!E30333","v":"Select"},{"$f":"Import!E30433","v":0},{"$f":"Import!E30533","v":0},{"$f":"Import!E30633","v":0},{"$f":"Import!E30733","v":0},{"$f":"Import!E30833","v":0}]
[87,{"$f":"Import!E30034","v":"Select"},{"$f":"Import!E30134","v":"Select"},{"$f":"Import!E30234","v":"Select"},{"$f":"Import!E30334","v":"Select"},{"$f":"Import!E30434","v":0},{"$f":"Import!E30534","v":0},{"$f":"Import!E30634","v":0},{"$f":"Import!E30734","v":0},{"$f":"Import!E30834","v":0}]
[88,{"$f":"Import!E30035","v":"Select"},{"$f":"Import!E30135","v":"Select"},{"$f":"Import!E30235","v":"Select"},{"$f":"Import!E30335","v":"Select"},{"$f":"Import!E30435","v":0},{"$f":"Import!E30535","v":0},{"$f":"Import!E30635","v":0},{"$f":"Import!E30735","v":0},{"$f":"Import!E30835","v":0}]
[89,{"$f":"Import!E30036","v":"Select"},{"$f":"Import!E30136","v":"Select"},{"$f":"Import!E30236","v":"Select"},{"$f":"Import!E30336","v":"Select"},{"$f":"Import!E30436","v":0},{"$f":"Import!E30536","v":0},{"$f":"Import!E30636","v":0},{"$f":"Import!E30736","v":0},{"$f":"Import!E30836","v":0}]
[90,{"$f":"Import!E30037","v":"Select"},{"$f":"Import!E30137","v":"Select"},{"$f":"Import!E30237","v":"Select"},{"$f":"Import!E30337","v":"Select"},{"$f":"Import!E30437","v":0},{"$f":"Import!E30537","v":0},{"$f":"Import!E30637","v":0},{"$f":"Import!E30737","v":0},{"$f":"Import!E30837","v":0}]
[91,{"$f":"Import!E30038","v":"Select"},{"$f":"Import!E30138","v":"Select"},{"$f":"Import!E30238","v":"Select"},{"$f":"Import!E30338","v":"Select"},{"$f":"Import!E30438","v":0},{"$f":"Import!E30538","v":0},{"$f":"Import!E30638","v":0},{"$f":"Import!E30738","v":0},{"$f":"Import!E30838","v":0}]
[92,{"$f":"Import!E30039","v":"Select"},{"$f":"Import!E30139","v":"Select"},{"$f":"Import!E30239","v":"Select"},{"$f":"Import!E30339","v":"Select"},{"$f":"Import!E30439","v":0},{"$f":"Import!E30539","v":0},{"$f":"Import!E30639","v":0},{"$f":"Import!E30739","v":0},{"$f":"Import!E30839","v":0}]
[93,{"$f":"Import!E30040","v":"Select"},{"$f":"Import!E30140","v":"Select"},{"$f":"Import!E30240","v":"Select"},{"$f":"Import!E30340","v":"Select"},{"$f":"Import!E30440","v":0},{"$f":"Import!E30540","v":0},{"$f":"Import!E30640","v":0},{"$f":"Import!E30740","v":0},{"$f":"Import!E30840","v":0}]
[94,{"$f":"Import!E30041","v":"Select"},{"$f":"Import!E30141","v":"Select"},{"$f":"Import!E30241","v":"Select"},{"$f":"Import!E30341","v":"Select"},{"$f":"Import!E30441","v":0},{"$f":"Import!E30541","v":0},{"$f":"Import!E30641","v":0},{"$f":"Import!E30741","v":0},{"$f":"Import!E30841","v":0}]
[95,{"$f":"Import!E30042","v":"Select"},{"$f":"Import!E30142","v":"Select"},{"$f":"Import!E30242","v":"Select"},{"$f":"Import!E30342","v":"Select"},{"$f":"Import!E30442","v":0},{"$f":"Import!E30542","v":0},{"$f":"Import!E30642","v":0},{"$f":"Import!E30742","v":0},{"$f":"Import!E30842","v":0}]
[96,{"$f":"Import!E30043","v":"Select"},{"$f":"Import!E30143","v":"Select"},{"$f":"Import!E30243","v":"Select"},{"$f":"Import!E30343","v":"Select"},{"$f":"Import!E30443","v":0},{"$f":"Import!E30543","v":0},{"$f":"Import!E30643","v":0},{"$f":"Import!E30743","v":0},{"$f":"Import!E30843","v":0}]
[97,{"$f":"Import!E30044","v":"Select"},{"$f":"Import!E30144","v":"Select"},{"$f":"Import!E30244","v":"Select"},{"$f":"Import!E30344","v":"Select"},{"$f":"Import!E30444","v":0},{"$f":"Import!E30544","v":0},{"$f":"Import!E30644","v":0},{"$f":"Import!E30744","v":0},{"$f":"Import!E30844","v":0}]
[98,{"$f":"Import!E30045","v":"Select"},{"$f":"Import!E30145","v":"Select"},{"$f":"Import!E30245","v":"Select"},{"$f":"Import!E30345","v":"Select"},{"$f":"Import!E30445","v":0},{"$f":"Import!E30545","v":0},{"$f":"Import!E30645","v":0},{"$f":"Import!E30745","v":0},{"$f":"Import!E30845","v":0}]
[99,{"$f":"Import!E30046","v":"Select"},{"$f":"Import!E30146","v":"Select"},{"$f":"Import!E30246","v":"Select"},{"$f":"Import!E30346","v":"Select"},{"$f":"Import!E30446","v":0},{"$f":"Import!E30546","v":0},{"$f":"Import!E30646","v":0},{"$f":"Import!E30746","v":0},{"$f":"Import!E30846","v":0}]
[100,{"$f":"Import!E30047","v":"Select"},{"$f":"Import!E30147","v":"Select"},{"$f":"Import!E30247","v":"Select"},{"$f":"Import!E30347","v":"Select"},{"$f":"Import!E30447","v":0},{"$f":"Import!E30547","v":0},{"$f":"Import!E30647","v":0},{"$f":"Import!E30747","v":0},{"$f":"Import!E30847","v":0}]
[]
[null,"Total Other Alternative Investments",null,null,null,{"$f":"SUM(F1453:F1552)","v":0},{"$f":"SUM(G1453:G1552)","v":0},{"$f":"IFERROR(SUMPRODUCT(H1453:H1552,$G1453:$G1552)/SUM($G1453:$G1552),0)","v":0},{"$f":"IFERROR(SUMPRODUCT(I1453:I1552,$G1453:$G1552)/SUM($G1453:$G1552),0)","v":0}]
[]
[null,"(I) DERIVATIVES"]
[]
[null,null,"Enter # of Derivative Types",{"$f":"Import!E30848","v":0}]
[null,"Derivative Type","Underlying","Currency","Trading Category","Purpose","Position","Confirm line contains only derivatives with:",{"$f":"YEAR($C$3)&\" \nMarket Value\"","v":"2023 \nMarket Value"},"Gross Notional Value","Net Notional Value","Exposure (Dollar Delta, DV01, CS01","Comments"]
[1,{"$f":"Import!E30849","v":"Select"},{"$f":"Import!E31049","v":"Select"},{"$f":"Import!E31249","v":"Select"},{"$f":"Import!E31449","v":"Select"},{"$f":"Import!E31649","v":"Select"},{"$f":"Import!E31849","v":"Select"},{"$f":"Import!E32049","v":"Select"},{"$f":"Import!E32249","v":0},{"$f":"Import!E32449","v":0},{"$f":"Import!E32649","v":0},{"$f":"Import!E32849","v":0},{"$f":"Import!E33049","v":0}]
[{"$f":"A1560+1","v":2},{"$f":"Import!E30850","v":"Select"},{"$f":"Import!E31050","v":"Select"},{"$f":"Import!E31250","v":"Select"},{"$f":"Import!E31450","v":"Select"},{"$f":"Import!E31650","v":"Select"},{"$f":"Import!E31850","v":"Select"},{"$f":"Import!E32050","v":"Select"},{"$f":"Import!E32250","v":0},{"$f":"Import!E32450","v":0},{"$f":"Import!E32650","v":0},{"$f":"Import!E32850","v":0},{"$f":"Import!E33050","v":0}]
[{"$f":"A1561+1","v":3},{"$f":"Import!E30851","v":"Select"},{"$f":"Import!E31051","v":"Select"},{"$f":"Import!E31251","v":"Select"},{"$f":"Import!E31451","v":"Select"},{"$f":"Import!E31651","v":"Select"},{"$f":"Import!E31851","v":"Select"},{"$f":"Import!E32051","v":"Select"},{"$f":"Import!E32251","v":0},{"$f":"Import!E32451","v":0},{"$f":"Import!E32651","v":0},{"$f":"Import!E32851","v":0},{"$f":"Import!E33051","v":0}]
[4,{"$f":"Import!E30852","v":"Select"},{"$f":"Import!E31052","v":"Select"},{"$f":"Import!E31252","v":"Select"},{"$f":"Import!E31452","v":"Select"},{"$f":"Import!E31652","v":"Select"},{"$f":"Import!E31852","v":"Select"},{"$f":"Import!E32052","v":"Select"},{"$f":"Import!E32252","v":0},{"$f":"Import!E32452","v":0},{"$f":"Import!E32652","v":0},{"$f":"Import!E32852","v":0},{"$f":"Import!E33052","v":0}]
[5,{"$f":"Import!E30853","v":"Select"},{"$f":"Import!E31053","v":"Select"},{"$f":"Import!E31253","v":"Select"},{"$f":"Import!E31453","v":"Select"},{"$f":"Import!E31653","v":"Select"},{"$f":"Import!E31853","v":"Select"},{"$f":"Import!E32053","v":"Select"},{"$f":"Import!E32253","v":0},{"$f":"Import!E32453","v":0},{"$f":"Import!E32653","v":0},{"$f":"Import!E32853","v":0},{"$f":"Import!E33053","v":0}]
[6,{"$f":"Import!E30854","v":"Select"},{"$f":"Import!E31054","v":"Select"},{"$f":"Import!E31254","v":"Select"},{"$f":"Import!E31454","v":"Select"},{"$f":"Import!E31654","v":"Select"},{"$f":"Import!E31854","v":"Select"},{"$f":"Import!E32054","v":"Select"},{"$f":"Import!E32254","v":0},{"$f":"Import!E32454","v":0},{"$f":"Import!E32654","v":0},{"$f":"Import!E32854","v":0},{"$f":"Import!E33054","v":0}]
[7,{"$f":"Import!E30855","v":"Select"},{"$f":"Import!E31055","v":"Select"},{"$f":"Import!E31255","v":"Select"},{"$f":"Import!E31455","v":"Select"},{"$f":"Import!E31655","v":"Select"},{"$f":"Import!E31855","v":"Select"},{"$f":"Import!E32055","v":"Select"},{"$f":"Import!E32255","v":0},{"$f":"Import!E32455","v":0},{"$f":"Import!E32655","v":0},{"$f":"Import!E32855","v":0},{"$f":"Import!E33055","v":0}]
[8,{"$f":"Import!E30856","v":"Select"},{"$f":"Import!E31056","v":"Select"},{"$f":"Import!E31256","v":"Select"},{"$f":"Import!E31456","v":"Select"},{"$f":"Import!E31656","v":"Select"},{"$f":"Import!E31856","v":"Select"},{"$f":"Import!E32056","v":"Select"},{"$f":"Import!E32256","v":0},{"$f":"Import!E32456","v":0},{"$f":"Import!E32656","v":0},{"$f":"Import!E32856","v":0},{"$f":"Import!E33056","v":0}]
[9,{"$f":"Import!E30857","v":"Select"},{"$f":"Import!E31057","v":"Select"},{"$f":"Import!E31257","v":"Select"},{"$f":"Import!E31457","v":"Select"},{"$f":"Import!E31657","v":"Select"},{"$f":"Import!E31857","v":"Select"},{"$f":"Import!E32057","v":"Select"},{"$f":"Import!E32257","v":0},{"$f":"Import!E32457","v":0},{"$f":"Import!E32657","v":0},{"$f":"Import!E32857","v":0},{"$f":"Import!E33057","v":0}]
[10,{"$f":"Import!E30858","v":"Select"},{"$f":"Import!E31058","v":"Select"},{"$f":"Import!E31258","v":"Select"},{"$f":"Import!E31458","v":"Select"},{"$f":"Import!E31658","v":"Select"},{"$f":"Import!E31858","v":"Select"},{"$f":"Import!E32058","v":"Select"},{"$f":"Import!E32258","v":0},{"$f":"Import!E32458","v":0},{"$f":"Import!E32658","v":0},{"$f":"Import!E32858","v":0},{"$f":"Import!E33058","v":0}]
[11,{"$f":"Import!E30859","v":"Select"},{"$f":"Import!E31059","v":"Select"},{"$f":"Import!E31259","v":"Select"},{"$f":"Import!E31459","v":"Select"},{"$f":"Import!E31659","v":"Select"},{"$f":"Import!E31859","v":"Select"},{"$f":"Import!E32059","v":"Select"},{"$f":"Import!E32259","v":0},{"$f":"Import!E32459","v":0},{"$f":"Import!E32659","v":0},{"$f":"Import!E32859","v":0},{"$f":"Import!E33059","v":0}]
[12,{"$f":"Import!E30860","v":"Select"},{"$f":"Import!E31060","v":"Select"},{"$f":"Import!E31260","v":"Select"},{"$f":"Import!E31460","v":"Select"},{"$f":"Import!E31660","v":"Select"},{"$f":"Import!E31860","v":"Select"},{"$f":"Import!E32060","v":"Select"},{"$f":"Import!E32260","v":0},{"$f":"Import!E32460","v":0},{"$f":"Import!E32660","v":0},{"$f":"Import!E32860","v":0},{"$f":"Import!E33060","v":0}]
[13,{"$f":"Import!E30861","v":"Select"},{"$f":"Import!E31061","v":"Select"},{"$f":"Import!E31261","v":"Select"},{"$f":"Import!E31461","v":"Select"},{"$f":"Import!E31661","v":"Select"},{"$f":"Import!E31861","v":"Select"},{"$f":"Import!E32061","v":"Select"},{"$f":"Import!E32261","v":0},{"$f":"Import!E32461","v":0},{"$f":"Import!E32661","v":0},{"$f":"Import!E32861","v":0},{"$f":"Import!E33061","v":0}]
[14,{"$f":"Import!E30862","v":"Select"},{"$f":"Import!E31062","v":"Select"},{"$f":"Import!E31262","v":"Select"},{"$f":"Import!E31462","v":"Select"},{"$f":"Import!E31662","v":"Select"},{"$f":"Import!E31862","v":"Select"},{"$f":"Import!E32062","v":"Select"},{"$f":"Import!E32262","v":0},{"$f":"Import!E32462","v":0},{"$f":"Import!E32662","v":0},{"$f":"Import!E32862","v":0},{"$f":"Import!E33062","v":0}]
[15,{"$f":"Import!E30863","v":"Select"},{"$f":"Import!E31063","v":"Select"},{"$f":"Import!E31263","v":"Select"},{"$f":"Import!E31463","v":"Select"},{"$f":"Import!E31663","v":"Select"},{"$f":"Import!E31863","v":"Select"},{"$f":"Import!E32063","v":"Select"},{"$f":"Import!E32263","v":0},{"$f":"Import!E32463","v":0},{"$f":"Import!E32663","v":0},{"$f":"Import!E32863","v":0},{"$f":"Import!E33063","v":0}]
[16,{"$f":"Import!E30864","v":"Select"},{"$f":"Import!E31064","v":"Select"},{"$f":"Import!E31264","v":"Select"},{"$f":"Import!E31464","v":"Select"},{"$f":"Import!E31664","v":"Select"},{"$f":"Import!E31864","v":"Select"},{"$f":"Import!E32064","v":"Select"},{"$f":"Import!E32264","v":0},{"$f":"Import!E32464","v":0},{"$f":"Import!E32664","v":0},{"$f":"Import!E32864","v":0},{"$f":"Import!E33064","v":0}]
[17,{"$f":"Import!E30865","v":"Select"},{"$f":"Import!E31065","v":"Select"},{"$f":"Import!E31265","v":"Select"},{"$f":"Import!E31465","v":"Select"},{"$f":"Import!E31665","v":"Select"},{"$f":"Import!E31865","v":"Select"},{"$f":"Import!E32065","v":"Select"},{"$f":"Import!E32265","v":0},{"$f":"Import!E32465","v":0},{"$f":"Import!E32665","v":0},{"$f":"Import!E32865","v":0},{"$f":"Import!E33065","v":0}]
[18,{"$f":"Import!E30866","v":"Select"},{"$f":"Import!E31066","v":"Select"},{"$f":"Import!E31266","v":"Select"},{"$f":"Import!E31466","v":"Select"},{"$f":"Import!E31666","v":"Select"},{"$f":"Import!E31866","v":"Select"},{"$f":"Import!E32066","v":"Select"},{"$f":"Import!E32266","v":0},{"$f":"Import!E32466","v":0},{"$f":"Import!E32666","v":0},{"$f":"Import!E32866","v":0},{"$f":"Import!E33066","v":0}]
[19,{"$f":"Import!E30867","v":"Select"},{"$f":"Import!E31067","v":"Select"},{"$f":"Import!E31267","v":"Select"},{"$f":"Import!E31467","v":"Select"},{"$f":"Import!E31667","v":"Select"},{"$f":"Import!E31867","v":"Select"},{"$f":"Import!E32067","v":"Select"},{"$f":"Import!E32267","v":0},{"$f":"Import!E32467","v":0},{"$f":"Import!E32667","v":0},{"$f":"Import!E32867","v":0},{"$f":"Import!E33067","v":0}]
[20,{"$f":"Import!E30868","v":"Select"},{"$f":"Import!E31068","v":"Select"},{"$f":"Import!E31268","v":"Select"},{"$f":"Import!E31468","v":"Select"},{"$f":"Import!E31668","v":"Select"},{"$f":"Import!E31868","v":"Select"},{"$f":"Import!E32068","v":"Select"},{"$f":"Import!E32268","v":0},{"$f":"Import!E32468","v":0},{"$f":"Import!E32668","v":0},{"$f":"Import!E32868","v":0},{"$f":"Import!E33068","v":0}]
[21,{"$f":"Import!E30869","v":"Select"},{"$f":"Import!E31069","v":"Select"},{"$f":"Import!E31269","v":"Select"},{"$f":"Import!E31469","v":"Select"},{"$f":"Import!E31669","v":"Select"},{"$f":"Import!E31869","v":"Select"},{"$f":"Import!E32069","v":"Select"},{"$f":"Import!E32269","v":0},{"$f":"Import!E32469","v":0},{"$f":"Import!E32669","v":0},{"$f":"Import!E32869","v":0},{"$f":"Import!E33069","v":0}]
[22,{"$f":"Import!E30870","v":"Select"},{"$f":"Import!E31070","v":"Select"},{"$f":"Import!E31270","v":"Select"},{"$f":"Import!E31470","v":"Select"},{"$f":"Import!E31670","v":"Select"},{"$f":"Import!E31870","v":"Select"},{"$f":"Import!E32070","v":"Select"},{"$f":"Import!E32270","v":0},{"$f":"Import!E32470","v":0},{"$f":"Import!E32670","v":0},{"$f":"Import!E32870","v":0},{"$f":"Import!E33070","v":0}]
[23,{"$f":"Import!E30871","v":"Select"},{"$f":"Import!E31071","v":"Select"},{"$f":"Import!E31271","v":"Select"},{"$f":"Import!E31471","v":"Select"},{"$f":"Import!E31671","v":"Select"},{"$f":"Import!E31871","v":"Select"},{"$f":"Import!E32071","v":"Select"},{"$f":"Import!E32271","v":0},{"$f":"Import!E32471","v":0},{"$f":"Import!E32671","v":0},{"$f":"Import!E32871","v":0},{"$f":"Import!E33071","v":0}]
[24,{"$f":"Import!E30872","v":"Select"},{"$f":"Import!E31072","v":"Select"},{"$f":"Import!E31272","v":"Select"},{"$f":"Import!E31472","v":"Select"},{"$f":"Import!E31672","v":"Select"},{"$f":"Import!E31872","v":"Select"},{"$f":"Import!E32072","v":"Select"},{"$f":"Import!E32272","v":0},{"$f":"Import!E32472","v":0},{"$f":"Import!E32672","v":0},{"$f":"Import!E32872","v":0},{"$f":"Import!E33072","v":0}]
[25,{"$f":"Import!E30873","v":"Select"},{"$f":"Import!E31073","v":"Select"},{"$f":"Import!E31273","v":"Select"},{"$f":"Import!E31473","v":"Select"},{"$f":"Import!E31673","v":"Select"},{"$f":"Import!E31873","v":"Select"},{"$f":"Import!E32073","v":"Select"},{"$f":"Import!E32273","v":0},{"$f":"Import!E32473","v":0},{"$f":"Import!E32673","v":0},{"$f":"Import!E32873","v":0},{"$f":"Import!E33073","v":0}]
[26,{"$f":"Import!E30874","v":"Select"},{"$f":"Import!E31074","v":"Select"},{"$f":"Import!E31274","v":"Select"},{"$f":"Import!E31474","v":"Select"},{"$f":"Import!E31674","v":"Select"},{"$f":"Import!E31874","v":"Select"},{"$f":"Import!E32074","v":"Select"},{"$f":"Import!E32274","v":0},{"$f":"Import!E32474","v":0},{"$f":"Import!E32674","v":0},{"$f":"Import!E32874","v":0},{"$f":"Import!E33074","v":0}]
[27,{"$f":"Import!E30875","v":"Select"},{"$f":"Import!E31075","v":"Select"},{"$f":"Import!E31275","v":"Select"},{"$f":"Import!E31475","v":"Select"},{"$f":"Import!E31675","v":"Select"},{"$f":"Import!E31875","v":"Select"},{"$f":"Import!E32075","v":"Select"},{"$f":"Import!E32275","v":0},{"$f":"Import!E32475","v":0},{"$f":"Import!E32675","v":0},{"$f":"Import!E32875","v":0},{"$f":"Import!E33075","v":0}]
[28,{"$f":"Import!E30876","v":"Select"},{"$f":"Import!E31076","v":"Select"},{"$f":"Import!E31276","v":"Select"},{"$f":"Import!E31476","v":"Select"},{"$f":"Import!E31676","v":"Select"},{"$f":"Import!E31876","v":"Select"},{"$f":"Import!E32076","v":"Select"},{"$f":"Import!E32276","v":0},{"$f":"Import!E32476","v":0},{"$f":"Import!E32676","v":0},{"$f":"Import!E32876","v":0},{"$f":"Import!E33076","v":0}]
[29,{"$f":"Import!E30877","v":"Select"},{"$f":"Import!E31077","v":"Select"},{"$f":"Import!E31277","v":"Select"},{"$f":"Import!E31477","v":"Select"},{"$f":"Import!E31677","v":"Select"},{"$f":"Import!E31877","v":"Select"},{"$f":"Import!E32077","v":"Select"},{"$f":"Import!E32277","v":0},{"$f":"Import!E32477","v":0},{"$f":"Import!E32677","v":0},{"$f":"Import!E32877","v":0},{"$f":"Import!E33077","v":0}]
[30,{"$f":"Import!E30878","v":"Select"},{"$f":"Import!E31078","v":"Select"},{"$f":"Import!E31278","v":"Select"},{"$f":"Import!E31478","v":"Select"},{"$f":"Import!E31678","v":"Select"},{"$f":"Import!E31878","v":"Select"},{"$f":"Import!E32078","v":"Select"},{"$f":"Import!E32278","v":0},{"$f":"Import!E32478","v":0},{"$f":"Import!E32678","v":0},{"$f":"Import!E32878","v":0},{"$f":"Import!E33078","v":0}]
[31,{"$f":"Import!E30879","v":"Select"},{"$f":"Import!E31079","v":"Select"},{"$f":"Import!E31279","v":"Select"},{"$f":"Import!E31479","v":"Select"},{"$f":"Import!E31679","v":"Select"},{"$f":"Import!E31879","v":"Select"},{"$f":"Import!E32079","v":"Select"},{"$f":"Import!E32279","v":0},{"$f":"Import!E32479","v":0},{"$f":"Import!E32679","v":0},{"$f":"Import!E32879","v":0},{"$f":"Import!E33079","v":0}]
[32,{"$f":"Import!E30880","v":"Select"},{"$f":"Import!E31080","v":"Select"},{"$f":"Import!E31280","v":"Select"},{"$f":"Import!E31480","v":"Select"},{"$f":"Import!E31680","v":"Select"},{"$f":"Import!E31880","v":"Select"},{"$f":"Import!E32080","v":"Select"},{"$f":"Import!E32280","v":0},{"$f":"Import!E32480","v":0},{"$f":"Import!E32680","v":0},{"$f":"Import!E32880","v":0},{"$f":"Import!E33080","v":0}]
[33,{"$f":"Import!E30881","v":"Select"},{"$f":"Import!E31081","v":"Select"},{"$f":"Import!E31281","v":"Select"},{"$f":"Import!E31481","v":"Select"},{"$f":"Import!E31681","v":"Select"},{"$f":"Import!E31881","v":"Select"},{"$f":"Import!E32081","v":"Select"},{"$f":"Import!E32281","v":0},{"$f":"Import!E32481","v":0},{"$f":"Import!E32681","v":0},{"$f":"Import!E32881","v":0},{"$f":"Import!E33081","v":0}]
[34,{"$f":"Import!E30882","v":"Select"},{"$f":"Import!E31082","v":"Select"},{"$f":"Import!E31282","v":"Select"},{"$f":"Import!E31482","v":"Select"},{"$f":"Import!E31682","v":"Select"},{"$f":"Import!E31882","v":"Select"},{"$f":"Import!E32082","v":"Select"},{"$f":"Import!E32282","v":0},{"$f":"Import!E32482","v":0},{"$f":"Import!E32682","v":0},{"$f":"Import!E32882","v":0},{"$f":"Import!E33082","v":0}]
[35,{"$f":"Import!E30883","v":"Select"},{"$f":"Import!E31083","v":"Select"},{"$f":"Import!E31283","v":"Select"},{"$f":"Import!E31483","v":"Select"},{"$f":"Import!E31683","v":"Select"},{"$f":"Import!E31883","v":"Select"},{"$f":"Import!E32083","v":"Select"},{"$f":"Import!E32283","v":0},{"$f":"Import!E32483","v":0},{"$f":"Import!E32683","v":0},{"$f":"Import!E32883","v":0},{"$f":"Import!E33083","v":0}]
[36,{"$f":"Import!E30884","v":"Select"},{"$f":"Import!E31084","v":"Select"},{"$f":"Import!E31284","v":"Select"},{"$f":"Import!E31484","v":"Select"},{"$f":"Import!E31684","v":"Select"},{"$f":"Import!E31884","v":"Select"},{"$f":"Import!E32084","v":"Select"},{"$f":"Import!E32284","v":0},{"$f":"Import!E32484","v":0},{"$f":"Import!E32684","v":0},{"$f":"Import!E32884","v":0},{"$f":"Import!E33084","v":0}]
[37,{"$f":"Import!E30885","v":"Select"},{"$f":"Import!E31085","v":"Select"},{"$f":"Import!E31285","v":"Select"},{"$f":"Import!E31485","v":"Select"},{"$f":"Import!E31685","v":"Select"},{"$f":"Import!E31885","v":"Select"},{"$f":"Import!E32085","v":"Select"},{"$f":"Import!E32285","v":0},{"$f":"Import!E32485","v":0},{"$f":"Import!E32685","v":0},{"$f":"Import!E32885","v":0},{"$f":"Import!E33085","v":0}]
[38,{"$f":"Import!E30886","v":"Select"},{"$f":"Import!E31086","v":"Select"},{"$f":"Import!E31286","v":"Select"},{"$f":"Import!E31486","v":"Select"},{"$f":"Import!E31686","v":"Select"},{"$f":"Import!E31886","v":"Select"},{"$f":"Import!E32086","v":"Select"},{"$f":"Import!E32286","v":0},{"$f":"Import!E32486","v":0},{"$f":"Import!E32686","v":0},{"$f":"Import!E32886","v":0},{"$f":"Import!E33086","v":0}]
[39,{"$f":"Import!E30887","v":"Select"},{"$f":"Import!E31087","v":"Select"},{"$f":"Import!E31287","v":"Select"},{"$f":"Import!E31487","v":"Select"},{"$f":"Import!E31687","v":"Select"},{"$f":"Import!E31887","v":"Select"},{"$f":"Import!E32087","v":"Select"},{"$f":"Import!E32287","v":0},{"$f":"Import!E32487","v":0},{"$f":"Import!E32687","v":0},{"$f":"Import!E32887","v":0},{"$f":"Import!E33087","v":0}]
[40,{"$f":"Import!E30888","v":"Select"},{"$f":"Import!E31088","v":"Select"},{"$f":"Import!E31288","v":"Select"},{"$f":"Import!E31488","v":"Select"},{"$f":"Import!E31688","v":"Select"},{"$f":"Import!E31888","v":"Select"},{"$f":"Import!E32088","v":"Select"},{"$f":"Import!E32288","v":0},{"$f":"Import!E32488","v":0},{"$f":"Import!E32688","v":0},{"$f":"Import!E32888","v":0},{"$f":"Import!E33088","v":0}]
[41,{"$f":"Import!E30889","v":"Select"},{"$f":"Import!E31089","v":"Select"},{"$f":"Import!E31289","v":"Select"},{"$f":"Import!E31489","v":"Select"},{"$f":"Import!E31689","v":"Select"},{"$f":"Import!E31889","v":"Select"},{"$f":"Import!E32089","v":"Select"},{"$f":"Import!E32289","v":0},{"$f":"Import!E32489","v":0},{"$f":"Import!E32689","v":0},{"$f":"Import!E32889","v":0},{"$f":"Import!E33089","v":0}]
[42,{"$f":"Import!E30890","v":"Select"},{"$f":"Import!E31090","v":"Select"},{"$f":"Import!E31290","v":"Select"},{"$f":"Import!E31490","v":"Select"},{"$f":"Import!E31690","v":"Select"},{"$f":"Import!E31890","v":"Select"},{"$f":"Import!E32090","v":"Select"},{"$f":"Import!E32290","v":0},{"$f":"Import!E32490","v":0},{"$f":"Import!E32690","v":0},{"$f":"Import!E32890","v":0},{"$f":"Import!E33090","v":0}]
[43,{"$f":"Import!E30891","v":"Select"},{"$f":"Import!E31091","v":"Select"},{"$f":"Import!E31291","v":"Select"},{"$f":"Import!E31491","v":"Select"},{"$f":"Import!E31691","v":"Select"},{"$f":"Import!E31891","v":"Select"},{"$f":"Import!E32091","v":"Select"},{"$f":"Import!E32291","v":0},{"$f":"Import!E32491","v":0},{"$f":"Import!E32691","v":0},{"$f":"Import!E32891","v":0},{"$f":"Import!E33091","v":0}]
[44,{"$f":"Import!E30892","v":"Select"},{"$f":"Import!E31092","v":"Select"},{"$f":"Import!E31292","v":"Select"},{"$f":"Import!E31492","v":"Select"},{"$f":"Import!E31692","v":"Select"},{"$f":"Import!E31892","v":"Select"},{"$f":"Import!E32092","v":"Select"},{"$f":"Import!E32292","v":0},{"$f":"Import!E32492","v":0},{"$f":"Import!E32692","v":0},{"$f":"Import!E32892","v":0},{"$f":"Import!E33092","v":0}]
[45,{"$f":"Import!E30893","v":"Select"},{"$f":"Import!E31093","v":"Select"},{"$f":"Import!E31293","v":"Select"},{"$f":"Import!E31493","v":"Select"},{"$f":"Import!E31693","v":"Select"},{"$f":"Import!E31893","v":"Select"},{"$f":"Import!E32093","v":"Select"},{"$f":"Import!E32293","v":0},{"$f":"Import!E32493","v":0},{"$f":"Import!E32693","v":0},{"$f":"Import!E32893","v":0},{"$f":"Import!E33093","v":0}]
[46,{"$f":"Import!E30894","v":"Select"},{"$f":"Import!E31094","v":"Select"},{"$f":"Import!E31294","v":"Select"},{"$f":"Import!E31494","v":"Select"},{"$f":"Import!E31694","v":"Select"},{"$f":"Import!E31894","v":"Select"},{"$f":"Import!E32094","v":"Select"},{"$f":"Import!E32294","v":0},{"$f":"Import!E32494","v":0},{"$f":"Import!E32694","v":0},{"$f":"Import!E32894","v":0},{"$f":"Import!E33094","v":0}]
[47,{"$f":"Import!E30895","v":"Select"},{"$f":"Import!E31095","v":"Select"},{"$f":"Import!E31295","v":"Select"},{"$f":"Import!E31495","v":"Select"},{"$f":"Import!E31695","v":"Select"},{"$f":"Import!E31895","v":"Select"},{"$f":"Import!E32095","v":"Select"},{"$f":"Import!E32295","v":0},{"$f":"Import!E32495","v":0},{"$f":"Import!E32695","v":0},{"$f":"Import!E32895","v":0},{"$f":"Import!E33095","v":0}]
[48,{"$f":"Import!E30896","v":"Select"},{"$f":"Import!E31096","v":"Select"},{"$f":"Import!E31296","v":"Select"},{"$f":"Import!E31496","v":"Select"},{"$f":"Import!E31696","v":"Select"},{"$f":"Import!E31896","v":"Select"},{"$f":"Import!E32096","v":"Select"},{"$f":"Import!E32296","v":0},{"$f":"Import!E32496","v":0},{"$f":"Import!E32696","v":0},{"$f":"Import!E32896","v":0},{"$f":"Import!E33096","v":0}]
[49,{"$f":"Import!E30897","v":"Select"},{"$f":"Import!E31097","v":"Select"},{"$f":"Import!E31297","v":"Select"},{"$f":"Import!E31497","v":"Select"},{"$f":"Import!E31697","v":"Select"},{"$f":"Import!E31897","v":"Select"},{"$f":"Import!E32097","v":"Select"},{"$f":"Import!E32297","v":0},{"$f":"Import!E32497","v":0},{"$f":"Import!E32697","v":0},{"$f":"Import!E32897","v":0},{"$f":"Import!E33097","v":0}]
[50,{"$f":"Import!E30898","v":"Select"},{"$f":"Import!E31098","v":"Select"},{"$f":"Import!E31298","v":"Select"},{"$f":"Import!E31498","v":"Select"},{"$f":"Import!E31698","v":"Select"},{"$f":"Import!E31898","v":"Select"},{"$f":"Import!E32098","v":"Select"},{"$f":"Import!E32298","v":0},{"$f":"Import!E32498","v":0},{"$f":"Import!E32698","v":0},{"$f":"Import!E32898","v":0},{"$f":"Import!E33098","v":0}]
[51,{"$f":"Import!E30899","v":"Select"},{"$f":"Import!E31099","v":"Select"},{"$f":"Import!E31299","v":"Select"},{"$f":"Import!E31499","v":"Select"},{"$f":"Import!E31699","v":"Select"},{"$f":"Import!E31899","v":"Select"},{"$f":"Import!E32099","v":"Select"},{"$f":"Import!E32299","v":0},{"$f":"Import!E32499","v":0},{"$f":"Import!E32699","v":0},{"$f":"Import!E32899","v":0},{"$f":"Import!E33099","v":0}]
[52,{"$f":"Import!E30900","v":"Select"},{"$f":"Import!E31100","v":"Select"},{"$f":"Import!E31300","v":"Select"},{"$f":"Import!E31500","v":"Select"},{"$f":"Import!E31700","v":"Select"},{"$f":"Import!E31900","v":"Select"},{"$f":"Import!E32100","v":"Select"},{"$f":"Import!E32300","v":0},{"$f":"Import!E32500","v":0},{"$f":"Import!E32700","v":0},{"$f":"Import!E32900","v":0},{"$f":"Import!E33100","v":0}]
[53,{"$f":"Import!E30901","v":"Select"},{"$f":"Import!E31101","v":"Select"},{"$f":"Import!E31301","v":"Select"},{"$f":"Import!E31501","v":"Select"},{"$f":"Import!E31701","v":"Select"},{"$f":"Import!E31901","v":"Select"},{"$f":"Import!E32101","v":"Select"},{"$f":"Import!E32301","v":0},{"$f":"Import!E32501","v":0},{"$f":"Import!E32701","v":0},{"$f":"Import!E32901","v":0},{"$f":"Import!E33101","v":0}]
[54,{"$f":"Import!E30902","v":"Select"},{"$f":"Import!E31102","v":"Select"},{"$f":"Import!E31302","v":"Select"},{"$f":"Import!E31502","v":"Select"},{"$f":"Import!E31702","v":"Select"},{"$f":"Import!E31902","v":"Select"},{"$f":"Import!E32102","v":"Select"},{"$f":"Import!E32302","v":0},{"$f":"Import!E32502","v":0},{"$f":"Import!E32702","v":0},{"$f":"Import!E32902","v":0},{"$f":"Import!E33102","v":0}]
[55,{"$f":"Import!E30903","v":"Select"},{"$f":"Import!E31103","v":"Select"},{"$f":"Import!E31303","v":"Select"},{"$f":"Import!E31503","v":"Select"},{"$f":"Import!E31703","v":"Select"},{"$f":"Import!E31903","v":"Select"},{"$f":"Import!E32103","v":"Select"},{"$f":"Import!E32303","v":0},{"$f":"Import!E32503","v":0},{"$f":"Import!E32703","v":0},{"$f":"Import!E32903","v":0},{"$f":"Import!E33103","v":0}]
[56,{"$f":"Import!E30904","v":"Select"},{"$f":"Import!E31104","v":"Select"},{"$f":"Import!E31304","v":"Select"},{"$f":"Import!E31504","v":"Select"},{"$f":"Import!E31704","v":"Select"},{"$f":"Import!E31904","v":"Select"},{"$f":"Import!E32104","v":"Select"},{"$f":"Import!E32304","v":0},{"$f":"Import!E32504","v":0},{"$f":"Import!E32704","v":0},{"$f":"Import!E32904","v":0},{"$f":"Import!E33104","v":0}]
[57,{"$f":"Import!E30905","v":"Select"},{"$f":"Import!E31105","v":"Select"},{"$f":"Import!E31305","v":"Select"},{"$f":"Import!E31505","v":"Select"},{"$f":"Import!E31705","v":"Select"},{"$f":"Import!E31905","v":"Select"},{"$f":"Import!E32105","v":"Select"},{"$f":"Import!E32305","v":0},{"$f":"Import!E32505","v":0},{"$f":"Import!E32705","v":0},{"$f":"Import!E32905","v":0},{"$f":"Import!E33105","v":0}]
[58,{"$f":"Import!E30906","v":"Select"},{"$f":"Import!E31106","v":"Select"},{"$f":"Import!E31306","v":"Select"},{"$f":"Import!E31506","v":"Select"},{"$f":"Import!E31706","v":"Select"},{"$f":"Import!E31906","v":"Select"},{"$f":"Import!E32106","v":"Select"},{"$f":"Import!E32306","v":0},{"$f":"Import!E32506","v":0},{"$f":"Import!E32706","v":0},{"$f":"Import!E32906","v":0},{"$f":"Import!E33106","v":0}]
[59,{"$f":"Import!E30907","v":"Select"},{"$f":"Import!E31107","v":"Select"},{"$f":"Import!E31307","v":"Select"},{"$f":"Import!E31507","v":"Select"},{"$f":"Import!E31707","v":"Select"},{"$f":"Import!E31907","v":"Select"},{"$f":"Import!E32107","v":"Select"},{"$f":"Import!E32307","v":0},{"$f":"Import!E32507","v":0},{"$f":"Import!E32707","v":0},{"$f":"Import!E32907","v":0},{"$f":"Import!E33107","v":0}]
[60,{"$f":"Import!E30908","v":"Select"},{"$f":"Import!E31108","v":"Select"},{"$f":"Import!E31308","v":"Select"},{"$f":"Import!E31508","v":"Select"},{"$f":"Import!E31708","v":"Select"},{"$f":"Import!E31908","v":"Select"},{"$f":"Import!E32108","v":"Select"},{"$f":"Import!E32308","v":0},{"$f":"Import!E32508","v":0},{"$f":"Import!E32708","v":0},{"$f":"Import!E32908","v":0},{"$f":"Import!E33108","v":0}]
[61,{"$f":"Import!E30909","v":"Select"},{"$f":"Import!E31109","v":"Select"},{"$f":"Import!E31309","v":"Select"},{"$f":"Import!E31509","v":"Select"},{"$f":"Import!E31709","v":"Select"},{"$f":"Import!E31909","v":"Select"},{"$f":"Import!E32109","v":"Select"},{"$f":"Import!E32309","v":0},{"$f":"Import!E32509","v":0},{"$f":"Import!E32709","v":0},{"$f":"Import!E32909","v":0},{"$f":"Import!E33109","v":0}]
[62,{"$f":"Import!E30910","v":"Select"},{"$f":"Import!E31110","v":"Select"},{"$f":"Import!E31310","v":"Select"},{"$f":"Import!E31510","v":"Select"},{"$f":"Import!E31710","v":"Select"},{"$f":"Import!E31910","v":"Select"},{"$f":"Import!E32110","v":"Select"},{"$f":"Import!E32310","v":0},{"$f":"Import!E32510","v":0},{"$f":"Import!E32710","v":0},{"$f":"Import!E32910","v":0},{"$f":"Import!E33110","v":0}]
[63,{"$f":"Import!E30911","v":"Select"},{"$f":"Import!E31111","v":"Select"},{"$f":"Import!E31311","v":"Select"},{"$f":"Import!E31511","v":"Select"},{"$f":"Import!E31711","v":"Select"},{"$f":"Import!E31911","v":"Select"},{"$f":"Import!E32111","v":"Select"},{"$f":"Import!E32311","v":0},{"$f":"Import!E32511","v":0},{"$f":"Import!E32711","v":0},{"$f":"Import!E32911","v":0},{"$f":"Import!E33111","v":0}]
[64,{"$f":"Import!E30912","v":"Select"},{"$f":"Import!E31112","v":"Select"},{"$f":"Import!E31312","v":"Select"},{"$f":"Import!E31512","v":"Select"},{"$f":"Import!E31712","v":"Select"},{"$f":"Import!E31912","v":"Select"},{"$f":"Import!E32112","v":"Select"},{"$f":"Import!E32312","v":0},{"$f":"Import!E32512","v":0},{"$f":"Import!E32712","v":0},{"$f":"Import!E32912","v":0},{"$f":"Import!E33112","v":0}]
[65,{"$f":"Import!E30913","v":"Select"},{"$f":"Import!E31113","v":"Select"},{"$f":"Import!E31313","v":"Select"},{"$f":"Import!E31513","v":"Select"},{"$f":"Import!E31713","v":"Select"},{"$f":"Import!E31913","v":"Select"},{"$f":"Import!E32113","v":"Select"},{"$f":"Import!E32313","v":0},{"$f":"Import!E32513","v":0},{"$f":"Import!E32713","v":0},{"$f":"Import!E32913","v":0},{"$f":"Import!E33113","v":0}]
[66,{"$f":"Import!E30914","v":"Select"},{"$f":"Import!E31114","v":"Select"},{"$f":"Import!E31314","v":"Select"},{"$f":"Import!E31514","v":"Select"},{"$f":"Import!E31714","v":"Select"},{"$f":"Import!E31914","v":"Select"},{"$f":"Import!E32114","v":"Select"},{"$f":"Import!E32314","v":0},{"$f":"Import!E32514","v":0},{"$f":"Import!E32714","v":0},{"$f":"Import!E32914","v":0},{"$f":"Import!E33114","v":0}]
[{"$f":"A1625+1","v":67},{"$f":"Import!E30915","v":"Select"},{"$f":"Import!E31115","v":"Select"},{"$f":"Import!E31315","v":"Select"},{"$f":"Import!E31515","v":"Select"},{"$f":"Import!E31715","v":"Select"},{"$f":"Import!E31915","v":"Select"},{"$f":"Import!E32115","v":"Select"},{"$f":"Import!E32315","v":0},{"$f":"Import!E32515","v":0},{"$f":"Import!E32715","v":0},{"$f":"Import!E32915","v":0},{"$f":"Import!E33115","v":0}]
[68,{"$f":"Import!E30916","v":"Select"},{"$f":"Import!E31116","v":"Select"},{"$f":"Import!E31316","v":"Select"},{"$f":"Import!E31516","v":"Select"},{"$f":"Import!E31716","v":"Select"},{"$f":"Import!E31916","v":"Select"},{"$f":"Import!E32116","v":"Select"},{"$f":"Import!E32316","v":0},{"$f":"Import!E32516","v":0},{"$f":"Import!E32716","v":0},{"$f":"Import!E32916","v":0},{"$f":"Import!E33116","v":0}]
[69,{"$f":"Import!E30917","v":"Select"},{"$f":"Import!E31117","v":"Select"},{"$f":"Import!E31317","v":"Select"},{"$f":"Import!E31517","v":"Select"},{"$f":"Import!E31717","v":"Select"},{"$f":"Import!E31917","v":"Select"},{"$f":"Import!E32117","v":"Select"},{"$f":"Import!E32317","v":0},{"$f":"Import!E32517","v":0},{"$f":"Import!E32717","v":0},{"$f":"Import!E32917","v":0},{"$f":"Import!E33117","v":0}]
[70,{"$f":"Import!E30918","v":"Select"},{"$f":"Import!E31118","v":"Select"},{"$f":"Import!E31318","v":"Select"},{"$f":"Import!E31518","v":"Select"},{"$f":"Import!E31718","v":"Select"},{"$f":"Import!E31918","v":"Select"},{"$f":"Import!E32118","v":"Select"},{"$f":"Import!E32318","v":0},{"$f":"Import!E32518","v":0},{"$f":"Import!E32718","v":0},{"$f":"Import!E32918","v":0},{"$f":"Import!E33118","v":0}]
[71,{"$f":"Import!E30919","v":"Select"},{"$f":"Import!E31119","v":"Select"},{"$f":"Import!E31319","v":"Select"},{"$f":"Import!E31519","v":"Select"},{"$f":"Import!E31719","v":"Select"},{"$f":"Import!E31919","v":"Select"},{"$f":"Import!E32119","v":"Select"},{"$f":"Import!E32319","v":0},{"$f":"Import!E32519","v":0},{"$f":"Import!E32719","v":0},{"$f":"Import!E32919","v":0},{"$f":"Import!E33119","v":0}]
[72,{"$f":"Import!E30920","v":"Select"},{"$f":"Import!E31120","v":"Select"},{"$f":"Import!E31320","v":"Select"},{"$f":"Import!E31520","v":"Select"},{"$f":"Import!E31720","v":"Select"},{"$f":"Import!E31920","v":"Select"},{"$f":"Import!E32120","v":"Select"},{"$f":"Import!E32320","v":0},{"$f":"Import!E32520","v":0},{"$f":"Import!E32720","v":0},{"$f":"Import!E32920","v":0},{"$f":"Import!E33120","v":0}]
[73,{"$f":"Import!E30921","v":"Select"},{"$f":"Import!E31121","v":"Select"},{"$f":"Import!E31321","v":"Select"},{"$f":"Import!E31521","v":"Select"},{"$f":"Import!E31721","v":"Select"},{"$f":"Import!E31921","v":"Select"},{"$f":"Import!E32121","v":"Select"},{"$f":"Import!E32321","v":0},{"$f":"Import!E32521","v":0},{"$f":"Import!E32721","v":0},{"$f":"Import!E32921","v":0},{"$f":"Import!E33121","v":0}]
[74,{"$f":"Import!E30922","v":"Select"},{"$f":"Import!E31122","v":"Select"},{"$f":"Import!E31322","v":"Select"},{"$f":"Import!E31522","v":"Select"},{"$f":"Import!E31722","v":"Select"},{"$f":"Import!E31922","v":"Select"},{"$f":"Import!E32122","v":"Select"},{"$f":"Import!E32322","v":0},{"$f":"Import!E32522","v":0},{"$f":"Import!E32722","v":0},{"$f":"Import!E32922","v":0},{"$f":"Import!E33122","v":0}]
[75,{"$f":"Import!E30923","v":"Select"},{"$f":"Import!E31123","v":"Select"},{"$f":"Import!E31323","v":"Select"},{"$f":"Import!E31523","v":"Select"},{"$f":"Import!E31723","v":"Select"},{"$f":"Import!E31923","v":"Select"},{"$f":"Import!E32123","v":"Select"},{"$f":"Import!E32323","v":0},{"$f":"Import!E32523","v":0},{"$f":"Import!E32723","v":0},{"$f":"Import!E32923","v":0},{"$f":"Import!E33123","v":0}]
[76,{"$f":"Import!E30924","v":"Select"},{"$f":"Import!E31124","v":"Select"},{"$f":"Import!E31324","v":"Select"},{"$f":"Import!E31524","v":"Select"},{"$f":"Import!E31724","v":"Select"},{"$f":"Import!E31924","v":"Select"},{"$f":"Import!E32124","v":"Select"},{"$f":"Import!E32324","v":0},{"$f":"Import!E32524","v":0},{"$f":"Import!E32724","v":0},{"$f":"Import!E32924","v":0},{"$f":"Import!E33124","v":0}]
[77,{"$f":"Import!E30925","v":"Select"},{"$f":"Import!E31125","v":"Select"},{"$f":"Import!E31325","v":"Select"},{"$f":"Import!E31525","v":"Select"},{"$f":"Import!E31725","v":"Select"},{"$f":"Import!E31925","v":"Select"},{"$f":"Import!E32125","v":"Select"},{"$f":"Import!E32325","v":0},{"$f":"Import!E32525","v":0},{"$f":"Import!E32725","v":0},{"$f":"Import!E32925","v":0},{"$f":"Import!E33125","v":0}]
[78,{"$f":"Import!E30926","v":"Select"},{"$f":"Import!E31126","v":"Select"},{"$f":"Import!E31326","v":"Select"},{"$f":"Import!E31526","v":"Select"},{"$f":"Import!E31726","v":"Select"},{"$f":"Import!E31926","v":"Select"},{"$f":"Import!E32126","v":"Select"},{"$f":"Import!E32326","v":0},{"$f":"Import!E32526","v":0},{"$f":"Import!E32726","v":0},{"$f":"Import!E32926","v":0},{"$f":"Import!E33126","v":0}]
[79,{"$f":"Import!E30927","v":"Select"},{"$f":"Import!E31127","v":"Select"},{"$f":"Import!E31327","v":"Select"},{"$f":"Import!E31527","v":"Select"},{"$f":"Import!E31727","v":"Select"},{"$f":"Import!E31927","v":"Select"},{"$f":"Import!E32127","v":"Select"},{"$f":"Import!E32327","v":0},{"$f":"Import!E32527","v":0},{"$f":"Import!E32727","v":0},{"$f":"Import!E32927","v":0},{"$f":"Import!E33127","v":0}]
[80,{"$f":"Import!E30928","v":"Select"},{"$f":"Import!E31128","v":"Select"},{"$f":"Import!E31328","v":"Select"},{"$f":"Import!E31528","v":"Select"},{"$f":"Import!E31728","v":"Select"},{"$f":"Import!E31928","v":"Select"},{"$f":"Import!E32128","v":"Select"},{"$f":"Import!E32328","v":0},{"$f":"Import!E32528","v":0},{"$f":"Import!E32728","v":0},{"$f":"Import!E32928","v":0},{"$f":"Import!E33128","v":0}]
[81,{"$f":"Import!E30929","v":"Select"},{"$f":"Import!E31129","v":"Select"},{"$f":"Import!E31329","v":"Select"},{"$f":"Import!E31529","v":"Select"},{"$f":"Import!E31729","v":"Select"},{"$f":"Import!E31929","v":"Select"},{"$f":"Import!E32129","v":"Select"},{"$f":"Import!E32329","v":0},{"$f":"Import!E32529","v":0},{"$f":"Import!E32729","v":0},{"$f":"Import!E32929","v":0},{"$f":"Import!E33129","v":0}]
[82,{"$f":"Import!E30930","v":"Select"},{"$f":"Import!E31130","v":"Select"},{"$f":"Import!E31330","v":"Select"},{"$f":"Import!E31530","v":"Select"},{"$f":"Import!E31730","v":"Select"},{"$f":"Import!E31930","v":"Select"},{"$f":"Import!E32130","v":"Select"},{"$f":"Import!E32330","v":0},{"$f":"Import!E32530","v":0},{"$f":"Import!E32730","v":0},{"$f":"Import!E32930","v":0},{"$f":"Import!E33130","v":0}]
[83,{"$f":"Import!E30931","v":"Select"},{"$f":"Import!E31131","v":"Select"},{"$f":"Import!E31331","v":"Select"},{"$f":"Import!E31531","v":"Select"},{"$f":"Import!E31731","v":"Select"},{"$f":"Import!E31931","v":"Select"},{"$f":"Import!E32131","v":"Select"},{"$f":"Import!E32331","v":0},{"$f":"Import!E32531","v":0},{"$f":"Import!E32731","v":0},{"$f":"Import!E32931","v":0},{"$f":"Import!E33131","v":0}]
[84,{"$f":"Import!E30932","v":"Select"},{"$f":"Import!E31132","v":"Select"},{"$f":"Import!E31332","v":"Select"},{"$f":"Import!E31532","v":"Select"},{"$f":"Import!E31732","v":"Select"},{"$f":"Import!E31932","v":"Select"},{"$f":"Import!E32132","v":"Select"},{"$f":"Import!E32332","v":0},{"$f":"Import!E32532","v":0},{"$f":"Import!E32732","v":0},{"$f":"Import!E32932","v":0},{"$f":"Import!E33132","v":0}]
[85,{"$f":"Import!E30933","v":"Select"},{"$f":"Import!E31133","v":"Select"},{"$f":"Import!E31333","v":"Select"},{"$f":"Import!E31533","v":"Select"},{"$f":"Import!E31733","v":"Select"},{"$f":"Import!E31933","v":"Select"},{"$f":"Import!E32133","v":"Select"},{"$f":"Import!E32333","v":0},{"$f":"Import!E32533","v":0},{"$f":"Import!E32733","v":0},{"$f":"Import!E32933","v":0},{"$f":"Import!E33133","v":0}]
[86,{"$f":"Import!E30934","v":"Select"},{"$f":"Import!E31134","v":"Select"},{"$f":"Import!E31334","v":"Select"},{"$f":"Import!E31534","v":"Select"},{"$f":"Import!E31734","v":"Select"},{"$f":"Import!E31934","v":"Select"},{"$f":"Import!E32134","v":"Select"},{"$f":"Import!E32334","v":0},{"$f":"Import!E32534","v":0},{"$f":"Import!E32734","v":0},{"$f":"Import!E32934","v":0},{"$f":"Import!E33134","v":0}]
[87,{"$f":"Import!E30935","v":"Select"},{"$f":"Import!E31135","v":"Select"},{"$f":"Import!E31335","v":"Select"},{"$f":"Import!E31535","v":"Select"},{"$f":"Import!E31735","v":"Select"},{"$f":"Import!E31935","v":"Select"},{"$f":"Import!E32135","v":"Select"},{"$f":"Import!E32335","v":0},{"$f":"Import!E32535","v":0},{"$f":"Import!E32735","v":0},{"$f":"Import!E32935","v":0},{"$f":"Import!E33135","v":0}]
[88,{"$f":"Import!E30936","v":"Select"},{"$f":"Import!E31136","v":"Select"},{"$f":"Import!E31336","v":"Select"},{"$f":"Import!E31536","v":"Select"},{"$f":"Import!E31736","v":"Select"},{"$f":"Import!E31936","v":"Select"},{"$f":"Import!E32136","v":"Select"},{"$f":"Import!E32336","v":0},{"$f":"Import!E32536","v":0},{"$f":"Import!E32736","v":0},{"$f":"Import!E32936","v":0},{"$f":"Import!E33136","v":0}]
[89,{"$f":"Import!E30937","v":"Select"},{"$f":"Import!E31137","v":"Select"},{"$f":"Import!E31337","v":"Select"},{"$f":"Import!E31537","v":"Select"},{"$f":"Import!E31737","v":"Select"},{"$f":"Import!E31937","v":"Select"},{"$f":"Import!E32137","v":"Select"},{"$f":"Import!E32337","v":0},{"$f":"Import!E32537","v":0},{"$f":"Import!E32737","v":0},{"$f":"Import!E32937","v":0},{"$f":"Import!E33137","v":0}]
[90,{"$f":"Import!E30938","v":"Select"},{"$f":"Import!E31138","v":"Select"},{"$f":"Import!E31338","v":"Select"},{"$f":"Import!E31538","v":"Select"},{"$f":"Import!E31738","v":"Select"},{"$f":"Import!E31938","v":"Select"},{"$f":"Import!E32138","v":"Select"},{"$f":"Import!E32338","v":0},{"$f":"Import!E32538","v":0},{"$f":"Import!E32738","v":0},{"$f":"Import!E32938","v":0},{"$f":"Import!E33138","v":0}]
[91,{"$f":"Import!E30939","v":"Select"},{"$f":"Import!E31139","v":"Select"},{"$f":"Import!E31339","v":"Select"},{"$f":"Import!E31539","v":"Select"},{"$f":"Import!E31739","v":"Select"},{"$f":"Import!E31939","v":"Select"},{"$f":"Import!E32139","v":"Select"},{"$f":"Import!E32339","v":0},{"$f":"Import!E32539","v":0},{"$f":"Import!E32739","v":0},{"$f":"Import!E32939","v":0},{"$f":"Import!E33139","v":0}]
[92,{"$f":"Import!E30940","v":"Select"},{"$f":"Import!E31140","v":"Select"},{"$f":"Import!E31340","v":"Select"},{"$f":"Import!E31540","v":"Select"},{"$f":"Import!E31740","v":"Select"},{"$f":"Import!E31940","v":"Select"},{"$f":"Import!E32140","v":"Select"},{"$f":"Import!E32340","v":0},{"$f":"Import!E32540","v":0},{"$f":"Import!E32740","v":0},{"$f":"Import!E32940","v":0},{"$f":"Import!E33140","v":0}]
[93,{"$f":"Import!E30941","v":"Select"},{"$f":"Import!E31141","v":"Select"},{"$f":"Import!E31341","v":"Select"},{"$f":"Import!E31541","v":"Select"},{"$f":"Import!E31741","v":"Select"},{"$f":"Import!E31941","v":"Select"},{"$f":"Import!E32141","v":"Select"},{"$f":"Import!E32341","v":0},{"$f":"Import!E32541","v":0},{"$f":"Import!E32741","v":0},{"$f":"Import!E32941","v":0},{"$f":"Import!E33141","v":0}]
[94,{"$f":"Import!E30942","v":"Select"},{"$f":"Import!E31142","v":"Select"},{"$f":"Import!E31342","v":"Select"},{"$f":"Import!E31542","v":"Select"},{"$f":"Import!E31742","v":"Select"},{"$f":"Import!E31942","v":"Select"},{"$f":"Import!E32142","v":"Select"},{"$f":"Import!E32342","v":0},{"$f":"Import!E32542","v":0},{"$f":"Import!E32742","v":0},{"$f":"Import!E32942","v":0},{"$f":"Import!E33142","v":0}]
[95,{"$f":"Import!E30943","v":"Select"},{"$f":"Import!E31143","v":"Select"},{"$f":"Import!E31343","v":"Select"},{"$f":"Import!E31543","v":"Select"},{"$f":"Import!E31743","v":"Select"},{"$f":"Import!E31943","v":"Select"},{"$f":"Import!E32143","v":"Select"},{"$f":"Import!E32343","v":0},{"$f":"Import!E32543","v":0},{"$f":"Import!E32743","v":0},{"$f":"Import!E32943","v":0},{"$f":"Import!E33143","v":0}]
[96,{"$f":"Import!E30944","v":"Select"},{"$f":"Import!E31144","v":"Select"},{"$f":"Import!E31344","v":"Select"},{"$f":"Import!E31544","v":"Select"},{"$f":"Import!E31744","v":"Select"},{"$f":"Import!E31944","v":"Select"},{"$f":"Import!E32144","v":"Select"},{"$f":"Import!E32344","v":0},{"$f":"Import!E32544","v":0},{"$f":"Import!E32744","v":0},{"$f":"Import!E32944","v":0},{"$f":"Import!E33144","v":0}]
[97,{"$f":"Import!E30945","v":"Select"},{"$f":"Import!E31145","v":"Select"},{"$f":"Import!E31345","v":"Select"},{"$f":"Import!E31545","v":"Select"},{"$f":"Import!E31745","v":"Select"},{"$f":"Import!E31945","v":"Select"},{"$f":"Import!E32145","v":"Select"},{"$f":"Import!E32345","v":0},{"$f":"Import!E32545","v":0},{"$f":"Import!E32745","v":0},{"$f":"Import!E32945","v":0},{"$f":"Import!E33145","v":0}]
[98,{"$f":"Import!E30946","v":"Select"},{"$f":"Import!E31146","v":"Select"},{"$f":"Import!E31346","v":"Select"},{"$f":"Import!E31546","v":"Select"},{"$f":"Import!E31746","v":"Select"},{"$f":"Import!E31946","v":"Select"},{"$f":"Import!E32146","v":"Select"},{"$f":"Import!E32346","v":0},{"$f":"Import!E32546","v":0},{"$f":"Import!E32746","v":0},{"$f":"Import!E32946","v":0},{"$f":"Import!E33146","v":0}]
[99,{"$f":"Import!E30947","v":"Select"},{"$f":"Import!E31147","v":"Select"},{"$f":"Import!E31347","v":"Select"},{"$f":"Import!E31547","v":"Select"},{"$f":"Import!E31747","v":"Select"},{"$f":"Import!E31947","v":"Select"},{"$f":"Import!E32147","v":"Select"},{"$f":"Import!E32347","v":0},{"$f":"Import!E32547","v":0},{"$f":"Import!E32747","v":0},{"$f":"Import!E32947","v":0},{"$f":"Import!E33147","v":0}]
[100,{"$f":"Import!E30948","v":"Select"},{"$f":"Import!E31148","v":"Select"},{"$f":"Import!E31348","v":"Select"},{"$f":"Import!E31548","v":"Select"},{"$f":"Import!E31748","v":"Select"},{"$f":"Import!E31948","v":"Select"},{"$f":"Import!E32148","v":"Select"},{"$f":"Import!E32348","v":0},{"$f":"Import!E32548","v":0},{"$f":"Import!E32748","v":0},{"$f":"Import!E32948","v":0},{"$f":"Import!E33148","v":0}]
[101,{"$f":"Import!E30949","v":"Select"},{"$f":"Import!E31149","v":"Select"},{"$f":"Import!E31349","v":"Select"},{"$f":"Import!E31549","v":"Select"},{"$f":"Import!E31749","v":"Select"},{"$f":"Import!E31949","v":"Select"},{"$f":"Import!E32149","v":"Select"},{"$f":"Import!E32349","v":0},{"$f":"Import!E32549","v":0},{"$f":"Import!E32749","v":0},{"$f":"Import!E32949","v":0},{"$f":"Import!E33149","v":0}]
[102,{"$f":"Import!E30950","v":"Select"},{"$f":"Import!E31150","v":"Select"},{"$f":"Import!E31350","v":"Select"},{"$f":"Import!E31550","v":"Select"},{"$f":"Import!E31750","v":"Select"},{"$f":"Import!E31950","v":"Select"},{"$f":"Import!E32150","v":"Select"},{"$f":"Import!E32350","v":0},{"$f":"Import!E32550","v":0},{"$f":"Import!E32750","v":0},{"$f":"Import!E32950","v":0},{"$f":"Import!E33150","v":0}]
[103,{"$f":"Import!E30951","v":"Select"},{"$f":"Import!E31151","v":"Select"},{"$f":"Import!E31351","v":"Select"},{"$f":"Import!E31551","v":"Select"},{"$f":"Import!E31751","v":"Select"},{"$f":"Import!E31951","v":"Select"},{"$f":"Import!E32151","v":"Select"},{"$f":"Import!E32351","v":0},{"$f":"Import!E32551","v":0},{"$f":"Import!E32751","v":0},{"$f":"Import!E32951","v":0},{"$f":"Import!E33151","v":0}]
[104,{"$f":"Import!E30952","v":"Select"},{"$f":"Import!E31152","v":"Select"},{"$f":"Import!E31352","v":"Select"},{"$f":"Import!E31552","v":"Select"},{"$f":"Import!E31752","v":"Select"},{"$f":"Import!E31952","v":"Select"},{"$f":"Import!E32152","v":"Select"},{"$f":"Import!E32352","v":0},{"$f":"Import!E32552","v":0},{"$f":"Import!E32752","v":0},{"$f":"Import!E32952","v":0},{"$f":"Import!E33152","v":0}]
[105,{"$f":"Import!E30953","v":"Select"},{"$f":"Import!E31153","v":"Select"},{"$f":"Import!E31353","v":"Select"},{"$f":"Import!E31553","v":"Select"},{"$f":"Import!E31753","v":"Select"},{"$f":"Import!E31953","v":"Select"},{"$f":"Import!E32153","v":"Select"},{"$f":"Import!E32353","v":0},{"$f":"Import!E32553","v":0},{"$f":"Import!E32753","v":0},{"$f":"Import!E32953","v":0},{"$f":"Import!E33153","v":0}]
[106,{"$f":"Import!E30954","v":"Select"},{"$f":"Import!E31154","v":"Select"},{"$f":"Import!E31354","v":"Select"},{"$f":"Import!E31554","v":"Select"},{"$f":"Import!E31754","v":"Select"},{"$f":"Import!E31954","v":"Select"},{"$f":"Import!E32154","v":"Select"},{"$f":"Import!E32354","v":0},{"$f":"Import!E32554","v":0},{"$f":"Import!E32754","v":0},{"$f":"Import!E32954","v":0},{"$f":"Import!E33154","v":0}]
[107,{"$f":"Import!E30955","v":"Select"},{"$f":"Import!E31155","v":"Select"},{"$f":"Import!E31355","v":"Select"},{"$f":"Import!E31555","v":"Select"},{"$f":"Import!E31755","v":"Select"},{"$f":"Import!E31955","v":"Select"},{"$f":"Import!E32155","v":"Select"},{"$f":"Import!E32355","v":0},{"$f":"Import!E32555","v":0},{"$f":"Import!E32755","v":0},{"$f":"Import!E32955","v":0},{"$f":"Import!E33155","v":0}]
[108,{"$f":"Import!E30956","v":"Select"},{"$f":"Import!E31156","v":"Select"},{"$f":"Import!E31356","v":"Select"},{"$f":"Import!E31556","v":"Select"},{"$f":"Import!E31756","v":"Select"},{"$f":"Import!E31956","v":"Select"},{"$f":"Import!E32156","v":"Select"},{"$f":"Import!E32356","v":0},{"$f":"Import!E32556","v":0},{"$f":"Import!E32756","v":0},{"$f":"Import!E32956","v":0},{"$f":"Import!E33156","v":0}]
[109,{"$f":"Import!E30957","v":"Select"},{"$f":"Import!E31157","v":"Select"},{"$f":"Import!E31357","v":"Select"},{"$f":"Import!E31557","v":"Select"},{"$f":"Import!E31757","v":"Select"},{"$f":"Import!E31957","v":"Select"},{"$f":"Import!E32157","v":"Select"},{"$f":"Import!E32357","v":0},{"$f":"Import!E32557","v":0},{"$f":"Import!E32757","v":0},{"$f":"Import!E32957","v":0},{"$f":"Import!E33157","v":0}]
[110,{"$f":"Import!E30958","v":"Select"},{"$f":"Import!E31158","v":"Select"},{"$f":"Import!E31358","v":"Select"},{"$f":"Import!E31558","v":"Select"},{"$f":"Import!E31758","v":"Select"},{"$f":"Import!E31958","v":"Select"},{"$f":"Import!E32158","v":"Select"},{"$f":"Import!E32358","v":0},{"$f":"Import!E32558","v":0},{"$f":"Import!E32758","v":0},{"$f":"Import!E32958","v":0},{"$f":"Import!E33158","v":0}]
[111,{"$f":"Import!E30959","v":"Select"},{"$f":"Import!E31159","v":"Select"},{"$f":"Import!E31359","v":"Select"},{"$f":"Import!E31559","v":"Select"},{"$f":"Import!E31759","v":"Select"},{"$f":"Import!E31959","v":"Select"},{"$f":"Import!E32159","v":"Select"},{"$f":"Import!E32359","v":0},{"$f":"Import!E32559","v":0},{"$f":"Import!E32759","v":0},{"$f":"Import!E32959","v":0},{"$f":"Import!E33159","v":0}]
[112,{"$f":"Import!E30960","v":"Select"},{"$f":"Import!E31160","v":"Select"},{"$f":"Import!E31360","v":"Select"},{"$f":"Import!E31560","v":"Select"},{"$f":"Import!E31760","v":"Select"},{"$f":"Import!E31960","v":"Select"},{"$f":"Import!E32160","v":"Select"},{"$f":"Import!E32360","v":0},{"$f":"Import!E32560","v":0},{"$f":"Import!E32760","v":0},{"$f":"Import!E32960","v":0},{"$f":"Import!E33160","v":0}]
[113,{"$f":"Import!E30961","v":"Select"},{"$f":"Import!E31161","v":"Select"},{"$f":"Import!E31361","v":"Select"},{"$f":"Import!E31561","v":"Select"},{"$f":"Import!E31761","v":"Select"},{"$f":"Import!E31961","v":"Select"},{"$f":"Import!E32161","v":"Select"},{"$f":"Import!E32361","v":0},{"$f":"Import!E32561","v":0},{"$f":"Import!E32761","v":0},{"$f":"Import!E32961","v":0},{"$f":"Import!E33161","v":0}]
[114,{"$f":"Import!E30962","v":"Select"},{"$f":"Import!E31162","v":"Select"},{"$f":"Import!E31362","v":"Select"},{"$f":"Import!E31562","v":"Select"},{"$f":"Import!E31762","v":"Select"},{"$f":"Import!E31962","v":"Select"},{"$f":"Import!E32162","v":"Select"},{"$f":"Import!E32362","v":0},{"$f":"Import!E32562","v":0},{"$f":"Import!E32762","v":0},{"$f":"Import!E32962","v":0},{"$f":"Import!E33162","v":0}]
[115,{"$f":"Import!E30963","v":"Select"},{"$f":"Import!E31163","v":"Select"},{"$f":"Import!E31363","v":"Select"},{"$f":"Import!E31563","v":"Select"},{"$f":"Import!E31763","v":"Select"},{"$f":"Import!E31963","v":"Select"},{"$f":"Import!E32163","v":"Select"},{"$f":"Import!E32363","v":0},{"$f":"Import!E32563","v":0},{"$f":"Import!E32763","v":0},{"$f":"Import!E32963","v":0},{"$f":"Import!E33163","v":0}]
[116,{"$f":"Import!E30964","v":"Select"},{"$f":"Import!E31164","v":"Select"},{"$f":"Import!E31364","v":"Select"},{"$f":"Import!E31564","v":"Select"},{"$f":"Import!E31764","v":"Select"},{"$f":"Import!E31964","v":"Select"},{"$f":"Import!E32164","v":"Select"},{"$f":"Import!E32364","v":0},{"$f":"Import!E32564","v":0},{"$f":"Import!E32764","v":0},{"$f":"Import!E32964","v":0},{"$f":"Import!E33164","v":0}]
[117,{"$f":"Import!E30965","v":"Select"},{"$f":"Import!E31165","v":"Select"},{"$f":"Import!E31365","v":"Select"},{"$f":"Import!E31565","v":"Select"},{"$f":"Import!E31765","v":"Select"},{"$f":"Import!E31965","v":"Select"},{"$f":"Import!E32165","v":"Select"},{"$f":"Import!E32365","v":0},{"$f":"Import!E32565","v":0},{"$f":"Import!E32765","v":0},{"$f":"Import!E32965","v":0},{"$f":"Import!E33165","v":0}]
[118,{"$f":"Import!E30966","v":"Select"},{"$f":"Import!E31166","v":"Select"},{"$f":"Import!E31366","v":"Select"},{"$f":"Import!E31566","v":"Select"},{"$f":"Import!E31766","v":"Select"},{"$f":"Import!E31966","v":"Select"},{"$f":"Import!E32166","v":"Select"},{"$f":"Import!E32366","v":0},{"$f":"Import!E32566","v":0},{"$f":"Import!E32766","v":0},{"$f":"Import!E32966","v":0},{"$f":"Import!E33166","v":0}]
[119,{"$f":"Import!E30967","v":"Select"},{"$f":"Import!E31167","v":"Select"},{"$f":"Import!E31367","v":"Select"},{"$f":"Import!E31567","v":"Select"},{"$f":"Import!E31767","v":"Select"},{"$f":"Import!E31967","v":"Select"},{"$f":"Import!E32167","v":"Select"},{"$f":"Import!E32367","v":0},{"$f":"Import!E32567","v":0},{"$f":"Import!E32767","v":0},{"$f":"Import!E32967","v":0},{"$f":"Import!E33167","v":0}]
[120,{"$f":"Import!E30968","v":"Select"},{"$f":"Import!E31168","v":"Select"},{"$f":"Import!E31368","v":"Select"},{"$f":"Import!E31568","v":"Select"},{"$f":"Import!E31768","v":"Select"},{"$f":"Import!E31968","v":"Select"},{"$f":"Import!E32168","v":"Select"},{"$f":"Import!E32368","v":0},{"$f":"Import!E32568","v":0},{"$f":"Import!E32768","v":0},{"$f":"Import!E32968","v":0},{"$f":"Import!E33168","v":0}]
[121,{"$f":"Import!E30969","v":"Select"},{"$f":"Import!E31169","v":"Select"},{"$f":"Import!E31369","v":"Select"},{"$f":"Import!E31569","v":"Select"},{"$f":"Import!E31769","v":"Select"},{"$f":"Import!E31969","v":"Select"},{"$f":"Import!E32169","v":"Select"},{"$f":"Import!E32369","v":0},{"$f":"Import!E32569","v":0},{"$f":"Import!E32769","v":0},{"$f":"Import!E32969","v":0},{"$f":"Import!E33169","v":0}]
[122,{"$f":"Import!E30970","v":"Select"},{"$f":"Import!E31170","v":"Select"},{"$f":"Import!E31370","v":"Select"},{"$f":"Import!E31570","v":"Select"},{"$f":"Import!E31770","v":"Select"},{"$f":"Import!E31970","v":"Select"},{"$f":"Import!E32170","v":"Select"},{"$f":"Import!E32370","v":0},{"$f":"Import!E32570","v":0},{"$f":"Import!E32770","v":0},{"$f":"Import!E32970","v":0},{"$f":"Import!E33170","v":0}]
[123,{"$f":"Import!E30971","v":"Select"},{"$f":"Import!E31171","v":"Select"},{"$f":"Import!E31371","v":"Select"},{"$f":"Import!E31571","v":"Select"},{"$f":"Import!E31771","v":"Select"},{"$f":"Import!E31971","v":"Select"},{"$f":"Import!E32171","v":"Select"},{"$f":"Import!E32371","v":0},{"$f":"Import!E32571","v":0},{"$f":"Import!E32771","v":0},{"$f":"Import!E32971","v":0},{"$f":"Import!E33171","v":0}]
[124,{"$f":"Import!E30972","v":"Select"},{"$f":"Import!E31172","v":"Select"},{"$f":"Import!E31372","v":"Select"},{"$f":"Import!E31572","v":"Select"},{"$f":"Import!E31772","v":"Select"},{"$f":"Import!E31972","v":"Select"},{"$f":"Import!E32172","v":"Select"},{"$f":"Import!E32372","v":0},{"$f":"Import!E32572","v":0},{"$f":"Import!E32772","v":0},{"$f":"Import!E32972","v":0},{"$f":"Import!E33172","v":0}]
[125,{"$f":"Import!E30973","v":"Select"},{"$f":"Import!E31173","v":"Select"},{"$f":"Import!E31373","v":"Select"},{"$f":"Import!E31573","v":"Select"},{"$f":"Import!E31773","v":"Select"},{"$f":"Import!E31973","v":"Select"},{"$f":"Import!E32173","v":"Select"},{"$f":"Import!E32373","v":0},{"$f":"Import!E32573","v":0},{"$f":"Import!E32773","v":0},{"$f":"Import!E32973","v":0},{"$f":"Import!E33173","v":0}]
[126,{"$f":"Import!E30974","v":"Select"},{"$f":"Import!E31174","v":"Select"},{"$f":"Import!E31374","v":"Select"},{"$f":"Import!E31574","v":"Select"},{"$f":"Import!E31774","v":"Select"},{"$f":"Import!E31974","v":"Select"},{"$f":"Import!E32174","v":"Select"},{"$f":"Import!E32374","v":0},{"$f":"Import!E32574","v":0},{"$f":"Import!E32774","v":0},{"$f":"Import!E32974","v":0},{"$f":"Import!E33174","v":0}]
[127,{"$f":"Import!E30975","v":"Select"},{"$f":"Import!E31175","v":"Select"},{"$f":"Import!E31375","v":"Select"},{"$f":"Import!E31575","v":"Select"},{"$f":"Import!E31775","v":"Select"},{"$f":"Import!E31975","v":"Select"},{"$f":"Import!E32175","v":"Select"},{"$f":"Import!E32375","v":0},{"$f":"Import!E32575","v":0},{"$f":"Import!E32775","v":0},{"$f":"Import!E32975","v":0},{"$f":"Import!E33175","v":0}]
[128,{"$f":"Import!E30976","v":"Select"},{"$f":"Import!E31176","v":"Select"},{"$f":"Import!E31376","v":"Select"},{"$f":"Import!E31576","v":"Select"},{"$f":"Import!E31776","v":"Select"},{"$f":"Import!E31976","v":"Select"},{"$f":"Import!E32176","v":"Select"},{"$f":"Import!E32376","v":0},{"$f":"Import!E32576","v":0},{"$f":"Import!E32776","v":0},{"$f":"Import!E32976","v":0},{"$f":"Import!E33176","v":0}]
[129,{"$f":"Import!E30977","v":"Select"},{"$f":"Import!E31177","v":"Select"},{"$f":"Import!E31377","v":"Select"},{"$f":"Import!E31577","v":"Select"},{"$f":"Import!E31777","v":"Select"},{"$f":"Import!E31977","v":"Select"},{"$f":"Import!E32177","v":"Select"},{"$f":"Import!E32377","v":0},{"$f":"Import!E32577","v":0},{"$f":"Import!E32777","v":0},{"$f":"Import!E32977","v":0},{"$f":"Import!E33177","v":0}]
[130,{"$f":"Import!E30978","v":"Select"},{"$f":"Import!E31178","v":"Select"},{"$f":"Import!E31378","v":"Select"},{"$f":"Import!E31578","v":"Select"},{"$f":"Import!E31778","v":"Select"},{"$f":"Import!E31978","v":"Select"},{"$f":"Import!E32178","v":"Select"},{"$f":"Import!E32378","v":0},{"$f":"Import!E32578","v":0},{"$f":"Import!E32778","v":0},{"$f":"Import!E32978","v":0},{"$f":"Import!E33178","v":0}]
[{"$f":"A1689+1","v":131},{"$f":"Import!E30979","v":"Select"},{"$f":"Import!E31179","v":"Select"},{"$f":"Import!E31379","v":"Select"},{"$f":"Import!E31579","v":"Select"},{"$f":"Import!E31779","v":"Select"},{"$f":"Import!E31979","v":"Select"},{"$f":"Import!E32179","v":"Select"},{"$f":"Import!E32379","v":0},{"$f":"Import!E32579","v":0},{"$f":"Import!E32779","v":0},{"$f":"Import!E32979","v":0},{"$f":"Import!E33179","v":0}]
[132,{"$f":"Import!E30980","v":"Select"},{"$f":"Import!E31180","v":"Select"},{"$f":"Import!E31380","v":"Select"},{"$f":"Import!E31580","v":"Select"},{"$f":"Import!E31780","v":"Select"},{"$f":"Import!E31980","v":"Select"},{"$f":"Import!E32180","v":"Select"},{"$f":"Import!E32380","v":0},{"$f":"Import!E32580","v":0},{"$f":"Import!E32780","v":0},{"$f":"Import!E32980","v":0},{"$f":"Import!E33180","v":0}]
[133,{"$f":"Import!E30981","v":"Select"},{"$f":"Import!E31181","v":"Select"},{"$f":"Import!E31381","v":"Select"},{"$f":"Import!E31581","v":"Select"},{"$f":"Import!E31781","v":"Select"},{"$f":"Import!E31981","v":"Select"},{"$f":"Import!E32181","v":"Select"},{"$f":"Import!E32381","v":0},{"$f":"Import!E32581","v":0},{"$f":"Import!E32781","v":0},{"$f":"Import!E32981","v":0},{"$f":"Import!E33181","v":0}]
[134,{"$f":"Import!E30982","v":"Select"},{"$f":"Import!E31182","v":"Select"},{"$f":"Import!E31382","v":"Select"},{"$f":"Import!E31582","v":"Select"},{"$f":"Import!E31782","v":"Select"},{"$f":"Import!E31982","v":"Select"},{"$f":"Import!E32182","v":"Select"},{"$f":"Import!E32382","v":0},{"$f":"Import!E32582","v":0},{"$f":"Import!E32782","v":0},{"$f":"Import!E32982","v":0},{"$f":"Import!E33182","v":0}]
[135,{"$f":"Import!E30983","v":"Select"},{"$f":"Import!E31183","v":"Select"},{"$f":"Import!E31383","v":"Select"},{"$f":"Import!E31583","v":"Select"},{"$f":"Import!E31783","v":"Select"},{"$f":"Import!E31983","v":"Select"},{"$f":"Import!E32183","v":"Select"},{"$f":"Import!E32383","v":0},{"$f":"Import!E32583","v":0},{"$f":"Import!E32783","v":0},{"$f":"Import!E32983","v":0},{"$f":"Import!E33183","v":0}]
[136,{"$f":"Import!E30984","v":"Select"},{"$f":"Import!E31184","v":"Select"},{"$f":"Import!E31384","v":"Select"},{"$f":"Import!E31584","v":"Select"},{"$f":"Import!E31784","v":"Select"},{"$f":"Import!E31984","v":"Select"},{"$f":"Import!E32184","v":"Select"},{"$f":"Import!E32384","v":0},{"$f":"Import!E32584","v":0},{"$f":"Import!E32784","v":0},{"$f":"Import!E32984","v":0},{"$f":"Import!E33184","v":0}]
[137,{"$f":"Import!E30985","v":"Select"},{"$f":"Import!E31185","v":"Select"},{"$f":"Import!E31385","v":"Select"},{"$f":"Import!E31585","v":"Select"},{"$f":"Import!E31785","v":"Select"},{"$f":"Import!E31985","v":"Select"},{"$f":"Import!E32185","v":"Select"},{"$f":"Import!E32385","v":0},{"$f":"Import!E32585","v":0},{"$f":"Import!E32785","v":0},{"$f":"Import!E32985","v":0},{"$f":"Import!E33185","v":0}]
[138,{"$f":"Import!E30986","v":"Select"},{"$f":"Import!E31186","v":"Select"},{"$f":"Import!E31386","v":"Select"},{"$f":"Import!E31586","v":"Select"},{"$f":"Import!E31786","v":"Select"},{"$f":"Import!E31986","v":"Select"},{"$f":"Import!E32186","v":"Select"},{"$f":"Import!E32386","v":0},{"$f":"Import!E32586","v":0},{"$f":"Import!E32786","v":0},{"$f":"Import!E32986","v":0},{"$f":"Import!E33186","v":0}]
[139,{"$f":"Import!E30987","v":"Select"},{"$f":"Import!E31187","v":"Select"},{"$f":"Import!E31387","v":"Select"},{"$f":"Import!E31587","v":"Select"},{"$f":"Import!E31787","v":"Select"},{"$f":"Import!E31987","v":"Select"},{"$f":"Import!E32187","v":"Select"},{"$f":"Import!E32387","v":0},{"$f":"Import!E32587","v":0},{"$f":"Import!E32787","v":0},{"$f":"Import!E32987","v":0},{"$f":"Import!E33187","v":0}]
[140,{"$f":"Import!E30988","v":"Select"},{"$f":"Import!E31188","v":"Select"},{"$f":"Import!E31388","v":"Select"},{"$f":"Import!E31588","v":"Select"},{"$f":"Import!E31788","v":"Select"},{"$f":"Import!E31988","v":"Select"},{"$f":"Import!E32188","v":"Select"},{"$f":"Import!E32388","v":0},{"$f":"Import!E32588","v":0},{"$f":"Import!E32788","v":0},{"$f":"Import!E32988","v":0},{"$f":"Import!E33188","v":0}]
[141,{"$f":"Import!E30989","v":"Select"},{"$f":"Import!E31189","v":"Select"},{"$f":"Import!E31389","v":"Select"},{"$f":"Import!E31589","v":"Select"},{"$f":"Import!E31789","v":"Select"},{"$f":"Import!E31989","v":"Select"},{"$f":"Import!E32189","v":"Select"},{"$f":"Import!E32389","v":0},{"$f":"Import!E32589","v":0},{"$f":"Import!E32789","v":0},{"$f":"Import!E32989","v":0},{"$f":"Import!E33189","v":0}]
[142,{"$f":"Import!E30990","v":"Select"},{"$f":"Import!E31190","v":"Select"},{"$f":"Import!E31390","v":"Select"},{"$f":"Import!E31590","v":"Select"},{"$f":"Import!E31790","v":"Select"},{"$f":"Import!E31990","v":"Select"},{"$f":"Import!E32190","v":"Select"},{"$f":"Import!E32390","v":0},{"$f":"Import!E32590","v":0},{"$f":"Import!E32790","v":0},{"$f":"Import!E32990","v":0},{"$f":"Import!E33190","v":0}]
[143,{"$f":"Import!E30991","v":"Select"},{"$f":"Import!E31191","v":"Select"},{"$f":"Import!E31391","v":"Select"},{"$f":"Import!E31591","v":"Select"},{"$f":"Import!E31791","v":"Select"},{"$f":"Import!E31991","v":"Select"},{"$f":"Import!E32191","v":"Select"},{"$f":"Import!E32391","v":0},{"$f":"Import!E32591","v":0},{"$f":"Import!E32791","v":0},{"$f":"Import!E32991","v":0},{"$f":"Import!E33191","v":0}]
[144,{"$f":"Import!E30992","v":"Select"},{"$f":"Import!E31192","v":"Select"},{"$f":"Import!E31392","v":"Select"},{"$f":"Import!E31592","v":"Select"},{"$f":"Import!E31792","v":"Select"},{"$f":"Import!E31992","v":"Select"},{"$f":"Import!E32192","v":"Select"},{"$f":"Import!E32392","v":0},{"$f":"Import!E32592","v":0},{"$f":"Import!E32792","v":0},{"$f":"Import!E32992","v":0},{"$f":"Import!E33192","v":0}]
[145,{"$f":"Import!E30993","v":"Select"},{"$f":"Import!E31193","v":"Select"},{"$f":"Import!E31393","v":"Select"},{"$f":"Import!E31593","v":"Select"},{"$f":"Import!E31793","v":"Select"},{"$f":"Import!E31993","v":"Select"},{"$f":"Import!E32193","v":"Select"},{"$f":"Import!E32393","v":0},{"$f":"Import!E32593","v":0},{"$f":"Import!E32793","v":0},{"$f":"Import!E32993","v":0},{"$f":"Import!E33193","v":0}]
[146,{"$f":"Import!E30994","v":"Select"},{"$f":"Import!E31194","v":"Select"},{"$f":"Import!E31394","v":"Select"},{"$f":"Import!E31594","v":"Select"},{"$f":"Import!E31794","v":"Select"},{"$f":"Import!E31994","v":"Select"},{"$f":"Import!E32194","v":"Select"},{"$f":"Import!E32394","v":0},{"$f":"Import!E32594","v":0},{"$f":"Import!E32794","v":0},{"$f":"Import!E32994","v":0},{"$f":"Import!E33194","v":0}]
[147,{"$f":"Import!E30995","v":"Select"},{"$f":"Import!E31195","v":"Select"},{"$f":"Import!E31395","v":"Select"},{"$f":"Import!E31595","v":"Select"},{"$f":"Import!E31795","v":"Select"},{"$f":"Import!E31995","v":"Select"},{"$f":"Import!E32195","v":"Select"},{"$f":"Import!E32395","v":0},{"$f":"Import!E32595","v":0},{"$f":"Import!E32795","v":0},{"$f":"Import!E32995","v":0},{"$f":"Import!E33195","v":0}]
[148,{"$f":"Import!E30996","v":"Select"},{"$f":"Import!E31196","v":"Select"},{"$f":"Import!E31396","v":"Select"},{"$f":"Import!E31596","v":"Select"},{"$f":"Import!E31796","v":"Select"},{"$f":"Import!E31996","v":"Select"},{"$f":"Import!E32196","v":"Select"},{"$f":"Import!E32396","v":0},{"$f":"Import!E32596","v":0},{"$f":"Import!E32796","v":0},{"$f":"Import!E32996","v":0},{"$f":"Import!E33196","v":0}]
[149,{"$f":"Import!E30997","v":"Select"},{"$f":"Import!E31197","v":"Select"},{"$f":"Import!E31397","v":"Select"},{"$f":"Import!E31597","v":"Select"},{"$f":"Import!E31797","v":"Select"},{"$f":"Import!E31997","v":"Select"},{"$f":"Import!E32197","v":"Select"},{"$f":"Import!E32397","v":0},{"$f":"Import!E32597","v":0},{"$f":"Import!E32797","v":0},{"$f":"Import!E32997","v":0},{"$f":"Import!E33197","v":0}]
[150,{"$f":"Import!E30998","v":"Select"},{"$f":"Import!E31198","v":"Select"},{"$f":"Import!E31398","v":"Select"},{"$f":"Import!E31598","v":"Select"},{"$f":"Import!E31798","v":"Select"},{"$f":"Import!E31998","v":"Select"},{"$f":"Import!E32198","v":"Select"},{"$f":"Import!E32398","v":0},{"$f":"Import!E32598","v":0},{"$f":"Import!E32798","v":0},{"$f":"Import!E32998","v":0},{"$f":"Import!E33198","v":0}]
[151,{"$f":"Import!E30999","v":"Select"},{"$f":"Import!E31199","v":"Select"},{"$f":"Import!E31399","v":"Select"},{"$f":"Import!E31599","v":"Select"},{"$f":"Import!E31799","v":"Select"},{"$f":"Import!E31999","v":"Select"},{"$f":"Import!E32199","v":"Select"},{"$f":"Import!E32399","v":0},{"$f":"Import!E32599","v":0},{"$f":"Import!E32799","v":0},{"$f":"Import!E32999","v":0},{"$f":"Import!E33199","v":0}]
[152,{"$f":"Import!E31000","v":"Select"},{"$f":"Import!E31200","v":"Select"},{"$f":"Import!E31400","v":"Select"},{"$f":"Import!E31600","v":"Select"},{"$f":"Import!E31800","v":"Select"},{"$f":"Import!E32000","v":"Select"},{"$f":"Import!E32200","v":"Select"},{"$f":"Import!E32400","v":0},{"$f":"Import!E32600","v":0},{"$f":"Import!E32800","v":0},{"$f":"Import!E33000","v":0},{"$f":"Import!E33200","v":0}]
[153,{"$f":"Import!E31001","v":"Select"},{"$f":"Import!E31201","v":"Select"},{"$f":"Import!E31401","v":"Select"},{"$f":"Import!E31601","v":"Select"},{"$f":"Import!E31801","v":"Select"},{"$f":"Import!E32001","v":"Select"},{"$f":"Import!E32201","v":"Select"},{"$f":"Import!E32401","v":0},{"$f":"Import!E32601","v":0},{"$f":"Import!E32801","v":0},{"$f":"Import!E33001","v":0},{"$f":"Import!E33201","v":0}]
[154,{"$f":"Import!E31002","v":"Select"},{"$f":"Import!E31202","v":"Select"},{"$f":"Import!E31402","v":"Select"},{"$f":"Import!E31602","v":"Select"},{"$f":"Import!E31802","v":"Select"},{"$f":"Import!E32002","v":"Select"},{"$f":"Import!E32202","v":"Select"},{"$f":"Import!E32402","v":0},{"$f":"Import!E32602","v":0},{"$f":"Import!E32802","v":0},{"$f":"Import!E33002","v":0},{"$f":"Import!E33202","v":0}]
[155,{"$f":"Import!E31003","v":"Select"},{"$f":"Import!E31203","v":"Select"},{"$f":"Import!E31403","v":"Select"},{"$f":"Import!E31603","v":"Select"},{"$f":"Import!E31803","v":"Select"},{"$f":"Import!E32003","v":"Select"},{"$f":"Import!E32203","v":"Select"},{"$f":"Import!E32403","v":0},{"$f":"Import!E32603","v":0},{"$f":"Import!E32803","v":0},{"$f":"Import!E33003","v":0},{"$f":"Import!E33203","v":0}]
[156,{"$f":"Import!E31004","v":"Select"},{"$f":"Import!E31204","v":"Select"},{"$f":"Import!E31404","v":"Select"},{"$f":"Import!E31604","v":"Select"},{"$f":"Import!E31804","v":"Select"},{"$f":"Import!E32004","v":"Select"},{"$f":"Import!E32204","v":"Select"},{"$f":"Import!E32404","v":0},{"$f":"Import!E32604","v":0},{"$f":"Import!E32804","v":0},{"$f":"Import!E33004","v":0},{"$f":"Import!E33204","v":0}]
[157,{"$f":"Import!E31005","v":"Select"},{"$f":"Import!E31205","v":"Select"},{"$f":"Import!E31405","v":"Select"},{"$f":"Import!E31605","v":"Select"},{"$f":"Import!E31805","v":"Select"},{"$f":"Import!E32005","v":"Select"},{"$f":"Import!E32205","v":"Select"},{"$f":"Import!E32405","v":0},{"$f":"Import!E32605","v":0},{"$f":"Import!E32805","v":0},{"$f":"Import!E33005","v":0},{"$f":"Import!E33205","v":0}]
[158,{"$f":"Import!E31006","v":"Select"},{"$f":"Import!E31206","v":"Select"},{"$f":"Import!E31406","v":"Select"},{"$f":"Import!E31606","v":"Select"},{"$f":"Import!E31806","v":"Select"},{"$f":"Import!E32006","v":"Select"},{"$f":"Import!E32206","v":"Select"},{"$f":"Import!E32406","v":0},{"$f":"Import!E32606","v":0},{"$f":"Import!E32806","v":0},{"$f":"Import!E33006","v":0},{"$f":"Import!E33206","v":0}]
[159,{"$f":"Import!E31007","v":"Select"},{"$f":"Import!E31207","v":"Select"},{"$f":"Import!E31407","v":"Select"},{"$f":"Import!E31607","v":"Select"},{"$f":"Import!E31807","v":"Select"},{"$f":"Import!E32007","v":"Select"},{"$f":"Import!E32207","v":"Select"},{"$f":"Import!E32407","v":0},{"$f":"Import!E32607","v":0},{"$f":"Import!E32807","v":0},{"$f":"Import!E33007","v":0},{"$f":"Import!E33207","v":0}]
[160,{"$f":"Import!E31008","v":"Select"},{"$f":"Import!E31208","v":"Select"},{"$f":"Import!E31408","v":"Select"},{"$f":"Import!E31608","v":"Select"},{"$f":"Import!E31808","v":"Select"},{"$f":"Import!E32008","v":"Select"},{"$f":"Import!E32208","v":"Select"},{"$f":"Import!E32408","v":0},{"$f":"Import!E32608","v":0},{"$f":"Import!E32808","v":0},{"$f":"Import!E33008","v":0},{"$f":"Import!E33208","v":0}]
[161,{"$f":"Import!E31009","v":"Select"},{"$f":"Import!E31209","v":"Select"},{"$f":"Import!E31409","v":"Select"},{"$f":"Import!E31609","v":"Select"},{"$f":"Import!E31809","v":"Select"},{"$f":"Import!E32009","v":"Select"},{"$f":"Import!E32209","v":"Select"},{"$f":"Import!E32409","v":0},{"$f":"Import!E32609","v":0},{"$f":"Import!E32809","v":0},{"$f":"Import!E33009","v":0},{"$f":"Import!E33209","v":0}]
[162,{"$f":"Import!E31010","v":"Select"},{"$f":"Import!E31210","v":"Select"},{"$f":"Import!E31410","v":"Select"},{"$f":"Import!E31610","v":"Select"},{"$f":"Import!E31810","v":"Select"},{"$f":"Import!E32010","v":"Select"},{"$f":"Import!E32210","v":"Select"},{"$f":"Import!E32410","v":0},{"$f":"Import!E32610","v":0},{"$f":"Import!E32810","v":0},{"$f":"Import!E33010","v":0},{"$f":"Import!E33210","v":0}]
[163,{"$f":"Import!E31011","v":"Select"},{"$f":"Import!E31211","v":"Select"},{"$f":"Import!E31411","v":"Select"},{"$f":"Import!E31611","v":"Select"},{"$f":"Import!E31811","v":"Select"},{"$f":"Import!E32011","v":"Select"},{"$f":"Import!E32211","v":"Select"},{"$f":"Import!E32411","v":0},{"$f":"Import!E32611","v":0},{"$f":"Import!E32811","v":0},{"$f":"Import!E33011","v":0},{"$f":"Import!E33211","v":0}]
[164,{"$f":"Import!E31012","v":"Select"},{"$f":"Import!E31212","v":"Select"},{"$f":"Import!E31412","v":"Select"},{"$f":"Import!E31612","v":"Select"},{"$f":"Import!E31812","v":"Select"},{"$f":"Import!E32012","v":"Select"},{"$f":"Import!E32212","v":"Select"},{"$f":"Import!E32412","v":0},{"$f":"Import!E32612","v":0},{"$f":"Import!E32812","v":0},{"$f":"Import!E33012","v":0},{"$f":"Import!E33212","v":0}]
[165,{"$f":"Import!E31013","v":"Select"},{"$f":"Import!E31213","v":"Select"},{"$f":"Import!E31413","v":"Select"},{"$f":"Import!E31613","v":"Select"},{"$f":"Import!E31813","v":"Select"},{"$f":"Import!E32013","v":"Select"},{"$f":"Import!E32213","v":"Select"},{"$f":"Import!E32413","v":0},{"$f":"Import!E32613","v":0},{"$f":"Import!E32813","v":0},{"$f":"Import!E33013","v":0},{"$f":"Import!E33213","v":0}]
[166,{"$f":"Import!E31014","v":"Select"},{"$f":"Import!E31214","v":"Select"},{"$f":"Import!E31414","v":"Select"},{"$f":"Import!E31614","v":"Select"},{"$f":"Import!E31814","v":"Select"},{"$f":"Import!E32014","v":"Select"},{"$f":"Import!E32214","v":"Select"},{"$f":"Import!E32414","v":0},{"$f":"Import!E32614","v":0},{"$f":"Import!E32814","v":0},{"$f":"Import!E33014","v":0},{"$f":"Import!E33214","v":0}]
[167,{"$f":"Import!E31015","v":"Select"},{"$f":"Import!E31215","v":"Select"},{"$f":"Import!E31415","v":"Select"},{"$f":"Import!E31615","v":"Select"},{"$f":"Import!E31815","v":"Select"},{"$f":"Import!E32015","v":"Select"},{"$f":"Import!E32215","v":"Select"},{"$f":"Import!E32415","v":0},{"$f":"Import!E32615","v":0},{"$f":"Import!E32815","v":0},{"$f":"Import!E33015","v":0},{"$f":"Import!E33215","v":0}]
[168,{"$f":"Import!E31016","v":"Select"},{"$f":"Import!E31216","v":"Select"},{"$f":"Import!E31416","v":"Select"},{"$f":"Import!E31616","v":"Select"},{"$f":"Import!E31816","v":"Select"},{"$f":"Import!E32016","v":"Select"},{"$f":"Import!E32216","v":"Select"},{"$f":"Import!E32416","v":0},{"$f":"Import!E32616","v":0},{"$f":"Import!E32816","v":0},{"$f":"Import!E33016","v":0},{"$f":"Import!E33216","v":0}]
[169,{"$f":"Import!E31017","v":"Select"},{"$f":"Import!E31217","v":"Select"},{"$f":"Import!E31417","v":"Select"},{"$f":"Import!E31617","v":"Select"},{"$f":"Import!E31817","v":"Select"},{"$f":"Import!E32017","v":"Select"},{"$f":"Import!E32217","v":"Select"},{"$f":"Import!E32417","v":0},{"$f":"Import!E32617","v":0},{"$f":"Import!E32817","v":0},{"$f":"Import!E33017","v":0},{"$f":"Import!E33217","v":0}]
[170,{"$f":"Import!E31018","v":"Select"},{"$f":"Import!E31218","v":"Select"},{"$f":"Import!E31418","v":"Select"},{"$f":"Import!E31618","v":"Select"},{"$f":"Import!E31818","v":"Select"},{"$f":"Import!E32018","v":"Select"},{"$f":"Import!E32218","v":"Select"},{"$f":"Import!E32418","v":0},{"$f":"Import!E32618","v":0},{"$f":"Import!E32818","v":0},{"$f":"Import!E33018","v":0},{"$f":"Import!E33218","v":0}]
[171,{"$f":"Import!E31019","v":"Select"},{"$f":"Import!E31219","v":"Select"},{"$f":"Import!E31419","v":"Select"},{"$f":"Import!E31619","v":"Select"},{"$f":"Import!E31819","v":"Select"},{"$f":"Import!E32019","v":"Select"},{"$f":"Import!E32219","v":"Select"},{"$f":"Import!E32419","v":0},{"$f":"Import!E32619","v":0},{"$f":"Import!E32819","v":0},{"$f":"Import!E33019","v":0},{"$f":"Import!E33219","v":0}]
[172,{"$f":"Import!E31020","v":"Select"},{"$f":"Import!E31220","v":"Select"},{"$f":"Import!E31420","v":"Select"},{"$f":"Import!E31620","v":"Select"},{"$f":"Import!E31820","v":"Select"},{"$f":"Import!E32020","v":"Select"},{"$f":"Import!E32220","v":"Select"},{"$f":"Import!E32420","v":0},{"$f":"Import!E32620","v":0},{"$f":"Import!E32820","v":0},{"$f":"Import!E33020","v":0},{"$f":"Import!E33220","v":0}]
[173,{"$f":"Import!E31021","v":"Select"},{"$f":"Import!E31221","v":"Select"},{"$f":"Import!E31421","v":"Select"},{"$f":"Import!E31621","v":"Select"},{"$f":"Import!E31821","v":"Select"},{"$f":"Import!E32021","v":"Select"},{"$f":"Import!E32221","v":"Select"},{"$f":"Import!E32421","v":0},{"$f":"Import!E32621","v":0},{"$f":"Import!E32821","v":0},{"$f":"Import!E33021","v":0},{"$f":"Import!E33221","v":0}]
[174,{"$f":"Import!E31022","v":"Select"},{"$f":"Import!E31222","v":"Select"},{"$f":"Import!E31422","v":"Select"},{"$f":"Import!E31622","v":"Select"},{"$f":"Import!E31822","v":"Select"},{"$f":"Import!E32022","v":"Select"},{"$f":"Import!E32222","v":"Select"},{"$f":"Import!E32422","v":0},{"$f":"Import!E32622","v":0},{"$f":"Import!E32822","v":0},{"$f":"Import!E33022","v":0},{"$f":"Import!E33222","v":0}]
[175,{"$f":"Import!E31023","v":"Select"},{"$f":"Import!E31223","v":"Select"},{"$f":"Import!E31423","v":"Select"},{"$f":"Import!E31623","v":"Select"},{"$f":"Import!E31823","v":"Select"},{"$f":"Import!E32023","v":"Select"},{"$f":"Import!E32223","v":"Select"},{"$f":"Import!E32423","v":0},{"$f":"Import!E32623","v":0},{"$f":"Import!E32823","v":0},{"$f":"Import!E33023","v":0},{"$f":"Import!E33223","v":0}]
[176,{"$f":"Import!E31024","v":"Select"},{"$f":"Import!E31224","v":"Select"},{"$f":"Import!E31424","v":"Select"},{"$f":"Import!E31624","v":"Select"},{"$f":"Import!E31824","v":"Select"},{"$f":"Import!E32024","v":"Select"},{"$f":"Import!E32224","v":"Select"},{"$f":"Import!E32424","v":0},{"$f":"Import!E32624","v":0},{"$f":"Import!E32824","v":0},{"$f":"Import!E33024","v":0},{"$f":"Import!E33224","v":0}]
[177,{"$f":"Import!E31025","v":"Select"},{"$f":"Import!E31225","v":"Select"},{"$f":"Import!E31425","v":"Select"},{"$f":"Import!E31625","v":"Select"},{"$f":"Import!E31825","v":"Select"},{"$f":"Import!E32025","v":"Select"},{"$f":"Import!E32225","v":"Select"},{"$f":"Import!E32425","v":0},{"$f":"Import!E32625","v":0},{"$f":"Import!E32825","v":0},{"$f":"Import!E33025","v":0},{"$f":"Import!E33225","v":0}]
[178,{"$f":"Import!E31026","v":"Select"},{"$f":"Import!E31226","v":"Select"},{"$f":"Import!E31426","v":"Select"},{"$f":"Import!E31626","v":"Select"},{"$f":"Import!E31826","v":"Select"},{"$f":"Import!E32026","v":"Select"},{"$f":"Import!E32226","v":"Select"},{"$f":"Import!E32426","v":0},{"$f":"Import!E32626","v":0},{"$f":"Import!E32826","v":0},{"$f":"Import!E33026","v":0},{"$f":"Import!E33226","v":0}]
[179,{"$f":"Import!E31027","v":"Select"},{"$f":"Import!E31227","v":"Select"},{"$f":"Import!E31427","v":"Select"},{"$f":"Import!E31627","v":"Select"},{"$f":"Import!E31827","v":"Select"},{"$f":"Import!E32027","v":"Select"},{"$f":"Import!E32227","v":"Select"},{"$f":"Import!E32427","v":0},{"$f":"Import!E32627","v":0},{"$f":"Import!E32827","v":0},{"$f":"Import!E33027","v":0},{"$f":"Import!E33227","v":0}]
[180,{"$f":"Import!E31028","v":"Select"},{"$f":"Import!E31228","v":"Select"},{"$f":"Import!E31428","v":"Select"},{"$f":"Import!E31628","v":"Select"},{"$f":"Import!E31828","v":"Select"},{"$f":"Import!E32028","v":"Select"},{"$f":"Import!E32228","v":"Select"},{"$f":"Import!E32428","v":0},{"$f":"Import!E32628","v":0},{"$f":"Import!E32828","v":0},{"$f":"Import!E33028","v":0},{"$f":"Import!E33228","v":0}]
[181,{"$f":"Import!E31029","v":"Select"},{"$f":"Import!E31229","v":"Select"},{"$f":"Import!E31429","v":"Select"},{"$f":"Import!E31629","v":"Select"},{"$f":"Import!E31829","v":"Select"},{"$f":"Import!E32029","v":"Select"},{"$f":"Import!E32229","v":"Select"},{"$f":"Import!E32429","v":0},{"$f":"Import!E32629","v":0},{"$f":"Import!E32829","v":0},{"$f":"Import!E33029","v":0},{"$f":"Import!E33229","v":0}]
[182,{"$f":"Import!E31030","v":"Select"},{"$f":"Import!E31230","v":"Select"},{"$f":"Import!E31430","v":"Select"},{"$f":"Import!E31630","v":"Select"},{"$f":"Import!E31830","v":"Select"},{"$f":"Import!E32030","v":"Select"},{"$f":"Import!E32230","v":"Select"},{"$f":"Import!E32430","v":0},{"$f":"Import!E32630","v":0},{"$f":"Import!E32830","v":0},{"$f":"Import!E33030","v":0},{"$f":"Import!E33230","v":0}]
[183,{"$f":"Import!E31031","v":"Select"},{"$f":"Import!E31231","v":"Select"},{"$f":"Import!E31431","v":"Select"},{"$f":"Import!E31631","v":"Select"},{"$f":"Import!E31831","v":"Select"},{"$f":"Import!E32031","v":"Select"},{"$f":"Import!E32231","v":"Select"},{"$f":"Import!E32431","v":0},{"$f":"Import!E32631","v":0},{"$f":"Import!E32831","v":0},{"$f":"Import!E33031","v":0},{"$f":"Import!E33231","v":0}]
[184,{"$f":"Import!E31032","v":"Select"},{"$f":"Import!E31232","v":"Select"},{"$f":"Import!E31432","v":"Select"},{"$f":"Import!E31632","v":"Select"},{"$f":"Import!E31832","v":"Select"},{"$f":"Import!E32032","v":"Select"},{"$f":"Import!E32232","v":"Select"},{"$f":"Import!E32432","v":0},{"$f":"Import!E32632","v":0},{"$f":"Import!E32832","v":0},{"$f":"Import!E33032","v":0},{"$f":"Import!E33232","v":0}]
[185,{"$f":"Import!E31033","v":"Select"},{"$f":"Import!E31233","v":"Select"},{"$f":"Import!E31433","v":"Select"},{"$f":"Import!E31633","v":"Select"},{"$f":"Import!E31833","v":"Select"},{"$f":"Import!E32033","v":"Select"},{"$f":"Import!E32233","v":"Select"},{"$f":"Import!E32433","v":0},{"$f":"Import!E32633","v":0},{"$f":"Import!E32833","v":0},{"$f":"Import!E33033","v":0},{"$f":"Import!E33233","v":0}]
[186,{"$f":"Import!E31034","v":"Select"},{"$f":"Import!E31234","v":"Select"},{"$f":"Import!E31434","v":"Select"},{"$f":"Import!E31634","v":"Select"},{"$f":"Import!E31834","v":"Select"},{"$f":"Import!E32034","v":"Select"},{"$f":"Import!E32234","v":"Select"},{"$f":"Import!E32434","v":0},{"$f":"Import!E32634","v":0},{"$f":"Import!E32834","v":0},{"$f":"Import!E33034","v":0},{"$f":"Import!E33234","v":0}]
[187,{"$f":"Import!E31035","v":"Select"},{"$f":"Import!E31235","v":"Select"},{"$f":"Import!E31435","v":"Select"},{"$f":"Import!E31635","v":"Select"},{"$f":"Import!E31835","v":"Select"},{"$f":"Import!E32035","v":"Select"},{"$f":"Import!E32235","v":"Select"},{"$f":"Import!E32435","v":0},{"$f":"Import!E32635","v":0},{"$f":"Import!E32835","v":0},{"$f":"Import!E33035","v":0},{"$f":"Import!E33235","v":0}]
[188,{"$f":"Import!E31036","v":"Select"},{"$f":"Import!E31236","v":"Select"},{"$f":"Import!E31436","v":"Select"},{"$f":"Import!E31636","v":"Select"},{"$f":"Import!E31836","v":"Select"},{"$f":"Import!E32036","v":"Select"},{"$f":"Import!E32236","v":"Select"},{"$f":"Import!E32436","v":0},{"$f":"Import!E32636","v":0},{"$f":"Import!E32836","v":0},{"$f":"Import!E33036","v":0},{"$f":"Import!E33236","v":0}]
[189,{"$f":"Import!E31037","v":"Select"},{"$f":"Import!E31237","v":"Select"},{"$f":"Import!E31437","v":"Select"},{"$f":"Import!E31637","v":"Select"},{"$f":"Import!E31837","v":"Select"},{"$f":"Import!E32037","v":"Select"},{"$f":"Import!E32237","v":"Select"},{"$f":"Import!E32437","v":0},{"$f":"Import!E32637","v":0},{"$f":"Import!E32837","v":0},{"$f":"Import!E33037","v":0},{"$f":"Import!E33237","v":0}]
[190,{"$f":"Import!E31038","v":"Select"},{"$f":"Import!E31238","v":"Select"},{"$f":"Import!E31438","v":"Select"},{"$f":"Import!E31638","v":"Select"},{"$f":"Import!E31838","v":"Select"},{"$f":"Import!E32038","v":"Select"},{"$f":"Import!E32238","v":"Select"},{"$f":"Import!E32438","v":0},{"$f":"Import!E32638","v":0},{"$f":"Import!E32838","v":0},{"$f":"Import!E33038","v":0},{"$f":"Import!E33238","v":0}]
[191,{"$f":"Import!E31039","v":"Select"},{"$f":"Import!E31239","v":"Select"},{"$f":"Import!E31439","v":"Select"},{"$f":"Import!E31639","v":"Select"},{"$f":"Import!E31839","v":"Select"},{"$f":"Import!E32039","v":"Select"},{"$f":"Import!E32239","v":"Select"},{"$f":"Import!E32439","v":0},{"$f":"Import!E32639","v":0},{"$f":"Import!E32839","v":0},{"$f":"Import!E33039","v":0},{"$f":"Import!E33239","v":0}]
[192,{"$f":"Import!E31040","v":"Select"},{"$f":"Import!E31240","v":"Select"},{"$f":"Import!E31440","v":"Select"},{"$f":"Import!E31640","v":"Select"},{"$f":"Import!E31840","v":"Select"},{"$f":"Import!E32040","v":"Select"},{"$f":"Import!E32240","v":"Select"},{"$f":"Import!E32440","v":0},{"$f":"Import!E32640","v":0},{"$f":"Import!E32840","v":0},{"$f":"Import!E33040","v":0},{"$f":"Import!E33240","v":0}]
[193,{"$f":"Import!E31041","v":"Select"},{"$f":"Import!E31241","v":"Select"},{"$f":"Import!E31441","v":"Select"},{"$f":"Import!E31641","v":"Select"},{"$f":"Import!E31841","v":"Select"},{"$f":"Import!E32041","v":"Select"},{"$f":"Import!E32241","v":"Select"},{"$f":"Import!E32441","v":0},{"$f":"Import!E32641","v":0},{"$f":"Import!E32841","v":0},{"$f":"Import!E33041","v":0},{"$f":"Import!E33241","v":0}]
[194,{"$f":"Import!E31042","v":"Select"},{"$f":"Import!E31242","v":"Select"},{"$f":"Import!E31442","v":"Select"},{"$f":"Import!E31642","v":"Select"},{"$f":"Import!E31842","v":"Select"},{"$f":"Import!E32042","v":"Select"},{"$f":"Import!E32242","v":"Select"},{"$f":"Import!E32442","v":0},{"$f":"Import!E32642","v":0},{"$f":"Import!E32842","v":0},{"$f":"Import!E33042","v":0},{"$f":"Import!E33242","v":0}]
[{"$f":"A1753+1","v":195},{"$f":"Import!E31043","v":"Select"},{"$f":"Import!E31243","v":"Select"},{"$f":"Import!E31443","v":"Select"},{"$f":"Import!E31643","v":"Select"},{"$f":"Import!E31843","v":"Select"},{"$f":"Import!E32043","v":"Select"},{"$f":"Import!E32243","v":"Select"},{"$f":"Import!E32443","v":0},{"$f":"Import!E32643","v":0},{"$f":"Import!E32843","v":0},{"$f":"Import!E33043","v":0},{"$f":"Import!E33243","v":0}]
[196,{"$f":"Import!E31044","v":"Select"},{"$f":"Import!E31244","v":"Select"},{"$f":"Import!E31444","v":"Select"},{"$f":"Import!E31644","v":"Select"},{"$f":"Import!E31844","v":"Select"},{"$f":"Import!E32044","v":"Select"},{"$f":"Import!E32244","v":"Select"},{"$f":"Import!E32444","v":0},{"$f":"Import!E32644","v":0},{"$f":"Import!E32844","v":0},{"$f":"Import!E33044","v":0},{"$f":"Import!E33244","v":0}]
[197,{"$f":"Import!E31045","v":"Select"},{"$f":"Import!E31245","v":"Select"},{"$f":"Import!E31445","v":"Select"},{"$f":"Import!E31645","v":"Select"},{"$f":"Import!E31845","v":"Select"},{"$f":"Import!E32045","v":"Select"},{"$f":"Import!E32245","v":"Select"},{"$f":"Import!E32445","v":0},{"$f":"Import!E32645","v":0},{"$f":"Import!E32845","v":0},{"$f":"Import!E33045","v":0},{"$f":"Import!E33245","v":0}]
[198,{"$f":"Import!E31046","v":"Select"},{"$f":"Import!E31246","v":"Select"},{"$f":"Import!E31446","v":"Select"},{"$f":"Import!E31646","v":"Select"},{"$f":"Import!E31846","v":"Select"},{"$f":"Import!E32046","v":"Select"},{"$f":"Import!E32246","v":"Select"},{"$f":"Import!E32446","v":0},{"$f":"Import!E32646","v":0},{"$f":"Import!E32846","v":0},{"$f":"Import!E33046","v":0},{"$f":"Import!E33246","v":0}]
[199,{"$f":"Import!E31047","v":"Select"},{"$f":"Import!E31247","v":"Select"},{"$f":"Import!E31447","v":"Select"},{"$f":"Import!E31647","v":"Select"},{"$f":"Import!E31847","v":"Select"},{"$f":"Import!E32047","v":"Select"},{"$f":"Import!E32247","v":"Select"},{"$f":"Import!E32447","v":0},{"$f":"Import!E32647","v":0},{"$f":"Import!E32847","v":0},{"$f":"Import!E33047","v":0},{"$f":"Import!E33247","v":0}]
[200,{"$f":"Import!E31048","v":"Select"},{"$f":"Import!E31248","v":"Select"},{"$f":"Import!E31448","v":"Select"},{"$f":"Import!E31648","v":"Select"},{"$f":"Import!E31848","v":"Select"},{"$f":"Import!E32048","v":"Select"},{"$f":"Import!E32248","v":"Select"},{"$f":"Import!E32448","v":0},{"$f":"Import!E32648","v":0},{"$f":"Import!E32848","v":0},{"$f":"Import!E33048","v":0},{"$f":"Import!E33248","v":0}]
[]
[null,"Total Derivatives",null,null,null,null,null,null,{"$f":"SUM(I1560:I1759)","v":0},{"$f":"SUM(J1560:J1759)","v":0},{"$f":"SUM(K1560:K1759)","v":0}]
[]
[null,"(J) INFORMATION ON EXPOSURES TO FINANCIAL INSTITUTIONS AND UNLISTED COUNTERPARTIES"]
[null,null,null,null,null,"Commercial Loans and Mortgages"]
[null,null,{"$f":"YEAR($C$3)","v":2023},"Fair Value",null,null,"Securitisations ","Other debt securities"]
[null,"Financial Institutions","Equities","Corporate Bonds","Corporate Loans",null,null,null,null,"Comments"]
[1,"Exposure to Financial Institutions (Banks, Insurance Companies, Other Financials) - Investment Grade, BSCR Rating 1-3",{"$f":"Import!E33249","v":0},{"$f":"Import!E33253","v":0},{"$f":"Import!E33257","v":0},{"$f":"Import!E33261","v":0},{"$f":"Import!E33265","v":0},{"$f":"Import!E33269","v":0},null,{"$f":"Import!E33273","v":0}]
[2,"Exposure to Financial Institutions (Banks, Insurance Companies, Other Financials) - Investment Grade, BSCR Rating 4",{"$f":"Import!E33250","v":0},{"$f":"Import!E33254","v":0},{"$f":"Import!E33258","v":0},{"$f":"Import!E33262","v":0},{"$f":"Import!E33266","v":0},{"$f":"Import!E33270","v":0},null,{"$f":"Import!E33274","v":0}]
[3,"Exposure to Financial Institutions (Banks, Insurance Companies, Other Financials) - Below Investment Grade",{"$f":"Import!E33251","v":0},{"$f":"Import!E33255","v":0},{"$f":"Import!E33259","v":0},{"$f":"Import!E33263","v":0},{"$f":"Import!E33267","v":0},{"$f":"Import!E33271","v":0},null,{"$f":"Import!E33275","v":0}]
[4,"Exposure to Financial Institutions (Banks, Insurance Companies, Other Financials) - Unrated",{"$f":"Import!E33252","v":0},{"$f":"Import!E33256","v":0},{"$f":"Import!E33260","v":0},{"$f":"Import!E33264","v":0},{"$f":"Import!E33268","v":0},{"$f":"Import!E33272","v":0},null,{"$f":"Import!E33276","v":0}]
[]
[null,"Total Exposures to Financial Institutions",{"$f":"SUM(C1767:C1770)","v":0},{"$f":"SUM(D1767:D1770)","v":0},0,0,0,0]
[]
[null,"Of which","Equities","Corporate Bonds","Corporate Loans","Other",null,null,null,"Comments"]
[5,"- exposures to Banks",{"$f":"Import!E33277","v":0},{"$f":"Import!E33280","v":0},{"$f":"Import!E33283","v":0},{"$f":"Import!E33286","v":0},null,null,null,{"$f":"Import!E33289","v":0}]
[6,"- exposures to Insurers",{"$f":"Import!E33278","v":0},{"$f":"Import!E33281","v":0},{"$f":"Import!E33284","v":0},{"$f":"Import!E33287","v":0},null,null,null,{"$f":"Import!E33290","v":0}]
[7,"- exposures to Other Financial Institutions",{"$f":"Import!E33279","v":0},{"$f":"Import!E33282","v":0},{"$f":"Import!E33285","v":0},{"$f":"Import!E33288","v":0},null,null,null,{"$f":"Import!E33291","v":0}]
[]
[null,"Total Exposures",{"$f":"SUM(C1775:C1777)","v":0},{"$f":"SUM(D1775:D1777)","v":0},{"$f":"SUM(E1775:E1777)","v":0},{"$f":"SUM(F1775:F1777)","v":0}]
[]
[null,null,{"$f":"YEAR($C$3)","v":2023},"Fair Value"]
[null,"Unlisted Counterparties","Equities","Corporate Bonds","Corporate Loans","Other",null,null,null,"Comments"]
[8,"Direct Exposure to Unlisted Counterparties - Investment Grade, BSCR Rating 1-3",{"$f":"Import!E33292","v":0},{"$f":"Import!E33296","v":0},{"$f":"Import!E33300","v":0},{"$f":"Import!E33304","v":0},null,null,null,{"$f":"Import!E33308","v":0}]
[9,"Direct Exposure to Unlisted Counterparties - Investment Grade, BSCR Rating 4",{"$f":"Import!E33293","v":0},{"$f":"Import!E33297","v":0},{"$f":"Import!E33301","v":0},{"$f":"Import!E33305","v":0},null,null,null,{"$f":"Import!E33309","v":0}]
[10,"Direct Exposure to Unlisted Counterparties - Below Investment Grade",{"$f":"Import!E33294","v":0},{"$f":"Import!E33298","v":0},{"$f":"Import!E33302","v":0},{"$f":"Import!E33306","v":0},null,null,null,{"$f":"Import!E33310","v":0}]
[11,"Direct Exposure to Unlisted Counterparties - Unrated",{"$f":"Import!E33295","v":0},{"$f":"Import!E33299","v":0},{"$f":"Import!E33303","v":0},{"$f":"Import!E33307","v":0},null,null,null,{"$f":"Import!E33311","v":0}]
[]
[null,"Total Direct Exposures to Unlisted Counterparties",{"$f":"SUM(C1783:C1786)","v":0},{"$f":"SUM(D1783:D1786)","v":0},0,0]
[]
[null,"(K) OTHER ASSETS"]
[]
[null,null,"Enter # of Asset Types",{"$f":"Import!E33312","v":0}]
[]
[null,null,null,null,{"$f":"YEAR($C$3)","v":2023},2023]
[null,"Asset Type","Currency","BSCR Rating","Nominal Amount","Fair Value","Comments"]
[1,{"$f":"Import!E33313","v":"Select"},{"$f":"Import!E33513","v":"Select"},{"$f":"Import!E33713","v":"Select"},{"$f":"Import!E33913","v":0},{"$f":"Import!E34113","v":0},{"$f":"Import!E34313","v":0}]
[{"$f":"A1796+1","v":2},{"$f":"Import!E33314","v":"Select"},{"$f":"Import!E33514","v":"Select"},{"$f":"Import!E33714","v":"Select"},{"$f":"Import!E33914","v":0},{"$f":"Import!E34114","v":0},{"$f":"Import!E34314","v":0}]
[{"$f":"A1797+1","v":3},{"$f":"Import!E33315","v":"Select"},{"$f":"Import!E33515","v":"Select"},{"$f":"Import!E33715","v":"Select"},{"$f":"Import!E33915","v":0},{"$f":"Import!E34115","v":0},{"$f":"Import!E34315","v":0}]
[4,{"$f":"Import!E33316","v":"Select"},{"$f":"Import!E33516","v":"Select"},{"$f":"Import!E33716","v":"Select"},{"$f":"Import!E33916","v":0},{"$f":"Import!E34116","v":0},{"$f":"Import!E34316","v":0}]
[5,{"$f":"Import!E33317","v":"Select"},{"$f":"Import!E33517","v":"Select"},{"$f":"Import!E33717","v":"Select"},{"$f":"Import!E33917","v":0},{"$f":"Import!E34117","v":0},{"$f":"Import!E34317","v":0}]
[6,{"$f":"Import!E33318","v":"Select"},{"$f":"Import!E33518","v":"Select"},{"$f":"Import!E33718","v":"Select"},{"$f":"Import!E33918","v":0},{"$f":"Import!E34118","v":0},{"$f":"Import!E34318","v":0}]
[7,{"$f":"Import!E33319","v":"Select"},{"$f":"Import!E33519","v":"Select"},{"$f":"Import!E33719","v":"Select"},{"$f":"Import!E33919","v":0},{"$f":"Import!E34119","v":0},{"$f":"Import!E34319","v":0}]
[8,{"$f":"Import!E33320","v":"Select"},{"$f":"Import!E33520","v":"Select"},{"$f":"Import!E33720","v":"Select"},{"$f":"Import!E33920","v":0},{"$f":"Import!E34120","v":0},{"$f":"Import!E34320","v":0}]
[9,{"$f":"Import!E33321","v":"Select"},{"$f":"Import!E33521","v":"Select"},{"$f":"Import!E33721","v":"Select"},{"$f":"Import!E33921","v":0},{"$f":"Import!E34121","v":0},{"$f":"Import!E34321","v":0}]
[10,{"$f":"Import!E33322","v":"Select"},{"$f":"Import!E33522","v":"Select"},{"$f":"Import!E33722","v":"Select"},{"$f":"Import!E33922","v":0},{"$f":"Import!E34122","v":0},{"$f":"Import!E34322","v":0}]
[11,{"$f":"Import!E33323","v":"Select"},{"$f":"Import!E33523","v":"Select"},{"$f":"Import!E33723","v":"Select"},{"$f":"Import!E33923","v":0},{"$f":"Import!E34123","v":0},{"$f":"Import!E34323","v":0}]
[12,{"$f":"Import!E33324","v":"Select"},{"$f":"Import!E33524","v":"Select"},{"$f":"Import!E33724","v":"Select"},{"$f":"Import!E33924","v":0},{"$f":"Import!E34124","v":0},{"$f":"Import!E34324","v":0}]
[13,{"$f":"Import!E33325","v":"Select"},{"$f":"Import!E33525","v":"Select"},{"$f":"Import!E33725","v":"Select"},{"$f":"Import!E33925","v":0},{"$f":"Import!E34125","v":0},{"$f":"Import!E34325","v":0}]
[14,{"$f":"Import!E33326","v":"Select"},{"$f":"Import!E33526","v":"Select"},{"$f":"Import!E33726","v":"Select"},{"$f":"Import!E33926","v":0},{"$f":"Import!E34126","v":0},{"$f":"Import!E34326","v":0}]
[15,{"$f":"Import!E33327","v":"Select"},{"$f":"Import!E33527","v":"Select"},{"$f":"Import!E33727","v":"Select"},{"$f":"Import!E33927","v":0},{"$f":"Import!E34127","v":0},{"$f":"Import!E34327","v":0}]
[16,{"$f":"Import!E33328","v":"Select"},{"$f":"Import!E33528","v":"Select"},{"$f":"Import!E33728","v":"Select"},{"$f":"Import!E33928","v":0},{"$f":"Import!E34128","v":0},{"$f":"Import!E34328","v":0}]
[17,{"$f":"Import!E33329","v":"Select"},{"$f":"Import!E33529","v":"Select"},{"$f":"Import!E33729","v":"Select"},{"$f":"Import!E33929","v":0},{"$f":"Import!E34129","v":0},{"$f":"Import!E34329","v":0}]
[18,{"$f":"Import!E33330","v":"Select"},{"$f":"Import!E33530","v":"Select"},{"$f":"Import!E33730","v":"Select"},{"$f":"Import!E33930","v":0},{"$f":"Import!E34130","v":0},{"$f":"Import!E34330","v":0}]
[19,{"$f":"Import!E33331","v":"Select"},{"$f":"Import!E33531","v":"Select"},{"$f":"Import!E33731","v":"Select"},{"$f":"Import!E33931","v":0},{"$f":"Import!E34131","v":0},{"$f":"Import!E34331","v":0}]
[20,{"$f":"Import!E33332","v":"Select"},{"$f":"Import!E33532","v":"Select"},{"$f":"Import!E33732","v":"Select"},{"$f":"Import!E33932","v":0},{"$f":"Import!E34132","v":0},{"$f":"Import!E34332","v":0}]
[21,{"$f":"Import!E33333","v":"Select"},{"$f":"Import!E33533","v":"Select"},{"$f":"Import!E33733","v":"Select"},{"$f":"Import!E33933","v":0},{"$f":"Import!E34133","v":0},{"$f":"Import!E34333","v":0}]
[22,{"$f":"Import!E33334","v":"Select"},{"$f":"Import!E33534","v":"Select"},{"$f":"Import!E33734","v":"Select"},{"$f":"Import!E33934","v":0},{"$f":"Import!E34134","v":0},{"$f":"Import!E34334","v":0}]
[23,{"$f":"Import!E33335","v":"Select"},{"$f":"Import!E33535","v":"Select"},{"$f":"Import!E33735","v":"Select"},{"$f":"Import!E33935","v":0},{"$f":"Import!E34135","v":0},{"$f":"Import!E34335","v":0}]
[24,{"$f":"Import!E33336","v":"Select"},{"$f":"Import!E33536","v":"Select"},{"$f":"Import!E33736","v":"Select"},{"$f":"Import!E33936","v":0},{"$f":"Import!E34136","v":0},{"$f":"Import!E34336","v":0}]
[25,{"$f":"Import!E33337","v":"Select"},{"$f":"Import!E33537","v":"Select"},{"$f":"Import!E33737","v":"Select"},{"$f":"Import!E33937","v":0},{"$f":"Import!E34137","v":0},{"$f":"Import!E34337","v":0}]
[26,{"$f":"Import!E33338","v":"Select"},{"$f":"Import!E33538","v":"Select"},{"$f":"Import!E33738","v":"Select"},{"$f":"Import!E33938","v":0},{"$f":"Import!E34138","v":0},{"$f":"Import!E34338","v":0}]
[27,{"$f":"Import!E33339","v":"Select"},{"$f":"Import!E33539","v":"Select"},{"$f":"Import!E33739","v":"Select"},{"$f":"Import!E33939","v":0},{"$f":"Import!E34139","v":0},{"$f":"Import!E34339","v":0}]
[28,{"$f":"Import!E33340","v":"Select"},{"$f":"Import!E33540","v":"Select"},{"$f":"Import!E33740","v":"Select"},{"$f":"Import!E33940","v":0},{"$f":"Import!E34140","v":0},{"$f":"Import!E34340","v":0}]
[29,{"$f":"Import!E33341","v":"Select"},{"$f":"Import!E33541","v":"Select"},{"$f":"Import!E33741","v":"Select"},{"$f":"Import!E33941","v":0},{"$f":"Import!E34141","v":0},{"$f":"Import!E34341","v":0}]
[30,{"$f":"Import!E33342","v":"Select"},{"$f":"Import!E33542","v":"Select"},{"$f":"Import!E33742","v":"Select"},{"$f":"Import!E33942","v":0},{"$f":"Import!E34142","v":0},{"$f":"Import!E34342","v":0}]
[31,{"$f":"Import!E33343","v":"Select"},{"$f":"Import!E33543","v":"Select"},{"$f":"Import!E33743","v":"Select"},{"$f":"Import!E33943","v":0},{"$f":"Import!E34143","v":0},{"$f":"Import!E34343","v":0}]
[32,{"$f":"Import!E33344","v":"Select"},{"$f":"Import!E33544","v":"Select"},{"$f":"Import!E33744","v":"Select"},{"$f":"Import!E33944","v":0},{"$f":"Import!E34144","v":0},{"$f":"Import!E34344","v":0}]
[33,{"$f":"Import!E33345","v":"Select"},{"$f":"Import!E33545","v":"Select"},{"$f":"Import!E33745","v":"Select"},{"$f":"Import!E33945","v":0},{"$f":"Import!E34145","v":0},{"$f":"Import!E34345","v":0}]
[34,{"$f":"Import!E33346","v":"Select"},{"$f":"Import!E33546","v":"Select"},{"$f":"Import!E33746","v":"Select"},{"$f":"Import!E33946","v":0},{"$f":"Import!E34146","v":0},{"$f":"Import!E34346","v":0}]
[35,{"$f":"Import!E33347","v":"Select"},{"$f":"Import!E33547","v":"Select"},{"$f":"Import!E33747","v":"Select"},{"$f":"Import!E33947","v":0},{"$f":"Import!E34147","v":0},{"$f":"Import!E34347","v":0}]
[36,{"$f":"Import!E33348","v":"Select"},{"$f":"Import!E33548","v":"Select"},{"$f":"Import!E33748","v":"Select"},{"$f":"Import!E33948","v":0},{"$f":"Import!E34148","v":0},{"$f":"Import!E34348","v":0}]
[37,{"$f":"Import!E33349","v":"Select"},{"$f":"Import!E33549","v":"Select"},{"$f":"Import!E33749","v":"Select"},{"$f":"Import!E33949","v":0},{"$f":"Import!E34149","v":0},{"$f":"Import!E34349","v":0}]
[38,{"$f":"Import!E33350","v":"Select"},{"$f":"Import!E33550","v":"Select"},{"$f":"Import!E33750","v":"Select"},{"$f":"Import!E33950","v":0},{"$f":"Import!E34150","v":0},{"$f":"Import!E34350","v":0}]
[39,{"$f":"Import!E33351","v":"Select"},{"$f":"Import!E33551","v":"Select"},{"$f":"Import!E33751","v":"Select"},{"$f":"Import!E33951","v":0},{"$f":"Import!E34151","v":0},{"$f":"Import!E34351","v":0}]
[40,{"$f":"Import!E33352","v":"Select"},{"$f":"Import!E33552","v":"Select"},{"$f":"Import!E33752","v":"Select"},{"$f":"Import!E33952","v":0},{"$f":"Import!E34152","v":0},{"$f":"Import!E34352","v":0}]
[41,{"$f":"Import!E33353","v":"Select"},{"$f":"Import!E33553","v":"Select"},{"$f":"Import!E33753","v":"Select"},{"$f":"Import!E33953","v":0},{"$f":"Import!E34153","v":0},{"$f":"Import!E34353","v":0}]
[42,{"$f":"Import!E33354","v":"Select"},{"$f":"Import!E33554","v":"Select"},{"$f":"Import!E33754","v":"Select"},{"$f":"Import!E33954","v":0},{"$f":"Import!E34154","v":0},{"$f":"Import!E34354","v":0}]
[43,{"$f":"Import!E33355","v":"Select"},{"$f":"Import!E33555","v":"Select"},{"$f":"Import!E33755","v":"Select"},{"$f":"Import!E33955","v":0},{"$f":"Import!E34155","v":0},{"$f":"Import!E34355","v":0}]
[44,{"$f":"Import!E33356","v":"Select"},{"$f":"Import!E33556","v":"Select"},{"$f":"Import!E33756","v":"Select"},{"$f":"Import!E33956","v":0},{"$f":"Import!E34156","v":0},{"$f":"Import!E34356","v":0}]
[45,{"$f":"Import!E33357","v":"Select"},{"$f":"Import!E33557","v":"Select"},{"$f":"Import!E33757","v":"Select"},{"$f":"Import!E33957","v":0},{"$f":"Import!E34157","v":0},{"$f":"Import!E34357","v":0}]
[46,{"$f":"Import!E33358","v":"Select"},{"$f":"Import!E33558","v":"Select"},{"$f":"Import!E33758","v":"Select"},{"$f":"Import!E33958","v":0},{"$f":"Import!E34158","v":0},{"$f":"Import!E34358","v":0}]
[47,{"$f":"Import!E33359","v":"Select"},{"$f":"Import!E33559","v":"Select"},{"$f":"Import!E33759","v":"Select"},{"$f":"Import!E33959","v":0},{"$f":"Import!E34159","v":0},{"$f":"Import!E34359","v":0}]
[48,{"$f":"Import!E33360","v":"Select"},{"$f":"Import!E33560","v":"Select"},{"$f":"Import!E33760","v":"Select"},{"$f":"Import!E33960","v":0},{"$f":"Import!E34160","v":0},{"$f":"Import!E34360","v":0}]
[49,{"$f":"Import!E33361","v":"Select"},{"$f":"Import!E33561","v":"Select"},{"$f":"Import!E33761","v":"Select"},{"$f":"Import!E33961","v":0},{"$f":"Import!E34161","v":0},{"$f":"Import!E34361","v":0}]
[50,{"$f":"Import!E33362","v":"Select"},{"$f":"Import!E33562","v":"Select"},{"$f":"Import!E33762","v":"Select"},{"$f":"Import!E33962","v":0},{"$f":"Import!E34162","v":0},{"$f":"Import!E34362","v":0}]
[51,{"$f":"Import!E33363","v":"Select"},{"$f":"Import!E33563","v":"Select"},{"$f":"Import!E33763","v":"Select"},{"$f":"Import!E33963","v":0},{"$f":"Import!E34163","v":0},{"$f":"Import!E34363","v":0}]
[52,{"$f":"Import!E33364","v":"Select"},{"$f":"Import!E33564","v":"Select"},{"$f":"Import!E33764","v":"Select"},{"$f":"Import!E33964","v":0},{"$f":"Import!E34164","v":0},{"$f":"Import!E34364","v":0}]
[53,{"$f":"Import!E33365","v":"Select"},{"$f":"Import!E33565","v":"Select"},{"$f":"Import!E33765","v":"Select"},{"$f":"Import!E33965","v":0},{"$f":"Import!E34165","v":0},{"$f":"Import!E34365","v":0}]
[54,{"$f":"Import!E33366","v":"Select"},{"$f":"Import!E33566","v":"Select"},{"$f":"Import!E33766","v":"Select"},{"$f":"Import!E33966","v":0},{"$f":"Import!E34166","v":0},{"$f":"Import!E34366","v":0}]
[55,{"$f":"Import!E33367","v":"Select"},{"$f":"Import!E33567","v":"Select"},{"$f":"Import!E33767","v":"Select"},{"$f":"Import!E33967","v":0},{"$f":"Import!E34167","v":0},{"$f":"Import!E34367","v":0}]
[56,{"$f":"Import!E33368","v":"Select"},{"$f":"Import!E33568","v":"Select"},{"$f":"Import!E33768","v":"Select"},{"$f":"Import!E33968","v":0},{"$f":"Import!E34168","v":0},{"$f":"Import!E34368","v":0}]
[57,{"$f":"Import!E33369","v":"Select"},{"$f":"Import!E33569","v":"Select"},{"$f":"Import!E33769","v":"Select"},{"$f":"Import!E33969","v":0},{"$f":"Import!E34169","v":0},{"$f":"Import!E34369","v":0}]
[58,{"$f":"Import!E33370","v":"Select"},{"$f":"Import!E33570","v":"Select"},{"$f":"Import!E33770","v":"Select"},{"$f":"Import!E33970","v":0},{"$f":"Import!E34170","v":0},{"$f":"Import!E34370","v":0}]
[59,{"$f":"Import!E33371","v":"Select"},{"$f":"Import!E33571","v":"Select"},{"$f":"Import!E33771","v":"Select"},{"$f":"Import!E33971","v":0},{"$f":"Import!E34171","v":0},{"$f":"Import!E34371","v":0}]
[60,{"$f":"Import!E33372","v":"Select"},{"$f":"Import!E33572","v":"Select"},{"$f":"Import!E33772","v":"Select"},{"$f":"Import!E33972","v":0},{"$f":"Import!E34172","v":0},{"$f":"Import!E34372","v":0}]
[61,{"$f":"Import!E33373","v":"Select"},{"$f":"Import!E33573","v":"Select"},{"$f":"Import!E33773","v":"Select"},{"$f":"Import!E33973","v":0},{"$f":"Import!E34173","v":0},{"$f":"Import!E34373","v":0}]
[62,{"$f":"Import!E33374","v":"Select"},{"$f":"Import!E33574","v":"Select"},{"$f":"Import!E33774","v":"Select"},{"$f":"Import!E33974","v":0},{"$f":"Import!E34174","v":0},{"$f":"Import!E34374","v":0}]
[63,{"$f":"Import!E33375","v":"Select"},{"$f":"Import!E33575","v":"Select"},{"$f":"Import!E33775","v":"Select"},{"$f":"Import!E33975","v":0},{"$f":"Import!E34175","v":0},{"$f":"Import!E34375","v":0}]
[64,{"$f":"Import!E33376","v":"Select"},{"$f":"Import!E33576","v":"Select"},{"$f":"Import!E33776","v":"Select"},{"$f":"Import!E33976","v":0},{"$f":"Import!E34176","v":0},{"$f":"Import!E34376","v":0}]
[65,{"$f":"Import!E33377","v":"Select"},{"$f":"Import!E33577","v":"Select"},{"$f":"Import!E33777","v":"Select"},{"$f":"Import!E33977","v":0},{"$f":"Import!E34177","v":0},{"$f":"Import!E34377","v":0}]
[66,{"$f":"Import!E33378","v":"Select"},{"$f":"Import!E33578","v":"Select"},{"$f":"Import!E33778","v":"Select"},{"$f":"Import!E33978","v":0},{"$f":"Import!E34178","v":0},{"$f":"Import!E34378","v":0}]
[{"$f":"A1861+1","v":67},{"$f":"Import!E33379","v":"Select"},{"$f":"Import!E33579","v":"Select"},{"$f":"Import!E33779","v":"Select"},{"$f":"Import!E33979","v":0},{"$f":"Import!E34179","v":0},{"$f":"Import!E34379","v":0}]
[68,{"$f":"Import!E33380","v":"Select"},{"$f":"Import!E33580","v":"Select"},{"$f":"Import!E33780","v":"Select"},{"$f":"Import!E33980","v":0},{"$f":"Import!E34180","v":0},{"$f":"Import!E34380","v":0}]
[69,{"$f":"Import!E33381","v":"Select"},{"$f":"Import!E33581","v":"Select"},{"$f":"Import!E33781","v":"Select"},{"$f":"Import!E33981","v":0},{"$f":"Import!E34181","v":0},{"$f":"Import!E34381","v":0}]
[70,{"$f":"Import!E33382","v":"Select"},{"$f":"Import!E33582","v":"Select"},{"$f":"Import!E33782","v":"Select"},{"$f":"Import!E33982","v":0},{"$f":"Import!E34182","v":0},{"$f":"Import!E34382","v":0}]
[71,{"$f":"Import!E33383","v":"Select"},{"$f":"Import!E33583","v":"Select"},{"$f":"Import!E33783","v":"Select"},{"$f":"Import!E33983","v":0},{"$f":"Import!E34183","v":0},{"$f":"Import!E34383","v":0}]
[72,{"$f":"Import!E33384","v":"Select"},{"$f":"Import!E33584","v":"Select"},{"$f":"Import!E33784","v":"Select"},{"$f":"Import!E33984","v":0},{"$f":"Import!E34184","v":0},{"$f":"Import!E34384","v":0}]
[73,{"$f":"Import!E33385","v":"Select"},{"$f":"Import!E33585","v":"Select"},{"$f":"Import!E33785","v":"Select"},{"$f":"Import!E33985","v":0},{"$f":"Import!E34185","v":0},{"$f":"Import!E34385","v":0}]
[74,{"$f":"Import!E33386","v":"Select"},{"$f":"Import!E33586","v":"Select"},{"$f":"Import!E33786","v":"Select"},{"$f":"Import!E33986","v":0},{"$f":"Import!E34186","v":0},{"$f":"Import!E34386","v":0}]
[75,{"$f":"Import!E33387","v":"Select"},{"$f":"Import!E33587","v":"Select"},{"$f":"Import!E33787","v":"Select"},{"$f":"Import!E33987","v":0},{"$f":"Import!E34187","v":0},{"$f":"Import!E34387","v":0}]
[76,{"$f":"Import!E33388","v":"Select"},{"$f":"Import!E33588","v":"Select"},{"$f":"Import!E33788","v":"Select"},{"$f":"Import!E33988","v":0},{"$f":"Import!E34188","v":0},{"$f":"Import!E34388","v":0}]
[77,{"$f":"Import!E33389","v":"Select"},{"$f":"Import!E33589","v":"Select"},{"$f":"Import!E33789","v":"Select"},{"$f":"Import!E33989","v":0},{"$f":"Import!E34189","v":0},{"$f":"Import!E34389","v":0}]
[78,{"$f":"Import!E33390","v":"Select"},{"$f":"Import!E33590","v":"Select"},{"$f":"Import!E33790","v":"Select"},{"$f":"Import!E33990","v":0},{"$f":"Import!E34190","v":0},{"$f":"Import!E34390","v":0}]
[79,{"$f":"Import!E33391","v":"Select"},{"$f":"Import!E33591","v":"Select"},{"$f":"Import!E33791","v":"Select"},{"$f":"Import!E33991","v":0},{"$f":"Import!E34191","v":0},{"$f":"Import!E34391","v":0}]
[80,{"$f":"Import!E33392","v":"Select"},{"$f":"Import!E33592","v":"Select"},{"$f":"Import!E33792","v":"Select"},{"$f":"Import!E33992","v":0},{"$f":"Import!E34192","v":0},{"$f":"Import!E34392","v":0}]
[81,{"$f":"Import!E33393","v":"Select"},{"$f":"Import!E33593","v":"Select"},{"$f":"Import!E33793","v":"Select"},{"$f":"Import!E33993","v":0},{"$f":"Import!E34193","v":0},{"$f":"Import!E34393","v":0}]
[82,{"$f":"Import!E33394","v":"Select"},{"$f":"Import!E33594","v":"Select"},{"$f":"Import!E33794","v":"Select"},{"$f":"Import!E33994","v":0},{"$f":"Import!E34194","v":0},{"$f":"Import!E34394","v":0}]
[83,{"$f":"Import!E33395","v":"Select"},{"$f":"Import!E33595","v":"Select"},{"$f":"Import!E33795","v":"Select"},{"$f":"Import!E33995","v":0},{"$f":"Import!E34195","v":0},{"$f":"Import!E34395","v":0}]
[84,{"$f":"Import!E33396","v":"Select"},{"$f":"Import!E33596","v":"Select"},{"$f":"Import!E33796","v":"Select"},{"$f":"Import!E33996","v":0},{"$f":"Import!E34196","v":0},{"$f":"Import!E34396","v":0}]
[85,{"$f":"Import!E33397","v":"Select"},{"$f":"Import!E33597","v":"Select"},{"$f":"Import!E33797","v":"Select"},{"$f":"Import!E33997","v":0},{"$f":"Import!E34197","v":0},{"$f":"Import!E34397","v":0}]
[86,{"$f":"Import!E33398","v":"Select"},{"$f":"Import!E33598","v":"Select"},{"$f":"Import!E33798","v":"Select"},{"$f":"Import!E33998","v":0},{"$f":"Import!E34198","v":0},{"$f":"Import!E34398","v":0}]
[87,{"$f":"Import!E33399","v":"Select"},{"$f":"Import!E33599","v":"Select"},{"$f":"Import!E33799","v":"Select"},{"$f":"Import!E33999","v":0},{"$f":"Import!E34199","v":0},{"$f":"Import!E34399","v":0}]
[88,{"$f":"Import!E33400","v":"Select"},{"$f":"Import!E33600","v":"Select"},{"$f":"Import!E33800","v":"Select"},{"$f":"Import!E34000","v":0},{"$f":"Import!E34200","v":0},{"$f":"Import!E34400","v":0}]
[89,{"$f":"Import!E33401","v":"Select"},{"$f":"Import!E33601","v":"Select"},{"$f":"Import!E33801","v":"Select"},{"$f":"Import!E34001","v":0},{"$f":"Import!E34201","v":0},{"$f":"Import!E34401","v":0}]
[90,{"$f":"Import!E33402","v":"Select"},{"$f":"Import!E33602","v":"Select"},{"$f":"Import!E33802","v":"Select"},{"$f":"Import!E34002","v":0},{"$f":"Import!E34202","v":0},{"$f":"Import!E34402","v":0}]
[91,{"$f":"Import!E33403","v":"Select"},{"$f":"Import!E33603","v":"Select"},{"$f":"Import!E33803","v":"Select"},{"$f":"Import!E34003","v":0},{"$f":"Import!E34203","v":0},{"$f":"Import!E34403","v":0}]
[92,{"$f":"Import!E33404","v":"Select"},{"$f":"Import!E33604","v":"Select"},{"$f":"Import!E33804","v":"Select"},{"$f":"Import!E34004","v":0},{"$f":"Import!E34204","v":0},{"$f":"Import!E34404","v":0}]
[93,{"$f":"Import!E33405","v":"Select"},{"$f":"Import!E33605","v":"Select"},{"$f":"Import!E33805","v":"Select"},{"$f":"Import!E34005","v":0},{"$f":"Import!E34205","v":0},{"$f":"Import!E34405","v":0}]
[94,{"$f":"Import!E33406","v":"Select"},{"$f":"Import!E33606","v":"Select"},{"$f":"Import!E33806","v":"Select"},{"$f":"Import!E34006","v":0},{"$f":"Import!E34206","v":0},{"$f":"Import!E34406","v":0}]
[95,{"$f":"Import!E33407","v":"Select"},{"$f":"Import!E33607","v":"Select"},{"$f":"Import!E33807","v":"Select"},{"$f":"Import!E34007","v":0},{"$f":"Import!E34207","v":0},{"$f":"Import!E34407","v":0}]
[96,{"$f":"Import!E33408","v":"Select"},{"$f":"Import!E33608","v":"Select"},{"$f":"Import!E33808","v":"Select"},{"$f":"Import!E34008","v":0},{"$f":"Import!E34208","v":0},{"$f":"Import!E34408","v":0}]
[97,{"$f":"Import!E33409","v":"Select"},{"$f":"Import!E33609","v":"Select"},{"$f":"Import!E33809","v":"Select"},{"$f":"Import!E34009","v":0},{"$f":"Import!E34209","v":0},{"$f":"Import!E34409","v":0}]
[98,{"$f":"Import!E33410","v":"Select"},{"$f":"Import!E33610","v":"Select"},{"$f":"Import!E33810","v":"Select"},{"$f":"Import!E34010","v":0},{"$f":"Import!E34210","v":0},{"$f":"Import!E34410","v":0}]
[99,{"$f":"Import!E33411","v":"Select"},{"$f":"Import!E33611","v":"Select"},{"$f":"Import!E33811","v":"Select"},{"$f":"Import!E34011","v":0},{"$f":"Import!E34211","v":0},{"$f":"Import!E34411","v":0}]
[100,{"$f":"Import!E33412","v":"Select"},{"$f":"Import!E33612","v":"Select"},{"$f":"Import!E33812","v":"Select"},{"$f":"Import!E34012","v":0},{"$f":"Import!E34212","v":0},{"$f":"Import!E34412","v":0}]
[101,{"$f":"Import!E33413","v":"Select"},{"$f":"Import!E33613","v":"Select"},{"$f":"Import!E33813","v":"Select"},{"$f":"Import!E34013","v":0},{"$f":"Import!E34213","v":0},{"$f":"Import!E34413","v":0}]
[102,{"$f":"Import!E33414","v":"Select"},{"$f":"Import!E33614","v":"Select"},{"$f":"Import!E33814","v":"Select"},{"$f":"Import!E34014","v":0},{"$f":"Import!E34214","v":0},{"$f":"Import!E34414","v":0}]
[103,{"$f":"Import!E33415","v":"Select"},{"$f":"Import!E33615","v":"Select"},{"$f":"Import!E33815","v":"Select"},{"$f":"Import!E34015","v":0},{"$f":"Import!E34215","v":0},{"$f":"Import!E34415","v":0}]
[104,{"$f":"Import!E33416","v":"Select"},{"$f":"Import!E33616","v":"Select"},{"$f":"Import!E33816","v":"Select"},{"$f":"Import!E34016","v":0},{"$f":"Import!E34216","v":0},{"$f":"Import!E34416","v":0}]
[105,{"$f":"Import!E33417","v":"Select"},{"$f":"Import!E33617","v":"Select"},{"$f":"Import!E33817","v":"Select"},{"$f":"Import!E34017","v":0},{"$f":"Import!E34217","v":0},{"$f":"Import!E34417","v":0}]
[106,{"$f":"Import!E33418","v":"Select"},{"$f":"Import!E33618","v":"Select"},{"$f":"Import!E33818","v":"Select"},{"$f":"Import!E34018","v":0},{"$f":"Import!E34218","v":0},{"$f":"Import!E34418","v":0}]
[107,{"$f":"Import!E33419","v":"Select"},{"$f":"Import!E33619","v":"Select"},{"$f":"Import!E33819","v":"Select"},{"$f":"Import!E34019","v":0},{"$f":"Import!E34219","v":0},{"$f":"Import!E34419","v":0}]
[108,{"$f":"Import!E33420","v":"Select"},{"$f":"Import!E33620","v":"Select"},{"$f":"Import!E33820","v":"Select"},{"$f":"Import!E34020","v":0},{"$f":"Import!E34220","v":0},{"$f":"Import!E34420","v":0}]
[109,{"$f":"Import!E33421","v":"Select"},{"$f":"Import!E33621","v":"Select"},{"$f":"Import!E33821","v":"Select"},{"$f":"Import!E34021","v":0},{"$f":"Import!E34221","v":0},{"$f":"Import!E34421","v":0}]
[110,{"$f":"Import!E33422","v":"Select"},{"$f":"Import!E33622","v":"Select"},{"$f":"Import!E33822","v":"Select"},{"$f":"Import!E34022","v":0},{"$f":"Import!E34222","v":0},{"$f":"Import!E34422","v":0}]
[111,{"$f":"Import!E33423","v":"Select"},{"$f":"Import!E33623","v":"Select"},{"$f":"Import!E33823","v":"Select"},{"$f":"Import!E34023","v":0},{"$f":"Import!E34223","v":0},{"$f":"Import!E34423","v":0}]
[112,{"$f":"Import!E33424","v":"Select"},{"$f":"Import!E33624","v":"Select"},{"$f":"Import!E33824","v":"Select"},{"$f":"Import!E34024","v":0},{"$f":"Import!E34224","v":0},{"$f":"Import!E34424","v":0}]
[113,{"$f":"Import!E33425","v":"Select"},{"$f":"Import!E33625","v":"Select"},{"$f":"Import!E33825","v":"Select"},{"$f":"Import!E34025","v":0},{"$f":"Import!E34225","v":0},{"$f":"Import!E34425","v":0}]
[114,{"$f":"Import!E33426","v":"Select"},{"$f":"Import!E33626","v":"Select"},{"$f":"Import!E33826","v":"Select"},{"$f":"Import!E34026","v":0},{"$f":"Import!E34226","v":0},{"$f":"Import!E34426","v":0}]
[115,{"$f":"Import!E33427","v":"Select"},{"$f":"Import!E33627","v":"Select"},{"$f":"Import!E33827","v":"Select"},{"$f":"Import!E34027","v":0},{"$f":"Import!E34227","v":0},{"$f":"Import!E34427","v":0}]
[116,{"$f":"Import!E33428","v":"Select"},{"$f":"Import!E33628","v":"Select"},{"$f":"Import!E33828","v":"Select"},{"$f":"Import!E34028","v":0},{"$f":"Import!E34228","v":0},{"$f":"Import!E34428","v":0}]
[117,{"$f":"Import!E33429","v":"Select"},{"$f":"Import!E33629","v":"Select"},{"$f":"Import!E33829","v":"Select"},{"$f":"Import!E34029","v":0},{"$f":"Import!E34229","v":0},{"$f":"Import!E34429","v":0}]
[118,{"$f":"Import!E33430","v":"Select"},{"$f":"Import!E33630","v":"Select"},{"$f":"Import!E33830","v":"Select"},{"$f":"Import!E34030","v":0},{"$f":"Import!E34230","v":0},{"$f":"Import!E34430","v":0}]
[119,{"$f":"Import!E33431","v":"Select"},{"$f":"Import!E33631","v":"Select"},{"$f":"Import!E33831","v":"Select"},{"$f":"Import!E34031","v":0},{"$f":"Import!E34231","v":0},{"$f":"Import!E34431","v":0}]
[120,{"$f":"Import!E33432","v":"Select"},{"$f":"Import!E33632","v":"Select"},{"$f":"Import!E33832","v":"Select"},{"$f":"Import!E34032","v":0},{"$f":"Import!E34232","v":0},{"$f":"Import!E34432","v":0}]
[121,{"$f":"Import!E33433","v":"Select"},{"$f":"Import!E33633","v":"Select"},{"$f":"Import!E33833","v":"Select"},{"$f":"Import!E34033","v":0},{"$f":"Import!E34233","v":0},{"$f":"Import!E34433","v":0}]
[122,{"$f":"Import!E33434","v":"Select"},{"$f":"Import!E33634","v":"Select"},{"$f":"Import!E33834","v":"Select"},{"$f":"Import!E34034","v":0},{"$f":"Import!E34234","v":0},{"$f":"Import!E34434","v":0}]
[123,{"$f":"Import!E33435","v":"Select"},{"$f":"Import!E33635","v":"Select"},{"$f":"Import!E33835","v":"Select"},{"$f":"Import!E34035","v":0},{"$f":"Import!E34235","v":0},{"$f":"Import!E34435","v":0}]
[124,{"$f":"Import!E33436","v":"Select"},{"$f":"Import!E33636","v":"Select"},{"$f":"Import!E33836","v":"Select"},{"$f":"Import!E34036","v":0},{"$f":"Import!E34236","v":0},{"$f":"Import!E34436","v":0}]
[125,{"$f":"Import!E33437","v":"Select"},{"$f":"Import!E33637","v":"Select"},{"$f":"Import!E33837","v":"Select"},{"$f":"Import!E34037","v":0},{"$f":"Import!E34237","v":0},{"$f":"Import!E34437","v":0}]
[126,{"$f":"Import!E33438","v":"Select"},{"$f":"Import!E33638","v":"Select"},{"$f":"Import!E33838","v":"Select"},{"$f":"Import!E34038","v":0},{"$f":"Import!E34238","v":0},{"$f":"Import!E34438","v":0}]
[127,{"$f":"Import!E33439","v":"Select"},{"$f":"Import!E33639","v":"Select"},{"$f":"Import!E33839","v":"Select"},{"$f":"Import!E34039","v":0},{"$f":"Import!E34239","v":0},{"$f":"Import!E34439","v":0}]
[128,{"$f":"Import!E33440","v":"Select"},{"$f":"Import!E33640","v":"Select"},{"$f":"Import!E33840","v":"Select"},{"$f":"Import!E34040","v":0},{"$f":"Import!E34240","v":0},{"$f":"Import!E34440","v":0}]
[129,{"$f":"Import!E33441","v":"Select"},{"$f":"Import!E33641","v":"Select"},{"$f":"Import!E33841","v":"Select"},{"$f":"Import!E34041","v":0},{"$f":"Import!E34241","v":0},{"$f":"Import!E34441","v":0}]
[130,{"$f":"Import!E33442","v":"Select"},{"$f":"Import!E33642","v":"Select"},{"$f":"Import!E33842","v":"Select"},{"$f":"Import!E34042","v":0},{"$f":"Import!E34242","v":0},{"$f":"Import!E34442","v":0}]
[{"$f":"A1925+1","v":131},{"$f":"Import!E33443","v":"Select"},{"$f":"Import!E33643","v":"Select"},{"$f":"Import!E33843","v":"Select"},{"$f":"Import!E34043","v":0},{"$f":"Import!E34243","v":0},{"$f":"Import!E34443","v":0}]
[132,{"$f":"Import!E33444","v":"Select"},{"$f":"Import!E33644","v":"Select"},{"$f":"Import!E33844","v":"Select"},{"$f":"Import!E34044","v":0},{"$f":"Import!E34244","v":0},{"$f":"Import!E34444","v":0}]
[133,{"$f":"Import!E33445","v":"Select"},{"$f":"Import!E33645","v":"Select"},{"$f":"Import!E33845","v":"Select"},{"$f":"Import!E34045","v":0},{"$f":"Import!E34245","v":0},{"$f":"Import!E34445","v":0}]
[134,{"$f":"Import!E33446","v":"Select"},{"$f":"Import!E33646","v":"Select"},{"$f":"Import!E33846","v":"Select"},{"$f":"Import!E34046","v":0},{"$f":"Import!E34246","v":0},{"$f":"Import!E34446","v":0}]
[135,{"$f":"Import!E33447","v":"Select"},{"$f":"Import!E33647","v":"Select"},{"$f":"Import!E33847","v":"Select"},{"$f":"Import!E34047","v":0},{"$f":"Import!E34247","v":0},{"$f":"Import!E34447","v":0}]
[136,{"$f":"Import!E33448","v":"Select"},{"$f":"Import!E33648","v":"Select"},{"$f":"Import!E33848","v":"Select"},{"$f":"Import!E34048","v":0},{"$f":"Import!E34248","v":0},{"$f":"Import!E34448","v":0}]
[137,{"$f":"Import!E33449","v":"Select"},{"$f":"Import!E33649","v":"Select"},{"$f":"Import!E33849","v":"Select"},{"$f":"Import!E34049","v":0},{"$f":"Import!E34249","v":0},{"$f":"Import!E34449","v":0}]
[138,{"$f":"Import!E33450","v":"Select"},{"$f":"Import!E33650","v":"Select"},{"$f":"Import!E33850","v":"Select"},{"$f":"Import!E34050","v":0},{"$f":"Import!E34250","v":0},{"$f":"Import!E34450","v":0}]
[139,{"$f":"Import!E33451","v":"Select"},{"$f":"Import!E33651","v":"Select"},{"$f":"Import!E33851","v":"Select"},{"$f":"Import!E34051","v":0},{"$f":"Import!E34251","v":0},{"$f":"Import!E34451","v":0}]
[140,{"$f":"Import!E33452","v":"Select"},{"$f":"Import!E33652","v":"Select"},{"$f":"Import!E33852","v":"Select"},{"$f":"Import!E34052","v":0},{"$f":"Import!E34252","v":0},{"$f":"Import!E34452","v":0}]
[141,{"$f":"Import!E33453","v":"Select"},{"$f":"Import!E33653","v":"Select"},{"$f":"Import!E33853","v":"Select"},{"$f":"Import!E34053","v":0},{"$f":"Import!E34253","v":0},{"$f":"Import!E34453","v":0}]
[142,{"$f":"Import!E33454","v":"Select"},{"$f":"Import!E33654","v":"Select"},{"$f":"Import!E33854","v":"Select"},{"$f":"Import!E34054","v":0},{"$f":"Import!E34254","v":0},{"$f":"Import!E34454","v":0}]
[143,{"$f":"Import!E33455","v":"Select"},{"$f":"Import!E33655","v":"Select"},{"$f":"Import!E33855","v":"Select"},{"$f":"Import!E34055","v":0},{"$f":"Import!E34255","v":0},{"$f":"Import!E34455","v":0}]
[144,{"$f":"Import!E33456","v":"Select"},{"$f":"Import!E33656","v":"Select"},{"$f":"Import!E33856","v":"Select"},{"$f":"Import!E34056","v":0},{"$f":"Import!E34256","v":0},{"$f":"Import!E34456","v":0}]
[145,{"$f":"Import!E33457","v":"Select"},{"$f":"Import!E33657","v":"Select"},{"$f":"Import!E33857","v":"Select"},{"$f":"Import!E34057","v":0},{"$f":"Import!E34257","v":0},{"$f":"Import!E34457","v":0}]
[146,{"$f":"Import!E33458","v":"Select"},{"$f":"Import!E33658","v":"Select"},{"$f":"Import!E33858","v":"Select"},{"$f":"Import!E34058","v":0},{"$f":"Import!E34258","v":0},{"$f":"Import!E34458","v":0}]
[147,{"$f":"Import!E33459","v":"Select"},{"$f":"Import!E33659","v":"Select"},{"$f":"Import!E33859","v":"Select"},{"$f":"Import!E34059","v":0},{"$f":"Import!E34259","v":0},{"$f":"Import!E34459","v":0}]
[148,{"$f":"Import!E33460","v":"Select"},{"$f":"Import!E33660","v":"Select"},{"$f":"Import!E33860","v":"Select"},{"$f":"Import!E34060","v":0},{"$f":"Import!E34260","v":0},{"$f":"Import!E34460","v":0}]
[149,{"$f":"Import!E33461","v":"Select"},{"$f":"Import!E33661","v":"Select"},{"$f":"Import!E33861","v":"Select"},{"$f":"Import!E34061","v":0},{"$f":"Import!E34261","v":0},{"$f":"Import!E34461","v":0}]
[150,{"$f":"Import!E33462","v":"Select"},{"$f":"Import!E33662","v":"Select"},{"$f":"Import!E33862","v":"Select"},{"$f":"Import!E34062","v":0},{"$f":"Import!E34262","v":0},{"$f":"Import!E34462","v":0}]
[151,{"$f":"Import!E33463","v":"Select"},{"$f":"Import!E33663","v":"Select"},{"$f":"Import!E33863","v":"Select"},{"$f":"Import!E34063","v":0},{"$f":"Import!E34263","v":0},{"$f":"Import!E34463","v":0}]
[152,{"$f":"Import!E33464","v":"Select"},{"$f":"Import!E33664","v":"Select"},{"$f":"Import!E33864","v":"Select"},{"$f":"Import!E34064","v":0},{"$f":"Import!E34264","v":0},{"$f":"Import!E34464","v":0}]
[153,{"$f":"Import!E33465","v":"Select"},{"$f":"Import!E33665","v":"Select"},{"$f":"Import!E33865","v":"Select"},{"$f":"Import!E34065","v":0},{"$f":"Import!E34265","v":0},{"$f":"Import!E34465","v":0}]
[154,{"$f":"Import!E33466","v":"Select"},{"$f":"Import!E33666","v":"Select"},{"$f":"Import!E33866","v":"Select"},{"$f":"Import!E34066","v":0},{"$f":"Import!E34266","v":0},{"$f":"Import!E34466","v":0}]
[155,{"$f":"Import!E33467","v":"Select"},{"$f":"Import!E33667","v":"Select"},{"$f":"Import!E33867","v":"Select"},{"$f":"Import!E34067","v":0},{"$f":"Import!E34267","v":0},{"$f":"Import!E34467","v":0}]
[156,{"$f":"Import!E33468","v":"Select"},{"$f":"Import!E33668","v":"Select"},{"$f":"Import!E33868","v":"Select"},{"$f":"Import!E34068","v":0},{"$f":"Import!E34268","v":0},{"$f":"Import!E34468","v":0}]
[157,{"$f":"Import!E33469","v":"Select"},{"$f":"Import!E33669","v":"Select"},{"$f":"Import!E33869","v":"Select"},{"$f":"Import!E34069","v":0},{"$f":"Import!E34269","v":0},{"$f":"Import!E34469","v":0}]
[158,{"$f":"Import!E33470","v":"Select"},{"$f":"Import!E33670","v":"Select"},{"$f":"Import!E33870","v":"Select"},{"$f":"Import!E34070","v":0},{"$f":"Import!E34270","v":0},{"$f":"Import!E34470","v":0}]
[159,{"$f":"Import!E33471","v":"Select"},{"$f":"Import!E33671","v":"Select"},{"$f":"Import!E33871","v":"Select"},{"$f":"Import!E34071","v":0},{"$f":"Import!E34271","v":0},{"$f":"Import!E34471","v":0}]
[160,{"$f":"Import!E33472","v":"Select"},{"$f":"Import!E33672","v":"Select"},{"$f":"Import!E33872","v":"Select"},{"$f":"Import!E34072","v":0},{"$f":"Import!E34272","v":0},{"$f":"Import!E34472","v":0}]
[161,{"$f":"Import!E33473","v":"Select"},{"$f":"Import!E33673","v":"Select"},{"$f":"Import!E33873","v":"Select"},{"$f":"Import!E34073","v":0},{"$f":"Import!E34273","v":0},{"$f":"Import!E34473","v":0}]
[162,{"$f":"Import!E33474","v":"Select"},{"$f":"Import!E33674","v":"Select"},{"$f":"Import!E33874","v":"Select"},{"$f":"Import!E34074","v":0},{"$f":"Import!E34274","v":0},{"$f":"Import!E34474","v":0}]
[163,{"$f":"Import!E33475","v":"Select"},{"$f":"Import!E33675","v":"Select"},{"$f":"Import!E33875","v":"Select"},{"$f":"Import!E34075","v":0},{"$f":"Import!E34275","v":0},{"$f":"Import!E34475","v":0}]
[164,{"$f":"Import!E33476","v":"Select"},{"$f":"Import!E33676","v":"Select"},{"$f":"Import!E33876","v":"Select"},{"$f":"Import!E34076","v":0},{"$f":"Import!E34276","v":0},{"$f":"Import!E34476","v":0}]
[165,{"$f":"Import!E33477","v":"Select"},{"$f":"Import!E33677","v":"Select"},{"$f":"Import!E33877","v":"Select"},{"$f":"Import!E34077","v":0},{"$f":"Import!E34277","v":0},{"$f":"Import!E34477","v":0}]
[166,{"$f":"Import!E33478","v":"Select"},{"$f":"Import!E33678","v":"Select"},{"$f":"Import!E33878","v":"Select"},{"$f":"Import!E34078","v":0},{"$f":"Import!E34278","v":0},{"$f":"Import!E34478","v":0}]
[167,{"$f":"Import!E33479","v":"Select"},{"$f":"Import!E33679","v":"Select"},{"$f":"Import!E33879","v":"Select"},{"$f":"Import!E34079","v":0},{"$f":"Import!E34279","v":0},{"$f":"Import!E34479","v":0}]
[168,{"$f":"Import!E33480","v":"Select"},{"$f":"Import!E33680","v":"Select"},{"$f":"Import!E33880","v":"Select"},{"$f":"Import!E34080","v":0},{"$f":"Import!E34280","v":0},{"$f":"Import!E34480","v":0}]
[169,{"$f":"Import!E33481","v":"Select"},{"$f":"Import!E33681","v":"Select"},{"$f":"Import!E33881","v":"Select"},{"$f":"Import!E34081","v":0},{"$f":"Import!E34281","v":0},{"$f":"Import!E34481","v":0}]
[170,{"$f":"Import!E33482","v":"Select"},{"$f":"Import!E33682","v":"Select"},{"$f":"Import!E33882","v":"Select"},{"$f":"Import!E34082","v":0},{"$f":"Import!E34282","v":0},{"$f":"Import!E34482","v":0}]
[171,{"$f":"Import!E33483","v":"Select"},{"$f":"Import!E33683","v":"Select"},{"$f":"Import!E33883","v":"Select"},{"$f":"Import!E34083","v":0},{"$f":"Import!E34283","v":0},{"$f":"Import!E34483","v":0}]
[172,{"$f":"Import!E33484","v":"Select"},{"$f":"Import!E33684","v":"Select"},{"$f":"Import!E33884","v":"Select"},{"$f":"Import!E34084","v":0},{"$f":"Import!E34284","v":0},{"$f":"Import!E34484","v":0}]
[173,{"$f":"Import!E33485","v":"Select"},{"$f":"Import!E33685","v":"Select"},{"$f":"Import!E33885","v":"Select"},{"$f":"Import!E34085","v":0},{"$f":"Import!E34285","v":0},{"$f":"Import!E34485","v":0}]
[174,{"$f":"Import!E33486","v":"Select"},{"$f":"Import!E33686","v":"Select"},{"$f":"Import!E33886","v":"Select"},{"$f":"Import!E34086","v":0},{"$f":"Import!E34286","v":0},{"$f":"Import!E34486","v":0}]
[175,{"$f":"Import!E33487","v":"Select"},{"$f":"Import!E33687","v":"Select"},{"$f":"Import!E33887","v":"Select"},{"$f":"Import!E34087","v":0},{"$f":"Import!E34287","v":0},{"$f":"Import!E34487","v":0}]
[176,{"$f":"Import!E33488","v":"Select"},{"$f":"Import!E33688","v":"Select"},{"$f":"Import!E33888","v":"Select"},{"$f":"Import!E34088","v":0},{"$f":"Import!E34288","v":0},{"$f":"Import!E34488","v":0}]
[177,{"$f":"Import!E33489","v":"Select"},{"$f":"Import!E33689","v":"Select"},{"$f":"Import!E33889","v":"Select"},{"$f":"Import!E34089","v":0},{"$f":"Import!E34289","v":0},{"$f":"Import!E34489","v":0}]
[178,{"$f":"Import!E33490","v":"Select"},{"$f":"Import!E33690","v":"Select"},{"$f":"Import!E33890","v":"Select"},{"$f":"Import!E34090","v":0},{"$f":"Import!E34290","v":0},{"$f":"Import!E34490","v":0}]
[179,{"$f":"Import!E33491","v":"Select"},{"$f":"Import!E33691","v":"Select"},{"$f":"Import!E33891","v":"Select"},{"$f":"Import!E34091","v":0},{"$f":"Import!E34291","v":0},{"$f":"Import!E34491","v":0}]
[180,{"$f":"Import!E33492","v":"Select"},{"$f":"Import!E33692","v":"Select"},{"$f":"Import!E33892","v":"Select"},{"$f":"Import!E34092","v":0},{"$f":"Import!E34292","v":0},{"$f":"Import!E34492","v":0}]
[181,{"$f":"Import!E33493","v":"Select"},{"$f":"Import!E33693","v":"Select"},{"$f":"Import!E33893","v":"Select"},{"$f":"Import!E34093","v":0},{"$f":"Import!E34293","v":0},{"$f":"Import!E34493","v":0}]
[182,{"$f":"Import!E33494","v":"Select"},{"$f":"Import!E33694","v":"Select"},{"$f":"Import!E33894","v":"Select"},{"$f":"Import!E34094","v":0},{"$f":"Import!E34294","v":0},{"$f":"Import!E34494","v":0}]
[183,{"$f":"Import!E33495","v":"Select"},{"$f":"Import!E33695","v":"Select"},{"$f":"Import!E33895","v":"Select"},{"$f":"Import!E34095","v":0},{"$f":"Import!E34295","v":0},{"$f":"Import!E34495","v":0}]
[184,{"$f":"Import!E33496","v":"Select"},{"$f":"Import!E33696","v":"Select"},{"$f":"Import!E33896","v":"Select"},{"$f":"Import!E34096","v":0},{"$f":"Import!E34296","v":0},{"$f":"Import!E34496","v":0}]
[185,{"$f":"Import!E33497","v":"Select"},{"$f":"Import!E33697","v":"Select"},{"$f":"Import!E33897","v":"Select"},{"$f":"Import!E34097","v":0},{"$f":"Import!E34297","v":0},{"$f":"Import!E34497","v":0}]
[186,{"$f":"Import!E33498","v":"Select"},{"$f":"Import!E33698","v":"Select"},{"$f":"Import!E33898","v":"Select"},{"$f":"Import!E34098","v":0},{"$f":"Import!E34298","v":0},{"$f":"Import!E34498","v":0}]
[187,{"$f":"Import!E33499","v":"Select"},{"$f":"Import!E33699","v":"Select"},{"$f":"Import!E33899","v":"Select"},{"$f":"Import!E34099","v":0},{"$f":"Import!E34299","v":0},{"$f":"Import!E34499","v":0}]
[188,{"$f":"Import!E33500","v":"Select"},{"$f":"Import!E33700","v":"Select"},{"$f":"Import!E33900","v":"Select"},{"$f":"Import!E34100","v":0},{"$f":"Import!E34300","v":0},{"$f":"Import!E34500","v":0}]
[189,{"$f":"Import!E33501","v":"Select"},{"$f":"Import!E33701","v":"Select"},{"$f":"Import!E33901","v":"Select"},{"$f":"Import!E34101","v":0},{"$f":"Import!E34301","v":0},{"$f":"Import!E34501","v":0}]
[190,{"$f":"Import!E33502","v":"Select"},{"$f":"Import!E33702","v":"Select"},{"$f":"Import!E33902","v":"Select"},{"$f":"Import!E34102","v":0},{"$f":"Import!E34302","v":0},{"$f":"Import!E34502","v":0}]
[191,{"$f":"Import!E33503","v":"Select"},{"$f":"Import!E33703","v":"Select"},{"$f":"Import!E33903","v":"Select"},{"$f":"Import!E34103","v":0},{"$f":"Import!E34303","v":0},{"$f":"Import!E34503","v":0}]
[192,{"$f":"Import!E33504","v":"Select"},{"$f":"Import!E33704","v":"Select"},{"$f":"Import!E33904","v":"Select"},{"$f":"Import!E34104","v":0},{"$f":"Import!E34304","v":0},{"$f":"Import!E34504","v":0}]
[193,{"$f":"Import!E33505","v":"Select"},{"$f":"Import!E33705","v":"Select"},{"$f":"Import!E33905","v":"Select"},{"$f":"Import!E34105","v":0},{"$f":"Import!E34305","v":0},{"$f":"Import!E34505","v":0}]
[194,{"$f":"Import!E33506","v":"Select"},{"$f":"Import!E33706","v":"Select"},{"$f":"Import!E33906","v":"Select"},{"$f":"Import!E34106","v":0},{"$f":"Import!E34306","v":0},{"$f":"Import!E34506","v":0}]
[{"$f":"A1989+1","v":195},{"$f":"Import!E33507","v":"Select"},{"$f":"Import!E33707","v":"Select"},{"$f":"Import!E33907","v":"Select"},{"$f":"Import!E34107","v":0},{"$f":"Import!E34307","v":0},{"$f":"Import!E34507","v":0}]
[196,{"$f":"Import!E33508","v":"Select"},{"$f":"Import!E33708","v":"Select"},{"$f":"Import!E33908","v":"Select"},{"$f":"Import!E34108","v":0},{"$f":"Import!E34308","v":0},{"$f":"Import!E34508","v":0}]
[197,{"$f":"Import!E33509","v":"Select"},{"$f":"Import!E33709","v":"Select"},{"$f":"Import!E33909","v":"Select"},{"$f":"Import!E34109","v":0},{"$f":"Import!E34309","v":0},{"$f":"Import!E34509","v":0}]
[198,{"$f":"Import!E33510","v":"Select"},{"$f":"Import!E33710","v":"Select"},{"$f":"Import!E33910","v":"Select"},{"$f":"Import!E34110","v":0},{"$f":"Import!E34310","v":0},{"$f":"Import!E34510","v":0}]
[199,{"$f":"Import!E33511","v":"Select"},{"$f":"Import!E33711","v":"Select"},{"$f":"Import!E33911","v":"Select"},{"$f":"Import!E34111","v":0},{"$f":"Import!E34311","v":0},{"$f":"Import!E34511","v":0}]
[200,{"$f":"Import!E33512","v":"Select"},{"$f":"Import!E33712","v":"Select"},{"$f":"Import!E33912","v":"Select"},{"$f":"Import!E34112","v":0},{"$f":"Import!E34312","v":0},{"$f":"Import!E34512","v":0}]
[]
[null,"Total Other Assets",null,null,null,{"$f":"SUM(F1796:F1995)","v":0}]
[]
[]
[null,"TOTAL ASSETS",null,null,null,{"$f":"F212+F620+F986+G1094+F1230+E1338+G1446+G1554+I1761+F1997","v":0}]
[]
[null,"TOTAL FUNDS HELD BY CEDING REINSURERS (Form 1 Line 12)",null,null,null,{"$f":"IF('Group Information'!$F$11=\"IFRS\",0,'Form 1'!F77)","v":0}]
[]
[null,"Check Form 1 (Line 12)",null,null,null,{"$f":"IF(F2006=0,\"TRUE\",\"FALSE\")","v":"TRUE"}]
[]
[null,"Difference",null,null,null,{"$f":"ROUND(F2002-F2000,0)","v":0}]
[]
[null,"(L) INFORMATION ON SECURITIES LENDING AND REPURCHASE TRANSACTIONS"]
[]
[null,null,{"$f":"YEAR($C$3)","v":2023}]
[null,null,"Notional Value","Fair Value",null,"Comments"]
[null,"Securities Lending transactions",{"$f":"Import!F34513","v":0},{"$f":"Import!F34515","v":0},null,{"$f":"Import!F34517","v":0}]
[null,"Repo / Reverse Repo transactions",{"$f":"Import!F34514","v":0},{"$f":"Import!F34516","v":0},null,{"$f":"Import!F34518","v":0}]
[]
[null,"Total",{"$f":"SUM(C2012:C2013)","v":0},{"$f":"SUM(D2012:D2013)","v":0}]
[]
[null,"(M) INFORMATION ON FAIR VALUATION HIERARCHY"]
[]
[null,null,{"$f":"YEAR($C$3)","v":2023},"Fair Value"]
[null,null,"Unaffiliated","Affiliated","Total","Comments"]
[null,"Level 1 Assets (according to Fair Value hierarchy)",{"$f":"Import!F34519","v":0},{"$f":"Import!F34522","v":0},{"$f":"SUM(C2021:D2021)","v":0},{"$f":"Import!F34525","v":0}]
[null,"Level 2 Assets (according to Fair Value hierarchy)",{"$f":"Import!F34520","v":0},{"$f":"Import!F34523","v":0},{"$f":"SUM(C2022:D2022)","v":0},{"$f":"Import!F34526","v":0}]
[null,"Level 3 Assets (according to Fair Value hierarchy)",{"$f":"Import!F34521","v":0},{"$f":"Import!F34524","v":0},{"$f":"SUM(C2023:D2023)","v":0},{"$f":"Import!F34527","v":0}]
[]
[null,"Total",{"$f":"SUM(C2021:C2023)","v":0},{"$f":"SUM(D2021:D2023)","v":0},{"$f":"SUM(E2021:E2023)","v":0}]
[]
[null,"Check Securities Allocated by Levels 1-3",null,null,{"$f":"F212+F620+F986+G1094+F1230+E1338+G1446+G1554","v":0}]
[]
[null,"Difference",null,null,{"$f":"ROUND(E2025-E2027,0)","v":0},{"$f":"IF(E2029=0,\"TRUE\",\"FALSE\")","v":"TRUE"}]
[]
[null,"EFFECTIVE DURATION",null,null,{"$f":"Import!E34528","v":0}]
[]
[null,"EFFECTIVE CONVEXITY",null,null,{"$f":"Import!E34529","v":0}]
[]
[null,"Fair Values",{"$f":"YEAR(C3)","v":2023}]
[null,null,null,null,null,null,null,null,"If Other Rating Agency is used, specify the name of such agency (if applicable)",{"$f":"Import!E34530","v":0},{"$f":"Import!E34531","v":0},{"$f":"Import!E34532","v":0},{"$f":"Import!E34533","v":0}]
[null,"Asset/Rating Category","BSCR Rating","Moody's Investor's Service","Standard and Poor's","Dominion Bond Rating Service","Kroll Bond Rating Agency","Egan Jones Rating Company","Japan Credit Rating Agency","BMA-approved Internal Ratings","Other BMA-approved Rating Agency 1","Other BMA-approved Rating Agency 2","Other BMA-approved Rating Agency 3","Total"]
[null,"Financial institutions, brokers and dealers",1,{"$f":"Import!E34534","v":0},{"$f":"Import!E34575","v":0},{"$f":"Import!E34616","v":0},{"$f":"Import!E34657","v":0},{"$f":"Import!E34698","v":0},{"$f":"Import!E34739","v":0},{"$f":"Import!E34780","v":0},{"$f":"Import!E34821","v":0},{"$f":"Import!E34862","v":0},{"$f":"Import!E34903","v":0},{"$f":"SUM(D2038:M2038)","v":0}]
[null,"Financial institutions, brokers and dealers",2,{"$f":"Import!E34535","v":0},{"$f":"Import!E34576","v":0},{"$f":"Import!E34617","v":0},{"$f":"Import!E34658","v":0},{"$f":"Import!E34699","v":0},{"$f":"Import!E34740","v":0},{"$f":"Import!E34781","v":0},{"$f":"Import!E34822","v":0},{"$f":"Import!E34863","v":0},{"$f":"Import!E34904","v":0},{"$f":"SUM(D2039:M2039)","v":0}]
[null,"Financial institutions, brokers and dealers",3,{"$f":"Import!E34536","v":0},{"$f":"Import!E34577","v":0},{"$f":"Import!E34618","v":0},{"$f":"Import!E34659","v":0},{"$f":"Import!E34700","v":0},{"$f":"Import!E34741","v":0},{"$f":"Import!E34782","v":0},{"$f":"Import!E34823","v":0},{"$f":"Import!E34864","v":0},{"$f":"Import!E34905","v":0},0]
[null,"Financial institutions, brokers and dealers",4,{"$f":"Import!E34537","v":0},{"$f":"Import!E34578","v":0},{"$f":"Import!E34619","v":0},{"$f":"Import!E34660","v":0},{"$f":"Import!E34701","v":0},{"$f":"Import!E34742","v":0},{"$f":"Import!E34783","v":0},{"$f":"Import!E34824","v":0},{"$f":"Import!E34865","v":0},{"$f":"Import!E34906","v":0},0]
[null,"Financial institutions, brokers and dealers",5,{"$f":"Import!E34538","v":0},{"$f":"Import!E34579","v":0},{"$f":"Import!E34620","v":0},{"$f":"Import!E34661","v":0},{"$f":"Import!E34702","v":0},{"$f":"Import!E34743","v":0},{"$f":"Import!E34784","v":0},{"$f":"Import!E34825","v":0},{"$f":"Import!E34866","v":0},{"$f":"Import!E34907","v":0},0]
[null,"Financial institutions, brokers and dealers",6,{"$f":"Import!E34539","v":0},{"$f":"Import!E34580","v":0},{"$f":"Import!E34621","v":0},{"$f":"Import!E34662","v":0},{"$f":"Import!E34703","v":0},{"$f":"Import!E34744","v":0},{"$f":"Import!E34785","v":0},{"$f":"Import!E34826","v":0},{"$f":"Import!E34867","v":0},{"$f":"Import!E34908","v":0},0]
[null,"Financial institutions, brokers and dealers",7,{"$f":"Import!E34540","v":0},{"$f":"Import!E34581","v":0},{"$f":"Import!E34622","v":0},{"$f":"Import!E34663","v":0},{"$f":"Import!E34704","v":0},{"$f":"Import!E34745","v":0},{"$f":"Import!E34786","v":0},{"$f":"Import!E34827","v":0},{"$f":"Import!E34868","v":0},{"$f":"Import!E34909","v":0},0]
[null,"Financial institutions, brokers and dealers",8,{"$f":"Import!E34541","v":0},{"$f":"Import!E34582","v":0},{"$f":"Import!E34623","v":0},{"$f":"Import!E34664","v":0},{"$f":"Import!E34705","v":0},{"$f":"Import!E34746","v":0},{"$f":"Import!E34787","v":0},{"$f":"Import!E34828","v":0},{"$f":"Import!E34869","v":0},{"$f":"Import!E34910","v":0},0]
[null,"Insurance companies",1,{"$f":"Import!E34542","v":0},{"$f":"Import!E34583","v":0},{"$f":"Import!E34624","v":0},{"$f":"Import!E34665","v":0},{"$f":"Import!E34706","v":0},{"$f":"Import!E34747","v":0},{"$f":"Import!E34788","v":0},{"$f":"Import!E34829","v":0},{"$f":"Import!E34870","v":0},{"$f":"Import!E34911","v":0},0]
[null,"Insurance companies",2,{"$f":"Import!E34543","v":0},{"$f":"Import!E34584","v":0},{"$f":"Import!E34625","v":0},{"$f":"Import!E34666","v":0},{"$f":"Import!E34707","v":0},{"$f":"Import!E34748","v":0},{"$f":"Import!E34789","v":0},{"$f":"Import!E34830","v":0},{"$f":"Import!E34871","v":0},{"$f":"Import!E34912","v":0},0]
[null,"Insurance companies",3,{"$f":"Import!E34544","v":0},{"$f":"Import!E34585","v":0},{"$f":"Import!E34626","v":0},{"$f":"Import!E34667","v":0},{"$f":"Import!E34708","v":0},{"$f":"Import!E34749","v":0},{"$f":"Import!E34790","v":0},{"$f":"Import!E34831","v":0},{"$f":"Import!E34872","v":0},{"$f":"Import!E34913","v":0},0]
[null,"Insurance companies",4,{"$f":"Import!E34545","v":0},{"$f":"Import!E34586","v":0},{"$f":"Import!E34627","v":0},{"$f":"Import!E34668","v":0},{"$f":"Import!E34709","v":0},{"$f":"Import!E34750","v":0},{"$f":"Import!E34791","v":0},{"$f":"Import!E34832","v":0},{"$f":"Import!E34873","v":0},{"$f":"Import!E34914","v":0},0]
[null,"Insurance companies",5,{"$f":"Import!E34546","v":0},{"$f":"Import!E34587","v":0},{"$f":"Import!E34628","v":0},{"$f":"Import!E34669","v":0},{"$f":"Import!E34710","v":0},{"$f":"Import!E34751","v":0},{"$f":"Import!E34792","v":0},{"$f":"Import!E34833","v":0},{"$f":"Import!E34874","v":0},{"$f":"Import!E34915","v":0},0]
[null,"Insurance companies",6,{"$f":"Import!E34547","v":0},{"$f":"Import!E34588","v":0},{"$f":"Import!E34629","v":0},{"$f":"Import!E34670","v":0},{"$f":"Import!E34711","v":0},{"$f":"Import!E34752","v":0},{"$f":"Import!E34793","v":0},{"$f":"Import!E34834","v":0},{"$f":"Import!E34875","v":0},{"$f":"Import!E34916","v":0},0]
[null,"Insurance companies",7,{"$f":"Import!E34548","v":0},{"$f":"Import!E34589","v":0},{"$f":"Import!E34630","v":0},{"$f":"Import!E34671","v":0},{"$f":"Import!E34712","v":0},{"$f":"Import!E34753","v":0},{"$f":"Import!E34794","v":0},{"$f":"Import!E34835","v":0},{"$f":"Import!E34876","v":0},{"$f":"Import!E34917","v":0},0]
[null,"Insurance companies",8,{"$f":"Import!E34549","v":0},{"$f":"Import!E34590","v":0},{"$f":"Import!E34631","v":0},{"$f":"Import!E34672","v":0},{"$f":"Import!E34713","v":0},{"$f":"Import!E34754","v":0},{"$f":"Import!E34795","v":0},{"$f":"Import!E34836","v":0},{"$f":"Import!E34877","v":0},{"$f":"Import!E34918","v":0},0]
[null,"Corporate issuers",1,{"$f":"Import!E34550","v":0},{"$f":"Import!E34591","v":0},{"$f":"Import!E34632","v":0},{"$f":"Import!E34673","v":0},{"$f":"Import!E34714","v":0},{"$f":"Import!E34755","v":0},{"$f":"Import!E34796","v":0},{"$f":"Import!E34837","v":0},{"$f":"Import!E34878","v":0},{"$f":"Import!E34919","v":0},0]
[null,"Corporate issuers",2,{"$f":"Import!E34551","v":0},{"$f":"Import!E34592","v":0},{"$f":"Import!E34633","v":0},{"$f":"Import!E34674","v":0},{"$f":"Import!E34715","v":0},{"$f":"Import!E34756","v":0},{"$f":"Import!E34797","v":0},{"$f":"Import!E34838","v":0},{"$f":"Import!E34879","v":0},{"$f":"Import!E34920","v":0},0]
[null,"Corporate issuers",3,{"$f":"Import!E34552","v":0},{"$f":"Import!E34593","v":0},{"$f":"Import!E34634","v":0},{"$f":"Import!E34675","v":0},{"$f":"Import!E34716","v":0},{"$f":"Import!E34757","v":0},{"$f":"Import!E34798","v":0},{"$f":"Import!E34839","v":0},{"$f":"Import!E34880","v":0},{"$f":"Import!E34921","v":0},0]
[null,"Corporate issuers",4,{"$f":"Import!E34553","v":0},{"$f":"Import!E34594","v":0},{"$f":"Import!E34635","v":0},{"$f":"Import!E34676","v":0},{"$f":"Import!E34717","v":0},{"$f":"Import!E34758","v":0},{"$f":"Import!E34799","v":0},{"$f":"Import!E34840","v":0},{"$f":"Import!E34881","v":0},{"$f":"Import!E34922","v":0},0]
[null,"Corporate issuers",5,{"$f":"Import!E34554","v":0},{"$f":"Import!E34595","v":0},{"$f":"Import!E34636","v":0},{"$f":"Import!E34677","v":0},{"$f":"Import!E34718","v":0},{"$f":"Import!E34759","v":0},{"$f":"Import!E34800","v":0},{"$f":"Import!E34841","v":0},{"$f":"Import!E34882","v":0},{"$f":"Import!E34923","v":0},0]
[null,"Corporate issuers",6,{"$f":"Import!E34555","v":0},{"$f":"Import!E34596","v":0},{"$f":"Import!E34637","v":0},{"$f":"Import!E34678","v":0},{"$f":"Import!E34719","v":0},{"$f":"Import!E34760","v":0},{"$f":"Import!E34801","v":0},{"$f":"Import!E34842","v":0},{"$f":"Import!E34883","v":0},{"$f":"Import!E34924","v":0},0]
[null,"Corporate issuers",7,{"$f":"Import!E34556","v":0},{"$f":"Import!E34597","v":0},{"$f":"Import!E34638","v":0},{"$f":"Import!E34679","v":0},{"$f":"Import!E34720","v":0},{"$f":"Import!E34761","v":0},{"$f":"Import!E34802","v":0},{"$f":"Import!E34843","v":0},{"$f":"Import!E34884","v":0},{"$f":"Import!E34925","v":0},0]
[null,"Corporate issuers",8,{"$f":"Import!E34557","v":0},{"$f":"Import!E34598","v":0},{"$f":"Import!E34639","v":0},{"$f":"Import!E34680","v":0},{"$f":"Import!E34721","v":0},{"$f":"Import!E34762","v":0},{"$f":"Import!E34803","v":0},{"$f":"Import!E34844","v":0},{"$f":"Import!E34885","v":0},{"$f":"Import!E34926","v":0},0]
[null,"Issuers of asset-backed securities",1,{"$f":"Import!E34558","v":0},{"$f":"Import!E34599","v":0},{"$f":"Import!E34640","v":0},{"$f":"Import!E34681","v":0},{"$f":"Import!E34722","v":0},{"$f":"Import!E34763","v":0},{"$f":"Import!E34804","v":0},{"$f":"Import!E34845","v":0},{"$f":"Import!E34886","v":0},{"$f":"Import!E34927","v":0},0]
[null,"Issuers of asset-backed securities",2,{"$f":"Import!E34559","v":0},{"$f":"Import!E34600","v":0},{"$f":"Import!E34641","v":0},{"$f":"Import!E34682","v":0},{"$f":"Import!E34723","v":0},{"$f":"Import!E34764","v":0},{"$f":"Import!E34805","v":0},{"$f":"Import!E34846","v":0},{"$f":"Import!E34887","v":0},{"$f":"Import!E34928","v":0},0]
[null,"Issuers of asset-backed securities",3,{"$f":"Import!E34560","v":0},{"$f":"Import!E34601","v":0},{"$f":"Import!E34642","v":0},{"$f":"Import!E34683","v":0},{"$f":"Import!E34724","v":0},{"$f":"Import!E34765","v":0},{"$f":"Import!E34806","v":0},{"$f":"Import!E34847","v":0},{"$f":"Import!E34888","v":0},{"$f":"Import!E34929","v":0},0]
[null,"Issuers of asset-backed securities",4,{"$f":"Import!E34561","v":0},{"$f":"Import!E34602","v":0},{"$f":"Import!E34643","v":0},{"$f":"Import!E34684","v":0},{"$f":"Import!E34725","v":0},{"$f":"Import!E34766","v":0},{"$f":"Import!E34807","v":0},{"$f":"Import!E34848","v":0},{"$f":"Import!E34889","v":0},{"$f":"Import!E34930","v":0},0]
[null,"Issuers of asset-backed securities",5,{"$f":"Import!E34562","v":0},{"$f":"Import!E34603","v":0},{"$f":"Import!E34644","v":0},{"$f":"Import!E34685","v":0},{"$f":"Import!E34726","v":0},{"$f":"Import!E34767","v":0},{"$f":"Import!E34808","v":0},{"$f":"Import!E34849","v":0},{"$f":"Import!E34890","v":0},{"$f":"Import!E34931","v":0},0]
[null,"Issuers of asset-backed securities",6,{"$f":"Import!E34563","v":0},{"$f":"Import!E34604","v":0},{"$f":"Import!E34645","v":0},{"$f":"Import!E34686","v":0},{"$f":"Import!E34727","v":0},{"$f":"Import!E34768","v":0},{"$f":"Import!E34809","v":0},{"$f":"Import!E34850","v":0},{"$f":"Import!E34891","v":0},{"$f":"Import!E34932","v":0},0]
[null,"Issuers of asset-backed securities",7,{"$f":"Import!E34564","v":0},{"$f":"Import!E34605","v":0},{"$f":"Import!E34646","v":0},{"$f":"Import!E34687","v":0},{"$f":"Import!E34728","v":0},{"$f":"Import!E34769","v":0},{"$f":"Import!E34810","v":0},{"$f":"Import!E34851","v":0},{"$f":"Import!E34892","v":0},{"$f":"Import!E34933","v":0},0]
[null,"Issuers of asset-backed securities",8,{"$f":"Import!E34565","v":0},{"$f":"Import!E34606","v":0},{"$f":"Import!E34647","v":0},{"$f":"Import!E34688","v":0},{"$f":"Import!E34729","v":0},{"$f":"Import!E34770","v":0},{"$f":"Import!E34811","v":0},{"$f":"Import!E34852","v":0},{"$f":"Import!E34893","v":0},{"$f":"Import!E34934","v":0},0]
[null,"Government securities, municipal securities, foreign government securities",0,{"$f":"Import!E34566","v":0},{"$f":"Import!E34607","v":0},{"$f":"Import!E34648","v":0},{"$f":"Import!E34689","v":0},{"$f":"Import!E34730","v":0},{"$f":"Import!E34771","v":0},{"$f":"Import!E34812","v":0},{"$f":"Import!E34853","v":0},{"$f":"Import!E34894","v":0},{"$f":"Import!E34935","v":0},0]
[null,"Government securities, municipal securities, foreign government securities",1,{"$f":"Import!E34567","v":0},{"$f":"Import!E34608","v":0},{"$f":"Import!E34649","v":0},{"$f":"Import!E34690","v":0},{"$f":"Import!E34731","v":0},{"$f":"Import!E34772","v":0},{"$f":"Import!E34813","v":0},{"$f":"Import!E34854","v":0},{"$f":"Import!E34895","v":0},{"$f":"Import!E34936","v":0},0]
[null,"Government securities, municipal securities, foreign government securities",2,{"$f":"Import!E34568","v":0},{"$f":"Import!E34609","v":0},{"$f":"Import!E34650","v":0},{"$f":"Import!E34691","v":0},{"$f":"Import!E34732","v":0},{"$f":"Import!E34773","v":0},{"$f":"Import!E34814","v":0},{"$f":"Import!E34855","v":0},{"$f":"Import!E34896","v":0},{"$f":"Import!E34937","v":0},0]
[null,"Government securities, municipal securities, foreign government securities",3,{"$f":"Import!E34569","v":0},{"$f":"Import!E34610","v":0},{"$f":"Import!E34651","v":0},{"$f":"Import!E34692","v":0},{"$f":"Import!E34733","v":0},{"$f":"Import!E34774","v":0},{"$f":"Import!E34815","v":0},{"$f":"Import!E34856","v":0},{"$f":"Import!E34897","v":0},{"$f":"Import!E34938","v":0},0]
[null,"Government securities, municipal securities, foreign government securities",4,{"$f":"Import!E34570","v":0},{"$f":"Import!E34611","v":0},{"$f":"Import!E34652","v":0},{"$f":"Import!E34693","v":0},{"$f":"Import!E34734","v":0},{"$f":"Import!E34775","v":0},{"$f":"Import!E34816","v":0},{"$f":"Import!E34857","v":0},{"$f":"Import!E34898","v":0},{"$f":"Import!E34939","v":0},0]
[null,"Government securities, municipal securities, foreign government securities",5,{"$f":"Import!E34571","v":0},{"$f":"Import!E34612","v":0},{"$f":"Import!E34653","v":0},{"$f":"Import!E34694","v":0},{"$f":"Import!E34735","v":0},{"$f":"Import!E34776","v":0},{"$f":"Import!E34817","v":0},{"$f":"Import!E34858","v":0},{"$f":"Import!E34899","v":0},{"$f":"Import!E34940","v":0},0]
[null,"Government securities, municipal securities, foreign government securities",6,{"$f":"Import!E34572","v":0},{"$f":"Import!E34613","v":0},{"$f":"Import!E34654","v":0},{"$f":"Import!E34695","v":0},{"$f":"Import!E34736","v":0},{"$f":"Import!E34777","v":0},{"$f":"Import!E34818","v":0},{"$f":"Import!E34859","v":0},{"$f":"Import!E34900","v":0},{"$f":"Import!E34941","v":0},0]
[null,"Government securities, municipal securities, foreign government securities",7,{"$f":"Import!E34573","v":0},{"$f":"Import!E34614","v":0},{"$f":"Import!E34655","v":0},{"$f":"Import!E34696","v":0},{"$f":"Import!E34737","v":0},{"$f":"Import!E34778","v":0},{"$f":"Import!E34819","v":0},{"$f":"Import!E34860","v":0},{"$f":"Import!E34901","v":0},{"$f":"Import!E34942","v":0},0]
[null,"Government securities, municipal securities, foreign government securities",8,{"$f":"Import!E34574","v":0},{"$f":"Import!E34615","v":0},{"$f":"Import!E34656","v":0},{"$f":"Import!E34697","v":0},{"$f":"Import!E34738","v":0},{"$f":"Import!E34779","v":0},{"$f":"Import!E34820","v":0},{"$f":"Import!E34861","v":0},{"$f":"Import!E34902","v":0},{"$f":"Import!E34943","v":0},0]
[null,null,null,null,null,null,null,null,null,null,null,null,"Total",{"$f":"SUM(N2038:N2078)","v":0}]
[]
[null,"Total rated assets","BSCR Rating","Moody's Investor's Service","Standard and Poor's","Dominion Bond Rating Service","Kroll Bond Rating Agency","Egan Jones Rating Company","Japan Credit Rating Agency","BMA-approved Internal Ratings","Other BMA-approved Rating Agency 1","Other BMA-approved Rating Agency 2","Other BMA-approved Rating Agency 3","Total"]
[null,"Total rated assets",0,{"$f":"D2070","v":0},{"$f":"E2070","v":0},0,0,0,0,0,0,0,0,{"$f":"SUM(D2082:M2082)","v":0}]
[null,"Total rated assets",1,{"$f":"D2038+D2046+D2054+D2062+D2071","v":0},{"$f":"E2038+E2046+E2054+E2062+E2071","v":0},0,0,0,0,0,0,0,0,{"$f":"SUM(D2083:M2083)","v":0}]
[null,"Total rated assets",2,{"$f":"D2039+D2047+D2055+D2063+D2072","v":0},0,0,0,0,0,0,0,0,0,0]
[null,"Total rated assets",3,0,0,0,0,0,0,0,0,0,0,0]
[null,"Total rated assets",4,0,0,0,0,0,0,0,0,0,0,0]
[null,"Total rated assets",5,0,0,0,0,0,0,0,0,0,0,0]
[null,"Total rated assets",6,0,0,0,0,0,0,0,0,0,0,0]
[null,"Total rated assets",7,0,0,0,0,0,0,0,0,0,0,0]
[null,"Total rated assets",8,0,0,0,0,0,0,0,0,0,0,0]
[null,"Total rated assets","Total",{"$f":"SUM(D2082:D2090)","v":0},{"$f":"SUM(E2082:E2090)","v":0},0,0,0,0,0,0,0,0,0]
[]
[null,"Asset/Rating Category","BSCR Rating","Unrated"]
[null,"Financial institutions, brokers and dealers",8,{"$f":"Import!E34944","v":0}]
[null,"Insurance companies",8,{"$f":"Import!E34945","v":0}]
[null,"Corporate issuers",8,{"$f":"Import!E34946","v":0}]
[null,"Issuers of asset-backed securities",8,{"$f":"Import!E34947","v":0}]
[null,"Government securities, municipal securities, foreign government securities",8,{"$f":"Import!E34948","v":0}]
[null,"Total unrated assets","Total",{"$f":"SUM(D2094:D2098)","v":0}]
[]
[null,"Asset/Rating Category","BSCR Rating","Financial institutions, brokers and dealers","Insurance companies","Corporate issuers","Issuers of asset-backed securities","Government securities, municipal securities, foreign government securities","Total"]
[null,"Total",0,null,null,null,null,{"$f":"N2070","v":0},{"$f":"SUM(H2102)","v":0}]
[null,"Total",1,{"$f":"N2038","v":0},{"$f":"N2046","v":0},{"$f":"N2054","v":0},{"$f":"N2062","v":0},0,{"$f":"SUM(D2103:H2103)","v":0}]
[null,"Total",2,0,0,0,0,0,{"$f":"SUM(D2104:H2104)","v":0}]
[null,"Total",3,0,0,0,0,0,0]
[null,"Total",4,0,0,0,0,0,0]
[null,"Total",5,0,0,0,0,0,0]
[null,"Total",6,0,0,0,0,0,0]
[null,"Total",7,0,0,0,0,0,0]
[null,"Total",8,{"$f":"N2045+D2094","v":0},{"$f":"N2053+D2095","v":0},{"$f":"N2061+D2096","v":0},{"$f":"N2069+D2097","v":0},{"$f":"N2078+D2098","v":0},0]
[null,"Total fixed income assets","Total",{"$f":"SUM(D2103:D2110)","v":0},{"$f":"SUM(E2103:E2110)","v":0},{"$f":"SUM(F2103:F2110)","v":0},{"$f":"SUM(G2103:G2110)","v":0},{"$f":"SUM(H2102:H2110)","v":0},{"$f":"SUM(D2111:H2111)","v":0}]
[null,"Unrated","- of which unrated",{"$f":"D2094","v":0},{"$f":"D2095","v":0},{"$f":"D2096","v":0},{"$f":"D2097","v":0},{"$f":"D2098","v":0},{"$f":"SUM(D2112:H2112)","v":0}]
[]
[]
["Cash","Sovereign Bonds","RMBS - Agency","Listed Preferred Equity - Direct","Hedge Funds","Investment Income Due and Accrued","Energy","Holding Entity","Significant Influence","United States Dollars","Positive market value",null,null,null,null,"Residential Mortgages",null,"United States of America"]
["Certificates of Deposit","Municipals","RMBS - Non-agency","Listed Preferred Equity - ETF","Equity investments in Infrastructure","Accounts and Premiums Receivable","Materials","Operating Entity","Control","Euro","Negative market value",null,null,null,null,"Other Residential Loans",null,"Bermuda"]
["Short-Term Commercial Paper","Supranationals (multilateral development banks and international organizations)","CMBS","Listed Preferred Equity - Mutual Fund","Commodities - Direct","Reinsurance Balance Receivable","Industrial","Branch","Select","Afghanistan Afghanis","Select",null,null,null,null,"Commercial and Farm Mortgages",null,"United Kingdom of Great Britain and Northern Ireland"]
["Money Market Funds","Corporate bonds","CLOs","Private Preferred Equity - Direct","Commodities - ETF","Funds Held by Ceding Reinsurers","Consumer Discretionary","Select",null,"Albania Leke",null,null,null,null,null,"Other Commercial Real Estate Loans",null,"Canada"]
["Other","Private Placements","CDOs","Private Preferred Equity - Fund","Commodities - Mutual Funds","SAC - long-term business - variable annuities","Consumer Staples",null,null,"Armenia Drams",null,null,null,null,null,"Middle Market Loans"]
["Select","Other - Secured Bonds","Auto Loan ABS","Other - Listed Preferred Equity","Catastrophe Bonds","SAC - long-term business - others","Healthcare",null,null,"Netherlands Antilles Guilders",null,null,null,null,null,"Leveraged Loans",null,"Afghanistan"]
[null,"Other - Unsecured Bonds","Student Loan ABS","Other - Private Preferred Equity","Other Insurance-Linked Securities","SAC - general business","Financial",null,null,"Angola Kwanza",null,null,null,null,null,"Other Direct Private Lending",null,"Aland Islands"]
[null,"Exchange-Traded Fund - Sovereigns","Credit Card Receivable ABS","Select","Advances to Affiliates","Deposit assets","Select",null,null,"Argentina Pesos",null,null,null,null,null,"Infrastructure Loans",null,"Albania"]
[null,"Mutual Fund - Sovereigns","Other ABS",null,"Investments in Affiliates","Other Sundry Assets",null,null,null,"Australia Dollars",null,null,null,null,null,"Collateral Loans",null,"Algeria"]
[null,"Exchange-Traded Fund - Corporates","Select",null,"Other","Letter of Credit, Guarantees and Other Instruments",null,null,null,"Aruba Guilders",null,null,null,null,null,"Equity Release / Reverse Mortgages",null,"American Samoa"]
[null,"Mutual Fund - Corporates",null,null,"Select","Other",null,null,null,"Azerbaijan New Manats",null,null,null,null,null,"Policy Loans",null,"Andorra"]
[null,"Other Funds",null,null,null,"Select",null,null,null,"Bosnia and Herzegovina Convertible Marka",null,null,null,null,null,"Other Direct Loans",null,"Angola"]
[null,"Select",null,null,null,null,null,null,null,"Barbados Dollars",null,null,null,null,null,"Mortgage Loan Fund - Residential",null,"Anguilla"]
[null,null,null,null,null,null,null,null,null,"Bangladesh Taka",null,null,null,null,null,"Mortgage Loan Fund - Commercial",null,"Antigua and Barbuda"]
[null,null,null,null,null,null,null,null,null,"Bulgaria Leva",null,null,null,null,null,"Private Credit Fund",null,"Argentina"]
[null,null,null,null,null,null,null,null,null,"Bahrain Dinars",null,null,null,null,null,"Other Loan Fund",null,"Armenia"]
["Listed options","Equity","Hedging","Long / Receive Fixed / Sell Protection","Private Equities","Investment Income Due and Accrued","Direct Real Estate - Residential",null,null,"Burundi Francs",null,null,null,null,null,"Select",null,"Aruba"]
["Futures","Debt","Speculative","Short / Receive Floating / Buy Protection","Investment Funds","Accounts and Premiums Receivable","Direct Real Estate - Commercial",null,null,"Bermuda Dollars",null,null,null,null,null,null,null,"Australia"]
["Forwards","Interest Rate","Select","Select","Hedge Funds","Reinsurance Balance Receivable","Direct Real-Estate - Industrial",null,null,"Brunei Dollars",null,null,null,null,null,"Insured/Guaranteed Mortgages",null,"Austria"]
["Swaps","Inflation",null,null,"Private Credit Funds","SAC - long-term business - variable annuities","Direct Real Estate - Land",null,null,"Bolivia Bolivianos",null,null,null,null,null,"Other Commercial and Farm Mortgages",null,"Azerbaijan"]
["Swaptions","Credit",null,null,"Catastrophe Bonds","SAC - long-term business - others","Real Estate Funds - Residential",null,null,"Brazil Reais",null,null,null,null,null,"Other Residential Mortgages",null,"Bahamas"]
["OTC options","Currencies","Yes","Exchange-traded","Other Insurance-Linked Securities","SAC - general business","Real Estate Funds - Commercial",null,null,"Bahamas Dollars",null,null,null,null,null,"Mortgages Not In Good Standing",null,"Bahrain"]
["Other","Commodities","No","OTC – Centrally-cleared","Infrastructure Debt","Deposit assets","Real-Estate Funds - Industrial",null,null,"Bhutan Ngultrum",null,null,null,null,null,"Collateral Loans",null,"Bangladesh"]
["Select","Other","Select","OTC – Not centrally-cleared","Equity Investments in Infrastructure","Other Sundry Assets","Real Estate Funds - Land",null,null,"Botswana Pulas",null,null,null,null,null,"Middle Market Loans",null,"Barbados"]
[null,"Select",null,"Select","Other","Letter of Credit, Guarantees and Other Instruments","Direct Real Estate - Other",null,null,"Belarus Rubles",null,null,null,null,null,"Other Direct Private Lending",null,"Belarus"]
[null,null,null,null,"Select","Other","Real Estate Funds - Other",null,null,"Belize Dollars",null,null,null,null,null,"Policy Loans",null,"Belgium"]
[null,null,null,null,null,"Select","Select",null,null,"Canada Dollars",null,null,null,null,null,"Other",null,"Belize"]
[null,null,null,null,null,null,null,null,null,"Congo/Kinshasa Francs",null,null,null,null,null,"Select",null,"Benin"]
[null,null,null,null,null,null,null,null,null,"Switzerland Francs",null,null,null,null,null,null,null,"Bhutan"]
["BSCR Rating",null,"Listed Equity - Direct",null,null,null,null,null,null,"Chile Pesos",null,null,null,null,null,null,null,"Bolivia (Plurinational State of)"]
["Select",null,"Listed Equity - ETF",null,null,null,"Investment",null,null,"China Yuan Renminbi",null,null,null,null,null,null,null,"Bonaire, Sint Eustatius and Saba"]
["BSCR Rating 0",null,"Listed Equity - Mutual Fund",null,null,null,"Owner-occupied",null,null,"Colombia Pesos",null,null,null,null,null,null,null,"Bosnia and Herzegovina"]
["BSCR Rating 1",null,"Private Equity - Direct",null,null,null,"Select",null,null,"Costa Rica Colones",null,null,null,null,null,null,null,"Botswana"]
["BSCR Rating 2",null,"Private Equity - Fund",null,null,null,null,null,null,"Cuba Convertible Pesos",null,null,null,null,null,null,null,"Brazil"]
["BSCR Rating 3",null,"Other - Listed Equity",null,null,null,null,null,null,"Cuba Pesos",null,null,null,null,null,null,null,"British Virgin Islands"]
["BSCR Rating 4",null,"Other - Private Equity",null,null,null,null,null,null,"Cape Verde Escudos",null,null,null,null,null,null,null,"Brunei Darussalam"]
["BSCR Rating 5",null,"Select",null,null,null,null,null,null,"Czech Republic Koruny",null,null,null,null,null,null,null,"Bulgaria"]
["BSCR Rating 6",null,null,null,null,null,null,null,null,"Djibouti Francs",null,null,null,null,null,null,null,"Burkina Faso"]
["BSCR Rating 7",null,null,null,null,null,null,null,null,"Denmark Kroner",null,null,null,null,null,null,null,"Burundi"]
["BSCR Rating 8",null,null,null,null,null,null,null,null,"Dominican Republic Pesos",null,null,null,null,null,null,null,"Cabo Verde (Cape Verde)"]
[null,null,null,null,null,null,null,null,null,"Algeria Dinars",null,null,null,null,null,null,null,"Cambodia"]
[null,null,null,null,null,null,null,null,null,"Estonia Krooni",null,null,null,null,null,null,null,"Cameroon"]
[null,null,null,null,null,null,null,null,null,"Egypt Pounds",null,null,null,null,null,null,null,"Cayman Islands"]
[null,null,null,null,null,null,null,null,null,"Eritrea Nakfa",null,null,null,null,null,null,null,"Central African Republic"]
[null,null,null,null,null,null,null,null,null,"Ethiopia Birr",null,null,null,null,null,null,null,"Chad"]
[null,null,null,null,null,null,null,null,null,"Fiji Dollars",null,null,null,null,null,null,null,"Chile"]
[null,null,null,null,null,null,null,null,null,"Falkland Islands Pounds",null,null,null,null,null,null,null,"China"]
[null,null,null,null,null,null,null,null,null,"United Kingdom Pounds",null,null,null,null,null,null,null,"China, Hong Kong SAR"]
[null,null,null,null,null,null,null,null,null,"Georgia Lari",null,null,null,null,null,null,null,"China, Macao SAR "]
[null,null,null,null,null,null,null,null,null,"Guernsey Pounds",null,null,null,null,null,null,null,"Colombia"]
[null,null,null,null,null,null,null,null,null,"Ghana Cedis",null,null,null,null,null,null,null,"Comoros"]
[null,null,null,null,null,null,null,null,null,"Gibraltar Pounds",null,null,null,null,null,null,null,"Congo"]
[null,null,null,null,null,null,null,null,null,"Gambia Dalasi",null,null,null,null,null,null,null,"Cook Islands"]
[null,null,null,null,null,null,null,null,null,"Guinea Francs",null,null,null,null,null,null,null,"Costa Rica"]
[null,null,null,null,null,null,null,null,null,"Guatemala Quetzales",null,null,null,null,null,null,null,"Cote d' Ivoire"]
[null,null,null,null,null,null,null,null,null,"Guyana Dollars",null,null,null,null,null,null,null,"Croatia"]
[null,null,null,null,null,null,null,null,null,"Hong Kong Dollars",null,null,null,null,null,null,null,"Cuba"]
[null,null,null,null,null,null,null,null,null,"Honduras Lempiras",null,null,null,null,null,null,null,"Curacao"]
[null,null,null,null,null,null,null,null,null,"Croatia Kuna",null,null,null,null,null,null,null,"Cyprus"]
[null,null,null,null,null,null,null,null,null,"Haiti Gourdes",null,null,null,null,null,null,null,"Czech Republic"]
[null,null,null,null,null,null,null,null,null,"Hungary Forint",null,null,null,null,null,null,null,"Democratic People's Republic of Korea (North Korea)"]
[null,null,null,null,null,null,null,null,null,"Indonesia Rupiahs",null,null,null,null,null,null,null,"Democratic Republic of the Congo"]
[null,null,null,null,null,null,null,null,null,"Israel New Shekels",null,null,null,null,null,null,null,"Denmark"]
[null,null,null,null,null,null,null,null,null,"Isle of Man Pounds",null,null,null,null,null,null,null,"Djibouti"]
[null,null,null,null,null,null,null,null,null,"India Rupees",null,null,null,null,null,null,null,"Dominica"]
[null,null,null,null,null,null,null,null,null,"Iraq Dinars",null,null,null,null,null,null,null,"Dominican Republic"]
[null,null,null,null,null,null,null,null,null,"Iran Rials",null,null,null,null,null,null,null,"Ecuador"]
[null,null,null,null,null,null,null,null,null,"Iceland Kronur",null,null,null,null,null,null,null,"Egypt"]
[null,null,null,null,null,null,null,null,null,"Jersey Pounds",null,null,null,null,null,null,null,"El Salvador"]
[null,null,null,null,null,null,null,null,null,"Jamaica Dollars",null,null,null,null,null,null,null,"Equatorial Guinea"]
[null,null,null,null,null,null,null,null,null,"Jordan Dinars",null,null,null,null,null,null,null,"Eritrea"]
[null,null,null,null,null,null,null,null,null,"Japan Yen",null,null,null,null,null,null,null,"Estonia"]
[null,null,null,null,null,null,null,null,null,"Kenya Shillings",null,null,null,null,null,null,null,"Eswatini (Kingdom of Swaziland)"]
[null,null,null,null,null,null,null,null,null,"Kyrgyzstan Soms",null,null,null,null,null,null,null,"Ethiopia"]
[null,null,null,null,null,null,null,null,null,"Cambodia Riels",null,null,null,null,null,null,null,"Falkland Islands"]
[null,null,null,null,null,null,null,null,null,"Comoros Francs",null,null,null,null,null,null,null,"Faroe Islands"]
[null,null,null,null,null,null,null,null,null,"North Korea Won",null,null,null,null,null,null,null,"Fiji"]
[null,null,null,null,null,null,null,null,null,"South Korea Won",null,null,null,null,null,null,null,"Finland"]
[null,null,null,null,null,null,null,null,null,"Kuwait Dinars",null,null,null,null,null,null,null,"France"]
[null,null,null,null,null,null,null,null,null,"Cayman Islands Dollars",null,null,null,null,null,null,null,"French Guiana"]
[null,null,null,null,null,null,null,null,null,"Kazakhstan Tenge",null,null,null,null,null,null,null,"French Polynesia"]
[null,null,null,null,null,null,null,null,null,"Laos Kips",null,null,null,null,null,null,null,"Gabon"]
[null,null,null,null,null,null,null,null,null,"Lebanon Pounds",null,null,null,null,null,null,null,"Gambia (Republic of The)"]
[null,null,null,null,null,null,null,null,null,"Sri Lanka Rupees",null,null,null,null,null,null,null,"Georgia"]
[null,null,null,null,null,null,null,null,null,"Liberia Dollars",null,null,null,null,null,null,null,"Germany"]
[null,null,null,null,null,null,null,null,null,"Lesotho Maloti",null,null,null,null,null,null,null,"Ghana"]
[null,null,null,null,null,null,null,null,null,"Lithuania Litai",null,null,null,null,null,null,null,"Gibraltar"]
[null,null,null,null,null,null,null,null,null,"Latvia Lati",null,null,null,null,null,null,null,"Greece"]
[null,null,null,null,null,null,null,null,null,"Libya Dinars",null,null,null,null,null,null,null,"Greenland"]
[null,null,null,null,null,null,null,null,null,"Morocco Dirhams",null,null,null,null,null,null,null,"Grenada"]
[null,null,null,null,null,null,null,null,null,"Moldova Lei",null,null,null,null,null,null,null,"Guadeloupe"]
[null,null,null,null,null,null,null,null,null,"Madagascar Ariary",null,null,null,null,null,null,null,"Guam"]
[null,null,null,null,null,null,null,null,null,"Macedonia Denars",null,null,null,null,null,null,null,"Guatemala"]
[null,null,null,null,null,null,null,null,null,"Myanmar Kyats",null,null,null,null,null,null,null,"Guernsey"]
[null,null,null,null,null,null,null,null,null,"Mongolia Tugriks",null,null,null,null,null,null,null,"Guinea"]
[null,null,null,null,null,null,null,null,null,"Macau Patacas",null,null,null,null,null,null,null,"Guinea-Bissau"]
[null,null,null,null,null,null,null,null,null,"Mauritania Ouguiyas",null,null,null,null,null,null,null,"Guyana"]
[null,null,null,null,null,null,null,null,null,"Mauritius Rupees",null,null,null,null,null,null,null,"Haiti"]
[null,null,null,null,null,null,null,null,null,"Maldives Rufiyaa",null,null,null,null,null,null,null,"Holy See"]
[null,null,null,null,null,null,null,null,null,"Malawi Kwachas",null,null,null,null,null,null,null,"Honduras"]
[null,null,null,null,null,null,null,null,null,"Mexico Pesos",null,null,null,null,null,null,null,"Hungary"]
[null,null,null,null,null,null,null,null,null,"Malaysia Ringgits",null,null,null,null,null,null,null,"Iceland"]
[null,null,null,null,null,null,null,null,null,"Mozambique Meticais",null,null,null,null,null,null,null,"India"]
[null,null,null,null,null,null,null,null,null,"Namibia Dollars",null,null,null,null,null,null,null,"Indonesia"]
[null,null,null,null,null,null,null,null,null,"Nigeria Nairas",null,null,null,null,null,null,null,"Iran (Islamic Republic of)"]
[null,null,null,null,null,null,null,null,null,"Nicaragua Cordobas",null,null,null,null,null,null,null,"Iraq"]
[null,null,null,null,null,null,null,null,null,"Norway Kroner",null,null,null,null,null,null,null,"Ireland"]
[null,null,null,null,null,null,null,null,null,"Nepal Rupees",null,null,null,null,null,null,null,"Isle of Man"]
[null,null,null,null,null,null,null,null,null,"New Zealand Dollars",null,null,null,null,null,null,null,"Israel"]
[null,null,null,null,null,null,null,null,null,"Oman Rials",null,null,null,null,null,null,null,"Italy"]
[null,null,null,null,null,null,null,null,null,"Panama Balboas",null,null,null,null,null,null,null,"Jamaica"]
[null,null,null,null,null,null,null,null,null,"Peru Nuevos Soles",null,null,null,null,null,null,null,"Japan"]
[null,null,null,null,null,null,null,null,null,"Papua New Guinea Kina",null,null,null,null,null,null,null,"Jersey"]
[null,null,null,null,null,null,null,null,null,"Philippines Pesos",null,null,null,null,null,null,null,"Jordan"]
[null,null,null,null,null,null,null,null,null,"Pakistan Rupees",null,null,null,null,null,null,null,"Kazakhstan"]
[null,null,null,null,null,null,null,null,null,"Poland Zlotych",null,null,null,null,null,null,null,"Kenya"]
[null,null,null,null,null,null,null,null,null,"Paraguay Guarani",null,null,null,null,null,null,null,"Kiribati"]
[null,null,null,null,null,null,null,null,null,"Qatar Riyals",null,null,null,null,null,null,null,"Kuwait"]
[null,null,null,null,null,null,null,null,null,"Romania New Lei",null,null,null,null,null,null,null,"Kyrgyzstan"]
[null,null,null,null,null,null,null,null,null,"Serbia Dinars",null,null,null,null,null,null,null,"Lao People's Democratic Republic"]
[null,null,null,null,null,null,null,null,null,"Russia Rubles",null,null,null,null,null,null,null,"Latvia"]
[null,null,null,null,null,null,null,null,null,"Rwanda Francs",null,null,null,null,null,null,null,"Lebanon"]
[null,null,null,null,null,null,null,null,null,"Saudi Arabia Riyals",null,null,null,null,null,null,null,"Lesotho"]
[null,null,null,null,null,null,null,null,null,"Solomon Islands Dollars",null,null,null,null,null,null,null,"Liberia"]
[null,null,null,null,null,null,null,null,null,"Seychelles Rupees",null,null,null,null,null,null,null,"Libya"]
[null,null,null,null,null,null,null,null,null,"Sudan Pounds",null,null,null,null,null,null,null,"Liechtenstein"]
[null,null,null,null,null,null,null,null,null,"Sweden Kronor",null,null,null,null,null,null,null,"Lithuania"]
[null,null,null,null,null,null,null,null,null,"Singapore Dollars",null,null,null,null,null,null,null,"Luxembourg"]
[null,null,null,null,null,null,null,null,null,"Saint Helena Pounds",null,null,null,null,null,null,null,"Madagascar"]
[null,null,null,null,null,null,null,null,null,"Slovakia Koruny",null,null,null,null,null,null,null,"Malawi"]
[null,null,null,null,null,null,null,null,null,"Sierra Leone Leones",null,null,null,null,null,null,null,"Malaysia"]
[null,null,null,null,null,null,null,null,null,"Somalia Shillings",null,null,null,null,null,null,null,"Maldives"]
[null,null,null,null,null,null,null,null,null,"Seborga Luigini",null,null,null,null,null,null,null,"Mali"]
[null,null,null,null,null,null,null,null,null,"Suriname Dollars",null,null,null,null,null,null,null,"Malta"]
[null,null,null,null,null,null,null,null,null,"São Tome and Principe Dobras",null,null,null,null,null,null,null,"Marshall Islands"]
[null,null,null,null,null,null,null,null,null,"El Salvador Colones",null,null,null,null,null,null,null,"Martinique"]
[null,null,null,null,null,null,null,null,null,"Syria Pounds",null,null,null,null,null,null,null,"Mauritania"]
[null,null,null,null,null,null,null,null,null,"Swaziland Emalangeni",null,null,null,null,null,null,null,"Mauritius"]
[null,null,null,null,null,null,null,null,null,"Thailand Baht",null,null,null,null,null,null,null,"Mayotte"]
[null,null,null,null,null,null,null,null,null,"Tajikistan Somoni",null,null,null,null,null,null,null,"Mexico"]
[null,null,null,null,null,null,null,null,null,"Turkmenistan Manats",null,null,null,null,null,null,null,"Micronesia (Federated States of)"]
[null,null,null,null,null,null,null,null,null,"Tunisia Dinars",null,null,null,null,null,null,null,"Monaco"]
[null,null,null,null,null,null,null,null,null,"Tonga Pa'anga",null,null,null,null,null,null,null,"Mongolia"]
[null,null,null,null,null,null,null,null,null,"Turkey New Lira",null,null,null,null,null,null,null,"Montenegro"]
[null,null,null,null,null,null,null,null,null,"Trinidad and Tobago Dollars",null,null,null,null,null,null,null,"Montserrat"]
[null,null,null,null,null,null,null,null,null,"Tuvalu Dollars",null,null,null,null,null,null,null,"Morocco"]
[null,null,null,null,null,null,null,null,null,"Taiwan New Dollars",null,null,null,null,null,null,null,"Mozambique"]
[null,null,null,null,null,null,null,null,null,"Tanzania Shillings",null,null,null,null,null,null,null,"Myanmar"]
[null,null,null,null,null,null,null,null,null,"Ukraine Hryvnia",null,null,null,null,null,null,null,"Namibia"]
[null,null,null,null,null,null,null,null,null,"Uganda Shillings",null,null,null,null,null,null,null,"Nauru"]
[null,null,null,null,null,null,null,null,null,"Uruguay Pesos",null,null,null,null,null,null,null,"Nepal"]
[null,null,null,null,null,null,null,null,null,"Uzbekistan Sums",null,null,null,null,null,null,null,"Netherlands"]
[null,null,null,null,null,null,null,null,null,"Venezuela Bolivares",null,null,null,null,null,null,null,"New Caledonia"]
[null,null,null,null,null,null,null,null,null,"Venezuela Bolivares Fuertes",null,null,null,null,null,null,null,"New Zealand"]
[null,null,null,null,null,null,null,null,null,"Vietnam Dong",null,null,null,null,null,null,null,"Nicaragua"]
[null,null,null,null,null,null,null,null,null,"Vanuatu Vatu",null,null,null,null,null,null,null,"Niger"]
[null,null,null,null,null,null,null,null,null,"Samoa Tala",null,null,null,null,null,null,null,"Nigeria"]
[null,null,null,null,null,null,null,null,null,"Communauté Financière Africaine Francs BEAC",null,null,null,null,null,null,null,"Niue"]
[null,null,null,null,null,null,null,null,null,"Silver Ounces",null,null,null,null,null,null,null,"Norfolk Island"]
[null,null,null,null,null,null,null,null,null,"Gold Ounces",null,null,null,null,null,null,null,"North Macedonia"]
[null,null,null,null,null,null,null,null,null,"East Caribbean Dollars",null,null,null,null,null,null,null,"Northern Mariana Islands"]
[null,null,null,null,null,null,null,null,null,"International Monetary Fund Special Drawing Rights",null,null,null,null,null,null,null,"Norway"]
[null,null,null,null,null,null,null,null,null,"Communauté Financière Africaine Francs BCEAO",null,null,null,null,null,null,null,"Oman"]
[null,null,null,null,null,null,null,null,null,"Palladium Ounces",null,null,null,null,null,null,null,"Pakistan"]
[null,null,null,null,null,null,null,null,null,"Comptoirs Français du Pacifique Francs",null,null,null,null,null,null,null,"Palau"]
[null,null,null,null,null,null,null,null,null,"Platinum Ounces",null,null,null,null,null,null,null,"Panama"]
[null,null,null,null,null,null,null,null,null,"Yemen Rials",null,null,null,null,null,null,null,"Papua New Guinea"]
[null,null,null,null,null,null,null,null,null,"South Africa Rand",null,null,null,null,null,null,null,"Paraguay"]
[null,null,null,null,null,null,null,null,null,"Zambia Kwacha",null,null,null,null,null,null,null,"Peru"]
[null,null,null,null,null,null,null,null,null,"Zimbabwe Dollars",null,null,null,null,null,null,null,"Philippines"]
[null,null,null,null,null,null,null,null,null,null,null,null,null,null,null,null,null,"Pitcairn"]
[null,null,null,null,null,null,null,null,null,null,null,null,null,null,null,null,null,"Poland"]
[null,null,null,null,null,null,null,null,null,null,null,null,null,null,null,null,null,"Portugal"]
[null,null,null,null,null,null,null,null,null,null,null,null,null,null,null,null,null,"Puerto Rico"]
[null,null,null,null,null,null,null,null,null,null,null,null,null,null,null,null,null,"Qatar"]
[null,null,null,null,null,null,null,null,null,null,null,null,null,null,null,null,null,"Republic of Korea (South Korea)"]
[null,null,null,null,null,null,null,null,null,null,null,null,null,null,null,null,null,"Republic of Moldova"]
[null,null,null,null,null,null,null,null,null,null,null,null,null,null,null,null,null,"Reunion"]
[null,null,null,null,null,null,null,null,null,null,null,null,null,null,null,null,null,"Romania"]
[null,null,null,null,null,null,null,null,null,null,null,null,null,null,null,null,null,"Russian Federation"]
[null,null,null,null,null,null,null,null,null,null,null,null,null,null,null,null,null,"Rwanda"]
[null,null,null,null,null,null,null,null,null,null,null,null,null,null,null,null,null,"Saint Barthelemy (St. Barts)"]
[null,null,null,null,null,null,null,null,null,null,null,null,null,null,null,null,null,"Saint Helena"]
[null,null,null,null,null,null,null,null,null,null,null,null,null,null,null,null,null,"Saint Kitts and Nevis"]
[null,null,null,null,null,null,null,null,null,null,null,null,null,null,null,null,null,"Saint Lucia"]
[null,null,null,null,null,null,null,null,null,null,null,null,null,null,null,null,null,"Saint Martin"]
[null,null,null,null,null,null,null,null,null,null,null,null,null,null,null,null,null,"Saint Pierre and Miquelon"]
[null,null,null,null,null,null,null,null,null,null,null,null,null,null,null,null,null,"Saint Vincent and The Grenadines"]
[null,null,null,null,null,null,null,null,null,null,null,null,null,null,null,null,null,"Samoa"]
[null,null,null,null,null,null,null,null,null,null,null,null,null,null,null,null,null,"San Marino"]
[null,null,null,null,null,null,null,null,null,null,null,null,null,null,null,null,null,"Sao Tome and Principe"]
[null,null,null,null,null,null,null,null,null,null,null,null,null,null,null,null,null,"Sark"]
[null,null,null,null,null,null,null,null,null,null,null,null,null,null,null,null,null,"Saudi Arabia"]
[null,null,null,null,null,null,null,null,null,null,null,null,null,null,null,null,null,"Senegal"]
[null,null,null,null,null,null,null,null,null,null,null,null,null,null,null,null,null,"Serbia"]
[null,null,null,null,null,null,null,null,null,null,null,null,null,null,null,null,null,"Seychelles"]
[null,null,null,null,null,null,null,null,null,null,null,null,null,null,null,null,null,"Sierra Leone"]
[null,null,null,null,null,null,null,null,null,null,null,null,null,null,null,null,null,"Singapore"]
[null,null,null,null,null,null,null,null,null,null,null,null,null,null,null,null,null,"Sint Maarten"]
[null,null,null,null,null,null,null,null,null,null,null,null,null,null,null,null,null,"Slovakia"]
[null,null,null,null,null,null,null,null,null,null,null,null,null,null,null,null,null,"Slovenia"]
[null,null,null,null,null,null,null,null,null,null,null,null,null,null,null,null,null,"Solomon Islands"]
[null,null,null,null,null,null,null,null,null,null,null,null,null,null,null,null,null,"Somalia"]
[null,null,null,null,null,null,null,null,null,null,null,null,null,null,null,null,null,"South Africa"]
[null,null,null,null,null,null,null,null,null,null,null,null,null,null,null,null,null,"South Sudan"]
[null,null,null,null,null,null,null,null,null,null,null,null,null,null,null,null,null,"Spain"]
[null,null,null,null,null,null,null,null,null,null,null,null,null,null,null,null,null,"Sri Lanka"]
[null,null,null,null,null,null,null,null,null,null,null,null,null,null,null,null,null,"State of Palestine"]
[null,null,null,null,null,null,null,null,null,null,null,null,null,null,null,null,null,"Sudan"]
[null,null,null,null,null,null,null,null,null,null,null,null,null,null,null,null,null,"Suriname"]
[null,null,null,null,null,null,null,null,null,null,null,null,null,null,null,null,null,"Svalbard, Jan Mayen"]
[null,null,null,null,null,null,null,null,null,null,null,null,null,null,null,null,null,"Sweden"]
[null,null,null,null,null,null,null,null,null,null,null,null,null,null,null,null,null,"Switzerland"]
[null,null,null,null,null,null,null,null,null,null,null,null,null,null,null,null,null,"Syrian Arab Republic"]
[null,null,null,null,null,null,null,null,null,null,null,null,null,null,null,null,null,"Taiwan"]
[null,null,null,null,null,null,null,null,null,null,null,null,null,null,null,null,null,"Tajikistan"]
[null,null,null,null,null,null,null,null,null,null,null,null,null,null,null,null,null,"Thailand"]
[null,null,null,null,null,null,null,null,null,null,null,null,null,null,null,null,null,"Timor-Leste"]
[null,null,null,null,null,null,null,null,null,null,null,null,null,null,null,null,null,"Togo"]
[null,null,null,null,null,null,null,null,null,null,null,null,null,null,null,null,null,"Tokelau"]
[null,null,null,null,null,null,null,null,null,null,null,null,null,null,null,null,null,"Tonga"]
[null,null,null,null,null,null,null,null,null,null,null,null,null,null,null,null,null,"Trinidad and Tobago"]
[null,null,null,null,null,null,null,null,null,null,null,null,null,null,null,null,null,"Tunisia"]
[null,null,null,null,null,null,null,null,null,null,null,null,null,null,null,null,null,"Turkey"]
[null,null,null,null,null,null,null,null,null,null,null,null,null,null,null,null,null,"Turkmenistan"]
[null,null,null,null,null,null,null,null,null,null,null,null,null,null,null,null,null,"Turks & Caicos Islands"]
[null,null,null,null,null,null,null,null,null,null,null,null,null,null,null,null,null,"Tuvalu"]
[null,null,null,null,null,null,null,null,null,null,null,null,null,null,null,null,null,"Uganda"]
[null,null,null,null,null,null,null,null,null,null,null,null,null,null,null,null,null,"Ukraine"]
[null,null,null,null,null,null,null,null,null,null,null,null,null,null,null,null,null,"United Arab Emirates"]
[null,null,null,null,null,null,null,null,null,null,null,null,null,null,null,null,null,"United Republic of Tanzania"]
[null,null,null,null,null,null,null,null,null,null,null,null,null,null,null,null,null,"Uruguay"]
[null,null,null,null,null,null,null,null,null,null,null,null,null,null,null,null,null,"US Virgin Islands"]
[null,null,null,null,null,null,null,null,null,null,null,null,null,null,null,null,null,"Uzbekistan"]
[null,null,null,null,null,null,null,null,null,null,null,null,null,null,null,null,null,"Vanuatu"]
[null,null,null,null,null,null,null,null,null,null,null,null,null,null,null,null,null,"Venezuela, Bolivarian Republic of "]
[null,null,null,null,null,null,null,null,null,null,null,null,null,null,null,null,null,"Vietnam"]
[null,null,null,null,null,null,null,null,null,null,null,null,null,null,null,null,null,"Wallis & Futuna Islands"]
[null,null,null,null,null,null,null,null,null,null,null,null,null,null,null,null,null,"Western Sahara"]
[null,null,null,null,null,null,null,null,null,null,null,null,null,null,null,null,null,"Yemen"]
[null,null,null,null,null,null,null,null,null,null,null,null,null,null,null,null,null,"Zambia"]
[null,null,null,null,null,null,null,null,null,null,null,null,null,null,null,null,null,"Zimbabwe"]
[null,null,null,null,null,null,null,null,null,null,null,null,null,null,null,null,null,"Select"]

{"sheet":"Schedule VI (EBS)","index":54,"n_rows":2357,"n_cols":18,"rows_kept":2357,"cut":false,"hidden":false,"merged":[[1764,7,1765,7],[1789,1,1789,2],[1763,5,1765,5],[1793,1,1793,2],[1339,1,1339,2],[1342,1,1342,2],[1447,1,1447,2],[1450,1,1450,2],[1555,1,1555,2],[1764,6,1765,6],[5,1,5,2],[213,1,213,2],[216,1,216,2],[987,1,987,2],[990,1,990,2],[1234,1,1234,2],[1095,1,1095,2],[1098,1,1098,2],[1123,1,1123,2],[1126,1,1126,2],[1231,1,1231,2]]}
[null,"SCHEDULE OF ASSETS (EBS)",null,null,null,null,null,null,null,null,null,null,null,{"$f":"HYPERLINK(\"#'Index'!A1\",\"Return to Index\")","v":"Return to Index"}]
[null,{"$f":"'Group Information'!C9","v":"Enter Parent Company Name"}]
[null,"As at",{"$f":"'Group Information'!C3","v":"2023-12-31"}]
[null,"expressed in ['000s]",{"$f":"'Form 1'!C4","v":" ['000s]United States Dollars"},null,null,null,null,null,null,null,null,null,null,"Schedule VI (EBS)"]
[]
[null,"(A) CASH AND CASH EQUIVALENTS"]
[]
[null,null,"Enter # of Asset Types",{"$f":"Import!I5646","v":0}]
[null,null,null,null,{"$f":"YEAR($C$3)","v":2023},{"$f":"YEAR($C$3)","v":2023}]
[null,"Asset Type","Currency","BSCR Rating","Nominal Amount","Fair Value","Comments"]
[1,{"$f":"Import!I5647","v":"Select"},{"$f":"Import!I5847","v":"Select"},{"$f":"Import!I6047","v":"Select"},{"$f":"Import!I6247","v":0},{"$f":"Import!I6447","v":0},{"$f":"Import!I6647","v":0}]
[{"$f":"A11+1","v":2},{"$f":"Import!I5648","v":"Select"},{"$f":"Import!I5848","v":"Select"},{"$f":"Import!I6048","v":"Select"},{"$f":"Import!I6248","v":0},{"$f":"Import!I6448","v":0},{"$f":"Import!I6648","v":0}]
[{"$f":"A12+1","v":3},{"$f":"Import!I5649","v":"Select"},{"$f":"Import!I5849","v":"Select"},{"$f":"Import!I6049","v":"Select"},{"$f":"Import!I6249","v":0},{"$f":"Import!I6449","v":0},{"$f":"Import!I6649","v":0}]
[4,{"$f":"Import!I5650","v":"Select"},{"$f":"Import!I5850","v":"Select"},{"$f":"Import!I6050","v":"Select"},{"$f":"Import!I6250","v":0},{"$f":"Import!I6450","v":0},{"$f":"Import!I6650","v":0}]
[5,{"$f":"Import!I5651","v":"Select"},{"$f":"Import!I5851","v":"Select"},{"$f":"Import!I6051","v":"Select"},{"$f":"Import!I6251","v":0},{"$f":"Import!I6451","v":0},{"$f":"Import!I6651","v":0}]
[6,{"$f":"Import!I5652","v":"Select"},{"$f":"Import!I5852","v":"Select"},{"$f":"Import!I6052","v":"Select"},{"$f":"Import!I6252","v":0},{"$f":"Import!I6452","v":0},{"$f":"Import!I6652","v":0}]
[7,{"$f":"Import!I5653","v":"Select"},{"$f":"Import!I5853","v":"Select"},{"$f":"Import!I6053","v":"Select"},{"$f":"Import!I6253","v":0},{"$f":"Import!I6453","v":0},{"$f":"Import!I6653","v":0}]
[8,{"$f":"Import!I5654","v":"Select"},{"$f":"Import!I5854","v":"Select"},{"$f":"Import!I6054","v":"Select"},{"$f":"Import!I6254","v":0},{"$f":"Import!I6454","v":0},{"$f":"Import!I6654","v":0}]
[9,{"$f":"Import!I5655","v":"Select"},{"$f":"Import!I5855","v":"Select"},{"$f":"Import!I6055","v":"Select"},{"$f":"Import!I6255","v":0},{"$f":"Import!I6455","v":0},{"$f":"Import!I6655","v":0}]
[10,{"$f":"Import!I5656","v":"Select"},{"$f":"Import!I5856","v":"Select"},{"$f":"Import!I6056","v":"Select"},{"$f":"Import!I6256","v":0},{"$f":"Import!I6456","v":0},{"$f":"Import!I6656","v":0}]
[11,{"$f":"Import!I5657","v":"Select"},{"$f":"Import!I5857","v":"Select"},{"$f":"Import!I6057","v":"Select"},{"$f":"Import!I6257","v":0},{"$f":"Import!I6457","v":0},{"$f":"Import!I6657","v":0}]
[12,{"$f":"Import!I5658","v":"Select"},{"$f":"Import!I5858","v":"Select"},{"$f":"Import!I6058","v":"Select"},{"$f":"Import!I6258","v":0},{"$f":"Import!I6458","v":0},{"$f":"Import!I6658","v":0}]
[13,{"$f":"Import!I5659","v":"Select"},{"$f":"Import!I5859","v":"Select"},{"$f":"Import!I6059","v":"Select"},{"$f":"Import!I6259","v":0},{"$f":"Import!I6459","v":0},{"$f":"Import!I6659","v":0}]
[14,{"$f":"Import!I5660","v":"Select"},{"$f":"Import!I5860","v":"Select"},{"$f":"Import!I6060","v":"Select"},{"$f":"Import!I6260","v":0},{"$f":"Import!I6460","v":0},{"$f":"Import!I6660","v":0}]
[15,{"$f":"Import!I5661","v":"Select"},{"$f":"Import!I5861","v":"Select"},{"$f":"Import!I6061","v":"Select"},{"$f":"Import!I6261","v":0},{"$f":"Import!I6461","v":0},{"$f":"Import!I6661","v":0}]
[16,{"$f":"Import!I5662","v":"Select"},{"$f":"Import!I5862","v":"Select"},{"$f":"Import!I6062","v":"Select"},{"$f":"Import!I6262","v":0},{"$f":"Import!I6462","v":0},{"$f":"Import!I6662","v":0}]
[17,{"$f":"Import!I5663","v":"Select"},{"$f":"Import!I5863","v":"Select"},{"$f":"Import!I6063","v":"Select"},{"$f":"Import!I6263","v":0},{"$f":"Import!I6463","v":0},{"$f":"Import!I6663","v":0}]
[18,{"$f":"Import!I5664","v":"Select"},{"$f":"Import!I5864","v":"Select"},{"$f":"Import!I6064","v":"Select"},{"$f":"Import!I6264","v":0},{"$f":"Import!I6464","v":0},{"$f":"Import!I6664","v":0}]
[19,{"$f":"Import!I5665","v":"Select"},{"$f":"Import!I5865","v":"Select"},{"$f":"Import!I6065","v":"Select"},{"$f":"Import!I6265","v":0},{"$f":"Import!I6465","v":0},{"$f":"Import!I6665","v":0}]
[20,{"$f":"Import!I5666","v":"Select"},{"$f":"Import!I5866","v":"Select"},{"$f":"Import!I6066","v":"Select"},{"$f":"Import!I6266","v":0},{"$f":"Import!I6466","v":0},{"$f":"Import!I6666","v":0}]
[21,{"$f":"Import!I5667","v":"Select"},{"$f":"Import!I5867","v":"Select"},{"$f":"Import!I6067","v":"Select"},{"$f":"Import!I6267","v":0},{"$f":"Import!I6467","v":0},{"$f":"Import!I6667","v":0}]
[22,{"$f":"Import!I5668","v":"Select"},{"$f":"Import!I5868","v":"Select"},{"$f":"Import!I6068","v":"Select"},{"$f":"Import!I6268","v":0},{"$f":"Import!I6468","v":0},{"$f":"Import!I6668","v":0}]
[23,{"$f":"Import!I5669","v":"Select"},{"$f":"Import!I5869","v":"Select"},{"$f":"Import!I6069","v":"Select"},{"$f":"Import!I6269","v":0},{"$f":"Import!I6469","v":0},{"$f":"Import!I6669","v":0}]
[24,{"$f":"Import!I5670","v":"Select"},{"$f":"Import!I5870","v":"Select"},{"$f":"Import!I6070","v":"Select"},{"$f":"Import!I6270","v":0},{"$f":"Import!I6470","v":0},{"$f":"Import!I6670","v":0}]
[25,{"$f":"Import!I5671","v":"Select"},{"$f":"Import!I5871","v":"Select"},{"$f":"Import!I6071","v":"Select"},{"$f":"Import!I6271","v":0},{"$f":"Import!I6471","v":0},{"$f":"Import!I6671","v":0}]
[26,{"$f":"Import!I5672","v":"Select"},{"$f":"Import!I5872","v":"Select"},{"$f":"Import!I6072","v":"Select"},{"$f":"Import!I6272","v":0},{"$f":"Import!I6472","v":0},{"$f":"Import!I6672","v":0}]
[27,{"$f":"Import!I5673","v":"Select"},{"$f":"Import!I5873","v":"Select"},{"$f":"Import!I6073","v":"Select"},{"$f":"Import!I6273","v":0},{"$f":"Import!I6473","v":0},{"$f":"Import!I6673","v":0}]
[28,{"$f":"Import!I5674","v":"Select"},{"$f":"Import!I5874","v":"Select"},{"$f":"Import!I6074","v":"Select"},{"$f":"Import!I6274","v":0},{"$f":"Import!I6474","v":0},{"$f":"Import!I6674","v":0}]
[29,{"$f":"Import!I5675","v":"Select"},{"$f":"Import!I5875","v":"Select"},{"$f":"Import!I6075","v":"Select"},{"$f":"Import!I6275","v":0},{"$f":"Import!I6475","v":0},{"$f":"Import!I6675","v":0}]
[30,{"$f":"Import!I5676","v":"Select"},{"$f":"Import!I5876","v":"Select"},{"$f":"Import!I6076","v":"Select"},{"$f":"Import!I6276","v":0},{"$f":"Import!I6476","v":0},{"$f":"Import!I6676","v":0}]
[31,{"$f":"Import!I5677","v":"Select"},{"$f":"Import!I5877","v":"Select"},{"$f":"Import!I6077","v":"Select"},{"$f":"Import!I6277","v":0},{"$f":"Import!I6477","v":0},{"$f":"Import!I6677","v":0}]
[32,{"$f":"Import!I5678","v":"Select"},{"$f":"Import!I5878","v":"Select"},{"$f":"Import!I6078","v":"Select"},{"$f":"Import!I6278","v":0},{"$f":"Import!I6478","v":0},{"$f":"Import!I6678","v":0}]
[33,{"$f":"Import!I5679","v":"Select"},{"$f":"Import!I5879","v":"Select"},{"$f":"Import!I6079","v":"Select"},{"$f":"Import!I6279","v":0},{"$f":"Import!I6479","v":0},{"$f":"Import!I6679","v":0}]
[34,{"$f":"Import!I5680","v":"Select"},{"$f":"Import!I5880","v":"Select"},{"$f":"Import!I6080","v":"Select"},{"$f":"Import!I6280","v":0},{"$f":"Import!I6480","v":0},{"$f":"Import!I6680","v":0}]
[35,{"$f":"Import!I5681","v":"Select"},{"$f":"Import!I5881","v":"Select"},{"$f":"Import!I6081","v":"Select"},{"$f":"Import!I6281","v":0},{"$f":"Import!I6481","v":0},{"$f":"Import!I6681","v":0}]
[36,{"$f":"Import!I5682","v":"Select"},{"$f":"Import!I5882","v":"Select"},{"$f":"Import!I6082","v":"Select"},{"$f":"Import!I6282","v":0},{"$f":"Import!I6482","v":0},{"$f":"Import!I6682","v":0}]
[37,{"$f":"Import!I5683","v":"Select"},{"$f":"Import!I5883","v":"Select"},{"$f":"Import!I6083","v":"Select"},{"$f":"Import!I6283","v":0},{"$f":"Import!I6483","v":0},{"$f":"Import!I6683","v":0}]
[38,{"$f":"Import!I5684","v":"Select"},{"$f":"Import!I5884","v":"Select"},{"$f":"Import!I6084","v":"Select"},{"$f":"Import!I6284","v":0},{"$f":"Import!I6484","v":0},{"$f":"Import!I6684","v":0}]
[39,{"$f":"Import!I5685","v":"Select"},{"$f":"Import!I5885","v":"Select"},{"$f":"Import!I6085","v":"Select"},{"$f":"Import!I6285","v":0},{"$f":"Import!I6485","v":0},{"$f":"Import!I6685","v":0}]
[40,{"$f":"Import!I5686","v":"Select"},{"$f":"Import!I5886","v":"Select"},{"$f":"Import!I6086","v":"Select"},{"$f":"Import!I6286","v":0},{"$f":"Import!I6486","v":0},{"$f":"Import!I6686","v":0}]
[41,{"$f":"Import!I5687","v":"Select"},{"$f":"Import!I5887","v":"Select"},{"$f":"Import!I6087","v":"Select"},{"$f":"Import!I6287","v":0},{"$f":"Import!I6487","v":0},{"$f":"Import!I6687","v":0}]
[42,{"$f":"Import!I5688","v":"Select"},{"$f":"Import!I5888","v":"Select"},{"$f":"Import!I6088","v":"Select"},{"$f":"Import!I6288","v":0},{"$f":"Import!I6488","v":0},{"$f":"Import!I6688","v":0}]
[43,{"$f":"Import!I5689","v":"Select"},{"$f":"Import!I5889","v":"Select"},{"$f":"Import!I6089","v":"Select"},{"$f":"Import!I6289","v":0},{"$f":"Import!I6489","v":0},{"$f":"Import!I6689","v":0}]
[44,{"$f":"Import!I5690","v":"Select"},{"$f":"Import!I5890","v":"Select"},{"$f":"Import!I6090","v":"Select"},{"$f":"Import!I6290","v":0},{"$f":"Import!I6490","v":0},{"$f":"Import!I6690","v":0}]
[45,{"$f":"Import!I5691","v":"Select"},{"$f":"Import!I5891","v":"Select"},{"$f":"Import!I6091","v":"Select"},{"$f":"Import!I6291","v":0},{"$f":"Import!I6491","v":0},{"$f":"Import!I6691","v":0}]
[46,{"$f":"Import!I5692","v":"Select"},{"$f":"Import!I5892","v":"Select"},{"$f":"Import!I6092","v":"Select"},{"$f":"Import!I6292","v":0},{"$f":"Import!I6492","v":0},{"$f":"Import!I6692","v":0}]
[47,{"$f":"Import!I5693","v":"Select"},{"$f":"Import!I5893","v":"Select"},{"$f":"Import!I6093","v":"Select"},{"$f":"Import!I6293","v":0},{"$f":"Import!I6493","v":0},{"$f":"Import!I6693","v":0}]
[48,{"$f":"Import!I5694","v":"Select"},{"$f":"Import!I5894","v":"Select"},{"$f":"Import!I6094","v":"Select"},{"$f":"Import!I6294","v":0},{"$f":"Import!I6494","v":0},{"$f":"Import!I6694","v":0}]
[49,{"$f":"Import!I5695","v":"Select"},{"$f":"Import!I5895","v":"Select"},{"$f":"Import!I6095","v":"Select"},{"$f":"Import!I6295","v":0},{"$f":"Import!I6495","v":0},{"$f":"Import!I6695","v":0}]
[50,{"$f":"Import!I5696","v":"Select"},{"$f":"Import!I5896","v":"Select"},{"$f":"Import!I6096","v":"Select"},{"$f":"Import!I6296","v":0},{"$f":"Import!I6496","v":0},{"$f":"Import!I6696","v":0}]
[51,{"$f":"Import!I5697","v":"Select"},{"$f":"Import!I5897","v":"Select"},{"$f":"Import!I6097","v":"Select"},{"$f":"Import!I6297","v":0},{"$f":"Import!I6497","v":0},{"$f":"Import!I6697","v":0}]
[52,{"$f":"Import!I5698","v":"Select"},{"$f":"Import!I5898","v":"Select"},{"$f":"Import!I6098","v":"Select"},{"$f":"Import!I6298","v":0},{"$f":"Import!I6498","v":0},{"$f":"Import!I6698","v":0}]
[53,{"$f":"Import!I5699","v":"Select"},{"$f":"Import!I5899","v":"Select"},{"$f":"Import!I6099","v":"Select"},{"$f":"Import!I6299","v":0},{"$f":"Import!I6499","v":0},{"$f":"Import!I6699","v":0}]
[54,{"$f":"Import!I5700","v":"Select"},{"$f":"Import!I5900","v":"Select"},{"$f":"Import!I6100","v":"Select"},{"$f":"Import!I6300","v":0},{"$f":"Import!I6500","v":0},{"$f":"Import!I6700","v":0}]
[55,{"$f":"Import!I5701","v":"Select"},{"$f":"Import!I5901","v":"Select"},{"$f":"Import!I6101","v":"Select"},{"$f":"Import!I6301","v":0},{"$f":"Import!I6501","v":0},{"$f":"Import!I6701","v":0}]
[56,{"$f":"Import!I5702","v":"Select"},{"$f":"Import!I5902","v":"Select"},{"$f":"Import!I6102","v":"Select"},{"$f":"Import!I6302","v":0},{"$f":"Import!I6502","v":0},{"$f":"Import!I6702","v":0}]
[57,{"$f":"Import!I5703","v":"Select"},{"$f":"Import!I5903","v":"Select"},{"$f":"Import!I6103","v":"Select"},{"$f":"Import!I6303","v":0},{"$f":"Import!I6503","v":0},{"$f":"Import!I6703","v":0}]
[58,{"$f":"Import!I5704","v":"Select"},{"$f":"Import!I5904","v":"Select"},{"$f":"Import!I6104","v":"Select"},{"$f":"Import!I6304","v":0},{"$f":"Import!I6504","v":0},{"$f":"Import!I6704","v":0}]
[59,{"$f":"Import!I5705","v":"Select"},{"$f":"Import!I5905","v":"Select"},{"$f":"Import!I6105","v":"Select"},{"$f":"Import!I6305","v":0},{"$f":"Import!I6505","v":0},{"$f":"Import!I6705","v":0}]
[60,{"$f":"Import!I5706","v":"Select"},{"$f":"Import!I5906","v":"Select"},{"$f":"Import!I6106","v":"Select"},{"$f":"Import!I6306","v":0},{"$f":"Import!I6506","v":0},{"$f":"Import!I6706","v":0}]
[61,{"$f":"Import!I5707","v":"Select"},{"$f":"Import!I5907","v":"Select"},{"$f":"Import!I6107","v":"Select"},{"$f":"Import!I6307","v":0},{"$f":"Import!I6507","v":0},{"$f":"Import!I6707","v":0}]
[62,{"$f":"Import!I5708","v":"Select"},{"$f":"Import!I5908","v":"Select"},{"$f":"Import!I6108","v":"Select"},{"$f":"Import!I6308","v":0},{"$f":"Import!I6508","v":0},{"$f":"Import!I6708","v":0}]
[63,{"$f":"Import!I5709","v":"Select"},{"$f":"Import!I5909","v":"Select"},{"$f":"Import!I6109","v":"Select"},{"$f":"Import!I6309","v":0},{"$f":"Import!I6509","v":0},{"$f":"Import!I6709","v":0}]
[64,{"$f":"Import!I5710","v":"Select"},{"$f":"Import!I5910","v":"Select"},{"$f":"Import!I6110","v":"Select"},{"$f":"Import!I6310","v":0},{"$f":"Import!I6510","v":0},{"$f":"Import!I6710","v":0}]
[65,{"$f":"Import!I5711","v":"Select"},{"$f":"Import!I5911","v":"Select"},{"$f":"Import!I6111","v":"Select"},{"$f":"Import!I6311","v":0},{"$f":"Import!I6511","v":0},{"$f":"Import!I6711","v":0}]
[66,{"$f":"Import!I5712","v":"Select"},{"$f":"Import!I5912","v":"Select"},{"$f":"Import!I6112","v":"Select"},{"$f":"Import!I6312","v":0},{"$f":"Import!I6512","v":0},{"$f":"Import!I6712","v":0}]
[{"$f":"A76+1","v":67},{"$f":"Import!I5713","v":"Select"},{"$f":"Import!I5913","v":"Select"},{"$f":"Import!I6113","v":"Select"},{"$f":"Import!I6313","v":0},{"$f":"Import!I6513","v":0},{"$f":"Import!I6713","v":0}]
[68,{"$f":"Import!I5714","v":"Select"},{"$f":"Import!I5914","v":"Select"},{"$f":"Import!I6114","v":"Select"},{"$f":"Import!I6314","v":0},{"$f":"Import!I6514","v":0},{"$f":"Import!I6714","v":0}]
[69,{"$f":"Import!I5715","v":"Select"},{"$f":"Import!I5915","v":"Select"},{"$f":"Import!I6115","v":"Select"},{"$f":"Import!I6315","v":0},{"$f":"Import!I6515","v":0},{"$f":"Import!I6715","v":0}]
[70,{"$f":"Import!I5716","v":"Select"},{"$f":"Import!I5916","v":"Select"},{"$f":"Import!I6116","v":"Select"},{"$f":"Import!I6316","v":0},{"$f":"Import!I6516","v":0},{"$f":"Import!I6716","v":0}]
[71,{"$f":"Import!I5717","v":"Select"},{"$f":"Import!I5917","v":"Select"},{"$f":"Import!I6117","v":"Select"},{"$f":"Import!I6317","v":0},{"$f":"Import!I6517","v":0},{"$f":"Import!I6717","v":0}]
[72,{"$f":"Import!I5718","v":"Select"},{"$f":"Import!I5918","v":"Select"},{"$f":"Import!I6118","v":"Select"},{"$f":"Import!I6318","v":0},{"$f":"Import!I6518","v":0},{"$f":"Import!I6718","v":0}]
[73,{"$f":"Import!I5719","v":"Select"},{"$f":"Import!I5919","v":"Select"},{"$f":"Import!I6119","v":"Select"},{"$f":"Import!I6319","v":0},{"$f":"Import!I6519","v":0},{"$f":"Import!I6719","v":0}]
[74,{"$f":"Import!I5720","v":"Select"},{"$f":"Import!I5920","v":"Select"},{"$f":"Import!I6120","v":"Select"},{"$f":"Import!I6320","v":0},{"$f":"Import!I6520","v":0},{"$f":"Import!I6720","v":0}]
[75,{"$f":"Import!I5721","v":"Select"},{"$f":"Import!I5921","v":"Select"},{"$f":"Import!I6121","v":"Select"},{"$f":"Import!I6321","v":0},{"$f":"Import!I6521","v":0},{"$f":"Import!I6721","v":0}]
[76,{"$f":"Import!I5722","v":"Select"},{"$f":"Import!I5922","v":"Select"},{"$f":"Import!I6122","v":"Select"},{"$f":"Import!I6322","v":0},{"$f":"Import!I6522","v":0},{"$f":"Import!I6722","v":0}]
[77,{"$f":"Import!I5723","v":"Select"},{"$f":"Import!I5923","v":"Select"},{"$f":"Import!I6123","v":"Select"},{"$f":"Import!I6323","v":0},{"$f":"Import!I6523","v":0},{"$f":"Import!I6723","v":0}]
[78,{"$f":"Import!I5724","v":"Select"},{"$f":"Import!I5924","v":"Select"},{"$f":"Import!I6124","v":"Select"},{"$f":"Import!I6324","v":0},{"$f":"Import!I6524","v":0},{"$f":"Import!I6724","v":0}]
[79,{"$f":"Import!I5725","v":"Select"},{"$f":"Import!I5925","v":"Select"},{"$f":"Import!I6125","v":"Select"},{"$f":"Import!I6325","v":0},{"$f":"Import!I6525","v":0},{"$f":"Import!I6725","v":0}]
[80,{"$f":"Import!I5726","v":"Select"},{"$f":"Import!I5926","v":"Select"},{"$f":"Import!I6126","v":"Select"},{"$f":"Import!I6326","v":0},{"$f":"Import!I6526","v":0},{"$f":"Import!I6726","v":0}]
[81,{"$f":"Import!I5727","v":"Select"},{"$f":"Import!I5927","v":"Select"},{"$f":"Import!I6127","v":"Select"},{"$f":"Import!I6327","v":0},{"$f":"Import!I6527","v":0},{"$f":"Import!I6727","v":0}]
[82,{"$f":"Import!I5728","v":"Select"},{"$f":"Import!I5928","v":"Select"},{"$f":"Import!I6128","v":"Select"},{"$f":"Import!I6328","v":0},{"$f":"Import!I6528","v":0},{"$f":"Import!I6728","v":0}]
[83,{"$f":"Import!I5729","v":"Select"},{"$f":"Import!I5929","v":"Select"},{"$f":"Import!I6129","v":"Select"},{"$f":"Import!I6329","v":0},{"$f":"Import!I6529","v":0},{"$f":"Import!I6729","v":0}]
[84,{"$f":"Import!I5730","v":"Select"},{"$f":"Import!I5930","v":"Select"},{"$f":"Import!I6130","v":"Select"},{"$f":"Import!I6330","v":0},{"$f":"Import!I6530","v":0},{"$f":"Import!I6730","v":0}]
[85,{"$f":"Import!I5731","v":"Select"},{"$f":"Import!I5931","v":"Select"},{"$f":"Import!I6131","v":"Select"},{"$f":"Import!I6331","v":0},{"$f":"Import!I6531","v":0},{"$f":"Import!I6731","v":0}]
[86,{"$f":"Import!I5732","v":"Select"},{"$f":"Import!I5932","v":"Select"},{"$f":"Import!I6132","v":"Select"},{"$f":"Import!I6332","v":0},{"$f":"Import!I6532","v":0},{"$f":"Import!I6732","v":0}]
[87,{"$f":"Import!I5733","v":"Select"},{"$f":"Import!I5933","v":"Select"},{"$f":"Import!I6133","v":"Select"},{"$f":"Import!I6333","v":0},{"$f":"Import!I6533","v":0},{"$f":"Import!I6733","v":0}]
[88,{"$f":"Import!I5734","v":"Select"},{"$f":"Import!I5934","v":"Select"},{"$f":"Import!I6134","v":"Select"},{"$f":"Import!I6334","v":0},{"$f":"Import!I6534","v":0},{"$f":"Import!I6734","v":0}]
[89,{"$f":"Import!I5735","v":"Select"},{"$f":"Import!I5935","v":"Select"},{"$f":"Import!I6135","v":"Select"},{"$f":"Import!I6335","v":0},{"$f":"Import!I6535","v":0},{"$f":"Import!I6735","v":0}]
[90,{"$f":"Import!I5736","v":"Select"},{"$f":"Import!I5936","v":"Select"},{"$f":"Import!I6136","v":"Select"},{"$f":"Import!I6336","v":0},{"$f":"Import!I6536","v":0},{"$f":"Import!I6736","v":0}]
[91,{"$f":"Import!I5737","v":"Select"},{"$f":"Import!I5937","v":"Select"},{"$f":"Import!I6137","v":"Select"},{"$f":"Import!I6337","v":0},{"$f":"Import!I6537","v":0},{"$f":"Import!I6737","v":0}]
[92,{"$f":"Import!I5738","v":"Select"},{"$f":"Import!I5938","v":"Select"},{"$f":"Import!I6138","v":"Select"},{"$f":"Import!I6338","v":0},{"$f":"Import!I6538","v":0},{"$f":"Import!I6738","v":0}]
[93,{"$f":"Import!I5739","v":"Select"},{"$f":"Import!I5939","v":"Select"},{"$f":"Import!I6139","v":"Select"},{"$f":"Import!I6339","v":0},{"$f":"Import!I6539","v":0},{"$f":"Import!I6739","v":0}]
[94,{"$f":"Import!I5740","v":"Select"},{"$f":"Import!I5940","v":"Select"},{"$f":"Import!I6140","v":"Select"},{"$f":"Import!I6340","v":0},{"$f":"Import!I6540","v":0},{"$f":"Import!I6740","v":0}]
[95,{"$f":"Import!I5741","v":"Select"},{"$f":"Import!I5941","v":"Select"},{"$f":"Import!I6141","v":"Select"},{"$f":"Import!I6341","v":0},{"$f":"Import!I6541","v":0},{"$f":"Import!I6741","v":0}]
[96,{"$f":"Import!I5742","v":"Select"},{"$f":"Import!I5942","v":"Select"},{"$f":"Import!I6142","v":"Select"},{"$f":"Import!I6342","v":0},{"$f":"Import!I6542","v":0},{"$f":"Import!I6742","v":0}]
[97,{"$f":"Import!I5743","v":"Select"},{"$f":"Import!I5943","v":"Select"},{"$f":"Import!I6143","v":"Select"},{"$f":"Import!I6343","v":0},{"$f":"Import!I6543","v":0},{"$f":"Import!I6743","v":0}]
[98,{"$f":"Import!I5744","v":"Select"},{"$f":"Import!I5944","v":"Select"},{"$f":"Import!I6144","v":"Select"},{"$f":"Import!I6344","v":0},{"$f":"Import!I6544","v":0},{"$f":"Import!I6744","v":0}]
[99,{"$f":"Import!I5745","v":"Select"},{"$f":"Import!I5945","v":"Select"},{"$f":"Import!I6145","v":"Select"},{"$f":"Import!I6345","v":0},{"$f":"Import!I6545","v":0},{"$f":"Import!I6745","v":0}]
[100,{"$f":"Import!I5746","v":"Select"},{"$f":"Import!I5946","v":"Select"},{"$f":"Import!I6146","v":"Select"},{"$f":"Import!I6346","v":0},{"$f":"Import!I6546","v":0},{"$f":"Import!I6746","v":0}]
[101,{"$f":"Import!I5747","v":"Select"},{"$f":"Import!I5947","v":"Select"},{"$f":"Import!I6147","v":"Select"},{"$f":"Import!I6347","v":0},{"$f":"Import!I6547","v":0},{"$f":"Import!I6747","v":0}]
[102,{"$f":"Import!I5748","v":"Select"},{"$f":"Import!I5948","v":"Select"},{"$f":"Import!I6148","v":"Select"},{"$f":"Import!I6348","v":0},{"$f":"Import!I6548","v":0},{"$f":"Import!I6748","v":0}]
[103,{"$f":"Import!I5749","v":"Select"},{"$f":"Import!I5949","v":"Select"},{"$f":"Import!I6149","v":"Select"},{"$f":"Import!I6349","v":0},{"$f":"Import!I6549","v":0},{"$f":"Import!I6749","v":0}]
[104,{"$f":"Import!I5750","v":"Select"},{"$f":"Import!I5950","v":"Select"},{"$f":"Import!I6150","v":"Select"},{"$f":"Import!I6350","v":0},{"$f":"Import!I6550","v":0},{"$f":"Import!I6750","v":0}]
[105,{"$f":"Import!I5751","v":"Select"},{"$f":"Import!I5951","v":"Select"},{"$f":"Import!I6151","v":"Select"},{"$f":"Import!I6351","v":0},{"$f":"Import!I6551","v":0},{"$f":"Import!I6751","v":0}]
[106,{"$f":"Import!I5752","v":"Select"},{"$f":"Import!I5952","v":"Select"},{"$f":"Import!I6152","v":"Select"},{"$f":"Import!I6352","v":0},{"$f":"Import!I6552","v":0},{"$f":"Import!I6752","v":0}]
[107,{"$f":"Import!I5753","v":"Select"},{"$f":"Import!I5953","v":"Select"},{"$f":"Import!I6153","v":"Select"},{"$f":"Import!I6353","v":0},{"$f":"Import!I6553","v":0},{"$f":"Import!I6753","v":0}]
[108,{"$f":"Import!I5754","v":"Select"},{"$f":"Import!I5954","v":"Select"},{"$f":"Import!I6154","v":"Select"},{"$f":"Import!I6354","v":0},{"$f":"Import!I6554","v":0},{"$f":"Import!I6754","v":0}]
[109,{"$f":"Import!I5755","v":"Select"},{"$f":"Import!I5955","v":"Select"},{"$f":"Import!I6155","v":"Select"},{"$f":"Import!I6355","v":0},{"$f":"Import!I6555","v":0},{"$f":"Import!I6755","v":0}]
[110,{"$f":"Import!I5756","v":"Select"},{"$f":"Import!I5956","v":"Select"},{"$f":"Import!I6156","v":"Select"},{"$f":"Import!I6356","v":0},{"$f":"Import!I6556","v":0},{"$f":"Import!I6756","v":0}]
[111,{"$f":"Import!I5757","v":"Select"},{"$f":"Import!I5957","v":"Select"},{"$f":"Import!I6157","v":"Select"},{"$f":"Import!I6357","v":0},{"$f":"Import!I6557","v":0},{"$f":"Import!I6757","v":0}]
[112,{"$f":"Import!I5758","v":"Select"},{"$f":"Import!I5958","v":"Select"},{"$f":"Import!I6158","v":"Select"},{"$f":"Import!I6358","v":0},{"$f":"Import!I6558","v":0},{"$f":"Import!I6758","v":0}]
[113,{"$f":"Import!I5759","v":"Select"},{"$f":"Import!I5959","v":"Select"},{"$f":"Import!I6159","v":"Select"},{"$f":"Import!I6359","v":0},{"$f":"Import!I6559","v":0},{"$f":"Import!I6759","v":0}]
[114,{"$f":"Import!I5760","v":"Select"},{"$f":"Import!I5960","v":"Select"},{"$f":"Import!I6160","v":"Select"},{"$f":"Import!I6360","v":0},{"$f":"Import!I6560","v":0},{"$f":"Import!I6760","v":0}]
[115,{"$f":"Import!I5761","v":"Select"},{"$f":"Import!I5961","v":"Select"},{"$f":"Import!I6161","v":"Select"},{"$f":"Import!I6361","v":0},{"$f":"Import!I6561","v":0},{"$f":"Import!I6761","v":0}]
[116,{"$f":"Import!I5762","v":"Select"},{"$f":"Import!I5962","v":"Select"},{"$f":"Import!I6162","v":"Select"},{"$f":"Import!I6362","v":0},{"$f":"Import!I6562","v":0},{"$f":"Import!I6762","v":0}]
[117,{"$f":"Import!I5763","v":"Select"},{"$f":"Import!I5963","v":"Select"},{"$f":"Import!I6163","v":"Select"},{"$f":"Import!I6363","v":0},{"$f":"Import!I6563","v":0},{"$f":"Import!I6763","v":0}]
[118,{"$f":"Import!I5764","v":"Select"},{"$f":"Import!I5964","v":"Select"},{"$f":"Import!I6164","v":"Select"},{"$f":"Import!I6364","v":0},{"$f":"Import!I6564","v":0},{"$f":"Import!I6764","v":0}]
[119,{"$f":"Import!I5765","v":"Select"},{"$f":"Import!I5965","v":"Select"},{"$f":"Import!I6165","v":"Select"},{"$f":"Import!I6365","v":0},{"$f":"Import!I6565","v":0},{"$f":"Import!I6765","v":0}]
[120,{"$f":"Import!I5766","v":"Select"},{"$f":"Import!I5966","v":"Select"},{"$f":"Import!I6166","v":"Select"},{"$f":"Import!I6366","v":0},{"$f":"Import!I6566","v":0},{"$f":"Import!I6766","v":0}]
[121,{"$f":"Import!I5767","v":"Select"},{"$f":"Import!I5967","v":"Select"},{"$f":"Import!I6167","v":"Select"},{"$f":"Import!I6367","v":0},{"$f":"Import!I6567","v":0},{"$f":"Import!I6767","v":0}]
[122,{"$f":"Import!I5768","v":"Select"},{"$f":"Import!I5968","v":"Select"},{"$f":"Import!I6168","v":"Select"},{"$f":"Import!I6368","v":0},{"$f":"Import!I6568","v":0},{"$f":"Import!I6768","v":0}]
[123,{"$f":"Import!I5769","v":"Select"},{"$f":"Import!I5969","v":"Select"},{"$f":"Import!I6169","v":"Select"},{"$f":"Import!I6369","v":0},{"$f":"Import!I6569","v":0},{"$f":"Import!I6769","v":0}]
[124,{"$f":"Import!I5770","v":"Select"},{"$f":"Import!I5970","v":"Select"},{"$f":"Import!I6170","v":"Select"},{"$f":"Import!I6370","v":0},{"$f":"Import!I6570","v":0},{"$f":"Import!I6770","v":0}]
[125,{"$f":"Import!I5771","v":"Select"},{"$f":"Import!I5971","v":"Select"},{"$f":"Import!I6171","v":"Select"},{"$f":"Import!I6371","v":0},{"$f":"Import!I6571","v":0},{"$f":"Import!I6771","v":0}]
[126,{"$f":"Import!I5772","v":"Select"},{"$f":"Import!I5972","v":"Select"},{"$f":"Import!I6172","v":"Select"},{"$f":"Import!I6372","v":0},{"$f":"Import!I6572","v":0},{"$f":"Import!I6772","v":0}]
[127,{"$f":"Import!I5773","v":"Select"},{"$f":"Import!I5973","v":"Select"},{"$f":"Import!I6173","v":"Select"},{"$f":"Import!I6373","v":0},{"$f":"Import!I6573","v":0},{"$f":"Import!I6773","v":0}]
[128,{"$f":"Import!I5774","v":"Select"},{"$f":"Import!I5974","v":"Select"},{"$f":"Import!I6174","v":"Select"},{"$f":"Import!I6374","v":0},{"$f":"Import!I6574","v":0},{"$f":"Import!I6774","v":0}]
[129,{"$f":"Import!I5775","v":"Select"},{"$f":"Import!I5975","v":"Select"},{"$f":"Import!I6175","v":"Select"},{"$f":"Import!I6375","v":0},{"$f":"Import!I6575","v":0},{"$f":"Import!I6775","v":0}]
[130,{"$f":"Import!I5776","v":"Select"},{"$f":"Import!I5976","v":"Select"},{"$f":"Import!I6176","v":"Select"},{"$f":"Import!I6376","v":0},{"$f":"Import!I6576","v":0},{"$f":"Import!I6776","v":0}]
[{"$f":"A140+1","v":131},{"$f":"Import!I5777","v":"Select"},{"$f":"Import!I5977","v":"Select"},{"$f":"Import!I6177","v":"Select"},{"$f":"Import!I6377","v":0},{"$f":"Import!I6577","v":0},{"$f":"Import!I6777","v":0}]
[132,{"$f":"Import!I5778","v":"Select"},{"$f":"Import!I5978","v":"Select"},{"$f":"Import!I6178","v":"Select"},{"$f":"Import!I6378","v":0},{"$f":"Import!I6578","v":0},{"$f":"Import!I6778","v":0}]
[133,{"$f":"Import!I5779","v":"Select"},{"$f":"Import!I5979","v":"Select"},{"$f":"Import!I6179","v":"Select"},{"$f":"Import!I6379","v":0},{"$f":"Import!I6579","v":0},{"$f":"Import!I6779","v":0}]
[134,{"$f":"Import!I5780","v":"Select"},{"$f":"Import!I5980","v":"Select"},{"$f":"Import!I6180","v":"Select"},{"$f":"Import!I6380","v":0},{"$f":"Import!I6580","v":0},{"$f":"Import!I6780","v":0}]
[135,{"$f":"Import!I5781","v":"Select"},{"$f":"Import!I5981","v":"Select"},{"$f":"Import!I6181","v":"Select"},{"$f":"Import!I6381","v":0},{"$f":"Import!I6581","v":0},{"$f":"Import!I6781","v":0}]
[136,{"$f":"Import!I5782","v":"Select"},{"$f":"Import!I5982","v":"Select"},{"$f":"Import!I6182","v":"Select"},{"$f":"Import!I6382","v":0},{"$f":"Import!I6582","v":0},{"$f":"Import!I6782","v":0}]
[137,{"$f":"Import!I5783","v":"Select"},{"$f":"Import!I5983","v":"Select"},{"$f":"Import!I6183","v":"Select"},{"$f":"Import!I6383","v":0},{"$f":"Import!I6583","v":0},{"$f":"Import!I6783","v":0}]
[138,{"$f":"Import!I5784","v":"Select"},{"$f":"Import!I5984","v":"Select"},{"$f":"Import!I6184","v":"Select"},{"$f":"Import!I6384","v":0},{"$f":"Import!I6584","v":0},{"$f":"Import!I6784","v":0}]
[139,{"$f":"Import!I5785","v":"Select"},{"$f":"Import!I5985","v":"Select"},{"$f":"Import!I6185","v":"Select"},{"$f":"Import!I6385","v":0},{"$f":"Import!I6585","v":0},{"$f":"Import!I6785","v":0}]
[140,{"$f":"Import!I5786","v":"Select"},{"$f":"Import!I5986","v":"Select"},{"$f":"Import!I6186","v":"Select"},{"$f":"Import!I6386","v":0},{"$f":"Import!I6586","v":0},{"$f":"Import!I6786","v":0}]
[141,{"$f":"Import!I5787","v":"Select"},{"$f":"Import!I5987","v":"Select"},{"$f":"Import!I6187","v":"Select"},{"$f":"Import!I6387","v":0},{"$f":"Import!I6587","v":0},{"$f":"Import!I6787","v":0}]
[142,{"$f":"Import!I5788","v":"Select"},{"$f":"Import!I5988","v":"Select"},{"$f":"Import!I6188","v":"Select"},{"$f":"Import!I6388","v":0},{"$f":"Import!I6588","v":0},{"$f":"Import!I6788","v":0}]
[143,{"$f":"Import!I5789","v":"Select"},{"$f":"Import!I5989","v":"Select"},{"$f":"Import!I6189","v":"Select"},{"$f":"Import!I6389","v":0},{"$f":"Import!I6589","v":0},{"$f":"Import!I6789","v":0}]
[144,{"$f":"Import!I5790","v":"Select"},{"$f":"Import!I5990","v":"Select"},{"$f":"Import!I6190","v":"Select"},{"$f":"Import!I6390","v":0},{"$f":"Import!I6590","v":0},{"$f":"Import!I6790","v":0}]
[145,{"$f":"Import!I5791","v":"Select"},{"$f":"Import!I5991","v":"Select"},{"$f":"Import!I6191","v":"Select"},{"$f":"Import!I6391","v":0},{"$f":"Import!I6591","v":0},{"$f":"Import!I6791","v":0}]
[146,{"$f":"Import!I5792","v":"Select"},{"$f":"Import!I5992","v":"Select"},{"$f":"Import!I6192","v":"Select"},{"$f":"Import!I6392","v":0},{"$f":"Import!I6592","v":0},{"$f":"Import!I6792","v":0}]
[147,{"$f":"Import!I5793","v":"Select"},{"$f":"Import!I5993","v":"Select"},{"$f":"Import!I6193","v":"Select"},{"$f":"Import!I6393","v":0},{"$f":"Import!I6593","v":0},{"$f":"Import!I6793","v":0}]
[148,{"$f":"Import!I5794","v":"Select"},{"$f":"Import!I5994","v":"Select"},{"$f":"Import!I6194","v":"Select"},{"$f":"Import!I6394","v":0},{"$f":"Import!I6594","v":0},{"$f":"Import!I6794","v":0}]
[149,{"$f":"Import!I5795","v":"Select"},{"$f":"Import!I5995","v":"Select"},{"$f":"Import!I6195","v":"Select"},{"$f":"Import!I6395","v":0},{"$f":"Import!I6595","v":0},{"$f":"Import!I6795","v":0}]
[150,{"$f":"Import!I5796","v":"Select"},{"$f":"Import!I5996","v":"Select"},{"$f":"Import!I6196","v":"Select"},{"$f":"Import!I6396","v":0},{"$f":"Import!I6596","v":0},{"$f":"Import!I6796","v":0}]
[151,{"$f":"Import!I5797","v":"Select"},{"$f":"Import!I5997","v":"Select"},{"$f":"Import!I6197","v":"Select"},{"$f":"Import!I6397","v":0},{"$f":"Import!I6597","v":0},{"$f":"Import!I6797","v":0}]
[152,{"$f":"Import!I5798","v":"Select"},{"$f":"Import!I5998","v":"Select"},{"$f":"Import!I6198","v":"Select"},{"$f":"Import!I6398","v":0},{"$f":"Import!I6598","v":0},{"$f":"Import!I6798","v":0}]
[153,{"$f":"Import!I5799","v":"Select"},{"$f":"Import!I5999","v":"Select"},{"$f":"Import!I6199","v":"Select"},{"$f":"Import!I6399","v":0},{"$f":"Import!I6599","v":0},{"$f":"Import!I6799","v":0}]
[154,{"$f":"Import!I5800","v":"Select"},{"$f":"Import!I6000","v":"Select"},{"$f":"Import!I6200","v":"Select"},{"$f":"Import!I6400","v":0},{"$f":"Import!I6600","v":0},{"$f":"Import!I6800","v":0}]
[155,{"$f":"Import!I5801","v":"Select"},{"$f":"Import!I6001","v":"Select"},{"$f":"Import!I6201","v":"Select"},{"$f":"Import!I6401","v":0},{"$f":"Import!I6601","v":0},{"$f":"Import!I6801","v":0}]
[156,{"$f":"Import!I5802","v":"Select"},{"$f":"Import!I6002","v":"Select"},{"$f":"Import!I6202","v":"Select"},{"$f":"Import!I6402","v":0},{"$f":"Import!I6602","v":0},{"$f":"Import!I6802","v":0}]
[157,{"$f":"Import!I5803","v":"Select"},{"$f":"Import!I6003","v":"Select"},{"$f":"Import!I6203","v":"Select"},{"$f":"Import!I6403","v":0},{"$f":"Import!I6603","v":0},{"$f":"Import!I6803","v":0}]
[158,{"$f":"Import!I5804","v":"Select"},{"$f":"Import!I6004","v":"Select"},{"$f":"Import!I6204","v":"Select"},{"$f":"Import!I6404","v":0},{"$f":"Import!I6604","v":0},{"$f":"Import!I6804","v":0}]
[159,{"$f":"Import!I5805","v":"Select"},{"$f":"Import!I6005","v":"Select"},{"$f":"Import!I6205","v":"Select"},{"$f":"Import!I6405","v":0},{"$f":"Import!I6605","v":0},{"$f":"Import!I6805","v":0}]
[160,{"$f":"Import!I5806","v":"Select"},{"$f":"Import!I6006","v":"Select"},{"$f":"Import!I6206","v":"Select"},{"$f":"Import!I6406","v":0},{"$f":"Import!I6606","v":0},{"$f":"Import!I6806","v":0}]
[161,{"$f":"Import!I5807","v":"Select"},{"$f":"Import!I6007","v":"Select"},{"$f":"Import!I6207","v":"Select"},{"$f":"Import!I6407","v":0},{"$f":"Import!I6607","v":0},{"$f":"Import!I6807","v":0}]
[162,{"$f":"Import!I5808","v":"Select"},{"$f":"Import!I6008","v":"Select"},{"$f":"Import!I6208","v":"Select"},{"$f":"Import!I6408","v":0},{"$f":"Import!I6608","v":0},{"$f":"Import!I6808","v":0}]
[163,{"$f":"Import!I5809","v":"Select"},{"$f":"Import!I6009","v":"Select"},{"$f":"Import!I6209","v":"Select"},{"$f":"Import!I6409","v":0},{"$f":"Import!I6609","v":0},{"$f":"Import!I6809","v":0}]
[164,{"$f":"Import!I5810","v":"Select"},{"$f":"Import!I6010","v":"Select"},{"$f":"Import!I6210","v":"Select"},{"$f":"Import!I6410","v":0},{"$f":"Import!I6610","v":0},{"$f":"Import!I6810","v":0}]
[165,{"$f":"Import!I5811","v":"Select"},{"$f":"Import!I6011","v":"Select"},{"$f":"Import!I6211","v":"Select"},{"$f":"Import!I6411","v":0},{"$f":"Import!I6611","v":0},{"$f":"Import!I6811","v":0}]
[166,{"$f":"Import!I5812","v":"Select"},{"$f":"Import!I6012","v":"Select"},{"$f":"Import!I6212","v":"Select"},{"$f":"Import!I6412","v":0},{"$f":"Import!I6612","v":0},{"$f":"Import!I6812","v":0}]
[167,{"$f":"Import!I5813","v":"Select"},{"$f":"Import!I6013","v":"Select"},{"$f":"Import!I6213","v":"Select"},{"$f":"Import!I6413","v":0},{"$f":"Import!I6613","v":0},{"$f":"Import!I6813","v":0}]
[168,{"$f":"Import!I5814","v":"Select"},{"$f":"Import!I6014","v":"Select"},{"$f":"Import!I6214","v":"Select"},{"$f":"Import!I6414","v":0},{"$f":"Import!I6614","v":0},{"$f":"Import!I6814","v":0}]
[169,{"$f":"Import!I5815","v":"Select"},{"$f":"Import!I6015","v":"Select"},{"$f":"Import!I6215","v":"Select"},{"$f":"Import!I6415","v":0},{"$f":"Import!I6615","v":0},{"$f":"Import!I6815","v":0}]
[170,{"$f":"Import!I5816","v":"Select"},{"$f":"Import!I6016","v":"Select"},{"$f":"Import!I6216","v":"Select"},{"$f":"Import!I6416","v":0},{"$f":"Import!I6616","v":0},{"$f":"Import!I6816","v":0}]
[171,{"$f":"Import!I5817","v":"Select"},{"$f":"Import!I6017","v":"Select"},{"$f":"Import!I6217","v":"Select"},{"$f":"Import!I6417","v":0},{"$f":"Import!I6617","v":0},{"$f":"Import!I6817","v":0}]
[172,{"$f":"Import!I5818","v":"Select"},{"$f":"Import!I6018","v":"Select"},{"$f":"Import!I6218","v":"Select"},{"$f":"Import!I6418","v":0},{"$f":"Import!I6618","v":0},{"$f":"Import!I6818","v":0}]
[173,{"$f":"Import!I5819","v":"Select"},{"$f":"Import!I6019","v":"Select"},{"$f":"Import!I6219","v":"Select"},{"$f":"Import!I6419","v":0},{"$f":"Import!I6619","v":0},{"$f":"Import!I6819","v":0}]
[174,{"$f":"Import!I5820","v":"Select"},{"$f":"Import!I6020","v":"Select"},{"$f":"Import!I6220","v":"Select"},{"$f":"Import!I6420","v":0},{"$f":"Import!I6620","v":0},{"$f":"Import!I6820","v":0}]
[175,{"$f":"Import!I5821","v":"Select"},{"$f":"Import!I6021","v":"Select"},{"$f":"Import!I6221","v":"Select"},{"$f":"Import!I6421","v":0},{"$f":"Import!I6621","v":0},{"$f":"Import!I6821","v":0}]
[176,{"$f":"Import!I5822","v":"Select"},{"$f":"Import!I6022","v":"Select"},{"$f":"Import!I6222","v":"Select"},{"$f":"Import!I6422","v":0},{"$f":"Import!I6622","v":0},{"$f":"Import!I6822","v":0}]
[177,{"$f":"Import!I5823","v":"Select"},{"$f":"Import!I6023","v":"Select"},{"$f":"Import!I6223","v":"Select"},{"$f":"Import!I6423","v":0},{"$f":"Import!I6623","v":0},{"$f":"Import!I6823","v":0}]
[178,{"$f":"Import!I5824","v":"Select"},{"$f":"Import!I6024","v":"Select"},{"$f":"Import!I6224","v":"Select"},{"$f":"Import!I6424","v":0},{"$f":"Import!I6624","v":0},{"$f":"Import!I6824","v":0}]
[179,{"$f":"Import!I5825","v":"Select"},{"$f":"Import!I6025","v":"Select"},{"$f":"Import!I6225","v":"Select"},{"$f":"Import!I6425","v":0},{"$f":"Import!I6625","v":0},{"$f":"Import!I6825","v":0}]
[180,{"$f":"Import!I5826","v":"Select"},{"$f":"Import!I6026","v":"Select"},{"$f":"Import!I6226","v":"Select"},{"$f":"Import!I6426","v":0},{"$f":"Import!I6626","v":0},{"$f":"Import!I6826","v":0}]
[181,{"$f":"Import!I5827","v":"Select"},{"$f":"Import!I6027","v":"Select"},{"$f":"Import!I6227","v":"Select"},{"$f":"Import!I6427","v":0},{"$f":"Import!I6627","v":0},{"$f":"Import!I6827","v":0}]
[182,{"$f":"Import!I5828","v":"Select"},{"$f":"Import!I6028","v":"Select"},{"$f":"Import!I6228","v":"Select"},{"$f":"Import!I6428","v":0},{"$f":"Import!I6628","v":0},{"$f":"Import!I6828","v":0}]
[183,{"$f":"Import!I5829","v":"Select"},{"$f":"Import!I6029","v":"Select"},{"$f":"Import!I6229","v":"Select"},{"$f":"Import!I6429","v":0},{"$f":"Import!I6629","v":0},{"$f":"Import!I6829","v":0}]
[184,{"$f":"Import!I5830","v":"Select"},{"$f":"Import!I6030","v":"Select"},{"$f":"Import!I6230","v":"Select"},{"$f":"Import!I6430","v":0},{"$f":"Import!I6630","v":0},{"$f":"Import!I6830","v":0}]
[185,{"$f":"Import!I5831","v":"Select"},{"$f":"Import!I6031","v":"Select"},{"$f":"Import!I6231","v":"Select"},{"$f":"Import!I6431","v":0},{"$f":"Import!I6631","v":0},{"$f":"Import!I6831","v":0}]
[186,{"$f":"Import!I5832","v":"Select"},{"$f":"Import!I6032","v":"Select"},{"$f":"Import!I6232","v":"Select"},{"$f":"Import!I6432","v":0},{"$f":"Import!I6632","v":0},{"$f":"Import!I6832","v":0}]
[187,{"$f":"Import!I5833","v":"Select"},{"$f":"Import!I6033","v":"Select"},{"$f":"Import!I6233","v":"Select"},{"$f":"Import!I6433","v":0},{"$f":"Import!I6633","v":0},{"$f":"Import!I6833","v":0}]
[188,{"$f":"Import!I5834","v":"Select"},{"$f":"Import!I6034","v":"Select"},{"$f":"Import!I6234","v":"Select"},{"$f":"Import!I6434","v":0},{"$f":"Import!I6634","v":0},{"$f":"Import!I6834","v":0}]
[189,{"$f":"Import!I5835","v":"Select"},{"$f":"Import!I6035","v":"Select"},{"$f":"Import!I6235","v":"Select"},{"$f":"Import!I6435","v":0},{"$f":"Import!I6635","v":0},{"$f":"Import!I6835","v":0}]
[190,{"$f":"Import!I5836","v":"Select"},{"$f":"Import!I6036","v":"Select"},{"$f":"Import!I6236","v":"Select"},{"$f":"Import!I6436","v":0},{"$f":"Import!I6636","v":0},{"$f":"Import!I6836","v":0}]
[191,{"$f":"Import!I5837","v":"Select"},{"$f":"Import!I6037","v":"Select"},{"$f":"Import!I6237","v":"Select"},{"$f":"Import!I6437","v":0},{"$f":"Import!I6637","v":0},{"$f":"Import!I6837","v":0}]
[192,{"$f":"Import!I5838","v":"Select"},{"$f":"Import!I6038","v":"Select"},{"$f":"Import!I6238","v":"Select"},{"$f":"Import!I6438","v":0},{"$f":"Import!I6638","v":0},{"$f":"Import!I6838","v":0}]
[193,{"$f":"Import!I5839","v":"Select"},{"$f":"Import!I6039","v":"Select"},{"$f":"Import!I6239","v":"Select"},{"$f":"Import!I6439","v":0},{"$f":"Import!I6639","v":0},{"$f":"Import!I6839","v":0}]
[194,{"$f":"Import!I5840","v":"Select"},{"$f":"Import!I6040","v":"Select"},{"$f":"Import!I6240","v":"Select"},{"$f":"Import!I6440","v":0},{"$f":"Import!I6640","v":0},{"$f":"Import!I6840","v":0}]
[{"$f":"A204+1","v":195},{"$f":"Import!I5841","v":"Select"},{"$f":"Import!I6041","v":"Select"},{"$f":"Import!I6241","v":"Select"},{"$f":"Import!I6441","v":0},{"$f":"Import!I6641","v":0},{"$f":"Import!I6841","v":0}]
[196,{"$f":"Import!I5842","v":"Select"},{"$f":"Import!I6042","v":"Select"},{"$f":"Import!I6242","v":"Select"},{"$f":"Import!I6442","v":0},{"$f":"Import!I6642","v":0},{"$f":"Import!I6842","v":0}]
[197,{"$f":"Import!I5843","v":"Select"},{"$f":"Import!I6043","v":"Select"},{"$f":"Import!I6243","v":"Select"},{"$f":"Import!I6443","v":0},{"$f":"Import!I6643","v":0},{"$f":"Import!I6843","v":0}]
[198,{"$f":"Import!I5844","v":"Select"},{"$f":"Import!I6044","v":"Select"},{"$f":"Import!I6244","v":"Select"},{"$f":"Import!I6444","v":0},{"$f":"Import!I6644","v":0},{"$f":"Import!I6844","v":0}]
[199,{"$f":"Import!I5845","v":"Select"},{"$f":"Import!I6045","v":"Select"},{"$f":"Import!I6245","v":"Select"},{"$f":"Import!I6445","v":0},{"$f":"Import!I6645","v":0},{"$f":"Import!I6845","v":0}]
[200,{"$f":"Import!I5846","v":"Select"},{"$f":"Import!I6046","v":"Select"},{"$f":"Import!I6246","v":"Select"},{"$f":"Import!I6446","v":0},{"$f":"Import!I6646","v":0},{"$f":"Import!I6846","v":0}]
[]
[null,"Total Cash and Cash Equivalents",null,null,{"$f":"SUM(E11:E210)","v":0},{"$f":"SUM(F11:F210)","v":0}]
[]
[null,"(B) BONDS AND DEBENTURES"]
[]
[null,null,"Enter # of Asset Types",{"$f":"Import!I6847","v":0}]
[null,null,null,null,{"$f":"YEAR($C$3)","v":2023},2023,"Weighted"]
[null,"Asset Type","Currency","BSCR Rating","Nominal Amount","Fair Value","Average YTM","Effective Duration","Comments"]
[1,{"$f":"Import!I6848","v":"Select"},{"$f":"Import!I7248","v":"Select"},{"$f":"Import!I7648","v":"Select"},{"$f":"Import!I8048","v":0},{"$f":"Import!I8448","v":0},{"$f":"Import!I8848","v":0},{"$f":"Import!I9248","v":0},{"$f":"Import!I9648","v":0}]
[{"$f":"A219+1","v":2},{"$f":"Import!I6849","v":"Select"},{"$f":"Import!I7249","v":"Select"},{"$f":"Import!I7649","v":"Select"},{"$f":"Import!I8049","v":0},{"$f":"Import!I8449","v":0},{"$f":"Import!I8849","v":0},{"$f":"Import!I9249","v":0},{"$f":"Import!I9649","v":0}]
[{"$f":"A220+1","v":3},{"$f":"Import!I6850","v":"Select"},{"$f":"Import!I7250","v":"Select"},{"$f":"Import!I7650","v":"Select"},{"$f":"Import!I8050","v":0},{"$f":"Import!I8450","v":0},{"$f":"Import!I8850","v":0},{"$f":"Import!I9250","v":0},{"$f":"Import!I9650","v":0}]
[4,{"$f":"Import!I6851","v":"Select"},{"$f":"Import!I7251","v":"Select"},{"$f":"Import!I7651","v":"Select"},{"$f":"Import!I8051","v":0},{"$f":"Import!I8451","v":0},{"$f":"Import!I8851","v":0},{"$f":"Import!I9251","v":0},{"$f":"Import!I9651","v":0}]
[5,{"$f":"Import!I6852","v":"Select"},{"$f":"Import!I7252","v":"Select"},{"$f":"Import!I7652","v":"Select"},{"$f":"Import!I8052","v":0},{"$f":"Import!I8452","v":0},{"$f":"Import!I8852","v":0},{"$f":"Import!I9252","v":0},{"$f":"Import!I9652","v":0}]
[6,{"$f":"Import!I6853","v":"Select"},{"$f":"Import!I7253","v":"Select"},{"$f":"Import!I7653","v":"Select"},{"$f":"Import!I8053","v":0},{"$f":"Import!I8453","v":0},{"$f":"Import!I8853","v":0},{"$f":"Import!I9253","v":0},{"$f":"Import!I9653","v":0}]
[7,{"$f":"Import!I6854","v":"Select"},{"$f":"Import!I7254","v":"Select"},{"$f":"Import!I7654","v":"Select"},{"$f":"Import!I8054","v":0},{"$f":"Import!I8454","v":0},{"$f":"Import!I8854","v":0},{"$f":"Import!I9254","v":0},{"$f":"Import!I9654","v":0}]
[8,{"$f":"Import!I6855","v":"Select"},{"$f":"Import!I7255","v":"Select"},{"$f":"Import!I7655","v":"Select"},{"$f":"Import!I8055","v":0},{"$f":"Import!I8455","v":0},{"$f":"Import!I8855","v":0},{"$f":"Import!I9255","v":0},{"$f":"Import!I9655","v":0}]
[9,{"$f":"Import!I6856","v":"Select"},{"$f":"Import!I7256","v":"Select"},{"$f":"Import!I7656","v":"Select"},{"$f":"Import!I8056","v":0},{"$f":"Import!I8456","v":0},{"$f":"Import!I8856","v":0},{"$f":"Import!I9256","v":0},{"$f":"Import!I9656","v":0}]
[10,{"$f":"Import!I6857","v":"Select"},{"$f":"Import!I7257","v":"Select"},{"$f":"Import!I7657","v":"Select"},{"$f":"Import!I8057","v":0},{"$f":"Import!I8457","v":0},{"$f":"Import!I8857","v":0},{"$f":"Import!I9257","v":0},{"$f":"Import!I9657","v":0}]
[11,{"$f":"Import!I6858","v":"Select"},{"$f":"Import!I7258","v":"Select"},{"$f":"Import!I7658","v":"Select"},{"$f":"Import!I8058","v":0},{"$f":"Import!I8458","v":0},{"$f":"Import!I8858","v":0},{"$f":"Import!I9258","v":0},{"$f":"Import!I9658","v":0}]
[12,{"$f":"Import!I6859","v":"Select"},{"$f":"Import!I7259","v":"Select"},{"$f":"Import!I7659","v":"Select"},{"$f":"Import!I8059","v":0},{"$f":"Import!I8459","v":0},{"$f":"Import!I8859","v":0},{"$f":"Import!I9259","v":0},{"$f":"Import!I9659","v":0}]
[13,{"$f":"Import!I6860","v":"Select"},{"$f":"Import!I7260","v":"Select"},{"$f":"Import!I7660","v":"Select"},{"$f":"Import!I8060","v":0},{"$f":"Import!I8460","v":0},{"$f":"Import!I8860","v":0},{"$f":"Import!I9260","v":0},{"$f":"Import!I9660","v":0}]
[14,{"$f":"Import!I6861","v":"Select"},{"$f":"Import!I7261","v":"Select"},{"$f":"Import!I7661","v":"Select"},{"$f":"Import!I8061","v":0},{"$f":"Import!I8461","v":0},{"$f":"Import!I8861","v":0},{"$f":"Import!I9261","v":0},{"$f":"Import!I9661","v":0}]
[15,{"$f":"Import!I6862","v":"Select"},{"$f":"Import!I7262","v":"Select"},{"$f":"Import!I7662","v":"Select"},{"$f":"Import!I8062","v":0},{"$f":"Import!I8462","v":0},{"$f":"Import!I8862","v":0},{"$f":"Import!I9262","v":0},{"$f":"Import!I9662","v":0}]
[16,{"$f":"Import!I6863","v":"Select"},{"$f":"Import!I7263","v":"Select"},{"$f":"Import!I7663","v":"Select"},{"$f":"Import!I8063","v":0},{"$f":"Import!I8463","v":0},{"$f":"Import!I8863","v":0},{"$f":"Import!I9263","v":0},{"$f":"Import!I9663","v":0}]
[17,{"$f":"Import!I6864","v":"Select"},{"$f":"Import!I7264","v":"Select"},{"$f":"Import!I7664","v":"Select"},{"$f":"Import!I8064","v":0},{"$f":"Import!I8464","v":0},{"$f":"Import!I8864","v":0},{"$f":"Import!I9264","v":0},{"$f":"Import!I9664","v":0}]
[18,{"$f":"Import!I6865","v":"Select"},{"$f":"Import!I7265","v":"Select"},{"$f":"Import!I7665","v":"Select"},{"$f":"Import!I8065","v":0},{"$f":"Import!I8465","v":0},{"$f":"Import!I8865","v":0},{"$f":"Import!I9265","v":0},{"$f":"Import!I9665","v":0}]
[19,{"$f":"Import!I6866","v":"Select"},{"$f":"Import!I7266","v":"Select"},{"$f":"Import!I7666","v":"Select"},{"$f":"Import!I8066","v":0},{"$f":"Import!I8466","v":0},{"$f":"Import!I8866","v":0},{"$f":"Import!I9266","v":0},{"$f":"Import!I9666","v":0}]
[20,{"$f":"Import!I6867","v":"Select"},{"$f":"Import!I7267","v":"Select"},{"$f":"Import!I7667","v":"Select"},{"$f":"Import!I8067","v":0},{"$f":"Import!I8467","v":0},{"$f":"Import!I8867","v":0},{"$f":"Import!I9267","v":0},{"$f":"Import!I9667","v":0}]
[21,{"$f":"Import!I6868","v":"Select"},{"$f":"Import!I7268","v":"Select"},{"$f":"Import!I7668","v":"Select"},{"$f":"Import!I8068","v":0},{"$f":"Import!I8468","v":0},{"$f":"Import!I8868","v":0},{"$f":"Import!I9268","v":0},{"$f":"Import!I9668","v":0}]
[22,{"$f":"Import!I6869","v":"Select"},{"$f":"Import!I7269","v":"Select"},{"$f":"Import!I7669","v":"Select"},{"$f":"Import!I8069","v":0},{"$f":"Import!I8469","v":0},{"$f":"Import!I8869","v":0},{"$f":"Import!I9269","v":0},{"$f":"Import!I9669","v":0}]
[23,{"$f":"Import!I6870","v":"Select"},{"$f":"Import!I7270","v":"Select"},{"$f":"Import!I7670","v":"Select"},{"$f":"Import!I8070","v":0},{"$f":"Import!I8470","v":0},{"$f":"Import!I8870","v":0},{"$f":"Import!I9270","v":0},{"$f":"Import!I9670","v":0}]
[24,{"$f":"Import!I6871","v":"Select"},{"$f":"Import!I7271","v":"Select"},{"$f":"Import!I7671","v":"Select"},{"$f":"Import!I8071","v":0},{"$f":"Import!I8471","v":0},{"$f":"Import!I8871","v":0},{"$f":"Import!I9271","v":0},{"$f":"Import!I9671","v":0}]
[25,{"$f":"Import!I6872","v":"Select"},{"$f":"Import!I7272","v":"Select"},{"$f":"Import!I7672","v":"Select"},{"$f":"Import!I8072","v":0},{"$f":"Import!I8472","v":0},{"$f":"Import!I8872","v":0},{"$f":"Import!I9272","v":0},{"$f":"Import!I9672","v":0}]
[26,{"$f":"Import!I6873","v":"Select"},{"$f":"Import!I7273","v":"Select"},{"$f":"Import!I7673","v":"Select"},{"$f":"Import!I8073","v":0},{"$f":"Import!I8473","v":0},{"$f":"Import!I8873","v":0},{"$f":"Import!I9273","v":0},{"$f":"Import!I9673","v":0}]
[27,{"$f":"Import!I6874","v":"Select"},{"$f":"Import!I7274","v":"Select"},{"$f":"Import!I7674","v":"Select"},{"$f":"Import!I8074","v":0},{"$f":"Import!I8474","v":0},{"$f":"Import!I8874","v":0},{"$f":"Import!I9274","v":0},{"$f":"Import!I9674","v":0}]
[28,{"$f":"Import!I6875","v":"Select"},{"$f":"Import!I7275","v":"Select"},{"$f":"Import!I7675","v":"Select"},{"$f":"Import!I8075","v":0},{"$f":"Import!I8475","v":0},{"$f":"Import!I8875","v":0},{"$f":"Import!I9275","v":0},{"$f":"Import!I9675","v":0}]
[29,{"$f":"Import!I6876","v":"Select"},{"$f":"Import!I7276","v":"Select"},{"$f":"Import!I7676","v":"Select"},{"$f":"Import!I8076","v":0},{"$f":"Import!I8476","v":0},{"$f":"Import!I8876","v":0},{"$f":"Import!I9276","v":0},{"$f":"Import!I9676","v":0}]
[30,{"$f":"Import!I6877","v":"Select"},{"$f":"Import!I7277","v":"Select"},{"$f":"Import!I7677","v":"Select"},{"$f":"Import!I8077","v":0},{"$f":"Import!I8477","v":0},{"$f":"Import!I8877","v":0},{"$f":"Import!I9277","v":0},{"$f":"Import!I9677","v":0}]
[31,{"$f":"Import!I6878","v":"Select"},{"$f":"Import!I7278","v":"Select"},{"$f":"Import!I7678","v":"Select"},{"$f":"Import!I8078","v":0},{"$f":"Import!I8478","v":0},{"$f":"Import!I8878","v":0},{"$f":"Import!I9278","v":0},{"$f":"Import!I9678","v":0}]
[32,{"$f":"Import!I6879","v":"Select"},{"$f":"Import!I7279","v":"Select"},{"$f":"Import!I7679","v":"Select"},{"$f":"Import!I8079","v":0},{"$f":"Import!I8479","v":0},{"$f":"Import!I8879","v":0},{"$f":"Import!I9279","v":0},{"$f":"Import!I9679","v":0}]
[33,{"$f":"Import!I6880","v":"Select"},{"$f":"Import!I7280","v":"Select"},{"$f":"Import!I7680","v":"Select"},{"$f":"Import!I8080","v":0},{"$f":"Import!I8480","v":0},{"$f":"Import!I8880","v":0},{"$f":"Import!I9280","v":0},{"$f":"Import!I9680","v":0}]
[34,{"$f":"Import!I6881","v":"Select"},{"$f":"Import!I7281","v":"Select"},{"$f":"Import!I7681","v":"Select"},{"$f":"Import!I8081","v":0},{"$f":"Import!I8481","v":0},{"$f":"Import!I8881","v":0},{"$f":"Import!I9281","v":0},{"$f":"Import!I9681","v":0}]
[35,{"$f":"Import!I6882","v":"Select"},{"$f":"Import!I7282","v":"Select"},{"$f":"Import!I7682","v":"Select"},{"$f":"Import!I8082","v":0},{"$f":"Import!I8482","v":0},{"$f":"Import!I8882","v":0},{"$f":"Import!I9282","v":0},{"$f":"Import!I9682","v":0}]
[36,{"$f":"Import!I6883","v":"Select"},{"$f":"Import!I7283","v":"Select"},{"$f":"Import!I7683","v":"Select"},{"$f":"Import!I8083","v":0},{"$f":"Import!I8483","v":0},{"$f":"Import!I8883","v":0},{"$f":"Import!I9283","v":0},{"$f":"Import!I9683","v":0}]
[37,{"$f":"Import!I6884","v":"Select"},{"$f":"Import!I7284","v":"Select"},{"$f":"Import!I7684","v":"Select"},{"$f":"Import!I8084","v":0},{"$f":"Import!I8484","v":0},{"$f":"Import!I8884","v":0},{"$f":"Import!I9284","v":0},{"$f":"Import!I9684","v":0}]
[38,{"$f":"Import!I6885","v":"Select"},{"$f":"Import!I7285","v":"Select"},{"$f":"Import!I7685","v":"Select"},{"$f":"Import!I8085","v":0},{"$f":"Import!I8485","v":0},{"$f":"Import!I8885","v":0},{"$f":"Import!I9285","v":0},{"$f":"Import!I9685","v":0}]
[39,{"$f":"Import!I6886","v":"Select"},{"$f":"Import!I7286","v":"Select"},{"$f":"Import!I7686","v":"Select"},{"$f":"Import!I8086","v":0},{"$f":"Import!I8486","v":0},{"$f":"Import!I8886","v":0},{"$f":"Import!I9286","v":0},{"$f":"Import!I9686","v":0}]
[40,{"$f":"Import!I6887","v":"Select"},{"$f":"Import!I7287","v":"Select"},{"$f":"Import!I7687","v":"Select"},{"$f":"Import!I8087","v":0},{"$f":"Import!I8487","v":0},{"$f":"Import!I8887","v":0},{"$f":"Import!I9287","v":0},{"$f":"Import!I9687","v":0}]
[41,{"$f":"Import!I6888","v":"Select"},{"$f":"Import!I7288","v":"Select"},{"$f":"Import!I7688","v":"Select"},{"$f":"Import!I8088","v":0},{"$f":"Import!I8488","v":0},{"$f":"Import!I8888","v":0},{"$f":"Import!I9288","v":0},{"$f":"Import!I9688","v":0}]
[42,{"$f":"Import!I6889","v":"Select"},{"$f":"Import!I7289","v":"Select"},{"$f":"Import!I7689","v":"Select"},{"$f":"Import!I8089","v":0},{"$f":"Import!I8489","v":0},{"$f":"Import!I8889","v":0},{"$f":"Import!I9289","v":0},{"$f":"Import!I9689","v":0}]
[43,{"$f":"Import!I6890","v":"Select"},{"$f":"Import!I7290","v":"Select"},{"$f":"Import!I7690","v":"Select"},{"$f":"Import!I8090","v":0},{"$f":"Import!I8490","v":0},{"$f":"Import!I8890","v":0},{"$f":"Import!I9290","v":0},{"$f":"Import!I9690","v":0}]
[44,{"$f":"Import!I6891","v":"Select"},{"$f":"Import!I7291","v":"Select"},{"$f":"Import!I7691","v":"Select"},{"$f":"Import!I8091","v":0},{"$f":"Import!I8491","v":0},{"$f":"Import!I8891","v":0},{"$f":"Import!I9291","v":0},{"$f":"Import!I9691","v":0}]
[45,{"$f":"Import!I6892","v":"Select"},{"$f":"Import!I7292","v":"Select"},{"$f":"Import!I7692","v":"Select"},{"$f":"Import!I8092","v":0},{"$f":"Import!I8492","v":0},{"$f":"Import!I8892","v":0},{"$f":"Import!I9292","v":0},{"$f":"Import!I9692","v":0}]
[46,{"$f":"Import!I6893","v":"Select"},{"$f":"Import!I7293","v":"Select"},{"$f":"Import!I7693","v":"Select"},{"$f":"Import!I8093","v":0},{"$f":"Import!I8493","v":0},{"$f":"Import!I8893","v":0},{"$f":"Import!I9293","v":0},{"$f":"Import!I9693","v":0}]
[47,{"$f":"Import!I6894","v":"Select"},{"$f":"Import!I7294","v":"Select"},{"$f":"Import!I7694","v":"Select"},{"$f":"Import!I8094","v":0},{"$f":"Import!I8494","v":0},{"$f":"Import!I8894","v":0},{"$f":"Import!I9294","v":0},{"$f":"Import!I9694","v":0}]
[48,{"$f":"Import!I6895","v":"Select"},{"$f":"Import!I7295","v":"Select"},{"$f":"Import!I7695","v":"Select"},{"$f":"Import!I8095","v":0},{"$f":"Import!I8495","v":0},{"$f":"Import!I8895","v":0},{"$f":"Import!I9295","v":0},{"$f":"Import!I9695","v":0}]
[49,{"$f":"Import!I6896","v":"Select"},{"$f":"Import!I7296","v":"Select"},{"$f":"Import!I7696","v":"Select"},{"$f":"Import!I8096","v":0},{"$f":"Import!I8496","v":0},{"$f":"Import!I8896","v":0},{"$f":"Import!I9296","v":0},{"$f":"Import!I9696","v":0}]
[50,{"$f":"Import!I6897","v":"Select"},{"$f":"Import!I7297","v":"Select"},{"$f":"Import!I7697","v":"Select"},{"$f":"Import!I8097","v":0},{"$f":"Import!I8497","v":0},{"$f":"Import!I8897","v":0},{"$f":"Import!I9297","v":0},{"$f":"Import!I9697","v":0}]
[51,{"$f":"Import!I6898","v":"Select"},{"$f":"Import!I7298","v":"Select"},{"$f":"Import!I7698","v":"Select"},{"$f":"Import!I8098","v":0},{"$f":"Import!I8498","v":0},{"$f":"Import!I8898","v":0},{"$f":"Import!I9298","v":0},{"$f":"Import!I9698","v":0}]
[52,{"$f":"Import!I6899","v":"Select"},{"$f":"Import!I7299","v":"Select"},{"$f":"Import!I7699","v":"Select"},{"$f":"Import!I8099","v":0},{"$f":"Import!I8499","v":0},{"$f":"Import!I8899","v":0},{"$f":"Import!I9299","v":0},{"$f":"Import!I9699","v":0}]
[53,{"$f":"Import!I6900","v":"Select"},{"$f":"Import!I7300","v":"Select"},{"$f":"Import!I7700","v":"Select"},{"$f":"Import!I8100","v":0},{"$f":"Import!I8500","v":0},{"$f":"Import!I8900","v":0},{"$f":"Import!I9300","v":0},{"$f":"Import!I9700","v":0}]
[54,{"$f":"Import!I6901","v":"Select"},{"$f":"Import!I7301","v":"Select"},{"$f":"Import!I7701","v":"Select"},{"$f":"Import!I8101","v":0},{"$f":"Import!I8501","v":0},{"$f":"Import!I8901","v":0},{"$f":"Import!I9301","v":0},{"$f":"Import!I9701","v":0}]
[55,{"$f":"Import!I6902","v":"Select"},{"$f":"Import!I7302","v":"Select"},{"$f":"Import!I7702","v":"Select"},{"$f":"Import!I8102","v":0},{"$f":"Import!I8502","v":0},{"$f":"Import!I8902","v":0},{"$f":"Import!I9302","v":0},{"$f":"Import!I9702","v":0}]
[56,{"$f":"Import!I6903","v":"Select"},{"$f":"Import!I7303","v":"Select"},{"$f":"Import!I7703","v":"Select"},{"$f":"Import!I8103","v":0},{"$f":"Import!I8503","v":0},{"$f":"Import!I8903","v":0},{"$f":"Import!I9303","v":0},{"$f":"Import!I9703","v":0}]
[57,{"$f":"Import!I6904","v":"Select"},{"$f":"Import!I7304","v":"Select"},{"$f":"Import!I7704","v":"Select"},{"$f":"Import!I8104","v":0},{"$f":"Import!I8504","v":0},{"$f":"Import!I8904","v":0},{"$f":"Import!I9304","v":0},{"$f":"Import!I9704","v":0}]
[58,{"$f":"Import!I6905","v":"Select"},{"$f":"Import!I7305","v":"Select"},{"$f":"Import!I7705","v":"Select"},{"$f":"Import!I8105","v":0},{"$f":"Import!I8505","v":0},{"$f":"Import!I8905","v":0},{"$f":"Import!I9305","v":0},{"$f":"Import!I9705","v":0}]
[59,{"$f":"Import!I6906","v":"Select"},{"$f":"Import!I7306","v":"Select"},{"$f":"Import!I7706","v":"Select"},{"$f":"Import!I8106","v":0},{"$f":"Import!I8506","v":0},{"$f":"Import!I8906","v":0},{"$f":"Import!I9306","v":0},{"$f":"Import!I9706","v":0}]
[60,{"$f":"Import!I6907","v":"Select"},{"$f":"Import!I7307","v":"Select"},{"$f":"Import!I7707","v":"Select"},{"$f":"Import!I8107","v":0},{"$f":"Import!I8507","v":0},{"$f":"Import!I8907","v":0},{"$f":"Import!I9307","v":0},{"$f":"Import!I9707","v":0}]
[61,{"$f":"Import!I6908","v":"Select"},{"$f":"Import!I7308","v":"Select"},{"$f":"Import!I7708","v":"Select"},{"$f":"Import!I8108","v":0},{"$f":"Import!I8508","v":0},{"$f":"Import!I8908","v":0},{"$f":"Import!I9308","v":0},{"$f":"Import!I9708","v":0}]
[62,{"$f":"Import!I6909","v":"Select"},{"$f":"Import!I7309","v":"Select"},{"$f":"Import!I7709","v":"Select"},{"$f":"Import!I8109","v":0},{"$f":"Import!I8509","v":0},{"$f":"Import!I8909","v":0},{"$f":"Import!I9309","v":0},{"$f":"Import!I9709","v":0}]
[63,{"$f":"Import!I6910","v":"Select"},{"$f":"Import!I7310","v":"Select"},{"$f":"Import!I7710","v":"Select"},{"$f":"Import!I8110","v":0},{"$f":"Import!I8510","v":0},{"$f":"Import!I8910","v":0},{"$f":"Import!I9310","v":0},{"$f":"Import!I9710","v":0}]
[64,{"$f":"Import!I6911","v":"Select"},{"$f":"Import!I7311","v":"Select"},{"$f":"Import!I7711","v":"Select"},{"$f":"Import!I8111","v":0},{"$f":"Import!I8511","v":0},{"$f":"Import!I8911","v":0},{"$f":"Import!I9311","v":0},{"$f":"Import!I9711","v":0}]
[65,{"$f":"Import!I6912","v":"Select"},{"$f":"Import!I7312","v":"Select"},{"$f":"Import!I7712","v":"Select"},{"$f":"Import!I8112","v":0},{"$f":"Import!I8512","v":0},{"$f":"Import!I8912","v":0},{"$f":"Import!I9312","v":0},{"$f":"Import!I9712","v":0}]
[66,{"$f":"Import!I6913","v":"Select"},{"$f":"Import!I7313","v":"Select"},{"$f":"Import!I7713","v":"Select"},{"$f":"Import!I8113","v":0},{"$f":"Import!I8513","v":0},{"$f":"Import!I8913","v":0},{"$f":"Import!I9313","v":0},{"$f":"Import!I9713","v":0}]
[{"$f":"A284+1","v":67},{"$f":"Import!I6914","v":"Select"},{"$f":"Import!I7314","v":"Select"},{"$f":"Import!I7714","v":"Select"},{"$f":"Import!I8114","v":0},{"$f":"Import!I8514","v":0},{"$f":"Import!I8914","v":0},{"$f":"Import!I9314","v":0},{"$f":"Import!I9714","v":0}]
[68,{"$f":"Import!I6915","v":"Select"},{"$f":"Import!I7315","v":"Select"},{"$f":"Import!I7715","v":"Select"},{"$f":"Import!I8115","v":0},{"$f":"Import!I8515","v":0},{"$f":"Import!I8915","v":0},{"$f":"Import!I9315","v":0},{"$f":"Import!I9715","v":0}]
[69,{"$f":"Import!I6916","v":"Select"},{"$f":"Import!I7316","v":"Select"},{"$f":"Import!I7716","v":"Select"},{"$f":"Import!I8116","v":0},{"$f":"Import!I8516","v":0},{"$f":"Import!I8916","v":0},{"$f":"Import!I9316","v":0},{"$f":"Import!I9716","v":0}]
[70,{"$f":"Import!I6917","v":"Select"},{"$f":"Import!I7317","v":"Select"},{"$f":"Import!I7717","v":"Select"},{"$f":"Import!I8117","v":0},{"$f":"Import!I8517","v":0},{"$f":"Import!I8917","v":0},{"$f":"Import!I9317","v":0},{"$f":"Import!I9717","v":0}]
[71,{"$f":"Import!I6918","v":"Select"},{"$f":"Import!I7318","v":"Select"},{"$f":"Import!I7718","v":"Select"},{"$f":"Import!I8118","v":0},{"$f":"Import!I8518","v":0},{"$f":"Import!I8918","v":0},{"$f":"Import!I9318","v":0},{"$f":"Import!I9718","v":0}]
[72,{"$f":"Import!I6919","v":"Select"},{"$f":"Import!I7319","v":"Select"},{"$f":"Import!I7719","v":"Select"},{"$f":"Import!I8119","v":0},{"$f":"Import!I8519","v":0},{"$f":"Import!I8919","v":0},{"$f":"Import!I9319","v":0},{"$f":"Import!I9719","v":0}]
[73,{"$f":"Import!I6920","v":"Select"},{"$f":"Import!I7320","v":"Select"},{"$f":"Import!I7720","v":"Select"},{"$f":"Import!I8120","v":0},{"$f":"Import!I8520","v":0},{"$f":"Import!I8920","v":0},{"$f":"Import!I9320","v":0},{"$f":"Import!I9720","v":0}]
[74,{"$f":"Import!I6921","v":"Select"},{"$f":"Import!I7321","v":"Select"},{"$f":"Import!I7721","v":"Select"},{"$f":"Import!I8121","v":0},{"$f":"Import!I8521","v":0},{"$f":"Import!I8921","v":0},{"$f":"Import!I9321","v":0},{"$f":"Import!I9721","v":0}]
[75,{"$f":"Import!I6922","v":"Select"},{"$f":"Import!I7322","v":"Select"},{"$f":"Import!I7722","v":"Select"},{"$f":"Import!I8122","v":0},{"$f":"Import!I8522","v":0},{"$f":"Import!I8922","v":0},{"$f":"Import!I9322","v":0},{"$f":"Import!I9722","v":0}]
[76,{"$f":"Import!I6923","v":"Select"},{"$f":"Import!I7323","v":"Select"},{"$f":"Import!I7723","v":"Select"},{"$f":"Import!I8123","v":0},{"$f":"Import!I8523","v":0},{"$f":"Import!I8923","v":0},{"$f":"Import!I9323","v":0},{"$f":"Import!I9723","v":0}]
[77,{"$f":"Import!I6924","v":"Select"},{"$f":"Import!I7324","v":"Select"},{"$f":"Import!I7724","v":"Select"},{"$f":"Import!I8124","v":0},{"$f":"Import!I8524","v":0},{"$f":"Import!I8924","v":0},{"$f":"Import!I9324","v":0},{"$f":"Import!I9724","v":0}]
[78,{"$f":"Import!I6925","v":"Select"},{"$f":"Import!I7325","v":"Select"},{"$f":"Import!I7725","v":"Select"},{"$f":"Import!I8125","v":0},{"$f":"Import!I8525","v":0},{"$f":"Import!I8925","v":0},{"$f":"Import!I9325","v":0},{"$f":"Import!I9725","v":0}]
[79,{"$f":"Import!I6926","v":"Select"},{"$f":"Import!I7326","v":"Select"},{"$f":"Import!I7726","v":"Select"},{"$f":"Import!I8126","v":0},{"$f":"Import!I8526","v":0},{"$f":"Import!I8926","v":0},{"$f":"Import!I9326","v":0},{"$f":"Import!I9726","v":0}]
[80,{"$f":"Import!I6927","v":"Select"},{"$f":"Import!I7327","v":"Select"},{"$f":"Import!I7727","v":"Select"},{"$f":"Import!I8127","v":0},{"$f":"Import!I8527","v":0},{"$f":"Import!I8927","v":0},{"$f":"Import!I9327","v":0},{"$f":"Import!I9727","v":0}]
[81,{"$f":"Import!I6928","v":"Select"},{"$f":"Import!I7328","v":"Select"},{"$f":"Import!I7728","v":"Select"},{"$f":"Import!I8128","v":0},{"$f":"Import!I8528","v":0},{"$f":"Import!I8928","v":0},{"$f":"Import!I9328","v":0},{"$f":"Import!I9728","v":0}]
[82,{"$f":"Import!I6929","v":"Select"},{"$f":"Import!I7329","v":"Select"},{"$f":"Import!I7729","v":"Select"},{"$f":"Import!I8129","v":0},{"$f":"Import!I8529","v":0},{"$f":"Import!I8929","v":0},{"$f":"Import!I9329","v":0},{"$f":"Import!I9729","v":0}]
[83,{"$f":"Import!I6930","v":"Select"},{"$f":"Import!I7330","v":"Select"},{"$f":"Import!I7730","v":"Select"},{"$f":"Import!I8130","v":0},{"$f":"Import!I8530","v":0},{"$f":"Import!I8930","v":0},{"$f":"Import!I9330","v":0},{"$f":"Import!I9730","v":0}]
[84,{"$f":"Import!I6931","v":"Select"},{"$f":"Import!I7331","v":"Select"},{"$f":"Import!I7731","v":"Select"},{"$f":"Import!I8131","v":0},{"$f":"Import!I8531","v":0},{"$f":"Import!I8931","v":0},{"$f":"Import!I9331","v":0},{"$f":"Import!I9731","v":0}]
[85,{"$f":"Import!I6932","v":"Select"},{"$f":"Import!I7332","v":"Select"},{"$f":"Import!I7732","v":"Select"},{"$f":"Import!I8132","v":0},{"$f":"Import!I8532","v":0},{"$f":"Import!I8932","v":0},{"$f":"Import!I9332","v":0},{"$f":"Import!I9732","v":0}]
[86,{"$f":"Import!I6933","v":"Select"},{"$f":"Import!I7333","v":"Select"},{"$f":"Import!I7733","v":"Select"},{"$f":"Import!I8133","v":0},{"$f":"Import!I8533","v":0},{"$f":"Import!I8933","v":0},{"$f":"Import!I9333","v":0},{"$f":"Import!I9733","v":0}]
[87,{"$f":"Import!I6934","v":"Select"},{"$f":"Import!I7334","v":"Select"},{"$f":"Import!I7734","v":"Select"},{"$f":"Import!I8134","v":0},{"$f":"Import!I8534","v":0},{"$f":"Import!I8934","v":0},{"$f":"Import!I9334","v":0},{"$f":"Import!I9734","v":0}]
[88,{"$f":"Import!I6935","v":"Select"},{"$f":"Import!I7335","v":"Select"},{"$f":"Import!I7735","v":"Select"},{"$f":"Import!I8135","v":0},{"$f":"Import!I8535","v":0},{"$f":"Import!I8935","v":0},{"$f":"Import!I9335","v":0},{"$f":"Import!I9735","v":0}]
[89,{"$f":"Import!I6936","v":"Select"},{"$f":"Import!I7336","v":"Select"},{"$f":"Import!I7736","v":"Select"},{"$f":"Import!I8136","v":0},{"$f":"Import!I8536","v":0},{"$f":"Import!I8936","v":0},{"$f":"Import!I9336","v":0},{"$f":"Import!I9736","v":0}]
[90,{"$f":"Import!I6937","v":"Select"},{"$f":"Import!I7337","v":"Select"},{"$f":"Import!I7737","v":"Select"},{"$f":"Import!I8137","v":0},{"$f":"Import!I8537","v":0},{"$f":"Import!I8937","v":0},{"$f":"Import!I9337","v":0},{"$f":"Import!I9737","v":0}]
[91,{"$f":"Import!I6938","v":"Select"},{"$f":"Import!I7338","v":"Select"},{"$f":"Import!I7738","v":"Select"},{"$f":"Import!I8138","v":0},{"$f":"Import!I8538","v":0},{"$f":"Import!I8938","v":0},{"$f":"Import!I9338","v":0},{"$f":"Import!I9738","v":0}]
[92,{"$f":"Import!I6939","v":"Select"},{"$f":"Import!I7339","v":"Select"},{"$f":"Import!I7739","v":"Select"},{"$f":"Import!I8139","v":0},{"$f":"Import!I8539","v":0},{"$f":"Import!I8939","v":0},{"$f":"Import!I9339","v":0},{"$f":"Import!I9739","v":0}]
[93,{"$f":"Import!I6940","v":"Select"},{"$f":"Import!I7340","v":"Select"},{"$f":"Import!I7740","v":"Select"},{"$f":"Import!I8140","v":0},{"$f":"Import!I8540","v":0},{"$f":"Import!I8940","v":0},{"$f":"Import!I9340","v":0},{"$f":"Import!I9740","v":0}]
[94,{"$f":"Import!I6941","v":"Select"},{"$f":"Import!I7341","v":"Select"},{"$f":"Import!I7741","v":"Select"},{"$f":"Import!I8141","v":0},{"$f":"Import!I8541","v":0},{"$f":"Import!I8941","v":0},{"$f":"Import!I9341","v":0},{"$f":"Import!I9741","v":0}]
[95,{"$f":"Import!I6942","v":"Select"},{"$f":"Import!I7342","v":"Select"},{"$f":"Import!I7742","v":"Select"},{"$f":"Import!I8142","v":0},{"$f":"Import!I8542","v":0},{"$f":"Import!I8942","v":0},{"$f":"Import!I9342","v":0},{"$f":"Import!I9742","v":0}]
[96,{"$f":"Import!I6943","v":"Select"},{"$f":"Import!I7343","v":"Select"},{"$f":"Import!I7743","v":"Select"},{"$f":"Import!I8143","v":0},{"$f":"Import!I8543","v":0},{"$f":"Import!I8943","v":0},{"$f":"Import!I9343","v":0},{"$f":"Import!I9743","v":0}]
[97,{"$f":"Import!I6944","v":"Select"},{"$f":"Import!I7344","v":"Select"},{"$f":"Import!I7744","v":"Select"},{"$f":"Import!I8144","v":0},{"$f":"Import!I8544","v":0},{"$f":"Import!I8944","v":0},{"$f":"Import!I9344","v":0},{"$f":"Import!I9744","v":0}]
[98,{"$f":"Import!I6945","v":"Select"},{"$f":"Import!I7345","v":"Select"},{"$f":"Import!I7745","v":"Select"},{"$f":"Import!I8145","v":0},{"$f":"Import!I8545","v":0},{"$f":"Import!I8945","v":0},{"$f":"Import!I9345","v":0},{"$f":"Import!I9745","v":0}]
[99,{"$f":"Import!I6946","v":"Select"},{"$f":"Import!I7346","v":"Select"},{"$f":"Import!I7746","v":"Select"},{"$f":"Import!I8146","v":0},{"$f":"Import!I8546","v":0},{"$f":"Import!I8946","v":0},{"$f":"Import!I9346","v":0},{"$f":"Import!I9746","v":0}]
[100,{"$f":"Import!I6947","v":"Select"},{"$f":"Import!I7347","v":"Select"},{"$f":"Import!I7747","v":"Select"},{"$f":"Import!I8147","v":0},{"$f":"Import!I8547","v":0},{"$f":"Import!I8947","v":0},{"$f":"Import!I9347","v":0},{"$f":"Import!I9747","v":0}]
[101,{"$f":"Import!I6948","v":"Select"},{"$f":"Import!I7348","v":"Select"},{"$f":"Import!I7748","v":"Select"},{"$f":"Import!I8148","v":0},{"$f":"Import!I8548","v":0},{"$f":"Import!I8948","v":0},{"$f":"Import!I9348","v":0},{"$f":"Import!I9748","v":0}]
[102,{"$f":"Import!I6949","v":"Select"},{"$f":"Import!I7349","v":"Select"},{"$f":"Import!I7749","v":"Select"},{"$f":"Import!I8149","v":0},{"$f":"Import!I8549","v":0},{"$f":"Import!I8949","v":0},{"$f":"Import!I9349","v":0},{"$f":"Import!I9749","v":0}]
[103,{"$f":"Import!I6950","v":"Select"},{"$f":"Import!I7350","v":"Select"},{"$f":"Import!I7750","v":"Select"},{"$f":"Import!I8150","v":0},{"$f":"Import!I8550","v":0},{"$f":"Import!I8950","v":0},{"$f":"Import!I9350","v":0},{"$f":"Import!I9750","v":0}]
[104,{"$f":"Import!I6951","v":"Select"},{"$f":"Import!I7351","v":"Select"},{"$f":"Import!I7751","v":"Select"},{"$f":"Import!I8151","v":0},{"$f":"Import!I8551","v":0},{"$f":"Import!I8951","v":0},{"$f":"Import!I9351","v":0},{"$f":"Import!I9751","v":0}]
[105,{"$f":"Import!I6952","v":"Select"},{"$f":"Import!I7352","v":"Select"},{"$f":"Import!I7752","v":"Select"},{"$f":"Import!I8152","v":0},{"$f":"Import!I8552","v":0},{"$f":"Import!I8952","v":0},{"$f":"Import!I9352","v":0},{"$f":"Import!I9752","v":0}]
[106,{"$f":"Import!I6953","v":"Select"},{"$f":"Import!I7353","v":"Select"},{"$f":"Import!I7753","v":"Select"},{"$f":"Import!I8153","v":0},{"$f":"Import!I8553","v":0},{"$f":"Import!I8953","v":0},{"$f":"Import!I9353","v":0},{"$f":"Import!I9753","v":0}]
[107,{"$f":"Import!I6954","v":"Select"},{"$f":"Import!I7354","v":"Select"},{"$f":"Import!I7754","v":"Select"},{"$f":"Import!I8154","v":0},{"$f":"Import!I8554","v":0},{"$f":"Import!I8954","v":0},{"$f":"Import!I9354","v":0},{"$f":"Import!I9754","v":0}]
[108,{"$f":"Import!I6955","v":"Select"},{"$f":"Import!I7355","v":"Select"},{"$f":"Import!I7755","v":"Select"},{"$f":"Import!I8155","v":0},{"$f":"Import!I8555","v":0},{"$f":"Import!I8955","v":0},{"$f":"Import!I9355","v":0},{"$f":"Import!I9755","v":0}]
[109,{"$f":"Import!I6956","v":"Select"},{"$f":"Import!I7356","v":"Select"},{"$f":"Import!I7756","v":"Select"},{"$f":"Import!I8156","v":0},{"$f":"Import!I8556","v":0},{"$f":"Import!I8956","v":0},{"$f":"Import!I9356","v":0},{"$f":"Import!I9756","v":0}]
[110,{"$f":"Import!I6957","v":"Select"},{"$f":"Import!I7357","v":"Select"},{"$f":"Import!I7757","v":"Select"},{"$f":"Import!I8157","v":0},{"$f":"Import!I8557","v":0},{"$f":"Import!I8957","v":0},{"$f":"Import!I9357","v":0},{"$f":"Import!I9757","v":0}]
[111,{"$f":"Import!I6958","v":"Select"},{"$f":"Import!I7358","v":"Select"},{"$f":"Import!I7758","v":"Select"},{"$f":"Import!I8158","v":0},{"$f":"Import!I8558","v":0},{"$f":"Import!I8958","v":0},{"$f":"Import!I9358","v":0},{"$f":"Import!I9758","v":0}]
[112,{"$f":"Import!I6959","v":"Select"},{"$f":"Import!I7359","v":"Select"},{"$f":"Import!I7759","v":"Select"},{"$f":"Import!I8159","v":0},{"$f":"Import!I8559","v":0},{"$f":"Import!I8959","v":0},{"$f":"Import!I9359","v":0},{"$f":"Import!I9759","v":0}]
[113,{"$f":"Import!I6960","v":"Select"},{"$f":"Import!I7360","v":"Select"},{"$f":"Import!I7760","v":"Select"},{"$f":"Import!I8160","v":0},{"$f":"Import!I8560","v":0},{"$f":"Import!I8960","v":0},{"$f":"Import!I9360","v":0},{"$f":"Import!I9760","v":0}]
[114,{"$f":"Import!I6961","v":"Select"},{"$f":"Import!I7361","v":"Select"},{"$f":"Import!I7761","v":"Select"},{"$f":"Import!I8161","v":0},{"$f":"Import!I8561","v":0},{"$f":"Import!I8961","v":0},{"$f":"Import!I9361","v":0},{"$f":"Import!I9761","v":0}]
[115,{"$f":"Import!I6962","v":"Select"},{"$f":"Import!I7362","v":"Select"},{"$f":"Import!I7762","v":"Select"},{"$f":"Import!I8162","v":0},{"$f":"Import!I8562","v":0},{"$f":"Import!I8962","v":0},{"$f":"Import!I9362","v":0},{"$f":"Import!I9762","v":0}]
[116,{"$f":"Import!I6963","v":"Select"},{"$f":"Import!I7363","v":"Select"},{"$f":"Import!I7763","v":"Select"},{"$f":"Import!I8163","v":0},{"$f":"Import!I8563","v":0},{"$f":"Import!I8963","v":0},{"$f":"Import!I9363","v":0},{"$f":"Import!I9763","v":0}]
[117,{"$f":"Import!I6964","v":"Select"},{"$f":"Import!I7364","v":"Select"},{"$f":"Import!I7764","v":"Select"},{"$f":"Import!I8164","v":0},{"$f":"Import!I8564","v":0},{"$f":"Import!I8964","v":0},{"$f":"Import!I9364","v":0},{"$f":"Import!I9764","v":0}]
[118,{"$f":"Import!I6965","v":"Select"},{"$f":"Import!I7365","v":"Select"},{"$f":"Import!I7765","v":"Select"},{"$f":"Import!I8165","v":0},{"$f":"Import!I8565","v":0},{"$f":"Import!I8965","v":0},{"$f":"Import!I9365","v":0},{"$f":"Import!I9765","v":0}]
[119,{"$f":"Import!I6966","v":"Select"},{"$f":"Import!I7366","v":"Select"},{"$f":"Import!I7766","v":"Select"},{"$f":"Import!I8166","v":0},{"$f":"Import!I8566","v":0},{"$f":"Import!I8966","v":0},{"$f":"Import!I9366","v":0},{"$f":"Import!I9766","v":0}]
[120,{"$f":"Import!I6967","v":"Select"},{"$f":"Import!I7367","v":"Select"},{"$f":"Import!I7767","v":"Select"},{"$f":"Import!I8167","v":0},{"$f":"Import!I8567","v":0},{"$f":"Import!I8967","v":0},{"$f":"Import!I9367","v":0},{"$f":"Import!I9767","v":0}]
[121,{"$f":"Import!I6968","v":"Select"},{"$f":"Import!I7368","v":"Select"},{"$f":"Import!I7768","v":"Select"},{"$f":"Import!I8168","v":0},{"$f":"Import!I8568","v":0},{"$f":"Import!I8968","v":0},{"$f":"Import!I9368","v":0},{"$f":"Import!I9768","v":0}]
[122,{"$f":"Import!I6969","v":"Select"},{"$f":"Import!I7369","v":"Select"},{"$f":"Import!I7769","v":"Select"},{"$f":"Import!I8169","v":0},{"$f":"Import!I8569","v":0},{"$f":"Import!I8969","v":0},{"$f":"Import!I9369","v":0},{"$f":"Import!I9769","v":0}]
[123,{"$f":"Import!I6970","v":"Select"},{"$f":"Import!I7370","v":"Select"},{"$f":"Import!I7770","v":"Select"},{"$f":"Import!I8170","v":0},{"$f":"Import!I8570","v":0},{"$f":"Import!I8970","v":0},{"$f":"Import!I9370","v":0},{"$f":"Import!I9770","v":0}]
[124,{"$f":"Import!I6971","v":"Select"},{"$f":"Import!I7371","v":"Select"},{"$f":"Import!I7771","v":"Select"},{"$f":"Import!I8171","v":0},{"$f":"Import!I8571","v":0},{"$f":"Import!I8971","v":0},{"$f":"Import!I9371","v":0},{"$f":"Import!I9771","v":0}]
[125,{"$f":"Import!I6972","v":"Select"},{"$f":"Import!I7372","v":"Select"},{"$f":"Import!I7772","v":"Select"},{"$f":"Import!I8172","v":0},{"$f":"Import!I8572","v":0},{"$f":"Import!I8972","v":0},{"$f":"Import!I9372","v":0},{"$f":"Import!I9772","v":0}]
[126,{"$f":"Import!I6973","v":"Select"},{"$f":"Import!I7373","v":"Select"},{"$f":"Import!I7773","v":"Select"},{"$f":"Import!I8173","v":0},{"$f":"Import!I8573","v":0},{"$f":"Import!I8973","v":0},{"$f":"Import!I9373","v":0},{"$f":"Import!I9773","v":0}]
[127,{"$f":"Import!I6974","v":"Select"},{"$f":"Import!I7374","v":"Select"},{"$f":"Import!I7774","v":"Select"},{"$f":"Import!I8174","v":0},{"$f":"Import!I8574","v":0},{"$f":"Import!I8974","v":0},{"$f":"Import!I9374","v":0},{"$f":"Import!I9774","v":0}]
[128,{"$f":"Import!I6975","v":"Select"},{"$f":"Import!I7375","v":"Select"},{"$f":"Import!I7775","v":"Select"},{"$f":"Import!I8175","v":0},{"$f":"Import!I8575","v":0},{"$f":"Import!I8975","v":0},{"$f":"Import!I9375","v":0},{"$f":"Import!I9775","v":0}]
[129,{"$f":"Import!I6976","v":"Select"},{"$f":"Import!I7376","v":"Select"},{"$f":"Import!I7776","v":"Select"},{"$f":"Import!I8176","v":0},{"$f":"Import!I8576","v":0},{"$f":"Import!I8976","v":0},{"$f":"Import!I9376","v":0},{"$f":"Import!I9776","v":0}]
[130,{"$f":"Import!I6977","v":"Select"},{"$f":"Import!I7377","v":"Select"},{"$f":"Import!I7777","v":"Select"},{"$f":"Import!I8177","v":0},{"$f":"Import!I8577","v":0},{"$f":"Import!I8977","v":0},{"$f":"Import!I9377","v":0},{"$f":"Import!I9777","v":0}]
[{"$f":"A348+1","v":131},{"$f":"Import!I6978","v":"Select"},{"$f":"Import!I7378","v":"Select"},{"$f":"Import!I7778","v":"Select"},{"$f":"Import!I8178","v":0},{"$f":"Import!I8578","v":0},{"$f":"Import!I8978","v":0},{"$f":"Import!I9378","v":0},{"$f":"Import!I9778","v":0}]
[132,{"$f":"Import!I6979","v":"Select"},{"$f":"Import!I7379","v":"Select"},{"$f":"Import!I7779","v":"Select"},{"$f":"Import!I8179","v":0},{"$f":"Import!I8579","v":0},{"$f":"Import!I8979","v":0},{"$f":"Import!I9379","v":0},{"$f":"Import!I9779","v":0}]
[133,{"$f":"Import!I6980","v":"Select"},{"$f":"Import!I7380","v":"Select"},{"$f":"Import!I7780","v":"Select"},{"$f":"Import!I8180","v":0},{"$f":"Import!I8580","v":0},{"$f":"Import!I8980","v":0},{"$f":"Import!I9380","v":0},{"$f":"Import!I9780","v":0}]
[134,{"$f":"Import!I6981","v":"Select"},{"$f":"Import!I7381","v":"Select"},{"$f":"Import!I7781","v":"Select"},{"$f":"Import!I8181","v":0},{"$f":"Import!I8581","v":0},{"$f":"Import!I8981","v":0},{"$f":"Import!I9381","v":0},{"$f":"Import!I9781","v":0}]
[135,{"$f":"Import!I6982","v":"Select"},{"$f":"Import!I7382","v":"Select"},{"$f":"Import!I7782","v":"Select"},{"$f":"Import!I8182","v":0},{"$f":"Import!I8582","v":0},{"$f":"Import!I8982","v":0},{"$f":"Import!I9382","v":0},{"$f":"Import!I9782","v":0}]
[136,{"$f":"Import!I6983","v":"Select"},{"$f":"Import!I7383","v":"Select"},{"$f":"Import!I7783","v":"Select"},{"$f":"Import!I8183","v":0},{"$f":"Import!I8583","v":0},{"$f":"Import!I8983","v":0},{"$f":"Import!I9383","v":0},{"$f":"Import!I9783","v":0}]
[137,{"$f":"Import!I6984","v":"Select"},{"$f":"Import!I7384","v":"Select"},{"$f":"Import!I7784","v":"Select"},{"$f":"Import!I8184","v":0},{"$f":"Import!I8584","v":0},{"$f":"Import!I8984","v":0},{"$f":"Import!I9384","v":0},{"$f":"Import!I9784","v":0}]
[138,{"$f":"Import!I6985","v":"Select"},{"$f":"Import!I7385","v":"Select"},{"$f":"Import!I7785","v":"Select"},{"$f":"Import!I8185","v":0},{"$f":"Import!I8585","v":0},{"$f":"Import!I8985","v":0},{"$f":"Import!I9385","v":0},{"$f":"Import!I9785","v":0}]
[139,{"$f":"Import!I6986","v":"Select"},{"$f":"Import!I7386","v":"Select"},{"$f":"Import!I7786","v":"Select"},{"$f":"Import!I8186","v":0},{"$f":"Import!I8586","v":0},{"$f":"Import!I8986","v":0},{"$f":"Import!I9386","v":0},{"$f":"Import!I9786","v":0}]
[140,{"$f":"Import!I6987","v":"Select"},{"$f":"Import!I7387","v":"Select"},{"$f":"Import!I7787","v":"Select"},{"$f":"Import!I8187","v":0},{"$f":"Import!I8587","v":0},{"$f":"Import!I8987","v":0},{"$f":"Import!I9387","v":0},{"$f":"Import!I9787","v":0}]
[141,{"$f":"Import!I6988","v":"Select"},{"$f":"Import!I7388","v":"Select"},{"$f":"Import!I7788","v":"Select"},{"$f":"Import!I8188","v":0},{"$f":"Import!I8588","v":0},{"$f":"Import!I8988","v":0},{"$f":"Import!I9388","v":0},{"$f":"Import!I9788","v":0}]
[142,{"$f":"Import!I6989","v":"Select"},{"$f":"Import!I7389","v":"Select"},{"$f":"Import!I7789","v":"Select"},{"$f":"Import!I8189","v":0},{"$f":"Import!I8589","v":0},{"$f":"Import!I8989","v":0},{"$f":"Import!I9389","v":0},{"$f":"Import!I9789","v":0}]
[143,{"$f":"Import!I6990","v":"Select"},{"$f":"Import!I7390","v":"Select"},{"$f":"Import!I7790","v":"Select"},{"$f":"Import!I8190","v":0},{"$f":"Import!I8590","v":0},{"$f":"Import!I8990","v":0},{"$f":"Import!I9390","v":0},{"$f":"Import!I9790","v":0}]
[144,{"$f":"Import!I6991","v":"Select"},{"$f":"Import!I7391","v":"Select"},{"$f":"Import!I7791","v":"Select"},{"$f":"Import!I8191","v":0},{"$f":"Import!I8591","v":0},{"$f":"Import!I8991","v":0},{"$f":"Import!I9391","v":0},{"$f":"Import!I9791","v":0}]
[145,{"$f":"Import!I6992","v":"Select"},{"$f":"Import!I7392","v":"Select"},{"$f":"Import!I7792","v":"Select"},{"$f":"Import!I8192","v":0},{"$f":"Import!I8592","v":0},{"$f":"Import!I8992","v":0},{"$f":"Import!I9392","v":0},{"$f":"Import!I9792","v":0}]
[146,{"$f":"Import!I6993","v":"Select"},{"$f":"Import!I7393","v":"Select"},{"$f":"Import!I7793","v":"Select"},{"$f":"Import!I8193","v":0},{"$f":"Import!I8593","v":0},{"$f":"Import!I8993","v":0},{"$f":"Import!I9393","v":0},{"$f":"Import!I9793","v":0}]
[147,{"$f":"Import!I6994","v":"Select"},{"$f":"Import!I7394","v":"Select"},{"$f":"Import!I7794","v":"Select"},{"$f":"Import!I8194","v":0},{"$f":"Import!I8594","v":0},{"$f":"Import!I8994","v":0},{"$f":"Import!I9394","v":0},{"$f":"Import!I9794","v":0}]
[148,{"$f":"Import!I6995","v":"Select"},{"$f":"Import!I7395","v":"Select"},{"$f":"Import!I7795","v":"Select"},{"$f":"Import!I8195","v":0},{"$f":"Import!I8595","v":0},{"$f":"Import!I8995","v":0},{"$f":"Import!I9395","v":0},{"$f":"Import!I9795","v":0}]
[149,{"$f":"Import!I6996","v":"Select"},{"$f":"Import!I7396","v":"Select"},{"$f":"Import!I7796","v":"Select"},{"$f":"Import!I8196","v":0},{"$f":"Import!I8596","v":0},{"$f":"Import!I8996","v":0},{"$f":"Import!I9396","v":0},{"$f":"Import!I9796","v":0}]
[150,{"$f":"Import!I6997","v":"Select"},{"$f":"Import!I7397","v":"Select"},{"$f":"Import!I7797","v":"Select"},{"$f":"Import!I8197","v":0},{"$f":"Import!I8597","v":0},{"$f":"Import!I8997","v":0},{"$f":"Import!I9397","v":0},{"$f":"Import!I9797","v":0}]
[151,{"$f":"Import!I6998","v":"Select"},{"$f":"Import!I7398","v":"Select"},{"$f":"Import!I7798","v":"Select"},{"$f":"Import!I8198","v":0},{"$f":"Import!I8598","v":0},{"$f":"Import!I8998","v":0},{"$f":"Import!I9398","v":0},{"$f":"Import!I9798","v":0}]
[152,{"$f":"Import!I6999","v":"Select"},{"$f":"Import!I7399","v":"Select"},{"$f":"Import!I7799","v":"Select"},{"$f":"Import!I8199","v":0},{"$f":"Import!I8599","v":0},{"$f":"Import!I8999","v":0},{"$f":"Import!I9399","v":0},{"$f":"Import!I9799","v":0}]
[153,{"$f":"Import!I7000","v":"Select"},{"$f":"Import!I7400","v":"Select"},{"$f":"Import!I7800","v":"Select"},{"$f":"Import!I8200","v":0},{"$f":"Import!I8600","v":0},{"$f":"Import!I9000","v":0},{"$f":"Import!I9400","v":0},{"$f":"Import!I9800","v":0}]
[154,{"$f":"Import!I7001","v":"Select"},{"$f":"Import!I7401","v":"Select"},{"$f":"Import!I7801","v":"Select"},{"$f":"Import!I8201","v":0},{"$f":"Import!I8601","v":0},{"$f":"Import!I9001","v":0},{"$f":"Import!I9401","v":0},{"$f":"Import!I9801","v":0}]
[155,{"$f":"Import!I7002","v":"Select"},{"$f":"Import!I7402","v":"Select"},{"$f":"Import!I7802","v":"Select"},{"$f":"Import!I8202","v":0},{"$f":"Import!I8602","v":0},{"$f":"Import!I9002","v":0},{"$f":"Import!I9402","v":0},{"$f":"Import!I9802","v":0}]
[156,{"$f":"Import!I7003","v":"Select"},{"$f":"Import!I7403","v":"Select"},{"$f":"Import!I7803","v":"Select"},{"$f":"Import!I8203","v":0},{"$f":"Import!I8603","v":0},{"$f":"Import!I9003","v":0},{"$f":"Import!I9403","v":0},{"$f":"Import!I9803","v":0}]
[157,{"$f":"Import!I7004","v":"Select"},{"$f":"Import!I7404","v":"Select"},{"$f":"Import!I7804","v":"Select"},{"$f":"Import!I8204","v":0},{"$f":"Import!I8604","v":0},{"$f":"Import!I9004","v":0},{"$f":"Import!I9404","v":0},{"$f":"Import!I9804","v":0}]
[158,{"$f":"Import!I7005","v":"Select"},{"$f":"Import!I7405","v":"Select"},{"$f":"Import!I7805","v":"Select"},{"$f":"Import!I8205","v":0},{"$f":"Import!I8605","v":0},{"$f":"Import!I9005","v":0},{"$f":"Import!I9405","v":0},{"$f":"Import!I9805","v":0}]
[159,{"$f":"Import!I7006","v":"Select"},{"$f":"Import!I7406","v":"Select"},{"$f":"Import!I7806","v":"Select"},{"$f":"Import!I8206","v":0},{"$f":"Import!I8606","v":0},{"$f":"Import!I9006","v":0},{"$f":"Import!I9406","v":0},{"$f":"Import!I9806","v":0}]
[160,{"$f":"Import!I7007","v":"Select"},{"$f":"Import!I7407","v":"Select"},{"$f":"Import!I7807","v":"Select"},{"$f":"Import!I8207","v":0},{"$f":"Import!I8607","v":0},{"$f":"Import!I9007","v":0},{"$f":"Import!I9407","v":0},{"$f":"Import!I9807","v":0}]
[161,{"$f":"Import!I7008","v":"Select"},{"$f":"Import!I7408","v":"Select"},{"$f":"Import!I7808","v":"Select"},{"$f":"Import!I8208","v":0},{"$f":"Import!I8608","v":0},{"$f":"Import!I9008","v":0},{"$f":"Import!I9408","v":0},{"$f":"Import!I9808","v":0}]
[162,{"$f":"Import!I7009","v":"Select"},{"$f":"Import!I7409","v":"Select"},{"$f":"Import!I7809","v":"Select"},{"$f":"Import!I8209","v":0},{"$f":"Import!I8609","v":0},{"$f":"Import!I9009","v":0},{"$f":"Import!I9409","v":0},{"$f":"Import!I9809","v":0}]
[163,{"$f":"Import!I7010","v":"Select"},{"$f":"Import!I7410","v":"Select"},{"$f":"Import!I7810","v":"Select"},{"$f":"Import!I8210","v":0},{"$f":"Import!I8610","v":0},{"$f":"Import!I9010","v":0},{"$f":"Import!I9410","v":0},{"$f":"Import!I9810","v":0}]
[164,{"$f":"Import!I7011","v":"Select"},{"$f":"Import!I7411","v":"Select"},{"$f":"Import!I7811","v":"Select"},{"$f":"Import!I8211","v":0},{"$f":"Import!I8611","v":0},{"$f":"Import!I9011","v":0},{"$f":"Import!I9411","v":0},{"$f":"Import!I9811","v":0}]
[165,{"$f":"Import!I7012","v":"Select"},{"$f":"Import!I7412","v":"Select"},{"$f":"Import!I7812","v":"Select"},{"$f":"Import!I8212","v":0},{"$f":"Import!I8612","v":0},{"$f":"Import!I9012","v":0},{"$f":"Import!I9412","v":0},{"$f":"Import!I9812","v":0}]
[166,{"$f":"Import!I7013","v":"Select"},{"$f":"Import!I7413","v":"Select"},{"$f":"Import!I7813","v":"Select"},{"$f":"Import!I8213","v":0},{"$f":"Import!I8613","v":0},{"$f":"Import!I9013","v":0},{"$f":"Import!I9413","v":0},{"$f":"Import!I9813","v":0}]
[167,{"$f":"Import!I7014","v":"Select"},{"$f":"Import!I7414","v":"Select"},{"$f":"Import!I7814","v":"Select"},{"$f":"Import!I8214","v":0},{"$f":"Import!I8614","v":0},{"$f":"Import!I9014","v":0},{"$f":"Import!I9414","v":0},{"$f":"Import!I9814","v":0}]
[168,{"$f":"Import!I7015","v":"Select"},{"$f":"Import!I7415","v":"Select"},{"$f":"Import!I7815","v":"Select"},{"$f":"Import!I8215","v":0},{"$f":"Import!I8615","v":0},{"$f":"Import!I9015","v":0},{"$f":"Import!I9415","v":0},{"$f":"Import!I9815","v":0}]
[169,{"$f":"Import!I7016","v":"Select"},{"$f":"Import!I7416","v":"Select"},{"$f":"Import!I7816","v":"Select"},{"$f":"Import!I8216","v":0},{"$f":"Import!I8616","v":0},{"$f":"Import!I9016","v":0},{"$f":"Import!I9416","v":0},{"$f":"Import!I9816","v":0}]
[170,{"$f":"Import!I7017","v":"Select"},{"$f":"Import!I7417","v":"Select"},{"$f":"Import!I7817","v":"Select"},{"$f":"Import!I8217","v":0},{"$f":"Import!I8617","v":0},{"$f":"Import!I9017","v":0},{"$f":"Import!I9417","v":0},{"$f":"Import!I9817","v":0}]
[171,{"$f":"Import!I7018","v":"Select"},{"$f":"Import!I7418","v":"Select"},{"$f":"Import!I7818","v":"Select"},{"$f":"Import!I8218","v":0},{"$f":"Import!I8618","v":0},{"$f":"Import!I9018","v":0},{"$f":"Import!I9418","v":0},{"$f":"Import!I9818","v":0}]
[172,{"$f":"Import!I7019","v":"Select"},{"$f":"Import!I7419","v":"Select"},{"$f":"Import!I7819","v":"Select"},{"$f":"Import!I8219","v":0},{"$f":"Import!I8619","v":0},{"$f":"Import!I9019","v":0},{"$f":"Import!I9419","v":0},{"$f":"Import!I9819","v":0}]
[173,{"$f":"Import!I7020","v":"Select"},{"$f":"Import!I7420","v":"Select"},{"$f":"Import!I7820","v":"Select"},{"$f":"Import!I8220","v":0},{"$f":"Import!I8620","v":0},{"$f":"Import!I9020","v":0},{"$f":"Import!I9420","v":0},{"$f":"Import!I9820","v":0}]
[174,{"$f":"Import!I7021","v":"Select"},{"$f":"Import!I7421","v":"Select"},{"$f":"Import!I7821","v":"Select"},{"$f":"Import!I8221","v":0},{"$f":"Import!I8621","v":0},{"$f":"Import!I9021","v":0},{"$f":"Import!I9421","v":0},{"$f":"Import!I9821","v":0}]
[175,{"$f":"Import!I7022","v":"Select"},{"$f":"Import!I7422","v":"Select"},{"$f":"Import!I7822","v":"Select"},{"$f":"Import!I8222","v":0},{"$f":"Import!I8622","v":0},{"$f":"Import!I9022","v":0},{"$f":"Import!I9422","v":0},{"$f":"Import!I9822","v":0}]
[176,{"$f":"Import!I7023","v":"Select"},{"$f":"Import!I7423","v":"Select"},{"$f":"Import!I7823","v":"Select"},{"$f":"Import!I8223","v":0},{"$f":"Import!I8623","v":0},{"$f":"Import!I9023","v":0},{"$f":"Import!I9423","v":0},{"$f":"Import!I9823","v":0}]
[177,{"$f":"Import!I7024","v":"Select"},{"$f":"Import!I7424","v":"Select"},{"$f":"Import!I7824","v":"Select"},{"$f":"Import!I8224","v":0},{"$f":"Import!I8624","v":0},{"$f":"Import!I9024","v":0},{"$f":"Import!I9424","v":0},{"$f":"Import!I9824","v":0}]
[178,{"$f":"Import!I7025","v":"Select"},{"$f":"Import!I7425","v":"Select"},{"$f":"Import!I7825","v":"Select"},{"$f":"Import!I8225","v":0},{"$f":"Import!I8625","v":0},{"$f":"Import!I9025","v":0},{"$f":"Import!I9425","v":0},{"$f":"Import!I9825","v":0}]
[179,{"$f":"Import!I7026","v":"Select"},{"$f":"Import!I7426","v":"Select"},{"$f":"Import!I7826","v":"Select"},{"$f":"Import!I8226","v":0},{"$f":"Import!I8626","v":0},{"$f":"Import!I9026","v":0},{"$f":"Import!I9426","v":0},{"$f":"Import!I9826","v":0}]
[180,{"$f":"Import!I7027","v":"Select"},{"$f":"Import!I7427","v":"Select"},{"$f":"Import!I7827","v":"Select"},{"$f":"Import!I8227","v":0},{"$f":"Import!I8627","v":0},{"$f":"Import!I9027","v":0},{"$f":"Import!I9427","v":0},{"$f":"Import!I9827","v":0}]
[181,{"$f":"Import!I7028","v":"Select"},{"$f":"Import!I7428","v":"Select"},{"$f":"Import!I7828","v":"Select"},{"$f":"Import!I8228","v":0},{"$f":"Import!I8628","v":0},{"$f":"Import!I9028","v":0},{"$f":"Import!I9428","v":0},{"$f":"Import!I9828","v":0}]
[182,{"$f":"Import!I7029","v":"Select"},{"$f":"Import!I7429","v":"Select"},{"$f":"Import!I7829","v":"Select"},{"$f":"Import!I8229","v":0},{"$f":"Import!I8629","v":0},{"$f":"Import!I9029","v":0},{"$f":"Import!I9429","v":0},{"$f":"Import!I9829","v":0}]
[183,{"$f":"Import!I7030","v":"Select"},{"$f":"Import!I7430","v":"Select"},{"$f":"Import!I7830","v":"Select"},{"$f":"Import!I8230","v":0},{"$f":"Import!I8630","v":0},{"$f":"Import!I9030","v":0},{"$f":"Import!I9430","v":0},{"$f":"Import!I9830","v":0}]
[184,{"$f":"Import!I7031","v":"Select"},{"$f":"Import!I7431","v":"Select"},{"$f":"Import!I7831","v":"Select"},{"$f":"Import!I8231","v":0},{"$f":"Import!I8631","v":0},{"$f":"Import!I9031","v":0},{"$f":"Import!I9431","v":0},{"$f":"Import!I9831","v":0}]
[185,{"$f":"Import!I7032","v":"Select"},{"$f":"Import!I7432","v":"Select"},{"$f":"Import!I7832","v":"Select"},{"$f":"Import!I8232","v":0},{"$f":"Import!I8632","v":0},{"$f":"Import!I9032","v":0},{"$f":"Import!I9432","v":0},{"$f":"Import!I9832","v":0}]
[186,{"$f":"Import!I7033","v":"Select"},{"$f":"Import!I7433","v":"Select"},{"$f":"Import!I7833","v":"Select"},{"$f":"Import!I8233","v":0},{"$f":"Import!I8633","v":0},{"$f":"Import!I9033","v":0},{"$f":"Import!I9433","v":0},{"$f":"Import!I9833","v":0}]
[187,{"$f":"Import!I7034","v":"Select"},{"$f":"Import!I7434","v":"Select"},{"$f":"Import!I7834","v":"Select"},{"$f":"Import!I8234","v":0},{"$f":"Import!I8634","v":0},{"$f":"Import!I9034","v":0},{"$f":"Import!I9434","v":0},{"$f":"Import!I9834","v":0}]
[188,{"$f":"Import!I7035","v":"Select"},{"$f":"Import!I7435","v":"Select"},{"$f":"Import!I7835","v":"Select"},{"$f":"Import!I8235","v":0},{"$f":"Import!I8635","v":0},{"$f":"Import!I9035","v":0},{"$f":"Import!I9435","v":0},{"$f":"Import!I9835","v":0}]
[189,{"$f":"Import!I7036","v":"Select"},{"$f":"Import!I7436","v":"Select"},{"$f":"Import!I7836","v":"Select"},{"$f":"Import!I8236","v":0},{"$f":"Import!I8636","v":0},{"$f":"Import!I9036","v":0},{"$f":"Import!I9436","v":0},{"$f":"Import!I9836","v":0}]
[190,{"$f":"Import!I7037","v":"Select"},{"$f":"Import!I7437","v":"Select"},{"$f":"Import!I7837","v":"Select"},{"$f":"Import!I8237","v":0},{"$f":"Import!I8637","v":0},{"$f":"Import!I9037","v":0},{"$f":"Import!I9437","v":0},{"$f":"Import!I9837","v":0}]
[191,{"$f":"Import!I7038","v":"Select"},{"$f":"Import!I7438","v":"Select"},{"$f":"Import!I7838","v":"Select"},{"$f":"Import!I8238","v":0},{"$f":"Import!I8638","v":0},{"$f":"Import!I9038","v":0},{"$f":"Import!I9438","v":0},{"$f":"Import!I9838","v":0}]
[192,{"$f":"Import!I7039","v":"Select"},{"$f":"Import!I7439","v":"Select"},{"$f":"Import!I7839","v":"Select"},{"$f":"Import!I8239","v":0},{"$f":"Import!I8639","v":0},{"$f":"Import!I9039","v":0},{"$f":"Import!I9439","v":0},{"$f":"Import!I9839","v":0}]
[193,{"$f":"Import!I7040","v":"Select"},{"$f":"Import!I7440","v":"Select"},{"$f":"Import!I7840","v":"Select"},{"$f":"Import!I8240","v":0},{"$f":"Import!I8640","v":0},{"$f":"Import!I9040","v":0},{"$f":"Import!I9440","v":0},{"$f":"Import!I9840","v":0}]
[194,{"$f":"Import!I7041","v":"Select"},{"$f":"Import!I7441","v":"Select"},{"$f":"Import!I7841","v":"Select"},{"$f":"Import!I8241","v":0},{"$f":"Import!I8641","v":0},{"$f":"Import!I9041","v":0},{"$f":"Import!I9441","v":0},{"$f":"Import!I9841","v":0}]
[{"$f":"A412+1","v":195},{"$f":"Import!I7042","v":"Select"},{"$f":"Import!I7442","v":"Select"},{"$f":"Import!I7842","v":"Select"},{"$f":"Import!I8242","v":0},{"$f":"Import!I8642","v":0},{"$f":"Import!I9042","v":0},{"$f":"Import!I9442","v":0},{"$f":"Import!I9842","v":0}]
[196,{"$f":"Import!I7043","v":"Select"},{"$f":"Import!I7443","v":"Select"},{"$f":"Import!I7843","v":"Select"},{"$f":"Import!I8243","v":0},{"$f":"Import!I8643","v":0},{"$f":"Import!I9043","v":0},{"$f":"Import!I9443","v":0},{"$f":"Import!I9843","v":0}]
[197,{"$f":"Import!I7044","v":"Select"},{"$f":"Import!I7444","v":"Select"},{"$f":"Import!I7844","v":"Select"},{"$f":"Import!I8244","v":0},{"$f":"Import!I8644","v":0},{"$f":"Import!I9044","v":0},{"$f":"Import!I9444","v":0},{"$f":"Import!I9844","v":0}]
[198,{"$f":"Import!I7045","v":"Select"},{"$f":"Import!I7445","v":"Select"},{"$f":"Import!I7845","v":"Select"},{"$f":"Import!I8245","v":0},{"$f":"Import!I8645","v":0},{"$f":"Import!I9045","v":0},{"$f":"Import!I9445","v":0},{"$f":"Import!I9845","v":0}]
[199,{"$f":"Import!I7046","v":"Select"},{"$f":"Import!I7446","v":"Select"},{"$f":"Import!I7846","v":"Select"},{"$f":"Import!I8246","v":0},{"$f":"Import!I8646","v":0},{"$f":"Import!I9046","v":0},{"$f":"Import!I9446","v":0},{"$f":"Import!I9846","v":0}]
[200,{"$f":"Import!I7047","v":"Select"},{"$f":"Import!I7447","v":"Select"},{"$f":"Import!I7847","v":"Select"},{"$f":"Import!I8247","v":0},{"$f":"Import!I8647","v":0},{"$f":"Import!I9047","v":0},{"$f":"Import!I9447","v":0},{"$f":"Import!I9847","v":0}]
[201,{"$f":"Import!I7048","v":"Select"},{"$f":"Import!I7448","v":"Select"},{"$f":"Import!I7848","v":"Select"},{"$f":"Import!I8248","v":0},{"$f":"Import!I8648","v":0},{"$f":"Import!I9048","v":0},{"$f":"Import!I9448","v":0},{"$f":"Import!I9848","v":0}]
[202,{"$f":"Import!I7049","v":"Select"},{"$f":"Import!I7449","v":"Select"},{"$f":"Import!I7849","v":"Select"},{"$f":"Import!I8249","v":0},{"$f":"Import!I8649","v":0},{"$f":"Import!I9049","v":0},{"$f":"Import!I9449","v":0},{"$f":"Import!I9849","v":0}]
[203,{"$f":"Import!I7050","v":"Select"},{"$f":"Import!I7450","v":"Select"},{"$f":"Import!I7850","v":"Select"},{"$f":"Import!I8250","v":0},{"$f":"Import!I8650","v":0},{"$f":"Import!I9050","v":0},{"$f":"Import!I9450","v":0},{"$f":"Import!I9850","v":0}]
[204,{"$f":"Import!I7051","v":"Select"},{"$f":"Import!I7451","v":"Select"},{"$f":"Import!I7851","v":"Select"},{"$f":"Import!I8251","v":0},{"$f":"Import!I8651","v":0},{"$f":"Import!I9051","v":0},{"$f":"Import!I9451","v":0},{"$f":"Import!I9851","v":0}]
[205,{"$f":"Import!I7052","v":"Select"},{"$f":"Import!I7452","v":"Select"},{"$f":"Import!I7852","v":"Select"},{"$f":"Import!I8252","v":0},{"$f":"Import!I8652","v":0},{"$f":"Import!I9052","v":0},{"$f":"Import!I9452","v":0},{"$f":"Import!I9852","v":0}]
[206,{"$f":"Import!I7053","v":"Select"},{"$f":"Import!I7453","v":"Select"},{"$f":"Import!I7853","v":"Select"},{"$f":"Import!I8253","v":0},{"$f":"Import!I8653","v":0},{"$f":"Import!I9053","v":0},{"$f":"Import!I9453","v":0},{"$f":"Import!I9853","v":0}]
[207,{"$f":"Import!I7054","v":"Select"},{"$f":"Import!I7454","v":"Select"},{"$f":"Import!I7854","v":"Select"},{"$f":"Import!I8254","v":0},{"$f":"Import!I8654","v":0},{"$f":"Import!I9054","v":0},{"$f":"Import!I9454","v":0},{"$f":"Import!I9854","v":0}]
[208,{"$f":"Import!I7055","v":"Select"},{"$f":"Import!I7455","v":"Select"},{"$f":"Import!I7855","v":"Select"},{"$f":"Import!I8255","v":0},{"$f":"Import!I8655","v":0},{"$f":"Import!I9055","v":0},{"$f":"Import!I9455","v":0},{"$f":"Import!I9855","v":0}]
[209,{"$f":"Import!I7056","v":"Select"},{"$f":"Import!I7456","v":"Select"},{"$f":"Import!I7856","v":"Select"},{"$f":"Import!I8256","v":0},{"$f":"Import!I8656","v":0},{"$f":"Import!I9056","v":0},{"$f":"Import!I9456","v":0},{"$f":"Import!I9856","v":0}]
[210,{"$f":"Import!I7057","v":"Select"},{"$f":"Import!I7457","v":"Select"},{"$f":"Import!I7857","v":"Select"},{"$f":"Import!I8257","v":0},{"$f":"Import!I8657","v":0},{"$f":"Import!I9057","v":0},{"$f":"Import!I9457","v":0},{"$f":"Import!I9857","v":0}]
[211,{"$f":"Import!I7058","v":"Select"},{"$f":"Import!I7458","v":"Select"},{"$f":"Import!I7858","v":"Select"},{"$f":"Import!I8258","v":0},{"$f":"Import!I8658","v":0},{"$f":"Import!I9058","v":0},{"$f":"Import!I9458","v":0},{"$f":"Import!I9858","v":0}]
[212,{"$f":"Import!I7059","v":"Select"},{"$f":"Import!I7459","v":"Select"},{"$f":"Import!I7859","v":"Select"},{"$f":"Import!I8259","v":0},{"$f":"Import!I8659","v":0},{"$f":"Import!I9059","v":0},{"$f":"Import!I9459","v":0},{"$f":"Import!I9859","v":0}]
[213,{"$f":"Import!I7060","v":"Select"},{"$f":"Import!I7460","v":"Select"},{"$f":"Import!I7860","v":"Select"},{"$f":"Import!I8260","v":0},{"$f":"Import!I8660","v":0},{"$f":"Import!I9060","v":0},{"$f":"Import!I9460","v":0},{"$f":"Import!I9860","v":0}]
[214,{"$f":"Import!I7061","v":"Select"},{"$f":"Import!I7461","v":"Select"},{"$f":"Import!I7861","v":"Select"},{"$f":"Import!I8261","v":0},{"$f":"Import!I8661","v":0},{"$f":"Import!I9061","v":0},{"$f":"Import!I9461","v":0},{"$f":"Import!I9861","v":0}]
[215,{"$f":"Import!I7062","v":"Select"},{"$f":"Import!I7462","v":"Select"},{"$f":"Import!I7862","v":"Select"},{"$f":"Import!I8262","v":0},{"$f":"Import!I8662","v":0},{"$f":"Import!I9062","v":0},{"$f":"Import!I9462","v":0},{"$f":"Import!I9862","v":0}]
[216,{"$f":"Import!I7063","v":"Select"},{"$f":"Import!I7463","v":"Select"},{"$f":"Import!I7863","v":"Select"},{"$f":"Import!I8263","v":0},{"$f":"Import!I8663","v":0},{"$f":"Import!I9063","v":0},{"$f":"Import!I9463","v":0},{"$f":"Import!I9863","v":0}]
[217,{"$f":"Import!I7064","v":"Select"},{"$f":"Import!I7464","v":"Select"},{"$f":"Import!I7864","v":"Select"},{"$f":"Import!I8264","v":0},{"$f":"Import!I8664","v":0},{"$f":"Import!I9064","v":0},{"$f":"Import!I9464","v":0},{"$f":"Import!I9864","v":0}]
[218,{"$f":"Import!I7065","v":"Select"},{"$f":"Import!I7465","v":"Select"},{"$f":"Import!I7865","v":"Select"},{"$f":"Import!I8265","v":0},{"$f":"Import!I8665","v":0},{"$f":"Import!I9065","v":0},{"$f":"Import!I9465","v":0},{"$f":"Import!I9865","v":0}]
[219,{"$f":"Import!I7066","v":"Select"},{"$f":"Import!I7466","v":"Select"},{"$f":"Import!I7866","v":"Select"},{"$f":"Import!I8266","v":0},{"$f":"Import!I8666","v":0},{"$f":"Import!I9066","v":0},{"$f":"Import!I9466","v":0},{"$f":"Import!I9866","v":0}]
[220,{"$f":"Import!I7067","v":"Select"},{"$f":"Import!I7467","v":"Select"},{"$f":"Import!I7867","v":"Select"},{"$f":"Import!I8267","v":0},{"$f":"Import!I8667","v":0},{"$f":"Import!I9067","v":0},{"$f":"Import!I9467","v":0},{"$f":"Import!I9867","v":0}]
[221,{"$f":"Import!I7068","v":"Select"},{"$f":"Import!I7468","v":"Select"},{"$f":"Import!I7868","v":"Select"},{"$f":"Import!I8268","v":0},{"$f":"Import!I8668","v":0},{"$f":"Import!I9068","v":0},{"$f":"Import!I9468","v":0},{"$f":"Import!I9868","v":0}]
[222,{"$f":"Import!I7069","v":"Select"},{"$f":"Import!I7469","v":"Select"},{"$f":"Import!I7869","v":"Select"},{"$f":"Import!I8269","v":0},{"$f":"Import!I8669","v":0},{"$f":"Import!I9069","v":0},{"$f":"Import!I9469","v":0},{"$f":"Import!I9869","v":0}]
[223,{"$f":"Import!I7070","v":"Select"},{"$f":"Import!I7470","v":"Select"},{"$f":"Import!I7870","v":"Select"},{"$f":"Import!I8270","v":0},{"$f":"Import!I8670","v":0},{"$f":"Import!I9070","v":0},{"$f":"Import!I9470","v":0},{"$f":"Import!I9870","v":0}]
[224,{"$f":"Import!I7071","v":"Select"},{"$f":"Import!I7471","v":"Select"},{"$f":"Import!I7871","v":"Select"},{"$f":"Import!I8271","v":0},{"$f":"Import!I8671","v":0},{"$f":"Import!I9071","v":0},{"$f":"Import!I9471","v":0},{"$f":"Import!I9871","v":0}]
[225,{"$f":"Import!I7072","v":"Select"},{"$f":"Import!I7472","v":"Select"},{"$f":"Import!I7872","v":"Select"},{"$f":"Import!I8272","v":0},{"$f":"Import!I8672","v":0},{"$f":"Import!I9072","v":0},{"$f":"Import!I9472","v":0},{"$f":"Import!I9872","v":0}]
[226,{"$f":"Import!I7073","v":"Select"},{"$f":"Import!I7473","v":"Select"},{"$f":"Import!I7873","v":"Select"},{"$f":"Import!I8273","v":0},{"$f":"Import!I8673","v":0},{"$f":"Import!I9073","v":0},{"$f":"Import!I9473","v":0},{"$f":"Import!I9873","v":0}]
[227,{"$f":"Import!I7074","v":"Select"},{"$f":"Import!I7474","v":"Select"},{"$f":"Import!I7874","v":"Select"},{"$f":"Import!I8274","v":0},{"$f":"Import!I8674","v":0},{"$f":"Import!I9074","v":0},{"$f":"Import!I9474","v":0},{"$f":"Import!I9874","v":0}]
[228,{"$f":"Import!I7075","v":"Select"},{"$f":"Import!I7475","v":"Select"},{"$f":"Import!I7875","v":"Select"},{"$f":"Import!I8275","v":0},{"$f":"Import!I8675","v":0},{"$f":"Import!I9075","v":0},{"$f":"Import!I9475","v":0},{"$f":"Import!I9875","v":0}]
[229,{"$f":"Import!I7076","v":"Select"},{"$f":"Import!I7476","v":"Select"},{"$f":"Import!I7876","v":"Select"},{"$f":"Import!I8276","v":0},{"$f":"Import!I8676","v":0},{"$f":"Import!I9076","v":0},{"$f":"Import!I9476","v":0},{"$f":"Import!I9876","v":0}]
[230,{"$f":"Import!I7077","v":"Select"},{"$f":"Import!I7477","v":"Select"},{"$f":"Import!I7877","v":"Select"},{"$f":"Import!I8277","v":0},{"$f":"Import!I8677","v":0},{"$f":"Import!I9077","v":0},{"$f":"Import!I9477","v":0},{"$f":"Import!I9877","v":0}]
[231,{"$f":"Import!I7078","v":"Select"},{"$f":"Import!I7478","v":"Select"},{"$f":"Import!I7878","v":"Select"},{"$f":"Import!I8278","v":0},{"$f":"Import!I8678","v":0},{"$f":"Import!I9078","v":0},{"$f":"Import!I9478","v":0},{"$f":"Import!I9878","v":0}]
[232,{"$f":"Import!I7079","v":"Select"},{"$f":"Import!I7479","v":"Select"},{"$f":"Import!I7879","v":"Select"},{"$f":"Import!I8279","v":0},{"$f":"Import!I8679","v":0},{"$f":"Import!I9079","v":0},{"$f":"Import!I9479","v":0},{"$f":"Import!I9879","v":0}]
[233,{"$f":"Import!I7080","v":"Select"},{"$f":"Import!I7480","v":"Select"},{"$f":"Import!I7880","v":"Select"},{"$f":"Import!I8280","v":0},{"$f":"Import!I8680","v":0},{"$f":"Import!I9080","v":0},{"$f":"Import!I9480","v":0},{"$f":"Import!I9880","v":0}]
[234,{"$f":"Import!I7081","v":"Select"},{"$f":"Import!I7481","v":"Select"},{"$f":"Import!I7881","v":"Select"},{"$f":"Import!I8281","v":0},{"$f":"Import!I8681","v":0},{"$f":"Import!I9081","v":0},{"$f":"Import!I9481","v":0},{"$f":"Import!I9881","v":0}]
[235,{"$f":"Import!I7082","v":"Select"},{"$f":"Import!I7482","v":"Select"},{"$f":"Import!I7882","v":"Select"},{"$f":"Import!I8282","v":0},{"$f":"Import!I8682","v":0},{"$f":"Import!I9082","v":0},{"$f":"Import!I9482","v":0},{"$f":"Import!I9882","v":0}]
[236,{"$f":"Import!I7083","v":"Select"},{"$f":"Import!I7483","v":"Select"},{"$f":"Import!I7883","v":"Select"},{"$f":"Import!I8283","v":0},{"$f":"Import!I8683","v":0},{"$f":"Import!I9083","v":0},{"$f":"Import!I9483","v":0},{"$f":"Import!I9883","v":0}]
[237,{"$f":"Import!I7084","v":"Select"},{"$f":"Import!I7484","v":"Select"},{"$f":"Import!I7884","v":"Select"},{"$f":"Import!I8284","v":0},{"$f":"Import!I8684","v":0},{"$f":"Import!I9084","v":0},{"$f":"Import!I9484","v":0},{"$f":"Import!I9884","v":0}]
[238,{"$f":"Import!I7085","v":"Select"},{"$f":"Import!I7485","v":"Select"},{"$f":"Import!I7885","v":"Select"},{"$f":"Import!I8285","v":0},{"$f":"Import!I8685","v":0},{"$f":"Import!I9085","v":0},{"$f":"Import!I9485","v":0},{"$f":"Import!I9885","v":0}]
[239,{"$f":"Import!I7086","v":"Select"},{"$f":"Import!I7486","v":"Select"},{"$f":"Import!I7886","v":"Select"},{"$f":"Import!I8286","v":0},{"$f":"Import!I8686","v":0},{"$f":"Import!I9086","v":0},{"$f":"Import!I9486","v":0},{"$f":"Import!I9886","v":0}]
[240,{"$f":"Import!I7087","v":"Select"},{"$f":"Import!I7487","v":"Select"},{"$f":"Import!I7887","v":"Select"},{"$f":"Import!I8287","v":0},{"$f":"Import!I8687","v":0},{"$f":"Import!I9087","v":0},{"$f":"Import!I9487","v":0},{"$f":"Import!I9887","v":0}]
[241,{"$f":"Import!I7088","v":"Select"},{"$f":"Import!I7488","v":"Select"},{"$f":"Import!I7888","v":"Select"},{"$f":"Import!I8288","v":0},{"$f":"Import!I8688","v":0},{"$f":"Import!I9088","v":0},{"$f":"Import!I9488","v":0},{"$f":"Import!I9888","v":0}]
[242,{"$f":"Import!I7089","v":"Select"},{"$f":"Import!I7489","v":"Select"},{"$f":"Import!I7889","v":"Select"},{"$f":"Import!I8289","v":0},{"$f":"Import!I8689","v":0},{"$f":"Import!I9089","v":0},{"$f":"Import!I9489","v":0},{"$f":"Import!I9889","v":0}]
[243,{"$f":"Import!I7090","v":"Select"},{"$f":"Import!I7490","v":"Select"},{"$f":"Import!I7890","v":"Select"},{"$f":"Import!I8290","v":0},{"$f":"Import!I8690","v":0},{"$f":"Import!I9090","v":0},{"$f":"Import!I9490","v":0},{"$f":"Import!I9890","v":0}]
[244,{"$f":"Import!I7091","v":"Select"},{"$f":"Import!I7491","v":"Select"},{"$f":"Import!I7891","v":"Select"},{"$f":"Import!I8291","v":0},{"$f":"Import!I8691","v":0},{"$f":"Import!I9091","v":0},{"$f":"Import!I9491","v":0},{"$f":"Import!I9891","v":0}]
[245,{"$f":"Import!I7092","v":"Select"},{"$f":"Import!I7492","v":"Select"},{"$f":"Import!I7892","v":"Select"},{"$f":"Import!I8292","v":0},{"$f":"Import!I8692","v":0},{"$f":"Import!I9092","v":0},{"$f":"Import!I9492","v":0},{"$f":"Import!I9892","v":0}]
[246,{"$f":"Import!I7093","v":"Select"},{"$f":"Import!I7493","v":"Select"},{"$f":"Import!I7893","v":"Select"},{"$f":"Import!I8293","v":0},{"$f":"Import!I8693","v":0},{"$f":"Import!I9093","v":0},{"$f":"Import!I9493","v":0},{"$f":"Import!I9893","v":0}]
[247,{"$f":"Import!I7094","v":"Select"},{"$f":"Import!I7494","v":"Select"},{"$f":"Import!I7894","v":"Select"},{"$f":"Import!I8294","v":0},{"$f":"Import!I8694","v":0},{"$f":"Import!I9094","v":0},{"$f":"Import!I9494","v":0},{"$f":"Import!I9894","v":0}]
[248,{"$f":"Import!I7095","v":"Select"},{"$f":"Import!I7495","v":"Select"},{"$f":"Import!I7895","v":"Select"},{"$f":"Import!I8295","v":0},{"$f":"Import!I8695","v":0},{"$f":"Import!I9095","v":0},{"$f":"Import!I9495","v":0},{"$f":"Import!I9895","v":0}]
[249,{"$f":"Import!I7096","v":"Select"},{"$f":"Import!I7496","v":"Select"},{"$f":"Import!I7896","v":"Select"},{"$f":"Import!I8296","v":0},{"$f":"Import!I8696","v":0},{"$f":"Import!I9096","v":0},{"$f":"Import!I9496","v":0},{"$f":"Import!I9896","v":0}]
[250,{"$f":"Import!I7097","v":"Select"},{"$f":"Import!I7497","v":"Select"},{"$f":"Import!I7897","v":"Select"},{"$f":"Import!I8297","v":0},{"$f":"Import!I8697","v":0},{"$f":"Import!I9097","v":0},{"$f":"Import!I9497","v":0},{"$f":"Import!I9897","v":0}]
[251,{"$f":"Import!I7098","v":"Select"},{"$f":"Import!I7498","v":"Select"},{"$f":"Import!I7898","v":"Select"},{"$f":"Import!I8298","v":0},{"$f":"Import!I8698","v":0},{"$f":"Import!I9098","v":0},{"$f":"Import!I9498","v":0},{"$f":"Import!I9898","v":0}]
[252,{"$f":"Import!I7099","v":"Select"},{"$f":"Import!I7499","v":"Select"},{"$f":"Import!I7899","v":"Select"},{"$f":"Import!I8299","v":0},{"$f":"Import!I8699","v":0},{"$f":"Import!I9099","v":0},{"$f":"Import!I9499","v":0},{"$f":"Import!I9899","v":0}]
[253,{"$f":"Import!I7100","v":"Select"},{"$f":"Import!I7500","v":"Select"},{"$f":"Import!I7900","v":"Select"},{"$f":"Import!I8300","v":0},{"$f":"Import!I8700","v":0},{"$f":"Import!I9100","v":0},{"$f":"Import!I9500","v":0},{"$f":"Import!I9900","v":0}]
[254,{"$f":"Import!I7101","v":"Select"},{"$f":"Import!I7501","v":"Select"},{"$f":"Import!I7901","v":"Select"},{"$f":"Import!I8301","v":0},{"$f":"Import!I8701","v":0},{"$f":"Import!I9101","v":0},{"$f":"Import!I9501","v":0},{"$f":"Import!I9901","v":0}]
[255,{"$f":"Import!I7102","v":"Select"},{"$f":"Import!I7502","v":"Select"},{"$f":"Import!I7902","v":"Select"},{"$f":"Import!I8302","v":0},{"$f":"Import!I8702","v":0},{"$f":"Import!I9102","v":0},{"$f":"Import!I9502","v":0},{"$f":"Import!I9902","v":0}]
[256,{"$f":"Import!I7103","v":"Select"},{"$f":"Import!I7503","v":"Select"},{"$f":"Import!I7903","v":"Select"},{"$f":"Import!I8303","v":0},{"$f":"Import!I8703","v":0},{"$f":"Import!I9103","v":0},{"$f":"Import!I9503","v":0},{"$f":"Import!I9903","v":0}]
[257,{"$f":"Import!I7104","v":"Select"},{"$f":"Import!I7504","v":"Select"},{"$f":"Import!I7904","v":"Select"},{"$f":"Import!I8304","v":0},{"$f":"Import!I8704","v":0},{"$f":"Import!I9104","v":0},{"$f":"Import!I9504","v":0},{"$f":"Import!I9904","v":0}]
[258,{"$f":"Import!I7105","v":"Select"},{"$f":"Import!I7505","v":"Select"},{"$f":"Import!I7905","v":"Select"},{"$f":"Import!I8305","v":0},{"$f":"Import!I8705","v":0},{"$f":"Import!I9105","v":0},{"$f":"Import!I9505","v":0},{"$f":"Import!I9905","v":0}]
[{"$f":"A476+1","v":259},{"$f":"Import!I7106","v":"Select"},{"$f":"Import!I7506","v":"Select"},{"$f":"Import!I7906","v":"Select"},{"$f":"Import!I8306","v":0},{"$f":"Import!I8706","v":0},{"$f":"Import!I9106","v":0},{"$f":"Import!I9506","v":0},{"$f":"Import!I9906","v":0}]
[260,{"$f":"Import!I7107","v":"Select"},{"$f":"Import!I7507","v":"Select"},{"$f":"Import!I7907","v":"Select"},{"$f":"Import!I8307","v":0},{"$f":"Import!I8707","v":0},{"$f":"Import!I9107","v":0},{"$f":"Import!I9507","v":0},{"$f":"Import!I9907","v":0}]
[261,{"$f":"Import!I7108","v":"Select"},{"$f":"Import!I7508","v":"Select"},{"$f":"Import!I7908","v":"Select"},{"$f":"Import!I8308","v":0},{"$f":"Import!I8708","v":0},{"$f":"Import!I9108","v":0},{"$f":"Import!I9508","v":0},{"$f":"Import!I9908","v":0}]
[262,{"$f":"Import!I7109","v":"Select"},{"$f":"Import!I7509","v":"Select"},{"$f":"Import!I7909","v":"Select"},{"$f":"Import!I8309","v":0},{"$f":"Import!I8709","v":0},{"$f":"Import!I9109","v":0},{"$f":"Import!I9509","v":0},{"$f":"Import!I9909","v":0}]
[263,{"$f":"Import!I7110","v":"Select"},{"$f":"Import!I7510","v":"Select"},{"$f":"Import!I7910","v":"Select"},{"$f":"Import!I8310","v":0},{"$f":"Import!I8710","v":0},{"$f":"Import!I9110","v":0},{"$f":"Import!I9510","v":0},{"$f":"Import!I9910","v":0}]
[264,{"$f":"Import!I7111","v":"Select"},{"$f":"Import!I7511","v":"Select"},{"$f":"Import!I7911","v":"Select"},{"$f":"Import!I8311","v":0},{"$f":"Import!I8711","v":0},{"$f":"Import!I9111","v":0},{"$f":"Import!I9511","v":0},{"$f":"Import!I9911","v":0}]
[265,{"$f":"Import!I7112","v":"Select"},{"$f":"Import!I7512","v":"Select"},{"$f":"Import!I7912","v":"Select"},{"$f":"Import!I8312","v":0},{"$f":"Import!I8712","v":0},{"$f":"Import!I9112","v":0},{"$f":"Import!I9512","v":0},{"$f":"Import!I9912","v":0}]
[266,{"$f":"Import!I7113","v":"Select"},{"$f":"Import!I7513","v":"Select"},{"$f":"Import!I7913","v":"Select"},{"$f":"Import!I8313","v":0},{"$f":"Import!I8713","v":0},{"$f":"Import!I9113","v":0},{"$f":"Import!I9513","v":0},{"$f":"Import!I9913","v":0}]
[267,{"$f":"Import!I7114","v":"Select"},{"$f":"Import!I7514","v":"Select"},{"$f":"Import!I7914","v":"Select"},{"$f":"Import!I8314","v":0},{"$f":"Import!I8714","v":0},{"$f":"Import!I9114","v":0},{"$f":"Import!I9514","v":0},{"$f":"Import!I9914","v":0}]
[268,{"$f":"Import!I7115","v":"Select"},{"$f":"Import!I7515","v":"Select"},{"$f":"Import!I7915","v":"Select"},{"$f":"Import!I8315","v":0},{"$f":"Import!I8715","v":0},{"$f":"Import!I9115","v":0},{"$f":"Import!I9515","v":0},{"$f":"Import!I9915","v":0}]
[269,{"$f":"Import!I7116","v":"Select"},{"$f":"Import!I7516","v":"Select"},{"$f":"Import!I7916","v":"Select"},{"$f":"Import!I8316","v":0},{"$f":"Import!I8716","v":0},{"$f":"Import!I9116","v":0},{"$f":"Import!I9516","v":0},{"$f":"Import!I9916","v":0}]
[270,{"$f":"Import!I7117","v":"Select"},{"$f":"Import!I7517","v":"Select"},{"$f":"Import!I7917","v":"Select"},{"$f":"Import!I8317","v":0},{"$f":"Import!I8717","v":0},{"$f":"Import!I9117","v":0},{"$f":"Import!I9517","v":0},{"$f":"Import!I9917","v":0}]
[271,{"$f":"Import!I7118","v":"Select"},{"$f":"Import!I7518","v":"Select"},{"$f":"Import!I7918","v":"Select"},{"$f":"Import!I8318","v":0},{"$f":"Import!I8718","v":0},{"$f":"Import!I9118","v":0},{"$f":"Import!I9518","v":0},{"$f":"Import!I9918","v":0}]
[272,{"$f":"Import!I7119","v":"Select"},{"$f":"Import!I7519","v":"Select"},{"$f":"Import!I7919","v":"Select"},{"$f":"Import!I8319","v":0},{"$f":"Import!I8719","v":0},{"$f":"Import!I9119","v":0},{"$f":"Import!I9519","v":0},{"$f":"Import!I9919","v":0}]
[273,{"$f":"Import!I7120","v":"Select"},{"$f":"Import!I7520","v":"Select"},{"$f":"Import!I7920","v":"Select"},{"$f":"Import!I8320","v":0},{"$f":"Import!I8720","v":0},{"$f":"Import!I9120","v":0},{"$f":"Import!I9520","v":0},{"$f":"Import!I9920","v":0}]
[274,{"$f":"Import!I7121","v":"Select"},{"$f":"Import!I7521","v":"Select"},{"$f":"Import!I7921","v":"Select"},{"$f":"Import!I8321","v":0},{"$f":"Import!I8721","v":0},{"$f":"Import!I9121","v":0},{"$f":"Import!I9521","v":0},{"$f":"Import!I9921","v":0}]
[275,{"$f":"Import!I7122","v":"Select"},{"$f":"Import!I7522","v":"Select"},{"$f":"Import!I7922","v":"Select"},{"$f":"Import!I8322","v":0},{"$f":"Import!I8722","v":0},{"$f":"Import!I9122","v":0},{"$f":"Import!I9522","v":0},{"$f":"Import!I9922","v":0}]
[276,{"$f":"Import!I7123","v":"Select"},{"$f":"Import!I7523","v":"Select"},{"$f":"Import!I7923","v":"Select"},{"$f":"Import!I8323","v":0},{"$f":"Import!I8723","v":0},{"$f":"Import!I9123","v":0},{"$f":"Import!I9523","v":0},{"$f":"Import!I9923","v":0}]
[277,{"$f":"Import!I7124","v":"Select"},{"$f":"Import!I7524","v":"Select"},{"$f":"Import!I7924","v":"Select"},{"$f":"Import!I8324","v":0},{"$f":"Import!I8724","v":0},{"$f":"Import!I9124","v":0},{"$f":"Import!I9524","v":0},{"$f":"Import!I9924","v":0}]
[278,{"$f":"Import!I7125","v":"Select"},{"$f":"Import!I7525","v":"Select"},{"$f":"Import!I7925","v":"Select"},{"$f":"Import!I8325","v":0},{"$f":"Import!I8725","v":0},{"$f":"Import!I9125","v":0},{"$f":"Import!I9525","v":0},{"$f":"Import!I9925","v":0}]
[279,{"$f":"Import!I7126","v":"Select"},{"$f":"Import!I7526","v":"Select"},{"$f":"Import!I7926","v":"Select"},{"$f":"Import!I8326","v":0},{"$f":"Import!I8726","v":0},{"$f":"Import!I9126","v":0},{"$f":"Import!I9526","v":0},{"$f":"Import!I9926","v":0}]
[280,{"$f":"Import!I7127","v":"Select"},{"$f":"Import!I7527","v":"Select"},{"$f":"Import!I7927","v":"Select"},{"$f":"Import!I8327","v":0},{"$f":"Import!I8727","v":0},{"$f":"Import!I9127","v":0},{"$f":"Import!I9527","v":0},{"$f":"Import!I9927","v":0}]
[281,{"$f":"Import!I7128","v":"Select"},{"$f":"Import!I7528","v":"Select"},{"$f":"Import!I7928","v":"Select"},{"$f":"Import!I8328","v":0},{"$f":"Import!I8728","v":0},{"$f":"Import!I9128","v":0},{"$f":"Import!I9528","v":0},{"$f":"Import!I9928","v":0}]
[282,{"$f":"Import!I7129","v":"Select"},{"$f":"Import!I7529","v":"Select"},{"$f":"Import!I7929","v":"Select"},{"$f":"Import!I8329","v":0},{"$f":"Import!I8729","v":0},{"$f":"Import!I9129","v":0},{"$f":"Import!I9529","v":0},{"$f":"Import!I9929","v":0}]
[283,{"$f":"Import!I7130","v":"Select"},{"$f":"Import!I7530","v":"Select"},{"$f":"Import!I7930","v":"Select"},{"$f":"Import!I8330","v":0},{"$f":"Import!I8730","v":0},{"$f":"Import!I9130","v":0},{"$f":"Import!I9530","v":0},{"$f":"Import!I9930","v":0}]
[284,{"$f":"Import!I7131","v":"Select"},{"$f":"Import!I7531","v":"Select"},{"$f":"Import!I7931","v":"Select"},{"$f":"Import!I8331","v":0},{"$f":"Import!I8731","v":0},{"$f":"Import!I9131","v":0},{"$f":"Import!I9531","v":0},{"$f":"Import!I9931","v":0}]
[285,{"$f":"Import!I7132","v":"Select"},{"$f":"Import!I7532","v":"Select"},{"$f":"Import!I7932","v":"Select"},{"$f":"Import!I8332","v":0},{"$f":"Import!I8732","v":0},{"$f":"Import!I9132","v":0},{"$f":"Import!I9532","v":0},{"$f":"Import!I9932","v":0}]
[286,{"$f":"Import!I7133","v":"Select"},{"$f":"Import!I7533","v":"Select"},{"$f":"Import!I7933","v":"Select"},{"$f":"Import!I8333","v":0},{"$f":"Import!I8733","v":0},{"$f":"Import!I9133","v":0},{"$f":"Import!I9533","v":0},{"$f":"Import!I9933","v":0}]
[287,{"$f":"Import!I7134","v":"Select"},{"$f":"Import!I7534","v":"Select"},{"$f":"Import!I7934","v":"Select"},{"$f":"Import!I8334","v":0},{"$f":"Import!I8734","v":0},{"$f":"Import!I9134","v":0},{"$f":"Import!I9534","v":0},{"$f":"Import!I9934","v":0}]
[288,{"$f":"Import!I7135","v":"Select"},{"$f":"Import!I7535","v":"Select"},{"$f":"Import!I7935","v":"Select"},{"$f":"Import!I8335","v":0},{"$f":"Import!I8735","v":0},{"$f":"Import!I9135","v":0},{"$f":"Import!I9535","v":0},{"$f":"Import!I9935","v":0}]
[289,{"$f":"Import!I7136","v":"Select"},{"$f":"Import!I7536","v":"Select"},{"$f":"Import!I7936","v":"Select"},{"$f":"Import!I8336","v":0},{"$f":"Import!I8736","v":0},{"$f":"Import!I9136","v":0},{"$f":"Import!I9536","v":0},{"$f":"Import!I9936","v":0}]
[290,{"$f":"Import!I7137","v":"Select"},{"$f":"Import!I7537","v":"Select"},{"$f":"Import!I7937","v":"Select"},{"$f":"Import!I8337","v":0},{"$f":"Import!I8737","v":0},{"$f":"Import!I9137","v":0},{"$f":"Import!I9537","v":0},{"$f":"Import!I9937","v":0}]
[291,{"$f":"Import!I7138","v":"Select"},{"$f":"Import!I7538","v":"Select"},{"$f":"Import!I7938","v":"Select"},{"$f":"Import!I8338","v":0},{"$f":"Import!I8738","v":0},{"$f":"Import!I9138","v":0},{"$f":"Import!I9538","v":0},{"$f":"Import!I9938","v":0}]
[292,{"$f":"Import!I7139","v":"Select"},{"$f":"Import!I7539","v":"Select"},{"$f":"Import!I7939","v":"Select"},{"$f":"Import!I8339","v":0},{"$f":"Import!I8739","v":0},{"$f":"Import!I9139","v":0},{"$f":"Import!I9539","v":0},{"$f":"Import!I9939","v":0}]
[293,{"$f":"Import!I7140","v":"Select"},{"$f":"Import!I7540","v":"Select"},{"$f":"Import!I7940","v":"Select"},{"$f":"Import!I8340","v":0},{"$f":"Import!I8740","v":0},{"$f":"Import!I9140","v":0},{"$f":"Import!I9540","v":0},{"$f":"Import!I9940","v":0}]
[294,{"$f":"Import!I7141","v":"Select"},{"$f":"Import!I7541","v":"Select"},{"$f":"Import!I7941","v":"Select"},{"$f":"Import!I8341","v":0},{"$f":"Import!I8741","v":0},{"$f":"Import!I9141","v":0},{"$f":"Import!I9541","v":0},{"$f":"Import!I9941","v":0}]
[295,{"$f":"Import!I7142","v":"Select"},{"$f":"Import!I7542","v":"Select"},{"$f":"Import!I7942","v":"Select"},{"$f":"Import!I8342","v":0},{"$f":"Import!I8742","v":0},{"$f":"Import!I9142","v":0},{"$f":"Import!I9542","v":0},{"$f":"Import!I9942","v":0}]
[296,{"$f":"Import!I7143","v":"Select"},{"$f":"Import!I7543","v":"Select"},{"$f":"Import!I7943","v":"Select"},{"$f":"Import!I8343","v":0},{"$f":"Import!I8743","v":0},{"$f":"Import!I9143","v":0},{"$f":"Import!I9543","v":0},{"$f":"Import!I9943","v":0}]
[297,{"$f":"Import!I7144","v":"Select"},{"$f":"Import!I7544","v":"Select"},{"$f":"Import!I7944","v":"Select"},{"$f":"Import!I8344","v":0},{"$f":"Import!I8744","v":0},{"$f":"Import!I9144","v":0},{"$f":"Import!I9544","v":0},{"$f":"Import!I9944","v":0}]
[298,{"$f":"Import!I7145","v":"Select"},{"$f":"Import!I7545","v":"Select"},{"$f":"Import!I7945","v":"Select"},{"$f":"Import!I8345","v":0},{"$f":"Import!I8745","v":0},{"$f":"Import!I9145","v":0},{"$f":"Import!I9545","v":0},{"$f":"Import!I9945","v":0}]
[299,{"$f":"Import!I7146","v":"Select"},{"$f":"Import!I7546","v":"Select"},{"$f":"Import!I7946","v":"Select"},{"$f":"Import!I8346","v":0},{"$f":"Import!I8746","v":0},{"$f":"Import!I9146","v":0},{"$f":"Import!I9546","v":0},{"$f":"Import!I9946","v":0}]
[300,{"$f":"Import!I7147","v":"Select"},{"$f":"Import!I7547","v":"Select"},{"$f":"Import!I7947","v":"Select"},{"$f":"Import!I8347","v":0},{"$f":"Import!I8747","v":0},{"$f":"Import!I9147","v":0},{"$f":"Import!I9547","v":0},{"$f":"Import!I9947","v":0}]
[301,{"$f":"Import!I7148","v":"Select"},{"$f":"Import!I7548","v":"Select"},{"$f":"Import!I7948","v":"Select"},{"$f":"Import!I8348","v":0},{"$f":"Import!I8748","v":0},{"$f":"Import!I9148","v":0},{"$f":"Import!I9548","v":0},{"$f":"Import!I9948","v":0}]
[302,{"$f":"Import!I7149","v":"Select"},{"$f":"Import!I7549","v":"Select"},{"$f":"Import!I7949","v":"Select"},{"$f":"Import!I8349","v":0},{"$f":"Import!I8749","v":0},{"$f":"Import!I9149","v":0},{"$f":"Import!I9549","v":0},{"$f":"Import!I9949","v":0}]
[303,{"$f":"Import!I7150","v":"Select"},{"$f":"Import!I7550","v":"Select"},{"$f":"Import!I7950","v":"Select"},{"$f":"Import!I8350","v":0},{"$f":"Import!I8750","v":0},{"$f":"Import!I9150","v":0},{"$f":"Import!I9550","v":0},{"$f":"Import!I9950","v":0}]
[304,{"$f":"Import!I7151","v":"Select"},{"$f":"Import!I7551","v":"Select"},{"$f":"Import!I7951","v":"Select"},{"$f":"Import!I8351","v":0},{"$f":"Import!I8751","v":0},{"$f":"Import!I9151","v":0},{"$f":"Import!I9551","v":0},{"$f":"Import!I9951","v":0}]
[305,{"$f":"Import!I7152","v":"Select"},{"$f":"Import!I7552","v":"Select"},{"$f":"Import!I7952","v":"Select"},{"$f":"Import!I8352","v":0},{"$f":"Import!I8752","v":0},{"$f":"Import!I9152","v":0},{"$f":"Import!I9552","v":0},{"$f":"Import!I9952","v":0}]
[306,{"$f":"Import!I7153","v":"Select"},{"$f":"Import!I7553","v":"Select"},{"$f":"Import!I7953","v":"Select"},{"$f":"Import!I8353","v":0},{"$f":"Import!I8753","v":0},{"$f":"Import!I9153","v":0},{"$f":"Import!I9553","v":0},{"$f":"Import!I9953","v":0}]
[307,{"$f":"Import!I7154","v":"Select"},{"$f":"Import!I7554","v":"Select"},{"$f":"Import!I7954","v":"Select"},{"$f":"Import!I8354","v":0},{"$f":"Import!I8754","v":0},{"$f":"Import!I9154","v":0},{"$f":"Import!I9554","v":0},{"$f":"Import!I9954","v":0}]
[308,{"$f":"Import!I7155","v":"Select"},{"$f":"Import!I7555","v":"Select"},{"$f":"Import!I7955","v":"Select"},{"$f":"Import!I8355","v":0},{"$f":"Import!I8755","v":0},{"$f":"Import!I9155","v":0},{"$f":"Import!I9555","v":0},{"$f":"Import!I9955","v":0}]
[309,{"$f":"Import!I7156","v":"Select"},{"$f":"Import!I7556","v":"Select"},{"$f":"Import!I7956","v":"Select"},{"$f":"Import!I8356","v":0},{"$f":"Import!I8756","v":0},{"$f":"Import!I9156","v":0},{"$f":"Import!I9556","v":0},{"$f":"Import!I9956","v":0}]
[310,{"$f":"Import!I7157","v":"Select"},{"$f":"Import!I7557","v":"Select"},{"$f":"Import!I7957","v":"Select"},{"$f":"Import!I8357","v":0},{"$f":"Import!I8757","v":0},{"$f":"Import!I9157","v":0},{"$f":"Import!I9557","v":0},{"$f":"Import!I9957","v":0}]
[311,{"$f":"Import!I7158","v":"Select"},{"$f":"Import!I7558","v":"Select"},{"$f":"Import!I7958","v":"Select"},{"$f":"Import!I8358","v":0},{"$f":"Import!I8758","v":0},{"$f":"Import!I9158","v":0},{"$f":"Import!I9558","v":0},{"$f":"Import!I9958","v":0}]
[312,{"$f":"Import!I7159","v":"Select"},{"$f":"Import!I7559","v":"Select"},{"$f":"Import!I7959","v":"Select"},{"$f":"Import!I8359","v":0},{"$f":"Import!I8759","v":0},{"$f":"Import!I9159","v":0},{"$f":"Import!I9559","v":0},{"$f":"Import!I9959","v":0}]
[313,{"$f":"Import!I7160","v":"Select"},{"$f":"Import!I7560","v":"Select"},{"$f":"Import!I7960","v":"Select"},{"$f":"Import!I8360","v":0},{"$f":"Import!I8760","v":0},{"$f":"Import!I9160","v":0},{"$f":"Import!I9560","v":0},{"$f":"Import!I9960","v":0}]
[314,{"$f":"Import!I7161","v":"Select"},{"$f":"Import!I7561","v":"Select"},{"$f":"Import!I7961","v":"Select"},{"$f":"Import!I8361","v":0},{"$f":"Import!I8761","v":0},{"$f":"Import!I9161","v":0},{"$f":"Import!I9561","v":0},{"$f":"Import!I9961","v":0}]
[315,{"$f":"Import!I7162","v":"Select"},{"$f":"Import!I7562","v":"Select"},{"$f":"Import!I7962","v":"Select"},{"$f":"Import!I8362","v":0},{"$f":"Import!I8762","v":0},{"$f":"Import!I9162","v":0},{"$f":"Import!I9562","v":0},{"$f":"Import!I9962","v":0}]
[316,{"$f":"Import!I7163","v":"Select"},{"$f":"Import!I7563","v":"Select"},{"$f":"Import!I7963","v":"Select"},{"$f":"Import!I8363","v":0},{"$f":"Import!I8763","v":0},{"$f":"Import!I9163","v":0},{"$f":"Import!I9563","v":0},{"$f":"Import!I9963","v":0}]
[317,{"$f":"Import!I7164","v":"Select"},{"$f":"Import!I7564","v":"Select"},{"$f":"Import!I7964","v":"Select"},{"$f":"Import!I8364","v":0},{"$f":"Import!I8764","v":0},{"$f":"Import!I9164","v":0},{"$f":"Import!I9564","v":0},{"$f":"Import!I9964","v":0}]
[318,{"$f":"Import!I7165","v":"Select"},{"$f":"Import!I7565","v":"Select"},{"$f":"Import!I7965","v":"Select"},{"$f":"Import!I8365","v":0},{"$f":"Import!I8765","v":0},{"$f":"Import!I9165","v":0},{"$f":"Import!I9565","v":0},{"$f":"Import!I9965","v":0}]
[319,{"$f":"Import!I7166","v":"Select"},{"$f":"Import!I7566","v":"Select"},{"$f":"Import!I7966","v":"Select"},{"$f":"Import!I8366","v":0},{"$f":"Import!I8766","v":0},{"$f":"Import!I9166","v":0},{"$f":"Import!I9566","v":0},{"$f":"Import!I9966","v":0}]
[320,{"$f":"Import!I7167","v":"Select"},{"$f":"Import!I7567","v":"Select"},{"$f":"Import!I7967","v":"Select"},{"$f":"Import!I8367","v":0},{"$f":"Import!I8767","v":0},{"$f":"Import!I9167","v":0},{"$f":"Import!I9567","v":0},{"$f":"Import!I9967","v":0}]
[321,{"$f":"Import!I7168","v":"Select"},{"$f":"Import!I7568","v":"Select"},{"$f":"Import!I7968","v":"Select"},{"$f":"Import!I8368","v":0},{"$f":"Import!I8768","v":0},{"$f":"Import!I9168","v":0},{"$f":"Import!I9568","v":0},{"$f":"Import!I9968","v":0}]
[322,{"$f":"Import!I7169","v":"Select"},{"$f":"Import!I7569","v":"Select"},{"$f":"Import!I7969","v":"Select"},{"$f":"Import!I8369","v":0},{"$f":"Import!I8769","v":0},{"$f":"Import!I9169","v":0},{"$f":"Import!I9569","v":0},{"$f":"Import!I9969","v":0}]
[{"$f":"A540+1","v":323},{"$f":"Import!I7170","v":"Select"},{"$f":"Import!I7570","v":"Select"},{"$f":"Import!I7970","v":"Select"},{"$f":"Import!I8370","v":0},{"$f":"Import!I8770","v":0},{"$f":"Import!I9170","v":0},{"$f":"Import!I9570","v":0},{"$f":"Import!I9970","v":0}]
[324,{"$f":"Import!I7171","v":"Select"},{"$f":"Import!I7571","v":"Select"},{"$f":"Import!I7971","v":"Select"},{"$f":"Import!I8371","v":0},{"$f":"Import!I8771","v":0},{"$f":"Import!I9171","v":0},{"$f":"Import!I9571","v":0},{"$f":"Import!I9971","v":0}]
[325,{"$f":"Import!I7172","v":"Select"},{"$f":"Import!I7572","v":"Select"},{"$f":"Import!I7972","v":"Select"},{"$f":"Import!I8372","v":0},{"$f":"Import!I8772","v":0},{"$f":"Import!I9172","v":0},{"$f":"Import!I9572","v":0},{"$f":"Import!I9972","v":0}]
[326,{"$f":"Import!I7173","v":"Select"},{"$f":"Import!I7573","v":"Select"},{"$f":"Import!I7973","v":"Select"},{"$f":"Import!I8373","v":0},{"$f":"Import!I8773","v":0},{"$f":"Import!I9173","v":0},{"$f":"Import!I9573","v":0},{"$f":"Import!I9973","v":0}]
[327,{"$f":"Import!I7174","v":"Select"},{"$f":"Import!I7574","v":"Select"},{"$f":"Import!I7974","v":"Select"},{"$f":"Import!I8374","v":0},{"$f":"Import!I8774","v":0},{"$f":"Import!I9174","v":0},{"$f":"Import!I9574","v":0},{"$f":"Import!I9974","v":0}]
[328,{"$f":"Import!I7175","v":"Select"},{"$f":"Import!I7575","v":"Select"},{"$f":"Import!I7975","v":"Select"},{"$f":"Import!I8375","v":0},{"$f":"Import!I8775","v":0},{"$f":"Import!I9175","v":0},{"$f":"Import!I9575","v":0},{"$f":"Import!I9975","v":0}]
[329,{"$f":"Import!I7176","v":"Select"},{"$f":"Import!I7576","v":"Select"},{"$f":"Import!I7976","v":"Select"},{"$f":"Import!I8376","v":0},{"$f":"Import!I8776","v":0},{"$f":"Import!I9176","v":0},{"$f":"Import!I9576","v":0},{"$f":"Import!I9976","v":0}]
[330,{"$f":"Import!I7177","v":"Select"},{"$f":"Import!I7577","v":"Select"},{"$f":"Import!I7977","v":"Select"},{"$f":"Import!I8377","v":0},{"$f":"Import!I8777","v":0},{"$f":"Import!I9177","v":0},{"$f":"Import!I9577","v":0},{"$f":"Import!I9977","v":0}]
[331,{"$f":"Import!I7178","v":"Select"},{"$f":"Import!I7578","v":"Select"},{"$f":"Import!I7978","v":"Select"},{"$f":"Import!I8378","v":0},{"$f":"Import!I8778","v":0},{"$f":"Import!I9178","v":0},{"$f":"Import!I9578","v":0},{"$f":"Import!I9978","v":0}]
[332,{"$f":"Import!I7179","v":"Select"},{"$f":"Import!I7579","v":"Select"},{"$f":"Import!I7979","v":"Select"},{"$f":"Import!I8379","v":0},{"$f":"Import!I8779","v":0},{"$f":"Import!I9179","v":0},{"$f":"Import!I9579","v":0},{"$f":"Import!I9979","v":0}]
[333,{"$f":"Import!I7180","v":"Select"},{"$f":"Import!I7580","v":"Select"},{"$f":"Import!I7980","v":"Select"},{"$f":"Import!I8380","v":0},{"$f":"Import!I8780","v":0},{"$f":"Import!I9180","v":0},{"$f":"Import!I9580","v":0},{"$f":"Import!I9980","v":0}]
[334,{"$f":"Import!I7181","v":"Select"},{"$f":"Import!I7581","v":"Select"},{"$f":"Import!I7981","v":"Select"},{"$f":"Import!I8381","v":0},{"$f":"Import!I8781","v":0},{"$f":"Import!I9181","v":0},{"$f":"Import!I9581","v":0},{"$f":"Import!I9981","v":0}]
[335,{"$f":"Import!I7182","v":"Select"},{"$f":"Import!I7582","v":"Select"},{"$f":"Import!I7982","v":"Select"},{"$f":"Import!I8382","v":0},{"$f":"Import!I8782","v":0},{"$f":"Import!I9182","v":0},{"$f":"Import!I9582","v":0},{"$f":"Import!I9982","v":0}]
[336,{"$f":"Import!I7183","v":"Select"},{"$f":"Import!I7583","v":"Select"},{"$f":"Import!I7983","v":"Select"},{"$f":"Import!I8383","v":0},{"$f":"Import!I8783","v":0},{"$f":"Import!I9183","v":0},{"$f":"Import!I9583","v":0},{"$f":"Import!I9983","v":0}]
[337,{"$f":"Import!I7184","v":"Select"},{"$f":"Import!I7584","v":"Select"},{"$f":"Import!I7984","v":"Select"},{"$f":"Import!I8384","v":0},{"$f":"Import!I8784","v":0},{"$f":"Import!I9184","v":0},{"$f":"Import!I9584","v":0},{"$f":"Import!I9984","v":0}]
[338,{"$f":"Import!I7185","v":"Select"},{"$f":"Import!I7585","v":"Select"},{"$f":"Import!I7985","v":"Select"},{"$f":"Import!I8385","v":0},{"$f":"Import!I8785","v":0},{"$f":"Import!I9185","v":0},{"$f":"Import!I9585","v":0},{"$f":"Import!I9985","v":0}]
[339,{"$f":"Import!I7186","v":"Select"},{"$f":"Import!I7586","v":"Select"},{"$f":"Import!I7986","v":"Select"},{"$f":"Import!I8386","v":0},{"$f":"Import!I8786","v":0},{"$f":"Import!I9186","v":0},{"$f":"Import!I9586","v":0},{"$f":"Import!I9986","v":0}]
[340,{"$f":"Import!I7187","v":"Select"},{"$f":"Import!I7587","v":"Select"},{"$f":"Import!I7987","v":"Select"},{"$f":"Import!I8387","v":0},{"$f":"Import!I8787","v":0},{"$f":"Import!I9187","v":0},{"$f":"Import!I9587","v":0},{"$f":"Import!I9987","v":0}]
[341,{"$f":"Import!I7188","v":"Select"},{"$f":"Import!I7588","v":"Select"},{"$f":"Import!I7988","v":"Select"},{"$f":"Import!I8388","v":0},{"$f":"Import!I8788","v":0},{"$f":"Import!I9188","v":0},{"$f":"Import!I9588","v":0},{"$f":"Import!I9988","v":0}]
[342,{"$f":"Import!I7189","v":"Select"},{"$f":"Import!I7589","v":"Select"},{"$f":"Import!I7989","v":"Select"},{"$f":"Import!I8389","v":0},{"$f":"Import!I8789","v":0},{"$f":"Import!I9189","v":0},{"$f":"Import!I9589","v":0},{"$f":"Import!I9989","v":0}]
[343,{"$f":"Import!I7190","v":"Select"},{"$f":"Import!I7590","v":"Select"},{"$f":"Import!I7990","v":"Select"},{"$f":"Import!I8390","v":0},{"$f":"Import!I8790","v":0},{"$f":"Import!I9190","v":0},{"$f":"Import!I9590","v":0},{"$f":"Import!I9990","v":0}]
[344,{"$f":"Import!I7191","v":"Select"},{"$f":"Import!I7591","v":"Select"},{"$f":"Import!I7991","v":"Select"},{"$f":"Import!I8391","v":0},{"$f":"Import!I8791","v":0},{"$f":"Import!I9191","v":0},{"$f":"Import!I9591","v":0},{"$f":"Import!I9991","v":0}]
[345,{"$f":"Import!I7192","v":"Select"},{"$f":"Import!I7592","v":"Select"},{"$f":"Import!I7992","v":"Select"},{"$f":"Import!I8392","v":0},{"$f":"Import!I8792","v":0},{"$f":"Import!I9192","v":0},{"$f":"Import!I9592","v":0},{"$f":"Import!I9992","v":0}]
[346,{"$f":"Import!I7193","v":"Select"},{"$f":"Import!I7593","v":"Select"},{"$f":"Import!I7993","v":"Select"},{"$f":"Import!I8393","v":0},{"$f":"Import!I8793","v":0},{"$f":"Import!I9193","v":0},{"$f":"Import!I9593","v":0},{"$f":"Import!I9993","v":0}]
[347,{"$f":"Import!I7194","v":"Select"},{"$f":"Import!I7594","v":"Select"},{"$f":"Import!I7994","v":"Select"},{"$f":"Import!I8394","v":0},{"$f":"Import!I8794","v":0},{"$f":"Import!I9194","v":0},{"$f":"Import!I9594","v":0},{"$f":"Import!I9994","v":0}]
[348,{"$f":"Import!I7195","v":"Select"},{"$f":"Import!I7595","v":"Select"},{"$f":"Import!I7995","v":"Select"},{"$f":"Import!I8395","v":0},{"$f":"Import!I8795","v":0},{"$f":"Import!I9195","v":0},{"$f":"Import!I9595","v":0},{"$f":"Import!I9995","v":0}]
[349,{"$f":"Import!I7196","v":"Select"},{"$f":"Import!I7596","v":"Select"},{"$f":"Import!I7996","v":"Select"},{"$f":"Import!I8396","v":0},{"$f":"Import!I8796","v":0},{"$f":"Import!I9196","v":0},{"$f":"Import!I9596","v":0},{"$f":"Import!I9996","v":0}]
[350,{"$f":"Import!I7197","v":"Select"},{"$f":"Import!I7597","v":"Select"},{"$f":"Import!I7997","v":"Select"},{"$f":"Import!I8397","v":0},{"$f":"Import!I8797","v":0},{"$f":"Import!I9197","v":0},{"$f":"Import!I9597","v":0},{"$f":"Import!I9997","v":0}]
[351,{"$f":"Import!I7198","v":"Select"},{"$f":"Import!I7598","v":"Select"},{"$f":"Import!I7998","v":"Select"},{"$f":"Import!I8398","v":0},{"$f":"Import!I8798","v":0},{"$f":"Import!I9198","v":0},{"$f":"Import!I9598","v":0},{"$f":"Import!I9998","v":0}]
[352,{"$f":"Import!I7199","v":"Select"},{"$f":"Import!I7599","v":"Select"},{"$f":"Import!I7999","v":"Select"},{"$f":"Import!I8399","v":0},{"$f":"Import!I8799","v":0},{"$f":"Import!I9199","v":0},{"$f":"Import!I9599","v":0},{"$f":"Import!I9999","v":0}]
[353,{"$f":"Import!I7200","v":"Select"},{"$f":"Import!I7600","v":"Select"},{"$f":"Import!I8000","v":"Select"},{"$f":"Import!I8400","v":0},{"$f":"Import!I8800","v":0},{"$f":"Import!I9200","v":0},{"$f":"Import!I9600","v":0},{"$f":"Import!I10000","v":0}]
[354,{"$f":"Import!I7201","v":"Select"},{"$f":"Import!I7601","v":"Select"},{"$f":"Import!I8001","v":"Select"},{"$f":"Import!I8401","v":0},{"$f":"Import!I8801","v":0},{"$f":"Import!I9201","v":0},{"$f":"Import!I9601","v":0},{"$f":"Import!I10001","v":0}]
[355,{"$f":"Import!I7202","v":"Select"},{"$f":"Import!I7602","v":"Select"},{"$f":"Import!I8002","v":"Select"},{"$f":"Import!I8402","v":0},{"$f":"Import!I8802","v":0},{"$f":"Import!I9202","v":0},{"$f":"Import!I9602","v":0},{"$f":"Import!I10002","v":0}]
[356,{"$f":"Import!I7203","v":"Select"},{"$f":"Import!I7603","v":"Select"},{"$f":"Import!I8003","v":"Select"},{"$f":"Import!I8403","v":0},{"$f":"Import!I8803","v":0},{"$f":"Import!I9203","v":0},{"$f":"Import!I9603","v":0},{"$f":"Import!I10003","v":0}]
[357,{"$f":"Import!I7204","v":"Select"},{"$f":"Import!I7604","v":"Select"},{"$f":"Import!I8004","v":"Select"},{"$f":"Import!I8404","v":0},{"$f":"Import!I8804","v":0},{"$f":"Import!I9204","v":0},{"$f":"Import!I9604","v":0},{"$f":"Import!I10004","v":0}]
[358,{"$f":"Import!I7205","v":"Select"},{"$f":"Import!I7605","v":"Select"},{"$f":"Import!I8005","v":"Select"},{"$f":"Import!I8405","v":0},{"$f":"Import!I8805","v":0},{"$f":"Import!I9205","v":0},{"$f":"Import!I9605","v":0},{"$f":"Import!I10005","v":0}]
[359,{"$f":"Import!I7206","v":"Select"},{"$f":"Import!I7606","v":"Select"},{"$f":"Import!I8006","v":"Select"},{"$f":"Import!I8406","v":0},{"$f":"Import!I8806","v":0},{"$f":"Import!I9206","v":0},{"$f":"Import!I9606","v":0},{"$f":"Import!I10006","v":0}]
[360,{"$f":"Import!I7207","v":"Select"},{"$f":"Import!I7607","v":"Select"},{"$f":"Import!I8007","v":"Select"},{"$f":"Import!I8407","v":0},{"$f":"Import!I8807","v":0},{"$f":"Import!I9207","v":0},{"$f":"Import!I9607","v":0},{"$f":"Import!I10007","v":0}]
[361,{"$f":"Import!I7208","v":"Select"},{"$f":"Import!I7608","v":"Select"},{"$f":"Import!I8008","v":"Select"},{"$f":"Import!I8408","v":0},{"$f":"Import!I8808","v":0},{"$f":"Import!I9208","v":0},{"$f":"Import!I9608","v":0},{"$f":"Import!I10008","v":0}]
[362,{"$f":"Import!I7209","v":"Select"},{"$f":"Import!I7609","v":"Select"},{"$f":"Import!I8009","v":"Select"},{"$f":"Import!I8409","v":0},{"$f":"Import!I8809","v":0},{"$f":"Import!I9209","v":0},{"$f":"Import!I9609","v":0},{"$f":"Import!I10009","v":0}]
[363,{"$f":"Import!I7210","v":"Select"},{"$f":"Import!I7610","v":"Select"},{"$f":"Import!I8010","v":"Select"},{"$f":"Import!I8410","v":0},{"$f":"Import!I8810","v":0},{"$f":"Import!I9210","v":0},{"$f":"Import!I9610","v":0},{"$f":"Import!I10010","v":0}]
[364,{"$f":"Import!I7211","v":"Select"},{"$f":"Import!I7611","v":"Select"},{"$f":"Import!I8011","v":"Select"},{"$f":"Import!I8411","v":0},{"$f":"Import!I8811","v":0},{"$f":"Import!I9211","v":0},{"$f":"Import!I9611","v":0},{"$f":"Import!I10011","v":0}]
[365,{"$f":"Import!I7212","v":"Select"},{"$f":"Import!I7612","v":"Select"},{"$f":"Import!I8012","v":"Select"},{"$f":"Import!I8412","v":0},{"$f":"Import!I8812","v":0},{"$f":"Import!I9212","v":0},{"$f":"Import!I9612","v":0},{"$f":"Import!I10012","v":0}]
[366,{"$f":"Import!I7213","v":"Select"},{"$f":"Import!I7613","v":"Select"},{"$f":"Import!I8013","v":"Select"},{"$f":"Import!I8413","v":0},{"$f":"Import!I8813","v":0},{"$f":"Import!I9213","v":0},{"$f":"Import!I9613","v":0},{"$f":"Import!I10013","v":0}]
[367,{"$f":"Import!I7214","v":"Select"},{"$f":"Import!I7614","v":"Select"},{"$f":"Import!I8014","v":"Select"},{"$f":"Import!I8414","v":0},{"$f":"Import!I8814","v":0},{"$f":"Import!I9214","v":0},{"$f":"Import!I9614","v":0},{"$f":"Import!I10014","v":0}]
[368,{"$f":"Import!I7215","v":"Select"},{"$f":"Import!I7615","v":"Select"},{"$f":"Import!I8015","v":"Select"},{"$f":"Import!I8415","v":0},{"$f":"Import!I8815","v":0},{"$f":"Import!I9215","v":0},{"$f":"Import!I9615","v":0},{"$f":"Import!I10015","v":0}]
[369,{"$f":"Import!I7216","v":"Select"},{"$f":"Import!I7616","v":"Select"},{"$f":"Import!I8016","v":"Select"},{"$f":"Import!I8416","v":0},{"$f":"Import!I8816","v":0},{"$f":"Import!I9216","v":0},{"$f":"Import!I9616","v":0},{"$f":"Import!I10016","v":0}]
[370,{"$f":"Import!I7217","v":"Select"},{"$f":"Import!I7617","v":"Select"},{"$f":"Import!I8017","v":"Select"},{"$f":"Import!I8417","v":0},{"$f":"Import!I8817","v":0},{"$f":"Import!I9217","v":0},{"$f":"Import!I9617","v":0},{"$f":"Import!I10017","v":0}]
[371,{"$f":"Import!I7218","v":"Select"},{"$f":"Import!I7618","v":"Select"},{"$f":"Import!I8018","v":"Select"},{"$f":"Import!I8418","v":0},{"$f":"Import!I8818","v":0},{"$f":"Import!I9218","v":0},{"$f":"Import!I9618","v":0},{"$f":"Import!I10018","v":0}]
[372,{"$f":"Import!I7219","v":"Select"},{"$f":"Import!I7619","v":"Select"},{"$f":"Import!I8019","v":"Select"},{"$f":"Import!I8419","v":0},{"$f":"Import!I8819","v":0},{"$f":"Import!I9219","v":0},{"$f":"Import!I9619","v":0},{"$f":"Import!I10019","v":0}]
[373,{"$f":"Import!I7220","v":"Select"},{"$f":"Import!I7620","v":"Select"},{"$f":"Import!I8020","v":"Select"},{"$f":"Import!I8420","v":0},{"$f":"Import!I8820","v":0},{"$f":"Import!I9220","v":0},{"$f":"Import!I9620","v":0},{"$f":"Import!I10020","v":0}]
[374,{"$f":"Import!I7221","v":"Select"},{"$f":"Import!I7621","v":"Select"},{"$f":"Import!I8021","v":"Select"},{"$f":"Import!I8421","v":0},{"$f":"Import!I8821","v":0},{"$f":"Import!I9221","v":0},{"$f":"Import!I9621","v":0},{"$f":"Import!I10021","v":0}]
[375,{"$f":"Import!I7222","v":"Select"},{"$f":"Import!I7622","v":"Select"},{"$f":"Import!I8022","v":"Select"},{"$f":"Import!I8422","v":0},{"$f":"Import!I8822","v":0},{"$f":"Import!I9222","v":0},{"$f":"Import!I9622","v":0},{"$f":"Import!I10022","v":0}]
[376,{"$f":"Import!I7223","v":"Select"},{"$f":"Import!I7623","v":"Select"},{"$f":"Import!I8023","v":"Select"},{"$f":"Import!I8423","v":0},{"$f":"Import!I8823","v":0},{"$f":"Import!I9223","v":0},{"$f":"Import!I9623","v":0},{"$f":"Import!I10023","v":0}]
[377,{"$f":"Import!I7224","v":"Select"},{"$f":"Import!I7624","v":"Select"},{"$f":"Import!I8024","v":"Select"},{"$f":"Import!I8424","v":0},{"$f":"Import!I8824","v":0},{"$f":"Import!I9224","v":0},{"$f":"Import!I9624","v":0},{"$f":"Import!I10024","v":0}]
[378,{"$f":"Import!I7225","v":"Select"},{"$f":"Import!I7625","v":"Select"},{"$f":"Import!I8025","v":"Select"},{"$f":"Import!I8425","v":0},{"$f":"Import!I8825","v":0},{"$f":"Import!I9225","v":0},{"$f":"Import!I9625","v":0},{"$f":"Import!I10025","v":0}]
[379,{"$f":"Import!I7226","v":"Select"},{"$f":"Import!I7626","v":"Select"},{"$f":"Import!I8026","v":"Select"},{"$f":"Import!I8426","v":0},{"$f":"Import!I8826","v":0},{"$f":"Import!I9226","v":0},{"$f":"Import!I9626","v":0},{"$f":"Import!I10026","v":0}]
[380,{"$f":"Import!I7227","v":"Select"},{"$f":"Import!I7627","v":"Select"},{"$f":"Import!I8027","v":"Select"},{"$f":"Import!I8427","v":0},{"$f":"Import!I8827","v":0},{"$f":"Import!I9227","v":0},{"$f":"Import!I9627","v":0},{"$f":"Import!I10027","v":0}]
[381,{"$f":"Import!I7228","v":"Select"},{"$f":"Import!I7628","v":"Select"},{"$f":"Import!I8028","v":"Select"},{"$f":"Import!I8428","v":0},{"$f":"Import!I8828","v":0},{"$f":"Import!I9228","v":0},{"$f":"Import!I9628","v":0},{"$f":"Import!I10028","v":0}]
[382,{"$f":"Import!I7229","v":"Select"},{"$f":"Import!I7629","v":"Select"},{"$f":"Import!I8029","v":"Select"},{"$f":"Import!I8429","v":0},{"$f":"Import!I8829","v":0},{"$f":"Import!I9229","v":0},{"$f":"Import!I9629","v":0},{"$f":"Import!I10029","v":0}]
[383,{"$f":"Import!I7230","v":"Select"},{"$f":"Import!I7630","v":"Select"},{"$f":"Import!I8030","v":"Select"},{"$f":"Import!I8430","v":0},{"$f":"Import!I8830","v":0},{"$f":"Import!I9230","v":0},{"$f":"Import!I9630","v":0},{"$f":"Import!I10030","v":0}]
[384,{"$f":"Import!I7231","v":"Select"},{"$f":"Import!I7631","v":"Select"},{"$f":"Import!I8031","v":"Select"},{"$f":"Import!I8431","v":0},{"$f":"Import!I8831","v":0},{"$f":"Import!I9231","v":0},{"$f":"Import!I9631","v":0},{"$f":"Import!I10031","v":0}]
[385,{"$f":"Import!I7232","v":"Select"},{"$f":"Import!I7632","v":"Select"},{"$f":"Import!I8032","v":"Select"},{"$f":"Import!I8432","v":0},{"$f":"Import!I8832","v":0},{"$f":"Import!I9232","v":0},{"$f":"Import!I9632","v":0},{"$f":"Import!I10032","v":0}]
[386,{"$f":"Import!I7233","v":"Select"},{"$f":"Import!I7633","v":"Select"},{"$f":"Import!I8033","v":"Select"},{"$f":"Import!I8433","v":0},{"$f":"Import!I8833","v":0},{"$f":"Import!I9233","v":0},{"$f":"Import!I9633","v":0},{"$f":"Import!I10033","v":0}]
[{"$f":"A604+1","v":387},{"$f":"Import!I7234","v":"Select"},{"$f":"Import!I7634","v":"Select"},{"$f":"Import!I8034","v":"Select"},{"$f":"Import!I8434","v":0},{"$f":"Import!I8834","v":0},{"$f":"Import!I9234","v":0},{"$f":"Import!I9634","v":0},{"$f":"Import!I10034","v":0}]
[388,{"$f":"Import!I7235","v":"Select"},{"$f":"Import!I7635","v":"Select"},{"$f":"Import!I8035","v":"Select"},{"$f":"Import!I8435","v":0},{"$f":"Import!I8835","v":0},{"$f":"Import!I9235","v":0},{"$f":"Import!I9635","v":0},{"$f":"Import!I10035","v":0}]
[389,{"$f":"Import!I7236","v":"Select"},{"$f":"Import!I7636","v":"Select"},{"$f":"Import!I8036","v":"Select"},{"$f":"Import!I8436","v":0},{"$f":"Import!I8836","v":0},{"$f":"Import!I9236","v":0},{"$f":"Import!I9636","v":0},{"$f":"Import!I10036","v":0}]
[390,{"$f":"Import!I7237","v":"Select"},{"$f":"Import!I7637","v":"Select"},{"$f":"Import!I8037","v":"Select"},{"$f":"Import!I8437","v":0},{"$f":"Import!I8837","v":0},{"$f":"Import!I9237","v":0},{"$f":"Import!I9637","v":0},{"$f":"Import!I10037","v":0}]
[391,{"$f":"Import!I7238","v":"Select"},{"$f":"Import!I7638","v":"Select"},{"$f":"Import!I8038","v":"Select"},{"$f":"Import!I8438","v":0},{"$f":"Import!I8838","v":0},{"$f":"Import!I9238","v":0},{"$f":"Import!I9638","v":0},{"$f":"Import!I10038","v":0}]
[392,{"$f":"Import!I7239","v":"Select"},{"$f":"Import!I7639","v":"Select"},{"$f":"Import!I8039","v":"Select"},{"$f":"Import!I8439","v":0},{"$f":"Import!I8839","v":0},{"$f":"Import!I9239","v":0},{"$f":"Import!I9639","v":0},{"$f":"Import!I10039","v":0}]
[393,{"$f":"Import!I7240","v":"Select"},{"$f":"Import!I7640","v":"Select"},{"$f":"Import!I8040","v":"Select"},{"$f":"Import!I8440","v":0},{"$f":"Import!I8840","v":0},{"$f":"Import!I9240","v":0},{"$f":"Import!I9640","v":0},{"$f":"Import!I10040","v":0}]
[394,{"$f":"Import!I7241","v":"Select"},{"$f":"Import!I7641","v":"Select"},{"$f":"Import!I8041","v":"Select"},{"$f":"Import!I8441","v":0},{"$f":"Import!I8841","v":0},{"$f":"Import!I9241","v":0},{"$f":"Import!I9641","v":0},{"$f":"Import!I10041","v":0}]
[395,{"$f":"Import!I7242","v":"Select"},{"$f":"Import!I7642","v":"Select"},{"$f":"Import!I8042","v":"Select"},{"$f":"Import!I8442","v":0},{"$f":"Import!I8842","v":0},{"$f":"Import!I9242","v":0},{"$f":"Import!I9642","v":0},{"$f":"Import!I10042","v":0}]
[396,{"$f":"Import!I7243","v":"Select"},{"$f":"Import!I7643","v":"Select"},{"$f":"Import!I8043","v":"Select"},{"$f":"Import!I8443","v":0},{"$f":"Import!I8843","v":0},{"$f":"Import!I9243","v":0},{"$f":"Import!I9643","v":0},{"$f":"Import!I10043","v":0}]
[397,{"$f":"Import!I7244","v":"Select"},{"$f":"Import!I7644","v":"Select"},{"$f":"Import!I8044","v":"Select"},{"$f":"Import!I8444","v":0},{"$f":"Import!I8844","v":0},{"$f":"Import!I9244","v":0},{"$f":"Import!I9644","v":0},{"$f":"Import!I10044","v":0}]
[398,{"$f":"Import!I7245","v":"Select"},{"$f":"Import!I7645","v":"Select"},{"$f":"Import!I8045","v":"Select"},{"$f":"Import!I8445","v":0},{"$f":"Import!I8845","v":0},{"$f":"Import!I9245","v":0},{"$f":"Import!I9645","v":0},{"$f":"Import!I10045","v":0}]
[399,{"$f":"Import!I7246","v":"Select"},{"$f":"Import!I7646","v":"Select"},{"$f":"Import!I8046","v":"Select"},{"$f":"Import!I8446","v":0},{"$f":"Import!I8846","v":0},{"$f":"Import!I9246","v":0},{"$f":"Import!I9646","v":0},{"$f":"Import!I10046","v":0}]
[400,{"$f":"Import!I7247","v":"Select"},{"$f":"Import!I7647","v":"Select"},{"$f":"Import!I8047","v":"Select"},{"$f":"Import!I8447","v":0},{"$f":"Import!I8847","v":0},{"$f":"Import!I9247","v":0},{"$f":"Import!I9647","v":0},{"$f":"Import!I10047","v":0}]
[]
[null,"Total Bonds and Debentures",null,null,{"$f":"SUM(E219:E618)","v":0},{"$f":"SUM(F219:F618)","v":0},{"$f":"IFERROR(SUMPRODUCT(G219:G618,$F219:$F618)/SUM($F219:$F618),0)","v":0},{"$f":"IFERROR(SUMPRODUCT(H219:H618,$F219:$F618)/SUM($F219:$F618),0)","v":0}]
[]
[null,"- ADDITIONAL INFORMATION ON SOVEREIGN DEBT EXPOSURES"]
[]
[null,null,"Enter # of Asset Types",{"$f":"Import!I10048","v":0}]
[null,null,null,null,null,{"$f":"YEAR($C$3)","v":2023}]
[null,null,"Country","Currency","BSCR Rating","Fair Value","Comments"]
[null,1,{"$f":"Import!I10049","v":"Select"},{"$f":"Import!I10249","v":"Select"},{"$f":"Import!I10449","v":"Select"},{"$f":"Import!I10649","v":0},{"$f":"Import!I10849","v":0}]
[null,{"$f":"B627+1","v":2},{"$f":"Import!I10050","v":"Select"},{"$f":"Import!I10250","v":"Select"},{"$f":"Import!I10450","v":"Select"},{"$f":"Import!I10650","v":0},{"$f":"Import!I10850","v":0}]
[null,{"$f":"B628+1","v":3},{"$f":"Import!I10051","v":"Select"},{"$f":"Import!I10251","v":"Select"},{"$f":"Import!I10451","v":"Select"},{"$f":"Import!I10651","v":0},{"$f":"Import!I10851","v":0}]
[null,4,{"$f":"Import!I10052","v":"Select"},{"$f":"Import!I10252","v":"Select"},{"$f":"Import!I10452","v":"Select"},{"$f":"Import!I10652","v":0},{"$f":"Import!I10852","v":0}]
[null,5,{"$f":"Import!I10053","v":"Select"},{"$f":"Import!I10253","v":"Select"},{"$f":"Import!I10453","v":"Select"},{"$f":"Import!I10653","v":0},{"$f":"Import!I10853","v":0}]
[null,6,{"$f":"Import!I10054","v":"Select"},{"$f":"Import!I10254","v":"Select"},{"$f":"Import!I10454","v":"Select"},{"$f":"Import!I10654","v":0},{"$f":"Import!I10854","v":0}]
[null,7,{"$f":"Import!I10055","v":"Select"},{"$f":"Import!I10255","v":"Select"},{"$f":"Import!I10455","v":"Select"},{"$f":"Import!I10655","v":0},{"$f":"Import!I10855","v":0}]
[null,8,{"$f":"Import!I10056","v":"Select"},{"$f":"Import!I10256","v":"Select"},{"$f":"Import!I10456","v":"Select"},{"$f":"Import!I10656","v":0},{"$f":"Import!I10856","v":0}]
[null,9,{"$f":"Import!I10057","v":"Select"},{"$f":"Import!I10257","v":"Select"},{"$f":"Import!I10457","v":"Select"},{"$f":"Import!I10657","v":0},{"$f":"Import!I10857","v":0}]
[null,10,{"$f":"Import!I10058","v":"Select"},{"$f":"Import!I10258","v":"Select"},{"$f":"Import!I10458","v":"Select"},{"$f":"Import!I10658","v":0},{"$f":"Import!I10858","v":0}]
[null,11,{"$f":"Import!I10059","v":"Select"},{"$f":"Import!I10259","v":"Select"},{"$f":"Import!I10459","v":"Select"},{"$f":"Import!I10659","v":0},{"$f":"Import!I10859","v":0}]
[null,12,{"$f":"Import!I10060","v":"Select"},{"$f":"Import!I10260","v":"Select"},{"$f":"Import!I10460","v":"Select"},{"$f":"Import!I10660","v":0},{"$f":"Import!I10860","v":0}]
[null,13,{"$f":"Import!I10061","v":"Select"},{"$f":"Import!I10261","v":"Select"},{"$f":"Import!I10461","v":"Select"},{"$f":"Import!I10661","v":0},{"$f":"Import!I10861","v":0}]
[null,14,{"$f":"Import!I10062","v":"Select"},{"$f":"Import!I10262","v":"Select"},{"$f":"Import!I10462","v":"Select"},{"$f":"Import!I10662","v":0},{"$f":"Import!I10862","v":0}]
[null,15,{"$f":"Import!I10063","v":"Select"},{"$f":"Import!I10263","v":"Select"},{"$f":"Import!I10463","v":"Select"},{"$f":"Import!I10663","v":0},{"$f":"Import!I10863","v":0}]
[null,16,{"$f":"Import!I10064","v":"Select"},{"$f":"Import!I10264","v":"Select"},{"$f":"Import!I10464","v":"Select"},{"$f":"Import!I10664","v":0},{"$f":"Import!I10864","v":0}]
[null,17,{"$f":"Import!I10065","v":"Select"},{"$f":"Import!I10265","v":"Select"},{"$f":"Import!I10465","v":"Select"},{"$f":"Import!I10665","v":0},{"$f":"Import!I10865","v":0}]
[null,18,{"$f":"Import!I10066","v":"Select"},{"$f":"Import!I10266","v":"Select"},{"$f":"Import!I10466","v":"Select"},{"$f":"Import!I10666","v":0},{"$f":"Import!I10866","v":0}]
[null,19,{"$f":"Import!I10067","v":"Select"},{"$f":"Import!I10267","v":"Select"},{"$f":"Import!I10467","v":"Select"},{"$f":"Import!I10667","v":0},{"$f":"Import!I10867","v":0}]
[null,20,{"$f":"Import!I10068","v":"Select"},{"$f":"Import!I10268","v":"Select"},{"$f":"Import!I10468","v":"Select"},{"$f":"Import!I10668","v":0},{"$f":"Import!I10868","v":0}]
[null,21,{"$f":"Import!I10069","v":"Select"},{"$f":"Import!I10269","v":"Select"},{"$f":"Import!I10469","v":"Select"},{"$f":"Import!I10669","v":0},{"$f":"Import!I10869","v":0}]
[null,22,{"$f":"Import!I10070","v":"Select"},{"$f":"Import!I10270","v":"Select"},{"$f":"Import!I10470","v":"Select"},{"$f":"Import!I10670","v":0},{"$f":"Import!I10870","v":0}]
[null,23,{"$f":"Import!I10071","v":"Select"},{"$f":"Import!I10271","v":"Select"},{"$f":"Import!I10471","v":"Select"},{"$f":"Import!I10671","v":0},{"$f":"Import!I10871","v":0}]
[null,24,{"$f":"Import!I10072","v":"Select"},{"$f":"Import!I10272","v":"Select"},{"$f":"Import!I10472","v":"Select"},{"$f":"Import!I10672","v":0},{"$f":"Import!I10872","v":0}]
[null,25,{"$f":"Import!I10073","v":"Select"},{"$f":"Import!I10273","v":"Select"},{"$f":"Import!I10473","v":"Select"},{"$f":"Import!I10673","v":0},{"$f":"Import!I10873","v":0}]
[null,26,{"$f":"Import!I10074","v":"Select"},{"$f":"Import!I10274","v":"Select"},{"$f":"Import!I10474","v":"Select"},{"$f":"Import!I10674","v":0},{"$f":"Import!I10874","v":0}]
[null,27,{"$f":"Import!I10075","v":"Select"},{"$f":"Import!I10275","v":"Select"},{"$f":"Import!I10475","v":"Select"},{"$f":"Import!I10675","v":0},{"$f":"Import!I10875","v":0}]
[null,28,{"$f":"Import!I10076","v":"Select"},{"$f":"Import!I10276","v":"Select"},{"$f":"Import!I10476","v":"Select"},{"$f":"Import!I10676","v":0},{"$f":"Import!I10876","v":0}]
[null,29,{"$f":"Import!I10077","v":"Select"},{"$f":"Import!I10277","v":"Select"},{"$f":"Import!I10477","v":"Select"},{"$f":"Import!I10677","v":0},{"$f":"Import!I10877","v":0}]
[null,30,{"$f":"Import!I10078","v":"Select"},{"$f":"Import!I10278","v":"Select"},{"$f":"Import!I10478","v":"Select"},{"$f":"Import!I10678","v":0},{"$f":"Import!I10878","v":0}]
[null,31,{"$f":"Import!I10079","v":"Select"},{"$f":"Import!I10279","v":"Select"},{"$f":"Import!I10479","v":"Select"},{"$f":"Import!I10679","v":0},{"$f":"Import!I10879","v":0}]
[null,32,{"$f":"Import!I10080","v":"Select"},{"$f":"Import!I10280","v":"Select"},{"$f":"Import!I10480","v":"Select"},{"$f":"Import!I10680","v":0},{"$f":"Import!I10880","v":0}]
[null,33,{"$f":"Import!I10081","v":"Select"},{"$f":"Import!I10281","v":"Select"},{"$f":"Import!I10481","v":"Select"},{"$f":"Import!I10681","v":0},{"$f":"Import!I10881","v":0}]
[null,34,{"$f":"Import!I10082","v":"Select"},{"$f":"Import!I10282","v":"Select"},{"$f":"Import!I10482","v":"Select"},{"$f":"Import!I10682","v":0},{"$f":"Import!I10882","v":0}]
[null,35,{"$f":"Import!I10083","v":"Select"},{"$f":"Import!I10283","v":"Select"},{"$f":"Import!I10483","v":"Select"},{"$f":"Import!I10683","v":0},{"$f":"Import!I10883","v":0}]
[null,36,{"$f":"Import!I10084","v":"Select"},{"$f":"Import!I10284","v":"Select"},{"$f":"Import!I10484","v":"Select"},{"$f":"Import!I10684","v":0},{"$f":"Import!I10884","v":0}]
[null,37,{"$f":"Import!I10085","v":"Select"},{"$f":"Import!I10285","v":"Select"},{"$f":"Import!I10485","v":"Select"},{"$f":"Import!I10685","v":0},{"$f":"Import!I10885","v":0}]
[null,38,{"$f":"Import!I10086","v":"Select"},{"$f":"Import!I10286","v":"Select"},{"$f":"Import!I10486","v":"Select"},{"$f":"Import!I10686","v":0},{"$f":"Import!I10886","v":0}]
[null,39,{"$f":"Import!I10087","v":"Select"},{"$f":"Import!I10287","v":"Select"},{"$f":"Import!I10487","v":"Select"},{"$f":"Import!I10687","v":0},{"$f":"Import!I10887","v":0}]
[null,40,{"$f":"Import!I10088","v":"Select"},{"$f":"Import!I10288","v":"Select"},{"$f":"Import!I10488","v":"Select"},{"$f":"Import!I10688","v":0},{"$f":"Import!I10888","v":0}]
[null,41,{"$f":"Import!I10089","v":"Select"},{"$f":"Import!I10289","v":"Select"},{"$f":"Import!I10489","v":"Select"},{"$f":"Import!I10689","v":0},{"$f":"Import!I10889","v":0}]
[null,42,{"$f":"Import!I10090","v":"Select"},{"$f":"Import!I10290","v":"Select"},{"$f":"Import!I10490","v":"Select"},{"$f":"Import!I10690","v":0},{"$f":"Import!I10890","v":0}]
[null,43,{"$f":"Import!I10091","v":"Select"},{"$f":"Import!I10291","v":"Select"},{"$f":"Import!I10491","v":"Select"},{"$f":"Import!I10691","v":0},{"$f":"Import!I10891","v":0}]
[null,44,{"$f":"Import!I10092","v":"Select"},{"$f":"Import!I10292","v":"Select"},{"$f":"Import!I10492","v":"Select"},{"$f":"Import!I10692","v":0},{"$f":"Import!I10892","v":0}]
[null,45,{"$f":"Import!I10093","v":"Select"},{"$f":"Import!I10293","v":"Select"},{"$f":"Import!I10493","v":"Select"},{"$f":"Import!I10693","v":0},{"$f":"Import!I10893","v":0}]
[null,46,{"$f":"Import!I10094","v":"Select"},{"$f":"Import!I10294","v":"Select"},{"$f":"Import!I10494","v":"Select"},{"$f":"Import!I10694","v":0},{"$f":"Import!I10894","v":0}]
[null,47,{"$f":"Import!I10095","v":"Select"},{"$f":"Import!I10295","v":"Select"},{"$f":"Import!I10495","v":"Select"},{"$f":"Import!I10695","v":0},{"$f":"Import!I10895","v":0}]
[null,48,{"$f":"Import!I10096","v":"Select"},{"$f":"Import!I10296","v":"Select"},{"$f":"Import!I10496","v":"Select"},{"$f":"Import!I10696","v":0},{"$f":"Import!I10896","v":0}]
[null,49,{"$f":"Import!I10097","v":"Select"},{"$f":"Import!I10297","v":"Select"},{"$f":"Import!I10497","v":"Select"},{"$f":"Import!I10697","v":0},{"$f":"Import!I10897","v":0}]
[null,50,{"$f":"Import!I10098","v":"Select"},{"$f":"Import!I10298","v":"Select"},{"$f":"Import!I10498","v":"Select"},{"$f":"Import!I10698","v":0},{"$f":"Import!I10898","v":0}]
[null,51,{"$f":"Import!I10099","v":"Select"},{"$f":"Import!I10299","v":"Select"},{"$f":"Import!I10499","v":"Select"},{"$f":"Import!I10699","v":0},{"$f":"Import!I10899","v":0}]
[null,52,{"$f":"Import!I10100","v":"Select"},{"$f":"Import!I10300","v":"Select"},{"$f":"Import!I10500","v":"Select"},{"$f":"Import!I10700","v":0},{"$f":"Import!I10900","v":0}]
[null,53,{"$f":"Import!I10101","v":"Select"},{"$f":"Import!I10301","v":"Select"},{"$f":"Import!I10501","v":"Select"},{"$f":"Import!I10701","v":0},{"$f":"Import!I10901","v":0}]
[null,54,{"$f":"Import!I10102","v":"Select"},{"$f":"Import!I10302","v":"Select"},{"$f":"Import!I10502","v":"Select"},{"$f":"Import!I10702","v":0},{"$f":"Import!I10902","v":0}]
[null,55,{"$f":"Import!I10103","v":"Select"},{"$f":"Import!I10303","v":"Select"},{"$f":"Import!I10503","v":"Select"},{"$f":"Import!I10703","v":0},{"$f":"Import!I10903","v":0}]
[null,56,{"$f":"Import!I10104","v":"Select"},{"$f":"Import!I10304","v":"Select"},{"$f":"Import!I10504","v":"Select"},{"$f":"Import!I10704","v":0},{"$f":"Import!I10904","v":0}]
[null,57,{"$f":"Import!I10105","v":"Select"},{"$f":"Import!I10305","v":"Select"},{"$f":"Import!I10505","v":"Select"},{"$f":"Import!I10705","v":0},{"$f":"Import!I10905","v":0}]
[null,58,{"$f":"Import!I10106","v":"Select"},{"$f":"Import!I10306","v":"Select"},{"$f":"Import!I10506","v":"Select"},{"$f":"Import!I10706","v":0},{"$f":"Import!I10906","v":0}]
[null,59,{"$f":"Import!I10107","v":"Select"},{"$f":"Import!I10307","v":"Select"},{"$f":"Import!I10507","v":"Select"},{"$f":"Import!I10707","v":0},{"$f":"Import!I10907","v":0}]
[null,60,{"$f":"Import!I10108","v":"Select"},{"$f":"Import!I10308","v":"Select"},{"$f":"Import!I10508","v":"Select"},{"$f":"Import!I10708","v":0},{"$f":"Import!I10908","v":0}]
[null,61,{"$f":"Import!I10109","v":"Select"},{"$f":"Import!I10309","v":"Select"},{"$f":"Import!I10509","v":"Select"},{"$f":"Import!I10709","v":0},{"$f":"Import!I10909","v":0}]
[null,62,{"$f":"Import!I10110","v":"Select"},{"$f":"Import!I10310","v":"Select"},{"$f":"Import!I10510","v":"Select"},{"$f":"Import!I10710","v":0},{"$f":"Import!I10910","v":0}]
[null,63,{"$f":"Import!I10111","v":"Select"},{"$f":"Import!I10311","v":"Select"},{"$f":"Import!I10511","v":"Select"},{"$f":"Import!I10711","v":0},{"$f":"Import!I10911","v":0}]
[null,64,{"$f":"Import!I10112","v":"Select"},{"$f":"Import!I10312","v":"Select"},{"$f":"Import!I10512","v":"Select"},{"$f":"Import!I10712","v":0},{"$f":"Import!I10912","v":0}]
[null,65,{"$f":"Import!I10113","v":"Select"},{"$f":"Import!I10313","v":"Select"},{"$f":"Import!I10513","v":"Select"},{"$f":"Import!I10713","v":0},{"$f":"Import!I10913","v":0}]
[null,66,{"$f":"Import!I10114","v":"Select"},{"$f":"Import!I10314","v":"Select"},{"$f":"Import!I10514","v":"Select"},{"$f":"Import!I10714","v":0},{"$f":"Import!I10914","v":0}]
[null,{"$f":"B692+1","v":67},{"$f":"Import!I10115","v":"Select"},{"$f":"Import!I10315","v":"Select"},{"$f":"Import!I10515","v":"Select"},{"$f":"Import!I10715","v":0},{"$f":"Import!I10915","v":0}]
[null,68,{"$f":"Import!I10116","v":"Select"},{"$f":"Import!I10316","v":"Select"},{"$f":"Import!I10516","v":"Select"},{"$f":"Import!I10716","v":0},{"$f":"Import!I10916","v":0}]
[null,69,{"$f":"Import!I10117","v":"Select"},{"$f":"Import!I10317","v":"Select"},{"$f":"Import!I10517","v":"Select"},{"$f":"Import!I10717","v":0},{"$f":"Import!I10917","v":0}]
[null,70,{"$f":"Import!I10118","v":"Select"},{"$f":"Import!I10318","v":"Select"},{"$f":"Import!I10518","v":"Select"},{"$f":"Import!I10718","v":0},{"$f":"Import!I10918","v":0}]
[null,71,{"$f":"Import!I10119","v":"Select"},{"$f":"Import!I10319","v":"Select"},{"$f":"Import!I10519","v":"Select"},{"$f":"Import!I10719","v":0},{"$f":"Import!I10919","v":0}]
[null,72,{"$f":"Import!I10120","v":"Select"},{"$f":"Import!I10320","v":"Select"},{"$f":"Import!I10520","v":"Select"},{"$f":"Import!I10720","v":0},{"$f":"Import!I10920","v":0}]
[null,73,{"$f":"Import!I10121","v":"Select"},{"$f":"Import!I10321","v":"Select"},{"$f":"Import!I10521","v":"Select"},{"$f":"Import!I10721","v":0},{"$f":"Import!I10921","v":0}]
[null,74,{"$f":"Import!I10122","v":"Select"},{"$f":"Import!I10322","v":"Select"},{"$f":"Import!I10522","v":"Select"},{"$f":"Import!I10722","v":0},{"$f":"Import!I10922","v":0}]
[null,75,{"$f":"Import!I10123","v":"Select"},{"$f":"Import!I10323","v":"Select"},{"$f":"Import!I10523","v":"Select"},{"$f":"Import!I10723","v":0},{"$f":"Import!I10923","v":0}]
[null,76,{"$f":"Import!I10124","v":"Select"},{"$f":"Import!I10324","v":"Select"},{"$f":"Import!I10524","v":"Select"},{"$f":"Import!I10724","v":0},{"$f":"Import!I10924","v":0}]
[null,77,{"$f":"Import!I10125","v":"Select"},{"$f":"Import!I10325","v":"Select"},{"$f":"Import!I10525","v":"Select"},{"$f":"Import!I10725","v":0},{"$f":"Import!I10925","v":0}]
[null,78,{"$f":"Import!I10126","v":"Select"},{"$f":"Import!I10326","v":"Select"},{"$f":"Import!I10526","v":"Select"},{"$f":"Import!I10726","v":0},{"$f":"Import!I10926","v":0}]
[null,79,{"$f":"Import!I10127","v":"Select"},{"$f":"Import!I10327","v":"Select"},{"$f":"Import!I10527","v":"Select"},{"$f":"Import!I10727","v":0},{"$f":"Import!I10927","v":0}]
[null,80,{"$f":"Import!I10128","v":"Select"},{"$f":"Import!I10328","v":"Select"},{"$f":"Import!I10528","v":"Select"},{"$f":"Import!I10728","v":0},{"$f":"Import!I10928","v":0}]
[null,81,{"$f":"Import!I10129","v":"Select"},{"$f":"Import!I10329","v":"Select"},{"$f":"Import!I10529","v":"Select"},{"$f":"Import!I10729","v":0},{"$f":"Import!I10929","v":0}]
[null,82,{"$f":"Import!I10130","v":"Select"},{"$f":"Import!I10330","v":"Select"},{"$f":"Import!I10530","v":"Select"},{"$f":"Import!I10730","v":0},{"$f":"Import!I10930","v":0}]
[null,83,{"$f":"Import!I10131","v":"Select"},{"$f":"Import!I10331","v":"Select"},{"$f":"Import!I10531","v":"Select"},{"$f":"Import!I10731","v":0},{"$f":"Import!I10931","v":0}]
[null,84,{"$f":"Import!I10132","v":"Select"},{"$f":"Import!I10332","v":"Select"},{"$f":"Import!I10532","v":"Select"},{"$f":"Import!I10732","v":0},{"$f":"Import!I10932","v":0}]
[null,85,{"$f":"Import!I10133","v":"Select"},{"$f":"Import!I10333","v":"Select"},{"$f":"Import!I10533","v":"Select"},{"$f":"Import!I10733","v":0},{"$f":"Import!I10933","v":0}]
[null,86,{"$f":"Import!I10134","v":"Select"},{"$f":"Import!I10334","v":"Select"},{"$f":"Import!I10534","v":"Select"},{"$f":"Import!I10734","v":0},{"$f":"Import!I10934","v":0}]
[null,87,{"$f":"Import!I10135","v":"Select"},{"$f":"Import!I10335","v":"Select"},{"$f":"Import!I10535","v":"Select"},{"$f":"Import!I10735","v":0},{"$f":"Import!I10935","v":0}]
[null,88,{"$f":"Import!I10136","v":"Select"},{"$f":"Import!I10336","v":"Select"},{"$f":"Import!I10536","v":"Select"},{"$f":"Import!I10736","v":0},{"$f":"Import!I10936","v":0}]
[null,89,{"$f":"Import!I10137","v":"Select"},{"$f":"Import!I10337","v":"Select"},{"$f":"Import!I10537","v":"Select"},{"$f":"Import!I10737","v":0},{"$f":"Import!I10937","v":0}]
[null,90,{"$f":"Import!I10138","v":"Select"},{"$f":"Import!I10338","v":"Select"},{"$f":"Import!I10538","v":"Select"},{"$f":"Import!I10738","v":0},{"$f":"Import!I10938","v":0}]
[null,91,{"$f":"Import!I10139","v":"Select"},{"$f":"Import!I10339","v":"Select"},{"$f":"Import!I10539","v":"Select"},{"$f":"Import!I10739","v":0},{"$f":"Import!I10939","v":0}]
[null,92,{"$f":"Import!I10140","v":"Select"},{"$f":"Import!I10340","v":"Select"},{"$f":"Import!I10540","v":"Select"},{"$f":"Import!I10740","v":0},{"$f":"Import!I10940","v":0}]
[null,93,{"$f":"Import!I10141","v":"Select"},{"$f":"Import!I10341","v":"Select"},{"$f":"Import!I10541","v":"Select"},{"$f":"Import!I10741","v":0},{"$f":"Import!I10941","v":0}]
[null,94,{"$f":"Import!I10142","v":"Select"},{"$f":"Import!I10342","v":"Select"},{"$f":"Import!I10542","v":"Select"},{"$f":"Import!I10742","v":0},{"$f":"Import!I10942","v":0}]
[null,95,{"$f":"Import!I10143","v":"Select"},{"$f":"Import!I10343","v":"Select"},{"$f":"Import!I10543","v":"Select"},{"$f":"Import!I10743","v":0},{"$f":"Import!I10943","v":0}]
[null,96,{"$f":"Import!I10144","v":"Select"},{"$f":"Import!I10344","v":"Select"},{"$f":"Import!I10544","v":"Select"},{"$f":"Import!I10744","v":0},{"$f":"Import!I10944","v":0}]
[null,97,{"$f":"Import!I10145","v":"Select"},{"$f":"Import!I10345","v":"Select"},{"$f":"Import!I10545","v":"Select"},{"$f":"Import!I10745","v":0},{"$f":"Import!I10945","v":0}]
[null,98,{"$f":"Import!I10146","v":"Select"},{"$f":"Import!I10346","v":"Select"},{"$f":"Import!I10546","v":"Select"},{"$f":"Import!I10746","v":0},{"$f":"Import!I10946","v":0}]
[null,99,{"$f":"Import!I10147","v":"Select"},{"$f":"Import!I10347","v":"Select"},{"$f":"Import!I10547","v":"Select"},{"$f":"Import!I10747","v":0},{"$f":"Import!I10947","v":0}]
[null,100,{"$f":"Import!I10148","v":"Select"},{"$f":"Import!I10348","v":"Select"},{"$f":"Import!I10548","v":"Select"},{"$f":"Import!I10748","v":0},{"$f":"Import!I10948","v":0}]
[null,101,{"$f":"Import!I10149","v":"Select"},{"$f":"Import!I10349","v":"Select"},{"$f":"Import!I10549","v":"Select"},{"$f":"Import!I10749","v":0},{"$f":"Import!I10949","v":0}]
[null,102,{"$f":"Import!I10150","v":"Select"},{"$f":"Import!I10350","v":"Select"},{"$f":"Import!I10550","v":"Select"},{"$f":"Import!I10750","v":0},{"$f":"Import!I10950","v":0}]
[null,103,{"$f":"Import!I10151","v":"Select"},{"$f":"Import!I10351","v":"Select"},{"$f":"Import!I10551","v":"Select"},{"$f":"Import!I10751","v":0},{"$f":"Import!I10951","v":0}]
[null,104,{"$f":"Import!I10152","v":"Select"},{"$f":"Import!I10352","v":"Select"},{"$f":"Import!I10552","v":"Select"},{"$f":"Import!I10752","v":0},{"$f":"Import!I10952","v":0}]
[null,105,{"$f":"Import!I10153","v":"Select"},{"$f":"Import!I10353","v":"Select"},{"$f":"Import!I10553","v":"Select"},{"$f":"Import!I10753","v":0},{"$f":"Import!I10953","v":0}]
[null,106,{"$f":"Import!I10154","v":"Select"},{"$f":"Import!I10354","v":"Select"},{"$f":"Import!I10554","v":"Select"},{"$f":"Import!I10754","v":0},{"$f":"Import!I10954","v":0}]
[null,107,{"$f":"Import!I10155","v":"Select"},{"$f":"Import!I10355","v":"Select"},{"$f":"Import!I10555","v":"Select"},{"$f":"Import!I10755","v":0},{"$f":"Import!I10955","v":0}]
[null,108,{"$f":"Import!I10156","v":"Select"},{"$f":"Import!I10356","v":"Select"},{"$f":"Import!I10556","v":"Select"},{"$f":"Import!I10756","v":0},{"$f":"Import!I10956","v":0}]
[null,109,{"$f":"Import!I10157","v":"Select"},{"$f":"Import!I10357","v":"Select"},{"$f":"Import!I10557","v":"Select"},{"$f":"Import!I10757","v":0},{"$f":"Import!I10957","v":0}]
[null,110,{"$f":"Import!I10158","v":"Select"},{"$f":"Import!I10358","v":"Select"},{"$f":"Import!I10558","v":"Select"},{"$f":"Import!I10758","v":0},{"$f":"Import!I10958","v":0}]
[null,111,{"$f":"Import!I10159","v":"Select"},{"$f":"Import!I10359","v":"Select"},{"$f":"Import!I10559","v":"Select"},{"$f":"Import!I10759","v":0},{"$f":"Import!I10959","v":0}]
[null,112,{"$f":"Import!I10160","v":"Select"},{"$f":"Import!I10360","v":"Select"},{"$f":"Import!I10560","v":"Select"},{"$f":"Import!I10760","v":0},{"$f":"Import!I10960","v":0}]
[null,113,{"$f":"Import!I10161","v":"Select"},{"$f":"Import!I10361","v":"Select"},{"$f":"Import!I10561","v":"Select"},{"$f":"Import!I10761","v":0},{"$f":"Import!I10961","v":0}]
[null,114,{"$f":"Import!I10162","v":"Select"},{"$f":"Import!I10362","v":"Select"},{"$f":"Import!I10562","v":"Select"},{"$f":"Import!I10762","v":0},{"$f":"Import!I10962","v":0}]
[null,115,{"$f":"Import!I10163","v":"Select"},{"$f":"Import!I10363","v":"Select"},{"$f":"Import!I10563","v":"Select"},{"$f":"Import!I10763","v":0},{"$f":"Import!I10963","v":0}]
[null,116,{"$f":"Import!I10164","v":"Select"},{"$f":"Import!I10364","v":"Select"},{"$f":"Import!I10564","v":"Select"},{"$f":"Import!I10764","v":0},{"$f":"Import!I10964","v":0}]
[null,117,{"$f":"Import!I10165","v":"Select"},{"$f":"Import!I10365","v":"Select"},{"$f":"Import!I10565","v":"Select"},{"$f":"Import!I10765","v":0},{"$f":"Import!I10965","v":0}]
[null,118,{"$f":"Import!I10166","v":"Select"},{"$f":"Import!I10366","v":"Select"},{"$f":"Import!I10566","v":"Select"},{"$f":"Import!I10766","v":0},{"$f":"Import!I10966","v":0}]
[null,119,{"$f":"Import!I10167","v":"Select"},{"$f":"Import!I10367","v":"Select"},{"$f":"Import!I10567","v":"Select"},{"$f":"Import!I10767","v":0},{"$f":"Import!I10967","v":0}]
[null,120,{"$f":"Import!I10168","v":"Select"},{"$f":"Import!I10368","v":"Select"},{"$f":"Import!I10568","v":"Select"},{"$f":"Import!I10768","v":0},{"$f":"Import!I10968","v":0}]
[null,121,{"$f":"Import!I10169","v":"Select"},{"$f":"Import!I10369","v":"Select"},{"$f":"Import!I10569","v":"Select"},{"$f":"Import!I10769","v":0},{"$f":"Import!I10969","v":0}]
[null,122,{"$f":"Import!I10170","v":"Select"},{"$f":"Import!I10370","v":"Select"},{"$f":"Import!I10570","v":"Select"},{"$f":"Import!I10770","v":0},{"$f":"Import!I10970","v":0}]
[null,123,{"$f":"Import!I10171","v":"Select"},{"$f":"Import!I10371","v":"Select"},{"$f":"Import!I10571","v":"Select"},{"$f":"Import!I10771","v":0},{"$f":"Import!I10971","v":0}]
[null,124,{"$f":"Import!I10172","v":"Select"},{"$f":"Import!I10372","v":"Select"},{"$f":"Import!I10572","v":"Select"},{"$f":"Import!I10772","v":0},{"$f":"Import!I10972","v":0}]
[null,125,{"$f":"Import!I10173","v":"Select"},{"$f":"Import!I10373","v":"Select"},{"$f":"Import!I10573","v":"Select"},{"$f":"Import!I10773","v":0},{"$f":"Import!I10973","v":0}]
[null,126,{"$f":"Import!I10174","v":"Select"},{"$f":"Import!I10374","v":"Select"},{"$f":"Import!I10574","v":"Select"},{"$f":"Import!I10774","v":0},{"$f":"Import!I10974","v":0}]
[null,127,{"$f":"Import!I10175","v":"Select"},{"$f":"Import!I10375","v":"Select"},{"$f":"Import!I10575","v":"Select"},{"$f":"Import!I10775","v":0},{"$f":"Import!I10975","v":0}]
[null,128,{"$f":"Import!I10176","v":"Select"},{"$f":"Import!I10376","v":"Select"},{"$f":"Import!I10576","v":"Select"},{"$f":"Import!I10776","v":0},{"$f":"Import!I10976","v":0}]
[null,129,{"$f":"Import!I10177","v":"Select"},{"$f":"Import!I10377","v":"Select"},{"$f":"Import!I10577","v":"Select"},{"$f":"Import!I10777","v":0},{"$f":"Import!I10977","v":0}]
[null,130,{"$f":"Import!I10178","v":"Select"},{"$f":"Import!I10378","v":"Select"},{"$f":"Import!I10578","v":"Select"},{"$f":"Import!I10778","v":0},{"$f":"Import!I10978","v":0}]
[null,{"$f":"B756+1","v":131},{"$f":"Import!I10179","v":"Select"},{"$f":"Import!I10379","v":"Select"},{"$f":"Import!I10579","v":"Select"},{"$f":"Import!I10779","v":0},{"$f":"Import!I10979","v":0}]
[null,132,{"$f":"Import!I10180","v":"Select"},{"$f":"Import!I10380","v":"Select"},{"$f":"Import!I10580","v":"Select"},{"$f":"Import!I10780","v":0},{"$f":"Import!I10980","v":0}]
[null,133,{"$f":"Import!I10181","v":"Select"},{"$f":"Import!I10381","v":"Select"},{"$f":"Import!I10581","v":"Select"},{"$f":"Import!I10781","v":0},{"$f":"Import!I10981","v":0}]
[null,134,{"$f":"Import!I10182","v":"Select"},{"$f":"Import!I10382","v":"Select"},{"$f":"Import!I10582","v":"Select"},{"$f":"Import!I10782","v":0},{"$f":"Import!I10982","v":0}]
[null,135,{"$f":"Import!I10183","v":"Select"},{"$f":"Import!I10383","v":"Select"},{"$f":"Import!I10583","v":"Select"},{"$f":"Import!I10783","v":0},{"$f":"Import!I10983","v":0}]
[null,136,{"$f":"Import!I10184","v":"Select"},{"$f":"Import!I10384","v":"Select"},{"$f":"Import!I10584","v":"Select"},{"$f":"Import!I10784","v":0},{"$f":"Import!I10984","v":0}]
[null,137,{"$f":"Import!I10185","v":"Select"},{"$f":"Import!I10385","v":"Select"},{"$f":"Import!I10585","v":"Select"},{"$f":"Import!I10785","v":0},{"$f":"Import!I10985","v":0}]
[null,138,{"$f":"Import!I10186","v":"Select"},{"$f":"Import!I10386","v":"Select"},{"$f":"Import!I10586","v":"Select"},{"$f":"Import!I10786","v":0},{"$f":"Import!I10986","v":0}]
[null,139,{"$f":"Import!I10187","v":"Select"},{"$f":"Import!I10387","v":"Select"},{"$f":"Import!I10587","v":"Select"},{"$f":"Import!I10787","v":0},{"$f":"Import!I10987","v":0}]
[null,140,{"$f":"Import!I10188","v":"Select"},{"$f":"Import!I10388","v":"Select"},{"$f":"Import!I10588","v":"Select"},{"$f":"Import!I10788","v":0},{"$f":"Import!I10988","v":0}]
[null,141,{"$f":"Import!I10189","v":"Select"},{"$f":"Import!I10389","v":"Select"},{"$f":"Import!I10589","v":"Select"},{"$f":"Import!I10789","v":0},{"$f":"Import!I10989","v":0}]
[null,142,{"$f":"Import!I10190","v":"Select"},{"$f":"Import!I10390","v":"Select"},{"$f":"Import!I10590","v":"Select"},{"$f":"Import!I10790","v":0},{"$f":"Import!I10990","v":0}]
[null,143,{"$f":"Import!I10191","v":"Select"},{"$f":"Import!I10391","v":"Select"},{"$f":"Import!I10591","v":"Select"},{"$f":"Import!I10791","v":0},{"$f":"Import!I10991","v":0}]
[null,144,{"$f":"Import!I10192","v":"Select"},{"$f":"Import!I10392","v":"Select"},{"$f":"Import!I10592","v":"Select"},{"$f":"Import!I10792","v":0},{"$f":"Import!I10992","v":0}]
[null,145,{"$f":"Import!I10193","v":"Select"},{"$f":"Import!I10393","v":"Select"},{"$f":"Import!I10593","v":"Select"},{"$f":"Import!I10793","v":0},{"$f":"Import!I10993","v":0}]
[null,146,{"$f":"Import!I10194","v":"Select"},{"$f":"Import!I10394","v":"Select"},{"$f":"Import!I10594","v":"Select"},{"$f":"Import!I10794","v":0},{"$f":"Import!I10994","v":0}]
[null,147,{"$f":"Import!I10195","v":"Select"},{"$f":"Import!I10395","v":"Select"},{"$f":"Import!I10595","v":"Select"},{"$f":"Import!I10795","v":0},{"$f":"Import!I10995","v":0}]
[null,148,{"$f":"Import!I10196","v":"Select"},{"$f":"Import!I10396","v":"Select"},{"$f":"Import!I10596","v":"Select"},{"$f":"Import!I10796","v":0},{"$f":"Import!I10996","v":0}]
[null,149,{"$f":"Import!I10197","v":"Select"},{"$f":"Import!I10397","v":"Select"},{"$f":"Import!I10597","v":"Select"},{"$f":"Import!I10797","v":0},{"$f":"Import!I10997","v":0}]
[null,150,{"$f":"Import!I10198","v":"Select"},{"$f":"Import!I10398","v":"Select"},{"$f":"Import!I10598","v":"Select"},{"$f":"Import!I10798","v":0},{"$f":"Import!I10998","v":0}]
[null,151,{"$f":"Import!I10199","v":"Select"},{"$f":"Import!I10399","v":"Select"},{"$f":"Import!I10599","v":"Select"},{"$f":"Import!I10799","v":0},{"$f":"Import!I10999","v":0}]
[null,152,{"$f":"Import!I10200","v":"Select"},{"$f":"Import!I10400","v":"Select"},{"$f":"Import!I10600","v":"Select"},{"$f":"Import!I10800","v":0},{"$f":"Import!I11000","v":0}]
[null,153,{"$f":"Import!I10201","v":"Select"},{"$f":"Import!I10401","v":"Select"},{"$f":"Import!I10601","v":"Select"},{"$f":"Import!I10801","v":0},{"$f":"Import!I11001","v":0}]
[null,154,{"$f":"Import!I10202","v":"Select"},{"$f":"Import!I10402","v":"Select"},{"$f":"Import!I10602","v":"Select"},{"$f":"Import!I10802","v":0},{"$f":"Import!I11002","v":0}]
[null,155,{"$f":"Import!I10203","v":"Select"},{"$f":"Import!I10403","v":"Select"},{"$f":"Import!I10603","v":"Select"},{"$f":"Import!I10803","v":0},{"$f":"Import!I11003","v":0}]
[null,156,{"$f":"Import!I10204","v":"Select"},{"$f":"Import!I10404","v":"Select"},{"$f":"Import!I10604","v":"Select"},{"$f":"Import!I10804","v":0},{"$f":"Import!I11004","v":0}]
[null,157,{"$f":"Import!I10205","v":"Select"},{"$f":"Import!I10405","v":"Select"},{"$f":"Import!I10605","v":"Select"},{"$f":"Import!I10805","v":0},{"$f":"Import!I11005","v":0}]
[null,158,{"$f":"Import!I10206","v":"Select"},{"$f":"Import!I10406","v":"Select"},{"$f":"Import!I10606","v":"Select"},{"$f":"Import!I10806","v":0},{"$f":"Import!I11006","v":0}]
[null,159,{"$f":"Import!I10207","v":"Select"},{"$f":"Import!I10407","v":"Select"},{"$f":"Import!I10607","v":"Select"},{"$f":"Import!I10807","v":0},{"$f":"Import!I11007","v":0}]
[null,160,{"$f":"Import!I10208","v":"Select"},{"$f":"Import!I10408","v":"Select"},{"$f":"Import!I10608","v":"Select"},{"$f":"Import!I10808","v":0},{"$f":"Import!I11008","v":0}]
[null,161,{"$f":"Import!I10209","v":"Select"},{"$f":"Import!I10409","v":"Select"},{"$f":"Import!I10609","v":"Select"},{"$f":"Import!I10809","v":0},{"$f":"Import!I11009","v":0}]
[null,162,{"$f":"Import!I10210","v":"Select"},{"$f":"Import!I10410","v":"Select"},{"$f":"Import!I10610","v":"Select"},{"$f":"Import!I10810","v":0},{"$f":"Import!I11010","v":0}]
[null,163,{"$f":"Import!I10211","v":"Select"},{"$f":"Import!I10411","v":"Select"},{"$f":"Import!I10611","v":"Select"},{"$f":"Import!I10811","v":0},{"$f":"Import!I11011","v":0}]
[null,164,{"$f":"Import!I10212","v":"Select"},{"$f":"Import!I10412","v":"Select"},{"$f":"Import!I10612","v":"Select"},{"$f":"Import!I10812","v":0},{"$f":"Import!I11012","v":0}]
[null,165,{"$f":"Import!I10213","v":"Select"},{"$f":"Import!I10413","v":"Select"},{"$f":"Import!I10613","v":"Select"},{"$f":"Import!I10813","v":0},{"$f":"Import!I11013","v":0}]
[null,166,{"$f":"Import!I10214","v":"Select"},{"$f":"Import!I10414","v":"Select"},{"$f":"Import!I10614","v":"Select"},{"$f":"Import!I10814","v":0},{"$f":"Import!I11014","v":0}]
[null,167,{"$f":"Import!I10215","v":"Select"},{"$f":"Import!I10415","v":"Select"},{"$f":"Import!I10615","v":"Select"},{"$f":"Import!I10815","v":0},{"$f":"Import!I11015","v":0}]
[null,168,{"$f":"Import!I10216","v":"Select"},{"$f":"Import!I10416","v":"Select"},{"$f":"Import!I10616","v":"Select"},{"$f":"Import!I10816","v":0},{"$f":"Import!I11016","v":0}]
[null,169,{"$f":"Import!I10217","v":"Select"},{"$f":"Import!I10417","v":"Select"},{"$f":"Import!I10617","v":"Select"},{"$f":"Import!I10817","v":0},{"$f":"Import!I11017","v":0}]
[null,170,{"$f":"Import!I10218","v":"Select"},{"$f":"Import!I10418","v":"Select"},{"$f":"Import!I10618","v":"Select"},{"$f":"Import!I10818","v":0},{"$f":"Import!I11018","v":0}]
[null,171,{"$f":"Import!I10219","v":"Select"},{"$f":"Import!I10419","v":"Select"},{"$f":"Import!I10619","v":"Select"},{"$f":"Import!I10819","v":0},{"$f":"Import!I11019","v":0}]
[null,172,{"$f":"Import!I10220","v":"Select"},{"$f":"Import!I10420","v":"Select"},{"$f":"Import!I10620","v":"Select"},{"$f":"Import!I10820","v":0},{"$f":"Import!I11020","v":0}]
[null,173,{"$f":"Import!I10221","v":"Select"},{"$f":"Import!I10421","v":"Select"},{"$f":"Import!I10621","v":"Select"},{"$f":"Import!I10821","v":0},{"$f":"Import!I11021","v":0}]
[null,174,{"$f":"Import!I10222","v":"Select"},{"$f":"Import!I10422","v":"Select"},{"$f":"Import!I10622","v":"Select"},{"$f":"Import!I10822","v":0},{"$f":"Import!I11022","v":0}]
[null,175,{"$f":"Import!I10223","v":"Select"},{"$f":"Import!I10423","v":"Select"},{"$f":"Import!I10623","v":"Select"},{"$f":"Import!I10823","v":0},{"$f":"Import!I11023","v":0}]
[null,176,{"$f":"Import!I10224","v":"Select"},{"$f":"Import!I10424","v":"Select"},{"$f":"Import!I10624","v":"Select"},{"$f":"Import!I10824","v":0},{"$f":"Import!I11024","v":0}]
[null,177,{"$f":"Import!I10225","v":"Select"},{"$f":"Import!I10425","v":"Select"},{"$f":"Import!I10625","v":"Select"},{"$f":"Import!I10825","v":0},{"$f":"Import!I11025","v":0}]
[null,178,{"$f":"Import!I10226","v":"Select"},{"$f":"Import!I10426","v":"Select"},{"$f":"Import!I10626","v":"Select"},{"$f":"Import!I10826","v":0},{"$f":"Import!I11026","v":0}]
[null,179,{"$f":"Import!I10227","v":"Select"},{"$f":"Import!I10427","v":"Select"},{"$f":"Import!I10627","v":"Select"},{"$f":"Import!I10827","v":0},{"$f":"Import!I11027","v":0}]
[null,180,{"$f":"Import!I10228","v":"Select"},{"$f":"Import!I10428","v":"Select"},{"$f":"Import!I10628","v":"Select"},{"$f":"Import!I10828","v":0},{"$f":"Import!I11028","v":0}]
[null,181,{"$f":"Import!I10229","v":"Select"},{"$f":"Import!I10429","v":"Select"},{"$f":"Import!I10629","v":"Select"},{"$f":"Import!I10829","v":0},{"$f":"Import!I11029","v":0}]
[null,182,{"$f":"Import!I10230","v":"Select"},{"$f":"Import!I10430","v":"Select"},{"$f":"Import!I10630","v":"Select"},{"$f":"Import!I10830","v":0},{"$f":"Import!I11030","v":0}]
[null,183,{"$f":"Import!I10231","v":"Select"},{"$f":"Import!I10431","v":"Select"},{"$f":"Import!I10631","v":"Select"},{"$f":"Import!I10831","v":0},{"$f":"Import!I11031","v":0}]
[null,184,{"$f":"Import!I10232","v":"Select"},{"$f":"Import!I10432","v":"Select"},{"$f":"Import!I10632","v":"Select"},{"$f":"Import!I10832","v":0},{"$f":"Import!I11032","v":0}]
[null,185,{"$f":"Import!I10233","v":"Select"},{"$f":"Import!I10433","v":"Select"},{"$f":"Import!I10633","v":"Select"},{"$f":"Import!I10833","v":0},{"$f":"Import!I11033","v":0}]
[null,186,{"$f":"Import!I10234","v":"Select"},{"$f":"Import!I10434","v":"Select"},{"$f":"Import!I10634","v":"Select"},{"$f":"Import!I10834","v":0},{"$f":"Import!I11034","v":0}]
[null,187,{"$f":"Import!I10235","v":"Select"},{"$f":"Import!I10435","v":"Select"},{"$f":"Import!I10635","v":"Select"},{"$f":"Import!I10835","v":0},{"$f":"Import!I11035","v":0}]
[null,188,{"$f":"Import!I10236","v":"Select"},{"$f":"Import!I10436","v":"Select"},{"$f":"Import!I10636","v":"Select"},{"$f":"Import!I10836","v":0},{"$f":"Import!I11036","v":0}]
[null,189,{"$f":"Import!I10237","v":"Select"},{"$f":"Import!I10437","v":"Select"},{"$f":"Import!I10637","v":"Select"},{"$f":"Import!I10837","v":0},{"$f":"Import!I11037","v":0}]
[null,190,{"$f":"Import!I10238","v":"Select"},{"$f":"Import!I10438","v":"Select"},{"$f":"Import!I10638","v":"Select"},{"$f":"Import!I10838","v":0},{"$f":"Import!I11038","v":0}]
[null,191,{"$f":"Import!I10239","v":"Select"},{"$f":"Import!I10439","v":"Select"},{"$f":"Import!I10639","v":"Select"},{"$f":"Import!I10839","v":0},{"$f":"Import!I11039","v":0}]
[null,192,{"$f":"Import!I10240","v":"Select"},{"$f":"Import!I10440","v":"Select"},{"$f":"Import!I10640","v":"Select"},{"$f":"Import!I10840","v":0},{"$f":"Import!I11040","v":0}]
[null,193,{"$f":"Import!I10241","v":"Select"},{"$f":"Import!I10441","v":"Select"},{"$f":"Import!I10641","v":"Select"},{"$f":"Import!I10841","v":0},{"$f":"Import!I11041","v":0}]
[null,194,{"$f":"Import!I10242","v":"Select"},{"$f":"Import!I10442","v":"Select"},{"$f":"Import!I10642","v":"Select"},{"$f":"Import!I10842","v":0},{"$f":"Import!I11042","v":0}]
[null,{"$f":"B820+1","v":195},{"$f":"Import!I10243","v":"Select"},{"$f":"Import!I10443","v":"Select"},{"$f":"Import!I10643","v":"Select"},{"$f":"Import!I10843","v":0},{"$f":"Import!I11043","v":0}]
[null,196,{"$f":"Import!I10244","v":"Select"},{"$f":"Import!I10444","v":"Select"},{"$f":"Import!I10644","v":"Select"},{"$f":"Import!I10844","v":0},{"$f":"Import!I11044","v":0}]
[null,197,{"$f":"Import!I10245","v":"Select"},{"$f":"Import!I10445","v":"Select"},{"$f":"Import!I10645","v":"Select"},{"$f":"Import!I10845","v":0},{"$f":"Import!I11045","v":0}]
[null,198,{"$f":"Import!I10246","v":"Select"},{"$f":"Import!I10446","v":"Select"},{"$f":"Import!I10646","v":"Select"},{"$f":"Import!I10846","v":0},{"$f":"Import!I11046","v":0}]
[null,199,{"$f":"Import!I10247","v":"Select"},{"$f":"Import!I10447","v":"Select"},{"$f":"Import!I10647","v":"Select"},{"$f":"Import!I10847","v":0},{"$f":"Import!I11047","v":0}]
[null,200,{"$f":"Import!I10248","v":"Select"},{"$f":"Import!I10448","v":"Select"},{"$f":"Import!I10648","v":"Select"},{"$f":"Import!I10848","v":0},{"$f":"Import!I11048","v":0}]
[]
[null,null,null,null,null,{"$f":"SUM(F627:F826)","v":0}]
[]
[null,"(C) ASSET-BACKED AND STRUCTURED SECURITIES"]
[]
[null,null,"Enter # of Asset Types",{"$f":"Import!I11049","v":0}]
[null,null,null,null,{"$f":"YEAR($C$3)","v":2023},2023,"Weighted"]
[null,"Asset Type","Currency","BSCR Rating","Nominal Amount","Fair Value","Average YTM","Effective Duration","Comments"]
[1,{"$f":"Import!I11050","v":"Select"},{"$f":"Import!I11200","v":"Select"},{"$f":"Import!I11350","v":"Select"},{"$f":"Import!I11500","v":0},{"$f":"Import!I11650","v":0},{"$f":"Import!I11800","v":0},{"$f":"Import!I11950","v":0},{"$f":"Import!I12100","v":0}]
[{"$f":"A835+1","v":2},{"$f":"Import!I11051","v":"Select"},{"$f":"Import!I11201","v":"Select"},{"$f":"Import!I11351","v":"Select"},{"$f":"Import!I11501","v":0},{"$f":"Import!I11651","v":0},{"$f":"Import!I11801","v":0},{"$f":"Import!I11951","v":0},{"$f":"Import!I12101","v":0}]
[{"$f":"A836+1","v":3},{"$f":"Import!I11052","v":"Select"},{"$f":"Import!I11202","v":"Select"},{"$f":"Import!I11352","v":"Select"},{"$f":"Import!I11502","v":0},{"$f":"Import!I11652","v":0},{"$f":"Import!I11802","v":0},{"$f":"Import!I11952","v":0},{"$f":"Import!I12102","v":0}]
[4,{"$f":"Import!I11053","v":"Select"},{"$f":"Import!I11203","v":"Select"},{"$f":"Import!I11353","v":"Select"},{"$f":"Import!I11503","v":0},{"$f":"Import!I11653","v":0},{"$f":"Import!I11803","v":0},{"$f":"Import!I11953","v":0},{"$f":"Import!I12103","v":0}]
[5,{"$f":"Import!I11054","v":"Select"},{"$f":"Import!I11204","v":"Select"},{"$f":"Import!I11354","v":"Select"},{"$f":"Import!I11504","v":0},{"$f":"Import!I11654","v":0},{"$f":"Import!I11804","v":0},{"$f":"Import!I11954","v":0},{"$f":"Import!I12104","v":0}]
[6,{"$f":"Import!I11055","v":"Select"},{"$f":"Import!I11205","v":"Select"},{"$f":"Import!I11355","v":"Select"},{"$f":"Import!I11505","v":0},{"$f":"Import!I11655","v":0},{"$f":"Import!I11805","v":0},{"$f":"Import!I11955","v":0},{"$f":"Import!I12105","v":0}]
[7,{"$f":"Import!I11056","v":"Select"},{"$f":"Import!I11206","v":"Select"},{"$f":"Import!I11356","v":"Select"},{"$f":"Import!I11506","v":0},{"$f":"Import!I11656","v":0},{"$f":"Import!I11806","v":0},{"$f":"Import!I11956","v":0},{"$f":"Import!I12106","v":0}]
[8,{"$f":"Import!I11057","v":"Select"},{"$f":"Import!I11207","v":"Select"},{"$f":"Import!I11357","v":"Select"},{"$f":"Import!I11507","v":0},{"$f":"Import!I11657","v":0},{"$f":"Import!I11807","v":0},{"$f":"Import!I11957","v":0},{"$f":"Import!I12107","v":0}]
[9,{"$f":"Import!I11058","v":"Select"},{"$f":"Import!I11208","v":"Select"},{"$f":"Import!I11358","v":"Select"},{"$f":"Import!I11508","v":0},{"$f":"Import!I11658","v":0},{"$f":"Import!I11808","v":0},{"$f":"Import!I11958","v":0},{"$f":"Import!I12108","v":0}]
[10,{"$f":"Import!I11059","v":"Select"},{"$f":"Import!I11209","v":"Select"},{"$f":"Import!I11359","v":"Select"},{"$f":"Import!I11509","v":0},{"$f":"Import!I11659","v":0},{"$f":"Import!I11809","v":0},{"$f":"Import!I11959","v":0},{"$f":"Import!I12109","v":0}]
[11,{"$f":"Import!I11060","v":"Select"},{"$f":"Import!I11210","v":"Select"},{"$f":"Import!I11360","v":"Select"},{"$f":"Import!I11510","v":0},{"$f":"Import!I11660","v":0},{"$f":"Import!I11810","v":0},{"$f":"Import!I11960","v":0},{"$f":"Import!I12110","v":0}]
[12,{"$f":"Import!I11061","v":"Select"},{"$f":"Import!I11211","v":"Select"},{"$f":"Import!I11361","v":"Select"},{"$f":"Import!I11511","v":0},{"$f":"Import!I11661","v":0},{"$f":"Import!I11811","v":0},{"$f":"Import!I11961","v":0},{"$f":"Import!I12111","v":0}]
[13,{"$f":"Import!I11062","v":"Select"},{"$f":"Import!I11212","v":"Select"},{"$f":"Import!I11362","v":"Select"},{"$f":"Import!I11512","v":0},{"$f":"Import!I11662","v":0},{"$f":"Import!I11812","v":0},{"$f":"Import!I11962","v":0},{"$f":"Import!I12112","v":0}]
[14,{"$f":"Import!I11063","v":"Select"},{"$f":"Import!I11213","v":"Select"},{"$f":"Import!I11363","v":"Select"},{"$f":"Import!I11513","v":0},{"$f":"Import!I11663","v":0},{"$f":"Import!I11813","v":0},{"$f":"Import!I11963","v":0},{"$f":"Import!I12113","v":0}]
[15,{"$f":"Import!I11064","v":"Select"},{"$f":"Import!I11214","v":"Select"},{"$f":"Import!I11364","v":"Select"},{"$f":"Import!I11514","v":0},{"$f":"Import!I11664","v":0},{"$f":"Import!I11814","v":0},{"$f":"Import!I11964","v":0},{"$f":"Import!I12114","v":0}]
[16,{"$f":"Import!I11065","v":"Select"},{"$f":"Import!I11215","v":"Select"},{"$f":"Import!I11365","v":"Select"},{"$f":"Import!I11515","v":0},{"$f":"Import!I11665","v":0},{"$f":"Import!I11815","v":0},{"$f":"Import!I11965","v":0},{"$f":"Import!I12115","v":0}]
[17,{"$f":"Import!I11066","v":"Select"},{"$f":"Import!I11216","v":"Select"},{"$f":"Import!I11366","v":"Select"},{"$f":"Import!I11516","v":0},{"$f":"Import!I11666","v":0},{"$f":"Import!I11816","v":0},{"$f":"Import!I11966","v":0},{"$f":"Import!I12116","v":0}]
[18,{"$f":"Import!I11067","v":"Select"},{"$f":"Import!I11217","v":"Select"},{"$f":"Import!I11367","v":"Select"},{"$f":"Import!I11517","v":0},{"$f":"Import!I11667","v":0},{"$f":"Import!I11817","v":0},{"$f":"Import!I11967","v":0},{"$f":"Import!I12117","v":0}]
[19,{"$f":"Import!I11068","v":"Select"},{"$f":"Import!I11218","v":"Select"},{"$f":"Import!I11368","v":"Select"},{"$f":"Import!I11518","v":0},{"$f":"Import!I11668","v":0},{"$f":"Import!I11818","v":0},{"$f":"Import!I11968","v":0},{"$f":"Import!I12118","v":0}]
[20,{"$f":"Import!I11069","v":"Select"},{"$f":"Import!I11219","v":"Select"},{"$f":"Import!I11369","v":"Select"},{"$f":"Import!I11519","v":0},{"$f":"Import!I11669","v":0},{"$f":"Import!I11819","v":0},{"$f":"Import!I11969","v":0},{"$f":"Import!I12119","v":0}]
[21,{"$f":"Import!I11070","v":"Select"},{"$f":"Import!I11220","v":"Select"},{"$f":"Import!I11370","v":"Select"},{"$f":"Import!I11520","v":0},{"$f":"Import!I11670","v":0},{"$f":"Import!I11820","v":0},{"$f":"Import!I11970","v":0},{"$f":"Import!I12120","v":0}]
[22,{"$f":"Import!I11071","v":"Select"},{"$f":"Import!I11221","v":"Select"},{"$f":"Import!I11371","v":"Select"},{"$f":"Import!I11521","v":0},{"$f":"Import!I11671","v":0},{"$f":"Import!I11821","v":0},{"$f":"Import!I11971","v":0},{"$f":"Import!I12121","v":0}]
[23,{"$f":"Import!I11072","v":"Select"},{"$f":"Import!I11222","v":"Select"},{"$f":"Import!I11372","v":"Select"},{"$f":"Import!I11522","v":0},{"$f":"Import!I11672","v":0},{"$f":"Import!I11822","v":0},{"$f":"Import!I11972","v":0},{"$f":"Import!I12122","v":0}]
[24,{"$f":"Import!I11073","v":"Select"},{"$f":"Import!I11223","v":"Select"},{"$f":"Import!I11373","v":"Select"},{"$f":"Import!I11523","v":0},{"$f":"Import!I11673","v":0},{"$f":"Import!I11823","v":0},{"$f":"Import!I11973","v":0},{"$f":"Import!I12123","v":0}]
[25,{"$f":"Import!I11074","v":"Select"},{"$f":"Import!I11224","v":"Select"},{"$f":"Import!I11374","v":"Select"},{"$f":"Import!I11524","v":0},{"$f":"Import!I11674","v":0},{"$f":"Import!I11824","v":0},{"$f":"Import!I11974","v":0},{"$f":"Import!I12124","v":0}]
[26,{"$f":"Import!I11075","v":"Select"},{"$f":"Import!I11225","v":"Select"},{"$f":"Import!I11375","v":"Select"},{"$f":"Import!I11525","v":0},{"$f":"Import!I11675","v":0},{"$f":"Import!I11825","v":0},{"$f":"Import!I11975","v":0},{"$f":"Import!I12125","v":0}]
[27,{"$f":"Import!I11076","v":"Select"},{"$f":"Import!I11226","v":"Select"},{"$f":"Import!I11376","v":"Select"},{"$f":"Import!I11526","v":0},{"$f":"Import!I11676","v":0},{"$f":"Import!I11826","v":0},{"$f":"Import!I11976","v":0},{"$f":"Import!I12126","v":0}]
[28,{"$f":"Import!I11077","v":"Select"},{"$f":"Import!I11227","v":"Select"},{"$f":"Import!I11377","v":"Select"},{"$f":"Import!I11527","v":0},{"$f":"Import!I11677","v":0},{"$f":"Import!I11827","v":0},{"$f":"Import!I11977","v":0},{"$f":"Import!I12127","v":0}]
[29,{"$f":"Import!I11078","v":"Select"},{"$f":"Import!I11228","v":"Select"},{"$f":"Import!I11378","v":"Select"},{"$f":"Import!I11528","v":0},{"$f":"Import!I11678","v":0},{"$f":"Import!I11828","v":0},{"$f":"Import!I11978","v":0},{"$f":"Import!I12128","v":0}]
[30,{"$f":"Import!I11079","v":"Select"},{"$f":"Import!I11229","v":"Select"},{"$f":"Import!I11379","v":"Select"},{"$f":"Import!I11529","v":0},{"$f":"Import!I11679","v":0},{"$f":"Import!I11829","v":0},{"$f":"Import!I11979","v":0},{"$f":"Import!I12129","v":0}]
[31,{"$f":"Import!I11080","v":"Select"},{"$f":"Import!I11230","v":"Select"},{"$f":"Import!I11380","v":"Select"},{"$f":"Import!I11530","v":0},{"$f":"Import!I11680","v":0},{"$f":"Import!I11830","v":0},{"$f":"Import!I11980","v":0},{"$f":"Import!I12130","v":0}]
[32,{"$f":"Import!I11081","v":"Select"},{"$f":"Import!I11231","v":"Select"},{"$f":"Import!I11381","v":"Select"},{"$f":"Import!I11531","v":0},{"$f":"Import!I11681","v":0},{"$f":"Import!I11831","v":0},{"$f":"Import!I11981","v":0},{"$f":"Import!I12131","v":0}]
[33,{"$f":"Import!I11082","v":"Select"},{"$f":"Import!I11232","v":"Select"},{"$f":"Import!I11382","v":"Select"},{"$f":"Import!I11532","v":0},{"$f":"Import!I11682","v":0},{"$f":"Import!I11832","v":0},{"$f":"Import!I11982","v":0},{"$f":"Import!I12132","v":0}]
[34,{"$f":"Import!I11083","v":"Select"},{"$f":"Import!I11233","v":"Select"},{"$f":"Import!I11383","v":"Select"},{"$f":"Import!I11533","v":0},{"$f":"Import!I11683","v":0},{"$f":"Import!I11833","v":0},{"$f":"Import!I11983","v":0},{"$f":"Import!I12133","v":0}]
[35,{"$f":"Import!I11084","v":"Select"},{"$f":"Import!I11234","v":"Select"},{"$f":"Import!I11384","v":"Select"},{"$f":"Import!I11534","v":0},{"$f":"Import!I11684","v":0},{"$f":"Import!I11834","v":0},{"$f":"Import!I11984","v":0},{"$f":"Import!I12134","v":0}]
[36,{"$f":"Import!I11085","v":"Select"},{"$f":"Import!I11235","v":"Select"},{"$f":"Import!I11385","v":"Select"},{"$f":"Import!I11535","v":0},{"$f":"Import!I11685","v":0},{"$f":"Import!I11835","v":0},{"$f":"Import!I11985","v":0},{"$f":"Import!I12135","v":0}]
[37,{"$f":"Import!I11086","v":"Select"},{"$f":"Import!I11236","v":"Select"},{"$f":"Import!I11386","v":"Select"},{"$f":"Import!I11536","v":0},{"$f":"Import!I11686","v":0},{"$f":"Import!I11836","v":0},{"$f":"Import!I11986","v":0},{"$f":"Import!I12136","v":0}]
[38,{"$f":"Import!I11087","v":"Select"},{"$f":"Import!I11237","v":"Select"},{"$f":"Import!I11387","v":"Select"},{"$f":"Import!I11537","v":0},{"$f":"Import!I11687","v":0},{"$f":"Import!I11837","v":0},{"$f":"Import!I11987","v":0},{"$f":"Import!I12137","v":0}]
[39,{"$f":"Import!I11088","v":"Select"},{"$f":"Import!I11238","v":"Select"},{"$f":"Import!I11388","v":"Select"},{"$f":"Import!I11538","v":0},{"$f":"Import!I11688","v":0},{"$f":"Import!I11838","v":0},{"$f":"Import!I11988","v":0},{"$f":"Import!I12138","v":0}]
[40,{"$f":"Import!I11089","v":"Select"},{"$f":"Import!I11239","v":"Select"},{"$f":"Import!I11389","v":"Select"},{"$f":"Import!I11539","v":0},{"$f":"Import!I11689","v":0},{"$f":"Import!I11839","v":0},{"$f":"Import!I11989","v":0},{"$f":"Import!I12139","v":0}]
[41,{"$f":"Import!I11090","v":"Select"},{"$f":"Import!I11240","v":"Select"},{"$f":"Import!I11390","v":"Select"},{"$f":"Import!I11540","v":0},{"$f":"Import!I11690","v":0},{"$f":"Import!I11840","v":0},{"$f":"Import!I11990","v":0},{"$f":"Import!I12140","v":0}]
[42,{"$f":"Import!I11091","v":"Select"},{"$f":"Import!I11241","v":"Select"},{"$f":"Import!I11391","v":"Select"},{"$f":"Import!I11541","v":0},{"$f":"Import!I11691","v":0},{"$f":"Import!I11841","v":0},{"$f":"Import!I11991","v":0},{"$f":"Import!I12141","v":0}]
[43,{"$f":"Import!I11092","v":"Select"},{"$f":"Import!I11242","v":"Select"},{"$f":"Import!I11392","v":"Select"},{"$f":"Import!I11542","v":0},{"$f":"Import!I11692","v":0},{"$f":"Import!I11842","v":0},{"$f":"Import!I11992","v":0},{"$f":"Import!I12142","v":0}]
[44,{"$f":"Import!I11093","v":"Select"},{"$f":"Import!I11243","v":"Select"},{"$f":"Import!I11393","v":"Select"},{"$f":"Import!I11543","v":0},{"$f":"Import!I11693","v":0},{"$f":"Import!I11843","v":0},{"$f":"Import!I11993","v":0},{"$f":"Import!I12143","v":0}]
[45,{"$f":"Import!I11094","v":"Select"},{"$f":"Import!I11244","v":"Select"},{"$f":"Import!I11394","v":"Select"},{"$f":"Import!I11544","v":0},{"$f":"Import!I11694","v":0},{"$f":"Import!I11844","v":0},{"$f":"Import!I11994","v":0},{"$f":"Import!I12144","v":0}]
[46,{"$f":"Import!I11095","v":"Select"},{"$f":"Import!I11245","v":"Select"},{"$f":"Import!I11395","v":"Select"},{"$f":"Import!I11545","v":0},{"$f":"Import!I11695","v":0},{"$f":"Import!I11845","v":0},{"$f":"Import!I11995","v":0},{"$f":"Import!I12145","v":0}]
[47,{"$f":"Import!I11096","v":"Select"},{"$f":"Import!I11246","v":"Select"},{"$f":"Import!I11396","v":"Select"},{"$f":"Import!I11546","v":0},{"$f":"Import!I11696","v":0},{"$f":"Import!I11846","v":0},{"$f":"Import!I11996","v":0},{"$f":"Import!I12146","v":0}]
[48,{"$f":"Import!I11097","v":"Select"},{"$f":"Import!I11247","v":"Select"},{"$f":"Import!I11397","v":"Select"},{"$f":"Import!I11547","v":0},{"$f":"Import!I11697","v":0},{"$f":"Import!I11847","v":0},{"$f":"Import!I11997","v":0},{"$f":"Import!I12147","v":0}]
[49,{"$f":"Import!I11098","v":"Select"},{"$f":"Import!I11248","v":"Select"},{"$f":"Import!I11398","v":"Select"},{"$f":"Import!I11548","v":0},{"$f":"Import!I11698","v":0},{"$f":"Import!I11848","v":0},{"$f":"Import!I11998","v":0},{"$f":"Import!I12148","v":0}]
[50,{"$f":"Import!I11099","v":"Select"},{"$f":"Import!I11249","v":"Select"},{"$f":"Import!I11399","v":"Select"},{"$f":"Import!I11549","v":0},{"$f":"Import!I11699","v":0},{"$f":"Import!I11849","v":0},{"$f":"Import!I11999","v":0},{"$f":"Import!I12149","v":0}]
[51,{"$f":"Import!I11100","v":"Select"},{"$f":"Import!I11250","v":"Select"},{"$f":"Import!I11400","v":"Select"},{"$f":"Import!I11550","v":0},{"$f":"Import!I11700","v":0},{"$f":"Import!I11850","v":0},{"$f":"Import!I12000","v":0},{"$f":"Import!I12150","v":0}]
[52,{"$f":"Import!I11101","v":"Select"},{"$f":"Import!I11251","v":"Select"},{"$f":"Import!I11401","v":"Select"},{"$f":"Import!I11551","v":0},{"$f":"Import!I11701","v":0},{"$f":"Import!I11851","v":0},{"$f":"Import!I12001","v":0},{"$f":"Import!I12151","v":0}]
[53,{"$f":"Import!I11102","v":"Select"},{"$f":"Import!I11252","v":"Select"},{"$f":"Import!I11402","v":"Select"},{"$f":"Import!I11552","v":0},{"$f":"Import!I11702","v":0},{"$f":"Import!I11852","v":0},{"$f":"Import!I12002","v":0},{"$f":"Import!I12152","v":0}]
[54,{"$f":"Import!I11103","v":"Select"},{"$f":"Import!I11253","v":"Select"},{"$f":"Import!I11403","v":"Select"},{"$f":"Import!I11553","v":0},{"$f":"Import!I11703","v":0},{"$f":"Import!I11853","v":0},{"$f":"Import!I12003","v":0},{"$f":"Import!I12153","v":0}]
[55,{"$f":"Import!I11104","v":"Select"},{"$f":"Import!I11254","v":"Select"},{"$f":"Import!I11404","v":"Select"},{"$f":"Import!I11554","v":0},{"$f":"Import!I11704","v":0},{"$f":"Import!I11854","v":0},{"$f":"Import!I12004","v":0},{"$f":"Import!I12154","v":0}]
[56,{"$f":"Import!I11105","v":"Select"},{"$f":"Import!I11255","v":"Select"},{"$f":"Import!I11405","v":"Select"},{"$f":"Import!I11555","v":0},{"$f":"Import!I11705","v":0},{"$f":"Import!I11855","v":0},{"$f":"Import!I12005","v":0},{"$f":"Import!I12155","v":0}]
[57,{"$f":"Import!I11106","v":"Select"},{"$f":"Import!I11256","v":"Select"},{"$f":"Import!I11406","v":"Select"},{"$f":"Import!I11556","v":0},{"$f":"Import!I11706","v":0},{"$f":"Import!I11856","v":0},{"$f":"Import!I12006","v":0},{"$f":"Import!I12156","v":0}]
[58,{"$f":"Import!I11107","v":"Select"},{"$f":"Import!I11257","v":"Select"},{"$f":"Import!I11407","v":"Select"},{"$f":"Import!I11557","v":0},{"$f":"Import!I11707","v":0},{"$f":"Import!I11857","v":0},{"$f":"Import!I12007","v":0},{"$f":"Import!I12157","v":0}]
[59,{"$f":"Import!I11108","v":"Select"},{"$f":"Import!I11258","v":"Select"},{"$f":"Import!I11408","v":"Select"},{"$f":"Import!I11558","v":0},{"$f":"Import!I11708","v":0},{"$f":"Import!I11858","v":0},{"$f":"Import!I12008","v":0},{"$f":"Import!I12158","v":0}]
[60,{"$f":"Import!I11109","v":"Select"},{"$f":"Import!I11259","v":"Select"},{"$f":"Import!I11409","v":"Select"},{"$f":"Import!I11559","v":0},{"$f":"Import!I11709","v":0},{"$f":"Import!I11859","v":0},{"$f":"Import!I12009","v":0},{"$f":"Import!I12159","v":0}]
[61,{"$f":"Import!I11110","v":"Select"},{"$f":"Import!I11260","v":"Select"},{"$f":"Import!I11410","v":"Select"},{"$f":"Import!I11560","v":0},{"$f":"Import!I11710","v":0},{"$f":"Import!I11860","v":0},{"$f":"Import!I12010","v":0},{"$f":"Import!I12160","v":0}]
[62,{"$f":"Import!I11111","v":"Select"},{"$f":"Import!I11261","v":"Select"},{"$f":"Import!I11411","v":"Select"},{"$f":"Import!I11561","v":0},{"$f":"Import!I11711","v":0},{"$f":"Import!I11861","v":0},{"$f":"Import!I12011","v":0},{"$f":"Import!I12161","v":0}]
[63,{"$f":"Import!I11112","v":"Select"},{"$f":"Import!I11262","v":"Select"},{"$f":"Import!I11412","v":"Select"},{"$f":"Import!I11562","v":0},{"$f":"Import!I11712","v":0},{"$f":"Import!I11862","v":0},{"$f":"Import!I12012","v":0},{"$f":"Import!I12162","v":0}]
[64,{"$f":"Import!I11113","v":"Select"},{"$f":"Import!I11263","v":"Select"},{"$f":"Import!I11413","v":"Select"},{"$f":"Import!I11563","v":0},{"$f":"Import!I11713","v":0},{"$f":"Import!I11863","v":0},{"$f":"Import!I12013","v":0},{"$f":"Import!I12163","v":0}]
[65,{"$f":"Import!I11114","v":"Select"},{"$f":"Import!I11264","v":"Select"},{"$f":"Import!I11414","v":"Select"},{"$f":"Import!I11564","v":0},{"$f":"Import!I11714","v":0},{"$f":"Import!I11864","v":0},{"$f":"Import!I12014","v":0},{"$f":"Import!I12164","v":0}]
[66,{"$f":"Import!I11115","v":"Select"},{"$f":"Import!I11265","v":"Select"},{"$f":"Import!I11415","v":"Select"},{"$f":"Import!I11565","v":0},{"$f":"Import!I11715","v":0},{"$f":"Import!I11865","v":0},{"$f":"Import!I12015","v":0},{"$f":"Import!I12165","v":0}]
[{"$f":"A900+1","v":67},{"$f":"Import!I11116","v":"Select"},{"$f":"Import!I11266","v":"Select"},{"$f":"Import!I11416","v":"Select"},{"$f":"Import!I11566","v":0},{"$f":"Import!I11716","v":0},{"$f":"Import!I11866","v":0},{"$f":"Import!I12016","v":0},{"$f":"Import!I12166","v":0}]
[68,{"$f":"Import!I11117","v":"Select"},{"$f":"Import!I11267","v":"Select"},{"$f":"Import!I11417","v":"Select"},{"$f":"Import!I11567","v":0},{"$f":"Import!I11717","v":0},{"$f":"Import!I11867","v":0},{"$f":"Import!I12017","v":0},{"$f":"Import!I12167","v":0}]
[69,{"$f":"Import!I11118","v":"Select"},{"$f":"Import!I11268","v":"Select"},{"$f":"Import!I11418","v":"Select"},{"$f":"Import!I11568","v":0},{"$f":"Import!I11718","v":0},{"$f":"Import!I11868","v":0},{"$f":"Import!I12018","v":0},{"$f":"Import!I12168","v":0}]
[70,{"$f":"Import!I11119","v":"Select"},{"$f":"Import!I11269","v":"Select"},{"$f":"Import!I11419","v":"Select"},{"$f":"Import!I11569","v":0},{"$f":"Import!I11719","v":0},{"$f":"Import!I11869","v":0},{"$f":"Import!I12019","v":0},{"$f":"Import!I12169","v":0}]
[71,{"$f":"Import!I11120","v":"Select"},{"$f":"Import!I11270","v":"Select"},{"$f":"Import!I11420","v":"Select"},{"$f":"Import!I11570","v":0},{"$f":"Import!I11720","v":0},{"$f":"Import!I11870","v":0},{"$f":"Import!I12020","v":0},{"$f":"Import!I12170","v":0}]
[72,{"$f":"Import!I11121","v":"Select"},{"$f":"Import!I11271","v":"Select"},{"$f":"Import!I11421","v":"Select"},{"$f":"Import!I11571","v":0},{"$f":"Import!I11721","v":0},{"$f":"Import!I11871","v":0},{"$f":"Import!I12021","v":0},{"$f":"Import!I12171","v":0}]
[73,{"$f":"Import!I11122","v":"Select"},{"$f":"Import!I11272","v":"Select"},{"$f":"Import!I11422","v":"Select"},{"$f":"Import!I11572","v":0},{"$f":"Import!I11722","v":0},{"$f":"Import!I11872","v":0},{"$f":"Import!I12022","v":0},{"$f":"Import!I12172","v":0}]
[74,{"$f":"Import!I11123","v":"Select"},{"$f":"Import!I11273","v":"Select"},{"$f":"Import!I11423","v":"Select"},{"$f":"Import!I11573","v":0},{"$f":"Import!I11723","v":0},{"$f":"Import!I11873","v":0},{"$f":"Import!I12023","v":0},{"$f":"Import!I12173","v":0}]
[75,{"$f":"Import!I11124","v":"Select"},{"$f":"Import!I11274","v":"Select"},{"$f":"Import!I11424","v":"Select"},{"$f":"Import!I11574","v":0},{"$f":"Import!I11724","v":0},{"$f":"Import!I11874","v":0},{"$f":"Import!I12024","v":0},{"$f":"Import!I12174","v":0}]
[76,{"$f":"Import!I11125","v":"Select"},{"$f":"Import!I11275","v":"Select"},{"$f":"Import!I11425","v":"Select"},{"$f":"Import!I11575","v":0},{"$f":"Import!I11725","v":0},{"$f":"Import!I11875","v":0},{"$f":"Import!I12025","v":0},{"$f":"Import!I12175","v":0}]
[77,{"$f":"Import!I11126","v":"Select"},{"$f":"Import!I11276","v":"Select"},{"$f":"Import!I11426","v":"Select"},{"$f":"Import!I11576","v":0},{"$f":"Import!I11726","v":0},{"$f":"Import!I11876","v":0},{"$f":"Import!I12026","v":0},{"$f":"Import!I12176","v":0}]
[78,{"$f":"Import!I11127","v":"Select"},{"$f":"Import!I11277","v":"Select"},{"$f":"Import!I11427","v":"Select"},{"$f":"Import!I11577","v":0},{"$f":"Import!I11727","v":0},{"$f":"Import!I11877","v":0},{"$f":"Import!I12027","v":0},{"$f":"Import!I12177","v":0}]
[79,{"$f":"Import!I11128","v":"Select"},{"$f":"Import!I11278","v":"Select"},{"$f":"Import!I11428","v":"Select"},{"$f":"Import!I11578","v":0},{"$f":"Import!I11728","v":0},{"$f":"Import!I11878","v":0},{"$f":"Import!I12028","v":0},{"$f":"Import!I12178","v":0}]
[80,{"$f":"Import!I11129","v":"Select"},{"$f":"Import!I11279","v":"Select"},{"$f":"Import!I11429","v":"Select"},{"$f":"Import!I11579","v":0},{"$f":"Import!I11729","v":0},{"$f":"Import!I11879","v":0},{"$f":"Import!I12029","v":0},{"$f":"Import!I12179","v":0}]
[81,{"$f":"Import!I11130","v":"Select"},{"$f":"Import!I11280","v":"Select"},{"$f":"Import!I11430","v":"Select"},{"$f":"Import!I11580","v":0},{"$f":"Import!I11730","v":0},{"$f":"Import!I11880","v":0},{"$f":"Import!I12030","v":0},{"$f":"Import!I12180","v":0}]
[82,{"$f":"Import!I11131","v":"Select"},{"$f":"Import!I11281","v":"Select"},{"$f":"Import!I11431","v":"Select"},{"$f":"Import!I11581","v":0},{"$f":"Import!I11731","v":0},{"$f":"Import!I11881","v":0},{"$f":"Import!I12031","v":0},{"$f":"Import!I12181","v":0}]
[83,{"$f":"Import!I11132","v":"Select"},{"$f":"Import!I11282","v":"Select"},{"$f":"Import!I11432","v":"Select"},{"$f":"Import!I11582","v":0},{"$f":"Import!I11732","v":0},{"$f":"Import!I11882","v":0},{"$f":"Import!I12032","v":0},{"$f":"Import!I12182","v":0}]
[84,{"$f":"Import!I11133","v":"Select"},{"$f":"Import!I11283","v":"Select"},{"$f":"Import!I11433","v":"Select"},{"$f":"Import!I11583","v":0},{"$f":"Import!I11733","v":0},{"$f":"Import!I11883","v":0},{"$f":"Import!I12033","v":0},{"$f":"Import!I12183","v":0}]
[85,{"$f":"Import!I11134","v":"Select"},{"$f":"Import!I11284","v":"Select"},{"$f":"Import!I11434","v":"Select"},{"$f":"Import!I11584","v":0},{"$f":"Import!I11734","v":0},{"$f":"Import!I11884","v":0},{"$f":"Import!I12034","v":0},{"$f":"Import!I12184","v":0}]
[86,{"$f":"Import!I11135","v":"Select"},{"$f":"Import!I11285","v":"Select"},{"$f":"Import!I11435","v":"Select"},{"$f":"Import!I11585","v":0},{"$f":"Import!I11735","v":0},{"$f":"Import!I11885","v":0},{"$f":"Import!I12035","v":0},{"$f":"Import!I12185","v":0}]
[87,{"$f":"Import!I11136","v":"Select"},{"$f":"Import!I11286","v":"Select"},{"$f":"Import!I11436","v":"Select"},{"$f":"Import!I11586","v":0},{"$f":"Import!I11736","v":0},{"$f":"Import!I11886","v":0},{"$f":"Import!I12036","v":0},{"$f":"Import!I12186","v":0}]
[88,{"$f":"Import!I11137","v":"Select"},{"$f":"Import!I11287","v":"Select"},{"$f":"Import!I11437","v":"Select"},{"$f":"Import!I11587","v":0},{"$f":"Import!I11737","v":0},{"$f":"Import!I11887","v":0},{"$f":"Import!I12037","v":0},{"$f":"Import!I12187","v":0}]
[89,{"$f":"Import!I11138","v":"Select"},{"$f":"Import!I11288","v":"Select"},{"$f":"Import!I11438","v":"Select"},{"$f":"Import!I11588","v":0},{"$f":"Import!I11738","v":0},{"$f":"Import!I11888","v":0},{"$f":"Import!I12038","v":0},{"$f":"Import!I12188","v":0}]
[90,{"$f":"Import!I11139","v":"Select"},{"$f":"Import!I11289","v":"Select"},{"$f":"Import!I11439","v":"Select"},{"$f":"Import!I11589","v":0},{"$f":"Import!I11739","v":0},{"$f":"Import!I11889","v":0},{"$f":"Import!I12039","v":0},{"$f":"Import!I12189","v":0}]
[91,{"$f":"Import!I11140","v":"Select"},{"$f":"Import!I11290","v":"Select"},{"$f":"Import!I11440","v":"Select"},{"$f":"Import!I11590","v":0},{"$f":"Import!I11740","v":0},{"$f":"Import!I11890","v":0},{"$f":"Import!I12040","v":0},{"$f":"Import!I12190","v":0}]
[92,{"$f":"Import!I11141","v":"Select"},{"$f":"Import!I11291","v":"Select"},{"$f":"Import!I11441","v":"Select"},{"$f":"Import!I11591","v":0},{"$f":"Import!I11741","v":0},{"$f":"Import!I11891","v":0},{"$f":"Import!I12041","v":0},{"$f":"Import!I12191","v":0}]
[93,{"$f":"Import!I11142","v":"Select"},{"$f":"Import!I11292","v":"Select"},{"$f":"Import!I11442","v":"Select"},{"$f":"Import!I11592","v":0},{"$f":"Import!I11742","v":0},{"$f":"Import!I11892","v":0},{"$f":"Import!I12042","v":0},{"$f":"Import!I12192","v":0}]
[94,{"$f":"Import!I11143","v":"Select"},{"$f":"Import!I11293","v":"Select"},{"$f":"Import!I11443","v":"Select"},{"$f":"Import!I11593","v":0},{"$f":"Import!I11743","v":0},{"$f":"Import!I11893","v":0},{"$f":"Import!I12043","v":0},{"$f":"Import!I12193","v":0}]
[95,{"$f":"Import!I11144","v":"Select"},{"$f":"Import!I11294","v":"Select"},{"$f":"Import!I11444","v":"Select"},{"$f":"Import!I11594","v":0},{"$f":"Import!I11744","v":0},{"$f":"Import!I11894","v":0},{"$f":"Import!I12044","v":0},{"$f":"Import!I12194","v":0}]
[96,{"$f":"Import!I11145","v":"Select"},{"$f":"Import!I11295","v":"Select"},{"$f":"Import!I11445","v":"Select"},{"$f":"Import!I11595","v":0},{"$f":"Import!I11745","v":0},{"$f":"Import!I11895","v":0},{"$f":"Import!I12045","v":0},{"$f":"Import!I12195","v":0}]
[97,{"$f":"Import!I11146","v":"Select"},{"$f":"Import!I11296","v":"Select"},{"$f":"Import!I11446","v":"Select"},{"$f":"Import!I11596","v":0},{"$f":"Import!I11746","v":0},{"$f":"Import!I11896","v":0},{"$f":"Import!I12046","v":0},{"$f":"Import!I12196","v":0}]
[98,{"$f":"Import!I11147","v":"Select"},{"$f":"Import!I11297","v":"Select"},{"$f":"Import!I11447","v":"Select"},{"$f":"Import!I11597","v":0},{"$f":"Import!I11747","v":0},{"$f":"Import!I11897","v":0},{"$f":"Import!I12047","v":0},{"$f":"Import!I12197","v":0}]
[99,{"$f":"Import!I11148","v":"Select"},{"$f":"Import!I11298","v":"Select"},{"$f":"Import!I11448","v":"Select"},{"$f":"Import!I11598","v":0},{"$f":"Import!I11748","v":0},{"$f":"Import!I11898","v":0},{"$f":"Import!I12048","v":0},{"$f":"Import!I12198","v":0}]
[100,{"$f":"Import!I11149","v":"Select"},{"$f":"Import!I11299","v":"Select"},{"$f":"Import!I11449","v":"Select"},{"$f":"Import!I11599","v":0},{"$f":"Import!I11749","v":0},{"$f":"Import!I11899","v":0},{"$f":"Import!I12049","v":0},{"$f":"Import!I12199","v":0}]
[101,{"$f":"Import!I11150","v":"Select"},{"$f":"Import!I11300","v":"Select"},{"$f":"Import!I11450","v":"Select"},{"$f":"Import!I11600","v":0},{"$f":"Import!I11750","v":0},{"$f":"Import!I11900","v":0},{"$f":"Import!I12050","v":0},{"$f":"Import!I12200","v":0}]
[102,{"$f":"Import!I11151","v":"Select"},{"$f":"Import!I11301","v":"Select"},{"$f":"Import!I11451","v":"Select"},{"$f":"Import!I11601","v":0},{"$f":"Import!I11751","v":0},{"$f":"Import!I11901","v":0},{"$f":"Import!I12051","v":0},{"$f":"Import!I12201","v":0}]
[103,{"$f":"Import!I11152","v":"Select"},{"$f":"Import!I11302","v":"Select"},{"$f":"Import!I11452","v":"Select"},{"$f":"Import!I11602","v":0},{"$f":"Import!I11752","v":0},{"$f":"Import!I11902","v":0},{"$f":"Import!I12052","v":0},{"$f":"Import!I12202","v":0}]
[104,{"$f":"Import!I11153","v":"Select"},{"$f":"Import!I11303","v":"Select"},{"$f":"Import!I11453","v":"Select"},{"$f":"Import!I11603","v":0},{"$f":"Import!I11753","v":0},{"$f":"Import!I11903","v":0},{"$f":"Import!I12053","v":0},{"$f":"Import!I12203","v":0}]
[105,{"$f":"Import!I11154","v":"Select"},{"$f":"Import!I11304","v":"Select"},{"$f":"Import!I11454","v":"Select"},{"$f":"Import!I11604","v":0},{"$f":"Import!I11754","v":0},{"$f":"Import!I11904","v":0},{"$f":"Import!I12054","v":0},{"$f":"Import!I12204","v":0}]
[106,{"$f":"Import!I11155","v":"Select"},{"$f":"Import!I11305","v":"Select"},{"$f":"Import!I11455","v":"Select"},{"$f":"Import!I11605","v":0},{"$f":"Import!I11755","v":0},{"$f":"Import!I11905","v":0},{"$f":"Import!I12055","v":0},{"$f":"Import!I12205","v":0}]
[107,{"$f":"Import!I11156","v":"Select"},{"$f":"Import!I11306","v":"Select"},{"$f":"Import!I11456","v":"Select"},{"$f":"Import!I11606","v":0},{"$f":"Import!I11756","v":0},{"$f":"Import!I11906","v":0},{"$f":"Import!I12056","v":0},{"$f":"Import!I12206","v":0}]
[108,{"$f":"Import!I11157","v":"Select"},{"$f":"Import!I11307","v":"Select"},{"$f":"Import!I11457","v":"Select"},{"$f":"Import!I11607","v":0},{"$f":"Import!I11757","v":0},{"$f":"Import!I11907","v":0},{"$f":"Import!I12057","v":0},{"$f":"Import!I12207","v":0}]
[109,{"$f":"Import!I11158","v":"Select"},{"$f":"Import!I11308","v":"Select"},{"$f":"Import!I11458","v":"Select"},{"$f":"Import!I11608","v":0},{"$f":"Import!I11758","v":0},{"$f":"Import!I11908","v":0},{"$f":"Import!I12058","v":0},{"$f":"Import!I12208","v":0}]
[110,{"$f":"Import!I11159","v":"Select"},{"$f":"Import!I11309","v":"Select"},{"$f":"Import!I11459","v":"Select"},{"$f":"Import!I11609","v":0},{"$f":"Import!I11759","v":0},{"$f":"Import!I11909","v":0},{"$f":"Import!I12059","v":0},{"$f":"Import!I12209","v":0}]
[111,{"$f":"Import!I11160","v":"Select"},{"$f":"Import!I11310","v":"Select"},{"$f":"Import!I11460","v":"Select"},{"$f":"Import!I11610","v":0},{"$f":"Import!I11760","v":0},{"$f":"Import!I11910","v":0},{"$f":"Import!I12060","v":0},{"$f":"Import!I12210","v":0}]
[112,{"$f":"Import!I11161","v":"Select"},{"$f":"Import!I11311","v":"Select"},{"$f":"Import!I11461","v":"Select"},{"$f":"Import!I11611","v":0},{"$f":"Import!I11761","v":0},{"$f":"Import!I11911","v":0},{"$f":"Import!I12061","v":0},{"$f":"Import!I12211","v":0}]
[113,{"$f":"Import!I11162","v":"Select"},{"$f":"Import!I11312","v":"Select"},{"$f":"Import!I11462","v":"Select"},{"$f":"Import!I11612","v":0},{"$f":"Import!I11762","v":0},{"$f":"Import!I11912","v":0},{"$f":"Import!I12062","v":0},{"$f":"Import!I12212","v":0}]
[114,{"$f":"Import!I11163","v":"Select"},{"$f":"Import!I11313","v":"Select"},{"$f":"Import!I11463","v":"Select"},{"$f":"Import!I11613","v":0},{"$f":"Import!I11763","v":0},{"$f":"Import!I11913","v":0},{"$f":"Import!I12063","v":0},{"$f":"Import!I12213","v":0}]
[115,{"$f":"Import!I11164","v":"Select"},{"$f":"Import!I11314","v":"Select"},{"$f":"Import!I11464","v":"Select"},{"$f":"Import!I11614","v":0},{"$f":"Import!I11764","v":0},{"$f":"Import!I11914","v":0},{"$f":"Import!I12064","v":0},{"$f":"Import!I12214","v":0}]
[116,{"$f":"Import!I11165","v":"Select"},{"$f":"Import!I11315","v":"Select"},{"$f":"Import!I11465","v":"Select"},{"$f":"Import!I11615","v":0},{"$f":"Import!I11765","v":0},{"$f":"Import!I11915","v":0},{"$f":"Import!I12065","v":0},{"$f":"Import!I12215","v":0}]
[117,{"$f":"Import!I11166","v":"Select"},{"$f":"Import!I11316","v":"Select"},{"$f":"Import!I11466","v":"Select"},{"$f":"Import!I11616","v":0},{"$f":"Import!I11766","v":0},{"$f":"Import!I11916","v":0},{"$f":"Import!I12066","v":0},{"$f":"Import!I12216","v":0}]
[118,{"$f":"Import!I11167","v":"Select"},{"$f":"Import!I11317","v":"Select"},{"$f":"Import!I11467","v":"Select"},{"$f":"Import!I11617","v":0},{"$f":"Import!I11767","v":0},{"$f":"Import!I11917","v":0},{"$f":"Import!I12067","v":0},{"$f":"Import!I12217","v":0}]
[119,{"$f":"Import!I11168","v":"Select"},{"$f":"Import!I11318","v":"Select"},{"$f":"Import!I11468","v":"Select"},{"$f":"Import!I11618","v":0},{"$f":"Import!I11768","v":0},{"$f":"Import!I11918","v":0},{"$f":"Import!I12068","v":0},{"$f":"Import!I12218","v":0}]
[120,{"$f":"Import!I11169","v":"Select"},{"$f":"Import!I11319","v":"Select"},{"$f":"Import!I11469","v":"Select"},{"$f":"Import!I11619","v":0},{"$f":"Import!I11769","v":0},{"$f":"Import!I11919","v":0},{"$f":"Import!I12069","v":0},{"$f":"Import!I12219","v":0}]
[121,{"$f":"Import!I11170","v":"Select"},{"$f":"Import!I11320","v":"Select"},{"$f":"Import!I11470","v":"Select"},{"$f":"Import!I11620","v":0},{"$f":"Import!I11770","v":0},{"$f":"Import!I11920","v":0},{"$f":"Import!I12070","v":0},{"$f":"Import!I12220","v":0}]
[122,{"$f":"Import!I11171","v":"Select"},{"$f":"Import!I11321","v":"Select"},{"$f":"Import!I11471","v":"Select"},{"$f":"Import!I11621","v":0},{"$f":"Import!I11771","v":0},{"$f":"Import!I11921","v":0},{"$f":"Import!I12071","v":0},{"$f":"Import!I12221","v":0}]
[123,{"$f":"Import!I11172","v":"Select"},{"$f":"Import!I11322","v":"Select"},{"$f":"Import!I11472","v":"Select"},{"$f":"Import!I11622","v":0},{"$f":"Import!I11772","v":0},{"$f":"Import!I11922","v":0},{"$f":"Import!I12072","v":0},{"$f":"Import!I12222","v":0}]
[124,{"$f":"Import!I11173","v":"Select"},{"$f":"Import!I11323","v":"Select"},{"$f":"Import!I11473","v":"Select"},{"$f":"Import!I11623","v":0},{"$f":"Import!I11773","v":0},{"$f":"Import!I11923","v":0},{"$f":"Import!I12073","v":0},{"$f":"Import!I12223","v":0}]
[125,{"$f":"Import!I11174","v":"Select"},{"$f":"Import!I11324","v":"Select"},{"$f":"Import!I11474","v":"Select"},{"$f":"Import!I11624","v":0},{"$f":"Import!I11774","v":0},{"$f":"Import!I11924","v":0},{"$f":"Import!I12074","v":0},{"$f":"Import!I12224","v":0}]
[126,{"$f":"Import!I11175","v":"Select"},{"$f":"Import!I11325","v":"Select"},{"$f":"Import!I11475","v":"Select"},{"$f":"Import!I11625","v":0},{"$f":"Import!I11775","v":0},{"$f":"Import!I11925","v":0},{"$f":"Import!I12075","v":0},{"$f":"Import!I12225","v":0}]
[127,{"$f":"Import!I11176","v":"Select"},{"$f":"Import!I11326","v":"Select"},{"$f":"Import!I11476","v":"Select"},{"$f":"Import!I11626","v":0},{"$f":"Import!I11776","v":0},{"$f":"Import!I11926","v":0},{"$f":"Import!I12076","v":0},{"$f":"Import!I12226","v":0}]
[128,{"$f":"Import!I11177","v":"Select"},{"$f":"Import!I11327","v":"Select"},{"$f":"Import!I11477","v":"Select"},{"$f":"Import!I11627","v":0},{"$f":"Import!I11777","v":0},{"$f":"Import!I11927","v":0},{"$f":"Import!I12077","v":0},{"$f":"Import!I12227","v":0}]
[129,{"$f":"Import!I11178","v":"Select"},{"$f":"Import!I11328","v":"Select"},{"$f":"Import!I11478","v":"Select"},{"$f":"Import!I11628","v":0},{"$f":"Import!I11778","v":0},{"$f":"Import!I11928","v":0},{"$f":"Import!I12078","v":0},{"$f":"Import!I12228","v":0}]
[130,{"$f":"Import!I11179","v":"Select"},{"$f":"Import!I11329","v":"Select"},{"$f":"Import!I11479","v":"Select"},{"$f":"Import!I11629","v":0},{"$f":"Import!I11779","v":0},{"$f":"Import!I11929","v":0},{"$f":"Import!I12079","v":0},{"$f":"Import!I12229","v":0}]
[{"$f":"A964+1","v":131},{"$f":"Import!I11180","v":"Select"},{"$f":"Import!I11330","v":"Select"},{"$f":"Import!I11480","v":"Select"},{"$f":"Import!I11630","v":0},{"$f":"Import!I11780","v":0},{"$f":"Import!I11930","v":0},{"$f":"Import!I12080","v":0},{"$f":"Import!I12230","v":0}]
[132,{"$f":"Import!I11181","v":"Select"},{"$f":"Import!I11331","v":"Select"},{"$f":"Import!I11481","v":"Select"},{"$f":"Import!I11631","v":0},{"$f":"Import!I11781","v":0},{"$f":"Import!I11931","v":0},{"$f":"Import!I12081","v":0},{"$f":"Import!I12231","v":0}]
[133,{"$f":"Import!I11182","v":"Select"},{"$f":"Import!I11332","v":"Select"},{"$f":"Import!I11482","v":"Select"},{"$f":"Import!I11632","v":0},{"$f":"Import!I11782","v":0},{"$f":"Import!I11932","v":0},{"$f":"Import!I12082","v":0},{"$f":"Import!I12232","v":0}]
[134,{"$f":"Import!I11183","v":"Select"},{"$f":"Import!I11333","v":"Select"},{"$f":"Import!I11483","v":"Select"},{"$f":"Import!I11633","v":0},{"$f":"Import!I11783","v":0},{"$f":"Import!I11933","v":0},{"$f":"Import!I12083","v":0},{"$f":"Import!I12233","v":0}]
[135,{"$f":"Import!I11184","v":"Select"},{"$f":"Import!I11334","v":"Select"},{"$f":"Import!I11484","v":"Select"},{"$f":"Import!I11634","v":0},{"$f":"Import!I11784","v":0},{"$f":"Import!I11934","v":0},{"$f":"Import!I12084","v":0},{"$f":"Import!I12234","v":0}]
[136,{"$f":"Import!I11185","v":"Select"},{"$f":"Import!I11335","v":"Select"},{"$f":"Import!I11485","v":"Select"},{"$f":"Import!I11635","v":0},{"$f":"Import!I11785","v":0},{"$f":"Import!I11935","v":0},{"$f":"Import!I12085","v":0},{"$f":"Import!I12235","v":0}]
[137,{"$f":"Import!I11186","v":"Select"},{"$f":"Import!I11336","v":"Select"},{"$f":"Import!I11486","v":"Select"},{"$f":"Import!I11636","v":0},{"$f":"Import!I11786","v":0},{"$f":"Import!I11936","v":0},{"$f":"Import!I12086","v":0},{"$f":"Import!I12236","v":0}]
[138,{"$f":"Import!I11187","v":"Select"},{"$f":"Import!I11337","v":"Select"},{"$f":"Import!I11487","v":"Select"},{"$f":"Import!I11637","v":0},{"$f":"Import!I11787","v":0},{"$f":"Import!I11937","v":0},{"$f":"Import!I12087","v":0},{"$f":"Import!I12237","v":0}]
[139,{"$f":"Import!I11188","v":"Select"},{"$f":"Import!I11338","v":"Select"},{"$f":"Import!I11488","v":"Select"},{"$f":"Import!I11638","v":0},{"$f":"Import!I11788","v":0},{"$f":"Import!I11938","v":0},{"$f":"Import!I12088","v":0},{"$f":"Import!I12238","v":0}]
[140,{"$f":"Import!I11189","v":"Select"},{"$f":"Import!I11339","v":"Select"},{"$f":"Import!I11489","v":"Select"},{"$f":"Import!I11639","v":0},{"$f":"Import!I11789","v":0},{"$f":"Import!I11939","v":0},{"$f":"Import!I12089","v":0},{"$f":"Import!I12239","v":0}]
[141,{"$f":"Import!I11190","v":"Select"},{"$f":"Import!I11340","v":"Select"},{"$f":"Import!I11490","v":"Select"},{"$f":"Import!I11640","v":0},{"$f":"Import!I11790","v":0},{"$f":"Import!I11940","v":0},{"$f":"Import!I12090","v":0},{"$f":"Import!I12240","v":0}]
[142,{"$f":"Import!I11191","v":"Select"},{"$f":"Import!I11341","v":"Select"},{"$f":"Import!I11491","v":"Select"},{"$f":"Import!I11641","v":0},{"$f":"Import!I11791","v":0},{"$f":"Import!I11941","v":0},{"$f":"Import!I12091","v":0},{"$f":"Import!I12241","v":0}]
[143,{"$f":"Import!I11192","v":"Select"},{"$f":"Import!I11342","v":"Select"},{"$f":"Import!I11492","v":"Select"},{"$f":"Import!I11642","v":0},{"$f":"Import!I11792","v":0},{"$f":"Import!I11942","v":0},{"$f":"Import!I12092","v":0},{"$f":"Import!I12242","v":0}]
[144,{"$f":"Import!I11193","v":"Select"},{"$f":"Import!I11343","v":"Select"},{"$f":"Import!I11493","v":"Select"},{"$f":"Import!I11643","v":0},{"$f":"Import!I11793","v":0},{"$f":"Import!I11943","v":0},{"$f":"Import!I12093","v":0},{"$f":"Import!I12243","v":0}]
[145,{"$f":"Import!I11194","v":"Select"},{"$f":"Import!I11344","v":"Select"},{"$f":"Import!I11494","v":"Select"},{"$f":"Import!I11644","v":0},{"$f":"Import!I11794","v":0},{"$f":"Import!I11944","v":0},{"$f":"Import!I12094","v":0},{"$f":"Import!I12244","v":0}]
[146,{"$f":"Import!I11195","v":"Select"},{"$f":"Import!I11345","v":"Select"},{"$f":"Import!I11495","v":"Select"},{"$f":"Import!I11645","v":0},{"$f":"Import!I11795","v":0},{"$f":"Import!I11945","v":0},{"$f":"Import!I12095","v":0},{"$f":"Import!I12245","v":0}]
[147,{"$f":"Import!I11196","v":"Select"},{"$f":"Import!I11346","v":"Select"},{"$f":"Import!I11496","v":"Select"},{"$f":"Import!I11646","v":0},{"$f":"Import!I11796","v":0},{"$f":"Import!I11946","v":0},{"$f":"Import!I12096","v":0},{"$f":"Import!I12246","v":0}]
[148,{"$f":"Import!I11197","v":"Select"},{"$f":"Import!I11347","v":"Select"},{"$f":"Import!I11497","v":"Select"},{"$f":"Import!I11647","v":0},{"$f":"Import!I11797","v":0},{"$f":"Import!I11947","v":0},{"$f":"Import!I12097","v":0},{"$f":"Import!I12247","v":0}]
[149,{"$f":"Import!I11198","v":"Select"},{"$f":"Import!I11348","v":"Select"},{"$f":"Import!I11498","v":"Select"},{"$f":"Import!I11648","v":0},{"$f":"Import!I11798","v":0},{"$f":"Import!I11948","v":0},{"$f":"Import!I12098","v":0},{"$f":"Import!I12248","v":0}]
[150,{"$f":"Import!I11199","v":"Select"},{"$f":"Import!I11349","v":"Select"},{"$f":"Import!I11499","v":"Select"},{"$f":"Import!I11649","v":0},{"$f":"Import!I11799","v":0},{"$f":"Import!I11949","v":0},{"$f":"Import!I12099","v":0},{"$f":"Import!I12249","v":0}]
[]
[null,"Total Asset-Backed and Structured Securities",null,null,{"$f":"SUM(E835:E984)","v":0},{"$f":"SUM(F835:F984)","v":0},{"$f":"IFERROR(SUMPRODUCT(G835:G984,$F835:$F984)/SUM($F835:$F984),0)","v":0},{"$f":"IFERROR(SUMPRODUCT(H835:H984,$F835:$F984)/SUM($F835:$F984),0)","v":0}]
[]
[null,"(D) LOANS"]
[]
[null,null,"Enter # of Asset Types",{"$f":"Import!I12250","v":0}]
[null,null,null,null,null,{"$f":"YEAR($C$3)","v":2023},2023,"Weighted"]
[null,"Asset Type","Currency","Country","BSCR Rating","Nominal Amount","Fair Value","Average YTM","Effective Duration","Comments"]
[1,{"$f":"Import!I12251","v":"Select"},{"$f":"Import!I12351","v":"Select"},{"$f":"Import!I12451","v":"Select"},{"$f":"Import!I12551","v":"Select"},{"$f":"Import!I12651","v":0},{"$f":"Import!I12751","v":0},{"$f":"Import!I12851","v":0},{"$f":"Import!I12951","v":0},{"$f":"Import!I13051","v":0}]
[{"$f":"A993+1","v":2},{"$f":"Import!I12252","v":"Select"},{"$f":"Import!I12352","v":"Select"},{"$f":"Import!I12452","v":"Select"},{"$f":"Import!I12552","v":"Select"},{"$f":"Import!I12652","v":0},{"$f":"Import!I12752","v":0},{"$f":"Import!I12852","v":0},{"$f":"Import!I12952","v":0},{"$f":"Import!I13052","v":0}]
[{"$f":"A994+1","v":3},{"$f":"Import!I12253","v":"Select"},{"$f":"Import!I12353","v":"Select"},{"$f":"Import!I12453","v":"Select"},{"$f":"Import!I12553","v":"Select"},{"$f":"Import!I12653","v":0},{"$f":"Import!I12753","v":0},{"$f":"Import!I12853","v":0},{"$f":"Import!I12953","v":0},{"$f":"Import!I13053","v":0}]
[4,{"$f":"Import!I12254","v":"Select"},{"$f":"Import!I12354","v":"Select"},{"$f":"Import!I12454","v":"Select"},{"$f":"Import!I12554","v":"Select"},{"$f":"Import!I12654","v":0},{"$f":"Import!I12754","v":0},{"$f":"Import!I12854","v":0},{"$f":"Import!I12954","v":0},{"$f":"Import!I13054","v":0}]
[5,{"$f":"Import!I12255","v":"Select"},{"$f":"Import!I12355","v":"Select"},{"$f":"Import!I12455","v":"Select"},{"$f":"Import!I12555","v":"Select"},{"$f":"Import!I12655","v":0},{"$f":"Import!I12755","v":0},{"$f":"Import!I12855","v":0},{"$f":"Import!I12955","v":0},{"$f":"Import!I13055","v":0}]
[6,{"$f":"Import!I12256","v":"Select"},{"$f":"Import!I12356","v":"Select"},{"$f":"Import!I12456","v":"Select"},{"$f":"Import!I12556","v":"Select"},{"$f":"Import!I12656","v":0},{"$f":"Import!I12756","v":0},{"$f":"Import!I12856","v":0},{"$f":"Import!I12956","v":0},{"$f":"Import!I13056","v":0}]
[7,{"$f":"Import!I12257","v":"Select"},{"$f":"Import!I12357","v":"Select"},{"$f":"Import!I12457","v":"Select"},{"$f":"Import!I12557","v":"Select"},{"$f":"Import!I12657","v":0},{"$f":"Import!I12757","v":0},{"$f":"Import!I12857","v":0},{"$f":"Import!I12957","v":0},{"$f":"Import!I13057","v":0}]
[8,{"$f":"Import!I12258","v":"Select"},{"$f":"Import!I12358","v":"Select"},{"$f":"Import!I12458","v":"Select"},{"$f":"Import!I12558","v":"Select"},{"$f":"Import!I12658","v":0},{"$f":"Import!I12758","v":0},{"$f":"Import!I12858","v":0},{"$f":"Import!I12958","v":0},{"$f":"Import!I13058","v":0}]
[9,{"$f":"Import!I12259","v":"Select"},{"$f":"Import!I12359","v":"Select"},{"$f":"Import!I12459","v":"Select"},{"$f":"Import!I12559","v":"Select"},{"$f":"Import!I12659","v":0},{"$f":"Import!I12759","v":0},{"$f":"Import!I12859","v":0},{"$f":"Import!I12959","v":0},{"$f":"Import!I13059","v":0}]
[10,{"$f":"Import!I12260","v":"Select"},{"$f":"Import!I12360","v":"Select"},{"$f":"Import!I12460","v":"Select"},{"$f":"Import!I12560","v":"Select"},{"$f":"Import!I12660","v":0},{"$f":"Import!I12760","v":0},{"$f":"Import!I12860","v":0},{"$f":"Import!I12960","v":0},{"$f":"Import!I13060","v":0}]
[11,{"$f":"Import!I12261","v":"Select"},{"$f":"Import!I12361","v":"Select"},{"$f":"Import!I12461","v":"Select"},{"$f":"Import!I12561","v":"Select"},{"$f":"Import!I12661","v":0},{"$f":"Import!I12761","v":0},{"$f":"Import!I12861","v":0},{"$f":"Import!I12961","v":0},{"$f":"Import!I13061","v":0}]
[12,{"$f":"Import!I12262","v":"Select"},{"$f":"Import!I12362","v":"Select"},{"$f":"Import!I12462","v":"Select"},{"$f":"Import!I12562","v":"Select"},{"$f":"Import!I12662","v":0},{"$f":"Import!I12762","v":0},{"$f":"Import!I12862","v":0},{"$f":"Import!I12962","v":0},{"$f":"Import!I13062","v":0}]
[13,{"$f":"Import!I12263","v":"Select"},{"$f":"Import!I12363","v":"Select"},{"$f":"Import!I12463","v":"Select"},{"$f":"Import!I12563","v":"Select"},{"$f":"Import!I12663","v":0},{"$f":"Import!I12763","v":0},{"$f":"Import!I12863","v":0},{"$f":"Import!I12963","v":0},{"$f":"Import!I13063","v":0}]
[14,{"$f":"Import!I12264","v":"Select"},{"$f":"Import!I12364","v":"Select"},{"$f":"Import!I12464","v":"Select"},{"$f":"Import!I12564","v":"Select"},{"$f":"Import!I12664","v":0},{"$f":"Import!I12764","v":0},{"$f":"Import!I12864","v":0},{"$f":"Import!I12964","v":0},{"$f":"Import!I13064","v":0}]
[15,{"$f":"Import!I12265","v":"Select"},{"$f":"Import!I12365","v":"Select"},{"$f":"Import!I12465","v":"Select"},{"$f":"Import!I12565","v":"Select"},{"$f":"Import!I12665","v":0},{"$f":"Import!I12765","v":0},{"$f":"Import!I12865","v":0},{"$f":"Import!I12965","v":0},{"$f":"Import!I13065","v":0}]
[16,{"$f":"Import!I12266","v":"Select"},{"$f":"Import!I12366","v":"Select"},{"$f":"Import!I12466","v":"Select"},{"$f":"Import!I12566","v":"Select"},{"$f":"Import!I12666","v":0},{"$f":"Import!I12766","v":0},{"$f":"Import!I12866","v":0},{"$f":"Import!I12966","v":0},{"$f":"Import!I13066","v":0}]
[17,{"$f":"Import!I12267","v":"Select"},{"$f":"Import!I12367","v":"Select"},{"$f":"Import!I12467","v":"Select"},{"$f":"Import!I12567","v":"Select"},{"$f":"Import!I12667","v":0},{"$f":"Import!I12767","v":0},{"$f":"Import!I12867","v":0},{"$f":"Import!I12967","v":0},{"$f":"Import!I13067","v":0}]
[18,{"$f":"Import!I12268","v":"Select"},{"$f":"Import!I12368","v":"Select"},{"$f":"Import!I12468","v":"Select"},{"$f":"Import!I12568","v":"Select"},{"$f":"Import!I12668","v":0},{"$f":"Import!I12768","v":0},{"$f":"Import!I12868","v":0},{"$f":"Import!I12968","v":0},{"$f":"Import!I13068","v":0}]
[19,{"$f":"Import!I12269","v":"Select"},{"$f":"Import!I12369","v":"Select"},{"$f":"Import!I12469","v":"Select"},{"$f":"Import!I12569","v":"Select"},{"$f":"Import!I12669","v":0},{"$f":"Import!I12769","v":0},{"$f":"Import!I12869","v":0},{"$f":"Import!I12969","v":0},{"$f":"Import!I13069","v":0}]
[20,{"$f":"Import!I12270","v":"Select"},{"$f":"Import!I12370","v":"Select"},{"$f":"Import!I12470","v":"Select"},{"$f":"Import!I12570","v":"Select"},{"$f":"Import!I12670","v":0},{"$f":"Import!I12770","v":0},{"$f":"Import!I12870","v":0},{"$f":"Import!I12970","v":0},{"$f":"Import!I13070","v":0}]
[21,{"$f":"Import!I12271","v":"Select"},{"$f":"Import!I12371","v":"Select"},{"$f":"Import!I12471","v":"Select"},{"$f":"Import!I12571","v":"Select"},{"$f":"Import!I12671","v":0},{"$f":"Import!I12771","v":0},{"$f":"Import!I12871","v":0},{"$f":"Import!I12971","v":0},{"$f":"Import!I13071","v":0}]
[22,{"$f":"Import!I12272","v":"Select"},{"$f":"Import!I12372","v":"Select"},{"$f":"Import!I12472","v":"Select"},{"$f":"Import!I12572","v":"Select"},{"$f":"Import!I12672","v":0},{"$f":"Import!I12772","v":0},{"$f":"Import!I12872","v":0},{"$f":"Import!I12972","v":0},{"$f":"Import!I13072","v":0}]
[23,{"$f":"Import!I12273","v":"Select"},{"$f":"Import!I12373","v":"Select"},{"$f":"Import!I12473","v":"Select"},{"$f":"Import!I12573","v":"Select"},{"$f":"Import!I12673","v":0},{"$f":"Import!I12773","v":0},{"$f":"Import!I12873","v":0},{"$f":"Import!I12973","v":0},{"$f":"Import!I13073","v":0}]
[24,{"$f":"Import!I12274","v":"Select"},{"$f":"Import!I12374","v":"Select"},{"$f":"Import!I12474","v":"Select"},{"$f":"Import!I12574","v":"Select"},{"$f":"Import!I12674","v":0},{"$f":"Import!I12774","v":0},{"$f":"Import!I12874","v":0},{"$f":"Import!I12974","v":0},{"$f":"Import!I13074","v":0}]
[25,{"$f":"Import!I12275","v":"Select"},{"$f":"Import!I12375","v":"Select"},{"$f":"Import!I12475","v":"Select"},{"$f":"Import!I12575","v":"Select"},{"$f":"Import!I12675","v":0},{"$f":"Import!I12775","v":0},{"$f":"Import!I12875","v":0},{"$f":"Import!I12975","v":0},{"$f":"Import!I13075","v":0}]
[26,{"$f":"Import!I12276","v":"Select"},{"$f":"Import!I12376","v":"Select"},{"$f":"Import!I12476","v":"Select"},{"$f":"Import!I12576","v":"Select"},{"$f":"Import!I12676","v":0},{"$f":"Import!I12776","v":0},{"$f":"Import!I12876","v":0},{"$f":"Import!I12976","v":0},{"$f":"Import!I13076","v":0}]
[27,{"$f":"Import!I12277","v":"Select"},{"$f":"Import!I12377","v":"Select"},{"$f":"Import!I12477","v":"Select"},{"$f":"Import!I12577","v":"Select"},{"$f":"Import!I12677","v":0},{"$f":"Import!I12777","v":0},{"$f":"Import!I12877","v":0},{"$f":"Import!I12977","v":0},{"$f":"Import!I13077","v":0}]
[28,{"$f":"Import!I12278","v":"Select"},{"$f":"Import!I12378","v":"Select"},{"$f":"Import!I12478","v":"Select"},{"$f":"Import!I12578","v":"Select"},{"$f":"Import!I12678","v":0},{"$f":"Import!I12778","v":0},{"$f":"Import!I12878","v":0},{"$f":"Import!I12978","v":0},{"$f":"Import!I13078","v":0}]
[29,{"$f":"Import!I12279","v":"Select"},{"$f":"Import!I12379","v":"Select"},{"$f":"Import!I12479","v":"Select"},{"$f":"Import!I12579","v":"Select"},{"$f":"Import!I12679","v":0},{"$f":"Import!I12779","v":0},{"$f":"Import!I12879","v":0},{"$f":"Import!I12979","v":0},{"$f":"Import!I13079","v":0}]
[30,{"$f":"Import!I12280","v":"Select"},{"$f":"Import!I12380","v":"Select"},{"$f":"Import!I12480","v":"Select"},{"$f":"Import!I12580","v":"Select"},{"$f":"Import!I12680","v":0},{"$f":"Import!I12780","v":0},{"$f":"Import!I12880","v":0},{"$f":"Import!I12980","v":0},{"$f":"Import!I13080","v":0}]
[31,{"$f":"Import!I12281","v":"Select"},{"$f":"Import!I12381","v":"Select"},{"$f":"Import!I12481","v":"Select"},{"$f":"Import!I12581","v":"Select"},{"$f":"Import!I12681","v":0},{"$f":"Import!I12781","v":0},{"$f":"Import!I12881","v":0},{"$f":"Import!I12981","v":0},{"$f":"Import!I13081","v":0}]
[32,{"$f":"Import!I12282","v":"Select"},{"$f":"Import!I12382","v":"Select"},{"$f":"Import!I12482","v":"Select"},{"$f":"Import!I12582","v":"Select"},{"$f":"Import!I12682","v":0},{"$f":"Import!I12782","v":0},{"$f":"Import!I12882","v":0},{"$f":"Import!I12982","v":0},{"$f":"Import!I13082","v":0}]
[33,{"$f":"Import!I12283","v":"Select"},{"$f":"Import!I12383","v":"Select"},{"$f":"Import!I12483","v":"Select"},{"$f":"Import!I12583","v":"Select"},{"$f":"Import!I12683","v":0},{"$f":"Import!I12783","v":0},{"$f":"Import!I12883","v":0},{"$f":"Import!I12983","v":0},{"$f":"Import!I13083","v":0}]
[34,{"$f":"Import!I12284","v":"Select"},{"$f":"Import!I12384","v":"Select"},{"$f":"Import!I12484","v":"Select"},{"$f":"Import!I12584","v":"Select"},{"$f":"Import!I12684","v":0},{"$f":"Import!I12784","v":0},{"$f":"Import!I12884","v":0},{"$f":"Import!I12984","v":0},{"$f":"Import!I13084","v":0}]
[35,{"$f":"Import!I12285","v":"Select"},{"$f":"Import!I12385","v":"Select"},{"$f":"Import!I12485","v":"Select"},{"$f":"Import!I12585","v":"Select"},{"$f":"Import!I12685","v":0},{"$f":"Import!I12785","v":0},{"$f":"Import!I12885","v":0},{"$f":"Import!I12985","v":0},{"$f":"Import!I13085","v":0}]
[36,{"$f":"Import!I12286","v":"Select"},{"$f":"Import!I12386","v":"Select"},{"$f":"Import!I12486","v":"Select"},{"$f":"Import!I12586","v":"Select"},{"$f":"Import!I12686","v":0},{"$f":"Import!I12786","v":0},{"$f":"Import!I12886","v":0},{"$f":"Import!I12986","v":0},{"$f":"Import!I13086","v":0}]
[37,{"$f":"Import!I12287","v":"Select"},{"$f":"Import!I12387","v":"Select"},{"$f":"Import!I12487","v":"Select"},{"$f":"Import!I12587","v":"Select"},{"$f":"Import!I12687","v":0},{"$f":"Import!I12787","v":0},{"$f":"Import!I12887","v":0},{"$f":"Import!I12987","v":0},{"$f":"Import!I13087","v":0}]
[38,{"$f":"Import!I12288","v":"Select"},{"$f":"Import!I12388","v":"Select"},{"$f":"Import!I12488","v":"Select"},{"$f":"Import!I12588","v":"Select"},{"$f":"Import!I12688","v":0},{"$f":"Import!I12788","v":0},{"$f":"Import!I12888","v":0},{"$f":"Import!I12988","v":0},{"$f":"Import!I13088","v":0}]
[39,{"$f":"Import!I12289","v":"Select"},{"$f":"Import!I12389","v":"Select"},{"$f":"Import!I12489","v":"Select"},{"$f":"Import!I12589","v":"Select"},{"$f":"Import!I12689","v":0},{"$f":"Import!I12789","v":0},{"$f":"Import!I12889","v":0},{"$f":"Import!I12989","v":0},{"$f":"Import!I13089","v":0}]
[40,{"$f":"Import!I12290","v":"Select"},{"$f":"Import!I12390","v":"Select"},{"$f":"Import!I12490","v":"Select"},{"$f":"Import!I12590","v":"Select"},{"$f":"Import!I12690","v":0},{"$f":"Import!I12790","v":0},{"$f":"Import!I12890","v":0},{"$f":"Import!I12990","v":0},{"$f":"Import!I13090","v":0}]
[41,{"$f":"Import!I12291","v":"Select"},{"$f":"Import!I12391","v":"Select"},{"$f":"Import!I12491","v":"Select"},{"$f":"Import!I12591","v":"Select"},{"$f":"Import!I12691","v":0},{"$f":"Import!I12791","v":0},{"$f":"Import!I12891","v":0},{"$f":"Import!I12991","v":0},{"$f":"Import!I13091","v":0}]
[42,{"$f":"Import!I12292","v":"Select"},{"$f":"Import!I12392","v":"Select"},{"$f":"Import!I12492","v":"Select"},{"$f":"Import!I12592","v":"Select"},{"$f":"Import!I12692","v":0},{"$f":"Import!I12792","v":0},{"$f":"Import!I12892","v":0},{"$f":"Import!I12992","v":0},{"$f":"Import!I13092","v":0}]
[43,{"$f":"Import!I12293","v":"Select"},{"$f":"Import!I12393","v":"Select"},{"$f":"Import!I12493","v":"Select"},{"$f":"Import!I12593","v":"Select"},{"$f":"Import!I12693","v":0},{"$f":"Import!I12793","v":0},{"$f":"Import!I12893","v":0},{"$f":"Import!I12993","v":0},{"$f":"Import!I13093","v":0}]
[44,{"$f":"Import!I12294","v":"Select"},{"$f":"Import!I12394","v":"Select"},{"$f":"Import!I12494","v":"Select"},{"$f":"Import!I12594","v":"Select"},{"$f":"Import!I12694","v":0},{"$f":"Import!I12794","v":0},{"$f":"Import!I12894","v":0},{"$f":"Import!I12994","v":0},{"$f":"Import!I13094","v":0}]
[45,{"$f":"Import!I12295","v":"Select"},{"$f":"Import!I12395","v":"Select"},{"$f":"Import!I12495","v":"Select"},{"$f":"Import!I12595","v":"Select"},{"$f":"Import!I12695","v":0},{"$f":"Import!I12795","v":0},{"$f":"Import!I12895","v":0},{"$f":"Import!I12995","v":0},{"$f":"Import!I13095","v":0}]
[46,{"$f":"Import!I12296","v":"Select"},{"$f":"Import!I12396","v":"Select"},{"$f":"Import!I12496","v":"Select"},{"$f":"Import!I12596","v":"Select"},{"$f":"Import!I12696","v":0},{"$f":"Import!I12796","v":0},{"$f":"Import!I12896","v":0},{"$f":"Import!I12996","v":0},{"$f":"Import!I13096","v":0}]
[47,{"$f":"Import!I12297","v":"Select"},{"$f":"Import!I12397","v":"Select"},{"$f":"Import!I12497","v":"Select"},{"$f":"Import!I12597","v":"Select"},{"$f":"Import!I12697","v":0},{"$f":"Import!I12797","v":0},{"$f":"Import!I12897","v":0},{"$f":"Import!I12997","v":0},{"$f":"Import!I13097","v":0}]
[48,{"$f":"Import!I12298","v":"Select"},{"$f":"Import!I12398","v":"Select"},{"$f":"Import!I12498","v":"Select"},{"$f":"Import!I12598","v":"Select"},{"$f":"Import!I12698","v":0},{"$f":"Import!I12798","v":0},{"$f":"Import!I12898","v":0},{"$f":"Import!I12998","v":0},{"$f":"Import!I13098","v":0}]
[49,{"$f":"Import!I12299","v":"Select"},{"$f":"Import!I12399","v":"Select"},{"$f":"Import!I12499","v":"Select"},{"$f":"Import!I12599","v":"Select"},{"$f":"Import!I12699","v":0},{"$f":"Import!I12799","v":0},{"$f":"Import!I12899","v":0},{"$f":"Import!I12999","v":0},{"$f":"Import!I13099","v":0}]
[50,{"$f":"Import!I12300","v":"Select"},{"$f":"Import!I12400","v":"Select"},{"$f":"Import!I12500","v":"Select"},{"$f":"Import!I12600","v":"Select"},{"$f":"Import!I12700","v":0},{"$f":"Import!I12800","v":0},{"$f":"Import!I12900","v":0},{"$f":"Import!I13000","v":0},{"$f":"Import!I13100","v":0}]
[51,{"$f":"Import!I12301","v":"Select"},{"$f":"Import!I12401","v":"Select"},{"$f":"Import!I12501","v":"Select"},{"$f":"Import!I12601","v":"Select"},{"$f":"Import!I12701","v":0},{"$f":"Import!I12801","v":0},{"$f":"Import!I12901","v":0},{"$f":"Import!I13001","v":0},{"$f":"Import!I13101","v":0}]
[52,{"$f":"Import!I12302","v":"Select"},{"$f":"Import!I12402","v":"Select"},{"$f":"Import!I12502","v":"Select"},{"$f":"Import!I12602","v":"Select"},{"$f":"Import!I12702","v":0},{"$f":"Import!I12802","v":0},{"$f":"Import!I12902","v":0},{"$f":"Import!I13002","v":0},{"$f":"Import!I13102","v":0}]
[53,{"$f":"Import!I12303","v":"Select"},{"$f":"Import!I12403","v":"Select"},{"$f":"Import!I12503","v":"Select"},{"$f":"Import!I12603","v":"Select"},{"$f":"Import!I12703","v":0},{"$f":"Import!I12803","v":0},{"$f":"Import!I12903","v":0},{"$f":"Import!I13003","v":0},{"$f":"Import!I13103","v":0}]
[54,{"$f":"Import!I12304","v":"Select"},{"$f":"Import!I12404","v":"Select"},{"$f":"Import!I12504","v":"Select"},{"$f":"Import!I12604","v":"Select"},{"$f":"Import!I12704","v":0},{"$f":"Import!I12804","v":0},{"$f":"Import!I12904","v":0},{"$f":"Import!I13004","v":0},{"$f":"Import!I13104","v":0}]
[55,{"$f":"Import!I12305","v":"Select"},{"$f":"Import!I12405","v":"Select"},{"$f":"Import!I12505","v":"Select"},{"$f":"Import!I12605","v":"Select"},{"$f":"Import!I12705","v":0},{"$f":"Import!I12805","v":0},{"$f":"Import!I12905","v":0},{"$f":"Import!I13005","v":0},{"$f":"Import!I13105","v":0}]
[56,{"$f":"Import!I12306","v":"Select"},{"$f":"Import!I12406","v":"Select"},{"$f":"Import!I12506","v":"Select"},{"$f":"Import!I12606","v":"Select"},{"$f":"Import!I12706","v":0},{"$f":"Import!I12806","v":0},{"$f":"Import!I12906","v":0},{"$f":"Import!I13006","v":0},{"$f":"Import!I13106","v":0}]
[57,{"$f":"Import!I12307","v":"Select"},{"$f":"Import!I12407","v":"Select"},{"$f":"Import!I12507","v":"Select"},{"$f":"Import!I12607","v":"Select"},{"$f":"Import!I12707","v":0},{"$f":"Import!I12807","v":0},{"$f":"Import!I12907","v":0},{"$f":"Import!I13007","v":0},{"$f":"Import!I13107","v":0}]
[58,{"$f":"Import!I12308","v":"Select"},{"$f":"Import!I12408","v":"Select"},{"$f":"Import!I12508","v":"Select"},{"$f":"Import!I12608","v":"Select"},{"$f":"Import!I12708","v":0},{"$f":"Import!I12808","v":0},{"$f":"Import!I12908","v":0},{"$f":"Import!I13008","v":0},{"$f":"Import!I13108","v":0}]
[59,{"$f":"Import!I12309","v":"Select"},{"$f":"Import!I12409","v":"Select"},{"$f":"Import!I12509","v":"Select"},{"$f":"Import!I12609","v":"Select"},{"$f":"Import!I12709","v":0},{"$f":"Import!I12809","v":0},{"$f":"Import!I12909","v":0},{"$f":"Import!I13009","v":0},{"$f":"Import!I13109","v":0}]
[60,{"$f":"Import!I12310","v":"Select"},{"$f":"Import!I12410","v":"Select"},{"$f":"Import!I12510","v":"Select"},{"$f":"Import!I12610","v":"Select"},{"$f":"Import!I12710","v":0},{"$f":"Import!I12810","v":0},{"$f":"Import!I12910","v":0},{"$f":"Import!I13010","v":0},{"$f":"Import!I13110","v":0}]
[61,{"$f":"Import!I12311","v":"Select"},{"$f":"Import!I12411","v":"Select"},{"$f":"Import!I12511","v":"Select"},{"$f":"Import!I12611","v":"Select"},{"$f":"Import!I12711","v":0},{"$f":"Import!I12811","v":0},{"$f":"Import!I12911","v":0},{"$f":"Import!I13011","v":0},{"$f":"Import!I13111","v":0}]
[62,{"$f":"Import!I12312","v":"Select"},{"$f":"Import!I12412","v":"Select"},{"$f":"Import!I12512","v":"Select"},{"$f":"Import!I12612","v":"Select"},{"$f":"Import!I12712","v":0},{"$f":"Import!I12812","v":0},{"$f":"Import!I12912","v":0},{"$f":"Import!I13012","v":0},{"$f":"Import!I13112","v":0}]
[63,{"$f":"Import!I12313","v":"Select"},{"$f":"Import!I12413","v":"Select"},{"$f":"Import!I12513","v":"Select"},{"$f":"Import!I12613","v":"Select"},{"$f":"Import!I12713","v":0},{"$f":"Import!I12813","v":0},{"$f":"Import!I12913","v":0},{"$f":"Import!I13013","v":0},{"$f":"Import!I13113","v":0}]
[64,{"$f":"Import!I12314","v":"Select"},{"$f":"Import!I12414","v":"Select"},{"$f":"Import!I12514","v":"Select"},{"$f":"Import!I12614","v":"Select"},{"$f":"Import!I12714","v":0},{"$f":"Import!I12814","v":0},{"$f":"Import!I12914","v":0},{"$f":"Import!I13014","v":0},{"$f":"Import!I13114","v":0}]
[65,{"$f":"Import!I12315","v":"Select"},{"$f":"Import!I12415","v":"Select"},{"$f":"Import!I12515","v":"Select"},{"$f":"Import!I12615","v":"Select"},{"$f":"Import!I12715","v":0},{"$f":"Import!I12815","v":0},{"$f":"Import!I12915","v":0},{"$f":"Import!I13015","v":0},{"$f":"Import!I13115","v":0}]
[66,{"$f":"Import!I12316","v":"Select"},{"$f":"Import!I12416","v":"Select"},{"$f":"Import!I12516","v":"Select"},{"$f":"Import!I12616","v":"Select"},{"$f":"Import!I12716","v":0},{"$f":"Import!I12816","v":0},{"$f":"Import!I12916","v":0},{"$f":"Import!I13016","v":0},{"$f":"Import!I13116","v":0}]
[{"$f":"A1058+1","v":67},{"$f":"Import!I12317","v":"Select"},{"$f":"Import!I12417","v":"Select"},{"$f":"Import!I12517","v":"Select"},{"$f":"Import!I12617","v":"Select"},{"$f":"Import!I12717","v":0},{"$f":"Import!I12817","v":0},{"$f":"Import!I12917","v":0},{"$f":"Import!I13017","v":0},{"$f":"Import!I13117","v":0}]
[68,{"$f":"Import!I12318","v":"Select"},{"$f":"Import!I12418","v":"Select"},{"$f":"Import!I12518","v":"Select"},{"$f":"Import!I12618","v":"Select"},{"$f":"Import!I12718","v":0},{"$f":"Import!I12818","v":0},{"$f":"Import!I12918","v":0},{"$f":"Import!I13018","v":0},{"$f":"Import!I13118","v":0}]
[69,{"$f":"Import!I12319","v":"Select"},{"$f":"Import!I12419","v":"Select"},{"$f":"Import!I12519","v":"Select"},{"$f":"Import!I12619","v":"Select"},{"$f":"Import!I12719","v":0},{"$f":"Import!I12819","v":0},{"$f":"Import!I12919","v":0},{"$f":"Import!I13019","v":0},{"$f":"Import!I13119","v":0}]
[70,{"$f":"Import!I12320","v":"Select"},{"$f":"Import!I12420","v":"Select"},{"$f":"Import!I12520","v":"Select"},{"$f":"Import!I12620","v":"Select"},{"$f":"Import!I12720","v":0},{"$f":"Import!I12820","v":0},{"$f":"Import!I12920","v":0},{"$f":"Import!I13020","v":0},{"$f":"Import!I13120","v":0}]
[71,{"$f":"Import!I12321","v":"Select"},{"$f":"Import!I12421","v":"Select"},{"$f":"Import!I12521","v":"Select"},{"$f":"Import!I12621","v":"Select"},{"$f":"Import!I12721","v":0},{"$f":"Import!I12821","v":0},{"$f":"Import!I12921","v":0},{"$f":"Import!I13021","v":0},{"$f":"Import!I13121","v":0}]
[72,{"$f":"Import!I12322","v":"Select"},{"$f":"Import!I12422","v":"Select"},{"$f":"Import!I12522","v":"Select"},{"$f":"Import!I12622","v":"Select"},{"$f":"Import!I12722","v":0},{"$f":"Import!I12822","v":0},{"$f":"Import!I12922","v":0},{"$f":"Import!I13022","v":0},{"$f":"Import!I13122","v":0}]
[73,{"$f":"Import!I12323","v":"Select"},{"$f":"Import!I12423","v":"Select"},{"$f":"Import!I12523","v":"Select"},{"$f":"Import!I12623","v":"Select"},{"$f":"Import!I12723","v":0},{"$f":"Import!I12823","v":0},{"$f":"Import!I12923","v":0},{"$f":"Import!I13023","v":0},{"$f":"Import!I13123","v":0}]
[74,{"$f":"Import!I12324","v":"Select"},{"$f":"Import!I12424","v":"Select"},{"$f":"Import!I12524","v":"Select"},{"$f":"Import!I12624","v":"Select"},{"$f":"Import!I12724","v":0},{"$f":"Import!I12824","v":0},{"$f":"Import!I12924","v":0},{"$f":"Import!I13024","v":0},{"$f":"Import!I13124","v":0}]
[75,{"$f":"Import!I12325","v":"Select"},{"$f":"Import!I12425","v":"Select"},{"$f":"Import!I12525","v":"Select"},{"$f":"Import!I12625","v":"Select"},{"$f":"Import!I12725","v":0},{"$f":"Import!I12825","v":0},{"$f":"Import!I12925","v":0},{"$f":"Import!I13025","v":0},{"$f":"Import!I13125","v":0}]
[76,{"$f":"Import!I12326","v":"Select"},{"$f":"Import!I12426","v":"Select"},{"$f":"Import!I12526","v":"Select"},{"$f":"Import!I12626","v":"Select"},{"$f":"Import!I12726","v":0},{"$f":"Import!I12826","v":0},{"$f":"Import!I12926","v":0},{"$f":"Import!I13026","v":0},{"$f":"Import!I13126","v":0}]
[77,{"$f":"Import!I12327","v":"Select"},{"$f":"Import!I12427","v":"Select"},{"$f":"Import!I12527","v":"Select"},{"$f":"Import!I12627","v":"Select"},{"$f":"Import!I12727","v":0},{"$f":"Import!I12827","v":0},{"$f":"Import!I12927","v":0},{"$f":"Import!I13027","v":0},{"$f":"Import!I13127","v":0}]
[78,{"$f":"Import!I12328","v":"Select"},{"$f":"Import!I12428","v":"Select"},{"$f":"Import!I12528","v":"Select"},{"$f":"Import!I12628","v":"Select"},{"$f":"Import!I12728","v":0},{"$f":"Import!I12828","v":0},{"$f":"Import!I12928","v":0},{"$f":"Import!I13028","v":0},{"$f":"Import!I13128","v":0}]
[79,{"$f":"Import!I12329","v":"Select"},{"$f":"Import!I12429","v":"Select"},{"$f":"Import!I12529","v":"Select"},{"$f":"Import!I12629","v":"Select"},{"$f":"Import!I12729","v":0},{"$f":"Import!I12829","v":0},{"$f":"Import!I12929","v":0},{"$f":"Import!I13029","v":0},{"$f":"Import!I13129","v":0}]
[80,{"$f":"Import!I12330","v":"Select"},{"$f":"Import!I12430","v":"Select"},{"$f":"Import!I12530","v":"Select"},{"$f":"Import!I12630","v":"Select"},{"$f":"Import!I12730","v":0},{"$f":"Import!I12830","v":0},{"$f":"Import!I12930","v":0},{"$f":"Import!I13030","v":0},{"$f":"Import!I13130","v":0}]
[81,{"$f":"Import!I12331","v":"Select"},{"$f":"Import!I12431","v":"Select"},{"$f":"Import!I12531","v":"Select"},{"$f":"Import!I12631","v":"Select"},{"$f":"Import!I12731","v":0},{"$f":"Import!I12831","v":0},{"$f":"Import!I12931","v":0},{"$f":"Import!I13031","v":0},{"$f":"Import!I13131","v":0}]
[82,{"$f":"Import!I12332","v":"Select"},{"$f":"Import!I12432","v":"Select"},{"$f":"Import!I12532","v":"Select"},{"$f":"Import!I12632","v":"Select"},{"$f":"Import!I12732","v":0},{"$f":"Import!I12832","v":0},{"$f":"Import!I12932","v":0},{"$f":"Import!I13032","v":0},{"$f":"Import!I13132","v":0}]
[83,{"$f":"Import!I12333","v":"Select"},{"$f":"Import!I12433","v":"Select"},{"$f":"Import!I12533","v":"Select"},{"$f":"Import!I12633","v":"Select"},{"$f":"Import!I12733","v":0},{"$f":"Import!I12833","v":0},{"$f":"Import!I12933","v":0},{"$f":"Import!I13033","v":0},{"$f":"Import!I13133","v":0}]
[84,{"$f":"Import!I12334","v":"Select"},{"$f":"Import!I12434","v":"Select"},{"$f":"Import!I12534","v":"Select"},{"$f":"Import!I12634","v":"Select"},{"$f":"Import!I12734","v":0},{"$f":"Import!I12834","v":0},{"$f":"Import!I12934","v":0},{"$f":"Import!I13034","v":0},{"$f":"Import!I13134","v":0}]
[85,{"$f":"Import!I12335","v":"Select"},{"$f":"Import!I12435","v":"Select"},{"$f":"Import!I12535","v":"Select"},{"$f":"Import!I12635","v":"Select"},{"$f":"Import!I12735","v":0},{"$f":"Import!I12835","v":0},{"$f":"Import!I12935","v":0},{"$f":"Import!I13035","v":0},{"$f":"Import!I13135","v":0}]
[86,{"$f":"Import!I12336","v":"Select"},{"$f":"Import!I12436","v":"Select"},{"$f":"Import!I12536","v":"Select"},{"$f":"Import!I12636","v":"Select"},{"$f":"Import!I12736","v":0},{"$f":"Import!I12836","v":0},{"$f":"Import!I12936","v":0},{"$f":"Import!I13036","v":0},{"$f":"Import!I13136","v":0}]
[87,{"$f":"Import!I12337","v":"Select"},{"$f":"Import!I12437","v":"Select"},{"$f":"Import!I12537","v":"Select"},{"$f":"Import!I12637","v":"Select"},{"$f":"Import!I12737","v":0},{"$f":"Import!I12837","v":0},{"$f":"Import!I12937","v":0},{"$f":"Import!I13037","v":0},{"$f":"Import!I13137","v":0}]
[88,{"$f":"Import!I12338","v":"Select"},{"$f":"Import!I12438","v":"Select"},{"$f":"Import!I12538","v":"Select"},{"$f":"Import!I12638","v":"Select"},{"$f":"Import!I12738","v":0},{"$f":"Import!I12838","v":0},{"$f":"Import!I12938","v":0},{"$f":"Import!I13038","v":0},{"$f":"Import!I13138","v":0}]
[89,{"$f":"Import!I12339","v":"Select"},{"$f":"Import!I12439","v":"Select"},{"$f":"Import!I12539","v":"Select"},{"$f":"Import!I12639","v":"Select"},{"$f":"Import!I12739","v":0},{"$f":"Import!I12839","v":0},{"$f":"Import!I12939","v":0},{"$f":"Import!I13039","v":0},{"$f":"Import!I13139","v":0}]
[90,{"$f":"Import!I12340","v":"Select"},{"$f":"Import!I12440","v":"Select"},{"$f":"Import!I12540","v":"Select"},{"$f":"Import!I12640","v":"Select"},{"$f":"Import!I12740","v":0},{"$f":"Import!I12840","v":0},{"$f":"Import!I12940","v":0},{"$f":"Import!I13040","v":0},{"$f":"Import!I13140","v":0}]
[91,{"$f":"Import!I12341","v":"Select"},{"$f":"Import!I12441","v":"Select"},{"$f":"Import!I12541","v":"Select"},{"$f":"Import!I12641","v":"Select"},{"$f":"Import!I12741","v":0},{"$f":"Import!I12841","v":0},{"$f":"Import!I12941","v":0},{"$f":"Import!I13041","v":0},{"$f":"Import!I13141","v":0}]
[92,{"$f":"Import!I12342","v":"Select"},{"$f":"Import!I12442","v":"Select"},{"$f":"Import!I12542","v":"Select"},{"$f":"Import!I12642","v":"Select"},{"$f":"Import!I12742","v":0},{"$f":"Import!I12842","v":0},{"$f":"Import!I12942","v":0},{"$f":"Import!I13042","v":0},{"$f":"Import!I13142","v":0}]
[93,{"$f":"Import!I12343","v":"Select"},{"$f":"Import!I12443","v":"Select"},{"$f":"Import!I12543","v":"Select"},{"$f":"Import!I12643","v":"Select"},{"$f":"Import!I12743","v":0},{"$f":"Import!I12843","v":0},{"$f":"Import!I12943","v":0},{"$f":"Import!I13043","v":0},{"$f":"Import!I13143","v":0}]
[94,{"$f":"Import!I12344","v":"Select"},{"$f":"Import!I12444","v":"Select"},{"$f":"Import!I12544","v":"Select"},{"$f":"Import!I12644","v":"Select"},{"$f":"Import!I12744","v":0},{"$f":"Import!I12844","v":0},{"$f":"Import!I12944","v":0},{"$f":"Import!I13044","v":0},{"$f":"Import!I13144","v":0}]
[95,{"$f":"Import!I12345","v":"Select"},{"$f":"Import!I12445","v":"Select"},{"$f":"Import!I12545","v":"Select"},{"$f":"Import!I12645","v":"Select"},{"$f":"Import!I12745","v":0},{"$f":"Import!I12845","v":0},{"$f":"Import!I12945","v":0},{"$f":"Import!I13045","v":0},{"$f":"Import!I13145","v":0}]
[96,{"$f":"Import!I12346","v":"Select"},{"$f":"Import!I12446","v":"Select"},{"$f":"Import!I12546","v":"Select"},{"$f":"Import!I12646","v":"Select"},{"$f":"Import!I12746","v":0},{"$f":"Import!I12846","v":0},{"$f":"Import!I12946","v":0},{"$f":"Import!I13046","v":0},{"$f":"Import!I13146","v":0}]
[97,{"$f":"Import!I12347","v":"Select"},{"$f":"Import!I12447","v":"Select"},{"$f":"Import!I12547","v":"Select"},{"$f":"Import!I12647","v":"Select"},{"$f":"Import!I12747","v":0},{"$f":"Import!I12847","v":0},{"$f":"Import!I12947","v":0},{"$f":"Import!I13047","v":0},{"$f":"Import!I13147","v":0}]
[98,{"$f":"Import!I12348","v":"Select"},{"$f":"Import!I12448","v":"Select"},{"$f":"Import!I12548","v":"Select"},{"$f":"Import!I12648","v":"Select"},{"$f":"Import!I12748","v":0},{"$f":"Import!I12848","v":0},{"$f":"Import!I12948","v":0},{"$f":"Import!I13048","v":0},{"$f":"Import!I13148","v":0}]
[99,{"$f":"Import!I12349","v":"Select"},{"$f":"Import!I12449","v":"Select"},{"$f":"Import!I12549","v":"Select"},{"$f":"Import!I12649","v":"Select"},{"$f":"Import!I12749","v":0},{"$f":"Import!I12849","v":0},{"$f":"Import!I12949","v":0},{"$f":"Import!I13049","v":0},{"$f":"Import!I13149","v":0}]
[100,{"$f":"Import!I12350","v":"Select"},{"$f":"Import!I12450","v":"Select"},{"$f":"Import!I12550","v":"Select"},{"$f":"Import!I12650","v":"Select"},{"$f":"Import!I12750","v":0},{"$f":"Import!I12850","v":0},{"$f":"Import!I12950","v":0},{"$f":"Import!I13050","v":0},{"$f":"Import!I13150","v":0}]
[]
[null,"Total Loans",null,null,null,{"$f":"SUM(F993:F1092)","v":0},{"$f":"SUM(G993:G1092)","v":0},{"$f":"IFERROR(SUMPRODUCT(H993:H1092,$G993:$G1092)/SUM($G993:$G1092),0)","v":0},{"$f":"IFERROR(SUMPRODUCT(I993:I1092,$G993:$G1092)/SUM($G993:$G1092),0)","v":0}]
[]
[null,"- OF WHICH NON-PERFORMING LOANS"]
[]
[null,null,"Enter # of Asset Types",{"$f":"Import!I13151","v":0}]
[null,null,null,null,null,{"$f":"YEAR($C$3)","v":2023},2023]
[null,"Asset Type","Currency","Country","BSCR Rating","Nominal Amount","Fair Value","Comments"]
[1,{"$f":"Import!I13152","v":"Select"},{"$f":"Import!I13172","v":"Select"},{"$f":"Import!I13192","v":"Select"},{"$f":"Import!I13212","v":"Select"},{"$f":"Import!I13232","v":0},{"$f":"Import!I13252","v":0},{"$f":"Import!I13272","v":0}]
[{"$f":"A1101+1","v":2},{"$f":"Import!I13153","v":"Select"},{"$f":"Import!I13173","v":"Select"},{"$f":"Import!I13193","v":"Select"},{"$f":"Import!I13213","v":"Select"},{"$f":"Import!I13233","v":0},{"$f":"Import!I13253","v":0},{"$f":"Import!I13273","v":0}]
[{"$f":"A1102+1","v":3},{"$f":"Import!I13154","v":"Select"},{"$f":"Import!I13174","v":"Select"},{"$f":"Import!I13194","v":"Select"},{"$f":"Import!I13214","v":"Select"},{"$f":"Import!I13234","v":0},{"$f":"Import!I13254","v":0},{"$f":"Import!I13274","v":0}]
[4,{"$f":"Import!I13155","v":"Select"},{"$f":"Import!I13175","v":"Select"},{"$f":"Import!I13195","v":"Select"},{"$f":"Import!I13215","v":"Select"},{"$f":"Import!I13235","v":0},{"$f":"Import!I13255","v":0},{"$f":"Import!I13275","v":0}]
[5,{"$f":"Import!I13156","v":"Select"},{"$f":"Import!I13176","v":"Select"},{"$f":"Import!I13196","v":"Select"},{"$f":"Import!I13216","v":"Select"},{"$f":"Import!I13236","v":0},{"$f":"Import!I13256","v":0},{"$f":"Import!I13276","v":0}]
[6,{"$f":"Import!I13157","v":"Select"},{"$f":"Import!I13177","v":"Select"},{"$f":"Import!I13197","v":"Select"},{"$f":"Import!I13217","v":"Select"},{"$f":"Import!I13237","v":0},{"$f":"Import!I13257","v":0},{"$f":"Import!I13277","v":0}]
[7,{"$f":"Import!I13158","v":"Select"},{"$f":"Import!I13178","v":"Select"},{"$f":"Import!I13198","v":"Select"},{"$f":"Import!I13218","v":"Select"},{"$f":"Import!I13238","v":0},{"$f":"Import!I13258","v":0},{"$f":"Import!I13278","v":0}]
[8,{"$f":"Import!I13159","v":"Select"},{"$f":"Import!I13179","v":"Select"},{"$f":"Import!I13199","v":"Select"},{"$f":"Import!I13219","v":"Select"},{"$f":"Import!I13239","v":0},{"$f":"Import!I13259","v":0},{"$f":"Import!I13279","v":0}]
[9,{"$f":"Import!I13160","v":"Select"},{"$f":"Import!I13180","v":"Select"},{"$f":"Import!I13200","v":"Select"},{"$f":"Import!I13220","v":"Select"},{"$f":"Import!I13240","v":0},{"$f":"Import!I13260","v":0},{"$f":"Import!I13280","v":0}]
[10,{"$f":"Import!I13161","v":"Select"},{"$f":"Import!I13181","v":"Select"},{"$f":"Import!I13201","v":"Select"},{"$f":"Import!I13221","v":"Select"},{"$f":"Import!I13241","v":0},{"$f":"Import!I13261","v":0},{"$f":"Import!I13281","v":0}]
[11,{"$f":"Import!I13162","v":"Select"},{"$f":"Import!I13182","v":"Select"},{"$f":"Import!I13202","v":"Select"},{"$f":"Import!I13222","v":"Select"},{"$f":"Import!I13242","v":0},{"$f":"Import!I13262","v":0},{"$f":"Import!I13282","v":0}]
[12,{"$f":"Import!I13163","v":"Select"},{"$f":"Import!I13183","v":"Select"},{"$f":"Import!I13203","v":"Select"},{"$f":"Import!I13223","v":"Select"},{"$f":"Import!I13243","v":0},{"$f":"Import!I13263","v":0},{"$f":"Import!I13283","v":0}]
[13,{"$f":"Import!I13164","v":"Select"},{"$f":"Import!I13184","v":"Select"},{"$f":"Import!I13204","v":"Select"},{"$f":"Import!I13224","v":"Select"},{"$f":"Import!I13244","v":0},{"$f":"Import!I13264","v":0},{"$f":"Import!I13284","v":0}]
[14,{"$f":"Import!I13165","v":"Select"},{"$f":"Import!I13185","v":"Select"},{"$f":"Import!I13205","v":"Select"},{"$f":"Import!I13225","v":"Select"},{"$f":"Import!I13245","v":0},{"$f":"Import!I13265","v":0},{"$f":"Import!I13285","v":0}]
[15,{"$f":"Import!I13166","v":"Select"},{"$f":"Import!I13186","v":"Select"},{"$f":"Import!I13206","v":"Select"},{"$f":"Import!I13226","v":"Select"},{"$f":"Import!I13246","v":0},{"$f":"Import!I13266","v":0},{"$f":"Import!I13286","v":0}]
[16,{"$f":"Import!I13167","v":"Select"},{"$f":"Import!I13187","v":"Select"},{"$f":"Import!I13207","v":"Select"},{"$f":"Import!I13227","v":"Select"},{"$f":"Import!I13247","v":0},{"$f":"Import!I13267","v":0},{"$f":"Import!I13287","v":0}]
[17,{"$f":"Import!I13168","v":"Select"},{"$f":"Import!I13188","v":"Select"},{"$f":"Import!I13208","v":"Select"},{"$f":"Import!I13228","v":"Select"},{"$f":"Import!I13248","v":0},{"$f":"Import!I13268","v":0},{"$f":"Import!I13288","v":0}]
[18,{"$f":"Import!I13169","v":"Select"},{"$f":"Import!I13189","v":"Select"},{"$f":"Import!I13209","v":"Select"},{"$f":"Import!I13229","v":"Select"},{"$f":"Import!I13249","v":0},{"$f":"Import!I13269","v":0},{"$f":"Import!I13289","v":0}]
[19,{"$f":"Import!I13170","v":"Select"},{"$f":"Import!I13190","v":"Select"},{"$f":"Import!I13210","v":"Select"},{"$f":"Import!I13230","v":"Select"},{"$f":"Import!I13250","v":0},{"$f":"Import!I13270","v":0},{"$f":"Import!I13290","v":0}]
[20,{"$f":"Import!I13171","v":"Select"},{"$f":"Import!I13191","v":"Select"},{"$f":"Import!I13211","v":"Select"},{"$f":"Import!I13231","v":"Select"},{"$f":"Import!I13251","v":0},{"$f":"Import!I13271","v":0},{"$f":"Import!I13291","v":0}]
[]
[null,"Total Non-Performing Loans",null,null,null,{"$f":"SUM(F1101:F1120)","v":0},{"$f":"SUM(G1101:G1120)","v":0}]
[]
[null,"(E) PREFERRED EQUITIES"]
[]
[null,null,"Enter # of Asset Types",{"$f":"Import!I13292","v":0}]
[null,null,null,null,{"$f":"YEAR($C$3)","v":2023},2023,"Weighted"]
[null,"Asset Type","Currency","BSCR Rating","Nominal Amount","Fair Value","Average YTM","Effective Duration","Comments"]
[1,{"$f":"Import!I13293","v":"Select"},{"$f":"Import!I13393","v":"Select"},{"$f":"Import!I13493","v":"Select"},{"$f":"Import!I13593","v":0},{"$f":"Import!I13693","v":0},{"$f":"Import!I13793","v":0},{"$f":"Import!I13893","v":0},{"$f":"Import!I13993","v":0}]
[{"$f":"A1129+1","v":2},{"$f":"Import!I13294","v":"Select"},{"$f":"Import!I13394","v":"Select"},{"$f":"Import!I13494","v":"Select"},{"$f":"Import!I13594","v":0},{"$f":"Import!I13694","v":0},{"$f":"Import!I13794","v":0},{"$f":"Import!I13894","v":0},{"$f":"Import!I13994","v":0}]
[{"$f":"A1130+1","v":3},{"$f":"Import!I13295","v":"Select"},{"$f":"Import!I13395","v":"Select"},{"$f":"Import!I13495","v":"Select"},{"$f":"Import!I13595","v":0},{"$f":"Import!I13695","v":0},{"$f":"Import!I13795","v":0},{"$f":"Import!I13895","v":0},{"$f":"Import!I13995","v":0}]
[4,{"$f":"Import!I13296","v":"Select"},{"$f":"Import!I13396","v":"Select"},{"$f":"Import!I13496","v":"Select"},{"$f":"Import!I13596","v":0},{"$f":"Import!I13696","v":0},{"$f":"Import!I13796","v":0},{"$f":"Import!I13896","v":0},{"$f":"Import!I13996","v":0}]
[5,{"$f":"Import!I13297","v":"Select"},{"$f":"Import!I13397","v":"Select"},{"$f":"Import!I13497","v":"Select"},{"$f":"Import!I13597","v":0},{"$f":"Import!I13697","v":0},{"$f":"Import!I13797","v":0},{"$f":"Import!I13897","v":0},{"$f":"Import!I13997","v":0}]
[6,{"$f":"Import!I13298","v":"Select"},{"$f":"Import!I13398","v":"Select"},{"$f":"Import!I13498","v":"Select"},{"$f":"Import!I13598","v":0},{"$f":"Import!I13698","v":0},{"$f":"Import!I13798","v":0},{"$f":"Import!I13898","v":0},{"$f":"Import!I13998","v":0}]
[7,{"$f":"Import!I13299","v":"Select"},{"$f":"Import!I13399","v":"Select"},{"$f":"Import!I13499","v":"Select"},{"$f":"Import!I13599","v":0},{"$f":"Import!I13699","v":0},{"$f":"Import!I13799","v":0},{"$f":"Import!I13899","v":0},{"$f":"Import!I13999","v":0}]
[8,{"$f":"Import!I13300","v":"Select"},{"$f":"Import!I13400","v":"Select"},{"$f":"Import!I13500","v":"Select"},{"$f":"Import!I13600","v":0},{"$f":"Import!I13700","v":0},{"$f":"Import!I13800","v":0},{"$f":"Import!I13900","v":0},{"$f":"Import!I14000","v":0}]
[9,{"$f":"Import!I13301","v":"Select"},{"$f":"Import!I13401","v":"Select"},{"$f":"Import!I13501","v":"Select"},{"$f":"Import!I13601","v":0},{"$f":"Import!I13701","v":0},{"$f":"Import!I13801","v":0},{"$f":"Import!I13901","v":0},{"$f":"Import!I14001","v":0}]
[10,{"$f":"Import!I13302","v":"Select"},{"$f":"Import!I13402","v":"Select"},{"$f":"Import!I13502","v":"Select"},{"$f":"Import!I13602","v":0},{"$f":"Import!I13702","v":0},{"$f":"Import!I13802","v":0},{"$f":"Import!I13902","v":0},{"$f":"Import!I14002","v":0}]
[11,{"$f":"Import!I13303","v":"Select"},{"$f":"Import!I13403","v":"Select"},{"$f":"Import!I13503","v":"Select"},{"$f":"Import!I13603","v":0},{"$f":"Import!I13703","v":0},{"$f":"Import!I13803","v":0},{"$f":"Import!I13903","v":0},{"$f":"Import!I14003","v":0}]
[12,{"$f":"Import!I13304","v":"Select"},{"$f":"Import!I13404","v":"Select"},{"$f":"Import!I13504","v":"Select"},{"$f":"Import!I13604","v":0},{"$f":"Import!I13704","v":0},{"$f":"Import!I13804","v":0},{"$f":"Import!I13904","v":0},{"$f":"Import!I14004","v":0}]
[13,{"$f":"Import!I13305","v":"Select"},{"$f":"Import!I13405","v":"Select"},{"$f":"Import!I13505","v":"Select"},{"$f":"Import!I13605","v":0},{"$f":"Import!I13705","v":0},{"$f":"Import!I13805","v":0},{"$f":"Import!I13905","v":0},{"$f":"Import!I14005","v":0}]
[14,{"$f":"Import!I13306","v":"Select"},{"$f":"Import!I13406","v":"Select"},{"$f":"Import!I13506","v":"Select"},{"$f":"Import!I13606","v":0},{"$f":"Import!I13706","v":0},{"$f":"Import!I13806","v":0},{"$f":"Import!I13906","v":0},{"$f":"Import!I14006","v":0}]
[15,{"$f":"Import!I13307","v":"Select"},{"$f":"Import!I13407","v":"Select"},{"$f":"Import!I13507","v":"Select"},{"$f":"Import!I13607","v":0},{"$f":"Import!I13707","v":0},{"$f":"Import!I13807","v":0},{"$f":"Import!I13907","v":0},{"$f":"Import!I14007","v":0}]
[16,{"$f":"Import!I13308","v":"Select"},{"$f":"Import!I13408","v":"Select"},{"$f":"Import!I13508","v":"Select"},{"$f":"Import!I13608","v":0},{"$f":"Import!I13708","v":0},{"$f":"Import!I13808","v":0},{"$f":"Import!I13908","v":0},{"$f":"Import!I14008","v":0}]
[17,{"$f":"Import!I13309","v":"Select"},{"$f":"Import!I13409","v":"Select"},{"$f":"Import!I13509","v":"Select"},{"$f":"Import!I13609","v":0},{"$f":"Import!I13709","v":0},{"$f":"Import!I13809","v":0},{"$f":"Import!I13909","v":0},{"$f":"Import!I14009","v":0}]
[18,{"$f":"Import!I13310","v":"Select"},{"$f":"Import!I13410","v":"Select"},{"$f":"Import!I13510","v":"Select"},{"$f":"Import!I13610","v":0},{"$f":"Import!I13710","v":0},{"$f":"Import!I13810","v":0},{"$f":"Import!I13910","v":0},{"$f":"Import!I14010","v":0}]
[19,{"$f":"Import!I13311","v":"Select"},{"$f":"Import!I13411","v":"Select"},{"$f":"Import!I13511","v":"Select"},{"$f":"Import!I13611","v":0},{"$f":"Import!I13711","v":0},{"$f":"Import!I13811","v":0},{"$f":"Import!I13911","v":0},{"$f":"Import!I14011","v":0}]
[20,{"$f":"Import!I13312","v":"Select"},{"$f":"Import!I13412","v":"Select"},{"$f":"Import!I13512","v":"Select"},{"$f":"Import!I13612","v":0},{"$f":"Import!I13712","v":0},{"$f":"Import!I13812","v":0},{"$f":"Import!I13912","v":0},{"$f":"Import!I14012","v":0}]
[21,{"$f":"Import!I13313","v":"Select"},{"$f":"Import!I13413","v":"Select"},{"$f":"Import!I13513","v":"Select"},{"$f":"Import!I13613","v":0},{"$f":"Import!I13713","v":0},{"$f":"Import!I13813","v":0},{"$f":"Import!I13913","v":0},{"$f":"Import!I14013","v":0}]
[22,{"$f":"Import!I13314","v":"Select"},{"$f":"Import!I13414","v":"Select"},{"$f":"Import!I13514","v":"Select"},{"$f":"Import!I13614","v":0},{"$f":"Import!I13714","v":0},{"$f":"Import!I13814","v":0},{"$f":"Import!I13914","v":0},{"$f":"Import!I14014","v":0}]
[23,{"$f":"Import!I13315","v":"Select"},{"$f":"Import!I13415","v":"Select"},{"$f":"Import!I13515","v":"Select"},{"$f":"Import!I13615","v":0},{"$f":"Import!I13715","v":0},{"$f":"Import!I13815","v":0},{"$f":"Import!I13915","v":0},{"$f":"Import!I14015","v":0}]
[24,{"$f":"Import!I13316","v":"Select"},{"$f":"Import!I13416","v":"Select"},{"$f":"Import!I13516","v":"Select"},{"$f":"Import!I13616","v":0},{"$f":"Import!I13716","v":0},{"$f":"Import!I13816","v":0},{"$f":"Import!I13916","v":0},{"$f":"Import!I14016","v":0}]
[25,{"$f":"Import!I13317","v":"Select"},{"$f":"Import!I13417","v":"Select"},{"$f":"Import!I13517","v":"Select"},{"$f":"Import!I13617","v":0},{"$f":"Import!I13717","v":0},{"$f":"Import!I13817","v":0},{"$f":"Import!I13917","v":0},{"$f":"Import!I14017","v":0}]
[26,{"$f":"Import!I13318","v":"Select"},{"$f":"Import!I13418","v":"Select"},{"$f":"Import!I13518","v":"Select"},{"$f":"Import!I13618","v":0},{"$f":"Import!I13718","v":0},{"$f":"Import!I13818","v":0},{"$f":"Import!I13918","v":0},{"$f":"Import!I14018","v":0}]
[27,{"$f":"Import!I13319","v":"Select"},{"$f":"Import!I13419","v":"Select"},{"$f":"Import!I13519","v":"Select"},{"$f":"Import!I13619","v":0},{"$f":"Import!I13719","v":0},{"$f":"Import!I13819","v":0},{"$f":"Import!I13919","v":0},{"$f":"Import!I14019","v":0}]
[28,{"$f":"Import!I13320","v":"Select"},{"$f":"Import!I13420","v":"Select"},{"$f":"Import!I13520","v":"Select"},{"$f":"Import!I13620","v":0},{"$f":"Import!I13720","v":0},{"$f":"Import!I13820","v":0},{"$f":"Import!I13920","v":0},{"$f":"Import!I14020","v":0}]
[29,{"$f":"Import!I13321","v":"Select"},{"$f":"Import!I13421","v":"Select"},{"$f":"Import!I13521","v":"Select"},{"$f":"Import!I13621","v":0},{"$f":"Import!I13721","v":0},{"$f":"Import!I13821","v":0},{"$f":"Import!I13921","v":0},{"$f":"Import!I14021","v":0}]
[30,{"$f":"Import!I13322","v":"Select"},{"$f":"Import!I13422","v":"Select"},{"$f":"Import!I13522","v":"Select"},{"$f":"Import!I13622","v":0},{"$f":"Import!I13722","v":0},{"$f":"Import!I13822","v":0},{"$f":"Import!I13922","v":0},{"$f":"Import!I14022","v":0}]
[31,{"$f":"Import!I13323","v":"Select"},{"$f":"Import!I13423","v":"Select"},{"$f":"Import!I13523","v":"Select"},{"$f":"Import!I13623","v":0},{"$f":"Import!I13723","v":0},{"$f":"Import!I13823","v":0},{"$f":"Import!I13923","v":0},{"$f":"Import!I14023","v":0}]
[32,{"$f":"Import!I13324","v":"Select"},{"$f":"Import!I13424","v":"Select"},{"$f":"Import!I13524","v":"Select"},{"$f":"Import!I13624","v":0},{"$f":"Import!I13724","v":0},{"$f":"Import!I13824","v":0},{"$f":"Import!I13924","v":0},{"$f":"Import!I14024","v":0}]
[33,{"$f":"Import!I13325","v":"Select"},{"$f":"Import!I13425","v":"Select"},{"$f":"Import!I13525","v":"Select"},{"$f":"Import!I13625","v":0},{"$f":"Import!I13725","v":0},{"$f":"Import!I13825","v":0},{"$f":"Import!I13925","v":0},{"$f":"Import!I14025","v":0}]
[34,{"$f":"Import!I13326","v":"Select"},{"$f":"Import!I13426","v":"Select"},{"$f":"Import!I13526","v":"Select"},{"$f":"Import!I13626","v":0},{"$f":"Import!I13726","v":0},{"$f":"Import!I13826","v":0},{"$f":"Import!I13926","v":0},{"$f":"Import!I14026","v":0}]
[35,{"$f":"Import!I13327","v":"Select"},{"$f":"Import!I13427","v":"Select"},{"$f":"Import!I13527","v":"Select"},{"$f":"Import!I13627","v":0},{"$f":"Import!I13727","v":0},{"$f":"Import!I13827","v":0},{"$f":"Import!I13927","v":0},{"$f":"Import!I14027","v":0}]
[36,{"$f":"Import!I13328","v":"Select"},{"$f":"Import!I13428","v":"Select"},{"$f":"Import!I13528","v":"Select"},{"$f":"Import!I13628","v":0},{"$f":"Import!I13728","v":0},{"$f":"Import!I13828","v":0},{"$f":"Import!I13928","v":0},{"$f":"Import!I14028","v":0}]
[37,{"$f":"Import!I13329","v":"Select"},{"$f":"Import!I13429","v":"Select"},{"$f":"Import!I13529","v":"Select"},{"$f":"Import!I13629","v":0},{"$f":"Import!I13729","v":0},{"$f":"Import!I13829","v":0},{"$f":"Import!I13929","v":0},{"$f":"Import!I14029","v":0}]
[38,{"$f":"Import!I13330","v":"Select"},{"$f":"Import!I13430","v":"Select"},{"$f":"Import!I13530","v":"Select"},{"$f":"Import!I13630","v":0},{"$f":"Import!I13730","v":0},{"$f":"Import!I13830","v":0},{"$f":"Import!I13930","v":0},{"$f":"Import!I14030","v":0}]
[39,{"$f":"Import!I13331","v":"Select"},{"$f":"Import!I13431","v":"Select"},{"$f":"Import!I13531","v":"Select"},{"$f":"Import!I13631","v":0},{"$f":"Import!I13731","v":0},{"$f":"Import!I13831","v":0},{"$f":"Import!I13931","v":0},{"$f":"Import!I14031","v":0}]
[40,{"$f":"Import!I13332","v":"Select"},{"$f":"Import!I13432","v":"Select"},{"$f":"Import!I13532","v":"Select"},{"$f":"Import!I13632","v":0},{"$f":"Import!I13732","v":0},{"$f":"Import!I13832","v":0},{"$f":"Import!I13932","v":0},{"$f":"Import!I14032","v":0}]
[41,{"$f":"Import!I13333","v":"Select"},{"$f":"Import!I13433","v":"Select"},{"$f":"Import!I13533","v":"Select"},{"$f":"Import!I13633","v":0},{"$f":"Import!I13733","v":0},{"$f":"Import!I13833","v":0},{"$f":"Import!I13933","v":0},{"$f":"Import!I14033","v":0}]
[42,{"$f":"Import!I13334","v":"Select"},{"$f":"Import!I13434","v":"Select"},{"$f":"Import!I13534","v":"Select"},{"$f":"Import!I13634","v":0},{"$f":"Import!I13734","v":0},{"$f":"Import!I13834","v":0},{"$f":"Import!I13934","v":0},{"$f":"Import!I14034","v":0}]
[43,{"$f":"Import!I13335","v":"Select"},{"$f":"Import!I13435","v":"Select"},{"$f":"Import!I13535","v":"Select"},{"$f":"Import!I13635","v":0},{"$f":"Import!I13735","v":0},{"$f":"Import!I13835","v":0},{"$f":"Import!I13935","v":0},{"$f":"Import!I14035","v":0}]
[44,{"$f":"Import!I13336","v":"Select"},{"$f":"Import!I13436","v":"Select"},{"$f":"Import!I13536","v":"Select"},{"$f":"Import!I13636","v":0},{"$f":"Import!I13736","v":0},{"$f":"Import!I13836","v":0},{"$f":"Import!I13936","v":0},{"$f":"Import!I14036","v":0}]
[45,{"$f":"Import!I13337","v":"Select"},{"$f":"Import!I13437","v":"Select"},{"$f":"Import!I13537","v":"Select"},{"$f":"Import!I13637","v":0},{"$f":"Import!I13737","v":0},{"$f":"Import!I13837","v":0},{"$f":"Import!I13937","v":0},{"$f":"Import!I14037","v":0}]
[46,{"$f":"Import!I13338","v":"Select"},{"$f":"Import!I13438","v":"Select"},{"$f":"Import!I13538","v":"Select"},{"$f":"Import!I13638","v":0},{"$f":"Import!I13738","v":0},{"$f":"Import!I13838","v":0},{"$f":"Import!I13938","v":0},{"$f":"Import!I14038","v":0}]
[47,{"$f":"Import!I13339","v":"Select"},{"$f":"Import!I13439","v":"Select"},{"$f":"Import!I13539","v":"Select"},{"$f":"Import!I13639","v":0},{"$f":"Import!I13739","v":0},{"$f":"Import!I13839","v":0},{"$f":"Import!I13939","v":0},{"$f":"Import!I14039","v":0}]
[48,{"$f":"Import!I13340","v":"Select"},{"$f":"Import!I13440","v":"Select"},{"$f":"Import!I13540","v":"Select"},{"$f":"Import!I13640","v":0},{"$f":"Import!I13740","v":0},{"$f":"Import!I13840","v":0},{"$f":"Import!I13940","v":0},{"$f":"Import!I14040","v":0}]
[49,{"$f":"Import!I13341","v":"Select"},{"$f":"Import!I13441","v":"Select"},{"$f":"Import!I13541","v":"Select"},{"$f":"Import!I13641","v":0},{"$f":"Import!I13741","v":0},{"$f":"Import!I13841","v":0},{"$f":"Import!I13941","v":0},{"$f":"Import!I14041","v":0}]
[50,{"$f":"Import!I13342","v":"Select"},{"$f":"Import!I13442","v":"Select"},{"$f":"Import!I13542","v":"Select"},{"$f":"Import!I13642","v":0},{"$f":"Import!I13742","v":0},{"$f":"Import!I13842","v":0},{"$f":"Import!I13942","v":0},{"$f":"Import!I14042","v":0}]
[51,{"$f":"Import!I13343","v":"Select"},{"$f":"Import!I13443","v":"Select"},{"$f":"Import!I13543","v":"Select"},{"$f":"Import!I13643","v":0},{"$f":"Import!I13743","v":0},{"$f":"Import!I13843","v":0},{"$f":"Import!I13943","v":0},{"$f":"Import!I14043","v":0}]
[52,{"$f":"Import!I13344","v":"Select"},{"$f":"Import!I13444","v":"Select"},{"$f":"Import!I13544","v":"Select"},{"$f":"Import!I13644","v":0},{"$f":"Import!I13744","v":0},{"$f":"Import!I13844","v":0},{"$f":"Import!I13944","v":0},{"$f":"Import!I14044","v":0}]
[53,{"$f":"Import!I13345","v":"Select"},{"$f":"Import!I13445","v":"Select"},{"$f":"Import!I13545","v":"Select"},{"$f":"Import!I13645","v":0},{"$f":"Import!I13745","v":0},{"$f":"Import!I13845","v":0},{"$f":"Import!I13945","v":0},{"$f":"Import!I14045","v":0}]
[54,{"$f":"Import!I13346","v":"Select"},{"$f":"Import!I13446","v":"Select"},{"$f":"Import!I13546","v":"Select"},{"$f":"Import!I13646","v":0},{"$f":"Import!I13746","v":0},{"$f":"Import!I13846","v":0},{"$f":"Import!I13946","v":0},{"$f":"Import!I14046","v":0}]
[55,{"$f":"Import!I13347","v":"Select"},{"$f":"Import!I13447","v":"Select"},{"$f":"Import!I13547","v":"Select"},{"$f":"Import!I13647","v":0},{"$f":"Import!I13747","v":0},{"$f":"Import!I13847","v":0},{"$f":"Import!I13947","v":0},{"$f":"Import!I14047","v":0}]
[56,{"$f":"Import!I13348","v":"Select"},{"$f":"Import!I13448","v":"Select"},{"$f":"Import!I13548","v":"Select"},{"$f":"Import!I13648","v":0},{"$f":"Import!I13748","v":0},{"$f":"Import!I13848","v":0},{"$f":"Import!I13948","v":0},{"$f":"Import!I14048","v":0}]
[57,{"$f":"Import!I13349","v":"Select"},{"$f":"Import!I13449","v":"Select"},{"$f":"Import!I13549","v":"Select"},{"$f":"Import!I13649","v":0},{"$f":"Import!I13749","v":0},{"$f":"Import!I13849","v":0},{"$f":"Import!I13949","v":0},{"$f":"Import!I14049","v":0}]
[58,{"$f":"Import!I13350","v":"Select"},{"$f":"Import!I13450","v":"Select"},{"$f":"Import!I13550","v":"Select"},{"$f":"Import!I13650","v":0},{"$f":"Import!I13750","v":0},{"$f":"Import!I13850","v":0},{"$f":"Import!I13950","v":0},{"$f":"Import!I14050","v":0}]
[59,{"$f":"Import!I13351","v":"Select"},{"$f":"Import!I13451","v":"Select"},{"$f":"Import!I13551","v":"Select"},{"$f":"Import!I13651","v":0},{"$f":"Import!I13751","v":0},{"$f":"Import!I13851","v":0},{"$f":"Import!I13951","v":0},{"$f":"Import!I14051","v":0}]
[60,{"$f":"Import!I13352","v":"Select"},{"$f":"Import!I13452","v":"Select"},{"$f":"Import!I13552","v":"Select"},{"$f":"Import!I13652","v":0},{"$f":"Import!I13752","v":0},{"$f":"Import!I13852","v":0},{"$f":"Import!I13952","v":0},{"$f":"Import!I14052","v":0}]
[61,{"$f":"Import!I13353","v":"Select"},{"$f":"Import!I13453","v":"Select"},{"$f":"Import!I13553","v":"Select"},{"$f":"Import!I13653","v":0},{"$f":"Import!I13753","v":0},{"$f":"Import!I13853","v":0},{"$f":"Import!I13953","v":0},{"$f":"Import!I14053","v":0}]
[62,{"$f":"Import!I13354","v":"Select"},{"$f":"Import!I13454","v":"Select"},{"$f":"Import!I13554","v":"Select"},{"$f":"Import!I13654","v":0},{"$f":"Import!I13754","v":0},{"$f":"Import!I13854","v":0},{"$f":"Import!I13954","v":0},{"$f":"Import!I14054","v":0}]
[63,{"$f":"Import!I13355","v":"Select"},{"$f":"Import!I13455","v":"Select"},{"$f":"Import!I13555","v":"Select"},{"$f":"Import!I13655","v":0},{"$f":"Import!I13755","v":0},{"$f":"Import!I13855","v":0},{"$f":"Import!I13955","v":0},{"$f":"Import!I14055","v":0}]
[64,{"$f":"Import!I13356","v":"Select"},{"$f":"Import!I13456","v":"Select"},{"$f":"Import!I13556","v":"Select"},{"$f":"Import!I13656","v":0},{"$f":"Import!I13756","v":0},{"$f":"Import!I13856","v":0},{"$f":"Import!I13956","v":0},{"$f":"Import!I14056","v":0}]
[65,{"$f":"Import!I13357","v":"Select"},{"$f":"Import!I13457","v":"Select"},{"$f":"Import!I13557","v":"Select"},{"$f":"Import!I13657","v":0},{"$f":"Import!I13757","v":0},{"$f":"Import!I13857","v":0},{"$f":"Import!I13957","v":0},{"$f":"Import!I14057","v":0}]
[66,{"$f":"Import!I13358","v":"Select"},{"$f":"Import!I13458","v":"Select"},{"$f":"Import!I13558","v":"Select"},{"$f":"Import!I13658","v":0},{"$f":"Import!I13758","v":0},{"$f":"Import!I13858","v":0},{"$f":"Import!I13958","v":0},{"$f":"Import!I14058","v":0}]
[{"$f":"A1194+1","v":67},{"$f":"Import!I13359","v":"Select"},{"$f":"Import!I13459","v":"Select"},{"$f":"Import!I13559","v":"Select"},{"$f":"Import!I13659","v":0},{"$f":"Import!I13759","v":0},{"$f":"Import!I13859","v":0},{"$f":"Import!I13959","v":0},{"$f":"Import!I14059","v":0}]
[68,{"$f":"Import!I13360","v":"Select"},{"$f":"Import!I13460","v":"Select"},{"$f":"Import!I13560","v":"Select"},{"$f":"Import!I13660","v":0},{"$f":"Import!I13760","v":0},{"$f":"Import!I13860","v":0},{"$f":"Import!I13960","v":0},{"$f":"Import!I14060","v":0}]
[69,{"$f":"Import!I13361","v":"Select"},{"$f":"Import!I13461","v":"Select"},{"$f":"Import!I13561","v":"Select"},{"$f":"Import!I13661","v":0},{"$f":"Import!I13761","v":0},{"$f":"Import!I13861","v":0},{"$f":"Import!I13961","v":0},{"$f":"Import!I14061","v":0}]
[70,{"$f":"Import!I13362","v":"Select"},{"$f":"Import!I13462","v":"Select"},{"$f":"Import!I13562","v":"Select"},{"$f":"Import!I13662","v":0},{"$f":"Import!I13762","v":0},{"$f":"Import!I13862","v":0},{"$f":"Import!I13962","v":0},{"$f":"Import!I14062","v":0}]
[71,{"$f":"Import!I13363","v":"Select"},{"$f":"Import!I13463","v":"Select"},{"$f":"Import!I13563","v":"Select"},{"$f":"Import!I13663","v":0},{"$f":"Import!I13763","v":0},{"$f":"Import!I13863","v":0},{"$f":"Import!I13963","v":0},{"$f":"Import!I14063","v":0}]
[72,{"$f":"Import!I13364","v":"Select"},{"$f":"Import!I13464","v":"Select"},{"$f":"Import!I13564","v":"Select"},{"$f":"Import!I13664","v":0},{"$f":"Import!I13764","v":0},{"$f":"Import!I13864","v":0},{"$f":"Import!I13964","v":0},{"$f":"Import!I14064","v":0}]
[73,{"$f":"Import!I13365","v":"Select"},{"$f":"Import!I13465","v":"Select"},{"$f":"Import!I13565","v":"Select"},{"$f":"Import!I13665","v":0},{"$f":"Import!I13765","v":0},{"$f":"Import!I13865","v":0},{"$f":"Import!I13965","v":0},{"$f":"Import!I14065","v":0}]
[74,{"$f":"Import!I13366","v":"Select"},{"$f":"Import!I13466","v":"Select"},{"$f":"Import!I13566","v":"Select"},{"$f":"Import!I13666","v":0},{"$f":"Import!I13766","v":0},{"$f":"Import!I13866","v":0},{"$f":"Import!I13966","v":0},{"$f":"Import!I14066","v":0}]
[75,{"$f":"Import!I13367","v":"Select"},{"$f":"Import!I13467","v":"Select"},{"$f":"Import!I13567","v":"Select"},{"$f":"Import!I13667","v":0},{"$f":"Import!I13767","v":0},{"$f":"Import!I13867","v":0},{"$f":"Import!I13967","v":0},{"$f":"Import!I14067","v":0}]
[76,{"$f":"Import!I13368","v":"Select"},{"$f":"Import!I13468","v":"Select"},{"$f":"Import!I13568","v":"Select"},{"$f":"Import!I13668","v":0},{"$f":"Import!I13768","v":0},{"$f":"Import!I13868","v":0},{"$f":"Import!I13968","v":0},{"$f":"Import!I14068","v":0}]
[77,{"$f":"Import!I13369","v":"Select"},{"$f":"Import!I13469","v":"Select"},{"$f":"Import!I13569","v":"Select"},{"$f":"Import!I13669","v":0},{"$f":"Import!I13769","v":0},{"$f":"Import!I13869","v":0},{"$f":"Import!I13969","v":0},{"$f":"Import!I14069","v":0}]
[78,{"$f":"Import!I13370","v":"Select"},{"$f":"Import!I13470","v":"Select"},{"$f":"Import!I13570","v":"Select"},{"$f":"Import!I13670","v":0},{"$f":"Import!I13770","v":0},{"$f":"Import!I13870","v":0},{"$f":"Import!I13970","v":0},{"$f":"Import!I14070","v":0}]
[79,{"$f":"Import!I13371","v":"Select"},{"$f":"Import!I13471","v":"Select"},{"$f":"Import!I13571","v":"Select"},{"$f":"Import!I13671","v":0},{"$f":"Import!I13771","v":0},{"$f":"Import!I13871","v":0},{"$f":"Import!I13971","v":0},{"$f":"Import!I14071","v":0}]
[80,{"$f":"Import!I13372","v":"Select"},{"$f":"Import!I13472","v":"Select"},{"$f":"Import!I13572","v":"Select"},{"$f":"Import!I13672","v":0},{"$f":"Import!I13772","v":0},{"$f":"Import!I13872","v":0},{"$f":"Import!I13972","v":0},{"$f":"Import!I14072","v":0}]
[81,{"$f":"Import!I13373","v":"Select"},{"$f":"Import!I13473","v":"Select"},{"$f":"Import!I13573","v":"Select"},{"$f":"Import!I13673","v":0},{"$f":"Import!I13773","v":0},{"$f":"Import!I13873","v":0},{"$f":"Import!I13973","v":0},{"$f":"Import!I14073","v":0}]
[82,{"$f":"Import!I13374","v":"Select"},{"$f":"Import!I13474","v":"Select"},{"$f":"Import!I13574","v":"Select"},{"$f":"Import!I13674","v":0},{"$f":"Import!I13774","v":0},{"$f":"Import!I13874","v":0},{"$f":"Import!I13974","v":0},{"$f":"Import!I14074","v":0}]
[83,{"$f":"Import!I13375","v":"Select"},{"$f":"Import!I13475","v":"Select"},{"$f":"Import!I13575","v":"Select"},{"$f":"Import!I13675","v":0},{"$f":"Import!I13775","v":0},{"$f":"Import!I13875","v":0},{"$f":"Import!I13975","v":0},{"$f":"Import!I14075","v":0}]
[84,{"$f":"Import!I13376","v":"Select"},{"$f":"Import!I13476","v":"Select"},{"$f":"Import!I13576","v":"Select"},{"$f":"Import!I13676","v":0},{"$f":"Import!I13776","v":0},{"$f":"Import!I13876","v":0},{"$f":"Import!I13976","v":0},{"$f":"Import!I14076","v":0}]
[85,{"$f":"Import!I13377","v":"Select"},{"$f":"Import!I13477","v":"Select"},{"$f":"Import!I13577","v":"Select"},{"$f":"Import!I13677","v":0},{"$f":"Import!I13777","v":0},{"$f":"Import!I13877","v":0},{"$f":"Import!I13977","v":0},{"$f":"Import!I14077","v":0}]
[86,{"$f":"Import!I13378","v":"Select"},{"$f":"Import!I13478","v":"Select"},{"$f":"Import!I13578","v":"Select"},{"$f":"Import!I13678","v":0},{"$f":"Import!I13778","v":0},{"$f":"Import!I13878","v":0},{"$f":"Import!I13978","v":0},{"$f":"Import!I14078","v":0}]
[87,{"$f":"Import!I13379","v":"Select"},{"$f":"Import!I13479","v":"Select"},{"$f":"Import!I13579","v":"Select"},{"$f":"Import!I13679","v":0},{"$f":"Import!I13779","v":0},{"$f":"Import!I13879","v":0},{"$f":"Import!I13979","v":0},{"$f":"Import!I14079","v":0}]
[88,{"$f":"Import!I13380","v":"Select"},{"$f":"Import!I13480","v":"Select"},{"$f":"Import!I13580","v":"Select"},{"$f":"Import!I13680","v":0},{"$f":"Import!I13780","v":0},{"$f":"Import!I13880","v":0},{"$f":"Import!I13980","v":0},{"$f":"Import!I14080","v":0}]
[89,{"$f":"Import!I13381","v":"Select"},{"$f":"Import!I13481","v":"Select"},{"$f":"Import!I13581","v":"Select"},{"$f":"Import!I13681","v":0},{"$f":"Import!I13781","v":0},{"$f":"Import!I13881","v":0},{"$f":"Import!I13981","v":0},{"$f":"Import!I14081","v":0}]
[90,{"$f":"Import!I13382","v":"Select"},{"$f":"Import!I13482","v":"Select"},{"$f":"Import!I13582","v":"Select"},{"$f":"Import!I13682","v":0},{"$f":"Import!I13782","v":0},{"$f":"Import!I13882","v":0},{"$f":"Import!I13982","v":0},{"$f":"Import!I14082","v":0}]
[91,{"$f":"Import!I13383","v":"Select"},{"$f":"Import!I13483","v":"Select"},{"$f":"Import!I13583","v":"Select"},{"$f":"Import!I13683","v":0},{"$f":"Import!I13783","v":0},{"$f":"Import!I13883","v":0},{"$f":"Import!I13983","v":0},{"$f":"Import!I14083","v":0}]
[92,{"$f":"Import!I13384","v":"Select"},{"$f":"Import!I13484","v":"Select"},{"$f":"Import!I13584","v":"Select"},{"$f":"Import!I13684","v":0},{"$f":"Import!I13784","v":0},{"$f":"Import!I13884","v":0},{"$f":"Import!I13984","v":0},{"$f":"Import!I14084","v":0}]
[93,{"$f":"Import!I13385","v":"Select"},{"$f":"Import!I13485","v":"Select"},{"$f":"Import!I13585","v":"Select"},{"$f":"Import!I13685","v":0},{"$f":"Import!I13785","v":0},{"$f":"Import!I13885","v":0},{"$f":"Import!I13985","v":0},{"$f":"Import!I14085","v":0}]
[94,{"$f":"Import!I13386","v":"Select"},{"$f":"Import!I13486","v":"Select"},{"$f":"Import!I13586","v":"Select"},{"$f":"Import!I13686","v":0},{"$f":"Import!I13786","v":0},{"$f":"Import!I13886","v":0},{"$f":"Import!I13986","v":0},{"$f":"Import!I14086","v":0}]
[95,{"$f":"Import!I13387","v":"Select"},{"$f":"Import!I13487","v":"Select"},{"$f":"Import!I13587","v":"Select"},{"$f":"Import!I13687","v":0},{"$f":"Import!I13787","v":0},{"$f":"Import!I13887","v":0},{"$f":"Import!I13987","v":0},{"$f":"Import!I14087","v":0}]
[96,{"$f":"Import!I13388","v":"Select"},{"$f":"Import!I13488","v":"Select"},{"$f":"Import!I13588","v":"Select"},{"$f":"Import!I13688","v":0},{"$f":"Import!I13788","v":0},{"$f":"Import!I13888","v":0},{"$f":"Import!I13988","v":0},{"$f":"Import!I14088","v":0}]
[97,{"$f":"Import!I13389","v":"Select"},{"$f":"Import!I13489","v":"Select"},{"$f":"Import!I13589","v":"Select"},{"$f":"Import!I13689","v":0},{"$f":"Import!I13789","v":0},{"$f":"Import!I13889","v":0},{"$f":"Import!I13989","v":0},{"$f":"Import!I14089","v":0}]
[98,{"$f":"Import!I13390","v":"Select"},{"$f":"Import!I13490","v":"Select"},{"$f":"Import!I13590","v":"Select"},{"$f":"Import!I13690","v":0},{"$f":"Import!I13790","v":0},{"$f":"Import!I13890","v":0},{"$f":"Import!I13990","v":0},{"$f":"Import!I14090","v":0}]
[99,{"$f":"Import!I13391","v":"Select"},{"$f":"Import!I13491","v":"Select"},{"$f":"Import!I13591","v":"Select"},{"$f":"Import!I13691","v":0},{"$f":"Import!I13791","v":0},{"$f":"Import!I13891","v":0},{"$f":"Import!I13991","v":0},{"$f":"Import!I14091","v":0}]
[100,{"$f":"Import!I13392","v":"Select"},{"$f":"Import!I13492","v":"Select"},{"$f":"Import!I13592","v":"Select"},{"$f":"Import!I13692","v":0},{"$f":"Import!I13792","v":0},{"$f":"Import!I13892","v":0},{"$f":"Import!I13992","v":0},{"$f":"Import!I14092","v":0}]
[]
[null,"Total Preferred Equities",null,null,{"$f":"SUM(E1129:E1228)","v":0},{"$f":"SUM(F1129:F1228)","v":0},{"$f":"IFERROR(SUMPRODUCT(G1129:G1228,$F1129:$F1228)/SUM($F1129:$F1228),0)","v":0},{"$f":"IFERROR(SUMPRODUCT(H1129:H1228,$F1129:$F1228)/SUM($F1129:$F1228),0)","v":0}]
[]
[null,"(F) COMMON EQUITIES"]
[]
[null,null,"Enter # of Asset Types",{"$f":"Import!I14093","v":0}]
[null,null,null,null,{"$f":"YEAR($C$3)","v":2023}]
[null,"Asset Type","Currency","Country","Fair Value","Comments"]
[1,{"$f":"Import!I14094","v":"Select"},{"$f":"Import!I14194","v":"Select"},{"$f":"Import!I14294","v":"Select"},{"$f":"Import!I14394","v":0},{"$f":"Import!I14494","v":0}]
[{"$f":"A1237+1","v":2},{"$f":"Import!I14095","v":"Select"},{"$f":"Import!I14195","v":"Select"},{"$f":"Import!I14295","v":"Select"},{"$f":"Import!I14395","v":0},{"$f":"Import!I14495","v":0}]
[{"$f":"A1238+1","v":3},{"$f":"Import!I14096","v":"Select"},{"$f":"Import!I14196","v":"Select"},{"$f":"Import!I14296","v":"Select"},{"$f":"Import!I14396","v":0},{"$f":"Import!I14496","v":0}]
[4,{"$f":"Import!I14097","v":"Select"},{"$f":"Import!I14197","v":"Select"},{"$f":"Import!I14297","v":"Select"},{"$f":"Import!I14397","v":0},{"$f":"Import!I14497","v":0}]
[5,{"$f":"Import!I14098","v":"Select"},{"$f":"Import!I14198","v":"Select"},{"$f":"Import!I14298","v":"Select"},{"$f":"Import!I14398","v":0},{"$f":"Import!I14498","v":0}]
[6,{"$f":"Import!I14099","v":"Select"},{"$f":"Import!I14199","v":"Select"},{"$f":"Import!I14299","v":"Select"},{"$f":"Import!I14399","v":0},{"$f":"Import!I14499","v":0}]
[7,{"$f":"Import!I14100","v":"Select"},{"$f":"Import!I14200","v":"Select"},{"$f":"Import!I14300","v":"Select"},{"$f":"Import!I14400","v":0},{"$f":"Import!I14500","v":0}]
[8,{"$f":"Import!I14101","v":"Select"},{"$f":"Import!I14201","v":"Select"},{"$f":"Import!I14301","v":"Select"},{"$f":"Import!I14401","v":0},{"$f":"Import!I14501","v":0}]
[9,{"$f":"Import!I14102","v":"Select"},{"$f":"Import!I14202","v":"Select"},{"$f":"Import!I14302","v":"Select"},{"$f":"Import!I14402","v":0},{"$f":"Import!I14502","v":0}]
[10,{"$f":"Import!I14103","v":"Select"},{"$f":"Import!I14203","v":"Select"},{"$f":"Import!I14303","v":"Select"},{"$f":"Import!I14403","v":0},{"$f":"Import!I14503","v":0}]
[11,{"$f":"Import!I14104","v":"Select"},{"$f":"Import!I14204","v":"Select"},{"$f":"Import!I14304","v":"Select"},{"$f":"Import!I14404","v":0},{"$f":"Import!I14504","v":0}]
[12,{"$f":"Import!I14105","v":"Select"},{"$f":"Import!I14205","v":"Select"},{"$f":"Import!I14305","v":"Select"},{"$f":"Import!I14405","v":0},{"$f":"Import!I14505","v":0}]
[13,{"$f":"Import!I14106","v":"Select"},{"$f":"Import!I14206","v":"Select"},{"$f":"Import!I14306","v":"Select"},{"$f":"Import!I14406","v":0},{"$f":"Import!I14506","v":0}]
[14,{"$f":"Import!I14107","v":"Select"},{"$f":"Import!I14207","v":"Select"},{"$f":"Import!I14307","v":"Select"},{"$f":"Import!I14407","v":0},{"$f":"Import!I14507","v":0}]
[15,{"$f":"Import!I14108","v":"Select"},{"$f":"Import!I14208","v":"Select"},{"$f":"Import!I14308","v":"Select"},{"$f":"Import!I14408","v":0},{"$f":"Import!I14508","v":0}]
[16,{"$f":"Import!I14109","v":"Select"},{"$f":"Import!I14209","v":"Select"},{"$f":"Import!I14309","v":"Select"},{"$f":"Import!I14409","v":0},{"$f":"Import!I14509","v":0}]
[17,{"$f":"Import!I14110","v":"Select"},{"$f":"Import!I14210","v":"Select"},{"$f":"Import!I14310","v":"Select"},{"$f":"Import!I14410","v":0},{"$f":"Import!I14510","v":0}]
[18,{"$f":"Import!I14111","v":"Select"},{"$f":"Import!I14211","v":"Select"},{"$f":"Import!I14311","v":"Select"},{"$f":"Import!I14411","v":0},{"$f":"Import!I14511","v":0}]
[19,{"$f":"Import!I14112","v":"Select"},{"$f":"Import!I14212","v":"Select"},{"$f":"Import!I14312","v":"Select"},{"$f":"Import!I14412","v":0},{"$f":"Import!I14512","v":0}]
[20,{"$f":"Import!I14113","v":"Select"},{"$f":"Import!I14213","v":"Select"},{"$f":"Import!I14313","v":"Select"},{"$f":"Import!I14413","v":0},{"$f":"Import!I14513","v":0}]
[21,{"$f":"Import!I14114","v":"Select"},{"$f":"Import!I14214","v":"Select"},{"$f":"Import!I14314","v":"Select"},{"$f":"Import!I14414","v":0},{"$f":"Import!I14514","v":0}]
[22,{"$f":"Import!I14115","v":"Select"},{"$f":"Import!I14215","v":"Select"},{"$f":"Import!I14315","v":"Select"},{"$f":"Import!I14415","v":0},{"$f":"Import!I14515","v":0}]
[23,{"$f":"Import!I14116","v":"Select"},{"$f":"Import!I14216","v":"Select"},{"$f":"Import!I14316","v":"Select"},{"$f":"Import!I14416","v":0},{"$f":"Import!I14516","v":0}]
[24,{"$f":"Import!I14117","v":"Select"},{"$f":"Import!I14217","v":"Select"},{"$f":"Import!I14317","v":"Select"},{"$f":"Import!I14417","v":0},{"$f":"Import!I14517","v":0}]
[25,{"$f":"Import!I14118","v":"Select"},{"$f":"Import!I14218","v":"Select"},{"$f":"Import!I14318","v":"Select"},{"$f":"Import!I14418","v":0},{"$f":"Import!I14518","v":0}]
[26,{"$f":"Import!I14119","v":"Select"},{"$f":"Import!I14219","v":"Select"},{"$f":"Import!I14319","v":"Select"},{"$f":"Import!I14419","v":0},{"$f":"Import!I14519","v":0}]
[27,{"$f":"Import!I14120","v":"Select"},{"$f":"Import!I14220","v":"Select"},{"$f":"Import!I14320","v":"Select"},{"$f":"Import!I14420","v":0},{"$f":"Import!I14520","v":0}]
[28,{"$f":"Import!I14121","v":"Select"},{"$f":"Import!I14221","v":"Select"},{"$f":"Import!I14321","v":"Select"},{"$f":"Import!I14421","v":0},{"$f":"Import!I14521","v":0}]
[29,{"$f":"Import!I14122","v":"Select"},{"$f":"Import!I14222","v":"Select"},{"$f":"Import!I14322","v":"Select"},{"$f":"Import!I14422","v":0},{"$f":"Import!I14522","v":0}]
[30,{"$f":"Import!I14123","v":"Select"},{"$f":"Import!I14223","v":"Select"},{"$f":"Import!I14323","v":"Select"},{"$f":"Import!I14423","v":0},{"$f":"Import!I14523","v":0}]
[31,{"$f":"Import!I14124","v":"Select"},{"$f":"Import!I14224","v":"Select"},{"$f":"Import!I14324","v":"Select"},{"$f":"Import!I14424","v":0},{"$f":"Import!I14524","v":0}]
[32,{"$f":"Import!I14125","v":"Select"},{"$f":"Import!I14225","v":"Select"},{"$f":"Import!I14325","v":"Select"},{"$f":"Import!I14425","v":0},{"$f":"Import!I14525","v":0}]
[33,{"$f":"Import!I14126","v":"Select"},{"$f":"Import!I14226","v":"Select"},{"$f":"Import!I14326","v":"Select"},{"$f":"Import!I14426","v":0},{"$f":"Import!I14526","v":0}]
[34,{"$f":"Import!I14127","v":"Select"},{"$f":"Import!I14227","v":"Select"},{"$f":"Import!I14327","v":"Select"},{"$f":"Import!I14427","v":0},{"$f":"Import!I14527","v":0}]
[35,{"$f":"Import!I14128","v":"Select"},{"$f":"Import!I14228","v":"Select"},{"$f":"Import!I14328","v":"Select"},{"$f":"Import!I14428","v":0},{"$f":"Import!I14528","v":0}]
[36,{"$f":"Import!I14129","v":"Select"},{"$f":"Import!I14229","v":"Select"},{"$f":"Import!I14329","v":"Select"},{"$f":"Import!I14429","v":0},{"$f":"Import!I14529","v":0}]
[37,{"$f":"Import!I14130","v":"Select"},{"$f":"Import!I14230","v":"Select"},{"$f":"Import!I14330","v":"Select"},{"$f":"Import!I14430","v":0},{"$f":"Import!I14530","v":0}]
[38,{"$f":"Import!I14131","v":"Select"},{"$f":"Import!I14231","v":"Select"},{"$f":"Import!I14331","v":"Select"},{"$f":"Import!I14431","v":0},{"$f":"Import!I14531","v":0}]
[39,{"$f":"Import!I14132","v":"Select"},{"$f":"Import!I14232","v":"Select"},{"$f":"Import!I14332","v":"Select"},{"$f":"Import!I14432","v":0},{"$f":"Import!I14532","v":0}]
[40,{"$f":"Import!I14133","v":"Select"},{"$f":"Import!I14233","v":"Select"},{"$f":"Import!I14333","v":"Select"},{"$f":"Import!I14433","v":0},{"$f":"Import!I14533","v":0}]
[41,{"$f":"Import!I14134","v":"Select"},{"$f":"Import!I14234","v":"Select"},{"$f":"Import!I14334","v":"Select"},{"$f":"Import!I14434","v":0},{"$f":"Import!I14534","v":0}]
[42,{"$f":"Import!I14135","v":"Select"},{"$f":"Import!I14235","v":"Select"},{"$f":"Import!I14335","v":"Select"},{"$f":"Import!I14435","v":0},{"$f":"Import!I14535","v":0}]
[43,{"$f":"Import!I14136","v":"Select"},{"$f":"Import!I14236","v":"Select"},{"$f":"Import!I14336","v":"Select"},{"$f":"Import!I14436","v":0},{"$f":"Import!I14536","v":0}]
[44,{"$f":"Import!I14137","v":"Select"},{"$f":"Import!I14237","v":"Select"},{"$f":"Import!I14337","v":"Select"},{"$f":"Import!I14437","v":0},{"$f":"Import!I14537","v":0}]
[45,{"$f":"Import!I14138","v":"Select"},{"$f":"Import!I14238","v":"Select"},{"$f":"Import!I14338","v":"Select"},{"$f":"Import!I14438","v":0},{"$f":"Import!I14538","v":0}]
[46,{"$f":"Import!I14139","v":"Select"},{"$f":"Import!I14239","v":"Select"},{"$f":"Import!I14339","v":"Select"},{"$f":"Import!I14439","v":0},{"$f":"Import!I14539","v":0}]
[47,{"$f":"Import!I14140","v":"Select"},{"$f":"Import!I14240","v":"Select"},{"$f":"Import!I14340","v":"Select"},{"$f":"Import!I14440","v":0},{"$f":"Import!I14540","v":0}]
[48,{"$f":"Import!I14141","v":"Select"},{"$f":"Import!I14241","v":"Select"},{"$f":"Import!I14341","v":"Select"},{"$f":"Import!I14441","v":0},{"$f":"Import!I14541","v":0}]
[49,{"$f":"Import!I14142","v":"Select"},{"$f":"Import!I14242","v":"Select"},{"$f":"Import!I14342","v":"Select"},{"$f":"Import!I14442","v":0},{"$f":"Import!I14542","v":0}]
[50,{"$f":"Import!I14143","v":"Select"},{"$f":"Import!I14243","v":"Select"},{"$f":"Import!I14343","v":"Select"},{"$f":"Import!I14443","v":0},{"$f":"Import!I14543","v":0}]
[51,{"$f":"Import!I14144","v":"Select"},{"$f":"Import!I14244","v":"Select"},{"$f":"Import!I14344","v":"Select"},{"$f":"Import!I14444","v":0},{"$f":"Import!I14544","v":0}]
[52,{"$f":"Import!I14145","v":"Select"},{"$f":"Import!I14245","v":"Select"},{"$f":"Import!I14345","v":"Select"},{"$f":"Import!I14445","v":0},{"$f":"Import!I14545","v":0}]
[53,{"$f":"Import!I14146","v":"Select"},{"$f":"Import!I14246","v":"Select"},{"$f":"Import!I14346","v":"Select"},{"$f":"Import!I14446","v":0},{"$f":"Import!I14546","v":0}]
[54,{"$f":"Import!I14147","v":"Select"},{"$f":"Import!I14247","v":"Select"},{"$f":"Import!I14347","v":"Select"},{"$f":"Import!I14447","v":0},{"$f":"Import!I14547","v":0}]
[55,{"$f":"Import!I14148","v":"Select"},{"$f":"Import!I14248","v":"Select"},{"$f":"Import!I14348","v":"Select"},{"$f":"Import!I14448","v":0},{"$f":"Import!I14548","v":0}]
[56,{"$f":"Import!I14149","v":"Select"},{"$f":"Import!I14249","v":"Select"},{"$f":"Import!I14349","v":"Select"},{"$f":"Import!I14449","v":0},{"$f":"Import!I14549","v":0}]
[57,{"$f":"Import!I14150","v":"Select"},{"$f":"Import!I14250","v":"Select"},{"$f":"Import!I14350","v":"Select"},{"$f":"Import!I14450","v":0},{"$f":"Import!I14550","v":0}]
[58,{"$f":"Import!I14151","v":"Select"},{"$f":"Import!I14251","v":"Select"},{"$f":"Import!I14351","v":"Select"},{"$f":"Import!I14451","v":0},{"$f":"Import!I14551","v":0}]
[59,{"$f":"Import!I14152","v":"Select"},{"$f":"Import!I14252","v":"Select"},{"$f":"Import!I14352","v":"Select"},{"$f":"Import!I14452","v":0},{"$f":"Import!I14552","v":0}]
[60,{"$f":"Import!I14153","v":"Select"},{"$f":"Import!I14253","v":"Select"},{"$f":"Import!I14353","v":"Select"},{"$f":"Import!I14453","v":0},{"$f":"Import!I14553","v":0}]
[61,{"$f":"Import!I14154","v":"Select"},{"$f":"Import!I14254","v":"Select"},{"$f":"Import!I14354","v":"Select"},{"$f":"Import!I14454","v":0},{"$f":"Import!I14554","v":0}]
[62,{"$f":"Import!I14155","v":"Select"},{"$f":"Import!I14255","v":"Select"},{"$f":"Import!I14355","v":"Select"},{"$f":"Import!I14455","v":0},{"$f":"Import!I14555","v":0}]
[63,{"$f":"Import!I14156","v":"Select"},{"$f":"Import!I14256","v":"Select"},{"$f":"Import!I14356","v":"Select"},{"$f":"Import!I14456","v":0},{"$f":"Import!I14556","v":0}]
[64,{"$f":"Import!I14157","v":"Select"},{"$f":"Import!I14257","v":"Select"},{"$f":"Import!I14357","v":"Select"},{"$f":"Import!I14457","v":0},{"$f":"Import!I14557","v":0}]
[65,{"$f":"Import!I14158","v":"Select"},{"$f":"Import!I14258","v":"Select"},{"$f":"Import!I14358","v":"Select"},{"$f":"Import!I14458","v":0},{"$f":"Import!I14558","v":0}]
[66,{"$f":"Import!I14159","v":"Select"},{"$f":"Import!I14259","v":"Select"},{"$f":"Import!I14359","v":"Select"},{"$f":"Import!I14459","v":0},{"$f":"Import!I14559","v":0}]
[{"$f":"A1302+1","v":67},{"$f":"Import!I14160","v":"Select"},{"$f":"Import!I14260","v":"Select"},{"$f":"Import!I14360","v":"Select"},{"$f":"Import!I14460","v":0},{"$f":"Import!I14560","v":0}]
[68,{"$f":"Import!I14161","v":"Select"},{"$f":"Import!I14261","v":"Select"},{"$f":"Import!I14361","v":"Select"},{"$f":"Import!I14461","v":0},{"$f":"Import!I14561","v":0}]
[69,{"$f":"Import!I14162","v":"Select"},{"$f":"Import!I14262","v":"Select"},{"$f":"Import!I14362","v":"Select"},{"$f":"Import!I14462","v":0},{"$f":"Import!I14562","v":0}]
[70,{"$f":"Import!I14163","v":"Select"},{"$f":"Import!I14263","v":"Select"},{"$f":"Import!I14363","v":"Select"},{"$f":"Import!I14463","v":0},{"$f":"Import!I14563","v":0}]
[71,{"$f":"Import!I14164","v":"Select"},{"$f":"Import!I14264","v":"Select"},{"$f":"Import!I14364","v":"Select"},{"$f":"Import!I14464","v":0},{"$f":"Import!I14564","v":0}]
[72,{"$f":"Import!I14165","v":"Select"},{"$f":"Import!I14265","v":"Select"},{"$f":"Import!I14365","v":"Select"},{"$f":"Import!I14465","v":0},{"$f":"Import!I14565","v":0}]
[73,{"$f":"Import!I14166","v":"Select"},{"$f":"Import!I14266","v":"Select"},{"$f":"Import!I14366","v":"Select"},{"$f":"Import!I14466","v":0},{"$f":"Import!I14566","v":0}]
[74,{"$f":"Import!I14167","v":"Select"},{"$f":"Import!I14267","v":"Select"},{"$f":"Import!I14367","v":"Select"},{"$f":"Import!I14467","v":0},{"$f":"Import!I14567","v":0}]
[75,{"$f":"Import!I14168","v":"Select"},{"$f":"Import!I14268","v":"Select"},{"$f":"Import!I14368","v":"Select"},{"$f":"Import!I14468","v":0},{"$f":"Import!I14568","v":0}]
[76,{"$f":"Import!I14169","v":"Select"},{"$f":"Import!I14269","v":"Select"},{"$f":"Import!I14369","v":"Select"},{"$f":"Import!I14469","v":0},{"$f":"Import!I14569","v":0}]
[77,{"$f":"Import!I14170","v":"Select"},{"$f":"Import!I14270","v":"Select"},{"$f":"Import!I14370","v":"Select"},{"$f":"Import!I14470","v":0},{"$f":"Import!I14570","v":0}]
[78,{"$f":"Import!I14171","v":"Select"},{"$f":"Import!I14271","v":"Select"},{"$f":"Import!I14371","v":"Select"},{"$f":"Import!I14471","v":0},{"$f":"Import!I14571","v":0}]
[79,{"$f":"Import!I14172","v":"Select"},{"$f":"Import!I14272","v":"Select"},{"$f":"Import!I14372","v":"Select"},{"$f":"Import!I14472","v":0},{"$f":"Import!I14572","v":0}]
[80,{"$f":"Import!I14173","v":"Select"},{"$f":"Import!I14273","v":"Select"},{"$f":"Import!I14373","v":"Select"},{"$f":"Import!I14473","v":0},{"$f":"Import!I14573","v":0}]
[81,{"$f":"Import!I14174","v":"Select"},{"$f":"Import!I14274","v":"Select"},{"$f":"Import!I14374","v":"Select"},{"$f":"Import!I14474","v":0},{"$f":"Import!I14574","v":0}]
[82,{"$f":"Import!I14175","v":"Select"},{"$f":"Import!I14275","v":"Select"},{"$f":"Import!I14375","v":"Select"},{"$f":"Import!I14475","v":0},{"$f":"Import!I14575","v":0}]
[83,{"$f":"Import!I14176","v":"Select"},{"$f":"Import!I14276","v":"Select"},{"$f":"Import!I14376","v":"Select"},{"$f":"Import!I14476","v":0},{"$f":"Import!I14576","v":0}]
[84,{"$f":"Import!I14177","v":"Select"},{"$f":"Import!I14277","v":"Select"},{"$f":"Import!I14377","v":"Select"},{"$f":"Import!I14477","v":0},{"$f":"Import!I14577","v":0}]
[85,{"$f":"Import!I14178","v":"Select"},{"$f":"Import!I14278","v":"Select"},{"$f":"Import!I14378","v":"Select"},{"$f":"Import!I14478","v":0},{"$f":"Import!I14578","v":0}]
[86,{"$f":"Import!I14179","v":"Select"},{"$f":"Import!I14279","v":"Select"},{"$f":"Import!I14379","v":"Select"},{"$f":"Import!I14479","v":0},{"$f":"Import!I14579","v":0}]
[87,{"$f":"Import!I14180","v":"Select"},{"$f":"Import!I14280","v":"Select"},{"$f":"Import!I14380","v":"Select"},{"$f":"Import!I14480","v":0},{"$f":"Import!I14580","v":0}]
[88,{"$f":"Import!I14181","v":"Select"},{"$f":"Import!I14281","v":"Select"},{"$f":"Import!I14381","v":"Select"},{"$f":"Import!I14481","v":0},{"$f":"Import!I14581","v":0}]
[89,{"$f":"Import!I14182","v":"Select"},{"$f":"Import!I14282","v":"Select"},{"$f":"Import!I14382","v":"Select"},{"$f":"Import!I14482","v":0},{"$f":"Import!I14582","v":0}]
[90,{"$f":"Import!I14183","v":"Select"},{"$f":"Import!I14283","v":"Select"},{"$f":"Import!I14383","v":"Select"},{"$f":"Import!I14483","v":0},{"$f":"Import!I14583","v":0}]
[91,{"$f":"Import!I14184","v":"Select"},{"$f":"Import!I14284","v":"Select"},{"$f":"Import!I14384","v":"Select"},{"$f":"Import!I14484","v":0},{"$f":"Import!I14584","v":0}]
[92,{"$f":"Import!I14185","v":"Select"},{"$f":"Import!I14285","v":"Select"},{"$f":"Import!I14385","v":"Select"},{"$f":"Import!I14485","v":0},{"$f":"Import!I14585","v":0}]
[93,{"$f":"Import!I14186","v":"Select"},{"$f":"Import!I14286","v":"Select"},{"$f":"Import!I14386","v":"Select"},{"$f":"Import!I14486","v":0},{"$f":"Import!I14586","v":0}]
[94,{"$f":"Import!I14187","v":"Select"},{"$f":"Import!I14287","v":"Select"},{"$f":"Import!I14387","v":"Select"},{"$f":"Import!I14487","v":0},{"$f":"Import!I14587","v":0}]
[95,{"$f":"Import!I14188","v":"Select"},{"$f":"Import!I14288","v":"Select"},{"$f":"Import!I14388","v":"Select"},{"$f":"Import!I14488","v":0},{"$f":"Import!I14588","v":0}]
[96,{"$f":"Import!I14189","v":"Select"},{"$f":"Import!I14289","v":"Select"},{"$f":"Import!I14389","v":"Select"},{"$f":"Import!I14489","v":0},{"$f":"Import!I14589","v":0}]
[97,{"$f":"Import!I14190","v":"Select"},{"$f":"Import!I14290","v":"Select"},{"$f":"Import!I14390","v":"Select"},{"$f":"Import!I14490","v":0},{"$f":"Import!I14590","v":0}]
[98,{"$f":"Import!I14191","v":"Select"},{"$f":"Import!I14291","v":"Select"},{"$f":"Import!I14391","v":"Select"},{"$f":"Import!I14491","v":0},{"$f":"Import!I14591","v":0}]
[99,{"$f":"Import!I14192","v":"Select"},{"$f":"Import!I14292","v":"Select"},{"$f":"Import!I14392","v":"Select"},{"$f":"Import!I14492","v":0},{"$f":"Import!I14592","v":0}]
[100,{"$f":"Import!I14193","v":"Select"},{"$f":"Import!I14293","v":"Select"},{"$f":"Import!I14393","v":"Select"},{"$f":"Import!I14493","v":0},{"$f":"Import!I14593","v":0}]
[]
[null,"Total Common Equities",null,null,{"$f":"SUM(E1237:E1336)","v":0}]
[]
[null,"(G) REAL ESTATE"]
[]
[null,null,"Enter # of Asset Types",{"$f":"Import!I14594","v":0}]
[null,null,null,null,null,{"$f":"YEAR($C$3)","v":2023},2023]
[null,"Asset Type","Currency","Country","Purpose","Cost","Fair Value","Comments"]
[1,{"$f":"Import!I14595","v":"Select"},{"$f":"Import!I14695","v":"Select"},{"$f":"Import!I14795","v":"Select"},{"$f":"Import!I14895","v":"Select"},{"$f":"Import!I14995","v":0},{"$f":"Import!I15095","v":0},{"$f":"Import!I15195","v":0}]
[{"$f":"A1345+1","v":2},{"$f":"Import!I14596","v":"Select"},{"$f":"Import!I14696","v":"Select"},{"$f":"Import!I14796","v":"Select"},{"$f":"Import!I14896","v":"Select"},{"$f":"Import!I14996","v":0},{"$f":"Import!I15096","v":0},{"$f":"Import!I15196","v":0}]
[{"$f":"A1346+1","v":3},{"$f":"Import!I14597","v":"Select"},{"$f":"Import!I14697","v":"Select"},{"$f":"Import!I14797","v":"Select"},{"$f":"Import!I14897","v":"Select"},{"$f":"Import!I14997","v":0},{"$f":"Import!I15097","v":0},{"$f":"Import!I15197","v":0}]
[4,{"$f":"Import!I14598","v":"Select"},{"$f":"Import!I14698","v":"Select"},{"$f":"Import!I14798","v":"Select"},{"$f":"Import!I14898","v":"Select"},{"$f":"Import!I14998","v":0},{"$f":"Import!I15098","v":0},{"$f":"Import!I15198","v":0}]
[5,{"$f":"Import!I14599","v":"Select"},{"$f":"Import!I14699","v":"Select"},{"$f":"Import!I14799","v":"Select"},{"$f":"Import!I14899","v":"Select"},{"$f":"Import!I14999","v":0},{"$f":"Import!I15099","v":0},{"$f":"Import!I15199","v":0}]
[6,{"$f":"Import!I14600","v":"Select"},{"$f":"Import!I14700","v":"Select"},{"$f":"Import!I14800","v":"Select"},{"$f":"Import!I14900","v":"Select"},{"$f":"Import!I15000","v":0},{"$f":"Import!I15100","v":0},{"$f":"Import!I15200","v":0}]
[7,{"$f":"Import!I14601","v":"Select"},{"$f":"Import!I14701","v":"Select"},{"$f":"Import!I14801","v":"Select"},{"$f":"Import!I14901","v":"Select"},{"$f":"Import!I15001","v":0},{"$f":"Import!I15101","v":0},{"$f":"Import!I15201","v":0}]
[8,{"$f":"Import!I14602","v":"Select"},{"$f":"Import!I14702","v":"Select"},{"$f":"Import!I14802","v":"Select"},{"$f":"Import!I14902","v":"Select"},{"$f":"Import!I15002","v":0},{"$f":"Import!I15102","v":0},{"$f":"Import!I15202","v":0}]
[9,{"$f":"Import!I14603","v":"Select"},{"$f":"Import!I14703","v":"Select"},{"$f":"Import!I14803","v":"Select"},{"$f":"Import!I14903","v":"Select"},{"$f":"Import!I15003","v":0},{"$f":"Import!I15103","v":0},{"$f":"Import!I15203","v":0}]
[10,{"$f":"Import!I14604","v":"Select"},{"$f":"Import!I14704","v":"Select"},{"$f":"Import!I14804","v":"Select"},{"$f":"Import!I14904","v":"Select"},{"$f":"Import!I15004","v":0},{"$f":"Import!I15104","v":0},{"$f":"Import!I15204","v":0}]
[11,{"$f":"Import!I14605","v":"Select"},{"$f":"Import!I14705","v":"Select"},{"$f":"Import!I14805","v":"Select"},{"$f":"Import!I14905","v":"Select"},{"$f":"Import!I15005","v":0},{"$f":"Import!I15105","v":0},{"$f":"Import!I15205","v":0}]
[12,{"$f":"Import!I14606","v":"Select"},{"$f":"Import!I14706","v":"Select"},{"$f":"Import!I14806","v":"Select"},{"$f":"Import!I14906","v":"Select"},{"$f":"Import!I15006","v":0},{"$f":"Import!I15106","v":0},{"$f":"Import!I15206","v":0}]
[13,{"$f":"Import!I14607","v":"Select"},{"$f":"Import!I14707","v":"Select"},{"$f":"Import!I14807","v":"Select"},{"$f":"Import!I14907","v":"Select"},{"$f":"Import!I15007","v":0},{"$f":"Import!I15107","v":0},{"$f":"Import!I15207","v":0}]
[14,{"$f":"Import!I14608","v":"Select"},{"$f":"Import!I14708","v":"Select"},{"$f":"Import!I14808","v":"Select"},{"$f":"Import!I14908","v":"Select"},{"$f":"Import!I15008","v":0},{"$f":"Import!I15108","v":0},{"$f":"Import!I15208","v":0}]
[15,{"$f":"Import!I14609","v":"Select"},{"$f":"Import!I14709","v":"Select"},{"$f":"Import!I14809","v":"Select"},{"$f":"Import!I14909","v":"Select"},{"$f":"Import!I15009","v":0},{"$f":"Import!I15109","v":0},{"$f":"Import!I15209","v":0}]
[16,{"$f":"Import!I14610","v":"Select"},{"$f":"Import!I14710","v":"Select"},{"$f":"Import!I14810","v":"Select"},{"$f":"Import!I14910","v":"Select"},{"$f":"Import!I15010","v":0},{"$f":"Import!I15110","v":0},{"$f":"Import!I15210","v":0}]
[17,{"$f":"Import!I14611","v":"Select"},{"$f":"Import!I14711","v":"Select"},{"$f":"Import!I14811","v":"Select"},{"$f":"Import!I14911","v":"Select"},{"$f":"Import!I15011","v":0},{"$f":"Import!I15111","v":0},{"$f":"Import!I15211","v":0}]
[18,{"$f":"Import!I14612","v":"Select"},{"$f":"Import!I14712","v":"Select"},{"$f":"Import!I14812","v":"Select"},{"$f":"Import!I14912","v":"Select"},{"$f":"Import!I15012","v":0},{"$f":"Import!I15112","v":0},{"$f":"Import!I15212","v":0}]
[19,{"$f":"Import!I14613","v":"Select"},{"$f":"Import!I14713","v":"Select"},{"$f":"Import!I14813","v":"Select"},{"$f":"Import!I14913","v":"Select"},{"$f":"Import!I15013","v":0},{"$f":"Import!I15113","v":0},{"$f":"Import!I15213","v":0}]
[20,{"$f":"Import!I14614","v":"Select"},{"$f":"Import!I14714","v":"Select"},{"$f":"Import!I14814","v":"Select"},{"$f":"Import!I14914","v":"Select"},{"$f":"Import!I15014","v":0},{"$f":"Import!I15114","v":0},{"$f":"Import!I15214","v":0}]
[21,{"$f":"Import!I14615","v":"Select"},{"$f":"Import!I14715","v":"Select"},{"$f":"Import!I14815","v":"Select"},{"$f":"Import!I14915","v":"Select"},{"$f":"Import!I15015","v":0},{"$f":"Import!I15115","v":0},{"$f":"Import!I15215","v":0}]
[22,{"$f":"Import!I14616","v":"Select"},{"$f":"Import!I14716","v":"Select"},{"$f":"Import!I14816","v":"Select"},{"$f":"Import!I14916","v":"Select"},{"$f":"Import!I15016","v":0},{"$f":"Import!I15116","v":0},{"$f":"Import!I15216","v":0}]
[23,{"$f":"Import!I14617","v":"Select"},{"$f":"Import!I14717","v":"Select"},{"$f":"Import!I14817","v":"Select"},{"$f":"Import!I14917","v":"Select"},{"$f":"Import!I15017","v":0},{"$f":"Import!I15117","v":0},{"$f":"Import!I15217","v":0}]
[24,{"$f":"Import!I14618","v":"Select"},{"$f":"Import!I14718","v":"Select"},{"$f":"Import!I14818","v":"Select"},{"$f":"Import!I14918","v":"Select"},{"$f":"Import!I15018","v":0},{"$f":"Import!I15118","v":0},{"$f":"Import!I15218","v":0}]
[25,{"$f":"Import!I14619","v":"Select"},{"$f":"Import!I14719","v":"Select"},{"$f":"Import!I14819","v":"Select"},{"$f":"Import!I14919","v":"Select"},{"$f":"Import!I15019","v":0},{"$f":"Import!I15119","v":0},{"$f":"Import!I15219","v":0}]
[26,{"$f":"Import!I14620","v":"Select"},{"$f":"Import!I14720","v":"Select"},{"$f":"Import!I14820","v":"Select"},{"$f":"Import!I14920","v":"Select"},{"$f":"Import!I15020","v":0},{"$f":"Import!I15120","v":0},{"$f":"Import!I15220","v":0}]
[27,{"$f":"Import!I14621","v":"Select"},{"$f":"Import!I14721","v":"Select"},{"$f":"Import!I14821","v":"Select"},{"$f":"Import!I14921","v":"Select"},{"$f":"Import!I15021","v":0},{"$f":"Import!I15121","v":0},{"$f":"Import!I15221","v":0}]
[28,{"$f":"Import!I14622","v":"Select"},{"$f":"Import!I14722","v":"Select"},{"$f":"Import!I14822","v":"Select"},{"$f":"Import!I14922","v":"Select"},{"$f":"Import!I15022","v":0},{"$f":"Import!I15122","v":0},{"$f":"Import!I15222","v":0}]
[29,{"$f":"Import!I14623","v":"Select"},{"$f":"Import!I14723","v":"Select"},{"$f":"Import!I14823","v":"Select"},{"$f":"Import!I14923","v":"Select"},{"$f":"Import!I15023","v":0},{"$f":"Import!I15123","v":0},{"$f":"Import!I15223","v":0}]
[30,{"$f":"Import!I14624","v":"Select"},{"$f":"Import!I14724","v":"Select"},{"$f":"Import!I14824","v":"Select"},{"$f":"Import!I14924","v":"Select"},{"$f":"Import!I15024","v":0},{"$f":"Import!I15124","v":0},{"$f":"Import!I15224","v":0}]
[31,{"$f":"Import!I14625","v":"Select"},{"$f":"Import!I14725","v":"Select"},{"$f":"Import!I14825","v":"Select"},{"$f":"Import!I14925","v":"Select"},{"$f":"Import!I15025","v":0},{"$f":"Import!I15125","v":0},{"$f":"Import!I15225","v":0}]
[32,{"$f":"Import!I14626","v":"Select"},{"$f":"Import!I14726","v":"Select"},{"$f":"Import!I14826","v":"Select"},{"$f":"Import!I14926","v":"Select"},{"$f":"Import!I15026","v":0},{"$f":"Import!I15126","v":0},{"$f":"Import!I15226","v":0}]
[33,{"$f":"Import!I14627","v":"Select"},{"$f":"Import!I14727","v":"Select"},{"$f":"Import!I14827","v":"Select"},{"$f":"Import!I14927","v":"Select"},{"$f":"Import!I15027","v":0},{"$f":"Import!I15127","v":0},{"$f":"Import!I15227","v":0}]
[34,{"$f":"Import!I14628","v":"Select"},{"$f":"Import!I14728","v":"Select"},{"$f":"Import!I14828","v":"Select"},{"$f":"Import!I14928","v":"Select"},{"$f":"Import!I15028","v":0},{"$f":"Import!I15128","v":0},{"$f":"Import!I15228","v":0}]
[35,{"$f":"Import!I14629","v":"Select"},{"$f":"Import!I14729","v":"Select"},{"$f":"Import!I14829","v":"Select"},{"$f":"Import!I14929","v":"Select"},{"$f":"Import!I15029","v":0},{"$f":"Import!I15129","v":0},{"$f":"Import!I15229","v":0}]
[36,{"$f":"Import!I14630","v":"Select"},{"$f":"Import!I14730","v":"Select"},{"$f":"Import!I14830","v":"Select"},{"$f":"Import!I14930","v":"Select"},{"$f":"Import!I15030","v":0},{"$f":"Import!I15130","v":0},{"$f":"Import!I15230","v":0}]
[37,{"$f":"Import!I14631","v":"Select"},{"$f":"Import!I14731","v":"Select"},{"$f":"Import!I14831","v":"Select"},{"$f":"Import!I14931","v":"Select"},{"$f":"Import!I15031","v":0},{"$f":"Import!I15131","v":0},{"$f":"Import!I15231","v":0}]
[38,{"$f":"Import!I14632","v":"Select"},{"$f":"Import!I14732","v":"Select"},{"$f":"Import!I14832","v":"Select"},{"$f":"Import!I14932","v":"Select"},{"$f":"Import!I15032","v":0},{"$f":"Import!I15132","v":0},{"$f":"Import!I15232","v":0}]
[39,{"$f":"Import!I14633","v":"Select"},{"$f":"Import!I14733","v":"Select"},{"$f":"Import!I14833","v":"Select"},{"$f":"Import!I14933","v":"Select"},{"$f":"Import!I15033","v":0},{"$f":"Import!I15133","v":0},{"$f":"Import!I15233","v":0}]
[40,{"$f":"Import!I14634","v":"Select"},{"$f":"Import!I14734","v":"Select"},{"$f":"Import!I14834","v":"Select"},{"$f":"Import!I14934","v":"Select"},{"$f":"Import!I15034","v":0},{"$f":"Import!I15134","v":0},{"$f":"Import!I15234","v":0}]
[41,{"$f":"Import!I14635","v":"Select"},{"$f":"Import!I14735","v":"Select"},{"$f":"Import!I14835","v":"Select"},{"$f":"Import!I14935","v":"Select"},{"$f":"Import!I15035","v":0},{"$f":"Import!I15135","v":0},{"$f":"Import!I15235","v":0}]
[42,{"$f":"Import!I14636","v":"Select"},{"$f":"Import!I14736","v":"Select"},{"$f":"Import!I14836","v":"Select"},{"$f":"Import!I14936","v":"Select"},{"$f":"Import!I15036","v":0},{"$f":"Import!I15136","v":0},{"$f":"Import!I15236","v":0}]
[43,{"$f":"Import!I14637","v":"Select"},{"$f":"Import!I14737","v":"Select"},{"$f":"Import!I14837","v":"Select"},{"$f":"Import!I14937","v":"Select"},{"$f":"Import!I15037","v":0},{"$f":"Import!I15137","v":0},{"$f":"Import!I15237","v":0}]
[44,{"$f":"Import!I14638","v":"Select"},{"$f":"Import!I14738","v":"Select"},{"$f":"Import!I14838","v":"Select"},{"$f":"Import!I14938","v":"Select"},{"$f":"Import!I15038","v":0},{"$f":"Import!I15138","v":0},{"$f":"Import!I15238","v":0}]
[45,{"$f":"Import!I14639","v":"Select"},{"$f":"Import!I14739","v":"Select"},{"$f":"Import!I14839","v":"Select"},{"$f":"Import!I14939","v":"Select"},{"$f":"Import!I15039","v":0},{"$f":"Import!I15139","v":0},{"$f":"Import!I15239","v":0}]
[46,{"$f":"Import!I14640","v":"Select"},{"$f":"Import!I14740","v":"Select"},{"$f":"Import!I14840","v":"Select"},{"$f":"Import!I14940","v":"Select"},{"$f":"Import!I15040","v":0},{"$f":"Import!I15140","v":0},{"$f":"Import!I15240","v":0}]
[47,{"$f":"Import!I14641","v":"Select"},{"$f":"Import!I14741","v":"Select"},{"$f":"Import!I14841","v":"Select"},{"$f":"Import!I14941","v":"Select"},{"$f":"Import!I15041","v":0},{"$f":"Import!I15141","v":0},{"$f":"Import!I15241","v":0}]
[48,{"$f":"Import!I14642","v":"Select"},{"$f":"Import!I14742","v":"Select"},{"$f":"Import!I14842","v":"Select"},{"$f":"Import!I14942","v":"Select"},{"$f":"Import!I15042","v":0},{"$f":"Import!I15142","v":0},{"$f":"Import!I15242","v":0}]
[49,{"$f":"Import!I14643","v":"Select"},{"$f":"Import!I14743","v":"Select"},{"$f":"Import!I14843","v":"Select"},{"$f":"Import!I14943","v":"Select"},{"$f":"Import!I15043","v":0},{"$f":"Import!I15143","v":0},{"$f":"Import!I15243","v":0}]
[50,{"$f":"Import!I14644","v":"Select"},{"$f":"Import!I14744","v":"Select"},{"$f":"Import!I14844","v":"Select"},{"$f":"Import!I14944","v":"Select"},{"$f":"Import!I15044","v":0},{"$f":"Import!I15144","v":0},{"$f":"Import!I15244","v":0}]
[51,{"$f":"Import!I14645","v":"Select"},{"$f":"Import!I14745","v":"Select"},{"$f":"Import!I14845","v":"Select"},{"$f":"Import!I14945","v":"Select"},{"$f":"Import!I15045","v":0},{"$f":"Import!I15145","v":0},{"$f":"Import!I15245","v":0}]
[52,{"$f":"Import!I14646","v":"Select"},{"$f":"Import!I14746","v":"Select"},{"$f":"Import!I14846","v":"Select"},{"$f":"Import!I14946","v":"Select"},{"$f":"Import!I15046","v":0},{"$f":"Import!I15146","v":0},{"$f":"Import!I15246","v":0}]
[53,{"$f":"Import!I14647","v":"Select"},{"$f":"Import!I14747","v":"Select"},{"$f":"Import!I14847","v":"Select"},{"$f":"Import!I14947","v":"Select"},{"$f":"Import!I15047","v":0},{"$f":"Import!I15147","v":0},{"$f":"Import!I15247","v":0}]
[54,{"$f":"Import!I14648","v":"Select"},{"$f":"Import!I14748","v":"Select"},{"$f":"Import!I14848","v":"Select"},{"$f":"Import!I14948","v":"Select"},{"$f":"Import!I15048","v":0},{"$f":"Import!I15148","v":0},{"$f":"Import!I15248","v":0}]
[55,{"$f":"Import!I14649","v":"Select"},{"$f":"Import!I14749","v":"Select"},{"$f":"Import!I14849","v":"Select"},{"$f":"Import!I14949","v":"Select"},{"$f":"Import!I15049","v":0},{"$f":"Import!I15149","v":0},{"$f":"Import!I15249","v":0}]
[56,{"$f":"Import!I14650","v":"Select"},{"$f":"Import!I14750","v":"Select"},{"$f":"Import!I14850","v":"Select"},{"$f":"Import!I14950","v":"Select"},{"$f":"Import!I15050","v":0},{"$f":"Import!I15150","v":0},{"$f":"Import!I15250","v":0}]
[57,{"$f":"Import!I14651","v":"Select"},{"$f":"Import!I14751","v":"Select"},{"$f":"Import!I14851","v":"Select"},{"$f":"Import!I14951","v":"Select"},{"$f":"Import!I15051","v":0},{"$f":"Import!I15151","v":0},{"$f":"Import!I15251","v":0}]
[58,{"$f":"Import!I14652","v":"Select"},{"$f":"Import!I14752","v":"Select"},{"$f":"Import!I14852","v":"Select"},{"$f":"Import!I14952","v":"Select"},{"$f":"Import!I15052","v":0},{"$f":"Import!I15152","v":0},{"$f":"Import!I15252","v":0}]
[59,{"$f":"Import!I14653","v":"Select"},{"$f":"Import!I14753","v":"Select"},{"$f":"Import!I14853","v":"Select"},{"$f":"Import!I14953","v":"Select"},{"$f":"Import!I15053","v":0},{"$f":"Import!I15153","v":0},{"$f":"Import!I15253","v":0}]
[60,{"$f":"Import!I14654","v":"Select"},{"$f":"Import!I14754","v":"Select"},{"$f":"Import!I14854","v":"Select"},{"$f":"Import!I14954","v":"Select"},{"$f":"Import!I15054","v":0},{"$f":"Import!I15154","v":0},{"$f":"Import!I15254","v":0}]
[61,{"$f":"Import!I14655","v":"Select"},{"$f":"Import!I14755","v":"Select"},{"$f":"Import!I14855","v":"Select"},{"$f":"Import!I14955","v":"Select"},{"$f":"Import!I15055","v":0},{"$f":"Import!I15155","v":0},{"$f":"Import!I15255","v":0}]
[62,{"$f":"Import!I14656","v":"Select"},{"$f":"Import!I14756","v":"Select"},{"$f":"Import!I14856","v":"Select"},{"$f":"Import!I14956","v":"Select"},{"$f":"Import!I15056","v":0},{"$f":"Import!I15156","v":0},{"$f":"Import!I15256","v":0}]
[63,{"$f":"Import!I14657","v":"Select"},{"$f":"Import!I14757","v":"Select"},{"$f":"Import!I14857","v":"Select"},{"$f":"Import!I14957","v":"Select"},{"$f":"Import!I15057","v":0},{"$f":"Import!I15157","v":0},{"$f":"Import!I15257","v":0}]
[64,{"$f":"Import!I14658","v":"Select"},{"$f":"Import!I14758","v":"Select"},{"$f":"Import!I14858","v":"Select"},{"$f":"Import!I14958","v":"Select"},{"$f":"Import!I15058","v":0},{"$f":"Import!I15158","v":0},{"$f":"Import!I15258","v":0}]
[65,{"$f":"Import!I14659","v":"Select"},{"$f":"Import!I14759","v":"Select"},{"$f":"Import!I14859","v":"Select"},{"$f":"Import!I14959","v":"Select"},{"$f":"Import!I15059","v":0},{"$f":"Import!I15159","v":0},{"$f":"Import!I15259","v":0}]
[66,{"$f":"Import!I14660","v":"Select"},{"$f":"Import!I14760","v":"Select"},{"$f":"Import!I14860","v":"Select"},{"$f":"Import!I14960","v":"Select"},{"$f":"Import!I15060","v":0},{"$f":"Import!I15160","v":0},{"$f":"Import!I15260","v":0}]
[{"$f":"A1410+1","v":67},{"$f":"Import!I14661","v":"Select"},{"$f":"Import!I14761","v":"Select"},{"$f":"Import!I14861","v":"Select"},{"$f":"Import!I14961","v":"Select"},{"$f":"Import!I15061","v":0},{"$f":"Import!I15161","v":0},{"$f":"Import!I15261","v":0}]
[68,{"$f":"Import!I14662","v":"Select"},{"$f":"Import!I14762","v":"Select"},{"$f":"Import!I14862","v":"Select"},{"$f":"Import!I14962","v":"Select"},{"$f":"Import!I15062","v":0},{"$f":"Import!I15162","v":0},{"$f":"Import!I15262","v":0}]
[69,{"$f":"Import!I14663","v":"Select"},{"$f":"Import!I14763","v":"Select"},{"$f":"Import!I14863","v":"Select"},{"$f":"Import!I14963","v":"Select"},{"$f":"Import!I15063","v":0},{"$f":"Import!I15163","v":0},{"$f":"Import!I15263","v":0}]
[70,{"$f":"Import!I14664","v":"Select"},{"$f":"Import!I14764","v":"Select"},{"$f":"Import!I14864","v":"Select"},{"$f":"Import!I14964","v":"Select"},{"$f":"Import!I15064","v":0},{"$f":"Import!I15164","v":0},{"$f":"Import!I15264","v":0}]
[71,{"$f":"Import!I14665","v":"Select"},{"$f":"Import!I14765","v":"Select"},{"$f":"Import!I14865","v":"Select"},{"$f":"Import!I14965","v":"Select"},{"$f":"Import!I15065","v":0},{"$f":"Import!I15165","v":0},{"$f":"Import!I15265","v":0}]
[72,{"$f":"Import!I14666","v":"Select"},{"$f":"Import!I14766","v":"Select"},{"$f":"Import!I14866","v":"Select"},{"$f":"Import!I14966","v":"Select"},{"$f":"Import!I15066","v":0},{"$f":"Import!I15166","v":0},{"$f":"Import!I15266","v":0}]
[73,{"$f":"Import!I14667","v":"Select"},{"$f":"Import!I14767","v":"Select"},{"$f":"Import!I14867","v":"Select"},{"$f":"Import!I14967","v":"Select"},{"$f":"Import!I15067","v":0},{"$f":"Import!I15167","v":0},{"$f":"Import!I15267","v":0}]
[74,{"$f":"Import!I14668","v":"Select"},{"$f":"Import!I14768","v":"Select"},{"$f":"Import!I14868","v":"Select"},{"$f":"Import!I14968","v":"Select"},{"$f":"Import!I15068","v":0},{"$f":"Import!I15168","v":0},{"$f":"Import!I15268","v":0}]
[75,{"$f":"Import!I14669","v":"Select"},{"$f":"Import!I14769","v":"Select"},{"$f":"Import!I14869","v":"Select"},{"$f":"Import!I14969","v":"Select"},{"$f":"Import!I15069","v":0},{"$f":"Import!I15169","v":0},{"$f":"Import!I15269","v":0}]
[76,{"$f":"Import!I14670","v":"Select"},{"$f":"Import!I14770","v":"Select"},{"$f":"Import!I14870","v":"Select"},{"$f":"Import!I14970","v":"Select"},{"$f":"Import!I15070","v":0},{"$f":"Import!I15170","v":0},{"$f":"Import!I15270","v":0}]
[77,{"$f":"Import!I14671","v":"Select"},{"$f":"Import!I14771","v":"Select"},{"$f":"Import!I14871","v":"Select"},{"$f":"Import!I14971","v":"Select"},{"$f":"Import!I15071","v":0},{"$f":"Import!I15171","v":0},{"$f":"Import!I15271","v":0}]
[78,{"$f":"Import!I14672","v":"Select"},{"$f":"Import!I14772","v":"Select"},{"$f":"Import!I14872","v":"Select"},{"$f":"Import!I14972","v":"Select"},{"$f":"Import!I15072","v":0},{"$f":"Import!I15172","v":0},{"$f":"Import!I15272","v":0}]
[79,{"$f":"Import!I14673","v":"Select"},{"$f":"Import!I14773","v":"Select"},{"$f":"Import!I14873","v":"Select"},{"$f":"Import!I14973","v":"Select"},{"$f":"Import!I15073","v":0},{"$f":"Import!I15173","v":0},{"$f":"Import!I15273","v":0}]
[80,{"$f":"Import!I14674","v":"Select"},{"$f":"Import!I14774","v":"Select"},{"$f":"Import!I14874","v":"Select"},{"$f":"Import!I14974","v":"Select"},{"$f":"Import!I15074","v":0},{"$f":"Import!I15174","v":0},{"$f":"Import!I15274","v":0}]
[81,{"$f":"Import!I14675","v":"Select"},{"$f":"Import!I14775","v":"Select"},{"$f":"Import!I14875","v":"Select"},{"$f":"Import!I14975","v":"Select"},{"$f":"Import!I15075","v":0},{"$f":"Import!I15175","v":0},{"$f":"Import!I15275","v":0}]
[82,{"$f":"Import!I14676","v":"Select"},{"$f":"Import!I14776","v":"Select"},{"$f":"Import!I14876","v":"Select"},{"$f":"Import!I14976","v":"Select"},{"$f":"Import!I15076","v":0},{"$f":"Import!I15176","v":0},{"$f":"Import!I15276","v":0}]
[83,{"$f":"Import!I14677","v":"Select"},{"$f":"Import!I14777","v":"Select"},{"$f":"Import!I14877","v":"Select"},{"$f":"Import!I14977","v":"Select"},{"$f":"Import!I15077","v":0},{"$f":"Import!I15177","v":0},{"$f":"Import!I15277","v":0}]
[84,{"$f":"Import!I14678","v":"Select"},{"$f":"Import!I14778","v":"Select"},{"$f":"Import!I14878","v":"Select"},{"$f":"Import!I14978","v":"Select"},{"$f":"Import!I15078","v":0},{"$f":"Import!I15178","v":0},{"$f":"Import!I15278","v":0}]
[85,{"$f":"Import!I14679","v":"Select"},{"$f":"Import!I14779","v":"Select"},{"$f":"Import!I14879","v":"Select"},{"$f":"Import!I14979","v":"Select"},{"$f":"Import!I15079","v":0},{"$f":"Import!I15179","v":0},{"$f":"Import!I15279","v":0}]
[86,{"$f":"Import!I14680","v":"Select"},{"$f":"Import!I14780","v":"Select"},{"$f":"Import!I14880","v":"Select"},{"$f":"Import!I14980","v":"Select"},{"$f":"Import!I15080","v":0},{"$f":"Import!I15180","v":0},{"$f":"Import!I15280","v":0}]
[87,{"$f":"Import!I14681","v":"Select"},{"$f":"Import!I14781","v":"Select"},{"$f":"Import!I14881","v":"Select"},{"$f":"Import!I14981","v":"Select"},{"$f":"Import!I15081","v":0},{"$f":"Import!I15181","v":0},{"$f":"Import!I15281","v":0}]
[88,{"$f":"Import!I14682","v":"Select"},{"$f":"Import!I14782","v":"Select"},{"$f":"Import!I14882","v":"Select"},{"$f":"Import!I14982","v":"Select"},{"$f":"Import!I15082","v":0},{"$f":"Import!I15182","v":0},{"$f":"Import!I15282","v":0}]
[89,{"$f":"Import!I14683","v":"Select"},{"$f":"Import!I14783","v":"Select"},{"$f":"Import!I14883","v":"Select"},{"$f":"Import!I14983","v":"Select"},{"$f":"Import!I15083","v":0},{"$f":"Import!I15183","v":0},{"$f":"Import!I15283","v":0}]
[90,{"$f":"Import!I14684","v":"Select"},{"$f":"Import!I14784","v":"Select"},{"$f":"Import!I14884","v":"Select"},{"$f":"Import!I14984","v":"Select"},{"$f":"Import!I15084","v":0},{"$f":"Import!I15184","v":0},{"$f":"Import!I15284","v":0}]
[91,{"$f":"Import!I14685","v":"Select"},{"$f":"Import!I14785","v":"Select"},{"$f":"Import!I14885","v":"Select"},{"$f":"Import!I14985","v":"Select"},{"$f":"Import!I15085","v":0},{"$f":"Import!I15185","v":0},{"$f":"Import!I15285","v":0}]
[92,{"$f":"Import!I14686","v":"Select"},{"$f":"Import!I14786","v":"Select"},{"$f":"Import!I14886","v":"Select"},{"$f":"Import!I14986","v":"Select"},{"$f":"Import!I15086","v":0},{"$f":"Import!I15186","v":0},{"$f":"Import!I15286","v":0}]
[93,{"$f":"Import!I14687","v":"Select"},{"$f":"Import!I14787","v":"Select"},{"$f":"Import!I14887","v":"Select"},{"$f":"Import!I14987","v":"Select"},{"$f":"Import!I15087","v":0},{"$f":"Import!I15187","v":0},{"$f":"Import!I15287","v":0}]
[94,{"$f":"Import!I14688","v":"Select"},{"$f":"Import!I14788","v":"Select"},{"$f":"Import!I14888","v":"Select"},{"$f":"Import!I14988","v":"Select"},{"$f":"Import!I15088","v":0},{"$f":"Import!I15188","v":0},{"$f":"Import!I15288","v":0}]
[95,{"$f":"Import!I14689","v":"Select"},{"$f":"Import!I14789","v":"Select"},{"$f":"Import!I14889","v":"Select"},{"$f":"Import!I14989","v":"Select"},{"$f":"Import!I15089","v":0},{"$f":"Import!I15189","v":0},{"$f":"Import!I15289","v":0}]
[96,{"$f":"Import!I14690","v":"Select"},{"$f":"Import!I14790","v":"Select"},{"$f":"Import!I14890","v":"Select"},{"$f":"Import!I14990","v":"Select"},{"$f":"Import!I15090","v":0},{"$f":"Import!I15190","v":0},{"$f":"Import!I15290","v":0}]
[97,{"$f":"Import!I14691","v":"Select"},{"$f":"Import!I14791","v":"Select"},{"$f":"Import!I14891","v":"Select"},{"$f":"Import!I14991","v":"Select"},{"$f":"Import!I15091","v":0},{"$f":"Import!I15191","v":0},{"$f":"Import!I15291","v":0}]
[98,{"$f":"Import!I14692","v":"Select"},{"$f":"Import!I14792","v":"Select"},{"$f":"Import!I14892","v":"Select"},{"$f":"Import!I14992","v":"Select"},{"$f":"Import!I15092","v":0},{"$f":"Import!I15192","v":0},{"$f":"Import!I15292","v":0}]
[99,{"$f":"Import!I14693","v":"Select"},{"$f":"Import!I14793","v":"Select"},{"$f":"Import!I14893","v":"Select"},{"$f":"Import!I14993","v":"Select"},{"$f":"Import!I15093","v":0},{"$f":"Import!I15193","v":0},{"$f":"Import!I15293","v":0}]
[100,{"$f":"Import!I14694","v":"Select"},{"$f":"Import!I14794","v":"Select"},{"$f":"Import!I14894","v":"Select"},{"$f":"Import!I14994","v":"Select"},{"$f":"Import!I15094","v":0},{"$f":"Import!I15194","v":0},{"$f":"Import!I15294","v":0}]
[]
[null,"Total Real Estate",null,null,null,{"$f":"SUM(F1345:F1444)","v":0},{"$f":"SUM(G1345:G1444)","v":0}]
[]
[null,"(H) OTHER ALTERNATIVE INVESTMENTS"]
[]
[null,null,"Enter # of Asset Types",{"$f":"Import!I15295","v":0}]
[null,null,null,null,null,{"$f":"YEAR($C$3)","v":2023},2023,"Weighted"]
[null,"Asset Type","Currency","Country","BSCR Rating","Nominal Amount","Fair Value","Average YTM","Effective Duration","Comments"]
[1,{"$f":"Import!I15296","v":"Select"},{"$f":"Import!I15396","v":"Select"},{"$f":"Import!I15496","v":"Select"},{"$f":"Import!I15596","v":"Select"},{"$f":"Import!I15696","v":0},{"$f":"Import!I15796","v":0},{"$f":"Import!I15896","v":0},{"$f":"Import!I15996","v":0},{"$f":"Import!I16096","v":0}]
[{"$f":"A1453+1","v":2},{"$f":"Import!I15297","v":"Select"},{"$f":"Import!I15397","v":"Select"},{"$f":"Import!I15497","v":"Select"},{"$f":"Import!I15597","v":"Select"},{"$f":"Import!I15697","v":0},{"$f":"Import!I15797","v":0},{"$f":"Import!I15897","v":0},{"$f":"Import!I15997","v":0},{"$f":"Import!I16097","v":0}]
[{"$f":"A1454+1","v":3},{"$f":"Import!I15298","v":"Select"},{"$f":"Import!I15398","v":"Select"},{"$f":"Import!I15498","v":"Select"},{"$f":"Import!I15598","v":"Select"},{"$f":"Import!I15698","v":0},{"$f":"Import!I15798","v":0},{"$f":"Import!I15898","v":0},{"$f":"Import!I15998","v":0},{"$f":"Import!I16098","v":0}]
[4,{"$f":"Import!I15299","v":"Select"},{"$f":"Import!I15399","v":"Select"},{"$f":"Import!I15499","v":"Select"},{"$f":"Import!I15599","v":"Select"},{"$f":"Import!I15699","v":0},{"$f":"Import!I15799","v":0},{"$f":"Import!I15899","v":0},{"$f":"Import!I15999","v":0},{"$f":"Import!I16099","v":0}]
[5,{"$f":"Import!I15300","v":"Select"},{"$f":"Import!I15400","v":"Select"},{"$f":"Import!I15500","v":"Select"},{"$f":"Import!I15600","v":"Select"},{"$f":"Import!I15700","v":0},{"$f":"Import!I15800","v":0},{"$f":"Import!I15900","v":0},{"$f":"Import!I16000","v":0},{"$f":"Import!I16100","v":0}]
[6,{"$f":"Import!I15301","v":"Select"},{"$f":"Import!I15401","v":"Select"},{"$f":"Import!I15501","v":"Select"},{"$f":"Import!I15601","v":"Select"},{"$f":"Import!I15701","v":0},{"$f":"Import!I15801","v":0},{"$f":"Import!I15901","v":0},{"$f":"Import!I16001","v":0},{"$f":"Import!I16101","v":0}]
[7,{"$f":"Import!I15302","v":"Select"},{"$f":"Import!I15402","v":"Select"},{"$f":"Import!I15502","v":"Select"},{"$f":"Import!I15602","v":"Select"},{"$f":"Import!I15702","v":0},{"$f":"Import!I15802","v":0},{"$f":"Import!I15902","v":0},{"$f":"Import!I16002","v":0},{"$f":"Import!I16102","v":0}]
[8,{"$f":"Import!I15303","v":"Select"},{"$f":"Import!I15403","v":"Select"},{"$f":"Import!I15503","v":"Select"},{"$f":"Import!I15603","v":"Select"},{"$f":"Import!I15703","v":0},{"$f":"Import!I15803","v":0},{"$f":"Import!I15903","v":0},{"$f":"Import!I16003","v":0},{"$f":"Import!I16103","v":0}]
[9,{"$f":"Import!I15304","v":"Select"},{"$f":"Import!I15404","v":"Select"},{"$f":"Import!I15504","v":"Select"},{"$f":"Import!I15604","v":"Select"},{"$f":"Import!I15704","v":0},{"$f":"Import!I15804","v":0},{"$f":"Import!I15904","v":0},{"$f":"Import!I16004","v":0},{"$f":"Import!I16104","v":0}]
[10,{"$f":"Import!I15305","v":"Select"},{"$f":"Import!I15405","v":"Select"},{"$f":"Import!I15505","v":"Select"},{"$f":"Import!I15605","v":"Select"},{"$f":"Import!I15705","v":0},{"$f":"Import!I15805","v":0},{"$f":"Import!I15905","v":0},{"$f":"Import!I16005","v":0},{"$f":"Import!I16105","v":0}]
[11,{"$f":"Import!I15306","v":"Select"},{"$f":"Import!I15406","v":"Select"},{"$f":"Import!I15506","v":"Select"},{"$f":"Import!I15606","v":"Select"},{"$f":"Import!I15706","v":0},{"$f":"Import!I15806","v":0},{"$f":"Import!I15906","v":0},{"$f":"Import!I16006","v":0},{"$f":"Import!I16106","v":0}]
[12,{"$f":"Import!I15307","v":"Select"},{"$f":"Import!I15407","v":"Select"},{"$f":"Import!I15507","v":"Select"},{"$f":"Import!I15607","v":"Select"},{"$f":"Import!I15707","v":0},{"$f":"Import!I15807","v":0},{"$f":"Import!I15907","v":0},{"$f":"Import!I16007","v":0},{"$f":"Import!I16107","v":0}]
[13,{"$f":"Import!I15308","v":"Select"},{"$f":"Import!I15408","v":"Select"},{"$f":"Import!I15508","v":"Select"},{"$f":"Import!I15608","v":"Select"},{"$f":"Import!I15708","v":0},{"$f":"Import!I15808","v":0},{"$f":"Import!I15908","v":0},{"$f":"Import!I16008","v":0},{"$f":"Import!I16108","v":0}]
[14,{"$f":"Import!I15309","v":"Select"},{"$f":"Import!I15409","v":"Select"},{"$f":"Import!I15509","v":"Select"},{"$f":"Import!I15609","v":"Select"},{"$f":"Import!I15709","v":0},{"$f":"Import!I15809","v":0},{"$f":"Import!I15909","v":0},{"$f":"Import!I16009","v":0},{"$f":"Import!I16109","v":0}]
[15,{"$f":"Import!I15310","v":"Select"},{"$f":"Import!I15410","v":"Select"},{"$f":"Import!I15510","v":"Select"},{"$f":"Import!I15610","v":"Select"},{"$f":"Import!I15710","v":0},{"$f":"Import!I15810","v":0},{"$f":"Import!I15910","v":0},{"$f":"Import!I16010","v":0},{"$f":"Import!I16110","v":0}]
[16,{"$f":"Import!I15311","v":"Select"},{"$f":"Import!I15411","v":"Select"},{"$f":"Import!I15511","v":"Select"},{"$f":"Import!I15611","v":"Select"},{"$f":"Import!I15711","v":0},{"$f":"Import!I15811","v":0},{"$f":"Import!I15911","v":0},{"$f":"Import!I16011","v":0},{"$f":"Import!I16111","v":0}]
[17,{"$f":"Import!I15312","v":"Select"},{"$f":"Import!I15412","v":"Select"},{"$f":"Import!I15512","v":"Select"},{"$f":"Import!I15612","v":"Select"},{"$f":"Import!I15712","v":0},{"$f":"Import!I15812","v":0},{"$f":"Import!I15912","v":0},{"$f":"Import!I16012","v":0},{"$f":"Import!I16112","v":0}]
[18,{"$f":"Import!I15313","v":"Select"},{"$f":"Import!I15413","v":"Select"},{"$f":"Import!I15513","v":"Select"},{"$f":"Import!I15613","v":"Select"},{"$f":"Import!I15713","v":0},{"$f":"Import!I15813","v":0},{"$f":"Import!I15913","v":0},{"$f":"Import!I16013","v":0},{"$f":"Import!I16113","v":0}]
[19,{"$f":"Import!I15314","v":"Select"},{"$f":"Import!I15414","v":"Select"},{"$f":"Import!I15514","v":"Select"},{"$f":"Import!I15614","v":"Select"},{"$f":"Import!I15714","v":0},{"$f":"Import!I15814","v":0},{"$f":"Import!I15914","v":0},{"$f":"Import!I16014","v":0},{"$f":"Import!I16114","v":0}]
[20,{"$f":"Import!I15315","v":"Select"},{"$f":"Import!I15415","v":"Select"},{"$f":"Import!I15515","v":"Select"},{"$f":"Import!I15615","v":"Select"},{"$f":"Import!I15715","v":0},{"$f":"Import!I15815","v":0},{"$f":"Import!I15915","v":0},{"$f":"Import!I16015","v":0},{"$f":"Import!I16115","v":0}]
[21,{"$f":"Import!I15316","v":"Select"},{"$f":"Import!I15416","v":"Select"},{"$f":"Import!I15516","v":"Select"},{"$f":"Import!I15616","v":"Select"},{"$f":"Import!I15716","v":0},{"$f":"Import!I15816","v":0},{"$f":"Import!I15916","v":0},{"$f":"Import!I16016","v":0},{"$f":"Import!I16116","v":0}]
[22,{"$f":"Import!I15317","v":"Select"},{"$f":"Import!I15417","v":"Select"},{"$f":"Import!I15517","v":"Select"},{"$f":"Import!I15617","v":"Select"},{"$f":"Import!I15717","v":0},{"$f":"Import!I15817","v":0},{"$f":"Import!I15917","v":0},{"$f":"Import!I16017","v":0},{"$f":"Import!I16117","v":0}]
[23,{"$f":"Import!I15318","v":"Select"},{"$f":"Import!I15418","v":"Select"},{"$f":"Import!I15518","v":"Select"},{"$f":"Import!I15618","v":"Select"},{"$f":"Import!I15718","v":0},{"$f":"Import!I15818","v":0},{"$f":"Import!I15918","v":0},{"$f":"Import!I16018","v":0},{"$f":"Import!I16118","v":0}]
[24,{"$f":"Import!I15319","v":"Select"},{"$f":"Import!I15419","v":"Select"},{"$f":"Import!I15519","v":"Select"},{"$f":"Import!I15619","v":"Select"},{"$f":"Import!I15719","v":0},{"$f":"Import!I15819","v":0},{"$f":"Import!I15919","v":0},{"$f":"Import!I16019","v":0},{"$f":"Import!I16119","v":0}]
[25,{"$f":"Import!I15320","v":"Select"},{"$f":"Import!I15420","v":"Select"},{"$f":"Import!I15520","v":"Select"},{"$f":"Import!I15620","v":"Select"},{"$f":"Import!I15720","v":0},{"$f":"Import!I15820","v":0},{"$f":"Import!I15920","v":0},{"$f":"Import!I16020","v":0},{"$f":"Import!I16120","v":0}]
[26,{"$f":"Import!I15321","v":"Select"},{"$f":"Import!I15421","v":"Select"},{"$f":"Import!I15521","v":"Select"},{"$f":"Import!I15621","v":"Select"},{"$f":"Import!I15721","v":0},{"$f":"Import!I15821","v":0},{"$f":"Import!I15921","v":0},{"$f":"Import!I16021","v":0},{"$f":"Import!I16121","v":0}]
[27,{"$f":"Import!I15322","v":"Select"},{"$f":"Import!I15422","v":"Select"},{"$f":"Import!I15522","v":"Select"},{"$f":"Import!I15622","v":"Select"},{"$f":"Import!I15722","v":0},{"$f":"Import!I15822","v":0},{"$f":"Import!I15922","v":0},{"$f":"Import!I16022","v":0},{"$f":"Import!I16122","v":0}]
[28,{"$f":"Import!I15323","v":"Select"},{"$f":"Import!I15423","v":"Select"},{"$f":"Import!I15523","v":"Select"},{"$f":"Import!I15623","v":"Select"},{"$f":"Import!I15723","v":0},{"$f":"Import!I15823","v":0},{"$f":"Import!I15923","v":0},{"$f":"Import!I16023","v":0},{"$f":"Import!I16123","v":0}]
[29,{"$f":"Import!I15324","v":"Select"},{"$f":"Import!I15424","v":"Select"},{"$f":"Import!I15524","v":"Select"},{"$f":"Import!I15624","v":"Select"},{"$f":"Import!I15724","v":0},{"$f":"Import!I15824","v":0},{"$f":"Import!I15924","v":0},{"$f":"Import!I16024","v":0},{"$f":"Import!I16124","v":0}]
[30,{"$f":"Import!I15325","v":"Select"},{"$f":"Import!I15425","v":"Select"},{"$f":"Import!I15525","v":"Select"},{"$f":"Import!I15625","v":"Select"},{"$f":"Import!I15725","v":0},{"$f":"Import!I15825","v":0},{"$f":"Import!I15925","v":0},{"$f":"Import!I16025","v":0},{"$f":"Import!I16125","v":0}]
[31,{"$f":"Import!I15326","v":"Select"},{"$f":"Import!I15426","v":"Select"},{"$f":"Import!I15526","v":"Select"},{"$f":"Import!I15626","v":"Select"},{"$f":"Import!I15726","v":0},{"$f":"Import!I15826","v":0},{"$f":"Import!I15926","v":0},{"$f":"Import!I16026","v":0},{"$f":"Import!I16126","v":0}]
[32,{"$f":"Import!I15327","v":"Select"},{"$f":"Import!I15427","v":"Select"},{"$f":"Import!I15527","v":"Select"},{"$f":"Import!I15627","v":"Select"},{"$f":"Import!I15727","v":0},{"$f":"Import!I15827","v":0},{"$f":"Import!I15927","v":0},{"$f":"Import!I16027","v":0},{"$f":"Import!I16127","v":0}]
[33,{"$f":"Import!I15328","v":"Select"},{"$f":"Import!I15428","v":"Select"},{"$f":"Import!I15528","v":"Select"},{"$f":"Import!I15628","v":"Select"},{"$f":"Import!I15728","v":0},{"$f":"Import!I15828","v":0},{"$f":"Import!I15928","v":0},{"$f":"Import!I16028","v":0},{"$f":"Import!I16128","v":0}]
[34,{"$f":"Import!I15329","v":"Select"},{"$f":"Import!I15429","v":"Select"},{"$f":"Import!I15529","v":"Select"},{"$f":"Import!I15629","v":"Select"},{"$f":"Import!I15729","v":0},{"$f":"Import!I15829","v":0},{"$f":"Import!I15929","v":0},{"$f":"Import!I16029","v":0},{"$f":"Import!I16129","v":0}]
[35,{"$f":"Import!I15330","v":"Select"},{"$f":"Import!I15430","v":"Select"},{"$f":"Import!I15530","v":"Select"},{"$f":"Import!I15630","v":"Select"},{"$f":"Import!I15730","v":0},{"$f":"Import!I15830","v":0},{"$f":"Import!I15930","v":0},{"$f":"Import!I16030","v":0},{"$f":"Import!I16130","v":0}]
[36,{"$f":"Import!I15331","v":"Select"},{"$f":"Import!I15431","v":"Select"},{"$f":"Import!I15531","v":"Select"},{"$f":"Import!I15631","v":"Select"},{"$f":"Import!I15731","v":0},{"$f":"Import!I15831","v":0},{"$f":"Import!I15931","v":0},{"$f":"Import!I16031","v":0},{"$f":"Import!I16131","v":0}]
[37,{"$f":"Import!I15332","v":"Select"},{"$f":"Import!I15432","v":"Select"},{"$f":"Import!I15532","v":"Select"},{"$f":"Import!I15632","v":"Select"},{"$f":"Import!I15732","v":0},{"$f":"Import!I15832","v":0},{"$f":"Import!I15932","v":0},{"$f":"Import!I16032","v":0},{"$f":"Import!I16132","v":0}]
[38,{"$f":"Import!I15333","v":"Select"},{"$f":"Import!I15433","v":"Select"},{"$f":"Import!I15533","v":"Select"},{"$f":"Import!I15633","v":"Select"},{"$f":"Import!I15733","v":0},{"$f":"Import!I15833","v":0},{"$f":"Import!I15933","v":0},{"$f":"Import!I16033","v":0},{"$f":"Import!I16133","v":0}]
[39,{"$f":"Import!I15334","v":"Select"},{"$f":"Import!I15434","v":"Select"},{"$f":"Import!I15534","v":"Select"},{"$f":"Import!I15634","v":"Select"},{"$f":"Import!I15734","v":0},{"$f":"Import!I15834","v":0},{"$f":"Import!I15934","v":0},{"$f":"Import!I16034","v":0},{"$f":"Import!I16134","v":0}]
[40,{"$f":"Import!I15335","v":"Select"},{"$f":"Import!I15435","v":"Select"},{"$f":"Import!I15535","v":"Select"},{"$f":"Import!I15635","v":"Select"},{"$f":"Import!I15735","v":0},{"$f":"Import!I15835","v":0},{"$f":"Import!I15935","v":0},{"$f":"Import!I16035","v":0},{"$f":"Import!I16135","v":0}]
[41,{"$f":"Import!I15336","v":"Select"},{"$f":"Import!I15436","v":"Select"},{"$f":"Import!I15536","v":"Select"},{"$f":"Import!I15636","v":"Select"},{"$f":"Import!I15736","v":0},{"$f":"Import!I15836","v":0},{"$f":"Import!I15936","v":0},{"$f":"Import!I16036","v":0},{"$f":"Import!I16136","v":0}]
[42,{"$f":"Import!I15337","v":"Select"},{"$f":"Import!I15437","v":"Select"},{"$f":"Import!I15537","v":"Select"},{"$f":"Import!I15637","v":"Select"},{"$f":"Import!I15737","v":0},{"$f":"Import!I15837","v":0},{"$f":"Import!I15937","v":0},{"$f":"Import!I16037","v":0},{"$f":"Import!I16137","v":0}]
[43,{"$f":"Import!I15338","v":"Select"},{"$f":"Import!I15438","v":"Select"},{"$f":"Import!I15538","v":"Select"},{"$f":"Import!I15638","v":"Select"},{"$f":"Import!I15738","v":0},{"$f":"Import!I15838","v":0},{"$f":"Import!I15938","v":0},{"$f":"Import!I16038","v":0},{"$f":"Import!I16138","v":0}]
[44,{"$f":"Import!I15339","v":"Select"},{"$f":"Import!I15439","v":"Select"},{"$f":"Import!I15539","v":"Select"},{"$f":"Import!I15639","v":"Select"},{"$f":"Import!I15739","v":0},{"$f":"Import!I15839","v":0},{"$f":"Import!I15939","v":0},{"$f":"Import!I16039","v":0},{"$f":"Import!I16139","v":0}]
[45,{"$f":"Import!I15340","v":"Select"},{"$f":"Import!I15440","v":"Select"},{"$f":"Import!I15540","v":"Select"},{"$f":"Import!I15640","v":"Select"},{"$f":"Import!I15740","v":0},{"$f":"Import!I15840","v":0},{"$f":"Import!I15940","v":0},{"$f":"Import!I16040","v":0},{"$f":"Import!I16140","v":0}]
[46,{"$f":"Import!I15341","v":"Select"},{"$f":"Import!I15441","v":"Select"},{"$f":"Import!I15541","v":"Select"},{"$f":"Import!I15641","v":"Select"},{"$f":"Import!I15741","v":0},{"$f":"Import!I15841","v":0},{"$f":"Import!I15941","v":0},{"$f":"Import!I16041","v":0},{"$f":"Import!I16141","v":0}]
[47,{"$f":"Import!I15342","v":"Select"},{"$f":"Import!I15442","v":"Select"},{"$f":"Import!I15542","v":"Select"},{"$f":"Import!I15642","v":"Select"},{"$f":"Import!I15742","v":0},{"$f":"Import!I15842","v":0},{"$f":"Import!I15942","v":0},{"$f":"Import!I16042","v":0},{"$f":"Import!I16142","v":0}]
[48,{"$f":"Import!I15343","v":"Select"},{"$f":"Import!I15443","v":"Select"},{"$f":"Import!I15543","v":"Select"},{"$f":"Import!I15643","v":"Select"},{"$f":"Import!I15743","v":0},{"$f":"Import!I15843","v":0},{"$f":"Import!I15943","v":0},{"$f":"Import!I16043","v":0},{"$f":"Import!I16143","v":0}]
[49,{"$f":"Import!I15344","v":"Select"},{"$f":"Import!I15444","v":"Select"},{"$f":"Import!I15544","v":"Select"},{"$f":"Import!I15644","v":"Select"},{"$f":"Import!I15744","v":0},{"$f":"Import!I15844","v":0},{"$f":"Import!I15944","v":0},{"$f":"Import!I16044","v":0},{"$f":"Import!I16144","v":0}]
[50,{"$f":"Import!I15345","v":"Select"},{"$f":"Import!I15445","v":"Select"},{"$f":"Import!I15545","v":"Select"},{"$f":"Import!I15645","v":"Select"},{"$f":"Import!I15745","v":0},{"$f":"Import!I15845","v":0},{"$f":"Import!I15945","v":0},{"$f":"Import!I16045","v":0},{"$f":"Import!I16145","v":0}]
[51,{"$f":"Import!I15346","v":"Select"},{"$f":"Import!I15446","v":"Select"},{"$f":"Import!I15546","v":"Select"},{"$f":"Import!I15646","v":"Select"},{"$f":"Import!I15746","v":0},{"$f":"Import!I15846","v":0},{"$f":"Import!I15946","v":0},{"$f":"Import!I16046","v":0},{"$f":"Import!I16146","v":0}]
[52,{"$f":"Import!I15347","v":"Select"},{"$f":"Import!I15447","v":"Select"},{"$f":"Import!I15547","v":"Select"},{"$f":"Import!I15647","v":"Select"},{"$f":"Import!I15747","v":0},{"$f":"Import!I15847","v":0},{"$f":"Import!I15947","v":0},{"$f":"Import!I16047","v":0},{"$f":"Import!I16147","v":0}]
[53,{"$f":"Import!I15348","v":"Select"},{"$f":"Import!I15448","v":"Select"},{"$f":"Import!I15548","v":"Select"},{"$f":"Import!I15648","v":"Select"},{"$f":"Import!I15748","v":0},{"$f":"Import!I15848","v":0},{"$f":"Import!I15948","v":0},{"$f":"Import!I16048","v":0},{"$f":"Import!I16148","v":0}]
[54,{"$f":"Import!I15349","v":"Select"},{"$f":"Import!I15449","v":"Select"},{"$f":"Import!I15549","v":"Select"},{"$f":"Import!I15649","v":"Select"},{"$f":"Import!I15749","v":0},{"$f":"Import!I15849","v":0},{"$f":"Import!I15949","v":0},{"$f":"Import!I16049","v":0},{"$f":"Import!I16149","v":0}]
[55,{"$f":"Import!I15350","v":"Select"},{"$f":"Import!I15450","v":"Select"},{"$f":"Import!I15550","v":"Select"},{"$f":"Import!I15650","v":"Select"},{"$f":"Import!I15750","v":0},{"$f":"Import!I15850","v":0},{"$f":"Import!I15950","v":0},{"$f":"Import!I16050","v":0},{"$f":"Import!I16150","v":0}]
[56,{"$f":"Import!I15351","v":"Select"},{"$f":"Import!I15451","v":"Select"},{"$f":"Import!I15551","v":"Select"},{"$f":"Import!I15651","v":"Select"},{"$f":"Import!I15751","v":0},{"$f":"Import!I15851","v":0},{"$f":"Import!I15951","v":0},{"$f":"Import!I16051","v":0},{"$f":"Import!I16151","v":0}]
[57,{"$f":"Import!I15352","v":"Select"},{"$f":"Import!I15452","v":"Select"},{"$f":"Import!I15552","v":"Select"},{"$f":"Import!I15652","v":"Select"},{"$f":"Import!I15752","v":0},{"$f":"Import!I15852","v":0},{"$f":"Import!I15952","v":0},{"$f":"Import!I16052","v":0},{"$f":"Import!I16152","v":0}]
[58,{"$f":"Import!I15353","v":"Select"},{"$f":"Import!I15453","v":"Select"},{"$f":"Import!I15553","v":"Select"},{"$f":"Import!I15653","v":"Select"},{"$f":"Import!I15753","v":0},{"$f":"Import!I15853","v":0},{"$f":"Import!I15953","v":0},{"$f":"Import!I16053","v":0},{"$f":"Import!I16153","v":0}]
[59,{"$f":"Import!I15354","v":"Select"},{"$f":"Import!I15454","v":"Select"},{"$f":"Import!I15554","v":"Select"},{"$f":"Import!I15654","v":"Select"},{"$f":"Import!I15754","v":0},{"$f":"Import!I15854","v":0},{"$f":"Import!I15954","v":0},{"$f":"Import!I16054","v":0},{"$f":"Import!I16154","v":0}]
[60,{"$f":"Import!I15355","v":"Select"},{"$f":"Import!I15455","v":"Select"},{"$f":"Import!I15555","v":"Select"},{"$f":"Import!I15655","v":"Select"},{"$f":"Import!I15755","v":0},{"$f":"Import!I15855","v":0},{"$f":"Import!I15955","v":0},{"$f":"Import!I16055","v":0},{"$f":"Import!I16155","v":0}]
[61,{"$f":"Import!I15356","v":"Select"},{"$f":"Import!I15456","v":"Select"},{"$f":"Import!I15556","v":"Select"},{"$f":"Import!I15656","v":"Select"},{"$f":"Import!I15756","v":0},{"$f":"Import!I15856","v":0},{"$f":"Import!I15956","v":0},{"$f":"Import!I16056","v":0},{"$f":"Import!I16156","v":0}]
[62,{"$f":"Import!I15357","v":"Select"},{"$f":"Import!I15457","v":"Select"},{"$f":"Import!I15557","v":"Select"},{"$f":"Import!I15657","v":"Select"},{"$f":"Import!I15757","v":0},{"$f":"Import!I15857","v":0},{"$f":"Import!I15957","v":0},{"$f":"Import!I16057","v":0},{"$f":"Import!I16157","v":0}]
[63,{"$f":"Import!I15358","v":"Select"},{"$f":"Import!I15458","v":"Select"},{"$f":"Import!I15558","v":"Select"},{"$f":"Import!I15658","v":"Select"},{"$f":"Import!I15758","v":0},{"$f":"Import!I15858","v":0},{"$f":"Import!I15958","v":0},{"$f":"Import!I16058","v":0},{"$f":"Import!I16158","v":0}]
[64,{"$f":"Import!I15359","v":"Select"},{"$f":"Import!I15459","v":"Select"},{"$f":"Import!I15559","v":"Select"},{"$f":"Import!I15659","v":"Select"},{"$f":"Import!I15759","v":0},{"$f":"Import!I15859","v":0},{"$f":"Import!I15959","v":0},{"$f":"Import!I16059","v":0},{"$f":"Import!I16159","v":0}]
[65,{"$f":"Import!I15360","v":"Select"},{"$f":"Import!I15460","v":"Select"},{"$f":"Import!I15560","v":"Select"},{"$f":"Import!I15660","v":"Select"},{"$f":"Import!I15760","v":0},{"$f":"Import!I15860","v":0},{"$f":"Import!I15960","v":0},{"$f":"Import!I16060","v":0},{"$f":"Import!I16160","v":0}]
[66,{"$f":"Import!I15361","v":"Select"},{"$f":"Import!I15461","v":"Select"},{"$f":"Import!I15561","v":"Select"},{"$f":"Import!I15661","v":"Select"},{"$f":"Import!I15761","v":0},{"$f":"Import!I15861","v":0},{"$f":"Import!I15961","v":0},{"$f":"Import!I16061","v":0},{"$f":"Import!I16161","v":0}]
[{"$f":"A1518+1","v":67},{"$f":"Import!I15362","v":"Select"},{"$f":"Import!I15462","v":"Select"},{"$f":"Import!I15562","v":"Select"},{"$f":"Import!I15662","v":"Select"},{"$f":"Import!I15762","v":0},{"$f":"Import!I15862","v":0},{"$f":"Import!I15962","v":0},{"$f":"Import!I16062","v":0},{"$f":"Import!I16162","v":0}]
[68,{"$f":"Import!I15363","v":"Select"},{"$f":"Import!I15463","v":"Select"},{"$f":"Import!I15563","v":"Select"},{"$f":"Import!I15663","v":"Select"},{"$f":"Import!I15763","v":0},{"$f":"Import!I15863","v":0},{"$f":"Import!I15963","v":0},{"$f":"Import!I16063","v":0},{"$f":"Import!I16163","v":0}]
[69,{"$f":"Import!I15364","v":"Select"},{"$f":"Import!I15464","v":"Select"},{"$f":"Import!I15564","v":"Select"},{"$f":"Import!I15664","v":"Select"},{"$f":"Import!I15764","v":0},{"$f":"Import!I15864","v":0},{"$f":"Import!I15964","v":0},{"$f":"Import!I16064","v":0},{"$f":"Import!I16164","v":0}]
[70,{"$f":"Import!I15365","v":"Select"},{"$f":"Import!I15465","v":"Select"},{"$f":"Import!I15565","v":"Select"},{"$f":"Import!I15665","v":"Select"},{"$f":"Import!I15765","v":0},{"$f":"Import!I15865","v":0},{"$f":"Import!I15965","v":0},{"$f":"Import!I16065","v":0},{"$f":"Import!I16165","v":0}]
[71,{"$f":"Import!I15366","v":"Select"},{"$f":"Import!I15466","v":"Select"},{"$f":"Import!I15566","v":"Select"},{"$f":"Import!I15666","v":"Select"},{"$f":"Import!I15766","v":0},{"$f":"Import!I15866","v":0},{"$f":"Import!I15966","v":0},{"$f":"Import!I16066","v":0},{"$f":"Import!I16166","v":0}]
[72,{"$f":"Import!I15367","v":"Select"},{"$f":"Import!I15467","v":"Select"},{"$f":"Import!I15567","v":"Select"},{"$f":"Import!I15667","v":"Select"},{"$f":"Import!I15767","v":0},{"$f":"Import!I15867","v":0},{"$f":"Import!I15967","v":0},{"$f":"Import!I16067","v":0},{"$f":"Import!I16167","v":0}]
[73,{"$f":"Import!I15368","v":"Select"},{"$f":"Import!I15468","v":"Select"},{"$f":"Import!I15568","v":"Select"},{"$f":"Import!I15668","v":"Select"},{"$f":"Import!I15768","v":0},{"$f":"Import!I15868","v":0},{"$f":"Import!I15968","v":0},{"$f":"Import!I16068","v":0},{"$f":"Import!I16168","v":0}]
[74,{"$f":"Import!I15369","v":"Select"},{"$f":"Import!I15469","v":"Select"},{"$f":"Import!I15569","v":"Select"},{"$f":"Import!I15669","v":"Select"},{"$f":"Import!I15769","v":0},{"$f":"Import!I15869","v":0},{"$f":"Import!I15969","v":0},{"$f":"Import!I16069","v":0},{"$f":"Import!I16169","v":0}]
[75,{"$f":"Import!I15370","v":"Select"},{"$f":"Import!I15470","v":"Select"},{"$f":"Import!I15570","v":"Select"},{"$f":"Import!I15670","v":"Select"},{"$f":"Import!I15770","v":0},{"$f":"Import!I15870","v":0},{"$f":"Import!I15970","v":0},{"$f":"Import!I16070","v":0},{"$f":"Import!I16170","v":0}]
[76,{"$f":"Import!I15371","v":"Select"},{"$f":"Import!I15471","v":"Select"},{"$f":"Import!I15571","v":"Select"},{"$f":"Import!I15671","v":"Select"},{"$f":"Import!I15771","v":0},{"$f":"Import!I15871","v":0},{"$f":"Import!I15971","v":0},{"$f":"Import!I16071","v":0},{"$f":"Import!I16171","v":0}]
[77,{"$f":"Import!I15372","v":"Select"},{"$f":"Import!I15472","v":"Select"},{"$f":"Import!I15572","v":"Select"},{"$f":"Import!I15672","v":"Select"},{"$f":"Import!I15772","v":0},{"$f":"Import!I15872","v":0},{"$f":"Import!I15972","v":0},{"$f":"Import!I16072","v":0},{"$f":"Import!I16172","v":0}]
[78,{"$f":"Import!I15373","v":"Select"},{"$f":"Import!I15473","v":"Select"},{"$f":"Import!I15573","v":"Select"},{"$f":"Import!I15673","v":"Select"},{"$f":"Import!I15773","v":0},{"$f":"Import!I15873","v":0},{"$f":"Import!I15973","v":0},{"$f":"Import!I16073","v":0},{"$f":"Import!I16173","v":0}]
[79,{"$f":"Import!I15374","v":"Select"},{"$f":"Import!I15474","v":"Select"},{"$f":"Import!I15574","v":"Select"},{"$f":"Import!I15674","v":"Select"},{"$f":"Import!I15774","v":0},{"$f":"Import!I15874","v":0},{"$f":"Import!I15974","v":0},{"$f":"Import!I16074","v":0},{"$f":"Import!I16174","v":0}]
[80,{"$f":"Import!I15375","v":"Select"},{"$f":"Import!I15475","v":"Select"},{"$f":"Import!I15575","v":"Select"},{"$f":"Import!I15675","v":"Select"},{"$f":"Import!I15775","v":0},{"$f":"Import!I15875","v":0},{"$f":"Import!I15975","v":0},{"$f":"Import!I16075","v":0},{"$f":"Import!I16175","v":0}]
[81,{"$f":"Import!I15376","v":"Select"},{"$f":"Import!I15476","v":"Select"},{"$f":"Import!I15576","v":"Select"},{"$f":"Import!I15676","v":"Select"},{"$f":"Import!I15776","v":0},{"$f":"Import!I15876","v":0},{"$f":"Import!I15976","v":0},{"$f":"Import!I16076","v":0},{"$f":"Import!I16176","v":0}]
[82,{"$f":"Import!I15377","v":"Select"},{"$f":"Import!I15477","v":"Select"},{"$f":"Import!I15577","v":"Select"},{"$f":"Import!I15677","v":"Select"},{"$f":"Import!I15777","v":0},{"$f":"Import!I15877","v":0},{"$f":"Import!I15977","v":0},{"$f":"Import!I16077","v":0},{"$f":"Import!I16177","v":0}]
[83,{"$f":"Import!I15378","v":"Select"},{"$f":"Import!I15478","v":"Select"},{"$f":"Import!I15578","v":"Select"},{"$f":"Import!I15678","v":"Select"},{"$f":"Import!I15778","v":0},{"$f":"Import!I15878","v":0},{"$f":"Import!I15978","v":0},{"$f":"Import!I16078","v":0},{"$f":"Import!I16178","v":0}]
[84,{"$f":"Import!I15379","v":"Select"},{"$f":"Import!I15479","v":"Select"},{"$f":"Import!I15579","v":"Select"},{"$f":"Import!I15679","v":"Select"},{"$f":"Import!I15779","v":0},{"$f":"Import!I15879","v":0},{"$f":"Import!I15979","v":0},{"$f":"Import!I16079","v":0},{"$f":"Import!I16179","v":0}]
[85,{"$f":"Import!I15380","v":"Select"},{"$f":"Import!I15480","v":"Select"},{"$f":"Import!I15580","v":"Select"},{"$f":"Import!I15680","v":"Select"},{"$f":"Import!I15780","v":0},{"$f":"Import!I15880","v":0},{"$f":"Import!I15980","v":0},{"$f":"Import!I16080","v":0},{"$f":"Import!I16180","v":0}]
[86,{"$f":"Import!I15381","v":"Select"},{"$f":"Import!I15481","v":"Select"},{"$f":"Import!I15581","v":"Select"},{"$f":"Import!I15681","v":"Select"},{"$f":"Import!I15781","v":0},{"$f":"Import!I15881","v":0},{"$f":"Import!I15981","v":0},{"$f":"Import!I16081","v":0},{"$f":"Import!I16181","v":0}]
[87,{"$f":"Import!I15382","v":"Select"},{"$f":"Import!I15482","v":"Select"},{"$f":"Import!I15582","v":"Select"},{"$f":"Import!I15682","v":"Select"},{"$f":"Import!I15782","v":0},{"$f":"Import!I15882","v":0},{"$f":"Import!I15982","v":0},{"$f":"Import!I16082","v":0},{"$f":"Import!I16182","v":0}]
[88,{"$f":"Import!I15383","v":"Select"},{"$f":"Import!I15483","v":"Select"},{"$f":"Import!I15583","v":"Select"},{"$f":"Import!I15683","v":"Select"},{"$f":"Import!I15783","v":0},{"$f":"Import!I15883","v":0},{"$f":"Import!I15983","v":0},{"$f":"Import!I16083","v":0},{"$f":"Import!I16183","v":0}]
[89,{"$f":"Import!I15384","v":"Select"},{"$f":"Import!I15484","v":"Select"},{"$f":"Import!I15584","v":"Select"},{"$f":"Import!I15684","v":"Select"},{"$f":"Import!I15784","v":0},{"$f":"Import!I15884","v":0},{"$f":"Import!I15984","v":0},{"$f":"Import!I16084","v":0},{"$f":"Import!I16184","v":0}]
[90,{"$f":"Import!I15385","v":"Select"},{"$f":"Import!I15485","v":"Select"},{"$f":"Import!I15585","v":"Select"},{"$f":"Import!I15685","v":"Select"},{"$f":"Import!I15785","v":0},{"$f":"Import!I15885","v":0},{"$f":"Import!I15985","v":0},{"$f":"Import!I16085","v":0},{"$f":"Import!I16185","v":0}]
[91,{"$f":"Import!I15386","v":"Select"},{"$f":"Import!I15486","v":"Select"},{"$f":"Import!I15586","v":"Select"},{"$f":"Import!I15686","v":"Select"},{"$f":"Import!I15786","v":0},{"$f":"Import!I15886","v":0},{"$f":"Import!I15986","v":0},{"$f":"Import!I16086","v":0},{"$f":"Import!I16186","v":0}]
[92,{"$f":"Import!I15387","v":"Select"},{"$f":"Import!I15487","v":"Select"},{"$f":"Import!I15587","v":"Select"},{"$f":"Import!I15687","v":"Select"},{"$f":"Import!I15787","v":0},{"$f":"Import!I15887","v":0},{"$f":"Import!I15987","v":0},{"$f":"Import!I16087","v":0},{"$f":"Import!I16187","v":0}]
[93,{"$f":"Import!I15388","v":"Select"},{"$f":"Import!I15488","v":"Select"},{"$f":"Import!I15588","v":"Select"},{"$f":"Import!I15688","v":"Select"},{"$f":"Import!I15788","v":0},{"$f":"Import!I15888","v":0},{"$f":"Import!I15988","v":0},{"$f":"Import!I16088","v":0},{"$f":"Import!I16188","v":0}]
[94,{"$f":"Import!I15389","v":"Select"},{"$f":"Import!I15489","v":"Select"},{"$f":"Import!I15589","v":"Select"},{"$f":"Import!I15689","v":"Select"},{"$f":"Import!I15789","v":0},{"$f":"Import!I15889","v":0},{"$f":"Import!I15989","v":0},{"$f":"Import!I16089","v":0},{"$f":"Import!I16189","v":0}]
[95,{"$f":"Import!I15390","v":"Select"},{"$f":"Import!I15490","v":"Select"},{"$f":"Import!I15590","v":"Select"},{"$f":"Import!I15690","v":"Select"},{"$f":"Import!I15790","v":0},{"$f":"Import!I15890","v":0},{"$f":"Import!I15990","v":0},{"$f":"Import!I16090","v":0},{"$f":"Import!I16190","v":0}]
[96,{"$f":"Import!I15391","v":"Select"},{"$f":"Import!I15491","v":"Select"},{"$f":"Import!I15591","v":"Select"},{"$f":"Import!I15691","v":"Select"},{"$f":"Import!I15791","v":0},{"$f":"Import!I15891","v":0},{"$f":"Import!I15991","v":0},{"$f":"Import!I16091","v":0},{"$f":"Import!I16191","v":0}]
[97,{"$f":"Import!I15392","v":"Select"},{"$f":"Import!I15492","v":"Select"},{"$f":"Import!I15592","v":"Select"},{"$f":"Import!I15692","v":"Select"},{"$f":"Import!I15792","v":0},{"$f":"Import!I15892","v":0},{"$f":"Import!I15992","v":0},{"$f":"Import!I16092","v":0},{"$f":"Import!I16192","v":0}]
[98,{"$f":"Import!I15393","v":"Select"},{"$f":"Import!I15493","v":"Select"},{"$f":"Import!I15593","v":"Select"},{"$f":"Import!I15693","v":"Select"},{"$f":"Import!I15793","v":0},{"$f":"Import!I15893","v":0},{"$f":"Import!I15993","v":0},{"$f":"Import!I16093","v":0},{"$f":"Import!I16193","v":0}]
[99,{"$f":"Import!I15394","v":"Select"},{"$f":"Import!I15494","v":"Select"},{"$f":"Import!I15594","v":"Select"},{"$f":"Import!I15694","v":"Select"},{"$f":"Import!I15794","v":0},{"$f":"Import!I15894","v":0},{"$f":"Import!I15994","v":0},{"$f":"Import!I16094","v":0},{"$f":"Import!I16194","v":0}]
[100,{"$f":"Import!I15395","v":"Select"},{"$f":"Import!I15495","v":"Select"},{"$f":"Import!I15595","v":"Select"},{"$f":"Import!I15695","v":"Select"},{"$f":"Import!I15795","v":0},{"$f":"Import!I15895","v":0},{"$f":"Import!I15995","v":0},{"$f":"Import!I16095","v":0},{"$f":"Import!I16195","v":0}]
[]
[null,"Total Other Alternative Investments",null,null,null,{"$f":"SUM(F1453:F1552)","v":0},{"$f":"SUM(G1453:G1552)","v":0},{"$f":"IFERROR(SUMPRODUCT(H1453:H1552,$G1453:$G1552)/SUM($G1453:$G1552),0)","v":0},{"$f":"IFERROR(SUMPRODUCT(I1453:I1552,$G1453:$G1552)/SUM($G1453:$G1552),0)","v":0}]
[]
[null,"(I) DERIVATIVES"]
[]
[null,null,"Enter # of Derivative Types",{"$f":"Import!I16196","v":0}]
[null,"Derivative Type","Underlying","Currency","Trading Category","Purpose","Position","Confirm line contains only derivatives with:",{"$f":"YEAR($C$3)&\" \nMarket Value\"","v":"2023 \nMarket Value"},"Gross Notional Value","Net Notional Value","Exposure (Dollar Delta, DV01, CS01","Comments"]
[1,{"$f":"Import!I16197","v":"Select"},{"$f":"Import!I16397","v":"Select"},{"$f":"Import!I16597","v":"Select"},{"$f":"Import!I16797","v":"Select"},{"$f":"Import!I16997","v":"Select"},{"$f":"Import!I17197","v":"Select"},{"$f":"Import!I17397","v":"Select"},{"$f":"Import!I17597","v":0},{"$f":"Import!I17797","v":0},{"$f":"Import!I17997","v":0},{"$f":"Import!I18197","v":0},{"$f":"Import!I18397","v":0}]
[{"$f":"A1560+1","v":2},{"$f":"Import!I16198","v":"Select"},{"$f":"Import!I16398","v":"Select"},{"$f":"Import!I16598","v":"Select"},{"$f":"Import!I16798","v":"Select"},{"$f":"Import!I16998","v":"Select"},{"$f":"Import!I17198","v":"Select"},{"$f":"Import!I17398","v":"Select"},{"$f":"Import!I17598","v":0},{"$f":"Import!I17798","v":0},{"$f":"Import!I17998","v":0},{"$f":"Import!I18198","v":0},{"$f":"Import!I18398","v":0}]
[{"$f":"A1561+1","v":3},{"$f":"Import!I16199","v":"Select"},{"$f":"Import!I16399","v":"Select"},{"$f":"Import!I16599","v":"Select"},{"$f":"Import!I16799","v":"Select"},{"$f":"Import!I16999","v":"Select"},{"$f":"Import!I17199","v":"Select"},{"$f":"Import!I17399","v":"Select"},{"$f":"Import!I17599","v":0},{"$f":"Import!I17799","v":0},{"$f":"Import!I17999","v":0},{"$f":"Import!I18199","v":0},{"$f":"Import!I18399","v":0}]
[4,{"$f":"Import!I16200","v":"Select"},{"$f":"Import!I16400","v":"Select"},{"$f":"Import!I16600","v":"Select"},{"$f":"Import!I16800","v":"Select"},{"$f":"Import!I17000","v":"Select"},{"$f":"Import!I17200","v":"Select"},{"$f":"Import!I17400","v":"Select"},{"$f":"Import!I17600","v":0},{"$f":"Import!I17800","v":0},{"$f":"Import!I18000","v":0},{"$f":"Import!I18200","v":0},{"$f":"Import!I18400","v":0}]
[5,{"$f":"Import!I16201","v":"Select"},{"$f":"Import!I16401","v":"Select"},{"$f":"Import!I16601","v":"Select"},{"$f":"Import!I16801","v":"Select"},{"$f":"Import!I17001","v":"Select"},{"$f":"Import!I17201","v":"Select"},{"$f":"Import!I17401","v":"Select"},{"$f":"Import!I17601","v":0},{"$f":"Import!I17801","v":0},{"$f":"Import!I18001","v":0},{"$f":"Import!I18201","v":0},{"$f":"Import!I18401","v":0}]
[6,{"$f":"Import!I16202","v":"Select"},{"$f":"Import!I16402","v":"Select"},{"$f":"Import!I16602","v":"Select"},{"$f":"Import!I16802","v":"Select"},{"$f":"Import!I17002","v":"Select"},{"$f":"Import!I17202","v":"Select"},{"$f":"Import!I17402","v":"Select"},{"$f":"Import!I17602","v":0},{"$f":"Import!I17802","v":0},{"$f":"Import!I18002","v":0},{"$f":"Import!I18202","v":0},{"$f":"Import!I18402","v":0}]
[7,{"$f":"Import!I16203","v":"Select"},{"$f":"Import!I16403","v":"Select"},{"$f":"Import!I16603","v":"Select"},{"$f":"Import!I16803","v":"Select"},{"$f":"Import!I17003","v":"Select"},{"$f":"Import!I17203","v":"Select"},{"$f":"Import!I17403","v":"Select"},{"$f":"Import!I17603","v":0},{"$f":"Import!I17803","v":0},{"$f":"Import!I18003","v":0},{"$f":"Import!I18203","v":0},{"$f":"Import!I18403","v":0}]
[8,{"$f":"Import!I16204","v":"Select"},{"$f":"Import!I16404","v":"Select"},{"$f":"Import!I16604","v":"Select"},{"$f":"Import!I16804","v":"Select"},{"$f":"Import!I17004","v":"Select"},{"$f":"Import!I17204","v":"Select"},{"$f":"Import!I17404","v":"Select"},{"$f":"Import!I17604","v":0},{"$f":"Import!I17804","v":0},{"$f":"Import!I18004","v":0},{"$f":"Import!I18204","v":0},{"$f":"Import!I18404","v":0}]
[9,{"$f":"Import!I16205","v":"Select"},{"$f":"Import!I16405","v":"Select"},{"$f":"Import!I16605","v":"Select"},{"$f":"Import!I16805","v":"Select"},{"$f":"Import!I17005","v":"Select"},{"$f":"Import!I17205","v":"Select"},{"$f":"Import!I17405","v":"Select"},{"$f":"Import!I17605","v":0},{"$f":"Import!I17805","v":0},{"$f":"Import!I18005","v":0},{"$f":"Import!I18205","v":0},{"$f":"Import!I18405","v":0}]
[10,{"$f":"Import!I16206","v":"Select"},{"$f":"Import!I16406","v":"Select"},{"$f":"Import!I16606","v":"Select"},{"$f":"Import!I16806","v":"Select"},{"$f":"Import!I17006","v":"Select"},{"$f":"Import!I17206","v":"Select"},{"$f":"Import!I17406","v":"Select"},{"$f":"Import!I17606","v":0},{"$f":"Import!I17806","v":0},{"$f":"Import!I18006","v":0},{"$f":"Import!I18206","v":0},{"$f":"Import!I18406","v":0}]
[11,{"$f":"Import!I16207","v":"Select"},{"$f":"Import!I16407","v":"Select"},{"$f":"Import!I16607","v":"Select"},{"$f":"Import!I16807","v":"Select"},{"$f":"Import!I17007","v":"Select"},{"$f":"Import!I17207","v":"Select"},{"$f":"Import!I17407","v":"Select"},{"$f":"Import!I17607","v":0},{"$f":"Import!I17807","v":0},{"$f":"Import!I18007","v":0},{"$f":"Import!I18207","v":0},{"$f":"Import!I18407","v":0}]
[12,{"$f":"Import!I16208","v":"Select"},{"$f":"Import!I16408","v":"Select"},{"$f":"Import!I16608","v":"Select"},{"$f":"Import!I16808","v":"Select"},{"$f":"Import!I17008","v":"Select"},{"$f":"Import!I17208","v":"Select"},{"$f":"Import!I17408","v":"Select"},{"$f":"Import!I17608","v":0},{"$f":"Import!I17808","v":0},{"$f":"Import!I18008","v":0},{"$f":"Import!I18208","v":0},{"$f":"Import!I18408","v":0}]
[13,{"$f":"Import!I16209","v":"Select"},{"$f":"Import!I16409","v":"Select"},{"$f":"Import!I16609","v":"Select"},{"$f":"Import!I16809","v":"Select"},{"$f":"Import!I17009","v":"Select"},{"$f":"Import!I17209","v":"Select"},{"$f":"Import!I17409","v":"Select"},{"$f":"Import!I17609","v":0},{"$f":"Import!I17809","v":0},{"$f":"Import!I18009","v":0},{"$f":"Import!I18209","v":0},{"$f":"Import!I18409","v":0}]
[14,{"$f":"Import!I16210","v":"Select"},{"$f":"Import!I16410","v":"Select"},{"$f":"Import!I16610","v":"Select"},{"$f":"Import!I16810","v":"Select"},{"$f":"Import!I17010","v":"Select"},{"$f":"Import!I17210","v":"Select"},{"$f":"Import!I17410","v":"Select"},{"$f":"Import!I17610","v":0},{"$f":"Import!I17810","v":0},{"$f":"Import!I18010","v":0},{"$f":"Import!I18210","v":0},{"$f":"Import!I18410","v":0}]
[15,{"$f":"Import!I16211","v":"Select"},{"$f":"Import!I16411","v":"Select"},{"$f":"Import!I16611","v":"Select"},{"$f":"Import!I16811","v":"Select"},{"$f":"Import!I17011","v":"Select"},{"$f":"Import!I17211","v":"Select"},{"$f":"Import!I17411","v":"Select"},{"$f":"Import!I17611","v":0},{"$f":"Import!I17811","v":0},{"$f":"Import!I18011","v":0},{"$f":"Import!I18211","v":0},{"$f":"Import!I18411","v":0}]
[16,{"$f":"Import!I16212","v":"Select"},{"$f":"Import!I16412","v":"Select"},{"$f":"Import!I16612","v":"Select"},{"$f":"Import!I16812","v":"Select"},{"$f":"Import!I17012","v":"Select"},{"$f":"Import!I17212","v":"Select"},{"$f":"Import!I17412","v":"Select"},{"$f":"Import!I17612","v":0},{"$f":"Import!I17812","v":0},{"$f":"Import!I18012","v":0},{"$f":"Import!I18212","v":0},{"$f":"Import!I18412","v":0}]
[17,{"$f":"Import!I16213","v":"Select"},{"$f":"Import!I16413","v":"Select"},{"$f":"Import!I16613","v":"Select"},{"$f":"Import!I16813","v":"Select"},{"$f":"Import!I17013","v":"Select"},{"$f":"Import!I17213","v":"Select"},{"$f":"Import!I17413","v":"Select"},{"$f":"Import!I17613","v":0},{"$f":"Import!I17813","v":0},{"$f":"Import!I18013","v":0},{"$f":"Import!I18213","v":0},{"$f":"Import!I18413","v":0}]
[18,{"$f":"Import!I16214","v":"Select"},{"$f":"Import!I16414","v":"Select"},{"$f":"Import!I16614","v":"Select"},{"$f":"Import!I16814","v":"Select"},{"$f":"Import!I17014","v":"Select"},{"$f":"Import!I17214","v":"Select"},{"$f":"Import!I17414","v":"Select"},{"$f":"Import!I17614","v":0},{"$f":"Import!I17814","v":0},{"$f":"Import!I18014","v":0},{"$f":"Import!I18214","v":0},{"$f":"Import!I18414","v":0}]
[19,{"$f":"Import!I16215","v":"Select"},{"$f":"Import!I16415","v":"Select"},{"$f":"Import!I16615","v":"Select"},{"$f":"Import!I16815","v":"Select"},{"$f":"Import!I17015","v":"Select"},{"$f":"Import!I17215","v":"Select"},{"$f":"Import!I17415","v":"Select"},{"$f":"Import!I17615","v":0},{"$f":"Import!I17815","v":0},{"$f":"Import!I18015","v":0},{"$f":"Import!I18215","v":0},{"$f":"Import!I18415","v":0}]
[20,{"$f":"Import!I16216","v":"Select"},{"$f":"Import!I16416","v":"Select"},{"$f":"Import!I16616","v":"Select"},{"$f":"Import!I16816","v":"Select"},{"$f":"Import!I17016","v":"Select"},{"$f":"Import!I17216","v":"Select"},{"$f":"Import!I17416","v":"Select"},{"$f":"Import!I17616","v":0},{"$f":"Import!I17816","v":0},{"$f":"Import!I18016","v":0},{"$f":"Import!I18216","v":0},{"$f":"Import!I18416","v":0}]
[21,{"$f":"Import!I16217","v":"Select"},{"$f":"Import!I16417","v":"Select"},{"$f":"Import!I16617","v":"Select"},{"$f":"Import!I16817","v":"Select"},{"$f":"Import!I17017","v":"Select"},{"$f":"Import!I17217","v":"Select"},{"$f":"Import!I17417","v":"Select"},{"$f":"Import!I17617","v":0},{"$f":"Import!I17817","v":0},{"$f":"Import!I18017","v":0},{"$f":"Import!I18217","v":0},{"$f":"Import!I18417","v":0}]
[22,{"$f":"Import!I16218","v":"Select"},{"$f":"Import!I16418","v":"Select"},{"$f":"Import!I16618","v":"Select"},{"$f":"Import!I16818","v":"Select"},{"$f":"Import!I17018","v":"Select"},{"$f":"Import!I17218","v":"Select"},{"$f":"Import!I17418","v":"Select"},{"$f":"Import!I17618","v":0},{"$f":"Import!I17818","v":0},{"$f":"Import!I18018","v":0},{"$f":"Import!I18218","v":0},{"$f":"Import!I18418","v":0}]
[23,{"$f":"Import!I16219","v":"Select"},{"$f":"Import!I16419","v":"Select"},{"$f":"Import!I16619","v":"Select"},{"$f":"Import!I16819","v":"Select"},{"$f":"Import!I17019","v":"Select"},{"$f":"Import!I17219","v":"Select"},{"$f":"Import!I17419","v":"Select"},{"$f":"Import!I17619","v":0},{"$f":"Import!I17819","v":0},{"$f":"Import!I18019","v":0},{"$f":"Import!I18219","v":0},{"$f":"Import!I18419","v":0}]
[24,{"$f":"Import!I16220","v":"Select"},{"$f":"Import!I16420","v":"Select"},{"$f":"Import!I16620","v":"Select"},{"$f":"Import!I16820","v":"Select"},{"$f":"Import!I17020","v":"Select"},{"$f":"Import!I17220","v":"Select"},{"$f":"Import!I17420","v":"Select"},{"$f":"Import!I17620","v":0},{"$f":"Import!I17820","v":0},{"$f":"Import!I18020","v":0},{"$f":"Import!I18220","v":0},{"$f":"Import!I18420","v":0}]
[25,{"$f":"Import!I16221","v":"Select"},{"$f":"Import!I16421","v":"Select"},{"$f":"Import!I16621","v":"Select"},{"$f":"Import!I16821","v":"Select"},{"$f":"Import!I17021","v":"Select"},{"$f":"Import!I17221","v":"Select"},{"$f":"Import!I17421","v":"Select"},{"$f":"Import!I17621","v":0},{"$f":"Import!I17821","v":0},{"$f":"Import!I18021","v":0},{"$f":"Import!I18221","v":0},{"$f":"Import!I18421","v":0}]
[26,{"$f":"Import!I16222","v":"Select"},{"$f":"Import!I16422","v":"Select"},{"$f":"Import!I16622","v":"Select"},{"$f":"Import!I16822","v":"Select"},{"$f":"Import!I17022","v":"Select"},{"$f":"Import!I17222","v":"Select"},{"$f":"Import!I17422","v":"Select"},{"$f":"Import!I17622","v":0},{"$f":"Import!I17822","v":0},{"$f":"Import!I18022","v":0},{"$f":"Import!I18222","v":0},{"$f":"Import!I18422","v":0}]
[27,{"$f":"Import!I16223","v":"Select"},{"$f":"Import!I16423","v":"Select"},{"$f":"Import!I16623","v":"Select"},{"$f":"Import!I16823","v":"Select"},{"$f":"Import!I17023","v":"Select"},{"$f":"Import!I17223","v":"Select"},{"$f":"Import!I17423","v":"Select"},{"$f":"Import!I17623","v":0},{"$f":"Import!I17823","v":0},{"$f":"Import!I18023","v":0},{"$f":"Import!I18223","v":0},{"$f":"Import!I18423","v":0}]
[28,{"$f":"Import!I16224","v":"Select"},{"$f":"Import!I16424","v":"Select"},{"$f":"Import!I16624","v":"Select"},{"$f":"Import!I16824","v":"Select"},{"$f":"Import!I17024","v":"Select"},{"$f":"Import!I17224","v":"Select"},{"$f":"Import!I17424","v":"Select"},{"$f":"Import!I17624","v":0},{"$f":"Import!I17824","v":0},{"$f":"Import!I18024","v":0},{"$f":"Import!I18224","v":0},{"$f":"Import!I18424","v":0}]
[29,{"$f":"Import!I16225","v":"Select"},{"$f":"Import!I16425","v":"Select"},{"$f":"Import!I16625","v":"Select"},{"$f":"Import!I16825","v":"Select"},{"$f":"Import!I17025","v":"Select"},{"$f":"Import!I17225","v":"Select"},{"$f":"Import!I17425","v":"Select"},{"$f":"Import!I17625","v":0},{"$f":"Import!I17825","v":0},{"$f":"Import!I18025","v":0},{"$f":"Import!I18225","v":0},{"$f":"Import!I18425","v":0}]
[30,{"$f":"Import!I16226","v":"Select"},{"$f":"Import!I16426","v":"Select"},{"$f":"Import!I16626","v":"Select"},{"$f":"Import!I16826","v":"Select"},{"$f":"Import!I17026","v":"Select"},{"$f":"Import!I17226","v":"Select"},{"$f":"Import!I17426","v":"Select"},{"$f":"Import!I17626","v":0},{"$f":"Import!I17826","v":0},{"$f":"Import!I18026","v":0},{"$f":"Import!I18226","v":0},{"$f":"Import!I18426","v":0}]
[31,{"$f":"Import!I16227","v":"Select"},{"$f":"Import!I16427","v":"Select"},{"$f":"Import!I16627","v":"Select"},{"$f":"Import!I16827","v":"Select"},{"$f":"Import!I17027","v":"Select"},{"$f":"Import!I17227","v":"Select"},{"$f":"Import!I17427","v":"Select"},{"$f":"Import!I17627","v":0},{"$f":"Import!I17827","v":0},{"$f":"Import!I18027","v":0},{"$f":"Import!I18227","v":0},{"$f":"Import!I18427","v":0}]
[32,{"$f":"Import!I16228","v":"Select"},{"$f":"Import!I16428","v":"Select"},{"$f":"Import!I16628","v":"Select"},{"$f":"Import!I16828","v":"Select"},{"$f":"Import!I17028","v":"Select"},{"$f":"Import!I17228","v":"Select"},{"$f":"Import!I17428","v":"Select"},{"$f":"Import!I17628","v":0},{"$f":"Import!I17828","v":0},{"$f":"Import!I18028","v":0},{"$f":"Import!I18228","v":0},{"$f":"Import!I18428","v":0}]
[33,{"$f":"Import!I16229","v":"Select"},{"$f":"Import!I16429","v":"Select"},{"$f":"Import!I16629","v":"Select"},{"$f":"Import!I16829","v":"Select"},{"$f":"Import!I17029","v":"Select"},{"$f":"Import!I17229","v":"Select"},{"$f":"Import!I17429","v":"Select"},{"$f":"Import!I17629","v":0},{"$f":"Import!I17829","v":0},{"$f":"Import!I18029","v":0},{"$f":"Import!I18229","v":0},{"$f":"Import!I18429","v":0}]
[34,{"$f":"Import!I16230","v":"Select"},{"$f":"Import!I16430","v":"Select"},{"$f":"Import!I16630","v":"Select"},{"$f":"Import!I16830","v":"Select"},{"$f":"Import!I17030","v":"Select"},{"$f":"Import!I17230","v":"Select"},{"$f":"Import!I17430","v":"Select"},{"$f":"Import!I17630","v":0},{"$f":"Import!I17830","v":0},{"$f":"Import!I18030","v":0},{"$f":"Import!I18230","v":0},{"$f":"Import!I18430","v":0}]
[35,{"$f":"Import!I16231","v":"Select"},{"$f":"Import!I16431","v":"Select"},{"$f":"Import!I16631","v":"Select"},{"$f":"Import!I16831","v":"Select"},{"$f":"Import!I17031","v":"Select"},{"$f":"Import!I17231","v":"Select"},{"$f":"Import!I17431","v":"Select"},{"$f":"Import!I17631","v":0},{"$f":"Import!I17831","v":0},{"$f":"Import!I18031","v":0},{"$f":"Import!I18231","v":0},{"$f":"Import!I18431","v":0}]
[36,{"$f":"Import!I16232","v":"Select"},{"$f":"Import!I16432","v":"Select"},{"$f":"Import!I16632","v":"Select"},{"$f":"Import!I16832","v":"Select"},{"$f":"Import!I17032","v":"Select"},{"$f":"Import!I17232","v":"Select"},{"$f":"Import!I17432","v":"Select"},{"$f":"Import!I17632","v":0},{"$f":"Import!I17832","v":0},{"$f":"Import!I18032","v":0},{"$f":"Import!I18232","v":0},{"$f":"Import!I18432","v":0}]
[37,{"$f":"Import!I16233","v":"Select"},{"$f":"Import!I16433","v":"Select"},{"$f":"Import!I16633","v":"Select"},{"$f":"Import!I16833","v":"Select"},{"$f":"Import!I17033","v":"Select"},{"$f":"Import!I17233","v":"Select"},{"$f":"Import!I17433","v":"Select"},{"$f":"Import!I17633","v":0},{"$f":"Import!I17833","v":0},{"$f":"Import!I18033","v":0},{"$f":"Import!I18233","v":0},{"$f":"Import!I18433","v":0}]
[38,{"$f":"Import!I16234","v":"Select"},{"$f":"Import!I16434","v":"Select"},{"$f":"Import!I16634","v":"Select"},{"$f":"Import!I16834","v":"Select"},{"$f":"Import!I17034","v":"Select"},{"$f":"Import!I17234","v":"Select"},{"$f":"Import!I17434","v":"Select"},{"$f":"Import!I17634","v":0},{"$f":"Import!I17834","v":0},{"$f":"Import!I18034","v":0},{"$f":"Import!I18234","v":0},{"$f":"Import!I18434","v":0}]
[39,{"$f":"Import!I16235","v":"Select"},{"$f":"Import!I16435","v":"Select"},{"$f":"Import!I16635","v":"Select"},{"$f":"Import!I16835","v":"Select"},{"$f":"Import!I17035","v":"Select"},{"$f":"Import!I17235","v":"Select"},{"$f":"Import!I17435","v":"Select"},{"$f":"Import!I17635","v":0},{"$f":"Import!I17835","v":0},{"$f":"Import!I18035","v":0},{"$f":"Import!I18235","v":0},{"$f":"Import!I18435","v":0}]
[40,{"$f":"Import!I16236","v":"Select"},{"$f":"Import!I16436","v":"Select"},{"$f":"Import!I16636","v":"Select"},{"$f":"Import!I16836","v":"Select"},{"$f":"Import!I17036","v":"Select"},{"$f":"Import!I17236","v":"Select"},{"$f":"Import!I17436","v":"Select"},{"$f":"Import!I17636","v":0},{"$f":"Import!I17836","v":0},{"$f":"Import!I18036","v":0},{"$f":"Import!I18236","v":0},{"$f":"Import!I18436","v":0}]
[41,{"$f":"Import!I16237","v":"Select"},{"$f":"Import!I16437","v":"Select"},{"$f":"Import!I16637","v":"Select"},{"$f":"Import!I16837","v":"Select"},{"$f":"Import!I17037","v":"Select"},{"$f":"Import!I17237","v":"Select"},{"$f":"Import!I17437","v":"Select"},{"$f":"Import!I17637","v":0},{"$f":"Import!I17837","v":0},{"$f":"Import!I18037","v":0},{"$f":"Import!I18237","v":0},{"$f":"Import!I18437","v":0}]
[42,{"$f":"Import!I16238","v":"Select"},{"$f":"Import!I16438","v":"Select"},{"$f":"Import!I16638","v":"Select"},{"$f":"Import!I16838","v":"Select"},{"$f":"Import!I17038","v":"Select"},{"$f":"Import!I17238","v":"Select"},{"$f":"Import!I17438","v":"Select"},{"$f":"Import!I17638","v":0},{"$f":"Import!I17838","v":0},{"$f":"Import!I18038","v":0},{"$f":"Import!I18238","v":0},{"$f":"Import!I18438","v":0}]
[43,{"$f":"Import!I16239","v":"Select"},{"$f":"Import!I16439","v":"Select"},{"$f":"Import!I16639","v":"Select"},{"$f":"Import!I16839","v":"Select"},{"$f":"Import!I17039","v":"Select"},{"$f":"Import!I17239","v":"Select"},{"$f":"Import!I17439","v":"Select"},{"$f":"Import!I17639","v":0},{"$f":"Import!I17839","v":0},{"$f":"Import!I18039","v":0},{"$f":"Import!I18239","v":0},{"$f":"Import!I18439","v":0}]
[44,{"$f":"Import!I16240","v":"Select"},{"$f":"Import!I16440","v":"Select"},{"$f":"Import!I16640","v":"Select"},{"$f":"Import!I16840","v":"Select"},{"$f":"Import!I17040","v":"Select"},{"$f":"Import!I17240","v":"Select"},{"$f":"Import!I17440","v":"Select"},{"$f":"Import!I17640","v":0},{"$f":"Import!I17840","v":0},{"$f":"Import!I18040","v":0},{"$f":"Import!I18240","v":0},{"$f":"Import!I18440","v":0}]
[45,{"$f":"Import!I16241","v":"Select"},{"$f":"Import!I16441","v":"Select"},{"$f":"Import!I16641","v":"Select"},{"$f":"Import!I16841","v":"Select"},{"$f":"Import!I17041","v":"Select"},{"$f":"Import!I17241","v":"Select"},{"$f":"Import!I17441","v":"Select"},{"$f":"Import!I17641","v":0},{"$f":"Import!I17841","v":0},{"$f":"Import!I18041","v":0},{"$f":"Import!I18241","v":0},{"$f":"Import!I18441","v":0}]
[46,{"$f":"Import!I16242","v":"Select"},{"$f":"Import!I16442","v":"Select"},{"$f":"Import!I16642","v":"Select"},{"$f":"Import!I16842","v":"Select"},{"$f":"Import!I17042","v":"Select"},{"$f":"Import!I17242","v":"Select"},{"$f":"Import!I17442","v":"Select"},{"$f":"Import!I17642","v":0},{"$f":"Import!I17842","v":0},{"$f":"Import!I18042","v":0},{"$f":"Import!I18242","v":0},{"$f":"Import!I18442","v":0}]
[47,{"$f":"Import!I16243","v":"Select"},{"$f":"Import!I16443","v":"Select"},{"$f":"Import!I16643","v":"Select"},{"$f":"Import!I16843","v":"Select"},{"$f":"Import!I17043","v":"Select"},{"$f":"Import!I17243","v":"Select"},{"$f":"Import!I17443","v":"Select"},{"$f":"Import!I17643","v":0},{"$f":"Import!I17843","v":0},{"$f":"Import!I18043","v":0},{"$f":"Import!I18243","v":0},{"$f":"Import!I18443","v":0}]
[48,{"$f":"Import!I16244","v":"Select"},{"$f":"Import!I16444","v":"Select"},{"$f":"Import!I16644","v":"Select"},{"$f":"Import!I16844","v":"Select"},{"$f":"Import!I17044","v":"Select"},{"$f":"Import!I17244","v":"Select"},{"$f":"Import!I17444","v":"Select"},{"$f":"Import!I17644","v":0},{"$f":"Import!I17844","v":0},{"$f":"Import!I18044","v":0},{"$f":"Import!I18244","v":0},{"$f":"Import!I18444","v":0}]
[49,{"$f":"Import!I16245","v":"Select"},{"$f":"Import!I16445","v":"Select"},{"$f":"Import!I16645","v":"Select"},{"$f":"Import!I16845","v":"Select"},{"$f":"Import!I17045","v":"Select"},{"$f":"Import!I17245","v":"Select"},{"$f":"Import!I17445","v":"Select"},{"$f":"Import!I17645","v":0},{"$f":"Import!I17845","v":0},{"$f":"Import!I18045","v":0},{"$f":"Import!I18245","v":0},{"$f":"Import!I18445","v":0}]
[50,{"$f":"Import!I16246","v":"Select"},{"$f":"Import!I16446","v":"Select"},{"$f":"Import!I16646","v":"Select"},{"$f":"Import!I16846","v":"Select"},{"$f":"Import!I17046","v":"Select"},{"$f":"Import!I17246","v":"Select"},{"$f":"Import!I17446","v":"Select"},{"$f":"Import!I17646","v":0},{"$f":"Import!I17846","v":0},{"$f":"Import!I18046","v":0},{"$f":"Import!I18246","v":0},{"$f":"Import!I18446","v":0}]
[51,{"$f":"Import!I16247","v":"Select"},{"$f":"Import!I16447","v":"Select"},{"$f":"Import!I16647","v":"Select"},{"$f":"Import!I16847","v":"Select"},{"$f":"Import!I17047","v":"Select"},{"$f":"Import!I17247","v":"Select"},{"$f":"Import!I17447","v":"Select"},{"$f":"Import!I17647","v":0},{"$f":"Import!I17847","v":0},{"$f":"Import!I18047","v":0},{"$f":"Import!I18247","v":0},{"$f":"Import!I18447","v":0}]
[52,{"$f":"Import!I16248","v":"Select"},{"$f":"Import!I16448","v":"Select"},{"$f":"Import!I16648","v":"Select"},{"$f":"Import!I16848","v":"Select"},{"$f":"Import!I17048","v":"Select"},{"$f":"Import!I17248","v":"Select"},{"$f":"Import!I17448","v":"Select"},{"$f":"Import!I17648","v":0},{"$f":"Import!I17848","v":0},{"$f":"Import!I18048","v":0},{"$f":"Import!I18248","v":0},{"$f":"Import!I18448","v":0}]
[53,{"$f":"Import!I16249","v":"Select"},{"$f":"Import!I16449","v":"Select"},{"$f":"Import!I16649","v":"Select"},{"$f":"Import!I16849","v":"Select"},{"$f":"Import!I17049","v":"Select"},{"$f":"Import!I17249","v":"Select"},{"$f":"Import!I17449","v":"Select"},{"$f":"Import!I17649","v":0},{"$f":"Import!I17849","v":0},{"$f":"Import!I18049","v":0},{"$f":"Import!I18249","v":0},{"$f":"Import!I18449","v":0}]
[54,{"$f":"Import!I16250","v":"Select"},{"$f":"Import!I16450","v":"Select"},{"$f":"Import!I16650","v":"Select"},{"$f":"Import!I16850","v":"Select"},{"$f":"Import!I17050","v":"Select"},{"$f":"Import!I17250","v":"Select"},{"$f":"Import!I17450","v":"Select"},{"$f":"Import!I17650","v":0},{"$f":"Import!I17850","v":0},{"$f":"Import!I18050","v":0},{"$f":"Import!I18250","v":0},{"$f":"Import!I18450","v":0}]
[55,{"$f":"Import!I16251","v":"Select"},{"$f":"Import!I16451","v":"Select"},{"$f":"Import!I16651","v":"Select"},{"$f":"Import!I16851","v":"Select"},{"$f":"Import!I17051","v":"Select"},{"$f":"Import!I17251","v":"Select"},{"$f":"Import!I17451","v":"Select"},{"$f":"Import!I17651","v":0},{"$f":"Import!I17851","v":0},{"$f":"Import!I18051","v":0},{"$f":"Import!I18251","v":0},{"$f":"Import!I18451","v":0}]
[56,{"$f":"Import!I16252","v":"Select"},{"$f":"Import!I16452","v":"Select"},{"$f":"Import!I16652","v":"Select"},{"$f":"Import!I16852","v":"Select"},{"$f":"Import!I17052","v":"Select"},{"$f":"Import!I17252","v":"Select"},{"$f":"Import!I17452","v":"Select"},{"$f":"Import!I17652","v":0},{"$f":"Import!I17852","v":0},{"$f":"Import!I18052","v":0},{"$f":"Import!I18252","v":0},{"$f":"Import!I18452","v":0}]
[57,{"$f":"Import!I16253","v":"Select"},{"$f":"Import!I16453","v":"Select"},{"$f":"Import!I16653","v":"Select"},{"$f":"Import!I16853","v":"Select"},{"$f":"Import!I17053","v":"Select"},{"$f":"Import!I17253","v":"Select"},{"$f":"Import!I17453","v":"Select"},{"$f":"Import!I17653","v":0},{"$f":"Import!I17853","v":0},{"$f":"Import!I18053","v":0},{"$f":"Import!I18253","v":0},{"$f":"Import!I18453","v":0}]
[58,{"$f":"Import!I16254","v":"Select"},{"$f":"Import!I16454","v":"Select"},{"$f":"Import!I16654","v":"Select"},{"$f":"Import!I16854","v":"Select"},{"$f":"Import!I17054","v":"Select"},{"$f":"Import!I17254","v":"Select"},{"$f":"Import!I17454","v":"Select"},{"$f":"Import!I17654","v":0},{"$f":"Import!I17854","v":0},{"$f":"Import!I18054","v":0},{"$f":"Import!I18254","v":0},{"$f":"Import!I18454","v":0}]
[59,{"$f":"Import!I16255","v":"Select"},{"$f":"Import!I16455","v":"Select"},{"$f":"Import!I16655","v":"Select"},{"$f":"Import!I16855","v":"Select"},{"$f":"Import!I17055","v":"Select"},{"$f":"Import!I17255","v":"Select"},{"$f":"Import!I17455","v":"Select"},{"$f":"Import!I17655","v":0},{"$f":"Import!I17855","v":0},{"$f":"Import!I18055","v":0},{"$f":"Import!I18255","v":0},{"$f":"Import!I18455","v":0}]
[60,{"$f":"Import!I16256","v":"Select"},{"$f":"Import!I16456","v":"Select"},{"$f":"Import!I16656","v":"Select"},{"$f":"Import!I16856","v":"Select"},{"$f":"Import!I17056","v":"Select"},{"$f":"Import!I17256","v":"Select"},{"$f":"Import!I17456","v":"Select"},{"$f":"Import!I17656","v":0},{"$f":"Import!I17856","v":0},{"$f":"Import!I18056","v":0},{"$f":"Import!I18256","v":0},{"$f":"Import!I18456","v":0}]
[61,{"$f":"Import!I16257","v":"Select"},{"$f":"Import!I16457","v":"Select"},{"$f":"Import!I16657","v":"Select"},{"$f":"Import!I16857","v":"Select"},{"$f":"Import!I17057","v":"Select"},{"$f":"Import!I17257","v":"Select"},{"$f":"Import!I17457","v":"Select"},{"$f":"Import!I17657","v":0},{"$f":"Import!I17857","v":0},{"$f":"Import!I18057","v":0},{"$f":"Import!I18257","v":0},{"$f":"Import!I18457","v":0}]
[62,{"$f":"Import!I16258","v":"Select"},{"$f":"Import!I16458","v":"Select"},{"$f":"Import!I16658","v":"Select"},{"$f":"Import!I16858","v":"Select"},{"$f":"Import!I17058","v":"Select"},{"$f":"Import!I17258","v":"Select"},{"$f":"Import!I17458","v":"Select"},{"$f":"Import!I17658","v":0},{"$f":"Import!I17858","v":0},{"$f":"Import!I18058","v":0},{"$f":"Import!I18258","v":0},{"$f":"Import!I18458","v":0}]
[63,{"$f":"Import!I16259","v":"Select"},{"$f":"Import!I16459","v":"Select"},{"$f":"Import!I16659","v":"Select"},{"$f":"Import!I16859","v":"Select"},{"$f":"Import!I17059","v":"Select"},{"$f":"Import!I17259","v":"Select"},{"$f":"Import!I17459","v":"Select"},{"$f":"Import!I17659","v":0},{"$f":"Import!I17859","v":0},{"$f":"Import!I18059","v":0},{"$f":"Import!I18259","v":0},{"$f":"Import!I18459","v":0}]
[64,{"$f":"Import!I16260","v":"Select"},{"$f":"Import!I16460","v":"Select"},{"$f":"Import!I16660","v":"Select"},{"$f":"Import!I16860","v":"Select"},{"$f":"Import!I17060","v":"Select"},{"$f":"Import!I17260","v":"Select"},{"$f":"Import!I17460","v":"Select"},{"$f":"Import!I17660","v":0},{"$f":"Import!I17860","v":0},{"$f":"Import!I18060","v":0},{"$f":"Import!I18260","v":0},{"$f":"Import!I18460","v":0}]
[65,{"$f":"Import!I16261","v":"Select"},{"$f":"Import!I16461","v":"Select"},{"$f":"Import!I16661","v":"Select"},{"$f":"Import!I16861","v":"Select"},{"$f":"Import!I17061","v":"Select"},{"$f":"Import!I17261","v":"Select"},{"$f":"Import!I17461","v":"Select"},{"$f":"Import!I17661","v":0},{"$f":"Import!I17861","v":0},{"$f":"Import!I18061","v":0},{"$f":"Import!I18261","v":0},{"$f":"Import!I18461","v":0}]
[66,{"$f":"Import!I16262","v":"Select"},{"$f":"Import!I16462","v":"Select"},{"$f":"Import!I16662","v":"Select"},{"$f":"Import!I16862","v":"Select"},{"$f":"Import!I17062","v":"Select"},{"$f":"Import!I17262","v":"Select"},{"$f":"Import!I17462","v":"Select"},{"$f":"Import!I17662","v":0},{"$f":"Import!I17862","v":0},{"$f":"Import!I18062","v":0},{"$f":"Import!I18262","v":0},{"$f":"Import!I18462","v":0}]
[{"$f":"A1625+1","v":67},{"$f":"Import!I16263","v":"Select"},{"$f":"Import!I16463","v":"Select"},{"$f":"Import!I16663","v":"Select"},{"$f":"Import!I16863","v":"Select"},{"$f":"Import!I17063","v":"Select"},{"$f":"Import!I17263","v":"Select"},{"$f":"Import!I17463","v":"Select"},{"$f":"Import!I17663","v":0},{"$f":"Import!I17863","v":0},{"$f":"Import!I18063","v":0},{"$f":"Import!I18263","v":0},{"$f":"Import!I18463","v":0}]
[68,{"$f":"Import!I16264","v":"Select"},{"$f":"Import!I16464","v":"Select"},{"$f":"Import!I16664","v":"Select"},{"$f":"Import!I16864","v":"Select"},{"$f":"Import!I17064","v":"Select"},{"$f":"Import!I17264","v":"Select"},{"$f":"Import!I17464","v":"Select"},{"$f":"Import!I17664","v":0},{"$f":"Import!I17864","v":0},{"$f":"Import!I18064","v":0},{"$f":"Import!I18264","v":0},{"$f":"Import!I18464","v":0}]
[69,{"$f":"Import!I16265","v":"Select"},{"$f":"Import!I16465","v":"Select"},{"$f":"Import!I16665","v":"Select"},{"$f":"Import!I16865","v":"Select"},{"$f":"Import!I17065","v":"Select"},{"$f":"Import!I17265","v":"Select"},{"$f":"Import!I17465","v":"Select"},{"$f":"Import!I17665","v":0},{"$f":"Import!I17865","v":0},{"$f":"Import!I18065","v":0},{"$f":"Import!I18265","v":0},{"$f":"Import!I18465","v":0}]
[70,{"$f":"Import!I16266","v":"Select"},{"$f":"Import!I16466","v":"Select"},{"$f":"Import!I16666","v":"Select"},{"$f":"Import!I16866","v":"Select"},{"$f":"Import!I17066","v":"Select"},{"$f":"Import!I17266","v":"Select"},{"$f":"Import!I17466","v":"Select"},{"$f":"Import!I17666","v":0},{"$f":"Import!I17866","v":0},{"$f":"Import!I18066","v":0},{"$f":"Import!I18266","v":0},{"$f":"Import!I18466","v":0}]
[71,{"$f":"Import!I16267","v":"Select"},{"$f":"Import!I16467","v":"Select"},{"$f":"Import!I16667","v":"Select"},{"$f":"Import!I16867","v":"Select"},{"$f":"Import!I17067","v":"Select"},{"$f":"Import!I17267","v":"Select"},{"$f":"Import!I17467","v":"Select"},{"$f":"Import!I17667","v":0},{"$f":"Import!I17867","v":0},{"$f":"Import!I18067","v":0},{"$f":"Import!I18267","v":0},{"$f":"Import!I18467","v":0}]
[72,{"$f":"Import!I16268","v":"Select"},{"$f":"Import!I16468","v":"Select"},{"$f":"Import!I16668","v":"Select"},{"$f":"Import!I16868","v":"Select"},{"$f":"Import!I17068","v":"Select"},{"$f":"Import!I17268","v":"Select"},{"$f":"Import!I17468","v":"Select"},{"$f":"Import!I17668","v":0},{"$f":"Import!I17868","v":0},{"$f":"Import!I18068","v":0},{"$f":"Import!I18268","v":0},{"$f":"Import!I18468","v":0}]
[73,{"$f":"Import!I16269","v":"Select"},{"$f":"Import!I16469","v":"Select"},{"$f":"Import!I16669","v":"Select"},{"$f":"Import!I16869","v":"Select"},{"$f":"Import!I17069","v":"Select"},{"$f":"Import!I17269","v":"Select"},{"$f":"Import!I17469","v":"Select"},{"$f":"Import!I17669","v":0},{"$f":"Import!I17869","v":0},{"$f":"Import!I18069","v":0},{"$f":"Import!I18269","v":0},{"$f":"Import!I18469","v":0}]
[74,{"$f":"Import!I16270","v":"Select"},{"$f":"Import!I16470","v":"Select"},{"$f":"Import!I16670","v":"Select"},{"$f":"Import!I16870","v":"Select"},{"$f":"Import!I17070","v":"Select"},{"$f":"Import!I17270","v":"Select"},{"$f":"Import!I17470","v":"Select"},{"$f":"Import!I17670","v":0},{"$f":"Import!I17870","v":0},{"$f":"Import!I18070","v":0},{"$f":"Import!I18270","v":0},{"$f":"Import!I18470","v":0}]
[75,{"$f":"Import!I16271","v":"Select"},{"$f":"Import!I16471","v":"Select"},{"$f":"Import!I16671","v":"Select"},{"$f":"Import!I16871","v":"Select"},{"$f":"Import!I17071","v":"Select"},{"$f":"Import!I17271","v":"Select"},{"$f":"Import!I17471","v":"Select"},{"$f":"Import!I17671","v":0},{"$f":"Import!I17871","v":0},{"$f":"Import!I18071","v":0},{"$f":"Import!I18271","v":0},{"$f":"Import!I18471","v":0}]
[76,{"$f":"Import!I16272","v":"Select"},{"$f":"Import!I16472","v":"Select"},{"$f":"Import!I16672","v":"Select"},{"$f":"Import!I16872","v":"Select"},{"$f":"Import!I17072","v":"Select"},{"$f":"Import!I17272","v":"Select"},{"$f":"Import!I17472","v":"Select"},{"$f":"Import!I17672","v":0},{"$f":"Import!I17872","v":0},{"$f":"Import!I18072","v":0},{"$f":"Import!I18272","v":0},{"$f":"Import!I18472","v":0}]
[77,{"$f":"Import!I16273","v":"Select"},{"$f":"Import!I16473","v":"Select"},{"$f":"Import!I16673","v":"Select"},{"$f":"Import!I16873","v":"Select"},{"$f":"Import!I17073","v":"Select"},{"$f":"Import!I17273","v":"Select"},{"$f":"Import!I17473","v":"Select"},{"$f":"Import!I17673","v":0},{"$f":"Import!I17873","v":0},{"$f":"Import!I18073","v":0},{"$f":"Import!I18273","v":0},{"$f":"Import!I18473","v":0}]
[78,{"$f":"Import!I16274","v":"Select"},{"$f":"Import!I16474","v":"Select"},{"$f":"Import!I16674","v":"Select"},{"$f":"Import!I16874","v":"Select"},{"$f":"Import!I17074","v":"Select"},{"$f":"Import!I17274","v":"Select"},{"$f":"Import!I17474","v":"Select"},{"$f":"Import!I17674","v":0},{"$f":"Import!I17874","v":0},{"$f":"Import!I18074","v":0},{"$f":"Import!I18274","v":0},{"$f":"Import!I18474","v":0}]
[79,{"$f":"Import!I16275","v":"Select"},{"$f":"Import!I16475","v":"Select"},{"$f":"Import!I16675","v":"Select"},{"$f":"Import!I16875","v":"Select"},{"$f":"Import!I17075","v":"Select"},{"$f":"Import!I17275","v":"Select"},{"$f":"Import!I17475","v":"Select"},{"$f":"Import!I17675","v":0},{"$f":"Import!I17875","v":0},{"$f":"Import!I18075","v":0},{"$f":"Import!I18275","v":0},{"$f":"Import!I18475","v":0}]
[80,{"$f":"Import!I16276","v":"Select"},{"$f":"Import!I16476","v":"Select"},{"$f":"Import!I16676","v":"Select"},{"$f":"Import!I16876","v":"Select"},{"$f":"Import!I17076","v":"Select"},{"$f":"Import!I17276","v":"Select"},{"$f":"Import!I17476","v":"Select"},{"$f":"Import!I17676","v":0},{"$f":"Import!I17876","v":0},{"$f":"Import!I18076","v":0},{"$f":"Import!I18276","v":0},{"$f":"Import!I18476","v":0}]
[81,{"$f":"Import!I16277","v":"Select"},{"$f":"Import!I16477","v":"Select"},{"$f":"Import!I16677","v":"Select"},{"$f":"Import!I16877","v":"Select"},{"$f":"Import!I17077","v":"Select"},{"$f":"Import!I17277","v":"Select"},{"$f":"Import!I17477","v":"Select"},{"$f":"Import!I17677","v":0},{"$f":"Import!I17877","v":0},{"$f":"Import!I18077","v":0},{"$f":"Import!I18277","v":0},{"$f":"Import!I18477","v":0}]
[82,{"$f":"Import!I16278","v":"Select"},{"$f":"Import!I16478","v":"Select"},{"$f":"Import!I16678","v":"Select"},{"$f":"Import!I16878","v":"Select"},{"$f":"Import!I17078","v":"Select"},{"$f":"Import!I17278","v":"Select"},{"$f":"Import!I17478","v":"Select"},{"$f":"Import!I17678","v":0},{"$f":"Import!I17878","v":0},{"$f":"Import!I18078","v":0},{"$f":"Import!I18278","v":0},{"$f":"Import!I18478","v":0}]
[83,{"$f":"Import!I16279","v":"Select"},{"$f":"Import!I16479","v":"Select"},{"$f":"Import!I16679","v":"Select"},{"$f":"Import!I16879","v":"Select"},{"$f":"Import!I17079","v":"Select"},{"$f":"Import!I17279","v":"Select"},{"$f":"Import!I17479","v":"Select"},{"$f":"Import!I17679","v":0},{"$f":"Import!I17879","v":0},{"$f":"Import!I18079","v":0},{"$f":"Import!I18279","v":0},{"$f":"Import!I18479","v":0}]
[84,{"$f":"Import!I16280","v":"Select"},{"$f":"Import!I16480","v":"Select"},{"$f":"Import!I16680","v":"Select"},{"$f":"Import!I16880","v":"Select"},{"$f":"Import!I17080","v":"Select"},{"$f":"Import!I17280","v":"Select"},{"$f":"Import!I17480","v":"Select"},{"$f":"Import!I17680","v":0},{"$f":"Import!I17880","v":0},{"$f":"Import!I18080","v":0},{"$f":"Import!I18280","v":0},{"$f":"Import!I18480","v":0}]
[85,{"$f":"Import!I16281","v":"Select"},{"$f":"Import!I16481","v":"Select"},{"$f":"Import!I16681","v":"Select"},{"$f":"Import!I16881","v":"Select"},{"$f":"Import!I17081","v":"Select"},{"$f":"Import!I17281","v":"Select"},{"$f":"Import!I17481","v":"Select"},{"$f":"Import!I17681","v":0},{"$f":"Import!I17881","v":0},{"$f":"Import!I18081","v":0},{"$f":"Import!I18281","v":0},{"$f":"Import!I18481","v":0}]
[86,{"$f":"Import!I16282","v":"Select"},{"$f":"Import!I16482","v":"Select"},{"$f":"Import!I16682","v":"Select"},{"$f":"Import!I16882","v":"Select"},{"$f":"Import!I17082","v":"Select"},{"$f":"Import!I17282","v":"Select"},{"$f":"Import!I17482","v":"Select"},{"$f":"Import!I17682","v":0},{"$f":"Import!I17882","v":0},{"$f":"Import!I18082","v":0},{"$f":"Import!I18282","v":0},{"$f":"Import!I18482","v":0}]
[87,{"$f":"Import!I16283","v":"Select"},{"$f":"Import!I16483","v":"Select"},{"$f":"Import!I16683","v":"Select"},{"$f":"Import!I16883","v":"Select"},{"$f":"Import!I17083","v":"Select"},{"$f":"Import!I17283","v":"Select"},{"$f":"Import!I17483","v":"Select"},{"$f":"Import!I17683","v":0},{"$f":"Import!I17883","v":0},{"$f":"Import!I18083","v":0},{"$f":"Import!I18283","v":0},{"$f":"Import!I18483","v":0}]
[88,{"$f":"Import!I16284","v":"Select"},{"$f":"Import!I16484","v":"Select"},{"$f":"Import!I16684","v":"Select"},{"$f":"Import!I16884","v":"Select"},{"$f":"Import!I17084","v":"Select"},{"$f":"Import!I17284","v":"Select"},{"$f":"Import!I17484","v":"Select"},{"$f":"Import!I17684","v":0},{"$f":"Import!I17884","v":0},{"$f":"Import!I18084","v":0},{"$f":"Import!I18284","v":0},{"$f":"Import!I18484","v":0}]
[89,{"$f":"Import!I16285","v":"Select"},{"$f":"Import!I16485","v":"Select"},{"$f":"Import!I16685","v":"Select"},{"$f":"Import!I16885","v":"Select"},{"$f":"Import!I17085","v":"Select"},{"$f":"Import!I17285","v":"Select"},{"$f":"Import!I17485","v":"Select"},{"$f":"Import!I17685","v":0},{"$f":"Import!I17885","v":0},{"$f":"Import!I18085","v":0},{"$f":"Import!I18285","v":0},{"$f":"Import!I18485","v":0}]
[90,{"$f":"Import!I16286","v":"Select"},{"$f":"Import!I16486","v":"Select"},{"$f":"Import!I16686","v":"Select"},{"$f":"Import!I16886","v":"Select"},{"$f":"Import!I17086","v":"Select"},{"$f":"Import!I17286","v":"Select"},{"$f":"Import!I17486","v":"Select"},{"$f":"Import!I17686","v":0},{"$f":"Import!I17886","v":0},{"$f":"Import!I18086","v":0},{"$f":"Import!I18286","v":0},{"$f":"Import!I18486","v":0}]
[91,{"$f":"Import!I16287","v":"Select"},{"$f":"Import!I16487","v":"Select"},{"$f":"Import!I16687","v":"Select"},{"$f":"Import!I16887","v":"Select"},{"$f":"Import!I17087","v":"Select"},{"$f":"Import!I17287","v":"Select"},{"$f":"Import!I17487","v":"Select"},{"$f":"Import!I17687","v":0},{"$f":"Import!I17887","v":0},{"$f":"Import!I18087","v":0},{"$f":"Import!I18287","v":0},{"$f":"Import!I18487","v":0}]
[92,{"$f":"Import!I16288","v":"Select"},{"$f":"Import!I16488","v":"Select"},{"$f":"Import!I16688","v":"Select"},{"$f":"Import!I16888","v":"Select"},{"$f":"Import!I17088","v":"Select"},{"$f":"Import!I17288","v":"Select"},{"$f":"Import!I17488","v":"Select"},{"$f":"Import!I17688","v":0},{"$f":"Import!I17888","v":0},{"$f":"Import!I18088","v":0},{"$f":"Import!I18288","v":0},{"$f":"Import!I18488","v":0}]
[93,{"$f":"Import!I16289","v":"Select"},{"$f":"Import!I16489","v":"Select"},{"$f":"Import!I16689","v":"Select"},{"$f":"Import!I16889","v":"Select"},{"$f":"Import!I17089","v":"Select"},{"$f":"Import!I17289","v":"Select"},{"$f":"Import!I17489","v":"Select"},{"$f":"Import!I17689","v":0},{"$f":"Import!I17889","v":0},{"$f":"Import!I18089","v":0},{"$f":"Import!I18289","v":0},{"$f":"Import!I18489","v":0}]
[94,{"$f":"Import!I16290","v":"Select"},{"$f":"Import!I16490","v":"Select"},{"$f":"Import!I16690","v":"Select"},{"$f":"Import!I16890","v":"Select"},{"$f":"Import!I17090","v":"Select"},{"$f":"Import!I17290","v":"Select"},{"$f":"Import!I17490","v":"Select"},{"$f":"Import!I17690","v":0},{"$f":"Import!I17890","v":0},{"$f":"Import!I18090","v":0},{"$f":"Import!I18290","v":0},{"$f":"Import!I18490","v":0}]
[95,{"$f":"Import!I16291","v":"Select"},{"$f":"Import!I16491","v":"Select"},{"$f":"Import!I16691","v":"Select"},{"$f":"Import!I16891","v":"Select"},{"$f":"Import!I17091","v":"Select"},{"$f":"Import!I17291","v":"Select"},{"$f":"Import!I17491","v":"Select"},{"$f":"Import!I17691","v":0},{"$f":"Import!I17891","v":0},{"$f":"Import!I18091","v":0},{"$f":"Import!I18291","v":0},{"$f":"Import!I18491","v":0}]
[96,{"$f":"Import!I16292","v":"Select"},{"$f":"Import!I16492","v":"Select"},{"$f":"Import!I16692","v":"Select"},{"$f":"Import!I16892","v":"Select"},{"$f":"Import!I17092","v":"Select"},{"$f":"Import!I17292","v":"Select"},{"$f":"Import!I17492","v":"Select"},{"$f":"Import!I17692","v":0},{"$f":"Import!I17892","v":0},{"$f":"Import!I18092","v":0},{"$f":"Import!I18292","v":0},{"$f":"Import!I18492","v":0}]
[97,{"$f":"Import!I16293","v":"Select"},{"$f":"Import!I16493","v":"Select"},{"$f":"Import!I16693","v":"Select"},{"$f":"Import!I16893","v":"Select"},{"$f":"Import!I17093","v":"Select"},{"$f":"Import!I17293","v":"Select"},{"$f":"Import!I17493","v":"Select"},{"$f":"Import!I17693","v":0},{"$f":"Import!I17893","v":0},{"$f":"Import!I18093","v":0},{"$f":"Import!I18293","v":0},{"$f":"Import!I18493","v":0}]
[98,{"$f":"Import!I16294","v":"Select"},{"$f":"Import!I16494","v":"Select"},{"$f":"Import!I16694","v":"Select"},{"$f":"Import!I16894","v":"Select"},{"$f":"Import!I17094","v":"Select"},{"$f":"Import!I17294","v":"Select"},{"$f":"Import!I17494","v":"Select"},{"$f":"Import!I17694","v":0},{"$f":"Import!I17894","v":0},{"$f":"Import!I18094","v":0},{"$f":"Import!I18294","v":0},{"$f":"Import!I18494","v":0}]
[99,{"$f":"Import!I16295","v":"Select"},{"$f":"Import!I16495","v":"Select"},{"$f":"Import!I16695","v":"Select"},{"$f":"Import!I16895","v":"Select"},{"$f":"Import!I17095","v":"Select"},{"$f":"Import!I17295","v":"Select"},{"$f":"Import!I17495","v":"Select"},{"$f":"Import!I17695","v":0},{"$f":"Import!I17895","v":0},{"$f":"Import!I18095","v":0},{"$f":"Import!I18295","v":0},{"$f":"Import!I18495","v":0}]
[100,{"$f":"Import!I16296","v":"Select"},{"$f":"Import!I16496","v":"Select"},{"$f":"Import!I16696","v":"Select"},{"$f":"Import!I16896","v":"Select"},{"$f":"Import!I17096","v":"Select"},{"$f":"Import!I17296","v":"Select"},{"$f":"Import!I17496","v":"Select"},{"$f":"Import!I17696","v":0},{"$f":"Import!I17896","v":0},{"$f":"Import!I18096","v":0},{"$f":"Import!I18296","v":0},{"$f":"Import!I18496","v":0}]
[101,{"$f":"Import!I16297","v":"Select"},{"$f":"Import!I16497","v":"Select"},{"$f":"Import!I16697","v":"Select"},{"$f":"Import!I16897","v":"Select"},{"$f":"Import!I17097","v":"Select"},{"$f":"Import!I17297","v":"Select"},{"$f":"Import!I17497","v":"Select"},{"$f":"Import!I17697","v":0},{"$f":"Import!I17897","v":0},{"$f":"Import!I18097","v":0},{"$f":"Import!I18297","v":0},{"$f":"Import!I18497","v":0}]
[102,{"$f":"Import!I16298","v":"Select"},{"$f":"Import!I16498","v":"Select"},{"$f":"Import!I16698","v":"Select"},{"$f":"Import!I16898","v":"Select"},{"$f":"Import!I17098","v":"Select"},{"$f":"Import!I17298","v":"Select"},{"$f":"Import!I17498","v":"Select"},{"$f":"Import!I17698","v":0},{"$f":"Import!I17898","v":0},{"$f":"Import!I18098","v":0},{"$f":"Import!I18298","v":0},{"$f":"Import!I18498","v":0}]
[103,{"$f":"Import!I16299","v":"Select"},{"$f":"Import!I16499","v":"Select"},{"$f":"Import!I16699","v":"Select"},{"$f":"Import!I16899","v":"Select"},{"$f":"Import!I17099","v":"Select"},{"$f":"Import!I17299","v":"Select"},{"$f":"Import!I17499","v":"Select"},{"$f":"Import!I17699","v":0},{"$f":"Import!I17899","v":0},{"$f":"Import!I18099","v":0},{"$f":"Import!I18299","v":0},{"$f":"Import!I18499","v":0}]
[104,{"$f":"Import!I16300","v":"Select"},{"$f":"Import!I16500","v":"Select"},{"$f":"Import!I16700","v":"Select"},{"$f":"Import!I16900","v":"Select"},{"$f":"Import!I17100","v":"Select"},{"$f":"Import!I17300","v":"Select"},{"$f":"Import!I17500","v":"Select"},{"$f":"Import!I17700","v":0},{"$f":"Import!I17900","v":0},{"$f":"Import!I18100","v":0},{"$f":"Import!I18300","v":0},{"$f":"Import!I18500","v":0}]
[105,{"$f":"Import!I16301","v":"Select"},{"$f":"Import!I16501","v":"Select"},{"$f":"Import!I16701","v":"Select"},{"$f":"Import!I16901","v":"Select"},{"$f":"Import!I17101","v":"Select"},{"$f":"Import!I17301","v":"Select"},{"$f":"Import!I17501","v":"Select"},{"$f":"Import!I17701","v":0},{"$f":"Import!I17901","v":0},{"$f":"Import!I18101","v":0},{"$f":"Import!I18301","v":0},{"$f":"Import!I18501","v":0}]
[106,{"$f":"Import!I16302","v":"Select"},{"$f":"Import!I16502","v":"Select"},{"$f":"Import!I16702","v":"Select"},{"$f":"Import!I16902","v":"Select"},{"$f":"Import!I17102","v":"Select"},{"$f":"Import!I17302","v":"Select"},{"$f":"Import!I17502","v":"Select"},{"$f":"Import!I17702","v":0},{"$f":"Import!I17902","v":0},{"$f":"Import!I18102","v":0},{"$f":"Import!I18302","v":0},{"$f":"Import!I18502","v":0}]
[107,{"$f":"Import!I16303","v":"Select"},{"$f":"Import!I16503","v":"Select"},{"$f":"Import!I16703","v":"Select"},{"$f":"Import!I16903","v":"Select"},{"$f":"Import!I17103","v":"Select"},{"$f":"Import!I17303","v":"Select"},{"$f":"Import!I17503","v":"Select"},{"$f":"Import!I17703","v":0},{"$f":"Import!I17903","v":0},{"$f":"Import!I18103","v":0},{"$f":"Import!I18303","v":0},{"$f":"Import!I18503","v":0}]
[108,{"$f":"Import!I16304","v":"Select"},{"$f":"Import!I16504","v":"Select"},{"$f":"Import!I16704","v":"Select"},{"$f":"Import!I16904","v":"Select"},{"$f":"Import!I17104","v":"Select"},{"$f":"Import!I17304","v":"Select"},{"$f":"Import!I17504","v":"Select"},{"$f":"Import!I17704","v":0},{"$f":"Import!I17904","v":0},{"$f":"Import!I18104","v":0},{"$f":"Import!I18304","v":0},{"$f":"Import!I18504","v":0}]
[109,{"$f":"Import!I16305","v":"Select"},{"$f":"Import!I16505","v":"Select"},{"$f":"Import!I16705","v":"Select"},{"$f":"Import!I16905","v":"Select"},{"$f":"Import!I17105","v":"Select"},{"$f":"Import!I17305","v":"Select"},{"$f":"Import!I17505","v":"Select"},{"$f":"Import!I17705","v":0},{"$f":"Import!I17905","v":0},{"$f":"Import!I18105","v":0},{"$f":"Import!I18305","v":0},{"$f":"Import!I18505","v":0}]
[110,{"$f":"Import!I16306","v":"Select"},{"$f":"Import!I16506","v":"Select"},{"$f":"Import!I16706","v":"Select"},{"$f":"Import!I16906","v":"Select"},{"$f":"Import!I17106","v":"Select"},{"$f":"Import!I17306","v":"Select"},{"$f":"Import!I17506","v":"Select"},{"$f":"Import!I17706","v":0},{"$f":"Import!I17906","v":0},{"$f":"Import!I18106","v":0},{"$f":"Import!I18306","v":0},{"$f":"Import!I18506","v":0}]
[111,{"$f":"Import!I16307","v":"Select"},{"$f":"Import!I16507","v":"Select"},{"$f":"Import!I16707","v":"Select"},{"$f":"Import!I16907","v":"Select"},{"$f":"Import!I17107","v":"Select"},{"$f":"Import!I17307","v":"Select"},{"$f":"Import!I17507","v":"Select"},{"$f":"Import!I17707","v":0},{"$f":"Import!I17907","v":0},{"$f":"Import!I18107","v":0},{"$f":"Import!I18307","v":0},{"$f":"Import!I18507","v":0}]
[112,{"$f":"Import!I16308","v":"Select"},{"$f":"Import!I16508","v":"Select"},{"$f":"Import!I16708","v":"Select"},{"$f":"Import!I16908","v":"Select"},{"$f":"Import!I17108","v":"Select"},{"$f":"Import!I17308","v":"Select"},{"$f":"Import!I17508","v":"Select"},{"$f":"Import!I17708","v":0},{"$f":"Import!I17908","v":0},{"$f":"Import!I18108","v":0},{"$f":"Import!I18308","v":0},{"$f":"Import!I18508","v":0}]
[113,{"$f":"Import!I16309","v":"Select"},{"$f":"Import!I16509","v":"Select"},{"$f":"Import!I16709","v":"Select"},{"$f":"Import!I16909","v":"Select"},{"$f":"Import!I17109","v":"Select"},{"$f":"Import!I17309","v":"Select"},{"$f":"Import!I17509","v":"Select"},{"$f":"Import!I17709","v":0},{"$f":"Import!I17909","v":0},{"$f":"Import!I18109","v":0},{"$f":"Import!I18309","v":0},{"$f":"Import!I18509","v":0}]
[114,{"$f":"Import!I16310","v":"Select"},{"$f":"Import!I16510","v":"Select"},{"$f":"Import!I16710","v":"Select"},{"$f":"Import!I16910","v":"Select"},{"$f":"Import!I17110","v":"Select"},{"$f":"Import!I17310","v":"Select"},{"$f":"Import!I17510","v":"Select"},{"$f":"Import!I17710","v":0},{"$f":"Import!I17910","v":0},{"$f":"Import!I18110","v":0},{"$f":"Import!I18310","v":0},{"$f":"Import!I18510","v":0}]
[115,{"$f":"Import!I16311","v":"Select"},{"$f":"Import!I16511","v":"Select"},{"$f":"Import!I16711","v":"Select"},{"$f":"Import!I16911","v":"Select"},{"$f":"Import!I17111","v":"Select"},{"$f":"Import!I17311","v":"Select"},{"$f":"Import!I17511","v":"Select"},{"$f":"Import!I17711","v":0},{"$f":"Import!I17911","v":0},{"$f":"Import!I18111","v":0},{"$f":"Import!I18311","v":0},{"$f":"Import!I18511","v":0}]
[116,{"$f":"Import!I16312","v":"Select"},{"$f":"Import!I16512","v":"Select"},{"$f":"Import!I16712","v":"Select"},{"$f":"Import!I16912","v":"Select"},{"$f":"Import!I17112","v":"Select"},{"$f":"Import!I17312","v":"Select"},{"$f":"Import!I17512","v":"Select"},{"$f":"Import!I17712","v":0},{"$f":"Import!I17912","v":0},{"$f":"Import!I18112","v":0},{"$f":"Import!I18312","v":0},{"$f":"Import!I18512","v":0}]
[117,{"$f":"Import!I16313","v":"Select"},{"$f":"Import!I16513","v":"Select"},{"$f":"Import!I16713","v":"Select"},{"$f":"Import!I16913","v":"Select"},{"$f":"Import!I17113","v":"Select"},{"$f":"Import!I17313","v":"Select"},{"$f":"Import!I17513","v":"Select"},{"$f":"Import!I17713","v":0},{"$f":"Import!I17913","v":0},{"$f":"Import!I18113","v":0},{"$f":"Import!I18313","v":0},{"$f":"Import!I18513","v":0}]
[118,{"$f":"Import!I16314","v":"Select"},{"$f":"Import!I16514","v":"Select"},{"$f":"Import!I16714","v":"Select"},{"$f":"Import!I16914","v":"Select"},{"$f":"Import!I17114","v":"Select"},{"$f":"Import!I17314","v":"Select"},{"$f":"Import!I17514","v":"Select"},{"$f":"Import!I17714","v":0},{"$f":"Import!I17914","v":0},{"$f":"Import!I18114","v":0},{"$f":"Import!I18314","v":0},{"$f":"Import!I18514","v":0}]
[119,{"$f":"Import!I16315","v":"Select"},{"$f":"Import!I16515","v":"Select"},{"$f":"Import!I16715","v":"Select"},{"$f":"Import!I16915","v":"Select"},{"$f":"Import!I17115","v":"Select"},{"$f":"Import!I17315","v":"Select"},{"$f":"Import!I17515","v":"Select"},{"$f":"Import!I17715","v":0},{"$f":"Import!I17915","v":0},{"$f":"Import!I18115","v":0},{"$f":"Import!I18315","v":0},{"$f":"Import!I18515","v":0}]
[120,{"$f":"Import!I16316","v":"Select"},{"$f":"Import!I16516","v":"Select"},{"$f":"Import!I16716","v":"Select"},{"$f":"Import!I16916","v":"Select"},{"$f":"Import!I17116","v":"Select"},{"$f":"Import!I17316","v":"Select"},{"$f":"Import!I17516","v":"Select"},{"$f":"Import!I17716","v":0},{"$f":"Import!I17916","v":0},{"$f":"Import!I18116","v":0},{"$f":"Import!I18316","v":0},{"$f":"Import!I18516","v":0}]
[121,{"$f":"Import!I16317","v":"Select"},{"$f":"Import!I16517","v":"Select"},{"$f":"Import!I16717","v":"Select"},{"$f":"Import!I16917","v":"Select"},{"$f":"Import!I17117","v":"Select"},{"$f":"Import!I17317","v":"Select"},{"$f":"Import!I17517","v":"Select"},{"$f":"Import!I17717","v":0},{"$f":"Import!I17917","v":0},{"$f":"Import!I18117","v":0},{"$f":"Import!I18317","v":0},{"$f":"Import!I18517","v":0}]
[122,{"$f":"Import!I16318","v":"Select"},{"$f":"Import!I16518","v":"Select"},{"$f":"Import!I16718","v":"Select"},{"$f":"Import!I16918","v":"Select"},{"$f":"Import!I17118","v":"Select"},{"$f":"Import!I17318","v":"Select"},{"$f":"Import!I17518","v":"Select"},{"$f":"Import!I17718","v":0},{"$f":"Import!I17918","v":0},{"$f":"Import!I18118","v":0},{"$f":"Import!I18318","v":0},{"$f":"Import!I18518","v":0}]
[123,{"$f":"Import!I16319","v":"Select"},{"$f":"Import!I16519","v":"Select"},{"$f":"Import!I16719","v":"Select"},{"$f":"Import!I16919","v":"Select"},{"$f":"Import!I17119","v":"Select"},{"$f":"Import!I17319","v":"Select"},{"$f":"Import!I17519","v":"Select"},{"$f":"Import!I17719","v":0},{"$f":"Import!I17919","v":0},{"$f":"Import!I18119","v":0},{"$f":"Import!I18319","v":0},{"$f":"Import!I18519","v":0}]
[124,{"$f":"Import!I16320","v":"Select"},{"$f":"Import!I16520","v":"Select"},{"$f":"Import!I16720","v":"Select"},{"$f":"Import!I16920","v":"Select"},{"$f":"Import!I17120","v":"Select"},{"$f":"Import!I17320","v":"Select"},{"$f":"Import!I17520","v":"Select"},{"$f":"Import!I17720","v":0},{"$f":"Import!I17920","v":0},{"$f":"Import!I18120","v":0},{"$f":"Import!I18320","v":0},{"$f":"Import!I18520","v":0}]
[125,{"$f":"Import!I16321","v":"Select"},{"$f":"Import!I16521","v":"Select"},{"$f":"Import!I16721","v":"Select"},{"$f":"Import!I16921","v":"Select"},{"$f":"Import!I17121","v":"Select"},{"$f":"Import!I17321","v":"Select"},{"$f":"Import!I17521","v":"Select"},{"$f":"Import!I17721","v":0},{"$f":"Import!I17921","v":0},{"$f":"Import!I18121","v":0},{"$f":"Import!I18321","v":0},{"$f":"Import!I18521","v":0}]
[126,{"$f":"Import!I16322","v":"Select"},{"$f":"Import!I16522","v":"Select"},{"$f":"Import!I16722","v":"Select"},{"$f":"Import!I16922","v":"Select"},{"$f":"Import!I17122","v":"Select"},{"$f":"Import!I17322","v":"Select"},{"$f":"Import!I17522","v":"Select"},{"$f":"Import!I17722","v":0},{"$f":"Import!I17922","v":0},{"$f":"Import!I18122","v":0},{"$f":"Import!I18322","v":0},{"$f":"Import!I18522","v":0}]
[127,{"$f":"Import!I16323","v":"Select"},{"$f":"Import!I16523","v":"Select"},{"$f":"Import!I16723","v":"Select"},{"$f":"Import!I16923","v":"Select"},{"$f":"Import!I17123","v":"Select"},{"$f":"Import!I17323","v":"Select"},{"$f":"Import!I17523","v":"Select"},{"$f":"Import!I17723","v":0},{"$f":"Import!I17923","v":0},{"$f":"Import!I18123","v":0},{"$f":"Import!I18323","v":0},{"$f":"Import!I18523","v":0}]
[128,{"$f":"Import!I16324","v":"Select"},{"$f":"Import!I16524","v":"Select"},{"$f":"Import!I16724","v":"Select"},{"$f":"Import!I16924","v":"Select"},{"$f":"Import!I17124","v":"Select"},{"$f":"Import!I17324","v":"Select"},{"$f":"Import!I17524","v":"Select"},{"$f":"Import!I17724","v":0},{"$f":"Import!I17924","v":0},{"$f":"Import!I18124","v":0},{"$f":"Import!I18324","v":0},{"$f":"Import!I18524","v":0}]
[129,{"$f":"Import!I16325","v":"Select"},{"$f":"Import!I16525","v":"Select"},{"$f":"Import!I16725","v":"Select"},{"$f":"Import!I16925","v":"Select"},{"$f":"Import!I17125","v":"Select"},{"$f":"Import!I17325","v":"Select"},{"$f":"Import!I17525","v":"Select"},{"$f":"Import!I17725","v":0},{"$f":"Import!I17925","v":0},{"$f":"Import!I18125","v":0},{"$f":"Import!I18325","v":0},{"$f":"Import!I18525","v":0}]
[130,{"$f":"Import!I16326","v":"Select"},{"$f":"Import!I16526","v":"Select"},{"$f":"Import!I16726","v":"Select"},{"$f":"Import!I16926","v":"Select"},{"$f":"Import!I17126","v":"Select"},{"$f":"Import!I17326","v":"Select"},{"$f":"Import!I17526","v":"Select"},{"$f":"Import!I17726","v":0},{"$f":"Import!I17926","v":0},{"$f":"Import!I18126","v":0},{"$f":"Import!I18326","v":0},{"$f":"Import!I18526","v":0}]
[{"$f":"A1689+1","v":131},{"$f":"Import!I16327","v":"Select"},{"$f":"Import!I16527","v":"Select"},{"$f":"Import!I16727","v":"Select"},{"$f":"Import!I16927","v":"Select"},{"$f":"Import!I17127","v":"Select"},{"$f":"Import!I17327","v":"Select"},{"$f":"Import!I17527","v":"Select"},{"$f":"Import!I17727","v":0},{"$f":"Import!I17927","v":0},{"$f":"Import!I18127","v":0},{"$f":"Import!I18327","v":0},{"$f":"Import!I18527","v":0}]
[132,{"$f":"Import!I16328","v":"Select"},{"$f":"Import!I16528","v":"Select"},{"$f":"Import!I16728","v":"Select"},{"$f":"Import!I16928","v":"Select"},{"$f":"Import!I17128","v":"Select"},{"$f":"Import!I17328","v":"Select"},{"$f":"Import!I17528","v":"Select"},{"$f":"Import!I17728","v":0},{"$f":"Import!I17928","v":0},{"$f":"Import!I18128","v":0},{"$f":"Import!I18328","v":0},{"$f":"Import!I18528","v":0}]
[133,{"$f":"Import!I16329","v":"Select"},{"$f":"Import!I16529","v":"Select"},{"$f":"Import!I16729","v":"Select"},{"$f":"Import!I16929","v":"Select"},{"$f":"Import!I17129","v":"Select"},{"$f":"Import!I17329","v":"Select"},{"$f":"Import!I17529","v":"Select"},{"$f":"Import!I17729","v":0},{"$f":"Import!I17929","v":0},{"$f":"Import!I18129","v":0},{"$f":"Import!I18329","v":0},{"$f":"Import!I18529","v":0}]
[134,{"$f":"Import!I16330","v":"Select"},{"$f":"Import!I16530","v":"Select"},{"$f":"Import!I16730","v":"Select"},{"$f":"Import!I16930","v":"Select"},{"$f":"Import!I17130","v":"Select"},{"$f":"Import!I17330","v":"Select"},{"$f":"Import!I17530","v":"Select"},{"$f":"Import!I17730","v":0},{"$f":"Import!I17930","v":0},{"$f":"Import!I18130","v":0},{"$f":"Import!I18330","v":0},{"$f":"Import!I18530","v":0}]
[135,{"$f":"Import!I16331","v":"Select"},{"$f":"Import!I16531","v":"Select"},{"$f":"Import!I16731","v":"Select"},{"$f":"Import!I16931","v":"Select"},{"$f":"Import!I17131","v":"Select"},{"$f":"Import!I17331","v":"Select"},{"$f":"Import!I17531","v":"Select"},{"$f":"Import!I17731","v":0},{"$f":"Import!I17931","v":0},{"$f":"Import!I18131","v":0},{"$f":"Import!I18331","v":0},{"$f":"Import!I18531","v":0}]
[136,{"$f":"Import!I16332","v":"Select"},{"$f":"Import!I16532","v":"Select"},{"$f":"Import!I16732","v":"Select"},{"$f":"Import!I16932","v":"Select"},{"$f":"Import!I17132","v":"Select"},{"$f":"Import!I17332","v":"Select"},{"$f":"Import!I17532","v":"Select"},{"$f":"Import!I17732","v":0},{"$f":"Import!I17932","v":0},{"$f":"Import!I18132","v":0},{"$f":"Import!I18332","v":0},{"$f":"Import!I18532","v":0}]
[137,{"$f":"Import!I16333","v":"Select"},{"$f":"Import!I16533","v":"Select"},{"$f":"Import!I16733","v":"Select"},{"$f":"Import!I16933","v":"Select"},{"$f":"Import!I17133","v":"Select"},{"$f":"Import!I17333","v":"Select"},{"$f":"Import!I17533","v":"Select"},{"$f":"Import!I17733","v":0},{"$f":"Import!I17933","v":0},{"$f":"Import!I18133","v":0},{"$f":"Import!I18333","v":0},{"$f":"Import!I18533","v":0}]
[138,{"$f":"Import!I16334","v":"Select"},{"$f":"Import!I16534","v":"Select"},{"$f":"Import!I16734","v":"Select"},{"$f":"Import!I16934","v":"Select"},{"$f":"Import!I17134","v":"Select"},{"$f":"Import!I17334","v":"Select"},{"$f":"Import!I17534","v":"Select"},{"$f":"Import!I17734","v":0},{"$f":"Import!I17934","v":0},{"$f":"Import!I18134","v":0},{"$f":"Import!I18334","v":0},{"$f":"Import!I18534","v":0}]
[139,{"$f":"Import!I16335","v":"Select"},{"$f":"Import!I16535","v":"Select"},{"$f":"Import!I16735","v":"Select"},{"$f":"Import!I16935","v":"Select"},{"$f":"Import!I17135","v":"Select"},{"$f":"Import!I17335","v":"Select"},{"$f":"Import!I17535","v":"Select"},{"$f":"Import!I17735","v":0},{"$f":"Import!I17935","v":0},{"$f":"Import!I18135","v":0},{"$f":"Import!I18335","v":0},{"$f":"Import!I18535","v":0}]
[140,{"$f":"Import!I16336","v":"Select"},{"$f":"Import!I16536","v":"Select"},{"$f":"Import!I16736","v":"Select"},{"$f":"Import!I16936","v":"Select"},{"$f":"Import!I17136","v":"Select"},{"$f":"Import!I17336","v":"Select"},{"$f":"Import!I17536","v":"Select"},{"$f":"Import!I17736","v":0},{"$f":"Import!I17936","v":0},{"$f":"Import!I18136","v":0},{"$f":"Import!I18336","v":0},{"$f":"Import!I18536","v":0}]
[141,{"$f":"Import!I16337","v":"Select"},{"$f":"Import!I16537","v":"Select"},{"$f":"Import!I16737","v":"Select"},{"$f":"Import!I16937","v":"Select"},{"$f":"Import!I17137","v":"Select"},{"$f":"Import!I17337","v":"Select"},{"$f":"Import!I17537","v":"Select"},{"$f":"Import!I17737","v":0},{"$f":"Import!I17937","v":0},{"$f":"Import!I18137","v":0},{"$f":"Import!I18337","v":0},{"$f":"Import!I18537","v":0}]
[142,{"$f":"Import!I16338","v":"Select"},{"$f":"Import!I16538","v":"Select"},{"$f":"Import!I16738","v":"Select"},{"$f":"Import!I16938","v":"Select"},{"$f":"Import!I17138","v":"Select"},{"$f":"Import!I17338","v":"Select"},{"$f":"Import!I17538","v":"Select"},{"$f":"Import!I17738","v":0},{"$f":"Import!I17938","v":0},{"$f":"Import!I18138","v":0},{"$f":"Import!I18338","v":0},{"$f":"Import!I18538","v":0}]
[143,{"$f":"Import!I16339","v":"Select"},{"$f":"Import!I16539","v":"Select"},{"$f":"Import!I16739","v":"Select"},{"$f":"Import!I16939","v":"Select"},{"$f":"Import!I17139","v":"Select"},{"$f":"Import!I17339","v":"Select"},{"$f":"Import!I17539","v":"Select"},{"$f":"Import!I17739","v":0},{"$f":"Import!I17939","v":0},{"$f":"Import!I18139","v":0},{"$f":"Import!I18339","v":0},{"$f":"Import!I18539","v":0}]
[144,{"$f":"Import!I16340","v":"Select"},{"$f":"Import!I16540","v":"Select"},{"$f":"Import!I16740","v":"Select"},{"$f":"Import!I16940","v":"Select"},{"$f":"Import!I17140","v":"Select"},{"$f":"Import!I17340","v":"Select"},{"$f":"Import!I17540","v":"Select"},{"$f":"Import!I17740","v":0},{"$f":"Import!I17940","v":0},{"$f":"Import!I18140","v":0},{"$f":"Import!I18340","v":0},{"$f":"Import!I18540","v":0}]
[145,{"$f":"Import!I16341","v":"Select"},{"$f":"Import!I16541","v":"Select"},{"$f":"Import!I16741","v":"Select"},{"$f":"Import!I16941","v":"Select"},{"$f":"Import!I17141","v":"Select"},{"$f":"Import!I17341","v":"Select"},{"$f":"Import!I17541","v":"Select"},{"$f":"Import!I17741","v":0},{"$f":"Import!I17941","v":0},{"$f":"Import!I18141","v":0},{"$f":"Import!I18341","v":0},{"$f":"Import!I18541","v":0}]
[146,{"$f":"Import!I16342","v":"Select"},{"$f":"Import!I16542","v":"Select"},{"$f":"Import!I16742","v":"Select"},{"$f":"Import!I16942","v":"Select"},{"$f":"Import!I17142","v":"Select"},{"$f":"Import!I17342","v":"Select"},{"$f":"Import!I17542","v":"Select"},{"$f":"Import!I17742","v":0},{"$f":"Import!I17942","v":0},{"$f":"Import!I18142","v":0},{"$f":"Import!I18342","v":0},{"$f":"Import!I18542","v":0}]
[147,{"$f":"Import!I16343","v":"Select"},{"$f":"Import!I16543","v":"Select"},{"$f":"Import!I16743","v":"Select"},{"$f":"Import!I16943","v":"Select"},{"$f":"Import!I17143","v":"Select"},{"$f":"Import!I17343","v":"Select"},{"$f":"Import!I17543","v":"Select"},{"$f":"Import!I17743","v":0},{"$f":"Import!I17943","v":0},{"$f":"Import!I18143","v":0},{"$f":"Import!I18343","v":0},{"$f":"Import!I18543","v":0}]
[148,{"$f":"Import!I16344","v":"Select"},{"$f":"Import!I16544","v":"Select"},{"$f":"Import!I16744","v":"Select"},{"$f":"Import!I16944","v":"Select"},{"$f":"Import!I17144","v":"Select"},{"$f":"Import!I17344","v":"Select"},{"$f":"Import!I17544","v":"Select"},{"$f":"Import!I17744","v":0},{"$f":"Import!I17944","v":0},{"$f":"Import!I18144","v":0},{"$f":"Import!I18344","v":0},{"$f":"Import!I18544","v":0}]
[149,{"$f":"Import!I16345","v":"Select"},{"$f":"Import!I16545","v":"Select"},{"$f":"Import!I16745","v":"Select"},{"$f":"Import!I16945","v":"Select"},{"$f":"Import!I17145","v":"Select"},{"$f":"Import!I17345","v":"Select"},{"$f":"Import!I17545","v":"Select"},{"$f":"Import!I17745","v":0},{"$f":"Import!I17945","v":0},{"$f":"Import!I18145","v":0},{"$f":"Import!I18345","v":0},{"$f":"Import!I18545","v":0}]
[150,{"$f":"Import!I16346","v":"Select"},{"$f":"Import!I16546","v":"Select"},{"$f":"Import!I16746","v":"Select"},{"$f":"Import!I16946","v":"Select"},{"$f":"Import!I17146","v":"Select"},{"$f":"Import!I17346","v":"Select"},{"$f":"Import!I17546","v":"Select"},{"$f":"Import!I17746","v":0},{"$f":"Import!I17946","v":0},{"$f":"Import!I18146","v":0},{"$f":"Import!I18346","v":0},{"$f":"Import!I18546","v":0}]
[151,{"$f":"Import!I16347","v":"Select"},{"$f":"Import!I16547","v":"Select"},{"$f":"Import!I16747","v":"Select"},{"$f":"Import!I16947","v":"Select"},{"$f":"Import!I17147","v":"Select"},{"$f":"Import!I17347","v":"Select"},{"$f":"Import!I17547","v":"Select"},{"$f":"Import!I17747","v":0},{"$f":"Import!I17947","v":0},{"$f":"Import!I18147","v":0},{"$f":"Import!I18347","v":0},{"$f":"Import!I18547","v":0}]
[152,{"$f":"Import!I16348","v":"Select"},{"$f":"Import!I16548","v":"Select"},{"$f":"Import!I16748","v":"Select"},{"$f":"Import!I16948","v":"Select"},{"$f":"Import!I17148","v":"Select"},{"$f":"Import!I17348","v":"Select"},{"$f":"Import!I17548","v":"Select"},{"$f":"Import!I17748","v":0},{"$f":"Import!I17948","v":0},{"$f":"Import!I18148","v":0},{"$f":"Import!I18348","v":0},{"$f":"Import!I18548","v":0}]
[153,{"$f":"Import!I16349","v":"Select"},{"$f":"Import!I16549","v":"Select"},{"$f":"Import!I16749","v":"Select"},{"$f":"Import!I16949","v":"Select"},{"$f":"Import!I17149","v":"Select"},{"$f":"Import!I17349","v":"Select"},{"$f":"Import!I17549","v":"Select"},{"$f":"Import!I17749","v":0},{"$f":"Import!I17949","v":0},{"$f":"Import!I18149","v":0},{"$f":"Import!I18349","v":0},{"$f":"Import!I18549","v":0}]
[154,{"$f":"Import!I16350","v":"Select"},{"$f":"Import!I16550","v":"Select"},{"$f":"Import!I16750","v":"Select"},{"$f":"Import!I16950","v":"Select"},{"$f":"Import!I17150","v":"Select"},{"$f":"Import!I17350","v":"Select"},{"$f":"Import!I17550","v":"Select"},{"$f":"Import!I17750","v":0},{"$f":"Import!I17950","v":0},{"$f":"Import!I18150","v":0},{"$f":"Import!I18350","v":0},{"$f":"Import!I18550","v":0}]
[155,{"$f":"Import!I16351","v":"Select"},{"$f":"Import!I16551","v":"Select"},{"$f":"Import!I16751","v":"Select"},{"$f":"Import!I16951","v":"Select"},{"$f":"Import!I17151","v":"Select"},{"$f":"Import!I17351","v":"Select"},{"$f":"Import!I17551","v":"Select"},{"$f":"Import!I17751","v":0},{"$f":"Import!I17951","v":0},{"$f":"Import!I18151","v":0},{"$f":"Import!I18351","v":0},{"$f":"Import!I18551","v":0}]
[156,{"$f":"Import!I16352","v":"Select"},{"$f":"Import!I16552","v":"Select"},{"$f":"Import!I16752","v":"Select"},{"$f":"Import!I16952","v":"Select"},{"$f":"Import!I17152","v":"Select"},{"$f":"Import!I17352","v":"Select"},{"$f":"Import!I17552","v":"Select"},{"$f":"Import!I17752","v":0},{"$f":"Import!I17952","v":0},{"$f":"Import!I18152","v":0},{"$f":"Import!I18352","v":0},{"$f":"Import!I18552","v":0}]
[157,{"$f":"Import!I16353","v":"Select"},{"$f":"Import!I16553","v":"Select"},{"$f":"Import!I16753","v":"Select"},{"$f":"Import!I16953","v":"Select"},{"$f":"Import!I17153","v":"Select"},{"$f":"Import!I17353","v":"Select"},{"$f":"Import!I17553","v":"Select"},{"$f":"Import!I17753","v":0},{"$f":"Import!I17953","v":0},{"$f":"Import!I18153","v":0},{"$f":"Import!I18353","v":0},{"$f":"Import!I18553","v":0}]
[158,{"$f":"Import!I16354","v":"Select"},{"$f":"Import!I16554","v":"Select"},{"$f":"Import!I16754","v":"Select"},{"$f":"Import!I16954","v":"Select"},{"$f":"Import!I17154","v":"Select"},{"$f":"Import!I17354","v":"Select"},{"$f":"Import!I17554","v":"Select"},{"$f":"Import!I17754","v":0},{"$f":"Import!I17954","v":0},{"$f":"Import!I18154","v":0},{"$f":"Import!I18354","v":0},{"$f":"Import!I18554","v":0}]
[159,{"$f":"Import!I16355","v":"Select"},{"$f":"Import!I16555","v":"Select"},{"$f":"Import!I16755","v":"Select"},{"$f":"Import!I16955","v":"Select"},{"$f":"Import!I17155","v":"Select"},{"$f":"Import!I17355","v":"Select"},{"$f":"Import!I17555","v":"Select"},{"$f":"Import!I17755","v":0},{"$f":"Import!I17955","v":0},{"$f":"Import!I18155","v":0},{"$f":"Import!I18355","v":0},{"$f":"Import!I18555","v":0}]
[160,{"$f":"Import!I16356","v":"Select"},{"$f":"Import!I16556","v":"Select"},{"$f":"Import!I16756","v":"Select"},{"$f":"Import!I16956","v":"Select"},{"$f":"Import!I17156","v":"Select"},{"$f":"Import!I17356","v":"Select"},{"$f":"Import!I17556","v":"Select"},{"$f":"Import!I17756","v":0},{"$f":"Import!I17956","v":0},{"$f":"Import!I18156","v":0},{"$f":"Import!I18356","v":0},{"$f":"Import!I18556","v":0}]
[161,{"$f":"Import!I16357","v":"Select"},{"$f":"Import!I16557","v":"Select"},{"$f":"Import!I16757","v":"Select"},{"$f":"Import!I16957","v":"Select"},{"$f":"Import!I17157","v":"Select"},{"$f":"Import!I17357","v":"Select"},{"$f":"Import!I17557","v":"Select"},{"$f":"Import!I17757","v":0},{"$f":"Import!I17957","v":0},{"$f":"Import!I18157","v":0},{"$f":"Import!I18357","v":0},{"$f":"Import!I18557","v":0}]
[162,{"$f":"Import!I16358","v":"Select"},{"$f":"Import!I16558","v":"Select"},{"$f":"Import!I16758","v":"Select"},{"$f":"Import!I16958","v":"Select"},{"$f":"Import!I17158","v":"Select"},{"$f":"Import!I17358","v":"Select"},{"$f":"Import!I17558","v":"Select"},{"$f":"Import!I17758","v":0},{"$f":"Import!I17958","v":0},{"$f":"Import!I18158","v":0},{"$f":"Import!I18358","v":0},{"$f":"Import!I18558","v":0}]
[163,{"$f":"Import!I16359","v":"Select"},{"$f":"Import!I16559","v":"Select"},{"$f":"Import!I16759","v":"Select"},{"$f":"Import!I16959","v":"Select"},{"$f":"Import!I17159","v":"Select"},{"$f":"Import!I17359","v":"Select"},{"$f":"Import!I17559","v":"Select"},{"$f":"Import!I17759","v":0},{"$f":"Import!I17959","v":0},{"$f":"Import!I18159","v":0},{"$f":"Import!I18359","v":0},{"$f":"Import!I18559","v":0}]
[164,{"$f":"Import!I16360","v":"Select"},{"$f":"Import!I16560","v":"Select"},{"$f":"Import!I16760","v":"Select"},{"$f":"Import!I16960","v":"Select"},{"$f":"Import!I17160","v":"Select"},{"$f":"Import!I17360","v":"Select"},{"$f":"Import!I17560","v":"Select"},{"$f":"Import!I17760","v":0},{"$f":"Import!I17960","v":0},{"$f":"Import!I18160","v":0},{"$f":"Import!I18360","v":0},{"$f":"Import!I18560","v":0}]
[165,{"$f":"Import!I16361","v":"Select"},{"$f":"Import!I16561","v":"Select"},{"$f":"Import!I16761","v":"Select"},{"$f":"Import!I16961","v":"Select"},{"$f":"Import!I17161","v":"Select"},{"$f":"Import!I17361","v":"Select"},{"$f":"Import!I17561","v":"Select"},{"$f":"Import!I17761","v":0},{"$f":"Import!I17961","v":0},{"$f":"Import!I18161","v":0},{"$f":"Import!I18361","v":0},{"$f":"Import!I18561","v":0}]
[166,{"$f":"Import!I16362","v":"Select"},{"$f":"Import!I16562","v":"Select"},{"$f":"Import!I16762","v":"Select"},{"$f":"Import!I16962","v":"Select"},{"$f":"Import!I17162","v":"Select"},{"$f":"Import!I17362","v":"Select"},{"$f":"Import!I17562","v":"Select"},{"$f":"Import!I17762","v":0},{"$f":"Import!I17962","v":0},{"$f":"Import!I18162","v":0},{"$f":"Import!I18362","v":0},{"$f":"Import!I18562","v":0}]
[167,{"$f":"Import!I16363","v":"Select"},{"$f":"Import!I16563","v":"Select"},{"$f":"Import!I16763","v":"Select"},{"$f":"Import!I16963","v":"Select"},{"$f":"Import!I17163","v":"Select"},{"$f":"Import!I17363","v":"Select"},{"$f":"Import!I17563","v":"Select"},{"$f":"Import!I17763","v":0},{"$f":"Import!I17963","v":0},{"$f":"Import!I18163","v":0},{"$f":"Import!I18363","v":0},{"$f":"Import!I18563","v":0}]
[168,{"$f":"Import!I16364","v":"Select"},{"$f":"Import!I16564","v":"Select"},{"$f":"Import!I16764","v":"Select"},{"$f":"Import!I16964","v":"Select"},{"$f":"Import!I17164","v":"Select"},{"$f":"Import!I17364","v":"Select"},{"$f":"Import!I17564","v":"Select"},{"$f":"Import!I17764","v":0},{"$f":"Import!I17964","v":0},{"$f":"Import!I18164","v":0},{"$f":"Import!I18364","v":0},{"$f":"Import!I18564","v":0}]
[169,{"$f":"Import!I16365","v":"Select"},{"$f":"Import!I16565","v":"Select"},{"$f":"Import!I16765","v":"Select"},{"$f":"Import!I16965","v":"Select"},{"$f":"Import!I17165","v":"Select"},{"$f":"Import!I17365","v":"Select"},{"$f":"Import!I17565","v":"Select"},{"$f":"Import!I17765","v":0},{"$f":"Import!I17965","v":0},{"$f":"Import!I18165","v":0},{"$f":"Import!I18365","v":0},{"$f":"Import!I18565","v":0}]
[170,{"$f":"Import!I16366","v":"Select"},{"$f":"Import!I16566","v":"Select"},{"$f":"Import!I16766","v":"Select"},{"$f":"Import!I16966","v":"Select"},{"$f":"Import!I17166","v":"Select"},{"$f":"Import!I17366","v":"Select"},{"$f":"Import!I17566","v":"Select"},{"$f":"Import!I17766","v":0},{"$f":"Import!I17966","v":0},{"$f":"Import!I18166","v":0},{"$f":"Import!I18366","v":0},{"$f":"Import!I18566","v":0}]
[171,{"$f":"Import!I16367","v":"Select"},{"$f":"Import!I16567","v":"Select"},{"$f":"Import!I16767","v":"Select"},{"$f":"Import!I16967","v":"Select"},{"$f":"Import!I17167","v":"Select"},{"$f":"Import!I17367","v":"Select"},{"$f":"Import!I17567","v":"Select"},{"$f":"Import!I17767","v":0},{"$f":"Import!I17967","v":0},{"$f":"Import!I18167","v":0},{"$f":"Import!I18367","v":0},{"$f":"Import!I18567","v":0}]
[172,{"$f":"Import!I16368","v":"Select"},{"$f":"Import!I16568","v":"Select"},{"$f":"Import!I16768","v":"Select"},{"$f":"Import!I16968","v":"Select"},{"$f":"Import!I17168","v":"Select"},{"$f":"Import!I17368","v":"Select"},{"$f":"Import!I17568","v":"Select"},{"$f":"Import!I17768","v":0},{"$f":"Import!I17968","v":0},{"$f":"Import!I18168","v":0},{"$f":"Import!I18368","v":0},{"$f":"Import!I18568","v":0}]
[173,{"$f":"Import!I16369","v":"Select"},{"$f":"Import!I16569","v":"Select"},{"$f":"Import!I16769","v":"Select"},{"$f":"Import!I16969","v":"Select"},{"$f":"Import!I17169","v":"Select"},{"$f":"Import!I17369","v":"Select"},{"$f":"Import!I17569","v":"Select"},{"$f":"Import!I17769","v":0},{"$f":"Import!I17969","v":0},{"$f":"Import!I18169","v":0},{"$f":"Import!I18369","v":0},{"$f":"Import!I18569","v":0}]
[174,{"$f":"Import!I16370","v":"Select"},{"$f":"Import!I16570","v":"Select"},{"$f":"Import!I16770","v":"Select"},{"$f":"Import!I16970","v":"Select"},{"$f":"Import!I17170","v":"Select"},{"$f":"Import!I17370","v":"Select"},{"$f":"Import!I17570","v":"Select"},{"$f":"Import!I17770","v":0},{"$f":"Import!I17970","v":0},{"$f":"Import!I18170","v":0},{"$f":"Import!I18370","v":0},{"$f":"Import!I18570","v":0}]
[175,{"$f":"Import!I16371","v":"Select"},{"$f":"Import!I16571","v":"Select"},{"$f":"Import!I16771","v":"Select"},{"$f":"Import!I16971","v":"Select"},{"$f":"Import!I17171","v":"Select"},{"$f":"Import!I17371","v":"Select"},{"$f":"Import!I17571","v":"Select"},{"$f":"Import!I17771","v":0},{"$f":"Import!I17971","v":0},{"$f":"Import!I18171","v":0},{"$f":"Import!I18371","v":0},{"$f":"Import!I18571","v":0}]
[176,{"$f":"Import!I16372","v":"Select"},{"$f":"Import!I16572","v":"Select"},{"$f":"Import!I16772","v":"Select"},{"$f":"Import!I16972","v":"Select"},{"$f":"Import!I17172","v":"Select"},{"$f":"Import!I17372","v":"Select"},{"$f":"Import!I17572","v":"Select"},{"$f":"Import!I17772","v":0},{"$f":"Import!I17972","v":0},{"$f":"Import!I18172","v":0},{"$f":"Import!I18372","v":0},{"$f":"Import!I18572","v":0}]
[177,{"$f":"Import!I16373","v":"Select"},{"$f":"Import!I16573","v":"Select"},{"$f":"Import!I16773","v":"Select"},{"$f":"Import!I16973","v":"Select"},{"$f":"Import!I17173","v":"Select"},{"$f":"Import!I17373","v":"Select"},{"$f":"Import!I17573","v":"Select"},{"$f":"Import!I17773","v":0},{"$f":"Import!I17973","v":0},{"$f":"Import!I18173","v":0},{"$f":"Import!I18373","v":0},{"$f":"Import!I18573","v":0}]
[178,{"$f":"Import!I16374","v":"Select"},{"$f":"Import!I16574","v":"Select"},{"$f":"Import!I16774","v":"Select"},{"$f":"Import!I16974","v":"Select"},{"$f":"Import!I17174","v":"Select"},{"$f":"Import!I17374","v":"Select"},{"$f":"Import!I17574","v":"Select"},{"$f":"Import!I17774","v":0},{"$f":"Import!I17974","v":0},{"$f":"Import!I18174","v":0},{"$f":"Import!I18374","v":0},{"$f":"Import!I18574","v":0}]
[179,{"$f":"Import!I16375","v":"Select"},{"$f":"Import!I16575","v":"Select"},{"$f":"Import!I16775","v":"Select"},{"$f":"Import!I16975","v":"Select"},{"$f":"Import!I17175","v":"Select"},{"$f":"Import!I17375","v":"Select"},{"$f":"Import!I17575","v":"Select"},{"$f":"Import!I17775","v":0},{"$f":"Import!I17975","v":0},{"$f":"Import!I18175","v":0},{"$f":"Import!I18375","v":0},{"$f":"Import!I18575","v":0}]
[180,{"$f":"Import!I16376","v":"Select"},{"$f":"Import!I16576","v":"Select"},{"$f":"Import!I16776","v":"Select"},{"$f":"Import!I16976","v":"Select"},{"$f":"Import!I17176","v":"Select"},{"$f":"Import!I17376","v":"Select"},{"$f":"Import!I17576","v":"Select"},{"$f":"Import!I17776","v":0},{"$f":"Import!I17976","v":0},{"$f":"Import!I18176","v":0},{"$f":"Import!I18376","v":0},{"$f":"Import!I18576","v":0}]
[181,{"$f":"Import!I16377","v":"Select"},{"$f":"Import!I16577","v":"Select"},{"$f":"Import!I16777","v":"Select"},{"$f":"Import!I16977","v":"Select"},{"$f":"Import!I17177","v":"Select"},{"$f":"Import!I17377","v":"Select"},{"$f":"Import!I17577","v":"Select"},{"$f":"Import!I17777","v":0},{"$f":"Import!I17977","v":0},{"$f":"Import!I18177","v":0},{"$f":"Import!I18377","v":0},{"$f":"Import!I18577","v":0}]
[182,{"$f":"Import!I16378","v":"Select"},{"$f":"Import!I16578","v":"Select"},{"$f":"Import!I16778","v":"Select"},{"$f":"Import!I16978","v":"Select"},{"$f":"Import!I17178","v":"Select"},{"$f":"Import!I17378","v":"Select"},{"$f":"Import!I17578","v":"Select"},{"$f":"Import!I17778","v":0},{"$f":"Import!I17978","v":0},{"$f":"Import!I18178","v":0},{"$f":"Import!I18378","v":0},{"$f":"Import!I18578","v":0}]
[183,{"$f":"Import!I16379","v":"Select"},{"$f":"Import!I16579","v":"Select"},{"$f":"Import!I16779","v":"Select"},{"$f":"Import!I16979","v":"Select"},{"$f":"Import!I17179","v":"Select"},{"$f":"Import!I17379","v":"Select"},{"$f":"Import!I17579","v":"Select"},{"$f":"Import!I17779","v":0},{"$f":"Import!I17979","v":0},{"$f":"Import!I18179","v":0},{"$f":"Import!I18379","v":0},{"$f":"Import!I18579","v":0}]
[184,{"$f":"Import!I16380","v":"Select"},{"$f":"Import!I16580","v":"Select"},{"$f":"Import!I16780","v":"Select"},{"$f":"Import!I16980","v":"Select"},{"$f":"Import!I17180","v":"Select"},{"$f":"Import!I17380","v":"Select"},{"$f":"Import!I17580","v":"Select"},{"$f":"Import!I17780","v":0},{"$f":"Import!I17980","v":0},{"$f":"Import!I18180","v":0},{"$f":"Import!I18380","v":0},{"$f":"Import!I18580","v":0}]
[185,{"$f":"Import!I16381","v":"Select"},{"$f":"Import!I16581","v":"Select"},{"$f":"Import!I16781","v":"Select"},{"$f":"Import!I16981","v":"Select"},{"$f":"Import!I17181","v":"Select"},{"$f":"Import!I17381","v":"Select"},{"$f":"Import!I17581","v":"Select"},{"$f":"Import!I17781","v":0},{"$f":"Import!I17981","v":0},{"$f":"Import!I18181","v":0},{"$f":"Import!I18381","v":0},{"$f":"Import!I18581","v":0}]
[186,{"$f":"Import!I16382","v":"Select"},{"$f":"Import!I16582","v":"Select"},{"$f":"Import!I16782","v":"Select"},{"$f":"Import!I16982","v":"Select"},{"$f":"Import!I17182","v":"Select"},{"$f":"Import!I17382","v":"Select"},{"$f":"Import!I17582","v":"Select"},{"$f":"Import!I17782","v":0},{"$f":"Import!I17982","v":0},{"$f":"Import!I18182","v":0},{"$f":"Import!I18382","v":0},{"$f":"Import!I18582","v":0}]
[187,{"$f":"Import!I16383","v":"Select"},{"$f":"Import!I16583","v":"Select"},{"$f":"Import!I16783","v":"Select"},{"$f":"Import!I16983","v":"Select"},{"$f":"Import!I17183","v":"Select"},{"$f":"Import!I17383","v":"Select"},{"$f":"Import!I17583","v":"Select"},{"$f":"Import!I17783","v":0},{"$f":"Import!I17983","v":0},{"$f":"Import!I18183","v":0},{"$f":"Import!I18383","v":0},{"$f":"Import!I18583","v":0}]
[188,{"$f":"Import!I16384","v":"Select"},{"$f":"Import!I16584","v":"Select"},{"$f":"Import!I16784","v":"Select"},{"$f":"Import!I16984","v":"Select"},{"$f":"Import!I17184","v":"Select"},{"$f":"Import!I17384","v":"Select"},{"$f":"Import!I17584","v":"Select"},{"$f":"Import!I17784","v":0},{"$f":"Import!I17984","v":0},{"$f":"Import!I18184","v":0},{"$f":"Import!I18384","v":0},{"$f":"Import!I18584","v":0}]
[189,{"$f":"Import!I16385","v":"Select"},{"$f":"Import!I16585","v":"Select"},{"$f":"Import!I16785","v":"Select"},{"$f":"Import!I16985","v":"Select"},{"$f":"Import!I17185","v":"Select"},{"$f":"Import!I17385","v":"Select"},{"$f":"Import!I17585","v":"Select"},{"$f":"Import!I17785","v":0},{"$f":"Import!I17985","v":0},{"$f":"Import!I18185","v":0},{"$f":"Import!I18385","v":0},{"$f":"Import!I18585","v":0}]
[190,{"$f":"Import!I16386","v":"Select"},{"$f":"Import!I16586","v":"Select"},{"$f":"Import!I16786","v":"Select"},{"$f":"Import!I16986","v":"Select"},{"$f":"Import!I17186","v":"Select"},{"$f":"Import!I17386","v":"Select"},{"$f":"Import!I17586","v":"Select"},{"$f":"Import!I17786","v":0},{"$f":"Import!I17986","v":0},{"$f":"Import!I18186","v":0},{"$f":"Import!I18386","v":0},{"$f":"Import!I18586","v":0}]
[191,{"$f":"Import!I16387","v":"Select"},{"$f":"Import!I16587","v":"Select"},{"$f":"Import!I16787","v":"Select"},{"$f":"Import!I16987","v":"Select"},{"$f":"Import!I17187","v":"Select"},{"$f":"Import!I17387","v":"Select"},{"$f":"Import!I17587","v":"Select"},{"$f":"Import!I17787","v":0},{"$f":"Import!I17987","v":0},{"$f":"Import!I18187","v":0},{"$f":"Import!I18387","v":0},{"$f":"Import!I18587","v":0}]
[192,{"$f":"Import!I16388","v":"Select"},{"$f":"Import!I16588","v":"Select"},{"$f":"Import!I16788","v":"Select"},{"$f":"Import!I16988","v":"Select"},{"$f":"Import!I17188","v":"Select"},{"$f":"Import!I17388","v":"Select"},{"$f":"Import!I17588","v":"Select"},{"$f":"Import!I17788","v":0},{"$f":"Import!I17988","v":0},{"$f":"Import!I18188","v":0},{"$f":"Import!I18388","v":0},{"$f":"Import!I18588","v":0}]
[193,{"$f":"Import!I16389","v":"Select"},{"$f":"Import!I16589","v":"Select"},{"$f":"Import!I16789","v":"Select"},{"$f":"Import!I16989","v":"Select"},{"$f":"Import!I17189","v":"Select"},{"$f":"Import!I17389","v":"Select"},{"$f":"Import!I17589","v":"Select"},{"$f":"Import!I17789","v":0},{"$f":"Import!I17989","v":0},{"$f":"Import!I18189","v":0},{"$f":"Import!I18389","v":0},{"$f":"Import!I18589","v":0}]
[194,{"$f":"Import!I16390","v":"Select"},{"$f":"Import!I16590","v":"Select"},{"$f":"Import!I16790","v":"Select"},{"$f":"Import!I16990","v":"Select"},{"$f":"Import!I17190","v":"Select"},{"$f":"Import!I17390","v":"Select"},{"$f":"Import!I17590","v":"Select"},{"$f":"Import!I17790","v":0},{"$f":"Import!I17990","v":0},{"$f":"Import!I18190","v":0},{"$f":"Import!I18390","v":0},{"$f":"Import!I18590","v":0}]
[{"$f":"A1753+1","v":195},{"$f":"Import!I16391","v":"Select"},{"$f":"Import!I16591","v":"Select"},{"$f":"Import!I16791","v":"Select"},{"$f":"Import!I16991","v":"Select"},{"$f":"Import!I17191","v":"Select"},{"$f":"Import!I17391","v":"Select"},{"$f":"Import!I17591","v":"Select"},{"$f":"Import!I17791","v":0},{"$f":"Import!I17991","v":0},{"$f":"Import!I18191","v":0},{"$f":"Import!I18391","v":0},{"$f":"Import!I18591","v":0}]
[196,{"$f":"Import!I16392","v":"Select"},{"$f":"Import!I16592","v":"Select"},{"$f":"Import!I16792","v":"Select"},{"$f":"Import!I16992","v":"Select"},{"$f":"Import!I17192","v":"Select"},{"$f":"Import!I17392","v":"Select"},{"$f":"Import!I17592","v":"Select"},{"$f":"Import!I17792","v":0},{"$f":"Import!I17992","v":0},{"$f":"Import!I18192","v":0},{"$f":"Import!I18392","v":0},{"$f":"Import!I18592","v":0}]
[197,{"$f":"Import!I16393","v":"Select"},{"$f":"Import!I16593","v":"Select"},{"$f":"Import!I16793","v":"Select"},{"$f":"Import!I16993","v":"Select"},{"$f":"Import!I17193","v":"Select"},{"$f":"Import!I17393","v":"Select"},{"$f":"Import!I17593","v":"Select"},{"$f":"Import!I17793","v":0},{"$f":"Import!I17993","v":0},{"$f":"Import!I18193","v":0},{"$f":"Import!I18393","v":0},{"$f":"Import!I18593","v":0}]
[198,{"$f":"Import!I16394","v":"Select"},{"$f":"Import!I16594","v":"Select"},{"$f":"Import!I16794","v":"Select"},{"$f":"Import!I16994","v":"Select"},{"$f":"Import!I17194","v":"Select"},{"$f":"Import!I17394","v":"Select"},{"$f":"Import!I17594","v":"Select"},{"$f":"Import!I17794","v":0},{"$f":"Import!I17994","v":0},{"$f":"Import!I18194","v":0},{"$f":"Import!I18394","v":0},{"$f":"Import!I18594","v":0}]
[199,{"$f":"Import!I16395","v":"Select"},{"$f":"Import!I16595","v":"Select"},{"$f":"Import!I16795","v":"Select"},{"$f":"Import!I16995","v":"Select"},{"$f":"Import!I17195","v":"Select"},{"$f":"Import!I17395","v":"Select"},{"$f":"Import!I17595","v":"Select"},{"$f":"Import!I17795","v":0},{"$f":"Import!I17995","v":0},{"$f":"Import!I18195","v":0},{"$f":"Import!I18395","v":0},{"$f":"Import!I18595","v":0}]
[200,{"$f":"Import!I16396","v":"Select"},{"$f":"Import!I16596","v":"Select"},{"$f":"Import!I16796","v":"Select"},{"$f":"Import!I16996","v":"Select"},{"$f":"Import!I17196","v":"Select"},{"$f":"Import!I17396","v":"Select"},{"$f":"Import!I17596","v":"Select"},{"$f":"Import!I17796","v":0},{"$f":"Import!I17996","v":0},{"$f":"Import!I18196","v":0},{"$f":"Import!I18396","v":0},{"$f":"Import!I18596","v":0}]
[]
[null,"Total Derivatives",null,null,null,null,null,null,{"$f":"SUM(I1560:I1759)","v":0},{"$f":"SUM(J1560:J1759)","v":0},{"$f":"SUM(K1560:K1759)","v":0}]
[]
[null,"(J) INFORMATION ON EXPOSURES TO FINANCIAL INSTITUTIONS AND UNLISTED COUNTERPARTIES"]
[null,null,null,null,null,"Commercial Loans and Mortgages"]
[null,null,{"$f":"YEAR($C$3)","v":2023},"Fair Value",null,null,"Securitisations ","Other debt securities"]
[null,"Financial Institutions","Equities","Corporate Bonds","Corporate Loans",null,null,null,null,"Comments"]
[1,"Exposure to Financial Institutions (Banks, Insurance Companies, Other Financials) - Investment Grade, BSCR Rating 1-3",{"$f":"Import!I18597","v":0},{"$f":"Import!I18601","v":0},{"$f":"Import!I18605","v":0},{"$f":"Import!I18609","v":0},{"$f":"Import!I18613","v":0},{"$f":"Import!I18617","v":0},null,{"$f":"Import!I18621","v":0}]
[2,"Exposure to Financial Institutions (Banks, Insurance Companies, Other Financials) - Investment Grade, BSCR Rating 4",{"$f":"Import!I18598","v":0},{"$f":"Import!I18602","v":0},{"$f":"Import!I18606","v":0},{"$f":"Import!I18610","v":0},{"$f":"Import!I18614","v":0},{"$f":"Import!I18618","v":0},null,{"$f":"Import!I18622","v":0}]
[3,"Exposure to Financial Institutions (Banks, Insurance Companies, Other Financials) - Below Investment Grade",{"$f":"Import!I18599","v":0},{"$f":"Import!I18603","v":0},{"$f":"Import!I18607","v":0},{"$f":"Import!I18611","v":0},{"$f":"Import!I18615","v":0},{"$f":"Import!I18619","v":0},null,{"$f":"Import!I18623","v":0}]
[4,"Exposure to Financial Institutions (Banks, Insurance Companies, Other Financials) - Unrated",{"$f":"Import!I18600","v":0},{"$f":"Import!I18604","v":0},{"$f":"Import!I18608","v":0},{"$f":"Import!I18612","v":0},{"$f":"Import!I18616","v":0},{"$f":"Import!I18620","v":0},null,{"$f":"Import!I18624","v":0}]
[]
[null,"Total Exposures to Financial Institutions",{"$f":"SUM(C1767:C1770)","v":0},{"$f":"SUM(D1767:D1770)","v":0},0,0,0,0]
[]
[null,"Of which","Equities","Corporate Bonds","Corporate Loans","Other",null,null,null,"Comments"]
[5,"- exposures to Banks",{"$f":"Import!I18625","v":0},{"$f":"Import!I18628","v":0},{"$f":"Import!I18631","v":0},{"$f":"Import!I18634","v":0},null,null,null,{"$f":"Import!I18637","v":0}]
[6,"- exposures to Insurers",{"$f":"Import!I18626","v":0},{"$f":"Import!I18629","v":0},{"$f":"Import!I18632","v":0},{"$f":"Import!I18635","v":0},null,null,null,{"$f":"Import!I18638","v":0}]
[7,"- exposures to Other Financial Institutions",{"$f":"Import!I18627","v":0},{"$f":"Import!I18630","v":0},{"$f":"Import!I18633","v":0},{"$f":"Import!I18636","v":0},null,null,null,{"$f":"Import!I18639","v":0}]
[]
[null,"Total Exposures",{"$f":"SUM(C1775:C1777)","v":0},{"$f":"SUM(D1775:D1777)","v":0},{"$f":"SUM(E1775:E1777)","v":0},{"$f":"SUM(F1775:F1777)","v":0}]
[]
[null,null,{"$f":"YEAR($C$3)","v":2023},"Fair Value"]
[null,"Unlisted Counterparties","Equities","Corporate Bonds","Corporate Loans","Other",null,null,null,"Comments"]
[8,"Direct Exposure to Unlisted Counterparties - Investment Grade, BSCR Rating 1-3",{"$f":"Import!I18640","v":0},{"$f":"Import!I18644","v":0},{"$f":"Import!I18648","v":0},{"$f":"Import!I18652","v":0},null,null,null,{"$f":"Import!I18656","v":0}]
[9,"Direct Exposure to Unlisted Counterparties - Investment Grade, BSCR Rating 4",{"$f":"Import!I18641","v":0},{"$f":"Import!I18645","v":0},{"$f":"Import!I18649","v":0},{"$f":"Import!I18653","v":0},null,null,null,{"$f":"Import!I18657","v":0}]
[10,"Direct Exposure to Unlisted Counterparties - Below Investment Grade",{"$f":"Import!I18642","v":0},{"$f":"Import!I18646","v":0},{"$f":"Import!I18650","v":0},{"$f":"Import!I18654","v":0},null,null,null,{"$f":"Import!I18658","v":0}]
[11,"Direct Exposure to Unlisted Counterparties - Unrated",{"$f":"Import!I18643","v":0},{"$f":"Import!I18647","v":0},{"$f":"Import!I18651","v":0},{"$f":"Import!I18655","v":0},null,null,null,{"$f":"Import!I18659","v":0}]
[]
[null,"Total Direct Exposures to Unlisted Counterparties",{"$f":"SUM(C1783:C1786)","v":0},{"$f":"SUM(D1783:D1786)","v":0},0,0]
[]
[null,"(K) OTHER ASSETS"]
[]
[null,null,"Enter # of Asset Types",{"$f":"Import!I18660","v":0}]
[]
[null,null,null,null,{"$f":"YEAR($C$3)","v":2023},2023]
[null,"Asset Type","Currency","BSCR Rating","Nominal Amount","Fair Value","Comments"]
[1,{"$f":"Import!I18661","v":"Select"},{"$f":"Import!I18861","v":"Select"},{"$f":"Import!I19061","v":"Select"},{"$f":"Import!I19261","v":0},{"$f":"Import!I19461","v":0},{"$f":"Import!I19661","v":0}]
[{"$f":"A1796+1","v":2},{"$f":"Import!I18662","v":"Select"},{"$f":"Import!I18862","v":"Select"},{"$f":"Import!I19062","v":"Select"},{"$f":"Import!I19262","v":0},{"$f":"Import!I19462","v":0},{"$f":"Import!I19662","v":0}]
[{"$f":"A1797+1","v":3},{"$f":"Import!I18663","v":"Select"},{"$f":"Import!I18863","v":"Select"},{"$f":"Import!I19063","v":"Select"},{"$f":"Import!I19263","v":0},{"$f":"Import!I19463","v":0},{"$f":"Import!I19663","v":0}]
[4,{"$f":"Import!I18664","v":"Select"},{"$f":"Import!I18864","v":"Select"},{"$f":"Import!I19064","v":"Select"},{"$f":"Import!I19264","v":0},{"$f":"Import!I19464","v":0},{"$f":"Import!I19664","v":0}]
[5,{"$f":"Import!I18665","v":"Select"},{"$f":"Import!I18865","v":"Select"},{"$f":"Import!I19065","v":"Select"},{"$f":"Import!I19265","v":0},{"$f":"Import!I19465","v":0},{"$f":"Import!I19665","v":0}]
[6,{"$f":"Import!I18666","v":"Select"},{"$f":"Import!I18866","v":"Select"},{"$f":"Import!I19066","v":"Select"},{"$f":"Import!I19266","v":0},{"$f":"Import!I19466","v":0},{"$f":"Import!I19666","v":0}]
[7,{"$f":"Import!I18667","v":"Select"},{"$f":"Import!I18867","v":"Select"},{"$f":"Import!I19067","v":"Select"},{"$f":"Import!I19267","v":0},{"$f":"Import!I19467","v":0},{"$f":"Import!I19667","v":0}]
[8,{"$f":"Import!I18668","v":"Select"},{"$f":"Import!I18868","v":"Select"},{"$f":"Import!I19068","v":"Select"},{"$f":"Import!I19268","v":0},{"$f":"Import!I19468","v":0},{"$f":"Import!I19668","v":0}]
[9,{"$f":"Import!I18669","v":"Select"},{"$f":"Import!I18869","v":"Select"},{"$f":"Import!I19069","v":"Select"},{"$f":"Import!I19269","v":0},{"$f":"Import!I19469","v":0},{"$f":"Import!I19669","v":0}]
[10,{"$f":"Import!I18670","v":"Select"},{"$f":"Import!I18870","v":"Select"},{"$f":"Import!I19070","v":"Select"},{"$f":"Import!I19270","v":0},{"$f":"Import!I19470","v":0},{"$f":"Import!I19670","v":0}]
[11,{"$f":"Import!I18671","v":"Select"},{"$f":"Import!I18871","v":"Select"},{"$f":"Import!I19071","v":"Select"},{"$f":"Import!I19271","v":0},{"$f":"Import!I19471","v":0},{"$f":"Import!I19671","v":0}]
[12,{"$f":"Import!I18672","v":"Select"},{"$f":"Import!I18872","v":"Select"},{"$f":"Import!I19072","v":"Select"},{"$f":"Import!I19272","v":0},{"$f":"Import!I19472","v":0},{"$f":"Import!I19672","v":0}]
[13,{"$f":"Import!I18673","v":"Select"},{"$f":"Import!I18873","v":"Select"},{"$f":"Import!I19073","v":"Select"},{"$f":"Import!I19273","v":0},{"$f":"Import!I19473","v":0},{"$f":"Import!I19673","v":0}]
[14,{"$f":"Import!I18674","v":"Select"},{"$f":"Import!I18874","v":"Select"},{"$f":"Import!I19074","v":"Select"},{"$f":"Import!I19274","v":0},{"$f":"Import!I19474","v":0},{"$f":"Import!I19674","v":0}]
[15,{"$f":"Import!I18675","v":"Select"},{"$f":"Import!I18875","v":"Select"},{"$f":"Import!I19075","v":"Select"},{"$f":"Import!I19275","v":0},{"$f":"Import!I19475","v":0},{"$f":"Import!I19675","v":0}]
[16,{"$f":"Import!I18676","v":"Select"},{"$f":"Import!I18876","v":"Select"},{"$f":"Import!I19076","v":"Select"},{"$f":"Import!I19276","v":0},{"$f":"Import!I19476","v":0},{"$f":"Import!I19676","v":0}]
[17,{"$f":"Import!I18677","v":"Select"},{"$f":"Import!I18877","v":"Select"},{"$f":"Import!I19077","v":"Select"},{"$f":"Import!I19277","v":0},{"$f":"Import!I19477","v":0},{"$f":"Import!I19677","v":0}]
[18,{"$f":"Import!I18678","v":"Select"},{"$f":"Import!I18878","v":"Select"},{"$f":"Import!I19078","v":"Select"},{"$f":"Import!I19278","v":0},{"$f":"Import!I19478","v":0},{"$f":"Import!I19678","v":0}]
[19,{"$f":"Import!I18679","v":"Select"},{"$f":"Import!I18879","v":"Select"},{"$f":"Import!I19079","v":"Select"},{"$f":"Import!I19279","v":0},{"$f":"Import!I19479","v":0},{"$f":"Import!I19679","v":0}]
[20,{"$f":"Import!I18680","v":"Select"},{"$f":"Import!I18880","v":"Select"},{"$f":"Import!I19080","v":"Select"},{"$f":"Import!I19280","v":0},{"$f":"Import!I19480","v":0},{"$f":"Import!I19680","v":0}]
[21,{"$f":"Import!I18681","v":"Select"},{"$f":"Import!I18881","v":"Select"},{"$f":"Import!I19081","v":"Select"},{"$f":"Import!I19281","v":0},{"$f":"Import!I19481","v":0},{"$f":"Import!I19681","v":0}]
[22,{"$f":"Import!I18682","v":"Select"},{"$f":"Import!I18882","v":"Select"},{"$f":"Import!I19082","v":"Select"},{"$f":"Import!I19282","v":0},{"$f":"Import!I19482","v":0},{"$f":"Import!I19682","v":0}]
[23,{"$f":"Import!I18683","v":"Select"},{"$f":"Import!I18883","v":"Select"},{"$f":"Import!I19083","v":"Select"},{"$f":"Import!I19283","v":0},{"$f":"Import!I19483","v":0},{"$f":"Import!I19683","v":0}]
[24,{"$f":"Import!I18684","v":"Select"},{"$f":"Import!I18884","v":"Select"},{"$f":"Import!I19084","v":"Select"},{"$f":"Import!I19284","v":0},{"$f":"Import!I19484","v":0},{"$f":"Import!I19684","v":0}]
[25,{"$f":"Import!I18685","v":"Select"},{"$f":"Import!I18885","v":"Select"},{"$f":"Import!I19085","v":"Select"},{"$f":"Import!I19285","v":0},{"$f":"Import!I19485","v":0},{"$f":"Import!I19685","v":0}]
[26,{"$f":"Import!I18686","v":"Select"},{"$f":"Import!I18886","v":"Select"},{"$f":"Import!I19086","v":"Select"},{"$f":"Import!I19286","v":0},{"$f":"Import!I19486","v":0},{"$f":"Import!I19686","v":0}]
[27,{"$f":"Import!I18687","v":"Select"},{"$f":"Import!I18887","v":"Select"},{"$f":"Import!I19087","v":"Select"},{"$f":"Import!I19287","v":0},{"$f":"Import!I19487","v":0},{"$f":"Import!I19687","v":0}]
[28,{"$f":"Import!I18688","v":"Select"},{"$f":"Import!I18888","v":"Select"},{"$f":"Import!I19088","v":"Select"},{"$f":"Import!I19288","v":0},{"$f":"Import!I19488","v":0},{"$f":"Import!I19688","v":0}]
[29,{"$f":"Import!I18689","v":"Select"},{"$f":"Import!I18889","v":"Select"},{"$f":"Import!I19089","v":"Select"},{"$f":"Import!I19289","v":0},{"$f":"Import!I19489","v":0},{"$f":"Import!I19689","v":0}]
[30,{"$f":"Import!I18690","v":"Select"},{"$f":"Import!I18890","v":"Select"},{"$f":"Import!I19090","v":"Select"},{"$f":"Import!I19290","v":0},{"$f":"Import!I19490","v":0},{"$f":"Import!I19690","v":0}]
[31,{"$f":"Import!I18691","v":"Select"},{"$f":"Import!I18891","v":"Select"},{"$f":"Import!I19091","v":"Select"},{"$f":"Import!I19291","v":0},{"$f":"Import!I19491","v":0},{"$f":"Import!I19691","v":0}]
[32,{"$f":"Import!I18692","v":"Select"},{"$f":"Import!I18892","v":"Select"},{"$f":"Import!I19092","v":"Select"},{"$f":"Import!I19292","v":0},{"$f":"Import!I19492","v":0},{"$f":"Import!I19692","v":0}]
[33,{"$f":"Import!I18693","v":"Select"},{"$f":"Import!I18893","v":"Select"},{"$f":"Import!I19093","v":"Select"},{"$f":"Import!I19293","v":0},{"$f":"Import!I19493","v":0},{"$f":"Import!I19693","v":0}]
[34,{"$f":"Import!I18694","v":"Select"},{"$f":"Import!I18894","v":"Select"},{"$f":"Import!I19094","v":"Select"},{"$f":"Import!I19294","v":0},{"$f":"Import!I19494","v":0},{"$f":"Import!I19694","v":0}]
[35,{"$f":"Import!I18695","v":"Select"},{"$f":"Import!I18895","v":"Select"},{"$f":"Import!I19095","v":"Select"},{"$f":"Import!I19295","v":0},{"$f":"Import!I19495","v":0},{"$f":"Import!I19695","v":0}]
[36,{"$f":"Import!I18696","v":"Select"},{"$f":"Import!I18896","v":"Select"},{"$f":"Import!I19096","v":"Select"},{"$f":"Import!I19296","v":0},{"$f":"Import!I19496","v":0},{"$f":"Import!I19696","v":0}]
[37,{"$f":"Import!I18697","v":"Select"},{"$f":"Import!I18897","v":"Select"},{"$f":"Import!I19097","v":"Select"},{"$f":"Import!I19297","v":0},{"$f":"Import!I19497","v":0},{"$f":"Import!I19697","v":0}]
[38,{"$f":"Import!I18698","v":"Select"},{"$f":"Import!I18898","v":"Select"},{"$f":"Import!I19098","v":"Select"},{"$f":"Import!I19298","v":0},{"$f":"Import!I19498","v":0},{"$f":"Import!I19698","v":0}]
[39,{"$f":"Import!I18699","v":"Select"},{"$f":"Import!I18899","v":"Select"},{"$f":"Import!I19099","v":"Select"},{"$f":"Import!I19299","v":0},{"$f":"Import!I19499","v":0},{"$f":"Import!I19699","v":0}]
[40,{"$f":"Import!I18700","v":"Select"},{"$f":"Import!I18900","v":"Select"},{"$f":"Import!I19100","v":"Select"},{"$f":"Import!I19300","v":0},{"$f":"Import!I19500","v":0},{"$f":"Import!I19700","v":0}]
[41,{"$f":"Import!I18701","v":"Select"},{"$f":"Import!I18901","v":"Select"},{"$f":"Import!I19101","v":"Select"},{"$f":"Import!I19301","v":0},{"$f":"Import!I19501","v":0},{"$f":"Import!I19701","v":0}]
[42,{"$f":"Import!I18702","v":"Select"},{"$f":"Import!I18902","v":"Select"},{"$f":"Import!I19102","v":"Select"},{"$f":"Import!I19302","v":0},{"$f":"Import!I19502","v":0},{"$f":"Import!I19702","v":0}]
[43,{"$f":"Import!I18703","v":"Select"},{"$f":"Import!I18903","v":"Select"},{"$f":"Import!I19103","v":"Select"},{"$f":"Import!I19303","v":0},{"$f":"Import!I19503","v":0},{"$f":"Import!I19703","v":0}]
[44,{"$f":"Import!I18704","v":"Select"},{"$f":"Import!I18904","v":"Select"},{"$f":"Import!I19104","v":"Select"},{"$f":"Import!I19304","v":0},{"$f":"Import!I19504","v":0},{"$f":"Import!I19704","v":0}]
[45,{"$f":"Import!I18705","v":"Select"},{"$f":"Import!I18905","v":"Select"},{"$f":"Import!I19105","v":"Select"},{"$f":"Import!I19305","v":0},{"$f":"Import!I19505","v":0},{"$f":"Import!I19705","v":0}]
[46,{"$f":"Import!I18706","v":"Select"},{"$f":"Import!I18906","v":"Select"},{"$f":"Import!I19106","v":"Select"},{"$f":"Import!I19306","v":0},{"$f":"Import!I19506","v":0},{"$f":"Import!I19706","v":0}]
[47,{"$f":"Import!I18707","v":"Select"},{"$f":"Import!I18907","v":"Select"},{"$f":"Import!I19107","v":"Select"},{"$f":"Import!I19307","v":0},{"$f":"Import!I19507","v":0},{"$f":"Import!I19707","v":0}]
[48,{"$f":"Import!I18708","v":"Select"},{"$f":"Import!I18908","v":"Select"},{"$f":"Import!I19108","v":"Select"},{"$f":"Import!I19308","v":0},{"$f":"Import!I19508","v":0},{"$f":"Import!I19708","v":0}]
[49,{"$f":"Import!I18709","v":"Select"},{"$f":"Import!I18909","v":"Select"},{"$f":"Import!I19109","v":"Select"},{"$f":"Import!I19309","v":0},{"$f":"Import!I19509","v":0},{"$f":"Import!I19709","v":0}]
[50,{"$f":"Import!I18710","v":"Select"},{"$f":"Import!I18910","v":"Select"},{"$f":"Import!I19110","v":"Select"},{"$f":"Import!I19310","v":0},{"$f":"Import!I19510","v":0},{"$f":"Import!I19710","v":0}]
[51,{"$f":"Import!I18711","v":"Select"},{"$f":"Import!I18911","v":"Select"},{"$f":"Import!I19111","v":"Select"},{"$f":"Import!I19311","v":0},{"$f":"Import!I19511","v":0},{"$f":"Import!I19711","v":0}]
[52,{"$f":"Import!I18712","v":"Select"},{"$f":"Import!I18912","v":"Select"},{"$f":"Import!I19112","v":"Select"},{"$f":"Import!I19312","v":0},{"$f":"Import!I19512","v":0},{"$f":"Import!I19712","v":0}]
[53,{"$f":"Import!I18713","v":"Select"},{"$f":"Import!I18913","v":"Select"},{"$f":"Import!I19113","v":"Select"},{"$f":"Import!I19313","v":0},{"$f":"Import!I19513","v":0},{"$f":"Import!I19713","v":0}]
[54,{"$f":"Import!I18714","v":"Select"},{"$f":"Import!I18914","v":"Select"},{"$f":"Import!I19114","v":"Select"},{"$f":"Import!I19314","v":0},{"$f":"Import!I19514","v":0},{"$f":"Import!I19714","v":0}]
[55,{"$f":"Import!I18715","v":"Select"},{"$f":"Import!I18915","v":"Select"},{"$f":"Import!I19115","v":"Select"},{"$f":"Import!I19315","v":0},{"$f":"Import!I19515","v":0},{"$f":"Import!I19715","v":0}]
[56,{"$f":"Import!I18716","v":"Select"},{"$f":"Import!I18916","v":"Select"},{"$f":"Import!I19116","v":"Select"},{"$f":"Import!I19316","v":0},{"$f":"Import!I19516","v":0},{"$f":"Import!I19716","v":0}]
[57,{"$f":"Import!I18717","v":"Select"},{"$f":"Import!I18917","v":"Select"},{"$f":"Import!I19117","v":"Select"},{"$f":"Import!I19317","v":0},{"$f":"Import!I19517","v":0},{"$f":"Import!I19717","v":0}]
[58,{"$f":"Import!I18718","v":"Select"},{"$f":"Import!I18918","v":"Select"},{"$f":"Import!I19118","v":"Select"},{"$f":"Import!I19318","v":0},{"$f":"Import!I19518","v":0},{"$f":"Import!I19718","v":0}]
[59,{"$f":"Import!I18719","v":"Select"},{"$f":"Import!I18919","v":"Select"},{"$f":"Import!I19119","v":"Select"},{"$f":"Import!I19319","v":0},{"$f":"Import!I19519","v":0},{"$f":"Import!I19719","v":0}]
[60,{"$f":"Import!I18720","v":"Select"},{"$f":"Import!I18920","v":"Select"},{"$f":"Import!I19120","v":"Select"},{"$f":"Import!I19320","v":0},{"$f":"Import!I19520","v":0},{"$f":"Import!I19720","v":0}]
[61,{"$f":"Import!I18721","v":"Select"},{"$f":"Import!I18921","v":"Select"},{"$f":"Import!I19121","v":"Select"},{"$f":"Import!I19321","v":0},{"$f":"Import!I19521","v":0},{"$f":"Import!I19721","v":0}]
[62,{"$f":"Import!I18722","v":"Select"},{"$f":"Import!I18922","v":"Select"},{"$f":"Import!I19122","v":"Select"},{"$f":"Import!I19322","v":0},{"$f":"Import!I19522","v":0},{"$f":"Import!I19722","v":0}]
[63,{"$f":"Import!I18723","v":"Select"},{"$f":"Import!I18923","v":"Select"},{"$f":"Import!I19123","v":"Select"},{"$f":"Import!I19323","v":0},{"$f":"Import!I19523","v":0},{"$f":"Import!I19723","v":0}]
[64,{"$f":"Import!I18724","v":"Select"},{"$f":"Import!I18924","v":"Select"},{"$f":"Import!I19124","v":"Select"},{"$f":"Import!I19324","v":0},{"$f":"Import!I19524","v":0},{"$f":"Import!I19724","v":0}]
[65,{"$f":"Import!I18725","v":"Select"},{"$f":"Import!I18925","v":"Select"},{"$f":"Import!I19125","v":"Select"},{"$f":"Import!I19325","v":0},{"$f":"Import!I19525","v":0},{"$f":"Import!I19725","v":0}]
[66,{"$f":"Import!I18726","v":"Select"},{"$f":"Import!I18926","v":"Select"},{"$f":"Import!I19126","v":"Select"},{"$f":"Import!I19326","v":0},{"$f":"Import!I19526","v":0},{"$f":"Import!I19726","v":0}]
[{"$f":"A1861+1","v":67},{"$f":"Import!I18727","v":"Select"},{"$f":"Import!I18927","v":"Select"},{"$f":"Import!I19127","v":"Select"},{"$f":"Import!I19327","v":0},{"$f":"Import!I19527","v":0},{"$f":"Import!I19727","v":0}]
[68,{"$f":"Import!I18728","v":"Select"},{"$f":"Import!I18928","v":"Select"},{"$f":"Import!I19128","v":"Select"},{"$f":"Import!I19328","v":0},{"$f":"Import!I19528","v":0},{"$f":"Import!I19728","v":0}]
[69,{"$f":"Import!I18729","v":"Select"},{"$f":"Import!I18929","v":"Select"},{"$f":"Import!I19129","v":"Select"},{"$f":"Import!I19329","v":0},{"$f":"Import!I19529","v":0},{"$f":"Import!I19729","v":0}]
[70,{"$f":"Import!I18730","v":"Select"},{"$f":"Import!I18930","v":"Select"},{"$f":"Import!I19130","v":"Select"},{"$f":"Import!I19330","v":0},{"$f":"Import!I19530","v":0},{"$f":"Import!I19730","v":0}]
[71,{"$f":"Import!I18731","v":"Select"},{"$f":"Import!I18931","v":"Select"},{"$f":"Import!I19131","v":"Select"},{"$f":"Import!I19331","v":0},{"$f":"Import!I19531","v":0},{"$f":"Import!I19731","v":0}]
[72,{"$f":"Import!I18732","v":"Select"},{"$f":"Import!I18932","v":"Select"},{"$f":"Import!I19132","v":"Select"},{"$f":"Import!I19332","v":0},{"$f":"Import!I19532","v":0},{"$f":"Import!I19732","v":0}]
[73,{"$f":"Import!I18733","v":"Select"},{"$f":"Import!I18933","v":"Select"},{"$f":"Import!I19133","v":"Select"},{"$f":"Import!I19333","v":0},{"$f":"Import!I19533","v":0},{"$f":"Import!I19733","v":0}]
[74,{"$f":"Import!I18734","v":"Select"},{"$f":"Import!I18934","v":"Select"},{"$f":"Import!I19134","v":"Select"},{"$f":"Import!I19334","v":0},{"$f":"Import!I19534","v":0},{"$f":"Import!I19734","v":0}]
[75,{"$f":"Import!I18735","v":"Select"},{"$f":"Import!I18935","v":"Select"},{"$f":"Import!I19135","v":"Select"},{"$f":"Import!I19335","v":0},{"$f":"Import!I19535","v":0},{"$f":"Import!I19735","v":0}]
[76,{"$f":"Import!I18736","v":"Select"},{"$f":"Import!I18936","v":"Select"},{"$f":"Import!I19136","v":"Select"},{"$f":"Import!I19336","v":0},{"$f":"Import!I19536","v":0},{"$f":"Import!I19736","v":0}]
[77,{"$f":"Import!I18737","v":"Select"},{"$f":"Import!I18937","v":"Select"},{"$f":"Import!I19137","v":"Select"},{"$f":"Import!I19337","v":0},{"$f":"Import!I19537","v":0},{"$f":"Import!I19737","v":0}]
[78,{"$f":"Import!I18738","v":"Select"},{"$f":"Import!I18938","v":"Select"},{"$f":"Import!I19138","v":"Select"},{"$f":"Import!I19338","v":0},{"$f":"Import!I19538","v":0},{"$f":"Import!I19738","v":0}]
[79,{"$f":"Import!I18739","v":"Select"},{"$f":"Import!I18939","v":"Select"},{"$f":"Import!I19139","v":"Select"},{"$f":"Import!I19339","v":0},{"$f":"Import!I19539","v":0},{"$f":"Import!I19739","v":0}]
[80,{"$f":"Import!I18740","v":"Select"},{"$f":"Import!I18940","v":"Select"},{"$f":"Import!I19140","v":"Select"},{"$f":"Import!I19340","v":0},{"$f":"Import!I19540","v":0},{"$f":"Import!I19740","v":0}]
[81,{"$f":"Import!I18741","v":"Select"},{"$f":"Import!I18941","v":"Select"},{"$f":"Import!I19141","v":"Select"},{"$f":"Import!I19341","v":0},{"$f":"Import!I19541","v":0},{"$f":"Import!I19741","v":0}]
[82,{"$f":"Import!I18742","v":"Select"},{"$f":"Import!I18942","v":"Select"},{"$f":"Import!I19142","v":"Select"},{"$f":"Import!I19342","v":0},{"$f":"Import!I19542","v":0},{"$f":"Import!I19742","v":0}]
[83,{"$f":"Import!I18743","v":"Select"},{"$f":"Import!I18943","v":"Select"},{"$f":"Import!I19143","v":"Select"},{"$f":"Import!I19343","v":0},{"$f":"Import!I19543","v":0},{"$f":"Import!I19743","v":0}]
[84,{"$f":"Import!I18744","v":"Select"},{"$f":"Import!I18944","v":"Select"},{"$f":"Import!I19144","v":"Select"},{"$f":"Import!I19344","v":0},{"$f":"Import!I19544","v":0},{"$f":"Import!I19744","v":0}]
[85,{"$f":"Import!I18745","v":"Select"},{"$f":"Import!I18945","v":"Select"},{"$f":"Import!I19145","v":"Select"},{"$f":"Import!I19345","v":0},{"$f":"Import!I19545","v":0},{"$f":"Import!I19745","v":0}]
[86,{"$f":"Import!I18746","v":"Select"},{"$f":"Import!I18946","v":"Select"},{"$f":"Import!I19146","v":"Select"},{"$f":"Import!I19346","v":0},{"$f":"Import!I19546","v":0},{"$f":"Import!I19746","v":0}]
[87,{"$f":"Import!I18747","v":"Select"},{"$f":"Import!I18947","v":"Select"},{"$f":"Import!I19147","v":"Select"},{"$f":"Import!I19347","v":0},{"$f":"Import!I19547","v":0},{"$f":"Import!I19747","v":0}]
[88,{"$f":"Import!I18748","v":"Select"},{"$f":"Import!I18948","v":"Select"},{"$f":"Import!I19148","v":"Select"},{"$f":"Import!I19348","v":0},{"$f":"Import!I19548","v":0},{"$f":"Import!I19748","v":0}]
[89,{"$f":"Import!I18749","v":"Select"},{"$f":"Import!I18949","v":"Select"},{"$f":"Import!I19149","v":"Select"},{"$f":"Import!I19349","v":0},{"$f":"Import!I19549","v":0},{"$f":"Import!I19749","v":0}]
[90,{"$f":"Import!I18750","v":"Select"},{"$f":"Import!I18950","v":"Select"},{"$f":"Import!I19150","v":"Select"},{"$f":"Import!I19350","v":0},{"$f":"Import!I19550","v":0},{"$f":"Import!I19750","v":0}]
[91,{"$f":"Import!I18751","v":"Select"},{"$f":"Import!I18951","v":"Select"},{"$f":"Import!I19151","v":"Select"},{"$f":"Import!I19351","v":0},{"$f":"Import!I19551","v":0},{"$f":"Import!I19751","v":0}]
[92,{"$f":"Import!I18752","v":"Select"},{"$f":"Import!I18952","v":"Select"},{"$f":"Import!I19152","v":"Select"},{"$f":"Import!I19352","v":0},{"$f":"Import!I19552","v":0},{"$f":"Import!I19752","v":0}]
[93,{"$f":"Import!I18753","v":"Select"},{"$f":"Import!I18953","v":"Select"},{"$f":"Import!I19153","v":"Select"},{"$f":"Import!I19353","v":0},{"$f":"Import!I19553","v":0},{"$f":"Import!I19753","v":0}]
[94,{"$f":"Import!I18754","v":"Select"},{"$f":"Import!I18954","v":"Select"},{"$f":"Import!I19154","v":"Select"},{"$f":"Import!I19354","v":0},{"$f":"Import!I19554","v":0},{"$f":"Import!I19754","v":0}]
[95,{"$f":"Import!I18755","v":"Select"},{"$f":"Import!I18955","v":"Select"},{"$f":"Import!I19155","v":"Select"},{"$f":"Import!I19355","v":0},{"$f":"Import!I19555","v":0},{"$f":"Import!I19755","v":0}]
[96,{"$f":"Import!I18756","v":"Select"},{"$f":"Import!I18956","v":"Select"},{"$f":"Import!I19156","v":"Select"},{"$f":"Import!I19356","v":0},{"$f":"Import!I19556","v":0},{"$f":"Import!I19756","v":0}]
[97,{"$f":"Import!I18757","v":"Select"},{"$f":"Import!I18957","v":"Select"},{"$f":"Import!I19157","v":"Select"},{"$f":"Import!I19357","v":0},{"$f":"Import!I19557","v":0},{"$f":"Import!I19757","v":0}]
[98,{"$f":"Import!I18758","v":"Select"},{"$f":"Import!I18958","v":"Select"},{"$f":"Import!I19158","v":"Select"},{"$f":"Import!I19358","v":0},{"$f":"Import!I19558","v":0},{"$f":"Import!I19758","v":0}]
[99,{"$f":"Import!I18759","v":"Select"},{"$f":"Import!I18959","v":"Select"},{"$f":"Import!I19159","v":"Select"},{"$f":"Import!I19359","v":0},{"$f":"Import!I19559","v":0},{"$f":"Import!I19759","v":0}]
[100,{"$f":"Import!I18760","v":"Select"},{"$f":"Import!I18960","v":"Select"},{"$f":"Import!I19160","v":"Select"},{"$f":"Import!I19360","v":0},{"$f":"Import!I19560","v":0},{"$f":"Import!I19760","v":0}]
[101,{"$f":"Import!I18761","v":"Select"},{"$f":"Import!I18961","v":"Select"},{"$f":"Import!I19161","v":"Select"},{"$f":"Import!I19361","v":0},{"$f":"Import!I19561","v":0},{"$f":"Import!I19761","v":0}]
[102,{"$f":"Import!I18762","v":"Select"},{"$f":"Import!I18962","v":"Select"},{"$f":"Import!I19162","v":"Select"},{"$f":"Import!I19362","v":0},{"$f":"Import!I19562","v":0},{"$f":"Import!I19762","v":0}]
[103,{"$f":"Import!I18763","v":"Select"},{"$f":"Import!I18963","v":"Select"},{"$f":"Import!I19163","v":"Select"},{"$f":"Import!I19363","v":0},{"$f":"Import!I19563","v":0},{"$f":"Import!I19763","v":0}]
[104,{"$f":"Import!I18764","v":"Select"},{"$f":"Import!I18964","v":"Select"},{"$f":"Import!I19164","v":"Select"},{"$f":"Import!I19364","v":0},{"$f":"Import!I19564","v":0},{"$f":"Import!I19764","v":0}]
[105,{"$f":"Import!I18765","v":"Select"},{"$f":"Import!I18965","v":"Select"},{"$f":"Import!I19165","v":"Select"},{"$f":"Import!I19365","v":0},{"$f":"Import!I19565","v":0},{"$f":"Import!I19765","v":0}]
[106,{"$f":"Import!I18766","v":"Select"},{"$f":"Import!I18966","v":"Select"},{"$f":"Import!I19166","v":"Select"},{"$f":"Import!I19366","v":0},{"$f":"Import!I19566","v":0},{"$f":"Import!I19766","v":0}]
[107,{"$f":"Import!I18767","v":"Select"},{"$f":"Import!I18967","v":"Select"},{"$f":"Import!I19167","v":"Select"},{"$f":"Import!I19367","v":0},{"$f":"Import!I19567","v":0},{"$f":"Import!I19767","v":0}]
[108,{"$f":"Import!I18768","v":"Select"},{"$f":"Import!I18968","v":"Select"},{"$f":"Import!I19168","v":"Select"},{"$f":"Import!I19368","v":0},{"$f":"Import!I19568","v":0},{"$f":"Import!I19768","v":0}]
[109,{"$f":"Import!I18769","v":"Select"},{"$f":"Import!I18969","v":"Select"},{"$f":"Import!I19169","v":"Select"},{"$f":"Import!I19369","v":0},{"$f":"Import!I19569","v":0},{"$f":"Import!I19769","v":0}]
[110,{"$f":"Import!I18770","v":"Select"},{"$f":"Import!I18970","v":"Select"},{"$f":"Import!I19170","v":"Select"},{"$f":"Import!I19370","v":0},{"$f":"Import!I19570","v":0},{"$f":"Import!I19770","v":0}]
[111,{"$f":"Import!I18771","v":"Select"},{"$f":"Import!I18971","v":"Select"},{"$f":"Import!I19171","v":"Select"},{"$f":"Import!I19371","v":0},{"$f":"Import!I19571","v":0},{"$f":"Import!I19771","v":0}]
[112,{"$f":"Import!I18772","v":"Select"},{"$f":"Import!I18972","v":"Select"},{"$f":"Import!I19172","v":"Select"},{"$f":"Import!I19372","v":0},{"$f":"Import!I19572","v":0},{"$f":"Import!I19772","v":0}]
[113,{"$f":"Import!I18773","v":"Select"},{"$f":"Import!I18973","v":"Select"},{"$f":"Import!I19173","v":"Select"},{"$f":"Import!I19373","v":0},{"$f":"Import!I19573","v":0},{"$f":"Import!I19773","v":0}]
[114,{"$f":"Import!I18774","v":"Select"},{"$f":"Import!I18974","v":"Select"},{"$f":"Import!I19174","v":"Select"},{"$f":"Import!I19374","v":0},{"$f":"Import!I19574","v":0},{"$f":"Import!I19774","v":0}]
[115,{"$f":"Import!I18775","v":"Select"},{"$f":"Import!I18975","v":"Select"},{"$f":"Import!I19175","v":"Select"},{"$f":"Import!I19375","v":0},{"$f":"Import!I19575","v":0},{"$f":"Import!I19775","v":0}]
[116,{"$f":"Import!I18776","v":"Select"},{"$f":"Import!I18976","v":"Select"},{"$f":"Import!I19176","v":"Select"},{"$f":"Import!I19376","v":0},{"$f":"Import!I19576","v":0},{"$f":"Import!I19776","v":0}]
[117,{"$f":"Import!I18777","v":"Select"},{"$f":"Import!I18977","v":"Select"},{"$f":"Import!I19177","v":"Select"},{"$f":"Import!I19377","v":0},{"$f":"Import!I19577","v":0},{"$f":"Import!I19777","v":0}]
[118,{"$f":"Import!I18778","v":"Select"},{"$f":"Import!I18978","v":"Select"},{"$f":"Import!I19178","v":"Select"},{"$f":"Import!I19378","v":0},{"$f":"Import!I19578","v":0},{"$f":"Import!I19778","v":0}]
[119,{"$f":"Import!I18779","v":"Select"},{"$f":"Import!I18979","v":"Select"},{"$f":"Import!I19179","v":"Select"},{"$f":"Import!I19379","v":0},{"$f":"Import!I19579","v":0},{"$f":"Import!I19779","v":0}]
[120,{"$f":"Import!I18780","v":"Select"},{"$f":"Import!I18980","v":"Select"},{"$f":"Import!I19180","v":"Select"},{"$f":"Import!I19380","v":0},{"$f":"Import!I19580","v":0},{"$f":"Import!I19780","v":0}]
[121,{"$f":"Import!I18781","v":"Select"},{"$f":"Import!I18981","v":"Select"},{"$f":"Import!I19181","v":"Select"},{"$f":"Import!I19381","v":0},{"$f":"Import!I19581","v":0},{"$f":"Import!I19781","v":0}]
[122,{"$f":"Import!I18782","v":"Select"},{"$f":"Import!I18982","v":"Select"},{"$f":"Import!I19182","v":"Select"},{"$f":"Import!I19382","v":0},{"$f":"Import!I19582","v":0},{"$f":"Import!I19782","v":0}]
[123,{"$f":"Import!I18783","v":"Select"},{"$f":"Import!I18983","v":"Select"},{"$f":"Import!I19183","v":"Select"},{"$f":"Import!I19383","v":0},{"$f":"Import!I19583","v":0},{"$f":"Import!I19783","v":0}]
[124,{"$f":"Import!I18784","v":"Select"},{"$f":"Import!I18984","v":"Select"},{"$f":"Import!I19184","v":"Select"},{"$f":"Import!I19384","v":0},{"$f":"Import!I19584","v":0},{"$f":"Import!I19784","v":0}]
[125,{"$f":"Import!I18785","v":"Select"},{"$f":"Import!I18985","v":"Select"},{"$f":"Import!I19185","v":"Select"},{"$f":"Import!I19385","v":0},{"$f":"Import!I19585","v":0},{"$f":"Import!I19785","v":0}]
[126,{"$f":"Import!I18786","v":"Select"},{"$f":"Import!I18986","v":"Select"},{"$f":"Import!I19186","v":"Select"},{"$f":"Import!I19386","v":0},{"$f":"Import!I19586","v":0},{"$f":"Import!I19786","v":0}]
[127,{"$f":"Import!I18787","v":"Select"},{"$f":"Import!I18987","v":"Select"},{"$f":"Import!I19187","v":"Select"},{"$f":"Import!I19387","v":0},{"$f":"Import!I19587","v":0},{"$f":"Import!I19787","v":0}]
[128,{"$f":"Import!I18788","v":"Select"},{"$f":"Import!I18988","v":"Select"},{"$f":"Import!I19188","v":"Select"},{"$f":"Import!I19388","v":0},{"$f":"Import!I19588","v":0},{"$f":"Import!I19788","v":0}]
[129,{"$f":"Import!I18789","v":"Select"},{"$f":"Import!I18989","v":"Select"},{"$f":"Import!I19189","v":"Select"},{"$f":"Import!I19389","v":0},{"$f":"Import!I19589","v":0},{"$f":"Import!I19789","v":0}]
[130,{"$f":"Import!I18790","v":"Select"},{"$f":"Import!I18990","v":"Select"},{"$f":"Import!I19190","v":"Select"},{"$f":"Import!I19390","v":0},{"$f":"Import!I19590","v":0},{"$f":"Import!I19790","v":0}]
[{"$f":"A1925+1","v":131},{"$f":"Import!I18791","v":"Select"},{"$f":"Import!I18991","v":"Select"},{"$f":"Import!I19191","v":"Select"},{"$f":"Import!I19391","v":0},{"$f":"Import!I19591","v":0},{"$f":"Import!I19791","v":0}]
[132,{"$f":"Import!I18792","v":"Select"},{"$f":"Import!I18992","v":"Select"},{"$f":"Import!I19192","v":"Select"},{"$f":"Import!I19392","v":0},{"$f":"Import!I19592","v":0},{"$f":"Import!I19792","v":0}]
[133,{"$f":"Import!I18793","v":"Select"},{"$f":"Import!I18993","v":"Select"},{"$f":"Import!I19193","v":"Select"},{"$f":"Import!I19393","v":0},{"$f":"Import!I19593","v":0},{"$f":"Import!I19793","v":0}]
[134,{"$f":"Import!I18794","v":"Select"},{"$f":"Import!I18994","v":"Select"},{"$f":"Import!I19194","v":"Select"},{"$f":"Import!I19394","v":0},{"$f":"Import!I19594","v":0},{"$f":"Import!I19794","v":0}]
[135,{"$f":"Import!I18795","v":"Select"},{"$f":"Import!I18995","v":"Select"},{"$f":"Import!I19195","v":"Select"},{"$f":"Import!I19395","v":0},{"$f":"Import!I19595","v":0},{"$f":"Import!I19795","v":0}]
[136,{"$f":"Import!I18796","v":"Select"},{"$f":"Import!I18996","v":"Select"},{"$f":"Import!I19196","v":"Select"},{"$f":"Import!I19396","v":0},{"$f":"Import!I19596","v":0},{"$f":"Import!I19796","v":0}]
[137,{"$f":"Import!I18797","v":"Select"},{"$f":"Import!I18997","v":"Select"},{"$f":"Import!I19197","v":"Select"},{"$f":"Import!I19397","v":0},{"$f":"Import!I19597","v":0},{"$f":"Import!I19797","v":0}]
[138,{"$f":"Import!I18798","v":"Select"},{"$f":"Import!I18998","v":"Select"},{"$f":"Import!I19198","v":"Select"},{"$f":"Import!I19398","v":0},{"$f":"Import!I19598","v":0},{"$f":"Import!I19798","v":0}]
[139,{"$f":"Import!I18799","v":"Select"},{"$f":"Import!I18999","v":"Select"},{"$f":"Import!I19199","v":"Select"},{"$f":"Import!I19399","v":0},{"$f":"Import!I19599","v":0},{"$f":"Import!I19799","v":0}]
[140,{"$f":"Import!I18800","v":"Select"},{"$f":"Import!I19000","v":"Select"},{"$f":"Import!I19200","v":"Select"},{"$f":"Import!I19400","v":0},{"$f":"Import!I19600","v":0},{"$f":"Import!I19800","v":0}]
[141,{"$f":"Import!I18801","v":"Select"},{"$f":"Import!I19001","v":"Select"},{"$f":"Import!I19201","v":"Select"},{"$f":"Import!I19401","v":0},{"$f":"Import!I19601","v":0},{"$f":"Import!I19801","v":0}]
[142,{"$f":"Import!I18802","v":"Select"},{"$f":"Import!I19002","v":"Select"},{"$f":"Import!I19202","v":"Select"},{"$f":"Import!I19402","v":0},{"$f":"Import!I19602","v":0},{"$f":"Import!I19802","v":0}]
[143,{"$f":"Import!I18803","v":"Select"},{"$f":"Import!I19003","v":"Select"},{"$f":"Import!I19203","v":"Select"},{"$f":"Import!I19403","v":0},{"$f":"Import!I19603","v":0},{"$f":"Import!I19803","v":0}]
[144,{"$f":"Import!I18804","v":"Select"},{"$f":"Import!I19004","v":"Select"},{"$f":"Import!I19204","v":"Select"},{"$f":"Import!I19404","v":0},{"$f":"Import!I19604","v":0},{"$f":"Import!I19804","v":0}]
[145,{"$f":"Import!I18805","v":"Select"},{"$f":"Import!I19005","v":"Select"},{"$f":"Import!I19205","v":"Select"},{"$f":"Import!I19405","v":0},{"$f":"Import!I19605","v":0},{"$f":"Import!I19805","v":0}]
[146,{"$f":"Import!I18806","v":"Select"},{"$f":"Import!I19006","v":"Select"},{"$f":"Import!I19206","v":"Select"},{"$f":"Import!I19406","v":0},{"$f":"Import!I19606","v":0},{"$f":"Import!I19806","v":0}]
[147,{"$f":"Import!I18807","v":"Select"},{"$f":"Import!I19007","v":"Select"},{"$f":"Import!I19207","v":"Select"},{"$f":"Import!I19407","v":0},{"$f":"Import!I19607","v":0},{"$f":"Import!I19807","v":0}]
[148,{"$f":"Import!I18808","v":"Select"},{"$f":"Import!I19008","v":"Select"},{"$f":"Import!I19208","v":"Select"},{"$f":"Import!I19408","v":0},{"$f":"Import!I19608","v":0},{"$f":"Import!I19808","v":0}]
[149,{"$f":"Import!I18809","v":"Select"},{"$f":"Import!I19009","v":"Select"},{"$f":"Import!I19209","v":"Select"},{"$f":"Import!I19409","v":0},{"$f":"Import!I19609","v":0},{"$f":"Import!I19809","v":0}]
[150,{"$f":"Import!I18810","v":"Select"},{"$f":"Import!I19010","v":"Select"},{"$f":"Import!I19210","v":"Select"},{"$f":"Import!I19410","v":0},{"$f":"Import!I19610","v":0},{"$f":"Import!I19810","v":0}]
[151,{"$f":"Import!I18811","v":"Select"},{"$f":"Import!I19011","v":"Select"},{"$f":"Import!I19211","v":"Select"},{"$f":"Import!I19411","v":0},{"$f":"Import!I19611","v":0},{"$f":"Import!I19811","v":0}]
[152,{"$f":"Import!I18812","v":"Select"},{"$f":"Import!I19012","v":"Select"},{"$f":"Import!I19212","v":"Select"},{"$f":"Import!I19412","v":0},{"$f":"Import!I19612","v":0},{"$f":"Import!I19812","v":0}]
[153,{"$f":"Import!I18813","v":"Select"},{"$f":"Import!I19013","v":"Select"},{"$f":"Import!I19213","v":"Select"},{"$f":"Import!I19413","v":0},{"$f":"Import!I19613","v":0},{"$f":"Import!I19813","v":0}]
[154,{"$f":"Import!I18814","v":"Select"},{"$f":"Import!I19014","v":"Select"},{"$f":"Import!I19214","v":"Select"},{"$f":"Import!I19414","v":0},{"$f":"Import!I19614","v":0},{"$f":"Import!I19814","v":0}]
[155,{"$f":"Import!I18815","v":"Select"},{"$f":"Import!I19015","v":"Select"},{"$f":"Import!I19215","v":"Select"},{"$f":"Import!I19415","v":0},{"$f":"Import!I19615","v":0},{"$f":"Import!I19815","v":0}]
[156,{"$f":"Import!I18816","v":"Select"},{"$f":"Import!I19016","v":"Select"},{"$f":"Import!I19216","v":"Select"},{"$f":"Import!I19416","v":0},{"$f":"Import!I19616","v":0},{"$f":"Import!I19816","v":0}]
[157,{"$f":"Import!I18817","v":"Select"},{"$f":"Import!I19017","v":"Select"},{"$f":"Import!I19217","v":"Select"},{"$f":"Import!I19417","v":0},{"$f":"Import!I19617","v":0},{"$f":"Import!I19817","v":0}]
[158,{"$f":"Import!I18818","v":"Select"},{"$f":"Import!I19018","v":"Select"},{"$f":"Import!I19218","v":"Select"},{"$f":"Import!I19418","v":0},{"$f":"Import!I19618","v":0},{"$f":"Import!I19818","v":0}]
[159,{"$f":"Import!I18819","v":"Select"},{"$f":"Import!I19019","v":"Select"},{"$f":"Import!I19219","v":"Select"},{"$f":"Import!I19419","v":0},{"$f":"Import!I19619","v":0},{"$f":"Import!I19819","v":0}]
[160,{"$f":"Import!I18820","v":"Select"},{"$f":"Import!I19020","v":"Select"},{"$f":"Import!I19220","v":"Select"},{"$f":"Import!I19420","v":0},{"$f":"Import!I19620","v":0},{"$f":"Import!I19820","v":0}]
[161,{"$f":"Import!I18821","v":"Select"},{"$f":"Import!I19021","v":"Select"},{"$f":"Import!I19221","v":"Select"},{"$f":"Import!I19421","v":0},{"$f":"Import!I19621","v":0},{"$f":"Import!I19821","v":0}]
[162,{"$f":"Import!I18822","v":"Select"},{"$f":"Import!I19022","v":"Select"},{"$f":"Import!I19222","v":"Select"},{"$f":"Import!I19422","v":0},{"$f":"Import!I19622","v":0},{"$f":"Import!I19822","v":0}]
[163,{"$f":"Import!I18823","v":"Select"},{"$f":"Import!I19023","v":"Select"},{"$f":"Import!I19223","v":"Select"},{"$f":"Import!I19423","v":0},{"$f":"Import!I19623","v":0},{"$f":"Import!I19823","v":0}]
[164,{"$f":"Import!I18824","v":"Select"},{"$f":"Import!I19024","v":"Select"},{"$f":"Import!I19224","v":"Select"},{"$f":"Import!I19424","v":0},{"$f":"Import!I19624","v":0},{"$f":"Import!I19824","v":0}]
[165,{"$f":"Import!I18825","v":"Select"},{"$f":"Import!I19025","v":"Select"},{"$f":"Import!I19225","v":"Select"},{"$f":"Import!I19425","v":0},{"$f":"Import!I19625","v":0},{"$f":"Import!I19825","v":0}]
[166,{"$f":"Import!I18826","v":"Select"},{"$f":"Import!I19026","v":"Select"},{"$f":"Import!I19226","v":"Select"},{"$f":"Import!I19426","v":0},{"$f":"Import!I19626","v":0},{"$f":"Import!I19826","v":0}]
[167,{"$f":"Import!I18827","v":"Select"},{"$f":"Import!I19027","v":"Select"},{"$f":"Import!I19227","v":"Select"},{"$f":"Import!I19427","v":0},{"$f":"Import!I19627","v":0},{"$f":"Import!I19827","v":0}]
[168,{"$f":"Import!I18828","v":"Select"},{"$f":"Import!I19028","v":"Select"},{"$f":"Import!I19228","v":"Select"},{"$f":"Import!I19428","v":0},{"$f":"Import!I19628","v":0},{"$f":"Import!I19828","v":0}]
[169,{"$f":"Import!I18829","v":"Select"},{"$f":"Import!I19029","v":"Select"},{"$f":"Import!I19229","v":"Select"},{"$f":"Import!I19429","v":0},{"$f":"Import!I19629","v":0},{"$f":"Import!I19829","v":0}]
[170,{"$f":"Import!I18830","v":"Select"},{"$f":"Import!I19030","v":"Select"},{"$f":"Import!I19230","v":"Select"},{"$f":"Import!I19430","v":0},{"$f":"Import!I19630","v":0},{"$f":"Import!I19830","v":0}]
[171,{"$f":"Import!I18831","v":"Select"},{"$f":"Import!I19031","v":"Select"},{"$f":"Import!I19231","v":"Select"},{"$f":"Import!I19431","v":0},{"$f":"Import!I19631","v":0},{"$f":"Import!I19831","v":0}]
[172,{"$f":"Import!I18832","v":"Select"},{"$f":"Import!I19032","v":"Select"},{"$f":"Import!I19232","v":"Select"},{"$f":"Import!I19432","v":0},{"$f":"Import!I19632","v":0},{"$f":"Import!I19832","v":0}]
[173,{"$f":"Import!I18833","v":"Select"},{"$f":"Import!I19033","v":"Select"},{"$f":"Import!I19233","v":"Select"},{"$f":"Import!I19433","v":0},{"$f":"Import!I19633","v":0},{"$f":"Import!I19833","v":0}]
[174,{"$f":"Import!I18834","v":"Select"},{"$f":"Import!I19034","v":"Select"},{"$f":"Import!I19234","v":"Select"},{"$f":"Import!I19434","v":0},{"$f":"Import!I19634","v":0},{"$f":"Import!I19834","v":0}]
[175,{"$f":"Import!I18835","v":"Select"},{"$f":"Import!I19035","v":"Select"},{"$f":"Import!I19235","v":"Select"},{"$f":"Import!I19435","v":0},{"$f":"Import!I19635","v":0},{"$f":"Import!I19835","v":0}]
[176,{"$f":"Import!I18836","v":"Select"},{"$f":"Import!I19036","v":"Select"},{"$f":"Import!I19236","v":"Select"},{"$f":"Import!I19436","v":0},{"$f":"Import!I19636","v":0},{"$f":"Import!I19836","v":0}]
[177,{"$f":"Import!I18837","v":"Select"},{"$f":"Import!I19037","v":"Select"},{"$f":"Import!I19237","v":"Select"},{"$f":"Import!I19437","v":0},{"$f":"Import!I19637","v":0},{"$f":"Import!I19837","v":0}]
[178,{"$f":"Import!I18838","v":"Select"},{"$f":"Import!I19038","v":"Select"},{"$f":"Import!I19238","v":"Select"},{"$f":"Import!I19438","v":0},{"$f":"Import!I19638","v":0},{"$f":"Import!I19838","v":0}]
[179,{"$f":"Import!I18839","v":"Select"},{"$f":"Import!I19039","v":"Select"},{"$f":"Import!I19239","v":"Select"},{"$f":"Import!I19439","v":0},{"$f":"Import!I19639","v":0},{"$f":"Import!I19839","v":0}]
[180,{"$f":"Import!I18840","v":"Select"},{"$f":"Import!I19040","v":"Select"},{"$f":"Import!I19240","v":"Select"},{"$f":"Import!I19440","v":0},{"$f":"Import!I19640","v":0},{"$f":"Import!I19840","v":0}]
[181,{"$f":"Import!I18841","v":"Select"},{"$f":"Import!I19041","v":"Select"},{"$f":"Import!I19241","v":"Select"},{"$f":"Import!I19441","v":0},{"$f":"Import!I19641","v":0},{"$f":"Import!I19841","v":0}]
[182,{"$f":"Import!I18842","v":"Select"},{"$f":"Import!I19042","v":"Select"},{"$f":"Import!I19242","v":"Select"},{"$f":"Import!I19442","v":0},{"$f":"Import!I19642","v":0},{"$f":"Import!I19842","v":0}]
[183,{"$f":"Import!I18843","v":"Select"},{"$f":"Import!I19043","v":"Select"},{"$f":"Import!I19243","v":"Select"},{"$f":"Import!I19443","v":0},{"$f":"Import!I19643","v":0},{"$f":"Import!I19843","v":0}]
[184,{"$f":"Import!I18844","v":"Select"},{"$f":"Import!I19044","v":"Select"},{"$f":"Import!I19244","v":"Select"},{"$f":"Import!I19444","v":0},{"$f":"Import!I19644","v":0},{"$f":"Import!I19844","v":0}]
[185,{"$f":"Import!I18845","v":"Select"},{"$f":"Import!I19045","v":"Select"},{"$f":"Import!I19245","v":"Select"},{"$f":"Import!I19445","v":0},{"$f":"Import!I19645","v":0},{"$f":"Import!I19845","v":0}]
[186,{"$f":"Import!I18846","v":"Select"},{"$f":"Import!I19046","v":"Select"},{"$f":"Import!I19246","v":"Select"},{"$f":"Import!I19446","v":0},{"$f":"Import!I19646","v":0},{"$f":"Import!I19846","v":0}]
[187,{"$f":"Import!I18847","v":"Select"},{"$f":"Import!I19047","v":"Select"},{"$f":"Import!I19247","v":"Select"},{"$f":"Import!I19447","v":0},{"$f":"Import!I19647","v":0},{"$f":"Import!I19847","v":0}]
[188,{"$f":"Import!I18848","v":"Select"},{"$f":"Import!I19048","v":"Select"},{"$f":"Import!I19248","v":"Select"},{"$f":"Import!I19448","v":0},{"$f":"Import!I19648","v":0},{"$f":"Import!I19848","v":0}]
[189,{"$f":"Import!I18849","v":"Select"},{"$f":"Import!I19049","v":"Select"},{"$f":"Import!I19249","v":"Select"},{"$f":"Import!I19449","v":0},{"$f":"Import!I19649","v":0},{"$f":"Import!I19849","v":0}]
[190,{"$f":"Import!I18850","v":"Select"},{"$f":"Import!I19050","v":"Select"},{"$f":"Import!I19250","v":"Select"},{"$f":"Import!I19450","v":0},{"$f":"Import!I19650","v":0},{"$f":"Import!I19850","v":0}]
[191,{"$f":"Import!I18851","v":"Select"},{"$f":"Import!I19051","v":"Select"},{"$f":"Import!I19251","v":"Select"},{"$f":"Import!I19451","v":0},{"$f":"Import!I19651","v":0},{"$f":"Import!I19851","v":0}]
[192,{"$f":"Import!I18852","v":"Select"},{"$f":"Import!I19052","v":"Select"},{"$f":"Import!I19252","v":"Select"},{"$f":"Import!I19452","v":0},{"$f":"Import!I19652","v":0},{"$f":"Import!I19852","v":0}]
[193,{"$f":"Import!I18853","v":"Select"},{"$f":"Import!I19053","v":"Select"},{"$f":"Import!I19253","v":"Select"},{"$f":"Import!I19453","v":0},{"$f":"Import!I19653","v":0},{"$f":"Import!I19853","v":0}]
[194,{"$f":"Import!I18854","v":"Select"},{"$f":"Import!I19054","v":"Select"},{"$f":"Import!I19254","v":"Select"},{"$f":"Import!I19454","v":0},{"$f":"Import!I19654","v":0},{"$f":"Import!I19854","v":0}]
[{"$f":"A1989+1","v":195},{"$f":"Import!I18855","v":"Select"},{"$f":"Import!I19055","v":"Select"},{"$f":"Import!I19255","v":"Select"},{"$f":"Import!I19455","v":0},{"$f":"Import!I19655","v":0},{"$f":"Import!I19855","v":0}]
[196,{"$f":"Import!I18856","v":"Select"},{"$f":"Import!I19056","v":"Select"},{"$f":"Import!I19256","v":"Select"},{"$f":"Import!I19456","v":0},{"$f":"Import!I19656","v":0},{"$f":"Import!I19856","v":0}]
[197,{"$f":"Import!I18857","v":"Select"},{"$f":"Import!I19057","v":"Select"},{"$f":"Import!I19257","v":"Select"},{"$f":"Import!I19457","v":0},{"$f":"Import!I19657","v":0},{"$f":"Import!I19857","v":0}]
[198,{"$f":"Import!I18858","v":"Select"},{"$f":"Import!I19058","v":"Select"},{"$f":"Import!I19258","v":"Select"},{"$f":"Import!I19458","v":0},{"$f":"Import!I19658","v":0},{"$f":"Import!I19858","v":0}]
[199,{"$f":"Import!I18859","v":"Select"},{"$f":"Import!I19059","v":"Select"},{"$f":"Import!I19259","v":"Select"},{"$f":"Import!I19459","v":0},{"$f":"Import!I19659","v":0},{"$f":"Import!I19859","v":0}]
[200,{"$f":"Import!I18860","v":"Select"},{"$f":"Import!I19060","v":"Select"},{"$f":"Import!I19260","v":"Select"},{"$f":"Import!I19460","v":0},{"$f":"Import!I19660","v":0},{"$f":"Import!I19860","v":0}]
[]
[null,"Total Other Assets",null,null,null,{"$f":"SUM(F1796:F1995)","v":0}]
[]
[]
[null,"TOTAL ASSETS (Schedules VI (EBS) and VIA (EBS))",null,null,null,{"$f":"F212+F620+F986+G1094+F1230+E1338+G1446+G1554+I1761+F1997+'Schedule VIA (EBS)'!F2000","v":0}]
[]
[null,"TOTAL ASSETS (Form 1EBS Line 15)",null,null,null,{"$f":"'Form 1EBS'!F96","v":0}]
[]
[null,"Check Form 1EBS",null,null,null,{"$f":"IF(F2006=0,\"TRUE\",\"FALSE\")","v":"TRUE"}]
[]
[null,"Difference",null,null,null,{"$f":"ROUND(F2002-F2000,0)","v":0}]
[]
[null,"(L) INFORMATION ON SECURITIES LENDING AND REPURCHASE TRANSACTIONS"]
[]
[null,null,{"$f":"YEAR($C$3)","v":2023}]
[null,null,"Notional Value","Fair Value",null,"Comments"]
[null,"Securities Lending transactions",{"$f":"Import!I19861","v":0},{"$f":"Import!I19863","v":0},null,{"$f":"Import!I19865","v":0}]
[null,"Repo / Reverse Repo transactions",{"$f":"Import!I19862","v":0},{"$f":"Import!I19864","v":0},null,{"$f":"Import!I19866","v":0}]
[]
[null,"Total",{"$f":"SUM(C2012:C2013)","v":0},{"$f":"SUM(D2012:D2013)","v":0}]
[]
[null,"(M) INFORMATION ON FAIR VALUATION HIERARCHY"]
[]
[null,null,{"$f":"YEAR($C$3)","v":2023},"Fair Value"]
[null,null,"Unaffiliated","Affiliated","Total","Comments"]
[null,"Level 1 Assets (according to Fair Value hierarchy)",{"$f":"Import!I19867","v":0},{"$f":"Import!I19870","v":0},{"$f":"SUM(C2021:D2021)","v":0},{"$f":"Import!I19873","v":0}]
[null,"Level 2 Assets (according to Fair Value hierarchy)",{"$f":"Import!I19868","v":0},{"$f":"Import!I19871","v":0},{"$f":"SUM(C2022:D2022)","v":0},{"$f":"Import!I19874","v":0}]
[null,"Level 3 Assets (according to Fair Value hierarchy)",{"$f":"Import!I19869","v":0},{"$f":"Import!I19872","v":0},{"$f":"SUM(C2023:D2023)","v":0},{"$f":"Import!I19875","v":0}]
[]
[null,"Total",{"$f":"SUM(C2021:C2023)","v":0},{"$f":"SUM(D2021:D2023)","v":0},{"$f":"SUM(E2021:E2023)","v":0}]
[]
[null,"Check Securities Allocated by Levels 1-3",null,null,{"$f":"F212+F620+F986+G1094+F1230+E1338+G1446+G1554","v":0}]
[]
[null,"Difference",null,null,{"$f":"ROUND(E2025-E2027,0)","v":0},{"$f":"IF(E2029=0,\"TRUE\",\"FALSE\")","v":"TRUE"}]
[]
[null,"EFFECTIVE DURATION",null,null,{"$f":"Import!I19876","v":0}]
[]
[null,"EFFECTIVE CONVEXITY",null,null,{"$f":"Import!I19877","v":0}]
[]
[null,"Fair Values",{"$f":"YEAR(C3)","v":2023}]
[null,null,null,null,null,null,null,null,"If Other Rating Agency is used, specify the name of such agency (if applicable)",{"$f":"Import!I19878","v":0},{"$f":"Import!I19879","v":0},{"$f":"Import!I19880","v":0},{"$f":"Import!I19881","v":0}]
[null,"Asset/Rating Category","BSCR Rating","Moody's Investor's Service","Standard and Poor's","Dominion Bond Rating Service","Kroll Bond Rating Agency","Egan Jones Rating Company","Japan Credit Rating Agency","BMA-approved Internal Ratings","Other BMA-approved Rating Agency 1","Other BMA-approved Rating Agency 2","Other BMA-approved Rating Agency 3","Total"]
[null,"Financial institutions, brokers and dealers",1,{"$f":"Import!I19882","v":0},{"$f":"Import!I19923","v":0},{"$f":"Import!I19964","v":0},{"$f":"Import!I20005","v":0},{"$f":"Import!I20046","v":0},{"$f":"Import!I20087","v":0},{"$f":"Import!I20128","v":0},{"$f":"Import!I20169","v":0},{"$f":"Import!I20210","v":0},{"$f":"Import!I20251","v":0},{"$f":"SUM(D2038:M2038)","v":0}]
[null,"Financial institutions, brokers and dealers",2,{"$f":"Import!I19883","v":0},{"$f":"Import!I19924","v":0},{"$f":"Import!I19965","v":0},{"$f":"Import!I20006","v":0},{"$f":"Import!I20047","v":0},{"$f":"Import!I20088","v":0},{"$f":"Import!I20129","v":0},{"$f":"Import!I20170","v":0},{"$f":"Import!I20211","v":0},{"$f":"Import!I20252","v":0},{"$f":"SUM(D2039:M2039)","v":0}]
[null,"Financial institutions, brokers and dealers",3,{"$f":"Import!I19884","v":0},{"$f":"Import!I19925","v":0},{"$f":"Import!I19966","v":0},{"$f":"Import!I20007","v":0},{"$f":"Import!I20048","v":0},{"$f":"Import!I20089","v":0},{"$f":"Import!I20130","v":0},{"$f":"Import!I20171","v":0},{"$f":"Import!I20212","v":0},{"$f":"Import!I20253","v":0},0]
[null,"Financial institutions, brokers and dealers",4,{"$f":"Import!I19885","v":0},{"$f":"Import!I19926","v":0},{"$f":"Import!I19967","v":0},{"$f":"Import!I20008","v":0},{"$f":"Import!I20049","v":0},{"$f":"Import!I20090","v":0},{"$f":"Import!I20131","v":0},{"$f":"Import!I20172","v":0},{"$f":"Import!I20213","v":0},{"$f":"Import!I20254","v":0},0]
[null,"Financial institutions, brokers and dealers",5,{"$f":"Import!I19886","v":0},{"$f":"Import!I19927","v":0},{"$f":"Import!I19968","v":0},{"$f":"Import!I20009","v":0},{"$f":"Import!I20050","v":0},{"$f":"Import!I20091","v":0},{"$f":"Import!I20132","v":0},{"$f":"Import!I20173","v":0},{"$f":"Import!I20214","v":0},{"$f":"Import!I20255","v":0},0]
[null,"Financial institutions, brokers and dealers",6,{"$f":"Import!I19887","v":0},{"$f":"Import!I19928","v":0},{"$f":"Import!I19969","v":0},{"$f":"Import!I20010","v":0},{"$f":"Import!I20051","v":0},{"$f":"Import!I20092","v":0},{"$f":"Import!I20133","v":0},{"$f":"Import!I20174","v":0},{"$f":"Import!I20215","v":0},{"$f":"Import!I20256","v":0},0]
[null,"Financial institutions, brokers and dealers",7,{"$f":"Import!I19888","v":0},{"$f":"Import!I19929","v":0},{"$f":"Import!I19970","v":0},{"$f":"Import!I20011","v":0},{"$f":"Import!I20052","v":0},{"$f":"Import!I20093","v":0},{"$f":"Import!I20134","v":0},{"$f":"Import!I20175","v":0},{"$f":"Import!I20216","v":0},{"$f":"Import!I20257","v":0},0]
[null,"Financial institutions, brokers and dealers",8,{"$f":"Import!I19889","v":0},{"$f":"Import!I19930","v":0},{"$f":"Import!I19971","v":0},{"$f":"Import!I20012","v":0},{"$f":"Import!I20053","v":0},{"$f":"Import!I20094","v":0},{"$f":"Import!I20135","v":0},{"$f":"Import!I20176","v":0},{"$f":"Import!I20217","v":0},{"$f":"Import!I20258","v":0},0]
[null,"Insurance companies",1,{"$f":"Import!I19890","v":0},{"$f":"Import!I19931","v":0},{"$f":"Import!I19972","v":0},{"$f":"Import!I20013","v":0},{"$f":"Import!I20054","v":0},{"$f":"Import!I20095","v":0},{"$f":"Import!I20136","v":0},{"$f":"Import!I20177","v":0},{"$f":"Import!I20218","v":0},{"$f":"Import!I20259","v":0},0]
[null,"Insurance companies",2,{"$f":"Import!I19891","v":0},{"$f":"Import!I19932","v":0},{"$f":"Import!I19973","v":0},{"$f":"Import!I20014","v":0},{"$f":"Import!I20055","v":0},{"$f":"Import!I20096","v":0},{"$f":"Import!I20137","v":0},{"$f":"Import!I20178","v":0},{"$f":"Import!I20219","v":0},{"$f":"Import!I20260","v":0},0]
[null,"Insurance companies",3,{"$f":"Import!I19892","v":0},{"$f":"Import!I19933","v":0},{"$f":"Import!I19974","v":0},{"$f":"Import!I20015","v":0},{"$f":"Import!I20056","v":0},{"$f":"Import!I20097","v":0},{"$f":"Import!I20138","v":0},{"$f":"Import!I20179","v":0},{"$f":"Import!I20220","v":0},{"$f":"Import!I20261","v":0},0]
[null,"Insurance companies",4,{"$f":"Import!I19893","v":0},{"$f":"Import!I19934","v":0},{"$f":"Import!I19975","v":0},{"$f":"Import!I20016","v":0},{"$f":"Import!I20057","v":0},{"$f":"Import!I20098","v":0},{"$f":"Import!I20139","v":0},{"$f":"Import!I20180","v":0},{"$f":"Import!I20221","v":0},{"$f":"Import!I20262","v":0},0]
[null,"Insurance companies",5,{"$f":"Import!I19894","v":0},{"$f":"Import!I19935","v":0},{"$f":"Import!I19976","v":0},{"$f":"Import!I20017","v":0},{"$f":"Import!I20058","v":0},{"$f":"Import!I20099","v":0},{"$f":"Import!I20140","v":0},{"$f":"Import!I20181","v":0},{"$f":"Import!I20222","v":0},{"$f":"Import!I20263","v":0},0]
[null,"Insurance companies",6,{"$f":"Import!I19895","v":0},{"$f":"Import!I19936","v":0},{"$f":"Import!I19977","v":0},{"$f":"Import!I20018","v":0},{"$f":"Import!I20059","v":0},{"$f":"Import!I20100","v":0},{"$f":"Import!I20141","v":0},{"$f":"Import!I20182","v":0},{"$f":"Import!I20223","v":0},{"$f":"Import!I20264","v":0},0]
[null,"Insurance companies",7,{"$f":"Import!I19896","v":0},{"$f":"Import!I19937","v":0},{"$f":"Import!I19978","v":0},{"$f":"Import!I20019","v":0},{"$f":"Import!I20060","v":0},{"$f":"Import!I20101","v":0},{"$f":"Import!I20142","v":0},{"$f":"Import!I20183","v":0},{"$f":"Import!I20224","v":0},{"$f":"Import!I20265","v":0},0]
[null,"Insurance companies",8,{"$f":"Import!I19897","v":0},{"$f":"Import!I19938","v":0},{"$f":"Import!I19979","v":0},{"$f":"Import!I20020","v":0},{"$f":"Import!I20061","v":0},{"$f":"Import!I20102","v":0},{"$f":"Import!I20143","v":0},{"$f":"Import!I20184","v":0},{"$f":"Import!I20225","v":0},{"$f":"Import!I20266","v":0},0]
[null,"Corporate issuers",1,{"$f":"Import!I19898","v":0},{"$f":"Import!I19939","v":0},{"$f":"Import!I19980","v":0},{"$f":"Import!I20021","v":0},{"$f":"Import!I20062","v":0},{"$f":"Import!I20103","v":0},{"$f":"Import!I20144","v":0},{"$f":"Import!I20185","v":0},{"$f":"Import!I20226","v":0},{"$f":"Import!I20267","v":0},0]
[null,"Corporate issuers",2,{"$f":"Import!I19899","v":0},{"$f":"Import!I19940","v":0},{"$f":"Import!I19981","v":0},{"$f":"Import!I20022","v":0},{"$f":"Import!I20063","v":0},{"$f":"Import!I20104","v":0},{"$f":"Import!I20145","v":0},{"$f":"Import!I20186","v":0},{"$f":"Import!I20227","v":0},{"$f":"Import!I20268","v":0},0]
[null,"Corporate issuers",3,{"$f":"Import!I19900","v":0},{"$f":"Import!I19941","v":0},{"$f":"Import!I19982","v":0},{"$f":"Import!I20023","v":0},{"$f":"Import!I20064","v":0},{"$f":"Import!I20105","v":0},{"$f":"Import!I20146","v":0},{"$f":"Import!I20187","v":0},{"$f":"Import!I20228","v":0},{"$f":"Import!I20269","v":0},0]
[null,"Corporate issuers",4,{"$f":"Import!I19901","v":0},{"$f":"Import!I19942","v":0},{"$f":"Import!I19983","v":0},{"$f":"Import!I20024","v":0},{"$f":"Import!I20065","v":0},{"$f":"Import!I20106","v":0},{"$f":"Import!I20147","v":0},{"$f":"Import!I20188","v":0},{"$f":"Import!I20229","v":0},{"$f":"Import!I20270","v":0},0]
[null,"Corporate issuers",5,{"$f":"Import!I19902","v":0},{"$f":"Import!I19943","v":0},{"$f":"Import!I19984","v":0},{"$f":"Import!I20025","v":0},{"$f":"Import!I20066","v":0},{"$f":"Import!I20107","v":0},{"$f":"Import!I20148","v":0},{"$f":"Import!I20189","v":0},{"$f":"Import!I20230","v":0},{"$f":"Import!I20271","v":0},0]
[null,"Corporate issuers",6,{"$f":"Import!I19903","v":0},{"$f":"Import!I19944","v":0},{"$f":"Import!I19985","v":0},{"$f":"Import!I20026","v":0},{"$f":"Import!I20067","v":0},{"$f":"Import!I20108","v":0},{"$f":"Import!I20149","v":0},{"$f":"Import!I20190","v":0},{"$f":"Import!I20231","v":0},{"$f":"Import!I20272","v":0},0]
[null,"Corporate issuers",7,{"$f":"Import!I19904","v":0},{"$f":"Import!I19945","v":0},{"$f":"Import!I19986","v":0},{"$f":"Import!I20027","v":0},{"$f":"Import!I20068","v":0},{"$f":"Import!I20109","v":0},{"$f":"Import!I20150","v":0},{"$f":"Import!I20191","v":0},{"$f":"Import!I20232","v":0},{"$f":"Import!I20273","v":0},0]
[null,"Corporate issuers",8,{"$f":"Import!I19905","v":0},{"$f":"Import!I19946","v":0},{"$f":"Import!I19987","v":0},{"$f":"Import!I20028","v":0},{"$f":"Import!I20069","v":0},{"$f":"Import!I20110","v":0},{"$f":"Import!I20151","v":0},{"$f":"Import!I20192","v":0},{"$f":"Import!I20233","v":0},{"$f":"Import!I20274","v":0},0]
[null,"Issuers of asset-backed securities",1,{"$f":"Import!I19906","v":0},{"$f":"Import!I19947","v":0},{"$f":"Import!I19988","v":0},{"$f":"Import!I20029","v":0},{"$f":"Import!I20070","v":0},{"$f":"Import!I20111","v":0},{"$f":"Import!I20152","v":0},{"$f":"Import!I20193","v":0},{"$f":"Import!I20234","v":0},{"$f":"Import!I20275","v":0},0]
[null,"Issuers of asset-backed securities",2,{"$f":"Import!I19907","v":0},{"$f":"Import!I19948","v":0},{"$f":"Import!I19989","v":0},{"$f":"Import!I20030","v":0},{"$f":"Import!I20071","v":0},{"$f":"Import!I20112","v":0},{"$f":"Import!I20153","v":0},{"$f":"Import!I20194","v":0},{"$f":"Import!I20235","v":0},{"$f":"Import!I20276","v":0},0]
[null,"Issuers of asset-backed securities",3,{"$f":"Import!I19908","v":0},{"$f":"Import!I19949","v":0},{"$f":"Import!I19990","v":0},{"$f":"Import!I20031","v":0},{"$f":"Import!I20072","v":0},{"$f":"Import!I20113","v":0},{"$f":"Import!I20154","v":0},{"$f":"Import!I20195","v":0},{"$f":"Import!I20236","v":0},{"$f":"Import!I20277","v":0},0]
[null,"Issuers of asset-backed securities",4,{"$f":"Import!I19909","v":0},{"$f":"Import!I19950","v":0},{"$f":"Import!I19991","v":0},{"$f":"Import!I20032","v":0},{"$f":"Import!I20073","v":0},{"$f":"Import!I20114","v":0},{"$f":"Import!I20155","v":0},{"$f":"Import!I20196","v":0},{"$f":"Import!I20237","v":0},{"$f":"Import!I20278","v":0},0]
[null,"Issuers of asset-backed securities",5,{"$f":"Import!I19910","v":0},{"$f":"Import!I19951","v":0},{"$f":"Import!I19992","v":0},{"$f":"Import!I20033","v":0},{"$f":"Import!I20074","v":0},{"$f":"Import!I20115","v":0},{"$f":"Import!I20156","v":0},{"$f":"Import!I20197","v":0},{"$f":"Import!I20238","v":0},{"$f":"Import!I20279","v":0},0]
[null,"Issuers of asset-backed securities",6,{"$f":"Import!I19911","v":0},{"$f":"Import!I19952","v":0},{"$f":"Import!I19993","v":0},{"$f":"Import!I20034","v":0},{"$f":"Import!I20075","v":0},{"$f":"Import!I20116","v":0},{"$f":"Import!I20157","v":0},{"$f":"Import!I20198","v":0},{"$f":"Import!I20239","v":0},{"$f":"Import!I20280","v":0},0]
[null,"Issuers of asset-backed securities",7,{"$f":"Import!I19912","v":0},{"$f":"Import!I19953","v":0},{"$f":"Import!I19994","v":0},{"$f":"Import!I20035","v":0},{"$f":"Import!I20076","v":0},{"$f":"Import!I20117","v":0},{"$f":"Import!I20158","v":0},{"$f":"Import!I20199","v":0},{"$f":"Import!I20240","v":0},{"$f":"Import!I20281","v":0},0]
[null,"Issuers of asset-backed securities",8,{"$f":"Import!I19913","v":0},{"$f":"Import!I19954","v":0},{"$f":"Import!I19995","v":0},{"$f":"Import!I20036","v":0},{"$f":"Import!I20077","v":0},{"$f":"Import!I20118","v":0},{"$f":"Import!I20159","v":0},{"$f":"Import!I20200","v":0},{"$f":"Import!I20241","v":0},{"$f":"Import!I20282","v":0},0]
[null,"Government securities, municipal securities, foreign government securities",0,{"$f":"Import!I19914","v":0},{"$f":"Import!I19955","v":0},{"$f":"Import!I19996","v":0},{"$f":"Import!I20037","v":0},{"$f":"Import!I20078","v":0},{"$f":"Import!I20119","v":0},{"$f":"Import!I20160","v":0},{"$f":"Import!I20201","v":0},{"$f":"Import!I20242","v":0},{"$f":"Import!I20283","v":0},0]
[null,"Government securities, municipal securities, foreign government securities",1,{"$f":"Import!I19915","v":0},{"$f":"Import!I19956","v":0},{"$f":"Import!I19997","v":0},{"$f":"Import!I20038","v":0},{"$f":"Import!I20079","v":0},{"$f":"Import!I20120","v":0},{"$f":"Import!I20161","v":0},{"$f":"Import!I20202","v":0},{"$f":"Import!I20243","v":0},{"$f":"Import!I20284","v":0},0]
[null,"Government securities, municipal securities, foreign government securities",2,{"$f":"Import!I19916","v":0},{"$f":"Import!I19957","v":0},{"$f":"Import!I19998","v":0},{"$f":"Import!I20039","v":0},{"$f":"Import!I20080","v":0},{"$f":"Import!I20121","v":0},{"$f":"Import!I20162","v":0},{"$f":"Import!I20203","v":0},{"$f":"Import!I20244","v":0},{"$f":"Import!I20285","v":0},0]
[null,"Government securities, municipal securities, foreign government securities",3,{"$f":"Import!I19917","v":0},{"$f":"Import!I19958","v":0},{"$f":"Import!I19999","v":0},{"$f":"Import!I20040","v":0},{"$f":"Import!I20081","v":0},{"$f":"Import!I20122","v":0},{"$f":"Import!I20163","v":0},{"$f":"Import!I20204","v":0},{"$f":"Import!I20245","v":0},{"$f":"Import!I20286","v":0},0]
[null,"Government securities, municipal securities, foreign government securities",4,{"$f":"Import!I19918","v":0},{"$f":"Import!I19959","v":0},{"$f":"Import!I20000","v":0},{"$f":"Import!I20041","v":0},{"$f":"Import!I20082","v":0},{"$f":"Import!I20123","v":0},{"$f":"Import!I20164","v":0},{"$f":"Import!I20205","v":0},{"$f":"Import!I20246","v":0},{"$f":"Import!I20287","v":0},0]
[null,"Government securities, municipal securities, foreign government securities",5,{"$f":"Import!I19919","v":0},{"$f":"Import!I19960","v":0},{"$f":"Import!I20001","v":0},{"$f":"Import!I20042","v":0},{"$f":"Import!I20083","v":0},{"$f":"Import!I20124","v":0},{"$f":"Import!I20165","v":0},{"$f":"Import!I20206","v":0},{"$f":"Import!I20247","v":0},{"$f":"Import!I20288","v":0},0]
[null,"Government securities, municipal securities, foreign government securities",6,{"$f":"Import!I19920","v":0},{"$f":"Import!I19961","v":0},{"$f":"Import!I20002","v":0},{"$f":"Import!I20043","v":0},{"$f":"Import!I20084","v":0},{"$f":"Import!I20125","v":0},{"$f":"Import!I20166","v":0},{"$f":"Import!I20207","v":0},{"$f":"Import!I20248","v":0},{"$f":"Import!I20289","v":0},0]
[null,"Government securities, municipal securities, foreign government securities",7,{"$f":"Import!I19921","v":0},{"$f":"Import!I19962","v":0},{"$f":"Import!I20003","v":0},{"$f":"Import!I20044","v":0},{"$f":"Import!I20085","v":0},{"$f":"Import!I20126","v":0},{"$f":"Import!I20167","v":0},{"$f":"Import!I20208","v":0},{"$f":"Import!I20249","v":0},{"$f":"Import!I20290","v":0},0]
[null,"Government securities, municipal securities, foreign government securities",8,{"$f":"Import!I19922","v":0},{"$f":"Import!I19963","v":0},{"$f":"Import!I20004","v":0},{"$f":"Import!I20045","v":0},{"$f":"Import!I20086","v":0},{"$f":"Import!I20127","v":0},{"$f":"Import!I20168","v":0},{"$f":"Import!I20209","v":0},{"$f":"Import!I20250","v":0},{"$f":"Import!I20291","v":0},0]
[null,null,null,null,null,null,null,null,null,null,null,null,"Total",{"$f":"SUM(N2038:N2078)","v":0}]
[]
[null,"Total rated assets","BSCR Rating","Moody's Investor's Service","Standard and Poor's","Dominion Bond Rating Service","Kroll Bond Rating Agency","Egan Jones Rating Company","Japan Credit Rating Agency","BMA-approved Internal Ratings","Other BMA-approved Rating Agency 1","Other BMA-approved Rating Agency 2","Other BMA-approved Rating Agency 3","Total"]
[null,"Total rated assets",0,{"$f":"D2070","v":0},{"$f":"E2070","v":0},0,0,0,0,0,0,0,0,{"$f":"SUM(D2082:M2082)","v":0}]
[null,"Total rated assets",1,{"$f":"D2038+D2046+D2054+D2062+D2071","v":0},{"$f":"E2038+E2046+E2054+E2062+E2071","v":0},0,0,0,0,0,0,0,0,{"$f":"SUM(D2083:M2083)","v":0}]
[null,"Total rated assets",2,{"$f":"D2039+D2047+D2055+D2063+D2072","v":0},0,0,0,0,0,0,0,0,0,0]
[null,"Total rated assets",3,0,0,0,0,0,0,0,0,0,0,0]
[null,"Total rated assets",4,0,0,0,0,0,0,0,0,0,0,0]
[null,"Total rated assets",5,0,0,0,0,0,0,0,0,0,0,0]
[null,"Total rated assets",6,0,0,0,0,0,0,0,0,0,0,0]
[null,"Total rated assets",7,0,0,0,0,0,0,0,0,0,0,0]
[null,"Total rated assets",8,0,0,0,0,0,0,0,0,0,0,0]
[null,"Total rated assets","Total",{"$f":"SUM(D2082:D2090)","v":0},{"$f":"SUM(E2082:E2090)","v":0},0,0,0,0,0,0,0,0,0]
[]
[null,"Asset/Rating Category","BSCR Rating","Unrated"]
[null,"Financial institutions, brokers and dealers",8,{"$f":"Import!I20292","v":0}]
[null,"Insurance companies",8,{"$f":"Import!I20293","v":0}]
[null,"Corporate issuers",8,{"$f":"Import!I20294","v":0}]
[null,"Issuers of asset-backed securities",8,{"$f":"Import!I20295","v":0}]
[null,"Government securities, municipal securities, foreign government securities",8,{"$f":"Import!I20296","v":0}]
[null,"Total unrated assets","Total",{"$f":"SUM(D2094:D2098)","v":0}]
[]
[null,"Asset/Rating Category","BSCR Rating","Financial institutions, brokers and dealers","Insurance companies","Corporate issuers","Issuers of asset-backed securities","Government securities, municipal securities, foreign government securities","Total"]
[null,"Total",0,null,null,null,null,{"$f":"N2070","v":0},{"$f":"SUM(H2102)","v":0}]
[null,"Total",1,{"$f":"N2038","v":0},{"$f":"N2046","v":0},{"$f":"N2054","v":0},{"$f":"N2062","v":0},0,{"$f":"SUM(D2103:H2103)","v":0}]
[null,"Total",2,0,0,0,0,0,{"$f":"SUM(D2104:H2104)","v":0}]
[null,"Total",3,0,0,0,0,0,0]
[null,"Total",4,0,0,0,0,0,0]
[null,"Total",5,0,0,0,0,0,0]
[null,"Total",6,0,0,0,0,0,0]
[null,"Total",7,0,0,0,0,0,0]
[null,"Total",8,{"$f":"N2045+D2094","v":0},{"$f":"N2053+D2095","v":0},{"$f":"N2061+D2096","v":0},{"$f":"N2069+D2097","v":0},{"$f":"N2078+D2098","v":0},0]
[null,"Total fixed income assets","Total",{"$f":"SUM(D2103:D2110)","v":0},{"$f":"SUM(E2103:E2110)","v":0},{"$f":"SUM(F2103:F2110)","v":0},{"$f":"SUM(G2103:G2110)","v":0},{"$f":"SUM(H2102:H2110)","v":0},{"$f":"SUM(D2111:H2111)","v":0}]
[null,"Unrated","- of which unrated",{"$f":"D2094","v":0},{"$f":"D2095","v":0},{"$f":"D2096","v":0},{"$f":"D2097","v":0},{"$f":"D2098","v":0},{"$f":"SUM(D2112:H2112)","v":0}]
[]
[]
["Cash","Sovereign Bonds","RMBS - Agency","Listed Preferred Equity - Direct","Hedge Funds","Investment Income Due and Accrued","Energy","Holding Entity","Significant Influence","United States Dollars","Positive market value",null,null,null,null,"Residential Mortgages",null,"United States of America"]
["Certificates of Deposit","Municipals","RMBS - Non-agency","Listed Preferred Equity - ETF","Equity investments in Infrastructure","Accounts and Premiums Receivable","Materials","Operating Entity","Control","Euro","Negative market value",null,null,null,null,"Other Residential Loans",null,"Bermuda"]
["Short-Term Commercial Paper","Supranationals (multilateral development banks and international organizations)","CMBS","Listed Preferred Equity - Mutual Fund","Commodities - Direct","Reinsurance Balance Receivable","Industrial","Branch","Select","Afghanistan Afghanis","Select",null,null,null,null,"Commercial and Farm Mortgages",null,"United Kingdom of Great Britain and Northern Ireland"]
["Money Market Funds","Corporate bonds","CLOs","Private Preferred Equity - Direct","Commodities - ETF","Funds Held by Ceding Reinsurers","Consumer Discretionary","Select",null,"Albania Leke",null,null,null,null,null,"Other Commercial Real Estate Loans",null,"Canada"]
["Other","Private Placements","CDOs","Private Preferred Equity - Fund","Commodities - Mutual Funds","SAC - long-term business - variable annuities","Consumer Staples",null,null,"Armenia Drams",null,null,null,null,null,"Middle Market Loans"]
["Select","Other - Secured Bonds","Auto Loan ABS","Other - Listed Preferred Equity","Catastrophe Bonds","SAC - long-term business - others","Healthcare",null,null,"Netherlands Antilles Guilders",null,null,null,null,null,"Leveraged Loans",null,"Afghanistan"]
[null,"Other - Unsecured Bonds","Student Loan ABS","Other - Private Preferred Equity","Other Insurance-Linked Securities","SAC - general business","Financial",null,null,"Angola Kwanza",null,null,null,null,null,"Other Direct Private Lending",null,"Aland Islands"]
[null,"Exchange-Traded Fund - Sovereigns","Credit Card Receivable ABS","Select","Advances to Affiliates","Deposit assets","Select",null,null,"Argentina Pesos",null,null,null,null,null,"Infrastructure Loans",null,"Albania"]
[null,"Mutual Fund - Sovereigns","Other ABS",null,"Investments in Affiliates","Other Sundry Assets",null,null,null,"Australia Dollars",null,null,null,null,null,"Collateral Loans",null,"Algeria"]
[null,"Exchange-Traded Fund - Corporates","Select",null,"Other","Letter of Credit, Guarantees and Other Instruments",null,null,null,"Aruba Guilders",null,null,null,null,null,"Equity Release / Reverse Mortgages",null,"American Samoa"]
[null,"Mutual Fund - Corporates",null,null,"Select","Other",null,null,null,"Azerbaijan New Manats",null,null,null,null,null,"Policy Loans",null,"Andorra"]
[null,"Other Funds",null,null,null,"Select",null,null,null,"Bosnia and Herzegovina Convertible Marka",null,null,null,null,null,"Other Direct Loans",null,"Angola"]
[null,"Select",null,null,null,null,null,null,null,"Barbados Dollars",null,null,null,null,null,"Mortgage Loan Fund - Residential",null,"Anguilla"]
[null,null,null,null,null,null,null,null,null,"Bangladesh Taka",null,null,null,null,null,"Mortgage Loan Fund - Commercial",null,"Antigua and Barbuda"]
[null,null,null,null,null,null,null,null,null,"Bulgaria Leva",null,null,null,null,null,"Private Credit Fund",null,"Argentina"]
[null,null,null,null,null,null,null,null,null,"Bahrain Dinars",null,null,null,null,null,"Other Loan Fund",null,"Armenia"]
["Listed options","Equity","Hedging","Long / Receive Fixed / Sell Protection","Private Equities","Investment Income Due and Accrued","Direct Real Estate - Residential",null,null,"Burundi Francs",null,null,null,null,null,"Select",null,"Aruba"]
["Futures","Debt","Speculative","Short / Receive Floating / Buy Protection","Investment Funds","Accounts and Premiums Receivable","Direct Real Estate - Commercial",null,null,"Bermuda Dollars",null,null,null,null,null,null,null,"Australia"]
["Forwards","Interest Rate","Select","Select","Hedge Funds","Reinsurance Balance Receivable","Direct Real-Estate - Industrial",null,null,"Brunei Dollars",null,null,null,null,null,"Insured/Guaranteed Mortgages",null,"Austria"]
["Swaps","Inflation",null,null,"Private Credit Funds","SAC - long-term business - variable annuities","Direct Real Estate - Land",null,null,"Bolivia Bolivianos",null,null,null,null,null,"Other Commercial and Farm Mortgages",null,"Azerbaijan"]
["Swaptions","Credit",null,null,"Catastrophe Bonds","SAC - long-term business - others","Real Estate Funds - Residential",null,null,"Brazil Reais",null,null,null,null,null,"Other Residential Mortgages",null,"Bahamas"]
["OTC options","Currencies","Yes","Exchange-traded","Other Insurance-Linked Securities","SAC - general business","Real Estate Funds - Commercial",null,null,"Bahamas Dollars",null,null,null,null,null,"Mortgages Not In Good Standing",null,"Bahrain"]
["Other","Commodities","No","OTC – Centrally-cleared","Infrastructure Debt","Deposit assets","Real-Estate Funds - Industrial",null,null,"Bhutan Ngultrum",null,null,null,null,null,"Collateral Loans",null,"Bangladesh"]
["Select","Other","Select","OTC – Not centrally-cleared","Equity Investments in Infrastructure","Other Sundry Assets","Real Estate Funds - Land",null,null,"Botswana Pulas",null,null,null,null,null,"Middle Market Loans",null,"Barbados"]
[null,"Select",null,"Select","Other","Letter of Credit, Guarantees and Other Instruments","Direct Real Estate - Other",null,null,"Belarus Rubles",null,null,null,null,null,"Other Direct Private Lending",null,"Belarus"]
[null,null,null,null,"Select","Other","Real Estate Funds - Other",null,null,"Belize Dollars",null,null,null,null,null,"Policy Loans",null,"Belgium"]
[null,null,null,null,null,"Select","Select",null,null,"Canada Dollars",null,null,null,null,null,"Other",null,"Belize"]
[null,null,null,null,null,null,null,null,null,"Congo/Kinshasa Francs",null,null,null,null,null,"Select",null,"Benin"]
[null,null,null,null,null,null,null,null,null,"Switzerland Francs",null,null,null,null,null,null,null,"Bhutan"]
["BSCR Rating",null,"Listed Equity - Direct",null,null,null,null,null,null,"Chile Pesos",null,null,null,null,null,null,null,"Bolivia (Plurinational State of)"]
["Select",null,"Listed Equity - ETF",null,null,null,"Investment",null,null,"China Yuan Renminbi",null,null,null,null,null,null,null,"Bonaire, Sint Eustatius and Saba"]
["BSCR Rating 0",null,"Listed Equity - Mutual Fund",null,null,null,"Owner-occupied",null,null,"Colombia Pesos",null,null,null,null,null,null,null,"Bosnia and Herzegovina"]
["BSCR Rating 1",null,"Private Equity - Direct",null,null,null,"Select",null,null,"Costa Rica Colones",null,null,null,null,null,null,null,"Botswana"]
["BSCR Rating 2",null,"Private Equity - Fund",null,null,null,null,null,null,"Cuba Convertible Pesos",null,null,null,null,null,null,null,"Brazil"]
["BSCR Rating 3",null,"Other - Listed Equity",null,null,null,null,null,null,"Cuba Pesos",null,null,null,null,null,null,null,"British Virgin Islands"]
["BSCR Rating 4",null,"Other - Private Equity",null,null,null,null,null,null,"Cape Verde Escudos",null,null,null,null,null,null,null,"Brunei Darussalam"]
["BSCR Rating 5",null,"Select",null,null,null,null,null,null,"Czech Republic Koruny",null,null,null,null,null,null,null,"Bulgaria"]
["BSCR Rating 6",null,null,null,null,null,null,null,null,"Djibouti Francs",null,null,null,null,null,null,null,"Burkina Faso"]
["BSCR Rating 7",null,null,null,null,null,null,null,null,"Denmark Kroner",null,null,null,null,null,null,null,"Burundi"]
["BSCR Rating 8",null,null,null,null,null,null,null,null,"Dominican Republic Pesos",null,null,null,null,null,null,null,"Cabo Verde (Cape Verde)"]
[null,null,null,null,null,null,null,null,null,"Algeria Dinars",null,null,null,null,null,null,null,"Cambodia"]
[null,null,null,null,null,null,null,null,null,"Estonia Krooni",null,null,null,null,null,null,null,"Cameroon"]
[null,null,null,null,null,null,null,null,null,"Egypt Pounds",null,null,null,null,null,null,null,"Cayman Islands"]
[null,null,null,null,null,null,null,null,null,"Eritrea Nakfa",null,null,null,null,null,null,null,"Central African Republic"]
[null,null,null,null,null,null,null,null,null,"Ethiopia Birr",null,null,null,null,null,null,null,"Chad"]
[null,null,null,null,null,null,null,null,null,"Fiji Dollars",null,null,null,null,null,null,null,"Chile"]
[null,null,null,null,null,null,null,null,null,"Falkland Islands Pounds",null,null,null,null,null,null,null,"China"]
[null,null,null,null,null,null,null,null,null,"United Kingdom Pounds",null,null,null,null,null,null,null,"China, Hong Kong SAR"]
[null,null,null,null,null,null,null,null,null,"Georgia Lari",null,null,null,null,null,null,null,"China, Macao SAR "]
[null,null,null,null,null,null,null,null,null,"Guernsey Pounds",null,null,null,null,null,null,null,"Colombia"]
[null,null,null,null,null,null,null,null,null,"Ghana Cedis",null,null,null,null,null,null,null,"Comoros"]
[null,null,null,null,null,null,null,null,null,"Gibraltar Pounds",null,null,null,null,null,null,null,"Congo"]
[null,null,null,null,null,null,null,null,null,"Gambia Dalasi",null,null,null,null,null,null,null,"Cook Islands"]
[null,null,null,null,null,null,null,null,null,"Guinea Francs",null,null,null,null,null,null,null,"Costa Rica"]
[null,null,null,null,null,null,null,null,null,"Guatemala Quetzales",null,null,null,null,null,null,null,"Cote d' Ivoire"]
[null,null,null,null,null,null,null,null,null,"Guyana Dollars",null,null,null,null,null,null,null,"Croatia"]
[null,null,null,null,null,null,null,null,null,"Hong Kong Dollars",null,null,null,null,null,null,null,"Cuba"]
[null,null,null,null,null,null,null,null,null,"Honduras Lempiras",null,null,null,null,null,null,null,"Curacao"]
[null,null,null,null,null,null,null,null,null,"Croatia Kuna",null,null,null,null,null,null,null,"Cyprus"]
[null,null,null,null,null,null,null,null,null,"Haiti Gourdes",null,null,null,null,null,null,null,"Czech Republic"]
[null,null,null,null,null,null,null,null,null,"Hungary Forint",null,null,null,null,null,null,null,"Democratic People's Republic of Korea (North Korea)"]
[null,null,null,null,null,null,null,null,null,"Indonesia Rupiahs",null,null,null,null,null,null,null,"Democratic Republic of the Congo"]
[null,null,null,null,null,null,null,null,null,"Israel New Shekels",null,null,null,null,null,null,null,"Denmark"]
[null,null,null,null,null,null,null,null,null,"Isle of Man Pounds",null,null,null,null,null,null,null,"Djibouti"]
[null,null,null,null,null,null,null,null,null,"India Rupees",null,null,null,null,null,null,null,"Dominica"]
[null,null,null,null,null,null,null,null,null,"Iraq Dinars",null,null,null,null,null,null,null,"Dominican Republic"]
[null,null,null,null,null,null,null,null,null,"Iran Rials",null,null,null,null,null,null,null,"Ecuador"]
[null,null,null,null,null,null,null,null,null,"Iceland Kronur",null,null,null,null,null,null,null,"Egypt"]
[null,null,null,null,null,null,null,null,null,"Jersey Pounds",null,null,null,null,null,null,null,"El Salvador"]
[null,null,null,null,null,null,null,null,null,"Jamaica Dollars",null,null,null,null,null,null,null,"Equatorial Guinea"]
[null,null,null,null,null,null,null,null,null,"Jordan Dinars",null,null,null,null,null,null,null,"Eritrea"]
[null,null,null,null,null,null,null,null,null,"Japan Yen",null,null,null,null,null,null,null,"Estonia"]
[null,null,null,null,null,null,null,null,null,"Kenya Shillings",null,null,null,null,null,null,null,"Eswatini (Kingdom of Swaziland)"]
[null,null,null,null,null,null,null,null,null,"Kyrgyzstan Soms",null,null,null,null,null,null,null,"Ethiopia"]
[null,null,null,null,null,null,null,null,null,"Cambodia Riels",null,null,null,null,null,null,null,"Falkland Islands"]
[null,null,null,null,null,null,null,null,null,"Comoros Francs",null,null,null,null,null,null,null,"Faroe Islands"]
[null,null,null,null,null,null,null,null,null,"North Korea Won",null,null,null,null,null,null,null,"Fiji"]
[null,null,null,null,null,null,null,null,null,"South Korea Won",null,null,null,null,null,null,null,"Finland"]
[null,null,null,null,null,null,null,null,null,"Kuwait Dinars",null,null,null,null,null,null,null,"France"]
[null,null,null,null,null,null,null,null,null,"Cayman Islands Dollars",null,null,null,null,null,null,null,"French Guiana"]
[null,null,null,null,null,null,null,null,null,"Kazakhstan Tenge",null,null,null,null,null,null,null,"French Polynesia"]
[null,null,null,null,null,null,null,null,null,"Laos Kips",null,null,null,null,null,null,null,"Gabon"]
[null,null,null,null,null,null,null,null,null,"Lebanon Pounds",null,null,null,null,null,null,null,"Gambia (Republic of The)"]
[null,null,null,null,null,null,null,null,null,"Sri Lanka Rupees",null,null,null,null,null,null,null,"Georgia"]
[null,null,null,null,null,null,null,null,null,"Liberia Dollars",null,null,null,null,null,null,null,"Germany"]
[null,null,null,null,null,null,null,null,null,"Lesotho Maloti",null,null,null,null,null,null,null,"Ghana"]
[null,null,null,null,null,null,null,null,null,"Lithuania Litai",null,null,null,null,null,null,null,"Gibraltar"]
[null,null,null,null,null,null,null,null,null,"Latvia Lati",null,null,null,null,null,null,null,"Greece"]
[null,null,null,null,null,null,null,null,null,"Libya Dinars",null,null,null,null,null,null,null,"Greenland"]
[null,null,null,null,null,null,null,null,null,"Morocco Dirhams",null,null,null,null,null,null,null,"Grenada"]
[null,null,null,null,null,null,null,null,null,"Moldova Lei",null,null,null,null,null,null,null,"Guadeloupe"]
[null,null,null,null,null,null,null,null,null,"Madagascar Ariary",null,null,null,null,null,null,null,"Guam"]
[null,null,null,null,null,null,null,null,null,"Macedonia Denars",null,null,null,null,null,null,null,"Guatemala"]
[null,null,null,null,null,null,null,null,null,"Myanmar Kyats",null,null,null,null,null,null,null,"Guernsey"]
[null,null,null,null,null,null,null,null,null,"Mongolia Tugriks",null,null,null,null,null,null,null,"Guinea"]
[null,null,null,null,null,null,null,null,null,"Macau Patacas",null,null,null,null,null,null,null,"Guinea-Bissau"]
[null,null,null,null,null,null,null,null,null,"Mauritania Ouguiyas",null,null,null,null,null,null,null,"Guyana"]
[null,null,null,null,null,null,null,null,null,"Mauritius Rupees",null,null,null,null,null,null,null,"Haiti"]
[null,null,null,null,null,null,null,null,null,"Maldives Rufiyaa",null,null,null,null,null,null,null,"Holy See"]
[null,null,null,null,null,null,null,null,null,"Malawi Kwachas",null,null,null,null,null,null,null,"Honduras"]
[null,null,null,null,null,null,null,null,null,"Mexico Pesos",null,null,null,null,null,null,null,"Hungary"]
[null,null,null,null,null,null,null,null,null,"Malaysia Ringgits",null,null,null,null,null,null,null,"Iceland"]
[null,null,null,null,null,null,null,null,null,"Mozambique Meticais",null,null,null,null,null,null,null,"India"]
[null,null,null,null,null,null,null,null,null,"Namibia Dollars",null,null,null,null,null,null,null,"Indonesia"]
[null,null,null,null,null,null,null,null,null,"Nigeria Nairas",null,null,null,null,null,null,null,"Iran (Islamic Republic of)"]
[null,null,null,null,null,null,null,null,null,"Nicaragua Cordobas",null,null,null,null,null,null,null,"Iraq"]
[null,null,null,null,null,null,null,null,null,"Norway Kroner",null,null,null,null,null,null,null,"Ireland"]
[null,null,null,null,null,null,null,null,null,"Nepal Rupees",null,null,null,null,null,null,null,"Isle of Man"]
[null,null,null,null,null,null,null,null,null,"New Zealand Dollars",null,null,null,null,null,null,null,"Israel"]
[null,null,null,null,null,null,null,null,null,"Oman Rials",null,null,null,null,null,null,null,"Italy"]
[null,null,null,null,null,null,null,null,null,"Panama Balboas",null,null,null,null,null,null,null,"Jamaica"]
[null,null,null,null,null,null,null,null,null,"Peru Nuevos Soles",null,null,null,null,null,null,null,"Japan"]
[null,null,null,null,null,null,null,null,null,"Papua New Guinea Kina",null,null,null,null,null,null,null,"Jersey"]
[null,null,null,null,null,null,null,null,null,"Philippines Pesos",null,null,null,null,null,null,null,"Jordan"]
[null,null,null,null,null,null,null,null,null,"Pakistan Rupees",null,null,null,null,null,null,null,"Kazakhstan"]
[null,null,null,null,null,null,null,null,null,"Poland Zlotych",null,null,null,null,null,null,null,"Kenya"]
[null,null,null,null,null,null,null,null,null,"Paraguay Guarani",null,null,null,null,null,null,null,"Kiribati"]
[null,null,null,null,null,null,null,null,null,"Qatar Riyals",null,null,null,null,null,null,null,"Kuwait"]
[null,null,null,null,null,null,null,null,null,"Romania New Lei",null,null,null,null,null,null,null,"Kyrgyzstan"]
[null,null,null,null,null,null,null,null,null,"Serbia Dinars",null,null,null,null,null,null,null,"Lao People's Democratic Republic"]
[null,null,null,null,null,null,null,null,null,"Russia Rubles",null,null,null,null,null,null,null,"Latvia"]
[null,null,null,null,null,null,null,null,null,"Rwanda Francs",null,null,null,null,null,null,null,"Lebanon"]
[null,null,null,null,null,null,null,null,null,"Saudi Arabia Riyals",null,null,null,null,null,null,null,"Lesotho"]
[null,null,null,null,null,null,null,null,null,"Solomon Islands Dollars",null,null,null,null,null,null,null,"Liberia"]
[null,null,null,null,null,null,null,null,null,"Seychelles Rupees",null,null,null,null,null,null,null,"Libya"]
[null,null,null,null,null,null,null,null,null,"Sudan Pounds",null,null,null,null,null,null,null,"Liechtenstein"]
[null,null,null,null,null,null,null,null,null,"Sweden Kronor",null,null,null,null,null,null,null,"Lithuania"]
[null,null,null,null,null,null,null,null,null,"Singapore Dollars",null,null,null,null,null,null,null,"Luxembourg"]
[null,null,null,null,null,null,null,null,null,"Saint Helena Pounds",null,null,null,null,null,null,null,"Madagascar"]
[null,null,null,null,null,null,null,null,null,"Slovakia Koruny",null,null,null,null,null,null,null,"Malawi"]
[null,null,null,null,null,null,null,null,null,"Sierra Leone Leones",null,null,null,null,null,null,null,"Malaysia"]
[null,null,null,null,null,null,null,null,null,"Somalia Shillings",null,null,null,null,null,null,null,"Maldives"]
[null,null,null,null,null,null,null,null,null,"Seborga Luigini",null,null,null,null,null,null,null,"Mali"]
[null,null,null,null,null,null,null,null,null,"Suriname Dollars",null,null,null,null,null,null,null,"Malta"]
[null,null,null,null,null,null,null,null,null,"São Tome and Principe Dobras",null,null,null,null,null,null,null,"Marshall Islands"]
[null,null,null,null,null,null,null,null,null,"El Salvador Colones",null,null,null,null,null,null,null,"Martinique"]
[null,null,null,null,null,null,null,null,null,"Syria Pounds",null,null,null,null,null,null,null,"Mauritania"]
[null,null,null,null,null,null,null,null,null,"Swaziland Emalangeni",null,null,null,null,null,null,null,"Mauritius"]
[null,null,null,null,null,null,null,null,null,"Thailand Baht",null,null,null,null,null,null,null,"Mayotte"]
[null,null,null,null,null,null,null,null,null,"Tajikistan Somoni",null,null,null,null,null,null,null,"Mexico"]
[null,null,null,null,null,null,null,null,null,"Turkmenistan Manats",null,null,null,null,null,null,null,"Micronesia (Federated States of)"]
[null,null,null,null,null,null,null,null,null,"Tunisia Dinars",null,null,null,null,null,null,null,"Monaco"]
[null,null,null,null,null,null,null,null,null,"Tonga Pa'anga",null,null,null,null,null,null,null,"Mongolia"]
[null,null,null,null,null,null,null,null,null,"Turkey New Lira",null,null,null,null,null,null,null,"Montenegro"]
[null,null,null,null,null,null,null,null,null,"Trinidad and Tobago Dollars",null,null,null,null,null,null,null,"Montserrat"]
[null,null,null,null,null,null,null,null,null,"Tuvalu Dollars",null,null,null,null,null,null,null,"Morocco"]
[null,null,null,null,null,null,null,null,null,"Taiwan New Dollars",null,null,null,null,null,null,null,"Mozambique"]
[null,null,null,null,null,null,null,null,null,"Tanzania Shillings",null,null,null,null,null,null,null,"Myanmar"]
[null,null,null,null,null,null,null,null,null,"Ukraine Hryvnia",null,null,null,null,null,null,null,"Namibia"]
[null,null,null,null,null,null,null,null,null,"Uganda Shillings",null,null,null,null,null,null,null,"Nauru"]
[null,null,null,null,null,null,null,null,null,"Uruguay Pesos",null,null,null,null,null,null,null,"Nepal"]
[null,null,null,null,null,null,null,null,null,"Uzbekistan Sums",null,null,null,null,null,null,null,"Netherlands"]
[null,null,null,null,null,null,null,null,null,"Venezuela Bolivares",null,null,null,null,null,null,null,"New Caledonia"]
[null,null,null,null,null,null,null,null,null,"Venezuela Bolivares Fuertes",null,null,null,null,null,null,null,"New Zealand"]
[null,null,null,null,null,null,null,null,null,"Vietnam Dong",null,null,null,null,null,null,null,"Nicaragua"]
[null,null,null,null,null,null,null,null,null,"Vanuatu Vatu",null,null,null,null,null,null,null,"Niger"]
[null,null,null,null,null,null,null,null,null,"Samoa Tala",null,null,null,null,null,null,null,"Nigeria"]
[null,null,null,null,null,null,null,null,null,"Communauté Financière Africaine Francs BEAC",null,null,null,null,null,null,null,"Niue"]
[null,null,null,null,null,null,null,null,null,"Silver Ounces",null,null,null,null,null,null,null,"Norfolk Island"]
[null,null,null,null,null,null,null,null,null,"Gold Ounces",null,null,null,null,null,null,null,"North Macedonia"]
[null,null,null,null,null,null,null,null,null,"East Caribbean Dollars",null,null,null,null,null,null,null,"Northern Mariana Islands"]
[null,null,null,null,null,null,null,null,null,"International Monetary Fund Special Drawing Rights",null,null,null,null,null,null,null,"Norway"]
[null,null,null,null,null,null,null,null,null,"Communauté Financière Africaine Francs BCEAO",null,null,null,null,null,null,null,"Oman"]
[null,null,null,null,null,null,null,null,null,"Palladium Ounces",null,null,null,null,null,null,null,"Pakistan"]
[null,null,null,null,null,null,null,null,null,"Comptoirs Français du Pacifique Francs",null,null,null,null,null,null,null,"Palau"]
[null,null,null,null,null,null,null,null,null,"Platinum Ounces",null,null,null,null,null,null,null,"Panama"]
[null,null,null,null,null,null,null,null,null,"Yemen Rials",null,null,null,null,null,null,null,"Papua New Guinea"]
[null,null,null,null,null,null,null,null,null,"South Africa Rand",null,null,null,null,null,null,null,"Paraguay"]
[null,null,null,null,null,null,null,null,null,"Zambia Kwacha",null,null,null,null,null,null,null,"Peru"]
[null,null,null,null,null,null,null,null,null,"Zimbabwe Dollars",null,null,null,null,null,null,null,"Philippines"]
[null,null,null,null,null,null,null,null,null,null,null,null,null,null,null,null,null,"Pitcairn"]
[null,null,null,null,null,null,null,null,null,null,null,null,null,null,null,null,null,"Poland"]
[null,null,null,null,null,null,null,null,null,null,null,null,null,null,null,null,null,"Portugal"]
[null,null,null,null,null,null,null,null,null,null,null,null,null,null,null,null,null,"Puerto Rico"]
[null,null,null,null,null,null,null,null,null,null,null,null,null,null,null,null,null,"Qatar"]
[null,null,null,null,null,null,null,null,null,null,null,null,null,null,null,null,null,"Republic of Korea (South Korea)"]
[null,null,null,null,null,null,null,null,null,null,null,null,null,null,null,null,null,"Republic of Moldova"]
[null,null,null,null,null,null,null,null,null,null,null,null,null,null,null,null,null,"Reunion"]
[null,null,null,null,null,null,null,null,null,null,null,null,null,null,null,null,null,"Romania"]
[null,null,null,null,null,null,null,null,null,null,null,null,null,null,null,null,null,"Russian Federation"]
[null,null,null,null,null,null,null,null,null,null,null,null,null,null,null,null,null,"Rwanda"]
[null,null,null,null,null,null,null,null,null,null,null,null,null,null,null,null,null,"Saint Barthelemy (St. Barts)"]
[null,null,null,null,null,null,null,null,null,null,null,null,null,null,null,null,null,"Saint Helena"]
[null,null,null,null,null,null,null,null,null,null,null,null,null,null,null,null,null,"Saint Kitts and Nevis"]
[null,null,null,null,null,null,null,null,null,null,null,null,null,null,null,null,null,"Saint Lucia"]
[null,null,null,null,null,null,null,null,null,null,null,null,null,null,null,null,null,"Saint Martin"]
[null,null,null,null,null,null,null,null,null,null,null,null,null,null,null,null,null,"Saint Pierre and Miquelon"]
[null,null,null,null,null,null,null,null,null,null,null,null,null,null,null,null,null,"Saint Vincent and The Grenadines"]
[null,null,null,null,null,null,null,null,null,null,null,null,null,null,null,null,null,"Samoa"]
[null,null,null,null,null,null,null,null,null,null,null,null,null,null,null,null,null,"San Marino"]
[null,null,null,null,null,null,null,null,null,null,null,null,null,null,null,null,null,"Sao Tome and Principe"]
[null,null,null,null,null,null,null,null,null,null,null,null,null,null,null,null,null,"Sark"]
[null,null,null,null,null,null,null,null,null,null,null,null,null,null,null,null,null,"Saudi Arabia"]
[null,null,null,null,null,null,null,null,null,null,null,null,null,null,null,null,null,"Senegal"]
[null,null,null,null,null,null,null,null,null,null,null,null,null,null,null,null,null,"Serbia"]
[null,null,null,null,null,null,null,null,null,null,null,null,null,null,null,null,null,"Seychelles"]
[null,null,null,null,null,null,null,null,null,null,null,null,null,null,null,null,null,"Sierra Leone"]
[null,null,null,null,null,null,null,null,null,null,null,null,null,null,null,null,null,"Singapore"]
[null,null,null,null,null,null,null,null,null,null,null,null,null,null,null,null,null,"Sint Maarten"]
[null,null,null,null,null,null,null,null,null,null,null,null,null,null,null,null,null,"Slovakia"]
[null,null,null,null,null,null,null,null,null,null,null,null,null,null,null,null,null,"Slovenia"]
[null,null,null,null,null,null,null,null,null,null,null,null,null,null,null,null,null,"Solomon Islands"]
[null,null,null,null,null,null,null,null,null,null,null,null,null,null,null,null,null,"Somalia"]
[null,null,null,null,null,null,null,null,null,null,null,null,null,null,null,null,null,"South Africa"]
[null,null,null,null,null,null,null,null,null,null,null,null,null,null,null,null,null,"South Sudan"]
[null,null,null,null,null,null,null,null,null,null,null,null,null,null,null,null,null,"Spain"]
[null,null,null,null,null,null,null,null,null,null,null,null,null,null,null,null,null,"Sri Lanka"]
[null,null,null,null,null,null,null,null,null,null,null,null,null,null,null,null,null,"State of Palestine"]
[null,null,null,null,null,null,null,null,null,null,null,null,null,null,null,null,null,"Sudan"]
[null,null,null,null,null,null,null,null,null,null,null,null,null,null,null,null,null,"Suriname"]
[null,null,null,null,null,null,null,null,null,null,null,null,null,null,null,null,null,"Svalbard, Jan Mayen"]
[null,null,null,null,null,null,null,null,null,null,null,null,null,null,null,null,null,"Sweden"]
[null,null,null,null,null,null,null,null,null,null,null,null,null,null,null,null,null,"Switzerland"]
[null,null,null,null,null,null,null,null,null,null,null,null,null,null,null,null,null,"Syrian Arab Republic"]
[null,null,null,null,null,null,null,null,null,null,null,null,null,null,null,null,null,"Taiwan"]
[null,null,null,null,null,null,null,null,null,null,null,null,null,null,null,null,null,"Tajikistan"]
[null,null,null,null,null,null,null,null,null,null,null,null,null,null,null,null,null,"Thailand"]
[null,null,null,null,null,null,null,null,null,null,null,null,null,null,null,null,null,"Timor-Leste"]
[null,null,null,null,null,null,null,null,null,null,null,null,null,null,null,null,null,"Togo"]
[null,null,null,null,null,null,null,null,null,null,null,null,null,null,null,null,null,"Tokelau"]
[null,null,null,null,null,null,null,null,null,null,null,null,null,null,null,null,null,"Tonga"]
[null,null,null,null,null,null,null,null,null,null,null,null,null,null,null,null,null,"Trinidad and Tobago"]
[null,null,null,null,null,null,null,null,null,null,null,null,null,null,null,null,null,"Tunisia"]
[null,null,null,null,null,null,null,null,null,null,null,null,null,null,null,null,null,"Turkey"]
[null,null,null,null,null,null,null,null,null,null,null,null,null,null,null,null,null,"Turkmenistan"]
[null,null,null,null,null,null,null,null,null,null,null,null,null,null,null,null,null,"Turks & Caicos Islands"]
[null,null,null,null,null,null,null,null,null,null,null,null,null,null,null,null,null,"Tuvalu"]
[null,null,null,null,null,null,null,null,null,null,null,null,null,null,null,null,null,"Uganda"]
[null,null,null,null,null,null,null,null,null,null,null,null,null,null,null,null,null,"Ukraine"]
[null,null,null,null,null,null,null,null,null,null,null,null,null,null,null,null,null,"United Arab Emirates"]
[null,null,null,null,null,null,null,null,null,null,null,null,null,null,null,null,null,"United Republic of Tanzania"]
[null,null,null,null,null,null,null,null,null,null,null,null,null,null,null,null,null,"Uruguay"]
[null,null,null,null,null,null,null,null,null,null,null,null,null,null,null,null,null,"US Virgin Islands"]
[null,null,null,null,null,null,null,null,null,null,null,null,null,null,null,null,null,"Uzbekistan"]
[null,null,null,null,null,null,null,null,null,null,null,null,null,null,null,null,null,"Vanuatu"]
[null,null,null,null,null,null,null,null,null,null,null,null,null,null,null,null,null,"Venezuela, Bolivarian Republic of "]
[null,null,null,null,null,null,null,null,null,null,null,null,null,null,null,null,null,"Vietnam"]
[null,null,null,null,null,null,null,null,null,null,null,null,null,null,null,null,null,"Wallis & Futuna Islands"]
[null,null,null,null,null,null,null,null,null,null,null,null,null,null,null,null,null,"Western Sahara"]
[null,null,null,null,null,null,null,null,null,null,null,null,null,null,null,null,null,"Yemen"]
[null,null,null,null,null,null,null,null,null,null,null,null,null,null,null,null,null,"Zambia"]
[null,null,null,null,null,null,null,null,null,null,null,null,null,null,null,null,null,"Zimbabwe"]
[null,null,null,null,null,null,null,null,null,null,null,null,null,null,null,null,null,"Select"]

{"sheet":"Schedule VIA (EBS)","index":55,"n_rows":2357,"n_cols":18,"rows_kept":2357,"cut":false,"hidden":false,"merged":[[1764,7,1765,7],[1789,1,1789,2],[1763,5,1765,5],[1793,1,1793,2],[1339,1,1339,2],[1342,1,1342,2],[1447,1,1447,2],[1450,1,1450,2],[1555,1,1555,2],[1764,6,1765,6],[5,1,5,2],[213,1,213,2],[216,1,216,2],[987,1,987,2],[990,1,990,2],[1234,1,1234,2],[1095,1,1095,2],[1098,1,1098,2],[1123,1,1123,2],[1126,1,1126,2],[1231,1,1231,2]]}
[null,"SCHEDULE OF FUNDS HELD BY CEDING REINSURERS (EBS)",null,null,null,null,null,null,null,null,null,null,null,{"$f":"HYPERLINK(\"#'Index'!A1\",\"Return to Index\")","v":"Return to Index"}]
[null,{"$f":"'Group Information'!C9","v":"Enter Parent Company Name"}]
[null,"As at",{"$f":"'Group Information'!C3","v":"2023-12-31"}]
[null,"expressed in ['000s]",{"$f":"'Form 1'!C4","v":" ['000s]United States Dollars"},null,null,null,null,null,null,null,null,null,null,"Schedule VIA (EBS)"]
[]
[null,"(A) CASH AND CASH EQUIVALENTS"]
[]
[null,null,"Enter # of Asset Types",{"$f":"Import!I20298","v":0}]
[null,null,null,null,{"$f":"YEAR($C$3)","v":2023},{"$f":"YEAR($C$3)","v":2023}]
[null,"Asset Type","Currency","BSCR Rating","Nominal Amount","Fair Value","Comments"]
[1,{"$f":"Import!I20299","v":"Select"},{"$f":"Import!I20499","v":"Select"},{"$f":"Import!I20699","v":"Select"},{"$f":"Import!I20899","v":0},{"$f":"Import!I21099","v":0},{"$f":"Import!I21299","v":0}]
[{"$f":"A11+1","v":2},{"$f":"Import!I20300","v":"Select"},{"$f":"Import!I20500","v":"Select"},{"$f":"Import!I20700","v":"Select"},{"$f":"Import!I20900","v":0},{"$f":"Import!I21100","v":0},{"$f":"Import!I21300","v":0}]
[{"$f":"A12+1","v":3},{"$f":"Import!I20301","v":"Select"},{"$f":"Import!I20501","v":"Select"},{"$f":"Import!I20701","v":"Select"},{"$f":"Import!I20901","v":0},{"$f":"Import!I21101","v":0},{"$f":"Import!I21301","v":0}]
[4,{"$f":"Import!I20302","v":"Select"},{"$f":"Import!I20502","v":"Select"},{"$f":"Import!I20702","v":"Select"},{"$f":"Import!I20902","v":0},{"$f":"Import!I21102","v":0},{"$f":"Import!I21302","v":0}]
[5,{"$f":"Import!I20303","v":"Select"},{"$f":"Import!I20503","v":"Select"},{"$f":"Import!I20703","v":"Select"},{"$f":"Import!I20903","v":0},{"$f":"Import!I21103","v":0},{"$f":"Import!I21303","v":0}]
[6,{"$f":"Import!I20304","v":"Select"},{"$f":"Import!I20504","v":"Select"},{"$f":"Import!I20704","v":"Select"},{"$f":"Import!I20904","v":0},{"$f":"Import!I21104","v":0},{"$f":"Import!I21304","v":0}]
[7,{"$f":"Import!I20305","v":"Select"},{"$f":"Import!I20505","v":"Select"},{"$f":"Import!I20705","v":"Select"},{"$f":"Import!I20905","v":0},{"$f":"Import!I21105","v":0},{"$f":"Import!I21305","v":0}]
[8,{"$f":"Import!I20306","v":"Select"},{"$f":"Import!I20506","v":"Select"},{"$f":"Import!I20706","v":"Select"},{"$f":"Import!I20906","v":0},{"$f":"Import!I21106","v":0},{"$f":"Import!I21306","v":0}]
[9,{"$f":"Import!I20307","v":"Select"},{"$f":"Import!I20507","v":"Select"},{"$f":"Import!I20707","v":"Select"},{"$f":"Import!I20907","v":0},{"$f":"Import!I21107","v":0},{"$f":"Import!I21307","v":0}]
[10,{"$f":"Import!I20308","v":"Select"},{"$f":"Import!I20508","v":"Select"},{"$f":"Import!I20708","v":"Select"},{"$f":"Import!I20908","v":0},{"$f":"Import!I21108","v":0},{"$f":"Import!I21308","v":0}]
[11,{"$f":"Import!I20309","v":"Select"},{"$f":"Import!I20509","v":"Select"},{"$f":"Import!I20709","v":"Select"},{"$f":"Import!I20909","v":0},{"$f":"Import!I21109","v":0},{"$f":"Import!I21309","v":0}]
[12,{"$f":"Import!I20310","v":"Select"},{"$f":"Import!I20510","v":"Select"},{"$f":"Import!I20710","v":"Select"},{"$f":"Import!I20910","v":0},{"$f":"Import!I21110","v":0},{"$f":"Import!I21310","v":0}]
[13,{"$f":"Import!I20311","v":"Select"},{"$f":"Import!I20511","v":"Select"},{"$f":"Import!I20711","v":"Select"},{"$f":"Import!I20911","v":0},{"$f":"Import!I21111","v":0},{"$f":"Import!I21311","v":0}]
[14,{"$f":"Import!I20312","v":"Select"},{"$f":"Import!I20512","v":"Select"},{"$f":"Import!I20712","v":"Select"},{"$f":"Import!I20912","v":0},{"$f":"Import!I21112","v":0},{"$f":"Import!I21312","v":0}]
[15,{"$f":"Import!I20313","v":"Select"},{"$f":"Import!I20513","v":"Select"},{"$f":"Import!I20713","v":"Select"},{"$f":"Import!I20913","v":0},{"$f":"Import!I21113","v":0},{"$f":"Import!I21313","v":0}]
[16,{"$f":"Import!I20314","v":"Select"},{"$f":"Import!I20514","v":"Select"},{"$f":"Import!I20714","v":"Select"},{"$f":"Import!I20914","v":0},{"$f":"Import!I21114","v":0},{"$f":"Import!I21314","v":0}]
[17,{"$f":"Import!I20315","v":"Select"},{"$f":"Import!I20515","v":"Select"},{"$f":"Import!I20715","v":"Select"},{"$f":"Import!I20915","v":0},{"$f":"Import!I21115","v":0},{"$f":"Import!I21315","v":0}]
[18,{"$f":"Import!I20316","v":"Select"},{"$f":"Import!I20516","v":"Select"},{"$f":"Import!I20716","v":"Select"},{"$f":"Import!I20916","v":0},{"$f":"Import!I21116","v":0},{"$f":"Import!I21316","v":0}]
[19,{"$f":"Import!I20317","v":"Select"},{"$f":"Import!I20517","v":"Select"},{"$f":"Import!I20717","v":"Select"},{"$f":"Import!I20917","v":0},{"$f":"Import!I21117","v":0},{"$f":"Import!I21317","v":0}]
[20,{"$f":"Import!I20318","v":"Select"},{"$f":"Import!I20518","v":"Select"},{"$f":"Import!I20718","v":"Select"},{"$f":"Import!I20918","v":0},{"$f":"Import!I21118","v":0},{"$f":"Import!I21318","v":0}]
[21,{"$f":"Import!I20319","v":"Select"},{"$f":"Import!I20519","v":"Select"},{"$f":"Import!I20719","v":"Select"},{"$f":"Import!I20919","v":0},{"$f":"Import!I21119","v":0},{"$f":"Import!I21319","v":0}]
[22,{"$f":"Import!I20320","v":"Select"},{"$f":"Import!I20520","v":"Select"},{"$f":"Import!I20720","v":"Select"},{"$f":"Import!I20920","v":0},{"$f":"Import!I21120","v":0},{"$f":"Import!I21320","v":0}]
[23,{"$f":"Import!I20321","v":"Select"},{"$f":"Import!I20521","v":"Select"},{"$f":"Import!I20721","v":"Select"},{"$f":"Import!I20921","v":0},{"$f":"Import!I21121","v":0},{"$f":"Import!I21321","v":0}]
[24,{"$f":"Import!I20322","v":"Select"},{"$f":"Import!I20522","v":"Select"},{"$f":"Import!I20722","v":"Select"},{"$f":"Import!I20922","v":0},{"$f":"Import!I21122","v":0},{"$f":"Import!I21322","v":0}]
[25,{"$f":"Import!I20323","v":"Select"},{"$f":"Import!I20523","v":"Select"},{"$f":"Import!I20723","v":"Select"},{"$f":"Import!I20923","v":0},{"$f":"Import!I21123","v":0},{"$f":"Import!I21323","v":0}]
[26,{"$f":"Import!I20324","v":"Select"},{"$f":"Import!I20524","v":"Select"},{"$f":"Import!I20724","v":"Select"},{"$f":"Import!I20924","v":0},{"$f":"Import!I21124","v":0},{"$f":"Import!I21324","v":0}]
[27,{"$f":"Import!I20325","v":"Select"},{"$f":"Import!I20525","v":"Select"},{"$f":"Import!I20725","v":"Select"},{"$f":"Import!I20925","v":0},{"$f":"Import!I21125","v":0},{"$f":"Import!I21325","v":0}]
[28,{"$f":"Import!I20326","v":"Select"},{"$f":"Import!I20526","v":"Select"},{"$f":"Import!I20726","v":"Select"},{"$f":"Import!I20926","v":0},{"$f":"Import!I21126","v":0},{"$f":"Import!I21326","v":0}]
[29,{"$f":"Import!I20327","v":"Select"},{"$f":"Import!I20527","v":"Select"},{"$f":"Import!I20727","v":"Select"},{"$f":"Import!I20927","v":0},{"$f":"Import!I21127","v":0},{"$f":"Import!I21327","v":0}]
[30,{"$f":"Import!I20328","v":"Select"},{"$f":"Import!I20528","v":"Select"},{"$f":"Import!I20728","v":"Select"},{"$f":"Import!I20928","v":0},{"$f":"Import!I21128","v":0},{"$f":"Import!I21328","v":0}]
[31,{"$f":"Import!I20329","v":"Select"},{"$f":"Import!I20529","v":"Select"},{"$f":"Import!I20729","v":"Select"},{"$f":"Import!I20929","v":0},{"$f":"Import!I21129","v":0},{"$f":"Import!I21329","v":0}]
[32,{"$f":"Import!I20330","v":"Select"},{"$f":"Import!I20530","v":"Select"},{"$f":"Import!I20730","v":"Select"},{"$f":"Import!I20930","v":0},{"$f":"Import!I21130","v":0},{"$f":"Import!I21330","v":0}]
[33,{"$f":"Import!I20331","v":"Select"},{"$f":"Import!I20531","v":"Select"},{"$f":"Import!I20731","v":"Select"},{"$f":"Import!I20931","v":0},{"$f":"Import!I21131","v":0},{"$f":"Import!I21331","v":0}]
[34,{"$f":"Import!I20332","v":"Select"},{"$f":"Import!I20532","v":"Select"},{"$f":"Import!I20732","v":"Select"},{"$f":"Import!I20932","v":0},{"$f":"Import!I21132","v":0},{"$f":"Import!I21332","v":0}]
[35,{"$f":"Import!I20333","v":"Select"},{"$f":"Import!I20533","v":"Select"},{"$f":"Import!I20733","v":"Select"},{"$f":"Import!I20933","v":0},{"$f":"Import!I21133","v":0},{"$f":"Import!I21333","v":0}]
[36,{"$f":"Import!I20334","v":"Select"},{"$f":"Import!I20534","v":"Select"},{"$f":"Import!I20734","v":"Select"},{"$f":"Import!I20934","v":0},{"$f":"Import!I21134","v":0},{"$f":"Import!I21334","v":0}]
[37,{"$f":"Import!I20335","v":"Select"},{"$f":"Import!I20535","v":"Select"},{"$f":"Import!I20735","v":"Select"},{"$f":"Import!I20935","v":0},{"$f":"Import!I21135","v":0},{"$f":"Import!I21335","v":0}]
[38,{"$f":"Import!I20336","v":"Select"},{"$f":"Import!I20536","v":"Select"},{"$f":"Import!I20736","v":"Select"},{"$f":"Import!I20936","v":0},{"$f":"Import!I21136","v":0},{"$f":"Import!I21336","v":0}]
[39,{"$f":"Import!I20337","v":"Select"},{"$f":"Import!I20537","v":"Select"},{"$f":"Import!I20737","v":"Select"},{"$f":"Import!I20937","v":0},{"$f":"Import!I21137","v":0},{"$f":"Import!I21337","v":0}]
[40,{"$f":"Import!I20338","v":"Select"},{"$f":"Import!I20538","v":"Select"},{"$f":"Import!I20738","v":"Select"},{"$f":"Import!I20938","v":0},{"$f":"Import!I21138","v":0},{"$f":"Import!I21338","v":0}]
[41,{"$f":"Import!I20339","v":"Select"},{"$f":"Import!I20539","v":"Select"},{"$f":"Import!I20739","v":"Select"},{"$f":"Import!I20939","v":0},{"$f":"Import!I21139","v":0},{"$f":"Import!I21339","v":0}]
[42,{"$f":"Import!I20340","v":"Select"},{"$f":"Import!I20540","v":"Select"},{"$f":"Import!I20740","v":"Select"},{"$f":"Import!I20940","v":0},{"$f":"Import!I21140","v":0},{"$f":"Import!I21340","v":0}]
[43,{"$f":"Import!I20341","v":"Select"},{"$f":"Import!I20541","v":"Select"},{"$f":"Import!I20741","v":"Select"},{"$f":"Import!I20941","v":0},{"$f":"Import!I21141","v":0},{"$f":"Import!I21341","v":0}]
[44,{"$f":"Import!I20342","v":"Select"},{"$f":"Import!I20542","v":"Select"},{"$f":"Import!I20742","v":"Select"},{"$f":"Import!I20942","v":0},{"$f":"Import!I21142","v":0},{"$f":"Import!I21342","v":0}]
[45,{"$f":"Import!I20343","v":"Select"},{"$f":"Import!I20543","v":"Select"},{"$f":"Import!I20743","v":"Select"},{"$f":"Import!I20943","v":0},{"$f":"Import!I21143","v":0},{"$f":"Import!I21343","v":0}]
[46,{"$f":"Import!I20344","v":"Select"},{"$f":"Import!I20544","v":"Select"},{"$f":"Import!I20744","v":"Select"},{"$f":"Import!I20944","v":0},{"$f":"Import!I21144","v":0},{"$f":"Import!I21344","v":0}]
[47,{"$f":"Import!I20345","v":"Select"},{"$f":"Import!I20545","v":"Select"},{"$f":"Import!I20745","v":"Select"},{"$f":"Import!I20945","v":0},{"$f":"Import!I21145","v":0},{"$f":"Import!I21345","v":0}]
[48,{"$f":"Import!I20346","v":"Select"},{"$f":"Import!I20546","v":"Select"},{"$f":"Import!I20746","v":"Select"},{"$f":"Import!I20946","v":0},{"$f":"Import!I21146","v":0},{"$f":"Import!I21346","v":0}]
[49,{"$f":"Import!I20347","v":"Select"},{"$f":"Import!I20547","v":"Select"},{"$f":"Import!I20747","v":"Select"},{"$f":"Import!I20947","v":0},{"$f":"Import!I21147","v":0},{"$f":"Import!I21347","v":0}]
[50,{"$f":"Import!I20348","v":"Select"},{"$f":"Import!I20548","v":"Select"},{"$f":"Import!I20748","v":"Select"},{"$f":"Import!I20948","v":0},{"$f":"Import!I21148","v":0},{"$f":"Import!I21348","v":0}]
[51,{"$f":"Import!I20349","v":"Select"},{"$f":"Import!I20549","v":"Select"},{"$f":"Import!I20749","v":"Select"},{"$f":"Import!I20949","v":0},{"$f":"Import!I21149","v":0},{"$f":"Import!I21349","v":0}]
[52,{"$f":"Import!I20350","v":"Select"},{"$f":"Import!I20550","v":"Select"},{"$f":"Import!I20750","v":"Select"},{"$f":"Import!I20950","v":0},{"$f":"Import!I21150","v":0},{"$f":"Import!I21350","v":0}]
[53,{"$f":"Import!I20351","v":"Select"},{"$f":"Import!I20551","v":"Select"},{"$f":"Import!I20751","v":"Select"},{"$f":"Import!I20951","v":0},{"$f":"Import!I21151","v":0},{"$f":"Import!I21351","v":0}]
[54,{"$f":"Import!I20352","v":"Select"},{"$f":"Import!I20552","v":"Select"},{"$f":"Import!I20752","v":"Select"},{"$f":"Import!I20952","v":0},{"$f":"Import!I21152","v":0},{"$f":"Import!I21352","v":0}]
[55,{"$f":"Import!I20353","v":"Select"},{"$f":"Import!I20553","v":"Select"},{"$f":"Import!I20753","v":"Select"},{"$f":"Import!I20953","v":0},{"$f":"Import!I21153","v":0},{"$f":"Import!I21353","v":0}]
[56,{"$f":"Import!I20354","v":"Select"},{"$f":"Import!I20554","v":"Select"},{"$f":"Import!I20754","v":"Select"},{"$f":"Import!I20954","v":0},{"$f":"Import!I21154","v":0},{"$f":"Import!I21354","v":0}]
[57,{"$f":"Import!I20355","v":"Select"},{"$f":"Import!I20555","v":"Select"},{"$f":"Import!I20755","v":"Select"},{"$f":"Import!I20955","v":0},{"$f":"Import!I21155","v":0},{"$f":"Import!I21355","v":0}]
[58,{"$f":"Import!I20356","v":"Select"},{"$f":"Import!I20556","v":"Select"},{"$f":"Import!I20756","v":"Select"},{"$f":"Import!I20956","v":0},{"$f":"Import!I21156","v":0},{"$f":"Import!I21356","v":0}]
[59,{"$f":"Import!I20357","v":"Select"},{"$f":"Import!I20557","v":"Select"},{"$f":"Import!I20757","v":"Select"},{"$f":"Import!I20957","v":0},{"$f":"Import!I21157","v":0},{"$f":"Import!I21357","v":0}]
[60,{"$f":"Import!I20358","v":"Select"},{"$f":"Import!I20558","v":"Select"},{"$f":"Import!I20758","v":"Select"},{"$f":"Import!I20958","v":0},{"$f":"Import!I21158","v":0},{"$f":"Import!I21358","v":0}]
[61,{"$f":"Import!I20359","v":"Select"},{"$f":"Import!I20559","v":"Select"},{"$f":"Import!I20759","v":"Select"},{"$f":"Import!I20959","v":0},{"$f":"Import!I21159","v":0},{"$f":"Import!I21359","v":0}]
[62,{"$f":"Import!I20360","v":"Select"},{"$f":"Import!I20560","v":"Select"},{"$f":"Import!I20760","v":"Select"},{"$f":"Import!I20960","v":0},{"$f":"Import!I21160","v":0},{"$f":"Import!I21360","v":0}]
[63,{"$f":"Import!I20361","v":"Select"},{"$f":"Import!I20561","v":"Select"},{"$f":"Import!I20761","v":"Select"},{"$f":"Import!I20961","v":0},{"$f":"Import!I21161","v":0},{"$f":"Import!I21361","v":0}]
[64,{"$f":"Import!I20362","v":"Select"},{"$f":"Import!I20562","v":"Select"},{"$f":"Import!I20762","v":"Select"},{"$f":"Import!I20962","v":0},{"$f":"Import!I21162","v":0},{"$f":"Import!I21362","v":0}]
[65,{"$f":"Import!I20363","v":"Select"},{"$f":"Import!I20563","v":"Select"},{"$f":"Import!I20763","v":"Select"},{"$f":"Import!I20963","v":0},{"$f":"Import!I21163","v":0},{"$f":"Import!I21363","v":0}]
[66,{"$f":"Import!I20364","v":"Select"},{"$f":"Import!I20564","v":"Select"},{"$f":"Import!I20764","v":"Select"},{"$f":"Import!I20964","v":0},{"$f":"Import!I21164","v":0},{"$f":"Import!I21364","v":0}]
[{"$f":"A76+1","v":67},{"$f":"Import!I20365","v":"Select"},{"$f":"Import!I20565","v":"Select"},{"$f":"Import!I20765","v":"Select"},{"$f":"Import!I20965","v":0},{"$f":"Import!I21165","v":0},{"$f":"Import!I21365","v":0}]
[68,{"$f":"Import!I20366","v":"Select"},{"$f":"Import!I20566","v":"Select"},{"$f":"Import!I20766","v":"Select"},{"$f":"Import!I20966","v":0},{"$f":"Import!I21166","v":0},{"$f":"Import!I21366","v":0}]
[69,{"$f":"Import!I20367","v":"Select"},{"$f":"Import!I20567","v":"Select"},{"$f":"Import!I20767","v":"Select"},{"$f":"Import!I20967","v":0},{"$f":"Import!I21167","v":0},{"$f":"Import!I21367","v":0}]
[70,{"$f":"Import!I20368","v":"Select"},{"$f":"Import!I20568","v":"Select"},{"$f":"Import!I20768","v":"Select"},{"$f":"Import!I20968","v":0},{"$f":"Import!I21168","v":0},{"$f":"Import!I21368","v":0}]
[71,{"$f":"Import!I20369","v":"Select"},{"$f":"Import!I20569","v":"Select"},{"$f":"Import!I20769","v":"Select"},{"$f":"Import!I20969","v":0},{"$f":"Import!I21169","v":0},{"$f":"Import!I21369","v":0}]
[72,{"$f":"Import!I20370","v":"Select"},{"$f":"Import!I20570","v":"Select"},{"$f":"Import!I20770","v":"Select"},{"$f":"Import!I20970","v":0},{"$f":"Import!I21170","v":0},{"$f":"Import!I21370","v":0}]
[73,{"$f":"Import!I20371","v":"Select"},{"$f":"Import!I20571","v":"Select"},{"$f":"Import!I20771","v":"Select"},{"$f":"Import!I20971","v":0},{"$f":"Import!I21171","v":0},{"$f":"Import!I21371","v":0}]
[74,{"$f":"Import!I20372","v":"Select"},{"$f":"Import!I20572","v":"Select"},{"$f":"Import!I20772","v":"Select"},{"$f":"Import!I20972","v":0},{"$f":"Import!I21172","v":0},{"$f":"Import!I21372","v":0}]
[75,{"$f":"Import!I20373","v":"Select"},{"$f":"Import!I20573","v":"Select"},{"$f":"Import!I20773","v":"Select"},{"$f":"Import!I20973","v":0},{"$f":"Import!I21173","v":0},{"$f":"Import!I21373","v":0}]
[76,{"$f":"Import!I20374","v":"Select"},{"$f":"Import!I20574","v":"Select"},{"$f":"Import!I20774","v":"Select"},{"$f":"Import!I20974","v":0},{"$f":"Import!I21174","v":0},{"$f":"Import!I21374","v":0}]
[77,{"$f":"Import!I20375","v":"Select"},{"$f":"Import!I20575","v":"Select"},{"$f":"Import!I20775","v":"Select"},{"$f":"Import!I20975","v":0},{"$f":"Import!I21175","v":0},{"$f":"Import!I21375","v":0}]
[78,{"$f":"Import!I20376","v":"Select"},{"$f":"Import!I20576","v":"Select"},{"$f":"Import!I20776","v":"Select"},{"$f":"Import!I20976","v":0},{"$f":"Import!I21176","v":0},{"$f":"Import!I21376","v":0}]
[79,{"$f":"Import!I20377","v":"Select"},{"$f":"Import!I20577","v":"Select"},{"$f":"Import!I20777","v":"Select"},{"$f":"Import!I20977","v":0},{"$f":"Import!I21177","v":0},{"$f":"Import!I21377","v":0}]
[80,{"$f":"Import!I20378","v":"Select"},{"$f":"Import!I20578","v":"Select"},{"$f":"Import!I20778","v":"Select"},{"$f":"Import!I20978","v":0},{"$f":"Import!I21178","v":0},{"$f":"Import!I21378","v":0}]
[81,{"$f":"Import!I20379","v":"Select"},{"$f":"Import!I20579","v":"Select"},{"$f":"Import!I20779","v":"Select"},{"$f":"Import!I20979","v":0},{"$f":"Import!I21179","v":0},{"$f":"Import!I21379","v":0}]
[82,{"$f":"Import!I20380","v":"Select"},{"$f":"Import!I20580","v":"Select"},{"$f":"Import!I20780","v":"Select"},{"$f":"Import!I20980","v":0},{"$f":"Import!I21180","v":0},{"$f":"Import!I21380","v":0}]
[83,{"$f":"Import!I20381","v":"Select"},{"$f":"Import!I20581","v":"Select"},{"$f":"Import!I20781","v":"Select"},{"$f":"Import!I20981","v":0},{"$f":"Import!I21181","v":0},{"$f":"Import!I21381","v":0}]
[84,{"$f":"Import!I20382","v":"Select"},{"$f":"Import!I20582","v":"Select"},{"$f":"Import!I20782","v":"Select"},{"$f":"Import!I20982","v":0},{"$f":"Import!I21182","v":0},{"$f":"Import!I21382","v":0}]
[85,{"$f":"Import!I20383","v":"Select"},{"$f":"Import!I20583","v":"Select"},{"$f":"Import!I20783","v":"Select"},{"$f":"Import!I20983","v":0},{"$f":"Import!I21183","v":0},{"$f":"Import!I21383","v":0}]
[86,{"$f":"Import!I20384","v":"Select"},{"$f":"Import!I20584","v":"Select"},{"$f":"Import!I20784","v":"Select"},{"$f":"Import!I20984","v":0},{"$f":"Import!I21184","v":0},{"$f":"Import!I21384","v":0}]
[87,{"$f":"Import!I20385","v":"Select"},{"$f":"Import!I20585","v":"Select"},{"$f":"Import!I20785","v":"Select"},{"$f":"Import!I20985","v":0},{"$f":"Import!I21185","v":0},{"$f":"Import!I21385","v":0}]
[88,{"$f":"Import!I20386","v":"Select"},{"$f":"Import!I20586","v":"Select"},{"$f":"Import!I20786","v":"Select"},{"$f":"Import!I20986","v":0},{"$f":"Import!I21186","v":0},{"$f":"Import!I21386","v":0}]
[89,{"$f":"Import!I20387","v":"Select"},{"$f":"Import!I20587","v":"Select"},{"$f":"Import!I20787","v":"Select"},{"$f":"Import!I20987","v":0},{"$f":"Import!I21187","v":0},{"$f":"Import!I21387","v":0}]
[90,{"$f":"Import!I20388","v":"Select"},{"$f":"Import!I20588","v":"Select"},{"$f":"Import!I20788","v":"Select"},{"$f":"Import!I20988","v":0},{"$f":"Import!I21188","v":0},{"$f":"Import!I21388","v":0}]
[91,{"$f":"Import!I20389","v":"Select"},{"$f":"Import!I20589","v":"Select"},{"$f":"Import!I20789","v":"Select"},{"$f":"Import!I20989","v":0},{"$f":"Import!I21189","v":0},{"$f":"Import!I21389","v":0}]
[92,{"$f":"Import!I20390","v":"Select"},{"$f":"Import!I20590","v":"Select"},{"$f":"Import!I20790","v":"Select"},{"$f":"Import!I20990","v":0},{"$f":"Import!I21190","v":0},{"$f":"Import!I21390","v":0}]
[93,{"$f":"Import!I20391","v":"Select"},{"$f":"Import!I20591","v":"Select"},{"$f":"Import!I20791","v":"Select"},{"$f":"Import!I20991","v":0},{"$f":"Import!I21191","v":0},{"$f":"Import!I21391","v":0}]
[94,{"$f":"Import!I20392","v":"Select"},{"$f":"Import!I20592","v":"Select"},{"$f":"Import!I20792","v":"Select"},{"$f":"Import!I20992","v":0},{"$f":"Import!I21192","v":0},{"$f":"Import!I21392","v":0}]
[95,{"$f":"Import!I20393","v":"Select"},{"$f":"Import!I20593","v":"Select"},{"$f":"Import!I20793","v":"Select"},{"$f":"Import!I20993","v":0},{"$f":"Import!I21193","v":0},{"$f":"Import!I21393","v":0}]
[96,{"$f":"Import!I20394","v":"Select"},{"$f":"Import!I20594","v":"Select"},{"$f":"Import!I20794","v":"Select"},{"$f":"Import!I20994","v":0},{"$f":"Import!I21194","v":0},{"$f":"Import!I21394","v":0}]
[97,{"$f":"Import!I20395","v":"Select"},{"$f":"Import!I20595","v":"Select"},{"$f":"Import!I20795","v":"Select"},{"$f":"Import!I20995","v":0},{"$f":"Import!I21195","v":0},{"$f":"Import!I21395","v":0}]
[98,{"$f":"Import!I20396","v":"Select"},{"$f":"Import!I20596","v":"Select"},{"$f":"Import!I20796","v":"Select"},{"$f":"Import!I20996","v":0},{"$f":"Import!I21196","v":0},{"$f":"Import!I21396","v":0}]
[99,{"$f":"Import!I20397","v":"Select"},{"$f":"Import!I20597","v":"Select"},{"$f":"Import!I20797","v":"Select"},{"$f":"Import!I20997","v":0},{"$f":"Import!I21197","v":0},{"$f":"Import!I21397","v":0}]
[100,{"$f":"Import!I20398","v":"Select"},{"$f":"Import!I20598","v":"Select"},{"$f":"Import!I20798","v":"Select"},{"$f":"Import!I20998","v":0},{"$f":"Import!I21198","v":0},{"$f":"Import!I21398","v":0}]
[101,{"$f":"Import!I20399","v":"Select"},{"$f":"Import!I20599","v":"Select"},{"$f":"Import!I20799","v":"Select"},{"$f":"Import!I20999","v":0},{"$f":"Import!I21199","v":0},{"$f":"Import!I21399","v":0}]
[102,{"$f":"Import!I20400","v":"Select"},{"$f":"Import!I20600","v":"Select"},{"$f":"Import!I20800","v":"Select"},{"$f":"Import!I21000","v":0},{"$f":"Import!I21200","v":0},{"$f":"Import!I21400","v":0}]
[103,{"$f":"Import!I20401","v":"Select"},{"$f":"Import!I20601","v":"Select"},{"$f":"Import!I20801","v":"Select"},{"$f":"Import!I21001","v":0},{"$f":"Import!I21201","v":0},{"$f":"Import!I21401","v":0}]
[104,{"$f":"Import!I20402","v":"Select"},{"$f":"Import!I20602","v":"Select"},{"$f":"Import!I20802","v":"Select"},{"$f":"Import!I21002","v":0},{"$f":"Import!I21202","v":0},{"$f":"Import!I21402","v":0}]
[105,{"$f":"Import!I20403","v":"Select"},{"$f":"Import!I20603","v":"Select"},{"$f":"Import!I20803","v":"Select"},{"$f":"Import!I21003","v":0},{"$f":"Import!I21203","v":0},{"$f":"Import!I21403","v":0}]
[106,{"$f":"Import!I20404","v":"Select"},{"$f":"Import!I20604","v":"Select"},{"$f":"Import!I20804","v":"Select"},{"$f":"Import!I21004","v":0},{"$f":"Import!I21204","v":0},{"$f":"Import!I21404","v":0}]
[107,{"$f":"Import!I20405","v":"Select"},{"$f":"Import!I20605","v":"Select"},{"$f":"Import!I20805","v":"Select"},{"$f":"Import!I21005","v":0},{"$f":"Import!I21205","v":0},{"$f":"Import!I21405","v":0}]
[108,{"$f":"Import!I20406","v":"Select"},{"$f":"Import!I20606","v":"Select"},{"$f":"Import!I20806","v":"Select"},{"$f":"Import!I21006","v":0},{"$f":"Import!I21206","v":0},{"$f":"Import!I21406","v":0}]
[109,{"$f":"Import!I20407","v":"Select"},{"$f":"Import!I20607","v":"Select"},{"$f":"Import!I20807","v":"Select"},{"$f":"Import!I21007","v":0},{"$f":"Import!I21207","v":0},{"$f":"Import!I21407","v":0}]
[110,{"$f":"Import!I20408","v":"Select"},{"$f":"Import!I20608","v":"Select"},{"$f":"Import!I20808","v":"Select"},{"$f":"Import!I21008","v":0},{"$f":"Import!I21208","v":0},{"$f":"Import!I21408","v":0}]
[111,{"$f":"Import!I20409","v":"Select"},{"$f":"Import!I20609","v":"Select"},{"$f":"Import!I20809","v":"Select"},{"$f":"Import!I21009","v":0},{"$f":"Import!I21209","v":0},{"$f":"Import!I21409","v":0}]
[112,{"$f":"Import!I20410","v":"Select"},{"$f":"Import!I20610","v":"Select"},{"$f":"Import!I20810","v":"Select"},{"$f":"Import!I21010","v":0},{"$f":"Import!I21210","v":0},{"$f":"Import!I21410","v":0}]
[113,{"$f":"Import!I20411","v":"Select"},{"$f":"Import!I20611","v":"Select"},{"$f":"Import!I20811","v":"Select"},{"$f":"Import!I21011","v":0},{"$f":"Import!I21211","v":0},{"$f":"Import!I21411","v":0}]
[114,{"$f":"Import!I20412","v":"Select"},{"$f":"Import!I20612","v":"Select"},{"$f":"Import!I20812","v":"Select"},{"$f":"Import!I21012","v":0},{"$f":"Import!I21212","v":0},{"$f":"Import!I21412","v":0}]
[115,{"$f":"Import!I20413","v":"Select"},{"$f":"Import!I20613","v":"Select"},{"$f":"Import!I20813","v":"Select"},{"$f":"Import!I21013","v":0},{"$f":"Import!I21213","v":0},{"$f":"Import!I21413","v":0}]
[116,{"$f":"Import!I20414","v":"Select"},{"$f":"Import!I20614","v":"Select"},{"$f":"Import!I20814","v":"Select"},{"$f":"Import!I21014","v":0},{"$f":"Import!I21214","v":0},{"$f":"Import!I21414","v":0}]
[117,{"$f":"Import!I20415","v":"Select"},{"$f":"Import!I20615","v":"Select"},{"$f":"Import!I20815","v":"Select"},{"$f":"Import!I21015","v":0},{"$f":"Import!I21215","v":0},{"$f":"Import!I21415","v":0}]
[118,{"$f":"Import!I20416","v":"Select"},{"$f":"Import!I20616","v":"Select"},{"$f":"Import!I20816","v":"Select"},{"$f":"Import!I21016","v":0},{"$f":"Import!I21216","v":0},{"$f":"Import!I21416","v":0}]
[119,{"$f":"Import!I20417","v":"Select"},{"$f":"Import!I20617","v":"Select"},{"$f":"Import!I20817","v":"Select"},{"$f":"Import!I21017","v":0},{"$f":"Import!I21217","v":0},{"$f":"Import!I21417","v":0}]
[120,{"$f":"Import!I20418","v":"Select"},{"$f":"Import!I20618","v":"Select"},{"$f":"Import!I20818","v":"Select"},{"$f":"Import!I21018","v":0},{"$f":"Import!I21218","v":0},{"$f":"Import!I21418","v":0}]
[121,{"$f":"Import!I20419","v":"Select"},{"$f":"Import!I20619","v":"Select"},{"$f":"Import!I20819","v":"Select"},{"$f":"Import!I21019","v":0},{"$f":"Import!I21219","v":0},{"$f":"Import!I21419","v":0}]
[122,{"$f":"Import!I20420","v":"Select"},{"$f":"Import!I20620","v":"Select"},{"$f":"Import!I20820","v":"Select"},{"$f":"Import!I21020","v":0},{"$f":"Import!I21220","v":0},{"$f":"Import!I21420","v":0}]
[123,{"$f":"Import!I20421","v":"Select"},{"$f":"Import!I20621","v":"Select"},{"$f":"Import!I20821","v":"Select"},{"$f":"Import!I21021","v":0},{"$f":"Import!I21221","v":0},{"$f":"Import!I21421","v":0}]
[124,{"$f":"Import!I20422","v":"Select"},{"$f":"Import!I20622","v":"Select"},{"$f":"Import!I20822","v":"Select"},{"$f":"Import!I21022","v":0},{"$f":"Import!I21222","v":0},{"$f":"Import!I21422","v":0}]
[125,{"$f":"Import!I20423","v":"Select"},{"$f":"Import!I20623","v":"Select"},{"$f":"Import!I20823","v":"Select"},{"$f":"Import!I21023","v":0},{"$f":"Import!I21223","v":0},{"$f":"Import!I21423","v":0}]
[126,{"$f":"Import!I20424","v":"Select"},{"$f":"Import!I20624","v":"Select"},{"$f":"Import!I20824","v":"Select"},{"$f":"Import!I21024","v":0},{"$f":"Import!I21224","v":0},{"$f":"Import!I21424","v":0}]
[127,{"$f":"Import!I20425","v":"Select"},{"$f":"Import!I20625","v":"Select"},{"$f":"Import!I20825","v":"Select"},{"$f":"Import!I21025","v":0},{"$f":"Import!I21225","v":0},{"$f":"Import!I21425","v":0}]
[128,{"$f":"Import!I20426","v":"Select"},{"$f":"Import!I20626","v":"Select"},{"$f":"Import!I20826","v":"Select"},{"$f":"Import!I21026","v":0},{"$f":"Import!I21226","v":0},{"$f":"Import!I21426","v":0}]
[129,{"$f":"Import!I20427","v":"Select"},{"$f":"Import!I20627","v":"Select"},{"$f":"Import!I20827","v":"Select"},{"$f":"Import!I21027","v":0},{"$f":"Import!I21227","v":0},{"$f":"Import!I21427","v":0}]
[130,{"$f":"Import!I20428","v":"Select"},{"$f":"Import!I20628","v":"Select"},{"$f":"Import!I20828","v":"Select"},{"$f":"Import!I21028","v":0},{"$f":"Import!I21228","v":0},{"$f":"Import!I21428","v":0}]
[{"$f":"A140+1","v":131},{"$f":"Import!I20429","v":"Select"},{"$f":"Import!I20629","v":"Select"},{"$f":"Import!I20829","v":"Select"},{"$f":"Import!I21029","v":0},{"$f":"Import!I21229","v":0},{"$f":"Import!I21429","v":0}]
[132,{"$f":"Import!I20430","v":"Select"},{"$f":"Import!I20630","v":"Select"},{"$f":"Import!I20830","v":"Select"},{"$f":"Import!I21030","v":0},{"$f":"Import!I21230","v":0},{"$f":"Import!I21430","v":0}]
[133,{"$f":"Import!I20431","v":"Select"},{"$f":"Import!I20631","v":"Select"},{"$f":"Import!I20831","v":"Select"},{"$f":"Import!I21031","v":0},{"$f":"Import!I21231","v":0},{"$f":"Import!I21431","v":0}]
[134,{"$f":"Import!I20432","v":"Select"},{"$f":"Import!I20632","v":"Select"},{"$f":"Import!I20832","v":"Select"},{"$f":"Import!I21032","v":0},{"$f":"Import!I21232","v":0},{"$f":"Import!I21432","v":0}]
[135,{"$f":"Import!I20433","v":"Select"},{"$f":"Import!I20633","v":"Select"},{"$f":"Import!I20833","v":"Select"},{"$f":"Import!I21033","v":0},{"$f":"Import!I21233","v":0},{"$f":"Import!I21433","v":0}]
[136,{"$f":"Import!I20434","v":"Select"},{"$f":"Import!I20634","v":"Select"},{"$f":"Import!I20834","v":"Select"},{"$f":"Import!I21034","v":0},{"$f":"Import!I21234","v":0},{"$f":"Import!I21434","v":0}]
[137,{"$f":"Import!I20435","v":"Select"},{"$f":"Import!I20635","v":"Select"},{"$f":"Import!I20835","v":"Select"},{"$f":"Import!I21035","v":0},{"$f":"Import!I21235","v":0},{"$f":"Import!I21435","v":0}]
[138,{"$f":"Import!I20436","v":"Select"},{"$f":"Import!I20636","v":"Select"},{"$f":"Import!I20836","v":"Select"},{"$f":"Import!I21036","v":0},{"$f":"Import!I21236","v":0},{"$f":"Import!I21436","v":0}]
[139,{"$f":"Import!I20437","v":"Select"},{"$f":"Import!I20637","v":"Select"},{"$f":"Import!I20837","v":"Select"},{"$f":"Import!I21037","v":0},{"$f":"Import!I21237","v":0},{"$f":"Import!I21437","v":0}]
[140,{"$f":"Import!I20438","v":"Select"},{"$f":"Import!I20638","v":"Select"},{"$f":"Import!I20838","v":"Select"},{"$f":"Import!I21038","v":0},{"$f":"Import!I21238","v":0},{"$f":"Import!I21438","v":0}]
[141,{"$f":"Import!I20439","v":"Select"},{"$f":"Import!I20639","v":"Select"},{"$f":"Import!I20839","v":"Select"},{"$f":"Import!I21039","v":0},{"$f":"Import!I21239","v":0},{"$f":"Import!I21439","v":0}]
[142,{"$f":"Import!I20440","v":"Select"},{"$f":"Import!I20640","v":"Select"},{"$f":"Import!I20840","v":"Select"},{"$f":"Import!I21040","v":0},{"$f":"Import!I21240","v":0},{"$f":"Import!I21440","v":0}]
[143,{"$f":"Import!I20441","v":"Select"},{"$f":"Import!I20641","v":"Select"},{"$f":"Import!I20841","v":"Select"},{"$f":"Import!I21041","v":0},{"$f":"Import!I21241","v":0},{"$f":"Import!I21441","v":0}]
[144,{"$f":"Import!I20442","v":"Select"},{"$f":"Import!I20642","v":"Select"},{"$f":"Import!I20842","v":"Select"},{"$f":"Import!I21042","v":0},{"$f":"Import!I21242","v":0},{"$f":"Import!I21442","v":0}]
[145,{"$f":"Import!I20443","v":"Select"},{"$f":"Import!I20643","v":"Select"},{"$f":"Import!I20843","v":"Select"},{"$f":"Import!I21043","v":0},{"$f":"Import!I21243","v":0},{"$f":"Import!I21443","v":0}]
[146,{"$f":"Import!I20444","v":"Select"},{"$f":"Import!I20644","v":"Select"},{"$f":"Import!I20844","v":"Select"},{"$f":"Import!I21044","v":0},{"$f":"Import!I21244","v":0},{"$f":"Import!I21444","v":0}]
[147,{"$f":"Import!I20445","v":"Select"},{"$f":"Import!I20645","v":"Select"},{"$f":"Import!I20845","v":"Select"},{"$f":"Import!I21045","v":0},{"$f":"Import!I21245","v":0},{"$f":"Import!I21445","v":0}]
[148,{"$f":"Import!I20446","v":"Select"},{"$f":"Import!I20646","v":"Select"},{"$f":"Import!I20846","v":"Select"},{"$f":"Import!I21046","v":0},{"$f":"Import!I21246","v":0},{"$f":"Import!I21446","v":0}]
[149,{"$f":"Import!I20447","v":"Select"},{"$f":"Import!I20647","v":"Select"},{"$f":"Import!I20847","v":"Select"},{"$f":"Import!I21047","v":0},{"$f":"Import!I21247","v":0},{"$f":"Import!I21447","v":0}]
[150,{"$f":"Import!I20448","v":"Select"},{"$f":"Import!I20648","v":"Select"},{"$f":"Import!I20848","v":"Select"},{"$f":"Import!I21048","v":0},{"$f":"Import!I21248","v":0},{"$f":"Import!I21448","v":0}]
[151,{"$f":"Import!I20449","v":"Select"},{"$f":"Import!I20649","v":"Select"},{"$f":"Import!I20849","v":"Select"},{"$f":"Import!I21049","v":0},{"$f":"Import!I21249","v":0},{"$f":"Import!I21449","v":0}]
[152,{"$f":"Import!I20450","v":"Select"},{"$f":"Import!I20650","v":"Select"},{"$f":"Import!I20850","v":"Select"},{"$f":"Import!I21050","v":0},{"$f":"Import!I21250","v":0},{"$f":"Import!I21450","v":0}]
[153,{"$f":"Import!I20451","v":"Select"},{"$f":"Import!I20651","v":"Select"},{"$f":"Import!I20851","v":"Select"},{"$f":"Import!I21051","v":0},{"$f":"Import!I21251","v":0},{"$f":"Import!I21451","v":0}]
[154,{"$f":"Import!I20452","v":"Select"},{"$f":"Import!I20652","v":"Select"},{"$f":"Import!I20852","v":"Select"},{"$f":"Import!I21052","v":0},{"$f":"Import!I21252","v":0},{"$f":"Import!I21452","v":0}]
[155,{"$f":"Import!I20453","v":"Select"},{"$f":"Import!I20653","v":"Select"},{"$f":"Import!I20853","v":"Select"},{"$f":"Import!I21053","v":0},{"$f":"Import!I21253","v":0},{"$f":"Import!I21453","v":0}]
[156,{"$f":"Import!I20454","v":"Select"},{"$f":"Import!I20654","v":"Select"},{"$f":"Import!I20854","v":"Select"},{"$f":"Import!I21054","v":0},{"$f":"Import!I21254","v":0},{"$f":"Import!I21454","v":0}]
[157,{"$f":"Import!I20455","v":"Select"},{"$f":"Import!I20655","v":"Select"},{"$f":"Import!I20855","v":"Select"},{"$f":"Import!I21055","v":0},{"$f":"Import!I21255","v":0},{"$f":"Import!I21455","v":0}]
[158,{"$f":"Import!I20456","v":"Select"},{"$f":"Import!I20656","v":"Select"},{"$f":"Import!I20856","v":"Select"},{"$f":"Import!I21056","v":0},{"$f":"Import!I21256","v":0},{"$f":"Import!I21456","v":0}]
[159,{"$f":"Import!I20457","v":"Select"},{"$f":"Import!I20657","v":"Select"},{"$f":"Import!I20857","v":"Select"},{"$f":"Import!I21057","v":0},{"$f":"Import!I21257","v":0},{"$f":"Import!I21457","v":0}]
[160,{"$f":"Import!I20458","v":"Select"},{"$f":"Import!I20658","v":"Select"},{"$f":"Import!I20858","v":"Select"},{"$f":"Import!I21058","v":0},{"$f":"Import!I21258","v":0},{"$f":"Import!I21458","v":0}]
[161,{"$f":"Import!I20459","v":"Select"},{"$f":"Import!I20659","v":"Select"},{"$f":"Import!I20859","v":"Select"},{"$f":"Import!I21059","v":0},{"$f":"Import!I21259","v":0},{"$f":"Import!I21459","v":0}]
[162,{"$f":"Import!I20460","v":"Select"},{"$f":"Import!I20660","v":"Select"},{"$f":"Import!I20860","v":"Select"},{"$f":"Import!I21060","v":0},{"$f":"Import!I21260","v":0},{"$f":"Import!I21460","v":0}]
[163,{"$f":"Import!I20461","v":"Select"},{"$f":"Import!I20661","v":"Select"},{"$f":"Import!I20861","v":"Select"},{"$f":"Import!I21061","v":0},{"$f":"Import!I21261","v":0},{"$f":"Import!I21461","v":0}]
[164,{"$f":"Import!I20462","v":"Select"},{"$f":"Import!I20662","v":"Select"},{"$f":"Import!I20862","v":"Select"},{"$f":"Import!I21062","v":0},{"$f":"Import!I21262","v":0},{"$f":"Import!I21462","v":0}]
[165,{"$f":"Import!I20463","v":"Select"},{"$f":"Import!I20663","v":"Select"},{"$f":"Import!I20863","v":"Select"},{"$f":"Import!I21063","v":0},{"$f":"Import!I21263","v":0},{"$f":"Import!I21463","v":0}]
[166,{"$f":"Import!I20464","v":"Select"},{"$f":"Import!I20664","v":"Select"},{"$f":"Import!I20864","v":"Select"},{"$f":"Import!I21064","v":0},{"$f":"Import!I21264","v":0},{"$f":"Import!I21464","v":0}]
[167,{"$f":"Import!I20465","v":"Select"},{"$f":"Import!I20665","v":"Select"},{"$f":"Import!I20865","v":"Select"},{"$f":"Import!I21065","v":0},{"$f":"Import!I21265","v":0},{"$f":"Import!I21465","v":0}]
[168,{"$f":"Import!I20466","v":"Select"},{"$f":"Import!I20666","v":"Select"},{"$f":"Import!I20866","v":"Select"},{"$f":"Import!I21066","v":0},{"$f":"Import!I21266","v":0},{"$f":"Import!I21466","v":0}]
[169,{"$f":"Import!I20467","v":"Select"},{"$f":"Import!I20667","v":"Select"},{"$f":"Import!I20867","v":"Select"},{"$f":"Import!I21067","v":0},{"$f":"Import!I21267","v":0},{"$f":"Import!I21467","v":0}]
[170,{"$f":"Import!I20468","v":"Select"},{"$f":"Import!I20668","v":"Select"},{"$f":"Import!I20868","v":"Select"},{"$f":"Import!I21068","v":0},{"$f":"Import!I21268","v":0},{"$f":"Import!I21468","v":0}]
[171,{"$f":"Import!I20469","v":"Select"},{"$f":"Import!I20669","v":"Select"},{"$f":"Import!I20869","v":"Select"},{"$f":"Import!I21069","v":0},{"$f":"Import!I21269","v":0},{"$f":"Import!I21469","v":0}]
[172,{"$f":"Import!I20470","v":"Select"},{"$f":"Import!I20670","v":"Select"},{"$f":"Import!I20870","v":"Select"},{"$f":"Import!I21070","v":0},{"$f":"Import!I21270","v":0},{"$f":"Import!I21470","v":0}]
[173,{"$f":"Import!I20471","v":"Select"},{"$f":"Import!I20671","v":"Select"},{"$f":"Import!I20871","v":"Select"},{"$f":"Import!I21071","v":0},{"$f":"Import!I21271","v":0},{"$f":"Import!I21471","v":0}]
[174,{"$f":"Import!I20472","v":"Select"},{"$f":"Import!I20672","v":"Select"},{"$f":"Import!I20872","v":"Select"},{"$f":"Import!I21072","v":0},{"$f":"Import!I21272","v":0},{"$f":"Import!I21472","v":0}]
[175,{"$f":"Import!I20473","v":"Select"},{"$f":"Import!I20673","v":"Select"},{"$f":"Import!I20873","v":"Select"},{"$f":"Import!I21073","v":0},{"$f":"Import!I21273","v":0},{"$f":"Import!I21473","v":0}]
[176,{"$f":"Import!I20474","v":"Select"},{"$f":"Import!I20674","v":"Select"},{"$f":"Import!I20874","v":"Select"},{"$f":"Import!I21074","v":0},{"$f":"Import!I21274","v":0},{"$f":"Import!I21474","v":0}]
[177,{"$f":"Import!I20475","v":"Select"},{"$f":"Import!I20675","v":"Select"},{"$f":"Import!I20875","v":"Select"},{"$f":"Import!I21075","v":0},{"$f":"Import!I21275","v":0},{"$f":"Import!I21475","v":0}]
[178,{"$f":"Import!I20476","v":"Select"},{"$f":"Import!I20676","v":"Select"},{"$f":"Import!I20876","v":"Select"},{"$f":"Import!I21076","v":0},{"$f":"Import!I21276","v":0},{"$f":"Import!I21476","v":0}]
[179,{"$f":"Import!I20477","v":"Select"},{"$f":"Import!I20677","v":"Select"},{"$f":"Import!I20877","v":"Select"},{"$f":"Import!I21077","v":0},{"$f":"Import!I21277","v":0},{"$f":"Import!I21477","v":0}]
[180,{"$f":"Import!I20478","v":"Select"},{"$f":"Import!I20678","v":"Select"},{"$f":"Import!I20878","v":"Select"},{"$f":"Import!I21078","v":0},{"$f":"Import!I21278","v":0},{"$f":"Import!I21478","v":0}]
[181,{"$f":"Import!I20479","v":"Select"},{"$f":"Import!I20679","v":"Select"},{"$f":"Import!I20879","v":"Select"},{"$f":"Import!I21079","v":0},{"$f":"Import!I21279","v":0},{"$f":"Import!I21479","v":0}]
[182,{"$f":"Import!I20480","v":"Select"},{"$f":"Import!I20680","v":"Select"},{"$f":"Import!I20880","v":"Select"},{"$f":"Import!I21080","v":0},{"$f":"Import!I21280","v":0},{"$f":"Import!I21480","v":0}]
[183,{"$f":"Import!I20481","v":"Select"},{"$f":"Import!I20681","v":"Select"},{"$f":"Import!I20881","v":"Select"},{"$f":"Import!I21081","v":0},{"$f":"Import!I21281","v":0},{"$f":"Import!I21481","v":0}]
[184,{"$f":"Import!I20482","v":"Select"},{"$f":"Import!I20682","v":"Select"},{"$f":"Import!I20882","v":"Select"},{"$f":"Import!I21082","v":0},{"$f":"Import!I21282","v":0},{"$f":"Import!I21482","v":0}]
[185,{"$f":"Import!I20483","v":"Select"},{"$f":"Import!I20683","v":"Select"},{"$f":"Import!I20883","v":"Select"},{"$f":"Import!I21083","v":0},{"$f":"Import!I21283","v":0},{"$f":"Import!I21483","v":0}]
[186,{"$f":"Import!I20484","v":"Select"},{"$f":"Import!I20684","v":"Select"},{"$f":"Import!I20884","v":"Select"},{"$f":"Import!I21084","v":0},{"$f":"Import!I21284","v":0},{"$f":"Import!I21484","v":0}]
[187,{"$f":"Import!I20485","v":"Select"},{"$f":"Import!I20685","v":"Select"},{"$f":"Import!I20885","v":"Select"},{"$f":"Import!I21085","v":0},{"$f":"Import!I21285","v":0},{"$f":"Import!I21485","v":0}]
[188,{"$f":"Import!I20486","v":"Select"},{"$f":"Import!I20686","v":"Select"},{"$f":"Import!I20886","v":"Select"},{"$f":"Import!I21086","v":0},{"$f":"Import!I21286","v":0},{"$f":"Import!I21486","v":0}]
[189,{"$f":"Import!I20487","v":"Select"},{"$f":"Import!I20687","v":"Select"},{"$f":"Import!I20887","v":"Select"},{"$f":"Import!I21087","v":0},{"$f":"Import!I21287","v":0},{"$f":"Import!I21487","v":0}]
[190,{"$f":"Import!I20488","v":"Select"},{"$f":"Import!I20688","v":"Select"},{"$f":"Import!I20888","v":"Select"},{"$f":"Import!I21088","v":0},{"$f":"Import!I21288","v":0},{"$f":"Import!I21488","v":0}]
[191,{"$f":"Import!I20489","v":"Select"},{"$f":"Import!I20689","v":"Select"},{"$f":"Import!I20889","v":"Select"},{"$f":"Import!I21089","v":0},{"$f":"Import!I21289","v":0},{"$f":"Import!I21489","v":0}]
[192,{"$f":"Import!I20490","v":"Select"},{"$f":"Import!I20690","v":"Select"},{"$f":"Import!I20890","v":"Select"},{"$f":"Import!I21090","v":0},{"$f":"Import!I21290","v":0},{"$f":"Import!I21490","v":0}]
[193,{"$f":"Import!I20491","v":"Select"},{"$f":"Import!I20691","v":"Select"},{"$f":"Import!I20891","v":"Select"},{"$f":"Import!I21091","v":0},{"$f":"Import!I21291","v":0},{"$f":"Import!I21491","v":0}]
[194,{"$f":"Import!I20492","v":"Select"},{"$f":"Import!I20692","v":"Select"},{"$f":"Import!I20892","v":"Select"},{"$f":"Import!I21092","v":0},{"$f":"Import!I21292","v":0},{"$f":"Import!I21492","v":0}]
[{"$f":"A204+1","v":195},{"$f":"Import!I20493","v":"Select"},{"$f":"Import!I20693","v":"Select"},{"$f":"Import!I20893","v":"Select"},{"$f":"Import!I21093","v":0},{"$f":"Import!I21293","v":0},{"$f":"Import!I21493","v":0}]
[196,{"$f":"Import!I20494","v":"Select"},{"$f":"Import!I20694","v":"Select"},{"$f":"Import!I20894","v":"Select"},{"$f":"Import!I21094","v":0},{"$f":"Import!I21294","v":0},{"$f":"Import!I21494","v":0}]
[197,{"$f":"Import!I20495","v":"Select"},{"$f":"Import!I20695","v":"Select"},{"$f":"Import!I20895","v":"Select"},{"$f":"Import!I21095","v":0},{"$f":"Import!I21295","v":0},{"$f":"Import!I21495","v":0}]
[198,{"$f":"Import!I20496","v":"Select"},{"$f":"Import!I20696","v":"Select"},{"$f":"Import!I20896","v":"Select"},{"$f":"Import!I21096","v":0},{"$f":"Import!I21296","v":0},{"$f":"Import!I21496","v":0}]
[199,{"$f":"Import!I20497","v":"Select"},{"$f":"Import!I20697","v":"Select"},{"$f":"Import!I20897","v":"Select"},{"$f":"Import!I21097","v":0},{"$f":"Import!I21297","v":0},{"$f":"Import!I21497","v":0}]
[200,{"$f":"Import!I20498","v":"Select"},{"$f":"Import!I20698","v":"Select"},{"$f":"Import!I20898","v":"Select"},{"$f":"Import!I21098","v":0},{"$f":"Import!I21298","v":0},{"$f":"Import!I21498","v":0}]
[]
[null,"Total Cash and Cash Equivalents",null,null,{"$f":"SUM(E11:E210)","v":0},{"$f":"SUM(F11:F210)","v":0}]
[]
[null,"(B) BONDS AND DEBENTURES"]
[]
[null,null,"Enter # of Asset Types",{"$f":"Import!I21499","v":0}]
[null,null,null,null,{"$f":"YEAR($C$3)","v":2023},2023,"Weighted"]
[null,"Asset Type","Currency","BSCR Rating","Nominal Amount","Fair Value","Average YTM","Effective Duration","Comments"]
[1,{"$f":"Import!I21500","v":"Select"},{"$f":"Import!I21900","v":"Select"},{"$f":"Import!I22300","v":"Select"},{"$f":"Import!I22700","v":0},{"$f":"Import!I23100","v":0},{"$f":"Import!I23500","v":0},{"$f":"Import!I23900","v":0},{"$f":"Import!I24300","v":0}]
[{"$f":"A219+1","v":2},{"$f":"Import!I21501","v":"Select"},{"$f":"Import!I21901","v":"Select"},{"$f":"Import!I22301","v":"Select"},{"$f":"Import!I22701","v":0},{"$f":"Import!I23101","v":0},{"$f":"Import!I23501","v":0},{"$f":"Import!I23901","v":0},{"$f":"Import!I24301","v":0}]
[{"$f":"A220+1","v":3},{"$f":"Import!I21502","v":"Select"},{"$f":"Import!I21902","v":"Select"},{"$f":"Import!I22302","v":"Select"},{"$f":"Import!I22702","v":0},{"$f":"Import!I23102","v":0},{"$f":"Import!I23502","v":0},{"$f":"Import!I23902","v":0},{"$f":"Import!I24302","v":0}]
[4,{"$f":"Import!I21503","v":"Select"},{"$f":"Import!I21903","v":"Select"},{"$f":"Import!I22303","v":"Select"},{"$f":"Import!I22703","v":0},{"$f":"Import!I23103","v":0},{"$f":"Import!I23503","v":0},{"$f":"Import!I23903","v":0},{"$f":"Import!I24303","v":0}]
[5,{"$f":"Import!I21504","v":"Select"},{"$f":"Import!I21904","v":"Select"},{"$f":"Import!I22304","v":"Select"},{"$f":"Import!I22704","v":0},{"$f":"Import!I23104","v":0},{"$f":"Import!I23504","v":0},{"$f":"Import!I23904","v":0},{"$f":"Import!I24304","v":0}]
[6,{"$f":"Import!I21505","v":"Select"},{"$f":"Import!I21905","v":"Select"},{"$f":"Import!I22305","v":"Select"},{"$f":"Import!I22705","v":0},{"$f":"Import!I23105","v":0},{"$f":"Import!I23505","v":0},{"$f":"Import!I23905","v":0},{"$f":"Import!I24305","v":0}]
[7,{"$f":"Import!I21506","v":"Select"},{"$f":"Import!I21906","v":"Select"},{"$f":"Import!I22306","v":"Select"},{"$f":"Import!I22706","v":0},{"$f":"Import!I23106","v":0},{"$f":"Import!I23506","v":0},{"$f":"Import!I23906","v":0},{"$f":"Import!I24306","v":0}]
[8,{"$f":"Import!I21507","v":"Select"},{"$f":"Import!I21907","v":"Select"},{"$f":"Import!I22307","v":"Select"},{"$f":"Import!I22707","v":0},{"$f":"Import!I23107","v":0},{"$f":"Import!I23507","v":0},{"$f":"Import!I23907","v":0},{"$f":"Import!I24307","v":0}]
[9,{"$f":"Import!I21508","v":"Select"},{"$f":"Import!I21908","v":"Select"},{"$f":"Import!I22308","v":"Select"},{"$f":"Import!I22708","v":0},{"$f":"Import!I23108","v":0},{"$f":"Import!I23508","v":0},{"$f":"Import!I23908","v":0},{"$f":"Import!I24308","v":0}]
[10,{"$f":"Import!I21509","v":"Select"},{"$f":"Import!I21909","v":"Select"},{"$f":"Import!I22309","v":"Select"},{"$f":"Import!I22709","v":0},{"$f":"Import!I23109","v":0},{"$f":"Import!I23509","v":0},{"$f":"Import!I23909","v":0},{"$f":"Import!I24309","v":0}]
[11,{"$f":"Import!I21510","v":"Select"},{"$f":"Import!I21910","v":"Select"},{"$f":"Import!I22310","v":"Select"},{"$f":"Import!I22710","v":0},{"$f":"Import!I23110","v":0},{"$f":"Import!I23510","v":0},{"$f":"Import!I23910","v":0},{"$f":"Import!I24310","v":0}]
[12,{"$f":"Import!I21511","v":"Select"},{"$f":"Import!I21911","v":"Select"},{"$f":"Import!I22311","v":"Select"},{"$f":"Import!I22711","v":0},{"$f":"Import!I23111","v":0},{"$f":"Import!I23511","v":0},{"$f":"Import!I23911","v":0},{"$f":"Import!I24311","v":0}]
[13,{"$f":"Import!I21512","v":"Select"},{"$f":"Import!I21912","v":"Select"},{"$f":"Import!I22312","v":"Select"},{"$f":"Import!I22712","v":0},{"$f":"Import!I23112","v":0},{"$f":"Import!I23512","v":0},{"$f":"Import!I23912","v":0},{"$f":"Import!I24312","v":0}]
[14,{"$f":"Import!I21513","v":"Select"},{"$f":"Import!I21913","v":"Select"},{"$f":"Import!I22313","v":"Select"},{"$f":"Import!I22713","v":0},{"$f":"Import!I23113","v":0},{"$f":"Import!I23513","v":0},{"$f":"Import!I23913","v":0},{"$f":"Import!I24313","v":0}]
[15,{"$f":"Import!I21514","v":"Select"},{"$f":"Import!I21914","v":"Select"},{"$f":"Import!I22314","v":"Select"},{"$f":"Import!I22714","v":0},{"$f":"Import!I23114","v":0},{"$f":"Import!I23514","v":0},{"$f":"Import!I23914","v":0},{"$f":"Import!I24314","v":0}]
[16,{"$f":"Import!I21515","v":"Select"},{"$f":"Import!I21915","v":"Select"},{"$f":"Import!I22315","v":"Select"},{"$f":"Import!I22715","v":0},{"$f":"Import!I23115","v":0},{"$f":"Import!I23515","v":0},{"$f":"Import!I23915","v":0},{"$f":"Import!I24315","v":0}]
[17,{"$f":"Import!I21516","v":"Select"},{"$f":"Import!I21916","v":"Select"},{"$f":"Import!I22316","v":"Select"},{"$f":"Import!I22716","v":0},{"$f":"Import!I23116","v":0},{"$f":"Import!I23516","v":0},{"$f":"Import!I23916","v":0},{"$f":"Import!I24316","v":0}]
[18,{"$f":"Import!I21517","v":"Select"},{"$f":"Import!I21917","v":"Select"},{"$f":"Import!I22317","v":"Select"},{"$f":"Import!I22717","v":0},{"$f":"Import!I23117","v":0},{"$f":"Import!I23517","v":0},{"$f":"Import!I23917","v":0},{"$f":"Import!I24317","v":0}]
[19,{"$f":"Import!I21518","v":"Select"},{"$f":"Import!I21918","v":"Select"},{"$f":"Import!I22318","v":"Select"},{"$f":"Import!I22718","v":0},{"$f":"Import!I23118","v":0},{"$f":"Import!I23518","v":0},{"$f":"Import!I23918","v":0},{"$f":"Import!I24318","v":0}]
[20,{"$f":"Import!I21519","v":"Select"},{"$f":"Import!I21919","v":"Select"},{"$f":"Import!I22319","v":"Select"},{"$f":"Import!I22719","v":0},{"$f":"Import!I23119","v":0},{"$f":"Import!I23519","v":0},{"$f":"Import!I23919","v":0},{"$f":"Import!I24319","v":0}]
[21,{"$f":"Import!I21520","v":"Select"},{"$f":"Import!I21920","v":"Select"},{"$f":"Import!I22320","v":"Select"},{"$f":"Import!I22720","v":0},{"$f":"Import!I23120","v":0},{"$f":"Import!I23520","v":0},{"$f":"Import!I23920","v":0},{"$f":"Import!I24320","v":0}]
[22,{"$f":"Import!I21521","v":"Select"},{"$f":"Import!I21921","v":"Select"},{"$f":"Import!I22321","v":"Select"},{"$f":"Import!I22721","v":0},{"$f":"Import!I23121","v":0},{"$f":"Import!I23521","v":0},{"$f":"Import!I23921","v":0},{"$f":"Import!I24321","v":0}]
[23,{"$f":"Import!I21522","v":"Select"},{"$f":"Import!I21922","v":"Select"},{"$f":"Import!I22322","v":"Select"},{"$f":"Import!I22722","v":0},{"$f":"Import!I23122","v":0},{"$f":"Import!I23522","v":0},{"$f":"Import!I23922","v":0},{"$f":"Import!I24322","v":0}]
[24,{"$f":"Import!I21523","v":"Select"},{"$f":"Import!I21923","v":"Select"},{"$f":"Import!I22323","v":"Select"},{"$f":"Import!I22723","v":0},{"$f":"Import!I23123","v":0},{"$f":"Import!I23523","v":0},{"$f":"Import!I23923","v":0},{"$f":"Import!I24323","v":0}]
[25,{"$f":"Import!I21524","v":"Select"},{"$f":"Import!I21924","v":"Select"},{"$f":"Import!I22324","v":"Select"},{"$f":"Import!I22724","v":0},{"$f":"Import!I23124","v":0},{"$f":"Import!I23524","v":0},{"$f":"Import!I23924","v":0},{"$f":"Import!I24324","v":0}]
[26,{"$f":"Import!I21525","v":"Select"},{"$f":"Import!I21925","v":"Select"},{"$f":"Import!I22325","v":"Select"},{"$f":"Import!I22725","v":0},{"$f":"Import!I23125","v":0},{"$f":"Import!I23525","v":0},{"$f":"Import!I23925","v":0},{"$f":"Import!I24325","v":0}]
[27,{"$f":"Import!I21526","v":"Select"},{"$f":"Import!I21926","v":"Select"},{"$f":"Import!I22326","v":"Select"},{"$f":"Import!I22726","v":0},{"$f":"Import!I23126","v":0},{"$f":"Import!I23526","v":0},{"$f":"Import!I23926","v":0},{"$f":"Import!I24326","v":0}]
[28,{"$f":"Import!I21527","v":"Select"},{"$f":"Import!I21927","v":"Select"},{"$f":"Import!I22327","v":"Select"},{"$f":"Import!I22727","v":0},{"$f":"Import!I23127","v":0},{"$f":"Import!I23527","v":0},{"$f":"Import!I23927","v":0},{"$f":"Import!I24327","v":0}]
[29,{"$f":"Import!I21528","v":"Select"},{"$f":"Import!I21928","v":"Select"},{"$f":"Import!I22328","v":"Select"},{"$f":"Import!I22728","v":0},{"$f":"Import!I23128","v":0},{"$f":"Import!I23528","v":0},{"$f":"Import!I23928","v":0},{"$f":"Import!I24328","v":0}]
[30,{"$f":"Import!I21529","v":"Select"},{"$f":"Import!I21929","v":"Select"},{"$f":"Import!I22329","v":"Select"},{"$f":"Import!I22729","v":0},{"$f":"Import!I23129","v":0},{"$f":"Import!I23529","v":0},{"$f":"Import!I23929","v":0},{"$f":"Import!I24329","v":0}]
[31,{"$f":"Import!I21530","v":"Select"},{"$f":"Import!I21930","v":"Select"},{"$f":"Import!I22330","v":"Select"},{"$f":"Import!I22730","v":0},{"$f":"Import!I23130","v":0},{"$f":"Import!I23530","v":0},{"$f":"Import!I23930","v":0},{"$f":"Import!I24330","v":0}]
[32,{"$f":"Import!I21531","v":"Select"},{"$f":"Import!I21931","v":"Select"},{"$f":"Import!I22331","v":"Select"},{"$f":"Import!I22731","v":0},{"$f":"Import!I23131","v":0},{"$f":"Import!I23531","v":0},{"$f":"Import!I23931","v":0},{"$f":"Import!I24331","v":0}]
[33,{"$f":"Import!I21532","v":"Select"},{"$f":"Import!I21932","v":"Select"},{"$f":"Import!I22332","v":"Select"},{"$f":"Import!I22732","v":0},{"$f":"Import!I23132","v":0},{"$f":"Import!I23532","v":0},{"$f":"Import!I23932","v":0},{"$f":"Import!I24332","v":0}]
[34,{"$f":"Import!I21533","v":"Select"},{"$f":"Import!I21933","v":"Select"},{"$f":"Import!I22333","v":"Select"},{"$f":"Import!I22733","v":0},{"$f":"Import!I23133","v":0},{"$f":"Import!I23533","v":0},{"$f":"Import!I23933","v":0},{"$f":"Import!I24333","v":0}]
[35,{"$f":"Import!I21534","v":"Select"},{"$f":"Import!I21934","v":"Select"},{"$f":"Import!I22334","v":"Select"},{"$f":"Import!I22734","v":0},{"$f":"Import!I23134","v":0},{"$f":"Import!I23534","v":0},{"$f":"Import!I23934","v":0},{"$f":"Import!I24334","v":0}]
[36,{"$f":"Import!I21535","v":"Select"},{"$f":"Import!I21935","v":"Select"},{"$f":"Import!I22335","v":"Select"},{"$f":"Import!I22735","v":0},{"$f":"Import!I23135","v":0},{"$f":"Import!I23535","v":0},{"$f":"Import!I23935","v":0},{"$f":"Import!I24335","v":0}]
[37,{"$f":"Import!I21536","v":"Select"},{"$f":"Import!I21936","v":"Select"},{"$f":"Import!I22336","v":"Select"},{"$f":"Import!I22736","v":0},{"$f":"Import!I23136","v":0},{"$f":"Import!I23536","v":0},{"$f":"Import!I23936","v":0},{"$f":"Import!I24336","v":0}]
[38,{"$f":"Import!I21537","v":"Select"},{"$f":"Import!I21937","v":"Select"},{"$f":"Import!I22337","v":"Select"},{"$f":"Import!I22737","v":0},{"$f":"Import!I23137","v":0},{"$f":"Import!I23537","v":0},{"$f":"Import!I23937","v":0},{"$f":"Import!I24337","v":0}]
[39,{"$f":"Import!I21538","v":"Select"},{"$f":"Import!I21938","v":"Select"},{"$f":"Import!I22338","v":"Select"},{"$f":"Import!I22738","v":0},{"$f":"Import!I23138","v":0},{"$f":"Import!I23538","v":0},{"$f":"Import!I23938","v":0},{"$f":"Import!I24338","v":0}]
[40,{"$f":"Import!I21539","v":"Select"},{"$f":"Import!I21939","v":"Select"},{"$f":"Import!I22339","v":"Select"},{"$f":"Import!I22739","v":0},{"$f":"Import!I23139","v":0},{"$f":"Import!I23539","v":0},{"$f":"Import!I23939","v":0},{"$f":"Import!I24339","v":0}]
[41,{"$f":"Import!I21540","v":"Select"},{"$f":"Import!I21940","v":"Select"},{"$f":"Import!I22340","v":"Select"},{"$f":"Import!I22740","v":0},{"$f":"Import!I23140","v":0},{"$f":"Import!I23540","v":0},{"$f":"Import!I23940","v":0},{"$f":"Import!I24340","v":0}]
[42,{"$f":"Import!I21541","v":"Select"},{"$f":"Import!I21941","v":"Select"},{"$f":"Import!I22341","v":"Select"},{"$f":"Import!I22741","v":0},{"$f":"Import!I23141","v":0},{"$f":"Import!I23541","v":0},{"$f":"Import!I23941","v":0},{"$f":"Import!I24341","v":0}]
[43,{"$f":"Import!I21542","v":"Select"},{"$f":"Import!I21942","v":"Select"},{"$f":"Import!I22342","v":"Select"},{"$f":"Import!I22742","v":0},{"$f":"Import!I23142","v":0},{"$f":"Import!I23542","v":0},{"$f":"Import!I23942","v":0},{"$f":"Import!I24342","v":0}]
[44,{"$f":"Import!I21543","v":"Select"},{"$f":"Import!I21943","v":"Select"},{"$f":"Import!I22343","v":"Select"},{"$f":"Import!I22743","v":0},{"$f":"Import!I23143","v":0},{"$f":"Import!I23543","v":0},{"$f":"Import!I23943","v":0},{"$f":"Import!I24343","v":0}]
[45,{"$f":"Import!I21544","v":"Select"},{"$f":"Import!I21944","v":"Select"},{"$f":"Import!I22344","v":"Select"},{"$f":"Import!I22744","v":0},{"$f":"Import!I23144","v":0},{"$f":"Import!I23544","v":0},{"$f":"Import!I23944","v":0},{"$f":"Import!I24344","v":0}]
[46,{"$f":"Import!I21545","v":"Select"},{"$f":"Import!I21945","v":"Select"},{"$f":"Import!I22345","v":"Select"},{"$f":"Import!I22745","v":0},{"$f":"Import!I23145","v":0},{"$f":"Import!I23545","v":0},{"$f":"Import!I23945","v":0},{"$f":"Import!I24345","v":0}]
[47,{"$f":"Import!I21546","v":"Select"},{"$f":"Import!I21946","v":"Select"},{"$f":"Import!I22346","v":"Select"},{"$f":"Import!I22746","v":0},{"$f":"Import!I23146","v":0},{"$f":"Import!I23546","v":0},{"$f":"Import!I23946","v":0},{"$f":"Import!I24346","v":0}]
[48,{"$f":"Import!I21547","v":"Select"},{"$f":"Import!I21947","v":"Select"},{"$f":"Import!I22347","v":"Select"},{"$f":"Import!I22747","v":0},{"$f":"Import!I23147","v":0},{"$f":"Import!I23547","v":0},{"$f":"Import!I23947","v":0},{"$f":"Import!I24347","v":0}]
[49,{"$f":"Import!I21548","v":"Select"},{"$f":"Import!I21948","v":"Select"},{"$f":"Import!I22348","v":"Select"},{"$f":"Import!I22748","v":0},{"$f":"Import!I23148","v":0},{"$f":"Import!I23548","v":0},{"$f":"Import!I23948","v":0},{"$f":"Import!I24348","v":0}]
[50,{"$f":"Import!I21549","v":"Select"},{"$f":"Import!I21949","v":"Select"},{"$f":"Import!I22349","v":"Select"},{"$f":"Import!I22749","v":0},{"$f":"Import!I23149","v":0},{"$f":"Import!I23549","v":0},{"$f":"Import!I23949","v":0},{"$f":"Import!I24349","v":0}]
[51,{"$f":"Import!I21550","v":"Select"},{"$f":"Import!I21950","v":"Select"},{"$f":"Import!I22350","v":"Select"},{"$f":"Import!I22750","v":0},{"$f":"Import!I23150","v":0},{"$f":"Import!I23550","v":0},{"$f":"Import!I23950","v":0},{"$f":"Import!I24350","v":0}]
[52,{"$f":"Import!I21551","v":"Select"},{"$f":"Import!I21951","v":"Select"},{"$f":"Import!I22351","v":"Select"},{"$f":"Import!I22751","v":0},{"$f":"Import!I23151","v":0},{"$f":"Import!I23551","v":0},{"$f":"Import!I23951","v":0},{"$f":"Import!I24351","v":0}]
[53,{"$f":"Import!I21552","v":"Select"},{"$f":"Import!I21952","v":"Select"},{"$f":"Import!I22352","v":"Select"},{"$f":"Import!I22752","v":0},{"$f":"Import!I23152","v":0},{"$f":"Import!I23552","v":0},{"$f":"Import!I23952","v":0},{"$f":"Import!I24352","v":0}]
[54,{"$f":"Import!I21553","v":"Select"},{"$f":"Import!I21953","v":"Select"},{"$f":"Import!I22353","v":"Select"},{"$f":"Import!I22753","v":0},{"$f":"Import!I23153","v":0},{"$f":"Import!I23553","v":0},{"$f":"Import!I23953","v":0},{"$f":"Import!I24353","v":0}]
[55,{"$f":"Import!I21554","v":"Select"},{"$f":"Import!I21954","v":"Select"},{"$f":"Import!I22354","v":"Select"},{"$f":"Import!I22754","v":0},{"$f":"Import!I23154","v":0},{"$f":"Import!I23554","v":0},{"$f":"Import!I23954","v":0},{"$f":"Import!I24354","v":0}]
[56,{"$f":"Import!I21555","v":"Select"},{"$f":"Import!I21955","v":"Select"},{"$f":"Import!I22355","v":"Select"},{"$f":"Import!I22755","v":0},{"$f":"Import!I23155","v":0},{"$f":"Import!I23555","v":0},{"$f":"Import!I23955","v":0},{"$f":"Import!I24355","v":0}]
[57,{"$f":"Import!I21556","v":"Select"},{"$f":"Import!I21956","v":"Select"},{"$f":"Import!I22356","v":"Select"},{"$f":"Import!I22756","v":0},{"$f":"Import!I23156","v":0},{"$f":"Import!I23556","v":0},{"$f":"Import!I23956","v":0},{"$f":"Import!I24356","v":0}]
[58,{"$f":"Import!I21557","v":"Select"},{"$f":"Import!I21957","v":"Select"},{"$f":"Import!I22357","v":"Select"},{"$f":"Import!I22757","v":0},{"$f":"Import!I23157","v":0},{"$f":"Import!I23557","v":0},{"$f":"Import!I23957","v":0},{"$f":"Import!I24357","v":0}]
[59,{"$f":"Import!I21558","v":"Select"},{"$f":"Import!I21958","v":"Select"},{"$f":"Import!I22358","v":"Select"},{"$f":"Import!I22758","v":0},{"$f":"Import!I23158","v":0},{"$f":"Import!I23558","v":0},{"$f":"Import!I23958","v":0},{"$f":"Import!I24358","v":0}]
[60,{"$f":"Import!I21559","v":"Select"},{"$f":"Import!I21959","v":"Select"},{"$f":"Import!I22359","v":"Select"},{"$f":"Import!I22759","v":0},{"$f":"Import!I23159","v":0},{"$f":"Import!I23559","v":0},{"$f":"Import!I23959","v":0},{"$f":"Import!I24359","v":0}]
[61,{"$f":"Import!I21560","v":"Select"},{"$f":"Import!I21960","v":"Select"},{"$f":"Import!I22360","v":"Select"},{"$f":"Import!I22760","v":0},{"$f":"Import!I23160","v":0},{"$f":"Import!I23560","v":0},{"$f":"Import!I23960","v":0},{"$f":"Import!I24360","v":0}]
[62,{"$f":"Import!I21561","v":"Select"},{"$f":"Import!I21961","v":"Select"},{"$f":"Import!I22361","v":"Select"},{"$f":"Import!I22761","v":0},{"$f":"Import!I23161","v":0},{"$f":"Import!I23561","v":0},{"$f":"Import!I23961","v":0},{"$f":"Import!I24361","v":0}]
[63,{"$f":"Import!I21562","v":"Select"},{"$f":"Import!I21962","v":"Select"},{"$f":"Import!I22362","v":"Select"},{"$f":"Import!I22762","v":0},{"$f":"Import!I23162","v":0},{"$f":"Import!I23562","v":0},{"$f":"Import!I23962","v":0},{"$f":"Import!I24362","v":0}]
[64,{"$f":"Import!I21563","v":"Select"},{"$f":"Import!I21963","v":"Select"},{"$f":"Import!I22363","v":"Select"},{"$f":"Import!I22763","v":0},{"$f":"Import!I23163","v":0},{"$f":"Import!I23563","v":0},{"$f":"Import!I23963","v":0},{"$f":"Import!I24363","v":0}]
[65,{"$f":"Import!I21564","v":"Select"},{"$f":"Import!I21964","v":"Select"},{"$f":"Import!I22364","v":"Select"},{"$f":"Import!I22764","v":0},{"$f":"Import!I23164","v":0},{"$f":"Import!I23564","v":0},{"$f":"Import!I23964","v":0},{"$f":"Import!I24364","v":0}]
[66,{"$f":"Import!I21565","v":"Select"},{"$f":"Import!I21965","v":"Select"},{"$f":"Import!I22365","v":"Select"},{"$f":"Import!I22765","v":0},{"$f":"Import!I23165","v":0},{"$f":"Import!I23565","v":0},{"$f":"Import!I23965","v":0},{"$f":"Import!I24365","v":0}]
[{"$f":"A284+1","v":67},{"$f":"Import!I21566","v":"Select"},{"$f":"Import!I21966","v":"Select"},{"$f":"Import!I22366","v":"Select"},{"$f":"Import!I22766","v":0},{"$f":"Import!I23166","v":0},{"$f":"Import!I23566","v":0},{"$f":"Import!I23966","v":0},{"$f":"Import!I24366","v":0}]
[68,{"$f":"Import!I21567","v":"Select"},{"$f":"Import!I21967","v":"Select"},{"$f":"Import!I22367","v":"Select"},{"$f":"Import!I22767","v":0},{"$f":"Import!I23167","v":0},{"$f":"Import!I23567","v":0},{"$f":"Import!I23967","v":0},{"$f":"Import!I24367","v":0}]
[69,{"$f":"Import!I21568","v":"Select"},{"$f":"Import!I21968","v":"Select"},{"$f":"Import!I22368","v":"Select"},{"$f":"Import!I22768","v":0},{"$f":"Import!I23168","v":0},{"$f":"Import!I23568","v":0},{"$f":"Import!I23968","v":0},{"$f":"Import!I24368","v":0}]
[70,{"$f":"Import!I21569","v":"Select"},{"$f":"Import!I21969","v":"Select"},{"$f":"Import!I22369","v":"Select"},{"$f":"Import!I22769","v":0},{"$f":"Import!I23169","v":0},{"$f":"Import!I23569","v":0},{"$f":"Import!I23969","v":0},{"$f":"Import!I24369","v":0}]
[71,{"$f":"Import!I21570","v":"Select"},{"$f":"Import!I21970","v":"Select"},{"$f":"Import!I22370","v":"Select"},{"$f":"Import!I22770","v":0},{"$f":"Import!I23170","v":0},{"$f":"Import!I23570","v":0},{"$f":"Import!I23970","v":0},{"$f":"Import!I24370","v":0}]
[72,{"$f":"Import!I21571","v":"Select"},{"$f":"Import!I21971","v":"Select"},{"$f":"Import!I22371","v":"Select"},{"$f":"Import!I22771","v":0},{"$f":"Import!I23171","v":0},{"$f":"Import!I23571","v":0},{"$f":"Import!I23971","v":0},{"$f":"Import!I24371","v":0}]
[73,{"$f":"Import!I21572","v":"Select"},{"$f":"Import!I21972","v":"Select"},{"$f":"Import!I22372","v":"Select"},{"$f":"Import!I22772","v":0},{"$f":"Import!I23172","v":0},{"$f":"Import!I23572","v":0},{"$f":"Import!I23972","v":0},{"$f":"Import!I24372","v":0}]
[74,{"$f":"Import!I21573","v":"Select"},{"$f":"Import!I21973","v":"Select"},{"$f":"Import!I22373","v":"Select"},{"$f":"Import!I22773","v":0},{"$f":"Import!I23173","v":0},{"$f":"Import!I23573","v":0},{"$f":"Import!I23973","v":0},{"$f":"Import!I24373","v":0}]
[75,{"$f":"Import!I21574","v":"Select"},{"$f":"Import!I21974","v":"Select"},{"$f":"Import!I22374","v":"Select"},{"$f":"Import!I22774","v":0},{"$f":"Import!I23174","v":0},{"$f":"Import!I23574","v":0},{"$f":"Import!I23974","v":0},{"$f":"Import!I24374","v":0}]
[76,{"$f":"Import!I21575","v":"Select"},{"$f":"Import!I21975","v":"Select"},{"$f":"Import!I22375","v":"Select"},{"$f":"Import!I22775","v":0},{"$f":"Import!I23175","v":0},{"$f":"Import!I23575","v":0},{"$f":"Import!I23975","v":0},{"$f":"Import!I24375","v":0}]
[77,{"$f":"Import!I21576","v":"Select"},{"$f":"Import!I21976","v":"Select"},{"$f":"Import!I22376","v":"Select"},{"$f":"Import!I22776","v":0},{"$f":"Import!I23176","v":0},{"$f":"Import!I23576","v":0},{"$f":"Import!I23976","v":0},{"$f":"Import!I24376","v":0}]
[78,{"$f":"Import!I21577","v":"Select"},{"$f":"Import!I21977","v":"Select"},{"$f":"Import!I22377","v":"Select"},{"$f":"Import!I22777","v":0},{"$f":"Import!I23177","v":0},{"$f":"Import!I23577","v":0},{"$f":"Import!I23977","v":0},{"$f":"Import!I24377","v":0}]
[79,{"$f":"Import!I21578","v":"Select"},{"$f":"Import!I21978","v":"Select"},{"$f":"Import!I22378","v":"Select"},{"$f":"Import!I22778","v":0},{"$f":"Import!I23178","v":0},{"$f":"Import!I23578","v":0},{"$f":"Import!I23978","v":0},{"$f":"Import!I24378","v":0}]
[80,{"$f":"Import!I21579","v":"Select"},{"$f":"Import!I21979","v":"Select"},{"$f":"Import!I22379","v":"Select"},{"$f":"Import!I22779","v":0},{"$f":"Import!I23179","v":0},{"$f":"Import!I23579","v":0},{"$f":"Import!I23979","v":0},{"$f":"Import!I24379","v":0}]
[81,{"$f":"Import!I21580","v":"Select"},{"$f":"Import!I21980","v":"Select"},{"$f":"Import!I22380","v":"Select"},{"$f":"Import!I22780","v":0},{"$f":"Import!I23180","v":0},{"$f":"Import!I23580","v":0},{"$f":"Import!I23980","v":0},{"$f":"Import!I24380","v":0}]
[82,{"$f":"Import!I21581","v":"Select"},{"$f":"Import!I21981","v":"Select"},{"$f":"Import!I22381","v":"Select"},{"$f":"Import!I22781","v":0},{"$f":"Import!I23181","v":0},{"$f":"Import!I23581","v":0},{"$f":"Import!I23981","v":0},{"$f":"Import!I24381","v":0}]
[83,{"$f":"Import!I21582","v":"Select"},{"$f":"Import!I21982","v":"Select"},{"$f":"Import!I22382","v":"Select"},{"$f":"Import!I22782","v":0},{"$f":"Import!I23182","v":0},{"$f":"Import!I23582","v":0},{"$f":"Import!I23982","v":0},{"$f":"Import!I24382","v":0}]
[84,{"$f":"Import!I21583","v":"Select"},{"$f":"Import!I21983","v":"Select"},{"$f":"Import!I22383","v":"Select"},{"$f":"Import!I22783","v":0},{"$f":"Import!I23183","v":0},{"$f":"Import!I23583","v":0},{"$f":"Import!I23983","v":0},{"$f":"Import!I24383","v":0}]
[85,{"$f":"Import!I21584","v":"Select"},{"$f":"Import!I21984","v":"Select"},{"$f":"Import!I22384","v":"Select"},{"$f":"Import!I22784","v":0},{"$f":"Import!I23184","v":0},{"$f":"Import!I23584","v":0},{"$f":"Import!I23984","v":0},{"$f":"Import!I24384","v":0}]
[86,{"$f":"Import!I21585","v":"Select"},{"$f":"Import!I21985","v":"Select"},{"$f":"Import!I22385","v":"Select"},{"$f":"Import!I22785","v":0},{"$f":"Import!I23185","v":0},{"$f":"Import!I23585","v":0},{"$f":"Import!I23985","v":0},{"$f":"Import!I24385","v":0}]
[87,{"$f":"Import!I21586","v":"Select"},{"$f":"Import!I21986","v":"Select"},{"$f":"Import!I22386","v":"Select"},{"$f":"Import!I22786","v":0},{"$f":"Import!I23186","v":0},{"$f":"Import!I23586","v":0},{"$f":"Import!I23986","v":0},{"$f":"Import!I24386","v":0}]
[88,{"$f":"Import!I21587","v":"Select"},{"$f":"Import!I21987","v":"Select"},{"$f":"Import!I22387","v":"Select"},{"$f":"Import!I22787","v":0},{"$f":"Import!I23187","v":0},{"$f":"Import!I23587","v":0},{"$f":"Import!I23987","v":0},{"$f":"Import!I24387","v":0}]
[89,{"$f":"Import!I21588","v":"Select"},{"$f":"Import!I21988","v":"Select"},{"$f":"Import!I22388","v":"Select"},{"$f":"Import!I22788","v":0},{"$f":"Import!I23188","v":0},{"$f":"Import!I23588","v":0},{"$f":"Import!I23988","v":0},{"$f":"Import!I24388","v":0}]
[90,{"$f":"Import!I21589","v":"Select"},{"$f":"Import!I21989","v":"Select"},{"$f":"Import!I22389","v":"Select"},{"$f":"Import!I22789","v":0},{"$f":"Import!I23189","v":0},{"$f":"Import!I23589","v":0},{"$f":"Import!I23989","v":0},{"$f":"Import!I24389","v":0}]
[91,{"$f":"Import!I21590","v":"Select"},{"$f":"Import!I21990","v":"Select"},{"$f":"Import!I22390","v":"Select"},{"$f":"Import!I22790","v":0},{"$f":"Import!I23190","v":0},{"$f":"Import!I23590","v":0},{"$f":"Import!I23990","v":0},{"$f":"Import!I24390","v":0}]
[92,{"$f":"Import!I21591","v":"Select"},{"$f":"Import!I21991","v":"Select"},{"$f":"Import!I22391","v":"Select"},{"$f":"Import!I22791","v":0},{"$f":"Import!I23191","v":0},{"$f":"Import!I23591","v":0},{"$f":"Import!I23991","v":0},{"$f":"Import!I24391","v":0}]
[93,{"$f":"Import!I21592","v":"Select"},{"$f":"Import!I21992","v":"Select"},{"$f":"Import!I22392","v":"Select"},{"$f":"Import!I22792","v":0},{"$f":"Import!I23192","v":0},{"$f":"Import!I23592","v":0},{"$f":"Import!I23992","v":0},{"$f":"Import!I24392","v":0}]
[94,{"$f":"Import!I21593","v":"Select"},{"$f":"Import!I21993","v":"Select"},{"$f":"Import!I22393","v":"Select"},{"$f":"Import!I22793","v":0},{"$f":"Import!I23193","v":0},{"$f":"Import!I23593","v":0},{"$f":"Import!I23993","v":0},{"$f":"Import!I24393","v":0}]
[95,{"$f":"Import!I21594","v":"Select"},{"$f":"Import!I21994","v":"Select"},{"$f":"Import!I22394","v":"Select"},{"$f":"Import!I22794","v":0},{"$f":"Import!I23194","v":0},{"$f":"Import!I23594","v":0},{"$f":"Import!I23994","v":0},{"$f":"Import!I24394","v":0}]
[96,{"$f":"Import!I21595","v":"Select"},{"$f":"Import!I21995","v":"Select"},{"$f":"Import!I22395","v":"Select"},{"$f":"Import!I22795","v":0},{"$f":"Import!I23195","v":0},{"$f":"Import!I23595","v":0},{"$f":"Import!I23995","v":0},{"$f":"Import!I24395","v":0}]
[97,{"$f":"Import!I21596","v":"Select"},{"$f":"Import!I21996","v":"Select"},{"$f":"Import!I22396","v":"Select"},{"$f":"Import!I22796","v":0},{"$f":"Import!I23196","v":0},{"$f":"Import!I23596","v":0},{"$f":"Import!I23996","v":0},{"$f":"Import!I24396","v":0}]
[98,{"$f":"Import!I21597","v":"Select"},{"$f":"Import!I21997","v":"Select"},{"$f":"Import!I22397","v":"Select"},{"$f":"Import!I22797","v":0},{"$f":"Import!I23197","v":0},{"$f":"Import!I23597","v":0},{"$f":"Import!I23997","v":0},{"$f":"Import!I24397","v":0}]
[99,{"$f":"Import!I21598","v":"Select"},{"$f":"Import!I21998","v":"Select"},{"$f":"Import!I22398","v":"Select"},{"$f":"Import!I22798","v":0},{"$f":"Import!I23198","v":0},{"$f":"Import!I23598","v":0},{"$f":"Import!I23998","v":0},{"$f":"Import!I24398","v":0}]
[100,{"$f":"Import!I21599","v":"Select"},{"$f":"Import!I21999","v":"Select"},{"$f":"Import!I22399","v":"Select"},{"$f":"Import!I22799","v":0},{"$f":"Import!I23199","v":0},{"$f":"Import!I23599","v":0},{"$f":"Import!I23999","v":0},{"$f":"Import!I24399","v":0}]
[101,{"$f":"Import!I21600","v":"Select"},{"$f":"Import!I22000","v":"Select"},{"$f":"Import!I22400","v":"Select"},{"$f":"Import!I22800","v":0},{"$f":"Import!I23200","v":0},{"$f":"Import!I23600","v":0},{"$f":"Import!I24000","v":0},{"$f":"Import!I24400","v":0}]
[102,{"$f":"Import!I21601","v":"Select"},{"$f":"Import!I22001","v":"Select"},{"$f":"Import!I22401","v":"Select"},{"$f":"Import!I22801","v":0},{"$f":"Import!I23201","v":0},{"$f":"Import!I23601","v":0},{"$f":"Import!I24001","v":0},{"$f":"Import!I24401","v":0}]
[103,{"$f":"Import!I21602","v":"Select"},{"$f":"Import!I22002","v":"Select"},{"$f":"Import!I22402","v":"Select"},{"$f":"Import!I22802","v":0},{"$f":"Import!I23202","v":0},{"$f":"Import!I23602","v":0},{"$f":"Import!I24002","v":0},{"$f":"Import!I24402","v":0}]
[104,{"$f":"Import!I21603","v":"Select"},{"$f":"Import!I22003","v":"Select"},{"$f":"Import!I22403","v":"Select"},{"$f":"Import!I22803","v":0},{"$f":"Import!I23203","v":0},{"$f":"Import!I23603","v":0},{"$f":"Import!I24003","v":0},{"$f":"Import!I24403","v":0}]
[105,{"$f":"Import!I21604","v":"Select"},{"$f":"Import!I22004","v":"Select"},{"$f":"Import!I22404","v":"Select"},{"$f":"Import!I22804","v":0},{"$f":"Import!I23204","v":0},{"$f":"Import!I23604","v":0},{"$f":"Import!I24004","v":0},{"$f":"Import!I24404","v":0}]
[106,{"$f":"Import!I21605","v":"Select"},{"$f":"Import!I22005","v":"Select"},{"$f":"Import!I22405","v":"Select"},{"$f":"Import!I22805","v":0},{"$f":"Import!I23205","v":0},{"$f":"Import!I23605","v":0},{"$f":"Import!I24005","v":0},{"$f":"Import!I24405","v":0}]
[107,{"$f":"Import!I21606","v":"Select"},{"$f":"Import!I22006","v":"Select"},{"$f":"Import!I22406","v":"Select"},{"$f":"Import!I22806","v":0},{"$f":"Import!I23206","v":0},{"$f":"Import!I23606","v":0},{"$f":"Import!I24006","v":0},{"$f":"Import!I24406","v":0}]
[108,{"$f":"Import!I21607","v":"Select"},{"$f":"Import!I22007","v":"Select"},{"$f":"Import!I22407","v":"Select"},{"$f":"Import!I22807","v":0},{"$f":"Import!I23207","v":0},{"$f":"Import!I23607","v":0},{"$f":"Import!I24007","v":0},{"$f":"Import!I24407","v":0}]
[109,{"$f":"Import!I21608","v":"Select"},{"$f":"Import!I22008","v":"Select"},{"$f":"Import!I22408","v":"Select"},{"$f":"Import!I22808","v":0},{"$f":"Import!I23208","v":0},{"$f":"Import!I23608","v":0},{"$f":"Import!I24008","v":0},{"$f":"Import!I24408","v":0}]
[110,{"$f":"Import!I21609","v":"Select"},{"$f":"Import!I22009","v":"Select"},{"$f":"Import!I22409","v":"Select"},{"$f":"Import!I22809","v":0},{"$f":"Import!I23209","v":0},{"$f":"Import!I23609","v":0},{"$f":"Import!I24009","v":0},{"$f":"Import!I24409","v":0}]
[111,{"$f":"Import!I21610","v":"Select"},{"$f":"Import!I22010","v":"Select"},{"$f":"Import!I22410","v":"Select"},{"$f":"Import!I22810","v":0},{"$f":"Import!I23210","v":0},{"$f":"Import!I23610","v":0},{"$f":"Import!I24010","v":0},{"$f":"Import!I24410","v":0}]
[112,{"$f":"Import!I21611","v":"Select"},{"$f":"Import!I22011","v":"Select"},{"$f":"Import!I22411","v":"Select"},{"$f":"Import!I22811","v":0},{"$f":"Import!I23211","v":0},{"$f":"Import!I23611","v":0},{"$f":"Import!I24011","v":0},{"$f":"Import!I24411","v":0}]
[113,{"$f":"Import!I21612","v":"Select"},{"$f":"Import!I22012","v":"Select"},{"$f":"Import!I22412","v":"Select"},{"$f":"Import!I22812","v":0},{"$f":"Import!I23212","v":0},{"$f":"Import!I23612","v":0},{"$f":"Import!I24012","v":0},{"$f":"Import!I24412","v":0}]
[114,{"$f":"Import!I21613","v":"Select"},{"$f":"Import!I22013","v":"Select"},{"$f":"Import!I22413","v":"Select"},{"$f":"Import!I22813","v":0},{"$f":"Import!I23213","v":0},{"$f":"Import!I23613","v":0},{"$f":"Import!I24013","v":0},{"$f":"Import!I24413","v":0}]
[115,{"$f":"Import!I21614","v":"Select"},{"$f":"Import!I22014","v":"Select"},{"$f":"Import!I22414","v":"Select"},{"$f":"Import!I22814","v":0},{"$f":"Import!I23214","v":0},{"$f":"Import!I23614","v":0},{"$f":"Import!I24014","v":0},{"$f":"Import!I24414","v":0}]
[116,{"$f":"Import!I21615","v":"Select"},{"$f":"Import!I22015","v":"Select"},{"$f":"Import!I22415","v":"Select"},{"$f":"Import!I22815","v":0},{"$f":"Import!I23215","v":0},{"$f":"Import!I23615","v":0},{"$f":"Import!I24015","v":0},{"$f":"Import!I24415","v":0}]
[117,{"$f":"Import!I21616","v":"Select"},{"$f":"Import!I22016","v":"Select"},{"$f":"Import!I22416","v":"Select"},{"$f":"Import!I22816","v":0},{"$f":"Import!I23216","v":0},{"$f":"Import!I23616","v":0},{"$f":"Import!I24016","v":0},{"$f":"Import!I24416","v":0}]
[118,{"$f":"Import!I21617","v":"Select"},{"$f":"Import!I22017","v":"Select"},{"$f":"Import!I22417","v":"Select"},{"$f":"Import!I22817","v":0},{"$f":"Import!I23217","v":0},{"$f":"Import!I23617","v":0},{"$f":"Import!I24017","v":0},{"$f":"Import!I24417","v":0}]
[119,{"$f":"Import!I21618","v":"Select"},{"$f":"Import!I22018","v":"Select"},{"$f":"Import!I22418","v":"Select"},{"$f":"Import!I22818","v":0},{"$f":"Import!I23218","v":0},{"$f":"Import!I23618","v":0},{"$f":"Import!I24018","v":0},{"$f":"Import!I24418","v":0}]
[120,{"$f":"Import!I21619","v":"Select"},{"$f":"Import!I22019","v":"Select"},{"$f":"Import!I22419","v":"Select"},{"$f":"Import!I22819","v":0},{"$f":"Import!I23219","v":0},{"$f":"Import!I23619","v":0},{"$f":"Import!I24019","v":0},{"$f":"Import!I24419","v":0}]
[121,{"$f":"Import!I21620","v":"Select"},{"$f":"Import!I22020","v":"Select"},{"$f":"Import!I22420","v":"Select"},{"$f":"Import!I22820","v":0},{"$f":"Import!I23220","v":0},{"$f":"Import!I23620","v":0},{"$f":"Import!I24020","v":0},{"$f":"Import!I24420","v":0}]
[122,{"$f":"Import!I21621","v":"Select"},{"$f":"Import!I22021","v":"Select"},{"$f":"Import!I22421","v":"Select"},{"$f":"Import!I22821","v":0},{"$f":"Import!I23221","v":0},{"$f":"Import!I23621","v":0},{"$f":"Import!I24021","v":0},{"$f":"Import!I24421","v":0}]
[123,{"$f":"Import!I21622","v":"Select"},{"$f":"Import!I22022","v":"Select"},{"$f":"Import!I22422","v":"Select"},{"$f":"Import!I22822","v":0},{"$f":"Import!I23222","v":0},{"$f":"Import!I23622","v":0},{"$f":"Import!I24022","v":0},{"$f":"Import!I24422","v":0}]
[124,{"$f":"Import!I21623","v":"Select"},{"$f":"Import!I22023","v":"Select"},{"$f":"Import!I22423","v":"Select"},{"$f":"Import!I22823","v":0},{"$f":"Import!I23223","v":0},{"$f":"Import!I23623","v":0},{"$f":"Import!I24023","v":0},{"$f":"Import!I24423","v":0}]
[125,{"$f":"Import!I21624","v":"Select"},{"$f":"Import!I22024","v":"Select"},{"$f":"Import!I22424","v":"Select"},{"$f":"Import!I22824","v":0},{"$f":"Import!I23224","v":0},{"$f":"Import!I23624","v":0},{"$f":"Import!I24024","v":0},{"$f":"Import!I24424","v":0}]
[126,{"$f":"Import!I21625","v":"Select"},{"$f":"Import!I22025","v":"Select"},{"$f":"Import!I22425","v":"Select"},{"$f":"Import!I22825","v":0},{"$f":"Import!I23225","v":0},{"$f":"Import!I23625","v":0},{"$f":"Import!I24025","v":0},{"$f":"Import!I24425","v":0}]
[127,{"$f":"Import!I21626","v":"Select"},{"$f":"Import!I22026","v":"Select"},{"$f":"Import!I22426","v":"Select"},{"$f":"Import!I22826","v":0},{"$f":"Import!I23226","v":0},{"$f":"Import!I23626","v":0},{"$f":"Import!I24026","v":0},{"$f":"Import!I24426","v":0}]
[128,{"$f":"Import!I21627","v":"Select"},{"$f":"Import!I22027","v":"Select"},{"$f":"Import!I22427","v":"Select"},{"$f":"Import!I22827","v":0},{"$f":"Import!I23227","v":0},{"$f":"Import!I23627","v":0},{"$f":"Import!I24027","v":0},{"$f":"Import!I24427","v":0}]
[129,{"$f":"Import!I21628","v":"Select"},{"$f":"Import!I22028","v":"Select"},{"$f":"Import!I22428","v":"Select"},{"$f":"Import!I22828","v":0},{"$f":"Import!I23228","v":0},{"$f":"Import!I23628","v":0},{"$f":"Import!I24028","v":0},{"$f":"Import!I24428","v":0}]
[130,{"$f":"Import!I21629","v":"Select"},{"$f":"Import!I22029","v":"Select"},{"$f":"Import!I22429","v":"Select"},{"$f":"Import!I22829","v":0},{"$f":"Import!I23229","v":0},{"$f":"Import!I23629","v":0},{"$f":"Import!I24029","v":0},{"$f":"Import!I24429","v":0}]
[{"$f":"A348+1","v":131},{"$f":"Import!I21630","v":"Select"},{"$f":"Import!I22030","v":"Select"},{"$f":"Import!I22430","v":"Select"},{"$f":"Import!I22830","v":0},{"$f":"Import!I23230","v":0},{"$f":"Import!I23630","v":0},{"$f":"Import!I24030","v":0},{"$f":"Import!I24430","v":0}]
[132,{"$f":"Import!I21631","v":"Select"},{"$f":"Import!I22031","v":"Select"},{"$f":"Import!I22431","v":"Select"},{"$f":"Import!I22831","v":0},{"$f":"Import!I23231","v":0},{"$f":"Import!I23631","v":0},{"$f":"Import!I24031","v":0},{"$f":"Import!I24431","v":0}]
[133,{"$f":"Import!I21632","v":"Select"},{"$f":"Import!I22032","v":"Select"},{"$f":"Import!I22432","v":"Select"},{"$f":"Import!I22832","v":0},{"$f":"Import!I23232","v":0},{"$f":"Import!I23632","v":0},{"$f":"Import!I24032","v":0},{"$f":"Import!I24432","v":0}]
[134,{"$f":"Import!I21633","v":"Select"},{"$f":"Import!I22033","v":"Select"},{"$f":"Import!I22433","v":"Select"},{"$f":"Import!I22833","v":0},{"$f":"Import!I23233","v":0},{"$f":"Import!I23633","v":0},{"$f":"Import!I24033","v":0},{"$f":"Import!I24433","v":0}]
[135,{"$f":"Import!I21634","v":"Select"},{"$f":"Import!I22034","v":"Select"},{"$f":"Import!I22434","v":"Select"},{"$f":"Import!I22834","v":0},{"$f":"Import!I23234","v":0},{"$f":"Import!I23634","v":0},{"$f":"Import!I24034","v":0},{"$f":"Import!I24434","v":0}]
[136,{"$f":"Import!I21635","v":"Select"},{"$f":"Import!I22035","v":"Select"},{"$f":"Import!I22435","v":"Select"},{"$f":"Import!I22835","v":0},{"$f":"Import!I23235","v":0},{"$f":"Import!I23635","v":0},{"$f":"Import!I24035","v":0},{"$f":"Import!I24435","v":0}]
[137,{"$f":"Import!I21636","v":"Select"},{"$f":"Import!I22036","v":"Select"},{"$f":"Import!I22436","v":"Select"},{"$f":"Import!I22836","v":0},{"$f":"Import!I23236","v":0},{"$f":"Import!I23636","v":0},{"$f":"Import!I24036","v":0},{"$f":"Import!I24436","v":0}]
[138,{"$f":"Import!I21637","v":"Select"},{"$f":"Import!I22037","v":"Select"},{"$f":"Import!I22437","v":"Select"},{"$f":"Import!I22837","v":0},{"$f":"Import!I23237","v":0},{"$f":"Import!I23637","v":0},{"$f":"Import!I24037","v":0},{"$f":"Import!I24437","v":0}]
[139,{"$f":"Import!I21638","v":"Select"},{"$f":"Import!I22038","v":"Select"},{"$f":"Import!I22438","v":"Select"},{"$f":"Import!I22838","v":0},{"$f":"Import!I23238","v":0},{"$f":"Import!I23638","v":0},{"$f":"Import!I24038","v":0},{"$f":"Import!I24438","v":0}]
[140,{"$f":"Import!I21639","v":"Select"},{"$f":"Import!I22039","v":"Select"},{"$f":"Import!I22439","v":"Select"},{"$f":"Import!I22839","v":0},{"$f":"Import!I23239","v":0},{"$f":"Import!I23639","v":0},{"$f":"Import!I24039","v":0},{"$f":"Import!I24439","v":0}]
[141,{"$f":"Import!I21640","v":"Select"},{"$f":"Import!I22040","v":"Select"},{"$f":"Import!I22440","v":"Select"},{"$f":"Import!I22840","v":0},{"$f":"Import!I23240","v":0},{"$f":"Import!I23640","v":0},{"$f":"Import!I24040","v":0},{"$f":"Import!I24440","v":0}]
[142,{"$f":"Import!I21641","v":"Select"},{"$f":"Import!I22041","v":"Select"},{"$f":"Import!I22441","v":"Select"},{"$f":"Import!I22841","v":0},{"$f":"Import!I23241","v":0},{"$f":"Import!I23641","v":0},{"$f":"Import!I24041","v":0},{"$f":"Import!I24441","v":0}]
[143,{"$f":"Import!I21642","v":"Select"},{"$f":"Import!I22042","v":"Select"},{"$f":"Import!I22442","v":"Select"},{"$f":"Import!I22842","v":0},{"$f":"Import!I23242","v":0},{"$f":"Import!I23642","v":0},{"$f":"Import!I24042","v":0},{"$f":"Import!I24442","v":0}]
[144,{"$f":"Import!I21643","v":"Select"},{"$f":"Import!I22043","v":"Select"},{"$f":"Import!I22443","v":"Select"},{"$f":"Import!I22843","v":0},{"$f":"Import!I23243","v":0},{"$f":"Import!I23643","v":0},{"$f":"Import!I24043","v":0},{"$f":"Import!I24443","v":0}]
[145,{"$f":"Import!I21644","v":"Select"},{"$f":"Import!I22044","v":"Select"},{"$f":"Import!I22444","v":"Select"},{"$f":"Import!I22844","v":0},{"$f":"Import!I23244","v":0},{"$f":"Import!I23644","v":0},{"$f":"Import!I24044","v":0},{"$f":"Import!I24444","v":0}]
[146,{"$f":"Import!I21645","v":"Select"},{"$f":"Import!I22045","v":"Select"},{"$f":"Import!I22445","v":"Select"},{"$f":"Import!I22845","v":0},{"$f":"Import!I23245","v":0},{"$f":"Import!I23645","v":0},{"$f":"Import!I24045","v":0},{"$f":"Import!I24445","v":0}]
[147,{"$f":"Import!I21646","v":"Select"},{"$f":"Import!I22046","v":"Select"},{"$f":"Import!I22446","v":"Select"},{"$f":"Import!I22846","v":0},{"$f":"Import!I23246","v":0},{"$f":"Import!I23646","v":0},{"$f":"Import!I24046","v":0},{"$f":"Import!I24446","v":0}]
[148,{"$f":"Import!I21647","v":"Select"},{"$f":"Import!I22047","v":"Select"},{"$f":"Import!I22447","v":"Select"},{"$f":"Import!I22847","v":0},{"$f":"Import!I23247","v":0},{"$f":"Import!I23647","v":0},{"$f":"Import!I24047","v":0},{"$f":"Import!I24447","v":0}]
[149,{"$f":"Import!I21648","v":"Select"},{"$f":"Import!I22048","v":"Select"},{"$f":"Import!I22448","v":"Select"},{"$f":"Import!I22848","v":0},{"$f":"Import!I23248","v":0},{"$f":"Import!I23648","v":0},{"$f":"Import!I24048","v":0},{"$f":"Import!I24448","v":0}]
[150,{"$f":"Import!I21649","v":"Select"},{"$f":"Import!I22049","v":"Select"},{"$f":"Import!I22449","v":"Select"},{"$f":"Import!I22849","v":0},{"$f":"Import!I23249","v":0},{"$f":"Import!I23649","v":0},{"$f":"Import!I24049","v":0},{"$f":"Import!I24449","v":0}]
[151,{"$f":"Import!I21650","v":"Select"},{"$f":"Import!I22050","v":"Select"},{"$f":"Import!I22450","v":"Select"},{"$f":"Import!I22850","v":0},{"$f":"Import!I23250","v":0},{"$f":"Import!I23650","v":0},{"$f":"Import!I24050","v":0},{"$f":"Import!I24450","v":0}]
[152,{"$f":"Import!I21651","v":"Select"},{"$f":"Import!I22051","v":"Select"},{"$f":"Import!I22451","v":"Select"},{"$f":"Import!I22851","v":0},{"$f":"Import!I23251","v":0},{"$f":"Import!I23651","v":0},{"$f":"Import!I24051","v":0},{"$f":"Import!I24451","v":0}]
[153,{"$f":"Import!I21652","v":"Select"},{"$f":"Import!I22052","v":"Select"},{"$f":"Import!I22452","v":"Select"},{"$f":"Import!I22852","v":0},{"$f":"Import!I23252","v":0},{"$f":"Import!I23652","v":0},{"$f":"Import!I24052","v":0},{"$f":"Import!I24452","v":0}]
[154,{"$f":"Import!I21653","v":"Select"},{"$f":"Import!I22053","v":"Select"},{"$f":"Import!I22453","v":"Select"},{"$f":"Import!I22853","v":0},{"$f":"Import!I23253","v":0},{"$f":"Import!I23653","v":0},{"$f":"Import!I24053","v":0},{"$f":"Import!I24453","v":0}]
[155,{"$f":"Import!I21654","v":"Select"},{"$f":"Import!I22054","v":"Select"},{"$f":"Import!I22454","v":"Select"},{"$f":"Import!I22854","v":0},{"$f":"Import!I23254","v":0},{"$f":"Import!I23654","v":0},{"$f":"Import!I24054","v":0},{"$f":"Import!I24454","v":0}]
[156,{"$f":"Import!I21655","v":"Select"},{"$f":"Import!I22055","v":"Select"},{"$f":"Import!I22455","v":"Select"},{"$f":"Import!I22855","v":0},{"$f":"Import!I23255","v":0},{"$f":"Import!I23655","v":0},{"$f":"Import!I24055","v":0},{"$f":"Import!I24455","v":0}]
[157,{"$f":"Import!I21656","v":"Select"},{"$f":"Import!I22056","v":"Select"},{"$f":"Import!I22456","v":"Select"},{"$f":"Import!I22856","v":0},{"$f":"Import!I23256","v":0},{"$f":"Import!I23656","v":0},{"$f":"Import!I24056","v":0},{"$f":"Import!I24456","v":0}]
[158,{"$f":"Import!I21657","v":"Select"},{"$f":"Import!I22057","v":"Select"},{"$f":"Import!I22457","v":"Select"},{"$f":"Import!I22857","v":0},{"$f":"Import!I23257","v":0},{"$f":"Import!I23657","v":0},{"$f":"Import!I24057","v":0},{"$f":"Import!I24457","v":0}]
[159,{"$f":"Import!I21658","v":"Select"},{"$f":"Import!I22058","v":"Select"},{"$f":"Import!I22458","v":"Select"},{"$f":"Import!I22858","v":0},{"$f":"Import!I23258","v":0},{"$f":"Import!I23658","v":0},{"$f":"Import!I24058","v":0},{"$f":"Import!I24458","v":0}]
[160,{"$f":"Import!I21659","v":"Select"},{"$f":"Import!I22059","v":"Select"},{"$f":"Import!I22459","v":"Select"},{"$f":"Import!I22859","v":0},{"$f":"Import!I23259","v":0},{"$f":"Import!I23659","v":0},{"$f":"Import!I24059","v":0},{"$f":"Import!I24459","v":0}]
[161,{"$f":"Import!I21660","v":"Select"},{"$f":"Import!I22060","v":"Select"},{"$f":"Import!I22460","v":"Select"},{"$f":"Import!I22860","v":0},{"$f":"Import!I23260","v":0},{"$f":"Import!I23660","v":0},{"$f":"Import!I24060","v":0},{"$f":"Import!I24460","v":0}]
[162,{"$f":"Import!I21661","v":"Select"},{"$f":"Import!I22061","v":"Select"},{"$f":"Import!I22461","v":"Select"},{"$f":"Import!I22861","v":0},{"$f":"Import!I23261","v":0},{"$f":"Import!I23661","v":0},{"$f":"Import!I24061","v":0},{"$f":"Import!I24461","v":0}]
[163,{"$f":"Import!I21662","v":"Select"},{"$f":"Import!I22062","v":"Select"},{"$f":"Import!I22462","v":"Select"},{"$f":"Import!I22862","v":0},{"$f":"Import!I23262","v":0},{"$f":"Import!I23662","v":0},{"$f":"Import!I24062","v":0},{"$f":"Import!I24462","v":0}]
[164,{"$f":"Import!I21663","v":"Select"},{"$f":"Import!I22063","v":"Select"},{"$f":"Import!I22463","v":"Select"},{"$f":"Import!I22863","v":0},{"$f":"Import!I23263","v":0},{"$f":"Import!I23663","v":0},{"$f":"Import!I24063","v":0},{"$f":"Import!I24463","v":0}]
[165,{"$f":"Import!I21664","v":"Select"},{"$f":"Import!I22064","v":"Select"},{"$f":"Import!I22464","v":"Select"},{"$f":"Import!I22864","v":0},{"$f":"Import!I23264","v":0},{"$f":"Import!I23664","v":0},{"$f":"Import!I24064","v":0},{"$f":"Import!I24464","v":0}]
[166,{"$f":"Import!I21665","v":"Select"},{"$f":"Import!I22065","v":"Select"},{"$f":"Import!I22465","v":"Select"},{"$f":"Import!I22865","v":0},{"$f":"Import!I23265","v":0},{"$f":"Import!I23665","v":0},{"$f":"Import!I24065","v":0},{"$f":"Import!I24465","v":0}]
[167,{"$f":"Import!I21666","v":"Select"},{"$f":"Import!I22066","v":"Select"},{"$f":"Import!I22466","v":"Select"},{"$f":"Import!I22866","v":0},{"$f":"Import!I23266","v":0},{"$f":"Import!I23666","v":0},{"$f":"Import!I24066","v":0},{"$f":"Import!I24466","v":0}]
[168,{"$f":"Import!I21667","v":"Select"},{"$f":"Import!I22067","v":"Select"},{"$f":"Import!I22467","v":"Select"},{"$f":"Import!I22867","v":0},{"$f":"Import!I23267","v":0},{"$f":"Import!I23667","v":0},{"$f":"Import!I24067","v":0},{"$f":"Import!I24467","v":0}]
[169,{"$f":"Import!I21668","v":"Select"},{"$f":"Import!I22068","v":"Select"},{"$f":"Import!I22468","v":"Select"},{"$f":"Import!I22868","v":0},{"$f":"Import!I23268","v":0},{"$f":"Import!I23668","v":0},{"$f":"Import!I24068","v":0},{"$f":"Import!I24468","v":0}]
[170,{"$f":"Import!I21669","v":"Select"},{"$f":"Import!I22069","v":"Select"},{"$f":"Import!I22469","v":"Select"},{"$f":"Import!I22869","v":0},{"$f":"Import!I23269","v":0},{"$f":"Import!I23669","v":0},{"$f":"Import!I24069","v":0},{"$f":"Import!I24469","v":0}]
[171,{"$f":"Import!I21670","v":"Select"},{"$f":"Import!I22070","v":"Select"},{"$f":"Import!I22470","v":"Select"},{"$f":"Import!I22870","v":0},{"$f":"Import!I23270","v":0},{"$f":"Import!I23670","v":0},{"$f":"Import!I24070","v":0},{"$f":"Import!I24470","v":0}]
[172,{"$f":"Import!I21671","v":"Select"},{"$f":"Import!I22071","v":"Select"},{"$f":"Import!I22471","v":"Select"},{"$f":"Import!I22871","v":0},{"$f":"Import!I23271","v":0},{"$f":"Import!I23671","v":0},{"$f":"Import!I24071","v":0},{"$f":"Import!I24471","v":0}]
[173,{"$f":"Import!I21672","v":"Select"},{"$f":"Import!I22072","v":"Select"},{"$f":"Import!I22472","v":"Select"},{"$f":"Import!I22872","v":0},{"$f":"Import!I23272","v":0},{"$f":"Import!I23672","v":0},{"$f":"Import!I24072","v":0},{"$f":"Import!I24472","v":0}]
[174,{"$f":"Import!I21673","v":"Select"},{"$f":"Import!I22073","v":"Select"},{"$f":"Import!I22473","v":"Select"},{"$f":"Import!I22873","v":0},{"$f":"Import!I23273","v":0},{"$f":"Import!I23673","v":0},{"$f":"Import!I24073","v":0},{"$f":"Import!I24473","v":0}]
[175,{"$f":"Import!I21674","v":"Select"},{"$f":"Import!I22074","v":"Select"},{"$f":"Import!I22474","v":"Select"},{"$f":"Import!I22874","v":0},{"$f":"Import!I23274","v":0},{"$f":"Import!I23674","v":0},{"$f":"Import!I24074","v":0},{"$f":"Import!I24474","v":0}]
[176,{"$f":"Import!I21675","v":"Select"},{"$f":"Import!I22075","v":"Select"},{"$f":"Import!I22475","v":"Select"},{"$f":"Import!I22875","v":0},{"$f":"Import!I23275","v":0},{"$f":"Import!I23675","v":0},{"$f":"Import!I24075","v":0},{"$f":"Import!I24475","v":0}]
[177,{"$f":"Import!I21676","v":"Select"},{"$f":"Import!I22076","v":"Select"},{"$f":"Import!I22476","v":"Select"},{"$f":"Import!I22876","v":0},{"$f":"Import!I23276","v":0},{"$f":"Import!I23676","v":0},{"$f":"Import!I24076","v":0},{"$f":"Import!I24476","v":0}]
[178,{"$f":"Import!I21677","v":"Select"},{"$f":"Import!I22077","v":"Select"},{"$f":"Import!I22477","v":"Select"},{"$f":"Import!I22877","v":0},{"$f":"Import!I23277","v":0},{"$f":"Import!I23677","v":0},{"$f":"Import!I24077","v":0},{"$f":"Import!I24477","v":0}]
[179,{"$f":"Import!I21678","v":"Select"},{"$f":"Import!I22078","v":"Select"},{"$f":"Import!I22478","v":"Select"},{"$f":"Import!I22878","v":0},{"$f":"Import!I23278","v":0},{"$f":"Import!I23678","v":0},{"$f":"Import!I24078","v":0},{"$f":"Import!I24478","v":0}]
[180,{"$f":"Import!I21679","v":"Select"},{"$f":"Import!I22079","v":"Select"},{"$f":"Import!I22479","v":"Select"},{"$f":"Import!I22879","v":0},{"$f":"Import!I23279","v":0},{"$f":"Import!I23679","v":0},{"$f":"Import!I24079","v":0},{"$f":"Import!I24479","v":0}]
[181,{"$f":"Import!I21680","v":"Select"},{"$f":"Import!I22080","v":"Select"},{"$f":"Import!I22480","v":"Select"},{"$f":"Import!I22880","v":0},{"$f":"Import!I23280","v":0},{"$f":"Import!I23680","v":0},{"$f":"Import!I24080","v":0},{"$f":"Import!I24480","v":0}]
[182,{"$f":"Import!I21681","v":"Select"},{"$f":"Import!I22081","v":"Select"},{"$f":"Import!I22481","v":"Select"},{"$f":"Import!I22881","v":0},{"$f":"Import!I23281","v":0},{"$f":"Import!I23681","v":0},{"$f":"Import!I24081","v":0},{"$f":"Import!I24481","v":0}]
[183,{"$f":"Import!I21682","v":"Select"},{"$f":"Import!I22082","v":"Select"},{"$f":"Import!I22482","v":"Select"},{"$f":"Import!I22882","v":0},{"$f":"Import!I23282","v":0},{"$f":"Import!I23682","v":0},{"$f":"Import!I24082","v":0},{"$f":"Import!I24482","v":0}]
[184,{"$f":"Import!I21683","v":"Select"},{"$f":"Import!I22083","v":"Select"},{"$f":"Import!I22483","v":"Select"},{"$f":"Import!I22883","v":0},{"$f":"Import!I23283","v":0},{"$f":"Import!I23683","v":0},{"$f":"Import!I24083","v":0},{"$f":"Import!I24483","v":0}]
[185,{"$f":"Import!I21684","v":"Select"},{"$f":"Import!I22084","v":"Select"},{"$f":"Import!I22484","v":"Select"},{"$f":"Import!I22884","v":0},{"$f":"Import!I23284","v":0},{"$f":"Import!I23684","v":0},{"$f":"Import!I24084","v":0},{"$f":"Import!I24484","v":0}]
[186,{"$f":"Import!I21685","v":"Select"},{"$f":"Import!I22085","v":"Select"},{"$f":"Import!I22485","v":"Select"},{"$f":"Import!I22885","v":0},{"$f":"Import!I23285","v":0},{"$f":"Import!I23685","v":0},{"$f":"Import!I24085","v":0},{"$f":"Import!I24485","v":0}]
[187,{"$f":"Import!I21686","v":"Select"},{"$f":"Import!I22086","v":"Select"},{"$f":"Import!I22486","v":"Select"},{"$f":"Import!I22886","v":0},{"$f":"Import!I23286","v":0},{"$f":"Import!I23686","v":0},{"$f":"Import!I24086","v":0},{"$f":"Import!I24486","v":0}]
[188,{"$f":"Import!I21687","v":"Select"},{"$f":"Import!I22087","v":"Select"},{"$f":"Import!I22487","v":"Select"},{"$f":"Import!I22887","v":0},{"$f":"Import!I23287","v":0},{"$f":"Import!I23687","v":0},{"$f":"Import!I24087","v":0},{"$f":"Import!I24487","v":0}]
[189,{"$f":"Import!I21688","v":"Select"},{"$f":"Import!I22088","v":"Select"},{"$f":"Import!I22488","v":"Select"},{"$f":"Import!I22888","v":0},{"$f":"Import!I23288","v":0},{"$f":"Import!I23688","v":0},{"$f":"Import!I24088","v":0},{"$f":"Import!I24488","v":0}]
[190,{"$f":"Import!I21689","v":"Select"},{"$f":"Import!I22089","v":"Select"},{"$f":"Import!I22489","v":"Select"},{"$f":"Import!I22889","v":0},{"$f":"Import!I23289","v":0},{"$f":"Import!I23689","v":0},{"$f":"Import!I24089","v":0},{"$f":"Import!I24489","v":0}]
[191,{"$f":"Import!I21690","v":"Select"},{"$f":"Import!I22090","v":"Select"},{"$f":"Import!I22490","v":"Select"},{"$f":"Import!I22890","v":0},{"$f":"Import!I23290","v":0},{"$f":"Import!I23690","v":0},{"$f":"Import!I24090","v":0},{"$f":"Import!I24490","v":0}]
[192,{"$f":"Import!I21691","v":"Select"},{"$f":"Import!I22091","v":"Select"},{"$f":"Import!I22491","v":"Select"},{"$f":"Import!I22891","v":0},{"$f":"Import!I23291","v":0},{"$f":"Import!I23691","v":0},{"$f":"Import!I24091","v":0},{"$f":"Import!I24491","v":0}]
[193,{"$f":"Import!I21692","v":"Select"},{"$f":"Import!I22092","v":"Select"},{"$f":"Import!I22492","v":"Select"},{"$f":"Import!I22892","v":0},{"$f":"Import!I23292","v":0},{"$f":"Import!I23692","v":0},{"$f":"Import!I24092","v":0},{"$f":"Import!I24492","v":0}]
[194,{"$f":"Import!I21693","v":"Select"},{"$f":"Import!I22093","v":"Select"},{"$f":"Import!I22493","v":"Select"},{"$f":"Import!I22893","v":0},{"$f":"Import!I23293","v":0},{"$f":"Import!I23693","v":0},{"$f":"Import!I24093","v":0},{"$f":"Import!I24493","v":0}]
[{"$f":"A412+1","v":195},{"$f":"Import!I21694","v":"Select"},{"$f":"Import!I22094","v":"Select"},{"$f":"Import!I22494","v":"Select"},{"$f":"Import!I22894","v":0},{"$f":"Import!I23294","v":0},{"$f":"Import!I23694","v":0},{"$f":"Import!I24094","v":0},{"$f":"Import!I24494","v":0}]
[196,{"$f":"Import!I21695","v":"Select"},{"$f":"Import!I22095","v":"Select"},{"$f":"Import!I22495","v":"Select"},{"$f":"Import!I22895","v":0},{"$f":"Import!I23295","v":0},{"$f":"Import!I23695","v":0},{"$f":"Import!I24095","v":0},{"$f":"Import!I24495","v":0}]
[197,{"$f":"Import!I21696","v":"Select"},{"$f":"Import!I22096","v":"Select"},{"$f":"Import!I22496","v":"Select"},{"$f":"Import!I22896","v":0},{"$f":"Import!I23296","v":0},{"$f":"Import!I23696","v":0},{"$f":"Import!I24096","v":0},{"$f":"Import!I24496","v":0}]
[198,{"$f":"Import!I21697","v":"Select"},{"$f":"Import!I22097","v":"Select"},{"$f":"Import!I22497","v":"Select"},{"$f":"Import!I22897","v":0},{"$f":"Import!I23297","v":0},{"$f":"Import!I23697","v":0},{"$f":"Import!I24097","v":0},{"$f":"Import!I24497","v":0}]
[199,{"$f":"Import!I21698","v":"Select"},{"$f":"Import!I22098","v":"Select"},{"$f":"Import!I22498","v":"Select"},{"$f":"Import!I22898","v":0},{"$f":"Import!I23298","v":0},{"$f":"Import!I23698","v":0},{"$f":"Import!I24098","v":0},{"$f":"Import!I24498","v":0}]
[200,{"$f":"Import!I21699","v":"Select"},{"$f":"Import!I22099","v":"Select"},{"$f":"Import!I22499","v":"Select"},{"$f":"Import!I22899","v":0},{"$f":"Import!I23299","v":0},{"$f":"Import!I23699","v":0},{"$f":"Import!I24099","v":0},{"$f":"Import!I24499","v":0}]
[201,{"$f":"Import!I21700","v":"Select"},{"$f":"Import!I22100","v":"Select"},{"$f":"Import!I22500","v":"Select"},{"$f":"Import!I22900","v":0},{"$f":"Import!I23300","v":0},{"$f":"Import!I23700","v":0},{"$f":"Import!I24100","v":0},{"$f":"Import!I24500","v":0}]
[202,{"$f":"Import!I21701","v":"Select"},{"$f":"Import!I22101","v":"Select"},{"$f":"Import!I22501","v":"Select"},{"$f":"Import!I22901","v":0},{"$f":"Import!I23301","v":0},{"$f":"Import!I23701","v":0},{"$f":"Import!I24101","v":0},{"$f":"Import!I24501","v":0}]
[203,{"$f":"Import!I21702","v":"Select"},{"$f":"Import!I22102","v":"Select"},{"$f":"Import!I22502","v":"Select"},{"$f":"Import!I22902","v":0},{"$f":"Import!I23302","v":0},{"$f":"Import!I23702","v":0},{"$f":"Import!I24102","v":0},{"$f":"Import!I24502","v":0}]
[204,{"$f":"Import!I21703","v":"Select"},{"$f":"Import!I22103","v":"Select"},{"$f":"Import!I22503","v":"Select"},{"$f":"Import!I22903","v":0},{"$f":"Import!I23303","v":0},{"$f":"Import!I23703","v":0},{"$f":"Import!I24103","v":0},{"$f":"Import!I24503","v":0}]
[205,{"$f":"Import!I21704","v":"Select"},{"$f":"Import!I22104","v":"Select"},{"$f":"Import!I22504","v":"Select"},{"$f":"Import!I22904","v":0},{"$f":"Import!I23304","v":0},{"$f":"Import!I23704","v":0},{"$f":"Import!I24104","v":0},{"$f":"Import!I24504","v":0}]
[206,{"$f":"Import!I21705","v":"Select"},{"$f":"Import!I22105","v":"Select"},{"$f":"Import!I22505","v":"Select"},{"$f":"Import!I22905","v":0},{"$f":"Import!I23305","v":0},{"$f":"Import!I23705","v":0},{"$f":"Import!I24105","v":0},{"$f":"Import!I24505","v":0}]
[207,{"$f":"Import!I21706","v":"Select"},{"$f":"Import!I22106","v":"Select"},{"$f":"Import!I22506","v":"Select"},{"$f":"Import!I22906","v":0},{"$f":"Import!I23306","v":0},{"$f":"Import!I23706","v":0},{"$f":"Import!I24106","v":0},{"$f":"Import!I24506","v":0}]
[208,{"$f":"Import!I21707","v":"Select"},{"$f":"Import!I22107","v":"Select"},{"$f":"Import!I22507","v":"Select"},{"$f":"Import!I22907","v":0},{"$f":"Import!I23307","v":0},{"$f":"Import!I23707","v":0},{"$f":"Import!I24107","v":0},{"$f":"Import!I24507","v":0}]
[209,{"$f":"Import!I21708","v":"Select"},{"$f":"Import!I22108","v":"Select"},{"$f":"Import!I22508","v":"Select"},{"$f":"Import!I22908","v":0},{"$f":"Import!I23308","v":0},{"$f":"Import!I23708","v":0},{"$f":"Import!I24108","v":0},{"$f":"Import!I24508","v":0}]
[210,{"$f":"Import!I21709","v":"Select"},{"$f":"Import!I22109","v":"Select"},{"$f":"Import!I22509","v":"Select"},{"$f":"Import!I22909","v":0},{"$f":"Import!I23309","v":0},{"$f":"Import!I23709","v":0},{"$f":"Import!I24109","v":0},{"$f":"Import!I24509","v":0}]
[211,{"$f":"Import!I21710","v":"Select"},{"$f":"Import!I22110","v":"Select"},{"$f":"Import!I22510","v":"Select"},{"$f":"Import!I22910","v":0},{"$f":"Import!I23310","v":0},{"$f":"Import!I23710","v":0},{"$f":"Import!I24110","v":0},{"$f":"Import!I24510","v":0}]
[212,{"$f":"Import!I21711","v":"Select"},{"$f":"Import!I22111","v":"Select"},{"$f":"Import!I22511","v":"Select"},{"$f":"Import!I22911","v":0},{"$f":"Import!I23311","v":0},{"$f":"Import!I23711","v":0},{"$f":"Import!I24111","v":0},{"$f":"Import!I24511","v":0}]
[213,{"$f":"Import!I21712","v":"Select"},{"$f":"Import!I22112","v":"Select"},{"$f":"Import!I22512","v":"Select"},{"$f":"Import!I22912","v":0},{"$f":"Import!I23312","v":0},{"$f":"Import!I23712","v":0},{"$f":"Import!I24112","v":0},{"$f":"Import!I24512","v":0}]
[214,{"$f":"Import!I21713","v":"Select"},{"$f":"Import!I22113","v":"Select"},{"$f":"Import!I22513","v":"Select"},{"$f":"Import!I22913","v":0},{"$f":"Import!I23313","v":0},{"$f":"Import!I23713","v":0},{"$f":"Import!I24113","v":0},{"$f":"Import!I24513","v":0}]
[215,{"$f":"Import!I21714","v":"Select"},{"$f":"Import!I22114","v":"Select"},{"$f":"Import!I22514","v":"Select"},{"$f":"Import!I22914","v":0},{"$f":"Import!I23314","v":0},{"$f":"Import!I23714","v":0},{"$f":"Import!I24114","v":0},{"$f":"Import!I24514","v":0}]
[216,{"$f":"Import!I21715","v":"Select"},{"$f":"Import!I22115","v":"Select"},{"$f":"Import!I22515","v":"Select"},{"$f":"Import!I22915","v":0},{"$f":"Import!I23315","v":0},{"$f":"Import!I23715","v":0},{"$f":"Import!I24115","v":0},{"$f":"Import!I24515","v":0}]
[217,{"$f":"Import!I21716","v":"Select"},{"$f":"Import!I22116","v":"Select"},{"$f":"Import!I22516","v":"Select"},{"$f":"Import!I22916","v":0},{"$f":"Import!I23316","v":0},{"$f":"Import!I23716","v":0},{"$f":"Import!I24116","v":0},{"$f":"Import!I24516","v":0}]
[218,{"$f":"Import!I21717","v":"Select"},{"$f":"Import!I22117","v":"Select"},{"$f":"Import!I22517","v":"Select"},{"$f":"Import!I22917","v":0},{"$f":"Import!I23317","v":0},{"$f":"Import!I23717","v":0},{"$f":"Import!I24117","v":0},{"$f":"Import!I24517","v":0}]
[219,{"$f":"Import!I21718","v":"Select"},{"$f":"Import!I22118","v":"Select"},{"$f":"Import!I22518","v":"Select"},{"$f":"Import!I22918","v":0},{"$f":"Import!I23318","v":0},{"$f":"Import!I23718","v":0},{"$f":"Import!I24118","v":0},{"$f":"Import!I24518","v":0}]
[220,{"$f":"Import!I21719","v":"Select"},{"$f":"Import!I22119","v":"Select"},{"$f":"Import!I22519","v":"Select"},{"$f":"Import!I22919","v":0},{"$f":"Import!I23319","v":0},{"$f":"Import!I23719","v":0},{"$f":"Import!I24119","v":0},{"$f":"Import!I24519","v":0}]
[221,{"$f":"Import!I21720","v":"Select"},{"$f":"Import!I22120","v":"Select"},{"$f":"Import!I22520","v":"Select"},{"$f":"Import!I22920","v":0},{"$f":"Import!I23320","v":0},{"$f":"Import!I23720","v":0},{"$f":"Import!I24120","v":0},{"$f":"Import!I24520","v":0}]
[222,{"$f":"Import!I21721","v":"Select"},{"$f":"Import!I22121","v":"Select"},{"$f":"Import!I22521","v":"Select"},{"$f":"Import!I22921","v":0},{"$f":"Import!I23321","v":0},{"$f":"Import!I23721","v":0},{"$f":"Import!I24121","v":0},{"$f":"Import!I24521","v":0}]
[223,{"$f":"Import!I21722","v":"Select"},{"$f":"Import!I22122","v":"Select"},{"$f":"Import!I22522","v":"Select"},{"$f":"Import!I22922","v":0},{"$f":"Import!I23322","v":0},{"$f":"Import!I23722","v":0},{"$f":"Import!I24122","v":0},{"$f":"Import!I24522","v":0}]
[224,{"$f":"Import!I21723","v":"Select"},{"$f":"Import!I22123","v":"Select"},{"$f":"Import!I22523","v":"Select"},{"$f":"Import!I22923","v":0},{"$f":"Import!I23323","v":0},{"$f":"Import!I23723","v":0},{"$f":"Import!I24123","v":0},{"$f":"Import!I24523","v":0}]
[225,{"$f":"Import!I21724","v":"Select"},{"$f":"Import!I22124","v":"Select"},{"$f":"Import!I22524","v":"Select"},{"$f":"Import!I22924","v":0},{"$f":"Import!I23324","v":0},{"$f":"Import!I23724","v":0},{"$f":"Import!I24124","v":0},{"$f":"Import!I24524","v":0}]
[226,{"$f":"Import!I21725","v":"Select"},{"$f":"Import!I22125","v":"Select"},{"$f":"Import!I22525","v":"Select"},{"$f":"Import!I22925","v":0},{"$f":"Import!I23325","v":0},{"$f":"Import!I23725","v":0},{"$f":"Import!I24125","v":0},{"$f":"Import!I24525","v":0}]
[227,{"$f":"Import!I21726","v":"Select"},{"$f":"Import!I22126","v":"Select"},{"$f":"Import!I22526","v":"Select"},{"$f":"Import!I22926","v":0},{"$f":"Import!I23326","v":0},{"$f":"Import!I23726","v":0},{"$f":"Import!I24126","v":0},{"$f":"Import!I24526","v":0}]
[228,{"$f":"Import!I21727","v":"Select"},{"$f":"Import!I22127","v":"Select"},{"$f":"Import!I22527","v":"Select"},{"$f":"Import!I22927","v":0},{"$f":"Import!I23327","v":0},{"$f":"Import!I23727","v":0},{"$f":"Import!I24127","v":0},{"$f":"Import!I24527","v":0}]
[229,{"$f":"Import!I21728","v":"Select"},{"$f":"Import!I22128","v":"Select"},{"$f":"Import!I22528","v":"Select"},{"$f":"Import!I22928","v":0},{"$f":"Import!I23328","v":0},{"$f":"Import!I23728","v":0},{"$f":"Import!I24128","v":0},{"$f":"Import!I24528","v":0}]
[230,{"$f":"Import!I21729","v":"Select"},{"$f":"Import!I22129","v":"Select"},{"$f":"Import!I22529","v":"Select"},{"$f":"Import!I22929","v":0},{"$f":"Import!I23329","v":0},{"$f":"Import!I23729","v":0},{"$f":"Import!I24129","v":0},{"$f":"Import!I24529","v":0}]
[231,{"$f":"Import!I21730","v":"Select"},{"$f":"Import!I22130","v":"Select"},{"$f":"Import!I22530","v":"Select"},{"$f":"Import!I22930","v":0},{"$f":"Import!I23330","v":0},{"$f":"Import!I23730","v":0},{"$f":"Import!I24130","v":0},{"$f":"Import!I24530","v":0}]
[232,{"$f":"Import!I21731","v":"Select"},{"$f":"Import!I22131","v":"Select"},{"$f":"Import!I22531","v":"Select"},{"$f":"Import!I22931","v":0},{"$f":"Import!I23331","v":0},{"$f":"Import!I23731","v":0},{"$f":"Import!I24131","v":0},{"$f":"Import!I24531","v":0}]
[233,{"$f":"Import!I21732","v":"Select"},{"$f":"Import!I22132","v":"Select"},{"$f":"Import!I22532","v":"Select"},{"$f":"Import!I22932","v":0},{"$f":"Import!I23332","v":0},{"$f":"Import!I23732","v":0},{"$f":"Import!I24132","v":0},{"$f":"Import!I24532","v":0}]
[234,{"$f":"Import!I21733","v":"Select"},{"$f":"Import!I22133","v":"Select"},{"$f":"Import!I22533","v":"Select"},{"$f":"Import!I22933","v":0},{"$f":"Import!I23333","v":0},{"$f":"Import!I23733","v":0},{"$f":"Import!I24133","v":0},{"$f":"Import!I24533","v":0}]
[235,{"$f":"Import!I21734","v":"Select"},{"$f":"Import!I22134","v":"Select"},{"$f":"Import!I22534","v":"Select"},{"$f":"Import!I22934","v":0},{"$f":"Import!I23334","v":0},{"$f":"Import!I23734","v":0},{"$f":"Import!I24134","v":0},{"$f":"Import!I24534","v":0}]
[236,{"$f":"Import!I21735","v":"Select"},{"$f":"Import!I22135","v":"Select"},{"$f":"Import!I22535","v":"Select"},{"$f":"Import!I22935","v":0},{"$f":"Import!I23335","v":0},{"$f":"Import!I23735","v":0},{"$f":"Import!I24135","v":0},{"$f":"Import!I24535","v":0}]
[237,{"$f":"Import!I21736","v":"Select"},{"$f":"Import!I22136","v":"Select"},{"$f":"Import!I22536","v":"Select"},{"$f":"Import!I22936","v":0},{"$f":"Import!I23336","v":0},{"$f":"Import!I23736","v":0},{"$f":"Import!I24136","v":0},{"$f":"Import!I24536","v":0}]
[238,{"$f":"Import!I21737","v":"Select"},{"$f":"Import!I22137","v":"Select"},{"$f":"Import!I22537","v":"Select"},{"$f":"Import!I22937","v":0},{"$f":"Import!I23337","v":0},{"$f":"Import!I23737","v":0},{"$f":"Import!I24137","v":0},{"$f":"Import!I24537","v":0}]
[239,{"$f":"Import!I21738","v":"Select"},{"$f":"Import!I22138","v":"Select"},{"$f":"Import!I22538","v":"Select"},{"$f":"Import!I22938","v":0},{"$f":"Import!I23338","v":0},{"$f":"Import!I23738","v":0},{"$f":"Import!I24138","v":0},{"$f":"Import!I24538","v":0}]
[240,{"$f":"Import!I21739","v":"Select"},{"$f":"Import!I22139","v":"Select"},{"$f":"Import!I22539","v":"Select"},{"$f":"Import!I22939","v":0},{"$f":"Import!I23339","v":0},{"$f":"Import!I23739","v":0},{"$f":"Import!I24139","v":0},{"$f":"Import!I24539","v":0}]
[241,{"$f":"Import!I21740","v":"Select"},{"$f":"Import!I22140","v":"Select"},{"$f":"Import!I22540","v":"Select"},{"$f":"Import!I22940","v":0},{"$f":"Import!I23340","v":0},{"$f":"Import!I23740","v":0},{"$f":"Import!I24140","v":0},{"$f":"Import!I24540","v":0}]
[242,{"$f":"Import!I21741","v":"Select"},{"$f":"Import!I22141","v":"Select"},{"$f":"Import!I22541","v":"Select"},{"$f":"Import!I22941","v":0},{"$f":"Import!I23341","v":0},{"$f":"Import!I23741","v":0},{"$f":"Import!I24141","v":0},{"$f":"Import!I24541","v":0}]
[243,{"$f":"Import!I21742","v":"Select"},{"$f":"Import!I22142","v":"Select"},{"$f":"Import!I22542","v":"Select"},{"$f":"Import!I22942","v":0},{"$f":"Import!I23342","v":0},{"$f":"Import!I23742","v":0},{"$f":"Import!I24142","v":0},{"$f":"Import!I24542","v":0}]
[244,{"$f":"Import!I21743","v":"Select"},{"$f":"Import!I22143","v":"Select"},{"$f":"Import!I22543","v":"Select"},{"$f":"Import!I22943","v":0},{"$f":"Import!I23343","v":0},{"$f":"Import!I23743","v":0},{"$f":"Import!I24143","v":0},{"$f":"Import!I24543","v":0}]
[245,{"$f":"Import!I21744","v":"Select"},{"$f":"Import!I22144","v":"Select"},{"$f":"Import!I22544","v":"Select"},{"$f":"Import!I22944","v":0},{"$f":"Import!I23344","v":0},{"$f":"Import!I23744","v":0},{"$f":"Import!I24144","v":0},{"$f":"Import!I24544","v":0}]
[246,{"$f":"Import!I21745","v":"Select"},{"$f":"Import!I22145","v":"Select"},{"$f":"Import!I22545","v":"Select"},{"$f":"Import!I22945","v":0},{"$f":"Import!I23345","v":0},{"$f":"Import!I23745","v":0},{"$f":"Import!I24145","v":0},{"$f":"Import!I24545","v":0}]
[247,{"$f":"Import!I21746","v":"Select"},{"$f":"Import!I22146","v":"Select"},{"$f":"Import!I22546","v":"Select"},{"$f":"Import!I22946","v":0},{"$f":"Import!I23346","v":0},{"$f":"Import!I23746","v":0},{"$f":"Import!I24146","v":0},{"$f":"Import!I24546","v":0}]
[248,{"$f":"Import!I21747","v":"Select"},{"$f":"Import!I22147","v":"Select"},{"$f":"Import!I22547","v":"Select"},{"$f":"Import!I22947","v":0},{"$f":"Import!I23347","v":0},{"$f":"Import!I23747","v":0},{"$f":"Import!I24147","v":0},{"$f":"Import!I24547","v":0}]
[249,{"$f":"Import!I21748","v":"Select"},{"$f":"Import!I22148","v":"Select"},{"$f":"Import!I22548","v":"Select"},{"$f":"Import!I22948","v":0},{"$f":"Import!I23348","v":0},{"$f":"Import!I23748","v":0},{"$f":"Import!I24148","v":0},{"$f":"Import!I24548","v":0}]
[250,{"$f":"Import!I21749","v":"Select"},{"$f":"Import!I22149","v":"Select"},{"$f":"Import!I22549","v":"Select"},{"$f":"Import!I22949","v":0},{"$f":"Import!I23349","v":0},{"$f":"Import!I23749","v":0},{"$f":"Import!I24149","v":0},{"$f":"Import!I24549","v":0}]
[251,{"$f":"Import!I21750","v":"Select"},{"$f":"Import!I22150","v":"Select"},{"$f":"Import!I22550","v":"Select"},{"$f":"Import!I22950","v":0},{"$f":"Import!I23350","v":0},{"$f":"Import!I23750","v":0},{"$f":"Import!I24150","v":0},{"$f":"Import!I24550","v":0}]
[252,{"$f":"Import!I21751","v":"Select"},{"$f":"Import!I22151","v":"Select"},{"$f":"Import!I22551","v":"Select"},{"$f":"Import!I22951","v":0},{"$f":"Import!I23351","v":0},{"$f":"Import!I23751","v":0},{"$f":"Import!I24151","v":0},{"$f":"Import!I24551","v":0}]
[253,{"$f":"Import!I21752","v":"Select"},{"$f":"Import!I22152","v":"Select"},{"$f":"Import!I22552","v":"Select"},{"$f":"Import!I22952","v":0},{"$f":"Import!I23352","v":0},{"$f":"Import!I23752","v":0},{"$f":"Import!I24152","v":0},{"$f":"Import!I24552","v":0}]
[254,{"$f":"Import!I21753","v":"Select"},{"$f":"Import!I22153","v":"Select"},{"$f":"Import!I22553","v":"Select"},{"$f":"Import!I22953","v":0},{"$f":"Import!I23353","v":0},{"$f":"Import!I23753","v":0},{"$f":"Import!I24153","v":0},{"$f":"Import!I24553","v":0}]
[255,{"$f":"Import!I21754","v":"Select"},{"$f":"Import!I22154","v":"Select"},{"$f":"Import!I22554","v":"Select"},{"$f":"Import!I22954","v":0},{"$f":"Import!I23354","v":0},{"$f":"Import!I23754","v":0},{"$f":"Import!I24154","v":0},{"$f":"Import!I24554","v":0}]
[256,{"$f":"Import!I21755","v":"Select"},{"$f":"Import!I22155","v":"Select"},{"$f":"Import!I22555","v":"Select"},{"$f":"Import!I22955","v":0},{"$f":"Import!I23355","v":0},{"$f":"Import!I23755","v":0},{"$f":"Import!I24155","v":0},{"$f":"Import!I24555","v":0}]
[257,{"$f":"Import!I21756","v":"Select"},{"$f":"Import!I22156","v":"Select"},{"$f":"Import!I22556","v":"Select"},{"$f":"Import!I22956","v":0},{"$f":"Import!I23356","v":0},{"$f":"Import!I23756","v":0},{"$f":"Import!I24156","v":0},{"$f":"Import!I24556","v":0}]
[258,{"$f":"Import!I21757","v":"Select"},{"$f":"Import!I22157","v":"Select"},{"$f":"Import!I22557","v":"Select"},{"$f":"Import!I22957","v":0},{"$f":"Import!I23357","v":0},{"$f":"Import!I23757","v":0},{"$f":"Import!I24157","v":0},{"$f":"Import!I24557","v":0}]
[{"$f":"A476+1","v":259},{"$f":"Import!I21758","v":"Select"},{"$f":"Import!I22158","v":"Select"},{"$f":"Import!I22558","v":"Select"},{"$f":"Import!I22958","v":0},{"$f":"Import!I23358","v":0},{"$f":"Import!I23758","v":0},{"$f":"Import!I24158","v":0},{"$f":"Import!I24558","v":0}]
[260,{"$f":"Import!I21759","v":"Select"},{"$f":"Import!I22159","v":"Select"},{"$f":"Import!I22559","v":"Select"},{"$f":"Import!I22959","v":0},{"$f":"Import!I23359","v":0},{"$f":"Import!I23759","v":0},{"$f":"Import!I24159","v":0},{"$f":"Import!I24559","v":0}]
[261,{"$f":"Import!I21760","v":"Select"},{"$f":"Import!I22160","v":"Select"},{"$f":"Import!I22560","v":"Select"},{"$f":"Import!I22960","v":0},{"$f":"Import!I23360","v":0},{"$f":"Import!I23760","v":0},{"$f":"Import!I24160","v":0},{"$f":"Import!I24560","v":0}]
[262,{"$f":"Import!I21761","v":"Select"},{"$f":"Import!I22161","v":"Select"},{"$f":"Import!I22561","v":"Select"},{"$f":"Import!I22961","v":0},{"$f":"Import!I23361","v":0},{"$f":"Import!I23761","v":0},{"$f":"Import!I24161","v":0},{"$f":"Import!I24561","v":0}]
[263,{"$f":"Import!I21762","v":"Select"},{"$f":"Import!I22162","v":"Select"},{"$f":"Import!I22562","v":"Select"},{"$f":"Import!I22962","v":0},{"$f":"Import!I23362","v":0},{"$f":"Import!I23762","v":0},{"$f":"Import!I24162","v":0},{"$f":"Import!I24562","v":0}]
[264,{"$f":"Import!I21763","v":"Select"},{"$f":"Import!I22163","v":"Select"},{"$f":"Import!I22563","v":"Select"},{"$f":"Import!I22963","v":0},{"$f":"Import!I23363","v":0},{"$f":"Import!I23763","v":0},{"$f":"Import!I24163","v":0},{"$f":"Import!I24563","v":0}]
[265,{"$f":"Import!I21764","v":"Select"},{"$f":"Import!I22164","v":"Select"},{"$f":"Import!I22564","v":"Select"},{"$f":"Import!I22964","v":0},{"$f":"Import!I23364","v":0},{"$f":"Import!I23764","v":0},{"$f":"Import!I24164","v":0},{"$f":"Import!I24564","v":0}]
[266,{"$f":"Import!I21765","v":"Select"},{"$f":"Import!I22165","v":"Select"},{"$f":"Import!I22565","v":"Select"},{"$f":"Import!I22965","v":0},{"$f":"Import!I23365","v":0},{"$f":"Import!I23765","v":0},{"$f":"Import!I24165","v":0},{"$f":"Import!I24565","v":0}]
[267,{"$f":"Import!I21766","v":"Select"},{"$f":"Import!I22166","v":"Select"},{"$f":"Import!I22566","v":"Select"},{"$f":"Import!I22966","v":0},{"$f":"Import!I23366","v":0},{"$f":"Import!I23766","v":0},{"$f":"Import!I24166","v":0},{"$f":"Import!I24566","v":0}]
[268,{"$f":"Import!I21767","v":"Select"},{"$f":"Import!I22167","v":"Select"},{"$f":"Import!I22567","v":"Select"},{"$f":"Import!I22967","v":0},{"$f":"Import!I23367","v":0},{"$f":"Import!I23767","v":0},{"$f":"Import!I24167","v":0},{"$f":"Import!I24567","v":0}]
[269,{"$f":"Import!I21768","v":"Select"},{"$f":"Import!I22168","v":"Select"},{"$f":"Import!I22568","v":"Select"},{"$f":"Import!I22968","v":0},{"$f":"Import!I23368","v":0},{"$f":"Import!I23768","v":0},{"$f":"Import!I24168","v":0},{"$f":"Import!I24568","v":0}]
[270,{"$f":"Import!I21769","v":"Select"},{"$f":"Import!I22169","v":"Select"},{"$f":"Import!I22569","v":"Select"},{"$f":"Import!I22969","v":0},{"$f":"Import!I23369","v":0},{"$f":"Import!I23769","v":0},{"$f":"Import!I24169","v":0},{"$f":"Import!I24569","v":0}]
[271,{"$f":"Import!I21770","v":"Select"},{"$f":"Import!I22170","v":"Select"},{"$f":"Import!I22570","v":"Select"},{"$f":"Import!I22970","v":0},{"$f":"Import!I23370","v":0},{"$f":"Import!I23770","v":0},{"$f":"Import!I24170","v":0},{"$f":"Import!I24570","v":0}]
[272,{"$f":"Import!I21771","v":"Select"},{"$f":"Import!I22171","v":"Select"},{"$f":"Import!I22571","v":"Select"},{"$f":"Import!I22971","v":0},{"$f":"Import!I23371","v":0},{"$f":"Import!I23771","v":0},{"$f":"Import!I24171","v":0},{"$f":"Import!I24571","v":0}]
[273,{"$f":"Import!I21772","v":"Select"},{"$f":"Import!I22172","v":"Select"},{"$f":"Import!I22572","v":"Select"},{"$f":"Import!I22972","v":0},{"$f":"Import!I23372","v":0},{"$f":"Import!I23772","v":0},{"$f":"Import!I24172","v":0},{"$f":"Import!I24572","v":0}]
[274,{"$f":"Import!I21773","v":"Select"},{"$f":"Import!I22173","v":"Select"},{"$f":"Import!I22573","v":"Select"},{"$f":"Import!I22973","v":0},{"$f":"Import!I23373","v":0},{"$f":"Import!I23773","v":0},{"$f":"Import!I24173","v":0},{"$f":"Import!I24573","v":0}]
[275,{"$f":"Import!I21774","v":"Select"},{"$f":"Import!I22174","v":"Select"},{"$f":"Import!I22574","v":"Select"},{"$f":"Import!I22974","v":0},{"$f":"Import!I23374","v":0},{"$f":"Import!I23774","v":0},{"$f":"Import!I24174","v":0},{"$f":"Import!I24574","v":0}]
[276,{"$f":"Import!I21775","v":"Select"},{"$f":"Import!I22175","v":"Select"},{"$f":"Import!I22575","v":"Select"},{"$f":"Import!I22975","v":0},{"$f":"Import!I23375","v":0},{"$f":"Import!I23775","v":0},{"$f":"Import!I24175","v":0},{"$f":"Import!I24575","v":0}]
[277,{"$f":"Import!I21776","v":"Select"},{"$f":"Import!I22176","v":"Select"},{"$f":"Import!I22576","v":"Select"},{"$f":"Import!I22976","v":0},{"$f":"Import!I23376","v":0},{"$f":"Import!I23776","v":0},{"$f":"Import!I24176","v":0},{"$f":"Import!I24576","v":0}]
[278,{"$f":"Import!I21777","v":"Select"},{"$f":"Import!I22177","v":"Select"},{"$f":"Import!I22577","v":"Select"},{"$f":"Import!I22977","v":0},{"$f":"Import!I23377","v":0},{"$f":"Import!I23777","v":0},{"$f":"Import!I24177","v":0},{"$f":"Import!I24577","v":0}]
[279,{"$f":"Import!I21778","v":"Select"},{"$f":"Import!I22178","v":"Select"},{"$f":"Import!I22578","v":"Select"},{"$f":"Import!I22978","v":0},{"$f":"Import!I23378","v":0},{"$f":"Import!I23778","v":0},{"$f":"Import!I24178","v":0},{"$f":"Import!I24578","v":0}]
[280,{"$f":"Import!I21779","v":"Select"},{"$f":"Import!I22179","v":"Select"},{"$f":"Import!I22579","v":"Select"},{"$f":"Import!I22979","v":0},{"$f":"Import!I23379","v":0},{"$f":"Import!I23779","v":0},{"$f":"Import!I24179","v":0},{"$f":"Import!I24579","v":0}]
[281,{"$f":"Import!I21780","v":"Select"},{"$f":"Import!I22180","v":"Select"},{"$f":"Import!I22580","v":"Select"},{"$f":"Import!I22980","v":0},{"$f":"Import!I23380","v":0},{"$f":"Import!I23780","v":0},{"$f":"Import!I24180","v":0},{"$f":"Import!I24580","v":0}]
[282,{"$f":"Import!I21781","v":"Select"},{"$f":"Import!I22181","v":"Select"},{"$f":"Import!I22581","v":"Select"},{"$f":"Import!I22981","v":0},{"$f":"Import!I23381","v":0},{"$f":"Import!I23781","v":0},{"$f":"Import!I24181","v":0},{"$f":"Import!I24581","v":0}]
[283,{"$f":"Import!I21782","v":"Select"},{"$f":"Import!I22182","v":"Select"},{"$f":"Import!I22582","v":"Select"},{"$f":"Import!I22982","v":0},{"$f":"Import!I23382","v":0},{"$f":"Import!I23782","v":0},{"$f":"Import!I24182","v":0},{"$f":"Import!I24582","v":0}]
[284,{"$f":"Import!I21783","v":"Select"},{"$f":"Import!I22183","v":"Select"},{"$f":"Import!I22583","v":"Select"},{"$f":"Import!I22983","v":0},{"$f":"Import!I23383","v":0},{"$f":"Import!I23783","v":0},{"$f":"Import!I24183","v":0},{"$f":"Import!I24583","v":0}]
[285,{"$f":"Import!I21784","v":"Select"},{"$f":"Import!I22184","v":"Select"},{"$f":"Import!I22584","v":"Select"},{"$f":"Import!I22984","v":0},{"$f":"Import!I23384","v":0},{"$f":"Import!I23784","v":0},{"$f":"Import!I24184","v":0},{"$f":"Import!I24584","v":0}]
[286,{"$f":"Import!I21785","v":"Select"},{"$f":"Import!I22185","v":"Select"},{"$f":"Import!I22585","v":"Select"},{"$f":"Import!I22985","v":0},{"$f":"Import!I23385","v":0},{"$f":"Import!I23785","v":0},{"$f":"Import!I24185","v":0},{"$f":"Import!I24585","v":0}]
[287,{"$f":"Import!I21786","v":"Select"},{"$f":"Import!I22186","v":"Select"},{"$f":"Import!I22586","v":"Select"},{"$f":"Import!I22986","v":0},{"$f":"Import!I23386","v":0},{"$f":"Import!I23786","v":0},{"$f":"Import!I24186","v":0},{"$f":"Import!I24586","v":0}]
[288,{"$f":"Import!I21787","v":"Select"},{"$f":"Import!I22187","v":"Select"},{"$f":"Import!I22587","v":"Select"},{"$f":"Import!I22987","v":0},{"$f":"Import!I23387","v":0},{"$f":"Import!I23787","v":0},{"$f":"Import!I24187","v":0},{"$f":"Import!I24587","v":0}]
[289,{"$f":"Import!I21788","v":"Select"},{"$f":"Import!I22188","v":"Select"},{"$f":"Import!I22588","v":"Select"},{"$f":"Import!I22988","v":0},{"$f":"Import!I23388","v":0},{"$f":"Import!I23788","v":0},{"$f":"Import!I24188","v":0},{"$f":"Import!I24588","v":0}]
[290,{"$f":"Import!I21789","v":"Select"},{"$f":"Import!I22189","v":"Select"},{"$f":"Import!I22589","v":"Select"},{"$f":"Import!I22989","v":0},{"$f":"Import!I23389","v":0},{"$f":"Import!I23789","v":0},{"$f":"Import!I24189","v":0},{"$f":"Import!I24589","v":0}]
[291,{"$f":"Import!I21790","v":"Select"},{"$f":"Import!I22190","v":"Select"},{"$f":"Import!I22590","v":"Select"},{"$f":"Import!I22990","v":0},{"$f":"Import!I23390","v":0},{"$f":"Import!I23790","v":0},{"$f":"Import!I24190","v":0},{"$f":"Import!I24590","v":0}]
[292,{"$f":"Import!I21791","v":"Select"},{"$f":"Import!I22191","v":"Select"},{"$f":"Import!I22591","v":"Select"},{"$f":"Import!I22991","v":0},{"$f":"Import!I23391","v":0},{"$f":"Import!I23791","v":0},{"$f":"Import!I24191","v":0},{"$f":"Import!I24591","v":0}]
[293,{"$f":"Import!I21792","v":"Select"},{"$f":"Import!I22192","v":"Select"},{"$f":"Import!I22592","v":"Select"},{"$f":"Import!I22992","v":0},{"$f":"Import!I23392","v":0},{"$f":"Import!I23792","v":0},{"$f":"Import!I24192","v":0},{"$f":"Import!I24592","v":0}]
[294,{"$f":"Import!I21793","v":"Select"},{"$f":"Import!I22193","v":"Select"},{"$f":"Import!I22593","v":"Select"},{"$f":"Import!I22993","v":0},{"$f":"Import!I23393","v":0},{"$f":"Import!I23793","v":0},{"$f":"Import!I24193","v":0},{"$f":"Import!I24593","v":0}]
[295,{"$f":"Import!I21794","v":"Select"},{"$f":"Import!I22194","v":"Select"},{"$f":"Import!I22594","v":"Select"},{"$f":"Import!I22994","v":0},{"$f":"Import!I23394","v":0},{"$f":"Import!I23794","v":0},{"$f":"Import!I24194","v":0},{"$f":"Import!I24594","v":0}]
[296,{"$f":"Import!I21795","v":"Select"},{"$f":"Import!I22195","v":"Select"},{"$f":"Import!I22595","v":"Select"},{"$f":"Import!I22995","v":0},{"$f":"Import!I23395","v":0},{"$f":"Import!I23795","v":0},{"$f":"Import!I24195","v":0},{"$f":"Import!I24595","v":0}]
[297,{"$f":"Import!I21796","v":"Select"},{"$f":"Import!I22196","v":"Select"},{"$f":"Import!I22596","v":"Select"},{"$f":"Import!I22996","v":0},{"$f":"Import!I23396","v":0},{"$f":"Import!I23796","v":0},{"$f":"Import!I24196","v":0},{"$f":"Import!I24596","v":0}]
[298,{"$f":"Import!I21797","v":"Select"},{"$f":"Import!I22197","v":"Select"},{"$f":"Import!I22597","v":"Select"},{"$f":"Import!I22997","v":0},{"$f":"Import!I23397","v":0},{"$f":"Import!I23797","v":0},{"$f":"Import!I24197","v":0},{"$f":"Import!I24597","v":0}]
[299,{"$f":"Import!I21798","v":"Select"},{"$f":"Import!I22198","v":"Select"},{"$f":"Import!I22598","v":"Select"},{"$f":"Import!I22998","v":0},{"$f":"Import!I23398","v":0},{"$f":"Import!I23798","v":0},{"$f":"Import!I24198","v":0},{"$f":"Import!I24598","v":0}]
[300,{"$f":"Import!I21799","v":"Select"},{"$f":"Import!I22199","v":"Select"},{"$f":"Import!I22599","v":"Select"},{"$f":"Import!I22999","v":0},{"$f":"Import!I23399","v":0},{"$f":"Import!I23799","v":0},{"$f":"Import!I24199","v":0},{"$f":"Import!I24599","v":0}]
[301,{"$f":"Import!I21800","v":"Select"},{"$f":"Import!I22200","v":"Select"},{"$f":"Import!I22600","v":"Select"},{"$f":"Import!I23000","v":0},{"$f":"Import!I23400","v":0},{"$f":"Import!I23800","v":0},{"$f":"Import!I24200","v":0},{"$f":"Import!I24600","v":0}]
[302,{"$f":"Import!I21801","v":"Select"},{"$f":"Import!I22201","v":"Select"},{"$f":"Import!I22601","v":"Select"},{"$f":"Import!I23001","v":0},{"$f":"Import!I23401","v":0},{"$f":"Import!I23801","v":0},{"$f":"Import!I24201","v":0},{"$f":"Import!I24601","v":0}]
[303,{"$f":"Import!I21802","v":"Select"},{"$f":"Import!I22202","v":"Select"},{"$f":"Import!I22602","v":"Select"},{"$f":"Import!I23002","v":0},{"$f":"Import!I23402","v":0},{"$f":"Import!I23802","v":0},{"$f":"Import!I24202","v":0},{"$f":"Import!I24602","v":0}]
[304,{"$f":"Import!I21803","v":"Select"},{"$f":"Import!I22203","v":"Select"},{"$f":"Import!I22603","v":"Select"},{"$f":"Import!I23003","v":0},{"$f":"Import!I23403","v":0},{"$f":"Import!I23803","v":0},{"$f":"Import!I24203","v":0},{"$f":"Import!I24603","v":0}]
[305,{"$f":"Import!I21804","v":"Select"},{"$f":"Import!I22204","v":"Select"},{"$f":"Import!I22604","v":"Select"},{"$f":"Import!I23004","v":0},{"$f":"Import!I23404","v":0},{"$f":"Import!I23804","v":0},{"$f":"Import!I24204","v":0},{"$f":"Import!I24604","v":0}]
[306,{"$f":"Import!I21805","v":"Select"},{"$f":"Import!I22205","v":"Select"},{"$f":"Import!I22605","v":"Select"},{"$f":"Import!I23005","v":0},{"$f":"Import!I23405","v":0},{"$f":"Import!I23805","v":0},{"$f":"Import!I24205","v":0},{"$f":"Import!I24605","v":0}]
[307,{"$f":"Import!I21806","v":"Select"},{"$f":"Import!I22206","v":"Select"},{"$f":"Import!I22606","v":"Select"},{"$f":"Import!I23006","v":0},{"$f":"Import!I23406","v":0},{"$f":"Import!I23806","v":0},{"$f":"Import!I24206","v":0},{"$f":"Import!I24606","v":0}]
[308,{"$f":"Import!I21807","v":"Select"},{"$f":"Import!I22207","v":"Select"},{"$f":"Import!I22607","v":"Select"},{"$f":"Import!I23007","v":0},{"$f":"Import!I23407","v":0},{"$f":"Import!I23807","v":0},{"$f":"Import!I24207","v":0},{"$f":"Import!I24607","v":0}]
[309,{"$f":"Import!I21808","v":"Select"},{"$f":"Import!I22208","v":"Select"},{"$f":"Import!I22608","v":"Select"},{"$f":"Import!I23008","v":0},{"$f":"Import!I23408","v":0},{"$f":"Import!I23808","v":0},{"$f":"Import!I24208","v":0},{"$f":"Import!I24608","v":0}]
[310,{"$f":"Import!I21809","v":"Select"},{"$f":"Import!I22209","v":"Select"},{"$f":"Import!I22609","v":"Select"},{"$f":"Import!I23009","v":0},{"$f":"Import!I23409","v":0},{"$f":"Import!I23809","v":0},{"$f":"Import!I24209","v":0},{"$f":"Import!I24609","v":0}]
[311,{"$f":"Import!I21810","v":"Select"},{"$f":"Import!I22210","v":"Select"},{"$f":"Import!I22610","v":"Select"},{"$f":"Import!I23010","v":0},{"$f":"Import!I23410","v":0},{"$f":"Import!I23810","v":0},{"$f":"Import!I24210","v":0},{"$f":"Import!I24610","v":0}]
[312,{"$f":"Import!I21811","v":"Select"},{"$f":"Import!I22211","v":"Select"},{"$f":"Import!I22611","v":"Select"},{"$f":"Import!I23011","v":0},{"$f":"Import!I23411","v":0},{"$f":"Import!I23811","v":0},{"$f":"Import!I24211","v":0},{"$f":"Import!I24611","v":0}]
[313,{"$f":"Import!I21812","v":"Select"},{"$f":"Import!I22212","v":"Select"},{"$f":"Import!I22612","v":"Select"},{"$f":"Import!I23012","v":0},{"$f":"Import!I23412","v":0},{"$f":"Import!I23812","v":0},{"$f":"Import!I24212","v":0},{"$f":"Import!I24612","v":0}]
[314,{"$f":"Import!I21813","v":"Select"},{"$f":"Import!I22213","v":"Select"},{"$f":"Import!I22613","v":"Select"},{"$f":"Import!I23013","v":0},{"$f":"Import!I23413","v":0},{"$f":"Import!I23813","v":0},{"$f":"Import!I24213","v":0},{"$f":"Import!I24613","v":0}]
[315,{"$f":"Import!I21814","v":"Select"},{"$f":"Import!I22214","v":"Select"},{"$f":"Import!I22614","v":"Select"},{"$f":"Import!I23014","v":0},{"$f":"Import!I23414","v":0},{"$f":"Import!I23814","v":0},{"$f":"Import!I24214","v":0},{"$f":"Import!I24614","v":0}]
[316,{"$f":"Import!I21815","v":"Select"},{"$f":"Import!I22215","v":"Select"},{"$f":"Import!I22615","v":"Select"},{"$f":"Import!I23015","v":0},{"$f":"Import!I23415","v":0},{"$f":"Import!I23815","v":0},{"$f":"Import!I24215","v":0},{"$f":"Import!I24615","v":0}]
[317,{"$f":"Import!I21816","v":"Select"},{"$f":"Import!I22216","v":"Select"},{"$f":"Import!I22616","v":"Select"},{"$f":"Import!I23016","v":0},{"$f":"Import!I23416","v":0},{"$f":"Import!I23816","v":0},{"$f":"Import!I24216","v":0},{"$f":"Import!I24616","v":0}]
[318,{"$f":"Import!I21817","v":"Select"},{"$f":"Import!I22217","v":"Select"},{"$f":"Import!I22617","v":"Select"},{"$f":"Import!I23017","v":0},{"$f":"Import!I23417","v":0},{"$f":"Import!I23817","v":0},{"$f":"Import!I24217","v":0},{"$f":"Import!I24617","v":0}]
[319,{"$f":"Import!I21818","v":"Select"},{"$f":"Import!I22218","v":"Select"},{"$f":"Import!I22618","v":"Select"},{"$f":"Import!I23018","v":0},{"$f":"Import!I23418","v":0},{"$f":"Import!I23818","v":0},{"$f":"Import!I24218","v":0},{"$f":"Import!I24618","v":0}]
[320,{"$f":"Import!I21819","v":"Select"},{"$f":"Import!I22219","v":"Select"},{"$f":"Import!I22619","v":"Select"},{"$f":"Import!I23019","v":0},{"$f":"Import!I23419","v":0},{"$f":"Import!I23819","v":0},{"$f":"Import!I24219","v":0},{"$f":"Import!I24619","v":0}]
[321,{"$f":"Import!I21820","v":"Select"},{"$f":"Import!I22220","v":"Select"},{"$f":"Import!I22620","v":"Select"},{"$f":"Import!I23020","v":0},{"$f":"Import!I23420","v":0},{"$f":"Import!I23820","v":0},{"$f":"Import!I24220","v":0},{"$f":"Import!I24620","v":0}]
[322,{"$f":"Import!I21821","v":"Select"},{"$f":"Import!I22221","v":"Select"},{"$f":"Import!I22621","v":"Select"},{"$f":"Import!I23021","v":0},{"$f":"Import!I23421","v":0},{"$f":"Import!I23821","v":0},{"$f":"Import!I24221","v":0},{"$f":"Import!I24621","v":0}]
[{"$f":"A540+1","v":323},{"$f":"Import!I21822","v":"Select"},{"$f":"Import!I22222","v":"Select"},{"$f":"Import!I22622","v":"Select"},{"$f":"Import!I23022","v":0},{"$f":"Import!I23422","v":0},{"$f":"Import!I23822","v":0},{"$f":"Import!I24222","v":0},{"$f":"Import!I24622","v":0}]
[324,{"$f":"Import!I21823","v":"Select"},{"$f":"Import!I22223","v":"Select"},{"$f":"Import!I22623","v":"Select"},{"$f":"Import!I23023","v":0},{"$f":"Import!I23423","v":0},{"$f":"Import!I23823","v":0},{"$f":"Import!I24223","v":0},{"$f":"Import!I24623","v":0}]
[325,{"$f":"Import!I21824","v":"Select"},{"$f":"Import!I22224","v":"Select"},{"$f":"Import!I22624","v":"Select"},{"$f":"Import!I23024","v":0},{"$f":"Import!I23424","v":0},{"$f":"Import!I23824","v":0},{"$f":"Import!I24224","v":0},{"$f":"Import!I24624","v":0}]
[326,{"$f":"Import!I21825","v":"Select"},{"$f":"Import!I22225","v":"Select"},{"$f":"Import!I22625","v":"Select"},{"$f":"Import!I23025","v":0},{"$f":"Import!I23425","v":0},{"$f":"Import!I23825","v":0},{"$f":"Import!I24225","v":0},{"$f":"Import!I24625","v":0}]
[327,{"$f":"Import!I21826","v":"Select"},{"$f":"Import!I22226","v":"Select"},{"$f":"Import!I22626","v":"Select"},{"$f":"Import!I23026","v":0},{"$f":"Import!I23426","v":0},{"$f":"Import!I23826","v":0},{"$f":"Import!I24226","v":0},{"$f":"Import!I24626","v":0}]
[328,{"$f":"Import!I21827","v":"Select"},{"$f":"Import!I22227","v":"Select"},{"$f":"Import!I22627","v":"Select"},{"$f":"Import!I23027","v":0},{"$f":"Import!I23427","v":0},{"$f":"Import!I23827","v":0},{"$f":"Import!I24227","v":0},{"$f":"Import!I24627","v":0}]
[329,{"$f":"Import!I21828","v":"Select"},{"$f":"Import!I22228","v":"Select"},{"$f":"Import!I22628","v":"Select"},{"$f":"Import!I23028","v":0},{"$f":"Import!I23428","v":0},{"$f":"Import!I23828","v":0},{"$f":"Import!I24228","v":0},{"$f":"Import!I24628","v":0}]
[330,{"$f":"Import!I21829","v":"Select"},{"$f":"Import!I22229","v":"Select"},{"$f":"Import!I22629","v":"Select"},{"$f":"Import!I23029","v":0},{"$f":"Import!I23429","v":0},{"$f":"Import!I23829","v":0},{"$f":"Import!I24229","v":0},{"$f":"Import!I24629","v":0}]
[331,{"$f":"Import!I21830","v":"Select"},{"$f":"Import!I22230","v":"Select"},{"$f":"Import!I22630","v":"Select"},{"$f":"Import!I23030","v":0},{"$f":"Import!I23430","v":0},{"$f":"Import!I23830","v":0},{"$f":"Import!I24230","v":0},{"$f":"Import!I24630","v":0}]
[332,{"$f":"Import!I21831","v":"Select"},{"$f":"Import!I22231","v":"Select"},{"$f":"Import!I22631","v":"Select"},{"$f":"Import!I23031","v":0},{"$f":"Import!I23431","v":0},{"$f":"Import!I23831","v":0},{"$f":"Import!I24231","v":0},{"$f":"Import!I24631","v":0}]
[333,{"$f":"Import!I21832","v":"Select"},{"$f":"Import!I22232","v":"Select"},{"$f":"Import!I22632","v":"Select"},{"$f":"Import!I23032","v":0},{"$f":"Import!I23432","v":0},{"$f":"Import!I23832","v":0},{"$f":"Import!I24232","v":0},{"$f":"Import!I24632","v":0}]
[334,{"$f":"Import!I21833","v":"Select"},{"$f":"Import!I22233","v":"Select"},{"$f":"Import!I22633","v":"Select"},{"$f":"Import!I23033","v":0},{"$f":"Import!I23433","v":0},{"$f":"Import!I23833","v":0},{"$f":"Import!I24233","v":0},{"$f":"Import!I24633","v":0}]
[335,{"$f":"Import!I21834","v":"Select"},{"$f":"Import!I22234","v":"Select"},{"$f":"Import!I22634","v":"Select"},{"$f":"Import!I23034","v":0},{"$f":"Import!I23434","v":0},{"$f":"Import!I23834","v":0},{"$f":"Import!I24234","v":0},{"$f":"Import!I24634","v":0}]
[336,{"$f":"Import!I21835","v":"Select"},{"$f":"Import!I22235","v":"Select"},{"$f":"Import!I22635","v":"Select"},{"$f":"Import!I23035","v":0},{"$f":"Import!I23435","v":0},{"$f":"Import!I23835","v":0},{"$f":"Import!I24235","v":0},{"$f":"Import!I24635","v":0}]
[337,{"$f":"Import!I21836","v":"Select"},{"$f":"Import!I22236","v":"Select"},{"$f":"Import!I22636","v":"Select"},{"$f":"Import!I23036","v":0},{"$f":"Import!I23436","v":0},{"$f":"Import!I23836","v":0},{"$f":"Import!I24236","v":0},{"$f":"Import!I24636","v":0}]
[338,{"$f":"Import!I21837","v":"Select"},{"$f":"Import!I22237","v":"Select"},{"$f":"Import!I22637","v":"Select"},{"$f":"Import!I23037","v":0},{"$f":"Import!I23437","v":0},{"$f":"Import!I23837","v":0},{"$f":"Import!I24237","v":0},{"$f":"Import!I24637","v":0}]
[339,{"$f":"Import!I21838","v":"Select"},{"$f":"Import!I22238","v":"Select"},{"$f":"Import!I22638","v":"Select"},{"$f":"Import!I23038","v":0},{"$f":"Import!I23438","v":0},{"$f":"Import!I23838","v":0},{"$f":"Import!I24238","v":0},{"$f":"Import!I24638","v":0}]
[340,{"$f":"Import!I21839","v":"Select"},{"$f":"Import!I22239","v":"Select"},{"$f":"Import!I22639","v":"Select"},{"$f":"Import!I23039","v":0},{"$f":"Import!I23439","v":0},{"$f":"Import!I23839","v":0},{"$f":"Import!I24239","v":0},{"$f":"Import!I24639","v":0}]
[341,{"$f":"Import!I21840","v":"Select"},{"$f":"Import!I22240","v":"Select"},{"$f":"Import!I22640","v":"Select"},{"$f":"Import!I23040","v":0},{"$f":"Import!I23440","v":0},{"$f":"Import!I23840","v":0},{"$f":"Import!I24240","v":0},{"$f":"Import!I24640","v":0}]
[342,{"$f":"Import!I21841","v":"Select"},{"$f":"Import!I22241","v":"Select"},{"$f":"Import!I22641","v":"Select"},{"$f":"Import!I23041","v":0},{"$f":"Import!I23441","v":0},{"$f":"Import!I23841","v":0},{"$f":"Import!I24241","v":0},{"$f":"Import!I24641","v":0}]
[343,{"$f":"Import!I21842","v":"Select"},{"$f":"Import!I22242","v":"Select"},{"$f":"Import!I22642","v":"Select"},{"$f":"Import!I23042","v":0},{"$f":"Import!I23442","v":0},{"$f":"Import!I23842","v":0},{"$f":"Import!I24242","v":0},{"$f":"Import!I24642","v":0}]
[344,{"$f":"Import!I21843","v":"Select"},{"$f":"Import!I22243","v":"Select"},{"$f":"Import!I22643","v":"Select"},{"$f":"Import!I23043","v":0},{"$f":"Import!I23443","v":0},{"$f":"Import!I23843","v":0},{"$f":"Import!I24243","v":0},{"$f":"Import!I24643","v":0}]
[345,{"$f":"Import!I21844","v":"Select"},{"$f":"Import!I22244","v":"Select"},{"$f":"Import!I22644","v":"Select"},{"$f":"Import!I23044","v":0},{"$f":"Import!I23444","v":0},{"$f":"Import!I23844","v":0},{"$f":"Import!I24244","v":0},{"$f":"Import!I24644","v":0}]
[346,{"$f":"Import!I21845","v":"Select"},{"$f":"Import!I22245","v":"Select"},{"$f":"Import!I22645","v":"Select"},{"$f":"Import!I23045","v":0},{"$f":"Import!I23445","v":0},{"$f":"Import!I23845","v":0},{"$f":"Import!I24245","v":0},{"$f":"Import!I24645","v":0}]
[347,{"$f":"Import!I21846","v":"Select"},{"$f":"Import!I22246","v":"Select"},{"$f":"Import!I22646","v":"Select"},{"$f":"Import!I23046","v":0},{"$f":"Import!I23446","v":0},{"$f":"Import!I23846","v":0},{"$f":"Import!I24246","v":0},{"$f":"Import!I24646","v":0}]
[348,{"$f":"Import!I21847","v":"Select"},{"$f":"Import!I22247","v":"Select"},{"$f":"Import!I22647","v":"Select"},{"$f":"Import!I23047","v":0},{"$f":"Import!I23447","v":0},{"$f":"Import!I23847","v":0},{"$f":"Import!I24247","v":0},{"$f":"Import!I24647","v":0}]
[349,{"$f":"Import!I21848","v":"Select"},{"$f":"Import!I22248","v":"Select"},{"$f":"Import!I22648","v":"Select"},{"$f":"Import!I23048","v":0},{"$f":"Import!I23448","v":0},{"$f":"Import!I23848","v":0},{"$f":"Import!I24248","v":0},{"$f":"Import!I24648","v":0}]
[350,{"$f":"Import!I21849","v":"Select"},{"$f":"Import!I22249","v":"Select"},{"$f":"Import!I22649","v":"Select"},{"$f":"Import!I23049","v":0},{"$f":"Import!I23449","v":0},{"$f":"Import!I23849","v":0},{"$f":"Import!I24249","v":0},{"$f":"Import!I24649","v":0}]
[351,{"$f":"Import!I21850","v":"Select"},{"$f":"Import!I22250","v":"Select"},{"$f":"Import!I22650","v":"Select"},{"$f":"Import!I23050","v":0},{"$f":"Import!I23450","v":0},{"$f":"Import!I23850","v":0},{"$f":"Import!I24250","v":0},{"$f":"Import!I24650","v":0}]
[352,{"$f":"Import!I21851","v":"Select"},{"$f":"Import!I22251","v":"Select"},{"$f":"Import!I22651","v":"Select"},{"$f":"Import!I23051","v":0},{"$f":"Import!I23451","v":0},{"$f":"Import!I23851","v":0},{"$f":"Import!I24251","v":0},{"$f":"Import!I24651","v":0}]
[353,{"$f":"Import!I21852","v":"Select"},{"$f":"Import!I22252","v":"Select"},{"$f":"Import!I22652","v":"Select"},{"$f":"Import!I23052","v":0},{"$f":"Import!I23452","v":0},{"$f":"Import!I23852","v":0},{"$f":"Import!I24252","v":0},{"$f":"Import!I24652","v":0}]
[354,{"$f":"Import!I21853","v":"Select"},{"$f":"Import!I22253","v":"Select"},{"$f":"Import!I22653","v":"Select"},{"$f":"Import!I23053","v":0},{"$f":"Import!I23453","v":0},{"$f":"Import!I23853","v":0},{"$f":"Import!I24253","v":0},{"$f":"Import!I24653","v":0}]
[355,{"$f":"Import!I21854","v":"Select"},{"$f":"Import!I22254","v":"Select"},{"$f":"Import!I22654","v":"Select"},{"$f":"Import!I23054","v":0},{"$f":"Import!I23454","v":0},{"$f":"Import!I23854","v":0},{"$f":"Import!I24254","v":0},{"$f":"Import!I24654","v":0}]
[356,{"$f":"Import!I21855","v":"Select"},{"$f":"Import!I22255","v":"Select"},{"$f":"Import!I22655","v":"Select"},{"$f":"Import!I23055","v":0},{"$f":"Import!I23455","v":0},{"$f":"Import!I23855","v":0},{"$f":"Import!I24255","v":0},{"$f":"Import!I24655","v":0}]
[357,{"$f":"Import!I21856","v":"Select"},{"$f":"Import!I22256","v":"Select"},{"$f":"Import!I22656","v":"Select"},{"$f":"Import!I23056","v":0},{"$f":"Import!I23456","v":0},{"$f":"Import!I23856","v":0},{"$f":"Import!I24256","v":0},{"$f":"Import!I24656","v":0}]
[358,{"$f":"Import!I21857","v":"Select"},{"$f":"Import!I22257","v":"Select"},{"$f":"Import!I22657","v":"Select"},{"$f":"Import!I23057","v":0},{"$f":"Import!I23457","v":0},{"$f":"Import!I23857","v":0},{"$f":"Import!I24257","v":0},{"$f":"Import!I24657","v":0}]
[359,{"$f":"Import!I21858","v":"Select"},{"$f":"Import!I22258","v":"Select"},{"$f":"Import!I22658","v":"Select"},{"$f":"Import!I23058","v":0},{"$f":"Import!I23458","v":0},{"$f":"Import!I23858","v":0},{"$f":"Import!I24258","v":0},{"$f":"Import!I24658","v":0}]
[360,{"$f":"Import!I21859","v":"Select"},{"$f":"Import!I22259","v":"Select"},{"$f":"Import!I22659","v":"Select"},{"$f":"Import!I23059","v":0},{"$f":"Import!I23459","v":0},{"$f":"Import!I23859","v":0},{"$f":"Import!I24259","v":0},{"$f":"Import!I24659","v":0}]
[361,{"$f":"Import!I21860","v":"Select"},{"$f":"Import!I22260","v":"Select"},{"$f":"Import!I22660","v":"Select"},{"$f":"Import!I23060","v":0},{"$f":"Import!I23460","v":0},{"$f":"Import!I23860","v":0},{"$f":"Import!I24260","v":0},{"$f":"Import!I24660","v":0}]
[362,{"$f":"Import!I21861","v":"Select"},{"$f":"Import!I22261","v":"Select"},{"$f":"Import!I22661","v":"Select"},{"$f":"Import!I23061","v":0},{"$f":"Import!I23461","v":0},{"$f":"Import!I23861","v":0},{"$f":"Import!I24261","v":0},{"$f":"Import!I24661","v":0}]
[363,{"$f":"Import!I21862","v":"Select"},{"$f":"Import!I22262","v":"Select"},{"$f":"Import!I22662","v":"Select"},{"$f":"Import!I23062","v":0},{"$f":"Import!I23462","v":0},{"$f":"Import!I23862","v":0},{"$f":"Import!I24262","v":0},{"$f":"Import!I24662","v":0}]
[364,{"$f":"Import!I21863","v":"Select"},{"$f":"Import!I22263","v":"Select"},{"$f":"Import!I22663","v":"Select"},{"$f":"Import!I23063","v":0},{"$f":"Import!I23463","v":0},{"$f":"Import!I23863","v":0},{"$f":"Import!I24263","v":0},{"$f":"Import!I24663","v":0}]
[365,{"$f":"Import!I21864","v":"Select"},{"$f":"Import!I22264","v":"Select"},{"$f":"Import!I22664","v":"Select"},{"$f":"Import!I23064","v":0},{"$f":"Import!I23464","v":0},{"$f":"Import!I23864","v":0},{"$f":"Import!I24264","v":0},{"$f":"Import!I24664","v":0}]
[366,{"$f":"Import!I21865","v":"Select"},{"$f":"Import!I22265","v":"Select"},{"$f":"Import!I22665","v":"Select"},{"$f":"Import!I23065","v":0},{"$f":"Import!I23465","v":0},{"$f":"Import!I23865","v":0},{"$f":"Import!I24265","v":0},{"$f":"Import!I24665","v":0}]
[367,{"$f":"Import!I21866","v":"Select"},{"$f":"Import!I22266","v":"Select"},{"$f":"Import!I22666","v":"Select"},{"$f":"Import!I23066","v":0},{"$f":"Import!I23466","v":0},{"$f":"Import!I23866","v":0},{"$f":"Import!I24266","v":0},{"$f":"Import!I24666","v":0}]
[368,{"$f":"Import!I21867","v":"Select"},{"$f":"Import!I22267","v":"Select"},{"$f":"Import!I22667","v":"Select"},{"$f":"Import!I23067","v":0},{"$f":"Import!I23467","v":0},{"$f":"Import!I23867","v":0},{"$f":"Import!I24267","v":0},{"$f":"Import!I24667","v":0}]
[369,{"$f":"Import!I21868","v":"Select"},{"$f":"Import!I22268","v":"Select"},{"$f":"Import!I22668","v":"Select"},{"$f":"Import!I23068","v":0},{"$f":"Import!I23468","v":0},{"$f":"Import!I23868","v":0},{"$f":"Import!I24268","v":0},{"$f":"Import!I24668","v":0}]
[370,{"$f":"Import!I21869","v":"Select"},{"$f":"Import!I22269","v":"Select"},{"$f":"Import!I22669","v":"Select"},{"$f":"Import!I23069","v":0},{"$f":"Import!I23469","v":0},{"$f":"Import!I23869","v":0},{"$f":"Import!I24269","v":0},{"$f":"Import!I24669","v":0}]
[371,{"$f":"Import!I21870","v":"Select"},{"$f":"Import!I22270","v":"Select"},{"$f":"Import!I22670","v":"Select"},{"$f":"Import!I23070","v":0},{"$f":"Import!I23470","v":0},{"$f":"Import!I23870","v":0},{"$f":"Import!I24270","v":0},{"$f":"Import!I24670","v":0}]
[372,{"$f":"Import!I21871","v":"Select"},{"$f":"Import!I22271","v":"Select"},{"$f":"Import!I22671","v":"Select"},{"$f":"Import!I23071","v":0},{"$f":"Import!I23471","v":0},{"$f":"Import!I23871","v":0},{"$f":"Import!I24271","v":0},{"$f":"Import!I24671","v":0}]
[373,{"$f":"Import!I21872","v":"Select"},{"$f":"Import!I22272","v":"Select"},{"$f":"Import!I22672","v":"Select"},{"$f":"Import!I23072","v":0},{"$f":"Import!I23472","v":0},{"$f":"Import!I23872","v":0},{"$f":"Import!I24272","v":0},{"$f":"Import!I24672","v":0}]
[374,{"$f":"Import!I21873","v":"Select"},{"$f":"Import!I22273","v":"Select"},{"$f":"Import!I22673","v":"Select"},{"$f":"Import!I23073","v":0},{"$f":"Import!I23473","v":0},{"$f":"Import!I23873","v":0},{"$f":"Import!I24273","v":0},{"$f":"Import!I24673","v":0}]
[375,{"$f":"Import!I21874","v":"Select"},{"$f":"Import!I22274","v":"Select"},{"$f":"Import!I22674","v":"Select"},{"$f":"Import!I23074","v":0},{"$f":"Import!I23474","v":0},{"$f":"Import!I23874","v":0},{"$f":"Import!I24274","v":0},{"$f":"Import!I24674","v":0}]
[376,{"$f":"Import!I21875","v":"Select"},{"$f":"Import!I22275","v":"Select"},{"$f":"Import!I22675","v":"Select"},{"$f":"Import!I23075","v":0},{"$f":"Import!I23475","v":0},{"$f":"Import!I23875","v":0},{"$f":"Import!I24275","v":0},{"$f":"Import!I24675","v":0}]
[377,{"$f":"Import!I21876","v":"Select"},{"$f":"Import!I22276","v":"Select"},{"$f":"Import!I22676","v":"Select"},{"$f":"Import!I23076","v":0},{"$f":"Import!I23476","v":0},{"$f":"Import!I23876","v":0},{"$f":"Import!I24276","v":0},{"$f":"Import!I24676","v":0}]
[378,{"$f":"Import!I21877","v":"Select"},{"$f":"Import!I22277","v":"Select"},{"$f":"Import!I22677","v":"Select"},{"$f":"Import!I23077","v":0},{"$f":"Import!I23477","v":0},{"$f":"Import!I23877","v":0},{"$f":"Import!I24277","v":0},{"$f":"Import!I24677","v":0}]
[379,{"$f":"Import!I21878","v":"Select"},{"$f":"Import!I22278","v":"Select"},{"$f":"Import!I22678","v":"Select"},{"$f":"Import!I23078","v":0},{"$f":"Import!I23478","v":0},{"$f":"Import!I23878","v":0},{"$f":"Import!I24278","v":0},{"$f":"Import!I24678","v":0}]
[380,{"$f":"Import!I21879","v":"Select"},{"$f":"Import!I22279","v":"Select"},{"$f":"Import!I22679","v":"Select"},{"$f":"Import!I23079","v":0},{"$f":"Import!I23479","v":0},{"$f":"Import!I23879","v":0},{"$f":"Import!I24279","v":0},{"$f":"Import!I24679","v":0}]
[381,{"$f":"Import!I21880","v":"Select"},{"$f":"Import!I22280","v":"Select"},{"$f":"Import!I22680","v":"Select"},{"$f":"Import!I23080","v":0},{"$f":"Import!I23480","v":0},{"$f":"Import!I23880","v":0},{"$f":"Import!I24280","v":0},{"$f":"Import!I24680","v":0}]
[382,{"$f":"Import!I21881","v":"Select"},{"$f":"Import!I22281","v":"Select"},{"$f":"Import!I22681","v":"Select"},{"$f":"Import!I23081","v":0},{"$f":"Import!I23481","v":0},{"$f":"Import!I23881","v":0},{"$f":"Import!I24281","v":0},{"$f":"Import!I24681","v":0}]
[383,{"$f":"Import!I21882","v":"Select"},{"$f":"Import!I22282","v":"Select"},{"$f":"Import!I22682","v":"Select"},{"$f":"Import!I23082","v":0},{"$f":"Import!I23482","v":0},{"$f":"Import!I23882","v":0},{"$f":"Import!I24282","v":0},{"$f":"Import!I24682","v":0}]
[384,{"$f":"Import!I21883","v":"Select"},{"$f":"Import!I22283","v":"Select"},{"$f":"Import!I22683","v":"Select"},{"$f":"Import!I23083","v":0},{"$f":"Import!I23483","v":0},{"$f":"Import!I23883","v":0},{"$f":"Import!I24283","v":0},{"$f":"Import!I24683","v":0}]
[385,{"$f":"Import!I21884","v":"Select"},{"$f":"Import!I22284","v":"Select"},{"$f":"Import!I22684","v":"Select"},{"$f":"Import!I23084","v":0},{"$f":"Import!I23484","v":0},{"$f":"Import!I23884","v":0},{"$f":"Import!I24284","v":0},{"$f":"Import!I24684","v":0}]
[386,{"$f":"Import!I21885","v":"Select"},{"$f":"Import!I22285","v":"Select"},{"$f":"Import!I22685","v":"Select"},{"$f":"Import!I23085","v":0},{"$f":"Import!I23485","v":0},{"$f":"Import!I23885","v":0},{"$f":"Import!I24285","v":0},{"$f":"Import!I24685","v":0}]
[{"$f":"A604+1","v":387},{"$f":"Import!I21886","v":"Select"},{"$f":"Import!I22286","v":"Select"},{"$f":"Import!I22686","v":"Select"},{"$f":"Import!I23086","v":0},{"$f":"Import!I23486","v":0},{"$f":"Import!I23886","v":0},{"$f":"Import!I24286","v":0},{"$f":"Import!I24686","v":0}]
[388,{"$f":"Import!I21887","v":"Select"},{"$f":"Import!I22287","v":"Select"},{"$f":"Import!I22687","v":"Select"},{"$f":"Import!I23087","v":0},{"$f":"Import!I23487","v":0},{"$f":"Import!I23887","v":0},{"$f":"Import!I24287","v":0},{"$f":"Import!I24687","v":0}]
[389,{"$f":"Import!I21888","v":"Select"},{"$f":"Import!I22288","v":"Select"},{"$f":"Import!I22688","v":"Select"},{"$f":"Import!I23088","v":0},{"$f":"Import!I23488","v":0},{"$f":"Import!I23888","v":0},{"$f":"Import!I24288","v":0},{"$f":"Import!I24688","v":0}]
[390,{"$f":"Import!I21889","v":"Select"},{"$f":"Import!I22289","v":"Select"},{"$f":"Import!I22689","v":"Select"},{"$f":"Import!I23089","v":0},{"$f":"Import!I23489","v":0},{"$f":"Import!I23889","v":0},{"$f":"Import!I24289","v":0},{"$f":"Import!I24689","v":0}]
[391,{"$f":"Import!I21890","v":"Select"},{"$f":"Import!I22290","v":"Select"},{"$f":"Import!I22690","v":"Select"},{"$f":"Import!I23090","v":0},{"$f":"Import!I23490","v":0},{"$f":"Import!I23890","v":0},{"$f":"Import!I24290","v":0},{"$f":"Import!I24690","v":0}]
[392,{"$f":"Import!I21891","v":"Select"},{"$f":"Import!I22291","v":"Select"},{"$f":"Import!I22691","v":"Select"},{"$f":"Import!I23091","v":0},{"$f":"Import!I23491","v":0},{"$f":"Import!I23891","v":0},{"$f":"Import!I24291","v":0},{"$f":"Import!I24691","v":0}]
[393,{"$f":"Import!I21892","v":"Select"},{"$f":"Import!I22292","v":"Select"},{"$f":"Import!I22692","v":"Select"},{"$f":"Import!I23092","v":0},{"$f":"Import!I23492","v":0},{"$f":"Import!I23892","v":0},{"$f":"Import!I24292","v":0},{"$f":"Import!I24692","v":0}]
[394,{"$f":"Import!I21893","v":"Select"},{"$f":"Import!I22293","v":"Select"},{"$f":"Import!I22693","v":"Select"},{"$f":"Import!I23093","v":0},{"$f":"Import!I23493","v":0},{"$f":"Import!I23893","v":0},{"$f":"Import!I24293","v":0},{"$f":"Import!I24693","v":0}]
[395,{"$f":"Import!I21894","v":"Select"},{"$f":"Import!I22294","v":"Select"},{"$f":"Import!I22694","v":"Select"},{"$f":"Import!I23094","v":0},{"$f":"Import!I23494","v":0},{"$f":"Import!I23894","v":0},{"$f":"Import!I24294","v":0},{"$f":"Import!I24694","v":0}]
[396,{"$f":"Import!I21895","v":"Select"},{"$f":"Import!I22295","v":"Select"},{"$f":"Import!I22695","v":"Select"},{"$f":"Import!I23095","v":0},{"$f":"Import!I23495","v":0},{"$f":"Import!I23895","v":0},{"$f":"Import!I24295","v":0},{"$f":"Import!I24695","v":0}]
[397,{"$f":"Import!I21896","v":"Select"},{"$f":"Import!I22296","v":"Select"},{"$f":"Import!I22696","v":"Select"},{"$f":"Import!I23096","v":0},{"$f":"Import!I23496","v":0},{"$f":"Import!I23896","v":0},{"$f":"Import!I24296","v":0},{"$f":"Import!I24696","v":0}]
[398,{"$f":"Import!I21897","v":"Select"},{"$f":"Import!I22297","v":"Select"},{"$f":"Import!I22697","v":"Select"},{"$f":"Import!I23097","v":0},{"$f":"Import!I23497","v":0},{"$f":"Import!I23897","v":0},{"$f":"Import!I24297","v":0},{"$f":"Import!I24697","v":0}]
[399,{"$f":"Import!I21898","v":"Select"},{"$f":"Import!I22298","v":"Select"},{"$f":"Import!I22698","v":"Select"},{"$f":"Import!I23098","v":0},{"$f":"Import!I23498","v":0},{"$f":"Import!I23898","v":0},{"$f":"Import!I24298","v":0},{"$f":"Import!I24698","v":0}]
[400,{"$f":"Import!I21899","v":"Select"},{"$f":"Import!I22299","v":"Select"},{"$f":"Import!I22699","v":"Select"},{"$f":"Import!I23099","v":0},{"$f":"Import!I23499","v":0},{"$f":"Import!I23899","v":0},{"$f":"Import!I24299","v":0},{"$f":"Import!I24699","v":0}]
[]
[null,"Total Bonds and Debentures",null,null,{"$f":"SUM(E219:E618)","v":0},{"$f":"SUM(F219:F618)","v":0},{"$f":"IFERROR(SUMPRODUCT(G219:G618,$F219:$F618)/SUM($F219:$F618),0)","v":0},{"$f":"IFERROR(SUMPRODUCT(H219:H618,$F219:$F618)/SUM($F219:$F618),0)","v":0}]
[]
[null,"- ADDITIONAL INFORMATION ON SOVEREIGN DEBT EXPOSURES"]
[]
[null,null,"Enter # of Asset Types",{"$f":"Import!I24700","v":0}]
[null,null,null,null,null,{"$f":"YEAR($C$3)","v":2023}]
[null,null,"Country","Currency","BSCR Rating","Fair Value","Comments"]
[null,1,{"$f":"Import!I24701","v":"Select"},{"$f":"Import!I24901","v":"Select"},{"$f":"Import!I25101","v":"Select"},{"$f":"Import!I25301","v":0},{"$f":"Import!I25501","v":0}]
[null,{"$f":"B627+1","v":2},{"$f":"Import!I24702","v":"Select"},{"$f":"Import!I24902","v":"Select"},{"$f":"Import!I25102","v":"Select"},{"$f":"Import!I25302","v":0},{"$f":"Import!I25502","v":0}]
[null,{"$f":"B628+1","v":3},{"$f":"Import!I24703","v":"Select"},{"$f":"Import!I24903","v":"Select"},{"$f":"Import!I25103","v":"Select"},{"$f":"Import!I25303","v":0},{"$f":"Import!I25503","v":0}]
[null,4,{"$f":"Import!I24704","v":"Select"},{"$f":"Import!I24904","v":"Select"},{"$f":"Import!I25104","v":"Select"},{"$f":"Import!I25304","v":0},{"$f":"Import!I25504","v":0}]
[null,5,{"$f":"Import!I24705","v":"Select"},{"$f":"Import!I24905","v":"Select"},{"$f":"Import!I25105","v":"Select"},{"$f":"Import!I25305","v":0},{"$f":"Import!I25505","v":0}]
[null,6,{"$f":"Import!I24706","v":"Select"},{"$f":"Import!I24906","v":"Select"},{"$f":"Import!I25106","v":"Select"},{"$f":"Import!I25306","v":0},{"$f":"Import!I25506","v":0}]
[null,7,{"$f":"Import!I24707","v":"Select"},{"$f":"Import!I24907","v":"Select"},{"$f":"Import!I25107","v":"Select"},{"$f":"Import!I25307","v":0},{"$f":"Import!I25507","v":0}]
[null,8,{"$f":"Import!I24708","v":"Select"},{"$f":"Import!I24908","v":"Select"},{"$f":"Import!I25108","v":"Select"},{"$f":"Import!I25308","v":0},{"$f":"Import!I25508","v":0}]
[null,9,{"$f":"Import!I24709","v":"Select"},{"$f":"Import!I24909","v":"Select"},{"$f":"Import!I25109","v":"Select"},{"$f":"Import!I25309","v":0},{"$f":"Import!I25509","v":0}]
[null,10,{"$f":"Import!I24710","v":"Select"},{"$f":"Import!I24910","v":"Select"},{"$f":"Import!I25110","v":"Select"},{"$f":"Import!I25310","v":0},{"$f":"Import!I25510","v":0}]
[null,11,{"$f":"Import!I24711","v":"Select"},{"$f":"Import!I24911","v":"Select"},{"$f":"Import!I25111","v":"Select"},{"$f":"Import!I25311","v":0},{"$f":"Import!I25511","v":0}]
[null,12,{"$f":"Import!I24712","v":"Select"},{"$f":"Import!I24912","v":"Select"},{"$f":"Import!I25112","v":"Select"},{"$f":"Import!I25312","v":0},{"$f":"Import!I25512","v":0}]
[null,13,{"$f":"Import!I24713","v":"Select"},{"$f":"Import!I24913","v":"Select"},{"$f":"Import!I25113","v":"Select"},{"$f":"Import!I25313","v":0},{"$f":"Import!I25513","v":0}]
[null,14,{"$f":"Import!I24714","v":"Select"},{"$f":"Import!I24914","v":"Select"},{"$f":"Import!I25114","v":"Select"},{"$f":"Import!I25314","v":0},{"$f":"Import!I25514","v":0}]
[null,15,{"$f":"Import!I24715","v":"Select"},{"$f":"Import!I24915","v":"Select"},{"$f":"Import!I25115","v":"Select"},{"$f":"Import!I25315","v":0},{"$f":"Import!I25515","v":0}]
[null,16,{"$f":"Import!I24716","v":"Select"},{"$f":"Import!I24916","v":"Select"},{"$f":"Import!I25116","v":"Select"},{"$f":"Import!I25316","v":0},{"$f":"Import!I25516","v":0}]
[null,17,{"$f":"Import!I24717","v":"Select"},{"$f":"Import!I24917","v":"Select"},{"$f":"Import!I25117","v":"Select"},{"$f":"Import!I25317","v":0},{"$f":"Import!I25517","v":0}]
[null,18,{"$f":"Import!I24718","v":"Select"},{"$f":"Import!I24918","v":"Select"},{"$f":"Import!I25118","v":"Select"},{"$f":"Import!I25318","v":0},{"$f":"Import!I25518","v":0}]
[null,19,{"$f":"Import!I24719","v":"Select"},{"$f":"Import!I24919","v":"Select"},{"$f":"Import!I25119","v":"Select"},{"$f":"Import!I25319","v":0},{"$f":"Import!I25519","v":0}]
[null,20,{"$f":"Import!I24720","v":"Select"},{"$f":"Import!I24920","v":"Select"},{"$f":"Import!I25120","v":"Select"},{"$f":"Import!I25320","v":0},{"$f":"Import!I25520","v":0}]
[null,21,{"$f":"Import!I24721","v":"Select"},{"$f":"Import!I24921","v":"Select"},{"$f":"Import!I25121","v":"Select"},{"$f":"Import!I25321","v":0},{"$f":"Import!I25521","v":0}]
[null,22,{"$f":"Import!I24722","v":"Select"},{"$f":"Import!I24922","v":"Select"},{"$f":"Import!I25122","v":"Select"},{"$f":"Import!I25322","v":0},{"$f":"Import!I25522","v":0}]
[null,23,{"$f":"Import!I24723","v":"Select"},{"$f":"Import!I24923","v":"Select"},{"$f":"Import!I25123","v":"Select"},{"$f":"Import!I25323","v":0},{"$f":"Import!I25523","v":0}]
[null,24,{"$f":"Import!I24724","v":"Select"},{"$f":"Import!I24924","v":"Select"},{"$f":"Import!I25124","v":"Select"},{"$f":"Import!I25324","v":0},{"$f":"Import!I25524","v":0}]
[null,25,{"$f":"Import!I24725","v":"Select"},{"$f":"Import!I24925","v":"Select"},{"$f":"Import!I25125","v":"Select"},{"$f":"Import!I25325","v":0},{"$f":"Import!I25525","v":0}]
[null,26,{"$f":"Import!I24726","v":"Select"},{"$f":"Import!I24926","v":"Select"},{"$f":"Import!I25126","v":"Select"},{"$f":"Import!I25326","v":0},{"$f":"Import!I25526","v":0}]
[null,27,{"$f":"Import!I24727","v":"Select"},{"$f":"Import!I24927","v":"Select"},{"$f":"Import!I25127","v":"Select"},{"$f":"Import!I25327","v":0},{"$f":"Import!I25527","v":0}]
[null,28,{"$f":"Import!I24728","v":"Select"},{"$f":"Import!I24928","v":"Select"},{"$f":"Import!I25128","v":"Select"},{"$f":"Import!I25328","v":0},{"$f":"Import!I25528","v":0}]
[null,29,{"$f":"Import!I24729","v":"Select"},{"$f":"Import!I24929","v":"Select"},{"$f":"Import!I25129","v":"Select"},{"$f":"Import!I25329","v":0},{"$f":"Import!I25529","v":0}]
[null,30,{"$f":"Import!I24730","v":"Select"},{"$f":"Import!I24930","v":"Select"},{"$f":"Import!I25130","v":"Select"},{"$f":"Import!I25330","v":0},{"$f":"Import!I25530","v":0}]
[null,31,{"$f":"Import!I24731","v":"Select"},{"$f":"Import!I24931","v":"Select"},{"$f":"Import!I25131","v":"Select"},{"$f":"Import!I25331","v":0},{"$f":"Import!I25531","v":0}]
[null,32,{"$f":"Import!I24732","v":"Select"},{"$f":"Import!I24932","v":"Select"},{"$f":"Import!I25132","v":"Select"},{"$f":"Import!I25332","v":0},{"$f":"Import!I25532","v":0}]
[null,33,{"$f":"Import!I24733","v":"Select"},{"$f":"Import!I24933","v":"Select"},{"$f":"Import!I25133","v":"Select"},{"$f":"Import!I25333","v":0},{"$f":"Import!I25533","v":0}]
[null,34,{"$f":"Import!I24734","v":"Select"},{"$f":"Import!I24934","v":"Select"},{"$f":"Import!I25134","v":"Select"},{"$f":"Import!I25334","v":0},{"$f":"Import!I25534","v":0}]
[null,35,{"$f":"Import!I24735","v":"Select"},{"$f":"Import!I24935","v":"Select"},{"$f":"Import!I25135","v":"Select"},{"$f":"Import!I25335","v":0},{"$f":"Import!I25535","v":0}]
[null,36,{"$f":"Import!I24736","v":"Select"},{"$f":"Import!I24936","v":"Select"},{"$f":"Import!I25136","v":"Select"},{"$f":"Import!I25336","v":0},{"$f":"Import!I25536","v":0}]
[null,37,{"$f":"Import!I24737","v":"Select"},{"$f":"Import!I24937","v":"Select"},{"$f":"Import!I25137","v":"Select"},{"$f":"Import!I25337","v":0},{"$f":"Import!I25537","v":0}]
[null,38,{"$f":"Import!I24738","v":"Select"},{"$f":"Import!I24938","v":"Select"},{"$f":"Import!I25138","v":"Select"},{"$f":"Import!I25338","v":0},{"$f":"Import!I25538","v":0}]
[null,39,{"$f":"Import!I24739","v":"Select"},{"$f":"Import!I24939","v":"Select"},{"$f":"Import!I25139","v":"Select"},{"$f":"Import!I25339","v":0},{"$f":"Import!I25539","v":0}]
[null,40,{"$f":"Import!I24740","v":"Select"},{"$f":"Import!I24940","v":"Select"},{"$f":"Import!I25140","v":"Select"},{"$f":"Import!I25340","v":0},{"$f":"Import!I25540","v":0}]
[null,41,{"$f":"Import!I24741","v":"Select"},{"$f":"Import!I24941","v":"Select"},{"$f":"Import!I25141","v":"Select"},{"$f":"Import!I25341","v":0},{"$f":"Import!I25541","v":0}]
[null,42,{"$f":"Import!I24742","v":"Select"},{"$f":"Import!I24942","v":"Select"},{"$f":"Import!I25142","v":"Select"},{"$f":"Import!I25342","v":0},{"$f":"Import!I25542","v":0}]
[null,43,{"$f":"Import!I24743","v":"Select"},{"$f":"Import!I24943","v":"Select"},{"$f":"Import!I25143","v":"Select"},{"$f":"Import!I25343","v":0},{"$f":"Import!I25543","v":0}]
[null,44,{"$f":"Import!I24744","v":"Select"},{"$f":"Import!I24944","v":"Select"},{"$f":"Import!I25144","v":"Select"},{"$f":"Import!I25344","v":0},{"$f":"Import!I25544","v":0}]
[null,45,{"$f":"Import!I24745","v":"Select"},{"$f":"Import!I24945","v":"Select"},{"$f":"Import!I25145","v":"Select"},{"$f":"Import!I25345","v":0},{"$f":"Import!I25545","v":0}]
[null,46,{"$f":"Import!I24746","v":"Select"},{"$f":"Import!I24946","v":"Select"},{"$f":"Import!I25146","v":"Select"},{"$f":"Import!I25346","v":0},{"$f":"Import!I25546","v":0}]
[null,47,{"$f":"Import!I24747","v":"Select"},{"$f":"Import!I24947","v":"Select"},{"$f":"Import!I25147","v":"Select"},{"$f":"Import!I25347","v":0},{"$f":"Import!I25547","v":0}]
[null,48,{"$f":"Import!I24748","v":"Select"},{"$f":"Import!I24948","v":"Select"},{"$f":"Import!I25148","v":"Select"},{"$f":"Import!I25348","v":0},{"$f":"Import!I25548","v":0}]
[null,49,{"$f":"Import!I24749","v":"Select"},{"$f":"Import!I24949","v":"Select"},{"$f":"Import!I25149","v":"Select"},{"$f":"Import!I25349","v":0},{"$f":"Import!I25549","v":0}]
[null,50,{"$f":"Import!I24750","v":"Select"},{"$f":"Import!I24950","v":"Select"},{"$f":"Import!I25150","v":"Select"},{"$f":"Import!I25350","v":0},{"$f":"Import!I25550","v":0}]
[null,51,{"$f":"Import!I24751","v":"Select"},{"$f":"Import!I24951","v":"Select"},{"$f":"Import!I25151","v":"Select"},{"$f":"Import!I25351","v":0},{"$f":"Import!I25551","v":0}]
[null,52,{"$f":"Import!I24752","v":"Select"},{"$f":"Import!I24952","v":"Select"},{"$f":"Import!I25152","v":"Select"},{"$f":"Import!I25352","v":0},{"$f":"Import!I25552","v":0}]
[null,53,{"$f":"Import!I24753","v":"Select"},{"$f":"Import!I24953","v":"Select"},{"$f":"Import!I25153","v":"Select"},{"$f":"Import!I25353","v":0},{"$f":"Import!I25553","v":0}]
[null,54,{"$f":"Import!I24754","v":"Select"},{"$f":"Import!I24954","v":"Select"},{"$f":"Import!I25154","v":"Select"},{"$f":"Import!I25354","v":0},{"$f":"Import!I25554","v":0}]
[null,55,{"$f":"Import!I24755","v":"Select"},{"$f":"Import!I24955","v":"Select"},{"$f":"Import!I25155","v":"Select"},{"$f":"Import!I25355","v":0},{"$f":"Import!I25555","v":0}]
[null,56,{"$f":"Import!I24756","v":"Select"},{"$f":"Import!I24956","v":"Select"},{"$f":"Import!I25156","v":"Select"},{"$f":"Import!I25356","v":0},{"$f":"Import!I25556","v":0}]
[null,57,{"$f":"Import!I24757","v":"Select"},{"$f":"Import!I24957","v":"Select"},{"$f":"Import!I25157","v":"Select"},{"$f":"Import!I25357","v":0},{"$f":"Import!I25557","v":0}]
[null,58,{"$f":"Import!I24758","v":"Select"},{"$f":"Import!I24958","v":"Select"},{"$f":"Import!I25158","v":"Select"},{"$f":"Import!I25358","v":0},{"$f":"Import!I25558","v":0}]
[null,59,{"$f":"Import!I24759","v":"Select"},{"$f":"Import!I24959","v":"Select"},{"$f":"Import!I25159","v":"Select"},{"$f":"Import!I25359","v":0},{"$f":"Import!I25559","v":0}]
[null,60,{"$f":"Import!I24760","v":"Select"},{"$f":"Import!I24960","v":"Select"},{"$f":"Import!I25160","v":"Select"},{"$f":"Import!I25360","v":0},{"$f":"Import!I25560","v":0}]
[null,61,{"$f":"Import!I24761","v":"Select"},{"$f":"Import!I24961","v":"Select"},{"$f":"Import!I25161","v":"Select"},{"$f":"Import!I25361","v":0},{"$f":"Import!I25561","v":0}]
[null,62,{"$f":"Import!I24762","v":"Select"},{"$f":"Import!I24962","v":"Select"},{"$f":"Import!I25162","v":"Select"},{"$f":"Import!I25362","v":0},{"$f":"Import!I25562","v":0}]
[null,63,{"$f":"Import!I24763","v":"Select"},{"$f":"Import!I24963","v":"Select"},{"$f":"Import!I25163","v":"Select"},{"$f":"Import!I25363","v":0},{"$f":"Import!I25563","v":0}]
[null,64,{"$f":"Import!I24764","v":"Select"},{"$f":"Import!I24964","v":"Select"},{"$f":"Import!I25164","v":"Select"},{"$f":"Import!I25364","v":0},{"$f":"Import!I25564","v":0}]
[null,65,{"$f":"Import!I24765","v":"Select"},{"$f":"Import!I24965","v":"Select"},{"$f":"Import!I25165","v":"Select"},{"$f":"Import!I25365","v":0},{"$f":"Import!I25565","v":0}]
[null,66,{"$f":"Import!I24766","v":"Select"},{"$f":"Import!I24966","v":"Select"},{"$f":"Import!I25166","v":"Select"},{"$f":"Import!I25366","v":0},{"$f":"Import!I25566","v":0}]
[null,{"$f":"B692+1","v":67},{"$f":"Import!I24767","v":"Select"},{"$f":"Import!I24967","v":"Select"},{"$f":"Import!I25167","v":"Select"},{"$f":"Import!I25367","v":0},{"$f":"Import!I25567","v":0}]
[null,68,{"$f":"Import!I24768","v":"Select"},{"$f":"Import!I24968","v":"Select"},{"$f":"Import!I25168","v":"Select"},{"$f":"Import!I25368","v":0},{"$f":"Import!I25568","v":0}]
[null,69,{"$f":"Import!I24769","v":"Select"},{"$f":"Import!I24969","v":"Select"},{"$f":"Import!I25169","v":"Select"},{"$f":"Import!I25369","v":0},{"$f":"Import!I25569","v":0}]
[null,70,{"$f":"Import!I24770","v":"Select"},{"$f":"Import!I24970","v":"Select"},{"$f":"Import!I25170","v":"Select"},{"$f":"Import!I25370","v":0},{"$f":"Import!I25570","v":0}]
[null,71,{"$f":"Import!I24771","v":"Select"},{"$f":"Import!I24971","v":"Select"},{"$f":"Import!I25171","v":"Select"},{"$f":"Import!I25371","v":0},{"$f":"Import!I25571","v":0}]
[null,72,{"$f":"Import!I24772","v":"Select"},{"$f":"Import!I24972","v":"Select"},{"$f":"Import!I25172","v":"Select"},{"$f":"Import!I25372","v":0},{"$f":"Import!I25572","v":0}]
[null,73,{"$f":"Import!I24773","v":"Select"},{"$f":"Import!I24973","v":"Select"},{"$f":"Import!I25173","v":"Select"},{"$f":"Import!I25373","v":0},{"$f":"Import!I25573","v":0}]
[null,74,{"$f":"Import!I24774","v":"Select"},{"$f":"Import!I24974","v":"Select"},{"$f":"Import!I25174","v":"Select"},{"$f":"Import!I25374","v":0},{"$f":"Import!I25574","v":0}]
[null,75,{"$f":"Import!I24775","v":"Select"},{"$f":"Import!I24975","v":"Select"},{"$f":"Import!I25175","v":"Select"},{"$f":"Import!I25375","v":0},{"$f":"Import!I25575","v":0}]
[null,76,{"$f":"Import!I24776","v":"Select"},{"$f":"Import!I24976","v":"Select"},{"$f":"Import!I25176","v":"Select"},{"$f":"Import!I25376","v":0},{"$f":"Import!I25576","v":0}]
[null,77,{"$f":"Import!I24777","v":"Select"},{"$f":"Import!I24977","v":"Select"},{"$f":"Import!I25177","v":"Select"},{"$f":"Import!I25377","v":0},{"$f":"Import!I25577","v":0}]
[null,78,{"$f":"Import!I24778","v":"Select"},{"$f":"Import!I24978","v":"Select"},{"$f":"Import!I25178","v":"Select"},{"$f":"Import!I25378","v":0},{"$f":"Import!I25578","v":0}]
[null,79,{"$f":"Import!I24779","v":"Select"},{"$f":"Import!I24979","v":"Select"},{"$f":"Import!I25179","v":"Select"},{"$f":"Import!I25379","v":0},{"$f":"Import!I25579","v":0}]
[null,80,{"$f":"Import!I24780","v":"Select"},{"$f":"Import!I24980","v":"Select"},{"$f":"Import!I25180","v":"Select"},{"$f":"Import!I25380","v":0},{"$f":"Import!I25580","v":0}]
[null,81,{"$f":"Import!I24781","v":"Select"},{"$f":"Import!I24981","v":"Select"},{"$f":"Import!I25181","v":"Select"},{"$f":"Import!I25381","v":0},{"$f":"Import!I25581","v":0}]
[null,82,{"$f":"Import!I24782","v":"Select"},{"$f":"Import!I24982","v":"Select"},{"$f":"Import!I25182","v":"Select"},{"$f":"Import!I25382","v":0},{"$f":"Import!I25582","v":0}]
[null,83,{"$f":"Import!I24783","v":"Select"},{"$f":"Import!I24983","v":"Select"},{"$f":"Import!I25183","v":"Select"},{"$f":"Import!I25383","v":0},{"$f":"Import!I25583","v":0}]
[null,84,{"$f":"Import!I24784","v":"Select"},{"$f":"Import!I24984","v":"Select"},{"$f":"Import!I25184","v":"Select"},{"$f":"Import!I25384","v":0},{"$f":"Import!I25584","v":0}]
[null,85,{"$f":"Import!I24785","v":"Select"},{"$f":"Import!I24985","v":"Select"},{"$f":"Import!I25185","v":"Select"},{"$f":"Import!I25385","v":0},{"$f":"Import!I25585","v":0}]
[null,86,{"$f":"Import!I24786","v":"Select"},{"$f":"Import!I24986","v":"Select"},{"$f":"Import!I25186","v":"Select"},{"$f":"Import!I25386","v":0},{"$f":"Import!I25586","v":0}]
[null,87,{"$f":"Import!I24787","v":"Select"},{"$f":"Import!I24987","v":"Select"},{"$f":"Import!I25187","v":"Select"},{"$f":"Import!I25387","v":0},{"$f":"Import!I25587","v":0}]
[null,88,{"$f":"Import!I24788","v":"Select"},{"$f":"Import!I24988","v":"Select"},{"$f":"Import!I25188","v":"Select"},{"$f":"Import!I25388","v":0},{"$f":"Import!I25588","v":0}]
[null,89,{"$f":"Import!I24789","v":"Select"},{"$f":"Import!I24989","v":"Select"},{"$f":"Import!I25189","v":"Select"},{"$f":"Import!I25389","v":0},{"$f":"Import!I25589","v":0}]
[null,90,{"$f":"Import!I24790","v":"Select"},{"$f":"Import!I24990","v":"Select"},{"$f":"Import!I25190","v":"Select"},{"$f":"Import!I25390","v":0},{"$f":"Import!I25590","v":0}]
[null,91,{"$f":"Import!I24791","v":"Select"},{"$f":"Import!I24991","v":"Select"},{"$f":"Import!I25191","v":"Select"},{"$f":"Import!I25391","v":0},{"$f":"Import!I25591","v":0}]
[null,92,{"$f":"Import!I24792","v":"Select"},{"$f":"Import!I24992","v":"Select"},{"$f":"Import!I25192","v":"Select"},{"$f":"Import!I25392","v":0},{"$f":"Import!I25592","v":0}]
[null,93,{"$f":"Import!I24793","v":"Select"},{"$f":"Import!I24993","v":"Select"},{"$f":"Import!I25193","v":"Select"},{"$f":"Import!I25393","v":0},{"$f":"Import!I25593","v":0}]
[null,94,{"$f":"Import!I24794","v":"Select"},{"$f":"Import!I24994","v":"Select"},{"$f":"Import!I25194","v":"Select"},{"$f":"Import!I25394","v":0},{"$f":"Import!I25594","v":0}]
[null,95,{"$f":"Import!I24795","v":"Select"},{"$f":"Import!I24995","v":"Select"},{"$f":"Import!I25195","v":"Select"},{"$f":"Import!I25395","v":0},{"$f":"Import!I25595","v":0}]
[null,96,{"$f":"Import!I24796","v":"Select"},{"$f":"Import!I24996","v":"Select"},{"$f":"Import!I25196","v":"Select"},{"$f":"Import!I25396","v":0},{"$f":"Import!I25596","v":0}]
[null,97,{"$f":"Import!I24797","v":"Select"},{"$f":"Import!I24997","v":"Select"},{"$f":"Import!I25197","v":"Select"},{"$f":"Import!I25397","v":0},{"$f":"Import!I25597","v":0}]
[null,98,{"$f":"Import!I24798","v":"Select"},{"$f":"Import!I24998","v":"Select"},{"$f":"Import!I25198","v":"Select"},{"$f":"Import!I25398","v":0},{"$f":"Import!I25598","v":0}]
[null,99,{"$f":"Import!I24799","v":"Select"},{"$f":"Import!I24999","v":"Select"},{"$f":"Import!I25199","v":"Select"},{"$f":"Import!I25399","v":0},{"$f":"Import!I25599","v":0}]
[null,100,{"$f":"Import!I24800","v":"Select"},{"$f":"Import!I25000","v":"Select"},{"$f":"Import!I25200","v":"Select"},{"$f":"Import!I25400","v":0},{"$f":"Import!I25600","v":0}]
[null,101,{"$f":"Import!I24801","v":"Select"},{"$f":"Import!I25001","v":"Select"},{"$f":"Import!I25201","v":"Select"},{"$f":"Import!I25401","v":0},{"$f":"Import!I25601","v":0}]
[null,102,{"$f":"Import!I24802","v":"Select"},{"$f":"Import!I25002","v":"Select"},{"$f":"Import!I25202","v":"Select"},{"$f":"Import!I25402","v":0},{"$f":"Import!I25602","v":0}]
[null,103,{"$f":"Import!I24803","v":"Select"},{"$f":"Import!I25003","v":"Select"},{"$f":"Import!I25203","v":"Select"},{"$f":"Import!I25403","v":0},{"$f":"Import!I25603","v":0}]
[null,104,{"$f":"Import!I24804","v":"Select"},{"$f":"Import!I25004","v":"Select"},{"$f":"Import!I25204","v":"Select"},{"$f":"Import!I25404","v":0},{"$f":"Import!I25604","v":0}]
[null,105,{"$f":"Import!I24805","v":"Select"},{"$f":"Import!I25005","v":"Select"},{"$f":"Import!I25205","v":"Select"},{"$f":"Import!I25405","v":0},{"$f":"Import!I25605","v":0}]
[null,106,{"$f":"Import!I24806","v":"Select"},{"$f":"Import!I25006","v":"Select"},{"$f":"Import!I25206","v":"Select"},{"$f":"Import!I25406","v":0},{"$f":"Import!I25606","v":0}]
[null,107,{"$f":"Import!I24807","v":"Select"},{"$f":"Import!I25007","v":"Select"},{"$f":"Import!I25207","v":"Select"},{"$f":"Import!I25407","v":0},{"$f":"Import!I25607","v":0}]
[null,108,{"$f":"Import!I24808","v":"Select"},{"$f":"Import!I25008","v":"Select"},{"$f":"Import!I25208","v":"Select"},{"$f":"Import!I25408","v":0},{"$f":"Import!I25608","v":0}]
[null,109,{"$f":"Import!I24809","v":"Select"},{"$f":"Import!I25009","v":"Select"},{"$f":"Import!I25209","v":"Select"},{"$f":"Import!I25409","v":0},{"$f":"Import!I25609","v":0}]
[null,110,{"$f":"Import!I24810","v":"Select"},{"$f":"Import!I25010","v":"Select"},{"$f":"Import!I25210","v":"Select"},{"$f":"Import!I25410","v":0},{"$f":"Import!I25610","v":0}]
[null,111,{"$f":"Import!I24811","v":"Select"},{"$f":"Import!I25011","v":"Select"},{"$f":"Import!I25211","v":"Select"},{"$f":"Import!I25411","v":0},{"$f":"Import!I25611","v":0}]
[null,112,{"$f":"Import!I24812","v":"Select"},{"$f":"Import!I25012","v":"Select"},{"$f":"Import!I25212","v":"Select"},{"$f":"Import!I25412","v":0},{"$f":"Import!I25612","v":0}]
[null,113,{"$f":"Import!I24813","v":"Select"},{"$f":"Import!I25013","v":"Select"},{"$f":"Import!I25213","v":"Select"},{"$f":"Import!I25413","v":0},{"$f":"Import!I25613","v":0}]
[null,114,{"$f":"Import!I24814","v":"Select"},{"$f":"Import!I25014","v":"Select"},{"$f":"Import!I25214","v":"Select"},{"$f":"Import!I25414","v":0},{"$f":"Import!I25614","v":0}]
[null,115,{"$f":"Import!I24815","v":"Select"},{"$f":"Import!I25015","v":"Select"},{"$f":"Import!I25215","v":"Select"},{"$f":"Import!I25415","v":0},{"$f":"Import!I25615","v":0}]
[null,116,{"$f":"Import!I24816","v":"Select"},{"$f":"Import!I25016","v":"Select"},{"$f":"Import!I25216","v":"Select"},{"$f":"Import!I25416","v":0},{"$f":"Import!I25616","v":0}]
[null,117,{"$f":"Import!I24817","v":"Select"},{"$f":"Import!I25017","v":"Select"},{"$f":"Import!I25217","v":"Select"},{"$f":"Import!I25417","v":0},{"$f":"Import!I25617","v":0}]
[null,118,{"$f":"Import!I24818","v":"Select"},{"$f":"Import!I25018","v":"Select"},{"$f":"Import!I25218","v":"Select"},{"$f":"Import!I25418","v":0},{"$f":"Import!I25618","v":0}]
[null,119,{"$f":"Import!I24819","v":"Select"},{"$f":"Import!I25019","v":"Select"},{"$f":"Import!I25219","v":"Select"},{"$f":"Import!I25419","v":0},{"$f":"Import!I25619","v":0}]
[null,120,{"$f":"Import!I24820","v":"Select"},{"$f":"Import!I25020","v":"Select"},{"$f":"Import!I25220","v":"Select"},{"$f":"Import!I25420","v":0},{"$f":"Import!I25620","v":0}]
[null,121,{"$f":"Import!I24821","v":"Select"},{"$f":"Import!I25021","v":"Select"},{"$f":"Import!I25221","v":"Select"},{"$f":"Import!I25421","v":0},{"$f":"Import!I25621","v":0}]
[null,122,{"$f":"Import!I24822","v":"Select"},{"$f":"Import!I25022","v":"Select"},{"$f":"Import!I25222","v":"Select"},{"$f":"Import!I25422","v":0},{"$f":"Import!I25622","v":0}]
[null,123,{"$f":"Import!I24823","v":"Select"},{"$f":"Import!I25023","v":"Select"},{"$f":"Import!I25223","v":"Select"},{"$f":"Import!I25423","v":0},{"$f":"Import!I25623","v":0}]
[null,124,{"$f":"Import!I24824","v":"Select"},{"$f":"Import!I25024","v":"Select"},{"$f":"Import!I25224","v":"Select"},{"$f":"Import!I25424","v":0},{"$f":"Import!I25624","v":0}]
[null,125,{"$f":"Import!I24825","v":"Select"},{"$f":"Import!I25025","v":"Select"},{"$f":"Import!I25225","v":"Select"},{"$f":"Import!I25425","v":0},{"$f":"Import!I25625","v":0}]
[null,126,{"$f":"Import!I24826","v":"Select"},{"$f":"Import!I25026","v":"Select"},{"$f":"Import!I25226","v":"Select"},{"$f":"Import!I25426","v":0},{"$f":"Import!I25626","v":0}]
[null,127,{"$f":"Import!I24827","v":"Select"},{"$f":"Import!I25027","v":"Select"},{"$f":"Import!I25227","v":"Select"},{"$f":"Import!I25427","v":0},{"$f":"Import!I25627","v":0}]
[null,128,{"$f":"Import!I24828","v":"Select"},{"$f":"Import!I25028","v":"Select"},{"$f":"Import!I25228","v":"Select"},{"$f":"Import!I25428","v":0},{"$f":"Import!I25628","v":0}]
[null,129,{"$f":"Import!I24829","v":"Select"},{"$f":"Import!I25029","v":"Select"},{"$f":"Import!I25229","v":"Select"},{"$f":"Import!I25429","v":0},{"$f":"Import!I25629","v":0}]
[null,130,{"$f":"Import!I24830","v":"Select"},{"$f":"Import!I25030","v":"Select"},{"$f":"Import!I25230","v":"Select"},{"$f":"Import!I25430","v":0},{"$f":"Import!I25630","v":0}]
[null,{"$f":"B756+1","v":131},{"$f":"Import!I24831","v":"Select"},{"$f":"Import!I25031","v":"Select"},{"$f":"Import!I25231","v":"Select"},{"$f":"Import!I25431","v":0},{"$f":"Import!I25631","v":0}]
[null,132,{"$f":"Import!I24832","v":"Select"},{"$f":"Import!I25032","v":"Select"},{"$f":"Import!I25232","v":"Select"},{"$f":"Import!I25432","v":0},{"$f":"Import!I25632","v":0}]
[null,133,{"$f":"Import!I24833","v":"Select"},{"$f":"Import!I25033","v":"Select"},{"$f":"Import!I25233","v":"Select"},{"$f":"Import!I25433","v":0},{"$f":"Import!I25633","v":0}]
[null,134,{"$f":"Import!I24834","v":"Select"},{"$f":"Import!I25034","v":"Select"},{"$f":"Import!I25234","v":"Select"},{"$f":"Import!I25434","v":0},{"$f":"Import!I25634","v":0}]
[null,135,{"$f":"Import!I24835","v":"Select"},{"$f":"Import!I25035","v":"Select"},{"$f":"Import!I25235","v":"Select"},{"$f":"Import!I25435","v":0},{"$f":"Import!I25635","v":0}]
[null,136,{"$f":"Import!I24836","v":"Select"},{"$f":"Import!I25036","v":"Select"},{"$f":"Import!I25236","v":"Select"},{"$f":"Import!I25436","v":0},{"$f":"Import!I25636","v":0}]
[null,137,{"$f":"Import!I24837","v":"Select"},{"$f":"Import!I25037","v":"Select"},{"$f":"Import!I25237","v":"Select"},{"$f":"Import!I25437","v":0},{"$f":"Import!I25637","v":0}]
[null,138,{"$f":"Import!I24838","v":"Select"},{"$f":"Import!I25038","v":"Select"},{"$f":"Import!I25238","v":"Select"},{"$f":"Import!I25438","v":0},{"$f":"Import!I25638","v":0}]
[null,139,{"$f":"Import!I24839","v":"Select"},{"$f":"Import!I25039","v":"Select"},{"$f":"Import!I25239","v":"Select"},{"$f":"Import!I25439","v":0},{"$f":"Import!I25639","v":0}]
[null,140,{"$f":"Import!I24840","v":"Select"},{"$f":"Import!I25040","v":"Select"},{"$f":"Import!I25240","v":"Select"},{"$f":"Import!I25440","v":0},{"$f":"Import!I25640","v":0}]
[null,141,{"$f":"Import!I24841","v":"Select"},{"$f":"Import!I25041","v":"Select"},{"$f":"Import!I25241","v":"Select"},{"$f":"Import!I25441","v":0},{"$f":"Import!I25641","v":0}]
[null,142,{"$f":"Import!I24842","v":"Select"},{"$f":"Import!I25042","v":"Select"},{"$f":"Import!I25242","v":"Select"},{"$f":"Import!I25442","v":0},{"$f":"Import!I25642","v":0}]
[null,143,{"$f":"Import!I24843","v":"Select"},{"$f":"Import!I25043","v":"Select"},{"$f":"Import!I25243","v":"Select"},{"$f":"Import!I25443","v":0},{"$f":"Import!I25643","v":0}]
[null,144,{"$f":"Import!I24844","v":"Select"},{"$f":"Import!I25044","v":"Select"},{"$f":"Import!I25244","v":"Select"},{"$f":"Import!I25444","v":0},{"$f":"Import!I25644","v":0}]
[null,145,{"$f":"Import!I24845","v":"Select"},{"$f":"Import!I25045","v":"Select"},{"$f":"Import!I25245","v":"Select"},{"$f":"Import!I25445","v":0},{"$f":"Import!I25645","v":0}]
[null,146,{"$f":"Import!I24846","v":"Select"},{"$f":"Import!I25046","v":"Select"},{"$f":"Import!I25246","v":"Select"},{"$f":"Import!I25446","v":0},{"$f":"Import!I25646","v":0}]
[null,147,{"$f":"Import!I24847","v":"Select"},{"$f":"Import!I25047","v":"Select"},{"$f":"Import!I25247","v":"Select"},{"$f":"Import!I25447","v":0},{"$f":"Import!I25647","v":0}]
[null,148,{"$f":"Import!I24848","v":"Select"},{"$f":"Import!I25048","v":"Select"},{"$f":"Import!I25248","v":"Select"},{"$f":"Import!I25448","v":0},{"$f":"Import!I25648","v":0}]
[null,149,{"$f":"Import!I24849","v":"Select"},{"$f":"Import!I25049","v":"Select"},{"$f":"Import!I25249","v":"Select"},{"$f":"Import!I25449","v":0},{"$f":"Import!I25649","v":0}]
[null,150,{"$f":"Import!I24850","v":"Select"},{"$f":"Import!I25050","v":"Select"},{"$f":"Import!I25250","v":"Select"},{"$f":"Import!I25450","v":0},{"$f":"Import!I25650","v":0}]
[null,151,{"$f":"Import!I24851","v":"Select"},{"$f":"Import!I25051","v":"Select"},{"$f":"Import!I25251","v":"Select"},{"$f":"Import!I25451","v":0},{"$f":"Import!I25651","v":0}]
[null,152,{"$f":"Import!I24852","v":"Select"},{"$f":"Import!I25052","v":"Select"},{"$f":"Import!I25252","v":"Select"},{"$f":"Import!I25452","v":0},{"$f":"Import!I25652","v":0}]
[null,153,{"$f":"Import!I24853","v":"Select"},{"$f":"Import!I25053","v":"Select"},{"$f":"Import!I25253","v":"Select"},{"$f":"Import!I25453","v":0},{"$f":"Import!I25653","v":0}]
[null,154,{"$f":"Import!I24854","v":"Select"},{"$f":"Import!I25054","v":"Select"},{"$f":"Import!I25254","v":"Select"},{"$f":"Import!I25454","v":0},{"$f":"Import!I25654","v":0}]
[null,155,{"$f":"Import!I24855","v":"Select"},{"$f":"Import!I25055","v":"Select"},{"$f":"Import!I25255","v":"Select"},{"$f":"Import!I25455","v":0},{"$f":"Import!I25655","v":0}]
[null,156,{"$f":"Import!I24856","v":"Select"},{"$f":"Import!I25056","v":"Select"},{"$f":"Import!I25256","v":"Select"},{"$f":"Import!I25456","v":0},{"$f":"Import!I25656","v":0}]
[null,157,{"$f":"Import!I24857","v":"Select"},{"$f":"Import!I25057","v":"Select"},{"$f":"Import!I25257","v":"Select"},{"$f":"Import!I25457","v":0},{"$f":"Import!I25657","v":0}]
[null,158,{"$f":"Import!I24858","v":"Select"},{"$f":"Import!I25058","v":"Select"},{"$f":"Import!I25258","v":"Select"},{"$f":"Import!I25458","v":0},{"$f":"Import!I25658","v":0}]
[null,159,{"$f":"Import!I24859","v":"Select"},{"$f":"Import!I25059","v":"Select"},{"$f":"Import!I25259","v":"Select"},{"$f":"Import!I25459","v":0},{"$f":"Import!I25659","v":0}]
[null,160,{"$f":"Import!I24860","v":"Select"},{"$f":"Import!I25060","v":"Select"},{"$f":"Import!I25260","v":"Select"},{"$f":"Import!I25460","v":0},{"$f":"Import!I25660","v":0}]
[null,161,{"$f":"Import!I24861","v":"Select"},{"$f":"Import!I25061","v":"Select"},{"$f":"Import!I25261","v":"Select"},{"$f":"Import!I25461","v":0},{"$f":"Import!I25661","v":0}]
[null,162,{"$f":"Import!I24862","v":"Select"},{"$f":"Import!I25062","v":"Select"},{"$f":"Import!I25262","v":"Select"},{"$f":"Import!I25462","v":0},{"$f":"Import!I25662","v":0}]
[null,163,{"$f":"Import!I24863","v":"Select"},{"$f":"Import!I25063","v":"Select"},{"$f":"Import!I25263","v":"Select"},{"$f":"Import!I25463","v":0},{"$f":"Import!I25663","v":0}]
[null,164,{"$f":"Import!I24864","v":"Select"},{"$f":"Import!I25064","v":"Select"},{"$f":"Import!I25264","v":"Select"},{"$f":"Import!I25464","v":0},{"$f":"Import!I25664","v":0}]
[null,165,{"$f":"Import!I24865","v":"Select"},{"$f":"Import!I25065","v":"Select"},{"$f":"Import!I25265","v":"Select"},{"$f":"Import!I25465","v":0},{"$f":"Import!I25665","v":0}]
[null,166,{"$f":"Import!I24866","v":"Select"},{"$f":"Import!I25066","v":"Select"},{"$f":"Import!I25266","v":"Select"},{"$f":"Import!I25466","v":0},{"$f":"Import!I25666","v":0}]
[null,167,{"$f":"Import!I24867","v":"Select"},{"$f":"Import!I25067","v":"Select"},{"$f":"Import!I25267","v":"Select"},{"$f":"Import!I25467","v":0},{"$f":"Import!I25667","v":0}]
[null,168,{"$f":"Import!I24868","v":"Select"},{"$f":"Import!I25068","v":"Select"},{"$f":"Import!I25268","v":"Select"},{"$f":"Import!I25468","v":0},{"$f":"Import!I25668","v":0}]
[null,169,{"$f":"Import!I24869","v":"Select"},{"$f":"Import!I25069","v":"Select"},{"$f":"Import!I25269","v":"Select"},{"$f":"Import!I25469","v":0},{"$f":"Import!I25669","v":0}]
[null,170,{"$f":"Import!I24870","v":"Select"},{"$f":"Import!I25070","v":"Select"},{"$f":"Import!I25270","v":"Select"},{"$f":"Import!I25470","v":0},{"$f":"Import!I25670","v":0}]
[null,171,{"$f":"Import!I24871","v":"Select"},{"$f":"Import!I25071","v":"Select"},{"$f":"Import!I25271","v":"Select"},{"$f":"Import!I25471","v":0},{"$f":"Import!I25671","v":0}]
[null,172,{"$f":"Import!I24872","v":"Select"},{"$f":"Import!I25072","v":"Select"},{"$f":"Import!I25272","v":"Select"},{"$f":"Import!I25472","v":0},{"$f":"Import!I25672","v":0}]
[null,173,{"$f":"Import!I24873","v":"Select"},{"$f":"Import!I25073","v":"Select"},{"$f":"Import!I25273","v":"Select"},{"$f":"Import!I25473","v":0},{"$f":"Import!I25673","v":0}]
[null,174,{"$f":"Import!I24874","v":"Select"},{"$f":"Import!I25074","v":"Select"},{"$f":"Import!I25274","v":"Select"},{"$f":"Import!I25474","v":0},{"$f":"Import!I25674","v":0}]
[null,175,{"$f":"Import!I24875","v":"Select"},{"$f":"Import!I25075","v":"Select"},{"$f":"Import!I25275","v":"Select"},{"$f":"Import!I25475","v":0},{"$f":"Import!I25675","v":0}]
[null,176,{"$f":"Import!I24876","v":"Select"},{"$f":"Import!I25076","v":"Select"},{"$f":"Import!I25276","v":"Select"},{"$f":"Import!I25476","v":0},{"$f":"Import!I25676","v":0}]
[null,177,{"$f":"Import!I24877","v":"Select"},{"$f":"Import!I25077","v":"Select"},{"$f":"Import!I25277","v":"Select"},{"$f":"Import!I25477","v":0},{"$f":"Import!I25677","v":0}]
[null,178,{"$f":"Import!I24878","v":"Select"},{"$f":"Import!I25078","v":"Select"},{"$f":"Import!I25278","v":"Select"},{"$f":"Import!I25478","v":0},{"$f":"Import!I25678","v":0}]
[null,179,{"$f":"Import!I24879","v":"Select"},{"$f":"Import!I25079","v":"Select"},{"$f":"Import!I25279","v":"Select"},{"$f":"Import!I25479","v":0},{"$f":"Import!I25679","v":0}]
[null,180,{"$f":"Import!I24880","v":"Select"},{"$f":"Import!I25080","v":"Select"},{"$f":"Import!I25280","v":"Select"},{"$f":"Import!I25480","v":0},{"$f":"Import!I25680","v":0}]
[null,181,{"$f":"Import!I24881","v":"Select"},{"$f":"Import!I25081","v":"Select"},{"$f":"Import!I25281","v":"Select"},{"$f":"Import!I25481","v":0},{"$f":"Import!I25681","v":0}]
[null,182,{"$f":"Import!I24882","v":"Select"},{"$f":"Import!I25082","v":"Select"},{"$f":"Import!I25282","v":"Select"},{"$f":"Import!I25482","v":0},{"$f":"Import!I25682","v":0}]
[null,183,{"$f":"Import!I24883","v":"Select"},{"$f":"Import!I25083","v":"Select"},{"$f":"Import!I25283","v":"Select"},{"$f":"Import!I25483","v":0},{"$f":"Import!I25683","v":0}]
[null,184,{"$f":"Import!I24884","v":"Select"},{"$f":"Import!I25084","v":"Select"},{"$f":"Import!I25284","v":"Select"},{"$f":"Import!I25484","v":0},{"$f":"Import!I25684","v":0}]
[null,185,{"$f":"Import!I24885","v":"Select"},{"$f":"Import!I25085","v":"Select"},{"$f":"Import!I25285","v":"Select"},{"$f":"Import!I25485","v":0},{"$f":"Import!I25685","v":0}]
[null,186,{"$f":"Import!I24886","v":"Select"},{"$f":"Import!I25086","v":"Select"},{"$f":"Import!I25286","v":"Select"},{"$f":"Import!I25486","v":0},{"$f":"Import!I25686","v":0}]
[null,187,{"$f":"Import!I24887","v":"Select"},{"$f":"Import!I25087","v":"Select"},{"$f":"Import!I25287","v":"Select"},{"$f":"Import!I25487","v":0},{"$f":"Import!I25687","v":0}]
[null,188,{"$f":"Import!I24888","v":"Select"},{"$f":"Import!I25088","v":"Select"},{"$f":"Import!I25288","v":"Select"},{"$f":"Import!I25488","v":0},{"$f":"Import!I25688","v":0}]
[null,189,{"$f":"Import!I24889","v":"Select"},{"$f":"Import!I25089","v":"Select"},{"$f":"Import!I25289","v":"Select"},{"$f":"Import!I25489","v":0},{"$f":"Import!I25689","v":0}]
[null,190,{"$f":"Import!I24890","v":"Select"},{"$f":"Import!I25090","v":"Select"},{"$f":"Import!I25290","v":"Select"},{"$f":"Import!I25490","v":0},{"$f":"Import!I25690","v":0}]
[null,191,{"$f":"Import!I24891","v":"Select"},{"$f":"Import!I25091","v":"Select"},{"$f":"Import!I25291","v":"Select"},{"$f":"Import!I25491","v":0},{"$f":"Import!I25691","v":0}]
[null,192,{"$f":"Import!I24892","v":"Select"},{"$f":"Import!I25092","v":"Select"},{"$f":"Import!I25292","v":"Select"},{"$f":"Import!I25492","v":0},{"$f":"Import!I25692","v":0}]
[null,193,{"$f":"Import!I24893","v":"Select"},{"$f":"Import!I25093","v":"Select"},{"$f":"Import!I25293","v":"Select"},{"$f":"Import!I25493","v":0},{"$f":"Import!I25693","v":0}]
[null,194,{"$f":"Import!I24894","v":"Select"},{"$f":"Import!I25094","v":"Select"},{"$f":"Import!I25294","v":"Select"},{"$f":"Import!I25494","v":0},{"$f":"Import!I25694","v":0}]
[null,{"$f":"B820+1","v":195},{"$f":"Import!I24895","v":"Select"},{"$f":"Import!I25095","v":"Select"},{"$f":"Import!I25295","v":"Select"},{"$f":"Import!I25495","v":0},{"$f":"Import!I25695","v":0}]
[null,196,{"$f":"Import!I24896","v":"Select"},{"$f":"Import!I25096","v":"Select"},{"$f":"Import!I25296","v":"Select"},{"$f":"Import!I25496","v":0},{"$f":"Import!I25696","v":0}]
[null,197,{"$f":"Import!I24897","v":"Select"},{"$f":"Import!I25097","v":"Select"},{"$f":"Import!I25297","v":"Select"},{"$f":"Import!I25497","v":0},{"$f":"Import!I25697","v":0}]
[null,198,{"$f":"Import!I24898","v":"Select"},{"$f":"Import!I25098","v":"Select"},{"$f":"Import!I25298","v":"Select"},{"$f":"Import!I25498","v":0},{"$f":"Import!I25698","v":0}]
[null,199,{"$f":"Import!I24899","v":"Select"},{"$f":"Import!I25099","v":"Select"},{"$f":"Import!I25299","v":"Select"},{"$f":"Import!I25499","v":0},{"$f":"Import!I25699","v":0}]
[null,200,{"$f":"Import!I24900","v":"Select"},{"$f":"Import!I25100","v":"Select"},{"$f":"Import!I25300","v":"Select"},{"$f":"Import!I25500","v":0},{"$f":"Import!I25700","v":0}]
[]
[null,null,null,null,null,{"$f":"SUM(F627:F826)","v":0}]
[]
[null,"(C) ASSET-BACKED AND STRUCTURED SECURITIES"]
[]
[null,null,"Enter # of Asset Types",{"$f":"Import!I25701","v":0}]
[null,null,null,null,{"$f":"YEAR($C$3)","v":2023},2023,"Weighted"]
[null,"Asset Type","Currency","BSCR Rating","Nominal Amount","Fair Value","Average YTM","Effective Duration","Comments"]
[1,{"$f":"Import!I25702","v":"Select"},{"$f":"Import!I25852","v":"Select"},{"$f":"Import!I26002","v":"Select"},{"$f":"Import!I26152","v":0},{"$f":"Import!I26302","v":0},{"$f":"Import!I26452","v":0},{"$f":"Import!I26602","v":0},{"$f":"Import!I26752","v":0}]
[{"$f":"A835+1","v":2},{"$f":"Import!I25703","v":"Select"},{"$f":"Import!I25853","v":"Select"},{"$f":"Import!I26003","v":"Select"},{"$f":"Import!I26153","v":0},{"$f":"Import!I26303","v":0},{"$f":"Import!I26453","v":0},{"$f":"Import!I26603","v":0},{"$f":"Import!I26753","v":0}]
[{"$f":"A836+1","v":3},{"$f":"Import!I25704","v":"Select"},{"$f":"Import!I25854","v":"Select"},{"$f":"Import!I26004","v":"Select"},{"$f":"Import!I26154","v":0},{"$f":"Import!I26304","v":0},{"$f":"Import!I26454","v":0},{"$f":"Import!I26604","v":0},{"$f":"Import!I26754","v":0}]
[4,{"$f":"Import!I25705","v":"Select"},{"$f":"Import!I25855","v":"Select"},{"$f":"Import!I26005","v":"Select"},{"$f":"Import!I26155","v":0},{"$f":"Import!I26305","v":0},{"$f":"Import!I26455","v":0},{"$f":"Import!I26605","v":0},{"$f":"Import!I26755","v":0}]
[5,{"$f":"Import!I25706","v":"Select"},{"$f":"Import!I25856","v":"Select"},{"$f":"Import!I26006","v":"Select"},{"$f":"Import!I26156","v":0},{"$f":"Import!I26306","v":0},{"$f":"Import!I26456","v":0},{"$f":"Import!I26606","v":0},{"$f":"Import!I26756","v":0}]
[6,{"$f":"Import!I25707","v":"Select"},{"$f":"Import!I25857","v":"Select"},{"$f":"Import!I26007","v":"Select"},{"$f":"Import!I26157","v":0},{"$f":"Import!I26307","v":0},{"$f":"Import!I26457","v":0},{"$f":"Import!I26607","v":0},{"$f":"Import!I26757","v":0}]
[7,{"$f":"Import!I25708","v":"Select"},{"$f":"Import!I25858","v":"Select"},{"$f":"Import!I26008","v":"Select"},{"$f":"Import!I26158","v":0},{"$f":"Import!I26308","v":0},{"$f":"Import!I26458","v":0},{"$f":"Import!I26608","v":0},{"$f":"Import!I26758","v":0}]
[8,{"$f":"Import!I25709","v":"Select"},{"$f":"Import!I25859","v":"Select"},{"$f":"Import!I26009","v":"Select"},{"$f":"Import!I26159","v":0},{"$f":"Import!I26309","v":0},{"$f":"Import!I26459","v":0},{"$f":"Import!I26609","v":0},{"$f":"Import!I26759","v":0}]
[9,{"$f":"Import!I25710","v":"Select"},{"$f":"Import!I25860","v":"Select"},{"$f":"Import!I26010","v":"Select"},{"$f":"Import!I26160","v":0},{"$f":"Import!I26310","v":0},{"$f":"Import!I26460","v":0},{"$f":"Import!I26610","v":0},{"$f":"Import!I26760","v":0}]
[10,{"$f":"Import!I25711","v":"Select"},{"$f":"Import!I25861","v":"Select"},{"$f":"Import!I26011","v":"Select"},{"$f":"Import!I26161","v":0},{"$f":"Import!I26311","v":0},{"$f":"Import!I26461","v":0},{"$f":"Import!I26611","v":0},{"$f":"Import!I26761","v":0}]
[11,{"$f":"Import!I25712","v":"Select"},{"$f":"Import!I25862","v":"Select"},{"$f":"Import!I26012","v":"Select"},{"$f":"Import!I26162","v":0},{"$f":"Import!I26312","v":0},{"$f":"Import!I26462","v":0},{"$f":"Import!I26612","v":0},{"$f":"Import!I26762","v":0}]
[12,{"$f":"Import!I25713","v":"Select"},{"$f":"Import!I25863","v":"Select"},{"$f":"Import!I26013","v":"Select"},{"$f":"Import!I26163","v":0},{"$f":"Import!I26313","v":0},{"$f":"Import!I26463","v":0},{"$f":"Import!I26613","v":0},{"$f":"Import!I26763","v":0}]
[13,{"$f":"Import!I25714","v":"Select"},{"$f":"Import!I25864","v":"Select"},{"$f":"Import!I26014","v":"Select"},{"$f":"Import!I26164","v":0},{"$f":"Import!I26314","v":0},{"$f":"Import!I26464","v":0},{"$f":"Import!I26614","v":0},{"$f":"Import!I26764","v":0}]
[14,{"$f":"Import!I25715","v":"Select"},{"$f":"Import!I25865","v":"Select"},{"$f":"Import!I26015","v":"Select"},{"$f":"Import!I26165","v":0},{"$f":"Import!I26315","v":0},{"$f":"Import!I26465","v":0},{"$f":"Import!I26615","v":0},{"$f":"Import!I26765","v":0}]
[15,{"$f":"Import!I25716","v":"Select"},{"$f":"Import!I25866","v":"Select"},{"$f":"Import!I26016","v":"Select"},{"$f":"Import!I26166","v":0},{"$f":"Import!I26316","v":0},{"$f":"Import!I26466","v":0},{"$f":"Import!I26616","v":0},{"$f":"Import!I26766","v":0}]
[16,{"$f":"Import!I25717","v":"Select"},{"$f":"Import!I25867","v":"Select"},{"$f":"Import!I26017","v":"Select"},{"$f":"Import!I26167","v":0},{"$f":"Import!I26317","v":0},{"$f":"Import!I26467","v":0},{"$f":"Import!I26617","v":0},{"$f":"Import!I26767","v":0}]
[17,{"$f":"Import!I25718","v":"Select"},{"$f":"Import!I25868","v":"Select"},{"$f":"Import!I26018","v":"Select"},{"$f":"Import!I26168","v":0},{"$f":"Import!I26318","v":0},{"$f":"Import!I26468","v":0},{"$f":"Import!I26618","v":0},{"$f":"Import!I26768","v":0}]
[18,{"$f":"Import!I25719","v":"Select"},{"$f":"Import!I25869","v":"Select"},{"$f":"Import!I26019","v":"Select"},{"$f":"Import!I26169","v":0},{"$f":"Import!I26319","v":0},{"$f":"Import!I26469","v":0},{"$f":"Import!I26619","v":0},{"$f":"Import!I26769","v":0}]
[19,{"$f":"Import!I25720","v":"Select"},{"$f":"Import!I25870","v":"Select"},{"$f":"Import!I26020","v":"Select"},{"$f":"Import!I26170","v":0},{"$f":"Import!I26320","v":0},{"$f":"Import!I26470","v":0},{"$f":"Import!I26620","v":0},{"$f":"Import!I26770","v":0}]
[20,{"$f":"Import!I25721","v":"Select"},{"$f":"Import!I25871","v":"Select"},{"$f":"Import!I26021","v":"Select"},{"$f":"Import!I26171","v":0},{"$f":"Import!I26321","v":0},{"$f":"Import!I26471","v":0},{"$f":"Import!I26621","v":0},{"$f":"Import!I26771","v":0}]
[21,{"$f":"Import!I25722","v":"Select"},{"$f":"Import!I25872","v":"Select"},{"$f":"Import!I26022","v":"Select"},{"$f":"Import!I26172","v":0},{"$f":"Import!I26322","v":0},{"$f":"Import!I26472","v":0},{"$f":"Import!I26622","v":0},{"$f":"Import!I26772","v":0}]
[22,{"$f":"Import!I25723","v":"Select"},{"$f":"Import!I25873","v":"Select"},{"$f":"Import!I26023","v":"Select"},{"$f":"Import!I26173","v":0},{"$f":"Import!I26323","v":0},{"$f":"Import!I26473","v":0},{"$f":"Import!I26623","v":0},{"$f":"Import!I26773","v":0}]
[23,{"$f":"Import!I25724","v":"Select"},{"$f":"Import!I25874","v":"Select"},{"$f":"Import!I26024","v":"Select"},{"$f":"Import!I26174","v":0},{"$f":"Import!I26324","v":0},{"$f":"Import!I26474","v":0},{"$f":"Import!I26624","v":0},{"$f":"Import!I26774","v":0}]
[24,{"$f":"Import!I25725","v":"Select"},{"$f":"Import!I25875","v":"Select"},{"$f":"Import!I26025","v":"Select"},{"$f":"Import!I26175","v":0},{"$f":"Import!I26325","v":0},{"$f":"Import!I26475","v":0},{"$f":"Import!I26625","v":0},{"$f":"Import!I26775","v":0}]
[25,{"$f":"Import!I25726","v":"Select"},{"$f":"Import!I25876","v":"Select"},{"$f":"Import!I26026","v":"Select"},{"$f":"Import!I26176","v":0},{"$f":"Import!I26326","v":0},{"$f":"Import!I26476","v":0},{"$f":"Import!I26626","v":0},{"$f":"Import!I26776","v":0}]
[26,{"$f":"Import!I25727","v":"Select"},{"$f":"Import!I25877","v":"Select"},{"$f":"Import!I26027","v":"Select"},{"$f":"Import!I26177","v":0},{"$f":"Import!I26327","v":0},{"$f":"Import!I26477","v":0},{"$f":"Import!I26627","v":0},{"$f":"Import!I26777","v":0}]
[27,{"$f":"Import!I25728","v":"Select"},{"$f":"Import!I25878","v":"Select"},{"$f":"Import!I26028","v":"Select"},{"$f":"Import!I26178","v":0},{"$f":"Import!I26328","v":0},{"$f":"Import!I26478","v":0},{"$f":"Import!I26628","v":0},{"$f":"Import!I26778","v":0}]
[28,{"$f":"Import!I25729","v":"Select"},{"$f":"Import!I25879","v":"Select"},{"$f":"Import!I26029","v":"Select"},{"$f":"Import!I26179","v":0},{"$f":"Import!I26329","v":0},{"$f":"Import!I26479","v":0},{"$f":"Import!I26629","v":0},{"$f":"Import!I26779","v":0}]
[29,{"$f":"Import!I25730","v":"Select"},{"$f":"Import!I25880","v":"Select"},{"$f":"Import!I26030","v":"Select"},{"$f":"Import!I26180","v":0},{"$f":"Import!I26330","v":0},{"$f":"Import!I26480","v":0},{"$f":"Import!I26630","v":0},{"$f":"Import!I26780","v":0}]
[30,{"$f":"Import!I25731","v":"Select"},{"$f":"Import!I25881","v":"Select"},{"$f":"Import!I26031","v":"Select"},{"$f":"Import!I26181","v":0},{"$f":"Import!I26331","v":0},{"$f":"Import!I26481","v":0},{"$f":"Import!I26631","v":0},{"$f":"Import!I26781","v":0}]
[31,{"$f":"Import!I25732","v":"Select"},{"$f":"Import!I25882","v":"Select"},{"$f":"Import!I26032","v":"Select"},{"$f":"Import!I26182","v":0},{"$f":"Import!I26332","v":0},{"$f":"Import!I26482","v":0},{"$f":"Import!I26632","v":0},{"$f":"Import!I26782","v":0}]
[32,{"$f":"Import!I25733","v":"Select"},{"$f":"Import!I25883","v":"Select"},{"$f":"Import!I26033","v":"Select"},{"$f":"Import!I26183","v":0},{"$f":"Import!I26333","v":0},{"$f":"Import!I26483","v":0},{"$f":"Import!I26633","v":0},{"$f":"Import!I26783","v":0}]
[33,{"$f":"Import!I25734","v":"Select"},{"$f":"Import!I25884","v":"Select"},{"$f":"Import!I26034","v":"Select"},{"$f":"Import!I26184","v":0},{"$f":"Import!I26334","v":0},{"$f":"Import!I26484","v":0},{"$f":"Import!I26634","v":0},{"$f":"Import!I26784","v":0}]
[34,{"$f":"Import!I25735","v":"Select"},{"$f":"Import!I25885","v":"Select"},{"$f":"Import!I26035","v":"Select"},{"$f":"Import!I26185","v":0},{"$f":"Import!I26335","v":0},{"$f":"Import!I26485","v":0},{"$f":"Import!I26635","v":0},{"$f":"Import!I26785","v":0}]
[35,{"$f":"Import!I25736","v":"Select"},{"$f":"Import!I25886","v":"Select"},{"$f":"Import!I26036","v":"Select"},{"$f":"Import!I26186","v":0},{"$f":"Import!I26336","v":0},{"$f":"Import!I26486","v":0},{"$f":"Import!I26636","v":0},{"$f":"Import!I26786","v":0}]
[36,{"$f":"Import!I25737","v":"Select"},{"$f":"Import!I25887","v":"Select"},{"$f":"Import!I26037","v":"Select"},{"$f":"Import!I26187","v":0},{"$f":"Import!I26337","v":0},{"$f":"Import!I26487","v":0},{"$f":"Import!I26637","v":0},{"$f":"Import!I26787","v":0}]
[37,{"$f":"Import!I25738","v":"Select"},{"$f":"Import!I25888","v":"Select"},{"$f":"Import!I26038","v":"Select"},{"$f":"Import!I26188","v":0},{"$f":"Import!I26338","v":0},{"$f":"Import!I26488","v":0},{"$f":"Import!I26638","v":0},{"$f":"Import!I26788","v":0}]
[38,{"$f":"Import!I25739","v":"Select"},{"$f":"Import!I25889","v":"Select"},{"$f":"Import!I26039","v":"Select"},{"$f":"Import!I26189","v":0},{"$f":"Import!I26339","v":0},{"$f":"Import!I26489","v":0},{"$f":"Import!I26639","v":0},{"$f":"Import!I26789","v":0}]
[39,{"$f":"Import!I25740","v":"Select"},{"$f":"Import!I25890","v":"Select"},{"$f":"Import!I26040","v":"Select"},{"$f":"Import!I26190","v":0},{"$f":"Import!I26340","v":0},{"$f":"Import!I26490","v":0},{"$f":"Import!I26640","v":0},{"$f":"Import!I26790","v":0}]
[40,{"$f":"Import!I25741","v":"Select"},{"$f":"Import!I25891","v":"Select"},{"$f":"Import!I26041","v":"Select"},{"$f":"Import!I26191","v":0},{"$f":"Import!I26341","v":0},{"$f":"Import!I26491","v":0},{"$f":"Import!I26641","v":0},{"$f":"Import!I26791","v":0}]
[41,{"$f":"Import!I25742","v":"Select"},{"$f":"Import!I25892","v":"Select"},{"$f":"Import!I26042","v":"Select"},{"$f":"Import!I26192","v":0},{"$f":"Import!I26342","v":0},{"$f":"Import!I26492","v":0},{"$f":"Import!I26642","v":0},{"$f":"Import!I26792","v":0}]
[42,{"$f":"Import!I25743","v":"Select"},{"$f":"Import!I25893","v":"Select"},{"$f":"Import!I26043","v":"Select"},{"$f":"Import!I26193","v":0},{"$f":"Import!I26343","v":0},{"$f":"Import!I26493","v":0},{"$f":"Import!I26643","v":0},{"$f":"Import!I26793","v":0}]
[43,{"$f":"Import!I25744","v":"Select"},{"$f":"Import!I25894","v":"Select"},{"$f":"Import!I26044","v":"Select"},{"$f":"Import!I26194","v":0},{"$f":"Import!I26344","v":0},{"$f":"Import!I26494","v":0},{"$f":"Import!I26644","v":0},{"$f":"Import!I26794","v":0}]
[44,{"$f":"Import!I25745","v":"Select"},{"$f":"Import!I25895","v":"Select"},{"$f":"Import!I26045","v":"Select"},{"$f":"Import!I26195","v":0},{"$f":"Import!I26345","v":0},{"$f":"Import!I26495","v":0},{"$f":"Import!I26645","v":0},{"$f":"Import!I26795","v":0}]
[45,{"$f":"Import!I25746","v":"Select"},{"$f":"Import!I25896","v":"Select"},{"$f":"Import!I26046","v":"Select"},{"$f":"Import!I26196","v":0},{"$f":"Import!I26346","v":0},{"$f":"Import!I26496","v":0},{"$f":"Import!I26646","v":0},{"$f":"Import!I26796","v":0}]
[46,{"$f":"Import!I25747","v":"Select"},{"$f":"Import!I25897","v":"Select"},{"$f":"Import!I26047","v":"Select"},{"$f":"Import!I26197","v":0},{"$f":"Import!I26347","v":0},{"$f":"Import!I26497","v":0},{"$f":"Import!I26647","v":0},{"$f":"Import!I26797","v":0}]
[47,{"$f":"Import!I25748","v":"Select"},{"$f":"Import!I25898","v":"Select"},{"$f":"Import!I26048","v":"Select"},{"$f":"Import!I26198","v":0},{"$f":"Import!I26348","v":0},{"$f":"Import!I26498","v":0},{"$f":"Import!I26648","v":0},{"$f":"Import!I26798","v":0}]
[48,{"$f":"Import!I25749","v":"Select"},{"$f":"Import!I25899","v":"Select"},{"$f":"Import!I26049","v":"Select"},{"$f":"Import!I26199","v":0},{"$f":"Import!I26349","v":0},{"$f":"Import!I26499","v":0},{"$f":"Import!I26649","v":0},{"$f":"Import!I26799","v":0}]
[49,{"$f":"Import!I25750","v":"Select"},{"$f":"Import!I25900","v":"Select"},{"$f":"Import!I26050","v":"Select"},{"$f":"Import!I26200","v":0},{"$f":"Import!I26350","v":0},{"$f":"Import!I26500","v":0},{"$f":"Import!I26650","v":0},{"$f":"Import!I26800","v":0}]
[50,{"$f":"Import!I25751","v":"Select"},{"$f":"Import!I25901","v":"Select"},{"$f":"Import!I26051","v":"Select"},{"$f":"Import!I26201","v":0},{"$f":"Import!I26351","v":0},{"$f":"Import!I26501","v":0},{"$f":"Import!I26651","v":0},{"$f":"Import!I26801","v":0}]
[51,{"$f":"Import!I25752","v":"Select"},{"$f":"Import!I25902","v":"Select"},{"$f":"Import!I26052","v":"Select"},{"$f":"Import!I26202","v":0},{"$f":"Import!I26352","v":0},{"$f":"Import!I26502","v":0},{"$f":"Import!I26652","v":0},{"$f":"Import!I26802","v":0}]
[52,{"$f":"Import!I25753","v":"Select"},{"$f":"Import!I25903","v":"Select"},{"$f":"Import!I26053","v":"Select"},{"$f":"Import!I26203","v":0},{"$f":"Import!I26353","v":0},{"$f":"Import!I26503","v":0},{"$f":"Import!I26653","v":0},{"$f":"Import!I26803","v":0}]
[53,{"$f":"Import!I25754","v":"Select"},{"$f":"Import!I25904","v":"Select"},{"$f":"Import!I26054","v":"Select"},{"$f":"Import!I26204","v":0},{"$f":"Import!I26354","v":0},{"$f":"Import!I26504","v":0},{"$f":"Import!I26654","v":0},{"$f":"Import!I26804","v":0}]
[54,{"$f":"Import!I25755","v":"Select"},{"$f":"Import!I25905","v":"Select"},{"$f":"Import!I26055","v":"Select"},{"$f":"Import!I26205","v":0},{"$f":"Import!I26355","v":0},{"$f":"Import!I26505","v":0},{"$f":"Import!I26655","v":0},{"$f":"Import!I26805","v":0}]
[55,{"$f":"Import!I25756","v":"Select"},{"$f":"Import!I25906","v":"Select"},{"$f":"Import!I26056","v":"Select"},{"$f":"Import!I26206","v":0},{"$f":"Import!I26356","v":0},{"$f":"Import!I26506","v":0},{"$f":"Import!I26656","v":0},{"$f":"Import!I26806","v":0}]
[56,{"$f":"Import!I25757","v":"Select"},{"$f":"Import!I25907","v":"Select"},{"$f":"Import!I26057","v":"Select"},{"$f":"Import!I26207","v":0},{"$f":"Import!I26357","v":0},{"$f":"Import!I26507","v":0},{"$f":"Import!I26657","v":0},{"$f":"Import!I26807","v":0}]
[57,{"$f":"Import!I25758","v":"Select"},{"$f":"Import!I25908","v":"Select"},{"$f":"Import!I26058","v":"Select"},{"$f":"Import!I26208","v":0},{"$f":"Import!I26358","v":0},{"$f":"Import!I26508","v":0},{"$f":"Import!I26658","v":0},{"$f":"Import!I26808","v":0}]
[58,{"$f":"Import!I25759","v":"Select"},{"$f":"Import!I25909","v":"Select"},{"$f":"Import!I26059","v":"Select"},{"$f":"Import!I26209","v":0},{"$f":"Import!I26359","v":0},{"$f":"Import!I26509","v":0},{"$f":"Import!I26659","v":0},{"$f":"Import!I26809","v":0}]
[59,{"$f":"Import!I25760","v":"Select"},{"$f":"Import!I25910","v":"Select"},{"$f":"Import!I26060","v":"Select"},{"$f":"Import!I26210","v":0},{"$f":"Import!I26360","v":0},{"$f":"Import!I26510","v":0},{"$f":"Import!I26660","v":0},{"$f":"Import!I26810","v":0}]
[60,{"$f":"Import!I25761","v":"Select"},{"$f":"Import!I25911","v":"Select"},{"$f":"Import!I26061","v":"Select"},{"$f":"Import!I26211","v":0},{"$f":"Import!I26361","v":0},{"$f":"Import!I26511","v":0},{"$f":"Import!I26661","v":0},{"$f":"Import!I26811","v":0}]
[61,{"$f":"Import!I25762","v":"Select"},{"$f":"Import!I25912","v":"Select"},{"$f":"Import!I26062","v":"Select"},{"$f":"Import!I26212","v":0},{"$f":"Import!I26362","v":0},{"$f":"Import!I26512","v":0},{"$f":"Import!I26662","v":0},{"$f":"Import!I26812","v":0}]
[62,{"$f":"Import!I25763","v":"Select"},{"$f":"Import!I25913","v":"Select"},{"$f":"Import!I26063","v":"Select"},{"$f":"Import!I26213","v":0},{"$f":"Import!I26363","v":0},{"$f":"Import!I26513","v":0},{"$f":"Import!I26663","v":0},{"$f":"Import!I26813","v":0}]
[63,{"$f":"Import!I25764","v":"Select"},{"$f":"Import!I25914","v":"Select"},{"$f":"Import!I26064","v":"Select"},{"$f":"Import!I26214","v":0},{"$f":"Import!I26364","v":0},{"$f":"Import!I26514","v":0},{"$f":"Import!I26664","v":0},{"$f":"Import!I26814","v":0}]
[64,{"$f":"Import!I25765","v":"Select"},{"$f":"Import!I25915","v":"Select"},{"$f":"Import!I26065","v":"Select"},{"$f":"Import!I26215","v":0},{"$f":"Import!I26365","v":0},{"$f":"Import!I26515","v":0},{"$f":"Import!I26665","v":0},{"$f":"Import!I26815","v":0}]
[65,{"$f":"Import!I25766","v":"Select"},{"$f":"Import!I25916","v":"Select"},{"$f":"Import!I26066","v":"Select"},{"$f":"Import!I26216","v":0},{"$f":"Import!I26366","v":0},{"$f":"Import!I26516","v":0},{"$f":"Import!I26666","v":0},{"$f":"Import!I26816","v":0}]
[66,{"$f":"Import!I25767","v":"Select"},{"$f":"Import!I25917","v":"Select"},{"$f":"Import!I26067","v":"Select"},{"$f":"Import!I26217","v":0},{"$f":"Import!I26367","v":0},{"$f":"Import!I26517","v":0},{"$f":"Import!I26667","v":0},{"$f":"Import!I26817","v":0}]
[{"$f":"A900+1","v":67},{"$f":"Import!I25768","v":"Select"},{"$f":"Import!I25918","v":"Select"},{"$f":"Import!I26068","v":"Select"},{"$f":"Import!I26218","v":0},{"$f":"Import!I26368","v":0},{"$f":"Import!I26518","v":0},{"$f":"Import!I26668","v":0},{"$f":"Import!I26818","v":0}]
[68,{"$f":"Import!I25769","v":"Select"},{"$f":"Import!I25919","v":"Select"},{"$f":"Import!I26069","v":"Select"},{"$f":"Import!I26219","v":0},{"$f":"Import!I26369","v":0},{"$f":"Import!I26519","v":0},{"$f":"Import!I26669","v":0},{"$f":"Import!I26819","v":0}]
[69,{"$f":"Import!I25770","v":"Select"},{"$f":"Import!I25920","v":"Select"},{"$f":"Import!I26070","v":"Select"},{"$f":"Import!I26220","v":0},{"$f":"Import!I26370","v":0},{"$f":"Import!I26520","v":0},{"$f":"Import!I26670","v":0},{"$f":"Import!I26820","v":0}]
[70,{"$f":"Import!I25771","v":"Select"},{"$f":"Import!I25921","v":"Select"},{"$f":"Import!I26071","v":"Select"},{"$f":"Import!I26221","v":0},{"$f":"Import!I26371","v":0},{"$f":"Import!I26521","v":0},{"$f":"Import!I26671","v":0},{"$f":"Import!I26821","v":0}]
[71,{"$f":"Import!I25772","v":"Select"},{"$f":"Import!I25922","v":"Select"},{"$f":"Import!I26072","v":"Select"},{"$f":"Import!I26222","v":0},{"$f":"Import!I26372","v":0},{"$f":"Import!I26522","v":0},{"$f":"Import!I26672","v":0},{"$f":"Import!I26822","v":0}]
[72,{"$f":"Import!I25773","v":"Select"},{"$f":"Import!I25923","v":"Select"},{"$f":"Import!I26073","v":"Select"},{"$f":"Import!I26223","v":0},{"$f":"Import!I26373","v":0},{"$f":"Import!I26523","v":0},{"$f":"Import!I26673","v":0},{"$f":"Import!I26823","v":0}]
[73,{"$f":"Import!I25774","v":"Select"},{"$f":"Import!I25924","v":"Select"},{"$f":"Import!I26074","v":"Select"},{"$f":"Import!I26224","v":0},{"$f":"Import!I26374","v":0},{"$f":"Import!I26524","v":0},{"$f":"Import!I26674","v":0},{"$f":"Import!I26824","v":0}]
[74,{"$f":"Import!I25775","v":"Select"},{"$f":"Import!I25925","v":"Select"},{"$f":"Import!I26075","v":"Select"},{"$f":"Import!I26225","v":0},{"$f":"Import!I26375","v":0},{"$f":"Import!I26525","v":0},{"$f":"Import!I26675","v":0},{"$f":"Import!I26825","v":0}]
[75,{"$f":"Import!I25776","v":"Select"},{"$f":"Import!I25926","v":"Select"},{"$f":"Import!I26076","v":"Select"},{"$f":"Import!I26226","v":0},{"$f":"Import!I26376","v":0},{"$f":"Import!I26526","v":0},{"$f":"Import!I26676","v":0},{"$f":"Import!I26826","v":0}]
[76,{"$f":"Import!I25777","v":"Select"},{"$f":"Import!I25927","v":"Select"},{"$f":"Import!I26077","v":"Select"},{"$f":"Import!I26227","v":0},{"$f":"Import!I26377","v":0},{"$f":"Import!I26527","v":0},{"$f":"Import!I26677","v":0},{"$f":"Import!I26827","v":0}]
[77,{"$f":"Import!I25778","v":"Select"},{"$f":"Import!I25928","v":"Select"},{"$f":"Import!I26078","v":"Select"},{"$f":"Import!I26228","v":0},{"$f":"Import!I26378","v":0},{"$f":"Import!I26528","v":0},{"$f":"Import!I26678","v":0},{"$f":"Import!I26828","v":0}]
[78,{"$f":"Import!I25779","v":"Select"},{"$f":"Import!I25929","v":"Select"},{"$f":"Import!I26079","v":"Select"},{"$f":"Import!I26229","v":0},{"$f":"Import!I26379","v":0},{"$f":"Import!I26529","v":0},{"$f":"Import!I26679","v":0},{"$f":"Import!I26829","v":0}]
[79,{"$f":"Import!I25780","v":"Select"},{"$f":"Import!I25930","v":"Select"},{"$f":"Import!I26080","v":"Select"},{"$f":"Import!I26230","v":0},{"$f":"Import!I26380","v":0},{"$f":"Import!I26530","v":0},{"$f":"Import!I26680","v":0},{"$f":"Import!I26830","v":0}]
[80,{"$f":"Import!I25781","v":"Select"},{"$f":"Import!I25931","v":"Select"},{"$f":"Import!I26081","v":"Select"},{"$f":"Import!I26231","v":0},{"$f":"Import!I26381","v":0},{"$f":"Import!I26531","v":0},{"$f":"Import!I26681","v":0},{"$f":"Import!I26831","v":0}]
[81,{"$f":"Import!I25782","v":"Select"},{"$f":"Import!I25932","v":"Select"},{"$f":"Import!I26082","v":"Select"},{"$f":"Import!I26232","v":0},{"$f":"Import!I26382","v":0},{"$f":"Import!I26532","v":0},{"$f":"Import!I26682","v":0},{"$f":"Import!I26832","v":0}]
[82,{"$f":"Import!I25783","v":"Select"},{"$f":"Import!I25933","v":"Select"},{"$f":"Import!I26083","v":"Select"},{"$f":"Import!I26233","v":0},{"$f":"Import!I26383","v":0},{"$f":"Import!I26533","v":0},{"$f":"Import!I26683","v":0},{"$f":"Import!I26833","v":0}]
[83,{"$f":"Import!I25784","v":"Select"},{"$f":"Import!I25934","v":"Select"},{"$f":"Import!I26084","v":"Select"},{"$f":"Import!I26234","v":0},{"$f":"Import!I26384","v":0},{"$f":"Import!I26534","v":0},{"$f":"Import!I26684","v":0},{"$f":"Import!I26834","v":0}]
[84,{"$f":"Import!I25785","v":"Select"},{"$f":"Import!I25935","v":"Select"},{"$f":"Import!I26085","v":"Select"},{"$f":"Import!I26235","v":0},{"$f":"Import!I26385","v":0},{"$f":"Import!I26535","v":0},{"$f":"Import!I26685","v":0},{"$f":"Import!I26835","v":0}]
[85,{"$f":"Import!I25786","v":"Select"},{"$f":"Import!I25936","v":"Select"},{"$f":"Import!I26086","v":"Select"},{"$f":"Import!I26236","v":0},{"$f":"Import!I26386","v":0},{"$f":"Import!I26536","v":0},{"$f":"Import!I26686","v":0},{"$f":"Import!I26836","v":0}]
[86,{"$f":"Import!I25787","v":"Select"},{"$f":"Import!I25937","v":"Select"},{"$f":"Import!I26087","v":"Select"},{"$f":"Import!I26237","v":0},{"$f":"Import!I26387","v":0},{"$f":"Import!I26537","v":0},{"$f":"Import!I26687","v":0},{"$f":"Import!I26837","v":0}]
[87,{"$f":"Import!I25788","v":"Select"},{"$f":"Import!I25938","v":"Select"},{"$f":"Import!I26088","v":"Select"},{"$f":"Import!I26238","v":0},{"$f":"Import!I26388","v":0},{"$f":"Import!I26538","v":0},{"$f":"Import!I26688","v":0},{"$f":"Import!I26838","v":0}]
[88,{"$f":"Import!I25789","v":"Select"},{"$f":"Import!I25939","v":"Select"},{"$f":"Import!I26089","v":"Select"},{"$f":"Import!I26239","v":0},{"$f":"Import!I26389","v":0},{"$f":"Import!I26539","v":0},{"$f":"Import!I26689","v":0},{"$f":"Import!I26839","v":0}]
[89,{"$f":"Import!I25790","v":"Select"},{"$f":"Import!I25940","v":"Select"},{"$f":"Import!I26090","v":"Select"},{"$f":"Import!I26240","v":0},{"$f":"Import!I26390","v":0},{"$f":"Import!I26540","v":0},{"$f":"Import!I26690","v":0},{"$f":"Import!I26840","v":0}]
[90,{"$f":"Import!I25791","v":"Select"},{"$f":"Import!I25941","v":"Select"},{"$f":"Import!I26091","v":"Select"},{"$f":"Import!I26241","v":0},{"$f":"Import!I26391","v":0},{"$f":"Import!I26541","v":0},{"$f":"Import!I26691","v":0},{"$f":"Import!I26841","v":0}]
[91,{"$f":"Import!I25792","v":"Select"},{"$f":"Import!I25942","v":"Select"},{"$f":"Import!I26092","v":"Select"},{"$f":"Import!I26242","v":0},{"$f":"Import!I26392","v":0},{"$f":"Import!I26542","v":0},{"$f":"Import!I26692","v":0},{"$f":"Import!I26842","v":0}]
[92,{"$f":"Import!I25793","v":"Select"},{"$f":"Import!I25943","v":"Select"},{"$f":"Import!I26093","v":"Select"},{"$f":"Import!I26243","v":0},{"$f":"Import!I26393","v":0},{"$f":"Import!I26543","v":0},{"$f":"Import!I26693","v":0},{"$f":"Import!I26843","v":0}]
[93,{"$f":"Import!I25794","v":"Select"},{"$f":"Import!I25944","v":"Select"},{"$f":"Import!I26094","v":"Select"},{"$f":"Import!I26244","v":0},{"$f":"Import!I26394","v":0},{"$f":"Import!I26544","v":0},{"$f":"Import!I26694","v":0},{"$f":"Import!I26844","v":0}]
[94,{"$f":"Import!I25795","v":"Select"},{"$f":"Import!I25945","v":"Select"},{"$f":"Import!I26095","v":"Select"},{"$f":"Import!I26245","v":0},{"$f":"Import!I26395","v":0},{"$f":"Import!I26545","v":0},{"$f":"Import!I26695","v":0},{"$f":"Import!I26845","v":0}]
[95,{"$f":"Import!I25796","v":"Select"},{"$f":"Import!I25946","v":"Select"},{"$f":"Import!I26096","v":"Select"},{"$f":"Import!I26246","v":0},{"$f":"Import!I26396","v":0},{"$f":"Import!I26546","v":0},{"$f":"Import!I26696","v":0},{"$f":"Import!I26846","v":0}]
[96,{"$f":"Import!I25797","v":"Select"},{"$f":"Import!I25947","v":"Select"},{"$f":"Import!I26097","v":"Select"},{"$f":"Import!I26247","v":0},{"$f":"Import!I26397","v":0},{"$f":"Import!I26547","v":0},{"$f":"Import!I26697","v":0},{"$f":"Import!I26847","v":0}]
[97,{"$f":"Import!I25798","v":"Select"},{"$f":"Import!I25948","v":"Select"},{"$f":"Import!I26098","v":"Select"},{"$f":"Import!I26248","v":0},{"$f":"Import!I26398","v":0},{"$f":"Import!I26548","v":0},{"$f":"Import!I26698","v":0},{"$f":"Import!I26848","v":0}]
[98,{"$f":"Import!I25799","v":"Select"},{"$f":"Import!I25949","v":"Select"},{"$f":"Import!I26099","v":"Select"},{"$f":"Import!I26249","v":0},{"$f":"Import!I26399","v":0},{"$f":"Import!I26549","v":0},{"$f":"Import!I26699","v":0},{"$f":"Import!I26849","v":0}]
[99,{"$f":"Import!I25800","v":"Select"},{"$f":"Import!I25950","v":"Select"},{"$f":"Import!I26100","v":"Select"},{"$f":"Import!I26250","v":0},{"$f":"Import!I26400","v":0},{"$f":"Import!I26550","v":0},{"$f":"Import!I26700","v":0},{"$f":"Import!I26850","v":0}]
[100,{"$f":"Import!I25801","v":"Select"},{"$f":"Import!I25951","v":"Select"},{"$f":"Import!I26101","v":"Select"},{"$f":"Import!I26251","v":0},{"$f":"Import!I26401","v":0},{"$f":"Import!I26551","v":0},{"$f":"Import!I26701","v":0},{"$f":"Import!I26851","v":0}]
[101,{"$f":"Import!I25802","v":"Select"},{"$f":"Import!I25952","v":"Select"},{"$f":"Import!I26102","v":"Select"},{"$f":"Import!I26252","v":0},{"$f":"Import!I26402","v":0},{"$f":"Import!I26552","v":0},{"$f":"Import!I26702","v":0},{"$f":"Import!I26852","v":0}]
[102,{"$f":"Import!I25803","v":"Select"},{"$f":"Import!I25953","v":"Select"},{"$f":"Import!I26103","v":"Select"},{"$f":"Import!I26253","v":0},{"$f":"Import!I26403","v":0},{"$f":"Import!I26553","v":0},{"$f":"Import!I26703","v":0},{"$f":"Import!I26853","v":0}]
[103,{"$f":"Import!I25804","v":"Select"},{"$f":"Import!I25954","v":"Select"},{"$f":"Import!I26104","v":"Select"},{"$f":"Import!I26254","v":0},{"$f":"Import!I26404","v":0},{"$f":"Import!I26554","v":0},{"$f":"Import!I26704","v":0},{"$f":"Import!I26854","v":0}]
[104,{"$f":"Import!I25805","v":"Select"},{"$f":"Import!I25955","v":"Select"},{"$f":"Import!I26105","v":"Select"},{"$f":"Import!I26255","v":0},{"$f":"Import!I26405","v":0},{"$f":"Import!I26555","v":0},{"$f":"Import!I26705","v":0},{"$f":"Import!I26855","v":0}]
[105,{"$f":"Import!I25806","v":"Select"},{"$f":"Import!I25956","v":"Select"},{"$f":"Import!I26106","v":"Select"},{"$f":"Import!I26256","v":0},{"$f":"Import!I26406","v":0},{"$f":"Import!I26556","v":0},{"$f":"Import!I26706","v":0},{"$f":"Import!I26856","v":0}]
[106,{"$f":"Import!I25807","v":"Select"},{"$f":"Import!I25957","v":"Select"},{"$f":"Import!I26107","v":"Select"},{"$f":"Import!I26257","v":0},{"$f":"Import!I26407","v":0},{"$f":"Import!I26557","v":0},{"$f":"Import!I26707","v":0},{"$f":"Import!I26857","v":0}]
[107,{"$f":"Import!I25808","v":"Select"},{"$f":"Import!I25958","v":"Select"},{"$f":"Import!I26108","v":"Select"},{"$f":"Import!I26258","v":0},{"$f":"Import!I26408","v":0},{"$f":"Import!I26558","v":0},{"$f":"Import!I26708","v":0},{"$f":"Import!I26858","v":0}]
[108,{"$f":"Import!I25809","v":"Select"},{"$f":"Import!I25959","v":"Select"},{"$f":"Import!I26109","v":"Select"},{"$f":"Import!I26259","v":0},{"$f":"Import!I26409","v":0},{"$f":"Import!I26559","v":0},{"$f":"Import!I26709","v":0},{"$f":"Import!I26859","v":0}]
[109,{"$f":"Import!I25810","v":"Select"},{"$f":"Import!I25960","v":"Select"},{"$f":"Import!I26110","v":"Select"},{"$f":"Import!I26260","v":0},{"$f":"Import!I26410","v":0},{"$f":"Import!I26560","v":0},{"$f":"Import!I26710","v":0},{"$f":"Import!I26860","v":0}]
[110,{"$f":"Import!I25811","v":"Select"},{"$f":"Import!I25961","v":"Select"},{"$f":"Import!I26111","v":"Select"},{"$f":"Import!I26261","v":0},{"$f":"Import!I26411","v":0},{"$f":"Import!I26561","v":0},{"$f":"Import!I26711","v":0},{"$f":"Import!I26861","v":0}]
[111,{"$f":"Import!I25812","v":"Select"},{"$f":"Import!I25962","v":"Select"},{"$f":"Import!I26112","v":"Select"},{"$f":"Import!I26262","v":0},{"$f":"Import!I26412","v":0},{"$f":"Import!I26562","v":0},{"$f":"Import!I26712","v":0},{"$f":"Import!I26862","v":0}]
[112,{"$f":"Import!I25813","v":"Select"},{"$f":"Import!I25963","v":"Select"},{"$f":"Import!I26113","v":"Select"},{"$f":"Import!I26263","v":0},{"$f":"Import!I26413","v":0},{"$f":"Import!I26563","v":0},{"$f":"Import!I26713","v":0},{"$f":"Import!I26863","v":0}]
[113,{"$f":"Import!I25814","v":"Select"},{"$f":"Import!I25964","v":"Select"},{"$f":"Import!I26114","v":"Select"},{"$f":"Import!I26264","v":0},{"$f":"Import!I26414","v":0},{"$f":"Import!I26564","v":0},{"$f":"Import!I26714","v":0},{"$f":"Import!I26864","v":0}]
[114,{"$f":"Import!I25815","v":"Select"},{"$f":"Import!I25965","v":"Select"},{"$f":"Import!I26115","v":"Select"},{"$f":"Import!I26265","v":0},{"$f":"Import!I26415","v":0},{"$f":"Import!I26565","v":0},{"$f":"Import!I26715","v":0},{"$f":"Import!I26865","v":0}]
[115,{"$f":"Import!I25816","v":"Select"},{"$f":"Import!I25966","v":"Select"},{"$f":"Import!I26116","v":"Select"},{"$f":"Import!I26266","v":0},{"$f":"Import!I26416","v":0},{"$f":"Import!I26566","v":0},{"$f":"Import!I26716","v":0},{"$f":"Import!I26866","v":0}]
[116,{"$f":"Import!I25817","v":"Select"},{"$f":"Import!I25967","v":"Select"},{"$f":"Import!I26117","v":"Select"},{"$f":"Import!I26267","v":0},{"$f":"Import!I26417","v":0},{"$f":"Import!I26567","v":0},{"$f":"Import!I26717","v":0},{"$f":"Import!I26867","v":0}]
[117,{"$f":"Import!I25818","v":"Select"},{"$f":"Import!I25968","v":"Select"},{"$f":"Import!I26118","v":"Select"},{"$f":"Import!I26268","v":0},{"$f":"Import!I26418","v":0},{"$f":"Import!I26568","v":0},{"$f":"Import!I26718","v":0},{"$f":"Import!I26868","v":0}]
[118,{"$f":"Import!I25819","v":"Select"},{"$f":"Import!I25969","v":"Select"},{"$f":"Import!I26119","v":"Select"},{"$f":"Import!I26269","v":0},{"$f":"Import!I26419","v":0},{"$f":"Import!I26569","v":0},{"$f":"Import!I26719","v":0},{"$f":"Import!I26869","v":0}]
[119,{"$f":"Import!I25820","v":"Select"},{"$f":"Import!I25970","v":"Select"},{"$f":"Import!I26120","v":"Select"},{"$f":"Import!I26270","v":0},{"$f":"Import!I26420","v":0},{"$f":"Import!I26570","v":0},{"$f":"Import!I26720","v":0},{"$f":"Import!I26870","v":0}]
[120,{"$f":"Import!I25821","v":"Select"},{"$f":"Import!I25971","v":"Select"},{"$f":"Import!I26121","v":"Select"},{"$f":"Import!I26271","v":0},{"$f":"Import!I26421","v":0},{"$f":"Import!I26571","v":0},{"$f":"Import!I26721","v":0},{"$f":"Import!I26871","v":0}]
[121,{"$f":"Import!I25822","v":"Select"},{"$f":"Import!I25972","v":"Select"},{"$f":"Import!I26122","v":"Select"},{"$f":"Import!I26272","v":0},{"$f":"Import!I26422","v":0},{"$f":"Import!I26572","v":0},{"$f":"Import!I26722","v":0},{"$f":"Import!I26872","v":0}]
[122,{"$f":"Import!I25823","v":"Select"},{"$f":"Import!I25973","v":"Select"},{"$f":"Import!I26123","v":"Select"},{"$f":"Import!I26273","v":0},{"$f":"Import!I26423","v":0},{"$f":"Import!I26573","v":0},{"$f":"Import!I26723","v":0},{"$f":"Import!I26873","v":0}]
[123,{"$f":"Import!I25824","v":"Select"},{"$f":"Import!I25974","v":"Select"},{"$f":"Import!I26124","v":"Select"},{"$f":"Import!I26274","v":0},{"$f":"Import!I26424","v":0},{"$f":"Import!I26574","v":0},{"$f":"Import!I26724","v":0},{"$f":"Import!I26874","v":0}]
[124,{"$f":"Import!I25825","v":"Select"},{"$f":"Import!I25975","v":"Select"},{"$f":"Import!I26125","v":"Select"},{"$f":"Import!I26275","v":0},{"$f":"Import!I26425","v":0},{"$f":"Import!I26575","v":0},{"$f":"Import!I26725","v":0},{"$f":"Import!I26875","v":0}]
[125,{"$f":"Import!I25826","v":"Select"},{"$f":"Import!I25976","v":"Select"},{"$f":"Import!I26126","v":"Select"},{"$f":"Import!I26276","v":0},{"$f":"Import!I26426","v":0},{"$f":"Import!I26576","v":0},{"$f":"Import!I26726","v":0},{"$f":"Import!I26876","v":0}]
[126,{"$f":"Import!I25827","v":"Select"},{"$f":"Import!I25977","v":"Select"},{"$f":"Import!I26127","v":"Select"},{"$f":"Import!I26277","v":0},{"$f":"Import!I26427","v":0},{"$f":"Import!I26577","v":0},{"$f":"Import!I26727","v":0},{"$f":"Import!I26877","v":0}]
[127,{"$f":"Import!I25828","v":"Select"},{"$f":"Import!I25978","v":"Select"},{"$f":"Import!I26128","v":"Select"},{"$f":"Import!I26278","v":0},{"$f":"Import!I26428","v":0},{"$f":"Import!I26578","v":0},{"$f":"Import!I26728","v":0},{"$f":"Import!I26878","v":0}]
[128,{"$f":"Import!I25829","v":"Select"},{"$f":"Import!I25979","v":"Select"},{"$f":"Import!I26129","v":"Select"},{"$f":"Import!I26279","v":0},{"$f":"Import!I26429","v":0},{"$f":"Import!I26579","v":0},{"$f":"Import!I26729","v":0},{"$f":"Import!I26879","v":0}]
[129,{"$f":"Import!I25830","v":"Select"},{"$f":"Import!I25980","v":"Select"},{"$f":"Import!I26130","v":"Select"},{"$f":"Import!I26280","v":0},{"$f":"Import!I26430","v":0},{"$f":"Import!I26580","v":0},{"$f":"Import!I26730","v":0},{"$f":"Import!I26880","v":0}]
[130,{"$f":"Import!I25831","v":"Select"},{"$f":"Import!I25981","v":"Select"},{"$f":"Import!I26131","v":"Select"},{"$f":"Import!I26281","v":0},{"$f":"Import!I26431","v":0},{"$f":"Import!I26581","v":0},{"$f":"Import!I26731","v":0},{"$f":"Import!I26881","v":0}]
[{"$f":"A964+1","v":131},{"$f":"Import!I25832","v":"Select"},{"$f":"Import!I25982","v":"Select"},{"$f":"Import!I26132","v":"Select"},{"$f":"Import!I26282","v":0},{"$f":"Import!I26432","v":0},{"$f":"Import!I26582","v":0},{"$f":"Import!I26732","v":0},{"$f":"Import!I26882","v":0}]
[132,{"$f":"Import!I25833","v":"Select"},{"$f":"Import!I25983","v":"Select"},{"$f":"Import!I26133","v":"Select"},{"$f":"Import!I26283","v":0},{"$f":"Import!I26433","v":0},{"$f":"Import!I26583","v":0},{"$f":"Import!I26733","v":0},{"$f":"Import!I26883","v":0}]
[133,{"$f":"Import!I25834","v":"Select"},{"$f":"Import!I25984","v":"Select"},{"$f":"Import!I26134","v":"Select"},{"$f":"Import!I26284","v":0},{"$f":"Import!I26434","v":0},{"$f":"Import!I26584","v":0},{"$f":"Import!I26734","v":0},{"$f":"Import!I26884","v":0}]
[134,{"$f":"Import!I25835","v":"Select"},{"$f":"Import!I25985","v":"Select"},{"$f":"Import!I26135","v":"Select"},{"$f":"Import!I26285","v":0},{"$f":"Import!I26435","v":0},{"$f":"Import!I26585","v":0},{"$f":"Import!I26735","v":0},{"$f":"Import!I26885","v":0}]
[135,{"$f":"Import!I25836","v":"Select"},{"$f":"Import!I25986","v":"Select"},{"$f":"Import!I26136","v":"Select"},{"$f":"Import!I26286","v":0},{"$f":"Import!I26436","v":0},{"$f":"Import!I26586","v":0},{"$f":"Import!I26736","v":0},{"$f":"Import!I26886","v":0}]
[136,{"$f":"Import!I25837","v":"Select"},{"$f":"Import!I25987","v":"Select"},{"$f":"Import!I26137","v":"Select"},{"$f":"Import!I26287","v":0},{"$f":"Import!I26437","v":0},{"$f":"Import!I26587","v":0},{"$f":"Import!I26737","v":0},{"$f":"Import!I26887","v":0}]
[137,{"$f":"Import!I25838","v":"Select"},{"$f":"Import!I25988","v":"Select"},{"$f":"Import!I26138","v":"Select"},{"$f":"Import!I26288","v":0},{"$f":"Import!I26438","v":0},{"$f":"Import!I26588","v":0},{"$f":"Import!I26738","v":0},{"$f":"Import!I26888","v":0}]
[138,{"$f":"Import!I25839","v":"Select"},{"$f":"Import!I25989","v":"Select"},{"$f":"Import!I26139","v":"Select"},{"$f":"Import!I26289","v":0},{"$f":"Import!I26439","v":0},{"$f":"Import!I26589","v":0},{"$f":"Import!I26739","v":0},{"$f":"Import!I26889","v":0}]
[139,{"$f":"Import!I25840","v":"Select"},{"$f":"Import!I25990","v":"Select"},{"$f":"Import!I26140","v":"Select"},{"$f":"Import!I26290","v":0},{"$f":"Import!I26440","v":0},{"$f":"Import!I26590","v":0},{"$f":"Import!I26740","v":0},{"$f":"Import!I26890","v":0}]
[140,{"$f":"Import!I25841","v":"Select"},{"$f":"Import!I25991","v":"Select"},{"$f":"Import!I26141","v":"Select"},{"$f":"Import!I26291","v":0},{"$f":"Import!I26441","v":0},{"$f":"Import!I26591","v":0},{"$f":"Import!I26741","v":0},{"$f":"Import!I26891","v":0}]
[141,{"$f":"Import!I25842","v":"Select"},{"$f":"Import!I25992","v":"Select"},{"$f":"Import!I26142","v":"Select"},{"$f":"Import!I26292","v":0},{"$f":"Import!I26442","v":0},{"$f":"Import!I26592","v":0},{"$f":"Import!I26742","v":0},{"$f":"Import!I26892","v":0}]
[142,{"$f":"Import!I25843","v":"Select"},{"$f":"Import!I25993","v":"Select"},{"$f":"Import!I26143","v":"Select"},{"$f":"Import!I26293","v":0},{"$f":"Import!I26443","v":0},{"$f":"Import!I26593","v":0},{"$f":"Import!I26743","v":0},{"$f":"Import!I26893","v":0}]
[143,{"$f":"Import!I25844","v":"Select"},{"$f":"Import!I25994","v":"Select"},{"$f":"Import!I26144","v":"Select"},{"$f":"Import!I26294","v":0},{"$f":"Import!I26444","v":0},{"$f":"Import!I26594","v":0},{"$f":"Import!I26744","v":0},{"$f":"Import!I26894","v":0}]
[144,{"$f":"Import!I25845","v":"Select"},{"$f":"Import!I25995","v":"Select"},{"$f":"Import!I26145","v":"Select"},{"$f":"Import!I26295","v":0},{"$f":"Import!I26445","v":0},{"$f":"Import!I26595","v":0},{"$f":"Import!I26745","v":0},{"$f":"Import!I26895","v":0}]
[145,{"$f":"Import!I25846","v":"Select"},{"$f":"Import!I25996","v":"Select"},{"$f":"Import!I26146","v":"Select"},{"$f":"Import!I26296","v":0},{"$f":"Import!I26446","v":0},{"$f":"Import!I26596","v":0},{"$f":"Import!I26746","v":0},{"$f":"Import!I26896","v":0}]
[146,{"$f":"Import!I25847","v":"Select"},{"$f":"Import!I25997","v":"Select"},{"$f":"Import!I26147","v":"Select"},{"$f":"Import!I26297","v":0},{"$f":"Import!I26447","v":0},{"$f":"Import!I26597","v":0},{"$f":"Import!I26747","v":0},{"$f":"Import!I26897","v":0}]
[147,{"$f":"Import!I25848","v":"Select"},{"$f":"Import!I25998","v":"Select"},{"$f":"Import!I26148","v":"Select"},{"$f":"Import!I26298","v":0},{"$f":"Import!I26448","v":0},{"$f":"Import!I26598","v":0},{"$f":"Import!I26748","v":0},{"$f":"Import!I26898","v":0}]
[148,{"$f":"Import!I25849","v":"Select"},{"$f":"Import!I25999","v":"Select"},{"$f":"Import!I26149","v":"Select"},{"$f":"Import!I26299","v":0},{"$f":"Import!I26449","v":0},{"$f":"Import!I26599","v":0},{"$f":"Import!I26749","v":0},{"$f":"Import!I26899","v":0}]
[149,{"$f":"Import!I25850","v":"Select"},{"$f":"Import!I26000","v":"Select"},{"$f":"Import!I26150","v":"Select"},{"$f":"Import!I26300","v":0},{"$f":"Import!I26450","v":0},{"$f":"Import!I26600","v":0},{"$f":"Import!I26750","v":0},{"$f":"Import!I26900","v":0}]
[150,{"$f":"Import!I25851","v":"Select"},{"$f":"Import!I26001","v":"Select"},{"$f":"Import!I26151","v":"Select"},{"$f":"Import!I26301","v":0},{"$f":"Import!I26451","v":0},{"$f":"Import!I26601","v":0},{"$f":"Import!I26751","v":0},{"$f":"Import!I26901","v":0}]
[]
[null,"Total Asset-Backed and Structured Securities",null,null,{"$f":"SUM(E835:E984)","v":0},{"$f":"SUM(F835:F984)","v":0},{"$f":"IFERROR(SUMPRODUCT(G835:G984,$F835:$F984)/SUM($F835:$F984),0)","v":0},{"$f":"IFERROR(SUMPRODUCT(H835:H984,$F835:$F984)/SUM($F835:$F984),0)","v":0}]
[]
[null,"(D) LOANS"]
[]
[null,null,"Enter # of Asset Types",{"$f":"Import!I26902","v":0}]
[null,null,null,null,null,{"$f":"YEAR($C$3)","v":2023},2023,"Weighted"]
[null,"Asset Type","Currency","Country","BSCR Rating","Nominal Amount","Fair Value","Average YTM","Effective Duration","Comments"]
[1,{"$f":"Import!I26903","v":"Select"},{"$f":"Import!I27003","v":"Select"},{"$f":"Import!I27103","v":"Select"},{"$f":"Import!I27203","v":"Select"},{"$f":"Import!I27303","v":0},{"$f":"Import!I27403","v":0},{"$f":"Import!I27503","v":0},{"$f":"Import!I27603","v":0},{"$f":"Import!I27703","v":0}]
[{"$f":"A993+1","v":2},{"$f":"Import!I26904","v":"Select"},{"$f":"Import!I27004","v":"Select"},{"$f":"Import!I27104","v":"Select"},{"$f":"Import!I27204","v":"Select"},{"$f":"Import!I27304","v":0},{"$f":"Import!I27404","v":0},{"$f":"Import!I27504","v":0},{"$f":"Import!I27604","v":0},{"$f":"Import!I27704","v":0}]
[{"$f":"A994+1","v":3},{"$f":"Import!I26905","v":"Select"},{"$f":"Import!I27005","v":"Select"},{"$f":"Import!I27105","v":"Select"},{"$f":"Import!I27205","v":"Select"},{"$f":"Import!I27305","v":0},{"$f":"Import!I27405","v":0},{"$f":"Import!I27505","v":0},{"$f":"Import!I27605","v":0},{"$f":"Import!I27705","v":0}]
[4,{"$f":"Import!I26906","v":"Select"},{"$f":"Import!I27006","v":"Select"},{"$f":"Import!I27106","v":"Select"},{"$f":"Import!I27206","v":"Select"},{"$f":"Import!I27306","v":0},{"$f":"Import!I27406","v":0},{"$f":"Import!I27506","v":0},{"$f":"Import!I27606","v":0},{"$f":"Import!I27706","v":0}]
[5,{"$f":"Import!I26907","v":"Select"},{"$f":"Import!I27007","v":"Select"},{"$f":"Import!I27107","v":"Select"},{"$f":"Import!I27207","v":"Select"},{"$f":"Import!I27307","v":0},{"$f":"Import!I27407","v":0},{"$f":"Import!I27507","v":0},{"$f":"Import!I27607","v":0},{"$f":"Import!I27707","v":0}]
[6,{"$f":"Import!I26908","v":"Select"},{"$f":"Import!I27008","v":"Select"},{"$f":"Import!I27108","v":"Select"},{"$f":"Import!I27208","v":"Select"},{"$f":"Import!I27308","v":0},{"$f":"Import!I27408","v":0},{"$f":"Import!I27508","v":0},{"$f":"Import!I27608","v":0},{"$f":"Import!I27708","v":0}]
[7,{"$f":"Import!I26909","v":"Select"},{"$f":"Import!I27009","v":"Select"},{"$f":"Import!I27109","v":"Select"},{"$f":"Import!I27209","v":"Select"},{"$f":"Import!I27309","v":0},{"$f":"Import!I27409","v":0},{"$f":"Import!I27509","v":0},{"$f":"Import!I27609","v":0},{"$f":"Import!I27709","v":0}]
[8,{"$f":"Import!I26910","v":"Select"},{"$f":"Import!I27010","v":"Select"},{"$f":"Import!I27110","v":"Select"},{"$f":"Import!I27210","v":"Select"},{"$f":"Import!I27310","v":0},{"$f":"Import!I27410","v":0},{"$f":"Import!I27510","v":0},{"$f":"Import!I27610","v":0},{"$f":"Import!I27710","v":0}]
[9,{"$f":"Import!I26911","v":"Select"},{"$f":"Import!I27011","v":"Select"},{"$f":"Import!I27111","v":"Select"},{"$f":"Import!I27211","v":"Select"},{"$f":"Import!I27311","v":0},{"$f":"Import!I27411","v":0},{"$f":"Import!I27511","v":0},{"$f":"Import!I27611","v":0},{"$f":"Import!I27711","v":0}]
[10,{"$f":"Import!I26912","v":"Select"},{"$f":"Import!I27012","v":"Select"},{"$f":"Import!I27112","v":"Select"},{"$f":"Import!I27212","v":"Select"},{"$f":"Import!I27312","v":0},{"$f":"Import!I27412","v":0},{"$f":"Import!I27512","v":0},{"$f":"Import!I27612","v":0},{"$f":"Import!I27712","v":0}]
[11,{"$f":"Import!I26913","v":"Select"},{"$f":"Import!I27013","v":"Select"},{"$f":"Import!I27113","v":"Select"},{"$f":"Import!I27213","v":"Select"},{"$f":"Import!I27313","v":0},{"$f":"Import!I27413","v":0},{"$f":"Import!I27513","v":0},{"$f":"Import!I27613","v":0},{"$f":"Import!I27713","v":0}]
[12,{"$f":"Import!I26914","v":"Select"},{"$f":"Import!I27014","v":"Select"},{"$f":"Import!I27114","v":"Select"},{"$f":"Import!I27214","v":"Select"},{"$f":"Import!I27314","v":0},{"$f":"Import!I27414","v":0},{"$f":"Import!I27514","v":0},{"$f":"Import!I27614","v":0},{"$f":"Import!I27714","v":0}]
[13,{"$f":"Import!I26915","v":"Select"},{"$f":"Import!I27015","v":"Select"},{"$f":"Import!I27115","v":"Select"},{"$f":"Import!I27215","v":"Select"},{"$f":"Import!I27315","v":0},{"$f":"Import!I27415","v":0},{"$f":"Import!I27515","v":0},{"$f":"Import!I27615","v":0},{"$f":"Import!I27715","v":0}]
[14,{"$f":"Import!I26916","v":"Select"},{"$f":"Import!I27016","v":"Select"},{"$f":"Import!I27116","v":"Select"},{"$f":"Import!I27216","v":"Select"},{"$f":"Import!I27316","v":0},{"$f":"Import!I27416","v":0},{"$f":"Import!I27516","v":0},{"$f":"Import!I27616","v":0},{"$f":"Import!I27716","v":0}]
[15,{"$f":"Import!I26917","v":"Select"},{"$f":"Import!I27017","v":"Select"},{"$f":"Import!I27117","v":"Select"},{"$f":"Import!I27217","v":"Select"},{"$f":"Import!I27317","v":0},{"$f":"Import!I27417","v":0},{"$f":"Import!I27517","v":0},{"$f":"Import!I27617","v":0},{"$f":"Import!I27717","v":0}]
[16,{"$f":"Import!I26918","v":"Select"},{"$f":"Import!I27018","v":"Select"},{"$f":"Import!I27118","v":"Select"},{"$f":"Import!I27218","v":"Select"},{"$f":"Import!I27318","v":0},{"$f":"Import!I27418","v":0},{"$f":"Import!I27518","v":0},{"$f":"Import!I27618","v":0},{"$f":"Import!I27718","v":0}]
[17,{"$f":"Import!I26919","v":"Select"},{"$f":"Import!I27019","v":"Select"},{"$f":"Import!I27119","v":"Select"},{"$f":"Import!I27219","v":"Select"},{"$f":"Import!I27319","v":0},{"$f":"Import!I27419","v":0},{"$f":"Import!I27519","v":0},{"$f":"Import!I27619","v":0},{"$f":"Import!I27719","v":0}]
[18,{"$f":"Import!I26920","v":"Select"},{"$f":"Import!I27020","v":"Select"},{"$f":"Import!I27120","v":"Select"},{"$f":"Import!I27220","v":"Select"},{"$f":"Import!I27320","v":0},{"$f":"Import!I27420","v":0},{"$f":"Import!I27520","v":0},{"$f":"Import!I27620","v":0},{"$f":"Import!I27720","v":0}]
[19,{"$f":"Import!I26921","v":"Select"},{"$f":"Import!I27021","v":"Select"},{"$f":"Import!I27121","v":"Select"},{"$f":"Import!I27221","v":"Select"},{"$f":"Import!I27321","v":0},{"$f":"Import!I27421","v":0},{"$f":"Import!I27521","v":0},{"$f":"Import!I27621","v":0},{"$f":"Import!I27721","v":0}]
[20,{"$f":"Import!I26922","v":"Select"},{"$f":"Import!I27022","v":"Select"},{"$f":"Import!I27122","v":"Select"},{"$f":"Import!I27222","v":"Select"},{"$f":"Import!I27322","v":0},{"$f":"Import!I27422","v":0},{"$f":"Import!I27522","v":0},{"$f":"Import!I27622","v":0},{"$f":"Import!I27722","v":0}]
[21,{"$f":"Import!I26923","v":"Select"},{"$f":"Import!I27023","v":"Select"},{"$f":"Import!I27123","v":"Select"},{"$f":"Import!I27223","v":"Select"},{"$f":"Import!I27323","v":0},{"$f":"Import!I27423","v":0},{"$f":"Import!I27523","v":0},{"$f":"Import!I27623","v":0},{"$f":"Import!I27723","v":0}]
[22,{"$f":"Import!I26924","v":"Select"},{"$f":"Import!I27024","v":"Select"},{"$f":"Import!I27124","v":"Select"},{"$f":"Import!I27224","v":"Select"},{"$f":"Import!I27324","v":0},{"$f":"Import!I27424","v":0},{"$f":"Import!I27524","v":0},{"$f":"Import!I27624","v":0},{"$f":"Import!I27724","v":0}]
[23,{"$f":"Import!I26925","v":"Select"},{"$f":"Import!I27025","v":"Select"},{"$f":"Import!I27125","v":"Select"},{"$f":"Import!I27225","v":"Select"},{"$f":"Import!I27325","v":0},{"$f":"Import!I27425","v":0},{"$f":"Import!I27525","v":0},{"$f":"Import!I27625","v":0},{"$f":"Import!I27725","v":0}]
[24,{"$f":"Import!I26926","v":"Select"},{"$f":"Import!I27026","v":"Select"},{"$f":"Import!I27126","v":"Select"},{"$f":"Import!I27226","v":"Select"},{"$f":"Import!I27326","v":0},{"$f":"Import!I27426","v":0},{"$f":"Import!I27526","v":0},{"$f":"Import!I27626","v":0},{"$f":"Import!I27726","v":0}]
[25,{"$f":"Import!I26927","v":"Select"},{"$f":"Import!I27027","v":"Select"},{"$f":"Import!I27127","v":"Select"},{"$f":"Import!I27227","v":"Select"},{"$f":"Import!I27327","v":0},{"$f":"Import!I27427","v":0},{"$f":"Import!I27527","v":0},{"$f":"Import!I27627","v":0},{"$f":"Import!I27727","v":0}]
[26,{"$f":"Import!I26928","v":"Select"},{"$f":"Import!I27028","v":"Select"},{"$f":"Import!I27128","v":"Select"},{"$f":"Import!I27228","v":"Select"},{"$f":"Import!I27328","v":0},{"$f":"Import!I27428","v":0},{"$f":"Import!I27528","v":0},{"$f":"Import!I27628","v":0},{"$f":"Import!I27728","v":0}]
[27,{"$f":"Import!I26929","v":"Select"},{"$f":"Import!I27029","v":"Select"},{"$f":"Import!I27129","v":"Select"},{"$f":"Import!I27229","v":"Select"},{"$f":"Import!I27329","v":0},{"$f":"Import!I27429","v":0},{"$f":"Import!I27529","v":0},{"$f":"Import!I27629","v":0},{"$f":"Import!I27729","v":0}]
[28,{"$f":"Import!I26930","v":"Select"},{"$f":"Import!I27030","v":"Select"},{"$f":"Import!I27130","v":"Select"},{"$f":"Import!I27230","v":"Select"},{"$f":"Import!I27330","v":0},{"$f":"Import!I27430","v":0},{"$f":"Import!I27530","v":0},{"$f":"Import!I27630","v":0},{"$f":"Import!I27730","v":0}]
[29,{"$f":"Import!I26931","v":"Select"},{"$f":"Import!I27031","v":"Select"},{"$f":"Import!I27131","v":"Select"},{"$f":"Import!I27231","v":"Select"},{"$f":"Import!I27331","v":0},{"$f":"Import!I27431","v":0},{"$f":"Import!I27531","v":0},{"$f":"Import!I27631","v":0},{"$f":"Import!I27731","v":0}]
[30,{"$f":"Import!I26932","v":"Select"},{"$f":"Import!I27032","v":"Select"},{"$f":"Import!I27132","v":"Select"},{"$f":"Import!I27232","v":"Select"},{"$f":"Import!I27332","v":0},{"$f":"Import!I27432","v":0},{"$f":"Import!I27532","v":0},{"$f":"Import!I27632","v":0},{"$f":"Import!I27732","v":0}]
[31,{"$f":"Import!I26933","v":"Select"},{"$f":"Import!I27033","v":"Select"},{"$f":"Import!I27133","v":"Select"},{"$f":"Import!I27233","v":"Select"},{"$f":"Import!I27333","v":0},{"$f":"Import!I27433","v":0},{"$f":"Import!I27533","v":0},{"$f":"Import!I27633","v":0},{"$f":"Import!I27733","v":0}]
[32,{"$f":"Import!I26934","v":"Select"},{"$f":"Import!I27034","v":"Select"},{"$f":"Import!I27134","v":"Select"},{"$f":"Import!I27234","v":"Select"},{"$f":"Import!I27334","v":0},{"$f":"Import!I27434","v":0},{"$f":"Import!I27534","v":0},{"$f":"Import!I27634","v":0},{"$f":"Import!I27734","v":0}]
[33,{"$f":"Import!I26935","v":"Select"},{"$f":"Import!I27035","v":"Select"},{"$f":"Import!I27135","v":"Select"},{"$f":"Import!I27235","v":"Select"},{"$f":"Import!I27335","v":0},{"$f":"Import!I27435","v":0},{"$f":"Import!I27535","v":0},{"$f":"Import!I27635","v":0},{"$f":"Import!I27735","v":0}]
[34,{"$f":"Import!I26936","v":"Select"},{"$f":"Import!I27036","v":"Select"},{"$f":"Import!I27136","v":"Select"},{"$f":"Import!I27236","v":"Select"},{"$f":"Import!I27336","v":0},{"$f":"Import!I27436","v":0},{"$f":"Import!I27536","v":0},{"$f":"Import!I27636","v":0},{"$f":"Import!I27736","v":0}]
[35,{"$f":"Import!I26937","v":"Select"},{"$f":"Import!I27037","v":"Select"},{"$f":"Import!I27137","v":"Select"},{"$f":"Import!I27237","v":"Select"},{"$f":"Import!I27337","v":0},{"$f":"Import!I27437","v":0},{"$f":"Import!I27537","v":0},{"$f":"Import!I27637","v":0},{"$f":"Import!I27737","v":0}]
[36,{"$f":"Import!I26938","v":"Select"},{"$f":"Import!I27038","v":"Select"},{"$f":"Import!I27138","v":"Select"},{"$f":"Import!I27238","v":"Select"},{"$f":"Import!I27338","v":0},{"$f":"Import!I27438","v":0},{"$f":"Import!I27538","v":0},{"$f":"Import!I27638","v":0},{"$f":"Import!I27738","v":0}]
[37,{"$f":"Import!I26939","v":"Select"},{"$f":"Import!I27039","v":"Select"},{"$f":"Import!I27139","v":"Select"},{"$f":"Import!I27239","v":"Select"},{"$f":"Import!I27339","v":0},{"$f":"Import!I27439","v":0},{"$f":"Import!I27539","v":0},{"$f":"Import!I27639","v":0},{"$f":"Import!I27739","v":0}]
[38,{"$f":"Import!I26940","v":"Select"},{"$f":"Import!I27040","v":"Select"},{"$f":"Import!I27140","v":"Select"},{"$f":"Import!I27240","v":"Select"},{"$f":"Import!I27340","v":0},{"$f":"Import!I27440","v":0},{"$f":"Import!I27540","v":0},{"$f":"Import!I27640","v":0},{"$f":"Import!I27740","v":0}]
[39,{"$f":"Import!I26941","v":"Select"},{"$f":"Import!I27041","v":"Select"},{"$f":"Import!I27141","v":"Select"},{"$f":"Import!I27241","v":"Select"},{"$f":"Import!I27341","v":0},{"$f":"Import!I27441","v":0},{"$f":"Import!I27541","v":0},{"$f":"Import!I27641","v":0},{"$f":"Import!I27741","v":0}]
[40,{"$f":"Import!I26942","v":"Select"},{"$f":"Import!I27042","v":"Select"},{"$f":"Import!I27142","v":"Select"},{"$f":"Import!I27242","v":"Select"},{"$f":"Import!I27342","v":0},{"$f":"Import!I27442","v":0},{"$f":"Import!I27542","v":0},{"$f":"Import!I27642","v":0},{"$f":"Import!I27742","v":0}]
[41,{"$f":"Import!I26943","v":"Select"},{"$f":"Import!I27043","v":"Select"},{"$f":"Import!I27143","v":"Select"},{"$f":"Import!I27243","v":"Select"},{"$f":"Import!I27343","v":0},{"$f":"Import!I27443","v":0},{"$f":"Import!I27543","v":0},{"$f":"Import!I27643","v":0},{"$f":"Import!I27743","v":0}]
[42,{"$f":"Import!I26944","v":"Select"},{"$f":"Import!I27044","v":"Select"},{"$f":"Import!I27144","v":"Select"},{"$f":"Import!I27244","v":"Select"},{"$f":"Import!I27344","v":0},{"$f":"Import!I27444","v":0},{"$f":"Import!I27544","v":0},{"$f":"Import!I27644","v":0},{"$f":"Import!I27744","v":0}]
[43,{"$f":"Import!I26945","v":"Select"},{"$f":"Import!I27045","v":"Select"},{"$f":"Import!I27145","v":"Select"},{"$f":"Import!I27245","v":"Select"},{"$f":"Import!I27345","v":0},{"$f":"Import!I27445","v":0},{"$f":"Import!I27545","v":0},{"$f":"Import!I27645","v":0},{"$f":"Import!I27745","v":0}]
[44,{"$f":"Import!I26946","v":"Select"},{"$f":"Import!I27046","v":"Select"},{"$f":"Import!I27146","v":"Select"},{"$f":"Import!I27246","v":"Select"},{"$f":"Import!I27346","v":0},{"$f":"Import!I27446","v":0},{"$f":"Import!I27546","v":0},{"$f":"Import!I27646","v":0},{"$f":"Import!I27746","v":0}]
[45,{"$f":"Import!I26947","v":"Select"},{"$f":"Import!I27047","v":"Select"},{"$f":"Import!I27147","v":"Select"},{"$f":"Import!I27247","v":"Select"},{"$f":"Import!I27347","v":0},{"$f":"Import!I27447","v":0},{"$f":"Import!I27547","v":0},{"$f":"Import!I27647","v":0},{"$f":"Import!I27747","v":0}]
[46,{"$f":"Import!I26948","v":"Select"},{"$f":"Import!I27048","v":"Select"},{"$f":"Import!I27148","v":"Select"},{"$f":"Import!I27248","v":"Select"},{"$f":"Import!I27348","v":0},{"$f":"Import!I27448","v":0},{"$f":"Import!I27548","v":0},{"$f":"Import!I27648","v":0},{"$f":"Import!I27748","v":0}]
[47,{"$f":"Import!I26949","v":"Select"},{"$f":"Import!I27049","v":"Select"},{"$f":"Import!I27149","v":"Select"},{"$f":"Import!I27249","v":"Select"},{"$f":"Import!I27349","v":0},{"$f":"Import!I27449","v":0},{"$f":"Import!I27549","v":0},{"$f":"Import!I27649","v":0},{"$f":"Import!I27749","v":0}]
[48,{"$f":"Import!I26950","v":"Select"},{"$f":"Import!I27050","v":"Select"},{"$f":"Import!I27150","v":"Select"},{"$f":"Import!I27250","v":"Select"},{"$f":"Import!I27350","v":0},{"$f":"Import!I27450","v":0},{"$f":"Import!I27550","v":0},{"$f":"Import!I27650","v":0},{"$f":"Import!I27750","v":0}]
[49,{"$f":"Import!I26951","v":"Select"},{"$f":"Import!I27051","v":"Select"},{"$f":"Import!I27151","v":"Select"},{"$f":"Import!I27251","v":"Select"},{"$f":"Import!I27351","v":0},{"$f":"Import!I27451","v":0},{"$f":"Import!I27551","v":0},{"$f":"Import!I27651","v":0},{"$f":"Import!I27751","v":0}]
[50,{"$f":"Import!I26952","v":"Select"},{"$f":"Import!I27052","v":"Select"},{"$f":"Import!I27152","v":"Select"},{"$f":"Import!I27252","v":"Select"},{"$f":"Import!I27352","v":0},{"$f":"Import!I27452","v":0},{"$f":"Import!I27552","v":0},{"$f":"Import!I27652","v":0},{"$f":"Import!I27752","v":0}]
[51,{"$f":"Import!I26953","v":"Select"},{"$f":"Import!I27053","v":"Select"},{"$f":"Import!I27153","v":"Select"},{"$f":"Import!I27253","v":"Select"},{"$f":"Import!I27353","v":0},{"$f":"Import!I27453","v":0},{"$f":"Import!I27553","v":0},{"$f":"Import!I27653","v":0},{"$f":"Import!I27753","v":0}]
[52,{"$f":"Import!I26954","v":"Select"},{"$f":"Import!I27054","v":"Select"},{"$f":"Import!I27154","v":"Select"},{"$f":"Import!I27254","v":"Select"},{"$f":"Import!I27354","v":0},{"$f":"Import!I27454","v":0},{"$f":"Import!I27554","v":0},{"$f":"Import!I27654","v":0},{"$f":"Import!I27754","v":0}]
[53,{"$f":"Import!I26955","v":"Select"},{"$f":"Import!I27055","v":"Select"},{"$f":"Import!I27155","v":"Select"},{"$f":"Import!I27255","v":"Select"},{"$f":"Import!I27355","v":0},{"$f":"Import!I27455","v":0},{"$f":"Import!I27555","v":0},{"$f":"Import!I27655","v":0},{"$f":"Import!I27755","v":0}]
[54,{"$f":"Import!I26956","v":"Select"},{"$f":"Import!I27056","v":"Select"},{"$f":"Import!I27156","v":"Select"},{"$f":"Import!I27256","v":"Select"},{"$f":"Import!I27356","v":0},{"$f":"Import!I27456","v":0},{"$f":"Import!I27556","v":0},{"$f":"Import!I27656","v":0},{"$f":"Import!I27756","v":0}]
[55,{"$f":"Import!I26957","v":"Select"},{"$f":"Import!I27057","v":"Select"},{"$f":"Import!I27157","v":"Select"},{"$f":"Import!I27257","v":"Select"},{"$f":"Import!I27357","v":0},{"$f":"Import!I27457","v":0},{"$f":"Import!I27557","v":0},{"$f":"Import!I27657","v":0},{"$f":"Import!I27757","v":0}]
[56,{"$f":"Import!I26958","v":"Select"},{"$f":"Import!I27058","v":"Select"},{"$f":"Import!I27158","v":"Select"},{"$f":"Import!I27258","v":"Select"},{"$f":"Import!I27358","v":0},{"$f":"Import!I27458","v":0},{"$f":"Import!I27558","v":0},{"$f":"Import!I27658","v":0},{"$f":"Import!I27758","v":0}]
[57,{"$f":"Import!I26959","v":"Select"},{"$f":"Import!I27059","v":"Select"},{"$f":"Import!I27159","v":"Select"},{"$f":"Import!I27259","v":"Select"},{"$f":"Import!I27359","v":0},{"$f":"Import!I27459","v":0},{"$f":"Import!I27559","v":0},{"$f":"Import!I27659","v":0},{"$f":"Import!I27759","v":0}]
[58,{"$f":"Import!I26960","v":"Select"},{"$f":"Import!I27060","v":"Select"},{"$f":"Import!I27160","v":"Select"},{"$f":"Import!I27260","v":"Select"},{"$f":"Import!I27360","v":0},{"$f":"Import!I27460","v":0},{"$f":"Import!I27560","v":0},{"$f":"Import!I27660","v":0},{"$f":"Import!I27760","v":0}]
[59,{"$f":"Import!I26961","v":"Select"},{"$f":"Import!I27061","v":"Select"},{"$f":"Import!I27161","v":"Select"},{"$f":"Import!I27261","v":"Select"},{"$f":"Import!I27361","v":0},{"$f":"Import!I27461","v":0},{"$f":"Import!I27561","v":0},{"$f":"Import!I27661","v":0},{"$f":"Import!I27761","v":0}]
[60,{"$f":"Import!I26962","v":"Select"},{"$f":"Import!I27062","v":"Select"},{"$f":"Import!I27162","v":"Select"},{"$f":"Import!I27262","v":"Select"},{"$f":"Import!I27362","v":0},{"$f":"Import!I27462","v":0},{"$f":"Import!I27562","v":0},{"$f":"Import!I27662","v":0},{"$f":"Import!I27762","v":0}]
[61,{"$f":"Import!I26963","v":"Select"},{"$f":"Import!I27063","v":"Select"},{"$f":"Import!I27163","v":"Select"},{"$f":"Import!I27263","v":"Select"},{"$f":"Import!I27363","v":0},{"$f":"Import!I27463","v":0},{"$f":"Import!I27563","v":0},{"$f":"Import!I27663","v":0},{"$f":"Import!I27763","v":0}]
[62,{"$f":"Import!I26964","v":"Select"},{"$f":"Import!I27064","v":"Select"},{"$f":"Import!I27164","v":"Select"},{"$f":"Import!I27264","v":"Select"},{"$f":"Import!I27364","v":0},{"$f":"Import!I27464","v":0},{"$f":"Import!I27564","v":0},{"$f":"Import!I27664","v":0},{"$f":"Import!I27764","v":0}]
[63,{"$f":"Import!I26965","v":"Select"},{"$f":"Import!I27065","v":"Select"},{"$f":"Import!I27165","v":"Select"},{"$f":"Import!I27265","v":"Select"},{"$f":"Import!I27365","v":0},{"$f":"Import!I27465","v":0},{"$f":"Import!I27565","v":0},{"$f":"Import!I27665","v":0},{"$f":"Import!I27765","v":0}]
[64,{"$f":"Import!I26966","v":"Select"},{"$f":"Import!I27066","v":"Select"},{"$f":"Import!I27166","v":"Select"},{"$f":"Import!I27266","v":"Select"},{"$f":"Import!I27366","v":0},{"$f":"Import!I27466","v":0},{"$f":"Import!I27566","v":0},{"$f":"Import!I27666","v":0},{"$f":"Import!I27766","v":0}]
[65,{"$f":"Import!I26967","v":"Select"},{"$f":"Import!I27067","v":"Select"},{"$f":"Import!I27167","v":"Select"},{"$f":"Import!I27267","v":"Select"},{"$f":"Import!I27367","v":0},{"$f":"Import!I27467","v":0},{"$f":"Import!I27567","v":0},{"$f":"Import!I27667","v":0},{"$f":"Import!I27767","v":0}]
[66,{"$f":"Import!I26968","v":"Select"},{"$f":"Import!I27068","v":"Select"},{"$f":"Import!I27168","v":"Select"},{"$f":"Import!I27268","v":"Select"},{"$f":"Import!I27368","v":0},{"$f":"Import!I27468","v":0},{"$f":"Import!I27568","v":0},{"$f":"Import!I27668","v":0},{"$f":"Import!I27768","v":0}]
[{"$f":"A1058+1","v":67},{"$f":"Import!I26969","v":"Select"},{"$f":"Import!I27069","v":"Select"},{"$f":"Import!I27169","v":"Select"},{"$f":"Import!I27269","v":"Select"},{"$f":"Import!I27369","v":0},{"$f":"Import!I27469","v":0},{"$f":"Import!I27569","v":0},{"$f":"Import!I27669","v":0},{"$f":"Import!I27769","v":0}]
[68,{"$f":"Import!I26970","v":"Select"},{"$f":"Import!I27070","v":"Select"},{"$f":"Import!I27170","v":"Select"},{"$f":"Import!I27270","v":"Select"},{"$f":"Import!I27370","v":0},{"$f":"Import!I27470","v":0},{"$f":"Import!I27570","v":0},{"$f":"Import!I27670","v":0},{"$f":"Import!I27770","v":0}]
[69,{"$f":"Import!I26971","v":"Select"},{"$f":"Import!I27071","v":"Select"},{"$f":"Import!I27171","v":"Select"},{"$f":"Import!I27271","v":"Select"},{"$f":"Import!I27371","v":0},{"$f":"Import!I27471","v":0},{"$f":"Import!I27571","v":0},{"$f":"Import!I27671","v":0},{"$f":"Import!I27771","v":0}]
[70,{"$f":"Import!I26972","v":"Select"},{"$f":"Import!I27072","v":"Select"},{"$f":"Import!I27172","v":"Select"},{"$f":"Import!I27272","v":"Select"},{"$f":"Import!I27372","v":0},{"$f":"Import!I27472","v":0},{"$f":"Import!I27572","v":0},{"$f":"Import!I27672","v":0},{"$f":"Import!I27772","v":0}]
[71,{"$f":"Import!I26973","v":"Select"},{"$f":"Import!I27073","v":"Select"},{"$f":"Import!I27173","v":"Select"},{"$f":"Import!I27273","v":"Select"},{"$f":"Import!I27373","v":0},{"$f":"Import!I27473","v":0},{"$f":"Import!I27573","v":0},{"$f":"Import!I27673","v":0},{"$f":"Import!I27773","v":0}]
[72,{"$f":"Import!I26974","v":"Select"},{"$f":"Import!I27074","v":"Select"},{"$f":"Import!I27174","v":"Select"},{"$f":"Import!I27274","v":"Select"},{"$f":"Import!I27374","v":0},{"$f":"Import!I27474","v":0},{"$f":"Import!I27574","v":0},{"$f":"Import!I27674","v":0},{"$f":"Import!I27774","v":0}]
[73,{"$f":"Import!I26975","v":"Select"},{"$f":"Import!I27075","v":"Select"},{"$f":"Import!I27175","v":"Select"},{"$f":"Import!I27275","v":"Select"},{"$f":"Import!I27375","v":0},{"$f":"Import!I27475","v":0},{"$f":"Import!I27575","v":0},{"$f":"Import!I27675","v":0},{"$f":"Import!I27775","v":0}]
[74,{"$f":"Import!I26976","v":"Select"},{"$f":"Import!I27076","v":"Select"},{"$f":"Import!I27176","v":"Select"},{"$f":"Import!I27276","v":"Select"},{"$f":"Import!I27376","v":0},{"$f":"Import!I27476","v":0},{"$f":"Import!I27576","v":0},{"$f":"Import!I27676","v":0},{"$f":"Import!I27776","v":0}]
[75,{"$f":"Import!I26977","v":"Select"},{"$f":"Import!I27077","v":"Select"},{"$f":"Import!I27177","v":"Select"},{"$f":"Import!I27277","v":"Select"},{"$f":"Import!I27377","v":0},{"$f":"Import!I27477","v":0},{"$f":"Import!I27577","v":0},{"$f":"Import!I27677","v":0},{"$f":"Import!I27777","v":0}]
[76,{"$f":"Import!I26978","v":"Select"},{"$f":"Import!I27078","v":"Select"},{"$f":"Import!I27178","v":"Select"},{"$f":"Import!I27278","v":"Select"},{"$f":"Import!I27378","v":0},{"$f":"Import!I27478","v":0},{"$f":"Import!I27578","v":0},{"$f":"Import!I27678","v":0},{"$f":"Import!I27778","v":0}]
[77,{"$f":"Import!I26979","v":"Select"},{"$f":"Import!I27079","v":"Select"},{"$f":"Import!I27179","v":"Select"},{"$f":"Import!I27279","v":"Select"},{"$f":"Import!I27379","v":0},{"$f":"Import!I27479","v":0},{"$f":"Import!I27579","v":0},{"$f":"Import!I27679","v":0},{"$f":"Import!I27779","v":0}]
[78,{"$f":"Import!I26980","v":"Select"},{"$f":"Import!I27080","v":"Select"},{"$f":"Import!I27180","v":"Select"},{"$f":"Import!I27280","v":"Select"},{"$f":"Import!I27380","v":0},{"$f":"Import!I27480","v":0},{"$f":"Import!I27580","v":0},{"$f":"Import!I27680","v":0},{"$f":"Import!I27780","v":0}]
[79,{"$f":"Import!I26981","v":"Select"},{"$f":"Import!I27081","v":"Select"},{"$f":"Import!I27181","v":"Select"},{"$f":"Import!I27281","v":"Select"},{"$f":"Import!I27381","v":0},{"$f":"Import!I27481","v":0},{"$f":"Import!I27581","v":0},{"$f":"Import!I27681","v":0},{"$f":"Import!I27781","v":0}]
[80,{"$f":"Import!I26982","v":"Select"},{"$f":"Import!I27082","v":"Select"},{"$f":"Import!I27182","v":"Select"},{"$f":"Import!I27282","v":"Select"},{"$f":"Import!I27382","v":0},{"$f":"Import!I27482","v":0},{"$f":"Import!I27582","v":0},{"$f":"Import!I27682","v":0},{"$f":"Import!I27782","v":0}]
[81,{"$f":"Import!I26983","v":"Select"},{"$f":"Import!I27083","v":"Select"},{"$f":"Import!I27183","v":"Select"},{"$f":"Import!I27283","v":"Select"},{"$f":"Import!I27383","v":0},{"$f":"Import!I27483","v":0},{"$f":"Import!I27583","v":0},{"$f":"Import!I27683","v":0},{"$f":"Import!I27783","v":0}]
[82,{"$f":"Import!I26984","v":"Select"},{"$f":"Import!I27084","v":"Select"},{"$f":"Import!I27184","v":"Select"},{"$f":"Import!I27284","v":"Select"},{"$f":"Import!I27384","v":0},{"$f":"Import!I27484","v":0},{"$f":"Import!I27584","v":0},{"$f":"Import!I27684","v":0},{"$f":"Import!I27784","v":0}]
[83,{"$f":"Import!I26985","v":"Select"},{"$f":"Import!I27085","v":"Select"},{"$f":"Import!I27185","v":"Select"},{"$f":"Import!I27285","v":"Select"},{"$f":"Import!I27385","v":0},{"$f":"Import!I27485","v":0},{"$f":"Import!I27585","v":0},{"$f":"Import!I27685","v":0},{"$f":"Import!I27785","v":0}]
[84,{"$f":"Import!I26986","v":"Select"},{"$f":"Import!I27086","v":"Select"},{"$f":"Import!I27186","v":"Select"},{"$f":"Import!I27286","v":"Select"},{"$f":"Import!I27386","v":0},{"$f":"Import!I27486","v":0},{"$f":"Import!I27586","v":0},{"$f":"Import!I27686","v":0},{"$f":"Import!I27786","v":0}]
[85,{"$f":"Import!I26987","v":"Select"},{"$f":"Import!I27087","v":"Select"},{"$f":"Import!I27187","v":"Select"},{"$f":"Import!I27287","v":"Select"},{"$f":"Import!I27387","v":0},{"$f":"Import!I27487","v":0},{"$f":"Import!I27587","v":0},{"$f":"Import!I27687","v":0},{"$f":"Import!I27787","v":0}]
[86,{"$f":"Import!I26988","v":"Select"},{"$f":"Import!I27088","v":"Select"},{"$f":"Import!I27188","v":"Select"},{"$f":"Import!I27288","v":"Select"},{"$f":"Import!I27388","v":0},{"$f":"Import!I27488","v":0},{"$f":"Import!I27588","v":0},{"$f":"Import!I27688","v":0},{"$f":"Import!I27788","v":0}]
[87,{"$f":"Import!I26989","v":"Select"},{"$f":"Import!I27089","v":"Select"},{"$f":"Import!I27189","v":"Select"},{"$f":"Import!I27289","v":"Select"},{"$f":"Import!I27389","v":0},{"$f":"Import!I27489","v":0},{"$f":"Import!I27589","v":0},{"$f":"Import!I27689","v":0},{"$f":"Import!I27789","v":0}]
[88,{"$f":"Import!I26990","v":"Select"},{"$f":"Import!I27090","v":"Select"},{"$f":"Import!I27190","v":"Select"},{"$f":"Import!I27290","v":"Select"},{"$f":"Import!I27390","v":0},{"$f":"Import!I27490","v":0},{"$f":"Import!I27590","v":0},{"$f":"Import!I27690","v":0},{"$f":"Import!I27790","v":0}]
[89,{"$f":"Import!I26991","v":"Select"},{"$f":"Import!I27091","v":"Select"},{"$f":"Import!I27191","v":"Select"},{"$f":"Import!I27291","v":"Select"},{"$f":"Import!I27391","v":0},{"$f":"Import!I27491","v":0},{"$f":"Import!I27591","v":0},{"$f":"Import!I27691","v":0},{"$f":"Import!I27791","v":0}]
[90,{"$f":"Import!I26992","v":"Select"},{"$f":"Import!I27092","v":"Select"},{"$f":"Import!I27192","v":"Select"},{"$f":"Import!I27292","v":"Select"},{"$f":"Import!I27392","v":0},{"$f":"Import!I27492","v":0},{"$f":"Import!I27592","v":0},{"$f":"Import!I27692","v":0},{"$f":"Import!I27792","v":0}]
[91,{"$f":"Import!I26993","v":"Select"},{"$f":"Import!I27093","v":"Select"},{"$f":"Import!I27193","v":"Select"},{"$f":"Import!I27293","v":"Select"},{"$f":"Import!I27393","v":0},{"$f":"Import!I27493","v":0},{"$f":"Import!I27593","v":0},{"$f":"Import!I27693","v":0},{"$f":"Import!I27793","v":0}]
[92,{"$f":"Import!I26994","v":"Select"},{"$f":"Import!I27094","v":"Select"},{"$f":"Import!I27194","v":"Select"},{"$f":"Import!I27294","v":"Select"},{"$f":"Import!I27394","v":0},{"$f":"Import!I27494","v":0},{"$f":"Import!I27594","v":0},{"$f":"Import!I27694","v":0},{"$f":"Import!I27794","v":0}]
[93,{"$f":"Import!I26995","v":"Select"},{"$f":"Import!I27095","v":"Select"},{"$f":"Import!I27195","v":"Select"},{"$f":"Import!I27295","v":"Select"},{"$f":"Import!I27395","v":0},{"$f":"Import!I27495","v":0},{"$f":"Import!I27595","v":0},{"$f":"Import!I27695","v":0},{"$f":"Import!I27795","v":0}]
[94,{"$f":"Import!I26996","v":"Select"},{"$f":"Import!I27096","v":"Select"},{"$f":"Import!I27196","v":"Select"},{"$f":"Import!I27296","v":"Select"},{"$f":"Import!I27396","v":0},{"$f":"Import!I27496","v":0},{"$f":"Import!I27596","v":0},{"$f":"Import!I27696","v":0},{"$f":"Import!I27796","v":0}]
[95,{"$f":"Import!I26997","v":"Select"},{"$f":"Import!I27097","v":"Select"},{"$f":"Import!I27197","v":"Select"},{"$f":"Import!I27297","v":"Select"},{"$f":"Import!I27397","v":0},{"$f":"Import!I27497","v":0},{"$f":"Import!I27597","v":0},{"$f":"Import!I27697","v":0},{"$f":"Import!I27797","v":0}]
[96,{"$f":"Import!I26998","v":"Select"},{"$f":"Import!I27098","v":"Select"},{"$f":"Import!I27198","v":"Select"},{"$f":"Import!I27298","v":"Select"},{"$f":"Import!I27398","v":0},{"$f":"Import!I27498","v":0},{"$f":"Import!I27598","v":0},{"$f":"Import!I27698","v":0},{"$f":"Import!I27798","v":0}]
[97,{"$f":"Import!I26999","v":"Select"},{"$f":"Import!I27099","v":"Select"},{"$f":"Import!I27199","v":"Select"},{"$f":"Import!I27299","v":"Select"},{"$f":"Import!I27399","v":0},{"$f":"Import!I27499","v":0},{"$f":"Import!I27599","v":0},{"$f":"Import!I27699","v":0},{"$f":"Import!I27799","v":0}]
[98,{"$f":"Import!I27000","v":"Select"},{"$f":"Import!I27100","v":"Select"},{"$f":"Import!I27200","v":"Select"},{"$f":"Import!I27300","v":"Select"},{"$f":"Import!I27400","v":0},{"$f":"Import!I27500","v":0},{"$f":"Import!I27600","v":0},{"$f":"Import!I27700","v":0},{"$f":"Import!I27800","v":0}]
[99,{"$f":"Import!I27001","v":"Select"},{"$f":"Import!I27101","v":"Select"},{"$f":"Import!I27201","v":"Select"},{"$f":"Import!I27301","v":"Select"},{"$f":"Import!I27401","v":0},{"$f":"Import!I27501","v":0},{"$f":"Import!I27601","v":0},{"$f":"Import!I27701","v":0},{"$f":"Import!I27801","v":0}]
[100,{"$f":"Import!I27002","v":"Select"},{"$f":"Import!I27102","v":"Select"},{"$f":"Import!I27202","v":"Select"},{"$f":"Import!I27302","v":"Select"},{"$f":"Import!I27402","v":0},{"$f":"Import!I27502","v":0},{"$f":"Import!I27602","v":0},{"$f":"Import!I27702","v":0},{"$f":"Import!I27802","v":0}]
[]
[null,"Total Loans",null,null,null,{"$f":"SUM(F993:F1092)","v":0},{"$f":"SUM(G993:G1092)","v":0},{"$f":"IFERROR(SUMPRODUCT(H993:H1092,$G993:$G1092)/SUM($G993:$G1092),0)","v":0},{"$f":"IFERROR(SUMPRODUCT(I993:I1092,$G993:$G1092)/SUM($G993:$G1092),0)","v":0}]
[]
[null,"- OF WHICH NON-PERFORMING LOANS"]
[]
[null,null,"Enter # of Asset Types",{"$f":"Import!I27803","v":0}]
[null,null,null,null,null,{"$f":"YEAR($C$3)","v":2023},2023]
[null,"Asset Type","Currency","Country","BSCR Rating","Nominal Amount","Fair Value","Comments"]
[1,{"$f":"Import!I27804","v":"Select"},{"$f":"Import!I27824","v":"Select"},{"$f":"Import!I27844","v":"Select"},{"$f":"Import!I27864","v":"Select"},{"$f":"Import!I27884","v":0},{"$f":"Import!I27904","v":0},{"$f":"Import!I27924","v":0}]
[{"$f":"A1101+1","v":2},{"$f":"Import!I27805","v":"Select"},{"$f":"Import!I27825","v":"Select"},{"$f":"Import!I27845","v":"Select"},{"$f":"Import!I27865","v":"Select"},{"$f":"Import!I27885","v":0},{"$f":"Import!I27905","v":0},{"$f":"Import!I27925","v":0}]
[{"$f":"A1102+1","v":3},{"$f":"Import!I27806","v":"Select"},{"$f":"Import!I27826","v":"Select"},{"$f":"Import!I27846","v":"Select"},{"$f":"Import!I27866","v":"Select"},{"$f":"Import!I27886","v":0},{"$f":"Import!I27906","v":0},{"$f":"Import!I27926","v":0}]
[4,{"$f":"Import!I27807","v":"Select"},{"$f":"Import!I27827","v":"Select"},{"$f":"Import!I27847","v":"Select"},{"$f":"Import!I27867","v":"Select"},{"$f":"Import!I27887","v":0},{"$f":"Import!I27907","v":0},{"$f":"Import!I27927","v":0}]
[5,{"$f":"Import!I27808","v":"Select"},{"$f":"Import!I27828","v":"Select"},{"$f":"Import!I27848","v":"Select"},{"$f":"Import!I27868","v":"Select"},{"$f":"Import!I27888","v":0},{"$f":"Import!I27908","v":0},{"$f":"Import!I27928","v":0}]
[6,{"$f":"Import!I27809","v":"Select"},{"$f":"Import!I27829","v":"Select"},{"$f":"Import!I27849","v":"Select"},{"$f":"Import!I27869","v":"Select"},{"$f":"Import!I27889","v":0},{"$f":"Import!I27909","v":0},{"$f":"Import!I27929","v":0}]
[7,{"$f":"Import!I27810","v":"Select"},{"$f":"Import!I27830","v":"Select"},{"$f":"Import!I27850","v":"Select"},{"$f":"Import!I27870","v":"Select"},{"$f":"Import!I27890","v":0},{"$f":"Import!I27910","v":0},{"$f":"Import!I27930","v":0}]
[8,{"$f":"Import!I27811","v":"Select"},{"$f":"Import!I27831","v":"Select"},{"$f":"Import!I27851","v":"Select"},{"$f":"Import!I27871","v":"Select"},{"$f":"Import!I27891","v":0},{"$f":"Import!I27911","v":0},{"$f":"Import!I27931","v":0}]
[9,{"$f":"Import!I27812","v":"Select"},{"$f":"Import!I27832","v":"Select"},{"$f":"Import!I27852","v":"Select"},{"$f":"Import!I27872","v":"Select"},{"$f":"Import!I27892","v":0},{"$f":"Import!I27912","v":0},{"$f":"Import!I27932","v":0}]
[10,{"$f":"Import!I27813","v":"Select"},{"$f":"Import!I27833","v":"Select"},{"$f":"Import!I27853","v":"Select"},{"$f":"Import!I27873","v":"Select"},{"$f":"Import!I27893","v":0},{"$f":"Import!I27913","v":0},{"$f":"Import!I27933","v":0}]
[11,{"$f":"Import!I27814","v":"Select"},{"$f":"Import!I27834","v":"Select"},{"$f":"Import!I27854","v":"Select"},{"$f":"Import!I27874","v":"Select"},{"$f":"Import!I27894","v":0},{"$f":"Import!I27914","v":0},{"$f":"Import!I27934","v":0}]
[12,{"$f":"Import!I27815","v":"Select"},{"$f":"Import!I27835","v":"Select"},{"$f":"Import!I27855","v":"Select"},{"$f":"Import!I27875","v":"Select"},{"$f":"Import!I27895","v":0},{"$f":"Import!I27915","v":0},{"$f":"Import!I27935","v":0}]
[13,{"$f":"Import!I27816","v":"Select"},{"$f":"Import!I27836","v":"Select"},{"$f":"Import!I27856","v":"Select"},{"$f":"Import!I27876","v":"Select"},{"$f":"Import!I27896","v":0},{"$f":"Import!I27916","v":0},{"$f":"Import!I27936","v":0}]
[14,{"$f":"Import!I27817","v":"Select"},{"$f":"Import!I27837","v":"Select"},{"$f":"Import!I27857","v":"Select"},{"$f":"Import!I27877","v":"Select"},{"$f":"Import!I27897","v":0},{"$f":"Import!I27917","v":0},{"$f":"Import!I27937","v":0}]
[15,{"$f":"Import!I27818","v":"Select"},{"$f":"Import!I27838","v":"Select"},{"$f":"Import!I27858","v":"Select"},{"$f":"Import!I27878","v":"Select"},{"$f":"Import!I27898","v":0},{"$f":"Import!I27918","v":0},{"$f":"Import!I27938","v":0}]
[16,{"$f":"Import!I27819","v":"Select"},{"$f":"Import!I27839","v":"Select"},{"$f":"Import!I27859","v":"Select"},{"$f":"Import!I27879","v":"Select"},{"$f":"Import!I27899","v":0},{"$f":"Import!I27919","v":0},{"$f":"Import!I27939","v":0}]
[17,{"$f":"Import!I27820","v":"Select"},{"$f":"Import!I27840","v":"Select"},{"$f":"Import!I27860","v":"Select"},{"$f":"Import!I27880","v":"Select"},{"$f":"Import!I27900","v":0},{"$f":"Import!I27920","v":0},{"$f":"Import!I27940","v":0}]
[18,{"$f":"Import!I27821","v":"Select"},{"$f":"Import!I27841","v":"Select"},{"$f":"Import!I27861","v":"Select"},{"$f":"Import!I27881","v":"Select"},{"$f":"Import!I27901","v":0},{"$f":"Import!I27921","v":0},{"$f":"Import!I27941","v":0}]
[19,{"$f":"Import!I27822","v":"Select"},{"$f":"Import!I27842","v":"Select"},{"$f":"Import!I27862","v":"Select"},{"$f":"Import!I27882","v":"Select"},{"$f":"Import!I27902","v":0},{"$f":"Import!I27922","v":0},{"$f":"Import!I27942","v":0}]
[20,{"$f":"Import!I27823","v":"Select"},{"$f":"Import!I27843","v":"Select"},{"$f":"Import!I27863","v":"Select"},{"$f":"Import!I27883","v":"Select"},{"$f":"Import!I27903","v":0},{"$f":"Import!I27923","v":0},{"$f":"Import!I27943","v":0}]
[]
[null,"Total Non-Performing Loans",null,null,null,{"$f":"SUM(F1101:F1120)","v":0},{"$f":"SUM(G1101:G1120)","v":0}]
[]
[null,"(E) PREFERRED EQUITIES"]
[]
[null,null,"Enter # of Asset Types",{"$f":"Import!I27944","v":0}]
[null,null,null,null,{"$f":"YEAR($C$3)","v":2023},2023,"Weighted"]
[null,"Asset Type","Currency","BSCR Rating","Nominal Amount","Fair Value","Average YTM","Effective Duration","Comments"]
[1,{"$f":"Import!I27945","v":"Select"},{"$f":"Import!I28045","v":"Select"},{"$f":"Import!I28145","v":"Select"},{"$f":"Import!I28245","v":0},{"$f":"Import!I28345","v":0},{"$f":"Import!I28445","v":0},{"$f":"Import!I28545","v":0},{"$f":"Import!I28645","v":0}]
[{"$f":"A1129+1","v":2},{"$f":"Import!I27946","v":"Select"},{"$f":"Import!I28046","v":"Select"},{"$f":"Import!I28146","v":"Select"},{"$f":"Import!I28246","v":0},{"$f":"Import!I28346","v":0},{"$f":"Import!I28446","v":0},{"$f":"Import!I28546","v":0},{"$f":"Import!I28646","v":0}]
[{"$f":"A1130+1","v":3},{"$f":"Import!I27947","v":"Select"},{"$f":"Import!I28047","v":"Select"},{"$f":"Import!I28147","v":"Select"},{"$f":"Import!I28247","v":0},{"$f":"Import!I28347","v":0},{"$f":"Import!I28447","v":0},{"$f":"Import!I28547","v":0},{"$f":"Import!I28647","v":0}]
[4,{"$f":"Import!I27948","v":"Select"},{"$f":"Import!I28048","v":"Select"},{"$f":"Import!I28148","v":"Select"},{"$f":"Import!I28248","v":0},{"$f":"Import!I28348","v":0},{"$f":"Import!I28448","v":0},{"$f":"Import!I28548","v":0},{"$f":"Import!I28648","v":0}]
[5,{"$f":"Import!I27949","v":"Select"},{"$f":"Import!I28049","v":"Select"},{"$f":"Import!I28149","v":"Select"},{"$f":"Import!I28249","v":0},{"$f":"Import!I28349","v":0},{"$f":"Import!I28449","v":0},{"$f":"Import!I28549","v":0},{"$f":"Import!I28649","v":0}]
[6,{"$f":"Import!I27950","v":"Select"},{"$f":"Import!I28050","v":"Select"},{"$f":"Import!I28150","v":"Select"},{"$f":"Import!I28250","v":0},{"$f":"Import!I28350","v":0},{"$f":"Import!I28450","v":0},{"$f":"Import!I28550","v":0},{"$f":"Import!I28650","v":0}]
[7,{"$f":"Import!I27951","v":"Select"},{"$f":"Import!I28051","v":"Select"},{"$f":"Import!I28151","v":"Select"},{"$f":"Import!I28251","v":0},{"$f":"Import!I28351","v":0},{"$f":"Import!I28451","v":0},{"$f":"Import!I28551","v":0},{"$f":"Import!I28651","v":0}]
[8,{"$f":"Import!I27952","v":"Select"},{"$f":"Import!I28052","v":"Select"},{"$f":"Import!I28152","v":"Select"},{"$f":"Import!I28252","v":0},{"$f":"Import!I28352","v":0},{"$f":"Import!I28452","v":0},{"$f":"Import!I28552","v":0},{"$f":"Import!I28652","v":0}]
[9,{"$f":"Import!I27953","v":"Select"},{"$f":"Import!I28053","v":"Select"},{"$f":"Import!I28153","v":"Select"},{"$f":"Import!I28253","v":0},{"$f":"Import!I28353","v":0},{"$f":"Import!I28453","v":0},{"$f":"Import!I28553","v":0},{"$f":"Import!I28653","v":0}]
[10,{"$f":"Import!I27954","v":"Select"},{"$f":"Import!I28054","v":"Select"},{"$f":"Import!I28154","v":"Select"},{"$f":"Import!I28254","v":0},{"$f":"Import!I28354","v":0},{"$f":"Import!I28454","v":0},{"$f":"Import!I28554","v":0},{"$f":"Import!I28654","v":0}]
[11,{"$f":"Import!I27955","v":"Select"},{"$f":"Import!I28055","v":"Select"},{"$f":"Import!I28155","v":"Select"},{"$f":"Import!I28255","v":0},{"$f":"Import!I28355","v":0},{"$f":"Import!I28455","v":0},{"$f":"Import!I28555","v":0},{"$f":"Import!I28655","v":0}]
[12,{"$f":"Import!I27956","v":"Select"},{"$f":"Import!I28056","v":"Select"},{"$f":"Import!I28156","v":"Select"},{"$f":"Import!I28256","v":0},{"$f":"Import!I28356","v":0},{"$f":"Import!I28456","v":0},{"$f":"Import!I28556","v":0},{"$f":"Import!I28656","v":0}]
[13,{"$f":"Import!I27957","v":"Select"},{"$f":"Import!I28057","v":"Select"},{"$f":"Import!I28157","v":"Select"},{"$f":"Import!I28257","v":0},{"$f":"Import!I28357","v":0},{"$f":"Import!I28457","v":0},{"$f":"Import!I28557","v":0},{"$f":"Import!I28657","v":0}]
[14,{"$f":"Import!I27958","v":"Select"},{"$f":"Import!I28058","v":"Select"},{"$f":"Import!I28158","v":"Select"},{"$f":"Import!I28258","v":0},{"$f":"Import!I28358","v":0},{"$f":"Import!I28458","v":0},{"$f":"Import!I28558","v":0},{"$f":"Import!I28658","v":0}]
[15,{"$f":"Import!I27959","v":"Select"},{"$f":"Import!I28059","v":"Select"},{"$f":"Import!I28159","v":"Select"},{"$f":"Import!I28259","v":0},{"$f":"Import!I28359","v":0},{"$f":"Import!I28459","v":0},{"$f":"Import!I28559","v":0},{"$f":"Import!I28659","v":0}]
[16,{"$f":"Import!I27960","v":"Select"},{"$f":"Import!I28060","v":"Select"},{"$f":"Import!I28160","v":"Select"},{"$f":"Import!I28260","v":0},{"$f":"Import!I28360","v":0},{"$f":"Import!I28460","v":0},{"$f":"Import!I28560","v":0},{"$f":"Import!I28660","v":0}]
[17,{"$f":"Import!I27961","v":"Select"},{"$f":"Import!I28061","v":"Select"},{"$f":"Import!I28161","v":"Select"},{"$f":"Import!I28261","v":0},{"$f":"Import!I28361","v":0},{"$f":"Import!I28461","v":0},{"$f":"Import!I28561","v":0},{"$f":"Import!I28661","v":0}]
[18,{"$f":"Import!I27962","v":"Select"},{"$f":"Import!I28062","v":"Select"},{"$f":"Import!I28162","v":"Select"},{"$f":"Import!I28262","v":0},{"$f":"Import!I28362","v":0},{"$f":"Import!I28462","v":0},{"$f":"Import!I28562","v":0},{"$f":"Import!I28662","v":0}]
[19,{"$f":"Import!I27963","v":"Select"},{"$f":"Import!I28063","v":"Select"},{"$f":"Import!I28163","v":"Select"},{"$f":"Import!I28263","v":0},{"$f":"Import!I28363","v":0},{"$f":"Import!I28463","v":0},{"$f":"Import!I28563","v":0},{"$f":"Import!I28663","v":0}]
[20,{"$f":"Import!I27964","v":"Select"},{"$f":"Import!I28064","v":"Select"},{"$f":"Import!I28164","v":"Select"},{"$f":"Import!I28264","v":0},{"$f":"Import!I28364","v":0},{"$f":"Import!I28464","v":0},{"$f":"Import!I28564","v":0},{"$f":"Import!I28664","v":0}]
[21,{"$f":"Import!I27965","v":"Select"},{"$f":"Import!I28065","v":"Select"},{"$f":"Import!I28165","v":"Select"},{"$f":"Import!I28265","v":0},{"$f":"Import!I28365","v":0},{"$f":"Import!I28465","v":0},{"$f":"Import!I28565","v":0},{"$f":"Import!I28665","v":0}]
[22,{"$f":"Import!I27966","v":"Select"},{"$f":"Import!I28066","v":"Select"},{"$f":"Import!I28166","v":"Select"},{"$f":"Import!I28266","v":0},{"$f":"Import!I28366","v":0},{"$f":"Import!I28466","v":0},{"$f":"Import!I28566","v":0},{"$f":"Import!I28666","v":0}]
[23,{"$f":"Import!I27967","v":"Select"},{"$f":"Import!I28067","v":"Select"},{"$f":"Import!I28167","v":"Select"},{"$f":"Import!I28267","v":0},{"$f":"Import!I28367","v":0},{"$f":"Import!I28467","v":0},{"$f":"Import!I28567","v":0},{"$f":"Import!I28667","v":0}]
[24,{"$f":"Import!I27968","v":"Select"},{"$f":"Import!I28068","v":"Select"},{"$f":"Import!I28168","v":"Select"},{"$f":"Import!I28268","v":0},{"$f":"Import!I28368","v":0},{"$f":"Import!I28468","v":0},{"$f":"Import!I28568","v":0},{"$f":"Import!I28668","v":0}]
[25,{"$f":"Import!I27969","v":"Select"},{"$f":"Import!I28069","v":"Select"},{"$f":"Import!I28169","v":"Select"},{"$f":"Import!I28269","v":0},{"$f":"Import!I28369","v":0},{"$f":"Import!I28469","v":0},{"$f":"Import!I28569","v":0},{"$f":"Import!I28669","v":0}]
[26,{"$f":"Import!I27970","v":"Select"},{"$f":"Import!I28070","v":"Select"},{"$f":"Import!I28170","v":"Select"},{"$f":"Import!I28270","v":0},{"$f":"Import!I28370","v":0},{"$f":"Import!I28470","v":0},{"$f":"Import!I28570","v":0},{"$f":"Import!I28670","v":0}]
[27,{"$f":"Import!I27971","v":"Select"},{"$f":"Import!I28071","v":"Select"},{"$f":"Import!I28171","v":"Select"},{"$f":"Import!I28271","v":0},{"$f":"Import!I28371","v":0},{"$f":"Import!I28471","v":0},{"$f":"Import!I28571","v":0},{"$f":"Import!I28671","v":0}]
[28,{"$f":"Import!I27972","v":"Select"},{"$f":"Import!I28072","v":"Select"},{"$f":"Import!I28172","v":"Select"},{"$f":"Import!I28272","v":0},{"$f":"Import!I28372","v":0},{"$f":"Import!I28472","v":0},{"$f":"Import!I28572","v":0},{"$f":"Import!I28672","v":0}]
[29,{"$f":"Import!I27973","v":"Select"},{"$f":"Import!I28073","v":"Select"},{"$f":"Import!I28173","v":"Select"},{"$f":"Import!I28273","v":0},{"$f":"Import!I28373","v":0},{"$f":"Import!I28473","v":0},{"$f":"Import!I28573","v":0},{"$f":"Import!I28673","v":0}]
[30,{"$f":"Import!I27974","v":"Select"},{"$f":"Import!I28074","v":"Select"},{"$f":"Import!I28174","v":"Select"},{"$f":"Import!I28274","v":0},{"$f":"Import!I28374","v":0},{"$f":"Import!I28474","v":0},{"$f":"Import!I28574","v":0},{"$f":"Import!I28674","v":0}]
[31,{"$f":"Import!I27975","v":"Select"},{"$f":"Import!I28075","v":"Select"},{"$f":"Import!I28175","v":"Select"},{"$f":"Import!I28275","v":0},{"$f":"Import!I28375","v":0},{"$f":"Import!I28475","v":0},{"$f":"Import!I28575","v":0},{"$f":"Import!I28675","v":0}]
[32,{"$f":"Import!I27976","v":"Select"},{"$f":"Import!I28076","v":"Select"},{"$f":"Import!I28176","v":"Select"},{"$f":"Import!I28276","v":0},{"$f":"Import!I28376","v":0},{"$f":"Import!I28476","v":0},{"$f":"Import!I28576","v":0},{"$f":"Import!I28676","v":0}]
[33,{"$f":"Import!I27977","v":"Select"},{"$f":"Import!I28077","v":"Select"},{"$f":"Import!I28177","v":"Select"},{"$f":"Import!I28277","v":0},{"$f":"Import!I28377","v":0},{"$f":"Import!I28477","v":0},{"$f":"Import!I28577","v":0},{"$f":"Import!I28677","v":0}]
[34,{"$f":"Import!I27978","v":"Select"},{"$f":"Import!I28078","v":"Select"},{"$f":"Import!I28178","v":"Select"},{"$f":"Import!I28278","v":0},{"$f":"Import!I28378","v":0},{"$f":"Import!I28478","v":0},{"$f":"Import!I28578","v":0},{"$f":"Import!I28678","v":0}]
[35,{"$f":"Import!I27979","v":"Select"},{"$f":"Import!I28079","v":"Select"},{"$f":"Import!I28179","v":"Select"},{"$f":"Import!I28279","v":0},{"$f":"Import!I28379","v":0},{"$f":"Import!I28479","v":0},{"$f":"Import!I28579","v":0},{"$f":"Import!I28679","v":0}]
[36,{"$f":"Import!I27980","v":"Select"},{"$f":"Import!I28080","v":"Select"},{"$f":"Import!I28180","v":"Select"},{"$f":"Import!I28280","v":0},{"$f":"Import!I28380","v":0},{"$f":"Import!I28480","v":0},{"$f":"Import!I28580","v":0},{"$f":"Import!I28680","v":0}]
[37,{"$f":"Import!I27981","v":"Select"},{"$f":"Import!I28081","v":"Select"},{"$f":"Import!I28181","v":"Select"},{"$f":"Import!I28281","v":0},{"$f":"Import!I28381","v":0},{"$f":"Import!I28481","v":0},{"$f":"Import!I28581","v":0},{"$f":"Import!I28681","v":0}]
[38,{"$f":"Import!I27982","v":"Select"},{"$f":"Import!I28082","v":"Select"},{"$f":"Import!I28182","v":"Select"},{"$f":"Import!I28282","v":0},{"$f":"Import!I28382","v":0},{"$f":"Import!I28482","v":0},{"$f":"Import!I28582","v":0},{"$f":"Import!I28682","v":0}]
[39,{"$f":"Import!I27983","v":"Select"},{"$f":"Import!I28083","v":"Select"},{"$f":"Import!I28183","v":"Select"},{"$f":"Import!I28283","v":0},{"$f":"Import!I28383","v":0},{"$f":"Import!I28483","v":0},{"$f":"Import!I28583","v":0},{"$f":"Import!I28683","v":0}]
[40,{"$f":"Import!I27984","v":"Select"},{"$f":"Import!I28084","v":"Select"},{"$f":"Import!I28184","v":"Select"},{"$f":"Import!I28284","v":0},{"$f":"Import!I28384","v":0},{"$f":"Import!I28484","v":0},{"$f":"Import!I28584","v":0},{"$f":"Import!I28684","v":0}]
[41,{"$f":"Import!I27985","v":"Select"},{"$f":"Import!I28085","v":"Select"},{"$f":"Import!I28185","v":"Select"},{"$f":"Import!I28285","v":0},{"$f":"Import!I28385","v":0},{"$f":"Import!I28485","v":0},{"$f":"Import!I28585","v":0},{"$f":"Import!I28685","v":0}]
[42,{"$f":"Import!I27986","v":"Select"},{"$f":"Import!I28086","v":"Select"},{"$f":"Import!I28186","v":"Select"},{"$f":"Import!I28286","v":0},{"$f":"Import!I28386","v":0},{"$f":"Import!I28486","v":0},{"$f":"Import!I28586","v":0},{"$f":"Import!I28686","v":0}]
[43,{"$f":"Import!I27987","v":"Select"},{"$f":"Import!I28087","v":"Select"},{"$f":"Import!I28187","v":"Select"},{"$f":"Import!I28287","v":0},{"$f":"Import!I28387","v":0},{"$f":"Import!I28487","v":0},{"$f":"Import!I28587","v":0},{"$f":"Import!I28687","v":0}]
[44,{"$f":"Import!I27988","v":"Select"},{"$f":"Import!I28088","v":"Select"},{"$f":"Import!I28188","v":"Select"},{"$f":"Import!I28288","v":0},{"$f":"Import!I28388","v":0},{"$f":"Import!I28488","v":0},{"$f":"Import!I28588","v":0},{"$f":"Import!I28688","v":0}]
[45,{"$f":"Import!I27989","v":"Select"},{"$f":"Import!I28089","v":"Select"},{"$f":"Import!I28189","v":"Select"},{"$f":"Import!I28289","v":0},{"$f":"Import!I28389","v":0},{"$f":"Import!I28489","v":0},{"$f":"Import!I28589","v":0},{"$f":"Import!I28689","v":0}]
[46,{"$f":"Import!I27990","v":"Select"},{"$f":"Import!I28090","v":"Select"},{"$f":"Import!I28190","v":"Select"},{"$f":"Import!I28290","v":0},{"$f":"Import!I28390","v":0},{"$f":"Import!I28490","v":0},{"$f":"Import!I28590","v":0},{"$f":"Import!I28690","v":0}]
[47,{"$f":"Import!I27991","v":"Select"},{"$f":"Import!I28091","v":"Select"},{"$f":"Import!I28191","v":"Select"},{"$f":"Import!I28291","v":0},{"$f":"Import!I28391","v":0},{"$f":"Import!I28491","v":0},{"$f":"Import!I28591","v":0},{"$f":"Import!I28691","v":0}]
[48,{"$f":"Import!I27992","v":"Select"},{"$f":"Import!I28092","v":"Select"},{"$f":"Import!I28192","v":"Select"},{"$f":"Import!I28292","v":0},{"$f":"Import!I28392","v":0},{"$f":"Import!I28492","v":0},{"$f":"Import!I28592","v":0},{"$f":"Import!I28692","v":0}]
[49,{"$f":"Import!I27993","v":"Select"},{"$f":"Import!I28093","v":"Select"},{"$f":"Import!I28193","v":"Select"},{"$f":"Import!I28293","v":0},{"$f":"Import!I28393","v":0},{"$f":"Import!I28493","v":0},{"$f":"Import!I28593","v":0},{"$f":"Import!I28693","v":0}]
[50,{"$f":"Import!I27994","v":"Select"},{"$f":"Import!I28094","v":"Select"},{"$f":"Import!I28194","v":"Select"},{"$f":"Import!I28294","v":0},{"$f":"Import!I28394","v":0},{"$f":"Import!I28494","v":0},{"$f":"Import!I28594","v":0},{"$f":"Import!I28694","v":0}]
[51,{"$f":"Import!I27995","v":"Select"},{"$f":"Import!I28095","v":"Select"},{"$f":"Import!I28195","v":"Select"},{"$f":"Import!I28295","v":0},{"$f":"Import!I28395","v":0},{"$f":"Import!I28495","v":0},{"$f":"Import!I28595","v":0},{"$f":"Import!I28695","v":0}]
[52,{"$f":"Import!I27996","v":"Select"},{"$f":"Import!I28096","v":"Select"},{"$f":"Import!I28196","v":"Select"},{"$f":"Import!I28296","v":0},{"$f":"Import!I28396","v":0},{"$f":"Import!I28496","v":0},{"$f":"Import!I28596","v":0},{"$f":"Import!I28696","v":0}]
[53,{"$f":"Import!I27997","v":"Select"},{"$f":"Import!I28097","v":"Select"},{"$f":"Import!I28197","v":"Select"},{"$f":"Import!I28297","v":0},{"$f":"Import!I28397","v":0},{"$f":"Import!I28497","v":0},{"$f":"Import!I28597","v":0},{"$f":"Import!I28697","v":0}]
[54,{"$f":"Import!I27998","v":"Select"},{"$f":"Import!I28098","v":"Select"},{"$f":"Import!I28198","v":"Select"},{"$f":"Import!I28298","v":0},{"$f":"Import!I28398","v":0},{"$f":"Import!I28498","v":0},{"$f":"Import!I28598","v":0},{"$f":"Import!I28698","v":0}]
[55,{"$f":"Import!I27999","v":"Select"},{"$f":"Import!I28099","v":"Select"},{"$f":"Import!I28199","v":"Select"},{"$f":"Import!I28299","v":0},{"$f":"Import!I28399","v":0},{"$f":"Import!I28499","v":0},{"$f":"Import!I28599","v":0},{"$f":"Import!I28699","v":0}]
[56,{"$f":"Import!I28000","v":"Select"},{"$f":"Import!I28100","v":"Select"},{"$f":"Import!I28200","v":"Select"},{"$f":"Import!I28300","v":0},{"$f":"Import!I28400","v":0},{"$f":"Import!I28500","v":0},{"$f":"Import!I28600","v":0},{"$f":"Import!I28700","v":0}]
[57,{"$f":"Import!I28001","v":"Select"},{"$f":"Import!I28101","v":"Select"},{"$f":"Import!I28201","v":"Select"},{"$f":"Import!I28301","v":0},{"$f":"Import!I28401","v":0},{"$f":"Import!I28501","v":0},{"$f":"Import!I28601","v":0},{"$f":"Import!I28701","v":0}]
[58,{"$f":"Import!I28002","v":"Select"},{"$f":"Import!I28102","v":"Select"},{"$f":"Import!I28202","v":"Select"},{"$f":"Import!I28302","v":0},{"$f":"Import!I28402","v":0},{"$f":"Import!I28502","v":0},{"$f":"Import!I28602","v":0},{"$f":"Import!I28702","v":0}]
[59,{"$f":"Import!I28003","v":"Select"},{"$f":"Import!I28103","v":"Select"},{"$f":"Import!I28203","v":"Select"},{"$f":"Import!I28303","v":0},{"$f":"Import!I28403","v":0},{"$f":"Import!I28503","v":0},{"$f":"Import!I28603","v":0},{"$f":"Import!I28703","v":0}]
[60,{"$f":"Import!I28004","v":"Select"},{"$f":"Import!I28104","v":"Select"},{"$f":"Import!I28204","v":"Select"},{"$f":"Import!I28304","v":0},{"$f":"Import!I28404","v":0},{"$f":"Import!I28504","v":0},{"$f":"Import!I28604","v":0},{"$f":"Import!I28704","v":0}]
[61,{"$f":"Import!I28005","v":"Select"},{"$f":"Import!I28105","v":"Select"},{"$f":"Import!I28205","v":"Select"},{"$f":"Import!I28305","v":0},{"$f":"Import!I28405","v":0},{"$f":"Import!I28505","v":0},{"$f":"Import!I28605","v":0},{"$f":"Import!I28705","v":0}]
[62,{"$f":"Import!I28006","v":"Select"},{"$f":"Import!I28106","v":"Select"},{"$f":"Import!I28206","v":"Select"},{"$f":"Import!I28306","v":0},{"$f":"Import!I28406","v":0},{"$f":"Import!I28506","v":0},{"$f":"Import!I28606","v":0},{"$f":"Import!I28706","v":0}]
[63,{"$f":"Import!I28007","v":"Select"},{"$f":"Import!I28107","v":"Select"},{"$f":"Import!I28207","v":"Select"},{"$f":"Import!I28307","v":0},{"$f":"Import!I28407","v":0},{"$f":"Import!I28507","v":0},{"$f":"Import!I28607","v":0},{"$f":"Import!I28707","v":0}]
[64,{"$f":"Import!I28008","v":"Select"},{"$f":"Import!I28108","v":"Select"},{"$f":"Import!I28208","v":"Select"},{"$f":"Import!I28308","v":0},{"$f":"Import!I28408","v":0},{"$f":"Import!I28508","v":0},{"$f":"Import!I28608","v":0},{"$f":"Import!I28708","v":0}]
[65,{"$f":"Import!I28009","v":"Select"},{"$f":"Import!I28109","v":"Select"},{"$f":"Import!I28209","v":"Select"},{"$f":"Import!I28309","v":0},{"$f":"Import!I28409","v":0},{"$f":"Import!I28509","v":0},{"$f":"Import!I28609","v":0},{"$f":"Import!I28709","v":0}]
[66,{"$f":"Import!I28010","v":"Select"},{"$f":"Import!I28110","v":"Select"},{"$f":"Import!I28210","v":"Select"},{"$f":"Import!I28310","v":0},{"$f":"Import!I28410","v":0},{"$f":"Import!I28510","v":0},{"$f":"Import!I28610","v":0},{"$f":"Import!I28710","v":0}]
[{"$f":"A1194+1","v":67},{"$f":"Import!I28011","v":"Select"},{"$f":"Import!I28111","v":"Select"},{"$f":"Import!I28211","v":"Select"},{"$f":"Import!I28311","v":0},{"$f":"Import!I28411","v":0},{"$f":"Import!I28511","v":0},{"$f":"Import!I28611","v":0},{"$f":"Import!I28711","v":0}]
[68,{"$f":"Import!I28012","v":"Select"},{"$f":"Import!I28112","v":"Select"},{"$f":"Import!I28212","v":"Select"},{"$f":"Import!I28312","v":0},{"$f":"Import!I28412","v":0},{"$f":"Import!I28512","v":0},{"$f":"Import!I28612","v":0},{"$f":"Import!I28712","v":0}]
[69,{"$f":"Import!I28013","v":"Select"},{"$f":"Import!I28113","v":"Select"},{"$f":"Import!I28213","v":"Select"},{"$f":"Import!I28313","v":0},{"$f":"Import!I28413","v":0},{"$f":"Import!I28513","v":0},{"$f":"Import!I28613","v":0},{"$f":"Import!I28713","v":0}]
[70,{"$f":"Import!I28014","v":"Select"},{"$f":"Import!I28114","v":"Select"},{"$f":"Import!I28214","v":"Select"},{"$f":"Import!I28314","v":0},{"$f":"Import!I28414","v":0},{"$f":"Import!I28514","v":0},{"$f":"Import!I28614","v":0},{"$f":"Import!I28714","v":0}]
[71,{"$f":"Import!I28015","v":"Select"},{"$f":"Import!I28115","v":"Select"},{"$f":"Import!I28215","v":"Select"},{"$f":"Import!I28315","v":0},{"$f":"Import!I28415","v":0},{"$f":"Import!I28515","v":0},{"$f":"Import!I28615","v":0},{"$f":"Import!I28715","v":0}]
[72,{"$f":"Import!I28016","v":"Select"},{"$f":"Import!I28116","v":"Select"},{"$f":"Import!I28216","v":"Select"},{"$f":"Import!I28316","v":0},{"$f":"Import!I28416","v":0},{"$f":"Import!I28516","v":0},{"$f":"Import!I28616","v":0},{"$f":"Import!I28716","v":0}]
[73,{"$f":"Import!I28017","v":"Select"},{"$f":"Import!I28117","v":"Select"},{"$f":"Import!I28217","v":"Select"},{"$f":"Import!I28317","v":0},{"$f":"Import!I28417","v":0},{"$f":"Import!I28517","v":0},{"$f":"Import!I28617","v":0},{"$f":"Import!I28717","v":0}]
[74,{"$f":"Import!I28018","v":"Select"},{"$f":"Import!I28118","v":"Select"},{"$f":"Import!I28218","v":"Select"},{"$f":"Import!I28318","v":0},{"$f":"Import!I28418","v":0},{"$f":"Import!I28518","v":0},{"$f":"Import!I28618","v":0},{"$f":"Import!I28718","v":0}]
[75,{"$f":"Import!I28019","v":"Select"},{"$f":"Import!I28119","v":"Select"},{"$f":"Import!I28219","v":"Select"},{"$f":"Import!I28319","v":0},{"$f":"Import!I28419","v":0},{"$f":"Import!I28519","v":0},{"$f":"Import!I28619","v":0},{"$f":"Import!I28719","v":0}]
[76,{"$f":"Import!I28020","v":"Select"},{"$f":"Import!I28120","v":"Select"},{"$f":"Import!I28220","v":"Select"},{"$f":"Import!I28320","v":0},{"$f":"Import!I28420","v":0},{"$f":"Import!I28520","v":0},{"$f":"Import!I28620","v":0},{"$f":"Import!I28720","v":0}]
[77,{"$f":"Import!I28021","v":"Select"},{"$f":"Import!I28121","v":"Select"},{"$f":"Import!I28221","v":"Select"},{"$f":"Import!I28321","v":0},{"$f":"Import!I28421","v":0},{"$f":"Import!I28521","v":0},{"$f":"Import!I28621","v":0},{"$f":"Import!I28721","v":0}]
[78,{"$f":"Import!I28022","v":"Select"},{"$f":"Import!I28122","v":"Select"},{"$f":"Import!I28222","v":"Select"},{"$f":"Import!I28322","v":0},{"$f":"Import!I28422","v":0},{"$f":"Import!I28522","v":0},{"$f":"Import!I28622","v":0},{"$f":"Import!I28722","v":0}]
[79,{"$f":"Import!I28023","v":"Select"},{"$f":"Import!I28123","v":"Select"},{"$f":"Import!I28223","v":"Select"},{"$f":"Import!I28323","v":0},{"$f":"Import!I28423","v":0},{"$f":"Import!I28523","v":0},{"$f":"Import!I28623","v":0},{"$f":"Import!I28723","v":0}]
[80,{"$f":"Import!I28024","v":"Select"},{"$f":"Import!I28124","v":"Select"},{"$f":"Import!I28224","v":"Select"},{"$f":"Import!I28324","v":0},{"$f":"Import!I28424","v":0},{"$f":"Import!I28524","v":0},{"$f":"Import!I28624","v":0},{"$f":"Import!I28724","v":0}]
[81,{"$f":"Import!I28025","v":"Select"},{"$f":"Import!I28125","v":"Select"},{"$f":"Import!I28225","v":"Select"},{"$f":"Import!I28325","v":0},{"$f":"Import!I28425","v":0},{"$f":"Import!I28525","v":0},{"$f":"Import!I28625","v":0},{"$f":"Import!I28725","v":0}]
[82,{"$f":"Import!I28026","v":"Select"},{"$f":"Import!I28126","v":"Select"},{"$f":"Import!I28226","v":"Select"},{"$f":"Import!I28326","v":0},{"$f":"Import!I28426","v":0},{"$f":"Import!I28526","v":0},{"$f":"Import!I28626","v":0},{"$f":"Import!I28726","v":0}]
[83,{"$f":"Import!I28027","v":"Select"},{"$f":"Import!I28127","v":"Select"},{"$f":"Import!I28227","v":"Select"},{"$f":"Import!I28327","v":0},{"$f":"Import!I28427","v":0},{"$f":"Import!I28527","v":0},{"$f":"Import!I28627","v":0},{"$f":"Import!I28727","v":0}]
[84,{"$f":"Import!I28028","v":"Select"},{"$f":"Import!I28128","v":"Select"},{"$f":"Import!I28228","v":"Select"},{"$f":"Import!I28328","v":0},{"$f":"Import!I28428","v":0},{"$f":"Import!I28528","v":0},{"$f":"Import!I28628","v":0},{"$f":"Import!I28728","v":0}]
[85,{"$f":"Import!I28029","v":"Select"},{"$f":"Import!I28129","v":"Select"},{"$f":"Import!I28229","v":"Select"},{"$f":"Import!I28329","v":0},{"$f":"Import!I28429","v":0},{"$f":"Import!I28529","v":0},{"$f":"Import!I28629","v":0},{"$f":"Import!I28729","v":0}]
[86,{"$f":"Import!I28030","v":"Select"},{"$f":"Import!I28130","v":"Select"},{"$f":"Import!I28230","v":"Select"},{"$f":"Import!I28330","v":0},{"$f":"Import!I28430","v":0},{"$f":"Import!I28530","v":0},{"$f":"Import!I28630","v":0},{"$f":"Import!I28730","v":0}]
[87,{"$f":"Import!I28031","v":"Select"},{"$f":"Import!I28131","v":"Select"},{"$f":"Import!I28231","v":"Select"},{"$f":"Import!I28331","v":0},{"$f":"Import!I28431","v":0},{"$f":"Import!I28531","v":0},{"$f":"Import!I28631","v":0},{"$f":"Import!I28731","v":0}]
[88,{"$f":"Import!I28032","v":"Select"},{"$f":"Import!I28132","v":"Select"},{"$f":"Import!I28232","v":"Select"},{"$f":"Import!I28332","v":0},{"$f":"Import!I28432","v":0},{"$f":"Import!I28532","v":0},{"$f":"Import!I28632","v":0},{"$f":"Import!I28732","v":0}]
[89,{"$f":"Import!I28033","v":"Select"},{"$f":"Import!I28133","v":"Select"},{"$f":"Import!I28233","v":"Select"},{"$f":"Import!I28333","v":0},{"$f":"Import!I28433","v":0},{"$f":"Import!I28533","v":0},{"$f":"Import!I28633","v":0},{"$f":"Import!I28733","v":0}]
[90,{"$f":"Import!I28034","v":"Select"},{"$f":"Import!I28134","v":"Select"},{"$f":"Import!I28234","v":"Select"},{"$f":"Import!I28334","v":0},{"$f":"Import!I28434","v":0},{"$f":"Import!I28534","v":0},{"$f":"Import!I28634","v":0},{"$f":"Import!I28734","v":0}]
[91,{"$f":"Import!I28035","v":"Select"},{"$f":"Import!I28135","v":"Select"},{"$f":"Import!I28235","v":"Select"},{"$f":"Import!I28335","v":0},{"$f":"Import!I28435","v":0},{"$f":"Import!I28535","v":0},{"$f":"Import!I28635","v":0},{"$f":"Import!I28735","v":0}]
[92,{"$f":"Import!I28036","v":"Select"},{"$f":"Import!I28136","v":"Select"},{"$f":"Import!I28236","v":"Select"},{"$f":"Import!I28336","v":0},{"$f":"Import!I28436","v":0},{"$f":"Import!I28536","v":0},{"$f":"Import!I28636","v":0},{"$f":"Import!I28736","v":0}]
[93,{"$f":"Import!I28037","v":"Select"},{"$f":"Import!I28137","v":"Select"},{"$f":"Import!I28237","v":"Select"},{"$f":"Import!I28337","v":0},{"$f":"Import!I28437","v":0},{"$f":"Import!I28537","v":0},{"$f":"Import!I28637","v":0},{"$f":"Import!I28737","v":0}]
[94,{"$f":"Import!I28038","v":"Select"},{"$f":"Import!I28138","v":"Select"},{"$f":"Import!I28238","v":"Select"},{"$f":"Import!I28338","v":0},{"$f":"Import!I28438","v":0},{"$f":"Import!I28538","v":0},{"$f":"Import!I28638","v":0},{"$f":"Import!I28738","v":0}]
[95,{"$f":"Import!I28039","v":"Select"},{"$f":"Import!I28139","v":"Select"},{"$f":"Import!I28239","v":"Select"},{"$f":"Import!I28339","v":0},{"$f":"Import!I28439","v":0},{"$f":"Import!I28539","v":0},{"$f":"Import!I28639","v":0},{"$f":"Import!I28739","v":0}]
[96,{"$f":"Import!I28040","v":"Select"},{"$f":"Import!I28140","v":"Select"},{"$f":"Import!I28240","v":"Select"},{"$f":"Import!I28340","v":0},{"$f":"Import!I28440","v":0},{"$f":"Import!I28540","v":0},{"$f":"Import!I28640","v":0},{"$f":"Import!I28740","v":0}]
[97,{"$f":"Import!I28041","v":"Select"},{"$f":"Import!I28141","v":"Select"},{"$f":"Import!I28241","v":"Select"},{"$f":"Import!I28341","v":0},{"$f":"Import!I28441","v":0},{"$f":"Import!I28541","v":0},{"$f":"Import!I28641","v":0},{"$f":"Import!I28741","v":0}]
[98,{"$f":"Import!I28042","v":"Select"},{"$f":"Import!I28142","v":"Select"},{"$f":"Import!I28242","v":"Select"},{"$f":"Import!I28342","v":0},{"$f":"Import!I28442","v":0},{"$f":"Import!I28542","v":0},{"$f":"Import!I28642","v":0},{"$f":"Import!I28742","v":0}]
[99,{"$f":"Import!I28043","v":"Select"},{"$f":"Import!I28143","v":"Select"},{"$f":"Import!I28243","v":"Select"},{"$f":"Import!I28343","v":0},{"$f":"Import!I28443","v":0},{"$f":"Import!I28543","v":0},{"$f":"Import!I28643","v":0},{"$f":"Import!I28743","v":0}]
[100,{"$f":"Import!I28044","v":"Select"},{"$f":"Import!I28144","v":"Select"},{"$f":"Import!I28244","v":"Select"},{"$f":"Import!I28344","v":0},{"$f":"Import!I28444","v":0},{"$f":"Import!I28544","v":0},{"$f":"Import!I28644","v":0},{"$f":"Import!I28744","v":0}]
[]
[null,"Total Preferred Equities",null,null,{"$f":"SUM(E1129:E1228)","v":0},{"$f":"SUM(F1129:F1228)","v":0},{"$f":"IFERROR(SUMPRODUCT(G1129:G1228,$F1129:$F1228)/SUM($F1129:$F1228),0)","v":0},{"$f":"IFERROR(SUMPRODUCT(H1129:H1228,$F1129:$F1228)/SUM($F1129:$F1228),0)","v":0}]
[]
[null,"(F) COMMON EQUITIES"]
[]
[null,null,"Enter # of Asset Types",{"$f":"Import!I28745","v":0}]
[null,null,null,null,{"$f":"YEAR($C$3)","v":2023}]
[null,"Asset Type","Currency","Country","Fair Value","Comments"]
[1,{"$f":"Import!I28746","v":"Select"},{"$f":"Import!I28846","v":"Select"},{"$f":"Import!I28946","v":"Select"},{"$f":"Import!I29046","v":0},{"$f":"Import!I29146","v":0}]
[{"$f":"A1237+1","v":2},{"$f":"Import!I28747","v":"Select"},{"$f":"Import!I28847","v":"Select"},{"$f":"Import!I28947","v":"Select"},{"$f":"Import!I29047","v":0},{"$f":"Import!I29147","v":0}]
[{"$f":"A1238+1","v":3},{"$f":"Import!I28748","v":"Select"},{"$f":"Import!I28848","v":"Select"},{"$f":"Import!I28948","v":"Select"},{"$f":"Import!I29048","v":0},{"$f":"Import!I29148","v":0}]
[4,{"$f":"Import!I28749","v":"Select"},{"$f":"Import!I28849","v":"Select"},{"$f":"Import!I28949","v":"Select"},{"$f":"Import!I29049","v":0},{"$f":"Import!I29149","v":0}]
[5,{"$f":"Import!I28750","v":"Select"},{"$f":"Import!I28850","v":"Select"},{"$f":"Import!I28950","v":"Select"},{"$f":"Import!I29050","v":0},{"$f":"Import!I29150","v":0}]
[6,{"$f":"Import!I28751","v":"Select"},{"$f":"Import!I28851","v":"Select"},{"$f":"Import!I28951","v":"Select"},{"$f":"Import!I29051","v":0},{"$f":"Import!I29151","v":0}]
[7,{"$f":"Import!I28752","v":"Select"},{"$f":"Import!I28852","v":"Select"},{"$f":"Import!I28952","v":"Select"},{"$f":"Import!I29052","v":0},{"$f":"Import!I29152","v":0}]
[8,{"$f":"Import!I28753","v":"Select"},{"$f":"Import!I28853","v":"Select"},{"$f":"Import!I28953","v":"Select"},{"$f":"Import!I29053","v":0},{"$f":"Import!I29153","v":0}]
[9,{"$f":"Import!I28754","v":"Select"},{"$f":"Import!I28854","v":"Select"},{"$f":"Import!I28954","v":"Select"},{"$f":"Import!I29054","v":0},{"$f":"Import!I29154","v":0}]
[10,{"$f":"Import!I28755","v":"Select"},{"$f":"Import!I28855","v":"Select"},{"$f":"Import!I28955","v":"Select"},{"$f":"Import!I29055","v":0},{"$f":"Import!I29155","v":0}]
[11,{"$f":"Import!I28756","v":"Select"},{"$f":"Import!I28856","v":"Select"},{"$f":"Import!I28956","v":"Select"},{"$f":"Import!I29056","v":0},{"$f":"Import!I29156","v":0}]
[12,{"$f":"Import!I28757","v":"Select"},{"$f":"Import!I28857","v":"Select"},{"$f":"Import!I28957","v":"Select"},{"$f":"Import!I29057","v":0},{"$f":"Import!I29157","v":0}]
[13,{"$f":"Import!I28758","v":"Select"},{"$f":"Import!I28858","v":"Select"},{"$f":"Import!I28958","v":"Select"},{"$f":"Import!I29058","v":0},{"$f":"Import!I29158","v":0}]
[14,{"$f":"Import!I28759","v":"Select"},{"$f":"Import!I28859","v":"Select"},{"$f":"Import!I28959","v":"Select"},{"$f":"Import!I29059","v":0},{"$f":"Import!I29159","v":0}]
[15,{"$f":"Import!I28760","v":"Select"},{"$f":"Import!I28860","v":"Select"},{"$f":"Import!I28960","v":"Select"},{"$f":"Import!I29060","v":0},{"$f":"Import!I29160","v":0}]
[16,{"$f":"Import!I28761","v":"Select"},{"$f":"Import!I28861","v":"Select"},{"$f":"Import!I28961","v":"Select"},{"$f":"Import!I29061","v":0},{"$f":"Import!I29161","v":0}]
[17,{"$f":"Import!I28762","v":"Select"},{"$f":"Import!I28862","v":"Select"},{"$f":"Import!I28962","v":"Select"},{"$f":"Import!I29062","v":0},{"$f":"Import!I29162","v":0}]
[18,{"$f":"Import!I28763","v":"Select"},{"$f":"Import!I28863","v":"Select"},{"$f":"Import!I28963","v":"Select"},{"$f":"Import!I29063","v":0},{"$f":"Import!I29163","v":0}]
[19,{"$f":"Import!I28764","v":"Select"},{"$f":"Import!I28864","v":"Select"},{"$f":"Import!I28964","v":"Select"},{"$f":"Import!I29064","v":0},{"$f":"Import!I29164","v":0}]
[20,{"$f":"Import!I28765","v":"Select"},{"$f":"Import!I28865","v":"Select"},{"$f":"Import!I28965","v":"Select"},{"$f":"Import!I29065","v":0},{"$f":"Import!I29165","v":0}]
[21,{"$f":"Import!I28766","v":"Select"},{"$f":"Import!I28866","v":"Select"},{"$f":"Import!I28966","v":"Select"},{"$f":"Import!I29066","v":0},{"$f":"Import!I29166","v":0}]
[22,{"$f":"Import!I28767","v":"Select"},{"$f":"Import!I28867","v":"Select"},{"$f":"Import!I28967","v":"Select"},{"$f":"Import!I29067","v":0},{"$f":"Import!I29167","v":0}]
[23,{"$f":"Import!I28768","v":"Select"},{"$f":"Import!I28868","v":"Select"},{"$f":"Import!I28968","v":"Select"},{"$f":"Import!I29068","v":0},{"$f":"Import!I29168","v":0}]
[24,{"$f":"Import!I28769","v":"Select"},{"$f":"Import!I28869","v":"Select"},{"$f":"Import!I28969","v":"Select"},{"$f":"Import!I29069","v":0},{"$f":"Import!I29169","v":0}]
[25,{"$f":"Import!I28770","v":"Select"},{"$f":"Import!I28870","v":"Select"},{"$f":"Import!I28970","v":"Select"},{"$f":"Import!I29070","v":0},{"$f":"Import!I29170","v":0}]
[26,{"$f":"Import!I28771","v":"Select"},{"$f":"Import!I28871","v":"Select"},{"$f":"Import!I28971","v":"Select"},{"$f":"Import!I29071","v":0},{"$f":"Import!I29171","v":0}]
[27,{"$f":"Import!I28772","v":"Select"},{"$f":"Import!I28872","v":"Select"},{"$f":"Import!I28972","v":"Select"},{"$f":"Import!I29072","v":0},{"$f":"Import!I29172","v":0}]
[28,{"$f":"Import!I28773","v":"Select"},{"$f":"Import!I28873","v":"Select"},{"$f":"Import!I28973","v":"Select"},{"$f":"Import!I29073","v":0},{"$f":"Import!I29173","v":0}]
[29,{"$f":"Import!I28774","v":"Select"},{"$f":"Import!I28874","v":"Select"},{"$f":"Import!I28974","v":"Select"},{"$f":"Import!I29074","v":0},{"$f":"Import!I29174","v":0}]
[30,{"$f":"Import!I28775","v":"Select"},{"$f":"Import!I28875","v":"Select"},{"$f":"Import!I28975","v":"Select"},{"$f":"Import!I29075","v":0},{"$f":"Import!I29175","v":0}]
[31,{"$f":"Import!I28776","v":"Select"},{"$f":"Import!I28876","v":"Select"},{"$f":"Import!I28976","v":"Select"},{"$f":"Import!I29076","v":0},{"$f":"Import!I29176","v":0}]
[32,{"$f":"Import!I28777","v":"Select"},{"$f":"Import!I28877","v":"Select"},{"$f":"Import!I28977","v":"Select"},{"$f":"Import!I29077","v":0},{"$f":"Import!I29177","v":0}]
[33,{"$f":"Import!I28778","v":"Select"},{"$f":"Import!I28878","v":"Select"},{"$f":"Import!I28978","v":"Select"},{"$f":"Import!I29078","v":0},{"$f":"Import!I29178","v":0}]
[34,{"$f":"Import!I28779","v":"Select"},{"$f":"Import!I28879","v":"Select"},{"$f":"Import!I28979","v":"Select"},{"$f":"Import!I29079","v":0},{"$f":"Import!I29179","v":0}]
[35,{"$f":"Import!I28780","v":"Select"},{"$f":"Import!I28880","v":"Select"},{"$f":"Import!I28980","v":"Select"},{"$f":"Import!I29080","v":0},{"$f":"Import!I29180","v":0}]
[36,{"$f":"Import!I28781","v":"Select"},{"$f":"Import!I28881","v":"Select"},{"$f":"Import!I28981","v":"Select"},{"$f":"Import!I29081","v":0},{"$f":"Import!I29181","v":0}]
[37,{"$f":"Import!I28782","v":"Select"},{"$f":"Import!I28882","v":"Select"},{"$f":"Import!I28982","v":"Select"},{"$f":"Import!I29082","v":0},{"$f":"Import!I29182","v":0}]
[38,{"$f":"Import!I28783","v":"Select"},{"$f":"Import!I28883","v":"Select"},{"$f":"Import!I28983","v":"Select"},{"$f":"Import!I29083","v":0},{"$f":"Import!I29183","v":0}]
[39,{"$f":"Import!I28784","v":"Select"},{"$f":"Import!I28884","v":"Select"},{"$f":"Import!I28984","v":"Select"},{"$f":"Import!I29084","v":0},{"$f":"Import!I29184","v":0}]
[40,{"$f":"Import!I28785","v":"Select"},{"$f":"Import!I28885","v":"Select"},{"$f":"Import!I28985","v":"Select"},{"$f":"Import!I29085","v":0},{"$f":"Import!I29185","v":0}]
[41,{"$f":"Import!I28786","v":"Select"},{"$f":"Import!I28886","v":"Select"},{"$f":"Import!I28986","v":"Select"},{"$f":"Import!I29086","v":0},{"$f":"Import!I29186","v":0}]
[42,{"$f":"Import!I28787","v":"Select"},{"$f":"Import!I28887","v":"Select"},{"$f":"Import!I28987","v":"Select"},{"$f":"Import!I29087","v":0},{"$f":"Import!I29187","v":0}]
[43,{"$f":"Import!I28788","v":"Select"},{"$f":"Import!I28888","v":"Select"},{"$f":"Import!I28988","v":"Select"},{"$f":"Import!I29088","v":0},{"$f":"Import!I29188","v":0}]
[44,{"$f":"Import!I28789","v":"Select"},{"$f":"Import!I28889","v":"Select"},{"$f":"Import!I28989","v":"Select"},{"$f":"Import!I29089","v":0},{"$f":"Import!I29189","v":0}]
[45,{"$f":"Import!I28790","v":"Select"},{"$f":"Import!I28890","v":"Select"},{"$f":"Import!I28990","v":"Select"},{"$f":"Import!I29090","v":0},{"$f":"Import!I29190","v":0}]
[46,{"$f":"Import!I28791","v":"Select"},{"$f":"Import!I28891","v":"Select"},{"$f":"Import!I28991","v":"Select"},{"$f":"Import!I29091","v":0},{"$f":"Import!I29191","v":0}]
[47,{"$f":"Import!I28792","v":"Select"},{"$f":"Import!I28892","v":"Select"},{"$f":"Import!I28992","v":"Select"},{"$f":"Import!I29092","v":0},{"$f":"Import!I29192","v":0}]
[48,{"$f":"Import!I28793","v":"Select"},{"$f":"Import!I28893","v":"Select"},{"$f":"Import!I28993","v":"Select"},{"$f":"Import!I29093","v":0},{"$f":"Import!I29193","v":0}]
[49,{"$f":"Import!I28794","v":"Select"},{"$f":"Import!I28894","v":"Select"},{"$f":"Import!I28994","v":"Select"},{"$f":"Import!I29094","v":0},{"$f":"Import!I29194","v":0}]
[50,{"$f":"Import!I28795","v":"Select"},{"$f":"Import!I28895","v":"Select"},{"$f":"Import!I28995","v":"Select"},{"$f":"Import!I29095","v":0},{"$f":"Import!I29195","v":0}]
[51,{"$f":"Import!I28796","v":"Select"},{"$f":"Import!I28896","v":"Select"},{"$f":"Import!I28996","v":"Select"},{"$f":"Import!I29096","v":0},{"$f":"Import!I29196","v":0}]
[52,{"$f":"Import!I28797","v":"Select"},{"$f":"Import!I28897","v":"Select"},{"$f":"Import!I28997","v":"Select"},{"$f":"Import!I29097","v":0},{"$f":"Import!I29197","v":0}]
[53,{"$f":"Import!I28798","v":"Select"},{"$f":"Import!I28898","v":"Select"},{"$f":"Import!I28998","v":"Select"},{"$f":"Import!I29098","v":0},{"$f":"Import!I29198","v":0}]
[54,{"$f":"Import!I28799","v":"Select"},{"$f":"Import!I28899","v":"Select"},{"$f":"Import!I28999","v":"Select"},{"$f":"Import!I29099","v":0},{"$f":"Import!I29199","v":0}]
[55,{"$f":"Import!I28800","v":"Select"},{"$f":"Import!I28900","v":"Select"},{"$f":"Import!I29000","v":"Select"},{"$f":"Import!I29100","v":0},{"$f":"Import!I29200","v":0}]
[56,{"$f":"Import!I28801","v":"Select"},{"$f":"Import!I28901","v":"Select"},{"$f":"Import!I29001","v":"Select"},{"$f":"Import!I29101","v":0},{"$f":"Import!I29201","v":0}]
[57,{"$f":"Import!I28802","v":"Select"},{"$f":"Import!I28902","v":"Select"},{"$f":"Import!I29002","v":"Select"},{"$f":"Import!I29102","v":0},{"$f":"Import!I29202","v":0}]
[58,{"$f":"Import!I28803","v":"Select"},{"$f":"Import!I28903","v":"Select"},{"$f":"Import!I29003","v":"Select"},{"$f":"Import!I29103","v":0},{"$f":"Import!I29203","v":0}]
[59,{"$f":"Import!I28804","v":"Select"},{"$f":"Import!I28904","v":"Select"},{"$f":"Import!I29004","v":"Select"},{"$f":"Import!I29104","v":0},{"$f":"Import!I29204","v":0}]
[60,{"$f":"Import!I28805","v":"Select"},{"$f":"Import!I28905","v":"Select"},{"$f":"Import!I29005","v":"Select"},{"$f":"Import!I29105","v":0},{"$f":"Import!I29205","v":0}]
[61,{"$f":"Import!I28806","v":"Select"},{"$f":"Import!I28906","v":"Select"},{"$f":"Import!I29006","v":"Select"},{"$f":"Import!I29106","v":0},{"$f":"Import!I29206","v":0}]
[62,{"$f":"Import!I28807","v":"Select"},{"$f":"Import!I28907","v":"Select"},{"$f":"Import!I29007","v":"Select"},{"$f":"Import!I29107","v":0},{"$f":"Import!I29207","v":0}]
[63,{"$f":"Import!I28808","v":"Select"},{"$f":"Import!I28908","v":"Select"},{"$f":"Import!I29008","v":"Select"},{"$f":"Import!I29108","v":0},{"$f":"Import!I29208","v":0}]
[64,{"$f":"Import!I28809","v":"Select"},{"$f":"Import!I28909","v":"Select"},{"$f":"Import!I29009","v":"Select"},{"$f":"Import!I29109","v":0},{"$f":"Import!I29209","v":0}]
[65,{"$f":"Import!I28810","v":"Select"},{"$f":"Import!I28910","v":"Select"},{"$f":"Import!I29010","v":"Select"},{"$f":"Import!I29110","v":0},{"$f":"Import!I29210","v":0}]
[66,{"$f":"Import!I28811","v":"Select"},{"$f":"Import!I28911","v":"Select"},{"$f":"Import!I29011","v":"Select"},{"$f":"Import!I29111","v":0},{"$f":"Import!I29211","v":0}]
[{"$f":"A1302+1","v":67},{"$f":"Import!I28812","v":"Select"},{"$f":"Import!I28912","v":"Select"},{"$f":"Import!I29012","v":"Select"},{"$f":"Import!I29112","v":0},{"$f":"Import!I29212","v":0}]
[68,{"$f":"Import!I28813","v":"Select"},{"$f":"Import!I28913","v":"Select"},{"$f":"Import!I29013","v":"Select"},{"$f":"Import!I29113","v":0},{"$f":"Import!I29213","v":0}]
[69,{"$f":"Import!I28814","v":"Select"},{"$f":"Import!I28914","v":"Select"},{"$f":"Import!I29014","v":"Select"},{"$f":"Import!I29114","v":0},{"$f":"Import!I29214","v":0}]
[70,{"$f":"Import!I28815","v":"Select"},{"$f":"Import!I28915","v":"Select"},{"$f":"Import!I29015","v":"Select"},{"$f":"Import!I29115","v":0},{"$f":"Import!I29215","v":0}]
[71,{"$f":"Import!I28816","v":"Select"},{"$f":"Import!I28916","v":"Select"},{"$f":"Import!I29016","v":"Select"},{"$f":"Import!I29116","v":0},{"$f":"Import!I29216","v":0}]
[72,{"$f":"Import!I28817","v":"Select"},{"$f":"Import!I28917","v":"Select"},{"$f":"Import!I29017","v":"Select"},{"$f":"Import!I29117","v":0},{"$f":"Import!I29217","v":0}]
[73,{"$f":"Import!I28818","v":"Select"},{"$f":"Import!I28918","v":"Select"},{"$f":"Import!I29018","v":"Select"},{"$f":"Import!I29118","v":0},{"$f":"Import!I29218","v":0}]
[74,{"$f":"Import!I28819","v":"Select"},{"$f":"Import!I28919","v":"Select"},{"$f":"Import!I29019","v":"Select"},{"$f":"Import!I29119","v":0},{"$f":"Import!I29219","v":0}]
[75,{"$f":"Import!I28820","v":"Select"},{"$f":"Import!I28920","v":"Select"},{"$f":"Import!I29020","v":"Select"},{"$f":"Import!I29120","v":0},{"$f":"Import!I29220","v":0}]
[76,{"$f":"Import!I28821","v":"Select"},{"$f":"Import!I28921","v":"Select"},{"$f":"Import!I29021","v":"Select"},{"$f":"Import!I29121","v":0},{"$f":"Import!I29221","v":0}]
[77,{"$f":"Import!I28822","v":"Select"},{"$f":"Import!I28922","v":"Select"},{"$f":"Import!I29022","v":"Select"},{"$f":"Import!I29122","v":0},{"$f":"Import!I29222","v":0}]
[78,{"$f":"Import!I28823","v":"Select"},{"$f":"Import!I28923","v":"Select"},{"$f":"Import!I29023","v":"Select"},{"$f":"Import!I29123","v":0},{"$f":"Import!I29223","v":0}]
[79,{"$f":"Import!I28824","v":"Select"},{"$f":"Import!I28924","v":"Select"},{"$f":"Import!I29024","v":"Select"},{"$f":"Import!I29124","v":0},{"$f":"Import!I29224","v":0}]
[80,{"$f":"Import!I28825","v":"Select"},{"$f":"Import!I28925","v":"Select"},{"$f":"Import!I29025","v":"Select"},{"$f":"Import!I29125","v":0},{"$f":"Import!I29225","v":0}]
[81,{"$f":"Import!I28826","v":"Select"},{"$f":"Import!I28926","v":"Select"},{"$f":"Import!I29026","v":"Select"},{"$f":"Import!I29126","v":0},{"$f":"Import!I29226","v":0}]
[82,{"$f":"Import!I28827","v":"Select"},{"$f":"Import!I28927","v":"Select"},{"$f":"Import!I29027","v":"Select"},{"$f":"Import!I29127","v":0},{"$f":"Import!I29227","v":0}]
[83,{"$f":"Import!I28828","v":"Select"},{"$f":"Import!I28928","v":"Select"},{"$f":"Import!I29028","v":"Select"},{"$f":"Import!I29128","v":0},{"$f":"Import!I29228","v":0}]
[84,{"$f":"Import!I28829","v":"Select"},{"$f":"Import!I28929","v":"Select"},{"$f":"Import!I29029","v":"Select"},{"$f":"Import!I29129","v":0},{"$f":"Import!I29229","v":0}]
[85,{"$f":"Import!I28830","v":"Select"},{"$f":"Import!I28930","v":"Select"},{"$f":"Import!I29030","v":"Select"},{"$f":"Import!I29130","v":0},{"$f":"Import!I29230","v":0}]
[86,{"$f":"Import!I28831","v":"Select"},{"$f":"Import!I28931","v":"Select"},{"$f":"Import!I29031","v":"Select"},{"$f":"Import!I29131","v":0},{"$f":"Import!I29231","v":0}]
[87,{"$f":"Import!I28832","v":"Select"},{"$f":"Import!I28932","v":"Select"},{"$f":"Import!I29032","v":"Select"},{"$f":"Import!I29132","v":0},{"$f":"Import!I29232","v":0}]
[88,{"$f":"Import!I28833","v":"Select"},{"$f":"Import!I28933","v":"Select"},{"$f":"Import!I29033","v":"Select"},{"$f":"Import!I29133","v":0},{"$f":"Import!I29233","v":0}]
[89,{"$f":"Import!I28834","v":"Select"},{"$f":"Import!I28934","v":"Select"},{"$f":"Import!I29034","v":"Select"},{"$f":"Import!I29134","v":0},{"$f":"Import!I29234","v":0}]
[90,{"$f":"Import!I28835","v":"Select"},{"$f":"Import!I28935","v":"Select"},{"$f":"Import!I29035","v":"Select"},{"$f":"Import!I29135","v":0},{"$f":"Import!I29235","v":0}]
[91,{"$f":"Import!I28836","v":"Select"},{"$f":"Import!I28936","v":"Select"},{"$f":"Import!I29036","v":"Select"},{"$f":"Import!I29136","v":0},{"$f":"Import!I29236","v":0}]
[92,{"$f":"Import!I28837","v":"Select"},{"$f":"Import!I28937","v":"Select"},{"$f":"Import!I29037","v":"Select"},{"$f":"Import!I29137","v":0},{"$f":"Import!I29237","v":0}]
[93,{"$f":"Import!I28838","v":"Select"},{"$f":"Import!I28938","v":"Select"},{"$f":"Import!I29038","v":"Select"},{"$f":"Import!I29138","v":0},{"$f":"Import!I29238","v":0}]
[94,{"$f":"Import!I28839","v":"Select"},{"$f":"Import!I28939","v":"Select"},{"$f":"Import!I29039","v":"Select"},{"$f":"Import!I29139","v":0},{"$f":"Import!I29239","v":0}]
[95,{"$f":"Import!I28840","v":"Select"},{"$f":"Import!I28940","v":"Select"},{"$f":"Import!I29040","v":"Select"},{"$f":"Import!I29140","v":0},{"$f":"Import!I29240","v":0}]
[96,{"$f":"Import!I28841","v":"Select"},{"$f":"Import!I28941","v":"Select"},{"$f":"Import!I29041","v":"Select"},{"$f":"Import!I29141","v":0},{"$f":"Import!I29241","v":0}]
[97,{"$f":"Import!I28842","v":"Select"},{"$f":"Import!I28942","v":"Select"},{"$f":"Import!I29042","v":"Select"},{"$f":"Import!I29142","v":0},{"$f":"Import!I29242","v":0}]
[98,{"$f":"Import!I28843","v":"Select"},{"$f":"Import!I28943","v":"Select"},{"$f":"Import!I29043","v":"Select"},{"$f":"Import!I29143","v":0},{"$f":"Import!I29243","v":0}]
[99,{"$f":"Import!I28844","v":"Select"},{"$f":"Import!I28944","v":"Select"},{"$f":"Import!I29044","v":"Select"},{"$f":"Import!I29144","v":0},{"$f":"Import!I29244","v":0}]
[100,{"$f":"Import!I28845","v":"Select"},{"$f":"Import!I28945","v":"Select"},{"$f":"Import!I29045","v":"Select"},{"$f":"Import!I29145","v":0},{"$f":"Import!I29245","v":0}]
[]
[null,"Total Common Equities",null,null,{"$f":"SUM(E1237:E1336)","v":0}]
[]
[null,"(G) REAL ESTATE"]
[]
[null,null,"Enter # of Asset Types",{"$f":"Import!I29246","v":0}]
[null,null,null,null,null,{"$f":"YEAR($C$3)","v":2023},2023]
[null,"Asset Type","Currency","Country","Purpose","Cost","Fair Value","Comments"]
[1,{"$f":"Import!I29247","v":"Select"},{"$f":"Import!I29347","v":"Select"},{"$f":"Import!I29447","v":"Select"},{"$f":"Import!I29547","v":"Select"},{"$f":"Import!I29647","v":0},{"$f":"Import!I29747","v":0},{"$f":"Import!I29847","v":0}]
[{"$f":"A1345+1","v":2},{"$f":"Import!I29248","v":"Select"},{"$f":"Import!I29348","v":"Select"},{"$f":"Import!I29448","v":"Select"},{"$f":"Import!I29548","v":"Select"},{"$f":"Import!I29648","v":0},{"$f":"Import!I29748","v":0},{"$f":"Import!I29848","v":0}]
[{"$f":"A1346+1","v":3},{"$f":"Import!I29249","v":"Select"},{"$f":"Import!I29349","v":"Select"},{"$f":"Import!I29449","v":"Select"},{"$f":"Import!I29549","v":"Select"},{"$f":"Import!I29649","v":0},{"$f":"Import!I29749","v":0},{"$f":"Import!I29849","v":0}]
[4,{"$f":"Import!I29250","v":"Select"},{"$f":"Import!I29350","v":"Select"},{"$f":"Import!I29450","v":"Select"},{"$f":"Import!I29550","v":"Select"},{"$f":"Import!I29650","v":0},{"$f":"Import!I29750","v":0},{"$f":"Import!I29850","v":0}]
[5,{"$f":"Import!I29251","v":"Select"},{"$f":"Import!I29351","v":"Select"},{"$f":"Import!I29451","v":"Select"},{"$f":"Import!I29551","v":"Select"},{"$f":"Import!I29651","v":0},{"$f":"Import!I29751","v":0},{"$f":"Import!I29851","v":0}]
[6,{"$f":"Import!I29252","v":"Select"},{"$f":"Import!I29352","v":"Select"},{"$f":"Import!I29452","v":"Select"},{"$f":"Import!I29552","v":"Select"},{"$f":"Import!I29652","v":0},{"$f":"Import!I29752","v":0},{"$f":"Import!I29852","v":0}]
[7,{"$f":"Import!I29253","v":"Select"},{"$f":"Import!I29353","v":"Select"},{"$f":"Import!I29453","v":"Select"},{"$f":"Import!I29553","v":"Select"},{"$f":"Import!I29653","v":0},{"$f":"Import!I29753","v":0},{"$f":"Import!I29853","v":0}]
[8,{"$f":"Import!I29254","v":"Select"},{"$f":"Import!I29354","v":"Select"},{"$f":"Import!I29454","v":"Select"},{"$f":"Import!I29554","v":"Select"},{"$f":"Import!I29654","v":0},{"$f":"Import!I29754","v":0},{"$f":"Import!I29854","v":0}]
[9,{"$f":"Import!I29255","v":"Select"},{"$f":"Import!I29355","v":"Select"},{"$f":"Import!I29455","v":"Select"},{"$f":"Import!I29555","v":"Select"},{"$f":"Import!I29655","v":0},{"$f":"Import!I29755","v":0},{"$f":"Import!I29855","v":0}]
[10,{"$f":"Import!I29256","v":"Select"},{"$f":"Import!I29356","v":"Select"},{"$f":"Import!I29456","v":"Select"},{"$f":"Import!I29556","v":"Select"},{"$f":"Import!I29656","v":0},{"$f":"Import!I29756","v":0},{"$f":"Import!I29856","v":0}]
[11,{"$f":"Import!I29257","v":"Select"},{"$f":"Import!I29357","v":"Select"},{"$f":"Import!I29457","v":"Select"},{"$f":"Import!I29557","v":"Select"},{"$f":"Import!I29657","v":0},{"$f":"Import!I29757","v":0},{"$f":"Import!I29857","v":0}]
[12,{"$f":"Import!I29258","v":"Select"},{"$f":"Import!I29358","v":"Select"},{"$f":"Import!I29458","v":"Select"},{"$f":"Import!I29558","v":"Select"},{"$f":"Import!I29658","v":0},{"$f":"Import!I29758","v":0},{"$f":"Import!I29858","v":0}]
[13,{"$f":"Import!I29259","v":"Select"},{"$f":"Import!I29359","v":"Select"},{"$f":"Import!I29459","v":"Select"},{"$f":"Import!I29559","v":"Select"},{"$f":"Import!I29659","v":0},{"$f":"Import!I29759","v":0},{"$f":"Import!I29859","v":0}]
[14,{"$f":"Import!I29260","v":"Select"},{"$f":"Import!I29360","v":"Select"},{"$f":"Import!I29460","v":"Select"},{"$f":"Import!I29560","v":"Select"},{"$f":"Import!I29660","v":0},{"$f":"Import!I29760","v":0},{"$f":"Import!I29860","v":0}]
[15,{"$f":"Import!I29261","v":"Select"},{"$f":"Import!I29361","v":"Select"},{"$f":"Import!I29461","v":"Select"},{"$f":"Import!I29561","v":"Select"},{"$f":"Import!I29661","v":0},{"$f":"Import!I29761","v":0},{"$f":"Import!I29861","v":0}]
[16,{"$f":"Import!I29262","v":"Select"},{"$f":"Import!I29362","v":"Select"},{"$f":"Import!I29462","v":"Select"},{"$f":"Import!I29562","v":"Select"},{"$f":"Import!I29662","v":0},{"$f":"Import!I29762","v":0},{"$f":"Import!I29862","v":0}]
[17,{"$f":"Import!I29263","v":"Select"},{"$f":"Import!I29363","v":"Select"},{"$f":"Import!I29463","v":"Select"},{"$f":"Import!I29563","v":"Select"},{"$f":"Import!I29663","v":0},{"$f":"Import!I29763","v":0},{"$f":"Import!I29863","v":0}]
[18,{"$f":"Import!I29264","v":"Select"},{"$f":"Import!I29364","v":"Select"},{"$f":"Import!I29464","v":"Select"},{"$f":"Import!I29564","v":"Select"},{"$f":"Import!I29664","v":0},{"$f":"Import!I29764","v":0},{"$f":"Import!I29864","v":0}]
[19,{"$f":"Import!I29265","v":"Select"},{"$f":"Import!I29365","v":"Select"},{"$f":"Import!I29465","v":"Select"},{"$f":"Import!I29565","v":"Select"},{"$f":"Import!I29665","v":0},{"$f":"Import!I29765","v":0},{"$f":"Import!I29865","v":0}]
[20,{"$f":"Import!I29266","v":"Select"},{"$f":"Import!I29366","v":"Select"},{"$f":"Import!I29466","v":"Select"},{"$f":"Import!I29566","v":"Select"},{"$f":"Import!I29666","v":0},{"$f":"Import!I29766","v":0},{"$f":"Import!I29866","v":0}]
[21,{"$f":"Import!I29267","v":"Select"},{"$f":"Import!I29367","v":"Select"},{"$f":"Import!I29467","v":"Select"},{"$f":"Import!I29567","v":"Select"},{"$f":"Import!I29667","v":0},{"$f":"Import!I29767","v":0},{"$f":"Import!I29867","v":0}]
[22,{"$f":"Import!I29268","v":"Select"},{"$f":"Import!I29368","v":"Select"},{"$f":"Import!I29468","v":"Select"},{"$f":"Import!I29568","v":"Select"},{"$f":"Import!I29668","v":0},{"$f":"Import!I29768","v":0},{"$f":"Import!I29868","v":0}]
[23,{"$f":"Import!I29269","v":"Select"},{"$f":"Import!I29369","v":"Select"},{"$f":"Import!I29469","v":"Select"},{"$f":"Import!I29569","v":"Select"},{"$f":"Import!I29669","v":0},{"$f":"Import!I29769","v":0},{"$f":"Import!I29869","v":0}]
[24,{"$f":"Import!I29270","v":"Select"},{"$f":"Import!I29370","v":"Select"},{"$f":"Import!I29470","v":"Select"},{"$f":"Import!I29570","v":"Select"},{"$f":"Import!I29670","v":0},{"$f":"Import!I29770","v":0},{"$f":"Import!I29870","v":0}]
[25,{"$f":"Import!I29271","v":"Select"},{"$f":"Import!I29371","v":"Select"},{"$f":"Import!I29471","v":"Select"},{"$f":"Import!I29571","v":"Select"},{"$f":"Import!I29671","v":0},{"$f":"Import!I29771","v":0},{"$f":"Import!I29871","v":0}]
[26,{"$f":"Import!I29272","v":"Select"},{"$f":"Import!I29372","v":"Select"},{"$f":"Import!I29472","v":"Select"},{"$f":"Import!I29572","v":"Select"},{"$f":"Import!I29672","v":0},{"$f":"Import!I29772","v":0},{"$f":"Import!I29872","v":0}]
[27,{"$f":"Import!I29273","v":"Select"},{"$f":"Import!I29373","v":"Select"},{"$f":"Import!I29473","v":"Select"},{"$f":"Import!I29573","v":"Select"},{"$f":"Import!I29673","v":0},{"$f":"Import!I29773","v":0},{"$f":"Import!I29873","v":0}]
[28,{"$f":"Import!I29274","v":"Select"},{"$f":"Import!I29374","v":"Select"},{"$f":"Import!I29474","v":"Select"},{"$f":"Import!I29574","v":"Select"},{"$f":"Import!I29674","v":0},{"$f":"Import!I29774","v":0},{"$f":"Import!I29874","v":0}]
[29,{"$f":"Import!I29275","v":"Select"},{"$f":"Import!I29375","v":"Select"},{"$f":"Import!I29475","v":"Select"},{"$f":"Import!I29575","v":"Select"},{"$f":"Import!I29675","v":0},{"$f":"Import!I29775","v":0},{"$f":"Import!I29875","v":0}]
[30,{"$f":"Import!I29276","v":"Select"},{"$f":"Import!I29376","v":"Select"},{"$f":"Import!I29476","v":"Select"},{"$f":"Import!I29576","v":"Select"},{"$f":"Import!I29676","v":0},{"$f":"Import!I29776","v":0},{"$f":"Import!I29876","v":0}]
[31,{"$f":"Import!I29277","v":"Select"},{"$f":"Import!I29377","v":"Select"},{"$f":"Import!I29477","v":"Select"},{"$f":"Import!I29577","v":"Select"},{"$f":"Import!I29677","v":0},{"$f":"Import!I29777","v":0},{"$f":"Import!I29877","v":0}]
[32,{"$f":"Import!I29278","v":"Select"},{"$f":"Import!I29378","v":"Select"},{"$f":"Import!I29478","v":"Select"},{"$f":"Import!I29578","v":"Select"},{"$f":"Import!I29678","v":0},{"$f":"Import!I29778","v":0},{"$f":"Import!I29878","v":0}]
[33,{"$f":"Import!I29279","v":"Select"},{"$f":"Import!I29379","v":"Select"},{"$f":"Import!I29479","v":"Select"},{"$f":"Import!I29579","v":"Select"},{"$f":"Import!I29679","v":0},{"$f":"Import!I29779","v":0},{"$f":"Import!I29879","v":0}]
[34,{"$f":"Import!I29280","v":"Select"},{"$f":"Import!I29380","v":"Select"},{"$f":"Import!I29480","v":"Select"},{"$f":"Import!I29580","v":"Select"},{"$f":"Import!I29680","v":0},{"$f":"Import!I29780","v":0},{"$f":"Import!I29880","v":0}]
[35,{"$f":"Import!I29281","v":"Select"},{"$f":"Import!I29381","v":"Select"},{"$f":"Import!I29481","v":"Select"},{"$f":"Import!I29581","v":"Select"},{"$f":"Import!I29681","v":0},{"$f":"Import!I29781","v":0},{"$f":"Import!I29881","v":0}]
[36,{"$f":"Import!I29282","v":"Select"},{"$f":"Import!I29382","v":"Select"},{"$f":"Import!I29482","v":"Select"},{"$f":"Import!I29582","v":"Select"},{"$f":"Import!I29682","v":0},{"$f":"Import!I29782","v":0},{"$f":"Import!I29882","v":0}]
[37,{"$f":"Import!I29283","v":"Select"},{"$f":"Import!I29383","v":"Select"},{"$f":"Import!I29483","v":"Select"},{"$f":"Import!I29583","v":"Select"},{"$f":"Import!I29683","v":0},{"$f":"Import!I29783","v":0},{"$f":"Import!I29883","v":0}]
[38,{"$f":"Import!I29284","v":"Select"},{"$f":"Import!I29384","v":"Select"},{"$f":"Import!I29484","v":"Select"},{"$f":"Import!I29584","v":"Select"},{"$f":"Import!I29684","v":0},{"$f":"Import!I29784","v":0},{"$f":"Import!I29884","v":0}]
[39,{"$f":"Import!I29285","v":"Select"},{"$f":"Import!I29385","v":"Select"},{"$f":"Import!I29485","v":"Select"},{"$f":"Import!I29585","v":"Select"},{"$f":"Import!I29685","v":0},{"$f":"Import!I29785","v":0},{"$f":"Import!I29885","v":0}]
[40,{"$f":"Import!I29286","v":"Select"},{"$f":"Import!I29386","v":"Select"},{"$f":"Import!I29486","v":"Select"},{"$f":"Import!I29586","v":"Select"},{"$f":"Import!I29686","v":0},{"$f":"Import!I29786","v":0},{"$f":"Import!I29886","v":0}]
[41,{"$f":"Import!I29287","v":"Select"},{"$f":"Import!I29387","v":"Select"},{"$f":"Import!I29487","v":"Select"},{"$f":"Import!I29587","v":"Select"},{"$f":"Import!I29687","v":0},{"$f":"Import!I29787","v":0},{"$f":"Import!I29887","v":0}]
[42,{"$f":"Import!I29288","v":"Select"},{"$f":"Import!I29388","v":"Select"},{"$f":"Import!I29488","v":"Select"},{"$f":"Import!I29588","v":"Select"},{"$f":"Import!I29688","v":0},{"$f":"Import!I29788","v":0},{"$f":"Import!I29888","v":0}]
[43,{"$f":"Import!I29289","v":"Select"},{"$f":"Import!I29389","v":"Select"},{"$f":"Import!I29489","v":"Select"},{"$f":"Import!I29589","v":"Select"},{"$f":"Import!I29689","v":0},{"$f":"Import!I29789","v":0},{"$f":"Import!I29889","v":0}]
[44,{"$f":"Import!I29290","v":"Select"},{"$f":"Import!I29390","v":"Select"},{"$f":"Import!I29490","v":"Select"},{"$f":"Import!I29590","v":"Select"},{"$f":"Import!I29690","v":0},{"$f":"Import!I29790","v":0},{"$f":"Import!I29890","v":0}]
[45,{"$f":"Import!I29291","v":"Select"},{"$f":"Import!I29391","v":"Select"},{"$f":"Import!I29491","v":"Select"},{"$f":"Import!I29591","v":"Select"},{"$f":"Import!I29691","v":0},{"$f":"Import!I29791","v":0},{"$f":"Import!I29891","v":0}]
[46,{"$f":"Import!I29292","v":"Select"},{"$f":"Import!I29392","v":"Select"},{"$f":"Import!I29492","v":"Select"},{"$f":"Import!I29592","v":"Select"},{"$f":"Import!I29692","v":0},{"$f":"Import!I29792","v":0},{"$f":"Import!I29892","v":0}]
[47,{"$f":"Import!I29293","v":"Select"},{"$f":"Import!I29393","v":"Select"},{"$f":"Import!I29493","v":"Select"},{"$f":"Import!I29593","v":"Select"},{"$f":"Import!I29693","v":0},{"$f":"Import!I29793","v":0},{"$f":"Import!I29893","v":0}]
[48,{"$f":"Import!I29294","v":"Select"},{"$f":"Import!I29394","v":"Select"},{"$f":"Import!I29494","v":"Select"},{"$f":"Import!I29594","v":"Select"},{"$f":"Import!I29694","v":0},{"$f":"Import!I29794","v":0},{"$f":"Import!I29894","v":0}]
[49,{"$f":"Import!I29295","v":"Select"},{"$f":"Import!I29395","v":"Select"},{"$f":"Import!I29495","v":"Select"},{"$f":"Import!I29595","v":"Select"},{"$f":"Import!I29695","v":0},{"$f":"Import!I29795","v":0},{"$f":"Import!I29895","v":0}]
[50,{"$f":"Import!I29296","v":"Select"},{"$f":"Import!I29396","v":"Select"},{"$f":"Import!I29496","v":"Select"},{"$f":"Import!I29596","v":"Select"},{"$f":"Import!I29696","v":0},{"$f":"Import!I29796","v":0},{"$f":"Import!I29896","v":0}]
[51,{"$f":"Import!I29297","v":"Select"},{"$f":"Import!I29397","v":"Select"},{"$f":"Import!I29497","v":"Select"},{"$f":"Import!I29597","v":"Select"},{"$f":"Import!I29697","v":0},{"$f":"Import!I29797","v":0},{"$f":"Import!I29897","v":0}]
[52,{"$f":"Import!I29298","v":"Select"},{"$f":"Import!I29398","v":"Select"},{"$f":"Import!I29498","v":"Select"},{"$f":"Import!I29598","v":"Select"},{"$f":"Import!I29698","v":0},{"$f":"Import!I29798","v":0},{"$f":"Import!I29898","v":0}]
[53,{"$f":"Import!I29299","v":"Select"},{"$f":"Import!I29399","v":"Select"},{"$f":"Import!I29499","v":"Select"},{"$f":"Import!I29599","v":"Select"},{"$f":"Import!I29699","v":0},{"$f":"Import!I29799","v":0},{"$f":"Import!I29899","v":0}]
[54,{"$f":"Import!I29300","v":"Select"},{"$f":"Import!I29400","v":"Select"},{"$f":"Import!I29500","v":"Select"},{"$f":"Import!I29600","v":"Select"},{"$f":"Import!I29700","v":0},{"$f":"Import!I29800","v":0},{"$f":"Import!I29900","v":0}]
[55,{"$f":"Import!I29301","v":"Select"},{"$f":"Import!I29401","v":"Select"},{"$f":"Import!I29501","v":"Select"},{"$f":"Import!I29601","v":"Select"},{"$f":"Import!I29701","v":0},{"$f":"Import!I29801","v":0},{"$f":"Import!I29901","v":0}]
[56,{"$f":"Import!I29302","v":"Select"},{"$f":"Import!I29402","v":"Select"},{"$f":"Import!I29502","v":"Select"},{"$f":"Import!I29602","v":"Select"},{"$f":"Import!I29702","v":0},{"$f":"Import!I29802","v":0},{"$f":"Import!I29902","v":0}]
[57,{"$f":"Import!I29303","v":"Select"},{"$f":"Import!I29403","v":"Select"},{"$f":"Import!I29503","v":"Select"},{"$f":"Import!I29603","v":"Select"},{"$f":"Import!I29703","v":0},{"$f":"Import!I29803","v":0},{"$f":"Import!I29903","v":0}]
[58,{"$f":"Import!I29304","v":"Select"},{"$f":"Import!I29404","v":"Select"},{"$f":"Import!I29504","v":"Select"},{"$f":"Import!I29604","v":"Select"},{"$f":"Import!I29704","v":0},{"$f":"Import!I29804","v":0},{"$f":"Import!I29904","v":0}]
[59,{"$f":"Import!I29305","v":"Select"},{"$f":"Import!I29405","v":"Select"},{"$f":"Import!I29505","v":"Select"},{"$f":"Import!I29605","v":"Select"},{"$f":"Import!I29705","v":0},{"$f":"Import!I29805","v":0},{"$f":"Import!I29905","v":0}]
[60,{"$f":"Import!I29306","v":"Select"},{"$f":"Import!I29406","v":"Select"},{"$f":"Import!I29506","v":"Select"},{"$f":"Import!I29606","v":"Select"},{"$f":"Import!I29706","v":0},{"$f":"Import!I29806","v":0},{"$f":"Import!I29906","v":0}]
[61,{"$f":"Import!I29307","v":"Select"},{"$f":"Import!I29407","v":"Select"},{"$f":"Import!I29507","v":"Select"},{"$f":"Import!I29607","v":"Select"},{"$f":"Import!I29707","v":0},{"$f":"Import!I29807","v":0},{"$f":"Import!I29907","v":0}]
[62,{"$f":"Import!I29308","v":"Select"},{"$f":"Import!I29408","v":"Select"},{"$f":"Import!I29508","v":"Select"},{"$f":"Import!I29608","v":"Select"},{"$f":"Import!I29708","v":0},{"$f":"Import!I29808","v":0},{"$f":"Import!I29908","v":0}]
[63,{"$f":"Import!I29309","v":"Select"},{"$f":"Import!I29409","v":"Select"},{"$f":"Import!I29509","v":"Select"},{"$f":"Import!I29609","v":"Select"},{"$f":"Import!I29709","v":0},{"$f":"Import!I29809","v":0},{"$f":"Import!I29909","v":0}]
[64,{"$f":"Import!I29310","v":"Select"},{"$f":"Import!I29410","v":"Select"},{"$f":"Import!I29510","v":"Select"},{"$f":"Import!I29610","v":"Select"},{"$f":"Import!I29710","v":0},{"$f":"Import!I29810","v":0},{"$f":"Import!I29910","v":0}]
[65,{"$f":"Import!I29311","v":"Select"},{"$f":"Import!I29411","v":"Select"},{"$f":"Import!I29511","v":"Select"},{"$f":"Import!I29611","v":"Select"},{"$f":"Import!I29711","v":0},{"$f":"Import!I29811","v":0},{"$f":"Import!I29911","v":0}]
[66,{"$f":"Import!I29312","v":"Select"},{"$f":"Import!I29412","v":"Select"},{"$f":"Import!I29512","v":"Select"},{"$f":"Import!I29612","v":"Select"},{"$f":"Import!I29712","v":0},{"$f":"Import!I29812","v":0},{"$f":"Import!I29912","v":0}]
[{"$f":"A1410+1","v":67},{"$f":"Import!I29313","v":"Select"},{"$f":"Import!I29413","v":"Select"},{"$f":"Import!I29513","v":"Select"},{"$f":"Import!I29613","v":"Select"},{"$f":"Import!I29713","v":0},{"$f":"Import!I29813","v":0},{"$f":"Import!I29913","v":0}]
[68,{"$f":"Import!I29314","v":"Select"},{"$f":"Import!I29414","v":"Select"},{"$f":"Import!I29514","v":"Select"},{"$f":"Import!I29614","v":"Select"},{"$f":"Import!I29714","v":0},{"$f":"Import!I29814","v":0},{"$f":"Import!I29914","v":0}]
[69,{"$f":"Import!I29315","v":"Select"},{"$f":"Import!I29415","v":"Select"},{"$f":"Import!I29515","v":"Select"},{"$f":"Import!I29615","v":"Select"},{"$f":"Import!I29715","v":0},{"$f":"Import!I29815","v":0},{"$f":"Import!I29915","v":0}]
[70,{"$f":"Import!I29316","v":"Select"},{"$f":"Import!I29416","v":"Select"},{"$f":"Import!I29516","v":"Select"},{"$f":"Import!I29616","v":"Select"},{"$f":"Import!I29716","v":0},{"$f":"Import!I29816","v":0},{"$f":"Import!I29916","v":0}]
[71,{"$f":"Import!I29317","v":"Select"},{"$f":"Import!I29417","v":"Select"},{"$f":"Import!I29517","v":"Select"},{"$f":"Import!I29617","v":"Select"},{"$f":"Import!I29717","v":0},{"$f":"Import!I29817","v":0},{"$f":"Import!I29917","v":0}]
[72,{"$f":"Import!I29318","v":"Select"},{"$f":"Import!I29418","v":"Select"},{"$f":"Import!I29518","v":"Select"},{"$f":"Import!I29618","v":"Select"},{"$f":"Import!I29718","v":0},{"$f":"Import!I29818","v":0},{"$f":"Import!I29918","v":0}]
[73,{"$f":"Import!I29319","v":"Select"},{"$f":"Import!I29419","v":"Select"},{"$f":"Import!I29519","v":"Select"},{"$f":"Import!I29619","v":"Select"},{"$f":"Import!I29719","v":0},{"$f":"Import!I29819","v":0},{"$f":"Import!I29919","v":0}]
[74,{"$f":"Import!I29320","v":"Select"},{"$f":"Import!I29420","v":"Select"},{"$f":"Import!I29520","v":"Select"},{"$f":"Import!I29620","v":"Select"},{"$f":"Import!I29720","v":0},{"$f":"Import!I29820","v":0},{"$f":"Import!I29920","v":0}]
[75,{"$f":"Import!I29321","v":"Select"},{"$f":"Import!I29421","v":"Select"},{"$f":"Import!I29521","v":"Select"},{"$f":"Import!I29621","v":"Select"},{"$f":"Import!I29721","v":0},{"$f":"Import!I29821","v":0},{"$f":"Import!I29921","v":0}]
[76,{"$f":"Import!I29322","v":"Select"},{"$f":"Import!I29422","v":"Select"},{"$f":"Import!I29522","v":"Select"},{"$f":"Import!I29622","v":"Select"},{"$f":"Import!I29722","v":0},{"$f":"Import!I29822","v":0},{"$f":"Import!I29922","v":0}]
[77,{"$f":"Import!I29323","v":"Select"},{"$f":"Import!I29423","v":"Select"},{"$f":"Import!I29523","v":"Select"},{"$f":"Import!I29623","v":"Select"},{"$f":"Import!I29723","v":0},{"$f":"Import!I29823","v":0},{"$f":"Import!I29923","v":0}]
[78,{"$f":"Import!I29324","v":"Select"},{"$f":"Import!I29424","v":"Select"},{"$f":"Import!I29524","v":"Select"},{"$f":"Import!I29624","v":"Select"},{"$f":"Import!I29724","v":0},{"$f":"Import!I29824","v":0},{"$f":"Import!I29924","v":0}]
[79,{"$f":"Import!I29325","v":"Select"},{"$f":"Import!I29425","v":"Select"},{"$f":"Import!I29525","v":"Select"},{"$f":"Import!I29625","v":"Select"},{"$f":"Import!I29725","v":0},{"$f":"Import!I29825","v":0},{"$f":"Import!I29925","v":0}]
[80,{"$f":"Import!I29326","v":"Select"},{"$f":"Import!I29426","v":"Select"},{"$f":"Import!I29526","v":"Select"},{"$f":"Import!I29626","v":"Select"},{"$f":"Import!I29726","v":0},{"$f":"Import!I29826","v":0},{"$f":"Import!I29926","v":0}]
[81,{"$f":"Import!I29327","v":"Select"},{"$f":"Import!I29427","v":"Select"},{"$f":"Import!I29527","v":"Select"},{"$f":"Import!I29627","v":"Select"},{"$f":"Import!I29727","v":0},{"$f":"Import!I29827","v":0},{"$f":"Import!I29927","v":0}]
[82,{"$f":"Import!I29328","v":"Select"},{"$f":"Import!I29428","v":"Select"},{"$f":"Import!I29528","v":"Select"},{"$f":"Import!I29628","v":"Select"},{"$f":"Import!I29728","v":0},{"$f":"Import!I29828","v":0},{"$f":"Import!I29928","v":0}]
[83,{"$f":"Import!I29329","v":"Select"},{"$f":"Import!I29429","v":"Select"},{"$f":"Import!I29529","v":"Select"},{"$f":"Import!I29629","v":"Select"},{"$f":"Import!I29729","v":0},{"$f":"Import!I29829","v":0},{"$f":"Import!I29929","v":0}]
[84,{"$f":"Import!I29330","v":"Select"},{"$f":"Import!I29430","v":"Select"},{"$f":"Import!I29530","v":"Select"},{"$f":"Import!I29630","v":"Select"},{"$f":"Import!I29730","v":0},{"$f":"Import!I29830","v":0},{"$f":"Import!I29930","v":0}]
[85,{"$f":"Import!I29331","v":"Select"},{"$f":"Import!I29431","v":"Select"},{"$f":"Import!I29531","v":"Select"},{"$f":"Import!I29631","v":"Select"},{"$f":"Import!I29731","v":0},{"$f":"Import!I29831","v":0},{"$f":"Import!I29931","v":0}]
[86,{"$f":"Import!I29332","v":"Select"},{"$f":"Import!I29432","v":"Select"},{"$f":"Import!I29532","v":"Select"},{"$f":"Import!I29632","v":"Select"},{"$f":"Import!I29732","v":0},{"$f":"Import!I29832","v":0},{"$f":"Import!I29932","v":0}]
[87,{"$f":"Import!I29333","v":"Select"},{"$f":"Import!I29433","v":"Select"},{"$f":"Import!I29533","v":"Select"},{"$f":"Import!I29633","v":"Select"},{"$f":"Import!I29733","v":0},{"$f":"Import!I29833","v":0},{"$f":"Import!I29933","v":0}]
[88,{"$f":"Import!I29334","v":"Select"},{"$f":"Import!I29434","v":"Select"},{"$f":"Import!I29534","v":"Select"},{"$f":"Import!I29634","v":"Select"},{"$f":"Import!I29734","v":0},{"$f":"Import!I29834","v":0},{"$f":"Import!I29934","v":0}]
[89,{"$f":"Import!I29335","v":"Select"},{"$f":"Import!I29435","v":"Select"},{"$f":"Import!I29535","v":"Select"},{"$f":"Import!I29635","v":"Select"},{"$f":"Import!I29735","v":0},{"$f":"Import!I29835","v":0},{"$f":"Import!I29935","v":0}]
[90,{"$f":"Import!I29336","v":"Select"},{"$f":"Import!I29436","v":"Select"},{"$f":"Import!I29536","v":"Select"},{"$f":"Import!I29636","v":"Select"},{"$f":"Import!I29736","v":0},{"$f":"Import!I29836","v":0},{"$f":"Import!I29936","v":0}]
[91,{"$f":"Import!I29337","v":"Select"},{"$f":"Import!I29437","v":"Select"},{"$f":"Import!I29537","v":"Select"},{"$f":"Import!I29637","v":"Select"},{"$f":"Import!I29737","v":0},{"$f":"Import!I29837","v":0},{"$f":"Import!I29937","v":0}]
[92,{"$f":"Import!I29338","v":"Select"},{"$f":"Import!I29438","v":"Select"},{"$f":"Import!I29538","v":"Select"},{"$f":"Import!I29638","v":"Select"},{"$f":"Import!I29738","v":0},{"$f":"Import!I29838","v":0},{"$f":"Import!I29938","v":0}]
[93,{"$f":"Import!I29339","v":"Select"},{"$f":"Import!I29439","v":"Select"},{"$f":"Import!I29539","v":"Select"},{"$f":"Import!I29639","v":"Select"},{"$f":"Import!I29739","v":0},{"$f":"Import!I29839","v":0},{"$f":"Import!I29939","v":0}]
[94,{"$f":"Import!I29340","v":"Select"},{"$f":"Import!I29440","v":"Select"},{"$f":"Import!I29540","v":"Select"},{"$f":"Import!I29640","v":"Select"},{"$f":"Import!I29740","v":0},{"$f":"Import!I29840","v":0},{"$f":"Import!I29940","v":0}]
[95,{"$f":"Import!I29341","v":"Select"},{"$f":"Import!I29441","v":"Select"},{"$f":"Import!I29541","v":"Select"},{"$f":"Import!I29641","v":"Select"},{"$f":"Import!I29741","v":0},{"$f":"Import!I29841","v":0},{"$f":"Import!I29941","v":0}]
[96,{"$f":"Import!I29342","v":"Select"},{"$f":"Import!I29442","v":"Select"},{"$f":"Import!I29542","v":"Select"},{"$f":"Import!I29642","v":"Select"},{"$f":"Import!I29742","v":0},{"$f":"Import!I29842","v":0},{"$f":"Import!I29942","v":0}]
[97,{"$f":"Import!I29343","v":"Select"},{"$f":"Import!I29443","v":"Select"},{"$f":"Import!I29543","v":"Select"},{"$f":"Import!I29643","v":"Select"},{"$f":"Import!I29743","v":0},{"$f":"Import!I29843","v":0},{"$f":"Import!I29943","v":0}]
[98,{"$f":"Import!I29344","v":"Select"},{"$f":"Import!I29444","v":"Select"},{"$f":"Import!I29544","v":"Select"},{"$f":"Import!I29644","v":"Select"},{"$f":"Import!I29744","v":0},{"$f":"Import!I29844","v":0},{"$f":"Import!I29944","v":0}]
[99,{"$f":"Import!I29345","v":"Select"},{"$f":"Import!I29445","v":"Select"},{"$f":"Import!I29545","v":"Select"},{"$f":"Import!I29645","v":"Select"},{"$f":"Import!I29745","v":0},{"$f":"Import!I29845","v":0},{"$f":"Import!I29945","v":0}]
[100,{"$f":"Import!I29346","v":"Select"},{"$f":"Import!I29446","v":"Select"},{"$f":"Import!I29546","v":"Select"},{"$f":"Import!I29646","v":"Select"},{"$f":"Import!I29746","v":0},{"$f":"Import!I29846","v":0},{"$f":"Import!I29946","v":0}]
[]
[null,"Total Real Estate",null,null,null,{"$f":"SUM(F1345:F1444)","v":0},{"$f":"SUM(G1345:G1444)","v":0}]
[]
[null,"(H) OTHER ALTERNATIVE INVESTMENTS"]
[]
[null,null,"Enter # of Asset Types",{"$f":"Import!I29947","v":0}]
[null,null,null,null,null,{"$f":"YEAR($C$3)","v":2023},2023,"Weighted"]
[null,"Asset Type","Currency","Country","BSCR Rating","Nominal Amount","Fair Value","Average YTM","Effective Duration","Comments"]
[1,{"$f":"Import!I29948","v":"Select"},{"$f":"Import!I30048","v":"Select"},{"$f":"Import!I30148","v":"Select"},{"$f":"Import!I30248","v":"Select"},{"$f":"Import!I30348","v":0},{"$f":"Import!I30448","v":0},{"$f":"Import!I30548","v":0},{"$f":"Import!I30648","v":0},{"$f":"Import!I30748","v":0}]
[{"$f":"A1453+1","v":2},{"$f":"Import!I29949","v":"Select"},{"$f":"Import!I30049","v":"Select"},{"$f":"Import!I30149","v":"Select"},{"$f":"Import!I30249","v":"Select"},{"$f":"Import!I30349","v":0},{"$f":"Import!I30449","v":0},{"$f":"Import!I30549","v":0},{"$f":"Import!I30649","v":0},{"$f":"Import!I30749","v":0}]
[{"$f":"A1454+1","v":3},{"$f":"Import!I29950","v":"Select"},{"$f":"Import!I30050","v":"Select"},{"$f":"Import!I30150","v":"Select"},{"$f":"Import!I30250","v":"Select"},{"$f":"Import!I30350","v":0},{"$f":"Import!I30450","v":0},{"$f":"Import!I30550","v":0},{"$f":"Import!I30650","v":0},{"$f":"Import!I30750","v":0}]
[4,{"$f":"Import!I29951","v":"Select"},{"$f":"Import!I30051","v":"Select"},{"$f":"Import!I30151","v":"Select"},{"$f":"Import!I30251","v":"Select"},{"$f":"Import!I30351","v":0},{"$f":"Import!I30451","v":0},{"$f":"Import!I30551","v":0},{"$f":"Import!I30651","v":0},{"$f":"Import!I30751","v":0}]
[5,{"$f":"Import!I29952","v":"Select"},{"$f":"Import!I30052","v":"Select"},{"$f":"Import!I30152","v":"Select"},{"$f":"Import!I30252","v":"Select"},{"$f":"Import!I30352","v":0},{"$f":"Import!I30452","v":0},{"$f":"Import!I30552","v":0},{"$f":"Import!I30652","v":0},{"$f":"Import!I30752","v":0}]
[6,{"$f":"Import!I29953","v":"Select"},{"$f":"Import!I30053","v":"Select"},{"$f":"Import!I30153","v":"Select"},{"$f":"Import!I30253","v":"Select"},{"$f":"Import!I30353","v":0},{"$f":"Import!I30453","v":0},{"$f":"Import!I30553","v":0},{"$f":"Import!I30653","v":0},{"$f":"Import!I30753","v":0}]
[7,{"$f":"Import!I29954","v":"Select"},{"$f":"Import!I30054","v":"Select"},{"$f":"Import!I30154","v":"Select"},{"$f":"Import!I30254","v":"Select"},{"$f":"Import!I30354","v":0},{"$f":"Import!I30454","v":0},{"$f":"Import!I30554","v":0},{"$f":"Import!I30654","v":0},{"$f":"Import!I30754","v":0}]
[8,{"$f":"Import!I29955","v":"Select"},{"$f":"Import!I30055","v":"Select"},{"$f":"Import!I30155","v":"Select"},{"$f":"Import!I30255","v":"Select"},{"$f":"Import!I30355","v":0},{"$f":"Import!I30455","v":0},{"$f":"Import!I30555","v":0},{"$f":"Import!I30655","v":0},{"$f":"Import!I30755","v":0}]
[9,{"$f":"Import!I29956","v":"Select"},{"$f":"Import!I30056","v":"Select"},{"$f":"Import!I30156","v":"Select"},{"$f":"Import!I30256","v":"Select"},{"$f":"Import!I30356","v":0},{"$f":"Import!I30456","v":0},{"$f":"Import!I30556","v":0},{"$f":"Import!I30656","v":0},{"$f":"Import!I30756","v":0}]
[10,{"$f":"Import!I29957","v":"Select"},{"$f":"Import!I30057","v":"Select"},{"$f":"Import!I30157","v":"Select"},{"$f":"Import!I30257","v":"Select"},{"$f":"Import!I30357","v":0},{"$f":"Import!I30457","v":0},{"$f":"Import!I30557","v":0},{"$f":"Import!I30657","v":0},{"$f":"Import!I30757","v":0}]
[11,{"$f":"Import!I29958","v":"Select"},{"$f":"Import!I30058","v":"Select"},{"$f":"Import!I30158","v":"Select"},{"$f":"Import!I30258","v":"Select"},{"$f":"Import!I30358","v":0},{"$f":"Import!I30458","v":0},{"$f":"Import!I30558","v":0},{"$f":"Import!I30658","v":0},{"$f":"Import!I30758","v":0}]
[12,{"$f":"Import!I29959","v":"Select"},{"$f":"Import!I30059","v":"Select"},{"$f":"Import!I30159","v":"Select"},{"$f":"Import!I30259","v":"Select"},{"$f":"Import!I30359","v":0},{"$f":"Import!I30459","v":0},{"$f":"Import!I30559","v":0},{"$f":"Import!I30659","v":0},{"$f":"Import!I30759","v":0}]
[13,{"$f":"Import!I29960","v":"Select"},{"$f":"Import!I30060","v":"Select"},{"$f":"Import!I30160","v":"Select"},{"$f":"Import!I30260","v":"Select"},{"$f":"Import!I30360","v":0},{"$f":"Import!I30460","v":0},{"$f":"Import!I30560","v":0},{"$f":"Import!I30660","v":0},{"$f":"Import!I30760","v":0}]
[14,{"$f":"Import!I29961","v":"Select"},{"$f":"Import!I30061","v":"Select"},{"$f":"Import!I30161","v":"Select"},{"$f":"Import!I30261","v":"Select"},{"$f":"Import!I30361","v":0},{"$f":"Import!I30461","v":0},{"$f":"Import!I30561","v":0},{"$f":"Import!I30661","v":0},{"$f":"Import!I30761","v":0}]
[15,{"$f":"Import!I29962","v":"Select"},{"$f":"Import!I30062","v":"Select"},{"$f":"Import!I30162","v":"Select"},{"$f":"Import!I30262","v":"Select"},{"$f":"Import!I30362","v":0},{"$f":"Import!I30462","v":0},{"$f":"Import!I30562","v":0},{"$f":"Import!I30662","v":0},{"$f":"Import!I30762","v":0}]
[16,{"$f":"Import!I29963","v":"Select"},{"$f":"Import!I30063","v":"Select"},{"$f":"Import!I30163","v":"Select"},{"$f":"Import!I30263","v":"Select"},{"$f":"Import!I30363","v":0},{"$f":"Import!I30463","v":0},{"$f":"Import!I30563","v":0},{"$f":"Import!I30663","v":0},{"$f":"Import!I30763","v":0}]
[17,{"$f":"Import!I29964","v":"Select"},{"$f":"Import!I30064","v":"Select"},{"$f":"Import!I30164","v":"Select"},{"$f":"Import!I30264","v":"Select"},{"$f":"Import!I30364","v":0},{"$f":"Import!I30464","v":0},{"$f":"Import!I30564","v":0},{"$f":"Import!I30664","v":0},{"$f":"Import!I30764","v":0}]
[18,{"$f":"Import!I29965","v":"Select"},{"$f":"Import!I30065","v":"Select"},{"$f":"Import!I30165","v":"Select"},{"$f":"Import!I30265","v":"Select"},{"$f":"Import!I30365","v":0},{"$f":"Import!I30465","v":0},{"$f":"Import!I30565","v":0},{"$f":"Import!I30665","v":0},{"$f":"Import!I30765","v":0}]
[19,{"$f":"Import!I29966","v":"Select"},{"$f":"Import!I30066","v":"Select"},{"$f":"Import!I30166","v":"Select"},{"$f":"Import!I30266","v":"Select"},{"$f":"Import!I30366","v":0},{"$f":"Import!I30466","v":0},{"$f":"Import!I30566","v":0},{"$f":"Import!I30666","v":0},{"$f":"Import!I30766","v":0}]
[20,{"$f":"Import!I29967","v":"Select"},{"$f":"Import!I30067","v":"Select"},{"$f":"Import!I30167","v":"Select"},{"$f":"Import!I30267","v":"Select"},{"$f":"Import!I30367","v":0},{"$f":"Import!I30467","v":0},{"$f":"Import!I30567","v":0},{"$f":"Import!I30667","v":0},{"$f":"Import!I30767","v":0}]
[21,{"$f":"Import!I29968","v":"Select"},{"$f":"Import!I30068","v":"Select"},{"$f":"Import!I30168","v":"Select"},{"$f":"Import!I30268","v":"Select"},{"$f":"Import!I30368","v":0},{"$f":"Import!I30468","v":0},{"$f":"Import!I30568","v":0},{"$f":"Import!I30668","v":0},{"$f":"Import!I30768","v":0}]
[22,{"$f":"Import!I29969","v":"Select"},{"$f":"Import!I30069","v":"Select"},{"$f":"Import!I30169","v":"Select"},{"$f":"Import!I30269","v":"Select"},{"$f":"Import!I30369","v":0},{"$f":"Import!I30469","v":0},{"$f":"Import!I30569","v":0},{"$f":"Import!I30669","v":0},{"$f":"Import!I30769","v":0}]
[23,{"$f":"Import!I29970","v":"Select"},{"$f":"Import!I30070","v":"Select"},{"$f":"Import!I30170","v":"Select"},{"$f":"Import!I30270","v":"Select"},{"$f":"Import!I30370","v":0},{"$f":"Import!I30470","v":0},{"$f":"Import!I30570","v":0},{"$f":"Import!I30670","v":0},{"$f":"Import!I30770","v":0}]
[24,{"$f":"Import!I29971","v":"Select"},{"$f":"Import!I30071","v":"Select"},{"$f":"Import!I30171","v":"Select"},{"$f":"Import!I30271","v":"Select"},{"$f":"Import!I30371","v":0},{"$f":"Import!I30471","v":0},{"$f":"Import!I30571","v":0},{"$f":"Import!I30671","v":0},{"$f":"Import!I30771","v":0}]
[25,{"$f":"Import!I29972","v":"Select"},{"$f":"Import!I30072","v":"Select"},{"$f":"Import!I30172","v":"Select"},{"$f":"Import!I30272","v":"Select"},{"$f":"Import!I30372","v":0},{"$f":"Import!I30472","v":0},{"$f":"Import!I30572","v":0},{"$f":"Import!I30672","v":0},{"$f":"Import!I30772","v":0}]
[26,{"$f":"Import!I29973","v":"Select"},{"$f":"Import!I30073","v":"Select"},{"$f":"Import!I30173","v":"Select"},{"$f":"Import!I30273","v":"Select"},{"$f":"Import!I30373","v":0},{"$f":"Import!I30473","v":0},{"$f":"Import!I30573","v":0},{"$f":"Import!I30673","v":0},{"$f":"Import!I30773","v":0}]
[27,{"$f":"Import!I29974","v":"Select"},{"$f":"Import!I30074","v":"Select"},{"$f":"Import!I30174","v":"Select"},{"$f":"Import!I30274","v":"Select"},{"$f":"Import!I30374","v":0},{"$f":"Import!I30474","v":0},{"$f":"Import!I30574","v":0},{"$f":"Import!I30674","v":0},{"$f":"Import!I30774","v":0}]
[28,{"$f":"Import!I29975","v":"Select"},{"$f":"Import!I30075","v":"Select"},{"$f":"Import!I30175","v":"Select"},{"$f":"Import!I30275","v":"Select"},{"$f":"Import!I30375","v":0},{"$f":"Import!I30475","v":0},{"$f":"Import!I30575","v":0},{"$f":"Import!I30675","v":0},{"$f":"Import!I30775","v":0}]
[29,{"$f":"Import!I29976","v":"Select"},{"$f":"Import!I30076","v":"Select"},{"$f":"Import!I30176","v":"Select"},{"$f":"Import!I30276","v":"Select"},{"$f":"Import!I30376","v":0},{"$f":"Import!I30476","v":0},{"$f":"Import!I30576","v":0},{"$f":"Import!I30676","v":0},{"$f":"Import!I30776","v":0}]
[30,{"$f":"Import!I29977","v":"Select"},{"$f":"Import!I30077","v":"Select"},{"$f":"Import!I30177","v":"Select"},{"$f":"Import!I30277","v":"Select"},{"$f":"Import!I30377","v":0},{"$f":"Import!I30477","v":0},{"$f":"Import!I30577","v":0},{"$f":"Import!I30677","v":0},{"$f":"Import!I30777","v":0}]
[31,{"$f":"Import!I29978","v":"Select"},{"$f":"Import!I30078","v":"Select"},{"$f":"Import!I30178","v":"Select"},{"$f":"Import!I30278","v":"Select"},{"$f":"Import!I30378","v":0},{"$f":"Import!I30478","v":0},{"$f":"Import!I30578","v":0},{"$f":"Import!I30678","v":0},{"$f":"Import!I30778","v":0}]
[32,{"$f":"Import!I29979","v":"Select"},{"$f":"Import!I30079","v":"Select"},{"$f":"Import!I30179","v":"Select"},{"$f":"Import!I30279","v":"Select"},{"$f":"Import!I30379","v":0},{"$f":"Import!I30479","v":0},{"$f":"Import!I30579","v":0},{"$f":"Import!I30679","v":0},{"$f":"Import!I30779","v":0}]
[33,{"$f":"Import!I29980","v":"Select"},{"$f":"Import!I30080","v":"Select"},{"$f":"Import!I30180","v":"Select"},{"$f":"Import!I30280","v":"Select"},{"$f":"Import!I30380","v":0},{"$f":"Import!I30480","v":0},{"$f":"Import!I30580","v":0},{"$f":"Import!I30680","v":0},{"$f":"Import!I30780","v":0}]
[34,{"$f":"Import!I29981","v":"Select"},{"$f":"Import!I30081","v":"Select"},{"$f":"Import!I30181","v":"Select"},{"$f":"Import!I30281","v":"Select"},{"$f":"Import!I30381","v":0},{"$f":"Import!I30481","v":0},{"$f":"Import!I30581","v":0},{"$f":"Import!I30681","v":0},{"$f":"Import!I30781","v":0}]
[35,{"$f":"Import!I29982","v":"Select"},{"$f":"Import!I30082","v":"Select"},{"$f":"Import!I30182","v":"Select"},{"$f":"Import!I30282","v":"Select"},{"$f":"Import!I30382","v":0},{"$f":"Import!I30482","v":0},{"$f":"Import!I30582","v":0},{"$f":"Import!I30682","v":0},{"$f":"Import!I30782","v":0}]
[36,{"$f":"Import!I29983","v":"Select"},{"$f":"Import!I30083","v":"Select"},{"$f":"Import!I30183","v":"Select"},{"$f":"Import!I30283","v":"Select"},{"$f":"Import!I30383","v":0},{"$f":"Import!I30483","v":0},{"$f":"Import!I30583","v":0},{"$f":"Import!I30683","v":0},{"$f":"Import!I30783","v":0}]
[37,{"$f":"Import!I29984","v":"Select"},{"$f":"Import!I30084","v":"Select"},{"$f":"Import!I30184","v":"Select"},{"$f":"Import!I30284","v":"Select"},{"$f":"Import!I30384","v":0},{"$f":"Import!I30484","v":0},{"$f":"Import!I30584","v":0},{"$f":"Import!I30684","v":0},{"$f":"Import!I30784","v":0}]
[38,{"$f":"Import!I29985","v":"Select"},{"$f":"Import!I30085","v":"Select"},{"$f":"Import!I30185","v":"Select"},{"$f":"Import!I30285","v":"Select"},{"$f":"Import!I30385","v":0},{"$f":"Import!I30485","v":0},{"$f":"Import!I30585","v":0},{"$f":"Import!I30685","v":0},{"$f":"Import!I30785","v":0}]
[39,{"$f":"Import!I29986","v":"Select"},{"$f":"Import!I30086","v":"Select"},{"$f":"Import!I30186","v":"Select"},{"$f":"Import!I30286","v":"Select"},{"$f":"Import!I30386","v":0},{"$f":"Import!I30486","v":0},{"$f":"Import!I30586","v":0},{"$f":"Import!I30686","v":0},{"$f":"Import!I30786","v":0}]
[40,{"$f":"Import!I29987","v":"Select"},{"$f":"Import!I30087","v":"Select"},{"$f":"Import!I30187","v":"Select"},{"$f":"Import!I30287","v":"Select"},{"$f":"Import!I30387","v":0},{"$f":"Import!I30487","v":0},{"$f":"Import!I30587","v":0},{"$f":"Import!I30687","v":0},{"$f":"Import!I30787","v":0}]
[41,{"$f":"Import!I29988","v":"Select"},{"$f":"Import!I30088","v":"Select"},{"$f":"Import!I30188","v":"Select"},{"$f":"Import!I30288","v":"Select"},{"$f":"Import!I30388","v":0},{"$f":"Import!I30488","v":0},{"$f":"Import!I30588","v":0},{"$f":"Import!I30688","v":0},{"$f":"Import!I30788","v":0}]
[42,{"$f":"Import!I29989","v":"Select"},{"$f":"Import!I30089","v":"Select"},{"$f":"Import!I30189","v":"Select"},{"$f":"Import!I30289","v":"Select"},{"$f":"Import!I30389","v":0},{"$f":"Import!I30489","v":0},{"$f":"Import!I30589","v":0},{"$f":"Import!I30689","v":0},{"$f":"Import!I30789","v":0}]
[43,{"$f":"Import!I29990","v":"Select"},{"$f":"Import!I30090","v":"Select"},{"$f":"Import!I30190","v":"Select"},{"$f":"Import!I30290","v":"Select"},{"$f":"Import!I30390","v":0},{"$f":"Import!I30490","v":0},{"$f":"Import!I30590","v":0},{"$f":"Import!I30690","v":0},{"$f":"Import!I30790","v":0}]
[44,{"$f":"Import!I29991","v":"Select"},{"$f":"Import!I30091","v":"Select"},{"$f":"Import!I30191","v":"Select"},{"$f":"Import!I30291","v":"Select"},{"$f":"Import!I30391","v":0},{"$f":"Import!I30491","v":0},{"$f":"Import!I30591","v":0},{"$f":"Import!I30691","v":0},{"$f":"Import!I30791","v":0}]
[45,{"$f":"Import!I29992","v":"Select"},{"$f":"Import!I30092","v":"Select"},{"$f":"Import!I30192","v":"Select"},{"$f":"Import!I30292","v":"Select"},{"$f":"Import!I30392","v":0},{"$f":"Import!I30492","v":0},{"$f":"Import!I30592","v":0},{"$f":"Import!I30692","v":0},{"$f":"Import!I30792","v":0}]
[46,{"$f":"Import!I29993","v":"Select"},{"$f":"Import!I30093","v":"Select"},{"$f":"Import!I30193","v":"Select"},{"$f":"Import!I30293","v":"Select"},{"$f":"Import!I30393","v":0},{"$f":"Import!I30493","v":0},{"$f":"Import!I30593","v":0},{"$f":"Import!I30693","v":0},{"$f":"Import!I30793","v":0}]
[47,{"$f":"Import!I29994","v":"Select"},{"$f":"Import!I30094","v":"Select"},{"$f":"Import!I30194","v":"Select"},{"$f":"Import!I30294","v":"Select"},{"$f":"Import!I30394","v":0},{"$f":"Import!I30494","v":0},{"$f":"Import!I30594","v":0},{"$f":"Import!I30694","v":0},{"$f":"Import!I30794","v":0}]
[48,{"$f":"Import!I29995","v":"Select"},{"$f":"Import!I30095","v":"Select"},{"$f":"Import!I30195","v":"Select"},{"$f":"Import!I30295","v":"Select"},{"$f":"Import!I30395","v":0},{"$f":"Import!I30495","v":0},{"$f":"Import!I30595","v":0},{"$f":"Import!I30695","v":0},{"$f":"Import!I30795","v":0}]
[49,{"$f":"Import!I29996","v":"Select"},{"$f":"Import!I30096","v":"Select"},{"$f":"Import!I30196","v":"Select"},{"$f":"Import!I30296","v":"Select"},{"$f":"Import!I30396","v":0},{"$f":"Import!I30496","v":0},{"$f":"Import!I30596","v":0},{"$f":"Import!I30696","v":0},{"$f":"Import!I30796","v":0}]
[50,{"$f":"Import!I29997","v":"Select"},{"$f":"Import!I30097","v":"Select"},{"$f":"Import!I30197","v":"Select"},{"$f":"Import!I30297","v":"Select"},{"$f":"Import!I30397","v":0},{"$f":"Import!I30497","v":0},{"$f":"Import!I30597","v":0},{"$f":"Import!I30697","v":0},{"$f":"Import!I30797","v":0}]
[51,{"$f":"Import!I29998","v":"Select"},{"$f":"Import!I30098","v":"Select"},{"$f":"Import!I30198","v":"Select"},{"$f":"Import!I30298","v":"Select"},{"$f":"Import!I30398","v":0},{"$f":"Import!I30498","v":0},{"$f":"Import!I30598","v":0},{"$f":"Import!I30698","v":0},{"$f":"Import!I30798","v":0}]
[52,{"$f":"Import!I29999","v":"Select"},{"$f":"Import!I30099","v":"Select"},{"$f":"Import!I30199","v":"Select"},{"$f":"Import!I30299","v":"Select"},{"$f":"Import!I30399","v":0},{"$f":"Import!I30499","v":0},{"$f":"Import!I30599","v":0},{"$f":"Import!I30699","v":0},{"$f":"Import!I30799","v":0}]
[53,{"$f":"Import!I30000","v":"Select"},{"$f":"Import!I30100","v":"Select"},{"$f":"Import!I30200","v":"Select"},{"$f":"Import!I30300","v":"Select"},{"$f":"Import!I30400","v":0},{"$f":"Import!I30500","v":0},{"$f":"Import!I30600","v":0},{"$f":"Import!I30700","v":0},{"$f":"Import!I30800","v":0}]
[54,{"$f":"Import!I30001","v":"Select"},{"$f":"Import!I30101","v":"Select"},{"$f":"Import!I30201","v":"Select"},{"$f":"Import!I30301","v":"Select"},{"$f":"Import!I30401","v":0},{"$f":"Import!I30501","v":0},{"$f":"Import!I30601","v":0},{"$f":"Import!I30701","v":0},{"$f":"Import!I30801","v":0}]
[55,{"$f":"Import!I30002","v":"Select"},{"$f":"Import!I30102","v":"Select"},{"$f":"Import!I30202","v":"Select"},{"$f":"Import!I30302","v":"Select"},{"$f":"Import!I30402","v":0},{"$f":"Import!I30502","v":0},{"$f":"Import!I30602","v":0},{"$f":"Import!I30702","v":0},{"$f":"Import!I30802","v":0}]
[56,{"$f":"Import!I30003","v":"Select"},{"$f":"Import!I30103","v":"Select"},{"$f":"Import!I30203","v":"Select"},{"$f":"Import!I30303","v":"Select"},{"$f":"Import!I30403","v":0},{"$f":"Import!I30503","v":0},{"$f":"Import!I30603","v":0},{"$f":"Import!I30703","v":0},{"$f":"Import!I30803","v":0}]
[57,{"$f":"Import!I30004","v":"Select"},{"$f":"Import!I30104","v":"Select"},{"$f":"Import!I30204","v":"Select"},{"$f":"Import!I30304","v":"Select"},{"$f":"Import!I30404","v":0},{"$f":"Import!I30504","v":0},{"$f":"Import!I30604","v":0},{"$f":"Import!I30704","v":0},{"$f":"Import!I30804","v":0}]
[58,{"$f":"Import!I30005","v":"Select"},{"$f":"Import!I30105","v":"Select"},{"$f":"Import!I30205","v":"Select"},{"$f":"Import!I30305","v":"Select"},{"$f":"Import!I30405","v":0},{"$f":"Import!I30505","v":0},{"$f":"Import!I30605","v":0},{"$f":"Import!I30705","v":0},{"$f":"Import!I30805","v":0}]
[59,{"$f":"Import!I30006","v":"Select"},{"$f":"Import!I30106","v":"Select"},{"$f":"Import!I30206","v":"Select"},{"$f":"Import!I30306","v":"Select"},{"$f":"Import!I30406","v":0},{"$f":"Import!I30506","v":0},{"$f":"Import!I30606","v":0},{"$f":"Import!I30706","v":0},{"$f":"Import!I30806","v":0}]
[60,{"$f":"Import!I30007","v":"Select"},{"$f":"Import!I30107","v":"Select"},{"$f":"Import!I30207","v":"Select"},{"$f":"Import!I30307","v":"Select"},{"$f":"Import!I30407","v":0},{"$f":"Import!I30507","v":0},{"$f":"Import!I30607","v":0},{"$f":"Import!I30707","v":0},{"$f":"Import!I30807","v":0}]
[61,{"$f":"Import!I30008","v":"Select"},{"$f":"Import!I30108","v":"Select"},{"$f":"Import!I30208","v":"Select"},{"$f":"Import!I30308","v":"Select"},{"$f":"Import!I30408","v":0},{"$f":"Import!I30508","v":0},{"$f":"Import!I30608","v":0},{"$f":"Import!I30708","v":0},{"$f":"Import!I30808","v":0}]
[62,{"$f":"Import!I30009","v":"Select"},{"$f":"Import!I30109","v":"Select"},{"$f":"Import!I30209","v":"Select"},{"$f":"Import!I30309","v":"Select"},{"$f":"Import!I30409","v":0},{"$f":"Import!I30509","v":0},{"$f":"Import!I30609","v":0},{"$f":"Import!I30709","v":0},{"$f":"Import!I30809","v":0}]
[63,{"$f":"Import!I30010","v":"Select"},{"$f":"Import!I30110","v":"Select"},{"$f":"Import!I30210","v":"Select"},{"$f":"Import!I30310","v":"Select"},{"$f":"Import!I30410","v":0},{"$f":"Import!I30510","v":0},{"$f":"Import!I30610","v":0},{"$f":"Import!I30710","v":0},{"$f":"Import!I30810","v":0}]
[64,{"$f":"Import!I30011","v":"Select"},{"$f":"Import!I30111","v":"Select"},{"$f":"Import!I30211","v":"Select"},{"$f":"Import!I30311","v":"Select"},{"$f":"Import!I30411","v":0},{"$f":"Import!I30511","v":0},{"$f":"Import!I30611","v":0},{"$f":"Import!I30711","v":0},{"$f":"Import!I30811","v":0}]
[65,{"$f":"Import!I30012","v":"Select"},{"$f":"Import!I30112","v":"Select"},{"$f":"Import!I30212","v":"Select"},{"$f":"Import!I30312","v":"Select"},{"$f":"Import!I30412","v":0},{"$f":"Import!I30512","v":0},{"$f":"Import!I30612","v":0},{"$f":"Import!I30712","v":0},{"$f":"Import!I30812","v":0}]
[66,{"$f":"Import!I30013","v":"Select"},{"$f":"Import!I30113","v":"Select"},{"$f":"Import!I30213","v":"Select"},{"$f":"Import!I30313","v":"Select"},{"$f":"Import!I30413","v":0},{"$f":"Import!I30513","v":0},{"$f":"Import!I30613","v":0},{"$f":"Import!I30713","v":0},{"$f":"Import!I30813","v":0}]
[{"$f":"A1518+1","v":67},{"$f":"Import!I30014","v":"Select"},{"$f":"Import!I30114","v":"Select"},{"$f":"Import!I30214","v":"Select"},{"$f":"Import!I30314","v":"Select"},{"$f":"Import!I30414","v":0},{"$f":"Import!I30514","v":0},{"$f":"Import!I30614","v":0},{"$f":"Import!I30714","v":0},{"$f":"Import!I30814","v":0}]
[68,{"$f":"Import!I30015","v":"Select"},{"$f":"Import!I30115","v":"Select"},{"$f":"Import!I30215","v":"Select"},{"$f":"Import!I30315","v":"Select"},{"$f":"Import!I30415","v":0},{"$f":"Import!I30515","v":0},{"$f":"Import!I30615","v":0},{"$f":"Import!I30715","v":0},{"$f":"Import!I30815","v":0}]
[69,{"$f":"Import!I30016","v":"Select"},{"$f":"Import!I30116","v":"Select"},{"$f":"Import!I30216","v":"Select"},{"$f":"Import!I30316","v":"Select"},{"$f":"Import!I30416","v":0},{"$f":"Import!I30516","v":0},{"$f":"Import!I30616","v":0},{"$f":"Import!I30716","v":0},{"$f":"Import!I30816","v":0}]
[70,{"$f":"Import!I30017","v":"Select"},{"$f":"Import!I30117","v":"Select"},{"$f":"Import!I30217","v":"Select"},{"$f":"Import!I30317","v":"Select"},{"$f":"Import!I30417","v":0},{"$f":"Import!I30517","v":0},{"$f":"Import!I30617","v":0},{"$f":"Import!I30717","v":0},{"$f":"Import!I30817","v":0}]
[71,{"$f":"Import!I30018","v":"Select"},{"$f":"Import!I30118","v":"Select"},{"$f":"Import!I30218","v":"Select"},{"$f":"Import!I30318","v":"Select"},{"$f":"Import!I30418","v":0},{"$f":"Import!I30518","v":0},{"$f":"Import!I30618","v":0},{"$f":"Import!I30718","v":0},{"$f":"Import!I30818","v":0}]
[72,{"$f":"Import!I30019","v":"Select"},{"$f":"Import!I30119","v":"Select"},{"$f":"Import!I30219","v":"Select"},{"$f":"Import!I30319","v":"Select"},{"$f":"Import!I30419","v":0},{"$f":"Import!I30519","v":0},{"$f":"Import!I30619","v":0},{"$f":"Import!I30719","v":0},{"$f":"Import!I30819","v":0}]
[73,{"$f":"Import!I30020","v":"Select"},{"$f":"Import!I30120","v":"Select"},{"$f":"Import!I30220","v":"Select"},{"$f":"Import!I30320","v":"Select"},{"$f":"Import!I30420","v":0},{"$f":"Import!I30520","v":0},{"$f":"Import!I30620","v":0},{"$f":"Import!I30720","v":0},{"$f":"Import!I30820","v":0}]
[74,{"$f":"Import!I30021","v":"Select"},{"$f":"Import!I30121","v":"Select"},{"$f":"Import!I30221","v":"Select"},{"$f":"Import!I30321","v":"Select"},{"$f":"Import!I30421","v":0},{"$f":"Import!I30521","v":0},{"$f":"Import!I30621","v":0},{"$f":"Import!I30721","v":0},{"$f":"Import!I30821","v":0}]
[75,{"$f":"Import!I30022","v":"Select"},{"$f":"Import!I30122","v":"Select"},{"$f":"Import!I30222","v":"Select"},{"$f":"Import!I30322","v":"Select"},{"$f":"Import!I30422","v":0},{"$f":"Import!I30522","v":0},{"$f":"Import!I30622","v":0},{"$f":"Import!I30722","v":0},{"$f":"Import!I30822","v":0}]
[76,{"$f":"Import!I30023","v":"Select"},{"$f":"Import!I30123","v":"Select"},{"$f":"Import!I30223","v":"Select"},{"$f":"Import!I30323","v":"Select"},{"$f":"Import!I30423","v":0},{"$f":"Import!I30523","v":0},{"$f":"Import!I30623","v":0},{"$f":"Import!I30723","v":0},{"$f":"Import!I30823","v":0}]
[77,{"$f":"Import!I30024","v":"Select"},{"$f":"Import!I30124","v":"Select"},{"$f":"Import!I30224","v":"Select"},{"$f":"Import!I30324","v":"Select"},{"$f":"Import!I30424","v":0},{"$f":"Import!I30524","v":0},{"$f":"Import!I30624","v":0},{"$f":"Import!I30724","v":0},{"$f":"Import!I30824","v":0}]
[78,{"$f":"Import!I30025","v":"Select"},{"$f":"Import!I30125","v":"Select"},{"$f":"Import!I30225","v":"Select"},{"$f":"Import!I30325","v":"Select"},{"$f":"Import!I30425","v":0},{"$f":"Import!I30525","v":0},{"$f":"Import!I30625","v":0},{"$f":"Import!I30725","v":0},{"$f":"Import!I30825","v":0}]
[79,{"$f":"Import!I30026","v":"Select"},{"$f":"Import!I30126","v":"Select"},{"$f":"Import!I30226","v":"Select"},{"$f":"Import!I30326","v":"Select"},{"$f":"Import!I30426","v":0},{"$f":"Import!I30526","v":0},{"$f":"Import!I30626","v":0},{"$f":"Import!I30726","v":0},{"$f":"Import!I30826","v":0}]
[80,{"$f":"Import!I30027","v":"Select"},{"$f":"Import!I30127","v":"Select"},{"$f":"Import!I30227","v":"Select"},{"$f":"Import!I30327","v":"Select"},{"$f":"Import!I30427","v":0},{"$f":"Import!I30527","v":0},{"$f":"Import!I30627","v":0},{"$f":"Import!I30727","v":0},{"$f":"Import!I30827","v":0}]
[81,{"$f":"Import!I30028","v":"Select"},{"$f":"Import!I30128","v":"Select"},{"$f":"Import!I30228","v":"Select"},{"$f":"Import!I30328","v":"Select"},{"$f":"Import!I30428","v":0},{"$f":"Import!I30528","v":0},{"$f":"Import!I30628","v":0},{"$f":"Import!I30728","v":0},{"$f":"Import!I30828","v":0}]
[82,{"$f":"Import!I30029","v":"Select"},{"$f":"Import!I30129","v":"Select"},{"$f":"Import!I30229","v":"Select"},{"$f":"Import!I30329","v":"Select"},{"$f":"Import!I30429","v":0},{"$f":"Import!I30529","v":0},{"$f":"Import!I30629","v":0},{"$f":"Import!I30729","v":0},{"$f":"Import!I30829","v":0}]
[83,{"$f":"Import!I30030","v":"Select"},{"$f":"Import!I30130","v":"Select"},{"$f":"Import!I30230","v":"Select"},{"$f":"Import!I30330","v":"Select"},{"$f":"Import!I30430","v":0},{"$f":"Import!I30530","v":0},{"$f":"Import!I30630","v":0},{"$f":"Import!I30730","v":0},{"$f":"Import!I30830","v":0}]
[84,{"$f":"Import!I30031","v":"Select"},{"$f":"Import!I30131","v":"Select"},{"$f":"Import!I30231","v":"Select"},{"$f":"Import!I30331","v":"Select"},{"$f":"Import!I30431","v":0},{"$f":"Import!I30531","v":0},{"$f":"Import!I30631","v":0},{"$f":"Import!I30731","v":0},{"$f":"Import!I30831","v":0}]
[85,{"$f":"Import!I30032","v":"Select"},{"$f":"Import!I30132","v":"Select"},{"$f":"Import!I30232","v":"Select"},{"$f":"Import!I30332","v":"Select"},{"$f":"Import!I30432","v":0},{"$f":"Import!I30532","v":0},{"$f":"Import!I30632","v":0},{"$f":"Import!I30732","v":0},{"$f":"Import!I30832","v":0}]
[86,{"$f":"Import!I30033","v":"Select"},{"$f":"Import!I30133","v":"Select"},{"$f":"Import!I30233","v":"Select"},{"$f":"Import!I30333","v":"Select"},{"$f":"Import!I30433","v":0},{"$f":"Import!I30533","v":0},{"$f":"Import!I30633","v":0},{"$f":"Import!I30733","v":0},{"$f":"Import!I30833","v":0}]
[87,{"$f":"Import!I30034","v":"Select"},{"$f":"Import!I30134","v":"Select"},{"$f":"Import!I30234","v":"Select"},{"$f":"Import!I30334","v":"Select"},{"$f":"Import!I30434","v":0},{"$f":"Import!I30534","v":0},{"$f":"Import!I30634","v":0},{"$f":"Import!I30734","v":0},{"$f":"Import!I30834","v":0}]
[88,{"$f":"Import!I30035","v":"Select"},{"$f":"Import!I30135","v":"Select"},{"$f":"Import!I30235","v":"Select"},{"$f":"Import!I30335","v":"Select"},{"$f":"Import!I30435","v":0},{"$f":"Import!I30535","v":0},{"$f":"Import!I30635","v":0},{"$f":"Import!I30735","v":0},{"$f":"Import!I30835","v":0}]
[89,{"$f":"Import!I30036","v":"Select"},{"$f":"Import!I30136","v":"Select"},{"$f":"Import!I30236","v":"Select"},{"$f":"Import!I30336","v":"Select"},{"$f":"Import!I30436","v":0},{"$f":"Import!I30536","v":0},{"$f":"Import!I30636","v":0},{"$f":"Import!I30736","v":0},{"$f":"Import!I30836","v":0}]
[90,{"$f":"Import!I30037","v":"Select"},{"$f":"Import!I30137","v":"Select"},{"$f":"Import!I30237","v":"Select"},{"$f":"Import!I30337","v":"Select"},{"$f":"Import!I30437","v":0},{"$f":"Import!I30537","v":0},{"$f":"Import!I30637","v":0},{"$f":"Import!I30737","v":0},{"$f":"Import!I30837","v":0}]
[91,{"$f":"Import!I30038","v":"Select"},{"$f":"Import!I30138","v":"Select"},{"$f":"Import!I30238","v":"Select"},{"$f":"Import!I30338","v":"Select"},{"$f":"Import!I30438","v":0},{"$f":"Import!I30538","v":0},{"$f":"Import!I30638","v":0},{"$f":"Import!I30738","v":0},{"$f":"Import!I30838","v":0}]
[92,{"$f":"Import!I30039","v":"Select"},{"$f":"Import!I30139","v":"Select"},{"$f":"Import!I30239","v":"Select"},{"$f":"Import!I30339","v":"Select"},{"$f":"Import!I30439","v":0},{"$f":"Import!I30539","v":0},{"$f":"Import!I30639","v":0},{"$f":"Import!I30739","v":0},{"$f":"Import!I30839","v":0}]
[93,{"$f":"Import!I30040","v":"Select"},{"$f":"Import!I30140","v":"Select"},{"$f":"Import!I30240","v":"Select"},{"$f":"Import!I30340","v":"Select"},{"$f":"Import!I30440","v":0},{"$f":"Import!I30540","v":0},{"$f":"Import!I30640","v":0},{"$f":"Import!I30740","v":0},{"$f":"Import!I30840","v":0}]
[94,{"$f":"Import!I30041","v":"Select"},{"$f":"Import!I30141","v":"Select"},{"$f":"Import!I30241","v":"Select"},{"$f":"Import!I30341","v":"Select"},{"$f":"Import!I30441","v":0},{"$f":"Import!I30541","v":0},{"$f":"Import!I30641","v":0},{"$f":"Import!I30741","v":0},{"$f":"Import!I30841","v":0}]
[95,{"$f":"Import!I30042","v":"Select"},{"$f":"Import!I30142","v":"Select"},{"$f":"Import!I30242","v":"Select"},{"$f":"Import!I30342","v":"Select"},{"$f":"Import!I30442","v":0},{"$f":"Import!I30542","v":0},{"$f":"Import!I30642","v":0},{"$f":"Import!I30742","v":0},{"$f":"Import!I30842","v":0}]
[96,{"$f":"Import!I30043","v":"Select"},{"$f":"Import!I30143","v":"Select"},{"$f":"Import!I30243","v":"Select"},{"$f":"Import!I30343","v":"Select"},{"$f":"Import!I30443","v":0},{"$f":"Import!I30543","v":0},{"$f":"Import!I30643","v":0},{"$f":"Import!I30743","v":0},{"$f":"Import!I30843","v":0}]
[97,{"$f":"Import!I30044","v":"Select"},{"$f":"Import!I30144","v":"Select"},{"$f":"Import!I30244","v":"Select"},{"$f":"Import!I30344","v":"Select"},{"$f":"Import!I30444","v":0},{"$f":"Import!I30544","v":0},{"$f":"Import!I30644","v":0},{"$f":"Import!I30744","v":0},{"$f":"Import!I30844","v":0}]
[98,{"$f":"Import!I30045","v":"Select"},{"$f":"Import!I30145","v":"Select"},{"$f":"Import!I30245","v":"Select"},{"$f":"Import!I30345","v":"Select"},{"$f":"Import!I30445","v":0},{"$f":"Import!I30545","v":0},{"$f":"Import!I30645","v":0},{"$f":"Import!I30745","v":0},{"$f":"Import!I30845","v":0}]
[99,{"$f":"Import!I30046","v":"Select"},{"$f":"Import!I30146","v":"Select"},{"$f":"Import!I30246","v":"Select"},{"$f":"Import!I30346","v":"Select"},{"$f":"Import!I30446","v":0},{"$f":"Import!I30546","v":0},{"$f":"Import!I30646","v":0},{"$f":"Import!I30746","v":0},{"$f":"Import!I30846","v":0}]
[100,{"$f":"Import!I30047","v":"Select"},{"$f":"Import!I30147","v":"Select"},{"$f":"Import!I30247","v":"Select"},{"$f":"Import!I30347","v":"Select"},{"$f":"Import!I30447","v":0},{"$f":"Import!I30547","v":0},{"$f":"Import!I30647","v":0},{"$f":"Import!I30747","v":0},{"$f":"Import!I30847","v":0}]
[]
[null,"Total Other Alternative Investments",null,null,null,{"$f":"SUM(F1453:F1552)","v":0},{"$f":"SUM(G1453:G1552)","v":0},{"$f":"IFERROR(SUMPRODUCT(H1453:H1552,$G1453:$G1552)/SUM($G1453:$G1552),0)","v":0},{"$f":"IFERROR(SUMPRODUCT(I1453:I1552,$G1453:$G1552)/SUM($G1453:$G1552),0)","v":0}]
[]
[null,"(I) DERIVATIVES"]
[]
[null,null,"Enter # of Derivative Types",{"$f":"Import!I30848","v":0}]
[null,"Derivative Type","Underlying","Currency","Trading Category","Purpose","Position","Confirm line contains only derivatives with:",{"$f":"YEAR($C$3)&\" \nMarket Value\"","v":"2023 \nMarket Value"},"Gross Notional Value","Net Notional Value","Exposure (Dollar Delta, DV01, CS01","Comments"]
[1,{"$f":"Import!I30849","v":"Select"},{"$f":"Import!I31049","v":"Select"},{"$f":"Import!I31249","v":"Select"},{"$f":"Import!I31449","v":"Select"},{"$f":"Import!I31649","v":"Select"},{"$f":"Import!I31849","v":"Select"},{"$f":"Import!I32049","v":"Select"},{"$f":"Import!I32249","v":0},{"$f":"Import!I32449","v":0},{"$f":"Import!I32649","v":0},{"$f":"Import!I32849","v":0},{"$f":"Import!I33049","v":0}]
[{"$f":"A1560+1","v":2},{"$f":"Import!I30850","v":"Select"},{"$f":"Import!I31050","v":"Select"},{"$f":"Import!I31250","v":"Select"},{"$f":"Import!I31450","v":"Select"},{"$f":"Import!I31650","v":"Select"},{"$f":"Import!I31850","v":"Select"},{"$f":"Import!I32050","v":"Select"},{"$f":"Import!I32250","v":0},{"$f":"Import!I32450","v":0},{"$f":"Import!I32650","v":0},{"$f":"Import!I32850","v":0},{"$f":"Import!I33050","v":0}]
[{"$f":"A1561+1","v":3},{"$f":"Import!I30851","v":"Select"},{"$f":"Import!I31051","v":"Select"},{"$f":"Import!I31251","v":"Select"},{"$f":"Import!I31451","v":"Select"},{"$f":"Import!I31651","v":"Select"},{"$f":"Import!I31851","v":"Select"},{"$f":"Import!I32051","v":"Select"},{"$f":"Import!I32251","v":0},{"$f":"Import!I32451","v":0},{"$f":"Import!I32651","v":0},{"$f":"Import!I32851","v":0},{"$f":"Import!I33051","v":0}]
[4,{"$f":"Import!I30852","v":"Select"},{"$f":"Import!I31052","v":"Select"},{"$f":"Import!I31252","v":"Select"},{"$f":"Import!I31452","v":"Select"},{"$f":"Import!I31652","v":"Select"},{"$f":"Import!I31852","v":"Select"},{"$f":"Import!I32052","v":"Select"},{"$f":"Import!I32252","v":0},{"$f":"Import!I32452","v":0},{"$f":"Import!I32652","v":0},{"$f":"Import!I32852","v":0},{"$f":"Import!I33052","v":0}]
[5,{"$f":"Import!I30853","v":"Select"},{"$f":"Import!I31053","v":"Select"},{"$f":"Import!I31253","v":"Select"},{"$f":"Import!I31453","v":"Select"},{"$f":"Import!I31653","v":"Select"},{"$f":"Import!I31853","v":"Select"},{"$f":"Import!I32053","v":"Select"},{"$f":"Import!I32253","v":0},{"$f":"Import!I32453","v":0},{"$f":"Import!I32653","v":0},{"$f":"Import!I32853","v":0},{"$f":"Import!I33053","v":0}]
[6,{"$f":"Import!I30854","v":"Select"},{"$f":"Import!I31054","v":"Select"},{"$f":"Import!I31254","v":"Select"},{"$f":"Import!I31454","v":"Select"},{"$f":"Import!I31654","v":"Select"},{"$f":"Import!I31854","v":"Select"},{"$f":"Import!I32054","v":"Select"},{"$f":"Import!I32254","v":0},{"$f":"Import!I32454","v":0},{"$f":"Import!I32654","v":0},{"$f":"Import!I32854","v":0},{"$f":"Import!I33054","v":0}]
[7,{"$f":"Import!I30855","v":"Select"},{"$f":"Import!I31055","v":"Select"},{"$f":"Import!I31255","v":"Select"},{"$f":"Import!I31455","v":"Select"},{"$f":"Import!I31655","v":"Select"},{"$f":"Import!I31855","v":"Select"},{"$f":"Import!I32055","v":"Select"},{"$f":"Import!I32255","v":0},{"$f":"Import!I32455","v":0},{"$f":"Import!I32655","v":0},{"$f":"Import!I32855","v":0},{"$f":"Import!I33055","v":0}]
[8,{"$f":"Import!I30856","v":"Select"},{"$f":"Import!I31056","v":"Select"},{"$f":"Import!I31256","v":"Select"},{"$f":"Import!I31456","v":"Select"},{"$f":"Import!I31656","v":"Select"},{"$f":"Import!I31856","v":"Select"},{"$f":"Import!I32056","v":"Select"},{"$f":"Import!I32256","v":0},{"$f":"Import!I32456","v":0},{"$f":"Import!I32656","v":0},{"$f":"Import!I32856","v":0},{"$f":"Import!I33056","v":0}]
[9,{"$f":"Import!I30857","v":"Select"},{"$f":"Import!I31057","v":"Select"},{"$f":"Import!I31257","v":"Select"},{"$f":"Import!I31457","v":"Select"},{"$f":"Import!I31657","v":"Select"},{"$f":"Import!I31857","v":"Select"},{"$f":"Import!I32057","v":"Select"},{"$f":"Import!I32257","v":0},{"$f":"Import!I32457","v":0},{"$f":"Import!I32657","v":0},{"$f":"Import!I32857","v":0},{"$f":"Import!I33057","v":0}]
[10,{"$f":"Import!I30858","v":"Select"},{"$f":"Import!I31058","v":"Select"},{"$f":"Import!I31258","v":"Select"},{"$f":"Import!I31458","v":"Select"},{"$f":"Import!I31658","v":"Select"},{"$f":"Import!I31858","v":"Select"},{"$f":"Import!I32058","v":"Select"},{"$f":"Import!I32258","v":0},{"$f":"Import!I32458","v":0},{"$f":"Import!I32658","v":0},{"$f":"Import!I32858","v":0},{"$f":"Import!I33058","v":0}]
[11,{"$f":"Import!I30859","v":"Select"},{"$f":"Import!I31059","v":"Select"},{"$f":"Import!I31259","v":"Select"},{"$f":"Import!I31459","v":"Select"},{"$f":"Import!I31659","v":"Select"},{"$f":"Import!I31859","v":"Select"},{"$f":"Import!I32059","v":"Select"},{"$f":"Import!I32259","v":0},{"$f":"Import!I32459","v":0},{"$f":"Import!I32659","v":0},{"$f":"Import!I32859","v":0},{"$f":"Import!I33059","v":0}]
[12,{"$f":"Import!I30860","v":"Select"},{"$f":"Import!I31060","v":"Select"},{"$f":"Import!I31260","v":"Select"},{"$f":"Import!I31460","v":"Select"},{"$f":"Import!I31660","v":"Select"},{"$f":"Import!I31860","v":"Select"},{"$f":"Import!I32060","v":"Select"},{"$f":"Import!I32260","v":0},{"$f":"Import!I32460","v":0},{"$f":"Import!I32660","v":0},{"$f":"Import!I32860","v":0},{"$f":"Import!I33060","v":0}]
[13,{"$f":"Import!I30861","v":"Select"},{"$f":"Import!I31061","v":"Select"},{"$f":"Import!I31261","v":"Select"},{"$f":"Import!I31461","v":"Select"},{"$f":"Import!I31661","v":"Select"},{"$f":"Import!I31861","v":"Select"},{"$f":"Import!I32061","v":"Select"},{"$f":"Import!I32261","v":0},{"$f":"Import!I32461","v":0},{"$f":"Import!I32661","v":0},{"$f":"Import!I32861","v":0},{"$f":"Import!I33061","v":0}]
[14,{"$f":"Import!I30862","v":"Select"},{"$f":"Import!I31062","v":"Select"},{"$f":"Import!I31262","v":"Select"},{"$f":"Import!I31462","v":"Select"},{"$f":"Import!I31662","v":"Select"},{"$f":"Import!I31862","v":"Select"},{"$f":"Import!I32062","v":"Select"},{"$f":"Import!I32262","v":0},{"$f":"Import!I32462","v":0},{"$f":"Import!I32662","v":0},{"$f":"Import!I32862","v":0},{"$f":"Import!I33062","v":0}]
[15,{"$f":"Import!I30863","v":"Select"},{"$f":"Import!I31063","v":"Select"},{"$f":"Import!I31263","v":"Select"},{"$f":"Import!I31463","v":"Select"},{"$f":"Import!I31663","v":"Select"},{"$f":"Import!I31863","v":"Select"},{"$f":"Import!I32063","v":"Select"},{"$f":"Import!I32263","v":0},{"$f":"Import!I32463","v":0},{"$f":"Import!I32663","v":0},{"$f":"Import!I32863","v":0},{"$f":"Import!I33063","v":0}]
[16,{"$f":"Import!I30864","v":"Select"},{"$f":"Import!I31064","v":"Select"},{"$f":"Import!I31264","v":"Select"},{"$f":"Import!I31464","v":"Select"},{"$f":"Import!I31664","v":"Select"},{"$f":"Import!I31864","v":"Select"},{"$f":"Import!I32064","v":"Select"},{"$f":"Import!I32264","v":0},{"$f":"Import!I32464","v":0},{"$f":"Import!I32664","v":0},{"$f":"Import!I32864","v":0},{"$f":"Import!I33064","v":0}]
[17,{"$f":"Import!I30865","v":"Select"},{"$f":"Import!I31065","v":"Select"},{"$f":"Import!I31265","v":"Select"},{"$f":"Import!I31465","v":"Select"},{"$f":"Import!I31665","v":"Select"},{"$f":"Import!I31865","v":"Select"},{"$f":"Import!I32065","v":"Select"},{"$f":"Import!I32265","v":0},{"$f":"Import!I32465","v":0},{"$f":"Import!I32665","v":0},{"$f":"Import!I32865","v":0},{"$f":"Import!I33065","v":0}]
[18,{"$f":"Import!I30866","v":"Select"},{"$f":"Import!I31066","v":"Select"},{"$f":"Import!I31266","v":"Select"},{"$f":"Import!I31466","v":"Select"},{"$f":"Import!I31666","v":"Select"},{"$f":"Import!I31866","v":"Select"},{"$f":"Import!I32066","v":"Select"},{"$f":"Import!I32266","v":0},{"$f":"Import!I32466","v":0},{"$f":"Import!I32666","v":0},{"$f":"Import!I32866","v":0},{"$f":"Import!I33066","v":0}]
[19,{"$f":"Import!I30867","v":"Select"},{"$f":"Import!I31067","v":"Select"},{"$f":"Import!I31267","v":"Select"},{"$f":"Import!I31467","v":"Select"},{"$f":"Import!I31667","v":"Select"},{"$f":"Import!I31867","v":"Select"},{"$f":"Import!I32067","v":"Select"},{"$f":"Import!I32267","v":0},{"$f":"Import!I32467","v":0},{"$f":"Import!I32667","v":0},{"$f":"Import!I32867","v":0},{"$f":"Import!I33067","v":0}]
[20,{"$f":"Import!I30868","v":"Select"},{"$f":"Import!I31068","v":"Select"},{"$f":"Import!I31268","v":"Select"},{"$f":"Import!I31468","v":"Select"},{"$f":"Import!I31668","v":"Select"},{"$f":"Import!I31868","v":"Select"},{"$f":"Import!I32068","v":"Select"},{"$f":"Import!I32268","v":0},{"$f":"Import!I32468","v":0},{"$f":"Import!I32668","v":0},{"$f":"Import!I32868","v":0},{"$f":"Import!I33068","v":0}]
[21,{"$f":"Import!I30869","v":"Select"},{"$f":"Import!I31069","v":"Select"},{"$f":"Import!I31269","v":"Select"},{"$f":"Import!I31469","v":"Select"},{"$f":"Import!I31669","v":"Select"},{"$f":"Import!I31869","v":"Select"},{"$f":"Import!I32069","v":"Select"},{"$f":"Import!I32269","v":0},{"$f":"Import!I32469","v":0},{"$f":"Import!I32669","v":0},{"$f":"Import!I32869","v":0},{"$f":"Import!I33069","v":0}]
[22,{"$f":"Import!I30870","v":"Select"},{"$f":"Import!I31070","v":"Select"},{"$f":"Import!I31270","v":"Select"},{"$f":"Import!I31470","v":"Select"},{"$f":"Import!I31670","v":"Select"},{"$f":"Import!I31870","v":"Select"},{"$f":"Import!I32070","v":"Select"},{"$f":"Import!I32270","v":0},{"$f":"Import!I32470","v":0},{"$f":"Import!I32670","v":0},{"$f":"Import!I32870","v":0},{"$f":"Import!I33070","v":0}]
[23,{"$f":"Import!I30871","v":"Select"},{"$f":"Import!I31071","v":"Select"},{"$f":"Import!I31271","v":"Select"},{"$f":"Import!I31471","v":"Select"},{"$f":"Import!I31671","v":"Select"},{"$f":"Import!I31871","v":"Select"},{"$f":"Import!I32071","v":"Select"},{"$f":"Import!I32271","v":0},{"$f":"Import!I32471","v":0},{"$f":"Import!I32671","v":0},{"$f":"Import!I32871","v":0},{"$f":"Import!I33071","v":0}]
[24,{"$f":"Import!I30872","v":"Select"},{"$f":"Import!I31072","v":"Select"},{"$f":"Import!I31272","v":"Select"},{"$f":"Import!I31472","v":"Select"},{"$f":"Import!I31672","v":"Select"},{"$f":"Import!I31872","v":"Select"},{"$f":"Import!I32072","v":"Select"},{"$f":"Import!I32272","v":0},{"$f":"Import!I32472","v":0},{"$f":"Import!I32672","v":0},{"$f":"Import!I32872","v":0},{"$f":"Import!I33072","v":0}]
[25,{"$f":"Import!I30873","v":"Select"},{"$f":"Import!I31073","v":"Select"},{"$f":"Import!I31273","v":"Select"},{"$f":"Import!I31473","v":"Select"},{"$f":"Import!I31673","v":"Select"},{"$f":"Import!I31873","v":"Select"},{"$f":"Import!I32073","v":"Select"},{"$f":"Import!I32273","v":0},{"$f":"Import!I32473","v":0},{"$f":"Import!I32673","v":0},{"$f":"Import!I32873","v":0},{"$f":"Import!I33073","v":0}]
[26,{"$f":"Import!I30874","v":"Select"},{"$f":"Import!I31074","v":"Select"},{"$f":"Import!I31274","v":"Select"},{"$f":"Import!I31474","v":"Select"},{"$f":"Import!I31674","v":"Select"},{"$f":"Import!I31874","v":"Select"},{"$f":"Import!I32074","v":"Select"},{"$f":"Import!I32274","v":0},{"$f":"Import!I32474","v":0},{"$f":"Import!I32674","v":0},{"$f":"Import!I32874","v":0},{"$f":"Import!I33074","v":0}]
[27,{"$f":"Import!I30875","v":"Select"},{"$f":"Import!I31075","v":"Select"},{"$f":"Import!I31275","v":"Select"},{"$f":"Import!I31475","v":"Select"},{"$f":"Import!I31675","v":"Select"},{"$f":"Import!I31875","v":"Select"},{"$f":"Import!I32075","v":"Select"},{"$f":"Import!I32275","v":0},{"$f":"Import!I32475","v":0},{"$f":"Import!I32675","v":0},{"$f":"Import!I32875","v":0},{"$f":"Import!I33075","v":0}]
[28,{"$f":"Import!I30876","v":"Select"},{"$f":"Import!I31076","v":"Select"},{"$f":"Import!I31276","v":"Select"},{"$f":"Import!I31476","v":"Select"},{"$f":"Import!I31676","v":"Select"},{"$f":"Import!I31876","v":"Select"},{"$f":"Import!I32076","v":"Select"},{"$f":"Import!I32276","v":0},{"$f":"Import!I32476","v":0},{"$f":"Import!I32676","v":0},{"$f":"Import!I32876","v":0},{"$f":"Import!I33076","v":0}]
[29,{"$f":"Import!I30877","v":"Select"},{"$f":"Import!I31077","v":"Select"},{"$f":"Import!I31277","v":"Select"},{"$f":"Import!I31477","v":"Select"},{"$f":"Import!I31677","v":"Select"},{"$f":"Import!I31877","v":"Select"},{"$f":"Import!I32077","v":"Select"},{"$f":"Import!I32277","v":0},{"$f":"Import!I32477","v":0},{"$f":"Import!I32677","v":0},{"$f":"Import!I32877","v":0},{"$f":"Import!I33077","v":0}]
[30,{"$f":"Import!I30878","v":"Select"},{"$f":"Import!I31078","v":"Select"},{"$f":"Import!I31278","v":"Select"},{"$f":"Import!I31478","v":"Select"},{"$f":"Import!I31678","v":"Select"},{"$f":"Import!I31878","v":"Select"},{"$f":"Import!I32078","v":"Select"},{"$f":"Import!I32278","v":0},{"$f":"Import!I32478","v":0},{"$f":"Import!I32678","v":0},{"$f":"Import!I32878","v":0},{"$f":"Import!I33078","v":0}]
[31,{"$f":"Import!I30879","v":"Select"},{"$f":"Import!I31079","v":"Select"},{"$f":"Import!I31279","v":"Select"},{"$f":"Import!I31479","v":"Select"},{"$f":"Import!I31679","v":"Select"},{"$f":"Import!I31879","v":"Select"},{"$f":"Import!I32079","v":"Select"},{"$f":"Import!I32279","v":0},{"$f":"Import!I32479","v":0},{"$f":"Import!I32679","v":0},{"$f":"Import!I32879","v":0},{"$f":"Import!I33079","v":0}]
[32,{"$f":"Import!I30880","v":"Select"},{"$f":"Import!I31080","v":"Select"},{"$f":"Import!I31280","v":"Select"},{"$f":"Import!I31480","v":"Select"},{"$f":"Import!I31680","v":"Select"},{"$f":"Import!I31880","v":"Select"},{"$f":"Import!I32080","v":"Select"},{"$f":"Import!I32280","v":0},{"$f":"Import!I32480","v":0},{"$f":"Import!I32680","v":0},{"$f":"Import!I32880","v":0},{"$f":"Import!I33080","v":0}]
[33,{"$f":"Import!I30881","v":"Select"},{"$f":"Import!I31081","v":"Select"},{"$f":"Import!I31281","v":"Select"},{"$f":"Import!I31481","v":"Select"},{"$f":"Import!I31681","v":"Select"},{"$f":"Import!I31881","v":"Select"},{"$f":"Import!I32081","v":"Select"},{"$f":"Import!I32281","v":0},{"$f":"Import!I32481","v":0},{"$f":"Import!I32681","v":0},{"$f":"Import!I32881","v":0},{"$f":"Import!I33081","v":0}]
[34,{"$f":"Import!I30882","v":"Select"},{"$f":"Import!I31082","v":"Select"},{"$f":"Import!I31282","v":"Select"},{"$f":"Import!I31482","v":"Select"},{"$f":"Import!I31682","v":"Select"},{"$f":"Import!I31882","v":"Select"},{"$f":"Import!I32082","v":"Select"},{"$f":"Import!I32282","v":0},{"$f":"Import!I32482","v":0},{"$f":"Import!I32682","v":0},{"$f":"Import!I32882","v":0},{"$f":"Import!I33082","v":0}]
[35,{"$f":"Import!I30883","v":"Select"},{"$f":"Import!I31083","v":"Select"},{"$f":"Import!I31283","v":"Select"},{"$f":"Import!I31483","v":"Select"},{"$f":"Import!I31683","v":"Select"},{"$f":"Import!I31883","v":"Select"},{"$f":"Import!I32083","v":"Select"},{"$f":"Import!I32283","v":0},{"$f":"Import!I32483","v":0},{"$f":"Import!I32683","v":0},{"$f":"Import!I32883","v":0},{"$f":"Import!I33083","v":0}]
[36,{"$f":"Import!I30884","v":"Select"},{"$f":"Import!I31084","v":"Select"},{"$f":"Import!I31284","v":"Select"},{"$f":"Import!I31484","v":"Select"},{"$f":"Import!I31684","v":"Select"},{"$f":"Import!I31884","v":"Select"},{"$f":"Import!I32084","v":"Select"},{"$f":"Import!I32284","v":0},{"$f":"Import!I32484","v":0},{"$f":"Import!I32684","v":0},{"$f":"Import!I32884","v":0},{"$f":"Import!I33084","v":0}]
[37,{"$f":"Import!I30885","v":"Select"},{"$f":"Import!I31085","v":"Select"},{"$f":"Import!I31285","v":"Select"},{"$f":"Import!I31485","v":"Select"},{"$f":"Import!I31685","v":"Select"},{"$f":"Import!I31885","v":"Select"},{"$f":"Import!I32085","v":"Select"},{"$f":"Import!I32285","v":0},{"$f":"Import!I32485","v":0},{"$f":"Import!I32685","v":0},{"$f":"Import!I32885","v":0},{"$f":"Import!I33085","v":0}]
[38,{"$f":"Import!I30886","v":"Select"},{"$f":"Import!I31086","v":"Select"},{"$f":"Import!I31286","v":"Select"},{"$f":"Import!I31486","v":"Select"},{"$f":"Import!I31686","v":"Select"},{"$f":"Import!I31886","v":"Select"},{"$f":"Import!I32086","v":"Select"},{"$f":"Import!I32286","v":0},{"$f":"Import!I32486","v":0},{"$f":"Import!I32686","v":0},{"$f":"Import!I32886","v":0},{"$f":"Import!I33086","v":0}]
[39,{"$f":"Import!I30887","v":"Select"},{"$f":"Import!I31087","v":"Select"},{"$f":"Import!I31287","v":"Select"},{"$f":"Import!I31487","v":"Select"},{"$f":"Import!I31687","v":"Select"},{"$f":"Import!I31887","v":"Select"},{"$f":"Import!I32087","v":"Select"},{"$f":"Import!I32287","v":0},{"$f":"Import!I32487","v":0},{"$f":"Import!I32687","v":0},{"$f":"Import!I32887","v":0},{"$f":"Import!I33087","v":0}]
[40,{"$f":"Import!I30888","v":"Select"},{"$f":"Import!I31088","v":"Select"},{"$f":"Import!I31288","v":"Select"},{"$f":"Import!I31488","v":"Select"},{"$f":"Import!I31688","v":"Select"},{"$f":"Import!I31888","v":"Select"},{"$f":"Import!I32088","v":"Select"},{"$f":"Import!I32288","v":0},{"$f":"Import!I32488","v":0},{"$f":"Import!I32688","v":0},{"$f":"Import!I32888","v":0},{"$f":"Import!I33088","v":0}]
[41,{"$f":"Import!I30889","v":"Select"},{"$f":"Import!I31089","v":"Select"},{"$f":"Import!I31289","v":"Select"},{"$f":"Import!I31489","v":"Select"},{"$f":"Import!I31689","v":"Select"},{"$f":"Import!I31889","v":"Select"},{"$f":"Import!I32089","v":"Select"},{"$f":"Import!I32289","v":0},{"$f":"Import!I32489","v":0},{"$f":"Import!I32689","v":0},{"$f":"Import!I32889","v":0},{"$f":"Import!I33089","v":0}]
[42,{"$f":"Import!I30890","v":"Select"},{"$f":"Import!I31090","v":"Select"},{"$f":"Import!I31290","v":"Select"},{"$f":"Import!I31490","v":"Select"},{"$f":"Import!I31690","v":"Select"},{"$f":"Import!I31890","v":"Select"},{"$f":"Import!I32090","v":"Select"},{"$f":"Import!I32290","v":0},{"$f":"Import!I32490","v":0},{"$f":"Import!I32690","v":0},{"$f":"Import!I32890","v":0},{"$f":"Import!I33090","v":0}]
[43,{"$f":"Import!I30891","v":"Select"},{"$f":"Import!I31091","v":"Select"},{"$f":"Import!I31291","v":"Select"},{"$f":"Import!I31491","v":"Select"},{"$f":"Import!I31691","v":"Select"},{"$f":"Import!I31891","v":"Select"},{"$f":"Import!I32091","v":"Select"},{"$f":"Import!I32291","v":0},{"$f":"Import!I32491","v":0},{"$f":"Import!I32691","v":0},{"$f":"Import!I32891","v":0},{"$f":"Import!I33091","v":0}]
[44,{"$f":"Import!I30892","v":"Select"},{"$f":"Import!I31092","v":"Select"},{"$f":"Import!I31292","v":"Select"},{"$f":"Import!I31492","v":"Select"},{"$f":"Import!I31692","v":"Select"},{"$f":"Import!I31892","v":"Select"},{"$f":"Import!I32092","v":"Select"},{"$f":"Import!I32292","v":0},{"$f":"Import!I32492","v":0},{"$f":"Import!I32692","v":0},{"$f":"Import!I32892","v":0},{"$f":"Import!I33092","v":0}]
[45,{"$f":"Import!I30893","v":"Select"},{"$f":"Import!I31093","v":"Select"},{"$f":"Import!I31293","v":"Select"},{"$f":"Import!I31493","v":"Select"},{"$f":"Import!I31693","v":"Select"},{"$f":"Import!I31893","v":"Select"},{"$f":"Import!I32093","v":"Select"},{"$f":"Import!I32293","v":0},{"$f":"Import!I32493","v":0},{"$f":"Import!I32693","v":0},{"$f":"Import!I32893","v":0},{"$f":"Import!I33093","v":0}]
[46,{"$f":"Import!I30894","v":"Select"},{"$f":"Import!I31094","v":"Select"},{"$f":"Import!I31294","v":"Select"},{"$f":"Import!I31494","v":"Select"},{"$f":"Import!I31694","v":"Select"},{"$f":"Import!I31894","v":"Select"},{"$f":"Import!I32094","v":"Select"},{"$f":"Import!I32294","v":0},{"$f":"Import!I32494","v":0},{"$f":"Import!I32694","v":0},{"$f":"Import!I32894","v":0},{"$f":"Import!I33094","v":0}]
[47,{"$f":"Import!I30895","v":"Select"},{"$f":"Import!I31095","v":"Select"},{"$f":"Import!I31295","v":"Select"},{"$f":"Import!I31495","v":"Select"},{"$f":"Import!I31695","v":"Select"},{"$f":"Import!I31895","v":"Select"},{"$f":"Import!I32095","v":"Select"},{"$f":"Import!I32295","v":0},{"$f":"Import!I32495","v":0},{"$f":"Import!I32695","v":0},{"$f":"Import!I32895","v":0},{"$f":"Import!I33095","v":0}]
[48,{"$f":"Import!I30896","v":"Select"},{"$f":"Import!I31096","v":"Select"},{"$f":"Import!I31296","v":"Select"},{"$f":"Import!I31496","v":"Select"},{"$f":"Import!I31696","v":"Select"},{"$f":"Import!I31896","v":"Select"},{"$f":"Import!I32096","v":"Select"},{"$f":"Import!I32296","v":0},{"$f":"Import!I32496","v":0},{"$f":"Import!I32696","v":0},{"$f":"Import!I32896","v":0},{"$f":"Import!I33096","v":0}]
[49,{"$f":"Import!I30897","v":"Select"},{"$f":"Import!I31097","v":"Select"},{"$f":"Import!I31297","v":"Select"},{"$f":"Import!I31497","v":"Select"},{"$f":"Import!I31697","v":"Select"},{"$f":"Import!I31897","v":"Select"},{"$f":"Import!I32097","v":"Select"},{"$f":"Import!I32297","v":0},{"$f":"Import!I32497","v":0},{"$f":"Import!I32697","v":0},{"$f":"Import!I32897","v":0},{"$f":"Import!I33097","v":0}]
[50,{"$f":"Import!I30898","v":"Select"},{"$f":"Import!I31098","v":"Select"},{"$f":"Import!I31298","v":"Select"},{"$f":"Import!I31498","v":"Select"},{"$f":"Import!I31698","v":"Select"},{"$f":"Import!I31898","v":"Select"},{"$f":"Import!I32098","v":"Select"},{"$f":"Import!I32298","v":0},{"$f":"Import!I32498","v":0},{"$f":"Import!I32698","v":0},{"$f":"Import!I32898","v":0},{"$f":"Import!I33098","v":0}]
[51,{"$f":"Import!I30899","v":"Select"},{"$f":"Import!I31099","v":"Select"},{"$f":"Import!I31299","v":"Select"},{"$f":"Import!I31499","v":"Select"},{"$f":"Import!I31699","v":"Select"},{"$f":"Import!I31899","v":"Select"},{"$f":"Import!I32099","v":"Select"},{"$f":"Import!I32299","v":0},{"$f":"Import!I32499","v":0},{"$f":"Import!I32699","v":0},{"$f":"Import!I32899","v":0},{"$f":"Import!I33099","v":0}]
[52,{"$f":"Import!I30900","v":"Select"},{"$f":"Import!I31100","v":"Select"},{"$f":"Import!I31300","v":"Select"},{"$f":"Import!I31500","v":"Select"},{"$f":"Import!I31700","v":"Select"},{"$f":"Import!I31900","v":"Select"},{"$f":"Import!I32100","v":"Select"},{"$f":"Import!I32300","v":0},{"$f":"Import!I32500","v":0},{"$f":"Import!I32700","v":0},{"$f":"Import!I32900","v":0},{"$f":"Import!I33100","v":0}]
[53,{"$f":"Import!I30901","v":"Select"},{"$f":"Import!I31101","v":"Select"},{"$f":"Import!I31301","v":"Select"},{"$f":"Import!I31501","v":"Select"},{"$f":"Import!I31701","v":"Select"},{"$f":"Import!I31901","v":"Select"},{"$f":"Import!I32101","v":"Select"},{"$f":"Import!I32301","v":0},{"$f":"Import!I32501","v":0},{"$f":"Import!I32701","v":0},{"$f":"Import!I32901","v":0},{"$f":"Import!I33101","v":0}]
[54,{"$f":"Import!I30902","v":"Select"},{"$f":"Import!I31102","v":"Select"},{"$f":"Import!I31302","v":"Select"},{"$f":"Import!I31502","v":"Select"},{"$f":"Import!I31702","v":"Select"},{"$f":"Import!I31902","v":"Select"},{"$f":"Import!I32102","v":"Select"},{"$f":"Import!I32302","v":0},{"$f":"Import!I32502","v":0},{"$f":"Import!I32702","v":0},{"$f":"Import!I32902","v":0},{"$f":"Import!I33102","v":0}]
[55,{"$f":"Import!I30903","v":"Select"},{"$f":"Import!I31103","v":"Select"},{"$f":"Import!I31303","v":"Select"},{"$f":"Import!I31503","v":"Select"},{"$f":"Import!I31703","v":"Select"},{"$f":"Import!I31903","v":"Select"},{"$f":"Import!I32103","v":"Select"},{"$f":"Import!I32303","v":0},{"$f":"Import!I32503","v":0},{"$f":"Import!I32703","v":0},{"$f":"Import!I32903","v":0},{"$f":"Import!I33103","v":0}]
[56,{"$f":"Import!I30904","v":"Select"},{"$f":"Import!I31104","v":"Select"},{"$f":"Import!I31304","v":"Select"},{"$f":"Import!I31504","v":"Select"},{"$f":"Import!I31704","v":"Select"},{"$f":"Import!I31904","v":"Select"},{"$f":"Import!I32104","v":"Select"},{"$f":"Import!I32304","v":0},{"$f":"Import!I32504","v":0},{"$f":"Import!I32704","v":0},{"$f":"Import!I32904","v":0},{"$f":"Import!I33104","v":0}]
[57,{"$f":"Import!I30905","v":"Select"},{"$f":"Import!I31105","v":"Select"},{"$f":"Import!I31305","v":"Select"},{"$f":"Import!I31505","v":"Select"},{"$f":"Import!I31705","v":"Select"},{"$f":"Import!I31905","v":"Select"},{"$f":"Import!I32105","v":"Select"},{"$f":"Import!I32305","v":0},{"$f":"Import!I32505","v":0},{"$f":"Import!I32705","v":0},{"$f":"Import!I32905","v":0},{"$f":"Import!I33105","v":0}]
[58,{"$f":"Import!I30906","v":"Select"},{"$f":"Import!I31106","v":"Select"},{"$f":"Import!I31306","v":"Select"},{"$f":"Import!I31506","v":"Select"},{"$f":"Import!I31706","v":"Select"},{"$f":"Import!I31906","v":"Select"},{"$f":"Import!I32106","v":"Select"},{"$f":"Import!I32306","v":0},{"$f":"Import!I32506","v":0},{"$f":"Import!I32706","v":0},{"$f":"Import!I32906","v":0},{"$f":"Import!I33106","v":0}]
[59,{"$f":"Import!I30907","v":"Select"},{"$f":"Import!I31107","v":"Select"},{"$f":"Import!I31307","v":"Select"},{"$f":"Import!I31507","v":"Select"},{"$f":"Import!I31707","v":"Select"},{"$f":"Import!I31907","v":"Select"},{"$f":"Import!I32107","v":"Select"},{"$f":"Import!I32307","v":0},{"$f":"Import!I32507","v":0},{"$f":"Import!I32707","v":0},{"$f":"Import!I32907","v":0},{"$f":"Import!I33107","v":0}]
[60,{"$f":"Import!I30908","v":"Select"},{"$f":"Import!I31108","v":"Select"},{"$f":"Import!I31308","v":"Select"},{"$f":"Import!I31508","v":"Select"},{"$f":"Import!I31708","v":"Select"},{"$f":"Import!I31908","v":"Select"},{"$f":"Import!I32108","v":"Select"},{"$f":"Import!I32308","v":0},{"$f":"Import!I32508","v":0},{"$f":"Import!I32708","v":0},{"$f":"Import!I32908","v":0},{"$f":"Import!I33108","v":0}]
[61,{"$f":"Import!I30909","v":"Select"},{"$f":"Import!I31109","v":"Select"},{"$f":"Import!I31309","v":"Select"},{"$f":"Import!I31509","v":"Select"},{"$f":"Import!I31709","v":"Select"},{"$f":"Import!I31909","v":"Select"},{"$f":"Import!I32109","v":"Select"},{"$f":"Import!I32309","v":0},{"$f":"Import!I32509","v":0},{"$f":"Import!I32709","v":0},{"$f":"Import!I32909","v":0},{"$f":"Import!I33109","v":0}]
[62,{"$f":"Import!I30910","v":"Select"},{"$f":"Import!I31110","v":"Select"},{"$f":"Import!I31310","v":"Select"},{"$f":"Import!I31510","v":"Select"},{"$f":"Import!I31710","v":"Select"},{"$f":"Import!I31910","v":"Select"},{"$f":"Import!I32110","v":"Select"},{"$f":"Import!I32310","v":0},{"$f":"Import!I32510","v":0},{"$f":"Import!I32710","v":0},{"$f":"Import!I32910","v":0},{"$f":"Import!I33110","v":0}]
[63,{"$f":"Import!I30911","v":"Select"},{"$f":"Import!I31111","v":"Select"},{"$f":"Import!I31311","v":"Select"},{"$f":"Import!I31511","v":"Select"},{"$f":"Import!I31711","v":"Select"},{"$f":"Import!I31911","v":"Select"},{"$f":"Import!I32111","v":"Select"},{"$f":"Import!I32311","v":0},{"$f":"Import!I32511","v":0},{"$f":"Import!I32711","v":0},{"$f":"Import!I32911","v":0},{"$f":"Import!I33111","v":0}]
[64,{"$f":"Import!I30912","v":"Select"},{"$f":"Import!I31112","v":"Select"},{"$f":"Import!I31312","v":"Select"},{"$f":"Import!I31512","v":"Select"},{"$f":"Import!I31712","v":"Select"},{"$f":"Import!I31912","v":"Select"},{"$f":"Import!I32112","v":"Select"},{"$f":"Import!I32312","v":0},{"$f":"Import!I32512","v":0},{"$f":"Import!I32712","v":0},{"$f":"Import!I32912","v":0},{"$f":"Import!I33112","v":0}]
[65,{"$f":"Import!I30913","v":"Select"},{"$f":"Import!I31113","v":"Select"},{"$f":"Import!I31313","v":"Select"},{"$f":"Import!I31513","v":"Select"},{"$f":"Import!I31713","v":"Select"},{"$f":"Import!I31913","v":"Select"},{"$f":"Import!I32113","v":"Select"},{"$f":"Import!I32313","v":0},{"$f":"Import!I32513","v":0},{"$f":"Import!I32713","v":0},{"$f":"Import!I32913","v":0},{"$f":"Import!I33113","v":0}]
[66,{"$f":"Import!I30914","v":"Select"},{"$f":"Import!I31114","v":"Select"},{"$f":"Import!I31314","v":"Select"},{"$f":"Import!I31514","v":"Select"},{"$f":"Import!I31714","v":"Select"},{"$f":"Import!I31914","v":"Select"},{"$f":"Import!I32114","v":"Select"},{"$f":"Import!I32314","v":0},{"$f":"Import!I32514","v":0},{"$f":"Import!I32714","v":0},{"$f":"Import!I32914","v":0},{"$f":"Import!I33114","v":0}]
[{"$f":"A1625+1","v":67},{"$f":"Import!I30915","v":"Select"},{"$f":"Import!I31115","v":"Select"},{"$f":"Import!I31315","v":"Select"},{"$f":"Import!I31515","v":"Select"},{"$f":"Import!I31715","v":"Select"},{"$f":"Import!I31915","v":"Select"},{"$f":"Import!I32115","v":"Select"},{"$f":"Import!I32315","v":0},{"$f":"Import!I32515","v":0},{"$f":"Import!I32715","v":0},{"$f":"Import!I32915","v":0},{"$f":"Import!I33115","v":0}]
[68,{"$f":"Import!I30916","v":"Select"},{"$f":"Import!I31116","v":"Select"},{"$f":"Import!I31316","v":"Select"},{"$f":"Import!I31516","v":"Select"},{"$f":"Import!I31716","v":"Select"},{"$f":"Import!I31916","v":"Select"},{"$f":"Import!I32116","v":"Select"},{"$f":"Import!I32316","v":0},{"$f":"Import!I32516","v":0},{"$f":"Import!I32716","v":0},{"$f":"Import!I32916","v":0},{"$f":"Import!I33116","v":0}]
[69,{"$f":"Import!I30917","v":"Select"},{"$f":"Import!I31117","v":"Select"},{"$f":"Import!I31317","v":"Select"},{"$f":"Import!I31517","v":"Select"},{"$f":"Import!I31717","v":"Select"},{"$f":"Import!I31917","v":"Select"},{"$f":"Import!I32117","v":"Select"},{"$f":"Import!I32317","v":0},{"$f":"Import!I32517","v":0},{"$f":"Import!I32717","v":0},{"$f":"Import!I32917","v":0},{"$f":"Import!I33117","v":0}]
[70,{"$f":"Import!I30918","v":"Select"},{"$f":"Import!I31118","v":"Select"},{"$f":"Import!I31318","v":"Select"},{"$f":"Import!I31518","v":"Select"},{"$f":"Import!I31718","v":"Select"},{"$f":"Import!I31918","v":"Select"},{"$f":"Import!I32118","v":"Select"},{"$f":"Import!I32318","v":0},{"$f":"Import!I32518","v":0},{"$f":"Import!I32718","v":0},{"$f":"Import!I32918","v":0},{"$f":"Import!I33118","v":0}]
[71,{"$f":"Import!I30919","v":"Select"},{"$f":"Import!I31119","v":"Select"},{"$f":"Import!I31319","v":"Select"},{"$f":"Import!I31519","v":"Select"},{"$f":"Import!I31719","v":"Select"},{"$f":"Import!I31919","v":"Select"},{"$f":"Import!I32119","v":"Select"},{"$f":"Import!I32319","v":0},{"$f":"Import!I32519","v":0},{"$f":"Import!I32719","v":0},{"$f":"Import!I32919","v":0},{"$f":"Import!I33119","v":0}]
[72,{"$f":"Import!I30920","v":"Select"},{"$f":"Import!I31120","v":"Select"},{"$f":"Import!I31320","v":"Select"},{"$f":"Import!I31520","v":"Select"},{"$f":"Import!I31720","v":"Select"},{"$f":"Import!I31920","v":"Select"},{"$f":"Import!I32120","v":"Select"},{"$f":"Import!I32320","v":0},{"$f":"Import!I32520","v":0},{"$f":"Import!I32720","v":0},{"$f":"Import!I32920","v":0},{"$f":"Import!I33120","v":0}]
[73,{"$f":"Import!I30921","v":"Select"},{"$f":"Import!I31121","v":"Select"},{"$f":"Import!I31321","v":"Select"},{"$f":"Import!I31521","v":"Select"},{"$f":"Import!I31721","v":"Select"},{"$f":"Import!I31921","v":"Select"},{"$f":"Import!I32121","v":"Select"},{"$f":"Import!I32321","v":0},{"$f":"Import!I32521","v":0},{"$f":"Import!I32721","v":0},{"$f":"Import!I32921","v":0},{"$f":"Import!I33121","v":0}]
[74,{"$f":"Import!I30922","v":"Select"},{"$f":"Import!I31122","v":"Select"},{"$f":"Import!I31322","v":"Select"},{"$f":"Import!I31522","v":"Select"},{"$f":"Import!I31722","v":"Select"},{"$f":"Import!I31922","v":"Select"},{"$f":"Import!I32122","v":"Select"},{"$f":"Import!I32322","v":0},{"$f":"Import!I32522","v":0},{"$f":"Import!I32722","v":0},{"$f":"Import!I32922","v":0},{"$f":"Import!I33122","v":0}]
[75,{"$f":"Import!I30923","v":"Select"},{"$f":"Import!I31123","v":"Select"},{"$f":"Import!I31323","v":"Select"},{"$f":"Import!I31523","v":"Select"},{"$f":"Import!I31723","v":"Select"},{"$f":"Import!I31923","v":"Select"},{"$f":"Import!I32123","v":"Select"},{"$f":"Import!I32323","v":0},{"$f":"Import!I32523","v":0},{"$f":"Import!I32723","v":0},{"$f":"Import!I32923","v":0},{"$f":"Import!I33123","v":0}]
[76,{"$f":"Import!I30924","v":"Select"},{"$f":"Import!I31124","v":"Select"},{"$f":"Import!I31324","v":"Select"},{"$f":"Import!I31524","v":"Select"},{"$f":"Import!I31724","v":"Select"},{"$f":"Import!I31924","v":"Select"},{"$f":"Import!I32124","v":"Select"},{"$f":"Import!I32324","v":0},{"$f":"Import!I32524","v":0},{"$f":"Import!I32724","v":0},{"$f":"Import!I32924","v":0},{"$f":"Import!I33124","v":0}]
[77,{"$f":"Import!I30925","v":"Select"},{"$f":"Import!I31125","v":"Select"},{"$f":"Import!I31325","v":"Select"},{"$f":"Import!I31525","v":"Select"},{"$f":"Import!I31725","v":"Select"},{"$f":"Import!I31925","v":"Select"},{"$f":"Import!I32125","v":"Select"},{"$f":"Import!I32325","v":0},{"$f":"Import!I32525","v":0},{"$f":"Import!I32725","v":0},{"$f":"Import!I32925","v":0},{"$f":"Import!I33125","v":0}]
[78,{"$f":"Import!I30926","v":"Select"},{"$f":"Import!I31126","v":"Select"},{"$f":"Import!I31326","v":"Select"},{"$f":"Import!I31526","v":"Select"},{"$f":"Import!I31726","v":"Select"},{"$f":"Import!I31926","v":"Select"},{"$f":"Import!I32126","v":"Select"},{"$f":"Import!I32326","v":0},{"$f":"Import!I32526","v":0},{"$f":"Import!I32726","v":0},{"$f":"Import!I32926","v":0},{"$f":"Import!I33126","v":0}]
[79,{"$f":"Import!I30927","v":"Select"},{"$f":"Import!I31127","v":"Select"},{"$f":"Import!I31327","v":"Select"},{"$f":"Import!I31527","v":"Select"},{"$f":"Import!I31727","v":"Select"},{"$f":"Import!I31927","v":"Select"},{"$f":"Import!I32127","v":"Select"},{"$f":"Import!I32327","v":0},{"$f":"Import!I32527","v":0},{"$f":"Import!I32727","v":0},{"$f":"Import!I32927","v":0},{"$f":"Import!I33127","v":0}]
[80,{"$f":"Import!I30928","v":"Select"},{"$f":"Import!I31128","v":"Select"},{"$f":"Import!I31328","v":"Select"},{"$f":"Import!I31528","v":"Select"},{"$f":"Import!I31728","v":"Select"},{"$f":"Import!I31928","v":"Select"},{"$f":"Import!I32128","v":"Select"},{"$f":"Import!I32328","v":0},{"$f":"Import!I32528","v":0},{"$f":"Import!I32728","v":0},{"$f":"Import!I32928","v":0},{"$f":"Import!I33128","v":0}]
[81,{"$f":"Import!I30929","v":"Select"},{"$f":"Import!I31129","v":"Select"},{"$f":"Import!I31329","v":"Select"},{"$f":"Import!I31529","v":"Select"},{"$f":"Import!I31729","v":"Select"},{"$f":"Import!I31929","v":"Select"},{"$f":"Import!I32129","v":"Select"},{"$f":"Import!I32329","v":0},{"$f":"Import!I32529","v":0},{"$f":"Import!I32729","v":0},{"$f":"Import!I32929","v":0},{"$f":"Import!I33129","v":0}]
[82,{"$f":"Import!I30930","v":"Select"},{"$f":"Import!I31130","v":"Select"},{"$f":"Import!I31330","v":"Select"},{"$f":"Import!I31530","v":"Select"},{"$f":"Import!I31730","v":"Select"},{"$f":"Import!I31930","v":"Select"},{"$f":"Import!I32130","v":"Select"},{"$f":"Import!I32330","v":0},{"$f":"Import!I32530","v":0},{"$f":"Import!I32730","v":0},{"$f":"Import!I32930","v":0},{"$f":"Import!I33130","v":0}]
[83,{"$f":"Import!I30931","v":"Select"},{"$f":"Import!I31131","v":"Select"},{"$f":"Import!I31331","v":"Select"},{"$f":"Import!I31531","v":"Select"},{"$f":"Import!I31731","v":"Select"},{"$f":"Import!I31931","v":"Select"},{"$f":"Import!I32131","v":"Select"},{"$f":"Import!I32331","v":0},{"$f":"Import!I32531","v":0},{"$f":"Import!I32731","v":0},{"$f":"Import!I32931","v":0},{"$f":"Import!I33131","v":0}]
[84,{"$f":"Import!I30932","v":"Select"},{"$f":"Import!I31132","v":"Select"},{"$f":"Import!I31332","v":"Select"},{"$f":"Import!I31532","v":"Select"},{"$f":"Import!I31732","v":"Select"},{"$f":"Import!I31932","v":"Select"},{"$f":"Import!I32132","v":"Select"},{"$f":"Import!I32332","v":0},{"$f":"Import!I32532","v":0},{"$f":"Import!I32732","v":0},{"$f":"Import!I32932","v":0},{"$f":"Import!I33132","v":0}]
[85,{"$f":"Import!I30933","v":"Select"},{"$f":"Import!I31133","v":"Select"},{"$f":"Import!I31333","v":"Select"},{"$f":"Import!I31533","v":"Select"},{"$f":"Import!I31733","v":"Select"},{"$f":"Import!I31933","v":"Select"},{"$f":"Import!I32133","v":"Select"},{"$f":"Import!I32333","v":0},{"$f":"Import!I32533","v":0},{"$f":"Import!I32733","v":0},{"$f":"Import!I32933","v":0},{"$f":"Import!I33133","v":0}]
[86,{"$f":"Import!I30934","v":"Select"},{"$f":"Import!I31134","v":"Select"},{"$f":"Import!I31334","v":"Select"},{"$f":"Import!I31534","v":"Select"},{"$f":"Import!I31734","v":"Select"},{"$f":"Import!I31934","v":"Select"},{"$f":"Import!I32134","v":"Select"},{"$f":"Import!I32334","v":0},{"$f":"Import!I32534","v":0},{"$f":"Import!I32734","v":0},{"$f":"Import!I32934","v":0},{"$f":"Import!I33134","v":0}]
[87,{"$f":"Import!I30935","v":"Select"},{"$f":"Import!I31135","v":"Select"},{"$f":"Import!I31335","v":"Select"},{"$f":"Import!I31535","v":"Select"},{"$f":"Import!I31735","v":"Select"},{"$f":"Import!I31935","v":"Select"},{"$f":"Import!I32135","v":"Select"},{"$f":"Import!I32335","v":0},{"$f":"Import!I32535","v":0},{"$f":"Import!I32735","v":0},{"$f":"Import!I32935","v":0},{"$f":"Import!I33135","v":0}]
[88,{"$f":"Import!I30936","v":"Select"},{"$f":"Import!I31136","v":"Select"},{"$f":"Import!I31336","v":"Select"},{"$f":"Import!I31536","v":"Select"},{"$f":"Import!I31736","v":"Select"},{"$f":"Import!I31936","v":"Select"},{"$f":"Import!I32136","v":"Select"},{"$f":"Import!I32336","v":0},{"$f":"Import!I32536","v":0},{"$f":"Import!I32736","v":0},{"$f":"Import!I32936","v":0},{"$f":"Import!I33136","v":0}]
[89,{"$f":"Import!I30937","v":"Select"},{"$f":"Import!I31137","v":"Select"},{"$f":"Import!I31337","v":"Select"},{"$f":"Import!I31537","v":"Select"},{"$f":"Import!I31737","v":"Select"},{"$f":"Import!I31937","v":"Select"},{"$f":"Import!I32137","v":"Select"},{"$f":"Import!I32337","v":0},{"$f":"Import!I32537","v":0},{"$f":"Import!I32737","v":0},{"$f":"Import!I32937","v":0},{"$f":"Import!I33137","v":0}]
[90,{"$f":"Import!I30938","v":"Select"},{"$f":"Import!I31138","v":"Select"},{"$f":"Import!I31338","v":"Select"},{"$f":"Import!I31538","v":"Select"},{"$f":"Import!I31738","v":"Select"},{"$f":"Import!I31938","v":"Select"},{"$f":"Import!I32138","v":"Select"},{"$f":"Import!I32338","v":0},{"$f":"Import!I32538","v":0},{"$f":"Import!I32738","v":0},{"$f":"Import!I32938","v":0},{"$f":"Import!I33138","v":0}]
[91,{"$f":"Import!I30939","v":"Select"},{"$f":"Import!I31139","v":"Select"},{"$f":"Import!I31339","v":"Select"},{"$f":"Import!I31539","v":"Select"},{"$f":"Import!I31739","v":"Select"},{"$f":"Import!I31939","v":"Select"},{"$f":"Import!I32139","v":"Select"},{"$f":"Import!I32339","v":0},{"$f":"Import!I32539","v":0},{"$f":"Import!I32739","v":0},{"$f":"Import!I32939","v":0},{"$f":"Import!I33139","v":0}]
[92,{"$f":"Import!I30940","v":"Select"},{"$f":"Import!I31140","v":"Select"},{"$f":"Import!I31340","v":"Select"},{"$f":"Import!I31540","v":"Select"},{"$f":"Import!I31740","v":"Select"},{"$f":"Import!I31940","v":"Select"},{"$f":"Import!I32140","v":"Select"},{"$f":"Import!I32340","v":0},{"$f":"Import!I32540","v":0},{"$f":"Import!I32740","v":0},{"$f":"Import!I32940","v":0},{"$f":"Import!I33140","v":0}]
[93,{"$f":"Import!I30941","v":"Select"},{"$f":"Import!I31141","v":"Select"},{"$f":"Import!I31341","v":"Select"},{"$f":"Import!I31541","v":"Select"},{"$f":"Import!I31741","v":"Select"},{"$f":"Import!I31941","v":"Select"},{"$f":"Import!I32141","v":"Select"},{"$f":"Import!I32341","v":0},{"$f":"Import!I32541","v":0},{"$f":"Import!I32741","v":0},{"$f":"Import!I32941","v":0},{"$f":"Import!I33141","v":0}]
[94,{"$f":"Import!I30942","v":"Select"},{"$f":"Import!I31142","v":"Select"},{"$f":"Import!I31342","v":"Select"},{"$f":"Import!I31542","v":"Select"},{"$f":"Import!I31742","v":"Select"},{"$f":"Import!I31942","v":"Select"},{"$f":"Import!I32142","v":"Select"},{"$f":"Import!I32342","v":0},{"$f":"Import!I32542","v":0},{"$f":"Import!I32742","v":0},{"$f":"Import!I32942","v":0},{"$f":"Import!I33142","v":0}]
[95,{"$f":"Import!I30943","v":"Select"},{"$f":"Import!I31143","v":"Select"},{"$f":"Import!I31343","v":"Select"},{"$f":"Import!I31543","v":"Select"},{"$f":"Import!I31743","v":"Select"},{"$f":"Import!I31943","v":"Select"},{"$f":"Import!I32143","v":"Select"},{"$f":"Import!I32343","v":0},{"$f":"Import!I32543","v":0},{"$f":"Import!I32743","v":0},{"$f":"Import!I32943","v":0},{"$f":"Import!I33143","v":0}]
[96,{"$f":"Import!I30944","v":"Select"},{"$f":"Import!I31144","v":"Select"},{"$f":"Import!I31344","v":"Select"},{"$f":"Import!I31544","v":"Select"},{"$f":"Import!I31744","v":"Select"},{"$f":"Import!I31944","v":"Select"},{"$f":"Import!I32144","v":"Select"},{"$f":"Import!I32344","v":0},{"$f":"Import!I32544","v":0},{"$f":"Import!I32744","v":0},{"$f":"Import!I32944","v":0},{"$f":"Import!I33144","v":0}]
[97,{"$f":"Import!I30945","v":"Select"},{"$f":"Import!I31145","v":"Select"},{"$f":"Import!I31345","v":"Select"},{"$f":"Import!I31545","v":"Select"},{"$f":"Import!I31745","v":"Select"},{"$f":"Import!I31945","v":"Select"},{"$f":"Import!I32145","v":"Select"},{"$f":"Import!I32345","v":0},{"$f":"Import!I32545","v":0},{"$f":"Import!I32745","v":0},{"$f":"Import!I32945","v":0},{"$f":"Import!I33145","v":0}]
[98,{"$f":"Import!I30946","v":"Select"},{"$f":"Import!I31146","v":"Select"},{"$f":"Import!I31346","v":"Select"},{"$f":"Import!I31546","v":"Select"},{"$f":"Import!I31746","v":"Select"},{"$f":"Import!I31946","v":"Select"},{"$f":"Import!I32146","v":"Select"},{"$f":"Import!I32346","v":0},{"$f":"Import!I32546","v":0},{"$f":"Import!I32746","v":0},{"$f":"Import!I32946","v":0},{"$f":"Import!I33146","v":0}]
[99,{"$f":"Import!I30947","v":"Select"},{"$f":"Import!I31147","v":"Select"},{"$f":"Import!I31347","v":"Select"},{"$f":"Import!I31547","v":"Select"},{"$f":"Import!I31747","v":"Select"},{"$f":"Import!I31947","v":"Select"},{"$f":"Import!I32147","v":"Select"},{"$f":"Import!I32347","v":0},{"$f":"Import!I32547","v":0},{"$f":"Import!I32747","v":0},{"$f":"Import!I32947","v":0},{"$f":"Import!I33147","v":0}]
[100,{"$f":"Import!I30948","v":"Select"},{"$f":"Import!I31148","v":"Select"},{"$f":"Import!I31348","v":"Select"},{"$f":"Import!I31548","v":"Select"},{"$f":"Import!I31748","v":"Select"},{"$f":"Import!I31948","v":"Select"},{"$f":"Import!I32148","v":"Select"},{"$f":"Import!I32348","v":0},{"$f":"Import!I32548","v":0},{"$f":"Import!I32748","v":0},{"$f":"Import!I32948","v":0},{"$f":"Import!I33148","v":0}]
[101,{"$f":"Import!I30949","v":"Select"},{"$f":"Import!I31149","v":"Select"},{"$f":"Import!I31349","v":"Select"},{"$f":"Import!I31549","v":"Select"},{"$f":"Import!I31749","v":"Select"},{"$f":"Import!I31949","v":"Select"},{"$f":"Import!I32149","v":"Select"},{"$f":"Import!I32349","v":0},{"$f":"Import!I32549","v":0},{"$f":"Import!I32749","v":0},{"$f":"Import!I32949","v":0},{"$f":"Import!I33149","v":0}]
[102,{"$f":"Import!I30950","v":"Select"},{"$f":"Import!I31150","v":"Select"},{"$f":"Import!I31350","v":"Select"},{"$f":"Import!I31550","v":"Select"},{"$f":"Import!I31750","v":"Select"},{"$f":"Import!I31950","v":"Select"},{"$f":"Import!I32150","v":"Select"},{"$f":"Import!I32350","v":0},{"$f":"Import!I32550","v":0},{"$f":"Import!I32750","v":0},{"$f":"Import!I32950","v":0},{"$f":"Import!I33150","v":0}]
[103,{"$f":"Import!I30951","v":"Select"},{"$f":"Import!I31151","v":"Select"},{"$f":"Import!I31351","v":"Select"},{"$f":"Import!I31551","v":"Select"},{"$f":"Import!I31751","v":"Select"},{"$f":"Import!I31951","v":"Select"},{"$f":"Import!I32151","v":"Select"},{"$f":"Import!I32351","v":0},{"$f":"Import!I32551","v":0},{"$f":"Import!I32751","v":0},{"$f":"Import!I32951","v":0},{"$f":"Import!I33151","v":0}]
[104,{"$f":"Import!I30952","v":"Select"},{"$f":"Import!I31152","v":"Select"},{"$f":"Import!I31352","v":"Select"},{"$f":"Import!I31552","v":"Select"},{"$f":"Import!I31752","v":"Select"},{"$f":"Import!I31952","v":"Select"},{"$f":"Import!I32152","v":"Select"},{"$f":"Import!I32352","v":0},{"$f":"Import!I32552","v":0},{"$f":"Import!I32752","v":0},{"$f":"Import!I32952","v":0},{"$f":"Import!I33152","v":0}]
[105,{"$f":"Import!I30953","v":"Select"},{"$f":"Import!I31153","v":"Select"},{"$f":"Import!I31353","v":"Select"},{"$f":"Import!I31553","v":"Select"},{"$f":"Import!I31753","v":"Select"},{"$f":"Import!I31953","v":"Select"},{"$f":"Import!I32153","v":"Select"},{"$f":"Import!I32353","v":0},{"$f":"Import!I32553","v":0},{"$f":"Import!I32753","v":0},{"$f":"Import!I32953","v":0},{"$f":"Import!I33153","v":0}]
[106,{"$f":"Import!I30954","v":"Select"},{"$f":"Import!I31154","v":"Select"},{"$f":"Import!I31354","v":"Select"},{"$f":"Import!I31554","v":"Select"},{"$f":"Import!I31754","v":"Select"},{"$f":"Import!I31954","v":"Select"},{"$f":"Import!I32154","v":"Select"},{"$f":"Import!I32354","v":0},{"$f":"Import!I32554","v":0},{"$f":"Import!I32754","v":0},{"$f":"Import!I32954","v":0},{"$f":"Import!I33154","v":0}]
[107,{"$f":"Import!I30955","v":"Select"},{"$f":"Import!I31155","v":"Select"},{"$f":"Import!I31355","v":"Select"},{"$f":"Import!I31555","v":"Select"},{"$f":"Import!I31755","v":"Select"},{"$f":"Import!I31955","v":"Select"},{"$f":"Import!I32155","v":"Select"},{"$f":"Import!I32355","v":0},{"$f":"Import!I32555","v":0},{"$f":"Import!I32755","v":0},{"$f":"Import!I32955","v":0},{"$f":"Import!I33155","v":0}]
[108,{"$f":"Import!I30956","v":"Select"},{"$f":"Import!I31156","v":"Select"},{"$f":"Import!I31356","v":"Select"},{"$f":"Import!I31556","v":"Select"},{"$f":"Import!I31756","v":"Select"},{"$f":"Import!I31956","v":"Select"},{"$f":"Import!I32156","v":"Select"},{"$f":"Import!I32356","v":0},{"$f":"Import!I32556","v":0},{"$f":"Import!I32756","v":0},{"$f":"Import!I32956","v":0},{"$f":"Import!I33156","v":0}]
[109,{"$f":"Import!I30957","v":"Select"},{"$f":"Import!I31157","v":"Select"},{"$f":"Import!I31357","v":"Select"},{"$f":"Import!I31557","v":"Select"},{"$f":"Import!I31757","v":"Select"},{"$f":"Import!I31957","v":"Select"},{"$f":"Import!I32157","v":"Select"},{"$f":"Import!I32357","v":0},{"$f":"Import!I32557","v":0},{"$f":"Import!I32757","v":0},{"$f":"Import!I32957","v":0},{"$f":"Import!I33157","v":0}]
[110,{"$f":"Import!I30958","v":"Select"},{"$f":"Import!I31158","v":"Select"},{"$f":"Import!I31358","v":"Select"},{"$f":"Import!I31558","v":"Select"},{"$f":"Import!I31758","v":"Select"},{"$f":"Import!I31958","v":"Select"},{"$f":"Import!I32158","v":"Select"},{"$f":"Import!I32358","v":0},{"$f":"Import!I32558","v":0},{"$f":"Import!I32758","v":0},{"$f":"Import!I32958","v":0},{"$f":"Import!I33158","v":0}]
[111,{"$f":"Import!I30959","v":"Select"},{"$f":"Import!I31159","v":"Select"},{"$f":"Import!I31359","v":"Select"},{"$f":"Import!I31559","v":"Select"},{"$f":"Import!I31759","v":"Select"},{"$f":"Import!I31959","v":"Select"},{"$f":"Import!I32159","v":"Select"},{"$f":"Import!I32359","v":0},{"$f":"Import!I32559","v":0},{"$f":"Import!I32759","v":0},{"$f":"Import!I32959","v":0},{"$f":"Import!I33159","v":0}]
[112,{"$f":"Import!I30960","v":"Select"},{"$f":"Import!I31160","v":"Select"},{"$f":"Import!I31360","v":"Select"},{"$f":"Import!I31560","v":"Select"},{"$f":"Import!I31760","v":"Select"},{"$f":"Import!I31960","v":"Select"},{"$f":"Import!I32160","v":"Select"},{"$f":"Import!I32360","v":0},{"$f":"Import!I32560","v":0},{"$f":"Import!I32760","v":0},{"$f":"Import!I32960","v":0},{"$f":"Import!I33160","v":0}]
[113,{"$f":"Import!I30961","v":"Select"},{"$f":"Import!I31161","v":"Select"},{"$f":"Import!I31361","v":"Select"},{"$f":"Import!I31561","v":"Select"},{"$f":"Import!I31761","v":"Select"},{"$f":"Import!I31961","v":"Select"},{"$f":"Import!I32161","v":"Select"},{"$f":"Import!I32361","v":0},{"$f":"Import!I32561","v":0},{"$f":"Import!I32761","v":0},{"$f":"Import!I32961","v":0},{"$f":"Import!I33161","v":0}]
[114,{"$f":"Import!I30962","v":"Select"},{"$f":"Import!I31162","v":"Select"},{"$f":"Import!I31362","v":"Select"},{"$f":"Import!I31562","v":"Select"},{"$f":"Import!I31762","v":"Select"},{"$f":"Import!I31962","v":"Select"},{"$f":"Import!I32162","v":"Select"},{"$f":"Import!I32362","v":0},{"$f":"Import!I32562","v":0},{"$f":"Import!I32762","v":0},{"$f":"Import!I32962","v":0},{"$f":"Import!I33162","v":0}]
[115,{"$f":"Import!I30963","v":"Select"},{"$f":"Import!I31163","v":"Select"},{"$f":"Import!I31363","v":"Select"},{"$f":"Import!I31563","v":"Select"},{"$f":"Import!I31763","v":"Select"},{"$f":"Import!I31963","v":"Select"},{"$f":"Import!I32163","v":"Select"},{"$f":"Import!I32363","v":0},{"$f":"Import!I32563","v":0},{"$f":"Import!I32763","v":0},{"$f":"Import!I32963","v":0},{"$f":"Import!I33163","v":0}]
[116,{"$f":"Import!I30964","v":"Select"},{"$f":"Import!I31164","v":"Select"},{"$f":"Import!I31364","v":"Select"},{"$f":"Import!I31564","v":"Select"},{"$f":"Import!I31764","v":"Select"},{"$f":"Import!I31964","v":"Select"},{"$f":"Import!I32164","v":"Select"},{"$f":"Import!I32364","v":0},{"$f":"Import!I32564","v":0},{"$f":"Import!I32764","v":0},{"$f":"Import!I32964","v":0},{"$f":"Import!I33164","v":0}]
[117,{"$f":"Import!I30965","v":"Select"},{"$f":"Import!I31165","v":"Select"},{"$f":"Import!I31365","v":"Select"},{"$f":"Import!I31565","v":"Select"},{"$f":"Import!I31765","v":"Select"},{"$f":"Import!I31965","v":"Select"},{"$f":"Import!I32165","v":"Select"},{"$f":"Import!I32365","v":0},{"$f":"Import!I32565","v":0},{"$f":"Import!I32765","v":0},{"$f":"Import!I32965","v":0},{"$f":"Import!I33165","v":0}]
[118,{"$f":"Import!I30966","v":"Select"},{"$f":"Import!I31166","v":"Select"},{"$f":"Import!I31366","v":"Select"},{"$f":"Import!I31566","v":"Select"},{"$f":"Import!I31766","v":"Select"},{"$f":"Import!I31966","v":"Select"},{"$f":"Import!I32166","v":"Select"},{"$f":"Import!I32366","v":0},{"$f":"Import!I32566","v":0},{"$f":"Import!I32766","v":0},{"$f":"Import!I32966","v":0},{"$f":"Import!I33166","v":0}]
[119,{"$f":"Import!I30967","v":"Select"},{"$f":"Import!I31167","v":"Select"},{"$f":"Import!I31367","v":"Select"},{"$f":"Import!I31567","v":"Select"},{"$f":"Import!I31767","v":"Select"},{"$f":"Import!I31967","v":"Select"},{"$f":"Import!I32167","v":"Select"},{"$f":"Import!I32367","v":0},{"$f":"Import!I32567","v":0},{"$f":"Import!I32767","v":0},{"$f":"Import!I32967","v":0},{"$f":"Import!I33167","v":0}]
[120,{"$f":"Import!I30968","v":"Select"},{"$f":"Import!I31168","v":"Select"},{"$f":"Import!I31368","v":"Select"},{"$f":"Import!I31568","v":"Select"},{"$f":"Import!I31768","v":"Select"},{"$f":"Import!I31968","v":"Select"},{"$f":"Import!I32168","v":"Select"},{"$f":"Import!I32368","v":0},{"$f":"Import!I32568","v":0},{"$f":"Import!I32768","v":0},{"$f":"Import!I32968","v":0},{"$f":"Import!I33168","v":0}]
[121,{"$f":"Import!I30969","v":"Select"},{"$f":"Import!I31169","v":"Select"},{"$f":"Import!I31369","v":"Select"},{"$f":"Import!I31569","v":"Select"},{"$f":"Import!I31769","v":"Select"},{"$f":"Import!I31969","v":"Select"},{"$f":"Import!I32169","v":"Select"},{"$f":"Import!I32369","v":0},{"$f":"Import!I32569","v":0},{"$f":"Import!I32769","v":0},{"$f":"Import!I32969","v":0},{"$f":"Import!I33169","v":0}]
[122,{"$f":"Import!I30970","v":"Select"},{"$f":"Import!I31170","v":"Select"},{"$f":"Import!I31370","v":"Select"},{"$f":"Import!I31570","v":"Select"},{"$f":"Import!I31770","v":"Select"},{"$f":"Import!I31970","v":"Select"},{"$f":"Import!I32170","v":"Select"},{"$f":"Import!I32370","v":0},{"$f":"Import!I32570","v":0},{"$f":"Import!I32770","v":0},{"$f":"Import!I32970","v":0},{"$f":"Import!I33170","v":0}]
[123,{"$f":"Import!I30971","v":"Select"},{"$f":"Import!I31171","v":"Select"},{"$f":"Import!I31371","v":"Select"},{"$f":"Import!I31571","v":"Select"},{"$f":"Import!I31771","v":"Select"},{"$f":"Import!I31971","v":"Select"},{"$f":"Import!I32171","v":"Select"},{"$f":"Import!I32371","v":0},{"$f":"Import!I32571","v":0},{"$f":"Import!I32771","v":0},{"$f":"Import!I32971","v":0},{"$f":"Import!I33171","v":0}]
[124,{"$f":"Import!I30972","v":"Select"},{"$f":"Import!I31172","v":"Select"},{"$f":"Import!I31372","v":"Select"},{"$f":"Import!I31572","v":"Select"},{"$f":"Import!I31772","v":"Select"},{"$f":"Import!I31972","v":"Select"},{"$f":"Import!I32172","v":"Select"},{"$f":"Import!I32372","v":0},{"$f":"Import!I32572","v":0},{"$f":"Import!I32772","v":0},{"$f":"Import!I32972","v":0},{"$f":"Import!I33172","v":0}]
[125,{"$f":"Import!I30973","v":"Select"},{"$f":"Import!I31173","v":"Select"},{"$f":"Import!I31373","v":"Select"},{"$f":"Import!I31573","v":"Select"},{"$f":"Import!I31773","v":"Select"},{"$f":"Import!I31973","v":"Select"},{"$f":"Import!I32173","v":"Select"},{"$f":"Import!I32373","v":0},{"$f":"Import!I32573","v":0},{"$f":"Import!I32773","v":0},{"$f":"Import!I32973","v":0},{"$f":"Import!I33173","v":0}]
[126,{"$f":"Import!I30974","v":"Select"},{"$f":"Import!I31174","v":"Select"},{"$f":"Import!I31374","v":"Select"},{"$f":"Import!I31574","v":"Select"},{"$f":"Import!I31774","v":"Select"},{"$f":"Import!I31974","v":"Select"},{"$f":"Import!I32174","v":"Select"},{"$f":"Import!I32374","v":0},{"$f":"Import!I32574","v":0},{"$f":"Import!I32774","v":0},{"$f":"Import!I32974","v":0},{"$f":"Import!I33174","v":0}]
[127,{"$f":"Import!I30975","v":"Select"},{"$f":"Import!I31175","v":"Select"},{"$f":"Import!I31375","v":"Select"},{"$f":"Import!I31575","v":"Select"},{"$f":"Import!I31775","v":"Select"},{"$f":"Import!I31975","v":"Select"},{"$f":"Import!I32175","v":"Select"},{"$f":"Import!I32375","v":0},{"$f":"Import!I32575","v":0},{"$f":"Import!I32775","v":0},{"$f":"Import!I32975","v":0},{"$f":"Import!I33175","v":0}]
[128,{"$f":"Import!I30976","v":"Select"},{"$f":"Import!I31176","v":"Select"},{"$f":"Import!I31376","v":"Select"},{"$f":"Import!I31576","v":"Select"},{"$f":"Import!I31776","v":"Select"},{"$f":"Import!I31976","v":"Select"},{"$f":"Import!I32176","v":"Select"},{"$f":"Import!I32376","v":0},{"$f":"Import!I32576","v":0},{"$f":"Import!I32776","v":0},{"$f":"Import!I32976","v":0},{"$f":"Import!I33176","v":0}]
[129,{"$f":"Import!I30977","v":"Select"},{"$f":"Import!I31177","v":"Select"},{"$f":"Import!I31377","v":"Select"},{"$f":"Import!I31577","v":"Select"},{"$f":"Import!I31777","v":"Select"},{"$f":"Import!I31977","v":"Select"},{"$f":"Import!I32177","v":"Select"},{"$f":"Import!I32377","v":0},{"$f":"Import!I32577","v":0},{"$f":"Import!I32777","v":0},{"$f":"Import!I32977","v":0},{"$f":"Import!I33177","v":0}]
[130,{"$f":"Import!I30978","v":"Select"},{"$f":"Import!I31178","v":"Select"},{"$f":"Import!I31378","v":"Select"},{"$f":"Import!I31578","v":"Select"},{"$f":"Import!I31778","v":"Select"},{"$f":"Import!I31978","v":"Select"},{"$f":"Import!I32178","v":"Select"},{"$f":"Import!I32378","v":0},{"$f":"Import!I32578","v":0},{"$f":"Import!I32778","v":0},{"$f":"Import!I32978","v":0},{"$f":"Import!I33178","v":0}]
[{"$f":"A1689+1","v":131},{"$f":"Import!I30979","v":"Select"},{"$f":"Import!I31179","v":"Select"},{"$f":"Import!I31379","v":"Select"},{"$f":"Import!I31579","v":"Select"},{"$f":"Import!I31779","v":"Select"},{"$f":"Import!I31979","v":"Select"},{"$f":"Import!I32179","v":"Select"},{"$f":"Import!I32379","v":0},{"$f":"Import!I32579","v":0},{"$f":"Import!I32779","v":0},{"$f":"Import!I32979","v":0},{"$f":"Import!I33179","v":0}]
[132,{"$f":"Import!I30980","v":"Select"},{"$f":"Import!I31180","v":"Select"},{"$f":"Import!I31380","v":"Select"},{"$f":"Import!I31580","v":"Select"},{"$f":"Import!I31780","v":"Select"},{"$f":"Import!I31980","v":"Select"},{"$f":"Import!I32180","v":"Select"},{"$f":"Import!I32380","v":0},{"$f":"Import!I32580","v":0},{"$f":"Import!I32780","v":0},{"$f":"Import!I32980","v":0},{"$f":"Import!I33180","v":0}]
[133,{"$f":"Import!I30981","v":"Select"},{"$f":"Import!I31181","v":"Select"},{"$f":"Import!I31381","v":"Select"},{"$f":"Import!I31581","v":"Select"},{"$f":"Import!I31781","v":"Select"},{"$f":"Import!I31981","v":"Select"},{"$f":"Import!I32181","v":"Select"},{"$f":"Import!I32381","v":0},{"$f":"Import!I32581","v":0},{"$f":"Import!I32781","v":0},{"$f":"Import!I32981","v":0},{"$f":"Import!I33181","v":0}]
[134,{"$f":"Import!I30982","v":"Select"},{"$f":"Import!I31182","v":"Select"},{"$f":"Import!I31382","v":"Select"},{"$f":"Import!I31582","v":"Select"},{"$f":"Import!I31782","v":"Select"},{"$f":"Import!I31982","v":"Select"},{"$f":"Import!I32182","v":"Select"},{"$f":"Import!I32382","v":0},{"$f":"Import!I32582","v":0},{"$f":"Import!I32782","v":0},{"$f":"Import!I32982","v":0},{"$f":"Import!I33182","v":0}]
[135,{"$f":"Import!I30983","v":"Select"},{"$f":"Import!I31183","v":"Select"},{"$f":"Import!I31383","v":"Select"},{"$f":"Import!I31583","v":"Select"},{"$f":"Import!I31783","v":"Select"},{"$f":"Import!I31983","v":"Select"},{"$f":"Import!I32183","v":"Select"},{"$f":"Import!I32383","v":0},{"$f":"Import!I32583","v":0},{"$f":"Import!I32783","v":0},{"$f":"Import!I32983","v":0},{"$f":"Import!I33183","v":0}]
[136,{"$f":"Import!I30984","v":"Select"},{"$f":"Import!I31184","v":"Select"},{"$f":"Import!I31384","v":"Select"},{"$f":"Import!I31584","v":"Select"},{"$f":"Import!I31784","v":"Select"},{"$f":"Import!I31984","v":"Select"},{"$f":"Import!I32184","v":"Select"},{"$f":"Import!I32384","v":0},{"$f":"Import!I32584","v":0},{"$f":"Import!I32784","v":0},{"$f":"Import!I32984","v":0},{"$f":"Import!I33184","v":0}]
[137,{"$f":"Import!I30985","v":"Select"},{"$f":"Import!I31185","v":"Select"},{"$f":"Import!I31385","v":"Select"},{"$f":"Import!I31585","v":"Select"},{"$f":"Import!I31785","v":"Select"},{"$f":"Import!I31985","v":"Select"},{"$f":"Import!I32185","v":"Select"},{"$f":"Import!I32385","v":0},{"$f":"Import!I32585","v":0},{"$f":"Import!I32785","v":0},{"$f":"Import!I32985","v":0},{"$f":"Import!I33185","v":0}]
[138,{"$f":"Import!I30986","v":"Select"},{"$f":"Import!I31186","v":"Select"},{"$f":"Import!I31386","v":"Select"},{"$f":"Import!I31586","v":"Select"},{"$f":"Import!I31786","v":"Select"},{"$f":"Import!I31986","v":"Select"},{"$f":"Import!I32186","v":"Select"},{"$f":"Import!I32386","v":0},{"$f":"Import!I32586","v":0},{"$f":"Import!I32786","v":0},{"$f":"Import!I32986","v":0},{"$f":"Import!I33186","v":0}]
[139,{"$f":"Import!I30987","v":"Select"},{"$f":"Import!I31187","v":"Select"},{"$f":"Import!I31387","v":"Select"},{"$f":"Import!I31587","v":"Select"},{"$f":"Import!I31787","v":"Select"},{"$f":"Import!I31987","v":"Select"},{"$f":"Import!I32187","v":"Select"},{"$f":"Import!I32387","v":0},{"$f":"Import!I32587","v":0},{"$f":"Import!I32787","v":0},{"$f":"Import!I32987","v":0},{"$f":"Import!I33187","v":0}]
[140,{"$f":"Import!I30988","v":"Select"},{"$f":"Import!I31188","v":"Select"},{"$f":"Import!I31388","v":"Select"},{"$f":"Import!I31588","v":"Select"},{"$f":"Import!I31788","v":"Select"},{"$f":"Import!I31988","v":"Select"},{"$f":"Import!I32188","v":"Select"},{"$f":"Import!I32388","v":0},{"$f":"Import!I32588","v":0},{"$f":"Import!I32788","v":0},{"$f":"Import!I32988","v":0},{"$f":"Import!I33188","v":0}]
[141,{"$f":"Import!I30989","v":"Select"},{"$f":"Import!I31189","v":"Select"},{"$f":"Import!I31389","v":"Select"},{"$f":"Import!I31589","v":"Select"},{"$f":"Import!I31789","v":"Select"},{"$f":"Import!I31989","v":"Select"},{"$f":"Import!I32189","v":"Select"},{"$f":"Import!I32389","v":0},{"$f":"Import!I32589","v":0},{"$f":"Import!I32789","v":0},{"$f":"Import!I32989","v":0},{"$f":"Import!I33189","v":0}]
[142,{"$f":"Import!I30990","v":"Select"},{"$f":"Import!I31190","v":"Select"},{"$f":"Import!I31390","v":"Select"},{"$f":"Import!I31590","v":"Select"},{"$f":"Import!I31790","v":"Select"},{"$f":"Import!I31990","v":"Select"},{"$f":"Import!I32190","v":"Select"},{"$f":"Import!I32390","v":0},{"$f":"Import!I32590","v":0},{"$f":"Import!I32790","v":0},{"$f":"Import!I32990","v":0},{"$f":"Import!I33190","v":0}]
[143,{"$f":"Import!I30991","v":"Select"},{"$f":"Import!I31191","v":"Select"},{"$f":"Import!I31391","v":"Select"},{"$f":"Import!I31591","v":"Select"},{"$f":"Import!I31791","v":"Select"},{"$f":"Import!I31991","v":"Select"},{"$f":"Import!I32191","v":"Select"},{"$f":"Import!I32391","v":0},{"$f":"Import!I32591","v":0},{"$f":"Import!I32791","v":0},{"$f":"Import!I32991","v":0},{"$f":"Import!I33191","v":0}]
[144,{"$f":"Import!I30992","v":"Select"},{"$f":"Import!I31192","v":"Select"},{"$f":"Import!I31392","v":"Select"},{"$f":"Import!I31592","v":"Select"},{"$f":"Import!I31792","v":"Select"},{"$f":"Import!I31992","v":"Select"},{"$f":"Import!I32192","v":"Select"},{"$f":"Import!I32392","v":0},{"$f":"Import!I32592","v":0},{"$f":"Import!I32792","v":0},{"$f":"Import!I32992","v":0},{"$f":"Import!I33192","v":0}]
[145,{"$f":"Import!I30993","v":"Select"},{"$f":"Import!I31193","v":"Select"},{"$f":"Import!I31393","v":"Select"},{"$f":"Import!I31593","v":"Select"},{"$f":"Import!I31793","v":"Select"},{"$f":"Import!I31993","v":"Select"},{"$f":"Import!I32193","v":"Select"},{"$f":"Import!I32393","v":0},{"$f":"Import!I32593","v":0},{"$f":"Import!I32793","v":0},{"$f":"Import!I32993","v":0},{"$f":"Import!I33193","v":0}]
[146,{"$f":"Import!I30994","v":"Select"},{"$f":"Import!I31194","v":"Select"},{"$f":"Import!I31394","v":"Select"},{"$f":"Import!I31594","v":"Select"},{"$f":"Import!I31794","v":"Select"},{"$f":"Import!I31994","v":"Select"},{"$f":"Import!I32194","v":"Select"},{"$f":"Import!I32394","v":0},{"$f":"Import!I32594","v":0},{"$f":"Import!I32794","v":0},{"$f":"Import!I32994","v":0},{"$f":"Import!I33194","v":0}]
[147,{"$f":"Import!I30995","v":"Select"},{"$f":"Import!I31195","v":"Select"},{"$f":"Import!I31395","v":"Select"},{"$f":"Import!I31595","v":"Select"},{"$f":"Import!I31795","v":"Select"},{"$f":"Import!I31995","v":"Select"},{"$f":"Import!I32195","v":"Select"},{"$f":"Import!I32395","v":0},{"$f":"Import!I32595","v":0},{"$f":"Import!I32795","v":0},{"$f":"Import!I32995","v":0},{"$f":"Import!I33195","v":0}]
[148,{"$f":"Import!I30996","v":"Select"},{"$f":"Import!I31196","v":"Select"},{"$f":"Import!I31396","v":"Select"},{"$f":"Import!I31596","v":"Select"},{"$f":"Import!I31796","v":"Select"},{"$f":"Import!I31996","v":"Select"},{"$f":"Import!I32196","v":"Select"},{"$f":"Import!I32396","v":0},{"$f":"Import!I32596","v":0},{"$f":"Import!I32796","v":0},{"$f":"Import!I32996","v":0},{"$f":"Import!I33196","v":0}]
[149,{"$f":"Import!I30997","v":"Select"},{"$f":"Import!I31197","v":"Select"},{"$f":"Import!I31397","v":"Select"},{"$f":"Import!I31597","v":"Select"},{"$f":"Import!I31797","v":"Select"},{"$f":"Import!I31997","v":"Select"},{"$f":"Import!I32197","v":"Select"},{"$f":"Import!I32397","v":0},{"$f":"Import!I32597","v":0},{"$f":"Import!I32797","v":0},{"$f":"Import!I32997","v":0},{"$f":"Import!I33197","v":0}]
[150,{"$f":"Import!I30998","v":"Select"},{"$f":"Import!I31198","v":"Select"},{"$f":"Import!I31398","v":"Select"},{"$f":"Import!I31598","v":"Select"},{"$f":"Import!I31798","v":"Select"},{"$f":"Import!I31998","v":"Select"},{"$f":"Import!I32198","v":"Select"},{"$f":"Import!I32398","v":0},{"$f":"Import!I32598","v":0},{"$f":"Import!I32798","v":0},{"$f":"Import!I32998","v":0},{"$f":"Import!I33198","v":0}]
[151,{"$f":"Import!I30999","v":"Select"},{"$f":"Import!I31199","v":"Select"},{"$f":"Import!I31399","v":"Select"},{"$f":"Import!I31599","v":"Select"},{"$f":"Import!I31799","v":"Select"},{"$f":"Import!I31999","v":"Select"},{"$f":"Import!I32199","v":"Select"},{"$f":"Import!I32399","v":0},{"$f":"Import!I32599","v":0},{"$f":"Import!I32799","v":0},{"$f":"Import!I32999","v":0},{"$f":"Import!I33199","v":0}]
[152,{"$f":"Import!I31000","v":"Select"},{"$f":"Import!I31200","v":"Select"},{"$f":"Import!I31400","v":"Select"},{"$f":"Import!I31600","v":"Select"},{"$f":"Import!I31800","v":"Select"},{"$f":"Import!I32000","v":"Select"},{"$f":"Import!I32200","v":"Select"},{"$f":"Import!I32400","v":0},{"$f":"Import!I32600","v":0},{"$f":"Import!I32800","v":0},{"$f":"Import!I33000","v":0},{"$f":"Import!I33200","v":0}]
[153,{"$f":"Import!I31001","v":"Select"},{"$f":"Import!I31201","v":"Select"},{"$f":"Import!I31401","v":"Select"},{"$f":"Import!I31601","v":"Select"},{"$f":"Import!I31801","v":"Select"},{"$f":"Import!I32001","v":"Select"},{"$f":"Import!I32201","v":"Select"},{"$f":"Import!I32401","v":0},{"$f":"Import!I32601","v":0},{"$f":"Import!I32801","v":0},{"$f":"Import!I33001","v":0},{"$f":"Import!I33201","v":0}]
[154,{"$f":"Import!I31002","v":"Select"},{"$f":"Import!I31202","v":"Select"},{"$f":"Import!I31402","v":"Select"},{"$f":"Import!I31602","v":"Select"},{"$f":"Import!I31802","v":"Select"},{"$f":"Import!I32002","v":"Select"},{"$f":"Import!I32202","v":"Select"},{"$f":"Import!I32402","v":0},{"$f":"Import!I32602","v":0},{"$f":"Import!I32802","v":0},{"$f":"Import!I33002","v":0},{"$f":"Import!I33202","v":0}]
[155,{"$f":"Import!I31003","v":"Select"},{"$f":"Import!I31203","v":"Select"},{"$f":"Import!I31403","v":"Select"},{"$f":"Import!I31603","v":"Select"},{"$f":"Import!I31803","v":"Select"},{"$f":"Import!I32003","v":"Select"},{"$f":"Import!I32203","v":"Select"},{"$f":"Import!I32403","v":0},{"$f":"Import!I32603","v":0},{"$f":"Import!I32803","v":0},{"$f":"Import!I33003","v":0},{"$f":"Import!I33203","v":0}]
[156,{"$f":"Import!I31004","v":"Select"},{"$f":"Import!I31204","v":"Select"},{"$f":"Import!I31404","v":"Select"},{"$f":"Import!I31604","v":"Select"},{"$f":"Import!I31804","v":"Select"},{"$f":"Import!I32004","v":"Select"},{"$f":"Import!I32204","v":"Select"},{"$f":"Import!I32404","v":0},{"$f":"Import!I32604","v":0},{"$f":"Import!I32804","v":0},{"$f":"Import!I33004","v":0},{"$f":"Import!I33204","v":0}]
[157,{"$f":"Import!I31005","v":"Select"},{"$f":"Import!I31205","v":"Select"},{"$f":"Import!I31405","v":"Select"},{"$f":"Import!I31605","v":"Select"},{"$f":"Import!I31805","v":"Select"},{"$f":"Import!I32005","v":"Select"},{"$f":"Import!I32205","v":"Select"},{"$f":"Import!I32405","v":0},{"$f":"Import!I32605","v":0},{"$f":"Import!I32805","v":0},{"$f":"Import!I33005","v":0},{"$f":"Import!I33205","v":0}]
[158,{"$f":"Import!I31006","v":"Select"},{"$f":"Import!I31206","v":"Select"},{"$f":"Import!I31406","v":"Select"},{"$f":"Import!I31606","v":"Select"},{"$f":"Import!I31806","v":"Select"},{"$f":"Import!I32006","v":"Select"},{"$f":"Import!I32206","v":"Select"},{"$f":"Import!I32406","v":0},{"$f":"Import!I32606","v":0},{"$f":"Import!I32806","v":0},{"$f":"Import!I33006","v":0},{"$f":"Import!I33206","v":0}]
[159,{"$f":"Import!I31007","v":"Select"},{"$f":"Import!I31207","v":"Select"},{"$f":"Import!I31407","v":"Select"},{"$f":"Import!I31607","v":"Select"},{"$f":"Import!I31807","v":"Select"},{"$f":"Import!I32007","v":"Select"},{"$f":"Import!I32207","v":"Select"},{"$f":"Import!I32407","v":0},{"$f":"Import!I32607","v":0},{"$f":"Import!I32807","v":0},{"$f":"Import!I33007","v":0},{"$f":"Import!I33207","v":0}]
[160,{"$f":"Import!I31008","v":"Select"},{"$f":"Import!I31208","v":"Select"},{"$f":"Import!I31408","v":"Select"},{"$f":"Import!I31608","v":"Select"},{"$f":"Import!I31808","v":"Select"},{"$f":"Import!I32008","v":"Select"},{"$f":"Import!I32208","v":"Select"},{"$f":"Import!I32408","v":0},{"$f":"Import!I32608","v":0},{"$f":"Import!I32808","v":0},{"$f":"Import!I33008","v":0},{"$f":"Import!I33208","v":0}]
[161,{"$f":"Import!I31009","v":"Select"},{"$f":"Import!I31209","v":"Select"},{"$f":"Import!I31409","v":"Select"},{"$f":"Import!I31609","v":"Select"},{"$f":"Import!I31809","v":"Select"},{"$f":"Import!I32009","v":"Select"},{"$f":"Import!I32209","v":"Select"},{"$f":"Import!I32409","v":0},{"$f":"Import!I32609","v":0},{"$f":"Import!I32809","v":0},{"$f":"Import!I33009","v":0},{"$f":"Import!I33209","v":0}]
[162,{"$f":"Import!I31010","v":"Select"},{"$f":"Import!I31210","v":"Select"},{"$f":"Import!I31410","v":"Select"},{"$f":"Import!I31610","v":"Select"},{"$f":"Import!I31810","v":"Select"},{"$f":"Import!I32010","v":"Select"},{"$f":"Import!I32210","v":"Select"},{"$f":"Import!I32410","v":0},{"$f":"Import!I32610","v":0},{"$f":"Import!I32810","v":0},{"$f":"Import!I33010","v":0},{"$f":"Import!I33210","v":0}]
[163,{"$f":"Import!I31011","v":"Select"},{"$f":"Import!I31211","v":"Select"},{"$f":"Import!I31411","v":"Select"},{"$f":"Import!I31611","v":"Select"},{"$f":"Import!I31811","v":"Select"},{"$f":"Import!I32011","v":"Select"},{"$f":"Import!I32211","v":"Select"},{"$f":"Import!I32411","v":0},{"$f":"Import!I32611","v":0},{"$f":"Import!I32811","v":0},{"$f":"Import!I33011","v":0},{"$f":"Import!I33211","v":0}]
[164,{"$f":"Import!I31012","v":"Select"},{"$f":"Import!I31212","v":"Select"},{"$f":"Import!I31412","v":"Select"},{"$f":"Import!I31612","v":"Select"},{"$f":"Import!I31812","v":"Select"},{"$f":"Import!I32012","v":"Select"},{"$f":"Import!I32212","v":"Select"},{"$f":"Import!I32412","v":0},{"$f":"Import!I32612","v":0},{"$f":"Import!I32812","v":0},{"$f":"Import!I33012","v":0},{"$f":"Import!I33212","v":0}]
[165,{"$f":"Import!I31013","v":"Select"},{"$f":"Import!I31213","v":"Select"},{"$f":"Import!I31413","v":"Select"},{"$f":"Import!I31613","v":"Select"},{"$f":"Import!I31813","v":"Select"},{"$f":"Import!I32013","v":"Select"},{"$f":"Import!I32213","v":"Select"},{"$f":"Import!I32413","v":0},{"$f":"Import!I32613","v":0},{"$f":"Import!I32813","v":0},{"$f":"Import!I33013","v":0},{"$f":"Import!I33213","v":0}]
[166,{"$f":"Import!I31014","v":"Select"},{"$f":"Import!I31214","v":"Select"},{"$f":"Import!I31414","v":"Select"},{"$f":"Import!I31614","v":"Select"},{"$f":"Import!I31814","v":"Select"},{"$f":"Import!I32014","v":"Select"},{"$f":"Import!I32214","v":"Select"},{"$f":"Import!I32414","v":0},{"$f":"Import!I32614","v":0},{"$f":"Import!I32814","v":0},{"$f":"Import!I33014","v":0},{"$f":"Import!I33214","v":0}]
[167,{"$f":"Import!I31015","v":"Select"},{"$f":"Import!I31215","v":"Select"},{"$f":"Import!I31415","v":"Select"},{"$f":"Import!I31615","v":"Select"},{"$f":"Import!I31815","v":"Select"},{"$f":"Import!I32015","v":"Select"},{"$f":"Import!I32215","v":"Select"},{"$f":"Import!I32415","v":0},{"$f":"Import!I32615","v":0},{"$f":"Import!I32815","v":0},{"$f":"Import!I33015","v":0},{"$f":"Import!I33215","v":0}]
[168,{"$f":"Import!I31016","v":"Select"},{"$f":"Import!I31216","v":"Select"},{"$f":"Import!I31416","v":"Select"},{"$f":"Import!I31616","v":"Select"},{"$f":"Import!I31816","v":"Select"},{"$f":"Import!I32016","v":"Select"},{"$f":"Import!I32216","v":"Select"},{"$f":"Import!I32416","v":0},{"$f":"Import!I32616","v":0},{"$f":"Import!I32816","v":0},{"$f":"Import!I33016","v":0},{"$f":"Import!I33216","v":0}]
[169,{"$f":"Import!I31017","v":"Select"},{"$f":"Import!I31217","v":"Select"},{"$f":"Import!I31417","v":"Select"},{"$f":"Import!I31617","v":"Select"},{"$f":"Import!I31817","v":"Select"},{"$f":"Import!I32017","v":"Select"},{"$f":"Import!I32217","v":"Select"},{"$f":"Import!I32417","v":0},{"$f":"Import!I32617","v":0},{"$f":"Import!I32817","v":0},{"$f":"Import!I33017","v":0},{"$f":"Import!I33217","v":0}]
[170,{"$f":"Import!I31018","v":"Select"},{"$f":"Import!I31218","v":"Select"},{"$f":"Import!I31418","v":"Select"},{"$f":"Import!I31618","v":"Select"},{"$f":"Import!I31818","v":"Select"},{"$f":"Import!I32018","v":"Select"},{"$f":"Import!I32218","v":"Select"},{"$f":"Import!I32418","v":0},{"$f":"Import!I32618","v":0},{"$f":"Import!I32818","v":0},{"$f":"Import!I33018","v":0},{"$f":"Import!I33218","v":0}]
[171,{"$f":"Import!I31019","v":"Select"},{"$f":"Import!I31219","v":"Select"},{"$f":"Import!I31419","v":"Select"},{"$f":"Import!I31619","v":"Select"},{"$f":"Import!I31819","v":"Select"},{"$f":"Import!I32019","v":"Select"},{"$f":"Import!I32219","v":"Select"},{"$f":"Import!I32419","v":0},{"$f":"Import!I32619","v":0},{"$f":"Import!I32819","v":0},{"$f":"Import!I33019","v":0},{"$f":"Import!I33219","v":0}]
[172,{"$f":"Import!I31020","v":"Select"},{"$f":"Import!I31220","v":"Select"},{"$f":"Import!I31420","v":"Select"},{"$f":"Import!I31620","v":"Select"},{"$f":"Import!I31820","v":"Select"},{"$f":"Import!I32020","v":"Select"},{"$f":"Import!I32220","v":"Select"},{"$f":"Import!I32420","v":0},{"$f":"Import!I32620","v":0},{"$f":"Import!I32820","v":0},{"$f":"Import!I33020","v":0},{"$f":"Import!I33220","v":0}]
[173,{"$f":"Import!I31021","v":"Select"},{"$f":"Import!I31221","v":"Select"},{"$f":"Import!I31421","v":"Select"},{"$f":"Import!I31621","v":"Select"},{"$f":"Import!I31821","v":"Select"},{"$f":"Import!I32021","v":"Select"},{"$f":"Import!I32221","v":"Select"},{"$f":"Import!I32421","v":0},{"$f":"Import!I32621","v":0},{"$f":"Import!I32821","v":0},{"$f":"Import!I33021","v":0},{"$f":"Import!I33221","v":0}]
[174,{"$f":"Import!I31022","v":"Select"},{"$f":"Import!I31222","v":"Select"},{"$f":"Import!I31422","v":"Select"},{"$f":"Import!I31622","v":"Select"},{"$f":"Import!I31822","v":"Select"},{"$f":"Import!I32022","v":"Select"},{"$f":"Import!I32222","v":"Select"},{"$f":"Import!I32422","v":0},{"$f":"Import!I32622","v":0},{"$f":"Import!I32822","v":0},{"$f":"Import!I33022","v":0},{"$f":"Import!I33222","v":0}]
[175,{"$f":"Import!I31023","v":"Select"},{"$f":"Import!I31223","v":"Select"},{"$f":"Import!I31423","v":"Select"},{"$f":"Import!I31623","v":"Select"},{"$f":"Import!I31823","v":"Select"},{"$f":"Import!I32023","v":"Select"},{"$f":"Import!I32223","v":"Select"},{"$f":"Import!I32423","v":0},{"$f":"Import!I32623","v":0},{"$f":"Import!I32823","v":0},{"$f":"Import!I33023","v":0},{"$f":"Import!I33223","v":0}]
[176,{"$f":"Import!I31024","v":"Select"},{"$f":"Import!I31224","v":"Select"},{"$f":"Import!I31424","v":"Select"},{"$f":"Import!I31624","v":"Select"},{"$f":"Import!I31824","v":"Select"},{"$f":"Import!I32024","v":"Select"},{"$f":"Import!I32224","v":"Select"},{"$f":"Import!I32424","v":0},{"$f":"Import!I32624","v":0},{"$f":"Import!I32824","v":0},{"$f":"Import!I33024","v":0},{"$f":"Import!I33224","v":0}]
[177,{"$f":"Import!I31025","v":"Select"},{"$f":"Import!I31225","v":"Select"},{"$f":"Import!I31425","v":"Select"},{"$f":"Import!I31625","v":"Select"},{"$f":"Import!I31825","v":"Select"},{"$f":"Import!I32025","v":"Select"},{"$f":"Import!I32225","v":"Select"},{"$f":"Import!I32425","v":0},{"$f":"Import!I32625","v":0},{"$f":"Import!I32825","v":0},{"$f":"Import!I33025","v":0},{"$f":"Import!I33225","v":0}]
[178,{"$f":"Import!I31026","v":"Select"},{"$f":"Import!I31226","v":"Select"},{"$f":"Import!I31426","v":"Select"},{"$f":"Import!I31626","v":"Select"},{"$f":"Import!I31826","v":"Select"},{"$f":"Import!I32026","v":"Select"},{"$f":"Import!I32226","v":"Select"},{"$f":"Import!I32426","v":0},{"$f":"Import!I32626","v":0},{"$f":"Import!I32826","v":0},{"$f":"Import!I33026","v":0},{"$f":"Import!I33226","v":0}]
[179,{"$f":"Import!I31027","v":"Select"},{"$f":"Import!I31227","v":"Select"},{"$f":"Import!I31427","v":"Select"},{"$f":"Import!I31627","v":"Select"},{"$f":"Import!I31827","v":"Select"},{"$f":"Import!I32027","v":"Select"},{"$f":"Import!I32227","v":"Select"},{"$f":"Import!I32427","v":0},{"$f":"Import!I32627","v":0},{"$f":"Import!I32827","v":0},{"$f":"Import!I33027","v":0},{"$f":"Import!I33227","v":0}]
[180,{"$f":"Import!I31028","v":"Select"},{"$f":"Import!I31228","v":"Select"},{"$f":"Import!I31428","v":"Select"},{"$f":"Import!I31628","v":"Select"},{"$f":"Import!I31828","v":"Select"},{"$f":"Import!I32028","v":"Select"},{"$f":"Import!I32228","v":"Select"},{"$f":"Import!I32428","v":0},{"$f":"Import!I32628","v":0},{"$f":"Import!I32828","v":0},{"$f":"Import!I33028","v":0},{"$f":"Import!I33228","v":0}]
[181,{"$f":"Import!I31029","v":"Select"},{"$f":"Import!I31229","v":"Select"},{"$f":"Import!I31429","v":"Select"},{"$f":"Import!I31629","v":"Select"},{"$f":"Import!I31829","v":"Select"},{"$f":"Import!I32029","v":"Select"},{"$f":"Import!I32229","v":"Select"},{"$f":"Import!I32429","v":0},{"$f":"Import!I32629","v":0},{"$f":"Import!I32829","v":0},{"$f":"Import!I33029","v":0},{"$f":"Import!I33229","v":0}]
[182,{"$f":"Import!I31030","v":"Select"},{"$f":"Import!I31230","v":"Select"},{"$f":"Import!I31430","v":"Select"},{"$f":"Import!I31630","v":"Select"},{"$f":"Import!I31830","v":"Select"},{"$f":"Import!I32030","v":"Select"},{"$f":"Import!I32230","v":"Select"},{"$f":"Import!I32430","v":0},{"$f":"Import!I32630","v":0},{"$f":"Import!I32830","v":0},{"$f":"Import!I33030","v":0},{"$f":"Import!I33230","v":0}]
[183,{"$f":"Import!I31031","v":"Select"},{"$f":"Import!I31231","v":"Select"},{"$f":"Import!I31431","v":"Select"},{"$f":"Import!I31631","v":"Select"},{"$f":"Import!I31831","v":"Select"},{"$f":"Import!I32031","v":"Select"},{"$f":"Import!I32231","v":"Select"},{"$f":"Import!I32431","v":0},{"$f":"Import!I32631","v":0},{"$f":"Import!I32831","v":0},{"$f":"Import!I33031","v":0},{"$f":"Import!I33231","v":0}]
[184,{"$f":"Import!I31032","v":"Select"},{"$f":"Import!I31232","v":"Select"},{"$f":"Import!I31432","v":"Select"},{"$f":"Import!I31632","v":"Select"},{"$f":"Import!I31832","v":"Select"},{"$f":"Import!I32032","v":"Select"},{"$f":"Import!I32232","v":"Select"},{"$f":"Import!I32432","v":0},{"$f":"Import!I32632","v":0},{"$f":"Import!I32832","v":0},{"$f":"Import!I33032","v":0},{"$f":"Import!I33232","v":0}]
[185,{"$f":"Import!I31033","v":"Select"},{"$f":"Import!I31233","v":"Select"},{"$f":"Import!I31433","v":"Select"},{"$f":"Import!I31633","v":"Select"},{"$f":"Import!I31833","v":"Select"},{"$f":"Import!I32033","v":"Select"},{"$f":"Import!I32233","v":"Select"},{"$f":"Import!I32433","v":0},{"$f":"Import!I32633","v":0},{"$f":"Import!I32833","v":0},{"$f":"Import!I33033","v":0},{"$f":"Import!I33233","v":0}]
[186,{"$f":"Import!I31034","v":"Select"},{"$f":"Import!I31234","v":"Select"},{"$f":"Import!I31434","v":"Select"},{"$f":"Import!I31634","v":"Select"},{"$f":"Import!I31834","v":"Select"},{"$f":"Import!I32034","v":"Select"},{"$f":"Import!I32234","v":"Select"},{"$f":"Import!I32434","v":0},{"$f":"Import!I32634","v":0},{"$f":"Import!I32834","v":0},{"$f":"Import!I33034","v":0},{"$f":"Import!I33234","v":0}]
[187,{"$f":"Import!I31035","v":"Select"},{"$f":"Import!I31235","v":"Select"},{"$f":"Import!I31435","v":"Select"},{"$f":"Import!I31635","v":"Select"},{"$f":"Import!I31835","v":"Select"},{"$f":"Import!I32035","v":"Select"},{"$f":"Import!I32235","v":"Select"},{"$f":"Import!I32435","v":0},{"$f":"Import!I32635","v":0},{"$f":"Import!I32835","v":0},{"$f":"Import!I33035","v":0},{"$f":"Import!I33235","v":0}]
[188,{"$f":"Import!I31036","v":"Select"},{"$f":"Import!I31236","v":"Select"},{"$f":"Import!I31436","v":"Select"},{"$f":"Import!I31636","v":"Select"},{"$f":"Import!I31836","v":"Select"},{"$f":"Import!I32036","v":"Select"},{"$f":"Import!I32236","v":"Select"},{"$f":"Import!I32436","v":0},{"$f":"Import!I32636","v":0},{"$f":"Import!I32836","v":0},{"$f":"Import!I33036","v":0},{"$f":"Import!I33236","v":0}]
[189,{"$f":"Import!I31037","v":"Select"},{"$f":"Import!I31237","v":"Select"},{"$f":"Import!I31437","v":"Select"},{"$f":"Import!I31637","v":"Select"},{"$f":"Import!I31837","v":"Select"},{"$f":"Import!I32037","v":"Select"},{"$f":"Import!I32237","v":"Select"},{"$f":"Import!I32437","v":0},{"$f":"Import!I32637","v":0},{"$f":"Import!I32837","v":0},{"$f":"Import!I33037","v":0},{"$f":"Import!I33237","v":0}]
[190,{"$f":"Import!I31038","v":"Select"},{"$f":"Import!I31238","v":"Select"},{"$f":"Import!I31438","v":"Select"},{"$f":"Import!I31638","v":"Select"},{"$f":"Import!I31838","v":"Select"},{"$f":"Import!I32038","v":"Select"},{"$f":"Import!I32238","v":"Select"},{"$f":"Import!I32438","v":0},{"$f":"Import!I32638","v":0},{"$f":"Import!I32838","v":0},{"$f":"Import!I33038","v":0},{"$f":"Import!I33238","v":0}]
[191,{"$f":"Import!I31039","v":"Select"},{"$f":"Import!I31239","v":"Select"},{"$f":"Import!I31439","v":"Select"},{"$f":"Import!I31639","v":"Select"},{"$f":"Import!I31839","v":"Select"},{"$f":"Import!I32039","v":"Select"},{"$f":"Import!I32239","v":"Select"},{"$f":"Import!I32439","v":0},{"$f":"Import!I32639","v":0},{"$f":"Import!I32839","v":0},{"$f":"Import!I33039","v":0},{"$f":"Import!I33239","v":0}]
[192,{"$f":"Import!I31040","v":"Select"},{"$f":"Import!I31240","v":"Select"},{"$f":"Import!I31440","v":"Select"},{"$f":"Import!I31640","v":"Select"},{"$f":"Import!I31840","v":"Select"},{"$f":"Import!I32040","v":"Select"},{"$f":"Import!I32240","v":"Select"},{"$f":"Import!I32440","v":0},{"$f":"Import!I32640","v":0},{"$f":"Import!I32840","v":0},{"$f":"Import!I33040","v":0},{"$f":"Import!I33240","v":0}]
[193,{"$f":"Import!I31041","v":"Select"},{"$f":"Import!I31241","v":"Select"},{"$f":"Import!I31441","v":"Select"},{"$f":"Import!I31641","v":"Select"},{"$f":"Import!I31841","v":"Select"},{"$f":"Import!I32041","v":"Select"},{"$f":"Import!I32241","v":"Select"},{"$f":"Import!I32441","v":0},{"$f":"Import!I32641","v":0},{"$f":"Import!I32841","v":0},{"$f":"Import!I33041","v":0},{"$f":"Import!I33241","v":0}]
[194,{"$f":"Import!I31042","v":"Select"},{"$f":"Import!I31242","v":"Select"},{"$f":"Import!I31442","v":"Select"},{"$f":"Import!I31642","v":"Select"},{"$f":"Import!I31842","v":"Select"},{"$f":"Import!I32042","v":"Select"},{"$f":"Import!I32242","v":"Select"},{"$f":"Import!I32442","v":0},{"$f":"Import!I32642","v":0},{"$f":"Import!I32842","v":0},{"$f":"Import!I33042","v":0},{"$f":"Import!I33242","v":0}]
[{"$f":"A1753+1","v":195},{"$f":"Import!I31043","v":"Select"},{"$f":"Import!I31243","v":"Select"},{"$f":"Import!I31443","v":"Select"},{"$f":"Import!I31643","v":"Select"},{"$f":"Import!I31843","v":"Select"},{"$f":"Import!I32043","v":"Select"},{"$f":"Import!I32243","v":"Select"},{"$f":"Import!I32443","v":0},{"$f":"Import!I32643","v":0},{"$f":"Import!I32843","v":0},{"$f":"Import!I33043","v":0},{"$f":"Import!I33243","v":0}]
[196,{"$f":"Import!I31044","v":"Select"},{"$f":"Import!I31244","v":"Select"},{"$f":"Import!I31444","v":"Select"},{"$f":"Import!I31644","v":"Select"},{"$f":"Import!I31844","v":"Select"},{"$f":"Import!I32044","v":"Select"},{"$f":"Import!I32244","v":"Select"},{"$f":"Import!I32444","v":0},{"$f":"Import!I32644","v":0},{"$f":"Import!I32844","v":0},{"$f":"Import!I33044","v":0},{"$f":"Import!I33244","v":0}]
[197,{"$f":"Import!I31045","v":"Select"},{"$f":"Import!I31245","v":"Select"},{"$f":"Import!I31445","v":"Select"},{"$f":"Import!I31645","v":"Select"},{"$f":"Import!I31845","v":"Select"},{"$f":"Import!I32045","v":"Select"},{"$f":"Import!I32245","v":"Select"},{"$f":"Import!I32445","v":0},{"$f":"Import!I32645","v":0},{"$f":"Import!I32845","v":0},{"$f":"Import!I33045","v":0},{"$f":"Import!I33245","v":0}]
[198,{"$f":"Import!I31046","v":"Select"},{"$f":"Import!I31246","v":"Select"},{"$f":"Import!I31446","v":"Select"},{"$f":"Import!I31646","v":"Select"},{"$f":"Import!I31846","v":"Select"},{"$f":"Import!I32046","v":"Select"},{"$f":"Import!I32246","v":"Select"},{"$f":"Import!I32446","v":0},{"$f":"Import!I32646","v":0},{"$f":"Import!I32846","v":0},{"$f":"Import!I33046","v":0},{"$f":"Import!I33246","v":0}]
[199,{"$f":"Import!I31047","v":"Select"},{"$f":"Import!I31247","v":"Select"},{"$f":"Import!I31447","v":"Select"},{"$f":"Import!I31647","v":"Select"},{"$f":"Import!I31847","v":"Select"},{"$f":"Import!I32047","v":"Select"},{"$f":"Import!I32247","v":"Select"},{"$f":"Import!I32447","v":0},{"$f":"Import!I32647","v":0},{"$f":"Import!I32847","v":0},{"$f":"Import!I33047","v":0},{"$f":"Import!I33247","v":0}]
[200,{"$f":"Import!I31048","v":"Select"},{"$f":"Import!I31248","v":"Select"},{"$f":"Import!I31448","v":"Select"},{"$f":"Import!I31648","v":"Select"},{"$f":"Import!I31848","v":"Select"},{"$f":"Import!I32048","v":"Select"},{"$f":"Import!I32248","v":"Select"},{"$f":"Import!I32448","v":0},{"$f":"Import!I32648","v":0},{"$f":"Import!I32848","v":0},{"$f":"Import!I33048","v":0},{"$f":"Import!I33248","v":0}]
[]
[null,"Total Derivatives",null,null,null,null,null,null,{"$f":"SUM(I1560:I1759)","v":0},{"$f":"SUM(J1560:J1759)","v":0},{"$f":"SUM(K1560:K1759)","v":0}]
[]
[null,"(J) INFORMATION ON EXPOSURES TO FINANCIAL INSTITUTIONS AND UNLISTED COUNTERPARTIES"]
[null,null,null,null,null,"Commercial Loans and Mortgages"]
[null,null,{"$f":"YEAR($C$3)","v":2023},"Fair Value",null,null,"Securitisations ","Other debt securities"]
[null,"Financial Institutions","Equities","Corporate Bonds","Corporate Loans",null,null,null,null,"Comments"]
[1,"Exposure to Financial Institutions (Banks, Insurance Companies, Other Financials) - Investment Grade, BSCR Rating 1-3",{"$f":"Import!I33249","v":0},{"$f":"Import!I33253","v":0},{"$f":"Import!I33257","v":0},{"$f":"Import!I33261","v":0},{"$f":"Import!I33265","v":0},{"$f":"Import!I33269","v":0},null,{"$f":"Import!I33273","v":0}]
[2,"Exposure to Financial Institutions (Banks, Insurance Companies, Other Financials) - Investment Grade, BSCR Rating 4",{"$f":"Import!I33250","v":0},{"$f":"Import!I33254","v":0},{"$f":"Import!I33258","v":0},{"$f":"Import!I33262","v":0},{"$f":"Import!I33266","v":0},{"$f":"Import!I33270","v":0},null,{"$f":"Import!I33274","v":0}]
[3,"Exposure to Financial Institutions (Banks, Insurance Companies, Other Financials) - Below Investment Grade",{"$f":"Import!I33251","v":0},{"$f":"Import!I33255","v":0},{"$f":"Import!I33259","v":0},{"$f":"Import!I33263","v":0},{"$f":"Import!I33267","v":0},{"$f":"Import!I33271","v":0},null,{"$f":"Import!I33275","v":0}]
[4,"Exposure to Financial Institutions (Banks, Insurance Companies, Other Financials) - Unrated",{"$f":"Import!I33252","v":0},{"$f":"Import!I33256","v":0},{"$f":"Import!I33260","v":0},{"$f":"Import!I33264","v":0},{"$f":"Import!I33268","v":0},{"$f":"Import!I33272","v":0},null,{"$f":"Import!I33276","v":0}]
[]
[null,"Total Exposures to Financial Institutions",{"$f":"SUM(C1767:C1770)","v":0},{"$f":"SUM(D1767:D1770)","v":0},0,0,0,0]
[]
[null,"Of which","Equities","Corporate Bonds","Corporate Loans","Other",null,null,null,"Comments"]
[5,"- exposures to Banks",{"$f":"Import!I33277","v":0},{"$f":"Import!I33280","v":0},{"$f":"Import!I33283","v":0},{"$f":"Import!I33286","v":0},null,null,null,{"$f":"Import!I33289","v":0}]
[6,"- exposures to Insurers",{"$f":"Import!I33278","v":0},{"$f":"Import!I33281","v":0},{"$f":"Import!I33284","v":0},{"$f":"Import!I33287","v":0},null,null,null,{"$f":"Import!I33290","v":0}]
[7,"- exposures to Other Financial Institutions",{"$f":"Import!I33279","v":0},{"$f":"Import!I33282","v":0},{"$f":"Import!I33285","v":0},{"$f":"Import!I33288","v":0},null,null,null,{"$f":"Import!I33291","v":0}]
[]
[null,"Total Exposures",{"$f":"SUM(C1775:C1777)","v":0},{"$f":"SUM(D1775:D1777)","v":0},{"$f":"SUM(E1775:E1777)","v":0},{"$f":"SUM(F1775:F1777)","v":0}]
[]
[null,null,{"$f":"YEAR($C$3)","v":2023},"Fair Value"]
[null,"Unlisted Counterparties","Equities","Corporate Bonds","Corporate Loans","Other",null,null,null,"Comments"]
[8,"Direct Exposure to Unlisted Counterparties - Investment Grade, BSCR Rating 1-3",{"$f":"Import!I33292","v":0},{"$f":"Import!I33296","v":0},{"$f":"Import!I33300","v":0},{"$f":"Import!I33304","v":0},null,null,null,{"$f":"Import!I33308","v":0}]
[9,"Direct Exposure to Unlisted Counterparties - Investment Grade, BSCR Rating 4",{"$f":"Import!I33293","v":0},{"$f":"Import!I33297","v":0},{"$f":"Import!I33301","v":0},{"$f":"Import!I33305","v":0},null,null,null,{"$f":"Import!I33309","v":0}]
[10,"Direct Exposure to Unlisted Counterparties - Below Investment Grade",{"$f":"Import!I33294","v":0},{"$f":"Import!I33298","v":0},{"$f":"Import!I33302","v":0},{"$f":"Import!I33306","v":0},null,null,null,{"$f":"Import!I33310","v":0}]
[11,"Direct Exposure to Unlisted Counterparties - Unrated",{"$f":"Import!I33295","v":0},{"$f":"Import!I33299","v":0},{"$f":"Import!I33303","v":0},{"$f":"Import!I33307","v":0},null,null,null,{"$f":"Import!I33311","v":0}]
[]
[null,"Total Direct Exposures to Unlisted Counterparties",{"$f":"SUM(C1783:C1786)","v":0},{"$f":"SUM(D1783:D1786)","v":0},0,0]
[]
[null,"(K) OTHER ASSETS"]
[]
[null,null,"Enter # of Asset Types",{"$f":"Import!I33312","v":0}]
[]
[null,null,null,null,{"$f":"YEAR($C$3)","v":2023},2023]
[null,"Asset Type","Currency","BSCR Rating","Nominal Amount","Fair Value","Comments"]
[1,{"$f":"Import!I33313","v":"Select"},{"$f":"Import!I33513","v":"Select"},{"$f":"Import!I33713","v":"Select"},{"$f":"Import!I33913","v":0},{"$f":"Import!I34113","v":0},{"$f":"Import!I34313","v":0}]
[{"$f":"A1796+1","v":2},{"$f":"Import!I33314","v":"Select"},{"$f":"Import!I33514","v":"Select"},{"$f":"Import!I33714","v":"Select"},{"$f":"Import!I33914","v":0},{"$f":"Import!I34114","v":0},{"$f":"Import!I34314","v":0}]
[{"$f":"A1797+1","v":3},{"$f":"Import!I33315","v":"Select"},{"$f":"Import!I33515","v":"Select"},{"$f":"Import!I33715","v":"Select"},{"$f":"Import!I33915","v":0},{"$f":"Import!I34115","v":0},{"$f":"Import!I34315","v":0}]
[4,{"$f":"Import!I33316","v":"Select"},{"$f":"Import!I33516","v":"Select"},{"$f":"Import!I33716","v":"Select"},{"$f":"Import!I33916","v":0},{"$f":"Import!I34116","v":0},{"$f":"Import!I34316","v":0}]
[5,{"$f":"Import!I33317","v":"Select"},{"$f":"Import!I33517","v":"Select"},{"$f":"Import!I33717","v":"Select"},{"$f":"Import!I33917","v":0},{"$f":"Import!I34117","v":0},{"$f":"Import!I34317","v":0}]
[6,{"$f":"Import!I33318","v":"Select"},{"$f":"Import!I33518","v":"Select"},{"$f":"Import!I33718","v":"Select"},{"$f":"Import!I33918","v":0},{"$f":"Import!I34118","v":0},{"$f":"Import!I34318","v":0}]
[7,{"$f":"Import!I33319","v":"Select"},{"$f":"Import!I33519","v":"Select"},{"$f":"Import!I33719","v":"Select"},{"$f":"Import!I33919","v":0},{"$f":"Import!I34119","v":0},{"$f":"Import!I34319","v":0}]
[8,{"$f":"Import!I33320","v":"Select"},{"$f":"Import!I33520","v":"Select"},{"$f":"Import!I33720","v":"Select"},{"$f":"Import!I33920","v":0},{"$f":"Import!I34120","v":0},{"$f":"Import!I34320","v":0}]
[9,{"$f":"Import!I33321","v":"Select"},{"$f":"Import!I33521","v":"Select"},{"$f":"Import!I33721","v":"Select"},{"$f":"Import!I33921","v":0},{"$f":"Import!I34121","v":0},{"$f":"Import!I34321","v":0}]
[10,{"$f":"Import!I33322","v":"Select"},{"$f":"Import!I33522","v":"Select"},{"$f":"Import!I33722","v":"Select"},{"$f":"Import!I33922","v":0},{"$f":"Import!I34122","v":0},{"$f":"Import!I34322","v":0}]
[11,{"$f":"Import!I33323","v":"Select"},{"$f":"Import!I33523","v":"Select"},{"$f":"Import!I33723","v":"Select"},{"$f":"Import!I33923","v":0},{"$f":"Import!I34123","v":0},{"$f":"Import!I34323","v":0}]
[12,{"$f":"Import!I33324","v":"Select"},{"$f":"Import!I33524","v":"Select"},{"$f":"Import!I33724","v":"Select"},{"$f":"Import!I33924","v":0},{"$f":"Import!I34124","v":0},{"$f":"Import!I34324","v":0}]
[13,{"$f":"Import!I33325","v":"Select"},{"$f":"Import!I33525","v":"Select"},{"$f":"Import!I33725","v":"Select"},{"$f":"Import!I33925","v":0},{"$f":"Import!I34125","v":0},{"$f":"Import!I34325","v":0}]
[14,{"$f":"Import!I33326","v":"Select"},{"$f":"Import!I33526","v":"Select"},{"$f":"Import!I33726","v":"Select"},{"$f":"Import!I33926","v":0},{"$f":"Import!I34126","v":0},{"$f":"Import!I34326","v":0}]
[15,{"$f":"Import!I33327","v":"Select"},{"$f":"Import!I33527","v":"Select"},{"$f":"Import!I33727","v":"Select"},{"$f":"Import!I33927","v":0},{"$f":"Import!I34127","v":0},{"$f":"Import!I34327","v":0}]
[16,{"$f":"Import!I33328","v":"Select"},{"$f":"Import!I33528","v":"Select"},{"$f":"Import!I33728","v":"Select"},{"$f":"Import!I33928","v":0},{"$f":"Import!I34128","v":0},{"$f":"Import!I34328","v":0}]
[17,{"$f":"Import!I33329","v":"Select"},{"$f":"Import!I33529","v":"Select"},{"$f":"Import!I33729","v":"Select"},{"$f":"Import!I33929","v":0},{"$f":"Import!I34129","v":0},{"$f":"Import!I34329","v":0}]
[18,{"$f":"Import!I33330","v":"Select"},{"$f":"Import!I33530","v":"Select"},{"$f":"Import!I33730","v":"Select"},{"$f":"Import!I33930","v":0},{"$f":"Import!I34130","v":0},{"$f":"Import!I34330","v":0}]
[19,{"$f":"Import!I33331","v":"Select"},{"$f":"Import!I33531","v":"Select"},{"$f":"Import!I33731","v":"Select"},{"$f":"Import!I33931","v":0},{"$f":"Import!I34131","v":0},{"$f":"Import!I34331","v":0}]
[20,{"$f":"Import!I33332","v":"Select"},{"$f":"Import!I33532","v":"Select"},{"$f":"Import!I33732","v":"Select"},{"$f":"Import!I33932","v":0},{"$f":"Import!I34132","v":0},{"$f":"Import!I34332","v":0}]
[21,{"$f":"Import!I33333","v":"Select"},{"$f":"Import!I33533","v":"Select"},{"$f":"Import!I33733","v":"Select"},{"$f":"Import!I33933","v":0},{"$f":"Import!I34133","v":0},{"$f":"Import!I34333","v":0}]
[22,{"$f":"Import!I33334","v":"Select"},{"$f":"Import!I33534","v":"Select"},{"$f":"Import!I33734","v":"Select"},{"$f":"Import!I33934","v":0},{"$f":"Import!I34134","v":0},{"$f":"Import!I34334","v":0}]
[23,{"$f":"Import!I33335","v":"Select"},{"$f":"Import!I33535","v":"Select"},{"$f":"Import!I33735","v":"Select"},{"$f":"Import!I33935","v":0},{"$f":"Import!I34135","v":0},{"$f":"Import!I34335","v":0}]
[24,{"$f":"Import!I33336","v":"Select"},{"$f":"Import!I33536","v":"Select"},{"$f":"Import!I33736","v":"Select"},{"$f":"Import!I33936","v":0},{"$f":"Import!I34136","v":0},{"$f":"Import!I34336","v":0}]
[25,{"$f":"Import!I33337","v":"Select"},{"$f":"Import!I33537","v":"Select"},{"$f":"Import!I33737","v":"Select"},{"$f":"Import!I33937","v":0},{"$f":"Import!I34137","v":0},{"$f":"Import!I34337","v":0}]
[26,{"$f":"Import!I33338","v":"Select"},{"$f":"Import!I33538","v":"Select"},{"$f":"Import!I33738","v":"Select"},{"$f":"Import!I33938","v":0},{"$f":"Import!I34138","v":0},{"$f":"Import!I34338","v":0}]
[27,{"$f":"Import!I33339","v":"Select"},{"$f":"Import!I33539","v":"Select"},{"$f":"Import!I33739","v":"Select"},{"$f":"Import!I33939","v":0},{"$f":"Import!I34139","v":0},{"$f":"Import!I34339","v":0}]
[28,{"$f":"Import!I33340","v":"Select"},{"$f":"Import!I33540","v":"Select"},{"$f":"Import!I33740","v":"Select"},{"$f":"Import!I33940","v":0},{"$f":"Import!I34140","v":0},{"$f":"Import!I34340","v":0}]
[29,{"$f":"Import!I33341","v":"Select"},{"$f":"Import!I33541","v":"Select"},{"$f":"Import!I33741","v":"Select"},{"$f":"Import!I33941","v":0},{"$f":"Import!I34141","v":0},{"$f":"Import!I34341","v":0}]
[30,{"$f":"Import!I33342","v":"Select"},{"$f":"Import!I33542","v":"Select"},{"$f":"Import!I33742","v":"Select"},{"$f":"Import!I33942","v":0},{"$f":"Import!I34142","v":0},{"$f":"Import!I34342","v":0}]
[31,{"$f":"Import!I33343","v":"Select"},{"$f":"Import!I33543","v":"Select"},{"$f":"Import!I33743","v":"Select"},{"$f":"Import!I33943","v":0},{"$f":"Import!I34143","v":0},{"$f":"Import!I34343","v":0}]
[32,{"$f":"Import!I33344","v":"Select"},{"$f":"Import!I33544","v":"Select"},{"$f":"Import!I33744","v":"Select"},{"$f":"Import!I33944","v":0},{"$f":"Import!I34144","v":0},{"$f":"Import!I34344","v":0}]
[33,{"$f":"Import!I33345","v":"Select"},{"$f":"Import!I33545","v":"Select"},{"$f":"Import!I33745","v":"Select"},{"$f":"Import!I33945","v":0},{"$f":"Import!I34145","v":0},{"$f":"Import!I34345","v":0}]
[34,{"$f":"Import!I33346","v":"Select"},{"$f":"Import!I33546","v":"Select"},{"$f":"Import!I33746","v":"Select"},{"$f":"Import!I33946","v":0},{"$f":"Import!I34146","v":0},{"$f":"Import!I34346","v":0}]
[35,{"$f":"Import!I33347","v":"Select"},{"$f":"Import!I33547","v":"Select"},{"$f":"Import!I33747","v":"Select"},{"$f":"Import!I33947","v":0},{"$f":"Import!I34147","v":0},{"$f":"Import!I34347","v":0}]
[36,{"$f":"Import!I33348","v":"Select"},{"$f":"Import!I33548","v":"Select"},{"$f":"Import!I33748","v":"Select"},{"$f":"Import!I33948","v":0},{"$f":"Import!I34148","v":0},{"$f":"Import!I34348","v":0}]
[37,{"$f":"Import!I33349","v":"Select"},{"$f":"Import!I33549","v":"Select"},{"$f":"Import!I33749","v":"Select"},{"$f":"Import!I33949","v":0},{"$f":"Import!I34149","v":0},{"$f":"Import!I34349","v":0}]
[38,{"$f":"Import!I33350","v":"Select"},{"$f":"Import!I33550","v":"Select"},{"$f":"Import!I33750","v":"Select"},{"$f":"Import!I33950","v":0},{"$f":"Import!I34150","v":0},{"$f":"Import!I34350","v":0}]
[39,{"$f":"Import!I33351","v":"Select"},{"$f":"Import!I33551","v":"Select"},{"$f":"Import!I33751","v":"Select"},{"$f":"Import!I33951","v":0},{"$f":"Import!I34151","v":0},{"$f":"Import!I34351","v":0}]
[40,{"$f":"Import!I33352","v":"Select"},{"$f":"Import!I33552","v":"Select"},{"$f":"Import!I33752","v":"Select"},{"$f":"Import!I33952","v":0},{"$f":"Import!I34152","v":0},{"$f":"Import!I34352","v":0}]
[41,{"$f":"Import!I33353","v":"Select"},{"$f":"Import!I33553","v":"Select"},{"$f":"Import!I33753","v":"Select"},{"$f":"Import!I33953","v":0},{"$f":"Import!I34153","v":0},{"$f":"Import!I34353","v":0}]
[42,{"$f":"Import!I33354","v":"Select"},{"$f":"Import!I33554","v":"Select"},{"$f":"Import!I33754","v":"Select"},{"$f":"Import!I33954","v":0},{"$f":"Import!I34154","v":0},{"$f":"Import!I34354","v":0}]
[43,{"$f":"Import!I33355","v":"Select"},{"$f":"Import!I33555","v":"Select"},{"$f":"Import!I33755","v":"Select"},{"$f":"Import!I33955","v":0},{"$f":"Import!I34155","v":0},{"$f":"Import!I34355","v":0}]
[44,{"$f":"Import!I33356","v":"Select"},{"$f":"Import!I33556","v":"Select"},{"$f":"Import!I33756","v":"Select"},{"$f":"Import!I33956","v":0},{"$f":"Import!I34156","v":0},{"$f":"Import!I34356","v":0}]
[45,{"$f":"Import!I33357","v":"Select"},{"$f":"Import!I33557","v":"Select"},{"$f":"Import!I33757","v":"Select"},{"$f":"Import!I33957","v":0},{"$f":"Import!I34157","v":0},{"$f":"Import!I34357","v":0}]
[46,{"$f":"Import!I33358","v":"Select"},{"$f":"Import!I33558","v":"Select"},{"$f":"Import!I33758","v":"Select"},{"$f":"Import!I33958","v":0},{"$f":"Import!I34158","v":0},{"$f":"Import!I34358","v":0}]
[47,{"$f":"Import!I33359","v":"Select"},{"$f":"Import!I33559","v":"Select"},{"$f":"Import!I33759","v":"Select"},{"$f":"Import!I33959","v":0},{"$f":"Import!I34159","v":0},{"$f":"Import!I34359","v":0}]
[48,{"$f":"Import!I33360","v":"Select"},{"$f":"Import!I33560","v":"Select"},{"$f":"Import!I33760","v":"Select"},{"$f":"Import!I33960","v":0},{"$f":"Import!I34160","v":0},{"$f":"Import!I34360","v":0}]
[49,{"$f":"Import!I33361","v":"Select"},{"$f":"Import!I33561","v":"Select"},{"$f":"Import!I33761","v":"Select"},{"$f":"Import!I33961","v":0},{"$f":"Import!I34161","v":0},{"$f":"Import!I34361","v":0}]
[50,{"$f":"Import!I33362","v":"Select"},{"$f":"Import!I33562","v":"Select"},{"$f":"Import!I33762","v":"Select"},{"$f":"Import!I33962","v":0},{"$f":"Import!I34162","v":0},{"$f":"Import!I34362","v":0}]
[51,{"$f":"Import!I33363","v":"Select"},{"$f":"Import!I33563","v":"Select"},{"$f":"Import!I33763","v":"Select"},{"$f":"Import!I33963","v":0},{"$f":"Import!I34163","v":0},{"$f":"Import!I34363","v":0}]
[52,{"$f":"Import!I33364","v":"Select"},{"$f":"Import!I33564","v":"Select"},{"$f":"Import!I33764","v":"Select"},{"$f":"Import!I33964","v":0},{"$f":"Import!I34164","v":0},{"$f":"Import!I34364","v":0}]
[53,{"$f":"Import!I33365","v":"Select"},{"$f":"Import!I33565","v":"Select"},{"$f":"Import!I33765","v":"Select"},{"$f":"Import!I33965","v":0},{"$f":"Import!I34165","v":0},{"$f":"Import!I34365","v":0}]
[54,{"$f":"Import!I33366","v":"Select"},{"$f":"Import!I33566","v":"Select"},{"$f":"Import!I33766","v":"Select"},{"$f":"Import!I33966","v":0},{"$f":"Import!I34166","v":0},{"$f":"Import!I34366","v":0}]
[55,{"$f":"Import!I33367","v":"Select"},{"$f":"Import!I33567","v":"Select"},{"$f":"Import!I33767","v":"Select"},{"$f":"Import!I33967","v":0},{"$f":"Import!I34167","v":0},{"$f":"Import!I34367","v":0}]
[56,{"$f":"Import!I33368","v":"Select"},{"$f":"Import!I33568","v":"Select"},{"$f":"Import!I33768","v":"Select"},{"$f":"Import!I33968","v":0},{"$f":"Import!I34168","v":0},{"$f":"Import!I34368","v":0}]
[57,{"$f":"Import!I33369","v":"Select"},{"$f":"Import!I33569","v":"Select"},{"$f":"Import!I33769","v":"Select"},{"$f":"Import!I33969","v":0},{"$f":"Import!I34169","v":0},{"$f":"Import!I34369","v":0}]
[58,{"$f":"Import!I33370","v":"Select"},{"$f":"Import!I33570","v":"Select"},{"$f":"Import!I33770","v":"Select"},{"$f":"Import!I33970","v":0},{"$f":"Import!I34170","v":0},{"$f":"Import!I34370","v":0}]
[59,{"$f":"Import!I33371","v":"Select"},{"$f":"Import!I33571","v":"Select"},{"$f":"Import!I33771","v":"Select"},{"$f":"Import!I33971","v":0},{"$f":"Import!I34171","v":0},{"$f":"Import!I34371","v":0}]
[60,{"$f":"Import!I33372","v":"Select"},{"$f":"Import!I33572","v":"Select"},{"$f":"Import!I33772","v":"Select"},{"$f":"Import!I33972","v":0},{"$f":"Import!I34172","v":0},{"$f":"Import!I34372","v":0}]
[61,{"$f":"Import!I33373","v":"Select"},{"$f":"Import!I33573","v":"Select"},{"$f":"Import!I33773","v":"Select"},{"$f":"Import!I33973","v":0},{"$f":"Import!I34173","v":0},{"$f":"Import!I34373","v":0}]
[62,{"$f":"Import!I33374","v":"Select"},{"$f":"Import!I33574","v":"Select"},{"$f":"Import!I33774","v":"Select"},{"$f":"Import!I33974","v":0},{"$f":"Import!I34174","v":0},{"$f":"Import!I34374","v":0}]
[63,{"$f":"Import!I33375","v":"Select"},{"$f":"Import!I33575","v":"Select"},{"$f":"Import!I33775","v":"Select"},{"$f":"Import!I33975","v":0},{"$f":"Import!I34175","v":0},{"$f":"Import!I34375","v":0}]
[64,{"$f":"Import!I33376","v":"Select"},{"$f":"Import!I33576","v":"Select"},{"$f":"Import!I33776","v":"Select"},{"$f":"Import!I33976","v":0},{"$f":"Import!I34176","v":0},{"$f":"Import!I34376","v":0}]
[65,{"$f":"Import!I33377","v":"Select"},{"$f":"Import!I33577","v":"Select"},{"$f":"Import!I33777","v":"Select"},{"$f":"Import!I33977","v":0},{"$f":"Import!I34177","v":0},{"$f":"Import!I34377","v":0}]
[66,{"$f":"Import!I33378","v":"Select"},{"$f":"Import!I33578","v":"Select"},{"$f":"Import!I33778","v":"Select"},{"$f":"Import!I33978","v":0},{"$f":"Import!I34178","v":0},{"$f":"Import!I34378","v":0}]
[{"$f":"A1861+1","v":67},{"$f":"Import!I33379","v":"Select"},{"$f":"Import!I33579","v":"Select"},{"$f":"Import!I33779","v":"Select"},{"$f":"Import!I33979","v":0},{"$f":"Import!I34179","v":0},{"$f":"Import!I34379","v":0}]
[68,{"$f":"Import!I33380","v":"Select"},{"$f":"Import!I33580","v":"Select"},{"$f":"Import!I33780","v":"Select"},{"$f":"Import!I33980","v":0},{"$f":"Import!I34180","v":0},{"$f":"Import!I34380","v":0}]
[69,{"$f":"Import!I33381","v":"Select"},{"$f":"Import!I33581","v":"Select"},{"$f":"Import!I33781","v":"Select"},{"$f":"Import!I33981","v":0},{"$f":"Import!I34181","v":0},{"$f":"Import!I34381","v":0}]
[70,{"$f":"Import!I33382","v":"Select"},{"$f":"Import!I33582","v":"Select"},{"$f":"Import!I33782","v":"Select"},{"$f":"Import!I33982","v":0},{"$f":"Import!I34182","v":0},{"$f":"Import!I34382","v":0}]
[71,{"$f":"Import!I33383","v":"Select"},{"$f":"Import!I33583","v":"Select"},{"$f":"Import!I33783","v":"Select"},{"$f":"Import!I33983","v":0},{"$f":"Import!I34183","v":0},{"$f":"Import!I34383","v":0}]
[72,{"$f":"Import!I33384","v":"Select"},{"$f":"Import!I33584","v":"Select"},{"$f":"Import!I33784","v":"Select"},{"$f":"Import!I33984","v":0},{"$f":"Import!I34184","v":0},{"$f":"Import!I34384","v":0}]
[73,{"$f":"Import!I33385","v":"Select"},{"$f":"Import!I33585","v":"Select"},{"$f":"Import!I33785","v":"Select"},{"$f":"Import!I33985","v":0},{"$f":"Import!I34185","v":0},{"$f":"Import!I34385","v":0}]
[74,{"$f":"Import!I33386","v":"Select"},{"$f":"Import!I33586","v":"Select"},{"$f":"Import!I33786","v":"Select"},{"$f":"Import!I33986","v":0},{"$f":"Import!I34186","v":0},{"$f":"Import!I34386","v":0}]
[75,{"$f":"Import!I33387","v":"Select"},{"$f":"Import!I33587","v":"Select"},{"$f":"Import!I33787","v":"Select"},{"$f":"Import!I33987","v":0},{"$f":"Import!I34187","v":0},{"$f":"Import!I34387","v":0}]
[76,{"$f":"Import!I33388","v":"Select"},{"$f":"Import!I33588","v":"Select"},{"$f":"Import!I33788","v":"Select"},{"$f":"Import!I33988","v":0},{"$f":"Import!I34188","v":0},{"$f":"Import!I34388","v":0}]
[77,{"$f":"Import!I33389","v":"Select"},{"$f":"Import!I33589","v":"Select"},{"$f":"Import!I33789","v":"Select"},{"$f":"Import!I33989","v":0},{"$f":"Import!I34189","v":0},{"$f":"Import!I34389","v":0}]
[78,{"$f":"Import!I33390","v":"Select"},{"$f":"Import!I33590","v":"Select"},{"$f":"Import!I33790","v":"Select"},{"$f":"Import!I33990","v":0},{"$f":"Import!I34190","v":0},{"$f":"Import!I34390","v":0}]
[79,{"$f":"Import!I33391","v":"Select"},{"$f":"Import!I33591","v":"Select"},{"$f":"Import!I33791","v":"Select"},{"$f":"Import!I33991","v":0},{"$f":"Import!I34191","v":0},{"$f":"Import!I34391","v":0}]
[80,{"$f":"Import!I33392","v":"Select"},{"$f":"Import!I33592","v":"Select"},{"$f":"Import!I33792","v":"Select"},{"$f":"Import!I33992","v":0},{"$f":"Import!I34192","v":0},{"$f":"Import!I34392","v":0}]
[81,{"$f":"Import!I33393","v":"Select"},{"$f":"Import!I33593","v":"Select"},{"$f":"Import!I33793","v":"Select"},{"$f":"Import!I33993","v":0},{"$f":"Import!I34193","v":0},{"$f":"Import!I34393","v":0}]
[82,{"$f":"Import!I33394","v":"Select"},{"$f":"Import!I33594","v":"Select"},{"$f":"Import!I33794","v":"Select"},{"$f":"Import!I33994","v":0},{"$f":"Import!I34194","v":0},{"$f":"Import!I34394","v":0}]
[83,{"$f":"Import!I33395","v":"Select"},{"$f":"Import!I33595","v":"Select"},{"$f":"Import!I33795","v":"Select"},{"$f":"Import!I33995","v":0},{"$f":"Import!I34195","v":0},{"$f":"Import!I34395","v":0}]
[84,{"$f":"Import!I33396","v":"Select"},{"$f":"Import!I33596","v":"Select"},{"$f":"Import!I33796","v":"Select"},{"$f":"Import!I33996","v":0},{"$f":"Import!I34196","v":0},{"$f":"Import!I34396","v":0}]
[85,{"$f":"Import!I33397","v":"Select"},{"$f":"Import!I33597","v":"Select"},{"$f":"Import!I33797","v":"Select"},{"$f":"Import!I33997","v":0},{"$f":"Import!I34197","v":0},{"$f":"Import!I34397","v":0}]
[86,{"$f":"Import!I33398","v":"Select"},{"$f":"Import!I33598","v":"Select"},{"$f":"Import!I33798","v":"Select"},{"$f":"Import!I33998","v":0},{"$f":"Import!I34198","v":0},{"$f":"Import!I34398","v":0}]
[87,{"$f":"Import!I33399","v":"Select"},{"$f":"Import!I33599","v":"Select"},{"$f":"Import!I33799","v":"Select"},{"$f":"Import!I33999","v":0},{"$f":"Import!I34199","v":0},{"$f":"Import!I34399","v":0}]
[88,{"$f":"Import!I33400","v":"Select"},{"$f":"Import!I33600","v":"Select"},{"$f":"Import!I33800","v":"Select"},{"$f":"Import!I34000","v":0},{"$f":"Import!I34200","v":0},{"$f":"Import!I34400","v":0}]
[89,{"$f":"Import!I33401","v":"Select"},{"$f":"Import!I33601","v":"Select"},{"$f":"Import!I33801","v":"Select"},{"$f":"Import!I34001","v":0},{"$f":"Import!I34201","v":0},{"$f":"Import!I34401","v":0}]
[90,{"$f":"Import!I33402","v":"Select"},{"$f":"Import!I33602","v":"Select"},{"$f":"Import!I33802","v":"Select"},{"$f":"Import!I34002","v":0},{"$f":"Import!I34202","v":0},{"$f":"Import!I34402","v":0}]
[91,{"$f":"Import!I33403","v":"Select"},{"$f":"Import!I33603","v":"Select"},{"$f":"Import!I33803","v":"Select"},{"$f":"Import!I34003","v":0},{"$f":"Import!I34203","v":0},{"$f":"Import!I34403","v":0}]
[92,{"$f":"Import!I33404","v":"Select"},{"$f":"Import!I33604","v":"Select"},{"$f":"Import!I33804","v":"Select"},{"$f":"Import!I34004","v":0},{"$f":"Import!I34204","v":0},{"$f":"Import!I34404","v":0}]
[93,{"$f":"Import!I33405","v":"Select"},{"$f":"Import!I33605","v":"Select"},{"$f":"Import!I33805","v":"Select"},{"$f":"Import!I34005","v":0},{"$f":"Import!I34205","v":0},{"$f":"Import!I34405","v":0}]
[94,{"$f":"Import!I33406","v":"Select"},{"$f":"Import!I33606","v":"Select"},{"$f":"Import!I33806","v":"Select"},{"$f":"Import!I34006","v":0},{"$f":"Import!I34206","v":0},{"$f":"Import!I34406","v":0}]
[95,{"$f":"Import!I33407","v":"Select"},{"$f":"Import!I33607","v":"Select"},{"$f":"Import!I33807","v":"Select"},{"$f":"Import!I34007","v":0},{"$f":"Import!I34207","v":0},{"$f":"Import!I34407","v":0}]
[96,{"$f":"Import!I33408","v":"Select"},{"$f":"Import!I33608","v":"Select"},{"$f":"Import!I33808","v":"Select"},{"$f":"Import!I34008","v":0},{"$f":"Import!I34208","v":0},{"$f":"Import!I34408","v":0}]
[97,{"$f":"Import!I33409","v":"Select"},{"$f":"Import!I33609","v":"Select"},{"$f":"Import!I33809","v":"Select"},{"$f":"Import!I34009","v":0},{"$f":"Import!I34209","v":0},{"$f":"Import!I34409","v":0}]
[98,{"$f":"Import!I33410","v":"Select"},{"$f":"Import!I33610","v":"Select"},{"$f":"Import!I33810","v":"Select"},{"$f":"Import!I34010","v":0},{"$f":"Import!I34210","v":0},{"$f":"Import!I34410","v":0}]
[99,{"$f":"Import!I33411","v":"Select"},{"$f":"Import!I33611","v":"Select"},{"$f":"Import!I33811","v":"Select"},{"$f":"Import!I34011","v":0},{"$f":"Import!I34211","v":0},{"$f":"Import!I34411","v":0}]
[100,{"$f":"Import!I33412","v":"Select"},{"$f":"Import!I33612","v":"Select"},{"$f":"Import!I33812","v":"Select"},{"$f":"Import!I34012","v":0},{"$f":"Import!I34212","v":0},{"$f":"Import!I34412","v":0}]
[101,{"$f":"Import!I33413","v":"Select"},{"$f":"Import!I33613","v":"Select"},{"$f":"Import!I33813","v":"Select"},{"$f":"Import!I34013","v":0},{"$f":"Import!I34213","v":0},{"$f":"Import!I34413","v":0}]
[102,{"$f":"Import!I33414","v":"Select"},{"$f":"Import!I33614","v":"Select"},{"$f":"Import!I33814","v":"Select"},{"$f":"Import!I34014","v":0},{"$f":"Import!I34214","v":0},{"$f":"Import!I34414","v":0}]
[103,{"$f":"Import!I33415","v":"Select"},{"$f":"Import!I33615","v":"Select"},{"$f":"Import!I33815","v":"Select"},{"$f":"Import!I34015","v":0},{"$f":"Import!I34215","v":0},{"$f":"Import!I34415","v":0}]
[104,{"$f":"Import!I33416","v":"Select"},{"$f":"Import!I33616","v":"Select"},{"$f":"Import!I33816","v":"Select"},{"$f":"Import!I34016","v":0},{"$f":"Import!I34216","v":0},{"$f":"Import!I34416","v":0}]
[105,{"$f":"Import!I33417","v":"Select"},{"$f":"Import!I33617","v":"Select"},{"$f":"Import!I33817","v":"Select"},{"$f":"Import!I34017","v":0},{"$f":"Import!I34217","v":0},{"$f":"Import!I34417","v":0}]
[106,{"$f":"Import!I33418","v":"Select"},{"$f":"Import!I33618","v":"Select"},{"$f":"Import!I33818","v":"Select"},{"$f":"Import!I34018","v":0},{"$f":"Import!I34218","v":0},{"$f":"Import!I34418","v":0}]
[107,{"$f":"Import!I33419","v":"Select"},{"$f":"Import!I33619","v":"Select"},{"$f":"Import!I33819","v":"Select"},{"$f":"Import!I34019","v":0},{"$f":"Import!I34219","v":0},{"$f":"Import!I34419","v":0}]
[108,{"$f":"Import!I33420","v":"Select"},{"$f":"Import!I33620","v":"Select"},{"$f":"Import!I33820","v":"Select"},{"$f":"Import!I34020","v":0},{"$f":"Import!I34220","v":0},{"$f":"Import!I34420","v":0}]
[109,{"$f":"Import!I33421","v":"Select"},{"$f":"Import!I33621","v":"Select"},{"$f":"Import!I33821","v":"Select"},{"$f":"Import!I34021","v":0},{"$f":"Import!I34221","v":0},{"$f":"Import!I34421","v":0}]
[110,{"$f":"Import!I33422","v":"Select"},{"$f":"Import!I33622","v":"Select"},{"$f":"Import!I33822","v":"Select"},{"$f":"Import!I34022","v":0},{"$f":"Import!I34222","v":0},{"$f":"Import!I34422","v":0}]
[111,{"$f":"Import!I33423","v":"Select"},{"$f":"Import!I33623","v":"Select"},{"$f":"Import!I33823","v":"Select"},{"$f":"Import!I34023","v":0},{"$f":"Import!I34223","v":0},{"$f":"Import!I34423","v":0}]
[112,{"$f":"Import!I33424","v":"Select"},{"$f":"Import!I33624","v":"Select"},{"$f":"Import!I33824","v":"Select"},{"$f":"Import!I34024","v":0},{"$f":"Import!I34224","v":0},{"$f":"Import!I34424","v":0}]
[113,{"$f":"Import!I33425","v":"Select"},{"$f":"Import!I33625","v":"Select"},{"$f":"Import!I33825","v":"Select"},{"$f":"Import!I34025","v":0},{"$f":"Import!I34225","v":0},{"$f":"Import!I34425","v":0}]
[114,{"$f":"Import!I33426","v":"Select"},{"$f":"Import!I33626","v":"Select"},{"$f":"Import!I33826","v":"Select"},{"$f":"Import!I34026","v":0},{"$f":"Import!I34226","v":0},{"$f":"Import!I34426","v":0}]
[115,{"$f":"Import!I33427","v":"Select"},{"$f":"Import!I33627","v":"Select"},{"$f":"Import!I33827","v":"Select"},{"$f":"Import!I34027","v":0},{"$f":"Import!I34227","v":0},{"$f":"Import!I34427","v":0}]
[116,{"$f":"Import!I33428","v":"Select"},{"$f":"Import!I33628","v":"Select"},{"$f":"Import!I33828","v":"Select"},{"$f":"Import!I34028","v":0},{"$f":"Import!I34228","v":0},{"$f":"Import!I34428","v":0}]
[117,{"$f":"Import!I33429","v":"Select"},{"$f":"Import!I33629","v":"Select"},{"$f":"Import!I33829","v":"Select"},{"$f":"Import!I34029","v":0},{"$f":"Import!I34229","v":0},{"$f":"Import!I34429","v":0}]
[118,{"$f":"Import!I33430","v":"Select"},{"$f":"Import!I33630","v":"Select"},{"$f":"Import!I33830","v":"Select"},{"$f":"Import!I34030","v":0},{"$f":"Import!I34230","v":0},{"$f":"Import!I34430","v":0}]
[119,{"$f":"Import!I33431","v":"Select"},{"$f":"Import!I33631","v":"Select"},{"$f":"Import!I33831","v":"Select"},{"$f":"Import!I34031","v":0},{"$f":"Import!I34231","v":0},{"$f":"Import!I34431","v":0}]
[120,{"$f":"Import!I33432","v":"Select"},{"$f":"Import!I33632","v":"Select"},{"$f":"Import!I33832","v":"Select"},{"$f":"Import!I34032","v":0},{"$f":"Import!I34232","v":0},{"$f":"Import!I34432","v":0}]
[121,{"$f":"Import!I33433","v":"Select"},{"$f":"Import!I33633","v":"Select"},{"$f":"Import!I33833","v":"Select"},{"$f":"Import!I34033","v":0},{"$f":"Import!I34233","v":0},{"$f":"Import!I34433","v":0}]
[122,{"$f":"Import!I33434","v":"Select"},{"$f":"Import!I33634","v":"Select"},{"$f":"Import!I33834","v":"Select"},{"$f":"Import!I34034","v":0},{"$f":"Import!I34234","v":0},{"$f":"Import!I34434","v":0}]
[123,{"$f":"Import!I33435","v":"Select"},{"$f":"Import!I33635","v":"Select"},{"$f":"Import!I33835","v":"Select"},{"$f":"Import!I34035","v":0},{"$f":"Import!I34235","v":0},{"$f":"Import!I34435","v":0}]
[124,{"$f":"Import!I33436","v":"Select"},{"$f":"Import!I33636","v":"Select"},{"$f":"Import!I33836","v":"Select"},{"$f":"Import!I34036","v":0},{"$f":"Import!I34236","v":0},{"$f":"Import!I34436","v":0}]
[125,{"$f":"Import!I33437","v":"Select"},{"$f":"Import!I33637","v":"Select"},{"$f":"Import!I33837","v":"Select"},{"$f":"Import!I34037","v":0},{"$f":"Import!I34237","v":0},{"$f":"Import!I34437","v":0}]
[126,{"$f":"Import!I33438","v":"Select"},{"$f":"Import!I33638","v":"Select"},{"$f":"Import!I33838","v":"Select"},{"$f":"Import!I34038","v":0},{"$f":"Import!I34238","v":0},{"$f":"Import!I34438","v":0}]
[127,{"$f":"Import!I33439","v":"Select"},{"$f":"Import!I33639","v":"Select"},{"$f":"Import!I33839","v":"Select"},{"$f":"Import!I34039","v":0},{"$f":"Import!I34239","v":0},{"$f":"Import!I34439","v":0}]
[128,{"$f":"Import!I33440","v":"Select"},{"$f":"Import!I33640","v":"Select"},{"$f":"Import!I33840","v":"Select"},{"$f":"Import!I34040","v":0},{"$f":"Import!I34240","v":0},{"$f":"Import!I34440","v":0}]
[129,{"$f":"Import!I33441","v":"Select"},{"$f":"Import!I33641","v":"Select"},{"$f":"Import!I33841","v":"Select"},{"$f":"Import!I34041","v":0},{"$f":"Import!I34241","v":0},{"$f":"Import!I34441","v":0}]
[130,{"$f":"Import!I33442","v":"Select"},{"$f":"Import!I33642","v":"Select"},{"$f":"Import!I33842","v":"Select"},{"$f":"Import!I34042","v":0},{"$f":"Import!I34242","v":0},{"$f":"Import!I34442","v":0}]
[{"$f":"A1925+1","v":131},{"$f":"Import!I33443","v":"Select"},{"$f":"Import!I33643","v":"Select"},{"$f":"Import!I33843","v":"Select"},{"$f":"Import!I34043","v":0},{"$f":"Import!I34243","v":0},{"$f":"Import!I34443","v":0}]
[132,{"$f":"Import!I33444","v":"Select"},{"$f":"Import!I33644","v":"Select"},{"$f":"Import!I33844","v":"Select"},{"$f":"Import!I34044","v":0},{"$f":"Import!I34244","v":0},{"$f":"Import!I34444","v":0}]
[133,{"$f":"Import!I33445","v":"Select"},{"$f":"Import!I33645","v":"Select"},{"$f":"Import!I33845","v":"Select"},{"$f":"Import!I34045","v":0},{"$f":"Import!I34245","v":0},{"$f":"Import!I34445","v":0}]
[134,{"$f":"Import!I33446","v":"Select"},{"$f":"Import!I33646","v":"Select"},{"$f":"Import!I33846","v":"Select"},{"$f":"Import!I34046","v":0},{"$f":"Import!I34246","v":0},{"$f":"Import!I34446","v":0}]
[135,{"$f":"Import!I33447","v":"Select"},{"$f":"Import!I33647","v":"Select"},{"$f":"Import!I33847","v":"Select"},{"$f":"Import!I34047","v":0},{"$f":"Import!I34247","v":0},{"$f":"Import!I34447","v":0}]
[136,{"$f":"Import!I33448","v":"Select"},{"$f":"Import!I33648","v":"Select"},{"$f":"Import!I33848","v":"Select"},{"$f":"Import!I34048","v":0},{"$f":"Import!I34248","v":0},{"$f":"Import!I34448","v":0}]
[137,{"$f":"Import!I33449","v":"Select"},{"$f":"Import!I33649","v":"Select"},{"$f":"Import!I33849","v":"Select"},{"$f":"Import!I34049","v":0},{"$f":"Import!I34249","v":0},{"$f":"Import!I34449","v":0}]
[138,{"$f":"Import!I33450","v":"Select"},{"$f":"Import!I33650","v":"Select"},{"$f":"Import!I33850","v":"Select"},{"$f":"Import!I34050","v":0},{"$f":"Import!I34250","v":0},{"$f":"Import!I34450","v":0}]
[139,{"$f":"Import!I33451","v":"Select"},{"$f":"Import!I33651","v":"Select"},{"$f":"Import!I33851","v":"Select"},{"$f":"Import!I34051","v":0},{"$f":"Import!I34251","v":0},{"$f":"Import!I34451","v":0}]
[140,{"$f":"Import!I33452","v":"Select"},{"$f":"Import!I33652","v":"Select"},{"$f":"Import!I33852","v":"Select"},{"$f":"Import!I34052","v":0},{"$f":"Import!I34252","v":0},{"$f":"Import!I34452","v":0}]
[141,{"$f":"Import!I33453","v":"Select"},{"$f":"Import!I33653","v":"Select"},{"$f":"Import!I33853","v":"Select"},{"$f":"Import!I34053","v":0},{"$f":"Import!I34253","v":0},{"$f":"Import!I34453","v":0}]
[142,{"$f":"Import!I33454","v":"Select"},{"$f":"Import!I33654","v":"Select"},{"$f":"Import!I33854","v":"Select"},{"$f":"Import!I34054","v":0},{"$f":"Import!I34254","v":0},{"$f":"Import!I34454","v":0}]
[143,{"$f":"Import!I33455","v":"Select"},{"$f":"Import!I33655","v":"Select"},{"$f":"Import!I33855","v":"Select"},{"$f":"Import!I34055","v":0},{"$f":"Import!I34255","v":0},{"$f":"Import!I34455","v":0}]
[144,{"$f":"Import!I33456","v":"Select"},{"$f":"Import!I33656","v":"Select"},{"$f":"Import!I33856","v":"Select"},{"$f":"Import!I34056","v":0},{"$f":"Import!I34256","v":0},{"$f":"Import!I34456","v":0}]
[145,{"$f":"Import!I33457","v":"Select"},{"$f":"Import!I33657","v":"Select"},{"$f":"Import!I33857","v":"Select"},{"$f":"Import!I34057","v":0},{"$f":"Import!I34257","v":0},{"$f":"Import!I34457","v":0}]
[146,{"$f":"Import!I33458","v":"Select"},{"$f":"Import!I33658","v":"Select"},{"$f":"Import!I33858","v":"Select"},{"$f":"Import!I34058","v":0},{"$f":"Import!I34258","v":0},{"$f":"Import!I34458","v":0}]
[147,{"$f":"Import!I33459","v":"Select"},{"$f":"Import!I33659","v":"Select"},{"$f":"Import!I33859","v":"Select"},{"$f":"Import!I34059","v":0},{"$f":"Import!I34259","v":0},{"$f":"Import!I34459","v":0}]
[148,{"$f":"Import!I33460","v":"Select"},{"$f":"Import!I33660","v":"Select"},{"$f":"Import!I33860","v":"Select"},{"$f":"Import!I34060","v":0},{"$f":"Import!I34260","v":0},{"$f":"Import!I34460","v":0}]
[149,{"$f":"Import!I33461","v":"Select"},{"$f":"Import!I33661","v":"Select"},{"$f":"Import!I33861","v":"Select"},{"$f":"Import!I34061","v":0},{"$f":"Import!I34261","v":0},{"$f":"Import!I34461","v":0}]
[150,{"$f":"Import!I33462","v":"Select"},{"$f":"Import!I33662","v":"Select"},{"$f":"Import!I33862","v":"Select"},{"$f":"Import!I34062","v":0},{"$f":"Import!I34262","v":0},{"$f":"Import!I34462","v":0}]
[151,{"$f":"Import!I33463","v":"Select"},{"$f":"Import!I33663","v":"Select"},{"$f":"Import!I33863","v":"Select"},{"$f":"Import!I34063","v":0},{"$f":"Import!I34263","v":0},{"$f":"Import!I34463","v":0}]
[152,{"$f":"Import!I33464","v":"Select"},{"$f":"Import!I33664","v":"Select"},{"$f":"Import!I33864","v":"Select"},{"$f":"Import!I34064","v":0},{"$f":"Import!I34264","v":0},{"$f":"Import!I34464","v":0}]
[153,{"$f":"Import!I33465","v":"Select"},{"$f":"Import!I33665","v":"Select"},{"$f":"Import!I33865","v":"Select"},{"$f":"Import!I34065","v":0},{"$f":"Import!I34265","v":0},{"$f":"Import!I34465","v":0}]
[154,{"$f":"Import!I33466","v":"Select"},{"$f":"Import!I33666","v":"Select"},{"$f":"Import!I33866","v":"Select"},{"$f":"Import!I34066","v":0},{"$f":"Import!I34266","v":0},{"$f":"Import!I34466","v":0}]
[155,{"$f":"Import!I33467","v":"Select"},{"$f":"Import!I33667","v":"Select"},{"$f":"Import!I33867","v":"Select"},{"$f":"Import!I34067","v":0},{"$f":"Import!I34267","v":0},{"$f":"Import!I34467","v":0}]
[156,{"$f":"Import!I33468","v":"Select"},{"$f":"Import!I33668","v":"Select"},{"$f":"Import!I33868","v":"Select"},{"$f":"Import!I34068","v":0},{"$f":"Import!I34268","v":0},{"$f":"Import!I34468","v":0}]
[157,{"$f":"Import!I33469","v":"Select"},{"$f":"Import!I33669","v":"Select"},{"$f":"Import!I33869","v":"Select"},{"$f":"Import!I34069","v":0},{"$f":"Import!I34269","v":0},{"$f":"Import!I34469","v":0}]
[158,{"$f":"Import!I33470","v":"Select"},{"$f":"Import!I33670","v":"Select"},{"$f":"Import!I33870","v":"Select"},{"$f":"Import!I34070","v":0},{"$f":"Import!I34270","v":0},{"$f":"Import!I34470","v":0}]
[159,{"$f":"Import!I33471","v":"Select"},{"$f":"Import!I33671","v":"Select"},{"$f":"Import!I33871","v":"Select"},{"$f":"Import!I34071","v":0},{"$f":"Import!I34271","v":0},{"$f":"Import!I34471","v":0}]
[160,{"$f":"Import!I33472","v":"Select"},{"$f":"Import!I33672","v":"Select"},{"$f":"Import!I33872","v":"Select"},{"$f":"Import!I34072","v":0},{"$f":"Import!I34272","v":0},{"$f":"Import!I34472","v":0}]
[161,{"$f":"Import!I33473","v":"Select"},{"$f":"Import!I33673","v":"Select"},{"$f":"Import!I33873","v":"Select"},{"$f":"Import!I34073","v":0},{"$f":"Import!I34273","v":0},{"$f":"Import!I34473","v":0}]
[162,{"$f":"Import!I33474","v":"Select"},{"$f":"Import!I33674","v":"Select"},{"$f":"Import!I33874","v":"Select"},{"$f":"Import!I34074","v":0},{"$f":"Import!I34274","v":0},{"$f":"Import!I34474","v":0}]
[163,{"$f":"Import!I33475","v":"Select"},{"$f":"Import!I33675","v":"Select"},{"$f":"Import!I33875","v":"Select"},{"$f":"Import!I34075","v":0},{"$f":"Import!I34275","v":0},{"$f":"Import!I34475","v":0}]
[164,{"$f":"Import!I33476","v":"Select"},{"$f":"Import!I33676","v":"Select"},{"$f":"Import!I33876","v":"Select"},{"$f":"Import!I34076","v":0},{"$f":"Import!I34276","v":0},{"$f":"Import!I34476","v":0}]
[165,{"$f":"Import!I33477","v":"Select"},{"$f":"Import!I33677","v":"Select"},{"$f":"Import!I33877","v":"Select"},{"$f":"Import!I34077","v":0},{"$f":"Import!I34277","v":0},{"$f":"Import!I34477","v":0}]
[166,{"$f":"Import!I33478","v":"Select"},{"$f":"Import!I33678","v":"Select"},{"$f":"Import!I33878","v":"Select"},{"$f":"Import!I34078","v":0},{"$f":"Import!I34278","v":0},{"$f":"Import!I34478","v":0}]
[167,{"$f":"Import!I33479","v":"Select"},{"$f":"Import!I33679","v":"Select"},{"$f":"Import!I33879","v":"Select"},{"$f":"Import!I34079","v":0},{"$f":"Import!I34279","v":0},{"$f":"Import!I34479","v":0}]
[168,{"$f":"Import!I33480","v":"Select"},{"$f":"Import!I33680","v":"Select"},{"$f":"Import!I33880","v":"Select"},{"$f":"Import!I34080","v":0},{"$f":"Import!I34280","v":0},{"$f":"Import!I34480","v":0}]
[169,{"$f":"Import!I33481","v":"Select"},{"$f":"Import!I33681","v":"Select"},{"$f":"Import!I33881","v":"Select"},{"$f":"Import!I34081","v":0},{"$f":"Import!I34281","v":0},{"$f":"Import!I34481","v":0}]
[170,{"$f":"Import!I33482","v":"Select"},{"$f":"Import!I33682","v":"Select"},{"$f":"Import!I33882","v":"Select"},{"$f":"Import!I34082","v":0},{"$f":"Import!I34282","v":0},{"$f":"Import!I34482","v":0}]
[171,{"$f":"Import!I33483","v":"Select"},{"$f":"Import!I33683","v":"Select"},{"$f":"Import!I33883","v":"Select"},{"$f":"Import!I34083","v":0},{"$f":"Import!I34283","v":0},{"$f":"Import!I34483","v":0}]
[172,{"$f":"Import!I33484","v":"Select"},{"$f":"Import!I33684","v":"Select"},{"$f":"Import!I33884","v":"Select"},{"$f":"Import!I34084","v":0},{"$f":"Import!I34284","v":0},{"$f":"Import!I34484","v":0}]
[173,{"$f":"Import!I33485","v":"Select"},{"$f":"Import!I33685","v":"Select"},{"$f":"Import!I33885","v":"Select"},{"$f":"Import!I34085","v":0},{"$f":"Import!I34285","v":0},{"$f":"Import!I34485","v":0}]
[174,{"$f":"Import!I33486","v":"Select"},{"$f":"Import!I33686","v":"Select"},{"$f":"Import!I33886","v":"Select"},{"$f":"Import!I34086","v":0},{"$f":"Import!I34286","v":0},{"$f":"Import!I34486","v":0}]
[175,{"$f":"Import!I33487","v":"Select"},{"$f":"Import!I33687","v":"Select"},{"$f":"Import!I33887","v":"Select"},{"$f":"Import!I34087","v":0},{"$f":"Import!I34287","v":0},{"$f":"Import!I34487","v":0}]
[176,{"$f":"Import!I33488","v":"Select"},{"$f":"Import!I33688","v":"Select"},{"$f":"Import!I33888","v":"Select"},{"$f":"Import!I34088","v":0},{"$f":"Import!I34288","v":0},{"$f":"Import!I34488","v":0}]
[177,{"$f":"Import!I33489","v":"Select"},{"$f":"Import!I33689","v":"Select"},{"$f":"Import!I33889","v":"Select"},{"$f":"Import!I34089","v":0},{"$f":"Import!I34289","v":0},{"$f":"Import!I34489","v":0}]
[178,{"$f":"Import!I33490","v":"Select"},{"$f":"Import!I33690","v":"Select"},{"$f":"Import!I33890","v":"Select"},{"$f":"Import!I34090","v":0},{"$f":"Import!I34290","v":0},{"$f":"Import!I34490","v":0}]
[179,{"$f":"Import!I33491","v":"Select"},{"$f":"Import!I33691","v":"Select"},{"$f":"Import!I33891","v":"Select"},{"$f":"Import!I34091","v":0},{"$f":"Import!I34291","v":0},{"$f":"Import!I34491","v":0}]
[180,{"$f":"Import!I33492","v":"Select"},{"$f":"Import!I33692","v":"Select"},{"$f":"Import!I33892","v":"Select"},{"$f":"Import!I34092","v":0},{"$f":"Import!I34292","v":0},{"$f":"Import!I34492","v":0}]
[181,{"$f":"Import!I33493","v":"Select"},{"$f":"Import!I33693","v":"Select"},{"$f":"Import!I33893","v":"Select"},{"$f":"Import!I34093","v":0},{"$f":"Import!I34293","v":0},{"$f":"Import!I34493","v":0}]
[182,{"$f":"Import!I33494","v":"Select"},{"$f":"Import!I33694","v":"Select"},{"$f":"Import!I33894","v":"Select"},{"$f":"Import!I34094","v":0},{"$f":"Import!I34294","v":0},{"$f":"Import!I34494","v":0}]
[183,{"$f":"Import!I33495","v":"Select"},{"$f":"Import!I33695","v":"Select"},{"$f":"Import!I33895","v":"Select"},{"$f":"Import!I34095","v":0},{"$f":"Import!I34295","v":0},{"$f":"Import!I34495","v":0}]
[184,{"$f":"Import!I33496","v":"Select"},{"$f":"Import!I33696","v":"Select"},{"$f":"Import!I33896","v":"Select"},{"$f":"Import!I34096","v":0},{"$f":"Import!I34296","v":0},{"$f":"Import!I34496","v":0}]
[185,{"$f":"Import!I33497","v":"Select"},{"$f":"Import!I33697","v":"Select"},{"$f":"Import!I33897","v":"Select"},{"$f":"Import!I34097","v":0},{"$f":"Import!I34297","v":0},{"$f":"Import!I34497","v":0}]
[186,{"$f":"Import!I33498","v":"Select"},{"$f":"Import!I33698","v":"Select"},{"$f":"Import!I33898","v":"Select"},{"$f":"Import!I34098","v":0},{"$f":"Import!I34298","v":0},{"$f":"Import!I34498","v":0}]
[187,{"$f":"Import!I33499","v":"Select"},{"$f":"Import!I33699","v":"Select"},{"$f":"Import!I33899","v":"Select"},{"$f":"Import!I34099","v":0},{"$f":"Import!I34299","v":0},{"$f":"Import!I34499","v":0}]
[188,{"$f":"Import!I33500","v":"Select"},{"$f":"Import!I33700","v":"Select"},{"$f":"Import!I33900","v":"Select"},{"$f":"Import!I34100","v":0},{"$f":"Import!I34300","v":0},{"$f":"Import!I34500","v":0}]
[189,{"$f":"Import!I33501","v":"Select"},{"$f":"Import!I33701","v":"Select"},{"$f":"Import!I33901","v":"Select"},{"$f":"Import!I34101","v":0},{"$f":"Import!I34301","v":0},{"$f":"Import!I34501","v":0}]
[190,{"$f":"Import!I33502","v":"Select"},{"$f":"Import!I33702","v":"Select"},{"$f":"Import!I33902","v":"Select"},{"$f":"Import!I34102","v":0},{"$f":"Import!I34302","v":0},{"$f":"Import!I34502","v":0}]
[191,{"$f":"Import!I33503","v":"Select"},{"$f":"Import!I33703","v":"Select"},{"$f":"Import!I33903","v":"Select"},{"$f":"Import!I34103","v":0},{"$f":"Import!I34303","v":0},{"$f":"Import!I34503","v":0}]
[192,{"$f":"Import!I33504","v":"Select"},{"$f":"Import!I33704","v":"Select"},{"$f":"Import!I33904","v":"Select"},{"$f":"Import!I34104","v":0},{"$f":"Import!I34304","v":0},{"$f":"Import!I34504","v":0}]
[193,{"$f":"Import!I33505","v":"Select"},{"$f":"Import!I33705","v":"Select"},{"$f":"Import!I33905","v":"Select"},{"$f":"Import!I34105","v":0},{"$f":"Import!I34305","v":0},{"$f":"Import!I34505","v":0}]
[194,{"$f":"Import!I33506","v":"Select"},{"$f":"Import!I33706","v":"Select"},{"$f":"Import!I33906","v":"Select"},{"$f":"Import!I34106","v":0},{"$f":"Import!I34306","v":0},{"$f":"Import!I34506","v":0}]
[{"$f":"A1989+1","v":195},{"$f":"Import!I33507","v":"Select"},{"$f":"Import!I33707","v":"Select"},{"$f":"Import!I33907","v":"Select"},{"$f":"Import!I34107","v":0},{"$f":"Import!I34307","v":0},{"$f":"Import!I34507","v":0}]
[196,{"$f":"Import!I33508","v":"Select"},{"$f":"Import!I33708","v":"Select"},{"$f":"Import!I33908","v":"Select"},{"$f":"Import!I34108","v":0},{"$f":"Import!I34308","v":0},{"$f":"Import!I34508","v":0}]
[197,{"$f":"Import!I33509","v":"Select"},{"$f":"Import!I33709","v":"Select"},{"$f":"Import!I33909","v":"Select"},{"$f":"Import!I34109","v":0},{"$f":"Import!I34309","v":0},{"$f":"Import!I34509","v":0}]
[198,{"$f":"Import!I33510","v":"Select"},{"$f":"Import!I33710","v":"Select"},{"$f":"Import!I33910","v":"Select"},{"$f":"Import!I34110","v":0},{"$f":"Import!I34310","v":0},{"$f":"Import!I34510","v":0}]
[199,{"$f":"Import!I33511","v":"Select"},{"$f":"Import!I33711","v":"Select"},{"$f":"Import!I33911","v":"Select"},{"$f":"Import!I34111","v":0},{"$f":"Import!I34311","v":0},{"$f":"Import!I34511","v":0}]
[200,{"$f":"Import!I33512","v":"Select"},{"$f":"Import!I33712","v":"Select"},{"$f":"Import!I33912","v":"Select"},{"$f":"Import!I34112","v":0},{"$f":"Import!I34312","v":0},{"$f":"Import!I34512","v":0}]
[]
[null,"Total Other Assets",null,null,null,{"$f":"SUM(F1796:F1995)","v":0}]
[]
[]
[null,"TOTAL ASSETS",null,null,null,{"$f":"F212+F620+F986+G1094+F1230+E1338+G1446+G1554+I1761+F1997","v":0}]
[]
[null,"TOTAL FUNDS HELD BY CEDING REINSURERS (Form 1EBS Line 12)",null,null,null,{"$f":"'Form 1EBS'!F75","v":0}]
[]
[null,"Check Form 1EBS (Line 12)",null,null,null,{"$f":"IF(F2006=0,\"TRUE\",\"FALSE\")","v":"TRUE"}]
[]
[null,"Difference",null,null,null,{"$f":"ROUND(F2002-F2000,0)","v":0}]
[]
[null,"(L) INFORMATION ON SECURITIES LENDING AND REPURCHASE TRANSACTIONS"]
[]
[null,null,{"$f":"YEAR($C$3)","v":2023}]
[null,null,"Notional Value","Fair Value",null,"Comments"]
[null,"Securities Lending transactions",{"$f":"Import!I34513","v":0},{"$f":"Import!I34515","v":0},null,{"$f":"Import!I34517","v":0}]
[null,"Repo / Reverse Repo transactions",{"$f":"Import!I34514","v":0},{"$f":"Import!I34516","v":0},null,{"$f":"Import!I34518","v":0}]
[]
[null,"Total",{"$f":"SUM(C2012:C2013)","v":0},{"$f":"SUM(D2012:D2013)","v":0}]
[]
[null,"(M) INFORMATION ON FAIR VALUATION HIERARCHY"]
[]
[null,null,{"$f":"YEAR($C$3)","v":2023},"Fair Value"]
[null,null,"Unaffiliated","Affiliated","Total","Comments"]
[null,"Level 1 Assets (according to Fair Value hierarchy)",{"$f":"Import!I34519","v":0},{"$f":"Import!I34522","v":0},{"$f":"SUM(C2021:D2021)","v":0},{"$f":"Import!I34525","v":0}]
[null,"Level 2 Assets (according to Fair Value hierarchy)",{"$f":"Import!I34520","v":0},{"$f":"Import!I34523","v":0},{"$f":"SUM(C2022:D2022)","v":0},{"$f":"Import!I34526","v":0}]
[null,"Level 3 Assets (according to Fair Value hierarchy)",{"$f":"Import!I34521","v":0},{"$f":"Import!I34524","v":0},{"$f":"SUM(C2023:D2023)","v":0},{"$f":"Import!I34527","v":0}]
[]
[null,"Total",{"$f":"SUM(C2021:C2023)","v":0},{"$f":"SUM(D2021:D2023)","v":0},{"$f":"SUM(E2021:E2023)","v":0}]
[]
[null,"Check Securities Allocated by Levels 1-3",null,null,{"$f":"F212+F620+F986+G1094+F1230+E1338+G1446+G1554","v":0}]
[]
[null,"Difference",null,null,{"$f":"ROUND(E2025-E2027,0)","v":0},{"$f":"IF(E2029=0,\"TRUE\",\"FALSE\")","v":"TRUE"}]
[]
[null,"EFFECTIVE DURATION",null,null,{"$f":"Import!I34528","v":0}]
[]
[null,"EFFECTIVE CONVEXITY",null,null,{"$f":"Import!I34529","v":0}]
[]
[null,"Fair Values",{"$f":"YEAR(C3)","v":2023}]
[null,null,null,null,null,null,null,null,"If Other Rating Agency is used, specify the name of such agency (if applicable)",{"$f":"Import!I34530","v":0},{"$f":"Import!I34531","v":0},{"$f":"Import!I34532","v":0},{"$f":"Import!I34533","v":0}]
[null,"Asset/Rating Category","BSCR Rating","Moody's Investor's Service","Standard and Poor's","Dominion Bond Rating Service","Kroll Bond Rating Agency","Egan Jones Rating Company","Japan Credit Rating Agency","BMA-approved Internal Ratings","Other BMA-approved Rating Agency 1","Other BMA-approved Rating Agency 2","Other BMA-approved Rating Agency 3","Total"]
[null,"Financial institutions, brokers and dealers",1,{"$f":"Import!I34534","v":0},{"$f":"Import!I34575","v":0},{"$f":"Import!I34616","v":0},{"$f":"Import!I34657","v":0},{"$f":"Import!I34698","v":0},{"$f":"Import!I34739","v":0},{"$f":"Import!I34780","v":0},{"$f":"Import!I34821","v":0},{"$f":"Import!I34862","v":0},{"$f":"Import!I34903","v":0},{"$f":"SUM(D2038:M2038)","v":0}]
[null,"Financial institutions, brokers and dealers",2,{"$f":"Import!I34535","v":0},{"$f":"Import!I34576","v":0},{"$f":"Import!I34617","v":0},{"$f":"Import!I34658","v":0},{"$f":"Import!I34699","v":0},{"$f":"Import!I34740","v":0},{"$f":"Import!I34781","v":0},{"$f":"Import!I34822","v":0},{"$f":"Import!I34863","v":0},{"$f":"Import!I34904","v":0},{"$f":"SUM(D2039:M2039)","v":0}]
[null,"Financial institutions, brokers and dealers",3,{"$f":"Import!I34536","v":0},{"$f":"Import!I34577","v":0},{"$f":"Import!I34618","v":0},{"$f":"Import!I34659","v":0},{"$f":"Import!I34700","v":0},{"$f":"Import!I34741","v":0},{"$f":"Import!I34782","v":0},{"$f":"Import!I34823","v":0},{"$f":"Import!I34864","v":0},{"$f":"Import!I34905","v":0},0]
[null,"Financial institutions, brokers and dealers",4,{"$f":"Import!I34537","v":0},{"$f":"Import!I34578","v":0},{"$f":"Import!I34619","v":0},{"$f":"Import!I34660","v":0},{"$f":"Import!I34701","v":0},{"$f":"Import!I34742","v":0},{"$f":"Import!I34783","v":0},{"$f":"Import!I34824","v":0},{"$f":"Import!I34865","v":0},{"$f":"Import!I34906","v":0},0]
[null,"Financial institutions, brokers and dealers",5,{"$f":"Import!I34538","v":0},{"$f":"Import!I34579","v":0},{"$f":"Import!I34620","v":0},{"$f":"Import!I34661","v":0},{"$f":"Import!I34702","v":0},{"$f":"Import!I34743","v":0},{"$f":"Import!I34784","v":0},{"$f":"Import!I34825","v":0},{"$f":"Import!I34866","v":0},{"$f":"Import!I34907","v":0},0]
[null,"Financial institutions, brokers and dealers",6,{"$f":"Import!I34539","v":0},{"$f":"Import!I34580","v":0},{"$f":"Import!I34621","v":0},{"$f":"Import!I34662","v":0},{"$f":"Import!I34703","v":0},{"$f":"Import!I34744","v":0},{"$f":"Import!I34785","v":0},{"$f":"Import!I34826","v":0},{"$f":"Import!I34867","v":0},{"$f":"Import!I34908","v":0},0]
[null,"Financial institutions, brokers and dealers",7,{"$f":"Import!I34540","v":0},{"$f":"Import!I34581","v":0},{"$f":"Import!I34622","v":0},{"$f":"Import!I34663","v":0},{"$f":"Import!I34704","v":0},{"$f":"Import!I34745","v":0},{"$f":"Import!I34786","v":0},{"$f":"Import!I34827","v":0},{"$f":"Import!I34868","v":0},{"$f":"Import!I34909","v":0},0]
[null,"Financial institutions, brokers and dealers",8,{"$f":"Import!I34541","v":0},{"$f":"Import!I34582","v":0},{"$f":"Import!I34623","v":0},{"$f":"Import!I34664","v":0},{"$f":"Import!I34705","v":0},{"$f":"Import!I34746","v":0},{"$f":"Import!I34787","v":0},{"$f":"Import!I34828","v":0},{"$f":"Import!I34869","v":0},{"$f":"Import!I34910","v":0},0]
[null,"Insurance companies",1,{"$f":"Import!I34542","v":0},{"$f":"Import!I34583","v":0},{"$f":"Import!I34624","v":0},{"$f":"Import!I34665","v":0},{"$f":"Import!I34706","v":0},{"$f":"Import!I34747","v":0},{"$f":"Import!I34788","v":0},{"$f":"Import!I34829","v":0},{"$f":"Import!I34870","v":0},{"$f":"Import!I34911","v":0},0]
[null,"Insurance companies",2,{"$f":"Import!I34543","v":0},{"$f":"Import!I34584","v":0},{"$f":"Import!I34625","v":0},{"$f":"Import!I34666","v":0},{"$f":"Import!I34707","v":0},{"$f":"Import!I34748","v":0},{"$f":"Import!I34789","v":0},{"$f":"Import!I34830","v":0},{"$f":"Import!I34871","v":0},{"$f":"Import!I34912","v":0},0]
[null,"Insurance companies",3,{"$f":"Import!I34544","v":0},{"$f":"Import!I34585","v":0},{"$f":"Import!I34626","v":0},{"$f":"Import!I34667","v":0},{"$f":"Import!I34708","v":0},{"$f":"Import!I34749","v":0},{"$f":"Import!I34790","v":0},{"$f":"Import!I34831","v":0},{"$f":"Import!I34872","v":0},{"$f":"Import!I34913","v":0},0]
[null,"Insurance companies",4,{"$f":"Import!I34545","v":0},{"$f":"Import!I34586","v":0},{"$f":"Import!I34627","v":0},{"$f":"Import!I34668","v":0},{"$f":"Import!I34709","v":0},{"$f":"Import!I34750","v":0},{"$f":"Import!I34791","v":0},{"$f":"Import!I34832","v":0},{"$f":"Import!I34873","v":0},{"$f":"Import!I34914","v":0},0]
[null,"Insurance companies",5,{"$f":"Import!I34546","v":0},{"$f":"Import!I34587","v":0},{"$f":"Import!I34628","v":0},{"$f":"Import!I34669","v":0},{"$f":"Import!I34710","v":0},{"$f":"Import!I34751","v":0},{"$f":"Import!I34792","v":0},{"$f":"Import!I34833","v":0},{"$f":"Import!I34874","v":0},{"$f":"Import!I34915","v":0},0]
[null,"Insurance companies",6,{"$f":"Import!I34547","v":0},{"$f":"Import!I34588","v":0},{"$f":"Import!I34629","v":0},{"$f":"Import!I34670","v":0},{"$f":"Import!I34711","v":0},{"$f":"Import!I34752","v":0},{"$f":"Import!I34793","v":0},{"$f":"Import!I34834","v":0},{"$f":"Import!I34875","v":0},{"$f":"Import!I34916","v":0},0]
[null,"Insurance companies",7,{"$f":"Import!I34548","v":0},{"$f":"Import!I34589","v":0},{"$f":"Import!I34630","v":0},{"$f":"Import!I34671","v":0},{"$f":"Import!I34712","v":0},{"$f":"Import!I34753","v":0},{"$f":"Import!I34794","v":0},{"$f":"Import!I34835","v":0},{"$f":"Import!I34876","v":0},{"$f":"Import!I34917","v":0},0]
[null,"Insurance companies",8,{"$f":"Import!I34549","v":0},{"$f":"Import!I34590","v":0},{"$f":"Import!I34631","v":0},{"$f":"Import!I34672","v":0},{"$f":"Import!I34713","v":0},{"$f":"Import!I34754","v":0},{"$f":"Import!I34795","v":0},{"$f":"Import!I34836","v":0},{"$f":"Import!I34877","v":0},{"$f":"Import!I34918","v":0},0]
[null,"Corporate issuers",1,{"$f":"Import!I34550","v":0},{"$f":"Import!I34591","v":0},{"$f":"Import!I34632","v":0},{"$f":"Import!I34673","v":0},{"$f":"Import!I34714","v":0},{"$f":"Import!I34755","v":0},{"$f":"Import!I34796","v":0},{"$f":"Import!I34837","v":0},{"$f":"Import!I34878","v":0},{"$f":"Import!I34919","v":0},0]
[null,"Corporate issuers",2,{"$f":"Import!I34551","v":0},{"$f":"Import!I34592","v":0},{"$f":"Import!I34633","v":0},{"$f":"Import!I34674","v":0},{"$f":"Import!I34715","v":0},{"$f":"Import!I34756","v":0},{"$f":"Import!I34797","v":0},{"$f":"Import!I34838","v":0},{"$f":"Import!I34879","v":0},{"$f":"Import!I34920","v":0},0]
[null,"Corporate issuers",3,{"$f":"Import!I34552","v":0},{"$f":"Import!I34593","v":0},{"$f":"Import!I34634","v":0},{"$f":"Import!I34675","v":0},{"$f":"Import!I34716","v":0},{"$f":"Import!I34757","v":0},{"$f":"Import!I34798","v":0},{"$f":"Import!I34839","v":0},{"$f":"Import!I34880","v":0},{"$f":"Import!I34921","v":0},0]
[null,"Corporate issuers",4,{"$f":"Import!I34553","v":0},{"$f":"Import!I34594","v":0},{"$f":"Import!I34635","v":0},{"$f":"Import!I34676","v":0},{"$f":"Import!I34717","v":0},{"$f":"Import!I34758","v":0},{"$f":"Import!I34799","v":0},{"$f":"Import!I34840","v":0},{"$f":"Import!I34881","v":0},{"$f":"Import!I34922","v":0},0]
[null,"Corporate issuers",5,{"$f":"Import!I34554","v":0},{"$f":"Import!I34595","v":0},{"$f":"Import!I34636","v":0},{"$f":"Import!I34677","v":0},{"$f":"Import!I34718","v":0},{"$f":"Import!I34759","v":0},{"$f":"Import!I34800","v":0},{"$f":"Import!I34841","v":0},{"$f":"Import!I34882","v":0},{"$f":"Import!I34923","v":0},0]
[null,"Corporate issuers",6,{"$f":"Import!I34555","v":0},{"$f":"Import!I34596","v":0},{"$f":"Import!I34637","v":0},{"$f":"Import!I34678","v":0},{"$f":"Import!I34719","v":0},{"$f":"Import!I34760","v":0},{"$f":"Import!I34801","v":0},{"$f":"Import!I34842","v":0},{"$f":"Import!I34883","v":0},{"$f":"Import!I34924","v":0},0]
[null,"Corporate issuers",7,{"$f":"Import!I34556","v":0},{"$f":"Import!I34597","v":0},{"$f":"Import!I34638","v":0},{"$f":"Import!I34679","v":0},{"$f":"Import!I34720","v":0},{"$f":"Import!I34761","v":0},{"$f":"Import!I34802","v":0},{"$f":"Import!I34843","v":0},{"$f":"Import!I34884","v":0},{"$f":"Import!I34925","v":0},0]
[null,"Corporate issuers",8,{"$f":"Import!I34557","v":0},{"$f":"Import!I34598","v":0},{"$f":"Import!I34639","v":0},{"$f":"Import!I34680","v":0},{"$f":"Import!I34721","v":0},{"$f":"Import!I34762","v":0},{"$f":"Import!I34803","v":0},{"$f":"Import!I34844","v":0},{"$f":"Import!I34885","v":0},{"$f":"Import!I34926","v":0},0]
[null,"Issuers of asset-backed securities",1,{"$f":"Import!I34558","v":0},{"$f":"Import!I34599","v":0},{"$f":"Import!I34640","v":0},{"$f":"Import!I34681","v":0},{"$f":"Import!I34722","v":0},{"$f":"Import!I34763","v":0},{"$f":"Import!I34804","v":0},{"$f":"Import!I34845","v":0},{"$f":"Import!I34886","v":0},{"$f":"Import!I34927","v":0},0]
[null,"Issuers of asset-backed securities",2,{"$f":"Import!I34559","v":0},{"$f":"Import!I34600","v":0},{"$f":"Import!I34641","v":0},{"$f":"Import!I34682","v":0},{"$f":"Import!I34723","v":0},{"$f":"Import!I34764","v":0},{"$f":"Import!I34805","v":0},{"$f":"Import!I34846","v":0},{"$f":"Import!I34887","v":0},{"$f":"Import!I34928","v":0},0]
[null,"Issuers of asset-backed securities",3,{"$f":"Import!I34560","v":0},{"$f":"Import!I34601","v":0},{"$f":"Import!I34642","v":0},{"$f":"Import!I34683","v":0},{"$f":"Import!I34724","v":0},{"$f":"Import!I34765","v":0},{"$f":"Import!I34806","v":0},{"$f":"Import!I34847","v":0},{"$f":"Import!I34888","v":0},{"$f":"Import!I34929","v":0},0]
[null,"Issuers of asset-backed securities",4,{"$f":"Import!I34561","v":0},{"$f":"Import!I34602","v":0},{"$f":"Import!I34643","v":0},{"$f":"Import!I34684","v":0},{"$f":"Import!I34725","v":0},{"$f":"Import!I34766","v":0},{"$f":"Import!I34807","v":0},{"$f":"Import!I34848","v":0},{"$f":"Import!I34889","v":0},{"$f":"Import!I34930","v":0},0]
[null,"Issuers of asset-backed securities",5,{"$f":"Import!I34562","v":0},{"$f":"Import!I34603","v":0},{"$f":"Import!I34644","v":0},{"$f":"Import!I34685","v":0},{"$f":"Import!I34726","v":0},{"$f":"Import!I34767","v":0},{"$f":"Import!I34808","v":0},{"$f":"Import!I34849","v":0},{"$f":"Import!I34890","v":0},{"$f":"Import!I34931","v":0},0]
[null,"Issuers of asset-backed securities",6,{"$f":"Import!I34563","v":0},{"$f":"Import!I34604","v":0},{"$f":"Import!I34645","v":0},{"$f":"Import!I34686","v":0},{"$f":"Import!I34727","v":0},{"$f":"Import!I34768","v":0},{"$f":"Import!I34809","v":0},{"$f":"Import!I34850","v":0},{"$f":"Import!I34891","v":0},{"$f":"Import!I34932","v":0},0]
[null,"Issuers of asset-backed securities",7,{"$f":"Import!I34564","v":0},{"$f":"Import!I34605","v":0},{"$f":"Import!I34646","v":0},{"$f":"Import!I34687","v":0},{"$f":"Import!I34728","v":0},{"$f":"Import!I34769","v":0},{"$f":"Import!I34810","v":0},{"$f":"Import!I34851","v":0},{"$f":"Import!I34892","v":0},{"$f":"Import!I34933","v":0},0]
[null,"Issuers of asset-backed securities",8,{"$f":"Import!I34565","v":0},{"$f":"Import!I34606","v":0},{"$f":"Import!I34647","v":0},{"$f":"Import!I34688","v":0},{"$f":"Import!I34729","v":0},{"$f":"Import!I34770","v":0},{"$f":"Import!I34811","v":0},{"$f":"Import!I34852","v":0},{"$f":"Import!I34893","v":0},{"$f":"Import!I34934","v":0},0]
[null,"Government securities, municipal securities, foreign government securities",0,{"$f":"Import!I34566","v":0},{"$f":"Import!I34607","v":0},{"$f":"Import!I34648","v":0},{"$f":"Import!I34689","v":0},{"$f":"Import!I34730","v":0},{"$f":"Import!I34771","v":0},{"$f":"Import!I34812","v":0},{"$f":"Import!I34853","v":0},{"$f":"Import!I34894","v":0},{"$f":"Import!I34935","v":0},0]
[null,"Government securities, municipal securities, foreign government securities",1,{"$f":"Import!I34567","v":0},{"$f":"Import!I34608","v":0},{"$f":"Import!I34649","v":0},{"$f":"Import!I34690","v":0},{"$f":"Import!I34731","v":0},{"$f":"Import!I34772","v":0},{"$f":"Import!I34813","v":0},{"$f":"Import!I34854","v":0},{"$f":"Import!I34895","v":0},{"$f":"Import!I34936","v":0},0]
[null,"Government securities, municipal securities, foreign government securities",2,{"$f":"Import!I34568","v":0},{"$f":"Import!I34609","v":0},{"$f":"Import!I34650","v":0},{"$f":"Import!I34691","v":0},{"$f":"Import!I34732","v":0},{"$f":"Import!I34773","v":0},{"$f":"Import!I34814","v":0},{"$f":"Import!I34855","v":0},{"$f":"Import!I34896","v":0},{"$f":"Import!I34937","v":0},0]
[null,"Government securities, municipal securities, foreign government securities",3,{"$f":"Import!I34569","v":0},{"$f":"Import!I34610","v":0},{"$f":"Import!I34651","v":0},{"$f":"Import!I34692","v":0},{"$f":"Import!I34733","v":0},{"$f":"Import!I34774","v":0},{"$f":"Import!I34815","v":0},{"$f":"Import!I34856","v":0},{"$f":"Import!I34897","v":0},{"$f":"Import!I34938","v":0},0]
[null,"Government securities, municipal securities, foreign government securities",4,{"$f":"Import!I34570","v":0},{"$f":"Import!I34611","v":0},{"$f":"Import!I34652","v":0},{"$f":"Import!I34693","v":0},{"$f":"Import!I34734","v":0},{"$f":"Import!I34775","v":0},{"$f":"Import!I34816","v":0},{"$f":"Import!I34857","v":0},{"$f":"Import!I34898","v":0},{"$f":"Import!I34939","v":0},0]
[null,"Government securities, municipal securities, foreign government securities",5,{"$f":"Import!I34571","v":0},{"$f":"Import!I34612","v":0},{"$f":"Import!I34653","v":0},{"$f":"Import!I34694","v":0},{"$f":"Import!I34735","v":0},{"$f":"Import!I34776","v":0},{"$f":"Import!I34817","v":0},{"$f":"Import!I34858","v":0},{"$f":"Import!I34899","v":0},{"$f":"Import!I34940","v":0},0]
[null,"Government securities, municipal securities, foreign government securities",6,{"$f":"Import!I34572","v":0},{"$f":"Import!I34613","v":0},{"$f":"Import!I34654","v":0},{"$f":"Import!I34695","v":0},{"$f":"Import!I34736","v":0},{"$f":"Import!I34777","v":0},{"$f":"Import!I34818","v":0},{"$f":"Import!I34859","v":0},{"$f":"Import!I34900","v":0},{"$f":"Import!I34941","v":0},0]
[null,"Government securities, municipal securities, foreign government securities",7,{"$f":"Import!I34573","v":0},{"$f":"Import!I34614","v":0},{"$f":"Import!I34655","v":0},{"$f":"Import!I34696","v":0},{"$f":"Import!I34737","v":0},{"$f":"Import!I34778","v":0},{"$f":"Import!I34819","v":0},{"$f":"Import!I34860","v":0},{"$f":"Import!I34901","v":0},{"$f":"Import!I34942","v":0},0]
[null,"Government securities, municipal securities, foreign government securities",8,{"$f":"Import!I34574","v":0},{"$f":"Import!I34615","v":0},{"$f":"Import!I34656","v":0},{"$f":"Import!I34697","v":0},{"$f":"Import!I34738","v":0},{"$f":"Import!I34779","v":0},{"$f":"Import!I34820","v":0},{"$f":"Import!I34861","v":0},{"$f":"Import!I34902","v":0},{"$f":"Import!I34943","v":0},0]
[null,null,null,null,null,null,null,null,null,null,null,null,"Total",{"$f":"SUM(N2038:N2078)","v":0}]
[]
[null,"Total rated assets","BSCR Rating","Moody's Investor's Service","Standard and Poor's","Dominion Bond Rating Service","Kroll Bond Rating Agency","Egan Jones Rating Company","Japan Credit Rating Agency","BMA-approved Internal Ratings","Other BMA-approved Rating Agency 1","Other BMA-approved Rating Agency 2","Other BMA-approved Rating Agency 3","Total"]
[null,"Total rated assets",0,{"$f":"D2070","v":0},{"$f":"E2070","v":0},0,0,0,0,0,0,0,0,{"$f":"SUM(D2082:M2082)","v":0}]
[null,"Total rated assets",1,{"$f":"D2038+D2046+D2054+D2062+D2071","v":0},{"$f":"E2038+E2046+E2054+E2062+E2071","v":0},0,0,0,0,0,0,0,0,{"$f":"SUM(D2083:M2083)","v":0}]
[null,"Total rated assets",2,{"$f":"D2039+D2047+D2055+D2063+D2072","v":0},0,0,0,0,0,0,0,0,0,0]
[null,"Total rated assets",3,0,0,0,0,0,0,0,0,0,0,0]
[null,"Total rated assets",4,0,0,0,0,0,0,0,0,0,0,0]
[null,"Total rated assets",5,0,0,0,0,0,0,0,0,0,0,0]
[null,"Total rated assets",6,0,0,0,0,0,0,0,0,0,0,0]
[null,"Total rated assets",7,0,0,0,0,0,0,0,0,0,0,0]
[null,"Total rated assets",8,0,0,0,0,0,0,0,0,0,0,0]
[null,"Total rated assets","Total",{"$f":"SUM(D2082:D2090)","v":0},{"$f":"SUM(E2082:E2090)","v":0},0,0,0,0,0,0,0,0,0]
[]
[null,"Asset/Rating Category","BSCR Rating","Unrated"]
[null,"Financial institutions, brokers and dealers",8,{"$f":"Import!I34944","v":0}]
[null,"Insurance companies",8,{"$f":"Import!I34945","v":0}]
[null,"Corporate issuers",8,{"$f":"Import!I34946","v":0}]
[null,"Issuers of asset-backed securities",8,{"$f":"Import!I34947","v":0}]
[null,"Government securities, municipal securities, foreign government securities",8,{"$f":"Import!I34948","v":0}]
[null,"Total unrated assets","Total",{"$f":"SUM(D2094:D2098)","v":0}]
[]
[null,"Asset/Rating Category","BSCR Rating","Financial institutions, brokers and dealers","Insurance companies","Corporate issuers","Issuers of asset-backed securities","Government securities, municipal securities, foreign government securities","Total"]
[null,"Total",0,null,null,null,null,{"$f":"N2070","v":0},{"$f":"SUM(H2102)","v":0}]
[null,"Total",1,{"$f":"N2038","v":0},{"$f":"N2046","v":0},{"$f":"N2054","v":0},{"$f":"N2062","v":0},0,{"$f":"SUM(D2103:H2103)","v":0}]
[null,"Total",2,0,0,0,0,0,{"$f":"SUM(D2104:H2104)","v":0}]
[null,"Total",3,0,0,0,0,0,0]
[null,"Total",4,0,0,0,0,0,0]
[null,"Total",5,0,0,0,0,0,0]
[null,"Total",6,0,0,0,0,0,0]
[null,"Total",7,0,0,0,0,0,0]
[null,"Total",8,{"$f":"N2045+D2094","v":0},{"$f":"N2053+D2095","v":0},{"$f":"N2061+D2096","v":0},{"$f":"N2069+D2097","v":0},{"$f":"N2078+D2098","v":0},0]
[null,"Total fixed income assets","Total",{"$f":"SUM(D2103:D2110)","v":0},{"$f":"SUM(E2103:E2110)","v":0},{"$f":"SUM(F2103:F2110)","v":0},{"$f":"SUM(G2103:G2110)","v":0},{"$f":"SUM(H2102:H2110)","v":0},{"$f":"SUM(D2111:H2111)","v":0}]
[null,"Unrated","- of which unrated",{"$f":"D2094","v":0},{"$f":"D2095","v":0},{"$f":"D2096","v":0},{"$f":"D2097","v":0},{"$f":"D2098","v":0},{"$f":"SUM(D2112:H2112)","v":0}]
[]
[]
["Cash","Sovereign Bonds","RMBS - Agency","Listed Preferred Equity - Direct","Hedge Funds","Investment Income Due and Accrued","Energy","Holding Entity","Significant Influence","United States Dollars","Positive market value",null,null,null,null,"Residential Mortgages",null,"United States of America"]
["Certificates of Deposit","Municipals","RMBS - Non-agency","Listed Preferred Equity - ETF","Equity investments in Infrastructure","Accounts and Premiums Receivable","Materials","Operating Entity","Control","Euro","Negative market value",null,null,null,null,"Other Residential Loans",null,"Bermuda"]
["Short-Term Commercial Paper","Supranationals (multilateral development banks and international organizations)","CMBS","Listed Preferred Equity - Mutual Fund","Commodities - Direct","Reinsurance Balance Receivable","Industrial","Branch","Select","Afghanistan Afghanis","Select",null,null,null,null,"Commercial and Farm Mortgages",null,"United Kingdom of Great Britain and Northern Ireland"]
["Money Market Funds","Corporate bonds","CLOs","Private Preferred Equity - Direct","Commodities - ETF","Funds Held by Ceding Reinsurers","Consumer Discretionary","Select",null,"Albania Leke",null,null,null,null,null,"Other Commercial Real Estate Loans",null,"Canada"]
["Other","Private Placements","CDOs","Private Preferred Equity - Fund","Commodities - Mutual Funds","SAC - long-term business - variable annuities","Consumer Staples",null,null,"Armenia Drams",null,null,null,null,null,"Middle Market Loans"]
["Select","Other - Secured Bonds","Auto Loan ABS","Other - Listed Preferred Equity","Catastrophe Bonds","SAC - long-term business - others","Healthcare",null,null,"Netherlands Antilles Guilders",null,null,null,null,null,"Leveraged Loans",null,"Afghanistan"]
[null,"Other - Unsecured Bonds","Student Loan ABS","Other - Private Preferred Equity","Other Insurance-Linked Securities","SAC - general business","Financial",null,null,"Angola Kwanza",null,null,null,null,null,"Other Direct Private Lending",null,"Aland Islands"]
[null,"Exchange-Traded Fund - Sovereigns","Credit Card Receivable ABS","Select","Advances to Affiliates","Deposit assets","Select",null,null,"Argentina Pesos",null,null,null,null,null,"Infrastructure Loans",null,"Albania"]
[null,"Mutual Fund - Sovereigns","Other ABS",null,"Investments in Affiliates","Other Sundry Assets",null,null,null,"Australia Dollars",null,null,null,null,null,"Collateral Loans",null,"Algeria"]
[null,"Exchange-Traded Fund - Corporates","Select",null,"Other","Letter of Credit, Guarantees and Other Instruments",null,null,null,"Aruba Guilders",null,null,null,null,null,"Equity Release / Reverse Mortgages",null,"American Samoa"]
[null,"Mutual Fund - Corporates",null,null,"Select","Other",null,null,null,"Azerbaijan New Manats",null,null,null,null,null,"Policy Loans",null,"Andorra"]
[null,"Other Funds",null,null,null,"Select",null,null,null,"Bosnia and Herzegovina Convertible Marka",null,null,null,null,null,"Other Direct Loans",null,"Angola"]
[null,"Select",null,null,null,null,null,null,null,"Barbados Dollars",null,null,null,null,null,"Mortgage Loan Fund - Residential",null,"Anguilla"]
[null,null,null,null,null,null,null,null,null,"Bangladesh Taka",null,null,null,null,null,"Mortgage Loan Fund - Commercial",null,"Antigua and Barbuda"]
[null,null,null,null,null,null,null,null,null,"Bulgaria Leva",null,null,null,null,null,"Private Credit Fund",null,"Argentina"]
[null,null,null,null,null,null,null,null,null,"Bahrain Dinars",null,null,null,null,null,"Other Loan Fund",null,"Armenia"]
["Listed options","Equity","Hedging","Long / Receive Fixed / Sell Protection","Private Equities","Investment Income Due and Accrued","Direct Real Estate - Residential",null,null,"Burundi Francs",null,null,null,null,null,"Select",null,"Aruba"]
["Futures","Debt","Speculative","Short / Receive Floating / Buy Protection","Investment Funds","Accounts and Premiums Receivable","Direct Real Estate - Commercial",null,null,"Bermuda Dollars",null,null,null,null,null,null,null,"Australia"]
["Forwards","Interest Rate","Select","Select","Hedge Funds","Reinsurance Balance Receivable","Direct Real-Estate - Industrial",null,null,"Brunei Dollars",null,null,null,null,null,"Insured/Guaranteed Mortgages",null,"Austria"]
["Swaps","Inflation",null,null,"Private Credit Funds","SAC - long-term business - variable annuities","Direct Real Estate - Land",null,null,"Bolivia Bolivianos",null,null,null,null,null,"Other Commercial and Farm Mortgages",null,"Azerbaijan"]
["Swaptions","Credit",null,null,"Catastrophe Bonds","SAC - long-term business - others","Real Estate Funds - Residential",null,null,"Brazil Reais",null,null,null,null,null,"Other Residential Mortgages",null,"Bahamas"]
["OTC options","Currencies","Yes","Exchange-traded","Other Insurance-Linked Securities","SAC - general business","Real Estate Funds - Commercial",null,null,"Bahamas Dollars",null,null,null,null,null,"Mortgages Not In Good Standing",null,"Bahrain"]
["Other","Commodities","No","OTC – Centrally-cleared","Infrastructure Debt","Deposit assets","Real-Estate Funds - Industrial",null,null,"Bhutan Ngultrum",null,null,null,null,null,"Collateral Loans",null,"Bangladesh"]
["Select","Other","Select","OTC – Not centrally-cleared","Equity Investments in Infrastructure","Other Sundry Assets","Real Estate Funds - Land",null,null,"Botswana Pulas",null,null,null,null,null,"Middle Market Loans",null,"Barbados"]
[null,"Select",null,"Select","Other","Letter of Credit, Guarantees and Other Instruments","Direct Real Estate - Other",null,null,"Belarus Rubles",null,null,null,null,null,"Other Direct Private Lending",null,"Belarus"]
[null,null,null,null,"Select","Other","Real Estate Funds - Other",null,null,"Belize Dollars",null,null,null,null,null,"Policy Loans",null,"Belgium"]
[null,null,null,null,null,"Select","Select",null,null,"Canada Dollars",null,null,null,null,null,"Other",null,"Belize"]
[null,null,null,null,null,null,null,null,null,"Congo/Kinshasa Francs",null,null,null,null,null,"Select",null,"Benin"]
[null,null,null,null,null,null,null,null,null,"Switzerland Francs",null,null,null,null,null,null,null,"Bhutan"]
["BSCR Rating",null,"Listed Equity - Direct",null,null,null,null,null,null,"Chile Pesos",null,null,null,null,null,null,null,"Bolivia (Plurinational State of)"]
["Select",null,"Listed Equity - ETF",null,null,null,"Investment",null,null,"China Yuan Renminbi",null,null,null,null,null,null,null,"Bonaire, Sint Eustatius and Saba"]
["BSCR Rating 0",null,"Listed Equity - Mutual Fund",null,null,null,"Owner-occupied",null,null,"Colombia Pesos",null,null,null,null,null,null,null,"Bosnia and Herzegovina"]
["BSCR Rating 1",null,"Private Equity - Direct",null,null,null,"Select",null,null,"Costa Rica Colones",null,null,null,null,null,null,null,"Botswana"]
["BSCR Rating 2",null,"Private Equity - Fund",null,null,null,null,null,null,"Cuba Convertible Pesos",null,null,null,null,null,null,null,"Brazil"]
["BSCR Rating 3",null,"Other - Listed Equity",null,null,null,null,null,null,"Cuba Pesos",null,null,null,null,null,null,null,"British Virgin Islands"]
["BSCR Rating 4",null,"Other - Private Equity",null,null,null,null,null,null,"Cape Verde Escudos",null,null,null,null,null,null,null,"Brunei Darussalam"]
["BSCR Rating 5",null,"Select",null,null,null,null,null,null,"Czech Republic Koruny",null,null,null,null,null,null,null,"Bulgaria"]
["BSCR Rating 6",null,null,null,null,null,null,null,null,"Djibouti Francs",null,null,null,null,null,null,null,"Burkina Faso"]
["BSCR Rating 7",null,null,null,null,null,null,null,null,"Denmark Kroner",null,null,null,null,null,null,null,"Burundi"]
["BSCR Rating 8",null,null,null,null,null,null,null,null,"Dominican Republic Pesos",null,null,null,null,null,null,null,"Cabo Verde (Cape Verde)"]
[null,null,null,null,null,null,null,null,null,"Algeria Dinars",null,null,null,null,null,null,null,"Cambodia"]
[null,null,null,null,null,null,null,null,null,"Estonia Krooni",null,null,null,null,null,null,null,"Cameroon"]
[null,null,null,null,null,null,null,null,null,"Egypt Pounds",null,null,null,null,null,null,null,"Cayman Islands"]
[null,null,null,null,null,null,null,null,null,"Eritrea Nakfa",null,null,null,null,null,null,null,"Central African Republic"]
[null,null,null,null,null,null,null,null,null,"Ethiopia Birr",null,null,null,null,null,null,null,"Chad"]
[null,null,null,null,null,null,null,null,null,"Fiji Dollars",null,null,null,null,null,null,null,"Chile"]
[null,null,null,null,null,null,null,null,null,"Falkland Islands Pounds",null,null,null,null,null,null,null,"China"]
[null,null,null,null,null,null,null,null,null,"United Kingdom Pounds",null,null,null,null,null,null,null,"China, Hong Kong SAR"]
[null,null,null,null,null,null,null,null,null,"Georgia Lari",null,null,null,null,null,null,null,"China, Macao SAR "]
[null,null,null,null,null,null,null,null,null,"Guernsey Pounds",null,null,null,null,null,null,null,"Colombia"]
[null,null,null,null,null,null,null,null,null,"Ghana Cedis",null,null,null,null,null,null,null,"Comoros"]
[null,null,null,null,null,null,null,null,null,"Gibraltar Pounds",null,null,null,null,null,null,null,"Congo"]
[null,null,null,null,null,null,null,null,null,"Gambia Dalasi",null,null,null,null,null,null,null,"Cook Islands"]
[null,null,null,null,null,null,null,null,null,"Guinea Francs",null,null,null,null,null,null,null,"Costa Rica"]
[null,null,null,null,null,null,null,null,null,"Guatemala Quetzales",null,null,null,null,null,null,null,"Cote d' Ivoire"]
[null,null,null,null,null,null,null,null,null,"Guyana Dollars",null,null,null,null,null,null,null,"Croatia"]
[null,null,null,null,null,null,null,null,null,"Hong Kong Dollars",null,null,null,null,null,null,null,"Cuba"]
[null,null,null,null,null,null,null,null,null,"Honduras Lempiras",null,null,null,null,null,null,null,"Curacao"]
[null,null,null,null,null,null,null,null,null,"Croatia Kuna",null,null,null,null,null,null,null,"Cyprus"]
[null,null,null,null,null,null,null,null,null,"Haiti Gourdes",null,null,null,null,null,null,null,"Czech Republic"]
[null,null,null,null,null,null,null,null,null,"Hungary Forint",null,null,null,null,null,null,null,"Democratic People's Republic of Korea (North Korea)"]
[null,null,null,null,null,null,null,null,null,"Indonesia Rupiahs",null,null,null,null,null,null,null,"Democratic Republic of the Congo"]
[null,null,null,null,null,null,null,null,null,"Israel New Shekels",null,null,null,null,null,null,null,"Denmark"]
[null,null,null,null,null,null,null,null,null,"Isle of Man Pounds",null,null,null,null,null,null,null,"Djibouti"]
[null,null,null,null,null,null,null,null,null,"India Rupees",null,null,null,null,null,null,null,"Dominica"]
[null,null,null,null,null,null,null,null,null,"Iraq Dinars",null,null,null,null,null,null,null,"Dominican Republic"]
[null,null,null,null,null,null,null,null,null,"Iran Rials",null,null,null,null,null,null,null,"Ecuador"]
[null,null,null,null,null,null,null,null,null,"Iceland Kronur",null,null,null,null,null,null,null,"Egypt"]
[null,null,null,null,null,null,null,null,null,"Jersey Pounds",null,null,null,null,null,null,null,"El Salvador"]
[null,null,null,null,null,null,null,null,null,"Jamaica Dollars",null,null,null,null,null,null,null,"Equatorial Guinea"]
[null,null,null,null,null,null,null,null,null,"Jordan Dinars",null,null,null,null,null,null,null,"Eritrea"]
[null,null,null,null,null,null,null,null,null,"Japan Yen",null,null,null,null,null,null,null,"Estonia"]
[null,null,null,null,null,null,null,null,null,"Kenya Shillings",null,null,null,null,null,null,null,"Eswatini (Kingdom of Swaziland)"]
[null,null,null,null,null,null,null,null,null,"Kyrgyzstan Soms",null,null,null,null,null,null,null,"Ethiopia"]
[null,null,null,null,null,null,null,null,null,"Cambodia Riels",null,null,null,null,null,null,null,"Falkland Islands"]
[null,null,null,null,null,null,null,null,null,"Comoros Francs",null,null,null,null,null,null,null,"Faroe Islands"]
[null,null,null,null,null,null,null,null,null,"North Korea Won",null,null,null,null,null,null,null,"Fiji"]
[null,null,null,null,null,null,null,null,null,"South Korea Won",null,null,null,null,null,null,null,"Finland"]
[null,null,null,null,null,null,null,null,null,"Kuwait Dinars",null,null,null,null,null,null,null,"France"]
[null,null,null,null,null,null,null,null,null,"Cayman Islands Dollars",null,null,null,null,null,null,null,"French Guiana"]
[null,null,null,null,null,null,null,null,null,"Kazakhstan Tenge",null,null,null,null,null,null,null,"French Polynesia"]
[null,null,null,null,null,null,null,null,null,"Laos Kips",null,null,null,null,null,null,null,"Gabon"]
[null,null,null,null,null,null,null,null,null,"Lebanon Pounds",null,null,null,null,null,null,null,"Gambia (Republic of The)"]
[null,null,null,null,null,null,null,null,null,"Sri Lanka Rupees",null,null,null,null,null,null,null,"Georgia"]
[null,null,null,null,null,null,null,null,null,"Liberia Dollars",null,null,null,null,null,null,null,"Germany"]
[null,null,null,null,null,null,null,null,null,"Lesotho Maloti",null,null,null,null,null,null,null,"Ghana"]
[null,null,null,null,null,null,null,null,null,"Lithuania Litai",null,null,null,null,null,null,null,"Gibraltar"]
[null,null,null,null,null,null,null,null,null,"Latvia Lati",null,null,null,null,null,null,null,"Greece"]
[null,null,null,null,null,null,null,null,null,"Libya Dinars",null,null,null,null,null,null,null,"Greenland"]
[null,null,null,null,null,null,null,null,null,"Morocco Dirhams",null,null,null,null,null,null,null,"Grenada"]
[null,null,null,null,null,null,null,null,null,"Moldova Lei",null,null,null,null,null,null,null,"Guadeloupe"]
[null,null,null,null,null,null,null,null,null,"Madagascar Ariary",null,null,null,null,null,null,null,"Guam"]
[null,null,null,null,null,null,null,null,null,"Macedonia Denars",null,null,null,null,null,null,null,"Guatemala"]
[null,null,null,null,null,null,null,null,null,"Myanmar Kyats",null,null,null,null,null,null,null,"Guernsey"]
[null,null,null,null,null,null,null,null,null,"Mongolia Tugriks",null,null,null,null,null,null,null,"Guinea"]
[null,null,null,null,null,null,null,null,null,"Macau Patacas",null,null,null,null,null,null,null,"Guinea-Bissau"]
[null,null,null,null,null,null,null,null,null,"Mauritania Ouguiyas",null,null,null,null,null,null,null,"Guyana"]
[null,null,null,null,null,null,null,null,null,"Mauritius Rupees",null,null,null,null,null,null,null,"Haiti"]
[null,null,null,null,null,null,null,null,null,"Maldives Rufiyaa",null,null,null,null,null,null,null,"Holy See"]
[null,null,null,null,null,null,null,null,null,"Malawi Kwachas",null,null,null,null,null,null,null,"Honduras"]
[null,null,null,null,null,null,null,null,null,"Mexico Pesos",null,null,null,null,null,null,null,"Hungary"]
[null,null,null,null,null,null,null,null,null,"Malaysia Ringgits",null,null,null,null,null,null,null,"Iceland"]
[null,null,null,null,null,null,null,null,null,"Mozambique Meticais",null,null,null,null,null,null,null,"India"]
[null,null,null,null,null,null,null,null,null,"Namibia Dollars",null,null,null,null,null,null,null,"Indonesia"]
[null,null,null,null,null,null,null,null,null,"Nigeria Nairas",null,null,null,null,null,null,null,"Iran (Islamic Republic of)"]
[null,null,null,null,null,null,null,null,null,"Nicaragua Cordobas",null,null,null,null,null,null,null,"Iraq"]
[null,null,null,null,null,null,null,null,null,"Norway Kroner",null,null,null,null,null,null,null,"Ireland"]
[null,null,null,null,null,null,null,null,null,"Nepal Rupees",null,null,null,null,null,null,null,"Isle of Man"]
[null,null,null,null,null,null,null,null,null,"New Zealand Dollars",null,null,null,null,null,null,null,"Israel"]
[null,null,null,null,null,null,null,null,null,"Oman Rials",null,null,null,null,null,null,null,"Italy"]
[null,null,null,null,null,null,null,null,null,"Panama Balboas",null,null,null,null,null,null,null,"Jamaica"]
[null,null,null,null,null,null,null,null,null,"Peru Nuevos Soles",null,null,null,null,null,null,null,"Japan"]
[null,null,null,null,null,null,null,null,null,"Papua New Guinea Kina",null,null,null,null,null,null,null,"Jersey"]
[null,null,null,null,null,null,null,null,null,"Philippines Pesos",null,null,null,null,null,null,null,"Jordan"]
[null,null,null,null,null,null,null,null,null,"Pakistan Rupees",null,null,null,null,null,null,null,"Kazakhstan"]
[null,null,null,null,null,null,null,null,null,"Poland Zlotych",null,null,null,null,null,null,null,"Kenya"]
[null,null,null,null,null,null,null,null,null,"Paraguay Guarani",null,null,null,null,null,null,null,"Kiribati"]
[null,null,null,null,null,null,null,null,null,"Qatar Riyals",null,null,null,null,null,null,null,"Kuwait"]
[null,null,null,null,null,null,null,null,null,"Romania New Lei",null,null,null,null,null,null,null,"Kyrgyzstan"]
[null,null,null,null,null,null,null,null,null,"Serbia Dinars",null,null,null,null,null,null,null,"Lao People's Democratic Republic"]
[null,null,null,null,null,null,null,null,null,"Russia Rubles",null,null,null,null,null,null,null,"Latvia"]
[null,null,null,null,null,null,null,null,null,"Rwanda Francs",null,null,null,null,null,null,null,"Lebanon"]
[null,null,null,null,null,null,null,null,null,"Saudi Arabia Riyals",null,null,null,null,null,null,null,"Lesotho"]
[null,null,null,null,null,null,null,null,null,"Solomon Islands Dollars",null,null,null,null,null,null,null,"Liberia"]
[null,null,null,null,null,null,null,null,null,"Seychelles Rupees",null,null,null,null,null,null,null,"Libya"]
[null,null,null,null,null,null,null,null,null,"Sudan Pounds",null,null,null,null,null,null,null,"Liechtenstein"]
[null,null,null,null,null,null,null,null,null,"Sweden Kronor",null,null,null,null,null,null,null,"Lithuania"]
[null,null,null,null,null,null,null,null,null,"Singapore Dollars",null,null,null,null,null,null,null,"Luxembourg"]
[null,null,null,null,null,null,null,null,null,"Saint Helena Pounds",null,null,null,null,null,null,null,"Madagascar"]
[null,null,null,null,null,null,null,null,null,"Slovakia Koruny",null,null,null,null,null,null,null,"Malawi"]
[null,null,null,null,null,null,null,null,null,"Sierra Leone Leones",null,null,null,null,null,null,null,"Malaysia"]
[null,null,null,null,null,null,null,null,null,"Somalia Shillings",null,null,null,null,null,null,null,"Maldives"]
[null,null,null,null,null,null,null,null,null,"Seborga Luigini",null,null,null,null,null,null,null,"Mali"]
[null,null,null,null,null,null,null,null,null,"Suriname Dollars",null,null,null,null,null,null,null,"Malta"]
[null,null,null,null,null,null,null,null,null,"São Tome and Principe Dobras",null,null,null,null,null,null,null,"Marshall Islands"]
[null,null,null,null,null,null,null,null,null,"El Salvador Colones",null,null,null,null,null,null,null,"Martinique"]
[null,null,null,null,null,null,null,null,null,"Syria Pounds",null,null,null,null,null,null,null,"Mauritania"]
[null,null,null,null,null,null,null,null,null,"Swaziland Emalangeni",null,null,null,null,null,null,null,"Mauritius"]
[null,null,null,null,null,null,null,null,null,"Thailand Baht",null,null,null,null,null,null,null,"Mayotte"]
[null,null,null,null,null,null,null,null,null,"Tajikistan Somoni",null,null,null,null,null,null,null,"Mexico"]
[null,null,null,null,null,null,null,null,null,"Turkmenistan Manats",null,null,null,null,null,null,null,"Micronesia (Federated States of)"]
[null,null,null,null,null,null,null,null,null,"Tunisia Dinars",null,null,null,null,null,null,null,"Monaco"]
[null,null,null,null,null,null,null,null,null,"Tonga Pa'anga",null,null,null,null,null,null,null,"Mongolia"]
[null,null,null,null,null,null,null,null,null,"Turkey New Lira",null,null,null,null,null,null,null,"Montenegro"]
[null,null,null,null,null,null,null,null,null,"Trinidad and Tobago Dollars",null,null,null,null,null,null,null,"Montserrat"]
[null,null,null,null,null,null,null,null,null,"Tuvalu Dollars",null,null,null,null,null,null,null,"Morocco"]
[null,null,null,null,null,null,null,null,null,"Taiwan New Dollars",null,null,null,null,null,null,null,"Mozambique"]
[null,null,null,null,null,null,null,null,null,"Tanzania Shillings",null,null,null,null,null,null,null,"Myanmar"]
[null,null,null,null,null,null,null,null,null,"Ukraine Hryvnia",null,null,null,null,null,null,null,"Namibia"]
[null,null,null,null,null,null,null,null,null,"Uganda Shillings",null,null,null,null,null,null,null,"Nauru"]
[null,null,null,null,null,null,null,null,null,"Uruguay Pesos",null,null,null,null,null,null,null,"Nepal"]
[null,null,null,null,null,null,null,null,null,"Uzbekistan Sums",null,null,null,null,null,null,null,"Netherlands"]
[null,null,null,null,null,null,null,null,null,"Venezuela Bolivares",null,null,null,null,null,null,null,"New Caledonia"]
[null,null,null,null,null,null,null,null,null,"Venezuela Bolivares Fuertes",null,null,null,null,null,null,null,"New Zealand"]
[null,null,null,null,null,null,null,null,null,"Vietnam Dong",null,null,null,null,null,null,null,"Nicaragua"]
[null,null,null,null,null,null,null,null,null,"Vanuatu Vatu",null,null,null,null,null,null,null,"Niger"]
[null,null,null,null,null,null,null,null,null,"Samoa Tala",null,null,null,null,null,null,null,"Nigeria"]
[null,null,null,null,null,null,null,null,null,"Communauté Financière Africaine Francs BEAC",null,null,null,null,null,null,null,"Niue"]
[null,null,null,null,null,null,null,null,null,"Silver Ounces",null,null,null,null,null,null,null,"Norfolk Island"]
[null,null,null,null,null,null,null,null,null,"Gold Ounces",null,null,null,null,null,null,null,"North Macedonia"]
[null,null,null,null,null,null,null,null,null,"East Caribbean Dollars",null,null,null,null,null,null,null,"Northern Mariana Islands"]
[null,null,null,null,null,null,null,null,null,"International Monetary Fund Special Drawing Rights",null,null,null,null,null,null,null,"Norway"]
[null,null,null,null,null,null,null,null,null,"Communauté Financière Africaine Francs BCEAO",null,null,null,null,null,null,null,"Oman"]
[null,null,null,null,null,null,null,null,null,"Palladium Ounces",null,null,null,null,null,null,null,"Pakistan"]
[null,null,null,null,null,null,null,null,null,"Comptoirs Français du Pacifique Francs",null,null,null,null,null,null,null,"Palau"]
[null,null,null,null,null,null,null,null,null,"Platinum Ounces",null,null,null,null,null,null,null,"Panama"]
[null,null,null,null,null,null,null,null,null,"Yemen Rials",null,null,null,null,null,null,null,"Papua New Guinea"]
[null,null,null,null,null,null,null,null,null,"South Africa Rand",null,null,null,null,null,null,null,"Paraguay"]
[null,null,null,null,null,null,null,null,null,"Zambia Kwacha",null,null,null,null,null,null,null,"Peru"]
[null,null,null,null,null,null,null,null,null,"Zimbabwe Dollars",null,null,null,null,null,null,null,"Philippines"]
[null,null,null,null,null,null,null,null,null,null,null,null,null,null,null,null,null,"Pitcairn"]
[null,null,null,null,null,null,null,null,null,null,null,null,null,null,null,null,null,"Poland"]
[null,null,null,null,null,null,null,null,null,null,null,null,null,null,null,null,null,"Portugal"]
[null,null,null,null,null,null,null,null,null,null,null,null,null,null,null,null,null,"Puerto Rico"]
[null,null,null,null,null,null,null,null,null,null,null,null,null,null,null,null,null,"Qatar"]
[null,null,null,null,null,null,null,null,null,null,null,null,null,null,null,null,null,"Republic of Korea (South Korea)"]
[null,null,null,null,null,null,null,null,null,null,null,null,null,null,null,null,null,"Republic of Moldova"]
[null,null,null,null,null,null,null,null,null,null,null,null,null,null,null,null,null,"Reunion"]
[null,null,null,null,null,null,null,null,null,null,null,null,null,null,null,null,null,"Romania"]
[null,null,null,null,null,null,null,null,null,null,null,null,null,null,null,null,null,"Russian Federation"]
[null,null,null,null,null,null,null,null,null,null,null,null,null,null,null,null,null,"Rwanda"]
[null,null,null,null,null,null,null,null,null,null,null,null,null,null,null,null,null,"Saint Barthelemy (St. Barts)"]
[null,null,null,null,null,null,null,null,null,null,null,null,null,null,null,null,null,"Saint Helena"]
[null,null,null,null,null,null,null,null,null,null,null,null,null,null,null,null,null,"Saint Kitts and Nevis"]
[null,null,null,null,null,null,null,null,null,null,null,null,null,null,null,null,null,"Saint Lucia"]
[null,null,null,null,null,null,null,null,null,null,null,null,null,null,null,null,null,"Saint Martin"]
[null,null,null,null,null,null,null,null,null,null,null,null,null,null,null,null,null,"Saint Pierre and Miquelon"]
[null,null,null,null,null,null,null,null,null,null,null,null,null,null,null,null,null,"Saint Vincent and The Grenadines"]
[null,null,null,null,null,null,null,null,null,null,null,null,null,null,null,null,null,"Samoa"]
[null,null,null,null,null,null,null,null,null,null,null,null,null,null,null,null,null,"San Marino"]
[null,null,null,null,null,null,null,null,null,null,null,null,null,null,null,null,null,"Sao Tome and Principe"]
[null,null,null,null,null,null,null,null,null,null,null,null,null,null,null,null,null,"Sark"]
[null,null,null,null,null,null,null,null,null,null,null,null,null,null,null,null,null,"Saudi Arabia"]
[null,null,null,null,null,null,null,null,null,null,null,null,null,null,null,null,null,"Senegal"]
[null,null,null,null,null,null,null,null,null,null,null,null,null,null,null,null,null,"Serbia"]
[null,null,null,null,null,null,null,null,null,null,null,null,null,null,null,null,null,"Seychelles"]
[null,null,null,null,null,null,null,null,null,null,null,null,null,null,null,null,null,"Sierra Leone"]
[null,null,null,null,null,null,null,null,null,null,null,null,null,null,null,null,null,"Singapore"]
[null,null,null,null,null,null,null,null,null,null,null,null,null,null,null,null,null,"Sint Maarten"]
[null,null,null,null,null,null,null,null,null,null,null,null,null,null,null,null,null,"Slovakia"]
[null,null,null,null,null,null,null,null,null,null,null,null,null,null,null,null,null,"Slovenia"]
[null,null,null,null,null,null,null,null,null,null,null,null,null,null,null,null,null,"Solomon Islands"]
[null,null,null,null,null,null,null,null,null,null,null,null,null,null,null,null,null,"Somalia"]
[null,null,null,null,null,null,null,null,null,null,null,null,null,null,null,null,null,"South Africa"]
[null,null,null,null,null,null,null,null,null,null,null,null,null,null,null,null,null,"South Sudan"]
[null,null,null,null,null,null,null,null,null,null,null,null,null,null,null,null,null,"Spain"]
[null,null,null,null,null,null,null,null,null,null,null,null,null,null,null,null,null,"Sri Lanka"]
[null,null,null,null,null,null,null,null,null,null,null,null,null,null,null,null,null,"State of Palestine"]
[null,null,null,null,null,null,null,null,null,null,null,null,null,null,null,null,null,"Sudan"]
[null,null,null,null,null,null,null,null,null,null,null,null,null,null,null,null,null,"Suriname"]
[null,null,null,null,null,null,null,null,null,null,null,null,null,null,null,null,null,"Svalbard, Jan Mayen"]
[null,null,null,null,null,null,null,null,null,null,null,null,null,null,null,null,null,"Sweden"]
[null,null,null,null,null,null,null,null,null,null,null,null,null,null,null,null,null,"Switzerland"]
[null,null,null,null,null,null,null,null,null,null,null,null,null,null,null,null,null,"Syrian Arab Republic"]
[null,null,null,null,null,null,null,null,null,null,null,null,null,null,null,null,null,"Taiwan"]
[null,null,null,null,null,null,null,null,null,null,null,null,null,null,null,null,null,"Tajikistan"]
[null,null,null,null,null,null,null,null,null,null,null,null,null,null,null,null,null,"Thailand"]
[null,null,null,null,null,null,null,null,null,null,null,null,null,null,null,null,null,"Timor-Leste"]
[null,null,null,null,null,null,null,null,null,null,null,null,null,null,null,null,null,"Togo"]
[null,null,null,null,null,null,null,null,null,null,null,null,null,null,null,null,null,"Tokelau"]
[null,null,null,null,null,null,null,null,null,null,null,null,null,null,null,null,null,"Tonga"]
[null,null,null,null,null,null,null,null,null,null,null,null,null,null,null,null,null,"Trinidad and Tobago"]
[null,null,null,null,null,null,null,null,null,null,null,null,null,null,null,null,null,"Tunisia"]
[null,null,null,null,null,null,null,null,null,null,null,null,null,null,null,null,null,"Turkey"]
[null,null,null,null,null,null,null,null,null,null,null,null,null,null,null,null,null,"Turkmenistan"]
[null,null,null,null,null,null,null,null,null,null,null,null,null,null,null,null,null,"Turks & Caicos Islands"]
[null,null,null,null,null,null,null,null,null,null,null,null,null,null,null,null,null,"Tuvalu"]
[null,null,null,null,null,null,null,null,null,null,null,null,null,null,null,null,null,"Uganda"]
[null,null,null,null,null,null,null,null,null,null,null,null,null,null,null,null,null,"Ukraine"]
[null,null,null,null,null,null,null,null,null,null,null,null,null,null,null,null,null,"United Arab Emirates"]
[null,null,null,null,null,null,null,null,null,null,null,null,null,null,null,null,null,"United Republic of Tanzania"]
[null,null,null,null,null,null,null,null,null,null,null,null,null,null,null,null,null,"Uruguay"]
[null,null,null,null,null,null,null,null,null,null,null,null,null,null,null,null,null,"US Virgin Islands"]
[null,null,null,null,null,null,null,null,null,null,null,null,null,null,null,null,null,"Uzbekistan"]
[null,null,null,null,null,null,null,null,null,null,null,null,null,null,null,null,null,"Vanuatu"]
[null,null,null,null,null,null,null,null,null,null,null,null,null,null,null,null,null,"Venezuela, Bolivarian Republic of "]
[null,null,null,null,null,null,null,null,null,null,null,null,null,null,null,null,null,"Vietnam"]
[null,null,null,null,null,null,null,null,null,null,null,null,null,null,null,null,null,"Wallis & Futuna Islands"]
[null,null,null,null,null,null,null,null,null,null,null,null,null,null,null,null,null,"Western Sahara"]
[null,null,null,null,null,null,null,null,null,null,null,null,null,null,null,null,null,"Yemen"]
[null,null,null,null,null,null,null,null,null,null,null,null,null,null,null,null,null,"Zambia"]
[null,null,null,null,null,null,null,null,null,null,null,null,null,null,null,null,null,"Zimbabwe"]
[null,null,null,null,null,null,null,null,null,null,null,null,null,null,null,null,null,"Select"]

{"sheet":"Schedule VI PY","index":56,"n_rows":38,"n_cols":17,"rows_kept":38,"cut":false,"hidden":true,"merged":[]}
[null,null,"SCHEDULE OF FIXED INCOME SECURITIES",null,null,null,null,null,null,null,null,null,null,null,null,null,{"$f":"HYPERLINK(\"#'Index'!A1\",\"Return to Index\")","v":"Return to Index"}]
[null,null,{"$f":"'Group Information'!C9","v":"Enter Parent Company Name"}]
[null,null,{"$f":"'Form 1EBS'!C3","v":"2023-12-31"}]
[null,null,{"$f":"'Form 1EBS'!C4","v":" ['000s]United States Dollars"},null,null,null,null,null,null,null,null,null,null,null,null,null,"SCHEDULE VI"]
[]
[null,null,"Security Type",null,"Amount per Form 1, Lines 2(b) and 3(b)",null,"Face Value",null,"Fair Value",null,"Average YTM",null,"Average Rating",null,"Effective Duration",null,"Effective convexity"]
[]
[null,1,"U.S. Government "]
[null,null,"(a) U.S. Government Federal"]
[null,null,"(b) U.S. Government Agency - mortgage-backed securities"]
[null,null,"(c) U.S. Government Agency - other"]
[null,2,"Non-U.S. Government"]
[null,3,"States, Municipalities, and Political Subdivision"]
[null,4,"Corporate Securities"]
[null,null,"(a) U.S. Government-backed Corporate"]
[null,null,"(b) Non-U.S. Government-backed Corporate"]
[null,null,"(c) FDIC Guaranteed Corporate"]
[null,null,"(d) Other Corporate"]
[null,5,"Asset-backed Securities"]
[null,6,"Mortgage-backed Securities"]
[null,null,"(a) Residential Subprime"]
[null,null,"(b) Residential Non-subprime"]
[null,null,"(c) Commercial"]
[null,7,"Mutual Funds"]
[null,8,"Bank Loans"]
[null,9,"Catastrophe Bonds and Insurance-Linked Securities"]
[null,10,"Others (Briefly describe)"]
[null,null,"TOTAL PORTFOLIO",null,{"$f":"SUM(E8:E27)","v":0},null,{"$f":"SUM(G8:G27)","v":0},null,{"$f":"SUM(I8:I27)","v":0}]
[]
[null,null,null,null,{"$f":"IF(E31=\"TRUE\",HYPERLINK(\"#'Form 1'!F16:F29\",\"TRUE\"),HYPERLINK(\"#'Form 1'!F16:F29\",\"FALSE\"))","v":"TRUE"}]
[null,null,null,null,{"$f":"IF(ROUND((E28-('Form 1'!F16+'Form 1'!F29)),0)=0,\"TRUE\",\"FALSE\")","v":"TRUE"}]
[null,null,null,null,{"$f":"ROUND(('Form 1'!F16+'Form 1'!F29)-E28,0)","v":0}]
[]
[]
[]
[null,null,"Effective duration of the portfolio"]
[]
[null,null,"Effective convexity of the portfolio"]

{"sheet":"Schedule VI (EBS) PY","index":57,"n_rows":38,"n_cols":17,"rows_kept":38,"cut":false,"hidden":true,"merged":[]}
[null,null,"SCHEDULE OF FIXED INCOME SECURITIES",null,null,null,null,null,null,null,null,null,null,null,null,null,{"$f":"HYPERLINK(\"#'Index'!A1\",\"Return to Index\")","v":"Return to Index"}]
[null,null,{"$f":"'Group Information'!C9","v":"Enter Parent Company Name"}]
[null,null,{"$f":"'Form 1EBS'!C3","v":"2023-12-31"}]
[null,null,{"$f":"'Form 1EBS'!C4","v":" ['000s]United States Dollars"},null,null,null,null,null,null,null,null,null,null,null,null,null,"SCHEDULE VI (EBS)"]
[]
[null,null,"Security Type",null,"Amount per Form 1EBS, Lines 2(b) and 3(b)",null,"Face Value",null,"Fair Value",null,"Average YTM",null,"Average Rating",null,"Effective Duration",null,"Effective convexity"]
[]
[null,1,"U.S. Government "]
[null,null,"(a) U.S. Government Federal"]
[null,null,"(b) U.S. Government Agency - mortgage-backed securities"]
[null,null,"(c) U.S. Government Agency - other"]
[null,2,"Non-U.S. Government"]
[null,3,"States, Municipalities, and Political Subdivision"]
[null,4,"Corporate Securities"]
[null,null,"(a) U.S. Government-backed Corporate"]
[null,null,"(b) Non-U.S. Government-backed Corporate"]
[null,null,"(c) FDIC Guaranteed Corporate"]
[null,null,"(d) Other Corporate"]
[null,5,"Asset-backed Securities"]
[null,6,"Mortgage-backed Securities"]
[null,null,"(a) Residential Subprime"]
[null,null,"(b) Residential Non-subprime"]
[null,null,"(c) Commercial"]
[null,7,"Mutual Funds"]
[null,8,"Bank Loans"]
[null,9,"Catastrophe Bonds and Insurance-Linked Securities"]
[null,10,"Others (Briefly describe)"]
[null,null,"TOTAL PORTFOLIO",null,{"$f":"SUM(E8:E27)","v":0},null,{"$f":"SUM(G8:G27)","v":0},null,{"$f":"SUM(I8:I27)","v":0}]
[]
[null,null,null,null,{"$f":"IF(E31=\"TRUE\",HYPERLINK(\"#'Form 1EBS'!F14:F29\",\"TRUE\"),HYPERLINK(\"#'Form 1EBS'!F14:F29\",\"FALSE\"))","v":"TRUE"}]
[null,null,null,null,{"$f":"IF(ROUND((E28-('Form 1EBS'!F14+'Form 1EBS'!F25)),0)=0,\"TRUE\",\"FALSE\")","v":"TRUE"}]
[null,null,null,null,{"$f":"ROUND(('Form 1EBS'!F14+'Form 1EBS'!F25)-E28,0)","v":0}]
[]
[null,null,null,null,{"$f":"IF(E30=\"False\",\"Does not equal Form 1EBS Lines 2(b) & 3(b)\",\"\")","v":""}]
[]
[null,null,"Effective duration of the portfolio"]
[]
[null,null,"Effective convexity of the portfolio"]

{"sheet":"Schedule VI (New)","index":58,"n_rows":425,"n_cols":12,"rows_kept":425,"cut":false,"hidden":true,"merged":[[211,1,211,2],[5,1,5,2],[35,1,35,2],[36,1,36,2],[61,1,61,2],[91,1,91,2],[92,1,92,2],[121,1,121,2],[122,1,122,2],[151,1,151,2],[152,1,152,2],[210,1,210,2]]}
[null,"DRAFT UNCONSOLIDATED SCHEDULE OF ASSETS",null,null,null,null,null,null,{"$f":"HYPERLINK(\"#'Index'!A1\",\"Return to Index\")","v":"Return to Index"}]
[null,{"$f":"'Form 1'!$B$2","v":"Enter Parent Company Name"}]
[null,"As at",{"$f":"'Form 1'!$C$3","v":"2023-12-31"}]
[null,"expressed in ['000s]",{"$f":"'Form 1'!$C$4","v":" ['000s]United States Dollars"}]
[]
[null,"(A) CASH AND CASH EQUIVALENTS",null,"Enter # of Asset Types"]
[null,null,null,null,{"$f":"YEAR($C$3)","v":2023},{"$f":"YEAR($C$3)","v":2023}]
[null,"Asset Type","Jurisdiction","BSCR Rating ","Face Value","Fair Value"]
[1,"Select",null,"Select"]
[2,"Select",null,"Select"]
[3,"Select",null,"Select"]
[4,"Select",null,"Select"]
[5,"Select",null,"Select"]
[6,"Select",null,"Select"]
[7,"Select",null,"Select"]
[8,"Select",null,"Select"]
[9,"Select",null,"Select"]
[10,"Select",null,"Select"]
[11,"Select",null,"Select"]
[12,"Select",null,"Select"]
[13,"Select",null,"Select"]
[14,"Select",null,"Select"]
[15,"Select",null,"Select"]
[16,"Select",null,"Select"]
[17,"Select",null,"Select"]
[18,"Select",null,"Select"]
[19,"Select",null,"Select"]
[20,"Select",null,"Select"]
[]
[null,"Total Cash & Cash Equivalents",null,null,{"$f":"SUM(E9:E28)","v":0},{"$f":"SUM(F9:F28)","v":0}]
[]
[null,"Form 1 Line 1 Cash and Cash Equivalents",null,null,null,{"$f":"'Form 1'!F10","v":0}]
[]
[null,"Check Section A",null,null,null,{"$f":"ROUND((F30-F32),0)","v":0},{"$f":"IF(F34=0,\"TRUE\",\"FALSE\")","v":"TRUE"}]
[]
[null,"(B) BONDS AND DEBENTURES",null,"Enter # of Asset Types"]
[null,null,null,null,{"$f":"YEAR($C$3)","v":2023},{"$f":"YEAR($C$3)","v":2023}]
[null,"Asset Type","Jurisdiction","BSCR Rating ","Face Value","Fair Value","Average YTM","Effective Duration","Effective Convexity"]
[1,"Select",0,"Select",0,0,0,0,0]
[2,"Select",0,"Select",0,0,0,0,0]
[3,"Select",0,"Select",0,0,0,0,0]
[4,"Select",0,"Select",0,0,0,0,0]
[5,"Select",0,"Select",0,0,0,0,0]
[6,"Select",0,"Select",0,0,0,0,0]
[7,"Select",0,"Select",0,0,0,0,0]
[8,"Select",0,"Select",0,0,0,0,0]
[9,"Select",0,"Select",0,0,0,0,0]
[10,"Select",0,"Select",0,0,0,0,0]
[11,"Select",0,"Select",0,0,0,0,0]
[12,"Select",0,"Select",0,0,0,0,0]
[13,"Select",0,"Select",0,0,0,0,0]
[14,"Select",0,"Select",0,0,0,0,0]
[15,"Select",0,"Select",0,0,0,0,0]
[16,"Select",0,"Select",0,0,0,0,0]
[17,"Select",0,"Select",0,0,0,0,0]
[18,"Select",0,"Select",0,0,0,0,0]
[19,"Select",0,"Select",0,0,0,0,0]
[20,"Select",0,"Select",0,0,0,0,0]
[]
[null,"Total Bonds & Debentures",null,null,{"$f":"SUM(E39:E58)","v":0},{"$f":"SUM(F39:F58)","v":0},0,0,0]
[]
[null,"(C) SECURITIES/ASSET-BASED SECURITIES",null,"Enter # of Asset Types"]
[null,null,null,null,{"$f":"YEAR($C$3)","v":2023},{"$f":"YEAR($C$3)","v":2023}]
[null,"Asset Type","Jurisdiction","BSCR Rating ","Face Value","Fair Value","Average YTM","Effective Duration","Effective Convexity"]
[1,"Select",0,"Select",0,0,0,0,0]
[2,"Select",0,"Select",0,0,0,0,0]
[3,"Select",0,"Select",0,0,0,0,0]
[4,"Select",0,"Select",0,0,0,0,0]
[5,"Select",0,"Select",0,0,0,0,0]
[6,"Select",0,"Select",0,0,0,0,0]
[7,"Select",0,"Select",0,0,0,0,0]
[8,"Select",0,"Select",0,0,0,0,0]
[9,"Select",0,"Select",0,0,0,0,0]
[10,"Select",0,"Select",0,0,0,0,0]
[11,"Select",0,"Select",0,0,0,0,0]
[12,"Select",0,"Select",0,0,0,0,0]
[13,"Select",0,"Select",0,0,0,0,0]
[14,"Select",0,"Select",0,0,0,0,0]
[15,"Select",0,"Select",0,0,0,0,0]
[16,"Select",0,"Select",0,0,0,0,0]
[17,"Select",0,"Select",0,0,0,0,0]
[18,"Select",0,"Select",0,0,0,0,0]
[19,"Select",0,"Select",0,0,0,0,0]
[20,"Select",0,"Select",0,0,0,0,0]
[]
[null,"Total Securities/Asset-Backed Securities",null,null,{"$f":"SUM(E65:E84)","v":0},{"$f":"SUM(F65:F84)","v":0},0,0,0]
[]
[null,"Form 1 Lines 2(b) & 3(b) Bonds & Debentures",null,null,null,{"$f":"'Form 1'!F16+'Form 1'!F29","v":0}]
[]
[null,"Check Sections B & C",null,null,null,{"$f":"ROUND(((F86+F60)-F88),0)","v":0},{"$f":"IF(F90=0,\"TRUE\",\"FALSE\")","v":"TRUE"}]
[]
[null,"(D) LISTED EQUITIES AND PREFERENCE SHARES",null,"Enter # of Asset Types"]
[null,null,null,null,{"$f":"YEAR($C$3)","v":2023},{"$f":"YEAR($C$3)","v":2023}]
[null,"Asset Type","Stock Exchange","BSCR Rating ","Face Value","Fair Value"]
[1,"Select",0,"Select",0,0]
[2,"Select",0,"Select",0,0]
[3,"Select",0,"Select",0,0]
[4,"Select",0,"Select",0,0]
[5,"Select",0,"Select",0,0]
[6,"Select",0,"Select",0,0]
[7,"Select",0,"Select",0,0]
[8,"Select",0,"Select",0,0]
[9,"Select",0,"Select",0,0]
[10,"Select",0,"Select",0,0]
[11,"Select",0,"Select",0,0]
[12,"Select",0,"Select",0,0]
[13,"Select",0,"Select",0,0]
[14,"Select",0,"Select",0,0]
[15,"Select",0,"Select",0,0]
[16,"Select",0,"Select",0,0]
[17,"Select",0,"Select",0,0]
[18,"Select",0,"Select",0,0]
[19,"Select",0,"Select",0,0]
[20,"Select",0,"Select",0,0]
[]
[null,"Total Listed Equities & Preference Shares",null,null,{"$f":"SUM(E95:E114)","v":0},{"$f":"SUM(F95:F114)","v":0}]
[]
[null,"Form 1 Lines 2(d) & 3(d) Equities & Preference Shares",null,null,null,{"$f":"'Form 1'!F21+'Form 1'!F34","v":0}]
[]
[null,"Check Section D",null,null,null,{"$f":"ROUND((F116-F118),0)","v":0},{"$f":"IF(F120=0,\"TRUE\",\"FALSE\")","v":"TRUE"}]
[]
[null,"(E) ALTERNATIVE INVESTMENTS",null,"Enter # of Asset Types"]
[null,null,null,null,{"$f":"YEAR($C$3)","v":2023},{"$f":"YEAR($C$3)","v":2023}]
[null,"Asset Type","Jurisdiction","BSCR Rating ","Face Value","Fair Value","Average YTM","Effective Duration","Effective Convexity"]
[1,"Select",0,"Select",0,0,0,0,0]
[2,"Select",0,"Select",0,0,0,0,0]
[3,"Select",0,"Select",0,0,0,0,0]
[4,"Select",0,"Select",0,0,0,0,0]
[5,"Select",0,"Select",0,0,0,0,0]
[6,"Select",0,"Select",0,0,0,0,0]
[7,"Select",0,"Select",0,0,0,0,0]
[8,"Select",0,"Select",0,0,0,0,0]
[9,"Select",0,"Select",0,0,0,0,0]
[10,"Select",0,"Select",0,0,0,0,0]
[11,"Select",0,"Select",0,0,0,0,0]
[12,"Select",0,"Select",0,0,0,0,0]
[13,"Select",0,"Select",0,0,0,0,0]
[14,"Select",0,"Select",0,0,0,0,0]
[15,"Select",0,"Select",0,0,0,0,0]
[16,"Select",0,"Select",0,0,0,0,0]
[17,"Select",0,"Select",0,0,0,0,0]
[18,"Select",0,"Select",0,0,0,0,0]
[19,"Select",0,"Select",0,0,0,0,0]
[20,"Select",0,"Select",0,0,0,0,0]
[]
[null,"Total Alternative Investments",null,null,{"$f":"SUM(E125:E144)","v":0},{"$f":"SUM(F125:F144)","v":0},0,0,0]
[]
[null,"Form 1 Lines 2(e) & 3(e) Alternative Investments",null,null,null,{"$f":"'Form 1'!F22+'Form 1'!F35","v":0}]
[]
[null,"Check Section E",null,null,null,{"$f":"ROUND((F146-F148),0)","v":0},{"$f":"IF(F150=0,\"TRUE\",\"FALSE\")","v":"TRUE"}]
[]
[null,"(F) LOANS",null,"Enter # of Asset Types"]
[null,null,null,null,{"$f":"YEAR($C$3)","v":2023},{"$f":"YEAR($C$3)","v":2023}]
[null,"Asset Type","Jurisdiction","BSCR Rating ","Face Value","Fair Value","Average YTM","Effective Duration","Effective Convexity"]
[1,"Select",0,"Select",0,0,0,0,0]
[2,"Select",0,"Select",0,0,0,0,0]
[3,"Select",0,"Select",0,0,0,0,0]
[4,"Select",0,"Select",0,0,0,0,0]
[5,"Select",0,"Select",0,0,0,0,0]
[6,"Select",0,"Select",0,0,0,0,0]
[7,"Select",0,"Select",0,0,0,0,0]
[8,"Select",0,"Select",0,0,0,0,0]
[9,"Select",0,"Select",0,0,0,0,0]
[10,"Select",0,"Select",0,0,0,0,0]
[11,"Select",0,"Select",0,0,0,0,0]
[12,"Select",0,"Select",0,0,0,0,0]
[13,"Select",0,"Select",0,0,0,0,0]
[14,"Select",0,"Select",0,0,0,0,0]
[15,"Select",0,"Select",0,0,0,0,0]
[16,"Select",0,"Select",0,0,0,0,0]
[17,"Select",0,"Select",0,0,0,0,0]
[18,"Select",0,"Select",0,0,0,0,0]
[19,"Select",0,"Select",0,0,0,0,0]
[20,"Select",0,"Select",0,0,0,0,0]
[]
[null,"Total Loans",null,null,{"$f":"SUM(E155:E174)","v":0},{"$f":"SUM(F155:F174)","v":0},0,0,0]
[]
[null,"Form 1 Line 5(c) Mortgage Loans",null,null,null,{"$f":"'Form 1'!F51","v":0}]
[]
[null,"Check Section F",null,null,null,{"$f":"'Form 1'!F51","v":0},{"$f":"IF(F180=0,\"TRUE\",\"FALSE\")","v":"TRUE"}]
[]
[null,"(G) DERIVATIVES",null,"Enter # of Derivative Types"]
[null,"Derivative Type","Underlying","Purpose","Position",{"$f":"YEAR($C$3)&\" Market Value\"","v":"2023 Market Value"},"Centrally Cleared","Notional Value","Exposure (Dollar Delta, DV01, CS01"]
[1,"Select","Select","Select","Select",0,"Select",0,0]
[2,"Select","Select","Select","Select",0,"Select",0,0]
[3,"Select","Select","Select","Select",0,"Select",0,0]
[4,"Select","Select","Select","Select",0,"Select",0,0]
[5,"Select","Select","Select","Select",0,"Select",0,0]
[6,"Select","Select","Select","Select",0,"Select",0,0]
[7,"Select","Select","Select","Select",0,"Select",0,0]
[8,"Select","Select","Select","Select",0,"Select",0,0]
[9,"Select","Select","Select","Select",0,"Select",0,0]
[10,"Select","Select","Select","Select",0,"Select",0,0]
[11,"Select","Select","Select","Select",0,"Select",0,0]
[12,"Select","Select","Select","Select",0,"Select",0,0]
[13,"Select","Select","Select","Select",0,"Select",0,0]
[14,"Select","Select","Select","Select",0,"Select",0,0]
[15,"Select","Select","Select","Select",0,"Select",0,0]
[16,"Select","Select","Select","Select",0,"Select",0,0]
[17,"Select","Select","Select","Select",0,"Select",0,0]
[18,"Select","Select","Select","Select",0,"Select",0,0]
[19,"Select","Select","Select","Select",0,"Select",0,0]
[20,"Select","Select","Select","Select",0,"Select",0,0]
[]
[null,"Total Derivatives",null,null,null,{"$f":"SUM(F184:F203)","v":0},null,{"$f":"SUM(H184:H203)","v":0},{"$f":"SUM(I184:I203)","v":0}]
[]
[null,"Form 1 Line 13(a) Derivatives",null,null,null,{"$f":"'Form 1'!F80","v":0}]
[]
[null,"Check Section G",null,null,null,{"$f":"ROUND((F205-F207),0)","v":0},{"$f":"IF(F209=0,\"TRUE\",\"FALSE\")","v":"TRUE"}]
[]
[null,"(H) OTHER ASSETS",null,"Enter # of Asset Types"]
[null,null,null,null,{"$f":"YEAR($C$3)","v":2023},{"$f":"YEAR($C$3)","v":2023}]
[null,"Asset Type","Jurisdiction","BSCR Rating ","Face Value","Fair Value","Average YTM","Effective Duration","Effective Convexity"]
[1,"Select",0,"Select",0,0,0,0,0]
[2,"Select",0,"Select",0,0,0,0,0]
[3,"Select",0,"Select",0,0,0,0,0]
[4,"Select",0,"Select",0,0,0,0,0]
[5,"Select",0,"Select",0,0,0,0,0]
[6,"Select",0,"Select",0,0,0,0,0]
[7,"Select",0,"Select",0,0,0,0,0]
[8,"Select",0,"Select",0,0,0,0,0]
[9,"Select",0,"Select",0,0,0,0,0]
[10,"Select",0,"Select",0,0,0,0,0]
[11,"Select",0,"Select",0,0,0,0,0]
[12,"Select",0,"Select",0,0,0,0,0]
[13,"Select",0,"Select",0,0,0,0,0]
[14,"Select",0,"Select",0,0,0,0,0]
[15,"Select",0,"Select",0,0,0,0,0]
[16,"Select",0,"Select",0,0,0,0,0]
[17,"Select",0,"Select",0,0,0,0,0]
[18,"Select",0,"Select",0,0,0,0,0]
[19,"Select",0,"Select",0,0,0,0,0]
[20,"Select",0,"Select",0,0,0,0,0]
[]
[null,"Total Other Assets",null,null,null,{"$f":"SUM(F214:F233)","v":0},0,0,0]
[]
[null,"Form 1 Lines X(x) Other Assets",null,null,null,0]
[]
[null,"Check Section G",null,null,null,{"$f":"ROUND((F235-F237),0)","v":0},{"$f":"IF(F239=0,\"TRUE\",\"FALSE\")","v":"TRUE"}]
[]
[null,"TOTAL ASSETS",null,null,null,{"$f":"F30+F60+F116+F86+F146+F235+F205+F176","v":0}]
[]
[null,"TOTAL ASSETS (Form 1 Line 15)",null,null,null,{"$f":"F34+F90+F120+F150+F180+F209+F239","v":0}]
[]
[null,"Check Form 1",null,null,null,{"$f":"IF(F247=0,\"TRUE\",\"FALSE\")","v":"TRUE"}]
[null,null,null,null,null,{"$f":"IF(ROUND((F241-(0)),0)=0,\"TRUE\",\"FALSE\")","v":"TRUE"}]
[null,"Difference",null,null,null,{"$f":"ROUND((F243-F241),0)","v":0}]
[]
[null,"EFFECTIVE DURATION",null,null,0]
[]
[null,"EFFECTIVE CONVEXITY",null,null,0]
[]
[]
[]
["Select","Select","Select","Select","Select","Select","Select","Select","Select","Select","Select","Select"]
["Cash ","Sovereign Bonds","RMBS - Agency","Public Equities","Private Equity","Investment Income Due and Accrued","Energy","Holding Entity","Significant Influence",null,"Insured/Guaranteed Mortgages"]
["Certificates of Deposit","Municipals","RMBS - Non-agency","Public Preferred Stock","Investment Funds","Accounts and Premiums Receivable","Materials","Operating Entity","Control",null,"Other Commercial and Farm Mortgages"]
["Money Market Funds","Supranationals (multilateral development banks and international organizations)","CMBS","Exchange Traded Funds","Hedge Funds","Reinsurance Balance Receivable","Industrial","Branch",null,null,"Other Residential Mortgages"]
["Other ","Corporate bonds","CLOs","Other","Private Credit Funds","Funds Held by Ceding Reinsurers","Consumer Discretionary","Select",null,null,"Mortgages Not In Good Standing"]
[null,"Mutual Funds","CDOs",null,"Catastrophe Bonds","Sundry Assets","Consumer Staples",null,null,null,"Collateral Loans"]
[null,"Other - Secured Bonds","Auto Loan ABS",null,"Other Insurance-Linked Securities","Letter of Credit, Guarantees and Other Instruments","Healthcare",null,null,null,"Middle Market Loans"]
[null,"Other - Unsecured Bonds","Student Loan ABS",null,"Infrastructure Debt","Other","Financial",null,null,null,"Other Direct Private Lending"]
[null,"Other ","Credit Card Receivable ABS",null,"Equity Investments in Infrastructure",null,null,null,null,null,"Policy Loans"]
[null,null,"Other Asset Backed Securities",null,"Investment in Affiliates",null,null,null,null,null,"Other"]
[null,null,null,null,"Advances to Affiliates"]
[null,null,null,null,"Equity Release / Reverse Mortgages"]
[null,null,null,null,"Other "]
[]
[]
[]
["Select","Select","Select","Select","Select","Select",null,"Select"]
["Listed options","Equity","Hedging","Long / Receive Fixed / Sell Protection","Private Equity","Investment Income Due and Accrued",null,"BSCR Rating 0"]
["Futures","Debt","Speculative","Short / Receive Floating / Buy Protection","Investment Funds","Accounts and Premiums Receivable",null,"BSCR Rating 1",null,null,"Select"]
["Forwards","Interest Rate",null,null,"Hedge Funds","Reinsurance Balance Receivable",null,"BSCR Rating 2",null,null,"Insured/Guaranteed Mortgages"]
["Swaps","Inflation",null,null,"Private Credit Funds","Sundry Assets",null,"BSCR Rating 3",null,null,"Other Commercial and Farm Mortgages"]
["Swaptions","Credit","Select",null,"Catastrophe Bonds","Letter of Credit, Guarantees and Other Instruments",null,"BSCR Rating 4",null,null,"Other Residential Mortgages"]
["OTC options","Currencies","Yes",null,"Other Insurance-Linked Securities","Other",null,"BSCR Rating 5",null,null,"Mortgages Not In Good Standing"]
["Other","Commodities","No",null,"Advances to Affiliates",null,null,"BSCR Rating 6",null,null,"Collateral Loans"]
[null,"Other",null,null,"Infrastructure Debt",null,null,"BSCR Rating 7",null,null,"Middle Market Loans"]
[null,null,null,null,"Equity Investments in Infrastructure",null,null,"BSCR Rating 8",null,null,"Other Direct Private Lending"]
[null,null,null,null,"Equity Release / Reverse Mortgages",null,null,null,null,null,"Policy Loans"]
[null,null,null,null,"Other ",null,null,null,null,null,"Other"]
[]
[null,null,null,null,null,null,null,null,"Switzerland Francs"]
[null,null,null,null,null,null,null,null,"Chile Pesos"]
[null,null,null,null,null,null,null,null,"China Yuan Renminbi"]
[null,null,null,null,null,null,null,null,"Colombia Pesos"]
[null,null,null,null,null,null,null,null,"Costa Rica Colones"]
[null,null,null,null,null,null,null,null,"Cuba Convertible Pesos"]
[null,null,null,null,null,null,null,null,"Cuba Pesos"]
[null,null,null,null,null,null,null,null,"Cape Verde Escudos"]
[null,null,null,null,null,null,null,null,"Czech Republic Koruny"]
[null,null,null,null,null,null,null,null,"Djibouti Francs"]
[null,null,null,null,null,null,null,null,"Denmark Kroner"]
[null,null,null,null,null,null,null,null,"Dominican Republic Pesos"]
[null,null,null,null,null,null,null,null,"Algeria Dinars"]
[null,null,null,null,null,null,null,null,"Estonia Krooni"]
[null,null,null,null,null,null,null,null,"Egypt Pounds"]
[null,null,null,null,null,null,null,null,"Eritrea Nakfa"]
[null,null,null,null,null,null,null,null,"Ethiopia Birr"]
[null,null,null,null,null,null,null,null,"Fiji Dollars"]
[null,null,null,null,null,null,null,null,"Falkland Islands Pounds"]
[null,null,null,null,null,null,null,null,"United Kingdom Pounds"]
[null,null,null,null,null,null,null,null,"Georgia Lari"]
[null,null,null,null,null,null,null,null,"Guernsey Pounds"]
[null,null,null,null,null,null,null,null,"Ghana Cedis"]
[null,null,null,null,null,null,null,null,"Gibraltar Pounds"]
[null,null,null,null,null,null,null,null,"Gambia Dalasi"]
[null,null,null,null,null,null,null,null,"Guinea Francs"]
[null,null,null,null,null,null,null,null,"Guatemala Quetzales"]
[null,null,null,null,null,null,null,null,"Guyana Dollars"]
[null,null,null,null,null,null,null,null,"Hong Kong Dollars"]
[null,null,null,null,null,null,null,null,"Honduras Lempiras"]
[null,null,null,null,null,null,null,null,"Croatia Kuna"]
[null,null,null,null,null,null,null,null,"Haiti Gourdes"]
[null,null,null,null,null,null,null,null,"Hungary Forint"]
[null,null,null,null,null,null,null,null,"Indonesia Rupiahs"]
[null,null,null,null,null,null,null,null,"Israel New Shekels"]
[null,null,null,null,null,null,null,null,"Isle of Man Pounds"]
[null,null,null,null,null,null,null,null,"India Rupees"]
[null,null,null,null,null,null,null,null,"Iraq Dinars"]
[null,null,null,null,null,null,null,null,"Iran Rials"]
[null,null,null,null,null,null,null,null,"Iceland Kronur"]
[null,null,null,null,null,null,null,null,"Jersey Pounds"]
[null,null,null,null,null,null,null,null,"Jamaica Dollars"]
[null,null,null,null,null,null,null,null,"Jordan Dinars"]
[null,null,null,null,null,null,null,null,"Japan Yen"]
[null,null,null,null,null,null,null,null,"Kenya Shillings"]
[null,null,null,null,null,null,null,null,"Kyrgyzstan Soms"]
[null,null,null,null,null,null,null,null,"Cambodia Riels"]
[null,null,null,null,null,null,null,null,"Comoros Francs"]
[null,null,null,null,null,null,null,null,"North Korea Won"]
[null,null,null,null,null,null,null,null,"South Korea Won"]
[null,null,null,null,null,null,null,null,"Kuwait Dinars"]
[null,null,null,null,null,null,null,null,"Cayman Islands Dollars"]
[null,null,null,null,null,null,null,null,"Kazakhstan Tenge"]
[null,null,null,null,null,null,null,null,"Laos Kips"]
[null,null,null,null,null,null,null,null,"Lebanon Pounds"]
[null,null,null,null,null,null,null,null,"Sri Lanka Rupees"]
[null,null,null,null,null,null,null,null,"Liberia Dollars"]
[null,null,null,null,null,null,null,null,"Lesotho Maloti"]
[null,null,null,null,null,null,null,null,"Lithuania Litai"]
[null,null,null,null,null,null,null,null,"Latvia Lati"]
[null,null,null,null,null,null,null,null,"Libya Dinars"]
[null,null,null,null,null,null,null,null,"Morocco Dirhams"]
[null,null,null,null,null,null,null,null,"Moldova Lei"]
[null,null,null,null,null,null,null,null,"Madagascar Ariary"]
[null,null,null,null,null,null,null,null,"Macedonia Denars"]
[null,null,null,null,null,null,null,null,"Myanmar Kyats"]
[null,null,null,null,null,null,null,null,"Mongolia Tugriks"]
[null,null,null,null,null,null,null,null,"Macau Patacas"]
[null,null,null,null,null,null,null,null,"Mauritania Ouguiyas"]
[null,null,null,null,null,null,null,null,"Mauritius Rupees"]
[null,null,null,null,null,null,null,null,"Maldives Rufiyaa"]
[null,null,null,null,null,null,null,null,"Malawi Kwachas"]
[null,null,null,null,null,null,null,null,"Mexico Pesos"]
[null,null,null,null,null,null,null,null,"Malaysia Ringgits"]
[null,null,null,null,null,null,null,null,"Mozambique Meticais"]
[null,null,null,null,null,null,null,null,"Namibia Dollars"]
[null,null,null,null,null,null,null,null,"Nigeria Nairas"]
[null,null,null,null,null,null,null,null,"Nicaragua Cordobas"]
[null,null,null,null,null,null,null,null,"Norway Kroner"]
[null,null,null,null,null,null,null,null,"Nepal Rupees"]
[null,null,null,null,null,null,null,null,"New Zealand Dollars"]
[null,null,null,null,null,null,null,null,"Oman Rials"]
[null,null,null,null,null,null,null,null,"Panama Balboas"]
[null,null,null,null,null,null,null,null,"Peru Nuevos Soles"]
[null,null,null,null,null,null,null,null,"Papua New Guinea Kina"]
[null,null,null,null,null,null,null,null,"Philippines Pesos"]
[null,null,null,null,null,null,null,null,"Pakistan Rupees"]
[null,null,null,null,null,null,null,null,"Poland Zlotych"]
[null,null,null,null,null,null,null,null,"Paraguay Guarani"]
[null,null,null,null,null,null,null,null,"Qatar Riyals"]
[null,null,null,null,null,null,null,null,"Romania New Lei"]
[null,null,null,null,null,null,null,null,"Serbia Dinars"]
[null,null,null,null,null,null,null,null,"Russia Rubles"]
[null,null,null,null,null,null,null,null,"Rwanda Francs"]
[null,null,null,null,null,null,null,null,"Saudi Arabia Riyals"]
[null,null,null,null,null,null,null,null,"Solomon Islands Dollars"]
[null,null,null,null,null,null,null,null,"Seychelles Rupees"]
[null,null,null,null,null,null,null,null,"Sudan Pounds"]
[null,null,null,null,null,null,null,null,"Sweden Kronor"]
[null,null,null,null,null,null,null,null,"Singapore Dollars"]
[null,null,null,null,null,null,null,null,"Saint Helena Pounds"]
[null,null,null,null,null,null,null,null,"Slovakia Koruny"]
[null,null,null,null,null,null,null,null,"Sierra Leone Leones"]
[null,null,null,null,null,null,null,null,"Somalia Shillings"]
[null,null,null,null,null,null,null,null,"Seborga Luigini"]
[null,null,null,null,null,null,null,null,"Suriname Dollars"]
[null,null,null,null,null,null,null,null,"São Tome and Principe Dobras"]
[null,null,null,null,null,null,null,null,"El Salvador Colones"]
[null,null,null,null,null,null,null,null,"Syria Pounds"]
[null,null,null,null,null,null,null,null,"Swaziland Emalangeni"]
[null,null,null,null,null,null,null,null,"Thailand Baht"]
[null,null,null,null,null,null,null,null,"Tajikistan Somoni"]
[null,null,null,null,null,null,null,null,"Turkmenistan Manats"]
[null,null,null,null,null,null,null,null,"Tunisia Dinars"]
[null,null,null,null,null,null,null,null,"Tonga Pa'anga"]
[null,null,null,null,null,null,null,null,"Turkey New Lira"]
[null,null,null,null,null,null,null,null,"Trinidad and Tobago Dollars"]
[null,null,null,null,null,null,null,null,"Tuvalu Dollars"]
[null,null,null,null,null,null,null,null,"Taiwan New Dollars"]
[null,null,null,null,null,null,null,null,"Tanzania Shillings"]
[null,null,null,null,null,null,null,null,"Ukraine Hryvnia"]
[null,null,null,null,null,null,null,null,"Uganda Shillings"]
[null,null,null,null,null,null,null,null,"Uruguay Pesos"]
[null,null,null,null,null,null,null,null,"Uzbekistan Sums"]
[null,null,null,null,null,null,null,null,"Venezuela Bolivares"]
[null,null,null,null,null,null,null,null,"Venezuela Bolivares Fuertes"]
[null,null,null,null,null,null,null,null,"Vietnam Dong"]
[null,null,null,null,null,null,null,null,"Vanuatu Vatu"]
[null,null,null,null,null,null,null,null,"Samoa Tala"]
[null,null,null,null,null,null,null,null,"Communauté Financière Africaine Francs BEAC"]
[null,null,null,null,null,null,null,null,"Silver Ounces"]
[null,null,null,null,null,null,null,null,"Gold Ounces"]
[null,null,null,null,null,null,null,null,"East Caribbean Dollars"]
[null,null,null,null,null,null,null,null,"International Monetary Fund Special Drawing Rights"]
[null,null,null,null,null,null,null,null,"Communauté Financière Africaine Francs BCEAO"]
[null,null,null,null,null,null,null,null,"Palladium Ounces"]
[null,null,null,null,null,null,null,null,"Comptoirs Français du Pacifique Francs"]
[null,null,null,null,null,null,null,null,"Platinum Ounces"]
[null,null,null,null,null,null,null,null,"Yemen Rials"]
[null,null,null,null,null,null,null,null,"South Africa Rand"]
[null,null,null,null,null,null,null,null,"Zambia Kwacha"]
[null,null,null,null,null,null,null,null,"Zimbabwe Dollars"]

{"sheet":"Schedule VIA (New)","index":59,"n_rows":425,"n_cols":12,"rows_kept":425,"cut":false,"hidden":true,"merged":[[211,1,211,2],[5,1,5,2],[35,1,35,2],[36,1,36,2],[61,1,61,2],[91,1,91,2],[92,1,92,2],[121,1,121,2],[122,1,122,2],[151,1,151,2],[152,1,152,2],[210,1,210,2]]}
[null,"DRAFT UNCONSOLIDATED SCHEDULE OF FUNDS HELD BY CEDING REINSURERS",null,null,null,null,null,null,{"$f":"HYPERLINK(\"#'Index'!A1\",\"Return to Index\")","v":"Return to Index"}]
[null,{"$f":"'Form 1'!$B$2","v":"Enter Parent Company Name"}]
[null,"As at",{"$f":"'Form 1'!$C$3","v":"2023-12-31"}]
[null,"expressed in ['000s]",{"$f":"'Form 1'!$C$4","v":" ['000s]United States Dollars"}]
[]
[null,"(A) CASH AND CASH EQUIVALENTS",null,"Enter # of Asset Types"]
[null,null,null,null,{"$f":"YEAR($C$3)","v":2023},{"$f":"YEAR($C$3)","v":2023}]
[null,"Asset Type","Jurisdiction","BSCR Rating ","Face Value","Fair Value"]
[1,"Select",null,"Select"]
[2,"Select",null,"Select"]
[3,"Select",null,"Select"]
[4,"Select",null,"Select"]
[5,"Select",null,"Select"]
[6,"Select",null,"Select"]
[7,"Select",null,"Select"]
[8,"Select",null,"Select"]
[9,"Select",null,"Select"]
[10,"Select",null,"Select"]
[11,"Select",null,"Select"]
[12,"Select",null,"Select"]
[13,"Select",null,"Select"]
[14,"Select",null,"Select"]
[15,"Select",null,"Select"]
[16,"Select",null,"Select"]
[17,"Select",null,"Select"]
[18,"Select",null,"Select"]
[19,"Select",null,"Select"]
[20,"Select",null,"Select"]
[]
[null,"Total Cash & Cash Equivalents",null,null,{"$f":"SUM(E9:E28)","v":0},{"$f":"SUM(F9:F28)","v":0}]
[]
[null,"Form 1SFS Line 1 Cash and Cash Equivalents"]
[]
[null,"Check Section A",null,null,null,{"$f":"ROUND((F30-F32),0)","v":0},{"$f":"IF(F34=0,\"TRUE\",\"FALSE\")","v":"TRUE"}]
[]
[null,"(B) BONDS AND DEBENTURES",null,"Enter # of Asset Types"]
[null,null,null,null,{"$f":"YEAR($C$3)","v":2023},{"$f":"YEAR($C$3)","v":2023}]
[null,"Asset Type","Jurisdiction","BSCR Rating ","Face Value","Fair Value","Average YTM","Effective Duration","Effective Convexity"]
[1,"Select",0,"Select",0,0,0,0,0]
[2,"Select",0,"Select",0,0,0,0,0]
[3,"Select",0,"Select",0,0,0,0,0]
[4,"Select",0,"Select",0,0,0,0,0]
[5,"Select",0,"Select",0,0,0,0,0]
[6,"Select",0,"Select",0,0,0,0,0]
[7,"Select",0,"Select",0,0,0,0,0]
[8,"Select",0,"Select",0,0,0,0,0]
[9,"Select",0,"Select",0,0,0,0,0]
[10,"Select",0,"Select",0,0,0,0,0]
[11,"Select",0,"Select",0,0,0,0,0]
[12,"Select",0,"Select",0,0,0,0,0]
[13,"Select",0,"Select",0,0,0,0,0]
[14,"Select",0,"Select",0,0,0,0,0]
[15,"Select",0,"Select",0,0,0,0,0]
[16,"Select",0,"Select",0,0,0,0,0]
[17,"Select",0,"Select",0,0,0,0,0]
[18,"Select",0,"Select",0,0,0,0,0]
[19,"Select",0,"Select",0,0,0,0,0]
[20,"Select",0,"Select",0,0,0,0,0]
[]
[null,"Total Bonds & Debentures",null,null,{"$f":"SUM(E39:E58)","v":0},{"$f":"SUM(F39:F58)","v":0},0,0,0]
[]
[null,"(C) SECURITIES/ASSET-BASED SECURITIES",null,"Enter # of Asset Types"]
[null,null,null,null,{"$f":"YEAR($C$3)","v":2023},{"$f":"YEAR($C$3)","v":2023}]
[null,"Asset Type","Jurisdiction","BSCR Rating ","Face Value","Fair Value","Average YTM","Effective Duration","Effective Convexity"]
[1,"Select",0,"Select",0,0,0,0,0]
[2,"Select",0,"Select",0,0,0,0,0]
[3,"Select",0,"Select",0,0,0,0,0]
[4,"Select",0,"Select",0,0,0,0,0]
[5,"Select",0,"Select",0,0,0,0,0]
[6,"Select",0,"Select",0,0,0,0,0]
[7,"Select",0,"Select",0,0,0,0,0]
[8,"Select",0,"Select",0,0,0,0,0]
[9,"Select",0,"Select",0,0,0,0,0]
[10,"Select",0,"Select",0,0,0,0,0]
[11,"Select",0,"Select",0,0,0,0,0]
[12,"Select",0,"Select",0,0,0,0,0]
[13,"Select",0,"Select",0,0,0,0,0]
[14,"Select",0,"Select",0,0,0,0,0]
[15,"Select",0,"Select",0,0,0,0,0]
[16,"Select",0,"Select",0,0,0,0,0]
[17,"Select",0,"Select",0,0,0,0,0]
[18,"Select",0,"Select",0,0,0,0,0]
[19,"Select",0,"Select",0,0,0,0,0]
[20,"Select",0,"Select",0,0,0,0,0]
[]
[null,"Total Securities/Asset-Backed Securities",null,null,{"$f":"SUM(E65:E84)","v":0},{"$f":"SUM(F65:F84)","v":0},0,0,0]
[]
[null,"Form 1SFS Lines 2(b) & 3(b) Bonds & Debentures"]
[]
[null,"Check Sections B & C",null,null,null,{"$f":"ROUND(((F86+F60)-F88),0)","v":0},{"$f":"IF(F90=0,\"TRUE\",\"FALSE\")","v":"TRUE"}]
[]
[null,"(D) LISTED EQUITIES AND PREFERENCE SHARES",null,"Enter # of Asset Types"]
[null,null,null,null,{"$f":"YEAR($C$3)","v":2023},{"$f":"YEAR($C$3)","v":2023}]
[null,"Asset Type","Stock Exchange","BSCR Rating ","Face Value","Fair Value"]
[1,"Select",0,"Select",0,0]
[2,"Select",0,"Select",0,0]
[3,"Select",0,"Select",0,0]
[4,"Select",0,"Select",0,0]
[5,"Select",0,"Select",0,0]
[6,"Select",0,"Select",0,0]
[7,"Select",0,"Select",0,0]
[8,"Select",0,"Select",0,0]
[9,"Select",0,"Select",0,0]
[10,"Select",0,"Select",0,0]
[11,"Select",0,"Select",0,0]
[12,"Select",0,"Select",0,0]
[13,"Select",0,"Select",0,0]
[14,"Select",0,"Select",0,0]
[15,"Select",0,"Select",0,0]
[16,"Select",0,"Select",0,0]
[17,"Select",0,"Select",0,0]
[18,"Select",0,"Select",0,0]
[19,"Select",0,"Select",0,0]
[20,"Select",0,"Select",0,0]
[]
[null,"Total Listed Equities & Preference Shares",null,null,{"$f":"SUM(E95:E114)","v":0},{"$f":"SUM(F95:F114)","v":0}]
[]
[null,"Form 1SFS Lines 2(d) & 3(d) Bonds & Debentures"]
[]
[null,"Check Section D",null,null,null,{"$f":"ROUND((F116-F118),0)","v":0},{"$f":"IF(F120=0,\"TRUE\",\"FALSE\")","v":"TRUE"}]
[]
[null,"(E) ALTERNATIVE INVESTMENTS",null,"Enter # of Asset Types"]
[null,null,null,null,{"$f":"YEAR($C$3)","v":2023},{"$f":"YEAR($C$3)","v":2023}]
[null,"Asset Type","Jurisdiction","BSCR Rating ","Face Value","Fair Value","Average YTM","Effective Duration","Effective Convexity"]
[1,"Select",0,"Select",0,0,0,0,0]
[2,"Select",0,"Select",0,0,0,0,0]
[3,"Select",0,"Select",0,0,0,0,0]
[4,"Select",0,"Select",0,0,0,0,0]
[5,"Select",0,"Select",0,0,0,0,0]
[6,"Select",0,"Select",0,0,0,0,0]
[7,"Select",0,"Select",0,0,0,0,0]
[8,"Select",0,"Select",0,0,0,0,0]
[9,"Select",0,"Select",0,0,0,0,0]
[10,"Select",0,"Select",0,0,0,0,0]
[11,"Select",0,"Select",0,0,0,0,0]
[12,"Select",0,"Select",0,0,0,0,0]
[13,"Select",0,"Select",0,0,0,0,0]
[14,"Select",0,"Select",0,0,0,0,0]
[15,"Select",0,"Select",0,0,0,0,0]
[16,"Select",0,"Select",0,0,0,0,0]
[17,"Select",0,"Select",0,0,0,0,0]
[18,"Select",0,"Select",0,0,0,0,0]
[19,"Select",0,"Select",0,0,0,0,0]
[20,"Select",0,"Select",0,0,0,0,0]
[]
[null,"Total Alternative Investments",null,null,{"$f":"SUM(E125:E144)","v":0},{"$f":"SUM(F125:F144)","v":0},0,0,0]
[]
[null,"Form 1SFS Lines 2(e) & 3(e) Alternative Investments"]
[]
[null,"Check Section E",null,null,null,{"$f":"ROUND((F146-F148),0)","v":0},{"$f":"IF(F150=0,\"TRUE\",\"FALSE\")","v":"TRUE"}]
[]
[null,"(F) LOANS",null,"Enter # of Asset Types"]
[null,null,null,null,{"$f":"YEAR($C$3)","v":2023},{"$f":"YEAR($C$3)","v":2023}]
[null,"Asset Type","Jurisdiction","BSCR Rating ","Face Value","Fair Value","Average YTM","Effective Duration","Effective Convexity"]
[1,"Select",0,"Select",0,0,0,0,0]
[2,"Select",0,"Select",0,0,0,0,0]
[3,"Select",0,"Select",0,0,0,0,0]
[4,"Select",0,"Select",0,0,0,0,0]
[5,"Select",0,"Select",0,0,0,0,0]
[6,"Select",0,"Select",0,0,0,0,0]
[7,"Select",0,"Select",0,0,0,0,0]
[8,"Select",0,"Select",0,0,0,0,0]
[9,"Select",0,"Select",0,0,0,0,0]
[10,"Select",0,"Select",0,0,0,0,0]
[11,"Select",0,"Select",0,0,0,0,0]
[12,"Select",0,"Select",0,0,0,0,0]
[13,"Select",0,"Select",0,0,0,0,0]
[14,"Select",0,"Select",0,0,0,0,0]
[15,"Select",0,"Select",0,0,0,0,0]
[16,"Select",0,"Select",0,0,0,0,0]
[17,"Select",0,"Select",0,0,0,0,0]
[18,"Select",0,"Select",0,0,0,0,0]
[19,"Select",0,"Select",0,0,0,0,0]
[20,"Select",0,"Select",0,0,0,0,0]
[]
[null,"Total Loans",null,null,{"$f":"SUM(E155:E174)","v":0},{"$f":"SUM(F155:F174)","v":0},0,0,0]
[]
[null,"Form 1SFS Line 5(c) Mortgage Loans"]
[]
[null,"Check Section F",null,null,null,{"$f":"ROUND((F176-F178),0)","v":0},{"$f":"IF(F180=0,\"TRUE\",\"FALSE\")","v":"TRUE"}]
[]
[null,"(G) DERIVATIVES",null,"Enter # of Derivative Types"]
[null,"Derivative Type","Underlying","Purpose","Position",{"$f":"YEAR($C$3)&\" Market Value\"","v":"2023 Market Value"},"Centrally Cleared","Notional Value","Exposure (Dollar Delta, DV01, CS01"]
[1,"Select","Select","Select","Select",0,"Select",0,0]
[2,"Select","Select","Select","Select",0,"Select",0,0]
[3,"Select","Select","Select","Select",0,"Select",0,0]
[4,"Select","Select","Select","Select",0,"Select",0,0]
[5,"Select","Select","Select","Select",0,"Select",0,0]
[6,"Select","Select","Select","Select",0,"Select",0,0]
[7,"Select","Select","Select","Select",0,"Select",0,0]
[8,"Select","Select","Select","Select",0,"Select",0,0]
[9,"Select","Select","Select","Select",0,"Select",0,0]
[10,"Select","Select","Select","Select",0,"Select",0,0]
[11,"Select","Select","Select","Select",0,"Select",0,0]
[12,"Select","Select","Select","Select",0,"Select",0,0]
[13,"Select","Select","Select","Select",0,"Select",0,0]
[14,"Select","Select","Select","Select",0,"Select",0,0]
[15,"Select","Select","Select","Select",0,"Select",0,0]
[16,"Select","Select","Select","Select",0,"Select",0,0]
[17,"Select","Select","Select","Select",0,"Select",0,0]
[18,"Select","Select","Select","Select",0,"Select",0,0]
[19,"Select","Select","Select","Select",0,"Select",0,0]
[20,"Select","Select","Select","Select",0,"Select",0,0]
[]
[null,"Total Derivatives",null,null,null,{"$f":"SUM(F184:F203)","v":0},null,{"$f":"SUM(H184:H203)","v":0},{"$f":"SUM(I184:I203)","v":0}]
[]
[null,"Form 1SFS Line 13(a) Derivatives"]
[]
[null,"Check Section G",null,null,null,{"$f":"ROUND((F205-F207),0)","v":0},{"$f":"IF(F209=0,\"TRUE\",\"FALSE\")","v":"TRUE"}]
[]
[null,"(H) OTHER ASSETS",null,"Enter # of Asset Types"]
[null,null,null,null,{"$f":"YEAR($C$3)","v":2023},{"$f":"YEAR($C$3)","v":2023}]
[null,"Asset Type","Jurisdiction","BSCR Rating ","Face Value","Fair Value","Average YTM","Effective Duration","Effective Convexity"]
[1,"Select",0,"Select",0,0,0,0,0]
[2,"Select",0,"Select",0,0,0,0,0]
[3,"Select",0,"Select",0,0,0,0,0]
[4,"Select",0,"Select",0,0,0,0,0]
[5,"Select",0,"Select",0,0,0,0,0]
[6,"Select",0,"Select",0,0,0,0,0]
[7,"Select",0,"Select",0,0,0,0,0]
[8,"Select",0,"Select",0,0,0,0,0]
[9,"Select",0,"Select",0,0,0,0,0]
[10,"Select",0,"Select",0,0,0,0,0]
[11,"Select",0,"Select",0,0,0,0,0]
[12,"Select",0,"Select",0,0,0,0,0]
[13,"Select",0,"Select",0,0,0,0,0]
[14,"Select",0,"Select",0,0,0,0,0]
[15,"Select",0,"Select",0,0,0,0,0]
[16,"Select",0,"Select",0,0,0,0,0]
[17,"Select",0,"Select",0,0,0,0,0]
[18,"Select",0,"Select",0,0,0,0,0]
[19,"Select",0,"Select",0,0,0,0,0]
[20,"Select",0,"Select",0,0,0,0,0]
[]
[null,"Total Other Assets",null,null,null,{"$f":"SUM(F214:F233)","v":0},0,0,0]
[]
[null,"Form 1SFS Lines X(x) Other Assets"]
[]
[null,"Check Section G",null,null,null,{"$f":"ROUND((F235-F237),0)","v":0},{"$f":"IF(F239=0,\"TRUE\",\"FALSE\")","v":"TRUE"}]
[]
[null,"TOTAL ASSETS",null,null,null,{"$f":"F30+F60+F116+F86+F146+F235+F205+F176","v":0}]
[]
[null,"TOTAL ASSETS (Form 1SFS Line 15)",null,null,null,{"$f":"F34+F90+F120+F150+F180+F209+F239","v":0}]
[]
[null,"Check Form 1SFS",null,null,null,{"$f":"IF(F247=0,\"TRUE\",\"FALSE\")","v":"TRUE"}]
[null,null,null,null,null,{"$f":"IF(ROUND((F241-(0)),0)=0,\"TRUE\",\"FALSE\")","v":"TRUE"}]
[null,"Difference",null,null,null,{"$f":"ROUND((F243-F241),0)","v":0}]
[]
[null,"EFFECTIVE DURATION",null,null,0]
[]
[null,"EFFECTIVE CONVEXITY",null,null,0]
[]
[]
[]
["Select","Select","Select","Select","Select","Select","Select","Select","Select","Select","Select","Select"]
["Cash ","Sovereign Bonds","RMBS - Agency","Public Equities","Private Equity","Investment Income Due and Accrued","Energy","Holding Entity","Significant Influence",null,"Insured/Guaranteed Mortgages"]
["Certificates of Deposit","Municipals","RMBS - Non-agency","Public Preferred Stock","Investment Funds","Accounts and Premiums Receivable","Materials","Operating Entity","Control",null,"Other Commercial and Farm Mortgages"]
["Money Market Funds","Supranationals (multilateral development banks and international organizations)","CMBS","Exchange Traded Funds","Hedge Funds","Reinsurance Balance Receivable","Industrial","Branch",null,null,"Other Residential Mortgages"]
["Other ","Corporate bonds","CLOs","Other","Private Credit Funds","Funds Held by Ceding Reinsurers","Consumer Discretionary","Select",null,null,"Mortgages Not In Good Standing"]
[null,"Mutual Funds","CDOs",null,"Catastrophe Bonds","Sundry Assets","Consumer Staples",null,null,null,"Collateral Loans"]
[null,"Other - Secured Bonds","Auto Loan ABS",null,"Other Insurance-Linked Securities","Letter of Credit, Guarantees and Other Instruments","Healthcare",null,null,null,"Middle Market Loans"]
[null,"Other - Unsecured Bonds","Student Loan ABS",null,"Infrastructure Debt","Other","Financial",null,null,null,"Other Direct Private Lending"]
[null,"Other ","Credit Card Receivable ABS",null,"Equity Investments in Infrastructure",null,null,null,null,null,"Policy Loans"]
[null,null,"Other Asset Backed Securities",null,"Investment in Affiliates",null,null,null,null,null,"Other"]
[null,null,null,null,"Advances to Affiliates"]
[null,null,null,null,"Equity Release / Reverse Mortgages"]
[null,null,null,null,"Other "]
[]
[]
[]
["Select","Select","Select","Select","Select","Select",null,"Select"]
["Listed options","Equity","Hedging","Long / Receive Fixed / Sell Protection","Private Equity","Investment Income Due and Accrued",null,"BSCR Rating 0"]
["Futures","Debt","Speculative","Short / Receive Floating / Buy Protection","Investment Funds","Accounts and Premiums Receivable",null,"BSCR Rating 1",null,null,"Select"]
["Forwards","Interest Rate",null,null,"Hedge Funds","Reinsurance Balance Receivable",null,"BSCR Rating 2",null,null,"Insured/Guaranteed Mortgages"]
["Swaps","Inflation",null,null,"Private Credit Funds","Sundry Assets",null,"BSCR Rating 3",null,null,"Other Commercial and Farm Mortgages"]
["Swaptions","Credit","Select",null,"Catastrophe Bonds","Letter of Credit, Guarantees and Other Instruments",null,"BSCR Rating 4",null,null,"Other Residential Mortgages"]
["OTC options","Currencies","Yes",null,"Other Insurance-Linked Securities","Other",null,"BSCR Rating 5",null,null,"Mortgages Not In Good Standing"]
["Other","Commodities","No",null,"Advances to Affiliates",null,null,"BSCR Rating 6",null,null,"Collateral Loans"]
[null,"Other",null,null,"Infrastructure Debt",null,null,"BSCR Rating 7",null,null,"Middle Market Loans"]
[null,null,null,null,"Equity Investments in Infrastructure",null,null,"BSCR Rating 8",null,null,"Other Direct Private Lending"]
[null,null,null,null,"Equity Release / Reverse Mortgages",null,null,null,null,null,"Policy Loans"]
[null,null,null,null,"Other ",null,null,null,null,null,"Other"]
[]
[null,null,null,null,null,null,null,null,"Switzerland Francs"]
[null,null,null,null,null,null,null,null,"Chile Pesos"]
[null,null,null,null,null,null,null,null,"China Yuan Renminbi"]
[null,null,null,null,null,null,null,null,"Colombia Pesos"]
[null,null,null,null,null,null,null,null,"Costa Rica Colones"]
[null,null,null,null,null,null,null,null,"Cuba Convertible Pesos"]
[null,null,null,null,null,null,null,null,"Cuba Pesos"]
[null,null,null,null,null,null,null,null,"Cape Verde Escudos"]
[null,null,null,null,null,null,null,null,"Czech Republic Koruny"]
[null,null,null,null,null,null,null,null,"Djibouti Francs"]
[null,null,null,null,null,null,null,null,"Denmark Kroner"]
[null,null,null,null,null,null,null,null,"Dominican Republic Pesos"]
[null,null,null,null,null,null,null,null,"Algeria Dinars"]
[null,null,null,null,null,null,null,null,"Estonia Krooni"]
[null,null,null,null,null,null,null,null,"Egypt Pounds"]
[null,null,null,null,null,null,null,null,"Eritrea Nakfa"]
[null,null,null,null,null,null,null,null,"Ethiopia Birr"]
[null,null,null,null,null,null,null,null,"Fiji Dollars"]
[null,null,null,null,null,null,null,null,"Falkland Islands Pounds"]
[null,null,null,null,null,null,null,null,"United Kingdom Pounds"]
[null,null,null,null,null,null,null,null,"Georgia Lari"]
[null,null,null,null,null,null,null,null,"Guernsey Pounds"]
[null,null,null,null,null,null,null,null,"Ghana Cedis"]
[null,null,null,null,null,null,null,null,"Gibraltar Pounds"]
[null,null,null,null,null,null,null,null,"Gambia Dalasi"]
[null,null,null,null,null,null,null,null,"Guinea Francs"]
[null,null,null,null,null,null,null,null,"Guatemala Quetzales"]
[null,null,null,null,null,null,null,null,"Guyana Dollars"]
[null,null,null,null,null,null,null,null,"Hong Kong Dollars"]
[null,null,null,null,null,null,null,null,"Honduras Lempiras"]
[null,null,null,null,null,null,null,null,"Croatia Kuna"]
[null,null,null,null,null,null,null,null,"Haiti Gourdes"]
[null,null,null,null,null,null,null,null,"Hungary Forint"]
[null,null,null,null,null,null,null,null,"Indonesia Rupiahs"]
[null,null,null,null,null,null,null,null,"Israel New Shekels"]
[null,null,null,null,null,null,null,null,"Isle of Man Pounds"]
[null,null,null,null,null,null,null,null,"India Rupees"]
[null,null,null,null,null,null,null,null,"Iraq Dinars"]
[null,null,null,null,null,null,null,null,"Iran Rials"]
[null,null,null,null,null,null,null,null,"Iceland Kronur"]
[null,null,null,null,null,null,null,null,"Jersey Pounds"]
[null,null,null,null,null,null,null,null,"Jamaica Dollars"]
[null,null,null,null,null,null,null,null,"Jordan Dinars"]
[null,null,null,null,null,null,null,null,"Japan Yen"]
[null,null,null,null,null,null,null,null,"Kenya Shillings"]
[null,null,null,null,null,null,null,null,"Kyrgyzstan Soms"]
[null,null,null,null,null,null,null,null,"Cambodia Riels"]
[null,null,null,null,null,null,null,null,"Comoros Francs"]
[null,null,null,null,null,null,null,null,"North Korea Won"]
[null,null,null,null,null,null,null,null,"South Korea Won"]
[null,null,null,null,null,null,null,null,"Kuwait Dinars"]
[null,null,null,null,null,null,null,null,"Cayman Islands Dollars"]
[null,null,null,null,null,null,null,null,"Kazakhstan Tenge"]
[null,null,null,null,null,null,null,null,"Laos Kips"]
[null,null,null,null,null,null,null,null,"Lebanon Pounds"]
[null,null,null,null,null,null,null,null,"Sri Lanka Rupees"]
[null,null,null,null,null,null,null,null,"Liberia Dollars"]
[null,null,null,null,null,null,null,null,"Lesotho Maloti"]
[null,null,null,null,null,null,null,null,"Lithuania Litai"]
[null,null,null,null,null,null,null,null,"Latvia Lati"]
[null,null,null,null,null,null,null,null,"Libya Dinars"]
[null,null,null,null,null,null,null,null,"Morocco Dirhams"]
[null,null,null,null,null,null,null,null,"Moldova Lei"]
[null,null,null,null,null,null,null,null,"Madagascar Ariary"]
[null,null,null,null,null,null,null,null,"Macedonia Denars"]
[null,null,null,null,null,null,null,null,"Myanmar Kyats"]
[null,null,null,null,null,null,null,null,"Mongolia Tugriks"]
[null,null,null,null,null,null,null,null,"Macau Patacas"]
[null,null,null,null,null,null,null,null,"Mauritania Ouguiyas"]
[null,null,null,null,null,null,null,null,"Mauritius Rupees"]
[null,null,null,null,null,null,null,null,"Maldives Rufiyaa"]
[null,null,null,null,null,null,null,null,"Malawi Kwachas"]
[null,null,null,null,null,null,null,null,"Mexico Pesos"]
[null,null,null,null,null,null,null,null,"Malaysia Ringgits"]
[null,null,null,null,null,null,null,null,"Mozambique Meticais"]
[null,null,null,null,null,null,null,null,"Namibia Dollars"]
[null,null,null,null,null,null,null,null,"Nigeria Nairas"]
[null,null,null,null,null,null,null,null,"Nicaragua Cordobas"]
[null,null,null,null,null,null,null,null,"Norway Kroner"]
[null,null,null,null,null,null,null,null,"Nepal Rupees"]
[null,null,null,null,null,null,null,null,"New Zealand Dollars"]
[null,null,null,null,null,null,null,null,"Oman Rials"]
[null,null,null,null,null,null,null,null,"Panama Balboas"]
[null,null,null,null,null,null,null,null,"Peru Nuevos Soles"]
[null,null,null,null,null,null,null,null,"Papua New Guinea Kina"]
[null,null,null,null,null,null,null,null,"Philippines Pesos"]
[null,null,null,null,null,null,null,null,"Pakistan Rupees"]
[null,null,null,null,null,null,null,null,"Poland Zlotych"]
[null,null,null,null,null,null,null,null,"Paraguay Guarani"]
[null,null,null,null,null,null,null,null,"Qatar Riyals"]
[null,null,null,null,null,null,null,null,"Romania New Lei"]
[null,null,null,null,null,null,null,null,"Serbia Dinars"]
[null,null,null,null,null,null,null,null,"Russia Rubles"]
[null,null,null,null,null,null,null,null,"Rwanda Francs"]
[null,null,null,null,null,null,null,null,"Saudi Arabia Riyals"]
[null,null,null,null,null,null,null,null,"Solomon Islands Dollars"]
[null,null,null,null,null,null,null,null,"Seychelles Rupees"]
[null,null,null,null,null,null,null,null,"Sudan Pounds"]
[null,null,null,null,null,null,null,null,"Sweden Kronor"]
[null,null,null,null,null,null,null,null,"Singapore Dollars"]
[null,null,null,null,null,null,null,null,"Saint Helena Pounds"]
[null,null,null,null,null,null,null,null,"Slovakia Koruny"]
[null,null,null,null,null,null,null,null,"Sierra Leone Leones"]
[null,null,null,null,null,null,null,null,"Somalia Shillings"]
[null,null,null,null,null,null,null,null,"Seborga Luigini"]
[null,null,null,null,null,null,null,null,"Suriname Dollars"]
[null,null,null,null,null,null,null,null,"São Tome and Principe Dobras"]
[null,null,null,null,null,null,null,null,"El Salvador Colones"]
[null,null,null,null,null,null,null,null,"Syria Pounds"]
[null,null,null,null,null,null,null,null,"Swaziland Emalangeni"]
[null,null,null,null,null,null,null,null,"Thailand Baht"]
[null,null,null,null,null,null,null,null,"Tajikistan Somoni"]
[null,null,null,null,null,null,null,null,"Turkmenistan Manats"]
[null,null,null,null,null,null,null,null,"Tunisia Dinars"]
[null,null,null,null,null,null,null,null,"Tonga Pa'anga"]
[null,null,null,null,null,null,null,null,"Turkey New Lira"]
[null,null,null,null,null,null,null,null,"Trinidad and Tobago Dollars"]
[null,null,null,null,null,null,null,null,"Tuvalu Dollars"]
[null,null,null,null,null,null,null,null,"Taiwan New Dollars"]
[null,null,null,null,null,null,null,null,"Tanzania Shillings"]
[null,null,null,null,null,null,null,null,"Ukraine Hryvnia"]
[null,null,null,null,null,null,null,null,"Uganda Shillings"]
[null,null,null,null,null,null,null,null,"Uruguay Pesos"]
[null,null,null,null,null,null,null,null,"Uzbekistan Sums"]
[null,null,null,null,null,null,null,null,"Venezuela Bolivares"]
[null,null,null,null,null,null,null,null,"Venezuela Bolivares Fuertes"]
[null,null,null,null,null,null,null,null,"Vietnam Dong"]
[null,null,null,null,null,null,null,null,"Vanuatu Vatu"]
[null,null,null,null,null,null,null,null,"Samoa Tala"]
[null,null,null,null,null,null,null,null,"Communauté Financière Africaine Francs BEAC"]
[null,null,null,null,null,null,null,null,"Silver Ounces"]
[null,null,null,null,null,null,null,null,"Gold Ounces"]
[null,null,null,null,null,null,null,null,"East Caribbean Dollars"]
[null,null,null,null,null,null,null,null,"International Monetary Fund Special Drawing Rights"]
[null,null,null,null,null,null,null,null,"Communauté Financière Africaine Francs BCEAO"]
[null,null,null,null,null,null,null,null,"Palladium Ounces"]
[null,null,null,null,null,null,null,null,"Comptoirs Français du Pacifique Francs"]
[null,null,null,null,null,null,null,null,"Platinum Ounces"]
[null,null,null,null,null,null,null,null,"Yemen Rials"]
[null,null,null,null,null,null,null,null,"South Africa Rand"]
[null,null,null,null,null,null,null,null,"Zambia Kwacha"]
[null,null,null,null,null,null,null,null,"Zimbabwe Dollars"]

{"sheet":"Schedule VI (EBS) (New)","index":60,"n_rows":425,"n_cols":12,"rows_kept":425,"cut":false,"hidden":true,"merged":[[211,1,211,2],[5,1,5,2],[35,1,35,2],[36,1,36,2],[61,1,61,2],[91,1,91,2],[92,1,92,2],[121,1,121,2],[122,1,122,2],[151,1,151,2],[152,1,152,2],[210,1,210,2]]}
[null,"DRAFT EBS SCHEDULE OF ASSETS",null,null,null,null,null,null,{"$f":"HYPERLINK(\"#'Index'!A1\",\"Return to Index\")","v":"Return to Index"}]
[null,{"$f":"'Form 1'!$B$2","v":"Enter Parent Company Name"}]
[null,"As at",{"$f":"'Form 1'!$C$3","v":"2023-12-31"}]
[null,"expressed in ['000s]",{"$f":"'Form 1'!$C$4","v":" ['000s]United States Dollars"}]
[]
[null,"(A) CASH AND CASH EQUIVALENTS",null,"Enter # of Asset Types"]
[null,null,null,null,{"$f":"YEAR($C$3)","v":2023},{"$f":"YEAR($C$3)","v":2023}]
[null,"Asset Type","Jurisdiction","BSCR Rating ","Face Value","Fair Value"]
[1,"Select",null,"Select"]
[2,"Select",null,"Select"]
[3,"Select",null,"Select"]
[4,"Select",null,"Select"]
[5,"Select",null,"Select"]
[6,"Select",null,"Select"]
[7,"Select",null,"Select"]
[8,"Select",null,"Select"]
[9,"Select",null,"Select"]
[10,"Select",null,"Select"]
[11,"Select",null,"Select"]
[12,"Select",null,"Select"]
[13,"Select",null,"Select"]
[14,"Select",null,"Select"]
[15,"Select",null,"Select"]
[16,"Select",null,"Select"]
[17,"Select",null,"Select"]
[18,"Select",null,"Select"]
[19,"Select",null,"Select"]
[20,"Select",null,"Select"]
[]
[null,"Total Cash & Cash Equivalents",null,null,{"$f":"SUM(E9:E28)","v":0},{"$f":"SUM(F9:F28)","v":0}]
[]
[null,"Form 1EBS Line 1 Cash and Cash Equivalents",null,null,null,{"$f":"'Form 1EBS'!F10","v":0}]
[]
[null,"Check Section A",null,null,null,{"$f":"ROUND((F30-F32),0)","v":0},{"$f":"IF(F34=0,\"TRUE\",\"FALSE\")","v":"TRUE"}]
[]
[null,"(B) BONDS AND DEBENTURES",null,"Enter # of Asset Types"]
[null,null,null,null,{"$f":"YEAR($C$3)","v":2023},{"$f":"YEAR($C$3)","v":2023}]
[null,"Asset Type","Jurisdiction","BSCR Rating ","Face Value","Fair Value","Average YTM","Effective Duration","Effective Convexity"]
[1,"Select",0,"Select",0,0,0,0,0]
[2,"Select",0,"Select",0,0,0,0,0]
[3,"Select",0,"Select",0,0,0,0,0]
[4,"Select",0,"Select",0,0,0,0,0]
[5,"Select",0,"Select",0,0,0,0,0]
[6,"Select",0,"Select",0,0,0,0,0]
[7,"Select",0,"Select",0,0,0,0,0]
[8,"Select",0,"Select",0,0,0,0,0]
[9,"Select",0,"Select",0,0,0,0,0]
[10,"Select",0,"Select",0,0,0,0,0]
[11,"Select",0,"Select",0,0,0,0,0]
[12,"Select",0,"Select",0,0,0,0,0]
[13,"Select",0,"Select",0,0,0,0,0]
[14,"Select",0,"Select",0,0,0,0,0]
[15,"Select",0,"Select",0,0,0,0,0]
[16,"Select",0,"Select",0,0,0,0,0]
[17,"Select",0,"Select",0,0,0,0,0]
[18,"Select",0,"Select",0,0,0,0,0]
[19,"Select",0,"Select",0,0,0,0,0]
[20,"Select",0,"Select",0,0,0,0,0]
[]
[null,"Total Bonds & Debentures",null,null,{"$f":"SUM(E39:E58)","v":0},{"$f":"SUM(F39:F58)","v":0},0,0,0]
[]
[null,"(C) SECURITIES/ASSET-BASED SECURITIES",null,"Enter # of Asset Types"]
[null,null,null,null,{"$f":"YEAR($C$3)","v":2023},{"$f":"YEAR($C$3)","v":2023}]
[null,"Asset Type","Jurisdiction","BSCR Rating ","Face Value","Fair Value","Average YTM","Effective Duration","Effective Convexity"]
[1,"Select",0,"Select",0,0,0,0,0]
[2,"Select",0,"Select",0,0,0,0,0]
[3,"Select",0,"Select",0,0,0,0,0]
[4,"Select",0,"Select",0,0,0,0,0]
[5,"Select",0,"Select",0,0,0,0,0]
[6,"Select",0,"Select",0,0,0,0,0]
[7,"Select",0,"Select",0,0,0,0,0]
[8,"Select",0,"Select",0,0,0,0,0]
[9,"Select",0,"Select",0,0,0,0,0]
[10,"Select",0,"Select",0,0,0,0,0]
[11,"Select",0,"Select",0,0,0,0,0]
[12,"Select",0,"Select",0,0,0,0,0]
[13,"Select",0,"Select",0,0,0,0,0]
[14,"Select",0,"Select",0,0,0,0,0]
[15,"Select",0,"Select",0,0,0,0,0]
[16,"Select",0,"Select",0,0,0,0,0]
[17,"Select",0,"Select",0,0,0,0,0]
[18,"Select",0,"Select",0,0,0,0,0]
[19,"Select",0,"Select",0,0,0,0,0]
[20,"Select",0,"Select",0,0,0,0,0]
[]
[null,"Total Securities/Asset-Backed Securities",null,null,{"$f":"SUM(E65:E84)","v":0},{"$f":"SUM(F65:F84)","v":0},0,0,0]
[]
[null,"Form 1EBS Lines 2(b) & 3(b) Bonds & Debentures",null,null,null,{"$f":"'Form 1EBS'!F14+'Form 1EBS'!F25","v":0}]
[]
[null,"Check Sections B & C",null,null,null,{"$f":"ROUND(((F86+F60)-F88),0)","v":0},{"$f":"IF(F90=0,\"TRUE\",\"FALSE\")","v":"TRUE"}]
[]
[null,"(D) LISTED EQUITIES AND PREFERENCE SHARES",null,"Enter # of Asset Types"]
[null,null,null,null,{"$f":"YEAR($C$3)","v":2023},{"$f":"YEAR($C$3)","v":2023}]
[null,"Asset Type","Stock Exchange","BSCR Rating ","Face Value","Fair Value"]
[1,"Select",0,"Select",0,0]
[2,"Select",0,"Select",0,0]
[3,"Select",0,"Select",0,0]
[4,"Select",0,"Select",0,0]
[5,"Select",0,"Select",0,0]
[6,"Select",0,"Select",0,0]
[7,"Select",0,"Select",0,0]
[8,"Select",0,"Select",0,0]
[9,"Select",0,"Select",0,0]
[10,"Select",0,"Select",0,0]
[11,"Select",0,"Select",0,0]
[12,"Select",0,"Select",0,0]
[13,"Select",0,"Select",0,0]
[14,"Select",0,"Select",0,0]
[15,"Select",0,"Select",0,0]
[16,"Select",0,"Select",0,0]
[17,"Select",0,"Select",0,0]
[18,"Select",0,"Select",0,0]
[19,"Select",0,"Select",0,0]
[20,"Select",0,"Select",0,0]
[]
[null,"Total Listed Equities & Preference Shares",null,null,{"$f":"SUM(E95:E114)","v":0},{"$f":"SUM(F95:F114)","v":0}]
[]
[null,"Form 1EBS Lines 2(d) & 3(d) Equities & Preference Shares",null,null,null,{"$f":"'Form 1EBS'!F19+'Form 1EBS'!F30","v":0}]
[]
[null,"Check Section D",null,null,null,{"$f":"ROUND((F116-F118),0)","v":0},{"$f":"IF(F120=0,\"TRUE\",\"FALSE\")","v":"TRUE"}]
[]
[null,"(E) ALTERNATIVE INVESTMENTS",null,"Enter # of Asset Types"]
[null,null,null,null,{"$f":"YEAR($C$3)","v":2023},{"$f":"YEAR($C$3)","v":2023}]
[null,"Asset Type","Jurisdiction","BSCR Rating ","Face Value","Fair Value","Average YTM","Effective Duration","Effective Convexity"]
[1,"Select",0,"Select",0,0,0,0,0]
[2,"Select",0,"Select",0,0,0,0,0]
[3,"Select",0,"Select",0,0,0,0,0]
[4,"Select",0,"Select",0,0,0,0,0]
[5,"Select",0,"Select",0,0,0,0,0]
[6,"Select",0,"Select",0,0,0,0,0]
[7,"Select",0,"Select",0,0,0,0,0]
[8,"Select",0,"Select",0,0,0,0,0]
[9,"Select",0,"Select",0,0,0,0,0]
[10,"Select",0,"Select",0,0,0,0,0]
[11,"Select",0,"Select",0,0,0,0,0]
[12,"Select",0,"Select",0,0,0,0,0]
[13,"Select",0,"Select",0,0,0,0,0]
[14,"Select",0,"Select",0,0,0,0,0]
[15,"Select",0,"Select",0,0,0,0,0]
[16,"Select",0,"Select",0,0,0,0,0]
[17,"Select",0,"Select",0,0,0,0,0]
[18,"Select",0,"Select",0,0,0,0,0]
[19,"Select",0,"Select",0,0,0,0,0]
[20,"Select",0,"Select",0,0,0,0,0]
[]
[null,"Total Alternative Investments",null,null,{"$f":"SUM(E125:E144)","v":0},{"$f":"SUM(F125:F144)","v":0},0,0,0]
[]
[null,"Form 1EBS Lines 2(e) & 3(e) Alternative Investments",null,null,null,{"$f":"'Form 1EBS'!F20+'Form 1EBS'!F31","v":0}]
[]
[null,"Check Section E",null,null,null,{"$f":"ROUND((F146-F148),0)","v":0},{"$f":"IF(F150=0,\"TRUE\",\"FALSE\")","v":"TRUE"}]
[]
[null,"(F) LOANS",null,"Enter # of Asset Types"]
[null,null,null,null,{"$f":"YEAR($C$3)","v":2023},{"$f":"YEAR($C$3)","v":2023}]
[null,"Asset Type","Jurisdiction","BSCR Rating ","Face Value","Fair Value","Average YTM","Effective Duration","Effective Convexity"]
[1,"Select",0,"Select",0,0,0,0,0]
[2,"Select",0,"Select",0,0,0,0,0]
[3,"Select",0,"Select",0,0,0,0,0]
[4,"Select",0,"Select",0,0,0,0,0]
[5,"Select",0,"Select",0,0,0,0,0]
[6,"Select",0,"Select",0,0,0,0,0]
[7,"Select",0,"Select",0,0,0,0,0]
[8,"Select",0,"Select",0,0,0,0,0]
[9,"Select",0,"Select",0,0,0,0,0]
[10,"Select",0,"Select",0,0,0,0,0]
[11,"Select",0,"Select",0,0,0,0,0]
[12,"Select",0,"Select",0,0,0,0,0]
[13,"Select",0,"Select",0,0,0,0,0]
[14,"Select",0,"Select",0,0,0,0,0]
[15,"Select",0,"Select",0,0,0,0,0]
[16,"Select",0,"Select",0,0,0,0,0]
[17,"Select",0,"Select",0,0,0,0,0]
[18,"Select",0,"Select",0,0,0,0,0]
[19,"Select",0,"Select",0,0,0,0,0]
[20,"Select",0,"Select",0,0,0,0,0]
[]
[null,"Total Loans",null,null,{"$f":"SUM(E155:E174)","v":0},{"$f":"SUM(F155:F174)","v":0},0,0,0]
[]
[null,"Form 1EBS Line 5(c) Mortgage Loans",null,null,null,{"$f":"'Form 1EBS'!F47","v":0}]
[]
[null,"Check Section F",null,null,null,{"$f":"ROUND((F176-F178),0)","v":0},{"$f":"IF(F180=0,\"TRUE\",\"FALSE\")","v":"TRUE"}]
[]
[null,"(G) DERIVATIVES",null,"Enter # of Derivative Types"]
[null,"Derivative Type","Underlying","Purpose","Position",{"$f":"YEAR($C$3)&\" Market Value\"","v":"2023 Market Value"},"Centrally Cleared","Notional Value","Exposure (Dollar Delta, DV01, CS01"]
[1,"Select","Select","Select","Select",0,"Select",0,0]
[2,"Select","Select","Select","Select",0,"Select",0,0]
[3,"Select","Select","Select","Select",0,"Select",0,0]
[4,"Select","Select","Select","Select",0,"Select",0,0]
[5,"Select","Select","Select","Select",0,"Select",0,0]
[6,"Select","Select","Select","Select",0,"Select",0,0]
[7,"Select","Select","Select","Select",0,"Select",0,0]
[8,"Select","Select","Select","Select",0,"Select",0,0]
[9,"Select","Select","Select","Select",0,"Select",0,0]
[10,"Select","Select","Select","Select",0,"Select",0,0]
[11,"Select","Select","Select","Select",0,"Select",0,0]
[12,"Select","Select","Select","Select",0,"Select",0,0]
[13,"Select","Select","Select","Select",0,"Select",0,0]
[14,"Select","Select","Select","Select",0,"Select",0,0]
[15,"Select","Select","Select","Select",0,"Select",0,0]
[16,"Select","Select","Select","Select",0,"Select",0,0]
[17,"Select","Select","Select","Select",0,"Select",0,0]
[18,"Select","Select","Select","Select",0,"Select",0,0]
[19,"Select","Select","Select","Select",0,"Select",0,0]
[20,"Select","Select","Select","Select",0,"Select",0,0]
[]
[null,"Total Derivatives",null,null,null,{"$f":"SUM(F184:F203)","v":0},null,{"$f":"SUM(H184:H203)","v":0},{"$f":"SUM(I184:I203)","v":0}]
[]
[null,"Form 1EBS Line 13(a) Derivatives",null,null,null,{"$f":"'Form 1EBS'!F78","v":0}]
[]
[null,"Check Section G",null,null,null,{"$f":"ROUND((F205-F207),0)","v":0},{"$f":"IF(F209=0,\"TRUE\",\"FALSE\")","v":"TRUE"}]
[]
[null,"(H) OTHER ASSETS",null,"Enter # of Asset Types"]
[null,null,null,null,{"$f":"YEAR($C$3)","v":2023},{"$f":"YEAR($C$3)","v":2023}]
[null,"Asset Type","Jurisdiction","BSCR Rating ","Face Value","Fair Value","Average YTM","Effective Duration","Effective Convexity"]
[1,"Select",0,"Select",0,0,0,0,0]
[2,"Select",0,"Select",0,0,0,0,0]
[3,"Select",0,"Select",0,0,0,0,0]
[4,"Select",0,"Select",0,0,0,0,0]
[5,"Select",0,"Select",0,0,0,0,0]
[6,"Select",0,"Select",0,0,0,0,0]
[7,"Select",0,"Select",0,0,0,0,0]
[8,"Select",0,"Select",0,0,0,0,0]
[9,"Select",0,"Select",0,0,0,0,0]
[10,"Select",0,"Select",0,0,0,0,0]
[11,"Select",0,"Select",0,0,0,0,0]
[12,"Select",0,"Select",0,0,0,0,0]
[13,"Select",0,"Select",0,0,0,0,0]
[14,"Select",0,"Select",0,0,0,0,0]
[15,"Select",0,"Select",0,0,0,0,0]
[16,"Select",0,"Select",0,0,0,0,0]
[17,"Select",0,"Select",0,0,0,0,0]
[18,"Select",0,"Select",0,0,0,0,0]
[19,"Select",0,"Select",0,0,0,0,0]
[20,"Select",0,"Select",0,0,0,0,0]
[]
[null,"Total Other Assets",null,null,null,{"$f":"SUM(F214:F233)","v":0},0,0,0]
[]
[null,"Form 1EBS Lines X(x) Other Assets",null,null,null,0]
[]
[null,"Check Section G",null,null,null,{"$f":"ROUND((F235-F237),0)","v":0},{"$f":"IF(F239=0,\"TRUE\",\"FALSE\")","v":"TRUE"}]
[]
[null,"TOTAL ASSETS",null,null,null,{"$f":"F30+F60+F116+F86+F146+F235+F205+F176","v":0}]
[]
[null,"TOTAL ASSETS (Form 1EBS Line 15)",null,null,null,{"$f":"F34+F90+F120+F150+F180+F209+F239","v":0}]
[]
[null,"Check Form 1EBS",null,null,null,{"$f":"IF(F247=0,\"TRUE\",\"FALSE\")","v":"TRUE"}]
[null,null,null,null,null,{"$f":"IF(ROUND((F241-(0)),0)=0,\"TRUE\",\"FALSE\")","v":"TRUE"}]
[null,"Difference",null,null,null,{"$f":"ROUND((F243-F241),0)","v":0}]
[]
[null,"EFFECTIVE DURATION",null,null,0]
[]
[null,"EFFECTIVE CONVEXITY",null,null,0]
[]
[]
[]
["Select","Select","Select","Select","Select","Select","Select","Select","Select","Select","Select","Select"]
["Cash ","Sovereign Bonds","RMBS - Agency","Public Equities","Private Equity","Investment Income Due and Accrued","Energy","Holding Entity","Significant Influence",null,"Insured/Guaranteed Mortgages"]
["Certificates of Deposit","Municipals","RMBS - Non-agency","Public Preferred Stock","Investment Funds","Accounts and Premiums Receivable","Materials","Operating Entity","Control",null,"Other Commercial and Farm Mortgages"]
["Money Market Funds","Supranationals (multilateral development banks and international organizations)","CMBS","Exchange Traded Funds","Hedge Funds","Reinsurance Balance Receivable","Industrial","Branch",null,null,"Other Residential Mortgages"]
["Other ","Corporate bonds","CLOs","Other","Private Credit Funds","Funds Held by Ceding Reinsurers","Consumer Discretionary","Select",null,null,"Mortgages Not In Good Standing"]
[null,"Mutual Funds","CDOs",null,"Catastrophe Bonds","Sundry Assets","Consumer Staples",null,null,null,"Collateral Loans"]
[null,"Other - Secured Bonds","Auto Loan ABS",null,"Other Insurance-Linked Securities","Letter of Credit, Guarantees and Other Instruments","Healthcare",null,null,null,"Middle Market Loans"]
[null,"Other - Unsecured Bonds","Student Loan ABS",null,"Infrastructure Debt","Other","Financial",null,null,null,"Other Direct Private Lending"]
[null,"Other ","Credit Card Receivable ABS",null,"Equity Investments in Infrastructure",null,null,null,null,null,"Policy Loans"]
[null,null,"Other Asset Backed Securities",null,"Investment in Affiliates",null,null,null,null,null,"Other"]
[null,null,null,null,"Advances to Affiliates"]
[null,null,null,null,"Equity Release / Reverse Mortgages"]
[null,null,null,null,"Other "]
[]
[]
[]
["Select","Select","Select","Select","Select","Select",null,"Select"]
["Listed options","Equity","Hedging","Long / Receive Fixed / Sell Protection","Private Equity","Investment Income Due and Accrued",null,"BSCR Rating 0"]
["Futures","Debt","Speculative","Short / Receive Floating / Buy Protection","Investment Funds","Accounts and Premiums Receivable",null,"BSCR Rating 1",null,null,"Select"]
["Forwards","Interest Rate",null,null,"Hedge Funds","Reinsurance Balance Receivable",null,"BSCR Rating 2",null,null,"Insured/Guaranteed Mortgages"]
["Swaps","Inflation",null,null,"Private Credit Funds","Sundry Assets",null,"BSCR Rating 3",null,null,"Other Commercial and Farm Mortgages"]
["Swaptions","Credit","Select",null,"Catastrophe Bonds","Letter of Credit, Guarantees and Other Instruments",null,"BSCR Rating 4",null,null,"Other Residential Mortgages"]
["OTC options","Currencies","Yes",null,"Other Insurance-Linked Securities","Other",null,"BSCR Rating 5",null,null,"Mortgages Not In Good Standing"]
["Other","Commodities","No",null,"Advances to Affiliates",null,null,"BSCR Rating 6",null,null,"Collateral Loans"]
[null,"Other",null,null,"Infrastructure Debt",null,null,"BSCR Rating 7",null,null,"Middle Market Loans"]
[null,null,null,null,"Equity Investments in Infrastructure",null,null,"BSCR Rating 8",null,null,"Other Direct Private Lending"]
[null,null,null,null,"Equity Release / Reverse Mortgages",null,null,null,null,null,"Policy Loans"]
[null,null,null,null,"Other ",null,null,null,null,null,"Other"]
[]
[null,null,null,null,null,null,null,null,"Switzerland Francs"]
[null,null,null,null,null,null,null,null,"Chile Pesos"]
[null,null,null,null,null,null,null,null,"China Yuan Renminbi"]
[null,null,null,null,null,null,null,null,"Colombia Pesos"]
[null,null,null,null,null,null,null,null,"Costa Rica Colones"]
[null,null,null,null,null,null,null,null,"Cuba Convertible Pesos"]
[null,null,null,null,null,null,null,null,"Cuba Pesos"]
[null,null,null,null,null,null,null,null,"Cape Verde Escudos"]
[null,null,null,null,null,null,null,null,"Czech Republic Koruny"]
[null,null,null,null,null,null,null,null,"Djibouti Francs"]
[null,null,null,null,null,null,null,null,"Denmark Kroner"]
[null,null,null,null,null,null,null,null,"Dominican Republic Pesos"]
[null,null,null,null,null,null,null,null,"Algeria Dinars"]
[null,null,null,null,null,null,null,null,"Estonia Krooni"]
[null,null,null,null,null,null,null,null,"Egypt Pounds"]
[null,null,null,null,null,null,null,null,"Eritrea Nakfa"]
[null,null,null,null,null,null,null,null,"Ethiopia Birr"]
[null,null,null,null,null,null,null,null,"Fiji Dollars"]
[null,null,null,null,null,null,null,null,"Falkland Islands Pounds"]
[null,null,null,null,null,null,null,null,"United Kingdom Pounds"]
[null,null,null,null,null,null,null,null,"Georgia Lari"]
[null,null,null,null,null,null,null,null,"Guernsey Pounds"]
[null,null,null,null,null,null,null,null,"Ghana Cedis"]
[null,null,null,null,null,null,null,null,"Gibraltar Pounds"]
[null,null,null,null,null,null,null,null,"Gambia Dalasi"]
[null,null,null,null,null,null,null,null,"Guinea Francs"]
[null,null,null,null,null,null,null,null,"Guatemala Quetzales"]
[null,null,null,null,null,null,null,null,"Guyana Dollars"]
[null,null,null,null,null,null,null,null,"Hong Kong Dollars"]
[null,null,null,null,null,null,null,null,"Honduras Lempiras"]
[null,null,null,null,null,null,null,null,"Croatia Kuna"]
[null,null,null,null,null,null,null,null,"Haiti Gourdes"]
[null,null,null,null,null,null,null,null,"Hungary Forint"]
[null,null,null,null,null,null,null,null,"Indonesia Rupiahs"]
[null,null,null,null,null,null,null,null,"Israel New Shekels"]
[null,null,null,null,null,null,null,null,"Isle of Man Pounds"]
[null,null,null,null,null,null,null,null,"India Rupees"]
[null,null,null,null,null,null,null,null,"Iraq Dinars"]
[null,null,null,null,null,null,null,null,"Iran Rials"]
[null,null,null,null,null,null,null,null,"Iceland Kronur"]
[null,null,null,null,null,null,null,null,"Jersey Pounds"]
[null,null,null,null,null,null,null,null,"Jamaica Dollars"]
[null,null,null,null,null,null,null,null,"Jordan Dinars"]
[null,null,null,null,null,null,null,null,"Japan Yen"]
[null,null,null,null,null,null,null,null,"Kenya Shillings"]
[null,null,null,null,null,null,null,null,"Kyrgyzstan Soms"]
[null,null,null,null,null,null,null,null,"Cambodia Riels"]
[null,null,null,null,null,null,null,null,"Comoros Francs"]
[null,null,null,null,null,null,null,null,"North Korea Won"]
[null,null,null,null,null,null,null,null,"South Korea Won"]
[null,null,null,null,null,null,null,null,"Kuwait Dinars"]
[null,null,null,null,null,null,null,null,"Cayman Islands Dollars"]
[null,null,null,null,null,null,null,null,"Kazakhstan Tenge"]
[null,null,null,null,null,null,null,null,"Laos Kips"]
[null,null,null,null,null,null,null,null,"Lebanon Pounds"]
[null,null,null,null,null,null,null,null,"Sri Lanka Rupees"]
[null,null,null,null,null,null,null,null,"Liberia Dollars"]
[null,null,null,null,null,null,null,null,"Lesotho Maloti"]
[null,null,null,null,null,null,null,null,"Lithuania Litai"]
[null,null,null,null,null,null,null,null,"Latvia Lati"]
[null,null,null,null,null,null,null,null,"Libya Dinars"]
[null,null,null,null,null,null,null,null,"Morocco Dirhams"]
[null,null,null,null,null,null,null,null,"Moldova Lei"]
[null,null,null,null,null,null,null,null,"Madagascar Ariary"]
[null,null,null,null,null,null,null,null,"Macedonia Denars"]
[null,null,null,null,null,null,null,null,"Myanmar Kyats"]
[null,null,null,null,null,null,null,null,"Mongolia Tugriks"]
[null,null,null,null,null,null,null,null,"Macau Patacas"]
[null,null,null,null,null,null,null,null,"Mauritania Ouguiyas"]
[null,null,null,null,null,null,null,null,"Mauritius Rupees"]
[null,null,null,null,null,null,null,null,"Maldives Rufiyaa"]
[null,null,null,null,null,null,null,null,"Malawi Kwachas"]
[null,null,null,null,null,null,null,null,"Mexico Pesos"]
[null,null,null,null,null,null,null,null,"Malaysia Ringgits"]
[null,null,null,null,null,null,null,null,"Mozambique Meticais"]
[null,null,null,null,null,null,null,null,"Namibia Dollars"]
[null,null,null,null,null,null,null,null,"Nigeria Nairas"]
[null,null,null,null,null,null,null,null,"Nicaragua Cordobas"]
[null,null,null,null,null,null,null,null,"Norway Kroner"]
[null,null,null,null,null,null,null,null,"Nepal Rupees"]
[null,null,null,null,null,null,null,null,"New Zealand Dollars"]
[null,null,null,null,null,null,null,null,"Oman Rials"]
[null,null,null,null,null,null,null,null,"Panama Balboas"]
[null,null,null,null,null,null,null,null,"Peru Nuevos Soles"]
[null,null,null,null,null,null,null,null,"Papua New Guinea Kina"]
[null,null,null,null,null,null,null,null,"Philippines Pesos"]
[null,null,null,null,null,null,null,null,"Pakistan Rupees"]
[null,null,null,null,null,null,null,null,"Poland Zlotych"]
[null,null,null,null,null,null,null,null,"Paraguay Guarani"]
[null,null,null,null,null,null,null,null,"Qatar Riyals"]
[null,null,null,null,null,null,null,null,"Romania New Lei"]
[null,null,null,null,null,null,null,null,"Serbia Dinars"]
[null,null,null,null,null,null,null,null,"Russia Rubles"]
[null,null,null,null,null,null,null,null,"Rwanda Francs"]
[null,null,null,null,null,null,null,null,"Saudi Arabia Riyals"]
[null,null,null,null,null,null,null,null,"Solomon Islands Dollars"]
[null,null,null,null,null,null,null,null,"Seychelles Rupees"]
[null,null,null,null,null,null,null,null,"Sudan Pounds"]
[null,null,null,null,null,null,null,null,"Sweden Kronor"]
[null,null,null,null,null,null,null,null,"Singapore Dollars"]
[null,null,null,null,null,null,null,null,"Saint Helena Pounds"]
[null,null,null,null,null,null,null,null,"Slovakia Koruny"]
[null,null,null,null,null,null,null,null,"Sierra Leone Leones"]
[null,null,null,null,null,null,null,null,"Somalia Shillings"]
[null,null,null,null,null,null,null,null,"Seborga Luigini"]
[null,null,null,null,null,null,null,null,"Suriname Dollars"]
[null,null,null,null,null,null,null,null,"São Tome and Principe Dobras"]
[null,null,null,null,null,null,null,null,"El Salvador Colones"]
[null,null,null,null,null,null,null,null,"Syria Pounds"]
[null,null,null,null,null,null,null,null,"Swaziland Emalangeni"]
[null,null,null,null,null,null,null,null,"Thailand Baht"]
[null,null,null,null,null,null,null,null,"Tajikistan Somoni"]
[null,null,null,null,null,null,null,null,"Turkmenistan Manats"]
[null,null,null,null,null,null,null,null,"Tunisia Dinars"]
[null,null,null,null,null,null,null,null,"Tonga Pa'anga"]
[null,null,null,null,null,null,null,null,"Turkey New Lira"]
[null,null,null,null,null,null,null,null,"Trinidad and Tobago Dollars"]
[null,null,null,null,null,null,null,null,"Tuvalu Dollars"]
[null,null,null,null,null,null,null,null,"Taiwan New Dollars"]
[null,null,null,null,null,null,null,null,"Tanzania Shillings"]
[null,null,null,null,null,null,null,null,"Ukraine Hryvnia"]
[null,null,null,null,null,null,null,null,"Uganda Shillings"]
[null,null,null,null,null,null,null,null,"Uruguay Pesos"]
[null,null,null,null,null,null,null,null,"Uzbekistan Sums"]
[null,null,null,null,null,null,null,null,"Venezuela Bolivares"]
[null,null,null,null,null,null,null,null,"Venezuela Bolivares Fuertes"]
[null,null,null,null,null,null,null,null,"Vietnam Dong"]
[null,null,null,null,null,null,null,null,"Vanuatu Vatu"]
[null,null,null,null,null,null,null,null,"Samoa Tala"]
[null,null,null,null,null,null,null,null,"Communauté Financière Africaine Francs BEAC"]
[null,null,null,null,null,null,null,null,"Silver Ounces"]
[null,null,null,null,null,null,null,null,"Gold Ounces"]
[null,null,null,null,null,null,null,null,"East Caribbean Dollars"]
[null,null,null,null,null,null,null,null,"International Monetary Fund Special Drawing Rights"]
[null,null,null,null,null,null,null,null,"Communauté Financière Africaine Francs BCEAO"]
[null,null,null,null,null,null,null,null,"Palladium Ounces"]
[null,null,null,null,null,null,null,null,"Comptoirs Français du Pacifique Francs"]
[null,null,null,null,null,null,null,null,"Platinum Ounces"]
[null,null,null,null,null,null,null,null,"Yemen Rials"]
[null,null,null,null,null,null,null,null,"South Africa Rand"]
[null,null,null,null,null,null,null,null,"Zambia Kwacha"]
[null,null,null,null,null,null,null,null,"Zimbabwe Dollars"]

{"sheet":"Schedule VIA (EBS) (New)","index":61,"n_rows":425,"n_cols":12,"rows_kept":425,"cut":false,"hidden":true,"merged":[[211,1,211,2],[5,1,5,2],[35,1,35,2],[36,1,36,2],[61,1,61,2],[91,1,91,2],[92,1,92,2],[121,1,121,2],[122,1,122,2],[151,1,151,2],[152,1,152,2],[210,1,210,2]]}
[null,"DRAFT EBS SCHEDULE OF FUNDS HELD BY CEDING REINSURERS",null,null,null,null,null,null,{"$f":"HYPERLINK(\"#'Index'!A1\",\"Return to Index\")","v":"Return to Index"}]
[null,{"$f":"'Form 1'!$B$2","v":"Enter Parent Company Name"}]
[null,"As at",{"$f":"'Form 1'!$C$3","v":"2023-12-31"}]
[null,"expressed in ['000s]",{"$f":"'Form 1'!$C$4","v":" ['000s]United States Dollars"}]
[]
[null,"(A) CASH AND CASH EQUIVALENTS",null,"Enter # of Asset Types"]
[null,null,null,null,{"$f":"YEAR($C$3)","v":2023},{"$f":"YEAR($C$3)","v":2023}]
[null,"Asset Type","Jurisdiction","BSCR Rating ","Face Value","Fair Value"]
[1,"Select",null,"Select"]
[2,"Select",null,"Select"]
[3,"Select",null,"Select"]
[4,"Select",null,"Select"]
[5,"Select",null,"Select"]
[6,"Select",null,"Select"]
[7,"Select",null,"Select"]
[8,"Select",null,"Select"]
[9,"Select",null,"Select"]
[10,"Select",null,"Select"]
[11,"Select",null,"Select"]
[12,"Select",null,"Select"]
[13,"Select",null,"Select"]
[14,"Select",null,"Select"]
[15,"Select",null,"Select"]
[16,"Select",null,"Select"]
[17,"Select",null,"Select"]
[18,"Select",null,"Select"]
[19,"Select",null,"Select"]
[20,"Select",null,"Select"]
[]
[null,"Total Cash & Cash Equivalents",null,null,{"$f":"SUM(E9:E28)","v":0},{"$f":"SUM(F9:F28)","v":0}]
[]
[null,"Form 1EBS Line 1 Cash and Cash Equivalents"]
[]
[null,"Check Section A",null,null,null,{"$f":"ROUND((F30-F32),0)","v":0},{"$f":"IF(F34=0,\"TRUE\",\"FALSE\")","v":"TRUE"}]
[]
[null,"(B) BONDS AND DEBENTURES",null,"Enter # of Asset Types"]
[null,null,null,null,{"$f":"YEAR($C$3)","v":2023},{"$f":"YEAR($C$3)","v":2023}]
[null,"Asset Type","Jurisdiction","BSCR Rating ","Face Value","Fair Value","Average YTM","Effective Duration","Effective Convexity"]
[1,"Select",0,"Select",0,0,0,0,0]
[2,"Select",0,"Select",0,0,0,0,0]
[3,"Select",0,"Select",0,0,0,0,0]
[4,"Select",0,"Select",0,0,0,0,0]
[5,"Select",0,"Select",0,0,0,0,0]
[6,"Select",0,"Select",0,0,0,0,0]
[7,"Select",0,"Select",0,0,0,0,0]
[8,"Select",0,"Select",0,0,0,0,0]
[9,"Select",0,"Select",0,0,0,0,0]
[10,"Select",0,"Select",0,0,0,0,0]
[11,"Select",0,"Select",0,0,0,0,0]
[12,"Select",0,"Select",0,0,0,0,0]
[13,"Select",0,"Select",0,0,0,0,0]
[14,"Select",0,"Select",0,0,0,0,0]
[15,"Select",0,"Select",0,0,0,0,0]
[16,"Select",0,"Select",0,0,0,0,0]
[17,"Select",0,"Select",0,0,0,0,0]
[18,"Select",0,"Select",0,0,0,0,0]
[19,"Select",0,"Select",0,0,0,0,0]
[20,"Select",0,"Select",0,0,0,0,0]
[]
[null,"Total Bonds & Debentures",null,null,{"$f":"SUM(E39:E58)","v":0},{"$f":"SUM(F39:F58)","v":0},0,0,0]
[]
[null,"(C) SECURITIES/ASSET-BASED SECURITIES",null,"Enter # of Asset Types"]
[null,null,null,null,{"$f":"YEAR($C$3)","v":2023},{"$f":"YEAR($C$3)","v":2023}]
[null,"Asset Type","Jurisdiction","BSCR Rating ","Face Value","Fair Value","Average YTM","Effective Duration","Effective Convexity"]
[1,"Select",0,"Select",0,0,0,0,0]
[2,"Select",0,"Select",0,0,0,0,0]
[3,"Select",0,"Select",0,0,0,0,0]
[4,"Select",0,"Select",0,0,0,0,0]
[5,"Select",0,"Select",0,0,0,0,0]
[6,"Select",0,"Select",0,0,0,0,0]
[7,"Select",0,"Select",0,0,0,0,0]
[8,"Select",0,"Select",0,0,0,0,0]
[9,"Select",0,"Select",0,0,0,0,0]
[10,"Select",0,"Select",0,0,0,0,0]
[11,"Select",0,"Select",0,0,0,0,0]
[12,"Select",0,"Select",0,0,0,0,0]
[13,"Select",0,"Select",0,0,0,0,0]
[14,"Select",0,"Select",0,0,0,0,0]
[15,"Select",0,"Select",0,0,0,0,0]
[16,"Select",0,"Select",0,0,0,0,0]
[17,"Select",0,"Select",0,0,0,0,0]
[18,"Select",0,"Select",0,0,0,0,0]
[19,"Select",0,"Select",0,0,0,0,0]
[20,"Select",0,"Select",0,0,0,0,0]
[]
[null,"Total Securities/Asset-Backed Securities",null,null,{"$f":"SUM(E65:E84)","v":0},{"$f":"SUM(F65:F84)","v":0},0,0,0]
[]
[null,"Form 1EBS Lines 2(b) & 3(b) Bonds & Debentures"]
[]
[null,"Check Sections B & C",null,null,null,{"$f":"ROUND(((F86+F60)-F88),0)","v":0},{"$f":"IF(F90=0,\"TRUE\",\"FALSE\")","v":"TRUE"}]
[]
[null,"(D) LISTED EQUITIES AND PREFERENCE SHARES",null,"Enter # of Asset Types"]
[null,null,null,null,{"$f":"YEAR($C$3)","v":2023},{"$f":"YEAR($C$3)","v":2023}]
[null,"Asset Type","Stock Exchange","BSCR Rating ","Face Value","Fair Value"]
[1,"Select",0,"Select",0,0]
[2,"Select",0,"Select",0,0]
[3,"Select",0,"Select",0,0]
[4,"Select",0,"Select",0,0]
[5,"Select",0,"Select",0,0]
[6,"Select",0,"Select",0,0]
[7,"Select",0,"Select",0,0]
[8,"Select",0,"Select",0,0]
[9,"Select",0,"Select",0,0]
[10,"Select",0,"Select",0,0]
[11,"Select",0,"Select",0,0]
[12,"Select",0,"Select",0,0]
[13,"Select",0,"Select",0,0]
[14,"Select",0,"Select",0,0]
[15,"Select",0,"Select",0,0]
[16,"Select",0,"Select",0,0]
[17,"Select",0,"Select",0,0]
[18,"Select",0,"Select",0,0]
[19,"Select",0,"Select",0,0]
[20,"Select",0,"Select",0,0]
[]
[null,"Total Listed Equities & Preference Shares",null,null,{"$f":"SUM(E95:E114)","v":0},{"$f":"SUM(F95:F114)","v":0}]
[]
[null,"Form 1EBS Lines 2(d) & 3(d) Bonds & Debentures"]
[]
[null,"Check Section D",null,null,null,{"$f":"ROUND((F116-F118),0)","v":0},{"$f":"IF(F120=0,\"TRUE\",\"FALSE\")","v":"TRUE"}]
[]
[null,"(E) ALTERNATIVE INVESTMENTS",null,"Enter # of Asset Types"]
[null,null,null,null,{"$f":"YEAR($C$3)","v":2023},{"$f":"YEAR($C$3)","v":2023}]
[null,"Asset Type","Jurisdiction","BSCR Rating ","Face Value","Fair Value","Average YTM","Effective Duration","Effective Convexity"]
[1,"Select",0,"Select",0,0,0,0,0]
[2,"Select",0,"Select",0,0,0,0,0]
[3,"Select",0,"Select",0,0,0,0,0]
[4,"Select",0,"Select",0,0,0,0,0]
[5,"Select",0,"Select",0,0,0,0,0]
[6,"Select",0,"Select",0,0,0,0,0]
[7,"Select",0,"Select",0,0,0,0,0]
[8,"Select",0,"Select",0,0,0,0,0]
[9,"Select",0,"Select",0,0,0,0,0]
[10,"Select",0,"Select",0,0,0,0,0]
[11,"Select",0,"Select",0,0,0,0,0]
[12,"Select",0,"Select",0,0,0,0,0]
[13,"Select",0,"Select",0,0,0,0,0]
[14,"Select",0,"Select",0,0,0,0,0]
[15,"Select",0,"Select",0,0,0,0,0]
[16,"Select",0,"Select",0,0,0,0,0]
[17,"Select",0,"Select",0,0,0,0,0]
[18,"Select",0,"Select",0,0,0,0,0]
[19,"Select",0,"Select",0,0,0,0,0]
[20,"Select",0,"Select",0,0,0,0,0]
[]
[null,"Total Alternative Investments",null,null,{"$f":"SUM(E125:E144)","v":0},{"$f":"SUM(F125:F144)","v":0},0,0,0]
[]
[null,"Form 1EBS Lines 2(e) & 3(e) Alternative Investments"]
[]
[null,"Check Section E",null,null,null,{"$f":"ROUND((F146-F148),0)","v":0},{"$f":"IF(F150=0,\"TRUE\",\"FALSE\")","v":"TRUE"}]
[]
[null,"(F) LOANS",null,"Enter # of Asset Types"]
[null,null,null,null,{"$f":"YEAR($C$3)","v":2023},{"$f":"YEAR($C$3)","v":2023}]
[null,"Asset Type","Jurisdiction","BSCR Rating ","Face Value","Fair Value","Average YTM","Effective Duration","Effective Convexity"]
[1,"Select",0,"Select",0,0,0,0,0]
[2,"Select",0,"Select",0,0,0,0,0]
[3,"Select",0,"Select",0,0,0,0,0]
[4,"Select",0,"Select",0,0,0,0,0]
[5,"Select",0,"Select",0,0,0,0,0]
[6,"Select",0,"Select",0,0,0,0,0]
[7,"Select",0,"Select",0,0,0,0,0]
[8,"Select",0,"Select",0,0,0,0,0]
[9,"Select",0,"Select",0,0,0,0,0]
[10,"Select",0,"Select",0,0,0,0,0]
[11,"Select",0,"Select",0,0,0,0,0]
[12,"Select",0,"Select",0,0,0,0,0]
[13,"Select",0,"Select",0,0,0,0,0]
[14,"Select",0,"Select",0,0,0,0,0]
[15,"Select",0,"Select",0,0,0,0,0]
[16,"Select",0,"Select",0,0,0,0,0]
[17,"Select",0,"Select",0,0,0,0,0]
[18,"Select",0,"Select",0,0,0,0,0]
[19,"Select",0,"Select",0,0,0,0,0]
[20,"Select",0,"Select",0,0,0,0,0]
[]
[null,"Total Loans",null,null,{"$f":"SUM(E155:E174)","v":0},{"$f":"SUM(F155:F174)","v":0},0,0,0]
[]
[null,"Form 1EBS Line 5(c) Mortgage Loans"]
[]
[null,"Check Section F",null,null,null,{"$f":"ROUND((F176-F178),0)","v":0},{"$f":"IF(F180=0,\"TRUE\",\"FALSE\")","v":"TRUE"}]
[]
[null,"(G) DERIVATIVES",null,"Enter # of Derivative Types"]
[null,"Derivative Type","Underlying","Purpose","Position",{"$f":"YEAR($C$3)&\" Market Value\"","v":"2023 Market Value"},"Centrally Cleared","Notional Value","Exposure (Dollar Delta, DV01, CS01"]
[1,"Select","Select","Select","Select",0,"Select",0,0]
[2,"Select","Select","Select","Select",0,"Select",0,0]
[3,"Select","Select","Select","Select",0,"Select",0,0]
[4,"Select","Select","Select","Select",0,"Select",0,0]
[5,"Select","Select","Select","Select",0,"Select",0,0]
[6,"Select","Select","Select","Select",0,"Select",0,0]
[7,"Select","Select","Select","Select",0,"Select",0,0]
[8,"Select","Select","Select","Select",0,"Select",0,0]
[9,"Select","Select","Select","Select",0,"Select",0,0]
[10,"Select","Select","Select","Select",0,"Select",0,0]
[11,"Select","Select","Select","Select",0,"Select",0,0]
[12,"Select","Select","Select","Select",0,"Select",0,0]
[13,"Select","Select","Select","Select",0,"Select",0,0]
[14,"Select","Select","Select","Select",0,"Select",0,0]
[15,"Select","Select","Select","Select",0,"Select",0,0]
[16,"Select","Select","Select","Select",0,"Select",0,0]
[17,"Select","Select","Select","Select",0,"Select",0,0]
[18,"Select","Select","Select","Select",0,"Select",0,0]
[19,"Select","Select","Select","Select",0,"Select",0,0]
[20,"Select","Select","Select","Select",0,"Select",0,0]
[]
[null,"Total Derivatives",null,null,null,{"$f":"SUM(F184:F203)","v":0},null,{"$f":"SUM(H184:H203)","v":0},{"$f":"SUM(I184:I203)","v":0}]
[]
[null,"Form 1EBS Line 13(a) Derivatives"]
[]
[null,"Check Section G",null,null,null,{"$f":"ROUND((F205-F207),0)","v":0},{"$f":"IF(F209=0,\"TRUE\",\"FALSE\")","v":"TRUE"}]
[]
[null,"(H) OTHER ASSETS",null,"Enter # of Asset Types"]
[null,null,null,null,{"$f":"YEAR($C$3)","v":2023},{"$f":"YEAR($C$3)","v":2023}]
[null,"Asset Type","Jurisdiction","BSCR Rating ","Face Value","Fair Value","Average YTM","Effective Duration","Effective Convexity"]
[1,"Select",0,"Select",0,0,0,0,0]
[2,"Select",0,"Select",0,0,0,0,0]
[3,"Select",0,"Select",0,0,0,0,0]
[4,"Select",0,"Select",0,0,0,0,0]
[5,"Select",0,"Select",0,0,0,0,0]
[6,"Select",0,"Select",0,0,0,0,0]
[7,"Select",0,"Select",0,0,0,0,0]
[8,"Select",0,"Select",0,0,0,0,0]
[9,"Select",0,"Select",0,0,0,0,0]
[10,"Select",0,"Select",0,0,0,0,0]
[11,"Select",0,"Select",0,0,0,0,0]
[12,"Select",0,"Select",0,0,0,0,0]
[13,"Select",0,"Select",0,0,0,0,0]
[14,"Select",0,"Select",0,0,0,0,0]
[15,"Select",0,"Select",0,0,0,0,0]
[16,"Select",0,"Select",0,0,0,0,0]
[17,"Select",0,"Select",0,0,0,0,0]
[18,"Select",0,"Select",0,0,0,0,0]
[19,"Select",0,"Select",0,0,0,0,0]
[20,"Select",0,"Select",0,0,0,0,0]
[]
[null,"Total Other Assets",null,null,null,{"$f":"SUM(F214:F233)","v":0},0,0,0]
[]
[null,"Form 1EBS Lines X(x) Other Assets"]
[]
[null,"Check Section G",null,null,null,{"$f":"ROUND((F235-F237),0)","v":0},{"$f":"IF(F239=0,\"TRUE\",\"FALSE\")","v":"TRUE"}]
[]
[null,"TOTAL ASSETS",null,null,null,{"$f":"F30+F60+F116+F86+F146+F235+F205+F176","v":0}]
[]
[null,"TOTAL ASSETS (Form 1EBS Line 15)",null,null,null,{"$f":"F34+F90+F120+F150+F180+F209+F239","v":0}]
[]
[null,"Check Form 1EBS",null,null,null,{"$f":"IF(F247=0,\"TRUE\",\"FALSE\")","v":"TRUE"}]
[null,null,null,null,null,{"$f":"IF(ROUND((F241-(0)),0)=0,\"TRUE\",\"FALSE\")","v":"TRUE"}]
[null,"Difference",null,null,null,{"$f":"ROUND((F243-F241),0)","v":0}]
[]
[null,"EFFECTIVE DURATION",null,null,0]
[]
[null,"EFFECTIVE CONVEXITY",null,null,0]
[]
[]
[]
["Select","Select","Select","Select","Select","Select","Select","Select","Select","Select","Select","Select"]
["Cash ","Sovereign Bonds","RMBS - Agency","Public Equities","Private Equity","Investment Income Due and Accrued","Energy","Holding Entity","Significant Influence",null,"Insured/Guaranteed Mortgages"]
["Certificates of Deposit","Municipals","RMBS - Non-agency","Public Preferred Stock","Investment Funds","Accounts and Premiums Receivable","Materials","Operating Entity","Control",null,"Other Commercial and Farm Mortgages"]
["Money Market Funds","Supranationals (multilateral development banks and international organizations)","CMBS","Exchange Traded Funds","Hedge Funds","Reinsurance Balance Receivable","Industrial","Branch",null,null,"Other Residential Mortgages"]
["Other ","Corporate bonds","CLOs","Other","Private Credit Funds","Funds Held by Ceding Reinsurers","Consumer Discretionary","Select",null,null,"Mortgages Not In Good Standing"]
[null,"Mutual Funds","CDOs",null,"Catastrophe Bonds","Sundry Assets","Consumer Staples",null,null,null,"Collateral Loans"]
[null,"Other - Secured Bonds","Auto Loan ABS",null,"Other Insurance-Linked Securities","Letter of Credit, Guarantees and Other Instruments","Healthcare",null,null,null,"Middle Market Loans"]
[null,"Other - Unsecured Bonds","Student Loan ABS",null,"Infrastructure Debt","Other","Financial",null,null,null,"Other Direct Private Lending"]
[null,"Other ","Credit Card Receivable ABS",null,"Equity Investments in Infrastructure",null,null,null,null,null,"Policy Loans"]
[null,null,"Other Asset Backed Securities",null,"Investment in Affiliates",null,null,null,null,null,"Other"]
[null,null,null,null,"Advances to Affiliates"]
[null,null,null,null,"Equity Release / Reverse Mortgages"]
[null,null,null,null,"Other "]
[]
[]
[]
["Select","Select","Select","Select","Select","Select",null,"Select"]
["Listed options","Equity","Hedging","Long / Receive Fixed / Sell Protection","Private Equity","Investment Income Due and Accrued",null,"BSCR Rating 0"]
["Futures","Debt","Speculative","Short / Receive Floating / Buy Protection","Investment Funds","Accounts and Premiums Receivable",null,"BSCR Rating 1",null,null,"Select"]
["Forwards","Interest Rate",null,null,"Hedge Funds","Reinsurance Balance Receivable",null,"BSCR Rating 2",null,null,"Insured/Guaranteed Mortgages"]
["Swaps","Inflation",null,null,"Private Credit Funds","Sundry Assets",null,"BSCR Rating 3",null,null,"Other Commercial and Farm Mortgages"]
["Swaptions","Credit","Select",null,"Catastrophe Bonds","Letter of Credit, Guarantees and Other Instruments",null,"BSCR Rating 4",null,null,"Other Residential Mortgages"]
["OTC options","Currencies","Yes",null,"Other Insurance-Linked Securities","Other",null,"BSCR Rating 5",null,null,"Mortgages Not In Good Standing"]
["Other","Commodities","No",null,"Advances to Affiliates",null,null,"BSCR Rating 6",null,null,"Collateral Loans"]
[null,"Other",null,null,"Infrastructure Debt",null,null,"BSCR Rating 7",null,null,"Middle Market Loans"]
[null,null,null,null,"Equity Investments in Infrastructure",null,null,"BSCR Rating 8",null,null,"Other Direct Private Lending"]
[null,null,null,null,"Equity Release / Reverse Mortgages",null,null,null,null,null,"Policy Loans"]
[null,null,null,null,"Other ",null,null,null,null,null,"Other"]
[]
[null,null,null,null,null,null,null,null,"Switzerland Francs"]
[null,null,null,null,null,null,null,null,"Chile Pesos"]
[null,null,null,null,null,null,null,null,"China Yuan Renminbi"]
[null,null,null,null,null,null,null,null,"Colombia Pesos"]
[null,null,null,null,null,null,null,null,"Costa Rica Colones"]
[null,null,null,null,null,null,null,null,"Cuba Convertible Pesos"]
[null,null,null,null,null,null,null,null,"Cuba Pesos"]
[null,null,null,null,null,null,null,null,"Cape Verde Escudos"]
[null,null,null,null,null,null,null,null,"Czech Republic Koruny"]
[null,null,null,null,null,null,null,null,"Djibouti Francs"]
[null,null,null,null,null,null,null,null,"Denmark Kroner"]
[null,null,null,null,null,null,null,null,"Dominican Republic Pesos"]
[null,null,null,null,null,null,null,null,"Algeria Dinars"]
[null,null,null,null,null,null,null,null,"Estonia Krooni"]
[null,null,null,null,null,null,null,null,"Egypt Pounds"]
[null,null,null,null,null,null,null,null,"Eritrea Nakfa"]
[null,null,null,null,null,null,null,null,"Ethiopia Birr"]
[null,null,null,null,null,null,null,null,"Fiji Dollars"]
[null,null,null,null,null,null,null,null,"Falkland Islands Pounds"]
[null,null,null,null,null,null,null,null,"United Kingdom Pounds"]
[null,null,null,null,null,null,null,null,"Georgia Lari"]
[null,null,null,null,null,null,null,null,"Guernsey Pounds"]
[null,null,null,null,null,null,null,null,"Ghana Cedis"]
[null,null,null,null,null,null,null,null,"Gibraltar Pounds"]
[null,null,null,null,null,null,null,null,"Gambia Dalasi"]
[null,null,null,null,null,null,null,null,"Guinea Francs"]
[null,null,null,null,null,null,null,null,"Guatemala Quetzales"]
[null,null,null,null,null,null,null,null,"Guyana Dollars"]
[null,null,null,null,null,null,null,null,"Hong Kong Dollars"]
[null,null,null,null,null,null,null,null,"Honduras Lempiras"]
[null,null,null,null,null,null,null,null,"Croatia Kuna"]
[null,null,null,null,null,null,null,null,"Haiti Gourdes"]
[null,null,null,null,null,null,null,null,"Hungary Forint"]
[null,null,null,null,null,null,null,null,"Indonesia Rupiahs"]
[null,null,null,null,null,null,null,null,"Israel New Shekels"]
[null,null,null,null,null,null,null,null,"Isle of Man Pounds"]
[null,null,null,null,null,null,null,null,"India Rupees"]
[null,null,null,null,null,null,null,null,"Iraq Dinars"]
[null,null,null,null,null,null,null,null,"Iran Rials"]
[null,null,null,null,null,null,null,null,"Iceland Kronur"]
[null,null,null,null,null,null,null,null,"Jersey Pounds"]
[null,null,null,null,null,null,null,null,"Jamaica Dollars"]
[null,null,null,null,null,null,null,null,"Jordan Dinars"]
[null,null,null,null,null,null,null,null,"Japan Yen"]
[null,null,null,null,null,null,null,null,"Kenya Shillings"]
[null,null,null,null,null,null,null,null,"Kyrgyzstan Soms"]
[null,null,null,null,null,null,null,null,"Cambodia Riels"]
[null,null,null,null,null,null,null,null,"Comoros Francs"]
[null,null,null,null,null,null,null,null,"North Korea Won"]
[null,null,null,null,null,null,null,null,"South Korea Won"]
[null,null,null,null,null,null,null,null,"Kuwait Dinars"]
[null,null,null,null,null,null,null,null,"Cayman Islands Dollars"]
[null,null,null,null,null,null,null,null,"Kazakhstan Tenge"]
[null,null,null,null,null,null,null,null,"Laos Kips"]
[null,null,null,null,null,null,null,null,"Lebanon Pounds"]
[null,null,null,null,null,null,null,null,"Sri Lanka Rupees"]
[null,null,null,null,null,null,null,null,"Liberia Dollars"]
[null,null,null,null,null,null,null,null,"Lesotho Maloti"]
[null,null,null,null,null,null,null,null,"Lithuania Litai"]
[null,null,null,null,null,null,null,null,"Latvia Lati"]
[null,null,null,null,null,null,null,null,"Libya Dinars"]
[null,null,null,null,null,null,null,null,"Morocco Dirhams"]
[null,null,null,null,null,null,null,null,"Moldova Lei"]
[null,null,null,null,null,null,null,null,"Madagascar Ariary"]
[null,null,null,null,null,null,null,null,"Macedonia Denars"]
[null,null,null,null,null,null,null,null,"Myanmar Kyats"]
[null,null,null,null,null,null,null,null,"Mongolia Tugriks"]
[null,null,null,null,null,null,null,null,"Macau Patacas"]
[null,null,null,null,null,null,null,null,"Mauritania Ouguiyas"]
[null,null,null,null,null,null,null,null,"Mauritius Rupees"]
[null,null,null,null,null,null,null,null,"Maldives Rufiyaa"]
[null,null,null,null,null,null,null,null,"Malawi Kwachas"]
[null,null,null,null,null,null,null,null,"Mexico Pesos"]
[null,null,null,null,null,null,null,null,"Malaysia Ringgits"]
[null,null,null,null,null,null,null,null,"Mozambique Meticais"]
[null,null,null,null,null,null,null,null,"Namibia Dollars"]
[null,null,null,null,null,null,null,null,"Nigeria Nairas"]
[null,null,null,null,null,null,null,null,"Nicaragua Cordobas"]
[null,null,null,null,null,null,null,null,"Norway Kroner"]
[null,null,null,null,null,null,null,null,"Nepal Rupees"]
[null,null,null,null,null,null,null,null,"New Zealand Dollars"]
[null,null,null,null,null,null,null,null,"Oman Rials"]
[null,null,null,null,null,null,null,null,"Panama Balboas"]
[null,null,null,null,null,null,null,null,"Peru Nuevos Soles"]
[null,null,null,null,null,null,null,null,"Papua New Guinea Kina"]
[null,null,null,null,null,null,null,null,"Philippines Pesos"]
[null,null,null,null,null,null,null,null,"Pakistan Rupees"]
[null,null,null,null,null,null,null,null,"Poland Zlotych"]
[null,null,null,null,null,null,null,null,"Paraguay Guarani"]
[null,null,null,null,null,null,null,null,"Qatar Riyals"]
[null,null,null,null,null,null,null,null,"Romania New Lei"]
[null,null,null,null,null,null,null,null,"Serbia Dinars"]
[null,null,null,null,null,null,null,null,"Russia Rubles"]
[null,null,null,null,null,null,null,null,"Rwanda Francs"]
[null,null,null,null,null,null,null,null,"Saudi Arabia Riyals"]
[null,null,null,null,null,null,null,null,"Solomon Islands Dollars"]
[null,null,null,null,null,null,null,null,"Seychelles Rupees"]
[null,null,null,null,null,null,null,null,"Sudan Pounds"]
[null,null,null,null,null,null,null,null,"Sweden Kronor"]
[null,null,null,null,null,null,null,null,"Singapore Dollars"]
[null,null,null,null,null,null,null,null,"Saint Helena Pounds"]
[null,null,null,null,null,null,null,null,"Slovakia Koruny"]
[null,null,null,null,null,null,null,null,"Sierra Leone Leones"]
[null,null,null,null,null,null,null,null,"Somalia Shillings"]
[null,null,null,null,null,null,null,null,"Seborga Luigini"]
[null,null,null,null,null,null,null,null,"Suriname Dollars"]
[null,null,null,null,null,null,null,null,"São Tome and Principe Dobras"]
[null,null,null,null,null,null,null,null,"El Salvador Colones"]
[null,null,null,null,null,null,null,null,"Syria Pounds"]
[null,null,null,null,null,null,null,null,"Swaziland Emalangeni"]
[null,null,null,null,null,null,null,null,"Thailand Baht"]
[null,null,null,null,null,null,null,null,"Tajikistan Somoni"]
[null,null,null,null,null,null,null,null,"Turkmenistan Manats"]
[null,null,null,null,null,null,null,null,"Tunisia Dinars"]
[null,null,null,null,null,null,null,null,"Tonga Pa'anga"]
[null,null,null,null,null,null,null,null,"Turkey New Lira"]
[null,null,null,null,null,null,null,null,"Trinidad and Tobago Dollars"]
[null,null,null,null,null,null,null,null,"Tuvalu Dollars"]
[null,null,null,null,null,null,null,null,"Taiwan New Dollars"]
[null,null,null,null,null,null,null,null,"Tanzania Shillings"]
[null,null,null,null,null,null,null,null,"Ukraine Hryvnia"]
[null,null,null,null,null,null,null,null,"Uganda Shillings"]
[null,null,null,null,null,null,null,null,"Uruguay Pesos"]
[null,null,null,null,null,null,null,null,"Uzbekistan Sums"]
[null,null,null,null,null,null,null,null,"Venezuela Bolivares"]
[null,null,null,null,null,null,null,null,"Venezuela Bolivares Fuertes"]
[null,null,null,null,null,null,null,null,"Vietnam Dong"]
[null,null,null,null,null,null,null,null,"Vanuatu Vatu"]
[null,null,null,null,null,null,null,null,"Samoa Tala"]
[null,null,null,null,null,null,null,null,"Communauté Financière Africaine Francs BEAC"]
[null,null,null,null,null,null,null,null,"Silver Ounces"]
[null,null,null,null,null,null,null,null,"Gold Ounces"]
[null,null,null,null,null,null,null,null,"East Caribbean Dollars"]
[null,null,null,null,null,null,null,null,"International Monetary Fund Special Drawing Rights"]
[null,null,null,null,null,null,null,null,"Communauté Financière Africaine Francs BCEAO"]
[null,null,null,null,null,null,null,null,"Palladium Ounces"]
[null,null,null,null,null,null,null,null,"Comptoirs Français du Pacifique Francs"]
[null,null,null,null,null,null,null,null,"Platinum Ounces"]
[null,null,null,null,null,null,null,null,"Yemen Rials"]
[null,null,null,null,null,null,null,null,"South Africa Rand"]
[null,null,null,null,null,null,null,null,"Zambia Kwacha"]
[null,null,null,null,null,null,null,null,"Zimbabwe Dollars"]

{"sheet":"Schedule VII","index":62,"n_rows":54,"n_cols":16,"rows_kept":54,"cut":false,"hidden":false,"merged":[[6,11,7,11],[39,15,41,15],[6,13,6,15],[7,1,7,2],[29,13,29,15],[30,13,31,13],[30,14,31,14],[30,15,31,15],[6,3,7,3],[6,4,7,4],[6,5,7,5],[6,6,7,6],[6,7,7,7],[6,10,7,10],[6,9,7,9]]}
[null,null,"SCHEDULE OF LONG-TERM INSURANCE",null,null,null,null,null,null,null,null,null,null,null,null,{"$f":"HYPERLINK(\"#'Index'!A1\",\"Return to Index\")","v":"Return to Index"}]
[null,null,{"$f":"'Group Information'!C9","v":"Enter Parent Company Name"}]
[null,null,{"$f":"'Form 1EBS'!C3","v":"2023-12-31"}]
[null,null,{"$f":"'Form 1EBS'!C4","v":" ['000s]United States Dollars"},null,null,null,null,null,null,null,null,null,null,null,null,"SCHEDULE VII"]
[null,"SCHEDULE OF LONG-TERM INSURANCE DATA"]
[null,null,null,"(1)","(2)","(3)","(4)","(5)",null,"(6)","(7)","(8)",null,"(9)","(10)","(11)"]
[null,null,null,"Bermuda Statutory Reserve","Reported \nDAC \n(if any)","Value of Business Acquired","Present Value of Future Profits","Best Estimate Reserve",null,"Net Reserve (1) - (2) - (3) - (4) ","BSCR Adjusted Reserve Greater of (1) and Zero","Margins in Reserves If (5) not blank,then Excess of (6) over (5)",null,"Net Amount at Risk"]
[null,"Schedule Line No. ",null,null,null,null,null,null,null,null,null,null,null,"Adjustable \nproduct/\ntreaty","Non-adjustable\nproduct/\ntreaty","Total"]
[null,null,null,"('000)","('000)","('000)","('000)","('000)",null,"('000)","('000)","('000)",null,"('000)","('000)","('000)"]
[null,1,"Mortality (term assurance, whole life, universal life)",{"$f":"Import!E34950","v":0},{"$f":"Import!E34979","v":0},{"$f":"Import!E35008","v":0},{"$f":"Import!E35037","v":0},{"$f":"Import!E35066","v":0},null,{"$f":"D10-E10-F10-G10","v":0},{"$f":"IF(J10>0,J10,0)","v":0},{"$f":"IF(H10=0,0,J10-H10)","v":0},null,{"$f":"Import!E35095","v":0},{"$f":"Import!E35097","v":0},{"$f":"N10+O10","v":0}]
[null,2,"Critical Illness (including accelerated Critical illness products)",{"$f":"Import!E34951","v":0},{"$f":"Import!E34980","v":0},{"$f":"Import!E35009","v":0},{"$f":"Import!E35038","v":0},{"$f":"Import!E35067","v":0},null,{"$f":"D11-E11-F11-G11","v":0},{"$f":"IF(J11>0,J11,0)","v":0},{"$f":"IF(H11=0,0,J11-H11)","v":0},null,{"$f":"Import!E35096","v":0},{"$f":"Import!E35098","v":0},{"$f":"N11+O11","v":0}]
[null,3,"Longevity (immediate pay-out annuities, contingent annuities, pension pay-outs)"]
[null,null,"Attained age of Annuitant"]
[null,null,"(a) 0 - 55",{"$f":"Import!E34952","v":0},{"$f":"Import!E34981","v":0},{"$f":"Import!E35010","v":0},{"$f":"Import!E35039","v":0},{"$f":"Import!E35068","v":0},null,{"$f":"D14-E14-F14-G14","v":0},{"$f":"IF(J14>0,J14,0)","v":0},{"$f":"IF(H14=0,0,J14-H14)","v":0}]
[null,null,"(b) 56 - 65",{"$f":"Import!E34953","v":0},{"$f":"Import!E34982","v":0},{"$f":"Import!E35011","v":0},{"$f":"Import!E35040","v":0},{"$f":"Import!E35069","v":0},null,{"$f":"D15-E15-F15-G15","v":0},{"$f":"IF(J15>0,J15,0)","v":0},{"$f":"IF(H15=0,0,J15-H15)","v":0}]
[null,null,"(c) 66 - 70",{"$f":"Import!E34954","v":0},{"$f":"Import!E34983","v":0},{"$f":"Import!E35012","v":0},{"$f":"Import!E35041","v":0},{"$f":"Import!E35070","v":0},null,{"$f":"D16-E16-F16-G16","v":0},{"$f":"IF(J16>0,J16,0)","v":0},{"$f":"IF(H16=0,0,J16-H16)","v":0}]
[null,null,"(d) 71 - 80",{"$f":"Import!E34955","v":0},{"$f":"Import!E34984","v":0},{"$f":"Import!E35013","v":0},{"$f":"Import!E35042","v":0},{"$f":"Import!E35071","v":0},null,{"$f":"D17-E17-F17-G17","v":0},{"$f":"IF(J17>0,J17,0)","v":0},{"$f":"IF(H17=0,0,J17-H17)","v":0}]
[null,null,"(e) 81+",{"$f":"Import!E34956","v":0},{"$f":"Import!E34985","v":0},{"$f":"Import!E35014","v":0},{"$f":"Import!E35043","v":0},{"$f":"Import!E35072","v":0},null,{"$f":"D18-E18-F18-G18","v":0},{"$f":"IF(J18>0,J18,0)","v":0},{"$f":"IF(H18=0,0,J18-H18)","v":0}]
[null,null,"(f) Total",{"$f":"SUM(D14:D18)","v":0},0,0,0,0,0,{"$f":"SUM(J14:J18)","v":0},{"$f":"SUM(K14:K18)","v":0},0]
[null,4,"Longevity (deferred pay-out annuities, future contingent annuities, future pension pay-outs)"]
[null,null,"Age at which Annuity Benefits Commence"]
[null,null,"(a) 0 - 55",{"$f":"Import!E34958","v":0},{"$f":"Import!E34987","v":0},{"$f":"Import!E35016","v":0},{"$f":"Import!E35045","v":0},{"$f":"Import!E35074","v":0},null,{"$f":"D22-E22-F22-G22","v":0},{"$f":"IF(J22>0,J22,0)","v":0},{"$f":"IF(H22=0,0,J22-H22)","v":0}]
[null,null,"(b) 56 - 60",{"$f":"Import!E34959","v":0},{"$f":"Import!E34988","v":0},{"$f":"Import!E35017","v":0},{"$f":"Import!E35046","v":0},{"$f":"Import!E35075","v":0},null,0,0,0]
[null,null,"(c) 61 - 65",{"$f":"Import!E34960","v":0},{"$f":"Import!E34989","v":0},{"$f":"Import!E35018","v":0},{"$f":"Import!E35047","v":0},{"$f":"Import!E35076","v":0},null,0,0,0]
[null,null,"(d) 66 - 70",{"$f":"Import!E34961","v":0},{"$f":"Import!E34990","v":0},{"$f":"Import!E35019","v":0},{"$f":"Import!E35048","v":0},{"$f":"Import!E35077","v":0},null,0,0,0]
[null,null,"(e) 71 - 75",{"$f":"Import!E34962","v":0},{"$f":"Import!E34991","v":0},{"$f":"Import!E35020","v":0},{"$f":"Import!E35049","v":0},{"$f":"Import!E35078","v":0},null,0,0,0]
[null,null,"(f) 76+",{"$f":"Import!E34963","v":0},{"$f":"Import!E34992","v":0},{"$f":"Import!E35021","v":0},{"$f":"Import!E35050","v":0},{"$f":"Import!E35079","v":0},null,0,0,0]
[null,null,"(g) Total",{"$f":"SUM(D22:D27)","v":0},{"$f":"SUM(E22:E27)","v":0},{"$f":"SUM(F22:F27)","v":0},{"$f":"SUM(G22:G27)","v":0},{"$f":"SUM(H22:H27)","v":0},null,{"$f":"SUM(J22:J27)","v":0},{"$f":"SUM(K22:K27)","v":0},{"$f":"SUM(L22:L27)","v":0}]
[null,5,"Annuities certain only",{"$f":"Import!E34965","v":0},{"$f":"Import!E34994","v":0},{"$f":"Import!E35023","v":0},{"$f":"Import!E35052","v":0},{"$f":"Import!E35081","v":0},null,{"$f":"D29-E29-F29-G29","v":0},{"$f":"IF(J29>0,J29,0)","v":0},{"$f":"IF(H29=0,0,J29-H29)","v":0}]
[null,6,"Deferred accumulation annuities",{"$f":"Import!E34966","v":0},{"$f":"Import!E34995","v":0},{"$f":"Import!E35024","v":0},{"$f":"Import!E35053","v":0},{"$f":"Import!E35082","v":0},null,{"$f":"D30-E30-F30-G30","v":0},{"$f":"IF(J30>0,J30,0)","v":0},{"$f":"IF(H30=0,0,J30-H30)","v":0},null,"Net Annual Premium"]
[null,7,"Disability Income: active lives - including waiver of premium and long-term care",null,null,null,null,null,null,null,null,null,null,"Benefit Period                  <= 2 years","Benefit Period                  > 2 years","Total"]
[null,null,"Length of Premium Guarantee:"]
[null,null,"(a) < = 1 year",null,null,null,null,null,null,null,null,null,null,{"$f":"'Schedule IVB'!Q17","v":0},{"$f":"'Schedule IVB'!U17","v":0},{"$f":"N33+O33","v":0}]
[null,null,"(b) 1 - 5 years",null,null,null,null,null,null,null,null,null,null,{"$f":"'Schedule IVB'!Q18","v":0},{"$f":"'Schedule IVB'!U18","v":0},{"$f":"N34+O34","v":0}]
[null,null,"(c) > 5 years",null,null,null,null,null,null,null,null,null,null,{"$f":"'Schedule IVB'!Q19","v":0},{"$f":"'Schedule IVB'!U19","v":0},{"$f":"N35+O35","v":0}]
[null,null,"(d) Total",{"$f":"Import!E34967","v":0},{"$f":"Import!E34996","v":0},{"$f":"Import!E35025","v":0},{"$f":"Import!E35054","v":0},{"$f":"Import!E35083","v":0},null,{"$f":"D36-E36-F36-G36","v":0},{"$f":"IF(J36>0,J36,0)","v":0},{"$f":"IF(H36=0,0,J36-H36)","v":0},null,null,null,{"$f":"SUM(P33:P35)","v":0}]
[null,8,"Disability income: active lives - other accident and sickness",{"$f":"Import!E34968","v":0},{"$f":"Import!E34997","v":0},{"$f":"Import!E35026","v":0},{"$f":"Import!E35055","v":0},{"$f":"Import!E35084","v":0},null,0,0,0,null,null,null,{"$f":"'Schedule IVB'!Y22","v":0}]
[null,9,"Disability income: claims in payment - including waiver of premium and long-term care",{"$f":"Import!E34969","v":0},{"$f":"Import!E34998","v":0},{"$f":"Import!E35027","v":0},{"$f":"Import!E35056","v":0},{"$f":"Import!E35085","v":0},null,0,0,0]
[null,10,"Disability income: claims in payment - other accident and sickness",{"$f":"Import!E34970","v":0},{"$f":"Import!E34999","v":0},{"$f":"Import!E35028","v":0},{"$f":"Import!E35057","v":0},{"$f":"Import!E35086","v":0},null,0,0,0]
[null,11,"Group Life",{"$f":"Import!E34971","v":0},{"$f":"Import!E35000","v":0},{"$f":"Import!E35029","v":0},{"$f":"Import!E35058","v":0},{"$f":"Import!E35087","v":0},null,0,0,0,null,null,null,"Total Annual Premiums"]
[null,12,"Group Disability",{"$f":"Import!E34972","v":0},{"$f":"Import!E35001","v":0},{"$f":"Import!E35030","v":0},{"$f":"Import!E35059","v":0},{"$f":"Import!E35088","v":0},null,0,0,0]
[null,13,"Group Health",{"$f":"Import!E34973","v":0},{"$f":"Import!E35002","v":0},{"$f":"Import!E35031","v":0},{"$f":"Import!E35060","v":0},{"$f":"Import!E35089","v":0},null,0,0,0]
[null,14,"Stop Loss ",{"$f":"Import!E34974","v":0},{"$f":"Import!E35003","v":0},{"$f":"Import!E35032","v":0},{"$f":"Import!E35061","v":0},{"$f":"Import!E35090","v":0},null,0,0,0,null,null,null,{"$f":"'Schedule IVB'!Y28","v":0}]
[null,15,"Rider (other product riders not included above)",{"$f":"Import!E34975","v":0},{"$f":"Import!E35004","v":0},{"$f":"Import!E35033","v":0},{"$f":"Import!E35062","v":0},{"$f":"Import!E35091","v":0},null,0,0,0,null,null,null,{"$f":"'Schedule IVB'!Y29","v":0}]
[]
[null,16,"Total (excluding variable annuities)",{"$f":"SUM(D10:D11,D14:D18,D22:D27,D29:D30,D36:D44)","v":0},{"$f":"SUM(E10:E11,E14:E18,E22:E27,E29:E30,E36:E44)","v":0},{"$f":"SUM(F10:F11,F14:F18,F22:F27,F29:F30,F36:F44)","v":0},{"$f":"SUM(G10:G11,G14:G18,G22:G27,G29:G30,G36:G44)","v":0},{"$f":"SUM(H10:H11,H14:H18,H22:H27,H29:H30,H36:H44)","v":0},null,{"$f":"SUM(J10:J11,J14:J18,J22:J27,J29:J30,J36:J44)","v":0},{"$f":"SUM(K10:K11,K14:K18,K22:K27,K29:K30,K36:K44)","v":0},{"$f":"SUM(L10:L11,L14:L18,L22:L27,L29:L30,L36:L44)","v":0}]
[null,17,"Total for Variable Annuities",{"$f":"Import!E34977","v":0},{"$f":"Import!E35006","v":0},{"$f":"Import!E35035","v":0},{"$f":"Import!E35064","v":0},{"$f":"Import!E35093","v":0},null,{"$f":"D47-E47-F47-G47","v":0},{"$f":"IF(J47>0,J47,0)","v":0},{"$f":"IF(H47=0,0,J47-H47)","v":0}]
[null,18,"Total with Variable Annuities",{"$f":"SUM(D46:D47)","v":0},{"$f":"SUM(E46:E47)","v":0},{"$f":"SUM(F46:F47)","v":0},{"$f":"SUM(G46:G47)","v":0},{"$f":"SUM(H46:H47)","v":0},null,{"$f":"SUM(J46:J47)","v":0},{"$f":"SUM(K46:K47)","v":0},{"$f":"SUM(L46:L47)","v":0}]
[]
[null,null,"Total Net Long-Term Business Insurance Reserves",{"$f":"'Form 1EBS'!F151","v":0}]
[]
[null,null,"Check",{"$f":"IF((D48-D50)=0,\"TRUE\",\"FALSE\")","v":"TRUE"}]
[]
[null,null,"Difference",{"$f":"D50-D48","v":0}]

{"sheet":"Schedule VII (EBS)","index":63,"n_rows":61,"n_cols":20,"rows_kept":61,"cut":false,"hidden":false,"merged":[[29,7,29,9],[39,9,41,9],[6,7,6,9],[30,7,31,7],[30,8,31,8],[30,9,31,9],[3,11,3,20],[4,11,4,20],[6,19,7,19],[7,1,7,2],[6,3,7,3],[6,5,7,5],[6,18,7,18],[6,11,7,11],[6,12,7,12],[6,13,7,13],[6,14,7,14],[6,15,7,15],[6,17,7,17],[6,16,7,16]]}
[null,null,"SCHEDULE OF LONG-TERM INSURANCE",null,null,null,null,null,null,null,null,null,null,null,null,null,null,null,null,{"$f":"HYPERLINK(\"#'Index'!A1\",\"Return to Index\")","v":"Return to Index"}]
[null,null,{"$f":"'Group Information'!C9","v":"Enter Parent Company Name"}]
[null,null,{"$f":"'Form 1EBS'!C3","v":"2023-12-31"},null,null,null,null,null,null,null,null,null,null,null,null,null,null,null,null,"SCHEDULE VII (EBS)"]
[null,null,{"$f":"'Form 1EBS'!C4","v":" ['000s]United States Dollars"}]
[null,"SCHEDULE OF LONG-TERM INSURANCE DATA",null,null,null,null,null,null,null,null,null,"Supplemental Notes to Long-Term Best Estimate Provisions"]
[null,null,null,"(1)",null,"(7)",null,"(9)","(10)","(11)",null,"(12)","(13)","(14)","(15)","(16)","(17)","(18)","(19)","(20)"]
[null,null,null,"Bermuda EBS Best Estimate Provisions",null,"BSCR Adjusted Reserve Greater of (1) and Zero",null,"Net Amount at Risk",null,null,null,"Bound But Not Incepted (BBNI) Premium ","Best Estimate Provision In Respect to BBNI","Best Estimate Provision Using Transitional Arrangements","Equivalent of Column (14) if Transitional Arrangements were not used","Scenario Based approach Best Estimate For Technical Provisions ","Equivalent of column (16) if the Scenario based approach were not used","Equivalent of column (16) if the Base Scenario were used","BBNI Premium ","Best Estimate Provision In Respect to BBNI"]
[null,"Schedule Line No. ",null,null,null,null,null,"Adjustable \nproduct/\ntreaty","Non-adjustable\nproduct/\ntreaty","Total"]
[null,null,null,"('000)",null,"('000)",null,"('000)","('000)","('000)",null,"[Form 1EBS, note Line 27(d)-(i)]","[Form 1EBS, note Line 27(d)-(ii)]","[Form 1EBS, note Line 27(d)-(iii)]","[Form 1EBS, note Line 27(d)-(iv)]","[Form 1EBS, note Line 27(d)-(v)]","[Form 1EBS, note Line 27(d)-(vi)]","[Form 1EBS, note Line 27(d)-(vii)]","[Form 1EBS, note Line 27B(d)-(i)]","[Form 1EBS, note Line 27B(d)-(ii)]"]
[null,1,"Mortality (term assurance, whole life, universal life)",{"$f":"Import!I35100","v":0},null,{"$f":"IF(D10>0,D10,0)","v":0},null,{"$f":"Import!I35129","v":0},{"$f":"Import!I35131","v":0},{"$f":"H10+I10","v":0},null,{"$f":"Import!I35133","v":0},{"$f":"Import!I35151","v":0},{"$f":"Import!I35169","v":0},{"$f":"Import!I35187","v":0},{"$f":"Import!I35205","v":0},{"$f":"Import!I35223","v":0},{"$f":"Import!I35241","v":0},{"$f":"Import!I35259","v":0},{"$f":"Import!I35277","v":0}]
[null,2,"Critical Illness (including accelerated Critical illness products)",{"$f":"Import!I35101","v":0},null,{"$f":"IF(D11>0,D11,0)","v":0},null,{"$f":"Import!I35130","v":0},{"$f":"Import!I35132","v":0},{"$f":"H11+I11","v":0},null,{"$f":"Import!I35134","v":0},{"$f":"Import!I35152","v":0},{"$f":"Import!I35170","v":0},{"$f":"Import!I35188","v":0},{"$f":"Import!I35206","v":0},{"$f":"Import!I35224","v":0},{"$f":"Import!I35242","v":0},{"$f":"Import!I35260","v":0},{"$f":"Import!I35278","v":0}]
[null,3,"Longevity (immediate pay-out annuities, contingent annuities, pension pay-outs)"]
[null,null,"Attained age of Annuitant"]
[null,null,"(a) 0 - 55",{"$f":"Import!I35102","v":0},null,{"$f":"IF(D14>0,D14,0)","v":0}]
[null,null,"(b) 56 - 65",{"$f":"Import!I35103","v":0},null,{"$f":"IF(D15>0,D15,0)","v":0}]
[null,null,"(c) 66 - 70",{"$f":"Import!I35104","v":0},null,{"$f":"IF(D16>0,D16,0)","v":0}]
[null,null,"(d) 71 - 80",{"$f":"Import!I35105","v":0},null,{"$f":"IF(D17>0,D17,0)","v":0}]
[null,null,"(e) 81+",{"$f":"Import!I35106","v":0},null,{"$f":"IF(D18>0,D18,0)","v":0}]
[null,null,"(f) Total",{"$f":"SUM(D14:D18)","v":0},{"$f":"SUM(E14:E18)","v":0},{"$f":"SUM(F14:F18)","v":0},null,null,null,null,null,{"$f":"Import!I35135","v":0},{"$f":"Import!I35153","v":0},{"$f":"Import!I35171","v":0},{"$f":"Import!I35189","v":0},{"$f":"Import!I35207","v":0},{"$f":"Import!I35225","v":0},{"$f":"Import!I35243","v":0},{"$f":"Import!I35261","v":0},{"$f":"Import!I35279","v":0}]
[null,4,"Longevity (deferred pay-out annuities, future contingent annuities, future pension pay-outs)"]
[null,null,"Age at which Annuity Benefits Commence"]
[null,null,"(a) 0 - 55",{"$f":"Import!I35108","v":0},null,{"$f":"IF(D22>0,D22,0)","v":0}]
[null,null,"(b) 56 - 60",{"$f":"Import!I35109","v":0},null,0]
[null,null,"(c) 61 - 65",{"$f":"Import!I35110","v":0},null,0]
[null,null,"(d) 66 - 70",{"$f":"Import!I35111","v":0},null,0]
[null,null,"(e) 71 - 75",{"$f":"Import!I35112","v":0},null,0]
[null,null,"(f) 76+",{"$f":"Import!I35113","v":0},null,0]
[null,null,"(g) Total",{"$f":"SUM(D22:D27)","v":0},null,{"$f":"SUM(F22:F27)","v":0},null,null,null,null,null,{"$f":"Import!I35136","v":0},{"$f":"Import!I35154","v":0},{"$f":"Import!I35172","v":0},{"$f":"Import!I35190","v":0},{"$f":"Import!I35208","v":0},{"$f":"Import!I35226","v":0},{"$f":"Import!I35244","v":0},{"$f":"Import!I35262","v":0},{"$f":"Import!I35280","v":0}]
[null,5,"Annuities certain only",{"$f":"Import!I35115","v":0},null,{"$f":"IF(D29>0,D29,0)","v":0},null,null,null,null,null,{"$f":"Import!I35137","v":0},{"$f":"Import!I35155","v":0},{"$f":"Import!I35173","v":0},{"$f":"Import!I35191","v":0},{"$f":"Import!I35209","v":0},{"$f":"Import!I35227","v":0},{"$f":"Import!I35245","v":0},{"$f":"Import!I35263","v":0},{"$f":"Import!I35281","v":0}]
[null,6,"Deferred accumulation annuities",{"$f":"Import!I35116","v":0},null,{"$f":"IF(D30>0,D30,0)","v":0},null,"Net Annual Premium",null,null,null,{"$f":"Import!I35138","v":0},{"$f":"Import!I35156","v":0},{"$f":"Import!I35174","v":0},{"$f":"Import!I35192","v":0},{"$f":"Import!I35210","v":0},{"$f":"Import!I35228","v":0},{"$f":"Import!I35246","v":0},{"$f":"Import!I35264","v":0},{"$f":"Import!I35282","v":0}]
[null,7,"Disability Income: active lives - including waiver of premium and long-term care",null,null,null,null,"Benefit Period                  <= 2 years","Benefit Period                  > 2 years","Total"]
[null,null,"Length of Premium Guarantee:"]
[null,null,"(a) < = 1 year",null,null,null,null,{"$f":"'Schedule IVB'!Q17","v":0},{"$f":"'Schedule IVB'!U17","v":0},{"$f":"H33+I33","v":0}]
[null,null,"(b) 1 - 5 years",null,null,null,null,{"$f":"'Schedule IVB'!Q18","v":0},{"$f":"'Schedule IVB'!U18","v":0},{"$f":"H34+I34","v":0}]
[null,null,"(c) > 5 years",null,null,null,null,{"$f":"'Schedule IVB'!Q19","v":0},{"$f":"'Schedule IVB'!U19","v":0},{"$f":"H35+I35","v":0}]
[null,null,"(d) Total",{"$f":"Import!I35117","v":0},null,{"$f":"IF(D36>0,D36,0)","v":0},null,null,null,{"$f":"SUM(J33:J35)","v":0},null,{"$f":"Import!I35139","v":0},{"$f":"Import!I35157","v":0},{"$f":"Import!I35175","v":0},{"$f":"Import!I35193","v":0},{"$f":"Import!I35211","v":0},{"$f":"Import!I35229","v":0},{"$f":"Import!I35247","v":0},{"$f":"Import!I35265","v":0},{"$f":"Import!I35283","v":0}]
[null,8,"Disability income: active lives - other accident and sickness",{"$f":"Import!I35118","v":0},null,0,null,null,null,{"$f":"'Schedule IVB'!Y20","v":0},null,{"$f":"Import!I35140","v":0},{"$f":"Import!I35158","v":0},{"$f":"Import!I35176","v":0},{"$f":"Import!I35194","v":0},{"$f":"Import!I35212","v":0},{"$f":"Import!I35230","v":0},{"$f":"Import!I35248","v":0},{"$f":"Import!I35266","v":0},{"$f":"Import!I35284","v":0}]
[null,9,"Disability income: claims in payment - including waiver of premium and long-term care",{"$f":"Import!I35119","v":0},null,0,null,null,null,null,null,{"$f":"Import!I35141","v":0},{"$f":"Import!I35159","v":0},{"$f":"Import!I35177","v":0},{"$f":"Import!I35195","v":0},{"$f":"Import!I35213","v":0},{"$f":"Import!I35231","v":0},{"$f":"Import!I35249","v":0},{"$f":"Import!I35267","v":0},{"$f":"Import!I35285","v":0}]
[null,10,"Disability income: claims in payment - other accident and sickness",{"$f":"Import!I35120","v":0},null,0,null,null,null,null,null,{"$f":"Import!I35142","v":0},{"$f":"Import!I35160","v":0},{"$f":"Import!I35178","v":0},{"$f":"Import!I35196","v":0},{"$f":"Import!I35214","v":0},{"$f":"Import!I35232","v":0},{"$f":"Import!I35250","v":0},{"$f":"Import!I35268","v":0},{"$f":"Import!I35286","v":0}]
[null,11,"Group Life",{"$f":"Import!I35121","v":0},null,0,null,null,null,"Total Annual Premiums",null,{"$f":"Import!I35143","v":0},{"$f":"Import!I35161","v":0},{"$f":"Import!I35179","v":0},{"$f":"Import!I35197","v":0},{"$f":"Import!I35215","v":0},{"$f":"Import!I35233","v":0},{"$f":"Import!I35251","v":0},{"$f":"Import!I35269","v":0},{"$f":"Import!I35287","v":0}]
[null,12,"Group Disability",{"$f":"Import!I35122","v":0},null,0,null,null,null,null,null,{"$f":"Import!I35144","v":0},{"$f":"Import!I35162","v":0},{"$f":"Import!I35180","v":0},{"$f":"Import!I35198","v":0},{"$f":"Import!I35216","v":0},{"$f":"Import!I35234","v":0},{"$f":"Import!I35252","v":0},{"$f":"Import!I35270","v":0},{"$f":"Import!I35288","v":0}]
[null,13,"Group Health",{"$f":"Import!I35123","v":0},null,0,null,null,null,null,null,{"$f":"Import!I35145","v":0},{"$f":"Import!I35163","v":0},{"$f":"Import!I35181","v":0},{"$f":"Import!I35199","v":0},{"$f":"Import!I35217","v":0},{"$f":"Import!I35235","v":0},{"$f":"Import!I35253","v":0},{"$f":"Import!I35271","v":0},{"$f":"Import!I35289","v":0}]
[null,14,"Stop Loss ",{"$f":"Import!I35124","v":0},null,0,null,null,null,{"$f":"+'Schedule IVB'!Y28","v":0},null,{"$f":"Import!I35146","v":0},{"$f":"Import!I35164","v":0},{"$f":"Import!I35182","v":0},{"$f":"Import!I35200","v":0},{"$f":"Import!I35218","v":0},{"$f":"Import!I35236","v":0},{"$f":"Import!I35254","v":0},{"$f":"Import!I35272","v":0},{"$f":"Import!I35290","v":0}]
[null,15,"Rider (other product riders not included above)",{"$f":"Import!I35125","v":0},null,0,null,null,null,{"$f":"+'Schedule IVB'!Y29","v":0},null,{"$f":"Import!I35147","v":0},{"$f":"Import!I35165","v":0},{"$f":"Import!I35183","v":0},{"$f":"Import!I35201","v":0},{"$f":"Import!I35219","v":0},{"$f":"Import!I35237","v":0},{"$f":"Import!I35255","v":0},{"$f":"Import!I35273","v":0},{"$f":"Import!I35291","v":0}]
[]
[null,16,"Total (excluding variable annuities)",{"$f":"SUM(D10:D11,D14:D18,D22:D27,D29:D30,D36:D44)","v":0},null,{"$f":"SUM(F10:F11,F14:F18,F22:F27,F29:F30,F36:F44)","v":0},null,null,null,null,null,{"$f":"SUM(L10:L44)","v":0},{"$f":"SUM(M10:M44)","v":0},0,0,0,{"$f":"SUM(Q10:Q44)","v":0},0,0,{"$f":"SUM(T10:T44)","v":0}]
[null,17,"Total for Variable Annuities",{"$f":"Import!I35127","v":0},null,{"$f":"IF(D47>0,D47,0)","v":0},null,null,null,null,null,{"$f":"Import!I35149","v":0},{"$f":"Import!I35167","v":0},{"$f":"Import!I35185","v":0},{"$f":"Import!I35203","v":0},{"$f":"Import!I35221","v":0},{"$f":"Import!I35239","v":0},{"$f":"Import!I35257","v":0},{"$f":"Import!I35275","v":0},{"$f":"Import!I35293","v":0}]
[null,18,"Total with Variable Annuities",{"$f":"SUM(D46:D47)","v":0},null,{"$f":"IF(D48>0,D48,0)","v":0},null,null,null,null,null,{"$f":"L46+L47","v":0},0,0,0,0,{"$f":"Q46+Q47","v":0},0,0,0]
[]
[null,null,"Total Net Long-Term Business Insurance Reserves",{"$f":"'Form 1EBS'!F151","v":0}]
[]
[null,null,"Check",{"$f":"IF((D48-D50)=0,\"TRUE\",\"FALSE\")","v":"TRUE"}]
[]
[null,null,"Difference",{"$f":"D50-D48","v":0}]
[]
[]
[null,null,"Form 1EBS Check",null,null,null,null,null,null,null,null,{"$f":"+'Form 1EBS'!F268","v":0},{"$f":"+'Form 1EBS'!F269","v":0},{"$f":"+'Form 1EBS'!F270","v":0},{"$f":"+'Form 1EBS'!F271","v":0},{"$f":"+'Form 1EBS'!F272","v":0},{"$f":"+'Form 1EBS'!F273","v":0},{"$f":"+'Form 1EBS'!F274","v":0},{"$f":"+'Form 1EBS'!F276","v":0},{"$f":"+'Form 1EBS'!F277","v":0}]
[]
[null,null,null,null,null,null,null,null,null,null,null,{"$f":"IF(L57-L48=0,\"TRUE\",\"FALSE\")","v":"TRUE"},{"$f":"IF(M57-M48=0,\"TRUE\",\"FALSE\")","v":"TRUE"},"TRUE","TRUE","TRUE","TRUE","TRUE","TRUE","TRUE"]
[]
[null,null,null,null,null,null,null,null,null,null,null,{"$f":"L48-L57","v":0},{"$f":"M48-M57","v":0},0,0,0,0,0,0,0]

{"sheet":"Schedule VIII","index":64,"n_rows":67,"n_cols":18,"rows_kept":67,"cut":false,"hidden":false,"merged":[[2,2,2,4],[30,2,30,4],[31,2,31,4],[56,4,56,17],[7,5,8,5],[7,7,7,11],[7,13,7,17],[12,2,12,4],[13,2,13,4]]}
[null,null,"SCHEDULE OF LONG-TERM BUSINESS VARIABLE ANNUITY DATA AND RECONCILIATION",null,null,null,null,null,null,null,null,null,null,null,null,null,null,{"$f":"HYPERLINK(\"#'Index'!A1\",\"Return to Index\")","v":"Return to Index"}]
[null,null,{"$f":"'Group Information'!C9","v":"Enter Parent Company Name"}]
[null,null,{"$f":"'Form 1EBS'!C3","v":"2023-12-31"}]
[null,null,{"$f":"'Form 1EBS'!C4","v":" ['000s]United States Dollars"},null,null,null,null,null,null,null,null,null,null,null,null,null,null,"SCHEDULE VIII"]
[]
[null,"SCHEDULE OF LONG-TERM VARIABLE ANNUITY GUARANTEES"]
[null,null,null,null,null,"(1)",null,"(2)",null,"(3)",null,"(4)",null,"(5)",null,"(6)",null,"(7)"]
[null,null,null,null,null,"Bermuda Statutory Reserve",null,"Guaranteed Value 4",null,null,null,null,null,"Net Amount at Risk"]
[null,null,null,null,null,null,null,"Volatility (0% - 10.0%]",null,"Volatility (10.0% - 15.0%]",null,"Volatility >15.0%",null,"Volatility (0% - 10.0%]",null,"Volatility (10.0% - 15.0%]",null,"Volatility >15.0%"]
[null,null,null,null,null,{"$f":"CONFIGURATION!$D$12","v":" ('000s)"},null,{"$f":"CONFIGURATION!$D$12","v":" ('000s)"},null,{"$f":"CONFIGURATION!$D$12","v":" ('000s)"},null,{"$f":"CONFIGURATION!$D$12","v":" ('000s)"},null,{"$f":"CONFIGURATION!$D$12","v":" ('000s)"},null,{"$f":"CONFIGURATION!$D$12","v":" ('000s)"},null,{"$f":"CONFIGURATION!$D$12","v":" ('000s)"}]
[]
[null,null,"In-the-Money "]
[null,1,"Guaranteed Minimum Death Benefit: Return of Premium, Ratchet and Reset 2.",null,null,{"$f":"Import!E35296","v":0},null,{"$f":"Import!E35327","v":0},null,{"$f":"Import!E35358","v":0},null,{"$f":"Import!E35389","v":0},null,{"$f":"Import!E35420","v":0},null,{"$f":"Import!E35436","v":0},null,{"$f":"Import!E35452","v":0}]
[null,2,"Guaranteed Minimum Death Benefit: Enhanced Benefits (Roll up) 2.",null,null,{"$f":"Import!E35297","v":0},null,{"$f":"Import!E35328","v":0},null,{"$f":"Import!E35359","v":0},null,{"$f":"Import!E35390","v":0},null,{"$f":"Import!E35421","v":0},null,{"$f":"Import!E35437","v":0},null,{"$f":"Import!E35453","v":0}]
[null,3,"Guaranteed Minimum Income Benefit",null,null,{"$f":"Import!E35298","v":0},null,{"$f":"Import!E35329","v":0},null,{"$f":"Import!E35360","v":0},null,{"$f":"Import!E35391","v":0},null,{"$f":"Import!E35422","v":0},null,{"$f":"Import!E35438","v":0},null,{"$f":"Import!E35454","v":0}]
[null,4,"Guaranteed Minimum Withdrawal Benefit",null,null,{"$f":"Import!E35299","v":0},null,{"$f":"Import!E35330","v":0},null,{"$f":"Import!E35361","v":0},null,{"$f":"Import!E35392","v":0},null,{"$f":"Import!E35423","v":0},null,{"$f":"Import!E35439","v":0},null,{"$f":"Import!E35455","v":0}]
[null,5,"Guaranteed Enhanced Earnings Benefit",null,null,{"$f":"Import!E35300","v":0},null,{"$f":"Import!E35331","v":0},null,{"$f":"Import!E35362","v":0},null,{"$f":"Import!E35393","v":0},null,{"$f":"Import!E35424","v":0},null,{"$f":"Import!E35440","v":0},null,{"$f":"Import!E35456","v":0}]
[null,null,"Guaranteed Minimum Accumulation Benefit: "]
[null,6,"Time To Maturity - 0-1 Year",null,null,{"$f":"Import!E35301","v":0},null,{"$f":"Import!E35332","v":0},null,{"$f":"Import!E35363","v":0},null,{"$f":"Import!E35394","v":0},null,{"$f":"Import!E35425","v":0},null,{"$f":"Import!E35441","v":0},null,{"$f":"Import!E35457","v":0}]
[null,7,"Time To Maturity - 1-2 Years",null,null,{"$f":"Import!E35302","v":0},null,{"$f":"Import!E35333","v":0},null,{"$f":"Import!E35364","v":0},null,{"$f":"Import!E35395","v":0},null,{"$f":"Import!E35426","v":0},null,{"$f":"Import!E35442","v":0},null,{"$f":"Import!E35458","v":0}]
[null,8,"Time To Maturity - 2-3 Years",null,null,{"$f":"Import!E35303","v":0},null,{"$f":"Import!E35334","v":0},null,{"$f":"Import!E35365","v":0},null,{"$f":"Import!E35396","v":0},null,{"$f":"Import!E35427","v":0},null,{"$f":"Import!E35443","v":0},null,{"$f":"Import!E35459","v":0}]
[null,9,"Time To Maturity - 3-4 Years",null,null,{"$f":"Import!E35304","v":0},null,{"$f":"Import!E35335","v":0},null,{"$f":"Import!E35366","v":0},null,{"$f":"Import!E35397","v":0},null,{"$f":"Import!E35428","v":0},null,{"$f":"Import!E35444","v":0},null,{"$f":"Import!E35460","v":0}]
[null,10,"Time To Maturity - 4-5 Years",null,null,{"$f":"Import!E35305","v":0},null,{"$f":"Import!E35336","v":0},null,{"$f":"Import!E35367","v":0},null,{"$f":"Import!E35398","v":0},null,{"$f":"Import!E35429","v":0},null,{"$f":"Import!E35445","v":0},null,{"$f":"Import!E35461","v":0}]
[null,11,"Time To Maturity - 5-6 Years",null,null,{"$f":"Import!E35306","v":0},null,{"$f":"Import!E35337","v":0},null,{"$f":"Import!E35368","v":0},null,{"$f":"Import!E35399","v":0},null,{"$f":"Import!E35430","v":0},null,{"$f":"Import!E35446","v":0},null,{"$f":"Import!E35462","v":0}]
[null,12,"Time To Maturity - 6-7 Years",null,null,{"$f":"Import!E35307","v":0},null,{"$f":"Import!E35338","v":0},null,{"$f":"Import!E35369","v":0},null,{"$f":"Import!E35400","v":0},null,{"$f":"Import!E35431","v":0},null,{"$f":"Import!E35447","v":0},null,{"$f":"Import!E35463","v":0}]
[null,13,"Time To Maturity - 7-8 Years",null,null,{"$f":"Import!E35308","v":0},null,{"$f":"Import!E35339","v":0},null,{"$f":"Import!E35370","v":0},null,{"$f":"Import!E35401","v":0},null,{"$f":"Import!E35432","v":0},null,{"$f":"Import!E35448","v":0},null,{"$f":"Import!E35464","v":0}]
[null,14,"Time To Maturity - 8-9 Years",null,null,{"$f":"Import!E35309","v":0},null,{"$f":"Import!E35340","v":0},null,{"$f":"Import!E35371","v":0},null,{"$f":"Import!E35402","v":0},null,{"$f":"Import!E35433","v":0},null,{"$f":"Import!E35449","v":0},null,{"$f":"Import!E35465","v":0}]
[null,15,"Time To Maturity - >9 Years",null,null,{"$f":"Import!E35310","v":0},null,{"$f":"Import!E35341","v":0},null,{"$f":"Import!E35372","v":0},null,{"$f":"Import!E35403","v":0},null,{"$f":"Import!E35434","v":0},null,{"$f":"Import!E35450","v":0},null,{"$f":"Import!E35466","v":0}]
[]
[null,null,"Out-of-the-Money "]
[null,16,"Guaranteed Minimum Death Benefit: Return of Premium, Ratchet and Reset 2.",null,null,{"$f":"Import!E35311","v":0},null,{"$f":"Import!E35342","v":0},null,{"$f":"Import!E35373","v":0},null,{"$f":"Import!E35404","v":0}]
[null,17,"Guaranteed Minimum Death Benefit: Enhanced Benefits (Roll up) 2.",null,null,{"$f":"Import!E35312","v":0},null,{"$f":"Import!E35343","v":0},null,{"$f":"Import!E35374","v":0},null,{"$f":"Import!E35405","v":0}]
[null,18,"Guaranteed Minimum Income Benefit",null,null,{"$f":"Import!E35313","v":0},null,{"$f":"Import!E35344","v":0},null,{"$f":"Import!E35375","v":0},null,{"$f":"Import!E35406","v":0}]
[null,19,"Guaranteed Minimum Withdrawal Benefit",null,null,{"$f":"Import!E35314","v":0},null,{"$f":"Import!E35345","v":0},null,{"$f":"Import!E35376","v":0},null,{"$f":"Import!E35407","v":0}]
[null,20,"Guaranteed Enhanced Earnings Benefit",null,null,{"$f":"Import!E35315","v":0},null,{"$f":"Import!E35346","v":0},null,{"$f":"Import!E35377","v":0},null,{"$f":"Import!E35408","v":0}]
[null,null,"Guaranteed Minimum Accumulation Benefit: "]
[null,21,"Time To Maturity - 0-1 Year",null,null,{"$f":"Import!E35316","v":0},null,{"$f":"Import!E35347","v":0},null,{"$f":"Import!E35378","v":0},null,{"$f":"Import!E35409","v":0}]
[null,22,"Time To Maturity - 1-2 Years",null,null,{"$f":"Import!E35317","v":0},null,{"$f":"Import!E35348","v":0},null,{"$f":"Import!E35379","v":0},null,{"$f":"Import!E35410","v":0}]
[null,23,"Time To Maturity - 2-3 Years",null,null,{"$f":"Import!E35318","v":0},null,{"$f":"Import!E35349","v":0},null,{"$f":"Import!E35380","v":0},null,{"$f":"Import!E35411","v":0}]
[null,24,"Time To Maturity - 3-4 Years",null,null,{"$f":"Import!E35319","v":0},null,{"$f":"Import!E35350","v":0},null,{"$f":"Import!E35381","v":0},null,{"$f":"Import!E35412","v":0}]
[null,25,"Time To Maturity - 4-5 Years",null,null,{"$f":"Import!E35320","v":0},null,{"$f":"Import!E35351","v":0},null,{"$f":"Import!E35382","v":0},null,{"$f":"Import!E35413","v":0}]
[null,26,"Time To Maturity - 5-6 Years",null,null,{"$f":"Import!E35321","v":0},null,{"$f":"Import!E35352","v":0},null,{"$f":"Import!E35383","v":0},null,{"$f":"Import!E35414","v":0}]
[null,27,"Time To Maturity - 6-7 Years",null,null,{"$f":"Import!E35322","v":0},null,{"$f":"Import!E35353","v":0},null,{"$f":"Import!E35384","v":0},null,{"$f":"Import!E35415","v":0}]
[null,28,"Time To Maturity - 7-8 Years",null,null,{"$f":"Import!E35323","v":0},null,{"$f":"Import!E35354","v":0},null,{"$f":"Import!E35385","v":0},null,{"$f":"Import!E35416","v":0}]
[null,29,"Time To Maturity - 8-9 Years",null,null,{"$f":"Import!E35324","v":0},null,{"$f":"Import!E35355","v":0},null,{"$f":"Import!E35386","v":0},null,{"$f":"Import!E35417","v":0}]
[null,30,"Time To Maturity - >9 Years",null,null,{"$f":"Import!E35325","v":0},null,{"$f":"Import!E35356","v":0},null,{"$f":"Import!E35387","v":0},null,{"$f":"Import!E35418","v":0}]
[]
[null,31,"Total (Variable Annuities)",null,null,{"$f":"SUM(F13:F47)","v":0},null,{"$f":"SUM(H13:H47)","v":0},null,{"$f":"SUM(J13:J47)","v":0},null,{"$f":"SUM(L13:L47)","v":0},null,{"$f":"SUM(N13:N47)","v":0},null,{"$f":"SUM(P13:P47)","v":0},null,{"$f":"SUM(R13:R47)","v":0}]
[]
[null,32,"Percentage of Guaranteed Minimum Death Benefit with Multiple Guarantees",null,null,null,null,null,null,null,null,{"$f":"Import!E35468","v":0}]
[]
[]
[null,null,"Notes"]
[null,null,"1.  Factors should be applied to Net Amount at Risk (NAR) defined as:"]
[null,null,null,"GMAB","Total claim payable if all contracts mature immediately"]
[null,null,null,"GMDB","Total claim amount payable upon immediate death of all policyholders"]
[null,null,null,"GMIB","Total claim payable upon full and immediate annuitisation of all policies using an 80% factor applied to the GV (the 80% represents the ratio between current market annuitisation factors and the guaranteed annuitisation factors)"]
[null,null,null,"GMWB","Total claim payable if 100% of the guaranteed withdrawal benefit base in excess of the current account value is withdrawn immediately"]
[null,null,null,"GEEB","Total guaranteed enhanced payments upon immediate death of all policyholders"]
[]
[null,null,"2. Where ratchets, resets and roll-ups exist, please use the roll-up category."]
[]
[null,null,"3.  NAR is net of reinsurance."]
[]
[null,null,"4.  The proportion used for the account value under reinsurance is the proportion used for NAR."]
[]
[null,null,"5.  Volatility is defined as the annual volatility of the fund.  In the case where there is no, or limited, history of the fund, use the volatility of the benchmark."]

{"sheet":"Schedule VIII (EBS)","index":65,"n_rows":69,"n_cols":18,"rows_kept":69,"cut":false,"hidden":false,"merged":[[2,2,2,4],[56,4,56,17],[7,5,8,5],[7,7,7,11],[7,13,7,17],[12,2,12,4],[13,2,13,4],[30,2,30,4],[31,2,31,4]]}
[null,null,"SCHEDULE OF LONG-TERM BUSINESS VARIABLE ANNUITY DATA AND RECONCILIATION",null,null,null,null,null,null,null,null,null,null,null,null,null,null,{"$f":"HYPERLINK(\"#'Index'!A1\",\"Return to Index\")","v":"Return to Index"}]
[null,null,{"$f":"'Group Information'!C9","v":"Enter Parent Company Name"}]
[null,null,{"$f":"'Form 1EBS'!C3","v":"2023-12-31"}]
[null,null,{"$f":"'Form 1EBS'!C4","v":" ['000s]United States Dollars"},null,null,null,null,null,null,null,null,null,null,null,null,null,null,"SCHEDULE VIII (EBS)"]
[]
[null,"SCHEDULE OF LONG-TERM VARIABLE ANNUITY GUARANTEES"]
[null,null,null,null,null,"(1)",null,"(2)",null,"(3)",null,"(4)",null,"(5)",null,"(6)",null,"(7)"]
[null,null,null,null,null,"Bermuda EBS Best Estimate Provisions",null,"Guaranteed Value 4",null,null,null,null,null,"Net Amount at Risk"]
[null,null,null,null,null,null,null,"Volatility (0% - 10.0%]",null,"Volatility (10.0% - 15.0%]",null,"Volatility >15.0%",null,"Volatility (0% - 10.0%]",null,"Volatility (10.0% - 15.0%]",null,"Volatility >15.0%"]
[null,null,null,null,null,{"$f":"CONFIGURATION!$D$12","v":" ('000s)"},null,{"$f":"CONFIGURATION!$D$12","v":" ('000s)"},null,{"$f":"CONFIGURATION!$D$12","v":" ('000s)"},null,{"$f":"CONFIGURATION!$D$12","v":" ('000s)"},null,{"$f":"CONFIGURATION!$D$12","v":" ('000s)"},null,{"$f":"CONFIGURATION!$D$12","v":" ('000s)"},null,{"$f":"CONFIGURATION!$D$12","v":" ('000s)"}]
[]
[null,null,"In-the-Money "]
[null,1,"Guaranteed Minimum Death Benefit: Return of Premium, Ratchet and Reset 2.",null,null,{"$f":"Import!I35296","v":0},null,{"$f":"Import!I35327","v":0},null,{"$f":"Import!I35358","v":0},null,{"$f":"Import!I35389","v":0},null,{"$f":"Import!I35420","v":0},null,{"$f":"Import!I35436","v":0},null,{"$f":"Import!I35452","v":0}]
[null,2,"Guaranteed Minimum Death Benefit: Enhanced Benefits (Roll up) 2.",null,null,{"$f":"Import!I35297","v":0},null,{"$f":"Import!I35328","v":0},null,{"$f":"Import!I35359","v":0},null,{"$f":"Import!I35390","v":0},null,{"$f":"Import!I35421","v":0},null,{"$f":"Import!I35437","v":0},null,{"$f":"Import!I35453","v":0}]
[null,3,"Guaranteed Minimum Income Benefit",null,null,{"$f":"Import!I35298","v":0},null,{"$f":"Import!I35329","v":0},null,{"$f":"Import!I35360","v":0},null,{"$f":"Import!I35391","v":0},null,{"$f":"Import!I35422","v":0},null,{"$f":"Import!I35438","v":0},null,{"$f":"Import!I35454","v":0}]
[null,4,"Guaranteed Minimum Withdrawal Benefit",null,null,{"$f":"Import!I35299","v":0},null,{"$f":"Import!I35330","v":0},null,{"$f":"Import!I35361","v":0},null,{"$f":"Import!I35392","v":0},null,{"$f":"Import!I35423","v":0},null,{"$f":"Import!I35439","v":0},null,{"$f":"Import!I35455","v":0}]
[null,5,"Guaranteed Enhanced Earnings Benefit",null,null,{"$f":"Import!I35300","v":0},null,{"$f":"Import!I35331","v":0},null,{"$f":"Import!I35362","v":0},null,{"$f":"Import!I35393","v":0},null,{"$f":"Import!I35424","v":0},null,{"$f":"Import!I35440","v":0},null,{"$f":"Import!I35456","v":0}]
[null,null,"Guaranteed Minimum Accumulation Benefit: "]
[null,6,"Time To Maturity - 0-1 Year",null,null,{"$f":"Import!I35301","v":0},null,{"$f":"Import!I35332","v":0},null,{"$f":"Import!I35363","v":0},null,{"$f":"Import!I35394","v":0},null,{"$f":"Import!I35425","v":0},null,{"$f":"Import!I35441","v":0},null,{"$f":"Import!I35457","v":0}]
[null,7,"Time To Maturity - 1-2 Years",null,null,{"$f":"Import!I35302","v":0},null,{"$f":"Import!I35333","v":0},null,{"$f":"Import!I35364","v":0},null,{"$f":"Import!I35395","v":0},null,{"$f":"Import!I35426","v":0},null,{"$f":"Import!I35442","v":0},null,{"$f":"Import!I35458","v":0}]
[null,8,"Time To Maturity - 2-3 Years",null,null,{"$f":"Import!I35303","v":0},null,{"$f":"Import!I35334","v":0},null,{"$f":"Import!I35365","v":0},null,{"$f":"Import!I35396","v":0},null,{"$f":"Import!I35427","v":0},null,{"$f":"Import!I35443","v":0},null,{"$f":"Import!I35459","v":0}]
[null,9,"Time To Maturity - 3-4 Years",null,null,{"$f":"Import!I35304","v":0},null,{"$f":"Import!I35335","v":0},null,{"$f":"Import!I35366","v":0},null,{"$f":"Import!I35397","v":0},null,{"$f":"Import!I35428","v":0},null,{"$f":"Import!I35444","v":0},null,{"$f":"Import!I35460","v":0}]
[null,10,"Time To Maturity - 4-5 Years",null,null,{"$f":"Import!I35305","v":0},null,{"$f":"Import!I35336","v":0},null,{"$f":"Import!I35367","v":0},null,{"$f":"Import!I35398","v":0},null,{"$f":"Import!I35429","v":0},null,{"$f":"Import!I35445","v":0},null,{"$f":"Import!I35461","v":0}]
[null,11,"Time To Maturity - 5-6 Years",null,null,{"$f":"Import!I35306","v":0},null,{"$f":"Import!I35337","v":0},null,{"$f":"Import!I35368","v":0},null,{"$f":"Import!I35399","v":0},null,{"$f":"Import!I35430","v":0},null,{"$f":"Import!I35446","v":0},null,{"$f":"Import!I35462","v":0}]
[null,12,"Time To Maturity - 6-7 Years",null,null,{"$f":"Import!I35307","v":0},null,{"$f":"Import!I35338","v":0},null,{"$f":"Import!I35369","v":0},null,{"$f":"Import!I35400","v":0},null,{"$f":"Import!I35431","v":0},null,{"$f":"Import!I35447","v":0},null,{"$f":"Import!I35463","v":0}]
[null,13,"Time To Maturity - 7-8 Years",null,null,{"$f":"Import!I35308","v":0},null,{"$f":"Import!I35339","v":0},null,{"$f":"Import!I35370","v":0},null,{"$f":"Import!I35401","v":0},null,{"$f":"Import!I35432","v":0},null,{"$f":"Import!I35448","v":0},null,{"$f":"Import!I35464","v":0}]
[null,14,"Time To Maturity - 8-9 Years",null,null,{"$f":"Import!I35309","v":0},null,{"$f":"Import!I35340","v":0},null,{"$f":"Import!I35371","v":0},null,{"$f":"Import!I35402","v":0},null,{"$f":"Import!I35433","v":0},null,{"$f":"Import!I35449","v":0},null,{"$f":"Import!I35465","v":0}]
[null,15,"Time To Maturity - >9 Years",null,null,{"$f":"Import!I35310","v":0},null,{"$f":"Import!I35341","v":0},null,{"$f":"Import!I35372","v":0},null,{"$f":"Import!I35403","v":0},null,{"$f":"Import!I35434","v":0},null,{"$f":"Import!I35450","v":0},null,{"$f":"Import!I35466","v":0}]
[]
[null,null,"Out-of-the-Money "]
[null,16,"Guaranteed Minimum Death Benefit: Return of Premium, Ratchet and Reset 2.",null,null,{"$f":"Import!I35311","v":0},null,{"$f":"Import!I35342","v":0},null,{"$f":"Import!I35373","v":0},null,{"$f":"Import!I35404","v":0}]
[null,17,"Guaranteed Minimum Death Benefit: Enhanced Benefits (Roll up) 2.",null,null,{"$f":"Import!I35312","v":0},null,{"$f":"Import!I35343","v":0},null,{"$f":"Import!I35374","v":0},null,{"$f":"Import!I35405","v":0}]
[null,18,"Guaranteed Minimum Income Benefit",null,null,{"$f":"Import!I35313","v":0},null,{"$f":"Import!I35344","v":0},null,{"$f":"Import!I35375","v":0},null,{"$f":"Import!I35406","v":0}]
[null,19,"Guaranteed Minimum Withdrawal Benefit",null,null,{"$f":"Import!I35314","v":0},null,{"$f":"Import!I35345","v":0},null,{"$f":"Import!I35376","v":0},null,{"$f":"Import!I35407","v":0}]
[null,20,"Guaranteed Enhanced Earnings Benefit",null,null,{"$f":"Import!I35315","v":0},null,{"$f":"Import!I35346","v":0},null,{"$f":"Import!I35377","v":0},null,{"$f":"Import!I35408","v":0}]
[null,null,"Guaranteed Minimum Accumulation Benefit: "]
[null,21,"Time To Maturity - 0-1 Year",null,null,{"$f":"Import!I35316","v":0},null,{"$f":"Import!I35347","v":0},null,{"$f":"Import!I35378","v":0},null,{"$f":"Import!I35409","v":0}]
[null,22,"Time To Maturity - 1-2 Years",null,null,{"$f":"Import!I35317","v":0},null,{"$f":"Import!I35348","v":0},null,{"$f":"Import!I35379","v":0},null,{"$f":"Import!I35410","v":0}]
[null,23,"Time To Maturity - 2-3 Years",null,null,{"$f":"Import!I35318","v":0},null,{"$f":"Import!I35349","v":0},null,{"$f":"Import!I35380","v":0},null,{"$f":"Import!I35411","v":0}]
[null,24,"Time To Maturity - 3-4 Years",null,null,{"$f":"Import!I35319","v":0},null,{"$f":"Import!I35350","v":0},null,{"$f":"Import!I35381","v":0},null,{"$f":"Import!I35412","v":0}]
[null,25,"Time To Maturity - 4-5 Years",null,null,{"$f":"Import!I35320","v":0},null,{"$f":"Import!I35351","v":0},null,{"$f":"Import!I35382","v":0},null,{"$f":"Import!I35413","v":0}]
[null,26,"Time To Maturity - 5-6 Years",null,null,{"$f":"Import!I35321","v":0},null,{"$f":"Import!I35352","v":0},null,{"$f":"Import!I35383","v":0},null,{"$f":"Import!I35414","v":0}]
[null,27,"Time To Maturity - 6-7 Years",null,null,{"$f":"Import!I35322","v":0},null,{"$f":"Import!I35353","v":0},null,{"$f":"Import!I35384","v":0},null,{"$f":"Import!I35415","v":0}]
[null,28,"Time To Maturity - 7-8 Years",null,null,{"$f":"Import!I35323","v":0},null,{"$f":"Import!I35354","v":0},null,{"$f":"Import!I35385","v":0},null,{"$f":"Import!I35416","v":0}]
[null,29,"Time To Maturity - 8-9 Years",null,null,{"$f":"Import!I35324","v":0},null,{"$f":"Import!I35355","v":0},null,{"$f":"Import!I35386","v":0},null,{"$f":"Import!I35417","v":0}]
[null,30,"Time To Maturity - >9 Years",null,null,{"$f":"Import!I35325","v":0},null,{"$f":"Import!I35356","v":0},null,{"$f":"Import!I35387","v":0},null,{"$f":"Import!I35418","v":0}]
[]
[null,31,"Total (Variable Annuities)",null,null,{"$f":"SUM(F13:F47)","v":0},null,{"$f":"SUM(H13:H47)","v":0},null,{"$f":"SUM(J13:J47)","v":0},null,{"$f":"SUM(L13:L47)","v":0},null,{"$f":"SUM(N13:N47)","v":0},null,{"$f":"SUM(P13:P47)","v":0},null,{"$f":"SUM(R13:R47)","v":0}]
[]
[null,32,"Percentage of Guaranteed Minimum Death Benefit with Multiple Guarantees",null,null,null,null,null,null,null,null,{"$f":"Import!I35468","v":0}]
[]
[]
[null,null,"Notes"]
[null,null,"1.  Factors should be applied to Net Amount at Risk (NAR) defined as:"]
[null,null,null,"GMAB","Total claim payable if all contracts mature immediately"]
[null,null,null,"GMDB","Total claim amount payable upon immediate death of all policyholders"]
[null,null,null,"GMIB","Total claim payable upon full and immediate annuitisation of all policies using an 80% factor applied to the GV (the 80% represents the ratio between current market annuitisation factors and the guaranteed annuitisation factors)"]
[null,null,null,"GMWB","Total claim payable if 100% of the guaranteed withdrawal benefit base in excess of the current account value is withdrawn immediately"]
[null,null,null,"GEEB","Total guaranteed enhanced payments upon immediate death of all policyholders"]
[]
[null,null,"2. Where ratchets, resets and roll-ups exist, please use the roll-up category."]
[]
[null,null,"3.  NAR is net of reinsurance."]
[]
[null,null,"4.  The proportion used for the account value under reinsurance is the proportion used for NAR."]
[]
[null,null,"5.  Volatility is defined as the annual volatility of the fund.  In the case where there is no, or limited, history of the fund, use the volatility of the benchmark."]
[]
[null,null,"6. Bermuda EBS best estimate provisions are to be calculated in accordance with Economic Balance Sheet valuation principals under Schedule XIV."]

{"sheet":"Schedule VIII(a)","index":66,"n_rows":102,"n_cols":19,"rows_kept":102,"cut":false,"hidden":false,"merged":[[91,3,91,14],[8,7,9,7],[8,9,9,9],[85,2,85,5],[50,3,51,3],[50,5,51,5],[50,7,51,7],[50,9,51,9],[61,3,62,3],[18,14,18,18],[27,3,28,3],[27,5,28,5],[61,5,62,5],[61,7,62,7],[27,9,28,9],[27,11,28,11],[0,16,0,19],[61,11,62,11],[8,11,9,11],[8,16,9,16],[8,18,9,18],[50,11,51,11],[3,11,4,18],[6,1,6,12],[6,13,6,19],[61,9,62,9],[27,7,28,7],[8,3,9,3],[8,5,9,5],[70,3,71,3],[70,5,71,5],[70,7,71,7],[70,9,71,9],[70,11,71,11]]}
[null,null,"SCHEDULE OF LONG-TERM VARIABLE ANNUITY - INTERNAL CAPITAL MODEL",null,null,null,null,null,null,null,null,null,null,null,null,null,{"$f":"HYPERLINK(\"#'Index'!A1\",\"Return to Index\")","v":"Return to Index"}]
[null,null,{"$f":"'Group Information'!C9","v":"Enter Parent Company Name"},null,null,null,null,null,null,null,null,null,null,null,null,null,null,null,"SCHEDULE VIII(a)"]
[null,null,{"$f":"'Form 1EBS'!C3","v":"2023-12-31"}]
[null,null,{"$f":"'Form 1EBS'!C4","v":" ['000s]United States Dollars"},null,null,null,null,null,null,null,null,{"$f":"HYPERLINK(\"#'Attachments'!A65\",\"Details of Internal Variable Annuity Guarantees (IE Actuarial Memorandum and Distribution of Cumulative Losses) are to be included in the attachments section 6.\")","v":"Details of Internal Variable Annuity Guarantees (IE Actuarial Memorandum and Distribution of Cumulative Losses) are to be included in the attachments section 6."}]
[]
[]
[null,"SCHEDULE OF LONG-TERM VARIABLE ANNUITY GUARANTEES",null,null,null,null,null,null,null,null,null,null,null,"TOTAL CAPITAL REQUIREMENT BASED ON INTERNAL MODEL RESULTS"]
[null,null,null,"(1)",null,"(2)",null,"(3)",null,"(4)",null,"(5)",null,null,null,null,"(6)",null,"(7)"]
[null,null,null,"Bermuda Statutory Reserve",null,"Policy Count",null,"Account Value",null,"Guarantee Value",null,"Net Amount At Risk",null,null,null,null,"Without Hedging",null,"With Hedging"]
[]
[null,null,"Policy Type",{"$f":"CONFIGURATION!$D$12","v":" ('000s)"},null,null,null,{"$f":"CONFIGURATION!$D$12","v":" ('000s)"},null,{"$f":"CONFIGURATION!$D$12","v":" ('000s)"},null,{"$f":"CONFIGURATION!$D$12","v":" ('000s)"}]
[null,null,"Guaranteed Minimum Death Benefit: Return of Premium",{"$f":"Import!E35490","v":0},null,{"$f":"Import!E35504","v":0},null,{"$f":"Import!E35518","v":0},null,{"$f":"Import!E35532","v":0},null,{"$f":"Import!E35546","v":0},null,"1.","Internal Model-Based Capital Requirement",null,{"$f":"Import!E35470","v":0},null,{"$f":"Import!E35478","v":0}]
[null,null,"Guaranteed Minimum Death Benefit: Ratchet ",{"$f":"Import!E35491","v":0},null,{"$f":"Import!E35505","v":0},null,{"$f":"Import!E35519","v":0},null,{"$f":"Import!E35533","v":0},null,{"$f":"Import!E35547","v":0}]
[null,null,"Guaranteed Minimum Death Benefit: Roll-up",{"$f":"Import!E35492","v":0},null,{"$f":"Import!E35506","v":0},null,{"$f":"Import!E35520","v":0},null,{"$f":"Import!E35534","v":0},null,{"$f":"Import!E35548","v":0},null,"2.","Prescribed Stress Tests:"]
[null,null,"Guaranteed Minimum Death Benefit: With Compound Guarantees",{"$f":"Import!E35493","v":0},null,{"$f":"Import!E35507","v":0},null,{"$f":"Import!E35521","v":0},null,{"$f":"Import!E35535","v":0},null,{"$f":"Import!E35549","v":0},null,null,"a. Equity - Immediate shock of 20% to separate account funds",null,{"$f":"Import!E35471","v":0},null,{"$f":"Import!E35479","v":0}]
[null,null,"Guaranteed Minimum Income Benefit: Return of Premium",{"$f":"Import!E35494","v":0},null,{"$f":"Import!E35508","v":0},null,{"$f":"Import!E35522","v":0},null,{"$f":"Import!E35536","v":0},null,{"$f":"Import!E35550","v":0},null,null,"   b. Absolute immediate increase of 10% in implied volatility",null,{"$f":"Import!E35472","v":0},null,{"$f":"Import!E35480","v":0}]
[null,null,"Guaranteed Minimum Income Benefit: Ratchet",{"$f":"Import!E35495","v":0},null,{"$f":"Import!E35509","v":0},null,{"$f":"Import!E35523","v":0},null,{"$f":"Import!E35537","v":0},null,{"$f":"Import!E35551","v":0},null,null,"   c. Interest rates - Immediate parallel shift up/down by 100 bps",null,{"$f":"Import!E35473","v":0},null,{"$f":"Import!E35481","v":0}]
[null,null,"Guaranteed Minimum Income Benefit: Roll-up",{"$f":"Import!E35496","v":0},null,{"$f":"Import!E35510","v":0},null,{"$f":"Import!E35524","v":0},null,{"$f":"Import!E35538","v":0},null,{"$f":"Import!E35552","v":0}]
[null,null,"Guaranteed Minimum Income Benefit: With Compound Guarantees",{"$f":"Import!E35497","v":0},null,{"$f":"Import!E35511","v":0},null,{"$f":"Import!E35525","v":0},null,{"$f":"Import!E35539","v":0},null,{"$f":"Import!E35553","v":0},null,"3.","Stresses to Actuarial Assumptions for Mortality and Policyholder behaviour:"]
[null,null,"Enhanced Earnings Benefit",{"$f":"Import!E35498","v":0},null,{"$f":"Import!E35512","v":0},null,{"$f":"Import!E35526","v":0},null,{"$f":"Import!E35540","v":0},null,{"$f":"Import!E35554","v":0},null,"a.",{"$f":"Import!E35486","v":0},null,{"$f":"Import!E35474","v":0},null,{"$f":"Import!E35482","v":0}]
[null,null,"Guaranteed Minimum Withdrawal Benefit",{"$f":"Import!E35499","v":0},null,{"$f":"Import!E35513","v":0},null,{"$f":"Import!E35527","v":0},null,{"$f":"Import!E35541","v":0},null,{"$f":"Import!E35555","v":0},null,"b.",{"$f":"Import!E35487","v":0},null,{"$f":"Import!E35475","v":0},null,{"$f":"Import!E35483","v":0}]
[null,null,"Guaranteed Minimum Withdrawal for Life",{"$f":"Import!E35500","v":0},null,{"$f":"Import!E35514","v":0},null,{"$f":"Import!E35528","v":0},null,{"$f":"Import!E35542","v":0},null,{"$f":"Import!E35556","v":0},null,"c.",{"$f":"Import!E35488","v":0},null,{"$f":"Import!E35476","v":0},null,{"$f":"Import!E35484","v":0}]
[null,null,"Guaranteed Minimum Accumulation Benefit: ",{"$f":"Import!E35501","v":0},null,{"$f":"Import!E35515","v":0},null,{"$f":"Import!E35529","v":0},null,{"$f":"Import!E35543","v":0},null,{"$f":"Import!E35557","v":0},null,"d.",{"$f":"Import!E35489","v":0},null,{"$f":"Import!E35477","v":0},null,{"$f":"Import!E35485","v":0}]
[null,null,"Guaranteed Minimum Accumulation Benefit: With Compound Guarantees",{"$f":"Import!E35502","v":0},null,{"$f":"Import!E35516","v":0},null,{"$f":"Import!E35530","v":0},null,{"$f":"Import!E35544","v":0},null,{"$f":"Import!E35558","v":0}]
[null,null,"Total (Variable Annuities)",{"$f":"SUM(D12:D24)","v":0},null,{"$f":"SUM(F12:F24)","v":0},null,{"$f":"SUM(H12:H24)","v":0},null,{"$f":"SUM(J12:J24)","v":0},null,{"$f":"SUM(L12:L24)","v":0}]
[]
[]
[null,null,null,"Bermuda Statutory Reserve",null,"Policy Count",null,"Account Value",null,"Guarantee Value",null,"Total Amount At Risk"]
[]
[null,null,"Years Since Issue",{"$f":"CONFIGURATION!$D$12","v":" ('000s)"},null,null,null,{"$f":"CONFIGURATION!$D$12","v":" ('000s)"},null,{"$f":"CONFIGURATION!$D$12","v":" ('000s)"},null,{"$f":"CONFIGURATION!$D$12","v":" ('000s)"}]
[null,null,0,{"$f":"Import!E35560","v":0},null,{"$f":"Import!E35578","v":0},null,{"$f":"Import!E35596","v":0},null,{"$f":"Import!E35614","v":0},null,{"$f":"Import!E35632","v":0}]
[null,null,1,{"$f":"Import!E35561","v":0},null,{"$f":"Import!E35579","v":0},null,{"$f":"Import!E35597","v":0},null,{"$f":"Import!E35615","v":0},null,{"$f":"Import!E35633","v":0}]
[null,null,2,{"$f":"Import!E35562","v":0},null,{"$f":"Import!E35580","v":0},null,{"$f":"Import!E35598","v":0},null,{"$f":"Import!E35616","v":0},null,{"$f":"Import!E35634","v":0}]
[null,null,3,{"$f":"Import!E35563","v":0},null,{"$f":"Import!E35581","v":0},null,{"$f":"Import!E35599","v":0},null,{"$f":"Import!E35617","v":0},null,{"$f":"Import!E35635","v":0}]
[null,null,4,{"$f":"Import!E35564","v":0},null,{"$f":"Import!E35582","v":0},null,{"$f":"Import!E35600","v":0},null,{"$f":"Import!E35618","v":0},null,{"$f":"Import!E35636","v":0}]
[null,null,5,{"$f":"Import!E35565","v":0},null,{"$f":"Import!E35583","v":0},null,{"$f":"Import!E35601","v":0},null,{"$f":"Import!E35619","v":0},null,{"$f":"Import!E35637","v":0}]
[null,null,6,{"$f":"Import!E35566","v":0},null,{"$f":"Import!E35584","v":0},null,{"$f":"Import!E35602","v":0},null,{"$f":"Import!E35620","v":0},null,{"$f":"Import!E35638","v":0}]
[" ",null,7,{"$f":"Import!E35567","v":0},null,{"$f":"Import!E35585","v":0},null,{"$f":"Import!E35603","v":0},null,{"$f":"Import!E35621","v":0},null,{"$f":"Import!E35639","v":0}]
[null,null,8,{"$f":"Import!E35568","v":0},null,{"$f":"Import!E35586","v":0},null,{"$f":"Import!E35604","v":0},null,{"$f":"Import!E35622","v":0},null,{"$f":"Import!E35640","v":0}]
[null,null,9,{"$f":"Import!E35569","v":0},null,{"$f":"Import!E35587","v":0},null,{"$f":"Import!E35605","v":0},null,{"$f":"Import!E35623","v":0},null,{"$f":"Import!E35641","v":0}]
[null,null,10,{"$f":"Import!E35570","v":0},null,{"$f":"Import!E35588","v":0},null,{"$f":"Import!E35606","v":0},null,{"$f":"Import!E35624","v":0},null,{"$f":"Import!E35642","v":0}]
[null,null,11,{"$f":"Import!E35571","v":0},null,{"$f":"Import!E35589","v":0},null,{"$f":"Import!E35607","v":0},null,{"$f":"Import!E35625","v":0},null,{"$f":"Import!E35643","v":0}]
[null,null,12,{"$f":"Import!E35572","v":0},null,{"$f":"Import!E35590","v":0},null,{"$f":"Import!E35608","v":0},null,{"$f":"Import!E35626","v":0},null,{"$f":"Import!E35644","v":0}]
[null,null,13,{"$f":"Import!E35573","v":0},null,{"$f":"Import!E35591","v":0},null,{"$f":"Import!E35609","v":0},null,{"$f":"Import!E35627","v":0},null,{"$f":"Import!E35645","v":0}]
[null,null,14,{"$f":"Import!E35574","v":0},null,{"$f":"Import!E35592","v":0},null,{"$f":"Import!E35610","v":0},null,{"$f":"Import!E35628","v":0},null,{"$f":"Import!E35646","v":0}]
[null,null,15,{"$f":"Import!E35575","v":0},null,{"$f":"Import!E35593","v":0},null,{"$f":"Import!E35611","v":0},null,{"$f":"Import!E35629","v":0},null,{"$f":"Import!E35647","v":0}]
[null,null,">15",{"$f":"Import!E35576","v":0},null,{"$f":"Import!E35594","v":0},null,{"$f":"Import!E35612","v":0},null,{"$f":"Import!E35630","v":0},null,{"$f":"Import!E35648","v":0}]
[null,null,null,{"$f":"SUM(D31:D47)","v":0},null,{"$f":"SUM(F31:F47)","v":0},null,{"$f":"SUM(H31:H47)","v":0},null,{"$f":"SUM(J31:J47)","v":0},null,{"$f":"SUM(L31:L47)","v":0}]
[]
[]
[null,null,null,"Bermuda Statutory Reserve",null,"Policy Count",null,"Account Value",null,"Guarantee Value",null,"Total Amount At Risk"]
[]
[null,null,"In/Out of the Money",{"$f":"CONFIGURATION!$D$12","v":" ('000s)"},null,null,null,{"$f":"CONFIGURATION!$D$12","v":" ('000s)"},null,{"$f":"CONFIGURATION!$D$12","v":" ('000s)"},null,{"$f":"CONFIGURATION!$D$12","v":" ('000s)"}]
[null,null,"<-15%",{"$f":"Import!E35650","v":0},null,{"$f":"Import!E35656","v":0},null,{"$f":"Import!E35662","v":0},null,{"$f":"Import!E35668","v":0},null,{"$f":"Import!E35674","v":0}]
[null,null,"(-15%) - (-5%)",{"$f":"Import!E35651","v":0},null,{"$f":"Import!E35657","v":0},null,{"$f":"Import!E35663","v":0},null,{"$f":"Import!E35669","v":0},null,{"$f":"Import!E35675","v":0}]
[null,null,"(-5%) - (+5%)",{"$f":"Import!E35652","v":0},null,{"$f":"Import!E35658","v":0},null,{"$f":"Import!E35664","v":0},null,{"$f":"Import!E35670","v":0},null,{"$f":"Import!E35676","v":0}]
[null,null,"(+5%) - (+15%)",{"$f":"Import!E35653","v":0},null,{"$f":"Import!E35659","v":0},null,{"$f":"Import!E35665","v":0},null,{"$f":"Import!E35671","v":0},null,{"$f":"Import!E35677","v":0}]
[null,null,">+15%",{"$f":"Import!E35654","v":0},null,{"$f":"Import!E35660","v":0},null,{"$f":"Import!E35666","v":0},null,{"$f":"Import!E35672","v":0},null,{"$f":"Import!E35678","v":0}]
[null,null,null,{"$f":"SUM(D54:D58)","v":0},null,{"$f":"SUM(F54:F58)","v":0},null,{"$f":"SUM(H54:H58)","v":0},null,{"$f":"SUM(J54:J58)","v":0},null,{"$f":"SUM(L54:L58)","v":0}]
[]
[]
[null,null,null,"Bermuda Statutory Reserve",null,"Policy Count",null,"Account Value",null,"Guarantee Value",null,"Total Amount At Risk"]
[]
[null,null,"Fund Volatility",{"$f":"CONFIGURATION!$D$12","v":" ('000s)"},null,null,null,{"$f":"CONFIGURATION!$D$12","v":" ('000s)"},null,{"$f":"CONFIGURATION!$D$12","v":" ('000s)"},null,{"$f":"CONFIGURATION!$D$12","v":" ('000s)"}]
[null,null," 0-10% ",{"$f":"Import!E35680","v":0},null,{"$f":"Import!E35684","v":0},null,{"$f":"Import!E35688","v":0},null,{"$f":"Import!E35692","v":0},null,{"$f":"Import!E35696","v":0}]
[null,null," 10-20% ",{"$f":"Import!E35681","v":0},null,{"$f":"Import!E35685","v":0},null,{"$f":"Import!E35689","v":0},null,{"$f":"Import!E35693","v":0},null,{"$f":"Import!E35697","v":0}]
[null,null," 20%+ ",{"$f":"Import!E35682","v":0},null,{"$f":"Import!E35686","v":0},null,{"$f":"Import!E35690","v":0},null,{"$f":"Import!E35694","v":0},null,{"$f":"Import!E35698","v":0}]
[null,null,null,{"$f":"SUM(D65:D67)","v":0},null,{"$f":"SUM(F65:F67)","v":0},null,{"$f":"SUM(H65:H67)","v":0},null,{"$f":"SUM(J65:J67)","v":0},null,{"$f":"SUM(L65:L67)","v":0}]
[]
[]
[null,null,null,"Bermuda Statutory Reserve",null,"Policy Count",null,"Account Value",null,"Guarantee Value",null,"Total Amount At Risk"]
[]
[null,null,"Years to Next Maturity (GMAB Only)",{"$f":"CONFIGURATION!$D$12","v":" ('000s)"},null,null,null,{"$f":"CONFIGURATION!$D$12","v":" ('000s)"},null,{"$f":"CONFIGURATION!$D$12","v":" ('000s)"},null,{"$f":"CONFIGURATION!$D$12","v":" ('000s)"}]
[null,null,0,{"$f":"Import!E35700","v":0},null,{"$f":"Import!E35712","v":0},null,{"$f":"Import!E35724","v":0},null,{"$f":"Import!E35736","v":0},null,{"$f":"Import!E35748","v":0}]
[null,null,1,{"$f":"Import!E35701","v":0},null,{"$f":"Import!E35713","v":0},null,{"$f":"Import!E35725","v":0},null,{"$f":"Import!E35737","v":0},null,{"$f":"Import!E35749","v":0}]
[null,null,2,{"$f":"Import!E35702","v":0},null,{"$f":"Import!E35714","v":0},null,{"$f":"Import!E35726","v":0},null,{"$f":"Import!E35738","v":0},null,{"$f":"Import!E35750","v":0}]
[null,null,3,{"$f":"Import!E35703","v":0},null,{"$f":"Import!E35715","v":0},null,{"$f":"Import!E35727","v":0},null,{"$f":"Import!E35739","v":0},null,{"$f":"Import!E35751","v":0}]
[null,null,4,{"$f":"Import!E35704","v":0},null,{"$f":"Import!E35716","v":0},null,{"$f":"Import!E35728","v":0},null,{"$f":"Import!E35740","v":0},null,{"$f":"Import!E35752","v":0}]
[null,null,5,{"$f":"Import!E35705","v":0},null,{"$f":"Import!E35717","v":0},null,{"$f":"Import!E35729","v":0},null,{"$f":"Import!E35741","v":0},null,{"$f":"Import!E35753","v":0}]
[null,null,6,{"$f":"Import!E35706","v":0},null,{"$f":"Import!E35718","v":0},null,{"$f":"Import!E35730","v":0},null,{"$f":"Import!E35742","v":0},null,{"$f":"Import!E35754","v":0}]
[" ",null,7,{"$f":"Import!E35707","v":0},null,{"$f":"Import!E35719","v":0},null,{"$f":"Import!E35731","v":0},null,{"$f":"Import!E35743","v":0},null,{"$f":"Import!E35755","v":0}]
[null,null,8,{"$f":"Import!E35708","v":0},null,{"$f":"Import!E35720","v":0},null,{"$f":"Import!E35732","v":0},null,{"$f":"Import!E35744","v":0},null,{"$f":"Import!E35756","v":0}]
[null,null,9,{"$f":"Import!E35709","v":0},null,{"$f":"Import!E35721","v":0},null,{"$f":"Import!E35733","v":0},null,{"$f":"Import!E35745","v":0},null,{"$f":"Import!E35757","v":0}]
[null,null,">10",{"$f":"Import!E35710","v":0},null,{"$f":"Import!E35722","v":0},null,{"$f":"Import!E35734","v":0},null,{"$f":"Import!E35746","v":0},null,{"$f":"Import!E35758","v":0}]
[null,null,null,{"$f":"SUM(D74:D84)","v":0},null,{"$f":"SUM(F74:F84)","v":0},null,{"$f":"SUM(H74:H84)","v":0},null,{"$f":"SUM(J74:J84)","v":0},null,{"$f":"SUM(L74:L84)","v":0}]
[]
[]
[null,"Notes"]
[null,"1.  Factors should be applied to Net Amount at Risk (NAR) defined as:"]
[null,null,"GMAB","Total claim payable if all contracts mature immediately"]
[null,null,"GMDB","Total claim amount payable upon immediate death of all policyholders"]
[null,null,"GMIB","Total claim payable upon full and immediate annuitisation of all policies using an 80% factor applied to the GV (the 80% represents the ratio between current market annuitisation factors and the guaranteed annuitisation factors)"]
[null,null,"GMWB","Total claim payable if 100% of the guaranteed withdrawal benefit base in excess of the current account value is withdrawn immediately"]
[null,null,"GEEB","Total guaranteed enhanced payments upon immediate death of all policyholders"]
[]
[null,"2. Where ratchets, resets and roll-ups exist, please use the roll-up category."]
[]
[null,"3.  NAR is net of reinsurance."]
[]
[null,"4.  The proportion used for the account value under reinsurance is the proportion used for NAR."]
[]
[null,"5.  Volatility is defined as the annual volatility of the fund.  In the case where there is no, or limited, history of the fund, use the volatility of the benchmark."]

{"sheet":"Schedule VIIIA (EBS)","index":67,"n_rows":104,"n_cols":19,"rows_kept":104,"cut":false,"hidden":false,"merged":[[91,3,91,14],[8,7,9,7],[8,9,9,9],[85,2,85,5],[50,3,51,3],[50,5,51,5],[50,7,51,7],[50,9,51,9],[61,3,62,3],[18,14,18,18],[27,3,28,3],[27,5,28,5],[61,5,62,5],[61,7,62,7],[27,9,28,9],[27,11,28,11],[0,16,0,19],[61,11,62,11],[8,11,9,11],[8,16,9,16],[8,18,9,18],[50,11,51,11],[3,11,4,18],[6,1,6,12],[6,13,6,19],[61,9,62,9],[27,7,28,7],[8,3,9,3],[8,5,9,5],[70,3,71,3],[70,5,71,5],[70,7,71,7],[70,9,71,9],[70,11,71,11]]}
[null,null,"SCHEDULE OF LONG-TERM VARIABLE ANNUITY - INTERNAL CAPITAL MODEL",null,null,null,null,null,null,null,null,null,null,null,null,null,{"$f":"HYPERLINK(\"#'Index'!A1\",\"Return to Index\")","v":"Return to Index"}]
[null,null,{"$f":"'Group Information'!C9","v":"Enter Parent Company Name"},null,null,null,null,null,null,null,null,null,null,null,null,null,null,null,"SCHEDULE VIII(a) (EBS)"]
[null,null,{"$f":"'Form 1EBS'!C3","v":"2023-12-31"}]
[null,null,{"$f":"'Form 1EBS'!C4","v":" ['000s]United States Dollars"},null,null,null,null,null,null,null,null,{"$f":"HYPERLINK(\"#'Attachments'!A65\",\"Details of Internal Variable Annuity Guarantees (IE Actuarial Memorandum and Distribution of Cumulative Losses) are to be included in the attachments section 6.\")","v":"Details of Internal Variable Annuity Guarantees (IE Actuarial Memorandum and Distribution of Cumulative Losses) are to be included in the attachments section 6."}]
[]
[]
[null,"SCHEDULE OF LONG-TERM VARIABLE ANNUITY GUARANTEES",null,null,null,null,null,null,null,null,null,null,null,"TOTAL CAPITAL REQUIREMENT BASED ON INTERNAL MODEL RESULTS"]
[null,null,null,"(1)",null,"(2)",null,"(3)",null,"(4)",null,"(5)",null,null,null,null,"(6)",null,"(7)"]
[null,null,null,"Bermuda EBS Best Estimate Provisions",null,"Policy Count",null,"Account Value",null,"Guarantee Value",null,"Net Amount At Risk",null,null,null,null,"Without Hedging",null,"With Hedging"]
[]
[null,null,"Policy Type",{"$f":"CONFIGURATION!$D$12","v":" ('000s)"},null,null,null,{"$f":"CONFIGURATION!$D$12","v":" ('000s)"},null,{"$f":"CONFIGURATION!$D$12","v":" ('000s)"},null,{"$f":"CONFIGURATION!$D$12","v":" ('000s)"}]
[null,null,"Guaranteed Minimum Death Benefit: Return of Premium",{"$f":"Import!I35490","v":0},null,{"$f":"Import!I35504","v":0},null,{"$f":"Import!I35518","v":0},null,{"$f":"Import!I35532","v":0},null,{"$f":"Import!I35546","v":0},null,"1.","Internal Model-Based Capital Requirement",null,{"$f":"Import!I35470","v":0},null,{"$f":"Import!I35478","v":0}]
[null,null,"Guaranteed Minimum Death Benefit: Ratchet ",{"$f":"Import!I35491","v":0},null,{"$f":"Import!I35505","v":0},null,{"$f":"Import!I35519","v":0},null,{"$f":"Import!I35533","v":0},null,{"$f":"Import!I35547","v":0}]
[null,null,"Guaranteed Minimum Death Benefit: Roll-up",{"$f":"Import!I35492","v":0},null,{"$f":"Import!I35506","v":0},null,{"$f":"Import!I35520","v":0},null,{"$f":"Import!I35534","v":0},null,{"$f":"Import!I35548","v":0},null,"2.","Prescribed Stress Tests:"]
[null,null,"Guaranteed Minimum Death Benefit: With Compound Guarantees",{"$f":"Import!I35493","v":0},null,{"$f":"Import!I35507","v":0},null,{"$f":"Import!I35521","v":0},null,{"$f":"Import!I35535","v":0},null,{"$f":"Import!I35549","v":0},null,null,"a. Equity - Immediate shock of 20% to separate account funds",null,{"$f":"Import!I35471","v":0},null,{"$f":"Import!I35479","v":0}]
[null,null,"Guaranteed Minimum Income Benefit: Return of Premium",{"$f":"Import!I35494","v":0},null,{"$f":"Import!I35508","v":0},null,{"$f":"Import!I35522","v":0},null,{"$f":"Import!I35536","v":0},null,{"$f":"Import!I35550","v":0},null,null,"   b. Absolute immediate increase of 10% in implied volatility",null,{"$f":"Import!I35472","v":0},null,{"$f":"Import!I35480","v":0}]
[null,null,"Guaranteed Minimum Income Benefit: Ratchet",{"$f":"Import!I35495","v":0},null,{"$f":"Import!I35509","v":0},null,{"$f":"Import!I35523","v":0},null,{"$f":"Import!I35537","v":0},null,{"$f":"Import!I35551","v":0},null,null,"   c. Interest rates - Immediate parallel shift up/down by 100 bps",null,{"$f":"Import!I35473","v":0},null,{"$f":"Import!I35481","v":0}]
[null,null,"Guaranteed Minimum Income Benefit: Roll-up",{"$f":"Import!I35496","v":0},null,{"$f":"Import!I35510","v":0},null,{"$f":"Import!I35524","v":0},null,{"$f":"Import!I35538","v":0},null,{"$f":"Import!I35552","v":0}]
[null,null,"Guaranteed Minimum Income Benefit: With Compound Guarantees",{"$f":"Import!I35497","v":0},null,{"$f":"Import!I35511","v":0},null,{"$f":"Import!I35525","v":0},null,{"$f":"Import!I35539","v":0},null,{"$f":"Import!I35553","v":0},null,"3.","Stresses to Actuarial Assumptions for Mortality and Policyholder behaviour:"]
[null,null,"Enhanced Earnings Benefit",{"$f":"Import!I35498","v":0},null,{"$f":"Import!I35512","v":0},null,{"$f":"Import!I35526","v":0},null,{"$f":"Import!I35540","v":0},null,{"$f":"Import!I35554","v":0},null,"a.",{"$f":"Import!I35486","v":0},null,{"$f":"Import!I35474","v":0},null,{"$f":"Import!I35482","v":0}]
[null,null,"Guaranteed Minimum Withdrawal Benefit",{"$f":"Import!I35499","v":0},null,{"$f":"Import!I35513","v":0},null,{"$f":"Import!I35527","v":0},null,{"$f":"Import!I35541","v":0},null,{"$f":"Import!I35555","v":0},null,"b.",{"$f":"Import!I35487","v":0},null,{"$f":"Import!I35475","v":0},null,{"$f":"Import!I35483","v":0}]
[null,null,"Guaranteed Minimum Withdrawal for Life",{"$f":"Import!I35500","v":0},null,{"$f":"Import!I35514","v":0},null,{"$f":"Import!I35528","v":0},null,{"$f":"Import!I35542","v":0},null,{"$f":"Import!I35556","v":0},null,"c.",{"$f":"Import!I35488","v":0},null,{"$f":"Import!I35476","v":0},null,{"$f":"Import!I35484","v":0}]
[null,null,"Guaranteed Minimum Accumulation Benefit: ",{"$f":"Import!I35501","v":0},null,{"$f":"Import!I35515","v":0},null,{"$f":"Import!I35529","v":0},null,{"$f":"Import!I35543","v":0},null,{"$f":"Import!I35557","v":0},null,"d.",{"$f":"Import!I35489","v":0},null,{"$f":"Import!I35477","v":0},null,{"$f":"Import!I35485","v":0}]
[null,null,"Guaranteed Minimum Accumulation Benefit: With Compound Guarantees",{"$f":"Import!I35502","v":0},null,{"$f":"Import!I35516","v":0},null,{"$f":"Import!I35530","v":0},null,{"$f":"Import!I35544","v":0},null,{"$f":"Import!I35558","v":0}]
[null,null,"Total (Variable Annuities)",{"$f":"SUM(D12:D24)","v":0},null,{"$f":"SUM(F12:F24)","v":0},null,{"$f":"SUM(H12:H24)","v":0},null,{"$f":"SUM(J12:J24)","v":0},null,{"$f":"SUM(L12:L24)","v":0}]
[]
[]
[null,null,null,"Bermuda EBS Best Estimate Provisions",null,"Policy Count",null,"Account Value",null,"Guarantee Value",null,"Total Amount At Risk"]
[]
[null,null,"Years Since Issue",{"$f":"CONFIGURATION!$D$12","v":" ('000s)"},null,null,null,{"$f":"CONFIGURATION!$D$12","v":" ('000s)"},null,{"$f":"CONFIGURATION!$D$12","v":" ('000s)"},null,{"$f":"CONFIGURATION!$D$12","v":" ('000s)"}]
[null,null,0,{"$f":"Import!I35560","v":0},null,{"$f":"Import!I35578","v":0},null,{"$f":"Import!I35596","v":0},null,{"$f":"Import!I35614","v":0},null,{"$f":"Import!I35632","v":0}]
[null,null,1,{"$f":"Import!I35561","v":0},null,{"$f":"Import!I35579","v":0},null,{"$f":"Import!I35597","v":0},null,{"$f":"Import!I35615","v":0},null,{"$f":"Import!I35633","v":0}]
[null,null,2,{"$f":"Import!I35562","v":0},null,{"$f":"Import!I35580","v":0},null,{"$f":"Import!I35598","v":0},null,{"$f":"Import!I35616","v":0},null,{"$f":"Import!I35634","v":0}]
[null,null,3,{"$f":"Import!I35563","v":0},null,{"$f":"Import!I35581","v":0},null,{"$f":"Import!I35599","v":0},null,{"$f":"Import!I35617","v":0},null,{"$f":"Import!I35635","v":0}]
[null,null,4,{"$f":"Import!I35564","v":0},null,{"$f":"Import!I35582","v":0},null,{"$f":"Import!I35600","v":0},null,{"$f":"Import!I35618","v":0},null,{"$f":"Import!I35636","v":0}]
[null,null,5,{"$f":"Import!I35565","v":0},null,{"$f":"Import!I35583","v":0},null,{"$f":"Import!I35601","v":0},null,{"$f":"Import!I35619","v":0},null,{"$f":"Import!I35637","v":0}]
[null,null,6,{"$f":"Import!I35566","v":0},null,{"$f":"Import!I35584","v":0},null,{"$f":"Import!I35602","v":0},null,{"$f":"Import!I35620","v":0},null,{"$f":"Import!I35638","v":0}]
[" ",null,7,{"$f":"Import!I35567","v":0},null,{"$f":"Import!I35585","v":0},null,{"$f":"Import!I35603","v":0},null,{"$f":"Import!I35621","v":0},null,{"$f":"Import!I35639","v":0}]
[null,null,8,{"$f":"Import!I35568","v":0},null,{"$f":"Import!I35586","v":0},null,{"$f":"Import!I35604","v":0},null,{"$f":"Import!I35622","v":0},null,{"$f":"Import!I35640","v":0}]
[null,null,9,{"$f":"Import!I35569","v":0},null,{"$f":"Import!I35587","v":0},null,{"$f":"Import!I35605","v":0},null,{"$f":"Import!I35623","v":0},null,{"$f":"Import!I35641","v":0}]
[null,null,10,{"$f":"Import!I35570","v":0},null,{"$f":"Import!I35588","v":0},null,{"$f":"Import!I35606","v":0},null,{"$f":"Import!I35624","v":0},null,{"$f":"Import!I35642","v":0}]
[null,null,11,{"$f":"Import!I35571","v":0},null,{"$f":"Import!I35589","v":0},null,{"$f":"Import!I35607","v":0},null,{"$f":"Import!I35625","v":0},null,{"$f":"Import!I35643","v":0}]
[null,null,12,{"$f":"Import!I35572","v":0},null,{"$f":"Import!I35590","v":0},null,{"$f":"Import!I35608","v":0},null,{"$f":"Import!I35626","v":0},null,{"$f":"Import!I35644","v":0}]
[null,null,13,{"$f":"Import!I35573","v":0},null,{"$f":"Import!I35591","v":0},null,{"$f":"Import!I35609","v":0},null,{"$f":"Import!I35627","v":0},null,{"$f":"Import!I35645","v":0}]
[null,null,14,{"$f":"Import!I35574","v":0},null,{"$f":"Import!I35592","v":0},null,{"$f":"Import!I35610","v":0},null,{"$f":"Import!I35628","v":0},null,{"$f":"Import!I35646","v":0}]
[null,null,15,{"$f":"Import!I35575","v":0},null,{"$f":"Import!I35593","v":0},null,{"$f":"Import!I35611","v":0},null,{"$f":"Import!I35629","v":0},null,{"$f":"Import!I35647","v":0}]
[null,null,">15",{"$f":"Import!I35576","v":0},null,{"$f":"Import!I35594","v":0},null,{"$f":"Import!I35612","v":0},null,{"$f":"Import!I35630","v":0},null,{"$f":"Import!I35648","v":0}]
[null,null,null,{"$f":"SUM(D31:D47)","v":0},null,{"$f":"SUM(F31:F47)","v":0},null,{"$f":"SUM(H31:H47)","v":0},null,{"$f":"SUM(J31:J47)","v":0},null,{"$f":"SUM(L31:L47)","v":0}]
[]
[]
[null,null,null,"Bermuda EBS Best Estimate Provisions ",null,"Policy Count",null,"Account Value",null,"Guarantee Value",null,"Total Amount At Risk"]
[]
[null,null,"In/Out of the Money",{"$f":"CONFIGURATION!$D$12","v":" ('000s)"},null,null,null,{"$f":"CONFIGURATION!$D$12","v":" ('000s)"},null,{"$f":"CONFIGURATION!$D$12","v":" ('000s)"},null,{"$f":"CONFIGURATION!$D$12","v":" ('000s)"}]
[null,null,"<-15%",{"$f":"Import!I35650","v":0},null,{"$f":"Import!I35656","v":0},null,{"$f":"Import!I35662","v":0},null,{"$f":"Import!I35668","v":0},null,{"$f":"Import!I35674","v":0}]
[null,null,"(-15%) - (-5%)",{"$f":"Import!I35651","v":0},null,{"$f":"Import!I35657","v":0},null,{"$f":"Import!I35663","v":0},null,{"$f":"Import!I35669","v":0},null,{"$f":"Import!I35675","v":0}]
[null,null,"(-5%) - (+5%)",{"$f":"Import!I35652","v":0},null,{"$f":"Import!I35658","v":0},null,{"$f":"Import!I35664","v":0},null,{"$f":"Import!I35670","v":0},null,{"$f":"Import!I35676","v":0}]
[null,null,"(+5%) - (+15%)",{"$f":"Import!I35653","v":0},null,{"$f":"Import!I35659","v":0},null,{"$f":"Import!I35665","v":0},null,{"$f":"Import!I35671","v":0},null,{"$f":"Import!I35677","v":0}]
[null,null,">+15%",{"$f":"Import!I35654","v":0},null,{"$f":"Import!I35660","v":0},null,{"$f":"Import!I35666","v":0},null,{"$f":"Import!I35672","v":0},null,{"$f":"Import!I35678","v":0}]
[null,null,null,{"$f":"SUM(D54:D58)","v":0},null,{"$f":"SUM(F54:F58)","v":0},null,{"$f":"SUM(H54:H58)","v":0},null,{"$f":"SUM(J54:J58)","v":0},null,{"$f":"SUM(L54:L58)","v":0}]
[]
[]
[null,null,null,"Bermuda EBS Best Estimate Provisions",null,"Policy Count",null,"Account Value",null,"Guarantee Value",null,"Total Amount At Risk"]
[]
[null,null,"Fund Volatility",{"$f":"CONFIGURATION!$D$12","v":" ('000s)"},null,null,null,{"$f":"CONFIGURATION!$D$12","v":" ('000s)"},null,{"$f":"CONFIGURATION!$D$12","v":" ('000s)"},null,{"$f":"CONFIGURATION!$D$12","v":" ('000s)"}]
[null,null," 0-10% ",{"$f":"Import!I35680","v":0},null,{"$f":"Import!I35684","v":0},null,{"$f":"Import!I35688","v":0},null,{"$f":"Import!I35692","v":0},null,{"$f":"Import!I35696","v":0}]
[null,null," 10-20% ",{"$f":"Import!I35681","v":0},null,{"$f":"Import!I35685","v":0},null,{"$f":"Import!I35689","v":0},null,{"$f":"Import!I35693","v":0},null,{"$f":"Import!I35697","v":0}]
[null,null," 20%+ ",{"$f":"Import!I35682","v":0},null,{"$f":"Import!I35686","v":0},null,{"$f":"Import!I35690","v":0},null,{"$f":"Import!I35694","v":0},null,{"$f":"Import!I35698","v":0}]
[null,null,null,{"$f":"SUM(D65:D67)","v":0},null,{"$f":"SUM(F65:F67)","v":0},null,{"$f":"SUM(H65:H67)","v":0},null,{"$f":"SUM(J65:J67)","v":0},null,{"$f":"SUM(L65:L67)","v":0}]
[]
[]
[null,null,null,"Bermuda EBS Best Estimate Provisions",null,"Policy Count",null,"Account Value",null,"Guarantee Value",null,"Total Amount At Risk"]
[]
[null,null,"Years to Next Maturity (GMAB Only)",{"$f":"CONFIGURATION!$D$12","v":" ('000s)"},null,null,null,{"$f":"CONFIGURATION!$D$12","v":" ('000s)"},null,{"$f":"CONFIGURATION!$D$12","v":" ('000s)"},null,{"$f":"CONFIGURATION!$D$12","v":" ('000s)"}]
[null,null,0,{"$f":"Import!I35700","v":0},null,{"$f":"Import!I35712","v":0},null,{"$f":"Import!I35724","v":0},null,{"$f":"Import!I35736","v":0},null,{"$f":"Import!I35748","v":0}]
[null,null,1,{"$f":"Import!I35701","v":0},null,{"$f":"Import!I35713","v":0},null,{"$f":"Import!I35725","v":0},null,{"$f":"Import!I35737","v":0},null,{"$f":"Import!I35749","v":0}]
[null,null,2,{"$f":"Import!I35702","v":0},null,{"$f":"Import!I35714","v":0},null,{"$f":"Import!I35726","v":0},null,{"$f":"Import!I35738","v":0},null,{"$f":"Import!I35750","v":0}]
[null,null,3,{"$f":"Import!I35703","v":0},null,{"$f":"Import!I35715","v":0},null,{"$f":"Import!I35727","v":0},null,{"$f":"Import!I35739","v":0},null,{"$f":"Import!I35751","v":0}]
[null,null,4,{"$f":"Import!I35704","v":0},null,{"$f":"Import!I35716","v":0},null,{"$f":"Import!I35728","v":0},null,{"$f":"Import!I35740","v":0},null,{"$f":"Import!I35752","v":0}]
[null,null,5,{"$f":"Import!I35705","v":0},null,{"$f":"Import!I35717","v":0},null,{"$f":"Import!I35729","v":0},null,{"$f":"Import!I35741","v":0},null,{"$f":"Import!I35753","v":0}]
[null,null,6,{"$f":"Import!I35706","v":0},null,{"$f":"Import!I35718","v":0},null,{"$f":"Import!I35730","v":0},null,{"$f":"Import!I35742","v":0},null,{"$f":"Import!I35754","v":0}]
[" ",null,7,{"$f":"Import!I35707","v":0},null,{"$f":"Import!I35719","v":0},null,{"$f":"Import!I35731","v":0},null,{"$f":"Import!I35743","v":0},null,{"$f":"Import!I35755","v":0}]
[null,null,8,{"$f":"Import!I35708","v":0},null,{"$f":"Import!I35720","v":0},null,{"$f":"Import!I35732","v":0},null,{"$f":"Import!I35744","v":0},null,{"$f":"Import!I35756","v":0}]
[null,null,9,{"$f":"Import!I35709","v":0},null,{"$f":"Import!I35721","v":0},null,{"$f":"Import!I35733","v":0},null,{"$f":"Import!I35745","v":0},null,{"$f":"Import!I35757","v":0}]
[null,null,">10",{"$f":"Import!I35710","v":0},null,{"$f":"Import!I35722","v":0},null,{"$f":"Import!I35734","v":0},null,{"$f":"Import!I35746","v":0},null,{"$f":"Import!I35758","v":0}]
[null,null,null,{"$f":"SUM(D74:D84)","v":0},null,{"$f":"SUM(F74:F84)","v":0},null,{"$f":"SUM(H74:H84)","v":0},null,{"$f":"SUM(J74:J84)","v":0},null,{"$f":"SUM(L74:L84)","v":0}]
[]
[]
[null,"Notes"]
[null,"1.  Factors should be applied to Net Amount at Risk (NAR) defined as:"]
[null,null,"GMAB","Total claim payable if all contracts mature immediately"]
[null,null,"GMDB","Total claim amount payable upon immediate death of all policyholders"]
[null,null,"GMIB","Total claim payable upon full and immediate annuitisation of all policies using an 80% factor applied to the GV (the 80% represents the ratio between current market annuitisation factors and the guaranteed annuitisation factors)"]
[null,null,"GMWB","Total claim payable if 100% of the guaranteed withdrawal benefit base in excess of the current account value is withdrawn immediately"]
[null,null,"GEEB","Total guaranteed enhanced payments upon immediate death of all policyholders"]
[]
[null,"2. Where ratchets, resets and roll-ups exist, please use the roll-up category."]
[]
[null,"3.  NAR is net of reinsurance."]
[]
[null,"4.  The proportion used for the account value under reinsurance is the proportion used for NAR."]
[]
[null,"5.  Volatility is defined as the annual volatility of the fund.  In the case where there is no, or limited, history of the fund, use the volatility of the benchmark."]
[]
[null,"6 Bermuda EBS best estimate provisions are to be calculated in accordance with Economic Balance Sheet valuation principals under Schedule XIV\n"]

{"sheet":"Schedule IX(a)","index":68,"n_rows":129,"n_cols":7,"rows_kept":129,"cut":false,"hidden":false,"merged":[[11,1,11,3],[76,1,76,6],[0,1,0,5],[80,1,80,6],[2,1,2,2],[9,1,9,3],[95,1,95,3],[16,1,16,3],[29,1,29,6],[31,1,31,6],[35,1,35,6],[72,1,72,6],[84,1,84,4]]}
[null,"SCHEDULE OF GROUP'S SOLVENCY SELF ASSESSMENT (GSSA) CAPITAL SUMMARY \n(TABLE 14)",null,null,null,null,{"$f":"HYPERLINK(\"#'Index'!A1\",\"Return to Index\")","v":"Return to Index"}]
[null,{"$f":"'Group Information'!C9","v":"Enter Parent Company Name"}]
[null,{"$f":"'Group Information'!C3","v":"2023-12-31"}]
[null,"expressed in ",null,"['000s] (currency used (vide Reg. 10(2))",null,null,"SCHEDULE IX(a)"]
[]
[null,"Note: Documents supporting the GSSA filing should be retained for such period as specified in the [Rules]"]
[]
[null,null,null,null,"GSSA capital",null,"Regulatory capital "]
[]
[null,"Risk Categories:"]
[]
[null,"Insurance Underwriting Risk",null,null,{"$f":"Import!I35761","v":0},null,{"$f":"SUM('GSP (Revised)'!L876:L885)","v":0}]
[null,"Market Risk",null,null,{"$f":"Import!I35762","v":0},null,{"$f":"'GSP (Revised)'!K870+'GSP (Revised)'!K871+'GSP (Revised)'!K873","v":0}]
[null,"Credit Risk",null,null,{"$f":"Import!I35763","v":0},null,{"$f":"'GSP (Revised)'!L875","v":0}]
[null,"Liquidity Risk",null,null,{"$f":"Import!I35764","v":0},null,{"$f":"'GSP (Revised)'!K872","v":0}]
[null,"Group, Concentration, Reputational and Strategic Risk",null,null,{"$f":"Import!I35765","v":0},null,{"$f":"'GSP (Revised)'!K874","v":0}]
[null,"Other (specify)",null,null,{"$f":"Import!I35766","v":0},null,0]
[]
[null,"Total capital pre-diversification between risk categories",null,null,{"$f":"SUM(E12:E17)","v":0},null,{"$f":"SUM(G12:G17)","v":0}]
[]
[null,"Diversification credit between risk categories",null,null,{"$f":"Import!I35768","v":0},null,{"$f":"G19-G23","v":0}]
[]
[null,"Total capital after diversification before operational risk",null,null,{"$f":"E19-E21","v":0},null,{"$f":"Summary!M61-Summary!M39","v":0}]
[]
[null,"Operational Risk",null,null,{"$f":"Import!I35770","v":0},null,{"$f":"'GSP (Revised)'!L893","v":0}]
[]
[null,"Total capital after diversification and operational risk",null,null,{"$f":"E23+E25","v":0},null,{"$f":"G23+G25","v":0}]
[]
[null,"Where:"]
["a)","GSSA capital is the amount of capital the insurance group has determined that is required to achieve its strategic goals upon undertaking an assessment of all material risks (reasonably foreseeable) arising from its operations or operating environment; and "]
[]
["b)","Regulatory capital is determined by the Group BSCR or an approved group internal capital model at  99.0% Tail Value-at-Risk."]
[]
[null,"ADDITIONAL INFORMATION"]
[]
[null,"The designated insurer of the insurance group should review the following statements and select from the drop-down list as applicable and/or provide a brief description or an attachment.  Where an attachment is provided, include references (e.g. page number, paragraph number) of where the information is located within the attachment."]
[]
[1,"What is the primary reason(s) (select multiple responses where applicable) for aiming at the disclosed GSSA capital amount? (select all that apply by choosing Yes/No )"]
[]
[null,{"$f":"Import!E35772","v":"Select Yes/No"}," Target agency rating (e.g. \"A-\", \"AA\", etc) "]
[null,{"$f":"Import!E35773","v":"Select Yes/No"}," Market share"]
[null,{"$f":"Import!E35774","v":"Select Yes/No"}," Business expansion "]
[null,{"$f":"Import!E35775","v":"Select Yes/No"}," Nature of product(s) (e.g. risk characteristics) "]
[null,{"$f":"Import!E35776","v":"Select Yes/No"}," Manage downgrade risk"]
[null,{"$f":"Import!E35777","v":"Select Yes/No"}," Regulatory capital requirements"]
[null,{"$f":"Import!E35778","v":"Select Yes/No"}," Others ",{"$f":"Import!E35779","v":0}]
[]
[2,"What methodology is used to aggregate the risk categories in deriving the GSSA capital? (select all that apply by choosing Yes/No )"]
[]
[null,{"$f":"Import!E35780","v":"Select Yes/No"}," Correlation matrix"]
[null,{"$f":"Import!E35781","v":"Select Yes/No"}," Linear correlations"]
[null,{"$f":"Import!E35782","v":"Select Yes/No"}," T copulas"]
[null,{"$f":"Import!E35783","v":"Select Yes/No"}," Gumbel copulas"]
[null,{"$f":"Import!E35784","v":"Select Yes/No"}," Clayton copulas"]
[null,{"$f":"Import!E35785","v":"Select Yes/No"}," Causal drivers approach e.g. inflation, cycles"]
[null,{"$f":"Import!E35786","v":"Select Yes/No"}," Others",{"$f":"Import!E35787","v":0}]
[]
[3,"What contingency plans are in place for raising additional capital under stress situations?  (select all that apply by choosing Yes/No)"]
[]
[null,{"$f":"Import!E35788","v":"Select Yes/No"}," Parental guarantees"]
[null,{"$f":"Import!E35789","v":"Select Yes/No"}," Revolving letters of credit"]
[null,{"$f":"Import!E35790","v":"Select Yes/No"}," Issue subordinated debt"]
[null,{"$f":"Import!E35791","v":"Select Yes/No"}," Issue preference shares"]
[null,{"$f":"Import!E35792","v":"Select Yes/No"}," Float additional shares"]
[null,{"$f":"Import!E35793","v":"Select Yes/No"}," Capital injections from parent"]
[null,{"$f":"Import!E35794","v":"Select Yes/No"}," Contingent surplus notes"]
[null,{"$f":"Import!E35795","v":"Select Yes/No"}," Catastrophe derivatives (e.g. bonds, swaps and options)"]
[null,{"$f":"Import!E35796","v":"Select Yes/No"}," Others ",{"$f":"Import!E35797","v":0}]
[]
[4,"Does the insurance group have arrangements/ contractual commitments to provide support, including forward purchase arrangements or guarantees, to affiliates/other ",null,null,null,null,{"$f":"Import!E35798","v":"Select Yes/No"}]
[null,"companies in stressed situations? (Yes or No)"]
[null,"If yes, briefly describe the arrangement(s) and the aggregate exposure."]
[null,{"$f":"Import!E35799","v":0}]
[]
[5,"Has the parent down streamed debt to establish equity positions (participations), or engaged in double or multiple gearing? (Yes or No)",null,null,null,null,{"$f":"Import!E35800","v":"Select Yes/No"}]
[null,"If yes, provide details and amount of capital."]
[null,{"$f":"Import!E35801","v":0}]
[]
[6,"Has debt been down streamed to establish equity positions in the parent, or is its parent using capital that is double or multiple geared? (Yes or No)",null,null,null,null,{"$f":"Import!E35802","v":"Select Yes/No"}]
[null,"If yes, provide details and amount of capital."]
[null,{"$f":"Import!E35803","v":0}]
[]
[7,"Are there any assets of a subsidiary of the group that are restricted for use that cannot be transferred to another subsidiary or the parent that were not included in ",null,null,null,null,{"$f":"Import!E35804","v":"Select Yes/No"}]
[null,"the encumbered assets (for policyholder obligations and not for policyholder obligations) reported in the Schedule of Eligible Capital? (Yes or No)"]
[null,{"$f":"HYPERLINK(\"#'Attachments'!G125\",\"Provide details in the GSSA Attachments section if there are any restrictions of movement of assets/payment of dividends\")","v":"Provide details in the GSSA Attachments section if there are any restrictions of movement of assets/payment of dividends"}]
[null,null,null,null,null,"Total restricted assets",{"$f":"Import!E35805","v":0}]
[null,null,null,null,null,"Less: Regulatory capital requirements for members for which the assets pertain",{"$f":"Import!E35806","v":0}]
[null,null,null,null,null,"Restricted assets in excess of capital requirements to the extent that these amounts are not "]
[null,null,null,null,null,"included in the encumbered assets reported in the Schedule of Eligible Capital",{"$f":"G86-G87","v":0}]
[]
[]
[]
[]
[]
[]
[]
[]
[]
[]
[null,null,null,null,"Contingency plans for additional capital"]
[]
[null,null,null,null,"Parental guarantees"]
[null,null,null,null,"revolving letters of credit"]
[null,null,null,null,"Contingent capital arrangements"]
[null,null,null,null,"Issue subordinated debt"]
[null,null,null,null,"Issue preference shares"]
[null,null,null,null,"Float additional shares"]
[null,null,null,null,"Capital injections from parent"]
[]
[]
[null,null,null,null,"Correlation matrix "]
[null,null,null,null,"Linear correlations"]
[null,null,null,null,"T copulas"]
[null,null,null,null,"Gumbel copulas"]
[null,null,null,null,"Clayton copulas"]
[null,null,null,null,"Causal drivers approach e.g. inflation, cycles"]
[null,null,null,null,"Other"]
[]
[]
[null,null,null,null,"Not applicable"]
[]
[]
[]
[]
[]
[]
[null,null,null,null,"Select Yes/No"]
[null,null,null,null,"Yes"]
[null,null,null,null,"No"]

{"sheet":"Schedule IX(b)","index":69,"n_rows":70,"n_cols":6,"rows_kept":70,"cut":false,"hidden":false,"merged":[[38,1,38,5],[34,1,34,4],[16,1,16,4],[21,1,21,4],[22,1,22,4],[23,1,23,4],[32,1,32,4],[24,1,24,4],[26,1,26,4],[25,1,25,4],[28,1,28,4],[30,1,30,4],[15,1,15,4],[20,1,20,4],[0,1,0,3],[2,1,2,2],[17,1,17,4],[18,1,18,4],[19,1,19,4],[6,1,6,4],[4,1,4,5],[1,1,1,2],[10,1,10,4],[11,1,11,4],[12,1,12,4],[13,1,13,4],[14,1,14,4]]}
[null,"SCHEDULE OF GROUP’S SOLVENCY SELF ASSESSMENT (GSSA) \nGENERAL QUESTIONS (TABLE 14A)",null,null,null,{"$f":"HYPERLINK(\"#'Index'!A1\",\"Return to Index\")","v":"Return to Index"}]
[null,{"$f":"'Group Information'!C9","v":"Enter Parent Company Name"}]
[null,{"$f":"'Group Information'!C3","v":"2023-12-31"},null,null,null,"SCHEDULE IX(b)"]
[]
[null,"The designated insurer of the insurance group should review the following statements and select from the drop-down list as applicable and/or provide a brief description or an attachment. Where an attachment is provided, include references (e.g. page number, paragraph number) of where the information is located within the attachment."]
[]
[1,"Is the GSSA and its underlying information integrated (i.e. considered when making key strategic decisions) into the insurance group's strategic and risk management decision-making processes? (Yes or No)",null,null,null,{"$f":"Import!E35809","v":"Select Yes/No"}]
[]
[null,"If yes, how is the GSSA and its underlying information used? (select all that apply by choosing Yes/No )"]
[]
[null,"Strategic planning",null,null,null,{"$f":"Import!E35810","v":"Select Yes/No"}]
[null,"Annual business planning",null,null,null,{"$f":"Import!E35811","v":"Select Yes/No"}]
[null,"Setting risk limits",null,null,null,{"$f":"Import!E35812","v":"Select Yes/No"}]
[null,"Defining risk appetite",null,null,null,{"$f":"Import!E35813","v":"Select Yes/No"}]
[null,"Evaluation of capital adequacy",null,null,null,{"$f":"Import!E35814","v":"Select Yes/No"}]
[null,"Allocation of capital to business segments and lines of business",null,null,null,{"$f":"Import!E35815","v":"Select Yes/No"}]
[null,"Capital management",null,null,null,{"$f":"Import!E35816","v":"Select Yes/No"}]
[null,"Determination of rates of return for pricing and underwriting guidelines",null,null,null,{"$f":"Import!E35817","v":"Select Yes/No"}]
[null,"Reinsurance purchase",null,null,null,{"$f":"Import!E35818","v":"Select Yes/No"}]
[null,"Determination of investment policies and strategies",null,null,null,{"$f":"Import!E35819","v":"Select Yes/No"}]
[null,"Meeting regulatory requirements",null,null,null,{"$f":"Import!E35820","v":"Select Yes/No"}]
[null,"Improving credit rating",null,null,null,{"$f":"Import!E35821","v":"Select Yes/No"}]
[null,"Improving investor relations",null,null,null,{"$f":"Import!E35822","v":"Select Yes/No"}]
[null,"Assessing risk-adjusted product profitability",null,null,null,{"$f":"Import!E35823","v":"Select Yes/No"}]
[null,"Performance measurement and assessment",null,null,null,{"$f":"Import!E35824","v":"Select Yes/No"}]
[null,"Improving merger and acquisition decisions",null,null,null,{"$f":"Import!E35825","v":"Select Yes/No"}]
[null,"Others",null,null,null,{"$f":"Import!E35826","v":"Select Yes/No"}]
[]
[2,"Has the insurance group applied reverse stress testing to identify both the scenarios that could cause business failure and the required actions to manage such situations? (Yes or No)",null,null,null,{"$f":"Import!E35827","v":"Select Yes/No"}]
[]
[3,"Is the GSSA process clearly documented and regularly amended for changes in strategic direction, risk management framework, and market developments? (Yes or No)",null,null,null,{"$f":"Import!E35828","v":"Select Yes/No"}]
[]
[4,"How often is the information underlying the GSSA discussed and reviewed by the board of directors, chief and senior executives of the insurance group?",null,null,null,{"$f":"Import!E35829","v":"Select"}]
[]
[5,"Has the parent's board of directors, chief and senior executives of the insurance group ensured that an appropriate oversight process is in place, including an appropriate level of independent verification, whereby material deficiencies are reported on a timely basis and suitable actions taken?\n(Yes or No)",null,null,null,{"$f":"Import!E35830","v":"Select Yes/No"}]
[]
[null,"Optionally, the insurance group may provide brief comments."]
[]
[null,{"$f":"Import!E35831","v":0}]
[]
[]
[]
[]
[]
[]
[]
[]
[]
[]
[]
[null,null,null,"Select Yes/No"]
[null,null,null,"Yes"]
[null,null,null,"No"]
[null,null,null,"Select"]
[null,null,null,"Annually"]
[null,null,null,"Semi-annually"]
[null,null,null,"Quarterly"]
[null,null,null,"Monthly"]
[null,null,null,"Bi-monthly"]
[null,null,null,"Ad-hoc"]
[null,null,null,"Other"]
[]
[null,null,null,"Strong"]
[null,null,null,"Moderate"]
[null,null,null,"Weak"]
[]
[]
[null,null,null,"Fully documented"]
[null,null,null,"Partially documented"]
[null,null,null,"Other"]

{"sheet":"Schedule IX(c)","index":70,"n_rows":155,"n_cols":27,"rows_kept":155,"cut":false,"hidden":false,"merged":[[66,1,66,3],[67,1,67,3],[0,1,0,4],[29,1,29,5],[15,1,15,5],[61,1,61,5],[13,1,13,5],[59,2,59,8],[2,1,2,3],[51,2,51,5],[64,13,64,15],[65,13,65,15],[4,1,5,5],[7,2,8,5],[57,2,57,5],[33,1,33,5],[11,1,11,5],[19,1,19,5],[17,1,17,5],[27,1,27,5],[63,1,63,4],[65,1,65,3],[11,6,13,6],[11,7,13,7],[68,1,68,3],[69,1,69,3],[70,1,70,3],[71,1,71,3],[72,1,72,3],[81,4,81,5],[80,1,80,3],[81,1,81,3],[73,1,73,3],[74,1,74,3],[78,1,78,3],[79,1,79,3],[80,4,80,5],[76,1,76,3],[77,1,77,3],[75,1,75,3]]}
[null,"SCHEDULE OF GROUP’S SOLVENCY SELF ASSESSMENT (GSSA) ASSESSMENT OF MATERIAL RISKS OF THE INSURANCE GROUP (TABLE 14B)",null,null,null,null,null,{"$f":"HYPERLINK(\"#'Index'!A1\",\"Return to Index\")","v":"Return to Index"},null,null,null,null,null,null,{"$f":"IF($B$3=\"\",\"\",TEXT(DATE(YEAR($B$3+1)-1,MONTH($B$3+1),DAY($B$3+1)),\"mm/dd/yyyy\"))","v":"01/01/2023"}]
[null,{"$f":"'Group Information'!C9","v":"Enter Parent Company Name"}]
[null,{"$f":"'Group Information'!C3","v":"2023-12-31"},null,null,null,"SCHEDULE IX(c)"]
[]
[null,"The parent board must review policies, processes, and procedures to assess its material risks and self-determine the capital requirement it would need to support the insurance group, at least annually. Minimally, the assessment should:"]
[]
[null,"•","Be an integral part of the insurance group's risk management framework"]
[null,"•","Be clearly documented, reviewed, and evaluated regularly by the board and the chief and senior executives to ensure continual advancement in light of changes in the strategic direction, risk management framework, and market developments; and"]
[]
[null,"•","Ensure an appropriate oversight process whereby material deficiencies are reported on a timely basis and suitable actions taken."]
[]
[null,"The insurance group shall undertake and file with the Authority the group's most recent report (\"group-specific report\") comprising a solvency self-assessment of its material risks and the determination of both the quality and quantity of GSSA capital required to cover these risks, while remaining solvent and achieving the insurance group's business goals.",null,null,null,null,"Doc. No","Page. No"]
[]
[null,"Minimally, the self assessment should include:"]
[]
[1,"Date the assessment was completed."]
[]
[2,"A description of the insurance group's business and strategy."]
[]
[3,"The identification and assessment of all reasonably foreseeable material risks (i.e. insurance underwriting risk; investment, liquidity and concentration risk; market risk; credit risk; operational risk; group risk; strategic risk; reputational risk; and legal risk)."]
[]
[4,"The identification of the relationships of the material risks with one another, and the quantity and type of capital required to cover the risks."]
[]
[5,"A description of the insurance group's risk appetite, including limits imposed and how they are enforced."]
[]
[6,"Assumptions and methodology used to assess and aggregate risks."]
[]
[7,"A forward looking analysis of the risks faced by the insurance group over its planning horizon and an analysis demonstrating the ability to manage its business and capital needs in adverse circumstances and still meet regulatory capital requirements."]
[]
[8,"An evaluation of whether the insurance group has sufficient capital and liquidity available, including an assessment of whether capital is fungible and assets are transferable, to achieve its strategic goals over its planning horizon and any potential adverse consequences if insufficient."]
[]
[9,"A description of business continuity and disaster plans."]
[]
[10,"A description of how the results of the self-assessment are integrated into the management and strategic decision making process."]
[]
[11,"Approval and signed declaration of the GSSA by a director, chief executive and chief risk officer of the parent."]
[]
[11,"For each material risk identified under 2 above, the submission should minimally include:"]
[]
[null,"a)","Identification of the risk owner, qualifications and responsibilities;"]
[]
[null,"b) ","The key performance indicators used to monitor compliance with the risk appetite;"]
[]
[null,"c)","The risk drivers (e.g. for catastrophe risk the drivers could be U.S. earthquake, European windstorm, terrorism, etc.); "]
[]
[null,"d) ","The primary model(s)/tool(s) used to calculate the GSSA capital for the risk, where applicable;"]
[]
[null,"e)","The primary sources of data used as inputs to the model(s)/tool(s);"]
[]
[null,"f)","The key assumptions used in the assessment of the risk;"]
[]
[null,"g)","A description and quantitative impact of stress and scenario testing (if any) on capital including key assumptions and how the testing results were used to inform the self-assessment and determination of GSSA capital"]
[]
[null,"h)","A description of measures taken to transfer or otherwise mitigate the risk;"]
[]
[null,"i)","Quantification of the risk if the insurance group is holding capital against it both pre- and post- diversification; and"]
[]
[null,"j)","An explanation of the primary reasons for any material deviations between the GSSA capital as it pertains to the risk and the associated capital (if holding capital against the risk) and the regulatory capital charge for the risk, if the deviation is greater than 15%."]
[]
[null,null,"Where attachments are submitted, include references (e.g. page number, paragraph number) of where the information is located within that attachment."]
[]
[null,"The designated insurer shall ensure that the insurance group of which it is a member has reviewed and provided answers to the following questions on the model(s)/tool(s) used to calculate the GSSA capital. It should provide a brief description or any additional documents in support of its response. Where additional documentation is provided, it should identify where the information is located within the document or attachment, including references (e.g. page number, paragraph number)."]
[]
[12,"Model(s)/tool(s) used to calculate the GSSA capital "]
[]
["a)","Governance",null,null,"Select","Comments"]
["i","Does the parent's Board of Directors, chief and senior executives of the insurance group approve the design, maintenance and use of the model(s)/tool(s)?",null,null,{"$f":"Import!E35833","v":"Select Yes/No"},{"$f":"Import!E35844","v":0},null,null,null,null,null,null,null,null,null,null,null,null,null,null,null,null,null,null,null,null,"SSA_BoardOfDirectorsAndSeniorManagementApproveDesignMaintenanceAndUseOfModelstoolsComments"]
["ii","How often does the parent's Board or relevant Board committees review outputs, changes and issues arising from the model(s)/tool(s) (review should be documented  e.g.  minutes, presentations, etc.)?",null,null,{"$f":"Import!E35834","v":"Select"},{"$f":"Import!E35845","v":0},null,null,null,null,null,null,null,null,null,null,null,null,null,null,null,null,null,null,null,null,"SSA_BoardOrRelevantBoardCommitteesReviewFrequencyOfOutputsChangesAndIssuesArisingFromModelstoolsComments"]
["iii","Does the Board, chief and senior executives of the insurance group have a general understanding of the key assumptions / elements and the implications of the outputs (including limitations) of the model(s)/tool(s)?",null,null,{"$f":"Import!E35835","v":"Select Yes/No"},{"$f":"Import!E35846","v":0},null,null,null,null,null,null,null,null,null,null,null,null,null,null,null,null,null,null,null,null,"SSA_BoardAndSeniorManagementHaveThoroughUnderstandingOfKeyAssumptionselementsAndImplicationsOfOutputsincludingLimitationsOfModelstoolsComments"]
["b)","Validation",null,null,"Select","Comments"]
["i","Is the model(s)/tool(s) subject to a regular cycle of validation, which includes the monitoring of performance, reviewing appropriateness of model specifications and testing of forecast results against actual results?",null,null,{"$f":"Import!E35836","v":"Select Yes/No"},{"$f":"Import!E35847","v":0},null,null,null,null,null,null,null,null,null,null,null,null,null,null,null,null,null,null,null,null,"SSA_ModelstoolsSubjectToRegularCycleOfValidationWhichIncludesMonitoringOfPerformanceReviewAppropriatenessOfModelSpecificationsAndTestingOfForecastResultsAgainstActualResultsComments"]
["ii","How often is the validation of the model(s)/tool(s) performed?",null,null,{"$f":"Import!E35837","v":"Select"},{"$f":"Import!E35848","v":0},null,null,null,null,null,null,null,null,null,null,null,null,null,null,null,null,null,null,null,null,"SSA_ValidationOfModelstoolsPerformedComments"]
["iii","Does the validation process demonstrate that the model(s)/tool(s) remain suitable during changing conditions (e.g. changes in inflation, interest rate, etc.)? If no, provide comments.",null,null,{"$f":"Import!E35838","v":"Select Yes/No"},{"$f":"Import!E35849","v":0},null,null,null,null,null,null,null,null,null,null,null,null,null,null,null,null,null,null,null,null,"SSA_ValidationProcessDemonstrateThatModelstoolsRemainsSuitableDuringChangingConditionsComments"]
["c)","Documentation",null,null,"Select","Comments",null,null,null,null,null,null,null,null,null,null,null,null,null,null,null,null,null,null,null,null,""]
["i","Does the insurance group have formal documentations of the structure, design, operational details, input assumptions, parameters, governance process and controls of the model(s)/tool(s)?",null,null,{"$f":"Import!E35839","v":"Select Yes/No"},{"$f":"Import!E35850","v":0},null,null,null,null,null,null,null,null,null,null,null,null,null,null,null,null,null,null,null,null,"SSA_CompanyHasFormalDocumentationOfStructureDesignOperationalDetailsInputAssumptionsParametersGovernanceProcessAndControlsOfModelstoolsComments"]
["ii","If yes, to what extent is the model(s)/tool(s) documented such that it can be used by new personnel with limited user experience (include comments for partial or no documentations)?",null,null,{"$f":"Import!E35840","v":"Select"},{"$f":"Import!E35851","v":0},null,null,null,null,null,null,null,null,null,null,null,null,null,null,null,null,null,null,null,null,"SSA_ToWhatExtentIsModelstoolsDocumentedSuchThatItCanBeUsedByNewPersonnelWithLimitedUserExperienceComments"]
["iii","How often does the parent's Board, chief and senior executives review and approve the model/input documentation?",null,null,{"$f":"Import!E35841","v":"Select"},{"$f":"Import!E35852","v":0},null,null,null,null,null,null,null,null,null,null,null,null,null,null,null,null,null,null,null,null,"SSA_FrequencyOfBoardOfDirectorsOrSeniorManagementReviewAndApprovalOfModelinputDocumentationComments"]
["d)","Internal controls",null,null,"Select","Comments",null,null,null,null,null,null,null,null,null,null,null,null,null,null,null,null,null,null,null,null,""]
["i","How does the insurance group rate the effectiveness of the controls in place to monitor and evaluate the operation and maintenance of the model(s)/tool(s)?",null,null,{"$f":"Import!E35842","v":"Select"},{"$f":"Import!E35853","v":0},null,null,null,null,null,null,null,null,null,null,null,null,null,null,null,null,null,null,null,null,"SSA_HowCompanyRatesEffectivenessOfControlsInPlaceToMonitorAndEvaluateOperationAndMaintenanceOfModelstoolsComments"]
["ii","Are there strict protocols in place restricting access to the model(s)/tool(s) and the ability to make adjustments thereto?",null,null,{"$f":"Import!E35843","v":"Select Yes/No"},{"$f":"Import!E35854","v":0},null,null,null,null,null,null,null,null,null,null,null,null,null,null,null,null,null,null,null,null,"SSA_reAreStrictProtocolsInPlaceRestrictingAccessToModelstoolsAndAbilityToMakeAdjustmentsretoComments"]
["e)","Others",null,null,"List"]
["i","What is the risk measure (VaR,TVaR, etc.), confidence interval (95%, 99.95%, etc.)  and time horizon (1 year, 3 years, etc.) used to derive the GSSA capital?",null,null,{"$f":"Import!E35855","v":0}]
[]
[]
[]
[]
[]
[]
[]
[]
[]
[null,null,null,null,"Select Yes/No"]
[null,null,null,null,"Yes"]
[null,null,null,null,"No"]
[null,null,null,null,"Select"]
[null,null,null,null,"Annually"]
[null,null,null,null,"Semi-annually"]
[null,null,null,null,"Quarterly"]
[null,null,null,null,"Monthly"]
[null,null,null,null,"Bi-monthly"]
[null,null,null,null,"Ad-hoc"]
[null,null,null,null,"Other"]
[null,null,null,null,"Select"]
[null,null,null,null,"Strong"]
[null,null,null,null,"Moderate"]
[null,null,null,null,"Weak",null,null,null,null,null,"Others"]
[]
[null,null,null,null,"Select"]
[null,null,null,null,"Fully documented"]
[null,null,null,null,"Partially documented"]
[null,null,null,null,"Other"]
[]
[]
[]
[]
[]
[]
[]
[]
[]
[]
[]
[]
[]
[]
[]
[]
[]
[]
[]
[]
[]
[]
[]
[]
[]
[]
[]
[]
[]
[]
[]
[]
[]
[]
[]
[]
[]
[]
[]
[]
[]
[null,null,null,null,null,"No"]
[null,null,null,null,null,"Yes"]
[null,null,null,null,null,"N/A"]

{"sheet":"Schedule X(a)","index":71,"n_rows":190,"n_cols":10,"rows_kept":190,"cut":false,"hidden":false,"merged":[[63,4,63,6],[63,8,63,10],[64,8,64,10],[67,8,67,10],[72,4,72,5],[72,8,72,10],[68,8,68,10],[69,8,69,10],[80,6,81,7],[70,8,70,10],[71,4,71,5],[71,8,71,10],[73,8,73,10],[74,8,74,10],[62,4,62,6],[62,8,62,10],[49,4,49,6],[49,8,49,10],[60,4,60,6],[61,4,61,6],[61,8,61,10],[60,8,60,10],[59,4,59,6],[59,8,59,10],[51,8,51,10],[51,4,51,6],[55,8,55,10],[37,4,37,6],[37,8,37,10],[35,4,35,6],[35,8,35,10],[36,4,36,6],[36,8,36,10],[48,4,48,6],[56,4,56,6],[56,8,56,10],[48,8,48,10],[41,4,41,6],[41,8,41,10],[42,4,42,6],[43,4,43,6],[43,8,43,10],[44,4,44,6],[44,8,44,10],[50,4,50,6],[50,8,50,10],[52,8,52,10],[52,4,52,6],[55,4,55,6],[45,4,45,6],[45,8,45,10],[38,4,38,6],[38,8,38,10],[39,4,39,6],[39,8,39,10],[40,4,40,6],[40,8,40,10],[42,8,42,10],[33,8,33,10],[34,4,34,6],[2,1,2,2],[5,4,5,5],[5,6,5,7],[30,8,30,10],[31,8,31,10],[32,8,32,10],[34,8,34,10]]}
[null,"CATASTROPHE RISK RETURN: EP CURVE TOTAL (TABLE 15)",null,null,null,null,null,null,null,{"$f":"HYPERLINK(\"#'Index'!A1\",\"Return to Index\")","v":"Return to Index"}]
[null,{"$f":"'Group Information'!C9","v":"Enter Parent Company Name"}]
[null,{"$f":"'Group Information'!C3+1","v":"2024-01-01"},null,null,null,null,null,null,null,"Schedule X(a)"]
[]
[null,"1. Exceedance probability information:"]
[null,null,null,null," Gross loss",null," Net loss"]
[null,null,null,"Loss Return period (years)","Gross per occurrence loss TVaR","Gross aggregate TVaR","Net per occurrence loss TVaR","Net aggregate TVaR "]
[null,null,null,null," (US$M)"," (US$M)"," (US$M)"," (US$M)"]
[null,null,null,50,{"$f":"Import!E35857","v":0},{"$f":"Import!E35862","v":0},{"$f":"Import!E35867","v":0},{"$f":"Import!E35872","v":0}]
[null,null,null,100,{"$f":"Import!E35858","v":0},{"$f":"Import!E35863","v":0},{"$f":"Import!E35868","v":0},{"$f":"Import!E35873","v":0}]
[null,null,null,250,{"$f":"Import!E35859","v":0},{"$f":"Import!E35864","v":0},{"$f":"Import!E35869","v":0},{"$f":"Import!E35874","v":0}]
[null,null,null,500,{"$f":"Import!E35860","v":0},{"$f":"Import!E35865","v":0},{"$f":"Import!E35870","v":0},{"$f":"Import!E35875","v":0}]
[null,null,null,1000,{"$f":"Import!E35861","v":0},{"$f":"Import!E35866","v":0},{"$f":"Import!E35871","v":0},{"$f":"Import!E35876","v":0}]
[]
[null,null,null,null," Gross Loss (US$M)",null,null,null,null," Net Loss (US$M)"]
[null,null,null,"Annual average aggregate gross loss",{"$f":"Import!E35877","v":0},null,null,null,"Annual average aggregate net loss (net of reinstatements terms)",{"$f":"Import!E35887","v":0}]
[null,null,null,null,null,null,null,null,"Reinstatement terms included in Annual average aggregated net loss",{"$f":"Import!E35888","v":0}]
[null,null,null,"Standard deviation of annual aggregate gross loss",{"$f":"Import!E35878","v":0},null,null,null,"Standard deviation of annual aggregate net loss (net of reinstatements terms)",{"$f":"Import!E35889","v":0}]
[]
[null,null,null,"Total gross statutory property catastrophe premium modelled ",{"$f":"Import!E35879","v":0},null,null,null,"Total net statutory property catastrophe premium modelled",{"$f":"Import!E35890","v":0}]
[null,null,null,"Total gross all other catastrophe premium modelled",{"$f":"Import!E35880","v":0},null,null,null,"Total net all other catastrophe premium modelled",{"$f":"Import!E35891","v":0}]
[]
[null,null,null,"Total gross statutory property catastrophe limits exposed - modelled",{"$f":"Import!E35881","v":0},null,null,null,"Total net statutory property catastrophe limits exposed – modelled",{"$f":"Import!E35892","v":0}]
[null,null,null,"Total gross statutory property catastrophe limits exposed - not modelled",{"$f":"Import!E35882","v":0},null,null,null,"Total net statutory property catastrophe limits exposed– not modelled",{"$f":"Import!E35893","v":0}]
[null,null,null,"Total gross all other lines limits exposed - modelled",{"$f":"Import!E35883","v":0},null,null,null,"Total net all other lines limits exposed – modelled",{"$f":"Import!E35894","v":0}]
[null,null,null,"Total gross all other lines limits exposed  - not modelled",{"$f":"Import!E35884","v":0},null,null,null,"Total net all other lines limits exposed - not modelled",{"$f":"Import!E35895","v":0}]
[null,null,null,"Total gross premium without an occurrence or aggregate limit:",{"$f":"Import!E35885","v":0},null,null,null,"Total net premium without an occurrence or aggregate limit",{"$f":"Import!E35896","v":0}]
[null,null,null,"Total gross premium with non determinable Total Insured Value (“TIV”):",{"$f":"Import!E35886","v":0},null,null,null,"Total net premium with non-determinable TIV:",{"$f":"Import!E35897","v":0}]
[]
[null,"2. Significant sources of catastrophe risk and associated loss included in the EP Curves"]
[null,null,null,"Allocated loss adjustment expense",{"$f":"Import!E35898","v":"Select Yes/No"},null,null,{"$f":"IF(E31=\"No\",\"If no, why not:\",\"\")","v":""}]
[null,null,null,"Property - buildings",{"$f":"Import!E35899","v":"Select Yes/No"},null,null,{"$f":"IF(E32=\"No\",\"If no, why not:\",\"\")","v":""}]
[null,null,null,"Property - contents",{"$f":"Import!E35900","v":"Select Yes/No"},null,null,""]
[null,null,null,"Additional living expenses",{"$f":"Import!E35901","v":"Select Yes/No"},null,null,""]
[null,null,null,"Business interruption",{"$f":"Import!E35902","v":"Select"},null,null,""]
[null,null,null,"Auto physical damage",{"$f":"Import!E35903","v":"Select"},null,null,""]
[null,null,null,"Worker's compensation",{"$f":"Import!E35904","v":"Select"},null,null,""]
[null,null,null,"Personal accident",{"$f":"Import!E35905","v":"Select"},null,null,""]
[null,null,null,"Life insurance",{"$f":"Import!E35906","v":"Select"},null,null,""]
[null,null,null,"Onshore energy",{"$f":"Import!E35907","v":"Select"},null,null,""]
[null,null,null,"Offshore energy",{"$f":"Import!E35908","v":"Select"},null,null,""]
[null,null,null,"Ocean marine",{"$f":"Import!E35909","v":"Select"},null,null,""]
[null,null,null,"Inland marine",{"$f":"Import!E35910","v":"Select"},null,null,""]
[null,null,null,"Flood",{"$f":"Import!E35911","v":"Select"},null,null,""]
[null,null,null,"Crop",{"$f":"Import!E35912","v":"Select"},null,null,""]
[null,null,null,"Other primary insurance",{"$f":"Import!E35913","v":"Select"},null,null,""]
[]
[null,"3. Assumed reinsurance information:"]
[null,null,null,"Proportional - quota share",{"$f":"Import!E35914","v":"Select"},null,null,{"$f":"IF(E49=\"No\",\"If no, why not:\",\"\")","v":""}]
[null,null,null,"Proportional - surplus share",{"$f":"Import!E35915","v":"Select"},null,null,{"$f":"IF(E50=\"No\",\"If no, why not:\",\"\")","v":""}]
[null,null,null,"Non-proportional - catastrophe",{"$f":"Import!E35916","v":"Select"},null,null,{"$f":"IF(E51=\"No\",\"If no, why not:\",\"\")","v":""}]
[null,null,null,"Non-proportional - per risk",{"$f":"Import!E35917","v":"Select"},null,null,{"$f":"IF(E52=\"No\",\"If no, why not:\",\"\")","v":""}]
[null,null,null,"Other reinsurance assumed",{"$f":"Import!E35918","v":"Select"},null,null,{"$f":"IF(E53=\"No\",\"If no, why not:\",\"\")","v":""}]
[]
[null,"4. Pools and assessments information:"]
[null,null,null,"Voluntary pools and/or assessments",{"$f":"Import!E35919","v":"Select"},null,null,{"$f":"IF(E56=\"No\",\"If no, why not:\",\"\")","v":""}]
[null,null,null,"Involuntary pools and/or assessments",{"$f":"Import!E35920","v":"Select"},null,null,{"$f":"IF(E57=\"No\",\"If no, why not:\",\"\")","v":""}]
[]
[null,"5. Supplemental perils and model options:"]
[null,null,null,"Fire following",{"$f":"Import!E35921","v":"Select"},null,null,{"$f":"IF(E60=\"No\",\"If no, why not:\",\"\")","v":""}]
[null,null,null,"Sprinkler leakage",{"$f":"Import!E35922","v":"Select"},null,null,{"$f":"IF(E61=\"No\",\"If no, why not:\",\"\")","v":""}]
[null,null,null,"Storm surge",{"$f":"Import!E35923","v":"Select"},null,null,{"$f":"IF(E62=\"No\",\"If no, why not:\",\"\")","v":""}]
[null,null,null,"Demand surge",{"$f":"Import!E35924","v":"Select"},null,null,{"$f":"IF(E63=\"No\",\"If no, why not:\",\"\")","v":""}]
[null,null,null,"Secondary uncertainty",{"$f":"Import!E35925","v":"Select"},null,null,{"$f":"IF(E64=\"No\",\"If no, why not:\",\"\")","v":""}]
[null,null,null,"Atlantic multi-decadal oscillation selection",{"$f":"Import!E35926","v":"Select"},null,null,{"$f":"IF(E65=\"Long-term frequency\",\"If long-term frequency, why:\",\"\")","v":""}]
[]
[null,"6. Other adjustments information:"]
[null,null,null,"Adjustments for exposure data quality",{"$f":"Import!E35927","v":"Select Yes/No"},null,null,{"$f":"IF(E68=\"No\",\"If no, why not:\",\"\")","v":""}]
[null,null,null,"Adjustments for insurance to value",{"$f":"Import!E35928","v":"Select Yes/No"},null,null,""]
[null,null,null,"Adjustments for exposure growth",{"$f":"Import!E35929","v":"Select Yes/No"},null,null,""]
[null,null,null,"Supplemental losses for non-modelled line of business",{"$f":"Import!E35930","v":"Select Yes/No"},null,null,""]
[null,null,null,"Adjustments for model deficiencies – severity",{"$f":"Import!E35931","v":"Select"},null,null,""]
[null,null,null,"Adjustments for model deficiencies - frequency",{"$f":"Import!E35932","v":"Select"},null,null,""]
[null,null,null,"Additional demand surge loadings",{"$f":"Import!E35933","v":"Select Yes/No"},null,null,""]
[null,null,null,"Other factors for prudence",{"$f":"Import!E35934","v":"Select Yes/No"},null,null,""]
[]
[null,null,null,null,null,"Average loading factor applied to ground up loss for all adjustments applied:",{"$f":"Import!E35935","v":0}]
[null,null,null,null,null,"Is this average loading factor determined analytically or estimated?",{"$f":"Import!E35936","v":"Select"}]
[]
[null,null,null,null,null,"Which vendor catastrophe models (\"cat model\") do you include in this modelling?",{"$f":"Import!E35937","v":"Select Cat Model(s)"}]
[null,null,null,null,null,"Which version of the model or version of the region-peril models are used for each vendor catastrophe model as appropriate?",{"$f":"Import!E35938","v":0}]
[]
[]
[]
[]
[]
[]
[]
[]
[]
[]
[]
[]
[]
[]
[]
[]
[]
[]
[]
[]
[]
[]
[]
[]
[]
[]
[]
[]
[]
[]
[]
[]
[]
[]
[]
[]
[]
[]
[]
[]
[]
[]
[]
[]
[]
[]
[]
[]
[]
[]
[]
[]
[]
[]
[]
[]
[]
[]
[]
[]
[]
[]
[]
[]
[]
[]
[]
[]
[]
[]
[]
[]
[]
[]
[]
[]
[]
[]
[]
[]
[]
[]
[]
[]
[]
[]
[]
[]
[]
[]
[]
[]
[]
[]
[]
[]
[]
[]
[]
[]
[]
[null,null,null,null,"Select Cat Model(s)"]
[null,null,null,null,"AIR only"]
[null,null,null,null,"EQECAT only"]
[null,null,null,null,"RMS only"]
[null,null,null,null,"AIR and RMS"]
[null,null,null,null,"AIR and EQECAT"]
[null,null,null,null,"EQECAT and RMS"]
[null,null,null,null,"AIR, EQECAT and RMS"]

{"sheet":"Schedule X(b)","index":72,"n_rows":192,"n_cols":10,"rows_kept":192,"cut":false,"hidden":false,"merged":[[65,4,65,6],[65,8,65,10],[66,8,66,10],[69,8,69,10],[74,4,74,5],[74,8,74,10],[70,8,70,10],[71,8,71,10],[82,6,83,7],[72,8,72,10],[73,4,73,5],[73,8,73,10],[75,8,75,10],[76,8,76,10],[64,4,64,6],[64,8,64,10],[51,4,51,6],[51,8,51,10],[62,4,62,6],[63,4,63,6],[63,8,63,10],[62,8,62,10],[61,4,61,6],[61,8,61,10],[53,8,53,10],[53,4,53,6],[57,8,57,10],[39,4,39,6],[39,8,39,10],[37,4,37,6],[37,8,37,10],[38,4,38,6],[38,8,38,10],[50,4,50,6],[58,4,58,6],[58,8,58,10],[50,8,50,10],[43,4,43,6],[43,8,43,10],[44,4,44,6],[45,4,45,6],[45,8,45,10],[46,4,46,6],[46,8,46,10],[52,4,52,6],[52,8,52,10],[54,8,54,10],[54,4,54,6],[57,4,57,6],[47,4,47,6],[47,8,47,10],[40,4,40,6],[40,8,40,10],[41,4,41,6],[41,8,41,10],[42,4,42,6],[42,8,42,10],[44,8,44,10],[35,8,35,10],[36,4,36,6],[7,4,7,5],[7,6,7,7],[32,8,32,10],[33,8,33,10],[34,8,34,10],[36,8,36,10]]}
[null,"CATASTROPHE RISK RETURN: EP CURVE INSURANCE (TABLE 15A)",null,null,null,null,null,null,null,{"$f":"HYPERLINK(\"#'Index'!A1\",\"Return to Index\")","v":"Return to Index"}]
[null,{"$f":"'Group Information'!C9","v":"Enter Parent Company Name"}]
[null,{"$f":"'Group Information'!C3+1","v":"2024-01-01"},null,null,null,null,null,null,null,"Schedule X(b) "]
[]
[null,"Note:The EP curve for insurance will be required only when the percentage of net insurance premiums written is greater than 10% of total net premiums written."]
[]
[null,null,"1. Exceedance probability information:"]
[null,null,null,null,"Gross Loss",null,"Net Loss"]
[null,null,null,"Loss Return period (years)","Gross per occurrence loss TVaR","Gross aggregate TVaR","Net per occurrence loss TVaR","Net aggregate TVaR "]
[null,null,null,null," (US$M)"," (US$M)"," (US$M)"," (US$M)"]
[null,null,null,50,{"$f":"Import!E35940","v":0},{"$f":"Import!E35945","v":0},{"$f":"Import!E35950","v":0},{"$f":"Import!E35955","v":0}]
[null,null,null,100,{"$f":"Import!E35941","v":0},{"$f":"Import!E35946","v":0},{"$f":"Import!E35951","v":0},{"$f":"Import!E35956","v":0}]
[null,null,null,250,{"$f":"Import!E35942","v":0},{"$f":"Import!E35947","v":0},{"$f":"Import!E35952","v":0},{"$f":"Import!E35957","v":0}]
[null,null,null,500,{"$f":"Import!E35943","v":0},{"$f":"Import!E35948","v":0},{"$f":"Import!E35953","v":0},{"$f":"Import!E35958","v":0}]
[null,null,null,1000,{"$f":"Import!E35944","v":0},{"$f":"Import!E35949","v":0},{"$f":"Import!E35954","v":0},{"$f":"Import!E35959","v":0}]
[]
[null,null,null,null," Gross Loss (US$M)",null,null,null,null,"Net Loss (US$M)"]
[null,null,null,"Annual average aggregate gross loss ",{"$f":"Import!E35960","v":0},null,null,null,"Annual average aggregate net loss (net of reinstatements terms)",{"$f":"Import!E35970","v":0}]
[null,null,null,null,null,null,null,null,"Reinstatement terms included in Annual average aggregated net loss",{"$f":"Import!E35971","v":0}]
[null,null,null,"Standard deviation of annual aggregate gross loss ",{"$f":"Import!E35961","v":0},null,null,null,"Standard deviation of annual aggregate net loss (net of reinstatements terms)",{"$f":"Import!E35972","v":0}]
[]
[null,null,null,"Total gross statutory property catastrophe premium modelled ",{"$f":"Import!E35962","v":0},null,null,null,"Total net statutory property catastrophe premium modelled",{"$f":"Import!E35973","v":0}]
[null,null,null,"Total gross all other catastrophe premium modelled ",{"$f":"Import!E35963","v":0},null,null,null,"Total net all other catastrophe premium modelled",{"$f":"Import!E35974","v":0}]
[]
[null,null,null,"Total gross statutory property catastrophe limits exposed - modelled",{"$f":"Import!E35964","v":0},null,null,null,"Total net statutory property catastrophe limits exposed – modelled",{"$f":"Import!E35975","v":0}]
[null,null,null,"Total gross statutory property catastrophe limits exposed - not modelled",{"$f":"Import!E35965","v":0},null,null,null,"Total net statutory property catastrophe limits exposed– not modelled",{"$f":"Import!E35976","v":0}]
[null,null,null,"Total gross all other lines limits exposed- modelled",{"$f":"Import!E35966","v":0},null,null,null,"Total net all other lines limits exposed – modelled",{"$f":"Import!E35977","v":0}]
[null,null,null,"Total gross all other lines limits exposed - not modelled",{"$f":"Import!E35967","v":0},null,null,null,"Total net all other lines limits exposed - not modelled",{"$f":"Import!E35978","v":0}]
[null,null,null,"Total gross premium without an occurrence or aggregate limit",{"$f":"Import!E35968","v":0},null,null,null,"Total net premium without an occurrence or aggregate limit",{"$f":"Import!E35979","v":0}]
[null,null,null,"Total gross premium with non determinable Total Insured Value (“TIV”)",{"$f":"Import!E35969","v":0},null,null,null,"Total net premium with non-determinable TIV:",{"$f":"Import!E35980","v":0}]
[]
[null,null,"2. Significant sources of catastrophe risk and associated loss included in the EP Curves:"]
[null,null,null,"Allocated loss adjustment expense",{"$f":"IF(+'Schedule X(a)'!E31=\"\",\"\",+'Schedule X(a)'!E31)","v":"Select Yes/No"},null,null,{"$f":"IF(E33=\"No\",\"If no, why not:\",\"\")","v":""},{"$f":"IF(+'Schedule X(a)'!I31=\"\",\"\",+'Schedule X(a)'!I31)","v":""}]
[null,null,null,"Property - buildings",{"$f":"IF(+'Schedule X(a)'!E32=\"\",\"\",+'Schedule X(a)'!E32)","v":"Select Yes/No"},null,null,{"$f":"IF(E34=\"No\",\"If no, why not:\",\"\")","v":""},{"$f":"IF(+'Schedule X(a)'!I32=\"\",\"\",+'Schedule X(a)'!I32)","v":""}]
[null,null,null,"Property - contents",{"$f":"IF(+'Schedule X(a)'!E33=\"\",\"\",+'Schedule X(a)'!E33)","v":"Select Yes/No"},null,null,"",{"$f":"IF(+'Schedule X(a)'!I33=\"\",\"\",+'Schedule X(a)'!I33)","v":""}]
[null,null,null,"Additional living expenses",{"$f":"IF(+'Schedule X(a)'!E34=\"\",\"\",+'Schedule X(a)'!E34)","v":"Select Yes/No"},null,null,"",{"$f":"IF(+'Schedule X(a)'!I34=\"\",\"\",+'Schedule X(a)'!I34)","v":""}]
[null,null,null,"Business interruption",{"$f":"IF(+'Schedule X(a)'!E35=\"\",\"\",+'Schedule X(a)'!E35)","v":"Select"},null,null,"",{"$f":"IF(+'Schedule X(a)'!I35=\"\",\"\",+'Schedule X(a)'!I35)","v":""}]
[null,null,null,"Auto physical damage",{"$f":"IF(+'Schedule X(a)'!E36=\"\",\"\",+'Schedule X(a)'!E36)","v":"Select"},null,null,"",{"$f":"IF(+'Schedule X(a)'!I36=\"\",\"\",+'Schedule X(a)'!I36)","v":""}]
[null,null,null,"Worker's compensation",{"$f":"IF(+'Schedule X(a)'!E37=\"\",\"\",+'Schedule X(a)'!E37)","v":"Select"},null,null,"",{"$f":"IF(+'Schedule X(a)'!I37=\"\",\"\",+'Schedule X(a)'!I37)","v":""}]
[null,null,null,"Personal accident",{"$f":"IF(+'Schedule X(a)'!E38=\"\",\"\",+'Schedule X(a)'!E38)","v":"Select"},null,null,"",{"$f":"IF(+'Schedule X(a)'!I38=\"\",\"\",+'Schedule X(a)'!I38)","v":""}]
[null,null,null,"Life insurance",{"$f":"IF(+'Schedule X(a)'!E39=\"\",\"\",+'Schedule X(a)'!E39)","v":"Select"},null,null,"",{"$f":"IF(+'Schedule X(a)'!I39=\"\",\"\",+'Schedule X(a)'!I39)","v":""}]
[null,null,null,"Onshore Energy",{"$f":"IF(+'Schedule X(a)'!E40=\"\",\"\",+'Schedule X(a)'!E40)","v":"Select"},null,null,"",{"$f":"IF(+'Schedule X(a)'!I40=\"\",\"\",+'Schedule X(a)'!I40)","v":""}]
[null,null,null,"Offshore Energy",{"$f":"IF(+'Schedule X(a)'!E41=\"\",\"\",+'Schedule X(a)'!E41)","v":"Select"},null,null,"",{"$f":"IF(+'Schedule X(a)'!I41=\"\",\"\",+'Schedule X(a)'!I41)","v":""}]
[null,null,null,"Ocean marine",{"$f":"IF(+'Schedule X(a)'!E42=\"\",\"\",+'Schedule X(a)'!E42)","v":"Select"},null,null,"",{"$f":"IF(+'Schedule X(a)'!I42=\"\",\"\",+'Schedule X(a)'!I42)","v":""}]
[null,null,null,"Inland marine",{"$f":"IF(+'Schedule X(a)'!E43=\"\",\"\",+'Schedule X(a)'!E43)","v":"Select"},null,null,"",{"$f":"IF(+'Schedule X(a)'!I43=\"\",\"\",+'Schedule X(a)'!I43)","v":""}]
[null,null,null,"Flood",{"$f":"IF(+'Schedule X(a)'!E44=\"\",\"\",+'Schedule X(a)'!E44)","v":"Select"},null,null,"",{"$f":"IF(+'Schedule X(a)'!I44=\"\",\"\",+'Schedule X(a)'!I44)","v":""}]
[null,null,null,"Crop",{"$f":"IF(+'Schedule X(a)'!E45=\"\",\"\",+'Schedule X(a)'!E45)","v":"Select"},null,null,"",{"$f":"IF(+'Schedule X(a)'!I45=\"\",\"\",+'Schedule X(a)'!I45)","v":""}]
[null,null,null,"Other primary insurance",{"$f":"IF(+'Schedule X(a)'!E46=\"\",\"\",+'Schedule X(a)'!E46)","v":"Select"},null,null,"",{"$f":"IF(+'Schedule X(a)'!I46=\"\",\"\",+'Schedule X(a)'!I46)","v":""}]
[]
[null,null,"3. Assumed reinsurance information:"]
[null,null,null,"Proportional - quota share",{"$f":"IF(+'Schedule X(a)'!E49=\"\",\"\",+'Schedule X(a)'!E49)","v":"Select"},null,null,{"$f":"IF(E51=\"No\",\"If no, why not:\",\"\")","v":""},{"$f":"IF(+'Schedule X(a)'!I49=\"\",\"\",+'Schedule X(a)'!I49)","v":""}]
[null,null,null,"Proportional - surplus share",{"$f":"IF(+'Schedule X(a)'!E50=\"\",\"\",+'Schedule X(a)'!E50)","v":"Select"},null,null,{"$f":"IF(E52=\"No\",\"If no, why not:\",\"\")","v":""},{"$f":"IF(+'Schedule X(a)'!I50=\"\",\"\",+'Schedule X(a)'!I50)","v":""}]
[null,null,null,"Non-proportional - catastrophe",{"$f":"IF(+'Schedule X(a)'!E51=\"\",\"\",+'Schedule X(a)'!E51)","v":"Select"},null,null,{"$f":"IF(E53=\"No\",\"If no, why not:\",\"\")","v":""},{"$f":"IF(+'Schedule X(a)'!I51=\"\",\"\",+'Schedule X(a)'!I51)","v":""}]
[null,null,null,"Non-proportional - per risk",{"$f":"IF(+'Schedule X(a)'!E52=\"\",\"\",+'Schedule X(a)'!E52)","v":"Select"},null,null,{"$f":"IF(E54=\"No\",\"If no, why not:\",\"\")","v":""},{"$f":"IF(+'Schedule X(a)'!I52=\"\",\"\",+'Schedule X(a)'!I52)","v":""}]
[null,null,null,"Other reinsurance assumed",{"$f":"IF(+'Schedule X(a)'!E53=\"\",\"\",+'Schedule X(a)'!E53)","v":"Select"},null,null,{"$f":"IF(E55=\"No\",\"If no, why not:\",\"\")","v":""},{"$f":"IF(+'Schedule X(a)'!I53=\"\",\"\",+'Schedule X(a)'!I53)","v":""}]
[]
[null,null,"4. Pools and assessments information:"]
[null,null,null,"Voluntary pools and/or assessments",{"$f":"IF(+'Schedule X(a)'!E56=\"\",\"\",+'Schedule X(a)'!E56)","v":"Select"},null,null,{"$f":"IF(E58=\"No\",\"If no, why not:\",\"\")","v":""},{"$f":"IF(+'Schedule X(a)'!I56=\"\",\"\",+'Schedule X(a)'!I56)","v":""}]
[null,null,null,"Involuntary pools and/or assessments",{"$f":"IF(+'Schedule X(a)'!E57=\"\",\"\",+'Schedule X(a)'!E57)","v":"Select"},null,null,{"$f":"IF(E59=\"No\",\"If no, why not:\",\"\")","v":""},{"$f":"IF(+'Schedule X(a)'!I57=\"\",\"\",+'Schedule X(a)'!I57)","v":""}]
[]
[null,null,"5. Supplemental perils and model options:"]
[null,null,null,"Fire following",{"$f":"IF(+'Schedule X(a)'!E60=\"\",\"\",+'Schedule X(a)'!E60)","v":"Select"},null,null,{"$f":"IF(E62=\"No\",\"If no, why not:\",\"\")","v":""},{"$f":"IF(+'Schedule X(a)'!I60=\"\",\"\",+'Schedule X(a)'!I60)","v":""}]
[null,null,null,"Sprinkler leakage",{"$f":"IF(+'Schedule X(a)'!E61=\"\",\"\",+'Schedule X(a)'!E61)","v":"Select"},null,null,{"$f":"IF(E63=\"No\",\"If no, why not:\",\"\")","v":""},{"$f":"IF(+'Schedule X(a)'!I61=\"\",\"\",+'Schedule X(a)'!I61)","v":""}]
[null,null,null,"Storm surge",{"$f":"IF(+'Schedule X(a)'!E62=\"\",\"\",+'Schedule X(a)'!E62)","v":"Select"},null,null,{"$f":"IF(E64=\"No\",\"If no, why not:\",\"\")","v":""},{"$f":"IF(+'Schedule X(a)'!I62=\"\",\"\",+'Schedule X(a)'!I62)","v":""}]
[null,null,null,"Demand surge",{"$f":"IF(+'Schedule X(a)'!E63=\"\",\"\",+'Schedule X(a)'!E63)","v":"Select"},null,null,{"$f":"IF(E65=\"No\",\"If no, why not:\",\"\")","v":""},{"$f":"IF(+'Schedule X(a)'!I63=\"\",\"\",+'Schedule X(a)'!I63)","v":""}]
[null,null,null,"Secondary uncertainty",{"$f":"IF(+'Schedule X(a)'!E64=\"\",\"\",+'Schedule X(a)'!E64)","v":"Select"},null,null,{"$f":"IF(E66=\"No\",\"If no, why not:\",\"\")","v":""},{"$f":"IF(+'Schedule X(a)'!I64=\"\",\"\",+'Schedule X(a)'!I64)","v":""}]
[null,null,null,"Atlantic multi-decadal oscillation selection",{"$f":"IF(+'Schedule X(a)'!E65=\"\",\"\",+'Schedule X(a)'!E65)","v":"Select"},{"$f":"IF(+'Schedule X(a)'!F65=\"\",\"\",+'Schedule X(a)'!F65)","v":""},{"$f":"IF(+'Schedule X(a)'!G65=\"\",\"\",+'Schedule X(a)'!G65)","v":""},{"$f":"IF(E67=\"Long-term frequency\",\"If long-term frequency, why:\",\"\")","v":""},{"$f":"IF(+'Schedule X(a)'!I65=\"\",\"\",+'Schedule X(a)'!I65)","v":""}]
[]
[null,null,"6. Other adjustments information:"]
[null,null,null,"Adjustments for exposure data quality",{"$f":"IF(+'Schedule X(a)'!E68=\"\",\"\",+'Schedule X(a)'!E68)","v":"Select Yes/No"},null,null,{"$f":"IF(E70=\"No\",\"If no, why not:\",\"\")","v":""},{"$f":"IF(+'Schedule X(a)'!I68=\"\",\"\",+'Schedule X(a)'!I68)","v":""}]
[null,null,null,"Adjustments for insurance to value",{"$f":"IF(+'Schedule X(a)'!E69=\"\",\"\",+'Schedule X(a)'!E69)","v":"Select Yes/No"},null,null,"",{"$f":"IF(+'Schedule X(a)'!I69=\"\",\"\",+'Schedule X(a)'!I69)","v":""}]
[null,null,null,"Adjustments for exposure growth",{"$f":"IF(+'Schedule X(a)'!E70=\"\",\"\",+'Schedule X(a)'!E70)","v":"Select Yes/No"},null,null,"",{"$f":"IF(+'Schedule X(a)'!I70=\"\",\"\",+'Schedule X(a)'!I70)","v":""}]
[null,null,null,"Supplemental losses for non-modelled line of business",{"$f":"IF(+'Schedule X(a)'!E71=\"\",\"\",+'Schedule X(a)'!E71)","v":"Select Yes/No"},null,null,"",{"$f":"IF(+'Schedule X(a)'!I71=\"\",\"\",+'Schedule X(a)'!I71)","v":""}]
[null,null,null,"Adjustments for model deficiencies – severity",{"$f":"IF(+'Schedule X(a)'!E72=\"\",\"\",+'Schedule X(a)'!E72)","v":"Select"},null,null,"",{"$f":"IF(+'Schedule X(a)'!I72=\"\",\"\",+'Schedule X(a)'!I72)","v":""}]
[null,null,null,"Adjustments for model deficiencies - frequency",{"$f":"IF(+'Schedule X(a)'!E73=\"\",\"\",+'Schedule X(a)'!E73)","v":"Select"},null,null,"",{"$f":"IF(+'Schedule X(a)'!I73=\"\",\"\",+'Schedule X(a)'!I73)","v":""}]
[null,null,null,"Additional demand surge loadings",{"$f":"IF(+'Schedule X(a)'!E74=\"\",\"\",+'Schedule X(a)'!E74)","v":"Select Yes/No"},{"$f":"IF(+'Schedule X(a)'!F74=\"\",\"\",+'Schedule X(a)'!F74)","v":""},null,"",{"$f":"IF(+'Schedule X(a)'!I74=\"\",\"\",+'Schedule X(a)'!I74)","v":""}]
[null,null,null,"Other factors for prudence",{"$f":"IF(+'Schedule X(a)'!E75=\"\",\"\",+'Schedule X(a)'!E75)","v":"Select Yes/No"},null,null,"",{"$f":"IF(+'Schedule X(a)'!I75=\"\",\"\",+'Schedule X(a)'!I75)","v":""}]
[]
[null,null,null,null,null,"Average loading factor applied to ground up loss for all adjustments applied",{"$f":"IF(+'Schedule X(a)'!G77=\"\",\"\",+'Schedule X(a)'!G77)","v":0}]
[null,null,null,null,null,"Is this average loading factor determined analytically or estimated?"]
[]
[null,null,null,null,null,"Which cat model do you include in this modelling?",{"$f":"IF(+'Schedule X(a)'!G80=\"\",\"\",+'Schedule X(a)'!G80)","v":"Select Cat Model(s)"}]
[null,null,null,null,null,"Which version of the model or version of the region-peril models are used for each cat model as appropriate?",{"$f":"IF(+'Schedule X(a)'!G81=\"\",\"\",+'Schedule X(a)'!G81)","v":0}]
[]
[]
[]
[]
[]
[]
[]
[]
[]
[]
[]
[]
[]
[]
[]
[]
[]
[]
[]
[]
[]
[]
[]
[]
[]
[]
[]
[]
[]
[]
[]
[]
[]
[]
[]
[]
[]
[]
[]
[]
[]
[]
[]
[]
[]
[]
[]
[]
[]
[]
[]
[]
[]
[]
[]
[]
[]
[]
[]
[]
[]
[]
[]
[]
[]
[]
[]
[]
[]
[]
[]
[]
[]
[]
[]
[]
[]
[]
[]
[]
[]
[]
[]
[]
[]
[]
[]
[]
[]
[]
[]
[]
[]
[]
[]
[]
[]
[]
[]
[]
[]
[]
[]
[]
[]
[]
[]
[]
[null,null,null,null,"AIR, EQECAT and RMS"]

{"sheet":"Schedule X(c)","index":73,"n_rows":167,"n_cols":7,"rows_kept":167,"cut":false,"hidden":false,"merged":[[43,2,43,3],[45,2,45,3],[46,2,46,3],[34,3,34,4],[112,2,112,3],[100,3,100,4],[48,2,48,3],[65,2,65,3],[67,2,67,3],[68,2,68,3],[69,2,69,3],[47,2,47,3],[114,2,114,3],[91,2,91,3],[92,2,92,3],[109,2,109,3],[111,2,111,3],[113,2,113,3],[100,5,100,6],[56,3,56,4],[56,5,56,6],[78,3,78,4],[78,5,78,6],[70,2,70,3],[87,2,87,3],[89,2,89,3],[90,2,90,3],[0,1,0,5],[21,2,21,3],[23,2,23,3],[24,2,24,3],[25,2,25,3],[34,5,34,6],[2,1,2,2],[4,1,4,7],[12,3,12,4],[12,5,12,6],[26,2,26,3]]}
[null,"CATASTROPHE RISK RETURN: EXCEEDANCE PROBABILITY  (EP) CURVE  FOR REGIONS-PERILS (TABLE 15B)",null,null,null,null,{"$f":"HYPERLINK(\"#'Index'!A1\",\"Return to Index\")","v":"Return to Index"}]
[null,{"$f":"'Group Information'!C9","v":"Enter Parent Company Name"}]
[null,{"$f":"'Group Information'!C3+1","v":"2024-01-01"},null,null,null,null,"SCHEDULE X(c)"]
[]
[null,"Provide Exceedance Probability information on the following perils in the templates provided below."]
[]
[null,"a)","EP CURVE ATLANTIC BASIN HURRICANE"]
[]
[null,null,"Which model(s) is used for  EP Curve Atlantic basin hurricane",null,null,{"$f":"Import!E35982","v":"Select Cat Model(s)"}]
[null,null,"Indicate the model version(s)",null,null,{"$f":"Import!E35983","v":0}]
[]
[null,null,"Exceedance probability information:"]
[null,null,null," Gross loss",null," Net loss"]
[null,null,"Loss Return period (years)","Gross per occurrence loss TVaR","Gross aggregate \nTVaR ","Net per occurrence loss TVaR","Net aggregate \nTVaR"]
[null,null,null," (US$M)"," (US$M)"," (US$M)"," (US$M)"]
[null,null,50,{"$f":"Import!E35984","v":0},{"$f":"Import!E35989","v":0},{"$f":"Import!E35994","v":0},{"$f":"Import!E35999","v":0}]
[null,null,100,{"$f":"Import!E35985","v":0},{"$f":"Import!E35990","v":0},{"$f":"Import!E35995","v":0},{"$f":"Import!E36000","v":0}]
[null,null,250,{"$f":"Import!E35986","v":0},{"$f":"Import!E35991","v":0},{"$f":"Import!E35996","v":0},{"$f":"Import!E36001","v":0}]
[null,null,500,{"$f":"Import!E35987","v":0},{"$f":"Import!E35992","v":0},{"$f":"Import!E35997","v":0},{"$f":"Import!E36002","v":0}]
[null,null,1000,{"$f":"Import!E35988","v":0},{"$f":"Import!E35993","v":0},{"$f":"Import!E35998","v":0},{"$f":"Import!E36003","v":0}]
[]
[null,null,"Exposure to Atlantic Basin Hurricane",null,"Gross","Net"]
[null,null,null,null," (US$M)"," (US$M)"]
[null,null,"Total statutory property catastrophe premium",null,{"$f":"Import!E36004","v":0},{"$f":"Import!E36008","v":0}]
[null,null,"Total all other statutory premium",null,{"$f":"Import!E36005","v":0},{"$f":"Import!E36009","v":0}]
[null,null,"Total statutory property catastrophe limits",null,{"$f":"Import!E36006","v":0},{"$f":"Import!E36010","v":0}]
[null,null,"Total all other statutory limits",null,{"$f":"Import!E36007","v":0},{"$f":"Import!E36011","v":0}]
[]
[null,"b)","EP CURVE NORTH AMERICAN EARTH QUAKE"]
[]
[null,null,"Which model(s) is used for  EP Curve North American hurricane",null,null,{"$f":"Import!E36012","v":"Select Cat Model(s)"}]
[null,null,"Indicate the model version(s)",null,null,{"$f":"Import!E36013","v":0}]
[]
[null,null,"Exceedance probability information:"]
[null,null,null," Gross loss",null," Net loss"]
[null,null,"Loss Return period (years)","Gross per occurrence loss TVaR","Gross aggregate \nTVaR ","Net per occurrence loss TVaR","Net aggregate \nTVaR"]
[null,null,null," (US$M)"," (US$M)"," (US$M)"," (US$M)"]
[null,null,50,{"$f":"Import!E36014","v":0},{"$f":"Import!E36019","v":0},{"$f":"Import!E36024","v":0},{"$f":"Import!E36029","v":0}]
[null,null,100,{"$f":"Import!E36015","v":0},{"$f":"Import!E36020","v":0},{"$f":"Import!E36025","v":0},{"$f":"Import!E36030","v":0}]
[null,null,250,{"$f":"Import!E36016","v":0},{"$f":"Import!E36021","v":0},{"$f":"Import!E36026","v":0},{"$f":"Import!E36031","v":0}]
[null,null,500,{"$f":"Import!E36017","v":0},{"$f":"Import!E36022","v":0},{"$f":"Import!E36027","v":0},{"$f":"Import!E36032","v":0}]
[null,null,1000,{"$f":"Import!E36018","v":0},{"$f":"Import!E36023","v":0},{"$f":"Import!E36028","v":0},{"$f":"Import!E36033","v":0}]
[]
[null,null,"Exposure to North American Earthquake",null,"Gross","Net"]
[null,null,null,null," (US$M)"," (US$M)"]
[null,null,"Total statutory property catastrophe premium",null,{"$f":"Import!E36034","v":0},{"$f":"Import!E36038","v":0}]
[null,null,"Total all other statutory premium",null,{"$f":"Import!E36035","v":0},{"$f":"Import!E36039","v":0}]
[null,null,"Total statutory property catastrophe limits",null,{"$f":"Import!E36036","v":0},{"$f":"Import!E36040","v":0}]
[null,null,"Total all other statutory limits",null,{"$f":"Import!E36037","v":0},{"$f":"Import!E36041","v":0}]
[]
[null,"c)","EP CURVE EUROPEAN WINDSTORM"]
[]
[null,null,"Which model(s) is used for  EP Curve European windstorm",null,null,{"$f":"Import!E36042","v":"Select Cat Model(s)"}]
[null,null,"Indicate the model version(s)",null,null,{"$f":"Import!E36043","v":0}]
[]
[null,null,"Exceedance probability information:"]
[null,null,null," Gross loss",null," Net loss"]
[null,null,"Loss Return period (years)","Gross per occurrence loss TVaR","Gross aggregate \nTVaR ","Net per occurrence loss TVaR","Net aggregate \nTVaR"]
[null,null,null," (US$M)"," (US$M)"," (US$M)"," (US$M)"]
[null,null,50,{"$f":"Import!E36044","v":0},{"$f":"Import!E36049","v":0},{"$f":"Import!E36054","v":0},{"$f":"Import!E36059","v":0}]
[null,null,100,{"$f":"Import!E36045","v":0},{"$f":"Import!E36050","v":0},{"$f":"Import!E36055","v":0},{"$f":"Import!E36060","v":0}]
[null,null,250,{"$f":"Import!E36046","v":0},{"$f":"Import!E36051","v":0},{"$f":"Import!E36056","v":0},{"$f":"Import!E36061","v":0}]
[null,null,500,{"$f":"Import!E36047","v":0},{"$f":"Import!E36052","v":0},{"$f":"Import!E36057","v":0},{"$f":"Import!E36062","v":0}]
[null,null,1000,{"$f":"Import!E36048","v":0},{"$f":"Import!E36053","v":0},{"$f":"Import!E36058","v":0},{"$f":"Import!E36063","v":0}]
[]
[null,null,"Exposure to European Windstorm",null,"Gross","Net"]
[null,null,null,null," (US$M)"," (US$M)"]
[null,null,"Total statutory property catastrophe premium",null,{"$f":"Import!E36064","v":0},{"$f":"Import!E36068","v":0}]
[null,null,"Total all other statutory premium",null,{"$f":"Import!E36065","v":0},{"$f":"Import!E36069","v":0}]
[null,null,"Total statutory property catastrophe limits",null,{"$f":"Import!E36066","v":0},{"$f":"Import!E36070","v":0}]
[null,null,"Total all other statutory limits",null,{"$f":"Import!E36067","v":0},{"$f":"Import!E36071","v":0}]
[]
[null,"d)","EP CURVE JAPANESE EARTH QUAKE"]
[]
[null,null,"Which model(s) is used for  EP Curve Japanese earthquake",null,null,{"$f":"Import!E36072","v":"Select Cat Model(s)"}]
[null,null,"Indicate the model version(s)",null,null,{"$f":"Import!E36073","v":0}]
[]
[null,null,"Exceedance probability information:"]
[null,null,null," Gross loss",null," Net loss"]
[null,null,"Loss Return period (years)","Gross per occurrence loss TVaR","Gross aggregate \nTVaR ","Net per occurrence loss TVaR","Net aggregate \nTVaR"]
[null,null,null," (US$M)"," (US$M)"," (US$M)"," (US$M)"]
[null,null,50,{"$f":"Import!E36074","v":0},{"$f":"Import!E36079","v":0},{"$f":"Import!E36084","v":0},{"$f":"Import!E36089","v":0}]
[null,null,100,{"$f":"Import!E36075","v":0},{"$f":"Import!E36080","v":0},{"$f":"Import!E36085","v":0},{"$f":"Import!E36090","v":0}]
[null,null,250,{"$f":"Import!E36076","v":0},{"$f":"Import!E36081","v":0},{"$f":"Import!E36086","v":0},{"$f":"Import!E36091","v":0}]
[null,null,500,{"$f":"Import!E36077","v":0},{"$f":"Import!E36082","v":0},{"$f":"Import!E36087","v":0},{"$f":"Import!E36092","v":0}]
[null,null,1000,{"$f":"Import!E36078","v":0},{"$f":"Import!E36083","v":0},{"$f":"Import!E36088","v":0},{"$f":"Import!E36093","v":0}]
[]
[null,null,"Exposure to Japanese Earthquake",null,"Gross","Net"]
[null,null,null,null," (US$M)"," (US$M)"]
[null,null,"Total statutory property catastrophe premium",null,{"$f":"Import!E36094","v":0},{"$f":"Import!E36098","v":0}]
[null,null,"Total all other statutory premium",null,{"$f":"Import!E36095","v":0},{"$f":"Import!E36099","v":0}]
[null,null,"Total statutory property catastrophe limits",null,{"$f":"Import!E36096","v":0},{"$f":"Import!E36100","v":0}]
[null,null,"Total all other statutory limits",null,{"$f":"Import!E36097","v":0},{"$f":"Import!E36101","v":0}]
[]
[null,"e)","EP CURVE JAPANESE TYPHOON"]
[]
[null,null,"Which model(s) is used for  EP Curve Japanese typhoon ",null,null,{"$f":"Import!E36102","v":"Select Cat Model(s)"}]
[null,null,"Indicate the model version(s)",null,null,{"$f":"Import!E36103","v":0}]
[]
[null,null,"Exceedance probability information:"]
[null,null,null," Gross loss",null," Net loss"]
[null,null,"Loss Return period (years)","Gross per occurrence loss TVaR","Gross aggregate \nTVaR ","Net per occurrence loss TVaR","Net aggregate \nTVaR"]
[null,null,null," (US$M)"," (US$M)"," (US$M)"," (US$M)"]
[null,null,50,{"$f":"Import!E36104","v":0},{"$f":"Import!E36109","v":0},{"$f":"Import!E36114","v":0},{"$f":"Import!E36119","v":0}]
[null,null,100,{"$f":"Import!E36105","v":0},{"$f":"Import!E36110","v":0},{"$f":"Import!E36115","v":0},{"$f":"Import!E36120","v":0}]
[null,null,250,{"$f":"Import!E36106","v":0},{"$f":"Import!E36111","v":0},{"$f":"Import!E36116","v":0},{"$f":"Import!E36121","v":0}]
[null,null,500,{"$f":"Import!E36107","v":0},{"$f":"Import!E36112","v":0},{"$f":"Import!E36117","v":0},{"$f":"Import!E36122","v":0}]
[null,null,1000,{"$f":"Import!E36108","v":0},{"$f":"Import!E36113","v":0},{"$f":"Import!E36118","v":0},{"$f":"Import!E36123","v":0}]
[]
[null,null,"Exposure to Japanese Typhoon",null,"Gross","Net"]
[null,null,null,null," (US$M)"," (US$M)"]
[null,null,"Total statutory property catastrophe premium",null,{"$f":"Import!E36124","v":0},{"$f":"Import!E36128","v":0}]
[null,null,"Total all other statutory premium",null,{"$f":"Import!E36125","v":0},{"$f":"Import!E36129","v":0}]
[null,null,"Total statutory property catastrophe limits",null,{"$f":"Import!E36126","v":0},{"$f":"Import!E36130","v":0}]
[null,null,"Total all other statutory limits",null,{"$f":"Import!E36127","v":0},{"$f":"Import!E36131","v":0}]
[]
[]
[]
[]
[]
[]
[null,null,null,"Select Cat Model(s)"]
[null,null,null,"AIR only"]
[null,null,null,"EQECAT only"]
[null,null,null,"RMS only"]
[null,null,null,"AIR and RMS"]
[null,null,null,"AIR and EQECAT"]
[null,null,null,"EQECAT and RMS"]
[null,null,null,"AIR, EQECAT and RMS"]
[null,null,null,"Other"]
[]
[]
[]
[]
[]
[]
[]
[]
[]
[]
[]
[]
[]
[]
[]
[]
[]
[]
[]
[]
[]
[]
[]
[]
[]
[]
[]
[]
[]
[null,null,null,"Which vendor catastrophe models do you include in this modeling:"]
[null,null,null,"AIR only"]
[null,null,null,"EQECAT only"]
[null,null,null,"RMS only"]
[null,null,null,"AIR and RMS"]
[null,null,null,"AIR and EQECAT"]
[null,null,null,"EQECAT and RMS"]
[null,null,null,"AIR, EQECAT and RMS"]

{"sheet":"Schedule X(d)","index":74,"n_rows":48,"n_cols":8,"rows_kept":48,"cut":false,"hidden":false,"merged":[[2,0,2,2],[0,0,0,5],[4,1,4,7]]}
["CATASTROPHE RISK RETURN: REGION-PERIL EXPOSURE TO ZONES AND STATUTORY LINES OF BUSINESS (TABLE 15C)",null,null,null,null,null,null,{"$f":"HYPERLINK(\"#'Index'!A1\",\"Return to Index\")","v":"Return to Index"}]
[{"$f":"'Group Information'!C9","v":"Enter Parent Company Name"}]
[{"$f":"'Group Information'!C3+1","v":"2024-01-01"},null,null,null,null,null,null,"Schedule X(d)"]
[]
[null,"Which statutory zones (paragraph V(w) of the Prudential Standard Rules) and statutory lines of business (Schedule IV) is the Group exposed to with regards to the region-perils? \n(select all that apply)"]
[]
["a)  Exposure to statutory zones (requirement V(w) of the Prudential Standard Rules)"]
[null,null,"EP Curve Atlantic Hurricane","EP Curve North American Earthquake","EP Curve European Windstorm","EP Curve Japanese Earthquake","EP Curve Japanese Typhoon","EP Curve All Other Perils"]
[null,"Zone 1",{"$f":"Import!E36133","v":"Select Yes/No"},{"$f":"Import!E36146","v":"Select Yes/No"},{"$f":"Import!E36159","v":"Select Yes/No"},{"$f":"Import!E36172","v":"Select Yes/No"},{"$f":"Import!E36185","v":"Select Yes/No"},{"$f":"Import!E36198","v":"Select Yes/No"}]
[null,"Zone 2",{"$f":"Import!E36134","v":"Select Yes/No"},{"$f":"Import!E36147","v":"Select Yes/No"},{"$f":"Import!E36160","v":"Select Yes/No"},{"$f":"Import!E36173","v":"Select Yes/No"},{"$f":"Import!E36186","v":"Select Yes/No"},{"$f":"Import!E36199","v":"Select Yes/No"}]
[null,"Zone 3",{"$f":"Import!E36135","v":"Select Yes/No"},{"$f":"Import!E36148","v":"Select Yes/No"},{"$f":"Import!E36161","v":"Select Yes/No"},{"$f":"Import!E36174","v":"Select Yes/No"},{"$f":"Import!E36187","v":"Select Yes/No"},{"$f":"Import!E36200","v":"Select Yes/No"}]
[null,"Zone 4",{"$f":"Import!E36136","v":"Select Yes/No"},{"$f":"Import!E36149","v":"Select Yes/No"},{"$f":"Import!E36162","v":"Select Yes/No"},{"$f":"Import!E36175","v":"Select Yes/No"},{"$f":"Import!E36188","v":"Select Yes/No"},{"$f":"Import!E36201","v":"Select Yes/No"}]
[null,"Zone 5",{"$f":"Import!E36137","v":"Select Yes/No"},{"$f":"Import!E36150","v":"Select Yes/No"},{"$f":"Import!E36163","v":"Select Yes/No"},{"$f":"Import!E36176","v":"Select Yes/No"},{"$f":"Import!E36189","v":"Select Yes/No"},{"$f":"Import!E36202","v":"Select Yes/No"}]
[null,"Zone 6",{"$f":"Import!E36138","v":"Select Yes/No"},{"$f":"Import!E36151","v":"Select Yes/No"},{"$f":"Import!E36164","v":"Select Yes/No"},{"$f":"Import!E36177","v":"Select Yes/No"},{"$f":"Import!E36190","v":"Select Yes/No"},{"$f":"Import!E36203","v":"Select Yes/No"}]
[null,"Zone 7",{"$f":"Import!E36139","v":"Select Yes/No"},{"$f":"Import!E36152","v":"Select Yes/No"},{"$f":"Import!E36165","v":"Select Yes/No"},{"$f":"Import!E36178","v":"Select Yes/No"},{"$f":"Import!E36191","v":"Select Yes/No"},{"$f":"Import!E36204","v":"Select Yes/No"}]
[null,"Zone 8",{"$f":"Import!E36140","v":"Select Yes/No"},{"$f":"Import!E36153","v":"Select Yes/No"},{"$f":"Import!E36166","v":"Select Yes/No"},{"$f":"Import!E36179","v":"Select Yes/No"},{"$f":"Import!E36192","v":"Select Yes/No"},{"$f":"Import!E36205","v":"Select Yes/No"}]
[null,"Zone 9",{"$f":"Import!E36141","v":"Select Yes/No"},{"$f":"Import!E36154","v":"Select Yes/No"},{"$f":"Import!E36167","v":"Select Yes/No"},{"$f":"Import!E36180","v":"Select Yes/No"},{"$f":"Import!E36193","v":"Select Yes/No"},{"$f":"Import!E36206","v":"Select Yes/No"}]
[null,"Zone 10",{"$f":"Import!E36142","v":"Select Yes/No"},{"$f":"Import!E36155","v":"Select Yes/No"},{"$f":"Import!E36168","v":"Select Yes/No"},{"$f":"Import!E36181","v":"Select Yes/No"},{"$f":"Import!E36194","v":"Select Yes/No"},{"$f":"Import!E36207","v":"Select Yes/No"}]
[null,"Zone 11",{"$f":"Import!E36143","v":"Select Yes/No"},{"$f":"Import!E36156","v":"Select Yes/No"},{"$f":"Import!E36169","v":"Select Yes/No"},{"$f":"Import!E36182","v":"Select Yes/No"},{"$f":"Import!E36195","v":"Select Yes/No"},{"$f":"Import!E36208","v":"Select Yes/No"}]
[null,"Zone 12",{"$f":"Import!E36144","v":"Select Yes/No"},{"$f":"Import!E36157","v":"Select Yes/No"},{"$f":"Import!E36170","v":"Select Yes/No"},{"$f":"Import!E36183","v":"Select Yes/No"},{"$f":"Import!E36196","v":"Select Yes/No"},{"$f":"Import!E36209","v":"Select Yes/No"}]
[null,"Zone 13",{"$f":"Import!E36145","v":"Select Yes/No"},{"$f":"Import!E36158","v":"Select Yes/No"},{"$f":"Import!E36171","v":"Select Yes/No"},{"$f":"Import!E36184","v":"Select Yes/No"},{"$f":"Import!E36197","v":"Select Yes/No"},{"$f":"Import!E36210","v":"Select Yes/No"}]
[]
["b) Exposure to statutory lines of business (Schedule IVA)"]
[null,null,"EP Curve Atlantic Hurricane","EP Curve North American Earthquake","EP Curve European Windstorm","EP Curve Japanese Earthquake","EP Curve Japanese Typhoon","EP Curve - All Other Perils"]
[null,"Line 1",{"$f":"Import!E36211","v":"Select Yes/No"},{"$f":"Import!E36235","v":"Select Yes/No"},{"$f":"Import!E36259","v":"Select Yes/No"},{"$f":"Import!E36283","v":"Select Yes/No"},{"$f":"Import!E36307","v":"Select Yes/No"},{"$f":"Import!E36331","v":"Select Yes/No"}]
[null,"Line 2",{"$f":"Import!E36212","v":"Select Yes/No"},{"$f":"Import!E36236","v":"Select Yes/No"},{"$f":"Import!E36260","v":"Select Yes/No"},{"$f":"Import!E36284","v":"Select Yes/No"},{"$f":"Import!E36308","v":"Select Yes/No"},{"$f":"Import!E36332","v":"Select Yes/No"}]
[null,"Line 3",{"$f":"Import!E36213","v":"Select Yes/No"},{"$f":"Import!E36237","v":"Select Yes/No"},{"$f":"Import!E36261","v":"Select Yes/No"},{"$f":"Import!E36285","v":"Select Yes/No"},{"$f":"Import!E36309","v":"Select Yes/No"},{"$f":"Import!E36333","v":"Select Yes/No"}]
[null,"Line 4",{"$f":"Import!E36214","v":"Select Yes/No"},{"$f":"Import!E36238","v":"Select Yes/No"},{"$f":"Import!E36262","v":"Select Yes/No"},{"$f":"Import!E36286","v":"Select Yes/No"},{"$f":"Import!E36310","v":"Select Yes/No"},{"$f":"Import!E36334","v":"Select Yes/No"}]
[null,"Line 5",{"$f":"Import!E36215","v":"Select Yes/No"},{"$f":"Import!E36239","v":"Select Yes/No"},{"$f":"Import!E36263","v":"Select Yes/No"},{"$f":"Import!E36287","v":"Select Yes/No"},{"$f":"Import!E36311","v":"Select Yes/No"},{"$f":"Import!E36335","v":"Select Yes/No"}]
[null,"Line 6",{"$f":"Import!E36216","v":"Select Yes/No"},{"$f":"Import!E36240","v":"Select Yes/No"},{"$f":"Import!E36264","v":"Select Yes/No"},{"$f":"Import!E36288","v":"Select Yes/No"},{"$f":"Import!E36312","v":"Select Yes/No"},{"$f":"Import!E36336","v":"Select Yes/No"}]
[null,"Line 7",{"$f":"Import!E36217","v":"Select Yes/No"},{"$f":"Import!E36241","v":"Select Yes/No"},{"$f":"Import!E36265","v":"Select Yes/No"},{"$f":"Import!E36289","v":"Select Yes/No"},{"$f":"Import!E36313","v":"Select Yes/No"},{"$f":"Import!E36337","v":"Select Yes/No"}]
[null,"Line 8",{"$f":"Import!E36218","v":"Select Yes/No"},{"$f":"Import!E36242","v":"Select Yes/No"},{"$f":"Import!E36266","v":"Select Yes/No"},{"$f":"Import!E36290","v":"Select Yes/No"},{"$f":"Import!E36314","v":"Select Yes/No"},{"$f":"Import!E36338","v":"Select Yes/No"}]
[null,"Line 9",{"$f":"Import!E36219","v":"Select Yes/No"},{"$f":"Import!E36243","v":"Select Yes/No"},{"$f":"Import!E36267","v":"Select Yes/No"},{"$f":"Import!E36291","v":"Select Yes/No"},{"$f":"Import!E36315","v":"Select Yes/No"},{"$f":"Import!E36339","v":"Select Yes/No"}]
[null,"Line 10",{"$f":"Import!E36220","v":"Select Yes/No"},{"$f":"Import!E36244","v":"Select Yes/No"},{"$f":"Import!E36268","v":"Select Yes/No"},{"$f":"Import!E36292","v":"Select Yes/No"},{"$f":"Import!E36316","v":"Select Yes/No"},{"$f":"Import!E36340","v":"Select Yes/No"}]
[null,"Line 11",{"$f":"Import!E36221","v":"Select Yes/No"},{"$f":"Import!E36245","v":"Select Yes/No"},{"$f":"Import!E36269","v":"Select Yes/No"},{"$f":"Import!E36293","v":"Select Yes/No"},{"$f":"Import!E36317","v":"Select Yes/No"},{"$f":"Import!E36341","v":"Select Yes/No"}]
[null,"Line 12",{"$f":"Import!E36222","v":"Select Yes/No"},{"$f":"Import!E36246","v":"Select Yes/No"},{"$f":"Import!E36270","v":"Select Yes/No"},{"$f":"Import!E36294","v":"Select Yes/No"},{"$f":"Import!E36318","v":"Select Yes/No"},{"$f":"Import!E36342","v":"Select Yes/No"}]
[null,"Line 13",{"$f":"Import!E36223","v":"Select Yes/No"},{"$f":"Import!E36247","v":"Select Yes/No"},{"$f":"Import!E36271","v":"Select Yes/No"},{"$f":"Import!E36295","v":"Select Yes/No"},{"$f":"Import!E36319","v":"Select Yes/No"},{"$f":"Import!E36343","v":"Select Yes/No"}]
[null,"Line 14",{"$f":"Import!E36224","v":"Select Yes/No"},{"$f":"Import!E36248","v":"Select Yes/No"},{"$f":"Import!E36272","v":"Select Yes/No"},{"$f":"Import!E36296","v":"Select Yes/No"},{"$f":"Import!E36320","v":"Select Yes/No"},{"$f":"Import!E36344","v":"Select Yes/No"}]
[null,"Line 15",{"$f":"Import!E36225","v":"Select Yes/No"},{"$f":"Import!E36249","v":"Select Yes/No"},{"$f":"Import!E36273","v":"Select Yes/No"},{"$f":"Import!E36297","v":"Select Yes/No"},{"$f":"Import!E36321","v":"Select Yes/No"},{"$f":"Import!E36345","v":"Select Yes/No"}]
[null,"Line 16",{"$f":"Import!E36226","v":"Select Yes/No"},{"$f":"Import!E36250","v":"Select Yes/No"},{"$f":"Import!E36274","v":"Select Yes/No"},{"$f":"Import!E36298","v":"Select Yes/No"},{"$f":"Import!E36322","v":"Select Yes/No"},{"$f":"Import!E36346","v":"Select Yes/No"}]
[null,"Line 17",{"$f":"Import!E36227","v":"Select Yes/No"},{"$f":"Import!E36251","v":"Select Yes/No"},{"$f":"Import!E36275","v":"Select Yes/No"},{"$f":"Import!E36299","v":"Select Yes/No"},{"$f":"Import!E36323","v":"Select Yes/No"},{"$f":"Import!E36347","v":"Select Yes/No"}]
[null,"Line 18",{"$f":"Import!E36228","v":"Select Yes/No"},{"$f":"Import!E36252","v":"Select Yes/No"},{"$f":"Import!E36276","v":"Select Yes/No"},{"$f":"Import!E36300","v":"Select Yes/No"},{"$f":"Import!E36324","v":"Select Yes/No"},{"$f":"Import!E36348","v":"Select Yes/No"}]
[null,"Line 19",{"$f":"Import!E36229","v":"Select Yes/No"},{"$f":"Import!E36253","v":"Select Yes/No"},{"$f":"Import!E36277","v":"Select Yes/No"},{"$f":"Import!E36301","v":"Select Yes/No"},{"$f":"Import!E36325","v":"Select Yes/No"},{"$f":"Import!E36349","v":"Select Yes/No"}]
[null,"Line 20",{"$f":"Import!E36230","v":"Select Yes/No"},{"$f":"Import!E36254","v":"Select Yes/No"},{"$f":"Import!E36278","v":"Select Yes/No"},{"$f":"Import!E36302","v":"Select Yes/No"},{"$f":"Import!E36326","v":"Select Yes/No"},{"$f":"Import!E36350","v":"Select Yes/No"}]
[null,"Line 21",{"$f":"Import!E36231","v":"Select Yes/No"},{"$f":"Import!E36255","v":"Select Yes/No"},{"$f":"Import!E36279","v":"Select Yes/No"},{"$f":"Import!E36303","v":"Select Yes/No"},{"$f":"Import!E36327","v":"Select Yes/No"},{"$f":"Import!E36351","v":"Select Yes/No"}]
[null,"Line 22",{"$f":"Import!E36232","v":"Select Yes/No"},{"$f":"Import!E36256","v":"Select Yes/No"},{"$f":"Import!E36280","v":"Select Yes/No"},{"$f":"Import!E36304","v":"Select Yes/No"},{"$f":"Import!E36328","v":"Select Yes/No"},{"$f":"Import!E36352","v":"Select Yes/No"}]
[null,"Line 23",{"$f":"Import!E36233","v":"Select Yes/No"},{"$f":"Import!E36257","v":"Select Yes/No"},{"$f":"Import!E36281","v":"Select Yes/No"},{"$f":"Import!E36305","v":"Select Yes/No"},{"$f":"Import!E36329","v":"Select Yes/No"},{"$f":"Import!E36353","v":"Select Yes/No"}]
[null,"Line 24",{"$f":"Import!E36234","v":"Select Yes/No"},{"$f":"Import!E36258","v":"Select Yes/No"},{"$f":"Import!E36282","v":"Select Yes/No"},{"$f":"Import!E36306","v":"Select Yes/No"},{"$f":"Import!E36330","v":"Select Yes/No"},{"$f":"Import!E36354","v":"Select Yes/No"}]

{"sheet":"Schedule X(e)","index":75,"n_rows":161,"n_cols":19,"rows_kept":161,"cut":false,"hidden":false,"merged":[[38,2,39,18],[42,2,42,18],[21,2,21,18],[24,2,25,18],[28,2,28,10],[31,2,31,6],[18,2,18,7],[34,2,34,6],[2,2,2,3],[5,2,5,4],[8,2,9,18],[12,2,12,4]]}
[null,null,"CATASTROPHE RISK RETURN: ACCUMULATIONS OVERVIEW (TABLE 15D)",null,null,null,null,null,null,null,null,null,null,null,null,null,null,null,{"$f":"HYPERLINK(\"#'Index'!A1\",\"Return to Index\")","v":"Return to Index"}]
[null,null,{"$f":"'Group Information'!C9","v":"Enter Parent Company Name"}]
[null,null,{"$f":"'Group Information'!C3+1","v":"2024-01-01"},null,null,null,null,null,null,null,null,null,null,null,null,null,null,null,"Schedule X(e) "]
[]
[null,1,{"$f":"+G88","v":"What frequency best describes the update process of accumulations?"}]
[null,null,{"$f":"Import!E36356","v":"Select"}]
[]
[null,2,"Are there any differences in the frequency of accumulations for various business units? ",null,null,null,null,null,null,null,null,{"$f":"Import!E36357","v":"Select Yes/No"}," If yes, briefly describe."]
[null,null,{"$f":"Import!E36358","v":0}]
[]
[]
[null,3,"Which vendor catastrophe models do the members of the insurance group licence?"]
[null,null,{"$f":"Import!E36359","v":"Select"},{"$f":"Import!F36359","v":0},{"$f":"Import!G36359","v":0}]
[]
[null,4,{"$f":"+G109","v":"Does the insurance group incorporate internally developed stochastic catastrophe models within the accumulations that capture correlation across contracts or lines of business?"}]
[null,null,{"$f":"Import!E36360","v":"Select Yes/No"}]
[]
[null,5,{"$f":"G112","v":"Which methodology best describes the insurance group's accumulation methodology?"}]
[null,null,{"$f":"Import!E36361","v":"Select"}]
[]
[null,6,{"$f":"+G119","v":"Where more than one catastrophe model is used in the accumulations, which methodology best describes how multiple models are considered?"}]
[null,null,{"$f":"Import!E36362","v":"Select"}]
[]
[null,null,"If other selected, provide details:"]
[null,null,{"$f":"Import!E36363","v":0}]
[]
[]
[null,7,{"$f":"+G131","v":"Are the insurance group's pricing and accumulations fully consistent?"}]
[null,null,{"$f":"Import!E36364","v":"Select"}]
[]
[null,8,{"$f":"+G138","v":"What percentage of the total premium (other than insurance business) is written without occurrence limits?"}]
[null,null,{"$f":"Import!E36365","v":"Select"}]
[]
[null,9,"Do the members of the insurance group provide reinsurance to both affiliated companies and unaffiliated companies?"]
[null,null,{"$f":"Import!E36366","v":"Select"}]
[]
[null,10,"If there is more than 2.5% of premiums written without occurrence limits (other than insurance business) briefly describe this business, including information on "]
[null,null,"territorial exposure, potential for correlation of losses across contracts/policies and the assessment of maximum loss potential for these exposures."]
[null,null,{"$f":"Import!E36367","v":0}]
[]
[]
[null,11,{"$f":"+G149","v":"How are outwards reinsurance protections considered in accumulation calculations?"}]
[null,null,{"$f":"Import!E36368","v":"Select"}]
[]
[]
[]
[]
[]
[]
[]
[]
[]
[]
[]
[]
[]
[]
[]
[]
[]
[]
[]
[]
[]
[]
[]
[]
[]
[]
[]
[]
[]
[]
[]
[]
[]
[]
[]
[]
[]
[]
[]
[]
[]
[]
[]
[]
[null,null,null,null,null,null,"What frequency best describes the update process of accumulations?",null,null,null,null,null,null,null,"Notes"]
[null,null,null,null,null,null,"Select",null,null,null,null,null,null,null,"Guidance if there is a different frequency of updates for insurance and reinsurance or other"]
[null,null,null,null,null,null,"Ad-hoc"]
[null,null,null,null,null,null,"Annual"]
[null,null,null,null,null,null,"Semi-annual"]
[null,null,null,null,null,null,"Quarterly"]
[null,null,null,null,null,null,"Monthly"]
[null,null,null,null,null,null,"Weekly"]
[null,null,null,null,null,null,"Daily"]
[null,null,null,null,null,null,"Real time"]
[]
[null,null,null,null,null,null,"Which vendor catastrophe models do the members of the insurance group license?"]
[null,null,null,null,null,null,"Select"]
[null,null,null,null,null,null,"AIR only"]
[null,null,null,null,null,null,"EQECAT only"]
[null,null,null,null,null,null,"RMS only"]
[null,null,null,null,null,null,"AIR and RMS"]
[null,null,null,null,null,null,"AIR and EQECAT"]
[null,null,null,null,null,null,"EQECAT and RMS"]
[null,null,null,null,null,null,"AIR, EQECAT and RMS"]
[]
[null,null,null,null,null,null,"Does the insurance group incorporate internally developed stochastic catastrophe models within the accumulations that capture correlation across contracts or lines of business?"]
[]
[]
[null,null,null,null,null,null,"Which methodology best describes the insurance group's accumulation methodology?",null,null,null,null,null,null,null,"Notes"]
[null,null,null,null,null,null,"Select",null,null,null,null,null,null,null,"Define catastrophe model as AIR, RMS, EQEcatastrophe and other, not the region-peril models"]
[null,null,null,null,null,null,"One catastrophe model is used in the accumulations"]
[null,null,null,null,null,null,"Two catastrophe models are used in the accumulations"]
[null,null,null,null,null,null,"Three catastrophe models are used in the accumulations"]
[null,null,null,null,null,null,"More than three catastrophe models are used in the accumulations"]
[]
[null,null,null,null,null,null,"Where more than one catastrophe model is used in the accumulations, which methodology best describes how multiple models are considered?"]
[null,null,null,null,null,null,"Select"]
[null,null,null,null,null,null,"A full portfolio is kept in all models"]
[null,null,null,null,null,null,"A full portfolio is kept in all models and a blended portfolio is kept where underwriters determine on a deal by deal basis the proportions of each model included in the blend."]
[null,null,null,null,null,null,"A full portfolio is kept in all models and a blended portfolio is kept where management determine the proportion of each model included in the blend."]
[null,null,null,null,null,null,"A full portfolio is kept in all models and a blended portfolio is kept where management determine the proportion of each model included in the blend specific by region-peril."]
[null,null,null,null,null,null,"Only a blended portfolio is kept where underwriters determine the proportion of each model included in the blend on a deal by deal basis."]
[null,null,null,null,null,null,"Only a blended portfolio is kept where management determine the proportion of each model included in the blend."]
[null,null,null,null,null,null,"Only a blended portfolio is kept where management determine the proportion of each model included in the blend specific by region-peril."]
[null,null,null,null,null,null,"Other"]
[null,null,null,null,null,null,"Not applicable"]
[]
[null,null,null,null,null,null,"Are the insurance group's pricing and accumulations fully consistent?"]
[null,null,null,null,null,null,"Select"]
[null,null,null,null,null,null,"Yes - for all forms of exposure where there is the potential for catastrophe loss"]
[null,null,null,null,null,null,"Yes - though only where data and/or vendor catastrophe models are available to run a catastrophe model"]
[null,null,null,null,null,null,"No - not all catastrophe exposure that is modeled for pricing purposes are included in accumulations"]
[null,null,null,null,null,null,"No - there is a difference in the pricing and accumulation methodology"]
[]
[null,null,null,null,null,null,"What percentage of the total premium (other than insurance business) is written without occurrence limits?"]
[null,null,null,null,null,null,"Select"]
[null,null,null,null,null,null,"None"]
[null,null,null,null,null,null,"Not applicable (only write insurance business)"]
[null,null,null,null,null,null,"0% to 2.49%"]
[null,null,null,null,null,null,"2.5% to 4.9%"]
[null,null,null,null,null,null,"5.0% to 9.9%"]
[null,null,null,null,null,null,"10.0% to 14.9%"]
[null,null,null,null,null,null,"15.0% to 19.9%"]
[null,null,null,null,null,null,"Greater than or equal to 20.0%"]
[]
[null,null,null,null,null,null,"How are outwards reinsurance protections considered in accumulation calculations?"]
[null,null,null,null,null,null,"Select"]
[null,null,null,null,null,null,"The company has minimal catastrophe exposure protection and as such gross is effectively net."]
[null,null,null,null,null,null,"They are not, the accumulations are calculated on a gross basis with reinsurance protections calculated approximately outside the system."]
[null,null,null,null,null,null,"They are not, the accumulations are calculated on a gross basis with reinsurance protections calculated explicitly outside the system."]
[null,null,null,null,null,null,"The accumulations are calculated on a gross basis with the effect of reinsurance protections calculated explicitly for some types of protection within the system."]
[null,null,null,null,null,null,"The accumulations are calculated on a gross basis with the effect of reinsurance protections calculated explicitly for each type of protection within the system."]
[]
[null,null,null,null,null,null,"Does the company provide reinsurance to both affiliated companies and unaffiliated companies?"]
[null,null,null,null,null,null,"Select"]
[null,null,null,null,null,null,"Affiliated companies only"]
[null,null,null,null,null,null,"Unaffiliated companies only"]
[null,null,null,null,null,null,"Both affiliated and unaffiliated companies"]

{"sheet":"Schedule X(f)","index":76,"n_rows":78,"n_cols":13,"rows_kept":78,"cut":false,"hidden":false,"merged":[[2,1,2,3],[6,4,6,6],[6,7,6,9],[6,10,6,12],[15,4,15,6],[15,7,15,9],[15,10,15,12],[77,2,77,12],[75,2,75,11],[56,7,56,9],[56,10,56,12],[52,2,52,12],[66,2,67,12],[73,2,73,12],[56,4,56,6],[48,2,48,12],[50,2,50,12],[35,2,35,12],[24,4,24,6],[24,7,24,9],[39,4,39,6],[39,7,39,9],[39,10,39,12],[24,10,24,12],[29,2,29,3],[30,2,30,3]]}
[null,"CATASTROPHE RISK RETURN: DATA  ANALYSIS (TABLE 15E)",null,null,null,null,null,null,null,null,null,null,{"$f":"HYPERLINK(\"#'Index'!A1\",\"Return to Index\")","v":"Return to Index"}]
[null,{"$f":"'Group Information'!C9","v":"Enter Parent Company Name"}]
[null,{"$f":"'Group Information'!C3+1","v":"2024-01-01"},null,null,null,null,null,null,null,null,null,null,"Schedule X(f)"]
[]
[null,1,"For all contracts written by the insurance group, provide splits of those that are:"]
[]
[null,null,null,null,"U.S. specific contracts - all exposures",null,null,"All other contracts - all exposures",null,null,"Total"]
[null,null,null,null,"Contract count","Gross limit provided ","Net limit provided","Contract count","Gross limit provided ","Net limit provided","Contract count","Gross limit provided ","Net limit provided"]
[null,null,null,null,null,"US$M","US$M",null,"US$M","US$M",null,"US$M","US$M"]
[null,null,null,"modellable",{"$f":"Import!E36370","v":0},{"$f":"Import!E36373","v":0},{"$f":"Import!E36376","v":0},{"$f":"Import!E36379","v":0},{"$f":"Import!E36382","v":0},{"$f":"Import!E36385","v":0},{"$f":"E10+H10","v":0},0,0]
[null,null,null,"Not modellable",{"$f":"Import!E36371","v":0},{"$f":"Import!E36374","v":0},{"$f":"Import!E36377","v":0},{"$f":"Import!E36380","v":0},{"$f":"Import!E36383","v":0},{"$f":"Import!E36386","v":0},0,0,0]
[null,null,null,"Total",{"$f":"SUM(E10:E11)","v":0},0,0,0,0,0,0,0,0]
[]
[null,2,"For those contracts that are written by the insurance group that may be modelled, provide splits of those that are:"]
[]
[null,null,null,null,{"$f":"+E7","v":"U.S. specific contracts - all exposures"},null,null,{"$f":"+H7","v":"All other contracts - all exposures"},null,null,"Total"]
[null,null,null,null,"Contract count","Gross limit provided ","Net limit provided","Contract count","Gross limit provided ","Net limit provided","Contract count","Gross limit provided ","Net limit provided"]
[null,null,null,null,null,"US$M","US$M",null,"US$M","US$M",null,"US$M","US$M"]
[null,null,null,"modelled",{"$f":"Import!E36388","v":0},{"$f":"Import!E36391","v":0},{"$f":"Import!E36394","v":0},{"$f":"Import!E36397","v":0},{"$f":"Import!E36400","v":0},{"$f":"Import!E36403","v":0},{"$f":"E19+H19","v":0},0,0]
[null,null,null,"Not modelled",{"$f":"Import!E36389","v":0},{"$f":"Import!E36392","v":0},{"$f":"Import!E36395","v":0},{"$f":"Import!E36398","v":0},{"$f":"Import!E36401","v":0},{"$f":"Import!E36404","v":0},0,0,0]
[null,null,null,"Total",{"$f":"SUM(E19:E20)","v":0},0,0,0,0,0,0,0,0]
[]
[null,3,"For those contracts that are written by the insurance group that are modelled, provide splits of those that are:"]
[]
[null,null,null,null,{"$f":"+E7","v":"U.S. specific contracts - all exposures"},null,null,{"$f":"+H7","v":"All other contracts - all exposures"},null,null,"Total"]
[null,null,null,null,"Contract count","Gross limit provided ","Net limit provided","Contract count","Gross limit provided ","Net limit provided","Contract count","Gross limit provided ","Net limit provided"]
[null,null,null,null,null,"US$M","US$M",null,"US$M","US$M",null,"US$M","US$M"]
[null,null,null,"Detailed exposure data",{"$f":"Import!E36406","v":0},{"$f":"Import!E36412","v":0},{"$f":"Import!E36418","v":0},{"$f":"Import!E36424","v":0},{"$f":"Import!E36430","v":0},{"$f":"Import!E36436","v":0},{"$f":"E28+H28","v":0},0,0]
[null,null,null,"Aggregate exposure data",{"$f":"Import!E36407","v":0},{"$f":"Import!E36413","v":0},{"$f":"Import!E36419","v":0},{"$f":"Import!E36425","v":0},{"$f":"Import!E36431","v":0},{"$f":"Import!E36437","v":0},0,0,0]
[null,null,"A proxy peer insurer is selected and losses are derived from this insurer",null,{"$f":"Import!E36408","v":0},{"$f":"Import!E36414","v":0},{"$f":"Import!E36420","v":0},{"$f":"Import!E36426","v":0},{"$f":"Import!E36432","v":0},{"$f":"Import!E36438","v":0},0,0,0]
[null,null,"Derived from an industry loss curve utilising market share",null,{"$f":"Import!E36409","v":0},{"$f":"Import!E36415","v":0},{"$f":"Import!E36421","v":0},{"$f":"Import!E36427","v":0},{"$f":"Import!E36433","v":0},{"$f":"Import!E36439","v":0},0,0,0]
[null,null,null,"Other",{"$f":"Import!E36410","v":0},{"$f":"Import!E36416","v":0},{"$f":"Import!E36422","v":0},{"$f":"Import!E36428","v":0},{"$f":"Import!E36434","v":0},{"$f":"Import!E36440","v":0},0,0,0]
[null,null,null,"Total",{"$f":"SUM(E28:E32)","v":0},0,0,0,0,0,0,0,0]
[]
[null,null,"If other is selected, describe the methodology as appropriate:"]
[null,null,{"$f":"Import!E36442","v":0}]
[]
[null,4,"For those contracts that are written by the insurance group that may be modelled (but are not modelled), provide splits of those that are: "]
[]
[null,null,null,null,{"$f":"+E7","v":"U.S. specific contracts - all exposures"},null,null,{"$f":"+H7","v":"All other contracts - all exposures"},null,null,"Total"]
[null,null,null,null,"Contract count","Gross limit provided ","Net limit provided","Contract count","Gross limit provided ","Net limit provided","Contract count","Gross limit provided ","Net limit provided"]
[null,null,null,null,null,"US$M","US$M",null,"US$M","US$M",null,"US$M","US$M"]
[null,null,null,"Data deficient",{"$f":"Import!E36443","v":0},{"$f":"Import!E36447","v":0},{"$f":"Import!E36451","v":0},{"$f":"Import!E36455","v":0},{"$f":"Import!E36459","v":0},{"$f":"Import!E36463","v":0},{"$f":"E43+H43","v":0},0,0]
[null,null,null,"Model deficient",{"$f":"Import!E36444","v":0},{"$f":"Import!E36448","v":0},{"$f":"Import!E36452","v":0},{"$f":"Import!E36456","v":0},{"$f":"Import!E36460","v":0},{"$f":"Import!E36464","v":0},0,0,0]
[null,null,null,"Other",{"$f":"Import!E36445","v":0},{"$f":"Import!E36449","v":0},{"$f":"Import!E36453","v":0},{"$f":"Import!E36457","v":0},{"$f":"Import!E36461","v":0},{"$f":"Import!E36465","v":0},0,0,0]
[null,null,null,"Total",{"$f":"SUM(E43:E45)","v":0},0,0,0,0,0,0,0,0]
[]
[null,null,"If other is selected, describe the reasons for not modelling the contract(s):"]
[null,null,{"$f":"Import!E36467","v":0}]
[]
[null,5,"For contracts that are written by the insurance group that may be modelled (but are not modelled), describe what the members of the insurance group do from an accumulation perspective."]
[]
[null,null,{"$f":"Import!E36468","v":0}]
[]
[null,6,"For contracts that are written by the insurance group that are unable to be modelled, provide splits of those that are:"]
[]
[null,null,null,null,{"$f":"+E7","v":"U.S. specific contracts - all exposures"},null,null,{"$f":"+H7","v":"All other contracts - all exposures"},null,null,"Total"]
[null,null,null,null,"Contract count","Gross limit provided ","Net limit provided","Contract count","Gross limit provided ","Net limit provided","Contract count","Gross limit provided ","Net limit provided"]
[null,null,null,null,null,"US$M","US$M",null,"US$M","US$M",null,"US$M","US$M"]
[null,null,null,"Data deficient",{"$f":"Import!E36469","v":0},{"$f":"Import!E36474","v":0},{"$f":"Import!E36479","v":0},{"$f":"Import!E36484","v":0},{"$f":"Import!E36489","v":0},{"$f":"Import!E36494","v":0},{"$f":"E60+H60","v":0},0,0]
[null,null,null,"No catastrophe model exists",{"$f":"Import!E36470","v":0},{"$f":"Import!E36475","v":0},{"$f":"Import!E36480","v":0},{"$f":"Import!E36485","v":0},{"$f":"Import!E36490","v":0},{"$f":"Import!E36495","v":0},0,0,0]
[null,null,null,"Model deficient",{"$f":"Import!E36471","v":0},{"$f":"Import!E36476","v":0},{"$f":"Import!E36481","v":0},{"$f":"Import!E36486","v":0},{"$f":"Import!E36491","v":0},{"$f":"Import!E36496","v":0},0,0,0]
[null,null,null,"Other",{"$f":"Import!E36472","v":0},{"$f":"Import!E36477","v":0},{"$f":"Import!E36482","v":0},{"$f":"Import!E36487","v":0},{"$f":"Import!E36492","v":0},{"$f":"Import!E36497","v":0},0,0,0]
[null,null,null,"Total",{"$f":"SUM(E60:E63)","v":0},0,0,0,0,0,0,0,0]
[]
[null,null,"If other is selected, describe the reasons for not modelling the contract(s):"]
[null,null,{"$f":"Import!E36499","v":0}]
[]
[]
[null,7,"What percentage of total net premiums written represents contracts with no limits?",null,null,null,null,null,{"$f":"Import!E36500","v":0}]
[]
[null,8,"For contracts that are written by the insurance group that are not modellable, describe what the members of the insurance group do from an accumulation perspective."]
[]
[null,null,{"$f":"Import!E36501","v":0}]
[]
[null,9,"If there are contracts that are written by the insurance group that have no occurrence limits or where TIV has not been included in the exposure in the above exhibits, describe how this exposure is included in the above data."]
[]
[null,null,{"$f":"Import!E36502","v":0}]

{"sheet":"Schedule X(g)","index":77,"n_rows":100,"n_cols":9,"rows_kept":100,"cut":false,"hidden":false,"merged":[[24,2,24,8],[2,1,2,2],[6,3,6,4],[6,5,6,6],[6,7,6,8],[20,2,22,8]]}
[null,"CATASTROPHE RISK RETURN:REINSURANCE DISCLOSURES (TABLE 15F)",null,null,null,null,null,null,{"$f":"HYPERLINK(\"#'Index'!A1\",\"Return to Index\")","v":"Return to Index"}]
[null,{"$f":"'Group Information'!C9","v":"Enter Parent Company Name"}]
[null,{"$f":"'Group Information'!C3+1","v":"2024-01-01"},null,null,null,null,null,null,"Schedule X(g)"]
[]
[null,null,"Reinsurance or Retro information:"]
[]
[null,null,null,"U.S. specific contracts",null,"Worldwide contracts",null,"All other contracts"]
[null,null,null,"Premium ","Occurrence Limit Provided ","Premium ","Occurrence Limit provided ","Premium ","Occurrence Limit provided "]
[null,null,null,"US$M","US$M","US$M","US$M","US$M","US$M"]
[null,null,"Insurance-linked securities protection",{"$f":"Import!E36504","v":0},{"$f":"Import!E36514","v":0},{"$f":"Import!E36524","v":0},{"$f":"Import!E36534","v":0},{"$f":"Import!E36544","v":0},{"$f":"Import!E36554","v":0}]
[null,null,{"$f":"+C93","v":"Industry loss warranty contracts"},{"$f":"Import!E36505","v":0},{"$f":"Import!E36515","v":0},{"$f":"Import!E36525","v":0},{"$f":"Import!E36535","v":0},{"$f":"Import!E36545","v":0},{"$f":"Import!E36555","v":0}]
[null,null,{"$f":"+C94","v":"Other contracts and non-traditional methods of risk mitigation/assumption"},{"$f":"Import!E36506","v":0},{"$f":"Import!E36516","v":0},{"$f":"Import!E36526","v":0},{"$f":"Import!E36536","v":0},{"$f":"Import!E36546","v":0},{"$f":"Import!E36556","v":0}]
[null,null,{"$f":"+C95","v":"Property catastrophe contracts"},{"$f":"Import!E36507","v":0},{"$f":"Import!E36517","v":0},{"$f":"Import!E36527","v":0},{"$f":"Import!E36537","v":0},{"$f":"Import!E36547","v":0},{"$f":"Import!E36557","v":0}]
[null,null,"Catastrophe swaps",{"$f":"Import!E36508","v":0},{"$f":"Import!E36518","v":0},{"$f":"Import!E36528","v":0},{"$f":"Import!E36538","v":0},{"$f":"Import!E36548","v":0},{"$f":"Import!E36558","v":0}]
[null,null,{"$f":"+C97","v":"Property per risk contracts"},{"$f":"Import!E36509","v":0},{"$f":"Import!E36519","v":0},{"$f":"Import!E36529","v":0},{"$f":"Import!E36539","v":0},{"$f":"Import!E36549","v":0},{"$f":"Import!E36559","v":0}]
[null,null,{"$f":"+C98","v":"Property retro contracts"},{"$f":"Import!E36510","v":0},{"$f":"Import!E36520","v":0},{"$f":"Import!E36530","v":0},{"$f":"Import!E36540","v":0},{"$f":"Import!E36550","v":0},{"$f":"Import!E36560","v":0}]
[null,null,{"$f":"+C99","v":"Quota share contracts"},{"$f":"Import!E36511","v":0},{"$f":"Import!E36521","v":0},{"$f":"Import!E36531","v":0},{"$f":"Import!E36541","v":0},{"$f":"Import!E36551","v":0},{"$f":"Import!E36561","v":0}]
[null,null,{"$f":"+C100","v":"Surplus share contracts"},{"$f":"Import!E36512","v":0},{"$f":"Import!E36522","v":0},{"$f":"Import!E36532","v":0},{"$f":"Import!E36542","v":0},{"$f":"Import!E36552","v":0},{"$f":"Import!E36562","v":0}]
[null,null,"Total",{"$f":"SUM(D10:D18)","v":0},0,0,0,0,0]
[]
[null,null,"If there are reinsurance or retro contracts that are purchased by the insurance group that have no occurrence or aggregate limits, provide details below for the total premiums ceded, description of the underlying lines of business covered, territorial coverage limitations and details of the natural, man-made and pandemic perils covered on an aggregate basis:"]
[]
[]
[]
[null,null,{"$f":"Import!E36564","v":0}]
[]
[]
[]
[]
[]
[]
[]
[]
[]
[]
[]
[]
[]
[]
[]
[]
[]
[]
[]
[]
[]
[]
[]
[]
[]
[]
[]
[]
[]
[]
[]
[]
[]
[]
[]
[]
[]
[]
[]
[]
[]
[]
[]
[]
[]
[]
[]
[]
[]
[]
[null,null,"What proportion of contracts that you participate on include special termination clauses?"]
[null,null,null,"None",null,null,"Count"]
[null,null,null,"0% to 4.9%",null,null,"Guestimate"]
[null,null,null,"5.0% to 9.9%",null,null,"Estimate"]
[null,null,null,"10.0% to 19.9%",null,null,"Exposure"]
[null,null,null,"20.0% to 29.9%",null,null,"Premium"]
[null,null,null,"30.0% to 39.9%"]
[null,null,null,"40.0% to 49.9%"]
[null,null,null,"50.0% to 59.9%"]
[null,null,null,"60.0% to 69.9%"]
[null,null,null,"70.0% to 79.9%"]
[null,null,null,"80.0% to 89.9%"]
[null,null,null,"90.0% to 99.9%"]
[null,null,null,1]
[]
[null,null,"For reinsurance or retro purchased to protect against natural catastrophe exposures please provide approximate premium and occurrence limit protection by type of protection"]
[null,null,"Insurance linked securities protection"]
[null,null,"Industry loss warranty contracts"]
[null,null,"Other contracts and non-traditional methods of risk mitigation/assumption"]
[null,null,"Property catastrophe contracts"]
[null,null,"Catastrophe swaps"]
[null,null,"Property per risk contracts"]
[null,null,"Property retro contracts"]
[null,null,"Quota share contracts"]
[null,null,"Surplus share contracts"]

{"sheet":"Schedule X(h)","index":78,"n_rows":33,"n_cols":11,"rows_kept":33,"cut":false,"hidden":false,"merged":[[23,1,32,1],[8,1,17,1],[2,1,2,3]]}
[null,"CATASTROPHE RISK RETURN: INSURANCE TERROR EXPOSURE (TABLE 15G)",null,null,null,null,null,null,null,null,{"$f":"HYPERLINK(\"#'Index'!A1\",\"Return to Index\")","v":"Return to Index"}]
[null,{"$f":"'Group Information'!C9","v":"Enter Parent Company Name"}]
[null,{"$f":"'Group Information'!C3+1","v":"2024-01-01"},null,null,null,null,null,null,null,null,"Schedule X(h) "]
[]
[null,"CONVENTIONAL INSURANCE TERRORISM EXPOSURE - 150M DEFINED GEOGRAPHICAL RADIUS "]
[]
[null,null,null,"U.S. State/ Province\n (if applicable)","Country","Direct terrorism property exposure","Total gross exposure ","TRIP or other terror pool recoverables if any ","Reinsurance recoveries if any","Total net exposure ","Target location (if known)"]
[null,null,null,null,null,"US$M","US$M","US$M","US$M","US$M"]
[null,"Conventional terrorism exposure",1,{"$f":"Import!E36566","v":0},{"$f":"Import!E36576","v":0},{"$f":"Import!E36586","v":0},{"$f":"Import!E36596","v":0},{"$f":"Import!E36606","v":0},{"$f":"Import!E36616","v":0},{"$f":"G9-H9-I9","v":0},{"$f":"Import!E36626","v":0}]
[null,null,{"$f":"C9+1","v":2},{"$f":"Import!E36567","v":0},{"$f":"Import!E36577","v":0},{"$f":"Import!E36587","v":0},{"$f":"Import!E36597","v":0},{"$f":"Import!E36607","v":0},{"$f":"Import!E36617","v":0},{"$f":"G10-H10-I10","v":0},{"$f":"Import!E36627","v":0}]
[null,null,3,{"$f":"Import!E36568","v":0},{"$f":"Import!E36578","v":0},{"$f":"Import!E36588","v":0},{"$f":"Import!E36598","v":0},{"$f":"Import!E36608","v":0},{"$f":"Import!E36618","v":0},0,{"$f":"Import!E36628","v":0}]
[null,null,4,{"$f":"Import!E36569","v":0},{"$f":"Import!E36579","v":0},{"$f":"Import!E36589","v":0},{"$f":"Import!E36599","v":0},{"$f":"Import!E36609","v":0},{"$f":"Import!E36619","v":0},0,{"$f":"Import!E36629","v":0}]
[null,null,5,{"$f":"Import!E36570","v":0},{"$f":"Import!E36580","v":0},{"$f":"Import!E36590","v":0},{"$f":"Import!E36600","v":0},{"$f":"Import!E36610","v":0},{"$f":"Import!E36620","v":0},0,{"$f":"Import!E36630","v":0}]
[null,null,6,{"$f":"Import!E36571","v":0},{"$f":"Import!E36581","v":0},{"$f":"Import!E36591","v":0},{"$f":"Import!E36601","v":0},{"$f":"Import!E36611","v":0},{"$f":"Import!E36621","v":0},0,{"$f":"Import!E36631","v":0}]
[null,null,7,{"$f":"Import!E36572","v":0},{"$f":"Import!E36582","v":0},{"$f":"Import!E36592","v":0},{"$f":"Import!E36602","v":0},{"$f":"Import!E36612","v":0},{"$f":"Import!E36622","v":0},0,{"$f":"Import!E36632","v":0}]
[null,null,8,{"$f":"Import!E36573","v":0},{"$f":"Import!E36583","v":0},{"$f":"Import!E36593","v":0},{"$f":"Import!E36603","v":0},{"$f":"Import!E36613","v":0},{"$f":"Import!E36623","v":0},0,{"$f":"Import!E36633","v":0}]
[null,null,9,{"$f":"Import!E36574","v":0},{"$f":"Import!E36584","v":0},{"$f":"Import!E36594","v":0},{"$f":"Import!E36604","v":0},{"$f":"Import!E36614","v":0},{"$f":"Import!E36624","v":0},0,{"$f":"Import!E36634","v":0}]
[null,null,10,{"$f":"Import!E36575","v":0},{"$f":"Import!E36585","v":0},{"$f":"Import!E36595","v":0},{"$f":"Import!E36605","v":0},{"$f":"Import!E36615","v":0},{"$f":"Import!E36625","v":0},0,{"$f":"Import!E36635","v":0}]
[]
[null,"NBCR INSURANCE TERRORISM EXPOSURE - STATE/COUNTRY"]
[]
[null,null,null,"U.S. State/ Province\n (if applicable)","Country","Direct terrorism property exposure","Total gross exposure ","TRIP or other sovereign terror pool recoverables if any","Reinsurance recoverable limits if any","Total net exposure "]
[null,null,null,null,null,"US$M","US$M","US$M","US$M","US$M"]
[null,"NBCR terrorism exposure",1,{"$f":"Import!E36636","v":0},{"$f":"Import!E36646","v":0},{"$f":"Import!E36656","v":0},{"$f":"Import!E36666","v":0},{"$f":"Import!E36676","v":0},{"$f":"Import!E36686","v":0},{"$f":"G24-H24-I24","v":0}]
[null,null,{"$f":"C24+1","v":2},{"$f":"Import!E36637","v":0},{"$f":"Import!E36647","v":0},{"$f":"Import!E36657","v":0},{"$f":"Import!E36667","v":0},{"$f":"Import!E36677","v":0},{"$f":"Import!E36687","v":0},{"$f":"G25-H25-I25","v":0}]
[null,null,3,{"$f":"Import!E36638","v":0},{"$f":"Import!E36648","v":0},{"$f":"Import!E36658","v":0},{"$f":"Import!E36668","v":0},{"$f":"Import!E36678","v":0},{"$f":"Import!E36688","v":0},0]
[null,null,4,{"$f":"Import!E36639","v":0},{"$f":"Import!E36649","v":0},{"$f":"Import!E36659","v":0},{"$f":"Import!E36669","v":0},{"$f":"Import!E36679","v":0},{"$f":"Import!E36689","v":0},0]
[null,null,5,{"$f":"Import!E36640","v":0},{"$f":"Import!E36650","v":0},{"$f":"Import!E36660","v":0},{"$f":"Import!E36670","v":0},{"$f":"Import!E36680","v":0},{"$f":"Import!E36690","v":0},0]
[null,null,6,{"$f":"Import!E36641","v":0},{"$f":"Import!E36651","v":0},{"$f":"Import!E36661","v":0},{"$f":"Import!E36671","v":0},{"$f":"Import!E36681","v":0},{"$f":"Import!E36691","v":0},0]
[null,null,7,{"$f":"Import!E36642","v":0},{"$f":"Import!E36652","v":0},{"$f":"Import!E36662","v":0},{"$f":"Import!E36672","v":0},{"$f":"Import!E36682","v":0},{"$f":"Import!E36692","v":0},0]
[null,null,8,{"$f":"Import!E36643","v":0},{"$f":"Import!E36653","v":0},{"$f":"Import!E36663","v":0},{"$f":"Import!E36673","v":0},{"$f":"Import!E36683","v":0},{"$f":"Import!E36693","v":0},0]
[null,null,9,{"$f":"Import!E36644","v":0},{"$f":"Import!E36654","v":0},{"$f":"Import!E36664","v":0},{"$f":"Import!E36674","v":0},{"$f":"Import!E36684","v":0},{"$f":"Import!E36694","v":0},0]
[null,null,10,{"$f":"Import!E36645","v":0},{"$f":"Import!E36655","v":0},{"$f":"Import!E36665","v":0},{"$f":"Import!E36675","v":0},{"$f":"Import!E36685","v":0},{"$f":"Import!E36695","v":0},0]

{"sheet":"Schedule X(i)","index":79,"n_rows":33,"n_cols":11,"rows_kept":33,"cut":false,"hidden":false,"merged":[[8,2,17,2],[23,2,32,2],[2,1,2,4]]}
[null,"CATASTROPHE RISK RETURN: REINSURANCE TERRORISM LIMITS (TABLE 15H) ",null,null,null,null,null,null,null,null,{"$f":"HYPERLINK(\"#'Index'!A1\",\"Return to Index\")","v":"Return to Index"}]
[null,{"$f":"'Group Information'!C9","v":"Enter Parent Company Name"}]
[null,{"$f":"'Group Information'!C3+1","v":"2024-01-01"},null,null,null,null,null,null,null,null,"Schedule X(i) "]
[]
[null,"CONVENTIONAL REINSURANCE TERRORISM EXPOSURE - 150M DEFINED GEOGRAPHICAL RADIUS "]
[]
[null,null,null,null,"U.S. State/Province \n(if applicable)","Country","Direct reinsurance limits exposed to terrorism","Total gross reinsurance limits exposed to terrorism ","TRIP or other terror pool recoverables if any ","Reinsurance or retro recoveries if any","Total net reinsurance limits exposed to terrorism "]
[null,null,null,null,null,null,"US$M","US$M","US$M","US$M","US$M"]
[null,null,"Conventional terrorism exposure",1,{"$f":"Import!E36697","v":0},{"$f":"Import!E36707","v":0},{"$f":"Import!E36717","v":0},{"$f":"Import!E36727","v":0},{"$f":"Import!E36737","v":0},{"$f":"Import!E36747","v":0},{"$f":"H9-I9-J9","v":0}]
[null,null,null,{"$f":"D9+1","v":2},{"$f":"Import!E36698","v":0},{"$f":"Import!E36708","v":0},{"$f":"Import!E36718","v":0},{"$f":"Import!E36728","v":0},{"$f":"Import!E36738","v":0},{"$f":"Import!E36748","v":0},{"$f":"H10-I10-J10","v":0}]
[null,null,null,3,{"$f":"Import!E36699","v":0},{"$f":"Import!E36709","v":0},{"$f":"Import!E36719","v":0},{"$f":"Import!E36729","v":0},{"$f":"Import!E36739","v":0},{"$f":"Import!E36749","v":0},0]
[null,null,null,4,{"$f":"Import!E36700","v":0},{"$f":"Import!E36710","v":0},{"$f":"Import!E36720","v":0},{"$f":"Import!E36730","v":0},{"$f":"Import!E36740","v":0},{"$f":"Import!E36750","v":0},0]
[null,null,null,5,{"$f":"Import!E36701","v":0},{"$f":"Import!E36711","v":0},{"$f":"Import!E36721","v":0},{"$f":"Import!E36731","v":0},{"$f":"Import!E36741","v":0},{"$f":"Import!E36751","v":0},0]
[null,null,null,6,{"$f":"Import!E36702","v":0},{"$f":"Import!E36712","v":0},{"$f":"Import!E36722","v":0},{"$f":"Import!E36732","v":0},{"$f":"Import!E36742","v":0},{"$f":"Import!E36752","v":0},0]
[null,null,null,7,{"$f":"Import!E36703","v":0},{"$f":"Import!E36713","v":0},{"$f":"Import!E36723","v":0},{"$f":"Import!E36733","v":0},{"$f":"Import!E36743","v":0},{"$f":"Import!E36753","v":0},0]
[null,null,null,8,{"$f":"Import!E36704","v":0},{"$f":"Import!E36714","v":0},{"$f":"Import!E36724","v":0},{"$f":"Import!E36734","v":0},{"$f":"Import!E36744","v":0},{"$f":"Import!E36754","v":0},0]
[null,null,null,9,{"$f":"Import!E36705","v":0},{"$f":"Import!E36715","v":0},{"$f":"Import!E36725","v":0},{"$f":"Import!E36735","v":0},{"$f":"Import!E36745","v":0},{"$f":"Import!E36755","v":0},0]
[null,null,null,10,{"$f":"Import!E36706","v":0},{"$f":"Import!E36716","v":0},{"$f":"Import!E36726","v":0},{"$f":"Import!E36736","v":0},{"$f":"Import!E36746","v":0},{"$f":"Import!E36756","v":0},0]
[]
[null,null,"NBCR REINSURANCE TERRORISM EXPOSURE - STATE/COUNTRY"]
[]
[null,null,null,null,"U.S. State/Province \n(if applicable)","Country","Direct reinsurance limits exposed to terrorism","Total gross reinsurance limits exposed to terrorism","TRIP or other terror pool recoverables if any ","Reinsurance or retro recoveries if any ","Total net reinsurance limits exposed to terrorism "]
[null,null,null,null,null,null,"US$M","US$M","US$M","US$M","US$M"]
[null,null,"NBCR terrorism exposure",1,{"$f":"Import!E36757","v":0},{"$f":"Import!E36767","v":0},{"$f":"Import!E36777","v":0},{"$f":"Import!E36787","v":0},{"$f":"Import!E36797","v":0},{"$f":"Import!E36807","v":0},{"$f":"H24-I24-J24","v":0}]
[null,null,null,{"$f":"D24+1","v":2},{"$f":"Import!E36758","v":0},{"$f":"Import!E36768","v":0},{"$f":"Import!E36778","v":0},{"$f":"Import!E36788","v":0},{"$f":"Import!E36798","v":0},{"$f":"Import!E36808","v":0},{"$f":"H25-I25-J25","v":0}]
[null,null,null,3,{"$f":"Import!E36759","v":0},{"$f":"Import!E36769","v":0},{"$f":"Import!E36779","v":0},{"$f":"Import!E36789","v":0},{"$f":"Import!E36799","v":0},{"$f":"Import!E36809","v":0},0]
[null,null,null,4,{"$f":"Import!E36760","v":0},{"$f":"Import!E36770","v":0},{"$f":"Import!E36780","v":0},{"$f":"Import!E36790","v":0},{"$f":"Import!E36800","v":0},{"$f":"Import!E36810","v":0},0]
[null,null,null,5,{"$f":"Import!E36761","v":0},{"$f":"Import!E36771","v":0},{"$f":"Import!E36781","v":0},{"$f":"Import!E36791","v":0},{"$f":"Import!E36801","v":0},{"$f":"Import!E36811","v":0},0]
[null,null,null,6,{"$f":"Import!E36762","v":0},{"$f":"Import!E36772","v":0},{"$f":"Import!E36782","v":0},{"$f":"Import!E36792","v":0},{"$f":"Import!E36802","v":0},{"$f":"Import!E36812","v":0},0]
[null,null,null,7,{"$f":"Import!E36763","v":0},{"$f":"Import!E36773","v":0},{"$f":"Import!E36783","v":0},{"$f":"Import!E36793","v":0},{"$f":"Import!E36803","v":0},{"$f":"Import!E36813","v":0},0]
[null,null,null,8,{"$f":"Import!E36764","v":0},{"$f":"Import!E36774","v":0},{"$f":"Import!E36784","v":0},{"$f":"Import!E36794","v":0},{"$f":"Import!E36804","v":0},{"$f":"Import!E36814","v":0},0]
[null,null,null,9,{"$f":"Import!E36765","v":0},{"$f":"Import!E36775","v":0},{"$f":"Import!E36785","v":0},{"$f":"Import!E36795","v":0},{"$f":"Import!E36805","v":0},{"$f":"Import!E36815","v":0},0]
[null,null,null,10,{"$f":"Import!E36766","v":0},{"$f":"Import!E36776","v":0},{"$f":"Import!E36786","v":0},{"$f":"Import!E36796","v":0},{"$f":"Import!E36806","v":0},{"$f":"Import!E36816","v":0},0]

{"sheet":"Schedule X(j)","index":80,"n_rows":19,"n_cols":5,"rows_kept":19,"cut":false,"hidden":false,"merged":[[2,1,2,2],[0,1,0,3]]}
[null,"CATASTROPHE RISK RETURN: ASSUMED EXCHANGE RATES  (TABLE 15I) ",null,null,{"$f":"HYPERLINK(\"#'Index'!A1\",\"Return to Index\")","v":"Return to Index"}]
[null,{"$f":"'Group Information'!C9","v":"Enter Parent Company Name"}]
[null,{"$f":"'Group Information'!C3+1","v":"2024-01-01"},null,null,"Schedule X(j) "]
[]
[null,"Insurance groups shall input to the exchange rate(s) used to translate the \"EP Curves Total\" (all region-perils combined) to United States dollar (US$)."]
[]
[null,null,"Currency","EP Curve - Total all perils combined"]
[null,null,"USD",1]
[null,null,"USD:EUR",{"$f":"Import!E36825","v":0}]
[null,null,"USD:GBP",{"$f":"Import!E36826","v":0}]
[null,null,"USD:Yen",{"$f":"Import!E36827","v":0}]
[null,null,"USD:CHF",{"$f":"Import!E36828","v":0}]
[null,null,{"$f":"Import!E36818","v":"USD:"},{"$f":"Import!E36829","v":0}]
[null,null,{"$f":"Import!E36819","v":"USD:"},{"$f":"Import!E36830","v":0}]
[null,null,{"$f":"Import!E36820","v":"USD:"},{"$f":"Import!E36831","v":0}]
[null,null,{"$f":"Import!E36821","v":"USD:"},{"$f":"Import!E36832","v":0}]
[null,null,{"$f":"Import!E36822","v":"USD:"},{"$f":"Import!E36833","v":0}]
[null,null,{"$f":"Import!E36823","v":"USD:"},{"$f":"Import!E36834","v":0}]
[null,null,{"$f":"Import!E36824","v":"USD:"},{"$f":"Import!E36835","v":0}]

{"sheet":"Schedule XIA","index":81,"n_rows":316,"n_cols":30,"rows_kept":316,"cut":false,"hidden":false,"merged":[[3,0,3,1]]}
["SCHEDULE OF REGULATED NON-INSURANCE FINANCIAL OPERATING ENTITIES",null,null,null,null,null,null,null,null,null,null,null,null,null,null,null,null,null,null,null,null,null,null,{"$f":"HYPERLINK(\"#'Index'!A1\",\"Return to Index\")","v":"Return to Index"}]
[null,null,null,null,null,null,null,null,null,null,null,null,null,null,null,null,null,null,null,null,null,null,null,null,null,"Energy","Control",null,null,{"$f":"'Group Information'!L1","v":"00:00:00"}]
[{"$f":"'Group Information'!C9","v":"Enter Parent Company Name"},null,null,null,null,null,null,null,null,null,null,null,null,null,null,null,null,null,null,null,null,null,null,null,null,"Materials","Significant Influence",null,null,{"$f":"'Group Information'!L2","v":"00:00:00"}]
[{"$f":"'Form 1EBS'!C3","v":"2023-12-31"},null,null,null,null,null,null,null,null,null,null,null,null,null,null,null,null,null,null,null,null,null,null,null,null,"Industrial"]
[{"$f":"'Form 1EBS'!C4","v":" ['000s]United States Dollars"},null,null,null,null,null,null,null,null,null,null,null,null,null,null,null,null,null,null,null,null,null,null,"SCHEDULE XI(A)",null,"Consumer Discretionary"]
[null,null,null,null,null,null,null,null,null,null,null,null,null,null,null,null,null,null,null,null,null,null,null,null,null,"Energy","Control"]
[null," Enter Number of Regulated Non-Insurance Entities",null,{"$f":"Import!E36837","v":0},null,null,null,null,null,null,null,null,null,null,null,null,null,null,null,null,null,null,null,null,null,"Consumer Staples"]
[null," Enter information for each entity",null,null,null,null,null,null,null,null,null,null,null,null,null,null,null,null,null,null,null,null,null,null,null,"Healthcare"]
[null,"(1)",null,"(2)",null,"(3)",null,"(4)",null,"(5)",null,"(6)",null,"(7)",null,"(8)",null,"(9)",null,"(10)",null,"(11)",null,"(12)",null,"Financial"]
[null,"Input Group Member Name \n(as inputted in Schedule V(b))",null,"Jurisdiction",null,"Sector Classification",null,"Strategic Purpose",null,"Entity Type",null,"Products & Services Offered",null,"Participation",null,"Percent of Participating Interest",null,"Assets",null,"Investment Amount (equity method)",null,"Input Regulatory Capital Requirement for Regulated Entities (RCR) (100%)",null,"Applicable Share of the RCR",null,"Information Technology"]
[null,null,null,null,null,null,null,null,null,null,null,null,null,null,null,null,null,null,null,null,null,null,null,null,null,"Telecommunication Services"]
[1,{"$f":"Import!E36838","v":0},null,{"$f":"IFERROR(VLOOKUP(B12,'Schedule V(b)'!$B$11:$Z$315,3,0),0)","v":0},null,{"$f":"IFERROR(VLOOKUP(B12,'Schedule V(b)'!$B$11:$Z$315,7,0),0)","v":"Select"},null,{"$f":"IFERROR(VLOOKUP(B12,'Schedule V(b)'!$B$11:$Z$315,9,0),0)","v":0},null,{"$f":"IFERROR(VLOOKUP(B12,'Schedule V(b)'!$B$11:$Z$315,11,0),0)","v":"Select"},null,{"$f":"IFERROR(VLOOKUP(B12,'Schedule V(b)'!$B$11:$Z$315,13,0),0)","v":0},null,{"$f":"IFERROR(VLOOKUP(B12,'Schedule V(b)'!$B$11:$Z$315,15,0),0)","v":"Select"},null,{"$f":"IFERROR(VLOOKUP(B12,'Schedule V(b)'!$B$11:$Z$315,17,0),0)","v":0},null,{"$f":"IFERROR(VLOOKUP(B12,'Schedule V(b)'!$B$11:$Z$315,25,0),0)","v":0},null,{"$f":"IFERROR(VLOOKUP(B12,'Schedule V(b)'!$B$11:$Z$315,23,0),0)","v":0},null,{"$f":"Import!E36873","v":0},null,{"$f":"MAX(0,(V12*P12))","v":0},null,"Utilities"]
[2,{"$f":"Import!E36839","v":0},null,{"$f":"IFERROR(VLOOKUP(B13,'Schedule V(b)'!$B$11:$Z$315,3,0),0)","v":0},null,{"$f":"IFERROR(VLOOKUP(B13,'Schedule V(b)'!$B$11:$Z$315,7,0),0)","v":"Select"},null,{"$f":"IFERROR(VLOOKUP(B13,'Schedule V(b)'!$B$11:$Z$315,9,0),0)","v":0},null,{"$f":"IFERROR(VLOOKUP(B13,'Schedule V(b)'!$B$11:$Z$315,11,0),0)","v":"Select"},null,{"$f":"IFERROR(VLOOKUP(B13,'Schedule V(b)'!$B$11:$Z$315,13,0),0)","v":0},null,{"$f":"IFERROR(VLOOKUP(B13,'Schedule V(b)'!$B$11:$Z$315,15,0),0)","v":"Select"},null,{"$f":"IFERROR(VLOOKUP(B13,'Schedule V(b)'!$B$11:$Z$315,17,0),0)","v":0},null,{"$f":"IFERROR(VLOOKUP(B13,'Schedule V(b)'!$B$11:$Z$315,25,0),0)","v":0},null,{"$f":"IFERROR(VLOOKUP(B13,'Schedule V(b)'!$B$11:$Z$315,23,0),0)","v":0},null,{"$f":"Import!E36874","v":0},null,{"$f":"$P13*$V13","v":0},null,"Other"]
[3,{"$f":"Import!E36840","v":0},null,{"$f":"IFERROR(VLOOKUP(B14,'Schedule V(b)'!$B$11:$Z$315,3,0),0)","v":0},null,{"$f":"IFERROR(VLOOKUP(B14,'Schedule V(b)'!$B$11:$Z$315,7,0),0)","v":"Select"},null,{"$f":"IFERROR(VLOOKUP(B14,'Schedule V(b)'!$B$11:$Z$315,9,0),0)","v":0},null,{"$f":"IFERROR(VLOOKUP(B14,'Schedule V(b)'!$B$11:$Z$315,11,0),0)","v":"Select"},null,{"$f":"IFERROR(VLOOKUP(B14,'Schedule V(b)'!$B$11:$Z$315,13,0),0)","v":0},null,{"$f":"IFERROR(VLOOKUP(B14,'Schedule V(b)'!$B$11:$Z$315,15,0),0)","v":"Select"},null,{"$f":"IFERROR(VLOOKUP(B14,'Schedule V(b)'!$B$11:$Z$315,17,0),0)","v":0},null,{"$f":"IFERROR(VLOOKUP(B14,'Schedule V(b)'!$B$11:$Z$315,25,0),0)","v":0},null,{"$f":"IFERROR(VLOOKUP(B14,'Schedule V(b)'!$B$11:$Z$315,23,0),0)","v":0},null,{"$f":"Import!E36875","v":0},null,0]
[4,{"$f":"Import!E36841","v":0},null,{"$f":"IFERROR(VLOOKUP(B15,'Schedule V(b)'!$B$11:$Z$315,3,0),0)","v":0},null,{"$f":"IFERROR(VLOOKUP(B15,'Schedule V(b)'!$B$11:$Z$315,7,0),0)","v":"Select"},null,{"$f":"IFERROR(VLOOKUP(B15,'Schedule V(b)'!$B$11:$Z$315,9,0),0)","v":0},null,{"$f":"IFERROR(VLOOKUP(B15,'Schedule V(b)'!$B$11:$Z$315,11,0),0)","v":"Select"},null,{"$f":"IFERROR(VLOOKUP(B15,'Schedule V(b)'!$B$11:$Z$315,13,0),0)","v":0},null,{"$f":"IFERROR(VLOOKUP(B15,'Schedule V(b)'!$B$11:$Z$315,15,0),0)","v":"Select"},null,{"$f":"IFERROR(VLOOKUP(B15,'Schedule V(b)'!$B$11:$Z$315,17,0),0)","v":0},null,{"$f":"IFERROR(VLOOKUP(B15,'Schedule V(b)'!$B$11:$Z$315,25,0),0)","v":0},null,{"$f":"IFERROR(VLOOKUP(B15,'Schedule V(b)'!$B$11:$Z$315,23,0),0)","v":0},null,{"$f":"Import!E36876","v":0},null,0]
[5,{"$f":"Import!E36842","v":0},null,{"$f":"IFERROR(VLOOKUP(B16,'Schedule V(b)'!$B$11:$Z$315,3,0),0)","v":0},null,{"$f":"IFERROR(VLOOKUP(B16,'Schedule V(b)'!$B$11:$Z$315,7,0),0)","v":"Select"},null,{"$f":"IFERROR(VLOOKUP(B16,'Schedule V(b)'!$B$11:$Z$315,9,0),0)","v":0},null,{"$f":"IFERROR(VLOOKUP(B16,'Schedule V(b)'!$B$11:$Z$315,11,0),0)","v":"Select"},null,{"$f":"IFERROR(VLOOKUP(B16,'Schedule V(b)'!$B$11:$Z$315,13,0),0)","v":0},null,{"$f":"IFERROR(VLOOKUP(B16,'Schedule V(b)'!$B$11:$Z$315,15,0),0)","v":"Select"},null,{"$f":"IFERROR(VLOOKUP(B16,'Schedule V(b)'!$B$11:$Z$315,17,0),0)","v":0},null,{"$f":"IFERROR(VLOOKUP(B16,'Schedule V(b)'!$B$11:$Z$315,25,0),0)","v":0},null,{"$f":"IFERROR(VLOOKUP(B16,'Schedule V(b)'!$B$11:$Z$315,23,0),0)","v":0},null,{"$f":"Import!E36877","v":0},null,0]
[6,{"$f":"Import!E36843","v":0},null,{"$f":"IFERROR(VLOOKUP(B17,'Schedule V(b)'!$B$11:$Z$315,3,0),0)","v":0},null,{"$f":"IFERROR(VLOOKUP(B17,'Schedule V(b)'!$B$11:$Z$315,7,0),0)","v":"Select"},null,{"$f":"IFERROR(VLOOKUP(B17,'Schedule V(b)'!$B$11:$Z$315,9,0),0)","v":0},null,{"$f":"IFERROR(VLOOKUP(B17,'Schedule V(b)'!$B$11:$Z$315,11,0),0)","v":"Select"},null,{"$f":"IFERROR(VLOOKUP(B17,'Schedule V(b)'!$B$11:$Z$315,13,0),0)","v":0},null,{"$f":"IFERROR(VLOOKUP(B17,'Schedule V(b)'!$B$11:$Z$315,15,0),0)","v":"Select"},null,{"$f":"IFERROR(VLOOKUP(B17,'Schedule V(b)'!$B$11:$Z$315,17,0),0)","v":0},null,{"$f":"IFERROR(VLOOKUP(B17,'Schedule V(b)'!$B$11:$Z$315,25,0),0)","v":0},null,{"$f":"IFERROR(VLOOKUP(B17,'Schedule V(b)'!$B$11:$Z$315,23,0),0)","v":0},null,{"$f":"Import!E36878","v":0},null,0]
[7,{"$f":"Import!E36844","v":0},null,{"$f":"IFERROR(VLOOKUP(B18,'Schedule V(b)'!$B$11:$Z$315,3,0),0)","v":0},null,{"$f":"IFERROR(VLOOKUP(B18,'Schedule V(b)'!$B$11:$Z$315,7,0),0)","v":"Select"},null,{"$f":"IFERROR(VLOOKUP(B18,'Schedule V(b)'!$B$11:$Z$315,9,0),0)","v":0},null,{"$f":"IFERROR(VLOOKUP(B18,'Schedule V(b)'!$B$11:$Z$315,11,0),0)","v":"Select"},null,{"$f":"IFERROR(VLOOKUP(B18,'Schedule V(b)'!$B$11:$Z$315,13,0),0)","v":0},null,{"$f":"IFERROR(VLOOKUP(B18,'Schedule V(b)'!$B$11:$Z$315,15,0),0)","v":"Select"},null,{"$f":"IFERROR(VLOOKUP(B18,'Schedule V(b)'!$B$11:$Z$315,17,0),0)","v":0},null,{"$f":"IFERROR(VLOOKUP(B18,'Schedule V(b)'!$B$11:$Z$315,25,0),0)","v":0},null,{"$f":"IFERROR(VLOOKUP(B18,'Schedule V(b)'!$B$11:$Z$315,23,0),0)","v":0},null,{"$f":"Import!E36879","v":0},null,0]
[8,{"$f":"Import!E36845","v":0},null,{"$f":"IFERROR(VLOOKUP(B19,'Schedule V(b)'!$B$11:$Z$315,3,0),0)","v":0},null,{"$f":"IFERROR(VLOOKUP(B19,'Schedule V(b)'!$B$11:$Z$315,7,0),0)","v":"Select"},null,{"$f":"IFERROR(VLOOKUP(B19,'Schedule V(b)'!$B$11:$Z$315,9,0),0)","v":0},null,{"$f":"IFERROR(VLOOKUP(B19,'Schedule V(b)'!$B$11:$Z$315,11,0),0)","v":"Select"},null,{"$f":"IFERROR(VLOOKUP(B19,'Schedule V(b)'!$B$11:$Z$315,13,0),0)","v":0},null,{"$f":"IFERROR(VLOOKUP(B19,'Schedule V(b)'!$B$11:$Z$315,15,0),0)","v":"Select"},null,{"$f":"IFERROR(VLOOKUP(B19,'Schedule V(b)'!$B$11:$Z$315,17,0),0)","v":0},null,{"$f":"IFERROR(VLOOKUP(B19,'Schedule V(b)'!$B$11:$Z$315,25,0),0)","v":0},null,{"$f":"IFERROR(VLOOKUP(B19,'Schedule V(b)'!$B$11:$Z$315,23,0),0)","v":0},null,{"$f":"Import!E36880","v":0},null,0]
[9,{"$f":"Import!E36846","v":0},null,{"$f":"IFERROR(VLOOKUP(B20,'Schedule V(b)'!$B$11:$Z$315,3,0),0)","v":0},null,{"$f":"IFERROR(VLOOKUP(B20,'Schedule V(b)'!$B$11:$Z$315,7,0),0)","v":"Select"},null,{"$f":"IFERROR(VLOOKUP(B20,'Schedule V(b)'!$B$11:$Z$315,9,0),0)","v":0},null,{"$f":"IFERROR(VLOOKUP(B20,'Schedule V(b)'!$B$11:$Z$315,11,0),0)","v":"Select"},null,{"$f":"IFERROR(VLOOKUP(B20,'Schedule V(b)'!$B$11:$Z$315,13,0),0)","v":0},null,{"$f":"IFERROR(VLOOKUP(B20,'Schedule V(b)'!$B$11:$Z$315,15,0),0)","v":"Select"},null,{"$f":"IFERROR(VLOOKUP(B20,'Schedule V(b)'!$B$11:$Z$315,17,0),0)","v":0},null,{"$f":"IFERROR(VLOOKUP(B20,'Schedule V(b)'!$B$11:$Z$315,25,0),0)","v":0},null,{"$f":"IFERROR(VLOOKUP(B20,'Schedule V(b)'!$B$11:$Z$315,23,0),0)","v":0},null,{"$f":"Import!E36881","v":0},null,0]
[10,{"$f":"Import!E36847","v":0},null,{"$f":"IFERROR(VLOOKUP(B21,'Schedule V(b)'!$B$11:$Z$315,3,0),0)","v":0},null,{"$f":"IFERROR(VLOOKUP(B21,'Schedule V(b)'!$B$11:$Z$315,7,0),0)","v":"Select"},null,{"$f":"IFERROR(VLOOKUP(B21,'Schedule V(b)'!$B$11:$Z$315,9,0),0)","v":0},null,{"$f":"IFERROR(VLOOKUP(B21,'Schedule V(b)'!$B$11:$Z$315,11,0),0)","v":"Select"},null,{"$f":"IFERROR(VLOOKUP(B21,'Schedule V(b)'!$B$11:$Z$315,13,0),0)","v":0},null,{"$f":"IFERROR(VLOOKUP(B21,'Schedule V(b)'!$B$11:$Z$315,15,0),0)","v":"Select"},null,{"$f":"IFERROR(VLOOKUP(B21,'Schedule V(b)'!$B$11:$Z$315,17,0),0)","v":0},null,{"$f":"IFERROR(VLOOKUP(B21,'Schedule V(b)'!$B$11:$Z$315,25,0),0)","v":0},null,{"$f":"IFERROR(VLOOKUP(B21,'Schedule V(b)'!$B$11:$Z$315,23,0),0)","v":0},null,{"$f":"Import!E36882","v":0},null,0]
[11,{"$f":"Import!E36848","v":0},null,{"$f":"IFERROR(VLOOKUP(B22,'Schedule V(b)'!$B$11:$Z$315,3,0),0)","v":0},null,{"$f":"IFERROR(VLOOKUP(B22,'Schedule V(b)'!$B$11:$Z$315,7,0),0)","v":"Select"},null,{"$f":"IFERROR(VLOOKUP(B22,'Schedule V(b)'!$B$11:$Z$315,9,0),0)","v":0},null,{"$f":"IFERROR(VLOOKUP(B22,'Schedule V(b)'!$B$11:$Z$315,11,0),0)","v":"Select"},null,{"$f":"IFERROR(VLOOKUP(B22,'Schedule V(b)'!$B$11:$Z$315,13,0),0)","v":0},null,{"$f":"IFERROR(VLOOKUP(B22,'Schedule V(b)'!$B$11:$Z$315,15,0),0)","v":"Select"},null,{"$f":"IFERROR(VLOOKUP(B22,'Schedule V(b)'!$B$11:$Z$315,17,0),0)","v":0},null,{"$f":"IFERROR(VLOOKUP(B22,'Schedule V(b)'!$B$11:$Z$315,25,0),0)","v":0},null,{"$f":"IFERROR(VLOOKUP(B22,'Schedule V(b)'!$B$11:$Z$315,23,0),0)","v":0},null,{"$f":"Import!E36883","v":0},null,0]
[12,{"$f":"Import!E36849","v":0},null,{"$f":"IFERROR(VLOOKUP(B23,'Schedule V(b)'!$B$11:$Z$315,3,0),0)","v":0},null,{"$f":"IFERROR(VLOOKUP(B23,'Schedule V(b)'!$B$11:$Z$315,7,0),0)","v":"Select"},null,{"$f":"IFERROR(VLOOKUP(B23,'Schedule V(b)'!$B$11:$Z$315,9,0),0)","v":0},null,{"$f":"IFERROR(VLOOKUP(B23,'Schedule V(b)'!$B$11:$Z$315,11,0),0)","v":"Select"},null,{"$f":"IFERROR(VLOOKUP(B23,'Schedule V(b)'!$B$11:$Z$315,13,0),0)","v":0},null,{"$f":"IFERROR(VLOOKUP(B23,'Schedule V(b)'!$B$11:$Z$315,15,0),0)","v":"Select"},null,{"$f":"IFERROR(VLOOKUP(B23,'Schedule V(b)'!$B$11:$Z$315,17,0),0)","v":0},null,{"$f":"IFERROR(VLOOKUP(B23,'Schedule V(b)'!$B$11:$Z$315,25,0),0)","v":0},null,{"$f":"IFERROR(VLOOKUP(B23,'Schedule V(b)'!$B$11:$Z$315,23,0),0)","v":0},null,{"$f":"Import!E36884","v":0},null,0]
[13,{"$f":"Import!E36850","v":0},null,{"$f":"IFERROR(VLOOKUP(B24,'Schedule V(b)'!$B$11:$Z$315,3,0),0)","v":0},null,{"$f":"IFERROR(VLOOKUP(B24,'Schedule V(b)'!$B$11:$Z$315,7,0),0)","v":"Select"},null,{"$f":"IFERROR(VLOOKUP(B24,'Schedule V(b)'!$B$11:$Z$315,9,0),0)","v":0},null,{"$f":"IFERROR(VLOOKUP(B24,'Schedule V(b)'!$B$11:$Z$315,11,0),0)","v":"Select"},null,{"$f":"IFERROR(VLOOKUP(B24,'Schedule V(b)'!$B$11:$Z$315,13,0),0)","v":0},null,{"$f":"IFERROR(VLOOKUP(B24,'Schedule V(b)'!$B$11:$Z$315,15,0),0)","v":"Select"},null,{"$f":"IFERROR(VLOOKUP(B24,'Schedule V(b)'!$B$11:$Z$315,17,0),0)","v":0},null,{"$f":"IFERROR(VLOOKUP(B24,'Schedule V(b)'!$B$11:$Z$315,25,0),0)","v":0},null,{"$f":"IFERROR(VLOOKUP(B24,'Schedule V(b)'!$B$11:$Z$315,23,0),0)","v":0},null,{"$f":"Import!E36885","v":0},null,0]
[14,{"$f":"Import!E36851","v":0},null,{"$f":"IFERROR(VLOOKUP(B25,'Schedule V(b)'!$B$11:$Z$315,3,0),0)","v":0},null,{"$f":"IFERROR(VLOOKUP(B25,'Schedule V(b)'!$B$11:$Z$315,7,0),0)","v":"Select"},null,{"$f":"IFERROR(VLOOKUP(B25,'Schedule V(b)'!$B$11:$Z$315,9,0),0)","v":0},null,{"$f":"IFERROR(VLOOKUP(B25,'Schedule V(b)'!$B$11:$Z$315,11,0),0)","v":"Select"},null,{"$f":"IFERROR(VLOOKUP(B25,'Schedule V(b)'!$B$11:$Z$315,13,0),0)","v":0},null,{"$f":"IFERROR(VLOOKUP(B25,'Schedule V(b)'!$B$11:$Z$315,15,0),0)","v":"Select"},null,{"$f":"IFERROR(VLOOKUP(B25,'Schedule V(b)'!$B$11:$Z$315,17,0),0)","v":0},null,{"$f":"IFERROR(VLOOKUP(B25,'Schedule V(b)'!$B$11:$Z$315,25,0),0)","v":0},null,{"$f":"IFERROR(VLOOKUP(B25,'Schedule V(b)'!$B$11:$Z$315,23,0),0)","v":0},null,{"$f":"Import!E36886","v":0},null,0]
[15,{"$f":"Import!E36852","v":0},null,{"$f":"IFERROR(VLOOKUP(B26,'Schedule V(b)'!$B$11:$Z$315,3,0),0)","v":0},null,{"$f":"IFERROR(VLOOKUP(B26,'Schedule V(b)'!$B$11:$Z$315,7,0),0)","v":"Select"},null,{"$f":"IFERROR(VLOOKUP(B26,'Schedule V(b)'!$B$11:$Z$315,9,0),0)","v":0},null,{"$f":"IFERROR(VLOOKUP(B26,'Schedule V(b)'!$B$11:$Z$315,11,0),0)","v":"Select"},null,{"$f":"IFERROR(VLOOKUP(B26,'Schedule V(b)'!$B$11:$Z$315,13,0),0)","v":0},null,{"$f":"IFERROR(VLOOKUP(B26,'Schedule V(b)'!$B$11:$Z$315,15,0),0)","v":"Select"},null,{"$f":"IFERROR(VLOOKUP(B26,'Schedule V(b)'!$B$11:$Z$315,17,0),0)","v":0},null,{"$f":"IFERROR(VLOOKUP(B26,'Schedule V(b)'!$B$11:$Z$315,25,0),0)","v":0},null,{"$f":"IFERROR(VLOOKUP(B26,'Schedule V(b)'!$B$11:$Z$315,23,0),0)","v":0},null,{"$f":"Import!E36887","v":0},null,0]
[16,{"$f":"Import!E36853","v":0},null,{"$f":"IFERROR(VLOOKUP(B27,'Schedule V(b)'!$B$11:$Z$315,3,0),0)","v":0},null,{"$f":"IFERROR(VLOOKUP(B27,'Schedule V(b)'!$B$11:$Z$315,7,0),0)","v":"Select"},null,{"$f":"IFERROR(VLOOKUP(B27,'Schedule V(b)'!$B$11:$Z$315,9,0),0)","v":0},null,{"$f":"IFERROR(VLOOKUP(B27,'Schedule V(b)'!$B$11:$Z$315,11,0),0)","v":"Select"},null,{"$f":"IFERROR(VLOOKUP(B27,'Schedule V(b)'!$B$11:$Z$315,13,0),0)","v":0},null,{"$f":"IFERROR(VLOOKUP(B27,'Schedule V(b)'!$B$11:$Z$315,15,0),0)","v":"Select"},null,{"$f":"IFERROR(VLOOKUP(B27,'Schedule V(b)'!$B$11:$Z$315,17,0),0)","v":0},null,{"$f":"IFERROR(VLOOKUP(B27,'Schedule V(b)'!$B$11:$Z$315,25,0),0)","v":0},null,{"$f":"IFERROR(VLOOKUP(B27,'Schedule V(b)'!$B$11:$Z$315,23,0),0)","v":0},null,{"$f":"Import!E36888","v":0},null,0]
[17,{"$f":"Import!E36854","v":0},null,{"$f":"IFERROR(VLOOKUP(B28,'Schedule V(b)'!$B$11:$Z$315,3,0),0)","v":0},null,{"$f":"IFERROR(VLOOKUP(B28,'Schedule V(b)'!$B$11:$Z$315,7,0),0)","v":"Select"},null,{"$f":"IFERROR(VLOOKUP(B28,'Schedule V(b)'!$B$11:$Z$315,9,0),0)","v":0},null,{"$f":"IFERROR(VLOOKUP(B28,'Schedule V(b)'!$B$11:$Z$315,11,0),0)","v":"Select"},null,{"$f":"IFERROR(VLOOKUP(B28,'Schedule V(b)'!$B$11:$Z$315,13,0),0)","v":0},null,{"$f":"IFERROR(VLOOKUP(B28,'Schedule V(b)'!$B$11:$Z$315,15,0),0)","v":"Select"},null,{"$f":"IFERROR(VLOOKUP(B28,'Schedule V(b)'!$B$11:$Z$315,17,0),0)","v":0},null,{"$f":"IFERROR(VLOOKUP(B28,'Schedule V(b)'!$B$11:$Z$315,25,0),0)","v":0},null,{"$f":"IFERROR(VLOOKUP(B28,'Schedule V(b)'!$B$11:$Z$315,23,0),0)","v":0},null,{"$f":"Import!E36889","v":0},null,0]
[18,{"$f":"Import!E36855","v":0},null,{"$f":"IFERROR(VLOOKUP(B29,'Schedule V(b)'!$B$11:$Z$315,3,0),0)","v":0},null,{"$f":"IFERROR(VLOOKUP(B29,'Schedule V(b)'!$B$11:$Z$315,7,0),0)","v":"Select"},null,{"$f":"IFERROR(VLOOKUP(B29,'Schedule V(b)'!$B$11:$Z$315,9,0),0)","v":0},null,{"$f":"IFERROR(VLOOKUP(B29,'Schedule V(b)'!$B$11:$Z$315,11,0),0)","v":"Select"},null,{"$f":"IFERROR(VLOOKUP(B29,'Schedule V(b)'!$B$11:$Z$315,13,0),0)","v":0},null,{"$f":"IFERROR(VLOOKUP(B29,'Schedule V(b)'!$B$11:$Z$315,15,0),0)","v":"Select"},null,{"$f":"IFERROR(VLOOKUP(B29,'Schedule V(b)'!$B$11:$Z$315,17,0),0)","v":0},null,{"$f":"IFERROR(VLOOKUP(B29,'Schedule V(b)'!$B$11:$Z$315,25,0),0)","v":0},null,{"$f":"IFERROR(VLOOKUP(B29,'Schedule V(b)'!$B$11:$Z$315,23,0),0)","v":0},null,{"$f":"Import!E36890","v":0},null,0]
[19,{"$f":"Import!E36856","v":0},null,{"$f":"IFERROR(VLOOKUP(B30,'Schedule V(b)'!$B$11:$Z$315,3,0),0)","v":0},null,{"$f":"IFERROR(VLOOKUP(B30,'Schedule V(b)'!$B$11:$Z$315,7,0),0)","v":"Select"},null,{"$f":"IFERROR(VLOOKUP(B30,'Schedule V(b)'!$B$11:$Z$315,9,0),0)","v":0},null,{"$f":"IFERROR(VLOOKUP(B30,'Schedule V(b)'!$B$11:$Z$315,11,0),0)","v":"Select"},null,{"$f":"IFERROR(VLOOKUP(B30,'Schedule V(b)'!$B$11:$Z$315,13,0),0)","v":0},null,{"$f":"IFERROR(VLOOKUP(B30,'Schedule V(b)'!$B$11:$Z$315,15,0),0)","v":"Select"},null,{"$f":"IFERROR(VLOOKUP(B30,'Schedule V(b)'!$B$11:$Z$315,17,0),0)","v":0},null,{"$f":"IFERROR(VLOOKUP(B30,'Schedule V(b)'!$B$11:$Z$315,25,0),0)","v":0},null,{"$f":"IFERROR(VLOOKUP(B30,'Schedule V(b)'!$B$11:$Z$315,23,0),0)","v":0},null,{"$f":"Import!E36891","v":0},null,0]
[20,{"$f":"Import!E36857","v":0},null,{"$f":"IFERROR(VLOOKUP(B31,'Schedule V(b)'!$B$11:$Z$315,3,0),0)","v":0},null,{"$f":"IFERROR(VLOOKUP(B31,'Schedule V(b)'!$B$11:$Z$315,7,0),0)","v":"Select"},null,{"$f":"IFERROR(VLOOKUP(B31,'Schedule V(b)'!$B$11:$Z$315,9,0),0)","v":0},null,{"$f":"IFERROR(VLOOKUP(B31,'Schedule V(b)'!$B$11:$Z$315,11,0),0)","v":"Select"},null,{"$f":"IFERROR(VLOOKUP(B31,'Schedule V(b)'!$B$11:$Z$315,13,0),0)","v":0},null,{"$f":"IFERROR(VLOOKUP(B31,'Schedule V(b)'!$B$11:$Z$315,15,0),0)","v":"Select"},null,{"$f":"IFERROR(VLOOKUP(B31,'Schedule V(b)'!$B$11:$Z$315,17,0),0)","v":0},null,{"$f":"IFERROR(VLOOKUP(B31,'Schedule V(b)'!$B$11:$Z$315,25,0),0)","v":0},null,{"$f":"IFERROR(VLOOKUP(B31,'Schedule V(b)'!$B$11:$Z$315,23,0),0)","v":0},null,{"$f":"Import!E36892","v":0},null,0]
[21,{"$f":"Import!E36858","v":0},null,{"$f":"IFERROR(VLOOKUP(B32,'Schedule V(b)'!$B$11:$Z$315,3,0),0)","v":0},null,{"$f":"IFERROR(VLOOKUP(B32,'Schedule V(b)'!$B$11:$Z$315,7,0),0)","v":"Select"},null,{"$f":"IFERROR(VLOOKUP(B32,'Schedule V(b)'!$B$11:$Z$315,9,0),0)","v":0},null,{"$f":"IFERROR(VLOOKUP(B32,'Schedule V(b)'!$B$11:$Z$315,11,0),0)","v":"Select"},null,{"$f":"IFERROR(VLOOKUP(B32,'Schedule V(b)'!$B$11:$Z$315,13,0),0)","v":0},null,{"$f":"IFERROR(VLOOKUP(B32,'Schedule V(b)'!$B$11:$Z$315,15,0),0)","v":"Select"},null,{"$f":"IFERROR(VLOOKUP(B32,'Schedule V(b)'!$B$11:$Z$315,17,0),0)","v":0},null,{"$f":"IFERROR(VLOOKUP(B32,'Schedule V(b)'!$B$11:$Z$315,25,0),0)","v":0},null,{"$f":"IFERROR(VLOOKUP(B32,'Schedule V(b)'!$B$11:$Z$315,23,0),0)","v":0},null,{"$f":"Import!E36893","v":0},null,0]
[22,{"$f":"Import!E36859","v":0},null,{"$f":"IFERROR(VLOOKUP(B33,'Schedule V(b)'!$B$11:$Z$315,3,0),0)","v":0},null,{"$f":"IFERROR(VLOOKUP(B33,'Schedule V(b)'!$B$11:$Z$315,7,0),0)","v":"Select"},null,{"$f":"IFERROR(VLOOKUP(B33,'Schedule V(b)'!$B$11:$Z$315,9,0),0)","v":0},null,{"$f":"IFERROR(VLOOKUP(B33,'Schedule V(b)'!$B$11:$Z$315,11,0),0)","v":"Select"},null,{"$f":"IFERROR(VLOOKUP(B33,'Schedule V(b)'!$B$11:$Z$315,13,0),0)","v":0},null,{"$f":"IFERROR(VLOOKUP(B33,'Schedule V(b)'!$B$11:$Z$315,15,0),0)","v":"Select"},null,{"$f":"IFERROR(VLOOKUP(B33,'Schedule V(b)'!$B$11:$Z$315,17,0),0)","v":0},null,{"$f":"IFERROR(VLOOKUP(B33,'Schedule V(b)'!$B$11:$Z$315,25,0),0)","v":0},null,{"$f":"IFERROR(VLOOKUP(B33,'Schedule V(b)'!$B$11:$Z$315,23,0),0)","v":0},null,{"$f":"Import!E36894","v":0},null,0]
[23,{"$f":"Import!E36860","v":0},null,{"$f":"IFERROR(VLOOKUP(B34,'Schedule V(b)'!$B$11:$Z$315,3,0),0)","v":0},null,{"$f":"IFERROR(VLOOKUP(B34,'Schedule V(b)'!$B$11:$Z$315,7,0),0)","v":"Select"},null,{"$f":"IFERROR(VLOOKUP(B34,'Schedule V(b)'!$B$11:$Z$315,9,0),0)","v":0},null,{"$f":"IFERROR(VLOOKUP(B34,'Schedule V(b)'!$B$11:$Z$315,11,0),0)","v":"Select"},null,{"$f":"IFERROR(VLOOKUP(B34,'Schedule V(b)'!$B$11:$Z$315,13,0),0)","v":0},null,{"$f":"IFERROR(VLOOKUP(B34,'Schedule V(b)'!$B$11:$Z$315,15,0),0)","v":"Select"},null,{"$f":"IFERROR(VLOOKUP(B34,'Schedule V(b)'!$B$11:$Z$315,17,0),0)","v":0},null,{"$f":"IFERROR(VLOOKUP(B34,'Schedule V(b)'!$B$11:$Z$315,25,0),0)","v":0},null,{"$f":"IFERROR(VLOOKUP(B34,'Schedule V(b)'!$B$11:$Z$315,23,0),0)","v":0},null,{"$f":"Import!E36895","v":0},null,0]
[24,{"$f":"Import!E36861","v":0},null,{"$f":"IFERROR(VLOOKUP(B35,'Schedule V(b)'!$B$11:$Z$315,3,0),0)","v":0},null,{"$f":"IFERROR(VLOOKUP(B35,'Schedule V(b)'!$B$11:$Z$315,7,0),0)","v":"Select"},null,{"$f":"IFERROR(VLOOKUP(B35,'Schedule V(b)'!$B$11:$Z$315,9,0),0)","v":0},null,{"$f":"IFERROR(VLOOKUP(B35,'Schedule V(b)'!$B$11:$Z$315,11,0),0)","v":"Select"},null,{"$f":"IFERROR(VLOOKUP(B35,'Schedule V(b)'!$B$11:$Z$315,13,0),0)","v":0},null,{"$f":"IFERROR(VLOOKUP(B35,'Schedule V(b)'!$B$11:$Z$315,15,0),0)","v":"Select"},null,{"$f":"IFERROR(VLOOKUP(B35,'Schedule V(b)'!$B$11:$Z$315,17,0),0)","v":0},null,{"$f":"IFERROR(VLOOKUP(B35,'Schedule V(b)'!$B$11:$Z$315,25,0),0)","v":0},null,{"$f":"IFERROR(VLOOKUP(B35,'Schedule V(b)'!$B$11:$Z$315,23,0),0)","v":0},null,{"$f":"Import!E36896","v":0},null,0]
[25,{"$f":"Import!E36862","v":0},null,{"$f":"IFERROR(VLOOKUP(B36,'Schedule V(b)'!$B$11:$Z$315,3,0),0)","v":0},null,{"$f":"IFERROR(VLOOKUP(B36,'Schedule V(b)'!$B$11:$Z$315,7,0),0)","v":"Select"},null,{"$f":"IFERROR(VLOOKUP(B36,'Schedule V(b)'!$B$11:$Z$315,9,0),0)","v":0},null,{"$f":"IFERROR(VLOOKUP(B36,'Schedule V(b)'!$B$11:$Z$315,11,0),0)","v":"Select"},null,{"$f":"IFERROR(VLOOKUP(B36,'Schedule V(b)'!$B$11:$Z$315,13,0),0)","v":0},null,{"$f":"IFERROR(VLOOKUP(B36,'Schedule V(b)'!$B$11:$Z$315,15,0),0)","v":"Select"},null,{"$f":"IFERROR(VLOOKUP(B36,'Schedule V(b)'!$B$11:$Z$315,17,0),0)","v":0},null,{"$f":"IFERROR(VLOOKUP(B36,'Schedule V(b)'!$B$11:$Z$315,25,0),0)","v":0},null,{"$f":"IFERROR(VLOOKUP(B36,'Schedule V(b)'!$B$11:$Z$315,23,0),0)","v":0},null,{"$f":"Import!E36897","v":0},null,0]
[26,{"$f":"Import!E36863","v":0},null,{"$f":"IFERROR(VLOOKUP(B37,'Schedule V(b)'!$B$11:$Z$315,3,0),0)","v":0},null,{"$f":"IFERROR(VLOOKUP(B37,'Schedule V(b)'!$B$11:$Z$315,7,0),0)","v":"Select"},null,{"$f":"IFERROR(VLOOKUP(B37,'Schedule V(b)'!$B$11:$Z$315,9,0),0)","v":0},null,{"$f":"IFERROR(VLOOKUP(B37,'Schedule V(b)'!$B$11:$Z$315,11,0),0)","v":"Select"},null,{"$f":"IFERROR(VLOOKUP(B37,'Schedule V(b)'!$B$11:$Z$315,13,0),0)","v":0},null,{"$f":"IFERROR(VLOOKUP(B37,'Schedule V(b)'!$B$11:$Z$315,15,0),0)","v":"Select"},null,{"$f":"IFERROR(VLOOKUP(B37,'Schedule V(b)'!$B$11:$Z$315,17,0),0)","v":0},null,{"$f":"IFERROR(VLOOKUP(B37,'Schedule V(b)'!$B$11:$Z$315,25,0),0)","v":0},null,{"$f":"IFERROR(VLOOKUP(B37,'Schedule V(b)'!$B$11:$Z$315,23,0),0)","v":0},null,{"$f":"Import!E36898","v":0},null,0]
[27,{"$f":"Import!E36864","v":0},null,{"$f":"IFERROR(VLOOKUP(B38,'Schedule V(b)'!$B$11:$Z$315,3,0),0)","v":0},null,{"$f":"IFERROR(VLOOKUP(B38,'Schedule V(b)'!$B$11:$Z$315,7,0),0)","v":"Select"},null,{"$f":"IFERROR(VLOOKUP(B38,'Schedule V(b)'!$B$11:$Z$315,9,0),0)","v":0},null,{"$f":"IFERROR(VLOOKUP(B38,'Schedule V(b)'!$B$11:$Z$315,11,0),0)","v":"Select"},null,{"$f":"IFERROR(VLOOKUP(B38,'Schedule V(b)'!$B$11:$Z$315,13,0),0)","v":0},null,{"$f":"IFERROR(VLOOKUP(B38,'Schedule V(b)'!$B$11:$Z$315,15,0),0)","v":"Select"},null,{"$f":"IFERROR(VLOOKUP(B38,'Schedule V(b)'!$B$11:$Z$315,17,0),0)","v":0},null,{"$f":"IFERROR(VLOOKUP(B38,'Schedule V(b)'!$B$11:$Z$315,25,0),0)","v":0},null,{"$f":"IFERROR(VLOOKUP(B38,'Schedule V(b)'!$B$11:$Z$315,23,0),0)","v":0},null,{"$f":"Import!E36899","v":0},null,0]
[28,{"$f":"Import!E36865","v":0},null,{"$f":"IFERROR(VLOOKUP(B39,'Schedule V(b)'!$B$11:$Z$315,3,0),0)","v":0},null,{"$f":"IFERROR(VLOOKUP(B39,'Schedule V(b)'!$B$11:$Z$315,7,0),0)","v":"Select"},null,{"$f":"IFERROR(VLOOKUP(B39,'Schedule V(b)'!$B$11:$Z$315,9,0),0)","v":0},null,{"$f":"IFERROR(VLOOKUP(B39,'Schedule V(b)'!$B$11:$Z$315,11,0),0)","v":"Select"},null,{"$f":"IFERROR(VLOOKUP(B39,'Schedule V(b)'!$B$11:$Z$315,13,0),0)","v":0},null,{"$f":"IFERROR(VLOOKUP(B39,'Schedule V(b)'!$B$11:$Z$315,15,0),0)","v":"Select"},null,{"$f":"IFERROR(VLOOKUP(B39,'Schedule V(b)'!$B$11:$Z$315,17,0),0)","v":0},null,{"$f":"IFERROR(VLOOKUP(B39,'Schedule V(b)'!$B$11:$Z$315,25,0),0)","v":0},null,{"$f":"IFERROR(VLOOKUP(B39,'Schedule V(b)'!$B$11:$Z$315,23,0),0)","v":0},null,{"$f":"Import!E36900","v":0},null,0]
[29,{"$f":"Import!E36866","v":0},null,{"$f":"IFERROR(VLOOKUP(B40,'Schedule V(b)'!$B$11:$Z$315,3,0),0)","v":0},null,{"$f":"IFERROR(VLOOKUP(B40,'Schedule V(b)'!$B$11:$Z$315,7,0),0)","v":"Select"},null,{"$f":"IFERROR(VLOOKUP(B40,'Schedule V(b)'!$B$11:$Z$315,9,0),0)","v":0},null,{"$f":"IFERROR(VLOOKUP(B40,'Schedule V(b)'!$B$11:$Z$315,11,0),0)","v":"Select"},null,{"$f":"IFERROR(VLOOKUP(B40,'Schedule V(b)'!$B$11:$Z$315,13,0),0)","v":0},null,{"$f":"IFERROR(VLOOKUP(B40,'Schedule V(b)'!$B$11:$Z$315,15,0),0)","v":"Select"},null,{"$f":"IFERROR(VLOOKUP(B40,'Schedule V(b)'!$B$11:$Z$315,17,0),0)","v":0},null,{"$f":"IFERROR(VLOOKUP(B40,'Schedule V(b)'!$B$11:$Z$315,25,0),0)","v":0},null,{"$f":"IFERROR(VLOOKUP(B40,'Schedule V(b)'!$B$11:$Z$315,23,0),0)","v":0},null,{"$f":"Import!E36901","v":0},null,0]
[30,{"$f":"Import!E36867","v":0},null,{"$f":"IFERROR(VLOOKUP(B41,'Schedule V(b)'!$B$11:$Z$315,3,0),0)","v":0},null,{"$f":"IFERROR(VLOOKUP(B41,'Schedule V(b)'!$B$11:$Z$315,7,0),0)","v":"Select"},null,{"$f":"IFERROR(VLOOKUP(B41,'Schedule V(b)'!$B$11:$Z$315,9,0),0)","v":0},null,{"$f":"IFERROR(VLOOKUP(B41,'Schedule V(b)'!$B$11:$Z$315,11,0),0)","v":"Select"},null,{"$f":"IFERROR(VLOOKUP(B41,'Schedule V(b)'!$B$11:$Z$315,13,0),0)","v":0},null,{"$f":"IFERROR(VLOOKUP(B41,'Schedule V(b)'!$B$11:$Z$315,15,0),0)","v":"Select"},null,{"$f":"IFERROR(VLOOKUP(B41,'Schedule V(b)'!$B$11:$Z$315,17,0),0)","v":0},null,{"$f":"IFERROR(VLOOKUP(B41,'Schedule V(b)'!$B$11:$Z$315,25,0),0)","v":0},null,{"$f":"IFERROR(VLOOKUP(B41,'Schedule V(b)'!$B$11:$Z$315,23,0),0)","v":0},null,{"$f":"Import!E36902","v":0},null,0]
[31,{"$f":"Import!E36868","v":0},null,{"$f":"IFERROR(VLOOKUP(B42,'Schedule V(b)'!$B$11:$Z$315,3,0),0)","v":0},null,{"$f":"IFERROR(VLOOKUP(B42,'Schedule V(b)'!$B$11:$Z$315,7,0),0)","v":"Select"},null,{"$f":"IFERROR(VLOOKUP(B42,'Schedule V(b)'!$B$11:$Z$315,9,0),0)","v":0},null,{"$f":"IFERROR(VLOOKUP(B42,'Schedule V(b)'!$B$11:$Z$315,11,0),0)","v":"Select"},null,{"$f":"IFERROR(VLOOKUP(B42,'Schedule V(b)'!$B$11:$Z$315,13,0),0)","v":0},null,{"$f":"IFERROR(VLOOKUP(B42,'Schedule V(b)'!$B$11:$Z$315,15,0),0)","v":"Select"},null,{"$f":"IFERROR(VLOOKUP(B42,'Schedule V(b)'!$B$11:$Z$315,17,0),0)","v":0},null,{"$f":"IFERROR(VLOOKUP(B42,'Schedule V(b)'!$B$11:$Z$315,25,0),0)","v":0},null,{"$f":"IFERROR(VLOOKUP(B42,'Schedule V(b)'!$B$11:$Z$315,23,0),0)","v":0},null,{"$f":"Import!E36903","v":0},null,0]
[32,{"$f":"Import!E36869","v":0},null,{"$f":"IFERROR(VLOOKUP(B43,'Schedule V(b)'!$B$11:$Z$315,3,0),0)","v":0},null,{"$f":"IFERROR(VLOOKUP(B43,'Schedule V(b)'!$B$11:$Z$315,7,0),0)","v":"Select"},null,{"$f":"IFERROR(VLOOKUP(B43,'Schedule V(b)'!$B$11:$Z$315,9,0),0)","v":0},null,{"$f":"IFERROR(VLOOKUP(B43,'Schedule V(b)'!$B$11:$Z$315,11,0),0)","v":"Select"},null,{"$f":"IFERROR(VLOOKUP(B43,'Schedule V(b)'!$B$11:$Z$315,13,0),0)","v":0},null,{"$f":"IFERROR(VLOOKUP(B43,'Schedule V(b)'!$B$11:$Z$315,15,0),0)","v":"Select"},null,{"$f":"IFERROR(VLOOKUP(B43,'Schedule V(b)'!$B$11:$Z$315,17,0),0)","v":0},null,{"$f":"IFERROR(VLOOKUP(B43,'Schedule V(b)'!$B$11:$Z$315,25,0),0)","v":0},null,{"$f":"IFERROR(VLOOKUP(B43,'Schedule V(b)'!$B$11:$Z$315,23,0),0)","v":0},null,{"$f":"Import!E36904","v":0},null,0]
[33,{"$f":"Import!E36870","v":0},null,{"$f":"IFERROR(VLOOKUP(B44,'Schedule V(b)'!$B$11:$Z$315,3,0),0)","v":0},null,{"$f":"IFERROR(VLOOKUP(B44,'Schedule V(b)'!$B$11:$Z$315,7,0),0)","v":"Select"},null,{"$f":"IFERROR(VLOOKUP(B44,'Schedule V(b)'!$B$11:$Z$315,9,0),0)","v":0},null,{"$f":"IFERROR(VLOOKUP(B44,'Schedule V(b)'!$B$11:$Z$315,11,0),0)","v":"Select"},null,{"$f":"IFERROR(VLOOKUP(B44,'Schedule V(b)'!$B$11:$Z$315,13,0),0)","v":0},null,{"$f":"IFERROR(VLOOKUP(B44,'Schedule V(b)'!$B$11:$Z$315,15,0),0)","v":"Select"},null,{"$f":"IFERROR(VLOOKUP(B44,'Schedule V(b)'!$B$11:$Z$315,17,0),0)","v":0},null,{"$f":"IFERROR(VLOOKUP(B44,'Schedule V(b)'!$B$11:$Z$315,25,0),0)","v":0},null,{"$f":"IFERROR(VLOOKUP(B44,'Schedule V(b)'!$B$11:$Z$315,23,0),0)","v":0},null,{"$f":"Import!E36905","v":0},null,0]
[34,{"$f":"Import!E36871","v":0},null,{"$f":"IFERROR(VLOOKUP(B45,'Schedule V(b)'!$B$11:$Z$315,3,0),0)","v":0},null,{"$f":"IFERROR(VLOOKUP(B45,'Schedule V(b)'!$B$11:$Z$315,7,0),0)","v":"Select"},null,{"$f":"IFERROR(VLOOKUP(B45,'Schedule V(b)'!$B$11:$Z$315,9,0),0)","v":0},null,{"$f":"IFERROR(VLOOKUP(B45,'Schedule V(b)'!$B$11:$Z$315,11,0),0)","v":"Select"},null,{"$f":"IFERROR(VLOOKUP(B45,'Schedule V(b)'!$B$11:$Z$315,13,0),0)","v":0},null,{"$f":"IFERROR(VLOOKUP(B45,'Schedule V(b)'!$B$11:$Z$315,15,0),0)","v":"Select"},null,{"$f":"IFERROR(VLOOKUP(B45,'Schedule V(b)'!$B$11:$Z$315,17,0),0)","v":0},null,{"$f":"IFERROR(VLOOKUP(B45,'Schedule V(b)'!$B$11:$Z$315,25,0),0)","v":0},null,{"$f":"IFERROR(VLOOKUP(B45,'Schedule V(b)'!$B$11:$Z$315,23,0),0)","v":0},null,{"$f":"Import!E36906","v":0},null,0]
[35,{"$f":"Import!E36872","v":0},null,{"$f":"IFERROR(VLOOKUP(B46,'Schedule V(b)'!$B$11:$Z$315,3,0),0)","v":0},null,{"$f":"IFERROR(VLOOKUP(B46,'Schedule V(b)'!$B$11:$Z$315,7,0),0)","v":"Select"},null,{"$f":"IFERROR(VLOOKUP(B46,'Schedule V(b)'!$B$11:$Z$315,9,0),0)","v":0},null,{"$f":"IFERROR(VLOOKUP(B46,'Schedule V(b)'!$B$11:$Z$315,11,0),0)","v":"Select"},null,{"$f":"IFERROR(VLOOKUP(B46,'Schedule V(b)'!$B$11:$Z$315,13,0),0)","v":0},null,{"$f":"IFERROR(VLOOKUP(B46,'Schedule V(b)'!$B$11:$Z$315,15,0),0)","v":"Select"},null,{"$f":"IFERROR(VLOOKUP(B46,'Schedule V(b)'!$B$11:$Z$315,17,0),0)","v":0},null,{"$f":"IFERROR(VLOOKUP(B46,'Schedule V(b)'!$B$11:$Z$315,25,0),0)","v":0},null,{"$f":"IFERROR(VLOOKUP(B46,'Schedule V(b)'!$B$11:$Z$315,23,0),0)","v":0},null,{"$f":"Import!E36907","v":0},null,0]
[36,null,null,{"$f":"IFERROR(VLOOKUP(B47,'Schedule V(b)'!$B$11:$Z$315,3,0),0)","v":0},null,{"$f":"IFERROR(VLOOKUP(B47,'Schedule V(b)'!$B$11:$Z$315,7,0),0)","v":"Select"},null,{"$f":"IFERROR(VLOOKUP(B47,'Schedule V(b)'!$B$11:$Z$315,9,0),0)","v":0},null,{"$f":"IFERROR(VLOOKUP(B47,'Schedule V(b)'!$B$11:$Z$315,11,0),0)","v":"Select"},null,{"$f":"IFERROR(VLOOKUP(B47,'Schedule V(b)'!$B$11:$Z$315,13,0),0)","v":0},null,{"$f":"IFERROR(VLOOKUP(B47,'Schedule V(b)'!$B$11:$Z$315,15,0),0)","v":"Select"},null,{"$f":"IFERROR(VLOOKUP(B47,'Schedule V(b)'!$B$11:$Z$315,17,0),0)","v":0},null,{"$f":"IFERROR(VLOOKUP(B47,'Schedule V(b)'!$B$11:$Z$315,25,0),0)","v":0},null,{"$f":"IFERROR(VLOOKUP(B47,'Schedule V(b)'!$B$11:$Z$315,23,0),0)","v":0},null,null,null,0]
[37,null,null,{"$f":"IFERROR(VLOOKUP(B48,'Schedule V(b)'!$B$11:$Z$315,3,0),0)","v":0},null,{"$f":"IFERROR(VLOOKUP(B48,'Schedule V(b)'!$B$11:$Z$315,7,0),0)","v":"Select"},null,{"$f":"IFERROR(VLOOKUP(B48,'Schedule V(b)'!$B$11:$Z$315,9,0),0)","v":0},null,{"$f":"IFERROR(VLOOKUP(B48,'Schedule V(b)'!$B$11:$Z$315,11,0),0)","v":"Select"},null,{"$f":"IFERROR(VLOOKUP(B48,'Schedule V(b)'!$B$11:$Z$315,13,0),0)","v":0},null,{"$f":"IFERROR(VLOOKUP(B48,'Schedule V(b)'!$B$11:$Z$315,15,0),0)","v":"Select"},null,{"$f":"IFERROR(VLOOKUP(B48,'Schedule V(b)'!$B$11:$Z$315,17,0),0)","v":0},null,{"$f":"IFERROR(VLOOKUP(B48,'Schedule V(b)'!$B$11:$Z$315,25,0),0)","v":0},null,{"$f":"IFERROR(VLOOKUP(B48,'Schedule V(b)'!$B$11:$Z$315,23,0),0)","v":0},null,null,null,0]
[38,null,null,{"$f":"IFERROR(VLOOKUP(B49,'Schedule V(b)'!$B$11:$Z$315,3,0),0)","v":0},null,{"$f":"IFERROR(VLOOKUP(B49,'Schedule V(b)'!$B$11:$Z$315,7,0),0)","v":"Select"},null,{"$f":"IFERROR(VLOOKUP(B49,'Schedule V(b)'!$B$11:$Z$315,9,0),0)","v":0},null,{"$f":"IFERROR(VLOOKUP(B49,'Schedule V(b)'!$B$11:$Z$315,11,0),0)","v":"Select"},null,{"$f":"IFERROR(VLOOKUP(B49,'Schedule V(b)'!$B$11:$Z$315,13,0),0)","v":0},null,{"$f":"IFERROR(VLOOKUP(B49,'Schedule V(b)'!$B$11:$Z$315,15,0),0)","v":"Select"},null,{"$f":"IFERROR(VLOOKUP(B49,'Schedule V(b)'!$B$11:$Z$315,17,0),0)","v":0},null,{"$f":"IFERROR(VLOOKUP(B49,'Schedule V(b)'!$B$11:$Z$315,25,0),0)","v":0},null,{"$f":"IFERROR(VLOOKUP(B49,'Schedule V(b)'!$B$11:$Z$315,23,0),0)","v":0},null,null,null,0]
[39,null,null,{"$f":"IFERROR(VLOOKUP(B50,'Schedule V(b)'!$B$11:$Z$315,3,0),0)","v":0},null,{"$f":"IFERROR(VLOOKUP(B50,'Schedule V(b)'!$B$11:$Z$315,7,0),0)","v":"Select"},null,{"$f":"IFERROR(VLOOKUP(B50,'Schedule V(b)'!$B$11:$Z$315,9,0),0)","v":0},null,{"$f":"IFERROR(VLOOKUP(B50,'Schedule V(b)'!$B$11:$Z$315,11,0),0)","v":"Select"},null,{"$f":"IFERROR(VLOOKUP(B50,'Schedule V(b)'!$B$11:$Z$315,13,0),0)","v":0},null,{"$f":"IFERROR(VLOOKUP(B50,'Schedule V(b)'!$B$11:$Z$315,15,0),0)","v":"Select"},null,{"$f":"IFERROR(VLOOKUP(B50,'Schedule V(b)'!$B$11:$Z$315,17,0),0)","v":0},null,{"$f":"IFERROR(VLOOKUP(B50,'Schedule V(b)'!$B$11:$Z$315,25,0),0)","v":0},null,{"$f":"IFERROR(VLOOKUP(B50,'Schedule V(b)'!$B$11:$Z$315,23,0),0)","v":0},null,null,null,0]
[40,null,null,{"$f":"IFERROR(VLOOKUP(B51,'Schedule V(b)'!$B$11:$Z$315,3,0),0)","v":0},null,{"$f":"IFERROR(VLOOKUP(B51,'Schedule V(b)'!$B$11:$Z$315,7,0),0)","v":"Select"},null,{"$f":"IFERROR(VLOOKUP(B51,'Schedule V(b)'!$B$11:$Z$315,9,0),0)","v":0},null,{"$f":"IFERROR(VLOOKUP(B51,'Schedule V(b)'!$B$11:$Z$315,11,0),0)","v":"Select"},null,{"$f":"IFERROR(VLOOKUP(B51,'Schedule V(b)'!$B$11:$Z$315,13,0),0)","v":0},null,{"$f":"IFERROR(VLOOKUP(B51,'Schedule V(b)'!$B$11:$Z$315,15,0),0)","v":"Select"},null,{"$f":"IFERROR(VLOOKUP(B51,'Schedule V(b)'!$B$11:$Z$315,17,0),0)","v":0},null,{"$f":"IFERROR(VLOOKUP(B51,'Schedule V(b)'!$B$11:$Z$315,25,0),0)","v":0},null,{"$f":"IFERROR(VLOOKUP(B51,'Schedule V(b)'!$B$11:$Z$315,23,0),0)","v":0},null,null,null,0]
[41,null,null,{"$f":"IFERROR(VLOOKUP(B52,'Schedule V(b)'!$B$11:$Z$315,3,0),0)","v":0},null,{"$f":"IFERROR(VLOOKUP(B52,'Schedule V(b)'!$B$11:$Z$315,7,0),0)","v":"Select"},null,{"$f":"IFERROR(VLOOKUP(B52,'Schedule V(b)'!$B$11:$Z$315,9,0),0)","v":0},null,{"$f":"IFERROR(VLOOKUP(B52,'Schedule V(b)'!$B$11:$Z$315,11,0),0)","v":"Select"},null,{"$f":"IFERROR(VLOOKUP(B52,'Schedule V(b)'!$B$11:$Z$315,13,0),0)","v":0},null,{"$f":"IFERROR(VLOOKUP(B52,'Schedule V(b)'!$B$11:$Z$315,15,0),0)","v":"Select"},null,{"$f":"IFERROR(VLOOKUP(B52,'Schedule V(b)'!$B$11:$Z$315,17,0),0)","v":0},null,{"$f":"IFERROR(VLOOKUP(B52,'Schedule V(b)'!$B$11:$Z$315,25,0),0)","v":0},null,{"$f":"IFERROR(VLOOKUP(B52,'Schedule V(b)'!$B$11:$Z$315,23,0),0)","v":0},null,null,null,0]
[42,null,null,{"$f":"IFERROR(VLOOKUP(B53,'Schedule V(b)'!$B$11:$Z$315,3,0),0)","v":0},null,{"$f":"IFERROR(VLOOKUP(B53,'Schedule V(b)'!$B$11:$Z$315,7,0),0)","v":"Select"},null,{"$f":"IFERROR(VLOOKUP(B53,'Schedule V(b)'!$B$11:$Z$315,9,0),0)","v":0},null,{"$f":"IFERROR(VLOOKUP(B53,'Schedule V(b)'!$B$11:$Z$315,11,0),0)","v":"Select"},null,{"$f":"IFERROR(VLOOKUP(B53,'Schedule V(b)'!$B$11:$Z$315,13,0),0)","v":0},null,{"$f":"IFERROR(VLOOKUP(B53,'Schedule V(b)'!$B$11:$Z$315,15,0),0)","v":"Select"},null,{"$f":"IFERROR(VLOOKUP(B53,'Schedule V(b)'!$B$11:$Z$315,17,0),0)","v":0},null,{"$f":"IFERROR(VLOOKUP(B53,'Schedule V(b)'!$B$11:$Z$315,25,0),0)","v":0},null,{"$f":"IFERROR(VLOOKUP(B53,'Schedule V(b)'!$B$11:$Z$315,23,0),0)","v":0},null,null,null,0]
[43,null,null,{"$f":"IFERROR(VLOOKUP(B54,'Schedule V(b)'!$B$11:$Z$315,3,0),0)","v":0},null,{"$f":"IFERROR(VLOOKUP(B54,'Schedule V(b)'!$B$11:$Z$315,7,0),0)","v":"Select"},null,{"$f":"IFERROR(VLOOKUP(B54,'Schedule V(b)'!$B$11:$Z$315,9,0),0)","v":0},null,{"$f":"IFERROR(VLOOKUP(B54,'Schedule V(b)'!$B$11:$Z$315,11,0),0)","v":"Select"},null,{"$f":"IFERROR(VLOOKUP(B54,'Schedule V(b)'!$B$11:$Z$315,13,0),0)","v":0},null,{"$f":"IFERROR(VLOOKUP(B54,'Schedule V(b)'!$B$11:$Z$315,15,0),0)","v":"Select"},null,{"$f":"IFERROR(VLOOKUP(B54,'Schedule V(b)'!$B$11:$Z$315,17,0),0)","v":0},null,{"$f":"IFERROR(VLOOKUP(B54,'Schedule V(b)'!$B$11:$Z$315,25,0),0)","v":0},null,{"$f":"IFERROR(VLOOKUP(B54,'Schedule V(b)'!$B$11:$Z$315,23,0),0)","v":0},null,null,null,0]
[44,null,null,{"$f":"IFERROR(VLOOKUP(B55,'Schedule V(b)'!$B$11:$Z$315,3,0),0)","v":0},null,{"$f":"IFERROR(VLOOKUP(B55,'Schedule V(b)'!$B$11:$Z$315,7,0),0)","v":"Select"},null,{"$f":"IFERROR(VLOOKUP(B55,'Schedule V(b)'!$B$11:$Z$315,9,0),0)","v":0},null,{"$f":"IFERROR(VLOOKUP(B55,'Schedule V(b)'!$B$11:$Z$315,11,0),0)","v":"Select"},null,{"$f":"IFERROR(VLOOKUP(B55,'Schedule V(b)'!$B$11:$Z$315,13,0),0)","v":0},null,{"$f":"IFERROR(VLOOKUP(B55,'Schedule V(b)'!$B$11:$Z$315,15,0),0)","v":"Select"},null,{"$f":"IFERROR(VLOOKUP(B55,'Schedule V(b)'!$B$11:$Z$315,17,0),0)","v":0},null,{"$f":"IFERROR(VLOOKUP(B55,'Schedule V(b)'!$B$11:$Z$315,25,0),0)","v":0},null,{"$f":"IFERROR(VLOOKUP(B55,'Schedule V(b)'!$B$11:$Z$315,23,0),0)","v":0},null,null,null,0]
[45,null,null,{"$f":"IFERROR(VLOOKUP(B56,'Schedule V(b)'!$B$11:$Z$315,3,0),0)","v":0},null,{"$f":"IFERROR(VLOOKUP(B56,'Schedule V(b)'!$B$11:$Z$315,7,0),0)","v":"Select"},null,{"$f":"IFERROR(VLOOKUP(B56,'Schedule V(b)'!$B$11:$Z$315,9,0),0)","v":0},null,{"$f":"IFERROR(VLOOKUP(B56,'Schedule V(b)'!$B$11:$Z$315,11,0),0)","v":"Select"},null,{"$f":"IFERROR(VLOOKUP(B56,'Schedule V(b)'!$B$11:$Z$315,13,0),0)","v":0},null,{"$f":"IFERROR(VLOOKUP(B56,'Schedule V(b)'!$B$11:$Z$315,15,0),0)","v":"Select"},null,{"$f":"IFERROR(VLOOKUP(B56,'Schedule V(b)'!$B$11:$Z$315,17,0),0)","v":0},null,{"$f":"IFERROR(VLOOKUP(B56,'Schedule V(b)'!$B$11:$Z$315,25,0),0)","v":0},null,{"$f":"IFERROR(VLOOKUP(B56,'Schedule V(b)'!$B$11:$Z$315,23,0),0)","v":0},null,null,null,0]
[46,null,null,{"$f":"IFERROR(VLOOKUP(B57,'Schedule V(b)'!$B$11:$Z$315,3,0),0)","v":0},null,{"$f":"IFERROR(VLOOKUP(B57,'Schedule V(b)'!$B$11:$Z$315,7,0),0)","v":"Select"},null,{"$f":"IFERROR(VLOOKUP(B57,'Schedule V(b)'!$B$11:$Z$315,9,0),0)","v":0},null,{"$f":"IFERROR(VLOOKUP(B57,'Schedule V(b)'!$B$11:$Z$315,11,0),0)","v":"Select"},null,{"$f":"IFERROR(VLOOKUP(B57,'Schedule V(b)'!$B$11:$Z$315,13,0),0)","v":0},null,{"$f":"IFERROR(VLOOKUP(B57,'Schedule V(b)'!$B$11:$Z$315,15,0),0)","v":"Select"},null,{"$f":"IFERROR(VLOOKUP(B57,'Schedule V(b)'!$B$11:$Z$315,17,0),0)","v":0},null,{"$f":"IFERROR(VLOOKUP(B57,'Schedule V(b)'!$B$11:$Z$315,25,0),0)","v":0},null,{"$f":"IFERROR(VLOOKUP(B57,'Schedule V(b)'!$B$11:$Z$315,23,0),0)","v":0},null,null,null,0]
[47,null,null,{"$f":"IFERROR(VLOOKUP(B58,'Schedule V(b)'!$B$11:$Z$315,3,0),0)","v":0},null,{"$f":"IFERROR(VLOOKUP(B58,'Schedule V(b)'!$B$11:$Z$315,7,0),0)","v":"Select"},null,{"$f":"IFERROR(VLOOKUP(B58,'Schedule V(b)'!$B$11:$Z$315,9,0),0)","v":0},null,{"$f":"IFERROR(VLOOKUP(B58,'Schedule V(b)'!$B$11:$Z$315,11,0),0)","v":"Select"},null,{"$f":"IFERROR(VLOOKUP(B58,'Schedule V(b)'!$B$11:$Z$315,13,0),0)","v":0},null,{"$f":"IFERROR(VLOOKUP(B58,'Schedule V(b)'!$B$11:$Z$315,15,0),0)","v":"Select"},null,{"$f":"IFERROR(VLOOKUP(B58,'Schedule V(b)'!$B$11:$Z$315,17,0),0)","v":0},null,{"$f":"IFERROR(VLOOKUP(B58,'Schedule V(b)'!$B$11:$Z$315,25,0),0)","v":0},null,{"$f":"IFERROR(VLOOKUP(B58,'Schedule V(b)'!$B$11:$Z$315,23,0),0)","v":0},null,null,null,0]
[48,null,null,{"$f":"IFERROR(VLOOKUP(B59,'Schedule V(b)'!$B$11:$Z$315,3,0),0)","v":0},null,{"$f":"IFERROR(VLOOKUP(B59,'Schedule V(b)'!$B$11:$Z$315,7,0),0)","v":"Select"},null,{"$f":"IFERROR(VLOOKUP(B59,'Schedule V(b)'!$B$11:$Z$315,9,0),0)","v":0},null,{"$f":"IFERROR(VLOOKUP(B59,'Schedule V(b)'!$B$11:$Z$315,11,0),0)","v":"Select"},null,{"$f":"IFERROR(VLOOKUP(B59,'Schedule V(b)'!$B$11:$Z$315,13,0),0)","v":0},null,{"$f":"IFERROR(VLOOKUP(B59,'Schedule V(b)'!$B$11:$Z$315,15,0),0)","v":"Select"},null,{"$f":"IFERROR(VLOOKUP(B59,'Schedule V(b)'!$B$11:$Z$315,17,0),0)","v":0},null,{"$f":"IFERROR(VLOOKUP(B59,'Schedule V(b)'!$B$11:$Z$315,25,0),0)","v":0},null,{"$f":"IFERROR(VLOOKUP(B59,'Schedule V(b)'!$B$11:$Z$315,23,0),0)","v":0},null,null,null,0]
[49,null,null,{"$f":"IFERROR(VLOOKUP(B60,'Schedule V(b)'!$B$11:$Z$315,3,0),0)","v":0},null,{"$f":"IFERROR(VLOOKUP(B60,'Schedule V(b)'!$B$11:$Z$315,7,0),0)","v":"Select"},null,{"$f":"IFERROR(VLOOKUP(B60,'Schedule V(b)'!$B$11:$Z$315,9,0),0)","v":0},null,{"$f":"IFERROR(VLOOKUP(B60,'Schedule V(b)'!$B$11:$Z$315,11,0),0)","v":"Select"},null,{"$f":"IFERROR(VLOOKUP(B60,'Schedule V(b)'!$B$11:$Z$315,13,0),0)","v":0},null,{"$f":"IFERROR(VLOOKUP(B60,'Schedule V(b)'!$B$11:$Z$315,15,0),0)","v":"Select"},null,{"$f":"IFERROR(VLOOKUP(B60,'Schedule V(b)'!$B$11:$Z$315,17,0),0)","v":0},null,{"$f":"IFERROR(VLOOKUP(B60,'Schedule V(b)'!$B$11:$Z$315,25,0),0)","v":0},null,{"$f":"IFERROR(VLOOKUP(B60,'Schedule V(b)'!$B$11:$Z$315,23,0),0)","v":0},null,null,null,0]
[50,null,null,{"$f":"IFERROR(VLOOKUP(B61,'Schedule V(b)'!$B$11:$Z$315,3,0),0)","v":0},null,{"$f":"IFERROR(VLOOKUP(B61,'Schedule V(b)'!$B$11:$Z$315,7,0),0)","v":"Select"},null,{"$f":"IFERROR(VLOOKUP(B61,'Schedule V(b)'!$B$11:$Z$315,9,0),0)","v":0},null,{"$f":"IFERROR(VLOOKUP(B61,'Schedule V(b)'!$B$11:$Z$315,11,0),0)","v":"Select"},null,{"$f":"IFERROR(VLOOKUP(B61,'Schedule V(b)'!$B$11:$Z$315,13,0),0)","v":0},null,{"$f":"IFERROR(VLOOKUP(B61,'Schedule V(b)'!$B$11:$Z$315,15,0),0)","v":"Select"},null,{"$f":"IFERROR(VLOOKUP(B61,'Schedule V(b)'!$B$11:$Z$315,17,0),0)","v":0},null,{"$f":"IFERROR(VLOOKUP(B61,'Schedule V(b)'!$B$11:$Z$315,25,0),0)","v":0},null,{"$f":"IFERROR(VLOOKUP(B61,'Schedule V(b)'!$B$11:$Z$315,23,0),0)","v":0},null,null,null,0]
[51,null,null,{"$f":"IFERROR(VLOOKUP(B62,'Schedule V(b)'!$B$11:$Z$315,3,0),0)","v":0},null,{"$f":"IFERROR(VLOOKUP(B62,'Schedule V(b)'!$B$11:$Z$315,7,0),0)","v":"Select"},null,{"$f":"IFERROR(VLOOKUP(B62,'Schedule V(b)'!$B$11:$Z$315,9,0),0)","v":0},null,{"$f":"IFERROR(VLOOKUP(B62,'Schedule V(b)'!$B$11:$Z$315,11,0),0)","v":"Select"},null,{"$f":"IFERROR(VLOOKUP(B62,'Schedule V(b)'!$B$11:$Z$315,13,0),0)","v":0},null,{"$f":"IFERROR(VLOOKUP(B62,'Schedule V(b)'!$B$11:$Z$315,15,0),0)","v":"Select"},null,{"$f":"IFERROR(VLOOKUP(B62,'Schedule V(b)'!$B$11:$Z$315,17,0),0)","v":0},null,{"$f":"IFERROR(VLOOKUP(B62,'Schedule V(b)'!$B$11:$Z$315,25,0),0)","v":0},null,{"$f":"IFERROR(VLOOKUP(B62,'Schedule V(b)'!$B$11:$Z$315,23,0),0)","v":0},null,null,null,0]
[52,null,null,{"$f":"IFERROR(VLOOKUP(B63,'Schedule V(b)'!$B$11:$Z$315,3,0),0)","v":0},null,{"$f":"IFERROR(VLOOKUP(B63,'Schedule V(b)'!$B$11:$Z$315,7,0),0)","v":"Select"},null,{"$f":"IFERROR(VLOOKUP(B63,'Schedule V(b)'!$B$11:$Z$315,9,0),0)","v":0},null,{"$f":"IFERROR(VLOOKUP(B63,'Schedule V(b)'!$B$11:$Z$315,11,0),0)","v":"Select"},null,{"$f":"IFERROR(VLOOKUP(B63,'Schedule V(b)'!$B$11:$Z$315,13,0),0)","v":0},null,{"$f":"IFERROR(VLOOKUP(B63,'Schedule V(b)'!$B$11:$Z$315,15,0),0)","v":"Select"},null,{"$f":"IFERROR(VLOOKUP(B63,'Schedule V(b)'!$B$11:$Z$315,17,0),0)","v":0},null,{"$f":"IFERROR(VLOOKUP(B63,'Schedule V(b)'!$B$11:$Z$315,25,0),0)","v":0},null,{"$f":"IFERROR(VLOOKUP(B63,'Schedule V(b)'!$B$11:$Z$315,23,0),0)","v":0},null,null,null,0]
[53,null,null,{"$f":"IFERROR(VLOOKUP(B64,'Schedule V(b)'!$B$11:$Z$315,3,0),0)","v":0},null,{"$f":"IFERROR(VLOOKUP(B64,'Schedule V(b)'!$B$11:$Z$315,7,0),0)","v":"Select"},null,{"$f":"IFERROR(VLOOKUP(B64,'Schedule V(b)'!$B$11:$Z$315,9,0),0)","v":0},null,{"$f":"IFERROR(VLOOKUP(B64,'Schedule V(b)'!$B$11:$Z$315,11,0),0)","v":"Select"},null,{"$f":"IFERROR(VLOOKUP(B64,'Schedule V(b)'!$B$11:$Z$315,13,0),0)","v":0},null,{"$f":"IFERROR(VLOOKUP(B64,'Schedule V(b)'!$B$11:$Z$315,15,0),0)","v":"Select"},null,{"$f":"IFERROR(VLOOKUP(B64,'Schedule V(b)'!$B$11:$Z$315,17,0),0)","v":0},null,{"$f":"IFERROR(VLOOKUP(B64,'Schedule V(b)'!$B$11:$Z$315,25,0),0)","v":0},null,{"$f":"IFERROR(VLOOKUP(B64,'Schedule V(b)'!$B$11:$Z$315,23,0),0)","v":0},null,null,null,0]
[54,null,null,{"$f":"IFERROR(VLOOKUP(B65,'Schedule V(b)'!$B$11:$Z$315,3,0),0)","v":0},null,{"$f":"IFERROR(VLOOKUP(B65,'Schedule V(b)'!$B$11:$Z$315,7,0),0)","v":"Select"},null,{"$f":"IFERROR(VLOOKUP(B65,'Schedule V(b)'!$B$11:$Z$315,9,0),0)","v":0},null,{"$f":"IFERROR(VLOOKUP(B65,'Schedule V(b)'!$B$11:$Z$315,11,0),0)","v":"Select"},null,{"$f":"IFERROR(VLOOKUP(B65,'Schedule V(b)'!$B$11:$Z$315,13,0),0)","v":0},null,{"$f":"IFERROR(VLOOKUP(B65,'Schedule V(b)'!$B$11:$Z$315,15,0),0)","v":"Select"},null,{"$f":"IFERROR(VLOOKUP(B65,'Schedule V(b)'!$B$11:$Z$315,17,0),0)","v":0},null,{"$f":"IFERROR(VLOOKUP(B65,'Schedule V(b)'!$B$11:$Z$315,25,0),0)","v":0},null,{"$f":"IFERROR(VLOOKUP(B65,'Schedule V(b)'!$B$11:$Z$315,23,0),0)","v":0},null,null,null,0]
[55,null,null,{"$f":"IFERROR(VLOOKUP(B66,'Schedule V(b)'!$B$11:$Z$315,3,0),0)","v":0},null,{"$f":"IFERROR(VLOOKUP(B66,'Schedule V(b)'!$B$11:$Z$315,7,0),0)","v":"Select"},null,{"$f":"IFERROR(VLOOKUP(B66,'Schedule V(b)'!$B$11:$Z$315,9,0),0)","v":0},null,{"$f":"IFERROR(VLOOKUP(B66,'Schedule V(b)'!$B$11:$Z$315,11,0),0)","v":"Select"},null,{"$f":"IFERROR(VLOOKUP(B66,'Schedule V(b)'!$B$11:$Z$315,13,0),0)","v":0},null,{"$f":"IFERROR(VLOOKUP(B66,'Schedule V(b)'!$B$11:$Z$315,15,0),0)","v":"Select"},null,{"$f":"IFERROR(VLOOKUP(B66,'Schedule V(b)'!$B$11:$Z$315,17,0),0)","v":0},null,{"$f":"IFERROR(VLOOKUP(B66,'Schedule V(b)'!$B$11:$Z$315,25,0),0)","v":0},null,{"$f":"IFERROR(VLOOKUP(B66,'Schedule V(b)'!$B$11:$Z$315,23,0),0)","v":0},null,null,null,0]
[56,null,null,{"$f":"IFERROR(VLOOKUP(B67,'Schedule V(b)'!$B$11:$Z$315,3,0),0)","v":0},null,{"$f":"IFERROR(VLOOKUP(B67,'Schedule V(b)'!$B$11:$Z$315,7,0),0)","v":"Select"},null,{"$f":"IFERROR(VLOOKUP(B67,'Schedule V(b)'!$B$11:$Z$315,9,0),0)","v":0},null,{"$f":"IFERROR(VLOOKUP(B67,'Schedule V(b)'!$B$11:$Z$315,11,0),0)","v":"Select"},null,{"$f":"IFERROR(VLOOKUP(B67,'Schedule V(b)'!$B$11:$Z$315,13,0),0)","v":0},null,{"$f":"IFERROR(VLOOKUP(B67,'Schedule V(b)'!$B$11:$Z$315,15,0),0)","v":"Select"},null,{"$f":"IFERROR(VLOOKUP(B67,'Schedule V(b)'!$B$11:$Z$315,17,0),0)","v":0},null,{"$f":"IFERROR(VLOOKUP(B67,'Schedule V(b)'!$B$11:$Z$315,25,0),0)","v":0},null,{"$f":"IFERROR(VLOOKUP(B67,'Schedule V(b)'!$B$11:$Z$315,23,0),0)","v":0},null,null,null,0]
[57,null,null,{"$f":"IFERROR(VLOOKUP(B68,'Schedule V(b)'!$B$11:$Z$315,3,0),0)","v":0},null,{"$f":"IFERROR(VLOOKUP(B68,'Schedule V(b)'!$B$11:$Z$315,7,0),0)","v":"Select"},null,{"$f":"IFERROR(VLOOKUP(B68,'Schedule V(b)'!$B$11:$Z$315,9,0),0)","v":0},null,{"$f":"IFERROR(VLOOKUP(B68,'Schedule V(b)'!$B$11:$Z$315,11,0),0)","v":"Select"},null,{"$f":"IFERROR(VLOOKUP(B68,'Schedule V(b)'!$B$11:$Z$315,13,0),0)","v":0},null,{"$f":"IFERROR(VLOOKUP(B68,'Schedule V(b)'!$B$11:$Z$315,15,0),0)","v":"Select"},null,{"$f":"IFERROR(VLOOKUP(B68,'Schedule V(b)'!$B$11:$Z$315,17,0),0)","v":0},null,{"$f":"IFERROR(VLOOKUP(B68,'Schedule V(b)'!$B$11:$Z$315,25,0),0)","v":0},null,{"$f":"IFERROR(VLOOKUP(B68,'Schedule V(b)'!$B$11:$Z$315,23,0),0)","v":0},null,null,null,0]
[58,null,null,{"$f":"IFERROR(VLOOKUP(B69,'Schedule V(b)'!$B$11:$Z$315,3,0),0)","v":0},null,{"$f":"IFERROR(VLOOKUP(B69,'Schedule V(b)'!$B$11:$Z$315,7,0),0)","v":"Select"},null,{"$f":"IFERROR(VLOOKUP(B69,'Schedule V(b)'!$B$11:$Z$315,9,0),0)","v":0},null,{"$f":"IFERROR(VLOOKUP(B69,'Schedule V(b)'!$B$11:$Z$315,11,0),0)","v":"Select"},null,{"$f":"IFERROR(VLOOKUP(B69,'Schedule V(b)'!$B$11:$Z$315,13,0),0)","v":0},null,{"$f":"IFERROR(VLOOKUP(B69,'Schedule V(b)'!$B$11:$Z$315,15,0),0)","v":"Select"},null,{"$f":"IFERROR(VLOOKUP(B69,'Schedule V(b)'!$B$11:$Z$315,17,0),0)","v":0},null,{"$f":"IFERROR(VLOOKUP(B69,'Schedule V(b)'!$B$11:$Z$315,25,0),0)","v":0},null,{"$f":"IFERROR(VLOOKUP(B69,'Schedule V(b)'!$B$11:$Z$315,23,0),0)","v":0},null,null,null,0]
[59,null,null,{"$f":"IFERROR(VLOOKUP(B70,'Schedule V(b)'!$B$11:$Z$315,3,0),0)","v":0},null,{"$f":"IFERROR(VLOOKUP(B70,'Schedule V(b)'!$B$11:$Z$315,7,0),0)","v":"Select"},null,{"$f":"IFERROR(VLOOKUP(B70,'Schedule V(b)'!$B$11:$Z$315,9,0),0)","v":0},null,{"$f":"IFERROR(VLOOKUP(B70,'Schedule V(b)'!$B$11:$Z$315,11,0),0)","v":"Select"},null,{"$f":"IFERROR(VLOOKUP(B70,'Schedule V(b)'!$B$11:$Z$315,13,0),0)","v":0},null,{"$f":"IFERROR(VLOOKUP(B70,'Schedule V(b)'!$B$11:$Z$315,15,0),0)","v":"Select"},null,{"$f":"IFERROR(VLOOKUP(B70,'Schedule V(b)'!$B$11:$Z$315,17,0),0)","v":0},null,{"$f":"IFERROR(VLOOKUP(B70,'Schedule V(b)'!$B$11:$Z$315,25,0),0)","v":0},null,{"$f":"IFERROR(VLOOKUP(B70,'Schedule V(b)'!$B$11:$Z$315,23,0),0)","v":0},null,null,null,0]
[60,null,null,{"$f":"IFERROR(VLOOKUP(B71,'Schedule V(b)'!$B$11:$Z$315,3,0),0)","v":0},null,{"$f":"IFERROR(VLOOKUP(B71,'Schedule V(b)'!$B$11:$Z$315,7,0),0)","v":"Select"},null,{"$f":"IFERROR(VLOOKUP(B71,'Schedule V(b)'!$B$11:$Z$315,9,0),0)","v":0},null,{"$f":"IFERROR(VLOOKUP(B71,'Schedule V(b)'!$B$11:$Z$315,11,0),0)","v":"Select"},null,{"$f":"IFERROR(VLOOKUP(B71,'Schedule V(b)'!$B$11:$Z$315,13,0),0)","v":0},null,{"$f":"IFERROR(VLOOKUP(B71,'Schedule V(b)'!$B$11:$Z$315,15,0),0)","v":"Select"},null,{"$f":"IFERROR(VLOOKUP(B71,'Schedule V(b)'!$B$11:$Z$315,17,0),0)","v":0},null,{"$f":"IFERROR(VLOOKUP(B71,'Schedule V(b)'!$B$11:$Z$315,25,0),0)","v":0},null,{"$f":"IFERROR(VLOOKUP(B71,'Schedule V(b)'!$B$11:$Z$315,23,0),0)","v":0},null,null,null,0]
[61,null,null,{"$f":"IFERROR(VLOOKUP(B72,'Schedule V(b)'!$B$11:$Z$315,3,0),0)","v":0},null,{"$f":"IFERROR(VLOOKUP(B72,'Schedule V(b)'!$B$11:$Z$315,7,0),0)","v":"Select"},null,{"$f":"IFERROR(VLOOKUP(B72,'Schedule V(b)'!$B$11:$Z$315,9,0),0)","v":0},null,{"$f":"IFERROR(VLOOKUP(B72,'Schedule V(b)'!$B$11:$Z$315,11,0),0)","v":"Select"},null,{"$f":"IFERROR(VLOOKUP(B72,'Schedule V(b)'!$B$11:$Z$315,13,0),0)","v":0},null,{"$f":"IFERROR(VLOOKUP(B72,'Schedule V(b)'!$B$11:$Z$315,15,0),0)","v":"Select"},null,{"$f":"IFERROR(VLOOKUP(B72,'Schedule V(b)'!$B$11:$Z$315,17,0),0)","v":0},null,{"$f":"IFERROR(VLOOKUP(B72,'Schedule V(b)'!$B$11:$Z$315,25,0),0)","v":0},null,{"$f":"IFERROR(VLOOKUP(B72,'Schedule V(b)'!$B$11:$Z$315,23,0),0)","v":0},null,null,null,0]
[62,null,null,{"$f":"IFERROR(VLOOKUP(B73,'Schedule V(b)'!$B$11:$Z$315,3,0),0)","v":0},null,{"$f":"IFERROR(VLOOKUP(B73,'Schedule V(b)'!$B$11:$Z$315,7,0),0)","v":"Select"},null,{"$f":"IFERROR(VLOOKUP(B73,'Schedule V(b)'!$B$11:$Z$315,9,0),0)","v":0},null,{"$f":"IFERROR(VLOOKUP(B73,'Schedule V(b)'!$B$11:$Z$315,11,0),0)","v":"Select"},null,{"$f":"IFERROR(VLOOKUP(B73,'Schedule V(b)'!$B$11:$Z$315,13,0),0)","v":0},null,{"$f":"IFERROR(VLOOKUP(B73,'Schedule V(b)'!$B$11:$Z$315,15,0),0)","v":"Select"},null,{"$f":"IFERROR(VLOOKUP(B73,'Schedule V(b)'!$B$11:$Z$315,17,0),0)","v":0},null,{"$f":"IFERROR(VLOOKUP(B73,'Schedule V(b)'!$B$11:$Z$315,25,0),0)","v":0},null,{"$f":"IFERROR(VLOOKUP(B73,'Schedule V(b)'!$B$11:$Z$315,23,0),0)","v":0},null,null,null,0]
[63,null,null,{"$f":"IFERROR(VLOOKUP(B74,'Schedule V(b)'!$B$11:$Z$315,3,0),0)","v":0},null,{"$f":"IFERROR(VLOOKUP(B74,'Schedule V(b)'!$B$11:$Z$315,7,0),0)","v":"Select"},null,{"$f":"IFERROR(VLOOKUP(B74,'Schedule V(b)'!$B$11:$Z$315,9,0),0)","v":0},null,{"$f":"IFERROR(VLOOKUP(B74,'Schedule V(b)'!$B$11:$Z$315,11,0),0)","v":"Select"},null,{"$f":"IFERROR(VLOOKUP(B74,'Schedule V(b)'!$B$11:$Z$315,13,0),0)","v":0},null,{"$f":"IFERROR(VLOOKUP(B74,'Schedule V(b)'!$B$11:$Z$315,15,0),0)","v":"Select"},null,{"$f":"IFERROR(VLOOKUP(B74,'Schedule V(b)'!$B$11:$Z$315,17,0),0)","v":0},null,{"$f":"IFERROR(VLOOKUP(B74,'Schedule V(b)'!$B$11:$Z$315,25,0),0)","v":0},null,{"$f":"IFERROR(VLOOKUP(B74,'Schedule V(b)'!$B$11:$Z$315,23,0),0)","v":0},null,null,null,0]
[64,null,null,{"$f":"IFERROR(VLOOKUP(B75,'Schedule V(b)'!$B$11:$Z$315,3,0),0)","v":0},null,{"$f":"IFERROR(VLOOKUP(B75,'Schedule V(b)'!$B$11:$Z$315,7,0),0)","v":"Select"},null,{"$f":"IFERROR(VLOOKUP(B75,'Schedule V(b)'!$B$11:$Z$315,9,0),0)","v":0},null,{"$f":"IFERROR(VLOOKUP(B75,'Schedule V(b)'!$B$11:$Z$315,11,0),0)","v":"Select"},null,{"$f":"IFERROR(VLOOKUP(B75,'Schedule V(b)'!$B$11:$Z$315,13,0),0)","v":0},null,{"$f":"IFERROR(VLOOKUP(B75,'Schedule V(b)'!$B$11:$Z$315,15,0),0)","v":"Select"},null,{"$f":"IFERROR(VLOOKUP(B75,'Schedule V(b)'!$B$11:$Z$315,17,0),0)","v":0},null,{"$f":"IFERROR(VLOOKUP(B75,'Schedule V(b)'!$B$11:$Z$315,25,0),0)","v":0},null,{"$f":"IFERROR(VLOOKUP(B75,'Schedule V(b)'!$B$11:$Z$315,23,0),0)","v":0},null,null,null,0]
[65,null,null,{"$f":"IFERROR(VLOOKUP(B76,'Schedule V(b)'!$B$11:$Z$315,3,0),0)","v":0},null,{"$f":"IFERROR(VLOOKUP(B76,'Schedule V(b)'!$B$11:$Z$315,7,0),0)","v":"Select"},null,{"$f":"IFERROR(VLOOKUP(B76,'Schedule V(b)'!$B$11:$Z$315,9,0),0)","v":0},null,{"$f":"IFERROR(VLOOKUP(B76,'Schedule V(b)'!$B$11:$Z$315,11,0),0)","v":"Select"},null,{"$f":"IFERROR(VLOOKUP(B76,'Schedule V(b)'!$B$11:$Z$315,13,0),0)","v":0},null,{"$f":"IFERROR(VLOOKUP(B76,'Schedule V(b)'!$B$11:$Z$315,15,0),0)","v":"Select"},null,{"$f":"IFERROR(VLOOKUP(B76,'Schedule V(b)'!$B$11:$Z$315,17,0),0)","v":0},null,{"$f":"IFERROR(VLOOKUP(B76,'Schedule V(b)'!$B$11:$Z$315,25,0),0)","v":0},null,{"$f":"IFERROR(VLOOKUP(B76,'Schedule V(b)'!$B$11:$Z$315,23,0),0)","v":0},null,null,null,{"$f":"$P76*$V76","v":0}]
[66,null,null,{"$f":"IFERROR(VLOOKUP(B77,'Schedule V(b)'!$B$11:$Z$315,3,0),0)","v":0},null,{"$f":"IFERROR(VLOOKUP(B77,'Schedule V(b)'!$B$11:$Z$315,7,0),0)","v":"Select"},null,{"$f":"IFERROR(VLOOKUP(B77,'Schedule V(b)'!$B$11:$Z$315,9,0),0)","v":0},null,{"$f":"IFERROR(VLOOKUP(B77,'Schedule V(b)'!$B$11:$Z$315,11,0),0)","v":"Select"},null,{"$f":"IFERROR(VLOOKUP(B77,'Schedule V(b)'!$B$11:$Z$315,13,0),0)","v":0},null,{"$f":"IFERROR(VLOOKUP(B77,'Schedule V(b)'!$B$11:$Z$315,15,0),0)","v":"Select"},null,{"$f":"IFERROR(VLOOKUP(B77,'Schedule V(b)'!$B$11:$Z$315,17,0),0)","v":0},null,{"$f":"IFERROR(VLOOKUP(B77,'Schedule V(b)'!$B$11:$Z$315,25,0),0)","v":0},null,{"$f":"IFERROR(VLOOKUP(B77,'Schedule V(b)'!$B$11:$Z$315,23,0),0)","v":0},null,null,null,0]
[67,null,null,{"$f":"IFERROR(VLOOKUP(B78,'Schedule V(b)'!$B$11:$Z$315,3,0),0)","v":0},null,{"$f":"IFERROR(VLOOKUP(B78,'Schedule V(b)'!$B$11:$Z$315,7,0),0)","v":"Select"},null,{"$f":"IFERROR(VLOOKUP(B78,'Schedule V(b)'!$B$11:$Z$315,9,0),0)","v":0},null,{"$f":"IFERROR(VLOOKUP(B78,'Schedule V(b)'!$B$11:$Z$315,11,0),0)","v":"Select"},null,{"$f":"IFERROR(VLOOKUP(B78,'Schedule V(b)'!$B$11:$Z$315,13,0),0)","v":0},null,{"$f":"IFERROR(VLOOKUP(B78,'Schedule V(b)'!$B$11:$Z$315,15,0),0)","v":"Select"},null,{"$f":"IFERROR(VLOOKUP(B78,'Schedule V(b)'!$B$11:$Z$315,17,0),0)","v":0},null,{"$f":"IFERROR(VLOOKUP(B78,'Schedule V(b)'!$B$11:$Z$315,25,0),0)","v":0},null,{"$f":"IFERROR(VLOOKUP(B78,'Schedule V(b)'!$B$11:$Z$315,23,0),0)","v":0},null,null,null,0]
[68,null,null,{"$f":"IFERROR(VLOOKUP(B79,'Schedule V(b)'!$B$11:$Z$315,3,0),0)","v":0},null,{"$f":"IFERROR(VLOOKUP(B79,'Schedule V(b)'!$B$11:$Z$315,7,0),0)","v":"Select"},null,{"$f":"IFERROR(VLOOKUP(B79,'Schedule V(b)'!$B$11:$Z$315,9,0),0)","v":0},null,{"$f":"IFERROR(VLOOKUP(B79,'Schedule V(b)'!$B$11:$Z$315,11,0),0)","v":"Select"},null,{"$f":"IFERROR(VLOOKUP(B79,'Schedule V(b)'!$B$11:$Z$315,13,0),0)","v":0},null,{"$f":"IFERROR(VLOOKUP(B79,'Schedule V(b)'!$B$11:$Z$315,15,0),0)","v":"Select"},null,{"$f":"IFERROR(VLOOKUP(B79,'Schedule V(b)'!$B$11:$Z$315,17,0),0)","v":0},null,{"$f":"IFERROR(VLOOKUP(B79,'Schedule V(b)'!$B$11:$Z$315,25,0),0)","v":0},null,{"$f":"IFERROR(VLOOKUP(B79,'Schedule V(b)'!$B$11:$Z$315,23,0),0)","v":0},null,null,null,0]
[69,null,null,{"$f":"IFERROR(VLOOKUP(B80,'Schedule V(b)'!$B$11:$Z$315,3,0),0)","v":0},null,{"$f":"IFERROR(VLOOKUP(B80,'Schedule V(b)'!$B$11:$Z$315,7,0),0)","v":"Select"},null,{"$f":"IFERROR(VLOOKUP(B80,'Schedule V(b)'!$B$11:$Z$315,9,0),0)","v":0},null,{"$f":"IFERROR(VLOOKUP(B80,'Schedule V(b)'!$B$11:$Z$315,11,0),0)","v":"Select"},null,{"$f":"IFERROR(VLOOKUP(B80,'Schedule V(b)'!$B$11:$Z$315,13,0),0)","v":0},null,{"$f":"IFERROR(VLOOKUP(B80,'Schedule V(b)'!$B$11:$Z$315,15,0),0)","v":"Select"},null,{"$f":"IFERROR(VLOOKUP(B80,'Schedule V(b)'!$B$11:$Z$315,17,0),0)","v":0},null,{"$f":"IFERROR(VLOOKUP(B80,'Schedule V(b)'!$B$11:$Z$315,25,0),0)","v":0},null,{"$f":"IFERROR(VLOOKUP(B80,'Schedule V(b)'!$B$11:$Z$315,23,0),0)","v":0},null,null,null,0]
[70,null,null,{"$f":"IFERROR(VLOOKUP(B81,'Schedule V(b)'!$B$11:$Z$315,3,0),0)","v":0},null,{"$f":"IFERROR(VLOOKUP(B81,'Schedule V(b)'!$B$11:$Z$315,7,0),0)","v":"Select"},null,{"$f":"IFERROR(VLOOKUP(B81,'Schedule V(b)'!$B$11:$Z$315,9,0),0)","v":0},null,{"$f":"IFERROR(VLOOKUP(B81,'Schedule V(b)'!$B$11:$Z$315,11,0),0)","v":"Select"},null,{"$f":"IFERROR(VLOOKUP(B81,'Schedule V(b)'!$B$11:$Z$315,13,0),0)","v":0},null,{"$f":"IFERROR(VLOOKUP(B81,'Schedule V(b)'!$B$11:$Z$315,15,0),0)","v":"Select"},null,{"$f":"IFERROR(VLOOKUP(B81,'Schedule V(b)'!$B$11:$Z$315,17,0),0)","v":0},null,{"$f":"IFERROR(VLOOKUP(B81,'Schedule V(b)'!$B$11:$Z$315,25,0),0)","v":0},null,{"$f":"IFERROR(VLOOKUP(B81,'Schedule V(b)'!$B$11:$Z$315,23,0),0)","v":0},null,null,null,0]
[71,null,null,{"$f":"IFERROR(VLOOKUP(B82,'Schedule V(b)'!$B$11:$Z$315,3,0),0)","v":0},null,{"$f":"IFERROR(VLOOKUP(B82,'Schedule V(b)'!$B$11:$Z$315,7,0),0)","v":"Select"},null,{"$f":"IFERROR(VLOOKUP(B82,'Schedule V(b)'!$B$11:$Z$315,9,0),0)","v":0},null,{"$f":"IFERROR(VLOOKUP(B82,'Schedule V(b)'!$B$11:$Z$315,11,0),0)","v":"Select"},null,{"$f":"IFERROR(VLOOKUP(B82,'Schedule V(b)'!$B$11:$Z$315,13,0),0)","v":0},null,{"$f":"IFERROR(VLOOKUP(B82,'Schedule V(b)'!$B$11:$Z$315,15,0),0)","v":"Select"},null,{"$f":"IFERROR(VLOOKUP(B82,'Schedule V(b)'!$B$11:$Z$315,17,0),0)","v":0},null,{"$f":"IFERROR(VLOOKUP(B82,'Schedule V(b)'!$B$11:$Z$315,25,0),0)","v":0},null,{"$f":"IFERROR(VLOOKUP(B82,'Schedule V(b)'!$B$11:$Z$315,23,0),0)","v":0},null,null,null,0]
[72,null,null,{"$f":"IFERROR(VLOOKUP(B83,'Schedule V(b)'!$B$11:$Z$315,3,0),0)","v":0},null,{"$f":"IFERROR(VLOOKUP(B83,'Schedule V(b)'!$B$11:$Z$315,7,0),0)","v":"Select"},null,{"$f":"IFERROR(VLOOKUP(B83,'Schedule V(b)'!$B$11:$Z$315,9,0),0)","v":0},null,{"$f":"IFERROR(VLOOKUP(B83,'Schedule V(b)'!$B$11:$Z$315,11,0),0)","v":"Select"},null,{"$f":"IFERROR(VLOOKUP(B83,'Schedule V(b)'!$B$11:$Z$315,13,0),0)","v":0},null,{"$f":"IFERROR(VLOOKUP(B83,'Schedule V(b)'!$B$11:$Z$315,15,0),0)","v":"Select"},null,{"$f":"IFERROR(VLOOKUP(B83,'Schedule V(b)'!$B$11:$Z$315,17,0),0)","v":0},null,{"$f":"IFERROR(VLOOKUP(B83,'Schedule V(b)'!$B$11:$Z$315,25,0),0)","v":0},null,{"$f":"IFERROR(VLOOKUP(B83,'Schedule V(b)'!$B$11:$Z$315,23,0),0)","v":0},null,null,null,0]
[73,null,null,{"$f":"IFERROR(VLOOKUP(B84,'Schedule V(b)'!$B$11:$Z$315,3,0),0)","v":0},null,{"$f":"IFERROR(VLOOKUP(B84,'Schedule V(b)'!$B$11:$Z$315,7,0),0)","v":"Select"},null,{"$f":"IFERROR(VLOOKUP(B84,'Schedule V(b)'!$B$11:$Z$315,9,0),0)","v":0},null,{"$f":"IFERROR(VLOOKUP(B84,'Schedule V(b)'!$B$11:$Z$315,11,0),0)","v":"Select"},null,{"$f":"IFERROR(VLOOKUP(B84,'Schedule V(b)'!$B$11:$Z$315,13,0),0)","v":0},null,{"$f":"IFERROR(VLOOKUP(B84,'Schedule V(b)'!$B$11:$Z$315,15,0),0)","v":"Select"},null,{"$f":"IFERROR(VLOOKUP(B84,'Schedule V(b)'!$B$11:$Z$315,17,0),0)","v":0},null,{"$f":"IFERROR(VLOOKUP(B84,'Schedule V(b)'!$B$11:$Z$315,25,0),0)","v":0},null,{"$f":"IFERROR(VLOOKUP(B84,'Schedule V(b)'!$B$11:$Z$315,23,0),0)","v":0},null,null,null,0]
[74,null,null,{"$f":"IFERROR(VLOOKUP(B85,'Schedule V(b)'!$B$11:$Z$315,3,0),0)","v":0},null,{"$f":"IFERROR(VLOOKUP(B85,'Schedule V(b)'!$B$11:$Z$315,7,0),0)","v":"Select"},null,{"$f":"IFERROR(VLOOKUP(B85,'Schedule V(b)'!$B$11:$Z$315,9,0),0)","v":0},null,{"$f":"IFERROR(VLOOKUP(B85,'Schedule V(b)'!$B$11:$Z$315,11,0),0)","v":"Select"},null,{"$f":"IFERROR(VLOOKUP(B85,'Schedule V(b)'!$B$11:$Z$315,13,0),0)","v":0},null,{"$f":"IFERROR(VLOOKUP(B85,'Schedule V(b)'!$B$11:$Z$315,15,0),0)","v":"Select"},null,{"$f":"IFERROR(VLOOKUP(B85,'Schedule V(b)'!$B$11:$Z$315,17,0),0)","v":0},null,{"$f":"IFERROR(VLOOKUP(B85,'Schedule V(b)'!$B$11:$Z$315,25,0),0)","v":0},null,{"$f":"IFERROR(VLOOKUP(B85,'Schedule V(b)'!$B$11:$Z$315,23,0),0)","v":0},null,null,null,0]
[75,null,null,{"$f":"IFERROR(VLOOKUP(B86,'Schedule V(b)'!$B$11:$Z$315,3,0),0)","v":0},null,{"$f":"IFERROR(VLOOKUP(B86,'Schedule V(b)'!$B$11:$Z$315,7,0),0)","v":"Select"},null,{"$f":"IFERROR(VLOOKUP(B86,'Schedule V(b)'!$B$11:$Z$315,9,0),0)","v":0},null,{"$f":"IFERROR(VLOOKUP(B86,'Schedule V(b)'!$B$11:$Z$315,11,0),0)","v":"Select"},null,{"$f":"IFERROR(VLOOKUP(B86,'Schedule V(b)'!$B$11:$Z$315,13,0),0)","v":0},null,{"$f":"IFERROR(VLOOKUP(B86,'Schedule V(b)'!$B$11:$Z$315,15,0),0)","v":"Select"},null,{"$f":"IFERROR(VLOOKUP(B86,'Schedule V(b)'!$B$11:$Z$315,17,0),0)","v":0},null,{"$f":"IFERROR(VLOOKUP(B86,'Schedule V(b)'!$B$11:$Z$315,25,0),0)","v":0},null,{"$f":"IFERROR(VLOOKUP(B86,'Schedule V(b)'!$B$11:$Z$315,23,0),0)","v":0},null,null,null,0]
[76,null,null,{"$f":"IFERROR(VLOOKUP(B87,'Schedule V(b)'!$B$11:$Z$315,3,0),0)","v":0},null,{"$f":"IFERROR(VLOOKUP(B87,'Schedule V(b)'!$B$11:$Z$315,7,0),0)","v":"Select"},null,{"$f":"IFERROR(VLOOKUP(B87,'Schedule V(b)'!$B$11:$Z$315,9,0),0)","v":0},null,{"$f":"IFERROR(VLOOKUP(B87,'Schedule V(b)'!$B$11:$Z$315,11,0),0)","v":"Select"},null,{"$f":"IFERROR(VLOOKUP(B87,'Schedule V(b)'!$B$11:$Z$315,13,0),0)","v":0},null,{"$f":"IFERROR(VLOOKUP(B87,'Schedule V(b)'!$B$11:$Z$315,15,0),0)","v":"Select"},null,{"$f":"IFERROR(VLOOKUP(B87,'Schedule V(b)'!$B$11:$Z$315,17,0),0)","v":0},null,{"$f":"IFERROR(VLOOKUP(B87,'Schedule V(b)'!$B$11:$Z$315,25,0),0)","v":0},null,{"$f":"IFERROR(VLOOKUP(B87,'Schedule V(b)'!$B$11:$Z$315,23,0),0)","v":0},null,null,null,0]
[77,null,null,{"$f":"IFERROR(VLOOKUP(B88,'Schedule V(b)'!$B$11:$Z$315,3,0),0)","v":0},null,{"$f":"IFERROR(VLOOKUP(B88,'Schedule V(b)'!$B$11:$Z$315,7,0),0)","v":"Select"},null,{"$f":"IFERROR(VLOOKUP(B88,'Schedule V(b)'!$B$11:$Z$315,9,0),0)","v":0},null,{"$f":"IFERROR(VLOOKUP(B88,'Schedule V(b)'!$B$11:$Z$315,11,0),0)","v":"Select"},null,{"$f":"IFERROR(VLOOKUP(B88,'Schedule V(b)'!$B$11:$Z$315,13,0),0)","v":0},null,{"$f":"IFERROR(VLOOKUP(B88,'Schedule V(b)'!$B$11:$Z$315,15,0),0)","v":"Select"},null,{"$f":"IFERROR(VLOOKUP(B88,'Schedule V(b)'!$B$11:$Z$315,17,0),0)","v":0},null,{"$f":"IFERROR(VLOOKUP(B88,'Schedule V(b)'!$B$11:$Z$315,25,0),0)","v":0},null,{"$f":"IFERROR(VLOOKUP(B88,'Schedule V(b)'!$B$11:$Z$315,23,0),0)","v":0},null,null,null,0]
[78,null,null,{"$f":"IFERROR(VLOOKUP(B89,'Schedule V(b)'!$B$11:$Z$315,3,0),0)","v":0},null,{"$f":"IFERROR(VLOOKUP(B89,'Schedule V(b)'!$B$11:$Z$315,7,0),0)","v":"Select"},null,{"$f":"IFERROR(VLOOKUP(B89,'Schedule V(b)'!$B$11:$Z$315,9,0),0)","v":0},null,{"$f":"IFERROR(VLOOKUP(B89,'Schedule V(b)'!$B$11:$Z$315,11,0),0)","v":"Select"},null,{"$f":"IFERROR(VLOOKUP(B89,'Schedule V(b)'!$B$11:$Z$315,13,0),0)","v":0},null,{"$f":"IFERROR(VLOOKUP(B89,'Schedule V(b)'!$B$11:$Z$315,15,0),0)","v":"Select"},null,{"$f":"IFERROR(VLOOKUP(B89,'Schedule V(b)'!$B$11:$Z$315,17,0),0)","v":0},null,{"$f":"IFERROR(VLOOKUP(B89,'Schedule V(b)'!$B$11:$Z$315,25,0),0)","v":0},null,{"$f":"IFERROR(VLOOKUP(B89,'Schedule V(b)'!$B$11:$Z$315,23,0),0)","v":0},null,null,null,0]
[79,null,null,{"$f":"IFERROR(VLOOKUP(B90,'Schedule V(b)'!$B$11:$Z$315,3,0),0)","v":0},null,{"$f":"IFERROR(VLOOKUP(B90,'Schedule V(b)'!$B$11:$Z$315,7,0),0)","v":"Select"},null,{"$f":"IFERROR(VLOOKUP(B90,'Schedule V(b)'!$B$11:$Z$315,9,0),0)","v":0},null,{"$f":"IFERROR(VLOOKUP(B90,'Schedule V(b)'!$B$11:$Z$315,11,0),0)","v":"Select"},null,{"$f":"IFERROR(VLOOKUP(B90,'Schedule V(b)'!$B$11:$Z$315,13,0),0)","v":0},null,{"$f":"IFERROR(VLOOKUP(B90,'Schedule V(b)'!$B$11:$Z$315,15,0),0)","v":"Select"},null,{"$f":"IFERROR(VLOOKUP(B90,'Schedule V(b)'!$B$11:$Z$315,17,0),0)","v":0},null,{"$f":"IFERROR(VLOOKUP(B90,'Schedule V(b)'!$B$11:$Z$315,25,0),0)","v":0},null,{"$f":"IFERROR(VLOOKUP(B90,'Schedule V(b)'!$B$11:$Z$315,23,0),0)","v":0},null,null,null,0]
[80,null,null,{"$f":"IFERROR(VLOOKUP(B91,'Schedule V(b)'!$B$11:$Z$315,3,0),0)","v":0},null,{"$f":"IFERROR(VLOOKUP(B91,'Schedule V(b)'!$B$11:$Z$315,7,0),0)","v":"Select"},null,{"$f":"IFERROR(VLOOKUP(B91,'Schedule V(b)'!$B$11:$Z$315,9,0),0)","v":0},null,{"$f":"IFERROR(VLOOKUP(B91,'Schedule V(b)'!$B$11:$Z$315,11,0),0)","v":"Select"},null,{"$f":"IFERROR(VLOOKUP(B91,'Schedule V(b)'!$B$11:$Z$315,13,0),0)","v":0},null,{"$f":"IFERROR(VLOOKUP(B91,'Schedule V(b)'!$B$11:$Z$315,15,0),0)","v":"Select"},null,{"$f":"IFERROR(VLOOKUP(B91,'Schedule V(b)'!$B$11:$Z$315,17,0),0)","v":0},null,{"$f":"IFERROR(VLOOKUP(B91,'Schedule V(b)'!$B$11:$Z$315,25,0),0)","v":0},null,{"$f":"IFERROR(VLOOKUP(B91,'Schedule V(b)'!$B$11:$Z$315,23,0),0)","v":0},null,null,null,0]
[81,null,null,{"$f":"IFERROR(VLOOKUP(B92,'Schedule V(b)'!$B$11:$Z$315,3,0),0)","v":0},null,{"$f":"IFERROR(VLOOKUP(B92,'Schedule V(b)'!$B$11:$Z$315,7,0),0)","v":"Select"},null,{"$f":"IFERROR(VLOOKUP(B92,'Schedule V(b)'!$B$11:$Z$315,9,0),0)","v":0},null,{"$f":"IFERROR(VLOOKUP(B92,'Schedule V(b)'!$B$11:$Z$315,11,0),0)","v":"Select"},null,{"$f":"IFERROR(VLOOKUP(B92,'Schedule V(b)'!$B$11:$Z$315,13,0),0)","v":0},null,{"$f":"IFERROR(VLOOKUP(B92,'Schedule V(b)'!$B$11:$Z$315,15,0),0)","v":"Select"},null,{"$f":"IFERROR(VLOOKUP(B92,'Schedule V(b)'!$B$11:$Z$315,17,0),0)","v":0},null,{"$f":"IFERROR(VLOOKUP(B92,'Schedule V(b)'!$B$11:$Z$315,25,0),0)","v":0},null,{"$f":"IFERROR(VLOOKUP(B92,'Schedule V(b)'!$B$11:$Z$315,23,0),0)","v":0},null,null,null,0]
[82,null,null,{"$f":"IFERROR(VLOOKUP(B93,'Schedule V(b)'!$B$11:$Z$315,3,0),0)","v":0},null,{"$f":"IFERROR(VLOOKUP(B93,'Schedule V(b)'!$B$11:$Z$315,7,0),0)","v":"Select"},null,{"$f":"IFERROR(VLOOKUP(B93,'Schedule V(b)'!$B$11:$Z$315,9,0),0)","v":0},null,{"$f":"IFERROR(VLOOKUP(B93,'Schedule V(b)'!$B$11:$Z$315,11,0),0)","v":"Select"},null,{"$f":"IFERROR(VLOOKUP(B93,'Schedule V(b)'!$B$11:$Z$315,13,0),0)","v":0},null,{"$f":"IFERROR(VLOOKUP(B93,'Schedule V(b)'!$B$11:$Z$315,15,0),0)","v":"Select"},null,{"$f":"IFERROR(VLOOKUP(B93,'Schedule V(b)'!$B$11:$Z$315,17,0),0)","v":0},null,{"$f":"IFERROR(VLOOKUP(B93,'Schedule V(b)'!$B$11:$Z$315,25,0),0)","v":0},null,{"$f":"IFERROR(VLOOKUP(B93,'Schedule V(b)'!$B$11:$Z$315,23,0),0)","v":0},null,null,null,0]
[83,null,null,{"$f":"IFERROR(VLOOKUP(B94,'Schedule V(b)'!$B$11:$Z$315,3,0),0)","v":0},null,{"$f":"IFERROR(VLOOKUP(B94,'Schedule V(b)'!$B$11:$Z$315,7,0),0)","v":"Select"},null,{"$f":"IFERROR(VLOOKUP(B94,'Schedule V(b)'!$B$11:$Z$315,9,0),0)","v":0},null,{"$f":"IFERROR(VLOOKUP(B94,'Schedule V(b)'!$B$11:$Z$315,11,0),0)","v":"Select"},null,{"$f":"IFERROR(VLOOKUP(B94,'Schedule V(b)'!$B$11:$Z$315,13,0),0)","v":0},null,{"$f":"IFERROR(VLOOKUP(B94,'Schedule V(b)'!$B$11:$Z$315,15,0),0)","v":"Select"},null,{"$f":"IFERROR(VLOOKUP(B94,'Schedule V(b)'!$B$11:$Z$315,17,0),0)","v":0},null,{"$f":"IFERROR(VLOOKUP(B94,'Schedule V(b)'!$B$11:$Z$315,25,0),0)","v":0},null,{"$f":"IFERROR(VLOOKUP(B94,'Schedule V(b)'!$B$11:$Z$315,23,0),0)","v":0},null,null,null,0]
[84,null,null,{"$f":"IFERROR(VLOOKUP(B95,'Schedule V(b)'!$B$11:$Z$315,3,0),0)","v":0},null,{"$f":"IFERROR(VLOOKUP(B95,'Schedule V(b)'!$B$11:$Z$315,7,0),0)","v":"Select"},null,{"$f":"IFERROR(VLOOKUP(B95,'Schedule V(b)'!$B$11:$Z$315,9,0),0)","v":0},null,{"$f":"IFERROR(VLOOKUP(B95,'Schedule V(b)'!$B$11:$Z$315,11,0),0)","v":"Select"},null,{"$f":"IFERROR(VLOOKUP(B95,'Schedule V(b)'!$B$11:$Z$315,13,0),0)","v":0},null,{"$f":"IFERROR(VLOOKUP(B95,'Schedule V(b)'!$B$11:$Z$315,15,0),0)","v":"Select"},null,{"$f":"IFERROR(VLOOKUP(B95,'Schedule V(b)'!$B$11:$Z$315,17,0),0)","v":0},null,{"$f":"IFERROR(VLOOKUP(B95,'Schedule V(b)'!$B$11:$Z$315,25,0),0)","v":0},null,{"$f":"IFERROR(VLOOKUP(B95,'Schedule V(b)'!$B$11:$Z$315,23,0),0)","v":0},null,null,null,0]
[85,null,null,{"$f":"IFERROR(VLOOKUP(B96,'Schedule V(b)'!$B$11:$Z$315,3,0),0)","v":0},null,{"$f":"IFERROR(VLOOKUP(B96,'Schedule V(b)'!$B$11:$Z$315,7,0),0)","v":"Select"},null,{"$f":"IFERROR(VLOOKUP(B96,'Schedule V(b)'!$B$11:$Z$315,9,0),0)","v":0},null,{"$f":"IFERROR(VLOOKUP(B96,'Schedule V(b)'!$B$11:$Z$315,11,0),0)","v":"Select"},null,{"$f":"IFERROR(VLOOKUP(B96,'Schedule V(b)'!$B$11:$Z$315,13,0),0)","v":0},null,{"$f":"IFERROR(VLOOKUP(B96,'Schedule V(b)'!$B$11:$Z$315,15,0),0)","v":"Select"},null,{"$f":"IFERROR(VLOOKUP(B96,'Schedule V(b)'!$B$11:$Z$315,17,0),0)","v":0},null,{"$f":"IFERROR(VLOOKUP(B96,'Schedule V(b)'!$B$11:$Z$315,25,0),0)","v":0},null,{"$f":"IFERROR(VLOOKUP(B96,'Schedule V(b)'!$B$11:$Z$315,23,0),0)","v":0},null,null,null,0]
[86,null,null,{"$f":"IFERROR(VLOOKUP(B97,'Schedule V(b)'!$B$11:$Z$315,3,0),0)","v":0},null,{"$f":"IFERROR(VLOOKUP(B97,'Schedule V(b)'!$B$11:$Z$315,7,0),0)","v":"Select"},null,{"$f":"IFERROR(VLOOKUP(B97,'Schedule V(b)'!$B$11:$Z$315,9,0),0)","v":0},null,{"$f":"IFERROR(VLOOKUP(B97,'Schedule V(b)'!$B$11:$Z$315,11,0),0)","v":"Select"},null,{"$f":"IFERROR(VLOOKUP(B97,'Schedule V(b)'!$B$11:$Z$315,13,0),0)","v":0},null,{"$f":"IFERROR(VLOOKUP(B97,'Schedule V(b)'!$B$11:$Z$315,15,0),0)","v":"Select"},null,{"$f":"IFERROR(VLOOKUP(B97,'Schedule V(b)'!$B$11:$Z$315,17,0),0)","v":0},null,{"$f":"IFERROR(VLOOKUP(B97,'Schedule V(b)'!$B$11:$Z$315,25,0),0)","v":0},null,{"$f":"IFERROR(VLOOKUP(B97,'Schedule V(b)'!$B$11:$Z$315,23,0),0)","v":0},null,null,null,0]
[87,null,null,{"$f":"IFERROR(VLOOKUP(B98,'Schedule V(b)'!$B$11:$Z$315,3,0),0)","v":0},null,{"$f":"IFERROR(VLOOKUP(B98,'Schedule V(b)'!$B$11:$Z$315,7,0),0)","v":"Select"},null,{"$f":"IFERROR(VLOOKUP(B98,'Schedule V(b)'!$B$11:$Z$315,9,0),0)","v":0},null,{"$f":"IFERROR(VLOOKUP(B98,'Schedule V(b)'!$B$11:$Z$315,11,0),0)","v":"Select"},null,{"$f":"IFERROR(VLOOKUP(B98,'Schedule V(b)'!$B$11:$Z$315,13,0),0)","v":0},null,{"$f":"IFERROR(VLOOKUP(B98,'Schedule V(b)'!$B$11:$Z$315,15,0),0)","v":"Select"},null,{"$f":"IFERROR(VLOOKUP(B98,'Schedule V(b)'!$B$11:$Z$315,17,0),0)","v":0},null,{"$f":"IFERROR(VLOOKUP(B98,'Schedule V(b)'!$B$11:$Z$315,25,0),0)","v":0},null,{"$f":"IFERROR(VLOOKUP(B98,'Schedule V(b)'!$B$11:$Z$315,23,0),0)","v":0},null,null,null,0]
[88,null,null,{"$f":"IFERROR(VLOOKUP(B99,'Schedule V(b)'!$B$11:$Z$315,3,0),0)","v":0},null,{"$f":"IFERROR(VLOOKUP(B99,'Schedule V(b)'!$B$11:$Z$315,7,0),0)","v":"Select"},null,{"$f":"IFERROR(VLOOKUP(B99,'Schedule V(b)'!$B$11:$Z$315,9,0),0)","v":0},null,{"$f":"IFERROR(VLOOKUP(B99,'Schedule V(b)'!$B$11:$Z$315,11,0),0)","v":"Select"},null,{"$f":"IFERROR(VLOOKUP(B99,'Schedule V(b)'!$B$11:$Z$315,13,0),0)","v":0},null,{"$f":"IFERROR(VLOOKUP(B99,'Schedule V(b)'!$B$11:$Z$315,15,0),0)","v":"Select"},null,{"$f":"IFERROR(VLOOKUP(B99,'Schedule V(b)'!$B$11:$Z$315,17,0),0)","v":0},null,{"$f":"IFERROR(VLOOKUP(B99,'Schedule V(b)'!$B$11:$Z$315,25,0),0)","v":0},null,{"$f":"IFERROR(VLOOKUP(B99,'Schedule V(b)'!$B$11:$Z$315,23,0),0)","v":0},null,null,null,0]
[89,null,null,{"$f":"IFERROR(VLOOKUP(B100,'Schedule V(b)'!$B$11:$Z$315,3,0),0)","v":0},null,{"$f":"IFERROR(VLOOKUP(B100,'Schedule V(b)'!$B$11:$Z$315,7,0),0)","v":"Select"},null,{"$f":"IFERROR(VLOOKUP(B100,'Schedule V(b)'!$B$11:$Z$315,9,0),0)","v":0},null,{"$f":"IFERROR(VLOOKUP(B100,'Schedule V(b)'!$B$11:$Z$315,11,0),0)","v":"Select"},null,{"$f":"IFERROR(VLOOKUP(B100,'Schedule V(b)'!$B$11:$Z$315,13,0),0)","v":0},null,{"$f":"IFERROR(VLOOKUP(B100,'Schedule V(b)'!$B$11:$Z$315,15,0),0)","v":"Select"},null,{"$f":"IFERROR(VLOOKUP(B100,'Schedule V(b)'!$B$11:$Z$315,17,0),0)","v":0},null,{"$f":"IFERROR(VLOOKUP(B100,'Schedule V(b)'!$B$11:$Z$315,25,0),0)","v":0},null,{"$f":"IFERROR(VLOOKUP(B100,'Schedule V(b)'!$B$11:$Z$315,23,0),0)","v":0},null,null,null,0]
[90,null,null,{"$f":"IFERROR(VLOOKUP(B101,'Schedule V(b)'!$B$11:$Z$315,3,0),0)","v":0},null,{"$f":"IFERROR(VLOOKUP(B101,'Schedule V(b)'!$B$11:$Z$315,7,0),0)","v":"Select"},null,{"$f":"IFERROR(VLOOKUP(B101,'Schedule V(b)'!$B$11:$Z$315,9,0),0)","v":0},null,{"$f":"IFERROR(VLOOKUP(B101,'Schedule V(b)'!$B$11:$Z$315,11,0),0)","v":"Select"},null,{"$f":"IFERROR(VLOOKUP(B101,'Schedule V(b)'!$B$11:$Z$315,13,0),0)","v":0},null,{"$f":"IFERROR(VLOOKUP(B101,'Schedule V(b)'!$B$11:$Z$315,15,0),0)","v":"Select"},null,{"$f":"IFERROR(VLOOKUP(B101,'Schedule V(b)'!$B$11:$Z$315,17,0),0)","v":0},null,{"$f":"IFERROR(VLOOKUP(B101,'Schedule V(b)'!$B$11:$Z$315,25,0),0)","v":0},null,{"$f":"IFERROR(VLOOKUP(B101,'Schedule V(b)'!$B$11:$Z$315,23,0),0)","v":0},null,null,null,0]
[91,null,null,{"$f":"IFERROR(VLOOKUP(B102,'Schedule V(b)'!$B$11:$Z$315,3,0),0)","v":0},null,{"$f":"IFERROR(VLOOKUP(B102,'Schedule V(b)'!$B$11:$Z$315,7,0),0)","v":"Select"},null,{"$f":"IFERROR(VLOOKUP(B102,'Schedule V(b)'!$B$11:$Z$315,9,0),0)","v":0},null,{"$f":"IFERROR(VLOOKUP(B102,'Schedule V(b)'!$B$11:$Z$315,11,0),0)","v":"Select"},null,{"$f":"IFERROR(VLOOKUP(B102,'Schedule V(b)'!$B$11:$Z$315,13,0),0)","v":0},null,{"$f":"IFERROR(VLOOKUP(B102,'Schedule V(b)'!$B$11:$Z$315,15,0),0)","v":"Select"},null,{"$f":"IFERROR(VLOOKUP(B102,'Schedule V(b)'!$B$11:$Z$315,17,0),0)","v":0},null,{"$f":"IFERROR(VLOOKUP(B102,'Schedule V(b)'!$B$11:$Z$315,25,0),0)","v":0},null,{"$f":"IFERROR(VLOOKUP(B102,'Schedule V(b)'!$B$11:$Z$315,23,0),0)","v":0},null,null,null,0]
[92,null,null,{"$f":"IFERROR(VLOOKUP(B103,'Schedule V(b)'!$B$11:$Z$315,3,0),0)","v":0},null,{"$f":"IFERROR(VLOOKUP(B103,'Schedule V(b)'!$B$11:$Z$315,7,0),0)","v":"Select"},null,{"$f":"IFERROR(VLOOKUP(B103,'Schedule V(b)'!$B$11:$Z$315,9,0),0)","v":0},null,{"$f":"IFERROR(VLOOKUP(B103,'Schedule V(b)'!$B$11:$Z$315,11,0),0)","v":"Select"},null,{"$f":"IFERROR(VLOOKUP(B103,'Schedule V(b)'!$B$11:$Z$315,13,0),0)","v":0},null,{"$f":"IFERROR(VLOOKUP(B103,'Schedule V(b)'!$B$11:$Z$315,15,0),0)","v":"Select"},null,{"$f":"IFERROR(VLOOKUP(B103,'Schedule V(b)'!$B$11:$Z$315,17,0),0)","v":0},null,{"$f":"IFERROR(VLOOKUP(B103,'Schedule V(b)'!$B$11:$Z$315,25,0),0)","v":0},null,{"$f":"IFERROR(VLOOKUP(B103,'Schedule V(b)'!$B$11:$Z$315,23,0),0)","v":0},null,null,null,0]
[93,null,null,{"$f":"IFERROR(VLOOKUP(B104,'Schedule V(b)'!$B$11:$Z$315,3,0),0)","v":0},null,{"$f":"IFERROR(VLOOKUP(B104,'Schedule V(b)'!$B$11:$Z$315,7,0),0)","v":"Select"},null,{"$f":"IFERROR(VLOOKUP(B104,'Schedule V(b)'!$B$11:$Z$315,9,0),0)","v":0},null,{"$f":"IFERROR(VLOOKUP(B104,'Schedule V(b)'!$B$11:$Z$315,11,0),0)","v":"Select"},null,{"$f":"IFERROR(VLOOKUP(B104,'Schedule V(b)'!$B$11:$Z$315,13,0),0)","v":0},null,{"$f":"IFERROR(VLOOKUP(B104,'Schedule V(b)'!$B$11:$Z$315,15,0),0)","v":"Select"},null,{"$f":"IFERROR(VLOOKUP(B104,'Schedule V(b)'!$B$11:$Z$315,17,0),0)","v":0},null,{"$f":"IFERROR(VLOOKUP(B104,'Schedule V(b)'!$B$11:$Z$315,25,0),0)","v":0},null,{"$f":"IFERROR(VLOOKUP(B104,'Schedule V(b)'!$B$11:$Z$315,23,0),0)","v":0},null,null,null,0]
[94,null,null,{"$f":"IFERROR(VLOOKUP(B105,'Schedule V(b)'!$B$11:$Z$315,3,0),0)","v":0},null,{"$f":"IFERROR(VLOOKUP(B105,'Schedule V(b)'!$B$11:$Z$315,7,0),0)","v":"Select"},null,{"$f":"IFERROR(VLOOKUP(B105,'Schedule V(b)'!$B$11:$Z$315,9,0),0)","v":0},null,{"$f":"IFERROR(VLOOKUP(B105,'Schedule V(b)'!$B$11:$Z$315,11,0),0)","v":"Select"},null,{"$f":"IFERROR(VLOOKUP(B105,'Schedule V(b)'!$B$11:$Z$315,13,0),0)","v":0},null,{"$f":"IFERROR(VLOOKUP(B105,'Schedule V(b)'!$B$11:$Z$315,15,0),0)","v":"Select"},null,{"$f":"IFERROR(VLOOKUP(B105,'Schedule V(b)'!$B$11:$Z$315,17,0),0)","v":0},null,{"$f":"IFERROR(VLOOKUP(B105,'Schedule V(b)'!$B$11:$Z$315,25,0),0)","v":0},null,{"$f":"IFERROR(VLOOKUP(B105,'Schedule V(b)'!$B$11:$Z$315,23,0),0)","v":0},null,null,null,0]
[95,null,null,{"$f":"IFERROR(VLOOKUP(B106,'Schedule V(b)'!$B$11:$Z$315,3,0),0)","v":0},null,{"$f":"IFERROR(VLOOKUP(B106,'Schedule V(b)'!$B$11:$Z$315,7,0),0)","v":"Select"},null,{"$f":"IFERROR(VLOOKUP(B106,'Schedule V(b)'!$B$11:$Z$315,9,0),0)","v":0},null,{"$f":"IFERROR(VLOOKUP(B106,'Schedule V(b)'!$B$11:$Z$315,11,0),0)","v":"Select"},null,{"$f":"IFERROR(VLOOKUP(B106,'Schedule V(b)'!$B$11:$Z$315,13,0),0)","v":0},null,{"$f":"IFERROR(VLOOKUP(B106,'Schedule V(b)'!$B$11:$Z$315,15,0),0)","v":"Select"},null,{"$f":"IFERROR(VLOOKUP(B106,'Schedule V(b)'!$B$11:$Z$315,17,0),0)","v":0},null,{"$f":"IFERROR(VLOOKUP(B106,'Schedule V(b)'!$B$11:$Z$315,25,0),0)","v":0},null,{"$f":"IFERROR(VLOOKUP(B106,'Schedule V(b)'!$B$11:$Z$315,23,0),0)","v":0},null,null,null,0]
[96,null,null,{"$f":"IFERROR(VLOOKUP(B107,'Schedule V(b)'!$B$11:$Z$315,3,0),0)","v":0},null,{"$f":"IFERROR(VLOOKUP(B107,'Schedule V(b)'!$B$11:$Z$315,7,0),0)","v":"Select"},null,{"$f":"IFERROR(VLOOKUP(B107,'Schedule V(b)'!$B$11:$Z$315,9,0),0)","v":0},null,{"$f":"IFERROR(VLOOKUP(B107,'Schedule V(b)'!$B$11:$Z$315,11,0),0)","v":"Select"},null,{"$f":"IFERROR(VLOOKUP(B107,'Schedule V(b)'!$B$11:$Z$315,13,0),0)","v":0},null,{"$f":"IFERROR(VLOOKUP(B107,'Schedule V(b)'!$B$11:$Z$315,15,0),0)","v":"Select"},null,{"$f":"IFERROR(VLOOKUP(B107,'Schedule V(b)'!$B$11:$Z$315,17,0),0)","v":0},null,{"$f":"IFERROR(VLOOKUP(B107,'Schedule V(b)'!$B$11:$Z$315,25,0),0)","v":0},null,{"$f":"IFERROR(VLOOKUP(B107,'Schedule V(b)'!$B$11:$Z$315,23,0),0)","v":0},null,null,null,0]
[97,null,null,{"$f":"IFERROR(VLOOKUP(B108,'Schedule V(b)'!$B$11:$Z$315,3,0),0)","v":0},null,{"$f":"IFERROR(VLOOKUP(B108,'Schedule V(b)'!$B$11:$Z$315,7,0),0)","v":"Select"},null,{"$f":"IFERROR(VLOOKUP(B108,'Schedule V(b)'!$B$11:$Z$315,9,0),0)","v":0},null,{"$f":"IFERROR(VLOOKUP(B108,'Schedule V(b)'!$B$11:$Z$315,11,0),0)","v":"Select"},null,{"$f":"IFERROR(VLOOKUP(B108,'Schedule V(b)'!$B$11:$Z$315,13,0),0)","v":0},null,{"$f":"IFERROR(VLOOKUP(B108,'Schedule V(b)'!$B$11:$Z$315,15,0),0)","v":"Select"},null,{"$f":"IFERROR(VLOOKUP(B108,'Schedule V(b)'!$B$11:$Z$315,17,0),0)","v":0},null,{"$f":"IFERROR(VLOOKUP(B108,'Schedule V(b)'!$B$11:$Z$315,25,0),0)","v":0},null,{"$f":"IFERROR(VLOOKUP(B108,'Schedule V(b)'!$B$11:$Z$315,23,0),0)","v":0},null,null,null,0]
[98,null,null,{"$f":"IFERROR(VLOOKUP(B109,'Schedule V(b)'!$B$11:$Z$315,3,0),0)","v":0},null,{"$f":"IFERROR(VLOOKUP(B109,'Schedule V(b)'!$B$11:$Z$315,7,0),0)","v":"Select"},null,{"$f":"IFERROR(VLOOKUP(B109,'Schedule V(b)'!$B$11:$Z$315,9,0),0)","v":0},null,{"$f":"IFERROR(VLOOKUP(B109,'Schedule V(b)'!$B$11:$Z$315,11,0),0)","v":"Select"},null,{"$f":"IFERROR(VLOOKUP(B109,'Schedule V(b)'!$B$11:$Z$315,13,0),0)","v":0},null,{"$f":"IFERROR(VLOOKUP(B109,'Schedule V(b)'!$B$11:$Z$315,15,0),0)","v":"Select"},null,{"$f":"IFERROR(VLOOKUP(B109,'Schedule V(b)'!$B$11:$Z$315,17,0),0)","v":0},null,{"$f":"IFERROR(VLOOKUP(B109,'Schedule V(b)'!$B$11:$Z$315,25,0),0)","v":0},null,{"$f":"IFERROR(VLOOKUP(B109,'Schedule V(b)'!$B$11:$Z$315,23,0),0)","v":0},null,null,null,0]
[99,null,null,{"$f":"IFERROR(VLOOKUP(B110,'Schedule V(b)'!$B$11:$Z$315,3,0),0)","v":0},null,{"$f":"IFERROR(VLOOKUP(B110,'Schedule V(b)'!$B$11:$Z$315,7,0),0)","v":"Select"},null,{"$f":"IFERROR(VLOOKUP(B110,'Schedule V(b)'!$B$11:$Z$315,9,0),0)","v":0},null,{"$f":"IFERROR(VLOOKUP(B110,'Schedule V(b)'!$B$11:$Z$315,11,0),0)","v":"Select"},null,{"$f":"IFERROR(VLOOKUP(B110,'Schedule V(b)'!$B$11:$Z$315,13,0),0)","v":0},null,{"$f":"IFERROR(VLOOKUP(B110,'Schedule V(b)'!$B$11:$Z$315,15,0),0)","v":"Select"},null,{"$f":"IFERROR(VLOOKUP(B110,'Schedule V(b)'!$B$11:$Z$315,17,0),0)","v":0},null,{"$f":"IFERROR(VLOOKUP(B110,'Schedule V(b)'!$B$11:$Z$315,25,0),0)","v":0},null,{"$f":"IFERROR(VLOOKUP(B110,'Schedule V(b)'!$B$11:$Z$315,23,0),0)","v":0},null,null,null,0]
[100,null,null,{"$f":"IFERROR(VLOOKUP(B111,'Schedule V(b)'!$B$11:$Z$315,3,0),0)","v":0},null,{"$f":"IFERROR(VLOOKUP(B111,'Schedule V(b)'!$B$11:$Z$315,7,0),0)","v":"Select"},null,{"$f":"IFERROR(VLOOKUP(B111,'Schedule V(b)'!$B$11:$Z$315,9,0),0)","v":0},null,{"$f":"IFERROR(VLOOKUP(B111,'Schedule V(b)'!$B$11:$Z$315,11,0),0)","v":"Select"},null,{"$f":"IFERROR(VLOOKUP(B111,'Schedule V(b)'!$B$11:$Z$315,13,0),0)","v":0},null,{"$f":"IFERROR(VLOOKUP(B111,'Schedule V(b)'!$B$11:$Z$315,15,0),0)","v":"Select"},null,{"$f":"IFERROR(VLOOKUP(B111,'Schedule V(b)'!$B$11:$Z$315,17,0),0)","v":0},null,{"$f":"IFERROR(VLOOKUP(B111,'Schedule V(b)'!$B$11:$Z$315,25,0),0)","v":0},null,{"$f":"IFERROR(VLOOKUP(B111,'Schedule V(b)'!$B$11:$Z$315,23,0),0)","v":0},null,null,null,0]
[101,null,null,{"$f":"IFERROR(VLOOKUP(B112,'Schedule V(b)'!$B$11:$Z$315,3,0),0)","v":0},null,{"$f":"IFERROR(VLOOKUP(B112,'Schedule V(b)'!$B$11:$Z$315,7,0),0)","v":"Select"},null,{"$f":"IFERROR(VLOOKUP(B112,'Schedule V(b)'!$B$11:$Z$315,9,0),0)","v":0},null,{"$f":"IFERROR(VLOOKUP(B112,'Schedule V(b)'!$B$11:$Z$315,11,0),0)","v":"Select"},null,{"$f":"IFERROR(VLOOKUP(B112,'Schedule V(b)'!$B$11:$Z$315,13,0),0)","v":0},null,{"$f":"IFERROR(VLOOKUP(B112,'Schedule V(b)'!$B$11:$Z$315,15,0),0)","v":"Select"},null,{"$f":"IFERROR(VLOOKUP(B112,'Schedule V(b)'!$B$11:$Z$315,17,0),0)","v":0},null,{"$f":"IFERROR(VLOOKUP(B112,'Schedule V(b)'!$B$11:$Z$315,25,0),0)","v":0},null,{"$f":"IFERROR(VLOOKUP(B112,'Schedule V(b)'!$B$11:$Z$315,23,0),0)","v":0},null,null,null,0]
[102,null,null,{"$f":"IFERROR(VLOOKUP(B113,'Schedule V(b)'!$B$11:$Z$315,3,0),0)","v":0},null,{"$f":"IFERROR(VLOOKUP(B113,'Schedule V(b)'!$B$11:$Z$315,7,0),0)","v":"Select"},null,{"$f":"IFERROR(VLOOKUP(B113,'Schedule V(b)'!$B$11:$Z$315,9,0),0)","v":0},null,{"$f":"IFERROR(VLOOKUP(B113,'Schedule V(b)'!$B$11:$Z$315,11,0),0)","v":"Select"},null,{"$f":"IFERROR(VLOOKUP(B113,'Schedule V(b)'!$B$11:$Z$315,13,0),0)","v":0},null,{"$f":"IFERROR(VLOOKUP(B113,'Schedule V(b)'!$B$11:$Z$315,15,0),0)","v":"Select"},null,{"$f":"IFERROR(VLOOKUP(B113,'Schedule V(b)'!$B$11:$Z$315,17,0),0)","v":0},null,{"$f":"IFERROR(VLOOKUP(B113,'Schedule V(b)'!$B$11:$Z$315,25,0),0)","v":0},null,{"$f":"IFERROR(VLOOKUP(B113,'Schedule V(b)'!$B$11:$Z$315,23,0),0)","v":0},null,null,null,0]
[103,null,null,{"$f":"IFERROR(VLOOKUP(B114,'Schedule V(b)'!$B$11:$Z$315,3,0),0)","v":0},null,{"$f":"IFERROR(VLOOKUP(B114,'Schedule V(b)'!$B$11:$Z$315,7,0),0)","v":"Select"},null,{"$f":"IFERROR(VLOOKUP(B114,'Schedule V(b)'!$B$11:$Z$315,9,0),0)","v":0},null,{"$f":"IFERROR(VLOOKUP(B114,'Schedule V(b)'!$B$11:$Z$315,11,0),0)","v":"Select"},null,{"$f":"IFERROR(VLOOKUP(B114,'Schedule V(b)'!$B$11:$Z$315,13,0),0)","v":0},null,{"$f":"IFERROR(VLOOKUP(B114,'Schedule V(b)'!$B$11:$Z$315,15,0),0)","v":"Select"},null,{"$f":"IFERROR(VLOOKUP(B114,'Schedule V(b)'!$B$11:$Z$315,17,0),0)","v":0},null,{"$f":"IFERROR(VLOOKUP(B114,'Schedule V(b)'!$B$11:$Z$315,25,0),0)","v":0},null,{"$f":"IFERROR(VLOOKUP(B114,'Schedule V(b)'!$B$11:$Z$315,23,0),0)","v":0},null,null,null,0]
[104,null,null,{"$f":"IFERROR(VLOOKUP(B115,'Schedule V(b)'!$B$11:$Z$315,3,0),0)","v":0},null,{"$f":"IFERROR(VLOOKUP(B115,'Schedule V(b)'!$B$11:$Z$315,7,0),0)","v":"Select"},null,{"$f":"IFERROR(VLOOKUP(B115,'Schedule V(b)'!$B$11:$Z$315,9,0),0)","v":0},null,{"$f":"IFERROR(VLOOKUP(B115,'Schedule V(b)'!$B$11:$Z$315,11,0),0)","v":"Select"},null,{"$f":"IFERROR(VLOOKUP(B115,'Schedule V(b)'!$B$11:$Z$315,13,0),0)","v":0},null,{"$f":"IFERROR(VLOOKUP(B115,'Schedule V(b)'!$B$11:$Z$315,15,0),0)","v":"Select"},null,{"$f":"IFERROR(VLOOKUP(B115,'Schedule V(b)'!$B$11:$Z$315,17,0),0)","v":0},null,{"$f":"IFERROR(VLOOKUP(B115,'Schedule V(b)'!$B$11:$Z$315,25,0),0)","v":0},null,{"$f":"IFERROR(VLOOKUP(B115,'Schedule V(b)'!$B$11:$Z$315,23,0),0)","v":0},null,null,null,0]
[105,null,null,{"$f":"IFERROR(VLOOKUP(B116,'Schedule V(b)'!$B$11:$Z$315,3,0),0)","v":0},null,{"$f":"IFERROR(VLOOKUP(B116,'Schedule V(b)'!$B$11:$Z$315,7,0),0)","v":"Select"},null,{"$f":"IFERROR(VLOOKUP(B116,'Schedule V(b)'!$B$11:$Z$315,9,0),0)","v":0},null,{"$f":"IFERROR(VLOOKUP(B116,'Schedule V(b)'!$B$11:$Z$315,11,0),0)","v":"Select"},null,{"$f":"IFERROR(VLOOKUP(B116,'Schedule V(b)'!$B$11:$Z$315,13,0),0)","v":0},null,{"$f":"IFERROR(VLOOKUP(B116,'Schedule V(b)'!$B$11:$Z$315,15,0),0)","v":"Select"},null,{"$f":"IFERROR(VLOOKUP(B116,'Schedule V(b)'!$B$11:$Z$315,17,0),0)","v":0},null,{"$f":"IFERROR(VLOOKUP(B116,'Schedule V(b)'!$B$11:$Z$315,25,0),0)","v":0},null,{"$f":"IFERROR(VLOOKUP(B116,'Schedule V(b)'!$B$11:$Z$315,23,0),0)","v":0},null,null,null,0]
[106,null,null,{"$f":"IFERROR(VLOOKUP(B117,'Schedule V(b)'!$B$11:$Z$315,3,0),0)","v":0},null,{"$f":"IFERROR(VLOOKUP(B117,'Schedule V(b)'!$B$11:$Z$315,7,0),0)","v":"Select"},null,{"$f":"IFERROR(VLOOKUP(B117,'Schedule V(b)'!$B$11:$Z$315,9,0),0)","v":0},null,{"$f":"IFERROR(VLOOKUP(B117,'Schedule V(b)'!$B$11:$Z$315,11,0),0)","v":"Select"},null,{"$f":"IFERROR(VLOOKUP(B117,'Schedule V(b)'!$B$11:$Z$315,13,0),0)","v":0},null,{"$f":"IFERROR(VLOOKUP(B117,'Schedule V(b)'!$B$11:$Z$315,15,0),0)","v":"Select"},null,{"$f":"IFERROR(VLOOKUP(B117,'Schedule V(b)'!$B$11:$Z$315,17,0),0)","v":0},null,{"$f":"IFERROR(VLOOKUP(B117,'Schedule V(b)'!$B$11:$Z$315,25,0),0)","v":0},null,{"$f":"IFERROR(VLOOKUP(B117,'Schedule V(b)'!$B$11:$Z$315,23,0),0)","v":0},null,null,null,0]
[107,null,null,{"$f":"IFERROR(VLOOKUP(B118,'Schedule V(b)'!$B$11:$Z$315,3,0),0)","v":0},null,{"$f":"IFERROR(VLOOKUP(B118,'Schedule V(b)'!$B$11:$Z$315,7,0),0)","v":"Select"},null,{"$f":"IFERROR(VLOOKUP(B118,'Schedule V(b)'!$B$11:$Z$315,9,0),0)","v":0},null,{"$f":"IFERROR(VLOOKUP(B118,'Schedule V(b)'!$B$11:$Z$315,11,0),0)","v":"Select"},null,{"$f":"IFERROR(VLOOKUP(B118,'Schedule V(b)'!$B$11:$Z$315,13,0),0)","v":0},null,{"$f":"IFERROR(VLOOKUP(B118,'Schedule V(b)'!$B$11:$Z$315,15,0),0)","v":"Select"},null,{"$f":"IFERROR(VLOOKUP(B118,'Schedule V(b)'!$B$11:$Z$315,17,0),0)","v":0},null,{"$f":"IFERROR(VLOOKUP(B118,'Schedule V(b)'!$B$11:$Z$315,25,0),0)","v":0},null,{"$f":"IFERROR(VLOOKUP(B118,'Schedule V(b)'!$B$11:$Z$315,23,0),0)","v":0},null,null,null,0]
[108,null,null,{"$f":"IFERROR(VLOOKUP(B119,'Schedule V(b)'!$B$11:$Z$315,3,0),0)","v":0},null,{"$f":"IFERROR(VLOOKUP(B119,'Schedule V(b)'!$B$11:$Z$315,7,0),0)","v":"Select"},null,{"$f":"IFERROR(VLOOKUP(B119,'Schedule V(b)'!$B$11:$Z$315,9,0),0)","v":0},null,{"$f":"IFERROR(VLOOKUP(B119,'Schedule V(b)'!$B$11:$Z$315,11,0),0)","v":"Select"},null,{"$f":"IFERROR(VLOOKUP(B119,'Schedule V(b)'!$B$11:$Z$315,13,0),0)","v":0},null,{"$f":"IFERROR(VLOOKUP(B119,'Schedule V(b)'!$B$11:$Z$315,15,0),0)","v":"Select"},null,{"$f":"IFERROR(VLOOKUP(B119,'Schedule V(b)'!$B$11:$Z$315,17,0),0)","v":0},null,{"$f":"IFERROR(VLOOKUP(B119,'Schedule V(b)'!$B$11:$Z$315,25,0),0)","v":0},null,{"$f":"IFERROR(VLOOKUP(B119,'Schedule V(b)'!$B$11:$Z$315,23,0),0)","v":0},null,null,null,0]
[109,null,null,{"$f":"IFERROR(VLOOKUP(B120,'Schedule V(b)'!$B$11:$Z$315,3,0),0)","v":0},null,{"$f":"IFERROR(VLOOKUP(B120,'Schedule V(b)'!$B$11:$Z$315,7,0),0)","v":"Select"},null,{"$f":"IFERROR(VLOOKUP(B120,'Schedule V(b)'!$B$11:$Z$315,9,0),0)","v":0},null,{"$f":"IFERROR(VLOOKUP(B120,'Schedule V(b)'!$B$11:$Z$315,11,0),0)","v":"Select"},null,{"$f":"IFERROR(VLOOKUP(B120,'Schedule V(b)'!$B$11:$Z$315,13,0),0)","v":0},null,{"$f":"IFERROR(VLOOKUP(B120,'Schedule V(b)'!$B$11:$Z$315,15,0),0)","v":"Select"},null,{"$f":"IFERROR(VLOOKUP(B120,'Schedule V(b)'!$B$11:$Z$315,17,0),0)","v":0},null,{"$f":"IFERROR(VLOOKUP(B120,'Schedule V(b)'!$B$11:$Z$315,25,0),0)","v":0},null,{"$f":"IFERROR(VLOOKUP(B120,'Schedule V(b)'!$B$11:$Z$315,23,0),0)","v":0},null,null,null,0]
[110,null,null,{"$f":"IFERROR(VLOOKUP(B121,'Schedule V(b)'!$B$11:$Z$315,3,0),0)","v":0},null,{"$f":"IFERROR(VLOOKUP(B121,'Schedule V(b)'!$B$11:$Z$315,7,0),0)","v":"Select"},null,{"$f":"IFERROR(VLOOKUP(B121,'Schedule V(b)'!$B$11:$Z$315,9,0),0)","v":0},null,{"$f":"IFERROR(VLOOKUP(B121,'Schedule V(b)'!$B$11:$Z$315,11,0),0)","v":"Select"},null,{"$f":"IFERROR(VLOOKUP(B121,'Schedule V(b)'!$B$11:$Z$315,13,0),0)","v":0},null,{"$f":"IFERROR(VLOOKUP(B121,'Schedule V(b)'!$B$11:$Z$315,15,0),0)","v":"Select"},null,{"$f":"IFERROR(VLOOKUP(B121,'Schedule V(b)'!$B$11:$Z$315,17,0),0)","v":0},null,{"$f":"IFERROR(VLOOKUP(B121,'Schedule V(b)'!$B$11:$Z$315,25,0),0)","v":0},null,{"$f":"IFERROR(VLOOKUP(B121,'Schedule V(b)'!$B$11:$Z$315,23,0),0)","v":0},null,null,null,0]
[111,null,null,{"$f":"IFERROR(VLOOKUP(B122,'Schedule V(b)'!$B$11:$Z$315,3,0),0)","v":0},null,{"$f":"IFERROR(VLOOKUP(B122,'Schedule V(b)'!$B$11:$Z$315,7,0),0)","v":"Select"},null,{"$f":"IFERROR(VLOOKUP(B122,'Schedule V(b)'!$B$11:$Z$315,9,0),0)","v":0},null,{"$f":"IFERROR(VLOOKUP(B122,'Schedule V(b)'!$B$11:$Z$315,11,0),0)","v":"Select"},null,{"$f":"IFERROR(VLOOKUP(B122,'Schedule V(b)'!$B$11:$Z$315,13,0),0)","v":0},null,{"$f":"IFERROR(VLOOKUP(B122,'Schedule V(b)'!$B$11:$Z$315,15,0),0)","v":"Select"},null,{"$f":"IFERROR(VLOOKUP(B122,'Schedule V(b)'!$B$11:$Z$315,17,0),0)","v":0},null,{"$f":"IFERROR(VLOOKUP(B122,'Schedule V(b)'!$B$11:$Z$315,25,0),0)","v":0},null,{"$f":"IFERROR(VLOOKUP(B122,'Schedule V(b)'!$B$11:$Z$315,23,0),0)","v":0},null,null,null,0]
[112,null,null,{"$f":"IFERROR(VLOOKUP(B123,'Schedule V(b)'!$B$11:$Z$315,3,0),0)","v":0},null,{"$f":"IFERROR(VLOOKUP(B123,'Schedule V(b)'!$B$11:$Z$315,7,0),0)","v":"Select"},null,{"$f":"IFERROR(VLOOKUP(B123,'Schedule V(b)'!$B$11:$Z$315,9,0),0)","v":0},null,{"$f":"IFERROR(VLOOKUP(B123,'Schedule V(b)'!$B$11:$Z$315,11,0),0)","v":"Select"},null,{"$f":"IFERROR(VLOOKUP(B123,'Schedule V(b)'!$B$11:$Z$315,13,0),0)","v":0},null,{"$f":"IFERROR(VLOOKUP(B123,'Schedule V(b)'!$B$11:$Z$315,15,0),0)","v":"Select"},null,{"$f":"IFERROR(VLOOKUP(B123,'Schedule V(b)'!$B$11:$Z$315,17,0),0)","v":0},null,{"$f":"IFERROR(VLOOKUP(B123,'Schedule V(b)'!$B$11:$Z$315,25,0),0)","v":0},null,{"$f":"IFERROR(VLOOKUP(B123,'Schedule V(b)'!$B$11:$Z$315,23,0),0)","v":0},null,null,null,0]
[113,null,null,{"$f":"IFERROR(VLOOKUP(B124,'Schedule V(b)'!$B$11:$Z$315,3,0),0)","v":0},null,{"$f":"IFERROR(VLOOKUP(B124,'Schedule V(b)'!$B$11:$Z$315,7,0),0)","v":"Select"},null,{"$f":"IFERROR(VLOOKUP(B124,'Schedule V(b)'!$B$11:$Z$315,9,0),0)","v":0},null,{"$f":"IFERROR(VLOOKUP(B124,'Schedule V(b)'!$B$11:$Z$315,11,0),0)","v":"Select"},null,{"$f":"IFERROR(VLOOKUP(B124,'Schedule V(b)'!$B$11:$Z$315,13,0),0)","v":0},null,{"$f":"IFERROR(VLOOKUP(B124,'Schedule V(b)'!$B$11:$Z$315,15,0),0)","v":"Select"},null,{"$f":"IFERROR(VLOOKUP(B124,'Schedule V(b)'!$B$11:$Z$315,17,0),0)","v":0},null,{"$f":"IFERROR(VLOOKUP(B124,'Schedule V(b)'!$B$11:$Z$315,25,0),0)","v":0},null,{"$f":"IFERROR(VLOOKUP(B124,'Schedule V(b)'!$B$11:$Z$315,23,0),0)","v":0},null,null,null,0]
[114,null,null,{"$f":"IFERROR(VLOOKUP(B125,'Schedule V(b)'!$B$11:$Z$315,3,0),0)","v":0},null,{"$f":"IFERROR(VLOOKUP(B125,'Schedule V(b)'!$B$11:$Z$315,7,0),0)","v":"Select"},null,{"$f":"IFERROR(VLOOKUP(B125,'Schedule V(b)'!$B$11:$Z$315,9,0),0)","v":0},null,{"$f":"IFERROR(VLOOKUP(B125,'Schedule V(b)'!$B$11:$Z$315,11,0),0)","v":"Select"},null,{"$f":"IFERROR(VLOOKUP(B125,'Schedule V(b)'!$B$11:$Z$315,13,0),0)","v":0},null,{"$f":"IFERROR(VLOOKUP(B125,'Schedule V(b)'!$B$11:$Z$315,15,0),0)","v":"Select"},null,{"$f":"IFERROR(VLOOKUP(B125,'Schedule V(b)'!$B$11:$Z$315,17,0),0)","v":0},null,{"$f":"IFERROR(VLOOKUP(B125,'Schedule V(b)'!$B$11:$Z$315,25,0),0)","v":0},null,{"$f":"IFERROR(VLOOKUP(B125,'Schedule V(b)'!$B$11:$Z$315,23,0),0)","v":0},null,null,null,0]
[115,null,null,{"$f":"IFERROR(VLOOKUP(B126,'Schedule V(b)'!$B$11:$Z$315,3,0),0)","v":0},null,{"$f":"IFERROR(VLOOKUP(B126,'Schedule V(b)'!$B$11:$Z$315,7,0),0)","v":"Select"},null,{"$f":"IFERROR(VLOOKUP(B126,'Schedule V(b)'!$B$11:$Z$315,9,0),0)","v":0},null,{"$f":"IFERROR(VLOOKUP(B126,'Schedule V(b)'!$B$11:$Z$315,11,0),0)","v":"Select"},null,{"$f":"IFERROR(VLOOKUP(B126,'Schedule V(b)'!$B$11:$Z$315,13,0),0)","v":0},null,{"$f":"IFERROR(VLOOKUP(B126,'Schedule V(b)'!$B$11:$Z$315,15,0),0)","v":"Select"},null,{"$f":"IFERROR(VLOOKUP(B126,'Schedule V(b)'!$B$11:$Z$315,17,0),0)","v":0},null,{"$f":"IFERROR(VLOOKUP(B126,'Schedule V(b)'!$B$11:$Z$315,25,0),0)","v":0},null,{"$f":"IFERROR(VLOOKUP(B126,'Schedule V(b)'!$B$11:$Z$315,23,0),0)","v":0},null,null,null,0]
[116,null,null,{"$f":"IFERROR(VLOOKUP(B127,'Schedule V(b)'!$B$11:$Z$315,3,0),0)","v":0},null,{"$f":"IFERROR(VLOOKUP(B127,'Schedule V(b)'!$B$11:$Z$315,7,0),0)","v":"Select"},null,{"$f":"IFERROR(VLOOKUP(B127,'Schedule V(b)'!$B$11:$Z$315,9,0),0)","v":0},null,{"$f":"IFERROR(VLOOKUP(B127,'Schedule V(b)'!$B$11:$Z$315,11,0),0)","v":"Select"},null,{"$f":"IFERROR(VLOOKUP(B127,'Schedule V(b)'!$B$11:$Z$315,13,0),0)","v":0},null,{"$f":"IFERROR(VLOOKUP(B127,'Schedule V(b)'!$B$11:$Z$315,15,0),0)","v":"Select"},null,{"$f":"IFERROR(VLOOKUP(B127,'Schedule V(b)'!$B$11:$Z$315,17,0),0)","v":0},null,{"$f":"IFERROR(VLOOKUP(B127,'Schedule V(b)'!$B$11:$Z$315,25,0),0)","v":0},null,{"$f":"IFERROR(VLOOKUP(B127,'Schedule V(b)'!$B$11:$Z$315,23,0),0)","v":0},null,null,null,0]
[117,null,null,{"$f":"IFERROR(VLOOKUP(B128,'Schedule V(b)'!$B$11:$Z$315,3,0),0)","v":0},null,{"$f":"IFERROR(VLOOKUP(B128,'Schedule V(b)'!$B$11:$Z$315,7,0),0)","v":"Select"},null,{"$f":"IFERROR(VLOOKUP(B128,'Schedule V(b)'!$B$11:$Z$315,9,0),0)","v":0},null,{"$f":"IFERROR(VLOOKUP(B128,'Schedule V(b)'!$B$11:$Z$315,11,0),0)","v":"Select"},null,{"$f":"IFERROR(VLOOKUP(B128,'Schedule V(b)'!$B$11:$Z$315,13,0),0)","v":0},null,{"$f":"IFERROR(VLOOKUP(B128,'Schedule V(b)'!$B$11:$Z$315,15,0),0)","v":"Select"},null,{"$f":"IFERROR(VLOOKUP(B128,'Schedule V(b)'!$B$11:$Z$315,17,0),0)","v":0},null,{"$f":"IFERROR(VLOOKUP(B128,'Schedule V(b)'!$B$11:$Z$315,25,0),0)","v":0},null,{"$f":"IFERROR(VLOOKUP(B128,'Schedule V(b)'!$B$11:$Z$315,23,0),0)","v":0},null,null,null,0]
[118,null,null,{"$f":"IFERROR(VLOOKUP(B129,'Schedule V(b)'!$B$11:$Z$315,3,0),0)","v":0},null,{"$f":"IFERROR(VLOOKUP(B129,'Schedule V(b)'!$B$11:$Z$315,7,0),0)","v":"Select"},null,{"$f":"IFERROR(VLOOKUP(B129,'Schedule V(b)'!$B$11:$Z$315,9,0),0)","v":0},null,{"$f":"IFERROR(VLOOKUP(B129,'Schedule V(b)'!$B$11:$Z$315,11,0),0)","v":"Select"},null,{"$f":"IFERROR(VLOOKUP(B129,'Schedule V(b)'!$B$11:$Z$315,13,0),0)","v":0},null,{"$f":"IFERROR(VLOOKUP(B129,'Schedule V(b)'!$B$11:$Z$315,15,0),0)","v":"Select"},null,{"$f":"IFERROR(VLOOKUP(B129,'Schedule V(b)'!$B$11:$Z$315,17,0),0)","v":0},null,{"$f":"IFERROR(VLOOKUP(B129,'Schedule V(b)'!$B$11:$Z$315,25,0),0)","v":0},null,{"$f":"IFERROR(VLOOKUP(B129,'Schedule V(b)'!$B$11:$Z$315,23,0),0)","v":0},null,null,null,0]
[119,null,null,{"$f":"IFERROR(VLOOKUP(B130,'Schedule V(b)'!$B$11:$Z$315,3,0),0)","v":0},null,{"$f":"IFERROR(VLOOKUP(B130,'Schedule V(b)'!$B$11:$Z$315,7,0),0)","v":"Select"},null,{"$f":"IFERROR(VLOOKUP(B130,'Schedule V(b)'!$B$11:$Z$315,9,0),0)","v":0},null,{"$f":"IFERROR(VLOOKUP(B130,'Schedule V(b)'!$B$11:$Z$315,11,0),0)","v":"Select"},null,{"$f":"IFERROR(VLOOKUP(B130,'Schedule V(b)'!$B$11:$Z$315,13,0),0)","v":0},null,{"$f":"IFERROR(VLOOKUP(B130,'Schedule V(b)'!$B$11:$Z$315,15,0),0)","v":"Select"},null,{"$f":"IFERROR(VLOOKUP(B130,'Schedule V(b)'!$B$11:$Z$315,17,0),0)","v":0},null,{"$f":"IFERROR(VLOOKUP(B130,'Schedule V(b)'!$B$11:$Z$315,25,0),0)","v":0},null,{"$f":"IFERROR(VLOOKUP(B130,'Schedule V(b)'!$B$11:$Z$315,23,0),0)","v":0},null,null,null,0]
[120,null,null,{"$f":"IFERROR(VLOOKUP(B131,'Schedule V(b)'!$B$11:$Z$315,3,0),0)","v":0},null,{"$f":"IFERROR(VLOOKUP(B131,'Schedule V(b)'!$B$11:$Z$315,7,0),0)","v":"Select"},null,{"$f":"IFERROR(VLOOKUP(B131,'Schedule V(b)'!$B$11:$Z$315,9,0),0)","v":0},null,{"$f":"IFERROR(VLOOKUP(B131,'Schedule V(b)'!$B$11:$Z$315,11,0),0)","v":"Select"},null,{"$f":"IFERROR(VLOOKUP(B131,'Schedule V(b)'!$B$11:$Z$315,13,0),0)","v":0},null,{"$f":"IFERROR(VLOOKUP(B131,'Schedule V(b)'!$B$11:$Z$315,15,0),0)","v":"Select"},null,{"$f":"IFERROR(VLOOKUP(B131,'Schedule V(b)'!$B$11:$Z$315,17,0),0)","v":0},null,{"$f":"IFERROR(VLOOKUP(B131,'Schedule V(b)'!$B$11:$Z$315,25,0),0)","v":0},null,{"$f":"IFERROR(VLOOKUP(B131,'Schedule V(b)'!$B$11:$Z$315,23,0),0)","v":0},null,null,null,0]
[121,null,null,{"$f":"IFERROR(VLOOKUP(B132,'Schedule V(b)'!$B$11:$Z$315,3,0),0)","v":0},null,{"$f":"IFERROR(VLOOKUP(B132,'Schedule V(b)'!$B$11:$Z$315,7,0),0)","v":"Select"},null,{"$f":"IFERROR(VLOOKUP(B132,'Schedule V(b)'!$B$11:$Z$315,9,0),0)","v":0},null,{"$f":"IFERROR(VLOOKUP(B132,'Schedule V(b)'!$B$11:$Z$315,11,0),0)","v":"Select"},null,{"$f":"IFERROR(VLOOKUP(B132,'Schedule V(b)'!$B$11:$Z$315,13,0),0)","v":0},null,{"$f":"IFERROR(VLOOKUP(B132,'Schedule V(b)'!$B$11:$Z$315,15,0),0)","v":"Select"},null,{"$f":"IFERROR(VLOOKUP(B132,'Schedule V(b)'!$B$11:$Z$315,17,0),0)","v":0},null,{"$f":"IFERROR(VLOOKUP(B132,'Schedule V(b)'!$B$11:$Z$315,25,0),0)","v":0},null,{"$f":"IFERROR(VLOOKUP(B132,'Schedule V(b)'!$B$11:$Z$315,23,0),0)","v":0},null,null,null,0]
[122,null,null,{"$f":"IFERROR(VLOOKUP(B133,'Schedule V(b)'!$B$11:$Z$315,3,0),0)","v":0},null,{"$f":"IFERROR(VLOOKUP(B133,'Schedule V(b)'!$B$11:$Z$315,7,0),0)","v":"Select"},null,{"$f":"IFERROR(VLOOKUP(B133,'Schedule V(b)'!$B$11:$Z$315,9,0),0)","v":0},null,{"$f":"IFERROR(VLOOKUP(B133,'Schedule V(b)'!$B$11:$Z$315,11,0),0)","v":"Select"},null,{"$f":"IFERROR(VLOOKUP(B133,'Schedule V(b)'!$B$11:$Z$315,13,0),0)","v":0},null,{"$f":"IFERROR(VLOOKUP(B133,'Schedule V(b)'!$B$11:$Z$315,15,0),0)","v":"Select"},null,{"$f":"IFERROR(VLOOKUP(B133,'Schedule V(b)'!$B$11:$Z$315,17,0),0)","v":0},null,{"$f":"IFERROR(VLOOKUP(B133,'Schedule V(b)'!$B$11:$Z$315,25,0),0)","v":0},null,{"$f":"IFERROR(VLOOKUP(B133,'Schedule V(b)'!$B$11:$Z$315,23,0),0)","v":0},null,null,null,0]
[123,null,null,{"$f":"IFERROR(VLOOKUP(B134,'Schedule V(b)'!$B$11:$Z$315,3,0),0)","v":0},null,{"$f":"IFERROR(VLOOKUP(B134,'Schedule V(b)'!$B$11:$Z$315,7,0),0)","v":"Select"},null,{"$f":"IFERROR(VLOOKUP(B134,'Schedule V(b)'!$B$11:$Z$315,9,0),0)","v":0},null,{"$f":"IFERROR(VLOOKUP(B134,'Schedule V(b)'!$B$11:$Z$315,11,0),0)","v":"Select"},null,{"$f":"IFERROR(VLOOKUP(B134,'Schedule V(b)'!$B$11:$Z$315,13,0),0)","v":0},null,{"$f":"IFERROR(VLOOKUP(B134,'Schedule V(b)'!$B$11:$Z$315,15,0),0)","v":"Select"},null,{"$f":"IFERROR(VLOOKUP(B134,'Schedule V(b)'!$B$11:$Z$315,17,0),0)","v":0},null,{"$f":"IFERROR(VLOOKUP(B134,'Schedule V(b)'!$B$11:$Z$315,25,0),0)","v":0},null,{"$f":"IFERROR(VLOOKUP(B134,'Schedule V(b)'!$B$11:$Z$315,23,0),0)","v":0},null,null,null,0]
[124,null,null,{"$f":"IFERROR(VLOOKUP(B135,'Schedule V(b)'!$B$11:$Z$315,3,0),0)","v":0},null,{"$f":"IFERROR(VLOOKUP(B135,'Schedule V(b)'!$B$11:$Z$315,7,0),0)","v":"Select"},null,{"$f":"IFERROR(VLOOKUP(B135,'Schedule V(b)'!$B$11:$Z$315,9,0),0)","v":0},null,{"$f":"IFERROR(VLOOKUP(B135,'Schedule V(b)'!$B$11:$Z$315,11,0),0)","v":"Select"},null,{"$f":"IFERROR(VLOOKUP(B135,'Schedule V(b)'!$B$11:$Z$315,13,0),0)","v":0},null,{"$f":"IFERROR(VLOOKUP(B135,'Schedule V(b)'!$B$11:$Z$315,15,0),0)","v":"Select"},null,{"$f":"IFERROR(VLOOKUP(B135,'Schedule V(b)'!$B$11:$Z$315,17,0),0)","v":0},null,{"$f":"IFERROR(VLOOKUP(B135,'Schedule V(b)'!$B$11:$Z$315,25,0),0)","v":0},null,{"$f":"IFERROR(VLOOKUP(B135,'Schedule V(b)'!$B$11:$Z$315,23,0),0)","v":0},null,null,null,0]
[125,null,null,{"$f":"IFERROR(VLOOKUP(B136,'Schedule V(b)'!$B$11:$Z$315,3,0),0)","v":0},null,{"$f":"IFERROR(VLOOKUP(B136,'Schedule V(b)'!$B$11:$Z$315,7,0),0)","v":"Select"},null,{"$f":"IFERROR(VLOOKUP(B136,'Schedule V(b)'!$B$11:$Z$315,9,0),0)","v":0},null,{"$f":"IFERROR(VLOOKUP(B136,'Schedule V(b)'!$B$11:$Z$315,11,0),0)","v":"Select"},null,{"$f":"IFERROR(VLOOKUP(B136,'Schedule V(b)'!$B$11:$Z$315,13,0),0)","v":0},null,{"$f":"IFERROR(VLOOKUP(B136,'Schedule V(b)'!$B$11:$Z$315,15,0),0)","v":"Select"},null,{"$f":"IFERROR(VLOOKUP(B136,'Schedule V(b)'!$B$11:$Z$315,17,0),0)","v":0},null,{"$f":"IFERROR(VLOOKUP(B136,'Schedule V(b)'!$B$11:$Z$315,25,0),0)","v":0},null,{"$f":"IFERROR(VLOOKUP(B136,'Schedule V(b)'!$B$11:$Z$315,23,0),0)","v":0},null,null,null,0]
[126,null,null,{"$f":"IFERROR(VLOOKUP(B137,'Schedule V(b)'!$B$11:$Z$315,3,0),0)","v":0},null,{"$f":"IFERROR(VLOOKUP(B137,'Schedule V(b)'!$B$11:$Z$315,7,0),0)","v":"Select"},null,{"$f":"IFERROR(VLOOKUP(B137,'Schedule V(b)'!$B$11:$Z$315,9,0),0)","v":0},null,{"$f":"IFERROR(VLOOKUP(B137,'Schedule V(b)'!$B$11:$Z$315,11,0),0)","v":"Select"},null,{"$f":"IFERROR(VLOOKUP(B137,'Schedule V(b)'!$B$11:$Z$315,13,0),0)","v":0},null,{"$f":"IFERROR(VLOOKUP(B137,'Schedule V(b)'!$B$11:$Z$315,15,0),0)","v":"Select"},null,{"$f":"IFERROR(VLOOKUP(B137,'Schedule V(b)'!$B$11:$Z$315,17,0),0)","v":0},null,{"$f":"IFERROR(VLOOKUP(B137,'Schedule V(b)'!$B$11:$Z$315,25,0),0)","v":0},null,{"$f":"IFERROR(VLOOKUP(B137,'Schedule V(b)'!$B$11:$Z$315,23,0),0)","v":0},null,null,null,0]
[127,null,null,{"$f":"IFERROR(VLOOKUP(B138,'Schedule V(b)'!$B$11:$Z$315,3,0),0)","v":0},null,{"$f":"IFERROR(VLOOKUP(B138,'Schedule V(b)'!$B$11:$Z$315,7,0),0)","v":"Select"},null,{"$f":"IFERROR(VLOOKUP(B138,'Schedule V(b)'!$B$11:$Z$315,9,0),0)","v":0},null,{"$f":"IFERROR(VLOOKUP(B138,'Schedule V(b)'!$B$11:$Z$315,11,0),0)","v":"Select"},null,{"$f":"IFERROR(VLOOKUP(B138,'Schedule V(b)'!$B$11:$Z$315,13,0),0)","v":0},null,{"$f":"IFERROR(VLOOKUP(B138,'Schedule V(b)'!$B$11:$Z$315,15,0),0)","v":"Select"},null,{"$f":"IFERROR(VLOOKUP(B138,'Schedule V(b)'!$B$11:$Z$315,17,0),0)","v":0},null,{"$f":"IFERROR(VLOOKUP(B138,'Schedule V(b)'!$B$11:$Z$315,25,0),0)","v":0},null,{"$f":"IFERROR(VLOOKUP(B138,'Schedule V(b)'!$B$11:$Z$315,23,0),0)","v":0},null,null,null,0]
[128,null,null,{"$f":"IFERROR(VLOOKUP(B139,'Schedule V(b)'!$B$11:$Z$315,3,0),0)","v":0},null,{"$f":"IFERROR(VLOOKUP(B139,'Schedule V(b)'!$B$11:$Z$315,7,0),0)","v":"Select"},null,{"$f":"IFERROR(VLOOKUP(B139,'Schedule V(b)'!$B$11:$Z$315,9,0),0)","v":0},null,{"$f":"IFERROR(VLOOKUP(B139,'Schedule V(b)'!$B$11:$Z$315,11,0),0)","v":"Select"},null,{"$f":"IFERROR(VLOOKUP(B139,'Schedule V(b)'!$B$11:$Z$315,13,0),0)","v":0},null,{"$f":"IFERROR(VLOOKUP(B139,'Schedule V(b)'!$B$11:$Z$315,15,0),0)","v":"Select"},null,{"$f":"IFERROR(VLOOKUP(B139,'Schedule V(b)'!$B$11:$Z$315,17,0),0)","v":0},null,{"$f":"IFERROR(VLOOKUP(B139,'Schedule V(b)'!$B$11:$Z$315,25,0),0)","v":0},null,{"$f":"IFERROR(VLOOKUP(B139,'Schedule V(b)'!$B$11:$Z$315,23,0),0)","v":0},null,null,null,0]
[129,null,null,{"$f":"IFERROR(VLOOKUP(B140,'Schedule V(b)'!$B$11:$Z$315,3,0),0)","v":0},null,{"$f":"IFERROR(VLOOKUP(B140,'Schedule V(b)'!$B$11:$Z$315,7,0),0)","v":"Select"},null,{"$f":"IFERROR(VLOOKUP(B140,'Schedule V(b)'!$B$11:$Z$315,9,0),0)","v":0},null,{"$f":"IFERROR(VLOOKUP(B140,'Schedule V(b)'!$B$11:$Z$315,11,0),0)","v":"Select"},null,{"$f":"IFERROR(VLOOKUP(B140,'Schedule V(b)'!$B$11:$Z$315,13,0),0)","v":0},null,{"$f":"IFERROR(VLOOKUP(B140,'Schedule V(b)'!$B$11:$Z$315,15,0),0)","v":"Select"},null,{"$f":"IFERROR(VLOOKUP(B140,'Schedule V(b)'!$B$11:$Z$315,17,0),0)","v":0},null,{"$f":"IFERROR(VLOOKUP(B140,'Schedule V(b)'!$B$11:$Z$315,25,0),0)","v":0},null,{"$f":"IFERROR(VLOOKUP(B140,'Schedule V(b)'!$B$11:$Z$315,23,0),0)","v":0},null,null,null,{"$f":"$P140*$V140","v":0}]
[130,null,null,{"$f":"IFERROR(VLOOKUP(B141,'Schedule V(b)'!$B$11:$Z$315,3,0),0)","v":0},null,{"$f":"IFERROR(VLOOKUP(B141,'Schedule V(b)'!$B$11:$Z$315,7,0),0)","v":"Select"},null,{"$f":"IFERROR(VLOOKUP(B141,'Schedule V(b)'!$B$11:$Z$315,9,0),0)","v":0},null,{"$f":"IFERROR(VLOOKUP(B141,'Schedule V(b)'!$B$11:$Z$315,11,0),0)","v":"Select"},null,{"$f":"IFERROR(VLOOKUP(B141,'Schedule V(b)'!$B$11:$Z$315,13,0),0)","v":0},null,{"$f":"IFERROR(VLOOKUP(B141,'Schedule V(b)'!$B$11:$Z$315,15,0),0)","v":"Select"},null,{"$f":"IFERROR(VLOOKUP(B141,'Schedule V(b)'!$B$11:$Z$315,17,0),0)","v":0},null,{"$f":"IFERROR(VLOOKUP(B141,'Schedule V(b)'!$B$11:$Z$315,25,0),0)","v":0},null,{"$f":"IFERROR(VLOOKUP(B141,'Schedule V(b)'!$B$11:$Z$315,23,0),0)","v":0},null,null,null,0]
[131,null,null,{"$f":"IFERROR(VLOOKUP(B142,'Schedule V(b)'!$B$11:$Z$315,3,0),0)","v":0},null,{"$f":"IFERROR(VLOOKUP(B142,'Schedule V(b)'!$B$11:$Z$315,7,0),0)","v":"Select"},null,{"$f":"IFERROR(VLOOKUP(B142,'Schedule V(b)'!$B$11:$Z$315,9,0),0)","v":0},null,{"$f":"IFERROR(VLOOKUP(B142,'Schedule V(b)'!$B$11:$Z$315,11,0),0)","v":"Select"},null,{"$f":"IFERROR(VLOOKUP(B142,'Schedule V(b)'!$B$11:$Z$315,13,0),0)","v":0},null,{"$f":"IFERROR(VLOOKUP(B142,'Schedule V(b)'!$B$11:$Z$315,15,0),0)","v":"Select"},null,{"$f":"IFERROR(VLOOKUP(B142,'Schedule V(b)'!$B$11:$Z$315,17,0),0)","v":0},null,{"$f":"IFERROR(VLOOKUP(B142,'Schedule V(b)'!$B$11:$Z$315,25,0),0)","v":0},null,{"$f":"IFERROR(VLOOKUP(B142,'Schedule V(b)'!$B$11:$Z$315,23,0),0)","v":0},null,null,null,0]
[132,null,null,{"$f":"IFERROR(VLOOKUP(B143,'Schedule V(b)'!$B$11:$Z$315,3,0),0)","v":0},null,{"$f":"IFERROR(VLOOKUP(B143,'Schedule V(b)'!$B$11:$Z$315,7,0),0)","v":"Select"},null,{"$f":"IFERROR(VLOOKUP(B143,'Schedule V(b)'!$B$11:$Z$315,9,0),0)","v":0},null,{"$f":"IFERROR(VLOOKUP(B143,'Schedule V(b)'!$B$11:$Z$315,11,0),0)","v":"Select"},null,{"$f":"IFERROR(VLOOKUP(B143,'Schedule V(b)'!$B$11:$Z$315,13,0),0)","v":0},null,{"$f":"IFERROR(VLOOKUP(B143,'Schedule V(b)'!$B$11:$Z$315,15,0),0)","v":"Select"},null,{"$f":"IFERROR(VLOOKUP(B143,'Schedule V(b)'!$B$11:$Z$315,17,0),0)","v":0},null,{"$f":"IFERROR(VLOOKUP(B143,'Schedule V(b)'!$B$11:$Z$315,25,0),0)","v":0},null,{"$f":"IFERROR(VLOOKUP(B143,'Schedule V(b)'!$B$11:$Z$315,23,0),0)","v":0},null,null,null,0]
[133,null,null,{"$f":"IFERROR(VLOOKUP(B144,'Schedule V(b)'!$B$11:$Z$315,3,0),0)","v":0},null,{"$f":"IFERROR(VLOOKUP(B144,'Schedule V(b)'!$B$11:$Z$315,7,0),0)","v":"Select"},null,{"$f":"IFERROR(VLOOKUP(B144,'Schedule V(b)'!$B$11:$Z$315,9,0),0)","v":0},null,{"$f":"IFERROR(VLOOKUP(B144,'Schedule V(b)'!$B$11:$Z$315,11,0),0)","v":"Select"},null,{"$f":"IFERROR(VLOOKUP(B144,'Schedule V(b)'!$B$11:$Z$315,13,0),0)","v":0},null,{"$f":"IFERROR(VLOOKUP(B144,'Schedule V(b)'!$B$11:$Z$315,15,0),0)","v":"Select"},null,{"$f":"IFERROR(VLOOKUP(B144,'Schedule V(b)'!$B$11:$Z$315,17,0),0)","v":0},null,{"$f":"IFERROR(VLOOKUP(B144,'Schedule V(b)'!$B$11:$Z$315,25,0),0)","v":0},null,{"$f":"IFERROR(VLOOKUP(B144,'Schedule V(b)'!$B$11:$Z$315,23,0),0)","v":0},null,null,null,0]
[134,null,null,{"$f":"IFERROR(VLOOKUP(B145,'Schedule V(b)'!$B$11:$Z$315,3,0),0)","v":0},null,{"$f":"IFERROR(VLOOKUP(B145,'Schedule V(b)'!$B$11:$Z$315,7,0),0)","v":"Select"},null,{"$f":"IFERROR(VLOOKUP(B145,'Schedule V(b)'!$B$11:$Z$315,9,0),0)","v":0},null,{"$f":"IFERROR(VLOOKUP(B145,'Schedule V(b)'!$B$11:$Z$315,11,0),0)","v":"Select"},null,{"$f":"IFERROR(VLOOKUP(B145,'Schedule V(b)'!$B$11:$Z$315,13,0),0)","v":0},null,{"$f":"IFERROR(VLOOKUP(B145,'Schedule V(b)'!$B$11:$Z$315,15,0),0)","v":"Select"},null,{"$f":"IFERROR(VLOOKUP(B145,'Schedule V(b)'!$B$11:$Z$315,17,0),0)","v":0},null,{"$f":"IFERROR(VLOOKUP(B145,'Schedule V(b)'!$B$11:$Z$315,25,0),0)","v":0},null,{"$f":"IFERROR(VLOOKUP(B145,'Schedule V(b)'!$B$11:$Z$315,23,0),0)","v":0},null,null,null,0]
[135,null,null,{"$f":"IFERROR(VLOOKUP(B146,'Schedule V(b)'!$B$11:$Z$315,3,0),0)","v":0},null,{"$f":"IFERROR(VLOOKUP(B146,'Schedule V(b)'!$B$11:$Z$315,7,0),0)","v":"Select"},null,{"$f":"IFERROR(VLOOKUP(B146,'Schedule V(b)'!$B$11:$Z$315,9,0),0)","v":0},null,{"$f":"IFERROR(VLOOKUP(B146,'Schedule V(b)'!$B$11:$Z$315,11,0),0)","v":"Select"},null,{"$f":"IFERROR(VLOOKUP(B146,'Schedule V(b)'!$B$11:$Z$315,13,0),0)","v":0},null,{"$f":"IFERROR(VLOOKUP(B146,'Schedule V(b)'!$B$11:$Z$315,15,0),0)","v":"Select"},null,{"$f":"IFERROR(VLOOKUP(B146,'Schedule V(b)'!$B$11:$Z$315,17,0),0)","v":0},null,{"$f":"IFERROR(VLOOKUP(B146,'Schedule V(b)'!$B$11:$Z$315,25,0),0)","v":0},null,{"$f":"IFERROR(VLOOKUP(B146,'Schedule V(b)'!$B$11:$Z$315,23,0),0)","v":0},null,null,null,0]
[136,null,null,{"$f":"IFERROR(VLOOKUP(B147,'Schedule V(b)'!$B$11:$Z$315,3,0),0)","v":0},null,{"$f":"IFERROR(VLOOKUP(B147,'Schedule V(b)'!$B$11:$Z$315,7,0),0)","v":"Select"},null,{"$f":"IFERROR(VLOOKUP(B147,'Schedule V(b)'!$B$11:$Z$315,9,0),0)","v":0},null,{"$f":"IFERROR(VLOOKUP(B147,'Schedule V(b)'!$B$11:$Z$315,11,0),0)","v":"Select"},null,{"$f":"IFERROR(VLOOKUP(B147,'Schedule V(b)'!$B$11:$Z$315,13,0),0)","v":0},null,{"$f":"IFERROR(VLOOKUP(B147,'Schedule V(b)'!$B$11:$Z$315,15,0),0)","v":"Select"},null,{"$f":"IFERROR(VLOOKUP(B147,'Schedule V(b)'!$B$11:$Z$315,17,0),0)","v":0},null,{"$f":"IFERROR(VLOOKUP(B147,'Schedule V(b)'!$B$11:$Z$315,25,0),0)","v":0},null,{"$f":"IFERROR(VLOOKUP(B147,'Schedule V(b)'!$B$11:$Z$315,23,0),0)","v":0},null,null,null,0]
[137,null,null,{"$f":"IFERROR(VLOOKUP(B148,'Schedule V(b)'!$B$11:$Z$315,3,0),0)","v":0},null,{"$f":"IFERROR(VLOOKUP(B148,'Schedule V(b)'!$B$11:$Z$315,7,0),0)","v":"Select"},null,{"$f":"IFERROR(VLOOKUP(B148,'Schedule V(b)'!$B$11:$Z$315,9,0),0)","v":0},null,{"$f":"IFERROR(VLOOKUP(B148,'Schedule V(b)'!$B$11:$Z$315,11,0),0)","v":"Select"},null,{"$f":"IFERROR(VLOOKUP(B148,'Schedule V(b)'!$B$11:$Z$315,13,0),0)","v":0},null,{"$f":"IFERROR(VLOOKUP(B148,'Schedule V(b)'!$B$11:$Z$315,15,0),0)","v":"Select"},null,{"$f":"IFERROR(VLOOKUP(B148,'Schedule V(b)'!$B$11:$Z$315,17,0),0)","v":0},null,{"$f":"IFERROR(VLOOKUP(B148,'Schedule V(b)'!$B$11:$Z$315,25,0),0)","v":0},null,{"$f":"IFERROR(VLOOKUP(B148,'Schedule V(b)'!$B$11:$Z$315,23,0),0)","v":0},null,null,null,0]
[138,null,null,{"$f":"IFERROR(VLOOKUP(B149,'Schedule V(b)'!$B$11:$Z$315,3,0),0)","v":0},null,{"$f":"IFERROR(VLOOKUP(B149,'Schedule V(b)'!$B$11:$Z$315,7,0),0)","v":"Select"},null,{"$f":"IFERROR(VLOOKUP(B149,'Schedule V(b)'!$B$11:$Z$315,9,0),0)","v":0},null,{"$f":"IFERROR(VLOOKUP(B149,'Schedule V(b)'!$B$11:$Z$315,11,0),0)","v":"Select"},null,{"$f":"IFERROR(VLOOKUP(B149,'Schedule V(b)'!$B$11:$Z$315,13,0),0)","v":0},null,{"$f":"IFERROR(VLOOKUP(B149,'Schedule V(b)'!$B$11:$Z$315,15,0),0)","v":"Select"},null,{"$f":"IFERROR(VLOOKUP(B149,'Schedule V(b)'!$B$11:$Z$315,17,0),0)","v":0},null,{"$f":"IFERROR(VLOOKUP(B149,'Schedule V(b)'!$B$11:$Z$315,25,0),0)","v":0},null,{"$f":"IFERROR(VLOOKUP(B149,'Schedule V(b)'!$B$11:$Z$315,23,0),0)","v":0},null,null,null,0]
[139,null,null,{"$f":"IFERROR(VLOOKUP(B150,'Schedule V(b)'!$B$11:$Z$315,3,0),0)","v":0},null,{"$f":"IFERROR(VLOOKUP(B150,'Schedule V(b)'!$B$11:$Z$315,7,0),0)","v":"Select"},null,{"$f":"IFERROR(VLOOKUP(B150,'Schedule V(b)'!$B$11:$Z$315,9,0),0)","v":0},null,{"$f":"IFERROR(VLOOKUP(B150,'Schedule V(b)'!$B$11:$Z$315,11,0),0)","v":"Select"},null,{"$f":"IFERROR(VLOOKUP(B150,'Schedule V(b)'!$B$11:$Z$315,13,0),0)","v":0},null,{"$f":"IFERROR(VLOOKUP(B150,'Schedule V(b)'!$B$11:$Z$315,15,0),0)","v":"Select"},null,{"$f":"IFERROR(VLOOKUP(B150,'Schedule V(b)'!$B$11:$Z$315,17,0),0)","v":0},null,{"$f":"IFERROR(VLOOKUP(B150,'Schedule V(b)'!$B$11:$Z$315,25,0),0)","v":0},null,{"$f":"IFERROR(VLOOKUP(B150,'Schedule V(b)'!$B$11:$Z$315,23,0),0)","v":0},null,null,null,0]
[140,null,null,{"$f":"IFERROR(VLOOKUP(B151,'Schedule V(b)'!$B$11:$Z$315,3,0),0)","v":0},null,{"$f":"IFERROR(VLOOKUP(B151,'Schedule V(b)'!$B$11:$Z$315,7,0),0)","v":"Select"},null,{"$f":"IFERROR(VLOOKUP(B151,'Schedule V(b)'!$B$11:$Z$315,9,0),0)","v":0},null,{"$f":"IFERROR(VLOOKUP(B151,'Schedule V(b)'!$B$11:$Z$315,11,0),0)","v":"Select"},null,{"$f":"IFERROR(VLOOKUP(B151,'Schedule V(b)'!$B$11:$Z$315,13,0),0)","v":0},null,{"$f":"IFERROR(VLOOKUP(B151,'Schedule V(b)'!$B$11:$Z$315,15,0),0)","v":"Select"},null,{"$f":"IFERROR(VLOOKUP(B151,'Schedule V(b)'!$B$11:$Z$315,17,0),0)","v":0},null,{"$f":"IFERROR(VLOOKUP(B151,'Schedule V(b)'!$B$11:$Z$315,25,0),0)","v":0},null,{"$f":"IFERROR(VLOOKUP(B151,'Schedule V(b)'!$B$11:$Z$315,23,0),0)","v":0},null,null,null,0]
[141,null,null,{"$f":"IFERROR(VLOOKUP(B152,'Schedule V(b)'!$B$11:$Z$315,3,0),0)","v":0},null,{"$f":"IFERROR(VLOOKUP(B152,'Schedule V(b)'!$B$11:$Z$315,7,0),0)","v":"Select"},null,{"$f":"IFERROR(VLOOKUP(B152,'Schedule V(b)'!$B$11:$Z$315,9,0),0)","v":0},null,{"$f":"IFERROR(VLOOKUP(B152,'Schedule V(b)'!$B$11:$Z$315,11,0),0)","v":"Select"},null,{"$f":"IFERROR(VLOOKUP(B152,'Schedule V(b)'!$B$11:$Z$315,13,0),0)","v":0},null,{"$f":"IFERROR(VLOOKUP(B152,'Schedule V(b)'!$B$11:$Z$315,15,0),0)","v":"Select"},null,{"$f":"IFERROR(VLOOKUP(B152,'Schedule V(b)'!$B$11:$Z$315,17,0),0)","v":0},null,{"$f":"IFERROR(VLOOKUP(B152,'Schedule V(b)'!$B$11:$Z$315,25,0),0)","v":0},null,{"$f":"IFERROR(VLOOKUP(B152,'Schedule V(b)'!$B$11:$Z$315,23,0),0)","v":0},null,null,null,0]
[142,null,null,{"$f":"IFERROR(VLOOKUP(B153,'Schedule V(b)'!$B$11:$Z$315,3,0),0)","v":0},null,{"$f":"IFERROR(VLOOKUP(B153,'Schedule V(b)'!$B$11:$Z$315,7,0),0)","v":"Select"},null,{"$f":"IFERROR(VLOOKUP(B153,'Schedule V(b)'!$B$11:$Z$315,9,0),0)","v":0},null,{"$f":"IFERROR(VLOOKUP(B153,'Schedule V(b)'!$B$11:$Z$315,11,0),0)","v":"Select"},null,{"$f":"IFERROR(VLOOKUP(B153,'Schedule V(b)'!$B$11:$Z$315,13,0),0)","v":0},null,{"$f":"IFERROR(VLOOKUP(B153,'Schedule V(b)'!$B$11:$Z$315,15,0),0)","v":"Select"},null,{"$f":"IFERROR(VLOOKUP(B153,'Schedule V(b)'!$B$11:$Z$315,17,0),0)","v":0},null,{"$f":"IFERROR(VLOOKUP(B153,'Schedule V(b)'!$B$11:$Z$315,25,0),0)","v":0},null,{"$f":"IFERROR(VLOOKUP(B153,'Schedule V(b)'!$B$11:$Z$315,23,0),0)","v":0},null,null,null,0]
[143,null,null,{"$f":"IFERROR(VLOOKUP(B154,'Schedule V(b)'!$B$11:$Z$315,3,0),0)","v":0},null,{"$f":"IFERROR(VLOOKUP(B154,'Schedule V(b)'!$B$11:$Z$315,7,0),0)","v":"Select"},null,{"$f":"IFERROR(VLOOKUP(B154,'Schedule V(b)'!$B$11:$Z$315,9,0),0)","v":0},null,{"$f":"IFERROR(VLOOKUP(B154,'Schedule V(b)'!$B$11:$Z$315,11,0),0)","v":"Select"},null,{"$f":"IFERROR(VLOOKUP(B154,'Schedule V(b)'!$B$11:$Z$315,13,0),0)","v":0},null,{"$f":"IFERROR(VLOOKUP(B154,'Schedule V(b)'!$B$11:$Z$315,15,0),0)","v":"Select"},null,{"$f":"IFERROR(VLOOKUP(B154,'Schedule V(b)'!$B$11:$Z$315,17,0),0)","v":0},null,{"$f":"IFERROR(VLOOKUP(B154,'Schedule V(b)'!$B$11:$Z$315,25,0),0)","v":0},null,{"$f":"IFERROR(VLOOKUP(B154,'Schedule V(b)'!$B$11:$Z$315,23,0),0)","v":0},null,null,null,0]
[144,null,null,{"$f":"IFERROR(VLOOKUP(B155,'Schedule V(b)'!$B$11:$Z$315,3,0),0)","v":0},null,{"$f":"IFERROR(VLOOKUP(B155,'Schedule V(b)'!$B$11:$Z$315,7,0),0)","v":"Select"},null,{"$f":"IFERROR(VLOOKUP(B155,'Schedule V(b)'!$B$11:$Z$315,9,0),0)","v":0},null,{"$f":"IFERROR(VLOOKUP(B155,'Schedule V(b)'!$B$11:$Z$315,11,0),0)","v":"Select"},null,{"$f":"IFERROR(VLOOKUP(B155,'Schedule V(b)'!$B$11:$Z$315,13,0),0)","v":0},null,{"$f":"IFERROR(VLOOKUP(B155,'Schedule V(b)'!$B$11:$Z$315,15,0),0)","v":"Select"},null,{"$f":"IFERROR(VLOOKUP(B155,'Schedule V(b)'!$B$11:$Z$315,17,0),0)","v":0},null,{"$f":"IFERROR(VLOOKUP(B155,'Schedule V(b)'!$B$11:$Z$315,25,0),0)","v":0},null,{"$f":"IFERROR(VLOOKUP(B155,'Schedule V(b)'!$B$11:$Z$315,23,0),0)","v":0},null,null,null,0]
[145,null,null,{"$f":"IFERROR(VLOOKUP(B156,'Schedule V(b)'!$B$11:$Z$315,3,0),0)","v":0},null,{"$f":"IFERROR(VLOOKUP(B156,'Schedule V(b)'!$B$11:$Z$315,7,0),0)","v":"Select"},null,{"$f":"IFERROR(VLOOKUP(B156,'Schedule V(b)'!$B$11:$Z$315,9,0),0)","v":0},null,{"$f":"IFERROR(VLOOKUP(B156,'Schedule V(b)'!$B$11:$Z$315,11,0),0)","v":"Select"},null,{"$f":"IFERROR(VLOOKUP(B156,'Schedule V(b)'!$B$11:$Z$315,13,0),0)","v":0},null,{"$f":"IFERROR(VLOOKUP(B156,'Schedule V(b)'!$B$11:$Z$315,15,0),0)","v":"Select"},null,{"$f":"IFERROR(VLOOKUP(B156,'Schedule V(b)'!$B$11:$Z$315,17,0),0)","v":0},null,{"$f":"IFERROR(VLOOKUP(B156,'Schedule V(b)'!$B$11:$Z$315,25,0),0)","v":0},null,{"$f":"IFERROR(VLOOKUP(B156,'Schedule V(b)'!$B$11:$Z$315,23,0),0)","v":0},null,null,null,0]
[146,null,null,{"$f":"IFERROR(VLOOKUP(B157,'Schedule V(b)'!$B$11:$Z$315,3,0),0)","v":0},null,{"$f":"IFERROR(VLOOKUP(B157,'Schedule V(b)'!$B$11:$Z$315,7,0),0)","v":"Select"},null,{"$f":"IFERROR(VLOOKUP(B157,'Schedule V(b)'!$B$11:$Z$315,9,0),0)","v":0},null,{"$f":"IFERROR(VLOOKUP(B157,'Schedule V(b)'!$B$11:$Z$315,11,0),0)","v":"Select"},null,{"$f":"IFERROR(VLOOKUP(B157,'Schedule V(b)'!$B$11:$Z$315,13,0),0)","v":0},null,{"$f":"IFERROR(VLOOKUP(B157,'Schedule V(b)'!$B$11:$Z$315,15,0),0)","v":"Select"},null,{"$f":"IFERROR(VLOOKUP(B157,'Schedule V(b)'!$B$11:$Z$315,17,0),0)","v":0},null,{"$f":"IFERROR(VLOOKUP(B157,'Schedule V(b)'!$B$11:$Z$315,25,0),0)","v":0},null,{"$f":"IFERROR(VLOOKUP(B157,'Schedule V(b)'!$B$11:$Z$315,23,0),0)","v":0},null,null,null,0]
[147,null,null,{"$f":"IFERROR(VLOOKUP(B158,'Schedule V(b)'!$B$11:$Z$315,3,0),0)","v":0},null,{"$f":"IFERROR(VLOOKUP(B158,'Schedule V(b)'!$B$11:$Z$315,7,0),0)","v":"Select"},null,{"$f":"IFERROR(VLOOKUP(B158,'Schedule V(b)'!$B$11:$Z$315,9,0),0)","v":0},null,{"$f":"IFERROR(VLOOKUP(B158,'Schedule V(b)'!$B$11:$Z$315,11,0),0)","v":"Select"},null,{"$f":"IFERROR(VLOOKUP(B158,'Schedule V(b)'!$B$11:$Z$315,13,0),0)","v":0},null,{"$f":"IFERROR(VLOOKUP(B158,'Schedule V(b)'!$B$11:$Z$315,15,0),0)","v":"Select"},null,{"$f":"IFERROR(VLOOKUP(B158,'Schedule V(b)'!$B$11:$Z$315,17,0),0)","v":0},null,{"$f":"IFERROR(VLOOKUP(B158,'Schedule V(b)'!$B$11:$Z$315,25,0),0)","v":0},null,{"$f":"IFERROR(VLOOKUP(B158,'Schedule V(b)'!$B$11:$Z$315,23,0),0)","v":0},null,null,null,0]
[148,null,null,{"$f":"IFERROR(VLOOKUP(B159,'Schedule V(b)'!$B$11:$Z$315,3,0),0)","v":0},null,{"$f":"IFERROR(VLOOKUP(B159,'Schedule V(b)'!$B$11:$Z$315,7,0),0)","v":"Select"},null,{"$f":"IFERROR(VLOOKUP(B159,'Schedule V(b)'!$B$11:$Z$315,9,0),0)","v":0},null,{"$f":"IFERROR(VLOOKUP(B159,'Schedule V(b)'!$B$11:$Z$315,11,0),0)","v":"Select"},null,{"$f":"IFERROR(VLOOKUP(B159,'Schedule V(b)'!$B$11:$Z$315,13,0),0)","v":0},null,{"$f":"IFERROR(VLOOKUP(B159,'Schedule V(b)'!$B$11:$Z$315,15,0),0)","v":"Select"},null,{"$f":"IFERROR(VLOOKUP(B159,'Schedule V(b)'!$B$11:$Z$315,17,0),0)","v":0},null,{"$f":"IFERROR(VLOOKUP(B159,'Schedule V(b)'!$B$11:$Z$315,25,0),0)","v":0},null,{"$f":"IFERROR(VLOOKUP(B159,'Schedule V(b)'!$B$11:$Z$315,23,0),0)","v":0},null,null,null,0]
[149,null,null,{"$f":"IFERROR(VLOOKUP(B160,'Schedule V(b)'!$B$11:$Z$315,3,0),0)","v":0},null,{"$f":"IFERROR(VLOOKUP(B160,'Schedule V(b)'!$B$11:$Z$315,7,0),0)","v":"Select"},null,{"$f":"IFERROR(VLOOKUP(B160,'Schedule V(b)'!$B$11:$Z$315,9,0),0)","v":0},null,{"$f":"IFERROR(VLOOKUP(B160,'Schedule V(b)'!$B$11:$Z$315,11,0),0)","v":"Select"},null,{"$f":"IFERROR(VLOOKUP(B160,'Schedule V(b)'!$B$11:$Z$315,13,0),0)","v":0},null,{"$f":"IFERROR(VLOOKUP(B160,'Schedule V(b)'!$B$11:$Z$315,15,0),0)","v":"Select"},null,{"$f":"IFERROR(VLOOKUP(B160,'Schedule V(b)'!$B$11:$Z$315,17,0),0)","v":0},null,{"$f":"IFERROR(VLOOKUP(B160,'Schedule V(b)'!$B$11:$Z$315,25,0),0)","v":0},null,{"$f":"IFERROR(VLOOKUP(B160,'Schedule V(b)'!$B$11:$Z$315,23,0),0)","v":0},null,null,null,0]
[150,null,null,{"$f":"IFERROR(VLOOKUP(B161,'Schedule V(b)'!$B$11:$Z$315,3,0),0)","v":0},null,{"$f":"IFERROR(VLOOKUP(B161,'Schedule V(b)'!$B$11:$Z$315,7,0),0)","v":"Select"},null,{"$f":"IFERROR(VLOOKUP(B161,'Schedule V(b)'!$B$11:$Z$315,9,0),0)","v":0},null,{"$f":"IFERROR(VLOOKUP(B161,'Schedule V(b)'!$B$11:$Z$315,11,0),0)","v":"Select"},null,{"$f":"IFERROR(VLOOKUP(B161,'Schedule V(b)'!$B$11:$Z$315,13,0),0)","v":0},null,{"$f":"IFERROR(VLOOKUP(B161,'Schedule V(b)'!$B$11:$Z$315,15,0),0)","v":"Select"},null,{"$f":"IFERROR(VLOOKUP(B161,'Schedule V(b)'!$B$11:$Z$315,17,0),0)","v":0},null,{"$f":"IFERROR(VLOOKUP(B161,'Schedule V(b)'!$B$11:$Z$315,25,0),0)","v":0},null,{"$f":"IFERROR(VLOOKUP(B161,'Schedule V(b)'!$B$11:$Z$315,23,0),0)","v":0},null,null,null,0]
[151,null,null,{"$f":"IFERROR(VLOOKUP(B162,'Schedule V(b)'!$B$11:$Z$315,3,0),0)","v":0},null,{"$f":"IFERROR(VLOOKUP(B162,'Schedule V(b)'!$B$11:$Z$315,7,0),0)","v":"Select"},null,{"$f":"IFERROR(VLOOKUP(B162,'Schedule V(b)'!$B$11:$Z$315,9,0),0)","v":0},null,{"$f":"IFERROR(VLOOKUP(B162,'Schedule V(b)'!$B$11:$Z$315,11,0),0)","v":"Select"},null,{"$f":"IFERROR(VLOOKUP(B162,'Schedule V(b)'!$B$11:$Z$315,13,0),0)","v":0},null,{"$f":"IFERROR(VLOOKUP(B162,'Schedule V(b)'!$B$11:$Z$315,15,0),0)","v":"Select"},null,{"$f":"IFERROR(VLOOKUP(B162,'Schedule V(b)'!$B$11:$Z$315,17,0),0)","v":0},null,{"$f":"IFERROR(VLOOKUP(B162,'Schedule V(b)'!$B$11:$Z$315,25,0),0)","v":0},null,{"$f":"IFERROR(VLOOKUP(B162,'Schedule V(b)'!$B$11:$Z$315,23,0),0)","v":0},null,null,null,0]
[152,null,null,{"$f":"IFERROR(VLOOKUP(B163,'Schedule V(b)'!$B$11:$Z$315,3,0),0)","v":0},null,{"$f":"IFERROR(VLOOKUP(B163,'Schedule V(b)'!$B$11:$Z$315,7,0),0)","v":"Select"},null,{"$f":"IFERROR(VLOOKUP(B163,'Schedule V(b)'!$B$11:$Z$315,9,0),0)","v":0},null,{"$f":"IFERROR(VLOOKUP(B163,'Schedule V(b)'!$B$11:$Z$315,11,0),0)","v":"Select"},null,{"$f":"IFERROR(VLOOKUP(B163,'Schedule V(b)'!$B$11:$Z$315,13,0),0)","v":0},null,{"$f":"IFERROR(VLOOKUP(B163,'Schedule V(b)'!$B$11:$Z$315,15,0),0)","v":"Select"},null,{"$f":"IFERROR(VLOOKUP(B163,'Schedule V(b)'!$B$11:$Z$315,17,0),0)","v":0},null,{"$f":"IFERROR(VLOOKUP(B163,'Schedule V(b)'!$B$11:$Z$315,25,0),0)","v":0},null,{"$f":"IFERROR(VLOOKUP(B163,'Schedule V(b)'!$B$11:$Z$315,23,0),0)","v":0},null,null,null,0]
[153,null,null,{"$f":"IFERROR(VLOOKUP(B164,'Schedule V(b)'!$B$11:$Z$315,3,0),0)","v":0},null,{"$f":"IFERROR(VLOOKUP(B164,'Schedule V(b)'!$B$11:$Z$315,7,0),0)","v":"Select"},null,{"$f":"IFERROR(VLOOKUP(B164,'Schedule V(b)'!$B$11:$Z$315,9,0),0)","v":0},null,{"$f":"IFERROR(VLOOKUP(B164,'Schedule V(b)'!$B$11:$Z$315,11,0),0)","v":"Select"},null,{"$f":"IFERROR(VLOOKUP(B164,'Schedule V(b)'!$B$11:$Z$315,13,0),0)","v":0},null,{"$f":"IFERROR(VLOOKUP(B164,'Schedule V(b)'!$B$11:$Z$315,15,0),0)","v":"Select"},null,{"$f":"IFERROR(VLOOKUP(B164,'Schedule V(b)'!$B$11:$Z$315,17,0),0)","v":0},null,{"$f":"IFERROR(VLOOKUP(B164,'Schedule V(b)'!$B$11:$Z$315,25,0),0)","v":0},null,{"$f":"IFERROR(VLOOKUP(B164,'Schedule V(b)'!$B$11:$Z$315,23,0),0)","v":0},null,null,null,0]
[154,null,null,{"$f":"IFERROR(VLOOKUP(B165,'Schedule V(b)'!$B$11:$Z$315,3,0),0)","v":0},null,{"$f":"IFERROR(VLOOKUP(B165,'Schedule V(b)'!$B$11:$Z$315,7,0),0)","v":"Select"},null,{"$f":"IFERROR(VLOOKUP(B165,'Schedule V(b)'!$B$11:$Z$315,9,0),0)","v":0},null,{"$f":"IFERROR(VLOOKUP(B165,'Schedule V(b)'!$B$11:$Z$315,11,0),0)","v":"Select"},null,{"$f":"IFERROR(VLOOKUP(B165,'Schedule V(b)'!$B$11:$Z$315,13,0),0)","v":0},null,{"$f":"IFERROR(VLOOKUP(B165,'Schedule V(b)'!$B$11:$Z$315,15,0),0)","v":"Select"},null,{"$f":"IFERROR(VLOOKUP(B165,'Schedule V(b)'!$B$11:$Z$315,17,0),0)","v":0},null,{"$f":"IFERROR(VLOOKUP(B165,'Schedule V(b)'!$B$11:$Z$315,25,0),0)","v":0},null,{"$f":"IFERROR(VLOOKUP(B165,'Schedule V(b)'!$B$11:$Z$315,23,0),0)","v":0},null,null,null,0]
[155,null,null,{"$f":"IFERROR(VLOOKUP(B166,'Schedule V(b)'!$B$11:$Z$315,3,0),0)","v":0},null,{"$f":"IFERROR(VLOOKUP(B166,'Schedule V(b)'!$B$11:$Z$315,7,0),0)","v":"Select"},null,{"$f":"IFERROR(VLOOKUP(B166,'Schedule V(b)'!$B$11:$Z$315,9,0),0)","v":0},null,{"$f":"IFERROR(VLOOKUP(B166,'Schedule V(b)'!$B$11:$Z$315,11,0),0)","v":"Select"},null,{"$f":"IFERROR(VLOOKUP(B166,'Schedule V(b)'!$B$11:$Z$315,13,0),0)","v":0},null,{"$f":"IFERROR(VLOOKUP(B166,'Schedule V(b)'!$B$11:$Z$315,15,0),0)","v":"Select"},null,{"$f":"IFERROR(VLOOKUP(B166,'Schedule V(b)'!$B$11:$Z$315,17,0),0)","v":0},null,{"$f":"IFERROR(VLOOKUP(B166,'Schedule V(b)'!$B$11:$Z$315,25,0),0)","v":0},null,{"$f":"IFERROR(VLOOKUP(B166,'Schedule V(b)'!$B$11:$Z$315,23,0),0)","v":0},null,null,null,0]
[156,null,null,{"$f":"IFERROR(VLOOKUP(B167,'Schedule V(b)'!$B$11:$Z$315,3,0),0)","v":0},null,{"$f":"IFERROR(VLOOKUP(B167,'Schedule V(b)'!$B$11:$Z$315,7,0),0)","v":"Select"},null,{"$f":"IFERROR(VLOOKUP(B167,'Schedule V(b)'!$B$11:$Z$315,9,0),0)","v":0},null,{"$f":"IFERROR(VLOOKUP(B167,'Schedule V(b)'!$B$11:$Z$315,11,0),0)","v":"Select"},null,{"$f":"IFERROR(VLOOKUP(B167,'Schedule V(b)'!$B$11:$Z$315,13,0),0)","v":0},null,{"$f":"IFERROR(VLOOKUP(B167,'Schedule V(b)'!$B$11:$Z$315,15,0),0)","v":"Select"},null,{"$f":"IFERROR(VLOOKUP(B167,'Schedule V(b)'!$B$11:$Z$315,17,0),0)","v":0},null,{"$f":"IFERROR(VLOOKUP(B167,'Schedule V(b)'!$B$11:$Z$315,25,0),0)","v":0},null,{"$f":"IFERROR(VLOOKUP(B167,'Schedule V(b)'!$B$11:$Z$315,23,0),0)","v":0},null,null,null,0]
[157,null,null,{"$f":"IFERROR(VLOOKUP(B168,'Schedule V(b)'!$B$11:$Z$315,3,0),0)","v":0},null,{"$f":"IFERROR(VLOOKUP(B168,'Schedule V(b)'!$B$11:$Z$315,7,0),0)","v":"Select"},null,{"$f":"IFERROR(VLOOKUP(B168,'Schedule V(b)'!$B$11:$Z$315,9,0),0)","v":0},null,{"$f":"IFERROR(VLOOKUP(B168,'Schedule V(b)'!$B$11:$Z$315,11,0),0)","v":"Select"},null,{"$f":"IFERROR(VLOOKUP(B168,'Schedule V(b)'!$B$11:$Z$315,13,0),0)","v":0},null,{"$f":"IFERROR(VLOOKUP(B168,'Schedule V(b)'!$B$11:$Z$315,15,0),0)","v":"Select"},null,{"$f":"IFERROR(VLOOKUP(B168,'Schedule V(b)'!$B$11:$Z$315,17,0),0)","v":0},null,{"$f":"IFERROR(VLOOKUP(B168,'Schedule V(b)'!$B$11:$Z$315,25,0),0)","v":0},null,{"$f":"IFERROR(VLOOKUP(B168,'Schedule V(b)'!$B$11:$Z$315,23,0),0)","v":0},null,null,null,0]
[158,null,null,{"$f":"IFERROR(VLOOKUP(B169,'Schedule V(b)'!$B$11:$Z$315,3,0),0)","v":0},null,{"$f":"IFERROR(VLOOKUP(B169,'Schedule V(b)'!$B$11:$Z$315,7,0),0)","v":"Select"},null,{"$f":"IFERROR(VLOOKUP(B169,'Schedule V(b)'!$B$11:$Z$315,9,0),0)","v":0},null,{"$f":"IFERROR(VLOOKUP(B169,'Schedule V(b)'!$B$11:$Z$315,11,0),0)","v":"Select"},null,{"$f":"IFERROR(VLOOKUP(B169,'Schedule V(b)'!$B$11:$Z$315,13,0),0)","v":0},null,{"$f":"IFERROR(VLOOKUP(B169,'Schedule V(b)'!$B$11:$Z$315,15,0),0)","v":"Select"},null,{"$f":"IFERROR(VLOOKUP(B169,'Schedule V(b)'!$B$11:$Z$315,17,0),0)","v":0},null,{"$f":"IFERROR(VLOOKUP(B169,'Schedule V(b)'!$B$11:$Z$315,25,0),0)","v":0},null,{"$f":"IFERROR(VLOOKUP(B169,'Schedule V(b)'!$B$11:$Z$315,23,0),0)","v":0},null,null,null,0]
[159,null,null,{"$f":"IFERROR(VLOOKUP(B170,'Schedule V(b)'!$B$11:$Z$315,3,0),0)","v":0},null,{"$f":"IFERROR(VLOOKUP(B170,'Schedule V(b)'!$B$11:$Z$315,7,0),0)","v":"Select"},null,{"$f":"IFERROR(VLOOKUP(B170,'Schedule V(b)'!$B$11:$Z$315,9,0),0)","v":0},null,{"$f":"IFERROR(VLOOKUP(B170,'Schedule V(b)'!$B$11:$Z$315,11,0),0)","v":"Select"},null,{"$f":"IFERROR(VLOOKUP(B170,'Schedule V(b)'!$B$11:$Z$315,13,0),0)","v":0},null,{"$f":"IFERROR(VLOOKUP(B170,'Schedule V(b)'!$B$11:$Z$315,15,0),0)","v":"Select"},null,{"$f":"IFERROR(VLOOKUP(B170,'Schedule V(b)'!$B$11:$Z$315,17,0),0)","v":0},null,{"$f":"IFERROR(VLOOKUP(B170,'Schedule V(b)'!$B$11:$Z$315,25,0),0)","v":0},null,{"$f":"IFERROR(VLOOKUP(B170,'Schedule V(b)'!$B$11:$Z$315,23,0),0)","v":0},null,null,null,0]
[160,null,null,{"$f":"IFERROR(VLOOKUP(B171,'Schedule V(b)'!$B$11:$Z$315,3,0),0)","v":0},null,{"$f":"IFERROR(VLOOKUP(B171,'Schedule V(b)'!$B$11:$Z$315,7,0),0)","v":"Select"},null,{"$f":"IFERROR(VLOOKUP(B171,'Schedule V(b)'!$B$11:$Z$315,9,0),0)","v":0},null,{"$f":"IFERROR(VLOOKUP(B171,'Schedule V(b)'!$B$11:$Z$315,11,0),0)","v":"Select"},null,{"$f":"IFERROR(VLOOKUP(B171,'Schedule V(b)'!$B$11:$Z$315,13,0),0)","v":0},null,{"$f":"IFERROR(VLOOKUP(B171,'Schedule V(b)'!$B$11:$Z$315,15,0),0)","v":"Select"},null,{"$f":"IFERROR(VLOOKUP(B171,'Schedule V(b)'!$B$11:$Z$315,17,0),0)","v":0},null,{"$f":"IFERROR(VLOOKUP(B171,'Schedule V(b)'!$B$11:$Z$315,25,0),0)","v":0},null,{"$f":"IFERROR(VLOOKUP(B171,'Schedule V(b)'!$B$11:$Z$315,23,0),0)","v":0},null,null,null,0]
[161,null,null,{"$f":"IFERROR(VLOOKUP(B172,'Schedule V(b)'!$B$11:$Z$315,3,0),0)","v":0},null,{"$f":"IFERROR(VLOOKUP(B172,'Schedule V(b)'!$B$11:$Z$315,7,0),0)","v":"Select"},null,{"$f":"IFERROR(VLOOKUP(B172,'Schedule V(b)'!$B$11:$Z$315,9,0),0)","v":0},null,{"$f":"IFERROR(VLOOKUP(B172,'Schedule V(b)'!$B$11:$Z$315,11,0),0)","v":"Select"},null,{"$f":"IFERROR(VLOOKUP(B172,'Schedule V(b)'!$B$11:$Z$315,13,0),0)","v":0},null,{"$f":"IFERROR(VLOOKUP(B172,'Schedule V(b)'!$B$11:$Z$315,15,0),0)","v":"Select"},null,{"$f":"IFERROR(VLOOKUP(B172,'Schedule V(b)'!$B$11:$Z$315,17,0),0)","v":0},null,{"$f":"IFERROR(VLOOKUP(B172,'Schedule V(b)'!$B$11:$Z$315,25,0),0)","v":0},null,{"$f":"IFERROR(VLOOKUP(B172,'Schedule V(b)'!$B$11:$Z$315,23,0),0)","v":0},null,null,null,0]
[162,null,null,{"$f":"IFERROR(VLOOKUP(B173,'Schedule V(b)'!$B$11:$Z$315,3,0),0)","v":0},null,{"$f":"IFERROR(VLOOKUP(B173,'Schedule V(b)'!$B$11:$Z$315,7,0),0)","v":"Select"},null,{"$f":"IFERROR(VLOOKUP(B173,'Schedule V(b)'!$B$11:$Z$315,9,0),0)","v":0},null,{"$f":"IFERROR(VLOOKUP(B173,'Schedule V(b)'!$B$11:$Z$315,11,0),0)","v":"Select"},null,{"$f":"IFERROR(VLOOKUP(B173,'Schedule V(b)'!$B$11:$Z$315,13,0),0)","v":0},null,{"$f":"IFERROR(VLOOKUP(B173,'Schedule V(b)'!$B$11:$Z$315,15,0),0)","v":"Select"},null,{"$f":"IFERROR(VLOOKUP(B173,'Schedule V(b)'!$B$11:$Z$315,17,0),0)","v":0},null,{"$f":"IFERROR(VLOOKUP(B173,'Schedule V(b)'!$B$11:$Z$315,25,0),0)","v":0},null,{"$f":"IFERROR(VLOOKUP(B173,'Schedule V(b)'!$B$11:$Z$315,23,0),0)","v":0},null,null,null,0]
[163,null,null,{"$f":"IFERROR(VLOOKUP(B174,'Schedule V(b)'!$B$11:$Z$315,3,0),0)","v":0},null,{"$f":"IFERROR(VLOOKUP(B174,'Schedule V(b)'!$B$11:$Z$315,7,0),0)","v":"Select"},null,{"$f":"IFERROR(VLOOKUP(B174,'Schedule V(b)'!$B$11:$Z$315,9,0),0)","v":0},null,{"$f":"IFERROR(VLOOKUP(B174,'Schedule V(b)'!$B$11:$Z$315,11,0),0)","v":"Select"},null,{"$f":"IFERROR(VLOOKUP(B174,'Schedule V(b)'!$B$11:$Z$315,13,0),0)","v":0},null,{"$f":"IFERROR(VLOOKUP(B174,'Schedule V(b)'!$B$11:$Z$315,15,0),0)","v":"Select"},null,{"$f":"IFERROR(VLOOKUP(B174,'Schedule V(b)'!$B$11:$Z$315,17,0),0)","v":0},null,{"$f":"IFERROR(VLOOKUP(B174,'Schedule V(b)'!$B$11:$Z$315,25,0),0)","v":0},null,{"$f":"IFERROR(VLOOKUP(B174,'Schedule V(b)'!$B$11:$Z$315,23,0),0)","v":0},null,null,null,0]
[164,null,null,{"$f":"IFERROR(VLOOKUP(B175,'Schedule V(b)'!$B$11:$Z$315,3,0),0)","v":0},null,{"$f":"IFERROR(VLOOKUP(B175,'Schedule V(b)'!$B$11:$Z$315,7,0),0)","v":"Select"},null,{"$f":"IFERROR(VLOOKUP(B175,'Schedule V(b)'!$B$11:$Z$315,9,0),0)","v":0},null,{"$f":"IFERROR(VLOOKUP(B175,'Schedule V(b)'!$B$11:$Z$315,11,0),0)","v":"Select"},null,{"$f":"IFERROR(VLOOKUP(B175,'Schedule V(b)'!$B$11:$Z$315,13,0),0)","v":0},null,{"$f":"IFERROR(VLOOKUP(B175,'Schedule V(b)'!$B$11:$Z$315,15,0),0)","v":"Select"},null,{"$f":"IFERROR(VLOOKUP(B175,'Schedule V(b)'!$B$11:$Z$315,17,0),0)","v":0},null,{"$f":"IFERROR(VLOOKUP(B175,'Schedule V(b)'!$B$11:$Z$315,25,0),0)","v":0},null,{"$f":"IFERROR(VLOOKUP(B175,'Schedule V(b)'!$B$11:$Z$315,23,0),0)","v":0},null,null,null,0]
[165,null,null,{"$f":"IFERROR(VLOOKUP(B176,'Schedule V(b)'!$B$11:$Z$315,3,0),0)","v":0},null,{"$f":"IFERROR(VLOOKUP(B176,'Schedule V(b)'!$B$11:$Z$315,7,0),0)","v":"Select"},null,{"$f":"IFERROR(VLOOKUP(B176,'Schedule V(b)'!$B$11:$Z$315,9,0),0)","v":0},null,{"$f":"IFERROR(VLOOKUP(B176,'Schedule V(b)'!$B$11:$Z$315,11,0),0)","v":"Select"},null,{"$f":"IFERROR(VLOOKUP(B176,'Schedule V(b)'!$B$11:$Z$315,13,0),0)","v":0},null,{"$f":"IFERROR(VLOOKUP(B176,'Schedule V(b)'!$B$11:$Z$315,15,0),0)","v":"Select"},null,{"$f":"IFERROR(VLOOKUP(B176,'Schedule V(b)'!$B$11:$Z$315,17,0),0)","v":0},null,{"$f":"IFERROR(VLOOKUP(B176,'Schedule V(b)'!$B$11:$Z$315,25,0),0)","v":0},null,{"$f":"IFERROR(VLOOKUP(B176,'Schedule V(b)'!$B$11:$Z$315,23,0),0)","v":0},null,null,null,0]
[166,null,null,{"$f":"IFERROR(VLOOKUP(B177,'Schedule V(b)'!$B$11:$Z$315,3,0),0)","v":0},null,{"$f":"IFERROR(VLOOKUP(B177,'Schedule V(b)'!$B$11:$Z$315,7,0),0)","v":"Select"},null,{"$f":"IFERROR(VLOOKUP(B177,'Schedule V(b)'!$B$11:$Z$315,9,0),0)","v":0},null,{"$f":"IFERROR(VLOOKUP(B177,'Schedule V(b)'!$B$11:$Z$315,11,0),0)","v":"Select"},null,{"$f":"IFERROR(VLOOKUP(B177,'Schedule V(b)'!$B$11:$Z$315,13,0),0)","v":0},null,{"$f":"IFERROR(VLOOKUP(B177,'Schedule V(b)'!$B$11:$Z$315,15,0),0)","v":"Select"},null,{"$f":"IFERROR(VLOOKUP(B177,'Schedule V(b)'!$B$11:$Z$315,17,0),0)","v":0},null,{"$f":"IFERROR(VLOOKUP(B177,'Schedule V(b)'!$B$11:$Z$315,25,0),0)","v":0},null,{"$f":"IFERROR(VLOOKUP(B177,'Schedule V(b)'!$B$11:$Z$315,23,0),0)","v":0},null,null,null,0]
[167,null,null,{"$f":"IFERROR(VLOOKUP(B178,'Schedule V(b)'!$B$11:$Z$315,3,0),0)","v":0},null,{"$f":"IFERROR(VLOOKUP(B178,'Schedule V(b)'!$B$11:$Z$315,7,0),0)","v":"Select"},null,{"$f":"IFERROR(VLOOKUP(B178,'Schedule V(b)'!$B$11:$Z$315,9,0),0)","v":0},null,{"$f":"IFERROR(VLOOKUP(B178,'Schedule V(b)'!$B$11:$Z$315,11,0),0)","v":"Select"},null,{"$f":"IFERROR(VLOOKUP(B178,'Schedule V(b)'!$B$11:$Z$315,13,0),0)","v":0},null,{"$f":"IFERROR(VLOOKUP(B178,'Schedule V(b)'!$B$11:$Z$315,15,0),0)","v":"Select"},null,{"$f":"IFERROR(VLOOKUP(B178,'Schedule V(b)'!$B$11:$Z$315,17,0),0)","v":0},null,{"$f":"IFERROR(VLOOKUP(B178,'Schedule V(b)'!$B$11:$Z$315,25,0),0)","v":0},null,{"$f":"IFERROR(VLOOKUP(B178,'Schedule V(b)'!$B$11:$Z$315,23,0),0)","v":0},null,null,null,0]
[168,null,null,{"$f":"IFERROR(VLOOKUP(B179,'Schedule V(b)'!$B$11:$Z$315,3,0),0)","v":0},null,{"$f":"IFERROR(VLOOKUP(B179,'Schedule V(b)'!$B$11:$Z$315,7,0),0)","v":"Select"},null,{"$f":"IFERROR(VLOOKUP(B179,'Schedule V(b)'!$B$11:$Z$315,9,0),0)","v":0},null,{"$f":"IFERROR(VLOOKUP(B179,'Schedule V(b)'!$B$11:$Z$315,11,0),0)","v":"Select"},null,{"$f":"IFERROR(VLOOKUP(B179,'Schedule V(b)'!$B$11:$Z$315,13,0),0)","v":0},null,{"$f":"IFERROR(VLOOKUP(B179,'Schedule V(b)'!$B$11:$Z$315,15,0),0)","v":"Select"},null,{"$f":"IFERROR(VLOOKUP(B179,'Schedule V(b)'!$B$11:$Z$315,17,0),0)","v":0},null,{"$f":"IFERROR(VLOOKUP(B179,'Schedule V(b)'!$B$11:$Z$315,25,0),0)","v":0},null,{"$f":"IFERROR(VLOOKUP(B179,'Schedule V(b)'!$B$11:$Z$315,23,0),0)","v":0},null,null,null,0]
[169,null,null,{"$f":"IFERROR(VLOOKUP(B180,'Schedule V(b)'!$B$11:$Z$315,3,0),0)","v":0},null,{"$f":"IFERROR(VLOOKUP(B180,'Schedule V(b)'!$B$11:$Z$315,7,0),0)","v":"Select"},null,{"$f":"IFERROR(VLOOKUP(B180,'Schedule V(b)'!$B$11:$Z$315,9,0),0)","v":0},null,{"$f":"IFERROR(VLOOKUP(B180,'Schedule V(b)'!$B$11:$Z$315,11,0),0)","v":"Select"},null,{"$f":"IFERROR(VLOOKUP(B180,'Schedule V(b)'!$B$11:$Z$315,13,0),0)","v":0},null,{"$f":"IFERROR(VLOOKUP(B180,'Schedule V(b)'!$B$11:$Z$315,15,0),0)","v":"Select"},null,{"$f":"IFERROR(VLOOKUP(B180,'Schedule V(b)'!$B$11:$Z$315,17,0),0)","v":0},null,{"$f":"IFERROR(VLOOKUP(B180,'Schedule V(b)'!$B$11:$Z$315,25,0),0)","v":0},null,{"$f":"IFERROR(VLOOKUP(B180,'Schedule V(b)'!$B$11:$Z$315,23,0),0)","v":0},null,null,null,0]
[170,null,null,{"$f":"IFERROR(VLOOKUP(B181,'Schedule V(b)'!$B$11:$Z$315,3,0),0)","v":0},null,{"$f":"IFERROR(VLOOKUP(B181,'Schedule V(b)'!$B$11:$Z$315,7,0),0)","v":"Select"},null,{"$f":"IFERROR(VLOOKUP(B181,'Schedule V(b)'!$B$11:$Z$315,9,0),0)","v":0},null,{"$f":"IFERROR(VLOOKUP(B181,'Schedule V(b)'!$B$11:$Z$315,11,0),0)","v":"Select"},null,{"$f":"IFERROR(VLOOKUP(B181,'Schedule V(b)'!$B$11:$Z$315,13,0),0)","v":0},null,{"$f":"IFERROR(VLOOKUP(B181,'Schedule V(b)'!$B$11:$Z$315,15,0),0)","v":"Select"},null,{"$f":"IFERROR(VLOOKUP(B181,'Schedule V(b)'!$B$11:$Z$315,17,0),0)","v":0},null,{"$f":"IFERROR(VLOOKUP(B181,'Schedule V(b)'!$B$11:$Z$315,25,0),0)","v":0},null,{"$f":"IFERROR(VLOOKUP(B181,'Schedule V(b)'!$B$11:$Z$315,23,0),0)","v":0},null,null,null,0]
[171,null,null,{"$f":"IFERROR(VLOOKUP(B182,'Schedule V(b)'!$B$11:$Z$315,3,0),0)","v":0},null,{"$f":"IFERROR(VLOOKUP(B182,'Schedule V(b)'!$B$11:$Z$315,7,0),0)","v":"Select"},null,{"$f":"IFERROR(VLOOKUP(B182,'Schedule V(b)'!$B$11:$Z$315,9,0),0)","v":0},null,{"$f":"IFERROR(VLOOKUP(B182,'Schedule V(b)'!$B$11:$Z$315,11,0),0)","v":"Select"},null,{"$f":"IFERROR(VLOOKUP(B182,'Schedule V(b)'!$B$11:$Z$315,13,0),0)","v":0},null,{"$f":"IFERROR(VLOOKUP(B182,'Schedule V(b)'!$B$11:$Z$315,15,0),0)","v":"Select"},null,{"$f":"IFERROR(VLOOKUP(B182,'Schedule V(b)'!$B$11:$Z$315,17,0),0)","v":0},null,{"$f":"IFERROR(VLOOKUP(B182,'Schedule V(b)'!$B$11:$Z$315,25,0),0)","v":0},null,{"$f":"IFERROR(VLOOKUP(B182,'Schedule V(b)'!$B$11:$Z$315,23,0),0)","v":0},null,null,null,0]
[172,null,null,{"$f":"IFERROR(VLOOKUP(B183,'Schedule V(b)'!$B$11:$Z$315,3,0),0)","v":0},null,{"$f":"IFERROR(VLOOKUP(B183,'Schedule V(b)'!$B$11:$Z$315,7,0),0)","v":"Select"},null,{"$f":"IFERROR(VLOOKUP(B183,'Schedule V(b)'!$B$11:$Z$315,9,0),0)","v":0},null,{"$f":"IFERROR(VLOOKUP(B183,'Schedule V(b)'!$B$11:$Z$315,11,0),0)","v":"Select"},null,{"$f":"IFERROR(VLOOKUP(B183,'Schedule V(b)'!$B$11:$Z$315,13,0),0)","v":0},null,{"$f":"IFERROR(VLOOKUP(B183,'Schedule V(b)'!$B$11:$Z$315,15,0),0)","v":"Select"},null,{"$f":"IFERROR(VLOOKUP(B183,'Schedule V(b)'!$B$11:$Z$315,17,0),0)","v":0},null,{"$f":"IFERROR(VLOOKUP(B183,'Schedule V(b)'!$B$11:$Z$315,25,0),0)","v":0},null,{"$f":"IFERROR(VLOOKUP(B183,'Schedule V(b)'!$B$11:$Z$315,23,0),0)","v":0},null,null,null,0]
[173,null,null,{"$f":"IFERROR(VLOOKUP(B184,'Schedule V(b)'!$B$11:$Z$315,3,0),0)","v":0},null,{"$f":"IFERROR(VLOOKUP(B184,'Schedule V(b)'!$B$11:$Z$315,7,0),0)","v":"Select"},null,{"$f":"IFERROR(VLOOKUP(B184,'Schedule V(b)'!$B$11:$Z$315,9,0),0)","v":0},null,{"$f":"IFERROR(VLOOKUP(B184,'Schedule V(b)'!$B$11:$Z$315,11,0),0)","v":"Select"},null,{"$f":"IFERROR(VLOOKUP(B184,'Schedule V(b)'!$B$11:$Z$315,13,0),0)","v":0},null,{"$f":"IFERROR(VLOOKUP(B184,'Schedule V(b)'!$B$11:$Z$315,15,0),0)","v":"Select"},null,{"$f":"IFERROR(VLOOKUP(B184,'Schedule V(b)'!$B$11:$Z$315,17,0),0)","v":0},null,{"$f":"IFERROR(VLOOKUP(B184,'Schedule V(b)'!$B$11:$Z$315,25,0),0)","v":0},null,{"$f":"IFERROR(VLOOKUP(B184,'Schedule V(b)'!$B$11:$Z$315,23,0),0)","v":0},null,null,null,0]
[174,null,null,{"$f":"IFERROR(VLOOKUP(B185,'Schedule V(b)'!$B$11:$Z$315,3,0),0)","v":0},null,{"$f":"IFERROR(VLOOKUP(B185,'Schedule V(b)'!$B$11:$Z$315,7,0),0)","v":"Select"},null,{"$f":"IFERROR(VLOOKUP(B185,'Schedule V(b)'!$B$11:$Z$315,9,0),0)","v":0},null,{"$f":"IFERROR(VLOOKUP(B185,'Schedule V(b)'!$B$11:$Z$315,11,0),0)","v":"Select"},null,{"$f":"IFERROR(VLOOKUP(B185,'Schedule V(b)'!$B$11:$Z$315,13,0),0)","v":0},null,{"$f":"IFERROR(VLOOKUP(B185,'Schedule V(b)'!$B$11:$Z$315,15,0),0)","v":"Select"},null,{"$f":"IFERROR(VLOOKUP(B185,'Schedule V(b)'!$B$11:$Z$315,17,0),0)","v":0},null,{"$f":"IFERROR(VLOOKUP(B185,'Schedule V(b)'!$B$11:$Z$315,25,0),0)","v":0},null,{"$f":"IFERROR(VLOOKUP(B185,'Schedule V(b)'!$B$11:$Z$315,23,0),0)","v":0},null,null,null,0]
[175,null,null,{"$f":"IFERROR(VLOOKUP(B186,'Schedule V(b)'!$B$11:$Z$315,3,0),0)","v":0},null,{"$f":"IFERROR(VLOOKUP(B186,'Schedule V(b)'!$B$11:$Z$315,7,0),0)","v":"Select"},null,{"$f":"IFERROR(VLOOKUP(B186,'Schedule V(b)'!$B$11:$Z$315,9,0),0)","v":0},null,{"$f":"IFERROR(VLOOKUP(B186,'Schedule V(b)'!$B$11:$Z$315,11,0),0)","v":"Select"},null,{"$f":"IFERROR(VLOOKUP(B186,'Schedule V(b)'!$B$11:$Z$315,13,0),0)","v":0},null,{"$f":"IFERROR(VLOOKUP(B186,'Schedule V(b)'!$B$11:$Z$315,15,0),0)","v":"Select"},null,{"$f":"IFERROR(VLOOKUP(B186,'Schedule V(b)'!$B$11:$Z$315,17,0),0)","v":0},null,{"$f":"IFERROR(VLOOKUP(B186,'Schedule V(b)'!$B$11:$Z$315,25,0),0)","v":0},null,{"$f":"IFERROR(VLOOKUP(B186,'Schedule V(b)'!$B$11:$Z$315,23,0),0)","v":0},null,null,null,0]
[176,null,null,{"$f":"IFERROR(VLOOKUP(B187,'Schedule V(b)'!$B$11:$Z$315,3,0),0)","v":0},null,{"$f":"IFERROR(VLOOKUP(B187,'Schedule V(b)'!$B$11:$Z$315,7,0),0)","v":"Select"},null,{"$f":"IFERROR(VLOOKUP(B187,'Schedule V(b)'!$B$11:$Z$315,9,0),0)","v":0},null,{"$f":"IFERROR(VLOOKUP(B187,'Schedule V(b)'!$B$11:$Z$315,11,0),0)","v":"Select"},null,{"$f":"IFERROR(VLOOKUP(B187,'Schedule V(b)'!$B$11:$Z$315,13,0),0)","v":0},null,{"$f":"IFERROR(VLOOKUP(B187,'Schedule V(b)'!$B$11:$Z$315,15,0),0)","v":"Select"},null,{"$f":"IFERROR(VLOOKUP(B187,'Schedule V(b)'!$B$11:$Z$315,17,0),0)","v":0},null,{"$f":"IFERROR(VLOOKUP(B187,'Schedule V(b)'!$B$11:$Z$315,25,0),0)","v":0},null,{"$f":"IFERROR(VLOOKUP(B187,'Schedule V(b)'!$B$11:$Z$315,23,0),0)","v":0},null,null,null,0]
[177,null,null,{"$f":"IFERROR(VLOOKUP(B188,'Schedule V(b)'!$B$11:$Z$315,3,0),0)","v":0},null,{"$f":"IFERROR(VLOOKUP(B188,'Schedule V(b)'!$B$11:$Z$315,7,0),0)","v":"Select"},null,{"$f":"IFERROR(VLOOKUP(B188,'Schedule V(b)'!$B$11:$Z$315,9,0),0)","v":0},null,{"$f":"IFERROR(VLOOKUP(B188,'Schedule V(b)'!$B$11:$Z$315,11,0),0)","v":"Select"},null,{"$f":"IFERROR(VLOOKUP(B188,'Schedule V(b)'!$B$11:$Z$315,13,0),0)","v":0},null,{"$f":"IFERROR(VLOOKUP(B188,'Schedule V(b)'!$B$11:$Z$315,15,0),0)","v":"Select"},null,{"$f":"IFERROR(VLOOKUP(B188,'Schedule V(b)'!$B$11:$Z$315,17,0),0)","v":0},null,{"$f":"IFERROR(VLOOKUP(B188,'Schedule V(b)'!$B$11:$Z$315,25,0),0)","v":0},null,{"$f":"IFERROR(VLOOKUP(B188,'Schedule V(b)'!$B$11:$Z$315,23,0),0)","v":0},null,null,null,0]
[178,null,null,{"$f":"IFERROR(VLOOKUP(B189,'Schedule V(b)'!$B$11:$Z$315,3,0),0)","v":0},null,{"$f":"IFERROR(VLOOKUP(B189,'Schedule V(b)'!$B$11:$Z$315,7,0),0)","v":"Select"},null,{"$f":"IFERROR(VLOOKUP(B189,'Schedule V(b)'!$B$11:$Z$315,9,0),0)","v":0},null,{"$f":"IFERROR(VLOOKUP(B189,'Schedule V(b)'!$B$11:$Z$315,11,0),0)","v":"Select"},null,{"$f":"IFERROR(VLOOKUP(B189,'Schedule V(b)'!$B$11:$Z$315,13,0),0)","v":0},null,{"$f":"IFERROR(VLOOKUP(B189,'Schedule V(b)'!$B$11:$Z$315,15,0),0)","v":"Select"},null,{"$f":"IFERROR(VLOOKUP(B189,'Schedule V(b)'!$B$11:$Z$315,17,0),0)","v":0},null,{"$f":"IFERROR(VLOOKUP(B189,'Schedule V(b)'!$B$11:$Z$315,25,0),0)","v":0},null,{"$f":"IFERROR(VLOOKUP(B189,'Schedule V(b)'!$B$11:$Z$315,23,0),0)","v":0},null,null,null,0]
[179,null,null,{"$f":"IFERROR(VLOOKUP(B190,'Schedule V(b)'!$B$11:$Z$315,3,0),0)","v":0},null,{"$f":"IFERROR(VLOOKUP(B190,'Schedule V(b)'!$B$11:$Z$315,7,0),0)","v":"Select"},null,{"$f":"IFERROR(VLOOKUP(B190,'Schedule V(b)'!$B$11:$Z$315,9,0),0)","v":0},null,{"$f":"IFERROR(VLOOKUP(B190,'Schedule V(b)'!$B$11:$Z$315,11,0),0)","v":"Select"},null,{"$f":"IFERROR(VLOOKUP(B190,'Schedule V(b)'!$B$11:$Z$315,13,0),0)","v":0},null,{"$f":"IFERROR(VLOOKUP(B190,'Schedule V(b)'!$B$11:$Z$315,15,0),0)","v":"Select"},null,{"$f":"IFERROR(VLOOKUP(B190,'Schedule V(b)'!$B$11:$Z$315,17,0),0)","v":0},null,{"$f":"IFERROR(VLOOKUP(B190,'Schedule V(b)'!$B$11:$Z$315,25,0),0)","v":0},null,{"$f":"IFERROR(VLOOKUP(B190,'Schedule V(b)'!$B$11:$Z$315,23,0),0)","v":0},null,null,null,0]
[180,null,null,{"$f":"IFERROR(VLOOKUP(B191,'Schedule V(b)'!$B$11:$Z$315,3,0),0)","v":0},null,{"$f":"IFERROR(VLOOKUP(B191,'Schedule V(b)'!$B$11:$Z$315,7,0),0)","v":"Select"},null,{"$f":"IFERROR(VLOOKUP(B191,'Schedule V(b)'!$B$11:$Z$315,9,0),0)","v":0},null,{"$f":"IFERROR(VLOOKUP(B191,'Schedule V(b)'!$B$11:$Z$315,11,0),0)","v":"Select"},null,{"$f":"IFERROR(VLOOKUP(B191,'Schedule V(b)'!$B$11:$Z$315,13,0),0)","v":0},null,{"$f":"IFERROR(VLOOKUP(B191,'Schedule V(b)'!$B$11:$Z$315,15,0),0)","v":"Select"},null,{"$f":"IFERROR(VLOOKUP(B191,'Schedule V(b)'!$B$11:$Z$315,17,0),0)","v":0},null,{"$f":"IFERROR(VLOOKUP(B191,'Schedule V(b)'!$B$11:$Z$315,25,0),0)","v":0},null,{"$f":"IFERROR(VLOOKUP(B191,'Schedule V(b)'!$B$11:$Z$315,23,0),0)","v":0},null,null,null,0]
[181,null,null,{"$f":"IFERROR(VLOOKUP(B192,'Schedule V(b)'!$B$11:$Z$315,3,0),0)","v":0},null,{"$f":"IFERROR(VLOOKUP(B192,'Schedule V(b)'!$B$11:$Z$315,7,0),0)","v":"Select"},null,{"$f":"IFERROR(VLOOKUP(B192,'Schedule V(b)'!$B$11:$Z$315,9,0),0)","v":0},null,{"$f":"IFERROR(VLOOKUP(B192,'Schedule V(b)'!$B$11:$Z$315,11,0),0)","v":"Select"},null,{"$f":"IFERROR(VLOOKUP(B192,'Schedule V(b)'!$B$11:$Z$315,13,0),0)","v":0},null,{"$f":"IFERROR(VLOOKUP(B192,'Schedule V(b)'!$B$11:$Z$315,15,0),0)","v":"Select"},null,{"$f":"IFERROR(VLOOKUP(B192,'Schedule V(b)'!$B$11:$Z$315,17,0),0)","v":0},null,{"$f":"IFERROR(VLOOKUP(B192,'Schedule V(b)'!$B$11:$Z$315,25,0),0)","v":0},null,{"$f":"IFERROR(VLOOKUP(B192,'Schedule V(b)'!$B$11:$Z$315,23,0),0)","v":0},null,null,null,0]
[182,null,null,{"$f":"IFERROR(VLOOKUP(B193,'Schedule V(b)'!$B$11:$Z$315,3,0),0)","v":0},null,{"$f":"IFERROR(VLOOKUP(B193,'Schedule V(b)'!$B$11:$Z$315,7,0),0)","v":"Select"},null,{"$f":"IFERROR(VLOOKUP(B193,'Schedule V(b)'!$B$11:$Z$315,9,0),0)","v":0},null,{"$f":"IFERROR(VLOOKUP(B193,'Schedule V(b)'!$B$11:$Z$315,11,0),0)","v":"Select"},null,{"$f":"IFERROR(VLOOKUP(B193,'Schedule V(b)'!$B$11:$Z$315,13,0),0)","v":0},null,{"$f":"IFERROR(VLOOKUP(B193,'Schedule V(b)'!$B$11:$Z$315,15,0),0)","v":"Select"},null,{"$f":"IFERROR(VLOOKUP(B193,'Schedule V(b)'!$B$11:$Z$315,17,0),0)","v":0},null,{"$f":"IFERROR(VLOOKUP(B193,'Schedule V(b)'!$B$11:$Z$315,25,0),0)","v":0},null,{"$f":"IFERROR(VLOOKUP(B193,'Schedule V(b)'!$B$11:$Z$315,23,0),0)","v":0},null,null,null,0]
[183,null,null,{"$f":"IFERROR(VLOOKUP(B194,'Schedule V(b)'!$B$11:$Z$315,3,0),0)","v":0},null,{"$f":"IFERROR(VLOOKUP(B194,'Schedule V(b)'!$B$11:$Z$315,7,0),0)","v":"Select"},null,{"$f":"IFERROR(VLOOKUP(B194,'Schedule V(b)'!$B$11:$Z$315,9,0),0)","v":0},null,{"$f":"IFERROR(VLOOKUP(B194,'Schedule V(b)'!$B$11:$Z$315,11,0),0)","v":"Select"},null,{"$f":"IFERROR(VLOOKUP(B194,'Schedule V(b)'!$B$11:$Z$315,13,0),0)","v":0},null,{"$f":"IFERROR(VLOOKUP(B194,'Schedule V(b)'!$B$11:$Z$315,15,0),0)","v":"Select"},null,{"$f":"IFERROR(VLOOKUP(B194,'Schedule V(b)'!$B$11:$Z$315,17,0),0)","v":0},null,{"$f":"IFERROR(VLOOKUP(B194,'Schedule V(b)'!$B$11:$Z$315,25,0),0)","v":0},null,{"$f":"IFERROR(VLOOKUP(B194,'Schedule V(b)'!$B$11:$Z$315,23,0),0)","v":0},null,null,null,0]
[184,null,null,{"$f":"IFERROR(VLOOKUP(B195,'Schedule V(b)'!$B$11:$Z$315,3,0),0)","v":0},null,{"$f":"IFERROR(VLOOKUP(B195,'Schedule V(b)'!$B$11:$Z$315,7,0),0)","v":"Select"},null,{"$f":"IFERROR(VLOOKUP(B195,'Schedule V(b)'!$B$11:$Z$315,9,0),0)","v":0},null,{"$f":"IFERROR(VLOOKUP(B195,'Schedule V(b)'!$B$11:$Z$315,11,0),0)","v":"Select"},null,{"$f":"IFERROR(VLOOKUP(B195,'Schedule V(b)'!$B$11:$Z$315,13,0),0)","v":0},null,{"$f":"IFERROR(VLOOKUP(B195,'Schedule V(b)'!$B$11:$Z$315,15,0),0)","v":"Select"},null,{"$f":"IFERROR(VLOOKUP(B195,'Schedule V(b)'!$B$11:$Z$315,17,0),0)","v":0},null,{"$f":"IFERROR(VLOOKUP(B195,'Schedule V(b)'!$B$11:$Z$315,25,0),0)","v":0},null,{"$f":"IFERROR(VLOOKUP(B195,'Schedule V(b)'!$B$11:$Z$315,23,0),0)","v":0},null,null,null,0]
[185,null,null,{"$f":"IFERROR(VLOOKUP(B196,'Schedule V(b)'!$B$11:$Z$315,3,0),0)","v":0},null,{"$f":"IFERROR(VLOOKUP(B196,'Schedule V(b)'!$B$11:$Z$315,7,0),0)","v":"Select"},null,{"$f":"IFERROR(VLOOKUP(B196,'Schedule V(b)'!$B$11:$Z$315,9,0),0)","v":0},null,{"$f":"IFERROR(VLOOKUP(B196,'Schedule V(b)'!$B$11:$Z$315,11,0),0)","v":"Select"},null,{"$f":"IFERROR(VLOOKUP(B196,'Schedule V(b)'!$B$11:$Z$315,13,0),0)","v":0},null,{"$f":"IFERROR(VLOOKUP(B196,'Schedule V(b)'!$B$11:$Z$315,15,0),0)","v":"Select"},null,{"$f":"IFERROR(VLOOKUP(B196,'Schedule V(b)'!$B$11:$Z$315,17,0),0)","v":0},null,{"$f":"IFERROR(VLOOKUP(B196,'Schedule V(b)'!$B$11:$Z$315,25,0),0)","v":0},null,{"$f":"IFERROR(VLOOKUP(B196,'Schedule V(b)'!$B$11:$Z$315,23,0),0)","v":0},null,null,null,0]
[186,null,null,{"$f":"IFERROR(VLOOKUP(B197,'Schedule V(b)'!$B$11:$Z$315,3,0),0)","v":0},null,{"$f":"IFERROR(VLOOKUP(B197,'Schedule V(b)'!$B$11:$Z$315,7,0),0)","v":"Select"},null,{"$f":"IFERROR(VLOOKUP(B197,'Schedule V(b)'!$B$11:$Z$315,9,0),0)","v":0},null,{"$f":"IFERROR(VLOOKUP(B197,'Schedule V(b)'!$B$11:$Z$315,11,0),0)","v":"Select"},null,{"$f":"IFERROR(VLOOKUP(B197,'Schedule V(b)'!$B$11:$Z$315,13,0),0)","v":0},null,{"$f":"IFERROR(VLOOKUP(B197,'Schedule V(b)'!$B$11:$Z$315,15,0),0)","v":"Select"},null,{"$f":"IFERROR(VLOOKUP(B197,'Schedule V(b)'!$B$11:$Z$315,17,0),0)","v":0},null,{"$f":"IFERROR(VLOOKUP(B197,'Schedule V(b)'!$B$11:$Z$315,25,0),0)","v":0},null,{"$f":"IFERROR(VLOOKUP(B197,'Schedule V(b)'!$B$11:$Z$315,23,0),0)","v":0},null,null,null,0]
[187,null,null,{"$f":"IFERROR(VLOOKUP(B198,'Schedule V(b)'!$B$11:$Z$315,3,0),0)","v":0},null,{"$f":"IFERROR(VLOOKUP(B198,'Schedule V(b)'!$B$11:$Z$315,7,0),0)","v":"Select"},null,{"$f":"IFERROR(VLOOKUP(B198,'Schedule V(b)'!$B$11:$Z$315,9,0),0)","v":0},null,{"$f":"IFERROR(VLOOKUP(B198,'Schedule V(b)'!$B$11:$Z$315,11,0),0)","v":"Select"},null,{"$f":"IFERROR(VLOOKUP(B198,'Schedule V(b)'!$B$11:$Z$315,13,0),0)","v":0},null,{"$f":"IFERROR(VLOOKUP(B198,'Schedule V(b)'!$B$11:$Z$315,15,0),0)","v":"Select"},null,{"$f":"IFERROR(VLOOKUP(B198,'Schedule V(b)'!$B$11:$Z$315,17,0),0)","v":0},null,{"$f":"IFERROR(VLOOKUP(B198,'Schedule V(b)'!$B$11:$Z$315,25,0),0)","v":0},null,{"$f":"IFERROR(VLOOKUP(B198,'Schedule V(b)'!$B$11:$Z$315,23,0),0)","v":0},null,null,null,0]
[188,null,null,{"$f":"IFERROR(VLOOKUP(B199,'Schedule V(b)'!$B$11:$Z$315,3,0),0)","v":0},null,{"$f":"IFERROR(VLOOKUP(B199,'Schedule V(b)'!$B$11:$Z$315,7,0),0)","v":"Select"},null,{"$f":"IFERROR(VLOOKUP(B199,'Schedule V(b)'!$B$11:$Z$315,9,0),0)","v":0},null,{"$f":"IFERROR(VLOOKUP(B199,'Schedule V(b)'!$B$11:$Z$315,11,0),0)","v":"Select"},null,{"$f":"IFERROR(VLOOKUP(B199,'Schedule V(b)'!$B$11:$Z$315,13,0),0)","v":0},null,{"$f":"IFERROR(VLOOKUP(B199,'Schedule V(b)'!$B$11:$Z$315,15,0),0)","v":"Select"},null,{"$f":"IFERROR(VLOOKUP(B199,'Schedule V(b)'!$B$11:$Z$315,17,0),0)","v":0},null,{"$f":"IFERROR(VLOOKUP(B199,'Schedule V(b)'!$B$11:$Z$315,25,0),0)","v":0},null,{"$f":"IFERROR(VLOOKUP(B199,'Schedule V(b)'!$B$11:$Z$315,23,0),0)","v":0},null,null,null,0]
[189,null,null,{"$f":"IFERROR(VLOOKUP(B200,'Schedule V(b)'!$B$11:$Z$315,3,0),0)","v":0},null,{"$f":"IFERROR(VLOOKUP(B200,'Schedule V(b)'!$B$11:$Z$315,7,0),0)","v":"Select"},null,{"$f":"IFERROR(VLOOKUP(B200,'Schedule V(b)'!$B$11:$Z$315,9,0),0)","v":0},null,{"$f":"IFERROR(VLOOKUP(B200,'Schedule V(b)'!$B$11:$Z$315,11,0),0)","v":"Select"},null,{"$f":"IFERROR(VLOOKUP(B200,'Schedule V(b)'!$B$11:$Z$315,13,0),0)","v":0},null,{"$f":"IFERROR(VLOOKUP(B200,'Schedule V(b)'!$B$11:$Z$315,15,0),0)","v":"Select"},null,{"$f":"IFERROR(VLOOKUP(B200,'Schedule V(b)'!$B$11:$Z$315,17,0),0)","v":0},null,{"$f":"IFERROR(VLOOKUP(B200,'Schedule V(b)'!$B$11:$Z$315,25,0),0)","v":0},null,{"$f":"IFERROR(VLOOKUP(B200,'Schedule V(b)'!$B$11:$Z$315,23,0),0)","v":0},null,null,null,0]
[190,null,null,{"$f":"IFERROR(VLOOKUP(B201,'Schedule V(b)'!$B$11:$Z$315,3,0),0)","v":0},null,{"$f":"IFERROR(VLOOKUP(B201,'Schedule V(b)'!$B$11:$Z$315,7,0),0)","v":"Select"},null,{"$f":"IFERROR(VLOOKUP(B201,'Schedule V(b)'!$B$11:$Z$315,9,0),0)","v":0},null,{"$f":"IFERROR(VLOOKUP(B201,'Schedule V(b)'!$B$11:$Z$315,11,0),0)","v":"Select"},null,{"$f":"IFERROR(VLOOKUP(B201,'Schedule V(b)'!$B$11:$Z$315,13,0),0)","v":0},null,{"$f":"IFERROR(VLOOKUP(B201,'Schedule V(b)'!$B$11:$Z$315,15,0),0)","v":"Select"},null,{"$f":"IFERROR(VLOOKUP(B201,'Schedule V(b)'!$B$11:$Z$315,17,0),0)","v":0},null,{"$f":"IFERROR(VLOOKUP(B201,'Schedule V(b)'!$B$11:$Z$315,25,0),0)","v":0},null,{"$f":"IFERROR(VLOOKUP(B201,'Schedule V(b)'!$B$11:$Z$315,23,0),0)","v":0},null,null,null,0]
[191,null,null,{"$f":"IFERROR(VLOOKUP(B202,'Schedule V(b)'!$B$11:$Z$315,3,0),0)","v":0},null,{"$f":"IFERROR(VLOOKUP(B202,'Schedule V(b)'!$B$11:$Z$315,7,0),0)","v":"Select"},null,{"$f":"IFERROR(VLOOKUP(B202,'Schedule V(b)'!$B$11:$Z$315,9,0),0)","v":0},null,{"$f":"IFERROR(VLOOKUP(B202,'Schedule V(b)'!$B$11:$Z$315,11,0),0)","v":"Select"},null,{"$f":"IFERROR(VLOOKUP(B202,'Schedule V(b)'!$B$11:$Z$315,13,0),0)","v":0},null,{"$f":"IFERROR(VLOOKUP(B202,'Schedule V(b)'!$B$11:$Z$315,15,0),0)","v":"Select"},null,{"$f":"IFERROR(VLOOKUP(B202,'Schedule V(b)'!$B$11:$Z$315,17,0),0)","v":0},null,{"$f":"IFERROR(VLOOKUP(B202,'Schedule V(b)'!$B$11:$Z$315,25,0),0)","v":0},null,{"$f":"IFERROR(VLOOKUP(B202,'Schedule V(b)'!$B$11:$Z$315,23,0),0)","v":0},null,null,null,0]
[192,null,null,{"$f":"IFERROR(VLOOKUP(B203,'Schedule V(b)'!$B$11:$Z$315,3,0),0)","v":0},null,{"$f":"IFERROR(VLOOKUP(B203,'Schedule V(b)'!$B$11:$Z$315,7,0),0)","v":"Select"},null,{"$f":"IFERROR(VLOOKUP(B203,'Schedule V(b)'!$B$11:$Z$315,9,0),0)","v":0},null,{"$f":"IFERROR(VLOOKUP(B203,'Schedule V(b)'!$B$11:$Z$315,11,0),0)","v":"Select"},null,{"$f":"IFERROR(VLOOKUP(B203,'Schedule V(b)'!$B$11:$Z$315,13,0),0)","v":0},null,{"$f":"IFERROR(VLOOKUP(B203,'Schedule V(b)'!$B$11:$Z$315,15,0),0)","v":"Select"},null,{"$f":"IFERROR(VLOOKUP(B203,'Schedule V(b)'!$B$11:$Z$315,17,0),0)","v":0},null,{"$f":"IFERROR(VLOOKUP(B203,'Schedule V(b)'!$B$11:$Z$315,25,0),0)","v":0},null,{"$f":"IFERROR(VLOOKUP(B203,'Schedule V(b)'!$B$11:$Z$315,23,0),0)","v":0},null,null,null,0]
[193,null,null,{"$f":"IFERROR(VLOOKUP(B204,'Schedule V(b)'!$B$11:$Z$315,3,0),0)","v":0},null,{"$f":"IFERROR(VLOOKUP(B204,'Schedule V(b)'!$B$11:$Z$315,7,0),0)","v":"Select"},null,{"$f":"IFERROR(VLOOKUP(B204,'Schedule V(b)'!$B$11:$Z$315,9,0),0)","v":0},null,{"$f":"IFERROR(VLOOKUP(B204,'Schedule V(b)'!$B$11:$Z$315,11,0),0)","v":"Select"},null,{"$f":"IFERROR(VLOOKUP(B204,'Schedule V(b)'!$B$11:$Z$315,13,0),0)","v":0},null,{"$f":"IFERROR(VLOOKUP(B204,'Schedule V(b)'!$B$11:$Z$315,15,0),0)","v":"Select"},null,{"$f":"IFERROR(VLOOKUP(B204,'Schedule V(b)'!$B$11:$Z$315,17,0),0)","v":0},null,{"$f":"IFERROR(VLOOKUP(B204,'Schedule V(b)'!$B$11:$Z$315,25,0),0)","v":0},null,{"$f":"IFERROR(VLOOKUP(B204,'Schedule V(b)'!$B$11:$Z$315,23,0),0)","v":0},null,null,null,{"$f":"$P204*$V204","v":0}]
[194,null,null,{"$f":"IFERROR(VLOOKUP(B205,'Schedule V(b)'!$B$11:$Z$315,3,0),0)","v":0},null,{"$f":"IFERROR(VLOOKUP(B205,'Schedule V(b)'!$B$11:$Z$315,7,0),0)","v":"Select"},null,{"$f":"IFERROR(VLOOKUP(B205,'Schedule V(b)'!$B$11:$Z$315,9,0),0)","v":0},null,{"$f":"IFERROR(VLOOKUP(B205,'Schedule V(b)'!$B$11:$Z$315,11,0),0)","v":"Select"},null,{"$f":"IFERROR(VLOOKUP(B205,'Schedule V(b)'!$B$11:$Z$315,13,0),0)","v":0},null,{"$f":"IFERROR(VLOOKUP(B205,'Schedule V(b)'!$B$11:$Z$315,15,0),0)","v":"Select"},null,{"$f":"IFERROR(VLOOKUP(B205,'Schedule V(b)'!$B$11:$Z$315,17,0),0)","v":0},null,{"$f":"IFERROR(VLOOKUP(B205,'Schedule V(b)'!$B$11:$Z$315,25,0),0)","v":0},null,{"$f":"IFERROR(VLOOKUP(B205,'Schedule V(b)'!$B$11:$Z$315,23,0),0)","v":0},null,null,null,0]
[195,null,null,{"$f":"IFERROR(VLOOKUP(B206,'Schedule V(b)'!$B$11:$Z$315,3,0),0)","v":0},null,{"$f":"IFERROR(VLOOKUP(B206,'Schedule V(b)'!$B$11:$Z$315,7,0),0)","v":"Select"},null,{"$f":"IFERROR(VLOOKUP(B206,'Schedule V(b)'!$B$11:$Z$315,9,0),0)","v":0},null,{"$f":"IFERROR(VLOOKUP(B206,'Schedule V(b)'!$B$11:$Z$315,11,0),0)","v":"Select"},null,{"$f":"IFERROR(VLOOKUP(B206,'Schedule V(b)'!$B$11:$Z$315,13,0),0)","v":0},null,{"$f":"IFERROR(VLOOKUP(B206,'Schedule V(b)'!$B$11:$Z$315,15,0),0)","v":"Select"},null,{"$f":"IFERROR(VLOOKUP(B206,'Schedule V(b)'!$B$11:$Z$315,17,0),0)","v":0},null,{"$f":"IFERROR(VLOOKUP(B206,'Schedule V(b)'!$B$11:$Z$315,25,0),0)","v":0},null,{"$f":"IFERROR(VLOOKUP(B206,'Schedule V(b)'!$B$11:$Z$315,23,0),0)","v":0},null,null,null,0]
[196,null,null,{"$f":"IFERROR(VLOOKUP(B207,'Schedule V(b)'!$B$11:$Z$315,3,0),0)","v":0},null,{"$f":"IFERROR(VLOOKUP(B207,'Schedule V(b)'!$B$11:$Z$315,7,0),0)","v":"Select"},null,{"$f":"IFERROR(VLOOKUP(B207,'Schedule V(b)'!$B$11:$Z$315,9,0),0)","v":0},null,{"$f":"IFERROR(VLOOKUP(B207,'Schedule V(b)'!$B$11:$Z$315,11,0),0)","v":"Select"},null,{"$f":"IFERROR(VLOOKUP(B207,'Schedule V(b)'!$B$11:$Z$315,13,0),0)","v":0},null,{"$f":"IFERROR(VLOOKUP(B207,'Schedule V(b)'!$B$11:$Z$315,15,0),0)","v":"Select"},null,{"$f":"IFERROR(VLOOKUP(B207,'Schedule V(b)'!$B$11:$Z$315,17,0),0)","v":0},null,{"$f":"IFERROR(VLOOKUP(B207,'Schedule V(b)'!$B$11:$Z$315,25,0),0)","v":0},null,{"$f":"IFERROR(VLOOKUP(B207,'Schedule V(b)'!$B$11:$Z$315,23,0),0)","v":0},null,null,null,0]
[197,null,null,{"$f":"IFERROR(VLOOKUP(B208,'Schedule V(b)'!$B$11:$Z$315,3,0),0)","v":0},null,{"$f":"IFERROR(VLOOKUP(B208,'Schedule V(b)'!$B$11:$Z$315,7,0),0)","v":"Select"},null,{"$f":"IFERROR(VLOOKUP(B208,'Schedule V(b)'!$B$11:$Z$315,9,0),0)","v":0},null,{"$f":"IFERROR(VLOOKUP(B208,'Schedule V(b)'!$B$11:$Z$315,11,0),0)","v":"Select"},null,{"$f":"IFERROR(VLOOKUP(B208,'Schedule V(b)'!$B$11:$Z$315,13,0),0)","v":0},null,{"$f":"IFERROR(VLOOKUP(B208,'Schedule V(b)'!$B$11:$Z$315,15,0),0)","v":"Select"},null,{"$f":"IFERROR(VLOOKUP(B208,'Schedule V(b)'!$B$11:$Z$315,17,0),0)","v":0},null,{"$f":"IFERROR(VLOOKUP(B208,'Schedule V(b)'!$B$11:$Z$315,25,0),0)","v":0},null,{"$f":"IFERROR(VLOOKUP(B208,'Schedule V(b)'!$B$11:$Z$315,23,0),0)","v":0},null,null,null,0]
[198,null,null,{"$f":"IFERROR(VLOOKUP(B209,'Schedule V(b)'!$B$11:$Z$315,3,0),0)","v":0},null,{"$f":"IFERROR(VLOOKUP(B209,'Schedule V(b)'!$B$11:$Z$315,7,0),0)","v":"Select"},null,{"$f":"IFERROR(VLOOKUP(B209,'Schedule V(b)'!$B$11:$Z$315,9,0),0)","v":0},null,{"$f":"IFERROR(VLOOKUP(B209,'Schedule V(b)'!$B$11:$Z$315,11,0),0)","v":"Select"},null,{"$f":"IFERROR(VLOOKUP(B209,'Schedule V(b)'!$B$11:$Z$315,13,0),0)","v":0},null,{"$f":"IFERROR(VLOOKUP(B209,'Schedule V(b)'!$B$11:$Z$315,15,0),0)","v":"Select"},null,{"$f":"IFERROR(VLOOKUP(B209,'Schedule V(b)'!$B$11:$Z$315,17,0),0)","v":0},null,{"$f":"IFERROR(VLOOKUP(B209,'Schedule V(b)'!$B$11:$Z$315,25,0),0)","v":0},null,{"$f":"IFERROR(VLOOKUP(B209,'Schedule V(b)'!$B$11:$Z$315,23,0),0)","v":0},null,null,null,0]
[199,null,null,{"$f":"IFERROR(VLOOKUP(B210,'Schedule V(b)'!$B$11:$Z$315,3,0),0)","v":0},null,{"$f":"IFERROR(VLOOKUP(B210,'Schedule V(b)'!$B$11:$Z$315,7,0),0)","v":"Select"},null,{"$f":"IFERROR(VLOOKUP(B210,'Schedule V(b)'!$B$11:$Z$315,9,0),0)","v":0},null,{"$f":"IFERROR(VLOOKUP(B210,'Schedule V(b)'!$B$11:$Z$315,11,0),0)","v":"Select"},null,{"$f":"IFERROR(VLOOKUP(B210,'Schedule V(b)'!$B$11:$Z$315,13,0),0)","v":0},null,{"$f":"IFERROR(VLOOKUP(B210,'Schedule V(b)'!$B$11:$Z$315,15,0),0)","v":"Select"},null,{"$f":"IFERROR(VLOOKUP(B210,'Schedule V(b)'!$B$11:$Z$315,17,0),0)","v":0},null,{"$f":"IFERROR(VLOOKUP(B210,'Schedule V(b)'!$B$11:$Z$315,25,0),0)","v":0},null,{"$f":"IFERROR(VLOOKUP(B210,'Schedule V(b)'!$B$11:$Z$315,23,0),0)","v":0},null,null,null,0]
[200,null,null,{"$f":"IFERROR(VLOOKUP(B211,'Schedule V(b)'!$B$11:$Z$315,3,0),0)","v":0},null,{"$f":"IFERROR(VLOOKUP(B211,'Schedule V(b)'!$B$11:$Z$315,7,0),0)","v":"Select"},null,{"$f":"IFERROR(VLOOKUP(B211,'Schedule V(b)'!$B$11:$Z$315,9,0),0)","v":0},null,{"$f":"IFERROR(VLOOKUP(B211,'Schedule V(b)'!$B$11:$Z$315,11,0),0)","v":"Select"},null,{"$f":"IFERROR(VLOOKUP(B211,'Schedule V(b)'!$B$11:$Z$315,13,0),0)","v":0},null,{"$f":"IFERROR(VLOOKUP(B211,'Schedule V(b)'!$B$11:$Z$315,15,0),0)","v":"Select"},null,{"$f":"IFERROR(VLOOKUP(B211,'Schedule V(b)'!$B$11:$Z$315,17,0),0)","v":0},null,{"$f":"IFERROR(VLOOKUP(B211,'Schedule V(b)'!$B$11:$Z$315,25,0),0)","v":0},null,{"$f":"IFERROR(VLOOKUP(B211,'Schedule V(b)'!$B$11:$Z$315,23,0),0)","v":0},null,null,null,0]
[201,null,null,{"$f":"IFERROR(VLOOKUP(B212,'Schedule V(b)'!$B$11:$Z$315,3,0),0)","v":0},null,{"$f":"IFERROR(VLOOKUP(B212,'Schedule V(b)'!$B$11:$Z$315,7,0),0)","v":"Select"},null,{"$f":"IFERROR(VLOOKUP(B212,'Schedule V(b)'!$B$11:$Z$315,9,0),0)","v":0},null,{"$f":"IFERROR(VLOOKUP(B212,'Schedule V(b)'!$B$11:$Z$315,11,0),0)","v":"Select"},null,{"$f":"IFERROR(VLOOKUP(B212,'Schedule V(b)'!$B$11:$Z$315,13,0),0)","v":0},null,{"$f":"IFERROR(VLOOKUP(B212,'Schedule V(b)'!$B$11:$Z$315,15,0),0)","v":"Select"},null,{"$f":"IFERROR(VLOOKUP(B212,'Schedule V(b)'!$B$11:$Z$315,17,0),0)","v":0},null,{"$f":"IFERROR(VLOOKUP(B212,'Schedule V(b)'!$B$11:$Z$315,25,0),0)","v":0},null,{"$f":"IFERROR(VLOOKUP(B212,'Schedule V(b)'!$B$11:$Z$315,23,0),0)","v":0},null,null,null,0]
[202,null,null,{"$f":"IFERROR(VLOOKUP(B213,'Schedule V(b)'!$B$11:$Z$315,3,0),0)","v":0},null,{"$f":"IFERROR(VLOOKUP(B213,'Schedule V(b)'!$B$11:$Z$315,7,0),0)","v":"Select"},null,{"$f":"IFERROR(VLOOKUP(B213,'Schedule V(b)'!$B$11:$Z$315,9,0),0)","v":0},null,{"$f":"IFERROR(VLOOKUP(B213,'Schedule V(b)'!$B$11:$Z$315,11,0),0)","v":"Select"},null,{"$f":"IFERROR(VLOOKUP(B213,'Schedule V(b)'!$B$11:$Z$315,13,0),0)","v":0},null,{"$f":"IFERROR(VLOOKUP(B213,'Schedule V(b)'!$B$11:$Z$315,15,0),0)","v":"Select"},null,{"$f":"IFERROR(VLOOKUP(B213,'Schedule V(b)'!$B$11:$Z$315,17,0),0)","v":0},null,{"$f":"IFERROR(VLOOKUP(B213,'Schedule V(b)'!$B$11:$Z$315,25,0),0)","v":0},null,{"$f":"IFERROR(VLOOKUP(B213,'Schedule V(b)'!$B$11:$Z$315,23,0),0)","v":0},null,null,null,0]
[203,null,null,{"$f":"IFERROR(VLOOKUP(B214,'Schedule V(b)'!$B$11:$Z$315,3,0),0)","v":0},null,{"$f":"IFERROR(VLOOKUP(B214,'Schedule V(b)'!$B$11:$Z$315,7,0),0)","v":"Select"},null,{"$f":"IFERROR(VLOOKUP(B214,'Schedule V(b)'!$B$11:$Z$315,9,0),0)","v":0},null,{"$f":"IFERROR(VLOOKUP(B214,'Schedule V(b)'!$B$11:$Z$315,11,0),0)","v":"Select"},null,{"$f":"IFERROR(VLOOKUP(B214,'Schedule V(b)'!$B$11:$Z$315,13,0),0)","v":0},null,{"$f":"IFERROR(VLOOKUP(B214,'Schedule V(b)'!$B$11:$Z$315,15,0),0)","v":"Select"},null,{"$f":"IFERROR(VLOOKUP(B214,'Schedule V(b)'!$B$11:$Z$315,17,0),0)","v":0},null,{"$f":"IFERROR(VLOOKUP(B214,'Schedule V(b)'!$B$11:$Z$315,25,0),0)","v":0},null,{"$f":"IFERROR(VLOOKUP(B214,'Schedule V(b)'!$B$11:$Z$315,23,0),0)","v":0},null,null,null,0]
[204,null,null,{"$f":"IFERROR(VLOOKUP(B215,'Schedule V(b)'!$B$11:$Z$315,3,0),0)","v":0},null,{"$f":"IFERROR(VLOOKUP(B215,'Schedule V(b)'!$B$11:$Z$315,7,0),0)","v":"Select"},null,{"$f":"IFERROR(VLOOKUP(B215,'Schedule V(b)'!$B$11:$Z$315,9,0),0)","v":0},null,{"$f":"IFERROR(VLOOKUP(B215,'Schedule V(b)'!$B$11:$Z$315,11,0),0)","v":"Select"},null,{"$f":"IFERROR(VLOOKUP(B215,'Schedule V(b)'!$B$11:$Z$315,13,0),0)","v":0},null,{"$f":"IFERROR(VLOOKUP(B215,'Schedule V(b)'!$B$11:$Z$315,15,0),0)","v":"Select"},null,{"$f":"IFERROR(VLOOKUP(B215,'Schedule V(b)'!$B$11:$Z$315,17,0),0)","v":0},null,{"$f":"IFERROR(VLOOKUP(B215,'Schedule V(b)'!$B$11:$Z$315,25,0),0)","v":0},null,{"$f":"IFERROR(VLOOKUP(B215,'Schedule V(b)'!$B$11:$Z$315,23,0),0)","v":0},null,null,null,0]
[205,null,null,{"$f":"IFERROR(VLOOKUP(B216,'Schedule V(b)'!$B$11:$Z$315,3,0),0)","v":0},null,{"$f":"IFERROR(VLOOKUP(B216,'Schedule V(b)'!$B$11:$Z$315,7,0),0)","v":"Select"},null,{"$f":"IFERROR(VLOOKUP(B216,'Schedule V(b)'!$B$11:$Z$315,9,0),0)","v":0},null,{"$f":"IFERROR(VLOOKUP(B216,'Schedule V(b)'!$B$11:$Z$315,11,0),0)","v":"Select"},null,{"$f":"IFERROR(VLOOKUP(B216,'Schedule V(b)'!$B$11:$Z$315,13,0),0)","v":0},null,{"$f":"IFERROR(VLOOKUP(B216,'Schedule V(b)'!$B$11:$Z$315,15,0),0)","v":"Select"},null,{"$f":"IFERROR(VLOOKUP(B216,'Schedule V(b)'!$B$11:$Z$315,17,0),0)","v":0},null,{"$f":"IFERROR(VLOOKUP(B216,'Schedule V(b)'!$B$11:$Z$315,25,0),0)","v":0},null,{"$f":"IFERROR(VLOOKUP(B216,'Schedule V(b)'!$B$11:$Z$315,23,0),0)","v":0},null,null,null,0]
[206,null,null,{"$f":"IFERROR(VLOOKUP(B217,'Schedule V(b)'!$B$11:$Z$315,3,0),0)","v":0},null,{"$f":"IFERROR(VLOOKUP(B217,'Schedule V(b)'!$B$11:$Z$315,7,0),0)","v":"Select"},null,{"$f":"IFERROR(VLOOKUP(B217,'Schedule V(b)'!$B$11:$Z$315,9,0),0)","v":0},null,{"$f":"IFERROR(VLOOKUP(B217,'Schedule V(b)'!$B$11:$Z$315,11,0),0)","v":"Select"},null,{"$f":"IFERROR(VLOOKUP(B217,'Schedule V(b)'!$B$11:$Z$315,13,0),0)","v":0},null,{"$f":"IFERROR(VLOOKUP(B217,'Schedule V(b)'!$B$11:$Z$315,15,0),0)","v":"Select"},null,{"$f":"IFERROR(VLOOKUP(B217,'Schedule V(b)'!$B$11:$Z$315,17,0),0)","v":0},null,{"$f":"IFERROR(VLOOKUP(B217,'Schedule V(b)'!$B$11:$Z$315,25,0),0)","v":0},null,{"$f":"IFERROR(VLOOKUP(B217,'Schedule V(b)'!$B$11:$Z$315,23,0),0)","v":0},null,null,null,0]
[207,null,null,{"$f":"IFERROR(VLOOKUP(B218,'Schedule V(b)'!$B$11:$Z$315,3,0),0)","v":0},null,{"$f":"IFERROR(VLOOKUP(B218,'Schedule V(b)'!$B$11:$Z$315,7,0),0)","v":"Select"},null,{"$f":"IFERROR(VLOOKUP(B218,'Schedule V(b)'!$B$11:$Z$315,9,0),0)","v":0},null,{"$f":"IFERROR(VLOOKUP(B218,'Schedule V(b)'!$B$11:$Z$315,11,0),0)","v":"Select"},null,{"$f":"IFERROR(VLOOKUP(B218,'Schedule V(b)'!$B$11:$Z$315,13,0),0)","v":0},null,{"$f":"IFERROR(VLOOKUP(B218,'Schedule V(b)'!$B$11:$Z$315,15,0),0)","v":"Select"},null,{"$f":"IFERROR(VLOOKUP(B218,'Schedule V(b)'!$B$11:$Z$315,17,0),0)","v":0},null,{"$f":"IFERROR(VLOOKUP(B218,'Schedule V(b)'!$B$11:$Z$315,25,0),0)","v":0},null,{"$f":"IFERROR(VLOOKUP(B218,'Schedule V(b)'!$B$11:$Z$315,23,0),0)","v":0},null,null,null,0]
[208,null,null,{"$f":"IFERROR(VLOOKUP(B219,'Schedule V(b)'!$B$11:$Z$315,3,0),0)","v":0},null,{"$f":"IFERROR(VLOOKUP(B219,'Schedule V(b)'!$B$11:$Z$315,7,0),0)","v":"Select"},null,{"$f":"IFERROR(VLOOKUP(B219,'Schedule V(b)'!$B$11:$Z$315,9,0),0)","v":0},null,{"$f":"IFERROR(VLOOKUP(B219,'Schedule V(b)'!$B$11:$Z$315,11,0),0)","v":"Select"},null,{"$f":"IFERROR(VLOOKUP(B219,'Schedule V(b)'!$B$11:$Z$315,13,0),0)","v":0},null,{"$f":"IFERROR(VLOOKUP(B219,'Schedule V(b)'!$B$11:$Z$315,15,0),0)","v":"Select"},null,{"$f":"IFERROR(VLOOKUP(B219,'Schedule V(b)'!$B$11:$Z$315,17,0),0)","v":0},null,{"$f":"IFERROR(VLOOKUP(B219,'Schedule V(b)'!$B$11:$Z$315,25,0),0)","v":0},null,{"$f":"IFERROR(VLOOKUP(B219,'Schedule V(b)'!$B$11:$Z$315,23,0),0)","v":0},null,null,null,0]
[209,null,null,{"$f":"IFERROR(VLOOKUP(B220,'Schedule V(b)'!$B$11:$Z$315,3,0),0)","v":0},null,{"$f":"IFERROR(VLOOKUP(B220,'Schedule V(b)'!$B$11:$Z$315,7,0),0)","v":"Select"},null,{"$f":"IFERROR(VLOOKUP(B220,'Schedule V(b)'!$B$11:$Z$315,9,0),0)","v":0},null,{"$f":"IFERROR(VLOOKUP(B220,'Schedule V(b)'!$B$11:$Z$315,11,0),0)","v":"Select"},null,{"$f":"IFERROR(VLOOKUP(B220,'Schedule V(b)'!$B$11:$Z$315,13,0),0)","v":0},null,{"$f":"IFERROR(VLOOKUP(B220,'Schedule V(b)'!$B$11:$Z$315,15,0),0)","v":"Select"},null,{"$f":"IFERROR(VLOOKUP(B220,'Schedule V(b)'!$B$11:$Z$315,17,0),0)","v":0},null,{"$f":"IFERROR(VLOOKUP(B220,'Schedule V(b)'!$B$11:$Z$315,25,0),0)","v":0},null,{"$f":"IFERROR(VLOOKUP(B220,'Schedule V(b)'!$B$11:$Z$315,23,0),0)","v":0},null,null,null,0]
[210,null,null,{"$f":"IFERROR(VLOOKUP(B221,'Schedule V(b)'!$B$11:$Z$315,3,0),0)","v":0},null,{"$f":"IFERROR(VLOOKUP(B221,'Schedule V(b)'!$B$11:$Z$315,7,0),0)","v":"Select"},null,{"$f":"IFERROR(VLOOKUP(B221,'Schedule V(b)'!$B$11:$Z$315,9,0),0)","v":0},null,{"$f":"IFERROR(VLOOKUP(B221,'Schedule V(b)'!$B$11:$Z$315,11,0),0)","v":"Select"},null,{"$f":"IFERROR(VLOOKUP(B221,'Schedule V(b)'!$B$11:$Z$315,13,0),0)","v":0},null,{"$f":"IFERROR(VLOOKUP(B221,'Schedule V(b)'!$B$11:$Z$315,15,0),0)","v":"Select"},null,{"$f":"IFERROR(VLOOKUP(B221,'Schedule V(b)'!$B$11:$Z$315,17,0),0)","v":0},null,{"$f":"IFERROR(VLOOKUP(B221,'Schedule V(b)'!$B$11:$Z$315,25,0),0)","v":0},null,{"$f":"IFERROR(VLOOKUP(B221,'Schedule V(b)'!$B$11:$Z$315,23,0),0)","v":0},null,null,null,0]
[211,null,null,{"$f":"IFERROR(VLOOKUP(B222,'Schedule V(b)'!$B$11:$Z$315,3,0),0)","v":0},null,{"$f":"IFERROR(VLOOKUP(B222,'Schedule V(b)'!$B$11:$Z$315,7,0),0)","v":"Select"},null,{"$f":"IFERROR(VLOOKUP(B222,'Schedule V(b)'!$B$11:$Z$315,9,0),0)","v":0},null,{"$f":"IFERROR(VLOOKUP(B222,'Schedule V(b)'!$B$11:$Z$315,11,0),0)","v":"Select"},null,{"$f":"IFERROR(VLOOKUP(B222,'Schedule V(b)'!$B$11:$Z$315,13,0),0)","v":0},null,{"$f":"IFERROR(VLOOKUP(B222,'Schedule V(b)'!$B$11:$Z$315,15,0),0)","v":"Select"},null,{"$f":"IFERROR(VLOOKUP(B222,'Schedule V(b)'!$B$11:$Z$315,17,0),0)","v":0},null,{"$f":"IFERROR(VLOOKUP(B222,'Schedule V(b)'!$B$11:$Z$315,25,0),0)","v":0},null,{"$f":"IFERROR(VLOOKUP(B222,'Schedule V(b)'!$B$11:$Z$315,23,0),0)","v":0},null,null,null,0]
[212,null,null,{"$f":"IFERROR(VLOOKUP(B223,'Schedule V(b)'!$B$11:$Z$315,3,0),0)","v":0},null,{"$f":"IFERROR(VLOOKUP(B223,'Schedule V(b)'!$B$11:$Z$315,7,0),0)","v":"Select"},null,{"$f":"IFERROR(VLOOKUP(B223,'Schedule V(b)'!$B$11:$Z$315,9,0),0)","v":0},null,{"$f":"IFERROR(VLOOKUP(B223,'Schedule V(b)'!$B$11:$Z$315,11,0),0)","v":"Select"},null,{"$f":"IFERROR(VLOOKUP(B223,'Schedule V(b)'!$B$11:$Z$315,13,0),0)","v":0},null,{"$f":"IFERROR(VLOOKUP(B223,'Schedule V(b)'!$B$11:$Z$315,15,0),0)","v":"Select"},null,{"$f":"IFERROR(VLOOKUP(B223,'Schedule V(b)'!$B$11:$Z$315,17,0),0)","v":0},null,{"$f":"IFERROR(VLOOKUP(B223,'Schedule V(b)'!$B$11:$Z$315,25,0),0)","v":0},null,{"$f":"IFERROR(VLOOKUP(B223,'Schedule V(b)'!$B$11:$Z$315,23,0),0)","v":0},null,null,null,0]
[213,null,null,{"$f":"IFERROR(VLOOKUP(B224,'Schedule V(b)'!$B$11:$Z$315,3,0),0)","v":0},null,{"$f":"IFERROR(VLOOKUP(B224,'Schedule V(b)'!$B$11:$Z$315,7,0),0)","v":"Select"},null,{"$f":"IFERROR(VLOOKUP(B224,'Schedule V(b)'!$B$11:$Z$315,9,0),0)","v":0},null,{"$f":"IFERROR(VLOOKUP(B224,'Schedule V(b)'!$B$11:$Z$315,11,0),0)","v":"Select"},null,{"$f":"IFERROR(VLOOKUP(B224,'Schedule V(b)'!$B$11:$Z$315,13,0),0)","v":0},null,{"$f":"IFERROR(VLOOKUP(B224,'Schedule V(b)'!$B$11:$Z$315,15,0),0)","v":"Select"},null,{"$f":"IFERROR(VLOOKUP(B224,'Schedule V(b)'!$B$11:$Z$315,17,0),0)","v":0},null,{"$f":"IFERROR(VLOOKUP(B224,'Schedule V(b)'!$B$11:$Z$315,25,0),0)","v":0},null,{"$f":"IFERROR(VLOOKUP(B224,'Schedule V(b)'!$B$11:$Z$315,23,0),0)","v":0},null,null,null,0]
[214,null,null,{"$f":"IFERROR(VLOOKUP(B225,'Schedule V(b)'!$B$11:$Z$315,3,0),0)","v":0},null,{"$f":"IFERROR(VLOOKUP(B225,'Schedule V(b)'!$B$11:$Z$315,7,0),0)","v":"Select"},null,{"$f":"IFERROR(VLOOKUP(B225,'Schedule V(b)'!$B$11:$Z$315,9,0),0)","v":0},null,{"$f":"IFERROR(VLOOKUP(B225,'Schedule V(b)'!$B$11:$Z$315,11,0),0)","v":"Select"},null,{"$f":"IFERROR(VLOOKUP(B225,'Schedule V(b)'!$B$11:$Z$315,13,0),0)","v":0},null,{"$f":"IFERROR(VLOOKUP(B225,'Schedule V(b)'!$B$11:$Z$315,15,0),0)","v":"Select"},null,{"$f":"IFERROR(VLOOKUP(B225,'Schedule V(b)'!$B$11:$Z$315,17,0),0)","v":0},null,{"$f":"IFERROR(VLOOKUP(B225,'Schedule V(b)'!$B$11:$Z$315,25,0),0)","v":0},null,{"$f":"IFERROR(VLOOKUP(B225,'Schedule V(b)'!$B$11:$Z$315,23,0),0)","v":0},null,null,null,0]
[215,null,null,{"$f":"IFERROR(VLOOKUP(B226,'Schedule V(b)'!$B$11:$Z$315,3,0),0)","v":0},null,{"$f":"IFERROR(VLOOKUP(B226,'Schedule V(b)'!$B$11:$Z$315,7,0),0)","v":"Select"},null,{"$f":"IFERROR(VLOOKUP(B226,'Schedule V(b)'!$B$11:$Z$315,9,0),0)","v":0},null,{"$f":"IFERROR(VLOOKUP(B226,'Schedule V(b)'!$B$11:$Z$315,11,0),0)","v":"Select"},null,{"$f":"IFERROR(VLOOKUP(B226,'Schedule V(b)'!$B$11:$Z$315,13,0),0)","v":0},null,{"$f":"IFERROR(VLOOKUP(B226,'Schedule V(b)'!$B$11:$Z$315,15,0),0)","v":"Select"},null,{"$f":"IFERROR(VLOOKUP(B226,'Schedule V(b)'!$B$11:$Z$315,17,0),0)","v":0},null,{"$f":"IFERROR(VLOOKUP(B226,'Schedule V(b)'!$B$11:$Z$315,25,0),0)","v":0},null,{"$f":"IFERROR(VLOOKUP(B226,'Schedule V(b)'!$B$11:$Z$315,23,0),0)","v":0},null,null,null,0]
[216,null,null,{"$f":"IFERROR(VLOOKUP(B227,'Schedule V(b)'!$B$11:$Z$315,3,0),0)","v":0},null,{"$f":"IFERROR(VLOOKUP(B227,'Schedule V(b)'!$B$11:$Z$315,7,0),0)","v":"Select"},null,{"$f":"IFERROR(VLOOKUP(B227,'Schedule V(b)'!$B$11:$Z$315,9,0),0)","v":0},null,{"$f":"IFERROR(VLOOKUP(B227,'Schedule V(b)'!$B$11:$Z$315,11,0),0)","v":"Select"},null,{"$f":"IFERROR(VLOOKUP(B227,'Schedule V(b)'!$B$11:$Z$315,13,0),0)","v":0},null,{"$f":"IFERROR(VLOOKUP(B227,'Schedule V(b)'!$B$11:$Z$315,15,0),0)","v":"Select"},null,{"$f":"IFERROR(VLOOKUP(B227,'Schedule V(b)'!$B$11:$Z$315,17,0),0)","v":0},null,{"$f":"IFERROR(VLOOKUP(B227,'Schedule V(b)'!$B$11:$Z$315,25,0),0)","v":0},null,{"$f":"IFERROR(VLOOKUP(B227,'Schedule V(b)'!$B$11:$Z$315,23,0),0)","v":0},null,null,null,0]
[217,null,null,{"$f":"IFERROR(VLOOKUP(B228,'Schedule V(b)'!$B$11:$Z$315,3,0),0)","v":0},null,{"$f":"IFERROR(VLOOKUP(B228,'Schedule V(b)'!$B$11:$Z$315,7,0),0)","v":"Select"},null,{"$f":"IFERROR(VLOOKUP(B228,'Schedule V(b)'!$B$11:$Z$315,9,0),0)","v":0},null,{"$f":"IFERROR(VLOOKUP(B228,'Schedule V(b)'!$B$11:$Z$315,11,0),0)","v":"Select"},null,{"$f":"IFERROR(VLOOKUP(B228,'Schedule V(b)'!$B$11:$Z$315,13,0),0)","v":0},null,{"$f":"IFERROR(VLOOKUP(B228,'Schedule V(b)'!$B$11:$Z$315,15,0),0)","v":"Select"},null,{"$f":"IFERROR(VLOOKUP(B228,'Schedule V(b)'!$B$11:$Z$315,17,0),0)","v":0},null,{"$f":"IFERROR(VLOOKUP(B228,'Schedule V(b)'!$B$11:$Z$315,25,0),0)","v":0},null,{"$f":"IFERROR(VLOOKUP(B228,'Schedule V(b)'!$B$11:$Z$315,23,0),0)","v":0},null,null,null,0]
[218,null,null,{"$f":"IFERROR(VLOOKUP(B229,'Schedule V(b)'!$B$11:$Z$315,3,0),0)","v":0},null,{"$f":"IFERROR(VLOOKUP(B229,'Schedule V(b)'!$B$11:$Z$315,7,0),0)","v":"Select"},null,{"$f":"IFERROR(VLOOKUP(B229,'Schedule V(b)'!$B$11:$Z$315,9,0),0)","v":0},null,{"$f":"IFERROR(VLOOKUP(B229,'Schedule V(b)'!$B$11:$Z$315,11,0),0)","v":"Select"},null,{"$f":"IFERROR(VLOOKUP(B229,'Schedule V(b)'!$B$11:$Z$315,13,0),0)","v":0},null,{"$f":"IFERROR(VLOOKUP(B229,'Schedule V(b)'!$B$11:$Z$315,15,0),0)","v":"Select"},null,{"$f":"IFERROR(VLOOKUP(B229,'Schedule V(b)'!$B$11:$Z$315,17,0),0)","v":0},null,{"$f":"IFERROR(VLOOKUP(B229,'Schedule V(b)'!$B$11:$Z$315,25,0),0)","v":0},null,{"$f":"IFERROR(VLOOKUP(B229,'Schedule V(b)'!$B$11:$Z$315,23,0),0)","v":0},null,null,null,0]
[219,null,null,{"$f":"IFERROR(VLOOKUP(B230,'Schedule V(b)'!$B$11:$Z$315,3,0),0)","v":0},null,{"$f":"IFERROR(VLOOKUP(B230,'Schedule V(b)'!$B$11:$Z$315,7,0),0)","v":"Select"},null,{"$f":"IFERROR(VLOOKUP(B230,'Schedule V(b)'!$B$11:$Z$315,9,0),0)","v":0},null,{"$f":"IFERROR(VLOOKUP(B230,'Schedule V(b)'!$B$11:$Z$315,11,0),0)","v":"Select"},null,{"$f":"IFERROR(VLOOKUP(B230,'Schedule V(b)'!$B$11:$Z$315,13,0),0)","v":0},null,{"$f":"IFERROR(VLOOKUP(B230,'Schedule V(b)'!$B$11:$Z$315,15,0),0)","v":"Select"},null,{"$f":"IFERROR(VLOOKUP(B230,'Schedule V(b)'!$B$11:$Z$315,17,0),0)","v":0},null,{"$f":"IFERROR(VLOOKUP(B230,'Schedule V(b)'!$B$11:$Z$315,25,0),0)","v":0},null,{"$f":"IFERROR(VLOOKUP(B230,'Schedule V(b)'!$B$11:$Z$315,23,0),0)","v":0},null,null,null,0]
[220,null,null,{"$f":"IFERROR(VLOOKUP(B231,'Schedule V(b)'!$B$11:$Z$315,3,0),0)","v":0},null,{"$f":"IFERROR(VLOOKUP(B231,'Schedule V(b)'!$B$11:$Z$315,7,0),0)","v":"Select"},null,{"$f":"IFERROR(VLOOKUP(B231,'Schedule V(b)'!$B$11:$Z$315,9,0),0)","v":0},null,{"$f":"IFERROR(VLOOKUP(B231,'Schedule V(b)'!$B$11:$Z$315,11,0),0)","v":"Select"},null,{"$f":"IFERROR(VLOOKUP(B231,'Schedule V(b)'!$B$11:$Z$315,13,0),0)","v":0},null,{"$f":"IFERROR(VLOOKUP(B231,'Schedule V(b)'!$B$11:$Z$315,15,0),0)","v":"Select"},null,{"$f":"IFERROR(VLOOKUP(B231,'Schedule V(b)'!$B$11:$Z$315,17,0),0)","v":0},null,{"$f":"IFERROR(VLOOKUP(B231,'Schedule V(b)'!$B$11:$Z$315,25,0),0)","v":0},null,{"$f":"IFERROR(VLOOKUP(B231,'Schedule V(b)'!$B$11:$Z$315,23,0),0)","v":0},null,null,null,0]
[221,null,null,{"$f":"IFERROR(VLOOKUP(B232,'Schedule V(b)'!$B$11:$Z$315,3,0),0)","v":0},null,{"$f":"IFERROR(VLOOKUP(B232,'Schedule V(b)'!$B$11:$Z$315,7,0),0)","v":"Select"},null,{"$f":"IFERROR(VLOOKUP(B232,'Schedule V(b)'!$B$11:$Z$315,9,0),0)","v":0},null,{"$f":"IFERROR(VLOOKUP(B232,'Schedule V(b)'!$B$11:$Z$315,11,0),0)","v":"Select"},null,{"$f":"IFERROR(VLOOKUP(B232,'Schedule V(b)'!$B$11:$Z$315,13,0),0)","v":0},null,{"$f":"IFERROR(VLOOKUP(B232,'Schedule V(b)'!$B$11:$Z$315,15,0),0)","v":"Select"},null,{"$f":"IFERROR(VLOOKUP(B232,'Schedule V(b)'!$B$11:$Z$315,17,0),0)","v":0},null,{"$f":"IFERROR(VLOOKUP(B232,'Schedule V(b)'!$B$11:$Z$315,25,0),0)","v":0},null,{"$f":"IFERROR(VLOOKUP(B232,'Schedule V(b)'!$B$11:$Z$315,23,0),0)","v":0},null,null,null,0]
[222,null,null,{"$f":"IFERROR(VLOOKUP(B233,'Schedule V(b)'!$B$11:$Z$315,3,0),0)","v":0},null,{"$f":"IFERROR(VLOOKUP(B233,'Schedule V(b)'!$B$11:$Z$315,7,0),0)","v":"Select"},null,{"$f":"IFERROR(VLOOKUP(B233,'Schedule V(b)'!$B$11:$Z$315,9,0),0)","v":0},null,{"$f":"IFERROR(VLOOKUP(B233,'Schedule V(b)'!$B$11:$Z$315,11,0),0)","v":"Select"},null,{"$f":"IFERROR(VLOOKUP(B233,'Schedule V(b)'!$B$11:$Z$315,13,0),0)","v":0},null,{"$f":"IFERROR(VLOOKUP(B233,'Schedule V(b)'!$B$11:$Z$315,15,0),0)","v":"Select"},null,{"$f":"IFERROR(VLOOKUP(B233,'Schedule V(b)'!$B$11:$Z$315,17,0),0)","v":0},null,{"$f":"IFERROR(VLOOKUP(B233,'Schedule V(b)'!$B$11:$Z$315,25,0),0)","v":0},null,{"$f":"IFERROR(VLOOKUP(B233,'Schedule V(b)'!$B$11:$Z$315,23,0),0)","v":0},null,null,null,0]
[223,null,null,{"$f":"IFERROR(VLOOKUP(B234,'Schedule V(b)'!$B$11:$Z$315,3,0),0)","v":0},null,{"$f":"IFERROR(VLOOKUP(B234,'Schedule V(b)'!$B$11:$Z$315,7,0),0)","v":"Select"},null,{"$f":"IFERROR(VLOOKUP(B234,'Schedule V(b)'!$B$11:$Z$315,9,0),0)","v":0},null,{"$f":"IFERROR(VLOOKUP(B234,'Schedule V(b)'!$B$11:$Z$315,11,0),0)","v":"Select"},null,{"$f":"IFERROR(VLOOKUP(B234,'Schedule V(b)'!$B$11:$Z$315,13,0),0)","v":0},null,{"$f":"IFERROR(VLOOKUP(B234,'Schedule V(b)'!$B$11:$Z$315,15,0),0)","v":"Select"},null,{"$f":"IFERROR(VLOOKUP(B234,'Schedule V(b)'!$B$11:$Z$315,17,0),0)","v":0},null,{"$f":"IFERROR(VLOOKUP(B234,'Schedule V(b)'!$B$11:$Z$315,25,0),0)","v":0},null,{"$f":"IFERROR(VLOOKUP(B234,'Schedule V(b)'!$B$11:$Z$315,23,0),0)","v":0},null,null,null,0]
[224,null,null,{"$f":"IFERROR(VLOOKUP(B235,'Schedule V(b)'!$B$11:$Z$315,3,0),0)","v":0},null,{"$f":"IFERROR(VLOOKUP(B235,'Schedule V(b)'!$B$11:$Z$315,7,0),0)","v":"Select"},null,{"$f":"IFERROR(VLOOKUP(B235,'Schedule V(b)'!$B$11:$Z$315,9,0),0)","v":0},null,{"$f":"IFERROR(VLOOKUP(B235,'Schedule V(b)'!$B$11:$Z$315,11,0),0)","v":"Select"},null,{"$f":"IFERROR(VLOOKUP(B235,'Schedule V(b)'!$B$11:$Z$315,13,0),0)","v":0},null,{"$f":"IFERROR(VLOOKUP(B235,'Schedule V(b)'!$B$11:$Z$315,15,0),0)","v":"Select"},null,{"$f":"IFERROR(VLOOKUP(B235,'Schedule V(b)'!$B$11:$Z$315,17,0),0)","v":0},null,{"$f":"IFERROR(VLOOKUP(B235,'Schedule V(b)'!$B$11:$Z$315,25,0),0)","v":0},null,{"$f":"IFERROR(VLOOKUP(B235,'Schedule V(b)'!$B$11:$Z$315,23,0),0)","v":0},null,null,null,0]
[225,null,null,{"$f":"IFERROR(VLOOKUP(B236,'Schedule V(b)'!$B$11:$Z$315,3,0),0)","v":0},null,{"$f":"IFERROR(VLOOKUP(B236,'Schedule V(b)'!$B$11:$Z$315,7,0),0)","v":"Select"},null,{"$f":"IFERROR(VLOOKUP(B236,'Schedule V(b)'!$B$11:$Z$315,9,0),0)","v":0},null,{"$f":"IFERROR(VLOOKUP(B236,'Schedule V(b)'!$B$11:$Z$315,11,0),0)","v":"Select"},null,{"$f":"IFERROR(VLOOKUP(B236,'Schedule V(b)'!$B$11:$Z$315,13,0),0)","v":0},null,{"$f":"IFERROR(VLOOKUP(B236,'Schedule V(b)'!$B$11:$Z$315,15,0),0)","v":"Select"},null,{"$f":"IFERROR(VLOOKUP(B236,'Schedule V(b)'!$B$11:$Z$315,17,0),0)","v":0},null,{"$f":"IFERROR(VLOOKUP(B236,'Schedule V(b)'!$B$11:$Z$315,25,0),0)","v":0},null,{"$f":"IFERROR(VLOOKUP(B236,'Schedule V(b)'!$B$11:$Z$315,23,0),0)","v":0},null,null,null,0]
[226,null,null,{"$f":"IFERROR(VLOOKUP(B237,'Schedule V(b)'!$B$11:$Z$315,3,0),0)","v":0},null,{"$f":"IFERROR(VLOOKUP(B237,'Schedule V(b)'!$B$11:$Z$315,7,0),0)","v":"Select"},null,{"$f":"IFERROR(VLOOKUP(B237,'Schedule V(b)'!$B$11:$Z$315,9,0),0)","v":0},null,{"$f":"IFERROR(VLOOKUP(B237,'Schedule V(b)'!$B$11:$Z$315,11,0),0)","v":"Select"},null,{"$f":"IFERROR(VLOOKUP(B237,'Schedule V(b)'!$B$11:$Z$315,13,0),0)","v":0},null,{"$f":"IFERROR(VLOOKUP(B237,'Schedule V(b)'!$B$11:$Z$315,15,0),0)","v":"Select"},null,{"$f":"IFERROR(VLOOKUP(B237,'Schedule V(b)'!$B$11:$Z$315,17,0),0)","v":0},null,{"$f":"IFERROR(VLOOKUP(B237,'Schedule V(b)'!$B$11:$Z$315,25,0),0)","v":0},null,{"$f":"IFERROR(VLOOKUP(B237,'Schedule V(b)'!$B$11:$Z$315,23,0),0)","v":0},null,null,null,0]
[227,null,null,{"$f":"IFERROR(VLOOKUP(B238,'Schedule V(b)'!$B$11:$Z$315,3,0),0)","v":0},null,{"$f":"IFERROR(VLOOKUP(B238,'Schedule V(b)'!$B$11:$Z$315,7,0),0)","v":"Select"},null,{"$f":"IFERROR(VLOOKUP(B238,'Schedule V(b)'!$B$11:$Z$315,9,0),0)","v":0},null,{"$f":"IFERROR(VLOOKUP(B238,'Schedule V(b)'!$B$11:$Z$315,11,0),0)","v":"Select"},null,{"$f":"IFERROR(VLOOKUP(B238,'Schedule V(b)'!$B$11:$Z$315,13,0),0)","v":0},null,{"$f":"IFERROR(VLOOKUP(B238,'Schedule V(b)'!$B$11:$Z$315,15,0),0)","v":"Select"},null,{"$f":"IFERROR(VLOOKUP(B238,'Schedule V(b)'!$B$11:$Z$315,17,0),0)","v":0},null,{"$f":"IFERROR(VLOOKUP(B238,'Schedule V(b)'!$B$11:$Z$315,25,0),0)","v":0},null,{"$f":"IFERROR(VLOOKUP(B238,'Schedule V(b)'!$B$11:$Z$315,23,0),0)","v":0},null,null,null,0]
[228,null,null,{"$f":"IFERROR(VLOOKUP(B239,'Schedule V(b)'!$B$11:$Z$315,3,0),0)","v":0},null,{"$f":"IFERROR(VLOOKUP(B239,'Schedule V(b)'!$B$11:$Z$315,7,0),0)","v":"Select"},null,{"$f":"IFERROR(VLOOKUP(B239,'Schedule V(b)'!$B$11:$Z$315,9,0),0)","v":0},null,{"$f":"IFERROR(VLOOKUP(B239,'Schedule V(b)'!$B$11:$Z$315,11,0),0)","v":"Select"},null,{"$f":"IFERROR(VLOOKUP(B239,'Schedule V(b)'!$B$11:$Z$315,13,0),0)","v":0},null,{"$f":"IFERROR(VLOOKUP(B239,'Schedule V(b)'!$B$11:$Z$315,15,0),0)","v":"Select"},null,{"$f":"IFERROR(VLOOKUP(B239,'Schedule V(b)'!$B$11:$Z$315,17,0),0)","v":0},null,{"$f":"IFERROR(VLOOKUP(B239,'Schedule V(b)'!$B$11:$Z$315,25,0),0)","v":0},null,{"$f":"IFERROR(VLOOKUP(B239,'Schedule V(b)'!$B$11:$Z$315,23,0),0)","v":0},null,null,null,0]
[229,null,null,{"$f":"IFERROR(VLOOKUP(B240,'Schedule V(b)'!$B$11:$Z$315,3,0),0)","v":0},null,{"$f":"IFERROR(VLOOKUP(B240,'Schedule V(b)'!$B$11:$Z$315,7,0),0)","v":"Select"},null,{"$f":"IFERROR(VLOOKUP(B240,'Schedule V(b)'!$B$11:$Z$315,9,0),0)","v":0},null,{"$f":"IFERROR(VLOOKUP(B240,'Schedule V(b)'!$B$11:$Z$315,11,0),0)","v":"Select"},null,{"$f":"IFERROR(VLOOKUP(B240,'Schedule V(b)'!$B$11:$Z$315,13,0),0)","v":0},null,{"$f":"IFERROR(VLOOKUP(B240,'Schedule V(b)'!$B$11:$Z$315,15,0),0)","v":"Select"},null,{"$f":"IFERROR(VLOOKUP(B240,'Schedule V(b)'!$B$11:$Z$315,17,0),0)","v":0},null,{"$f":"IFERROR(VLOOKUP(B240,'Schedule V(b)'!$B$11:$Z$315,25,0),0)","v":0},null,{"$f":"IFERROR(VLOOKUP(B240,'Schedule V(b)'!$B$11:$Z$315,23,0),0)","v":0},null,null,null,0]
[230,null,null,{"$f":"IFERROR(VLOOKUP(B241,'Schedule V(b)'!$B$11:$Z$315,3,0),0)","v":0},null,{"$f":"IFERROR(VLOOKUP(B241,'Schedule V(b)'!$B$11:$Z$315,7,0),0)","v":"Select"},null,{"$f":"IFERROR(VLOOKUP(B241,'Schedule V(b)'!$B$11:$Z$315,9,0),0)","v":0},null,{"$f":"IFERROR(VLOOKUP(B241,'Schedule V(b)'!$B$11:$Z$315,11,0),0)","v":"Select"},null,{"$f":"IFERROR(VLOOKUP(B241,'Schedule V(b)'!$B$11:$Z$315,13,0),0)","v":0},null,{"$f":"IFERROR(VLOOKUP(B241,'Schedule V(b)'!$B$11:$Z$315,15,0),0)","v":"Select"},null,{"$f":"IFERROR(VLOOKUP(B241,'Schedule V(b)'!$B$11:$Z$315,17,0),0)","v":0},null,{"$f":"IFERROR(VLOOKUP(B241,'Schedule V(b)'!$B$11:$Z$315,25,0),0)","v":0},null,{"$f":"IFERROR(VLOOKUP(B241,'Schedule V(b)'!$B$11:$Z$315,23,0),0)","v":0},null,null,null,0]
[231,null,null,{"$f":"IFERROR(VLOOKUP(B242,'Schedule V(b)'!$B$11:$Z$315,3,0),0)","v":0},null,{"$f":"IFERROR(VLOOKUP(B242,'Schedule V(b)'!$B$11:$Z$315,7,0),0)","v":"Select"},null,{"$f":"IFERROR(VLOOKUP(B242,'Schedule V(b)'!$B$11:$Z$315,9,0),0)","v":0},null,{"$f":"IFERROR(VLOOKUP(B242,'Schedule V(b)'!$B$11:$Z$315,11,0),0)","v":"Select"},null,{"$f":"IFERROR(VLOOKUP(B242,'Schedule V(b)'!$B$11:$Z$315,13,0),0)","v":0},null,{"$f":"IFERROR(VLOOKUP(B242,'Schedule V(b)'!$B$11:$Z$315,15,0),0)","v":"Select"},null,{"$f":"IFERROR(VLOOKUP(B242,'Schedule V(b)'!$B$11:$Z$315,17,0),0)","v":0},null,{"$f":"IFERROR(VLOOKUP(B242,'Schedule V(b)'!$B$11:$Z$315,25,0),0)","v":0},null,{"$f":"IFERROR(VLOOKUP(B242,'Schedule V(b)'!$B$11:$Z$315,23,0),0)","v":0},null,null,null,0]
[232,null,null,{"$f":"IFERROR(VLOOKUP(B243,'Schedule V(b)'!$B$11:$Z$315,3,0),0)","v":0},null,{"$f":"IFERROR(VLOOKUP(B243,'Schedule V(b)'!$B$11:$Z$315,7,0),0)","v":"Select"},null,{"$f":"IFERROR(VLOOKUP(B243,'Schedule V(b)'!$B$11:$Z$315,9,0),0)","v":0},null,{"$f":"IFERROR(VLOOKUP(B243,'Schedule V(b)'!$B$11:$Z$315,11,0),0)","v":"Select"},null,{"$f":"IFERROR(VLOOKUP(B243,'Schedule V(b)'!$B$11:$Z$315,13,0),0)","v":0},null,{"$f":"IFERROR(VLOOKUP(B243,'Schedule V(b)'!$B$11:$Z$315,15,0),0)","v":"Select"},null,{"$f":"IFERROR(VLOOKUP(B243,'Schedule V(b)'!$B$11:$Z$315,17,0),0)","v":0},null,{"$f":"IFERROR(VLOOKUP(B243,'Schedule V(b)'!$B$11:$Z$315,25,0),0)","v":0},null,{"$f":"IFERROR(VLOOKUP(B243,'Schedule V(b)'!$B$11:$Z$315,23,0),0)","v":0},null,null,null,0]
[233,null,null,{"$f":"IFERROR(VLOOKUP(B244,'Schedule V(b)'!$B$11:$Z$315,3,0),0)","v":0},null,{"$f":"IFERROR(VLOOKUP(B244,'Schedule V(b)'!$B$11:$Z$315,7,0),0)","v":"Select"},null,{"$f":"IFERROR(VLOOKUP(B244,'Schedule V(b)'!$B$11:$Z$315,9,0),0)","v":0},null,{"$f":"IFERROR(VLOOKUP(B244,'Schedule V(b)'!$B$11:$Z$315,11,0),0)","v":"Select"},null,{"$f":"IFERROR(VLOOKUP(B244,'Schedule V(b)'!$B$11:$Z$315,13,0),0)","v":0},null,{"$f":"IFERROR(VLOOKUP(B244,'Schedule V(b)'!$B$11:$Z$315,15,0),0)","v":"Select"},null,{"$f":"IFERROR(VLOOKUP(B244,'Schedule V(b)'!$B$11:$Z$315,17,0),0)","v":0},null,{"$f":"IFERROR(VLOOKUP(B244,'Schedule V(b)'!$B$11:$Z$315,25,0),0)","v":0},null,{"$f":"IFERROR(VLOOKUP(B244,'Schedule V(b)'!$B$11:$Z$315,23,0),0)","v":0},null,null,null,0]
[234,null,null,{"$f":"IFERROR(VLOOKUP(B245,'Schedule V(b)'!$B$11:$Z$315,3,0),0)","v":0},null,{"$f":"IFERROR(VLOOKUP(B245,'Schedule V(b)'!$B$11:$Z$315,7,0),0)","v":"Select"},null,{"$f":"IFERROR(VLOOKUP(B245,'Schedule V(b)'!$B$11:$Z$315,9,0),0)","v":0},null,{"$f":"IFERROR(VLOOKUP(B245,'Schedule V(b)'!$B$11:$Z$315,11,0),0)","v":"Select"},null,{"$f":"IFERROR(VLOOKUP(B245,'Schedule V(b)'!$B$11:$Z$315,13,0),0)","v":0},null,{"$f":"IFERROR(VLOOKUP(B245,'Schedule V(b)'!$B$11:$Z$315,15,0),0)","v":"Select"},null,{"$f":"IFERROR(VLOOKUP(B245,'Schedule V(b)'!$B$11:$Z$315,17,0),0)","v":0},null,{"$f":"IFERROR(VLOOKUP(B245,'Schedule V(b)'!$B$11:$Z$315,25,0),0)","v":0},null,{"$f":"IFERROR(VLOOKUP(B245,'Schedule V(b)'!$B$11:$Z$315,23,0),0)","v":0},null,null,null,0]
[235,null,null,{"$f":"IFERROR(VLOOKUP(B246,'Schedule V(b)'!$B$11:$Z$315,3,0),0)","v":0},null,{"$f":"IFERROR(VLOOKUP(B246,'Schedule V(b)'!$B$11:$Z$315,7,0),0)","v":"Select"},null,{"$f":"IFERROR(VLOOKUP(B246,'Schedule V(b)'!$B$11:$Z$315,9,0),0)","v":0},null,{"$f":"IFERROR(VLOOKUP(B246,'Schedule V(b)'!$B$11:$Z$315,11,0),0)","v":"Select"},null,{"$f":"IFERROR(VLOOKUP(B246,'Schedule V(b)'!$B$11:$Z$315,13,0),0)","v":0},null,{"$f":"IFERROR(VLOOKUP(B246,'Schedule V(b)'!$B$11:$Z$315,15,0),0)","v":"Select"},null,{"$f":"IFERROR(VLOOKUP(B246,'Schedule V(b)'!$B$11:$Z$315,17,0),0)","v":0},null,{"$f":"IFERROR(VLOOKUP(B246,'Schedule V(b)'!$B$11:$Z$315,25,0),0)","v":0},null,{"$f":"IFERROR(VLOOKUP(B246,'Schedule V(b)'!$B$11:$Z$315,23,0),0)","v":0},null,null,null,0]
[236,null,null,{"$f":"IFERROR(VLOOKUP(B247,'Schedule V(b)'!$B$11:$Z$315,3,0),0)","v":0},null,{"$f":"IFERROR(VLOOKUP(B247,'Schedule V(b)'!$B$11:$Z$315,7,0),0)","v":"Select"},null,{"$f":"IFERROR(VLOOKUP(B247,'Schedule V(b)'!$B$11:$Z$315,9,0),0)","v":0},null,{"$f":"IFERROR(VLOOKUP(B247,'Schedule V(b)'!$B$11:$Z$315,11,0),0)","v":"Select"},null,{"$f":"IFERROR(VLOOKUP(B247,'Schedule V(b)'!$B$11:$Z$315,13,0),0)","v":0},null,{"$f":"IFERROR(VLOOKUP(B247,'Schedule V(b)'!$B$11:$Z$315,15,0),0)","v":"Select"},null,{"$f":"IFERROR(VLOOKUP(B247,'Schedule V(b)'!$B$11:$Z$315,17,0),0)","v":0},null,{"$f":"IFERROR(VLOOKUP(B247,'Schedule V(b)'!$B$11:$Z$315,25,0),0)","v":0},null,{"$f":"IFERROR(VLOOKUP(B247,'Schedule V(b)'!$B$11:$Z$315,23,0),0)","v":0},null,null,null,0]
[237,null,null,{"$f":"IFERROR(VLOOKUP(B248,'Schedule V(b)'!$B$11:$Z$315,3,0),0)","v":0},null,{"$f":"IFERROR(VLOOKUP(B248,'Schedule V(b)'!$B$11:$Z$315,7,0),0)","v":"Select"},null,{"$f":"IFERROR(VLOOKUP(B248,'Schedule V(b)'!$B$11:$Z$315,9,0),0)","v":0},null,{"$f":"IFERROR(VLOOKUP(B248,'Schedule V(b)'!$B$11:$Z$315,11,0),0)","v":"Select"},null,{"$f":"IFERROR(VLOOKUP(B248,'Schedule V(b)'!$B$11:$Z$315,13,0),0)","v":0},null,{"$f":"IFERROR(VLOOKUP(B248,'Schedule V(b)'!$B$11:$Z$315,15,0),0)","v":"Select"},null,{"$f":"IFERROR(VLOOKUP(B248,'Schedule V(b)'!$B$11:$Z$315,17,0),0)","v":0},null,{"$f":"IFERROR(VLOOKUP(B248,'Schedule V(b)'!$B$11:$Z$315,25,0),0)","v":0},null,{"$f":"IFERROR(VLOOKUP(B248,'Schedule V(b)'!$B$11:$Z$315,23,0),0)","v":0},null,null,null,0]
[238,null,null,{"$f":"IFERROR(VLOOKUP(B249,'Schedule V(b)'!$B$11:$Z$315,3,0),0)","v":0},null,{"$f":"IFERROR(VLOOKUP(B249,'Schedule V(b)'!$B$11:$Z$315,7,0),0)","v":"Select"},null,{"$f":"IFERROR(VLOOKUP(B249,'Schedule V(b)'!$B$11:$Z$315,9,0),0)","v":0},null,{"$f":"IFERROR(VLOOKUP(B249,'Schedule V(b)'!$B$11:$Z$315,11,0),0)","v":"Select"},null,{"$f":"IFERROR(VLOOKUP(B249,'Schedule V(b)'!$B$11:$Z$315,13,0),0)","v":0},null,{"$f":"IFERROR(VLOOKUP(B249,'Schedule V(b)'!$B$11:$Z$315,15,0),0)","v":"Select"},null,{"$f":"IFERROR(VLOOKUP(B249,'Schedule V(b)'!$B$11:$Z$315,17,0),0)","v":0},null,{"$f":"IFERROR(VLOOKUP(B249,'Schedule V(b)'!$B$11:$Z$315,25,0),0)","v":0},null,{"$f":"IFERROR(VLOOKUP(B249,'Schedule V(b)'!$B$11:$Z$315,23,0),0)","v":0},null,null,null,0]
[239,null,null,{"$f":"IFERROR(VLOOKUP(B250,'Schedule V(b)'!$B$11:$Z$315,3,0),0)","v":0},null,{"$f":"IFERROR(VLOOKUP(B250,'Schedule V(b)'!$B$11:$Z$315,7,0),0)","v":"Select"},null,{"$f":"IFERROR(VLOOKUP(B250,'Schedule V(b)'!$B$11:$Z$315,9,0),0)","v":0},null,{"$f":"IFERROR(VLOOKUP(B250,'Schedule V(b)'!$B$11:$Z$315,11,0),0)","v":"Select"},null,{"$f":"IFERROR(VLOOKUP(B250,'Schedule V(b)'!$B$11:$Z$315,13,0),0)","v":0},null,{"$f":"IFERROR(VLOOKUP(B250,'Schedule V(b)'!$B$11:$Z$315,15,0),0)","v":"Select"},null,{"$f":"IFERROR(VLOOKUP(B250,'Schedule V(b)'!$B$11:$Z$315,17,0),0)","v":0},null,{"$f":"IFERROR(VLOOKUP(B250,'Schedule V(b)'!$B$11:$Z$315,25,0),0)","v":0},null,{"$f":"IFERROR(VLOOKUP(B250,'Schedule V(b)'!$B$11:$Z$315,23,0),0)","v":0},null,null,null,0]
[240,null,null,{"$f":"IFERROR(VLOOKUP(B251,'Schedule V(b)'!$B$11:$Z$315,3,0),0)","v":0},null,{"$f":"IFERROR(VLOOKUP(B251,'Schedule V(b)'!$B$11:$Z$315,7,0),0)","v":"Select"},null,{"$f":"IFERROR(VLOOKUP(B251,'Schedule V(b)'!$B$11:$Z$315,9,0),0)","v":0},null,{"$f":"IFERROR(VLOOKUP(B251,'Schedule V(b)'!$B$11:$Z$315,11,0),0)","v":"Select"},null,{"$f":"IFERROR(VLOOKUP(B251,'Schedule V(b)'!$B$11:$Z$315,13,0),0)","v":0},null,{"$f":"IFERROR(VLOOKUP(B251,'Schedule V(b)'!$B$11:$Z$315,15,0),0)","v":"Select"},null,{"$f":"IFERROR(VLOOKUP(B251,'Schedule V(b)'!$B$11:$Z$315,17,0),0)","v":0},null,{"$f":"IFERROR(VLOOKUP(B251,'Schedule V(b)'!$B$11:$Z$315,25,0),0)","v":0},null,{"$f":"IFERROR(VLOOKUP(B251,'Schedule V(b)'!$B$11:$Z$315,23,0),0)","v":0},null,null,null,0]
[241,null,null,{"$f":"IFERROR(VLOOKUP(B252,'Schedule V(b)'!$B$11:$Z$315,3,0),0)","v":0},null,{"$f":"IFERROR(VLOOKUP(B252,'Schedule V(b)'!$B$11:$Z$315,7,0),0)","v":"Select"},null,{"$f":"IFERROR(VLOOKUP(B252,'Schedule V(b)'!$B$11:$Z$315,9,0),0)","v":0},null,{"$f":"IFERROR(VLOOKUP(B252,'Schedule V(b)'!$B$11:$Z$315,11,0),0)","v":"Select"},null,{"$f":"IFERROR(VLOOKUP(B252,'Schedule V(b)'!$B$11:$Z$315,13,0),0)","v":0},null,{"$f":"IFERROR(VLOOKUP(B252,'Schedule V(b)'!$B$11:$Z$315,15,0),0)","v":"Select"},null,{"$f":"IFERROR(VLOOKUP(B252,'Schedule V(b)'!$B$11:$Z$315,17,0),0)","v":0},null,{"$f":"IFERROR(VLOOKUP(B252,'Schedule V(b)'!$B$11:$Z$315,25,0),0)","v":0},null,{"$f":"IFERROR(VLOOKUP(B252,'Schedule V(b)'!$B$11:$Z$315,23,0),0)","v":0},null,null,null,0]
[242,null,null,{"$f":"IFERROR(VLOOKUP(B253,'Schedule V(b)'!$B$11:$Z$315,3,0),0)","v":0},null,{"$f":"IFERROR(VLOOKUP(B253,'Schedule V(b)'!$B$11:$Z$315,7,0),0)","v":"Select"},null,{"$f":"IFERROR(VLOOKUP(B253,'Schedule V(b)'!$B$11:$Z$315,9,0),0)","v":0},null,{"$f":"IFERROR(VLOOKUP(B253,'Schedule V(b)'!$B$11:$Z$315,11,0),0)","v":"Select"},null,{"$f":"IFERROR(VLOOKUP(B253,'Schedule V(b)'!$B$11:$Z$315,13,0),0)","v":0},null,{"$f":"IFERROR(VLOOKUP(B253,'Schedule V(b)'!$B$11:$Z$315,15,0),0)","v":"Select"},null,{"$f":"IFERROR(VLOOKUP(B253,'Schedule V(b)'!$B$11:$Z$315,17,0),0)","v":0},null,{"$f":"IFERROR(VLOOKUP(B253,'Schedule V(b)'!$B$11:$Z$315,25,0),0)","v":0},null,{"$f":"IFERROR(VLOOKUP(B253,'Schedule V(b)'!$B$11:$Z$315,23,0),0)","v":0},null,null,null,0]
[243,null,null,{"$f":"IFERROR(VLOOKUP(B254,'Schedule V(b)'!$B$11:$Z$315,3,0),0)","v":0},null,{"$f":"IFERROR(VLOOKUP(B254,'Schedule V(b)'!$B$11:$Z$315,7,0),0)","v":"Select"},null,{"$f":"IFERROR(VLOOKUP(B254,'Schedule V(b)'!$B$11:$Z$315,9,0),0)","v":0},null,{"$f":"IFERROR(VLOOKUP(B254,'Schedule V(b)'!$B$11:$Z$315,11,0),0)","v":"Select"},null,{"$f":"IFERROR(VLOOKUP(B254,'Schedule V(b)'!$B$11:$Z$315,13,0),0)","v":0},null,{"$f":"IFERROR(VLOOKUP(B254,'Schedule V(b)'!$B$11:$Z$315,15,0),0)","v":"Select"},null,{"$f":"IFERROR(VLOOKUP(B254,'Schedule V(b)'!$B$11:$Z$315,17,0),0)","v":0},null,{"$f":"IFERROR(VLOOKUP(B254,'Schedule V(b)'!$B$11:$Z$315,25,0),0)","v":0},null,{"$f":"IFERROR(VLOOKUP(B254,'Schedule V(b)'!$B$11:$Z$315,23,0),0)","v":0},null,null,null,0]
[244,null,null,{"$f":"IFERROR(VLOOKUP(B255,'Schedule V(b)'!$B$11:$Z$315,3,0),0)","v":0},null,{"$f":"IFERROR(VLOOKUP(B255,'Schedule V(b)'!$B$11:$Z$315,7,0),0)","v":"Select"},null,{"$f":"IFERROR(VLOOKUP(B255,'Schedule V(b)'!$B$11:$Z$315,9,0),0)","v":0},null,{"$f":"IFERROR(VLOOKUP(B255,'Schedule V(b)'!$B$11:$Z$315,11,0),0)","v":"Select"},null,{"$f":"IFERROR(VLOOKUP(B255,'Schedule V(b)'!$B$11:$Z$315,13,0),0)","v":0},null,{"$f":"IFERROR(VLOOKUP(B255,'Schedule V(b)'!$B$11:$Z$315,15,0),0)","v":"Select"},null,{"$f":"IFERROR(VLOOKUP(B255,'Schedule V(b)'!$B$11:$Z$315,17,0),0)","v":0},null,{"$f":"IFERROR(VLOOKUP(B255,'Schedule V(b)'!$B$11:$Z$315,25,0),0)","v":0},null,{"$f":"IFERROR(VLOOKUP(B255,'Schedule V(b)'!$B$11:$Z$315,23,0),0)","v":0},null,null,null,0]
[245,null,null,{"$f":"IFERROR(VLOOKUP(B256,'Schedule V(b)'!$B$11:$Z$315,3,0),0)","v":0},null,{"$f":"IFERROR(VLOOKUP(B256,'Schedule V(b)'!$B$11:$Z$315,7,0),0)","v":"Select"},null,{"$f":"IFERROR(VLOOKUP(B256,'Schedule V(b)'!$B$11:$Z$315,9,0),0)","v":0},null,{"$f":"IFERROR(VLOOKUP(B256,'Schedule V(b)'!$B$11:$Z$315,11,0),0)","v":"Select"},null,{"$f":"IFERROR(VLOOKUP(B256,'Schedule V(b)'!$B$11:$Z$315,13,0),0)","v":0},null,{"$f":"IFERROR(VLOOKUP(B256,'Schedule V(b)'!$B$11:$Z$315,15,0),0)","v":"Select"},null,{"$f":"IFERROR(VLOOKUP(B256,'Schedule V(b)'!$B$11:$Z$315,17,0),0)","v":0},null,{"$f":"IFERROR(VLOOKUP(B256,'Schedule V(b)'!$B$11:$Z$315,25,0),0)","v":0},null,{"$f":"IFERROR(VLOOKUP(B256,'Schedule V(b)'!$B$11:$Z$315,23,0),0)","v":0},null,null,null,0]
[246,null,null,{"$f":"IFERROR(VLOOKUP(B257,'Schedule V(b)'!$B$11:$Z$315,3,0),0)","v":0},null,{"$f":"IFERROR(VLOOKUP(B257,'Schedule V(b)'!$B$11:$Z$315,7,0),0)","v":"Select"},null,{"$f":"IFERROR(VLOOKUP(B257,'Schedule V(b)'!$B$11:$Z$315,9,0),0)","v":0},null,{"$f":"IFERROR(VLOOKUP(B257,'Schedule V(b)'!$B$11:$Z$315,11,0),0)","v":"Select"},null,{"$f":"IFERROR(VLOOKUP(B257,'Schedule V(b)'!$B$11:$Z$315,13,0),0)","v":0},null,{"$f":"IFERROR(VLOOKUP(B257,'Schedule V(b)'!$B$11:$Z$315,15,0),0)","v":"Select"},null,{"$f":"IFERROR(VLOOKUP(B257,'Schedule V(b)'!$B$11:$Z$315,17,0),0)","v":0},null,{"$f":"IFERROR(VLOOKUP(B257,'Schedule V(b)'!$B$11:$Z$315,25,0),0)","v":0},null,{"$f":"IFERROR(VLOOKUP(B257,'Schedule V(b)'!$B$11:$Z$315,23,0),0)","v":0},null,null,null,0]
[247,null,null,{"$f":"IFERROR(VLOOKUP(B258,'Schedule V(b)'!$B$11:$Z$315,3,0),0)","v":0},null,{"$f":"IFERROR(VLOOKUP(B258,'Schedule V(b)'!$B$11:$Z$315,7,0),0)","v":"Select"},null,{"$f":"IFERROR(VLOOKUP(B258,'Schedule V(b)'!$B$11:$Z$315,9,0),0)","v":0},null,{"$f":"IFERROR(VLOOKUP(B258,'Schedule V(b)'!$B$11:$Z$315,11,0),0)","v":"Select"},null,{"$f":"IFERROR(VLOOKUP(B258,'Schedule V(b)'!$B$11:$Z$315,13,0),0)","v":0},null,{"$f":"IFERROR(VLOOKUP(B258,'Schedule V(b)'!$B$11:$Z$315,15,0),0)","v":"Select"},null,{"$f":"IFERROR(VLOOKUP(B258,'Schedule V(b)'!$B$11:$Z$315,17,0),0)","v":0},null,{"$f":"IFERROR(VLOOKUP(B258,'Schedule V(b)'!$B$11:$Z$315,25,0),0)","v":0},null,{"$f":"IFERROR(VLOOKUP(B258,'Schedule V(b)'!$B$11:$Z$315,23,0),0)","v":0},null,null,null,0]
[248,null,null,{"$f":"IFERROR(VLOOKUP(B259,'Schedule V(b)'!$B$11:$Z$315,3,0),0)","v":0},null,{"$f":"IFERROR(VLOOKUP(B259,'Schedule V(b)'!$B$11:$Z$315,7,0),0)","v":"Select"},null,{"$f":"IFERROR(VLOOKUP(B259,'Schedule V(b)'!$B$11:$Z$315,9,0),0)","v":0},null,{"$f":"IFERROR(VLOOKUP(B259,'Schedule V(b)'!$B$11:$Z$315,11,0),0)","v":"Select"},null,{"$f":"IFERROR(VLOOKUP(B259,'Schedule V(b)'!$B$11:$Z$315,13,0),0)","v":0},null,{"$f":"IFERROR(VLOOKUP(B259,'Schedule V(b)'!$B$11:$Z$315,15,0),0)","v":"Select"},null,{"$f":"IFERROR(VLOOKUP(B259,'Schedule V(b)'!$B$11:$Z$315,17,0),0)","v":0},null,{"$f":"IFERROR(VLOOKUP(B259,'Schedule V(b)'!$B$11:$Z$315,25,0),0)","v":0},null,{"$f":"IFERROR(VLOOKUP(B259,'Schedule V(b)'!$B$11:$Z$315,23,0),0)","v":0},null,null,null,0]
[249,null,null,{"$f":"IFERROR(VLOOKUP(B260,'Schedule V(b)'!$B$11:$Z$315,3,0),0)","v":0},null,{"$f":"IFERROR(VLOOKUP(B260,'Schedule V(b)'!$B$11:$Z$315,7,0),0)","v":"Select"},null,{"$f":"IFERROR(VLOOKUP(B260,'Schedule V(b)'!$B$11:$Z$315,9,0),0)","v":0},null,{"$f":"IFERROR(VLOOKUP(B260,'Schedule V(b)'!$B$11:$Z$315,11,0),0)","v":"Select"},null,{"$f":"IFERROR(VLOOKUP(B260,'Schedule V(b)'!$B$11:$Z$315,13,0),0)","v":0},null,{"$f":"IFERROR(VLOOKUP(B260,'Schedule V(b)'!$B$11:$Z$315,15,0),0)","v":"Select"},null,{"$f":"IFERROR(VLOOKUP(B260,'Schedule V(b)'!$B$11:$Z$315,17,0),0)","v":0},null,{"$f":"IFERROR(VLOOKUP(B260,'Schedule V(b)'!$B$11:$Z$315,25,0),0)","v":0},null,{"$f":"IFERROR(VLOOKUP(B260,'Schedule V(b)'!$B$11:$Z$315,23,0),0)","v":0},null,null,null,0]
[250,null,null,{"$f":"IFERROR(VLOOKUP(B261,'Schedule V(b)'!$B$11:$Z$315,3,0),0)","v":0},null,{"$f":"IFERROR(VLOOKUP(B261,'Schedule V(b)'!$B$11:$Z$315,7,0),0)","v":"Select"},null,{"$f":"IFERROR(VLOOKUP(B261,'Schedule V(b)'!$B$11:$Z$315,9,0),0)","v":0},null,{"$f":"IFERROR(VLOOKUP(B261,'Schedule V(b)'!$B$11:$Z$315,11,0),0)","v":"Select"},null,{"$f":"IFERROR(VLOOKUP(B261,'Schedule V(b)'!$B$11:$Z$315,13,0),0)","v":0},null,{"$f":"IFERROR(VLOOKUP(B261,'Schedule V(b)'!$B$11:$Z$315,15,0),0)","v":"Select"},null,{"$f":"IFERROR(VLOOKUP(B261,'Schedule V(b)'!$B$11:$Z$315,17,0),0)","v":0},null,{"$f":"IFERROR(VLOOKUP(B261,'Schedule V(b)'!$B$11:$Z$315,25,0),0)","v":0},null,{"$f":"IFERROR(VLOOKUP(B261,'Schedule V(b)'!$B$11:$Z$315,23,0),0)","v":0},null,null,null,0]
[251,null,null,{"$f":"IFERROR(VLOOKUP(B262,'Schedule V(b)'!$B$11:$Z$315,3,0),0)","v":0},null,{"$f":"IFERROR(VLOOKUP(B262,'Schedule V(b)'!$B$11:$Z$315,7,0),0)","v":"Select"},null,{"$f":"IFERROR(VLOOKUP(B262,'Schedule V(b)'!$B$11:$Z$315,9,0),0)","v":0},null,{"$f":"IFERROR(VLOOKUP(B262,'Schedule V(b)'!$B$11:$Z$315,11,0),0)","v":"Select"},null,{"$f":"IFERROR(VLOOKUP(B262,'Schedule V(b)'!$B$11:$Z$315,13,0),0)","v":0},null,{"$f":"IFERROR(VLOOKUP(B262,'Schedule V(b)'!$B$11:$Z$315,15,0),0)","v":"Select"},null,{"$f":"IFERROR(VLOOKUP(B262,'Schedule V(b)'!$B$11:$Z$315,17,0),0)","v":0},null,{"$f":"IFERROR(VLOOKUP(B262,'Schedule V(b)'!$B$11:$Z$315,25,0),0)","v":0},null,{"$f":"IFERROR(VLOOKUP(B262,'Schedule V(b)'!$B$11:$Z$315,23,0),0)","v":0},null,null,null,0]
[252,null,null,{"$f":"IFERROR(VLOOKUP(B263,'Schedule V(b)'!$B$11:$Z$315,3,0),0)","v":0},null,{"$f":"IFERROR(VLOOKUP(B263,'Schedule V(b)'!$B$11:$Z$315,7,0),0)","v":"Select"},null,{"$f":"IFERROR(VLOOKUP(B263,'Schedule V(b)'!$B$11:$Z$315,9,0),0)","v":0},null,{"$f":"IFERROR(VLOOKUP(B263,'Schedule V(b)'!$B$11:$Z$315,11,0),0)","v":"Select"},null,{"$f":"IFERROR(VLOOKUP(B263,'Schedule V(b)'!$B$11:$Z$315,13,0),0)","v":0},null,{"$f":"IFERROR(VLOOKUP(B263,'Schedule V(b)'!$B$11:$Z$315,15,0),0)","v":"Select"},null,{"$f":"IFERROR(VLOOKUP(B263,'Schedule V(b)'!$B$11:$Z$315,17,0),0)","v":0},null,{"$f":"IFERROR(VLOOKUP(B263,'Schedule V(b)'!$B$11:$Z$315,25,0),0)","v":0},null,{"$f":"IFERROR(VLOOKUP(B263,'Schedule V(b)'!$B$11:$Z$315,23,0),0)","v":0},null,null,null,0]
[253,null,null,{"$f":"IFERROR(VLOOKUP(B264,'Schedule V(b)'!$B$11:$Z$315,3,0),0)","v":0},null,{"$f":"IFERROR(VLOOKUP(B264,'Schedule V(b)'!$B$11:$Z$315,7,0),0)","v":"Select"},null,{"$f":"IFERROR(VLOOKUP(B264,'Schedule V(b)'!$B$11:$Z$315,9,0),0)","v":0},null,{"$f":"IFERROR(VLOOKUP(B264,'Schedule V(b)'!$B$11:$Z$315,11,0),0)","v":"Select"},null,{"$f":"IFERROR(VLOOKUP(B264,'Schedule V(b)'!$B$11:$Z$315,13,0),0)","v":0},null,{"$f":"IFERROR(VLOOKUP(B264,'Schedule V(b)'!$B$11:$Z$315,15,0),0)","v":"Select"},null,{"$f":"IFERROR(VLOOKUP(B264,'Schedule V(b)'!$B$11:$Z$315,17,0),0)","v":0},null,{"$f":"IFERROR(VLOOKUP(B264,'Schedule V(b)'!$B$11:$Z$315,25,0),0)","v":0},null,{"$f":"IFERROR(VLOOKUP(B264,'Schedule V(b)'!$B$11:$Z$315,23,0),0)","v":0},null,null,null,0]
[254,null,null,{"$f":"IFERROR(VLOOKUP(B265,'Schedule V(b)'!$B$11:$Z$315,3,0),0)","v":0},null,{"$f":"IFERROR(VLOOKUP(B265,'Schedule V(b)'!$B$11:$Z$315,7,0),0)","v":"Select"},null,{"$f":"IFERROR(VLOOKUP(B265,'Schedule V(b)'!$B$11:$Z$315,9,0),0)","v":0},null,{"$f":"IFERROR(VLOOKUP(B265,'Schedule V(b)'!$B$11:$Z$315,11,0),0)","v":"Select"},null,{"$f":"IFERROR(VLOOKUP(B265,'Schedule V(b)'!$B$11:$Z$315,13,0),0)","v":0},null,{"$f":"IFERROR(VLOOKUP(B265,'Schedule V(b)'!$B$11:$Z$315,15,0),0)","v":"Select"},null,{"$f":"IFERROR(VLOOKUP(B265,'Schedule V(b)'!$B$11:$Z$315,17,0),0)","v":0},null,{"$f":"IFERROR(VLOOKUP(B265,'Schedule V(b)'!$B$11:$Z$315,25,0),0)","v":0},null,{"$f":"IFERROR(VLOOKUP(B265,'Schedule V(b)'!$B$11:$Z$315,23,0),0)","v":0},null,null,null,0]
[255,null,null,{"$f":"IFERROR(VLOOKUP(B266,'Schedule V(b)'!$B$11:$Z$315,3,0),0)","v":0},null,{"$f":"IFERROR(VLOOKUP(B266,'Schedule V(b)'!$B$11:$Z$315,7,0),0)","v":"Select"},null,{"$f":"IFERROR(VLOOKUP(B266,'Schedule V(b)'!$B$11:$Z$315,9,0),0)","v":0},null,{"$f":"IFERROR(VLOOKUP(B266,'Schedule V(b)'!$B$11:$Z$315,11,0),0)","v":"Select"},null,{"$f":"IFERROR(VLOOKUP(B266,'Schedule V(b)'!$B$11:$Z$315,13,0),0)","v":0},null,{"$f":"IFERROR(VLOOKUP(B266,'Schedule V(b)'!$B$11:$Z$315,15,0),0)","v":"Select"},null,{"$f":"IFERROR(VLOOKUP(B266,'Schedule V(b)'!$B$11:$Z$315,17,0),0)","v":0},null,{"$f":"IFERROR(VLOOKUP(B266,'Schedule V(b)'!$B$11:$Z$315,25,0),0)","v":0},null,{"$f":"IFERROR(VLOOKUP(B266,'Schedule V(b)'!$B$11:$Z$315,23,0),0)","v":0},null,null,null,0]
[256,null,null,{"$f":"IFERROR(VLOOKUP(B267,'Schedule V(b)'!$B$11:$Z$315,3,0),0)","v":0},null,{"$f":"IFERROR(VLOOKUP(B267,'Schedule V(b)'!$B$11:$Z$315,7,0),0)","v":"Select"},null,{"$f":"IFERROR(VLOOKUP(B267,'Schedule V(b)'!$B$11:$Z$315,9,0),0)","v":0},null,{"$f":"IFERROR(VLOOKUP(B267,'Schedule V(b)'!$B$11:$Z$315,11,0),0)","v":"Select"},null,{"$f":"IFERROR(VLOOKUP(B267,'Schedule V(b)'!$B$11:$Z$315,13,0),0)","v":0},null,{"$f":"IFERROR(VLOOKUP(B267,'Schedule V(b)'!$B$11:$Z$315,15,0),0)","v":"Select"},null,{"$f":"IFERROR(VLOOKUP(B267,'Schedule V(b)'!$B$11:$Z$315,17,0),0)","v":0},null,{"$f":"IFERROR(VLOOKUP(B267,'Schedule V(b)'!$B$11:$Z$315,25,0),0)","v":0},null,{"$f":"IFERROR(VLOOKUP(B267,'Schedule V(b)'!$B$11:$Z$315,23,0),0)","v":0},null,null,null,0]
[257,null,null,{"$f":"IFERROR(VLOOKUP(B268,'Schedule V(b)'!$B$11:$Z$315,3,0),0)","v":0},null,{"$f":"IFERROR(VLOOKUP(B268,'Schedule V(b)'!$B$11:$Z$315,7,0),0)","v":"Select"},null,{"$f":"IFERROR(VLOOKUP(B268,'Schedule V(b)'!$B$11:$Z$315,9,0),0)","v":0},null,{"$f":"IFERROR(VLOOKUP(B268,'Schedule V(b)'!$B$11:$Z$315,11,0),0)","v":"Select"},null,{"$f":"IFERROR(VLOOKUP(B268,'Schedule V(b)'!$B$11:$Z$315,13,0),0)","v":0},null,{"$f":"IFERROR(VLOOKUP(B268,'Schedule V(b)'!$B$11:$Z$315,15,0),0)","v":"Select"},null,{"$f":"IFERROR(VLOOKUP(B268,'Schedule V(b)'!$B$11:$Z$315,17,0),0)","v":0},null,{"$f":"IFERROR(VLOOKUP(B268,'Schedule V(b)'!$B$11:$Z$315,25,0),0)","v":0},null,{"$f":"IFERROR(VLOOKUP(B268,'Schedule V(b)'!$B$11:$Z$315,23,0),0)","v":0},null,null,null,{"$f":"$P268*$V268","v":0}]
[258,null,null,{"$f":"IFERROR(VLOOKUP(B269,'Schedule V(b)'!$B$11:$Z$315,3,0),0)","v":0},null,{"$f":"IFERROR(VLOOKUP(B269,'Schedule V(b)'!$B$11:$Z$315,7,0),0)","v":"Select"},null,{"$f":"IFERROR(VLOOKUP(B269,'Schedule V(b)'!$B$11:$Z$315,9,0),0)","v":0},null,{"$f":"IFERROR(VLOOKUP(B269,'Schedule V(b)'!$B$11:$Z$315,11,0),0)","v":"Select"},null,{"$f":"IFERROR(VLOOKUP(B269,'Schedule V(b)'!$B$11:$Z$315,13,0),0)","v":0},null,{"$f":"IFERROR(VLOOKUP(B269,'Schedule V(b)'!$B$11:$Z$315,15,0),0)","v":"Select"},null,{"$f":"IFERROR(VLOOKUP(B269,'Schedule V(b)'!$B$11:$Z$315,17,0),0)","v":0},null,{"$f":"IFERROR(VLOOKUP(B269,'Schedule V(b)'!$B$11:$Z$315,25,0),0)","v":0},null,{"$f":"IFERROR(VLOOKUP(B269,'Schedule V(b)'!$B$11:$Z$315,23,0),0)","v":0},null,null,null,0]
[259,null,null,{"$f":"IFERROR(VLOOKUP(B270,'Schedule V(b)'!$B$11:$Z$315,3,0),0)","v":0},null,{"$f":"IFERROR(VLOOKUP(B270,'Schedule V(b)'!$B$11:$Z$315,7,0),0)","v":"Select"},null,{"$f":"IFERROR(VLOOKUP(B270,'Schedule V(b)'!$B$11:$Z$315,9,0),0)","v":0},null,{"$f":"IFERROR(VLOOKUP(B270,'Schedule V(b)'!$B$11:$Z$315,11,0),0)","v":"Select"},null,{"$f":"IFERROR(VLOOKUP(B270,'Schedule V(b)'!$B$11:$Z$315,13,0),0)","v":0},null,{"$f":"IFERROR(VLOOKUP(B270,'Schedule V(b)'!$B$11:$Z$315,15,0),0)","v":"Select"},null,{"$f":"IFERROR(VLOOKUP(B270,'Schedule V(b)'!$B$11:$Z$315,17,0),0)","v":0},null,{"$f":"IFERROR(VLOOKUP(B270,'Schedule V(b)'!$B$11:$Z$315,25,0),0)","v":0},null,{"$f":"IFERROR(VLOOKUP(B270,'Schedule V(b)'!$B$11:$Z$315,23,0),0)","v":0},null,null,null,0]
[260,null,null,{"$f":"IFERROR(VLOOKUP(B271,'Schedule V(b)'!$B$11:$Z$315,3,0),0)","v":0},null,{"$f":"IFERROR(VLOOKUP(B271,'Schedule V(b)'!$B$11:$Z$315,7,0),0)","v":"Select"},null,{"$f":"IFERROR(VLOOKUP(B271,'Schedule V(b)'!$B$11:$Z$315,9,0),0)","v":0},null,{"$f":"IFERROR(VLOOKUP(B271,'Schedule V(b)'!$B$11:$Z$315,11,0),0)","v":"Select"},null,{"$f":"IFERROR(VLOOKUP(B271,'Schedule V(b)'!$B$11:$Z$315,13,0),0)","v":0},null,{"$f":"IFERROR(VLOOKUP(B271,'Schedule V(b)'!$B$11:$Z$315,15,0),0)","v":"Select"},null,{"$f":"IFERROR(VLOOKUP(B271,'Schedule V(b)'!$B$11:$Z$315,17,0),0)","v":0},null,{"$f":"IFERROR(VLOOKUP(B271,'Schedule V(b)'!$B$11:$Z$315,25,0),0)","v":0},null,{"$f":"IFERROR(VLOOKUP(B271,'Schedule V(b)'!$B$11:$Z$315,23,0),0)","v":0},null,null,null,0]
[261,null,null,{"$f":"IFERROR(VLOOKUP(B272,'Schedule V(b)'!$B$11:$Z$315,3,0),0)","v":0},null,{"$f":"IFERROR(VLOOKUP(B272,'Schedule V(b)'!$B$11:$Z$315,7,0),0)","v":"Select"},null,{"$f":"IFERROR(VLOOKUP(B272,'Schedule V(b)'!$B$11:$Z$315,9,0),0)","v":0},null,{"$f":"IFERROR(VLOOKUP(B272,'Schedule V(b)'!$B$11:$Z$315,11,0),0)","v":"Select"},null,{"$f":"IFERROR(VLOOKUP(B272,'Schedule V(b)'!$B$11:$Z$315,13,0),0)","v":0},null,{"$f":"IFERROR(VLOOKUP(B272,'Schedule V(b)'!$B$11:$Z$315,15,0),0)","v":"Select"},null,{"$f":"IFERROR(VLOOKUP(B272,'Schedule V(b)'!$B$11:$Z$315,17,0),0)","v":0},null,{"$f":"IFERROR(VLOOKUP(B272,'Schedule V(b)'!$B$11:$Z$315,25,0),0)","v":0},null,{"$f":"IFERROR(VLOOKUP(B272,'Schedule V(b)'!$B$11:$Z$315,23,0),0)","v":0},null,null,null,0]
[262,null,null,{"$f":"IFERROR(VLOOKUP(B273,'Schedule V(b)'!$B$11:$Z$315,3,0),0)","v":0},null,{"$f":"IFERROR(VLOOKUP(B273,'Schedule V(b)'!$B$11:$Z$315,7,0),0)","v":"Select"},null,{"$f":"IFERROR(VLOOKUP(B273,'Schedule V(b)'!$B$11:$Z$315,9,0),0)","v":0},null,{"$f":"IFERROR(VLOOKUP(B273,'Schedule V(b)'!$B$11:$Z$315,11,0),0)","v":"Select"},null,{"$f":"IFERROR(VLOOKUP(B273,'Schedule V(b)'!$B$11:$Z$315,13,0),0)","v":0},null,{"$f":"IFERROR(VLOOKUP(B273,'Schedule V(b)'!$B$11:$Z$315,15,0),0)","v":"Select"},null,{"$f":"IFERROR(VLOOKUP(B273,'Schedule V(b)'!$B$11:$Z$315,17,0),0)","v":0},null,{"$f":"IFERROR(VLOOKUP(B273,'Schedule V(b)'!$B$11:$Z$315,25,0),0)","v":0},null,{"$f":"IFERROR(VLOOKUP(B273,'Schedule V(b)'!$B$11:$Z$315,23,0),0)","v":0},null,null,null,0]
[263,null,null,{"$f":"IFERROR(VLOOKUP(B274,'Schedule V(b)'!$B$11:$Z$315,3,0),0)","v":0},null,{"$f":"IFERROR(VLOOKUP(B274,'Schedule V(b)'!$B$11:$Z$315,7,0),0)","v":"Select"},null,{"$f":"IFERROR(VLOOKUP(B274,'Schedule V(b)'!$B$11:$Z$315,9,0),0)","v":0},null,{"$f":"IFERROR(VLOOKUP(B274,'Schedule V(b)'!$B$11:$Z$315,11,0),0)","v":"Select"},null,{"$f":"IFERROR(VLOOKUP(B274,'Schedule V(b)'!$B$11:$Z$315,13,0),0)","v":0},null,{"$f":"IFERROR(VLOOKUP(B274,'Schedule V(b)'!$B$11:$Z$315,15,0),0)","v":"Select"},null,{"$f":"IFERROR(VLOOKUP(B274,'Schedule V(b)'!$B$11:$Z$315,17,0),0)","v":0},null,{"$f":"IFERROR(VLOOKUP(B274,'Schedule V(b)'!$B$11:$Z$315,25,0),0)","v":0},null,{"$f":"IFERROR(VLOOKUP(B274,'Schedule V(b)'!$B$11:$Z$315,23,0),0)","v":0},null,null,null,0]
[264,null,null,{"$f":"IFERROR(VLOOKUP(B275,'Schedule V(b)'!$B$11:$Z$315,3,0),0)","v":0},null,{"$f":"IFERROR(VLOOKUP(B275,'Schedule V(b)'!$B$11:$Z$315,7,0),0)","v":"Select"},null,{"$f":"IFERROR(VLOOKUP(B275,'Schedule V(b)'!$B$11:$Z$315,9,0),0)","v":0},null,{"$f":"IFERROR(VLOOKUP(B275,'Schedule V(b)'!$B$11:$Z$315,11,0),0)","v":"Select"},null,{"$f":"IFERROR(VLOOKUP(B275,'Schedule V(b)'!$B$11:$Z$315,13,0),0)","v":0},null,{"$f":"IFERROR(VLOOKUP(B275,'Schedule V(b)'!$B$11:$Z$315,15,0),0)","v":"Select"},null,{"$f":"IFERROR(VLOOKUP(B275,'Schedule V(b)'!$B$11:$Z$315,17,0),0)","v":0},null,{"$f":"IFERROR(VLOOKUP(B275,'Schedule V(b)'!$B$11:$Z$315,25,0),0)","v":0},null,{"$f":"IFERROR(VLOOKUP(B275,'Schedule V(b)'!$B$11:$Z$315,23,0),0)","v":0},null,null,null,0]
[265,null,null,{"$f":"IFERROR(VLOOKUP(B276,'Schedule V(b)'!$B$11:$Z$315,3,0),0)","v":0},null,{"$f":"IFERROR(VLOOKUP(B276,'Schedule V(b)'!$B$11:$Z$315,7,0),0)","v":"Select"},null,{"$f":"IFERROR(VLOOKUP(B276,'Schedule V(b)'!$B$11:$Z$315,9,0),0)","v":0},null,{"$f":"IFERROR(VLOOKUP(B276,'Schedule V(b)'!$B$11:$Z$315,11,0),0)","v":"Select"},null,{"$f":"IFERROR(VLOOKUP(B276,'Schedule V(b)'!$B$11:$Z$315,13,0),0)","v":0},null,{"$f":"IFERROR(VLOOKUP(B276,'Schedule V(b)'!$B$11:$Z$315,15,0),0)","v":"Select"},null,{"$f":"IFERROR(VLOOKUP(B276,'Schedule V(b)'!$B$11:$Z$315,17,0),0)","v":0},null,{"$f":"IFERROR(VLOOKUP(B276,'Schedule V(b)'!$B$11:$Z$315,25,0),0)","v":0},null,{"$f":"IFERROR(VLOOKUP(B276,'Schedule V(b)'!$B$11:$Z$315,23,0),0)","v":0},null,null,null,0]
[266,null,null,{"$f":"IFERROR(VLOOKUP(B277,'Schedule V(b)'!$B$11:$Z$315,3,0),0)","v":0},null,{"$f":"IFERROR(VLOOKUP(B277,'Schedule V(b)'!$B$11:$Z$315,7,0),0)","v":"Select"},null,{"$f":"IFERROR(VLOOKUP(B277,'Schedule V(b)'!$B$11:$Z$315,9,0),0)","v":0},null,{"$f":"IFERROR(VLOOKUP(B277,'Schedule V(b)'!$B$11:$Z$315,11,0),0)","v":"Select"},null,{"$f":"IFERROR(VLOOKUP(B277,'Schedule V(b)'!$B$11:$Z$315,13,0),0)","v":0},null,{"$f":"IFERROR(VLOOKUP(B277,'Schedule V(b)'!$B$11:$Z$315,15,0),0)","v":"Select"},null,{"$f":"IFERROR(VLOOKUP(B277,'Schedule V(b)'!$B$11:$Z$315,17,0),0)","v":0},null,{"$f":"IFERROR(VLOOKUP(B277,'Schedule V(b)'!$B$11:$Z$315,25,0),0)","v":0},null,{"$f":"IFERROR(VLOOKUP(B277,'Schedule V(b)'!$B$11:$Z$315,23,0),0)","v":0},null,null,null,0]
[267,null,null,{"$f":"IFERROR(VLOOKUP(B278,'Schedule V(b)'!$B$11:$Z$315,3,0),0)","v":0},null,{"$f":"IFERROR(VLOOKUP(B278,'Schedule V(b)'!$B$11:$Z$315,7,0),0)","v":"Select"},null,{"$f":"IFERROR(VLOOKUP(B278,'Schedule V(b)'!$B$11:$Z$315,9,0),0)","v":0},null,{"$f":"IFERROR(VLOOKUP(B278,'Schedule V(b)'!$B$11:$Z$315,11,0),0)","v":"Select"},null,{"$f":"IFERROR(VLOOKUP(B278,'Schedule V(b)'!$B$11:$Z$315,13,0),0)","v":0},null,{"$f":"IFERROR(VLOOKUP(B278,'Schedule V(b)'!$B$11:$Z$315,15,0),0)","v":"Select"},null,{"$f":"IFERROR(VLOOKUP(B278,'Schedule V(b)'!$B$11:$Z$315,17,0),0)","v":0},null,{"$f":"IFERROR(VLOOKUP(B278,'Schedule V(b)'!$B$11:$Z$315,25,0),0)","v":0},null,{"$f":"IFERROR(VLOOKUP(B278,'Schedule V(b)'!$B$11:$Z$315,23,0),0)","v":0},null,null,null,0]
[268,null,null,{"$f":"IFERROR(VLOOKUP(B279,'Schedule V(b)'!$B$11:$Z$315,3,0),0)","v":0},null,{"$f":"IFERROR(VLOOKUP(B279,'Schedule V(b)'!$B$11:$Z$315,7,0),0)","v":"Select"},null,{"$f":"IFERROR(VLOOKUP(B279,'Schedule V(b)'!$B$11:$Z$315,9,0),0)","v":0},null,{"$f":"IFERROR(VLOOKUP(B279,'Schedule V(b)'!$B$11:$Z$315,11,0),0)","v":"Select"},null,{"$f":"IFERROR(VLOOKUP(B279,'Schedule V(b)'!$B$11:$Z$315,13,0),0)","v":0},null,{"$f":"IFERROR(VLOOKUP(B279,'Schedule V(b)'!$B$11:$Z$315,15,0),0)","v":"Select"},null,{"$f":"IFERROR(VLOOKUP(B279,'Schedule V(b)'!$B$11:$Z$315,17,0),0)","v":0},null,{"$f":"IFERROR(VLOOKUP(B279,'Schedule V(b)'!$B$11:$Z$315,25,0),0)","v":0},null,{"$f":"IFERROR(VLOOKUP(B279,'Schedule V(b)'!$B$11:$Z$315,23,0),0)","v":0},null,null,null,0]
[269,null,null,{"$f":"IFERROR(VLOOKUP(B280,'Schedule V(b)'!$B$11:$Z$315,3,0),0)","v":0},null,{"$f":"IFERROR(VLOOKUP(B280,'Schedule V(b)'!$B$11:$Z$315,7,0),0)","v":"Select"},null,{"$f":"IFERROR(VLOOKUP(B280,'Schedule V(b)'!$B$11:$Z$315,9,0),0)","v":0},null,{"$f":"IFERROR(VLOOKUP(B280,'Schedule V(b)'!$B$11:$Z$315,11,0),0)","v":"Select"},null,{"$f":"IFERROR(VLOOKUP(B280,'Schedule V(b)'!$B$11:$Z$315,13,0),0)","v":0},null,{"$f":"IFERROR(VLOOKUP(B280,'Schedule V(b)'!$B$11:$Z$315,15,0),0)","v":"Select"},null,{"$f":"IFERROR(VLOOKUP(B280,'Schedule V(b)'!$B$11:$Z$315,17,0),0)","v":0},null,{"$f":"IFERROR(VLOOKUP(B280,'Schedule V(b)'!$B$11:$Z$315,25,0),0)","v":0},null,{"$f":"IFERROR(VLOOKUP(B280,'Schedule V(b)'!$B$11:$Z$315,23,0),0)","v":0},null,null,null,0]
[270,null,null,{"$f":"IFERROR(VLOOKUP(B281,'Schedule V(b)'!$B$11:$Z$315,3,0),0)","v":0},null,{"$f":"IFERROR(VLOOKUP(B281,'Schedule V(b)'!$B$11:$Z$315,7,0),0)","v":"Select"},null,{"$f":"IFERROR(VLOOKUP(B281,'Schedule V(b)'!$B$11:$Z$315,9,0),0)","v":0},null,{"$f":"IFERROR(VLOOKUP(B281,'Schedule V(b)'!$B$11:$Z$315,11,0),0)","v":"Select"},null,{"$f":"IFERROR(VLOOKUP(B281,'Schedule V(b)'!$B$11:$Z$315,13,0),0)","v":0},null,{"$f":"IFERROR(VLOOKUP(B281,'Schedule V(b)'!$B$11:$Z$315,15,0),0)","v":"Select"},null,{"$f":"IFERROR(VLOOKUP(B281,'Schedule V(b)'!$B$11:$Z$315,17,0),0)","v":0},null,{"$f":"IFERROR(VLOOKUP(B281,'Schedule V(b)'!$B$11:$Z$315,25,0),0)","v":0},null,{"$f":"IFERROR(VLOOKUP(B281,'Schedule V(b)'!$B$11:$Z$315,23,0),0)","v":0},null,null,null,0]
[271,null,null,{"$f":"IFERROR(VLOOKUP(B282,'Schedule V(b)'!$B$11:$Z$315,3,0),0)","v":0},null,{"$f":"IFERROR(VLOOKUP(B282,'Schedule V(b)'!$B$11:$Z$315,7,0),0)","v":"Select"},null,{"$f":"IFERROR(VLOOKUP(B282,'Schedule V(b)'!$B$11:$Z$315,9,0),0)","v":0},null,{"$f":"IFERROR(VLOOKUP(B282,'Schedule V(b)'!$B$11:$Z$315,11,0),0)","v":"Select"},null,{"$f":"IFERROR(VLOOKUP(B282,'Schedule V(b)'!$B$11:$Z$315,13,0),0)","v":0},null,{"$f":"IFERROR(VLOOKUP(B282,'Schedule V(b)'!$B$11:$Z$315,15,0),0)","v":"Select"},null,{"$f":"IFERROR(VLOOKUP(B282,'Schedule V(b)'!$B$11:$Z$315,17,0),0)","v":0},null,{"$f":"IFERROR(VLOOKUP(B282,'Schedule V(b)'!$B$11:$Z$315,25,0),0)","v":0},null,{"$f":"IFERROR(VLOOKUP(B282,'Schedule V(b)'!$B$11:$Z$315,23,0),0)","v":0},null,null,null,0]
[272,null,null,{"$f":"IFERROR(VLOOKUP(B283,'Schedule V(b)'!$B$11:$Z$315,3,0),0)","v":0},null,{"$f":"IFERROR(VLOOKUP(B283,'Schedule V(b)'!$B$11:$Z$315,7,0),0)","v":"Select"},null,{"$f":"IFERROR(VLOOKUP(B283,'Schedule V(b)'!$B$11:$Z$315,9,0),0)","v":0},null,{"$f":"IFERROR(VLOOKUP(B283,'Schedule V(b)'!$B$11:$Z$315,11,0),0)","v":"Select"},null,{"$f":"IFERROR(VLOOKUP(B283,'Schedule V(b)'!$B$11:$Z$315,13,0),0)","v":0},null,{"$f":"IFERROR(VLOOKUP(B283,'Schedule V(b)'!$B$11:$Z$315,15,0),0)","v":"Select"},null,{"$f":"IFERROR(VLOOKUP(B283,'Schedule V(b)'!$B$11:$Z$315,17,0),0)","v":0},null,{"$f":"IFERROR(VLOOKUP(B283,'Schedule V(b)'!$B$11:$Z$315,25,0),0)","v":0},null,{"$f":"IFERROR(VLOOKUP(B283,'Schedule V(b)'!$B$11:$Z$315,23,0),0)","v":0},null,null,null,0]
[273,null,null,{"$f":"IFERROR(VLOOKUP(B284,'Schedule V(b)'!$B$11:$Z$315,3,0),0)","v":0},null,{"$f":"IFERROR(VLOOKUP(B284,'Schedule V(b)'!$B$11:$Z$315,7,0),0)","v":"Select"},null,{"$f":"IFERROR(VLOOKUP(B284,'Schedule V(b)'!$B$11:$Z$315,9,0),0)","v":0},null,{"$f":"IFERROR(VLOOKUP(B284,'Schedule V(b)'!$B$11:$Z$315,11,0),0)","v":"Select"},null,{"$f":"IFERROR(VLOOKUP(B284,'Schedule V(b)'!$B$11:$Z$315,13,0),0)","v":0},null,{"$f":"IFERROR(VLOOKUP(B284,'Schedule V(b)'!$B$11:$Z$315,15,0),0)","v":"Select"},null,{"$f":"IFERROR(VLOOKUP(B284,'Schedule V(b)'!$B$11:$Z$315,17,0),0)","v":0},null,{"$f":"IFERROR(VLOOKUP(B284,'Schedule V(b)'!$B$11:$Z$315,25,0),0)","v":0},null,{"$f":"IFERROR(VLOOKUP(B284,'Schedule V(b)'!$B$11:$Z$315,23,0),0)","v":0},null,null,null,0]
[274,null,null,{"$f":"IFERROR(VLOOKUP(B285,'Schedule V(b)'!$B$11:$Z$315,3,0),0)","v":0},null,{"$f":"IFERROR(VLOOKUP(B285,'Schedule V(b)'!$B$11:$Z$315,7,0),0)","v":"Select"},null,{"$f":"IFERROR(VLOOKUP(B285,'Schedule V(b)'!$B$11:$Z$315,9,0),0)","v":0},null,{"$f":"IFERROR(VLOOKUP(B285,'Schedule V(b)'!$B$11:$Z$315,11,0),0)","v":"Select"},null,{"$f":"IFERROR(VLOOKUP(B285,'Schedule V(b)'!$B$11:$Z$315,13,0),0)","v":0},null,{"$f":"IFERROR(VLOOKUP(B285,'Schedule V(b)'!$B$11:$Z$315,15,0),0)","v":"Select"},null,{"$f":"IFERROR(VLOOKUP(B285,'Schedule V(b)'!$B$11:$Z$315,17,0),0)","v":0},null,{"$f":"IFERROR(VLOOKUP(B285,'Schedule V(b)'!$B$11:$Z$315,25,0),0)","v":0},null,{"$f":"IFERROR(VLOOKUP(B285,'Schedule V(b)'!$B$11:$Z$315,23,0),0)","v":0},null,null,null,0]
[275,null,null,{"$f":"IFERROR(VLOOKUP(B286,'Schedule V(b)'!$B$11:$Z$315,3,0),0)","v":0},null,{"$f":"IFERROR(VLOOKUP(B286,'Schedule V(b)'!$B$11:$Z$315,7,0),0)","v":"Select"},null,{"$f":"IFERROR(VLOOKUP(B286,'Schedule V(b)'!$B$11:$Z$315,9,0),0)","v":0},null,{"$f":"IFERROR(VLOOKUP(B286,'Schedule V(b)'!$B$11:$Z$315,11,0),0)","v":"Select"},null,{"$f":"IFERROR(VLOOKUP(B286,'Schedule V(b)'!$B$11:$Z$315,13,0),0)","v":0},null,{"$f":"IFERROR(VLOOKUP(B286,'Schedule V(b)'!$B$11:$Z$315,15,0),0)","v":"Select"},null,{"$f":"IFERROR(VLOOKUP(B286,'Schedule V(b)'!$B$11:$Z$315,17,0),0)","v":0},null,{"$f":"IFERROR(VLOOKUP(B286,'Schedule V(b)'!$B$11:$Z$315,25,0),0)","v":0},null,{"$f":"IFERROR(VLOOKUP(B286,'Schedule V(b)'!$B$11:$Z$315,23,0),0)","v":0},null,null,null,0]
[276,null,null,{"$f":"IFERROR(VLOOKUP(B287,'Schedule V(b)'!$B$11:$Z$315,3,0),0)","v":0},null,{"$f":"IFERROR(VLOOKUP(B287,'Schedule V(b)'!$B$11:$Z$315,7,0),0)","v":"Select"},null,{"$f":"IFERROR(VLOOKUP(B287,'Schedule V(b)'!$B$11:$Z$315,9,0),0)","v":0},null,{"$f":"IFERROR(VLOOKUP(B287,'Schedule V(b)'!$B$11:$Z$315,11,0),0)","v":"Select"},null,{"$f":"IFERROR(VLOOKUP(B287,'Schedule V(b)'!$B$11:$Z$315,13,0),0)","v":0},null,{"$f":"IFERROR(VLOOKUP(B287,'Schedule V(b)'!$B$11:$Z$315,15,0),0)","v":"Select"},null,{"$f":"IFERROR(VLOOKUP(B287,'Schedule V(b)'!$B$11:$Z$315,17,0),0)","v":0},null,{"$f":"IFERROR(VLOOKUP(B287,'Schedule V(b)'!$B$11:$Z$315,25,0),0)","v":0},null,{"$f":"IFERROR(VLOOKUP(B287,'Schedule V(b)'!$B$11:$Z$315,23,0),0)","v":0},null,null,null,0]
[277,null,null,{"$f":"IFERROR(VLOOKUP(B288,'Schedule V(b)'!$B$11:$Z$315,3,0),0)","v":0},null,{"$f":"IFERROR(VLOOKUP(B288,'Schedule V(b)'!$B$11:$Z$315,7,0),0)","v":"Select"},null,{"$f":"IFERROR(VLOOKUP(B288,'Schedule V(b)'!$B$11:$Z$315,9,0),0)","v":0},null,{"$f":"IFERROR(VLOOKUP(B288,'Schedule V(b)'!$B$11:$Z$315,11,0),0)","v":"Select"},null,{"$f":"IFERROR(VLOOKUP(B288,'Schedule V(b)'!$B$11:$Z$315,13,0),0)","v":0},null,{"$f":"IFERROR(VLOOKUP(B288,'Schedule V(b)'!$B$11:$Z$315,15,0),0)","v":"Select"},null,{"$f":"IFERROR(VLOOKUP(B288,'Schedule V(b)'!$B$11:$Z$315,17,0),0)","v":0},null,{"$f":"IFERROR(VLOOKUP(B288,'Schedule V(b)'!$B$11:$Z$315,25,0),0)","v":0},null,{"$f":"IFERROR(VLOOKUP(B288,'Schedule V(b)'!$B$11:$Z$315,23,0),0)","v":0},null,null,null,0]
[278,null,null,{"$f":"IFERROR(VLOOKUP(B289,'Schedule V(b)'!$B$11:$Z$315,3,0),0)","v":0},null,{"$f":"IFERROR(VLOOKUP(B289,'Schedule V(b)'!$B$11:$Z$315,7,0),0)","v":"Select"},null,{"$f":"IFERROR(VLOOKUP(B289,'Schedule V(b)'!$B$11:$Z$315,9,0),0)","v":0},null,{"$f":"IFERROR(VLOOKUP(B289,'Schedule V(b)'!$B$11:$Z$315,11,0),0)","v":"Select"},null,{"$f":"IFERROR(VLOOKUP(B289,'Schedule V(b)'!$B$11:$Z$315,13,0),0)","v":0},null,{"$f":"IFERROR(VLOOKUP(B289,'Schedule V(b)'!$B$11:$Z$315,15,0),0)","v":"Select"},null,{"$f":"IFERROR(VLOOKUP(B289,'Schedule V(b)'!$B$11:$Z$315,17,0),0)","v":0},null,{"$f":"IFERROR(VLOOKUP(B289,'Schedule V(b)'!$B$11:$Z$315,25,0),0)","v":0},null,{"$f":"IFERROR(VLOOKUP(B289,'Schedule V(b)'!$B$11:$Z$315,23,0),0)","v":0},null,null,null,0]
[279,null,null,{"$f":"IFERROR(VLOOKUP(B290,'Schedule V(b)'!$B$11:$Z$315,3,0),0)","v":0},null,{"$f":"IFERROR(VLOOKUP(B290,'Schedule V(b)'!$B$11:$Z$315,7,0),0)","v":"Select"},null,{"$f":"IFERROR(VLOOKUP(B290,'Schedule V(b)'!$B$11:$Z$315,9,0),0)","v":0},null,{"$f":"IFERROR(VLOOKUP(B290,'Schedule V(b)'!$B$11:$Z$315,11,0),0)","v":"Select"},null,{"$f":"IFERROR(VLOOKUP(B290,'Schedule V(b)'!$B$11:$Z$315,13,0),0)","v":0},null,{"$f":"IFERROR(VLOOKUP(B290,'Schedule V(b)'!$B$11:$Z$315,15,0),0)","v":"Select"},null,{"$f":"IFERROR(VLOOKUP(B290,'Schedule V(b)'!$B$11:$Z$315,17,0),0)","v":0},null,{"$f":"IFERROR(VLOOKUP(B290,'Schedule V(b)'!$B$11:$Z$315,25,0),0)","v":0},null,{"$f":"IFERROR(VLOOKUP(B290,'Schedule V(b)'!$B$11:$Z$315,23,0),0)","v":0},null,null,null,0]
[280,null,null,{"$f":"IFERROR(VLOOKUP(B291,'Schedule V(b)'!$B$11:$Z$315,3,0),0)","v":0},null,{"$f":"IFERROR(VLOOKUP(B291,'Schedule V(b)'!$B$11:$Z$315,7,0),0)","v":"Select"},null,{"$f":"IFERROR(VLOOKUP(B291,'Schedule V(b)'!$B$11:$Z$315,9,0),0)","v":0},null,{"$f":"IFERROR(VLOOKUP(B291,'Schedule V(b)'!$B$11:$Z$315,11,0),0)","v":"Select"},null,{"$f":"IFERROR(VLOOKUP(B291,'Schedule V(b)'!$B$11:$Z$315,13,0),0)","v":0},null,{"$f":"IFERROR(VLOOKUP(B291,'Schedule V(b)'!$B$11:$Z$315,15,0),0)","v":"Select"},null,{"$f":"IFERROR(VLOOKUP(B291,'Schedule V(b)'!$B$11:$Z$315,17,0),0)","v":0},null,{"$f":"IFERROR(VLOOKUP(B291,'Schedule V(b)'!$B$11:$Z$315,25,0),0)","v":0},null,{"$f":"IFERROR(VLOOKUP(B291,'Schedule V(b)'!$B$11:$Z$315,23,0),0)","v":0},null,null,null,0]
[281,null,null,{"$f":"IFERROR(VLOOKUP(B292,'Schedule V(b)'!$B$11:$Z$315,3,0),0)","v":0},null,{"$f":"IFERROR(VLOOKUP(B292,'Schedule V(b)'!$B$11:$Z$315,7,0),0)","v":"Select"},null,{"$f":"IFERROR(VLOOKUP(B292,'Schedule V(b)'!$B$11:$Z$315,9,0),0)","v":0},null,{"$f":"IFERROR(VLOOKUP(B292,'Schedule V(b)'!$B$11:$Z$315,11,0),0)","v":"Select"},null,{"$f":"IFERROR(VLOOKUP(B292,'Schedule V(b)'!$B$11:$Z$315,13,0),0)","v":0},null,{"$f":"IFERROR(VLOOKUP(B292,'Schedule V(b)'!$B$11:$Z$315,15,0),0)","v":"Select"},null,{"$f":"IFERROR(VLOOKUP(B292,'Schedule V(b)'!$B$11:$Z$315,17,0),0)","v":0},null,{"$f":"IFERROR(VLOOKUP(B292,'Schedule V(b)'!$B$11:$Z$315,25,0),0)","v":0},null,{"$f":"IFERROR(VLOOKUP(B292,'Schedule V(b)'!$B$11:$Z$315,23,0),0)","v":0},null,null,null,0]
[282,null,null,{"$f":"IFERROR(VLOOKUP(B293,'Schedule V(b)'!$B$11:$Z$315,3,0),0)","v":0},null,{"$f":"IFERROR(VLOOKUP(B293,'Schedule V(b)'!$B$11:$Z$315,7,0),0)","v":"Select"},null,{"$f":"IFERROR(VLOOKUP(B293,'Schedule V(b)'!$B$11:$Z$315,9,0),0)","v":0},null,{"$f":"IFERROR(VLOOKUP(B293,'Schedule V(b)'!$B$11:$Z$315,11,0),0)","v":"Select"},null,{"$f":"IFERROR(VLOOKUP(B293,'Schedule V(b)'!$B$11:$Z$315,13,0),0)","v":0},null,{"$f":"IFERROR(VLOOKUP(B293,'Schedule V(b)'!$B$11:$Z$315,15,0),0)","v":"Select"},null,{"$f":"IFERROR(VLOOKUP(B293,'Schedule V(b)'!$B$11:$Z$315,17,0),0)","v":0},null,{"$f":"IFERROR(VLOOKUP(B293,'Schedule V(b)'!$B$11:$Z$315,25,0),0)","v":0},null,{"$f":"IFERROR(VLOOKUP(B293,'Schedule V(b)'!$B$11:$Z$315,23,0),0)","v":0},null,null,null,0]
[283,null,null,{"$f":"IFERROR(VLOOKUP(B294,'Schedule V(b)'!$B$11:$Z$315,3,0),0)","v":0},null,{"$f":"IFERROR(VLOOKUP(B294,'Schedule V(b)'!$B$11:$Z$315,7,0),0)","v":"Select"},null,{"$f":"IFERROR(VLOOKUP(B294,'Schedule V(b)'!$B$11:$Z$315,9,0),0)","v":0},null,{"$f":"IFERROR(VLOOKUP(B294,'Schedule V(b)'!$B$11:$Z$315,11,0),0)","v":"Select"},null,{"$f":"IFERROR(VLOOKUP(B294,'Schedule V(b)'!$B$11:$Z$315,13,0),0)","v":0},null,{"$f":"IFERROR(VLOOKUP(B294,'Schedule V(b)'!$B$11:$Z$315,15,0),0)","v":"Select"},null,{"$f":"IFERROR(VLOOKUP(B294,'Schedule V(b)'!$B$11:$Z$315,17,0),0)","v":0},null,{"$f":"IFERROR(VLOOKUP(B294,'Schedule V(b)'!$B$11:$Z$315,25,0),0)","v":0},null,{"$f":"IFERROR(VLOOKUP(B294,'Schedule V(b)'!$B$11:$Z$315,23,0),0)","v":0},null,null,null,0]
[284,null,null,{"$f":"IFERROR(VLOOKUP(B295,'Schedule V(b)'!$B$11:$Z$315,3,0),0)","v":0},null,{"$f":"IFERROR(VLOOKUP(B295,'Schedule V(b)'!$B$11:$Z$315,7,0),0)","v":"Select"},null,{"$f":"IFERROR(VLOOKUP(B295,'Schedule V(b)'!$B$11:$Z$315,9,0),0)","v":0},null,{"$f":"IFERROR(VLOOKUP(B295,'Schedule V(b)'!$B$11:$Z$315,11,0),0)","v":"Select"},null,{"$f":"IFERROR(VLOOKUP(B295,'Schedule V(b)'!$B$11:$Z$315,13,0),0)","v":0},null,{"$f":"IFERROR(VLOOKUP(B295,'Schedule V(b)'!$B$11:$Z$315,15,0),0)","v":"Select"},null,{"$f":"IFERROR(VLOOKUP(B295,'Schedule V(b)'!$B$11:$Z$315,17,0),0)","v":0},null,{"$f":"IFERROR(VLOOKUP(B295,'Schedule V(b)'!$B$11:$Z$315,25,0),0)","v":0},null,{"$f":"IFERROR(VLOOKUP(B295,'Schedule V(b)'!$B$11:$Z$315,23,0),0)","v":0},null,null,null,0]
[285,null,null,{"$f":"IFERROR(VLOOKUP(B296,'Schedule V(b)'!$B$11:$Z$315,3,0),0)","v":0},null,{"$f":"IFERROR(VLOOKUP(B296,'Schedule V(b)'!$B$11:$Z$315,7,0),0)","v":"Select"},null,{"$f":"IFERROR(VLOOKUP(B296,'Schedule V(b)'!$B$11:$Z$315,9,0),0)","v":0},null,{"$f":"IFERROR(VLOOKUP(B296,'Schedule V(b)'!$B$11:$Z$315,11,0),0)","v":"Select"},null,{"$f":"IFERROR(VLOOKUP(B296,'Schedule V(b)'!$B$11:$Z$315,13,0),0)","v":0},null,{"$f":"IFERROR(VLOOKUP(B296,'Schedule V(b)'!$B$11:$Z$315,15,0),0)","v":"Select"},null,{"$f":"IFERROR(VLOOKUP(B296,'Schedule V(b)'!$B$11:$Z$315,17,0),0)","v":0},null,{"$f":"IFERROR(VLOOKUP(B296,'Schedule V(b)'!$B$11:$Z$315,25,0),0)","v":0},null,{"$f":"IFERROR(VLOOKUP(B296,'Schedule V(b)'!$B$11:$Z$315,23,0),0)","v":0},null,null,null,0]
[286,null,null,{"$f":"IFERROR(VLOOKUP(B297,'Schedule V(b)'!$B$11:$Z$315,3,0),0)","v":0},null,{"$f":"IFERROR(VLOOKUP(B297,'Schedule V(b)'!$B$11:$Z$315,7,0),0)","v":"Select"},null,{"$f":"IFERROR(VLOOKUP(B297,'Schedule V(b)'!$B$11:$Z$315,9,0),0)","v":0},null,{"$f":"IFERROR(VLOOKUP(B297,'Schedule V(b)'!$B$11:$Z$315,11,0),0)","v":"Select"},null,{"$f":"IFERROR(VLOOKUP(B297,'Schedule V(b)'!$B$11:$Z$315,13,0),0)","v":0},null,{"$f":"IFERROR(VLOOKUP(B297,'Schedule V(b)'!$B$11:$Z$315,15,0),0)","v":"Select"},null,{"$f":"IFERROR(VLOOKUP(B297,'Schedule V(b)'!$B$11:$Z$315,17,0),0)","v":0},null,{"$f":"IFERROR(VLOOKUP(B297,'Schedule V(b)'!$B$11:$Z$315,25,0),0)","v":0},null,{"$f":"IFERROR(VLOOKUP(B297,'Schedule V(b)'!$B$11:$Z$315,23,0),0)","v":0},null,null,null,0]
[287,null,null,{"$f":"IFERROR(VLOOKUP(B298,'Schedule V(b)'!$B$11:$Z$315,3,0),0)","v":0},null,{"$f":"IFERROR(VLOOKUP(B298,'Schedule V(b)'!$B$11:$Z$315,7,0),0)","v":"Select"},null,{"$f":"IFERROR(VLOOKUP(B298,'Schedule V(b)'!$B$11:$Z$315,9,0),0)","v":0},null,{"$f":"IFERROR(VLOOKUP(B298,'Schedule V(b)'!$B$11:$Z$315,11,0),0)","v":"Select"},null,{"$f":"IFERROR(VLOOKUP(B298,'Schedule V(b)'!$B$11:$Z$315,13,0),0)","v":0},null,{"$f":"IFERROR(VLOOKUP(B298,'Schedule V(b)'!$B$11:$Z$315,15,0),0)","v":"Select"},null,{"$f":"IFERROR(VLOOKUP(B298,'Schedule V(b)'!$B$11:$Z$315,17,0),0)","v":0},null,{"$f":"IFERROR(VLOOKUP(B298,'Schedule V(b)'!$B$11:$Z$315,25,0),0)","v":0},null,{"$f":"IFERROR(VLOOKUP(B298,'Schedule V(b)'!$B$11:$Z$315,23,0),0)","v":0},null,null,null,0]
[288,null,null,{"$f":"IFERROR(VLOOKUP(B299,'Schedule V(b)'!$B$11:$Z$315,3,0),0)","v":0},null,{"$f":"IFERROR(VLOOKUP(B299,'Schedule V(b)'!$B$11:$Z$315,7,0),0)","v":"Select"},null,{"$f":"IFERROR(VLOOKUP(B299,'Schedule V(b)'!$B$11:$Z$315,9,0),0)","v":0},null,{"$f":"IFERROR(VLOOKUP(B299,'Schedule V(b)'!$B$11:$Z$315,11,0),0)","v":"Select"},null,{"$f":"IFERROR(VLOOKUP(B299,'Schedule V(b)'!$B$11:$Z$315,13,0),0)","v":0},null,{"$f":"IFERROR(VLOOKUP(B299,'Schedule V(b)'!$B$11:$Z$315,15,0),0)","v":"Select"},null,{"$f":"IFERROR(VLOOKUP(B299,'Schedule V(b)'!$B$11:$Z$315,17,0),0)","v":0},null,{"$f":"IFERROR(VLOOKUP(B299,'Schedule V(b)'!$B$11:$Z$315,25,0),0)","v":0},null,{"$f":"IFERROR(VLOOKUP(B299,'Schedule V(b)'!$B$11:$Z$315,23,0),0)","v":0},null,null,null,0]
[289,null,null,{"$f":"IFERROR(VLOOKUP(B300,'Schedule V(b)'!$B$11:$Z$315,3,0),0)","v":0},null,{"$f":"IFERROR(VLOOKUP(B300,'Schedule V(b)'!$B$11:$Z$315,7,0),0)","v":"Select"},null,{"$f":"IFERROR(VLOOKUP(B300,'Schedule V(b)'!$B$11:$Z$315,9,0),0)","v":0},null,{"$f":"IFERROR(VLOOKUP(B300,'Schedule V(b)'!$B$11:$Z$315,11,0),0)","v":"Select"},null,{"$f":"IFERROR(VLOOKUP(B300,'Schedule V(b)'!$B$11:$Z$315,13,0),0)","v":0},null,{"$f":"IFERROR(VLOOKUP(B300,'Schedule V(b)'!$B$11:$Z$315,15,0),0)","v":"Select"},null,{"$f":"IFERROR(VLOOKUP(B300,'Schedule V(b)'!$B$11:$Z$315,17,0),0)","v":0},null,{"$f":"IFERROR(VLOOKUP(B300,'Schedule V(b)'!$B$11:$Z$315,25,0),0)","v":0},null,{"$f":"IFERROR(VLOOKUP(B300,'Schedule V(b)'!$B$11:$Z$315,23,0),0)","v":0},null,null,null,0]
[290,null,null,{"$f":"IFERROR(VLOOKUP(B301,'Schedule V(b)'!$B$11:$Z$315,3,0),0)","v":0},null,{"$f":"IFERROR(VLOOKUP(B301,'Schedule V(b)'!$B$11:$Z$315,7,0),0)","v":"Select"},null,{"$f":"IFERROR(VLOOKUP(B301,'Schedule V(b)'!$B$11:$Z$315,9,0),0)","v":0},null,{"$f":"IFERROR(VLOOKUP(B301,'Schedule V(b)'!$B$11:$Z$315,11,0),0)","v":"Select"},null,{"$f":"IFERROR(VLOOKUP(B301,'Schedule V(b)'!$B$11:$Z$315,13,0),0)","v":0},null,{"$f":"IFERROR(VLOOKUP(B301,'Schedule V(b)'!$B$11:$Z$315,15,0),0)","v":"Select"},null,{"$f":"IFERROR(VLOOKUP(B301,'Schedule V(b)'!$B$11:$Z$315,17,0),0)","v":0},null,{"$f":"IFERROR(VLOOKUP(B301,'Schedule V(b)'!$B$11:$Z$315,25,0),0)","v":0},null,{"$f":"IFERROR(VLOOKUP(B301,'Schedule V(b)'!$B$11:$Z$315,23,0),0)","v":0},null,null,null,0]
[291,null,null,{"$f":"IFERROR(VLOOKUP(B302,'Schedule V(b)'!$B$11:$Z$315,3,0),0)","v":0},null,{"$f":"IFERROR(VLOOKUP(B302,'Schedule V(b)'!$B$11:$Z$315,7,0),0)","v":"Select"},null,{"$f":"IFERROR(VLOOKUP(B302,'Schedule V(b)'!$B$11:$Z$315,9,0),0)","v":0},null,{"$f":"IFERROR(VLOOKUP(B302,'Schedule V(b)'!$B$11:$Z$315,11,0),0)","v":"Select"},null,{"$f":"IFERROR(VLOOKUP(B302,'Schedule V(b)'!$B$11:$Z$315,13,0),0)","v":0},null,{"$f":"IFERROR(VLOOKUP(B302,'Schedule V(b)'!$B$11:$Z$315,15,0),0)","v":"Select"},null,{"$f":"IFERROR(VLOOKUP(B302,'Schedule V(b)'!$B$11:$Z$315,17,0),0)","v":0},null,{"$f":"IFERROR(VLOOKUP(B302,'Schedule V(b)'!$B$11:$Z$315,25,0),0)","v":0},null,{"$f":"IFERROR(VLOOKUP(B302,'Schedule V(b)'!$B$11:$Z$315,23,0),0)","v":0},null,null,null,0]
[292,null,null,{"$f":"IFERROR(VLOOKUP(B303,'Schedule V(b)'!$B$11:$Z$315,3,0),0)","v":0},null,{"$f":"IFERROR(VLOOKUP(B303,'Schedule V(b)'!$B$11:$Z$315,7,0),0)","v":"Select"},null,{"$f":"IFERROR(VLOOKUP(B303,'Schedule V(b)'!$B$11:$Z$315,9,0),0)","v":0},null,{"$f":"IFERROR(VLOOKUP(B303,'Schedule V(b)'!$B$11:$Z$315,11,0),0)","v":"Select"},null,{"$f":"IFERROR(VLOOKUP(B303,'Schedule V(b)'!$B$11:$Z$315,13,0),0)","v":0},null,{"$f":"IFERROR(VLOOKUP(B303,'Schedule V(b)'!$B$11:$Z$315,15,0),0)","v":"Select"},null,{"$f":"IFERROR(VLOOKUP(B303,'Schedule V(b)'!$B$11:$Z$315,17,0),0)","v":0},null,{"$f":"IFERROR(VLOOKUP(B303,'Schedule V(b)'!$B$11:$Z$315,25,0),0)","v":0},null,{"$f":"IFERROR(VLOOKUP(B303,'Schedule V(b)'!$B$11:$Z$315,23,0),0)","v":0},null,null,null,0]
[293,null,null,{"$f":"IFERROR(VLOOKUP(B304,'Schedule V(b)'!$B$11:$Z$315,3,0),0)","v":0},null,{"$f":"IFERROR(VLOOKUP(B304,'Schedule V(b)'!$B$11:$Z$315,7,0),0)","v":"Select"},null,{"$f":"IFERROR(VLOOKUP(B304,'Schedule V(b)'!$B$11:$Z$315,9,0),0)","v":0},null,{"$f":"IFERROR(VLOOKUP(B304,'Schedule V(b)'!$B$11:$Z$315,11,0),0)","v":"Select"},null,{"$f":"IFERROR(VLOOKUP(B304,'Schedule V(b)'!$B$11:$Z$315,13,0),0)","v":0},null,{"$f":"IFERROR(VLOOKUP(B304,'Schedule V(b)'!$B$11:$Z$315,15,0),0)","v":"Select"},null,{"$f":"IFERROR(VLOOKUP(B304,'Schedule V(b)'!$B$11:$Z$315,17,0),0)","v":0},null,{"$f":"IFERROR(VLOOKUP(B304,'Schedule V(b)'!$B$11:$Z$315,25,0),0)","v":0},null,{"$f":"IFERROR(VLOOKUP(B304,'Schedule V(b)'!$B$11:$Z$315,23,0),0)","v":0},null,null,null,0]
[294,null,null,{"$f":"IFERROR(VLOOKUP(B305,'Schedule V(b)'!$B$11:$Z$315,3,0),0)","v":0},null,{"$f":"IFERROR(VLOOKUP(B305,'Schedule V(b)'!$B$11:$Z$315,7,0),0)","v":"Select"},null,{"$f":"IFERROR(VLOOKUP(B305,'Schedule V(b)'!$B$11:$Z$315,9,0),0)","v":0},null,{"$f":"IFERROR(VLOOKUP(B305,'Schedule V(b)'!$B$11:$Z$315,11,0),0)","v":"Select"},null,{"$f":"IFERROR(VLOOKUP(B305,'Schedule V(b)'!$B$11:$Z$315,13,0),0)","v":0},null,{"$f":"IFERROR(VLOOKUP(B305,'Schedule V(b)'!$B$11:$Z$315,15,0),0)","v":"Select"},null,{"$f":"IFERROR(VLOOKUP(B305,'Schedule V(b)'!$B$11:$Z$315,17,0),0)","v":0},null,{"$f":"IFERROR(VLOOKUP(B305,'Schedule V(b)'!$B$11:$Z$315,25,0),0)","v":0},null,{"$f":"IFERROR(VLOOKUP(B305,'Schedule V(b)'!$B$11:$Z$315,23,0),0)","v":0},null,null,null,0]
[295,null,null,{"$f":"IFERROR(VLOOKUP(B306,'Schedule V(b)'!$B$11:$Z$315,3,0),0)","v":0},null,{"$f":"IFERROR(VLOOKUP(B306,'Schedule V(b)'!$B$11:$Z$315,7,0),0)","v":"Select"},null,{"$f":"IFERROR(VLOOKUP(B306,'Schedule V(b)'!$B$11:$Z$315,9,0),0)","v":0},null,{"$f":"IFERROR(VLOOKUP(B306,'Schedule V(b)'!$B$11:$Z$315,11,0),0)","v":"Select"},null,{"$f":"IFERROR(VLOOKUP(B306,'Schedule V(b)'!$B$11:$Z$315,13,0),0)","v":0},null,{"$f":"IFERROR(VLOOKUP(B306,'Schedule V(b)'!$B$11:$Z$315,15,0),0)","v":"Select"},null,{"$f":"IFERROR(VLOOKUP(B306,'Schedule V(b)'!$B$11:$Z$315,17,0),0)","v":0},null,{"$f":"IFERROR(VLOOKUP(B306,'Schedule V(b)'!$B$11:$Z$315,25,0),0)","v":0},null,{"$f":"IFERROR(VLOOKUP(B306,'Schedule V(b)'!$B$11:$Z$315,23,0),0)","v":0},null,null,null,0]
[296,null,null,{"$f":"IFERROR(VLOOKUP(B307,'Schedule V(b)'!$B$11:$Z$315,3,0),0)","v":0},null,{"$f":"IFERROR(VLOOKUP(B307,'Schedule V(b)'!$B$11:$Z$315,7,0),0)","v":"Select"},null,{"$f":"IFERROR(VLOOKUP(B307,'Schedule V(b)'!$B$11:$Z$315,9,0),0)","v":0},null,{"$f":"IFERROR(VLOOKUP(B307,'Schedule V(b)'!$B$11:$Z$315,11,0),0)","v":"Select"},null,{"$f":"IFERROR(VLOOKUP(B307,'Schedule V(b)'!$B$11:$Z$315,13,0),0)","v":0},null,{"$f":"IFERROR(VLOOKUP(B307,'Schedule V(b)'!$B$11:$Z$315,15,0),0)","v":"Select"},null,{"$f":"IFERROR(VLOOKUP(B307,'Schedule V(b)'!$B$11:$Z$315,17,0),0)","v":0},null,{"$f":"IFERROR(VLOOKUP(B307,'Schedule V(b)'!$B$11:$Z$315,25,0),0)","v":0},null,{"$f":"IFERROR(VLOOKUP(B307,'Schedule V(b)'!$B$11:$Z$315,23,0),0)","v":0},null,null,null,0]
[297,null,null,{"$f":"IFERROR(VLOOKUP(B308,'Schedule V(b)'!$B$11:$Z$315,3,0),0)","v":0},null,{"$f":"IFERROR(VLOOKUP(B308,'Schedule V(b)'!$B$11:$Z$315,7,0),0)","v":"Select"},null,{"$f":"IFERROR(VLOOKUP(B308,'Schedule V(b)'!$B$11:$Z$315,9,0),0)","v":0},null,{"$f":"IFERROR(VLOOKUP(B308,'Schedule V(b)'!$B$11:$Z$315,11,0),0)","v":"Select"},null,{"$f":"IFERROR(VLOOKUP(B308,'Schedule V(b)'!$B$11:$Z$315,13,0),0)","v":0},null,{"$f":"IFERROR(VLOOKUP(B308,'Schedule V(b)'!$B$11:$Z$315,15,0),0)","v":"Select"},null,{"$f":"IFERROR(VLOOKUP(B308,'Schedule V(b)'!$B$11:$Z$315,17,0),0)","v":0},null,{"$f":"IFERROR(VLOOKUP(B308,'Schedule V(b)'!$B$11:$Z$315,25,0),0)","v":0},null,{"$f":"IFERROR(VLOOKUP(B308,'Schedule V(b)'!$B$11:$Z$315,23,0),0)","v":0},null,null,null,0]
[298,null,null,{"$f":"IFERROR(VLOOKUP(B309,'Schedule V(b)'!$B$11:$Z$315,3,0),0)","v":0},null,{"$f":"IFERROR(VLOOKUP(B309,'Schedule V(b)'!$B$11:$Z$315,7,0),0)","v":"Select"},null,{"$f":"IFERROR(VLOOKUP(B309,'Schedule V(b)'!$B$11:$Z$315,9,0),0)","v":0},null,{"$f":"IFERROR(VLOOKUP(B309,'Schedule V(b)'!$B$11:$Z$315,11,0),0)","v":"Select"},null,{"$f":"IFERROR(VLOOKUP(B309,'Schedule V(b)'!$B$11:$Z$315,13,0),0)","v":0},null,{"$f":"IFERROR(VLOOKUP(B309,'Schedule V(b)'!$B$11:$Z$315,15,0),0)","v":"Select"},null,{"$f":"IFERROR(VLOOKUP(B309,'Schedule V(b)'!$B$11:$Z$315,17,0),0)","v":0},null,{"$f":"IFERROR(VLOOKUP(B309,'Schedule V(b)'!$B$11:$Z$315,25,0),0)","v":0},null,{"$f":"IFERROR(VLOOKUP(B309,'Schedule V(b)'!$B$11:$Z$315,23,0),0)","v":0},null,null,null,0]
[299,null,null,{"$f":"IFERROR(VLOOKUP(B310,'Schedule V(b)'!$B$11:$Z$315,3,0),0)","v":0},null,{"$f":"IFERROR(VLOOKUP(B310,'Schedule V(b)'!$B$11:$Z$315,7,0),0)","v":"Select"},null,{"$f":"IFERROR(VLOOKUP(B310,'Schedule V(b)'!$B$11:$Z$315,9,0),0)","v":0},null,{"$f":"IFERROR(VLOOKUP(B310,'Schedule V(b)'!$B$11:$Z$315,11,0),0)","v":"Select"},null,{"$f":"IFERROR(VLOOKUP(B310,'Schedule V(b)'!$B$11:$Z$315,13,0),0)","v":0},null,{"$f":"IFERROR(VLOOKUP(B310,'Schedule V(b)'!$B$11:$Z$315,15,0),0)","v":"Select"},null,{"$f":"IFERROR(VLOOKUP(B310,'Schedule V(b)'!$B$11:$Z$315,17,0),0)","v":0},null,{"$f":"IFERROR(VLOOKUP(B310,'Schedule V(b)'!$B$11:$Z$315,25,0),0)","v":0},null,{"$f":"IFERROR(VLOOKUP(B310,'Schedule V(b)'!$B$11:$Z$315,23,0),0)","v":0},null,null,null,0]
[300,null,null,{"$f":"IFERROR(VLOOKUP(B311,'Schedule V(b)'!$B$11:$Z$315,3,0),0)","v":0},null,{"$f":"IFERROR(VLOOKUP(B311,'Schedule V(b)'!$B$11:$Z$315,7,0),0)","v":"Select"},null,{"$f":"IFERROR(VLOOKUP(B311,'Schedule V(b)'!$B$11:$Z$315,9,0),0)","v":0},null,{"$f":"IFERROR(VLOOKUP(B311,'Schedule V(b)'!$B$11:$Z$315,11,0),0)","v":"Select"},null,{"$f":"IFERROR(VLOOKUP(B311,'Schedule V(b)'!$B$11:$Z$315,13,0),0)","v":0},null,{"$f":"IFERROR(VLOOKUP(B311,'Schedule V(b)'!$B$11:$Z$315,15,0),0)","v":"Select"},null,{"$f":"IFERROR(VLOOKUP(B311,'Schedule V(b)'!$B$11:$Z$315,17,0),0)","v":0},null,{"$f":"IFERROR(VLOOKUP(B311,'Schedule V(b)'!$B$11:$Z$315,25,0),0)","v":0},null,{"$f":"IFERROR(VLOOKUP(B311,'Schedule V(b)'!$B$11:$Z$315,23,0),0)","v":0},null,null,null,0]
[]
[null,null,null,null,null,null,null,null,null,null,null,null,null,null,null,null,null,null,null,null,null,null,null,{"$f":"SUM(X12:X311)","v":0}]
[]
[]
[null,null,null,null,null,null,null,null,null,null,null,null,null,null,null,null,null,{"$f":"SUM(R12:R311)","v":0},null,{"$f":"SUM(T12:T311)","v":0}]

{"sheet":"Schedule XIB","index":82,"n_rows":325,"n_cols":30,"rows_kept":325,"cut":false,"hidden":false,"merged":[[3,0,3,1]]}
["SCHEDULE OF UNREGULATED ENTITIES WHERE THE PARENT EXERCISES CONTROL",null,null,null,null,null,null,null,null,null,null,null,null,null,null,null,null,null,null,null,null,null,null,{"$f":"HYPERLINK(\"#'Index'!A1\",\"Return to Index\")","v":"Return to Index"}]
[null,null,null,null,null,null,null,null,null,null,null,null,null,null,null,null,null,null,null,null,null,null,null,null,null,null,"Select",null,"Energy ","Control"]
[{"$f":"'Group Information'!C9","v":"Enter Parent Company Name"},null,null,null,null,null,null,null,null,null,null,null,null,null,null,null,null,null,null,null,null,null,null,null,null,null,"Unregulated entities that conduct ancillary services ",null,"Materials","Significant Influence"]
[{"$f":"'Form 1EBS'!C3","v":"2023-12-31"},null,null,null,null,null,null,null,null,null,null,null,null,null,null,null,null,null,null,null,null,null,null,null,null,null,"Unregulated non-financial operating entities",null,"Industrial"]
[{"$f":"'Form 1EBS'!C4","v":" ['000s]United States Dollars"},null,null,null,null,null,null,null,null,null,null,null,null,null,null,null,null,null,null,null,null,null,null,"SCHEDULE XI(B)",null,null,"Unregulated financial operating entities",null,"Consumer Discretionary"]
[null,null,null,null,null,null,null,null,null,null,null,null,null,null,null,null,null,null,null,null,null,null,null,null,null,null,null,null,"Energy ","Control"]
[null,"Enter Number of Unregulated Entities ",null,{"$f":"Import!E36909","v":0},null,null,null,null,null,null,null,null,null,null,null,null,null,null,null,null,null,null,null,null,null,null,null,null,"Consumer Staples"]
[null,"Enter information for each entity",null,null,null,null,null,null,null,null,null,null,null,null,null,null,null,null,null,null,null,null,null,null,null,null,null,null,"Healthcare"]
[null,"(1)",null,"(2)",null,"(3)",null,"(4)",null,"(5)",null,"(6)",null,"(7)",null,"(8)",null,"(9)",null,"(10)",null,"(11)",null,"(12)",null,null,null,null,"Financial"]
[null,"Input Group Member Name \n(as inputted in Schedule V(b))",null,"Jurisdiction",null,"Sector Classification",null,"Strategic Purpose",null,"Entity Type",null,"Products & Services Offered",null,"Group Member Category \n(Select from drop-down list)",null,"Percent of Participating Interest",null,"Total Assets",null,"Net Assets",null,"Applicable Capital Charges",null,"Capital Requirement",null,null,null,null,"Information Technology"]
[null,null,null,null,null,null,null,null,null,null,null,null,null,null,null,null,null,null,null,null,null,null,null,null,null,null,null,null,"Telecommunication Services"]
[1,{"$f":"Import!E36910","v":0},null,{"$f":"IFERROR(VLOOKUP(B12,'Schedule V(b)'!$B$11:$Z$315,3,0),0)","v":0},null,{"$f":"IFERROR(VLOOKUP(B12,'Schedule V(b)'!$B$11:$Z$315,7,0),0)","v":"Select"},null,{"$f":"IFERROR(VLOOKUP(B12,'Schedule V(b)'!$B$11:$Z$315,9,0),0)","v":0},null,{"$f":"IFERROR(VLOOKUP(B12,'Schedule V(b)'!$B$11:$Z$315,11,0),0)","v":"Select"},null,{"$f":"IFERROR(VLOOKUP(B12,'Schedule V(b)'!$B$11:$Z$315,13,0),0)","v":0},null,{"$f":"Import!E37010","v":"Select"},null,{"$f":"IFERROR(VLOOKUP(B12,'Schedule V(b)'!$B$11:$Z$315,17,0),0)","v":0},null,{"$f":"IFERROR(VLOOKUP(B12,'Schedule V(b)'!$B$11:$Z$315,25,0),0)","v":0},null,{"$f":"IFERROR(VLOOKUP(B12,'Schedule V(b)'!$B$11:$Z$315,23,0),0)","v":0},null,{"$f":"IF(N12=\"unregulated entities that conduct ancillary services \",\"0%\",IF(N12=\"Unregulated non-financial operating entities\",\"15%\",IF(N12=\"unregulated financial operating entities\",\"50%\",\"0\")))","v":"0"},null,{"$f":"P12*T12*V12","v":0},null,null,null,null,"Utilities"]
[2,{"$f":"Import!E36911","v":0},null,{"$f":"IFERROR(VLOOKUP(B13,'Schedule V(b)'!$B$11:$Z$315,3,0),0)","v":0},null,{"$f":"IFERROR(VLOOKUP(B13,'Schedule V(b)'!$B$11:$Z$315,7,0),0)","v":"Select"},null,{"$f":"IFERROR(VLOOKUP(B13,'Schedule V(b)'!$B$11:$Z$315,9,0),0)","v":0},null,{"$f":"IFERROR(VLOOKUP(B13,'Schedule V(b)'!$B$11:$Z$315,11,0),0)","v":"Select"},null,{"$f":"IFERROR(VLOOKUP(B13,'Schedule V(b)'!$B$11:$Z$315,13,0),0)","v":0},null,{"$f":"Import!E37011","v":"Select"},null,{"$f":"IFERROR(VLOOKUP(B13,'Schedule V(b)'!$B$11:$Z$315,17,0),0)","v":0},null,{"$f":"IFERROR(VLOOKUP(B13,'Schedule V(b)'!$B$11:$Z$315,25,0),0)","v":0},null,{"$f":"IFERROR(VLOOKUP(B13,'Schedule V(b)'!$B$11:$Z$315,23,0),0)","v":0},null,"0",null,0,null,null,null,null,"Other"]
[3,{"$f":"Import!E36912","v":0},null,{"$f":"IFERROR(VLOOKUP(B14,'Schedule V(b)'!$B$11:$Z$315,3,0),0)","v":0},null,{"$f":"IFERROR(VLOOKUP(B14,'Schedule V(b)'!$B$11:$Z$315,7,0),0)","v":"Select"},null,{"$f":"IFERROR(VLOOKUP(B14,'Schedule V(b)'!$B$11:$Z$315,9,0),0)","v":0},null,{"$f":"IFERROR(VLOOKUP(B14,'Schedule V(b)'!$B$11:$Z$315,11,0),0)","v":"Select"},null,{"$f":"IFERROR(VLOOKUP(B14,'Schedule V(b)'!$B$11:$Z$315,13,0),0)","v":0},null,{"$f":"Import!E37012","v":"Select"},null,{"$f":"IFERROR(VLOOKUP(B14,'Schedule V(b)'!$B$11:$Z$315,17,0),0)","v":0},null,{"$f":"IFERROR(VLOOKUP(B14,'Schedule V(b)'!$B$11:$Z$315,25,0),0)","v":0},null,{"$f":"IFERROR(VLOOKUP(B14,'Schedule V(b)'!$B$11:$Z$315,23,0),0)","v":0},null,"0",null,0]
[4,{"$f":"Import!E36913","v":0},null,{"$f":"IFERROR(VLOOKUP(B15,'Schedule V(b)'!$B$11:$Z$315,3,0),0)","v":0},null,{"$f":"IFERROR(VLOOKUP(B15,'Schedule V(b)'!$B$11:$Z$315,7,0),0)","v":"Select"},null,{"$f":"IFERROR(VLOOKUP(B15,'Schedule V(b)'!$B$11:$Z$315,9,0),0)","v":0},null,{"$f":"IFERROR(VLOOKUP(B15,'Schedule V(b)'!$B$11:$Z$315,11,0),0)","v":"Select"},null,{"$f":"IFERROR(VLOOKUP(B15,'Schedule V(b)'!$B$11:$Z$315,13,0),0)","v":0},null,{"$f":"Import!E37013","v":"Select"},null,{"$f":"IFERROR(VLOOKUP(B15,'Schedule V(b)'!$B$11:$Z$315,17,0),0)","v":0},null,{"$f":"IFERROR(VLOOKUP(B15,'Schedule V(b)'!$B$11:$Z$315,25,0),0)","v":0},null,{"$f":"IFERROR(VLOOKUP(B15,'Schedule V(b)'!$B$11:$Z$315,23,0),0)","v":0},null,"0",null,0]
[5,{"$f":"Import!E36914","v":0},null,{"$f":"IFERROR(VLOOKUP(B16,'Schedule V(b)'!$B$11:$Z$315,3,0),0)","v":0},null,{"$f":"IFERROR(VLOOKUP(B16,'Schedule V(b)'!$B$11:$Z$315,7,0),0)","v":"Select"},null,{"$f":"IFERROR(VLOOKUP(B16,'Schedule V(b)'!$B$11:$Z$315,9,0),0)","v":0},null,{"$f":"IFERROR(VLOOKUP(B16,'Schedule V(b)'!$B$11:$Z$315,11,0),0)","v":"Select"},null,{"$f":"IFERROR(VLOOKUP(B16,'Schedule V(b)'!$B$11:$Z$315,13,0),0)","v":0},null,{"$f":"Import!E37014","v":"Select"},null,{"$f":"IFERROR(VLOOKUP(B16,'Schedule V(b)'!$B$11:$Z$315,17,0),0)","v":0},null,{"$f":"IFERROR(VLOOKUP(B16,'Schedule V(b)'!$B$11:$Z$315,25,0),0)","v":0},null,{"$f":"IFERROR(VLOOKUP(B16,'Schedule V(b)'!$B$11:$Z$315,23,0),0)","v":0},null,"0",null,0]
[6,{"$f":"Import!E36915","v":0},null,{"$f":"IFERROR(VLOOKUP(B17,'Schedule V(b)'!$B$11:$Z$315,3,0),0)","v":0},null,{"$f":"IFERROR(VLOOKUP(B17,'Schedule V(b)'!$B$11:$Z$315,7,0),0)","v":"Select"},null,{"$f":"IFERROR(VLOOKUP(B17,'Schedule V(b)'!$B$11:$Z$315,9,0),0)","v":0},null,{"$f":"IFERROR(VLOOKUP(B17,'Schedule V(b)'!$B$11:$Z$315,11,0),0)","v":"Select"},null,{"$f":"IFERROR(VLOOKUP(B17,'Schedule V(b)'!$B$11:$Z$315,13,0),0)","v":0},null,{"$f":"Import!E37015","v":"Select"},null,{"$f":"IFERROR(VLOOKUP(B17,'Schedule V(b)'!$B$11:$Z$315,17,0),0)","v":0},null,{"$f":"IFERROR(VLOOKUP(B17,'Schedule V(b)'!$B$11:$Z$315,25,0),0)","v":0},null,{"$f":"IFERROR(VLOOKUP(B17,'Schedule V(b)'!$B$11:$Z$315,23,0),0)","v":0},null,"0",null,0]
[7,{"$f":"Import!E36916","v":0},null,{"$f":"IFERROR(VLOOKUP(B18,'Schedule V(b)'!$B$11:$Z$315,3,0),0)","v":0},null,{"$f":"IFERROR(VLOOKUP(B18,'Schedule V(b)'!$B$11:$Z$315,7,0),0)","v":"Select"},null,{"$f":"IFERROR(VLOOKUP(B18,'Schedule V(b)'!$B$11:$Z$315,9,0),0)","v":0},null,{"$f":"IFERROR(VLOOKUP(B18,'Schedule V(b)'!$B$11:$Z$315,11,0),0)","v":"Select"},null,{"$f":"IFERROR(VLOOKUP(B18,'Schedule V(b)'!$B$11:$Z$315,13,0),0)","v":0},null,{"$f":"Import!E37016","v":"Select"},null,{"$f":"IFERROR(VLOOKUP(B18,'Schedule V(b)'!$B$11:$Z$315,17,0),0)","v":0},null,{"$f":"IFERROR(VLOOKUP(B18,'Schedule V(b)'!$B$11:$Z$315,25,0),0)","v":0},null,{"$f":"IFERROR(VLOOKUP(B18,'Schedule V(b)'!$B$11:$Z$315,23,0),0)","v":0},null,"0",null,0]
[8,{"$f":"Import!E36917","v":0},null,{"$f":"IFERROR(VLOOKUP(B19,'Schedule V(b)'!$B$11:$Z$315,3,0),0)","v":0},null,{"$f":"IFERROR(VLOOKUP(B19,'Schedule V(b)'!$B$11:$Z$315,7,0),0)","v":"Select"},null,{"$f":"IFERROR(VLOOKUP(B19,'Schedule V(b)'!$B$11:$Z$315,9,0),0)","v":0},null,{"$f":"IFERROR(VLOOKUP(B19,'Schedule V(b)'!$B$11:$Z$315,11,0),0)","v":"Select"},null,{"$f":"IFERROR(VLOOKUP(B19,'Schedule V(b)'!$B$11:$Z$315,13,0),0)","v":0},null,{"$f":"Import!E37017","v":"Select"},null,{"$f":"IFERROR(VLOOKUP(B19,'Schedule V(b)'!$B$11:$Z$315,17,0),0)","v":0},null,{"$f":"IFERROR(VLOOKUP(B19,'Schedule V(b)'!$B$11:$Z$315,25,0),0)","v":0},null,{"$f":"IFERROR(VLOOKUP(B19,'Schedule V(b)'!$B$11:$Z$315,23,0),0)","v":0},null,"0",null,0]
[9,{"$f":"Import!E36918","v":0},null,{"$f":"IFERROR(VLOOKUP(B20,'Schedule V(b)'!$B$11:$Z$315,3,0),0)","v":0},null,{"$f":"IFERROR(VLOOKUP(B20,'Schedule V(b)'!$B$11:$Z$315,7,0),0)","v":"Select"},null,{"$f":"IFERROR(VLOOKUP(B20,'Schedule V(b)'!$B$11:$Z$315,9,0),0)","v":0},null,{"$f":"IFERROR(VLOOKUP(B20,'Schedule V(b)'!$B$11:$Z$315,11,0),0)","v":"Select"},null,{"$f":"IFERROR(VLOOKUP(B20,'Schedule V(b)'!$B$11:$Z$315,13,0),0)","v":0},null,{"$f":"Import!E37018","v":"Select"},null,{"$f":"IFERROR(VLOOKUP(B20,'Schedule V(b)'!$B$11:$Z$315,17,0),0)","v":0},null,{"$f":"IFERROR(VLOOKUP(B20,'Schedule V(b)'!$B$11:$Z$315,25,0),0)","v":0},null,{"$f":"IFERROR(VLOOKUP(B20,'Schedule V(b)'!$B$11:$Z$315,23,0),0)","v":0},null,"0",null,0]
[10,{"$f":"Import!E36919","v":0},null,{"$f":"IFERROR(VLOOKUP(B21,'Schedule V(b)'!$B$11:$Z$315,3,0),0)","v":0},null,{"$f":"IFERROR(VLOOKUP(B21,'Schedule V(b)'!$B$11:$Z$315,7,0),0)","v":"Select"},null,{"$f":"IFERROR(VLOOKUP(B21,'Schedule V(b)'!$B$11:$Z$315,9,0),0)","v":0},null,{"$f":"IFERROR(VLOOKUP(B21,'Schedule V(b)'!$B$11:$Z$315,11,0),0)","v":"Select"},null,{"$f":"IFERROR(VLOOKUP(B21,'Schedule V(b)'!$B$11:$Z$315,13,0),0)","v":0},null,{"$f":"Import!E37019","v":"Select"},null,{"$f":"IFERROR(VLOOKUP(B21,'Schedule V(b)'!$B$11:$Z$315,17,0),0)","v":0},null,{"$f":"IFERROR(VLOOKUP(B21,'Schedule V(b)'!$B$11:$Z$315,25,0),0)","v":0},null,{"$f":"IFERROR(VLOOKUP(B21,'Schedule V(b)'!$B$11:$Z$315,23,0),0)","v":0},null,"0",null,0]
[11,{"$f":"Import!E36920","v":0},null,{"$f":"IFERROR(VLOOKUP(B22,'Schedule V(b)'!$B$11:$Z$315,3,0),0)","v":0},null,{"$f":"IFERROR(VLOOKUP(B22,'Schedule V(b)'!$B$11:$Z$315,7,0),0)","v":"Select"},null,{"$f":"IFERROR(VLOOKUP(B22,'Schedule V(b)'!$B$11:$Z$315,9,0),0)","v":0},null,{"$f":"IFERROR(VLOOKUP(B22,'Schedule V(b)'!$B$11:$Z$315,11,0),0)","v":"Select"},null,{"$f":"IFERROR(VLOOKUP(B22,'Schedule V(b)'!$B$11:$Z$315,13,0),0)","v":0},null,{"$f":"Import!E37020","v":"Select"},null,{"$f":"IFERROR(VLOOKUP(B22,'Schedule V(b)'!$B$11:$Z$315,17,0),0)","v":0},null,{"$f":"IFERROR(VLOOKUP(B22,'Schedule V(b)'!$B$11:$Z$315,25,0),0)","v":0},null,{"$f":"IFERROR(VLOOKUP(B22,'Schedule V(b)'!$B$11:$Z$315,23,0),0)","v":0},null,"0",null,0]
[12,{"$f":"Import!E36921","v":0},null,{"$f":"IFERROR(VLOOKUP(B23,'Schedule V(b)'!$B$11:$Z$315,3,0),0)","v":0},null,{"$f":"IFERROR(VLOOKUP(B23,'Schedule V(b)'!$B$11:$Z$315,7,0),0)","v":"Select"},null,{"$f":"IFERROR(VLOOKUP(B23,'Schedule V(b)'!$B$11:$Z$315,9,0),0)","v":0},null,{"$f":"IFERROR(VLOOKUP(B23,'Schedule V(b)'!$B$11:$Z$315,11,0),0)","v":"Select"},null,{"$f":"IFERROR(VLOOKUP(B23,'Schedule V(b)'!$B$11:$Z$315,13,0),0)","v":0},null,{"$f":"Import!E37021","v":"Select"},null,{"$f":"IFERROR(VLOOKUP(B23,'Schedule V(b)'!$B$11:$Z$315,17,0),0)","v":0},null,{"$f":"IFERROR(VLOOKUP(B23,'Schedule V(b)'!$B$11:$Z$315,25,0),0)","v":0},null,{"$f":"IFERROR(VLOOKUP(B23,'Schedule V(b)'!$B$11:$Z$315,23,0),0)","v":0},null,"0",null,0]
[13,{"$f":"Import!E36922","v":0},null,{"$f":"IFERROR(VLOOKUP(B24,'Schedule V(b)'!$B$11:$Z$315,3,0),0)","v":0},null,{"$f":"IFERROR(VLOOKUP(B24,'Schedule V(b)'!$B$11:$Z$315,7,0),0)","v":"Select"},null,{"$f":"IFERROR(VLOOKUP(B24,'Schedule V(b)'!$B$11:$Z$315,9,0),0)","v":0},null,{"$f":"IFERROR(VLOOKUP(B24,'Schedule V(b)'!$B$11:$Z$315,11,0),0)","v":"Select"},null,{"$f":"IFERROR(VLOOKUP(B24,'Schedule V(b)'!$B$11:$Z$315,13,0),0)","v":0},null,{"$f":"Import!E37022","v":"Select"},null,{"$f":"IFERROR(VLOOKUP(B24,'Schedule V(b)'!$B$11:$Z$315,17,0),0)","v":0},null,{"$f":"IFERROR(VLOOKUP(B24,'Schedule V(b)'!$B$11:$Z$315,25,0),0)","v":0},null,{"$f":"IFERROR(VLOOKUP(B24,'Schedule V(b)'!$B$11:$Z$315,23,0),0)","v":0},null,"0",null,0]
[14,{"$f":"Import!E36923","v":0},null,{"$f":"IFERROR(VLOOKUP(B25,'Schedule V(b)'!$B$11:$Z$315,3,0),0)","v":0},null,{"$f":"IFERROR(VLOOKUP(B25,'Schedule V(b)'!$B$11:$Z$315,7,0),0)","v":"Select"},null,{"$f":"IFERROR(VLOOKUP(B25,'Schedule V(b)'!$B$11:$Z$315,9,0),0)","v":0},null,{"$f":"IFERROR(VLOOKUP(B25,'Schedule V(b)'!$B$11:$Z$315,11,0),0)","v":"Select"},null,{"$f":"IFERROR(VLOOKUP(B25,'Schedule V(b)'!$B$11:$Z$315,13,0),0)","v":0},null,{"$f":"Import!E37023","v":"Select"},null,{"$f":"IFERROR(VLOOKUP(B25,'Schedule V(b)'!$B$11:$Z$315,17,0),0)","v":0},null,{"$f":"IFERROR(VLOOKUP(B25,'Schedule V(b)'!$B$11:$Z$315,25,0),0)","v":0},null,{"$f":"IFERROR(VLOOKUP(B25,'Schedule V(b)'!$B$11:$Z$315,23,0),0)","v":0},null,"0",null,0]
[15,{"$f":"Import!E36924","v":0},null,{"$f":"IFERROR(VLOOKUP(B26,'Schedule V(b)'!$B$11:$Z$315,3,0),0)","v":0},null,{"$f":"IFERROR(VLOOKUP(B26,'Schedule V(b)'!$B$11:$Z$315,7,0),0)","v":"Select"},null,{"$f":"IFERROR(VLOOKUP(B26,'Schedule V(b)'!$B$11:$Z$315,9,0),0)","v":0},null,{"$f":"IFERROR(VLOOKUP(B26,'Schedule V(b)'!$B$11:$Z$315,11,0),0)","v":"Select"},null,{"$f":"IFERROR(VLOOKUP(B26,'Schedule V(b)'!$B$11:$Z$315,13,0),0)","v":0},null,{"$f":"Import!E37024","v":"Select"},null,{"$f":"IFERROR(VLOOKUP(B26,'Schedule V(b)'!$B$11:$Z$315,17,0),0)","v":0},null,{"$f":"IFERROR(VLOOKUP(B26,'Schedule V(b)'!$B$11:$Z$315,25,0),0)","v":0},null,{"$f":"IFERROR(VLOOKUP(B26,'Schedule V(b)'!$B$11:$Z$315,23,0),0)","v":0},null,"0",null,0]
[16,{"$f":"Import!E36925","v":0},null,{"$f":"IFERROR(VLOOKUP(B27,'Schedule V(b)'!$B$11:$Z$315,3,0),0)","v":0},null,{"$f":"IFERROR(VLOOKUP(B27,'Schedule V(b)'!$B$11:$Z$315,7,0),0)","v":"Select"},null,{"$f":"IFERROR(VLOOKUP(B27,'Schedule V(b)'!$B$11:$Z$315,9,0),0)","v":0},null,{"$f":"IFERROR(VLOOKUP(B27,'Schedule V(b)'!$B$11:$Z$315,11,0),0)","v":"Select"},null,{"$f":"IFERROR(VLOOKUP(B27,'Schedule V(b)'!$B$11:$Z$315,13,0),0)","v":0},null,{"$f":"Import!E37025","v":"Select"},null,{"$f":"IFERROR(VLOOKUP(B27,'Schedule V(b)'!$B$11:$Z$315,17,0),0)","v":0},null,{"$f":"IFERROR(VLOOKUP(B27,'Schedule V(b)'!$B$11:$Z$315,25,0),0)","v":0},null,{"$f":"IFERROR(VLOOKUP(B27,'Schedule V(b)'!$B$11:$Z$315,23,0),0)","v":0},null,"0",null,0]
[17,{"$f":"Import!E36926","v":0},null,{"$f":"IFERROR(VLOOKUP(B28,'Schedule V(b)'!$B$11:$Z$315,3,0),0)","v":0},null,{"$f":"IFERROR(VLOOKUP(B28,'Schedule V(b)'!$B$11:$Z$315,7,0),0)","v":"Select"},null,{"$f":"IFERROR(VLOOKUP(B28,'Schedule V(b)'!$B$11:$Z$315,9,0),0)","v":0},null,{"$f":"IFERROR(VLOOKUP(B28,'Schedule V(b)'!$B$11:$Z$315,11,0),0)","v":"Select"},null,{"$f":"IFERROR(VLOOKUP(B28,'Schedule V(b)'!$B$11:$Z$315,13,0),0)","v":0},null,{"$f":"Import!E37026","v":"Select"},null,{"$f":"IFERROR(VLOOKUP(B28,'Schedule V(b)'!$B$11:$Z$315,17,0),0)","v":0},null,{"$f":"IFERROR(VLOOKUP(B28,'Schedule V(b)'!$B$11:$Z$315,25,0),0)","v":0},null,{"$f":"IFERROR(VLOOKUP(B28,'Schedule V(b)'!$B$11:$Z$315,23,0),0)","v":0},null,"0",null,0]
[18,{"$f":"Import!E36927","v":0},null,{"$f":"IFERROR(VLOOKUP(B29,'Schedule V(b)'!$B$11:$Z$315,3,0),0)","v":0},null,{"$f":"IFERROR(VLOOKUP(B29,'Schedule V(b)'!$B$11:$Z$315,7,0),0)","v":"Select"},null,{"$f":"IFERROR(VLOOKUP(B29,'Schedule V(b)'!$B$11:$Z$315,9,0),0)","v":0},null,{"$f":"IFERROR(VLOOKUP(B29,'Schedule V(b)'!$B$11:$Z$315,11,0),0)","v":"Select"},null,{"$f":"IFERROR(VLOOKUP(B29,'Schedule V(b)'!$B$11:$Z$315,13,0),0)","v":0},null,{"$f":"Import!E37027","v":"Select"},null,{"$f":"IFERROR(VLOOKUP(B29,'Schedule V(b)'!$B$11:$Z$315,17,0),0)","v":0},null,{"$f":"IFERROR(VLOOKUP(B29,'Schedule V(b)'!$B$11:$Z$315,25,0),0)","v":0},null,{"$f":"IFERROR(VLOOKUP(B29,'Schedule V(b)'!$B$11:$Z$315,23,0),0)","v":0},null,"0",null,0]
[19,{"$f":"Import!E36928","v":0},null,{"$f":"IFERROR(VLOOKUP(B30,'Schedule V(b)'!$B$11:$Z$315,3,0),0)","v":0},null,{"$f":"IFERROR(VLOOKUP(B30,'Schedule V(b)'!$B$11:$Z$315,7,0),0)","v":"Select"},null,{"$f":"IFERROR(VLOOKUP(B30,'Schedule V(b)'!$B$11:$Z$315,9,0),0)","v":0},null,{"$f":"IFERROR(VLOOKUP(B30,'Schedule V(b)'!$B$11:$Z$315,11,0),0)","v":"Select"},null,{"$f":"IFERROR(VLOOKUP(B30,'Schedule V(b)'!$B$11:$Z$315,13,0),0)","v":0},null,{"$f":"Import!E37028","v":"Select"},null,{"$f":"IFERROR(VLOOKUP(B30,'Schedule V(b)'!$B$11:$Z$315,17,0),0)","v":0},null,{"$f":"IFERROR(VLOOKUP(B30,'Schedule V(b)'!$B$11:$Z$315,25,0),0)","v":0},null,{"$f":"IFERROR(VLOOKUP(B30,'Schedule V(b)'!$B$11:$Z$315,23,0),0)","v":0},null,"0",null,0]
[20,{"$f":"Import!E36929","v":0},null,{"$f":"IFERROR(VLOOKUP(B31,'Schedule V(b)'!$B$11:$Z$315,3,0),0)","v":0},null,{"$f":"IFERROR(VLOOKUP(B31,'Schedule V(b)'!$B$11:$Z$315,7,0),0)","v":"Select"},null,{"$f":"IFERROR(VLOOKUP(B31,'Schedule V(b)'!$B$11:$Z$315,9,0),0)","v":0},null,{"$f":"IFERROR(VLOOKUP(B31,'Schedule V(b)'!$B$11:$Z$315,11,0),0)","v":"Select"},null,{"$f":"IFERROR(VLOOKUP(B31,'Schedule V(b)'!$B$11:$Z$315,13,0),0)","v":0},null,{"$f":"Import!E37029","v":"Select"},null,{"$f":"IFERROR(VLOOKUP(B31,'Schedule V(b)'!$B$11:$Z$315,17,0),0)","v":0},null,{"$f":"IFERROR(VLOOKUP(B31,'Schedule V(b)'!$B$11:$Z$315,25,0),0)","v":0},null,{"$f":"IFERROR(VLOOKUP(B31,'Schedule V(b)'!$B$11:$Z$315,23,0),0)","v":0},null,"0",null,0]
[21,{"$f":"Import!E36930","v":0},null,{"$f":"IFERROR(VLOOKUP(B32,'Schedule V(b)'!$B$11:$Z$315,3,0),0)","v":0},null,{"$f":"IFERROR(VLOOKUP(B32,'Schedule V(b)'!$B$11:$Z$315,7,0),0)","v":"Select"},null,{"$f":"IFERROR(VLOOKUP(B32,'Schedule V(b)'!$B$11:$Z$315,9,0),0)","v":0},null,{"$f":"IFERROR(VLOOKUP(B32,'Schedule V(b)'!$B$11:$Z$315,11,0),0)","v":"Select"},null,{"$f":"IFERROR(VLOOKUP(B32,'Schedule V(b)'!$B$11:$Z$315,13,0),0)","v":0},null,{"$f":"Import!E37030","v":"Select"},null,{"$f":"IFERROR(VLOOKUP(B32,'Schedule V(b)'!$B$11:$Z$315,17,0),0)","v":0},null,{"$f":"IFERROR(VLOOKUP(B32,'Schedule V(b)'!$B$11:$Z$315,25,0),0)","v":0},null,{"$f":"IFERROR(VLOOKUP(B32,'Schedule V(b)'!$B$11:$Z$315,23,0),0)","v":0},null,"0",null,0]
[22,{"$f":"Import!E36931","v":0},null,{"$f":"IFERROR(VLOOKUP(B33,'Schedule V(b)'!$B$11:$Z$315,3,0),0)","v":0},null,{"$f":"IFERROR(VLOOKUP(B33,'Schedule V(b)'!$B$11:$Z$315,7,0),0)","v":"Select"},null,{"$f":"IFERROR(VLOOKUP(B33,'Schedule V(b)'!$B$11:$Z$315,9,0),0)","v":0},null,{"$f":"IFERROR(VLOOKUP(B33,'Schedule V(b)'!$B$11:$Z$315,11,0),0)","v":"Select"},null,{"$f":"IFERROR(VLOOKUP(B33,'Schedule V(b)'!$B$11:$Z$315,13,0),0)","v":0},null,{"$f":"Import!E37031","v":"Select"},null,{"$f":"IFERROR(VLOOKUP(B33,'Schedule V(b)'!$B$11:$Z$315,17,0),0)","v":0},null,{"$f":"IFERROR(VLOOKUP(B33,'Schedule V(b)'!$B$11:$Z$315,25,0),0)","v":0},null,{"$f":"IFERROR(VLOOKUP(B33,'Schedule V(b)'!$B$11:$Z$315,23,0),0)","v":0},null,"0",null,0]
[23,{"$f":"Import!E36932","v":0},null,{"$f":"IFERROR(VLOOKUP(B34,'Schedule V(b)'!$B$11:$Z$315,3,0),0)","v":0},null,{"$f":"IFERROR(VLOOKUP(B34,'Schedule V(b)'!$B$11:$Z$315,7,0),0)","v":"Select"},null,{"$f":"IFERROR(VLOOKUP(B34,'Schedule V(b)'!$B$11:$Z$315,9,0),0)","v":0},null,{"$f":"IFERROR(VLOOKUP(B34,'Schedule V(b)'!$B$11:$Z$315,11,0),0)","v":"Select"},null,{"$f":"IFERROR(VLOOKUP(B34,'Schedule V(b)'!$B$11:$Z$315,13,0),0)","v":0},null,{"$f":"Import!E37032","v":"Select"},null,{"$f":"IFERROR(VLOOKUP(B34,'Schedule V(b)'!$B$11:$Z$315,17,0),0)","v":0},null,{"$f":"IFERROR(VLOOKUP(B34,'Schedule V(b)'!$B$11:$Z$315,25,0),0)","v":0},null,{"$f":"IFERROR(VLOOKUP(B34,'Schedule V(b)'!$B$11:$Z$315,23,0),0)","v":0},null,"0",null,0]
[24,{"$f":"Import!E36933","v":0},null,{"$f":"IFERROR(VLOOKUP(B35,'Schedule V(b)'!$B$11:$Z$315,3,0),0)","v":0},null,{"$f":"IFERROR(VLOOKUP(B35,'Schedule V(b)'!$B$11:$Z$315,7,0),0)","v":"Select"},null,{"$f":"IFERROR(VLOOKUP(B35,'Schedule V(b)'!$B$11:$Z$315,9,0),0)","v":0},null,{"$f":"IFERROR(VLOOKUP(B35,'Schedule V(b)'!$B$11:$Z$315,11,0),0)","v":"Select"},null,{"$f":"IFERROR(VLOOKUP(B35,'Schedule V(b)'!$B$11:$Z$315,13,0),0)","v":0},null,{"$f":"Import!E37033","v":"Select"},null,{"$f":"IFERROR(VLOOKUP(B35,'Schedule V(b)'!$B$11:$Z$315,17,0),0)","v":0},null,{"$f":"IFERROR(VLOOKUP(B35,'Schedule V(b)'!$B$11:$Z$315,25,0),0)","v":0},null,{"$f":"IFERROR(VLOOKUP(B35,'Schedule V(b)'!$B$11:$Z$315,23,0),0)","v":0},null,"0",null,0]
[25,{"$f":"Import!E36934","v":0},null,{"$f":"IFERROR(VLOOKUP(B36,'Schedule V(b)'!$B$11:$Z$315,3,0),0)","v":0},null,{"$f":"IFERROR(VLOOKUP(B36,'Schedule V(b)'!$B$11:$Z$315,7,0),0)","v":"Select"},null,{"$f":"IFERROR(VLOOKUP(B36,'Schedule V(b)'!$B$11:$Z$315,9,0),0)","v":0},null,{"$f":"IFERROR(VLOOKUP(B36,'Schedule V(b)'!$B$11:$Z$315,11,0),0)","v":"Select"},null,{"$f":"IFERROR(VLOOKUP(B36,'Schedule V(b)'!$B$11:$Z$315,13,0),0)","v":0},null,{"$f":"Import!E37034","v":"Select"},null,{"$f":"IFERROR(VLOOKUP(B36,'Schedule V(b)'!$B$11:$Z$315,17,0),0)","v":0},null,{"$f":"IFERROR(VLOOKUP(B36,'Schedule V(b)'!$B$11:$Z$315,25,0),0)","v":0},null,{"$f":"IFERROR(VLOOKUP(B36,'Schedule V(b)'!$B$11:$Z$315,23,0),0)","v":0},null,"0",null,0]
[26,{"$f":"Import!E36935","v":0},null,{"$f":"IFERROR(VLOOKUP(B37,'Schedule V(b)'!$B$11:$Z$315,3,0),0)","v":0},null,{"$f":"IFERROR(VLOOKUP(B37,'Schedule V(b)'!$B$11:$Z$315,7,0),0)","v":"Select"},null,{"$f":"IFERROR(VLOOKUP(B37,'Schedule V(b)'!$B$11:$Z$315,9,0),0)","v":0},null,{"$f":"IFERROR(VLOOKUP(B37,'Schedule V(b)'!$B$11:$Z$315,11,0),0)","v":"Select"},null,{"$f":"IFERROR(VLOOKUP(B37,'Schedule V(b)'!$B$11:$Z$315,13,0),0)","v":0},null,{"$f":"Import!E37035","v":"Select"},null,{"$f":"IFERROR(VLOOKUP(B37,'Schedule V(b)'!$B$11:$Z$315,17,0),0)","v":0},null,{"$f":"IFERROR(VLOOKUP(B37,'Schedule V(b)'!$B$11:$Z$315,25,0),0)","v":0},null,{"$f":"IFERROR(VLOOKUP(B37,'Schedule V(b)'!$B$11:$Z$315,23,0),0)","v":0},null,"0",null,0]
[27,{"$f":"Import!E36936","v":0},null,{"$f":"IFERROR(VLOOKUP(B38,'Schedule V(b)'!$B$11:$Z$315,3,0),0)","v":0},null,{"$f":"IFERROR(VLOOKUP(B38,'Schedule V(b)'!$B$11:$Z$315,7,0),0)","v":"Select"},null,{"$f":"IFERROR(VLOOKUP(B38,'Schedule V(b)'!$B$11:$Z$315,9,0),0)","v":0},null,{"$f":"IFERROR(VLOOKUP(B38,'Schedule V(b)'!$B$11:$Z$315,11,0),0)","v":"Select"},null,{"$f":"IFERROR(VLOOKUP(B38,'Schedule V(b)'!$B$11:$Z$315,13,0),0)","v":0},null,{"$f":"Import!E37036","v":"Select"},null,{"$f":"IFERROR(VLOOKUP(B38,'Schedule V(b)'!$B$11:$Z$315,17,0),0)","v":0},null,{"$f":"IFERROR(VLOOKUP(B38,'Schedule V(b)'!$B$11:$Z$315,25,0),0)","v":0},null,{"$f":"IFERROR(VLOOKUP(B38,'Schedule V(b)'!$B$11:$Z$315,23,0),0)","v":0},null,"0",null,0]
[28,{"$f":"Import!E36937","v":0},null,{"$f":"IFERROR(VLOOKUP(B39,'Schedule V(b)'!$B$11:$Z$315,3,0),0)","v":0},null,{"$f":"IFERROR(VLOOKUP(B39,'Schedule V(b)'!$B$11:$Z$315,7,0),0)","v":"Select"},null,{"$f":"IFERROR(VLOOKUP(B39,'Schedule V(b)'!$B$11:$Z$315,9,0),0)","v":0},null,{"$f":"IFERROR(VLOOKUP(B39,'Schedule V(b)'!$B$11:$Z$315,11,0),0)","v":"Select"},null,{"$f":"IFERROR(VLOOKUP(B39,'Schedule V(b)'!$B$11:$Z$315,13,0),0)","v":0},null,{"$f":"Import!E37037","v":"Select"},null,{"$f":"IFERROR(VLOOKUP(B39,'Schedule V(b)'!$B$11:$Z$315,17,0),0)","v":0},null,{"$f":"IFERROR(VLOOKUP(B39,'Schedule V(b)'!$B$11:$Z$315,25,0),0)","v":0},null,{"$f":"IFERROR(VLOOKUP(B39,'Schedule V(b)'!$B$11:$Z$315,23,0),0)","v":0},null,"0",null,0]
[29,{"$f":"Import!E36938","v":0},null,{"$f":"IFERROR(VLOOKUP(B40,'Schedule V(b)'!$B$11:$Z$315,3,0),0)","v":0},null,{"$f":"IFERROR(VLOOKUP(B40,'Schedule V(b)'!$B$11:$Z$315,7,0),0)","v":"Select"},null,{"$f":"IFERROR(VLOOKUP(B40,'Schedule V(b)'!$B$11:$Z$315,9,0),0)","v":0},null,{"$f":"IFERROR(VLOOKUP(B40,'Schedule V(b)'!$B$11:$Z$315,11,0),0)","v":"Select"},null,{"$f":"IFERROR(VLOOKUP(B40,'Schedule V(b)'!$B$11:$Z$315,13,0),0)","v":0},null,{"$f":"Import!E37038","v":"Select"},null,{"$f":"IFERROR(VLOOKUP(B40,'Schedule V(b)'!$B$11:$Z$315,17,0),0)","v":0},null,{"$f":"IFERROR(VLOOKUP(B40,'Schedule V(b)'!$B$11:$Z$315,25,0),0)","v":0},null,{"$f":"IFERROR(VLOOKUP(B40,'Schedule V(b)'!$B$11:$Z$315,23,0),0)","v":0},null,"0",null,0]
[30,{"$f":"Import!E36939","v":0},null,{"$f":"IFERROR(VLOOKUP(B41,'Schedule V(b)'!$B$11:$Z$315,3,0),0)","v":0},null,{"$f":"IFERROR(VLOOKUP(B41,'Schedule V(b)'!$B$11:$Z$315,7,0),0)","v":"Select"},null,{"$f":"IFERROR(VLOOKUP(B41,'Schedule V(b)'!$B$11:$Z$315,9,0),0)","v":0},null,{"$f":"IFERROR(VLOOKUP(B41,'Schedule V(b)'!$B$11:$Z$315,11,0),0)","v":"Select"},null,{"$f":"IFERROR(VLOOKUP(B41,'Schedule V(b)'!$B$11:$Z$315,13,0),0)","v":0},null,{"$f":"Import!E37039","v":"Select"},null,{"$f":"IFERROR(VLOOKUP(B41,'Schedule V(b)'!$B$11:$Z$315,17,0),0)","v":0},null,{"$f":"IFERROR(VLOOKUP(B41,'Schedule V(b)'!$B$11:$Z$315,25,0),0)","v":0},null,{"$f":"IFERROR(VLOOKUP(B41,'Schedule V(b)'!$B$11:$Z$315,23,0),0)","v":0},null,"0",null,0]
[31,{"$f":"Import!E36940","v":0},null,{"$f":"IFERROR(VLOOKUP(B42,'Schedule V(b)'!$B$11:$Z$315,3,0),0)","v":0},null,{"$f":"IFERROR(VLOOKUP(B42,'Schedule V(b)'!$B$11:$Z$315,7,0),0)","v":"Select"},null,{"$f":"IFERROR(VLOOKUP(B42,'Schedule V(b)'!$B$11:$Z$315,9,0),0)","v":0},null,{"$f":"IFERROR(VLOOKUP(B42,'Schedule V(b)'!$B$11:$Z$315,11,0),0)","v":"Select"},null,{"$f":"IFERROR(VLOOKUP(B42,'Schedule V(b)'!$B$11:$Z$315,13,0),0)","v":0},null,{"$f":"Import!E37040","v":"Select"},null,{"$f":"IFERROR(VLOOKUP(B42,'Schedule V(b)'!$B$11:$Z$315,17,0),0)","v":0},null,{"$f":"IFERROR(VLOOKUP(B42,'Schedule V(b)'!$B$11:$Z$315,25,0),0)","v":0},null,{"$f":"IFERROR(VLOOKUP(B42,'Schedule V(b)'!$B$11:$Z$315,23,0),0)","v":0},null,"0",null,0]
[32,{"$f":"Import!E36941","v":0},null,{"$f":"IFERROR(VLOOKUP(B43,'Schedule V(b)'!$B$11:$Z$315,3,0),0)","v":0},null,{"$f":"IFERROR(VLOOKUP(B43,'Schedule V(b)'!$B$11:$Z$315,7,0),0)","v":"Select"},null,{"$f":"IFERROR(VLOOKUP(B43,'Schedule V(b)'!$B$11:$Z$315,9,0),0)","v":0},null,{"$f":"IFERROR(VLOOKUP(B43,'Schedule V(b)'!$B$11:$Z$315,11,0),0)","v":"Select"},null,{"$f":"IFERROR(VLOOKUP(B43,'Schedule V(b)'!$B$11:$Z$315,13,0),0)","v":0},null,{"$f":"Import!E37041","v":"Select"},null,{"$f":"IFERROR(VLOOKUP(B43,'Schedule V(b)'!$B$11:$Z$315,17,0),0)","v":0},null,{"$f":"IFERROR(VLOOKUP(B43,'Schedule V(b)'!$B$11:$Z$315,25,0),0)","v":0},null,{"$f":"IFERROR(VLOOKUP(B43,'Schedule V(b)'!$B$11:$Z$315,23,0),0)","v":0},null,"0",null,0]
[33,{"$f":"Import!E36942","v":0},null,{"$f":"IFERROR(VLOOKUP(B44,'Schedule V(b)'!$B$11:$Z$315,3,0),0)","v":0},null,{"$f":"IFERROR(VLOOKUP(B44,'Schedule V(b)'!$B$11:$Z$315,7,0),0)","v":"Select"},null,{"$f":"IFERROR(VLOOKUP(B44,'Schedule V(b)'!$B$11:$Z$315,9,0),0)","v":0},null,{"$f":"IFERROR(VLOOKUP(B44,'Schedule V(b)'!$B$11:$Z$315,11,0),0)","v":"Select"},null,{"$f":"IFERROR(VLOOKUP(B44,'Schedule V(b)'!$B$11:$Z$315,13,0),0)","v":0},null,{"$f":"Import!E37042","v":"Select"},null,{"$f":"IFERROR(VLOOKUP(B44,'Schedule V(b)'!$B$11:$Z$315,17,0),0)","v":0},null,{"$f":"IFERROR(VLOOKUP(B44,'Schedule V(b)'!$B$11:$Z$315,25,0),0)","v":0},null,{"$f":"IFERROR(VLOOKUP(B44,'Schedule V(b)'!$B$11:$Z$315,23,0),0)","v":0},null,"0",null,0]
[34,{"$f":"Import!E36943","v":0},null,{"$f":"IFERROR(VLOOKUP(B45,'Schedule V(b)'!$B$11:$Z$315,3,0),0)","v":0},null,{"$f":"IFERROR(VLOOKUP(B45,'Schedule V(b)'!$B$11:$Z$315,7,0),0)","v":"Select"},null,{"$f":"IFERROR(VLOOKUP(B45,'Schedule V(b)'!$B$11:$Z$315,9,0),0)","v":0},null,{"$f":"IFERROR(VLOOKUP(B45,'Schedule V(b)'!$B$11:$Z$315,11,0),0)","v":"Select"},null,{"$f":"IFERROR(VLOOKUP(B45,'Schedule V(b)'!$B$11:$Z$315,13,0),0)","v":0},null,{"$f":"Import!E37043","v":"Select"},null,{"$f":"IFERROR(VLOOKUP(B45,'Schedule V(b)'!$B$11:$Z$315,17,0),0)","v":0},null,{"$f":"IFERROR(VLOOKUP(B45,'Schedule V(b)'!$B$11:$Z$315,25,0),0)","v":0},null,{"$f":"IFERROR(VLOOKUP(B45,'Schedule V(b)'!$B$11:$Z$315,23,0),0)","v":0},null,"0",null,0]
[35,{"$f":"Import!E36944","v":0},null,{"$f":"IFERROR(VLOOKUP(B46,'Schedule V(b)'!$B$11:$Z$315,3,0),0)","v":0},null,{"$f":"IFERROR(VLOOKUP(B46,'Schedule V(b)'!$B$11:$Z$315,7,0),0)","v":"Select"},null,{"$f":"IFERROR(VLOOKUP(B46,'Schedule V(b)'!$B$11:$Z$315,9,0),0)","v":0},null,{"$f":"IFERROR(VLOOKUP(B46,'Schedule V(b)'!$B$11:$Z$315,11,0),0)","v":"Select"},null,{"$f":"IFERROR(VLOOKUP(B46,'Schedule V(b)'!$B$11:$Z$315,13,0),0)","v":0},null,{"$f":"Import!E37044","v":"Select"},null,{"$f":"IFERROR(VLOOKUP(B46,'Schedule V(b)'!$B$11:$Z$315,17,0),0)","v":0},null,{"$f":"IFERROR(VLOOKUP(B46,'Schedule V(b)'!$B$11:$Z$315,25,0),0)","v":0},null,{"$f":"IFERROR(VLOOKUP(B46,'Schedule V(b)'!$B$11:$Z$315,23,0),0)","v":0},null,"0",null,0]
[36,{"$f":"Import!E36945","v":0},null,{"$f":"IFERROR(VLOOKUP(B47,'Schedule V(b)'!$B$11:$Z$315,3,0),0)","v":0},null,{"$f":"IFERROR(VLOOKUP(B47,'Schedule V(b)'!$B$11:$Z$315,7,0),0)","v":"Select"},null,{"$f":"IFERROR(VLOOKUP(B47,'Schedule V(b)'!$B$11:$Z$315,9,0),0)","v":0},null,{"$f":"IFERROR(VLOOKUP(B47,'Schedule V(b)'!$B$11:$Z$315,11,0),0)","v":"Select"},null,{"$f":"IFERROR(VLOOKUP(B47,'Schedule V(b)'!$B$11:$Z$315,13,0),0)","v":0},null,{"$f":"Import!E37045","v":"Select"},null,{"$f":"IFERROR(VLOOKUP(B47,'Schedule V(b)'!$B$11:$Z$315,17,0),0)","v":0},null,{"$f":"IFERROR(VLOOKUP(B47,'Schedule V(b)'!$B$11:$Z$315,25,0),0)","v":0},null,{"$f":"IFERROR(VLOOKUP(B47,'Schedule V(b)'!$B$11:$Z$315,23,0),0)","v":0},null,"0",null,0]
[37,{"$f":"Import!E36946","v":0},null,{"$f":"IFERROR(VLOOKUP(B48,'Schedule V(b)'!$B$11:$Z$315,3,0),0)","v":0},null,{"$f":"IFERROR(VLOOKUP(B48,'Schedule V(b)'!$B$11:$Z$315,7,0),0)","v":"Select"},null,{"$f":"IFERROR(VLOOKUP(B48,'Schedule V(b)'!$B$11:$Z$315,9,0),0)","v":0},null,{"$f":"IFERROR(VLOOKUP(B48,'Schedule V(b)'!$B$11:$Z$315,11,0),0)","v":"Select"},null,{"$f":"IFERROR(VLOOKUP(B48,'Schedule V(b)'!$B$11:$Z$315,13,0),0)","v":0},null,{"$f":"Import!E37046","v":"Select"},null,{"$f":"IFERROR(VLOOKUP(B48,'Schedule V(b)'!$B$11:$Z$315,17,0),0)","v":0},null,{"$f":"IFERROR(VLOOKUP(B48,'Schedule V(b)'!$B$11:$Z$315,25,0),0)","v":0},null,{"$f":"IFERROR(VLOOKUP(B48,'Schedule V(b)'!$B$11:$Z$315,23,0),0)","v":0},null,"0",null,0]
[38,{"$f":"Import!E36947","v":0},null,{"$f":"IFERROR(VLOOKUP(B49,'Schedule V(b)'!$B$11:$Z$315,3,0),0)","v":0},null,{"$f":"IFERROR(VLOOKUP(B49,'Schedule V(b)'!$B$11:$Z$315,7,0),0)","v":"Select"},null,{"$f":"IFERROR(VLOOKUP(B49,'Schedule V(b)'!$B$11:$Z$315,9,0),0)","v":0},null,{"$f":"IFERROR(VLOOKUP(B49,'Schedule V(b)'!$B$11:$Z$315,11,0),0)","v":"Select"},null,{"$f":"IFERROR(VLOOKUP(B49,'Schedule V(b)'!$B$11:$Z$315,13,0),0)","v":0},null,{"$f":"Import!E37047","v":"Select"},null,{"$f":"IFERROR(VLOOKUP(B49,'Schedule V(b)'!$B$11:$Z$315,17,0),0)","v":0},null,{"$f":"IFERROR(VLOOKUP(B49,'Schedule V(b)'!$B$11:$Z$315,25,0),0)","v":0},null,{"$f":"IFERROR(VLOOKUP(B49,'Schedule V(b)'!$B$11:$Z$315,23,0),0)","v":0},null,"0",null,0]
[39,{"$f":"Import!E36948","v":0},null,{"$f":"IFERROR(VLOOKUP(B50,'Schedule V(b)'!$B$11:$Z$315,3,0),0)","v":0},null,{"$f":"IFERROR(VLOOKUP(B50,'Schedule V(b)'!$B$11:$Z$315,7,0),0)","v":"Select"},null,{"$f":"IFERROR(VLOOKUP(B50,'Schedule V(b)'!$B$11:$Z$315,9,0),0)","v":0},null,{"$f":"IFERROR(VLOOKUP(B50,'Schedule V(b)'!$B$11:$Z$315,11,0),0)","v":"Select"},null,{"$f":"IFERROR(VLOOKUP(B50,'Schedule V(b)'!$B$11:$Z$315,13,0),0)","v":0},null,{"$f":"Import!E37048","v":"Select"},null,{"$f":"IFERROR(VLOOKUP(B50,'Schedule V(b)'!$B$11:$Z$315,17,0),0)","v":0},null,{"$f":"IFERROR(VLOOKUP(B50,'Schedule V(b)'!$B$11:$Z$315,25,0),0)","v":0},null,{"$f":"IFERROR(VLOOKUP(B50,'Schedule V(b)'!$B$11:$Z$315,23,0),0)","v":0},null,"0",null,0]
[40,{"$f":"Import!E36949","v":0},null,{"$f":"IFERROR(VLOOKUP(B51,'Schedule V(b)'!$B$11:$Z$315,3,0),0)","v":0},null,{"$f":"IFERROR(VLOOKUP(B51,'Schedule V(b)'!$B$11:$Z$315,7,0),0)","v":"Select"},null,{"$f":"IFERROR(VLOOKUP(B51,'Schedule V(b)'!$B$11:$Z$315,9,0),0)","v":0},null,{"$f":"IFERROR(VLOOKUP(B51,'Schedule V(b)'!$B$11:$Z$315,11,0),0)","v":"Select"},null,{"$f":"IFERROR(VLOOKUP(B51,'Schedule V(b)'!$B$11:$Z$315,13,0),0)","v":0},null,{"$f":"Import!E37049","v":"Select"},null,{"$f":"IFERROR(VLOOKUP(B51,'Schedule V(b)'!$B$11:$Z$315,17,0),0)","v":0},null,{"$f":"IFERROR(VLOOKUP(B51,'Schedule V(b)'!$B$11:$Z$315,25,0),0)","v":0},null,{"$f":"IFERROR(VLOOKUP(B51,'Schedule V(b)'!$B$11:$Z$315,23,0),0)","v":0},null,"0",null,0]
[41,{"$f":"Import!E36950","v":0},null,{"$f":"IFERROR(VLOOKUP(B52,'Schedule V(b)'!$B$11:$Z$315,3,0),0)","v":0},null,{"$f":"IFERROR(VLOOKUP(B52,'Schedule V(b)'!$B$11:$Z$315,7,0),0)","v":"Select"},null,{"$f":"IFERROR(VLOOKUP(B52,'Schedule V(b)'!$B$11:$Z$315,9,0),0)","v":0},null,{"$f":"IFERROR(VLOOKUP(B52,'Schedule V(b)'!$B$11:$Z$315,11,0),0)","v":"Select"},null,{"$f":"IFERROR(VLOOKUP(B52,'Schedule V(b)'!$B$11:$Z$315,13,0),0)","v":0},null,{"$f":"Import!E37050","v":"Select"},null,{"$f":"IFERROR(VLOOKUP(B52,'Schedule V(b)'!$B$11:$Z$315,17,0),0)","v":0},null,{"$f":"IFERROR(VLOOKUP(B52,'Schedule V(b)'!$B$11:$Z$315,25,0),0)","v":0},null,{"$f":"IFERROR(VLOOKUP(B52,'Schedule V(b)'!$B$11:$Z$315,23,0),0)","v":0},null,"0",null,0]
[42,{"$f":"Import!E36951","v":0},null,{"$f":"IFERROR(VLOOKUP(B53,'Schedule V(b)'!$B$11:$Z$315,3,0),0)","v":0},null,{"$f":"IFERROR(VLOOKUP(B53,'Schedule V(b)'!$B$11:$Z$315,7,0),0)","v":"Select"},null,{"$f":"IFERROR(VLOOKUP(B53,'Schedule V(b)'!$B$11:$Z$315,9,0),0)","v":0},null,{"$f":"IFERROR(VLOOKUP(B53,'Schedule V(b)'!$B$11:$Z$315,11,0),0)","v":"Select"},null,{"$f":"IFERROR(VLOOKUP(B53,'Schedule V(b)'!$B$11:$Z$315,13,0),0)","v":0},null,{"$f":"Import!E37051","v":"Select"},null,{"$f":"IFERROR(VLOOKUP(B53,'Schedule V(b)'!$B$11:$Z$315,17,0),0)","v":0},null,{"$f":"IFERROR(VLOOKUP(B53,'Schedule V(b)'!$B$11:$Z$315,25,0),0)","v":0},null,{"$f":"IFERROR(VLOOKUP(B53,'Schedule V(b)'!$B$11:$Z$315,23,0),0)","v":0},null,"0",null,0]
[43,{"$f":"Import!E36952","v":0},null,{"$f":"IFERROR(VLOOKUP(B54,'Schedule V(b)'!$B$11:$Z$315,3,0),0)","v":0},null,{"$f":"IFERROR(VLOOKUP(B54,'Schedule V(b)'!$B$11:$Z$315,7,0),0)","v":"Select"},null,{"$f":"IFERROR(VLOOKUP(B54,'Schedule V(b)'!$B$11:$Z$315,9,0),0)","v":0},null,{"$f":"IFERROR(VLOOKUP(B54,'Schedule V(b)'!$B$11:$Z$315,11,0),0)","v":"Select"},null,{"$f":"IFERROR(VLOOKUP(B54,'Schedule V(b)'!$B$11:$Z$315,13,0),0)","v":0},null,{"$f":"Import!E37052","v":"Select"},null,{"$f":"IFERROR(VLOOKUP(B54,'Schedule V(b)'!$B$11:$Z$315,17,0),0)","v":0},null,{"$f":"IFERROR(VLOOKUP(B54,'Schedule V(b)'!$B$11:$Z$315,25,0),0)","v":0},null,{"$f":"IFERROR(VLOOKUP(B54,'Schedule V(b)'!$B$11:$Z$315,23,0),0)","v":0},null,"0",null,0]
[44,{"$f":"Import!E36953","v":0},null,{"$f":"IFERROR(VLOOKUP(B55,'Schedule V(b)'!$B$11:$Z$315,3,0),0)","v":0},null,{"$f":"IFERROR(VLOOKUP(B55,'Schedule V(b)'!$B$11:$Z$315,7,0),0)","v":"Select"},null,{"$f":"IFERROR(VLOOKUP(B55,'Schedule V(b)'!$B$11:$Z$315,9,0),0)","v":0},null,{"$f":"IFERROR(VLOOKUP(B55,'Schedule V(b)'!$B$11:$Z$315,11,0),0)","v":"Select"},null,{"$f":"IFERROR(VLOOKUP(B55,'Schedule V(b)'!$B$11:$Z$315,13,0),0)","v":0},null,{"$f":"Import!E37053","v":"Select"},null,{"$f":"IFERROR(VLOOKUP(B55,'Schedule V(b)'!$B$11:$Z$315,17,0),0)","v":0},null,{"$f":"IFERROR(VLOOKUP(B55,'Schedule V(b)'!$B$11:$Z$315,25,0),0)","v":0},null,{"$f":"IFERROR(VLOOKUP(B55,'Schedule V(b)'!$B$11:$Z$315,23,0),0)","v":0},null,"0",null,0]
[45,{"$f":"Import!E36954","v":0},null,{"$f":"IFERROR(VLOOKUP(B56,'Schedule V(b)'!$B$11:$Z$315,3,0),0)","v":0},null,{"$f":"IFERROR(VLOOKUP(B56,'Schedule V(b)'!$B$11:$Z$315,7,0),0)","v":"Select"},null,{"$f":"IFERROR(VLOOKUP(B56,'Schedule V(b)'!$B$11:$Z$315,9,0),0)","v":0},null,{"$f":"IFERROR(VLOOKUP(B56,'Schedule V(b)'!$B$11:$Z$315,11,0),0)","v":"Select"},null,{"$f":"IFERROR(VLOOKUP(B56,'Schedule V(b)'!$B$11:$Z$315,13,0),0)","v":0},null,{"$f":"Import!E37054","v":"Select"},null,{"$f":"IFERROR(VLOOKUP(B56,'Schedule V(b)'!$B$11:$Z$315,17,0),0)","v":0},null,{"$f":"IFERROR(VLOOKUP(B56,'Schedule V(b)'!$B$11:$Z$315,25,0),0)","v":0},null,{"$f":"IFERROR(VLOOKUP(B56,'Schedule V(b)'!$B$11:$Z$315,23,0),0)","v":0},null,"0",null,0]
[46,{"$f":"Import!E36955","v":0},null,{"$f":"IFERROR(VLOOKUP(B57,'Schedule V(b)'!$B$11:$Z$315,3,0),0)","v":0},null,{"$f":"IFERROR(VLOOKUP(B57,'Schedule V(b)'!$B$11:$Z$315,7,0),0)","v":"Select"},null,{"$f":"IFERROR(VLOOKUP(B57,'Schedule V(b)'!$B$11:$Z$315,9,0),0)","v":0},null,{"$f":"IFERROR(VLOOKUP(B57,'Schedule V(b)'!$B$11:$Z$315,11,0),0)","v":"Select"},null,{"$f":"IFERROR(VLOOKUP(B57,'Schedule V(b)'!$B$11:$Z$315,13,0),0)","v":0},null,{"$f":"Import!E37055","v":"Select"},null,{"$f":"IFERROR(VLOOKUP(B57,'Schedule V(b)'!$B$11:$Z$315,17,0),0)","v":0},null,{"$f":"IFERROR(VLOOKUP(B57,'Schedule V(b)'!$B$11:$Z$315,25,0),0)","v":0},null,{"$f":"IFERROR(VLOOKUP(B57,'Schedule V(b)'!$B$11:$Z$315,23,0),0)","v":0},null,"0",null,0]
[47,{"$f":"Import!E36956","v":0},null,{"$f":"IFERROR(VLOOKUP(B58,'Schedule V(b)'!$B$11:$Z$315,3,0),0)","v":0},null,{"$f":"IFERROR(VLOOKUP(B58,'Schedule V(b)'!$B$11:$Z$315,7,0),0)","v":"Select"},null,{"$f":"IFERROR(VLOOKUP(B58,'Schedule V(b)'!$B$11:$Z$315,9,0),0)","v":0},null,{"$f":"IFERROR(VLOOKUP(B58,'Schedule V(b)'!$B$11:$Z$315,11,0),0)","v":"Select"},null,{"$f":"IFERROR(VLOOKUP(B58,'Schedule V(b)'!$B$11:$Z$315,13,0),0)","v":0},null,{"$f":"Import!E37056","v":"Select"},null,{"$f":"IFERROR(VLOOKUP(B58,'Schedule V(b)'!$B$11:$Z$315,17,0),0)","v":0},null,{"$f":"IFERROR(VLOOKUP(B58,'Schedule V(b)'!$B$11:$Z$315,25,0),0)","v":0},null,{"$f":"IFERROR(VLOOKUP(B58,'Schedule V(b)'!$B$11:$Z$315,23,0),0)","v":0},null,"0",null,0]
[48,{"$f":"Import!E36957","v":0},null,{"$f":"IFERROR(VLOOKUP(B59,'Schedule V(b)'!$B$11:$Z$315,3,0),0)","v":0},null,{"$f":"IFERROR(VLOOKUP(B59,'Schedule V(b)'!$B$11:$Z$315,7,0),0)","v":"Select"},null,{"$f":"IFERROR(VLOOKUP(B59,'Schedule V(b)'!$B$11:$Z$315,9,0),0)","v":0},null,{"$f":"IFERROR(VLOOKUP(B59,'Schedule V(b)'!$B$11:$Z$315,11,0),0)","v":"Select"},null,{"$f":"IFERROR(VLOOKUP(B59,'Schedule V(b)'!$B$11:$Z$315,13,0),0)","v":0},null,{"$f":"Import!E37057","v":"Select"},null,{"$f":"IFERROR(VLOOKUP(B59,'Schedule V(b)'!$B$11:$Z$315,17,0),0)","v":0},null,{"$f":"IFERROR(VLOOKUP(B59,'Schedule V(b)'!$B$11:$Z$315,25,0),0)","v":0},null,{"$f":"IFERROR(VLOOKUP(B59,'Schedule V(b)'!$B$11:$Z$315,23,0),0)","v":0},null,"0",null,0]
[49,{"$f":"Import!E36958","v":0},null,{"$f":"IFERROR(VLOOKUP(B60,'Schedule V(b)'!$B$11:$Z$315,3,0),0)","v":0},null,{"$f":"IFERROR(VLOOKUP(B60,'Schedule V(b)'!$B$11:$Z$315,7,0),0)","v":"Select"},null,{"$f":"IFERROR(VLOOKUP(B60,'Schedule V(b)'!$B$11:$Z$315,9,0),0)","v":0},null,{"$f":"IFERROR(VLOOKUP(B60,'Schedule V(b)'!$B$11:$Z$315,11,0),0)","v":"Select"},null,{"$f":"IFERROR(VLOOKUP(B60,'Schedule V(b)'!$B$11:$Z$315,13,0),0)","v":0},null,{"$f":"Import!E37058","v":"Select"},null,{"$f":"IFERROR(VLOOKUP(B60,'Schedule V(b)'!$B$11:$Z$315,17,0),0)","v":0},null,{"$f":"IFERROR(VLOOKUP(B60,'Schedule V(b)'!$B$11:$Z$315,25,0),0)","v":0},null,{"$f":"IFERROR(VLOOKUP(B60,'Schedule V(b)'!$B$11:$Z$315,23,0),0)","v":0},null,"0",null,0]
[50,{"$f":"Import!E36959","v":0},null,{"$f":"IFERROR(VLOOKUP(B61,'Schedule V(b)'!$B$11:$Z$315,3,0),0)","v":0},null,{"$f":"IFERROR(VLOOKUP(B61,'Schedule V(b)'!$B$11:$Z$315,7,0),0)","v":"Select"},null,{"$f":"IFERROR(VLOOKUP(B61,'Schedule V(b)'!$B$11:$Z$315,9,0),0)","v":0},null,{"$f":"IFERROR(VLOOKUP(B61,'Schedule V(b)'!$B$11:$Z$315,11,0),0)","v":"Select"},null,{"$f":"IFERROR(VLOOKUP(B61,'Schedule V(b)'!$B$11:$Z$315,13,0),0)","v":0},null,{"$f":"Import!E37059","v":"Select"},null,{"$f":"IFERROR(VLOOKUP(B61,'Schedule V(b)'!$B$11:$Z$315,17,0),0)","v":0},null,{"$f":"IFERROR(VLOOKUP(B61,'Schedule V(b)'!$B$11:$Z$315,25,0),0)","v":0},null,{"$f":"IFERROR(VLOOKUP(B61,'Schedule V(b)'!$B$11:$Z$315,23,0),0)","v":0},null,"0",null,0]
[51,{"$f":"Import!E36960","v":0},null,{"$f":"IFERROR(VLOOKUP(B62,'Schedule V(b)'!$B$11:$Z$315,3,0),0)","v":0},null,{"$f":"IFERROR(VLOOKUP(B62,'Schedule V(b)'!$B$11:$Z$315,7,0),0)","v":"Select"},null,{"$f":"IFERROR(VLOOKUP(B62,'Schedule V(b)'!$B$11:$Z$315,9,0),0)","v":0},null,{"$f":"IFERROR(VLOOKUP(B62,'Schedule V(b)'!$B$11:$Z$315,11,0),0)","v":"Select"},null,{"$f":"IFERROR(VLOOKUP(B62,'Schedule V(b)'!$B$11:$Z$315,13,0),0)","v":0},null,{"$f":"Import!E37060","v":"Select"},null,{"$f":"IFERROR(VLOOKUP(B62,'Schedule V(b)'!$B$11:$Z$315,17,0),0)","v":0},null,{"$f":"IFERROR(VLOOKUP(B62,'Schedule V(b)'!$B$11:$Z$315,25,0),0)","v":0},null,{"$f":"IFERROR(VLOOKUP(B62,'Schedule V(b)'!$B$11:$Z$315,23,0),0)","v":0},null,"0",null,0]
[52,{"$f":"Import!E36961","v":0},null,{"$f":"IFERROR(VLOOKUP(B63,'Schedule V(b)'!$B$11:$Z$315,3,0),0)","v":0},null,{"$f":"IFERROR(VLOOKUP(B63,'Schedule V(b)'!$B$11:$Z$315,7,0),0)","v":"Select"},null,{"$f":"IFERROR(VLOOKUP(B63,'Schedule V(b)'!$B$11:$Z$315,9,0),0)","v":0},null,{"$f":"IFERROR(VLOOKUP(B63,'Schedule V(b)'!$B$11:$Z$315,11,0),0)","v":"Select"},null,{"$f":"IFERROR(VLOOKUP(B63,'Schedule V(b)'!$B$11:$Z$315,13,0),0)","v":0},null,{"$f":"Import!E37061","v":"Select"},null,{"$f":"IFERROR(VLOOKUP(B63,'Schedule V(b)'!$B$11:$Z$315,17,0),0)","v":0},null,{"$f":"IFERROR(VLOOKUP(B63,'Schedule V(b)'!$B$11:$Z$315,25,0),0)","v":0},null,{"$f":"IFERROR(VLOOKUP(B63,'Schedule V(b)'!$B$11:$Z$315,23,0),0)","v":0},null,"0",null,0]
[53,{"$f":"Import!E36962","v":0},null,{"$f":"IFERROR(VLOOKUP(B64,'Schedule V(b)'!$B$11:$Z$315,3,0),0)","v":0},null,{"$f":"IFERROR(VLOOKUP(B64,'Schedule V(b)'!$B$11:$Z$315,7,0),0)","v":"Select"},null,{"$f":"IFERROR(VLOOKUP(B64,'Schedule V(b)'!$B$11:$Z$315,9,0),0)","v":0},null,{"$f":"IFERROR(VLOOKUP(B64,'Schedule V(b)'!$B$11:$Z$315,11,0),0)","v":"Select"},null,{"$f":"IFERROR(VLOOKUP(B64,'Schedule V(b)'!$B$11:$Z$315,13,0),0)","v":0},null,{"$f":"Import!E37062","v":"Select"},null,{"$f":"IFERROR(VLOOKUP(B64,'Schedule V(b)'!$B$11:$Z$315,17,0),0)","v":0},null,{"$f":"IFERROR(VLOOKUP(B64,'Schedule V(b)'!$B$11:$Z$315,25,0),0)","v":0},null,{"$f":"IFERROR(VLOOKUP(B64,'Schedule V(b)'!$B$11:$Z$315,23,0),0)","v":0},null,"0",null,0]
[54,{"$f":"Import!E36963","v":0},null,{"$f":"IFERROR(VLOOKUP(B65,'Schedule V(b)'!$B$11:$Z$315,3,0),0)","v":0},null,{"$f":"IFERROR(VLOOKUP(B65,'Schedule V(b)'!$B$11:$Z$315,7,0),0)","v":"Select"},null,{"$f":"IFERROR(VLOOKUP(B65,'Schedule V(b)'!$B$11:$Z$315,9,0),0)","v":0},null,{"$f":"IFERROR(VLOOKUP(B65,'Schedule V(b)'!$B$11:$Z$315,11,0),0)","v":"Select"},null,{"$f":"IFERROR(VLOOKUP(B65,'Schedule V(b)'!$B$11:$Z$315,13,0),0)","v":0},null,{"$f":"Import!E37063","v":"Select"},null,{"$f":"IFERROR(VLOOKUP(B65,'Schedule V(b)'!$B$11:$Z$315,17,0),0)","v":0},null,{"$f":"IFERROR(VLOOKUP(B65,'Schedule V(b)'!$B$11:$Z$315,25,0),0)","v":0},null,{"$f":"IFERROR(VLOOKUP(B65,'Schedule V(b)'!$B$11:$Z$315,23,0),0)","v":0},null,"0",null,0]
[55,{"$f":"Import!E36964","v":0},null,{"$f":"IFERROR(VLOOKUP(B66,'Schedule V(b)'!$B$11:$Z$315,3,0),0)","v":0},null,{"$f":"IFERROR(VLOOKUP(B66,'Schedule V(b)'!$B$11:$Z$315,7,0),0)","v":"Select"},null,{"$f":"IFERROR(VLOOKUP(B66,'Schedule V(b)'!$B$11:$Z$315,9,0),0)","v":0},null,{"$f":"IFERROR(VLOOKUP(B66,'Schedule V(b)'!$B$11:$Z$315,11,0),0)","v":"Select"},null,{"$f":"IFERROR(VLOOKUP(B66,'Schedule V(b)'!$B$11:$Z$315,13,0),0)","v":0},null,{"$f":"Import!E37064","v":"Select"},null,{"$f":"IFERROR(VLOOKUP(B66,'Schedule V(b)'!$B$11:$Z$315,17,0),0)","v":0},null,{"$f":"IFERROR(VLOOKUP(B66,'Schedule V(b)'!$B$11:$Z$315,25,0),0)","v":0},null,{"$f":"IFERROR(VLOOKUP(B66,'Schedule V(b)'!$B$11:$Z$315,23,0),0)","v":0},null,"0",null,0]
[56,{"$f":"Import!E36965","v":0},null,{"$f":"IFERROR(VLOOKUP(B67,'Schedule V(b)'!$B$11:$Z$315,3,0),0)","v":0},null,{"$f":"IFERROR(VLOOKUP(B67,'Schedule V(b)'!$B$11:$Z$315,7,0),0)","v":"Select"},null,{"$f":"IFERROR(VLOOKUP(B67,'Schedule V(b)'!$B$11:$Z$315,9,0),0)","v":0},null,{"$f":"IFERROR(VLOOKUP(B67,'Schedule V(b)'!$B$11:$Z$315,11,0),0)","v":"Select"},null,{"$f":"IFERROR(VLOOKUP(B67,'Schedule V(b)'!$B$11:$Z$315,13,0),0)","v":0},null,{"$f":"Import!E37065","v":"Select"},null,{"$f":"IFERROR(VLOOKUP(B67,'Schedule V(b)'!$B$11:$Z$315,17,0),0)","v":0},null,{"$f":"IFERROR(VLOOKUP(B67,'Schedule V(b)'!$B$11:$Z$315,25,0),0)","v":0},null,{"$f":"IFERROR(VLOOKUP(B67,'Schedule V(b)'!$B$11:$Z$315,23,0),0)","v":0},null,"0",null,0]
[57,{"$f":"Import!E36966","v":0},null,{"$f":"IFERROR(VLOOKUP(B68,'Schedule V(b)'!$B$11:$Z$315,3,0),0)","v":0},null,{"$f":"IFERROR(VLOOKUP(B68,'Schedule V(b)'!$B$11:$Z$315,7,0),0)","v":"Select"},null,{"$f":"IFERROR(VLOOKUP(B68,'Schedule V(b)'!$B$11:$Z$315,9,0),0)","v":0},null,{"$f":"IFERROR(VLOOKUP(B68,'Schedule V(b)'!$B$11:$Z$315,11,0),0)","v":"Select"},null,{"$f":"IFERROR(VLOOKUP(B68,'Schedule V(b)'!$B$11:$Z$315,13,0),0)","v":0},null,{"$f":"Import!E37066","v":"Select"},null,{"$f":"IFERROR(VLOOKUP(B68,'Schedule V(b)'!$B$11:$Z$315,17,0),0)","v":0},null,{"$f":"IFERROR(VLOOKUP(B68,'Schedule V(b)'!$B$11:$Z$315,25,0),0)","v":0},null,{"$f":"IFERROR(VLOOKUP(B68,'Schedule V(b)'!$B$11:$Z$315,23,0),0)","v":0},null,"0",null,0]
[58,{"$f":"Import!E36967","v":0},null,{"$f":"IFERROR(VLOOKUP(B69,'Schedule V(b)'!$B$11:$Z$315,3,0),0)","v":0},null,{"$f":"IFERROR(VLOOKUP(B69,'Schedule V(b)'!$B$11:$Z$315,7,0),0)","v":"Select"},null,{"$f":"IFERROR(VLOOKUP(B69,'Schedule V(b)'!$B$11:$Z$315,9,0),0)","v":0},null,{"$f":"IFERROR(VLOOKUP(B69,'Schedule V(b)'!$B$11:$Z$315,11,0),0)","v":"Select"},null,{"$f":"IFERROR(VLOOKUP(B69,'Schedule V(b)'!$B$11:$Z$315,13,0),0)","v":0},null,{"$f":"Import!E37067","v":"Select"},null,{"$f":"IFERROR(VLOOKUP(B69,'Schedule V(b)'!$B$11:$Z$315,17,0),0)","v":0},null,{"$f":"IFERROR(VLOOKUP(B69,'Schedule V(b)'!$B$11:$Z$315,25,0),0)","v":0},null,{"$f":"IFERROR(VLOOKUP(B69,'Schedule V(b)'!$B$11:$Z$315,23,0),0)","v":0},null,"0",null,0]
[59,{"$f":"Import!E36968","v":0},null,{"$f":"IFERROR(VLOOKUP(B70,'Schedule V(b)'!$B$11:$Z$315,3,0),0)","v":0},null,{"$f":"IFERROR(VLOOKUP(B70,'Schedule V(b)'!$B$11:$Z$315,7,0),0)","v":"Select"},null,{"$f":"IFERROR(VLOOKUP(B70,'Schedule V(b)'!$B$11:$Z$315,9,0),0)","v":0},null,{"$f":"IFERROR(VLOOKUP(B70,'Schedule V(b)'!$B$11:$Z$315,11,0),0)","v":"Select"},null,{"$f":"IFERROR(VLOOKUP(B70,'Schedule V(b)'!$B$11:$Z$315,13,0),0)","v":0},null,{"$f":"Import!E37068","v":"Select"},null,{"$f":"IFERROR(VLOOKUP(B70,'Schedule V(b)'!$B$11:$Z$315,17,0),0)","v":0},null,{"$f":"IFERROR(VLOOKUP(B70,'Schedule V(b)'!$B$11:$Z$315,25,0),0)","v":0},null,{"$f":"IFERROR(VLOOKUP(B70,'Schedule V(b)'!$B$11:$Z$315,23,0),0)","v":0},null,"0",null,0]
[60,{"$f":"Import!E36969","v":0},null,{"$f":"IFERROR(VLOOKUP(B71,'Schedule V(b)'!$B$11:$Z$315,3,0),0)","v":0},null,{"$f":"IFERROR(VLOOKUP(B71,'Schedule V(b)'!$B$11:$Z$315,7,0),0)","v":"Select"},null,{"$f":"IFERROR(VLOOKUP(B71,'Schedule V(b)'!$B$11:$Z$315,9,0),0)","v":0},null,{"$f":"IFERROR(VLOOKUP(B71,'Schedule V(b)'!$B$11:$Z$315,11,0),0)","v":"Select"},null,{"$f":"IFERROR(VLOOKUP(B71,'Schedule V(b)'!$B$11:$Z$315,13,0),0)","v":0},null,{"$f":"Import!E37069","v":"Select"},null,{"$f":"IFERROR(VLOOKUP(B71,'Schedule V(b)'!$B$11:$Z$315,17,0),0)","v":0},null,{"$f":"IFERROR(VLOOKUP(B71,'Schedule V(b)'!$B$11:$Z$315,25,0),0)","v":0},null,{"$f":"IFERROR(VLOOKUP(B71,'Schedule V(b)'!$B$11:$Z$315,23,0),0)","v":0},null,"0",null,0]
[61,{"$f":"Import!E36970","v":0},null,{"$f":"IFERROR(VLOOKUP(B72,'Schedule V(b)'!$B$11:$Z$315,3,0),0)","v":0},null,{"$f":"IFERROR(VLOOKUP(B72,'Schedule V(b)'!$B$11:$Z$315,7,0),0)","v":"Select"},null,{"$f":"IFERROR(VLOOKUP(B72,'Schedule V(b)'!$B$11:$Z$315,9,0),0)","v":0},null,{"$f":"IFERROR(VLOOKUP(B72,'Schedule V(b)'!$B$11:$Z$315,11,0),0)","v":"Select"},null,{"$f":"IFERROR(VLOOKUP(B72,'Schedule V(b)'!$B$11:$Z$315,13,0),0)","v":0},null,{"$f":"Import!E37070","v":"Select"},null,{"$f":"IFERROR(VLOOKUP(B72,'Schedule V(b)'!$B$11:$Z$315,17,0),0)","v":0},null,{"$f":"IFERROR(VLOOKUP(B72,'Schedule V(b)'!$B$11:$Z$315,25,0),0)","v":0},null,{"$f":"IFERROR(VLOOKUP(B72,'Schedule V(b)'!$B$11:$Z$315,23,0),0)","v":0},null,"0",null,0]
[62,{"$f":"Import!E36971","v":0},null,{"$f":"IFERROR(VLOOKUP(B73,'Schedule V(b)'!$B$11:$Z$315,3,0),0)","v":0},null,{"$f":"IFERROR(VLOOKUP(B73,'Schedule V(b)'!$B$11:$Z$315,7,0),0)","v":"Select"},null,{"$f":"IFERROR(VLOOKUP(B73,'Schedule V(b)'!$B$11:$Z$315,9,0),0)","v":0},null,{"$f":"IFERROR(VLOOKUP(B73,'Schedule V(b)'!$B$11:$Z$315,11,0),0)","v":"Select"},null,{"$f":"IFERROR(VLOOKUP(B73,'Schedule V(b)'!$B$11:$Z$315,13,0),0)","v":0},null,{"$f":"Import!E37071","v":"Select"},null,{"$f":"IFERROR(VLOOKUP(B73,'Schedule V(b)'!$B$11:$Z$315,17,0),0)","v":0},null,{"$f":"IFERROR(VLOOKUP(B73,'Schedule V(b)'!$B$11:$Z$315,25,0),0)","v":0},null,{"$f":"IFERROR(VLOOKUP(B73,'Schedule V(b)'!$B$11:$Z$315,23,0),0)","v":0},null,"0",null,0]
[63,{"$f":"Import!E36972","v":0},null,{"$f":"IFERROR(VLOOKUP(B74,'Schedule V(b)'!$B$11:$Z$315,3,0),0)","v":0},null,{"$f":"IFERROR(VLOOKUP(B74,'Schedule V(b)'!$B$11:$Z$315,7,0),0)","v":"Select"},null,{"$f":"IFERROR(VLOOKUP(B74,'Schedule V(b)'!$B$11:$Z$315,9,0),0)","v":0},null,{"$f":"IFERROR(VLOOKUP(B74,'Schedule V(b)'!$B$11:$Z$315,11,0),0)","v":"Select"},null,{"$f":"IFERROR(VLOOKUP(B74,'Schedule V(b)'!$B$11:$Z$315,13,0),0)","v":0},null,{"$f":"Import!E37072","v":"Select"},null,{"$f":"IFERROR(VLOOKUP(B74,'Schedule V(b)'!$B$11:$Z$315,17,0),0)","v":0},null,{"$f":"IFERROR(VLOOKUP(B74,'Schedule V(b)'!$B$11:$Z$315,25,0),0)","v":0},null,{"$f":"IFERROR(VLOOKUP(B74,'Schedule V(b)'!$B$11:$Z$315,23,0),0)","v":0},null,"0",null,0]
[64,{"$f":"Import!E36973","v":0},null,{"$f":"IFERROR(VLOOKUP(B75,'Schedule V(b)'!$B$11:$Z$315,3,0),0)","v":0},null,{"$f":"IFERROR(VLOOKUP(B75,'Schedule V(b)'!$B$11:$Z$315,7,0),0)","v":"Select"},null,{"$f":"IFERROR(VLOOKUP(B75,'Schedule V(b)'!$B$11:$Z$315,9,0),0)","v":0},null,{"$f":"IFERROR(VLOOKUP(B75,'Schedule V(b)'!$B$11:$Z$315,11,0),0)","v":"Select"},null,{"$f":"IFERROR(VLOOKUP(B75,'Schedule V(b)'!$B$11:$Z$315,13,0),0)","v":0},null,{"$f":"Import!E37073","v":"Select"},null,{"$f":"IFERROR(VLOOKUP(B75,'Schedule V(b)'!$B$11:$Z$315,17,0),0)","v":0},null,{"$f":"IFERROR(VLOOKUP(B75,'Schedule V(b)'!$B$11:$Z$315,25,0),0)","v":0},null,{"$f":"IFERROR(VLOOKUP(B75,'Schedule V(b)'!$B$11:$Z$315,23,0),0)","v":0},null,"0",null,0]
[65,{"$f":"Import!E36974","v":0},null,{"$f":"IFERROR(VLOOKUP(B76,'Schedule V(b)'!$B$11:$Z$315,3,0),0)","v":0},null,{"$f":"IFERROR(VLOOKUP(B76,'Schedule V(b)'!$B$11:$Z$315,7,0),0)","v":"Select"},null,{"$f":"IFERROR(VLOOKUP(B76,'Schedule V(b)'!$B$11:$Z$315,9,0),0)","v":0},null,{"$f":"IFERROR(VLOOKUP(B76,'Schedule V(b)'!$B$11:$Z$315,11,0),0)","v":"Select"},null,{"$f":"IFERROR(VLOOKUP(B76,'Schedule V(b)'!$B$11:$Z$315,13,0),0)","v":0},null,{"$f":"Import!E37074","v":"Select"},null,{"$f":"IFERROR(VLOOKUP(B76,'Schedule V(b)'!$B$11:$Z$315,17,0),0)","v":0},null,{"$f":"IFERROR(VLOOKUP(B76,'Schedule V(b)'!$B$11:$Z$315,25,0),0)","v":0},null,{"$f":"IFERROR(VLOOKUP(B76,'Schedule V(b)'!$B$11:$Z$315,23,0),0)","v":0},null,{"$f":"IF(N76=\"unregulated entities that conduct ancillary services \",\"0%\",IF(N76=\"Unregulated non-financial operating entities\",\"15%\",IF(N76=\"unregulated financial operating entities\",\"50%\",\"0\")))","v":"0"},null,{"$f":"P76*T76*V76","v":0}]
[66,{"$f":"Import!E36975","v":0},null,{"$f":"IFERROR(VLOOKUP(B77,'Schedule V(b)'!$B$11:$Z$315,3,0),0)","v":0},null,{"$f":"IFERROR(VLOOKUP(B77,'Schedule V(b)'!$B$11:$Z$315,7,0),0)","v":"Select"},null,{"$f":"IFERROR(VLOOKUP(B77,'Schedule V(b)'!$B$11:$Z$315,9,0),0)","v":0},null,{"$f":"IFERROR(VLOOKUP(B77,'Schedule V(b)'!$B$11:$Z$315,11,0),0)","v":"Select"},null,{"$f":"IFERROR(VLOOKUP(B77,'Schedule V(b)'!$B$11:$Z$315,13,0),0)","v":0},null,{"$f":"Import!E37075","v":"Select"},null,{"$f":"IFERROR(VLOOKUP(B77,'Schedule V(b)'!$B$11:$Z$315,17,0),0)","v":0},null,{"$f":"IFERROR(VLOOKUP(B77,'Schedule V(b)'!$B$11:$Z$315,25,0),0)","v":0},null,{"$f":"IFERROR(VLOOKUP(B77,'Schedule V(b)'!$B$11:$Z$315,23,0),0)","v":0},null,"0",null,0]
[67,{"$f":"Import!E36976","v":0},null,{"$f":"IFERROR(VLOOKUP(B78,'Schedule V(b)'!$B$11:$Z$315,3,0),0)","v":0},null,{"$f":"IFERROR(VLOOKUP(B78,'Schedule V(b)'!$B$11:$Z$315,7,0),0)","v":"Select"},null,{"$f":"IFERROR(VLOOKUP(B78,'Schedule V(b)'!$B$11:$Z$315,9,0),0)","v":0},null,{"$f":"IFERROR(VLOOKUP(B78,'Schedule V(b)'!$B$11:$Z$315,11,0),0)","v":"Select"},null,{"$f":"IFERROR(VLOOKUP(B78,'Schedule V(b)'!$B$11:$Z$315,13,0),0)","v":0},null,{"$f":"Import!E37076","v":"Select"},null,{"$f":"IFERROR(VLOOKUP(B78,'Schedule V(b)'!$B$11:$Z$315,17,0),0)","v":0},null,{"$f":"IFERROR(VLOOKUP(B78,'Schedule V(b)'!$B$11:$Z$315,25,0),0)","v":0},null,{"$f":"IFERROR(VLOOKUP(B78,'Schedule V(b)'!$B$11:$Z$315,23,0),0)","v":0},null,"0",null,0]
[68,{"$f":"Import!E36977","v":0},null,{"$f":"IFERROR(VLOOKUP(B79,'Schedule V(b)'!$B$11:$Z$315,3,0),0)","v":0},null,{"$f":"IFERROR(VLOOKUP(B79,'Schedule V(b)'!$B$11:$Z$315,7,0),0)","v":"Select"},null,{"$f":"IFERROR(VLOOKUP(B79,'Schedule V(b)'!$B$11:$Z$315,9,0),0)","v":0},null,{"$f":"IFERROR(VLOOKUP(B79,'Schedule V(b)'!$B$11:$Z$315,11,0),0)","v":"Select"},null,{"$f":"IFERROR(VLOOKUP(B79,'Schedule V(b)'!$B$11:$Z$315,13,0),0)","v":0},null,{"$f":"Import!E37077","v":"Select"},null,{"$f":"IFERROR(VLOOKUP(B79,'Schedule V(b)'!$B$11:$Z$315,17,0),0)","v":0},null,{"$f":"IFERROR(VLOOKUP(B79,'Schedule V(b)'!$B$11:$Z$315,25,0),0)","v":0},null,{"$f":"IFERROR(VLOOKUP(B79,'Schedule V(b)'!$B$11:$Z$315,23,0),0)","v":0},null,"0",null,0]
[69,{"$f":"Import!E36978","v":0},null,{"$f":"IFERROR(VLOOKUP(B80,'Schedule V(b)'!$B$11:$Z$315,3,0),0)","v":0},null,{"$f":"IFERROR(VLOOKUP(B80,'Schedule V(b)'!$B$11:$Z$315,7,0),0)","v":"Select"},null,{"$f":"IFERROR(VLOOKUP(B80,'Schedule V(b)'!$B$11:$Z$315,9,0),0)","v":0},null,{"$f":"IFERROR(VLOOKUP(B80,'Schedule V(b)'!$B$11:$Z$315,11,0),0)","v":"Select"},null,{"$f":"IFERROR(VLOOKUP(B80,'Schedule V(b)'!$B$11:$Z$315,13,0),0)","v":0},null,{"$f":"Import!E37078","v":"Select"},null,{"$f":"IFERROR(VLOOKUP(B80,'Schedule V(b)'!$B$11:$Z$315,17,0),0)","v":0},null,{"$f":"IFERROR(VLOOKUP(B80,'Schedule V(b)'!$B$11:$Z$315,25,0),0)","v":0},null,{"$f":"IFERROR(VLOOKUP(B80,'Schedule V(b)'!$B$11:$Z$315,23,0),0)","v":0},null,"0",null,0]
[70,{"$f":"Import!E36979","v":0},null,{"$f":"IFERROR(VLOOKUP(B81,'Schedule V(b)'!$B$11:$Z$315,3,0),0)","v":0},null,{"$f":"IFERROR(VLOOKUP(B81,'Schedule V(b)'!$B$11:$Z$315,7,0),0)","v":"Select"},null,{"$f":"IFERROR(VLOOKUP(B81,'Schedule V(b)'!$B$11:$Z$315,9,0),0)","v":0},null,{"$f":"IFERROR(VLOOKUP(B81,'Schedule V(b)'!$B$11:$Z$315,11,0),0)","v":"Select"},null,{"$f":"IFERROR(VLOOKUP(B81,'Schedule V(b)'!$B$11:$Z$315,13,0),0)","v":0},null,{"$f":"Import!E37079","v":"Select"},null,{"$f":"IFERROR(VLOOKUP(B81,'Schedule V(b)'!$B$11:$Z$315,17,0),0)","v":0},null,{"$f":"IFERROR(VLOOKUP(B81,'Schedule V(b)'!$B$11:$Z$315,25,0),0)","v":0},null,{"$f":"IFERROR(VLOOKUP(B81,'Schedule V(b)'!$B$11:$Z$315,23,0),0)","v":0},null,"0",null,0]
[71,{"$f":"Import!E36980","v":0},null,{"$f":"IFERROR(VLOOKUP(B82,'Schedule V(b)'!$B$11:$Z$315,3,0),0)","v":0},null,{"$f":"IFERROR(VLOOKUP(B82,'Schedule V(b)'!$B$11:$Z$315,7,0),0)","v":"Select"},null,{"$f":"IFERROR(VLOOKUP(B82,'Schedule V(b)'!$B$11:$Z$315,9,0),0)","v":0},null,{"$f":"IFERROR(VLOOKUP(B82,'Schedule V(b)'!$B$11:$Z$315,11,0),0)","v":"Select"},null,{"$f":"IFERROR(VLOOKUP(B82,'Schedule V(b)'!$B$11:$Z$315,13,0),0)","v":0},null,{"$f":"Import!E37080","v":"Select"},null,{"$f":"IFERROR(VLOOKUP(B82,'Schedule V(b)'!$B$11:$Z$315,17,0),0)","v":0},null,{"$f":"IFERROR(VLOOKUP(B82,'Schedule V(b)'!$B$11:$Z$315,25,0),0)","v":0},null,{"$f":"IFERROR(VLOOKUP(B82,'Schedule V(b)'!$B$11:$Z$315,23,0),0)","v":0},null,"0",null,0]
[72,{"$f":"Import!E36981","v":0},null,{"$f":"IFERROR(VLOOKUP(B83,'Schedule V(b)'!$B$11:$Z$315,3,0),0)","v":0},null,{"$f":"IFERROR(VLOOKUP(B83,'Schedule V(b)'!$B$11:$Z$315,7,0),0)","v":"Select"},null,{"$f":"IFERROR(VLOOKUP(B83,'Schedule V(b)'!$B$11:$Z$315,9,0),0)","v":0},null,{"$f":"IFERROR(VLOOKUP(B83,'Schedule V(b)'!$B$11:$Z$315,11,0),0)","v":"Select"},null,{"$f":"IFERROR(VLOOKUP(B83,'Schedule V(b)'!$B$11:$Z$315,13,0),0)","v":0},null,{"$f":"Import!E37081","v":"Select"},null,{"$f":"IFERROR(VLOOKUP(B83,'Schedule V(b)'!$B$11:$Z$315,17,0),0)","v":0},null,{"$f":"IFERROR(VLOOKUP(B83,'Schedule V(b)'!$B$11:$Z$315,25,0),0)","v":0},null,{"$f":"IFERROR(VLOOKUP(B83,'Schedule V(b)'!$B$11:$Z$315,23,0),0)","v":0},null,"0",null,0]
[73,{"$f":"Import!E36982","v":0},null,{"$f":"IFERROR(VLOOKUP(B84,'Schedule V(b)'!$B$11:$Z$315,3,0),0)","v":0},null,{"$f":"IFERROR(VLOOKUP(B84,'Schedule V(b)'!$B$11:$Z$315,7,0),0)","v":"Select"},null,{"$f":"IFERROR(VLOOKUP(B84,'Schedule V(b)'!$B$11:$Z$315,9,0),0)","v":0},null,{"$f":"IFERROR(VLOOKUP(B84,'Schedule V(b)'!$B$11:$Z$315,11,0),0)","v":"Select"},null,{"$f":"IFERROR(VLOOKUP(B84,'Schedule V(b)'!$B$11:$Z$315,13,0),0)","v":0},null,{"$f":"Import!E37082","v":"Select"},null,{"$f":"IFERROR(VLOOKUP(B84,'Schedule V(b)'!$B$11:$Z$315,17,0),0)","v":0},null,{"$f":"IFERROR(VLOOKUP(B84,'Schedule V(b)'!$B$11:$Z$315,25,0),0)","v":0},null,{"$f":"IFERROR(VLOOKUP(B84,'Schedule V(b)'!$B$11:$Z$315,23,0),0)","v":0},null,"0",null,0]
[74,{"$f":"Import!E36983","v":0},null,{"$f":"IFERROR(VLOOKUP(B85,'Schedule V(b)'!$B$11:$Z$315,3,0),0)","v":0},null,{"$f":"IFERROR(VLOOKUP(B85,'Schedule V(b)'!$B$11:$Z$315,7,0),0)","v":"Select"},null,{"$f":"IFERROR(VLOOKUP(B85,'Schedule V(b)'!$B$11:$Z$315,9,0),0)","v":0},null,{"$f":"IFERROR(VLOOKUP(B85,'Schedule V(b)'!$B$11:$Z$315,11,0),0)","v":"Select"},null,{"$f":"IFERROR(VLOOKUP(B85,'Schedule V(b)'!$B$11:$Z$315,13,0),0)","v":0},null,{"$f":"Import!E37083","v":"Select"},null,{"$f":"IFERROR(VLOOKUP(B85,'Schedule V(b)'!$B$11:$Z$315,17,0),0)","v":0},null,{"$f":"IFERROR(VLOOKUP(B85,'Schedule V(b)'!$B$11:$Z$315,25,0),0)","v":0},null,{"$f":"IFERROR(VLOOKUP(B85,'Schedule V(b)'!$B$11:$Z$315,23,0),0)","v":0},null,"0",null,0]
[75,{"$f":"Import!E36984","v":0},null,{"$f":"IFERROR(VLOOKUP(B86,'Schedule V(b)'!$B$11:$Z$315,3,0),0)","v":0},null,{"$f":"IFERROR(VLOOKUP(B86,'Schedule V(b)'!$B$11:$Z$315,7,0),0)","v":"Select"},null,{"$f":"IFERROR(VLOOKUP(B86,'Schedule V(b)'!$B$11:$Z$315,9,0),0)","v":0},null,{"$f":"IFERROR(VLOOKUP(B86,'Schedule V(b)'!$B$11:$Z$315,11,0),0)","v":"Select"},null,{"$f":"IFERROR(VLOOKUP(B86,'Schedule V(b)'!$B$11:$Z$315,13,0),0)","v":0},null,{"$f":"Import!E37084","v":"Select"},null,{"$f":"IFERROR(VLOOKUP(B86,'Schedule V(b)'!$B$11:$Z$315,17,0),0)","v":0},null,{"$f":"IFERROR(VLOOKUP(B86,'Schedule V(b)'!$B$11:$Z$315,25,0),0)","v":0},null,{"$f":"IFERROR(VLOOKUP(B86,'Schedule V(b)'!$B$11:$Z$315,23,0),0)","v":0},null,"0",null,0]
[76,{"$f":"Import!E36985","v":0},null,{"$f":"IFERROR(VLOOKUP(B87,'Schedule V(b)'!$B$11:$Z$315,3,0),0)","v":0},null,{"$f":"IFERROR(VLOOKUP(B87,'Schedule V(b)'!$B$11:$Z$315,7,0),0)","v":"Select"},null,{"$f":"IFERROR(VLOOKUP(B87,'Schedule V(b)'!$B$11:$Z$315,9,0),0)","v":0},null,{"$f":"IFERROR(VLOOKUP(B87,'Schedule V(b)'!$B$11:$Z$315,11,0),0)","v":"Select"},null,{"$f":"IFERROR(VLOOKUP(B87,'Schedule V(b)'!$B$11:$Z$315,13,0),0)","v":0},null,{"$f":"Import!E37085","v":"Select"},null,{"$f":"IFERROR(VLOOKUP(B87,'Schedule V(b)'!$B$11:$Z$315,17,0),0)","v":0},null,{"$f":"IFERROR(VLOOKUP(B87,'Schedule V(b)'!$B$11:$Z$315,25,0),0)","v":0},null,{"$f":"IFERROR(VLOOKUP(B87,'Schedule V(b)'!$B$11:$Z$315,23,0),0)","v":0},null,"0",null,0]
[77,{"$f":"Import!E36986","v":0},null,{"$f":"IFERROR(VLOOKUP(B88,'Schedule V(b)'!$B$11:$Z$315,3,0),0)","v":0},null,{"$f":"IFERROR(VLOOKUP(B88,'Schedule V(b)'!$B$11:$Z$315,7,0),0)","v":"Select"},null,{"$f":"IFERROR(VLOOKUP(B88,'Schedule V(b)'!$B$11:$Z$315,9,0),0)","v":0},null,{"$f":"IFERROR(VLOOKUP(B88,'Schedule V(b)'!$B$11:$Z$315,11,0),0)","v":"Select"},null,{"$f":"IFERROR(VLOOKUP(B88,'Schedule V(b)'!$B$11:$Z$315,13,0),0)","v":0},null,{"$f":"Import!E37086","v":"Select"},null,{"$f":"IFERROR(VLOOKUP(B88,'Schedule V(b)'!$B$11:$Z$315,17,0),0)","v":0},null,{"$f":"IFERROR(VLOOKUP(B88,'Schedule V(b)'!$B$11:$Z$315,25,0),0)","v":0},null,{"$f":"IFERROR(VLOOKUP(B88,'Schedule V(b)'!$B$11:$Z$315,23,0),0)","v":0},null,"0",null,0]
[78,{"$f":"Import!E36987","v":0},null,{"$f":"IFERROR(VLOOKUP(B89,'Schedule V(b)'!$B$11:$Z$315,3,0),0)","v":0},null,{"$f":"IFERROR(VLOOKUP(B89,'Schedule V(b)'!$B$11:$Z$315,7,0),0)","v":"Select"},null,{"$f":"IFERROR(VLOOKUP(B89,'Schedule V(b)'!$B$11:$Z$315,9,0),0)","v":0},null,{"$f":"IFERROR(VLOOKUP(B89,'Schedule V(b)'!$B$11:$Z$315,11,0),0)","v":"Select"},null,{"$f":"IFERROR(VLOOKUP(B89,'Schedule V(b)'!$B$11:$Z$315,13,0),0)","v":0},null,{"$f":"Import!E37087","v":"Select"},null,{"$f":"IFERROR(VLOOKUP(B89,'Schedule V(b)'!$B$11:$Z$315,17,0),0)","v":0},null,{"$f":"IFERROR(VLOOKUP(B89,'Schedule V(b)'!$B$11:$Z$315,25,0),0)","v":0},null,{"$f":"IFERROR(VLOOKUP(B89,'Schedule V(b)'!$B$11:$Z$315,23,0),0)","v":0},null,"0",null,0]
[79,{"$f":"Import!E36988","v":0},null,{"$f":"IFERROR(VLOOKUP(B90,'Schedule V(b)'!$B$11:$Z$315,3,0),0)","v":0},null,{"$f":"IFERROR(VLOOKUP(B90,'Schedule V(b)'!$B$11:$Z$315,7,0),0)","v":"Select"},null,{"$f":"IFERROR(VLOOKUP(B90,'Schedule V(b)'!$B$11:$Z$315,9,0),0)","v":0},null,{"$f":"IFERROR(VLOOKUP(B90,'Schedule V(b)'!$B$11:$Z$315,11,0),0)","v":"Select"},null,{"$f":"IFERROR(VLOOKUP(B90,'Schedule V(b)'!$B$11:$Z$315,13,0),0)","v":0},null,{"$f":"Import!E37088","v":"Select"},null,{"$f":"IFERROR(VLOOKUP(B90,'Schedule V(b)'!$B$11:$Z$315,17,0),0)","v":0},null,{"$f":"IFERROR(VLOOKUP(B90,'Schedule V(b)'!$B$11:$Z$315,25,0),0)","v":0},null,{"$f":"IFERROR(VLOOKUP(B90,'Schedule V(b)'!$B$11:$Z$315,23,0),0)","v":0},null,"0",null,0]
[80,{"$f":"Import!E36989","v":0},null,{"$f":"IFERROR(VLOOKUP(B91,'Schedule V(b)'!$B$11:$Z$315,3,0),0)","v":0},null,{"$f":"IFERROR(VLOOKUP(B91,'Schedule V(b)'!$B$11:$Z$315,7,0),0)","v":"Select"},null,{"$f":"IFERROR(VLOOKUP(B91,'Schedule V(b)'!$B$11:$Z$315,9,0),0)","v":0},null,{"$f":"IFERROR(VLOOKUP(B91,'Schedule V(b)'!$B$11:$Z$315,11,0),0)","v":"Select"},null,{"$f":"IFERROR(VLOOKUP(B91,'Schedule V(b)'!$B$11:$Z$315,13,0),0)","v":0},null,{"$f":"Import!E37089","v":"Select"},null,{"$f":"IFERROR(VLOOKUP(B91,'Schedule V(b)'!$B$11:$Z$315,17,0),0)","v":0},null,{"$f":"IFERROR(VLOOKUP(B91,'Schedule V(b)'!$B$11:$Z$315,25,0),0)","v":0},null,{"$f":"IFERROR(VLOOKUP(B91,'Schedule V(b)'!$B$11:$Z$315,23,0),0)","v":0},null,"0",null,0]
[81,{"$f":"Import!E36990","v":0},null,{"$f":"IFERROR(VLOOKUP(B92,'Schedule V(b)'!$B$11:$Z$315,3,0),0)","v":0},null,{"$f":"IFERROR(VLOOKUP(B92,'Schedule V(b)'!$B$11:$Z$315,7,0),0)","v":"Select"},null,{"$f":"IFERROR(VLOOKUP(B92,'Schedule V(b)'!$B$11:$Z$315,9,0),0)","v":0},null,{"$f":"IFERROR(VLOOKUP(B92,'Schedule V(b)'!$B$11:$Z$315,11,0),0)","v":"Select"},null,{"$f":"IFERROR(VLOOKUP(B92,'Schedule V(b)'!$B$11:$Z$315,13,0),0)","v":0},null,{"$f":"Import!E37090","v":"Select"},null,{"$f":"IFERROR(VLOOKUP(B92,'Schedule V(b)'!$B$11:$Z$315,17,0),0)","v":0},null,{"$f":"IFERROR(VLOOKUP(B92,'Schedule V(b)'!$B$11:$Z$315,25,0),0)","v":0},null,{"$f":"IFERROR(VLOOKUP(B92,'Schedule V(b)'!$B$11:$Z$315,23,0),0)","v":0},null,"0",null,0]
[82,{"$f":"Import!E36991","v":0},null,{"$f":"IFERROR(VLOOKUP(B93,'Schedule V(b)'!$B$11:$Z$315,3,0),0)","v":0},null,{"$f":"IFERROR(VLOOKUP(B93,'Schedule V(b)'!$B$11:$Z$315,7,0),0)","v":"Select"},null,{"$f":"IFERROR(VLOOKUP(B93,'Schedule V(b)'!$B$11:$Z$315,9,0),0)","v":0},null,{"$f":"IFERROR(VLOOKUP(B93,'Schedule V(b)'!$B$11:$Z$315,11,0),0)","v":"Select"},null,{"$f":"IFERROR(VLOOKUP(B93,'Schedule V(b)'!$B$11:$Z$315,13,0),0)","v":0},null,{"$f":"Import!E37091","v":"Select"},null,{"$f":"IFERROR(VLOOKUP(B93,'Schedule V(b)'!$B$11:$Z$315,17,0),0)","v":0},null,{"$f":"IFERROR(VLOOKUP(B93,'Schedule V(b)'!$B$11:$Z$315,25,0),0)","v":0},null,{"$f":"IFERROR(VLOOKUP(B93,'Schedule V(b)'!$B$11:$Z$315,23,0),0)","v":0},null,"0",null,0]
[83,{"$f":"Import!E36992","v":0},null,{"$f":"IFERROR(VLOOKUP(B94,'Schedule V(b)'!$B$11:$Z$315,3,0),0)","v":0},null,{"$f":"IFERROR(VLOOKUP(B94,'Schedule V(b)'!$B$11:$Z$315,7,0),0)","v":"Select"},null,{"$f":"IFERROR(VLOOKUP(B94,'Schedule V(b)'!$B$11:$Z$315,9,0),0)","v":0},null,{"$f":"IFERROR(VLOOKUP(B94,'Schedule V(b)'!$B$11:$Z$315,11,0),0)","v":"Select"},null,{"$f":"IFERROR(VLOOKUP(B94,'Schedule V(b)'!$B$11:$Z$315,13,0),0)","v":0},null,{"$f":"Import!E37092","v":"Select"},null,{"$f":"IFERROR(VLOOKUP(B94,'Schedule V(b)'!$B$11:$Z$315,17,0),0)","v":0},null,{"$f":"IFERROR(VLOOKUP(B94,'Schedule V(b)'!$B$11:$Z$315,25,0),0)","v":0},null,{"$f":"IFERROR(VLOOKUP(B94,'Schedule V(b)'!$B$11:$Z$315,23,0),0)","v":0},null,"0",null,0]
[84,{"$f":"Import!E36993","v":0},null,{"$f":"IFERROR(VLOOKUP(B95,'Schedule V(b)'!$B$11:$Z$315,3,0),0)","v":0},null,{"$f":"IFERROR(VLOOKUP(B95,'Schedule V(b)'!$B$11:$Z$315,7,0),0)","v":"Select"},null,{"$f":"IFERROR(VLOOKUP(B95,'Schedule V(b)'!$B$11:$Z$315,9,0),0)","v":0},null,{"$f":"IFERROR(VLOOKUP(B95,'Schedule V(b)'!$B$11:$Z$315,11,0),0)","v":"Select"},null,{"$f":"IFERROR(VLOOKUP(B95,'Schedule V(b)'!$B$11:$Z$315,13,0),0)","v":0},null,{"$f":"Import!E37093","v":"Select"},null,{"$f":"IFERROR(VLOOKUP(B95,'Schedule V(b)'!$B$11:$Z$315,17,0),0)","v":0},null,{"$f":"IFERROR(VLOOKUP(B95,'Schedule V(b)'!$B$11:$Z$315,25,0),0)","v":0},null,{"$f":"IFERROR(VLOOKUP(B95,'Schedule V(b)'!$B$11:$Z$315,23,0),0)","v":0},null,"0",null,0]
[85,{"$f":"Import!E36994","v":0},null,{"$f":"IFERROR(VLOOKUP(B96,'Schedule V(b)'!$B$11:$Z$315,3,0),0)","v":0},null,{"$f":"IFERROR(VLOOKUP(B96,'Schedule V(b)'!$B$11:$Z$315,7,0),0)","v":"Select"},null,{"$f":"IFERROR(VLOOKUP(B96,'Schedule V(b)'!$B$11:$Z$315,9,0),0)","v":0},null,{"$f":"IFERROR(VLOOKUP(B96,'Schedule V(b)'!$B$11:$Z$315,11,0),0)","v":"Select"},null,{"$f":"IFERROR(VLOOKUP(B96,'Schedule V(b)'!$B$11:$Z$315,13,0),0)","v":0},null,{"$f":"Import!E37094","v":"Select"},null,{"$f":"IFERROR(VLOOKUP(B96,'Schedule V(b)'!$B$11:$Z$315,17,0),0)","v":0},null,{"$f":"IFERROR(VLOOKUP(B96,'Schedule V(b)'!$B$11:$Z$315,25,0),0)","v":0},null,{"$f":"IFERROR(VLOOKUP(B96,'Schedule V(b)'!$B$11:$Z$315,23,0),0)","v":0},null,"0",null,0]
[86,{"$f":"Import!E36995","v":0},null,{"$f":"IFERROR(VLOOKUP(B97,'Schedule V(b)'!$B$11:$Z$315,3,0),0)","v":0},null,{"$f":"IFERROR(VLOOKUP(B97,'Schedule V(b)'!$B$11:$Z$315,7,0),0)","v":"Select"},null,{"$f":"IFERROR(VLOOKUP(B97,'Schedule V(b)'!$B$11:$Z$315,9,0),0)","v":0},null,{"$f":"IFERROR(VLOOKUP(B97,'Schedule V(b)'!$B$11:$Z$315,11,0),0)","v":"Select"},null,{"$f":"IFERROR(VLOOKUP(B97,'Schedule V(b)'!$B$11:$Z$315,13,0),0)","v":0},null,{"$f":"Import!E37095","v":"Select"},null,{"$f":"IFERROR(VLOOKUP(B97,'Schedule V(b)'!$B$11:$Z$315,17,0),0)","v":0},null,{"$f":"IFERROR(VLOOKUP(B97,'Schedule V(b)'!$B$11:$Z$315,25,0),0)","v":0},null,{"$f":"IFERROR(VLOOKUP(B97,'Schedule V(b)'!$B$11:$Z$315,23,0),0)","v":0},null,"0",null,0]
[87,{"$f":"Import!E36996","v":0},null,{"$f":"IFERROR(VLOOKUP(B98,'Schedule V(b)'!$B$11:$Z$315,3,0),0)","v":0},null,{"$f":"IFERROR(VLOOKUP(B98,'Schedule V(b)'!$B$11:$Z$315,7,0),0)","v":"Select"},null,{"$f":"IFERROR(VLOOKUP(B98,'Schedule V(b)'!$B$11:$Z$315,9,0),0)","v":0},null,{"$f":"IFERROR(VLOOKUP(B98,'Schedule V(b)'!$B$11:$Z$315,11,0),0)","v":"Select"},null,{"$f":"IFERROR(VLOOKUP(B98,'Schedule V(b)'!$B$11:$Z$315,13,0),0)","v":0},null,{"$f":"Import!E37096","v":"Select"},null,{"$f":"IFERROR(VLOOKUP(B98,'Schedule V(b)'!$B$11:$Z$315,17,0),0)","v":0},null,{"$f":"IFERROR(VLOOKUP(B98,'Schedule V(b)'!$B$11:$Z$315,25,0),0)","v":0},null,{"$f":"IFERROR(VLOOKUP(B98,'Schedule V(b)'!$B$11:$Z$315,23,0),0)","v":0},null,"0",null,0]
[88,{"$f":"Import!E36997","v":0},null,{"$f":"IFERROR(VLOOKUP(B99,'Schedule V(b)'!$B$11:$Z$315,3,0),0)","v":0},null,{"$f":"IFERROR(VLOOKUP(B99,'Schedule V(b)'!$B$11:$Z$315,7,0),0)","v":"Select"},null,{"$f":"IFERROR(VLOOKUP(B99,'Schedule V(b)'!$B$11:$Z$315,9,0),0)","v":0},null,{"$f":"IFERROR(VLOOKUP(B99,'Schedule V(b)'!$B$11:$Z$315,11,0),0)","v":"Select"},null,{"$f":"IFERROR(VLOOKUP(B99,'Schedule V(b)'!$B$11:$Z$315,13,0),0)","v":0},null,{"$f":"Import!E37097","v":"Select"},null,{"$f":"IFERROR(VLOOKUP(B99,'Schedule V(b)'!$B$11:$Z$315,17,0),0)","v":0},null,{"$f":"IFERROR(VLOOKUP(B99,'Schedule V(b)'!$B$11:$Z$315,25,0),0)","v":0},null,{"$f":"IFERROR(VLOOKUP(B99,'Schedule V(b)'!$B$11:$Z$315,23,0),0)","v":0},null,"0",null,0]
[89,{"$f":"Import!E36998","v":0},null,{"$f":"IFERROR(VLOOKUP(B100,'Schedule V(b)'!$B$11:$Z$315,3,0),0)","v":0},null,{"$f":"IFERROR(VLOOKUP(B100,'Schedule V(b)'!$B$11:$Z$315,7,0),0)","v":"Select"},null,{"$f":"IFERROR(VLOOKUP(B100,'Schedule V(b)'!$B$11:$Z$315,9,0),0)","v":0},null,{"$f":"IFERROR(VLOOKUP(B100,'Schedule V(b)'!$B$11:$Z$315,11,0),0)","v":"Select"},null,{"$f":"IFERROR(VLOOKUP(B100,'Schedule V(b)'!$B$11:$Z$315,13,0),0)","v":0},null,{"$f":"Import!E37098","v":"Select"},null,{"$f":"IFERROR(VLOOKUP(B100,'Schedule V(b)'!$B$11:$Z$315,17,0),0)","v":0},null,{"$f":"IFERROR(VLOOKUP(B100,'Schedule V(b)'!$B$11:$Z$315,25,0),0)","v":0},null,{"$f":"IFERROR(VLOOKUP(B100,'Schedule V(b)'!$B$11:$Z$315,23,0),0)","v":0},null,"0",null,0]
[90,{"$f":"Import!E36999","v":0},null,{"$f":"IFERROR(VLOOKUP(B101,'Schedule V(b)'!$B$11:$Z$315,3,0),0)","v":0},null,{"$f":"IFERROR(VLOOKUP(B101,'Schedule V(b)'!$B$11:$Z$315,7,0),0)","v":"Select"},null,{"$f":"IFERROR(VLOOKUP(B101,'Schedule V(b)'!$B$11:$Z$315,9,0),0)","v":0},null,{"$f":"IFERROR(VLOOKUP(B101,'Schedule V(b)'!$B$11:$Z$315,11,0),0)","v":"Select"},null,{"$f":"IFERROR(VLOOKUP(B101,'Schedule V(b)'!$B$11:$Z$315,13,0),0)","v":0},null,{"$f":"Import!E37099","v":"Select"},null,{"$f":"IFERROR(VLOOKUP(B101,'Schedule V(b)'!$B$11:$Z$315,17,0),0)","v":0},null,{"$f":"IFERROR(VLOOKUP(B101,'Schedule V(b)'!$B$11:$Z$315,25,0),0)","v":0},null,{"$f":"IFERROR(VLOOKUP(B101,'Schedule V(b)'!$B$11:$Z$315,23,0),0)","v":0},null,"0",null,0]
[91,{"$f":"Import!E37000","v":0},null,{"$f":"IFERROR(VLOOKUP(B102,'Schedule V(b)'!$B$11:$Z$315,3,0),0)","v":0},null,{"$f":"IFERROR(VLOOKUP(B102,'Schedule V(b)'!$B$11:$Z$315,7,0),0)","v":"Select"},null,{"$f":"IFERROR(VLOOKUP(B102,'Schedule V(b)'!$B$11:$Z$315,9,0),0)","v":0},null,{"$f":"IFERROR(VLOOKUP(B102,'Schedule V(b)'!$B$11:$Z$315,11,0),0)","v":"Select"},null,{"$f":"IFERROR(VLOOKUP(B102,'Schedule V(b)'!$B$11:$Z$315,13,0),0)","v":0},null,{"$f":"Import!E37100","v":"Select"},null,{"$f":"IFERROR(VLOOKUP(B102,'Schedule V(b)'!$B$11:$Z$315,17,0),0)","v":0},null,{"$f":"IFERROR(VLOOKUP(B102,'Schedule V(b)'!$B$11:$Z$315,25,0),0)","v":0},null,{"$f":"IFERROR(VLOOKUP(B102,'Schedule V(b)'!$B$11:$Z$315,23,0),0)","v":0},null,"0",null,0]
[92,{"$f":"Import!E37001","v":0},null,{"$f":"IFERROR(VLOOKUP(B103,'Schedule V(b)'!$B$11:$Z$315,3,0),0)","v":0},null,{"$f":"IFERROR(VLOOKUP(B103,'Schedule V(b)'!$B$11:$Z$315,7,0),0)","v":"Select"},null,{"$f":"IFERROR(VLOOKUP(B103,'Schedule V(b)'!$B$11:$Z$315,9,0),0)","v":0},null,{"$f":"IFERROR(VLOOKUP(B103,'Schedule V(b)'!$B$11:$Z$315,11,0),0)","v":"Select"},null,{"$f":"IFERROR(VLOOKUP(B103,'Schedule V(b)'!$B$11:$Z$315,13,0),0)","v":0},null,{"$f":"Import!E37101","v":"Select"},null,{"$f":"IFERROR(VLOOKUP(B103,'Schedule V(b)'!$B$11:$Z$315,17,0),0)","v":0},null,{"$f":"IFERROR(VLOOKUP(B103,'Schedule V(b)'!$B$11:$Z$315,25,0),0)","v":0},null,{"$f":"IFERROR(VLOOKUP(B103,'Schedule V(b)'!$B$11:$Z$315,23,0),0)","v":0},null,"0",null,0]
[93,{"$f":"Import!E37002","v":0},null,{"$f":"IFERROR(VLOOKUP(B104,'Schedule V(b)'!$B$11:$Z$315,3,0),0)","v":0},null,{"$f":"IFERROR(VLOOKUP(B104,'Schedule V(b)'!$B$11:$Z$315,7,0),0)","v":"Select"},null,{"$f":"IFERROR(VLOOKUP(B104,'Schedule V(b)'!$B$11:$Z$315,9,0),0)","v":0},null,{"$f":"IFERROR(VLOOKUP(B104,'Schedule V(b)'!$B$11:$Z$315,11,0),0)","v":"Select"},null,{"$f":"IFERROR(VLOOKUP(B104,'Schedule V(b)'!$B$11:$Z$315,13,0),0)","v":0},null,{"$f":"Import!E37102","v":"Select"},null,{"$f":"IFERROR(VLOOKUP(B104,'Schedule V(b)'!$B$11:$Z$315,17,0),0)","v":0},null,{"$f":"IFERROR(VLOOKUP(B104,'Schedule V(b)'!$B$11:$Z$315,25,0),0)","v":0},null,{"$f":"IFERROR(VLOOKUP(B104,'Schedule V(b)'!$B$11:$Z$315,23,0),0)","v":0},null,"0",null,0]
[94,{"$f":"Import!E37003","v":0},null,{"$f":"IFERROR(VLOOKUP(B105,'Schedule V(b)'!$B$11:$Z$315,3,0),0)","v":0},null,{"$f":"IFERROR(VLOOKUP(B105,'Schedule V(b)'!$B$11:$Z$315,7,0),0)","v":"Select"},null,{"$f":"IFERROR(VLOOKUP(B105,'Schedule V(b)'!$B$11:$Z$315,9,0),0)","v":0},null,{"$f":"IFERROR(VLOOKUP(B105,'Schedule V(b)'!$B$11:$Z$315,11,0),0)","v":"Select"},null,{"$f":"IFERROR(VLOOKUP(B105,'Schedule V(b)'!$B$11:$Z$315,13,0),0)","v":0},null,{"$f":"Import!E37103","v":"Select"},null,{"$f":"IFERROR(VLOOKUP(B105,'Schedule V(b)'!$B$11:$Z$315,17,0),0)","v":0},null,{"$f":"IFERROR(VLOOKUP(B105,'Schedule V(b)'!$B$11:$Z$315,25,0),0)","v":0},null,{"$f":"IFERROR(VLOOKUP(B105,'Schedule V(b)'!$B$11:$Z$315,23,0),0)","v":0},null,"0",null,0]
[95,{"$f":"Import!E37004","v":0},null,{"$f":"IFERROR(VLOOKUP(B106,'Schedule V(b)'!$B$11:$Z$315,3,0),0)","v":0},null,{"$f":"IFERROR(VLOOKUP(B106,'Schedule V(b)'!$B$11:$Z$315,7,0),0)","v":"Select"},null,{"$f":"IFERROR(VLOOKUP(B106,'Schedule V(b)'!$B$11:$Z$315,9,0),0)","v":0},null,{"$f":"IFERROR(VLOOKUP(B106,'Schedule V(b)'!$B$11:$Z$315,11,0),0)","v":"Select"},null,{"$f":"IFERROR(VLOOKUP(B106,'Schedule V(b)'!$B$11:$Z$315,13,0),0)","v":0},null,{"$f":"Import!E37104","v":"Select"},null,{"$f":"IFERROR(VLOOKUP(B106,'Schedule V(b)'!$B$11:$Z$315,17,0),0)","v":0},null,{"$f":"IFERROR(VLOOKUP(B106,'Schedule V(b)'!$B$11:$Z$315,25,0),0)","v":0},null,{"$f":"IFERROR(VLOOKUP(B106,'Schedule V(b)'!$B$11:$Z$315,23,0),0)","v":0},null,"0",null,0]
[96,{"$f":"Import!E37005","v":0},null,{"$f":"IFERROR(VLOOKUP(B107,'Schedule V(b)'!$B$11:$Z$315,3,0),0)","v":0},null,{"$f":"IFERROR(VLOOKUP(B107,'Schedule V(b)'!$B$11:$Z$315,7,0),0)","v":"Select"},null,{"$f":"IFERROR(VLOOKUP(B107,'Schedule V(b)'!$B$11:$Z$315,9,0),0)","v":0},null,{"$f":"IFERROR(VLOOKUP(B107,'Schedule V(b)'!$B$11:$Z$315,11,0),0)","v":"Select"},null,{"$f":"IFERROR(VLOOKUP(B107,'Schedule V(b)'!$B$11:$Z$315,13,0),0)","v":0},null,{"$f":"Import!E37105","v":"Select"},null,{"$f":"IFERROR(VLOOKUP(B107,'Schedule V(b)'!$B$11:$Z$315,17,0),0)","v":0},null,{"$f":"IFERROR(VLOOKUP(B107,'Schedule V(b)'!$B$11:$Z$315,25,0),0)","v":0},null,{"$f":"IFERROR(VLOOKUP(B107,'Schedule V(b)'!$B$11:$Z$315,23,0),0)","v":0},null,"0",null,0]
[97,{"$f":"Import!E37006","v":0},null,{"$f":"IFERROR(VLOOKUP(B108,'Schedule V(b)'!$B$11:$Z$315,3,0),0)","v":0},null,{"$f":"IFERROR(VLOOKUP(B108,'Schedule V(b)'!$B$11:$Z$315,7,0),0)","v":"Select"},null,{"$f":"IFERROR(VLOOKUP(B108,'Schedule V(b)'!$B$11:$Z$315,9,0),0)","v":0},null,{"$f":"IFERROR(VLOOKUP(B108,'Schedule V(b)'!$B$11:$Z$315,11,0),0)","v":"Select"},null,{"$f":"IFERROR(VLOOKUP(B108,'Schedule V(b)'!$B$11:$Z$315,13,0),0)","v":0},null,{"$f":"Import!E37106","v":"Select"},null,{"$f":"IFERROR(VLOOKUP(B108,'Schedule V(b)'!$B$11:$Z$315,17,0),0)","v":0},null,{"$f":"IFERROR(VLOOKUP(B108,'Schedule V(b)'!$B$11:$Z$315,25,0),0)","v":0},null,{"$f":"IFERROR(VLOOKUP(B108,'Schedule V(b)'!$B$11:$Z$315,23,0),0)","v":0},null,"0",null,0]
[98,{"$f":"Import!E37007","v":0},null,{"$f":"IFERROR(VLOOKUP(B109,'Schedule V(b)'!$B$11:$Z$315,3,0),0)","v":0},null,{"$f":"IFERROR(VLOOKUP(B109,'Schedule V(b)'!$B$11:$Z$315,7,0),0)","v":"Select"},null,{"$f":"IFERROR(VLOOKUP(B109,'Schedule V(b)'!$B$11:$Z$315,9,0),0)","v":0},null,{"$f":"IFERROR(VLOOKUP(B109,'Schedule V(b)'!$B$11:$Z$315,11,0),0)","v":"Select"},null,{"$f":"IFERROR(VLOOKUP(B109,'Schedule V(b)'!$B$11:$Z$315,13,0),0)","v":0},null,{"$f":"Import!E37107","v":"Select"},null,{"$f":"IFERROR(VLOOKUP(B109,'Schedule V(b)'!$B$11:$Z$315,17,0),0)","v":0},null,{"$f":"IFERROR(VLOOKUP(B109,'Schedule V(b)'!$B$11:$Z$315,25,0),0)","v":0},null,{"$f":"IFERROR(VLOOKUP(B109,'Schedule V(b)'!$B$11:$Z$315,23,0),0)","v":0},null,"0",null,0]
[99,{"$f":"Import!E37008","v":0},null,{"$f":"IFERROR(VLOOKUP(B110,'Schedule V(b)'!$B$11:$Z$315,3,0),0)","v":0},null,{"$f":"IFERROR(VLOOKUP(B110,'Schedule V(b)'!$B$11:$Z$315,7,0),0)","v":"Select"},null,{"$f":"IFERROR(VLOOKUP(B110,'Schedule V(b)'!$B$11:$Z$315,9,0),0)","v":0},null,{"$f":"IFERROR(VLOOKUP(B110,'Schedule V(b)'!$B$11:$Z$315,11,0),0)","v":"Select"},null,{"$f":"IFERROR(VLOOKUP(B110,'Schedule V(b)'!$B$11:$Z$315,13,0),0)","v":0},null,{"$f":"Import!E37108","v":"Select"},null,{"$f":"IFERROR(VLOOKUP(B110,'Schedule V(b)'!$B$11:$Z$315,17,0),0)","v":0},null,{"$f":"IFERROR(VLOOKUP(B110,'Schedule V(b)'!$B$11:$Z$315,25,0),0)","v":0},null,{"$f":"IFERROR(VLOOKUP(B110,'Schedule V(b)'!$B$11:$Z$315,23,0),0)","v":0},null,"0",null,0]
[100,{"$f":"Import!E37009","v":0},null,{"$f":"IFERROR(VLOOKUP(B111,'Schedule V(b)'!$B$11:$Z$315,3,0),0)","v":0},null,{"$f":"IFERROR(VLOOKUP(B111,'Schedule V(b)'!$B$11:$Z$315,7,0),0)","v":"Select"},null,{"$f":"IFERROR(VLOOKUP(B111,'Schedule V(b)'!$B$11:$Z$315,9,0),0)","v":0},null,{"$f":"IFERROR(VLOOKUP(B111,'Schedule V(b)'!$B$11:$Z$315,11,0),0)","v":"Select"},null,{"$f":"IFERROR(VLOOKUP(B111,'Schedule V(b)'!$B$11:$Z$315,13,0),0)","v":0},null,{"$f":"Import!E37109","v":"Select"},null,{"$f":"IFERROR(VLOOKUP(B111,'Schedule V(b)'!$B$11:$Z$315,17,0),0)","v":0},null,{"$f":"IFERROR(VLOOKUP(B111,'Schedule V(b)'!$B$11:$Z$315,25,0),0)","v":0},null,{"$f":"IFERROR(VLOOKUP(B111,'Schedule V(b)'!$B$11:$Z$315,23,0),0)","v":0},null,"0",null,0]
[101,null,null,{"$f":"IFERROR(VLOOKUP(B112,'Schedule V(b)'!$B$11:$Z$315,3,0),0)","v":0},null,{"$f":"IFERROR(VLOOKUP(B112,'Schedule V(b)'!$B$11:$Z$315,7,0),0)","v":"Select"},null,{"$f":"IFERROR(VLOOKUP(B112,'Schedule V(b)'!$B$11:$Z$315,9,0),0)","v":0},null,{"$f":"IFERROR(VLOOKUP(B112,'Schedule V(b)'!$B$11:$Z$315,11,0),0)","v":"Select"},null,{"$f":"IFERROR(VLOOKUP(B112,'Schedule V(b)'!$B$11:$Z$315,13,0),0)","v":0},null,null,null,{"$f":"IFERROR(VLOOKUP(B112,'Schedule V(b)'!$B$11:$Z$315,17,0),0)","v":0},null,{"$f":"IFERROR(VLOOKUP(B112,'Schedule V(b)'!$B$11:$Z$315,25,0),0)","v":0},null,{"$f":"IFERROR(VLOOKUP(B112,'Schedule V(b)'!$B$11:$Z$315,23,0),0)","v":0},null,"0",null,0]
[102,null,null,{"$f":"IFERROR(VLOOKUP(B113,'Schedule V(b)'!$B$11:$Z$315,3,0),0)","v":0},null,{"$f":"IFERROR(VLOOKUP(B113,'Schedule V(b)'!$B$11:$Z$315,7,0),0)","v":"Select"},null,{"$f":"IFERROR(VLOOKUP(B113,'Schedule V(b)'!$B$11:$Z$315,9,0),0)","v":0},null,{"$f":"IFERROR(VLOOKUP(B113,'Schedule V(b)'!$B$11:$Z$315,11,0),0)","v":"Select"},null,{"$f":"IFERROR(VLOOKUP(B113,'Schedule V(b)'!$B$11:$Z$315,13,0),0)","v":0},null,null,null,{"$f":"IFERROR(VLOOKUP(B113,'Schedule V(b)'!$B$11:$Z$315,17,0),0)","v":0},null,{"$f":"IFERROR(VLOOKUP(B113,'Schedule V(b)'!$B$11:$Z$315,25,0),0)","v":0},null,{"$f":"IFERROR(VLOOKUP(B113,'Schedule V(b)'!$B$11:$Z$315,23,0),0)","v":0},null,"0",null,0]
[103,null,null,{"$f":"IFERROR(VLOOKUP(B114,'Schedule V(b)'!$B$11:$Z$315,3,0),0)","v":0},null,{"$f":"IFERROR(VLOOKUP(B114,'Schedule V(b)'!$B$11:$Z$315,7,0),0)","v":"Select"},null,{"$f":"IFERROR(VLOOKUP(B114,'Schedule V(b)'!$B$11:$Z$315,9,0),0)","v":0},null,{"$f":"IFERROR(VLOOKUP(B114,'Schedule V(b)'!$B$11:$Z$315,11,0),0)","v":"Select"},null,{"$f":"IFERROR(VLOOKUP(B114,'Schedule V(b)'!$B$11:$Z$315,13,0),0)","v":0},null,null,null,{"$f":"IFERROR(VLOOKUP(B114,'Schedule V(b)'!$B$11:$Z$315,17,0),0)","v":0},null,{"$f":"IFERROR(VLOOKUP(B114,'Schedule V(b)'!$B$11:$Z$315,25,0),0)","v":0},null,{"$f":"IFERROR(VLOOKUP(B114,'Schedule V(b)'!$B$11:$Z$315,23,0),0)","v":0},null,"0",null,0]
[104,null,null,{"$f":"IFERROR(VLOOKUP(B115,'Schedule V(b)'!$B$11:$Z$315,3,0),0)","v":0},null,{"$f":"IFERROR(VLOOKUP(B115,'Schedule V(b)'!$B$11:$Z$315,7,0),0)","v":"Select"},null,{"$f":"IFERROR(VLOOKUP(B115,'Schedule V(b)'!$B$11:$Z$315,9,0),0)","v":0},null,{"$f":"IFERROR(VLOOKUP(B115,'Schedule V(b)'!$B$11:$Z$315,11,0),0)","v":"Select"},null,{"$f":"IFERROR(VLOOKUP(B115,'Schedule V(b)'!$B$11:$Z$315,13,0),0)","v":0},null,null,null,{"$f":"IFERROR(VLOOKUP(B115,'Schedule V(b)'!$B$11:$Z$315,17,0),0)","v":0},null,{"$f":"IFERROR(VLOOKUP(B115,'Schedule V(b)'!$B$11:$Z$315,25,0),0)","v":0},null,{"$f":"IFERROR(VLOOKUP(B115,'Schedule V(b)'!$B$11:$Z$315,23,0),0)","v":0},null,"0",null,0]
[105,null,null,{"$f":"IFERROR(VLOOKUP(B116,'Schedule V(b)'!$B$11:$Z$315,3,0),0)","v":0},null,{"$f":"IFERROR(VLOOKUP(B116,'Schedule V(b)'!$B$11:$Z$315,7,0),0)","v":"Select"},null,{"$f":"IFERROR(VLOOKUP(B116,'Schedule V(b)'!$B$11:$Z$315,9,0),0)","v":0},null,{"$f":"IFERROR(VLOOKUP(B116,'Schedule V(b)'!$B$11:$Z$315,11,0),0)","v":"Select"},null,{"$f":"IFERROR(VLOOKUP(B116,'Schedule V(b)'!$B$11:$Z$315,13,0),0)","v":0},null,null,null,{"$f":"IFERROR(VLOOKUP(B116,'Schedule V(b)'!$B$11:$Z$315,17,0),0)","v":0},null,{"$f":"IFERROR(VLOOKUP(B116,'Schedule V(b)'!$B$11:$Z$315,25,0),0)","v":0},null,{"$f":"IFERROR(VLOOKUP(B116,'Schedule V(b)'!$B$11:$Z$315,23,0),0)","v":0},null,"0",null,0]
[106,null,null,{"$f":"IFERROR(VLOOKUP(B117,'Schedule V(b)'!$B$11:$Z$315,3,0),0)","v":0},null,{"$f":"IFERROR(VLOOKUP(B117,'Schedule V(b)'!$B$11:$Z$315,7,0),0)","v":"Select"},null,{"$f":"IFERROR(VLOOKUP(B117,'Schedule V(b)'!$B$11:$Z$315,9,0),0)","v":0},null,{"$f":"IFERROR(VLOOKUP(B117,'Schedule V(b)'!$B$11:$Z$315,11,0),0)","v":"Select"},null,{"$f":"IFERROR(VLOOKUP(B117,'Schedule V(b)'!$B$11:$Z$315,13,0),0)","v":0},null,null,null,{"$f":"IFERROR(VLOOKUP(B117,'Schedule V(b)'!$B$11:$Z$315,17,0),0)","v":0},null,{"$f":"IFERROR(VLOOKUP(B117,'Schedule V(b)'!$B$11:$Z$315,25,0),0)","v":0},null,{"$f":"IFERROR(VLOOKUP(B117,'Schedule V(b)'!$B$11:$Z$315,23,0),0)","v":0},null,"0",null,0]
[107,null,null,{"$f":"IFERROR(VLOOKUP(B118,'Schedule V(b)'!$B$11:$Z$315,3,0),0)","v":0},null,{"$f":"IFERROR(VLOOKUP(B118,'Schedule V(b)'!$B$11:$Z$315,7,0),0)","v":"Select"},null,{"$f":"IFERROR(VLOOKUP(B118,'Schedule V(b)'!$B$11:$Z$315,9,0),0)","v":0},null,{"$f":"IFERROR(VLOOKUP(B118,'Schedule V(b)'!$B$11:$Z$315,11,0),0)","v":"Select"},null,{"$f":"IFERROR(VLOOKUP(B118,'Schedule V(b)'!$B$11:$Z$315,13,0),0)","v":0},null,null,null,{"$f":"IFERROR(VLOOKUP(B118,'Schedule V(b)'!$B$11:$Z$315,17,0),0)","v":0},null,{"$f":"IFERROR(VLOOKUP(B118,'Schedule V(b)'!$B$11:$Z$315,25,0),0)","v":0},null,{"$f":"IFERROR(VLOOKUP(B118,'Schedule V(b)'!$B$11:$Z$315,23,0),0)","v":0},null,"0",null,0]
[108,null,null,{"$f":"IFERROR(VLOOKUP(B119,'Schedule V(b)'!$B$11:$Z$315,3,0),0)","v":0},null,{"$f":"IFERROR(VLOOKUP(B119,'Schedule V(b)'!$B$11:$Z$315,7,0),0)","v":"Select"},null,{"$f":"IFERROR(VLOOKUP(B119,'Schedule V(b)'!$B$11:$Z$315,9,0),0)","v":0},null,{"$f":"IFERROR(VLOOKUP(B119,'Schedule V(b)'!$B$11:$Z$315,11,0),0)","v":"Select"},null,{"$f":"IFERROR(VLOOKUP(B119,'Schedule V(b)'!$B$11:$Z$315,13,0),0)","v":0},null,null,null,{"$f":"IFERROR(VLOOKUP(B119,'Schedule V(b)'!$B$11:$Z$315,17,0),0)","v":0},null,{"$f":"IFERROR(VLOOKUP(B119,'Schedule V(b)'!$B$11:$Z$315,25,0),0)","v":0},null,{"$f":"IFERROR(VLOOKUP(B119,'Schedule V(b)'!$B$11:$Z$315,23,0),0)","v":0},null,"0",null,0]
[109,null,null,{"$f":"IFERROR(VLOOKUP(B120,'Schedule V(b)'!$B$11:$Z$315,3,0),0)","v":0},null,{"$f":"IFERROR(VLOOKUP(B120,'Schedule V(b)'!$B$11:$Z$315,7,0),0)","v":"Select"},null,{"$f":"IFERROR(VLOOKUP(B120,'Schedule V(b)'!$B$11:$Z$315,9,0),0)","v":0},null,{"$f":"IFERROR(VLOOKUP(B120,'Schedule V(b)'!$B$11:$Z$315,11,0),0)","v":"Select"},null,{"$f":"IFERROR(VLOOKUP(B120,'Schedule V(b)'!$B$11:$Z$315,13,0),0)","v":0},null,null,null,{"$f":"IFERROR(VLOOKUP(B120,'Schedule V(b)'!$B$11:$Z$315,17,0),0)","v":0},null,{"$f":"IFERROR(VLOOKUP(B120,'Schedule V(b)'!$B$11:$Z$315,25,0),0)","v":0},null,{"$f":"IFERROR(VLOOKUP(B120,'Schedule V(b)'!$B$11:$Z$315,23,0),0)","v":0},null,"0",null,0]
[110,null,null,{"$f":"IFERROR(VLOOKUP(B121,'Schedule V(b)'!$B$11:$Z$315,3,0),0)","v":0},null,{"$f":"IFERROR(VLOOKUP(B121,'Schedule V(b)'!$B$11:$Z$315,7,0),0)","v":"Select"},null,{"$f":"IFERROR(VLOOKUP(B121,'Schedule V(b)'!$B$11:$Z$315,9,0),0)","v":0},null,{"$f":"IFERROR(VLOOKUP(B121,'Schedule V(b)'!$B$11:$Z$315,11,0),0)","v":"Select"},null,{"$f":"IFERROR(VLOOKUP(B121,'Schedule V(b)'!$B$11:$Z$315,13,0),0)","v":0},null,null,null,{"$f":"IFERROR(VLOOKUP(B121,'Schedule V(b)'!$B$11:$Z$315,17,0),0)","v":0},null,{"$f":"IFERROR(VLOOKUP(B121,'Schedule V(b)'!$B$11:$Z$315,25,0),0)","v":0},null,{"$f":"IFERROR(VLOOKUP(B121,'Schedule V(b)'!$B$11:$Z$315,23,0),0)","v":0},null,"0",null,0]
[111,null,null,{"$f":"IFERROR(VLOOKUP(B122,'Schedule V(b)'!$B$11:$Z$315,3,0),0)","v":0},null,{"$f":"IFERROR(VLOOKUP(B122,'Schedule V(b)'!$B$11:$Z$315,7,0),0)","v":"Select"},null,{"$f":"IFERROR(VLOOKUP(B122,'Schedule V(b)'!$B$11:$Z$315,9,0),0)","v":0},null,{"$f":"IFERROR(VLOOKUP(B122,'Schedule V(b)'!$B$11:$Z$315,11,0),0)","v":"Select"},null,{"$f":"IFERROR(VLOOKUP(B122,'Schedule V(b)'!$B$11:$Z$315,13,0),0)","v":0},null,null,null,{"$f":"IFERROR(VLOOKUP(B122,'Schedule V(b)'!$B$11:$Z$315,17,0),0)","v":0},null,{"$f":"IFERROR(VLOOKUP(B122,'Schedule V(b)'!$B$11:$Z$315,25,0),0)","v":0},null,{"$f":"IFERROR(VLOOKUP(B122,'Schedule V(b)'!$B$11:$Z$315,23,0),0)","v":0},null,"0",null,0]
[112,null,null,{"$f":"IFERROR(VLOOKUP(B123,'Schedule V(b)'!$B$11:$Z$315,3,0),0)","v":0},null,{"$f":"IFERROR(VLOOKUP(B123,'Schedule V(b)'!$B$11:$Z$315,7,0),0)","v":"Select"},null,{"$f":"IFERROR(VLOOKUP(B123,'Schedule V(b)'!$B$11:$Z$315,9,0),0)","v":0},null,{"$f":"IFERROR(VLOOKUP(B123,'Schedule V(b)'!$B$11:$Z$315,11,0),0)","v":"Select"},null,{"$f":"IFERROR(VLOOKUP(B123,'Schedule V(b)'!$B$11:$Z$315,13,0),0)","v":0},null,null,null,{"$f":"IFERROR(VLOOKUP(B123,'Schedule V(b)'!$B$11:$Z$315,17,0),0)","v":0},null,{"$f":"IFERROR(VLOOKUP(B123,'Schedule V(b)'!$B$11:$Z$315,25,0),0)","v":0},null,{"$f":"IFERROR(VLOOKUP(B123,'Schedule V(b)'!$B$11:$Z$315,23,0),0)","v":0},null,"0",null,0]
[113,null,null,{"$f":"IFERROR(VLOOKUP(B124,'Schedule V(b)'!$B$11:$Z$315,3,0),0)","v":0},null,{"$f":"IFERROR(VLOOKUP(B124,'Schedule V(b)'!$B$11:$Z$315,7,0),0)","v":"Select"},null,{"$f":"IFERROR(VLOOKUP(B124,'Schedule V(b)'!$B$11:$Z$315,9,0),0)","v":0},null,{"$f":"IFERROR(VLOOKUP(B124,'Schedule V(b)'!$B$11:$Z$315,11,0),0)","v":"Select"},null,{"$f":"IFERROR(VLOOKUP(B124,'Schedule V(b)'!$B$11:$Z$315,13,0),0)","v":0},null,null,null,{"$f":"IFERROR(VLOOKUP(B124,'Schedule V(b)'!$B$11:$Z$315,17,0),0)","v":0},null,{"$f":"IFERROR(VLOOKUP(B124,'Schedule V(b)'!$B$11:$Z$315,25,0),0)","v":0},null,{"$f":"IFERROR(VLOOKUP(B124,'Schedule V(b)'!$B$11:$Z$315,23,0),0)","v":0},null,"0",null,0]
[114,null,null,{"$f":"IFERROR(VLOOKUP(B125,'Schedule V(b)'!$B$11:$Z$315,3,0),0)","v":0},null,{"$f":"IFERROR(VLOOKUP(B125,'Schedule V(b)'!$B$11:$Z$315,7,0),0)","v":"Select"},null,{"$f":"IFERROR(VLOOKUP(B125,'Schedule V(b)'!$B$11:$Z$315,9,0),0)","v":0},null,{"$f":"IFERROR(VLOOKUP(B125,'Schedule V(b)'!$B$11:$Z$315,11,0),0)","v":"Select"},null,{"$f":"IFERROR(VLOOKUP(B125,'Schedule V(b)'!$B$11:$Z$315,13,0),0)","v":0},null,null,null,{"$f":"IFERROR(VLOOKUP(B125,'Schedule V(b)'!$B$11:$Z$315,17,0),0)","v":0},null,{"$f":"IFERROR(VLOOKUP(B125,'Schedule V(b)'!$B$11:$Z$315,25,0),0)","v":0},null,{"$f":"IFERROR(VLOOKUP(B125,'Schedule V(b)'!$B$11:$Z$315,23,0),0)","v":0},null,"0",null,0]
[115,null,null,{"$f":"IFERROR(VLOOKUP(B126,'Schedule V(b)'!$B$11:$Z$315,3,0),0)","v":0},null,{"$f":"IFERROR(VLOOKUP(B126,'Schedule V(b)'!$B$11:$Z$315,7,0),0)","v":"Select"},null,{"$f":"IFERROR(VLOOKUP(B126,'Schedule V(b)'!$B$11:$Z$315,9,0),0)","v":0},null,{"$f":"IFERROR(VLOOKUP(B126,'Schedule V(b)'!$B$11:$Z$315,11,0),0)","v":"Select"},null,{"$f":"IFERROR(VLOOKUP(B126,'Schedule V(b)'!$B$11:$Z$315,13,0),0)","v":0},null,null,null,{"$f":"IFERROR(VLOOKUP(B126,'Schedule V(b)'!$B$11:$Z$315,17,0),0)","v":0},null,{"$f":"IFERROR(VLOOKUP(B126,'Schedule V(b)'!$B$11:$Z$315,25,0),0)","v":0},null,{"$f":"IFERROR(VLOOKUP(B126,'Schedule V(b)'!$B$11:$Z$315,23,0),0)","v":0},null,"0",null,0]
[116,null,null,{"$f":"IFERROR(VLOOKUP(B127,'Schedule V(b)'!$B$11:$Z$315,3,0),0)","v":0},null,{"$f":"IFERROR(VLOOKUP(B127,'Schedule V(b)'!$B$11:$Z$315,7,0),0)","v":"Select"},null,{"$f":"IFERROR(VLOOKUP(B127,'Schedule V(b)'!$B$11:$Z$315,9,0),0)","v":0},null,{"$f":"IFERROR(VLOOKUP(B127,'Schedule V(b)'!$B$11:$Z$315,11,0),0)","v":"Select"},null,{"$f":"IFERROR(VLOOKUP(B127,'Schedule V(b)'!$B$11:$Z$315,13,0),0)","v":0},null,null,null,{"$f":"IFERROR(VLOOKUP(B127,'Schedule V(b)'!$B$11:$Z$315,17,0),0)","v":0},null,{"$f":"IFERROR(VLOOKUP(B127,'Schedule V(b)'!$B$11:$Z$315,25,0),0)","v":0},null,{"$f":"IFERROR(VLOOKUP(B127,'Schedule V(b)'!$B$11:$Z$315,23,0),0)","v":0},null,"0",null,0]
[117,null,null,{"$f":"IFERROR(VLOOKUP(B128,'Schedule V(b)'!$B$11:$Z$315,3,0),0)","v":0},null,{"$f":"IFERROR(VLOOKUP(B128,'Schedule V(b)'!$B$11:$Z$315,7,0),0)","v":"Select"},null,{"$f":"IFERROR(VLOOKUP(B128,'Schedule V(b)'!$B$11:$Z$315,9,0),0)","v":0},null,{"$f":"IFERROR(VLOOKUP(B128,'Schedule V(b)'!$B$11:$Z$315,11,0),0)","v":"Select"},null,{"$f":"IFERROR(VLOOKUP(B128,'Schedule V(b)'!$B$11:$Z$315,13,0),0)","v":0},null,null,null,{"$f":"IFERROR(VLOOKUP(B128,'Schedule V(b)'!$B$11:$Z$315,17,0),0)","v":0},null,{"$f":"IFERROR(VLOOKUP(B128,'Schedule V(b)'!$B$11:$Z$315,25,0),0)","v":0},null,{"$f":"IFERROR(VLOOKUP(B128,'Schedule V(b)'!$B$11:$Z$315,23,0),0)","v":0},null,"0",null,0]
[118,null,null,{"$f":"IFERROR(VLOOKUP(B129,'Schedule V(b)'!$B$11:$Z$315,3,0),0)","v":0},null,{"$f":"IFERROR(VLOOKUP(B129,'Schedule V(b)'!$B$11:$Z$315,7,0),0)","v":"Select"},null,{"$f":"IFERROR(VLOOKUP(B129,'Schedule V(b)'!$B$11:$Z$315,9,0),0)","v":0},null,{"$f":"IFERROR(VLOOKUP(B129,'Schedule V(b)'!$B$11:$Z$315,11,0),0)","v":"Select"},null,{"$f":"IFERROR(VLOOKUP(B129,'Schedule V(b)'!$B$11:$Z$315,13,0),0)","v":0},null,null,null,{"$f":"IFERROR(VLOOKUP(B129,'Schedule V(b)'!$B$11:$Z$315,17,0),0)","v":0},null,{"$f":"IFERROR(VLOOKUP(B129,'Schedule V(b)'!$B$11:$Z$315,25,0),0)","v":0},null,{"$f":"IFERROR(VLOOKUP(B129,'Schedule V(b)'!$B$11:$Z$315,23,0),0)","v":0},null,"0",null,0]
[119,null,null,{"$f":"IFERROR(VLOOKUP(B130,'Schedule V(b)'!$B$11:$Z$315,3,0),0)","v":0},null,{"$f":"IFERROR(VLOOKUP(B130,'Schedule V(b)'!$B$11:$Z$315,7,0),0)","v":"Select"},null,{"$f":"IFERROR(VLOOKUP(B130,'Schedule V(b)'!$B$11:$Z$315,9,0),0)","v":0},null,{"$f":"IFERROR(VLOOKUP(B130,'Schedule V(b)'!$B$11:$Z$315,11,0),0)","v":"Select"},null,{"$f":"IFERROR(VLOOKUP(B130,'Schedule V(b)'!$B$11:$Z$315,13,0),0)","v":0},null,null,null,{"$f":"IFERROR(VLOOKUP(B130,'Schedule V(b)'!$B$11:$Z$315,17,0),0)","v":0},null,{"$f":"IFERROR(VLOOKUP(B130,'Schedule V(b)'!$B$11:$Z$315,25,0),0)","v":0},null,{"$f":"IFERROR(VLOOKUP(B130,'Schedule V(b)'!$B$11:$Z$315,23,0),0)","v":0},null,"0",null,0]
[120,null,null,{"$f":"IFERROR(VLOOKUP(B131,'Schedule V(b)'!$B$11:$Z$315,3,0),0)","v":0},null,{"$f":"IFERROR(VLOOKUP(B131,'Schedule V(b)'!$B$11:$Z$315,7,0),0)","v":"Select"},null,{"$f":"IFERROR(VLOOKUP(B131,'Schedule V(b)'!$B$11:$Z$315,9,0),0)","v":0},null,{"$f":"IFERROR(VLOOKUP(B131,'Schedule V(b)'!$B$11:$Z$315,11,0),0)","v":"Select"},null,{"$f":"IFERROR(VLOOKUP(B131,'Schedule V(b)'!$B$11:$Z$315,13,0),0)","v":0},null,null,null,{"$f":"IFERROR(VLOOKUP(B131,'Schedule V(b)'!$B$11:$Z$315,17,0),0)","v":0},null,{"$f":"IFERROR(VLOOKUP(B131,'Schedule V(b)'!$B$11:$Z$315,25,0),0)","v":0},null,{"$f":"IFERROR(VLOOKUP(B131,'Schedule V(b)'!$B$11:$Z$315,23,0),0)","v":0},null,"0",null,0]
[121,null,null,{"$f":"IFERROR(VLOOKUP(B132,'Schedule V(b)'!$B$11:$Z$315,3,0),0)","v":0},null,{"$f":"IFERROR(VLOOKUP(B132,'Schedule V(b)'!$B$11:$Z$315,7,0),0)","v":"Select"},null,{"$f":"IFERROR(VLOOKUP(B132,'Schedule V(b)'!$B$11:$Z$315,9,0),0)","v":0},null,{"$f":"IFERROR(VLOOKUP(B132,'Schedule V(b)'!$B$11:$Z$315,11,0),0)","v":"Select"},null,{"$f":"IFERROR(VLOOKUP(B132,'Schedule V(b)'!$B$11:$Z$315,13,0),0)","v":0},null,null,null,{"$f":"IFERROR(VLOOKUP(B132,'Schedule V(b)'!$B$11:$Z$315,17,0),0)","v":0},null,{"$f":"IFERROR(VLOOKUP(B132,'Schedule V(b)'!$B$11:$Z$315,25,0),0)","v":0},null,{"$f":"IFERROR(VLOOKUP(B132,'Schedule V(b)'!$B$11:$Z$315,23,0),0)","v":0},null,"0",null,0]
[122,null,null,{"$f":"IFERROR(VLOOKUP(B133,'Schedule V(b)'!$B$11:$Z$315,3,0),0)","v":0},null,{"$f":"IFERROR(VLOOKUP(B133,'Schedule V(b)'!$B$11:$Z$315,7,0),0)","v":"Select"},null,{"$f":"IFERROR(VLOOKUP(B133,'Schedule V(b)'!$B$11:$Z$315,9,0),0)","v":0},null,{"$f":"IFERROR(VLOOKUP(B133,'Schedule V(b)'!$B$11:$Z$315,11,0),0)","v":"Select"},null,{"$f":"IFERROR(VLOOKUP(B133,'Schedule V(b)'!$B$11:$Z$315,13,0),0)","v":0},null,null,null,{"$f":"IFERROR(VLOOKUP(B133,'Schedule V(b)'!$B$11:$Z$315,17,0),0)","v":0},null,{"$f":"IFERROR(VLOOKUP(B133,'Schedule V(b)'!$B$11:$Z$315,25,0),0)","v":0},null,{"$f":"IFERROR(VLOOKUP(B133,'Schedule V(b)'!$B$11:$Z$315,23,0),0)","v":0},null,"0",null,0]
[123,null,null,{"$f":"IFERROR(VLOOKUP(B134,'Schedule V(b)'!$B$11:$Z$315,3,0),0)","v":0},null,{"$f":"IFERROR(VLOOKUP(B134,'Schedule V(b)'!$B$11:$Z$315,7,0),0)","v":"Select"},null,{"$f":"IFERROR(VLOOKUP(B134,'Schedule V(b)'!$B$11:$Z$315,9,0),0)","v":0},null,{"$f":"IFERROR(VLOOKUP(B134,'Schedule V(b)'!$B$11:$Z$315,11,0),0)","v":"Select"},null,{"$f":"IFERROR(VLOOKUP(B134,'Schedule V(b)'!$B$11:$Z$315,13,0),0)","v":0},null,null,null,{"$f":"IFERROR(VLOOKUP(B134,'Schedule V(b)'!$B$11:$Z$315,17,0),0)","v":0},null,{"$f":"IFERROR(VLOOKUP(B134,'Schedule V(b)'!$B$11:$Z$315,25,0),0)","v":0},null,{"$f":"IFERROR(VLOOKUP(B134,'Schedule V(b)'!$B$11:$Z$315,23,0),0)","v":0},null,"0",null,0]
[124,null,null,{"$f":"IFERROR(VLOOKUP(B135,'Schedule V(b)'!$B$11:$Z$315,3,0),0)","v":0},null,{"$f":"IFERROR(VLOOKUP(B135,'Schedule V(b)'!$B$11:$Z$315,7,0),0)","v":"Select"},null,{"$f":"IFERROR(VLOOKUP(B135,'Schedule V(b)'!$B$11:$Z$315,9,0),0)","v":0},null,{"$f":"IFERROR(VLOOKUP(B135,'Schedule V(b)'!$B$11:$Z$315,11,0),0)","v":"Select"},null,{"$f":"IFERROR(VLOOKUP(B135,'Schedule V(b)'!$B$11:$Z$315,13,0),0)","v":0},null,null,null,{"$f":"IFERROR(VLOOKUP(B135,'Schedule V(b)'!$B$11:$Z$315,17,0),0)","v":0},null,{"$f":"IFERROR(VLOOKUP(B135,'Schedule V(b)'!$B$11:$Z$315,25,0),0)","v":0},null,{"$f":"IFERROR(VLOOKUP(B135,'Schedule V(b)'!$B$11:$Z$315,23,0),0)","v":0},null,"0",null,0]
[125,null,null,{"$f":"IFERROR(VLOOKUP(B136,'Schedule V(b)'!$B$11:$Z$315,3,0),0)","v":0},null,{"$f":"IFERROR(VLOOKUP(B136,'Schedule V(b)'!$B$11:$Z$315,7,0),0)","v":"Select"},null,{"$f":"IFERROR(VLOOKUP(B136,'Schedule V(b)'!$B$11:$Z$315,9,0),0)","v":0},null,{"$f":"IFERROR(VLOOKUP(B136,'Schedule V(b)'!$B$11:$Z$315,11,0),0)","v":"Select"},null,{"$f":"IFERROR(VLOOKUP(B136,'Schedule V(b)'!$B$11:$Z$315,13,0),0)","v":0},null,null,null,{"$f":"IFERROR(VLOOKUP(B136,'Schedule V(b)'!$B$11:$Z$315,17,0),0)","v":0},null,{"$f":"IFERROR(VLOOKUP(B136,'Schedule V(b)'!$B$11:$Z$315,25,0),0)","v":0},null,{"$f":"IFERROR(VLOOKUP(B136,'Schedule V(b)'!$B$11:$Z$315,23,0),0)","v":0},null,"0",null,0]
[126,null,null,{"$f":"IFERROR(VLOOKUP(B137,'Schedule V(b)'!$B$11:$Z$315,3,0),0)","v":0},null,{"$f":"IFERROR(VLOOKUP(B137,'Schedule V(b)'!$B$11:$Z$315,7,0),0)","v":"Select"},null,{"$f":"IFERROR(VLOOKUP(B137,'Schedule V(b)'!$B$11:$Z$315,9,0),0)","v":0},null,{"$f":"IFERROR(VLOOKUP(B137,'Schedule V(b)'!$B$11:$Z$315,11,0),0)","v":"Select"},null,{"$f":"IFERROR(VLOOKUP(B137,'Schedule V(b)'!$B$11:$Z$315,13,0),0)","v":0},null,null,null,{"$f":"IFERROR(VLOOKUP(B137,'Schedule V(b)'!$B$11:$Z$315,17,0),0)","v":0},null,{"$f":"IFERROR(VLOOKUP(B137,'Schedule V(b)'!$B$11:$Z$315,25,0),0)","v":0},null,{"$f":"IFERROR(VLOOKUP(B137,'Schedule V(b)'!$B$11:$Z$315,23,0),0)","v":0},null,"0",null,0]
[127,null,null,{"$f":"IFERROR(VLOOKUP(B138,'Schedule V(b)'!$B$11:$Z$315,3,0),0)","v":0},null,{"$f":"IFERROR(VLOOKUP(B138,'Schedule V(b)'!$B$11:$Z$315,7,0),0)","v":"Select"},null,{"$f":"IFERROR(VLOOKUP(B138,'Schedule V(b)'!$B$11:$Z$315,9,0),0)","v":0},null,{"$f":"IFERROR(VLOOKUP(B138,'Schedule V(b)'!$B$11:$Z$315,11,0),0)","v":"Select"},null,{"$f":"IFERROR(VLOOKUP(B138,'Schedule V(b)'!$B$11:$Z$315,13,0),0)","v":0},null,null,null,{"$f":"IFERROR(VLOOKUP(B138,'Schedule V(b)'!$B$11:$Z$315,17,0),0)","v":0},null,{"$f":"IFERROR(VLOOKUP(B138,'Schedule V(b)'!$B$11:$Z$315,25,0),0)","v":0},null,{"$f":"IFERROR(VLOOKUP(B138,'Schedule V(b)'!$B$11:$Z$315,23,0),0)","v":0},null,"0",null,0]
[128,null,null,{"$f":"IFERROR(VLOOKUP(B139,'Schedule V(b)'!$B$11:$Z$315,3,0),0)","v":0},null,{"$f":"IFERROR(VLOOKUP(B139,'Schedule V(b)'!$B$11:$Z$315,7,0),0)","v":"Select"},null,{"$f":"IFERROR(VLOOKUP(B139,'Schedule V(b)'!$B$11:$Z$315,9,0),0)","v":0},null,{"$f":"IFERROR(VLOOKUP(B139,'Schedule V(b)'!$B$11:$Z$315,11,0),0)","v":"Select"},null,{"$f":"IFERROR(VLOOKUP(B139,'Schedule V(b)'!$B$11:$Z$315,13,0),0)","v":0},null,null,null,{"$f":"IFERROR(VLOOKUP(B139,'Schedule V(b)'!$B$11:$Z$315,17,0),0)","v":0},null,{"$f":"IFERROR(VLOOKUP(B139,'Schedule V(b)'!$B$11:$Z$315,25,0),0)","v":0},null,{"$f":"IFERROR(VLOOKUP(B139,'Schedule V(b)'!$B$11:$Z$315,23,0),0)","v":0},null,"0",null,0]
[129,null,null,{"$f":"IFERROR(VLOOKUP(B140,'Schedule V(b)'!$B$11:$Z$315,3,0),0)","v":0},null,{"$f":"IFERROR(VLOOKUP(B140,'Schedule V(b)'!$B$11:$Z$315,7,0),0)","v":"Select"},null,{"$f":"IFERROR(VLOOKUP(B140,'Schedule V(b)'!$B$11:$Z$315,9,0),0)","v":0},null,{"$f":"IFERROR(VLOOKUP(B140,'Schedule V(b)'!$B$11:$Z$315,11,0),0)","v":"Select"},null,{"$f":"IFERROR(VLOOKUP(B140,'Schedule V(b)'!$B$11:$Z$315,13,0),0)","v":0},null,null,null,{"$f":"IFERROR(VLOOKUP(B140,'Schedule V(b)'!$B$11:$Z$315,17,0),0)","v":0},null,{"$f":"IFERROR(VLOOKUP(B140,'Schedule V(b)'!$B$11:$Z$315,25,0),0)","v":0},null,{"$f":"IFERROR(VLOOKUP(B140,'Schedule V(b)'!$B$11:$Z$315,23,0),0)","v":0},null,{"$f":"IF(N140=\"unregulated entities that conduct ancillary services \",\"0%\",IF(N140=\"Unregulated non-financial operating entities\",\"15%\",IF(N140=\"unregulated financial operating entities\",\"50%\",\"0\")))","v":"0"},null,{"$f":"P140*T140*V140","v":0}]
[130,null,null,{"$f":"IFERROR(VLOOKUP(B141,'Schedule V(b)'!$B$11:$Z$315,3,0),0)","v":0},null,{"$f":"IFERROR(VLOOKUP(B141,'Schedule V(b)'!$B$11:$Z$315,7,0),0)","v":"Select"},null,{"$f":"IFERROR(VLOOKUP(B141,'Schedule V(b)'!$B$11:$Z$315,9,0),0)","v":0},null,{"$f":"IFERROR(VLOOKUP(B141,'Schedule V(b)'!$B$11:$Z$315,11,0),0)","v":"Select"},null,{"$f":"IFERROR(VLOOKUP(B141,'Schedule V(b)'!$B$11:$Z$315,13,0),0)","v":0},null,null,null,{"$f":"IFERROR(VLOOKUP(B141,'Schedule V(b)'!$B$11:$Z$315,17,0),0)","v":0},null,{"$f":"IFERROR(VLOOKUP(B141,'Schedule V(b)'!$B$11:$Z$315,25,0),0)","v":0},null,{"$f":"IFERROR(VLOOKUP(B141,'Schedule V(b)'!$B$11:$Z$315,23,0),0)","v":0},null,"0",null,0]
[131,null,null,{"$f":"IFERROR(VLOOKUP(B142,'Schedule V(b)'!$B$11:$Z$315,3,0),0)","v":0},null,{"$f":"IFERROR(VLOOKUP(B142,'Schedule V(b)'!$B$11:$Z$315,7,0),0)","v":"Select"},null,{"$f":"IFERROR(VLOOKUP(B142,'Schedule V(b)'!$B$11:$Z$315,9,0),0)","v":0},null,{"$f":"IFERROR(VLOOKUP(B142,'Schedule V(b)'!$B$11:$Z$315,11,0),0)","v":"Select"},null,{"$f":"IFERROR(VLOOKUP(B142,'Schedule V(b)'!$B$11:$Z$315,13,0),0)","v":0},null,null,null,{"$f":"IFERROR(VLOOKUP(B142,'Schedule V(b)'!$B$11:$Z$315,17,0),0)","v":0},null,{"$f":"IFERROR(VLOOKUP(B142,'Schedule V(b)'!$B$11:$Z$315,25,0),0)","v":0},null,{"$f":"IFERROR(VLOOKUP(B142,'Schedule V(b)'!$B$11:$Z$315,23,0),0)","v":0},null,"0",null,0]
[132,null,null,{"$f":"IFERROR(VLOOKUP(B143,'Schedule V(b)'!$B$11:$Z$315,3,0),0)","v":0},null,{"$f":"IFERROR(VLOOKUP(B143,'Schedule V(b)'!$B$11:$Z$315,7,0),0)","v":"Select"},null,{"$f":"IFERROR(VLOOKUP(B143,'Schedule V(b)'!$B$11:$Z$315,9,0),0)","v":0},null,{"$f":"IFERROR(VLOOKUP(B143,'Schedule V(b)'!$B$11:$Z$315,11,0),0)","v":"Select"},null,{"$f":"IFERROR(VLOOKUP(B143,'Schedule V(b)'!$B$11:$Z$315,13,0),0)","v":0},null,null,null,{"$f":"IFERROR(VLOOKUP(B143,'Schedule V(b)'!$B$11:$Z$315,17,0),0)","v":0},null,{"$f":"IFERROR(VLOOKUP(B143,'Schedule V(b)'!$B$11:$Z$315,25,0),0)","v":0},null,{"$f":"IFERROR(VLOOKUP(B143,'Schedule V(b)'!$B$11:$Z$315,23,0),0)","v":0},null,"0",null,0]
[133,null,null,{"$f":"IFERROR(VLOOKUP(B144,'Schedule V(b)'!$B$11:$Z$315,3,0),0)","v":0},null,{"$f":"IFERROR(VLOOKUP(B144,'Schedule V(b)'!$B$11:$Z$315,7,0),0)","v":"Select"},null,{"$f":"IFERROR(VLOOKUP(B144,'Schedule V(b)'!$B$11:$Z$315,9,0),0)","v":0},null,{"$f":"IFERROR(VLOOKUP(B144,'Schedule V(b)'!$B$11:$Z$315,11,0),0)","v":"Select"},null,{"$f":"IFERROR(VLOOKUP(B144,'Schedule V(b)'!$B$11:$Z$315,13,0),0)","v":0},null,null,null,{"$f":"IFERROR(VLOOKUP(B144,'Schedule V(b)'!$B$11:$Z$315,17,0),0)","v":0},null,{"$f":"IFERROR(VLOOKUP(B144,'Schedule V(b)'!$B$11:$Z$315,25,0),0)","v":0},null,{"$f":"IFERROR(VLOOKUP(B144,'Schedule V(b)'!$B$11:$Z$315,23,0),0)","v":0},null,"0",null,0]
[134,null,null,{"$f":"IFERROR(VLOOKUP(B145,'Schedule V(b)'!$B$11:$Z$315,3,0),0)","v":0},null,{"$f":"IFERROR(VLOOKUP(B145,'Schedule V(b)'!$B$11:$Z$315,7,0),0)","v":"Select"},null,{"$f":"IFERROR(VLOOKUP(B145,'Schedule V(b)'!$B$11:$Z$315,9,0),0)","v":0},null,{"$f":"IFERROR(VLOOKUP(B145,'Schedule V(b)'!$B$11:$Z$315,11,0),0)","v":"Select"},null,{"$f":"IFERROR(VLOOKUP(B145,'Schedule V(b)'!$B$11:$Z$315,13,0),0)","v":0},null,null,null,{"$f":"IFERROR(VLOOKUP(B145,'Schedule V(b)'!$B$11:$Z$315,17,0),0)","v":0},null,{"$f":"IFERROR(VLOOKUP(B145,'Schedule V(b)'!$B$11:$Z$315,25,0),0)","v":0},null,{"$f":"IFERROR(VLOOKUP(B145,'Schedule V(b)'!$B$11:$Z$315,23,0),0)","v":0},null,"0",null,0]
[135,null,null,{"$f":"IFERROR(VLOOKUP(B146,'Schedule V(b)'!$B$11:$Z$315,3,0),0)","v":0},null,{"$f":"IFERROR(VLOOKUP(B146,'Schedule V(b)'!$B$11:$Z$315,7,0),0)","v":"Select"},null,{"$f":"IFERROR(VLOOKUP(B146,'Schedule V(b)'!$B$11:$Z$315,9,0),0)","v":0},null,{"$f":"IFERROR(VLOOKUP(B146,'Schedule V(b)'!$B$11:$Z$315,11,0),0)","v":"Select"},null,{"$f":"IFERROR(VLOOKUP(B146,'Schedule V(b)'!$B$11:$Z$315,13,0),0)","v":0},null,null,null,{"$f":"IFERROR(VLOOKUP(B146,'Schedule V(b)'!$B$11:$Z$315,17,0),0)","v":0},null,{"$f":"IFERROR(VLOOKUP(B146,'Schedule V(b)'!$B$11:$Z$315,25,0),0)","v":0},null,{"$f":"IFERROR(VLOOKUP(B146,'Schedule V(b)'!$B$11:$Z$315,23,0),0)","v":0},null,"0",null,0]
[136,null,null,{"$f":"IFERROR(VLOOKUP(B147,'Schedule V(b)'!$B$11:$Z$315,3,0),0)","v":0},null,{"$f":"IFERROR(VLOOKUP(B147,'Schedule V(b)'!$B$11:$Z$315,7,0),0)","v":"Select"},null,{"$f":"IFERROR(VLOOKUP(B147,'Schedule V(b)'!$B$11:$Z$315,9,0),0)","v":0},null,{"$f":"IFERROR(VLOOKUP(B147,'Schedule V(b)'!$B$11:$Z$315,11,0),0)","v":"Select"},null,{"$f":"IFERROR(VLOOKUP(B147,'Schedule V(b)'!$B$11:$Z$315,13,0),0)","v":0},null,null,null,{"$f":"IFERROR(VLOOKUP(B147,'Schedule V(b)'!$B$11:$Z$315,17,0),0)","v":0},null,{"$f":"IFERROR(VLOOKUP(B147,'Schedule V(b)'!$B$11:$Z$315,25,0),0)","v":0},null,{"$f":"IFERROR(VLOOKUP(B147,'Schedule V(b)'!$B$11:$Z$315,23,0),0)","v":0},null,"0",null,0]
[137,null,null,{"$f":"IFERROR(VLOOKUP(B148,'Schedule V(b)'!$B$11:$Z$315,3,0),0)","v":0},null,{"$f":"IFERROR(VLOOKUP(B148,'Schedule V(b)'!$B$11:$Z$315,7,0),0)","v":"Select"},null,{"$f":"IFERROR(VLOOKUP(B148,'Schedule V(b)'!$B$11:$Z$315,9,0),0)","v":0},null,{"$f":"IFERROR(VLOOKUP(B148,'Schedule V(b)'!$B$11:$Z$315,11,0),0)","v":"Select"},null,{"$f":"IFERROR(VLOOKUP(B148,'Schedule V(b)'!$B$11:$Z$315,13,0),0)","v":0},null,null,null,{"$f":"IFERROR(VLOOKUP(B148,'Schedule V(b)'!$B$11:$Z$315,17,0),0)","v":0},null,{"$f":"IFERROR(VLOOKUP(B148,'Schedule V(b)'!$B$11:$Z$315,25,0),0)","v":0},null,{"$f":"IFERROR(VLOOKUP(B148,'Schedule V(b)'!$B$11:$Z$315,23,0),0)","v":0},null,"0",null,0]
[138,null,null,{"$f":"IFERROR(VLOOKUP(B149,'Schedule V(b)'!$B$11:$Z$315,3,0),0)","v":0},null,{"$f":"IFERROR(VLOOKUP(B149,'Schedule V(b)'!$B$11:$Z$315,7,0),0)","v":"Select"},null,{"$f":"IFERROR(VLOOKUP(B149,'Schedule V(b)'!$B$11:$Z$315,9,0),0)","v":0},null,{"$f":"IFERROR(VLOOKUP(B149,'Schedule V(b)'!$B$11:$Z$315,11,0),0)","v":"Select"},null,{"$f":"IFERROR(VLOOKUP(B149,'Schedule V(b)'!$B$11:$Z$315,13,0),0)","v":0},null,null,null,{"$f":"IFERROR(VLOOKUP(B149,'Schedule V(b)'!$B$11:$Z$315,17,0),0)","v":0},null,{"$f":"IFERROR(VLOOKUP(B149,'Schedule V(b)'!$B$11:$Z$315,25,0),0)","v":0},null,{"$f":"IFERROR(VLOOKUP(B149,'Schedule V(b)'!$B$11:$Z$315,23,0),0)","v":0},null,"0",null,0]
[139,null,null,{"$f":"IFERROR(VLOOKUP(B150,'Schedule V(b)'!$B$11:$Z$315,3,0),0)","v":0},null,{"$f":"IFERROR(VLOOKUP(B150,'Schedule V(b)'!$B$11:$Z$315,7,0),0)","v":"Select"},null,{"$f":"IFERROR(VLOOKUP(B150,'Schedule V(b)'!$B$11:$Z$315,9,0),0)","v":0},null,{"$f":"IFERROR(VLOOKUP(B150,'Schedule V(b)'!$B$11:$Z$315,11,0),0)","v":"Select"},null,{"$f":"IFERROR(VLOOKUP(B150,'Schedule V(b)'!$B$11:$Z$315,13,0),0)","v":0},null,null,null,{"$f":"IFERROR(VLOOKUP(B150,'Schedule V(b)'!$B$11:$Z$315,17,0),0)","v":0},null,{"$f":"IFERROR(VLOOKUP(B150,'Schedule V(b)'!$B$11:$Z$315,25,0),0)","v":0},null,{"$f":"IFERROR(VLOOKUP(B150,'Schedule V(b)'!$B$11:$Z$315,23,0),0)","v":0},null,"0",null,0]
[140,null,null,{"$f":"IFERROR(VLOOKUP(B151,'Schedule V(b)'!$B$11:$Z$315,3,0),0)","v":0},null,{"$f":"IFERROR(VLOOKUP(B151,'Schedule V(b)'!$B$11:$Z$315,7,0),0)","v":"Select"},null,{"$f":"IFERROR(VLOOKUP(B151,'Schedule V(b)'!$B$11:$Z$315,9,0),0)","v":0},null,{"$f":"IFERROR(VLOOKUP(B151,'Schedule V(b)'!$B$11:$Z$315,11,0),0)","v":"Select"},null,{"$f":"IFERROR(VLOOKUP(B151,'Schedule V(b)'!$B$11:$Z$315,13,0),0)","v":0},null,null,null,{"$f":"IFERROR(VLOOKUP(B151,'Schedule V(b)'!$B$11:$Z$315,17,0),0)","v":0},null,{"$f":"IFERROR(VLOOKUP(B151,'Schedule V(b)'!$B$11:$Z$315,25,0),0)","v":0},null,{"$f":"IFERROR(VLOOKUP(B151,'Schedule V(b)'!$B$11:$Z$315,23,0),0)","v":0},null,"0",null,0]
[141,null,null,{"$f":"IFERROR(VLOOKUP(B152,'Schedule V(b)'!$B$11:$Z$315,3,0),0)","v":0},null,{"$f":"IFERROR(VLOOKUP(B152,'Schedule V(b)'!$B$11:$Z$315,7,0),0)","v":"Select"},null,{"$f":"IFERROR(VLOOKUP(B152,'Schedule V(b)'!$B$11:$Z$315,9,0),0)","v":0},null,{"$f":"IFERROR(VLOOKUP(B152,'Schedule V(b)'!$B$11:$Z$315,11,0),0)","v":"Select"},null,{"$f":"IFERROR(VLOOKUP(B152,'Schedule V(b)'!$B$11:$Z$315,13,0),0)","v":0},null,null,null,{"$f":"IFERROR(VLOOKUP(B152,'Schedule V(b)'!$B$11:$Z$315,17,0),0)","v":0},null,{"$f":"IFERROR(VLOOKUP(B152,'Schedule V(b)'!$B$11:$Z$315,25,0),0)","v":0},null,{"$f":"IFERROR(VLOOKUP(B152,'Schedule V(b)'!$B$11:$Z$315,23,0),0)","v":0},null,"0",null,0]
[142,null,null,{"$f":"IFERROR(VLOOKUP(B153,'Schedule V(b)'!$B$11:$Z$315,3,0),0)","v":0},null,{"$f":"IFERROR(VLOOKUP(B153,'Schedule V(b)'!$B$11:$Z$315,7,0),0)","v":"Select"},null,{"$f":"IFERROR(VLOOKUP(B153,'Schedule V(b)'!$B$11:$Z$315,9,0),0)","v":0},null,{"$f":"IFERROR(VLOOKUP(B153,'Schedule V(b)'!$B$11:$Z$315,11,0),0)","v":"Select"},null,{"$f":"IFERROR(VLOOKUP(B153,'Schedule V(b)'!$B$11:$Z$315,13,0),0)","v":0},null,null,null,{"$f":"IFERROR(VLOOKUP(B153,'Schedule V(b)'!$B$11:$Z$315,17,0),0)","v":0},null,{"$f":"IFERROR(VLOOKUP(B153,'Schedule V(b)'!$B$11:$Z$315,25,0),0)","v":0},null,{"$f":"IFERROR(VLOOKUP(B153,'Schedule V(b)'!$B$11:$Z$315,23,0),0)","v":0},null,"0",null,0]
[143,null,null,{"$f":"IFERROR(VLOOKUP(B154,'Schedule V(b)'!$B$11:$Z$315,3,0),0)","v":0},null,{"$f":"IFERROR(VLOOKUP(B154,'Schedule V(b)'!$B$11:$Z$315,7,0),0)","v":"Select"},null,{"$f":"IFERROR(VLOOKUP(B154,'Schedule V(b)'!$B$11:$Z$315,9,0),0)","v":0},null,{"$f":"IFERROR(VLOOKUP(B154,'Schedule V(b)'!$B$11:$Z$315,11,0),0)","v":"Select"},null,{"$f":"IFERROR(VLOOKUP(B154,'Schedule V(b)'!$B$11:$Z$315,13,0),0)","v":0},null,null,null,{"$f":"IFERROR(VLOOKUP(B154,'Schedule V(b)'!$B$11:$Z$315,17,0),0)","v":0},null,{"$f":"IFERROR(VLOOKUP(B154,'Schedule V(b)'!$B$11:$Z$315,25,0),0)","v":0},null,{"$f":"IFERROR(VLOOKUP(B154,'Schedule V(b)'!$B$11:$Z$315,23,0),0)","v":0},null,"0",null,0]
[144,null,null,{"$f":"IFERROR(VLOOKUP(B155,'Schedule V(b)'!$B$11:$Z$315,3,0),0)","v":0},null,{"$f":"IFERROR(VLOOKUP(B155,'Schedule V(b)'!$B$11:$Z$315,7,0),0)","v":"Select"},null,{"$f":"IFERROR(VLOOKUP(B155,'Schedule V(b)'!$B$11:$Z$315,9,0),0)","v":0},null,{"$f":"IFERROR(VLOOKUP(B155,'Schedule V(b)'!$B$11:$Z$315,11,0),0)","v":"Select"},null,{"$f":"IFERROR(VLOOKUP(B155,'Schedule V(b)'!$B$11:$Z$315,13,0),0)","v":0},null,null,null,{"$f":"IFERROR(VLOOKUP(B155,'Schedule V(b)'!$B$11:$Z$315,17,0),0)","v":0},null,{"$f":"IFERROR(VLOOKUP(B155,'Schedule V(b)'!$B$11:$Z$315,25,0),0)","v":0},null,{"$f":"IFERROR(VLOOKUP(B155,'Schedule V(b)'!$B$11:$Z$315,23,0),0)","v":0},null,"0",null,0]
[145,null,null,{"$f":"IFERROR(VLOOKUP(B156,'Schedule V(b)'!$B$11:$Z$315,3,0),0)","v":0},null,{"$f":"IFERROR(VLOOKUP(B156,'Schedule V(b)'!$B$11:$Z$315,7,0),0)","v":"Select"},null,{"$f":"IFERROR(VLOOKUP(B156,'Schedule V(b)'!$B$11:$Z$315,9,0),0)","v":0},null,{"$f":"IFERROR(VLOOKUP(B156,'Schedule V(b)'!$B$11:$Z$315,11,0),0)","v":"Select"},null,{"$f":"IFERROR(VLOOKUP(B156,'Schedule V(b)'!$B$11:$Z$315,13,0),0)","v":0},null,null,null,{"$f":"IFERROR(VLOOKUP(B156,'Schedule V(b)'!$B$11:$Z$315,17,0),0)","v":0},null,{"$f":"IFERROR(VLOOKUP(B156,'Schedule V(b)'!$B$11:$Z$315,25,0),0)","v":0},null,{"$f":"IFERROR(VLOOKUP(B156,'Schedule V(b)'!$B$11:$Z$315,23,0),0)","v":0},null,"0",null,0]
[146,null,null,{"$f":"IFERROR(VLOOKUP(B157,'Schedule V(b)'!$B$11:$Z$315,3,0),0)","v":0},null,{"$f":"IFERROR(VLOOKUP(B157,'Schedule V(b)'!$B$11:$Z$315,7,0),0)","v":"Select"},null,{"$f":"IFERROR(VLOOKUP(B157,'Schedule V(b)'!$B$11:$Z$315,9,0),0)","v":0},null,{"$f":"IFERROR(VLOOKUP(B157,'Schedule V(b)'!$B$11:$Z$315,11,0),0)","v":"Select"},null,{"$f":"IFERROR(VLOOKUP(B157,'Schedule V(b)'!$B$11:$Z$315,13,0),0)","v":0},null,null,null,{"$f":"IFERROR(VLOOKUP(B157,'Schedule V(b)'!$B$11:$Z$315,17,0),0)","v":0},null,{"$f":"IFERROR(VLOOKUP(B157,'Schedule V(b)'!$B$11:$Z$315,25,0),0)","v":0},null,{"$f":"IFERROR(VLOOKUP(B157,'Schedule V(b)'!$B$11:$Z$315,23,0),0)","v":0},null,"0",null,0]
[147,null,null,{"$f":"IFERROR(VLOOKUP(B158,'Schedule V(b)'!$B$11:$Z$315,3,0),0)","v":0},null,{"$f":"IFERROR(VLOOKUP(B158,'Schedule V(b)'!$B$11:$Z$315,7,0),0)","v":"Select"},null,{"$f":"IFERROR(VLOOKUP(B158,'Schedule V(b)'!$B$11:$Z$315,9,0),0)","v":0},null,{"$f":"IFERROR(VLOOKUP(B158,'Schedule V(b)'!$B$11:$Z$315,11,0),0)","v":"Select"},null,{"$f":"IFERROR(VLOOKUP(B158,'Schedule V(b)'!$B$11:$Z$315,13,0),0)","v":0},null,null,null,{"$f":"IFERROR(VLOOKUP(B158,'Schedule V(b)'!$B$11:$Z$315,17,0),0)","v":0},null,{"$f":"IFERROR(VLOOKUP(B158,'Schedule V(b)'!$B$11:$Z$315,25,0),0)","v":0},null,{"$f":"IFERROR(VLOOKUP(B158,'Schedule V(b)'!$B$11:$Z$315,23,0),0)","v":0},null,"0",null,0]
[148,null,null,{"$f":"IFERROR(VLOOKUP(B159,'Schedule V(b)'!$B$11:$Z$315,3,0),0)","v":0},null,{"$f":"IFERROR(VLOOKUP(B159,'Schedule V(b)'!$B$11:$Z$315,7,0),0)","v":"Select"},null,{"$f":"IFERROR(VLOOKUP(B159,'Schedule V(b)'!$B$11:$Z$315,9,0),0)","v":0},null,{"$f":"IFERROR(VLOOKUP(B159,'Schedule V(b)'!$B$11:$Z$315,11,0),0)","v":"Select"},null,{"$f":"IFERROR(VLOOKUP(B159,'Schedule V(b)'!$B$11:$Z$315,13,0),0)","v":0},null,null,null,{"$f":"IFERROR(VLOOKUP(B159,'Schedule V(b)'!$B$11:$Z$315,17,0),0)","v":0},null,{"$f":"IFERROR(VLOOKUP(B159,'Schedule V(b)'!$B$11:$Z$315,25,0),0)","v":0},null,{"$f":"IFERROR(VLOOKUP(B159,'Schedule V(b)'!$B$11:$Z$315,23,0),0)","v":0},null,"0",null,0]
[149,null,null,{"$f":"IFERROR(VLOOKUP(B160,'Schedule V(b)'!$B$11:$Z$315,3,0),0)","v":0},null,{"$f":"IFERROR(VLOOKUP(B160,'Schedule V(b)'!$B$11:$Z$315,7,0),0)","v":"Select"},null,{"$f":"IFERROR(VLOOKUP(B160,'Schedule V(b)'!$B$11:$Z$315,9,0),0)","v":0},null,{"$f":"IFERROR(VLOOKUP(B160,'Schedule V(b)'!$B$11:$Z$315,11,0),0)","v":"Select"},null,{"$f":"IFERROR(VLOOKUP(B160,'Schedule V(b)'!$B$11:$Z$315,13,0),0)","v":0},null,null,null,{"$f":"IFERROR(VLOOKUP(B160,'Schedule V(b)'!$B$11:$Z$315,17,0),0)","v":0},null,{"$f":"IFERROR(VLOOKUP(B160,'Schedule V(b)'!$B$11:$Z$315,25,0),0)","v":0},null,{"$f":"IFERROR(VLOOKUP(B160,'Schedule V(b)'!$B$11:$Z$315,23,0),0)","v":0},null,"0",null,0]
[150,null,null,{"$f":"IFERROR(VLOOKUP(B161,'Schedule V(b)'!$B$11:$Z$315,3,0),0)","v":0},null,{"$f":"IFERROR(VLOOKUP(B161,'Schedule V(b)'!$B$11:$Z$315,7,0),0)","v":"Select"},null,{"$f":"IFERROR(VLOOKUP(B161,'Schedule V(b)'!$B$11:$Z$315,9,0),0)","v":0},null,{"$f":"IFERROR(VLOOKUP(B161,'Schedule V(b)'!$B$11:$Z$315,11,0),0)","v":"Select"},null,{"$f":"IFERROR(VLOOKUP(B161,'Schedule V(b)'!$B$11:$Z$315,13,0),0)","v":0},null,null,null,{"$f":"IFERROR(VLOOKUP(B161,'Schedule V(b)'!$B$11:$Z$315,17,0),0)","v":0},null,{"$f":"IFERROR(VLOOKUP(B161,'Schedule V(b)'!$B$11:$Z$315,25,0),0)","v":0},null,{"$f":"IFERROR(VLOOKUP(B161,'Schedule V(b)'!$B$11:$Z$315,23,0),0)","v":0},null,"0",null,0]
[151,null,null,{"$f":"IFERROR(VLOOKUP(B162,'Schedule V(b)'!$B$11:$Z$315,3,0),0)","v":0},null,{"$f":"IFERROR(VLOOKUP(B162,'Schedule V(b)'!$B$11:$Z$315,7,0),0)","v":"Select"},null,{"$f":"IFERROR(VLOOKUP(B162,'Schedule V(b)'!$B$11:$Z$315,9,0),0)","v":0},null,{"$f":"IFERROR(VLOOKUP(B162,'Schedule V(b)'!$B$11:$Z$315,11,0),0)","v":"Select"},null,{"$f":"IFERROR(VLOOKUP(B162,'Schedule V(b)'!$B$11:$Z$315,13,0),0)","v":0},null,null,null,{"$f":"IFERROR(VLOOKUP(B162,'Schedule V(b)'!$B$11:$Z$315,17,0),0)","v":0},null,{"$f":"IFERROR(VLOOKUP(B162,'Schedule V(b)'!$B$11:$Z$315,25,0),0)","v":0},null,{"$f":"IFERROR(VLOOKUP(B162,'Schedule V(b)'!$B$11:$Z$315,23,0),0)","v":0},null,"0",null,0]
[152,null,null,{"$f":"IFERROR(VLOOKUP(B163,'Schedule V(b)'!$B$11:$Z$315,3,0),0)","v":0},null,{"$f":"IFERROR(VLOOKUP(B163,'Schedule V(b)'!$B$11:$Z$315,7,0),0)","v":"Select"},null,{"$f":"IFERROR(VLOOKUP(B163,'Schedule V(b)'!$B$11:$Z$315,9,0),0)","v":0},null,{"$f":"IFERROR(VLOOKUP(B163,'Schedule V(b)'!$B$11:$Z$315,11,0),0)","v":"Select"},null,{"$f":"IFERROR(VLOOKUP(B163,'Schedule V(b)'!$B$11:$Z$315,13,0),0)","v":0},null,null,null,{"$f":"IFERROR(VLOOKUP(B163,'Schedule V(b)'!$B$11:$Z$315,17,0),0)","v":0},null,{"$f":"IFERROR(VLOOKUP(B163,'Schedule V(b)'!$B$11:$Z$315,25,0),0)","v":0},null,{"$f":"IFERROR(VLOOKUP(B163,'Schedule V(b)'!$B$11:$Z$315,23,0),0)","v":0},null,"0",null,0]
[153,null,null,{"$f":"IFERROR(VLOOKUP(B164,'Schedule V(b)'!$B$11:$Z$315,3,0),0)","v":0},null,{"$f":"IFERROR(VLOOKUP(B164,'Schedule V(b)'!$B$11:$Z$315,7,0),0)","v":"Select"},null,{"$f":"IFERROR(VLOOKUP(B164,'Schedule V(b)'!$B$11:$Z$315,9,0),0)","v":0},null,{"$f":"IFERROR(VLOOKUP(B164,'Schedule V(b)'!$B$11:$Z$315,11,0),0)","v":"Select"},null,{"$f":"IFERROR(VLOOKUP(B164,'Schedule V(b)'!$B$11:$Z$315,13,0),0)","v":0},null,null,null,{"$f":"IFERROR(VLOOKUP(B164,'Schedule V(b)'!$B$11:$Z$315,17,0),0)","v":0},null,{"$f":"IFERROR(VLOOKUP(B164,'Schedule V(b)'!$B$11:$Z$315,25,0),0)","v":0},null,{"$f":"IFERROR(VLOOKUP(B164,'Schedule V(b)'!$B$11:$Z$315,23,0),0)","v":0},null,"0",null,0]
[154,null,null,{"$f":"IFERROR(VLOOKUP(B165,'Schedule V(b)'!$B$11:$Z$315,3,0),0)","v":0},null,{"$f":"IFERROR(VLOOKUP(B165,'Schedule V(b)'!$B$11:$Z$315,7,0),0)","v":"Select"},null,{"$f":"IFERROR(VLOOKUP(B165,'Schedule V(b)'!$B$11:$Z$315,9,0),0)","v":0},null,{"$f":"IFERROR(VLOOKUP(B165,'Schedule V(b)'!$B$11:$Z$315,11,0),0)","v":"Select"},null,{"$f":"IFERROR(VLOOKUP(B165,'Schedule V(b)'!$B$11:$Z$315,13,0),0)","v":0},null,null,null,{"$f":"IFERROR(VLOOKUP(B165,'Schedule V(b)'!$B$11:$Z$315,17,0),0)","v":0},null,{"$f":"IFERROR(VLOOKUP(B165,'Schedule V(b)'!$B$11:$Z$315,25,0),0)","v":0},null,{"$f":"IFERROR(VLOOKUP(B165,'Schedule V(b)'!$B$11:$Z$315,23,0),0)","v":0},null,"0",null,0]
[155,null,null,{"$f":"IFERROR(VLOOKUP(B166,'Schedule V(b)'!$B$11:$Z$315,3,0),0)","v":0},null,{"$f":"IFERROR(VLOOKUP(B166,'Schedule V(b)'!$B$11:$Z$315,7,0),0)","v":"Select"},null,{"$f":"IFERROR(VLOOKUP(B166,'Schedule V(b)'!$B$11:$Z$315,9,0),0)","v":0},null,{"$f":"IFERROR(VLOOKUP(B166,'Schedule V(b)'!$B$11:$Z$315,11,0),0)","v":"Select"},null,{"$f":"IFERROR(VLOOKUP(B166,'Schedule V(b)'!$B$11:$Z$315,13,0),0)","v":0},null,null,null,{"$f":"IFERROR(VLOOKUP(B166,'Schedule V(b)'!$B$11:$Z$315,17,0),0)","v":0},null,{"$f":"IFERROR(VLOOKUP(B166,'Schedule V(b)'!$B$11:$Z$315,25,0),0)","v":0},null,{"$f":"IFERROR(VLOOKUP(B166,'Schedule V(b)'!$B$11:$Z$315,23,0),0)","v":0},null,"0",null,0]
[156,null,null,{"$f":"IFERROR(VLOOKUP(B167,'Schedule V(b)'!$B$11:$Z$315,3,0),0)","v":0},null,{"$f":"IFERROR(VLOOKUP(B167,'Schedule V(b)'!$B$11:$Z$315,7,0),0)","v":"Select"},null,{"$f":"IFERROR(VLOOKUP(B167,'Schedule V(b)'!$B$11:$Z$315,9,0),0)","v":0},null,{"$f":"IFERROR(VLOOKUP(B167,'Schedule V(b)'!$B$11:$Z$315,11,0),0)","v":"Select"},null,{"$f":"IFERROR(VLOOKUP(B167,'Schedule V(b)'!$B$11:$Z$315,13,0),0)","v":0},null,null,null,{"$f":"IFERROR(VLOOKUP(B167,'Schedule V(b)'!$B$11:$Z$315,17,0),0)","v":0},null,{"$f":"IFERROR(VLOOKUP(B167,'Schedule V(b)'!$B$11:$Z$315,25,0),0)","v":0},null,{"$f":"IFERROR(VLOOKUP(B167,'Schedule V(b)'!$B$11:$Z$315,23,0),0)","v":0},null,"0",null,0]
[157,null,null,{"$f":"IFERROR(VLOOKUP(B168,'Schedule V(b)'!$B$11:$Z$315,3,0),0)","v":0},null,{"$f":"IFERROR(VLOOKUP(B168,'Schedule V(b)'!$B$11:$Z$315,7,0),0)","v":"Select"},null,{"$f":"IFERROR(VLOOKUP(B168,'Schedule V(b)'!$B$11:$Z$315,9,0),0)","v":0},null,{"$f":"IFERROR(VLOOKUP(B168,'Schedule V(b)'!$B$11:$Z$315,11,0),0)","v":"Select"},null,{"$f":"IFERROR(VLOOKUP(B168,'Schedule V(b)'!$B$11:$Z$315,13,0),0)","v":0},null,null,null,{"$f":"IFERROR(VLOOKUP(B168,'Schedule V(b)'!$B$11:$Z$315,17,0),0)","v":0},null,{"$f":"IFERROR(VLOOKUP(B168,'Schedule V(b)'!$B$11:$Z$315,25,0),0)","v":0},null,{"$f":"IFERROR(VLOOKUP(B168,'Schedule V(b)'!$B$11:$Z$315,23,0),0)","v":0},null,"0",null,0]
[158,null,null,{"$f":"IFERROR(VLOOKUP(B169,'Schedule V(b)'!$B$11:$Z$315,3,0),0)","v":0},null,{"$f":"IFERROR(VLOOKUP(B169,'Schedule V(b)'!$B$11:$Z$315,7,0),0)","v":"Select"},null,{"$f":"IFERROR(VLOOKUP(B169,'Schedule V(b)'!$B$11:$Z$315,9,0),0)","v":0},null,{"$f":"IFERROR(VLOOKUP(B169,'Schedule V(b)'!$B$11:$Z$315,11,0),0)","v":"Select"},null,{"$f":"IFERROR(VLOOKUP(B169,'Schedule V(b)'!$B$11:$Z$315,13,0),0)","v":0},null,null,null,{"$f":"IFERROR(VLOOKUP(B169,'Schedule V(b)'!$B$11:$Z$315,17,0),0)","v":0},null,{"$f":"IFERROR(VLOOKUP(B169,'Schedule V(b)'!$B$11:$Z$315,25,0),0)","v":0},null,{"$f":"IFERROR(VLOOKUP(B169,'Schedule V(b)'!$B$11:$Z$315,23,0),0)","v":0},null,"0",null,0]
[159,null,null,{"$f":"IFERROR(VLOOKUP(B170,'Schedule V(b)'!$B$11:$Z$315,3,0),0)","v":0},null,{"$f":"IFERROR(VLOOKUP(B170,'Schedule V(b)'!$B$11:$Z$315,7,0),0)","v":"Select"},null,{"$f":"IFERROR(VLOOKUP(B170,'Schedule V(b)'!$B$11:$Z$315,9,0),0)","v":0},null,{"$f":"IFERROR(VLOOKUP(B170,'Schedule V(b)'!$B$11:$Z$315,11,0),0)","v":"Select"},null,{"$f":"IFERROR(VLOOKUP(B170,'Schedule V(b)'!$B$11:$Z$315,13,0),0)","v":0},null,null,null,{"$f":"IFERROR(VLOOKUP(B170,'Schedule V(b)'!$B$11:$Z$315,17,0),0)","v":0},null,{"$f":"IFERROR(VLOOKUP(B170,'Schedule V(b)'!$B$11:$Z$315,25,0),0)","v":0},null,{"$f":"IFERROR(VLOOKUP(B170,'Schedule V(b)'!$B$11:$Z$315,23,0),0)","v":0},null,"0",null,0]
[160,null,null,{"$f":"IFERROR(VLOOKUP(B171,'Schedule V(b)'!$B$11:$Z$315,3,0),0)","v":0},null,{"$f":"IFERROR(VLOOKUP(B171,'Schedule V(b)'!$B$11:$Z$315,7,0),0)","v":"Select"},null,{"$f":"IFERROR(VLOOKUP(B171,'Schedule V(b)'!$B$11:$Z$315,9,0),0)","v":0},null,{"$f":"IFERROR(VLOOKUP(B171,'Schedule V(b)'!$B$11:$Z$315,11,0),0)","v":"Select"},null,{"$f":"IFERROR(VLOOKUP(B171,'Schedule V(b)'!$B$11:$Z$315,13,0),0)","v":0},null,null,null,{"$f":"IFERROR(VLOOKUP(B171,'Schedule V(b)'!$B$11:$Z$315,17,0),0)","v":0},null,{"$f":"IFERROR(VLOOKUP(B171,'Schedule V(b)'!$B$11:$Z$315,25,0),0)","v":0},null,{"$f":"IFERROR(VLOOKUP(B171,'Schedule V(b)'!$B$11:$Z$315,23,0),0)","v":0},null,"0",null,0]
[161,null,null,{"$f":"IFERROR(VLOOKUP(B172,'Schedule V(b)'!$B$11:$Z$315,3,0),0)","v":0},null,{"$f":"IFERROR(VLOOKUP(B172,'Schedule V(b)'!$B$11:$Z$315,7,0),0)","v":"Select"},null,{"$f":"IFERROR(VLOOKUP(B172,'Schedule V(b)'!$B$11:$Z$315,9,0),0)","v":0},null,{"$f":"IFERROR(VLOOKUP(B172,'Schedule V(b)'!$B$11:$Z$315,11,0),0)","v":"Select"},null,{"$f":"IFERROR(VLOOKUP(B172,'Schedule V(b)'!$B$11:$Z$315,13,0),0)","v":0},null,null,null,{"$f":"IFERROR(VLOOKUP(B172,'Schedule V(b)'!$B$11:$Z$315,17,0),0)","v":0},null,{"$f":"IFERROR(VLOOKUP(B172,'Schedule V(b)'!$B$11:$Z$315,25,0),0)","v":0},null,{"$f":"IFERROR(VLOOKUP(B172,'Schedule V(b)'!$B$11:$Z$315,23,0),0)","v":0},null,"0",null,0]
[162,null,null,{"$f":"IFERROR(VLOOKUP(B173,'Schedule V(b)'!$B$11:$Z$315,3,0),0)","v":0},null,{"$f":"IFERROR(VLOOKUP(B173,'Schedule V(b)'!$B$11:$Z$315,7,0),0)","v":"Select"},null,{"$f":"IFERROR(VLOOKUP(B173,'Schedule V(b)'!$B$11:$Z$315,9,0),0)","v":0},null,{"$f":"IFERROR(VLOOKUP(B173,'Schedule V(b)'!$B$11:$Z$315,11,0),0)","v":"Select"},null,{"$f":"IFERROR(VLOOKUP(B173,'Schedule V(b)'!$B$11:$Z$315,13,0),0)","v":0},null,null,null,{"$f":"IFERROR(VLOOKUP(B173,'Schedule V(b)'!$B$11:$Z$315,17,0),0)","v":0},null,{"$f":"IFERROR(VLOOKUP(B173,'Schedule V(b)'!$B$11:$Z$315,25,0),0)","v":0},null,{"$f":"IFERROR(VLOOKUP(B173,'Schedule V(b)'!$B$11:$Z$315,23,0),0)","v":0},null,"0",null,0]
[163,null,null,{"$f":"IFERROR(VLOOKUP(B174,'Schedule V(b)'!$B$11:$Z$315,3,0),0)","v":0},null,{"$f":"IFERROR(VLOOKUP(B174,'Schedule V(b)'!$B$11:$Z$315,7,0),0)","v":"Select"},null,{"$f":"IFERROR(VLOOKUP(B174,'Schedule V(b)'!$B$11:$Z$315,9,0),0)","v":0},null,{"$f":"IFERROR(VLOOKUP(B174,'Schedule V(b)'!$B$11:$Z$315,11,0),0)","v":"Select"},null,{"$f":"IFERROR(VLOOKUP(B174,'Schedule V(b)'!$B$11:$Z$315,13,0),0)","v":0},null,null,null,{"$f":"IFERROR(VLOOKUP(B174,'Schedule V(b)'!$B$11:$Z$315,17,0),0)","v":0},null,{"$f":"IFERROR(VLOOKUP(B174,'Schedule V(b)'!$B$11:$Z$315,25,0),0)","v":0},null,{"$f":"IFERROR(VLOOKUP(B174,'Schedule V(b)'!$B$11:$Z$315,23,0),0)","v":0},null,"0",null,0]
[164,null,null,{"$f":"IFERROR(VLOOKUP(B175,'Schedule V(b)'!$B$11:$Z$315,3,0),0)","v":0},null,{"$f":"IFERROR(VLOOKUP(B175,'Schedule V(b)'!$B$11:$Z$315,7,0),0)","v":"Select"},null,{"$f":"IFERROR(VLOOKUP(B175,'Schedule V(b)'!$B$11:$Z$315,9,0),0)","v":0},null,{"$f":"IFERROR(VLOOKUP(B175,'Schedule V(b)'!$B$11:$Z$315,11,0),0)","v":"Select"},null,{"$f":"IFERROR(VLOOKUP(B175,'Schedule V(b)'!$B$11:$Z$315,13,0),0)","v":0},null,null,null,{"$f":"IFERROR(VLOOKUP(B175,'Schedule V(b)'!$B$11:$Z$315,17,0),0)","v":0},null,{"$f":"IFERROR(VLOOKUP(B175,'Schedule V(b)'!$B$11:$Z$315,25,0),0)","v":0},null,{"$f":"IFERROR(VLOOKUP(B175,'Schedule V(b)'!$B$11:$Z$315,23,0),0)","v":0},null,"0",null,0]
[165,null,null,{"$f":"IFERROR(VLOOKUP(B176,'Schedule V(b)'!$B$11:$Z$315,3,0),0)","v":0},null,{"$f":"IFERROR(VLOOKUP(B176,'Schedule V(b)'!$B$11:$Z$315,7,0),0)","v":"Select"},null,{"$f":"IFERROR(VLOOKUP(B176,'Schedule V(b)'!$B$11:$Z$315,9,0),0)","v":0},null,{"$f":"IFERROR(VLOOKUP(B176,'Schedule V(b)'!$B$11:$Z$315,11,0),0)","v":"Select"},null,{"$f":"IFERROR(VLOOKUP(B176,'Schedule V(b)'!$B$11:$Z$315,13,0),0)","v":0},null,null,null,{"$f":"IFERROR(VLOOKUP(B176,'Schedule V(b)'!$B$11:$Z$315,17,0),0)","v":0},null,{"$f":"IFERROR(VLOOKUP(B176,'Schedule V(b)'!$B$11:$Z$315,25,0),0)","v":0},null,{"$f":"IFERROR(VLOOKUP(B176,'Schedule V(b)'!$B$11:$Z$315,23,0),0)","v":0},null,"0",null,0]
[166,null,null,{"$f":"IFERROR(VLOOKUP(B177,'Schedule V(b)'!$B$11:$Z$315,3,0),0)","v":0},null,{"$f":"IFERROR(VLOOKUP(B177,'Schedule V(b)'!$B$11:$Z$315,7,0),0)","v":"Select"},null,{"$f":"IFERROR(VLOOKUP(B177,'Schedule V(b)'!$B$11:$Z$315,9,0),0)","v":0},null,{"$f":"IFERROR(VLOOKUP(B177,'Schedule V(b)'!$B$11:$Z$315,11,0),0)","v":"Select"},null,{"$f":"IFERROR(VLOOKUP(B177,'Schedule V(b)'!$B$11:$Z$315,13,0),0)","v":0},null,null,null,{"$f":"IFERROR(VLOOKUP(B177,'Schedule V(b)'!$B$11:$Z$315,17,0),0)","v":0},null,{"$f":"IFERROR(VLOOKUP(B177,'Schedule V(b)'!$B$11:$Z$315,25,0),0)","v":0},null,{"$f":"IFERROR(VLOOKUP(B177,'Schedule V(b)'!$B$11:$Z$315,23,0),0)","v":0},null,"0",null,0]
[167,null,null,{"$f":"IFERROR(VLOOKUP(B178,'Schedule V(b)'!$B$11:$Z$315,3,0),0)","v":0},null,{"$f":"IFERROR(VLOOKUP(B178,'Schedule V(b)'!$B$11:$Z$315,7,0),0)","v":"Select"},null,{"$f":"IFERROR(VLOOKUP(B178,'Schedule V(b)'!$B$11:$Z$315,9,0),0)","v":0},null,{"$f":"IFERROR(VLOOKUP(B178,'Schedule V(b)'!$B$11:$Z$315,11,0),0)","v":"Select"},null,{"$f":"IFERROR(VLOOKUP(B178,'Schedule V(b)'!$B$11:$Z$315,13,0),0)","v":0},null,null,null,{"$f":"IFERROR(VLOOKUP(B178,'Schedule V(b)'!$B$11:$Z$315,17,0),0)","v":0},null,{"$f":"IFERROR(VLOOKUP(B178,'Schedule V(b)'!$B$11:$Z$315,25,0),0)","v":0},null,{"$f":"IFERROR(VLOOKUP(B178,'Schedule V(b)'!$B$11:$Z$315,23,0),0)","v":0},null,"0",null,0]
[168,null,null,{"$f":"IFERROR(VLOOKUP(B179,'Schedule V(b)'!$B$11:$Z$315,3,0),0)","v":0},null,{"$f":"IFERROR(VLOOKUP(B179,'Schedule V(b)'!$B$11:$Z$315,7,0),0)","v":"Select"},null,{"$f":"IFERROR(VLOOKUP(B179,'Schedule V(b)'!$B$11:$Z$315,9,0),0)","v":0},null,{"$f":"IFERROR(VLOOKUP(B179,'Schedule V(b)'!$B$11:$Z$315,11,0),0)","v":"Select"},null,{"$f":"IFERROR(VLOOKUP(B179,'Schedule V(b)'!$B$11:$Z$315,13,0),0)","v":0},null,null,null,{"$f":"IFERROR(VLOOKUP(B179,'Schedule V(b)'!$B$11:$Z$315,17,0),0)","v":0},null,{"$f":"IFERROR(VLOOKUP(B179,'Schedule V(b)'!$B$11:$Z$315,25,0),0)","v":0},null,{"$f":"IFERROR(VLOOKUP(B179,'Schedule V(b)'!$B$11:$Z$315,23,0),0)","v":0},null,"0",null,0]
[169,null,null,{"$f":"IFERROR(VLOOKUP(B180,'Schedule V(b)'!$B$11:$Z$315,3,0),0)","v":0},null,{"$f":"IFERROR(VLOOKUP(B180,'Schedule V(b)'!$B$11:$Z$315,7,0),0)","v":"Select"},null,{"$f":"IFERROR(VLOOKUP(B180,'Schedule V(b)'!$B$11:$Z$315,9,0),0)","v":0},null,{"$f":"IFERROR(VLOOKUP(B180,'Schedule V(b)'!$B$11:$Z$315,11,0),0)","v":"Select"},null,{"$f":"IFERROR(VLOOKUP(B180,'Schedule V(b)'!$B$11:$Z$315,13,0),0)","v":0},null,null,null,{"$f":"IFERROR(VLOOKUP(B180,'Schedule V(b)'!$B$11:$Z$315,17,0),0)","v":0},null,{"$f":"IFERROR(VLOOKUP(B180,'Schedule V(b)'!$B$11:$Z$315,25,0),0)","v":0},null,{"$f":"IFERROR(VLOOKUP(B180,'Schedule V(b)'!$B$11:$Z$315,23,0),0)","v":0},null,"0",null,0]
[170,null,null,{"$f":"IFERROR(VLOOKUP(B181,'Schedule V(b)'!$B$11:$Z$315,3,0),0)","v":0},null,{"$f":"IFERROR(VLOOKUP(B181,'Schedule V(b)'!$B$11:$Z$315,7,0),0)","v":"Select"},null,{"$f":"IFERROR(VLOOKUP(B181,'Schedule V(b)'!$B$11:$Z$315,9,0),0)","v":0},null,{"$f":"IFERROR(VLOOKUP(B181,'Schedule V(b)'!$B$11:$Z$315,11,0),0)","v":"Select"},null,{"$f":"IFERROR(VLOOKUP(B181,'Schedule V(b)'!$B$11:$Z$315,13,0),0)","v":0},null,null,null,{"$f":"IFERROR(VLOOKUP(B181,'Schedule V(b)'!$B$11:$Z$315,17,0),0)","v":0},null,{"$f":"IFERROR(VLOOKUP(B181,'Schedule V(b)'!$B$11:$Z$315,25,0),0)","v":0},null,{"$f":"IFERROR(VLOOKUP(B181,'Schedule V(b)'!$B$11:$Z$315,23,0),0)","v":0},null,"0",null,0]
[171,null,null,{"$f":"IFERROR(VLOOKUP(B182,'Schedule V(b)'!$B$11:$Z$315,3,0),0)","v":0},null,{"$f":"IFERROR(VLOOKUP(B182,'Schedule V(b)'!$B$11:$Z$315,7,0),0)","v":"Select"},null,{"$f":"IFERROR(VLOOKUP(B182,'Schedule V(b)'!$B$11:$Z$315,9,0),0)","v":0},null,{"$f":"IFERROR(VLOOKUP(B182,'Schedule V(b)'!$B$11:$Z$315,11,0),0)","v":"Select"},null,{"$f":"IFERROR(VLOOKUP(B182,'Schedule V(b)'!$B$11:$Z$315,13,0),0)","v":0},null,null,null,{"$f":"IFERROR(VLOOKUP(B182,'Schedule V(b)'!$B$11:$Z$315,17,0),0)","v":0},null,{"$f":"IFERROR(VLOOKUP(B182,'Schedule V(b)'!$B$11:$Z$315,25,0),0)","v":0},null,{"$f":"IFERROR(VLOOKUP(B182,'Schedule V(b)'!$B$11:$Z$315,23,0),0)","v":0},null,"0",null,0]
[172,null,null,{"$f":"IFERROR(VLOOKUP(B183,'Schedule V(b)'!$B$11:$Z$315,3,0),0)","v":0},null,{"$f":"IFERROR(VLOOKUP(B183,'Schedule V(b)'!$B$11:$Z$315,7,0),0)","v":"Select"},null,{"$f":"IFERROR(VLOOKUP(B183,'Schedule V(b)'!$B$11:$Z$315,9,0),0)","v":0},null,{"$f":"IFERROR(VLOOKUP(B183,'Schedule V(b)'!$B$11:$Z$315,11,0),0)","v":"Select"},null,{"$f":"IFERROR(VLOOKUP(B183,'Schedule V(b)'!$B$11:$Z$315,13,0),0)","v":0},null,null,null,{"$f":"IFERROR(VLOOKUP(B183,'Schedule V(b)'!$B$11:$Z$315,17,0),0)","v":0},null,{"$f":"IFERROR(VLOOKUP(B183,'Schedule V(b)'!$B$11:$Z$315,25,0),0)","v":0},null,{"$f":"IFERROR(VLOOKUP(B183,'Schedule V(b)'!$B$11:$Z$315,23,0),0)","v":0},null,"0",null,0]
[173,null,null,{"$f":"IFERROR(VLOOKUP(B184,'Schedule V(b)'!$B$11:$Z$315,3,0),0)","v":0},null,{"$f":"IFERROR(VLOOKUP(B184,'Schedule V(b)'!$B$11:$Z$315,7,0),0)","v":"Select"},null,{"$f":"IFERROR(VLOOKUP(B184,'Schedule V(b)'!$B$11:$Z$315,9,0),0)","v":0},null,{"$f":"IFERROR(VLOOKUP(B184,'Schedule V(b)'!$B$11:$Z$315,11,0),0)","v":"Select"},null,{"$f":"IFERROR(VLOOKUP(B184,'Schedule V(b)'!$B$11:$Z$315,13,0),0)","v":0},null,null,null,{"$f":"IFERROR(VLOOKUP(B184,'Schedule V(b)'!$B$11:$Z$315,17,0),0)","v":0},null,{"$f":"IFERROR(VLOOKUP(B184,'Schedule V(b)'!$B$11:$Z$315,25,0),0)","v":0},null,{"$f":"IFERROR(VLOOKUP(B184,'Schedule V(b)'!$B$11:$Z$315,23,0),0)","v":0},null,"0",null,0]
[174,null,null,{"$f":"IFERROR(VLOOKUP(B185,'Schedule V(b)'!$B$11:$Z$315,3,0),0)","v":0},null,{"$f":"IFERROR(VLOOKUP(B185,'Schedule V(b)'!$B$11:$Z$315,7,0),0)","v":"Select"},null,{"$f":"IFERROR(VLOOKUP(B185,'Schedule V(b)'!$B$11:$Z$315,9,0),0)","v":0},null,{"$f":"IFERROR(VLOOKUP(B185,'Schedule V(b)'!$B$11:$Z$315,11,0),0)","v":"Select"},null,{"$f":"IFERROR(VLOOKUP(B185,'Schedule V(b)'!$B$11:$Z$315,13,0),0)","v":0},null,null,null,{"$f":"IFERROR(VLOOKUP(B185,'Schedule V(b)'!$B$11:$Z$315,17,0),0)","v":0},null,{"$f":"IFERROR(VLOOKUP(B185,'Schedule V(b)'!$B$11:$Z$315,25,0),0)","v":0},null,{"$f":"IFERROR(VLOOKUP(B185,'Schedule V(b)'!$B$11:$Z$315,23,0),0)","v":0},null,"0",null,0]
[175,null,null,{"$f":"IFERROR(VLOOKUP(B186,'Schedule V(b)'!$B$11:$Z$315,3,0),0)","v":0},null,{"$f":"IFERROR(VLOOKUP(B186,'Schedule V(b)'!$B$11:$Z$315,7,0),0)","v":"Select"},null,{"$f":"IFERROR(VLOOKUP(B186,'Schedule V(b)'!$B$11:$Z$315,9,0),0)","v":0},null,{"$f":"IFERROR(VLOOKUP(B186,'Schedule V(b)'!$B$11:$Z$315,11,0),0)","v":"Select"},null,{"$f":"IFERROR(VLOOKUP(B186,'Schedule V(b)'!$B$11:$Z$315,13,0),0)","v":0},null,null,null,{"$f":"IFERROR(VLOOKUP(B186,'Schedule V(b)'!$B$11:$Z$315,17,0),0)","v":0},null,{"$f":"IFERROR(VLOOKUP(B186,'Schedule V(b)'!$B$11:$Z$315,25,0),0)","v":0},null,{"$f":"IFERROR(VLOOKUP(B186,'Schedule V(b)'!$B$11:$Z$315,23,0),0)","v":0},null,"0",null,0]
[176,null,null,{"$f":"IFERROR(VLOOKUP(B187,'Schedule V(b)'!$B$11:$Z$315,3,0),0)","v":0},null,{"$f":"IFERROR(VLOOKUP(B187,'Schedule V(b)'!$B$11:$Z$315,7,0),0)","v":"Select"},null,{"$f":"IFERROR(VLOOKUP(B187,'Schedule V(b)'!$B$11:$Z$315,9,0),0)","v":0},null,{"$f":"IFERROR(VLOOKUP(B187,'Schedule V(b)'!$B$11:$Z$315,11,0),0)","v":"Select"},null,{"$f":"IFERROR(VLOOKUP(B187,'Schedule V(b)'!$B$11:$Z$315,13,0),0)","v":0},null,null,null,{"$f":"IFERROR(VLOOKUP(B187,'Schedule V(b)'!$B$11:$Z$315,17,0),0)","v":0},null,{"$f":"IFERROR(VLOOKUP(B187,'Schedule V(b)'!$B$11:$Z$315,25,0),0)","v":0},null,{"$f":"IFERROR(VLOOKUP(B187,'Schedule V(b)'!$B$11:$Z$315,23,0),0)","v":0},null,"0",null,0]
[177,null,null,{"$f":"IFERROR(VLOOKUP(B188,'Schedule V(b)'!$B$11:$Z$315,3,0),0)","v":0},null,{"$f":"IFERROR(VLOOKUP(B188,'Schedule V(b)'!$B$11:$Z$315,7,0),0)","v":"Select"},null,{"$f":"IFERROR(VLOOKUP(B188,'Schedule V(b)'!$B$11:$Z$315,9,0),0)","v":0},null,{"$f":"IFERROR(VLOOKUP(B188,'Schedule V(b)'!$B$11:$Z$315,11,0),0)","v":"Select"},null,{"$f":"IFERROR(VLOOKUP(B188,'Schedule V(b)'!$B$11:$Z$315,13,0),0)","v":0},null,null,null,{"$f":"IFERROR(VLOOKUP(B188,'Schedule V(b)'!$B$11:$Z$315,17,0),0)","v":0},null,{"$f":"IFERROR(VLOOKUP(B188,'Schedule V(b)'!$B$11:$Z$315,25,0),0)","v":0},null,{"$f":"IFERROR(VLOOKUP(B188,'Schedule V(b)'!$B$11:$Z$315,23,0),0)","v":0},null,"0",null,0]
[178,null,null,{"$f":"IFERROR(VLOOKUP(B189,'Schedule V(b)'!$B$11:$Z$315,3,0),0)","v":0},null,{"$f":"IFERROR(VLOOKUP(B189,'Schedule V(b)'!$B$11:$Z$315,7,0),0)","v":"Select"},null,{"$f":"IFERROR(VLOOKUP(B189,'Schedule V(b)'!$B$11:$Z$315,9,0),0)","v":0},null,{"$f":"IFERROR(VLOOKUP(B189,'Schedule V(b)'!$B$11:$Z$315,11,0),0)","v":"Select"},null,{"$f":"IFERROR(VLOOKUP(B189,'Schedule V(b)'!$B$11:$Z$315,13,0),0)","v":0},null,null,null,{"$f":"IFERROR(VLOOKUP(B189,'Schedule V(b)'!$B$11:$Z$315,17,0),0)","v":0},null,{"$f":"IFERROR(VLOOKUP(B189,'Schedule V(b)'!$B$11:$Z$315,25,0),0)","v":0},null,{"$f":"IFERROR(VLOOKUP(B189,'Schedule V(b)'!$B$11:$Z$315,23,0),0)","v":0},null,"0",null,0]
[179,null,null,{"$f":"IFERROR(VLOOKUP(B190,'Schedule V(b)'!$B$11:$Z$315,3,0),0)","v":0},null,{"$f":"IFERROR(VLOOKUP(B190,'Schedule V(b)'!$B$11:$Z$315,7,0),0)","v":"Select"},null,{"$f":"IFERROR(VLOOKUP(B190,'Schedule V(b)'!$B$11:$Z$315,9,0),0)","v":0},null,{"$f":"IFERROR(VLOOKUP(B190,'Schedule V(b)'!$B$11:$Z$315,11,0),0)","v":"Select"},null,{"$f":"IFERROR(VLOOKUP(B190,'Schedule V(b)'!$B$11:$Z$315,13,0),0)","v":0},null,null,null,{"$f":"IFERROR(VLOOKUP(B190,'Schedule V(b)'!$B$11:$Z$315,17,0),0)","v":0},null,{"$f":"IFERROR(VLOOKUP(B190,'Schedule V(b)'!$B$11:$Z$315,25,0),0)","v":0},null,{"$f":"IFERROR(VLOOKUP(B190,'Schedule V(b)'!$B$11:$Z$315,23,0),0)","v":0},null,"0",null,0]
[180,null,null,{"$f":"IFERROR(VLOOKUP(B191,'Schedule V(b)'!$B$11:$Z$315,3,0),0)","v":0},null,{"$f":"IFERROR(VLOOKUP(B191,'Schedule V(b)'!$B$11:$Z$315,7,0),0)","v":"Select"},null,{"$f":"IFERROR(VLOOKUP(B191,'Schedule V(b)'!$B$11:$Z$315,9,0),0)","v":0},null,{"$f":"IFERROR(VLOOKUP(B191,'Schedule V(b)'!$B$11:$Z$315,11,0),0)","v":"Select"},null,{"$f":"IFERROR(VLOOKUP(B191,'Schedule V(b)'!$B$11:$Z$315,13,0),0)","v":0},null,null,null,{"$f":"IFERROR(VLOOKUP(B191,'Schedule V(b)'!$B$11:$Z$315,17,0),0)","v":0},null,{"$f":"IFERROR(VLOOKUP(B191,'Schedule V(b)'!$B$11:$Z$315,25,0),0)","v":0},null,{"$f":"IFERROR(VLOOKUP(B191,'Schedule V(b)'!$B$11:$Z$315,23,0),0)","v":0},null,"0",null,0]
[181,null,null,{"$f":"IFERROR(VLOOKUP(B192,'Schedule V(b)'!$B$11:$Z$315,3,0),0)","v":0},null,{"$f":"IFERROR(VLOOKUP(B192,'Schedule V(b)'!$B$11:$Z$315,7,0),0)","v":"Select"},null,{"$f":"IFERROR(VLOOKUP(B192,'Schedule V(b)'!$B$11:$Z$315,9,0),0)","v":0},null,{"$f":"IFERROR(VLOOKUP(B192,'Schedule V(b)'!$B$11:$Z$315,11,0),0)","v":"Select"},null,{"$f":"IFERROR(VLOOKUP(B192,'Schedule V(b)'!$B$11:$Z$315,13,0),0)","v":0},null,null,null,{"$f":"IFERROR(VLOOKUP(B192,'Schedule V(b)'!$B$11:$Z$315,17,0),0)","v":0},null,{"$f":"IFERROR(VLOOKUP(B192,'Schedule V(b)'!$B$11:$Z$315,25,0),0)","v":0},null,{"$f":"IFERROR(VLOOKUP(B192,'Schedule V(b)'!$B$11:$Z$315,23,0),0)","v":0},null,"0",null,0]
[182,null,null,{"$f":"IFERROR(VLOOKUP(B193,'Schedule V(b)'!$B$11:$Z$315,3,0),0)","v":0},null,{"$f":"IFERROR(VLOOKUP(B193,'Schedule V(b)'!$B$11:$Z$315,7,0),0)","v":"Select"},null,{"$f":"IFERROR(VLOOKUP(B193,'Schedule V(b)'!$B$11:$Z$315,9,0),0)","v":0},null,{"$f":"IFERROR(VLOOKUP(B193,'Schedule V(b)'!$B$11:$Z$315,11,0),0)","v":"Select"},null,{"$f":"IFERROR(VLOOKUP(B193,'Schedule V(b)'!$B$11:$Z$315,13,0),0)","v":0},null,null,null,{"$f":"IFERROR(VLOOKUP(B193,'Schedule V(b)'!$B$11:$Z$315,17,0),0)","v":0},null,{"$f":"IFERROR(VLOOKUP(B193,'Schedule V(b)'!$B$11:$Z$315,25,0),0)","v":0},null,{"$f":"IFERROR(VLOOKUP(B193,'Schedule V(b)'!$B$11:$Z$315,23,0),0)","v":0},null,"0",null,0]
[183,null,null,{"$f":"IFERROR(VLOOKUP(B194,'Schedule V(b)'!$B$11:$Z$315,3,0),0)","v":0},null,{"$f":"IFERROR(VLOOKUP(B194,'Schedule V(b)'!$B$11:$Z$315,7,0),0)","v":"Select"},null,{"$f":"IFERROR(VLOOKUP(B194,'Schedule V(b)'!$B$11:$Z$315,9,0),0)","v":0},null,{"$f":"IFERROR(VLOOKUP(B194,'Schedule V(b)'!$B$11:$Z$315,11,0),0)","v":"Select"},null,{"$f":"IFERROR(VLOOKUP(B194,'Schedule V(b)'!$B$11:$Z$315,13,0),0)","v":0},null,null,null,{"$f":"IFERROR(VLOOKUP(B194,'Schedule V(b)'!$B$11:$Z$315,17,0),0)","v":0},null,{"$f":"IFERROR(VLOOKUP(B194,'Schedule V(b)'!$B$11:$Z$315,25,0),0)","v":0},null,{"$f":"IFERROR(VLOOKUP(B194,'Schedule V(b)'!$B$11:$Z$315,23,0),0)","v":0},null,"0",null,0]
[184,null,null,{"$f":"IFERROR(VLOOKUP(B195,'Schedule V(b)'!$B$11:$Z$315,3,0),0)","v":0},null,{"$f":"IFERROR(VLOOKUP(B195,'Schedule V(b)'!$B$11:$Z$315,7,0),0)","v":"Select"},null,{"$f":"IFERROR(VLOOKUP(B195,'Schedule V(b)'!$B$11:$Z$315,9,0),0)","v":0},null,{"$f":"IFERROR(VLOOKUP(B195,'Schedule V(b)'!$B$11:$Z$315,11,0),0)","v":"Select"},null,{"$f":"IFERROR(VLOOKUP(B195,'Schedule V(b)'!$B$11:$Z$315,13,0),0)","v":0},null,null,null,{"$f":"IFERROR(VLOOKUP(B195,'Schedule V(b)'!$B$11:$Z$315,17,0),0)","v":0},null,{"$f":"IFERROR(VLOOKUP(B195,'Schedule V(b)'!$B$11:$Z$315,25,0),0)","v":0},null,{"$f":"IFERROR(VLOOKUP(B195,'Schedule V(b)'!$B$11:$Z$315,23,0),0)","v":0},null,"0",null,0]
[185,null,null,{"$f":"IFERROR(VLOOKUP(B196,'Schedule V(b)'!$B$11:$Z$315,3,0),0)","v":0},null,{"$f":"IFERROR(VLOOKUP(B196,'Schedule V(b)'!$B$11:$Z$315,7,0),0)","v":"Select"},null,{"$f":"IFERROR(VLOOKUP(B196,'Schedule V(b)'!$B$11:$Z$315,9,0),0)","v":0},null,{"$f":"IFERROR(VLOOKUP(B196,'Schedule V(b)'!$B$11:$Z$315,11,0),0)","v":"Select"},null,{"$f":"IFERROR(VLOOKUP(B196,'Schedule V(b)'!$B$11:$Z$315,13,0),0)","v":0},null,null,null,{"$f":"IFERROR(VLOOKUP(B196,'Schedule V(b)'!$B$11:$Z$315,17,0),0)","v":0},null,{"$f":"IFERROR(VLOOKUP(B196,'Schedule V(b)'!$B$11:$Z$315,25,0),0)","v":0},null,{"$f":"IFERROR(VLOOKUP(B196,'Schedule V(b)'!$B$11:$Z$315,23,0),0)","v":0},null,"0",null,0]
[186,null,null,{"$f":"IFERROR(VLOOKUP(B197,'Schedule V(b)'!$B$11:$Z$315,3,0),0)","v":0},null,{"$f":"IFERROR(VLOOKUP(B197,'Schedule V(b)'!$B$11:$Z$315,7,0),0)","v":"Select"},null,{"$f":"IFERROR(VLOOKUP(B197,'Schedule V(b)'!$B$11:$Z$315,9,0),0)","v":0},null,{"$f":"IFERROR(VLOOKUP(B197,'Schedule V(b)'!$B$11:$Z$315,11,0),0)","v":"Select"},null,{"$f":"IFERROR(VLOOKUP(B197,'Schedule V(b)'!$B$11:$Z$315,13,0),0)","v":0},null,null,null,{"$f":"IFERROR(VLOOKUP(B197,'Schedule V(b)'!$B$11:$Z$315,17,0),0)","v":0},null,{"$f":"IFERROR(VLOOKUP(B197,'Schedule V(b)'!$B$11:$Z$315,25,0),0)","v":0},null,{"$f":"IFERROR(VLOOKUP(B197,'Schedule V(b)'!$B$11:$Z$315,23,0),0)","v":0},null,"0",null,0]
[187,null,null,{"$f":"IFERROR(VLOOKUP(B198,'Schedule V(b)'!$B$11:$Z$315,3,0),0)","v":0},null,{"$f":"IFERROR(VLOOKUP(B198,'Schedule V(b)'!$B$11:$Z$315,7,0),0)","v":"Select"},null,{"$f":"IFERROR(VLOOKUP(B198,'Schedule V(b)'!$B$11:$Z$315,9,0),0)","v":0},null,{"$f":"IFERROR(VLOOKUP(B198,'Schedule V(b)'!$B$11:$Z$315,11,0),0)","v":"Select"},null,{"$f":"IFERROR(VLOOKUP(B198,'Schedule V(b)'!$B$11:$Z$315,13,0),0)","v":0},null,null,null,{"$f":"IFERROR(VLOOKUP(B198,'Schedule V(b)'!$B$11:$Z$315,17,0),0)","v":0},null,{"$f":"IFERROR(VLOOKUP(B198,'Schedule V(b)'!$B$11:$Z$315,25,0),0)","v":0},null,{"$f":"IFERROR(VLOOKUP(B198,'Schedule V(b)'!$B$11:$Z$315,23,0),0)","v":0},null,"0",null,0]
[188,null,null,{"$f":"IFERROR(VLOOKUP(B199,'Schedule V(b)'!$B$11:$Z$315,3,0),0)","v":0},null,{"$f":"IFERROR(VLOOKUP(B199,'Schedule V(b)'!$B$11:$Z$315,7,0),0)","v":"Select"},null,{"$f":"IFERROR(VLOOKUP(B199,'Schedule V(b)'!$B$11:$Z$315,9,0),0)","v":0},null,{"$f":"IFERROR(VLOOKUP(B199,'Schedule V(b)'!$B$11:$Z$315,11,0),0)","v":"Select"},null,{"$f":"IFERROR(VLOOKUP(B199,'Schedule V(b)'!$B$11:$Z$315,13,0),0)","v":0},null,null,null,{"$f":"IFERROR(VLOOKUP(B199,'Schedule V(b)'!$B$11:$Z$315,17,0),0)","v":0},null,{"$f":"IFERROR(VLOOKUP(B199,'Schedule V(b)'!$B$11:$Z$315,25,0),0)","v":0},null,{"$f":"IFERROR(VLOOKUP(B199,'Schedule V(b)'!$B$11:$Z$315,23,0),0)","v":0},null,"0",null,0]
[189,null,null,{"$f":"IFERROR(VLOOKUP(B200,'Schedule V(b)'!$B$11:$Z$315,3,0),0)","v":0},null,{"$f":"IFERROR(VLOOKUP(B200,'Schedule V(b)'!$B$11:$Z$315,7,0),0)","v":"Select"},null,{"$f":"IFERROR(VLOOKUP(B200,'Schedule V(b)'!$B$11:$Z$315,9,0),0)","v":0},null,{"$f":"IFERROR(VLOOKUP(B200,'Schedule V(b)'!$B$11:$Z$315,11,0),0)","v":"Select"},null,{"$f":"IFERROR(VLOOKUP(B200,'Schedule V(b)'!$B$11:$Z$315,13,0),0)","v":0},null,null,null,{"$f":"IFERROR(VLOOKUP(B200,'Schedule V(b)'!$B$11:$Z$315,17,0),0)","v":0},null,{"$f":"IFERROR(VLOOKUP(B200,'Schedule V(b)'!$B$11:$Z$315,25,0),0)","v":0},null,{"$f":"IFERROR(VLOOKUP(B200,'Schedule V(b)'!$B$11:$Z$315,23,0),0)","v":0},null,"0",null,0]
[190,null,null,{"$f":"IFERROR(VLOOKUP(B201,'Schedule V(b)'!$B$11:$Z$315,3,0),0)","v":0},null,{"$f":"IFERROR(VLOOKUP(B201,'Schedule V(b)'!$B$11:$Z$315,7,0),0)","v":"Select"},null,{"$f":"IFERROR(VLOOKUP(B201,'Schedule V(b)'!$B$11:$Z$315,9,0),0)","v":0},null,{"$f":"IFERROR(VLOOKUP(B201,'Schedule V(b)'!$B$11:$Z$315,11,0),0)","v":"Select"},null,{"$f":"IFERROR(VLOOKUP(B201,'Schedule V(b)'!$B$11:$Z$315,13,0),0)","v":0},null,null,null,{"$f":"IFERROR(VLOOKUP(B201,'Schedule V(b)'!$B$11:$Z$315,17,0),0)","v":0},null,{"$f":"IFERROR(VLOOKUP(B201,'Schedule V(b)'!$B$11:$Z$315,25,0),0)","v":0},null,{"$f":"IFERROR(VLOOKUP(B201,'Schedule V(b)'!$B$11:$Z$315,23,0),0)","v":0},null,"0",null,0]
[191,null,null,{"$f":"IFERROR(VLOOKUP(B202,'Schedule V(b)'!$B$11:$Z$315,3,0),0)","v":0},null,{"$f":"IFERROR(VLOOKUP(B202,'Schedule V(b)'!$B$11:$Z$315,7,0),0)","v":"Select"},null,{"$f":"IFERROR(VLOOKUP(B202,'Schedule V(b)'!$B$11:$Z$315,9,0),0)","v":0},null,{"$f":"IFERROR(VLOOKUP(B202,'Schedule V(b)'!$B$11:$Z$315,11,0),0)","v":"Select"},null,{"$f":"IFERROR(VLOOKUP(B202,'Schedule V(b)'!$B$11:$Z$315,13,0),0)","v":0},null,null,null,{"$f":"IFERROR(VLOOKUP(B202,'Schedule V(b)'!$B$11:$Z$315,17,0),0)","v":0},null,{"$f":"IFERROR(VLOOKUP(B202,'Schedule V(b)'!$B$11:$Z$315,25,0),0)","v":0},null,{"$f":"IFERROR(VLOOKUP(B202,'Schedule V(b)'!$B$11:$Z$315,23,0),0)","v":0},null,"0",null,0]
[192,null,null,{"$f":"IFERROR(VLOOKUP(B203,'Schedule V(b)'!$B$11:$Z$315,3,0),0)","v":0},null,{"$f":"IFERROR(VLOOKUP(B203,'Schedule V(b)'!$B$11:$Z$315,7,0),0)","v":"Select"},null,{"$f":"IFERROR(VLOOKUP(B203,'Schedule V(b)'!$B$11:$Z$315,9,0),0)","v":0},null,{"$f":"IFERROR(VLOOKUP(B203,'Schedule V(b)'!$B$11:$Z$315,11,0),0)","v":"Select"},null,{"$f":"IFERROR(VLOOKUP(B203,'Schedule V(b)'!$B$11:$Z$315,13,0),0)","v":0},null,null,null,{"$f":"IFERROR(VLOOKUP(B203,'Schedule V(b)'!$B$11:$Z$315,17,0),0)","v":0},null,{"$f":"IFERROR(VLOOKUP(B203,'Schedule V(b)'!$B$11:$Z$315,25,0),0)","v":0},null,{"$f":"IFERROR(VLOOKUP(B203,'Schedule V(b)'!$B$11:$Z$315,23,0),0)","v":0},null,"0",null,0]
[193,null,null,{"$f":"IFERROR(VLOOKUP(B204,'Schedule V(b)'!$B$11:$Z$315,3,0),0)","v":0},null,{"$f":"IFERROR(VLOOKUP(B204,'Schedule V(b)'!$B$11:$Z$315,7,0),0)","v":"Select"},null,{"$f":"IFERROR(VLOOKUP(B204,'Schedule V(b)'!$B$11:$Z$315,9,0),0)","v":0},null,{"$f":"IFERROR(VLOOKUP(B204,'Schedule V(b)'!$B$11:$Z$315,11,0),0)","v":"Select"},null,{"$f":"IFERROR(VLOOKUP(B204,'Schedule V(b)'!$B$11:$Z$315,13,0),0)","v":0},null,null,null,{"$f":"IFERROR(VLOOKUP(B204,'Schedule V(b)'!$B$11:$Z$315,17,0),0)","v":0},null,{"$f":"IFERROR(VLOOKUP(B204,'Schedule V(b)'!$B$11:$Z$315,25,0),0)","v":0},null,{"$f":"IFERROR(VLOOKUP(B204,'Schedule V(b)'!$B$11:$Z$315,23,0),0)","v":0},null,{"$f":"IF(N204=\"unregulated entities that conduct ancillary services \",\"0%\",IF(N204=\"Unregulated non-financial operating entities\",\"15%\",IF(N204=\"unregulated financial operating entities\",\"50%\",\"0\")))","v":"0"},null,{"$f":"P204*T204*V204","v":0}]
[194,null,null,{"$f":"IFERROR(VLOOKUP(B205,'Schedule V(b)'!$B$11:$Z$315,3,0),0)","v":0},null,{"$f":"IFERROR(VLOOKUP(B205,'Schedule V(b)'!$B$11:$Z$315,7,0),0)","v":"Select"},null,{"$f":"IFERROR(VLOOKUP(B205,'Schedule V(b)'!$B$11:$Z$315,9,0),0)","v":0},null,{"$f":"IFERROR(VLOOKUP(B205,'Schedule V(b)'!$B$11:$Z$315,11,0),0)","v":"Select"},null,{"$f":"IFERROR(VLOOKUP(B205,'Schedule V(b)'!$B$11:$Z$315,13,0),0)","v":0},null,null,null,{"$f":"IFERROR(VLOOKUP(B205,'Schedule V(b)'!$B$11:$Z$315,17,0),0)","v":0},null,{"$f":"IFERROR(VLOOKUP(B205,'Schedule V(b)'!$B$11:$Z$315,25,0),0)","v":0},null,{"$f":"IFERROR(VLOOKUP(B205,'Schedule V(b)'!$B$11:$Z$315,23,0),0)","v":0},null,"0",null,0]
[195,null,null,{"$f":"IFERROR(VLOOKUP(B206,'Schedule V(b)'!$B$11:$Z$315,3,0),0)","v":0},null,{"$f":"IFERROR(VLOOKUP(B206,'Schedule V(b)'!$B$11:$Z$315,7,0),0)","v":"Select"},null,{"$f":"IFERROR(VLOOKUP(B206,'Schedule V(b)'!$B$11:$Z$315,9,0),0)","v":0},null,{"$f":"IFERROR(VLOOKUP(B206,'Schedule V(b)'!$B$11:$Z$315,11,0),0)","v":"Select"},null,{"$f":"IFERROR(VLOOKUP(B206,'Schedule V(b)'!$B$11:$Z$315,13,0),0)","v":0},null,null,null,{"$f":"IFERROR(VLOOKUP(B206,'Schedule V(b)'!$B$11:$Z$315,17,0),0)","v":0},null,{"$f":"IFERROR(VLOOKUP(B206,'Schedule V(b)'!$B$11:$Z$315,25,0),0)","v":0},null,{"$f":"IFERROR(VLOOKUP(B206,'Schedule V(b)'!$B$11:$Z$315,23,0),0)","v":0},null,"0",null,0]
[196,null,null,{"$f":"IFERROR(VLOOKUP(B207,'Schedule V(b)'!$B$11:$Z$315,3,0),0)","v":0},null,{"$f":"IFERROR(VLOOKUP(B207,'Schedule V(b)'!$B$11:$Z$315,7,0),0)","v":"Select"},null,{"$f":"IFERROR(VLOOKUP(B207,'Schedule V(b)'!$B$11:$Z$315,9,0),0)","v":0},null,{"$f":"IFERROR(VLOOKUP(B207,'Schedule V(b)'!$B$11:$Z$315,11,0),0)","v":"Select"},null,{"$f":"IFERROR(VLOOKUP(B207,'Schedule V(b)'!$B$11:$Z$315,13,0),0)","v":0},null,null,null,{"$f":"IFERROR(VLOOKUP(B207,'Schedule V(b)'!$B$11:$Z$315,17,0),0)","v":0},null,{"$f":"IFERROR(VLOOKUP(B207,'Schedule V(b)'!$B$11:$Z$315,25,0),0)","v":0},null,{"$f":"IFERROR(VLOOKUP(B207,'Schedule V(b)'!$B$11:$Z$315,23,0),0)","v":0},null,"0",null,0]
[197,null,null,{"$f":"IFERROR(VLOOKUP(B208,'Schedule V(b)'!$B$11:$Z$315,3,0),0)","v":0},null,{"$f":"IFERROR(VLOOKUP(B208,'Schedule V(b)'!$B$11:$Z$315,7,0),0)","v":"Select"},null,{"$f":"IFERROR(VLOOKUP(B208,'Schedule V(b)'!$B$11:$Z$315,9,0),0)","v":0},null,{"$f":"IFERROR(VLOOKUP(B208,'Schedule V(b)'!$B$11:$Z$315,11,0),0)","v":"Select"},null,{"$f":"IFERROR(VLOOKUP(B208,'Schedule V(b)'!$B$11:$Z$315,13,0),0)","v":0},null,null,null,{"$f":"IFERROR(VLOOKUP(B208,'Schedule V(b)'!$B$11:$Z$315,17,0),0)","v":0},null,{"$f":"IFERROR(VLOOKUP(B208,'Schedule V(b)'!$B$11:$Z$315,25,0),0)","v":0},null,{"$f":"IFERROR(VLOOKUP(B208,'Schedule V(b)'!$B$11:$Z$315,23,0),0)","v":0},null,"0",null,0]
[198,null,null,{"$f":"IFERROR(VLOOKUP(B209,'Schedule V(b)'!$B$11:$Z$315,3,0),0)","v":0},null,{"$f":"IFERROR(VLOOKUP(B209,'Schedule V(b)'!$B$11:$Z$315,7,0),0)","v":"Select"},null,{"$f":"IFERROR(VLOOKUP(B209,'Schedule V(b)'!$B$11:$Z$315,9,0),0)","v":0},null,{"$f":"IFERROR(VLOOKUP(B209,'Schedule V(b)'!$B$11:$Z$315,11,0),0)","v":"Select"},null,{"$f":"IFERROR(VLOOKUP(B209,'Schedule V(b)'!$B$11:$Z$315,13,0),0)","v":0},null,null,null,{"$f":"IFERROR(VLOOKUP(B209,'Schedule V(b)'!$B$11:$Z$315,17,0),0)","v":0},null,{"$f":"IFERROR(VLOOKUP(B209,'Schedule V(b)'!$B$11:$Z$315,25,0),0)","v":0},null,{"$f":"IFERROR(VLOOKUP(B209,'Schedule V(b)'!$B$11:$Z$315,23,0),0)","v":0},null,"0",null,0]
[199,null,null,{"$f":"IFERROR(VLOOKUP(B210,'Schedule V(b)'!$B$11:$Z$315,3,0),0)","v":0},null,{"$f":"IFERROR(VLOOKUP(B210,'Schedule V(b)'!$B$11:$Z$315,7,0),0)","v":"Select"},null,{"$f":"IFERROR(VLOOKUP(B210,'Schedule V(b)'!$B$11:$Z$315,9,0),0)","v":0},null,{"$f":"IFERROR(VLOOKUP(B210,'Schedule V(b)'!$B$11:$Z$315,11,0),0)","v":"Select"},null,{"$f":"IFERROR(VLOOKUP(B210,'Schedule V(b)'!$B$11:$Z$315,13,0),0)","v":0},null,null,null,{"$f":"IFERROR(VLOOKUP(B210,'Schedule V(b)'!$B$11:$Z$315,17,0),0)","v":0},null,{"$f":"IFERROR(VLOOKUP(B210,'Schedule V(b)'!$B$11:$Z$315,25,0),0)","v":0},null,{"$f":"IFERROR(VLOOKUP(B210,'Schedule V(b)'!$B$11:$Z$315,23,0),0)","v":0},null,"0",null,0]
[200,null,null,{"$f":"IFERROR(VLOOKUP(B211,'Schedule V(b)'!$B$11:$Z$315,3,0),0)","v":0},null,{"$f":"IFERROR(VLOOKUP(B211,'Schedule V(b)'!$B$11:$Z$315,7,0),0)","v":"Select"},null,{"$f":"IFERROR(VLOOKUP(B211,'Schedule V(b)'!$B$11:$Z$315,9,0),0)","v":0},null,{"$f":"IFERROR(VLOOKUP(B211,'Schedule V(b)'!$B$11:$Z$315,11,0),0)","v":"Select"},null,{"$f":"IFERROR(VLOOKUP(B211,'Schedule V(b)'!$B$11:$Z$315,13,0),0)","v":0},null,null,null,{"$f":"IFERROR(VLOOKUP(B211,'Schedule V(b)'!$B$11:$Z$315,17,0),0)","v":0},null,{"$f":"IFERROR(VLOOKUP(B211,'Schedule V(b)'!$B$11:$Z$315,25,0),0)","v":0},null,{"$f":"IFERROR(VLOOKUP(B211,'Schedule V(b)'!$B$11:$Z$315,23,0),0)","v":0},null,"0",null,0]
[201,null,null,{"$f":"IFERROR(VLOOKUP(B212,'Schedule V(b)'!$B$11:$Z$315,3,0),0)","v":0},null,{"$f":"IFERROR(VLOOKUP(B212,'Schedule V(b)'!$B$11:$Z$315,7,0),0)","v":"Select"},null,{"$f":"IFERROR(VLOOKUP(B212,'Schedule V(b)'!$B$11:$Z$315,9,0),0)","v":0},null,{"$f":"IFERROR(VLOOKUP(B212,'Schedule V(b)'!$B$11:$Z$315,11,0),0)","v":"Select"},null,{"$f":"IFERROR(VLOOKUP(B212,'Schedule V(b)'!$B$11:$Z$315,13,0),0)","v":0},null,null,null,{"$f":"IFERROR(VLOOKUP(B212,'Schedule V(b)'!$B$11:$Z$315,17,0),0)","v":0},null,{"$f":"IFERROR(VLOOKUP(B212,'Schedule V(b)'!$B$11:$Z$315,25,0),0)","v":0},null,{"$f":"IFERROR(VLOOKUP(B212,'Schedule V(b)'!$B$11:$Z$315,23,0),0)","v":0},null,"0",null,0]
[202,null,null,{"$f":"IFERROR(VLOOKUP(B213,'Schedule V(b)'!$B$11:$Z$315,3,0),0)","v":0},null,{"$f":"IFERROR(VLOOKUP(B213,'Schedule V(b)'!$B$11:$Z$315,7,0),0)","v":"Select"},null,{"$f":"IFERROR(VLOOKUP(B213,'Schedule V(b)'!$B$11:$Z$315,9,0),0)","v":0},null,{"$f":"IFERROR(VLOOKUP(B213,'Schedule V(b)'!$B$11:$Z$315,11,0),0)","v":"Select"},null,{"$f":"IFERROR(VLOOKUP(B213,'Schedule V(b)'!$B$11:$Z$315,13,0),0)","v":0},null,null,null,{"$f":"IFERROR(VLOOKUP(B213,'Schedule V(b)'!$B$11:$Z$315,17,0),0)","v":0},null,{"$f":"IFERROR(VLOOKUP(B213,'Schedule V(b)'!$B$11:$Z$315,25,0),0)","v":0},null,{"$f":"IFERROR(VLOOKUP(B213,'Schedule V(b)'!$B$11:$Z$315,23,0),0)","v":0},null,"0",null,0]
[203,null,null,{"$f":"IFERROR(VLOOKUP(B214,'Schedule V(b)'!$B$11:$Z$315,3,0),0)","v":0},null,{"$f":"IFERROR(VLOOKUP(B214,'Schedule V(b)'!$B$11:$Z$315,7,0),0)","v":"Select"},null,{"$f":"IFERROR(VLOOKUP(B214,'Schedule V(b)'!$B$11:$Z$315,9,0),0)","v":0},null,{"$f":"IFERROR(VLOOKUP(B214,'Schedule V(b)'!$B$11:$Z$315,11,0),0)","v":"Select"},null,{"$f":"IFERROR(VLOOKUP(B214,'Schedule V(b)'!$B$11:$Z$315,13,0),0)","v":0},null,null,null,{"$f":"IFERROR(VLOOKUP(B214,'Schedule V(b)'!$B$11:$Z$315,17,0),0)","v":0},null,{"$f":"IFERROR(VLOOKUP(B214,'Schedule V(b)'!$B$11:$Z$315,25,0),0)","v":0},null,{"$f":"IFERROR(VLOOKUP(B214,'Schedule V(b)'!$B$11:$Z$315,23,0),0)","v":0},null,"0",null,0]
[204,null,null,{"$f":"IFERROR(VLOOKUP(B215,'Schedule V(b)'!$B$11:$Z$315,3,0),0)","v":0},null,{"$f":"IFERROR(VLOOKUP(B215,'Schedule V(b)'!$B$11:$Z$315,7,0),0)","v":"Select"},null,{"$f":"IFERROR(VLOOKUP(B215,'Schedule V(b)'!$B$11:$Z$315,9,0),0)","v":0},null,{"$f":"IFERROR(VLOOKUP(B215,'Schedule V(b)'!$B$11:$Z$315,11,0),0)","v":"Select"},null,{"$f":"IFERROR(VLOOKUP(B215,'Schedule V(b)'!$B$11:$Z$315,13,0),0)","v":0},null,null,null,{"$f":"IFERROR(VLOOKUP(B215,'Schedule V(b)'!$B$11:$Z$315,17,0),0)","v":0},null,{"$f":"IFERROR(VLOOKUP(B215,'Schedule V(b)'!$B$11:$Z$315,25,0),0)","v":0},null,{"$f":"IFERROR(VLOOKUP(B215,'Schedule V(b)'!$B$11:$Z$315,23,0),0)","v":0},null,"0",null,0]
[205,null,null,{"$f":"IFERROR(VLOOKUP(B216,'Schedule V(b)'!$B$11:$Z$315,3,0),0)","v":0},null,{"$f":"IFERROR(VLOOKUP(B216,'Schedule V(b)'!$B$11:$Z$315,7,0),0)","v":"Select"},null,{"$f":"IFERROR(VLOOKUP(B216,'Schedule V(b)'!$B$11:$Z$315,9,0),0)","v":0},null,{"$f":"IFERROR(VLOOKUP(B216,'Schedule V(b)'!$B$11:$Z$315,11,0),0)","v":"Select"},null,{"$f":"IFERROR(VLOOKUP(B216,'Schedule V(b)'!$B$11:$Z$315,13,0),0)","v":0},null,null,null,{"$f":"IFERROR(VLOOKUP(B216,'Schedule V(b)'!$B$11:$Z$315,17,0),0)","v":0},null,{"$f":"IFERROR(VLOOKUP(B216,'Schedule V(b)'!$B$11:$Z$315,25,0),0)","v":0},null,{"$f":"IFERROR(VLOOKUP(B216,'Schedule V(b)'!$B$11:$Z$315,23,0),0)","v":0},null,"0",null,0]
[206,null,null,{"$f":"IFERROR(VLOOKUP(B217,'Schedule V(b)'!$B$11:$Z$315,3,0),0)","v":0},null,{"$f":"IFERROR(VLOOKUP(B217,'Schedule V(b)'!$B$11:$Z$315,7,0),0)","v":"Select"},null,{"$f":"IFERROR(VLOOKUP(B217,'Schedule V(b)'!$B$11:$Z$315,9,0),0)","v":0},null,{"$f":"IFERROR(VLOOKUP(B217,'Schedule V(b)'!$B$11:$Z$315,11,0),0)","v":"Select"},null,{"$f":"IFERROR(VLOOKUP(B217,'Schedule V(b)'!$B$11:$Z$315,13,0),0)","v":0},null,null,null,{"$f":"IFERROR(VLOOKUP(B217,'Schedule V(b)'!$B$11:$Z$315,17,0),0)","v":0},null,{"$f":"IFERROR(VLOOKUP(B217,'Schedule V(b)'!$B$11:$Z$315,25,0),0)","v":0},null,{"$f":"IFERROR(VLOOKUP(B217,'Schedule V(b)'!$B$11:$Z$315,23,0),0)","v":0},null,"0",null,0]
[207,null,null,{"$f":"IFERROR(VLOOKUP(B218,'Schedule V(b)'!$B$11:$Z$315,3,0),0)","v":0},null,{"$f":"IFERROR(VLOOKUP(B218,'Schedule V(b)'!$B$11:$Z$315,7,0),0)","v":"Select"},null,{"$f":"IFERROR(VLOOKUP(B218,'Schedule V(b)'!$B$11:$Z$315,9,0),0)","v":0},null,{"$f":"IFERROR(VLOOKUP(B218,'Schedule V(b)'!$B$11:$Z$315,11,0),0)","v":"Select"},null,{"$f":"IFERROR(VLOOKUP(B218,'Schedule V(b)'!$B$11:$Z$315,13,0),0)","v":0},null,null,null,{"$f":"IFERROR(VLOOKUP(B218,'Schedule V(b)'!$B$11:$Z$315,17,0),0)","v":0},null,{"$f":"IFERROR(VLOOKUP(B218,'Schedule V(b)'!$B$11:$Z$315,25,0),0)","v":0},null,{"$f":"IFERROR(VLOOKUP(B218,'Schedule V(b)'!$B$11:$Z$315,23,0),0)","v":0},null,"0",null,0]
[208,null,null,{"$f":"IFERROR(VLOOKUP(B219,'Schedule V(b)'!$B$11:$Z$315,3,0),0)","v":0},null,{"$f":"IFERROR(VLOOKUP(B219,'Schedule V(b)'!$B$11:$Z$315,7,0),0)","v":"Select"},null,{"$f":"IFERROR(VLOOKUP(B219,'Schedule V(b)'!$B$11:$Z$315,9,0),0)","v":0},null,{"$f":"IFERROR(VLOOKUP(B219,'Schedule V(b)'!$B$11:$Z$315,11,0),0)","v":"Select"},null,{"$f":"IFERROR(VLOOKUP(B219,'Schedule V(b)'!$B$11:$Z$315,13,0),0)","v":0},null,null,null,{"$f":"IFERROR(VLOOKUP(B219,'Schedule V(b)'!$B$11:$Z$315,17,0),0)","v":0},null,{"$f":"IFERROR(VLOOKUP(B219,'Schedule V(b)'!$B$11:$Z$315,25,0),0)","v":0},null,{"$f":"IFERROR(VLOOKUP(B219,'Schedule V(b)'!$B$11:$Z$315,23,0),0)","v":0},null,"0",null,0]
[209,null,null,{"$f":"IFERROR(VLOOKUP(B220,'Schedule V(b)'!$B$11:$Z$315,3,0),0)","v":0},null,{"$f":"IFERROR(VLOOKUP(B220,'Schedule V(b)'!$B$11:$Z$315,7,0),0)","v":"Select"},null,{"$f":"IFERROR(VLOOKUP(B220,'Schedule V(b)'!$B$11:$Z$315,9,0),0)","v":0},null,{"$f":"IFERROR(VLOOKUP(B220,'Schedule V(b)'!$B$11:$Z$315,11,0),0)","v":"Select"},null,{"$f":"IFERROR(VLOOKUP(B220,'Schedule V(b)'!$B$11:$Z$315,13,0),0)","v":0},null,null,null,{"$f":"IFERROR(VLOOKUP(B220,'Schedule V(b)'!$B$11:$Z$315,17,0),0)","v":0},null,{"$f":"IFERROR(VLOOKUP(B220,'Schedule V(b)'!$B$11:$Z$315,25,0),0)","v":0},null,{"$f":"IFERROR(VLOOKUP(B220,'Schedule V(b)'!$B$11:$Z$315,23,0),0)","v":0},null,"0",null,0]
[210,null,null,{"$f":"IFERROR(VLOOKUP(B221,'Schedule V(b)'!$B$11:$Z$315,3,0),0)","v":0},null,{"$f":"IFERROR(VLOOKUP(B221,'Schedule V(b)'!$B$11:$Z$315,7,0),0)","v":"Select"},null,{"$f":"IFERROR(VLOOKUP(B221,'Schedule V(b)'!$B$11:$Z$315,9,0),0)","v":0},null,{"$f":"IFERROR(VLOOKUP(B221,'Schedule V(b)'!$B$11:$Z$315,11,0),0)","v":"Select"},null,{"$f":"IFERROR(VLOOKUP(B221,'Schedule V(b)'!$B$11:$Z$315,13,0),0)","v":0},null,null,null,{"$f":"IFERROR(VLOOKUP(B221,'Schedule V(b)'!$B$11:$Z$315,17,0),0)","v":0},null,{"$f":"IFERROR(VLOOKUP(B221,'Schedule V(b)'!$B$11:$Z$315,25,0),0)","v":0},null,{"$f":"IFERROR(VLOOKUP(B221,'Schedule V(b)'!$B$11:$Z$315,23,0),0)","v":0},null,"0",null,0]
[211,null,null,{"$f":"IFERROR(VLOOKUP(B222,'Schedule V(b)'!$B$11:$Z$315,3,0),0)","v":0},null,{"$f":"IFERROR(VLOOKUP(B222,'Schedule V(b)'!$B$11:$Z$315,7,0),0)","v":"Select"},null,{"$f":"IFERROR(VLOOKUP(B222,'Schedule V(b)'!$B$11:$Z$315,9,0),0)","v":0},null,{"$f":"IFERROR(VLOOKUP(B222,'Schedule V(b)'!$B$11:$Z$315,11,0),0)","v":"Select"},null,{"$f":"IFERROR(VLOOKUP(B222,'Schedule V(b)'!$B$11:$Z$315,13,0),0)","v":0},null,null,null,{"$f":"IFERROR(VLOOKUP(B222,'Schedule V(b)'!$B$11:$Z$315,17,0),0)","v":0},null,{"$f":"IFERROR(VLOOKUP(B222,'Schedule V(b)'!$B$11:$Z$315,25,0),0)","v":0},null,{"$f":"IFERROR(VLOOKUP(B222,'Schedule V(b)'!$B$11:$Z$315,23,0),0)","v":0},null,"0",null,0]
[212,null,null,{"$f":"IFERROR(VLOOKUP(B223,'Schedule V(b)'!$B$11:$Z$315,3,0),0)","v":0},null,{"$f":"IFERROR(VLOOKUP(B223,'Schedule V(b)'!$B$11:$Z$315,7,0),0)","v":"Select"},null,{"$f":"IFERROR(VLOOKUP(B223,'Schedule V(b)'!$B$11:$Z$315,9,0),0)","v":0},null,{"$f":"IFERROR(VLOOKUP(B223,'Schedule V(b)'!$B$11:$Z$315,11,0),0)","v":"Select"},null,{"$f":"IFERROR(VLOOKUP(B223,'Schedule V(b)'!$B$11:$Z$315,13,0),0)","v":0},null,null,null,{"$f":"IFERROR(VLOOKUP(B223,'Schedule V(b)'!$B$11:$Z$315,17,0),0)","v":0},null,{"$f":"IFERROR(VLOOKUP(B223,'Schedule V(b)'!$B$11:$Z$315,25,0),0)","v":0},null,{"$f":"IFERROR(VLOOKUP(B223,'Schedule V(b)'!$B$11:$Z$315,23,0),0)","v":0},null,"0",null,0]
[213,null,null,{"$f":"IFERROR(VLOOKUP(B224,'Schedule V(b)'!$B$11:$Z$315,3,0),0)","v":0},null,{"$f":"IFERROR(VLOOKUP(B224,'Schedule V(b)'!$B$11:$Z$315,7,0),0)","v":"Select"},null,{"$f":"IFERROR(VLOOKUP(B224,'Schedule V(b)'!$B$11:$Z$315,9,0),0)","v":0},null,{"$f":"IFERROR(VLOOKUP(B224,'Schedule V(b)'!$B$11:$Z$315,11,0),0)","v":"Select"},null,{"$f":"IFERROR(VLOOKUP(B224,'Schedule V(b)'!$B$11:$Z$315,13,0),0)","v":0},null,null,null,{"$f":"IFERROR(VLOOKUP(B224,'Schedule V(b)'!$B$11:$Z$315,17,0),0)","v":0},null,{"$f":"IFERROR(VLOOKUP(B224,'Schedule V(b)'!$B$11:$Z$315,25,0),0)","v":0},null,{"$f":"IFERROR(VLOOKUP(B224,'Schedule V(b)'!$B$11:$Z$315,23,0),0)","v":0},null,"0",null,0]
[214,null,null,{"$f":"IFERROR(VLOOKUP(B225,'Schedule V(b)'!$B$11:$Z$315,3,0),0)","v":0},null,{"$f":"IFERROR(VLOOKUP(B225,'Schedule V(b)'!$B$11:$Z$315,7,0),0)","v":"Select"},null,{"$f":"IFERROR(VLOOKUP(B225,'Schedule V(b)'!$B$11:$Z$315,9,0),0)","v":0},null,{"$f":"IFERROR(VLOOKUP(B225,'Schedule V(b)'!$B$11:$Z$315,11,0),0)","v":"Select"},null,{"$f":"IFERROR(VLOOKUP(B225,'Schedule V(b)'!$B$11:$Z$315,13,0),0)","v":0},null,null,null,{"$f":"IFERROR(VLOOKUP(B225,'Schedule V(b)'!$B$11:$Z$315,17,0),0)","v":0},null,{"$f":"IFERROR(VLOOKUP(B225,'Schedule V(b)'!$B$11:$Z$315,25,0),0)","v":0},null,{"$f":"IFERROR(VLOOKUP(B225,'Schedule V(b)'!$B$11:$Z$315,23,0),0)","v":0},null,"0",null,0]
[215,null,null,{"$f":"IFERROR(VLOOKUP(B226,'Schedule V(b)'!$B$11:$Z$315,3,0),0)","v":0},null,{"$f":"IFERROR(VLOOKUP(B226,'Schedule V(b)'!$B$11:$Z$315,7,0),0)","v":"Select"},null,{"$f":"IFERROR(VLOOKUP(B226,'Schedule V(b)'!$B$11:$Z$315,9,0),0)","v":0},null,{"$f":"IFERROR(VLOOKUP(B226,'Schedule V(b)'!$B$11:$Z$315,11,0),0)","v":"Select"},null,{"$f":"IFERROR(VLOOKUP(B226,'Schedule V(b)'!$B$11:$Z$315,13,0),0)","v":0},null,null,null,{"$f":"IFERROR(VLOOKUP(B226,'Schedule V(b)'!$B$11:$Z$315,17,0),0)","v":0},null,{"$f":"IFERROR(VLOOKUP(B226,'Schedule V(b)'!$B$11:$Z$315,25,0),0)","v":0},null,{"$f":"IFERROR(VLOOKUP(B226,'Schedule V(b)'!$B$11:$Z$315,23,0),0)","v":0},null,"0",null,0]
[216,null,null,{"$f":"IFERROR(VLOOKUP(B227,'Schedule V(b)'!$B$11:$Z$315,3,0),0)","v":0},null,{"$f":"IFERROR(VLOOKUP(B227,'Schedule V(b)'!$B$11:$Z$315,7,0),0)","v":"Select"},null,{"$f":"IFERROR(VLOOKUP(B227,'Schedule V(b)'!$B$11:$Z$315,9,0),0)","v":0},null,{"$f":"IFERROR(VLOOKUP(B227,'Schedule V(b)'!$B$11:$Z$315,11,0),0)","v":"Select"},null,{"$f":"IFERROR(VLOOKUP(B227,'Schedule V(b)'!$B$11:$Z$315,13,0),0)","v":0},null,null,null,{"$f":"IFERROR(VLOOKUP(B227,'Schedule V(b)'!$B$11:$Z$315,17,0),0)","v":0},null,{"$f":"IFERROR(VLOOKUP(B227,'Schedule V(b)'!$B$11:$Z$315,25,0),0)","v":0},null,{"$f":"IFERROR(VLOOKUP(B227,'Schedule V(b)'!$B$11:$Z$315,23,0),0)","v":0},null,"0",null,0]
[217,null,null,{"$f":"IFERROR(VLOOKUP(B228,'Schedule V(b)'!$B$11:$Z$315,3,0),0)","v":0},null,{"$f":"IFERROR(VLOOKUP(B228,'Schedule V(b)'!$B$11:$Z$315,7,0),0)","v":"Select"},null,{"$f":"IFERROR(VLOOKUP(B228,'Schedule V(b)'!$B$11:$Z$315,9,0),0)","v":0},null,{"$f":"IFERROR(VLOOKUP(B228,'Schedule V(b)'!$B$11:$Z$315,11,0),0)","v":"Select"},null,{"$f":"IFERROR(VLOOKUP(B228,'Schedule V(b)'!$B$11:$Z$315,13,0),0)","v":0},null,null,null,{"$f":"IFERROR(VLOOKUP(B228,'Schedule V(b)'!$B$11:$Z$315,17,0),0)","v":0},null,{"$f":"IFERROR(VLOOKUP(B228,'Schedule V(b)'!$B$11:$Z$315,25,0),0)","v":0},null,{"$f":"IFERROR(VLOOKUP(B228,'Schedule V(b)'!$B$11:$Z$315,23,0),0)","v":0},null,"0",null,0]
[218,null,null,{"$f":"IFERROR(VLOOKUP(B229,'Schedule V(b)'!$B$11:$Z$315,3,0),0)","v":0},null,{"$f":"IFERROR(VLOOKUP(B229,'Schedule V(b)'!$B$11:$Z$315,7,0),0)","v":"Select"},null,{"$f":"IFERROR(VLOOKUP(B229,'Schedule V(b)'!$B$11:$Z$315,9,0),0)","v":0},null,{"$f":"IFERROR(VLOOKUP(B229,'Schedule V(b)'!$B$11:$Z$315,11,0),0)","v":"Select"},null,{"$f":"IFERROR(VLOOKUP(B229,'Schedule V(b)'!$B$11:$Z$315,13,0),0)","v":0},null,null,null,{"$f":"IFERROR(VLOOKUP(B229,'Schedule V(b)'!$B$11:$Z$315,17,0),0)","v":0},null,{"$f":"IFERROR(VLOOKUP(B229,'Schedule V(b)'!$B$11:$Z$315,25,0),0)","v":0},null,{"$f":"IFERROR(VLOOKUP(B229,'Schedule V(b)'!$B$11:$Z$315,23,0),0)","v":0},null,"0",null,0]
[219,null,null,{"$f":"IFERROR(VLOOKUP(B230,'Schedule V(b)'!$B$11:$Z$315,3,0),0)","v":0},null,{"$f":"IFERROR(VLOOKUP(B230,'Schedule V(b)'!$B$11:$Z$315,7,0),0)","v":"Select"},null,{"$f":"IFERROR(VLOOKUP(B230,'Schedule V(b)'!$B$11:$Z$315,9,0),0)","v":0},null,{"$f":"IFERROR(VLOOKUP(B230,'Schedule V(b)'!$B$11:$Z$315,11,0),0)","v":"Select"},null,{"$f":"IFERROR(VLOOKUP(B230,'Schedule V(b)'!$B$11:$Z$315,13,0),0)","v":0},null,null,null,{"$f":"IFERROR(VLOOKUP(B230,'Schedule V(b)'!$B$11:$Z$315,17,0),0)","v":0},null,{"$f":"IFERROR(VLOOKUP(B230,'Schedule V(b)'!$B$11:$Z$315,25,0),0)","v":0},null,{"$f":"IFERROR(VLOOKUP(B230,'Schedule V(b)'!$B$11:$Z$315,23,0),0)","v":0},null,"0",null,0]
[220,null,null,{"$f":"IFERROR(VLOOKUP(B231,'Schedule V(b)'!$B$11:$Z$315,3,0),0)","v":0},null,{"$f":"IFERROR(VLOOKUP(B231,'Schedule V(b)'!$B$11:$Z$315,7,0),0)","v":"Select"},null,{"$f":"IFERROR(VLOOKUP(B231,'Schedule V(b)'!$B$11:$Z$315,9,0),0)","v":0},null,{"$f":"IFERROR(VLOOKUP(B231,'Schedule V(b)'!$B$11:$Z$315,11,0),0)","v":"Select"},null,{"$f":"IFERROR(VLOOKUP(B231,'Schedule V(b)'!$B$11:$Z$315,13,0),0)","v":0},null,null,null,{"$f":"IFERROR(VLOOKUP(B231,'Schedule V(b)'!$B$11:$Z$315,17,0),0)","v":0},null,{"$f":"IFERROR(VLOOKUP(B231,'Schedule V(b)'!$B$11:$Z$315,25,0),0)","v":0},null,{"$f":"IFERROR(VLOOKUP(B231,'Schedule V(b)'!$B$11:$Z$315,23,0),0)","v":0},null,"0",null,0]
[221,null,null,{"$f":"IFERROR(VLOOKUP(B232,'Schedule V(b)'!$B$11:$Z$315,3,0),0)","v":0},null,{"$f":"IFERROR(VLOOKUP(B232,'Schedule V(b)'!$B$11:$Z$315,7,0),0)","v":"Select"},null,{"$f":"IFERROR(VLOOKUP(B232,'Schedule V(b)'!$B$11:$Z$315,9,0),0)","v":0},null,{"$f":"IFERROR(VLOOKUP(B232,'Schedule V(b)'!$B$11:$Z$315,11,0),0)","v":"Select"},null,{"$f":"IFERROR(VLOOKUP(B232,'Schedule V(b)'!$B$11:$Z$315,13,0),0)","v":0},null,null,null,{"$f":"IFERROR(VLOOKUP(B232,'Schedule V(b)'!$B$11:$Z$315,17,0),0)","v":0},null,{"$f":"IFERROR(VLOOKUP(B232,'Schedule V(b)'!$B$11:$Z$315,25,0),0)","v":0},null,{"$f":"IFERROR(VLOOKUP(B232,'Schedule V(b)'!$B$11:$Z$315,23,0),0)","v":0},null,"0",null,0]
[222,null,null,{"$f":"IFERROR(VLOOKUP(B233,'Schedule V(b)'!$B$11:$Z$315,3,0),0)","v":0},null,{"$f":"IFERROR(VLOOKUP(B233,'Schedule V(b)'!$B$11:$Z$315,7,0),0)","v":"Select"},null,{"$f":"IFERROR(VLOOKUP(B233,'Schedule V(b)'!$B$11:$Z$315,9,0),0)","v":0},null,{"$f":"IFERROR(VLOOKUP(B233,'Schedule V(b)'!$B$11:$Z$315,11,0),0)","v":"Select"},null,{"$f":"IFERROR(VLOOKUP(B233,'Schedule V(b)'!$B$11:$Z$315,13,0),0)","v":0},null,null,null,{"$f":"IFERROR(VLOOKUP(B233,'Schedule V(b)'!$B$11:$Z$315,17,0),0)","v":0},null,{"$f":"IFERROR(VLOOKUP(B233,'Schedule V(b)'!$B$11:$Z$315,25,0),0)","v":0},null,{"$f":"IFERROR(VLOOKUP(B233,'Schedule V(b)'!$B$11:$Z$315,23,0),0)","v":0},null,"0",null,0]
[223,null,null,{"$f":"IFERROR(VLOOKUP(B234,'Schedule V(b)'!$B$11:$Z$315,3,0),0)","v":0},null,{"$f":"IFERROR(VLOOKUP(B234,'Schedule V(b)'!$B$11:$Z$315,7,0),0)","v":"Select"},null,{"$f":"IFERROR(VLOOKUP(B234,'Schedule V(b)'!$B$11:$Z$315,9,0),0)","v":0},null,{"$f":"IFERROR(VLOOKUP(B234,'Schedule V(b)'!$B$11:$Z$315,11,0),0)","v":"Select"},null,{"$f":"IFERROR(VLOOKUP(B234,'Schedule V(b)'!$B$11:$Z$315,13,0),0)","v":0},null,null,null,{"$f":"IFERROR(VLOOKUP(B234,'Schedule V(b)'!$B$11:$Z$315,17,0),0)","v":0},null,{"$f":"IFERROR(VLOOKUP(B234,'Schedule V(b)'!$B$11:$Z$315,25,0),0)","v":0},null,{"$f":"IFERROR(VLOOKUP(B234,'Schedule V(b)'!$B$11:$Z$315,23,0),0)","v":0},null,"0",null,0]
[224,null,null,{"$f":"IFERROR(VLOOKUP(B235,'Schedule V(b)'!$B$11:$Z$315,3,0),0)","v":0},null,{"$f":"IFERROR(VLOOKUP(B235,'Schedule V(b)'!$B$11:$Z$315,7,0),0)","v":"Select"},null,{"$f":"IFERROR(VLOOKUP(B235,'Schedule V(b)'!$B$11:$Z$315,9,0),0)","v":0},null,{"$f":"IFERROR(VLOOKUP(B235,'Schedule V(b)'!$B$11:$Z$315,11,0),0)","v":"Select"},null,{"$f":"IFERROR(VLOOKUP(B235,'Schedule V(b)'!$B$11:$Z$315,13,0),0)","v":0},null,null,null,{"$f":"IFERROR(VLOOKUP(B235,'Schedule V(b)'!$B$11:$Z$315,17,0),0)","v":0},null,{"$f":"IFERROR(VLOOKUP(B235,'Schedule V(b)'!$B$11:$Z$315,25,0),0)","v":0},null,{"$f":"IFERROR(VLOOKUP(B235,'Schedule V(b)'!$B$11:$Z$315,23,0),0)","v":0},null,"0",null,0]
[225,null,null,{"$f":"IFERROR(VLOOKUP(B236,'Schedule V(b)'!$B$11:$Z$315,3,0),0)","v":0},null,{"$f":"IFERROR(VLOOKUP(B236,'Schedule V(b)'!$B$11:$Z$315,7,0),0)","v":"Select"},null,{"$f":"IFERROR(VLOOKUP(B236,'Schedule V(b)'!$B$11:$Z$315,9,0),0)","v":0},null,{"$f":"IFERROR(VLOOKUP(B236,'Schedule V(b)'!$B$11:$Z$315,11,0),0)","v":"Select"},null,{"$f":"IFERROR(VLOOKUP(B236,'Schedule V(b)'!$B$11:$Z$315,13,0),0)","v":0},null,null,null,{"$f":"IFERROR(VLOOKUP(B236,'Schedule V(b)'!$B$11:$Z$315,17,0),0)","v":0},null,{"$f":"IFERROR(VLOOKUP(B236,'Schedule V(b)'!$B$11:$Z$315,25,0),0)","v":0},null,{"$f":"IFERROR(VLOOKUP(B236,'Schedule V(b)'!$B$11:$Z$315,23,0),0)","v":0},null,"0",null,0]
[226,null,null,{"$f":"IFERROR(VLOOKUP(B237,'Schedule V(b)'!$B$11:$Z$315,3,0),0)","v":0},null,{"$f":"IFERROR(VLOOKUP(B237,'Schedule V(b)'!$B$11:$Z$315,7,0),0)","v":"Select"},null,{"$f":"IFERROR(VLOOKUP(B237,'Schedule V(b)'!$B$11:$Z$315,9,0),0)","v":0},null,{"$f":"IFERROR(VLOOKUP(B237,'Schedule V(b)'!$B$11:$Z$315,11,0),0)","v":"Select"},null,{"$f":"IFERROR(VLOOKUP(B237,'Schedule V(b)'!$B$11:$Z$315,13,0),0)","v":0},null,null,null,{"$f":"IFERROR(VLOOKUP(B237,'Schedule V(b)'!$B$11:$Z$315,17,0),0)","v":0},null,{"$f":"IFERROR(VLOOKUP(B237,'Schedule V(b)'!$B$11:$Z$315,25,0),0)","v":0},null,{"$f":"IFERROR(VLOOKUP(B237,'Schedule V(b)'!$B$11:$Z$315,23,0),0)","v":0},null,"0",null,0]
[227,null,null,{"$f":"IFERROR(VLOOKUP(B238,'Schedule V(b)'!$B$11:$Z$315,3,0),0)","v":0},null,{"$f":"IFERROR(VLOOKUP(B238,'Schedule V(b)'!$B$11:$Z$315,7,0),0)","v":"Select"},null,{"$f":"IFERROR(VLOOKUP(B238,'Schedule V(b)'!$B$11:$Z$315,9,0),0)","v":0},null,{"$f":"IFERROR(VLOOKUP(B238,'Schedule V(b)'!$B$11:$Z$315,11,0),0)","v":"Select"},null,{"$f":"IFERROR(VLOOKUP(B238,'Schedule V(b)'!$B$11:$Z$315,13,0),0)","v":0},null,null,null,{"$f":"IFERROR(VLOOKUP(B238,'Schedule V(b)'!$B$11:$Z$315,17,0),0)","v":0},null,{"$f":"IFERROR(VLOOKUP(B238,'Schedule V(b)'!$B$11:$Z$315,25,0),0)","v":0},null,{"$f":"IFERROR(VLOOKUP(B238,'Schedule V(b)'!$B$11:$Z$315,23,0),0)","v":0},null,"0",null,0]
[228,null,null,{"$f":"IFERROR(VLOOKUP(B239,'Schedule V(b)'!$B$11:$Z$315,3,0),0)","v":0},null,{"$f":"IFERROR(VLOOKUP(B239,'Schedule V(b)'!$B$11:$Z$315,7,0),0)","v":"Select"},null,{"$f":"IFERROR(VLOOKUP(B239,'Schedule V(b)'!$B$11:$Z$315,9,0),0)","v":0},null,{"$f":"IFERROR(VLOOKUP(B239,'Schedule V(b)'!$B$11:$Z$315,11,0),0)","v":"Select"},null,{"$f":"IFERROR(VLOOKUP(B239,'Schedule V(b)'!$B$11:$Z$315,13,0),0)","v":0},null,null,null,{"$f":"IFERROR(VLOOKUP(B239,'Schedule V(b)'!$B$11:$Z$315,17,0),0)","v":0},null,{"$f":"IFERROR(VLOOKUP(B239,'Schedule V(b)'!$B$11:$Z$315,25,0),0)","v":0},null,{"$f":"IFERROR(VLOOKUP(B239,'Schedule V(b)'!$B$11:$Z$315,23,0),0)","v":0},null,"0",null,0]
[229,null,null,{"$f":"IFERROR(VLOOKUP(B240,'Schedule V(b)'!$B$11:$Z$315,3,0),0)","v":0},null,{"$f":"IFERROR(VLOOKUP(B240,'Schedule V(b)'!$B$11:$Z$315,7,0),0)","v":"Select"},null,{"$f":"IFERROR(VLOOKUP(B240,'Schedule V(b)'!$B$11:$Z$315,9,0),0)","v":0},null,{"$f":"IFERROR(VLOOKUP(B240,'Schedule V(b)'!$B$11:$Z$315,11,0),0)","v":"Select"},null,{"$f":"IFERROR(VLOOKUP(B240,'Schedule V(b)'!$B$11:$Z$315,13,0),0)","v":0},null,null,null,{"$f":"IFERROR(VLOOKUP(B240,'Schedule V(b)'!$B$11:$Z$315,17,0),0)","v":0},null,{"$f":"IFERROR(VLOOKUP(B240,'Schedule V(b)'!$B$11:$Z$315,25,0),0)","v":0},null,{"$f":"IFERROR(VLOOKUP(B240,'Schedule V(b)'!$B$11:$Z$315,23,0),0)","v":0},null,"0",null,0]
[230,null,null,{"$f":"IFERROR(VLOOKUP(B241,'Schedule V(b)'!$B$11:$Z$315,3,0),0)","v":0},null,{"$f":"IFERROR(VLOOKUP(B241,'Schedule V(b)'!$B$11:$Z$315,7,0),0)","v":"Select"},null,{"$f":"IFERROR(VLOOKUP(B241,'Schedule V(b)'!$B$11:$Z$315,9,0),0)","v":0},null,{"$f":"IFERROR(VLOOKUP(B241,'Schedule V(b)'!$B$11:$Z$315,11,0),0)","v":"Select"},null,{"$f":"IFERROR(VLOOKUP(B241,'Schedule V(b)'!$B$11:$Z$315,13,0),0)","v":0},null,null,null,{"$f":"IFERROR(VLOOKUP(B241,'Schedule V(b)'!$B$11:$Z$315,17,0),0)","v":0},null,{"$f":"IFERROR(VLOOKUP(B241,'Schedule V(b)'!$B$11:$Z$315,25,0),0)","v":0},null,{"$f":"IFERROR(VLOOKUP(B241,'Schedule V(b)'!$B$11:$Z$315,23,0),0)","v":0},null,"0",null,0]
[231,null,null,{"$f":"IFERROR(VLOOKUP(B242,'Schedule V(b)'!$B$11:$Z$315,3,0),0)","v":0},null,{"$f":"IFERROR(VLOOKUP(B242,'Schedule V(b)'!$B$11:$Z$315,7,0),0)","v":"Select"},null,{"$f":"IFERROR(VLOOKUP(B242,'Schedule V(b)'!$B$11:$Z$315,9,0),0)","v":0},null,{"$f":"IFERROR(VLOOKUP(B242,'Schedule V(b)'!$B$11:$Z$315,11,0),0)","v":"Select"},null,{"$f":"IFERROR(VLOOKUP(B242,'Schedule V(b)'!$B$11:$Z$315,13,0),0)","v":0},null,null,null,{"$f":"IFERROR(VLOOKUP(B242,'Schedule V(b)'!$B$11:$Z$315,17,0),0)","v":0},null,{"$f":"IFERROR(VLOOKUP(B242,'Schedule V(b)'!$B$11:$Z$315,25,0),0)","v":0},null,{"$f":"IFERROR(VLOOKUP(B242,'Schedule V(b)'!$B$11:$Z$315,23,0),0)","v":0},null,"0",null,0]
[232,null,null,{"$f":"IFERROR(VLOOKUP(B243,'Schedule V(b)'!$B$11:$Z$315,3,0),0)","v":0},null,{"$f":"IFERROR(VLOOKUP(B243,'Schedule V(b)'!$B$11:$Z$315,7,0),0)","v":"Select"},null,{"$f":"IFERROR(VLOOKUP(B243,'Schedule V(b)'!$B$11:$Z$315,9,0),0)","v":0},null,{"$f":"IFERROR(VLOOKUP(B243,'Schedule V(b)'!$B$11:$Z$315,11,0),0)","v":"Select"},null,{"$f":"IFERROR(VLOOKUP(B243,'Schedule V(b)'!$B$11:$Z$315,13,0),0)","v":0},null,null,null,{"$f":"IFERROR(VLOOKUP(B243,'Schedule V(b)'!$B$11:$Z$315,17,0),0)","v":0},null,{"$f":"IFERROR(VLOOKUP(B243,'Schedule V(b)'!$B$11:$Z$315,25,0),0)","v":0},null,{"$f":"IFERROR(VLOOKUP(B243,'Schedule V(b)'!$B$11:$Z$315,23,0),0)","v":0},null,"0",null,0]
[233,null,null,{"$f":"IFERROR(VLOOKUP(B244,'Schedule V(b)'!$B$11:$Z$315,3,0),0)","v":0},null,{"$f":"IFERROR(VLOOKUP(B244,'Schedule V(b)'!$B$11:$Z$315,7,0),0)","v":"Select"},null,{"$f":"IFERROR(VLOOKUP(B244,'Schedule V(b)'!$B$11:$Z$315,9,0),0)","v":0},null,{"$f":"IFERROR(VLOOKUP(B244,'Schedule V(b)'!$B$11:$Z$315,11,0),0)","v":"Select"},null,{"$f":"IFERROR(VLOOKUP(B244,'Schedule V(b)'!$B$11:$Z$315,13,0),0)","v":0},null,null,null,{"$f":"IFERROR(VLOOKUP(B244,'Schedule V(b)'!$B$11:$Z$315,17,0),0)","v":0},null,{"$f":"IFERROR(VLOOKUP(B244,'Schedule V(b)'!$B$11:$Z$315,25,0),0)","v":0},null,{"$f":"IFERROR(VLOOKUP(B244,'Schedule V(b)'!$B$11:$Z$315,23,0),0)","v":0},null,"0",null,0]
[234,null,null,{"$f":"IFERROR(VLOOKUP(B245,'Schedule V(b)'!$B$11:$Z$315,3,0),0)","v":0},null,{"$f":"IFERROR(VLOOKUP(B245,'Schedule V(b)'!$B$11:$Z$315,7,0),0)","v":"Select"},null,{"$f":"IFERROR(VLOOKUP(B245,'Schedule V(b)'!$B$11:$Z$315,9,0),0)","v":0},null,{"$f":"IFERROR(VLOOKUP(B245,'Schedule V(b)'!$B$11:$Z$315,11,0),0)","v":"Select"},null,{"$f":"IFERROR(VLOOKUP(B245,'Schedule V(b)'!$B$11:$Z$315,13,0),0)","v":0},null,null,null,{"$f":"IFERROR(VLOOKUP(B245,'Schedule V(b)'!$B$11:$Z$315,17,0),0)","v":0},null,{"$f":"IFERROR(VLOOKUP(B245,'Schedule V(b)'!$B$11:$Z$315,25,0),0)","v":0},null,{"$f":"IFERROR(VLOOKUP(B245,'Schedule V(b)'!$B$11:$Z$315,23,0),0)","v":0},null,"0",null,0]
[235,null,null,{"$f":"IFERROR(VLOOKUP(B246,'Schedule V(b)'!$B$11:$Z$315,3,0),0)","v":0},null,{"$f":"IFERROR(VLOOKUP(B246,'Schedule V(b)'!$B$11:$Z$315,7,0),0)","v":"Select"},null,{"$f":"IFERROR(VLOOKUP(B246,'Schedule V(b)'!$B$11:$Z$315,9,0),0)","v":0},null,{"$f":"IFERROR(VLOOKUP(B246,'Schedule V(b)'!$B$11:$Z$315,11,0),0)","v":"Select"},null,{"$f":"IFERROR(VLOOKUP(B246,'Schedule V(b)'!$B$11:$Z$315,13,0),0)","v":0},null,null,null,{"$f":"IFERROR(VLOOKUP(B246,'Schedule V(b)'!$B$11:$Z$315,17,0),0)","v":0},null,{"$f":"IFERROR(VLOOKUP(B246,'Schedule V(b)'!$B$11:$Z$315,25,0),0)","v":0},null,{"$f":"IFERROR(VLOOKUP(B246,'Schedule V(b)'!$B$11:$Z$315,23,0),0)","v":0},null,"0",null,0]
[236,null,null,{"$f":"IFERROR(VLOOKUP(B247,'Schedule V(b)'!$B$11:$Z$315,3,0),0)","v":0},null,{"$f":"IFERROR(VLOOKUP(B247,'Schedule V(b)'!$B$11:$Z$315,7,0),0)","v":"Select"},null,{"$f":"IFERROR(VLOOKUP(B247,'Schedule V(b)'!$B$11:$Z$315,9,0),0)","v":0},null,{"$f":"IFERROR(VLOOKUP(B247,'Schedule V(b)'!$B$11:$Z$315,11,0),0)","v":"Select"},null,{"$f":"IFERROR(VLOOKUP(B247,'Schedule V(b)'!$B$11:$Z$315,13,0),0)","v":0},null,null,null,{"$f":"IFERROR(VLOOKUP(B247,'Schedule V(b)'!$B$11:$Z$315,17,0),0)","v":0},null,{"$f":"IFERROR(VLOOKUP(B247,'Schedule V(b)'!$B$11:$Z$315,25,0),0)","v":0},null,{"$f":"IFERROR(VLOOKUP(B247,'Schedule V(b)'!$B$11:$Z$315,23,0),0)","v":0},null,"0",null,0]
[237,null,null,{"$f":"IFERROR(VLOOKUP(B248,'Schedule V(b)'!$B$11:$Z$315,3,0),0)","v":0},null,{"$f":"IFERROR(VLOOKUP(B248,'Schedule V(b)'!$B$11:$Z$315,7,0),0)","v":"Select"},null,{"$f":"IFERROR(VLOOKUP(B248,'Schedule V(b)'!$B$11:$Z$315,9,0),0)","v":0},null,{"$f":"IFERROR(VLOOKUP(B248,'Schedule V(b)'!$B$11:$Z$315,11,0),0)","v":"Select"},null,{"$f":"IFERROR(VLOOKUP(B248,'Schedule V(b)'!$B$11:$Z$315,13,0),0)","v":0},null,null,null,{"$f":"IFERROR(VLOOKUP(B248,'Schedule V(b)'!$B$11:$Z$315,17,0),0)","v":0},null,{"$f":"IFERROR(VLOOKUP(B248,'Schedule V(b)'!$B$11:$Z$315,25,0),0)","v":0},null,{"$f":"IFERROR(VLOOKUP(B248,'Schedule V(b)'!$B$11:$Z$315,23,0),0)","v":0},null,"0",null,0]
[238,null,null,{"$f":"IFERROR(VLOOKUP(B249,'Schedule V(b)'!$B$11:$Z$315,3,0),0)","v":0},null,{"$f":"IFERROR(VLOOKUP(B249,'Schedule V(b)'!$B$11:$Z$315,7,0),0)","v":"Select"},null,{"$f":"IFERROR(VLOOKUP(B249,'Schedule V(b)'!$B$11:$Z$315,9,0),0)","v":0},null,{"$f":"IFERROR(VLOOKUP(B249,'Schedule V(b)'!$B$11:$Z$315,11,0),0)","v":"Select"},null,{"$f":"IFERROR(VLOOKUP(B249,'Schedule V(b)'!$B$11:$Z$315,13,0),0)","v":0},null,null,null,{"$f":"IFERROR(VLOOKUP(B249,'Schedule V(b)'!$B$11:$Z$315,17,0),0)","v":0},null,{"$f":"IFERROR(VLOOKUP(B249,'Schedule V(b)'!$B$11:$Z$315,25,0),0)","v":0},null,{"$f":"IFERROR(VLOOKUP(B249,'Schedule V(b)'!$B$11:$Z$315,23,0),0)","v":0},null,"0",null,0]
[239,null,null,{"$f":"IFERROR(VLOOKUP(B250,'Schedule V(b)'!$B$11:$Z$315,3,0),0)","v":0},null,{"$f":"IFERROR(VLOOKUP(B250,'Schedule V(b)'!$B$11:$Z$315,7,0),0)","v":"Select"},null,{"$f":"IFERROR(VLOOKUP(B250,'Schedule V(b)'!$B$11:$Z$315,9,0),0)","v":0},null,{"$f":"IFERROR(VLOOKUP(B250,'Schedule V(b)'!$B$11:$Z$315,11,0),0)","v":"Select"},null,{"$f":"IFERROR(VLOOKUP(B250,'Schedule V(b)'!$B$11:$Z$315,13,0),0)","v":0},null,null,null,{"$f":"IFERROR(VLOOKUP(B250,'Schedule V(b)'!$B$11:$Z$315,17,0),0)","v":0},null,{"$f":"IFERROR(VLOOKUP(B250,'Schedule V(b)'!$B$11:$Z$315,25,0),0)","v":0},null,{"$f":"IFERROR(VLOOKUP(B250,'Schedule V(b)'!$B$11:$Z$315,23,0),0)","v":0},null,"0",null,0]
[240,null,null,{"$f":"IFERROR(VLOOKUP(B251,'Schedule V(b)'!$B$11:$Z$315,3,0),0)","v":0},null,{"$f":"IFERROR(VLOOKUP(B251,'Schedule V(b)'!$B$11:$Z$315,7,0),0)","v":"Select"},null,{"$f":"IFERROR(VLOOKUP(B251,'Schedule V(b)'!$B$11:$Z$315,9,0),0)","v":0},null,{"$f":"IFERROR(VLOOKUP(B251,'Schedule V(b)'!$B$11:$Z$315,11,0),0)","v":"Select"},null,{"$f":"IFERROR(VLOOKUP(B251,'Schedule V(b)'!$B$11:$Z$315,13,0),0)","v":0},null,null,null,{"$f":"IFERROR(VLOOKUP(B251,'Schedule V(b)'!$B$11:$Z$315,17,0),0)","v":0},null,{"$f":"IFERROR(VLOOKUP(B251,'Schedule V(b)'!$B$11:$Z$315,25,0),0)","v":0},null,{"$f":"IFERROR(VLOOKUP(B251,'Schedule V(b)'!$B$11:$Z$315,23,0),0)","v":0},null,"0",null,0]
[241,null,null,{"$f":"IFERROR(VLOOKUP(B252,'Schedule V(b)'!$B$11:$Z$315,3,0),0)","v":0},null,{"$f":"IFERROR(VLOOKUP(B252,'Schedule V(b)'!$B$11:$Z$315,7,0),0)","v":"Select"},null,{"$f":"IFERROR(VLOOKUP(B252,'Schedule V(b)'!$B$11:$Z$315,9,0),0)","v":0},null,{"$f":"IFERROR(VLOOKUP(B252,'Schedule V(b)'!$B$11:$Z$315,11,0),0)","v":"Select"},null,{"$f":"IFERROR(VLOOKUP(B252,'Schedule V(b)'!$B$11:$Z$315,13,0),0)","v":0},null,null,null,{"$f":"IFERROR(VLOOKUP(B252,'Schedule V(b)'!$B$11:$Z$315,17,0),0)","v":0},null,{"$f":"IFERROR(VLOOKUP(B252,'Schedule V(b)'!$B$11:$Z$315,25,0),0)","v":0},null,{"$f":"IFERROR(VLOOKUP(B252,'Schedule V(b)'!$B$11:$Z$315,23,0),0)","v":0},null,"0",null,0]
[242,null,null,{"$f":"IFERROR(VLOOKUP(B253,'Schedule V(b)'!$B$11:$Z$315,3,0),0)","v":0},null,{"$f":"IFERROR(VLOOKUP(B253,'Schedule V(b)'!$B$11:$Z$315,7,0),0)","v":"Select"},null,{"$f":"IFERROR(VLOOKUP(B253,'Schedule V(b)'!$B$11:$Z$315,9,0),0)","v":0},null,{"$f":"IFERROR(VLOOKUP(B253,'Schedule V(b)'!$B$11:$Z$315,11,0),0)","v":"Select"},null,{"$f":"IFERROR(VLOOKUP(B253,'Schedule V(b)'!$B$11:$Z$315,13,0),0)","v":0},null,null,null,{"$f":"IFERROR(VLOOKUP(B253,'Schedule V(b)'!$B$11:$Z$315,17,0),0)","v":0},null,{"$f":"IFERROR(VLOOKUP(B253,'Schedule V(b)'!$B$11:$Z$315,25,0),0)","v":0},null,{"$f":"IFERROR(VLOOKUP(B253,'Schedule V(b)'!$B$11:$Z$315,23,0),0)","v":0},null,"0",null,0]
[243,null,null,{"$f":"IFERROR(VLOOKUP(B254,'Schedule V(b)'!$B$11:$Z$315,3,0),0)","v":0},null,{"$f":"IFERROR(VLOOKUP(B254,'Schedule V(b)'!$B$11:$Z$315,7,0),0)","v":"Select"},null,{"$f":"IFERROR(VLOOKUP(B254,'Schedule V(b)'!$B$11:$Z$315,9,0),0)","v":0},null,{"$f":"IFERROR(VLOOKUP(B254,'Schedule V(b)'!$B$11:$Z$315,11,0),0)","v":"Select"},null,{"$f":"IFERROR(VLOOKUP(B254,'Schedule V(b)'!$B$11:$Z$315,13,0),0)","v":0},null,null,null,{"$f":"IFERROR(VLOOKUP(B254,'Schedule V(b)'!$B$11:$Z$315,17,0),0)","v":0},null,{"$f":"IFERROR(VLOOKUP(B254,'Schedule V(b)'!$B$11:$Z$315,25,0),0)","v":0},null,{"$f":"IFERROR(VLOOKUP(B254,'Schedule V(b)'!$B$11:$Z$315,23,0),0)","v":0},null,"0",null,0]
[244,null,null,{"$f":"IFERROR(VLOOKUP(B255,'Schedule V(b)'!$B$11:$Z$315,3,0),0)","v":0},null,{"$f":"IFERROR(VLOOKUP(B255,'Schedule V(b)'!$B$11:$Z$315,7,0),0)","v":"Select"},null,{"$f":"IFERROR(VLOOKUP(B255,'Schedule V(b)'!$B$11:$Z$315,9,0),0)","v":0},null,{"$f":"IFERROR(VLOOKUP(B255,'Schedule V(b)'!$B$11:$Z$315,11,0),0)","v":"Select"},null,{"$f":"IFERROR(VLOOKUP(B255,'Schedule V(b)'!$B$11:$Z$315,13,0),0)","v":0},null,null,null,{"$f":"IFERROR(VLOOKUP(B255,'Schedule V(b)'!$B$11:$Z$315,17,0),0)","v":0},null,{"$f":"IFERROR(VLOOKUP(B255,'Schedule V(b)'!$B$11:$Z$315,25,0),0)","v":0},null,{"$f":"IFERROR(VLOOKUP(B255,'Schedule V(b)'!$B$11:$Z$315,23,0),0)","v":0},null,"0",null,0]
[245,null,null,{"$f":"IFERROR(VLOOKUP(B256,'Schedule V(b)'!$B$11:$Z$315,3,0),0)","v":0},null,{"$f":"IFERROR(VLOOKUP(B256,'Schedule V(b)'!$B$11:$Z$315,7,0),0)","v":"Select"},null,{"$f":"IFERROR(VLOOKUP(B256,'Schedule V(b)'!$B$11:$Z$315,9,0),0)","v":0},null,{"$f":"IFERROR(VLOOKUP(B256,'Schedule V(b)'!$B$11:$Z$315,11,0),0)","v":"Select"},null,{"$f":"IFERROR(VLOOKUP(B256,'Schedule V(b)'!$B$11:$Z$315,13,0),0)","v":0},null,null,null,{"$f":"IFERROR(VLOOKUP(B256,'Schedule V(b)'!$B$11:$Z$315,17,0),0)","v":0},null,{"$f":"IFERROR(VLOOKUP(B256,'Schedule V(b)'!$B$11:$Z$315,25,0),0)","v":0},null,{"$f":"IFERROR(VLOOKUP(B256,'Schedule V(b)'!$B$11:$Z$315,23,0),0)","v":0},null,"0",null,0]
[246,null,null,{"$f":"IFERROR(VLOOKUP(B257,'Schedule V(b)'!$B$11:$Z$315,3,0),0)","v":0},null,{"$f":"IFERROR(VLOOKUP(B257,'Schedule V(b)'!$B$11:$Z$315,7,0),0)","v":"Select"},null,{"$f":"IFERROR(VLOOKUP(B257,'Schedule V(b)'!$B$11:$Z$315,9,0),0)","v":0},null,{"$f":"IFERROR(VLOOKUP(B257,'Schedule V(b)'!$B$11:$Z$315,11,0),0)","v":"Select"},null,{"$f":"IFERROR(VLOOKUP(B257,'Schedule V(b)'!$B$11:$Z$315,13,0),0)","v":0},null,null,null,{"$f":"IFERROR(VLOOKUP(B257,'Schedule V(b)'!$B$11:$Z$315,17,0),0)","v":0},null,{"$f":"IFERROR(VLOOKUP(B257,'Schedule V(b)'!$B$11:$Z$315,25,0),0)","v":0},null,{"$f":"IFERROR(VLOOKUP(B257,'Schedule V(b)'!$B$11:$Z$315,23,0),0)","v":0},null,"0",null,0]
[247,null,null,{"$f":"IFERROR(VLOOKUP(B258,'Schedule V(b)'!$B$11:$Z$315,3,0),0)","v":0},null,{"$f":"IFERROR(VLOOKUP(B258,'Schedule V(b)'!$B$11:$Z$315,7,0),0)","v":"Select"},null,{"$f":"IFERROR(VLOOKUP(B258,'Schedule V(b)'!$B$11:$Z$315,9,0),0)","v":0},null,{"$f":"IFERROR(VLOOKUP(B258,'Schedule V(b)'!$B$11:$Z$315,11,0),0)","v":"Select"},null,{"$f":"IFERROR(VLOOKUP(B258,'Schedule V(b)'!$B$11:$Z$315,13,0),0)","v":0},null,null,null,{"$f":"IFERROR(VLOOKUP(B258,'Schedule V(b)'!$B$11:$Z$315,17,0),0)","v":0},null,{"$f":"IFERROR(VLOOKUP(B258,'Schedule V(b)'!$B$11:$Z$315,25,0),0)","v":0},null,{"$f":"IFERROR(VLOOKUP(B258,'Schedule V(b)'!$B$11:$Z$315,23,0),0)","v":0},null,"0",null,0]
[248,null,null,{"$f":"IFERROR(VLOOKUP(B259,'Schedule V(b)'!$B$11:$Z$315,3,0),0)","v":0},null,{"$f":"IFERROR(VLOOKUP(B259,'Schedule V(b)'!$B$11:$Z$315,7,0),0)","v":"Select"},null,{"$f":"IFERROR(VLOOKUP(B259,'Schedule V(b)'!$B$11:$Z$315,9,0),0)","v":0},null,{"$f":"IFERROR(VLOOKUP(B259,'Schedule V(b)'!$B$11:$Z$315,11,0),0)","v":"Select"},null,{"$f":"IFERROR(VLOOKUP(B259,'Schedule V(b)'!$B$11:$Z$315,13,0),0)","v":0},null,null,null,{"$f":"IFERROR(VLOOKUP(B259,'Schedule V(b)'!$B$11:$Z$315,17,0),0)","v":0},null,{"$f":"IFERROR(VLOOKUP(B259,'Schedule V(b)'!$B$11:$Z$315,25,0),0)","v":0},null,{"$f":"IFERROR(VLOOKUP(B259,'Schedule V(b)'!$B$11:$Z$315,23,0),0)","v":0},null,"0",null,0]
[249,null,null,{"$f":"IFERROR(VLOOKUP(B260,'Schedule V(b)'!$B$11:$Z$315,3,0),0)","v":0},null,{"$f":"IFERROR(VLOOKUP(B260,'Schedule V(b)'!$B$11:$Z$315,7,0),0)","v":"Select"},null,{"$f":"IFERROR(VLOOKUP(B260,'Schedule V(b)'!$B$11:$Z$315,9,0),0)","v":0},null,{"$f":"IFERROR(VLOOKUP(B260,'Schedule V(b)'!$B$11:$Z$315,11,0),0)","v":"Select"},null,{"$f":"IFERROR(VLOOKUP(B260,'Schedule V(b)'!$B$11:$Z$315,13,0),0)","v":0},null,null,null,{"$f":"IFERROR(VLOOKUP(B260,'Schedule V(b)'!$B$11:$Z$315,17,0),0)","v":0},null,{"$f":"IFERROR(VLOOKUP(B260,'Schedule V(b)'!$B$11:$Z$315,25,0),0)","v":0},null,{"$f":"IFERROR(VLOOKUP(B260,'Schedule V(b)'!$B$11:$Z$315,23,0),0)","v":0},null,"0",null,0]
[250,null,null,{"$f":"IFERROR(VLOOKUP(B261,'Schedule V(b)'!$B$11:$Z$315,3,0),0)","v":0},null,{"$f":"IFERROR(VLOOKUP(B261,'Schedule V(b)'!$B$11:$Z$315,7,0),0)","v":"Select"},null,{"$f":"IFERROR(VLOOKUP(B261,'Schedule V(b)'!$B$11:$Z$315,9,0),0)","v":0},null,{"$f":"IFERROR(VLOOKUP(B261,'Schedule V(b)'!$B$11:$Z$315,11,0),0)","v":"Select"},null,{"$f":"IFERROR(VLOOKUP(B261,'Schedule V(b)'!$B$11:$Z$315,13,0),0)","v":0},null,null,null,{"$f":"IFERROR(VLOOKUP(B261,'Schedule V(b)'!$B$11:$Z$315,17,0),0)","v":0},null,{"$f":"IFERROR(VLOOKUP(B261,'Schedule V(b)'!$B$11:$Z$315,25,0),0)","v":0},null,{"$f":"IFERROR(VLOOKUP(B261,'Schedule V(b)'!$B$11:$Z$315,23,0),0)","v":0},null,"0",null,0]
[251,null,null,{"$f":"IFERROR(VLOOKUP(B262,'Schedule V(b)'!$B$11:$Z$315,3,0),0)","v":0},null,{"$f":"IFERROR(VLOOKUP(B262,'Schedule V(b)'!$B$11:$Z$315,7,0),0)","v":"Select"},null,{"$f":"IFERROR(VLOOKUP(B262,'Schedule V(b)'!$B$11:$Z$315,9,0),0)","v":0},null,{"$f":"IFERROR(VLOOKUP(B262,'Schedule V(b)'!$B$11:$Z$315,11,0),0)","v":"Select"},null,{"$f":"IFERROR(VLOOKUP(B262,'Schedule V(b)'!$B$11:$Z$315,13,0),0)","v":0},null,null,null,{"$f":"IFERROR(VLOOKUP(B262,'Schedule V(b)'!$B$11:$Z$315,17,0),0)","v":0},null,{"$f":"IFERROR(VLOOKUP(B262,'Schedule V(b)'!$B$11:$Z$315,25,0),0)","v":0},null,{"$f":"IFERROR(VLOOKUP(B262,'Schedule V(b)'!$B$11:$Z$315,23,0),0)","v":0},null,"0",null,0]
[252,null,null,{"$f":"IFERROR(VLOOKUP(B263,'Schedule V(b)'!$B$11:$Z$315,3,0),0)","v":0},null,{"$f":"IFERROR(VLOOKUP(B263,'Schedule V(b)'!$B$11:$Z$315,7,0),0)","v":"Select"},null,{"$f":"IFERROR(VLOOKUP(B263,'Schedule V(b)'!$B$11:$Z$315,9,0),0)","v":0},null,{"$f":"IFERROR(VLOOKUP(B263,'Schedule V(b)'!$B$11:$Z$315,11,0),0)","v":"Select"},null,{"$f":"IFERROR(VLOOKUP(B263,'Schedule V(b)'!$B$11:$Z$315,13,0),0)","v":0},null,null,null,{"$f":"IFERROR(VLOOKUP(B263,'Schedule V(b)'!$B$11:$Z$315,17,0),0)","v":0},null,{"$f":"IFERROR(VLOOKUP(B263,'Schedule V(b)'!$B$11:$Z$315,25,0),0)","v":0},null,{"$f":"IFERROR(VLOOKUP(B263,'Schedule V(b)'!$B$11:$Z$315,23,0),0)","v":0},null,"0",null,0]
[253,null,null,{"$f":"IFERROR(VLOOKUP(B264,'Schedule V(b)'!$B$11:$Z$315,3,0),0)","v":0},null,{"$f":"IFERROR(VLOOKUP(B264,'Schedule V(b)'!$B$11:$Z$315,7,0),0)","v":"Select"},null,{"$f":"IFERROR(VLOOKUP(B264,'Schedule V(b)'!$B$11:$Z$315,9,0),0)","v":0},null,{"$f":"IFERROR(VLOOKUP(B264,'Schedule V(b)'!$B$11:$Z$315,11,0),0)","v":"Select"},null,{"$f":"IFERROR(VLOOKUP(B264,'Schedule V(b)'!$B$11:$Z$315,13,0),0)","v":0},null,null,null,{"$f":"IFERROR(VLOOKUP(B264,'Schedule V(b)'!$B$11:$Z$315,17,0),0)","v":0},null,{"$f":"IFERROR(VLOOKUP(B264,'Schedule V(b)'!$B$11:$Z$315,25,0),0)","v":0},null,{"$f":"IFERROR(VLOOKUP(B264,'Schedule V(b)'!$B$11:$Z$315,23,0),0)","v":0},null,"0",null,0]
[254,null,null,{"$f":"IFERROR(VLOOKUP(B265,'Schedule V(b)'!$B$11:$Z$315,3,0),0)","v":0},null,{"$f":"IFERROR(VLOOKUP(B265,'Schedule V(b)'!$B$11:$Z$315,7,0),0)","v":"Select"},null,{"$f":"IFERROR(VLOOKUP(B265,'Schedule V(b)'!$B$11:$Z$315,9,0),0)","v":0},null,{"$f":"IFERROR(VLOOKUP(B265,'Schedule V(b)'!$B$11:$Z$315,11,0),0)","v":"Select"},null,{"$f":"IFERROR(VLOOKUP(B265,'Schedule V(b)'!$B$11:$Z$315,13,0),0)","v":0},null,null,null,{"$f":"IFERROR(VLOOKUP(B265,'Schedule V(b)'!$B$11:$Z$315,17,0),0)","v":0},null,{"$f":"IFERROR(VLOOKUP(B265,'Schedule V(b)'!$B$11:$Z$315,25,0),0)","v":0},null,{"$f":"IFERROR(VLOOKUP(B265,'Schedule V(b)'!$B$11:$Z$315,23,0),0)","v":0},null,"0",null,0]
[255,null,null,{"$f":"IFERROR(VLOOKUP(B266,'Schedule V(b)'!$B$11:$Z$315,3,0),0)","v":0},null,{"$f":"IFERROR(VLOOKUP(B266,'Schedule V(b)'!$B$11:$Z$315,7,0),0)","v":"Select"},null,{"$f":"IFERROR(VLOOKUP(B266,'Schedule V(b)'!$B$11:$Z$315,9,0),0)","v":0},null,{"$f":"IFERROR(VLOOKUP(B266,'Schedule V(b)'!$B$11:$Z$315,11,0),0)","v":"Select"},null,{"$f":"IFERROR(VLOOKUP(B266,'Schedule V(b)'!$B$11:$Z$315,13,0),0)","v":0},null,null,null,{"$f":"IFERROR(VLOOKUP(B266,'Schedule V(b)'!$B$11:$Z$315,17,0),0)","v":0},null,{"$f":"IFERROR(VLOOKUP(B266,'Schedule V(b)'!$B$11:$Z$315,25,0),0)","v":0},null,{"$f":"IFERROR(VLOOKUP(B266,'Schedule V(b)'!$B$11:$Z$315,23,0),0)","v":0},null,"0",null,0]
[256,null,null,{"$f":"IFERROR(VLOOKUP(B267,'Schedule V(b)'!$B$11:$Z$315,3,0),0)","v":0},null,{"$f":"IFERROR(VLOOKUP(B267,'Schedule V(b)'!$B$11:$Z$315,7,0),0)","v":"Select"},null,{"$f":"IFERROR(VLOOKUP(B267,'Schedule V(b)'!$B$11:$Z$315,9,0),0)","v":0},null,{"$f":"IFERROR(VLOOKUP(B267,'Schedule V(b)'!$B$11:$Z$315,11,0),0)","v":"Select"},null,{"$f":"IFERROR(VLOOKUP(B267,'Schedule V(b)'!$B$11:$Z$315,13,0),0)","v":0},null,null,null,{"$f":"IFERROR(VLOOKUP(B267,'Schedule V(b)'!$B$11:$Z$315,17,0),0)","v":0},null,{"$f":"IFERROR(VLOOKUP(B267,'Schedule V(b)'!$B$11:$Z$315,25,0),0)","v":0},null,{"$f":"IFERROR(VLOOKUP(B267,'Schedule V(b)'!$B$11:$Z$315,23,0),0)","v":0},null,"0",null,0]
[257,null,null,{"$f":"IFERROR(VLOOKUP(B268,'Schedule V(b)'!$B$11:$Z$315,3,0),0)","v":0},null,{"$f":"IFERROR(VLOOKUP(B268,'Schedule V(b)'!$B$11:$Z$315,7,0),0)","v":"Select"},null,{"$f":"IFERROR(VLOOKUP(B268,'Schedule V(b)'!$B$11:$Z$315,9,0),0)","v":0},null,{"$f":"IFERROR(VLOOKUP(B268,'Schedule V(b)'!$B$11:$Z$315,11,0),0)","v":"Select"},null,{"$f":"IFERROR(VLOOKUP(B268,'Schedule V(b)'!$B$11:$Z$315,13,0),0)","v":0},null,null,null,{"$f":"IFERROR(VLOOKUP(B268,'Schedule V(b)'!$B$11:$Z$315,17,0),0)","v":0},null,{"$f":"IFERROR(VLOOKUP(B268,'Schedule V(b)'!$B$11:$Z$315,25,0),0)","v":0},null,{"$f":"IFERROR(VLOOKUP(B268,'Schedule V(b)'!$B$11:$Z$315,23,0),0)","v":0},null,{"$f":"IF(N268=\"unregulated entities that conduct ancillary services \",\"0%\",IF(N268=\"Unregulated non-financial operating entities\",\"15%\",IF(N268=\"unregulated financial operating entities\",\"50%\",\"0\")))","v":"0"},null,{"$f":"P268*T268*V268","v":0}]
[258,null,null,{"$f":"IFERROR(VLOOKUP(B269,'Schedule V(b)'!$B$11:$Z$315,3,0),0)","v":0},null,{"$f":"IFERROR(VLOOKUP(B269,'Schedule V(b)'!$B$11:$Z$315,7,0),0)","v":"Select"},null,{"$f":"IFERROR(VLOOKUP(B269,'Schedule V(b)'!$B$11:$Z$315,9,0),0)","v":0},null,{"$f":"IFERROR(VLOOKUP(B269,'Schedule V(b)'!$B$11:$Z$315,11,0),0)","v":"Select"},null,{"$f":"IFERROR(VLOOKUP(B269,'Schedule V(b)'!$B$11:$Z$315,13,0),0)","v":0},null,null,null,{"$f":"IFERROR(VLOOKUP(B269,'Schedule V(b)'!$B$11:$Z$315,17,0),0)","v":0},null,{"$f":"IFERROR(VLOOKUP(B269,'Schedule V(b)'!$B$11:$Z$315,25,0),0)","v":0},null,{"$f":"IFERROR(VLOOKUP(B269,'Schedule V(b)'!$B$11:$Z$315,23,0),0)","v":0},null,"0",null,0]
[259,null,null,{"$f":"IFERROR(VLOOKUP(B270,'Schedule V(b)'!$B$11:$Z$315,3,0),0)","v":0},null,{"$f":"IFERROR(VLOOKUP(B270,'Schedule V(b)'!$B$11:$Z$315,7,0),0)","v":"Select"},null,{"$f":"IFERROR(VLOOKUP(B270,'Schedule V(b)'!$B$11:$Z$315,9,0),0)","v":0},null,{"$f":"IFERROR(VLOOKUP(B270,'Schedule V(b)'!$B$11:$Z$315,11,0),0)","v":"Select"},null,{"$f":"IFERROR(VLOOKUP(B270,'Schedule V(b)'!$B$11:$Z$315,13,0),0)","v":0},null,null,null,{"$f":"IFERROR(VLOOKUP(B270,'Schedule V(b)'!$B$11:$Z$315,17,0),0)","v":0},null,{"$f":"IFERROR(VLOOKUP(B270,'Schedule V(b)'!$B$11:$Z$315,25,0),0)","v":0},null,{"$f":"IFERROR(VLOOKUP(B270,'Schedule V(b)'!$B$11:$Z$315,23,0),0)","v":0},null,"0",null,0]
[260,null,null,{"$f":"IFERROR(VLOOKUP(B271,'Schedule V(b)'!$B$11:$Z$315,3,0),0)","v":0},null,{"$f":"IFERROR(VLOOKUP(B271,'Schedule V(b)'!$B$11:$Z$315,7,0),0)","v":"Select"},null,{"$f":"IFERROR(VLOOKUP(B271,'Schedule V(b)'!$B$11:$Z$315,9,0),0)","v":0},null,{"$f":"IFERROR(VLOOKUP(B271,'Schedule V(b)'!$B$11:$Z$315,11,0),0)","v":"Select"},null,{"$f":"IFERROR(VLOOKUP(B271,'Schedule V(b)'!$B$11:$Z$315,13,0),0)","v":0},null,null,null,{"$f":"IFERROR(VLOOKUP(B271,'Schedule V(b)'!$B$11:$Z$315,17,0),0)","v":0},null,{"$f":"IFERROR(VLOOKUP(B271,'Schedule V(b)'!$B$11:$Z$315,25,0),0)","v":0},null,{"$f":"IFERROR(VLOOKUP(B271,'Schedule V(b)'!$B$11:$Z$315,23,0),0)","v":0},null,"0",null,0]
[261,null,null,{"$f":"IFERROR(VLOOKUP(B272,'Schedule V(b)'!$B$11:$Z$315,3,0),0)","v":0},null,{"$f":"IFERROR(VLOOKUP(B272,'Schedule V(b)'!$B$11:$Z$315,7,0),0)","v":"Select"},null,{"$f":"IFERROR(VLOOKUP(B272,'Schedule V(b)'!$B$11:$Z$315,9,0),0)","v":0},null,{"$f":"IFERROR(VLOOKUP(B272,'Schedule V(b)'!$B$11:$Z$315,11,0),0)","v":"Select"},null,{"$f":"IFERROR(VLOOKUP(B272,'Schedule V(b)'!$B$11:$Z$315,13,0),0)","v":0},null,null,null,{"$f":"IFERROR(VLOOKUP(B272,'Schedule V(b)'!$B$11:$Z$315,17,0),0)","v":0},null,{"$f":"IFERROR(VLOOKUP(B272,'Schedule V(b)'!$B$11:$Z$315,25,0),0)","v":0},null,{"$f":"IFERROR(VLOOKUP(B272,'Schedule V(b)'!$B$11:$Z$315,23,0),0)","v":0},null,"0",null,0]
[262,null,null,{"$f":"IFERROR(VLOOKUP(B273,'Schedule V(b)'!$B$11:$Z$315,3,0),0)","v":0},null,{"$f":"IFERROR(VLOOKUP(B273,'Schedule V(b)'!$B$11:$Z$315,7,0),0)","v":"Select"},null,{"$f":"IFERROR(VLOOKUP(B273,'Schedule V(b)'!$B$11:$Z$315,9,0),0)","v":0},null,{"$f":"IFERROR(VLOOKUP(B273,'Schedule V(b)'!$B$11:$Z$315,11,0),0)","v":"Select"},null,{"$f":"IFERROR(VLOOKUP(B273,'Schedule V(b)'!$B$11:$Z$315,13,0),0)","v":0},null,null,null,{"$f":"IFERROR(VLOOKUP(B273,'Schedule V(b)'!$B$11:$Z$315,17,0),0)","v":0},null,{"$f":"IFERROR(VLOOKUP(B273,'Schedule V(b)'!$B$11:$Z$315,25,0),0)","v":0},null,{"$f":"IFERROR(VLOOKUP(B273,'Schedule V(b)'!$B$11:$Z$315,23,0),0)","v":0},null,"0",null,0]
[263,null,null,{"$f":"IFERROR(VLOOKUP(B274,'Schedule V(b)'!$B$11:$Z$315,3,0),0)","v":0},null,{"$f":"IFERROR(VLOOKUP(B274,'Schedule V(b)'!$B$11:$Z$315,7,0),0)","v":"Select"},null,{"$f":"IFERROR(VLOOKUP(B274,'Schedule V(b)'!$B$11:$Z$315,9,0),0)","v":0},null,{"$f":"IFERROR(VLOOKUP(B274,'Schedule V(b)'!$B$11:$Z$315,11,0),0)","v":"Select"},null,{"$f":"IFERROR(VLOOKUP(B274,'Schedule V(b)'!$B$11:$Z$315,13,0),0)","v":0},null,null,null,{"$f":"IFERROR(VLOOKUP(B274,'Schedule V(b)'!$B$11:$Z$315,17,0),0)","v":0},null,{"$f":"IFERROR(VLOOKUP(B274,'Schedule V(b)'!$B$11:$Z$315,25,0),0)","v":0},null,{"$f":"IFERROR(VLOOKUP(B274,'Schedule V(b)'!$B$11:$Z$315,23,0),0)","v":0},null,"0",null,0]
[264,null,null,{"$f":"IFERROR(VLOOKUP(B275,'Schedule V(b)'!$B$11:$Z$315,3,0),0)","v":0},null,{"$f":"IFERROR(VLOOKUP(B275,'Schedule V(b)'!$B$11:$Z$315,7,0),0)","v":"Select"},null,{"$f":"IFERROR(VLOOKUP(B275,'Schedule V(b)'!$B$11:$Z$315,9,0),0)","v":0},null,{"$f":"IFERROR(VLOOKUP(B275,'Schedule V(b)'!$B$11:$Z$315,11,0),0)","v":"Select"},null,{"$f":"IFERROR(VLOOKUP(B275,'Schedule V(b)'!$B$11:$Z$315,13,0),0)","v":0},null,null,null,{"$f":"IFERROR(VLOOKUP(B275,'Schedule V(b)'!$B$11:$Z$315,17,0),0)","v":0},null,{"$f":"IFERROR(VLOOKUP(B275,'Schedule V(b)'!$B$11:$Z$315,25,0),0)","v":0},null,{"$f":"IFERROR(VLOOKUP(B275,'Schedule V(b)'!$B$11:$Z$315,23,0),0)","v":0},null,"0",null,0]
[265,null,null,{"$f":"IFERROR(VLOOKUP(B276,'Schedule V(b)'!$B$11:$Z$315,3,0),0)","v":0},null,{"$f":"IFERROR(VLOOKUP(B276,'Schedule V(b)'!$B$11:$Z$315,7,0),0)","v":"Select"},null,{"$f":"IFERROR(VLOOKUP(B276,'Schedule V(b)'!$B$11:$Z$315,9,0),0)","v":0},null,{"$f":"IFERROR(VLOOKUP(B276,'Schedule V(b)'!$B$11:$Z$315,11,0),0)","v":"Select"},null,{"$f":"IFERROR(VLOOKUP(B276,'Schedule V(b)'!$B$11:$Z$315,13,0),0)","v":0},null,null,null,{"$f":"IFERROR(VLOOKUP(B276,'Schedule V(b)'!$B$11:$Z$315,17,0),0)","v":0},null,{"$f":"IFERROR(VLOOKUP(B276,'Schedule V(b)'!$B$11:$Z$315,25,0),0)","v":0},null,{"$f":"IFERROR(VLOOKUP(B276,'Schedule V(b)'!$B$11:$Z$315,23,0),0)","v":0},null,"0",null,0]
[266,null,null,{"$f":"IFERROR(VLOOKUP(B277,'Schedule V(b)'!$B$11:$Z$315,3,0),0)","v":0},null,{"$f":"IFERROR(VLOOKUP(B277,'Schedule V(b)'!$B$11:$Z$315,7,0),0)","v":"Select"},null,{"$f":"IFERROR(VLOOKUP(B277,'Schedule V(b)'!$B$11:$Z$315,9,0),0)","v":0},null,{"$f":"IFERROR(VLOOKUP(B277,'Schedule V(b)'!$B$11:$Z$315,11,0),0)","v":"Select"},null,{"$f":"IFERROR(VLOOKUP(B277,'Schedule V(b)'!$B$11:$Z$315,13,0),0)","v":0},null,null,null,{"$f":"IFERROR(VLOOKUP(B277,'Schedule V(b)'!$B$11:$Z$315,17,0),0)","v":0},null,{"$f":"IFERROR(VLOOKUP(B277,'Schedule V(b)'!$B$11:$Z$315,25,0),0)","v":0},null,{"$f":"IFERROR(VLOOKUP(B277,'Schedule V(b)'!$B$11:$Z$315,23,0),0)","v":0},null,"0",null,0]
[267,null,null,{"$f":"IFERROR(VLOOKUP(B278,'Schedule V(b)'!$B$11:$Z$315,3,0),0)","v":0},null,{"$f":"IFERROR(VLOOKUP(B278,'Schedule V(b)'!$B$11:$Z$315,7,0),0)","v":"Select"},null,{"$f":"IFERROR(VLOOKUP(B278,'Schedule V(b)'!$B$11:$Z$315,9,0),0)","v":0},null,{"$f":"IFERROR(VLOOKUP(B278,'Schedule V(b)'!$B$11:$Z$315,11,0),0)","v":"Select"},null,{"$f":"IFERROR(VLOOKUP(B278,'Schedule V(b)'!$B$11:$Z$315,13,0),0)","v":0},null,null,null,{"$f":"IFERROR(VLOOKUP(B278,'Schedule V(b)'!$B$11:$Z$315,17,0),0)","v":0},null,{"$f":"IFERROR(VLOOKUP(B278,'Schedule V(b)'!$B$11:$Z$315,25,0),0)","v":0},null,{"$f":"IFERROR(VLOOKUP(B278,'Schedule V(b)'!$B$11:$Z$315,23,0),0)","v":0},null,"0",null,0]
[268,null,null,{"$f":"IFERROR(VLOOKUP(B279,'Schedule V(b)'!$B$11:$Z$315,3,0),0)","v":0},null,{"$f":"IFERROR(VLOOKUP(B279,'Schedule V(b)'!$B$11:$Z$315,7,0),0)","v":"Select"},null,{"$f":"IFERROR(VLOOKUP(B279,'Schedule V(b)'!$B$11:$Z$315,9,0),0)","v":0},null,{"$f":"IFERROR(VLOOKUP(B279,'Schedule V(b)'!$B$11:$Z$315,11,0),0)","v":"Select"},null,{"$f":"IFERROR(VLOOKUP(B279,'Schedule V(b)'!$B$11:$Z$315,13,0),0)","v":0},null,null,null,{"$f":"IFERROR(VLOOKUP(B279,'Schedule V(b)'!$B$11:$Z$315,17,0),0)","v":0},null,{"$f":"IFERROR(VLOOKUP(B279,'Schedule V(b)'!$B$11:$Z$315,25,0),0)","v":0},null,{"$f":"IFERROR(VLOOKUP(B279,'Schedule V(b)'!$B$11:$Z$315,23,0),0)","v":0},null,"0",null,0]
[269,null,null,{"$f":"IFERROR(VLOOKUP(B280,'Schedule V(b)'!$B$11:$Z$315,3,0),0)","v":0},null,{"$f":"IFERROR(VLOOKUP(B280,'Schedule V(b)'!$B$11:$Z$315,7,0),0)","v":"Select"},null,{"$f":"IFERROR(VLOOKUP(B280,'Schedule V(b)'!$B$11:$Z$315,9,0),0)","v":0},null,{"$f":"IFERROR(VLOOKUP(B280,'Schedule V(b)'!$B$11:$Z$315,11,0),0)","v":"Select"},null,{"$f":"IFERROR(VLOOKUP(B280,'Schedule V(b)'!$B$11:$Z$315,13,0),0)","v":0},null,null,null,{"$f":"IFERROR(VLOOKUP(B280,'Schedule V(b)'!$B$11:$Z$315,17,0),0)","v":0},null,{"$f":"IFERROR(VLOOKUP(B280,'Schedule V(b)'!$B$11:$Z$315,25,0),0)","v":0},null,{"$f":"IFERROR(VLOOKUP(B280,'Schedule V(b)'!$B$11:$Z$315,23,0),0)","v":0},null,"0",null,0]
[270,null,null,{"$f":"IFERROR(VLOOKUP(B281,'Schedule V(b)'!$B$11:$Z$315,3,0),0)","v":0},null,{"$f":"IFERROR(VLOOKUP(B281,'Schedule V(b)'!$B$11:$Z$315,7,0),0)","v":"Select"},null,{"$f":"IFERROR(VLOOKUP(B281,'Schedule V(b)'!$B$11:$Z$315,9,0),0)","v":0},null,{"$f":"IFERROR(VLOOKUP(B281,'Schedule V(b)'!$B$11:$Z$315,11,0),0)","v":"Select"},null,{"$f":"IFERROR(VLOOKUP(B281,'Schedule V(b)'!$B$11:$Z$315,13,0),0)","v":0},null,null,null,{"$f":"IFERROR(VLOOKUP(B281,'Schedule V(b)'!$B$11:$Z$315,17,0),0)","v":0},null,{"$f":"IFERROR(VLOOKUP(B281,'Schedule V(b)'!$B$11:$Z$315,25,0),0)","v":0},null,{"$f":"IFERROR(VLOOKUP(B281,'Schedule V(b)'!$B$11:$Z$315,23,0),0)","v":0},null,"0",null,0]
[271,null,null,{"$f":"IFERROR(VLOOKUP(B282,'Schedule V(b)'!$B$11:$Z$315,3,0),0)","v":0},null,{"$f":"IFERROR(VLOOKUP(B282,'Schedule V(b)'!$B$11:$Z$315,7,0),0)","v":"Select"},null,{"$f":"IFERROR(VLOOKUP(B282,'Schedule V(b)'!$B$11:$Z$315,9,0),0)","v":0},null,{"$f":"IFERROR(VLOOKUP(B282,'Schedule V(b)'!$B$11:$Z$315,11,0),0)","v":"Select"},null,{"$f":"IFERROR(VLOOKUP(B282,'Schedule V(b)'!$B$11:$Z$315,13,0),0)","v":0},null,null,null,{"$f":"IFERROR(VLOOKUP(B282,'Schedule V(b)'!$B$11:$Z$315,17,0),0)","v":0},null,{"$f":"IFERROR(VLOOKUP(B282,'Schedule V(b)'!$B$11:$Z$315,25,0),0)","v":0},null,{"$f":"IFERROR(VLOOKUP(B282,'Schedule V(b)'!$B$11:$Z$315,23,0),0)","v":0},null,"0",null,0]
[272,null,null,{"$f":"IFERROR(VLOOKUP(B283,'Schedule V(b)'!$B$11:$Z$315,3,0),0)","v":0},null,{"$f":"IFERROR(VLOOKUP(B283,'Schedule V(b)'!$B$11:$Z$315,7,0),0)","v":"Select"},null,{"$f":"IFERROR(VLOOKUP(B283,'Schedule V(b)'!$B$11:$Z$315,9,0),0)","v":0},null,{"$f":"IFERROR(VLOOKUP(B283,'Schedule V(b)'!$B$11:$Z$315,11,0),0)","v":"Select"},null,{"$f":"IFERROR(VLOOKUP(B283,'Schedule V(b)'!$B$11:$Z$315,13,0),0)","v":0},null,null,null,{"$f":"IFERROR(VLOOKUP(B283,'Schedule V(b)'!$B$11:$Z$315,17,0),0)","v":0},null,{"$f":"IFERROR(VLOOKUP(B283,'Schedule V(b)'!$B$11:$Z$315,25,0),0)","v":0},null,{"$f":"IFERROR(VLOOKUP(B283,'Schedule V(b)'!$B$11:$Z$315,23,0),0)","v":0},null,"0",null,0]
[273,null,null,{"$f":"IFERROR(VLOOKUP(B284,'Schedule V(b)'!$B$11:$Z$315,3,0),0)","v":0},null,{"$f":"IFERROR(VLOOKUP(B284,'Schedule V(b)'!$B$11:$Z$315,7,0),0)","v":"Select"},null,{"$f":"IFERROR(VLOOKUP(B284,'Schedule V(b)'!$B$11:$Z$315,9,0),0)","v":0},null,{"$f":"IFERROR(VLOOKUP(B284,'Schedule V(b)'!$B$11:$Z$315,11,0),0)","v":"Select"},null,{"$f":"IFERROR(VLOOKUP(B284,'Schedule V(b)'!$B$11:$Z$315,13,0),0)","v":0},null,null,null,{"$f":"IFERROR(VLOOKUP(B284,'Schedule V(b)'!$B$11:$Z$315,17,0),0)","v":0},null,{"$f":"IFERROR(VLOOKUP(B284,'Schedule V(b)'!$B$11:$Z$315,25,0),0)","v":0},null,{"$f":"IFERROR(VLOOKUP(B284,'Schedule V(b)'!$B$11:$Z$315,23,0),0)","v":0},null,"0",null,0]
[274,null,null,{"$f":"IFERROR(VLOOKUP(B285,'Schedule V(b)'!$B$11:$Z$315,3,0),0)","v":0},null,{"$f":"IFERROR(VLOOKUP(B285,'Schedule V(b)'!$B$11:$Z$315,7,0),0)","v":"Select"},null,{"$f":"IFERROR(VLOOKUP(B285,'Schedule V(b)'!$B$11:$Z$315,9,0),0)","v":0},null,{"$f":"IFERROR(VLOOKUP(B285,'Schedule V(b)'!$B$11:$Z$315,11,0),0)","v":"Select"},null,{"$f":"IFERROR(VLOOKUP(B285,'Schedule V(b)'!$B$11:$Z$315,13,0),0)","v":0},null,null,null,{"$f":"IFERROR(VLOOKUP(B285,'Schedule V(b)'!$B$11:$Z$315,17,0),0)","v":0},null,{"$f":"IFERROR(VLOOKUP(B285,'Schedule V(b)'!$B$11:$Z$315,25,0),0)","v":0},null,{"$f":"IFERROR(VLOOKUP(B285,'Schedule V(b)'!$B$11:$Z$315,23,0),0)","v":0},null,"0",null,0]
[275,null,null,{"$f":"IFERROR(VLOOKUP(B286,'Schedule V(b)'!$B$11:$Z$315,3,0),0)","v":0},null,{"$f":"IFERROR(VLOOKUP(B286,'Schedule V(b)'!$B$11:$Z$315,7,0),0)","v":"Select"},null,{"$f":"IFERROR(VLOOKUP(B286,'Schedule V(b)'!$B$11:$Z$315,9,0),0)","v":0},null,{"$f":"IFERROR(VLOOKUP(B286,'Schedule V(b)'!$B$11:$Z$315,11,0),0)","v":"Select"},null,{"$f":"IFERROR(VLOOKUP(B286,'Schedule V(b)'!$B$11:$Z$315,13,0),0)","v":0},null,null,null,{"$f":"IFERROR(VLOOKUP(B286,'Schedule V(b)'!$B$11:$Z$315,17,0),0)","v":0},null,{"$f":"IFERROR(VLOOKUP(B286,'Schedule V(b)'!$B$11:$Z$315,25,0),0)","v":0},null,{"$f":"IFERROR(VLOOKUP(B286,'Schedule V(b)'!$B$11:$Z$315,23,0),0)","v":0},null,"0",null,0]
[276,null,null,{"$f":"IFERROR(VLOOKUP(B287,'Schedule V(b)'!$B$11:$Z$315,3,0),0)","v":0},null,{"$f":"IFERROR(VLOOKUP(B287,'Schedule V(b)'!$B$11:$Z$315,7,0),0)","v":"Select"},null,{"$f":"IFERROR(VLOOKUP(B287,'Schedule V(b)'!$B$11:$Z$315,9,0),0)","v":0},null,{"$f":"IFERROR(VLOOKUP(B287,'Schedule V(b)'!$B$11:$Z$315,11,0),0)","v":"Select"},null,{"$f":"IFERROR(VLOOKUP(B287,'Schedule V(b)'!$B$11:$Z$315,13,0),0)","v":0},null,null,null,{"$f":"IFERROR(VLOOKUP(B287,'Schedule V(b)'!$B$11:$Z$315,17,0),0)","v":0},null,{"$f":"IFERROR(VLOOKUP(B287,'Schedule V(b)'!$B$11:$Z$315,25,0),0)","v":0},null,{"$f":"IFERROR(VLOOKUP(B287,'Schedule V(b)'!$B$11:$Z$315,23,0),0)","v":0},null,"0",null,0]
[277,null,null,{"$f":"IFERROR(VLOOKUP(B288,'Schedule V(b)'!$B$11:$Z$315,3,0),0)","v":0},null,{"$f":"IFERROR(VLOOKUP(B288,'Schedule V(b)'!$B$11:$Z$315,7,0),0)","v":"Select"},null,{"$f":"IFERROR(VLOOKUP(B288,'Schedule V(b)'!$B$11:$Z$315,9,0),0)","v":0},null,{"$f":"IFERROR(VLOOKUP(B288,'Schedule V(b)'!$B$11:$Z$315,11,0),0)","v":"Select"},null,{"$f":"IFERROR(VLOOKUP(B288,'Schedule V(b)'!$B$11:$Z$315,13,0),0)","v":0},null,null,null,{"$f":"IFERROR(VLOOKUP(B288,'Schedule V(b)'!$B$11:$Z$315,17,0),0)","v":0},null,{"$f":"IFERROR(VLOOKUP(B288,'Schedule V(b)'!$B$11:$Z$315,25,0),0)","v":0},null,{"$f":"IFERROR(VLOOKUP(B288,'Schedule V(b)'!$B$11:$Z$315,23,0),0)","v":0},null,"0",null,0]
[278,null,null,{"$f":"IFERROR(VLOOKUP(B289,'Schedule V(b)'!$B$11:$Z$315,3,0),0)","v":0},null,{"$f":"IFERROR(VLOOKUP(B289,'Schedule V(b)'!$B$11:$Z$315,7,0),0)","v":"Select"},null,{"$f":"IFERROR(VLOOKUP(B289,'Schedule V(b)'!$B$11:$Z$315,9,0),0)","v":0},null,{"$f":"IFERROR(VLOOKUP(B289,'Schedule V(b)'!$B$11:$Z$315,11,0),0)","v":"Select"},null,{"$f":"IFERROR(VLOOKUP(B289,'Schedule V(b)'!$B$11:$Z$315,13,0),0)","v":0},null,null,null,{"$f":"IFERROR(VLOOKUP(B289,'Schedule V(b)'!$B$11:$Z$315,17,0),0)","v":0},null,{"$f":"IFERROR(VLOOKUP(B289,'Schedule V(b)'!$B$11:$Z$315,25,0),0)","v":0},null,{"$f":"IFERROR(VLOOKUP(B289,'Schedule V(b)'!$B$11:$Z$315,23,0),0)","v":0},null,"0",null,0]
[279,null,null,{"$f":"IFERROR(VLOOKUP(B290,'Schedule V(b)'!$B$11:$Z$315,3,0),0)","v":0},null,{"$f":"IFERROR(VLOOKUP(B290,'Schedule V(b)'!$B$11:$Z$315,7,0),0)","v":"Select"},null,{"$f":"IFERROR(VLOOKUP(B290,'Schedule V(b)'!$B$11:$Z$315,9,0),0)","v":0},null,{"$f":"IFERROR(VLOOKUP(B290,'Schedule V(b)'!$B$11:$Z$315,11,0),0)","v":"Select"},null,{"$f":"IFERROR(VLOOKUP(B290,'Schedule V(b)'!$B$11:$Z$315,13,0),0)","v":0},null,null,null,{"$f":"IFERROR(VLOOKUP(B290,'Schedule V(b)'!$B$11:$Z$315,17,0),0)","v":0},null,{"$f":"IFERROR(VLOOKUP(B290,'Schedule V(b)'!$B$11:$Z$315,25,0),0)","v":0},null,{"$f":"IFERROR(VLOOKUP(B290,'Schedule V(b)'!$B$11:$Z$315,23,0),0)","v":0},null,"0",null,0]
[280,null,null,{"$f":"IFERROR(VLOOKUP(B291,'Schedule V(b)'!$B$11:$Z$315,3,0),0)","v":0},null,{"$f":"IFERROR(VLOOKUP(B291,'Schedule V(b)'!$B$11:$Z$315,7,0),0)","v":"Select"},null,{"$f":"IFERROR(VLOOKUP(B291,'Schedule V(b)'!$B$11:$Z$315,9,0),0)","v":0},null,{"$f":"IFERROR(VLOOKUP(B291,'Schedule V(b)'!$B$11:$Z$315,11,0),0)","v":"Select"},null,{"$f":"IFERROR(VLOOKUP(B291,'Schedule V(b)'!$B$11:$Z$315,13,0),0)","v":0},null,null,null,{"$f":"IFERROR(VLOOKUP(B291,'Schedule V(b)'!$B$11:$Z$315,17,0),0)","v":0},null,{"$f":"IFERROR(VLOOKUP(B291,'Schedule V(b)'!$B$11:$Z$315,25,0),0)","v":0},null,{"$f":"IFERROR(VLOOKUP(B291,'Schedule V(b)'!$B$11:$Z$315,23,0),0)","v":0},null,"0",null,0]
[281,null,null,{"$f":"IFERROR(VLOOKUP(B292,'Schedule V(b)'!$B$11:$Z$315,3,0),0)","v":0},null,{"$f":"IFERROR(VLOOKUP(B292,'Schedule V(b)'!$B$11:$Z$315,7,0),0)","v":"Select"},null,{"$f":"IFERROR(VLOOKUP(B292,'Schedule V(b)'!$B$11:$Z$315,9,0),0)","v":0},null,{"$f":"IFERROR(VLOOKUP(B292,'Schedule V(b)'!$B$11:$Z$315,11,0),0)","v":"Select"},null,{"$f":"IFERROR(VLOOKUP(B292,'Schedule V(b)'!$B$11:$Z$315,13,0),0)","v":0},null,null,null,{"$f":"IFERROR(VLOOKUP(B292,'Schedule V(b)'!$B$11:$Z$315,17,0),0)","v":0},null,{"$f":"IFERROR(VLOOKUP(B292,'Schedule V(b)'!$B$11:$Z$315,25,0),0)","v":0},null,{"$f":"IFERROR(VLOOKUP(B292,'Schedule V(b)'!$B$11:$Z$315,23,0),0)","v":0},null,"0",null,0]
[282,null,null,{"$f":"IFERROR(VLOOKUP(B293,'Schedule V(b)'!$B$11:$Z$315,3,0),0)","v":0},null,{"$f":"IFERROR(VLOOKUP(B293,'Schedule V(b)'!$B$11:$Z$315,7,0),0)","v":"Select"},null,{"$f":"IFERROR(VLOOKUP(B293,'Schedule V(b)'!$B$11:$Z$315,9,0),0)","v":0},null,{"$f":"IFERROR(VLOOKUP(B293,'Schedule V(b)'!$B$11:$Z$315,11,0),0)","v":"Select"},null,{"$f":"IFERROR(VLOOKUP(B293,'Schedule V(b)'!$B$11:$Z$315,13,0),0)","v":0},null,null,null,{"$f":"IFERROR(VLOOKUP(B293,'Schedule V(b)'!$B$11:$Z$315,17,0),0)","v":0},null,{"$f":"IFERROR(VLOOKUP(B293,'Schedule V(b)'!$B$11:$Z$315,25,0),0)","v":0},null,{"$f":"IFERROR(VLOOKUP(B293,'Schedule V(b)'!$B$11:$Z$315,23,0),0)","v":0},null,"0",null,0]
[283,null,null,{"$f":"IFERROR(VLOOKUP(B294,'Schedule V(b)'!$B$11:$Z$315,3,0),0)","v":0},null,{"$f":"IFERROR(VLOOKUP(B294,'Schedule V(b)'!$B$11:$Z$315,7,0),0)","v":"Select"},null,{"$f":"IFERROR(VLOOKUP(B294,'Schedule V(b)'!$B$11:$Z$315,9,0),0)","v":0},null,{"$f":"IFERROR(VLOOKUP(B294,'Schedule V(b)'!$B$11:$Z$315,11,0),0)","v":"Select"},null,{"$f":"IFERROR(VLOOKUP(B294,'Schedule V(b)'!$B$11:$Z$315,13,0),0)","v":0},null,null,null,{"$f":"IFERROR(VLOOKUP(B294,'Schedule V(b)'!$B$11:$Z$315,17,0),0)","v":0},null,{"$f":"IFERROR(VLOOKUP(B294,'Schedule V(b)'!$B$11:$Z$315,25,0),0)","v":0},null,{"$f":"IFERROR(VLOOKUP(B294,'Schedule V(b)'!$B$11:$Z$315,23,0),0)","v":0},null,"0",null,0]
[284,null,null,{"$f":"IFERROR(VLOOKUP(B295,'Schedule V(b)'!$B$11:$Z$315,3,0),0)","v":0},null,{"$f":"IFERROR(VLOOKUP(B295,'Schedule V(b)'!$B$11:$Z$315,7,0),0)","v":"Select"},null,{"$f":"IFERROR(VLOOKUP(B295,'Schedule V(b)'!$B$11:$Z$315,9,0),0)","v":0},null,{"$f":"IFERROR(VLOOKUP(B295,'Schedule V(b)'!$B$11:$Z$315,11,0),0)","v":"Select"},null,{"$f":"IFERROR(VLOOKUP(B295,'Schedule V(b)'!$B$11:$Z$315,13,0),0)","v":0},null,null,null,{"$f":"IFERROR(VLOOKUP(B295,'Schedule V(b)'!$B$11:$Z$315,17,0),0)","v":0},null,{"$f":"IFERROR(VLOOKUP(B295,'Schedule V(b)'!$B$11:$Z$315,25,0),0)","v":0},null,{"$f":"IFERROR(VLOOKUP(B295,'Schedule V(b)'!$B$11:$Z$315,23,0),0)","v":0},null,"0",null,0]
[285,null,null,{"$f":"IFERROR(VLOOKUP(B296,'Schedule V(b)'!$B$11:$Z$315,3,0),0)","v":0},null,{"$f":"IFERROR(VLOOKUP(B296,'Schedule V(b)'!$B$11:$Z$315,7,0),0)","v":"Select"},null,{"$f":"IFERROR(VLOOKUP(B296,'Schedule V(b)'!$B$11:$Z$315,9,0),0)","v":0},null,{"$f":"IFERROR(VLOOKUP(B296,'Schedule V(b)'!$B$11:$Z$315,11,0),0)","v":"Select"},null,{"$f":"IFERROR(VLOOKUP(B296,'Schedule V(b)'!$B$11:$Z$315,13,0),0)","v":0},null,null,null,{"$f":"IFERROR(VLOOKUP(B296,'Schedule V(b)'!$B$11:$Z$315,17,0),0)","v":0},null,{"$f":"IFERROR(VLOOKUP(B296,'Schedule V(b)'!$B$11:$Z$315,25,0),0)","v":0},null,{"$f":"IFERROR(VLOOKUP(B296,'Schedule V(b)'!$B$11:$Z$315,23,0),0)","v":0},null,"0",null,0]
[286,null,null,{"$f":"IFERROR(VLOOKUP(B297,'Schedule V(b)'!$B$11:$Z$315,3,0),0)","v":0},null,{"$f":"IFERROR(VLOOKUP(B297,'Schedule V(b)'!$B$11:$Z$315,7,0),0)","v":"Select"},null,{"$f":"IFERROR(VLOOKUP(B297,'Schedule V(b)'!$B$11:$Z$315,9,0),0)","v":0},null,{"$f":"IFERROR(VLOOKUP(B297,'Schedule V(b)'!$B$11:$Z$315,11,0),0)","v":"Select"},null,{"$f":"IFERROR(VLOOKUP(B297,'Schedule V(b)'!$B$11:$Z$315,13,0),0)","v":0},null,null,null,{"$f":"IFERROR(VLOOKUP(B297,'Schedule V(b)'!$B$11:$Z$315,17,0),0)","v":0},null,{"$f":"IFERROR(VLOOKUP(B297,'Schedule V(b)'!$B$11:$Z$315,25,0),0)","v":0},null,{"$f":"IFERROR(VLOOKUP(B297,'Schedule V(b)'!$B$11:$Z$315,23,0),0)","v":0},null,"0",null,0]
[287,null,null,{"$f":"IFERROR(VLOOKUP(B298,'Schedule V(b)'!$B$11:$Z$315,3,0),0)","v":0},null,{"$f":"IFERROR(VLOOKUP(B298,'Schedule V(b)'!$B$11:$Z$315,7,0),0)","v":"Select"},null,{"$f":"IFERROR(VLOOKUP(B298,'Schedule V(b)'!$B$11:$Z$315,9,0),0)","v":0},null,{"$f":"IFERROR(VLOOKUP(B298,'Schedule V(b)'!$B$11:$Z$315,11,0),0)","v":"Select"},null,{"$f":"IFERROR(VLOOKUP(B298,'Schedule V(b)'!$B$11:$Z$315,13,0),0)","v":0},null,null,null,{"$f":"IFERROR(VLOOKUP(B298,'Schedule V(b)'!$B$11:$Z$315,17,0),0)","v":0},null,{"$f":"IFERROR(VLOOKUP(B298,'Schedule V(b)'!$B$11:$Z$315,25,0),0)","v":0},null,{"$f":"IFERROR(VLOOKUP(B298,'Schedule V(b)'!$B$11:$Z$315,23,0),0)","v":0},null,"0",null,0]
[288,null,null,{"$f":"IFERROR(VLOOKUP(B299,'Schedule V(b)'!$B$11:$Z$315,3,0),0)","v":0},null,{"$f":"IFERROR(VLOOKUP(B299,'Schedule V(b)'!$B$11:$Z$315,7,0),0)","v":"Select"},null,{"$f":"IFERROR(VLOOKUP(B299,'Schedule V(b)'!$B$11:$Z$315,9,0),0)","v":0},null,{"$f":"IFERROR(VLOOKUP(B299,'Schedule V(b)'!$B$11:$Z$315,11,0),0)","v":"Select"},null,{"$f":"IFERROR(VLOOKUP(B299,'Schedule V(b)'!$B$11:$Z$315,13,0),0)","v":0},null,null,null,{"$f":"IFERROR(VLOOKUP(B299,'Schedule V(b)'!$B$11:$Z$315,17,0),0)","v":0},null,{"$f":"IFERROR(VLOOKUP(B299,'Schedule V(b)'!$B$11:$Z$315,25,0),0)","v":0},null,{"$f":"IFERROR(VLOOKUP(B299,'Schedule V(b)'!$B$11:$Z$315,23,0),0)","v":0},null,"0",null,0]
[289,null,null,{"$f":"IFERROR(VLOOKUP(B300,'Schedule V(b)'!$B$11:$Z$315,3,0),0)","v":0},null,{"$f":"IFERROR(VLOOKUP(B300,'Schedule V(b)'!$B$11:$Z$315,7,0),0)","v":"Select"},null,{"$f":"IFERROR(VLOOKUP(B300,'Schedule V(b)'!$B$11:$Z$315,9,0),0)","v":0},null,{"$f":"IFERROR(VLOOKUP(B300,'Schedule V(b)'!$B$11:$Z$315,11,0),0)","v":"Select"},null,{"$f":"IFERROR(VLOOKUP(B300,'Schedule V(b)'!$B$11:$Z$315,13,0),0)","v":0},null,null,null,{"$f":"IFERROR(VLOOKUP(B300,'Schedule V(b)'!$B$11:$Z$315,17,0),0)","v":0},null,{"$f":"IFERROR(VLOOKUP(B300,'Schedule V(b)'!$B$11:$Z$315,25,0),0)","v":0},null,{"$f":"IFERROR(VLOOKUP(B300,'Schedule V(b)'!$B$11:$Z$315,23,0),0)","v":0},null,"0",null,0]
[290,null,null,{"$f":"IFERROR(VLOOKUP(B301,'Schedule V(b)'!$B$11:$Z$315,3,0),0)","v":0},null,{"$f":"IFERROR(VLOOKUP(B301,'Schedule V(b)'!$B$11:$Z$315,7,0),0)","v":"Select"},null,{"$f":"IFERROR(VLOOKUP(B301,'Schedule V(b)'!$B$11:$Z$315,9,0),0)","v":0},null,{"$f":"IFERROR(VLOOKUP(B301,'Schedule V(b)'!$B$11:$Z$315,11,0),0)","v":"Select"},null,{"$f":"IFERROR(VLOOKUP(B301,'Schedule V(b)'!$B$11:$Z$315,13,0),0)","v":0},null,null,null,{"$f":"IFERROR(VLOOKUP(B301,'Schedule V(b)'!$B$11:$Z$315,17,0),0)","v":0},null,{"$f":"IFERROR(VLOOKUP(B301,'Schedule V(b)'!$B$11:$Z$315,25,0),0)","v":0},null,{"$f":"IFERROR(VLOOKUP(B301,'Schedule V(b)'!$B$11:$Z$315,23,0),0)","v":0},null,"0",null,0]
[291,null,null,{"$f":"IFERROR(VLOOKUP(B302,'Schedule V(b)'!$B$11:$Z$315,3,0),0)","v":0},null,{"$f":"IFERROR(VLOOKUP(B302,'Schedule V(b)'!$B$11:$Z$315,7,0),0)","v":"Select"},null,{"$f":"IFERROR(VLOOKUP(B302,'Schedule V(b)'!$B$11:$Z$315,9,0),0)","v":0},null,{"$f":"IFERROR(VLOOKUP(B302,'Schedule V(b)'!$B$11:$Z$315,11,0),0)","v":"Select"},null,{"$f":"IFERROR(VLOOKUP(B302,'Schedule V(b)'!$B$11:$Z$315,13,0),0)","v":0},null,null,null,{"$f":"IFERROR(VLOOKUP(B302,'Schedule V(b)'!$B$11:$Z$315,17,0),0)","v":0},null,{"$f":"IFERROR(VLOOKUP(B302,'Schedule V(b)'!$B$11:$Z$315,25,0),0)","v":0},null,{"$f":"IFERROR(VLOOKUP(B302,'Schedule V(b)'!$B$11:$Z$315,23,0),0)","v":0},null,"0",null,0]
[292,null,null,{"$f":"IFERROR(VLOOKUP(B303,'Schedule V(b)'!$B$11:$Z$315,3,0),0)","v":0},null,{"$f":"IFERROR(VLOOKUP(B303,'Schedule V(b)'!$B$11:$Z$315,7,0),0)","v":"Select"},null,{"$f":"IFERROR(VLOOKUP(B303,'Schedule V(b)'!$B$11:$Z$315,9,0),0)","v":0},null,{"$f":"IFERROR(VLOOKUP(B303,'Schedule V(b)'!$B$11:$Z$315,11,0),0)","v":"Select"},null,{"$f":"IFERROR(VLOOKUP(B303,'Schedule V(b)'!$B$11:$Z$315,13,0),0)","v":0},null,null,null,{"$f":"IFERROR(VLOOKUP(B303,'Schedule V(b)'!$B$11:$Z$315,17,0),0)","v":0},null,{"$f":"IFERROR(VLOOKUP(B303,'Schedule V(b)'!$B$11:$Z$315,25,0),0)","v":0},null,{"$f":"IFERROR(VLOOKUP(B303,'Schedule V(b)'!$B$11:$Z$315,23,0),0)","v":0},null,"0",null,0]
[293,null,null,{"$f":"IFERROR(VLOOKUP(B304,'Schedule V(b)'!$B$11:$Z$315,3,0),0)","v":0},null,{"$f":"IFERROR(VLOOKUP(B304,'Schedule V(b)'!$B$11:$Z$315,7,0),0)","v":"Select"},null,{"$f":"IFERROR(VLOOKUP(B304,'Schedule V(b)'!$B$11:$Z$315,9,0),0)","v":0},null,{"$f":"IFERROR(VLOOKUP(B304,'Schedule V(b)'!$B$11:$Z$315,11,0),0)","v":"Select"},null,{"$f":"IFERROR(VLOOKUP(B304,'Schedule V(b)'!$B$11:$Z$315,13,0),0)","v":0},null,null,null,{"$f":"IFERROR(VLOOKUP(B304,'Schedule V(b)'!$B$11:$Z$315,17,0),0)","v":0},null,{"$f":"IFERROR(VLOOKUP(B304,'Schedule V(b)'!$B$11:$Z$315,25,0),0)","v":0},null,{"$f":"IFERROR(VLOOKUP(B304,'Schedule V(b)'!$B$11:$Z$315,23,0),0)","v":0},null,"0",null,0]
[294,null,null,{"$f":"IFERROR(VLOOKUP(B305,'Schedule V(b)'!$B$11:$Z$315,3,0),0)","v":0},null,{"$f":"IFERROR(VLOOKUP(B305,'Schedule V(b)'!$B$11:$Z$315,7,0),0)","v":"Select"},null,{"$f":"IFERROR(VLOOKUP(B305,'Schedule V(b)'!$B$11:$Z$315,9,0),0)","v":0},null,{"$f":"IFERROR(VLOOKUP(B305,'Schedule V(b)'!$B$11:$Z$315,11,0),0)","v":"Select"},null,{"$f":"IFERROR(VLOOKUP(B305,'Schedule V(b)'!$B$11:$Z$315,13,0),0)","v":0},null,null,null,{"$f":"IFERROR(VLOOKUP(B305,'Schedule V(b)'!$B$11:$Z$315,17,0),0)","v":0},null,{"$f":"IFERROR(VLOOKUP(B305,'Schedule V(b)'!$B$11:$Z$315,25,0),0)","v":0},null,{"$f":"IFERROR(VLOOKUP(B305,'Schedule V(b)'!$B$11:$Z$315,23,0),0)","v":0},null,"0",null,0]
[295,null,null,{"$f":"IFERROR(VLOOKUP(B306,'Schedule V(b)'!$B$11:$Z$315,3,0),0)","v":0},null,{"$f":"IFERROR(VLOOKUP(B306,'Schedule V(b)'!$B$11:$Z$315,7,0),0)","v":"Select"},null,{"$f":"IFERROR(VLOOKUP(B306,'Schedule V(b)'!$B$11:$Z$315,9,0),0)","v":0},null,{"$f":"IFERROR(VLOOKUP(B306,'Schedule V(b)'!$B$11:$Z$315,11,0),0)","v":"Select"},null,{"$f":"IFERROR(VLOOKUP(B306,'Schedule V(b)'!$B$11:$Z$315,13,0),0)","v":0},null,null,null,{"$f":"IFERROR(VLOOKUP(B306,'Schedule V(b)'!$B$11:$Z$315,17,0),0)","v":0},null,{"$f":"IFERROR(VLOOKUP(B306,'Schedule V(b)'!$B$11:$Z$315,25,0),0)","v":0},null,{"$f":"IFERROR(VLOOKUP(B306,'Schedule V(b)'!$B$11:$Z$315,23,0),0)","v":0},null,"0",null,0]
[296,null,null,{"$f":"IFERROR(VLOOKUP(B307,'Schedule V(b)'!$B$11:$Z$315,3,0),0)","v":0},null,{"$f":"IFERROR(VLOOKUP(B307,'Schedule V(b)'!$B$11:$Z$315,7,0),0)","v":"Select"},null,{"$f":"IFERROR(VLOOKUP(B307,'Schedule V(b)'!$B$11:$Z$315,9,0),0)","v":0},null,{"$f":"IFERROR(VLOOKUP(B307,'Schedule V(b)'!$B$11:$Z$315,11,0),0)","v":"Select"},null,{"$f":"IFERROR(VLOOKUP(B307,'Schedule V(b)'!$B$11:$Z$315,13,0),0)","v":0},null,null,null,{"$f":"IFERROR(VLOOKUP(B307,'Schedule V(b)'!$B$11:$Z$315,17,0),0)","v":0},null,{"$f":"IFERROR(VLOOKUP(B307,'Schedule V(b)'!$B$11:$Z$315,25,0),0)","v":0},null,{"$f":"IFERROR(VLOOKUP(B307,'Schedule V(b)'!$B$11:$Z$315,23,0),0)","v":0},null,"0",null,0]
[297,null,null,{"$f":"IFERROR(VLOOKUP(B308,'Schedule V(b)'!$B$11:$Z$315,3,0),0)","v":0},null,{"$f":"IFERROR(VLOOKUP(B308,'Schedule V(b)'!$B$11:$Z$315,7,0),0)","v":"Select"},null,{"$f":"IFERROR(VLOOKUP(B308,'Schedule V(b)'!$B$11:$Z$315,9,0),0)","v":0},null,{"$f":"IFERROR(VLOOKUP(B308,'Schedule V(b)'!$B$11:$Z$315,11,0),0)","v":"Select"},null,{"$f":"IFERROR(VLOOKUP(B308,'Schedule V(b)'!$B$11:$Z$315,13,0),0)","v":0},null,null,null,{"$f":"IFERROR(VLOOKUP(B308,'Schedule V(b)'!$B$11:$Z$315,17,0),0)","v":0},null,{"$f":"IFERROR(VLOOKUP(B308,'Schedule V(b)'!$B$11:$Z$315,25,0),0)","v":0},null,{"$f":"IFERROR(VLOOKUP(B308,'Schedule V(b)'!$B$11:$Z$315,23,0),0)","v":0},null,"0",null,0]
[298,null,null,{"$f":"IFERROR(VLOOKUP(B309,'Schedule V(b)'!$B$11:$Z$315,3,0),0)","v":0},null,{"$f":"IFERROR(VLOOKUP(B309,'Schedule V(b)'!$B$11:$Z$315,7,0),0)","v":"Select"},null,{"$f":"IFERROR(VLOOKUP(B309,'Schedule V(b)'!$B$11:$Z$315,9,0),0)","v":0},null,{"$f":"IFERROR(VLOOKUP(B309,'Schedule V(b)'!$B$11:$Z$315,11,0),0)","v":"Select"},null,{"$f":"IFERROR(VLOOKUP(B309,'Schedule V(b)'!$B$11:$Z$315,13,0),0)","v":0},null,null,null,{"$f":"IFERROR(VLOOKUP(B309,'Schedule V(b)'!$B$11:$Z$315,17,0),0)","v":0},null,{"$f":"IFERROR(VLOOKUP(B309,'Schedule V(b)'!$B$11:$Z$315,25,0),0)","v":0},null,{"$f":"IFERROR(VLOOKUP(B309,'Schedule V(b)'!$B$11:$Z$315,23,0),0)","v":0},null,"0",null,0]
[299,null,null,{"$f":"IFERROR(VLOOKUP(B310,'Schedule V(b)'!$B$11:$Z$315,3,0),0)","v":0},null,{"$f":"IFERROR(VLOOKUP(B310,'Schedule V(b)'!$B$11:$Z$315,7,0),0)","v":"Select"},null,{"$f":"IFERROR(VLOOKUP(B310,'Schedule V(b)'!$B$11:$Z$315,9,0),0)","v":0},null,{"$f":"IFERROR(VLOOKUP(B310,'Schedule V(b)'!$B$11:$Z$315,11,0),0)","v":"Select"},null,{"$f":"IFERROR(VLOOKUP(B310,'Schedule V(b)'!$B$11:$Z$315,13,0),0)","v":0},null,null,null,{"$f":"IFERROR(VLOOKUP(B310,'Schedule V(b)'!$B$11:$Z$315,17,0),0)","v":0},null,{"$f":"IFERROR(VLOOKUP(B310,'Schedule V(b)'!$B$11:$Z$315,25,0),0)","v":0},null,{"$f":"IFERROR(VLOOKUP(B310,'Schedule V(b)'!$B$11:$Z$315,23,0),0)","v":0},null,"0",null,0]
[300,null,null,{"$f":"IFERROR(VLOOKUP(B311,'Schedule V(b)'!$B$11:$Z$315,3,0),0)","v":0},null,{"$f":"IFERROR(VLOOKUP(B311,'Schedule V(b)'!$B$11:$Z$315,7,0),0)","v":"Select"},null,{"$f":"IFERROR(VLOOKUP(B311,'Schedule V(b)'!$B$11:$Z$315,9,0),0)","v":0},null,{"$f":"IFERROR(VLOOKUP(B311,'Schedule V(b)'!$B$11:$Z$315,11,0),0)","v":"Select"},null,{"$f":"IFERROR(VLOOKUP(B311,'Schedule V(b)'!$B$11:$Z$315,13,0),0)","v":0},null,null,null,{"$f":"IFERROR(VLOOKUP(B311,'Schedule V(b)'!$B$11:$Z$315,17,0),0)","v":0},null,{"$f":"IFERROR(VLOOKUP(B311,'Schedule V(b)'!$B$11:$Z$315,25,0),0)","v":0},null,{"$f":"IFERROR(VLOOKUP(B311,'Schedule V(b)'!$B$11:$Z$315,23,0),0)","v":0},null,"0",null,0]
[]
[null,null,null,null,null,null,null,null,null,null,null,null,null,null,null,null,null,{"$f":"SUM(R12:R311)","v":0},null,{"$f":"SUM(T12:T311)","v":0},null,null,null,{"$f":"SUM(X12:X311)","v":0}]
[]
[]
[]
[]
[]
[null,"INSTRUCTIONS"]
[null,"Affiliate category (Unregulated Entities excluding Insurance Holding Companies > 50%) are as follows with their applicable capital charges:"]
[]
[null,"Category",null,null,null,null,null,null,null,null,null,null,null,null,null,"Capital Charge"]
[null,"Unregulated entities that conduct ancillary services",null,null,null,null,null,null,null,null,null,null,null,null,null,0]
[null,"Unregulated non-financial operating entities ",null,null,null,null,null,null,null,null,null,null,null,null,null,0.15]
[null,"Unregulated financial operating entities ",null,null,null,null,null,null,null,null,null,null,null,null,null,0.5]

{"sheet":"Schedule XIC","index":83,"n_rows":325,"n_cols":30,"rows_kept":325,"cut":false,"hidden":false,"merged":[[3,0,3,1],[0,0,0,15]]}
["SCHEDULE OF UNREGULATED ENTITIES WHERE THE PARENT EXERCISES SIGNIFICANT INFLUENCE",null,null,null,null,null,null,null,null,null,null,null,null,null,null,null,null,null,null,{"$f":"HYPERLINK(\"#'Index'!A1\",\"Return to Index\")","v":"Return to Index"}]
[null,null,null,null,null,null,null,null,null,null,null,null,null,null,null,null,null,null,null,null,null,null,null,null,null,null,"Select",null,"Energy ","Control"]
[{"$f":"'Group Information'!C9","v":"Enter Parent Company Name"},null,null,null,null,null,null,null,null,null,null,null,null,null,null,null,null,null,null,null,null,null,null,null,null,null,"Unregulated entities that conduct ancillary services ",null,"Materials","Significant Influence"]
[{"$f":"'Form 1EBS'!C3","v":"2023-12-31"},null,null,null,null,null,null,null,null,null,null,null,null,null,null,null,null,null,null,null,null,null,null,null,null,null,"Unregulated non-financial operating entities",null,"Industrial"]
[{"$f":"'Form 1EBS'!C4","v":" ['000s]United States Dollars"},null,null,null,null,null,null,null,null,null,null,null,null,null,null,null,null,null,null,"SCHEDULE XI (C)",null,null,null,null,null,null,"Unregulated financial operating entities",null,"Consumer Discretionary"]
[null,null,null,null,null,null,null,null,null,null,null,null,null,null,null,null,null,null,null,null,null,null,null,null,null,null,null,null,"Energy ","Control"]
[null," Enter Number of Unregulated Entities",null,{"$f":"Import!E37111","v":0},null,null,null,null,null,null,null,null,null,null,null,null,null,null,null,null,null,null,null,null,null,null,null,null,"Consumer Staples"]
[null," Enter information for each entity",null,null,null,null,null,null,null,null,null,null,null,null,null,null,null,null,null,null,null,null,null,null,null,null,null,null,"Healthcare"]
[null,"(1)",null,"(2)",null,"(3)",null,"(4)",null,"(5)",null,"(6)",null,"(7)",null,"(8)",null,"(9)",null,"(10)",null,null,null,null,null,null,null,null,"Financial"]
[null,"Input Group Member Name \n(as inputted in Schedule V(b))",null,"Jurisdiction",null,"Sector Classification",null,"Strategic Purpose",null,"Entity Type",null,"Products & Services Offered",null,"Group Member Category \n(Select from drop-down list)",null,"Percent of Participating Interest",null,"Total Asset",null,"Investment Amount (equity method)",null,null,null,null,null,null,null,null,"Information Technology"]
[null,null,null,null,null,null,null,null,null,null,null,null,null,null,null,null,null,null,null,null,null,null,null,null,null,null,null,null,"Telecommunication Services"]
[1,{"$f":"Import!E37112","v":0},null,{"$f":"IFERROR(VLOOKUP(B12,'Schedule V(b)'!$B$11:$Z$315,3,0),0)","v":0},null,{"$f":"IFERROR(VLOOKUP(B12,'Schedule V(b)'!$B$11:$Z$315,7,0),0)","v":"Select"},null,{"$f":"IFERROR(VLOOKUP(B12,'Schedule V(b)'!$B$11:$Z$315,9,0),0)","v":0},null,{"$f":"IFERROR(VLOOKUP(B12,'Schedule V(b)'!$B$11:$Z$315,11,0),0)","v":"Select"},null,{"$f":"IFERROR(VLOOKUP(B12,'Schedule V(b)'!$B$11:$Z$315,13,0),0)","v":0},null,{"$f":"Import!E37147","v":"Select"},null,{"$f":"IFERROR(VLOOKUP(B12,'Schedule V(b)'!$B$11:$Z$315,17,0),0)","v":0},null,{"$f":"IFERROR(VLOOKUP(B12,'Schedule V(b)'!$B$11:$Z$315,25,0),0)","v":0},null,{"$f":"IFERROR(VLOOKUP(B12,'Schedule V(b)'!$B$11:$Z$315,23,0),0)","v":0},null,null,null,null,null,null,null,null,"Utilities"]
[2,{"$f":"Import!E37113","v":0},null,{"$f":"IFERROR(VLOOKUP(B13,'Schedule V(b)'!$B$11:$Z$315,3,0),0)","v":0},null,{"$f":"IFERROR(VLOOKUP(B13,'Schedule V(b)'!$B$11:$Z$315,7,0),0)","v":"Select"},null,{"$f":"IFERROR(VLOOKUP(B13,'Schedule V(b)'!$B$11:$Z$315,9,0),0)","v":0},null,{"$f":"IFERROR(VLOOKUP(B13,'Schedule V(b)'!$B$11:$Z$315,11,0),0)","v":"Select"},null,{"$f":"IFERROR(VLOOKUP(B13,'Schedule V(b)'!$B$11:$Z$315,13,0),0)","v":0},null,{"$f":"Import!E37148","v":"Select"},null,{"$f":"IFERROR(VLOOKUP(B13,'Schedule V(b)'!$B$11:$Z$315,17,0),0)","v":0},null,{"$f":"IFERROR(VLOOKUP(B13,'Schedule V(b)'!$B$11:$Z$315,25,0),0)","v":0},null,{"$f":"IFERROR(VLOOKUP(B13,'Schedule V(b)'!$B$11:$Z$315,23,0),0)","v":0},null,null,null,null,null,null,null,null,"Other"]
[3,{"$f":"Import!E37114","v":0},null,{"$f":"IFERROR(VLOOKUP(B14,'Schedule V(b)'!$B$11:$Z$315,3,0),0)","v":0},null,{"$f":"IFERROR(VLOOKUP(B14,'Schedule V(b)'!$B$11:$Z$315,7,0),0)","v":"Select"},null,{"$f":"IFERROR(VLOOKUP(B14,'Schedule V(b)'!$B$11:$Z$315,9,0),0)","v":0},null,{"$f":"IFERROR(VLOOKUP(B14,'Schedule V(b)'!$B$11:$Z$315,11,0),0)","v":"Select"},null,{"$f":"IFERROR(VLOOKUP(B14,'Schedule V(b)'!$B$11:$Z$315,13,0),0)","v":0},null,{"$f":"Import!E37149","v":"Select"},null,{"$f":"IFERROR(VLOOKUP(B14,'Schedule V(b)'!$B$11:$Z$315,17,0),0)","v":0},null,{"$f":"IFERROR(VLOOKUP(B14,'Schedule V(b)'!$B$11:$Z$315,25,0),0)","v":0},null,{"$f":"IFERROR(VLOOKUP(B14,'Schedule V(b)'!$B$11:$Z$315,23,0),0)","v":0}]
[4,{"$f":"Import!E37115","v":0},null,{"$f":"IFERROR(VLOOKUP(B15,'Schedule V(b)'!$B$11:$Z$315,3,0),0)","v":0},null,{"$f":"IFERROR(VLOOKUP(B15,'Schedule V(b)'!$B$11:$Z$315,7,0),0)","v":"Select"},null,{"$f":"IFERROR(VLOOKUP(B15,'Schedule V(b)'!$B$11:$Z$315,9,0),0)","v":0},null,{"$f":"IFERROR(VLOOKUP(B15,'Schedule V(b)'!$B$11:$Z$315,11,0),0)","v":"Select"},null,{"$f":"IFERROR(VLOOKUP(B15,'Schedule V(b)'!$B$11:$Z$315,13,0),0)","v":0},null,{"$f":"Import!E37150","v":"Select"},null,{"$f":"IFERROR(VLOOKUP(B15,'Schedule V(b)'!$B$11:$Z$315,17,0),0)","v":0},null,{"$f":"IFERROR(VLOOKUP(B15,'Schedule V(b)'!$B$11:$Z$315,25,0),0)","v":0},null,{"$f":"IFERROR(VLOOKUP(B15,'Schedule V(b)'!$B$11:$Z$315,23,0),0)","v":0}]
[5,{"$f":"Import!E37116","v":0},null,{"$f":"IFERROR(VLOOKUP(B16,'Schedule V(b)'!$B$11:$Z$315,3,0),0)","v":0},null,{"$f":"IFERROR(VLOOKUP(B16,'Schedule V(b)'!$B$11:$Z$315,7,0),0)","v":"Select"},null,{"$f":"IFERROR(VLOOKUP(B16,'Schedule V(b)'!$B$11:$Z$315,9,0),0)","v":0},null,{"$f":"IFERROR(VLOOKUP(B16,'Schedule V(b)'!$B$11:$Z$315,11,0),0)","v":"Select"},null,{"$f":"IFERROR(VLOOKUP(B16,'Schedule V(b)'!$B$11:$Z$315,13,0),0)","v":0},null,{"$f":"Import!E37151","v":"Select"},null,{"$f":"IFERROR(VLOOKUP(B16,'Schedule V(b)'!$B$11:$Z$315,17,0),0)","v":0},null,{"$f":"IFERROR(VLOOKUP(B16,'Schedule V(b)'!$B$11:$Z$315,25,0),0)","v":0},null,{"$f":"IFERROR(VLOOKUP(B16,'Schedule V(b)'!$B$11:$Z$315,23,0),0)","v":0}]
[6,{"$f":"Import!E37117","v":0},null,{"$f":"IFERROR(VLOOKUP(B17,'Schedule V(b)'!$B$11:$Z$315,3,0),0)","v":0},null,{"$f":"IFERROR(VLOOKUP(B17,'Schedule V(b)'!$B$11:$Z$315,7,0),0)","v":"Select"},null,{"$f":"IFERROR(VLOOKUP(B17,'Schedule V(b)'!$B$11:$Z$315,9,0),0)","v":0},null,{"$f":"IFERROR(VLOOKUP(B17,'Schedule V(b)'!$B$11:$Z$315,11,0),0)","v":"Select"},null,{"$f":"IFERROR(VLOOKUP(B17,'Schedule V(b)'!$B$11:$Z$315,13,0),0)","v":0},null,{"$f":"Import!E37152","v":"Select"},null,{"$f":"IFERROR(VLOOKUP(B17,'Schedule V(b)'!$B$11:$Z$315,17,0),0)","v":0},null,{"$f":"IFERROR(VLOOKUP(B17,'Schedule V(b)'!$B$11:$Z$315,25,0),0)","v":0},null,{"$f":"IFERROR(VLOOKUP(B17,'Schedule V(b)'!$B$11:$Z$315,23,0),0)","v":0}]
[7,{"$f":"Import!E37118","v":0},null,{"$f":"IFERROR(VLOOKUP(B18,'Schedule V(b)'!$B$11:$Z$315,3,0),0)","v":0},null,{"$f":"IFERROR(VLOOKUP(B18,'Schedule V(b)'!$B$11:$Z$315,7,0),0)","v":"Select"},null,{"$f":"IFERROR(VLOOKUP(B18,'Schedule V(b)'!$B$11:$Z$315,9,0),0)","v":0},null,{"$f":"IFERROR(VLOOKUP(B18,'Schedule V(b)'!$B$11:$Z$315,11,0),0)","v":"Select"},null,{"$f":"IFERROR(VLOOKUP(B18,'Schedule V(b)'!$B$11:$Z$315,13,0),0)","v":0},null,{"$f":"Import!E37153","v":"Select"},null,{"$f":"IFERROR(VLOOKUP(B18,'Schedule V(b)'!$B$11:$Z$315,17,0),0)","v":0},null,{"$f":"IFERROR(VLOOKUP(B18,'Schedule V(b)'!$B$11:$Z$315,25,0),0)","v":0},null,{"$f":"IFERROR(VLOOKUP(B18,'Schedule V(b)'!$B$11:$Z$315,23,0),0)","v":0}]
[8,{"$f":"Import!E37119","v":0},null,{"$f":"IFERROR(VLOOKUP(B19,'Schedule V(b)'!$B$11:$Z$315,3,0),0)","v":0},null,{"$f":"IFERROR(VLOOKUP(B19,'Schedule V(b)'!$B$11:$Z$315,7,0),0)","v":"Select"},null,{"$f":"IFERROR(VLOOKUP(B19,'Schedule V(b)'!$B$11:$Z$315,9,0),0)","v":0},null,{"$f":"IFERROR(VLOOKUP(B19,'Schedule V(b)'!$B$11:$Z$315,11,0),0)","v":"Select"},null,{"$f":"IFERROR(VLOOKUP(B19,'Schedule V(b)'!$B$11:$Z$315,13,0),0)","v":0},null,{"$f":"Import!E37154","v":"Select"},null,{"$f":"IFERROR(VLOOKUP(B19,'Schedule V(b)'!$B$11:$Z$315,17,0),0)","v":0},null,{"$f":"IFERROR(VLOOKUP(B19,'Schedule V(b)'!$B$11:$Z$315,25,0),0)","v":0},null,{"$f":"IFERROR(VLOOKUP(B19,'Schedule V(b)'!$B$11:$Z$315,23,0),0)","v":0}]
[9,{"$f":"Import!E37120","v":0},null,{"$f":"IFERROR(VLOOKUP(B20,'Schedule V(b)'!$B$11:$Z$315,3,0),0)","v":0},null,{"$f":"IFERROR(VLOOKUP(B20,'Schedule V(b)'!$B$11:$Z$315,7,0),0)","v":"Select"},null,{"$f":"IFERROR(VLOOKUP(B20,'Schedule V(b)'!$B$11:$Z$315,9,0),0)","v":0},null,{"$f":"IFERROR(VLOOKUP(B20,'Schedule V(b)'!$B$11:$Z$315,11,0),0)","v":"Select"},null,{"$f":"IFERROR(VLOOKUP(B20,'Schedule V(b)'!$B$11:$Z$315,13,0),0)","v":0},null,{"$f":"Import!E37155","v":"Select"},null,{"$f":"IFERROR(VLOOKUP(B20,'Schedule V(b)'!$B$11:$Z$315,17,0),0)","v":0},null,{"$f":"IFERROR(VLOOKUP(B20,'Schedule V(b)'!$B$11:$Z$315,25,0),0)","v":0},null,{"$f":"IFERROR(VLOOKUP(B20,'Schedule V(b)'!$B$11:$Z$315,23,0),0)","v":0}]
[10,{"$f":"Import!E37121","v":0},null,{"$f":"IFERROR(VLOOKUP(B21,'Schedule V(b)'!$B$11:$Z$315,3,0),0)","v":0},null,{"$f":"IFERROR(VLOOKUP(B21,'Schedule V(b)'!$B$11:$Z$315,7,0),0)","v":"Select"},null,{"$f":"IFERROR(VLOOKUP(B21,'Schedule V(b)'!$B$11:$Z$315,9,0),0)","v":0},null,{"$f":"IFERROR(VLOOKUP(B21,'Schedule V(b)'!$B$11:$Z$315,11,0),0)","v":"Select"},null,{"$f":"IFERROR(VLOOKUP(B21,'Schedule V(b)'!$B$11:$Z$315,13,0),0)","v":0},null,{"$f":"Import!E37156","v":"Select"},null,{"$f":"IFERROR(VLOOKUP(B21,'Schedule V(b)'!$B$11:$Z$315,17,0),0)","v":0},null,{"$f":"IFERROR(VLOOKUP(B21,'Schedule V(b)'!$B$11:$Z$315,25,0),0)","v":0},null,{"$f":"IFERROR(VLOOKUP(B21,'Schedule V(b)'!$B$11:$Z$315,23,0),0)","v":0}]
[11,{"$f":"Import!E37122","v":0},null,{"$f":"IFERROR(VLOOKUP(B22,'Schedule V(b)'!$B$11:$Z$315,3,0),0)","v":0},null,{"$f":"IFERROR(VLOOKUP(B22,'Schedule V(b)'!$B$11:$Z$315,7,0),0)","v":"Select"},null,{"$f":"IFERROR(VLOOKUP(B22,'Schedule V(b)'!$B$11:$Z$315,9,0),0)","v":0},null,{"$f":"IFERROR(VLOOKUP(B22,'Schedule V(b)'!$B$11:$Z$315,11,0),0)","v":"Select"},null,{"$f":"IFERROR(VLOOKUP(B22,'Schedule V(b)'!$B$11:$Z$315,13,0),0)","v":0},null,{"$f":"Import!E37157","v":"Select"},null,{"$f":"IFERROR(VLOOKUP(B22,'Schedule V(b)'!$B$11:$Z$315,17,0),0)","v":0},null,{"$f":"IFERROR(VLOOKUP(B22,'Schedule V(b)'!$B$11:$Z$315,25,0),0)","v":0},null,{"$f":"IFERROR(VLOOKUP(B22,'Schedule V(b)'!$B$11:$Z$315,23,0),0)","v":0}]
[12,{"$f":"Import!E37123","v":0},null,{"$f":"IFERROR(VLOOKUP(B23,'Schedule V(b)'!$B$11:$Z$315,3,0),0)","v":0},null,{"$f":"IFERROR(VLOOKUP(B23,'Schedule V(b)'!$B$11:$Z$315,7,0),0)","v":"Select"},null,{"$f":"IFERROR(VLOOKUP(B23,'Schedule V(b)'!$B$11:$Z$315,9,0),0)","v":0},null,{"$f":"IFERROR(VLOOKUP(B23,'Schedule V(b)'!$B$11:$Z$315,11,0),0)","v":"Select"},null,{"$f":"IFERROR(VLOOKUP(B23,'Schedule V(b)'!$B$11:$Z$315,13,0),0)","v":0},null,{"$f":"Import!E37158","v":"Select"},null,{"$f":"IFERROR(VLOOKUP(B23,'Schedule V(b)'!$B$11:$Z$315,17,0),0)","v":0},null,{"$f":"IFERROR(VLOOKUP(B23,'Schedule V(b)'!$B$11:$Z$315,25,0),0)","v":0},null,{"$f":"IFERROR(VLOOKUP(B23,'Schedule V(b)'!$B$11:$Z$315,23,0),0)","v":0}]
[13,{"$f":"Import!E37124","v":0},null,{"$f":"IFERROR(VLOOKUP(B24,'Schedule V(b)'!$B$11:$Z$315,3,0),0)","v":0},null,{"$f":"IFERROR(VLOOKUP(B24,'Schedule V(b)'!$B$11:$Z$315,7,0),0)","v":"Select"},null,{"$f":"IFERROR(VLOOKUP(B24,'Schedule V(b)'!$B$11:$Z$315,9,0),0)","v":0},null,{"$f":"IFERROR(VLOOKUP(B24,'Schedule V(b)'!$B$11:$Z$315,11,0),0)","v":"Select"},null,{"$f":"IFERROR(VLOOKUP(B24,'Schedule V(b)'!$B$11:$Z$315,13,0),0)","v":0},null,{"$f":"Import!E37159","v":"Select"},null,{"$f":"IFERROR(VLOOKUP(B24,'Schedule V(b)'!$B$11:$Z$315,17,0),0)","v":0},null,{"$f":"IFERROR(VLOOKUP(B24,'Schedule V(b)'!$B$11:$Z$315,25,0),0)","v":0},null,{"$f":"IFERROR(VLOOKUP(B24,'Schedule V(b)'!$B$11:$Z$315,23,0),0)","v":0}]
[14,{"$f":"Import!E37125","v":0},null,{"$f":"IFERROR(VLOOKUP(B25,'Schedule V(b)'!$B$11:$Z$315,3,0),0)","v":0},null,{"$f":"IFERROR(VLOOKUP(B25,'Schedule V(b)'!$B$11:$Z$315,7,0),0)","v":"Select"},null,{"$f":"IFERROR(VLOOKUP(B25,'Schedule V(b)'!$B$11:$Z$315,9,0),0)","v":0},null,{"$f":"IFERROR(VLOOKUP(B25,'Schedule V(b)'!$B$11:$Z$315,11,0),0)","v":"Select"},null,{"$f":"IFERROR(VLOOKUP(B25,'Schedule V(b)'!$B$11:$Z$315,13,0),0)","v":0},null,{"$f":"Import!E37160","v":"Select"},null,{"$f":"IFERROR(VLOOKUP(B25,'Schedule V(b)'!$B$11:$Z$315,17,0),0)","v":0},null,{"$f":"IFERROR(VLOOKUP(B25,'Schedule V(b)'!$B$11:$Z$315,25,0),0)","v":0},null,{"$f":"IFERROR(VLOOKUP(B25,'Schedule V(b)'!$B$11:$Z$315,23,0),0)","v":0}]
[15,{"$f":"Import!E37126","v":0},null,{"$f":"IFERROR(VLOOKUP(B26,'Schedule V(b)'!$B$11:$Z$315,3,0),0)","v":0},null,{"$f":"IFERROR(VLOOKUP(B26,'Schedule V(b)'!$B$11:$Z$315,7,0),0)","v":"Select"},null,{"$f":"IFERROR(VLOOKUP(B26,'Schedule V(b)'!$B$11:$Z$315,9,0),0)","v":0},null,{"$f":"IFERROR(VLOOKUP(B26,'Schedule V(b)'!$B$11:$Z$315,11,0),0)","v":"Select"},null,{"$f":"IFERROR(VLOOKUP(B26,'Schedule V(b)'!$B$11:$Z$315,13,0),0)","v":0},null,{"$f":"Import!E37161","v":"Select"},null,{"$f":"IFERROR(VLOOKUP(B26,'Schedule V(b)'!$B$11:$Z$315,17,0),0)","v":0},null,{"$f":"IFERROR(VLOOKUP(B26,'Schedule V(b)'!$B$11:$Z$315,25,0),0)","v":0},null,{"$f":"IFERROR(VLOOKUP(B26,'Schedule V(b)'!$B$11:$Z$315,23,0),0)","v":0}]
[16,{"$f":"Import!E37127","v":0},null,{"$f":"IFERROR(VLOOKUP(B27,'Schedule V(b)'!$B$11:$Z$315,3,0),0)","v":0},null,{"$f":"IFERROR(VLOOKUP(B27,'Schedule V(b)'!$B$11:$Z$315,7,0),0)","v":"Select"},null,{"$f":"IFERROR(VLOOKUP(B27,'Schedule V(b)'!$B$11:$Z$315,9,0),0)","v":0},null,{"$f":"IFERROR(VLOOKUP(B27,'Schedule V(b)'!$B$11:$Z$315,11,0),0)","v":"Select"},null,{"$f":"IFERROR(VLOOKUP(B27,'Schedule V(b)'!$B$11:$Z$315,13,0),0)","v":0},null,{"$f":"Import!E37162","v":"Select"},null,{"$f":"IFERROR(VLOOKUP(B27,'Schedule V(b)'!$B$11:$Z$315,17,0),0)","v":0},null,{"$f":"IFERROR(VLOOKUP(B27,'Schedule V(b)'!$B$11:$Z$315,25,0),0)","v":0},null,{"$f":"IFERROR(VLOOKUP(B27,'Schedule V(b)'!$B$11:$Z$315,23,0),0)","v":0}]
[17,{"$f":"Import!E37128","v":0},null,{"$f":"IFERROR(VLOOKUP(B28,'Schedule V(b)'!$B$11:$Z$315,3,0),0)","v":0},null,{"$f":"IFERROR(VLOOKUP(B28,'Schedule V(b)'!$B$11:$Z$315,7,0),0)","v":"Select"},null,{"$f":"IFERROR(VLOOKUP(B28,'Schedule V(b)'!$B$11:$Z$315,9,0),0)","v":0},null,{"$f":"IFERROR(VLOOKUP(B28,'Schedule V(b)'!$B$11:$Z$315,11,0),0)","v":"Select"},null,{"$f":"IFERROR(VLOOKUP(B28,'Schedule V(b)'!$B$11:$Z$315,13,0),0)","v":0},null,{"$f":"Import!E37163","v":"Select"},null,{"$f":"IFERROR(VLOOKUP(B28,'Schedule V(b)'!$B$11:$Z$315,17,0),0)","v":0},null,{"$f":"IFERROR(VLOOKUP(B28,'Schedule V(b)'!$B$11:$Z$315,25,0),0)","v":0},null,{"$f":"IFERROR(VLOOKUP(B28,'Schedule V(b)'!$B$11:$Z$315,23,0),0)","v":0}]
[18,{"$f":"Import!E37129","v":0},null,{"$f":"IFERROR(VLOOKUP(B29,'Schedule V(b)'!$B$11:$Z$315,3,0),0)","v":0},null,{"$f":"IFERROR(VLOOKUP(B29,'Schedule V(b)'!$B$11:$Z$315,7,0),0)","v":"Select"},null,{"$f":"IFERROR(VLOOKUP(B29,'Schedule V(b)'!$B$11:$Z$315,9,0),0)","v":0},null,{"$f":"IFERROR(VLOOKUP(B29,'Schedule V(b)'!$B$11:$Z$315,11,0),0)","v":"Select"},null,{"$f":"IFERROR(VLOOKUP(B29,'Schedule V(b)'!$B$11:$Z$315,13,0),0)","v":0},null,{"$f":"Import!E37164","v":"Select"},null,{"$f":"IFERROR(VLOOKUP(B29,'Schedule V(b)'!$B$11:$Z$315,17,0),0)","v":0},null,{"$f":"IFERROR(VLOOKUP(B29,'Schedule V(b)'!$B$11:$Z$315,25,0),0)","v":0},null,{"$f":"IFERROR(VLOOKUP(B29,'Schedule V(b)'!$B$11:$Z$315,23,0),0)","v":0}]
[19,{"$f":"Import!E37130","v":0},null,{"$f":"IFERROR(VLOOKUP(B30,'Schedule V(b)'!$B$11:$Z$315,3,0),0)","v":0},null,{"$f":"IFERROR(VLOOKUP(B30,'Schedule V(b)'!$B$11:$Z$315,7,0),0)","v":"Select"},null,{"$f":"IFERROR(VLOOKUP(B30,'Schedule V(b)'!$B$11:$Z$315,9,0),0)","v":0},null,{"$f":"IFERROR(VLOOKUP(B30,'Schedule V(b)'!$B$11:$Z$315,11,0),0)","v":"Select"},null,{"$f":"IFERROR(VLOOKUP(B30,'Schedule V(b)'!$B$11:$Z$315,13,0),0)","v":0},null,{"$f":"Import!E37165","v":"Select"},null,{"$f":"IFERROR(VLOOKUP(B30,'Schedule V(b)'!$B$11:$Z$315,17,0),0)","v":0},null,{"$f":"IFERROR(VLOOKUP(B30,'Schedule V(b)'!$B$11:$Z$315,25,0),0)","v":0},null,{"$f":"IFERROR(VLOOKUP(B30,'Schedule V(b)'!$B$11:$Z$315,23,0),0)","v":0}]
[20,{"$f":"Import!E37131","v":0},null,{"$f":"IFERROR(VLOOKUP(B31,'Schedule V(b)'!$B$11:$Z$315,3,0),0)","v":0},null,{"$f":"IFERROR(VLOOKUP(B31,'Schedule V(b)'!$B$11:$Z$315,7,0),0)","v":"Select"},null,{"$f":"IFERROR(VLOOKUP(B31,'Schedule V(b)'!$B$11:$Z$315,9,0),0)","v":0},null,{"$f":"IFERROR(VLOOKUP(B31,'Schedule V(b)'!$B$11:$Z$315,11,0),0)","v":"Select"},null,{"$f":"IFERROR(VLOOKUP(B31,'Schedule V(b)'!$B$11:$Z$315,13,0),0)","v":0},null,{"$f":"Import!E37166","v":"Select"},null,{"$f":"IFERROR(VLOOKUP(B31,'Schedule V(b)'!$B$11:$Z$315,17,0),0)","v":0},null,{"$f":"IFERROR(VLOOKUP(B31,'Schedule V(b)'!$B$11:$Z$315,25,0),0)","v":0},null,{"$f":"IFERROR(VLOOKUP(B31,'Schedule V(b)'!$B$11:$Z$315,23,0),0)","v":0}]
[21,{"$f":"Import!E37132","v":0},null,{"$f":"IFERROR(VLOOKUP(B32,'Schedule V(b)'!$B$11:$Z$315,3,0),0)","v":0},null,{"$f":"IFERROR(VLOOKUP(B32,'Schedule V(b)'!$B$11:$Z$315,7,0),0)","v":"Select"},null,{"$f":"IFERROR(VLOOKUP(B32,'Schedule V(b)'!$B$11:$Z$315,9,0),0)","v":0},null,{"$f":"IFERROR(VLOOKUP(B32,'Schedule V(b)'!$B$11:$Z$315,11,0),0)","v":"Select"},null,{"$f":"IFERROR(VLOOKUP(B32,'Schedule V(b)'!$B$11:$Z$315,13,0),0)","v":0},null,{"$f":"Import!E37167","v":"Select"},null,{"$f":"IFERROR(VLOOKUP(B32,'Schedule V(b)'!$B$11:$Z$315,17,0),0)","v":0},null,{"$f":"IFERROR(VLOOKUP(B32,'Schedule V(b)'!$B$11:$Z$315,25,0),0)","v":0},null,{"$f":"IFERROR(VLOOKUP(B32,'Schedule V(b)'!$B$11:$Z$315,23,0),0)","v":0}]
[22,{"$f":"Import!E37133","v":0},null,{"$f":"IFERROR(VLOOKUP(B33,'Schedule V(b)'!$B$11:$Z$315,3,0),0)","v":0},null,{"$f":"IFERROR(VLOOKUP(B33,'Schedule V(b)'!$B$11:$Z$315,7,0),0)","v":"Select"},null,{"$f":"IFERROR(VLOOKUP(B33,'Schedule V(b)'!$B$11:$Z$315,9,0),0)","v":0},null,{"$f":"IFERROR(VLOOKUP(B33,'Schedule V(b)'!$B$11:$Z$315,11,0),0)","v":"Select"},null,{"$f":"IFERROR(VLOOKUP(B33,'Schedule V(b)'!$B$11:$Z$315,13,0),0)","v":0},null,{"$f":"Import!E37168","v":"Select"},null,{"$f":"IFERROR(VLOOKUP(B33,'Schedule V(b)'!$B$11:$Z$315,17,0),0)","v":0},null,{"$f":"IFERROR(VLOOKUP(B33,'Schedule V(b)'!$B$11:$Z$315,25,0),0)","v":0},null,{"$f":"IFERROR(VLOOKUP(B33,'Schedule V(b)'!$B$11:$Z$315,23,0),0)","v":0}]
[23,{"$f":"Import!E37134","v":0},null,{"$f":"IFERROR(VLOOKUP(B34,'Schedule V(b)'!$B$11:$Z$315,3,0),0)","v":0},null,{"$f":"IFERROR(VLOOKUP(B34,'Schedule V(b)'!$B$11:$Z$315,7,0),0)","v":"Select"},null,{"$f":"IFERROR(VLOOKUP(B34,'Schedule V(b)'!$B$11:$Z$315,9,0),0)","v":0},null,{"$f":"IFERROR(VLOOKUP(B34,'Schedule V(b)'!$B$11:$Z$315,11,0),0)","v":"Select"},null,{"$f":"IFERROR(VLOOKUP(B34,'Schedule V(b)'!$B$11:$Z$315,13,0),0)","v":0},null,{"$f":"Import!E37169","v":"Select"},null,{"$f":"IFERROR(VLOOKUP(B34,'Schedule V(b)'!$B$11:$Z$315,17,0),0)","v":0},null,{"$f":"IFERROR(VLOOKUP(B34,'Schedule V(b)'!$B$11:$Z$315,25,0),0)","v":0},null,{"$f":"IFERROR(VLOOKUP(B34,'Schedule V(b)'!$B$11:$Z$315,23,0),0)","v":0}]
[24,{"$f":"Import!E37135","v":0},null,{"$f":"IFERROR(VLOOKUP(B35,'Schedule V(b)'!$B$11:$Z$315,3,0),0)","v":0},null,{"$f":"IFERROR(VLOOKUP(B35,'Schedule V(b)'!$B$11:$Z$315,7,0),0)","v":"Select"},null,{"$f":"IFERROR(VLOOKUP(B35,'Schedule V(b)'!$B$11:$Z$315,9,0),0)","v":0},null,{"$f":"IFERROR(VLOOKUP(B35,'Schedule V(b)'!$B$11:$Z$315,11,0),0)","v":"Select"},null,{"$f":"IFERROR(VLOOKUP(B35,'Schedule V(b)'!$B$11:$Z$315,13,0),0)","v":0},null,{"$f":"Import!E37170","v":"Select"},null,{"$f":"IFERROR(VLOOKUP(B35,'Schedule V(b)'!$B$11:$Z$315,17,0),0)","v":0},null,{"$f":"IFERROR(VLOOKUP(B35,'Schedule V(b)'!$B$11:$Z$315,25,0),0)","v":0},null,{"$f":"IFERROR(VLOOKUP(B35,'Schedule V(b)'!$B$11:$Z$315,23,0),0)","v":0}]
[25,{"$f":"Import!E37136","v":0},null,{"$f":"IFERROR(VLOOKUP(B36,'Schedule V(b)'!$B$11:$Z$315,3,0),0)","v":0},null,{"$f":"IFERROR(VLOOKUP(B36,'Schedule V(b)'!$B$11:$Z$315,7,0),0)","v":"Select"},null,{"$f":"IFERROR(VLOOKUP(B36,'Schedule V(b)'!$B$11:$Z$315,9,0),0)","v":0},null,{"$f":"IFERROR(VLOOKUP(B36,'Schedule V(b)'!$B$11:$Z$315,11,0),0)","v":"Select"},null,{"$f":"IFERROR(VLOOKUP(B36,'Schedule V(b)'!$B$11:$Z$315,13,0),0)","v":0},null,{"$f":"Import!E37171","v":"Select"},null,{"$f":"IFERROR(VLOOKUP(B36,'Schedule V(b)'!$B$11:$Z$315,17,0),0)","v":0},null,{"$f":"IFERROR(VLOOKUP(B36,'Schedule V(b)'!$B$11:$Z$315,25,0),0)","v":0},null,{"$f":"IFERROR(VLOOKUP(B36,'Schedule V(b)'!$B$11:$Z$315,23,0),0)","v":0}]
[26,{"$f":"Import!E37137","v":0},null,{"$f":"IFERROR(VLOOKUP(B37,'Schedule V(b)'!$B$11:$Z$315,3,0),0)","v":0},null,{"$f":"IFERROR(VLOOKUP(B37,'Schedule V(b)'!$B$11:$Z$315,7,0),0)","v":"Select"},null,{"$f":"IFERROR(VLOOKUP(B37,'Schedule V(b)'!$B$11:$Z$315,9,0),0)","v":0},null,{"$f":"IFERROR(VLOOKUP(B37,'Schedule V(b)'!$B$11:$Z$315,11,0),0)","v":"Select"},null,{"$f":"IFERROR(VLOOKUP(B37,'Schedule V(b)'!$B$11:$Z$315,13,0),0)","v":0},null,{"$f":"Import!E37172","v":"Select"},null,{"$f":"IFERROR(VLOOKUP(B37,'Schedule V(b)'!$B$11:$Z$315,17,0),0)","v":0},null,{"$f":"IFERROR(VLOOKUP(B37,'Schedule V(b)'!$B$11:$Z$315,25,0),0)","v":0},null,{"$f":"IFERROR(VLOOKUP(B37,'Schedule V(b)'!$B$11:$Z$315,23,0),0)","v":0}]
[27,{"$f":"Import!E37138","v":0},null,{"$f":"IFERROR(VLOOKUP(B38,'Schedule V(b)'!$B$11:$Z$315,3,0),0)","v":0},null,{"$f":"IFERROR(VLOOKUP(B38,'Schedule V(b)'!$B$11:$Z$315,7,0),0)","v":"Select"},null,{"$f":"IFERROR(VLOOKUP(B38,'Schedule V(b)'!$B$11:$Z$315,9,0),0)","v":0},null,{"$f":"IFERROR(VLOOKUP(B38,'Schedule V(b)'!$B$11:$Z$315,11,0),0)","v":"Select"},null,{"$f":"IFERROR(VLOOKUP(B38,'Schedule V(b)'!$B$11:$Z$315,13,0),0)","v":0},null,{"$f":"Import!E37173","v":"Select"},null,{"$f":"IFERROR(VLOOKUP(B38,'Schedule V(b)'!$B$11:$Z$315,17,0),0)","v":0},null,{"$f":"IFERROR(VLOOKUP(B38,'Schedule V(b)'!$B$11:$Z$315,25,0),0)","v":0},null,{"$f":"IFERROR(VLOOKUP(B38,'Schedule V(b)'!$B$11:$Z$315,23,0),0)","v":0}]
[28,{"$f":"Import!E37139","v":0},null,{"$f":"IFERROR(VLOOKUP(B39,'Schedule V(b)'!$B$11:$Z$315,3,0),0)","v":0},null,{"$f":"IFERROR(VLOOKUP(B39,'Schedule V(b)'!$B$11:$Z$315,7,0),0)","v":"Select"},null,{"$f":"IFERROR(VLOOKUP(B39,'Schedule V(b)'!$B$11:$Z$315,9,0),0)","v":0},null,{"$f":"IFERROR(VLOOKUP(B39,'Schedule V(b)'!$B$11:$Z$315,11,0),0)","v":"Select"},null,{"$f":"IFERROR(VLOOKUP(B39,'Schedule V(b)'!$B$11:$Z$315,13,0),0)","v":0},null,{"$f":"Import!E37174","v":"Select"},null,{"$f":"IFERROR(VLOOKUP(B39,'Schedule V(b)'!$B$11:$Z$315,17,0),0)","v":0},null,{"$f":"IFERROR(VLOOKUP(B39,'Schedule V(b)'!$B$11:$Z$315,25,0),0)","v":0},null,{"$f":"IFERROR(VLOOKUP(B39,'Schedule V(b)'!$B$11:$Z$315,23,0),0)","v":0}]
[29,{"$f":"Import!E37140","v":0},null,{"$f":"IFERROR(VLOOKUP(B40,'Schedule V(b)'!$B$11:$Z$315,3,0),0)","v":0},null,{"$f":"IFERROR(VLOOKUP(B40,'Schedule V(b)'!$B$11:$Z$315,7,0),0)","v":"Select"},null,{"$f":"IFERROR(VLOOKUP(B40,'Schedule V(b)'!$B$11:$Z$315,9,0),0)","v":0},null,{"$f":"IFERROR(VLOOKUP(B40,'Schedule V(b)'!$B$11:$Z$315,11,0),0)","v":"Select"},null,{"$f":"IFERROR(VLOOKUP(B40,'Schedule V(b)'!$B$11:$Z$315,13,0),0)","v":0},null,{"$f":"Import!E37175","v":"Select"},null,{"$f":"IFERROR(VLOOKUP(B40,'Schedule V(b)'!$B$11:$Z$315,17,0),0)","v":0},null,{"$f":"IFERROR(VLOOKUP(B40,'Schedule V(b)'!$B$11:$Z$315,25,0),0)","v":0},null,{"$f":"IFERROR(VLOOKUP(B40,'Schedule V(b)'!$B$11:$Z$315,23,0),0)","v":0}]
[30,{"$f":"Import!E37141","v":0},null,{"$f":"IFERROR(VLOOKUP(B41,'Schedule V(b)'!$B$11:$Z$315,3,0),0)","v":0},null,{"$f":"IFERROR(VLOOKUP(B41,'Schedule V(b)'!$B$11:$Z$315,7,0),0)","v":"Select"},null,{"$f":"IFERROR(VLOOKUP(B41,'Schedule V(b)'!$B$11:$Z$315,9,0),0)","v":0},null,{"$f":"IFERROR(VLOOKUP(B41,'Schedule V(b)'!$B$11:$Z$315,11,0),0)","v":"Select"},null,{"$f":"IFERROR(VLOOKUP(B41,'Schedule V(b)'!$B$11:$Z$315,13,0),0)","v":0},null,{"$f":"Import!E37176","v":"Select"},null,{"$f":"IFERROR(VLOOKUP(B41,'Schedule V(b)'!$B$11:$Z$315,17,0),0)","v":0},null,{"$f":"IFERROR(VLOOKUP(B41,'Schedule V(b)'!$B$11:$Z$315,25,0),0)","v":0},null,{"$f":"IFERROR(VLOOKUP(B41,'Schedule V(b)'!$B$11:$Z$315,23,0),0)","v":0}]
[31,{"$f":"Import!E37142","v":0},null,{"$f":"IFERROR(VLOOKUP(B42,'Schedule V(b)'!$B$11:$Z$315,3,0),0)","v":0},null,{"$f":"IFERROR(VLOOKUP(B42,'Schedule V(b)'!$B$11:$Z$315,7,0),0)","v":"Select"},null,{"$f":"IFERROR(VLOOKUP(B42,'Schedule V(b)'!$B$11:$Z$315,9,0),0)","v":0},null,{"$f":"IFERROR(VLOOKUP(B42,'Schedule V(b)'!$B$11:$Z$315,11,0),0)","v":"Select"},null,{"$f":"IFERROR(VLOOKUP(B42,'Schedule V(b)'!$B$11:$Z$315,13,0),0)","v":0},null,{"$f":"Import!E37177","v":"Select"},null,{"$f":"IFERROR(VLOOKUP(B42,'Schedule V(b)'!$B$11:$Z$315,17,0),0)","v":0},null,{"$f":"IFERROR(VLOOKUP(B42,'Schedule V(b)'!$B$11:$Z$315,25,0),0)","v":0},null,{"$f":"IFERROR(VLOOKUP(B42,'Schedule V(b)'!$B$11:$Z$315,23,0),0)","v":0}]
[32,{"$f":"Import!E37143","v":0},null,{"$f":"IFERROR(VLOOKUP(B43,'Schedule V(b)'!$B$11:$Z$315,3,0),0)","v":0},null,{"$f":"IFERROR(VLOOKUP(B43,'Schedule V(b)'!$B$11:$Z$315,7,0),0)","v":"Select"},null,{"$f":"IFERROR(VLOOKUP(B43,'Schedule V(b)'!$B$11:$Z$315,9,0),0)","v":0},null,{"$f":"IFERROR(VLOOKUP(B43,'Schedule V(b)'!$B$11:$Z$315,11,0),0)","v":"Select"},null,{"$f":"IFERROR(VLOOKUP(B43,'Schedule V(b)'!$B$11:$Z$315,13,0),0)","v":0},null,{"$f":"Import!E37178","v":"Select"},null,{"$f":"IFERROR(VLOOKUP(B43,'Schedule V(b)'!$B$11:$Z$315,17,0),0)","v":0},null,{"$f":"IFERROR(VLOOKUP(B43,'Schedule V(b)'!$B$11:$Z$315,25,0),0)","v":0},null,{"$f":"IFERROR(VLOOKUP(B43,'Schedule V(b)'!$B$11:$Z$315,23,0),0)","v":0}]
[33,{"$f":"Import!E37144","v":0},null,{"$f":"IFERROR(VLOOKUP(B44,'Schedule V(b)'!$B$11:$Z$315,3,0),0)","v":0},null,{"$f":"IFERROR(VLOOKUP(B44,'Schedule V(b)'!$B$11:$Z$315,7,0),0)","v":"Select"},null,{"$f":"IFERROR(VLOOKUP(B44,'Schedule V(b)'!$B$11:$Z$315,9,0),0)","v":0},null,{"$f":"IFERROR(VLOOKUP(B44,'Schedule V(b)'!$B$11:$Z$315,11,0),0)","v":"Select"},null,{"$f":"IFERROR(VLOOKUP(B44,'Schedule V(b)'!$B$11:$Z$315,13,0),0)","v":0},null,{"$f":"Import!E37179","v":"Select"},null,{"$f":"IFERROR(VLOOKUP(B44,'Schedule V(b)'!$B$11:$Z$315,17,0),0)","v":0},null,{"$f":"IFERROR(VLOOKUP(B44,'Schedule V(b)'!$B$11:$Z$315,25,0),0)","v":0},null,{"$f":"IFERROR(VLOOKUP(B44,'Schedule V(b)'!$B$11:$Z$315,23,0),0)","v":0}]
[34,{"$f":"Import!E37145","v":0},null,{"$f":"IFERROR(VLOOKUP(B45,'Schedule V(b)'!$B$11:$Z$315,3,0),0)","v":0},null,{"$f":"IFERROR(VLOOKUP(B45,'Schedule V(b)'!$B$11:$Z$315,7,0),0)","v":"Select"},null,{"$f":"IFERROR(VLOOKUP(B45,'Schedule V(b)'!$B$11:$Z$315,9,0),0)","v":0},null,{"$f":"IFERROR(VLOOKUP(B45,'Schedule V(b)'!$B$11:$Z$315,11,0),0)","v":"Select"},null,{"$f":"IFERROR(VLOOKUP(B45,'Schedule V(b)'!$B$11:$Z$315,13,0),0)","v":0},null,{"$f":"Import!E37180","v":"Select"},null,{"$f":"IFERROR(VLOOKUP(B45,'Schedule V(b)'!$B$11:$Z$315,17,0),0)","v":0},null,{"$f":"IFERROR(VLOOKUP(B45,'Schedule V(b)'!$B$11:$Z$315,25,0),0)","v":0},null,{"$f":"IFERROR(VLOOKUP(B45,'Schedule V(b)'!$B$11:$Z$315,23,0),0)","v":0}]
[35,{"$f":"Import!E37146","v":0},null,{"$f":"IFERROR(VLOOKUP(B46,'Schedule V(b)'!$B$11:$Z$315,3,0),0)","v":0},null,{"$f":"IFERROR(VLOOKUP(B46,'Schedule V(b)'!$B$11:$Z$315,7,0),0)","v":"Select"},null,{"$f":"IFERROR(VLOOKUP(B46,'Schedule V(b)'!$B$11:$Z$315,9,0),0)","v":0},null,{"$f":"IFERROR(VLOOKUP(B46,'Schedule V(b)'!$B$11:$Z$315,11,0),0)","v":"Select"},null,{"$f":"IFERROR(VLOOKUP(B46,'Schedule V(b)'!$B$11:$Z$315,13,0),0)","v":0},null,{"$f":"Import!E37181","v":"Select"},null,{"$f":"IFERROR(VLOOKUP(B46,'Schedule V(b)'!$B$11:$Z$315,17,0),0)","v":0},null,{"$f":"IFERROR(VLOOKUP(B46,'Schedule V(b)'!$B$11:$Z$315,25,0),0)","v":0},null,{"$f":"IFERROR(VLOOKUP(B46,'Schedule V(b)'!$B$11:$Z$315,23,0),0)","v":0}]
[36,null,null,{"$f":"IFERROR(VLOOKUP(B47,'Schedule V(b)'!$B$11:$Z$315,3,0),0)","v":0},null,{"$f":"IFERROR(VLOOKUP(B47,'Schedule V(b)'!$B$11:$Z$315,7,0),0)","v":"Select"},null,{"$f":"IFERROR(VLOOKUP(B47,'Schedule V(b)'!$B$11:$Z$315,9,0),0)","v":0},null,{"$f":"IFERROR(VLOOKUP(B47,'Schedule V(b)'!$B$11:$Z$315,11,0),0)","v":"Select"},null,{"$f":"IFERROR(VLOOKUP(B47,'Schedule V(b)'!$B$11:$Z$315,13,0),0)","v":0},null,null,null,{"$f":"IFERROR(VLOOKUP(B47,'Schedule V(b)'!$B$11:$Z$315,17,0),0)","v":0},null,{"$f":"IFERROR(VLOOKUP(B47,'Schedule V(b)'!$B$11:$Z$315,25,0),0)","v":0},null,{"$f":"IFERROR(VLOOKUP(B47,'Schedule V(b)'!$B$11:$Z$315,23,0),0)","v":0}]
[37,null,null,{"$f":"IFERROR(VLOOKUP(B48,'Schedule V(b)'!$B$11:$Z$315,3,0),0)","v":0},null,{"$f":"IFERROR(VLOOKUP(B48,'Schedule V(b)'!$B$11:$Z$315,7,0),0)","v":"Select"},null,{"$f":"IFERROR(VLOOKUP(B48,'Schedule V(b)'!$B$11:$Z$315,9,0),0)","v":0},null,{"$f":"IFERROR(VLOOKUP(B48,'Schedule V(b)'!$B$11:$Z$315,11,0),0)","v":"Select"},null,{"$f":"IFERROR(VLOOKUP(B48,'Schedule V(b)'!$B$11:$Z$315,13,0),0)","v":0},null,null,null,{"$f":"IFERROR(VLOOKUP(B48,'Schedule V(b)'!$B$11:$Z$315,17,0),0)","v":0},null,{"$f":"IFERROR(VLOOKUP(B48,'Schedule V(b)'!$B$11:$Z$315,25,0),0)","v":0},null,{"$f":"IFERROR(VLOOKUP(B48,'Schedule V(b)'!$B$11:$Z$315,23,0),0)","v":0}]
[38,null,null,{"$f":"IFERROR(VLOOKUP(B49,'Schedule V(b)'!$B$11:$Z$315,3,0),0)","v":0},null,{"$f":"IFERROR(VLOOKUP(B49,'Schedule V(b)'!$B$11:$Z$315,7,0),0)","v":"Select"},null,{"$f":"IFERROR(VLOOKUP(B49,'Schedule V(b)'!$B$11:$Z$315,9,0),0)","v":0},null,{"$f":"IFERROR(VLOOKUP(B49,'Schedule V(b)'!$B$11:$Z$315,11,0),0)","v":"Select"},null,{"$f":"IFERROR(VLOOKUP(B49,'Schedule V(b)'!$B$11:$Z$315,13,0),0)","v":0},null,null,null,{"$f":"IFERROR(VLOOKUP(B49,'Schedule V(b)'!$B$11:$Z$315,17,0),0)","v":0},null,{"$f":"IFERROR(VLOOKUP(B49,'Schedule V(b)'!$B$11:$Z$315,25,0),0)","v":0},null,{"$f":"IFERROR(VLOOKUP(B49,'Schedule V(b)'!$B$11:$Z$315,23,0),0)","v":0}]
[39,null,null,{"$f":"IFERROR(VLOOKUP(B50,'Schedule V(b)'!$B$11:$Z$315,3,0),0)","v":0},null,{"$f":"IFERROR(VLOOKUP(B50,'Schedule V(b)'!$B$11:$Z$315,7,0),0)","v":"Select"},null,{"$f":"IFERROR(VLOOKUP(B50,'Schedule V(b)'!$B$11:$Z$315,9,0),0)","v":0},null,{"$f":"IFERROR(VLOOKUP(B50,'Schedule V(b)'!$B$11:$Z$315,11,0),0)","v":"Select"},null,{"$f":"IFERROR(VLOOKUP(B50,'Schedule V(b)'!$B$11:$Z$315,13,0),0)","v":0},null,null,null,{"$f":"IFERROR(VLOOKUP(B50,'Schedule V(b)'!$B$11:$Z$315,17,0),0)","v":0},null,{"$f":"IFERROR(VLOOKUP(B50,'Schedule V(b)'!$B$11:$Z$315,25,0),0)","v":0},null,{"$f":"IFERROR(VLOOKUP(B50,'Schedule V(b)'!$B$11:$Z$315,23,0),0)","v":0}]
[40,null,null,{"$f":"IFERROR(VLOOKUP(B51,'Schedule V(b)'!$B$11:$Z$315,3,0),0)","v":0},null,{"$f":"IFERROR(VLOOKUP(B51,'Schedule V(b)'!$B$11:$Z$315,7,0),0)","v":"Select"},null,{"$f":"IFERROR(VLOOKUP(B51,'Schedule V(b)'!$B$11:$Z$315,9,0),0)","v":0},null,{"$f":"IFERROR(VLOOKUP(B51,'Schedule V(b)'!$B$11:$Z$315,11,0),0)","v":"Select"},null,{"$f":"IFERROR(VLOOKUP(B51,'Schedule V(b)'!$B$11:$Z$315,13,0),0)","v":0},null,null,null,{"$f":"IFERROR(VLOOKUP(B51,'Schedule V(b)'!$B$11:$Z$315,17,0),0)","v":0},null,{"$f":"IFERROR(VLOOKUP(B51,'Schedule V(b)'!$B$11:$Z$315,25,0),0)","v":0},null,{"$f":"IFERROR(VLOOKUP(B51,'Schedule V(b)'!$B$11:$Z$315,23,0),0)","v":0}]
[41,null,null,{"$f":"IFERROR(VLOOKUP(B52,'Schedule V(b)'!$B$11:$Z$315,3,0),0)","v":0},null,{"$f":"IFERROR(VLOOKUP(B52,'Schedule V(b)'!$B$11:$Z$315,7,0),0)","v":"Select"},null,{"$f":"IFERROR(VLOOKUP(B52,'Schedule V(b)'!$B$11:$Z$315,9,0),0)","v":0},null,{"$f":"IFERROR(VLOOKUP(B52,'Schedule V(b)'!$B$11:$Z$315,11,0),0)","v":"Select"},null,{"$f":"IFERROR(VLOOKUP(B52,'Schedule V(b)'!$B$11:$Z$315,13,0),0)","v":0},null,null,null,{"$f":"IFERROR(VLOOKUP(B52,'Schedule V(b)'!$B$11:$Z$315,17,0),0)","v":0},null,{"$f":"IFERROR(VLOOKUP(B52,'Schedule V(b)'!$B$11:$Z$315,25,0),0)","v":0},null,{"$f":"IFERROR(VLOOKUP(B52,'Schedule V(b)'!$B$11:$Z$315,23,0),0)","v":0}]
[42,null,null,{"$f":"IFERROR(VLOOKUP(B53,'Schedule V(b)'!$B$11:$Z$315,3,0),0)","v":0},null,{"$f":"IFERROR(VLOOKUP(B53,'Schedule V(b)'!$B$11:$Z$315,7,0),0)","v":"Select"},null,{"$f":"IFERROR(VLOOKUP(B53,'Schedule V(b)'!$B$11:$Z$315,9,0),0)","v":0},null,{"$f":"IFERROR(VLOOKUP(B53,'Schedule V(b)'!$B$11:$Z$315,11,0),0)","v":"Select"},null,{"$f":"IFERROR(VLOOKUP(B53,'Schedule V(b)'!$B$11:$Z$315,13,0),0)","v":0},null,null,null,{"$f":"IFERROR(VLOOKUP(B53,'Schedule V(b)'!$B$11:$Z$315,17,0),0)","v":0},null,{"$f":"IFERROR(VLOOKUP(B53,'Schedule V(b)'!$B$11:$Z$315,25,0),0)","v":0},null,{"$f":"IFERROR(VLOOKUP(B53,'Schedule V(b)'!$B$11:$Z$315,23,0),0)","v":0}]
[43,null,null,{"$f":"IFERROR(VLOOKUP(B54,'Schedule V(b)'!$B$11:$Z$315,3,0),0)","v":0},null,{"$f":"IFERROR(VLOOKUP(B54,'Schedule V(b)'!$B$11:$Z$315,7,0),0)","v":"Select"},null,{"$f":"IFERROR(VLOOKUP(B54,'Schedule V(b)'!$B$11:$Z$315,9,0),0)","v":0},null,{"$f":"IFERROR(VLOOKUP(B54,'Schedule V(b)'!$B$11:$Z$315,11,0),0)","v":"Select"},null,{"$f":"IFERROR(VLOOKUP(B54,'Schedule V(b)'!$B$11:$Z$315,13,0),0)","v":0},null,null,null,{"$f":"IFERROR(VLOOKUP(B54,'Schedule V(b)'!$B$11:$Z$315,17,0),0)","v":0},null,{"$f":"IFERROR(VLOOKUP(B54,'Schedule V(b)'!$B$11:$Z$315,25,0),0)","v":0},null,{"$f":"IFERROR(VLOOKUP(B54,'Schedule V(b)'!$B$11:$Z$315,23,0),0)","v":0}]
[44,null,null,{"$f":"IFERROR(VLOOKUP(B55,'Schedule V(b)'!$B$11:$Z$315,3,0),0)","v":0},null,{"$f":"IFERROR(VLOOKUP(B55,'Schedule V(b)'!$B$11:$Z$315,7,0),0)","v":"Select"},null,{"$f":"IFERROR(VLOOKUP(B55,'Schedule V(b)'!$B$11:$Z$315,9,0),0)","v":0},null,{"$f":"IFERROR(VLOOKUP(B55,'Schedule V(b)'!$B$11:$Z$315,11,0),0)","v":"Select"},null,{"$f":"IFERROR(VLOOKUP(B55,'Schedule V(b)'!$B$11:$Z$315,13,0),0)","v":0},null,null,null,{"$f":"IFERROR(VLOOKUP(B55,'Schedule V(b)'!$B$11:$Z$315,17,0),0)","v":0},null,{"$f":"IFERROR(VLOOKUP(B55,'Schedule V(b)'!$B$11:$Z$315,25,0),0)","v":0},null,{"$f":"IFERROR(VLOOKUP(B55,'Schedule V(b)'!$B$11:$Z$315,23,0),0)","v":0}]
[45,null,null,{"$f":"IFERROR(VLOOKUP(B56,'Schedule V(b)'!$B$11:$Z$315,3,0),0)","v":0},null,{"$f":"IFERROR(VLOOKUP(B56,'Schedule V(b)'!$B$11:$Z$315,7,0),0)","v":"Select"},null,{"$f":"IFERROR(VLOOKUP(B56,'Schedule V(b)'!$B$11:$Z$315,9,0),0)","v":0},null,{"$f":"IFERROR(VLOOKUP(B56,'Schedule V(b)'!$B$11:$Z$315,11,0),0)","v":"Select"},null,{"$f":"IFERROR(VLOOKUP(B56,'Schedule V(b)'!$B$11:$Z$315,13,0),0)","v":0},null,null,null,{"$f":"IFERROR(VLOOKUP(B56,'Schedule V(b)'!$B$11:$Z$315,17,0),0)","v":0},null,{"$f":"IFERROR(VLOOKUP(B56,'Schedule V(b)'!$B$11:$Z$315,25,0),0)","v":0},null,{"$f":"IFERROR(VLOOKUP(B56,'Schedule V(b)'!$B$11:$Z$315,23,0),0)","v":0}]
[46,null,null,{"$f":"IFERROR(VLOOKUP(B57,'Schedule V(b)'!$B$11:$Z$315,3,0),0)","v":0},null,{"$f":"IFERROR(VLOOKUP(B57,'Schedule V(b)'!$B$11:$Z$315,7,0),0)","v":"Select"},null,{"$f":"IFERROR(VLOOKUP(B57,'Schedule V(b)'!$B$11:$Z$315,9,0),0)","v":0},null,{"$f":"IFERROR(VLOOKUP(B57,'Schedule V(b)'!$B$11:$Z$315,11,0),0)","v":"Select"},null,{"$f":"IFERROR(VLOOKUP(B57,'Schedule V(b)'!$B$11:$Z$315,13,0),0)","v":0},null,null,null,{"$f":"IFERROR(VLOOKUP(B57,'Schedule V(b)'!$B$11:$Z$315,17,0),0)","v":0},null,{"$f":"IFERROR(VLOOKUP(B57,'Schedule V(b)'!$B$11:$Z$315,25,0),0)","v":0},null,{"$f":"IFERROR(VLOOKUP(B57,'Schedule V(b)'!$B$11:$Z$315,23,0),0)","v":0}]
[47,null,null,{"$f":"IFERROR(VLOOKUP(B58,'Schedule V(b)'!$B$11:$Z$315,3,0),0)","v":0},null,{"$f":"IFERROR(VLOOKUP(B58,'Schedule V(b)'!$B$11:$Z$315,7,0),0)","v":"Select"},null,{"$f":"IFERROR(VLOOKUP(B58,'Schedule V(b)'!$B$11:$Z$315,9,0),0)","v":0},null,{"$f":"IFERROR(VLOOKUP(B58,'Schedule V(b)'!$B$11:$Z$315,11,0),0)","v":"Select"},null,{"$f":"IFERROR(VLOOKUP(B58,'Schedule V(b)'!$B$11:$Z$315,13,0),0)","v":0},null,null,null,{"$f":"IFERROR(VLOOKUP(B58,'Schedule V(b)'!$B$11:$Z$315,17,0),0)","v":0},null,{"$f":"IFERROR(VLOOKUP(B58,'Schedule V(b)'!$B$11:$Z$315,25,0),0)","v":0},null,{"$f":"IFERROR(VLOOKUP(B58,'Schedule V(b)'!$B$11:$Z$315,23,0),0)","v":0}]
[48,null,null,{"$f":"IFERROR(VLOOKUP(B59,'Schedule V(b)'!$B$11:$Z$315,3,0),0)","v":0},null,{"$f":"IFERROR(VLOOKUP(B59,'Schedule V(b)'!$B$11:$Z$315,7,0),0)","v":"Select"},null,{"$f":"IFERROR(VLOOKUP(B59,'Schedule V(b)'!$B$11:$Z$315,9,0),0)","v":0},null,{"$f":"IFERROR(VLOOKUP(B59,'Schedule V(b)'!$B$11:$Z$315,11,0),0)","v":"Select"},null,{"$f":"IFERROR(VLOOKUP(B59,'Schedule V(b)'!$B$11:$Z$315,13,0),0)","v":0},null,null,null,{"$f":"IFERROR(VLOOKUP(B59,'Schedule V(b)'!$B$11:$Z$315,17,0),0)","v":0},null,{"$f":"IFERROR(VLOOKUP(B59,'Schedule V(b)'!$B$11:$Z$315,25,0),0)","v":0},null,{"$f":"IFERROR(VLOOKUP(B59,'Schedule V(b)'!$B$11:$Z$315,23,0),0)","v":0}]
[49,null,null,{"$f":"IFERROR(VLOOKUP(B60,'Schedule V(b)'!$B$11:$Z$315,3,0),0)","v":0},null,{"$f":"IFERROR(VLOOKUP(B60,'Schedule V(b)'!$B$11:$Z$315,7,0),0)","v":"Select"},null,{"$f":"IFERROR(VLOOKUP(B60,'Schedule V(b)'!$B$11:$Z$315,9,0),0)","v":0},null,{"$f":"IFERROR(VLOOKUP(B60,'Schedule V(b)'!$B$11:$Z$315,11,0),0)","v":"Select"},null,{"$f":"IFERROR(VLOOKUP(B60,'Schedule V(b)'!$B$11:$Z$315,13,0),0)","v":0},null,null,null,{"$f":"IFERROR(VLOOKUP(B60,'Schedule V(b)'!$B$11:$Z$315,17,0),0)","v":0},null,{"$f":"IFERROR(VLOOKUP(B60,'Schedule V(b)'!$B$11:$Z$315,25,0),0)","v":0},null,{"$f":"IFERROR(VLOOKUP(B60,'Schedule V(b)'!$B$11:$Z$315,23,0),0)","v":0}]
[50,null,null,{"$f":"IFERROR(VLOOKUP(B61,'Schedule V(b)'!$B$11:$Z$315,3,0),0)","v":0},null,{"$f":"IFERROR(VLOOKUP(B61,'Schedule V(b)'!$B$11:$Z$315,7,0),0)","v":"Select"},null,{"$f":"IFERROR(VLOOKUP(B61,'Schedule V(b)'!$B$11:$Z$315,9,0),0)","v":0},null,{"$f":"IFERROR(VLOOKUP(B61,'Schedule V(b)'!$B$11:$Z$315,11,0),0)","v":"Select"},null,{"$f":"IFERROR(VLOOKUP(B61,'Schedule V(b)'!$B$11:$Z$315,13,0),0)","v":0},null,null,null,{"$f":"IFERROR(VLOOKUP(B61,'Schedule V(b)'!$B$11:$Z$315,17,0),0)","v":0},null,{"$f":"IFERROR(VLOOKUP(B61,'Schedule V(b)'!$B$11:$Z$315,25,0),0)","v":0},null,{"$f":"IFERROR(VLOOKUP(B61,'Schedule V(b)'!$B$11:$Z$315,23,0),0)","v":0}]
[51,null,null,{"$f":"IFERROR(VLOOKUP(B62,'Schedule V(b)'!$B$11:$Z$315,3,0),0)","v":0},null,{"$f":"IFERROR(VLOOKUP(B62,'Schedule V(b)'!$B$11:$Z$315,7,0),0)","v":"Select"},null,{"$f":"IFERROR(VLOOKUP(B62,'Schedule V(b)'!$B$11:$Z$315,9,0),0)","v":0},null,{"$f":"IFERROR(VLOOKUP(B62,'Schedule V(b)'!$B$11:$Z$315,11,0),0)","v":"Select"},null,{"$f":"IFERROR(VLOOKUP(B62,'Schedule V(b)'!$B$11:$Z$315,13,0),0)","v":0},null,null,null,{"$f":"IFERROR(VLOOKUP(B62,'Schedule V(b)'!$B$11:$Z$315,17,0),0)","v":0},null,{"$f":"IFERROR(VLOOKUP(B62,'Schedule V(b)'!$B$11:$Z$315,25,0),0)","v":0},null,{"$f":"IFERROR(VLOOKUP(B62,'Schedule V(b)'!$B$11:$Z$315,23,0),0)","v":0}]
[52,null,null,{"$f":"IFERROR(VLOOKUP(B63,'Schedule V(b)'!$B$11:$Z$315,3,0),0)","v":0},null,{"$f":"IFERROR(VLOOKUP(B63,'Schedule V(b)'!$B$11:$Z$315,7,0),0)","v":"Select"},null,{"$f":"IFERROR(VLOOKUP(B63,'Schedule V(b)'!$B$11:$Z$315,9,0),0)","v":0},null,{"$f":"IFERROR(VLOOKUP(B63,'Schedule V(b)'!$B$11:$Z$315,11,0),0)","v":"Select"},null,{"$f":"IFERROR(VLOOKUP(B63,'Schedule V(b)'!$B$11:$Z$315,13,0),0)","v":0},null,null,null,{"$f":"IFERROR(VLOOKUP(B63,'Schedule V(b)'!$B$11:$Z$315,17,0),0)","v":0},null,{"$f":"IFERROR(VLOOKUP(B63,'Schedule V(b)'!$B$11:$Z$315,25,0),0)","v":0},null,{"$f":"IFERROR(VLOOKUP(B63,'Schedule V(b)'!$B$11:$Z$315,23,0),0)","v":0}]
[53,null,null,{"$f":"IFERROR(VLOOKUP(B64,'Schedule V(b)'!$B$11:$Z$315,3,0),0)","v":0},null,{"$f":"IFERROR(VLOOKUP(B64,'Schedule V(b)'!$B$11:$Z$315,7,0),0)","v":"Select"},null,{"$f":"IFERROR(VLOOKUP(B64,'Schedule V(b)'!$B$11:$Z$315,9,0),0)","v":0},null,{"$f":"IFERROR(VLOOKUP(B64,'Schedule V(b)'!$B$11:$Z$315,11,0),0)","v":"Select"},null,{"$f":"IFERROR(VLOOKUP(B64,'Schedule V(b)'!$B$11:$Z$315,13,0),0)","v":0},null,null,null,{"$f":"IFERROR(VLOOKUP(B64,'Schedule V(b)'!$B$11:$Z$315,17,0),0)","v":0},null,{"$f":"IFERROR(VLOOKUP(B64,'Schedule V(b)'!$B$11:$Z$315,25,0),0)","v":0},null,{"$f":"IFERROR(VLOOKUP(B64,'Schedule V(b)'!$B$11:$Z$315,23,0),0)","v":0}]
[54,null,null,{"$f":"IFERROR(VLOOKUP(B65,'Schedule V(b)'!$B$11:$Z$315,3,0),0)","v":0},null,{"$f":"IFERROR(VLOOKUP(B65,'Schedule V(b)'!$B$11:$Z$315,7,0),0)","v":"Select"},null,{"$f":"IFERROR(VLOOKUP(B65,'Schedule V(b)'!$B$11:$Z$315,9,0),0)","v":0},null,{"$f":"IFERROR(VLOOKUP(B65,'Schedule V(b)'!$B$11:$Z$315,11,0),0)","v":"Select"},null,{"$f":"IFERROR(VLOOKUP(B65,'Schedule V(b)'!$B$11:$Z$315,13,0),0)","v":0},null,null,null,{"$f":"IFERROR(VLOOKUP(B65,'Schedule V(b)'!$B$11:$Z$315,17,0),0)","v":0},null,{"$f":"IFERROR(VLOOKUP(B65,'Schedule V(b)'!$B$11:$Z$315,25,0),0)","v":0},null,{"$f":"IFERROR(VLOOKUP(B65,'Schedule V(b)'!$B$11:$Z$315,23,0),0)","v":0}]
[55,null,null,{"$f":"IFERROR(VLOOKUP(B66,'Schedule V(b)'!$B$11:$Z$315,3,0),0)","v":0},null,{"$f":"IFERROR(VLOOKUP(B66,'Schedule V(b)'!$B$11:$Z$315,7,0),0)","v":"Select"},null,{"$f":"IFERROR(VLOOKUP(B66,'Schedule V(b)'!$B$11:$Z$315,9,0),0)","v":0},null,{"$f":"IFERROR(VLOOKUP(B66,'Schedule V(b)'!$B$11:$Z$315,11,0),0)","v":"Select"},null,{"$f":"IFERROR(VLOOKUP(B66,'Schedule V(b)'!$B$11:$Z$315,13,0),0)","v":0},null,null,null,{"$f":"IFERROR(VLOOKUP(B66,'Schedule V(b)'!$B$11:$Z$315,17,0),0)","v":0},null,{"$f":"IFERROR(VLOOKUP(B66,'Schedule V(b)'!$B$11:$Z$315,25,0),0)","v":0},null,{"$f":"IFERROR(VLOOKUP(B66,'Schedule V(b)'!$B$11:$Z$315,23,0),0)","v":0}]
[56,null,null,{"$f":"IFERROR(VLOOKUP(B67,'Schedule V(b)'!$B$11:$Z$315,3,0),0)","v":0},null,{"$f":"IFERROR(VLOOKUP(B67,'Schedule V(b)'!$B$11:$Z$315,7,0),0)","v":"Select"},null,{"$f":"IFERROR(VLOOKUP(B67,'Schedule V(b)'!$B$11:$Z$315,9,0),0)","v":0},null,{"$f":"IFERROR(VLOOKUP(B67,'Schedule V(b)'!$B$11:$Z$315,11,0),0)","v":"Select"},null,{"$f":"IFERROR(VLOOKUP(B67,'Schedule V(b)'!$B$11:$Z$315,13,0),0)","v":0},null,null,null,{"$f":"IFERROR(VLOOKUP(B67,'Schedule V(b)'!$B$11:$Z$315,17,0),0)","v":0},null,{"$f":"IFERROR(VLOOKUP(B67,'Schedule V(b)'!$B$11:$Z$315,25,0),0)","v":0},null,{"$f":"IFERROR(VLOOKUP(B67,'Schedule V(b)'!$B$11:$Z$315,23,0),0)","v":0}]
[57,null,null,{"$f":"IFERROR(VLOOKUP(B68,'Schedule V(b)'!$B$11:$Z$315,3,0),0)","v":0},null,{"$f":"IFERROR(VLOOKUP(B68,'Schedule V(b)'!$B$11:$Z$315,7,0),0)","v":"Select"},null,{"$f":"IFERROR(VLOOKUP(B68,'Schedule V(b)'!$B$11:$Z$315,9,0),0)","v":0},null,{"$f":"IFERROR(VLOOKUP(B68,'Schedule V(b)'!$B$11:$Z$315,11,0),0)","v":"Select"},null,{"$f":"IFERROR(VLOOKUP(B68,'Schedule V(b)'!$B$11:$Z$315,13,0),0)","v":0},null,null,null,{"$f":"IFERROR(VLOOKUP(B68,'Schedule V(b)'!$B$11:$Z$315,17,0),0)","v":0},null,{"$f":"IFERROR(VLOOKUP(B68,'Schedule V(b)'!$B$11:$Z$315,25,0),0)","v":0},null,{"$f":"IFERROR(VLOOKUP(B68,'Schedule V(b)'!$B$11:$Z$315,23,0),0)","v":0}]
[58,null,null,{"$f":"IFERROR(VLOOKUP(B69,'Schedule V(b)'!$B$11:$Z$315,3,0),0)","v":0},null,{"$f":"IFERROR(VLOOKUP(B69,'Schedule V(b)'!$B$11:$Z$315,7,0),0)","v":"Select"},null,{"$f":"IFERROR(VLOOKUP(B69,'Schedule V(b)'!$B$11:$Z$315,9,0),0)","v":0},null,{"$f":"IFERROR(VLOOKUP(B69,'Schedule V(b)'!$B$11:$Z$315,11,0),0)","v":"Select"},null,{"$f":"IFERROR(VLOOKUP(B69,'Schedule V(b)'!$B$11:$Z$315,13,0),0)","v":0},null,null,null,{"$f":"IFERROR(VLOOKUP(B69,'Schedule V(b)'!$B$11:$Z$315,17,0),0)","v":0},null,{"$f":"IFERROR(VLOOKUP(B69,'Schedule V(b)'!$B$11:$Z$315,25,0),0)","v":0},null,{"$f":"IFERROR(VLOOKUP(B69,'Schedule V(b)'!$B$11:$Z$315,23,0),0)","v":0}]
[59,null,null,{"$f":"IFERROR(VLOOKUP(B70,'Schedule V(b)'!$B$11:$Z$315,3,0),0)","v":0},null,{"$f":"IFERROR(VLOOKUP(B70,'Schedule V(b)'!$B$11:$Z$315,7,0),0)","v":"Select"},null,{"$f":"IFERROR(VLOOKUP(B70,'Schedule V(b)'!$B$11:$Z$315,9,0),0)","v":0},null,{"$f":"IFERROR(VLOOKUP(B70,'Schedule V(b)'!$B$11:$Z$315,11,0),0)","v":"Select"},null,{"$f":"IFERROR(VLOOKUP(B70,'Schedule V(b)'!$B$11:$Z$315,13,0),0)","v":0},null,null,null,{"$f":"IFERROR(VLOOKUP(B70,'Schedule V(b)'!$B$11:$Z$315,17,0),0)","v":0},null,{"$f":"IFERROR(VLOOKUP(B70,'Schedule V(b)'!$B$11:$Z$315,25,0),0)","v":0},null,{"$f":"IFERROR(VLOOKUP(B70,'Schedule V(b)'!$B$11:$Z$315,23,0),0)","v":0}]
[60,null,null,{"$f":"IFERROR(VLOOKUP(B71,'Schedule V(b)'!$B$11:$Z$315,3,0),0)","v":0},null,{"$f":"IFERROR(VLOOKUP(B71,'Schedule V(b)'!$B$11:$Z$315,7,0),0)","v":"Select"},null,{"$f":"IFERROR(VLOOKUP(B71,'Schedule V(b)'!$B$11:$Z$315,9,0),0)","v":0},null,{"$f":"IFERROR(VLOOKUP(B71,'Schedule V(b)'!$B$11:$Z$315,11,0),0)","v":"Select"},null,{"$f":"IFERROR(VLOOKUP(B71,'Schedule V(b)'!$B$11:$Z$315,13,0),0)","v":0},null,null,null,{"$f":"IFERROR(VLOOKUP(B71,'Schedule V(b)'!$B$11:$Z$315,17,0),0)","v":0},null,{"$f":"IFERROR(VLOOKUP(B71,'Schedule V(b)'!$B$11:$Z$315,25,0),0)","v":0},null,{"$f":"IFERROR(VLOOKUP(B71,'Schedule V(b)'!$B$11:$Z$315,23,0),0)","v":0}]
[61,null,null,{"$f":"IFERROR(VLOOKUP(B72,'Schedule V(b)'!$B$11:$Z$315,3,0),0)","v":0},null,{"$f":"IFERROR(VLOOKUP(B72,'Schedule V(b)'!$B$11:$Z$315,7,0),0)","v":"Select"},null,{"$f":"IFERROR(VLOOKUP(B72,'Schedule V(b)'!$B$11:$Z$315,9,0),0)","v":0},null,{"$f":"IFERROR(VLOOKUP(B72,'Schedule V(b)'!$B$11:$Z$315,11,0),0)","v":"Select"},null,{"$f":"IFERROR(VLOOKUP(B72,'Schedule V(b)'!$B$11:$Z$315,13,0),0)","v":0},null,null,null,{"$f":"IFERROR(VLOOKUP(B72,'Schedule V(b)'!$B$11:$Z$315,17,0),0)","v":0},null,{"$f":"IFERROR(VLOOKUP(B72,'Schedule V(b)'!$B$11:$Z$315,25,0),0)","v":0},null,{"$f":"IFERROR(VLOOKUP(B72,'Schedule V(b)'!$B$11:$Z$315,23,0),0)","v":0}]
[62,null,null,{"$f":"IFERROR(VLOOKUP(B73,'Schedule V(b)'!$B$11:$Z$315,3,0),0)","v":0},null,{"$f":"IFERROR(VLOOKUP(B73,'Schedule V(b)'!$B$11:$Z$315,7,0),0)","v":"Select"},null,{"$f":"IFERROR(VLOOKUP(B73,'Schedule V(b)'!$B$11:$Z$315,9,0),0)","v":0},null,{"$f":"IFERROR(VLOOKUP(B73,'Schedule V(b)'!$B$11:$Z$315,11,0),0)","v":"Select"},null,{"$f":"IFERROR(VLOOKUP(B73,'Schedule V(b)'!$B$11:$Z$315,13,0),0)","v":0},null,null,null,{"$f":"IFERROR(VLOOKUP(B73,'Schedule V(b)'!$B$11:$Z$315,17,0),0)","v":0},null,{"$f":"IFERROR(VLOOKUP(B73,'Schedule V(b)'!$B$11:$Z$315,25,0),0)","v":0},null,{"$f":"IFERROR(VLOOKUP(B73,'Schedule V(b)'!$B$11:$Z$315,23,0),0)","v":0}]
[63,null,null,{"$f":"IFERROR(VLOOKUP(B74,'Schedule V(b)'!$B$11:$Z$315,3,0),0)","v":0},null,{"$f":"IFERROR(VLOOKUP(B74,'Schedule V(b)'!$B$11:$Z$315,7,0),0)","v":"Select"},null,{"$f":"IFERROR(VLOOKUP(B74,'Schedule V(b)'!$B$11:$Z$315,9,0),0)","v":0},null,{"$f":"IFERROR(VLOOKUP(B74,'Schedule V(b)'!$B$11:$Z$315,11,0),0)","v":"Select"},null,{"$f":"IFERROR(VLOOKUP(B74,'Schedule V(b)'!$B$11:$Z$315,13,0),0)","v":0},null,null,null,{"$f":"IFERROR(VLOOKUP(B74,'Schedule V(b)'!$B$11:$Z$315,17,0),0)","v":0},null,{"$f":"IFERROR(VLOOKUP(B74,'Schedule V(b)'!$B$11:$Z$315,25,0),0)","v":0},null,{"$f":"IFERROR(VLOOKUP(B74,'Schedule V(b)'!$B$11:$Z$315,23,0),0)","v":0}]
[64,null,null,{"$f":"IFERROR(VLOOKUP(B75,'Schedule V(b)'!$B$11:$Z$315,3,0),0)","v":0},null,{"$f":"IFERROR(VLOOKUP(B75,'Schedule V(b)'!$B$11:$Z$315,7,0),0)","v":"Select"},null,{"$f":"IFERROR(VLOOKUP(B75,'Schedule V(b)'!$B$11:$Z$315,9,0),0)","v":0},null,{"$f":"IFERROR(VLOOKUP(B75,'Schedule V(b)'!$B$11:$Z$315,11,0),0)","v":"Select"},null,{"$f":"IFERROR(VLOOKUP(B75,'Schedule V(b)'!$B$11:$Z$315,13,0),0)","v":0},null,null,null,{"$f":"IFERROR(VLOOKUP(B75,'Schedule V(b)'!$B$11:$Z$315,17,0),0)","v":0},null,{"$f":"IFERROR(VLOOKUP(B75,'Schedule V(b)'!$B$11:$Z$315,25,0),0)","v":0},null,{"$f":"IFERROR(VLOOKUP(B75,'Schedule V(b)'!$B$11:$Z$315,23,0),0)","v":0}]
[65,null,null,{"$f":"IFERROR(VLOOKUP(B76,'Schedule V(b)'!$B$11:$Z$315,3,0),0)","v":0},null,{"$f":"IFERROR(VLOOKUP(B76,'Schedule V(b)'!$B$11:$Z$315,7,0),0)","v":"Select"},null,{"$f":"IFERROR(VLOOKUP(B76,'Schedule V(b)'!$B$11:$Z$315,9,0),0)","v":0},null,{"$f":"IFERROR(VLOOKUP(B76,'Schedule V(b)'!$B$11:$Z$315,11,0),0)","v":"Select"},null,{"$f":"IFERROR(VLOOKUP(B76,'Schedule V(b)'!$B$11:$Z$315,13,0),0)","v":0},null,null,null,{"$f":"IFERROR(VLOOKUP(B76,'Schedule V(b)'!$B$11:$Z$315,17,0),0)","v":0},null,{"$f":"IFERROR(VLOOKUP(B76,'Schedule V(b)'!$B$11:$Z$315,25,0),0)","v":0},null,{"$f":"IFERROR(VLOOKUP(B76,'Schedule V(b)'!$B$11:$Z$315,23,0),0)","v":0}]
[66,null,null,{"$f":"IFERROR(VLOOKUP(B77,'Schedule V(b)'!$B$11:$Z$315,3,0),0)","v":0},null,{"$f":"IFERROR(VLOOKUP(B77,'Schedule V(b)'!$B$11:$Z$315,7,0),0)","v":"Select"},null,{"$f":"IFERROR(VLOOKUP(B77,'Schedule V(b)'!$B$11:$Z$315,9,0),0)","v":0},null,{"$f":"IFERROR(VLOOKUP(B77,'Schedule V(b)'!$B$11:$Z$315,11,0),0)","v":"Select"},null,{"$f":"IFERROR(VLOOKUP(B77,'Schedule V(b)'!$B$11:$Z$315,13,0),0)","v":0},null,null,null,{"$f":"IFERROR(VLOOKUP(B77,'Schedule V(b)'!$B$11:$Z$315,17,0),0)","v":0},null,{"$f":"IFERROR(VLOOKUP(B77,'Schedule V(b)'!$B$11:$Z$315,25,0),0)","v":0},null,{"$f":"IFERROR(VLOOKUP(B77,'Schedule V(b)'!$B$11:$Z$315,23,0),0)","v":0}]
[67,null,null,{"$f":"IFERROR(VLOOKUP(B78,'Schedule V(b)'!$B$11:$Z$315,3,0),0)","v":0},null,{"$f":"IFERROR(VLOOKUP(B78,'Schedule V(b)'!$B$11:$Z$315,7,0),0)","v":"Select"},null,{"$f":"IFERROR(VLOOKUP(B78,'Schedule V(b)'!$B$11:$Z$315,9,0),0)","v":0},null,{"$f":"IFERROR(VLOOKUP(B78,'Schedule V(b)'!$B$11:$Z$315,11,0),0)","v":"Select"},null,{"$f":"IFERROR(VLOOKUP(B78,'Schedule V(b)'!$B$11:$Z$315,13,0),0)","v":0},null,null,null,{"$f":"IFERROR(VLOOKUP(B78,'Schedule V(b)'!$B$11:$Z$315,17,0),0)","v":0},null,{"$f":"IFERROR(VLOOKUP(B78,'Schedule V(b)'!$B$11:$Z$315,25,0),0)","v":0},null,{"$f":"IFERROR(VLOOKUP(B78,'Schedule V(b)'!$B$11:$Z$315,23,0),0)","v":0}]
[68,null,null,{"$f":"IFERROR(VLOOKUP(B79,'Schedule V(b)'!$B$11:$Z$315,3,0),0)","v":0},null,{"$f":"IFERROR(VLOOKUP(B79,'Schedule V(b)'!$B$11:$Z$315,7,0),0)","v":"Select"},null,{"$f":"IFERROR(VLOOKUP(B79,'Schedule V(b)'!$B$11:$Z$315,9,0),0)","v":0},null,{"$f":"IFERROR(VLOOKUP(B79,'Schedule V(b)'!$B$11:$Z$315,11,0),0)","v":"Select"},null,{"$f":"IFERROR(VLOOKUP(B79,'Schedule V(b)'!$B$11:$Z$315,13,0),0)","v":0},null,null,null,{"$f":"IFERROR(VLOOKUP(B79,'Schedule V(b)'!$B$11:$Z$315,17,0),0)","v":0},null,{"$f":"IFERROR(VLOOKUP(B79,'Schedule V(b)'!$B$11:$Z$315,25,0),0)","v":0},null,{"$f":"IFERROR(VLOOKUP(B79,'Schedule V(b)'!$B$11:$Z$315,23,0),0)","v":0}]
[69,null,null,{"$f":"IFERROR(VLOOKUP(B80,'Schedule V(b)'!$B$11:$Z$315,3,0),0)","v":0},null,{"$f":"IFERROR(VLOOKUP(B80,'Schedule V(b)'!$B$11:$Z$315,7,0),0)","v":"Select"},null,{"$f":"IFERROR(VLOOKUP(B80,'Schedule V(b)'!$B$11:$Z$315,9,0),0)","v":0},null,{"$f":"IFERROR(VLOOKUP(B80,'Schedule V(b)'!$B$11:$Z$315,11,0),0)","v":"Select"},null,{"$f":"IFERROR(VLOOKUP(B80,'Schedule V(b)'!$B$11:$Z$315,13,0),0)","v":0},null,null,null,{"$f":"IFERROR(VLOOKUP(B80,'Schedule V(b)'!$B$11:$Z$315,17,0),0)","v":0},null,{"$f":"IFERROR(VLOOKUP(B80,'Schedule V(b)'!$B$11:$Z$315,25,0),0)","v":0},null,{"$f":"IFERROR(VLOOKUP(B80,'Schedule V(b)'!$B$11:$Z$315,23,0),0)","v":0}]
[70,null,null,{"$f":"IFERROR(VLOOKUP(B81,'Schedule V(b)'!$B$11:$Z$315,3,0),0)","v":0},null,{"$f":"IFERROR(VLOOKUP(B81,'Schedule V(b)'!$B$11:$Z$315,7,0),0)","v":"Select"},null,{"$f":"IFERROR(VLOOKUP(B81,'Schedule V(b)'!$B$11:$Z$315,9,0),0)","v":0},null,{"$f":"IFERROR(VLOOKUP(B81,'Schedule V(b)'!$B$11:$Z$315,11,0),0)","v":"Select"},null,{"$f":"IFERROR(VLOOKUP(B81,'Schedule V(b)'!$B$11:$Z$315,13,0),0)","v":0},null,null,null,{"$f":"IFERROR(VLOOKUP(B81,'Schedule V(b)'!$B$11:$Z$315,17,0),0)","v":0},null,{"$f":"IFERROR(VLOOKUP(B81,'Schedule V(b)'!$B$11:$Z$315,25,0),0)","v":0},null,{"$f":"IFERROR(VLOOKUP(B81,'Schedule V(b)'!$B$11:$Z$315,23,0),0)","v":0}]
[71,null,null,{"$f":"IFERROR(VLOOKUP(B82,'Schedule V(b)'!$B$11:$Z$315,3,0),0)","v":0},null,{"$f":"IFERROR(VLOOKUP(B82,'Schedule V(b)'!$B$11:$Z$315,7,0),0)","v":"Select"},null,{"$f":"IFERROR(VLOOKUP(B82,'Schedule V(b)'!$B$11:$Z$315,9,0),0)","v":0},null,{"$f":"IFERROR(VLOOKUP(B82,'Schedule V(b)'!$B$11:$Z$315,11,0),0)","v":"Select"},null,{"$f":"IFERROR(VLOOKUP(B82,'Schedule V(b)'!$B$11:$Z$315,13,0),0)","v":0},null,null,null,{"$f":"IFERROR(VLOOKUP(B82,'Schedule V(b)'!$B$11:$Z$315,17,0),0)","v":0},null,{"$f":"IFERROR(VLOOKUP(B82,'Schedule V(b)'!$B$11:$Z$315,25,0),0)","v":0},null,{"$f":"IFERROR(VLOOKUP(B82,'Schedule V(b)'!$B$11:$Z$315,23,0),0)","v":0}]
[72,null,null,{"$f":"IFERROR(VLOOKUP(B83,'Schedule V(b)'!$B$11:$Z$315,3,0),0)","v":0},null,{"$f":"IFERROR(VLOOKUP(B83,'Schedule V(b)'!$B$11:$Z$315,7,0),0)","v":"Select"},null,{"$f":"IFERROR(VLOOKUP(B83,'Schedule V(b)'!$B$11:$Z$315,9,0),0)","v":0},null,{"$f":"IFERROR(VLOOKUP(B83,'Schedule V(b)'!$B$11:$Z$315,11,0),0)","v":"Select"},null,{"$f":"IFERROR(VLOOKUP(B83,'Schedule V(b)'!$B$11:$Z$315,13,0),0)","v":0},null,null,null,{"$f":"IFERROR(VLOOKUP(B83,'Schedule V(b)'!$B$11:$Z$315,17,0),0)","v":0},null,{"$f":"IFERROR(VLOOKUP(B83,'Schedule V(b)'!$B$11:$Z$315,25,0),0)","v":0},null,{"$f":"IFERROR(VLOOKUP(B83,'Schedule V(b)'!$B$11:$Z$315,23,0),0)","v":0}]
[73,null,null,{"$f":"IFERROR(VLOOKUP(B84,'Schedule V(b)'!$B$11:$Z$315,3,0),0)","v":0},null,{"$f":"IFERROR(VLOOKUP(B84,'Schedule V(b)'!$B$11:$Z$315,7,0),0)","v":"Select"},null,{"$f":"IFERROR(VLOOKUP(B84,'Schedule V(b)'!$B$11:$Z$315,9,0),0)","v":0},null,{"$f":"IFERROR(VLOOKUP(B84,'Schedule V(b)'!$B$11:$Z$315,11,0),0)","v":"Select"},null,{"$f":"IFERROR(VLOOKUP(B84,'Schedule V(b)'!$B$11:$Z$315,13,0),0)","v":0},null,null,null,{"$f":"IFERROR(VLOOKUP(B84,'Schedule V(b)'!$B$11:$Z$315,17,0),0)","v":0},null,{"$f":"IFERROR(VLOOKUP(B84,'Schedule V(b)'!$B$11:$Z$315,25,0),0)","v":0},null,{"$f":"IFERROR(VLOOKUP(B84,'Schedule V(b)'!$B$11:$Z$315,23,0),0)","v":0}]
[74,null,null,{"$f":"IFERROR(VLOOKUP(B85,'Schedule V(b)'!$B$11:$Z$315,3,0),0)","v":0},null,{"$f":"IFERROR(VLOOKUP(B85,'Schedule V(b)'!$B$11:$Z$315,7,0),0)","v":"Select"},null,{"$f":"IFERROR(VLOOKUP(B85,'Schedule V(b)'!$B$11:$Z$315,9,0),0)","v":0},null,{"$f":"IFERROR(VLOOKUP(B85,'Schedule V(b)'!$B$11:$Z$315,11,0),0)","v":"Select"},null,{"$f":"IFERROR(VLOOKUP(B85,'Schedule V(b)'!$B$11:$Z$315,13,0),0)","v":0},null,null,null,{"$f":"IFERROR(VLOOKUP(B85,'Schedule V(b)'!$B$11:$Z$315,17,0),0)","v":0},null,{"$f":"IFERROR(VLOOKUP(B85,'Schedule V(b)'!$B$11:$Z$315,25,0),0)","v":0},null,{"$f":"IFERROR(VLOOKUP(B85,'Schedule V(b)'!$B$11:$Z$315,23,0),0)","v":0}]
[75,null,null,{"$f":"IFERROR(VLOOKUP(B86,'Schedule V(b)'!$B$11:$Z$315,3,0),0)","v":0},null,{"$f":"IFERROR(VLOOKUP(B86,'Schedule V(b)'!$B$11:$Z$315,7,0),0)","v":"Select"},null,{"$f":"IFERROR(VLOOKUP(B86,'Schedule V(b)'!$B$11:$Z$315,9,0),0)","v":0},null,{"$f":"IFERROR(VLOOKUP(B86,'Schedule V(b)'!$B$11:$Z$315,11,0),0)","v":"Select"},null,{"$f":"IFERROR(VLOOKUP(B86,'Schedule V(b)'!$B$11:$Z$315,13,0),0)","v":0},null,null,null,{"$f":"IFERROR(VLOOKUP(B86,'Schedule V(b)'!$B$11:$Z$315,17,0),0)","v":0},null,{"$f":"IFERROR(VLOOKUP(B86,'Schedule V(b)'!$B$11:$Z$315,25,0),0)","v":0},null,{"$f":"IFERROR(VLOOKUP(B86,'Schedule V(b)'!$B$11:$Z$315,23,0),0)","v":0}]
[76,null,null,{"$f":"IFERROR(VLOOKUP(B87,'Schedule V(b)'!$B$11:$Z$315,3,0),0)","v":0},null,{"$f":"IFERROR(VLOOKUP(B87,'Schedule V(b)'!$B$11:$Z$315,7,0),0)","v":"Select"},null,{"$f":"IFERROR(VLOOKUP(B87,'Schedule V(b)'!$B$11:$Z$315,9,0),0)","v":0},null,{"$f":"IFERROR(VLOOKUP(B87,'Schedule V(b)'!$B$11:$Z$315,11,0),0)","v":"Select"},null,{"$f":"IFERROR(VLOOKUP(B87,'Schedule V(b)'!$B$11:$Z$315,13,0),0)","v":0},null,null,null,{"$f":"IFERROR(VLOOKUP(B87,'Schedule V(b)'!$B$11:$Z$315,17,0),0)","v":0},null,{"$f":"IFERROR(VLOOKUP(B87,'Schedule V(b)'!$B$11:$Z$315,25,0),0)","v":0},null,{"$f":"IFERROR(VLOOKUP(B87,'Schedule V(b)'!$B$11:$Z$315,23,0),0)","v":0}]
[77,null,null,{"$f":"IFERROR(VLOOKUP(B88,'Schedule V(b)'!$B$11:$Z$315,3,0),0)","v":0},null,{"$f":"IFERROR(VLOOKUP(B88,'Schedule V(b)'!$B$11:$Z$315,7,0),0)","v":"Select"},null,{"$f":"IFERROR(VLOOKUP(B88,'Schedule V(b)'!$B$11:$Z$315,9,0),0)","v":0},null,{"$f":"IFERROR(VLOOKUP(B88,'Schedule V(b)'!$B$11:$Z$315,11,0),0)","v":"Select"},null,{"$f":"IFERROR(VLOOKUP(B88,'Schedule V(b)'!$B$11:$Z$315,13,0),0)","v":0},null,null,null,{"$f":"IFERROR(VLOOKUP(B88,'Schedule V(b)'!$B$11:$Z$315,17,0),0)","v":0},null,{"$f":"IFERROR(VLOOKUP(B88,'Schedule V(b)'!$B$11:$Z$315,25,0),0)","v":0},null,{"$f":"IFERROR(VLOOKUP(B88,'Schedule V(b)'!$B$11:$Z$315,23,0),0)","v":0}]
[78,null,null,{"$f":"IFERROR(VLOOKUP(B89,'Schedule V(b)'!$B$11:$Z$315,3,0),0)","v":0},null,{"$f":"IFERROR(VLOOKUP(B89,'Schedule V(b)'!$B$11:$Z$315,7,0),0)","v":"Select"},null,{"$f":"IFERROR(VLOOKUP(B89,'Schedule V(b)'!$B$11:$Z$315,9,0),0)","v":0},null,{"$f":"IFERROR(VLOOKUP(B89,'Schedule V(b)'!$B$11:$Z$315,11,0),0)","v":"Select"},null,{"$f":"IFERROR(VLOOKUP(B89,'Schedule V(b)'!$B$11:$Z$315,13,0),0)","v":0},null,null,null,{"$f":"IFERROR(VLOOKUP(B89,'Schedule V(b)'!$B$11:$Z$315,17,0),0)","v":0},null,{"$f":"IFERROR(VLOOKUP(B89,'Schedule V(b)'!$B$11:$Z$315,25,0),0)","v":0},null,{"$f":"IFERROR(VLOOKUP(B89,'Schedule V(b)'!$B$11:$Z$315,23,0),0)","v":0}]
[79,null,null,{"$f":"IFERROR(VLOOKUP(B90,'Schedule V(b)'!$B$11:$Z$315,3,0),0)","v":0},null,{"$f":"IFERROR(VLOOKUP(B90,'Schedule V(b)'!$B$11:$Z$315,7,0),0)","v":"Select"},null,{"$f":"IFERROR(VLOOKUP(B90,'Schedule V(b)'!$B$11:$Z$315,9,0),0)","v":0},null,{"$f":"IFERROR(VLOOKUP(B90,'Schedule V(b)'!$B$11:$Z$315,11,0),0)","v":"Select"},null,{"$f":"IFERROR(VLOOKUP(B90,'Schedule V(b)'!$B$11:$Z$315,13,0),0)","v":0},null,null,null,{"$f":"IFERROR(VLOOKUP(B90,'Schedule V(b)'!$B$11:$Z$315,17,0),0)","v":0},null,{"$f":"IFERROR(VLOOKUP(B90,'Schedule V(b)'!$B$11:$Z$315,25,0),0)","v":0},null,{"$f":"IFERROR(VLOOKUP(B90,'Schedule V(b)'!$B$11:$Z$315,23,0),0)","v":0}]
[80,null,null,{"$f":"IFERROR(VLOOKUP(B91,'Schedule V(b)'!$B$11:$Z$315,3,0),0)","v":0},null,{"$f":"IFERROR(VLOOKUP(B91,'Schedule V(b)'!$B$11:$Z$315,7,0),0)","v":"Select"},null,{"$f":"IFERROR(VLOOKUP(B91,'Schedule V(b)'!$B$11:$Z$315,9,0),0)","v":0},null,{"$f":"IFERROR(VLOOKUP(B91,'Schedule V(b)'!$B$11:$Z$315,11,0),0)","v":"Select"},null,{"$f":"IFERROR(VLOOKUP(B91,'Schedule V(b)'!$B$11:$Z$315,13,0),0)","v":0},null,null,null,{"$f":"IFERROR(VLOOKUP(B91,'Schedule V(b)'!$B$11:$Z$315,17,0),0)","v":0},null,{"$f":"IFERROR(VLOOKUP(B91,'Schedule V(b)'!$B$11:$Z$315,25,0),0)","v":0},null,{"$f":"IFERROR(VLOOKUP(B91,'Schedule V(b)'!$B$11:$Z$315,23,0),0)","v":0}]
[81,null,null,{"$f":"IFERROR(VLOOKUP(B92,'Schedule V(b)'!$B$11:$Z$315,3,0),0)","v":0},null,{"$f":"IFERROR(VLOOKUP(B92,'Schedule V(b)'!$B$11:$Z$315,7,0),0)","v":"Select"},null,{"$f":"IFERROR(VLOOKUP(B92,'Schedule V(b)'!$B$11:$Z$315,9,0),0)","v":0},null,{"$f":"IFERROR(VLOOKUP(B92,'Schedule V(b)'!$B$11:$Z$315,11,0),0)","v":"Select"},null,{"$f":"IFERROR(VLOOKUP(B92,'Schedule V(b)'!$B$11:$Z$315,13,0),0)","v":0},null,null,null,{"$f":"IFERROR(VLOOKUP(B92,'Schedule V(b)'!$B$11:$Z$315,17,0),0)","v":0},null,{"$f":"IFERROR(VLOOKUP(B92,'Schedule V(b)'!$B$11:$Z$315,25,0),0)","v":0},null,{"$f":"IFERROR(VLOOKUP(B92,'Schedule V(b)'!$B$11:$Z$315,23,0),0)","v":0}]
[82,null,null,{"$f":"IFERROR(VLOOKUP(B93,'Schedule V(b)'!$B$11:$Z$315,3,0),0)","v":0},null,{"$f":"IFERROR(VLOOKUP(B93,'Schedule V(b)'!$B$11:$Z$315,7,0),0)","v":"Select"},null,{"$f":"IFERROR(VLOOKUP(B93,'Schedule V(b)'!$B$11:$Z$315,9,0),0)","v":0},null,{"$f":"IFERROR(VLOOKUP(B93,'Schedule V(b)'!$B$11:$Z$315,11,0),0)","v":"Select"},null,{"$f":"IFERROR(VLOOKUP(B93,'Schedule V(b)'!$B$11:$Z$315,13,0),0)","v":0},null,null,null,{"$f":"IFERROR(VLOOKUP(B93,'Schedule V(b)'!$B$11:$Z$315,17,0),0)","v":0},null,{"$f":"IFERROR(VLOOKUP(B93,'Schedule V(b)'!$B$11:$Z$315,25,0),0)","v":0},null,{"$f":"IFERROR(VLOOKUP(B93,'Schedule V(b)'!$B$11:$Z$315,23,0),0)","v":0}]
[83,null,null,{"$f":"IFERROR(VLOOKUP(B94,'Schedule V(b)'!$B$11:$Z$315,3,0),0)","v":0},null,{"$f":"IFERROR(VLOOKUP(B94,'Schedule V(b)'!$B$11:$Z$315,7,0),0)","v":"Select"},null,{"$f":"IFERROR(VLOOKUP(B94,'Schedule V(b)'!$B$11:$Z$315,9,0),0)","v":0},null,{"$f":"IFERROR(VLOOKUP(B94,'Schedule V(b)'!$B$11:$Z$315,11,0),0)","v":"Select"},null,{"$f":"IFERROR(VLOOKUP(B94,'Schedule V(b)'!$B$11:$Z$315,13,0),0)","v":0},null,null,null,{"$f":"IFERROR(VLOOKUP(B94,'Schedule V(b)'!$B$11:$Z$315,17,0),0)","v":0},null,{"$f":"IFERROR(VLOOKUP(B94,'Schedule V(b)'!$B$11:$Z$315,25,0),0)","v":0},null,{"$f":"IFERROR(VLOOKUP(B94,'Schedule V(b)'!$B$11:$Z$315,23,0),0)","v":0}]
[84,null,null,{"$f":"IFERROR(VLOOKUP(B95,'Schedule V(b)'!$B$11:$Z$315,3,0),0)","v":0},null,{"$f":"IFERROR(VLOOKUP(B95,'Schedule V(b)'!$B$11:$Z$315,7,0),0)","v":"Select"},null,{"$f":"IFERROR(VLOOKUP(B95,'Schedule V(b)'!$B$11:$Z$315,9,0),0)","v":0},null,{"$f":"IFERROR(VLOOKUP(B95,'Schedule V(b)'!$B$11:$Z$315,11,0),0)","v":"Select"},null,{"$f":"IFERROR(VLOOKUP(B95,'Schedule V(b)'!$B$11:$Z$315,13,0),0)","v":0},null,null,null,{"$f":"IFERROR(VLOOKUP(B95,'Schedule V(b)'!$B$11:$Z$315,17,0),0)","v":0},null,{"$f":"IFERROR(VLOOKUP(B95,'Schedule V(b)'!$B$11:$Z$315,25,0),0)","v":0},null,{"$f":"IFERROR(VLOOKUP(B95,'Schedule V(b)'!$B$11:$Z$315,23,0),0)","v":0}]
[85,null,null,{"$f":"IFERROR(VLOOKUP(B96,'Schedule V(b)'!$B$11:$Z$315,3,0),0)","v":0},null,{"$f":"IFERROR(VLOOKUP(B96,'Schedule V(b)'!$B$11:$Z$315,7,0),0)","v":"Select"},null,{"$f":"IFERROR(VLOOKUP(B96,'Schedule V(b)'!$B$11:$Z$315,9,0),0)","v":0},null,{"$f":"IFERROR(VLOOKUP(B96,'Schedule V(b)'!$B$11:$Z$315,11,0),0)","v":"Select"},null,{"$f":"IFERROR(VLOOKUP(B96,'Schedule V(b)'!$B$11:$Z$315,13,0),0)","v":0},null,null,null,{"$f":"IFERROR(VLOOKUP(B96,'Schedule V(b)'!$B$11:$Z$315,17,0),0)","v":0},null,{"$f":"IFERROR(VLOOKUP(B96,'Schedule V(b)'!$B$11:$Z$315,25,0),0)","v":0},null,{"$f":"IFERROR(VLOOKUP(B96,'Schedule V(b)'!$B$11:$Z$315,23,0),0)","v":0}]
[86,null,null,{"$f":"IFERROR(VLOOKUP(B97,'Schedule V(b)'!$B$11:$Z$315,3,0),0)","v":0},null,{"$f":"IFERROR(VLOOKUP(B97,'Schedule V(b)'!$B$11:$Z$315,7,0),0)","v":"Select"},null,{"$f":"IFERROR(VLOOKUP(B97,'Schedule V(b)'!$B$11:$Z$315,9,0),0)","v":0},null,{"$f":"IFERROR(VLOOKUP(B97,'Schedule V(b)'!$B$11:$Z$315,11,0),0)","v":"Select"},null,{"$f":"IFERROR(VLOOKUP(B97,'Schedule V(b)'!$B$11:$Z$315,13,0),0)","v":0},null,null,null,{"$f":"IFERROR(VLOOKUP(B97,'Schedule V(b)'!$B$11:$Z$315,17,0),0)","v":0},null,{"$f":"IFERROR(VLOOKUP(B97,'Schedule V(b)'!$B$11:$Z$315,25,0),0)","v":0},null,{"$f":"IFERROR(VLOOKUP(B97,'Schedule V(b)'!$B$11:$Z$315,23,0),0)","v":0}]
[87,null,null,{"$f":"IFERROR(VLOOKUP(B98,'Schedule V(b)'!$B$11:$Z$315,3,0),0)","v":0},null,{"$f":"IFERROR(VLOOKUP(B98,'Schedule V(b)'!$B$11:$Z$315,7,0),0)","v":"Select"},null,{"$f":"IFERROR(VLOOKUP(B98,'Schedule V(b)'!$B$11:$Z$315,9,0),0)","v":0},null,{"$f":"IFERROR(VLOOKUP(B98,'Schedule V(b)'!$B$11:$Z$315,11,0),0)","v":"Select"},null,{"$f":"IFERROR(VLOOKUP(B98,'Schedule V(b)'!$B$11:$Z$315,13,0),0)","v":0},null,null,null,{"$f":"IFERROR(VLOOKUP(B98,'Schedule V(b)'!$B$11:$Z$315,17,0),0)","v":0},null,{"$f":"IFERROR(VLOOKUP(B98,'Schedule V(b)'!$B$11:$Z$315,25,0),0)","v":0},null,{"$f":"IFERROR(VLOOKUP(B98,'Schedule V(b)'!$B$11:$Z$315,23,0),0)","v":0}]
[88,null,null,{"$f":"IFERROR(VLOOKUP(B99,'Schedule V(b)'!$B$11:$Z$315,3,0),0)","v":0},null,{"$f":"IFERROR(VLOOKUP(B99,'Schedule V(b)'!$B$11:$Z$315,7,0),0)","v":"Select"},null,{"$f":"IFERROR(VLOOKUP(B99,'Schedule V(b)'!$B$11:$Z$315,9,0),0)","v":0},null,{"$f":"IFERROR(VLOOKUP(B99,'Schedule V(b)'!$B$11:$Z$315,11,0),0)","v":"Select"},null,{"$f":"IFERROR(VLOOKUP(B99,'Schedule V(b)'!$B$11:$Z$315,13,0),0)","v":0},null,null,null,{"$f":"IFERROR(VLOOKUP(B99,'Schedule V(b)'!$B$11:$Z$315,17,0),0)","v":0},null,{"$f":"IFERROR(VLOOKUP(B99,'Schedule V(b)'!$B$11:$Z$315,25,0),0)","v":0},null,{"$f":"IFERROR(VLOOKUP(B99,'Schedule V(b)'!$B$11:$Z$315,23,0),0)","v":0}]
[89,null,null,{"$f":"IFERROR(VLOOKUP(B100,'Schedule V(b)'!$B$11:$Z$315,3,0),0)","v":0},null,{"$f":"IFERROR(VLOOKUP(B100,'Schedule V(b)'!$B$11:$Z$315,7,0),0)","v":"Select"},null,{"$f":"IFERROR(VLOOKUP(B100,'Schedule V(b)'!$B$11:$Z$315,9,0),0)","v":0},null,{"$f":"IFERROR(VLOOKUP(B100,'Schedule V(b)'!$B$11:$Z$315,11,0),0)","v":"Select"},null,{"$f":"IFERROR(VLOOKUP(B100,'Schedule V(b)'!$B$11:$Z$315,13,0),0)","v":0},null,null,null,{"$f":"IFERROR(VLOOKUP(B100,'Schedule V(b)'!$B$11:$Z$315,17,0),0)","v":0},null,{"$f":"IFERROR(VLOOKUP(B100,'Schedule V(b)'!$B$11:$Z$315,25,0),0)","v":0},null,{"$f":"IFERROR(VLOOKUP(B100,'Schedule V(b)'!$B$11:$Z$315,23,0),0)","v":0}]
[90,null,null,{"$f":"IFERROR(VLOOKUP(B101,'Schedule V(b)'!$B$11:$Z$315,3,0),0)","v":0},null,{"$f":"IFERROR(VLOOKUP(B101,'Schedule V(b)'!$B$11:$Z$315,7,0),0)","v":"Select"},null,{"$f":"IFERROR(VLOOKUP(B101,'Schedule V(b)'!$B$11:$Z$315,9,0),0)","v":0},null,{"$f":"IFERROR(VLOOKUP(B101,'Schedule V(b)'!$B$11:$Z$315,11,0),0)","v":"Select"},null,{"$f":"IFERROR(VLOOKUP(B101,'Schedule V(b)'!$B$11:$Z$315,13,0),0)","v":0},null,null,null,{"$f":"IFERROR(VLOOKUP(B101,'Schedule V(b)'!$B$11:$Z$315,17,0),0)","v":0},null,{"$f":"IFERROR(VLOOKUP(B101,'Schedule V(b)'!$B$11:$Z$315,25,0),0)","v":0},null,{"$f":"IFERROR(VLOOKUP(B101,'Schedule V(b)'!$B$11:$Z$315,23,0),0)","v":0}]
[91,null,null,{"$f":"IFERROR(VLOOKUP(B102,'Schedule V(b)'!$B$11:$Z$315,3,0),0)","v":0},null,{"$f":"IFERROR(VLOOKUP(B102,'Schedule V(b)'!$B$11:$Z$315,7,0),0)","v":"Select"},null,{"$f":"IFERROR(VLOOKUP(B102,'Schedule V(b)'!$B$11:$Z$315,9,0),0)","v":0},null,{"$f":"IFERROR(VLOOKUP(B102,'Schedule V(b)'!$B$11:$Z$315,11,0),0)","v":"Select"},null,{"$f":"IFERROR(VLOOKUP(B102,'Schedule V(b)'!$B$11:$Z$315,13,0),0)","v":0},null,null,null,{"$f":"IFERROR(VLOOKUP(B102,'Schedule V(b)'!$B$11:$Z$315,17,0),0)","v":0},null,{"$f":"IFERROR(VLOOKUP(B102,'Schedule V(b)'!$B$11:$Z$315,25,0),0)","v":0},null,{"$f":"IFERROR(VLOOKUP(B102,'Schedule V(b)'!$B$11:$Z$315,23,0),0)","v":0}]
[92,null,null,{"$f":"IFERROR(VLOOKUP(B103,'Schedule V(b)'!$B$11:$Z$315,3,0),0)","v":0},null,{"$f":"IFERROR(VLOOKUP(B103,'Schedule V(b)'!$B$11:$Z$315,7,0),0)","v":"Select"},null,{"$f":"IFERROR(VLOOKUP(B103,'Schedule V(b)'!$B$11:$Z$315,9,0),0)","v":0},null,{"$f":"IFERROR(VLOOKUP(B103,'Schedule V(b)'!$B$11:$Z$315,11,0),0)","v":"Select"},null,{"$f":"IFERROR(VLOOKUP(B103,'Schedule V(b)'!$B$11:$Z$315,13,0),0)","v":0},null,null,null,{"$f":"IFERROR(VLOOKUP(B103,'Schedule V(b)'!$B$11:$Z$315,17,0),0)","v":0},null,{"$f":"IFERROR(VLOOKUP(B103,'Schedule V(b)'!$B$11:$Z$315,25,0),0)","v":0},null,{"$f":"IFERROR(VLOOKUP(B103,'Schedule V(b)'!$B$11:$Z$315,23,0),0)","v":0}]
[93,null,null,{"$f":"IFERROR(VLOOKUP(B104,'Schedule V(b)'!$B$11:$Z$315,3,0),0)","v":0},null,{"$f":"IFERROR(VLOOKUP(B104,'Schedule V(b)'!$B$11:$Z$315,7,0),0)","v":"Select"},null,{"$f":"IFERROR(VLOOKUP(B104,'Schedule V(b)'!$B$11:$Z$315,9,0),0)","v":0},null,{"$f":"IFERROR(VLOOKUP(B104,'Schedule V(b)'!$B$11:$Z$315,11,0),0)","v":"Select"},null,{"$f":"IFERROR(VLOOKUP(B104,'Schedule V(b)'!$B$11:$Z$315,13,0),0)","v":0},null,null,null,{"$f":"IFERROR(VLOOKUP(B104,'Schedule V(b)'!$B$11:$Z$315,17,0),0)","v":0},null,{"$f":"IFERROR(VLOOKUP(B104,'Schedule V(b)'!$B$11:$Z$315,25,0),0)","v":0},null,{"$f":"IFERROR(VLOOKUP(B104,'Schedule V(b)'!$B$11:$Z$315,23,0),0)","v":0}]
[94,null,null,{"$f":"IFERROR(VLOOKUP(B105,'Schedule V(b)'!$B$11:$Z$315,3,0),0)","v":0},null,{"$f":"IFERROR(VLOOKUP(B105,'Schedule V(b)'!$B$11:$Z$315,7,0),0)","v":"Select"},null,{"$f":"IFERROR(VLOOKUP(B105,'Schedule V(b)'!$B$11:$Z$315,9,0),0)","v":0},null,{"$f":"IFERROR(VLOOKUP(B105,'Schedule V(b)'!$B$11:$Z$315,11,0),0)","v":"Select"},null,{"$f":"IFERROR(VLOOKUP(B105,'Schedule V(b)'!$B$11:$Z$315,13,0),0)","v":0},null,null,null,{"$f":"IFERROR(VLOOKUP(B105,'Schedule V(b)'!$B$11:$Z$315,17,0),0)","v":0},null,{"$f":"IFERROR(VLOOKUP(B105,'Schedule V(b)'!$B$11:$Z$315,25,0),0)","v":0},null,{"$f":"IFERROR(VLOOKUP(B105,'Schedule V(b)'!$B$11:$Z$315,23,0),0)","v":0}]
[95,null,null,{"$f":"IFERROR(VLOOKUP(B106,'Schedule V(b)'!$B$11:$Z$315,3,0),0)","v":0},null,{"$f":"IFERROR(VLOOKUP(B106,'Schedule V(b)'!$B$11:$Z$315,7,0),0)","v":"Select"},null,{"$f":"IFERROR(VLOOKUP(B106,'Schedule V(b)'!$B$11:$Z$315,9,0),0)","v":0},null,{"$f":"IFERROR(VLOOKUP(B106,'Schedule V(b)'!$B$11:$Z$315,11,0),0)","v":"Select"},null,{"$f":"IFERROR(VLOOKUP(B106,'Schedule V(b)'!$B$11:$Z$315,13,0),0)","v":0},null,null,null,{"$f":"IFERROR(VLOOKUP(B106,'Schedule V(b)'!$B$11:$Z$315,17,0),0)","v":0},null,{"$f":"IFERROR(VLOOKUP(B106,'Schedule V(b)'!$B$11:$Z$315,25,0),0)","v":0},null,{"$f":"IFERROR(VLOOKUP(B106,'Schedule V(b)'!$B$11:$Z$315,23,0),0)","v":0}]
[96,null,null,{"$f":"IFERROR(VLOOKUP(B107,'Schedule V(b)'!$B$11:$Z$315,3,0),0)","v":0},null,{"$f":"IFERROR(VLOOKUP(B107,'Schedule V(b)'!$B$11:$Z$315,7,0),0)","v":"Select"},null,{"$f":"IFERROR(VLOOKUP(B107,'Schedule V(b)'!$B$11:$Z$315,9,0),0)","v":0},null,{"$f":"IFERROR(VLOOKUP(B107,'Schedule V(b)'!$B$11:$Z$315,11,0),0)","v":"Select"},null,{"$f":"IFERROR(VLOOKUP(B107,'Schedule V(b)'!$B$11:$Z$315,13,0),0)","v":0},null,null,null,{"$f":"IFERROR(VLOOKUP(B107,'Schedule V(b)'!$B$11:$Z$315,17,0),0)","v":0},null,{"$f":"IFERROR(VLOOKUP(B107,'Schedule V(b)'!$B$11:$Z$315,25,0),0)","v":0},null,{"$f":"IFERROR(VLOOKUP(B107,'Schedule V(b)'!$B$11:$Z$315,23,0),0)","v":0}]
[97,null,null,{"$f":"IFERROR(VLOOKUP(B108,'Schedule V(b)'!$B$11:$Z$315,3,0),0)","v":0},null,{"$f":"IFERROR(VLOOKUP(B108,'Schedule V(b)'!$B$11:$Z$315,7,0),0)","v":"Select"},null,{"$f":"IFERROR(VLOOKUP(B108,'Schedule V(b)'!$B$11:$Z$315,9,0),0)","v":0},null,{"$f":"IFERROR(VLOOKUP(B108,'Schedule V(b)'!$B$11:$Z$315,11,0),0)","v":"Select"},null,{"$f":"IFERROR(VLOOKUP(B108,'Schedule V(b)'!$B$11:$Z$315,13,0),0)","v":0},null,null,null,{"$f":"IFERROR(VLOOKUP(B108,'Schedule V(b)'!$B$11:$Z$315,17,0),0)","v":0},null,{"$f":"IFERROR(VLOOKUP(B108,'Schedule V(b)'!$B$11:$Z$315,25,0),0)","v":0},null,{"$f":"IFERROR(VLOOKUP(B108,'Schedule V(b)'!$B$11:$Z$315,23,0),0)","v":0}]
[98,null,null,{"$f":"IFERROR(VLOOKUP(B109,'Schedule V(b)'!$B$11:$Z$315,3,0),0)","v":0},null,{"$f":"IFERROR(VLOOKUP(B109,'Schedule V(b)'!$B$11:$Z$315,7,0),0)","v":"Select"},null,{"$f":"IFERROR(VLOOKUP(B109,'Schedule V(b)'!$B$11:$Z$315,9,0),0)","v":0},null,{"$f":"IFERROR(VLOOKUP(B109,'Schedule V(b)'!$B$11:$Z$315,11,0),0)","v":"Select"},null,{"$f":"IFERROR(VLOOKUP(B109,'Schedule V(b)'!$B$11:$Z$315,13,0),0)","v":0},null,null,null,{"$f":"IFERROR(VLOOKUP(B109,'Schedule V(b)'!$B$11:$Z$315,17,0),0)","v":0},null,{"$f":"IFERROR(VLOOKUP(B109,'Schedule V(b)'!$B$11:$Z$315,25,0),0)","v":0},null,{"$f":"IFERROR(VLOOKUP(B109,'Schedule V(b)'!$B$11:$Z$315,23,0),0)","v":0}]
[99,null,null,{"$f":"IFERROR(VLOOKUP(B110,'Schedule V(b)'!$B$11:$Z$315,3,0),0)","v":0},null,{"$f":"IFERROR(VLOOKUP(B110,'Schedule V(b)'!$B$11:$Z$315,7,0),0)","v":"Select"},null,{"$f":"IFERROR(VLOOKUP(B110,'Schedule V(b)'!$B$11:$Z$315,9,0),0)","v":0},null,{"$f":"IFERROR(VLOOKUP(B110,'Schedule V(b)'!$B$11:$Z$315,11,0),0)","v":"Select"},null,{"$f":"IFERROR(VLOOKUP(B110,'Schedule V(b)'!$B$11:$Z$315,13,0),0)","v":0},null,null,null,{"$f":"IFERROR(VLOOKUP(B110,'Schedule V(b)'!$B$11:$Z$315,17,0),0)","v":0},null,{"$f":"IFERROR(VLOOKUP(B110,'Schedule V(b)'!$B$11:$Z$315,25,0),0)","v":0},null,{"$f":"IFERROR(VLOOKUP(B110,'Schedule V(b)'!$B$11:$Z$315,23,0),0)","v":0}]
[100,null,null,{"$f":"IFERROR(VLOOKUP(B111,'Schedule V(b)'!$B$11:$Z$315,3,0),0)","v":0},null,{"$f":"IFERROR(VLOOKUP(B111,'Schedule V(b)'!$B$11:$Z$315,7,0),0)","v":"Select"},null,{"$f":"IFERROR(VLOOKUP(B111,'Schedule V(b)'!$B$11:$Z$315,9,0),0)","v":0},null,{"$f":"IFERROR(VLOOKUP(B111,'Schedule V(b)'!$B$11:$Z$315,11,0),0)","v":"Select"},null,{"$f":"IFERROR(VLOOKUP(B111,'Schedule V(b)'!$B$11:$Z$315,13,0),0)","v":0},null,null,null,{"$f":"IFERROR(VLOOKUP(B111,'Schedule V(b)'!$B$11:$Z$315,17,0),0)","v":0},null,{"$f":"IFERROR(VLOOKUP(B111,'Schedule V(b)'!$B$11:$Z$315,25,0),0)","v":0},null,{"$f":"IFERROR(VLOOKUP(B111,'Schedule V(b)'!$B$11:$Z$315,23,0),0)","v":0}]
[101,null,null,{"$f":"IFERROR(VLOOKUP(B112,'Schedule V(b)'!$B$11:$Z$315,3,0),0)","v":0},null,{"$f":"IFERROR(VLOOKUP(B112,'Schedule V(b)'!$B$11:$Z$315,7,0),0)","v":"Select"},null,{"$f":"IFERROR(VLOOKUP(B112,'Schedule V(b)'!$B$11:$Z$315,9,0),0)","v":0},null,{"$f":"IFERROR(VLOOKUP(B112,'Schedule V(b)'!$B$11:$Z$315,11,0),0)","v":"Select"},null,{"$f":"IFERROR(VLOOKUP(B112,'Schedule V(b)'!$B$11:$Z$315,13,0),0)","v":0},null,null,null,{"$f":"IFERROR(VLOOKUP(B112,'Schedule V(b)'!$B$11:$Z$315,17,0),0)","v":0},null,{"$f":"IFERROR(VLOOKUP(B112,'Schedule V(b)'!$B$11:$Z$315,25,0),0)","v":0},null,{"$f":"IFERROR(VLOOKUP(B112,'Schedule V(b)'!$B$11:$Z$315,23,0),0)","v":0}]
[102,null,null,{"$f":"IFERROR(VLOOKUP(B113,'Schedule V(b)'!$B$11:$Z$315,3,0),0)","v":0},null,{"$f":"IFERROR(VLOOKUP(B113,'Schedule V(b)'!$B$11:$Z$315,7,0),0)","v":"Select"},null,{"$f":"IFERROR(VLOOKUP(B113,'Schedule V(b)'!$B$11:$Z$315,9,0),0)","v":0},null,{"$f":"IFERROR(VLOOKUP(B113,'Schedule V(b)'!$B$11:$Z$315,11,0),0)","v":"Select"},null,{"$f":"IFERROR(VLOOKUP(B113,'Schedule V(b)'!$B$11:$Z$315,13,0),0)","v":0},null,null,null,{"$f":"IFERROR(VLOOKUP(B113,'Schedule V(b)'!$B$11:$Z$315,17,0),0)","v":0},null,{"$f":"IFERROR(VLOOKUP(B113,'Schedule V(b)'!$B$11:$Z$315,25,0),0)","v":0},null,{"$f":"IFERROR(VLOOKUP(B113,'Schedule V(b)'!$B$11:$Z$315,23,0),0)","v":0}]
[103,null,null,{"$f":"IFERROR(VLOOKUP(B114,'Schedule V(b)'!$B$11:$Z$315,3,0),0)","v":0},null,{"$f":"IFERROR(VLOOKUP(B114,'Schedule V(b)'!$B$11:$Z$315,7,0),0)","v":"Select"},null,{"$f":"IFERROR(VLOOKUP(B114,'Schedule V(b)'!$B$11:$Z$315,9,0),0)","v":0},null,{"$f":"IFERROR(VLOOKUP(B114,'Schedule V(b)'!$B$11:$Z$315,11,0),0)","v":"Select"},null,{"$f":"IFERROR(VLOOKUP(B114,'Schedule V(b)'!$B$11:$Z$315,13,0),0)","v":0},null,null,null,{"$f":"IFERROR(VLOOKUP(B114,'Schedule V(b)'!$B$11:$Z$315,17,0),0)","v":0},null,{"$f":"IFERROR(VLOOKUP(B114,'Schedule V(b)'!$B$11:$Z$315,25,0),0)","v":0},null,{"$f":"IFERROR(VLOOKUP(B114,'Schedule V(b)'!$B$11:$Z$315,23,0),0)","v":0}]
[104,null,null,{"$f":"IFERROR(VLOOKUP(B115,'Schedule V(b)'!$B$11:$Z$315,3,0),0)","v":0},null,{"$f":"IFERROR(VLOOKUP(B115,'Schedule V(b)'!$B$11:$Z$315,7,0),0)","v":"Select"},null,{"$f":"IFERROR(VLOOKUP(B115,'Schedule V(b)'!$B$11:$Z$315,9,0),0)","v":0},null,{"$f":"IFERROR(VLOOKUP(B115,'Schedule V(b)'!$B$11:$Z$315,11,0),0)","v":"Select"},null,{"$f":"IFERROR(VLOOKUP(B115,'Schedule V(b)'!$B$11:$Z$315,13,0),0)","v":0},null,null,null,{"$f":"IFERROR(VLOOKUP(B115,'Schedule V(b)'!$B$11:$Z$315,17,0),0)","v":0},null,{"$f":"IFERROR(VLOOKUP(B115,'Schedule V(b)'!$B$11:$Z$315,25,0),0)","v":0},null,{"$f":"IFERROR(VLOOKUP(B115,'Schedule V(b)'!$B$11:$Z$315,23,0),0)","v":0}]
[105,null,null,{"$f":"IFERROR(VLOOKUP(B116,'Schedule V(b)'!$B$11:$Z$315,3,0),0)","v":0},null,{"$f":"IFERROR(VLOOKUP(B116,'Schedule V(b)'!$B$11:$Z$315,7,0),0)","v":"Select"},null,{"$f":"IFERROR(VLOOKUP(B116,'Schedule V(b)'!$B$11:$Z$315,9,0),0)","v":0},null,{"$f":"IFERROR(VLOOKUP(B116,'Schedule V(b)'!$B$11:$Z$315,11,0),0)","v":"Select"},null,{"$f":"IFERROR(VLOOKUP(B116,'Schedule V(b)'!$B$11:$Z$315,13,0),0)","v":0},null,null,null,{"$f":"IFERROR(VLOOKUP(B116,'Schedule V(b)'!$B$11:$Z$315,17,0),0)","v":0},null,{"$f":"IFERROR(VLOOKUP(B116,'Schedule V(b)'!$B$11:$Z$315,25,0),0)","v":0},null,{"$f":"IFERROR(VLOOKUP(B116,'Schedule V(b)'!$B$11:$Z$315,23,0),0)","v":0}]
[106,null,null,{"$f":"IFERROR(VLOOKUP(B117,'Schedule V(b)'!$B$11:$Z$315,3,0),0)","v":0},null,{"$f":"IFERROR(VLOOKUP(B117,'Schedule V(b)'!$B$11:$Z$315,7,0),0)","v":"Select"},null,{"$f":"IFERROR(VLOOKUP(B117,'Schedule V(b)'!$B$11:$Z$315,9,0),0)","v":0},null,{"$f":"IFERROR(VLOOKUP(B117,'Schedule V(b)'!$B$11:$Z$315,11,0),0)","v":"Select"},null,{"$f":"IFERROR(VLOOKUP(B117,'Schedule V(b)'!$B$11:$Z$315,13,0),0)","v":0},null,null,null,{"$f":"IFERROR(VLOOKUP(B117,'Schedule V(b)'!$B$11:$Z$315,17,0),0)","v":0},null,{"$f":"IFERROR(VLOOKUP(B117,'Schedule V(b)'!$B$11:$Z$315,25,0),0)","v":0},null,{"$f":"IFERROR(VLOOKUP(B117,'Schedule V(b)'!$B$11:$Z$315,23,0),0)","v":0}]
[107,null,null,{"$f":"IFERROR(VLOOKUP(B118,'Schedule V(b)'!$B$11:$Z$315,3,0),0)","v":0},null,{"$f":"IFERROR(VLOOKUP(B118,'Schedule V(b)'!$B$11:$Z$315,7,0),0)","v":"Select"},null,{"$f":"IFERROR(VLOOKUP(B118,'Schedule V(b)'!$B$11:$Z$315,9,0),0)","v":0},null,{"$f":"IFERROR(VLOOKUP(B118,'Schedule V(b)'!$B$11:$Z$315,11,0),0)","v":"Select"},null,{"$f":"IFERROR(VLOOKUP(B118,'Schedule V(b)'!$B$11:$Z$315,13,0),0)","v":0},null,null,null,{"$f":"IFERROR(VLOOKUP(B118,'Schedule V(b)'!$B$11:$Z$315,17,0),0)","v":0},null,{"$f":"IFERROR(VLOOKUP(B118,'Schedule V(b)'!$B$11:$Z$315,25,0),0)","v":0},null,{"$f":"IFERROR(VLOOKUP(B118,'Schedule V(b)'!$B$11:$Z$315,23,0),0)","v":0}]
[108,null,null,{"$f":"IFERROR(VLOOKUP(B119,'Schedule V(b)'!$B$11:$Z$315,3,0),0)","v":0},null,{"$f":"IFERROR(VLOOKUP(B119,'Schedule V(b)'!$B$11:$Z$315,7,0),0)","v":"Select"},null,{"$f":"IFERROR(VLOOKUP(B119,'Schedule V(b)'!$B$11:$Z$315,9,0),0)","v":0},null,{"$f":"IFERROR(VLOOKUP(B119,'Schedule V(b)'!$B$11:$Z$315,11,0),0)","v":"Select"},null,{"$f":"IFERROR(VLOOKUP(B119,'Schedule V(b)'!$B$11:$Z$315,13,0),0)","v":0},null,null,null,{"$f":"IFERROR(VLOOKUP(B119,'Schedule V(b)'!$B$11:$Z$315,17,0),0)","v":0},null,{"$f":"IFERROR(VLOOKUP(B119,'Schedule V(b)'!$B$11:$Z$315,25,0),0)","v":0},null,{"$f":"IFERROR(VLOOKUP(B119,'Schedule V(b)'!$B$11:$Z$315,23,0),0)","v":0}]
[109,null,null,{"$f":"IFERROR(VLOOKUP(B120,'Schedule V(b)'!$B$11:$Z$315,3,0),0)","v":0},null,{"$f":"IFERROR(VLOOKUP(B120,'Schedule V(b)'!$B$11:$Z$315,7,0),0)","v":"Select"},null,{"$f":"IFERROR(VLOOKUP(B120,'Schedule V(b)'!$B$11:$Z$315,9,0),0)","v":0},null,{"$f":"IFERROR(VLOOKUP(B120,'Schedule V(b)'!$B$11:$Z$315,11,0),0)","v":"Select"},null,{"$f":"IFERROR(VLOOKUP(B120,'Schedule V(b)'!$B$11:$Z$315,13,0),0)","v":0},null,null,null,{"$f":"IFERROR(VLOOKUP(B120,'Schedule V(b)'!$B$11:$Z$315,17,0),0)","v":0},null,{"$f":"IFERROR(VLOOKUP(B120,'Schedule V(b)'!$B$11:$Z$315,25,0),0)","v":0},null,{"$f":"IFERROR(VLOOKUP(B120,'Schedule V(b)'!$B$11:$Z$315,23,0),0)","v":0}]
[110,null,null,{"$f":"IFERROR(VLOOKUP(B121,'Schedule V(b)'!$B$11:$Z$315,3,0),0)","v":0},null,{"$f":"IFERROR(VLOOKUP(B121,'Schedule V(b)'!$B$11:$Z$315,7,0),0)","v":"Select"},null,{"$f":"IFERROR(VLOOKUP(B121,'Schedule V(b)'!$B$11:$Z$315,9,0),0)","v":0},null,{"$f":"IFERROR(VLOOKUP(B121,'Schedule V(b)'!$B$11:$Z$315,11,0),0)","v":"Select"},null,{"$f":"IFERROR(VLOOKUP(B121,'Schedule V(b)'!$B$11:$Z$315,13,0),0)","v":0},null,null,null,{"$f":"IFERROR(VLOOKUP(B121,'Schedule V(b)'!$B$11:$Z$315,17,0),0)","v":0},null,{"$f":"IFERROR(VLOOKUP(B121,'Schedule V(b)'!$B$11:$Z$315,25,0),0)","v":0},null,{"$f":"IFERROR(VLOOKUP(B121,'Schedule V(b)'!$B$11:$Z$315,23,0),0)","v":0}]
[111,null,null,{"$f":"IFERROR(VLOOKUP(B122,'Schedule V(b)'!$B$11:$Z$315,3,0),0)","v":0},null,{"$f":"IFERROR(VLOOKUP(B122,'Schedule V(b)'!$B$11:$Z$315,7,0),0)","v":"Select"},null,{"$f":"IFERROR(VLOOKUP(B122,'Schedule V(b)'!$B$11:$Z$315,9,0),0)","v":0},null,{"$f":"IFERROR(VLOOKUP(B122,'Schedule V(b)'!$B$11:$Z$315,11,0),0)","v":"Select"},null,{"$f":"IFERROR(VLOOKUP(B122,'Schedule V(b)'!$B$11:$Z$315,13,0),0)","v":0},null,null,null,{"$f":"IFERROR(VLOOKUP(B122,'Schedule V(b)'!$B$11:$Z$315,17,0),0)","v":0},null,{"$f":"IFERROR(VLOOKUP(B122,'Schedule V(b)'!$B$11:$Z$315,25,0),0)","v":0},null,{"$f":"IFERROR(VLOOKUP(B122,'Schedule V(b)'!$B$11:$Z$315,23,0),0)","v":0}]
[112,null,null,{"$f":"IFERROR(VLOOKUP(B123,'Schedule V(b)'!$B$11:$Z$315,3,0),0)","v":0},null,{"$f":"IFERROR(VLOOKUP(B123,'Schedule V(b)'!$B$11:$Z$315,7,0),0)","v":"Select"},null,{"$f":"IFERROR(VLOOKUP(B123,'Schedule V(b)'!$B$11:$Z$315,9,0),0)","v":0},null,{"$f":"IFERROR(VLOOKUP(B123,'Schedule V(b)'!$B$11:$Z$315,11,0),0)","v":"Select"},null,{"$f":"IFERROR(VLOOKUP(B123,'Schedule V(b)'!$B$11:$Z$315,13,0),0)","v":0},null,null,null,{"$f":"IFERROR(VLOOKUP(B123,'Schedule V(b)'!$B$11:$Z$315,17,0),0)","v":0},null,{"$f":"IFERROR(VLOOKUP(B123,'Schedule V(b)'!$B$11:$Z$315,25,0),0)","v":0},null,{"$f":"IFERROR(VLOOKUP(B123,'Schedule V(b)'!$B$11:$Z$315,23,0),0)","v":0}]
[113,null,null,{"$f":"IFERROR(VLOOKUP(B124,'Schedule V(b)'!$B$11:$Z$315,3,0),0)","v":0},null,{"$f":"IFERROR(VLOOKUP(B124,'Schedule V(b)'!$B$11:$Z$315,7,0),0)","v":"Select"},null,{"$f":"IFERROR(VLOOKUP(B124,'Schedule V(b)'!$B$11:$Z$315,9,0),0)","v":0},null,{"$f":"IFERROR(VLOOKUP(B124,'Schedule V(b)'!$B$11:$Z$315,11,0),0)","v":"Select"},null,{"$f":"IFERROR(VLOOKUP(B124,'Schedule V(b)'!$B$11:$Z$315,13,0),0)","v":0},null,null,null,{"$f":"IFERROR(VLOOKUP(B124,'Schedule V(b)'!$B$11:$Z$315,17,0),0)","v":0},null,{"$f":"IFERROR(VLOOKUP(B124,'Schedule V(b)'!$B$11:$Z$315,25,0),0)","v":0},null,{"$f":"IFERROR(VLOOKUP(B124,'Schedule V(b)'!$B$11:$Z$315,23,0),0)","v":0}]
[114,null,null,{"$f":"IFERROR(VLOOKUP(B125,'Schedule V(b)'!$B$11:$Z$315,3,0),0)","v":0},null,{"$f":"IFERROR(VLOOKUP(B125,'Schedule V(b)'!$B$11:$Z$315,7,0),0)","v":"Select"},null,{"$f":"IFERROR(VLOOKUP(B125,'Schedule V(b)'!$B$11:$Z$315,9,0),0)","v":0},null,{"$f":"IFERROR(VLOOKUP(B125,'Schedule V(b)'!$B$11:$Z$315,11,0),0)","v":"Select"},null,{"$f":"IFERROR(VLOOKUP(B125,'Schedule V(b)'!$B$11:$Z$315,13,0),0)","v":0},null,null,null,{"$f":"IFERROR(VLOOKUP(B125,'Schedule V(b)'!$B$11:$Z$315,17,0),0)","v":0},null,{"$f":"IFERROR(VLOOKUP(B125,'Schedule V(b)'!$B$11:$Z$315,25,0),0)","v":0},null,{"$f":"IFERROR(VLOOKUP(B125,'Schedule V(b)'!$B$11:$Z$315,23,0),0)","v":0}]
[115,null,null,{"$f":"IFERROR(VLOOKUP(B126,'Schedule V(b)'!$B$11:$Z$315,3,0),0)","v":0},null,{"$f":"IFERROR(VLOOKUP(B126,'Schedule V(b)'!$B$11:$Z$315,7,0),0)","v":"Select"},null,{"$f":"IFERROR(VLOOKUP(B126,'Schedule V(b)'!$B$11:$Z$315,9,0),0)","v":0},null,{"$f":"IFERROR(VLOOKUP(B126,'Schedule V(b)'!$B$11:$Z$315,11,0),0)","v":"Select"},null,{"$f":"IFERROR(VLOOKUP(B126,'Schedule V(b)'!$B$11:$Z$315,13,0),0)","v":0},null,null,null,{"$f":"IFERROR(VLOOKUP(B126,'Schedule V(b)'!$B$11:$Z$315,17,0),0)","v":0},null,{"$f":"IFERROR(VLOOKUP(B126,'Schedule V(b)'!$B$11:$Z$315,25,0),0)","v":0},null,{"$f":"IFERROR(VLOOKUP(B126,'Schedule V(b)'!$B$11:$Z$315,23,0),0)","v":0}]
[116,null,null,{"$f":"IFERROR(VLOOKUP(B127,'Schedule V(b)'!$B$11:$Z$315,3,0),0)","v":0},null,{"$f":"IFERROR(VLOOKUP(B127,'Schedule V(b)'!$B$11:$Z$315,7,0),0)","v":"Select"},null,{"$f":"IFERROR(VLOOKUP(B127,'Schedule V(b)'!$B$11:$Z$315,9,0),0)","v":0},null,{"$f":"IFERROR(VLOOKUP(B127,'Schedule V(b)'!$B$11:$Z$315,11,0),0)","v":"Select"},null,{"$f":"IFERROR(VLOOKUP(B127,'Schedule V(b)'!$B$11:$Z$315,13,0),0)","v":0},null,null,null,{"$f":"IFERROR(VLOOKUP(B127,'Schedule V(b)'!$B$11:$Z$315,17,0),0)","v":0},null,{"$f":"IFERROR(VLOOKUP(B127,'Schedule V(b)'!$B$11:$Z$315,25,0),0)","v":0},null,{"$f":"IFERROR(VLOOKUP(B127,'Schedule V(b)'!$B$11:$Z$315,23,0),0)","v":0}]
[117,null,null,{"$f":"IFERROR(VLOOKUP(B128,'Schedule V(b)'!$B$11:$Z$315,3,0),0)","v":0},null,{"$f":"IFERROR(VLOOKUP(B128,'Schedule V(b)'!$B$11:$Z$315,7,0),0)","v":"Select"},null,{"$f":"IFERROR(VLOOKUP(B128,'Schedule V(b)'!$B$11:$Z$315,9,0),0)","v":0},null,{"$f":"IFERROR(VLOOKUP(B128,'Schedule V(b)'!$B$11:$Z$315,11,0),0)","v":"Select"},null,{"$f":"IFERROR(VLOOKUP(B128,'Schedule V(b)'!$B$11:$Z$315,13,0),0)","v":0},null,null,null,{"$f":"IFERROR(VLOOKUP(B128,'Schedule V(b)'!$B$11:$Z$315,17,0),0)","v":0},null,{"$f":"IFERROR(VLOOKUP(B128,'Schedule V(b)'!$B$11:$Z$315,25,0),0)","v":0},null,{"$f":"IFERROR(VLOOKUP(B128,'Schedule V(b)'!$B$11:$Z$315,23,0),0)","v":0}]
[118,null,null,{"$f":"IFERROR(VLOOKUP(B129,'Schedule V(b)'!$B$11:$Z$315,3,0),0)","v":0},null,{"$f":"IFERROR(VLOOKUP(B129,'Schedule V(b)'!$B$11:$Z$315,7,0),0)","v":"Select"},null,{"$f":"IFERROR(VLOOKUP(B129,'Schedule V(b)'!$B$11:$Z$315,9,0),0)","v":0},null,{"$f":"IFERROR(VLOOKUP(B129,'Schedule V(b)'!$B$11:$Z$315,11,0),0)","v":"Select"},null,{"$f":"IFERROR(VLOOKUP(B129,'Schedule V(b)'!$B$11:$Z$315,13,0),0)","v":0},null,null,null,{"$f":"IFERROR(VLOOKUP(B129,'Schedule V(b)'!$B$11:$Z$315,17,0),0)","v":0},null,{"$f":"IFERROR(VLOOKUP(B129,'Schedule V(b)'!$B$11:$Z$315,25,0),0)","v":0},null,{"$f":"IFERROR(VLOOKUP(B129,'Schedule V(b)'!$B$11:$Z$315,23,0),0)","v":0}]
[119,null,null,{"$f":"IFERROR(VLOOKUP(B130,'Schedule V(b)'!$B$11:$Z$315,3,0),0)","v":0},null,{"$f":"IFERROR(VLOOKUP(B130,'Schedule V(b)'!$B$11:$Z$315,7,0),0)","v":"Select"},null,{"$f":"IFERROR(VLOOKUP(B130,'Schedule V(b)'!$B$11:$Z$315,9,0),0)","v":0},null,{"$f":"IFERROR(VLOOKUP(B130,'Schedule V(b)'!$B$11:$Z$315,11,0),0)","v":"Select"},null,{"$f":"IFERROR(VLOOKUP(B130,'Schedule V(b)'!$B$11:$Z$315,13,0),0)","v":0},null,null,null,{"$f":"IFERROR(VLOOKUP(B130,'Schedule V(b)'!$B$11:$Z$315,17,0),0)","v":0},null,{"$f":"IFERROR(VLOOKUP(B130,'Schedule V(b)'!$B$11:$Z$315,25,0),0)","v":0},null,{"$f":"IFERROR(VLOOKUP(B130,'Schedule V(b)'!$B$11:$Z$315,23,0),0)","v":0}]
[120,null,null,{"$f":"IFERROR(VLOOKUP(B131,'Schedule V(b)'!$B$11:$Z$315,3,0),0)","v":0},null,{"$f":"IFERROR(VLOOKUP(B131,'Schedule V(b)'!$B$11:$Z$315,7,0),0)","v":"Select"},null,{"$f":"IFERROR(VLOOKUP(B131,'Schedule V(b)'!$B$11:$Z$315,9,0),0)","v":0},null,{"$f":"IFERROR(VLOOKUP(B131,'Schedule V(b)'!$B$11:$Z$315,11,0),0)","v":"Select"},null,{"$f":"IFERROR(VLOOKUP(B131,'Schedule V(b)'!$B$11:$Z$315,13,0),0)","v":0},null,null,null,{"$f":"IFERROR(VLOOKUP(B131,'Schedule V(b)'!$B$11:$Z$315,17,0),0)","v":0},null,{"$f":"IFERROR(VLOOKUP(B131,'Schedule V(b)'!$B$11:$Z$315,25,0),0)","v":0},null,{"$f":"IFERROR(VLOOKUP(B131,'Schedule V(b)'!$B$11:$Z$315,23,0),0)","v":0}]
[121,null,null,{"$f":"IFERROR(VLOOKUP(B132,'Schedule V(b)'!$B$11:$Z$315,3,0),0)","v":0},null,{"$f":"IFERROR(VLOOKUP(B132,'Schedule V(b)'!$B$11:$Z$315,7,0),0)","v":"Select"},null,{"$f":"IFERROR(VLOOKUP(B132,'Schedule V(b)'!$B$11:$Z$315,9,0),0)","v":0},null,{"$f":"IFERROR(VLOOKUP(B132,'Schedule V(b)'!$B$11:$Z$315,11,0),0)","v":"Select"},null,{"$f":"IFERROR(VLOOKUP(B132,'Schedule V(b)'!$B$11:$Z$315,13,0),0)","v":0},null,null,null,{"$f":"IFERROR(VLOOKUP(B132,'Schedule V(b)'!$B$11:$Z$315,17,0),0)","v":0},null,{"$f":"IFERROR(VLOOKUP(B132,'Schedule V(b)'!$B$11:$Z$315,25,0),0)","v":0},null,{"$f":"IFERROR(VLOOKUP(B132,'Schedule V(b)'!$B$11:$Z$315,23,0),0)","v":0}]
[122,null,null,{"$f":"IFERROR(VLOOKUP(B133,'Schedule V(b)'!$B$11:$Z$315,3,0),0)","v":0},null,{"$f":"IFERROR(VLOOKUP(B133,'Schedule V(b)'!$B$11:$Z$315,7,0),0)","v":"Select"},null,{"$f":"IFERROR(VLOOKUP(B133,'Schedule V(b)'!$B$11:$Z$315,9,0),0)","v":0},null,{"$f":"IFERROR(VLOOKUP(B133,'Schedule V(b)'!$B$11:$Z$315,11,0),0)","v":"Select"},null,{"$f":"IFERROR(VLOOKUP(B133,'Schedule V(b)'!$B$11:$Z$315,13,0),0)","v":0},null,null,null,{"$f":"IFERROR(VLOOKUP(B133,'Schedule V(b)'!$B$11:$Z$315,17,0),0)","v":0},null,{"$f":"IFERROR(VLOOKUP(B133,'Schedule V(b)'!$B$11:$Z$315,25,0),0)","v":0},null,{"$f":"IFERROR(VLOOKUP(B133,'Schedule V(b)'!$B$11:$Z$315,23,0),0)","v":0}]
[123,null,null,{"$f":"IFERROR(VLOOKUP(B134,'Schedule V(b)'!$B$11:$Z$315,3,0),0)","v":0},null,{"$f":"IFERROR(VLOOKUP(B134,'Schedule V(b)'!$B$11:$Z$315,7,0),0)","v":"Select"},null,{"$f":"IFERROR(VLOOKUP(B134,'Schedule V(b)'!$B$11:$Z$315,9,0),0)","v":0},null,{"$f":"IFERROR(VLOOKUP(B134,'Schedule V(b)'!$B$11:$Z$315,11,0),0)","v":"Select"},null,{"$f":"IFERROR(VLOOKUP(B134,'Schedule V(b)'!$B$11:$Z$315,13,0),0)","v":0},null,null,null,{"$f":"IFERROR(VLOOKUP(B134,'Schedule V(b)'!$B$11:$Z$315,17,0),0)","v":0},null,{"$f":"IFERROR(VLOOKUP(B134,'Schedule V(b)'!$B$11:$Z$315,25,0),0)","v":0},null,{"$f":"IFERROR(VLOOKUP(B134,'Schedule V(b)'!$B$11:$Z$315,23,0),0)","v":0}]
[124,null,null,{"$f":"IFERROR(VLOOKUP(B135,'Schedule V(b)'!$B$11:$Z$315,3,0),0)","v":0},null,{"$f":"IFERROR(VLOOKUP(B135,'Schedule V(b)'!$B$11:$Z$315,7,0),0)","v":"Select"},null,{"$f":"IFERROR(VLOOKUP(B135,'Schedule V(b)'!$B$11:$Z$315,9,0),0)","v":0},null,{"$f":"IFERROR(VLOOKUP(B135,'Schedule V(b)'!$B$11:$Z$315,11,0),0)","v":"Select"},null,{"$f":"IFERROR(VLOOKUP(B135,'Schedule V(b)'!$B$11:$Z$315,13,0),0)","v":0},null,null,null,{"$f":"IFERROR(VLOOKUP(B135,'Schedule V(b)'!$B$11:$Z$315,17,0),0)","v":0},null,{"$f":"IFERROR(VLOOKUP(B135,'Schedule V(b)'!$B$11:$Z$315,25,0),0)","v":0},null,{"$f":"IFERROR(VLOOKUP(B135,'Schedule V(b)'!$B$11:$Z$315,23,0),0)","v":0}]
[125,null,null,{"$f":"IFERROR(VLOOKUP(B136,'Schedule V(b)'!$B$11:$Z$315,3,0),0)","v":0},null,{"$f":"IFERROR(VLOOKUP(B136,'Schedule V(b)'!$B$11:$Z$315,7,0),0)","v":"Select"},null,{"$f":"IFERROR(VLOOKUP(B136,'Schedule V(b)'!$B$11:$Z$315,9,0),0)","v":0},null,{"$f":"IFERROR(VLOOKUP(B136,'Schedule V(b)'!$B$11:$Z$315,11,0),0)","v":"Select"},null,{"$f":"IFERROR(VLOOKUP(B136,'Schedule V(b)'!$B$11:$Z$315,13,0),0)","v":0},null,null,null,{"$f":"IFERROR(VLOOKUP(B136,'Schedule V(b)'!$B$11:$Z$315,17,0),0)","v":0},null,{"$f":"IFERROR(VLOOKUP(B136,'Schedule V(b)'!$B$11:$Z$315,25,0),0)","v":0},null,{"$f":"IFERROR(VLOOKUP(B136,'Schedule V(b)'!$B$11:$Z$315,23,0),0)","v":0}]
[126,null,null,{"$f":"IFERROR(VLOOKUP(B137,'Schedule V(b)'!$B$11:$Z$315,3,0),0)","v":0},null,{"$f":"IFERROR(VLOOKUP(B137,'Schedule V(b)'!$B$11:$Z$315,7,0),0)","v":"Select"},null,{"$f":"IFERROR(VLOOKUP(B137,'Schedule V(b)'!$B$11:$Z$315,9,0),0)","v":0},null,{"$f":"IFERROR(VLOOKUP(B137,'Schedule V(b)'!$B$11:$Z$315,11,0),0)","v":"Select"},null,{"$f":"IFERROR(VLOOKUP(B137,'Schedule V(b)'!$B$11:$Z$315,13,0),0)","v":0},null,null,null,{"$f":"IFERROR(VLOOKUP(B137,'Schedule V(b)'!$B$11:$Z$315,17,0),0)","v":0},null,{"$f":"IFERROR(VLOOKUP(B137,'Schedule V(b)'!$B$11:$Z$315,25,0),0)","v":0},null,{"$f":"IFERROR(VLOOKUP(B137,'Schedule V(b)'!$B$11:$Z$315,23,0),0)","v":0}]
[127,null,null,{"$f":"IFERROR(VLOOKUP(B138,'Schedule V(b)'!$B$11:$Z$315,3,0),0)","v":0},null,{"$f":"IFERROR(VLOOKUP(B138,'Schedule V(b)'!$B$11:$Z$315,7,0),0)","v":"Select"},null,{"$f":"IFERROR(VLOOKUP(B138,'Schedule V(b)'!$B$11:$Z$315,9,0),0)","v":0},null,{"$f":"IFERROR(VLOOKUP(B138,'Schedule V(b)'!$B$11:$Z$315,11,0),0)","v":"Select"},null,{"$f":"IFERROR(VLOOKUP(B138,'Schedule V(b)'!$B$11:$Z$315,13,0),0)","v":0},null,null,null,{"$f":"IFERROR(VLOOKUP(B138,'Schedule V(b)'!$B$11:$Z$315,17,0),0)","v":0},null,{"$f":"IFERROR(VLOOKUP(B138,'Schedule V(b)'!$B$11:$Z$315,25,0),0)","v":0},null,{"$f":"IFERROR(VLOOKUP(B138,'Schedule V(b)'!$B$11:$Z$315,23,0),0)","v":0}]
[128,null,null,{"$f":"IFERROR(VLOOKUP(B139,'Schedule V(b)'!$B$11:$Z$315,3,0),0)","v":0},null,{"$f":"IFERROR(VLOOKUP(B139,'Schedule V(b)'!$B$11:$Z$315,7,0),0)","v":"Select"},null,{"$f":"IFERROR(VLOOKUP(B139,'Schedule V(b)'!$B$11:$Z$315,9,0),0)","v":0},null,{"$f":"IFERROR(VLOOKUP(B139,'Schedule V(b)'!$B$11:$Z$315,11,0),0)","v":"Select"},null,{"$f":"IFERROR(VLOOKUP(B139,'Schedule V(b)'!$B$11:$Z$315,13,0),0)","v":0},null,null,null,{"$f":"IFERROR(VLOOKUP(B139,'Schedule V(b)'!$B$11:$Z$315,17,0),0)","v":0},null,{"$f":"IFERROR(VLOOKUP(B139,'Schedule V(b)'!$B$11:$Z$315,25,0),0)","v":0},null,{"$f":"IFERROR(VLOOKUP(B139,'Schedule V(b)'!$B$11:$Z$315,23,0),0)","v":0}]
[129,null,null,{"$f":"IFERROR(VLOOKUP(B140,'Schedule V(b)'!$B$11:$Z$315,3,0),0)","v":0},null,{"$f":"IFERROR(VLOOKUP(B140,'Schedule V(b)'!$B$11:$Z$315,7,0),0)","v":"Select"},null,{"$f":"IFERROR(VLOOKUP(B140,'Schedule V(b)'!$B$11:$Z$315,9,0),0)","v":0},null,{"$f":"IFERROR(VLOOKUP(B140,'Schedule V(b)'!$B$11:$Z$315,11,0),0)","v":"Select"},null,{"$f":"IFERROR(VLOOKUP(B140,'Schedule V(b)'!$B$11:$Z$315,13,0),0)","v":0},null,null,null,{"$f":"IFERROR(VLOOKUP(B140,'Schedule V(b)'!$B$11:$Z$315,17,0),0)","v":0},null,{"$f":"IFERROR(VLOOKUP(B140,'Schedule V(b)'!$B$11:$Z$315,25,0),0)","v":0},null,{"$f":"IFERROR(VLOOKUP(B140,'Schedule V(b)'!$B$11:$Z$315,23,0),0)","v":0}]
[130,null,null,{"$f":"IFERROR(VLOOKUP(B141,'Schedule V(b)'!$B$11:$Z$315,3,0),0)","v":0},null,{"$f":"IFERROR(VLOOKUP(B141,'Schedule V(b)'!$B$11:$Z$315,7,0),0)","v":"Select"},null,{"$f":"IFERROR(VLOOKUP(B141,'Schedule V(b)'!$B$11:$Z$315,9,0),0)","v":0},null,{"$f":"IFERROR(VLOOKUP(B141,'Schedule V(b)'!$B$11:$Z$315,11,0),0)","v":"Select"},null,{"$f":"IFERROR(VLOOKUP(B141,'Schedule V(b)'!$B$11:$Z$315,13,0),0)","v":0},null,null,null,{"$f":"IFERROR(VLOOKUP(B141,'Schedule V(b)'!$B$11:$Z$315,17,0),0)","v":0},null,{"$f":"IFERROR(VLOOKUP(B141,'Schedule V(b)'!$B$11:$Z$315,25,0),0)","v":0},null,{"$f":"IFERROR(VLOOKUP(B141,'Schedule V(b)'!$B$11:$Z$315,23,0),0)","v":0}]
[131,null,null,{"$f":"IFERROR(VLOOKUP(B142,'Schedule V(b)'!$B$11:$Z$315,3,0),0)","v":0},null,{"$f":"IFERROR(VLOOKUP(B142,'Schedule V(b)'!$B$11:$Z$315,7,0),0)","v":"Select"},null,{"$f":"IFERROR(VLOOKUP(B142,'Schedule V(b)'!$B$11:$Z$315,9,0),0)","v":0},null,{"$f":"IFERROR(VLOOKUP(B142,'Schedule V(b)'!$B$11:$Z$315,11,0),0)","v":"Select"},null,{"$f":"IFERROR(VLOOKUP(B142,'Schedule V(b)'!$B$11:$Z$315,13,0),0)","v":0},null,null,null,{"$f":"IFERROR(VLOOKUP(B142,'Schedule V(b)'!$B$11:$Z$315,17,0),0)","v":0},null,{"$f":"IFERROR(VLOOKUP(B142,'Schedule V(b)'!$B$11:$Z$315,25,0),0)","v":0},null,{"$f":"IFERROR(VLOOKUP(B142,'Schedule V(b)'!$B$11:$Z$315,23,0),0)","v":0}]
[132,null,null,{"$f":"IFERROR(VLOOKUP(B143,'Schedule V(b)'!$B$11:$Z$315,3,0),0)","v":0},null,{"$f":"IFERROR(VLOOKUP(B143,'Schedule V(b)'!$B$11:$Z$315,7,0),0)","v":"Select"},null,{"$f":"IFERROR(VLOOKUP(B143,'Schedule V(b)'!$B$11:$Z$315,9,0),0)","v":0},null,{"$f":"IFERROR(VLOOKUP(B143,'Schedule V(b)'!$B$11:$Z$315,11,0),0)","v":"Select"},null,{"$f":"IFERROR(VLOOKUP(B143,'Schedule V(b)'!$B$11:$Z$315,13,0),0)","v":0},null,null,null,{"$f":"IFERROR(VLOOKUP(B143,'Schedule V(b)'!$B$11:$Z$315,17,0),0)","v":0},null,{"$f":"IFERROR(VLOOKUP(B143,'Schedule V(b)'!$B$11:$Z$315,25,0),0)","v":0},null,{"$f":"IFERROR(VLOOKUP(B143,'Schedule V(b)'!$B$11:$Z$315,23,0),0)","v":0}]
[133,null,null,{"$f":"IFERROR(VLOOKUP(B144,'Schedule V(b)'!$B$11:$Z$315,3,0),0)","v":0},null,{"$f":"IFERROR(VLOOKUP(B144,'Schedule V(b)'!$B$11:$Z$315,7,0),0)","v":"Select"},null,{"$f":"IFERROR(VLOOKUP(B144,'Schedule V(b)'!$B$11:$Z$315,9,0),0)","v":0},null,{"$f":"IFERROR(VLOOKUP(B144,'Schedule V(b)'!$B$11:$Z$315,11,0),0)","v":"Select"},null,{"$f":"IFERROR(VLOOKUP(B144,'Schedule V(b)'!$B$11:$Z$315,13,0),0)","v":0},null,null,null,{"$f":"IFERROR(VLOOKUP(B144,'Schedule V(b)'!$B$11:$Z$315,17,0),0)","v":0},null,{"$f":"IFERROR(VLOOKUP(B144,'Schedule V(b)'!$B$11:$Z$315,25,0),0)","v":0},null,{"$f":"IFERROR(VLOOKUP(B144,'Schedule V(b)'!$B$11:$Z$315,23,0),0)","v":0}]
[134,null,null,{"$f":"IFERROR(VLOOKUP(B145,'Schedule V(b)'!$B$11:$Z$315,3,0),0)","v":0},null,{"$f":"IFERROR(VLOOKUP(B145,'Schedule V(b)'!$B$11:$Z$315,7,0),0)","v":"Select"},null,{"$f":"IFERROR(VLOOKUP(B145,'Schedule V(b)'!$B$11:$Z$315,9,0),0)","v":0},null,{"$f":"IFERROR(VLOOKUP(B145,'Schedule V(b)'!$B$11:$Z$315,11,0),0)","v":"Select"},null,{"$f":"IFERROR(VLOOKUP(B145,'Schedule V(b)'!$B$11:$Z$315,13,0),0)","v":0},null,null,null,{"$f":"IFERROR(VLOOKUP(B145,'Schedule V(b)'!$B$11:$Z$315,17,0),0)","v":0},null,{"$f":"IFERROR(VLOOKUP(B145,'Schedule V(b)'!$B$11:$Z$315,25,0),0)","v":0},null,{"$f":"IFERROR(VLOOKUP(B145,'Schedule V(b)'!$B$11:$Z$315,23,0),0)","v":0}]
[135,null,null,{"$f":"IFERROR(VLOOKUP(B146,'Schedule V(b)'!$B$11:$Z$315,3,0),0)","v":0},null,{"$f":"IFERROR(VLOOKUP(B146,'Schedule V(b)'!$B$11:$Z$315,7,0),0)","v":"Select"},null,{"$f":"IFERROR(VLOOKUP(B146,'Schedule V(b)'!$B$11:$Z$315,9,0),0)","v":0},null,{"$f":"IFERROR(VLOOKUP(B146,'Schedule V(b)'!$B$11:$Z$315,11,0),0)","v":"Select"},null,{"$f":"IFERROR(VLOOKUP(B146,'Schedule V(b)'!$B$11:$Z$315,13,0),0)","v":0},null,null,null,{"$f":"IFERROR(VLOOKUP(B146,'Schedule V(b)'!$B$11:$Z$315,17,0),0)","v":0},null,{"$f":"IFERROR(VLOOKUP(B146,'Schedule V(b)'!$B$11:$Z$315,25,0),0)","v":0},null,{"$f":"IFERROR(VLOOKUP(B146,'Schedule V(b)'!$B$11:$Z$315,23,0),0)","v":0}]
[136,null,null,{"$f":"IFERROR(VLOOKUP(B147,'Schedule V(b)'!$B$11:$Z$315,3,0),0)","v":0},null,{"$f":"IFERROR(VLOOKUP(B147,'Schedule V(b)'!$B$11:$Z$315,7,0),0)","v":"Select"},null,{"$f":"IFERROR(VLOOKUP(B147,'Schedule V(b)'!$B$11:$Z$315,9,0),0)","v":0},null,{"$f":"IFERROR(VLOOKUP(B147,'Schedule V(b)'!$B$11:$Z$315,11,0),0)","v":"Select"},null,{"$f":"IFERROR(VLOOKUP(B147,'Schedule V(b)'!$B$11:$Z$315,13,0),0)","v":0},null,null,null,{"$f":"IFERROR(VLOOKUP(B147,'Schedule V(b)'!$B$11:$Z$315,17,0),0)","v":0},null,{"$f":"IFERROR(VLOOKUP(B147,'Schedule V(b)'!$B$11:$Z$315,25,0),0)","v":0},null,{"$f":"IFERROR(VLOOKUP(B147,'Schedule V(b)'!$B$11:$Z$315,23,0),0)","v":0}]
[137,null,null,{"$f":"IFERROR(VLOOKUP(B148,'Schedule V(b)'!$B$11:$Z$315,3,0),0)","v":0},null,{"$f":"IFERROR(VLOOKUP(B148,'Schedule V(b)'!$B$11:$Z$315,7,0),0)","v":"Select"},null,{"$f":"IFERROR(VLOOKUP(B148,'Schedule V(b)'!$B$11:$Z$315,9,0),0)","v":0},null,{"$f":"IFERROR(VLOOKUP(B148,'Schedule V(b)'!$B$11:$Z$315,11,0),0)","v":"Select"},null,{"$f":"IFERROR(VLOOKUP(B148,'Schedule V(b)'!$B$11:$Z$315,13,0),0)","v":0},null,null,null,{"$f":"IFERROR(VLOOKUP(B148,'Schedule V(b)'!$B$11:$Z$315,17,0),0)","v":0},null,{"$f":"IFERROR(VLOOKUP(B148,'Schedule V(b)'!$B$11:$Z$315,25,0),0)","v":0},null,{"$f":"IFERROR(VLOOKUP(B148,'Schedule V(b)'!$B$11:$Z$315,23,0),0)","v":0}]
[138,null,null,{"$f":"IFERROR(VLOOKUP(B149,'Schedule V(b)'!$B$11:$Z$315,3,0),0)","v":0},null,{"$f":"IFERROR(VLOOKUP(B149,'Schedule V(b)'!$B$11:$Z$315,7,0),0)","v":"Select"},null,{"$f":"IFERROR(VLOOKUP(B149,'Schedule V(b)'!$B$11:$Z$315,9,0),0)","v":0},null,{"$f":"IFERROR(VLOOKUP(B149,'Schedule V(b)'!$B$11:$Z$315,11,0),0)","v":"Select"},null,{"$f":"IFERROR(VLOOKUP(B149,'Schedule V(b)'!$B$11:$Z$315,13,0),0)","v":0},null,null,null,{"$f":"IFERROR(VLOOKUP(B149,'Schedule V(b)'!$B$11:$Z$315,17,0),0)","v":0},null,{"$f":"IFERROR(VLOOKUP(B149,'Schedule V(b)'!$B$11:$Z$315,25,0),0)","v":0},null,{"$f":"IFERROR(VLOOKUP(B149,'Schedule V(b)'!$B$11:$Z$315,23,0),0)","v":0}]
[139,null,null,{"$f":"IFERROR(VLOOKUP(B150,'Schedule V(b)'!$B$11:$Z$315,3,0),0)","v":0},null,{"$f":"IFERROR(VLOOKUP(B150,'Schedule V(b)'!$B$11:$Z$315,7,0),0)","v":"Select"},null,{"$f":"IFERROR(VLOOKUP(B150,'Schedule V(b)'!$B$11:$Z$315,9,0),0)","v":0},null,{"$f":"IFERROR(VLOOKUP(B150,'Schedule V(b)'!$B$11:$Z$315,11,0),0)","v":"Select"},null,{"$f":"IFERROR(VLOOKUP(B150,'Schedule V(b)'!$B$11:$Z$315,13,0),0)","v":0},null,null,null,{"$f":"IFERROR(VLOOKUP(B150,'Schedule V(b)'!$B$11:$Z$315,17,0),0)","v":0},null,{"$f":"IFERROR(VLOOKUP(B150,'Schedule V(b)'!$B$11:$Z$315,25,0),0)","v":0},null,{"$f":"IFERROR(VLOOKUP(B150,'Schedule V(b)'!$B$11:$Z$315,23,0),0)","v":0}]
[140,null,null,{"$f":"IFERROR(VLOOKUP(B151,'Schedule V(b)'!$B$11:$Z$315,3,0),0)","v":0},null,{"$f":"IFERROR(VLOOKUP(B151,'Schedule V(b)'!$B$11:$Z$315,7,0),0)","v":"Select"},null,{"$f":"IFERROR(VLOOKUP(B151,'Schedule V(b)'!$B$11:$Z$315,9,0),0)","v":0},null,{"$f":"IFERROR(VLOOKUP(B151,'Schedule V(b)'!$B$11:$Z$315,11,0),0)","v":"Select"},null,{"$f":"IFERROR(VLOOKUP(B151,'Schedule V(b)'!$B$11:$Z$315,13,0),0)","v":0},null,null,null,{"$f":"IFERROR(VLOOKUP(B151,'Schedule V(b)'!$B$11:$Z$315,17,0),0)","v":0},null,{"$f":"IFERROR(VLOOKUP(B151,'Schedule V(b)'!$B$11:$Z$315,25,0),0)","v":0},null,{"$f":"IFERROR(VLOOKUP(B151,'Schedule V(b)'!$B$11:$Z$315,23,0),0)","v":0}]
[141,null,null,{"$f":"IFERROR(VLOOKUP(B152,'Schedule V(b)'!$B$11:$Z$315,3,0),0)","v":0},null,{"$f":"IFERROR(VLOOKUP(B152,'Schedule V(b)'!$B$11:$Z$315,7,0),0)","v":"Select"},null,{"$f":"IFERROR(VLOOKUP(B152,'Schedule V(b)'!$B$11:$Z$315,9,0),0)","v":0},null,{"$f":"IFERROR(VLOOKUP(B152,'Schedule V(b)'!$B$11:$Z$315,11,0),0)","v":"Select"},null,{"$f":"IFERROR(VLOOKUP(B152,'Schedule V(b)'!$B$11:$Z$315,13,0),0)","v":0},null,null,null,{"$f":"IFERROR(VLOOKUP(B152,'Schedule V(b)'!$B$11:$Z$315,17,0),0)","v":0},null,{"$f":"IFERROR(VLOOKUP(B152,'Schedule V(b)'!$B$11:$Z$315,25,0),0)","v":0},null,{"$f":"IFERROR(VLOOKUP(B152,'Schedule V(b)'!$B$11:$Z$315,23,0),0)","v":0}]
[142,null,null,{"$f":"IFERROR(VLOOKUP(B153,'Schedule V(b)'!$B$11:$Z$315,3,0),0)","v":0},null,{"$f":"IFERROR(VLOOKUP(B153,'Schedule V(b)'!$B$11:$Z$315,7,0),0)","v":"Select"},null,{"$f":"IFERROR(VLOOKUP(B153,'Schedule V(b)'!$B$11:$Z$315,9,0),0)","v":0},null,{"$f":"IFERROR(VLOOKUP(B153,'Schedule V(b)'!$B$11:$Z$315,11,0),0)","v":"Select"},null,{"$f":"IFERROR(VLOOKUP(B153,'Schedule V(b)'!$B$11:$Z$315,13,0),0)","v":0},null,null,null,{"$f":"IFERROR(VLOOKUP(B153,'Schedule V(b)'!$B$11:$Z$315,17,0),0)","v":0},null,{"$f":"IFERROR(VLOOKUP(B153,'Schedule V(b)'!$B$11:$Z$315,25,0),0)","v":0},null,{"$f":"IFERROR(VLOOKUP(B153,'Schedule V(b)'!$B$11:$Z$315,23,0),0)","v":0}]
[143,null,null,{"$f":"IFERROR(VLOOKUP(B154,'Schedule V(b)'!$B$11:$Z$315,3,0),0)","v":0},null,{"$f":"IFERROR(VLOOKUP(B154,'Schedule V(b)'!$B$11:$Z$315,7,0),0)","v":"Select"},null,{"$f":"IFERROR(VLOOKUP(B154,'Schedule V(b)'!$B$11:$Z$315,9,0),0)","v":0},null,{"$f":"IFERROR(VLOOKUP(B154,'Schedule V(b)'!$B$11:$Z$315,11,0),0)","v":"Select"},null,{"$f":"IFERROR(VLOOKUP(B154,'Schedule V(b)'!$B$11:$Z$315,13,0),0)","v":0},null,null,null,{"$f":"IFERROR(VLOOKUP(B154,'Schedule V(b)'!$B$11:$Z$315,17,0),0)","v":0},null,{"$f":"IFERROR(VLOOKUP(B154,'Schedule V(b)'!$B$11:$Z$315,25,0),0)","v":0},null,{"$f":"IFERROR(VLOOKUP(B154,'Schedule V(b)'!$B$11:$Z$315,23,0),0)","v":0}]
[144,null,null,{"$f":"IFERROR(VLOOKUP(B155,'Schedule V(b)'!$B$11:$Z$315,3,0),0)","v":0},null,{"$f":"IFERROR(VLOOKUP(B155,'Schedule V(b)'!$B$11:$Z$315,7,0),0)","v":"Select"},null,{"$f":"IFERROR(VLOOKUP(B155,'Schedule V(b)'!$B$11:$Z$315,9,0),0)","v":0},null,{"$f":"IFERROR(VLOOKUP(B155,'Schedule V(b)'!$B$11:$Z$315,11,0),0)","v":"Select"},null,{"$f":"IFERROR(VLOOKUP(B155,'Schedule V(b)'!$B$11:$Z$315,13,0),0)","v":0},null,null,null,{"$f":"IFERROR(VLOOKUP(B155,'Schedule V(b)'!$B$11:$Z$315,17,0),0)","v":0},null,{"$f":"IFERROR(VLOOKUP(B155,'Schedule V(b)'!$B$11:$Z$315,25,0),0)","v":0},null,{"$f":"IFERROR(VLOOKUP(B155,'Schedule V(b)'!$B$11:$Z$315,23,0),0)","v":0}]
[145,null,null,{"$f":"IFERROR(VLOOKUP(B156,'Schedule V(b)'!$B$11:$Z$315,3,0),0)","v":0},null,{"$f":"IFERROR(VLOOKUP(B156,'Schedule V(b)'!$B$11:$Z$315,7,0),0)","v":"Select"},null,{"$f":"IFERROR(VLOOKUP(B156,'Schedule V(b)'!$B$11:$Z$315,9,0),0)","v":0},null,{"$f":"IFERROR(VLOOKUP(B156,'Schedule V(b)'!$B$11:$Z$315,11,0),0)","v":"Select"},null,{"$f":"IFERROR(VLOOKUP(B156,'Schedule V(b)'!$B$11:$Z$315,13,0),0)","v":0},null,null,null,{"$f":"IFERROR(VLOOKUP(B156,'Schedule V(b)'!$B$11:$Z$315,17,0),0)","v":0},null,{"$f":"IFERROR(VLOOKUP(B156,'Schedule V(b)'!$B$11:$Z$315,25,0),0)","v":0},null,{"$f":"IFERROR(VLOOKUP(B156,'Schedule V(b)'!$B$11:$Z$315,23,0),0)","v":0}]
[146,null,null,{"$f":"IFERROR(VLOOKUP(B157,'Schedule V(b)'!$B$11:$Z$315,3,0),0)","v":0},null,{"$f":"IFERROR(VLOOKUP(B157,'Schedule V(b)'!$B$11:$Z$315,7,0),0)","v":"Select"},null,{"$f":"IFERROR(VLOOKUP(B157,'Schedule V(b)'!$B$11:$Z$315,9,0),0)","v":0},null,{"$f":"IFERROR(VLOOKUP(B157,'Schedule V(b)'!$B$11:$Z$315,11,0),0)","v":"Select"},null,{"$f":"IFERROR(VLOOKUP(B157,'Schedule V(b)'!$B$11:$Z$315,13,0),0)","v":0},null,null,null,{"$f":"IFERROR(VLOOKUP(B157,'Schedule V(b)'!$B$11:$Z$315,17,0),0)","v":0},null,{"$f":"IFERROR(VLOOKUP(B157,'Schedule V(b)'!$B$11:$Z$315,25,0),0)","v":0},null,{"$f":"IFERROR(VLOOKUP(B157,'Schedule V(b)'!$B$11:$Z$315,23,0),0)","v":0}]
[147,null,null,{"$f":"IFERROR(VLOOKUP(B158,'Schedule V(b)'!$B$11:$Z$315,3,0),0)","v":0},null,{"$f":"IFERROR(VLOOKUP(B158,'Schedule V(b)'!$B$11:$Z$315,7,0),0)","v":"Select"},null,{"$f":"IFERROR(VLOOKUP(B158,'Schedule V(b)'!$B$11:$Z$315,9,0),0)","v":0},null,{"$f":"IFERROR(VLOOKUP(B158,'Schedule V(b)'!$B$11:$Z$315,11,0),0)","v":"Select"},null,{"$f":"IFERROR(VLOOKUP(B158,'Schedule V(b)'!$B$11:$Z$315,13,0),0)","v":0},null,null,null,{"$f":"IFERROR(VLOOKUP(B158,'Schedule V(b)'!$B$11:$Z$315,17,0),0)","v":0},null,{"$f":"IFERROR(VLOOKUP(B158,'Schedule V(b)'!$B$11:$Z$315,25,0),0)","v":0},null,{"$f":"IFERROR(VLOOKUP(B158,'Schedule V(b)'!$B$11:$Z$315,23,0),0)","v":0}]
[148,null,null,{"$f":"IFERROR(VLOOKUP(B159,'Schedule V(b)'!$B$11:$Z$315,3,0),0)","v":0},null,{"$f":"IFERROR(VLOOKUP(B159,'Schedule V(b)'!$B$11:$Z$315,7,0),0)","v":"Select"},null,{"$f":"IFERROR(VLOOKUP(B159,'Schedule V(b)'!$B$11:$Z$315,9,0),0)","v":0},null,{"$f":"IFERROR(VLOOKUP(B159,'Schedule V(b)'!$B$11:$Z$315,11,0),0)","v":"Select"},null,{"$f":"IFERROR(VLOOKUP(B159,'Schedule V(b)'!$B$11:$Z$315,13,0),0)","v":0},null,null,null,{"$f":"IFERROR(VLOOKUP(B159,'Schedule V(b)'!$B$11:$Z$315,17,0),0)","v":0},null,{"$f":"IFERROR(VLOOKUP(B159,'Schedule V(b)'!$B$11:$Z$315,25,0),0)","v":0},null,{"$f":"IFERROR(VLOOKUP(B159,'Schedule V(b)'!$B$11:$Z$315,23,0),0)","v":0}]
[149,null,null,{"$f":"IFERROR(VLOOKUP(B160,'Schedule V(b)'!$B$11:$Z$315,3,0),0)","v":0},null,{"$f":"IFERROR(VLOOKUP(B160,'Schedule V(b)'!$B$11:$Z$315,7,0),0)","v":"Select"},null,{"$f":"IFERROR(VLOOKUP(B160,'Schedule V(b)'!$B$11:$Z$315,9,0),0)","v":0},null,{"$f":"IFERROR(VLOOKUP(B160,'Schedule V(b)'!$B$11:$Z$315,11,0),0)","v":"Select"},null,{"$f":"IFERROR(VLOOKUP(B160,'Schedule V(b)'!$B$11:$Z$315,13,0),0)","v":0},null,null,null,{"$f":"IFERROR(VLOOKUP(B160,'Schedule V(b)'!$B$11:$Z$315,17,0),0)","v":0},null,{"$f":"IFERROR(VLOOKUP(B160,'Schedule V(b)'!$B$11:$Z$315,25,0),0)","v":0},null,{"$f":"IFERROR(VLOOKUP(B160,'Schedule V(b)'!$B$11:$Z$315,23,0),0)","v":0}]
[150,null,null,{"$f":"IFERROR(VLOOKUP(B161,'Schedule V(b)'!$B$11:$Z$315,3,0),0)","v":0},null,{"$f":"IFERROR(VLOOKUP(B161,'Schedule V(b)'!$B$11:$Z$315,7,0),0)","v":"Select"},null,{"$f":"IFERROR(VLOOKUP(B161,'Schedule V(b)'!$B$11:$Z$315,9,0),0)","v":0},null,{"$f":"IFERROR(VLOOKUP(B161,'Schedule V(b)'!$B$11:$Z$315,11,0),0)","v":"Select"},null,{"$f":"IFERROR(VLOOKUP(B161,'Schedule V(b)'!$B$11:$Z$315,13,0),0)","v":0},null,null,null,{"$f":"IFERROR(VLOOKUP(B161,'Schedule V(b)'!$B$11:$Z$315,17,0),0)","v":0},null,{"$f":"IFERROR(VLOOKUP(B161,'Schedule V(b)'!$B$11:$Z$315,25,0),0)","v":0},null,{"$f":"IFERROR(VLOOKUP(B161,'Schedule V(b)'!$B$11:$Z$315,23,0),0)","v":0}]
[151,null,null,{"$f":"IFERROR(VLOOKUP(B162,'Schedule V(b)'!$B$11:$Z$315,3,0),0)","v":0},null,{"$f":"IFERROR(VLOOKUP(B162,'Schedule V(b)'!$B$11:$Z$315,7,0),0)","v":"Select"},null,{"$f":"IFERROR(VLOOKUP(B162,'Schedule V(b)'!$B$11:$Z$315,9,0),0)","v":0},null,{"$f":"IFERROR(VLOOKUP(B162,'Schedule V(b)'!$B$11:$Z$315,11,0),0)","v":"Select"},null,{"$f":"IFERROR(VLOOKUP(B162,'Schedule V(b)'!$B$11:$Z$315,13,0),0)","v":0},null,null,null,{"$f":"IFERROR(VLOOKUP(B162,'Schedule V(b)'!$B$11:$Z$315,17,0),0)","v":0},null,{"$f":"IFERROR(VLOOKUP(B162,'Schedule V(b)'!$B$11:$Z$315,25,0),0)","v":0},null,{"$f":"IFERROR(VLOOKUP(B162,'Schedule V(b)'!$B$11:$Z$315,23,0),0)","v":0}]
[152,null,null,{"$f":"IFERROR(VLOOKUP(B163,'Schedule V(b)'!$B$11:$Z$315,3,0),0)","v":0},null,{"$f":"IFERROR(VLOOKUP(B163,'Schedule V(b)'!$B$11:$Z$315,7,0),0)","v":"Select"},null,{"$f":"IFERROR(VLOOKUP(B163,'Schedule V(b)'!$B$11:$Z$315,9,0),0)","v":0},null,{"$f":"IFERROR(VLOOKUP(B163,'Schedule V(b)'!$B$11:$Z$315,11,0),0)","v":"Select"},null,{"$f":"IFERROR(VLOOKUP(B163,'Schedule V(b)'!$B$11:$Z$315,13,0),0)","v":0},null,null,null,{"$f":"IFERROR(VLOOKUP(B163,'Schedule V(b)'!$B$11:$Z$315,17,0),0)","v":0},null,{"$f":"IFERROR(VLOOKUP(B163,'Schedule V(b)'!$B$11:$Z$315,25,0),0)","v":0},null,{"$f":"IFERROR(VLOOKUP(B163,'Schedule V(b)'!$B$11:$Z$315,23,0),0)","v":0}]
[153,null,null,{"$f":"IFERROR(VLOOKUP(B164,'Schedule V(b)'!$B$11:$Z$315,3,0),0)","v":0},null,{"$f":"IFERROR(VLOOKUP(B164,'Schedule V(b)'!$B$11:$Z$315,7,0),0)","v":"Select"},null,{"$f":"IFERROR(VLOOKUP(B164,'Schedule V(b)'!$B$11:$Z$315,9,0),0)","v":0},null,{"$f":"IFERROR(VLOOKUP(B164,'Schedule V(b)'!$B$11:$Z$315,11,0),0)","v":"Select"},null,{"$f":"IFERROR(VLOOKUP(B164,'Schedule V(b)'!$B$11:$Z$315,13,0),0)","v":0},null,null,null,{"$f":"IFERROR(VLOOKUP(B164,'Schedule V(b)'!$B$11:$Z$315,17,0),0)","v":0},null,{"$f":"IFERROR(VLOOKUP(B164,'Schedule V(b)'!$B$11:$Z$315,25,0),0)","v":0},null,{"$f":"IFERROR(VLOOKUP(B164,'Schedule V(b)'!$B$11:$Z$315,23,0),0)","v":0}]
[154,null,null,{"$f":"IFERROR(VLOOKUP(B165,'Schedule V(b)'!$B$11:$Z$315,3,0),0)","v":0},null,{"$f":"IFERROR(VLOOKUP(B165,'Schedule V(b)'!$B$11:$Z$315,7,0),0)","v":"Select"},null,{"$f":"IFERROR(VLOOKUP(B165,'Schedule V(b)'!$B$11:$Z$315,9,0),0)","v":0},null,{"$f":"IFERROR(VLOOKUP(B165,'Schedule V(b)'!$B$11:$Z$315,11,0),0)","v":"Select"},null,{"$f":"IFERROR(VLOOKUP(B165,'Schedule V(b)'!$B$11:$Z$315,13,0),0)","v":0},null,null,null,{"$f":"IFERROR(VLOOKUP(B165,'Schedule V(b)'!$B$11:$Z$315,17,0),0)","v":0},null,{"$f":"IFERROR(VLOOKUP(B165,'Schedule V(b)'!$B$11:$Z$315,25,0),0)","v":0},null,{"$f":"IFERROR(VLOOKUP(B165,'Schedule V(b)'!$B$11:$Z$315,23,0),0)","v":0}]
[155,null,null,{"$f":"IFERROR(VLOOKUP(B166,'Schedule V(b)'!$B$11:$Z$315,3,0),0)","v":0},null,{"$f":"IFERROR(VLOOKUP(B166,'Schedule V(b)'!$B$11:$Z$315,7,0),0)","v":"Select"},null,{"$f":"IFERROR(VLOOKUP(B166,'Schedule V(b)'!$B$11:$Z$315,9,0),0)","v":0},null,{"$f":"IFERROR(VLOOKUP(B166,'Schedule V(b)'!$B$11:$Z$315,11,0),0)","v":"Select"},null,{"$f":"IFERROR(VLOOKUP(B166,'Schedule V(b)'!$B$11:$Z$315,13,0),0)","v":0},null,null,null,{"$f":"IFERROR(VLOOKUP(B166,'Schedule V(b)'!$B$11:$Z$315,17,0),0)","v":0},null,{"$f":"IFERROR(VLOOKUP(B166,'Schedule V(b)'!$B$11:$Z$315,25,0),0)","v":0},null,{"$f":"IFERROR(VLOOKUP(B166,'Schedule V(b)'!$B$11:$Z$315,23,0),0)","v":0}]
[156,null,null,{"$f":"IFERROR(VLOOKUP(B167,'Schedule V(b)'!$B$11:$Z$315,3,0),0)","v":0},null,{"$f":"IFERROR(VLOOKUP(B167,'Schedule V(b)'!$B$11:$Z$315,7,0),0)","v":"Select"},null,{"$f":"IFERROR(VLOOKUP(B167,'Schedule V(b)'!$B$11:$Z$315,9,0),0)","v":0},null,{"$f":"IFERROR(VLOOKUP(B167,'Schedule V(b)'!$B$11:$Z$315,11,0),0)","v":"Select"},null,{"$f":"IFERROR(VLOOKUP(B167,'Schedule V(b)'!$B$11:$Z$315,13,0),0)","v":0},null,null,null,{"$f":"IFERROR(VLOOKUP(B167,'Schedule V(b)'!$B$11:$Z$315,17,0),0)","v":0},null,{"$f":"IFERROR(VLOOKUP(B167,'Schedule V(b)'!$B$11:$Z$315,25,0),0)","v":0},null,{"$f":"IFERROR(VLOOKUP(B167,'Schedule V(b)'!$B$11:$Z$315,23,0),0)","v":0}]
[157,null,null,{"$f":"IFERROR(VLOOKUP(B168,'Schedule V(b)'!$B$11:$Z$315,3,0),0)","v":0},null,{"$f":"IFERROR(VLOOKUP(B168,'Schedule V(b)'!$B$11:$Z$315,7,0),0)","v":"Select"},null,{"$f":"IFERROR(VLOOKUP(B168,'Schedule V(b)'!$B$11:$Z$315,9,0),0)","v":0},null,{"$f":"IFERROR(VLOOKUP(B168,'Schedule V(b)'!$B$11:$Z$315,11,0),0)","v":"Select"},null,{"$f":"IFERROR(VLOOKUP(B168,'Schedule V(b)'!$B$11:$Z$315,13,0),0)","v":0},null,null,null,{"$f":"IFERROR(VLOOKUP(B168,'Schedule V(b)'!$B$11:$Z$315,17,0),0)","v":0},null,{"$f":"IFERROR(VLOOKUP(B168,'Schedule V(b)'!$B$11:$Z$315,25,0),0)","v":0},null,{"$f":"IFERROR(VLOOKUP(B168,'Schedule V(b)'!$B$11:$Z$315,23,0),0)","v":0}]
[158,null,null,{"$f":"IFERROR(VLOOKUP(B169,'Schedule V(b)'!$B$11:$Z$315,3,0),0)","v":0},null,{"$f":"IFERROR(VLOOKUP(B169,'Schedule V(b)'!$B$11:$Z$315,7,0),0)","v":"Select"},null,{"$f":"IFERROR(VLOOKUP(B169,'Schedule V(b)'!$B$11:$Z$315,9,0),0)","v":0},null,{"$f":"IFERROR(VLOOKUP(B169,'Schedule V(b)'!$B$11:$Z$315,11,0),0)","v":"Select"},null,{"$f":"IFERROR(VLOOKUP(B169,'Schedule V(b)'!$B$11:$Z$315,13,0),0)","v":0},null,null,null,{"$f":"IFERROR(VLOOKUP(B169,'Schedule V(b)'!$B$11:$Z$315,17,0),0)","v":0},null,{"$f":"IFERROR(VLOOKUP(B169,'Schedule V(b)'!$B$11:$Z$315,25,0),0)","v":0},null,{"$f":"IFERROR(VLOOKUP(B169,'Schedule V(b)'!$B$11:$Z$315,23,0),0)","v":0}]
[159,null,null,{"$f":"IFERROR(VLOOKUP(B170,'Schedule V(b)'!$B$11:$Z$315,3,0),0)","v":0},null,{"$f":"IFERROR(VLOOKUP(B170,'Schedule V(b)'!$B$11:$Z$315,7,0),0)","v":"Select"},null,{"$f":"IFERROR(VLOOKUP(B170,'Schedule V(b)'!$B$11:$Z$315,9,0),0)","v":0},null,{"$f":"IFERROR(VLOOKUP(B170,'Schedule V(b)'!$B$11:$Z$315,11,0),0)","v":"Select"},null,{"$f":"IFERROR(VLOOKUP(B170,'Schedule V(b)'!$B$11:$Z$315,13,0),0)","v":0},null,null,null,{"$f":"IFERROR(VLOOKUP(B170,'Schedule V(b)'!$B$11:$Z$315,17,0),0)","v":0},null,{"$f":"IFERROR(VLOOKUP(B170,'Schedule V(b)'!$B$11:$Z$315,25,0),0)","v":0},null,{"$f":"IFERROR(VLOOKUP(B170,'Schedule V(b)'!$B$11:$Z$315,23,0),0)","v":0}]
[160,null,null,{"$f":"IFERROR(VLOOKUP(B171,'Schedule V(b)'!$B$11:$Z$315,3,0),0)","v":0},null,{"$f":"IFERROR(VLOOKUP(B171,'Schedule V(b)'!$B$11:$Z$315,7,0),0)","v":"Select"},null,{"$f":"IFERROR(VLOOKUP(B171,'Schedule V(b)'!$B$11:$Z$315,9,0),0)","v":0},null,{"$f":"IFERROR(VLOOKUP(B171,'Schedule V(b)'!$B$11:$Z$315,11,0),0)","v":"Select"},null,{"$f":"IFERROR(VLOOKUP(B171,'Schedule V(b)'!$B$11:$Z$315,13,0),0)","v":0},null,null,null,{"$f":"IFERROR(VLOOKUP(B171,'Schedule V(b)'!$B$11:$Z$315,17,0),0)","v":0},null,{"$f":"IFERROR(VLOOKUP(B171,'Schedule V(b)'!$B$11:$Z$315,25,0),0)","v":0},null,{"$f":"IFERROR(VLOOKUP(B171,'Schedule V(b)'!$B$11:$Z$315,23,0),0)","v":0}]
[161,null,null,{"$f":"IFERROR(VLOOKUP(B172,'Schedule V(b)'!$B$11:$Z$315,3,0),0)","v":0},null,{"$f":"IFERROR(VLOOKUP(B172,'Schedule V(b)'!$B$11:$Z$315,7,0),0)","v":"Select"},null,{"$f":"IFERROR(VLOOKUP(B172,'Schedule V(b)'!$B$11:$Z$315,9,0),0)","v":0},null,{"$f":"IFERROR(VLOOKUP(B172,'Schedule V(b)'!$B$11:$Z$315,11,0),0)","v":"Select"},null,{"$f":"IFERROR(VLOOKUP(B172,'Schedule V(b)'!$B$11:$Z$315,13,0),0)","v":0},null,null,null,{"$f":"IFERROR(VLOOKUP(B172,'Schedule V(b)'!$B$11:$Z$315,17,0),0)","v":0},null,{"$f":"IFERROR(VLOOKUP(B172,'Schedule V(b)'!$B$11:$Z$315,25,0),0)","v":0},null,{"$f":"IFERROR(VLOOKUP(B172,'Schedule V(b)'!$B$11:$Z$315,23,0),0)","v":0}]
[162,null,null,{"$f":"IFERROR(VLOOKUP(B173,'Schedule V(b)'!$B$11:$Z$315,3,0),0)","v":0},null,{"$f":"IFERROR(VLOOKUP(B173,'Schedule V(b)'!$B$11:$Z$315,7,0),0)","v":"Select"},null,{"$f":"IFERROR(VLOOKUP(B173,'Schedule V(b)'!$B$11:$Z$315,9,0),0)","v":0},null,{"$f":"IFERROR(VLOOKUP(B173,'Schedule V(b)'!$B$11:$Z$315,11,0),0)","v":"Select"},null,{"$f":"IFERROR(VLOOKUP(B173,'Schedule V(b)'!$B$11:$Z$315,13,0),0)","v":0},null,null,null,{"$f":"IFERROR(VLOOKUP(B173,'Schedule V(b)'!$B$11:$Z$315,17,0),0)","v":0},null,{"$f":"IFERROR(VLOOKUP(B173,'Schedule V(b)'!$B$11:$Z$315,25,0),0)","v":0},null,{"$f":"IFERROR(VLOOKUP(B173,'Schedule V(b)'!$B$11:$Z$315,23,0),0)","v":0}]
[163,null,null,{"$f":"IFERROR(VLOOKUP(B174,'Schedule V(b)'!$B$11:$Z$315,3,0),0)","v":0},null,{"$f":"IFERROR(VLOOKUP(B174,'Schedule V(b)'!$B$11:$Z$315,7,0),0)","v":"Select"},null,{"$f":"IFERROR(VLOOKUP(B174,'Schedule V(b)'!$B$11:$Z$315,9,0),0)","v":0},null,{"$f":"IFERROR(VLOOKUP(B174,'Schedule V(b)'!$B$11:$Z$315,11,0),0)","v":"Select"},null,{"$f":"IFERROR(VLOOKUP(B174,'Schedule V(b)'!$B$11:$Z$315,13,0),0)","v":0},null,null,null,{"$f":"IFERROR(VLOOKUP(B174,'Schedule V(b)'!$B$11:$Z$315,17,0),0)","v":0},null,{"$f":"IFERROR(VLOOKUP(B174,'Schedule V(b)'!$B$11:$Z$315,25,0),0)","v":0},null,{"$f":"IFERROR(VLOOKUP(B174,'Schedule V(b)'!$B$11:$Z$315,23,0),0)","v":0}]
[164,null,null,{"$f":"IFERROR(VLOOKUP(B175,'Schedule V(b)'!$B$11:$Z$315,3,0),0)","v":0},null,{"$f":"IFERROR(VLOOKUP(B175,'Schedule V(b)'!$B$11:$Z$315,7,0),0)","v":"Select"},null,{"$f":"IFERROR(VLOOKUP(B175,'Schedule V(b)'!$B$11:$Z$315,9,0),0)","v":0},null,{"$f":"IFERROR(VLOOKUP(B175,'Schedule V(b)'!$B$11:$Z$315,11,0),0)","v":"Select"},null,{"$f":"IFERROR(VLOOKUP(B175,'Schedule V(b)'!$B$11:$Z$315,13,0),0)","v":0},null,null,null,{"$f":"IFERROR(VLOOKUP(B175,'Schedule V(b)'!$B$11:$Z$315,17,0),0)","v":0},null,{"$f":"IFERROR(VLOOKUP(B175,'Schedule V(b)'!$B$11:$Z$315,25,0),0)","v":0},null,{"$f":"IFERROR(VLOOKUP(B175,'Schedule V(b)'!$B$11:$Z$315,23,0),0)","v":0}]
[165,null,null,{"$f":"IFERROR(VLOOKUP(B176,'Schedule V(b)'!$B$11:$Z$315,3,0),0)","v":0},null,{"$f":"IFERROR(VLOOKUP(B176,'Schedule V(b)'!$B$11:$Z$315,7,0),0)","v":"Select"},null,{"$f":"IFERROR(VLOOKUP(B176,'Schedule V(b)'!$B$11:$Z$315,9,0),0)","v":0},null,{"$f":"IFERROR(VLOOKUP(B176,'Schedule V(b)'!$B$11:$Z$315,11,0),0)","v":"Select"},null,{"$f":"IFERROR(VLOOKUP(B176,'Schedule V(b)'!$B$11:$Z$315,13,0),0)","v":0},null,null,null,{"$f":"IFERROR(VLOOKUP(B176,'Schedule V(b)'!$B$11:$Z$315,17,0),0)","v":0},null,{"$f":"IFERROR(VLOOKUP(B176,'Schedule V(b)'!$B$11:$Z$315,25,0),0)","v":0},null,{"$f":"IFERROR(VLOOKUP(B176,'Schedule V(b)'!$B$11:$Z$315,23,0),0)","v":0}]
[166,null,null,{"$f":"IFERROR(VLOOKUP(B177,'Schedule V(b)'!$B$11:$Z$315,3,0),0)","v":0},null,{"$f":"IFERROR(VLOOKUP(B177,'Schedule V(b)'!$B$11:$Z$315,7,0),0)","v":"Select"},null,{"$f":"IFERROR(VLOOKUP(B177,'Schedule V(b)'!$B$11:$Z$315,9,0),0)","v":0},null,{"$f":"IFERROR(VLOOKUP(B177,'Schedule V(b)'!$B$11:$Z$315,11,0),0)","v":"Select"},null,{"$f":"IFERROR(VLOOKUP(B177,'Schedule V(b)'!$B$11:$Z$315,13,0),0)","v":0},null,null,null,{"$f":"IFERROR(VLOOKUP(B177,'Schedule V(b)'!$B$11:$Z$315,17,0),0)","v":0},null,{"$f":"IFERROR(VLOOKUP(B177,'Schedule V(b)'!$B$11:$Z$315,25,0),0)","v":0},null,{"$f":"IFERROR(VLOOKUP(B177,'Schedule V(b)'!$B$11:$Z$315,23,0),0)","v":0}]
[167,null,null,{"$f":"IFERROR(VLOOKUP(B178,'Schedule V(b)'!$B$11:$Z$315,3,0),0)","v":0},null,{"$f":"IFERROR(VLOOKUP(B178,'Schedule V(b)'!$B$11:$Z$315,7,0),0)","v":"Select"},null,{"$f":"IFERROR(VLOOKUP(B178,'Schedule V(b)'!$B$11:$Z$315,9,0),0)","v":0},null,{"$f":"IFERROR(VLOOKUP(B178,'Schedule V(b)'!$B$11:$Z$315,11,0),0)","v":"Select"},null,{"$f":"IFERROR(VLOOKUP(B178,'Schedule V(b)'!$B$11:$Z$315,13,0),0)","v":0},null,null,null,{"$f":"IFERROR(VLOOKUP(B178,'Schedule V(b)'!$B$11:$Z$315,17,0),0)","v":0},null,{"$f":"IFERROR(VLOOKUP(B178,'Schedule V(b)'!$B$11:$Z$315,25,0),0)","v":0},null,{"$f":"IFERROR(VLOOKUP(B178,'Schedule V(b)'!$B$11:$Z$315,23,0),0)","v":0}]
[168,null,null,{"$f":"IFERROR(VLOOKUP(B179,'Schedule V(b)'!$B$11:$Z$315,3,0),0)","v":0},null,{"$f":"IFERROR(VLOOKUP(B179,'Schedule V(b)'!$B$11:$Z$315,7,0),0)","v":"Select"},null,{"$f":"IFERROR(VLOOKUP(B179,'Schedule V(b)'!$B$11:$Z$315,9,0),0)","v":0},null,{"$f":"IFERROR(VLOOKUP(B179,'Schedule V(b)'!$B$11:$Z$315,11,0),0)","v":"Select"},null,{"$f":"IFERROR(VLOOKUP(B179,'Schedule V(b)'!$B$11:$Z$315,13,0),0)","v":0},null,null,null,{"$f":"IFERROR(VLOOKUP(B179,'Schedule V(b)'!$B$11:$Z$315,17,0),0)","v":0},null,{"$f":"IFERROR(VLOOKUP(B179,'Schedule V(b)'!$B$11:$Z$315,25,0),0)","v":0},null,{"$f":"IFERROR(VLOOKUP(B179,'Schedule V(b)'!$B$11:$Z$315,23,0),0)","v":0}]
[169,null,null,{"$f":"IFERROR(VLOOKUP(B180,'Schedule V(b)'!$B$11:$Z$315,3,0),0)","v":0},null,{"$f":"IFERROR(VLOOKUP(B180,'Schedule V(b)'!$B$11:$Z$315,7,0),0)","v":"Select"},null,{"$f":"IFERROR(VLOOKUP(B180,'Schedule V(b)'!$B$11:$Z$315,9,0),0)","v":0},null,{"$f":"IFERROR(VLOOKUP(B180,'Schedule V(b)'!$B$11:$Z$315,11,0),0)","v":"Select"},null,{"$f":"IFERROR(VLOOKUP(B180,'Schedule V(b)'!$B$11:$Z$315,13,0),0)","v":0},null,null,null,{"$f":"IFERROR(VLOOKUP(B180,'Schedule V(b)'!$B$11:$Z$315,17,0),0)","v":0},null,{"$f":"IFERROR(VLOOKUP(B180,'Schedule V(b)'!$B$11:$Z$315,25,0),0)","v":0},null,{"$f":"IFERROR(VLOOKUP(B180,'Schedule V(b)'!$B$11:$Z$315,23,0),0)","v":0}]
[170,null,null,{"$f":"IFERROR(VLOOKUP(B181,'Schedule V(b)'!$B$11:$Z$315,3,0),0)","v":0},null,{"$f":"IFERROR(VLOOKUP(B181,'Schedule V(b)'!$B$11:$Z$315,7,0),0)","v":"Select"},null,{"$f":"IFERROR(VLOOKUP(B181,'Schedule V(b)'!$B$11:$Z$315,9,0),0)","v":0},null,{"$f":"IFERROR(VLOOKUP(B181,'Schedule V(b)'!$B$11:$Z$315,11,0),0)","v":"Select"},null,{"$f":"IFERROR(VLOOKUP(B181,'Schedule V(b)'!$B$11:$Z$315,13,0),0)","v":0},null,null,null,{"$f":"IFERROR(VLOOKUP(B181,'Schedule V(b)'!$B$11:$Z$315,17,0),0)","v":0},null,{"$f":"IFERROR(VLOOKUP(B181,'Schedule V(b)'!$B$11:$Z$315,25,0),0)","v":0},null,{"$f":"IFERROR(VLOOKUP(B181,'Schedule V(b)'!$B$11:$Z$315,23,0),0)","v":0}]
[171,null,null,{"$f":"IFERROR(VLOOKUP(B182,'Schedule V(b)'!$B$11:$Z$315,3,0),0)","v":0},null,{"$f":"IFERROR(VLOOKUP(B182,'Schedule V(b)'!$B$11:$Z$315,7,0),0)","v":"Select"},null,{"$f":"IFERROR(VLOOKUP(B182,'Schedule V(b)'!$B$11:$Z$315,9,0),0)","v":0},null,{"$f":"IFERROR(VLOOKUP(B182,'Schedule V(b)'!$B$11:$Z$315,11,0),0)","v":"Select"},null,{"$f":"IFERROR(VLOOKUP(B182,'Schedule V(b)'!$B$11:$Z$315,13,0),0)","v":0},null,null,null,{"$f":"IFERROR(VLOOKUP(B182,'Schedule V(b)'!$B$11:$Z$315,17,0),0)","v":0},null,{"$f":"IFERROR(VLOOKUP(B182,'Schedule V(b)'!$B$11:$Z$315,25,0),0)","v":0},null,{"$f":"IFERROR(VLOOKUP(B182,'Schedule V(b)'!$B$11:$Z$315,23,0),0)","v":0}]
[172,null,null,{"$f":"IFERROR(VLOOKUP(B183,'Schedule V(b)'!$B$11:$Z$315,3,0),0)","v":0},null,{"$f":"IFERROR(VLOOKUP(B183,'Schedule V(b)'!$B$11:$Z$315,7,0),0)","v":"Select"},null,{"$f":"IFERROR(VLOOKUP(B183,'Schedule V(b)'!$B$11:$Z$315,9,0),0)","v":0},null,{"$f":"IFERROR(VLOOKUP(B183,'Schedule V(b)'!$B$11:$Z$315,11,0),0)","v":"Select"},null,{"$f":"IFERROR(VLOOKUP(B183,'Schedule V(b)'!$B$11:$Z$315,13,0),0)","v":0},null,null,null,{"$f":"IFERROR(VLOOKUP(B183,'Schedule V(b)'!$B$11:$Z$315,17,0),0)","v":0},null,{"$f":"IFERROR(VLOOKUP(B183,'Schedule V(b)'!$B$11:$Z$315,25,0),0)","v":0},null,{"$f":"IFERROR(VLOOKUP(B183,'Schedule V(b)'!$B$11:$Z$315,23,0),0)","v":0}]
[173,null,null,{"$f":"IFERROR(VLOOKUP(B184,'Schedule V(b)'!$B$11:$Z$315,3,0),0)","v":0},null,{"$f":"IFERROR(VLOOKUP(B184,'Schedule V(b)'!$B$11:$Z$315,7,0),0)","v":"Select"},null,{"$f":"IFERROR(VLOOKUP(B184,'Schedule V(b)'!$B$11:$Z$315,9,0),0)","v":0},null,{"$f":"IFERROR(VLOOKUP(B184,'Schedule V(b)'!$B$11:$Z$315,11,0),0)","v":"Select"},null,{"$f":"IFERROR(VLOOKUP(B184,'Schedule V(b)'!$B$11:$Z$315,13,0),0)","v":0},null,null,null,{"$f":"IFERROR(VLOOKUP(B184,'Schedule V(b)'!$B$11:$Z$315,17,0),0)","v":0},null,{"$f":"IFERROR(VLOOKUP(B184,'Schedule V(b)'!$B$11:$Z$315,25,0),0)","v":0},null,{"$f":"IFERROR(VLOOKUP(B184,'Schedule V(b)'!$B$11:$Z$315,23,0),0)","v":0}]
[174,null,null,{"$f":"IFERROR(VLOOKUP(B185,'Schedule V(b)'!$B$11:$Z$315,3,0),0)","v":0},null,{"$f":"IFERROR(VLOOKUP(B185,'Schedule V(b)'!$B$11:$Z$315,7,0),0)","v":"Select"},null,{"$f":"IFERROR(VLOOKUP(B185,'Schedule V(b)'!$B$11:$Z$315,9,0),0)","v":0},null,{"$f":"IFERROR(VLOOKUP(B185,'Schedule V(b)'!$B$11:$Z$315,11,0),0)","v":"Select"},null,{"$f":"IFERROR(VLOOKUP(B185,'Schedule V(b)'!$B$11:$Z$315,13,0),0)","v":0},null,null,null,{"$f":"IFERROR(VLOOKUP(B185,'Schedule V(b)'!$B$11:$Z$315,17,0),0)","v":0},null,{"$f":"IFERROR(VLOOKUP(B185,'Schedule V(b)'!$B$11:$Z$315,25,0),0)","v":0},null,{"$f":"IFERROR(VLOOKUP(B185,'Schedule V(b)'!$B$11:$Z$315,23,0),0)","v":0}]
[175,null,null,{"$f":"IFERROR(VLOOKUP(B186,'Schedule V(b)'!$B$11:$Z$315,3,0),0)","v":0},null,{"$f":"IFERROR(VLOOKUP(B186,'Schedule V(b)'!$B$11:$Z$315,7,0),0)","v":"Select"},null,{"$f":"IFERROR(VLOOKUP(B186,'Schedule V(b)'!$B$11:$Z$315,9,0),0)","v":0},null,{"$f":"IFERROR(VLOOKUP(B186,'Schedule V(b)'!$B$11:$Z$315,11,0),0)","v":"Select"},null,{"$f":"IFERROR(VLOOKUP(B186,'Schedule V(b)'!$B$11:$Z$315,13,0),0)","v":0},null,null,null,{"$f":"IFERROR(VLOOKUP(B186,'Schedule V(b)'!$B$11:$Z$315,17,0),0)","v":0},null,{"$f":"IFERROR(VLOOKUP(B186,'Schedule V(b)'!$B$11:$Z$315,25,0),0)","v":0},null,{"$f":"IFERROR(VLOOKUP(B186,'Schedule V(b)'!$B$11:$Z$315,23,0),0)","v":0}]
[176,null,null,{"$f":"IFERROR(VLOOKUP(B187,'Schedule V(b)'!$B$11:$Z$315,3,0),0)","v":0},null,{"$f":"IFERROR(VLOOKUP(B187,'Schedule V(b)'!$B$11:$Z$315,7,0),0)","v":"Select"},null,{"$f":"IFERROR(VLOOKUP(B187,'Schedule V(b)'!$B$11:$Z$315,9,0),0)","v":0},null,{"$f":"IFERROR(VLOOKUP(B187,'Schedule V(b)'!$B$11:$Z$315,11,0),0)","v":"Select"},null,{"$f":"IFERROR(VLOOKUP(B187,'Schedule V(b)'!$B$11:$Z$315,13,0),0)","v":0},null,null,null,{"$f":"IFERROR(VLOOKUP(B187,'Schedule V(b)'!$B$11:$Z$315,17,0),0)","v":0},null,{"$f":"IFERROR(VLOOKUP(B187,'Schedule V(b)'!$B$11:$Z$315,25,0),0)","v":0},null,{"$f":"IFERROR(VLOOKUP(B187,'Schedule V(b)'!$B$11:$Z$315,23,0),0)","v":0}]
[177,null,null,{"$f":"IFERROR(VLOOKUP(B188,'Schedule V(b)'!$B$11:$Z$315,3,0),0)","v":0},null,{"$f":"IFERROR(VLOOKUP(B188,'Schedule V(b)'!$B$11:$Z$315,7,0),0)","v":"Select"},null,{"$f":"IFERROR(VLOOKUP(B188,'Schedule V(b)'!$B$11:$Z$315,9,0),0)","v":0},null,{"$f":"IFERROR(VLOOKUP(B188,'Schedule V(b)'!$B$11:$Z$315,11,0),0)","v":"Select"},null,{"$f":"IFERROR(VLOOKUP(B188,'Schedule V(b)'!$B$11:$Z$315,13,0),0)","v":0},null,null,null,{"$f":"IFERROR(VLOOKUP(B188,'Schedule V(b)'!$B$11:$Z$315,17,0),0)","v":0},null,{"$f":"IFERROR(VLOOKUP(B188,'Schedule V(b)'!$B$11:$Z$315,25,0),0)","v":0},null,{"$f":"IFERROR(VLOOKUP(B188,'Schedule V(b)'!$B$11:$Z$315,23,0),0)","v":0}]
[178,null,null,{"$f":"IFERROR(VLOOKUP(B189,'Schedule V(b)'!$B$11:$Z$315,3,0),0)","v":0},null,{"$f":"IFERROR(VLOOKUP(B189,'Schedule V(b)'!$B$11:$Z$315,7,0),0)","v":"Select"},null,{"$f":"IFERROR(VLOOKUP(B189,'Schedule V(b)'!$B$11:$Z$315,9,0),0)","v":0},null,{"$f":"IFERROR(VLOOKUP(B189,'Schedule V(b)'!$B$11:$Z$315,11,0),0)","v":"Select"},null,{"$f":"IFERROR(VLOOKUP(B189,'Schedule V(b)'!$B$11:$Z$315,13,0),0)","v":0},null,null,null,{"$f":"IFERROR(VLOOKUP(B189,'Schedule V(b)'!$B$11:$Z$315,17,0),0)","v":0},null,{"$f":"IFERROR(VLOOKUP(B189,'Schedule V(b)'!$B$11:$Z$315,25,0),0)","v":0},null,{"$f":"IFERROR(VLOOKUP(B189,'Schedule V(b)'!$B$11:$Z$315,23,0),0)","v":0}]
[179,null,null,{"$f":"IFERROR(VLOOKUP(B190,'Schedule V(b)'!$B$11:$Z$315,3,0),0)","v":0},null,{"$f":"IFERROR(VLOOKUP(B190,'Schedule V(b)'!$B$11:$Z$315,7,0),0)","v":"Select"},null,{"$f":"IFERROR(VLOOKUP(B190,'Schedule V(b)'!$B$11:$Z$315,9,0),0)","v":0},null,{"$f":"IFERROR(VLOOKUP(B190,'Schedule V(b)'!$B$11:$Z$315,11,0),0)","v":"Select"},null,{"$f":"IFERROR(VLOOKUP(B190,'Schedule V(b)'!$B$11:$Z$315,13,0),0)","v":0},null,null,null,{"$f":"IFERROR(VLOOKUP(B190,'Schedule V(b)'!$B$11:$Z$315,17,0),0)","v":0},null,{"$f":"IFERROR(VLOOKUP(B190,'Schedule V(b)'!$B$11:$Z$315,25,0),0)","v":0},null,{"$f":"IFERROR(VLOOKUP(B190,'Schedule V(b)'!$B$11:$Z$315,23,0),0)","v":0}]
[180,null,null,{"$f":"IFERROR(VLOOKUP(B191,'Schedule V(b)'!$B$11:$Z$315,3,0),0)","v":0},null,{"$f":"IFERROR(VLOOKUP(B191,'Schedule V(b)'!$B$11:$Z$315,7,0),0)","v":"Select"},null,{"$f":"IFERROR(VLOOKUP(B191,'Schedule V(b)'!$B$11:$Z$315,9,0),0)","v":0},null,{"$f":"IFERROR(VLOOKUP(B191,'Schedule V(b)'!$B$11:$Z$315,11,0),0)","v":"Select"},null,{"$f":"IFERROR(VLOOKUP(B191,'Schedule V(b)'!$B$11:$Z$315,13,0),0)","v":0},null,null,null,{"$f":"IFERROR(VLOOKUP(B191,'Schedule V(b)'!$B$11:$Z$315,17,0),0)","v":0},null,{"$f":"IFERROR(VLOOKUP(B191,'Schedule V(b)'!$B$11:$Z$315,25,0),0)","v":0},null,{"$f":"IFERROR(VLOOKUP(B191,'Schedule V(b)'!$B$11:$Z$315,23,0),0)","v":0}]
[181,null,null,{"$f":"IFERROR(VLOOKUP(B192,'Schedule V(b)'!$B$11:$Z$315,3,0),0)","v":0},null,{"$f":"IFERROR(VLOOKUP(B192,'Schedule V(b)'!$B$11:$Z$315,7,0),0)","v":"Select"},null,{"$f":"IFERROR(VLOOKUP(B192,'Schedule V(b)'!$B$11:$Z$315,9,0),0)","v":0},null,{"$f":"IFERROR(VLOOKUP(B192,'Schedule V(b)'!$B$11:$Z$315,11,0),0)","v":"Select"},null,{"$f":"IFERROR(VLOOKUP(B192,'Schedule V(b)'!$B$11:$Z$315,13,0),0)","v":0},null,null,null,{"$f":"IFERROR(VLOOKUP(B192,'Schedule V(b)'!$B$11:$Z$315,17,0),0)","v":0},null,{"$f":"IFERROR(VLOOKUP(B192,'Schedule V(b)'!$B$11:$Z$315,25,0),0)","v":0},null,{"$f":"IFERROR(VLOOKUP(B192,'Schedule V(b)'!$B$11:$Z$315,23,0),0)","v":0}]
[182,null,null,{"$f":"IFERROR(VLOOKUP(B193,'Schedule V(b)'!$B$11:$Z$315,3,0),0)","v":0},null,{"$f":"IFERROR(VLOOKUP(B193,'Schedule V(b)'!$B$11:$Z$315,7,0),0)","v":"Select"},null,{"$f":"IFERROR(VLOOKUP(B193,'Schedule V(b)'!$B$11:$Z$315,9,0),0)","v":0},null,{"$f":"IFERROR(VLOOKUP(B193,'Schedule V(b)'!$B$11:$Z$315,11,0),0)","v":"Select"},null,{"$f":"IFERROR(VLOOKUP(B193,'Schedule V(b)'!$B$11:$Z$315,13,0),0)","v":0},null,null,null,{"$f":"IFERROR(VLOOKUP(B193,'Schedule V(b)'!$B$11:$Z$315,17,0),0)","v":0},null,{"$f":"IFERROR(VLOOKUP(B193,'Schedule V(b)'!$B$11:$Z$315,25,0),0)","v":0},null,{"$f":"IFERROR(VLOOKUP(B193,'Schedule V(b)'!$B$11:$Z$315,23,0),0)","v":0}]
[183,null,null,{"$f":"IFERROR(VLOOKUP(B194,'Schedule V(b)'!$B$11:$Z$315,3,0),0)","v":0},null,{"$f":"IFERROR(VLOOKUP(B194,'Schedule V(b)'!$B$11:$Z$315,7,0),0)","v":"Select"},null,{"$f":"IFERROR(VLOOKUP(B194,'Schedule V(b)'!$B$11:$Z$315,9,0),0)","v":0},null,{"$f":"IFERROR(VLOOKUP(B194,'Schedule V(b)'!$B$11:$Z$315,11,0),0)","v":"Select"},null,{"$f":"IFERROR(VLOOKUP(B194,'Schedule V(b)'!$B$11:$Z$315,13,0),0)","v":0},null,null,null,{"$f":"IFERROR(VLOOKUP(B194,'Schedule V(b)'!$B$11:$Z$315,17,0),0)","v":0},null,{"$f":"IFERROR(VLOOKUP(B194,'Schedule V(b)'!$B$11:$Z$315,25,0),0)","v":0},null,{"$f":"IFERROR(VLOOKUP(B194,'Schedule V(b)'!$B$11:$Z$315,23,0),0)","v":0}]
[184,null,null,{"$f":"IFERROR(VLOOKUP(B195,'Schedule V(b)'!$B$11:$Z$315,3,0),0)","v":0},null,{"$f":"IFERROR(VLOOKUP(B195,'Schedule V(b)'!$B$11:$Z$315,7,0),0)","v":"Select"},null,{"$f":"IFERROR(VLOOKUP(B195,'Schedule V(b)'!$B$11:$Z$315,9,0),0)","v":0},null,{"$f":"IFERROR(VLOOKUP(B195,'Schedule V(b)'!$B$11:$Z$315,11,0),0)","v":"Select"},null,{"$f":"IFERROR(VLOOKUP(B195,'Schedule V(b)'!$B$11:$Z$315,13,0),0)","v":0},null,null,null,{"$f":"IFERROR(VLOOKUP(B195,'Schedule V(b)'!$B$11:$Z$315,17,0),0)","v":0},null,{"$f":"IFERROR(VLOOKUP(B195,'Schedule V(b)'!$B$11:$Z$315,25,0),0)","v":0},null,{"$f":"IFERROR(VLOOKUP(B195,'Schedule V(b)'!$B$11:$Z$315,23,0),0)","v":0}]
[185,null,null,{"$f":"IFERROR(VLOOKUP(B196,'Schedule V(b)'!$B$11:$Z$315,3,0),0)","v":0},null,{"$f":"IFERROR(VLOOKUP(B196,'Schedule V(b)'!$B$11:$Z$315,7,0),0)","v":"Select"},null,{"$f":"IFERROR(VLOOKUP(B196,'Schedule V(b)'!$B$11:$Z$315,9,0),0)","v":0},null,{"$f":"IFERROR(VLOOKUP(B196,'Schedule V(b)'!$B$11:$Z$315,11,0),0)","v":"Select"},null,{"$f":"IFERROR(VLOOKUP(B196,'Schedule V(b)'!$B$11:$Z$315,13,0),0)","v":0},null,null,null,{"$f":"IFERROR(VLOOKUP(B196,'Schedule V(b)'!$B$11:$Z$315,17,0),0)","v":0},null,{"$f":"IFERROR(VLOOKUP(B196,'Schedule V(b)'!$B$11:$Z$315,25,0),0)","v":0},null,{"$f":"IFERROR(VLOOKUP(B196,'Schedule V(b)'!$B$11:$Z$315,23,0),0)","v":0}]
[186,null,null,{"$f":"IFERROR(VLOOKUP(B197,'Schedule V(b)'!$B$11:$Z$315,3,0),0)","v":0},null,{"$f":"IFERROR(VLOOKUP(B197,'Schedule V(b)'!$B$11:$Z$315,7,0),0)","v":"Select"},null,{"$f":"IFERROR(VLOOKUP(B197,'Schedule V(b)'!$B$11:$Z$315,9,0),0)","v":0},null,{"$f":"IFERROR(VLOOKUP(B197,'Schedule V(b)'!$B$11:$Z$315,11,0),0)","v":"Select"},null,{"$f":"IFERROR(VLOOKUP(B197,'Schedule V(b)'!$B$11:$Z$315,13,0),0)","v":0},null,null,null,{"$f":"IFERROR(VLOOKUP(B197,'Schedule V(b)'!$B$11:$Z$315,17,0),0)","v":0},null,{"$f":"IFERROR(VLOOKUP(B197,'Schedule V(b)'!$B$11:$Z$315,25,0),0)","v":0},null,{"$f":"IFERROR(VLOOKUP(B197,'Schedule V(b)'!$B$11:$Z$315,23,0),0)","v":0}]
[187,null,null,{"$f":"IFERROR(VLOOKUP(B198,'Schedule V(b)'!$B$11:$Z$315,3,0),0)","v":0},null,{"$f":"IFERROR(VLOOKUP(B198,'Schedule V(b)'!$B$11:$Z$315,7,0),0)","v":"Select"},null,{"$f":"IFERROR(VLOOKUP(B198,'Schedule V(b)'!$B$11:$Z$315,9,0),0)","v":0},null,{"$f":"IFERROR(VLOOKUP(B198,'Schedule V(b)'!$B$11:$Z$315,11,0),0)","v":"Select"},null,{"$f":"IFERROR(VLOOKUP(B198,'Schedule V(b)'!$B$11:$Z$315,13,0),0)","v":0},null,null,null,{"$f":"IFERROR(VLOOKUP(B198,'Schedule V(b)'!$B$11:$Z$315,17,0),0)","v":0},null,{"$f":"IFERROR(VLOOKUP(B198,'Schedule V(b)'!$B$11:$Z$315,25,0),0)","v":0},null,{"$f":"IFERROR(VLOOKUP(B198,'Schedule V(b)'!$B$11:$Z$315,23,0),0)","v":0}]
[188,null,null,{"$f":"IFERROR(VLOOKUP(B199,'Schedule V(b)'!$B$11:$Z$315,3,0),0)","v":0},null,{"$f":"IFERROR(VLOOKUP(B199,'Schedule V(b)'!$B$11:$Z$315,7,0),0)","v":"Select"},null,{"$f":"IFERROR(VLOOKUP(B199,'Schedule V(b)'!$B$11:$Z$315,9,0),0)","v":0},null,{"$f":"IFERROR(VLOOKUP(B199,'Schedule V(b)'!$B$11:$Z$315,11,0),0)","v":"Select"},null,{"$f":"IFERROR(VLOOKUP(B199,'Schedule V(b)'!$B$11:$Z$315,13,0),0)","v":0},null,null,null,{"$f":"IFERROR(VLOOKUP(B199,'Schedule V(b)'!$B$11:$Z$315,17,0),0)","v":0},null,{"$f":"IFERROR(VLOOKUP(B199,'Schedule V(b)'!$B$11:$Z$315,25,0),0)","v":0},null,{"$f":"IFERROR(VLOOKUP(B199,'Schedule V(b)'!$B$11:$Z$315,23,0),0)","v":0}]
[189,null,null,{"$f":"IFERROR(VLOOKUP(B200,'Schedule V(b)'!$B$11:$Z$315,3,0),0)","v":0},null,{"$f":"IFERROR(VLOOKUP(B200,'Schedule V(b)'!$B$11:$Z$315,7,0),0)","v":"Select"},null,{"$f":"IFERROR(VLOOKUP(B200,'Schedule V(b)'!$B$11:$Z$315,9,0),0)","v":0},null,{"$f":"IFERROR(VLOOKUP(B200,'Schedule V(b)'!$B$11:$Z$315,11,0),0)","v":"Select"},null,{"$f":"IFERROR(VLOOKUP(B200,'Schedule V(b)'!$B$11:$Z$315,13,0),0)","v":0},null,null,null,{"$f":"IFERROR(VLOOKUP(B200,'Schedule V(b)'!$B$11:$Z$315,17,0),0)","v":0},null,{"$f":"IFERROR(VLOOKUP(B200,'Schedule V(b)'!$B$11:$Z$315,25,0),0)","v":0},null,{"$f":"IFERROR(VLOOKUP(B200,'Schedule V(b)'!$B$11:$Z$315,23,0),0)","v":0}]
[190,null,null,{"$f":"IFERROR(VLOOKUP(B201,'Schedule V(b)'!$B$11:$Z$315,3,0),0)","v":0},null,{"$f":"IFERROR(VLOOKUP(B201,'Schedule V(b)'!$B$11:$Z$315,7,0),0)","v":"Select"},null,{"$f":"IFERROR(VLOOKUP(B201,'Schedule V(b)'!$B$11:$Z$315,9,0),0)","v":0},null,{"$f":"IFERROR(VLOOKUP(B201,'Schedule V(b)'!$B$11:$Z$315,11,0),0)","v":"Select"},null,{"$f":"IFERROR(VLOOKUP(B201,'Schedule V(b)'!$B$11:$Z$315,13,0),0)","v":0},null,null,null,{"$f":"IFERROR(VLOOKUP(B201,'Schedule V(b)'!$B$11:$Z$315,17,0),0)","v":0},null,{"$f":"IFERROR(VLOOKUP(B201,'Schedule V(b)'!$B$11:$Z$315,25,0),0)","v":0},null,{"$f":"IFERROR(VLOOKUP(B201,'Schedule V(b)'!$B$11:$Z$315,23,0),0)","v":0}]
[191,null,null,{"$f":"IFERROR(VLOOKUP(B202,'Schedule V(b)'!$B$11:$Z$315,3,0),0)","v":0},null,{"$f":"IFERROR(VLOOKUP(B202,'Schedule V(b)'!$B$11:$Z$315,7,0),0)","v":"Select"},null,{"$f":"IFERROR(VLOOKUP(B202,'Schedule V(b)'!$B$11:$Z$315,9,0),0)","v":0},null,{"$f":"IFERROR(VLOOKUP(B202,'Schedule V(b)'!$B$11:$Z$315,11,0),0)","v":"Select"},null,{"$f":"IFERROR(VLOOKUP(B202,'Schedule V(b)'!$B$11:$Z$315,13,0),0)","v":0},null,null,null,{"$f":"IFERROR(VLOOKUP(B202,'Schedule V(b)'!$B$11:$Z$315,17,0),0)","v":0},null,{"$f":"IFERROR(VLOOKUP(B202,'Schedule V(b)'!$B$11:$Z$315,25,0),0)","v":0},null,{"$f":"IFERROR(VLOOKUP(B202,'Schedule V(b)'!$B$11:$Z$315,23,0),0)","v":0}]
[192,null,null,{"$f":"IFERROR(VLOOKUP(B203,'Schedule V(b)'!$B$11:$Z$315,3,0),0)","v":0},null,{"$f":"IFERROR(VLOOKUP(B203,'Schedule V(b)'!$B$11:$Z$315,7,0),0)","v":"Select"},null,{"$f":"IFERROR(VLOOKUP(B203,'Schedule V(b)'!$B$11:$Z$315,9,0),0)","v":0},null,{"$f":"IFERROR(VLOOKUP(B203,'Schedule V(b)'!$B$11:$Z$315,11,0),0)","v":"Select"},null,{"$f":"IFERROR(VLOOKUP(B203,'Schedule V(b)'!$B$11:$Z$315,13,0),0)","v":0},null,null,null,{"$f":"IFERROR(VLOOKUP(B203,'Schedule V(b)'!$B$11:$Z$315,17,0),0)","v":0},null,{"$f":"IFERROR(VLOOKUP(B203,'Schedule V(b)'!$B$11:$Z$315,25,0),0)","v":0},null,{"$f":"IFERROR(VLOOKUP(B203,'Schedule V(b)'!$B$11:$Z$315,23,0),0)","v":0}]
[193,null,null,{"$f":"IFERROR(VLOOKUP(B204,'Schedule V(b)'!$B$11:$Z$315,3,0),0)","v":0},null,{"$f":"IFERROR(VLOOKUP(B204,'Schedule V(b)'!$B$11:$Z$315,7,0),0)","v":"Select"},null,{"$f":"IFERROR(VLOOKUP(B204,'Schedule V(b)'!$B$11:$Z$315,9,0),0)","v":0},null,{"$f":"IFERROR(VLOOKUP(B204,'Schedule V(b)'!$B$11:$Z$315,11,0),0)","v":"Select"},null,{"$f":"IFERROR(VLOOKUP(B204,'Schedule V(b)'!$B$11:$Z$315,13,0),0)","v":0},null,null,null,{"$f":"IFERROR(VLOOKUP(B204,'Schedule V(b)'!$B$11:$Z$315,17,0),0)","v":0},null,{"$f":"IFERROR(VLOOKUP(B204,'Schedule V(b)'!$B$11:$Z$315,25,0),0)","v":0},null,{"$f":"IFERROR(VLOOKUP(B204,'Schedule V(b)'!$B$11:$Z$315,23,0),0)","v":0}]
[194,null,null,{"$f":"IFERROR(VLOOKUP(B205,'Schedule V(b)'!$B$11:$Z$315,3,0),0)","v":0},null,{"$f":"IFERROR(VLOOKUP(B205,'Schedule V(b)'!$B$11:$Z$315,7,0),0)","v":"Select"},null,{"$f":"IFERROR(VLOOKUP(B205,'Schedule V(b)'!$B$11:$Z$315,9,0),0)","v":0},null,{"$f":"IFERROR(VLOOKUP(B205,'Schedule V(b)'!$B$11:$Z$315,11,0),0)","v":"Select"},null,{"$f":"IFERROR(VLOOKUP(B205,'Schedule V(b)'!$B$11:$Z$315,13,0),0)","v":0},null,null,null,{"$f":"IFERROR(VLOOKUP(B205,'Schedule V(b)'!$B$11:$Z$315,17,0),0)","v":0},null,{"$f":"IFERROR(VLOOKUP(B205,'Schedule V(b)'!$B$11:$Z$315,25,0),0)","v":0},null,{"$f":"IFERROR(VLOOKUP(B205,'Schedule V(b)'!$B$11:$Z$315,23,0),0)","v":0}]
[195,null,null,{"$f":"IFERROR(VLOOKUP(B206,'Schedule V(b)'!$B$11:$Z$315,3,0),0)","v":0},null,{"$f":"IFERROR(VLOOKUP(B206,'Schedule V(b)'!$B$11:$Z$315,7,0),0)","v":"Select"},null,{"$f":"IFERROR(VLOOKUP(B206,'Schedule V(b)'!$B$11:$Z$315,9,0),0)","v":0},null,{"$f":"IFERROR(VLOOKUP(B206,'Schedule V(b)'!$B$11:$Z$315,11,0),0)","v":"Select"},null,{"$f":"IFERROR(VLOOKUP(B206,'Schedule V(b)'!$B$11:$Z$315,13,0),0)","v":0},null,null,null,{"$f":"IFERROR(VLOOKUP(B206,'Schedule V(b)'!$B$11:$Z$315,17,0),0)","v":0},null,{"$f":"IFERROR(VLOOKUP(B206,'Schedule V(b)'!$B$11:$Z$315,25,0),0)","v":0},null,{"$f":"IFERROR(VLOOKUP(B206,'Schedule V(b)'!$B$11:$Z$315,23,0),0)","v":0}]
[196,null,null,{"$f":"IFERROR(VLOOKUP(B207,'Schedule V(b)'!$B$11:$Z$315,3,0),0)","v":0},null,{"$f":"IFERROR(VLOOKUP(B207,'Schedule V(b)'!$B$11:$Z$315,7,0),0)","v":"Select"},null,{"$f":"IFERROR(VLOOKUP(B207,'Schedule V(b)'!$B$11:$Z$315,9,0),0)","v":0},null,{"$f":"IFERROR(VLOOKUP(B207,'Schedule V(b)'!$B$11:$Z$315,11,0),0)","v":"Select"},null,{"$f":"IFERROR(VLOOKUP(B207,'Schedule V(b)'!$B$11:$Z$315,13,0),0)","v":0},null,null,null,{"$f":"IFERROR(VLOOKUP(B207,'Schedule V(b)'!$B$11:$Z$315,17,0),0)","v":0},null,{"$f":"IFERROR(VLOOKUP(B207,'Schedule V(b)'!$B$11:$Z$315,25,0),0)","v":0},null,{"$f":"IFERROR(VLOOKUP(B207,'Schedule V(b)'!$B$11:$Z$315,23,0),0)","v":0}]
[197,null,null,{"$f":"IFERROR(VLOOKUP(B208,'Schedule V(b)'!$B$11:$Z$315,3,0),0)","v":0},null,{"$f":"IFERROR(VLOOKUP(B208,'Schedule V(b)'!$B$11:$Z$315,7,0),0)","v":"Select"},null,{"$f":"IFERROR(VLOOKUP(B208,'Schedule V(b)'!$B$11:$Z$315,9,0),0)","v":0},null,{"$f":"IFERROR(VLOOKUP(B208,'Schedule V(b)'!$B$11:$Z$315,11,0),0)","v":"Select"},null,{"$f":"IFERROR(VLOOKUP(B208,'Schedule V(b)'!$B$11:$Z$315,13,0),0)","v":0},null,null,null,{"$f":"IFERROR(VLOOKUP(B208,'Schedule V(b)'!$B$11:$Z$315,17,0),0)","v":0},null,{"$f":"IFERROR(VLOOKUP(B208,'Schedule V(b)'!$B$11:$Z$315,25,0),0)","v":0},null,{"$f":"IFERROR(VLOOKUP(B208,'Schedule V(b)'!$B$11:$Z$315,23,0),0)","v":0}]
[198,null,null,{"$f":"IFERROR(VLOOKUP(B209,'Schedule V(b)'!$B$11:$Z$315,3,0),0)","v":0},null,{"$f":"IFERROR(VLOOKUP(B209,'Schedule V(b)'!$B$11:$Z$315,7,0),0)","v":"Select"},null,{"$f":"IFERROR(VLOOKUP(B209,'Schedule V(b)'!$B$11:$Z$315,9,0),0)","v":0},null,{"$f":"IFERROR(VLOOKUP(B209,'Schedule V(b)'!$B$11:$Z$315,11,0),0)","v":"Select"},null,{"$f":"IFERROR(VLOOKUP(B209,'Schedule V(b)'!$B$11:$Z$315,13,0),0)","v":0},null,null,null,{"$f":"IFERROR(VLOOKUP(B209,'Schedule V(b)'!$B$11:$Z$315,17,0),0)","v":0},null,{"$f":"IFERROR(VLOOKUP(B209,'Schedule V(b)'!$B$11:$Z$315,25,0),0)","v":0},null,{"$f":"IFERROR(VLOOKUP(B209,'Schedule V(b)'!$B$11:$Z$315,23,0),0)","v":0}]
[199,null,null,{"$f":"IFERROR(VLOOKUP(B210,'Schedule V(b)'!$B$11:$Z$315,3,0),0)","v":0},null,{"$f":"IFERROR(VLOOKUP(B210,'Schedule V(b)'!$B$11:$Z$315,7,0),0)","v":"Select"},null,{"$f":"IFERROR(VLOOKUP(B210,'Schedule V(b)'!$B$11:$Z$315,9,0),0)","v":0},null,{"$f":"IFERROR(VLOOKUP(B210,'Schedule V(b)'!$B$11:$Z$315,11,0),0)","v":"Select"},null,{"$f":"IFERROR(VLOOKUP(B210,'Schedule V(b)'!$B$11:$Z$315,13,0),0)","v":0},null,null,null,{"$f":"IFERROR(VLOOKUP(B210,'Schedule V(b)'!$B$11:$Z$315,17,0),0)","v":0},null,{"$f":"IFERROR(VLOOKUP(B210,'Schedule V(b)'!$B$11:$Z$315,25,0),0)","v":0},null,{"$f":"IFERROR(VLOOKUP(B210,'Schedule V(b)'!$B$11:$Z$315,23,0),0)","v":0}]
[200,null,null,{"$f":"IFERROR(VLOOKUP(B211,'Schedule V(b)'!$B$11:$Z$315,3,0),0)","v":0},null,{"$f":"IFERROR(VLOOKUP(B211,'Schedule V(b)'!$B$11:$Z$315,7,0),0)","v":"Select"},null,{"$f":"IFERROR(VLOOKUP(B211,'Schedule V(b)'!$B$11:$Z$315,9,0),0)","v":0},null,{"$f":"IFERROR(VLOOKUP(B211,'Schedule V(b)'!$B$11:$Z$315,11,0),0)","v":"Select"},null,{"$f":"IFERROR(VLOOKUP(B211,'Schedule V(b)'!$B$11:$Z$315,13,0),0)","v":0},null,null,null,{"$f":"IFERROR(VLOOKUP(B211,'Schedule V(b)'!$B$11:$Z$315,17,0),0)","v":0},null,{"$f":"IFERROR(VLOOKUP(B211,'Schedule V(b)'!$B$11:$Z$315,25,0),0)","v":0},null,{"$f":"IFERROR(VLOOKUP(B211,'Schedule V(b)'!$B$11:$Z$315,23,0),0)","v":0}]
[201,null,null,{"$f":"IFERROR(VLOOKUP(B212,'Schedule V(b)'!$B$11:$Z$315,3,0),0)","v":0},null,{"$f":"IFERROR(VLOOKUP(B212,'Schedule V(b)'!$B$11:$Z$315,7,0),0)","v":"Select"},null,{"$f":"IFERROR(VLOOKUP(B212,'Schedule V(b)'!$B$11:$Z$315,9,0),0)","v":0},null,{"$f":"IFERROR(VLOOKUP(B212,'Schedule V(b)'!$B$11:$Z$315,11,0),0)","v":"Select"},null,{"$f":"IFERROR(VLOOKUP(B212,'Schedule V(b)'!$B$11:$Z$315,13,0),0)","v":0},null,null,null,{"$f":"IFERROR(VLOOKUP(B212,'Schedule V(b)'!$B$11:$Z$315,17,0),0)","v":0},null,{"$f":"IFERROR(VLOOKUP(B212,'Schedule V(b)'!$B$11:$Z$315,25,0),0)","v":0},null,{"$f":"IFERROR(VLOOKUP(B212,'Schedule V(b)'!$B$11:$Z$315,23,0),0)","v":0}]
[202,null,null,{"$f":"IFERROR(VLOOKUP(B213,'Schedule V(b)'!$B$11:$Z$315,3,0),0)","v":0},null,{"$f":"IFERROR(VLOOKUP(B213,'Schedule V(b)'!$B$11:$Z$315,7,0),0)","v":"Select"},null,{"$f":"IFERROR(VLOOKUP(B213,'Schedule V(b)'!$B$11:$Z$315,9,0),0)","v":0},null,{"$f":"IFERROR(VLOOKUP(B213,'Schedule V(b)'!$B$11:$Z$315,11,0),0)","v":"Select"},null,{"$f":"IFERROR(VLOOKUP(B213,'Schedule V(b)'!$B$11:$Z$315,13,0),0)","v":0},null,null,null,{"$f":"IFERROR(VLOOKUP(B213,'Schedule V(b)'!$B$11:$Z$315,17,0),0)","v":0},null,{"$f":"IFERROR(VLOOKUP(B213,'Schedule V(b)'!$B$11:$Z$315,25,0),0)","v":0},null,{"$f":"IFERROR(VLOOKUP(B213,'Schedule V(b)'!$B$11:$Z$315,23,0),0)","v":0}]
[203,null,null,{"$f":"IFERROR(VLOOKUP(B214,'Schedule V(b)'!$B$11:$Z$315,3,0),0)","v":0},null,{"$f":"IFERROR(VLOOKUP(B214,'Schedule V(b)'!$B$11:$Z$315,7,0),0)","v":"Select"},null,{"$f":"IFERROR(VLOOKUP(B214,'Schedule V(b)'!$B$11:$Z$315,9,0),0)","v":0},null,{"$f":"IFERROR(VLOOKUP(B214,'Schedule V(b)'!$B$11:$Z$315,11,0),0)","v":"Select"},null,{"$f":"IFERROR(VLOOKUP(B214,'Schedule V(b)'!$B$11:$Z$315,13,0),0)","v":0},null,null,null,{"$f":"IFERROR(VLOOKUP(B214,'Schedule V(b)'!$B$11:$Z$315,17,0),0)","v":0},null,{"$f":"IFERROR(VLOOKUP(B214,'Schedule V(b)'!$B$11:$Z$315,25,0),0)","v":0},null,{"$f":"IFERROR(VLOOKUP(B214,'Schedule V(b)'!$B$11:$Z$315,23,0),0)","v":0}]
[204,null,null,{"$f":"IFERROR(VLOOKUP(B215,'Schedule V(b)'!$B$11:$Z$315,3,0),0)","v":0},null,{"$f":"IFERROR(VLOOKUP(B215,'Schedule V(b)'!$B$11:$Z$315,7,0),0)","v":"Select"},null,{"$f":"IFERROR(VLOOKUP(B215,'Schedule V(b)'!$B$11:$Z$315,9,0),0)","v":0},null,{"$f":"IFERROR(VLOOKUP(B215,'Schedule V(b)'!$B$11:$Z$315,11,0),0)","v":"Select"},null,{"$f":"IFERROR(VLOOKUP(B215,'Schedule V(b)'!$B$11:$Z$315,13,0),0)","v":0},null,null,null,{"$f":"IFERROR(VLOOKUP(B215,'Schedule V(b)'!$B$11:$Z$315,17,0),0)","v":0},null,{"$f":"IFERROR(VLOOKUP(B215,'Schedule V(b)'!$B$11:$Z$315,25,0),0)","v":0},null,{"$f":"IFERROR(VLOOKUP(B215,'Schedule V(b)'!$B$11:$Z$315,23,0),0)","v":0}]
[205,null,null,{"$f":"IFERROR(VLOOKUP(B216,'Schedule V(b)'!$B$11:$Z$315,3,0),0)","v":0},null,{"$f":"IFERROR(VLOOKUP(B216,'Schedule V(b)'!$B$11:$Z$315,7,0),0)","v":"Select"},null,{"$f":"IFERROR(VLOOKUP(B216,'Schedule V(b)'!$B$11:$Z$315,9,0),0)","v":0},null,{"$f":"IFERROR(VLOOKUP(B216,'Schedule V(b)'!$B$11:$Z$315,11,0),0)","v":"Select"},null,{"$f":"IFERROR(VLOOKUP(B216,'Schedule V(b)'!$B$11:$Z$315,13,0),0)","v":0},null,null,null,{"$f":"IFERROR(VLOOKUP(B216,'Schedule V(b)'!$B$11:$Z$315,17,0),0)","v":0},null,{"$f":"IFERROR(VLOOKUP(B216,'Schedule V(b)'!$B$11:$Z$315,25,0),0)","v":0},null,{"$f":"IFERROR(VLOOKUP(B216,'Schedule V(b)'!$B$11:$Z$315,23,0),0)","v":0}]
[206,null,null,{"$f":"IFERROR(VLOOKUP(B217,'Schedule V(b)'!$B$11:$Z$315,3,0),0)","v":0},null,{"$f":"IFERROR(VLOOKUP(B217,'Schedule V(b)'!$B$11:$Z$315,7,0),0)","v":"Select"},null,{"$f":"IFERROR(VLOOKUP(B217,'Schedule V(b)'!$B$11:$Z$315,9,0),0)","v":0},null,{"$f":"IFERROR(VLOOKUP(B217,'Schedule V(b)'!$B$11:$Z$315,11,0),0)","v":"Select"},null,{"$f":"IFERROR(VLOOKUP(B217,'Schedule V(b)'!$B$11:$Z$315,13,0),0)","v":0},null,null,null,{"$f":"IFERROR(VLOOKUP(B217,'Schedule V(b)'!$B$11:$Z$315,17,0),0)","v":0},null,{"$f":"IFERROR(VLOOKUP(B217,'Schedule V(b)'!$B$11:$Z$315,25,0),0)","v":0},null,{"$f":"IFERROR(VLOOKUP(B217,'Schedule V(b)'!$B$11:$Z$315,23,0),0)","v":0}]
[207,null,null,{"$f":"IFERROR(VLOOKUP(B218,'Schedule V(b)'!$B$11:$Z$315,3,0),0)","v":0},null,{"$f":"IFERROR(VLOOKUP(B218,'Schedule V(b)'!$B$11:$Z$315,7,0),0)","v":"Select"},null,{"$f":"IFERROR(VLOOKUP(B218,'Schedule V(b)'!$B$11:$Z$315,9,0),0)","v":0},null,{"$f":"IFERROR(VLOOKUP(B218,'Schedule V(b)'!$B$11:$Z$315,11,0),0)","v":"Select"},null,{"$f":"IFERROR(VLOOKUP(B218,'Schedule V(b)'!$B$11:$Z$315,13,0),0)","v":0},null,null,null,{"$f":"IFERROR(VLOOKUP(B218,'Schedule V(b)'!$B$11:$Z$315,17,0),0)","v":0},null,{"$f":"IFERROR(VLOOKUP(B218,'Schedule V(b)'!$B$11:$Z$315,25,0),0)","v":0},null,{"$f":"IFERROR(VLOOKUP(B218,'Schedule V(b)'!$B$11:$Z$315,23,0),0)","v":0}]
[208,null,null,{"$f":"IFERROR(VLOOKUP(B219,'Schedule V(b)'!$B$11:$Z$315,3,0),0)","v":0},null,{"$f":"IFERROR(VLOOKUP(B219,'Schedule V(b)'!$B$11:$Z$315,7,0),0)","v":"Select"},null,{"$f":"IFERROR(VLOOKUP(B219,'Schedule V(b)'!$B$11:$Z$315,9,0),0)","v":0},null,{"$f":"IFERROR(VLOOKUP(B219,'Schedule V(b)'!$B$11:$Z$315,11,0),0)","v":"Select"},null,{"$f":"IFERROR(VLOOKUP(B219,'Schedule V(b)'!$B$11:$Z$315,13,0),0)","v":0},null,null,null,{"$f":"IFERROR(VLOOKUP(B219,'Schedule V(b)'!$B$11:$Z$315,17,0),0)","v":0},null,{"$f":"IFERROR(VLOOKUP(B219,'Schedule V(b)'!$B$11:$Z$315,25,0),0)","v":0},null,{"$f":"IFERROR(VLOOKUP(B219,'Schedule V(b)'!$B$11:$Z$315,23,0),0)","v":0}]
[209,null,null,{"$f":"IFERROR(VLOOKUP(B220,'Schedule V(b)'!$B$11:$Z$315,3,0),0)","v":0},null,{"$f":"IFERROR(VLOOKUP(B220,'Schedule V(b)'!$B$11:$Z$315,7,0),0)","v":"Select"},null,{"$f":"IFERROR(VLOOKUP(B220,'Schedule V(b)'!$B$11:$Z$315,9,0),0)","v":0},null,{"$f":"IFERROR(VLOOKUP(B220,'Schedule V(b)'!$B$11:$Z$315,11,0),0)","v":"Select"},null,{"$f":"IFERROR(VLOOKUP(B220,'Schedule V(b)'!$B$11:$Z$315,13,0),0)","v":0},null,null,null,{"$f":"IFERROR(VLOOKUP(B220,'Schedule V(b)'!$B$11:$Z$315,17,0),0)","v":0},null,{"$f":"IFERROR(VLOOKUP(B220,'Schedule V(b)'!$B$11:$Z$315,25,0),0)","v":0},null,{"$f":"IFERROR(VLOOKUP(B220,'Schedule V(b)'!$B$11:$Z$315,23,0),0)","v":0}]
[210,null,null,{"$f":"IFERROR(VLOOKUP(B221,'Schedule V(b)'!$B$11:$Z$315,3,0),0)","v":0},null,{"$f":"IFERROR(VLOOKUP(B221,'Schedule V(b)'!$B$11:$Z$315,7,0),0)","v":"Select"},null,{"$f":"IFERROR(VLOOKUP(B221,'Schedule V(b)'!$B$11:$Z$315,9,0),0)","v":0},null,{"$f":"IFERROR(VLOOKUP(B221,'Schedule V(b)'!$B$11:$Z$315,11,0),0)","v":"Select"},null,{"$f":"IFERROR(VLOOKUP(B221,'Schedule V(b)'!$B$11:$Z$315,13,0),0)","v":0},null,null,null,{"$f":"IFERROR(VLOOKUP(B221,'Schedule V(b)'!$B$11:$Z$315,17,0),0)","v":0},null,{"$f":"IFERROR(VLOOKUP(B221,'Schedule V(b)'!$B$11:$Z$315,25,0),0)","v":0},null,{"$f":"IFERROR(VLOOKUP(B221,'Schedule V(b)'!$B$11:$Z$315,23,0),0)","v":0}]
[211,null,null,{"$f":"IFERROR(VLOOKUP(B222,'Schedule V(b)'!$B$11:$Z$315,3,0),0)","v":0},null,{"$f":"IFERROR(VLOOKUP(B222,'Schedule V(b)'!$B$11:$Z$315,7,0),0)","v":"Select"},null,{"$f":"IFERROR(VLOOKUP(B222,'Schedule V(b)'!$B$11:$Z$315,9,0),0)","v":0},null,{"$f":"IFERROR(VLOOKUP(B222,'Schedule V(b)'!$B$11:$Z$315,11,0),0)","v":"Select"},null,{"$f":"IFERROR(VLOOKUP(B222,'Schedule V(b)'!$B$11:$Z$315,13,0),0)","v":0},null,null,null,{"$f":"IFERROR(VLOOKUP(B222,'Schedule V(b)'!$B$11:$Z$315,17,0),0)","v":0},null,{"$f":"IFERROR(VLOOKUP(B222,'Schedule V(b)'!$B$11:$Z$315,25,0),0)","v":0},null,{"$f":"IFERROR(VLOOKUP(B222,'Schedule V(b)'!$B$11:$Z$315,23,0),0)","v":0}]
[212,null,null,{"$f":"IFERROR(VLOOKUP(B223,'Schedule V(b)'!$B$11:$Z$315,3,0),0)","v":0},null,{"$f":"IFERROR(VLOOKUP(B223,'Schedule V(b)'!$B$11:$Z$315,7,0),0)","v":"Select"},null,{"$f":"IFERROR(VLOOKUP(B223,'Schedule V(b)'!$B$11:$Z$315,9,0),0)","v":0},null,{"$f":"IFERROR(VLOOKUP(B223,'Schedule V(b)'!$B$11:$Z$315,11,0),0)","v":"Select"},null,{"$f":"IFERROR(VLOOKUP(B223,'Schedule V(b)'!$B$11:$Z$315,13,0),0)","v":0},null,null,null,{"$f":"IFERROR(VLOOKUP(B223,'Schedule V(b)'!$B$11:$Z$315,17,0),0)","v":0},null,{"$f":"IFERROR(VLOOKUP(B223,'Schedule V(b)'!$B$11:$Z$315,25,0),0)","v":0},null,{"$f":"IFERROR(VLOOKUP(B223,'Schedule V(b)'!$B$11:$Z$315,23,0),0)","v":0}]
[213,null,null,{"$f":"IFERROR(VLOOKUP(B224,'Schedule V(b)'!$B$11:$Z$315,3,0),0)","v":0},null,{"$f":"IFERROR(VLOOKUP(B224,'Schedule V(b)'!$B$11:$Z$315,7,0),0)","v":"Select"},null,{"$f":"IFERROR(VLOOKUP(B224,'Schedule V(b)'!$B$11:$Z$315,9,0),0)","v":0},null,{"$f":"IFERROR(VLOOKUP(B224,'Schedule V(b)'!$B$11:$Z$315,11,0),0)","v":"Select"},null,{"$f":"IFERROR(VLOOKUP(B224,'Schedule V(b)'!$B$11:$Z$315,13,0),0)","v":0},null,null,null,{"$f":"IFERROR(VLOOKUP(B224,'Schedule V(b)'!$B$11:$Z$315,17,0),0)","v":0},null,{"$f":"IFERROR(VLOOKUP(B224,'Schedule V(b)'!$B$11:$Z$315,25,0),0)","v":0},null,{"$f":"IFERROR(VLOOKUP(B224,'Schedule V(b)'!$B$11:$Z$315,23,0),0)","v":0}]
[214,null,null,{"$f":"IFERROR(VLOOKUP(B225,'Schedule V(b)'!$B$11:$Z$315,3,0),0)","v":0},null,{"$f":"IFERROR(VLOOKUP(B225,'Schedule V(b)'!$B$11:$Z$315,7,0),0)","v":"Select"},null,{"$f":"IFERROR(VLOOKUP(B225,'Schedule V(b)'!$B$11:$Z$315,9,0),0)","v":0},null,{"$f":"IFERROR(VLOOKUP(B225,'Schedule V(b)'!$B$11:$Z$315,11,0),0)","v":"Select"},null,{"$f":"IFERROR(VLOOKUP(B225,'Schedule V(b)'!$B$11:$Z$315,13,0),0)","v":0},null,null,null,{"$f":"IFERROR(VLOOKUP(B225,'Schedule V(b)'!$B$11:$Z$315,17,0),0)","v":0},null,{"$f":"IFERROR(VLOOKUP(B225,'Schedule V(b)'!$B$11:$Z$315,25,0),0)","v":0},null,{"$f":"IFERROR(VLOOKUP(B225,'Schedule V(b)'!$B$11:$Z$315,23,0),0)","v":0}]
[215,null,null,{"$f":"IFERROR(VLOOKUP(B226,'Schedule V(b)'!$B$11:$Z$315,3,0),0)","v":0},null,{"$f":"IFERROR(VLOOKUP(B226,'Schedule V(b)'!$B$11:$Z$315,7,0),0)","v":"Select"},null,{"$f":"IFERROR(VLOOKUP(B226,'Schedule V(b)'!$B$11:$Z$315,9,0),0)","v":0},null,{"$f":"IFERROR(VLOOKUP(B226,'Schedule V(b)'!$B$11:$Z$315,11,0),0)","v":"Select"},null,{"$f":"IFERROR(VLOOKUP(B226,'Schedule V(b)'!$B$11:$Z$315,13,0),0)","v":0},null,null,null,{"$f":"IFERROR(VLOOKUP(B226,'Schedule V(b)'!$B$11:$Z$315,17,0),0)","v":0},null,{"$f":"IFERROR(VLOOKUP(B226,'Schedule V(b)'!$B$11:$Z$315,25,0),0)","v":0},null,{"$f":"IFERROR(VLOOKUP(B226,'Schedule V(b)'!$B$11:$Z$315,23,0),0)","v":0}]
[216,null,null,{"$f":"IFERROR(VLOOKUP(B227,'Schedule V(b)'!$B$11:$Z$315,3,0),0)","v":0},null,{"$f":"IFERROR(VLOOKUP(B227,'Schedule V(b)'!$B$11:$Z$315,7,0),0)","v":"Select"},null,{"$f":"IFERROR(VLOOKUP(B227,'Schedule V(b)'!$B$11:$Z$315,9,0),0)","v":0},null,{"$f":"IFERROR(VLOOKUP(B227,'Schedule V(b)'!$B$11:$Z$315,11,0),0)","v":"Select"},null,{"$f":"IFERROR(VLOOKUP(B227,'Schedule V(b)'!$B$11:$Z$315,13,0),0)","v":0},null,null,null,{"$f":"IFERROR(VLOOKUP(B227,'Schedule V(b)'!$B$11:$Z$315,17,0),0)","v":0},null,{"$f":"IFERROR(VLOOKUP(B227,'Schedule V(b)'!$B$11:$Z$315,25,0),0)","v":0},null,{"$f":"IFERROR(VLOOKUP(B227,'Schedule V(b)'!$B$11:$Z$315,23,0),0)","v":0}]
[217,null,null,{"$f":"IFERROR(VLOOKUP(B228,'Schedule V(b)'!$B$11:$Z$315,3,0),0)","v":0},null,{"$f":"IFERROR(VLOOKUP(B228,'Schedule V(b)'!$B$11:$Z$315,7,0),0)","v":"Select"},null,{"$f":"IFERROR(VLOOKUP(B228,'Schedule V(b)'!$B$11:$Z$315,9,0),0)","v":0},null,{"$f":"IFERROR(VLOOKUP(B228,'Schedule V(b)'!$B$11:$Z$315,11,0),0)","v":"Select"},null,{"$f":"IFERROR(VLOOKUP(B228,'Schedule V(b)'!$B$11:$Z$315,13,0),0)","v":0},null,null,null,{"$f":"IFERROR(VLOOKUP(B228,'Schedule V(b)'!$B$11:$Z$315,17,0),0)","v":0},null,{"$f":"IFERROR(VLOOKUP(B228,'Schedule V(b)'!$B$11:$Z$315,25,0),0)","v":0},null,{"$f":"IFERROR(VLOOKUP(B228,'Schedule V(b)'!$B$11:$Z$315,23,0),0)","v":0}]
[218,null,null,{"$f":"IFERROR(VLOOKUP(B229,'Schedule V(b)'!$B$11:$Z$315,3,0),0)","v":0},null,{"$f":"IFERROR(VLOOKUP(B229,'Schedule V(b)'!$B$11:$Z$315,7,0),0)","v":"Select"},null,{"$f":"IFERROR(VLOOKUP(B229,'Schedule V(b)'!$B$11:$Z$315,9,0),0)","v":0},null,{"$f":"IFERROR(VLOOKUP(B229,'Schedule V(b)'!$B$11:$Z$315,11,0),0)","v":"Select"},null,{"$f":"IFERROR(VLOOKUP(B229,'Schedule V(b)'!$B$11:$Z$315,13,0),0)","v":0},null,null,null,{"$f":"IFERROR(VLOOKUP(B229,'Schedule V(b)'!$B$11:$Z$315,17,0),0)","v":0},null,{"$f":"IFERROR(VLOOKUP(B229,'Schedule V(b)'!$B$11:$Z$315,25,0),0)","v":0},null,{"$f":"IFERROR(VLOOKUP(B229,'Schedule V(b)'!$B$11:$Z$315,23,0),0)","v":0}]
[219,null,null,{"$f":"IFERROR(VLOOKUP(B230,'Schedule V(b)'!$B$11:$Z$315,3,0),0)","v":0},null,{"$f":"IFERROR(VLOOKUP(B230,'Schedule V(b)'!$B$11:$Z$315,7,0),0)","v":"Select"},null,{"$f":"IFERROR(VLOOKUP(B230,'Schedule V(b)'!$B$11:$Z$315,9,0),0)","v":0},null,{"$f":"IFERROR(VLOOKUP(B230,'Schedule V(b)'!$B$11:$Z$315,11,0),0)","v":"Select"},null,{"$f":"IFERROR(VLOOKUP(B230,'Schedule V(b)'!$B$11:$Z$315,13,0),0)","v":0},null,null,null,{"$f":"IFERROR(VLOOKUP(B230,'Schedule V(b)'!$B$11:$Z$315,17,0),0)","v":0},null,{"$f":"IFERROR(VLOOKUP(B230,'Schedule V(b)'!$B$11:$Z$315,25,0),0)","v":0},null,{"$f":"IFERROR(VLOOKUP(B230,'Schedule V(b)'!$B$11:$Z$315,23,0),0)","v":0}]
[220,null,null,{"$f":"IFERROR(VLOOKUP(B231,'Schedule V(b)'!$B$11:$Z$315,3,0),0)","v":0},null,{"$f":"IFERROR(VLOOKUP(B231,'Schedule V(b)'!$B$11:$Z$315,7,0),0)","v":"Select"},null,{"$f":"IFERROR(VLOOKUP(B231,'Schedule V(b)'!$B$11:$Z$315,9,0),0)","v":0},null,{"$f":"IFERROR(VLOOKUP(B231,'Schedule V(b)'!$B$11:$Z$315,11,0),0)","v":"Select"},null,{"$f":"IFERROR(VLOOKUP(B231,'Schedule V(b)'!$B$11:$Z$315,13,0),0)","v":0},null,null,null,{"$f":"IFERROR(VLOOKUP(B231,'Schedule V(b)'!$B$11:$Z$315,17,0),0)","v":0},null,{"$f":"IFERROR(VLOOKUP(B231,'Schedule V(b)'!$B$11:$Z$315,25,0),0)","v":0},null,{"$f":"IFERROR(VLOOKUP(B231,'Schedule V(b)'!$B$11:$Z$315,23,0),0)","v":0}]
[221,null,null,{"$f":"IFERROR(VLOOKUP(B232,'Schedule V(b)'!$B$11:$Z$315,3,0),0)","v":0},null,{"$f":"IFERROR(VLOOKUP(B232,'Schedule V(b)'!$B$11:$Z$315,7,0),0)","v":"Select"},null,{"$f":"IFERROR(VLOOKUP(B232,'Schedule V(b)'!$B$11:$Z$315,9,0),0)","v":0},null,{"$f":"IFERROR(VLOOKUP(B232,'Schedule V(b)'!$B$11:$Z$315,11,0),0)","v":"Select"},null,{"$f":"IFERROR(VLOOKUP(B232,'Schedule V(b)'!$B$11:$Z$315,13,0),0)","v":0},null,null,null,{"$f":"IFERROR(VLOOKUP(B232,'Schedule V(b)'!$B$11:$Z$315,17,0),0)","v":0},null,{"$f":"IFERROR(VLOOKUP(B232,'Schedule V(b)'!$B$11:$Z$315,25,0),0)","v":0},null,{"$f":"IFERROR(VLOOKUP(B232,'Schedule V(b)'!$B$11:$Z$315,23,0),0)","v":0}]
[222,null,null,{"$f":"IFERROR(VLOOKUP(B233,'Schedule V(b)'!$B$11:$Z$315,3,0),0)","v":0},null,{"$f":"IFERROR(VLOOKUP(B233,'Schedule V(b)'!$B$11:$Z$315,7,0),0)","v":"Select"},null,{"$f":"IFERROR(VLOOKUP(B233,'Schedule V(b)'!$B$11:$Z$315,9,0),0)","v":0},null,{"$f":"IFERROR(VLOOKUP(B233,'Schedule V(b)'!$B$11:$Z$315,11,0),0)","v":"Select"},null,{"$f":"IFERROR(VLOOKUP(B233,'Schedule V(b)'!$B$11:$Z$315,13,0),0)","v":0},null,null,null,{"$f":"IFERROR(VLOOKUP(B233,'Schedule V(b)'!$B$11:$Z$315,17,0),0)","v":0},null,{"$f":"IFERROR(VLOOKUP(B233,'Schedule V(b)'!$B$11:$Z$315,25,0),0)","v":0},null,{"$f":"IFERROR(VLOOKUP(B233,'Schedule V(b)'!$B$11:$Z$315,23,0),0)","v":0}]
[223,null,null,{"$f":"IFERROR(VLOOKUP(B234,'Schedule V(b)'!$B$11:$Z$315,3,0),0)","v":0},null,{"$f":"IFERROR(VLOOKUP(B234,'Schedule V(b)'!$B$11:$Z$315,7,0),0)","v":"Select"},null,{"$f":"IFERROR(VLOOKUP(B234,'Schedule V(b)'!$B$11:$Z$315,9,0),0)","v":0},null,{"$f":"IFERROR(VLOOKUP(B234,'Schedule V(b)'!$B$11:$Z$315,11,0),0)","v":"Select"},null,{"$f":"IFERROR(VLOOKUP(B234,'Schedule V(b)'!$B$11:$Z$315,13,0),0)","v":0},null,null,null,{"$f":"IFERROR(VLOOKUP(B234,'Schedule V(b)'!$B$11:$Z$315,17,0),0)","v":0},null,{"$f":"IFERROR(VLOOKUP(B234,'Schedule V(b)'!$B$11:$Z$315,25,0),0)","v":0},null,{"$f":"IFERROR(VLOOKUP(B234,'Schedule V(b)'!$B$11:$Z$315,23,0),0)","v":0}]
[224,null,null,{"$f":"IFERROR(VLOOKUP(B235,'Schedule V(b)'!$B$11:$Z$315,3,0),0)","v":0},null,{"$f":"IFERROR(VLOOKUP(B235,'Schedule V(b)'!$B$11:$Z$315,7,0),0)","v":"Select"},null,{"$f":"IFERROR(VLOOKUP(B235,'Schedule V(b)'!$B$11:$Z$315,9,0),0)","v":0},null,{"$f":"IFERROR(VLOOKUP(B235,'Schedule V(b)'!$B$11:$Z$315,11,0),0)","v":"Select"},null,{"$f":"IFERROR(VLOOKUP(B235,'Schedule V(b)'!$B$11:$Z$315,13,0),0)","v":0},null,null,null,{"$f":"IFERROR(VLOOKUP(B235,'Schedule V(b)'!$B$11:$Z$315,17,0),0)","v":0},null,{"$f":"IFERROR(VLOOKUP(B235,'Schedule V(b)'!$B$11:$Z$315,25,0),0)","v":0},null,{"$f":"IFERROR(VLOOKUP(B235,'Schedule V(b)'!$B$11:$Z$315,23,0),0)","v":0}]
[225,null,null,{"$f":"IFERROR(VLOOKUP(B236,'Schedule V(b)'!$B$11:$Z$315,3,0),0)","v":0},null,{"$f":"IFERROR(VLOOKUP(B236,'Schedule V(b)'!$B$11:$Z$315,7,0),0)","v":"Select"},null,{"$f":"IFERROR(VLOOKUP(B236,'Schedule V(b)'!$B$11:$Z$315,9,0),0)","v":0},null,{"$f":"IFERROR(VLOOKUP(B236,'Schedule V(b)'!$B$11:$Z$315,11,0),0)","v":"Select"},null,{"$f":"IFERROR(VLOOKUP(B236,'Schedule V(b)'!$B$11:$Z$315,13,0),0)","v":0},null,null,null,{"$f":"IFERROR(VLOOKUP(B236,'Schedule V(b)'!$B$11:$Z$315,17,0),0)","v":0},null,{"$f":"IFERROR(VLOOKUP(B236,'Schedule V(b)'!$B$11:$Z$315,25,0),0)","v":0},null,{"$f":"IFERROR(VLOOKUP(B236,'Schedule V(b)'!$B$11:$Z$315,23,0),0)","v":0}]
[226,null,null,{"$f":"IFERROR(VLOOKUP(B237,'Schedule V(b)'!$B$11:$Z$315,3,0),0)","v":0},null,{"$f":"IFERROR(VLOOKUP(B237,'Schedule V(b)'!$B$11:$Z$315,7,0),0)","v":"Select"},null,{"$f":"IFERROR(VLOOKUP(B237,'Schedule V(b)'!$B$11:$Z$315,9,0),0)","v":0},null,{"$f":"IFERROR(VLOOKUP(B237,'Schedule V(b)'!$B$11:$Z$315,11,0),0)","v":"Select"},null,{"$f":"IFERROR(VLOOKUP(B237,'Schedule V(b)'!$B$11:$Z$315,13,0),0)","v":0},null,null,null,{"$f":"IFERROR(VLOOKUP(B237,'Schedule V(b)'!$B$11:$Z$315,17,0),0)","v":0},null,{"$f":"IFERROR(VLOOKUP(B237,'Schedule V(b)'!$B$11:$Z$315,25,0),0)","v":0},null,{"$f":"IFERROR(VLOOKUP(B237,'Schedule V(b)'!$B$11:$Z$315,23,0),0)","v":0}]
[227,null,null,{"$f":"IFERROR(VLOOKUP(B238,'Schedule V(b)'!$B$11:$Z$315,3,0),0)","v":0},null,{"$f":"IFERROR(VLOOKUP(B238,'Schedule V(b)'!$B$11:$Z$315,7,0),0)","v":"Select"},null,{"$f":"IFERROR(VLOOKUP(B238,'Schedule V(b)'!$B$11:$Z$315,9,0),0)","v":0},null,{"$f":"IFERROR(VLOOKUP(B238,'Schedule V(b)'!$B$11:$Z$315,11,0),0)","v":"Select"},null,{"$f":"IFERROR(VLOOKUP(B238,'Schedule V(b)'!$B$11:$Z$315,13,0),0)","v":0},null,null,null,{"$f":"IFERROR(VLOOKUP(B238,'Schedule V(b)'!$B$11:$Z$315,17,0),0)","v":0},null,{"$f":"IFERROR(VLOOKUP(B238,'Schedule V(b)'!$B$11:$Z$315,25,0),0)","v":0},null,{"$f":"IFERROR(VLOOKUP(B238,'Schedule V(b)'!$B$11:$Z$315,23,0),0)","v":0}]
[228,null,null,{"$f":"IFERROR(VLOOKUP(B239,'Schedule V(b)'!$B$11:$Z$315,3,0),0)","v":0},null,{"$f":"IFERROR(VLOOKUP(B239,'Schedule V(b)'!$B$11:$Z$315,7,0),0)","v":"Select"},null,{"$f":"IFERROR(VLOOKUP(B239,'Schedule V(b)'!$B$11:$Z$315,9,0),0)","v":0},null,{"$f":"IFERROR(VLOOKUP(B239,'Schedule V(b)'!$B$11:$Z$315,11,0),0)","v":"Select"},null,{"$f":"IFERROR(VLOOKUP(B239,'Schedule V(b)'!$B$11:$Z$315,13,0),0)","v":0},null,null,null,{"$f":"IFERROR(VLOOKUP(B239,'Schedule V(b)'!$B$11:$Z$315,17,0),0)","v":0},null,{"$f":"IFERROR(VLOOKUP(B239,'Schedule V(b)'!$B$11:$Z$315,25,0),0)","v":0},null,{"$f":"IFERROR(VLOOKUP(B239,'Schedule V(b)'!$B$11:$Z$315,23,0),0)","v":0}]
[229,null,null,{"$f":"IFERROR(VLOOKUP(B240,'Schedule V(b)'!$B$11:$Z$315,3,0),0)","v":0},null,{"$f":"IFERROR(VLOOKUP(B240,'Schedule V(b)'!$B$11:$Z$315,7,0),0)","v":"Select"},null,{"$f":"IFERROR(VLOOKUP(B240,'Schedule V(b)'!$B$11:$Z$315,9,0),0)","v":0},null,{"$f":"IFERROR(VLOOKUP(B240,'Schedule V(b)'!$B$11:$Z$315,11,0),0)","v":"Select"},null,{"$f":"IFERROR(VLOOKUP(B240,'Schedule V(b)'!$B$11:$Z$315,13,0),0)","v":0},null,null,null,{"$f":"IFERROR(VLOOKUP(B240,'Schedule V(b)'!$B$11:$Z$315,17,0),0)","v":0},null,{"$f":"IFERROR(VLOOKUP(B240,'Schedule V(b)'!$B$11:$Z$315,25,0),0)","v":0},null,{"$f":"IFERROR(VLOOKUP(B240,'Schedule V(b)'!$B$11:$Z$315,23,0),0)","v":0}]
[230,null,null,{"$f":"IFERROR(VLOOKUP(B241,'Schedule V(b)'!$B$11:$Z$315,3,0),0)","v":0},null,{"$f":"IFERROR(VLOOKUP(B241,'Schedule V(b)'!$B$11:$Z$315,7,0),0)","v":"Select"},null,{"$f":"IFERROR(VLOOKUP(B241,'Schedule V(b)'!$B$11:$Z$315,9,0),0)","v":0},null,{"$f":"IFERROR(VLOOKUP(B241,'Schedule V(b)'!$B$11:$Z$315,11,0),0)","v":"Select"},null,{"$f":"IFERROR(VLOOKUP(B241,'Schedule V(b)'!$B$11:$Z$315,13,0),0)","v":0},null,null,null,{"$f":"IFERROR(VLOOKUP(B241,'Schedule V(b)'!$B$11:$Z$315,17,0),0)","v":0},null,{"$f":"IFERROR(VLOOKUP(B241,'Schedule V(b)'!$B$11:$Z$315,25,0),0)","v":0},null,{"$f":"IFERROR(VLOOKUP(B241,'Schedule V(b)'!$B$11:$Z$315,23,0),0)","v":0}]
[231,null,null,{"$f":"IFERROR(VLOOKUP(B242,'Schedule V(b)'!$B$11:$Z$315,3,0),0)","v":0},null,{"$f":"IFERROR(VLOOKUP(B242,'Schedule V(b)'!$B$11:$Z$315,7,0),0)","v":"Select"},null,{"$f":"IFERROR(VLOOKUP(B242,'Schedule V(b)'!$B$11:$Z$315,9,0),0)","v":0},null,{"$f":"IFERROR(VLOOKUP(B242,'Schedule V(b)'!$B$11:$Z$315,11,0),0)","v":"Select"},null,{"$f":"IFERROR(VLOOKUP(B242,'Schedule V(b)'!$B$11:$Z$315,13,0),0)","v":0},null,null,null,{"$f":"IFERROR(VLOOKUP(B242,'Schedule V(b)'!$B$11:$Z$315,17,0),0)","v":0},null,{"$f":"IFERROR(VLOOKUP(B242,'Schedule V(b)'!$B$11:$Z$315,25,0),0)","v":0},null,{"$f":"IFERROR(VLOOKUP(B242,'Schedule V(b)'!$B$11:$Z$315,23,0),0)","v":0}]
[232,null,null,{"$f":"IFERROR(VLOOKUP(B243,'Schedule V(b)'!$B$11:$Z$315,3,0),0)","v":0},null,{"$f":"IFERROR(VLOOKUP(B243,'Schedule V(b)'!$B$11:$Z$315,7,0),0)","v":"Select"},null,{"$f":"IFERROR(VLOOKUP(B243,'Schedule V(b)'!$B$11:$Z$315,9,0),0)","v":0},null,{"$f":"IFERROR(VLOOKUP(B243,'Schedule V(b)'!$B$11:$Z$315,11,0),0)","v":"Select"},null,{"$f":"IFERROR(VLOOKUP(B243,'Schedule V(b)'!$B$11:$Z$315,13,0),0)","v":0},null,null,null,{"$f":"IFERROR(VLOOKUP(B243,'Schedule V(b)'!$B$11:$Z$315,17,0),0)","v":0},null,{"$f":"IFERROR(VLOOKUP(B243,'Schedule V(b)'!$B$11:$Z$315,25,0),0)","v":0},null,{"$f":"IFERROR(VLOOKUP(B243,'Schedule V(b)'!$B$11:$Z$315,23,0),0)","v":0}]
[233,null,null,{"$f":"IFERROR(VLOOKUP(B244,'Schedule V(b)'!$B$11:$Z$315,3,0),0)","v":0},null,{"$f":"IFERROR(VLOOKUP(B244,'Schedule V(b)'!$B$11:$Z$315,7,0),0)","v":"Select"},null,{"$f":"IFERROR(VLOOKUP(B244,'Schedule V(b)'!$B$11:$Z$315,9,0),0)","v":0},null,{"$f":"IFERROR(VLOOKUP(B244,'Schedule V(b)'!$B$11:$Z$315,11,0),0)","v":"Select"},null,{"$f":"IFERROR(VLOOKUP(B244,'Schedule V(b)'!$B$11:$Z$315,13,0),0)","v":0},null,null,null,{"$f":"IFERROR(VLOOKUP(B244,'Schedule V(b)'!$B$11:$Z$315,17,0),0)","v":0},null,{"$f":"IFERROR(VLOOKUP(B244,'Schedule V(b)'!$B$11:$Z$315,25,0),0)","v":0},null,{"$f":"IFERROR(VLOOKUP(B244,'Schedule V(b)'!$B$11:$Z$315,23,0),0)","v":0}]
[234,null,null,{"$f":"IFERROR(VLOOKUP(B245,'Schedule V(b)'!$B$11:$Z$315,3,0),0)","v":0},null,{"$f":"IFERROR(VLOOKUP(B245,'Schedule V(b)'!$B$11:$Z$315,7,0),0)","v":"Select"},null,{"$f":"IFERROR(VLOOKUP(B245,'Schedule V(b)'!$B$11:$Z$315,9,0),0)","v":0},null,{"$f":"IFERROR(VLOOKUP(B245,'Schedule V(b)'!$B$11:$Z$315,11,0),0)","v":"Select"},null,{"$f":"IFERROR(VLOOKUP(B245,'Schedule V(b)'!$B$11:$Z$315,13,0),0)","v":0},null,null,null,{"$f":"IFERROR(VLOOKUP(B245,'Schedule V(b)'!$B$11:$Z$315,17,0),0)","v":0},null,{"$f":"IFERROR(VLOOKUP(B245,'Schedule V(b)'!$B$11:$Z$315,25,0),0)","v":0},null,{"$f":"IFERROR(VLOOKUP(B245,'Schedule V(b)'!$B$11:$Z$315,23,0),0)","v":0}]
[235,null,null,{"$f":"IFERROR(VLOOKUP(B246,'Schedule V(b)'!$B$11:$Z$315,3,0),0)","v":0},null,{"$f":"IFERROR(VLOOKUP(B246,'Schedule V(b)'!$B$11:$Z$315,7,0),0)","v":"Select"},null,{"$f":"IFERROR(VLOOKUP(B246,'Schedule V(b)'!$B$11:$Z$315,9,0),0)","v":0},null,{"$f":"IFERROR(VLOOKUP(B246,'Schedule V(b)'!$B$11:$Z$315,11,0),0)","v":"Select"},null,{"$f":"IFERROR(VLOOKUP(B246,'Schedule V(b)'!$B$11:$Z$315,13,0),0)","v":0},null,null,null,{"$f":"IFERROR(VLOOKUP(B246,'Schedule V(b)'!$B$11:$Z$315,17,0),0)","v":0},null,{"$f":"IFERROR(VLOOKUP(B246,'Schedule V(b)'!$B$11:$Z$315,25,0),0)","v":0},null,{"$f":"IFERROR(VLOOKUP(B246,'Schedule V(b)'!$B$11:$Z$315,23,0),0)","v":0}]
[236,null,null,{"$f":"IFERROR(VLOOKUP(B247,'Schedule V(b)'!$B$11:$Z$315,3,0),0)","v":0},null,{"$f":"IFERROR(VLOOKUP(B247,'Schedule V(b)'!$B$11:$Z$315,7,0),0)","v":"Select"},null,{"$f":"IFERROR(VLOOKUP(B247,'Schedule V(b)'!$B$11:$Z$315,9,0),0)","v":0},null,{"$f":"IFERROR(VLOOKUP(B247,'Schedule V(b)'!$B$11:$Z$315,11,0),0)","v":"Select"},null,{"$f":"IFERROR(VLOOKUP(B247,'Schedule V(b)'!$B$11:$Z$315,13,0),0)","v":0},null,null,null,{"$f":"IFERROR(VLOOKUP(B247,'Schedule V(b)'!$B$11:$Z$315,17,0),0)","v":0},null,{"$f":"IFERROR(VLOOKUP(B247,'Schedule V(b)'!$B$11:$Z$315,25,0),0)","v":0},null,{"$f":"IFERROR(VLOOKUP(B247,'Schedule V(b)'!$B$11:$Z$315,23,0),0)","v":0}]
[237,null,null,{"$f":"IFERROR(VLOOKUP(B248,'Schedule V(b)'!$B$11:$Z$315,3,0),0)","v":0},null,{"$f":"IFERROR(VLOOKUP(B248,'Schedule V(b)'!$B$11:$Z$315,7,0),0)","v":"Select"},null,{"$f":"IFERROR(VLOOKUP(B248,'Schedule V(b)'!$B$11:$Z$315,9,0),0)","v":0},null,{"$f":"IFERROR(VLOOKUP(B248,'Schedule V(b)'!$B$11:$Z$315,11,0),0)","v":"Select"},null,{"$f":"IFERROR(VLOOKUP(B248,'Schedule V(b)'!$B$11:$Z$315,13,0),0)","v":0},null,null,null,{"$f":"IFERROR(VLOOKUP(B248,'Schedule V(b)'!$B$11:$Z$315,17,0),0)","v":0},null,{"$f":"IFERROR(VLOOKUP(B248,'Schedule V(b)'!$B$11:$Z$315,25,0),0)","v":0},null,{"$f":"IFERROR(VLOOKUP(B248,'Schedule V(b)'!$B$11:$Z$315,23,0),0)","v":0}]
[238,null,null,{"$f":"IFERROR(VLOOKUP(B249,'Schedule V(b)'!$B$11:$Z$315,3,0),0)","v":0},null,{"$f":"IFERROR(VLOOKUP(B249,'Schedule V(b)'!$B$11:$Z$315,7,0),0)","v":"Select"},null,{"$f":"IFERROR(VLOOKUP(B249,'Schedule V(b)'!$B$11:$Z$315,9,0),0)","v":0},null,{"$f":"IFERROR(VLOOKUP(B249,'Schedule V(b)'!$B$11:$Z$315,11,0),0)","v":"Select"},null,{"$f":"IFERROR(VLOOKUP(B249,'Schedule V(b)'!$B$11:$Z$315,13,0),0)","v":0},null,null,null,{"$f":"IFERROR(VLOOKUP(B249,'Schedule V(b)'!$B$11:$Z$315,17,0),0)","v":0},null,{"$f":"IFERROR(VLOOKUP(B249,'Schedule V(b)'!$B$11:$Z$315,25,0),0)","v":0},null,{"$f":"IFERROR(VLOOKUP(B249,'Schedule V(b)'!$B$11:$Z$315,23,0),0)","v":0}]
[239,null,null,{"$f":"IFERROR(VLOOKUP(B250,'Schedule V(b)'!$B$11:$Z$315,3,0),0)","v":0},null,{"$f":"IFERROR(VLOOKUP(B250,'Schedule V(b)'!$B$11:$Z$315,7,0),0)","v":"Select"},null,{"$f":"IFERROR(VLOOKUP(B250,'Schedule V(b)'!$B$11:$Z$315,9,0),0)","v":0},null,{"$f":"IFERROR(VLOOKUP(B250,'Schedule V(b)'!$B$11:$Z$315,11,0),0)","v":"Select"},null,{"$f":"IFERROR(VLOOKUP(B250,'Schedule V(b)'!$B$11:$Z$315,13,0),0)","v":0},null,null,null,{"$f":"IFERROR(VLOOKUP(B250,'Schedule V(b)'!$B$11:$Z$315,17,0),0)","v":0},null,{"$f":"IFERROR(VLOOKUP(B250,'Schedule V(b)'!$B$11:$Z$315,25,0),0)","v":0},null,{"$f":"IFERROR(VLOOKUP(B250,'Schedule V(b)'!$B$11:$Z$315,23,0),0)","v":0}]
[240,null,null,{"$f":"IFERROR(VLOOKUP(B251,'Schedule V(b)'!$B$11:$Z$315,3,0),0)","v":0},null,{"$f":"IFERROR(VLOOKUP(B251,'Schedule V(b)'!$B$11:$Z$315,7,0),0)","v":"Select"},null,{"$f":"IFERROR(VLOOKUP(B251,'Schedule V(b)'!$B$11:$Z$315,9,0),0)","v":0},null,{"$f":"IFERROR(VLOOKUP(B251,'Schedule V(b)'!$B$11:$Z$315,11,0),0)","v":"Select"},null,{"$f":"IFERROR(VLOOKUP(B251,'Schedule V(b)'!$B$11:$Z$315,13,0),0)","v":0},null,null,null,{"$f":"IFERROR(VLOOKUP(B251,'Schedule V(b)'!$B$11:$Z$315,17,0),0)","v":0},null,{"$f":"IFERROR(VLOOKUP(B251,'Schedule V(b)'!$B$11:$Z$315,25,0),0)","v":0},null,{"$f":"IFERROR(VLOOKUP(B251,'Schedule V(b)'!$B$11:$Z$315,23,0),0)","v":0}]
[241,null,null,{"$f":"IFERROR(VLOOKUP(B252,'Schedule V(b)'!$B$11:$Z$315,3,0),0)","v":0},null,{"$f":"IFERROR(VLOOKUP(B252,'Schedule V(b)'!$B$11:$Z$315,7,0),0)","v":"Select"},null,{"$f":"IFERROR(VLOOKUP(B252,'Schedule V(b)'!$B$11:$Z$315,9,0),0)","v":0},null,{"$f":"IFERROR(VLOOKUP(B252,'Schedule V(b)'!$B$11:$Z$315,11,0),0)","v":"Select"},null,{"$f":"IFERROR(VLOOKUP(B252,'Schedule V(b)'!$B$11:$Z$315,13,0),0)","v":0},null,null,null,{"$f":"IFERROR(VLOOKUP(B252,'Schedule V(b)'!$B$11:$Z$315,17,0),0)","v":0},null,{"$f":"IFERROR(VLOOKUP(B252,'Schedule V(b)'!$B$11:$Z$315,25,0),0)","v":0},null,{"$f":"IFERROR(VLOOKUP(B252,'Schedule V(b)'!$B$11:$Z$315,23,0),0)","v":0}]
[242,null,null,{"$f":"IFERROR(VLOOKUP(B253,'Schedule V(b)'!$B$11:$Z$315,3,0),0)","v":0},null,{"$f":"IFERROR(VLOOKUP(B253,'Schedule V(b)'!$B$11:$Z$315,7,0),0)","v":"Select"},null,{"$f":"IFERROR(VLOOKUP(B253,'Schedule V(b)'!$B$11:$Z$315,9,0),0)","v":0},null,{"$f":"IFERROR(VLOOKUP(B253,'Schedule V(b)'!$B$11:$Z$315,11,0),0)","v":"Select"},null,{"$f":"IFERROR(VLOOKUP(B253,'Schedule V(b)'!$B$11:$Z$315,13,0),0)","v":0},null,null,null,{"$f":"IFERROR(VLOOKUP(B253,'Schedule V(b)'!$B$11:$Z$315,17,0),0)","v":0},null,{"$f":"IFERROR(VLOOKUP(B253,'Schedule V(b)'!$B$11:$Z$315,25,0),0)","v":0},null,{"$f":"IFERROR(VLOOKUP(B253,'Schedule V(b)'!$B$11:$Z$315,23,0),0)","v":0}]
[243,null,null,{"$f":"IFERROR(VLOOKUP(B254,'Schedule V(b)'!$B$11:$Z$315,3,0),0)","v":0},null,{"$f":"IFERROR(VLOOKUP(B254,'Schedule V(b)'!$B$11:$Z$315,7,0),0)","v":"Select"},null,{"$f":"IFERROR(VLOOKUP(B254,'Schedule V(b)'!$B$11:$Z$315,9,0),0)","v":0},null,{"$f":"IFERROR(VLOOKUP(B254,'Schedule V(b)'!$B$11:$Z$315,11,0),0)","v":"Select"},null,{"$f":"IFERROR(VLOOKUP(B254,'Schedule V(b)'!$B$11:$Z$315,13,0),0)","v":0},null,null,null,{"$f":"IFERROR(VLOOKUP(B254,'Schedule V(b)'!$B$11:$Z$315,17,0),0)","v":0},null,{"$f":"IFERROR(VLOOKUP(B254,'Schedule V(b)'!$B$11:$Z$315,25,0),0)","v":0},null,{"$f":"IFERROR(VLOOKUP(B254,'Schedule V(b)'!$B$11:$Z$315,23,0),0)","v":0}]
[244,null,null,{"$f":"IFERROR(VLOOKUP(B255,'Schedule V(b)'!$B$11:$Z$315,3,0),0)","v":0},null,{"$f":"IFERROR(VLOOKUP(B255,'Schedule V(b)'!$B$11:$Z$315,7,0),0)","v":"Select"},null,{"$f":"IFERROR(VLOOKUP(B255,'Schedule V(b)'!$B$11:$Z$315,9,0),0)","v":0},null,{"$f":"IFERROR(VLOOKUP(B255,'Schedule V(b)'!$B$11:$Z$315,11,0),0)","v":"Select"},null,{"$f":"IFERROR(VLOOKUP(B255,'Schedule V(b)'!$B$11:$Z$315,13,0),0)","v":0},null,null,null,{"$f":"IFERROR(VLOOKUP(B255,'Schedule V(b)'!$B$11:$Z$315,17,0),0)","v":0},null,{"$f":"IFERROR(VLOOKUP(B255,'Schedule V(b)'!$B$11:$Z$315,25,0),0)","v":0},null,{"$f":"IFERROR(VLOOKUP(B255,'Schedule V(b)'!$B$11:$Z$315,23,0),0)","v":0}]
[245,null,null,{"$f":"IFERROR(VLOOKUP(B256,'Schedule V(b)'!$B$11:$Z$315,3,0),0)","v":0},null,{"$f":"IFERROR(VLOOKUP(B256,'Schedule V(b)'!$B$11:$Z$315,7,0),0)","v":"Select"},null,{"$f":"IFERROR(VLOOKUP(B256,'Schedule V(b)'!$B$11:$Z$315,9,0),0)","v":0},null,{"$f":"IFERROR(VLOOKUP(B256,'Schedule V(b)'!$B$11:$Z$315,11,0),0)","v":"Select"},null,{"$f":"IFERROR(VLOOKUP(B256,'Schedule V(b)'!$B$11:$Z$315,13,0),0)","v":0},null,null,null,{"$f":"IFERROR(VLOOKUP(B256,'Schedule V(b)'!$B$11:$Z$315,17,0),0)","v":0},null,{"$f":"IFERROR(VLOOKUP(B256,'Schedule V(b)'!$B$11:$Z$315,25,0),0)","v":0},null,{"$f":"IFERROR(VLOOKUP(B256,'Schedule V(b)'!$B$11:$Z$315,23,0),0)","v":0}]
[246,null,null,{"$f":"IFERROR(VLOOKUP(B257,'Schedule V(b)'!$B$11:$Z$315,3,0),0)","v":0},null,{"$f":"IFERROR(VLOOKUP(B257,'Schedule V(b)'!$B$11:$Z$315,7,0),0)","v":"Select"},null,{"$f":"IFERROR(VLOOKUP(B257,'Schedule V(b)'!$B$11:$Z$315,9,0),0)","v":0},null,{"$f":"IFERROR(VLOOKUP(B257,'Schedule V(b)'!$B$11:$Z$315,11,0),0)","v":"Select"},null,{"$f":"IFERROR(VLOOKUP(B257,'Schedule V(b)'!$B$11:$Z$315,13,0),0)","v":0},null,null,null,{"$f":"IFERROR(VLOOKUP(B257,'Schedule V(b)'!$B$11:$Z$315,17,0),0)","v":0},null,{"$f":"IFERROR(VLOOKUP(B257,'Schedule V(b)'!$B$11:$Z$315,25,0),0)","v":0},null,{"$f":"IFERROR(VLOOKUP(B257,'Schedule V(b)'!$B$11:$Z$315,23,0),0)","v":0}]
[247,null,null,{"$f":"IFERROR(VLOOKUP(B258,'Schedule V(b)'!$B$11:$Z$315,3,0),0)","v":0},null,{"$f":"IFERROR(VLOOKUP(B258,'Schedule V(b)'!$B$11:$Z$315,7,0),0)","v":"Select"},null,{"$f":"IFERROR(VLOOKUP(B258,'Schedule V(b)'!$B$11:$Z$315,9,0),0)","v":0},null,{"$f":"IFERROR(VLOOKUP(B258,'Schedule V(b)'!$B$11:$Z$315,11,0),0)","v":"Select"},null,{"$f":"IFERROR(VLOOKUP(B258,'Schedule V(b)'!$B$11:$Z$315,13,0),0)","v":0},null,null,null,{"$f":"IFERROR(VLOOKUP(B258,'Schedule V(b)'!$B$11:$Z$315,17,0),0)","v":0},null,{"$f":"IFERROR(VLOOKUP(B258,'Schedule V(b)'!$B$11:$Z$315,25,0),0)","v":0},null,{"$f":"IFERROR(VLOOKUP(B258,'Schedule V(b)'!$B$11:$Z$315,23,0),0)","v":0}]
[248,null,null,{"$f":"IFERROR(VLOOKUP(B259,'Schedule V(b)'!$B$11:$Z$315,3,0),0)","v":0},null,{"$f":"IFERROR(VLOOKUP(B259,'Schedule V(b)'!$B$11:$Z$315,7,0),0)","v":"Select"},null,{"$f":"IFERROR(VLOOKUP(B259,'Schedule V(b)'!$B$11:$Z$315,9,0),0)","v":0},null,{"$f":"IFERROR(VLOOKUP(B259,'Schedule V(b)'!$B$11:$Z$315,11,0),0)","v":"Select"},null,{"$f":"IFERROR(VLOOKUP(B259,'Schedule V(b)'!$B$11:$Z$315,13,0),0)","v":0},null,null,null,{"$f":"IFERROR(VLOOKUP(B259,'Schedule V(b)'!$B$11:$Z$315,17,0),0)","v":0},null,{"$f":"IFERROR(VLOOKUP(B259,'Schedule V(b)'!$B$11:$Z$315,25,0),0)","v":0},null,{"$f":"IFERROR(VLOOKUP(B259,'Schedule V(b)'!$B$11:$Z$315,23,0),0)","v":0}]
[249,null,null,{"$f":"IFERROR(VLOOKUP(B260,'Schedule V(b)'!$B$11:$Z$315,3,0),0)","v":0},null,{"$f":"IFERROR(VLOOKUP(B260,'Schedule V(b)'!$B$11:$Z$315,7,0),0)","v":"Select"},null,{"$f":"IFERROR(VLOOKUP(B260,'Schedule V(b)'!$B$11:$Z$315,9,0),0)","v":0},null,{"$f":"IFERROR(VLOOKUP(B260,'Schedule V(b)'!$B$11:$Z$315,11,0),0)","v":"Select"},null,{"$f":"IFERROR(VLOOKUP(B260,'Schedule V(b)'!$B$11:$Z$315,13,0),0)","v":0},null,null,null,{"$f":"IFERROR(VLOOKUP(B260,'Schedule V(b)'!$B$11:$Z$315,17,0),0)","v":0},null,{"$f":"IFERROR(VLOOKUP(B260,'Schedule V(b)'!$B$11:$Z$315,25,0),0)","v":0},null,{"$f":"IFERROR(VLOOKUP(B260,'Schedule V(b)'!$B$11:$Z$315,23,0),0)","v":0}]
[250,null,null,{"$f":"IFERROR(VLOOKUP(B261,'Schedule V(b)'!$B$11:$Z$315,3,0),0)","v":0},null,{"$f":"IFERROR(VLOOKUP(B261,'Schedule V(b)'!$B$11:$Z$315,7,0),0)","v":"Select"},null,{"$f":"IFERROR(VLOOKUP(B261,'Schedule V(b)'!$B$11:$Z$315,9,0),0)","v":0},null,{"$f":"IFERROR(VLOOKUP(B261,'Schedule V(b)'!$B$11:$Z$315,11,0),0)","v":"Select"},null,{"$f":"IFERROR(VLOOKUP(B261,'Schedule V(b)'!$B$11:$Z$315,13,0),0)","v":0},null,null,null,{"$f":"IFERROR(VLOOKUP(B261,'Schedule V(b)'!$B$11:$Z$315,17,0),0)","v":0},null,{"$f":"IFERROR(VLOOKUP(B261,'Schedule V(b)'!$B$11:$Z$315,25,0),0)","v":0},null,{"$f":"IFERROR(VLOOKUP(B261,'Schedule V(b)'!$B$11:$Z$315,23,0),0)","v":0}]
[251,null,null,{"$f":"IFERROR(VLOOKUP(B262,'Schedule V(b)'!$B$11:$Z$315,3,0),0)","v":0},null,{"$f":"IFERROR(VLOOKUP(B262,'Schedule V(b)'!$B$11:$Z$315,7,0),0)","v":"Select"},null,{"$f":"IFERROR(VLOOKUP(B262,'Schedule V(b)'!$B$11:$Z$315,9,0),0)","v":0},null,{"$f":"IFERROR(VLOOKUP(B262,'Schedule V(b)'!$B$11:$Z$315,11,0),0)","v":"Select"},null,{"$f":"IFERROR(VLOOKUP(B262,'Schedule V(b)'!$B$11:$Z$315,13,0),0)","v":0},null,null,null,{"$f":"IFERROR(VLOOKUP(B262,'Schedule V(b)'!$B$11:$Z$315,17,0),0)","v":0},null,{"$f":"IFERROR(VLOOKUP(B262,'Schedule V(b)'!$B$11:$Z$315,25,0),0)","v":0},null,{"$f":"IFERROR(VLOOKUP(B262,'Schedule V(b)'!$B$11:$Z$315,23,0),0)","v":0}]
[252,null,null,{"$f":"IFERROR(VLOOKUP(B263,'Schedule V(b)'!$B$11:$Z$315,3,0),0)","v":0},null,{"$f":"IFERROR(VLOOKUP(B263,'Schedule V(b)'!$B$11:$Z$315,7,0),0)","v":"Select"},null,{"$f":"IFERROR(VLOOKUP(B263,'Schedule V(b)'!$B$11:$Z$315,9,0),0)","v":0},null,{"$f":"IFERROR(VLOOKUP(B263,'Schedule V(b)'!$B$11:$Z$315,11,0),0)","v":"Select"},null,{"$f":"IFERROR(VLOOKUP(B263,'Schedule V(b)'!$B$11:$Z$315,13,0),0)","v":0},null,null,null,{"$f":"IFERROR(VLOOKUP(B263,'Schedule V(b)'!$B$11:$Z$315,17,0),0)","v":0},null,{"$f":"IFERROR(VLOOKUP(B263,'Schedule V(b)'!$B$11:$Z$315,25,0),0)","v":0},null,{"$f":"IFERROR(VLOOKUP(B263,'Schedule V(b)'!$B$11:$Z$315,23,0),0)","v":0}]
[253,null,null,{"$f":"IFERROR(VLOOKUP(B264,'Schedule V(b)'!$B$11:$Z$315,3,0),0)","v":0},null,{"$f":"IFERROR(VLOOKUP(B264,'Schedule V(b)'!$B$11:$Z$315,7,0),0)","v":"Select"},null,{"$f":"IFERROR(VLOOKUP(B264,'Schedule V(b)'!$B$11:$Z$315,9,0),0)","v":0},null,{"$f":"IFERROR(VLOOKUP(B264,'Schedule V(b)'!$B$11:$Z$315,11,0),0)","v":"Select"},null,{"$f":"IFERROR(VLOOKUP(B264,'Schedule V(b)'!$B$11:$Z$315,13,0),0)","v":0},null,null,null,{"$f":"IFERROR(VLOOKUP(B264,'Schedule V(b)'!$B$11:$Z$315,17,0),0)","v":0},null,{"$f":"IFERROR(VLOOKUP(B264,'Schedule V(b)'!$B$11:$Z$315,25,0),0)","v":0},null,{"$f":"IFERROR(VLOOKUP(B264,'Schedule V(b)'!$B$11:$Z$315,23,0),0)","v":0}]
[254,null,null,{"$f":"IFERROR(VLOOKUP(B265,'Schedule V(b)'!$B$11:$Z$315,3,0),0)","v":0},null,{"$f":"IFERROR(VLOOKUP(B265,'Schedule V(b)'!$B$11:$Z$315,7,0),0)","v":"Select"},null,{"$f":"IFERROR(VLOOKUP(B265,'Schedule V(b)'!$B$11:$Z$315,9,0),0)","v":0},null,{"$f":"IFERROR(VLOOKUP(B265,'Schedule V(b)'!$B$11:$Z$315,11,0),0)","v":"Select"},null,{"$f":"IFERROR(VLOOKUP(B265,'Schedule V(b)'!$B$11:$Z$315,13,0),0)","v":0},null,null,null,{"$f":"IFERROR(VLOOKUP(B265,'Schedule V(b)'!$B$11:$Z$315,17,0),0)","v":0},null,{"$f":"IFERROR(VLOOKUP(B265,'Schedule V(b)'!$B$11:$Z$315,25,0),0)","v":0},null,{"$f":"IFERROR(VLOOKUP(B265,'Schedule V(b)'!$B$11:$Z$315,23,0),0)","v":0}]
[255,null,null,{"$f":"IFERROR(VLOOKUP(B266,'Schedule V(b)'!$B$11:$Z$315,3,0),0)","v":0},null,{"$f":"IFERROR(VLOOKUP(B266,'Schedule V(b)'!$B$11:$Z$315,7,0),0)","v":"Select"},null,{"$f":"IFERROR(VLOOKUP(B266,'Schedule V(b)'!$B$11:$Z$315,9,0),0)","v":0},null,{"$f":"IFERROR(VLOOKUP(B266,'Schedule V(b)'!$B$11:$Z$315,11,0),0)","v":"Select"},null,{"$f":"IFERROR(VLOOKUP(B266,'Schedule V(b)'!$B$11:$Z$315,13,0),0)","v":0},null,null,null,{"$f":"IFERROR(VLOOKUP(B266,'Schedule V(b)'!$B$11:$Z$315,17,0),0)","v":0},null,{"$f":"IFERROR(VLOOKUP(B266,'Schedule V(b)'!$B$11:$Z$315,25,0),0)","v":0},null,{"$f":"IFERROR(VLOOKUP(B266,'Schedule V(b)'!$B$11:$Z$315,23,0),0)","v":0}]
[256,null,null,{"$f":"IFERROR(VLOOKUP(B267,'Schedule V(b)'!$B$11:$Z$315,3,0),0)","v":0},null,{"$f":"IFERROR(VLOOKUP(B267,'Schedule V(b)'!$B$11:$Z$315,7,0),0)","v":"Select"},null,{"$f":"IFERROR(VLOOKUP(B267,'Schedule V(b)'!$B$11:$Z$315,9,0),0)","v":0},null,{"$f":"IFERROR(VLOOKUP(B267,'Schedule V(b)'!$B$11:$Z$315,11,0),0)","v":"Select"},null,{"$f":"IFERROR(VLOOKUP(B267,'Schedule V(b)'!$B$11:$Z$315,13,0),0)","v":0},null,null,null,{"$f":"IFERROR(VLOOKUP(B267,'Schedule V(b)'!$B$11:$Z$315,17,0),0)","v":0},null,{"$f":"IFERROR(VLOOKUP(B267,'Schedule V(b)'!$B$11:$Z$315,25,0),0)","v":0},null,{"$f":"IFERROR(VLOOKUP(B267,'Schedule V(b)'!$B$11:$Z$315,23,0),0)","v":0}]
[257,null,null,{"$f":"IFERROR(VLOOKUP(B268,'Schedule V(b)'!$B$11:$Z$315,3,0),0)","v":0},null,{"$f":"IFERROR(VLOOKUP(B268,'Schedule V(b)'!$B$11:$Z$315,7,0),0)","v":"Select"},null,{"$f":"IFERROR(VLOOKUP(B268,'Schedule V(b)'!$B$11:$Z$315,9,0),0)","v":0},null,{"$f":"IFERROR(VLOOKUP(B268,'Schedule V(b)'!$B$11:$Z$315,11,0),0)","v":"Select"},null,{"$f":"IFERROR(VLOOKUP(B268,'Schedule V(b)'!$B$11:$Z$315,13,0),0)","v":0},null,null,null,{"$f":"IFERROR(VLOOKUP(B268,'Schedule V(b)'!$B$11:$Z$315,17,0),0)","v":0},null,{"$f":"IFERROR(VLOOKUP(B268,'Schedule V(b)'!$B$11:$Z$315,25,0),0)","v":0},null,{"$f":"IFERROR(VLOOKUP(B268,'Schedule V(b)'!$B$11:$Z$315,23,0),0)","v":0}]
[258,null,null,{"$f":"IFERROR(VLOOKUP(B269,'Schedule V(b)'!$B$11:$Z$315,3,0),0)","v":0},null,{"$f":"IFERROR(VLOOKUP(B269,'Schedule V(b)'!$B$11:$Z$315,7,0),0)","v":"Select"},null,{"$f":"IFERROR(VLOOKUP(B269,'Schedule V(b)'!$B$11:$Z$315,9,0),0)","v":0},null,{"$f":"IFERROR(VLOOKUP(B269,'Schedule V(b)'!$B$11:$Z$315,11,0),0)","v":"Select"},null,{"$f":"IFERROR(VLOOKUP(B269,'Schedule V(b)'!$B$11:$Z$315,13,0),0)","v":0},null,null,null,{"$f":"IFERROR(VLOOKUP(B269,'Schedule V(b)'!$B$11:$Z$315,17,0),0)","v":0},null,{"$f":"IFERROR(VLOOKUP(B269,'Schedule V(b)'!$B$11:$Z$315,25,0),0)","v":0},null,{"$f":"IFERROR(VLOOKUP(B269,'Schedule V(b)'!$B$11:$Z$315,23,0),0)","v":0}]
[259,null,null,{"$f":"IFERROR(VLOOKUP(B270,'Schedule V(b)'!$B$11:$Z$315,3,0),0)","v":0},null,{"$f":"IFERROR(VLOOKUP(B270,'Schedule V(b)'!$B$11:$Z$315,7,0),0)","v":"Select"},null,{"$f":"IFERROR(VLOOKUP(B270,'Schedule V(b)'!$B$11:$Z$315,9,0),0)","v":0},null,{"$f":"IFERROR(VLOOKUP(B270,'Schedule V(b)'!$B$11:$Z$315,11,0),0)","v":"Select"},null,{"$f":"IFERROR(VLOOKUP(B270,'Schedule V(b)'!$B$11:$Z$315,13,0),0)","v":0},null,null,null,{"$f":"IFERROR(VLOOKUP(B270,'Schedule V(b)'!$B$11:$Z$315,17,0),0)","v":0},null,{"$f":"IFERROR(VLOOKUP(B270,'Schedule V(b)'!$B$11:$Z$315,25,0),0)","v":0},null,{"$f":"IFERROR(VLOOKUP(B270,'Schedule V(b)'!$B$11:$Z$315,23,0),0)","v":0}]
[260,null,null,{"$f":"IFERROR(VLOOKUP(B271,'Schedule V(b)'!$B$11:$Z$315,3,0),0)","v":0},null,{"$f":"IFERROR(VLOOKUP(B271,'Schedule V(b)'!$B$11:$Z$315,7,0),0)","v":"Select"},null,{"$f":"IFERROR(VLOOKUP(B271,'Schedule V(b)'!$B$11:$Z$315,9,0),0)","v":0},null,{"$f":"IFERROR(VLOOKUP(B271,'Schedule V(b)'!$B$11:$Z$315,11,0),0)","v":"Select"},null,{"$f":"IFERROR(VLOOKUP(B271,'Schedule V(b)'!$B$11:$Z$315,13,0),0)","v":0},null,null,null,{"$f":"IFERROR(VLOOKUP(B271,'Schedule V(b)'!$B$11:$Z$315,17,0),0)","v":0},null,{"$f":"IFERROR(VLOOKUP(B271,'Schedule V(b)'!$B$11:$Z$315,25,0),0)","v":0},null,{"$f":"IFERROR(VLOOKUP(B271,'Schedule V(b)'!$B$11:$Z$315,23,0),0)","v":0}]
[261,null,null,{"$f":"IFERROR(VLOOKUP(B272,'Schedule V(b)'!$B$11:$Z$315,3,0),0)","v":0},null,{"$f":"IFERROR(VLOOKUP(B272,'Schedule V(b)'!$B$11:$Z$315,7,0),0)","v":"Select"},null,{"$f":"IFERROR(VLOOKUP(B272,'Schedule V(b)'!$B$11:$Z$315,9,0),0)","v":0},null,{"$f":"IFERROR(VLOOKUP(B272,'Schedule V(b)'!$B$11:$Z$315,11,0),0)","v":"Select"},null,{"$f":"IFERROR(VLOOKUP(B272,'Schedule V(b)'!$B$11:$Z$315,13,0),0)","v":0},null,null,null,{"$f":"IFERROR(VLOOKUP(B272,'Schedule V(b)'!$B$11:$Z$315,17,0),0)","v":0},null,{"$f":"IFERROR(VLOOKUP(B272,'Schedule V(b)'!$B$11:$Z$315,25,0),0)","v":0},null,{"$f":"IFERROR(VLOOKUP(B272,'Schedule V(b)'!$B$11:$Z$315,23,0),0)","v":0}]
[262,null,null,{"$f":"IFERROR(VLOOKUP(B273,'Schedule V(b)'!$B$11:$Z$315,3,0),0)","v":0},null,{"$f":"IFERROR(VLOOKUP(B273,'Schedule V(b)'!$B$11:$Z$315,7,0),0)","v":"Select"},null,{"$f":"IFERROR(VLOOKUP(B273,'Schedule V(b)'!$B$11:$Z$315,9,0),0)","v":0},null,{"$f":"IFERROR(VLOOKUP(B273,'Schedule V(b)'!$B$11:$Z$315,11,0),0)","v":"Select"},null,{"$f":"IFERROR(VLOOKUP(B273,'Schedule V(b)'!$B$11:$Z$315,13,0),0)","v":0},null,null,null,{"$f":"IFERROR(VLOOKUP(B273,'Schedule V(b)'!$B$11:$Z$315,17,0),0)","v":0},null,{"$f":"IFERROR(VLOOKUP(B273,'Schedule V(b)'!$B$11:$Z$315,25,0),0)","v":0},null,{"$f":"IFERROR(VLOOKUP(B273,'Schedule V(b)'!$B$11:$Z$315,23,0),0)","v":0}]
[263,null,null,{"$f":"IFERROR(VLOOKUP(B274,'Schedule V(b)'!$B$11:$Z$315,3,0),0)","v":0},null,{"$f":"IFERROR(VLOOKUP(B274,'Schedule V(b)'!$B$11:$Z$315,7,0),0)","v":"Select"},null,{"$f":"IFERROR(VLOOKUP(B274,'Schedule V(b)'!$B$11:$Z$315,9,0),0)","v":0},null,{"$f":"IFERROR(VLOOKUP(B274,'Schedule V(b)'!$B$11:$Z$315,11,0),0)","v":"Select"},null,{"$f":"IFERROR(VLOOKUP(B274,'Schedule V(b)'!$B$11:$Z$315,13,0),0)","v":0},null,null,null,{"$f":"IFERROR(VLOOKUP(B274,'Schedule V(b)'!$B$11:$Z$315,17,0),0)","v":0},null,{"$f":"IFERROR(VLOOKUP(B274,'Schedule V(b)'!$B$11:$Z$315,25,0),0)","v":0},null,{"$f":"IFERROR(VLOOKUP(B274,'Schedule V(b)'!$B$11:$Z$315,23,0),0)","v":0}]
[264,null,null,{"$f":"IFERROR(VLOOKUP(B275,'Schedule V(b)'!$B$11:$Z$315,3,0),0)","v":0},null,{"$f":"IFERROR(VLOOKUP(B275,'Schedule V(b)'!$B$11:$Z$315,7,0),0)","v":"Select"},null,{"$f":"IFERROR(VLOOKUP(B275,'Schedule V(b)'!$B$11:$Z$315,9,0),0)","v":0},null,{"$f":"IFERROR(VLOOKUP(B275,'Schedule V(b)'!$B$11:$Z$315,11,0),0)","v":"Select"},null,{"$f":"IFERROR(VLOOKUP(B275,'Schedule V(b)'!$B$11:$Z$315,13,0),0)","v":0},null,null,null,{"$f":"IFERROR(VLOOKUP(B275,'Schedule V(b)'!$B$11:$Z$315,17,0),0)","v":0},null,{"$f":"IFERROR(VLOOKUP(B275,'Schedule V(b)'!$B$11:$Z$315,25,0),0)","v":0},null,{"$f":"IFERROR(VLOOKUP(B275,'Schedule V(b)'!$B$11:$Z$315,23,0),0)","v":0}]
[265,null,null,{"$f":"IFERROR(VLOOKUP(B276,'Schedule V(b)'!$B$11:$Z$315,3,0),0)","v":0},null,{"$f":"IFERROR(VLOOKUP(B276,'Schedule V(b)'!$B$11:$Z$315,7,0),0)","v":"Select"},null,{"$f":"IFERROR(VLOOKUP(B276,'Schedule V(b)'!$B$11:$Z$315,9,0),0)","v":0},null,{"$f":"IFERROR(VLOOKUP(B276,'Schedule V(b)'!$B$11:$Z$315,11,0),0)","v":"Select"},null,{"$f":"IFERROR(VLOOKUP(B276,'Schedule V(b)'!$B$11:$Z$315,13,0),0)","v":0},null,null,null,{"$f":"IFERROR(VLOOKUP(B276,'Schedule V(b)'!$B$11:$Z$315,17,0),0)","v":0},null,{"$f":"IFERROR(VLOOKUP(B276,'Schedule V(b)'!$B$11:$Z$315,25,0),0)","v":0},null,{"$f":"IFERROR(VLOOKUP(B276,'Schedule V(b)'!$B$11:$Z$315,23,0),0)","v":0}]
[266,null,null,{"$f":"IFERROR(VLOOKUP(B277,'Schedule V(b)'!$B$11:$Z$315,3,0),0)","v":0},null,{"$f":"IFERROR(VLOOKUP(B277,'Schedule V(b)'!$B$11:$Z$315,7,0),0)","v":"Select"},null,{"$f":"IFERROR(VLOOKUP(B277,'Schedule V(b)'!$B$11:$Z$315,9,0),0)","v":0},null,{"$f":"IFERROR(VLOOKUP(B277,'Schedule V(b)'!$B$11:$Z$315,11,0),0)","v":"Select"},null,{"$f":"IFERROR(VLOOKUP(B277,'Schedule V(b)'!$B$11:$Z$315,13,0),0)","v":0},null,null,null,{"$f":"IFERROR(VLOOKUP(B277,'Schedule V(b)'!$B$11:$Z$315,17,0),0)","v":0},null,{"$f":"IFERROR(VLOOKUP(B277,'Schedule V(b)'!$B$11:$Z$315,25,0),0)","v":0},null,{"$f":"IFERROR(VLOOKUP(B277,'Schedule V(b)'!$B$11:$Z$315,23,0),0)","v":0}]
[267,null,null,{"$f":"IFERROR(VLOOKUP(B278,'Schedule V(b)'!$B$11:$Z$315,3,0),0)","v":0},null,{"$f":"IFERROR(VLOOKUP(B278,'Schedule V(b)'!$B$11:$Z$315,7,0),0)","v":"Select"},null,{"$f":"IFERROR(VLOOKUP(B278,'Schedule V(b)'!$B$11:$Z$315,9,0),0)","v":0},null,{"$f":"IFERROR(VLOOKUP(B278,'Schedule V(b)'!$B$11:$Z$315,11,0),0)","v":"Select"},null,{"$f":"IFERROR(VLOOKUP(B278,'Schedule V(b)'!$B$11:$Z$315,13,0),0)","v":0},null,null,null,{"$f":"IFERROR(VLOOKUP(B278,'Schedule V(b)'!$B$11:$Z$315,17,0),0)","v":0},null,{"$f":"IFERROR(VLOOKUP(B278,'Schedule V(b)'!$B$11:$Z$315,25,0),0)","v":0},null,{"$f":"IFERROR(VLOOKUP(B278,'Schedule V(b)'!$B$11:$Z$315,23,0),0)","v":0}]
[268,null,null,{"$f":"IFERROR(VLOOKUP(B279,'Schedule V(b)'!$B$11:$Z$315,3,0),0)","v":0},null,{"$f":"IFERROR(VLOOKUP(B279,'Schedule V(b)'!$B$11:$Z$315,7,0),0)","v":"Select"},null,{"$f":"IFERROR(VLOOKUP(B279,'Schedule V(b)'!$B$11:$Z$315,9,0),0)","v":0},null,{"$f":"IFERROR(VLOOKUP(B279,'Schedule V(b)'!$B$11:$Z$315,11,0),0)","v":"Select"},null,{"$f":"IFERROR(VLOOKUP(B279,'Schedule V(b)'!$B$11:$Z$315,13,0),0)","v":0},null,null,null,{"$f":"IFERROR(VLOOKUP(B279,'Schedule V(b)'!$B$11:$Z$315,17,0),0)","v":0},null,{"$f":"IFERROR(VLOOKUP(B279,'Schedule V(b)'!$B$11:$Z$315,25,0),0)","v":0},null,{"$f":"IFERROR(VLOOKUP(B279,'Schedule V(b)'!$B$11:$Z$315,23,0),0)","v":0}]
[269,null,null,{"$f":"IFERROR(VLOOKUP(B280,'Schedule V(b)'!$B$11:$Z$315,3,0),0)","v":0},null,{"$f":"IFERROR(VLOOKUP(B280,'Schedule V(b)'!$B$11:$Z$315,7,0),0)","v":"Select"},null,{"$f":"IFERROR(VLOOKUP(B280,'Schedule V(b)'!$B$11:$Z$315,9,0),0)","v":0},null,{"$f":"IFERROR(VLOOKUP(B280,'Schedule V(b)'!$B$11:$Z$315,11,0),0)","v":"Select"},null,{"$f":"IFERROR(VLOOKUP(B280,'Schedule V(b)'!$B$11:$Z$315,13,0),0)","v":0},null,null,null,{"$f":"IFERROR(VLOOKUP(B280,'Schedule V(b)'!$B$11:$Z$315,17,0),0)","v":0},null,{"$f":"IFERROR(VLOOKUP(B280,'Schedule V(b)'!$B$11:$Z$315,25,0),0)","v":0},null,{"$f":"IFERROR(VLOOKUP(B280,'Schedule V(b)'!$B$11:$Z$315,23,0),0)","v":0}]
[270,null,null,{"$f":"IFERROR(VLOOKUP(B281,'Schedule V(b)'!$B$11:$Z$315,3,0),0)","v":0},null,{"$f":"IFERROR(VLOOKUP(B281,'Schedule V(b)'!$B$11:$Z$315,7,0),0)","v":"Select"},null,{"$f":"IFERROR(VLOOKUP(B281,'Schedule V(b)'!$B$11:$Z$315,9,0),0)","v":0},null,{"$f":"IFERROR(VLOOKUP(B281,'Schedule V(b)'!$B$11:$Z$315,11,0),0)","v":"Select"},null,{"$f":"IFERROR(VLOOKUP(B281,'Schedule V(b)'!$B$11:$Z$315,13,0),0)","v":0},null,null,null,{"$f":"IFERROR(VLOOKUP(B281,'Schedule V(b)'!$B$11:$Z$315,17,0),0)","v":0},null,{"$f":"IFERROR(VLOOKUP(B281,'Schedule V(b)'!$B$11:$Z$315,25,0),0)","v":0},null,{"$f":"IFERROR(VLOOKUP(B281,'Schedule V(b)'!$B$11:$Z$315,23,0),0)","v":0}]
[271,null,null,{"$f":"IFERROR(VLOOKUP(B282,'Schedule V(b)'!$B$11:$Z$315,3,0),0)","v":0},null,{"$f":"IFERROR(VLOOKUP(B282,'Schedule V(b)'!$B$11:$Z$315,7,0),0)","v":"Select"},null,{"$f":"IFERROR(VLOOKUP(B282,'Schedule V(b)'!$B$11:$Z$315,9,0),0)","v":0},null,{"$f":"IFERROR(VLOOKUP(B282,'Schedule V(b)'!$B$11:$Z$315,11,0),0)","v":"Select"},null,{"$f":"IFERROR(VLOOKUP(B282,'Schedule V(b)'!$B$11:$Z$315,13,0),0)","v":0},null,null,null,{"$f":"IFERROR(VLOOKUP(B282,'Schedule V(b)'!$B$11:$Z$315,17,0),0)","v":0},null,{"$f":"IFERROR(VLOOKUP(B282,'Schedule V(b)'!$B$11:$Z$315,25,0),0)","v":0},null,{"$f":"IFERROR(VLOOKUP(B282,'Schedule V(b)'!$B$11:$Z$315,23,0),0)","v":0}]
[272,null,null,{"$f":"IFERROR(VLOOKUP(B283,'Schedule V(b)'!$B$11:$Z$315,3,0),0)","v":0},null,{"$f":"IFERROR(VLOOKUP(B283,'Schedule V(b)'!$B$11:$Z$315,7,0),0)","v":"Select"},null,{"$f":"IFERROR(VLOOKUP(B283,'Schedule V(b)'!$B$11:$Z$315,9,0),0)","v":0},null,{"$f":"IFERROR(VLOOKUP(B283,'Schedule V(b)'!$B$11:$Z$315,11,0),0)","v":"Select"},null,{"$f":"IFERROR(VLOOKUP(B283,'Schedule V(b)'!$B$11:$Z$315,13,0),0)","v":0},null,null,null,{"$f":"IFERROR(VLOOKUP(B283,'Schedule V(b)'!$B$11:$Z$315,17,0),0)","v":0},null,{"$f":"IFERROR(VLOOKUP(B283,'Schedule V(b)'!$B$11:$Z$315,25,0),0)","v":0},null,{"$f":"IFERROR(VLOOKUP(B283,'Schedule V(b)'!$B$11:$Z$315,23,0),0)","v":0}]
[273,null,null,{"$f":"IFERROR(VLOOKUP(B284,'Schedule V(b)'!$B$11:$Z$315,3,0),0)","v":0},null,{"$f":"IFERROR(VLOOKUP(B284,'Schedule V(b)'!$B$11:$Z$315,7,0),0)","v":"Select"},null,{"$f":"IFERROR(VLOOKUP(B284,'Schedule V(b)'!$B$11:$Z$315,9,0),0)","v":0},null,{"$f":"IFERROR(VLOOKUP(B284,'Schedule V(b)'!$B$11:$Z$315,11,0),0)","v":"Select"},null,{"$f":"IFERROR(VLOOKUP(B284,'Schedule V(b)'!$B$11:$Z$315,13,0),0)","v":0},null,null,null,{"$f":"IFERROR(VLOOKUP(B284,'Schedule V(b)'!$B$11:$Z$315,17,0),0)","v":0},null,{"$f":"IFERROR(VLOOKUP(B284,'Schedule V(b)'!$B$11:$Z$315,25,0),0)","v":0},null,{"$f":"IFERROR(VLOOKUP(B284,'Schedule V(b)'!$B$11:$Z$315,23,0),0)","v":0}]
[274,null,null,{"$f":"IFERROR(VLOOKUP(B285,'Schedule V(b)'!$B$11:$Z$315,3,0),0)","v":0},null,{"$f":"IFERROR(VLOOKUP(B285,'Schedule V(b)'!$B$11:$Z$315,7,0),0)","v":"Select"},null,{"$f":"IFERROR(VLOOKUP(B285,'Schedule V(b)'!$B$11:$Z$315,9,0),0)","v":0},null,{"$f":"IFERROR(VLOOKUP(B285,'Schedule V(b)'!$B$11:$Z$315,11,0),0)","v":"Select"},null,{"$f":"IFERROR(VLOOKUP(B285,'Schedule V(b)'!$B$11:$Z$315,13,0),0)","v":0},null,null,null,{"$f":"IFERROR(VLOOKUP(B285,'Schedule V(b)'!$B$11:$Z$315,17,0),0)","v":0},null,{"$f":"IFERROR(VLOOKUP(B285,'Schedule V(b)'!$B$11:$Z$315,25,0),0)","v":0},null,{"$f":"IFERROR(VLOOKUP(B285,'Schedule V(b)'!$B$11:$Z$315,23,0),0)","v":0}]
[275,null,null,{"$f":"IFERROR(VLOOKUP(B286,'Schedule V(b)'!$B$11:$Z$315,3,0),0)","v":0},null,{"$f":"IFERROR(VLOOKUP(B286,'Schedule V(b)'!$B$11:$Z$315,7,0),0)","v":"Select"},null,{"$f":"IFERROR(VLOOKUP(B286,'Schedule V(b)'!$B$11:$Z$315,9,0),0)","v":0},null,{"$f":"IFERROR(VLOOKUP(B286,'Schedule V(b)'!$B$11:$Z$315,11,0),0)","v":"Select"},null,{"$f":"IFERROR(VLOOKUP(B286,'Schedule V(b)'!$B$11:$Z$315,13,0),0)","v":0},null,null,null,{"$f":"IFERROR(VLOOKUP(B286,'Schedule V(b)'!$B$11:$Z$315,17,0),0)","v":0},null,{"$f":"IFERROR(VLOOKUP(B286,'Schedule V(b)'!$B$11:$Z$315,25,0),0)","v":0},null,{"$f":"IFERROR(VLOOKUP(B286,'Schedule V(b)'!$B$11:$Z$315,23,0),0)","v":0}]
[276,null,null,{"$f":"IFERROR(VLOOKUP(B287,'Schedule V(b)'!$B$11:$Z$315,3,0),0)","v":0},null,{"$f":"IFERROR(VLOOKUP(B287,'Schedule V(b)'!$B$11:$Z$315,7,0),0)","v":"Select"},null,{"$f":"IFERROR(VLOOKUP(B287,'Schedule V(b)'!$B$11:$Z$315,9,0),0)","v":0},null,{"$f":"IFERROR(VLOOKUP(B287,'Schedule V(b)'!$B$11:$Z$315,11,0),0)","v":"Select"},null,{"$f":"IFERROR(VLOOKUP(B287,'Schedule V(b)'!$B$11:$Z$315,13,0),0)","v":0},null,null,null,{"$f":"IFERROR(VLOOKUP(B287,'Schedule V(b)'!$B$11:$Z$315,17,0),0)","v":0},null,{"$f":"IFERROR(VLOOKUP(B287,'Schedule V(b)'!$B$11:$Z$315,25,0),0)","v":0},null,{"$f":"IFERROR(VLOOKUP(B287,'Schedule V(b)'!$B$11:$Z$315,23,0),0)","v":0}]
[277,null,null,{"$f":"IFERROR(VLOOKUP(B288,'Schedule V(b)'!$B$11:$Z$315,3,0),0)","v":0},null,{"$f":"IFERROR(VLOOKUP(B288,'Schedule V(b)'!$B$11:$Z$315,7,0),0)","v":"Select"},null,{"$f":"IFERROR(VLOOKUP(B288,'Schedule V(b)'!$B$11:$Z$315,9,0),0)","v":0},null,{"$f":"IFERROR(VLOOKUP(B288,'Schedule V(b)'!$B$11:$Z$315,11,0),0)","v":"Select"},null,{"$f":"IFERROR(VLOOKUP(B288,'Schedule V(b)'!$B$11:$Z$315,13,0),0)","v":0},null,null,null,{"$f":"IFERROR(VLOOKUP(B288,'Schedule V(b)'!$B$11:$Z$315,17,0),0)","v":0},null,{"$f":"IFERROR(VLOOKUP(B288,'Schedule V(b)'!$B$11:$Z$315,25,0),0)","v":0},null,{"$f":"IFERROR(VLOOKUP(B288,'Schedule V(b)'!$B$11:$Z$315,23,0),0)","v":0}]
[278,null,null,{"$f":"IFERROR(VLOOKUP(B289,'Schedule V(b)'!$B$11:$Z$315,3,0),0)","v":0},null,{"$f":"IFERROR(VLOOKUP(B289,'Schedule V(b)'!$B$11:$Z$315,7,0),0)","v":"Select"},null,{"$f":"IFERROR(VLOOKUP(B289,'Schedule V(b)'!$B$11:$Z$315,9,0),0)","v":0},null,{"$f":"IFERROR(VLOOKUP(B289,'Schedule V(b)'!$B$11:$Z$315,11,0),0)","v":"Select"},null,{"$f":"IFERROR(VLOOKUP(B289,'Schedule V(b)'!$B$11:$Z$315,13,0),0)","v":0},null,null,null,{"$f":"IFERROR(VLOOKUP(B289,'Schedule V(b)'!$B$11:$Z$315,17,0),0)","v":0},null,{"$f":"IFERROR(VLOOKUP(B289,'Schedule V(b)'!$B$11:$Z$315,25,0),0)","v":0},null,{"$f":"IFERROR(VLOOKUP(B289,'Schedule V(b)'!$B$11:$Z$315,23,0),0)","v":0}]
[279,null,null,{"$f":"IFERROR(VLOOKUP(B290,'Schedule V(b)'!$B$11:$Z$315,3,0),0)","v":0},null,{"$f":"IFERROR(VLOOKUP(B290,'Schedule V(b)'!$B$11:$Z$315,7,0),0)","v":"Select"},null,{"$f":"IFERROR(VLOOKUP(B290,'Schedule V(b)'!$B$11:$Z$315,9,0),0)","v":0},null,{"$f":"IFERROR(VLOOKUP(B290,'Schedule V(b)'!$B$11:$Z$315,11,0),0)","v":"Select"},null,{"$f":"IFERROR(VLOOKUP(B290,'Schedule V(b)'!$B$11:$Z$315,13,0),0)","v":0},null,null,null,{"$f":"IFERROR(VLOOKUP(B290,'Schedule V(b)'!$B$11:$Z$315,17,0),0)","v":0},null,{"$f":"IFERROR(VLOOKUP(B290,'Schedule V(b)'!$B$11:$Z$315,25,0),0)","v":0},null,{"$f":"IFERROR(VLOOKUP(B290,'Schedule V(b)'!$B$11:$Z$315,23,0),0)","v":0}]
[280,null,null,{"$f":"IFERROR(VLOOKUP(B291,'Schedule V(b)'!$B$11:$Z$315,3,0),0)","v":0},null,{"$f":"IFERROR(VLOOKUP(B291,'Schedule V(b)'!$B$11:$Z$315,7,0),0)","v":"Select"},null,{"$f":"IFERROR(VLOOKUP(B291,'Schedule V(b)'!$B$11:$Z$315,9,0),0)","v":0},null,{"$f":"IFERROR(VLOOKUP(B291,'Schedule V(b)'!$B$11:$Z$315,11,0),0)","v":"Select"},null,{"$f":"IFERROR(VLOOKUP(B291,'Schedule V(b)'!$B$11:$Z$315,13,0),0)","v":0},null,null,null,{"$f":"IFERROR(VLOOKUP(B291,'Schedule V(b)'!$B$11:$Z$315,17,0),0)","v":0},null,{"$f":"IFERROR(VLOOKUP(B291,'Schedule V(b)'!$B$11:$Z$315,25,0),0)","v":0},null,{"$f":"IFERROR(VLOOKUP(B291,'Schedule V(b)'!$B$11:$Z$315,23,0),0)","v":0}]
[281,null,null,{"$f":"IFERROR(VLOOKUP(B292,'Schedule V(b)'!$B$11:$Z$315,3,0),0)","v":0},null,{"$f":"IFERROR(VLOOKUP(B292,'Schedule V(b)'!$B$11:$Z$315,7,0),0)","v":"Select"},null,{"$f":"IFERROR(VLOOKUP(B292,'Schedule V(b)'!$B$11:$Z$315,9,0),0)","v":0},null,{"$f":"IFERROR(VLOOKUP(B292,'Schedule V(b)'!$B$11:$Z$315,11,0),0)","v":"Select"},null,{"$f":"IFERROR(VLOOKUP(B292,'Schedule V(b)'!$B$11:$Z$315,13,0),0)","v":0},null,null,null,{"$f":"IFERROR(VLOOKUP(B292,'Schedule V(b)'!$B$11:$Z$315,17,0),0)","v":0},null,{"$f":"IFERROR(VLOOKUP(B292,'Schedule V(b)'!$B$11:$Z$315,25,0),0)","v":0},null,{"$f":"IFERROR(VLOOKUP(B292,'Schedule V(b)'!$B$11:$Z$315,23,0),0)","v":0}]
[282,null,null,{"$f":"IFERROR(VLOOKUP(B293,'Schedule V(b)'!$B$11:$Z$315,3,0),0)","v":0},null,{"$f":"IFERROR(VLOOKUP(B293,'Schedule V(b)'!$B$11:$Z$315,7,0),0)","v":"Select"},null,{"$f":"IFERROR(VLOOKUP(B293,'Schedule V(b)'!$B$11:$Z$315,9,0),0)","v":0},null,{"$f":"IFERROR(VLOOKUP(B293,'Schedule V(b)'!$B$11:$Z$315,11,0),0)","v":"Select"},null,{"$f":"IFERROR(VLOOKUP(B293,'Schedule V(b)'!$B$11:$Z$315,13,0),0)","v":0},null,null,null,{"$f":"IFERROR(VLOOKUP(B293,'Schedule V(b)'!$B$11:$Z$315,17,0),0)","v":0},null,{"$f":"IFERROR(VLOOKUP(B293,'Schedule V(b)'!$B$11:$Z$315,25,0),0)","v":0},null,{"$f":"IFERROR(VLOOKUP(B293,'Schedule V(b)'!$B$11:$Z$315,23,0),0)","v":0}]
[283,null,null,{"$f":"IFERROR(VLOOKUP(B294,'Schedule V(b)'!$B$11:$Z$315,3,0),0)","v":0},null,{"$f":"IFERROR(VLOOKUP(B294,'Schedule V(b)'!$B$11:$Z$315,7,0),0)","v":"Select"},null,{"$f":"IFERROR(VLOOKUP(B294,'Schedule V(b)'!$B$11:$Z$315,9,0),0)","v":0},null,{"$f":"IFERROR(VLOOKUP(B294,'Schedule V(b)'!$B$11:$Z$315,11,0),0)","v":"Select"},null,{"$f":"IFERROR(VLOOKUP(B294,'Schedule V(b)'!$B$11:$Z$315,13,0),0)","v":0},null,null,null,{"$f":"IFERROR(VLOOKUP(B294,'Schedule V(b)'!$B$11:$Z$315,17,0),0)","v":0},null,{"$f":"IFERROR(VLOOKUP(B294,'Schedule V(b)'!$B$11:$Z$315,25,0),0)","v":0},null,{"$f":"IFERROR(VLOOKUP(B294,'Schedule V(b)'!$B$11:$Z$315,23,0),0)","v":0}]
[284,null,null,{"$f":"IFERROR(VLOOKUP(B295,'Schedule V(b)'!$B$11:$Z$315,3,0),0)","v":0},null,{"$f":"IFERROR(VLOOKUP(B295,'Schedule V(b)'!$B$11:$Z$315,7,0),0)","v":"Select"},null,{"$f":"IFERROR(VLOOKUP(B295,'Schedule V(b)'!$B$11:$Z$315,9,0),0)","v":0},null,{"$f":"IFERROR(VLOOKUP(B295,'Schedule V(b)'!$B$11:$Z$315,11,0),0)","v":"Select"},null,{"$f":"IFERROR(VLOOKUP(B295,'Schedule V(b)'!$B$11:$Z$315,13,0),0)","v":0},null,null,null,{"$f":"IFERROR(VLOOKUP(B295,'Schedule V(b)'!$B$11:$Z$315,17,0),0)","v":0},null,{"$f":"IFERROR(VLOOKUP(B295,'Schedule V(b)'!$B$11:$Z$315,25,0),0)","v":0},null,{"$f":"IFERROR(VLOOKUP(B295,'Schedule V(b)'!$B$11:$Z$315,23,0),0)","v":0}]
[285,null,null,{"$f":"IFERROR(VLOOKUP(B296,'Schedule V(b)'!$B$11:$Z$315,3,0),0)","v":0},null,{"$f":"IFERROR(VLOOKUP(B296,'Schedule V(b)'!$B$11:$Z$315,7,0),0)","v":"Select"},null,{"$f":"IFERROR(VLOOKUP(B296,'Schedule V(b)'!$B$11:$Z$315,9,0),0)","v":0},null,{"$f":"IFERROR(VLOOKUP(B296,'Schedule V(b)'!$B$11:$Z$315,11,0),0)","v":"Select"},null,{"$f":"IFERROR(VLOOKUP(B296,'Schedule V(b)'!$B$11:$Z$315,13,0),0)","v":0},null,null,null,{"$f":"IFERROR(VLOOKUP(B296,'Schedule V(b)'!$B$11:$Z$315,17,0),0)","v":0},null,{"$f":"IFERROR(VLOOKUP(B296,'Schedule V(b)'!$B$11:$Z$315,25,0),0)","v":0},null,{"$f":"IFERROR(VLOOKUP(B296,'Schedule V(b)'!$B$11:$Z$315,23,0),0)","v":0}]
[286,null,null,{"$f":"IFERROR(VLOOKUP(B297,'Schedule V(b)'!$B$11:$Z$315,3,0),0)","v":0},null,{"$f":"IFERROR(VLOOKUP(B297,'Schedule V(b)'!$B$11:$Z$315,7,0),0)","v":"Select"},null,{"$f":"IFERROR(VLOOKUP(B297,'Schedule V(b)'!$B$11:$Z$315,9,0),0)","v":0},null,{"$f":"IFERROR(VLOOKUP(B297,'Schedule V(b)'!$B$11:$Z$315,11,0),0)","v":"Select"},null,{"$f":"IFERROR(VLOOKUP(B297,'Schedule V(b)'!$B$11:$Z$315,13,0),0)","v":0},null,null,null,{"$f":"IFERROR(VLOOKUP(B297,'Schedule V(b)'!$B$11:$Z$315,17,0),0)","v":0},null,{"$f":"IFERROR(VLOOKUP(B297,'Schedule V(b)'!$B$11:$Z$315,25,0),0)","v":0},null,{"$f":"IFERROR(VLOOKUP(B297,'Schedule V(b)'!$B$11:$Z$315,23,0),0)","v":0}]
[287,null,null,{"$f":"IFERROR(VLOOKUP(B298,'Schedule V(b)'!$B$11:$Z$315,3,0),0)","v":0},null,{"$f":"IFERROR(VLOOKUP(B298,'Schedule V(b)'!$B$11:$Z$315,7,0),0)","v":"Select"},null,{"$f":"IFERROR(VLOOKUP(B298,'Schedule V(b)'!$B$11:$Z$315,9,0),0)","v":0},null,{"$f":"IFERROR(VLOOKUP(B298,'Schedule V(b)'!$B$11:$Z$315,11,0),0)","v":"Select"},null,{"$f":"IFERROR(VLOOKUP(B298,'Schedule V(b)'!$B$11:$Z$315,13,0),0)","v":0},null,null,null,{"$f":"IFERROR(VLOOKUP(B298,'Schedule V(b)'!$B$11:$Z$315,17,0),0)","v":0},null,{"$f":"IFERROR(VLOOKUP(B298,'Schedule V(b)'!$B$11:$Z$315,25,0),0)","v":0},null,{"$f":"IFERROR(VLOOKUP(B298,'Schedule V(b)'!$B$11:$Z$315,23,0),0)","v":0}]
[288,null,null,{"$f":"IFERROR(VLOOKUP(B299,'Schedule V(b)'!$B$11:$Z$315,3,0),0)","v":0},null,{"$f":"IFERROR(VLOOKUP(B299,'Schedule V(b)'!$B$11:$Z$315,7,0),0)","v":"Select"},null,{"$f":"IFERROR(VLOOKUP(B299,'Schedule V(b)'!$B$11:$Z$315,9,0),0)","v":0},null,{"$f":"IFERROR(VLOOKUP(B299,'Schedule V(b)'!$B$11:$Z$315,11,0),0)","v":"Select"},null,{"$f":"IFERROR(VLOOKUP(B299,'Schedule V(b)'!$B$11:$Z$315,13,0),0)","v":0},null,null,null,{"$f":"IFERROR(VLOOKUP(B299,'Schedule V(b)'!$B$11:$Z$315,17,0),0)","v":0},null,{"$f":"IFERROR(VLOOKUP(B299,'Schedule V(b)'!$B$11:$Z$315,25,0),0)","v":0},null,{"$f":"IFERROR(VLOOKUP(B299,'Schedule V(b)'!$B$11:$Z$315,23,0),0)","v":0}]
[289,null,null,{"$f":"IFERROR(VLOOKUP(B300,'Schedule V(b)'!$B$11:$Z$315,3,0),0)","v":0},null,{"$f":"IFERROR(VLOOKUP(B300,'Schedule V(b)'!$B$11:$Z$315,7,0),0)","v":"Select"},null,{"$f":"IFERROR(VLOOKUP(B300,'Schedule V(b)'!$B$11:$Z$315,9,0),0)","v":0},null,{"$f":"IFERROR(VLOOKUP(B300,'Schedule V(b)'!$B$11:$Z$315,11,0),0)","v":"Select"},null,{"$f":"IFERROR(VLOOKUP(B300,'Schedule V(b)'!$B$11:$Z$315,13,0),0)","v":0},null,null,null,{"$f":"IFERROR(VLOOKUP(B300,'Schedule V(b)'!$B$11:$Z$315,17,0),0)","v":0},null,{"$f":"IFERROR(VLOOKUP(B300,'Schedule V(b)'!$B$11:$Z$315,25,0),0)","v":0},null,{"$f":"IFERROR(VLOOKUP(B300,'Schedule V(b)'!$B$11:$Z$315,23,0),0)","v":0}]
[290,null,null,{"$f":"IFERROR(VLOOKUP(B301,'Schedule V(b)'!$B$11:$Z$315,3,0),0)","v":0},null,{"$f":"IFERROR(VLOOKUP(B301,'Schedule V(b)'!$B$11:$Z$315,7,0),0)","v":"Select"},null,{"$f":"IFERROR(VLOOKUP(B301,'Schedule V(b)'!$B$11:$Z$315,9,0),0)","v":0},null,{"$f":"IFERROR(VLOOKUP(B301,'Schedule V(b)'!$B$11:$Z$315,11,0),0)","v":"Select"},null,{"$f":"IFERROR(VLOOKUP(B301,'Schedule V(b)'!$B$11:$Z$315,13,0),0)","v":0},null,null,null,{"$f":"IFERROR(VLOOKUP(B301,'Schedule V(b)'!$B$11:$Z$315,17,0),0)","v":0},null,{"$f":"IFERROR(VLOOKUP(B301,'Schedule V(b)'!$B$11:$Z$315,25,0),0)","v":0},null,{"$f":"IFERROR(VLOOKUP(B301,'Schedule V(b)'!$B$11:$Z$315,23,0),0)","v":0}]
[291,null,null,{"$f":"IFERROR(VLOOKUP(B302,'Schedule V(b)'!$B$11:$Z$315,3,0),0)","v":0},null,{"$f":"IFERROR(VLOOKUP(B302,'Schedule V(b)'!$B$11:$Z$315,7,0),0)","v":"Select"},null,{"$f":"IFERROR(VLOOKUP(B302,'Schedule V(b)'!$B$11:$Z$315,9,0),0)","v":0},null,{"$f":"IFERROR(VLOOKUP(B302,'Schedule V(b)'!$B$11:$Z$315,11,0),0)","v":"Select"},null,{"$f":"IFERROR(VLOOKUP(B302,'Schedule V(b)'!$B$11:$Z$315,13,0),0)","v":0},null,null,null,{"$f":"IFERROR(VLOOKUP(B302,'Schedule V(b)'!$B$11:$Z$315,17,0),0)","v":0},null,{"$f":"IFERROR(VLOOKUP(B302,'Schedule V(b)'!$B$11:$Z$315,25,0),0)","v":0},null,{"$f":"IFERROR(VLOOKUP(B302,'Schedule V(b)'!$B$11:$Z$315,23,0),0)","v":0}]
[292,null,null,{"$f":"IFERROR(VLOOKUP(B303,'Schedule V(b)'!$B$11:$Z$315,3,0),0)","v":0},null,{"$f":"IFERROR(VLOOKUP(B303,'Schedule V(b)'!$B$11:$Z$315,7,0),0)","v":"Select"},null,{"$f":"IFERROR(VLOOKUP(B303,'Schedule V(b)'!$B$11:$Z$315,9,0),0)","v":0},null,{"$f":"IFERROR(VLOOKUP(B303,'Schedule V(b)'!$B$11:$Z$315,11,0),0)","v":"Select"},null,{"$f":"IFERROR(VLOOKUP(B303,'Schedule V(b)'!$B$11:$Z$315,13,0),0)","v":0},null,null,null,{"$f":"IFERROR(VLOOKUP(B303,'Schedule V(b)'!$B$11:$Z$315,17,0),0)","v":0},null,{"$f":"IFERROR(VLOOKUP(B303,'Schedule V(b)'!$B$11:$Z$315,25,0),0)","v":0},null,{"$f":"IFERROR(VLOOKUP(B303,'Schedule V(b)'!$B$11:$Z$315,23,0),0)","v":0}]
[293,null,null,{"$f":"IFERROR(VLOOKUP(B304,'Schedule V(b)'!$B$11:$Z$315,3,0),0)","v":0},null,{"$f":"IFERROR(VLOOKUP(B304,'Schedule V(b)'!$B$11:$Z$315,7,0),0)","v":"Select"},null,{"$f":"IFERROR(VLOOKUP(B304,'Schedule V(b)'!$B$11:$Z$315,9,0),0)","v":0},null,{"$f":"IFERROR(VLOOKUP(B304,'Schedule V(b)'!$B$11:$Z$315,11,0),0)","v":"Select"},null,{"$f":"IFERROR(VLOOKUP(B304,'Schedule V(b)'!$B$11:$Z$315,13,0),0)","v":0},null,null,null,{"$f":"IFERROR(VLOOKUP(B304,'Schedule V(b)'!$B$11:$Z$315,17,0),0)","v":0},null,{"$f":"IFERROR(VLOOKUP(B304,'Schedule V(b)'!$B$11:$Z$315,25,0),0)","v":0},null,{"$f":"IFERROR(VLOOKUP(B304,'Schedule V(b)'!$B$11:$Z$315,23,0),0)","v":0}]
[294,null,null,{"$f":"IFERROR(VLOOKUP(B305,'Schedule V(b)'!$B$11:$Z$315,3,0),0)","v":0},null,{"$f":"IFERROR(VLOOKUP(B305,'Schedule V(b)'!$B$11:$Z$315,7,0),0)","v":"Select"},null,{"$f":"IFERROR(VLOOKUP(B305,'Schedule V(b)'!$B$11:$Z$315,9,0),0)","v":0},null,{"$f":"IFERROR(VLOOKUP(B305,'Schedule V(b)'!$B$11:$Z$315,11,0),0)","v":"Select"},null,{"$f":"IFERROR(VLOOKUP(B305,'Schedule V(b)'!$B$11:$Z$315,13,0),0)","v":0},null,null,null,{"$f":"IFERROR(VLOOKUP(B305,'Schedule V(b)'!$B$11:$Z$315,17,0),0)","v":0},null,{"$f":"IFERROR(VLOOKUP(B305,'Schedule V(b)'!$B$11:$Z$315,25,0),0)","v":0},null,{"$f":"IFERROR(VLOOKUP(B305,'Schedule V(b)'!$B$11:$Z$315,23,0),0)","v":0}]
[295,null,null,{"$f":"IFERROR(VLOOKUP(B306,'Schedule V(b)'!$B$11:$Z$315,3,0),0)","v":0},null,{"$f":"IFERROR(VLOOKUP(B306,'Schedule V(b)'!$B$11:$Z$315,7,0),0)","v":"Select"},null,{"$f":"IFERROR(VLOOKUP(B306,'Schedule V(b)'!$B$11:$Z$315,9,0),0)","v":0},null,{"$f":"IFERROR(VLOOKUP(B306,'Schedule V(b)'!$B$11:$Z$315,11,0),0)","v":"Select"},null,{"$f":"IFERROR(VLOOKUP(B306,'Schedule V(b)'!$B$11:$Z$315,13,0),0)","v":0},null,null,null,{"$f":"IFERROR(VLOOKUP(B306,'Schedule V(b)'!$B$11:$Z$315,17,0),0)","v":0},null,{"$f":"IFERROR(VLOOKUP(B306,'Schedule V(b)'!$B$11:$Z$315,25,0),0)","v":0},null,{"$f":"IFERROR(VLOOKUP(B306,'Schedule V(b)'!$B$11:$Z$315,23,0),0)","v":0}]
[296,null,null,{"$f":"IFERROR(VLOOKUP(B307,'Schedule V(b)'!$B$11:$Z$315,3,0),0)","v":0},null,{"$f":"IFERROR(VLOOKUP(B307,'Schedule V(b)'!$B$11:$Z$315,7,0),0)","v":"Select"},null,{"$f":"IFERROR(VLOOKUP(B307,'Schedule V(b)'!$B$11:$Z$315,9,0),0)","v":0},null,{"$f":"IFERROR(VLOOKUP(B307,'Schedule V(b)'!$B$11:$Z$315,11,0),0)","v":"Select"},null,{"$f":"IFERROR(VLOOKUP(B307,'Schedule V(b)'!$B$11:$Z$315,13,0),0)","v":0},null,null,null,{"$f":"IFERROR(VLOOKUP(B307,'Schedule V(b)'!$B$11:$Z$315,17,0),0)","v":0},null,{"$f":"IFERROR(VLOOKUP(B307,'Schedule V(b)'!$B$11:$Z$315,25,0),0)","v":0},null,{"$f":"IFERROR(VLOOKUP(B307,'Schedule V(b)'!$B$11:$Z$315,23,0),0)","v":0}]
[297,null,null,{"$f":"IFERROR(VLOOKUP(B308,'Schedule V(b)'!$B$11:$Z$315,3,0),0)","v":0},null,{"$f":"IFERROR(VLOOKUP(B308,'Schedule V(b)'!$B$11:$Z$315,7,0),0)","v":"Select"},null,{"$f":"IFERROR(VLOOKUP(B308,'Schedule V(b)'!$B$11:$Z$315,9,0),0)","v":0},null,{"$f":"IFERROR(VLOOKUP(B308,'Schedule V(b)'!$B$11:$Z$315,11,0),0)","v":"Select"},null,{"$f":"IFERROR(VLOOKUP(B308,'Schedule V(b)'!$B$11:$Z$315,13,0),0)","v":0},null,null,null,{"$f":"IFERROR(VLOOKUP(B308,'Schedule V(b)'!$B$11:$Z$315,17,0),0)","v":0},null,{"$f":"IFERROR(VLOOKUP(B308,'Schedule V(b)'!$B$11:$Z$315,25,0),0)","v":0},null,{"$f":"IFERROR(VLOOKUP(B308,'Schedule V(b)'!$B$11:$Z$315,23,0),0)","v":0}]
[298,null,null,{"$f":"IFERROR(VLOOKUP(B309,'Schedule V(b)'!$B$11:$Z$315,3,0),0)","v":0},null,{"$f":"IFERROR(VLOOKUP(B309,'Schedule V(b)'!$B$11:$Z$315,7,0),0)","v":"Select"},null,{"$f":"IFERROR(VLOOKUP(B309,'Schedule V(b)'!$B$11:$Z$315,9,0),0)","v":0},null,{"$f":"IFERROR(VLOOKUP(B309,'Schedule V(b)'!$B$11:$Z$315,11,0),0)","v":"Select"},null,{"$f":"IFERROR(VLOOKUP(B309,'Schedule V(b)'!$B$11:$Z$315,13,0),0)","v":0},null,null,null,{"$f":"IFERROR(VLOOKUP(B309,'Schedule V(b)'!$B$11:$Z$315,17,0),0)","v":0},null,{"$f":"IFERROR(VLOOKUP(B309,'Schedule V(b)'!$B$11:$Z$315,25,0),0)","v":0},null,{"$f":"IFERROR(VLOOKUP(B309,'Schedule V(b)'!$B$11:$Z$315,23,0),0)","v":0}]
[299,null,null,{"$f":"IFERROR(VLOOKUP(B310,'Schedule V(b)'!$B$11:$Z$315,3,0),0)","v":0},null,{"$f":"IFERROR(VLOOKUP(B310,'Schedule V(b)'!$B$11:$Z$315,7,0),0)","v":"Select"},null,{"$f":"IFERROR(VLOOKUP(B310,'Schedule V(b)'!$B$11:$Z$315,9,0),0)","v":0},null,{"$f":"IFERROR(VLOOKUP(B310,'Schedule V(b)'!$B$11:$Z$315,11,0),0)","v":"Select"},null,{"$f":"IFERROR(VLOOKUP(B310,'Schedule V(b)'!$B$11:$Z$315,13,0),0)","v":0},null,null,null,{"$f":"IFERROR(VLOOKUP(B310,'Schedule V(b)'!$B$11:$Z$315,17,0),0)","v":0},null,{"$f":"IFERROR(VLOOKUP(B310,'Schedule V(b)'!$B$11:$Z$315,25,0),0)","v":0},null,{"$f":"IFERROR(VLOOKUP(B310,'Schedule V(b)'!$B$11:$Z$315,23,0),0)","v":0}]
[300,null,null,{"$f":"IFERROR(VLOOKUP(B311,'Schedule V(b)'!$B$11:$Z$315,3,0),0)","v":0},null,{"$f":"IFERROR(VLOOKUP(B311,'Schedule V(b)'!$B$11:$Z$315,7,0),0)","v":"Select"},null,{"$f":"IFERROR(VLOOKUP(B311,'Schedule V(b)'!$B$11:$Z$315,9,0),0)","v":0},null,{"$f":"IFERROR(VLOOKUP(B311,'Schedule V(b)'!$B$11:$Z$315,11,0),0)","v":"Select"},null,{"$f":"IFERROR(VLOOKUP(B311,'Schedule V(b)'!$B$11:$Z$315,13,0),0)","v":0},null,null,null,{"$f":"IFERROR(VLOOKUP(B311,'Schedule V(b)'!$B$11:$Z$315,17,0),0)","v":0},null,{"$f":"IFERROR(VLOOKUP(B311,'Schedule V(b)'!$B$11:$Z$315,25,0),0)","v":0},null,{"$f":"IFERROR(VLOOKUP(B311,'Schedule V(b)'!$B$11:$Z$315,23,0),0)","v":0}]
[]
[null,null,null,null,null,null,null,null,null,null,null,null,null,null,null,null,null,{"$f":"SUM(R12:R311)","v":0},null,{"$f":"SUM(T12:T311)","v":0}]
[]
[]
[]
[]
[]
[null,"INSTRUCTIONS"]
[null,"Affiliate category (Unregulated Entities excluding Insurance Holding Companies > 50%) are as follows with their applicable capital charges:"]
[]
[null,"Category",null,null,null,null,null,null,null,null,null,null,null,null,null,"Capital Charge"]
[null,"Unregulated entities that conduct ancillary services",null,null,null,null,null,null,null,null,null,null,null,null,null,0]
[null,"Unregulated non-financial operating entities ",null,null,null,null,null,null,null,null,null,null,null,null,null,0.15]
[null,"Unregulated financial operating entities ",null,null,null,null,null,null,null,null,null,null,null,null,null,0.5]

{"sheet":"Schedule XID","index":84,"n_rows":331,"n_cols":27,"rows_kept":331,"cut":false,"hidden":false,"merged":[[3,0,3,1]]}
["SCHEDULE OF ENTITIES' CAPITAL DEDUCTED FROM AVAILABLE STATUTORY CAPITAL AND SURPLUS",null,null,null,null,null,null,null,null,null,null,null,null,null,null,null,null,null,null,null,null,{"$f":"HYPERLINK(\"#'Index'!A1\",\"Return to Index\")","v":"Return to Index"}]
[null,null,null,null,null,null,null,null,null,null,null,null,null,null,null,null,null,null,null,null,null,null,null,null,null,null,"Control"]
[{"$f":"'Group Information'!C9","v":"Enter Parent Company Name"},null,null,null,null,null,null,null,null,null,null,null,null,null,null,null,null,null,null,null,null,null,null,null,"Energy ","Regulated Insurance","Significant Influence"]
[{"$f":"'Form 1EBS'!C3","v":"2023-12-31"},null,null,null,null,null,null,null,null,null,null,null,null,null,null,null,null,null,null,null,null,null,null,null,"Materials","Regulated Non-Insurance"]
[{"$f":"'Form 1EBS'!C4","v":" ['000s]United States Dollars"},null,null,null,null,null,null,null,null,null,null,null,null,null,null,null,null,null,null,null,null,"SCHEDULE XI (D)",null,null,"Industrial"]
[null,null,null,null,null,null,null,null,null,null,null,null,null,null,null,null,null,null,null,null,null,null,null,null,null,null,"Control"]
[null," Enter Number of Entities",null,{"$f":"Import!E37183","v":0},null,null,null,null,null,null,null,null,null,null,null,null,null,null,null,null,null,null,null,null,"Consumer Discretionary"]
[null," Enter information for each entity",null,null,null,null,null,null,null,null,null,null,null,null,null,null,null,null,null,null,null,null,null,null,"Consumer Staples"]
[null,"(1)",null,"(2)",null,"(3)",null,"(4)",null,"(5)",null,"(6)",null,"(7)",null,"(8)",null,"(9)",null,"(10)",null,"(11)",null,null,"Healthcare"]
[null,"Input Group Member Name \n(as inputted in Schedule V(b))",null,"Jurisdiction",null,"Sector Classification",null,"Strategic Purpose",null,"Entity Type",null,"Products & Services Offered",null,"Participation",null,"Group Member Category\n(Select from drop-down list)",null,"Reason for Data Deficiency\n(Select from drop-down list)",null,"Total Assets",null,"Net Assets ($)",null,null,"Financial"]
[null,null,null,null,null,null,null,null,null,null,null,null,null,null,null,null,null,null,null,null,null,null,null,null,"Information Technology"]
[1,{"$f":"Import!E37184","v":0},null,{"$f":"IFERROR(VLOOKUP(B12,'Schedule V(b)'!$B$11:$Z$315,3,0),0)","v":0},null,{"$f":"IFERROR(VLOOKUP(B12,'Schedule V(b)'!$B$11:$Z$315,7,0),0)","v":"Select"},null,{"$f":"IFERROR(VLOOKUP(B12,'Schedule V(b)'!$B$11:$Z$315,9,0),0)","v":0},null,{"$f":"IFERROR(VLOOKUP(B12,'Schedule V(b)'!$B$11:$Z$315,11,0),0)","v":"Select"},null,{"$f":"IFERROR(VLOOKUP(B12,'Schedule V(b)'!$B$11:$Z$315,13,0),0)","v":0},null,{"$f":"IFERROR(VLOOKUP(B12,'Schedule V(b)'!$B$11:$Z$315,15,0),0)","v":"Select"},null,{"$f":"Import!E37219","v":"Select"},null,{"$f":"Import!E37254","v":"Select"},null,{"$f":"IFERROR(VLOOKUP(B12,'Schedule V(b)'!$B$11:$Z$315,25,0),0)","v":0},null,{"$f":"IFERROR(VLOOKUP(B12,'Schedule V(b)'!$B$11:$Z$315,23,0),0)","v":0},null,null,"Telecommunication Services"]
[2,{"$f":"Import!E37185","v":0},null,{"$f":"IFERROR(VLOOKUP(B13,'Schedule V(b)'!$B$11:$Z$315,3,0),0)","v":0},null,{"$f":"IFERROR(VLOOKUP(B13,'Schedule V(b)'!$B$11:$Z$315,7,0),0)","v":"Select"},null,{"$f":"IFERROR(VLOOKUP(B13,'Schedule V(b)'!$B$11:$Z$315,9,0),0)","v":0},null,{"$f":"IFERROR(VLOOKUP(B13,'Schedule V(b)'!$B$11:$Z$315,11,0),0)","v":"Select"},null,{"$f":"IFERROR(VLOOKUP(B13,'Schedule V(b)'!$B$11:$Z$315,13,0),0)","v":0},null,{"$f":"IFERROR(VLOOKUP(B13,'Schedule V(b)'!$B$11:$Z$315,15,0),0)","v":"Select"},null,{"$f":"Import!E37220","v":"Select"},null,{"$f":"Import!E37255","v":"Select"},null,{"$f":"IFERROR(VLOOKUP(B13,'Schedule V(b)'!$B$11:$Z$315,25,0),0)","v":0},null,{"$f":"IFERROR(VLOOKUP(B13,'Schedule V(b)'!$B$11:$Z$315,23,0),0)","v":0},null,null,"Utilities"]
[3,{"$f":"Import!E37186","v":0},null,{"$f":"IFERROR(VLOOKUP(B14,'Schedule V(b)'!$B$11:$Z$315,3,0),0)","v":0},null,{"$f":"IFERROR(VLOOKUP(B14,'Schedule V(b)'!$B$11:$Z$315,7,0),0)","v":"Select"},null,{"$f":"IFERROR(VLOOKUP(B14,'Schedule V(b)'!$B$11:$Z$315,9,0),0)","v":0},null,{"$f":"IFERROR(VLOOKUP(B14,'Schedule V(b)'!$B$11:$Z$315,11,0),0)","v":"Select"},null,{"$f":"IFERROR(VLOOKUP(B14,'Schedule V(b)'!$B$11:$Z$315,13,0),0)","v":0},null,{"$f":"IFERROR(VLOOKUP(B14,'Schedule V(b)'!$B$11:$Z$315,15,0),0)","v":"Select"},null,{"$f":"Import!E37221","v":"Select"},null,{"$f":"Import!E37256","v":"Select"},null,{"$f":"IFERROR(VLOOKUP(B14,'Schedule V(b)'!$B$11:$Z$315,25,0),0)","v":0},null,{"$f":"IFERROR(VLOOKUP(B14,'Schedule V(b)'!$B$11:$Z$315,23,0),0)","v":0},null,null,"Other"]
[4,{"$f":"Import!E37187","v":0},null,{"$f":"IFERROR(VLOOKUP(B15,'Schedule V(b)'!$B$11:$Z$315,3,0),0)","v":0},null,{"$f":"IFERROR(VLOOKUP(B15,'Schedule V(b)'!$B$11:$Z$315,7,0),0)","v":"Select"},null,{"$f":"IFERROR(VLOOKUP(B15,'Schedule V(b)'!$B$11:$Z$315,9,0),0)","v":0},null,{"$f":"IFERROR(VLOOKUP(B15,'Schedule V(b)'!$B$11:$Z$315,11,0),0)","v":"Select"},null,{"$f":"IFERROR(VLOOKUP(B15,'Schedule V(b)'!$B$11:$Z$315,13,0),0)","v":0},null,{"$f":"IFERROR(VLOOKUP(B15,'Schedule V(b)'!$B$11:$Z$315,15,0),0)","v":"Select"},null,{"$f":"Import!E37222","v":"Select"},null,{"$f":"Import!E37257","v":"Select"},null,{"$f":"IFERROR(VLOOKUP(B15,'Schedule V(b)'!$B$11:$Z$315,25,0),0)","v":0},null,{"$f":"IFERROR(VLOOKUP(B15,'Schedule V(b)'!$B$11:$Z$315,23,0),0)","v":0}]
[5,{"$f":"Import!E37188","v":0},null,{"$f":"IFERROR(VLOOKUP(B16,'Schedule V(b)'!$B$11:$Z$315,3,0),0)","v":0},null,{"$f":"IFERROR(VLOOKUP(B16,'Schedule V(b)'!$B$11:$Z$315,7,0),0)","v":"Select"},null,{"$f":"IFERROR(VLOOKUP(B16,'Schedule V(b)'!$B$11:$Z$315,9,0),0)","v":0},null,{"$f":"IFERROR(VLOOKUP(B16,'Schedule V(b)'!$B$11:$Z$315,11,0),0)","v":"Select"},null,{"$f":"IFERROR(VLOOKUP(B16,'Schedule V(b)'!$B$11:$Z$315,13,0),0)","v":0},null,{"$f":"IFERROR(VLOOKUP(B16,'Schedule V(b)'!$B$11:$Z$315,15,0),0)","v":"Select"},null,{"$f":"Import!E37223","v":"Select"},null,{"$f":"Import!E37258","v":"Select"},null,{"$f":"IFERROR(VLOOKUP(B16,'Schedule V(b)'!$B$11:$Z$315,25,0),0)","v":0},null,{"$f":"IFERROR(VLOOKUP(B16,'Schedule V(b)'!$B$11:$Z$315,23,0),0)","v":0}]
[6,{"$f":"Import!E37189","v":0},null,{"$f":"IFERROR(VLOOKUP(B17,'Schedule V(b)'!$B$11:$Z$315,3,0),0)","v":0},null,{"$f":"IFERROR(VLOOKUP(B17,'Schedule V(b)'!$B$11:$Z$315,7,0),0)","v":"Select"},null,{"$f":"IFERROR(VLOOKUP(B17,'Schedule V(b)'!$B$11:$Z$315,9,0),0)","v":0},null,{"$f":"IFERROR(VLOOKUP(B17,'Schedule V(b)'!$B$11:$Z$315,11,0),0)","v":"Select"},null,{"$f":"IFERROR(VLOOKUP(B17,'Schedule V(b)'!$B$11:$Z$315,13,0),0)","v":0},null,{"$f":"IFERROR(VLOOKUP(B17,'Schedule V(b)'!$B$11:$Z$315,15,0),0)","v":"Select"},null,{"$f":"Import!E37224","v":"Select"},null,{"$f":"Import!E37259","v":"Select"},null,{"$f":"IFERROR(VLOOKUP(B17,'Schedule V(b)'!$B$11:$Z$315,25,0),0)","v":0},null,{"$f":"IFERROR(VLOOKUP(B17,'Schedule V(b)'!$B$11:$Z$315,23,0),0)","v":0}]
[7,{"$f":"Import!E37190","v":0},null,{"$f":"IFERROR(VLOOKUP(B18,'Schedule V(b)'!$B$11:$Z$315,3,0),0)","v":0},null,{"$f":"IFERROR(VLOOKUP(B18,'Schedule V(b)'!$B$11:$Z$315,7,0),0)","v":"Select"},null,{"$f":"IFERROR(VLOOKUP(B18,'Schedule V(b)'!$B$11:$Z$315,9,0),0)","v":0},null,{"$f":"IFERROR(VLOOKUP(B18,'Schedule V(b)'!$B$11:$Z$315,11,0),0)","v":"Select"},null,{"$f":"IFERROR(VLOOKUP(B18,'Schedule V(b)'!$B$11:$Z$315,13,0),0)","v":0},null,{"$f":"IFERROR(VLOOKUP(B18,'Schedule V(b)'!$B$11:$Z$315,15,0),0)","v":"Select"},null,{"$f":"Import!E37225","v":"Select"},null,{"$f":"Import!E37260","v":"Select"},null,{"$f":"IFERROR(VLOOKUP(B18,'Schedule V(b)'!$B$11:$Z$315,25,0),0)","v":0},null,{"$f":"IFERROR(VLOOKUP(B18,'Schedule V(b)'!$B$11:$Z$315,23,0),0)","v":0}]
[8,{"$f":"Import!E37191","v":0},null,{"$f":"IFERROR(VLOOKUP(B19,'Schedule V(b)'!$B$11:$Z$315,3,0),0)","v":0},null,{"$f":"IFERROR(VLOOKUP(B19,'Schedule V(b)'!$B$11:$Z$315,7,0),0)","v":"Select"},null,{"$f":"IFERROR(VLOOKUP(B19,'Schedule V(b)'!$B$11:$Z$315,9,0),0)","v":0},null,{"$f":"IFERROR(VLOOKUP(B19,'Schedule V(b)'!$B$11:$Z$315,11,0),0)","v":"Select"},null,{"$f":"IFERROR(VLOOKUP(B19,'Schedule V(b)'!$B$11:$Z$315,13,0),0)","v":0},null,{"$f":"IFERROR(VLOOKUP(B19,'Schedule V(b)'!$B$11:$Z$315,15,0),0)","v":"Select"},null,{"$f":"Import!E37226","v":"Select"},null,{"$f":"Import!E37261","v":"Select"},null,{"$f":"IFERROR(VLOOKUP(B19,'Schedule V(b)'!$B$11:$Z$315,25,0),0)","v":0},null,{"$f":"IFERROR(VLOOKUP(B19,'Schedule V(b)'!$B$11:$Z$315,23,0),0)","v":0}]
[9,{"$f":"Import!E37192","v":0},null,{"$f":"IFERROR(VLOOKUP(B20,'Schedule V(b)'!$B$11:$Z$315,3,0),0)","v":0},null,{"$f":"IFERROR(VLOOKUP(B20,'Schedule V(b)'!$B$11:$Z$315,7,0),0)","v":"Select"},null,{"$f":"IFERROR(VLOOKUP(B20,'Schedule V(b)'!$B$11:$Z$315,9,0),0)","v":0},null,{"$f":"IFERROR(VLOOKUP(B20,'Schedule V(b)'!$B$11:$Z$315,11,0),0)","v":"Select"},null,{"$f":"IFERROR(VLOOKUP(B20,'Schedule V(b)'!$B$11:$Z$315,13,0),0)","v":0},null,{"$f":"IFERROR(VLOOKUP(B20,'Schedule V(b)'!$B$11:$Z$315,15,0),0)","v":"Select"},null,{"$f":"Import!E37227","v":"Select"},null,{"$f":"Import!E37262","v":"Select"},null,{"$f":"IFERROR(VLOOKUP(B20,'Schedule V(b)'!$B$11:$Z$315,25,0),0)","v":0},null,{"$f":"IFERROR(VLOOKUP(B20,'Schedule V(b)'!$B$11:$Z$315,23,0),0)","v":0}]
[10,{"$f":"Import!E37193","v":0},null,{"$f":"IFERROR(VLOOKUP(B21,'Schedule V(b)'!$B$11:$Z$315,3,0),0)","v":0},null,{"$f":"IFERROR(VLOOKUP(B21,'Schedule V(b)'!$B$11:$Z$315,7,0),0)","v":"Select"},null,{"$f":"IFERROR(VLOOKUP(B21,'Schedule V(b)'!$B$11:$Z$315,9,0),0)","v":0},null,{"$f":"IFERROR(VLOOKUP(B21,'Schedule V(b)'!$B$11:$Z$315,11,0),0)","v":"Select"},null,{"$f":"IFERROR(VLOOKUP(B21,'Schedule V(b)'!$B$11:$Z$315,13,0),0)","v":0},null,{"$f":"IFERROR(VLOOKUP(B21,'Schedule V(b)'!$B$11:$Z$315,15,0),0)","v":"Select"},null,{"$f":"Import!E37228","v":"Select"},null,{"$f":"Import!E37263","v":"Select"},null,{"$f":"IFERROR(VLOOKUP(B21,'Schedule V(b)'!$B$11:$Z$315,25,0),0)","v":0},null,{"$f":"IFERROR(VLOOKUP(B21,'Schedule V(b)'!$B$11:$Z$315,23,0),0)","v":0}]
[11,{"$f":"Import!E37194","v":0},null,{"$f":"IFERROR(VLOOKUP(B22,'Schedule V(b)'!$B$11:$Z$315,3,0),0)","v":0},null,{"$f":"IFERROR(VLOOKUP(B22,'Schedule V(b)'!$B$11:$Z$315,7,0),0)","v":"Select"},null,{"$f":"IFERROR(VLOOKUP(B22,'Schedule V(b)'!$B$11:$Z$315,9,0),0)","v":0},null,{"$f":"IFERROR(VLOOKUP(B22,'Schedule V(b)'!$B$11:$Z$315,11,0),0)","v":"Select"},null,{"$f":"IFERROR(VLOOKUP(B22,'Schedule V(b)'!$B$11:$Z$315,13,0),0)","v":0},null,{"$f":"IFERROR(VLOOKUP(B22,'Schedule V(b)'!$B$11:$Z$315,15,0),0)","v":"Select"},null,{"$f":"Import!E37229","v":"Select"},null,{"$f":"Import!E37264","v":"Select"},null,{"$f":"IFERROR(VLOOKUP(B22,'Schedule V(b)'!$B$11:$Z$315,25,0),0)","v":0},null,{"$f":"IFERROR(VLOOKUP(B22,'Schedule V(b)'!$B$11:$Z$315,23,0),0)","v":0}]
[12,{"$f":"Import!E37195","v":0},null,{"$f":"IFERROR(VLOOKUP(B23,'Schedule V(b)'!$B$11:$Z$315,3,0),0)","v":0},null,{"$f":"IFERROR(VLOOKUP(B23,'Schedule V(b)'!$B$11:$Z$315,7,0),0)","v":"Select"},null,{"$f":"IFERROR(VLOOKUP(B23,'Schedule V(b)'!$B$11:$Z$315,9,0),0)","v":0},null,{"$f":"IFERROR(VLOOKUP(B23,'Schedule V(b)'!$B$11:$Z$315,11,0),0)","v":"Select"},null,{"$f":"IFERROR(VLOOKUP(B23,'Schedule V(b)'!$B$11:$Z$315,13,0),0)","v":0},null,{"$f":"IFERROR(VLOOKUP(B23,'Schedule V(b)'!$B$11:$Z$315,15,0),0)","v":"Select"},null,{"$f":"Import!E37230","v":"Select"},null,{"$f":"Import!E37265","v":"Select"},null,{"$f":"IFERROR(VLOOKUP(B23,'Schedule V(b)'!$B$11:$Z$315,25,0),0)","v":0},null,{"$f":"IFERROR(VLOOKUP(B23,'Schedule V(b)'!$B$11:$Z$315,23,0),0)","v":0}]
[13,{"$f":"Import!E37196","v":0},null,{"$f":"IFERROR(VLOOKUP(B24,'Schedule V(b)'!$B$11:$Z$315,3,0),0)","v":0},null,{"$f":"IFERROR(VLOOKUP(B24,'Schedule V(b)'!$B$11:$Z$315,7,0),0)","v":"Select"},null,{"$f":"IFERROR(VLOOKUP(B24,'Schedule V(b)'!$B$11:$Z$315,9,0),0)","v":0},null,{"$f":"IFERROR(VLOOKUP(B24,'Schedule V(b)'!$B$11:$Z$315,11,0),0)","v":"Select"},null,{"$f":"IFERROR(VLOOKUP(B24,'Schedule V(b)'!$B$11:$Z$315,13,0),0)","v":0},null,{"$f":"IFERROR(VLOOKUP(B24,'Schedule V(b)'!$B$11:$Z$315,15,0),0)","v":"Select"},null,{"$f":"Import!E37231","v":"Select"},null,{"$f":"Import!E37266","v":"Select"},null,{"$f":"IFERROR(VLOOKUP(B24,'Schedule V(b)'!$B$11:$Z$315,25,0),0)","v":0},null,{"$f":"IFERROR(VLOOKUP(B24,'Schedule V(b)'!$B$11:$Z$315,23,0),0)","v":0}]
[14,{"$f":"Import!E37197","v":0},null,{"$f":"IFERROR(VLOOKUP(B25,'Schedule V(b)'!$B$11:$Z$315,3,0),0)","v":0},null,{"$f":"IFERROR(VLOOKUP(B25,'Schedule V(b)'!$B$11:$Z$315,7,0),0)","v":"Select"},null,{"$f":"IFERROR(VLOOKUP(B25,'Schedule V(b)'!$B$11:$Z$315,9,0),0)","v":0},null,{"$f":"IFERROR(VLOOKUP(B25,'Schedule V(b)'!$B$11:$Z$315,11,0),0)","v":"Select"},null,{"$f":"IFERROR(VLOOKUP(B25,'Schedule V(b)'!$B$11:$Z$315,13,0),0)","v":0},null,{"$f":"IFERROR(VLOOKUP(B25,'Schedule V(b)'!$B$11:$Z$315,15,0),0)","v":"Select"},null,{"$f":"Import!E37232","v":"Select"},null,{"$f":"Import!E37267","v":"Select"},null,{"$f":"IFERROR(VLOOKUP(B25,'Schedule V(b)'!$B$11:$Z$315,25,0),0)","v":0},null,{"$f":"IFERROR(VLOOKUP(B25,'Schedule V(b)'!$B$11:$Z$315,23,0),0)","v":0}]
[15,{"$f":"Import!E37198","v":0},null,{"$f":"IFERROR(VLOOKUP(B26,'Schedule V(b)'!$B$11:$Z$315,3,0),0)","v":0},null,{"$f":"IFERROR(VLOOKUP(B26,'Schedule V(b)'!$B$11:$Z$315,7,0),0)","v":"Select"},null,{"$f":"IFERROR(VLOOKUP(B26,'Schedule V(b)'!$B$11:$Z$315,9,0),0)","v":0},null,{"$f":"IFERROR(VLOOKUP(B26,'Schedule V(b)'!$B$11:$Z$315,11,0),0)","v":"Select"},null,{"$f":"IFERROR(VLOOKUP(B26,'Schedule V(b)'!$B$11:$Z$315,13,0),0)","v":0},null,{"$f":"IFERROR(VLOOKUP(B26,'Schedule V(b)'!$B$11:$Z$315,15,0),0)","v":"Select"},null,{"$f":"Import!E37233","v":"Select"},null,{"$f":"Import!E37268","v":"Select"},null,{"$f":"IFERROR(VLOOKUP(B26,'Schedule V(b)'!$B$11:$Z$315,25,0),0)","v":0},null,{"$f":"IFERROR(VLOOKUP(B26,'Schedule V(b)'!$B$11:$Z$315,23,0),0)","v":0}]
[16,{"$f":"Import!E37199","v":0},null,{"$f":"IFERROR(VLOOKUP(B27,'Schedule V(b)'!$B$11:$Z$315,3,0),0)","v":0},null,{"$f":"IFERROR(VLOOKUP(B27,'Schedule V(b)'!$B$11:$Z$315,7,0),0)","v":"Select"},null,{"$f":"IFERROR(VLOOKUP(B27,'Schedule V(b)'!$B$11:$Z$315,9,0),0)","v":0},null,{"$f":"IFERROR(VLOOKUP(B27,'Schedule V(b)'!$B$11:$Z$315,11,0),0)","v":"Select"},null,{"$f":"IFERROR(VLOOKUP(B27,'Schedule V(b)'!$B$11:$Z$315,13,0),0)","v":0},null,{"$f":"IFERROR(VLOOKUP(B27,'Schedule V(b)'!$B$11:$Z$315,15,0),0)","v":"Select"},null,{"$f":"Import!E37234","v":"Select"},null,{"$f":"Import!E37269","v":"Select"},null,{"$f":"IFERROR(VLOOKUP(B27,'Schedule V(b)'!$B$11:$Z$315,25,0),0)","v":0},null,{"$f":"IFERROR(VLOOKUP(B27,'Schedule V(b)'!$B$11:$Z$315,23,0),0)","v":0}]
[17,{"$f":"Import!E37200","v":0},null,{"$f":"IFERROR(VLOOKUP(B28,'Schedule V(b)'!$B$11:$Z$315,3,0),0)","v":0},null,{"$f":"IFERROR(VLOOKUP(B28,'Schedule V(b)'!$B$11:$Z$315,7,0),0)","v":"Select"},null,{"$f":"IFERROR(VLOOKUP(B28,'Schedule V(b)'!$B$11:$Z$315,9,0),0)","v":0},null,{"$f":"IFERROR(VLOOKUP(B28,'Schedule V(b)'!$B$11:$Z$315,11,0),0)","v":"Select"},null,{"$f":"IFERROR(VLOOKUP(B28,'Schedule V(b)'!$B$11:$Z$315,13,0),0)","v":0},null,{"$f":"IFERROR(VLOOKUP(B28,'Schedule V(b)'!$B$11:$Z$315,15,0),0)","v":"Select"},null,{"$f":"Import!E37235","v":"Select"},null,{"$f":"Import!E37270","v":"Select"},null,{"$f":"IFERROR(VLOOKUP(B28,'Schedule V(b)'!$B$11:$Z$315,25,0),0)","v":0},null,{"$f":"IFERROR(VLOOKUP(B28,'Schedule V(b)'!$B$11:$Z$315,23,0),0)","v":0}]
[18,{"$f":"Import!E37201","v":0},null,{"$f":"IFERROR(VLOOKUP(B29,'Schedule V(b)'!$B$11:$Z$315,3,0),0)","v":0},null,{"$f":"IFERROR(VLOOKUP(B29,'Schedule V(b)'!$B$11:$Z$315,7,0),0)","v":"Select"},null,{"$f":"IFERROR(VLOOKUP(B29,'Schedule V(b)'!$B$11:$Z$315,9,0),0)","v":0},null,{"$f":"IFERROR(VLOOKUP(B29,'Schedule V(b)'!$B$11:$Z$315,11,0),0)","v":"Select"},null,{"$f":"IFERROR(VLOOKUP(B29,'Schedule V(b)'!$B$11:$Z$315,13,0),0)","v":0},null,{"$f":"IFERROR(VLOOKUP(B29,'Schedule V(b)'!$B$11:$Z$315,15,0),0)","v":"Select"},null,{"$f":"Import!E37236","v":"Select"},null,{"$f":"Import!E37271","v":"Select"},null,{"$f":"IFERROR(VLOOKUP(B29,'Schedule V(b)'!$B$11:$Z$315,25,0),0)","v":0},null,{"$f":"IFERROR(VLOOKUP(B29,'Schedule V(b)'!$B$11:$Z$315,23,0),0)","v":0}]
[19,{"$f":"Import!E37202","v":0},null,{"$f":"IFERROR(VLOOKUP(B30,'Schedule V(b)'!$B$11:$Z$315,3,0),0)","v":0},null,{"$f":"IFERROR(VLOOKUP(B30,'Schedule V(b)'!$B$11:$Z$315,7,0),0)","v":"Select"},null,{"$f":"IFERROR(VLOOKUP(B30,'Schedule V(b)'!$B$11:$Z$315,9,0),0)","v":0},null,{"$f":"IFERROR(VLOOKUP(B30,'Schedule V(b)'!$B$11:$Z$315,11,0),0)","v":"Select"},null,{"$f":"IFERROR(VLOOKUP(B30,'Schedule V(b)'!$B$11:$Z$315,13,0),0)","v":0},null,{"$f":"IFERROR(VLOOKUP(B30,'Schedule V(b)'!$B$11:$Z$315,15,0),0)","v":"Select"},null,{"$f":"Import!E37237","v":"Select"},null,{"$f":"Import!E37272","v":"Select"},null,{"$f":"IFERROR(VLOOKUP(B30,'Schedule V(b)'!$B$11:$Z$315,25,0),0)","v":0},null,{"$f":"IFERROR(VLOOKUP(B30,'Schedule V(b)'!$B$11:$Z$315,23,0),0)","v":0}]
[20,{"$f":"Import!E37203","v":0},null,{"$f":"IFERROR(VLOOKUP(B31,'Schedule V(b)'!$B$11:$Z$315,3,0),0)","v":0},null,{"$f":"IFERROR(VLOOKUP(B31,'Schedule V(b)'!$B$11:$Z$315,7,0),0)","v":"Select"},null,{"$f":"IFERROR(VLOOKUP(B31,'Schedule V(b)'!$B$11:$Z$315,9,0),0)","v":0},null,{"$f":"IFERROR(VLOOKUP(B31,'Schedule V(b)'!$B$11:$Z$315,11,0),0)","v":"Select"},null,{"$f":"IFERROR(VLOOKUP(B31,'Schedule V(b)'!$B$11:$Z$315,13,0),0)","v":0},null,{"$f":"IFERROR(VLOOKUP(B31,'Schedule V(b)'!$B$11:$Z$315,15,0),0)","v":"Select"},null,{"$f":"Import!E37238","v":"Select"},null,{"$f":"Import!E37273","v":"Select"},null,{"$f":"IFERROR(VLOOKUP(B31,'Schedule V(b)'!$B$11:$Z$315,25,0),0)","v":0},null,{"$f":"IFERROR(VLOOKUP(B31,'Schedule V(b)'!$B$11:$Z$315,23,0),0)","v":0}]
[21,{"$f":"Import!E37204","v":0},null,{"$f":"IFERROR(VLOOKUP(B32,'Schedule V(b)'!$B$11:$Z$315,3,0),0)","v":0},null,{"$f":"IFERROR(VLOOKUP(B32,'Schedule V(b)'!$B$11:$Z$315,7,0),0)","v":"Select"},null,{"$f":"IFERROR(VLOOKUP(B32,'Schedule V(b)'!$B$11:$Z$315,9,0),0)","v":0},null,{"$f":"IFERROR(VLOOKUP(B32,'Schedule V(b)'!$B$11:$Z$315,11,0),0)","v":"Select"},null,{"$f":"IFERROR(VLOOKUP(B32,'Schedule V(b)'!$B$11:$Z$315,13,0),0)","v":0},null,{"$f":"IFERROR(VLOOKUP(B32,'Schedule V(b)'!$B$11:$Z$315,15,0),0)","v":"Select"},null,{"$f":"Import!E37239","v":"Select"},null,{"$f":"Import!E37274","v":"Select"},null,{"$f":"IFERROR(VLOOKUP(B32,'Schedule V(b)'!$B$11:$Z$315,25,0),0)","v":0},null,{"$f":"IFERROR(VLOOKUP(B32,'Schedule V(b)'!$B$11:$Z$315,23,0),0)","v":0}]
[22,{"$f":"Import!E37205","v":0},null,{"$f":"IFERROR(VLOOKUP(B33,'Schedule V(b)'!$B$11:$Z$315,3,0),0)","v":0},null,{"$f":"IFERROR(VLOOKUP(B33,'Schedule V(b)'!$B$11:$Z$315,7,0),0)","v":"Select"},null,{"$f":"IFERROR(VLOOKUP(B33,'Schedule V(b)'!$B$11:$Z$315,9,0),0)","v":0},null,{"$f":"IFERROR(VLOOKUP(B33,'Schedule V(b)'!$B$11:$Z$315,11,0),0)","v":"Select"},null,{"$f":"IFERROR(VLOOKUP(B33,'Schedule V(b)'!$B$11:$Z$315,13,0),0)","v":0},null,{"$f":"IFERROR(VLOOKUP(B33,'Schedule V(b)'!$B$11:$Z$315,15,0),0)","v":"Select"},null,{"$f":"Import!E37240","v":"Select"},null,{"$f":"Import!E37275","v":"Select"},null,{"$f":"IFERROR(VLOOKUP(B33,'Schedule V(b)'!$B$11:$Z$315,25,0),0)","v":0},null,{"$f":"IFERROR(VLOOKUP(B33,'Schedule V(b)'!$B$11:$Z$315,23,0),0)","v":0}]
[23,{"$f":"Import!E37206","v":0},null,{"$f":"IFERROR(VLOOKUP(B34,'Schedule V(b)'!$B$11:$Z$315,3,0),0)","v":0},null,{"$f":"IFERROR(VLOOKUP(B34,'Schedule V(b)'!$B$11:$Z$315,7,0),0)","v":"Select"},null,{"$f":"IFERROR(VLOOKUP(B34,'Schedule V(b)'!$B$11:$Z$315,9,0),0)","v":0},null,{"$f":"IFERROR(VLOOKUP(B34,'Schedule V(b)'!$B$11:$Z$315,11,0),0)","v":"Select"},null,{"$f":"IFERROR(VLOOKUP(B34,'Schedule V(b)'!$B$11:$Z$315,13,0),0)","v":0},null,{"$f":"IFERROR(VLOOKUP(B34,'Schedule V(b)'!$B$11:$Z$315,15,0),0)","v":"Select"},null,{"$f":"Import!E37241","v":"Select"},null,{"$f":"Import!E37276","v":"Select"},null,{"$f":"IFERROR(VLOOKUP(B34,'Schedule V(b)'!$B$11:$Z$315,25,0),0)","v":0},null,{"$f":"IFERROR(VLOOKUP(B34,'Schedule V(b)'!$B$11:$Z$315,23,0),0)","v":0}]
[24,{"$f":"Import!E37207","v":0},null,{"$f":"IFERROR(VLOOKUP(B35,'Schedule V(b)'!$B$11:$Z$315,3,0),0)","v":0},null,{"$f":"IFERROR(VLOOKUP(B35,'Schedule V(b)'!$B$11:$Z$315,7,0),0)","v":"Select"},null,{"$f":"IFERROR(VLOOKUP(B35,'Schedule V(b)'!$B$11:$Z$315,9,0),0)","v":0},null,{"$f":"IFERROR(VLOOKUP(B35,'Schedule V(b)'!$B$11:$Z$315,11,0),0)","v":"Select"},null,{"$f":"IFERROR(VLOOKUP(B35,'Schedule V(b)'!$B$11:$Z$315,13,0),0)","v":0},null,{"$f":"IFERROR(VLOOKUP(B35,'Schedule V(b)'!$B$11:$Z$315,15,0),0)","v":"Select"},null,{"$f":"Import!E37242","v":"Select"},null,{"$f":"Import!E37277","v":"Select"},null,{"$f":"IFERROR(VLOOKUP(B35,'Schedule V(b)'!$B$11:$Z$315,25,0),0)","v":0},null,{"$f":"IFERROR(VLOOKUP(B35,'Schedule V(b)'!$B$11:$Z$315,23,0),0)","v":0}]
[25,{"$f":"Import!E37208","v":0},null,{"$f":"IFERROR(VLOOKUP(B36,'Schedule V(b)'!$B$11:$Z$315,3,0),0)","v":0},null,{"$f":"IFERROR(VLOOKUP(B36,'Schedule V(b)'!$B$11:$Z$315,7,0),0)","v":"Select"},null,{"$f":"IFERROR(VLOOKUP(B36,'Schedule V(b)'!$B$11:$Z$315,9,0),0)","v":0},null,{"$f":"IFERROR(VLOOKUP(B36,'Schedule V(b)'!$B$11:$Z$315,11,0),0)","v":"Select"},null,{"$f":"IFERROR(VLOOKUP(B36,'Schedule V(b)'!$B$11:$Z$315,13,0),0)","v":0},null,{"$f":"IFERROR(VLOOKUP(B36,'Schedule V(b)'!$B$11:$Z$315,15,0),0)","v":"Select"},null,{"$f":"Import!E37243","v":"Select"},null,{"$f":"Import!E37278","v":"Select"},null,{"$f":"IFERROR(VLOOKUP(B36,'Schedule V(b)'!$B$11:$Z$315,25,0),0)","v":0},null,{"$f":"IFERROR(VLOOKUP(B36,'Schedule V(b)'!$B$11:$Z$315,23,0),0)","v":0}]
[26,{"$f":"Import!E37209","v":0},null,{"$f":"IFERROR(VLOOKUP(B37,'Schedule V(b)'!$B$11:$Z$315,3,0),0)","v":0},null,{"$f":"IFERROR(VLOOKUP(B37,'Schedule V(b)'!$B$11:$Z$315,7,0),0)","v":"Select"},null,{"$f":"IFERROR(VLOOKUP(B37,'Schedule V(b)'!$B$11:$Z$315,9,0),0)","v":0},null,{"$f":"IFERROR(VLOOKUP(B37,'Schedule V(b)'!$B$11:$Z$315,11,0),0)","v":"Select"},null,{"$f":"IFERROR(VLOOKUP(B37,'Schedule V(b)'!$B$11:$Z$315,13,0),0)","v":0},null,{"$f":"IFERROR(VLOOKUP(B37,'Schedule V(b)'!$B$11:$Z$315,15,0),0)","v":"Select"},null,{"$f":"Import!E37244","v":"Select"},null,{"$f":"Import!E37279","v":"Select"},null,{"$f":"IFERROR(VLOOKUP(B37,'Schedule V(b)'!$B$11:$Z$315,25,0),0)","v":0},null,{"$f":"IFERROR(VLOOKUP(B37,'Schedule V(b)'!$B$11:$Z$315,23,0),0)","v":0}]
[27,{"$f":"Import!E37210","v":0},null,{"$f":"IFERROR(VLOOKUP(B38,'Schedule V(b)'!$B$11:$Z$315,3,0),0)","v":0},null,{"$f":"IFERROR(VLOOKUP(B38,'Schedule V(b)'!$B$11:$Z$315,7,0),0)","v":"Select"},null,{"$f":"IFERROR(VLOOKUP(B38,'Schedule V(b)'!$B$11:$Z$315,9,0),0)","v":0},null,{"$f":"IFERROR(VLOOKUP(B38,'Schedule V(b)'!$B$11:$Z$315,11,0),0)","v":"Select"},null,{"$f":"IFERROR(VLOOKUP(B38,'Schedule V(b)'!$B$11:$Z$315,13,0),0)","v":0},null,{"$f":"IFERROR(VLOOKUP(B38,'Schedule V(b)'!$B$11:$Z$315,15,0),0)","v":"Select"},null,{"$f":"Import!E37245","v":"Select"},null,{"$f":"Import!E37280","v":"Select"},null,{"$f":"IFERROR(VLOOKUP(B38,'Schedule V(b)'!$B$11:$Z$315,25,0),0)","v":0},null,{"$f":"IFERROR(VLOOKUP(B38,'Schedule V(b)'!$B$11:$Z$315,23,0),0)","v":0}]
[28,{"$f":"Import!E37211","v":0},null,{"$f":"IFERROR(VLOOKUP(B39,'Schedule V(b)'!$B$11:$Z$315,3,0),0)","v":0},null,{"$f":"IFERROR(VLOOKUP(B39,'Schedule V(b)'!$B$11:$Z$315,7,0),0)","v":"Select"},null,{"$f":"IFERROR(VLOOKUP(B39,'Schedule V(b)'!$B$11:$Z$315,9,0),0)","v":0},null,{"$f":"IFERROR(VLOOKUP(B39,'Schedule V(b)'!$B$11:$Z$315,11,0),0)","v":"Select"},null,{"$f":"IFERROR(VLOOKUP(B39,'Schedule V(b)'!$B$11:$Z$315,13,0),0)","v":0},null,{"$f":"IFERROR(VLOOKUP(B39,'Schedule V(b)'!$B$11:$Z$315,15,0),0)","v":"Select"},null,{"$f":"Import!E37246","v":"Select"},null,{"$f":"Import!E37281","v":"Select"},null,{"$f":"IFERROR(VLOOKUP(B39,'Schedule V(b)'!$B$11:$Z$315,25,0),0)","v":0},null,{"$f":"IFERROR(VLOOKUP(B39,'Schedule V(b)'!$B$11:$Z$315,23,0),0)","v":0}]
[29,{"$f":"Import!E37212","v":0},null,{"$f":"IFERROR(VLOOKUP(B40,'Schedule V(b)'!$B$11:$Z$315,3,0),0)","v":0},null,{"$f":"IFERROR(VLOOKUP(B40,'Schedule V(b)'!$B$11:$Z$315,7,0),0)","v":"Select"},null,{"$f":"IFERROR(VLOOKUP(B40,'Schedule V(b)'!$B$11:$Z$315,9,0),0)","v":0},null,{"$f":"IFERROR(VLOOKUP(B40,'Schedule V(b)'!$B$11:$Z$315,11,0),0)","v":"Select"},null,{"$f":"IFERROR(VLOOKUP(B40,'Schedule V(b)'!$B$11:$Z$315,13,0),0)","v":0},null,{"$f":"IFERROR(VLOOKUP(B40,'Schedule V(b)'!$B$11:$Z$315,15,0),0)","v":"Select"},null,{"$f":"Import!E37247","v":"Select"},null,{"$f":"Import!E37282","v":"Select"},null,{"$f":"IFERROR(VLOOKUP(B40,'Schedule V(b)'!$B$11:$Z$315,25,0),0)","v":0},null,{"$f":"IFERROR(VLOOKUP(B40,'Schedule V(b)'!$B$11:$Z$315,23,0),0)","v":0}]
[30,{"$f":"Import!E37213","v":0},null,{"$f":"IFERROR(VLOOKUP(B41,'Schedule V(b)'!$B$11:$Z$315,3,0),0)","v":0},null,{"$f":"IFERROR(VLOOKUP(B41,'Schedule V(b)'!$B$11:$Z$315,7,0),0)","v":"Select"},null,{"$f":"IFERROR(VLOOKUP(B41,'Schedule V(b)'!$B$11:$Z$315,9,0),0)","v":0},null,{"$f":"IFERROR(VLOOKUP(B41,'Schedule V(b)'!$B$11:$Z$315,11,0),0)","v":"Select"},null,{"$f":"IFERROR(VLOOKUP(B41,'Schedule V(b)'!$B$11:$Z$315,13,0),0)","v":0},null,{"$f":"IFERROR(VLOOKUP(B41,'Schedule V(b)'!$B$11:$Z$315,15,0),0)","v":"Select"},null,{"$f":"Import!E37248","v":"Select"},null,{"$f":"Import!E37283","v":"Select"},null,{"$f":"IFERROR(VLOOKUP(B41,'Schedule V(b)'!$B$11:$Z$315,25,0),0)","v":0},null,{"$f":"IFERROR(VLOOKUP(B41,'Schedule V(b)'!$B$11:$Z$315,23,0),0)","v":0}]
[31,{"$f":"Import!E37214","v":0},null,{"$f":"IFERROR(VLOOKUP(B42,'Schedule V(b)'!$B$11:$Z$315,3,0),0)","v":0},null,{"$f":"IFERROR(VLOOKUP(B42,'Schedule V(b)'!$B$11:$Z$315,7,0),0)","v":"Select"},null,{"$f":"IFERROR(VLOOKUP(B42,'Schedule V(b)'!$B$11:$Z$315,9,0),0)","v":0},null,{"$f":"IFERROR(VLOOKUP(B42,'Schedule V(b)'!$B$11:$Z$315,11,0),0)","v":"Select"},null,{"$f":"IFERROR(VLOOKUP(B42,'Schedule V(b)'!$B$11:$Z$315,13,0),0)","v":0},null,{"$f":"IFERROR(VLOOKUP(B42,'Schedule V(b)'!$B$11:$Z$315,15,0),0)","v":"Select"},null,{"$f":"Import!E37249","v":"Select"},null,{"$f":"Import!E37284","v":"Select"},null,{"$f":"IFERROR(VLOOKUP(B42,'Schedule V(b)'!$B$11:$Z$315,25,0),0)","v":0},null,{"$f":"IFERROR(VLOOKUP(B42,'Schedule V(b)'!$B$11:$Z$315,23,0),0)","v":0}]
[32,{"$f":"Import!E37215","v":0},null,{"$f":"IFERROR(VLOOKUP(B43,'Schedule V(b)'!$B$11:$Z$315,3,0),0)","v":0},null,{"$f":"IFERROR(VLOOKUP(B43,'Schedule V(b)'!$B$11:$Z$315,7,0),0)","v":"Select"},null,{"$f":"IFERROR(VLOOKUP(B43,'Schedule V(b)'!$B$11:$Z$315,9,0),0)","v":0},null,{"$f":"IFERROR(VLOOKUP(B43,'Schedule V(b)'!$B$11:$Z$315,11,0),0)","v":"Select"},null,{"$f":"IFERROR(VLOOKUP(B43,'Schedule V(b)'!$B$11:$Z$315,13,0),0)","v":0},null,{"$f":"IFERROR(VLOOKUP(B43,'Schedule V(b)'!$B$11:$Z$315,15,0),0)","v":"Select"},null,{"$f":"Import!E37250","v":"Select"},null,{"$f":"Import!E37285","v":"Select"},null,{"$f":"IFERROR(VLOOKUP(B43,'Schedule V(b)'!$B$11:$Z$315,25,0),0)","v":0},null,{"$f":"IFERROR(VLOOKUP(B43,'Schedule V(b)'!$B$11:$Z$315,23,0),0)","v":0}]
[33,{"$f":"Import!E37216","v":0},null,{"$f":"IFERROR(VLOOKUP(B44,'Schedule V(b)'!$B$11:$Z$315,3,0),0)","v":0},null,{"$f":"IFERROR(VLOOKUP(B44,'Schedule V(b)'!$B$11:$Z$315,7,0),0)","v":"Select"},null,{"$f":"IFERROR(VLOOKUP(B44,'Schedule V(b)'!$B$11:$Z$315,9,0),0)","v":0},null,{"$f":"IFERROR(VLOOKUP(B44,'Schedule V(b)'!$B$11:$Z$315,11,0),0)","v":"Select"},null,{"$f":"IFERROR(VLOOKUP(B44,'Schedule V(b)'!$B$11:$Z$315,13,0),0)","v":0},null,{"$f":"IFERROR(VLOOKUP(B44,'Schedule V(b)'!$B$11:$Z$315,15,0),0)","v":"Select"},null,{"$f":"Import!E37251","v":"Select"},null,{"$f":"Import!E37286","v":"Select"},null,{"$f":"IFERROR(VLOOKUP(B44,'Schedule V(b)'!$B$11:$Z$315,25,0),0)","v":0},null,{"$f":"IFERROR(VLOOKUP(B44,'Schedule V(b)'!$B$11:$Z$315,23,0),0)","v":0}]
[34,{"$f":"Import!E37217","v":0},null,{"$f":"IFERROR(VLOOKUP(B45,'Schedule V(b)'!$B$11:$Z$315,3,0),0)","v":0},null,{"$f":"IFERROR(VLOOKUP(B45,'Schedule V(b)'!$B$11:$Z$315,7,0),0)","v":"Select"},null,{"$f":"IFERROR(VLOOKUP(B45,'Schedule V(b)'!$B$11:$Z$315,9,0),0)","v":0},null,{"$f":"IFERROR(VLOOKUP(B45,'Schedule V(b)'!$B$11:$Z$315,11,0),0)","v":"Select"},null,{"$f":"IFERROR(VLOOKUP(B45,'Schedule V(b)'!$B$11:$Z$315,13,0),0)","v":0},null,{"$f":"IFERROR(VLOOKUP(B45,'Schedule V(b)'!$B$11:$Z$315,15,0),0)","v":"Select"},null,{"$f":"Import!E37252","v":"Select"},null,{"$f":"Import!E37287","v":"Select"},null,{"$f":"IFERROR(VLOOKUP(B45,'Schedule V(b)'!$B$11:$Z$315,25,0),0)","v":0},null,{"$f":"IFERROR(VLOOKUP(B45,'Schedule V(b)'!$B$11:$Z$315,23,0),0)","v":0}]
[35,{"$f":"Import!E37218","v":0},null,{"$f":"IFERROR(VLOOKUP(B46,'Schedule V(b)'!$B$11:$Z$315,3,0),0)","v":0},null,{"$f":"IFERROR(VLOOKUP(B46,'Schedule V(b)'!$B$11:$Z$315,7,0),0)","v":"Select"},null,{"$f":"IFERROR(VLOOKUP(B46,'Schedule V(b)'!$B$11:$Z$315,9,0),0)","v":0},null,{"$f":"IFERROR(VLOOKUP(B46,'Schedule V(b)'!$B$11:$Z$315,11,0),0)","v":"Select"},null,{"$f":"IFERROR(VLOOKUP(B46,'Schedule V(b)'!$B$11:$Z$315,13,0),0)","v":0},null,{"$f":"IFERROR(VLOOKUP(B46,'Schedule V(b)'!$B$11:$Z$315,15,0),0)","v":"Select"},null,{"$f":"Import!E37253","v":"Select"},null,{"$f":"Import!E37288","v":"Select"},null,{"$f":"IFERROR(VLOOKUP(B46,'Schedule V(b)'!$B$11:$Z$315,25,0),0)","v":0},null,{"$f":"IFERROR(VLOOKUP(B46,'Schedule V(b)'!$B$11:$Z$315,23,0),0)","v":0}]
[36,null,null,{"$f":"IFERROR(VLOOKUP(B47,'Schedule V(b)'!$B$11:$Z$315,3,0),0)","v":0},null,{"$f":"IFERROR(VLOOKUP(B47,'Schedule V(b)'!$B$11:$Z$315,7,0),0)","v":"Select"},null,{"$f":"IFERROR(VLOOKUP(B47,'Schedule V(b)'!$B$11:$Z$315,9,0),0)","v":0},null,{"$f":"IFERROR(VLOOKUP(B47,'Schedule V(b)'!$B$11:$Z$315,11,0),0)","v":"Select"},null,{"$f":"IFERROR(VLOOKUP(B47,'Schedule V(b)'!$B$11:$Z$315,13,0),0)","v":0},null,{"$f":"IFERROR(VLOOKUP(B47,'Schedule V(b)'!$B$11:$Z$315,15,0),0)","v":"Select"},null,null,null,null,null,{"$f":"IFERROR(VLOOKUP(B47,'Schedule V(b)'!$B$11:$Z$315,25,0),0)","v":0},null,{"$f":"IFERROR(VLOOKUP(B47,'Schedule V(b)'!$B$11:$Z$315,23,0),0)","v":0}]
[37,null,null,{"$f":"IFERROR(VLOOKUP(B48,'Schedule V(b)'!$B$11:$Z$315,3,0),0)","v":0},null,{"$f":"IFERROR(VLOOKUP(B48,'Schedule V(b)'!$B$11:$Z$315,7,0),0)","v":"Select"},null,{"$f":"IFERROR(VLOOKUP(B48,'Schedule V(b)'!$B$11:$Z$315,9,0),0)","v":0},null,{"$f":"IFERROR(VLOOKUP(B48,'Schedule V(b)'!$B$11:$Z$315,11,0),0)","v":"Select"},null,{"$f":"IFERROR(VLOOKUP(B48,'Schedule V(b)'!$B$11:$Z$315,13,0),0)","v":0},null,{"$f":"IFERROR(VLOOKUP(B48,'Schedule V(b)'!$B$11:$Z$315,15,0),0)","v":"Select"},null,null,null,null,null,{"$f":"IFERROR(VLOOKUP(B48,'Schedule V(b)'!$B$11:$Z$315,25,0),0)","v":0},null,{"$f":"IFERROR(VLOOKUP(B48,'Schedule V(b)'!$B$11:$Z$315,23,0),0)","v":0}]
[38,null,null,{"$f":"IFERROR(VLOOKUP(B49,'Schedule V(b)'!$B$11:$Z$315,3,0),0)","v":0},null,{"$f":"IFERROR(VLOOKUP(B49,'Schedule V(b)'!$B$11:$Z$315,7,0),0)","v":"Select"},null,{"$f":"IFERROR(VLOOKUP(B49,'Schedule V(b)'!$B$11:$Z$315,9,0),0)","v":0},null,{"$f":"IFERROR(VLOOKUP(B49,'Schedule V(b)'!$B$11:$Z$315,11,0),0)","v":"Select"},null,{"$f":"IFERROR(VLOOKUP(B49,'Schedule V(b)'!$B$11:$Z$315,13,0),0)","v":0},null,{"$f":"IFERROR(VLOOKUP(B49,'Schedule V(b)'!$B$11:$Z$315,15,0),0)","v":"Select"},null,null,null,null,null,{"$f":"IFERROR(VLOOKUP(B49,'Schedule V(b)'!$B$11:$Z$315,25,0),0)","v":0},null,{"$f":"IFERROR(VLOOKUP(B49,'Schedule V(b)'!$B$11:$Z$315,23,0),0)","v":0}]
[39,null,null,{"$f":"IFERROR(VLOOKUP(B50,'Schedule V(b)'!$B$11:$Z$315,3,0),0)","v":0},null,{"$f":"IFERROR(VLOOKUP(B50,'Schedule V(b)'!$B$11:$Z$315,7,0),0)","v":"Select"},null,{"$f":"IFERROR(VLOOKUP(B50,'Schedule V(b)'!$B$11:$Z$315,9,0),0)","v":0},null,{"$f":"IFERROR(VLOOKUP(B50,'Schedule V(b)'!$B$11:$Z$315,11,0),0)","v":"Select"},null,{"$f":"IFERROR(VLOOKUP(B50,'Schedule V(b)'!$B$11:$Z$315,13,0),0)","v":0},null,{"$f":"IFERROR(VLOOKUP(B50,'Schedule V(b)'!$B$11:$Z$315,15,0),0)","v":"Select"},null,null,null,null,null,{"$f":"IFERROR(VLOOKUP(B50,'Schedule V(b)'!$B$11:$Z$315,25,0),0)","v":0},null,{"$f":"IFERROR(VLOOKUP(B50,'Schedule V(b)'!$B$11:$Z$315,23,0),0)","v":0}]
[40,null,null,{"$f":"IFERROR(VLOOKUP(B51,'Schedule V(b)'!$B$11:$Z$315,3,0),0)","v":0},null,{"$f":"IFERROR(VLOOKUP(B51,'Schedule V(b)'!$B$11:$Z$315,7,0),0)","v":"Select"},null,{"$f":"IFERROR(VLOOKUP(B51,'Schedule V(b)'!$B$11:$Z$315,9,0),0)","v":0},null,{"$f":"IFERROR(VLOOKUP(B51,'Schedule V(b)'!$B$11:$Z$315,11,0),0)","v":"Select"},null,{"$f":"IFERROR(VLOOKUP(B51,'Schedule V(b)'!$B$11:$Z$315,13,0),0)","v":0},null,{"$f":"IFERROR(VLOOKUP(B51,'Schedule V(b)'!$B$11:$Z$315,15,0),0)","v":"Select"},null,null,null,null,null,{"$f":"IFERROR(VLOOKUP(B51,'Schedule V(b)'!$B$11:$Z$315,25,0),0)","v":0},null,{"$f":"IFERROR(VLOOKUP(B51,'Schedule V(b)'!$B$11:$Z$315,23,0),0)","v":0}]
[41,null,null,{"$f":"IFERROR(VLOOKUP(B52,'Schedule V(b)'!$B$11:$Z$315,3,0),0)","v":0},null,{"$f":"IFERROR(VLOOKUP(B52,'Schedule V(b)'!$B$11:$Z$315,7,0),0)","v":"Select"},null,{"$f":"IFERROR(VLOOKUP(B52,'Schedule V(b)'!$B$11:$Z$315,9,0),0)","v":0},null,{"$f":"IFERROR(VLOOKUP(B52,'Schedule V(b)'!$B$11:$Z$315,11,0),0)","v":"Select"},null,{"$f":"IFERROR(VLOOKUP(B52,'Schedule V(b)'!$B$11:$Z$315,13,0),0)","v":0},null,{"$f":"IFERROR(VLOOKUP(B52,'Schedule V(b)'!$B$11:$Z$315,15,0),0)","v":"Select"},null,null,null,null,null,{"$f":"IFERROR(VLOOKUP(B52,'Schedule V(b)'!$B$11:$Z$315,25,0),0)","v":0},null,{"$f":"IFERROR(VLOOKUP(B52,'Schedule V(b)'!$B$11:$Z$315,23,0),0)","v":0}]
[42,null,null,{"$f":"IFERROR(VLOOKUP(B53,'Schedule V(b)'!$B$11:$Z$315,3,0),0)","v":0},null,{"$f":"IFERROR(VLOOKUP(B53,'Schedule V(b)'!$B$11:$Z$315,7,0),0)","v":"Select"},null,{"$f":"IFERROR(VLOOKUP(B53,'Schedule V(b)'!$B$11:$Z$315,9,0),0)","v":0},null,{"$f":"IFERROR(VLOOKUP(B53,'Schedule V(b)'!$B$11:$Z$315,11,0),0)","v":"Select"},null,{"$f":"IFERROR(VLOOKUP(B53,'Schedule V(b)'!$B$11:$Z$315,13,0),0)","v":0},null,{"$f":"IFERROR(VLOOKUP(B53,'Schedule V(b)'!$B$11:$Z$315,15,0),0)","v":"Select"},null,null,null,null,null,{"$f":"IFERROR(VLOOKUP(B53,'Schedule V(b)'!$B$11:$Z$315,25,0),0)","v":0},null,{"$f":"IFERROR(VLOOKUP(B53,'Schedule V(b)'!$B$11:$Z$315,23,0),0)","v":0}]
[43,null,null,{"$f":"IFERROR(VLOOKUP(B54,'Schedule V(b)'!$B$11:$Z$315,3,0),0)","v":0},null,{"$f":"IFERROR(VLOOKUP(B54,'Schedule V(b)'!$B$11:$Z$315,7,0),0)","v":"Select"},null,{"$f":"IFERROR(VLOOKUP(B54,'Schedule V(b)'!$B$11:$Z$315,9,0),0)","v":0},null,{"$f":"IFERROR(VLOOKUP(B54,'Schedule V(b)'!$B$11:$Z$315,11,0),0)","v":"Select"},null,{"$f":"IFERROR(VLOOKUP(B54,'Schedule V(b)'!$B$11:$Z$315,13,0),0)","v":0},null,{"$f":"IFERROR(VLOOKUP(B54,'Schedule V(b)'!$B$11:$Z$315,15,0),0)","v":"Select"},null,null,null,null,null,{"$f":"IFERROR(VLOOKUP(B54,'Schedule V(b)'!$B$11:$Z$315,25,0),0)","v":0},null,{"$f":"IFERROR(VLOOKUP(B54,'Schedule V(b)'!$B$11:$Z$315,23,0),0)","v":0}]
[44,null,null,{"$f":"IFERROR(VLOOKUP(B55,'Schedule V(b)'!$B$11:$Z$315,3,0),0)","v":0},null,{"$f":"IFERROR(VLOOKUP(B55,'Schedule V(b)'!$B$11:$Z$315,7,0),0)","v":"Select"},null,{"$f":"IFERROR(VLOOKUP(B55,'Schedule V(b)'!$B$11:$Z$315,9,0),0)","v":0},null,{"$f":"IFERROR(VLOOKUP(B55,'Schedule V(b)'!$B$11:$Z$315,11,0),0)","v":"Select"},null,{"$f":"IFERROR(VLOOKUP(B55,'Schedule V(b)'!$B$11:$Z$315,13,0),0)","v":0},null,{"$f":"IFERROR(VLOOKUP(B55,'Schedule V(b)'!$B$11:$Z$315,15,0),0)","v":"Select"},null,null,null,null,null,{"$f":"IFERROR(VLOOKUP(B55,'Schedule V(b)'!$B$11:$Z$315,25,0),0)","v":0},null,{"$f":"IFERROR(VLOOKUP(B55,'Schedule V(b)'!$B$11:$Z$315,23,0),0)","v":0}]
[45,null,null,{"$f":"IFERROR(VLOOKUP(B56,'Schedule V(b)'!$B$11:$Z$315,3,0),0)","v":0},null,{"$f":"IFERROR(VLOOKUP(B56,'Schedule V(b)'!$B$11:$Z$315,7,0),0)","v":"Select"},null,{"$f":"IFERROR(VLOOKUP(B56,'Schedule V(b)'!$B$11:$Z$315,9,0),0)","v":0},null,{"$f":"IFERROR(VLOOKUP(B56,'Schedule V(b)'!$B$11:$Z$315,11,0),0)","v":"Select"},null,{"$f":"IFERROR(VLOOKUP(B56,'Schedule V(b)'!$B$11:$Z$315,13,0),0)","v":0},null,{"$f":"IFERROR(VLOOKUP(B56,'Schedule V(b)'!$B$11:$Z$315,15,0),0)","v":"Select"},null,null,null,null,null,{"$f":"IFERROR(VLOOKUP(B56,'Schedule V(b)'!$B$11:$Z$315,25,0),0)","v":0},null,{"$f":"IFERROR(VLOOKUP(B56,'Schedule V(b)'!$B$11:$Z$315,23,0),0)","v":0}]
[46,null,null,{"$f":"IFERROR(VLOOKUP(B57,'Schedule V(b)'!$B$11:$Z$315,3,0),0)","v":0},null,{"$f":"IFERROR(VLOOKUP(B57,'Schedule V(b)'!$B$11:$Z$315,7,0),0)","v":"Select"},null,{"$f":"IFERROR(VLOOKUP(B57,'Schedule V(b)'!$B$11:$Z$315,9,0),0)","v":0},null,{"$f":"IFERROR(VLOOKUP(B57,'Schedule V(b)'!$B$11:$Z$315,11,0),0)","v":"Select"},null,{"$f":"IFERROR(VLOOKUP(B57,'Schedule V(b)'!$B$11:$Z$315,13,0),0)","v":0},null,{"$f":"IFERROR(VLOOKUP(B57,'Schedule V(b)'!$B$11:$Z$315,15,0),0)","v":"Select"},null,null,null,null,null,{"$f":"IFERROR(VLOOKUP(B57,'Schedule V(b)'!$B$11:$Z$315,25,0),0)","v":0},null,{"$f":"IFERROR(VLOOKUP(B57,'Schedule V(b)'!$B$11:$Z$315,23,0),0)","v":0}]
[47,null,null,{"$f":"IFERROR(VLOOKUP(B58,'Schedule V(b)'!$B$11:$Z$315,3,0),0)","v":0},null,{"$f":"IFERROR(VLOOKUP(B58,'Schedule V(b)'!$B$11:$Z$315,7,0),0)","v":"Select"},null,{"$f":"IFERROR(VLOOKUP(B58,'Schedule V(b)'!$B$11:$Z$315,9,0),0)","v":0},null,{"$f":"IFERROR(VLOOKUP(B58,'Schedule V(b)'!$B$11:$Z$315,11,0),0)","v":"Select"},null,{"$f":"IFERROR(VLOOKUP(B58,'Schedule V(b)'!$B$11:$Z$315,13,0),0)","v":0},null,{"$f":"IFERROR(VLOOKUP(B58,'Schedule V(b)'!$B$11:$Z$315,15,0),0)","v":"Select"},null,null,null,null,null,{"$f":"IFERROR(VLOOKUP(B58,'Schedule V(b)'!$B$11:$Z$315,25,0),0)","v":0},null,{"$f":"IFERROR(VLOOKUP(B58,'Schedule V(b)'!$B$11:$Z$315,23,0),0)","v":0}]
[48,null,null,{"$f":"IFERROR(VLOOKUP(B59,'Schedule V(b)'!$B$11:$Z$315,3,0),0)","v":0},null,{"$f":"IFERROR(VLOOKUP(B59,'Schedule V(b)'!$B$11:$Z$315,7,0),0)","v":"Select"},null,{"$f":"IFERROR(VLOOKUP(B59,'Schedule V(b)'!$B$11:$Z$315,9,0),0)","v":0},null,{"$f":"IFERROR(VLOOKUP(B59,'Schedule V(b)'!$B$11:$Z$315,11,0),0)","v":"Select"},null,{"$f":"IFERROR(VLOOKUP(B59,'Schedule V(b)'!$B$11:$Z$315,13,0),0)","v":0},null,{"$f":"IFERROR(VLOOKUP(B59,'Schedule V(b)'!$B$11:$Z$315,15,0),0)","v":"Select"},null,null,null,null,null,{"$f":"IFERROR(VLOOKUP(B59,'Schedule V(b)'!$B$11:$Z$315,25,0),0)","v":0},null,{"$f":"IFERROR(VLOOKUP(B59,'Schedule V(b)'!$B$11:$Z$315,23,0),0)","v":0}]
[49,null,null,{"$f":"IFERROR(VLOOKUP(B60,'Schedule V(b)'!$B$11:$Z$315,3,0),0)","v":0},null,{"$f":"IFERROR(VLOOKUP(B60,'Schedule V(b)'!$B$11:$Z$315,7,0),0)","v":"Select"},null,{"$f":"IFERROR(VLOOKUP(B60,'Schedule V(b)'!$B$11:$Z$315,9,0),0)","v":0},null,{"$f":"IFERROR(VLOOKUP(B60,'Schedule V(b)'!$B$11:$Z$315,11,0),0)","v":"Select"},null,{"$f":"IFERROR(VLOOKUP(B60,'Schedule V(b)'!$B$11:$Z$315,13,0),0)","v":0},null,{"$f":"IFERROR(VLOOKUP(B60,'Schedule V(b)'!$B$11:$Z$315,15,0),0)","v":"Select"},null,null,null,null,null,{"$f":"IFERROR(VLOOKUP(B60,'Schedule V(b)'!$B$11:$Z$315,25,0),0)","v":0},null,{"$f":"IFERROR(VLOOKUP(B60,'Schedule V(b)'!$B$11:$Z$315,23,0),0)","v":0}]
[50,null,null,{"$f":"IFERROR(VLOOKUP(B61,'Schedule V(b)'!$B$11:$Z$315,3,0),0)","v":0},null,{"$f":"IFERROR(VLOOKUP(B61,'Schedule V(b)'!$B$11:$Z$315,7,0),0)","v":"Select"},null,{"$f":"IFERROR(VLOOKUP(B61,'Schedule V(b)'!$B$11:$Z$315,9,0),0)","v":0},null,{"$f":"IFERROR(VLOOKUP(B61,'Schedule V(b)'!$B$11:$Z$315,11,0),0)","v":"Select"},null,{"$f":"IFERROR(VLOOKUP(B61,'Schedule V(b)'!$B$11:$Z$315,13,0),0)","v":0},null,{"$f":"IFERROR(VLOOKUP(B61,'Schedule V(b)'!$B$11:$Z$315,15,0),0)","v":"Select"},null,null,null,null,null,{"$f":"IFERROR(VLOOKUP(B61,'Schedule V(b)'!$B$11:$Z$315,25,0),0)","v":0},null,{"$f":"IFERROR(VLOOKUP(B61,'Schedule V(b)'!$B$11:$Z$315,23,0),0)","v":0}]
[51,null,null,{"$f":"IFERROR(VLOOKUP(B62,'Schedule V(b)'!$B$11:$Z$315,3,0),0)","v":0},null,{"$f":"IFERROR(VLOOKUP(B62,'Schedule V(b)'!$B$11:$Z$315,7,0),0)","v":"Select"},null,{"$f":"IFERROR(VLOOKUP(B62,'Schedule V(b)'!$B$11:$Z$315,9,0),0)","v":0},null,{"$f":"IFERROR(VLOOKUP(B62,'Schedule V(b)'!$B$11:$Z$315,11,0),0)","v":"Select"},null,{"$f":"IFERROR(VLOOKUP(B62,'Schedule V(b)'!$B$11:$Z$315,13,0),0)","v":0},null,{"$f":"IFERROR(VLOOKUP(B62,'Schedule V(b)'!$B$11:$Z$315,15,0),0)","v":"Select"},null,null,null,null,null,{"$f":"IFERROR(VLOOKUP(B62,'Schedule V(b)'!$B$11:$Z$315,25,0),0)","v":0},null,{"$f":"IFERROR(VLOOKUP(B62,'Schedule V(b)'!$B$11:$Z$315,23,0),0)","v":0}]
[52,null,null,{"$f":"IFERROR(VLOOKUP(B63,'Schedule V(b)'!$B$11:$Z$315,3,0),0)","v":0},null,{"$f":"IFERROR(VLOOKUP(B63,'Schedule V(b)'!$B$11:$Z$315,7,0),0)","v":"Select"},null,{"$f":"IFERROR(VLOOKUP(B63,'Schedule V(b)'!$B$11:$Z$315,9,0),0)","v":0},null,{"$f":"IFERROR(VLOOKUP(B63,'Schedule V(b)'!$B$11:$Z$315,11,0),0)","v":"Select"},null,{"$f":"IFERROR(VLOOKUP(B63,'Schedule V(b)'!$B$11:$Z$315,13,0),0)","v":0},null,{"$f":"IFERROR(VLOOKUP(B63,'Schedule V(b)'!$B$11:$Z$315,15,0),0)","v":"Select"},null,null,null,null,null,{"$f":"IFERROR(VLOOKUP(B63,'Schedule V(b)'!$B$11:$Z$315,25,0),0)","v":0},null,{"$f":"IFERROR(VLOOKUP(B63,'Schedule V(b)'!$B$11:$Z$315,23,0),0)","v":0}]
[53,null,null,{"$f":"IFERROR(VLOOKUP(B64,'Schedule V(b)'!$B$11:$Z$315,3,0),0)","v":0},null,{"$f":"IFERROR(VLOOKUP(B64,'Schedule V(b)'!$B$11:$Z$315,7,0),0)","v":"Select"},null,{"$f":"IFERROR(VLOOKUP(B64,'Schedule V(b)'!$B$11:$Z$315,9,0),0)","v":0},null,{"$f":"IFERROR(VLOOKUP(B64,'Schedule V(b)'!$B$11:$Z$315,11,0),0)","v":"Select"},null,{"$f":"IFERROR(VLOOKUP(B64,'Schedule V(b)'!$B$11:$Z$315,13,0),0)","v":0},null,{"$f":"IFERROR(VLOOKUP(B64,'Schedule V(b)'!$B$11:$Z$315,15,0),0)","v":"Select"},null,null,null,null,null,{"$f":"IFERROR(VLOOKUP(B64,'Schedule V(b)'!$B$11:$Z$315,25,0),0)","v":0},null,{"$f":"IFERROR(VLOOKUP(B64,'Schedule V(b)'!$B$11:$Z$315,23,0),0)","v":0}]
[54,null,null,{"$f":"IFERROR(VLOOKUP(B65,'Schedule V(b)'!$B$11:$Z$315,3,0),0)","v":0},null,{"$f":"IFERROR(VLOOKUP(B65,'Schedule V(b)'!$B$11:$Z$315,7,0),0)","v":"Select"},null,{"$f":"IFERROR(VLOOKUP(B65,'Schedule V(b)'!$B$11:$Z$315,9,0),0)","v":0},null,{"$f":"IFERROR(VLOOKUP(B65,'Schedule V(b)'!$B$11:$Z$315,11,0),0)","v":"Select"},null,{"$f":"IFERROR(VLOOKUP(B65,'Schedule V(b)'!$B$11:$Z$315,13,0),0)","v":0},null,{"$f":"IFERROR(VLOOKUP(B65,'Schedule V(b)'!$B$11:$Z$315,15,0),0)","v":"Select"},null,null,null,null,null,{"$f":"IFERROR(VLOOKUP(B65,'Schedule V(b)'!$B$11:$Z$315,25,0),0)","v":0},null,{"$f":"IFERROR(VLOOKUP(B65,'Schedule V(b)'!$B$11:$Z$315,23,0),0)","v":0}]
[55,null,null,{"$f":"IFERROR(VLOOKUP(B66,'Schedule V(b)'!$B$11:$Z$315,3,0),0)","v":0},null,{"$f":"IFERROR(VLOOKUP(B66,'Schedule V(b)'!$B$11:$Z$315,7,0),0)","v":"Select"},null,{"$f":"IFERROR(VLOOKUP(B66,'Schedule V(b)'!$B$11:$Z$315,9,0),0)","v":0},null,{"$f":"IFERROR(VLOOKUP(B66,'Schedule V(b)'!$B$11:$Z$315,11,0),0)","v":"Select"},null,{"$f":"IFERROR(VLOOKUP(B66,'Schedule V(b)'!$B$11:$Z$315,13,0),0)","v":0},null,{"$f":"IFERROR(VLOOKUP(B66,'Schedule V(b)'!$B$11:$Z$315,15,0),0)","v":"Select"},null,null,null,null,null,{"$f":"IFERROR(VLOOKUP(B66,'Schedule V(b)'!$B$11:$Z$315,25,0),0)","v":0},null,{"$f":"IFERROR(VLOOKUP(B66,'Schedule V(b)'!$B$11:$Z$315,23,0),0)","v":0}]
[56,null,null,{"$f":"IFERROR(VLOOKUP(B67,'Schedule V(b)'!$B$11:$Z$315,3,0),0)","v":0},null,{"$f":"IFERROR(VLOOKUP(B67,'Schedule V(b)'!$B$11:$Z$315,7,0),0)","v":"Select"},null,{"$f":"IFERROR(VLOOKUP(B67,'Schedule V(b)'!$B$11:$Z$315,9,0),0)","v":0},null,{"$f":"IFERROR(VLOOKUP(B67,'Schedule V(b)'!$B$11:$Z$315,11,0),0)","v":"Select"},null,{"$f":"IFERROR(VLOOKUP(B67,'Schedule V(b)'!$B$11:$Z$315,13,0),0)","v":0},null,{"$f":"IFERROR(VLOOKUP(B67,'Schedule V(b)'!$B$11:$Z$315,15,0),0)","v":"Select"},null,null,null,null,null,{"$f":"IFERROR(VLOOKUP(B67,'Schedule V(b)'!$B$11:$Z$315,25,0),0)","v":0},null,{"$f":"IFERROR(VLOOKUP(B67,'Schedule V(b)'!$B$11:$Z$315,23,0),0)","v":0}]
[57,null,null,{"$f":"IFERROR(VLOOKUP(B68,'Schedule V(b)'!$B$11:$Z$315,3,0),0)","v":0},null,{"$f":"IFERROR(VLOOKUP(B68,'Schedule V(b)'!$B$11:$Z$315,7,0),0)","v":"Select"},null,{"$f":"IFERROR(VLOOKUP(B68,'Schedule V(b)'!$B$11:$Z$315,9,0),0)","v":0},null,{"$f":"IFERROR(VLOOKUP(B68,'Schedule V(b)'!$B$11:$Z$315,11,0),0)","v":"Select"},null,{"$f":"IFERROR(VLOOKUP(B68,'Schedule V(b)'!$B$11:$Z$315,13,0),0)","v":0},null,{"$f":"IFERROR(VLOOKUP(B68,'Schedule V(b)'!$B$11:$Z$315,15,0),0)","v":"Select"},null,null,null,null,null,{"$f":"IFERROR(VLOOKUP(B68,'Schedule V(b)'!$B$11:$Z$315,25,0),0)","v":0},null,{"$f":"IFERROR(VLOOKUP(B68,'Schedule V(b)'!$B$11:$Z$315,23,0),0)","v":0}]
[58,null,null,{"$f":"IFERROR(VLOOKUP(B69,'Schedule V(b)'!$B$11:$Z$315,3,0),0)","v":0},null,{"$f":"IFERROR(VLOOKUP(B69,'Schedule V(b)'!$B$11:$Z$315,7,0),0)","v":"Select"},null,{"$f":"IFERROR(VLOOKUP(B69,'Schedule V(b)'!$B$11:$Z$315,9,0),0)","v":0},null,{"$f":"IFERROR(VLOOKUP(B69,'Schedule V(b)'!$B$11:$Z$315,11,0),0)","v":"Select"},null,{"$f":"IFERROR(VLOOKUP(B69,'Schedule V(b)'!$B$11:$Z$315,13,0),0)","v":0},null,{"$f":"IFERROR(VLOOKUP(B69,'Schedule V(b)'!$B$11:$Z$315,15,0),0)","v":"Select"},null,null,null,null,null,{"$f":"IFERROR(VLOOKUP(B69,'Schedule V(b)'!$B$11:$Z$315,25,0),0)","v":0},null,{"$f":"IFERROR(VLOOKUP(B69,'Schedule V(b)'!$B$11:$Z$315,23,0),0)","v":0}]
[59,null,null,{"$f":"IFERROR(VLOOKUP(B70,'Schedule V(b)'!$B$11:$Z$315,3,0),0)","v":0},null,{"$f":"IFERROR(VLOOKUP(B70,'Schedule V(b)'!$B$11:$Z$315,7,0),0)","v":"Select"},null,{"$f":"IFERROR(VLOOKUP(B70,'Schedule V(b)'!$B$11:$Z$315,9,0),0)","v":0},null,{"$f":"IFERROR(VLOOKUP(B70,'Schedule V(b)'!$B$11:$Z$315,11,0),0)","v":"Select"},null,{"$f":"IFERROR(VLOOKUP(B70,'Schedule V(b)'!$B$11:$Z$315,13,0),0)","v":0},null,{"$f":"IFERROR(VLOOKUP(B70,'Schedule V(b)'!$B$11:$Z$315,15,0),0)","v":"Select"},null,null,null,null,null,{"$f":"IFERROR(VLOOKUP(B70,'Schedule V(b)'!$B$11:$Z$315,25,0),0)","v":0},null,{"$f":"IFERROR(VLOOKUP(B70,'Schedule V(b)'!$B$11:$Z$315,23,0),0)","v":0}]
[60,null,null,{"$f":"IFERROR(VLOOKUP(B71,'Schedule V(b)'!$B$11:$Z$315,3,0),0)","v":0},null,{"$f":"IFERROR(VLOOKUP(B71,'Schedule V(b)'!$B$11:$Z$315,7,0),0)","v":"Select"},null,{"$f":"IFERROR(VLOOKUP(B71,'Schedule V(b)'!$B$11:$Z$315,9,0),0)","v":0},null,{"$f":"IFERROR(VLOOKUP(B71,'Schedule V(b)'!$B$11:$Z$315,11,0),0)","v":"Select"},null,{"$f":"IFERROR(VLOOKUP(B71,'Schedule V(b)'!$B$11:$Z$315,13,0),0)","v":0},null,{"$f":"IFERROR(VLOOKUP(B71,'Schedule V(b)'!$B$11:$Z$315,15,0),0)","v":"Select"},null,null,null,null,null,{"$f":"IFERROR(VLOOKUP(B71,'Schedule V(b)'!$B$11:$Z$315,25,0),0)","v":0},null,{"$f":"IFERROR(VLOOKUP(B71,'Schedule V(b)'!$B$11:$Z$315,23,0),0)","v":0}]
[61,null,null,{"$f":"IFERROR(VLOOKUP(B72,'Schedule V(b)'!$B$11:$Z$315,3,0),0)","v":0},null,{"$f":"IFERROR(VLOOKUP(B72,'Schedule V(b)'!$B$11:$Z$315,7,0),0)","v":"Select"},null,{"$f":"IFERROR(VLOOKUP(B72,'Schedule V(b)'!$B$11:$Z$315,9,0),0)","v":0},null,{"$f":"IFERROR(VLOOKUP(B72,'Schedule V(b)'!$B$11:$Z$315,11,0),0)","v":"Select"},null,{"$f":"IFERROR(VLOOKUP(B72,'Schedule V(b)'!$B$11:$Z$315,13,0),0)","v":0},null,{"$f":"IFERROR(VLOOKUP(B72,'Schedule V(b)'!$B$11:$Z$315,15,0),0)","v":"Select"},null,null,null,null,null,{"$f":"IFERROR(VLOOKUP(B72,'Schedule V(b)'!$B$11:$Z$315,25,0),0)","v":0},null,{"$f":"IFERROR(VLOOKUP(B72,'Schedule V(b)'!$B$11:$Z$315,23,0),0)","v":0}]
[62,null,null,{"$f":"IFERROR(VLOOKUP(B73,'Schedule V(b)'!$B$11:$Z$315,3,0),0)","v":0},null,{"$f":"IFERROR(VLOOKUP(B73,'Schedule V(b)'!$B$11:$Z$315,7,0),0)","v":"Select"},null,{"$f":"IFERROR(VLOOKUP(B73,'Schedule V(b)'!$B$11:$Z$315,9,0),0)","v":0},null,{"$f":"IFERROR(VLOOKUP(B73,'Schedule V(b)'!$B$11:$Z$315,11,0),0)","v":"Select"},null,{"$f":"IFERROR(VLOOKUP(B73,'Schedule V(b)'!$B$11:$Z$315,13,0),0)","v":0},null,{"$f":"IFERROR(VLOOKUP(B73,'Schedule V(b)'!$B$11:$Z$315,15,0),0)","v":"Select"},null,null,null,null,null,{"$f":"IFERROR(VLOOKUP(B73,'Schedule V(b)'!$B$11:$Z$315,25,0),0)","v":0},null,{"$f":"IFERROR(VLOOKUP(B73,'Schedule V(b)'!$B$11:$Z$315,23,0),0)","v":0}]
[63,null,null,{"$f":"IFERROR(VLOOKUP(B74,'Schedule V(b)'!$B$11:$Z$315,3,0),0)","v":0},null,{"$f":"IFERROR(VLOOKUP(B74,'Schedule V(b)'!$B$11:$Z$315,7,0),0)","v":"Select"},null,{"$f":"IFERROR(VLOOKUP(B74,'Schedule V(b)'!$B$11:$Z$315,9,0),0)","v":0},null,{"$f":"IFERROR(VLOOKUP(B74,'Schedule V(b)'!$B$11:$Z$315,11,0),0)","v":"Select"},null,{"$f":"IFERROR(VLOOKUP(B74,'Schedule V(b)'!$B$11:$Z$315,13,0),0)","v":0},null,{"$f":"IFERROR(VLOOKUP(B74,'Schedule V(b)'!$B$11:$Z$315,15,0),0)","v":"Select"},null,null,null,null,null,{"$f":"IFERROR(VLOOKUP(B74,'Schedule V(b)'!$B$11:$Z$315,25,0),0)","v":0},null,{"$f":"IFERROR(VLOOKUP(B74,'Schedule V(b)'!$B$11:$Z$315,23,0),0)","v":0}]
[64,null,null,{"$f":"IFERROR(VLOOKUP(B75,'Schedule V(b)'!$B$11:$Z$315,3,0),0)","v":0},null,{"$f":"IFERROR(VLOOKUP(B75,'Schedule V(b)'!$B$11:$Z$315,7,0),0)","v":"Select"},null,{"$f":"IFERROR(VLOOKUP(B75,'Schedule V(b)'!$B$11:$Z$315,9,0),0)","v":0},null,{"$f":"IFERROR(VLOOKUP(B75,'Schedule V(b)'!$B$11:$Z$315,11,0),0)","v":"Select"},null,{"$f":"IFERROR(VLOOKUP(B75,'Schedule V(b)'!$B$11:$Z$315,13,0),0)","v":0},null,{"$f":"IFERROR(VLOOKUP(B75,'Schedule V(b)'!$B$11:$Z$315,15,0),0)","v":"Select"},null,null,null,null,null,{"$f":"IFERROR(VLOOKUP(B75,'Schedule V(b)'!$B$11:$Z$315,25,0),0)","v":0},null,{"$f":"IFERROR(VLOOKUP(B75,'Schedule V(b)'!$B$11:$Z$315,23,0),0)","v":0}]
[65,null,null,{"$f":"IFERROR(VLOOKUP(B76,'Schedule V(b)'!$B$11:$Z$315,3,0),0)","v":0},null,{"$f":"IFERROR(VLOOKUP(B76,'Schedule V(b)'!$B$11:$Z$315,7,0),0)","v":"Select"},null,{"$f":"IFERROR(VLOOKUP(B76,'Schedule V(b)'!$B$11:$Z$315,9,0),0)","v":0},null,{"$f":"IFERROR(VLOOKUP(B76,'Schedule V(b)'!$B$11:$Z$315,11,0),0)","v":"Select"},null,{"$f":"IFERROR(VLOOKUP(B76,'Schedule V(b)'!$B$11:$Z$315,13,0),0)","v":0},null,{"$f":"IFERROR(VLOOKUP(B76,'Schedule V(b)'!$B$11:$Z$315,15,0),0)","v":"Select"},null,null,null,null,null,{"$f":"IFERROR(VLOOKUP(B76,'Schedule V(b)'!$B$11:$Z$315,25,0),0)","v":0},null,{"$f":"IFERROR(VLOOKUP(B76,'Schedule V(b)'!$B$11:$Z$315,23,0),0)","v":0}]
[66,null,null,{"$f":"IFERROR(VLOOKUP(B77,'Schedule V(b)'!$B$11:$Z$315,3,0),0)","v":0},null,{"$f":"IFERROR(VLOOKUP(B77,'Schedule V(b)'!$B$11:$Z$315,7,0),0)","v":"Select"},null,{"$f":"IFERROR(VLOOKUP(B77,'Schedule V(b)'!$B$11:$Z$315,9,0),0)","v":0},null,{"$f":"IFERROR(VLOOKUP(B77,'Schedule V(b)'!$B$11:$Z$315,11,0),0)","v":"Select"},null,{"$f":"IFERROR(VLOOKUP(B77,'Schedule V(b)'!$B$11:$Z$315,13,0),0)","v":0},null,{"$f":"IFERROR(VLOOKUP(B77,'Schedule V(b)'!$B$11:$Z$315,15,0),0)","v":"Select"},null,null,null,null,null,{"$f":"IFERROR(VLOOKUP(B77,'Schedule V(b)'!$B$11:$Z$315,25,0),0)","v":0},null,{"$f":"IFERROR(VLOOKUP(B77,'Schedule V(b)'!$B$11:$Z$315,23,0),0)","v":0}]
[67,null,null,{"$f":"IFERROR(VLOOKUP(B78,'Schedule V(b)'!$B$11:$Z$315,3,0),0)","v":0},null,{"$f":"IFERROR(VLOOKUP(B78,'Schedule V(b)'!$B$11:$Z$315,7,0),0)","v":"Select"},null,{"$f":"IFERROR(VLOOKUP(B78,'Schedule V(b)'!$B$11:$Z$315,9,0),0)","v":0},null,{"$f":"IFERROR(VLOOKUP(B78,'Schedule V(b)'!$B$11:$Z$315,11,0),0)","v":"Select"},null,{"$f":"IFERROR(VLOOKUP(B78,'Schedule V(b)'!$B$11:$Z$315,13,0),0)","v":0},null,{"$f":"IFERROR(VLOOKUP(B78,'Schedule V(b)'!$B$11:$Z$315,15,0),0)","v":"Select"},null,null,null,null,null,{"$f":"IFERROR(VLOOKUP(B78,'Schedule V(b)'!$B$11:$Z$315,25,0),0)","v":0},null,{"$f":"IFERROR(VLOOKUP(B78,'Schedule V(b)'!$B$11:$Z$315,23,0),0)","v":0}]
[68,null,null,{"$f":"IFERROR(VLOOKUP(B79,'Schedule V(b)'!$B$11:$Z$315,3,0),0)","v":0},null,{"$f":"IFERROR(VLOOKUP(B79,'Schedule V(b)'!$B$11:$Z$315,7,0),0)","v":"Select"},null,{"$f":"IFERROR(VLOOKUP(B79,'Schedule V(b)'!$B$11:$Z$315,9,0),0)","v":0},null,{"$f":"IFERROR(VLOOKUP(B79,'Schedule V(b)'!$B$11:$Z$315,11,0),0)","v":"Select"},null,{"$f":"IFERROR(VLOOKUP(B79,'Schedule V(b)'!$B$11:$Z$315,13,0),0)","v":0},null,{"$f":"IFERROR(VLOOKUP(B79,'Schedule V(b)'!$B$11:$Z$315,15,0),0)","v":"Select"},null,null,null,null,null,{"$f":"IFERROR(VLOOKUP(B79,'Schedule V(b)'!$B$11:$Z$315,25,0),0)","v":0},null,{"$f":"IFERROR(VLOOKUP(B79,'Schedule V(b)'!$B$11:$Z$315,23,0),0)","v":0}]
[69,null,null,{"$f":"IFERROR(VLOOKUP(B80,'Schedule V(b)'!$B$11:$Z$315,3,0),0)","v":0},null,{"$f":"IFERROR(VLOOKUP(B80,'Schedule V(b)'!$B$11:$Z$315,7,0),0)","v":"Select"},null,{"$f":"IFERROR(VLOOKUP(B80,'Schedule V(b)'!$B$11:$Z$315,9,0),0)","v":0},null,{"$f":"IFERROR(VLOOKUP(B80,'Schedule V(b)'!$B$11:$Z$315,11,0),0)","v":"Select"},null,{"$f":"IFERROR(VLOOKUP(B80,'Schedule V(b)'!$B$11:$Z$315,13,0),0)","v":0},null,{"$f":"IFERROR(VLOOKUP(B80,'Schedule V(b)'!$B$11:$Z$315,15,0),0)","v":"Select"},null,null,null,null,null,{"$f":"IFERROR(VLOOKUP(B80,'Schedule V(b)'!$B$11:$Z$315,25,0),0)","v":0},null,{"$f":"IFERROR(VLOOKUP(B80,'Schedule V(b)'!$B$11:$Z$315,23,0),0)","v":0}]
[70,null,null,{"$f":"IFERROR(VLOOKUP(B81,'Schedule V(b)'!$B$11:$Z$315,3,0),0)","v":0},null,{"$f":"IFERROR(VLOOKUP(B81,'Schedule V(b)'!$B$11:$Z$315,7,0),0)","v":"Select"},null,{"$f":"IFERROR(VLOOKUP(B81,'Schedule V(b)'!$B$11:$Z$315,9,0),0)","v":0},null,{"$f":"IFERROR(VLOOKUP(B81,'Schedule V(b)'!$B$11:$Z$315,11,0),0)","v":"Select"},null,{"$f":"IFERROR(VLOOKUP(B81,'Schedule V(b)'!$B$11:$Z$315,13,0),0)","v":0},null,{"$f":"IFERROR(VLOOKUP(B81,'Schedule V(b)'!$B$11:$Z$315,15,0),0)","v":"Select"},null,null,null,null,null,{"$f":"IFERROR(VLOOKUP(B81,'Schedule V(b)'!$B$11:$Z$315,25,0),0)","v":0},null,{"$f":"IFERROR(VLOOKUP(B81,'Schedule V(b)'!$B$11:$Z$315,23,0),0)","v":0}]
[71,null,null,{"$f":"IFERROR(VLOOKUP(B82,'Schedule V(b)'!$B$11:$Z$315,3,0),0)","v":0},null,{"$f":"IFERROR(VLOOKUP(B82,'Schedule V(b)'!$B$11:$Z$315,7,0),0)","v":"Select"},null,{"$f":"IFERROR(VLOOKUP(B82,'Schedule V(b)'!$B$11:$Z$315,9,0),0)","v":0},null,{"$f":"IFERROR(VLOOKUP(B82,'Schedule V(b)'!$B$11:$Z$315,11,0),0)","v":"Select"},null,{"$f":"IFERROR(VLOOKUP(B82,'Schedule V(b)'!$B$11:$Z$315,13,0),0)","v":0},null,{"$f":"IFERROR(VLOOKUP(B82,'Schedule V(b)'!$B$11:$Z$315,15,0),0)","v":"Select"},null,null,null,null,null,{"$f":"IFERROR(VLOOKUP(B82,'Schedule V(b)'!$B$11:$Z$315,25,0),0)","v":0},null,{"$f":"IFERROR(VLOOKUP(B82,'Schedule V(b)'!$B$11:$Z$315,23,0),0)","v":0}]
[72,null,null,{"$f":"IFERROR(VLOOKUP(B83,'Schedule V(b)'!$B$11:$Z$315,3,0),0)","v":0},null,{"$f":"IFERROR(VLOOKUP(B83,'Schedule V(b)'!$B$11:$Z$315,7,0),0)","v":"Select"},null,{"$f":"IFERROR(VLOOKUP(B83,'Schedule V(b)'!$B$11:$Z$315,9,0),0)","v":0},null,{"$f":"IFERROR(VLOOKUP(B83,'Schedule V(b)'!$B$11:$Z$315,11,0),0)","v":"Select"},null,{"$f":"IFERROR(VLOOKUP(B83,'Schedule V(b)'!$B$11:$Z$315,13,0),0)","v":0},null,{"$f":"IFERROR(VLOOKUP(B83,'Schedule V(b)'!$B$11:$Z$315,15,0),0)","v":"Select"},null,null,null,null,null,{"$f":"IFERROR(VLOOKUP(B83,'Schedule V(b)'!$B$11:$Z$315,25,0),0)","v":0},null,{"$f":"IFERROR(VLOOKUP(B83,'Schedule V(b)'!$B$11:$Z$315,23,0),0)","v":0}]
[73,null,null,{"$f":"IFERROR(VLOOKUP(B84,'Schedule V(b)'!$B$11:$Z$315,3,0),0)","v":0},null,{"$f":"IFERROR(VLOOKUP(B84,'Schedule V(b)'!$B$11:$Z$315,7,0),0)","v":"Select"},null,{"$f":"IFERROR(VLOOKUP(B84,'Schedule V(b)'!$B$11:$Z$315,9,0),0)","v":0},null,{"$f":"IFERROR(VLOOKUP(B84,'Schedule V(b)'!$B$11:$Z$315,11,0),0)","v":"Select"},null,{"$f":"IFERROR(VLOOKUP(B84,'Schedule V(b)'!$B$11:$Z$315,13,0),0)","v":0},null,{"$f":"IFERROR(VLOOKUP(B84,'Schedule V(b)'!$B$11:$Z$315,15,0),0)","v":"Select"},null,null,null,null,null,{"$f":"IFERROR(VLOOKUP(B84,'Schedule V(b)'!$B$11:$Z$315,25,0),0)","v":0},null,{"$f":"IFERROR(VLOOKUP(B84,'Schedule V(b)'!$B$11:$Z$315,23,0),0)","v":0}]
[74,null,null,{"$f":"IFERROR(VLOOKUP(B85,'Schedule V(b)'!$B$11:$Z$315,3,0),0)","v":0},null,{"$f":"IFERROR(VLOOKUP(B85,'Schedule V(b)'!$B$11:$Z$315,7,0),0)","v":"Select"},null,{"$f":"IFERROR(VLOOKUP(B85,'Schedule V(b)'!$B$11:$Z$315,9,0),0)","v":0},null,{"$f":"IFERROR(VLOOKUP(B85,'Schedule V(b)'!$B$11:$Z$315,11,0),0)","v":"Select"},null,{"$f":"IFERROR(VLOOKUP(B85,'Schedule V(b)'!$B$11:$Z$315,13,0),0)","v":0},null,{"$f":"IFERROR(VLOOKUP(B85,'Schedule V(b)'!$B$11:$Z$315,15,0),0)","v":"Select"},null,null,null,null,null,{"$f":"IFERROR(VLOOKUP(B85,'Schedule V(b)'!$B$11:$Z$315,25,0),0)","v":0},null,{"$f":"IFERROR(VLOOKUP(B85,'Schedule V(b)'!$B$11:$Z$315,23,0),0)","v":0}]
[75,null,null,{"$f":"IFERROR(VLOOKUP(B86,'Schedule V(b)'!$B$11:$Z$315,3,0),0)","v":0},null,{"$f":"IFERROR(VLOOKUP(B86,'Schedule V(b)'!$B$11:$Z$315,7,0),0)","v":"Select"},null,{"$f":"IFERROR(VLOOKUP(B86,'Schedule V(b)'!$B$11:$Z$315,9,0),0)","v":0},null,{"$f":"IFERROR(VLOOKUP(B86,'Schedule V(b)'!$B$11:$Z$315,11,0),0)","v":"Select"},null,{"$f":"IFERROR(VLOOKUP(B86,'Schedule V(b)'!$B$11:$Z$315,13,0),0)","v":0},null,{"$f":"IFERROR(VLOOKUP(B86,'Schedule V(b)'!$B$11:$Z$315,15,0),0)","v":"Select"},null,null,null,null,null,{"$f":"IFERROR(VLOOKUP(B86,'Schedule V(b)'!$B$11:$Z$315,25,0),0)","v":0},null,{"$f":"IFERROR(VLOOKUP(B86,'Schedule V(b)'!$B$11:$Z$315,23,0),0)","v":0}]
[76,null,null,{"$f":"IFERROR(VLOOKUP(B87,'Schedule V(b)'!$B$11:$Z$315,3,0),0)","v":0},null,{"$f":"IFERROR(VLOOKUP(B87,'Schedule V(b)'!$B$11:$Z$315,7,0),0)","v":"Select"},null,{"$f":"IFERROR(VLOOKUP(B87,'Schedule V(b)'!$B$11:$Z$315,9,0),0)","v":0},null,{"$f":"IFERROR(VLOOKUP(B87,'Schedule V(b)'!$B$11:$Z$315,11,0),0)","v":"Select"},null,{"$f":"IFERROR(VLOOKUP(B87,'Schedule V(b)'!$B$11:$Z$315,13,0),0)","v":0},null,{"$f":"IFERROR(VLOOKUP(B87,'Schedule V(b)'!$B$11:$Z$315,15,0),0)","v":"Select"},null,null,null,null,null,{"$f":"IFERROR(VLOOKUP(B87,'Schedule V(b)'!$B$11:$Z$315,25,0),0)","v":0},null,{"$f":"IFERROR(VLOOKUP(B87,'Schedule V(b)'!$B$11:$Z$315,23,0),0)","v":0}]
[77,null,null,{"$f":"IFERROR(VLOOKUP(B88,'Schedule V(b)'!$B$11:$Z$315,3,0),0)","v":0},null,{"$f":"IFERROR(VLOOKUP(B88,'Schedule V(b)'!$B$11:$Z$315,7,0),0)","v":"Select"},null,{"$f":"IFERROR(VLOOKUP(B88,'Schedule V(b)'!$B$11:$Z$315,9,0),0)","v":0},null,{"$f":"IFERROR(VLOOKUP(B88,'Schedule V(b)'!$B$11:$Z$315,11,0),0)","v":"Select"},null,{"$f":"IFERROR(VLOOKUP(B88,'Schedule V(b)'!$B$11:$Z$315,13,0),0)","v":0},null,{"$f":"IFERROR(VLOOKUP(B88,'Schedule V(b)'!$B$11:$Z$315,15,0),0)","v":"Select"},null,null,null,null,null,{"$f":"IFERROR(VLOOKUP(B88,'Schedule V(b)'!$B$11:$Z$315,25,0),0)","v":0},null,{"$f":"IFERROR(VLOOKUP(B88,'Schedule V(b)'!$B$11:$Z$315,23,0),0)","v":0}]
[78,null,null,{"$f":"IFERROR(VLOOKUP(B89,'Schedule V(b)'!$B$11:$Z$315,3,0),0)","v":0},null,{"$f":"IFERROR(VLOOKUP(B89,'Schedule V(b)'!$B$11:$Z$315,7,0),0)","v":"Select"},null,{"$f":"IFERROR(VLOOKUP(B89,'Schedule V(b)'!$B$11:$Z$315,9,0),0)","v":0},null,{"$f":"IFERROR(VLOOKUP(B89,'Schedule V(b)'!$B$11:$Z$315,11,0),0)","v":"Select"},null,{"$f":"IFERROR(VLOOKUP(B89,'Schedule V(b)'!$B$11:$Z$315,13,0),0)","v":0},null,{"$f":"IFERROR(VLOOKUP(B89,'Schedule V(b)'!$B$11:$Z$315,15,0),0)","v":"Select"},null,null,null,null,null,{"$f":"IFERROR(VLOOKUP(B89,'Schedule V(b)'!$B$11:$Z$315,25,0),0)","v":0},null,{"$f":"IFERROR(VLOOKUP(B89,'Schedule V(b)'!$B$11:$Z$315,23,0),0)","v":0}]
[79,null,null,{"$f":"IFERROR(VLOOKUP(B90,'Schedule V(b)'!$B$11:$Z$315,3,0),0)","v":0},null,{"$f":"IFERROR(VLOOKUP(B90,'Schedule V(b)'!$B$11:$Z$315,7,0),0)","v":"Select"},null,{"$f":"IFERROR(VLOOKUP(B90,'Schedule V(b)'!$B$11:$Z$315,9,0),0)","v":0},null,{"$f":"IFERROR(VLOOKUP(B90,'Schedule V(b)'!$B$11:$Z$315,11,0),0)","v":"Select"},null,{"$f":"IFERROR(VLOOKUP(B90,'Schedule V(b)'!$B$11:$Z$315,13,0),0)","v":0},null,{"$f":"IFERROR(VLOOKUP(B90,'Schedule V(b)'!$B$11:$Z$315,15,0),0)","v":"Select"},null,null,null,null,null,{"$f":"IFERROR(VLOOKUP(B90,'Schedule V(b)'!$B$11:$Z$315,25,0),0)","v":0},null,{"$f":"IFERROR(VLOOKUP(B90,'Schedule V(b)'!$B$11:$Z$315,23,0),0)","v":0}]
[80,null,null,{"$f":"IFERROR(VLOOKUP(B91,'Schedule V(b)'!$B$11:$Z$315,3,0),0)","v":0},null,{"$f":"IFERROR(VLOOKUP(B91,'Schedule V(b)'!$B$11:$Z$315,7,0),0)","v":"Select"},null,{"$f":"IFERROR(VLOOKUP(B91,'Schedule V(b)'!$B$11:$Z$315,9,0),0)","v":0},null,{"$f":"IFERROR(VLOOKUP(B91,'Schedule V(b)'!$B$11:$Z$315,11,0),0)","v":"Select"},null,{"$f":"IFERROR(VLOOKUP(B91,'Schedule V(b)'!$B$11:$Z$315,13,0),0)","v":0},null,{"$f":"IFERROR(VLOOKUP(B91,'Schedule V(b)'!$B$11:$Z$315,15,0),0)","v":"Select"},null,null,null,null,null,{"$f":"IFERROR(VLOOKUP(B91,'Schedule V(b)'!$B$11:$Z$315,25,0),0)","v":0},null,{"$f":"IFERROR(VLOOKUP(B91,'Schedule V(b)'!$B$11:$Z$315,23,0),0)","v":0}]
[81,null,null,{"$f":"IFERROR(VLOOKUP(B92,'Schedule V(b)'!$B$11:$Z$315,3,0),0)","v":0},null,{"$f":"IFERROR(VLOOKUP(B92,'Schedule V(b)'!$B$11:$Z$315,7,0),0)","v":"Select"},null,{"$f":"IFERROR(VLOOKUP(B92,'Schedule V(b)'!$B$11:$Z$315,9,0),0)","v":0},null,{"$f":"IFERROR(VLOOKUP(B92,'Schedule V(b)'!$B$11:$Z$315,11,0),0)","v":"Select"},null,{"$f":"IFERROR(VLOOKUP(B92,'Schedule V(b)'!$B$11:$Z$315,13,0),0)","v":0},null,{"$f":"IFERROR(VLOOKUP(B92,'Schedule V(b)'!$B$11:$Z$315,15,0),0)","v":"Select"},null,null,null,null,null,{"$f":"IFERROR(VLOOKUP(B92,'Schedule V(b)'!$B$11:$Z$315,25,0),0)","v":0},null,{"$f":"IFERROR(VLOOKUP(B92,'Schedule V(b)'!$B$11:$Z$315,23,0),0)","v":0}]
[82,null,null,{"$f":"IFERROR(VLOOKUP(B93,'Schedule V(b)'!$B$11:$Z$315,3,0),0)","v":0},null,{"$f":"IFERROR(VLOOKUP(B93,'Schedule V(b)'!$B$11:$Z$315,7,0),0)","v":"Select"},null,{"$f":"IFERROR(VLOOKUP(B93,'Schedule V(b)'!$B$11:$Z$315,9,0),0)","v":0},null,{"$f":"IFERROR(VLOOKUP(B93,'Schedule V(b)'!$B$11:$Z$315,11,0),0)","v":"Select"},null,{"$f":"IFERROR(VLOOKUP(B93,'Schedule V(b)'!$B$11:$Z$315,13,0),0)","v":0},null,{"$f":"IFERROR(VLOOKUP(B93,'Schedule V(b)'!$B$11:$Z$315,15,0),0)","v":"Select"},null,null,null,null,null,{"$f":"IFERROR(VLOOKUP(B93,'Schedule V(b)'!$B$11:$Z$315,25,0),0)","v":0},null,{"$f":"IFERROR(VLOOKUP(B93,'Schedule V(b)'!$B$11:$Z$315,23,0),0)","v":0}]
[83,null,null,{"$f":"IFERROR(VLOOKUP(B94,'Schedule V(b)'!$B$11:$Z$315,3,0),0)","v":0},null,{"$f":"IFERROR(VLOOKUP(B94,'Schedule V(b)'!$B$11:$Z$315,7,0),0)","v":"Select"},null,{"$f":"IFERROR(VLOOKUP(B94,'Schedule V(b)'!$B$11:$Z$315,9,0),0)","v":0},null,{"$f":"IFERROR(VLOOKUP(B94,'Schedule V(b)'!$B$11:$Z$315,11,0),0)","v":"Select"},null,{"$f":"IFERROR(VLOOKUP(B94,'Schedule V(b)'!$B$11:$Z$315,13,0),0)","v":0},null,{"$f":"IFERROR(VLOOKUP(B94,'Schedule V(b)'!$B$11:$Z$315,15,0),0)","v":"Select"},null,null,null,null,null,{"$f":"IFERROR(VLOOKUP(B94,'Schedule V(b)'!$B$11:$Z$315,25,0),0)","v":0},null,{"$f":"IFERROR(VLOOKUP(B94,'Schedule V(b)'!$B$11:$Z$315,23,0),0)","v":0}]
[84,null,null,{"$f":"IFERROR(VLOOKUP(B95,'Schedule V(b)'!$B$11:$Z$315,3,0),0)","v":0},null,{"$f":"IFERROR(VLOOKUP(B95,'Schedule V(b)'!$B$11:$Z$315,7,0),0)","v":"Select"},null,{"$f":"IFERROR(VLOOKUP(B95,'Schedule V(b)'!$B$11:$Z$315,9,0),0)","v":0},null,{"$f":"IFERROR(VLOOKUP(B95,'Schedule V(b)'!$B$11:$Z$315,11,0),0)","v":"Select"},null,{"$f":"IFERROR(VLOOKUP(B95,'Schedule V(b)'!$B$11:$Z$315,13,0),0)","v":0},null,{"$f":"IFERROR(VLOOKUP(B95,'Schedule V(b)'!$B$11:$Z$315,15,0),0)","v":"Select"},null,null,null,null,null,{"$f":"IFERROR(VLOOKUP(B95,'Schedule V(b)'!$B$11:$Z$315,25,0),0)","v":0},null,{"$f":"IFERROR(VLOOKUP(B95,'Schedule V(b)'!$B$11:$Z$315,23,0),0)","v":0}]
[85,null,null,{"$f":"IFERROR(VLOOKUP(B96,'Schedule V(b)'!$B$11:$Z$315,3,0),0)","v":0},null,{"$f":"IFERROR(VLOOKUP(B96,'Schedule V(b)'!$B$11:$Z$315,7,0),0)","v":"Select"},null,{"$f":"IFERROR(VLOOKUP(B96,'Schedule V(b)'!$B$11:$Z$315,9,0),0)","v":0},null,{"$f":"IFERROR(VLOOKUP(B96,'Schedule V(b)'!$B$11:$Z$315,11,0),0)","v":"Select"},null,{"$f":"IFERROR(VLOOKUP(B96,'Schedule V(b)'!$B$11:$Z$315,13,0),0)","v":0},null,{"$f":"IFERROR(VLOOKUP(B96,'Schedule V(b)'!$B$11:$Z$315,15,0),0)","v":"Select"},null,null,null,null,null,{"$f":"IFERROR(VLOOKUP(B96,'Schedule V(b)'!$B$11:$Z$315,25,0),0)","v":0},null,{"$f":"IFERROR(VLOOKUP(B96,'Schedule V(b)'!$B$11:$Z$315,23,0),0)","v":0}]
[86,null,null,{"$f":"IFERROR(VLOOKUP(B97,'Schedule V(b)'!$B$11:$Z$315,3,0),0)","v":0},null,{"$f":"IFERROR(VLOOKUP(B97,'Schedule V(b)'!$B$11:$Z$315,7,0),0)","v":"Select"},null,{"$f":"IFERROR(VLOOKUP(B97,'Schedule V(b)'!$B$11:$Z$315,9,0),0)","v":0},null,{"$f":"IFERROR(VLOOKUP(B97,'Schedule V(b)'!$B$11:$Z$315,11,0),0)","v":"Select"},null,{"$f":"IFERROR(VLOOKUP(B97,'Schedule V(b)'!$B$11:$Z$315,13,0),0)","v":0},null,{"$f":"IFERROR(VLOOKUP(B97,'Schedule V(b)'!$B$11:$Z$315,15,0),0)","v":"Select"},null,null,null,null,null,{"$f":"IFERROR(VLOOKUP(B97,'Schedule V(b)'!$B$11:$Z$315,25,0),0)","v":0},null,{"$f":"IFERROR(VLOOKUP(B97,'Schedule V(b)'!$B$11:$Z$315,23,0),0)","v":0}]
[87,null,null,{"$f":"IFERROR(VLOOKUP(B98,'Schedule V(b)'!$B$11:$Z$315,3,0),0)","v":0},null,{"$f":"IFERROR(VLOOKUP(B98,'Schedule V(b)'!$B$11:$Z$315,7,0),0)","v":"Select"},null,{"$f":"IFERROR(VLOOKUP(B98,'Schedule V(b)'!$B$11:$Z$315,9,0),0)","v":0},null,{"$f":"IFERROR(VLOOKUP(B98,'Schedule V(b)'!$B$11:$Z$315,11,0),0)","v":"Select"},null,{"$f":"IFERROR(VLOOKUP(B98,'Schedule V(b)'!$B$11:$Z$315,13,0),0)","v":0},null,{"$f":"IFERROR(VLOOKUP(B98,'Schedule V(b)'!$B$11:$Z$315,15,0),0)","v":"Select"},null,null,null,null,null,{"$f":"IFERROR(VLOOKUP(B98,'Schedule V(b)'!$B$11:$Z$315,25,0),0)","v":0},null,{"$f":"IFERROR(VLOOKUP(B98,'Schedule V(b)'!$B$11:$Z$315,23,0),0)","v":0}]
[88,null,null,{"$f":"IFERROR(VLOOKUP(B99,'Schedule V(b)'!$B$11:$Z$315,3,0),0)","v":0},null,{"$f":"IFERROR(VLOOKUP(B99,'Schedule V(b)'!$B$11:$Z$315,7,0),0)","v":"Select"},null,{"$f":"IFERROR(VLOOKUP(B99,'Schedule V(b)'!$B$11:$Z$315,9,0),0)","v":0},null,{"$f":"IFERROR(VLOOKUP(B99,'Schedule V(b)'!$B$11:$Z$315,11,0),0)","v":"Select"},null,{"$f":"IFERROR(VLOOKUP(B99,'Schedule V(b)'!$B$11:$Z$315,13,0),0)","v":0},null,{"$f":"IFERROR(VLOOKUP(B99,'Schedule V(b)'!$B$11:$Z$315,15,0),0)","v":"Select"},null,null,null,null,null,{"$f":"IFERROR(VLOOKUP(B99,'Schedule V(b)'!$B$11:$Z$315,25,0),0)","v":0},null,{"$f":"IFERROR(VLOOKUP(B99,'Schedule V(b)'!$B$11:$Z$315,23,0),0)","v":0}]
[89,null,null,{"$f":"IFERROR(VLOOKUP(B100,'Schedule V(b)'!$B$11:$Z$315,3,0),0)","v":0},null,{"$f":"IFERROR(VLOOKUP(B100,'Schedule V(b)'!$B$11:$Z$315,7,0),0)","v":"Select"},null,{"$f":"IFERROR(VLOOKUP(B100,'Schedule V(b)'!$B$11:$Z$315,9,0),0)","v":0},null,{"$f":"IFERROR(VLOOKUP(B100,'Schedule V(b)'!$B$11:$Z$315,11,0),0)","v":"Select"},null,{"$f":"IFERROR(VLOOKUP(B100,'Schedule V(b)'!$B$11:$Z$315,13,0),0)","v":0},null,{"$f":"IFERROR(VLOOKUP(B100,'Schedule V(b)'!$B$11:$Z$315,15,0),0)","v":"Select"},null,null,null,null,null,{"$f":"IFERROR(VLOOKUP(B100,'Schedule V(b)'!$B$11:$Z$315,25,0),0)","v":0},null,{"$f":"IFERROR(VLOOKUP(B100,'Schedule V(b)'!$B$11:$Z$315,23,0),0)","v":0}]
[90,null,null,{"$f":"IFERROR(VLOOKUP(B101,'Schedule V(b)'!$B$11:$Z$315,3,0),0)","v":0},null,{"$f":"IFERROR(VLOOKUP(B101,'Schedule V(b)'!$B$11:$Z$315,7,0),0)","v":"Select"},null,{"$f":"IFERROR(VLOOKUP(B101,'Schedule V(b)'!$B$11:$Z$315,9,0),0)","v":0},null,{"$f":"IFERROR(VLOOKUP(B101,'Schedule V(b)'!$B$11:$Z$315,11,0),0)","v":"Select"},null,{"$f":"IFERROR(VLOOKUP(B101,'Schedule V(b)'!$B$11:$Z$315,13,0),0)","v":0},null,{"$f":"IFERROR(VLOOKUP(B101,'Schedule V(b)'!$B$11:$Z$315,15,0),0)","v":"Select"},null,null,null,null,null,{"$f":"IFERROR(VLOOKUP(B101,'Schedule V(b)'!$B$11:$Z$315,25,0),0)","v":0},null,{"$f":"IFERROR(VLOOKUP(B101,'Schedule V(b)'!$B$11:$Z$315,23,0),0)","v":0}]
[91,null,null,{"$f":"IFERROR(VLOOKUP(B102,'Schedule V(b)'!$B$11:$Z$315,3,0),0)","v":0},null,{"$f":"IFERROR(VLOOKUP(B102,'Schedule V(b)'!$B$11:$Z$315,7,0),0)","v":"Select"},null,{"$f":"IFERROR(VLOOKUP(B102,'Schedule V(b)'!$B$11:$Z$315,9,0),0)","v":0},null,{"$f":"IFERROR(VLOOKUP(B102,'Schedule V(b)'!$B$11:$Z$315,11,0),0)","v":"Select"},null,{"$f":"IFERROR(VLOOKUP(B102,'Schedule V(b)'!$B$11:$Z$315,13,0),0)","v":0},null,{"$f":"IFERROR(VLOOKUP(B102,'Schedule V(b)'!$B$11:$Z$315,15,0),0)","v":"Select"},null,null,null,null,null,{"$f":"IFERROR(VLOOKUP(B102,'Schedule V(b)'!$B$11:$Z$315,25,0),0)","v":0},null,{"$f":"IFERROR(VLOOKUP(B102,'Schedule V(b)'!$B$11:$Z$315,23,0),0)","v":0}]
[92,null,null,{"$f":"IFERROR(VLOOKUP(B103,'Schedule V(b)'!$B$11:$Z$315,3,0),0)","v":0},null,{"$f":"IFERROR(VLOOKUP(B103,'Schedule V(b)'!$B$11:$Z$315,7,0),0)","v":"Select"},null,{"$f":"IFERROR(VLOOKUP(B103,'Schedule V(b)'!$B$11:$Z$315,9,0),0)","v":0},null,{"$f":"IFERROR(VLOOKUP(B103,'Schedule V(b)'!$B$11:$Z$315,11,0),0)","v":"Select"},null,{"$f":"IFERROR(VLOOKUP(B103,'Schedule V(b)'!$B$11:$Z$315,13,0),0)","v":0},null,{"$f":"IFERROR(VLOOKUP(B103,'Schedule V(b)'!$B$11:$Z$315,15,0),0)","v":"Select"},null,null,null,null,null,{"$f":"IFERROR(VLOOKUP(B103,'Schedule V(b)'!$B$11:$Z$315,25,0),0)","v":0},null,{"$f":"IFERROR(VLOOKUP(B103,'Schedule V(b)'!$B$11:$Z$315,23,0),0)","v":0}]
[93,null,null,{"$f":"IFERROR(VLOOKUP(B104,'Schedule V(b)'!$B$11:$Z$315,3,0),0)","v":0},null,{"$f":"IFERROR(VLOOKUP(B104,'Schedule V(b)'!$B$11:$Z$315,7,0),0)","v":"Select"},null,{"$f":"IFERROR(VLOOKUP(B104,'Schedule V(b)'!$B$11:$Z$315,9,0),0)","v":0},null,{"$f":"IFERROR(VLOOKUP(B104,'Schedule V(b)'!$B$11:$Z$315,11,0),0)","v":"Select"},null,{"$f":"IFERROR(VLOOKUP(B104,'Schedule V(b)'!$B$11:$Z$315,13,0),0)","v":0},null,{"$f":"IFERROR(VLOOKUP(B104,'Schedule V(b)'!$B$11:$Z$315,15,0),0)","v":"Select"},null,null,null,null,null,{"$f":"IFERROR(VLOOKUP(B104,'Schedule V(b)'!$B$11:$Z$315,25,0),0)","v":0},null,{"$f":"IFERROR(VLOOKUP(B104,'Schedule V(b)'!$B$11:$Z$315,23,0),0)","v":0}]
[94,null,null,{"$f":"IFERROR(VLOOKUP(B105,'Schedule V(b)'!$B$11:$Z$315,3,0),0)","v":0},null,{"$f":"IFERROR(VLOOKUP(B105,'Schedule V(b)'!$B$11:$Z$315,7,0),0)","v":"Select"},null,{"$f":"IFERROR(VLOOKUP(B105,'Schedule V(b)'!$B$11:$Z$315,9,0),0)","v":0},null,{"$f":"IFERROR(VLOOKUP(B105,'Schedule V(b)'!$B$11:$Z$315,11,0),0)","v":"Select"},null,{"$f":"IFERROR(VLOOKUP(B105,'Schedule V(b)'!$B$11:$Z$315,13,0),0)","v":0},null,{"$f":"IFERROR(VLOOKUP(B105,'Schedule V(b)'!$B$11:$Z$315,15,0),0)","v":"Select"},null,null,null,null,null,{"$f":"IFERROR(VLOOKUP(B105,'Schedule V(b)'!$B$11:$Z$315,25,0),0)","v":0},null,{"$f":"IFERROR(VLOOKUP(B105,'Schedule V(b)'!$B$11:$Z$315,23,0),0)","v":0}]
[95,null,null,{"$f":"IFERROR(VLOOKUP(B106,'Schedule V(b)'!$B$11:$Z$315,3,0),0)","v":0},null,{"$f":"IFERROR(VLOOKUP(B106,'Schedule V(b)'!$B$11:$Z$315,7,0),0)","v":"Select"},null,{"$f":"IFERROR(VLOOKUP(B106,'Schedule V(b)'!$B$11:$Z$315,9,0),0)","v":0},null,{"$f":"IFERROR(VLOOKUP(B106,'Schedule V(b)'!$B$11:$Z$315,11,0),0)","v":"Select"},null,{"$f":"IFERROR(VLOOKUP(B106,'Schedule V(b)'!$B$11:$Z$315,13,0),0)","v":0},null,{"$f":"IFERROR(VLOOKUP(B106,'Schedule V(b)'!$B$11:$Z$315,15,0),0)","v":"Select"},null,null,null,null,null,{"$f":"IFERROR(VLOOKUP(B106,'Schedule V(b)'!$B$11:$Z$315,25,0),0)","v":0},null,{"$f":"IFERROR(VLOOKUP(B106,'Schedule V(b)'!$B$11:$Z$315,23,0),0)","v":0}]
[96,null,null,{"$f":"IFERROR(VLOOKUP(B107,'Schedule V(b)'!$B$11:$Z$315,3,0),0)","v":0},null,{"$f":"IFERROR(VLOOKUP(B107,'Schedule V(b)'!$B$11:$Z$315,7,0),0)","v":"Select"},null,{"$f":"IFERROR(VLOOKUP(B107,'Schedule V(b)'!$B$11:$Z$315,9,0),0)","v":0},null,{"$f":"IFERROR(VLOOKUP(B107,'Schedule V(b)'!$B$11:$Z$315,11,0),0)","v":"Select"},null,{"$f":"IFERROR(VLOOKUP(B107,'Schedule V(b)'!$B$11:$Z$315,13,0),0)","v":0},null,{"$f":"IFERROR(VLOOKUP(B107,'Schedule V(b)'!$B$11:$Z$315,15,0),0)","v":"Select"},null,null,null,null,null,{"$f":"IFERROR(VLOOKUP(B107,'Schedule V(b)'!$B$11:$Z$315,25,0),0)","v":0},null,{"$f":"IFERROR(VLOOKUP(B107,'Schedule V(b)'!$B$11:$Z$315,23,0),0)","v":0}]
[97,null,null,{"$f":"IFERROR(VLOOKUP(B108,'Schedule V(b)'!$B$11:$Z$315,3,0),0)","v":0},null,{"$f":"IFERROR(VLOOKUP(B108,'Schedule V(b)'!$B$11:$Z$315,7,0),0)","v":"Select"},null,{"$f":"IFERROR(VLOOKUP(B108,'Schedule V(b)'!$B$11:$Z$315,9,0),0)","v":0},null,{"$f":"IFERROR(VLOOKUP(B108,'Schedule V(b)'!$B$11:$Z$315,11,0),0)","v":"Select"},null,{"$f":"IFERROR(VLOOKUP(B108,'Schedule V(b)'!$B$11:$Z$315,13,0),0)","v":0},null,{"$f":"IFERROR(VLOOKUP(B108,'Schedule V(b)'!$B$11:$Z$315,15,0),0)","v":"Select"},null,null,null,null,null,{"$f":"IFERROR(VLOOKUP(B108,'Schedule V(b)'!$B$11:$Z$315,25,0),0)","v":0},null,{"$f":"IFERROR(VLOOKUP(B108,'Schedule V(b)'!$B$11:$Z$315,23,0),0)","v":0}]
[98,null,null,{"$f":"IFERROR(VLOOKUP(B109,'Schedule V(b)'!$B$11:$Z$315,3,0),0)","v":0},null,{"$f":"IFERROR(VLOOKUP(B109,'Schedule V(b)'!$B$11:$Z$315,7,0),0)","v":"Select"},null,{"$f":"IFERROR(VLOOKUP(B109,'Schedule V(b)'!$B$11:$Z$315,9,0),0)","v":0},null,{"$f":"IFERROR(VLOOKUP(B109,'Schedule V(b)'!$B$11:$Z$315,11,0),0)","v":"Select"},null,{"$f":"IFERROR(VLOOKUP(B109,'Schedule V(b)'!$B$11:$Z$315,13,0),0)","v":0},null,{"$f":"IFERROR(VLOOKUP(B109,'Schedule V(b)'!$B$11:$Z$315,15,0),0)","v":"Select"},null,null,null,null,null,{"$f":"IFERROR(VLOOKUP(B109,'Schedule V(b)'!$B$11:$Z$315,25,0),0)","v":0},null,{"$f":"IFERROR(VLOOKUP(B109,'Schedule V(b)'!$B$11:$Z$315,23,0),0)","v":0}]
[99,null,null,{"$f":"IFERROR(VLOOKUP(B110,'Schedule V(b)'!$B$11:$Z$315,3,0),0)","v":0},null,{"$f":"IFERROR(VLOOKUP(B110,'Schedule V(b)'!$B$11:$Z$315,7,0),0)","v":"Select"},null,{"$f":"IFERROR(VLOOKUP(B110,'Schedule V(b)'!$B$11:$Z$315,9,0),0)","v":0},null,{"$f":"IFERROR(VLOOKUP(B110,'Schedule V(b)'!$B$11:$Z$315,11,0),0)","v":"Select"},null,{"$f":"IFERROR(VLOOKUP(B110,'Schedule V(b)'!$B$11:$Z$315,13,0),0)","v":0},null,{"$f":"IFERROR(VLOOKUP(B110,'Schedule V(b)'!$B$11:$Z$315,15,0),0)","v":"Select"},null,null,null,null,null,{"$f":"IFERROR(VLOOKUP(B110,'Schedule V(b)'!$B$11:$Z$315,25,0),0)","v":0},null,{"$f":"IFERROR(VLOOKUP(B110,'Schedule V(b)'!$B$11:$Z$315,23,0),0)","v":0}]
[100,null,null,{"$f":"IFERROR(VLOOKUP(B111,'Schedule V(b)'!$B$11:$Z$315,3,0),0)","v":0},null,{"$f":"IFERROR(VLOOKUP(B111,'Schedule V(b)'!$B$11:$Z$315,7,0),0)","v":"Select"},null,{"$f":"IFERROR(VLOOKUP(B111,'Schedule V(b)'!$B$11:$Z$315,9,0),0)","v":0},null,{"$f":"IFERROR(VLOOKUP(B111,'Schedule V(b)'!$B$11:$Z$315,11,0),0)","v":"Select"},null,{"$f":"IFERROR(VLOOKUP(B111,'Schedule V(b)'!$B$11:$Z$315,13,0),0)","v":0},null,{"$f":"IFERROR(VLOOKUP(B111,'Schedule V(b)'!$B$11:$Z$315,15,0),0)","v":"Select"},null,null,null,null,null,{"$f":"IFERROR(VLOOKUP(B111,'Schedule V(b)'!$B$11:$Z$315,25,0),0)","v":0},null,{"$f":"IFERROR(VLOOKUP(B111,'Schedule V(b)'!$B$11:$Z$315,23,0),0)","v":0}]
[101,null,null,{"$f":"IFERROR(VLOOKUP(B112,'Schedule V(b)'!$B$11:$Z$315,3,0),0)","v":0},null,{"$f":"IFERROR(VLOOKUP(B112,'Schedule V(b)'!$B$11:$Z$315,7,0),0)","v":"Select"},null,{"$f":"IFERROR(VLOOKUP(B112,'Schedule V(b)'!$B$11:$Z$315,9,0),0)","v":0},null,{"$f":"IFERROR(VLOOKUP(B112,'Schedule V(b)'!$B$11:$Z$315,11,0),0)","v":"Select"},null,{"$f":"IFERROR(VLOOKUP(B112,'Schedule V(b)'!$B$11:$Z$315,13,0),0)","v":0},null,{"$f":"IFERROR(VLOOKUP(B112,'Schedule V(b)'!$B$11:$Z$315,15,0),0)","v":"Select"},null,null,null,null,null,{"$f":"IFERROR(VLOOKUP(B112,'Schedule V(b)'!$B$11:$Z$315,25,0),0)","v":0},null,{"$f":"IFERROR(VLOOKUP(B112,'Schedule V(b)'!$B$11:$Z$315,23,0),0)","v":0}]
[102,null,null,{"$f":"IFERROR(VLOOKUP(B113,'Schedule V(b)'!$B$11:$Z$315,3,0),0)","v":0},null,{"$f":"IFERROR(VLOOKUP(B113,'Schedule V(b)'!$B$11:$Z$315,7,0),0)","v":"Select"},null,{"$f":"IFERROR(VLOOKUP(B113,'Schedule V(b)'!$B$11:$Z$315,9,0),0)","v":0},null,{"$f":"IFERROR(VLOOKUP(B113,'Schedule V(b)'!$B$11:$Z$315,11,0),0)","v":"Select"},null,{"$f":"IFERROR(VLOOKUP(B113,'Schedule V(b)'!$B$11:$Z$315,13,0),0)","v":0},null,{"$f":"IFERROR(VLOOKUP(B113,'Schedule V(b)'!$B$11:$Z$315,15,0),0)","v":"Select"},null,null,null,null,null,{"$f":"IFERROR(VLOOKUP(B113,'Schedule V(b)'!$B$11:$Z$315,25,0),0)","v":0},null,{"$f":"IFERROR(VLOOKUP(B113,'Schedule V(b)'!$B$11:$Z$315,23,0),0)","v":0}]
[103,null,null,{"$f":"IFERROR(VLOOKUP(B114,'Schedule V(b)'!$B$11:$Z$315,3,0),0)","v":0},null,{"$f":"IFERROR(VLOOKUP(B114,'Schedule V(b)'!$B$11:$Z$315,7,0),0)","v":"Select"},null,{"$f":"IFERROR(VLOOKUP(B114,'Schedule V(b)'!$B$11:$Z$315,9,0),0)","v":0},null,{"$f":"IFERROR(VLOOKUP(B114,'Schedule V(b)'!$B$11:$Z$315,11,0),0)","v":"Select"},null,{"$f":"IFERROR(VLOOKUP(B114,'Schedule V(b)'!$B$11:$Z$315,13,0),0)","v":0},null,{"$f":"IFERROR(VLOOKUP(B114,'Schedule V(b)'!$B$11:$Z$315,15,0),0)","v":"Select"},null,null,null,null,null,{"$f":"IFERROR(VLOOKUP(B114,'Schedule V(b)'!$B$11:$Z$315,25,0),0)","v":0},null,{"$f":"IFERROR(VLOOKUP(B114,'Schedule V(b)'!$B$11:$Z$315,23,0),0)","v":0}]
[104,null,null,{"$f":"IFERROR(VLOOKUP(B115,'Schedule V(b)'!$B$11:$Z$315,3,0),0)","v":0},null,{"$f":"IFERROR(VLOOKUP(B115,'Schedule V(b)'!$B$11:$Z$315,7,0),0)","v":"Select"},null,{"$f":"IFERROR(VLOOKUP(B115,'Schedule V(b)'!$B$11:$Z$315,9,0),0)","v":0},null,{"$f":"IFERROR(VLOOKUP(B115,'Schedule V(b)'!$B$11:$Z$315,11,0),0)","v":"Select"},null,{"$f":"IFERROR(VLOOKUP(B115,'Schedule V(b)'!$B$11:$Z$315,13,0),0)","v":0},null,{"$f":"IFERROR(VLOOKUP(B115,'Schedule V(b)'!$B$11:$Z$315,15,0),0)","v":"Select"},null,null,null,null,null,{"$f":"IFERROR(VLOOKUP(B115,'Schedule V(b)'!$B$11:$Z$315,25,0),0)","v":0},null,{"$f":"IFERROR(VLOOKUP(B115,'Schedule V(b)'!$B$11:$Z$315,23,0),0)","v":0}]
[105,null,null,{"$f":"IFERROR(VLOOKUP(B116,'Schedule V(b)'!$B$11:$Z$315,3,0),0)","v":0},null,{"$f":"IFERROR(VLOOKUP(B116,'Schedule V(b)'!$B$11:$Z$315,7,0),0)","v":"Select"},null,{"$f":"IFERROR(VLOOKUP(B116,'Schedule V(b)'!$B$11:$Z$315,9,0),0)","v":0},null,{"$f":"IFERROR(VLOOKUP(B116,'Schedule V(b)'!$B$11:$Z$315,11,0),0)","v":"Select"},null,{"$f":"IFERROR(VLOOKUP(B116,'Schedule V(b)'!$B$11:$Z$315,13,0),0)","v":0},null,{"$f":"IFERROR(VLOOKUP(B116,'Schedule V(b)'!$B$11:$Z$315,15,0),0)","v":"Select"},null,null,null,null,null,{"$f":"IFERROR(VLOOKUP(B116,'Schedule V(b)'!$B$11:$Z$315,25,0),0)","v":0},null,{"$f":"IFERROR(VLOOKUP(B116,'Schedule V(b)'!$B$11:$Z$315,23,0),0)","v":0}]
[106,null,null,{"$f":"IFERROR(VLOOKUP(B117,'Schedule V(b)'!$B$11:$Z$315,3,0),0)","v":0},null,{"$f":"IFERROR(VLOOKUP(B117,'Schedule V(b)'!$B$11:$Z$315,7,0),0)","v":"Select"},null,{"$f":"IFERROR(VLOOKUP(B117,'Schedule V(b)'!$B$11:$Z$315,9,0),0)","v":0},null,{"$f":"IFERROR(VLOOKUP(B117,'Schedule V(b)'!$B$11:$Z$315,11,0),0)","v":"Select"},null,{"$f":"IFERROR(VLOOKUP(B117,'Schedule V(b)'!$B$11:$Z$315,13,0),0)","v":0},null,{"$f":"IFERROR(VLOOKUP(B117,'Schedule V(b)'!$B$11:$Z$315,15,0),0)","v":"Select"},null,null,null,null,null,{"$f":"IFERROR(VLOOKUP(B117,'Schedule V(b)'!$B$11:$Z$315,25,0),0)","v":0},null,{"$f":"IFERROR(VLOOKUP(B117,'Schedule V(b)'!$B$11:$Z$315,23,0),0)","v":0}]
[107,null,null,{"$f":"IFERROR(VLOOKUP(B118,'Schedule V(b)'!$B$11:$Z$315,3,0),0)","v":0},null,{"$f":"IFERROR(VLOOKUP(B118,'Schedule V(b)'!$B$11:$Z$315,7,0),0)","v":"Select"},null,{"$f":"IFERROR(VLOOKUP(B118,'Schedule V(b)'!$B$11:$Z$315,9,0),0)","v":0},null,{"$f":"IFERROR(VLOOKUP(B118,'Schedule V(b)'!$B$11:$Z$315,11,0),0)","v":"Select"},null,{"$f":"IFERROR(VLOOKUP(B118,'Schedule V(b)'!$B$11:$Z$315,13,0),0)","v":0},null,{"$f":"IFERROR(VLOOKUP(B118,'Schedule V(b)'!$B$11:$Z$315,15,0),0)","v":"Select"},null,null,null,null,null,{"$f":"IFERROR(VLOOKUP(B118,'Schedule V(b)'!$B$11:$Z$315,25,0),0)","v":0},null,{"$f":"IFERROR(VLOOKUP(B118,'Schedule V(b)'!$B$11:$Z$315,23,0),0)","v":0}]
[108,null,null,{"$f":"IFERROR(VLOOKUP(B119,'Schedule V(b)'!$B$11:$Z$315,3,0),0)","v":0},null,{"$f":"IFERROR(VLOOKUP(B119,'Schedule V(b)'!$B$11:$Z$315,7,0),0)","v":"Select"},null,{"$f":"IFERROR(VLOOKUP(B119,'Schedule V(b)'!$B$11:$Z$315,9,0),0)","v":0},null,{"$f":"IFERROR(VLOOKUP(B119,'Schedule V(b)'!$B$11:$Z$315,11,0),0)","v":"Select"},null,{"$f":"IFERROR(VLOOKUP(B119,'Schedule V(b)'!$B$11:$Z$315,13,0),0)","v":0},null,{"$f":"IFERROR(VLOOKUP(B119,'Schedule V(b)'!$B$11:$Z$315,15,0),0)","v":"Select"},null,null,null,null,null,{"$f":"IFERROR(VLOOKUP(B119,'Schedule V(b)'!$B$11:$Z$315,25,0),0)","v":0},null,{"$f":"IFERROR(VLOOKUP(B119,'Schedule V(b)'!$B$11:$Z$315,23,0),0)","v":0}]
[109,null,null,{"$f":"IFERROR(VLOOKUP(B120,'Schedule V(b)'!$B$11:$Z$315,3,0),0)","v":0},null,{"$f":"IFERROR(VLOOKUP(B120,'Schedule V(b)'!$B$11:$Z$315,7,0),0)","v":"Select"},null,{"$f":"IFERROR(VLOOKUP(B120,'Schedule V(b)'!$B$11:$Z$315,9,0),0)","v":0},null,{"$f":"IFERROR(VLOOKUP(B120,'Schedule V(b)'!$B$11:$Z$315,11,0),0)","v":"Select"},null,{"$f":"IFERROR(VLOOKUP(B120,'Schedule V(b)'!$B$11:$Z$315,13,0),0)","v":0},null,{"$f":"IFERROR(VLOOKUP(B120,'Schedule V(b)'!$B$11:$Z$315,15,0),0)","v":"Select"},null,null,null,null,null,{"$f":"IFERROR(VLOOKUP(B120,'Schedule V(b)'!$B$11:$Z$315,25,0),0)","v":0},null,{"$f":"IFERROR(VLOOKUP(B120,'Schedule V(b)'!$B$11:$Z$315,23,0),0)","v":0}]
[110,null,null,{"$f":"IFERROR(VLOOKUP(B121,'Schedule V(b)'!$B$11:$Z$315,3,0),0)","v":0},null,{"$f":"IFERROR(VLOOKUP(B121,'Schedule V(b)'!$B$11:$Z$315,7,0),0)","v":"Select"},null,{"$f":"IFERROR(VLOOKUP(B121,'Schedule V(b)'!$B$11:$Z$315,9,0),0)","v":0},null,{"$f":"IFERROR(VLOOKUP(B121,'Schedule V(b)'!$B$11:$Z$315,11,0),0)","v":"Select"},null,{"$f":"IFERROR(VLOOKUP(B121,'Schedule V(b)'!$B$11:$Z$315,13,0),0)","v":0},null,{"$f":"IFERROR(VLOOKUP(B121,'Schedule V(b)'!$B$11:$Z$315,15,0),0)","v":"Select"},null,null,null,null,null,{"$f":"IFERROR(VLOOKUP(B121,'Schedule V(b)'!$B$11:$Z$315,25,0),0)","v":0},null,{"$f":"IFERROR(VLOOKUP(B121,'Schedule V(b)'!$B$11:$Z$315,23,0),0)","v":0}]
[111,null,null,{"$f":"IFERROR(VLOOKUP(B122,'Schedule V(b)'!$B$11:$Z$315,3,0),0)","v":0},null,{"$f":"IFERROR(VLOOKUP(B122,'Schedule V(b)'!$B$11:$Z$315,7,0),0)","v":"Select"},null,{"$f":"IFERROR(VLOOKUP(B122,'Schedule V(b)'!$B$11:$Z$315,9,0),0)","v":0},null,{"$f":"IFERROR(VLOOKUP(B122,'Schedule V(b)'!$B$11:$Z$315,11,0),0)","v":"Select"},null,{"$f":"IFERROR(VLOOKUP(B122,'Schedule V(b)'!$B$11:$Z$315,13,0),0)","v":0},null,{"$f":"IFERROR(VLOOKUP(B122,'Schedule V(b)'!$B$11:$Z$315,15,0),0)","v":"Select"},null,null,null,null,null,{"$f":"IFERROR(VLOOKUP(B122,'Schedule V(b)'!$B$11:$Z$315,25,0),0)","v":0},null,{"$f":"IFERROR(VLOOKUP(B122,'Schedule V(b)'!$B$11:$Z$315,23,0),0)","v":0}]
[112,null,null,{"$f":"IFERROR(VLOOKUP(B123,'Schedule V(b)'!$B$11:$Z$315,3,0),0)","v":0},null,{"$f":"IFERROR(VLOOKUP(B123,'Schedule V(b)'!$B$11:$Z$315,7,0),0)","v":"Select"},null,{"$f":"IFERROR(VLOOKUP(B123,'Schedule V(b)'!$B$11:$Z$315,9,0),0)","v":0},null,{"$f":"IFERROR(VLOOKUP(B123,'Schedule V(b)'!$B$11:$Z$315,11,0),0)","v":"Select"},null,{"$f":"IFERROR(VLOOKUP(B123,'Schedule V(b)'!$B$11:$Z$315,13,0),0)","v":0},null,{"$f":"IFERROR(VLOOKUP(B123,'Schedule V(b)'!$B$11:$Z$315,15,0),0)","v":"Select"},null,null,null,null,null,{"$f":"IFERROR(VLOOKUP(B123,'Schedule V(b)'!$B$11:$Z$315,25,0),0)","v":0},null,{"$f":"IFERROR(VLOOKUP(B123,'Schedule V(b)'!$B$11:$Z$315,23,0),0)","v":0}]
[113,null,null,{"$f":"IFERROR(VLOOKUP(B124,'Schedule V(b)'!$B$11:$Z$315,3,0),0)","v":0},null,{"$f":"IFERROR(VLOOKUP(B124,'Schedule V(b)'!$B$11:$Z$315,7,0),0)","v":"Select"},null,{"$f":"IFERROR(VLOOKUP(B124,'Schedule V(b)'!$B$11:$Z$315,9,0),0)","v":0},null,{"$f":"IFERROR(VLOOKUP(B124,'Schedule V(b)'!$B$11:$Z$315,11,0),0)","v":"Select"},null,{"$f":"IFERROR(VLOOKUP(B124,'Schedule V(b)'!$B$11:$Z$315,13,0),0)","v":0},null,{"$f":"IFERROR(VLOOKUP(B124,'Schedule V(b)'!$B$11:$Z$315,15,0),0)","v":"Select"},null,null,null,null,null,{"$f":"IFERROR(VLOOKUP(B124,'Schedule V(b)'!$B$11:$Z$315,25,0),0)","v":0},null,{"$f":"IFERROR(VLOOKUP(B124,'Schedule V(b)'!$B$11:$Z$315,23,0),0)","v":0}]
[114,null,null,{"$f":"IFERROR(VLOOKUP(B125,'Schedule V(b)'!$B$11:$Z$315,3,0),0)","v":0},null,{"$f":"IFERROR(VLOOKUP(B125,'Schedule V(b)'!$B$11:$Z$315,7,0),0)","v":"Select"},null,{"$f":"IFERROR(VLOOKUP(B125,'Schedule V(b)'!$B$11:$Z$315,9,0),0)","v":0},null,{"$f":"IFERROR(VLOOKUP(B125,'Schedule V(b)'!$B$11:$Z$315,11,0),0)","v":"Select"},null,{"$f":"IFERROR(VLOOKUP(B125,'Schedule V(b)'!$B$11:$Z$315,13,0),0)","v":0},null,{"$f":"IFERROR(VLOOKUP(B125,'Schedule V(b)'!$B$11:$Z$315,15,0),0)","v":"Select"},null,null,null,null,null,{"$f":"IFERROR(VLOOKUP(B125,'Schedule V(b)'!$B$11:$Z$315,25,0),0)","v":0},null,{"$f":"IFERROR(VLOOKUP(B125,'Schedule V(b)'!$B$11:$Z$315,23,0),0)","v":0}]
[115,null,null,{"$f":"IFERROR(VLOOKUP(B126,'Schedule V(b)'!$B$11:$Z$315,3,0),0)","v":0},null,{"$f":"IFERROR(VLOOKUP(B126,'Schedule V(b)'!$B$11:$Z$315,7,0),0)","v":"Select"},null,{"$f":"IFERROR(VLOOKUP(B126,'Schedule V(b)'!$B$11:$Z$315,9,0),0)","v":0},null,{"$f":"IFERROR(VLOOKUP(B126,'Schedule V(b)'!$B$11:$Z$315,11,0),0)","v":"Select"},null,{"$f":"IFERROR(VLOOKUP(B126,'Schedule V(b)'!$B$11:$Z$315,13,0),0)","v":0},null,{"$f":"IFERROR(VLOOKUP(B126,'Schedule V(b)'!$B$11:$Z$315,15,0),0)","v":"Select"},null,null,null,null,null,{"$f":"IFERROR(VLOOKUP(B126,'Schedule V(b)'!$B$11:$Z$315,25,0),0)","v":0},null,{"$f":"IFERROR(VLOOKUP(B126,'Schedule V(b)'!$B$11:$Z$315,23,0),0)","v":0}]
[116,null,null,{"$f":"IFERROR(VLOOKUP(B127,'Schedule V(b)'!$B$11:$Z$315,3,0),0)","v":0},null,{"$f":"IFERROR(VLOOKUP(B127,'Schedule V(b)'!$B$11:$Z$315,7,0),0)","v":"Select"},null,{"$f":"IFERROR(VLOOKUP(B127,'Schedule V(b)'!$B$11:$Z$315,9,0),0)","v":0},null,{"$f":"IFERROR(VLOOKUP(B127,'Schedule V(b)'!$B$11:$Z$315,11,0),0)","v":"Select"},null,{"$f":"IFERROR(VLOOKUP(B127,'Schedule V(b)'!$B$11:$Z$315,13,0),0)","v":0},null,{"$f":"IFERROR(VLOOKUP(B127,'Schedule V(b)'!$B$11:$Z$315,15,0),0)","v":"Select"},null,null,null,null,null,{"$f":"IFERROR(VLOOKUP(B127,'Schedule V(b)'!$B$11:$Z$315,25,0),0)","v":0},null,{"$f":"IFERROR(VLOOKUP(B127,'Schedule V(b)'!$B$11:$Z$315,23,0),0)","v":0}]
[117,null,null,{"$f":"IFERROR(VLOOKUP(B128,'Schedule V(b)'!$B$11:$Z$315,3,0),0)","v":0},null,{"$f":"IFERROR(VLOOKUP(B128,'Schedule V(b)'!$B$11:$Z$315,7,0),0)","v":"Select"},null,{"$f":"IFERROR(VLOOKUP(B128,'Schedule V(b)'!$B$11:$Z$315,9,0),0)","v":0},null,{"$f":"IFERROR(VLOOKUP(B128,'Schedule V(b)'!$B$11:$Z$315,11,0),0)","v":"Select"},null,{"$f":"IFERROR(VLOOKUP(B128,'Schedule V(b)'!$B$11:$Z$315,13,0),0)","v":0},null,{"$f":"IFERROR(VLOOKUP(B128,'Schedule V(b)'!$B$11:$Z$315,15,0),0)","v":"Select"},null,null,null,null,null,{"$f":"IFERROR(VLOOKUP(B128,'Schedule V(b)'!$B$11:$Z$315,25,0),0)","v":0},null,{"$f":"IFERROR(VLOOKUP(B128,'Schedule V(b)'!$B$11:$Z$315,23,0),0)","v":0}]
[118,null,null,{"$f":"IFERROR(VLOOKUP(B129,'Schedule V(b)'!$B$11:$Z$315,3,0),0)","v":0},null,{"$f":"IFERROR(VLOOKUP(B129,'Schedule V(b)'!$B$11:$Z$315,7,0),0)","v":"Select"},null,{"$f":"IFERROR(VLOOKUP(B129,'Schedule V(b)'!$B$11:$Z$315,9,0),0)","v":0},null,{"$f":"IFERROR(VLOOKUP(B129,'Schedule V(b)'!$B$11:$Z$315,11,0),0)","v":"Select"},null,{"$f":"IFERROR(VLOOKUP(B129,'Schedule V(b)'!$B$11:$Z$315,13,0),0)","v":0},null,{"$f":"IFERROR(VLOOKUP(B129,'Schedule V(b)'!$B$11:$Z$315,15,0),0)","v":"Select"},null,null,null,null,null,{"$f":"IFERROR(VLOOKUP(B129,'Schedule V(b)'!$B$11:$Z$315,25,0),0)","v":0},null,{"$f":"IFERROR(VLOOKUP(B129,'Schedule V(b)'!$B$11:$Z$315,23,0),0)","v":0}]
[119,null,null,{"$f":"IFERROR(VLOOKUP(B130,'Schedule V(b)'!$B$11:$Z$315,3,0),0)","v":0},null,{"$f":"IFERROR(VLOOKUP(B130,'Schedule V(b)'!$B$11:$Z$315,7,0),0)","v":"Select"},null,{"$f":"IFERROR(VLOOKUP(B130,'Schedule V(b)'!$B$11:$Z$315,9,0),0)","v":0},null,{"$f":"IFERROR(VLOOKUP(B130,'Schedule V(b)'!$B$11:$Z$315,11,0),0)","v":"Select"},null,{"$f":"IFERROR(VLOOKUP(B130,'Schedule V(b)'!$B$11:$Z$315,13,0),0)","v":0},null,{"$f":"IFERROR(VLOOKUP(B130,'Schedule V(b)'!$B$11:$Z$315,15,0),0)","v":"Select"},null,null,null,null,null,{"$f":"IFERROR(VLOOKUP(B130,'Schedule V(b)'!$B$11:$Z$315,25,0),0)","v":0},null,{"$f":"IFERROR(VLOOKUP(B130,'Schedule V(b)'!$B$11:$Z$315,23,0),0)","v":0}]
[120,null,null,{"$f":"IFERROR(VLOOKUP(B131,'Schedule V(b)'!$B$11:$Z$315,3,0),0)","v":0},null,{"$f":"IFERROR(VLOOKUP(B131,'Schedule V(b)'!$B$11:$Z$315,7,0),0)","v":"Select"},null,{"$f":"IFERROR(VLOOKUP(B131,'Schedule V(b)'!$B$11:$Z$315,9,0),0)","v":0},null,{"$f":"IFERROR(VLOOKUP(B131,'Schedule V(b)'!$B$11:$Z$315,11,0),0)","v":"Select"},null,{"$f":"IFERROR(VLOOKUP(B131,'Schedule V(b)'!$B$11:$Z$315,13,0),0)","v":0},null,{"$f":"IFERROR(VLOOKUP(B131,'Schedule V(b)'!$B$11:$Z$315,15,0),0)","v":"Select"},null,null,null,null,null,{"$f":"IFERROR(VLOOKUP(B131,'Schedule V(b)'!$B$11:$Z$315,25,0),0)","v":0},null,{"$f":"IFERROR(VLOOKUP(B131,'Schedule V(b)'!$B$11:$Z$315,23,0),0)","v":0}]
[121,null,null,{"$f":"IFERROR(VLOOKUP(B132,'Schedule V(b)'!$B$11:$Z$315,3,0),0)","v":0},null,{"$f":"IFERROR(VLOOKUP(B132,'Schedule V(b)'!$B$11:$Z$315,7,0),0)","v":"Select"},null,{"$f":"IFERROR(VLOOKUP(B132,'Schedule V(b)'!$B$11:$Z$315,9,0),0)","v":0},null,{"$f":"IFERROR(VLOOKUP(B132,'Schedule V(b)'!$B$11:$Z$315,11,0),0)","v":"Select"},null,{"$f":"IFERROR(VLOOKUP(B132,'Schedule V(b)'!$B$11:$Z$315,13,0),0)","v":0},null,{"$f":"IFERROR(VLOOKUP(B132,'Schedule V(b)'!$B$11:$Z$315,15,0),0)","v":"Select"},null,null,null,null,null,{"$f":"IFERROR(VLOOKUP(B132,'Schedule V(b)'!$B$11:$Z$315,25,0),0)","v":0},null,{"$f":"IFERROR(VLOOKUP(B132,'Schedule V(b)'!$B$11:$Z$315,23,0),0)","v":0}]
[122,null,null,{"$f":"IFERROR(VLOOKUP(B133,'Schedule V(b)'!$B$11:$Z$315,3,0),0)","v":0},null,{"$f":"IFERROR(VLOOKUP(B133,'Schedule V(b)'!$B$11:$Z$315,7,0),0)","v":"Select"},null,{"$f":"IFERROR(VLOOKUP(B133,'Schedule V(b)'!$B$11:$Z$315,9,0),0)","v":0},null,{"$f":"IFERROR(VLOOKUP(B133,'Schedule V(b)'!$B$11:$Z$315,11,0),0)","v":"Select"},null,{"$f":"IFERROR(VLOOKUP(B133,'Schedule V(b)'!$B$11:$Z$315,13,0),0)","v":0},null,{"$f":"IFERROR(VLOOKUP(B133,'Schedule V(b)'!$B$11:$Z$315,15,0),0)","v":"Select"},null,null,null,null,null,{"$f":"IFERROR(VLOOKUP(B133,'Schedule V(b)'!$B$11:$Z$315,25,0),0)","v":0},null,{"$f":"IFERROR(VLOOKUP(B133,'Schedule V(b)'!$B$11:$Z$315,23,0),0)","v":0}]
[123,null,null,{"$f":"IFERROR(VLOOKUP(B134,'Schedule V(b)'!$B$11:$Z$315,3,0),0)","v":0},null,{"$f":"IFERROR(VLOOKUP(B134,'Schedule V(b)'!$B$11:$Z$315,7,0),0)","v":"Select"},null,{"$f":"IFERROR(VLOOKUP(B134,'Schedule V(b)'!$B$11:$Z$315,9,0),0)","v":0},null,{"$f":"IFERROR(VLOOKUP(B134,'Schedule V(b)'!$B$11:$Z$315,11,0),0)","v":"Select"},null,{"$f":"IFERROR(VLOOKUP(B134,'Schedule V(b)'!$B$11:$Z$315,13,0),0)","v":0},null,{"$f":"IFERROR(VLOOKUP(B134,'Schedule V(b)'!$B$11:$Z$315,15,0),0)","v":"Select"},null,null,null,null,null,{"$f":"IFERROR(VLOOKUP(B134,'Schedule V(b)'!$B$11:$Z$315,25,0),0)","v":0},null,{"$f":"IFERROR(VLOOKUP(B134,'Schedule V(b)'!$B$11:$Z$315,23,0),0)","v":0}]
[124,null,null,{"$f":"IFERROR(VLOOKUP(B135,'Schedule V(b)'!$B$11:$Z$315,3,0),0)","v":0},null,{"$f":"IFERROR(VLOOKUP(B135,'Schedule V(b)'!$B$11:$Z$315,7,0),0)","v":"Select"},null,{"$f":"IFERROR(VLOOKUP(B135,'Schedule V(b)'!$B$11:$Z$315,9,0),0)","v":0},null,{"$f":"IFERROR(VLOOKUP(B135,'Schedule V(b)'!$B$11:$Z$315,11,0),0)","v":"Select"},null,{"$f":"IFERROR(VLOOKUP(B135,'Schedule V(b)'!$B$11:$Z$315,13,0),0)","v":0},null,{"$f":"IFERROR(VLOOKUP(B135,'Schedule V(b)'!$B$11:$Z$315,15,0),0)","v":"Select"},null,null,null,null,null,{"$f":"IFERROR(VLOOKUP(B135,'Schedule V(b)'!$B$11:$Z$315,25,0),0)","v":0},null,{"$f":"IFERROR(VLOOKUP(B135,'Schedule V(b)'!$B$11:$Z$315,23,0),0)","v":0}]
[125,null,null,{"$f":"IFERROR(VLOOKUP(B136,'Schedule V(b)'!$B$11:$Z$315,3,0),0)","v":0},null,{"$f":"IFERROR(VLOOKUP(B136,'Schedule V(b)'!$B$11:$Z$315,7,0),0)","v":"Select"},null,{"$f":"IFERROR(VLOOKUP(B136,'Schedule V(b)'!$B$11:$Z$315,9,0),0)","v":0},null,{"$f":"IFERROR(VLOOKUP(B136,'Schedule V(b)'!$B$11:$Z$315,11,0),0)","v":"Select"},null,{"$f":"IFERROR(VLOOKUP(B136,'Schedule V(b)'!$B$11:$Z$315,13,0),0)","v":0},null,{"$f":"IFERROR(VLOOKUP(B136,'Schedule V(b)'!$B$11:$Z$315,15,0),0)","v":"Select"},null,null,null,null,null,{"$f":"IFERROR(VLOOKUP(B136,'Schedule V(b)'!$B$11:$Z$315,25,0),0)","v":0},null,{"$f":"IFERROR(VLOOKUP(B136,'Schedule V(b)'!$B$11:$Z$315,23,0),0)","v":0}]
[126,null,null,{"$f":"IFERROR(VLOOKUP(B137,'Schedule V(b)'!$B$11:$Z$315,3,0),0)","v":0},null,{"$f":"IFERROR(VLOOKUP(B137,'Schedule V(b)'!$B$11:$Z$315,7,0),0)","v":"Select"},null,{"$f":"IFERROR(VLOOKUP(B137,'Schedule V(b)'!$B$11:$Z$315,9,0),0)","v":0},null,{"$f":"IFERROR(VLOOKUP(B137,'Schedule V(b)'!$B$11:$Z$315,11,0),0)","v":"Select"},null,{"$f":"IFERROR(VLOOKUP(B137,'Schedule V(b)'!$B$11:$Z$315,13,0),0)","v":0},null,{"$f":"IFERROR(VLOOKUP(B137,'Schedule V(b)'!$B$11:$Z$315,15,0),0)","v":"Select"},null,null,null,null,null,{"$f":"IFERROR(VLOOKUP(B137,'Schedule V(b)'!$B$11:$Z$315,25,0),0)","v":0},null,{"$f":"IFERROR(VLOOKUP(B137,'Schedule V(b)'!$B$11:$Z$315,23,0),0)","v":0}]
[127,null,null,{"$f":"IFERROR(VLOOKUP(B138,'Schedule V(b)'!$B$11:$Z$315,3,0),0)","v":0},null,{"$f":"IFERROR(VLOOKUP(B138,'Schedule V(b)'!$B$11:$Z$315,7,0),0)","v":"Select"},null,{"$f":"IFERROR(VLOOKUP(B138,'Schedule V(b)'!$B$11:$Z$315,9,0),0)","v":0},null,{"$f":"IFERROR(VLOOKUP(B138,'Schedule V(b)'!$B$11:$Z$315,11,0),0)","v":"Select"},null,{"$f":"IFERROR(VLOOKUP(B138,'Schedule V(b)'!$B$11:$Z$315,13,0),0)","v":0},null,{"$f":"IFERROR(VLOOKUP(B138,'Schedule V(b)'!$B$11:$Z$315,15,0),0)","v":"Select"},null,null,null,null,null,{"$f":"IFERROR(VLOOKUP(B138,'Schedule V(b)'!$B$11:$Z$315,25,0),0)","v":0},null,{"$f":"IFERROR(VLOOKUP(B138,'Schedule V(b)'!$B$11:$Z$315,23,0),0)","v":0}]
[128,null,null,{"$f":"IFERROR(VLOOKUP(B139,'Schedule V(b)'!$B$11:$Z$315,3,0),0)","v":0},null,{"$f":"IFERROR(VLOOKUP(B139,'Schedule V(b)'!$B$11:$Z$315,7,0),0)","v":"Select"},null,{"$f":"IFERROR(VLOOKUP(B139,'Schedule V(b)'!$B$11:$Z$315,9,0),0)","v":0},null,{"$f":"IFERROR(VLOOKUP(B139,'Schedule V(b)'!$B$11:$Z$315,11,0),0)","v":"Select"},null,{"$f":"IFERROR(VLOOKUP(B139,'Schedule V(b)'!$B$11:$Z$315,13,0),0)","v":0},null,{"$f":"IFERROR(VLOOKUP(B139,'Schedule V(b)'!$B$11:$Z$315,15,0),0)","v":"Select"},null,null,null,null,null,{"$f":"IFERROR(VLOOKUP(B139,'Schedule V(b)'!$B$11:$Z$315,25,0),0)","v":0},null,{"$f":"IFERROR(VLOOKUP(B139,'Schedule V(b)'!$B$11:$Z$315,23,0),0)","v":0}]
[129,null,null,{"$f":"IFERROR(VLOOKUP(B140,'Schedule V(b)'!$B$11:$Z$315,3,0),0)","v":0},null,{"$f":"IFERROR(VLOOKUP(B140,'Schedule V(b)'!$B$11:$Z$315,7,0),0)","v":"Select"},null,{"$f":"IFERROR(VLOOKUP(B140,'Schedule V(b)'!$B$11:$Z$315,9,0),0)","v":0},null,{"$f":"IFERROR(VLOOKUP(B140,'Schedule V(b)'!$B$11:$Z$315,11,0),0)","v":"Select"},null,{"$f":"IFERROR(VLOOKUP(B140,'Schedule V(b)'!$B$11:$Z$315,13,0),0)","v":0},null,{"$f":"IFERROR(VLOOKUP(B140,'Schedule V(b)'!$B$11:$Z$315,15,0),0)","v":"Select"},null,null,null,null,null,{"$f":"IFERROR(VLOOKUP(B140,'Schedule V(b)'!$B$11:$Z$315,25,0),0)","v":0},null,{"$f":"IFERROR(VLOOKUP(B140,'Schedule V(b)'!$B$11:$Z$315,23,0),0)","v":0}]
[130,null,null,{"$f":"IFERROR(VLOOKUP(B141,'Schedule V(b)'!$B$11:$Z$315,3,0),0)","v":0},null,{"$f":"IFERROR(VLOOKUP(B141,'Schedule V(b)'!$B$11:$Z$315,7,0),0)","v":"Select"},null,{"$f":"IFERROR(VLOOKUP(B141,'Schedule V(b)'!$B$11:$Z$315,9,0),0)","v":0},null,{"$f":"IFERROR(VLOOKUP(B141,'Schedule V(b)'!$B$11:$Z$315,11,0),0)","v":"Select"},null,{"$f":"IFERROR(VLOOKUP(B141,'Schedule V(b)'!$B$11:$Z$315,13,0),0)","v":0},null,{"$f":"IFERROR(VLOOKUP(B141,'Schedule V(b)'!$B$11:$Z$315,15,0),0)","v":"Select"},null,null,null,null,null,{"$f":"IFERROR(VLOOKUP(B141,'Schedule V(b)'!$B$11:$Z$315,25,0),0)","v":0},null,{"$f":"IFERROR(VLOOKUP(B141,'Schedule V(b)'!$B$11:$Z$315,23,0),0)","v":0}]
[131,null,null,{"$f":"IFERROR(VLOOKUP(B142,'Schedule V(b)'!$B$11:$Z$315,3,0),0)","v":0},null,{"$f":"IFERROR(VLOOKUP(B142,'Schedule V(b)'!$B$11:$Z$315,7,0),0)","v":"Select"},null,{"$f":"IFERROR(VLOOKUP(B142,'Schedule V(b)'!$B$11:$Z$315,9,0),0)","v":0},null,{"$f":"IFERROR(VLOOKUP(B142,'Schedule V(b)'!$B$11:$Z$315,11,0),0)","v":"Select"},null,{"$f":"IFERROR(VLOOKUP(B142,'Schedule V(b)'!$B$11:$Z$315,13,0),0)","v":0},null,{"$f":"IFERROR(VLOOKUP(B142,'Schedule V(b)'!$B$11:$Z$315,15,0),0)","v":"Select"},null,null,null,null,null,{"$f":"IFERROR(VLOOKUP(B142,'Schedule V(b)'!$B$11:$Z$315,25,0),0)","v":0},null,{"$f":"IFERROR(VLOOKUP(B142,'Schedule V(b)'!$B$11:$Z$315,23,0),0)","v":0}]
[132,null,null,{"$f":"IFERROR(VLOOKUP(B143,'Schedule V(b)'!$B$11:$Z$315,3,0),0)","v":0},null,{"$f":"IFERROR(VLOOKUP(B143,'Schedule V(b)'!$B$11:$Z$315,7,0),0)","v":"Select"},null,{"$f":"IFERROR(VLOOKUP(B143,'Schedule V(b)'!$B$11:$Z$315,9,0),0)","v":0},null,{"$f":"IFERROR(VLOOKUP(B143,'Schedule V(b)'!$B$11:$Z$315,11,0),0)","v":"Select"},null,{"$f":"IFERROR(VLOOKUP(B143,'Schedule V(b)'!$B$11:$Z$315,13,0),0)","v":0},null,{"$f":"IFERROR(VLOOKUP(B143,'Schedule V(b)'!$B$11:$Z$315,15,0),0)","v":"Select"},null,null,null,null,null,{"$f":"IFERROR(VLOOKUP(B143,'Schedule V(b)'!$B$11:$Z$315,25,0),0)","v":0},null,{"$f":"IFERROR(VLOOKUP(B143,'Schedule V(b)'!$B$11:$Z$315,23,0),0)","v":0}]
[133,null,null,{"$f":"IFERROR(VLOOKUP(B144,'Schedule V(b)'!$B$11:$Z$315,3,0),0)","v":0},null,{"$f":"IFERROR(VLOOKUP(B144,'Schedule V(b)'!$B$11:$Z$315,7,0),0)","v":"Select"},null,{"$f":"IFERROR(VLOOKUP(B144,'Schedule V(b)'!$B$11:$Z$315,9,0),0)","v":0},null,{"$f":"IFERROR(VLOOKUP(B144,'Schedule V(b)'!$B$11:$Z$315,11,0),0)","v":"Select"},null,{"$f":"IFERROR(VLOOKUP(B144,'Schedule V(b)'!$B$11:$Z$315,13,0),0)","v":0},null,{"$f":"IFERROR(VLOOKUP(B144,'Schedule V(b)'!$B$11:$Z$315,15,0),0)","v":"Select"},null,null,null,null,null,{"$f":"IFERROR(VLOOKUP(B144,'Schedule V(b)'!$B$11:$Z$315,25,0),0)","v":0},null,{"$f":"IFERROR(VLOOKUP(B144,'Schedule V(b)'!$B$11:$Z$315,23,0),0)","v":0}]
[134,null,null,{"$f":"IFERROR(VLOOKUP(B145,'Schedule V(b)'!$B$11:$Z$315,3,0),0)","v":0},null,{"$f":"IFERROR(VLOOKUP(B145,'Schedule V(b)'!$B$11:$Z$315,7,0),0)","v":"Select"},null,{"$f":"IFERROR(VLOOKUP(B145,'Schedule V(b)'!$B$11:$Z$315,9,0),0)","v":0},null,{"$f":"IFERROR(VLOOKUP(B145,'Schedule V(b)'!$B$11:$Z$315,11,0),0)","v":"Select"},null,{"$f":"IFERROR(VLOOKUP(B145,'Schedule V(b)'!$B$11:$Z$315,13,0),0)","v":0},null,{"$f":"IFERROR(VLOOKUP(B145,'Schedule V(b)'!$B$11:$Z$315,15,0),0)","v":"Select"},null,null,null,null,null,{"$f":"IFERROR(VLOOKUP(B145,'Schedule V(b)'!$B$11:$Z$315,25,0),0)","v":0},null,{"$f":"IFERROR(VLOOKUP(B145,'Schedule V(b)'!$B$11:$Z$315,23,0),0)","v":0}]
[135,null,null,{"$f":"IFERROR(VLOOKUP(B146,'Schedule V(b)'!$B$11:$Z$315,3,0),0)","v":0},null,{"$f":"IFERROR(VLOOKUP(B146,'Schedule V(b)'!$B$11:$Z$315,7,0),0)","v":"Select"},null,{"$f":"IFERROR(VLOOKUP(B146,'Schedule V(b)'!$B$11:$Z$315,9,0),0)","v":0},null,{"$f":"IFERROR(VLOOKUP(B146,'Schedule V(b)'!$B$11:$Z$315,11,0),0)","v":"Select"},null,{"$f":"IFERROR(VLOOKUP(B146,'Schedule V(b)'!$B$11:$Z$315,13,0),0)","v":0},null,{"$f":"IFERROR(VLOOKUP(B146,'Schedule V(b)'!$B$11:$Z$315,15,0),0)","v":"Select"},null,null,null,null,null,{"$f":"IFERROR(VLOOKUP(B146,'Schedule V(b)'!$B$11:$Z$315,25,0),0)","v":0},null,{"$f":"IFERROR(VLOOKUP(B146,'Schedule V(b)'!$B$11:$Z$315,23,0),0)","v":0}]
[136,null,null,{"$f":"IFERROR(VLOOKUP(B147,'Schedule V(b)'!$B$11:$Z$315,3,0),0)","v":0},null,{"$f":"IFERROR(VLOOKUP(B147,'Schedule V(b)'!$B$11:$Z$315,7,0),0)","v":"Select"},null,{"$f":"IFERROR(VLOOKUP(B147,'Schedule V(b)'!$B$11:$Z$315,9,0),0)","v":0},null,{"$f":"IFERROR(VLOOKUP(B147,'Schedule V(b)'!$B$11:$Z$315,11,0),0)","v":"Select"},null,{"$f":"IFERROR(VLOOKUP(B147,'Schedule V(b)'!$B$11:$Z$315,13,0),0)","v":0},null,{"$f":"IFERROR(VLOOKUP(B147,'Schedule V(b)'!$B$11:$Z$315,15,0),0)","v":"Select"},null,null,null,null,null,{"$f":"IFERROR(VLOOKUP(B147,'Schedule V(b)'!$B$11:$Z$315,25,0),0)","v":0},null,{"$f":"IFERROR(VLOOKUP(B147,'Schedule V(b)'!$B$11:$Z$315,23,0),0)","v":0}]
[137,null,null,{"$f":"IFERROR(VLOOKUP(B148,'Schedule V(b)'!$B$11:$Z$315,3,0),0)","v":0},null,{"$f":"IFERROR(VLOOKUP(B148,'Schedule V(b)'!$B$11:$Z$315,7,0),0)","v":"Select"},null,{"$f":"IFERROR(VLOOKUP(B148,'Schedule V(b)'!$B$11:$Z$315,9,0),0)","v":0},null,{"$f":"IFERROR(VLOOKUP(B148,'Schedule V(b)'!$B$11:$Z$315,11,0),0)","v":"Select"},null,{"$f":"IFERROR(VLOOKUP(B148,'Schedule V(b)'!$B$11:$Z$315,13,0),0)","v":0},null,{"$f":"IFERROR(VLOOKUP(B148,'Schedule V(b)'!$B$11:$Z$315,15,0),0)","v":"Select"},null,null,null,null,null,{"$f":"IFERROR(VLOOKUP(B148,'Schedule V(b)'!$B$11:$Z$315,25,0),0)","v":0},null,{"$f":"IFERROR(VLOOKUP(B148,'Schedule V(b)'!$B$11:$Z$315,23,0),0)","v":0}]
[138,null,null,{"$f":"IFERROR(VLOOKUP(B149,'Schedule V(b)'!$B$11:$Z$315,3,0),0)","v":0},null,{"$f":"IFERROR(VLOOKUP(B149,'Schedule V(b)'!$B$11:$Z$315,7,0),0)","v":"Select"},null,{"$f":"IFERROR(VLOOKUP(B149,'Schedule V(b)'!$B$11:$Z$315,9,0),0)","v":0},null,{"$f":"IFERROR(VLOOKUP(B149,'Schedule V(b)'!$B$11:$Z$315,11,0),0)","v":"Select"},null,{"$f":"IFERROR(VLOOKUP(B149,'Schedule V(b)'!$B$11:$Z$315,13,0),0)","v":0},null,{"$f":"IFERROR(VLOOKUP(B149,'Schedule V(b)'!$B$11:$Z$315,15,0),0)","v":"Select"},null,null,null,null,null,{"$f":"IFERROR(VLOOKUP(B149,'Schedule V(b)'!$B$11:$Z$315,25,0),0)","v":0},null,{"$f":"IFERROR(VLOOKUP(B149,'Schedule V(b)'!$B$11:$Z$315,23,0),0)","v":0}]
[139,null,null,{"$f":"IFERROR(VLOOKUP(B150,'Schedule V(b)'!$B$11:$Z$315,3,0),0)","v":0},null,{"$f":"IFERROR(VLOOKUP(B150,'Schedule V(b)'!$B$11:$Z$315,7,0),0)","v":"Select"},null,{"$f":"IFERROR(VLOOKUP(B150,'Schedule V(b)'!$B$11:$Z$315,9,0),0)","v":0},null,{"$f":"IFERROR(VLOOKUP(B150,'Schedule V(b)'!$B$11:$Z$315,11,0),0)","v":"Select"},null,{"$f":"IFERROR(VLOOKUP(B150,'Schedule V(b)'!$B$11:$Z$315,13,0),0)","v":0},null,{"$f":"IFERROR(VLOOKUP(B150,'Schedule V(b)'!$B$11:$Z$315,15,0),0)","v":"Select"},null,null,null,null,null,{"$f":"IFERROR(VLOOKUP(B150,'Schedule V(b)'!$B$11:$Z$315,25,0),0)","v":0},null,{"$f":"IFERROR(VLOOKUP(B150,'Schedule V(b)'!$B$11:$Z$315,23,0),0)","v":0}]
[140,null,null,{"$f":"IFERROR(VLOOKUP(B151,'Schedule V(b)'!$B$11:$Z$315,3,0),0)","v":0},null,{"$f":"IFERROR(VLOOKUP(B151,'Schedule V(b)'!$B$11:$Z$315,7,0),0)","v":"Select"},null,{"$f":"IFERROR(VLOOKUP(B151,'Schedule V(b)'!$B$11:$Z$315,9,0),0)","v":0},null,{"$f":"IFERROR(VLOOKUP(B151,'Schedule V(b)'!$B$11:$Z$315,11,0),0)","v":"Select"},null,{"$f":"IFERROR(VLOOKUP(B151,'Schedule V(b)'!$B$11:$Z$315,13,0),0)","v":0},null,{"$f":"IFERROR(VLOOKUP(B151,'Schedule V(b)'!$B$11:$Z$315,15,0),0)","v":"Select"},null,null,null,null,null,{"$f":"IFERROR(VLOOKUP(B151,'Schedule V(b)'!$B$11:$Z$315,25,0),0)","v":0},null,{"$f":"IFERROR(VLOOKUP(B151,'Schedule V(b)'!$B$11:$Z$315,23,0),0)","v":0}]
[141,null,null,{"$f":"IFERROR(VLOOKUP(B152,'Schedule V(b)'!$B$11:$Z$315,3,0),0)","v":0},null,{"$f":"IFERROR(VLOOKUP(B152,'Schedule V(b)'!$B$11:$Z$315,7,0),0)","v":"Select"},null,{"$f":"IFERROR(VLOOKUP(B152,'Schedule V(b)'!$B$11:$Z$315,9,0),0)","v":0},null,{"$f":"IFERROR(VLOOKUP(B152,'Schedule V(b)'!$B$11:$Z$315,11,0),0)","v":"Select"},null,{"$f":"IFERROR(VLOOKUP(B152,'Schedule V(b)'!$B$11:$Z$315,13,0),0)","v":0},null,{"$f":"IFERROR(VLOOKUP(B152,'Schedule V(b)'!$B$11:$Z$315,15,0),0)","v":"Select"},null,null,null,null,null,{"$f":"IFERROR(VLOOKUP(B152,'Schedule V(b)'!$B$11:$Z$315,25,0),0)","v":0},null,{"$f":"IFERROR(VLOOKUP(B152,'Schedule V(b)'!$B$11:$Z$315,23,0),0)","v":0}]
[142,null,null,{"$f":"IFERROR(VLOOKUP(B153,'Schedule V(b)'!$B$11:$Z$315,3,0),0)","v":0},null,{"$f":"IFERROR(VLOOKUP(B153,'Schedule V(b)'!$B$11:$Z$315,7,0),0)","v":"Select"},null,{"$f":"IFERROR(VLOOKUP(B153,'Schedule V(b)'!$B$11:$Z$315,9,0),0)","v":0},null,{"$f":"IFERROR(VLOOKUP(B153,'Schedule V(b)'!$B$11:$Z$315,11,0),0)","v":"Select"},null,{"$f":"IFERROR(VLOOKUP(B153,'Schedule V(b)'!$B$11:$Z$315,13,0),0)","v":0},null,{"$f":"IFERROR(VLOOKUP(B153,'Schedule V(b)'!$B$11:$Z$315,15,0),0)","v":"Select"},null,null,null,null,null,{"$f":"IFERROR(VLOOKUP(B153,'Schedule V(b)'!$B$11:$Z$315,25,0),0)","v":0},null,{"$f":"IFERROR(VLOOKUP(B153,'Schedule V(b)'!$B$11:$Z$315,23,0),0)","v":0}]
[143,null,null,{"$f":"IFERROR(VLOOKUP(B154,'Schedule V(b)'!$B$11:$Z$315,3,0),0)","v":0},null,{"$f":"IFERROR(VLOOKUP(B154,'Schedule V(b)'!$B$11:$Z$315,7,0),0)","v":"Select"},null,{"$f":"IFERROR(VLOOKUP(B154,'Schedule V(b)'!$B$11:$Z$315,9,0),0)","v":0},null,{"$f":"IFERROR(VLOOKUP(B154,'Schedule V(b)'!$B$11:$Z$315,11,0),0)","v":"Select"},null,{"$f":"IFERROR(VLOOKUP(B154,'Schedule V(b)'!$B$11:$Z$315,13,0),0)","v":0},null,{"$f":"IFERROR(VLOOKUP(B154,'Schedule V(b)'!$B$11:$Z$315,15,0),0)","v":"Select"},null,null,null,null,null,{"$f":"IFERROR(VLOOKUP(B154,'Schedule V(b)'!$B$11:$Z$315,25,0),0)","v":0},null,{"$f":"IFERROR(VLOOKUP(B154,'Schedule V(b)'!$B$11:$Z$315,23,0),0)","v":0}]
[144,null,null,{"$f":"IFERROR(VLOOKUP(B155,'Schedule V(b)'!$B$11:$Z$315,3,0),0)","v":0},null,{"$f":"IFERROR(VLOOKUP(B155,'Schedule V(b)'!$B$11:$Z$315,7,0),0)","v":"Select"},null,{"$f":"IFERROR(VLOOKUP(B155,'Schedule V(b)'!$B$11:$Z$315,9,0),0)","v":0},null,{"$f":"IFERROR(VLOOKUP(B155,'Schedule V(b)'!$B$11:$Z$315,11,0),0)","v":"Select"},null,{"$f":"IFERROR(VLOOKUP(B155,'Schedule V(b)'!$B$11:$Z$315,13,0),0)","v":0},null,{"$f":"IFERROR(VLOOKUP(B155,'Schedule V(b)'!$B$11:$Z$315,15,0),0)","v":"Select"},null,null,null,null,null,{"$f":"IFERROR(VLOOKUP(B155,'Schedule V(b)'!$B$11:$Z$315,25,0),0)","v":0},null,{"$f":"IFERROR(VLOOKUP(B155,'Schedule V(b)'!$B$11:$Z$315,23,0),0)","v":0}]
[145,null,null,{"$f":"IFERROR(VLOOKUP(B156,'Schedule V(b)'!$B$11:$Z$315,3,0),0)","v":0},null,{"$f":"IFERROR(VLOOKUP(B156,'Schedule V(b)'!$B$11:$Z$315,7,0),0)","v":"Select"},null,{"$f":"IFERROR(VLOOKUP(B156,'Schedule V(b)'!$B$11:$Z$315,9,0),0)","v":0},null,{"$f":"IFERROR(VLOOKUP(B156,'Schedule V(b)'!$B$11:$Z$315,11,0),0)","v":"Select"},null,{"$f":"IFERROR(VLOOKUP(B156,'Schedule V(b)'!$B$11:$Z$315,13,0),0)","v":0},null,{"$f":"IFERROR(VLOOKUP(B156,'Schedule V(b)'!$B$11:$Z$315,15,0),0)","v":"Select"},null,null,null,null,null,{"$f":"IFERROR(VLOOKUP(B156,'Schedule V(b)'!$B$11:$Z$315,25,0),0)","v":0},null,{"$f":"IFERROR(VLOOKUP(B156,'Schedule V(b)'!$B$11:$Z$315,23,0),0)","v":0}]
[146,null,null,{"$f":"IFERROR(VLOOKUP(B157,'Schedule V(b)'!$B$11:$Z$315,3,0),0)","v":0},null,{"$f":"IFERROR(VLOOKUP(B157,'Schedule V(b)'!$B$11:$Z$315,7,0),0)","v":"Select"},null,{"$f":"IFERROR(VLOOKUP(B157,'Schedule V(b)'!$B$11:$Z$315,9,0),0)","v":0},null,{"$f":"IFERROR(VLOOKUP(B157,'Schedule V(b)'!$B$11:$Z$315,11,0),0)","v":"Select"},null,{"$f":"IFERROR(VLOOKUP(B157,'Schedule V(b)'!$B$11:$Z$315,13,0),0)","v":0},null,{"$f":"IFERROR(VLOOKUP(B157,'Schedule V(b)'!$B$11:$Z$315,15,0),0)","v":"Select"},null,null,null,null,null,{"$f":"IFERROR(VLOOKUP(B157,'Schedule V(b)'!$B$11:$Z$315,25,0),0)","v":0},null,{"$f":"IFERROR(VLOOKUP(B157,'Schedule V(b)'!$B$11:$Z$315,23,0),0)","v":0}]
[147,null,null,{"$f":"IFERROR(VLOOKUP(B158,'Schedule V(b)'!$B$11:$Z$315,3,0),0)","v":0},null,{"$f":"IFERROR(VLOOKUP(B158,'Schedule V(b)'!$B$11:$Z$315,7,0),0)","v":"Select"},null,{"$f":"IFERROR(VLOOKUP(B158,'Schedule V(b)'!$B$11:$Z$315,9,0),0)","v":0},null,{"$f":"IFERROR(VLOOKUP(B158,'Schedule V(b)'!$B$11:$Z$315,11,0),0)","v":"Select"},null,{"$f":"IFERROR(VLOOKUP(B158,'Schedule V(b)'!$B$11:$Z$315,13,0),0)","v":0},null,{"$f":"IFERROR(VLOOKUP(B158,'Schedule V(b)'!$B$11:$Z$315,15,0),0)","v":"Select"},null,null,null,null,null,{"$f":"IFERROR(VLOOKUP(B158,'Schedule V(b)'!$B$11:$Z$315,25,0),0)","v":0},null,{"$f":"IFERROR(VLOOKUP(B158,'Schedule V(b)'!$B$11:$Z$315,23,0),0)","v":0}]
[148,null,null,{"$f":"IFERROR(VLOOKUP(B159,'Schedule V(b)'!$B$11:$Z$315,3,0),0)","v":0},null,{"$f":"IFERROR(VLOOKUP(B159,'Schedule V(b)'!$B$11:$Z$315,7,0),0)","v":"Select"},null,{"$f":"IFERROR(VLOOKUP(B159,'Schedule V(b)'!$B$11:$Z$315,9,0),0)","v":0},null,{"$f":"IFERROR(VLOOKUP(B159,'Schedule V(b)'!$B$11:$Z$315,11,0),0)","v":"Select"},null,{"$f":"IFERROR(VLOOKUP(B159,'Schedule V(b)'!$B$11:$Z$315,13,0),0)","v":0},null,{"$f":"IFERROR(VLOOKUP(B159,'Schedule V(b)'!$B$11:$Z$315,15,0),0)","v":"Select"},null,null,null,null,null,{"$f":"IFERROR(VLOOKUP(B159,'Schedule V(b)'!$B$11:$Z$315,25,0),0)","v":0},null,{"$f":"IFERROR(VLOOKUP(B159,'Schedule V(b)'!$B$11:$Z$315,23,0),0)","v":0}]
[149,null,null,{"$f":"IFERROR(VLOOKUP(B160,'Schedule V(b)'!$B$11:$Z$315,3,0),0)","v":0},null,{"$f":"IFERROR(VLOOKUP(B160,'Schedule V(b)'!$B$11:$Z$315,7,0),0)","v":"Select"},null,{"$f":"IFERROR(VLOOKUP(B160,'Schedule V(b)'!$B$11:$Z$315,9,0),0)","v":0},null,{"$f":"IFERROR(VLOOKUP(B160,'Schedule V(b)'!$B$11:$Z$315,11,0),0)","v":"Select"},null,{"$f":"IFERROR(VLOOKUP(B160,'Schedule V(b)'!$B$11:$Z$315,13,0),0)","v":0},null,{"$f":"IFERROR(VLOOKUP(B160,'Schedule V(b)'!$B$11:$Z$315,15,0),0)","v":"Select"},null,null,null,null,null,{"$f":"IFERROR(VLOOKUP(B160,'Schedule V(b)'!$B$11:$Z$315,25,0),0)","v":0},null,{"$f":"IFERROR(VLOOKUP(B160,'Schedule V(b)'!$B$11:$Z$315,23,0),0)","v":0}]
[150,null,null,{"$f":"IFERROR(VLOOKUP(B161,'Schedule V(b)'!$B$11:$Z$315,3,0),0)","v":0},null,{"$f":"IFERROR(VLOOKUP(B161,'Schedule V(b)'!$B$11:$Z$315,7,0),0)","v":"Select"},null,{"$f":"IFERROR(VLOOKUP(B161,'Schedule V(b)'!$B$11:$Z$315,9,0),0)","v":0},null,{"$f":"IFERROR(VLOOKUP(B161,'Schedule V(b)'!$B$11:$Z$315,11,0),0)","v":"Select"},null,{"$f":"IFERROR(VLOOKUP(B161,'Schedule V(b)'!$B$11:$Z$315,13,0),0)","v":0},null,{"$f":"IFERROR(VLOOKUP(B161,'Schedule V(b)'!$B$11:$Z$315,15,0),0)","v":"Select"},null,null,null,null,null,{"$f":"IFERROR(VLOOKUP(B161,'Schedule V(b)'!$B$11:$Z$315,25,0),0)","v":0},null,{"$f":"IFERROR(VLOOKUP(B161,'Schedule V(b)'!$B$11:$Z$315,23,0),0)","v":0}]
[151,null,null,{"$f":"IFERROR(VLOOKUP(B162,'Schedule V(b)'!$B$11:$Z$315,3,0),0)","v":0},null,{"$f":"IFERROR(VLOOKUP(B162,'Schedule V(b)'!$B$11:$Z$315,7,0),0)","v":"Select"},null,{"$f":"IFERROR(VLOOKUP(B162,'Schedule V(b)'!$B$11:$Z$315,9,0),0)","v":0},null,{"$f":"IFERROR(VLOOKUP(B162,'Schedule V(b)'!$B$11:$Z$315,11,0),0)","v":"Select"},null,{"$f":"IFERROR(VLOOKUP(B162,'Schedule V(b)'!$B$11:$Z$315,13,0),0)","v":0},null,{"$f":"IFERROR(VLOOKUP(B162,'Schedule V(b)'!$B$11:$Z$315,15,0),0)","v":"Select"},null,null,null,null,null,{"$f":"IFERROR(VLOOKUP(B162,'Schedule V(b)'!$B$11:$Z$315,25,0),0)","v":0},null,{"$f":"IFERROR(VLOOKUP(B162,'Schedule V(b)'!$B$11:$Z$315,23,0),0)","v":0}]
[152,null,null,{"$f":"IFERROR(VLOOKUP(B163,'Schedule V(b)'!$B$11:$Z$315,3,0),0)","v":0},null,{"$f":"IFERROR(VLOOKUP(B163,'Schedule V(b)'!$B$11:$Z$315,7,0),0)","v":"Select"},null,{"$f":"IFERROR(VLOOKUP(B163,'Schedule V(b)'!$B$11:$Z$315,9,0),0)","v":0},null,{"$f":"IFERROR(VLOOKUP(B163,'Schedule V(b)'!$B$11:$Z$315,11,0),0)","v":"Select"},null,{"$f":"IFERROR(VLOOKUP(B163,'Schedule V(b)'!$B$11:$Z$315,13,0),0)","v":0},null,{"$f":"IFERROR(VLOOKUP(B163,'Schedule V(b)'!$B$11:$Z$315,15,0),0)","v":"Select"},null,null,null,null,null,{"$f":"IFERROR(VLOOKUP(B163,'Schedule V(b)'!$B$11:$Z$315,25,0),0)","v":0},null,{"$f":"IFERROR(VLOOKUP(B163,'Schedule V(b)'!$B$11:$Z$315,23,0),0)","v":0}]
[153,null,null,{"$f":"IFERROR(VLOOKUP(B164,'Schedule V(b)'!$B$11:$Z$315,3,0),0)","v":0},null,{"$f":"IFERROR(VLOOKUP(B164,'Schedule V(b)'!$B$11:$Z$315,7,0),0)","v":"Select"},null,{"$f":"IFERROR(VLOOKUP(B164,'Schedule V(b)'!$B$11:$Z$315,9,0),0)","v":0},null,{"$f":"IFERROR(VLOOKUP(B164,'Schedule V(b)'!$B$11:$Z$315,11,0),0)","v":"Select"},null,{"$f":"IFERROR(VLOOKUP(B164,'Schedule V(b)'!$B$11:$Z$315,13,0),0)","v":0},null,{"$f":"IFERROR(VLOOKUP(B164,'Schedule V(b)'!$B$11:$Z$315,15,0),0)","v":"Select"},null,null,null,null,null,{"$f":"IFERROR(VLOOKUP(B164,'Schedule V(b)'!$B$11:$Z$315,25,0),0)","v":0},null,{"$f":"IFERROR(VLOOKUP(B164,'Schedule V(b)'!$B$11:$Z$315,23,0),0)","v":0}]
[154,null,null,{"$f":"IFERROR(VLOOKUP(B165,'Schedule V(b)'!$B$11:$Z$315,3,0),0)","v":0},null,{"$f":"IFERROR(VLOOKUP(B165,'Schedule V(b)'!$B$11:$Z$315,7,0),0)","v":"Select"},null,{"$f":"IFERROR(VLOOKUP(B165,'Schedule V(b)'!$B$11:$Z$315,9,0),0)","v":0},null,{"$f":"IFERROR(VLOOKUP(B165,'Schedule V(b)'!$B$11:$Z$315,11,0),0)","v":"Select"},null,{"$f":"IFERROR(VLOOKUP(B165,'Schedule V(b)'!$B$11:$Z$315,13,0),0)","v":0},null,{"$f":"IFERROR(VLOOKUP(B165,'Schedule V(b)'!$B$11:$Z$315,15,0),0)","v":"Select"},null,null,null,null,null,{"$f":"IFERROR(VLOOKUP(B165,'Schedule V(b)'!$B$11:$Z$315,25,0),0)","v":0},null,{"$f":"IFERROR(VLOOKUP(B165,'Schedule V(b)'!$B$11:$Z$315,23,0),0)","v":0}]
[155,null,null,{"$f":"IFERROR(VLOOKUP(B166,'Schedule V(b)'!$B$11:$Z$315,3,0),0)","v":0},null,{"$f":"IFERROR(VLOOKUP(B166,'Schedule V(b)'!$B$11:$Z$315,7,0),0)","v":"Select"},null,{"$f":"IFERROR(VLOOKUP(B166,'Schedule V(b)'!$B$11:$Z$315,9,0),0)","v":0},null,{"$f":"IFERROR(VLOOKUP(B166,'Schedule V(b)'!$B$11:$Z$315,11,0),0)","v":"Select"},null,{"$f":"IFERROR(VLOOKUP(B166,'Schedule V(b)'!$B$11:$Z$315,13,0),0)","v":0},null,{"$f":"IFERROR(VLOOKUP(B166,'Schedule V(b)'!$B$11:$Z$315,15,0),0)","v":"Select"},null,null,null,null,null,{"$f":"IFERROR(VLOOKUP(B166,'Schedule V(b)'!$B$11:$Z$315,25,0),0)","v":0},null,{"$f":"IFERROR(VLOOKUP(B166,'Schedule V(b)'!$B$11:$Z$315,23,0),0)","v":0}]
[156,null,null,{"$f":"IFERROR(VLOOKUP(B167,'Schedule V(b)'!$B$11:$Z$315,3,0),0)","v":0},null,{"$f":"IFERROR(VLOOKUP(B167,'Schedule V(b)'!$B$11:$Z$315,7,0),0)","v":"Select"},null,{"$f":"IFERROR(VLOOKUP(B167,'Schedule V(b)'!$B$11:$Z$315,9,0),0)","v":0},null,{"$f":"IFERROR(VLOOKUP(B167,'Schedule V(b)'!$B$11:$Z$315,11,0),0)","v":"Select"},null,{"$f":"IFERROR(VLOOKUP(B167,'Schedule V(b)'!$B$11:$Z$315,13,0),0)","v":0},null,{"$f":"IFERROR(VLOOKUP(B167,'Schedule V(b)'!$B$11:$Z$315,15,0),0)","v":"Select"},null,null,null,null,null,{"$f":"IFERROR(VLOOKUP(B167,'Schedule V(b)'!$B$11:$Z$315,25,0),0)","v":0},null,{"$f":"IFERROR(VLOOKUP(B167,'Schedule V(b)'!$B$11:$Z$315,23,0),0)","v":0}]
[157,null,null,{"$f":"IFERROR(VLOOKUP(B168,'Schedule V(b)'!$B$11:$Z$315,3,0),0)","v":0},null,{"$f":"IFERROR(VLOOKUP(B168,'Schedule V(b)'!$B$11:$Z$315,7,0),0)","v":"Select"},null,{"$f":"IFERROR(VLOOKUP(B168,'Schedule V(b)'!$B$11:$Z$315,9,0),0)","v":0},null,{"$f":"IFERROR(VLOOKUP(B168,'Schedule V(b)'!$B$11:$Z$315,11,0),0)","v":"Select"},null,{"$f":"IFERROR(VLOOKUP(B168,'Schedule V(b)'!$B$11:$Z$315,13,0),0)","v":0},null,{"$f":"IFERROR(VLOOKUP(B168,'Schedule V(b)'!$B$11:$Z$315,15,0),0)","v":"Select"},null,null,null,null,null,{"$f":"IFERROR(VLOOKUP(B168,'Schedule V(b)'!$B$11:$Z$315,25,0),0)","v":0},null,{"$f":"IFERROR(VLOOKUP(B168,'Schedule V(b)'!$B$11:$Z$315,23,0),0)","v":0}]
[158,null,null,{"$f":"IFERROR(VLOOKUP(B169,'Schedule V(b)'!$B$11:$Z$315,3,0),0)","v":0},null,{"$f":"IFERROR(VLOOKUP(B169,'Schedule V(b)'!$B$11:$Z$315,7,0),0)","v":"Select"},null,{"$f":"IFERROR(VLOOKUP(B169,'Schedule V(b)'!$B$11:$Z$315,9,0),0)","v":0},null,{"$f":"IFERROR(VLOOKUP(B169,'Schedule V(b)'!$B$11:$Z$315,11,0),0)","v":"Select"},null,{"$f":"IFERROR(VLOOKUP(B169,'Schedule V(b)'!$B$11:$Z$315,13,0),0)","v":0},null,{"$f":"IFERROR(VLOOKUP(B169,'Schedule V(b)'!$B$11:$Z$315,15,0),0)","v":"Select"},null,null,null,null,null,{"$f":"IFERROR(VLOOKUP(B169,'Schedule V(b)'!$B$11:$Z$315,25,0),0)","v":0},null,{"$f":"IFERROR(VLOOKUP(B169,'Schedule V(b)'!$B$11:$Z$315,23,0),0)","v":0}]
[159,null,null,{"$f":"IFERROR(VLOOKUP(B170,'Schedule V(b)'!$B$11:$Z$315,3,0),0)","v":0},null,{"$f":"IFERROR(VLOOKUP(B170,'Schedule V(b)'!$B$11:$Z$315,7,0),0)","v":"Select"},null,{"$f":"IFERROR(VLOOKUP(B170,'Schedule V(b)'!$B$11:$Z$315,9,0),0)","v":0},null,{"$f":"IFERROR(VLOOKUP(B170,'Schedule V(b)'!$B$11:$Z$315,11,0),0)","v":"Select"},null,{"$f":"IFERROR(VLOOKUP(B170,'Schedule V(b)'!$B$11:$Z$315,13,0),0)","v":0},null,{"$f":"IFERROR(VLOOKUP(B170,'Schedule V(b)'!$B$11:$Z$315,15,0),0)","v":"Select"},null,null,null,null,null,{"$f":"IFERROR(VLOOKUP(B170,'Schedule V(b)'!$B$11:$Z$315,25,0),0)","v":0},null,{"$f":"IFERROR(VLOOKUP(B170,'Schedule V(b)'!$B$11:$Z$315,23,0),0)","v":0}]
[160,null,null,{"$f":"IFERROR(VLOOKUP(B171,'Schedule V(b)'!$B$11:$Z$315,3,0),0)","v":0},null,{"$f":"IFERROR(VLOOKUP(B171,'Schedule V(b)'!$B$11:$Z$315,7,0),0)","v":"Select"},null,{"$f":"IFERROR(VLOOKUP(B171,'Schedule V(b)'!$B$11:$Z$315,9,0),0)","v":0},null,{"$f":"IFERROR(VLOOKUP(B171,'Schedule V(b)'!$B$11:$Z$315,11,0),0)","v":"Select"},null,{"$f":"IFERROR(VLOOKUP(B171,'Schedule V(b)'!$B$11:$Z$315,13,0),0)","v":0},null,{"$f":"IFERROR(VLOOKUP(B171,'Schedule V(b)'!$B$11:$Z$315,15,0),0)","v":"Select"},null,null,null,null,null,{"$f":"IFERROR(VLOOKUP(B171,'Schedule V(b)'!$B$11:$Z$315,25,0),0)","v":0},null,{"$f":"IFERROR(VLOOKUP(B171,'Schedule V(b)'!$B$11:$Z$315,23,0),0)","v":0}]
[161,null,null,{"$f":"IFERROR(VLOOKUP(B172,'Schedule V(b)'!$B$11:$Z$315,3,0),0)","v":0},null,{"$f":"IFERROR(VLOOKUP(B172,'Schedule V(b)'!$B$11:$Z$315,7,0),0)","v":"Select"},null,{"$f":"IFERROR(VLOOKUP(B172,'Schedule V(b)'!$B$11:$Z$315,9,0),0)","v":0},null,{"$f":"IFERROR(VLOOKUP(B172,'Schedule V(b)'!$B$11:$Z$315,11,0),0)","v":"Select"},null,{"$f":"IFERROR(VLOOKUP(B172,'Schedule V(b)'!$B$11:$Z$315,13,0),0)","v":0},null,{"$f":"IFERROR(VLOOKUP(B172,'Schedule V(b)'!$B$11:$Z$315,15,0),0)","v":"Select"},null,null,null,null,null,{"$f":"IFERROR(VLOOKUP(B172,'Schedule V(b)'!$B$11:$Z$315,25,0),0)","v":0},null,{"$f":"IFERROR(VLOOKUP(B172,'Schedule V(b)'!$B$11:$Z$315,23,0),0)","v":0}]
[162,null,null,{"$f":"IFERROR(VLOOKUP(B173,'Schedule V(b)'!$B$11:$Z$315,3,0),0)","v":0},null,{"$f":"IFERROR(VLOOKUP(B173,'Schedule V(b)'!$B$11:$Z$315,7,0),0)","v":"Select"},null,{"$f":"IFERROR(VLOOKUP(B173,'Schedule V(b)'!$B$11:$Z$315,9,0),0)","v":0},null,{"$f":"IFERROR(VLOOKUP(B173,'Schedule V(b)'!$B$11:$Z$315,11,0),0)","v":"Select"},null,{"$f":"IFERROR(VLOOKUP(B173,'Schedule V(b)'!$B$11:$Z$315,13,0),0)","v":0},null,{"$f":"IFERROR(VLOOKUP(B173,'Schedule V(b)'!$B$11:$Z$315,15,0),0)","v":"Select"},null,null,null,null,null,{"$f":"IFERROR(VLOOKUP(B173,'Schedule V(b)'!$B$11:$Z$315,25,0),0)","v":0},null,{"$f":"IFERROR(VLOOKUP(B173,'Schedule V(b)'!$B$11:$Z$315,23,0),0)","v":0}]
[163,null,null,{"$f":"IFERROR(VLOOKUP(B174,'Schedule V(b)'!$B$11:$Z$315,3,0),0)","v":0},null,{"$f":"IFERROR(VLOOKUP(B174,'Schedule V(b)'!$B$11:$Z$315,7,0),0)","v":"Select"},null,{"$f":"IFERROR(VLOOKUP(B174,'Schedule V(b)'!$B$11:$Z$315,9,0),0)","v":0},null,{"$f":"IFERROR(VLOOKUP(B174,'Schedule V(b)'!$B$11:$Z$315,11,0),0)","v":"Select"},null,{"$f":"IFERROR(VLOOKUP(B174,'Schedule V(b)'!$B$11:$Z$315,13,0),0)","v":0},null,{"$f":"IFERROR(VLOOKUP(B174,'Schedule V(b)'!$B$11:$Z$315,15,0),0)","v":"Select"},null,null,null,null,null,{"$f":"IFERROR(VLOOKUP(B174,'Schedule V(b)'!$B$11:$Z$315,25,0),0)","v":0},null,{"$f":"IFERROR(VLOOKUP(B174,'Schedule V(b)'!$B$11:$Z$315,23,0),0)","v":0}]
[164,null,null,{"$f":"IFERROR(VLOOKUP(B175,'Schedule V(b)'!$B$11:$Z$315,3,0),0)","v":0},null,{"$f":"IFERROR(VLOOKUP(B175,'Schedule V(b)'!$B$11:$Z$315,7,0),0)","v":"Select"},null,{"$f":"IFERROR(VLOOKUP(B175,'Schedule V(b)'!$B$11:$Z$315,9,0),0)","v":0},null,{"$f":"IFERROR(VLOOKUP(B175,'Schedule V(b)'!$B$11:$Z$315,11,0),0)","v":"Select"},null,{"$f":"IFERROR(VLOOKUP(B175,'Schedule V(b)'!$B$11:$Z$315,13,0),0)","v":0},null,{"$f":"IFERROR(VLOOKUP(B175,'Schedule V(b)'!$B$11:$Z$315,15,0),0)","v":"Select"},null,null,null,null,null,{"$f":"IFERROR(VLOOKUP(B175,'Schedule V(b)'!$B$11:$Z$315,25,0),0)","v":0},null,{"$f":"IFERROR(VLOOKUP(B175,'Schedule V(b)'!$B$11:$Z$315,23,0),0)","v":0}]
[165,null,null,{"$f":"IFERROR(VLOOKUP(B176,'Schedule V(b)'!$B$11:$Z$315,3,0),0)","v":0},null,{"$f":"IFERROR(VLOOKUP(B176,'Schedule V(b)'!$B$11:$Z$315,7,0),0)","v":"Select"},null,{"$f":"IFERROR(VLOOKUP(B176,'Schedule V(b)'!$B$11:$Z$315,9,0),0)","v":0},null,{"$f":"IFERROR(VLOOKUP(B176,'Schedule V(b)'!$B$11:$Z$315,11,0),0)","v":"Select"},null,{"$f":"IFERROR(VLOOKUP(B176,'Schedule V(b)'!$B$11:$Z$315,13,0),0)","v":0},null,{"$f":"IFERROR(VLOOKUP(B176,'Schedule V(b)'!$B$11:$Z$315,15,0),0)","v":"Select"},null,null,null,null,null,{"$f":"IFERROR(VLOOKUP(B176,'Schedule V(b)'!$B$11:$Z$315,25,0),0)","v":0},null,{"$f":"IFERROR(VLOOKUP(B176,'Schedule V(b)'!$B$11:$Z$315,23,0),0)","v":0}]
[166,null,null,{"$f":"IFERROR(VLOOKUP(B177,'Schedule V(b)'!$B$11:$Z$315,3,0),0)","v":0},null,{"$f":"IFERROR(VLOOKUP(B177,'Schedule V(b)'!$B$11:$Z$315,7,0),0)","v":"Select"},null,{"$f":"IFERROR(VLOOKUP(B177,'Schedule V(b)'!$B$11:$Z$315,9,0),0)","v":0},null,{"$f":"IFERROR(VLOOKUP(B177,'Schedule V(b)'!$B$11:$Z$315,11,0),0)","v":"Select"},null,{"$f":"IFERROR(VLOOKUP(B177,'Schedule V(b)'!$B$11:$Z$315,13,0),0)","v":0},null,{"$f":"IFERROR(VLOOKUP(B177,'Schedule V(b)'!$B$11:$Z$315,15,0),0)","v":"Select"},null,null,null,null,null,{"$f":"IFERROR(VLOOKUP(B177,'Schedule V(b)'!$B$11:$Z$315,25,0),0)","v":0},null,{"$f":"IFERROR(VLOOKUP(B177,'Schedule V(b)'!$B$11:$Z$315,23,0),0)","v":0}]
[167,null,null,{"$f":"IFERROR(VLOOKUP(B178,'Schedule V(b)'!$B$11:$Z$315,3,0),0)","v":0},null,{"$f":"IFERROR(VLOOKUP(B178,'Schedule V(b)'!$B$11:$Z$315,7,0),0)","v":"Select"},null,{"$f":"IFERROR(VLOOKUP(B178,'Schedule V(b)'!$B$11:$Z$315,9,0),0)","v":0},null,{"$f":"IFERROR(VLOOKUP(B178,'Schedule V(b)'!$B$11:$Z$315,11,0),0)","v":"Select"},null,{"$f":"IFERROR(VLOOKUP(B178,'Schedule V(b)'!$B$11:$Z$315,13,0),0)","v":0},null,{"$f":"IFERROR(VLOOKUP(B178,'Schedule V(b)'!$B$11:$Z$315,15,0),0)","v":"Select"},null,null,null,null,null,{"$f":"IFERROR(VLOOKUP(B178,'Schedule V(b)'!$B$11:$Z$315,25,0),0)","v":0},null,{"$f":"IFERROR(VLOOKUP(B178,'Schedule V(b)'!$B$11:$Z$315,23,0),0)","v":0}]
[168,null,null,{"$f":"IFERROR(VLOOKUP(B179,'Schedule V(b)'!$B$11:$Z$315,3,0),0)","v":0},null,{"$f":"IFERROR(VLOOKUP(B179,'Schedule V(b)'!$B$11:$Z$315,7,0),0)","v":"Select"},null,{"$f":"IFERROR(VLOOKUP(B179,'Schedule V(b)'!$B$11:$Z$315,9,0),0)","v":0},null,{"$f":"IFERROR(VLOOKUP(B179,'Schedule V(b)'!$B$11:$Z$315,11,0),0)","v":"Select"},null,{"$f":"IFERROR(VLOOKUP(B179,'Schedule V(b)'!$B$11:$Z$315,13,0),0)","v":0},null,{"$f":"IFERROR(VLOOKUP(B179,'Schedule V(b)'!$B$11:$Z$315,15,0),0)","v":"Select"},null,null,null,null,null,{"$f":"IFERROR(VLOOKUP(B179,'Schedule V(b)'!$B$11:$Z$315,25,0),0)","v":0},null,{"$f":"IFERROR(VLOOKUP(B179,'Schedule V(b)'!$B$11:$Z$315,23,0),0)","v":0}]
[169,null,null,{"$f":"IFERROR(VLOOKUP(B180,'Schedule V(b)'!$B$11:$Z$315,3,0),0)","v":0},null,{"$f":"IFERROR(VLOOKUP(B180,'Schedule V(b)'!$B$11:$Z$315,7,0),0)","v":"Select"},null,{"$f":"IFERROR(VLOOKUP(B180,'Schedule V(b)'!$B$11:$Z$315,9,0),0)","v":0},null,{"$f":"IFERROR(VLOOKUP(B180,'Schedule V(b)'!$B$11:$Z$315,11,0),0)","v":"Select"},null,{"$f":"IFERROR(VLOOKUP(B180,'Schedule V(b)'!$B$11:$Z$315,13,0),0)","v":0},null,{"$f":"IFERROR(VLOOKUP(B180,'Schedule V(b)'!$B$11:$Z$315,15,0),0)","v":"Select"},null,null,null,null,null,{"$f":"IFERROR(VLOOKUP(B180,'Schedule V(b)'!$B$11:$Z$315,25,0),0)","v":0},null,{"$f":"IFERROR(VLOOKUP(B180,'Schedule V(b)'!$B$11:$Z$315,23,0),0)","v":0}]
[170,null,null,{"$f":"IFERROR(VLOOKUP(B181,'Schedule V(b)'!$B$11:$Z$315,3,0),0)","v":0},null,{"$f":"IFERROR(VLOOKUP(B181,'Schedule V(b)'!$B$11:$Z$315,7,0),0)","v":"Select"},null,{"$f":"IFERROR(VLOOKUP(B181,'Schedule V(b)'!$B$11:$Z$315,9,0),0)","v":0},null,{"$f":"IFERROR(VLOOKUP(B181,'Schedule V(b)'!$B$11:$Z$315,11,0),0)","v":"Select"},null,{"$f":"IFERROR(VLOOKUP(B181,'Schedule V(b)'!$B$11:$Z$315,13,0),0)","v":0},null,{"$f":"IFERROR(VLOOKUP(B181,'Schedule V(b)'!$B$11:$Z$315,15,0),0)","v":"Select"},null,null,null,null,null,{"$f":"IFERROR(VLOOKUP(B181,'Schedule V(b)'!$B$11:$Z$315,25,0),0)","v":0},null,{"$f":"IFERROR(VLOOKUP(B181,'Schedule V(b)'!$B$11:$Z$315,23,0),0)","v":0}]
[171,null,null,{"$f":"IFERROR(VLOOKUP(B182,'Schedule V(b)'!$B$11:$Z$315,3,0),0)","v":0},null,{"$f":"IFERROR(VLOOKUP(B182,'Schedule V(b)'!$B$11:$Z$315,7,0),0)","v":"Select"},null,{"$f":"IFERROR(VLOOKUP(B182,'Schedule V(b)'!$B$11:$Z$315,9,0),0)","v":0},null,{"$f":"IFERROR(VLOOKUP(B182,'Schedule V(b)'!$B$11:$Z$315,11,0),0)","v":"Select"},null,{"$f":"IFERROR(VLOOKUP(B182,'Schedule V(b)'!$B$11:$Z$315,13,0),0)","v":0},null,{"$f":"IFERROR(VLOOKUP(B182,'Schedule V(b)'!$B$11:$Z$315,15,0),0)","v":"Select"},null,null,null,null,null,{"$f":"IFERROR(VLOOKUP(B182,'Schedule V(b)'!$B$11:$Z$315,25,0),0)","v":0},null,{"$f":"IFERROR(VLOOKUP(B182,'Schedule V(b)'!$B$11:$Z$315,23,0),0)","v":0}]
[172,null,null,{"$f":"IFERROR(VLOOKUP(B183,'Schedule V(b)'!$B$11:$Z$315,3,0),0)","v":0},null,{"$f":"IFERROR(VLOOKUP(B183,'Schedule V(b)'!$B$11:$Z$315,7,0),0)","v":"Select"},null,{"$f":"IFERROR(VLOOKUP(B183,'Schedule V(b)'!$B$11:$Z$315,9,0),0)","v":0},null,{"$f":"IFERROR(VLOOKUP(B183,'Schedule V(b)'!$B$11:$Z$315,11,0),0)","v":"Select"},null,{"$f":"IFERROR(VLOOKUP(B183,'Schedule V(b)'!$B$11:$Z$315,13,0),0)","v":0},null,{"$f":"IFERROR(VLOOKUP(B183,'Schedule V(b)'!$B$11:$Z$315,15,0),0)","v":"Select"},null,null,null,null,null,{"$f":"IFERROR(VLOOKUP(B183,'Schedule V(b)'!$B$11:$Z$315,25,0),0)","v":0},null,{"$f":"IFERROR(VLOOKUP(B183,'Schedule V(b)'!$B$11:$Z$315,23,0),0)","v":0}]
[173,null,null,{"$f":"IFERROR(VLOOKUP(B184,'Schedule V(b)'!$B$11:$Z$315,3,0),0)","v":0},null,{"$f":"IFERROR(VLOOKUP(B184,'Schedule V(b)'!$B$11:$Z$315,7,0),0)","v":"Select"},null,{"$f":"IFERROR(VLOOKUP(B184,'Schedule V(b)'!$B$11:$Z$315,9,0),0)","v":0},null,{"$f":"IFERROR(VLOOKUP(B184,'Schedule V(b)'!$B$11:$Z$315,11,0),0)","v":"Select"},null,{"$f":"IFERROR(VLOOKUP(B184,'Schedule V(b)'!$B$11:$Z$315,13,0),0)","v":0},null,{"$f":"IFERROR(VLOOKUP(B184,'Schedule V(b)'!$B$11:$Z$315,15,0),0)","v":"Select"},null,null,null,null,null,{"$f":"IFERROR(VLOOKUP(B184,'Schedule V(b)'!$B$11:$Z$315,25,0),0)","v":0},null,{"$f":"IFERROR(VLOOKUP(B184,'Schedule V(b)'!$B$11:$Z$315,23,0),0)","v":0}]
[174,null,null,{"$f":"IFERROR(VLOOKUP(B185,'Schedule V(b)'!$B$11:$Z$315,3,0),0)","v":0},null,{"$f":"IFERROR(VLOOKUP(B185,'Schedule V(b)'!$B$11:$Z$315,7,0),0)","v":"Select"},null,{"$f":"IFERROR(VLOOKUP(B185,'Schedule V(b)'!$B$11:$Z$315,9,0),0)","v":0},null,{"$f":"IFERROR(VLOOKUP(B185,'Schedule V(b)'!$B$11:$Z$315,11,0),0)","v":"Select"},null,{"$f":"IFERROR(VLOOKUP(B185,'Schedule V(b)'!$B$11:$Z$315,13,0),0)","v":0},null,{"$f":"IFERROR(VLOOKUP(B185,'Schedule V(b)'!$B$11:$Z$315,15,0),0)","v":"Select"},null,null,null,null,null,{"$f":"IFERROR(VLOOKUP(B185,'Schedule V(b)'!$B$11:$Z$315,25,0),0)","v":0},null,{"$f":"IFERROR(VLOOKUP(B185,'Schedule V(b)'!$B$11:$Z$315,23,0),0)","v":0}]
[175,null,null,{"$f":"IFERROR(VLOOKUP(B186,'Schedule V(b)'!$B$11:$Z$315,3,0),0)","v":0},null,{"$f":"IFERROR(VLOOKUP(B186,'Schedule V(b)'!$B$11:$Z$315,7,0),0)","v":"Select"},null,{"$f":"IFERROR(VLOOKUP(B186,'Schedule V(b)'!$B$11:$Z$315,9,0),0)","v":0},null,{"$f":"IFERROR(VLOOKUP(B186,'Schedule V(b)'!$B$11:$Z$315,11,0),0)","v":"Select"},null,{"$f":"IFERROR(VLOOKUP(B186,'Schedule V(b)'!$B$11:$Z$315,13,0),0)","v":0},null,{"$f":"IFERROR(VLOOKUP(B186,'Schedule V(b)'!$B$11:$Z$315,15,0),0)","v":"Select"},null,null,null,null,null,{"$f":"IFERROR(VLOOKUP(B186,'Schedule V(b)'!$B$11:$Z$315,25,0),0)","v":0},null,{"$f":"IFERROR(VLOOKUP(B186,'Schedule V(b)'!$B$11:$Z$315,23,0),0)","v":0}]
[176,null,null,{"$f":"IFERROR(VLOOKUP(B187,'Schedule V(b)'!$B$11:$Z$315,3,0),0)","v":0},null,{"$f":"IFERROR(VLOOKUP(B187,'Schedule V(b)'!$B$11:$Z$315,7,0),0)","v":"Select"},null,{"$f":"IFERROR(VLOOKUP(B187,'Schedule V(b)'!$B$11:$Z$315,9,0),0)","v":0},null,{"$f":"IFERROR(VLOOKUP(B187,'Schedule V(b)'!$B$11:$Z$315,11,0),0)","v":"Select"},null,{"$f":"IFERROR(VLOOKUP(B187,'Schedule V(b)'!$B$11:$Z$315,13,0),0)","v":0},null,{"$f":"IFERROR(VLOOKUP(B187,'Schedule V(b)'!$B$11:$Z$315,15,0),0)","v":"Select"},null,null,null,null,null,{"$f":"IFERROR(VLOOKUP(B187,'Schedule V(b)'!$B$11:$Z$315,25,0),0)","v":0},null,{"$f":"IFERROR(VLOOKUP(B187,'Schedule V(b)'!$B$11:$Z$315,23,0),0)","v":0}]
[177,null,null,{"$f":"IFERROR(VLOOKUP(B188,'Schedule V(b)'!$B$11:$Z$315,3,0),0)","v":0},null,{"$f":"IFERROR(VLOOKUP(B188,'Schedule V(b)'!$B$11:$Z$315,7,0),0)","v":"Select"},null,{"$f":"IFERROR(VLOOKUP(B188,'Schedule V(b)'!$B$11:$Z$315,9,0),0)","v":0},null,{"$f":"IFERROR(VLOOKUP(B188,'Schedule V(b)'!$B$11:$Z$315,11,0),0)","v":"Select"},null,{"$f":"IFERROR(VLOOKUP(B188,'Schedule V(b)'!$B$11:$Z$315,13,0),0)","v":0},null,{"$f":"IFERROR(VLOOKUP(B188,'Schedule V(b)'!$B$11:$Z$315,15,0),0)","v":"Select"},null,null,null,null,null,{"$f":"IFERROR(VLOOKUP(B188,'Schedule V(b)'!$B$11:$Z$315,25,0),0)","v":0},null,{"$f":"IFERROR(VLOOKUP(B188,'Schedule V(b)'!$B$11:$Z$315,23,0),0)","v":0}]
[178,null,null,{"$f":"IFERROR(VLOOKUP(B189,'Schedule V(b)'!$B$11:$Z$315,3,0),0)","v":0},null,{"$f":"IFERROR(VLOOKUP(B189,'Schedule V(b)'!$B$11:$Z$315,7,0),0)","v":"Select"},null,{"$f":"IFERROR(VLOOKUP(B189,'Schedule V(b)'!$B$11:$Z$315,9,0),0)","v":0},null,{"$f":"IFERROR(VLOOKUP(B189,'Schedule V(b)'!$B$11:$Z$315,11,0),0)","v":"Select"},null,{"$f":"IFERROR(VLOOKUP(B189,'Schedule V(b)'!$B$11:$Z$315,13,0),0)","v":0},null,{"$f":"IFERROR(VLOOKUP(B189,'Schedule V(b)'!$B$11:$Z$315,15,0),0)","v":"Select"},null,null,null,null,null,{"$f":"IFERROR(VLOOKUP(B189,'Schedule V(b)'!$B$11:$Z$315,25,0),0)","v":0},null,{"$f":"IFERROR(VLOOKUP(B189,'Schedule V(b)'!$B$11:$Z$315,23,0),0)","v":0}]
[179,null,null,{"$f":"IFERROR(VLOOKUP(B190,'Schedule V(b)'!$B$11:$Z$315,3,0),0)","v":0},null,{"$f":"IFERROR(VLOOKUP(B190,'Schedule V(b)'!$B$11:$Z$315,7,0),0)","v":"Select"},null,{"$f":"IFERROR(VLOOKUP(B190,'Schedule V(b)'!$B$11:$Z$315,9,0),0)","v":0},null,{"$f":"IFERROR(VLOOKUP(B190,'Schedule V(b)'!$B$11:$Z$315,11,0),0)","v":"Select"},null,{"$f":"IFERROR(VLOOKUP(B190,'Schedule V(b)'!$B$11:$Z$315,13,0),0)","v":0},null,{"$f":"IFERROR(VLOOKUP(B190,'Schedule V(b)'!$B$11:$Z$315,15,0),0)","v":"Select"},null,null,null,null,null,{"$f":"IFERROR(VLOOKUP(B190,'Schedule V(b)'!$B$11:$Z$315,25,0),0)","v":0},null,{"$f":"IFERROR(VLOOKUP(B190,'Schedule V(b)'!$B$11:$Z$315,23,0),0)","v":0}]
[180,null,null,{"$f":"IFERROR(VLOOKUP(B191,'Schedule V(b)'!$B$11:$Z$315,3,0),0)","v":0},null,{"$f":"IFERROR(VLOOKUP(B191,'Schedule V(b)'!$B$11:$Z$315,7,0),0)","v":"Select"},null,{"$f":"IFERROR(VLOOKUP(B191,'Schedule V(b)'!$B$11:$Z$315,9,0),0)","v":0},null,{"$f":"IFERROR(VLOOKUP(B191,'Schedule V(b)'!$B$11:$Z$315,11,0),0)","v":"Select"},null,{"$f":"IFERROR(VLOOKUP(B191,'Schedule V(b)'!$B$11:$Z$315,13,0),0)","v":0},null,{"$f":"IFERROR(VLOOKUP(B191,'Schedule V(b)'!$B$11:$Z$315,15,0),0)","v":"Select"},null,null,null,null,null,{"$f":"IFERROR(VLOOKUP(B191,'Schedule V(b)'!$B$11:$Z$315,25,0),0)","v":0},null,{"$f":"IFERROR(VLOOKUP(B191,'Schedule V(b)'!$B$11:$Z$315,23,0),0)","v":0}]
[181,null,null,{"$f":"IFERROR(VLOOKUP(B192,'Schedule V(b)'!$B$11:$Z$315,3,0),0)","v":0},null,{"$f":"IFERROR(VLOOKUP(B192,'Schedule V(b)'!$B$11:$Z$315,7,0),0)","v":"Select"},null,{"$f":"IFERROR(VLOOKUP(B192,'Schedule V(b)'!$B$11:$Z$315,9,0),0)","v":0},null,{"$f":"IFERROR(VLOOKUP(B192,'Schedule V(b)'!$B$11:$Z$315,11,0),0)","v":"Select"},null,{"$f":"IFERROR(VLOOKUP(B192,'Schedule V(b)'!$B$11:$Z$315,13,0),0)","v":0},null,{"$f":"IFERROR(VLOOKUP(B192,'Schedule V(b)'!$B$11:$Z$315,15,0),0)","v":"Select"},null,null,null,null,null,{"$f":"IFERROR(VLOOKUP(B192,'Schedule V(b)'!$B$11:$Z$315,25,0),0)","v":0},null,{"$f":"IFERROR(VLOOKUP(B192,'Schedule V(b)'!$B$11:$Z$315,23,0),0)","v":0}]
[182,null,null,{"$f":"IFERROR(VLOOKUP(B193,'Schedule V(b)'!$B$11:$Z$315,3,0),0)","v":0},null,{"$f":"IFERROR(VLOOKUP(B193,'Schedule V(b)'!$B$11:$Z$315,7,0),0)","v":"Select"},null,{"$f":"IFERROR(VLOOKUP(B193,'Schedule V(b)'!$B$11:$Z$315,9,0),0)","v":0},null,{"$f":"IFERROR(VLOOKUP(B193,'Schedule V(b)'!$B$11:$Z$315,11,0),0)","v":"Select"},null,{"$f":"IFERROR(VLOOKUP(B193,'Schedule V(b)'!$B$11:$Z$315,13,0),0)","v":0},null,{"$f":"IFERROR(VLOOKUP(B193,'Schedule V(b)'!$B$11:$Z$315,15,0),0)","v":"Select"},null,null,null,null,null,{"$f":"IFERROR(VLOOKUP(B193,'Schedule V(b)'!$B$11:$Z$315,25,0),0)","v":0},null,{"$f":"IFERROR(VLOOKUP(B193,'Schedule V(b)'!$B$11:$Z$315,23,0),0)","v":0}]
[183,null,null,{"$f":"IFERROR(VLOOKUP(B194,'Schedule V(b)'!$B$11:$Z$315,3,0),0)","v":0},null,{"$f":"IFERROR(VLOOKUP(B194,'Schedule V(b)'!$B$11:$Z$315,7,0),0)","v":"Select"},null,{"$f":"IFERROR(VLOOKUP(B194,'Schedule V(b)'!$B$11:$Z$315,9,0),0)","v":0},null,{"$f":"IFERROR(VLOOKUP(B194,'Schedule V(b)'!$B$11:$Z$315,11,0),0)","v":"Select"},null,{"$f":"IFERROR(VLOOKUP(B194,'Schedule V(b)'!$B$11:$Z$315,13,0),0)","v":0},null,{"$f":"IFERROR(VLOOKUP(B194,'Schedule V(b)'!$B$11:$Z$315,15,0),0)","v":"Select"},null,null,null,null,null,{"$f":"IFERROR(VLOOKUP(B194,'Schedule V(b)'!$B$11:$Z$315,25,0),0)","v":0},null,{"$f":"IFERROR(VLOOKUP(B194,'Schedule V(b)'!$B$11:$Z$315,23,0),0)","v":0}]
[184,null,null,{"$f":"IFERROR(VLOOKUP(B195,'Schedule V(b)'!$B$11:$Z$315,3,0),0)","v":0},null,{"$f":"IFERROR(VLOOKUP(B195,'Schedule V(b)'!$B$11:$Z$315,7,0),0)","v":"Select"},null,{"$f":"IFERROR(VLOOKUP(B195,'Schedule V(b)'!$B$11:$Z$315,9,0),0)","v":0},null,{"$f":"IFERROR(VLOOKUP(B195,'Schedule V(b)'!$B$11:$Z$315,11,0),0)","v":"Select"},null,{"$f":"IFERROR(VLOOKUP(B195,'Schedule V(b)'!$B$11:$Z$315,13,0),0)","v":0},null,{"$f":"IFERROR(VLOOKUP(B195,'Schedule V(b)'!$B$11:$Z$315,15,0),0)","v":"Select"},null,null,null,null,null,{"$f":"IFERROR(VLOOKUP(B195,'Schedule V(b)'!$B$11:$Z$315,25,0),0)","v":0},null,{"$f":"IFERROR(VLOOKUP(B195,'Schedule V(b)'!$B$11:$Z$315,23,0),0)","v":0}]
[185,null,null,{"$f":"IFERROR(VLOOKUP(B196,'Schedule V(b)'!$B$11:$Z$315,3,0),0)","v":0},null,{"$f":"IFERROR(VLOOKUP(B196,'Schedule V(b)'!$B$11:$Z$315,7,0),0)","v":"Select"},null,{"$f":"IFERROR(VLOOKUP(B196,'Schedule V(b)'!$B$11:$Z$315,9,0),0)","v":0},null,{"$f":"IFERROR(VLOOKUP(B196,'Schedule V(b)'!$B$11:$Z$315,11,0),0)","v":"Select"},null,{"$f":"IFERROR(VLOOKUP(B196,'Schedule V(b)'!$B$11:$Z$315,13,0),0)","v":0},null,{"$f":"IFERROR(VLOOKUP(B196,'Schedule V(b)'!$B$11:$Z$315,15,0),0)","v":"Select"},null,null,null,null,null,{"$f":"IFERROR(VLOOKUP(B196,'Schedule V(b)'!$B$11:$Z$315,25,0),0)","v":0},null,{"$f":"IFERROR(VLOOKUP(B196,'Schedule V(b)'!$B$11:$Z$315,23,0),0)","v":0}]
[186,null,null,{"$f":"IFERROR(VLOOKUP(B197,'Schedule V(b)'!$B$11:$Z$315,3,0),0)","v":0},null,{"$f":"IFERROR(VLOOKUP(B197,'Schedule V(b)'!$B$11:$Z$315,7,0),0)","v":"Select"},null,{"$f":"IFERROR(VLOOKUP(B197,'Schedule V(b)'!$B$11:$Z$315,9,0),0)","v":0},null,{"$f":"IFERROR(VLOOKUP(B197,'Schedule V(b)'!$B$11:$Z$315,11,0),0)","v":"Select"},null,{"$f":"IFERROR(VLOOKUP(B197,'Schedule V(b)'!$B$11:$Z$315,13,0),0)","v":0},null,{"$f":"IFERROR(VLOOKUP(B197,'Schedule V(b)'!$B$11:$Z$315,15,0),0)","v":"Select"},null,null,null,null,null,{"$f":"IFERROR(VLOOKUP(B197,'Schedule V(b)'!$B$11:$Z$315,25,0),0)","v":0},null,{"$f":"IFERROR(VLOOKUP(B197,'Schedule V(b)'!$B$11:$Z$315,23,0),0)","v":0}]
[187,null,null,{"$f":"IFERROR(VLOOKUP(B198,'Schedule V(b)'!$B$11:$Z$315,3,0),0)","v":0},null,{"$f":"IFERROR(VLOOKUP(B198,'Schedule V(b)'!$B$11:$Z$315,7,0),0)","v":"Select"},null,{"$f":"IFERROR(VLOOKUP(B198,'Schedule V(b)'!$B$11:$Z$315,9,0),0)","v":0},null,{"$f":"IFERROR(VLOOKUP(B198,'Schedule V(b)'!$B$11:$Z$315,11,0),0)","v":"Select"},null,{"$f":"IFERROR(VLOOKUP(B198,'Schedule V(b)'!$B$11:$Z$315,13,0),0)","v":0},null,{"$f":"IFERROR(VLOOKUP(B198,'Schedule V(b)'!$B$11:$Z$315,15,0),0)","v":"Select"},null,null,null,null,null,{"$f":"IFERROR(VLOOKUP(B198,'Schedule V(b)'!$B$11:$Z$315,25,0),0)","v":0},null,{"$f":"IFERROR(VLOOKUP(B198,'Schedule V(b)'!$B$11:$Z$315,23,0),0)","v":0}]
[188,null,null,{"$f":"IFERROR(VLOOKUP(B199,'Schedule V(b)'!$B$11:$Z$315,3,0),0)","v":0},null,{"$f":"IFERROR(VLOOKUP(B199,'Schedule V(b)'!$B$11:$Z$315,7,0),0)","v":"Select"},null,{"$f":"IFERROR(VLOOKUP(B199,'Schedule V(b)'!$B$11:$Z$315,9,0),0)","v":0},null,{"$f":"IFERROR(VLOOKUP(B199,'Schedule V(b)'!$B$11:$Z$315,11,0),0)","v":"Select"},null,{"$f":"IFERROR(VLOOKUP(B199,'Schedule V(b)'!$B$11:$Z$315,13,0),0)","v":0},null,{"$f":"IFERROR(VLOOKUP(B199,'Schedule V(b)'!$B$11:$Z$315,15,0),0)","v":"Select"},null,null,null,null,null,{"$f":"IFERROR(VLOOKUP(B199,'Schedule V(b)'!$B$11:$Z$315,25,0),0)","v":0},null,{"$f":"IFERROR(VLOOKUP(B199,'Schedule V(b)'!$B$11:$Z$315,23,0),0)","v":0}]
[189,null,null,{"$f":"IFERROR(VLOOKUP(B200,'Schedule V(b)'!$B$11:$Z$315,3,0),0)","v":0},null,{"$f":"IFERROR(VLOOKUP(B200,'Schedule V(b)'!$B$11:$Z$315,7,0),0)","v":"Select"},null,{"$f":"IFERROR(VLOOKUP(B200,'Schedule V(b)'!$B$11:$Z$315,9,0),0)","v":0},null,{"$f":"IFERROR(VLOOKUP(B200,'Schedule V(b)'!$B$11:$Z$315,11,0),0)","v":"Select"},null,{"$f":"IFERROR(VLOOKUP(B200,'Schedule V(b)'!$B$11:$Z$315,13,0),0)","v":0},null,{"$f":"IFERROR(VLOOKUP(B200,'Schedule V(b)'!$B$11:$Z$315,15,0),0)","v":"Select"},null,null,null,null,null,{"$f":"IFERROR(VLOOKUP(B200,'Schedule V(b)'!$B$11:$Z$315,25,0),0)","v":0},null,{"$f":"IFERROR(VLOOKUP(B200,'Schedule V(b)'!$B$11:$Z$315,23,0),0)","v":0}]
[190,null,null,{"$f":"IFERROR(VLOOKUP(B201,'Schedule V(b)'!$B$11:$Z$315,3,0),0)","v":0},null,{"$f":"IFERROR(VLOOKUP(B201,'Schedule V(b)'!$B$11:$Z$315,7,0),0)","v":"Select"},null,{"$f":"IFERROR(VLOOKUP(B201,'Schedule V(b)'!$B$11:$Z$315,9,0),0)","v":0},null,{"$f":"IFERROR(VLOOKUP(B201,'Schedule V(b)'!$B$11:$Z$315,11,0),0)","v":"Select"},null,{"$f":"IFERROR(VLOOKUP(B201,'Schedule V(b)'!$B$11:$Z$315,13,0),0)","v":0},null,{"$f":"IFERROR(VLOOKUP(B201,'Schedule V(b)'!$B$11:$Z$315,15,0),0)","v":"Select"},null,null,null,null,null,{"$f":"IFERROR(VLOOKUP(B201,'Schedule V(b)'!$B$11:$Z$315,25,0),0)","v":0},null,{"$f":"IFERROR(VLOOKUP(B201,'Schedule V(b)'!$B$11:$Z$315,23,0),0)","v":0}]
[191,null,null,{"$f":"IFERROR(VLOOKUP(B202,'Schedule V(b)'!$B$11:$Z$315,3,0),0)","v":0},null,{"$f":"IFERROR(VLOOKUP(B202,'Schedule V(b)'!$B$11:$Z$315,7,0),0)","v":"Select"},null,{"$f":"IFERROR(VLOOKUP(B202,'Schedule V(b)'!$B$11:$Z$315,9,0),0)","v":0},null,{"$f":"IFERROR(VLOOKUP(B202,'Schedule V(b)'!$B$11:$Z$315,11,0),0)","v":"Select"},null,{"$f":"IFERROR(VLOOKUP(B202,'Schedule V(b)'!$B$11:$Z$315,13,0),0)","v":0},null,{"$f":"IFERROR(VLOOKUP(B202,'Schedule V(b)'!$B$11:$Z$315,15,0),0)","v":"Select"},null,null,null,null,null,{"$f":"IFERROR(VLOOKUP(B202,'Schedule V(b)'!$B$11:$Z$315,25,0),0)","v":0},null,{"$f":"IFERROR(VLOOKUP(B202,'Schedule V(b)'!$B$11:$Z$315,23,0),0)","v":0}]
[192,null,null,{"$f":"IFERROR(VLOOKUP(B203,'Schedule V(b)'!$B$11:$Z$315,3,0),0)","v":0},null,{"$f":"IFERROR(VLOOKUP(B203,'Schedule V(b)'!$B$11:$Z$315,7,0),0)","v":"Select"},null,{"$f":"IFERROR(VLOOKUP(B203,'Schedule V(b)'!$B$11:$Z$315,9,0),0)","v":0},null,{"$f":"IFERROR(VLOOKUP(B203,'Schedule V(b)'!$B$11:$Z$315,11,0),0)","v":"Select"},null,{"$f":"IFERROR(VLOOKUP(B203,'Schedule V(b)'!$B$11:$Z$315,13,0),0)","v":0},null,{"$f":"IFERROR(VLOOKUP(B203,'Schedule V(b)'!$B$11:$Z$315,15,0),0)","v":"Select"},null,null,null,null,null,{"$f":"IFERROR(VLOOKUP(B203,'Schedule V(b)'!$B$11:$Z$315,25,0),0)","v":0},null,{"$f":"IFERROR(VLOOKUP(B203,'Schedule V(b)'!$B$11:$Z$315,23,0),0)","v":0}]
[193,null,null,{"$f":"IFERROR(VLOOKUP(B204,'Schedule V(b)'!$B$11:$Z$315,3,0),0)","v":0},null,{"$f":"IFERROR(VLOOKUP(B204,'Schedule V(b)'!$B$11:$Z$315,7,0),0)","v":"Select"},null,{"$f":"IFERROR(VLOOKUP(B204,'Schedule V(b)'!$B$11:$Z$315,9,0),0)","v":0},null,{"$f":"IFERROR(VLOOKUP(B204,'Schedule V(b)'!$B$11:$Z$315,11,0),0)","v":"Select"},null,{"$f":"IFERROR(VLOOKUP(B204,'Schedule V(b)'!$B$11:$Z$315,13,0),0)","v":0},null,{"$f":"IFERROR(VLOOKUP(B204,'Schedule V(b)'!$B$11:$Z$315,15,0),0)","v":"Select"},null,null,null,null,null,{"$f":"IFERROR(VLOOKUP(B204,'Schedule V(b)'!$B$11:$Z$315,25,0),0)","v":0},null,{"$f":"IFERROR(VLOOKUP(B204,'Schedule V(b)'!$B$11:$Z$315,23,0),0)","v":0}]
[194,null,null,{"$f":"IFERROR(VLOOKUP(B205,'Schedule V(b)'!$B$11:$Z$315,3,0),0)","v":0},null,{"$f":"IFERROR(VLOOKUP(B205,'Schedule V(b)'!$B$11:$Z$315,7,0),0)","v":"Select"},null,{"$f":"IFERROR(VLOOKUP(B205,'Schedule V(b)'!$B$11:$Z$315,9,0),0)","v":0},null,{"$f":"IFERROR(VLOOKUP(B205,'Schedule V(b)'!$B$11:$Z$315,11,0),0)","v":"Select"},null,{"$f":"IFERROR(VLOOKUP(B205,'Schedule V(b)'!$B$11:$Z$315,13,0),0)","v":0},null,{"$f":"IFERROR(VLOOKUP(B205,'Schedule V(b)'!$B$11:$Z$315,15,0),0)","v":"Select"},null,null,null,null,null,{"$f":"IFERROR(VLOOKUP(B205,'Schedule V(b)'!$B$11:$Z$315,25,0),0)","v":0},null,{"$f":"IFERROR(VLOOKUP(B205,'Schedule V(b)'!$B$11:$Z$315,23,0),0)","v":0}]
[195,null,null,{"$f":"IFERROR(VLOOKUP(B206,'Schedule V(b)'!$B$11:$Z$315,3,0),0)","v":0},null,{"$f":"IFERROR(VLOOKUP(B206,'Schedule V(b)'!$B$11:$Z$315,7,0),0)","v":"Select"},null,{"$f":"IFERROR(VLOOKUP(B206,'Schedule V(b)'!$B$11:$Z$315,9,0),0)","v":0},null,{"$f":"IFERROR(VLOOKUP(B206,'Schedule V(b)'!$B$11:$Z$315,11,0),0)","v":"Select"},null,{"$f":"IFERROR(VLOOKUP(B206,'Schedule V(b)'!$B$11:$Z$315,13,0),0)","v":0},null,{"$f":"IFERROR(VLOOKUP(B206,'Schedule V(b)'!$B$11:$Z$315,15,0),0)","v":"Select"},null,null,null,null,null,{"$f":"IFERROR(VLOOKUP(B206,'Schedule V(b)'!$B$11:$Z$315,25,0),0)","v":0},null,{"$f":"IFERROR(VLOOKUP(B206,'Schedule V(b)'!$B$11:$Z$315,23,0),0)","v":0}]
[196,null,null,{"$f":"IFERROR(VLOOKUP(B207,'Schedule V(b)'!$B$11:$Z$315,3,0),0)","v":0},null,{"$f":"IFERROR(VLOOKUP(B207,'Schedule V(b)'!$B$11:$Z$315,7,0),0)","v":"Select"},null,{"$f":"IFERROR(VLOOKUP(B207,'Schedule V(b)'!$B$11:$Z$315,9,0),0)","v":0},null,{"$f":"IFERROR(VLOOKUP(B207,'Schedule V(b)'!$B$11:$Z$315,11,0),0)","v":"Select"},null,{"$f":"IFERROR(VLOOKUP(B207,'Schedule V(b)'!$B$11:$Z$315,13,0),0)","v":0},null,{"$f":"IFERROR(VLOOKUP(B207,'Schedule V(b)'!$B$11:$Z$315,15,0),0)","v":"Select"},null,null,null,null,null,{"$f":"IFERROR(VLOOKUP(B207,'Schedule V(b)'!$B$11:$Z$315,25,0),0)","v":0},null,{"$f":"IFERROR(VLOOKUP(B207,'Schedule V(b)'!$B$11:$Z$315,23,0),0)","v":0}]
[197,null,null,{"$f":"IFERROR(VLOOKUP(B208,'Schedule V(b)'!$B$11:$Z$315,3,0),0)","v":0},null,{"$f":"IFERROR(VLOOKUP(B208,'Schedule V(b)'!$B$11:$Z$315,7,0),0)","v":"Select"},null,{"$f":"IFERROR(VLOOKUP(B208,'Schedule V(b)'!$B$11:$Z$315,9,0),0)","v":0},null,{"$f":"IFERROR(VLOOKUP(B208,'Schedule V(b)'!$B$11:$Z$315,11,0),0)","v":"Select"},null,{"$f":"IFERROR(VLOOKUP(B208,'Schedule V(b)'!$B$11:$Z$315,13,0),0)","v":0},null,{"$f":"IFERROR(VLOOKUP(B208,'Schedule V(b)'!$B$11:$Z$315,15,0),0)","v":"Select"},null,null,null,null,null,{"$f":"IFERROR(VLOOKUP(B208,'Schedule V(b)'!$B$11:$Z$315,25,0),0)","v":0},null,{"$f":"IFERROR(VLOOKUP(B208,'Schedule V(b)'!$B$11:$Z$315,23,0),0)","v":0}]
[198,null,null,{"$f":"IFERROR(VLOOKUP(B209,'Schedule V(b)'!$B$11:$Z$315,3,0),0)","v":0},null,{"$f":"IFERROR(VLOOKUP(B209,'Schedule V(b)'!$B$11:$Z$315,7,0),0)","v":"Select"},null,{"$f":"IFERROR(VLOOKUP(B209,'Schedule V(b)'!$B$11:$Z$315,9,0),0)","v":0},null,{"$f":"IFERROR(VLOOKUP(B209,'Schedule V(b)'!$B$11:$Z$315,11,0),0)","v":"Select"},null,{"$f":"IFERROR(VLOOKUP(B209,'Schedule V(b)'!$B$11:$Z$315,13,0),0)","v":0},null,{"$f":"IFERROR(VLOOKUP(B209,'Schedule V(b)'!$B$11:$Z$315,15,0),0)","v":"Select"},null,null,null,null,null,{"$f":"IFERROR(VLOOKUP(B209,'Schedule V(b)'!$B$11:$Z$315,25,0),0)","v":0},null,{"$f":"IFERROR(VLOOKUP(B209,'Schedule V(b)'!$B$11:$Z$315,23,0),0)","v":0}]
[199,null,null,{"$f":"IFERROR(VLOOKUP(B210,'Schedule V(b)'!$B$11:$Z$315,3,0),0)","v":0},null,{"$f":"IFERROR(VLOOKUP(B210,'Schedule V(b)'!$B$11:$Z$315,7,0),0)","v":"Select"},null,{"$f":"IFERROR(VLOOKUP(B210,'Schedule V(b)'!$B$11:$Z$315,9,0),0)","v":0},null,{"$f":"IFERROR(VLOOKUP(B210,'Schedule V(b)'!$B$11:$Z$315,11,0),0)","v":"Select"},null,{"$f":"IFERROR(VLOOKUP(B210,'Schedule V(b)'!$B$11:$Z$315,13,0),0)","v":0},null,{"$f":"IFERROR(VLOOKUP(B210,'Schedule V(b)'!$B$11:$Z$315,15,0),0)","v":"Select"},null,null,null,null,null,{"$f":"IFERROR(VLOOKUP(B210,'Schedule V(b)'!$B$11:$Z$315,25,0),0)","v":0},null,{"$f":"IFERROR(VLOOKUP(B210,'Schedule V(b)'!$B$11:$Z$315,23,0),0)","v":0}]
[200,null,null,{"$f":"IFERROR(VLOOKUP(B211,'Schedule V(b)'!$B$11:$Z$315,3,0),0)","v":0},null,{"$f":"IFERROR(VLOOKUP(B211,'Schedule V(b)'!$B$11:$Z$315,7,0),0)","v":"Select"},null,{"$f":"IFERROR(VLOOKUP(B211,'Schedule V(b)'!$B$11:$Z$315,9,0),0)","v":0},null,{"$f":"IFERROR(VLOOKUP(B211,'Schedule V(b)'!$B$11:$Z$315,11,0),0)","v":"Select"},null,{"$f":"IFERROR(VLOOKUP(B211,'Schedule V(b)'!$B$11:$Z$315,13,0),0)","v":0},null,{"$f":"IFERROR(VLOOKUP(B211,'Schedule V(b)'!$B$11:$Z$315,15,0),0)","v":"Select"},null,null,null,null,null,{"$f":"IFERROR(VLOOKUP(B211,'Schedule V(b)'!$B$11:$Z$315,25,0),0)","v":0},null,{"$f":"IFERROR(VLOOKUP(B211,'Schedule V(b)'!$B$11:$Z$315,23,0),0)","v":0}]
[201,null,null,{"$f":"IFERROR(VLOOKUP(B212,'Schedule V(b)'!$B$11:$Z$315,3,0),0)","v":0},null,{"$f":"IFERROR(VLOOKUP(B212,'Schedule V(b)'!$B$11:$Z$315,7,0),0)","v":"Select"},null,{"$f":"IFERROR(VLOOKUP(B212,'Schedule V(b)'!$B$11:$Z$315,9,0),0)","v":0},null,{"$f":"IFERROR(VLOOKUP(B212,'Schedule V(b)'!$B$11:$Z$315,11,0),0)","v":"Select"},null,{"$f":"IFERROR(VLOOKUP(B212,'Schedule V(b)'!$B$11:$Z$315,13,0),0)","v":0},null,{"$f":"IFERROR(VLOOKUP(B212,'Schedule V(b)'!$B$11:$Z$315,15,0),0)","v":"Select"},null,null,null,null,null,{"$f":"IFERROR(VLOOKUP(B212,'Schedule V(b)'!$B$11:$Z$315,25,0),0)","v":0},null,{"$f":"IFERROR(VLOOKUP(B212,'Schedule V(b)'!$B$11:$Z$315,23,0),0)","v":0}]
[202,null,null,{"$f":"IFERROR(VLOOKUP(B213,'Schedule V(b)'!$B$11:$Z$315,3,0),0)","v":0},null,{"$f":"IFERROR(VLOOKUP(B213,'Schedule V(b)'!$B$11:$Z$315,7,0),0)","v":"Select"},null,{"$f":"IFERROR(VLOOKUP(B213,'Schedule V(b)'!$B$11:$Z$315,9,0),0)","v":0},null,{"$f":"IFERROR(VLOOKUP(B213,'Schedule V(b)'!$B$11:$Z$315,11,0),0)","v":"Select"},null,{"$f":"IFERROR(VLOOKUP(B213,'Schedule V(b)'!$B$11:$Z$315,13,0),0)","v":0},null,{"$f":"IFERROR(VLOOKUP(B213,'Schedule V(b)'!$B$11:$Z$315,15,0),0)","v":"Select"},null,null,null,null,null,{"$f":"IFERROR(VLOOKUP(B213,'Schedule V(b)'!$B$11:$Z$315,25,0),0)","v":0},null,{"$f":"IFERROR(VLOOKUP(B213,'Schedule V(b)'!$B$11:$Z$315,23,0),0)","v":0}]
[203,null,null,{"$f":"IFERROR(VLOOKUP(B214,'Schedule V(b)'!$B$11:$Z$315,3,0),0)","v":0},null,{"$f":"IFERROR(VLOOKUP(B214,'Schedule V(b)'!$B$11:$Z$315,7,0),0)","v":"Select"},null,{"$f":"IFERROR(VLOOKUP(B214,'Schedule V(b)'!$B$11:$Z$315,9,0),0)","v":0},null,{"$f":"IFERROR(VLOOKUP(B214,'Schedule V(b)'!$B$11:$Z$315,11,0),0)","v":"Select"},null,{"$f":"IFERROR(VLOOKUP(B214,'Schedule V(b)'!$B$11:$Z$315,13,0),0)","v":0},null,{"$f":"IFERROR(VLOOKUP(B214,'Schedule V(b)'!$B$11:$Z$315,15,0),0)","v":"Select"},null,null,null,null,null,{"$f":"IFERROR(VLOOKUP(B214,'Schedule V(b)'!$B$11:$Z$315,25,0),0)","v":0},null,{"$f":"IFERROR(VLOOKUP(B214,'Schedule V(b)'!$B$11:$Z$315,23,0),0)","v":0}]
[204,null,null,{"$f":"IFERROR(VLOOKUP(B215,'Schedule V(b)'!$B$11:$Z$315,3,0),0)","v":0},null,{"$f":"IFERROR(VLOOKUP(B215,'Schedule V(b)'!$B$11:$Z$315,7,0),0)","v":"Select"},null,{"$f":"IFERROR(VLOOKUP(B215,'Schedule V(b)'!$B$11:$Z$315,9,0),0)","v":0},null,{"$f":"IFERROR(VLOOKUP(B215,'Schedule V(b)'!$B$11:$Z$315,11,0),0)","v":"Select"},null,{"$f":"IFERROR(VLOOKUP(B215,'Schedule V(b)'!$B$11:$Z$315,13,0),0)","v":0},null,{"$f":"IFERROR(VLOOKUP(B215,'Schedule V(b)'!$B$11:$Z$315,15,0),0)","v":"Select"},null,null,null,null,null,{"$f":"IFERROR(VLOOKUP(B215,'Schedule V(b)'!$B$11:$Z$315,25,0),0)","v":0},null,{"$f":"IFERROR(VLOOKUP(B215,'Schedule V(b)'!$B$11:$Z$315,23,0),0)","v":0}]
[205,null,null,{"$f":"IFERROR(VLOOKUP(B216,'Schedule V(b)'!$B$11:$Z$315,3,0),0)","v":0},null,{"$f":"IFERROR(VLOOKUP(B216,'Schedule V(b)'!$B$11:$Z$315,7,0),0)","v":"Select"},null,{"$f":"IFERROR(VLOOKUP(B216,'Schedule V(b)'!$B$11:$Z$315,9,0),0)","v":0},null,{"$f":"IFERROR(VLOOKUP(B216,'Schedule V(b)'!$B$11:$Z$315,11,0),0)","v":"Select"},null,{"$f":"IFERROR(VLOOKUP(B216,'Schedule V(b)'!$B$11:$Z$315,13,0),0)","v":0},null,{"$f":"IFERROR(VLOOKUP(B216,'Schedule V(b)'!$B$11:$Z$315,15,0),0)","v":"Select"},null,null,null,null,null,{"$f":"IFERROR(VLOOKUP(B216,'Schedule V(b)'!$B$11:$Z$315,25,0),0)","v":0},null,{"$f":"IFERROR(VLOOKUP(B216,'Schedule V(b)'!$B$11:$Z$315,23,0),0)","v":0}]
[206,null,null,{"$f":"IFERROR(VLOOKUP(B217,'Schedule V(b)'!$B$11:$Z$315,3,0),0)","v":0},null,{"$f":"IFERROR(VLOOKUP(B217,'Schedule V(b)'!$B$11:$Z$315,7,0),0)","v":"Select"},null,{"$f":"IFERROR(VLOOKUP(B217,'Schedule V(b)'!$B$11:$Z$315,9,0),0)","v":0},null,{"$f":"IFERROR(VLOOKUP(B217,'Schedule V(b)'!$B$11:$Z$315,11,0),0)","v":"Select"},null,{"$f":"IFERROR(VLOOKUP(B217,'Schedule V(b)'!$B$11:$Z$315,13,0),0)","v":0},null,{"$f":"IFERROR(VLOOKUP(B217,'Schedule V(b)'!$B$11:$Z$315,15,0),0)","v":"Select"},null,null,null,null,null,{"$f":"IFERROR(VLOOKUP(B217,'Schedule V(b)'!$B$11:$Z$315,25,0),0)","v":0},null,{"$f":"IFERROR(VLOOKUP(B217,'Schedule V(b)'!$B$11:$Z$315,23,0),0)","v":0}]
[207,null,null,{"$f":"IFERROR(VLOOKUP(B218,'Schedule V(b)'!$B$11:$Z$315,3,0),0)","v":0},null,{"$f":"IFERROR(VLOOKUP(B218,'Schedule V(b)'!$B$11:$Z$315,7,0),0)","v":"Select"},null,{"$f":"IFERROR(VLOOKUP(B218,'Schedule V(b)'!$B$11:$Z$315,9,0),0)","v":0},null,{"$f":"IFERROR(VLOOKUP(B218,'Schedule V(b)'!$B$11:$Z$315,11,0),0)","v":"Select"},null,{"$f":"IFERROR(VLOOKUP(B218,'Schedule V(b)'!$B$11:$Z$315,13,0),0)","v":0},null,{"$f":"IFERROR(VLOOKUP(B218,'Schedule V(b)'!$B$11:$Z$315,15,0),0)","v":"Select"},null,null,null,null,null,{"$f":"IFERROR(VLOOKUP(B218,'Schedule V(b)'!$B$11:$Z$315,25,0),0)","v":0},null,{"$f":"IFERROR(VLOOKUP(B218,'Schedule V(b)'!$B$11:$Z$315,23,0),0)","v":0}]
[208,null,null,{"$f":"IFERROR(VLOOKUP(B219,'Schedule V(b)'!$B$11:$Z$315,3,0),0)","v":0},null,{"$f":"IFERROR(VLOOKUP(B219,'Schedule V(b)'!$B$11:$Z$315,7,0),0)","v":"Select"},null,{"$f":"IFERROR(VLOOKUP(B219,'Schedule V(b)'!$B$11:$Z$315,9,0),0)","v":0},null,{"$f":"IFERROR(VLOOKUP(B219,'Schedule V(b)'!$B$11:$Z$315,11,0),0)","v":"Select"},null,{"$f":"IFERROR(VLOOKUP(B219,'Schedule V(b)'!$B$11:$Z$315,13,0),0)","v":0},null,{"$f":"IFERROR(VLOOKUP(B219,'Schedule V(b)'!$B$11:$Z$315,15,0),0)","v":"Select"},null,null,null,null,null,{"$f":"IFERROR(VLOOKUP(B219,'Schedule V(b)'!$B$11:$Z$315,25,0),0)","v":0},null,{"$f":"IFERROR(VLOOKUP(B219,'Schedule V(b)'!$B$11:$Z$315,23,0),0)","v":0}]
[209,null,null,{"$f":"IFERROR(VLOOKUP(B220,'Schedule V(b)'!$B$11:$Z$315,3,0),0)","v":0},null,{"$f":"IFERROR(VLOOKUP(B220,'Schedule V(b)'!$B$11:$Z$315,7,0),0)","v":"Select"},null,{"$f":"IFERROR(VLOOKUP(B220,'Schedule V(b)'!$B$11:$Z$315,9,0),0)","v":0},null,{"$f":"IFERROR(VLOOKUP(B220,'Schedule V(b)'!$B$11:$Z$315,11,0),0)","v":"Select"},null,{"$f":"IFERROR(VLOOKUP(B220,'Schedule V(b)'!$B$11:$Z$315,13,0),0)","v":0},null,{"$f":"IFERROR(VLOOKUP(B220,'Schedule V(b)'!$B$11:$Z$315,15,0),0)","v":"Select"},null,null,null,null,null,{"$f":"IFERROR(VLOOKUP(B220,'Schedule V(b)'!$B$11:$Z$315,25,0),0)","v":0},null,{"$f":"IFERROR(VLOOKUP(B220,'Schedule V(b)'!$B$11:$Z$315,23,0),0)","v":0}]
[210,null,null,{"$f":"IFERROR(VLOOKUP(B221,'Schedule V(b)'!$B$11:$Z$315,3,0),0)","v":0},null,{"$f":"IFERROR(VLOOKUP(B221,'Schedule V(b)'!$B$11:$Z$315,7,0),0)","v":"Select"},null,{"$f":"IFERROR(VLOOKUP(B221,'Schedule V(b)'!$B$11:$Z$315,9,0),0)","v":0},null,{"$f":"IFERROR(VLOOKUP(B221,'Schedule V(b)'!$B$11:$Z$315,11,0),0)","v":"Select"},null,{"$f":"IFERROR(VLOOKUP(B221,'Schedule V(b)'!$B$11:$Z$315,13,0),0)","v":0},null,{"$f":"IFERROR(VLOOKUP(B221,'Schedule V(b)'!$B$11:$Z$315,15,0),0)","v":"Select"},null,null,null,null,null,{"$f":"IFERROR(VLOOKUP(B221,'Schedule V(b)'!$B$11:$Z$315,25,0),0)","v":0},null,{"$f":"IFERROR(VLOOKUP(B221,'Schedule V(b)'!$B$11:$Z$315,23,0),0)","v":0}]
[211,null,null,{"$f":"IFERROR(VLOOKUP(B222,'Schedule V(b)'!$B$11:$Z$315,3,0),0)","v":0},null,{"$f":"IFERROR(VLOOKUP(B222,'Schedule V(b)'!$B$11:$Z$315,7,0),0)","v":"Select"},null,{"$f":"IFERROR(VLOOKUP(B222,'Schedule V(b)'!$B$11:$Z$315,9,0),0)","v":0},null,{"$f":"IFERROR(VLOOKUP(B222,'Schedule V(b)'!$B$11:$Z$315,11,0),0)","v":"Select"},null,{"$f":"IFERROR(VLOOKUP(B222,'Schedule V(b)'!$B$11:$Z$315,13,0),0)","v":0},null,{"$f":"IFERROR(VLOOKUP(B222,'Schedule V(b)'!$B$11:$Z$315,15,0),0)","v":"Select"},null,null,null,null,null,{"$f":"IFERROR(VLOOKUP(B222,'Schedule V(b)'!$B$11:$Z$315,25,0),0)","v":0},null,{"$f":"IFERROR(VLOOKUP(B222,'Schedule V(b)'!$B$11:$Z$315,23,0),0)","v":0}]
[212,null,null,{"$f":"IFERROR(VLOOKUP(B223,'Schedule V(b)'!$B$11:$Z$315,3,0),0)","v":0},null,{"$f":"IFERROR(VLOOKUP(B223,'Schedule V(b)'!$B$11:$Z$315,7,0),0)","v":"Select"},null,{"$f":"IFERROR(VLOOKUP(B223,'Schedule V(b)'!$B$11:$Z$315,9,0),0)","v":0},null,{"$f":"IFERROR(VLOOKUP(B223,'Schedule V(b)'!$B$11:$Z$315,11,0),0)","v":"Select"},null,{"$f":"IFERROR(VLOOKUP(B223,'Schedule V(b)'!$B$11:$Z$315,13,0),0)","v":0},null,{"$f":"IFERROR(VLOOKUP(B223,'Schedule V(b)'!$B$11:$Z$315,15,0),0)","v":"Select"},null,null,null,null,null,{"$f":"IFERROR(VLOOKUP(B223,'Schedule V(b)'!$B$11:$Z$315,25,0),0)","v":0},null,{"$f":"IFERROR(VLOOKUP(B223,'Schedule V(b)'!$B$11:$Z$315,23,0),0)","v":0}]
[213,null,null,{"$f":"IFERROR(VLOOKUP(B224,'Schedule V(b)'!$B$11:$Z$315,3,0),0)","v":0},null,{"$f":"IFERROR(VLOOKUP(B224,'Schedule V(b)'!$B$11:$Z$315,7,0),0)","v":"Select"},null,{"$f":"IFERROR(VLOOKUP(B224,'Schedule V(b)'!$B$11:$Z$315,9,0),0)","v":0},null,{"$f":"IFERROR(VLOOKUP(B224,'Schedule V(b)'!$B$11:$Z$315,11,0),0)","v":"Select"},null,{"$f":"IFERROR(VLOOKUP(B224,'Schedule V(b)'!$B$11:$Z$315,13,0),0)","v":0},null,{"$f":"IFERROR(VLOOKUP(B224,'Schedule V(b)'!$B$11:$Z$315,15,0),0)","v":"Select"},null,null,null,null,null,{"$f":"IFERROR(VLOOKUP(B224,'Schedule V(b)'!$B$11:$Z$315,25,0),0)","v":0},null,{"$f":"IFERROR(VLOOKUP(B224,'Schedule V(b)'!$B$11:$Z$315,23,0),0)","v":0}]
[214,null,null,{"$f":"IFERROR(VLOOKUP(B225,'Schedule V(b)'!$B$11:$Z$315,3,0),0)","v":0},null,{"$f":"IFERROR(VLOOKUP(B225,'Schedule V(b)'!$B$11:$Z$315,7,0),0)","v":"Select"},null,{"$f":"IFERROR(VLOOKUP(B225,'Schedule V(b)'!$B$11:$Z$315,9,0),0)","v":0},null,{"$f":"IFERROR(VLOOKUP(B225,'Schedule V(b)'!$B$11:$Z$315,11,0),0)","v":"Select"},null,{"$f":"IFERROR(VLOOKUP(B225,'Schedule V(b)'!$B$11:$Z$315,13,0),0)","v":0},null,{"$f":"IFERROR(VLOOKUP(B225,'Schedule V(b)'!$B$11:$Z$315,15,0),0)","v":"Select"},null,null,null,null,null,{"$f":"IFERROR(VLOOKUP(B225,'Schedule V(b)'!$B$11:$Z$315,25,0),0)","v":0},null,{"$f":"IFERROR(VLOOKUP(B225,'Schedule V(b)'!$B$11:$Z$315,23,0),0)","v":0}]
[215,null,null,{"$f":"IFERROR(VLOOKUP(B226,'Schedule V(b)'!$B$11:$Z$315,3,0),0)","v":0},null,{"$f":"IFERROR(VLOOKUP(B226,'Schedule V(b)'!$B$11:$Z$315,7,0),0)","v":"Select"},null,{"$f":"IFERROR(VLOOKUP(B226,'Schedule V(b)'!$B$11:$Z$315,9,0),0)","v":0},null,{"$f":"IFERROR(VLOOKUP(B226,'Schedule V(b)'!$B$11:$Z$315,11,0),0)","v":"Select"},null,{"$f":"IFERROR(VLOOKUP(B226,'Schedule V(b)'!$B$11:$Z$315,13,0),0)","v":0},null,{"$f":"IFERROR(VLOOKUP(B226,'Schedule V(b)'!$B$11:$Z$315,15,0),0)","v":"Select"},null,null,null,null,null,{"$f":"IFERROR(VLOOKUP(B226,'Schedule V(b)'!$B$11:$Z$315,25,0),0)","v":0},null,{"$f":"IFERROR(VLOOKUP(B226,'Schedule V(b)'!$B$11:$Z$315,23,0),0)","v":0}]
[216,null,null,{"$f":"IFERROR(VLOOKUP(B227,'Schedule V(b)'!$B$11:$Z$315,3,0),0)","v":0},null,{"$f":"IFERROR(VLOOKUP(B227,'Schedule V(b)'!$B$11:$Z$315,7,0),0)","v":"Select"},null,{"$f":"IFERROR(VLOOKUP(B227,'Schedule V(b)'!$B$11:$Z$315,9,0),0)","v":0},null,{"$f":"IFERROR(VLOOKUP(B227,'Schedule V(b)'!$B$11:$Z$315,11,0),0)","v":"Select"},null,{"$f":"IFERROR(VLOOKUP(B227,'Schedule V(b)'!$B$11:$Z$315,13,0),0)","v":0},null,{"$f":"IFERROR(VLOOKUP(B227,'Schedule V(b)'!$B$11:$Z$315,15,0),0)","v":"Select"},null,null,null,null,null,{"$f":"IFERROR(VLOOKUP(B227,'Schedule V(b)'!$B$11:$Z$315,25,0),0)","v":0},null,{"$f":"IFERROR(VLOOKUP(B227,'Schedule V(b)'!$B$11:$Z$315,23,0),0)","v":0}]
[217,null,null,{"$f":"IFERROR(VLOOKUP(B228,'Schedule V(b)'!$B$11:$Z$315,3,0),0)","v":0},null,{"$f":"IFERROR(VLOOKUP(B228,'Schedule V(b)'!$B$11:$Z$315,7,0),0)","v":"Select"},null,{"$f":"IFERROR(VLOOKUP(B228,'Schedule V(b)'!$B$11:$Z$315,9,0),0)","v":0},null,{"$f":"IFERROR(VLOOKUP(B228,'Schedule V(b)'!$B$11:$Z$315,11,0),0)","v":"Select"},null,{"$f":"IFERROR(VLOOKUP(B228,'Schedule V(b)'!$B$11:$Z$315,13,0),0)","v":0},null,{"$f":"IFERROR(VLOOKUP(B228,'Schedule V(b)'!$B$11:$Z$315,15,0),0)","v":"Select"},null,null,null,null,null,{"$f":"IFERROR(VLOOKUP(B228,'Schedule V(b)'!$B$11:$Z$315,25,0),0)","v":0},null,{"$f":"IFERROR(VLOOKUP(B228,'Schedule V(b)'!$B$11:$Z$315,23,0),0)","v":0}]
[218,null,null,{"$f":"IFERROR(VLOOKUP(B229,'Schedule V(b)'!$B$11:$Z$315,3,0),0)","v":0},null,{"$f":"IFERROR(VLOOKUP(B229,'Schedule V(b)'!$B$11:$Z$315,7,0),0)","v":"Select"},null,{"$f":"IFERROR(VLOOKUP(B229,'Schedule V(b)'!$B$11:$Z$315,9,0),0)","v":0},null,{"$f":"IFERROR(VLOOKUP(B229,'Schedule V(b)'!$B$11:$Z$315,11,0),0)","v":"Select"},null,{"$f":"IFERROR(VLOOKUP(B229,'Schedule V(b)'!$B$11:$Z$315,13,0),0)","v":0},null,{"$f":"IFERROR(VLOOKUP(B229,'Schedule V(b)'!$B$11:$Z$315,15,0),0)","v":"Select"},null,null,null,null,null,{"$f":"IFERROR(VLOOKUP(B229,'Schedule V(b)'!$B$11:$Z$315,25,0),0)","v":0},null,{"$f":"IFERROR(VLOOKUP(B229,'Schedule V(b)'!$B$11:$Z$315,23,0),0)","v":0}]
[219,null,null,{"$f":"IFERROR(VLOOKUP(B230,'Schedule V(b)'!$B$11:$Z$315,3,0),0)","v":0},null,{"$f":"IFERROR(VLOOKUP(B230,'Schedule V(b)'!$B$11:$Z$315,7,0),0)","v":"Select"},null,{"$f":"IFERROR(VLOOKUP(B230,'Schedule V(b)'!$B$11:$Z$315,9,0),0)","v":0},null,{"$f":"IFERROR(VLOOKUP(B230,'Schedule V(b)'!$B$11:$Z$315,11,0),0)","v":"Select"},null,{"$f":"IFERROR(VLOOKUP(B230,'Schedule V(b)'!$B$11:$Z$315,13,0),0)","v":0},null,{"$f":"IFERROR(VLOOKUP(B230,'Schedule V(b)'!$B$11:$Z$315,15,0),0)","v":"Select"},null,null,null,null,null,{"$f":"IFERROR(VLOOKUP(B230,'Schedule V(b)'!$B$11:$Z$315,25,0),0)","v":0},null,{"$f":"IFERROR(VLOOKUP(B230,'Schedule V(b)'!$B$11:$Z$315,23,0),0)","v":0}]
[220,null,null,{"$f":"IFERROR(VLOOKUP(B231,'Schedule V(b)'!$B$11:$Z$315,3,0),0)","v":0},null,{"$f":"IFERROR(VLOOKUP(B231,'Schedule V(b)'!$B$11:$Z$315,7,0),0)","v":"Select"},null,{"$f":"IFERROR(VLOOKUP(B231,'Schedule V(b)'!$B$11:$Z$315,9,0),0)","v":0},null,{"$f":"IFERROR(VLOOKUP(B231,'Schedule V(b)'!$B$11:$Z$315,11,0),0)","v":"Select"},null,{"$f":"IFERROR(VLOOKUP(B231,'Schedule V(b)'!$B$11:$Z$315,13,0),0)","v":0},null,{"$f":"IFERROR(VLOOKUP(B231,'Schedule V(b)'!$B$11:$Z$315,15,0),0)","v":"Select"},null,null,null,null,null,{"$f":"IFERROR(VLOOKUP(B231,'Schedule V(b)'!$B$11:$Z$315,25,0),0)","v":0},null,{"$f":"IFERROR(VLOOKUP(B231,'Schedule V(b)'!$B$11:$Z$315,23,0),0)","v":0}]
[221,null,null,{"$f":"IFERROR(VLOOKUP(B232,'Schedule V(b)'!$B$11:$Z$315,3,0),0)","v":0},null,{"$f":"IFERROR(VLOOKUP(B232,'Schedule V(b)'!$B$11:$Z$315,7,0),0)","v":"Select"},null,{"$f":"IFERROR(VLOOKUP(B232,'Schedule V(b)'!$B$11:$Z$315,9,0),0)","v":0},null,{"$f":"IFERROR(VLOOKUP(B232,'Schedule V(b)'!$B$11:$Z$315,11,0),0)","v":"Select"},null,{"$f":"IFERROR(VLOOKUP(B232,'Schedule V(b)'!$B$11:$Z$315,13,0),0)","v":0},null,{"$f":"IFERROR(VLOOKUP(B232,'Schedule V(b)'!$B$11:$Z$315,15,0),0)","v":"Select"},null,null,null,null,null,{"$f":"IFERROR(VLOOKUP(B232,'Schedule V(b)'!$B$11:$Z$315,25,0),0)","v":0},null,{"$f":"IFERROR(VLOOKUP(B232,'Schedule V(b)'!$B$11:$Z$315,23,0),0)","v":0}]
[222,null,null,{"$f":"IFERROR(VLOOKUP(B233,'Schedule V(b)'!$B$11:$Z$315,3,0),0)","v":0},null,{"$f":"IFERROR(VLOOKUP(B233,'Schedule V(b)'!$B$11:$Z$315,7,0),0)","v":"Select"},null,{"$f":"IFERROR(VLOOKUP(B233,'Schedule V(b)'!$B$11:$Z$315,9,0),0)","v":0},null,{"$f":"IFERROR(VLOOKUP(B233,'Schedule V(b)'!$B$11:$Z$315,11,0),0)","v":"Select"},null,{"$f":"IFERROR(VLOOKUP(B233,'Schedule V(b)'!$B$11:$Z$315,13,0),0)","v":0},null,{"$f":"IFERROR(VLOOKUP(B233,'Schedule V(b)'!$B$11:$Z$315,15,0),0)","v":"Select"},null,null,null,null,null,{"$f":"IFERROR(VLOOKUP(B233,'Schedule V(b)'!$B$11:$Z$315,25,0),0)","v":0},null,{"$f":"IFERROR(VLOOKUP(B233,'Schedule V(b)'!$B$11:$Z$315,23,0),0)","v":0}]
[223,null,null,{"$f":"IFERROR(VLOOKUP(B234,'Schedule V(b)'!$B$11:$Z$315,3,0),0)","v":0},null,{"$f":"IFERROR(VLOOKUP(B234,'Schedule V(b)'!$B$11:$Z$315,7,0),0)","v":"Select"},null,{"$f":"IFERROR(VLOOKUP(B234,'Schedule V(b)'!$B$11:$Z$315,9,0),0)","v":0},null,{"$f":"IFERROR(VLOOKUP(B234,'Schedule V(b)'!$B$11:$Z$315,11,0),0)","v":"Select"},null,{"$f":"IFERROR(VLOOKUP(B234,'Schedule V(b)'!$B$11:$Z$315,13,0),0)","v":0},null,{"$f":"IFERROR(VLOOKUP(B234,'Schedule V(b)'!$B$11:$Z$315,15,0),0)","v":"Select"},null,null,null,null,null,{"$f":"IFERROR(VLOOKUP(B234,'Schedule V(b)'!$B$11:$Z$315,25,0),0)","v":0},null,{"$f":"IFERROR(VLOOKUP(B234,'Schedule V(b)'!$B$11:$Z$315,23,0),0)","v":0}]
[224,null,null,{"$f":"IFERROR(VLOOKUP(B235,'Schedule V(b)'!$B$11:$Z$315,3,0),0)","v":0},null,{"$f":"IFERROR(VLOOKUP(B235,'Schedule V(b)'!$B$11:$Z$315,7,0),0)","v":"Select"},null,{"$f":"IFERROR(VLOOKUP(B235,'Schedule V(b)'!$B$11:$Z$315,9,0),0)","v":0},null,{"$f":"IFERROR(VLOOKUP(B235,'Schedule V(b)'!$B$11:$Z$315,11,0),0)","v":"Select"},null,{"$f":"IFERROR(VLOOKUP(B235,'Schedule V(b)'!$B$11:$Z$315,13,0),0)","v":0},null,{"$f":"IFERROR(VLOOKUP(B235,'Schedule V(b)'!$B$11:$Z$315,15,0),0)","v":"Select"},null,null,null,null,null,{"$f":"IFERROR(VLOOKUP(B235,'Schedule V(b)'!$B$11:$Z$315,25,0),0)","v":0},null,{"$f":"IFERROR(VLOOKUP(B235,'Schedule V(b)'!$B$11:$Z$315,23,0),0)","v":0}]
[225,null,null,{"$f":"IFERROR(VLOOKUP(B236,'Schedule V(b)'!$B$11:$Z$315,3,0),0)","v":0},null,{"$f":"IFERROR(VLOOKUP(B236,'Schedule V(b)'!$B$11:$Z$315,7,0),0)","v":"Select"},null,{"$f":"IFERROR(VLOOKUP(B236,'Schedule V(b)'!$B$11:$Z$315,9,0),0)","v":0},null,{"$f":"IFERROR(VLOOKUP(B236,'Schedule V(b)'!$B$11:$Z$315,11,0),0)","v":"Select"},null,{"$f":"IFERROR(VLOOKUP(B236,'Schedule V(b)'!$B$11:$Z$315,13,0),0)","v":0},null,{"$f":"IFERROR(VLOOKUP(B236,'Schedule V(b)'!$B$11:$Z$315,15,0),0)","v":"Select"},null,null,null,null,null,{"$f":"IFERROR(VLOOKUP(B236,'Schedule V(b)'!$B$11:$Z$315,25,0),0)","v":0},null,{"$f":"IFERROR(VLOOKUP(B236,'Schedule V(b)'!$B$11:$Z$315,23,0),0)","v":0}]
[226,null,null,{"$f":"IFERROR(VLOOKUP(B237,'Schedule V(b)'!$B$11:$Z$315,3,0),0)","v":0},null,{"$f":"IFERROR(VLOOKUP(B237,'Schedule V(b)'!$B$11:$Z$315,7,0),0)","v":"Select"},null,{"$f":"IFERROR(VLOOKUP(B237,'Schedule V(b)'!$B$11:$Z$315,9,0),0)","v":0},null,{"$f":"IFERROR(VLOOKUP(B237,'Schedule V(b)'!$B$11:$Z$315,11,0),0)","v":"Select"},null,{"$f":"IFERROR(VLOOKUP(B237,'Schedule V(b)'!$B$11:$Z$315,13,0),0)","v":0},null,{"$f":"IFERROR(VLOOKUP(B237,'Schedule V(b)'!$B$11:$Z$315,15,0),0)","v":"Select"},null,null,null,null,null,{"$f":"IFERROR(VLOOKUP(B237,'Schedule V(b)'!$B$11:$Z$315,25,0),0)","v":0},null,{"$f":"IFERROR(VLOOKUP(B237,'Schedule V(b)'!$B$11:$Z$315,23,0),0)","v":0}]
[227,null,null,{"$f":"IFERROR(VLOOKUP(B238,'Schedule V(b)'!$B$11:$Z$315,3,0),0)","v":0},null,{"$f":"IFERROR(VLOOKUP(B238,'Schedule V(b)'!$B$11:$Z$315,7,0),0)","v":"Select"},null,{"$f":"IFERROR(VLOOKUP(B238,'Schedule V(b)'!$B$11:$Z$315,9,0),0)","v":0},null,{"$f":"IFERROR(VLOOKUP(B238,'Schedule V(b)'!$B$11:$Z$315,11,0),0)","v":"Select"},null,{"$f":"IFERROR(VLOOKUP(B238,'Schedule V(b)'!$B$11:$Z$315,13,0),0)","v":0},null,{"$f":"IFERROR(VLOOKUP(B238,'Schedule V(b)'!$B$11:$Z$315,15,0),0)","v":"Select"},null,null,null,null,null,{"$f":"IFERROR(VLOOKUP(B238,'Schedule V(b)'!$B$11:$Z$315,25,0),0)","v":0},null,{"$f":"IFERROR(VLOOKUP(B238,'Schedule V(b)'!$B$11:$Z$315,23,0),0)","v":0}]
[228,null,null,{"$f":"IFERROR(VLOOKUP(B239,'Schedule V(b)'!$B$11:$Z$315,3,0),0)","v":0},null,{"$f":"IFERROR(VLOOKUP(B239,'Schedule V(b)'!$B$11:$Z$315,7,0),0)","v":"Select"},null,{"$f":"IFERROR(VLOOKUP(B239,'Schedule V(b)'!$B$11:$Z$315,9,0),0)","v":0},null,{"$f":"IFERROR(VLOOKUP(B239,'Schedule V(b)'!$B$11:$Z$315,11,0),0)","v":"Select"},null,{"$f":"IFERROR(VLOOKUP(B239,'Schedule V(b)'!$B$11:$Z$315,13,0),0)","v":0},null,{"$f":"IFERROR(VLOOKUP(B239,'Schedule V(b)'!$B$11:$Z$315,15,0),0)","v":"Select"},null,null,null,null,null,{"$f":"IFERROR(VLOOKUP(B239,'Schedule V(b)'!$B$11:$Z$315,25,0),0)","v":0},null,{"$f":"IFERROR(VLOOKUP(B239,'Schedule V(b)'!$B$11:$Z$315,23,0),0)","v":0}]
[229,null,null,{"$f":"IFERROR(VLOOKUP(B240,'Schedule V(b)'!$B$11:$Z$315,3,0),0)","v":0},null,{"$f":"IFERROR(VLOOKUP(B240,'Schedule V(b)'!$B$11:$Z$315,7,0),0)","v":"Select"},null,{"$f":"IFERROR(VLOOKUP(B240,'Schedule V(b)'!$B$11:$Z$315,9,0),0)","v":0},null,{"$f":"IFERROR(VLOOKUP(B240,'Schedule V(b)'!$B$11:$Z$315,11,0),0)","v":"Select"},null,{"$f":"IFERROR(VLOOKUP(B240,'Schedule V(b)'!$B$11:$Z$315,13,0),0)","v":0},null,{"$f":"IFERROR(VLOOKUP(B240,'Schedule V(b)'!$B$11:$Z$315,15,0),0)","v":"Select"},null,null,null,null,null,{"$f":"IFERROR(VLOOKUP(B240,'Schedule V(b)'!$B$11:$Z$315,25,0),0)","v":0},null,{"$f":"IFERROR(VLOOKUP(B240,'Schedule V(b)'!$B$11:$Z$315,23,0),0)","v":0}]
[230,null,null,{"$f":"IFERROR(VLOOKUP(B241,'Schedule V(b)'!$B$11:$Z$315,3,0),0)","v":0},null,{"$f":"IFERROR(VLOOKUP(B241,'Schedule V(b)'!$B$11:$Z$315,7,0),0)","v":"Select"},null,{"$f":"IFERROR(VLOOKUP(B241,'Schedule V(b)'!$B$11:$Z$315,9,0),0)","v":0},null,{"$f":"IFERROR(VLOOKUP(B241,'Schedule V(b)'!$B$11:$Z$315,11,0),0)","v":"Select"},null,{"$f":"IFERROR(VLOOKUP(B241,'Schedule V(b)'!$B$11:$Z$315,13,0),0)","v":0},null,{"$f":"IFERROR(VLOOKUP(B241,'Schedule V(b)'!$B$11:$Z$315,15,0),0)","v":"Select"},null,null,null,null,null,{"$f":"IFERROR(VLOOKUP(B241,'Schedule V(b)'!$B$11:$Z$315,25,0),0)","v":0},null,{"$f":"IFERROR(VLOOKUP(B241,'Schedule V(b)'!$B$11:$Z$315,23,0),0)","v":0}]
[231,null,null,{"$f":"IFERROR(VLOOKUP(B242,'Schedule V(b)'!$B$11:$Z$315,3,0),0)","v":0},null,{"$f":"IFERROR(VLOOKUP(B242,'Schedule V(b)'!$B$11:$Z$315,7,0),0)","v":"Select"},null,{"$f":"IFERROR(VLOOKUP(B242,'Schedule V(b)'!$B$11:$Z$315,9,0),0)","v":0},null,{"$f":"IFERROR(VLOOKUP(B242,'Schedule V(b)'!$B$11:$Z$315,11,0),0)","v":"Select"},null,{"$f":"IFERROR(VLOOKUP(B242,'Schedule V(b)'!$B$11:$Z$315,13,0),0)","v":0},null,{"$f":"IFERROR(VLOOKUP(B242,'Schedule V(b)'!$B$11:$Z$315,15,0),0)","v":"Select"},null,null,null,null,null,{"$f":"IFERROR(VLOOKUP(B242,'Schedule V(b)'!$B$11:$Z$315,25,0),0)","v":0},null,{"$f":"IFERROR(VLOOKUP(B242,'Schedule V(b)'!$B$11:$Z$315,23,0),0)","v":0}]
[232,null,null,{"$f":"IFERROR(VLOOKUP(B243,'Schedule V(b)'!$B$11:$Z$315,3,0),0)","v":0},null,{"$f":"IFERROR(VLOOKUP(B243,'Schedule V(b)'!$B$11:$Z$315,7,0),0)","v":"Select"},null,{"$f":"IFERROR(VLOOKUP(B243,'Schedule V(b)'!$B$11:$Z$315,9,0),0)","v":0},null,{"$f":"IFERROR(VLOOKUP(B243,'Schedule V(b)'!$B$11:$Z$315,11,0),0)","v":"Select"},null,{"$f":"IFERROR(VLOOKUP(B243,'Schedule V(b)'!$B$11:$Z$315,13,0),0)","v":0},null,{"$f":"IFERROR(VLOOKUP(B243,'Schedule V(b)'!$B$11:$Z$315,15,0),0)","v":"Select"},null,null,null,null,null,{"$f":"IFERROR(VLOOKUP(B243,'Schedule V(b)'!$B$11:$Z$315,25,0),0)","v":0},null,{"$f":"IFERROR(VLOOKUP(B243,'Schedule V(b)'!$B$11:$Z$315,23,0),0)","v":0}]
[233,null,null,{"$f":"IFERROR(VLOOKUP(B244,'Schedule V(b)'!$B$11:$Z$315,3,0),0)","v":0},null,{"$f":"IFERROR(VLOOKUP(B244,'Schedule V(b)'!$B$11:$Z$315,7,0),0)","v":"Select"},null,{"$f":"IFERROR(VLOOKUP(B244,'Schedule V(b)'!$B$11:$Z$315,9,0),0)","v":0},null,{"$f":"IFERROR(VLOOKUP(B244,'Schedule V(b)'!$B$11:$Z$315,11,0),0)","v":"Select"},null,{"$f":"IFERROR(VLOOKUP(B244,'Schedule V(b)'!$B$11:$Z$315,13,0),0)","v":0},null,{"$f":"IFERROR(VLOOKUP(B244,'Schedule V(b)'!$B$11:$Z$315,15,0),0)","v":"Select"},null,null,null,null,null,{"$f":"IFERROR(VLOOKUP(B244,'Schedule V(b)'!$B$11:$Z$315,25,0),0)","v":0},null,{"$f":"IFERROR(VLOOKUP(B244,'Schedule V(b)'!$B$11:$Z$315,23,0),0)","v":0}]
[234,null,null,{"$f":"IFERROR(VLOOKUP(B245,'Schedule V(b)'!$B$11:$Z$315,3,0),0)","v":0},null,{"$f":"IFERROR(VLOOKUP(B245,'Schedule V(b)'!$B$11:$Z$315,7,0),0)","v":"Select"},null,{"$f":"IFERROR(VLOOKUP(B245,'Schedule V(b)'!$B$11:$Z$315,9,0),0)","v":0},null,{"$f":"IFERROR(VLOOKUP(B245,'Schedule V(b)'!$B$11:$Z$315,11,0),0)","v":"Select"},null,{"$f":"IFERROR(VLOOKUP(B245,'Schedule V(b)'!$B$11:$Z$315,13,0),0)","v":0},null,{"$f":"IFERROR(VLOOKUP(B245,'Schedule V(b)'!$B$11:$Z$315,15,0),0)","v":"Select"},null,null,null,null,null,{"$f":"IFERROR(VLOOKUP(B245,'Schedule V(b)'!$B$11:$Z$315,25,0),0)","v":0},null,{"$f":"IFERROR(VLOOKUP(B245,'Schedule V(b)'!$B$11:$Z$315,23,0),0)","v":0}]
[235,null,null,{"$f":"IFERROR(VLOOKUP(B246,'Schedule V(b)'!$B$11:$Z$315,3,0),0)","v":0},null,{"$f":"IFERROR(VLOOKUP(B246,'Schedule V(b)'!$B$11:$Z$315,7,0),0)","v":"Select"},null,{"$f":"IFERROR(VLOOKUP(B246,'Schedule V(b)'!$B$11:$Z$315,9,0),0)","v":0},null,{"$f":"IFERROR(VLOOKUP(B246,'Schedule V(b)'!$B$11:$Z$315,11,0),0)","v":"Select"},null,{"$f":"IFERROR(VLOOKUP(B246,'Schedule V(b)'!$B$11:$Z$315,13,0),0)","v":0},null,{"$f":"IFERROR(VLOOKUP(B246,'Schedule V(b)'!$B$11:$Z$315,15,0),0)","v":"Select"},null,null,null,null,null,{"$f":"IFERROR(VLOOKUP(B246,'Schedule V(b)'!$B$11:$Z$315,25,0),0)","v":0},null,{"$f":"IFERROR(VLOOKUP(B246,'Schedule V(b)'!$B$11:$Z$315,23,0),0)","v":0}]
[236,null,null,{"$f":"IFERROR(VLOOKUP(B247,'Schedule V(b)'!$B$11:$Z$315,3,0),0)","v":0},null,{"$f":"IFERROR(VLOOKUP(B247,'Schedule V(b)'!$B$11:$Z$315,7,0),0)","v":"Select"},null,{"$f":"IFERROR(VLOOKUP(B247,'Schedule V(b)'!$B$11:$Z$315,9,0),0)","v":0},null,{"$f":"IFERROR(VLOOKUP(B247,'Schedule V(b)'!$B$11:$Z$315,11,0),0)","v":"Select"},null,{"$f":"IFERROR(VLOOKUP(B247,'Schedule V(b)'!$B$11:$Z$315,13,0),0)","v":0},null,{"$f":"IFERROR(VLOOKUP(B247,'Schedule V(b)'!$B$11:$Z$315,15,0),0)","v":"Select"},null,null,null,null,null,{"$f":"IFERROR(VLOOKUP(B247,'Schedule V(b)'!$B$11:$Z$315,25,0),0)","v":0},null,{"$f":"IFERROR(VLOOKUP(B247,'Schedule V(b)'!$B$11:$Z$315,23,0),0)","v":0}]
[237,null,null,{"$f":"IFERROR(VLOOKUP(B248,'Schedule V(b)'!$B$11:$Z$315,3,0),0)","v":0},null,{"$f":"IFERROR(VLOOKUP(B248,'Schedule V(b)'!$B$11:$Z$315,7,0),0)","v":"Select"},null,{"$f":"IFERROR(VLOOKUP(B248,'Schedule V(b)'!$B$11:$Z$315,9,0),0)","v":0},null,{"$f":"IFERROR(VLOOKUP(B248,'Schedule V(b)'!$B$11:$Z$315,11,0),0)","v":"Select"},null,{"$f":"IFERROR(VLOOKUP(B248,'Schedule V(b)'!$B$11:$Z$315,13,0),0)","v":0},null,{"$f":"IFERROR(VLOOKUP(B248,'Schedule V(b)'!$B$11:$Z$315,15,0),0)","v":"Select"},null,null,null,null,null,{"$f":"IFERROR(VLOOKUP(B248,'Schedule V(b)'!$B$11:$Z$315,25,0),0)","v":0},null,{"$f":"IFERROR(VLOOKUP(B248,'Schedule V(b)'!$B$11:$Z$315,23,0),0)","v":0}]
[238,null,null,{"$f":"IFERROR(VLOOKUP(B249,'Schedule V(b)'!$B$11:$Z$315,3,0),0)","v":0},null,{"$f":"IFERROR(VLOOKUP(B249,'Schedule V(b)'!$B$11:$Z$315,7,0),0)","v":"Select"},null,{"$f":"IFERROR(VLOOKUP(B249,'Schedule V(b)'!$B$11:$Z$315,9,0),0)","v":0},null,{"$f":"IFERROR(VLOOKUP(B249,'Schedule V(b)'!$B$11:$Z$315,11,0),0)","v":"Select"},null,{"$f":"IFERROR(VLOOKUP(B249,'Schedule V(b)'!$B$11:$Z$315,13,0),0)","v":0},null,{"$f":"IFERROR(VLOOKUP(B249,'Schedule V(b)'!$B$11:$Z$315,15,0),0)","v":"Select"},null,null,null,null,null,{"$f":"IFERROR(VLOOKUP(B249,'Schedule V(b)'!$B$11:$Z$315,25,0),0)","v":0},null,{"$f":"IFERROR(VLOOKUP(B249,'Schedule V(b)'!$B$11:$Z$315,23,0),0)","v":0}]
[239,null,null,{"$f":"IFERROR(VLOOKUP(B250,'Schedule V(b)'!$B$11:$Z$315,3,0),0)","v":0},null,{"$f":"IFERROR(VLOOKUP(B250,'Schedule V(b)'!$B$11:$Z$315,7,0),0)","v":"Select"},null,{"$f":"IFERROR(VLOOKUP(B250,'Schedule V(b)'!$B$11:$Z$315,9,0),0)","v":0},null,{"$f":"IFERROR(VLOOKUP(B250,'Schedule V(b)'!$B$11:$Z$315,11,0),0)","v":"Select"},null,{"$f":"IFERROR(VLOOKUP(B250,'Schedule V(b)'!$B$11:$Z$315,13,0),0)","v":0},null,{"$f":"IFERROR(VLOOKUP(B250,'Schedule V(b)'!$B$11:$Z$315,15,0),0)","v":"Select"},null,null,null,null,null,{"$f":"IFERROR(VLOOKUP(B250,'Schedule V(b)'!$B$11:$Z$315,25,0),0)","v":0},null,{"$f":"IFERROR(VLOOKUP(B250,'Schedule V(b)'!$B$11:$Z$315,23,0),0)","v":0}]
[240,null,null,{"$f":"IFERROR(VLOOKUP(B251,'Schedule V(b)'!$B$11:$Z$315,3,0),0)","v":0},null,{"$f":"IFERROR(VLOOKUP(B251,'Schedule V(b)'!$B$11:$Z$315,7,0),0)","v":"Select"},null,{"$f":"IFERROR(VLOOKUP(B251,'Schedule V(b)'!$B$11:$Z$315,9,0),0)","v":0},null,{"$f":"IFERROR(VLOOKUP(B251,'Schedule V(b)'!$B$11:$Z$315,11,0),0)","v":"Select"},null,{"$f":"IFERROR(VLOOKUP(B251,'Schedule V(b)'!$B$11:$Z$315,13,0),0)","v":0},null,{"$f":"IFERROR(VLOOKUP(B251,'Schedule V(b)'!$B$11:$Z$315,15,0),0)","v":"Select"},null,null,null,null,null,{"$f":"IFERROR(VLOOKUP(B251,'Schedule V(b)'!$B$11:$Z$315,25,0),0)","v":0},null,{"$f":"IFERROR(VLOOKUP(B251,'Schedule V(b)'!$B$11:$Z$315,23,0),0)","v":0}]
[241,null,null,{"$f":"IFERROR(VLOOKUP(B252,'Schedule V(b)'!$B$11:$Z$315,3,0),0)","v":0},null,{"$f":"IFERROR(VLOOKUP(B252,'Schedule V(b)'!$B$11:$Z$315,7,0),0)","v":"Select"},null,{"$f":"IFERROR(VLOOKUP(B252,'Schedule V(b)'!$B$11:$Z$315,9,0),0)","v":0},null,{"$f":"IFERROR(VLOOKUP(B252,'Schedule V(b)'!$B$11:$Z$315,11,0),0)","v":"Select"},null,{"$f":"IFERROR(VLOOKUP(B252,'Schedule V(b)'!$B$11:$Z$315,13,0),0)","v":0},null,{"$f":"IFERROR(VLOOKUP(B252,'Schedule V(b)'!$B$11:$Z$315,15,0),0)","v":"Select"},null,null,null,null,null,{"$f":"IFERROR(VLOOKUP(B252,'Schedule V(b)'!$B$11:$Z$315,25,0),0)","v":0},null,{"$f":"IFERROR(VLOOKUP(B252,'Schedule V(b)'!$B$11:$Z$315,23,0),0)","v":0}]
[242,null,null,{"$f":"IFERROR(VLOOKUP(B253,'Schedule V(b)'!$B$11:$Z$315,3,0),0)","v":0},null,{"$f":"IFERROR(VLOOKUP(B253,'Schedule V(b)'!$B$11:$Z$315,7,0),0)","v":"Select"},null,{"$f":"IFERROR(VLOOKUP(B253,'Schedule V(b)'!$B$11:$Z$315,9,0),0)","v":0},null,{"$f":"IFERROR(VLOOKUP(B253,'Schedule V(b)'!$B$11:$Z$315,11,0),0)","v":"Select"},null,{"$f":"IFERROR(VLOOKUP(B253,'Schedule V(b)'!$B$11:$Z$315,13,0),0)","v":0},null,{"$f":"IFERROR(VLOOKUP(B253,'Schedule V(b)'!$B$11:$Z$315,15,0),0)","v":"Select"},null,null,null,null,null,{"$f":"IFERROR(VLOOKUP(B253,'Schedule V(b)'!$B$11:$Z$315,25,0),0)","v":0},null,{"$f":"IFERROR(VLOOKUP(B253,'Schedule V(b)'!$B$11:$Z$315,23,0),0)","v":0}]
[243,null,null,{"$f":"IFERROR(VLOOKUP(B254,'Schedule V(b)'!$B$11:$Z$315,3,0),0)","v":0},null,{"$f":"IFERROR(VLOOKUP(B254,'Schedule V(b)'!$B$11:$Z$315,7,0),0)","v":"Select"},null,{"$f":"IFERROR(VLOOKUP(B254,'Schedule V(b)'!$B$11:$Z$315,9,0),0)","v":0},null,{"$f":"IFERROR(VLOOKUP(B254,'Schedule V(b)'!$B$11:$Z$315,11,0),0)","v":"Select"},null,{"$f":"IFERROR(VLOOKUP(B254,'Schedule V(b)'!$B$11:$Z$315,13,0),0)","v":0},null,{"$f":"IFERROR(VLOOKUP(B254,'Schedule V(b)'!$B$11:$Z$315,15,0),0)","v":"Select"},null,null,null,null,null,{"$f":"IFERROR(VLOOKUP(B254,'Schedule V(b)'!$B$11:$Z$315,25,0),0)","v":0},null,{"$f":"IFERROR(VLOOKUP(B254,'Schedule V(b)'!$B$11:$Z$315,23,0),0)","v":0}]
[244,null,null,{"$f":"IFERROR(VLOOKUP(B255,'Schedule V(b)'!$B$11:$Z$315,3,0),0)","v":0},null,{"$f":"IFERROR(VLOOKUP(B255,'Schedule V(b)'!$B$11:$Z$315,7,0),0)","v":"Select"},null,{"$f":"IFERROR(VLOOKUP(B255,'Schedule V(b)'!$B$11:$Z$315,9,0),0)","v":0},null,{"$f":"IFERROR(VLOOKUP(B255,'Schedule V(b)'!$B$11:$Z$315,11,0),0)","v":"Select"},null,{"$f":"IFERROR(VLOOKUP(B255,'Schedule V(b)'!$B$11:$Z$315,13,0),0)","v":0},null,{"$f":"IFERROR(VLOOKUP(B255,'Schedule V(b)'!$B$11:$Z$315,15,0),0)","v":"Select"},null,null,null,null,null,{"$f":"IFERROR(VLOOKUP(B255,'Schedule V(b)'!$B$11:$Z$315,25,0),0)","v":0},null,{"$f":"IFERROR(VLOOKUP(B255,'Schedule V(b)'!$B$11:$Z$315,23,0),0)","v":0}]
[245,null,null,{"$f":"IFERROR(VLOOKUP(B256,'Schedule V(b)'!$B$11:$Z$315,3,0),0)","v":0},null,{"$f":"IFERROR(VLOOKUP(B256,'Schedule V(b)'!$B$11:$Z$315,7,0),0)","v":"Select"},null,{"$f":"IFERROR(VLOOKUP(B256,'Schedule V(b)'!$B$11:$Z$315,9,0),0)","v":0},null,{"$f":"IFERROR(VLOOKUP(B256,'Schedule V(b)'!$B$11:$Z$315,11,0),0)","v":"Select"},null,{"$f":"IFERROR(VLOOKUP(B256,'Schedule V(b)'!$B$11:$Z$315,13,0),0)","v":0},null,{"$f":"IFERROR(VLOOKUP(B256,'Schedule V(b)'!$B$11:$Z$315,15,0),0)","v":"Select"},null,null,null,null,null,{"$f":"IFERROR(VLOOKUP(B256,'Schedule V(b)'!$B$11:$Z$315,25,0),0)","v":0},null,{"$f":"IFERROR(VLOOKUP(B256,'Schedule V(b)'!$B$11:$Z$315,23,0),0)","v":0}]
[246,null,null,{"$f":"IFERROR(VLOOKUP(B257,'Schedule V(b)'!$B$11:$Z$315,3,0),0)","v":0},null,{"$f":"IFERROR(VLOOKUP(B257,'Schedule V(b)'!$B$11:$Z$315,7,0),0)","v":"Select"},null,{"$f":"IFERROR(VLOOKUP(B257,'Schedule V(b)'!$B$11:$Z$315,9,0),0)","v":0},null,{"$f":"IFERROR(VLOOKUP(B257,'Schedule V(b)'!$B$11:$Z$315,11,0),0)","v":"Select"},null,{"$f":"IFERROR(VLOOKUP(B257,'Schedule V(b)'!$B$11:$Z$315,13,0),0)","v":0},null,{"$f":"IFERROR(VLOOKUP(B257,'Schedule V(b)'!$B$11:$Z$315,15,0),0)","v":"Select"},null,null,null,null,null,{"$f":"IFERROR(VLOOKUP(B257,'Schedule V(b)'!$B$11:$Z$315,25,0),0)","v":0},null,{"$f":"IFERROR(VLOOKUP(B257,'Schedule V(b)'!$B$11:$Z$315,23,0),0)","v":0}]
[247,null,null,{"$f":"IFERROR(VLOOKUP(B258,'Schedule V(b)'!$B$11:$Z$315,3,0),0)","v":0},null,{"$f":"IFERROR(VLOOKUP(B258,'Schedule V(b)'!$B$11:$Z$315,7,0),0)","v":"Select"},null,{"$f":"IFERROR(VLOOKUP(B258,'Schedule V(b)'!$B$11:$Z$315,9,0),0)","v":0},null,{"$f":"IFERROR(VLOOKUP(B258,'Schedule V(b)'!$B$11:$Z$315,11,0),0)","v":"Select"},null,{"$f":"IFERROR(VLOOKUP(B258,'Schedule V(b)'!$B$11:$Z$315,13,0),0)","v":0},null,{"$f":"IFERROR(VLOOKUP(B258,'Schedule V(b)'!$B$11:$Z$315,15,0),0)","v":"Select"},null,null,null,null,null,{"$f":"IFERROR(VLOOKUP(B258,'Schedule V(b)'!$B$11:$Z$315,25,0),0)","v":0},null,{"$f":"IFERROR(VLOOKUP(B258,'Schedule V(b)'!$B$11:$Z$315,23,0),0)","v":0}]
[248,null,null,{"$f":"IFERROR(VLOOKUP(B259,'Schedule V(b)'!$B$11:$Z$315,3,0),0)","v":0},null,{"$f":"IFERROR(VLOOKUP(B259,'Schedule V(b)'!$B$11:$Z$315,7,0),0)","v":"Select"},null,{"$f":"IFERROR(VLOOKUP(B259,'Schedule V(b)'!$B$11:$Z$315,9,0),0)","v":0},null,{"$f":"IFERROR(VLOOKUP(B259,'Schedule V(b)'!$B$11:$Z$315,11,0),0)","v":"Select"},null,{"$f":"IFERROR(VLOOKUP(B259,'Schedule V(b)'!$B$11:$Z$315,13,0),0)","v":0},null,{"$f":"IFERROR(VLOOKUP(B259,'Schedule V(b)'!$B$11:$Z$315,15,0),0)","v":"Select"},null,null,null,null,null,{"$f":"IFERROR(VLOOKUP(B259,'Schedule V(b)'!$B$11:$Z$315,25,0),0)","v":0},null,{"$f":"IFERROR(VLOOKUP(B259,'Schedule V(b)'!$B$11:$Z$315,23,0),0)","v":0}]
[249,null,null,{"$f":"IFERROR(VLOOKUP(B260,'Schedule V(b)'!$B$11:$Z$315,3,0),0)","v":0},null,{"$f":"IFERROR(VLOOKUP(B260,'Schedule V(b)'!$B$11:$Z$315,7,0),0)","v":"Select"},null,{"$f":"IFERROR(VLOOKUP(B260,'Schedule V(b)'!$B$11:$Z$315,9,0),0)","v":0},null,{"$f":"IFERROR(VLOOKUP(B260,'Schedule V(b)'!$B$11:$Z$315,11,0),0)","v":"Select"},null,{"$f":"IFERROR(VLOOKUP(B260,'Schedule V(b)'!$B$11:$Z$315,13,0),0)","v":0},null,{"$f":"IFERROR(VLOOKUP(B260,'Schedule V(b)'!$B$11:$Z$315,15,0),0)","v":"Select"},null,null,null,null,null,{"$f":"IFERROR(VLOOKUP(B260,'Schedule V(b)'!$B$11:$Z$315,25,0),0)","v":0},null,{"$f":"IFERROR(VLOOKUP(B260,'Schedule V(b)'!$B$11:$Z$315,23,0),0)","v":0}]
[250,null,null,{"$f":"IFERROR(VLOOKUP(B261,'Schedule V(b)'!$B$11:$Z$315,3,0),0)","v":0},null,{"$f":"IFERROR(VLOOKUP(B261,'Schedule V(b)'!$B$11:$Z$315,7,0),0)","v":"Select"},null,{"$f":"IFERROR(VLOOKUP(B261,'Schedule V(b)'!$B$11:$Z$315,9,0),0)","v":0},null,{"$f":"IFERROR(VLOOKUP(B261,'Schedule V(b)'!$B$11:$Z$315,11,0),0)","v":"Select"},null,{"$f":"IFERROR(VLOOKUP(B261,'Schedule V(b)'!$B$11:$Z$315,13,0),0)","v":0},null,{"$f":"IFERROR(VLOOKUP(B261,'Schedule V(b)'!$B$11:$Z$315,15,0),0)","v":"Select"},null,null,null,null,null,{"$f":"IFERROR(VLOOKUP(B261,'Schedule V(b)'!$B$11:$Z$315,25,0),0)","v":0},null,{"$f":"IFERROR(VLOOKUP(B261,'Schedule V(b)'!$B$11:$Z$315,23,0),0)","v":0}]
[251,null,null,{"$f":"IFERROR(VLOOKUP(B262,'Schedule V(b)'!$B$11:$Z$315,3,0),0)","v":0},null,{"$f":"IFERROR(VLOOKUP(B262,'Schedule V(b)'!$B$11:$Z$315,7,0),0)","v":"Select"},null,{"$f":"IFERROR(VLOOKUP(B262,'Schedule V(b)'!$B$11:$Z$315,9,0),0)","v":0},null,{"$f":"IFERROR(VLOOKUP(B262,'Schedule V(b)'!$B$11:$Z$315,11,0),0)","v":"Select"},null,{"$f":"IFERROR(VLOOKUP(B262,'Schedule V(b)'!$B$11:$Z$315,13,0),0)","v":0},null,{"$f":"IFERROR(VLOOKUP(B262,'Schedule V(b)'!$B$11:$Z$315,15,0),0)","v":"Select"},null,null,null,null,null,{"$f":"IFERROR(VLOOKUP(B262,'Schedule V(b)'!$B$11:$Z$315,25,0),0)","v":0},null,{"$f":"IFERROR(VLOOKUP(B262,'Schedule V(b)'!$B$11:$Z$315,23,0),0)","v":0}]
[252,null,null,{"$f":"IFERROR(VLOOKUP(B263,'Schedule V(b)'!$B$11:$Z$315,3,0),0)","v":0},null,{"$f":"IFERROR(VLOOKUP(B263,'Schedule V(b)'!$B$11:$Z$315,7,0),0)","v":"Select"},null,{"$f":"IFERROR(VLOOKUP(B263,'Schedule V(b)'!$B$11:$Z$315,9,0),0)","v":0},null,{"$f":"IFERROR(VLOOKUP(B263,'Schedule V(b)'!$B$11:$Z$315,11,0),0)","v":"Select"},null,{"$f":"IFERROR(VLOOKUP(B263,'Schedule V(b)'!$B$11:$Z$315,13,0),0)","v":0},null,{"$f":"IFERROR(VLOOKUP(B263,'Schedule V(b)'!$B$11:$Z$315,15,0),0)","v":"Select"},null,null,null,null,null,{"$f":"IFERROR(VLOOKUP(B263,'Schedule V(b)'!$B$11:$Z$315,25,0),0)","v":0},null,{"$f":"IFERROR(VLOOKUP(B263,'Schedule V(b)'!$B$11:$Z$315,23,0),0)","v":0}]
[253,null,null,{"$f":"IFERROR(VLOOKUP(B264,'Schedule V(b)'!$B$11:$Z$315,3,0),0)","v":0},null,{"$f":"IFERROR(VLOOKUP(B264,'Schedule V(b)'!$B$11:$Z$315,7,0),0)","v":"Select"},null,{"$f":"IFERROR(VLOOKUP(B264,'Schedule V(b)'!$B$11:$Z$315,9,0),0)","v":0},null,{"$f":"IFERROR(VLOOKUP(B264,'Schedule V(b)'!$B$11:$Z$315,11,0),0)","v":"Select"},null,{"$f":"IFERROR(VLOOKUP(B264,'Schedule V(b)'!$B$11:$Z$315,13,0),0)","v":0},null,{"$f":"IFERROR(VLOOKUP(B264,'Schedule V(b)'!$B$11:$Z$315,15,0),0)","v":"Select"},null,null,null,null,null,{"$f":"IFERROR(VLOOKUP(B264,'Schedule V(b)'!$B$11:$Z$315,25,0),0)","v":0},null,{"$f":"IFERROR(VLOOKUP(B264,'Schedule V(b)'!$B$11:$Z$315,23,0),0)","v":0}]
[254,null,null,{"$f":"IFERROR(VLOOKUP(B265,'Schedule V(b)'!$B$11:$Z$315,3,0),0)","v":0},null,{"$f":"IFERROR(VLOOKUP(B265,'Schedule V(b)'!$B$11:$Z$315,7,0),0)","v":"Select"},null,{"$f":"IFERROR(VLOOKUP(B265,'Schedule V(b)'!$B$11:$Z$315,9,0),0)","v":0},null,{"$f":"IFERROR(VLOOKUP(B265,'Schedule V(b)'!$B$11:$Z$315,11,0),0)","v":"Select"},null,{"$f":"IFERROR(VLOOKUP(B265,'Schedule V(b)'!$B$11:$Z$315,13,0),0)","v":0},null,{"$f":"IFERROR(VLOOKUP(B265,'Schedule V(b)'!$B$11:$Z$315,15,0),0)","v":"Select"},null,null,null,null,null,{"$f":"IFERROR(VLOOKUP(B265,'Schedule V(b)'!$B$11:$Z$315,25,0),0)","v":0},null,{"$f":"IFERROR(VLOOKUP(B265,'Schedule V(b)'!$B$11:$Z$315,23,0),0)","v":0}]
[255,null,null,{"$f":"IFERROR(VLOOKUP(B266,'Schedule V(b)'!$B$11:$Z$315,3,0),0)","v":0},null,{"$f":"IFERROR(VLOOKUP(B266,'Schedule V(b)'!$B$11:$Z$315,7,0),0)","v":"Select"},null,{"$f":"IFERROR(VLOOKUP(B266,'Schedule V(b)'!$B$11:$Z$315,9,0),0)","v":0},null,{"$f":"IFERROR(VLOOKUP(B266,'Schedule V(b)'!$B$11:$Z$315,11,0),0)","v":"Select"},null,{"$f":"IFERROR(VLOOKUP(B266,'Schedule V(b)'!$B$11:$Z$315,13,0),0)","v":0},null,{"$f":"IFERROR(VLOOKUP(B266,'Schedule V(b)'!$B$11:$Z$315,15,0),0)","v":"Select"},null,null,null,null,null,{"$f":"IFERROR(VLOOKUP(B266,'Schedule V(b)'!$B$11:$Z$315,25,0),0)","v":0},null,{"$f":"IFERROR(VLOOKUP(B266,'Schedule V(b)'!$B$11:$Z$315,23,0),0)","v":0}]
[256,null,null,{"$f":"IFERROR(VLOOKUP(B267,'Schedule V(b)'!$B$11:$Z$315,3,0),0)","v":0},null,{"$f":"IFERROR(VLOOKUP(B267,'Schedule V(b)'!$B$11:$Z$315,7,0),0)","v":"Select"},null,{"$f":"IFERROR(VLOOKUP(B267,'Schedule V(b)'!$B$11:$Z$315,9,0),0)","v":0},null,{"$f":"IFERROR(VLOOKUP(B267,'Schedule V(b)'!$B$11:$Z$315,11,0),0)","v":"Select"},null,{"$f":"IFERROR(VLOOKUP(B267,'Schedule V(b)'!$B$11:$Z$315,13,0),0)","v":0},null,{"$f":"IFERROR(VLOOKUP(B267,'Schedule V(b)'!$B$11:$Z$315,15,0),0)","v":"Select"},null,null,null,null,null,{"$f":"IFERROR(VLOOKUP(B267,'Schedule V(b)'!$B$11:$Z$315,25,0),0)","v":0},null,{"$f":"IFERROR(VLOOKUP(B267,'Schedule V(b)'!$B$11:$Z$315,23,0),0)","v":0}]
[257,null,null,{"$f":"IFERROR(VLOOKUP(B268,'Schedule V(b)'!$B$11:$Z$315,3,0),0)","v":0},null,{"$f":"IFERROR(VLOOKUP(B268,'Schedule V(b)'!$B$11:$Z$315,7,0),0)","v":"Select"},null,{"$f":"IFERROR(VLOOKUP(B268,'Schedule V(b)'!$B$11:$Z$315,9,0),0)","v":0},null,{"$f":"IFERROR(VLOOKUP(B268,'Schedule V(b)'!$B$11:$Z$315,11,0),0)","v":"Select"},null,{"$f":"IFERROR(VLOOKUP(B268,'Schedule V(b)'!$B$11:$Z$315,13,0),0)","v":0},null,{"$f":"IFERROR(VLOOKUP(B268,'Schedule V(b)'!$B$11:$Z$315,15,0),0)","v":"Select"},null,null,null,null,null,{"$f":"IFERROR(VLOOKUP(B268,'Schedule V(b)'!$B$11:$Z$315,25,0),0)","v":0},null,{"$f":"IFERROR(VLOOKUP(B268,'Schedule V(b)'!$B$11:$Z$315,23,0),0)","v":0}]
[258,null,null,{"$f":"IFERROR(VLOOKUP(B269,'Schedule V(b)'!$B$11:$Z$315,3,0),0)","v":0},null,{"$f":"IFERROR(VLOOKUP(B269,'Schedule V(b)'!$B$11:$Z$315,7,0),0)","v":"Select"},null,{"$f":"IFERROR(VLOOKUP(B269,'Schedule V(b)'!$B$11:$Z$315,9,0),0)","v":0},null,{"$f":"IFERROR(VLOOKUP(B269,'Schedule V(b)'!$B$11:$Z$315,11,0),0)","v":"Select"},null,{"$f":"IFERROR(VLOOKUP(B269,'Schedule V(b)'!$B$11:$Z$315,13,0),0)","v":0},null,{"$f":"IFERROR(VLOOKUP(B269,'Schedule V(b)'!$B$11:$Z$315,15,0),0)","v":"Select"},null,null,null,null,null,{"$f":"IFERROR(VLOOKUP(B269,'Schedule V(b)'!$B$11:$Z$315,25,0),0)","v":0},null,{"$f":"IFERROR(VLOOKUP(B269,'Schedule V(b)'!$B$11:$Z$315,23,0),0)","v":0}]
[259,null,null,{"$f":"IFERROR(VLOOKUP(B270,'Schedule V(b)'!$B$11:$Z$315,3,0),0)","v":0},null,{"$f":"IFERROR(VLOOKUP(B270,'Schedule V(b)'!$B$11:$Z$315,7,0),0)","v":"Select"},null,{"$f":"IFERROR(VLOOKUP(B270,'Schedule V(b)'!$B$11:$Z$315,9,0),0)","v":0},null,{"$f":"IFERROR(VLOOKUP(B270,'Schedule V(b)'!$B$11:$Z$315,11,0),0)","v":"Select"},null,{"$f":"IFERROR(VLOOKUP(B270,'Schedule V(b)'!$B$11:$Z$315,13,0),0)","v":0},null,{"$f":"IFERROR(VLOOKUP(B270,'Schedule V(b)'!$B$11:$Z$315,15,0),0)","v":"Select"},null,null,null,null,null,{"$f":"IFERROR(VLOOKUP(B270,'Schedule V(b)'!$B$11:$Z$315,25,0),0)","v":0},null,{"$f":"IFERROR(VLOOKUP(B270,'Schedule V(b)'!$B$11:$Z$315,23,0),0)","v":0}]
[260,null,null,{"$f":"IFERROR(VLOOKUP(B271,'Schedule V(b)'!$B$11:$Z$315,3,0),0)","v":0},null,{"$f":"IFERROR(VLOOKUP(B271,'Schedule V(b)'!$B$11:$Z$315,7,0),0)","v":"Select"},null,{"$f":"IFERROR(VLOOKUP(B271,'Schedule V(b)'!$B$11:$Z$315,9,0),0)","v":0},null,{"$f":"IFERROR(VLOOKUP(B271,'Schedule V(b)'!$B$11:$Z$315,11,0),0)","v":"Select"},null,{"$f":"IFERROR(VLOOKUP(B271,'Schedule V(b)'!$B$11:$Z$315,13,0),0)","v":0},null,{"$f":"IFERROR(VLOOKUP(B271,'Schedule V(b)'!$B$11:$Z$315,15,0),0)","v":"Select"},null,null,null,null,null,{"$f":"IFERROR(VLOOKUP(B271,'Schedule V(b)'!$B$11:$Z$315,25,0),0)","v":0},null,{"$f":"IFERROR(VLOOKUP(B271,'Schedule V(b)'!$B$11:$Z$315,23,0),0)","v":0}]
[261,null,null,{"$f":"IFERROR(VLOOKUP(B272,'Schedule V(b)'!$B$11:$Z$315,3,0),0)","v":0},null,{"$f":"IFERROR(VLOOKUP(B272,'Schedule V(b)'!$B$11:$Z$315,7,0),0)","v":"Select"},null,{"$f":"IFERROR(VLOOKUP(B272,'Schedule V(b)'!$B$11:$Z$315,9,0),0)","v":0},null,{"$f":"IFERROR(VLOOKUP(B272,'Schedule V(b)'!$B$11:$Z$315,11,0),0)","v":"Select"},null,{"$f":"IFERROR(VLOOKUP(B272,'Schedule V(b)'!$B$11:$Z$315,13,0),0)","v":0},null,{"$f":"IFERROR(VLOOKUP(B272,'Schedule V(b)'!$B$11:$Z$315,15,0),0)","v":"Select"},null,null,null,null,null,{"$f":"IFERROR(VLOOKUP(B272,'Schedule V(b)'!$B$11:$Z$315,25,0),0)","v":0},null,{"$f":"IFERROR(VLOOKUP(B272,'Schedule V(b)'!$B$11:$Z$315,23,0),0)","v":0}]
[262,null,null,{"$f":"IFERROR(VLOOKUP(B273,'Schedule V(b)'!$B$11:$Z$315,3,0),0)","v":0},null,{"$f":"IFERROR(VLOOKUP(B273,'Schedule V(b)'!$B$11:$Z$315,7,0),0)","v":"Select"},null,{"$f":"IFERROR(VLOOKUP(B273,'Schedule V(b)'!$B$11:$Z$315,9,0),0)","v":0},null,{"$f":"IFERROR(VLOOKUP(B273,'Schedule V(b)'!$B$11:$Z$315,11,0),0)","v":"Select"},null,{"$f":"IFERROR(VLOOKUP(B273,'Schedule V(b)'!$B$11:$Z$315,13,0),0)","v":0},null,{"$f":"IFERROR(VLOOKUP(B273,'Schedule V(b)'!$B$11:$Z$315,15,0),0)","v":"Select"},null,null,null,null,null,{"$f":"IFERROR(VLOOKUP(B273,'Schedule V(b)'!$B$11:$Z$315,25,0),0)","v":0},null,{"$f":"IFERROR(VLOOKUP(B273,'Schedule V(b)'!$B$11:$Z$315,23,0),0)","v":0}]
[263,null,null,{"$f":"IFERROR(VLOOKUP(B274,'Schedule V(b)'!$B$11:$Z$315,3,0),0)","v":0},null,{"$f":"IFERROR(VLOOKUP(B274,'Schedule V(b)'!$B$11:$Z$315,7,0),0)","v":"Select"},null,{"$f":"IFERROR(VLOOKUP(B274,'Schedule V(b)'!$B$11:$Z$315,9,0),0)","v":0},null,{"$f":"IFERROR(VLOOKUP(B274,'Schedule V(b)'!$B$11:$Z$315,11,0),0)","v":"Select"},null,{"$f":"IFERROR(VLOOKUP(B274,'Schedule V(b)'!$B$11:$Z$315,13,0),0)","v":0},null,{"$f":"IFERROR(VLOOKUP(B274,'Schedule V(b)'!$B$11:$Z$315,15,0),0)","v":"Select"},null,null,null,null,null,{"$f":"IFERROR(VLOOKUP(B274,'Schedule V(b)'!$B$11:$Z$315,25,0),0)","v":0},null,{"$f":"IFERROR(VLOOKUP(B274,'Schedule V(b)'!$B$11:$Z$315,23,0),0)","v":0}]
[264,null,null,{"$f":"IFERROR(VLOOKUP(B275,'Schedule V(b)'!$B$11:$Z$315,3,0),0)","v":0},null,{"$f":"IFERROR(VLOOKUP(B275,'Schedule V(b)'!$B$11:$Z$315,7,0),0)","v":"Select"},null,{"$f":"IFERROR(VLOOKUP(B275,'Schedule V(b)'!$B$11:$Z$315,9,0),0)","v":0},null,{"$f":"IFERROR(VLOOKUP(B275,'Schedule V(b)'!$B$11:$Z$315,11,0),0)","v":"Select"},null,{"$f":"IFERROR(VLOOKUP(B275,'Schedule V(b)'!$B$11:$Z$315,13,0),0)","v":0},null,{"$f":"IFERROR(VLOOKUP(B275,'Schedule V(b)'!$B$11:$Z$315,15,0),0)","v":"Select"},null,null,null,null,null,{"$f":"IFERROR(VLOOKUP(B275,'Schedule V(b)'!$B$11:$Z$315,25,0),0)","v":0},null,{"$f":"IFERROR(VLOOKUP(B275,'Schedule V(b)'!$B$11:$Z$315,23,0),0)","v":0}]
[265,null,null,{"$f":"IFERROR(VLOOKUP(B276,'Schedule V(b)'!$B$11:$Z$315,3,0),0)","v":0},null,{"$f":"IFERROR(VLOOKUP(B276,'Schedule V(b)'!$B$11:$Z$315,7,0),0)","v":"Select"},null,{"$f":"IFERROR(VLOOKUP(B276,'Schedule V(b)'!$B$11:$Z$315,9,0),0)","v":0},null,{"$f":"IFERROR(VLOOKUP(B276,'Schedule V(b)'!$B$11:$Z$315,11,0),0)","v":"Select"},null,{"$f":"IFERROR(VLOOKUP(B276,'Schedule V(b)'!$B$11:$Z$315,13,0),0)","v":0},null,{"$f":"IFERROR(VLOOKUP(B276,'Schedule V(b)'!$B$11:$Z$315,15,0),0)","v":"Select"},null,null,null,null,null,{"$f":"IFERROR(VLOOKUP(B276,'Schedule V(b)'!$B$11:$Z$315,25,0),0)","v":0},null,{"$f":"IFERROR(VLOOKUP(B276,'Schedule V(b)'!$B$11:$Z$315,23,0),0)","v":0}]
[266,null,null,{"$f":"IFERROR(VLOOKUP(B277,'Schedule V(b)'!$B$11:$Z$315,3,0),0)","v":0},null,{"$f":"IFERROR(VLOOKUP(B277,'Schedule V(b)'!$B$11:$Z$315,7,0),0)","v":"Select"},null,{"$f":"IFERROR(VLOOKUP(B277,'Schedule V(b)'!$B$11:$Z$315,9,0),0)","v":0},null,{"$f":"IFERROR(VLOOKUP(B277,'Schedule V(b)'!$B$11:$Z$315,11,0),0)","v":"Select"},null,{"$f":"IFERROR(VLOOKUP(B277,'Schedule V(b)'!$B$11:$Z$315,13,0),0)","v":0},null,{"$f":"IFERROR(VLOOKUP(B277,'Schedule V(b)'!$B$11:$Z$315,15,0),0)","v":"Select"},null,null,null,null,null,{"$f":"IFERROR(VLOOKUP(B277,'Schedule V(b)'!$B$11:$Z$315,25,0),0)","v":0},null,{"$f":"IFERROR(VLOOKUP(B277,'Schedule V(b)'!$B$11:$Z$315,23,0),0)","v":0}]
[267,null,null,{"$f":"IFERROR(VLOOKUP(B278,'Schedule V(b)'!$B$11:$Z$315,3,0),0)","v":0},null,{"$f":"IFERROR(VLOOKUP(B278,'Schedule V(b)'!$B$11:$Z$315,7,0),0)","v":"Select"},null,{"$f":"IFERROR(VLOOKUP(B278,'Schedule V(b)'!$B$11:$Z$315,9,0),0)","v":0},null,{"$f":"IFERROR(VLOOKUP(B278,'Schedule V(b)'!$B$11:$Z$315,11,0),0)","v":"Select"},null,{"$f":"IFERROR(VLOOKUP(B278,'Schedule V(b)'!$B$11:$Z$315,13,0),0)","v":0},null,{"$f":"IFERROR(VLOOKUP(B278,'Schedule V(b)'!$B$11:$Z$315,15,0),0)","v":"Select"},null,null,null,null,null,{"$f":"IFERROR(VLOOKUP(B278,'Schedule V(b)'!$B$11:$Z$315,25,0),0)","v":0},null,{"$f":"IFERROR(VLOOKUP(B278,'Schedule V(b)'!$B$11:$Z$315,23,0),0)","v":0}]
[268,null,null,{"$f":"IFERROR(VLOOKUP(B279,'Schedule V(b)'!$B$11:$Z$315,3,0),0)","v":0},null,{"$f":"IFERROR(VLOOKUP(B279,'Schedule V(b)'!$B$11:$Z$315,7,0),0)","v":"Select"},null,{"$f":"IFERROR(VLOOKUP(B279,'Schedule V(b)'!$B$11:$Z$315,9,0),0)","v":0},null,{"$f":"IFERROR(VLOOKUP(B279,'Schedule V(b)'!$B$11:$Z$315,11,0),0)","v":"Select"},null,{"$f":"IFERROR(VLOOKUP(B279,'Schedule V(b)'!$B$11:$Z$315,13,0),0)","v":0},null,{"$f":"IFERROR(VLOOKUP(B279,'Schedule V(b)'!$B$11:$Z$315,15,0),0)","v":"Select"},null,null,null,null,null,{"$f":"IFERROR(VLOOKUP(B279,'Schedule V(b)'!$B$11:$Z$315,25,0),0)","v":0},null,{"$f":"IFERROR(VLOOKUP(B279,'Schedule V(b)'!$B$11:$Z$315,23,0),0)","v":0}]
[269,null,null,{"$f":"IFERROR(VLOOKUP(B280,'Schedule V(b)'!$B$11:$Z$315,3,0),0)","v":0},null,{"$f":"IFERROR(VLOOKUP(B280,'Schedule V(b)'!$B$11:$Z$315,7,0),0)","v":"Select"},null,{"$f":"IFERROR(VLOOKUP(B280,'Schedule V(b)'!$B$11:$Z$315,9,0),0)","v":0},null,{"$f":"IFERROR(VLOOKUP(B280,'Schedule V(b)'!$B$11:$Z$315,11,0),0)","v":"Select"},null,{"$f":"IFERROR(VLOOKUP(B280,'Schedule V(b)'!$B$11:$Z$315,13,0),0)","v":0},null,{"$f":"IFERROR(VLOOKUP(B280,'Schedule V(b)'!$B$11:$Z$315,15,0),0)","v":"Select"},null,null,null,null,null,{"$f":"IFERROR(VLOOKUP(B280,'Schedule V(b)'!$B$11:$Z$315,25,0),0)","v":0},null,{"$f":"IFERROR(VLOOKUP(B280,'Schedule V(b)'!$B$11:$Z$315,23,0),0)","v":0}]
[270,null,null,{"$f":"IFERROR(VLOOKUP(B281,'Schedule V(b)'!$B$11:$Z$315,3,0),0)","v":0},null,{"$f":"IFERROR(VLOOKUP(B281,'Schedule V(b)'!$B$11:$Z$315,7,0),0)","v":"Select"},null,{"$f":"IFERROR(VLOOKUP(B281,'Schedule V(b)'!$B$11:$Z$315,9,0),0)","v":0},null,{"$f":"IFERROR(VLOOKUP(B281,'Schedule V(b)'!$B$11:$Z$315,11,0),0)","v":"Select"},null,{"$f":"IFERROR(VLOOKUP(B281,'Schedule V(b)'!$B$11:$Z$315,13,0),0)","v":0},null,{"$f":"IFERROR(VLOOKUP(B281,'Schedule V(b)'!$B$11:$Z$315,15,0),0)","v":"Select"},null,null,null,null,null,{"$f":"IFERROR(VLOOKUP(B281,'Schedule V(b)'!$B$11:$Z$315,25,0),0)","v":0},null,{"$f":"IFERROR(VLOOKUP(B281,'Schedule V(b)'!$B$11:$Z$315,23,0),0)","v":0}]
[271,null,null,{"$f":"IFERROR(VLOOKUP(B282,'Schedule V(b)'!$B$11:$Z$315,3,0),0)","v":0},null,{"$f":"IFERROR(VLOOKUP(B282,'Schedule V(b)'!$B$11:$Z$315,7,0),0)","v":"Select"},null,{"$f":"IFERROR(VLOOKUP(B282,'Schedule V(b)'!$B$11:$Z$315,9,0),0)","v":0},null,{"$f":"IFERROR(VLOOKUP(B282,'Schedule V(b)'!$B$11:$Z$315,11,0),0)","v":"Select"},null,{"$f":"IFERROR(VLOOKUP(B282,'Schedule V(b)'!$B$11:$Z$315,13,0),0)","v":0},null,{"$f":"IFERROR(VLOOKUP(B282,'Schedule V(b)'!$B$11:$Z$315,15,0),0)","v":"Select"},null,null,null,null,null,{"$f":"IFERROR(VLOOKUP(B282,'Schedule V(b)'!$B$11:$Z$315,25,0),0)","v":0},null,{"$f":"IFERROR(VLOOKUP(B282,'Schedule V(b)'!$B$11:$Z$315,23,0),0)","v":0}]
[272,null,null,{"$f":"IFERROR(VLOOKUP(B283,'Schedule V(b)'!$B$11:$Z$315,3,0),0)","v":0},null,{"$f":"IFERROR(VLOOKUP(B283,'Schedule V(b)'!$B$11:$Z$315,7,0),0)","v":"Select"},null,{"$f":"IFERROR(VLOOKUP(B283,'Schedule V(b)'!$B$11:$Z$315,9,0),0)","v":0},null,{"$f":"IFERROR(VLOOKUP(B283,'Schedule V(b)'!$B$11:$Z$315,11,0),0)","v":"Select"},null,{"$f":"IFERROR(VLOOKUP(B283,'Schedule V(b)'!$B$11:$Z$315,13,0),0)","v":0},null,{"$f":"IFERROR(VLOOKUP(B283,'Schedule V(b)'!$B$11:$Z$315,15,0),0)","v":"Select"},null,null,null,null,null,{"$f":"IFERROR(VLOOKUP(B283,'Schedule V(b)'!$B$11:$Z$315,25,0),0)","v":0},null,{"$f":"IFERROR(VLOOKUP(B283,'Schedule V(b)'!$B$11:$Z$315,23,0),0)","v":0}]
[273,null,null,{"$f":"IFERROR(VLOOKUP(B284,'Schedule V(b)'!$B$11:$Z$315,3,0),0)","v":0},null,{"$f":"IFERROR(VLOOKUP(B284,'Schedule V(b)'!$B$11:$Z$315,7,0),0)","v":"Select"},null,{"$f":"IFERROR(VLOOKUP(B284,'Schedule V(b)'!$B$11:$Z$315,9,0),0)","v":0},null,{"$f":"IFERROR(VLOOKUP(B284,'Schedule V(b)'!$B$11:$Z$315,11,0),0)","v":"Select"},null,{"$f":"IFERROR(VLOOKUP(B284,'Schedule V(b)'!$B$11:$Z$315,13,0),0)","v":0},null,{"$f":"IFERROR(VLOOKUP(B284,'Schedule V(b)'!$B$11:$Z$315,15,0),0)","v":"Select"},null,null,null,null,null,{"$f":"IFERROR(VLOOKUP(B284,'Schedule V(b)'!$B$11:$Z$315,25,0),0)","v":0},null,{"$f":"IFERROR(VLOOKUP(B284,'Schedule V(b)'!$B$11:$Z$315,23,0),0)","v":0}]
[274,null,null,{"$f":"IFERROR(VLOOKUP(B285,'Schedule V(b)'!$B$11:$Z$315,3,0),0)","v":0},null,{"$f":"IFERROR(VLOOKUP(B285,'Schedule V(b)'!$B$11:$Z$315,7,0),0)","v":"Select"},null,{"$f":"IFERROR(VLOOKUP(B285,'Schedule V(b)'!$B$11:$Z$315,9,0),0)","v":0},null,{"$f":"IFERROR(VLOOKUP(B285,'Schedule V(b)'!$B$11:$Z$315,11,0),0)","v":"Select"},null,{"$f":"IFERROR(VLOOKUP(B285,'Schedule V(b)'!$B$11:$Z$315,13,0),0)","v":0},null,{"$f":"IFERROR(VLOOKUP(B285,'Schedule V(b)'!$B$11:$Z$315,15,0),0)","v":"Select"},null,null,null,null,null,{"$f":"IFERROR(VLOOKUP(B285,'Schedule V(b)'!$B$11:$Z$315,25,0),0)","v":0},null,{"$f":"IFERROR(VLOOKUP(B285,'Schedule V(b)'!$B$11:$Z$315,23,0),0)","v":0}]
[275,null,null,{"$f":"IFERROR(VLOOKUP(B286,'Schedule V(b)'!$B$11:$Z$315,3,0),0)","v":0},null,{"$f":"IFERROR(VLOOKUP(B286,'Schedule V(b)'!$B$11:$Z$315,7,0),0)","v":"Select"},null,{"$f":"IFERROR(VLOOKUP(B286,'Schedule V(b)'!$B$11:$Z$315,9,0),0)","v":0},null,{"$f":"IFERROR(VLOOKUP(B286,'Schedule V(b)'!$B$11:$Z$315,11,0),0)","v":"Select"},null,{"$f":"IFERROR(VLOOKUP(B286,'Schedule V(b)'!$B$11:$Z$315,13,0),0)","v":0},null,{"$f":"IFERROR(VLOOKUP(B286,'Schedule V(b)'!$B$11:$Z$315,15,0),0)","v":"Select"},null,null,null,null,null,{"$f":"IFERROR(VLOOKUP(B286,'Schedule V(b)'!$B$11:$Z$315,25,0),0)","v":0},null,{"$f":"IFERROR(VLOOKUP(B286,'Schedule V(b)'!$B$11:$Z$315,23,0),0)","v":0}]
[276,null,null,{"$f":"IFERROR(VLOOKUP(B287,'Schedule V(b)'!$B$11:$Z$315,3,0),0)","v":0},null,{"$f":"IFERROR(VLOOKUP(B287,'Schedule V(b)'!$B$11:$Z$315,7,0),0)","v":"Select"},null,{"$f":"IFERROR(VLOOKUP(B287,'Schedule V(b)'!$B$11:$Z$315,9,0),0)","v":0},null,{"$f":"IFERROR(VLOOKUP(B287,'Schedule V(b)'!$B$11:$Z$315,11,0),0)","v":"Select"},null,{"$f":"IFERROR(VLOOKUP(B287,'Schedule V(b)'!$B$11:$Z$315,13,0),0)","v":0},null,{"$f":"IFERROR(VLOOKUP(B287,'Schedule V(b)'!$B$11:$Z$315,15,0),0)","v":"Select"},null,null,null,null,null,{"$f":"IFERROR(VLOOKUP(B287,'Schedule V(b)'!$B$11:$Z$315,25,0),0)","v":0},null,{"$f":"IFERROR(VLOOKUP(B287,'Schedule V(b)'!$B$11:$Z$315,23,0),0)","v":0}]
[277,null,null,{"$f":"IFERROR(VLOOKUP(B288,'Schedule V(b)'!$B$11:$Z$315,3,0),0)","v":0},null,{"$f":"IFERROR(VLOOKUP(B288,'Schedule V(b)'!$B$11:$Z$315,7,0),0)","v":"Select"},null,{"$f":"IFERROR(VLOOKUP(B288,'Schedule V(b)'!$B$11:$Z$315,9,0),0)","v":0},null,{"$f":"IFERROR(VLOOKUP(B288,'Schedule V(b)'!$B$11:$Z$315,11,0),0)","v":"Select"},null,{"$f":"IFERROR(VLOOKUP(B288,'Schedule V(b)'!$B$11:$Z$315,13,0),0)","v":0},null,{"$f":"IFERROR(VLOOKUP(B288,'Schedule V(b)'!$B$11:$Z$315,15,0),0)","v":"Select"},null,null,null,null,null,{"$f":"IFERROR(VLOOKUP(B288,'Schedule V(b)'!$B$11:$Z$315,25,0),0)","v":0},null,{"$f":"IFERROR(VLOOKUP(B288,'Schedule V(b)'!$B$11:$Z$315,23,0),0)","v":0}]
[278,null,null,{"$f":"IFERROR(VLOOKUP(B289,'Schedule V(b)'!$B$11:$Z$315,3,0),0)","v":0},null,{"$f":"IFERROR(VLOOKUP(B289,'Schedule V(b)'!$B$11:$Z$315,7,0),0)","v":"Select"},null,{"$f":"IFERROR(VLOOKUP(B289,'Schedule V(b)'!$B$11:$Z$315,9,0),0)","v":0},null,{"$f":"IFERROR(VLOOKUP(B289,'Schedule V(b)'!$B$11:$Z$315,11,0),0)","v":"Select"},null,{"$f":"IFERROR(VLOOKUP(B289,'Schedule V(b)'!$B$11:$Z$315,13,0),0)","v":0},null,{"$f":"IFERROR(VLOOKUP(B289,'Schedule V(b)'!$B$11:$Z$315,15,0),0)","v":"Select"},null,null,null,null,null,{"$f":"IFERROR(VLOOKUP(B289,'Schedule V(b)'!$B$11:$Z$315,25,0),0)","v":0},null,{"$f":"IFERROR(VLOOKUP(B289,'Schedule V(b)'!$B$11:$Z$315,23,0),0)","v":0}]
[279,null,null,{"$f":"IFERROR(VLOOKUP(B290,'Schedule V(b)'!$B$11:$Z$315,3,0),0)","v":0},null,{"$f":"IFERROR(VLOOKUP(B290,'Schedule V(b)'!$B$11:$Z$315,7,0),0)","v":"Select"},null,{"$f":"IFERROR(VLOOKUP(B290,'Schedule V(b)'!$B$11:$Z$315,9,0),0)","v":0},null,{"$f":"IFERROR(VLOOKUP(B290,'Schedule V(b)'!$B$11:$Z$315,11,0),0)","v":"Select"},null,{"$f":"IFERROR(VLOOKUP(B290,'Schedule V(b)'!$B$11:$Z$315,13,0),0)","v":0},null,{"$f":"IFERROR(VLOOKUP(B290,'Schedule V(b)'!$B$11:$Z$315,15,0),0)","v":"Select"},null,null,null,null,null,{"$f":"IFERROR(VLOOKUP(B290,'Schedule V(b)'!$B$11:$Z$315,25,0),0)","v":0},null,{"$f":"IFERROR(VLOOKUP(B290,'Schedule V(b)'!$B$11:$Z$315,23,0),0)","v":0}]
[280,null,null,{"$f":"IFERROR(VLOOKUP(B291,'Schedule V(b)'!$B$11:$Z$315,3,0),0)","v":0},null,{"$f":"IFERROR(VLOOKUP(B291,'Schedule V(b)'!$B$11:$Z$315,7,0),0)","v":"Select"},null,{"$f":"IFERROR(VLOOKUP(B291,'Schedule V(b)'!$B$11:$Z$315,9,0),0)","v":0},null,{"$f":"IFERROR(VLOOKUP(B291,'Schedule V(b)'!$B$11:$Z$315,11,0),0)","v":"Select"},null,{"$f":"IFERROR(VLOOKUP(B291,'Schedule V(b)'!$B$11:$Z$315,13,0),0)","v":0},null,{"$f":"IFERROR(VLOOKUP(B291,'Schedule V(b)'!$B$11:$Z$315,15,0),0)","v":"Select"},null,null,null,null,null,{"$f":"IFERROR(VLOOKUP(B291,'Schedule V(b)'!$B$11:$Z$315,25,0),0)","v":0},null,{"$f":"IFERROR(VLOOKUP(B291,'Schedule V(b)'!$B$11:$Z$315,23,0),0)","v":0}]
[281,null,null,{"$f":"IFERROR(VLOOKUP(B292,'Schedule V(b)'!$B$11:$Z$315,3,0),0)","v":0},null,{"$f":"IFERROR(VLOOKUP(B292,'Schedule V(b)'!$B$11:$Z$315,7,0),0)","v":"Select"},null,{"$f":"IFERROR(VLOOKUP(B292,'Schedule V(b)'!$B$11:$Z$315,9,0),0)","v":0},null,{"$f":"IFERROR(VLOOKUP(B292,'Schedule V(b)'!$B$11:$Z$315,11,0),0)","v":"Select"},null,{"$f":"IFERROR(VLOOKUP(B292,'Schedule V(b)'!$B$11:$Z$315,13,0),0)","v":0},null,{"$f":"IFERROR(VLOOKUP(B292,'Schedule V(b)'!$B$11:$Z$315,15,0),0)","v":"Select"},null,null,null,null,null,{"$f":"IFERROR(VLOOKUP(B292,'Schedule V(b)'!$B$11:$Z$315,25,0),0)","v":0},null,{"$f":"IFERROR(VLOOKUP(B292,'Schedule V(b)'!$B$11:$Z$315,23,0),0)","v":0}]
[282,null,null,{"$f":"IFERROR(VLOOKUP(B293,'Schedule V(b)'!$B$11:$Z$315,3,0),0)","v":0},null,{"$f":"IFERROR(VLOOKUP(B293,'Schedule V(b)'!$B$11:$Z$315,7,0),0)","v":"Select"},null,{"$f":"IFERROR(VLOOKUP(B293,'Schedule V(b)'!$B$11:$Z$315,9,0),0)","v":0},null,{"$f":"IFERROR(VLOOKUP(B293,'Schedule V(b)'!$B$11:$Z$315,11,0),0)","v":"Select"},null,{"$f":"IFERROR(VLOOKUP(B293,'Schedule V(b)'!$B$11:$Z$315,13,0),0)","v":0},null,{"$f":"IFERROR(VLOOKUP(B293,'Schedule V(b)'!$B$11:$Z$315,15,0),0)","v":"Select"},null,null,null,null,null,{"$f":"IFERROR(VLOOKUP(B293,'Schedule V(b)'!$B$11:$Z$315,25,0),0)","v":0},null,{"$f":"IFERROR(VLOOKUP(B293,'Schedule V(b)'!$B$11:$Z$315,23,0),0)","v":0}]
[283,null,null,{"$f":"IFERROR(VLOOKUP(B294,'Schedule V(b)'!$B$11:$Z$315,3,0),0)","v":0},null,{"$f":"IFERROR(VLOOKUP(B294,'Schedule V(b)'!$B$11:$Z$315,7,0),0)","v":"Select"},null,{"$f":"IFERROR(VLOOKUP(B294,'Schedule V(b)'!$B$11:$Z$315,9,0),0)","v":0},null,{"$f":"IFERROR(VLOOKUP(B294,'Schedule V(b)'!$B$11:$Z$315,11,0),0)","v":"Select"},null,{"$f":"IFERROR(VLOOKUP(B294,'Schedule V(b)'!$B$11:$Z$315,13,0),0)","v":0},null,{"$f":"IFERROR(VLOOKUP(B294,'Schedule V(b)'!$B$11:$Z$315,15,0),0)","v":"Select"},null,null,null,null,null,{"$f":"IFERROR(VLOOKUP(B294,'Schedule V(b)'!$B$11:$Z$315,25,0),0)","v":0},null,{"$f":"IFERROR(VLOOKUP(B294,'Schedule V(b)'!$B$11:$Z$315,23,0),0)","v":0}]
[284,null,null,{"$f":"IFERROR(VLOOKUP(B295,'Schedule V(b)'!$B$11:$Z$315,3,0),0)","v":0},null,{"$f":"IFERROR(VLOOKUP(B295,'Schedule V(b)'!$B$11:$Z$315,7,0),0)","v":"Select"},null,{"$f":"IFERROR(VLOOKUP(B295,'Schedule V(b)'!$B$11:$Z$315,9,0),0)","v":0},null,{"$f":"IFERROR(VLOOKUP(B295,'Schedule V(b)'!$B$11:$Z$315,11,0),0)","v":"Select"},null,{"$f":"IFERROR(VLOOKUP(B295,'Schedule V(b)'!$B$11:$Z$315,13,0),0)","v":0},null,{"$f":"IFERROR(VLOOKUP(B295,'Schedule V(b)'!$B$11:$Z$315,15,0),0)","v":"Select"},null,null,null,null,null,{"$f":"IFERROR(VLOOKUP(B295,'Schedule V(b)'!$B$11:$Z$315,25,0),0)","v":0},null,{"$f":"IFERROR(VLOOKUP(B295,'Schedule V(b)'!$B$11:$Z$315,23,0),0)","v":0}]
[285,null,null,{"$f":"IFERROR(VLOOKUP(B296,'Schedule V(b)'!$B$11:$Z$315,3,0),0)","v":0},null,{"$f":"IFERROR(VLOOKUP(B296,'Schedule V(b)'!$B$11:$Z$315,7,0),0)","v":"Select"},null,{"$f":"IFERROR(VLOOKUP(B296,'Schedule V(b)'!$B$11:$Z$315,9,0),0)","v":0},null,{"$f":"IFERROR(VLOOKUP(B296,'Schedule V(b)'!$B$11:$Z$315,11,0),0)","v":"Select"},null,{"$f":"IFERROR(VLOOKUP(B296,'Schedule V(b)'!$B$11:$Z$315,13,0),0)","v":0},null,{"$f":"IFERROR(VLOOKUP(B296,'Schedule V(b)'!$B$11:$Z$315,15,0),0)","v":"Select"},null,null,null,null,null,{"$f":"IFERROR(VLOOKUP(B296,'Schedule V(b)'!$B$11:$Z$315,25,0),0)","v":0},null,{"$f":"IFERROR(VLOOKUP(B296,'Schedule V(b)'!$B$11:$Z$315,23,0),0)","v":0}]
[286,null,null,{"$f":"IFERROR(VLOOKUP(B297,'Schedule V(b)'!$B$11:$Z$315,3,0),0)","v":0},null,{"$f":"IFERROR(VLOOKUP(B297,'Schedule V(b)'!$B$11:$Z$315,7,0),0)","v":"Select"},null,{"$f":"IFERROR(VLOOKUP(B297,'Schedule V(b)'!$B$11:$Z$315,9,0),0)","v":0},null,{"$f":"IFERROR(VLOOKUP(B297,'Schedule V(b)'!$B$11:$Z$315,11,0),0)","v":"Select"},null,{"$f":"IFERROR(VLOOKUP(B297,'Schedule V(b)'!$B$11:$Z$315,13,0),0)","v":0},null,{"$f":"IFERROR(VLOOKUP(B297,'Schedule V(b)'!$B$11:$Z$315,15,0),0)","v":"Select"},null,null,null,null,null,{"$f":"IFERROR(VLOOKUP(B297,'Schedule V(b)'!$B$11:$Z$315,25,0),0)","v":0},null,{"$f":"IFERROR(VLOOKUP(B297,'Schedule V(b)'!$B$11:$Z$315,23,0),0)","v":0}]
[287,null,null,{"$f":"IFERROR(VLOOKUP(B298,'Schedule V(b)'!$B$11:$Z$315,3,0),0)","v":0},null,{"$f":"IFERROR(VLOOKUP(B298,'Schedule V(b)'!$B$11:$Z$315,7,0),0)","v":"Select"},null,{"$f":"IFERROR(VLOOKUP(B298,'Schedule V(b)'!$B$11:$Z$315,9,0),0)","v":0},null,{"$f":"IFERROR(VLOOKUP(B298,'Schedule V(b)'!$B$11:$Z$315,11,0),0)","v":"Select"},null,{"$f":"IFERROR(VLOOKUP(B298,'Schedule V(b)'!$B$11:$Z$315,13,0),0)","v":0},null,{"$f":"IFERROR(VLOOKUP(B298,'Schedule V(b)'!$B$11:$Z$315,15,0),0)","v":"Select"},null,null,null,null,null,{"$f":"IFERROR(VLOOKUP(B298,'Schedule V(b)'!$B$11:$Z$315,25,0),0)","v":0},null,{"$f":"IFERROR(VLOOKUP(B298,'Schedule V(b)'!$B$11:$Z$315,23,0),0)","v":0}]
[288,null,null,{"$f":"IFERROR(VLOOKUP(B299,'Schedule V(b)'!$B$11:$Z$315,3,0),0)","v":0},null,{"$f":"IFERROR(VLOOKUP(B299,'Schedule V(b)'!$B$11:$Z$315,7,0),0)","v":"Select"},null,{"$f":"IFERROR(VLOOKUP(B299,'Schedule V(b)'!$B$11:$Z$315,9,0),0)","v":0},null,{"$f":"IFERROR(VLOOKUP(B299,'Schedule V(b)'!$B$11:$Z$315,11,0),0)","v":"Select"},null,{"$f":"IFERROR(VLOOKUP(B299,'Schedule V(b)'!$B$11:$Z$315,13,0),0)","v":0},null,{"$f":"IFERROR(VLOOKUP(B299,'Schedule V(b)'!$B$11:$Z$315,15,0),0)","v":"Select"},null,null,null,null,null,{"$f":"IFERROR(VLOOKUP(B299,'Schedule V(b)'!$B$11:$Z$315,25,0),0)","v":0},null,{"$f":"IFERROR(VLOOKUP(B299,'Schedule V(b)'!$B$11:$Z$315,23,0),0)","v":0}]
[289,null,null,{"$f":"IFERROR(VLOOKUP(B300,'Schedule V(b)'!$B$11:$Z$315,3,0),0)","v":0},null,{"$f":"IFERROR(VLOOKUP(B300,'Schedule V(b)'!$B$11:$Z$315,7,0),0)","v":"Select"},null,{"$f":"IFERROR(VLOOKUP(B300,'Schedule V(b)'!$B$11:$Z$315,9,0),0)","v":0},null,{"$f":"IFERROR(VLOOKUP(B300,'Schedule V(b)'!$B$11:$Z$315,11,0),0)","v":"Select"},null,{"$f":"IFERROR(VLOOKUP(B300,'Schedule V(b)'!$B$11:$Z$315,13,0),0)","v":0},null,{"$f":"IFERROR(VLOOKUP(B300,'Schedule V(b)'!$B$11:$Z$315,15,0),0)","v":"Select"},null,null,null,null,null,{"$f":"IFERROR(VLOOKUP(B300,'Schedule V(b)'!$B$11:$Z$315,25,0),0)","v":0},null,{"$f":"IFERROR(VLOOKUP(B300,'Schedule V(b)'!$B$11:$Z$315,23,0),0)","v":0}]
[290,null,null,{"$f":"IFERROR(VLOOKUP(B301,'Schedule V(b)'!$B$11:$Z$315,3,0),0)","v":0},null,{"$f":"IFERROR(VLOOKUP(B301,'Schedule V(b)'!$B$11:$Z$315,7,0),0)","v":"Select"},null,{"$f":"IFERROR(VLOOKUP(B301,'Schedule V(b)'!$B$11:$Z$315,9,0),0)","v":0},null,{"$f":"IFERROR(VLOOKUP(B301,'Schedule V(b)'!$B$11:$Z$315,11,0),0)","v":"Select"},null,{"$f":"IFERROR(VLOOKUP(B301,'Schedule V(b)'!$B$11:$Z$315,13,0),0)","v":0},null,{"$f":"IFERROR(VLOOKUP(B301,'Schedule V(b)'!$B$11:$Z$315,15,0),0)","v":"Select"},null,null,null,null,null,{"$f":"IFERROR(VLOOKUP(B301,'Schedule V(b)'!$B$11:$Z$315,25,0),0)","v":0},null,{"$f":"IFERROR(VLOOKUP(B301,'Schedule V(b)'!$B$11:$Z$315,23,0),0)","v":0}]
[291,null,null,{"$f":"IFERROR(VLOOKUP(B302,'Schedule V(b)'!$B$11:$Z$315,3,0),0)","v":0},null,{"$f":"IFERROR(VLOOKUP(B302,'Schedule V(b)'!$B$11:$Z$315,7,0),0)","v":"Select"},null,{"$f":"IFERROR(VLOOKUP(B302,'Schedule V(b)'!$B$11:$Z$315,9,0),0)","v":0},null,{"$f":"IFERROR(VLOOKUP(B302,'Schedule V(b)'!$B$11:$Z$315,11,0),0)","v":"Select"},null,{"$f":"IFERROR(VLOOKUP(B302,'Schedule V(b)'!$B$11:$Z$315,13,0),0)","v":0},null,{"$f":"IFERROR(VLOOKUP(B302,'Schedule V(b)'!$B$11:$Z$315,15,0),0)","v":"Select"},null,null,null,null,null,{"$f":"IFERROR(VLOOKUP(B302,'Schedule V(b)'!$B$11:$Z$315,25,0),0)","v":0},null,{"$f":"IFERROR(VLOOKUP(B302,'Schedule V(b)'!$B$11:$Z$315,23,0),0)","v":0}]
[292,null,null,{"$f":"IFERROR(VLOOKUP(B303,'Schedule V(b)'!$B$11:$Z$315,3,0),0)","v":0},null,{"$f":"IFERROR(VLOOKUP(B303,'Schedule V(b)'!$B$11:$Z$315,7,0),0)","v":"Select"},null,{"$f":"IFERROR(VLOOKUP(B303,'Schedule V(b)'!$B$11:$Z$315,9,0),0)","v":0},null,{"$f":"IFERROR(VLOOKUP(B303,'Schedule V(b)'!$B$11:$Z$315,11,0),0)","v":"Select"},null,{"$f":"IFERROR(VLOOKUP(B303,'Schedule V(b)'!$B$11:$Z$315,13,0),0)","v":0},null,{"$f":"IFERROR(VLOOKUP(B303,'Schedule V(b)'!$B$11:$Z$315,15,0),0)","v":"Select"},null,null,null,null,null,{"$f":"IFERROR(VLOOKUP(B303,'Schedule V(b)'!$B$11:$Z$315,25,0),0)","v":0},null,{"$f":"IFERROR(VLOOKUP(B303,'Schedule V(b)'!$B$11:$Z$315,23,0),0)","v":0}]
[293,null,null,{"$f":"IFERROR(VLOOKUP(B304,'Schedule V(b)'!$B$11:$Z$315,3,0),0)","v":0},null,{"$f":"IFERROR(VLOOKUP(B304,'Schedule V(b)'!$B$11:$Z$315,7,0),0)","v":"Select"},null,{"$f":"IFERROR(VLOOKUP(B304,'Schedule V(b)'!$B$11:$Z$315,9,0),0)","v":0},null,{"$f":"IFERROR(VLOOKUP(B304,'Schedule V(b)'!$B$11:$Z$315,11,0),0)","v":"Select"},null,{"$f":"IFERROR(VLOOKUP(B304,'Schedule V(b)'!$B$11:$Z$315,13,0),0)","v":0},null,{"$f":"IFERROR(VLOOKUP(B304,'Schedule V(b)'!$B$11:$Z$315,15,0),0)","v":"Select"},null,null,null,null,null,{"$f":"IFERROR(VLOOKUP(B304,'Schedule V(b)'!$B$11:$Z$315,25,0),0)","v":0},null,{"$f":"IFERROR(VLOOKUP(B304,'Schedule V(b)'!$B$11:$Z$315,23,0),0)","v":0}]
[294,null,null,{"$f":"IFERROR(VLOOKUP(B305,'Schedule V(b)'!$B$11:$Z$315,3,0),0)","v":0},null,{"$f":"IFERROR(VLOOKUP(B305,'Schedule V(b)'!$B$11:$Z$315,7,0),0)","v":"Select"},null,{"$f":"IFERROR(VLOOKUP(B305,'Schedule V(b)'!$B$11:$Z$315,9,0),0)","v":0},null,{"$f":"IFERROR(VLOOKUP(B305,'Schedule V(b)'!$B$11:$Z$315,11,0),0)","v":"Select"},null,{"$f":"IFERROR(VLOOKUP(B305,'Schedule V(b)'!$B$11:$Z$315,13,0),0)","v":0},null,{"$f":"IFERROR(VLOOKUP(B305,'Schedule V(b)'!$B$11:$Z$315,15,0),0)","v":"Select"},null,null,null,null,null,{"$f":"IFERROR(VLOOKUP(B305,'Schedule V(b)'!$B$11:$Z$315,25,0),0)","v":0},null,{"$f":"IFERROR(VLOOKUP(B305,'Schedule V(b)'!$B$11:$Z$315,23,0),0)","v":0}]
[295,null,null,{"$f":"IFERROR(VLOOKUP(B306,'Schedule V(b)'!$B$11:$Z$315,3,0),0)","v":0},null,{"$f":"IFERROR(VLOOKUP(B306,'Schedule V(b)'!$B$11:$Z$315,7,0),0)","v":"Select"},null,{"$f":"IFERROR(VLOOKUP(B306,'Schedule V(b)'!$B$11:$Z$315,9,0),0)","v":0},null,{"$f":"IFERROR(VLOOKUP(B306,'Schedule V(b)'!$B$11:$Z$315,11,0),0)","v":"Select"},null,{"$f":"IFERROR(VLOOKUP(B306,'Schedule V(b)'!$B$11:$Z$315,13,0),0)","v":0},null,{"$f":"IFERROR(VLOOKUP(B306,'Schedule V(b)'!$B$11:$Z$315,15,0),0)","v":"Select"},null,null,null,null,null,{"$f":"IFERROR(VLOOKUP(B306,'Schedule V(b)'!$B$11:$Z$315,25,0),0)","v":0},null,{"$f":"IFERROR(VLOOKUP(B306,'Schedule V(b)'!$B$11:$Z$315,23,0),0)","v":0}]
[296,null,null,{"$f":"IFERROR(VLOOKUP(B307,'Schedule V(b)'!$B$11:$Z$315,3,0),0)","v":0},null,{"$f":"IFERROR(VLOOKUP(B307,'Schedule V(b)'!$B$11:$Z$315,7,0),0)","v":"Select"},null,{"$f":"IFERROR(VLOOKUP(B307,'Schedule V(b)'!$B$11:$Z$315,9,0),0)","v":0},null,{"$f":"IFERROR(VLOOKUP(B307,'Schedule V(b)'!$B$11:$Z$315,11,0),0)","v":"Select"},null,{"$f":"IFERROR(VLOOKUP(B307,'Schedule V(b)'!$B$11:$Z$315,13,0),0)","v":0},null,{"$f":"IFERROR(VLOOKUP(B307,'Schedule V(b)'!$B$11:$Z$315,15,0),0)","v":"Select"},null,null,null,null,null,{"$f":"IFERROR(VLOOKUP(B307,'Schedule V(b)'!$B$11:$Z$315,25,0),0)","v":0},null,{"$f":"IFERROR(VLOOKUP(B307,'Schedule V(b)'!$B$11:$Z$315,23,0),0)","v":0}]
[297,null,null,{"$f":"IFERROR(VLOOKUP(B308,'Schedule V(b)'!$B$11:$Z$315,3,0),0)","v":0},null,{"$f":"IFERROR(VLOOKUP(B308,'Schedule V(b)'!$B$11:$Z$315,7,0),0)","v":"Select"},null,{"$f":"IFERROR(VLOOKUP(B308,'Schedule V(b)'!$B$11:$Z$315,9,0),0)","v":0},null,{"$f":"IFERROR(VLOOKUP(B308,'Schedule V(b)'!$B$11:$Z$315,11,0),0)","v":"Select"},null,{"$f":"IFERROR(VLOOKUP(B308,'Schedule V(b)'!$B$11:$Z$315,13,0),0)","v":0},null,{"$f":"IFERROR(VLOOKUP(B308,'Schedule V(b)'!$B$11:$Z$315,15,0),0)","v":"Select"},null,null,null,null,null,{"$f":"IFERROR(VLOOKUP(B308,'Schedule V(b)'!$B$11:$Z$315,25,0),0)","v":0},null,{"$f":"IFERROR(VLOOKUP(B308,'Schedule V(b)'!$B$11:$Z$315,23,0),0)","v":0}]
[298,null,null,{"$f":"IFERROR(VLOOKUP(B309,'Schedule V(b)'!$B$11:$Z$315,3,0),0)","v":0},null,{"$f":"IFERROR(VLOOKUP(B309,'Schedule V(b)'!$B$11:$Z$315,7,0),0)","v":"Select"},null,{"$f":"IFERROR(VLOOKUP(B309,'Schedule V(b)'!$B$11:$Z$315,9,0),0)","v":0},null,{"$f":"IFERROR(VLOOKUP(B309,'Schedule V(b)'!$B$11:$Z$315,11,0),0)","v":"Select"},null,{"$f":"IFERROR(VLOOKUP(B309,'Schedule V(b)'!$B$11:$Z$315,13,0),0)","v":0},null,{"$f":"IFERROR(VLOOKUP(B309,'Schedule V(b)'!$B$11:$Z$315,15,0),0)","v":"Select"},null,null,null,null,null,{"$f":"IFERROR(VLOOKUP(B309,'Schedule V(b)'!$B$11:$Z$315,25,0),0)","v":0},null,{"$f":"IFERROR(VLOOKUP(B309,'Schedule V(b)'!$B$11:$Z$315,23,0),0)","v":0}]
[299,null,null,{"$f":"IFERROR(VLOOKUP(B310,'Schedule V(b)'!$B$11:$Z$315,3,0),0)","v":0},null,{"$f":"IFERROR(VLOOKUP(B310,'Schedule V(b)'!$B$11:$Z$315,7,0),0)","v":"Select"},null,{"$f":"IFERROR(VLOOKUP(B310,'Schedule V(b)'!$B$11:$Z$315,9,0),0)","v":0},null,{"$f":"IFERROR(VLOOKUP(B310,'Schedule V(b)'!$B$11:$Z$315,11,0),0)","v":"Select"},null,{"$f":"IFERROR(VLOOKUP(B310,'Schedule V(b)'!$B$11:$Z$315,13,0),0)","v":0},null,{"$f":"IFERROR(VLOOKUP(B310,'Schedule V(b)'!$B$11:$Z$315,15,0),0)","v":"Select"},null,null,null,null,null,{"$f":"IFERROR(VLOOKUP(B310,'Schedule V(b)'!$B$11:$Z$315,25,0),0)","v":0},null,{"$f":"IFERROR(VLOOKUP(B310,'Schedule V(b)'!$B$11:$Z$315,23,0),0)","v":0}]
[300,null,null,{"$f":"IFERROR(VLOOKUP(B311,'Schedule V(b)'!$B$11:$Z$315,3,0),0)","v":0},null,{"$f":"IFERROR(VLOOKUP(B311,'Schedule V(b)'!$B$11:$Z$315,7,0),0)","v":"Select"},null,{"$f":"IFERROR(VLOOKUP(B311,'Schedule V(b)'!$B$11:$Z$315,9,0),0)","v":0},null,{"$f":"IFERROR(VLOOKUP(B311,'Schedule V(b)'!$B$11:$Z$315,11,0),0)","v":"Select"},null,{"$f":"IFERROR(VLOOKUP(B311,'Schedule V(b)'!$B$11:$Z$315,13,0),0)","v":0},null,{"$f":"IFERROR(VLOOKUP(B311,'Schedule V(b)'!$B$11:$Z$315,15,0),0)","v":"Select"},null,null,null,null,null,{"$f":"IFERROR(VLOOKUP(B311,'Schedule V(b)'!$B$11:$Z$315,25,0),0)","v":0},null,{"$f":"IFERROR(VLOOKUP(B311,'Schedule V(b)'!$B$11:$Z$315,23,0),0)","v":0}]
[]
[null,null,null,null,null,null,null,null,null,null,null,null,null,null,null,null,null,null,null,{"$f":"SUM(T12:T311)","v":0},null,{"$f":"SUM(V12:V311)","v":0}]
[]
[]
[]
[]
[]
[]
[]
[null,"Affiliate Category:"]
[null,"Select"]
[null,"Unregulated entities that conduct ancillary services"]
[null,"Unregulated non-financial operating entities "]
[null,"Unregulated financial operating entities "]
[null,"Regulated non-insurance financial operating entities"]
[]
[null,"Reason for data deficiency:"]
[null,"Select",null,null,"EntitiesCapitalDeductedFromAvailableStatutoryCapitalAndSurplusNetAssets"]
[null,"Unknown strategic purpose/nature of operations"]
[null,"Insufficient information surrounding eligible capital"]

{"sheet":"Schedule XII","index":85,"n_rows":314,"n_cols":28,"rows_kept":314,"cut":false,"hidden":false,"merged":[[13,21,14,21],[4,9,7,9],[3,0,3,1],[4,7,7,7],[4,11,6,11]]}
["SCHEDULE OF GROUP MINIMUM MARGIN OF SOLVENCY",null,null,null,null,null,null,null,null,null,null,null,null,null,null,null,null,null,null,{"$f":"HYPERLINK(\"#'Index'!A1\",\"Return to Index\")","v":"Return to Index"}]
[null,null,null,null,null,null,null,null,null,null,null,null,null,null,null,null,null,null,null,null,null,null,null,null,null,"Energy ",null,{"$f":"'Group Information'!L1","v":"00:00:00"}]
[{"$f":"'Group Information'!C9","v":"Enter Parent Company Name"},null,null,null,null,null,null,null,null,null,null,null,null,null,null,null,null,null,null,null,null,null,null,null,null,"Materials"]
[{"$f":"'Form 1EBS'!C3","v":"2023-12-31"},null,null,null,null,null,null,null,null,null,null,null,null,null,null,null,null,null,null,null,null,null,null,null,null,"Industrial"]
[{"$f":"'Form 1EBS'!C4","v":" ['000s]United States Dollars"},null,null,null,null,null,null,null,null,null,null,null,null,null,null,null,null,null,null,"SCHEDULE XII",null,null,null,null,null,"Consumer Discretionary"]
[null,null,null,null,null,null,null,null,null,null,null,null,null,null,null,null,null,null,null,null,null,null,null,null,null,"Energy "]
[null," Enter Number of Insurance Entities",null,{"$f":"Import!E37290","v":0},null,null,null,null,null,null,null,null,null,null,null,null,null,null,null,null,null,null,null,null,null,"Consumer Staples"]
[null," Enter information for each entity",null,null,null,null,null,null,null,null,null,null,null,null,null,null,null,null,null,null,null,null,"Control",null,1,"Healthcare"]
[null,"(1)",null,"(2)",null,"(3)",null,"(4)",null,"(5)",null,"(6)",null,"(7)",null,"(8)",null,"(9)",null,"(10)",null,null,"Significant Influence",null,null,"Financial"]
[null,"Input Group Member Name \n(as inputted in Schedule V(b))",null,"Jurisdiction",null,"Entity Type",null,"Participation Type",null,"Percent of Participation/Interest",null,"Net Premiums Written",null,"Total Assets",null,"Input Minimum Margin of Solvency (MSM)",null,"Input Regulatory Capital Requirement (ECR Equivalent)",null,"Proportionate Share on the MSM",null,null,null,null,null,"Information Technology"]
[null,null,null,null,null,null,null,null,null,null,null,null,null,null,null,null,null,null,null,null,null,null,null,null,null,"Telecommunication Services"]
[1,{"$f":"Import!E37291","v":0},null,{"$f":"IFERROR(VLOOKUP(B12,'Schedule V(b)'!$B$11:$Z$315,3,0),0)","v":0},null,{"$f":"IFERROR(VLOOKUP(B12,'Schedule V(b)'!$B$11:$Z$315,11,0),0)","v":"Select"},null,{"$f":"IFERROR(VLOOKUP(B12,'Schedule V(b)'!$B$11:$Z$315,15,0),0)","v":"Select"},null,{"$f":"IFERROR(VLOOKUP(B12,'Schedule V(b)'!$B$11:$Z$315,17,0),0)","v":0},null,{"$f":"IFERROR(VLOOKUP(B12,'Schedule V(b)'!$B$11:$Z$315,19,0),0)","v":0},null,{"$f":"IFERROR(VLOOKUP(B12,'Schedule V(b)'!$B$11:$Z$315,25,0),0)","v":0},null,{"$f":"Import!E37361","v":0},null,{"$f":"Import!E37431","v":0},null,{"$f":"IF(H12=\"Control\",$Y$8*P12,J12*P12)","v":0},null,null,null,null,null,"Utilities"]
[2,{"$f":"Import!E37292","v":0},null,{"$f":"IFERROR(VLOOKUP(B13,'Schedule V(b)'!$B$11:$Z$315,3,0),0)","v":0},null,{"$f":"IFERROR(VLOOKUP(B13,'Schedule V(b)'!$B$11:$Z$315,11,0),0)","v":"Select"},null,{"$f":"IFERROR(VLOOKUP(B13,'Schedule V(b)'!$B$11:$Z$315,15,0),0)","v":"Select"},null,{"$f":"IFERROR(VLOOKUP(B13,'Schedule V(b)'!$B$11:$Z$315,17,0),0)","v":0},null,{"$f":"IFERROR(VLOOKUP(B13,'Schedule V(b)'!$B$11:$Z$315,19,0),0)","v":0},null,{"$f":"IFERROR(VLOOKUP(B13,'Schedule V(b)'!$B$11:$Z$315,25,0),0)","v":0},null,{"$f":"Import!E37362","v":0},null,{"$f":"Import!E37432","v":0},null,{"$f":"IF(H13=\"Control\",$Y$8*P13,J13*P13)","v":0},null,null,null,null,null,"Other"]
[3,{"$f":"Import!E37293","v":0},null,{"$f":"IFERROR(VLOOKUP(B14,'Schedule V(b)'!$B$11:$Z$315,3,0),0)","v":0},null,{"$f":"IFERROR(VLOOKUP(B14,'Schedule V(b)'!$B$11:$Z$315,11,0),0)","v":"Select"},null,{"$f":"IFERROR(VLOOKUP(B14,'Schedule V(b)'!$B$11:$Z$315,15,0),0)","v":"Select"},null,{"$f":"IFERROR(VLOOKUP(B14,'Schedule V(b)'!$B$11:$Z$315,17,0),0)","v":0},null,{"$f":"IFERROR(VLOOKUP(B14,'Schedule V(b)'!$B$11:$Z$315,19,0),0)","v":0},null,{"$f":"IFERROR(VLOOKUP(B14,'Schedule V(b)'!$B$11:$Z$315,25,0),0)","v":0},null,{"$f":"Import!E37363","v":0},null,{"$f":"Import!E37433","v":0},null,0]
[4,{"$f":"Import!E37294","v":0},null,{"$f":"IFERROR(VLOOKUP(B15,'Schedule V(b)'!$B$11:$Z$315,3,0),0)","v":0},null,{"$f":"IFERROR(VLOOKUP(B15,'Schedule V(b)'!$B$11:$Z$315,11,0),0)","v":"Select"},null,{"$f":"IFERROR(VLOOKUP(B15,'Schedule V(b)'!$B$11:$Z$315,15,0),0)","v":"Select"},null,{"$f":"IFERROR(VLOOKUP(B15,'Schedule V(b)'!$B$11:$Z$315,17,0),0)","v":0},null,{"$f":"IFERROR(VLOOKUP(B15,'Schedule V(b)'!$B$11:$Z$315,19,0),0)","v":0},null,{"$f":"IFERROR(VLOOKUP(B15,'Schedule V(b)'!$B$11:$Z$315,25,0),0)","v":0},null,{"$f":"Import!E37364","v":0},null,{"$f":"Import!E37434","v":0},null,0]
[5,{"$f":"Import!E37295","v":0},null,{"$f":"IFERROR(VLOOKUP(B16,'Schedule V(b)'!$B$11:$Z$315,3,0),0)","v":0},null,{"$f":"IFERROR(VLOOKUP(B16,'Schedule V(b)'!$B$11:$Z$315,11,0),0)","v":"Select"},null,{"$f":"IFERROR(VLOOKUP(B16,'Schedule V(b)'!$B$11:$Z$315,15,0),0)","v":"Select"},null,{"$f":"IFERROR(VLOOKUP(B16,'Schedule V(b)'!$B$11:$Z$315,17,0),0)","v":0},null,{"$f":"IFERROR(VLOOKUP(B16,'Schedule V(b)'!$B$11:$Z$315,19,0),0)","v":0},null,{"$f":"IFERROR(VLOOKUP(B16,'Schedule V(b)'!$B$11:$Z$315,25,0),0)","v":0},null,{"$f":"Import!E37365","v":0},null,{"$f":"Import!E37435","v":0},null,0]
[6,{"$f":"Import!E37296","v":0},null,{"$f":"IFERROR(VLOOKUP(B17,'Schedule V(b)'!$B$11:$Z$315,3,0),0)","v":0},null,{"$f":"IFERROR(VLOOKUP(B17,'Schedule V(b)'!$B$11:$Z$315,11,0),0)","v":"Select"},null,{"$f":"IFERROR(VLOOKUP(B17,'Schedule V(b)'!$B$11:$Z$315,15,0),0)","v":"Select"},null,{"$f":"IFERROR(VLOOKUP(B17,'Schedule V(b)'!$B$11:$Z$315,17,0),0)","v":0},null,{"$f":"IFERROR(VLOOKUP(B17,'Schedule V(b)'!$B$11:$Z$315,19,0),0)","v":0},null,{"$f":"IFERROR(VLOOKUP(B17,'Schedule V(b)'!$B$11:$Z$315,25,0),0)","v":0},null,{"$f":"Import!E37366","v":0},null,{"$f":"Import!E37436","v":0},null,0]
[7,{"$f":"Import!E37297","v":0},null,{"$f":"IFERROR(VLOOKUP(B18,'Schedule V(b)'!$B$11:$Z$315,3,0),0)","v":0},null,{"$f":"IFERROR(VLOOKUP(B18,'Schedule V(b)'!$B$11:$Z$315,11,0),0)","v":"Select"},null,{"$f":"IFERROR(VLOOKUP(B18,'Schedule V(b)'!$B$11:$Z$315,15,0),0)","v":"Select"},null,{"$f":"IFERROR(VLOOKUP(B18,'Schedule V(b)'!$B$11:$Z$315,17,0),0)","v":0},null,{"$f":"IFERROR(VLOOKUP(B18,'Schedule V(b)'!$B$11:$Z$315,19,0),0)","v":0},null,{"$f":"IFERROR(VLOOKUP(B18,'Schedule V(b)'!$B$11:$Z$315,25,0),0)","v":0},null,{"$f":"Import!E37367","v":0},null,{"$f":"Import!E37437","v":0},null,0]
[8,{"$f":"Import!E37298","v":0},null,{"$f":"IFERROR(VLOOKUP(B19,'Schedule V(b)'!$B$11:$Z$315,3,0),0)","v":0},null,{"$f":"IFERROR(VLOOKUP(B19,'Schedule V(b)'!$B$11:$Z$315,11,0),0)","v":"Select"},null,{"$f":"IFERROR(VLOOKUP(B19,'Schedule V(b)'!$B$11:$Z$315,15,0),0)","v":"Select"},null,{"$f":"IFERROR(VLOOKUP(B19,'Schedule V(b)'!$B$11:$Z$315,17,0),0)","v":0},null,{"$f":"IFERROR(VLOOKUP(B19,'Schedule V(b)'!$B$11:$Z$315,19,0),0)","v":0},null,{"$f":"IFERROR(VLOOKUP(B19,'Schedule V(b)'!$B$11:$Z$315,25,0),0)","v":0},null,{"$f":"Import!E37368","v":0},null,{"$f":"Import!E37438","v":0},null,0]
[9,{"$f":"Import!E37299","v":0},null,{"$f":"IFERROR(VLOOKUP(B20,'Schedule V(b)'!$B$11:$Z$315,3,0),0)","v":0},null,{"$f":"IFERROR(VLOOKUP(B20,'Schedule V(b)'!$B$11:$Z$315,11,0),0)","v":"Select"},null,{"$f":"IFERROR(VLOOKUP(B20,'Schedule V(b)'!$B$11:$Z$315,15,0),0)","v":"Select"},null,{"$f":"IFERROR(VLOOKUP(B20,'Schedule V(b)'!$B$11:$Z$315,17,0),0)","v":0},null,{"$f":"IFERROR(VLOOKUP(B20,'Schedule V(b)'!$B$11:$Z$315,19,0),0)","v":0},null,{"$f":"IFERROR(VLOOKUP(B20,'Schedule V(b)'!$B$11:$Z$315,25,0),0)","v":0},null,{"$f":"Import!E37369","v":0},null,{"$f":"Import!E37439","v":0},null,0]
[10,{"$f":"Import!E37300","v":0},null,{"$f":"IFERROR(VLOOKUP(B21,'Schedule V(b)'!$B$11:$Z$315,3,0),0)","v":0},null,{"$f":"IFERROR(VLOOKUP(B21,'Schedule V(b)'!$B$11:$Z$315,11,0),0)","v":"Select"},null,{"$f":"IFERROR(VLOOKUP(B21,'Schedule V(b)'!$B$11:$Z$315,15,0),0)","v":"Select"},null,{"$f":"IFERROR(VLOOKUP(B21,'Schedule V(b)'!$B$11:$Z$315,17,0),0)","v":0},null,{"$f":"IFERROR(VLOOKUP(B21,'Schedule V(b)'!$B$11:$Z$315,19,0),0)","v":0},null,{"$f":"IFERROR(VLOOKUP(B21,'Schedule V(b)'!$B$11:$Z$315,25,0),0)","v":0},null,{"$f":"Import!E37370","v":0},null,{"$f":"Import!E37440","v":0},null,0]
[11,{"$f":"Import!E37301","v":0},null,{"$f":"IFERROR(VLOOKUP(B22,'Schedule V(b)'!$B$11:$Z$315,3,0),0)","v":0},null,{"$f":"IFERROR(VLOOKUP(B22,'Schedule V(b)'!$B$11:$Z$315,11,0),0)","v":"Select"},null,{"$f":"IFERROR(VLOOKUP(B22,'Schedule V(b)'!$B$11:$Z$315,15,0),0)","v":"Select"},null,{"$f":"IFERROR(VLOOKUP(B22,'Schedule V(b)'!$B$11:$Z$315,17,0),0)","v":0},null,{"$f":"IFERROR(VLOOKUP(B22,'Schedule V(b)'!$B$11:$Z$315,19,0),0)","v":0},null,{"$f":"IFERROR(VLOOKUP(B22,'Schedule V(b)'!$B$11:$Z$315,25,0),0)","v":0},null,{"$f":"Import!E37371","v":0},null,{"$f":"Import!E37441","v":0},null,0]
[12,{"$f":"Import!E37302","v":0},null,{"$f":"IFERROR(VLOOKUP(B23,'Schedule V(b)'!$B$11:$Z$315,3,0),0)","v":0},null,{"$f":"IFERROR(VLOOKUP(B23,'Schedule V(b)'!$B$11:$Z$315,11,0),0)","v":"Select"},null,{"$f":"IFERROR(VLOOKUP(B23,'Schedule V(b)'!$B$11:$Z$315,15,0),0)","v":"Select"},null,{"$f":"IFERROR(VLOOKUP(B23,'Schedule V(b)'!$B$11:$Z$315,17,0),0)","v":0},null,{"$f":"IFERROR(VLOOKUP(B23,'Schedule V(b)'!$B$11:$Z$315,19,0),0)","v":0},null,{"$f":"IFERROR(VLOOKUP(B23,'Schedule V(b)'!$B$11:$Z$315,25,0),0)","v":0},null,{"$f":"Import!E37372","v":0},null,{"$f":"Import!E37442","v":0},null,0]
[13,{"$f":"Import!E37303","v":0},null,{"$f":"IFERROR(VLOOKUP(B24,'Schedule V(b)'!$B$11:$Z$315,3,0),0)","v":0},null,{"$f":"IFERROR(VLOOKUP(B24,'Schedule V(b)'!$B$11:$Z$315,11,0),0)","v":"Select"},null,{"$f":"IFERROR(VLOOKUP(B24,'Schedule V(b)'!$B$11:$Z$315,15,0),0)","v":"Select"},null,{"$f":"IFERROR(VLOOKUP(B24,'Schedule V(b)'!$B$11:$Z$315,17,0),0)","v":0},null,{"$f":"IFERROR(VLOOKUP(B24,'Schedule V(b)'!$B$11:$Z$315,19,0),0)","v":0},null,{"$f":"IFERROR(VLOOKUP(B24,'Schedule V(b)'!$B$11:$Z$315,25,0),0)","v":0},null,{"$f":"Import!E37373","v":0},null,{"$f":"Import!E37443","v":0},null,0]
[14,{"$f":"Import!E37304","v":0},null,{"$f":"IFERROR(VLOOKUP(B25,'Schedule V(b)'!$B$11:$Z$315,3,0),0)","v":0},null,{"$f":"IFERROR(VLOOKUP(B25,'Schedule V(b)'!$B$11:$Z$315,11,0),0)","v":"Select"},null,{"$f":"IFERROR(VLOOKUP(B25,'Schedule V(b)'!$B$11:$Z$315,15,0),0)","v":"Select"},null,{"$f":"IFERROR(VLOOKUP(B25,'Schedule V(b)'!$B$11:$Z$315,17,0),0)","v":0},null,{"$f":"IFERROR(VLOOKUP(B25,'Schedule V(b)'!$B$11:$Z$315,19,0),0)","v":0},null,{"$f":"IFERROR(VLOOKUP(B25,'Schedule V(b)'!$B$11:$Z$315,25,0),0)","v":0},null,{"$f":"Import!E37374","v":0},null,{"$f":"Import!E37444","v":0},null,0]
[15,{"$f":"Import!E37305","v":0},null,{"$f":"IFERROR(VLOOKUP(B26,'Schedule V(b)'!$B$11:$Z$315,3,0),0)","v":0},null,{"$f":"IFERROR(VLOOKUP(B26,'Schedule V(b)'!$B$11:$Z$315,11,0),0)","v":"Select"},null,{"$f":"IFERROR(VLOOKUP(B26,'Schedule V(b)'!$B$11:$Z$315,15,0),0)","v":"Select"},null,{"$f":"IFERROR(VLOOKUP(B26,'Schedule V(b)'!$B$11:$Z$315,17,0),0)","v":0},null,{"$f":"IFERROR(VLOOKUP(B26,'Schedule V(b)'!$B$11:$Z$315,19,0),0)","v":0},null,{"$f":"IFERROR(VLOOKUP(B26,'Schedule V(b)'!$B$11:$Z$315,25,0),0)","v":0},null,{"$f":"Import!E37375","v":0},null,{"$f":"Import!E37445","v":0},null,0]
[16,{"$f":"Import!E37306","v":0},null,{"$f":"IFERROR(VLOOKUP(B27,'Schedule V(b)'!$B$11:$Z$315,3,0),0)","v":0},null,{"$f":"IFERROR(VLOOKUP(B27,'Schedule V(b)'!$B$11:$Z$315,11,0),0)","v":"Select"},null,{"$f":"IFERROR(VLOOKUP(B27,'Schedule V(b)'!$B$11:$Z$315,15,0),0)","v":"Select"},null,{"$f":"IFERROR(VLOOKUP(B27,'Schedule V(b)'!$B$11:$Z$315,17,0),0)","v":0},null,{"$f":"IFERROR(VLOOKUP(B27,'Schedule V(b)'!$B$11:$Z$315,19,0),0)","v":0},null,{"$f":"IFERROR(VLOOKUP(B27,'Schedule V(b)'!$B$11:$Z$315,25,0),0)","v":0},null,{"$f":"Import!E37376","v":0},null,{"$f":"Import!E37446","v":0},null,0]
[17,{"$f":"Import!E37307","v":0},null,{"$f":"IFERROR(VLOOKUP(B28,'Schedule V(b)'!$B$11:$Z$315,3,0),0)","v":0},null,{"$f":"IFERROR(VLOOKUP(B28,'Schedule V(b)'!$B$11:$Z$315,11,0),0)","v":"Select"},null,{"$f":"IFERROR(VLOOKUP(B28,'Schedule V(b)'!$B$11:$Z$315,15,0),0)","v":"Select"},null,{"$f":"IFERROR(VLOOKUP(B28,'Schedule V(b)'!$B$11:$Z$315,17,0),0)","v":0},null,{"$f":"IFERROR(VLOOKUP(B28,'Schedule V(b)'!$B$11:$Z$315,19,0),0)","v":0},null,{"$f":"IFERROR(VLOOKUP(B28,'Schedule V(b)'!$B$11:$Z$315,25,0),0)","v":0},null,{"$f":"Import!E37377","v":0},null,{"$f":"Import!E37447","v":0},null,0]
[18,{"$f":"Import!E37308","v":0},null,{"$f":"IFERROR(VLOOKUP(B29,'Schedule V(b)'!$B$11:$Z$315,3,0),0)","v":0},null,{"$f":"IFERROR(VLOOKUP(B29,'Schedule V(b)'!$B$11:$Z$315,11,0),0)","v":"Select"},null,{"$f":"IFERROR(VLOOKUP(B29,'Schedule V(b)'!$B$11:$Z$315,15,0),0)","v":"Select"},null,{"$f":"IFERROR(VLOOKUP(B29,'Schedule V(b)'!$B$11:$Z$315,17,0),0)","v":0},null,{"$f":"IFERROR(VLOOKUP(B29,'Schedule V(b)'!$B$11:$Z$315,19,0),0)","v":0},null,{"$f":"IFERROR(VLOOKUP(B29,'Schedule V(b)'!$B$11:$Z$315,25,0),0)","v":0},null,{"$f":"Import!E37378","v":0},null,{"$f":"Import!E37448","v":0},null,0]
[19,{"$f":"Import!E37309","v":0},null,{"$f":"IFERROR(VLOOKUP(B30,'Schedule V(b)'!$B$11:$Z$315,3,0),0)","v":0},null,{"$f":"IFERROR(VLOOKUP(B30,'Schedule V(b)'!$B$11:$Z$315,11,0),0)","v":"Select"},null,{"$f":"IFERROR(VLOOKUP(B30,'Schedule V(b)'!$B$11:$Z$315,15,0),0)","v":"Select"},null,{"$f":"IFERROR(VLOOKUP(B30,'Schedule V(b)'!$B$11:$Z$315,17,0),0)","v":0},null,{"$f":"IFERROR(VLOOKUP(B30,'Schedule V(b)'!$B$11:$Z$315,19,0),0)","v":0},null,{"$f":"IFERROR(VLOOKUP(B30,'Schedule V(b)'!$B$11:$Z$315,25,0),0)","v":0},null,{"$f":"Import!E37379","v":0},null,{"$f":"Import!E37449","v":0},null,0]
[20,{"$f":"Import!E37310","v":0},null,{"$f":"IFERROR(VLOOKUP(B31,'Schedule V(b)'!$B$11:$Z$315,3,0),0)","v":0},null,{"$f":"IFERROR(VLOOKUP(B31,'Schedule V(b)'!$B$11:$Z$315,11,0),0)","v":"Select"},null,{"$f":"IFERROR(VLOOKUP(B31,'Schedule V(b)'!$B$11:$Z$315,15,0),0)","v":"Select"},null,{"$f":"IFERROR(VLOOKUP(B31,'Schedule V(b)'!$B$11:$Z$315,17,0),0)","v":0},null,{"$f":"IFERROR(VLOOKUP(B31,'Schedule V(b)'!$B$11:$Z$315,19,0),0)","v":0},null,{"$f":"IFERROR(VLOOKUP(B31,'Schedule V(b)'!$B$11:$Z$315,25,0),0)","v":0},null,{"$f":"Import!E37380","v":0},null,{"$f":"Import!E37450","v":0},null,0]
[21,{"$f":"Import!E37311","v":0},null,{"$f":"IFERROR(VLOOKUP(B32,'Schedule V(b)'!$B$11:$Z$315,3,0),0)","v":0},null,{"$f":"IFERROR(VLOOKUP(B32,'Schedule V(b)'!$B$11:$Z$315,11,0),0)","v":"Select"},null,{"$f":"IFERROR(VLOOKUP(B32,'Schedule V(b)'!$B$11:$Z$315,15,0),0)","v":"Select"},null,{"$f":"IFERROR(VLOOKUP(B32,'Schedule V(b)'!$B$11:$Z$315,17,0),0)","v":0},null,{"$f":"IFERROR(VLOOKUP(B32,'Schedule V(b)'!$B$11:$Z$315,19,0),0)","v":0},null,{"$f":"IFERROR(VLOOKUP(B32,'Schedule V(b)'!$B$11:$Z$315,25,0),0)","v":0},null,{"$f":"Import!E37381","v":0},null,{"$f":"Import!E37451","v":0},null,0]
[22,{"$f":"Import!E37312","v":0},null,{"$f":"IFERROR(VLOOKUP(B33,'Schedule V(b)'!$B$11:$Z$315,3,0),0)","v":0},null,{"$f":"IFERROR(VLOOKUP(B33,'Schedule V(b)'!$B$11:$Z$315,11,0),0)","v":"Select"},null,{"$f":"IFERROR(VLOOKUP(B33,'Schedule V(b)'!$B$11:$Z$315,15,0),0)","v":"Select"},null,{"$f":"IFERROR(VLOOKUP(B33,'Schedule V(b)'!$B$11:$Z$315,17,0),0)","v":0},null,{"$f":"IFERROR(VLOOKUP(B33,'Schedule V(b)'!$B$11:$Z$315,19,0),0)","v":0},null,{"$f":"IFERROR(VLOOKUP(B33,'Schedule V(b)'!$B$11:$Z$315,25,0),0)","v":0},null,{"$f":"Import!E37382","v":0},null,{"$f":"Import!E37452","v":0},null,0]
[23,{"$f":"Import!E37313","v":0},null,{"$f":"IFERROR(VLOOKUP(B34,'Schedule V(b)'!$B$11:$Z$315,3,0),0)","v":0},null,{"$f":"IFERROR(VLOOKUP(B34,'Schedule V(b)'!$B$11:$Z$315,11,0),0)","v":"Select"},null,{"$f":"IFERROR(VLOOKUP(B34,'Schedule V(b)'!$B$11:$Z$315,15,0),0)","v":"Select"},null,{"$f":"IFERROR(VLOOKUP(B34,'Schedule V(b)'!$B$11:$Z$315,17,0),0)","v":0},null,{"$f":"IFERROR(VLOOKUP(B34,'Schedule V(b)'!$B$11:$Z$315,19,0),0)","v":0},null,{"$f":"IFERROR(VLOOKUP(B34,'Schedule V(b)'!$B$11:$Z$315,25,0),0)","v":0},null,{"$f":"Import!E37383","v":0},null,{"$f":"Import!E37453","v":0},null,0]
[24,{"$f":"Import!E37314","v":0},null,{"$f":"IFERROR(VLOOKUP(B35,'Schedule V(b)'!$B$11:$Z$315,3,0),0)","v":0},null,{"$f":"IFERROR(VLOOKUP(B35,'Schedule V(b)'!$B$11:$Z$315,11,0),0)","v":"Select"},null,{"$f":"IFERROR(VLOOKUP(B35,'Schedule V(b)'!$B$11:$Z$315,15,0),0)","v":"Select"},null,{"$f":"IFERROR(VLOOKUP(B35,'Schedule V(b)'!$B$11:$Z$315,17,0),0)","v":0},null,{"$f":"IFERROR(VLOOKUP(B35,'Schedule V(b)'!$B$11:$Z$315,19,0),0)","v":0},null,{"$f":"IFERROR(VLOOKUP(B35,'Schedule V(b)'!$B$11:$Z$315,25,0),0)","v":0},null,{"$f":"Import!E37384","v":0},null,{"$f":"Import!E37454","v":0},null,0]
[25,{"$f":"Import!E37315","v":0},null,{"$f":"IFERROR(VLOOKUP(B36,'Schedule V(b)'!$B$11:$Z$315,3,0),0)","v":0},null,{"$f":"IFERROR(VLOOKUP(B36,'Schedule V(b)'!$B$11:$Z$315,11,0),0)","v":"Select"},null,{"$f":"IFERROR(VLOOKUP(B36,'Schedule V(b)'!$B$11:$Z$315,15,0),0)","v":"Select"},null,{"$f":"IFERROR(VLOOKUP(B36,'Schedule V(b)'!$B$11:$Z$315,17,0),0)","v":0},null,{"$f":"IFERROR(VLOOKUP(B36,'Schedule V(b)'!$B$11:$Z$315,19,0),0)","v":0},null,{"$f":"IFERROR(VLOOKUP(B36,'Schedule V(b)'!$B$11:$Z$315,25,0),0)","v":0},null,{"$f":"Import!E37385","v":0},null,{"$f":"Import!E37455","v":0},null,0]
[26,{"$f":"Import!E37316","v":0},null,{"$f":"IFERROR(VLOOKUP(B37,'Schedule V(b)'!$B$11:$Z$315,3,0),0)","v":0},null,{"$f":"IFERROR(VLOOKUP(B37,'Schedule V(b)'!$B$11:$Z$315,11,0),0)","v":"Select"},null,{"$f":"IFERROR(VLOOKUP(B37,'Schedule V(b)'!$B$11:$Z$315,15,0),0)","v":"Select"},null,{"$f":"IFERROR(VLOOKUP(B37,'Schedule V(b)'!$B$11:$Z$315,17,0),0)","v":0},null,{"$f":"IFERROR(VLOOKUP(B37,'Schedule V(b)'!$B$11:$Z$315,19,0),0)","v":0},null,{"$f":"IFERROR(VLOOKUP(B37,'Schedule V(b)'!$B$11:$Z$315,25,0),0)","v":0},null,{"$f":"Import!E37386","v":0},null,{"$f":"Import!E37456","v":0},null,0]
[27,{"$f":"Import!E37317","v":0},null,{"$f":"IFERROR(VLOOKUP(B38,'Schedule V(b)'!$B$11:$Z$315,3,0),0)","v":0},null,{"$f":"IFERROR(VLOOKUP(B38,'Schedule V(b)'!$B$11:$Z$315,11,0),0)","v":"Select"},null,{"$f":"IFERROR(VLOOKUP(B38,'Schedule V(b)'!$B$11:$Z$315,15,0),0)","v":"Select"},null,{"$f":"IFERROR(VLOOKUP(B38,'Schedule V(b)'!$B$11:$Z$315,17,0),0)","v":0},null,{"$f":"IFERROR(VLOOKUP(B38,'Schedule V(b)'!$B$11:$Z$315,19,0),0)","v":0},null,{"$f":"IFERROR(VLOOKUP(B38,'Schedule V(b)'!$B$11:$Z$315,25,0),0)","v":0},null,{"$f":"Import!E37387","v":0},null,{"$f":"Import!E37457","v":0},null,0]
[28,{"$f":"Import!E37318","v":0},null,{"$f":"IFERROR(VLOOKUP(B39,'Schedule V(b)'!$B$11:$Z$315,3,0),0)","v":0},null,{"$f":"IFERROR(VLOOKUP(B39,'Schedule V(b)'!$B$11:$Z$315,11,0),0)","v":"Select"},null,{"$f":"IFERROR(VLOOKUP(B39,'Schedule V(b)'!$B$11:$Z$315,15,0),0)","v":"Select"},null,{"$f":"IFERROR(VLOOKUP(B39,'Schedule V(b)'!$B$11:$Z$315,17,0),0)","v":0},null,{"$f":"IFERROR(VLOOKUP(B39,'Schedule V(b)'!$B$11:$Z$315,19,0),0)","v":0},null,{"$f":"IFERROR(VLOOKUP(B39,'Schedule V(b)'!$B$11:$Z$315,25,0),0)","v":0},null,{"$f":"Import!E37388","v":0},null,{"$f":"Import!E37458","v":0},null,0]
[29,{"$f":"Import!E37319","v":0},null,{"$f":"IFERROR(VLOOKUP(B40,'Schedule V(b)'!$B$11:$Z$315,3,0),0)","v":0},null,{"$f":"IFERROR(VLOOKUP(B40,'Schedule V(b)'!$B$11:$Z$315,11,0),0)","v":"Select"},null,{"$f":"IFERROR(VLOOKUP(B40,'Schedule V(b)'!$B$11:$Z$315,15,0),0)","v":"Select"},null,{"$f":"IFERROR(VLOOKUP(B40,'Schedule V(b)'!$B$11:$Z$315,17,0),0)","v":0},null,{"$f":"IFERROR(VLOOKUP(B40,'Schedule V(b)'!$B$11:$Z$315,19,0),0)","v":0},null,{"$f":"IFERROR(VLOOKUP(B40,'Schedule V(b)'!$B$11:$Z$315,25,0),0)","v":0},null,{"$f":"Import!E37389","v":0},null,{"$f":"Import!E37459","v":0},null,0]
[30,{"$f":"Import!E37320","v":0},null,{"$f":"IFERROR(VLOOKUP(B41,'Schedule V(b)'!$B$11:$Z$315,3,0),0)","v":0},null,{"$f":"IFERROR(VLOOKUP(B41,'Schedule V(b)'!$B$11:$Z$315,11,0),0)","v":"Select"},null,{"$f":"IFERROR(VLOOKUP(B41,'Schedule V(b)'!$B$11:$Z$315,15,0),0)","v":"Select"},null,{"$f":"IFERROR(VLOOKUP(B41,'Schedule V(b)'!$B$11:$Z$315,17,0),0)","v":0},null,{"$f":"IFERROR(VLOOKUP(B41,'Schedule V(b)'!$B$11:$Z$315,19,0),0)","v":0},null,{"$f":"IFERROR(VLOOKUP(B41,'Schedule V(b)'!$B$11:$Z$315,25,0),0)","v":0},null,{"$f":"Import!E37390","v":0},null,{"$f":"Import!E37460","v":0},null,0]
[31,{"$f":"Import!E37321","v":0},null,{"$f":"IFERROR(VLOOKUP(B42,'Schedule V(b)'!$B$11:$Z$315,3,0),0)","v":0},null,{"$f":"IFERROR(VLOOKUP(B42,'Schedule V(b)'!$B$11:$Z$315,11,0),0)","v":"Select"},null,{"$f":"IFERROR(VLOOKUP(B42,'Schedule V(b)'!$B$11:$Z$315,15,0),0)","v":"Select"},null,{"$f":"IFERROR(VLOOKUP(B42,'Schedule V(b)'!$B$11:$Z$315,17,0),0)","v":0},null,{"$f":"IFERROR(VLOOKUP(B42,'Schedule V(b)'!$B$11:$Z$315,19,0),0)","v":0},null,{"$f":"IFERROR(VLOOKUP(B42,'Schedule V(b)'!$B$11:$Z$315,25,0),0)","v":0},null,{"$f":"Import!E37391","v":0},null,{"$f":"Import!E37461","v":0},null,0]
[32,{"$f":"Import!E37322","v":0},null,{"$f":"IFERROR(VLOOKUP(B43,'Schedule V(b)'!$B$11:$Z$315,3,0),0)","v":0},null,{"$f":"IFERROR(VLOOKUP(B43,'Schedule V(b)'!$B$11:$Z$315,11,0),0)","v":"Select"},null,{"$f":"IFERROR(VLOOKUP(B43,'Schedule V(b)'!$B$11:$Z$315,15,0),0)","v":"Select"},null,{"$f":"IFERROR(VLOOKUP(B43,'Schedule V(b)'!$B$11:$Z$315,17,0),0)","v":0},null,{"$f":"IFERROR(VLOOKUP(B43,'Schedule V(b)'!$B$11:$Z$315,19,0),0)","v":0},null,{"$f":"IFERROR(VLOOKUP(B43,'Schedule V(b)'!$B$11:$Z$315,25,0),0)","v":0},null,{"$f":"Import!E37392","v":0},null,{"$f":"Import!E37462","v":0},null,0]
[33,{"$f":"Import!E37323","v":0},null,{"$f":"IFERROR(VLOOKUP(B44,'Schedule V(b)'!$B$11:$Z$315,3,0),0)","v":0},null,{"$f":"IFERROR(VLOOKUP(B44,'Schedule V(b)'!$B$11:$Z$315,11,0),0)","v":"Select"},null,{"$f":"IFERROR(VLOOKUP(B44,'Schedule V(b)'!$B$11:$Z$315,15,0),0)","v":"Select"},null,{"$f":"IFERROR(VLOOKUP(B44,'Schedule V(b)'!$B$11:$Z$315,17,0),0)","v":0},null,{"$f":"IFERROR(VLOOKUP(B44,'Schedule V(b)'!$B$11:$Z$315,19,0),0)","v":0},null,{"$f":"IFERROR(VLOOKUP(B44,'Schedule V(b)'!$B$11:$Z$315,25,0),0)","v":0},null,{"$f":"Import!E37393","v":0},null,{"$f":"Import!E37463","v":0},null,0]
[34,{"$f":"Import!E37324","v":0},null,{"$f":"IFERROR(VLOOKUP(B45,'Schedule V(b)'!$B$11:$Z$315,3,0),0)","v":0},null,{"$f":"IFERROR(VLOOKUP(B45,'Schedule V(b)'!$B$11:$Z$315,11,0),0)","v":"Select"},null,{"$f":"IFERROR(VLOOKUP(B45,'Schedule V(b)'!$B$11:$Z$315,15,0),0)","v":"Select"},null,{"$f":"IFERROR(VLOOKUP(B45,'Schedule V(b)'!$B$11:$Z$315,17,0),0)","v":0},null,{"$f":"IFERROR(VLOOKUP(B45,'Schedule V(b)'!$B$11:$Z$315,19,0),0)","v":0},null,{"$f":"IFERROR(VLOOKUP(B45,'Schedule V(b)'!$B$11:$Z$315,25,0),0)","v":0},null,{"$f":"Import!E37394","v":0},null,{"$f":"Import!E37464","v":0},null,0]
[35,{"$f":"Import!E37325","v":0},null,{"$f":"IFERROR(VLOOKUP(B46,'Schedule V(b)'!$B$11:$Z$315,3,0),0)","v":0},null,{"$f":"IFERROR(VLOOKUP(B46,'Schedule V(b)'!$B$11:$Z$315,11,0),0)","v":"Select"},null,{"$f":"IFERROR(VLOOKUP(B46,'Schedule V(b)'!$B$11:$Z$315,15,0),0)","v":"Select"},null,{"$f":"IFERROR(VLOOKUP(B46,'Schedule V(b)'!$B$11:$Z$315,17,0),0)","v":0},null,{"$f":"IFERROR(VLOOKUP(B46,'Schedule V(b)'!$B$11:$Z$315,19,0),0)","v":0},null,{"$f":"IFERROR(VLOOKUP(B46,'Schedule V(b)'!$B$11:$Z$315,25,0),0)","v":0},null,{"$f":"Import!E37395","v":0},null,{"$f":"Import!E37465","v":0},null,0]
[36,{"$f":"Import!E37326","v":0},null,{"$f":"IFERROR(VLOOKUP(B47,'Schedule V(b)'!$B$11:$Z$315,3,0),0)","v":0},null,{"$f":"IFERROR(VLOOKUP(B47,'Schedule V(b)'!$B$11:$Z$315,11,0),0)","v":"Select"},null,{"$f":"IFERROR(VLOOKUP(B47,'Schedule V(b)'!$B$11:$Z$315,15,0),0)","v":"Select"},null,{"$f":"IFERROR(VLOOKUP(B47,'Schedule V(b)'!$B$11:$Z$315,17,0),0)","v":0},null,{"$f":"IFERROR(VLOOKUP(B47,'Schedule V(b)'!$B$11:$Z$315,19,0),0)","v":0},null,{"$f":"IFERROR(VLOOKUP(B47,'Schedule V(b)'!$B$11:$Z$315,25,0),0)","v":0},null,{"$f":"Import!E37396","v":0},null,{"$f":"Import!E37466","v":0},null,0]
[37,{"$f":"Import!E37327","v":0},null,{"$f":"IFERROR(VLOOKUP(B48,'Schedule V(b)'!$B$11:$Z$315,3,0),0)","v":0},null,{"$f":"IFERROR(VLOOKUP(B48,'Schedule V(b)'!$B$11:$Z$315,11,0),0)","v":"Select"},null,{"$f":"IFERROR(VLOOKUP(B48,'Schedule V(b)'!$B$11:$Z$315,15,0),0)","v":"Select"},null,{"$f":"IFERROR(VLOOKUP(B48,'Schedule V(b)'!$B$11:$Z$315,17,0),0)","v":0},null,{"$f":"IFERROR(VLOOKUP(B48,'Schedule V(b)'!$B$11:$Z$315,19,0),0)","v":0},null,{"$f":"IFERROR(VLOOKUP(B48,'Schedule V(b)'!$B$11:$Z$315,25,0),0)","v":0},null,{"$f":"Import!E37397","v":0},null,{"$f":"Import!E37467","v":0},null,0]
[38,{"$f":"Import!E37328","v":0},null,{"$f":"IFERROR(VLOOKUP(B49,'Schedule V(b)'!$B$11:$Z$315,3,0),0)","v":0},null,{"$f":"IFERROR(VLOOKUP(B49,'Schedule V(b)'!$B$11:$Z$315,11,0),0)","v":"Select"},null,{"$f":"IFERROR(VLOOKUP(B49,'Schedule V(b)'!$B$11:$Z$315,15,0),0)","v":"Select"},null,{"$f":"IFERROR(VLOOKUP(B49,'Schedule V(b)'!$B$11:$Z$315,17,0),0)","v":0},null,{"$f":"IFERROR(VLOOKUP(B49,'Schedule V(b)'!$B$11:$Z$315,19,0),0)","v":0},null,{"$f":"IFERROR(VLOOKUP(B49,'Schedule V(b)'!$B$11:$Z$315,25,0),0)","v":0},null,{"$f":"Import!E37398","v":0},null,{"$f":"Import!E37468","v":0},null,0]
[39,{"$f":"Import!E37329","v":0},null,{"$f":"IFERROR(VLOOKUP(B50,'Schedule V(b)'!$B$11:$Z$315,3,0),0)","v":0},null,{"$f":"IFERROR(VLOOKUP(B50,'Schedule V(b)'!$B$11:$Z$315,11,0),0)","v":"Select"},null,{"$f":"IFERROR(VLOOKUP(B50,'Schedule V(b)'!$B$11:$Z$315,15,0),0)","v":"Select"},null,{"$f":"IFERROR(VLOOKUP(B50,'Schedule V(b)'!$B$11:$Z$315,17,0),0)","v":0},null,{"$f":"IFERROR(VLOOKUP(B50,'Schedule V(b)'!$B$11:$Z$315,19,0),0)","v":0},null,{"$f":"IFERROR(VLOOKUP(B50,'Schedule V(b)'!$B$11:$Z$315,25,0),0)","v":0},null,{"$f":"Import!E37399","v":0},null,{"$f":"Import!E37469","v":0},null,0]
[40,{"$f":"Import!E37330","v":0},null,{"$f":"IFERROR(VLOOKUP(B51,'Schedule V(b)'!$B$11:$Z$315,3,0),0)","v":0},null,{"$f":"IFERROR(VLOOKUP(B51,'Schedule V(b)'!$B$11:$Z$315,11,0),0)","v":"Select"},null,{"$f":"IFERROR(VLOOKUP(B51,'Schedule V(b)'!$B$11:$Z$315,15,0),0)","v":"Select"},null,{"$f":"IFERROR(VLOOKUP(B51,'Schedule V(b)'!$B$11:$Z$315,17,0),0)","v":0},null,{"$f":"IFERROR(VLOOKUP(B51,'Schedule V(b)'!$B$11:$Z$315,19,0),0)","v":0},null,{"$f":"IFERROR(VLOOKUP(B51,'Schedule V(b)'!$B$11:$Z$315,25,0),0)","v":0},null,{"$f":"Import!E37400","v":0},null,{"$f":"Import!E37470","v":0},null,0]
[41,{"$f":"Import!E37331","v":0},null,{"$f":"IFERROR(VLOOKUP(B52,'Schedule V(b)'!$B$11:$Z$315,3,0),0)","v":0},null,{"$f":"IFERROR(VLOOKUP(B52,'Schedule V(b)'!$B$11:$Z$315,11,0),0)","v":"Select"},null,{"$f":"IFERROR(VLOOKUP(B52,'Schedule V(b)'!$B$11:$Z$315,15,0),0)","v":"Select"},null,{"$f":"IFERROR(VLOOKUP(B52,'Schedule V(b)'!$B$11:$Z$315,17,0),0)","v":0},null,{"$f":"IFERROR(VLOOKUP(B52,'Schedule V(b)'!$B$11:$Z$315,19,0),0)","v":0},null,{"$f":"IFERROR(VLOOKUP(B52,'Schedule V(b)'!$B$11:$Z$315,25,0),0)","v":0},null,{"$f":"Import!E37401","v":0},null,{"$f":"Import!E37471","v":0},null,0]
[42,{"$f":"Import!E37332","v":0},null,{"$f":"IFERROR(VLOOKUP(B53,'Schedule V(b)'!$B$11:$Z$315,3,0),0)","v":0},null,{"$f":"IFERROR(VLOOKUP(B53,'Schedule V(b)'!$B$11:$Z$315,11,0),0)","v":"Select"},null,{"$f":"IFERROR(VLOOKUP(B53,'Schedule V(b)'!$B$11:$Z$315,15,0),0)","v":"Select"},null,{"$f":"IFERROR(VLOOKUP(B53,'Schedule V(b)'!$B$11:$Z$315,17,0),0)","v":0},null,{"$f":"IFERROR(VLOOKUP(B53,'Schedule V(b)'!$B$11:$Z$315,19,0),0)","v":0},null,{"$f":"IFERROR(VLOOKUP(B53,'Schedule V(b)'!$B$11:$Z$315,25,0),0)","v":0},null,{"$f":"Import!E37402","v":0},null,{"$f":"Import!E37472","v":0},null,0]
[43,{"$f":"Import!E37333","v":0},null,{"$f":"IFERROR(VLOOKUP(B54,'Schedule V(b)'!$B$11:$Z$315,3,0),0)","v":0},null,{"$f":"IFERROR(VLOOKUP(B54,'Schedule V(b)'!$B$11:$Z$315,11,0),0)","v":"Select"},null,{"$f":"IFERROR(VLOOKUP(B54,'Schedule V(b)'!$B$11:$Z$315,15,0),0)","v":"Select"},null,{"$f":"IFERROR(VLOOKUP(B54,'Schedule V(b)'!$B$11:$Z$315,17,0),0)","v":0},null,{"$f":"IFERROR(VLOOKUP(B54,'Schedule V(b)'!$B$11:$Z$315,19,0),0)","v":0},null,{"$f":"IFERROR(VLOOKUP(B54,'Schedule V(b)'!$B$11:$Z$315,25,0),0)","v":0},null,{"$f":"Import!E37403","v":0},null,{"$f":"Import!E37473","v":0},null,0]
[44,{"$f":"Import!E37334","v":0},null,{"$f":"IFERROR(VLOOKUP(B55,'Schedule V(b)'!$B$11:$Z$315,3,0),0)","v":0},null,{"$f":"IFERROR(VLOOKUP(B55,'Schedule V(b)'!$B$11:$Z$315,11,0),0)","v":"Select"},null,{"$f":"IFERROR(VLOOKUP(B55,'Schedule V(b)'!$B$11:$Z$315,15,0),0)","v":"Select"},null,{"$f":"IFERROR(VLOOKUP(B55,'Schedule V(b)'!$B$11:$Z$315,17,0),0)","v":0},null,{"$f":"IFERROR(VLOOKUP(B55,'Schedule V(b)'!$B$11:$Z$315,19,0),0)","v":0},null,{"$f":"IFERROR(VLOOKUP(B55,'Schedule V(b)'!$B$11:$Z$315,25,0),0)","v":0},null,{"$f":"Import!E37404","v":0},null,{"$f":"Import!E37474","v":0},null,0]
[45,{"$f":"Import!E37335","v":0},null,{"$f":"IFERROR(VLOOKUP(B56,'Schedule V(b)'!$B$11:$Z$315,3,0),0)","v":0},null,{"$f":"IFERROR(VLOOKUP(B56,'Schedule V(b)'!$B$11:$Z$315,11,0),0)","v":"Select"},null,{"$f":"IFERROR(VLOOKUP(B56,'Schedule V(b)'!$B$11:$Z$315,15,0),0)","v":"Select"},null,{"$f":"IFERROR(VLOOKUP(B56,'Schedule V(b)'!$B$11:$Z$315,17,0),0)","v":0},null,{"$f":"IFERROR(VLOOKUP(B56,'Schedule V(b)'!$B$11:$Z$315,19,0),0)","v":0},null,{"$f":"IFERROR(VLOOKUP(B56,'Schedule V(b)'!$B$11:$Z$315,25,0),0)","v":0},null,{"$f":"Import!E37405","v":0},null,{"$f":"Import!E37475","v":0},null,0]
[46,{"$f":"Import!E37336","v":0},null,{"$f":"IFERROR(VLOOKUP(B57,'Schedule V(b)'!$B$11:$Z$315,3,0),0)","v":0},null,{"$f":"IFERROR(VLOOKUP(B57,'Schedule V(b)'!$B$11:$Z$315,11,0),0)","v":"Select"},null,{"$f":"IFERROR(VLOOKUP(B57,'Schedule V(b)'!$B$11:$Z$315,15,0),0)","v":"Select"},null,{"$f":"IFERROR(VLOOKUP(B57,'Schedule V(b)'!$B$11:$Z$315,17,0),0)","v":0},null,{"$f":"IFERROR(VLOOKUP(B57,'Schedule V(b)'!$B$11:$Z$315,19,0),0)","v":0},null,{"$f":"IFERROR(VLOOKUP(B57,'Schedule V(b)'!$B$11:$Z$315,25,0),0)","v":0},null,{"$f":"Import!E37406","v":0},null,{"$f":"Import!E37476","v":0},null,0]
[47,{"$f":"Import!E37337","v":0},null,{"$f":"IFERROR(VLOOKUP(B58,'Schedule V(b)'!$B$11:$Z$315,3,0),0)","v":0},null,{"$f":"IFERROR(VLOOKUP(B58,'Schedule V(b)'!$B$11:$Z$315,11,0),0)","v":"Select"},null,{"$f":"IFERROR(VLOOKUP(B58,'Schedule V(b)'!$B$11:$Z$315,15,0),0)","v":"Select"},null,{"$f":"IFERROR(VLOOKUP(B58,'Schedule V(b)'!$B$11:$Z$315,17,0),0)","v":0},null,{"$f":"IFERROR(VLOOKUP(B58,'Schedule V(b)'!$B$11:$Z$315,19,0),0)","v":0},null,{"$f":"IFERROR(VLOOKUP(B58,'Schedule V(b)'!$B$11:$Z$315,25,0),0)","v":0},null,{"$f":"Import!E37407","v":0},null,{"$f":"Import!E37477","v":0},null,0]
[48,{"$f":"Import!E37338","v":0},null,{"$f":"IFERROR(VLOOKUP(B59,'Schedule V(b)'!$B$11:$Z$315,3,0),0)","v":0},null,{"$f":"IFERROR(VLOOKUP(B59,'Schedule V(b)'!$B$11:$Z$315,11,0),0)","v":"Select"},null,{"$f":"IFERROR(VLOOKUP(B59,'Schedule V(b)'!$B$11:$Z$315,15,0),0)","v":"Select"},null,{"$f":"IFERROR(VLOOKUP(B59,'Schedule V(b)'!$B$11:$Z$315,17,0),0)","v":0},null,{"$f":"IFERROR(VLOOKUP(B59,'Schedule V(b)'!$B$11:$Z$315,19,0),0)","v":0},null,{"$f":"IFERROR(VLOOKUP(B59,'Schedule V(b)'!$B$11:$Z$315,25,0),0)","v":0},null,{"$f":"Import!E37408","v":0},null,{"$f":"Import!E37478","v":0},null,0]
[49,{"$f":"Import!E37339","v":0},null,{"$f":"IFERROR(VLOOKUP(B60,'Schedule V(b)'!$B$11:$Z$315,3,0),0)","v":0},null,{"$f":"IFERROR(VLOOKUP(B60,'Schedule V(b)'!$B$11:$Z$315,11,0),0)","v":"Select"},null,{"$f":"IFERROR(VLOOKUP(B60,'Schedule V(b)'!$B$11:$Z$315,15,0),0)","v":"Select"},null,{"$f":"IFERROR(VLOOKUP(B60,'Schedule V(b)'!$B$11:$Z$315,17,0),0)","v":0},null,{"$f":"IFERROR(VLOOKUP(B60,'Schedule V(b)'!$B$11:$Z$315,19,0),0)","v":0},null,{"$f":"IFERROR(VLOOKUP(B60,'Schedule V(b)'!$B$11:$Z$315,25,0),0)","v":0},null,{"$f":"Import!E37409","v":0},null,{"$f":"Import!E37479","v":0},null,0]
[50,{"$f":"Import!E37340","v":0},null,{"$f":"IFERROR(VLOOKUP(B61,'Schedule V(b)'!$B$11:$Z$315,3,0),0)","v":0},null,{"$f":"IFERROR(VLOOKUP(B61,'Schedule V(b)'!$B$11:$Z$315,11,0),0)","v":"Select"},null,{"$f":"IFERROR(VLOOKUP(B61,'Schedule V(b)'!$B$11:$Z$315,15,0),0)","v":"Select"},null,{"$f":"IFERROR(VLOOKUP(B61,'Schedule V(b)'!$B$11:$Z$315,17,0),0)","v":0},null,{"$f":"IFERROR(VLOOKUP(B61,'Schedule V(b)'!$B$11:$Z$315,19,0),0)","v":0},null,{"$f":"IFERROR(VLOOKUP(B61,'Schedule V(b)'!$B$11:$Z$315,25,0),0)","v":0},null,{"$f":"Import!E37410","v":0},null,{"$f":"Import!E37480","v":0},null,0]
[51,{"$f":"Import!E37341","v":0},null,{"$f":"IFERROR(VLOOKUP(B62,'Schedule V(b)'!$B$11:$Z$315,3,0),0)","v":0},null,{"$f":"IFERROR(VLOOKUP(B62,'Schedule V(b)'!$B$11:$Z$315,11,0),0)","v":"Select"},null,{"$f":"IFERROR(VLOOKUP(B62,'Schedule V(b)'!$B$11:$Z$315,15,0),0)","v":"Select"},null,{"$f":"IFERROR(VLOOKUP(B62,'Schedule V(b)'!$B$11:$Z$315,17,0),0)","v":0},null,{"$f":"IFERROR(VLOOKUP(B62,'Schedule V(b)'!$B$11:$Z$315,19,0),0)","v":0},null,{"$f":"IFERROR(VLOOKUP(B62,'Schedule V(b)'!$B$11:$Z$315,25,0),0)","v":0},null,{"$f":"Import!E37411","v":0},null,{"$f":"Import!E37481","v":0},null,0]
[52,{"$f":"Import!E37342","v":0},null,{"$f":"IFERROR(VLOOKUP(B63,'Schedule V(b)'!$B$11:$Z$315,3,0),0)","v":0},null,{"$f":"IFERROR(VLOOKUP(B63,'Schedule V(b)'!$B$11:$Z$315,11,0),0)","v":"Select"},null,{"$f":"IFERROR(VLOOKUP(B63,'Schedule V(b)'!$B$11:$Z$315,15,0),0)","v":"Select"},null,{"$f":"IFERROR(VLOOKUP(B63,'Schedule V(b)'!$B$11:$Z$315,17,0),0)","v":0},null,{"$f":"IFERROR(VLOOKUP(B63,'Schedule V(b)'!$B$11:$Z$315,19,0),0)","v":0},null,{"$f":"IFERROR(VLOOKUP(B63,'Schedule V(b)'!$B$11:$Z$315,25,0),0)","v":0},null,{"$f":"Import!E37412","v":0},null,{"$f":"Import!E37482","v":0},null,0]
[53,{"$f":"Import!E37343","v":0},null,{"$f":"IFERROR(VLOOKUP(B64,'Schedule V(b)'!$B$11:$Z$315,3,0),0)","v":0},null,{"$f":"IFERROR(VLOOKUP(B64,'Schedule V(b)'!$B$11:$Z$315,11,0),0)","v":"Select"},null,{"$f":"IFERROR(VLOOKUP(B64,'Schedule V(b)'!$B$11:$Z$315,15,0),0)","v":"Select"},null,{"$f":"IFERROR(VLOOKUP(B64,'Schedule V(b)'!$B$11:$Z$315,17,0),0)","v":0},null,{"$f":"IFERROR(VLOOKUP(B64,'Schedule V(b)'!$B$11:$Z$315,19,0),0)","v":0},null,{"$f":"IFERROR(VLOOKUP(B64,'Schedule V(b)'!$B$11:$Z$315,25,0),0)","v":0},null,{"$f":"Import!E37413","v":0},null,{"$f":"Import!E37483","v":0},null,0]
[54,{"$f":"Import!E37344","v":0},null,{"$f":"IFERROR(VLOOKUP(B65,'Schedule V(b)'!$B$11:$Z$315,3,0),0)","v":0},null,{"$f":"IFERROR(VLOOKUP(B65,'Schedule V(b)'!$B$11:$Z$315,11,0),0)","v":"Select"},null,{"$f":"IFERROR(VLOOKUP(B65,'Schedule V(b)'!$B$11:$Z$315,15,0),0)","v":"Select"},null,{"$f":"IFERROR(VLOOKUP(B65,'Schedule V(b)'!$B$11:$Z$315,17,0),0)","v":0},null,{"$f":"IFERROR(VLOOKUP(B65,'Schedule V(b)'!$B$11:$Z$315,19,0),0)","v":0},null,{"$f":"IFERROR(VLOOKUP(B65,'Schedule V(b)'!$B$11:$Z$315,25,0),0)","v":0},null,{"$f":"Import!E37414","v":0},null,{"$f":"Import!E37484","v":0},null,0]
[55,{"$f":"Import!E37345","v":0},null,{"$f":"IFERROR(VLOOKUP(B66,'Schedule V(b)'!$B$11:$Z$315,3,0),0)","v":0},null,{"$f":"IFERROR(VLOOKUP(B66,'Schedule V(b)'!$B$11:$Z$315,11,0),0)","v":"Select"},null,{"$f":"IFERROR(VLOOKUP(B66,'Schedule V(b)'!$B$11:$Z$315,15,0),0)","v":"Select"},null,{"$f":"IFERROR(VLOOKUP(B66,'Schedule V(b)'!$B$11:$Z$315,17,0),0)","v":0},null,{"$f":"IFERROR(VLOOKUP(B66,'Schedule V(b)'!$B$11:$Z$315,19,0),0)","v":0},null,{"$f":"IFERROR(VLOOKUP(B66,'Schedule V(b)'!$B$11:$Z$315,25,0),0)","v":0},null,{"$f":"Import!E37415","v":0},null,{"$f":"Import!E37485","v":0},null,0]
[56,{"$f":"Import!E37346","v":0},null,{"$f":"IFERROR(VLOOKUP(B67,'Schedule V(b)'!$B$11:$Z$315,3,0),0)","v":0},null,{"$f":"IFERROR(VLOOKUP(B67,'Schedule V(b)'!$B$11:$Z$315,11,0),0)","v":"Select"},null,{"$f":"IFERROR(VLOOKUP(B67,'Schedule V(b)'!$B$11:$Z$315,15,0),0)","v":"Select"},null,{"$f":"IFERROR(VLOOKUP(B67,'Schedule V(b)'!$B$11:$Z$315,17,0),0)","v":0},null,{"$f":"IFERROR(VLOOKUP(B67,'Schedule V(b)'!$B$11:$Z$315,19,0),0)","v":0},null,{"$f":"IFERROR(VLOOKUP(B67,'Schedule V(b)'!$B$11:$Z$315,25,0),0)","v":0},null,{"$f":"Import!E37416","v":0},null,{"$f":"Import!E37486","v":0},null,0]
[57,{"$f":"Import!E37347","v":0},null,{"$f":"IFERROR(VLOOKUP(B68,'Schedule V(b)'!$B$11:$Z$315,3,0),0)","v":0},null,{"$f":"IFERROR(VLOOKUP(B68,'Schedule V(b)'!$B$11:$Z$315,11,0),0)","v":"Select"},null,{"$f":"IFERROR(VLOOKUP(B68,'Schedule V(b)'!$B$11:$Z$315,15,0),0)","v":"Select"},null,{"$f":"IFERROR(VLOOKUP(B68,'Schedule V(b)'!$B$11:$Z$315,17,0),0)","v":0},null,{"$f":"IFERROR(VLOOKUP(B68,'Schedule V(b)'!$B$11:$Z$315,19,0),0)","v":0},null,{"$f":"IFERROR(VLOOKUP(B68,'Schedule V(b)'!$B$11:$Z$315,25,0),0)","v":0},null,{"$f":"Import!E37417","v":0},null,{"$f":"Import!E37487","v":0},null,0]
[58,{"$f":"Import!E37348","v":0},null,{"$f":"IFERROR(VLOOKUP(B69,'Schedule V(b)'!$B$11:$Z$315,3,0),0)","v":0},null,{"$f":"IFERROR(VLOOKUP(B69,'Schedule V(b)'!$B$11:$Z$315,11,0),0)","v":"Select"},null,{"$f":"IFERROR(VLOOKUP(B69,'Schedule V(b)'!$B$11:$Z$315,15,0),0)","v":"Select"},null,{"$f":"IFERROR(VLOOKUP(B69,'Schedule V(b)'!$B$11:$Z$315,17,0),0)","v":0},null,{"$f":"IFERROR(VLOOKUP(B69,'Schedule V(b)'!$B$11:$Z$315,19,0),0)","v":0},null,{"$f":"IFERROR(VLOOKUP(B69,'Schedule V(b)'!$B$11:$Z$315,25,0),0)","v":0},null,{"$f":"Import!E37418","v":0},null,{"$f":"Import!E37488","v":0},null,0]
[59,{"$f":"Import!E37349","v":0},null,{"$f":"IFERROR(VLOOKUP(B70,'Schedule V(b)'!$B$11:$Z$315,3,0),0)","v":0},null,{"$f":"IFERROR(VLOOKUP(B70,'Schedule V(b)'!$B$11:$Z$315,11,0),0)","v":"Select"},null,{"$f":"IFERROR(VLOOKUP(B70,'Schedule V(b)'!$B$11:$Z$315,15,0),0)","v":"Select"},null,{"$f":"IFERROR(VLOOKUP(B70,'Schedule V(b)'!$B$11:$Z$315,17,0),0)","v":0},null,{"$f":"IFERROR(VLOOKUP(B70,'Schedule V(b)'!$B$11:$Z$315,19,0),0)","v":0},null,{"$f":"IFERROR(VLOOKUP(B70,'Schedule V(b)'!$B$11:$Z$315,25,0),0)","v":0},null,{"$f":"Import!E37419","v":0},null,{"$f":"Import!E37489","v":0},null,0]
[60,{"$f":"Import!E37350","v":0},null,{"$f":"IFERROR(VLOOKUP(B71,'Schedule V(b)'!$B$11:$Z$315,3,0),0)","v":0},null,{"$f":"IFERROR(VLOOKUP(B71,'Schedule V(b)'!$B$11:$Z$315,11,0),0)","v":"Select"},null,{"$f":"IFERROR(VLOOKUP(B71,'Schedule V(b)'!$B$11:$Z$315,15,0),0)","v":"Select"},null,{"$f":"IFERROR(VLOOKUP(B71,'Schedule V(b)'!$B$11:$Z$315,17,0),0)","v":0},null,{"$f":"IFERROR(VLOOKUP(B71,'Schedule V(b)'!$B$11:$Z$315,19,0),0)","v":0},null,{"$f":"IFERROR(VLOOKUP(B71,'Schedule V(b)'!$B$11:$Z$315,25,0),0)","v":0},null,{"$f":"Import!E37420","v":0},null,{"$f":"Import!E37490","v":0},null,0]
[61,{"$f":"Import!E37351","v":0},null,{"$f":"IFERROR(VLOOKUP(B72,'Schedule V(b)'!$B$11:$Z$315,3,0),0)","v":0},null,{"$f":"IFERROR(VLOOKUP(B72,'Schedule V(b)'!$B$11:$Z$315,11,0),0)","v":"Select"},null,{"$f":"IFERROR(VLOOKUP(B72,'Schedule V(b)'!$B$11:$Z$315,15,0),0)","v":"Select"},null,{"$f":"IFERROR(VLOOKUP(B72,'Schedule V(b)'!$B$11:$Z$315,17,0),0)","v":0},null,{"$f":"IFERROR(VLOOKUP(B72,'Schedule V(b)'!$B$11:$Z$315,19,0),0)","v":0},null,{"$f":"IFERROR(VLOOKUP(B72,'Schedule V(b)'!$B$11:$Z$315,25,0),0)","v":0},null,{"$f":"Import!E37421","v":0},null,{"$f":"Import!E37491","v":0},null,0]
[62,{"$f":"Import!E37352","v":0},null,{"$f":"IFERROR(VLOOKUP(B73,'Schedule V(b)'!$B$11:$Z$315,3,0),0)","v":0},null,{"$f":"IFERROR(VLOOKUP(B73,'Schedule V(b)'!$B$11:$Z$315,11,0),0)","v":"Select"},null,{"$f":"IFERROR(VLOOKUP(B73,'Schedule V(b)'!$B$11:$Z$315,15,0),0)","v":"Select"},null,{"$f":"IFERROR(VLOOKUP(B73,'Schedule V(b)'!$B$11:$Z$315,17,0),0)","v":0},null,{"$f":"IFERROR(VLOOKUP(B73,'Schedule V(b)'!$B$11:$Z$315,19,0),0)","v":0},null,{"$f":"IFERROR(VLOOKUP(B73,'Schedule V(b)'!$B$11:$Z$315,25,0),0)","v":0},null,{"$f":"Import!E37422","v":0},null,{"$f":"Import!E37492","v":0},null,0]
[63,{"$f":"Import!E37353","v":0},null,{"$f":"IFERROR(VLOOKUP(B74,'Schedule V(b)'!$B$11:$Z$315,3,0),0)","v":0},null,{"$f":"IFERROR(VLOOKUP(B74,'Schedule V(b)'!$B$11:$Z$315,11,0),0)","v":"Select"},null,{"$f":"IFERROR(VLOOKUP(B74,'Schedule V(b)'!$B$11:$Z$315,15,0),0)","v":"Select"},null,{"$f":"IFERROR(VLOOKUP(B74,'Schedule V(b)'!$B$11:$Z$315,17,0),0)","v":0},null,{"$f":"IFERROR(VLOOKUP(B74,'Schedule V(b)'!$B$11:$Z$315,19,0),0)","v":0},null,{"$f":"IFERROR(VLOOKUP(B74,'Schedule V(b)'!$B$11:$Z$315,25,0),0)","v":0},null,{"$f":"Import!E37423","v":0},null,{"$f":"Import!E37493","v":0},null,0]
[64,{"$f":"Import!E37354","v":0},null,{"$f":"IFERROR(VLOOKUP(B75,'Schedule V(b)'!$B$11:$Z$315,3,0),0)","v":0},null,{"$f":"IFERROR(VLOOKUP(B75,'Schedule V(b)'!$B$11:$Z$315,11,0),0)","v":"Select"},null,{"$f":"IFERROR(VLOOKUP(B75,'Schedule V(b)'!$B$11:$Z$315,15,0),0)","v":"Select"},null,{"$f":"IFERROR(VLOOKUP(B75,'Schedule V(b)'!$B$11:$Z$315,17,0),0)","v":0},null,{"$f":"IFERROR(VLOOKUP(B75,'Schedule V(b)'!$B$11:$Z$315,19,0),0)","v":0},null,{"$f":"IFERROR(VLOOKUP(B75,'Schedule V(b)'!$B$11:$Z$315,25,0),0)","v":0},null,{"$f":"Import!E37424","v":0},null,{"$f":"Import!E37494","v":0},null,0]
[65,{"$f":"Import!E37355","v":0},null,{"$f":"IFERROR(VLOOKUP(B76,'Schedule V(b)'!$B$11:$Z$315,3,0),0)","v":0},null,{"$f":"IFERROR(VLOOKUP(B76,'Schedule V(b)'!$B$11:$Z$315,11,0),0)","v":"Select"},null,{"$f":"IFERROR(VLOOKUP(B76,'Schedule V(b)'!$B$11:$Z$315,15,0),0)","v":"Select"},null,{"$f":"IFERROR(VLOOKUP(B76,'Schedule V(b)'!$B$11:$Z$315,17,0),0)","v":0},null,{"$f":"IFERROR(VLOOKUP(B76,'Schedule V(b)'!$B$11:$Z$315,19,0),0)","v":0},null,{"$f":"IFERROR(VLOOKUP(B76,'Schedule V(b)'!$B$11:$Z$315,25,0),0)","v":0},null,{"$f":"Import!E37425","v":0},null,{"$f":"Import!E37495","v":0},null,0]
[66,{"$f":"Import!E37356","v":0},null,{"$f":"IFERROR(VLOOKUP(B77,'Schedule V(b)'!$B$11:$Z$315,3,0),0)","v":0},null,{"$f":"IFERROR(VLOOKUP(B77,'Schedule V(b)'!$B$11:$Z$315,11,0),0)","v":"Select"},null,{"$f":"IFERROR(VLOOKUP(B77,'Schedule V(b)'!$B$11:$Z$315,15,0),0)","v":"Select"},null,{"$f":"IFERROR(VLOOKUP(B77,'Schedule V(b)'!$B$11:$Z$315,17,0),0)","v":0},null,{"$f":"IFERROR(VLOOKUP(B77,'Schedule V(b)'!$B$11:$Z$315,19,0),0)","v":0},null,{"$f":"IFERROR(VLOOKUP(B77,'Schedule V(b)'!$B$11:$Z$315,25,0),0)","v":0},null,{"$f":"Import!E37426","v":0},null,{"$f":"Import!E37496","v":0},null,{"$f":"IF(H77=\"Control\",$Y$8*P77,J77*P77)","v":0}]
[67,{"$f":"Import!E37357","v":0},null,{"$f":"IFERROR(VLOOKUP(B78,'Schedule V(b)'!$B$11:$Z$315,3,0),0)","v":0},null,{"$f":"IFERROR(VLOOKUP(B78,'Schedule V(b)'!$B$11:$Z$315,11,0),0)","v":"Select"},null,{"$f":"IFERROR(VLOOKUP(B78,'Schedule V(b)'!$B$11:$Z$315,15,0),0)","v":"Select"},null,{"$f":"IFERROR(VLOOKUP(B78,'Schedule V(b)'!$B$11:$Z$315,17,0),0)","v":0},null,{"$f":"IFERROR(VLOOKUP(B78,'Schedule V(b)'!$B$11:$Z$315,19,0),0)","v":0},null,{"$f":"IFERROR(VLOOKUP(B78,'Schedule V(b)'!$B$11:$Z$315,25,0),0)","v":0},null,{"$f":"Import!E37427","v":0},null,{"$f":"Import!E37497","v":0},null,0]
[68,{"$f":"Import!E37358","v":0},null,{"$f":"IFERROR(VLOOKUP(B79,'Schedule V(b)'!$B$11:$Z$315,3,0),0)","v":0},null,{"$f":"IFERROR(VLOOKUP(B79,'Schedule V(b)'!$B$11:$Z$315,11,0),0)","v":"Select"},null,{"$f":"IFERROR(VLOOKUP(B79,'Schedule V(b)'!$B$11:$Z$315,15,0),0)","v":"Select"},null,{"$f":"IFERROR(VLOOKUP(B79,'Schedule V(b)'!$B$11:$Z$315,17,0),0)","v":0},null,{"$f":"IFERROR(VLOOKUP(B79,'Schedule V(b)'!$B$11:$Z$315,19,0),0)","v":0},null,{"$f":"IFERROR(VLOOKUP(B79,'Schedule V(b)'!$B$11:$Z$315,25,0),0)","v":0},null,{"$f":"Import!E37428","v":0},null,{"$f":"Import!E37498","v":0},null,0]
[69,{"$f":"Import!E37359","v":0},null,{"$f":"IFERROR(VLOOKUP(B80,'Schedule V(b)'!$B$11:$Z$315,3,0),0)","v":0},null,{"$f":"IFERROR(VLOOKUP(B80,'Schedule V(b)'!$B$11:$Z$315,11,0),0)","v":"Select"},null,{"$f":"IFERROR(VLOOKUP(B80,'Schedule V(b)'!$B$11:$Z$315,15,0),0)","v":"Select"},null,{"$f":"IFERROR(VLOOKUP(B80,'Schedule V(b)'!$B$11:$Z$315,17,0),0)","v":0},null,{"$f":"IFERROR(VLOOKUP(B80,'Schedule V(b)'!$B$11:$Z$315,19,0),0)","v":0},null,{"$f":"IFERROR(VLOOKUP(B80,'Schedule V(b)'!$B$11:$Z$315,25,0),0)","v":0},null,{"$f":"Import!E37429","v":0},null,{"$f":"Import!E37499","v":0},null,0]
[70,{"$f":"Import!E37360","v":0},null,{"$f":"IFERROR(VLOOKUP(B81,'Schedule V(b)'!$B$11:$Z$315,3,0),0)","v":0},null,{"$f":"IFERROR(VLOOKUP(B81,'Schedule V(b)'!$B$11:$Z$315,11,0),0)","v":"Select"},null,{"$f":"IFERROR(VLOOKUP(B81,'Schedule V(b)'!$B$11:$Z$315,15,0),0)","v":"Select"},null,{"$f":"IFERROR(VLOOKUP(B81,'Schedule V(b)'!$B$11:$Z$315,17,0),0)","v":0},null,{"$f":"IFERROR(VLOOKUP(B81,'Schedule V(b)'!$B$11:$Z$315,19,0),0)","v":0},null,{"$f":"IFERROR(VLOOKUP(B81,'Schedule V(b)'!$B$11:$Z$315,25,0),0)","v":0},null,{"$f":"Import!E37430","v":0},null,{"$f":"Import!E37500","v":0},null,0]
[71,null,null,{"$f":"IFERROR(VLOOKUP(B82,'Schedule V(b)'!$B$11:$Z$315,3,0),0)","v":0},null,{"$f":"IFERROR(VLOOKUP(B82,'Schedule V(b)'!$B$11:$Z$315,11,0),0)","v":"Select"},null,{"$f":"IFERROR(VLOOKUP(B82,'Schedule V(b)'!$B$11:$Z$315,15,0),0)","v":"Select"},null,{"$f":"IFERROR(VLOOKUP(B82,'Schedule V(b)'!$B$11:$Z$315,17,0),0)","v":0},null,{"$f":"IFERROR(VLOOKUP(B82,'Schedule V(b)'!$B$11:$Z$315,19,0),0)","v":0},null,{"$f":"IFERROR(VLOOKUP(B82,'Schedule V(b)'!$B$11:$Z$315,25,0),0)","v":0},null,null,null,null,null,0]
[72,null,null,{"$f":"IFERROR(VLOOKUP(B83,'Schedule V(b)'!$B$11:$Z$315,3,0),0)","v":0},null,{"$f":"IFERROR(VLOOKUP(B83,'Schedule V(b)'!$B$11:$Z$315,11,0),0)","v":"Select"},null,{"$f":"IFERROR(VLOOKUP(B83,'Schedule V(b)'!$B$11:$Z$315,15,0),0)","v":"Select"},null,{"$f":"IFERROR(VLOOKUP(B83,'Schedule V(b)'!$B$11:$Z$315,17,0),0)","v":0},null,{"$f":"IFERROR(VLOOKUP(B83,'Schedule V(b)'!$B$11:$Z$315,19,0),0)","v":0},null,{"$f":"IFERROR(VLOOKUP(B83,'Schedule V(b)'!$B$11:$Z$315,25,0),0)","v":0},null,null,null,null,null,0]
[73,null,null,{"$f":"IFERROR(VLOOKUP(B84,'Schedule V(b)'!$B$11:$Z$315,3,0),0)","v":0},null,{"$f":"IFERROR(VLOOKUP(B84,'Schedule V(b)'!$B$11:$Z$315,11,0),0)","v":"Select"},null,{"$f":"IFERROR(VLOOKUP(B84,'Schedule V(b)'!$B$11:$Z$315,15,0),0)","v":"Select"},null,{"$f":"IFERROR(VLOOKUP(B84,'Schedule V(b)'!$B$11:$Z$315,17,0),0)","v":0},null,{"$f":"IFERROR(VLOOKUP(B84,'Schedule V(b)'!$B$11:$Z$315,19,0),0)","v":0},null,{"$f":"IFERROR(VLOOKUP(B84,'Schedule V(b)'!$B$11:$Z$315,25,0),0)","v":0},null,null,null,null,null,0]
[74,null,null,{"$f":"IFERROR(VLOOKUP(B85,'Schedule V(b)'!$B$11:$Z$315,3,0),0)","v":0},null,{"$f":"IFERROR(VLOOKUP(B85,'Schedule V(b)'!$B$11:$Z$315,11,0),0)","v":"Select"},null,{"$f":"IFERROR(VLOOKUP(B85,'Schedule V(b)'!$B$11:$Z$315,15,0),0)","v":"Select"},null,{"$f":"IFERROR(VLOOKUP(B85,'Schedule V(b)'!$B$11:$Z$315,17,0),0)","v":0},null,{"$f":"IFERROR(VLOOKUP(B85,'Schedule V(b)'!$B$11:$Z$315,19,0),0)","v":0},null,{"$f":"IFERROR(VLOOKUP(B85,'Schedule V(b)'!$B$11:$Z$315,25,0),0)","v":0},null,null,null,null,null,0]
[75,null,null,{"$f":"IFERROR(VLOOKUP(B86,'Schedule V(b)'!$B$11:$Z$315,3,0),0)","v":0},null,{"$f":"IFERROR(VLOOKUP(B86,'Schedule V(b)'!$B$11:$Z$315,11,0),0)","v":"Select"},null,{"$f":"IFERROR(VLOOKUP(B86,'Schedule V(b)'!$B$11:$Z$315,15,0),0)","v":"Select"},null,{"$f":"IFERROR(VLOOKUP(B86,'Schedule V(b)'!$B$11:$Z$315,17,0),0)","v":0},null,{"$f":"IFERROR(VLOOKUP(B86,'Schedule V(b)'!$B$11:$Z$315,19,0),0)","v":0},null,{"$f":"IFERROR(VLOOKUP(B86,'Schedule V(b)'!$B$11:$Z$315,25,0),0)","v":0},null,null,null,null,null,0]
[76,null,null,{"$f":"IFERROR(VLOOKUP(B87,'Schedule V(b)'!$B$11:$Z$315,3,0),0)","v":0},null,{"$f":"IFERROR(VLOOKUP(B87,'Schedule V(b)'!$B$11:$Z$315,11,0),0)","v":"Select"},null,{"$f":"IFERROR(VLOOKUP(B87,'Schedule V(b)'!$B$11:$Z$315,15,0),0)","v":"Select"},null,{"$f":"IFERROR(VLOOKUP(B87,'Schedule V(b)'!$B$11:$Z$315,17,0),0)","v":0},null,{"$f":"IFERROR(VLOOKUP(B87,'Schedule V(b)'!$B$11:$Z$315,19,0),0)","v":0},null,{"$f":"IFERROR(VLOOKUP(B87,'Schedule V(b)'!$B$11:$Z$315,25,0),0)","v":0},null,null,null,null,null,0]
[77,null,null,{"$f":"IFERROR(VLOOKUP(B88,'Schedule V(b)'!$B$11:$Z$315,3,0),0)","v":0},null,{"$f":"IFERROR(VLOOKUP(B88,'Schedule V(b)'!$B$11:$Z$315,11,0),0)","v":"Select"},null,{"$f":"IFERROR(VLOOKUP(B88,'Schedule V(b)'!$B$11:$Z$315,15,0),0)","v":"Select"},null,{"$f":"IFERROR(VLOOKUP(B88,'Schedule V(b)'!$B$11:$Z$315,17,0),0)","v":0},null,{"$f":"IFERROR(VLOOKUP(B88,'Schedule V(b)'!$B$11:$Z$315,19,0),0)","v":0},null,{"$f":"IFERROR(VLOOKUP(B88,'Schedule V(b)'!$B$11:$Z$315,25,0),0)","v":0},null,null,null,null,null,0]
[78,null,null,{"$f":"IFERROR(VLOOKUP(B89,'Schedule V(b)'!$B$11:$Z$315,3,0),0)","v":0},null,{"$f":"IFERROR(VLOOKUP(B89,'Schedule V(b)'!$B$11:$Z$315,11,0),0)","v":"Select"},null,{"$f":"IFERROR(VLOOKUP(B89,'Schedule V(b)'!$B$11:$Z$315,15,0),0)","v":"Select"},null,{"$f":"IFERROR(VLOOKUP(B89,'Schedule V(b)'!$B$11:$Z$315,17,0),0)","v":0},null,{"$f":"IFERROR(VLOOKUP(B89,'Schedule V(b)'!$B$11:$Z$315,19,0),0)","v":0},null,{"$f":"IFERROR(VLOOKUP(B89,'Schedule V(b)'!$B$11:$Z$315,25,0),0)","v":0},null,null,null,null,null,0]
[79,null,null,{"$f":"IFERROR(VLOOKUP(B90,'Schedule V(b)'!$B$11:$Z$315,3,0),0)","v":0},null,{"$f":"IFERROR(VLOOKUP(B90,'Schedule V(b)'!$B$11:$Z$315,11,0),0)","v":"Select"},null,{"$f":"IFERROR(VLOOKUP(B90,'Schedule V(b)'!$B$11:$Z$315,15,0),0)","v":"Select"},null,{"$f":"IFERROR(VLOOKUP(B90,'Schedule V(b)'!$B$11:$Z$315,17,0),0)","v":0},null,{"$f":"IFERROR(VLOOKUP(B90,'Schedule V(b)'!$B$11:$Z$315,19,0),0)","v":0},null,{"$f":"IFERROR(VLOOKUP(B90,'Schedule V(b)'!$B$11:$Z$315,25,0),0)","v":0},null,null,null,null,null,0]
[80,null,null,{"$f":"IFERROR(VLOOKUP(B91,'Schedule V(b)'!$B$11:$Z$315,3,0),0)","v":0},null,{"$f":"IFERROR(VLOOKUP(B91,'Schedule V(b)'!$B$11:$Z$315,11,0),0)","v":"Select"},null,{"$f":"IFERROR(VLOOKUP(B91,'Schedule V(b)'!$B$11:$Z$315,15,0),0)","v":"Select"},null,{"$f":"IFERROR(VLOOKUP(B91,'Schedule V(b)'!$B$11:$Z$315,17,0),0)","v":0},null,{"$f":"IFERROR(VLOOKUP(B91,'Schedule V(b)'!$B$11:$Z$315,19,0),0)","v":0},null,{"$f":"IFERROR(VLOOKUP(B91,'Schedule V(b)'!$B$11:$Z$315,25,0),0)","v":0},null,null,null,null,null,0]
[81,null,null,{"$f":"IFERROR(VLOOKUP(B92,'Schedule V(b)'!$B$11:$Z$315,3,0),0)","v":0},null,{"$f":"IFERROR(VLOOKUP(B92,'Schedule V(b)'!$B$11:$Z$315,11,0),0)","v":"Select"},null,{"$f":"IFERROR(VLOOKUP(B92,'Schedule V(b)'!$B$11:$Z$315,15,0),0)","v":"Select"},null,{"$f":"IFERROR(VLOOKUP(B92,'Schedule V(b)'!$B$11:$Z$315,17,0),0)","v":0},null,{"$f":"IFERROR(VLOOKUP(B92,'Schedule V(b)'!$B$11:$Z$315,19,0),0)","v":0},null,{"$f":"IFERROR(VLOOKUP(B92,'Schedule V(b)'!$B$11:$Z$315,25,0),0)","v":0},null,null,null,null,null,0]
[82,null,null,{"$f":"IFERROR(VLOOKUP(B93,'Schedule V(b)'!$B$11:$Z$315,3,0),0)","v":0},null,{"$f":"IFERROR(VLOOKUP(B93,'Schedule V(b)'!$B$11:$Z$315,11,0),0)","v":"Select"},null,{"$f":"IFERROR(VLOOKUP(B93,'Schedule V(b)'!$B$11:$Z$315,15,0),0)","v":"Select"},null,{"$f":"IFERROR(VLOOKUP(B93,'Schedule V(b)'!$B$11:$Z$315,17,0),0)","v":0},null,{"$f":"IFERROR(VLOOKUP(B93,'Schedule V(b)'!$B$11:$Z$315,19,0),0)","v":0},null,{"$f":"IFERROR(VLOOKUP(B93,'Schedule V(b)'!$B$11:$Z$315,25,0),0)","v":0},null,null,null,null,null,0]
[83,null,null,{"$f":"IFERROR(VLOOKUP(B94,'Schedule V(b)'!$B$11:$Z$315,3,0),0)","v":0},null,{"$f":"IFERROR(VLOOKUP(B94,'Schedule V(b)'!$B$11:$Z$315,11,0),0)","v":"Select"},null,{"$f":"IFERROR(VLOOKUP(B94,'Schedule V(b)'!$B$11:$Z$315,15,0),0)","v":"Select"},null,{"$f":"IFERROR(VLOOKUP(B94,'Schedule V(b)'!$B$11:$Z$315,17,0),0)","v":0},null,{"$f":"IFERROR(VLOOKUP(B94,'Schedule V(b)'!$B$11:$Z$315,19,0),0)","v":0},null,{"$f":"IFERROR(VLOOKUP(B94,'Schedule V(b)'!$B$11:$Z$315,25,0),0)","v":0},null,null,null,null,null,0]
[84,null,null,{"$f":"IFERROR(VLOOKUP(B95,'Schedule V(b)'!$B$11:$Z$315,3,0),0)","v":0},null,{"$f":"IFERROR(VLOOKUP(B95,'Schedule V(b)'!$B$11:$Z$315,11,0),0)","v":"Select"},null,{"$f":"IFERROR(VLOOKUP(B95,'Schedule V(b)'!$B$11:$Z$315,15,0),0)","v":"Select"},null,{"$f":"IFERROR(VLOOKUP(B95,'Schedule V(b)'!$B$11:$Z$315,17,0),0)","v":0},null,{"$f":"IFERROR(VLOOKUP(B95,'Schedule V(b)'!$B$11:$Z$315,19,0),0)","v":0},null,{"$f":"IFERROR(VLOOKUP(B95,'Schedule V(b)'!$B$11:$Z$315,25,0),0)","v":0},null,null,null,null,null,0]
[85,null,null,{"$f":"IFERROR(VLOOKUP(B96,'Schedule V(b)'!$B$11:$Z$315,3,0),0)","v":0},null,{"$f":"IFERROR(VLOOKUP(B96,'Schedule V(b)'!$B$11:$Z$315,11,0),0)","v":"Select"},null,{"$f":"IFERROR(VLOOKUP(B96,'Schedule V(b)'!$B$11:$Z$315,15,0),0)","v":"Select"},null,{"$f":"IFERROR(VLOOKUP(B96,'Schedule V(b)'!$B$11:$Z$315,17,0),0)","v":0},null,{"$f":"IFERROR(VLOOKUP(B96,'Schedule V(b)'!$B$11:$Z$315,19,0),0)","v":0},null,{"$f":"IFERROR(VLOOKUP(B96,'Schedule V(b)'!$B$11:$Z$315,25,0),0)","v":0},null,null,null,null,null,0]
[86,null,null,{"$f":"IFERROR(VLOOKUP(B97,'Schedule V(b)'!$B$11:$Z$315,3,0),0)","v":0},null,{"$f":"IFERROR(VLOOKUP(B97,'Schedule V(b)'!$B$11:$Z$315,11,0),0)","v":"Select"},null,{"$f":"IFERROR(VLOOKUP(B97,'Schedule V(b)'!$B$11:$Z$315,15,0),0)","v":"Select"},null,{"$f":"IFERROR(VLOOKUP(B97,'Schedule V(b)'!$B$11:$Z$315,17,0),0)","v":0},null,{"$f":"IFERROR(VLOOKUP(B97,'Schedule V(b)'!$B$11:$Z$315,19,0),0)","v":0},null,{"$f":"IFERROR(VLOOKUP(B97,'Schedule V(b)'!$B$11:$Z$315,25,0),0)","v":0},null,null,null,null,null,0]
[87,null,null,{"$f":"IFERROR(VLOOKUP(B98,'Schedule V(b)'!$B$11:$Z$315,3,0),0)","v":0},null,{"$f":"IFERROR(VLOOKUP(B98,'Schedule V(b)'!$B$11:$Z$315,11,0),0)","v":"Select"},null,{"$f":"IFERROR(VLOOKUP(B98,'Schedule V(b)'!$B$11:$Z$315,15,0),0)","v":"Select"},null,{"$f":"IFERROR(VLOOKUP(B98,'Schedule V(b)'!$B$11:$Z$315,17,0),0)","v":0},null,{"$f":"IFERROR(VLOOKUP(B98,'Schedule V(b)'!$B$11:$Z$315,19,0),0)","v":0},null,{"$f":"IFERROR(VLOOKUP(B98,'Schedule V(b)'!$B$11:$Z$315,25,0),0)","v":0},null,null,null,null,null,0]
[88,null,null,{"$f":"IFERROR(VLOOKUP(B99,'Schedule V(b)'!$B$11:$Z$315,3,0),0)","v":0},null,{"$f":"IFERROR(VLOOKUP(B99,'Schedule V(b)'!$B$11:$Z$315,11,0),0)","v":"Select"},null,{"$f":"IFERROR(VLOOKUP(B99,'Schedule V(b)'!$B$11:$Z$315,15,0),0)","v":"Select"},null,{"$f":"IFERROR(VLOOKUP(B99,'Schedule V(b)'!$B$11:$Z$315,17,0),0)","v":0},null,{"$f":"IFERROR(VLOOKUP(B99,'Schedule V(b)'!$B$11:$Z$315,19,0),0)","v":0},null,{"$f":"IFERROR(VLOOKUP(B99,'Schedule V(b)'!$B$11:$Z$315,25,0),0)","v":0},null,null,null,null,null,0]
[89,null,null,{"$f":"IFERROR(VLOOKUP(B100,'Schedule V(b)'!$B$11:$Z$315,3,0),0)","v":0},null,{"$f":"IFERROR(VLOOKUP(B100,'Schedule V(b)'!$B$11:$Z$315,11,0),0)","v":"Select"},null,{"$f":"IFERROR(VLOOKUP(B100,'Schedule V(b)'!$B$11:$Z$315,15,0),0)","v":"Select"},null,{"$f":"IFERROR(VLOOKUP(B100,'Schedule V(b)'!$B$11:$Z$315,17,0),0)","v":0},null,{"$f":"IFERROR(VLOOKUP(B100,'Schedule V(b)'!$B$11:$Z$315,19,0),0)","v":0},null,{"$f":"IFERROR(VLOOKUP(B100,'Schedule V(b)'!$B$11:$Z$315,25,0),0)","v":0},null,null,null,null,null,0]
[90,null,null,{"$f":"IFERROR(VLOOKUP(B101,'Schedule V(b)'!$B$11:$Z$315,3,0),0)","v":0},null,{"$f":"IFERROR(VLOOKUP(B101,'Schedule V(b)'!$B$11:$Z$315,11,0),0)","v":"Select"},null,{"$f":"IFERROR(VLOOKUP(B101,'Schedule V(b)'!$B$11:$Z$315,15,0),0)","v":"Select"},null,{"$f":"IFERROR(VLOOKUP(B101,'Schedule V(b)'!$B$11:$Z$315,17,0),0)","v":0},null,{"$f":"IFERROR(VLOOKUP(B101,'Schedule V(b)'!$B$11:$Z$315,19,0),0)","v":0},null,{"$f":"IFERROR(VLOOKUP(B101,'Schedule V(b)'!$B$11:$Z$315,25,0),0)","v":0},null,null,null,null,null,0]
[91,null,null,{"$f":"IFERROR(VLOOKUP(B102,'Schedule V(b)'!$B$11:$Z$315,3,0),0)","v":0},null,{"$f":"IFERROR(VLOOKUP(B102,'Schedule V(b)'!$B$11:$Z$315,11,0),0)","v":"Select"},null,{"$f":"IFERROR(VLOOKUP(B102,'Schedule V(b)'!$B$11:$Z$315,15,0),0)","v":"Select"},null,{"$f":"IFERROR(VLOOKUP(B102,'Schedule V(b)'!$B$11:$Z$315,17,0),0)","v":0},null,{"$f":"IFERROR(VLOOKUP(B102,'Schedule V(b)'!$B$11:$Z$315,19,0),0)","v":0},null,{"$f":"IFERROR(VLOOKUP(B102,'Schedule V(b)'!$B$11:$Z$315,25,0),0)","v":0},null,null,null,null,null,0]
[92,null,null,{"$f":"IFERROR(VLOOKUP(B103,'Schedule V(b)'!$B$11:$Z$315,3,0),0)","v":0},null,{"$f":"IFERROR(VLOOKUP(B103,'Schedule V(b)'!$B$11:$Z$315,11,0),0)","v":"Select"},null,{"$f":"IFERROR(VLOOKUP(B103,'Schedule V(b)'!$B$11:$Z$315,15,0),0)","v":"Select"},null,{"$f":"IFERROR(VLOOKUP(B103,'Schedule V(b)'!$B$11:$Z$315,17,0),0)","v":0},null,{"$f":"IFERROR(VLOOKUP(B103,'Schedule V(b)'!$B$11:$Z$315,19,0),0)","v":0},null,{"$f":"IFERROR(VLOOKUP(B103,'Schedule V(b)'!$B$11:$Z$315,25,0),0)","v":0},null,null,null,null,null,0]
[93,null,null,{"$f":"IFERROR(VLOOKUP(B104,'Schedule V(b)'!$B$11:$Z$315,3,0),0)","v":0},null,{"$f":"IFERROR(VLOOKUP(B104,'Schedule V(b)'!$B$11:$Z$315,11,0),0)","v":"Select"},null,{"$f":"IFERROR(VLOOKUP(B104,'Schedule V(b)'!$B$11:$Z$315,15,0),0)","v":"Select"},null,{"$f":"IFERROR(VLOOKUP(B104,'Schedule V(b)'!$B$11:$Z$315,17,0),0)","v":0},null,{"$f":"IFERROR(VLOOKUP(B104,'Schedule V(b)'!$B$11:$Z$315,19,0),0)","v":0},null,{"$f":"IFERROR(VLOOKUP(B104,'Schedule V(b)'!$B$11:$Z$315,25,0),0)","v":0},null,null,null,null,null,0]
[94,null,null,{"$f":"IFERROR(VLOOKUP(B105,'Schedule V(b)'!$B$11:$Z$315,3,0),0)","v":0},null,{"$f":"IFERROR(VLOOKUP(B105,'Schedule V(b)'!$B$11:$Z$315,11,0),0)","v":"Select"},null,{"$f":"IFERROR(VLOOKUP(B105,'Schedule V(b)'!$B$11:$Z$315,15,0),0)","v":"Select"},null,{"$f":"IFERROR(VLOOKUP(B105,'Schedule V(b)'!$B$11:$Z$315,17,0),0)","v":0},null,{"$f":"IFERROR(VLOOKUP(B105,'Schedule V(b)'!$B$11:$Z$315,19,0),0)","v":0},null,{"$f":"IFERROR(VLOOKUP(B105,'Schedule V(b)'!$B$11:$Z$315,25,0),0)","v":0},null,null,null,null,null,0]
[95,null,null,{"$f":"IFERROR(VLOOKUP(B106,'Schedule V(b)'!$B$11:$Z$315,3,0),0)","v":0},null,{"$f":"IFERROR(VLOOKUP(B106,'Schedule V(b)'!$B$11:$Z$315,11,0),0)","v":"Select"},null,{"$f":"IFERROR(VLOOKUP(B106,'Schedule V(b)'!$B$11:$Z$315,15,0),0)","v":"Select"},null,{"$f":"IFERROR(VLOOKUP(B106,'Schedule V(b)'!$B$11:$Z$315,17,0),0)","v":0},null,{"$f":"IFERROR(VLOOKUP(B106,'Schedule V(b)'!$B$11:$Z$315,19,0),0)","v":0},null,{"$f":"IFERROR(VLOOKUP(B106,'Schedule V(b)'!$B$11:$Z$315,25,0),0)","v":0},null,null,null,null,null,0]
[96,null,null,{"$f":"IFERROR(VLOOKUP(B107,'Schedule V(b)'!$B$11:$Z$315,3,0),0)","v":0},null,{"$f":"IFERROR(VLOOKUP(B107,'Schedule V(b)'!$B$11:$Z$315,11,0),0)","v":"Select"},null,{"$f":"IFERROR(VLOOKUP(B107,'Schedule V(b)'!$B$11:$Z$315,15,0),0)","v":"Select"},null,{"$f":"IFERROR(VLOOKUP(B107,'Schedule V(b)'!$B$11:$Z$315,17,0),0)","v":0},null,{"$f":"IFERROR(VLOOKUP(B107,'Schedule V(b)'!$B$11:$Z$315,19,0),0)","v":0},null,{"$f":"IFERROR(VLOOKUP(B107,'Schedule V(b)'!$B$11:$Z$315,25,0),0)","v":0},null,null,null,null,null,0]
[97,null,null,{"$f":"IFERROR(VLOOKUP(B108,'Schedule V(b)'!$B$11:$Z$315,3,0),0)","v":0},null,{"$f":"IFERROR(VLOOKUP(B108,'Schedule V(b)'!$B$11:$Z$315,11,0),0)","v":"Select"},null,{"$f":"IFERROR(VLOOKUP(B108,'Schedule V(b)'!$B$11:$Z$315,15,0),0)","v":"Select"},null,{"$f":"IFERROR(VLOOKUP(B108,'Schedule V(b)'!$B$11:$Z$315,17,0),0)","v":0},null,{"$f":"IFERROR(VLOOKUP(B108,'Schedule V(b)'!$B$11:$Z$315,19,0),0)","v":0},null,{"$f":"IFERROR(VLOOKUP(B108,'Schedule V(b)'!$B$11:$Z$315,25,0),0)","v":0},null,null,null,null,null,0]
[98,null,null,{"$f":"IFERROR(VLOOKUP(B109,'Schedule V(b)'!$B$11:$Z$315,3,0),0)","v":0},null,{"$f":"IFERROR(VLOOKUP(B109,'Schedule V(b)'!$B$11:$Z$315,11,0),0)","v":"Select"},null,{"$f":"IFERROR(VLOOKUP(B109,'Schedule V(b)'!$B$11:$Z$315,15,0),0)","v":"Select"},null,{"$f":"IFERROR(VLOOKUP(B109,'Schedule V(b)'!$B$11:$Z$315,17,0),0)","v":0},null,{"$f":"IFERROR(VLOOKUP(B109,'Schedule V(b)'!$B$11:$Z$315,19,0),0)","v":0},null,{"$f":"IFERROR(VLOOKUP(B109,'Schedule V(b)'!$B$11:$Z$315,25,0),0)","v":0},null,null,null,null,null,0]
[99,null,null,{"$f":"IFERROR(VLOOKUP(B110,'Schedule V(b)'!$B$11:$Z$315,3,0),0)","v":0},null,{"$f":"IFERROR(VLOOKUP(B110,'Schedule V(b)'!$B$11:$Z$315,11,0),0)","v":"Select"},null,{"$f":"IFERROR(VLOOKUP(B110,'Schedule V(b)'!$B$11:$Z$315,15,0),0)","v":"Select"},null,{"$f":"IFERROR(VLOOKUP(B110,'Schedule V(b)'!$B$11:$Z$315,17,0),0)","v":0},null,{"$f":"IFERROR(VLOOKUP(B110,'Schedule V(b)'!$B$11:$Z$315,19,0),0)","v":0},null,{"$f":"IFERROR(VLOOKUP(B110,'Schedule V(b)'!$B$11:$Z$315,25,0),0)","v":0},null,null,null,null,null,0]
[100,null,null,{"$f":"IFERROR(VLOOKUP(B111,'Schedule V(b)'!$B$11:$Z$315,3,0),0)","v":0},null,{"$f":"IFERROR(VLOOKUP(B111,'Schedule V(b)'!$B$11:$Z$315,11,0),0)","v":"Select"},null,{"$f":"IFERROR(VLOOKUP(B111,'Schedule V(b)'!$B$11:$Z$315,15,0),0)","v":"Select"},null,{"$f":"IFERROR(VLOOKUP(B111,'Schedule V(b)'!$B$11:$Z$315,17,0),0)","v":0},null,{"$f":"IFERROR(VLOOKUP(B111,'Schedule V(b)'!$B$11:$Z$315,19,0),0)","v":0},null,{"$f":"IFERROR(VLOOKUP(B111,'Schedule V(b)'!$B$11:$Z$315,25,0),0)","v":0},null,null,null,null,null,0]
[101,null,null,{"$f":"IFERROR(VLOOKUP(B112,'Schedule V(b)'!$B$11:$Z$315,3,0),0)","v":0},null,{"$f":"IFERROR(VLOOKUP(B112,'Schedule V(b)'!$B$11:$Z$315,11,0),0)","v":"Select"},null,{"$f":"IFERROR(VLOOKUP(B112,'Schedule V(b)'!$B$11:$Z$315,15,0),0)","v":"Select"},null,{"$f":"IFERROR(VLOOKUP(B112,'Schedule V(b)'!$B$11:$Z$315,17,0),0)","v":0},null,{"$f":"IFERROR(VLOOKUP(B112,'Schedule V(b)'!$B$11:$Z$315,19,0),0)","v":0},null,{"$f":"IFERROR(VLOOKUP(B112,'Schedule V(b)'!$B$11:$Z$315,25,0),0)","v":0},null,null,null,null,null,0]
[102,null,null,{"$f":"IFERROR(VLOOKUP(B113,'Schedule V(b)'!$B$11:$Z$315,3,0),0)","v":0},null,{"$f":"IFERROR(VLOOKUP(B113,'Schedule V(b)'!$B$11:$Z$315,11,0),0)","v":"Select"},null,{"$f":"IFERROR(VLOOKUP(B113,'Schedule V(b)'!$B$11:$Z$315,15,0),0)","v":"Select"},null,{"$f":"IFERROR(VLOOKUP(B113,'Schedule V(b)'!$B$11:$Z$315,17,0),0)","v":0},null,{"$f":"IFERROR(VLOOKUP(B113,'Schedule V(b)'!$B$11:$Z$315,19,0),0)","v":0},null,{"$f":"IFERROR(VLOOKUP(B113,'Schedule V(b)'!$B$11:$Z$315,25,0),0)","v":0},null,null,null,null,null,0]
[103,null,null,{"$f":"IFERROR(VLOOKUP(B114,'Schedule V(b)'!$B$11:$Z$315,3,0),0)","v":0},null,{"$f":"IFERROR(VLOOKUP(B114,'Schedule V(b)'!$B$11:$Z$315,11,0),0)","v":"Select"},null,{"$f":"IFERROR(VLOOKUP(B114,'Schedule V(b)'!$B$11:$Z$315,15,0),0)","v":"Select"},null,{"$f":"IFERROR(VLOOKUP(B114,'Schedule V(b)'!$B$11:$Z$315,17,0),0)","v":0},null,{"$f":"IFERROR(VLOOKUP(B114,'Schedule V(b)'!$B$11:$Z$315,19,0),0)","v":0},null,{"$f":"IFERROR(VLOOKUP(B114,'Schedule V(b)'!$B$11:$Z$315,25,0),0)","v":0},null,null,null,null,null,0]
[104,null,null,{"$f":"IFERROR(VLOOKUP(B115,'Schedule V(b)'!$B$11:$Z$315,3,0),0)","v":0},null,{"$f":"IFERROR(VLOOKUP(B115,'Schedule V(b)'!$B$11:$Z$315,11,0),0)","v":"Select"},null,{"$f":"IFERROR(VLOOKUP(B115,'Schedule V(b)'!$B$11:$Z$315,15,0),0)","v":"Select"},null,{"$f":"IFERROR(VLOOKUP(B115,'Schedule V(b)'!$B$11:$Z$315,17,0),0)","v":0},null,{"$f":"IFERROR(VLOOKUP(B115,'Schedule V(b)'!$B$11:$Z$315,19,0),0)","v":0},null,{"$f":"IFERROR(VLOOKUP(B115,'Schedule V(b)'!$B$11:$Z$315,25,0),0)","v":0},null,null,null,null,null,0]
[105,null,null,{"$f":"IFERROR(VLOOKUP(B116,'Schedule V(b)'!$B$11:$Z$315,3,0),0)","v":0},null,{"$f":"IFERROR(VLOOKUP(B116,'Schedule V(b)'!$B$11:$Z$315,11,0),0)","v":"Select"},null,{"$f":"IFERROR(VLOOKUP(B116,'Schedule V(b)'!$B$11:$Z$315,15,0),0)","v":"Select"},null,{"$f":"IFERROR(VLOOKUP(B116,'Schedule V(b)'!$B$11:$Z$315,17,0),0)","v":0},null,{"$f":"IFERROR(VLOOKUP(B116,'Schedule V(b)'!$B$11:$Z$315,19,0),0)","v":0},null,{"$f":"IFERROR(VLOOKUP(B116,'Schedule V(b)'!$B$11:$Z$315,25,0),0)","v":0},null,null,null,null,null,0]
[106,null,null,{"$f":"IFERROR(VLOOKUP(B117,'Schedule V(b)'!$B$11:$Z$315,3,0),0)","v":0},null,{"$f":"IFERROR(VLOOKUP(B117,'Schedule V(b)'!$B$11:$Z$315,11,0),0)","v":"Select"},null,{"$f":"IFERROR(VLOOKUP(B117,'Schedule V(b)'!$B$11:$Z$315,15,0),0)","v":"Select"},null,{"$f":"IFERROR(VLOOKUP(B117,'Schedule V(b)'!$B$11:$Z$315,17,0),0)","v":0},null,{"$f":"IFERROR(VLOOKUP(B117,'Schedule V(b)'!$B$11:$Z$315,19,0),0)","v":0},null,{"$f":"IFERROR(VLOOKUP(B117,'Schedule V(b)'!$B$11:$Z$315,25,0),0)","v":0},null,null,null,null,null,0]
[107,null,null,{"$f":"IFERROR(VLOOKUP(B118,'Schedule V(b)'!$B$11:$Z$315,3,0),0)","v":0},null,{"$f":"IFERROR(VLOOKUP(B118,'Schedule V(b)'!$B$11:$Z$315,11,0),0)","v":"Select"},null,{"$f":"IFERROR(VLOOKUP(B118,'Schedule V(b)'!$B$11:$Z$315,15,0),0)","v":"Select"},null,{"$f":"IFERROR(VLOOKUP(B118,'Schedule V(b)'!$B$11:$Z$315,17,0),0)","v":0},null,{"$f":"IFERROR(VLOOKUP(B118,'Schedule V(b)'!$B$11:$Z$315,19,0),0)","v":0},null,{"$f":"IFERROR(VLOOKUP(B118,'Schedule V(b)'!$B$11:$Z$315,25,0),0)","v":0},null,null,null,null,null,0]
[108,null,null,{"$f":"IFERROR(VLOOKUP(B119,'Schedule V(b)'!$B$11:$Z$315,3,0),0)","v":0},null,{"$f":"IFERROR(VLOOKUP(B119,'Schedule V(b)'!$B$11:$Z$315,11,0),0)","v":"Select"},null,{"$f":"IFERROR(VLOOKUP(B119,'Schedule V(b)'!$B$11:$Z$315,15,0),0)","v":"Select"},null,{"$f":"IFERROR(VLOOKUP(B119,'Schedule V(b)'!$B$11:$Z$315,17,0),0)","v":0},null,{"$f":"IFERROR(VLOOKUP(B119,'Schedule V(b)'!$B$11:$Z$315,19,0),0)","v":0},null,{"$f":"IFERROR(VLOOKUP(B119,'Schedule V(b)'!$B$11:$Z$315,25,0),0)","v":0},null,null,null,null,null,0]
[109,null,null,{"$f":"IFERROR(VLOOKUP(B120,'Schedule V(b)'!$B$11:$Z$315,3,0),0)","v":0},null,{"$f":"IFERROR(VLOOKUP(B120,'Schedule V(b)'!$B$11:$Z$315,11,0),0)","v":"Select"},null,{"$f":"IFERROR(VLOOKUP(B120,'Schedule V(b)'!$B$11:$Z$315,15,0),0)","v":"Select"},null,{"$f":"IFERROR(VLOOKUP(B120,'Schedule V(b)'!$B$11:$Z$315,17,0),0)","v":0},null,{"$f":"IFERROR(VLOOKUP(B120,'Schedule V(b)'!$B$11:$Z$315,19,0),0)","v":0},null,{"$f":"IFERROR(VLOOKUP(B120,'Schedule V(b)'!$B$11:$Z$315,25,0),0)","v":0},null,null,null,null,null,0]
[110,null,null,{"$f":"IFERROR(VLOOKUP(B121,'Schedule V(b)'!$B$11:$Z$315,3,0),0)","v":0},null,{"$f":"IFERROR(VLOOKUP(B121,'Schedule V(b)'!$B$11:$Z$315,11,0),0)","v":"Select"},null,{"$f":"IFERROR(VLOOKUP(B121,'Schedule V(b)'!$B$11:$Z$315,15,0),0)","v":"Select"},null,{"$f":"IFERROR(VLOOKUP(B121,'Schedule V(b)'!$B$11:$Z$315,17,0),0)","v":0},null,{"$f":"IFERROR(VLOOKUP(B121,'Schedule V(b)'!$B$11:$Z$315,19,0),0)","v":0},null,{"$f":"IFERROR(VLOOKUP(B121,'Schedule V(b)'!$B$11:$Z$315,25,0),0)","v":0},null,null,null,null,null,0]
[111,null,null,{"$f":"IFERROR(VLOOKUP(B122,'Schedule V(b)'!$B$11:$Z$315,3,0),0)","v":0},null,{"$f":"IFERROR(VLOOKUP(B122,'Schedule V(b)'!$B$11:$Z$315,11,0),0)","v":"Select"},null,{"$f":"IFERROR(VLOOKUP(B122,'Schedule V(b)'!$B$11:$Z$315,15,0),0)","v":"Select"},null,{"$f":"IFERROR(VLOOKUP(B122,'Schedule V(b)'!$B$11:$Z$315,17,0),0)","v":0},null,{"$f":"IFERROR(VLOOKUP(B122,'Schedule V(b)'!$B$11:$Z$315,19,0),0)","v":0},null,{"$f":"IFERROR(VLOOKUP(B122,'Schedule V(b)'!$B$11:$Z$315,25,0),0)","v":0},null,null,null,null,null,0]
[112,null,null,{"$f":"IFERROR(VLOOKUP(B123,'Schedule V(b)'!$B$11:$Z$315,3,0),0)","v":0},null,{"$f":"IFERROR(VLOOKUP(B123,'Schedule V(b)'!$B$11:$Z$315,11,0),0)","v":"Select"},null,{"$f":"IFERROR(VLOOKUP(B123,'Schedule V(b)'!$B$11:$Z$315,15,0),0)","v":"Select"},null,{"$f":"IFERROR(VLOOKUP(B123,'Schedule V(b)'!$B$11:$Z$315,17,0),0)","v":0},null,{"$f":"IFERROR(VLOOKUP(B123,'Schedule V(b)'!$B$11:$Z$315,19,0),0)","v":0},null,{"$f":"IFERROR(VLOOKUP(B123,'Schedule V(b)'!$B$11:$Z$315,25,0),0)","v":0},null,null,null,null,null,0]
[113,null,null,{"$f":"IFERROR(VLOOKUP(B124,'Schedule V(b)'!$B$11:$Z$315,3,0),0)","v":0},null,{"$f":"IFERROR(VLOOKUP(B124,'Schedule V(b)'!$B$11:$Z$315,11,0),0)","v":"Select"},null,{"$f":"IFERROR(VLOOKUP(B124,'Schedule V(b)'!$B$11:$Z$315,15,0),0)","v":"Select"},null,{"$f":"IFERROR(VLOOKUP(B124,'Schedule V(b)'!$B$11:$Z$315,17,0),0)","v":0},null,{"$f":"IFERROR(VLOOKUP(B124,'Schedule V(b)'!$B$11:$Z$315,19,0),0)","v":0},null,{"$f":"IFERROR(VLOOKUP(B124,'Schedule V(b)'!$B$11:$Z$315,25,0),0)","v":0},null,null,null,null,null,0]
[114,null,null,{"$f":"IFERROR(VLOOKUP(B125,'Schedule V(b)'!$B$11:$Z$315,3,0),0)","v":0},null,{"$f":"IFERROR(VLOOKUP(B125,'Schedule V(b)'!$B$11:$Z$315,11,0),0)","v":"Select"},null,{"$f":"IFERROR(VLOOKUP(B125,'Schedule V(b)'!$B$11:$Z$315,15,0),0)","v":"Select"},null,{"$f":"IFERROR(VLOOKUP(B125,'Schedule V(b)'!$B$11:$Z$315,17,0),0)","v":0},null,{"$f":"IFERROR(VLOOKUP(B125,'Schedule V(b)'!$B$11:$Z$315,19,0),0)","v":0},null,{"$f":"IFERROR(VLOOKUP(B125,'Schedule V(b)'!$B$11:$Z$315,25,0),0)","v":0},null,null,null,null,null,0]
[115,null,null,{"$f":"IFERROR(VLOOKUP(B126,'Schedule V(b)'!$B$11:$Z$315,3,0),0)","v":0},null,{"$f":"IFERROR(VLOOKUP(B126,'Schedule V(b)'!$B$11:$Z$315,11,0),0)","v":"Select"},null,{"$f":"IFERROR(VLOOKUP(B126,'Schedule V(b)'!$B$11:$Z$315,15,0),0)","v":"Select"},null,{"$f":"IFERROR(VLOOKUP(B126,'Schedule V(b)'!$B$11:$Z$315,17,0),0)","v":0},null,{"$f":"IFERROR(VLOOKUP(B126,'Schedule V(b)'!$B$11:$Z$315,19,0),0)","v":0},null,{"$f":"IFERROR(VLOOKUP(B126,'Schedule V(b)'!$B$11:$Z$315,25,0),0)","v":0},null,null,null,null,null,0]
[116,null,null,{"$f":"IFERROR(VLOOKUP(B127,'Schedule V(b)'!$B$11:$Z$315,3,0),0)","v":0},null,{"$f":"IFERROR(VLOOKUP(B127,'Schedule V(b)'!$B$11:$Z$315,11,0),0)","v":"Select"},null,{"$f":"IFERROR(VLOOKUP(B127,'Schedule V(b)'!$B$11:$Z$315,15,0),0)","v":"Select"},null,{"$f":"IFERROR(VLOOKUP(B127,'Schedule V(b)'!$B$11:$Z$315,17,0),0)","v":0},null,{"$f":"IFERROR(VLOOKUP(B127,'Schedule V(b)'!$B$11:$Z$315,19,0),0)","v":0},null,{"$f":"IFERROR(VLOOKUP(B127,'Schedule V(b)'!$B$11:$Z$315,25,0),0)","v":0},null,null,null,null,null,0]
[117,null,null,{"$f":"IFERROR(VLOOKUP(B128,'Schedule V(b)'!$B$11:$Z$315,3,0),0)","v":0},null,{"$f":"IFERROR(VLOOKUP(B128,'Schedule V(b)'!$B$11:$Z$315,11,0),0)","v":"Select"},null,{"$f":"IFERROR(VLOOKUP(B128,'Schedule V(b)'!$B$11:$Z$315,15,0),0)","v":"Select"},null,{"$f":"IFERROR(VLOOKUP(B128,'Schedule V(b)'!$B$11:$Z$315,17,0),0)","v":0},null,{"$f":"IFERROR(VLOOKUP(B128,'Schedule V(b)'!$B$11:$Z$315,19,0),0)","v":0},null,{"$f":"IFERROR(VLOOKUP(B128,'Schedule V(b)'!$B$11:$Z$315,25,0),0)","v":0},null,null,null,null,null,0]
[118,null,null,{"$f":"IFERROR(VLOOKUP(B129,'Schedule V(b)'!$B$11:$Z$315,3,0),0)","v":0},null,{"$f":"IFERROR(VLOOKUP(B129,'Schedule V(b)'!$B$11:$Z$315,11,0),0)","v":"Select"},null,{"$f":"IFERROR(VLOOKUP(B129,'Schedule V(b)'!$B$11:$Z$315,15,0),0)","v":"Select"},null,{"$f":"IFERROR(VLOOKUP(B129,'Schedule V(b)'!$B$11:$Z$315,17,0),0)","v":0},null,{"$f":"IFERROR(VLOOKUP(B129,'Schedule V(b)'!$B$11:$Z$315,19,0),0)","v":0},null,{"$f":"IFERROR(VLOOKUP(B129,'Schedule V(b)'!$B$11:$Z$315,25,0),0)","v":0},null,null,null,null,null,0]
[119,null,null,{"$f":"IFERROR(VLOOKUP(B130,'Schedule V(b)'!$B$11:$Z$315,3,0),0)","v":0},null,{"$f":"IFERROR(VLOOKUP(B130,'Schedule V(b)'!$B$11:$Z$315,11,0),0)","v":"Select"},null,{"$f":"IFERROR(VLOOKUP(B130,'Schedule V(b)'!$B$11:$Z$315,15,0),0)","v":"Select"},null,{"$f":"IFERROR(VLOOKUP(B130,'Schedule V(b)'!$B$11:$Z$315,17,0),0)","v":0},null,{"$f":"IFERROR(VLOOKUP(B130,'Schedule V(b)'!$B$11:$Z$315,19,0),0)","v":0},null,{"$f":"IFERROR(VLOOKUP(B130,'Schedule V(b)'!$B$11:$Z$315,25,0),0)","v":0},null,null,null,null,null,0]
[120,null,null,{"$f":"IFERROR(VLOOKUP(B131,'Schedule V(b)'!$B$11:$Z$315,3,0),0)","v":0},null,{"$f":"IFERROR(VLOOKUP(B131,'Schedule V(b)'!$B$11:$Z$315,11,0),0)","v":"Select"},null,{"$f":"IFERROR(VLOOKUP(B131,'Schedule V(b)'!$B$11:$Z$315,15,0),0)","v":"Select"},null,{"$f":"IFERROR(VLOOKUP(B131,'Schedule V(b)'!$B$11:$Z$315,17,0),0)","v":0},null,{"$f":"IFERROR(VLOOKUP(B131,'Schedule V(b)'!$B$11:$Z$315,19,0),0)","v":0},null,{"$f":"IFERROR(VLOOKUP(B131,'Schedule V(b)'!$B$11:$Z$315,25,0),0)","v":0},null,null,null,null,null,0]
[121,null,null,{"$f":"IFERROR(VLOOKUP(B132,'Schedule V(b)'!$B$11:$Z$315,3,0),0)","v":0},null,{"$f":"IFERROR(VLOOKUP(B132,'Schedule V(b)'!$B$11:$Z$315,11,0),0)","v":"Select"},null,{"$f":"IFERROR(VLOOKUP(B132,'Schedule V(b)'!$B$11:$Z$315,15,0),0)","v":"Select"},null,{"$f":"IFERROR(VLOOKUP(B132,'Schedule V(b)'!$B$11:$Z$315,17,0),0)","v":0},null,{"$f":"IFERROR(VLOOKUP(B132,'Schedule V(b)'!$B$11:$Z$315,19,0),0)","v":0},null,{"$f":"IFERROR(VLOOKUP(B132,'Schedule V(b)'!$B$11:$Z$315,25,0),0)","v":0},null,null,null,null,null,0]
[122,null,null,{"$f":"IFERROR(VLOOKUP(B133,'Schedule V(b)'!$B$11:$Z$315,3,0),0)","v":0},null,{"$f":"IFERROR(VLOOKUP(B133,'Schedule V(b)'!$B$11:$Z$315,11,0),0)","v":"Select"},null,{"$f":"IFERROR(VLOOKUP(B133,'Schedule V(b)'!$B$11:$Z$315,15,0),0)","v":"Select"},null,{"$f":"IFERROR(VLOOKUP(B133,'Schedule V(b)'!$B$11:$Z$315,17,0),0)","v":0},null,{"$f":"IFERROR(VLOOKUP(B133,'Schedule V(b)'!$B$11:$Z$315,19,0),0)","v":0},null,{"$f":"IFERROR(VLOOKUP(B133,'Schedule V(b)'!$B$11:$Z$315,25,0),0)","v":0},null,null,null,null,null,0]
[123,null,null,{"$f":"IFERROR(VLOOKUP(B134,'Schedule V(b)'!$B$11:$Z$315,3,0),0)","v":0},null,{"$f":"IFERROR(VLOOKUP(B134,'Schedule V(b)'!$B$11:$Z$315,11,0),0)","v":"Select"},null,{"$f":"IFERROR(VLOOKUP(B134,'Schedule V(b)'!$B$11:$Z$315,15,0),0)","v":"Select"},null,{"$f":"IFERROR(VLOOKUP(B134,'Schedule V(b)'!$B$11:$Z$315,17,0),0)","v":0},null,{"$f":"IFERROR(VLOOKUP(B134,'Schedule V(b)'!$B$11:$Z$315,19,0),0)","v":0},null,{"$f":"IFERROR(VLOOKUP(B134,'Schedule V(b)'!$B$11:$Z$315,25,0),0)","v":0},null,null,null,null,null,0]
[124,null,null,{"$f":"IFERROR(VLOOKUP(B135,'Schedule V(b)'!$B$11:$Z$315,3,0),0)","v":0},null,{"$f":"IFERROR(VLOOKUP(B135,'Schedule V(b)'!$B$11:$Z$315,11,0),0)","v":"Select"},null,{"$f":"IFERROR(VLOOKUP(B135,'Schedule V(b)'!$B$11:$Z$315,15,0),0)","v":"Select"},null,{"$f":"IFERROR(VLOOKUP(B135,'Schedule V(b)'!$B$11:$Z$315,17,0),0)","v":0},null,{"$f":"IFERROR(VLOOKUP(B135,'Schedule V(b)'!$B$11:$Z$315,19,0),0)","v":0},null,{"$f":"IFERROR(VLOOKUP(B135,'Schedule V(b)'!$B$11:$Z$315,25,0),0)","v":0},null,null,null,null,null,0]
[125,null,null,{"$f":"IFERROR(VLOOKUP(B136,'Schedule V(b)'!$B$11:$Z$315,3,0),0)","v":0},null,{"$f":"IFERROR(VLOOKUP(B136,'Schedule V(b)'!$B$11:$Z$315,11,0),0)","v":"Select"},null,{"$f":"IFERROR(VLOOKUP(B136,'Schedule V(b)'!$B$11:$Z$315,15,0),0)","v":"Select"},null,{"$f":"IFERROR(VLOOKUP(B136,'Schedule V(b)'!$B$11:$Z$315,17,0),0)","v":0},null,{"$f":"IFERROR(VLOOKUP(B136,'Schedule V(b)'!$B$11:$Z$315,19,0),0)","v":0},null,{"$f":"IFERROR(VLOOKUP(B136,'Schedule V(b)'!$B$11:$Z$315,25,0),0)","v":0},null,null,null,null,null,0]
[126,null,null,{"$f":"IFERROR(VLOOKUP(B137,'Schedule V(b)'!$B$11:$Z$315,3,0),0)","v":0},null,{"$f":"IFERROR(VLOOKUP(B137,'Schedule V(b)'!$B$11:$Z$315,11,0),0)","v":"Select"},null,{"$f":"IFERROR(VLOOKUP(B137,'Schedule V(b)'!$B$11:$Z$315,15,0),0)","v":"Select"},null,{"$f":"IFERROR(VLOOKUP(B137,'Schedule V(b)'!$B$11:$Z$315,17,0),0)","v":0},null,{"$f":"IFERROR(VLOOKUP(B137,'Schedule V(b)'!$B$11:$Z$315,19,0),0)","v":0},null,{"$f":"IFERROR(VLOOKUP(B137,'Schedule V(b)'!$B$11:$Z$315,25,0),0)","v":0},null,null,null,null,null,0]
[127,null,null,{"$f":"IFERROR(VLOOKUP(B138,'Schedule V(b)'!$B$11:$Z$315,3,0),0)","v":0},null,{"$f":"IFERROR(VLOOKUP(B138,'Schedule V(b)'!$B$11:$Z$315,11,0),0)","v":"Select"},null,{"$f":"IFERROR(VLOOKUP(B138,'Schedule V(b)'!$B$11:$Z$315,15,0),0)","v":"Select"},null,{"$f":"IFERROR(VLOOKUP(B138,'Schedule V(b)'!$B$11:$Z$315,17,0),0)","v":0},null,{"$f":"IFERROR(VLOOKUP(B138,'Schedule V(b)'!$B$11:$Z$315,19,0),0)","v":0},null,{"$f":"IFERROR(VLOOKUP(B138,'Schedule V(b)'!$B$11:$Z$315,25,0),0)","v":0},null,null,null,null,null,0]
[128,null,null,{"$f":"IFERROR(VLOOKUP(B139,'Schedule V(b)'!$B$11:$Z$315,3,0),0)","v":0},null,{"$f":"IFERROR(VLOOKUP(B139,'Schedule V(b)'!$B$11:$Z$315,11,0),0)","v":"Select"},null,{"$f":"IFERROR(VLOOKUP(B139,'Schedule V(b)'!$B$11:$Z$315,15,0),0)","v":"Select"},null,{"$f":"IFERROR(VLOOKUP(B139,'Schedule V(b)'!$B$11:$Z$315,17,0),0)","v":0},null,{"$f":"IFERROR(VLOOKUP(B139,'Schedule V(b)'!$B$11:$Z$315,19,0),0)","v":0},null,{"$f":"IFERROR(VLOOKUP(B139,'Schedule V(b)'!$B$11:$Z$315,25,0),0)","v":0},null,null,null,null,null,0]
[129,null,null,{"$f":"IFERROR(VLOOKUP(B140,'Schedule V(b)'!$B$11:$Z$315,3,0),0)","v":0},null,{"$f":"IFERROR(VLOOKUP(B140,'Schedule V(b)'!$B$11:$Z$315,11,0),0)","v":"Select"},null,{"$f":"IFERROR(VLOOKUP(B140,'Schedule V(b)'!$B$11:$Z$315,15,0),0)","v":"Select"},null,{"$f":"IFERROR(VLOOKUP(B140,'Schedule V(b)'!$B$11:$Z$315,17,0),0)","v":0},null,{"$f":"IFERROR(VLOOKUP(B140,'Schedule V(b)'!$B$11:$Z$315,19,0),0)","v":0},null,{"$f":"IFERROR(VLOOKUP(B140,'Schedule V(b)'!$B$11:$Z$315,25,0),0)","v":0},null,null,null,null,null,0]
[130,null,null,{"$f":"IFERROR(VLOOKUP(B141,'Schedule V(b)'!$B$11:$Z$315,3,0),0)","v":0},null,{"$f":"IFERROR(VLOOKUP(B141,'Schedule V(b)'!$B$11:$Z$315,11,0),0)","v":"Select"},null,{"$f":"IFERROR(VLOOKUP(B141,'Schedule V(b)'!$B$11:$Z$315,15,0),0)","v":"Select"},null,{"$f":"IFERROR(VLOOKUP(B141,'Schedule V(b)'!$B$11:$Z$315,17,0),0)","v":0},null,{"$f":"IFERROR(VLOOKUP(B141,'Schedule V(b)'!$B$11:$Z$315,19,0),0)","v":0},null,{"$f":"IFERROR(VLOOKUP(B141,'Schedule V(b)'!$B$11:$Z$315,25,0),0)","v":0},null,null,null,null,null,{"$f":"IF(H141=\"Control\",$Y$8*P141,J141*P141)","v":0}]
[131,null,null,{"$f":"IFERROR(VLOOKUP(B142,'Schedule V(b)'!$B$11:$Z$315,3,0),0)","v":0},null,{"$f":"IFERROR(VLOOKUP(B142,'Schedule V(b)'!$B$11:$Z$315,11,0),0)","v":"Select"},null,{"$f":"IFERROR(VLOOKUP(B142,'Schedule V(b)'!$B$11:$Z$315,15,0),0)","v":"Select"},null,{"$f":"IFERROR(VLOOKUP(B142,'Schedule V(b)'!$B$11:$Z$315,17,0),0)","v":0},null,{"$f":"IFERROR(VLOOKUP(B142,'Schedule V(b)'!$B$11:$Z$315,19,0),0)","v":0},null,{"$f":"IFERROR(VLOOKUP(B142,'Schedule V(b)'!$B$11:$Z$315,25,0),0)","v":0},null,null,null,null,null,0]
[132,null,null,{"$f":"IFERROR(VLOOKUP(B143,'Schedule V(b)'!$B$11:$Z$315,3,0),0)","v":0},null,{"$f":"IFERROR(VLOOKUP(B143,'Schedule V(b)'!$B$11:$Z$315,11,0),0)","v":"Select"},null,{"$f":"IFERROR(VLOOKUP(B143,'Schedule V(b)'!$B$11:$Z$315,15,0),0)","v":"Select"},null,{"$f":"IFERROR(VLOOKUP(B143,'Schedule V(b)'!$B$11:$Z$315,17,0),0)","v":0},null,{"$f":"IFERROR(VLOOKUP(B143,'Schedule V(b)'!$B$11:$Z$315,19,0),0)","v":0},null,{"$f":"IFERROR(VLOOKUP(B143,'Schedule V(b)'!$B$11:$Z$315,25,0),0)","v":0},null,null,null,null,null,0]
[133,null,null,{"$f":"IFERROR(VLOOKUP(B144,'Schedule V(b)'!$B$11:$Z$315,3,0),0)","v":0},null,{"$f":"IFERROR(VLOOKUP(B144,'Schedule V(b)'!$B$11:$Z$315,11,0),0)","v":"Select"},null,{"$f":"IFERROR(VLOOKUP(B144,'Schedule V(b)'!$B$11:$Z$315,15,0),0)","v":"Select"},null,{"$f":"IFERROR(VLOOKUP(B144,'Schedule V(b)'!$B$11:$Z$315,17,0),0)","v":0},null,{"$f":"IFERROR(VLOOKUP(B144,'Schedule V(b)'!$B$11:$Z$315,19,0),0)","v":0},null,{"$f":"IFERROR(VLOOKUP(B144,'Schedule V(b)'!$B$11:$Z$315,25,0),0)","v":0},null,null,null,null,null,0]
[134,null,null,{"$f":"IFERROR(VLOOKUP(B145,'Schedule V(b)'!$B$11:$Z$315,3,0),0)","v":0},null,{"$f":"IFERROR(VLOOKUP(B145,'Schedule V(b)'!$B$11:$Z$315,11,0),0)","v":"Select"},null,{"$f":"IFERROR(VLOOKUP(B145,'Schedule V(b)'!$B$11:$Z$315,15,0),0)","v":"Select"},null,{"$f":"IFERROR(VLOOKUP(B145,'Schedule V(b)'!$B$11:$Z$315,17,0),0)","v":0},null,{"$f":"IFERROR(VLOOKUP(B145,'Schedule V(b)'!$B$11:$Z$315,19,0),0)","v":0},null,{"$f":"IFERROR(VLOOKUP(B145,'Schedule V(b)'!$B$11:$Z$315,25,0),0)","v":0},null,null,null,null,null,0]
[135,null,null,{"$f":"IFERROR(VLOOKUP(B146,'Schedule V(b)'!$B$11:$Z$315,3,0),0)","v":0},null,{"$f":"IFERROR(VLOOKUP(B146,'Schedule V(b)'!$B$11:$Z$315,11,0),0)","v":"Select"},null,{"$f":"IFERROR(VLOOKUP(B146,'Schedule V(b)'!$B$11:$Z$315,15,0),0)","v":"Select"},null,{"$f":"IFERROR(VLOOKUP(B146,'Schedule V(b)'!$B$11:$Z$315,17,0),0)","v":0},null,{"$f":"IFERROR(VLOOKUP(B146,'Schedule V(b)'!$B$11:$Z$315,19,0),0)","v":0},null,{"$f":"IFERROR(VLOOKUP(B146,'Schedule V(b)'!$B$11:$Z$315,25,0),0)","v":0},null,null,null,null,null,0]
[136,null,null,{"$f":"IFERROR(VLOOKUP(B147,'Schedule V(b)'!$B$11:$Z$315,3,0),0)","v":0},null,{"$f":"IFERROR(VLOOKUP(B147,'Schedule V(b)'!$B$11:$Z$315,11,0),0)","v":"Select"},null,{"$f":"IFERROR(VLOOKUP(B147,'Schedule V(b)'!$B$11:$Z$315,15,0),0)","v":"Select"},null,{"$f":"IFERROR(VLOOKUP(B147,'Schedule V(b)'!$B$11:$Z$315,17,0),0)","v":0},null,{"$f":"IFERROR(VLOOKUP(B147,'Schedule V(b)'!$B$11:$Z$315,19,0),0)","v":0},null,{"$f":"IFERROR(VLOOKUP(B147,'Schedule V(b)'!$B$11:$Z$315,25,0),0)","v":0},null,null,null,null,null,0]
[137,null,null,{"$f":"IFERROR(VLOOKUP(B148,'Schedule V(b)'!$B$11:$Z$315,3,0),0)","v":0},null,{"$f":"IFERROR(VLOOKUP(B148,'Schedule V(b)'!$B$11:$Z$315,11,0),0)","v":"Select"},null,{"$f":"IFERROR(VLOOKUP(B148,'Schedule V(b)'!$B$11:$Z$315,15,0),0)","v":"Select"},null,{"$f":"IFERROR(VLOOKUP(B148,'Schedule V(b)'!$B$11:$Z$315,17,0),0)","v":0},null,{"$f":"IFERROR(VLOOKUP(B148,'Schedule V(b)'!$B$11:$Z$315,19,0),0)","v":0},null,{"$f":"IFERROR(VLOOKUP(B148,'Schedule V(b)'!$B$11:$Z$315,25,0),0)","v":0},null,null,null,null,null,0]
[138,null,null,{"$f":"IFERROR(VLOOKUP(B149,'Schedule V(b)'!$B$11:$Z$315,3,0),0)","v":0},null,{"$f":"IFERROR(VLOOKUP(B149,'Schedule V(b)'!$B$11:$Z$315,11,0),0)","v":"Select"},null,{"$f":"IFERROR(VLOOKUP(B149,'Schedule V(b)'!$B$11:$Z$315,15,0),0)","v":"Select"},null,{"$f":"IFERROR(VLOOKUP(B149,'Schedule V(b)'!$B$11:$Z$315,17,0),0)","v":0},null,{"$f":"IFERROR(VLOOKUP(B149,'Schedule V(b)'!$B$11:$Z$315,19,0),0)","v":0},null,{"$f":"IFERROR(VLOOKUP(B149,'Schedule V(b)'!$B$11:$Z$315,25,0),0)","v":0},null,null,null,null,null,0]
[139,null,null,{"$f":"IFERROR(VLOOKUP(B150,'Schedule V(b)'!$B$11:$Z$315,3,0),0)","v":0},null,{"$f":"IFERROR(VLOOKUP(B150,'Schedule V(b)'!$B$11:$Z$315,11,0),0)","v":"Select"},null,{"$f":"IFERROR(VLOOKUP(B150,'Schedule V(b)'!$B$11:$Z$315,15,0),0)","v":"Select"},null,{"$f":"IFERROR(VLOOKUP(B150,'Schedule V(b)'!$B$11:$Z$315,17,0),0)","v":0},null,{"$f":"IFERROR(VLOOKUP(B150,'Schedule V(b)'!$B$11:$Z$315,19,0),0)","v":0},null,{"$f":"IFERROR(VLOOKUP(B150,'Schedule V(b)'!$B$11:$Z$315,25,0),0)","v":0},null,null,null,null,null,0]
[140,null,null,{"$f":"IFERROR(VLOOKUP(B151,'Schedule V(b)'!$B$11:$Z$315,3,0),0)","v":0},null,{"$f":"IFERROR(VLOOKUP(B151,'Schedule V(b)'!$B$11:$Z$315,11,0),0)","v":"Select"},null,{"$f":"IFERROR(VLOOKUP(B151,'Schedule V(b)'!$B$11:$Z$315,15,0),0)","v":"Select"},null,{"$f":"IFERROR(VLOOKUP(B151,'Schedule V(b)'!$B$11:$Z$315,17,0),0)","v":0},null,{"$f":"IFERROR(VLOOKUP(B151,'Schedule V(b)'!$B$11:$Z$315,19,0),0)","v":0},null,{"$f":"IFERROR(VLOOKUP(B151,'Schedule V(b)'!$B$11:$Z$315,25,0),0)","v":0},null,null,null,null,null,0]
[141,null,null,{"$f":"IFERROR(VLOOKUP(B152,'Schedule V(b)'!$B$11:$Z$315,3,0),0)","v":0},null,{"$f":"IFERROR(VLOOKUP(B152,'Schedule V(b)'!$B$11:$Z$315,11,0),0)","v":"Select"},null,{"$f":"IFERROR(VLOOKUP(B152,'Schedule V(b)'!$B$11:$Z$315,15,0),0)","v":"Select"},null,{"$f":"IFERROR(VLOOKUP(B152,'Schedule V(b)'!$B$11:$Z$315,17,0),0)","v":0},null,{"$f":"IFERROR(VLOOKUP(B152,'Schedule V(b)'!$B$11:$Z$315,19,0),0)","v":0},null,{"$f":"IFERROR(VLOOKUP(B152,'Schedule V(b)'!$B$11:$Z$315,25,0),0)","v":0},null,null,null,null,null,0]
[142,null,null,{"$f":"IFERROR(VLOOKUP(B153,'Schedule V(b)'!$B$11:$Z$315,3,0),0)","v":0},null,{"$f":"IFERROR(VLOOKUP(B153,'Schedule V(b)'!$B$11:$Z$315,11,0),0)","v":"Select"},null,{"$f":"IFERROR(VLOOKUP(B153,'Schedule V(b)'!$B$11:$Z$315,15,0),0)","v":"Select"},null,{"$f":"IFERROR(VLOOKUP(B153,'Schedule V(b)'!$B$11:$Z$315,17,0),0)","v":0},null,{"$f":"IFERROR(VLOOKUP(B153,'Schedule V(b)'!$B$11:$Z$315,19,0),0)","v":0},null,{"$f":"IFERROR(VLOOKUP(B153,'Schedule V(b)'!$B$11:$Z$315,25,0),0)","v":0},null,null,null,null,null,0]
[143,null,null,{"$f":"IFERROR(VLOOKUP(B154,'Schedule V(b)'!$B$11:$Z$315,3,0),0)","v":0},null,{"$f":"IFERROR(VLOOKUP(B154,'Schedule V(b)'!$B$11:$Z$315,11,0),0)","v":"Select"},null,{"$f":"IFERROR(VLOOKUP(B154,'Schedule V(b)'!$B$11:$Z$315,15,0),0)","v":"Select"},null,{"$f":"IFERROR(VLOOKUP(B154,'Schedule V(b)'!$B$11:$Z$315,17,0),0)","v":0},null,{"$f":"IFERROR(VLOOKUP(B154,'Schedule V(b)'!$B$11:$Z$315,19,0),0)","v":0},null,{"$f":"IFERROR(VLOOKUP(B154,'Schedule V(b)'!$B$11:$Z$315,25,0),0)","v":0},null,null,null,null,null,0]
[144,null,null,{"$f":"IFERROR(VLOOKUP(B155,'Schedule V(b)'!$B$11:$Z$315,3,0),0)","v":0},null,{"$f":"IFERROR(VLOOKUP(B155,'Schedule V(b)'!$B$11:$Z$315,11,0),0)","v":"Select"},null,{"$f":"IFERROR(VLOOKUP(B155,'Schedule V(b)'!$B$11:$Z$315,15,0),0)","v":"Select"},null,{"$f":"IFERROR(VLOOKUP(B155,'Schedule V(b)'!$B$11:$Z$315,17,0),0)","v":0},null,{"$f":"IFERROR(VLOOKUP(B155,'Schedule V(b)'!$B$11:$Z$315,19,0),0)","v":0},null,{"$f":"IFERROR(VLOOKUP(B155,'Schedule V(b)'!$B$11:$Z$315,25,0),0)","v":0},null,null,null,null,null,0]
[145,null,null,{"$f":"IFERROR(VLOOKUP(B156,'Schedule V(b)'!$B$11:$Z$315,3,0),0)","v":0},null,{"$f":"IFERROR(VLOOKUP(B156,'Schedule V(b)'!$B$11:$Z$315,11,0),0)","v":"Select"},null,{"$f":"IFERROR(VLOOKUP(B156,'Schedule V(b)'!$B$11:$Z$315,15,0),0)","v":"Select"},null,{"$f":"IFERROR(VLOOKUP(B156,'Schedule V(b)'!$B$11:$Z$315,17,0),0)","v":0},null,{"$f":"IFERROR(VLOOKUP(B156,'Schedule V(b)'!$B$11:$Z$315,19,0),0)","v":0},null,{"$f":"IFERROR(VLOOKUP(B156,'Schedule V(b)'!$B$11:$Z$315,25,0),0)","v":0},null,null,null,null,null,0]
[146,null,null,{"$f":"IFERROR(VLOOKUP(B157,'Schedule V(b)'!$B$11:$Z$315,3,0),0)","v":0},null,{"$f":"IFERROR(VLOOKUP(B157,'Schedule V(b)'!$B$11:$Z$315,11,0),0)","v":"Select"},null,{"$f":"IFERROR(VLOOKUP(B157,'Schedule V(b)'!$B$11:$Z$315,15,0),0)","v":"Select"},null,{"$f":"IFERROR(VLOOKUP(B157,'Schedule V(b)'!$B$11:$Z$315,17,0),0)","v":0},null,{"$f":"IFERROR(VLOOKUP(B157,'Schedule V(b)'!$B$11:$Z$315,19,0),0)","v":0},null,{"$f":"IFERROR(VLOOKUP(B157,'Schedule V(b)'!$B$11:$Z$315,25,0),0)","v":0},null,null,null,null,null,0]
[147,null,null,{"$f":"IFERROR(VLOOKUP(B158,'Schedule V(b)'!$B$11:$Z$315,3,0),0)","v":0},null,{"$f":"IFERROR(VLOOKUP(B158,'Schedule V(b)'!$B$11:$Z$315,11,0),0)","v":"Select"},null,{"$f":"IFERROR(VLOOKUP(B158,'Schedule V(b)'!$B$11:$Z$315,15,0),0)","v":"Select"},null,{"$f":"IFERROR(VLOOKUP(B158,'Schedule V(b)'!$B$11:$Z$315,17,0),0)","v":0},null,{"$f":"IFERROR(VLOOKUP(B158,'Schedule V(b)'!$B$11:$Z$315,19,0),0)","v":0},null,{"$f":"IFERROR(VLOOKUP(B158,'Schedule V(b)'!$B$11:$Z$315,25,0),0)","v":0},null,null,null,null,null,0]
[148,null,null,{"$f":"IFERROR(VLOOKUP(B159,'Schedule V(b)'!$B$11:$Z$315,3,0),0)","v":0},null,{"$f":"IFERROR(VLOOKUP(B159,'Schedule V(b)'!$B$11:$Z$315,11,0),0)","v":"Select"},null,{"$f":"IFERROR(VLOOKUP(B159,'Schedule V(b)'!$B$11:$Z$315,15,0),0)","v":"Select"},null,{"$f":"IFERROR(VLOOKUP(B159,'Schedule V(b)'!$B$11:$Z$315,17,0),0)","v":0},null,{"$f":"IFERROR(VLOOKUP(B159,'Schedule V(b)'!$B$11:$Z$315,19,0),0)","v":0},null,{"$f":"IFERROR(VLOOKUP(B159,'Schedule V(b)'!$B$11:$Z$315,25,0),0)","v":0},null,null,null,null,null,0]
[149,null,null,{"$f":"IFERROR(VLOOKUP(B160,'Schedule V(b)'!$B$11:$Z$315,3,0),0)","v":0},null,{"$f":"IFERROR(VLOOKUP(B160,'Schedule V(b)'!$B$11:$Z$315,11,0),0)","v":"Select"},null,{"$f":"IFERROR(VLOOKUP(B160,'Schedule V(b)'!$B$11:$Z$315,15,0),0)","v":"Select"},null,{"$f":"IFERROR(VLOOKUP(B160,'Schedule V(b)'!$B$11:$Z$315,17,0),0)","v":0},null,{"$f":"IFERROR(VLOOKUP(B160,'Schedule V(b)'!$B$11:$Z$315,19,0),0)","v":0},null,{"$f":"IFERROR(VLOOKUP(B160,'Schedule V(b)'!$B$11:$Z$315,25,0),0)","v":0},null,null,null,null,null,0]
[150,null,null,{"$f":"IFERROR(VLOOKUP(B161,'Schedule V(b)'!$B$11:$Z$315,3,0),0)","v":0},null,{"$f":"IFERROR(VLOOKUP(B161,'Schedule V(b)'!$B$11:$Z$315,11,0),0)","v":"Select"},null,{"$f":"IFERROR(VLOOKUP(B161,'Schedule V(b)'!$B$11:$Z$315,15,0),0)","v":"Select"},null,{"$f":"IFERROR(VLOOKUP(B161,'Schedule V(b)'!$B$11:$Z$315,17,0),0)","v":0},null,{"$f":"IFERROR(VLOOKUP(B161,'Schedule V(b)'!$B$11:$Z$315,19,0),0)","v":0},null,{"$f":"IFERROR(VLOOKUP(B161,'Schedule V(b)'!$B$11:$Z$315,25,0),0)","v":0},null,null,null,null,null,0]
[151,null,null,{"$f":"IFERROR(VLOOKUP(B162,'Schedule V(b)'!$B$11:$Z$315,3,0),0)","v":0},null,{"$f":"IFERROR(VLOOKUP(B162,'Schedule V(b)'!$B$11:$Z$315,11,0),0)","v":"Select"},null,{"$f":"IFERROR(VLOOKUP(B162,'Schedule V(b)'!$B$11:$Z$315,15,0),0)","v":"Select"},null,{"$f":"IFERROR(VLOOKUP(B162,'Schedule V(b)'!$B$11:$Z$315,17,0),0)","v":0},null,{"$f":"IFERROR(VLOOKUP(B162,'Schedule V(b)'!$B$11:$Z$315,19,0),0)","v":0},null,{"$f":"IFERROR(VLOOKUP(B162,'Schedule V(b)'!$B$11:$Z$315,25,0),0)","v":0},null,null,null,null,null,0]
[152,null,null,{"$f":"IFERROR(VLOOKUP(B163,'Schedule V(b)'!$B$11:$Z$315,3,0),0)","v":0},null,{"$f":"IFERROR(VLOOKUP(B163,'Schedule V(b)'!$B$11:$Z$315,11,0),0)","v":"Select"},null,{"$f":"IFERROR(VLOOKUP(B163,'Schedule V(b)'!$B$11:$Z$315,15,0),0)","v":"Select"},null,{"$f":"IFERROR(VLOOKUP(B163,'Schedule V(b)'!$B$11:$Z$315,17,0),0)","v":0},null,{"$f":"IFERROR(VLOOKUP(B163,'Schedule V(b)'!$B$11:$Z$315,19,0),0)","v":0},null,{"$f":"IFERROR(VLOOKUP(B163,'Schedule V(b)'!$B$11:$Z$315,25,0),0)","v":0},null,null,null,null,null,0]
[153,null,null,{"$f":"IFERROR(VLOOKUP(B164,'Schedule V(b)'!$B$11:$Z$315,3,0),0)","v":0},null,{"$f":"IFERROR(VLOOKUP(B164,'Schedule V(b)'!$B$11:$Z$315,11,0),0)","v":"Select"},null,{"$f":"IFERROR(VLOOKUP(B164,'Schedule V(b)'!$B$11:$Z$315,15,0),0)","v":"Select"},null,{"$f":"IFERROR(VLOOKUP(B164,'Schedule V(b)'!$B$11:$Z$315,17,0),0)","v":0},null,{"$f":"IFERROR(VLOOKUP(B164,'Schedule V(b)'!$B$11:$Z$315,19,0),0)","v":0},null,{"$f":"IFERROR(VLOOKUP(B164,'Schedule V(b)'!$B$11:$Z$315,25,0),0)","v":0},null,null,null,null,null,0]
[154,null,null,{"$f":"IFERROR(VLOOKUP(B165,'Schedule V(b)'!$B$11:$Z$315,3,0),0)","v":0},null,{"$f":"IFERROR(VLOOKUP(B165,'Schedule V(b)'!$B$11:$Z$315,11,0),0)","v":"Select"},null,{"$f":"IFERROR(VLOOKUP(B165,'Schedule V(b)'!$B$11:$Z$315,15,0),0)","v":"Select"},null,{"$f":"IFERROR(VLOOKUP(B165,'Schedule V(b)'!$B$11:$Z$315,17,0),0)","v":0},null,{"$f":"IFERROR(VLOOKUP(B165,'Schedule V(b)'!$B$11:$Z$315,19,0),0)","v":0},null,{"$f":"IFERROR(VLOOKUP(B165,'Schedule V(b)'!$B$11:$Z$315,25,0),0)","v":0},null,null,null,null,null,0]
[155,null,null,{"$f":"IFERROR(VLOOKUP(B166,'Schedule V(b)'!$B$11:$Z$315,3,0),0)","v":0},null,{"$f":"IFERROR(VLOOKUP(B166,'Schedule V(b)'!$B$11:$Z$315,11,0),0)","v":"Select"},null,{"$f":"IFERROR(VLOOKUP(B166,'Schedule V(b)'!$B$11:$Z$315,15,0),0)","v":"Select"},null,{"$f":"IFERROR(VLOOKUP(B166,'Schedule V(b)'!$B$11:$Z$315,17,0),0)","v":0},null,{"$f":"IFERROR(VLOOKUP(B166,'Schedule V(b)'!$B$11:$Z$315,19,0),0)","v":0},null,{"$f":"IFERROR(VLOOKUP(B166,'Schedule V(b)'!$B$11:$Z$315,25,0),0)","v":0},null,null,null,null,null,0]
[156,null,null,{"$f":"IFERROR(VLOOKUP(B167,'Schedule V(b)'!$B$11:$Z$315,3,0),0)","v":0},null,{"$f":"IFERROR(VLOOKUP(B167,'Schedule V(b)'!$B$11:$Z$315,11,0),0)","v":"Select"},null,{"$f":"IFERROR(VLOOKUP(B167,'Schedule V(b)'!$B$11:$Z$315,15,0),0)","v":"Select"},null,{"$f":"IFERROR(VLOOKUP(B167,'Schedule V(b)'!$B$11:$Z$315,17,0),0)","v":0},null,{"$f":"IFERROR(VLOOKUP(B167,'Schedule V(b)'!$B$11:$Z$315,19,0),0)","v":0},null,{"$f":"IFERROR(VLOOKUP(B167,'Schedule V(b)'!$B$11:$Z$315,25,0),0)","v":0},null,null,null,null,null,0]
[157,null,null,{"$f":"IFERROR(VLOOKUP(B168,'Schedule V(b)'!$B$11:$Z$315,3,0),0)","v":0},null,{"$f":"IFERROR(VLOOKUP(B168,'Schedule V(b)'!$B$11:$Z$315,11,0),0)","v":"Select"},null,{"$f":"IFERROR(VLOOKUP(B168,'Schedule V(b)'!$B$11:$Z$315,15,0),0)","v":"Select"},null,{"$f":"IFERROR(VLOOKUP(B168,'Schedule V(b)'!$B$11:$Z$315,17,0),0)","v":0},null,{"$f":"IFERROR(VLOOKUP(B168,'Schedule V(b)'!$B$11:$Z$315,19,0),0)","v":0},null,{"$f":"IFERROR(VLOOKUP(B168,'Schedule V(b)'!$B$11:$Z$315,25,0),0)","v":0},null,null,null,null,null,0]
[158,null,null,{"$f":"IFERROR(VLOOKUP(B169,'Schedule V(b)'!$B$11:$Z$315,3,0),0)","v":0},null,{"$f":"IFERROR(VLOOKUP(B169,'Schedule V(b)'!$B$11:$Z$315,11,0),0)","v":"Select"},null,{"$f":"IFERROR(VLOOKUP(B169,'Schedule V(b)'!$B$11:$Z$315,15,0),0)","v":"Select"},null,{"$f":"IFERROR(VLOOKUP(B169,'Schedule V(b)'!$B$11:$Z$315,17,0),0)","v":0},null,{"$f":"IFERROR(VLOOKUP(B169,'Schedule V(b)'!$B$11:$Z$315,19,0),0)","v":0},null,{"$f":"IFERROR(VLOOKUP(B169,'Schedule V(b)'!$B$11:$Z$315,25,0),0)","v":0},null,null,null,null,null,0]
[159,null,null,{"$f":"IFERROR(VLOOKUP(B170,'Schedule V(b)'!$B$11:$Z$315,3,0),0)","v":0},null,{"$f":"IFERROR(VLOOKUP(B170,'Schedule V(b)'!$B$11:$Z$315,11,0),0)","v":"Select"},null,{"$f":"IFERROR(VLOOKUP(B170,'Schedule V(b)'!$B$11:$Z$315,15,0),0)","v":"Select"},null,{"$f":"IFERROR(VLOOKUP(B170,'Schedule V(b)'!$B$11:$Z$315,17,0),0)","v":0},null,{"$f":"IFERROR(VLOOKUP(B170,'Schedule V(b)'!$B$11:$Z$315,19,0),0)","v":0},null,{"$f":"IFERROR(VLOOKUP(B170,'Schedule V(b)'!$B$11:$Z$315,25,0),0)","v":0},null,null,null,null,null,0]
[160,null,null,{"$f":"IFERROR(VLOOKUP(B171,'Schedule V(b)'!$B$11:$Z$315,3,0),0)","v":0},null,{"$f":"IFERROR(VLOOKUP(B171,'Schedule V(b)'!$B$11:$Z$315,11,0),0)","v":"Select"},null,{"$f":"IFERROR(VLOOKUP(B171,'Schedule V(b)'!$B$11:$Z$315,15,0),0)","v":"Select"},null,{"$f":"IFERROR(VLOOKUP(B171,'Schedule V(b)'!$B$11:$Z$315,17,0),0)","v":0},null,{"$f":"IFERROR(VLOOKUP(B171,'Schedule V(b)'!$B$11:$Z$315,19,0),0)","v":0},null,{"$f":"IFERROR(VLOOKUP(B171,'Schedule V(b)'!$B$11:$Z$315,25,0),0)","v":0},null,null,null,null,null,0]
[161,null,null,{"$f":"IFERROR(VLOOKUP(B172,'Schedule V(b)'!$B$11:$Z$315,3,0),0)","v":0},null,{"$f":"IFERROR(VLOOKUP(B172,'Schedule V(b)'!$B$11:$Z$315,11,0),0)","v":"Select"},null,{"$f":"IFERROR(VLOOKUP(B172,'Schedule V(b)'!$B$11:$Z$315,15,0),0)","v":"Select"},null,{"$f":"IFERROR(VLOOKUP(B172,'Schedule V(b)'!$B$11:$Z$315,17,0),0)","v":0},null,{"$f":"IFERROR(VLOOKUP(B172,'Schedule V(b)'!$B$11:$Z$315,19,0),0)","v":0},null,{"$f":"IFERROR(VLOOKUP(B172,'Schedule V(b)'!$B$11:$Z$315,25,0),0)","v":0},null,null,null,null,null,0]
[162,null,null,{"$f":"IFERROR(VLOOKUP(B173,'Schedule V(b)'!$B$11:$Z$315,3,0),0)","v":0},null,{"$f":"IFERROR(VLOOKUP(B173,'Schedule V(b)'!$B$11:$Z$315,11,0),0)","v":"Select"},null,{"$f":"IFERROR(VLOOKUP(B173,'Schedule V(b)'!$B$11:$Z$315,15,0),0)","v":"Select"},null,{"$f":"IFERROR(VLOOKUP(B173,'Schedule V(b)'!$B$11:$Z$315,17,0),0)","v":0},null,{"$f":"IFERROR(VLOOKUP(B173,'Schedule V(b)'!$B$11:$Z$315,19,0),0)","v":0},null,{"$f":"IFERROR(VLOOKUP(B173,'Schedule V(b)'!$B$11:$Z$315,25,0),0)","v":0},null,null,null,null,null,0]
[163,null,null,{"$f":"IFERROR(VLOOKUP(B174,'Schedule V(b)'!$B$11:$Z$315,3,0),0)","v":0},null,{"$f":"IFERROR(VLOOKUP(B174,'Schedule V(b)'!$B$11:$Z$315,11,0),0)","v":"Select"},null,{"$f":"IFERROR(VLOOKUP(B174,'Schedule V(b)'!$B$11:$Z$315,15,0),0)","v":"Select"},null,{"$f":"IFERROR(VLOOKUP(B174,'Schedule V(b)'!$B$11:$Z$315,17,0),0)","v":0},null,{"$f":"IFERROR(VLOOKUP(B174,'Schedule V(b)'!$B$11:$Z$315,19,0),0)","v":0},null,{"$f":"IFERROR(VLOOKUP(B174,'Schedule V(b)'!$B$11:$Z$315,25,0),0)","v":0},null,null,null,null,null,0]
[164,null,null,{"$f":"IFERROR(VLOOKUP(B175,'Schedule V(b)'!$B$11:$Z$315,3,0),0)","v":0},null,{"$f":"IFERROR(VLOOKUP(B175,'Schedule V(b)'!$B$11:$Z$315,11,0),0)","v":"Select"},null,{"$f":"IFERROR(VLOOKUP(B175,'Schedule V(b)'!$B$11:$Z$315,15,0),0)","v":"Select"},null,{"$f":"IFERROR(VLOOKUP(B175,'Schedule V(b)'!$B$11:$Z$315,17,0),0)","v":0},null,{"$f":"IFERROR(VLOOKUP(B175,'Schedule V(b)'!$B$11:$Z$315,19,0),0)","v":0},null,{"$f":"IFERROR(VLOOKUP(B175,'Schedule V(b)'!$B$11:$Z$315,25,0),0)","v":0},null,null,null,null,null,0]
[165,null,null,{"$f":"IFERROR(VLOOKUP(B176,'Schedule V(b)'!$B$11:$Z$315,3,0),0)","v":0},null,{"$f":"IFERROR(VLOOKUP(B176,'Schedule V(b)'!$B$11:$Z$315,11,0),0)","v":"Select"},null,{"$f":"IFERROR(VLOOKUP(B176,'Schedule V(b)'!$B$11:$Z$315,15,0),0)","v":"Select"},null,{"$f":"IFERROR(VLOOKUP(B176,'Schedule V(b)'!$B$11:$Z$315,17,0),0)","v":0},null,{"$f":"IFERROR(VLOOKUP(B176,'Schedule V(b)'!$B$11:$Z$315,19,0),0)","v":0},null,{"$f":"IFERROR(VLOOKUP(B176,'Schedule V(b)'!$B$11:$Z$315,25,0),0)","v":0},null,null,null,null,null,0]
[166,null,null,{"$f":"IFERROR(VLOOKUP(B177,'Schedule V(b)'!$B$11:$Z$315,3,0),0)","v":0},null,{"$f":"IFERROR(VLOOKUP(B177,'Schedule V(b)'!$B$11:$Z$315,11,0),0)","v":"Select"},null,{"$f":"IFERROR(VLOOKUP(B177,'Schedule V(b)'!$B$11:$Z$315,15,0),0)","v":"Select"},null,{"$f":"IFERROR(VLOOKUP(B177,'Schedule V(b)'!$B$11:$Z$315,17,0),0)","v":0},null,{"$f":"IFERROR(VLOOKUP(B177,'Schedule V(b)'!$B$11:$Z$315,19,0),0)","v":0},null,{"$f":"IFERROR(VLOOKUP(B177,'Schedule V(b)'!$B$11:$Z$315,25,0),0)","v":0},null,null,null,null,null,0]
[167,null,null,{"$f":"IFERROR(VLOOKUP(B178,'Schedule V(b)'!$B$11:$Z$315,3,0),0)","v":0},null,{"$f":"IFERROR(VLOOKUP(B178,'Schedule V(b)'!$B$11:$Z$315,11,0),0)","v":"Select"},null,{"$f":"IFERROR(VLOOKUP(B178,'Schedule V(b)'!$B$11:$Z$315,15,0),0)","v":"Select"},null,{"$f":"IFERROR(VLOOKUP(B178,'Schedule V(b)'!$B$11:$Z$315,17,0),0)","v":0},null,{"$f":"IFERROR(VLOOKUP(B178,'Schedule V(b)'!$B$11:$Z$315,19,0),0)","v":0},null,{"$f":"IFERROR(VLOOKUP(B178,'Schedule V(b)'!$B$11:$Z$315,25,0),0)","v":0},null,null,null,null,null,0]
[168,null,null,{"$f":"IFERROR(VLOOKUP(B179,'Schedule V(b)'!$B$11:$Z$315,3,0),0)","v":0},null,{"$f":"IFERROR(VLOOKUP(B179,'Schedule V(b)'!$B$11:$Z$315,11,0),0)","v":"Select"},null,{"$f":"IFERROR(VLOOKUP(B179,'Schedule V(b)'!$B$11:$Z$315,15,0),0)","v":"Select"},null,{"$f":"IFERROR(VLOOKUP(B179,'Schedule V(b)'!$B$11:$Z$315,17,0),0)","v":0},null,{"$f":"IFERROR(VLOOKUP(B179,'Schedule V(b)'!$B$11:$Z$315,19,0),0)","v":0},null,{"$f":"IFERROR(VLOOKUP(B179,'Schedule V(b)'!$B$11:$Z$315,25,0),0)","v":0},null,null,null,null,null,0]
[169,null,null,{"$f":"IFERROR(VLOOKUP(B180,'Schedule V(b)'!$B$11:$Z$315,3,0),0)","v":0},null,{"$f":"IFERROR(VLOOKUP(B180,'Schedule V(b)'!$B$11:$Z$315,11,0),0)","v":"Select"},null,{"$f":"IFERROR(VLOOKUP(B180,'Schedule V(b)'!$B$11:$Z$315,15,0),0)","v":"Select"},null,{"$f":"IFERROR(VLOOKUP(B180,'Schedule V(b)'!$B$11:$Z$315,17,0),0)","v":0},null,{"$f":"IFERROR(VLOOKUP(B180,'Schedule V(b)'!$B$11:$Z$315,19,0),0)","v":0},null,{"$f":"IFERROR(VLOOKUP(B180,'Schedule V(b)'!$B$11:$Z$315,25,0),0)","v":0},null,null,null,null,null,0]
[170,null,null,{"$f":"IFERROR(VLOOKUP(B181,'Schedule V(b)'!$B$11:$Z$315,3,0),0)","v":0},null,{"$f":"IFERROR(VLOOKUP(B181,'Schedule V(b)'!$B$11:$Z$315,11,0),0)","v":"Select"},null,{"$f":"IFERROR(VLOOKUP(B181,'Schedule V(b)'!$B$11:$Z$315,15,0),0)","v":"Select"},null,{"$f":"IFERROR(VLOOKUP(B181,'Schedule V(b)'!$B$11:$Z$315,17,0),0)","v":0},null,{"$f":"IFERROR(VLOOKUP(B181,'Schedule V(b)'!$B$11:$Z$315,19,0),0)","v":0},null,{"$f":"IFERROR(VLOOKUP(B181,'Schedule V(b)'!$B$11:$Z$315,25,0),0)","v":0},null,null,null,null,null,0]
[171,null,null,{"$f":"IFERROR(VLOOKUP(B182,'Schedule V(b)'!$B$11:$Z$315,3,0),0)","v":0},null,{"$f":"IFERROR(VLOOKUP(B182,'Schedule V(b)'!$B$11:$Z$315,11,0),0)","v":"Select"},null,{"$f":"IFERROR(VLOOKUP(B182,'Schedule V(b)'!$B$11:$Z$315,15,0),0)","v":"Select"},null,{"$f":"IFERROR(VLOOKUP(B182,'Schedule V(b)'!$B$11:$Z$315,17,0),0)","v":0},null,{"$f":"IFERROR(VLOOKUP(B182,'Schedule V(b)'!$B$11:$Z$315,19,0),0)","v":0},null,{"$f":"IFERROR(VLOOKUP(B182,'Schedule V(b)'!$B$11:$Z$315,25,0),0)","v":0},null,null,null,null,null,0]
[172,null,null,{"$f":"IFERROR(VLOOKUP(B183,'Schedule V(b)'!$B$11:$Z$315,3,0),0)","v":0},null,{"$f":"IFERROR(VLOOKUP(B183,'Schedule V(b)'!$B$11:$Z$315,11,0),0)","v":"Select"},null,{"$f":"IFERROR(VLOOKUP(B183,'Schedule V(b)'!$B$11:$Z$315,15,0),0)","v":"Select"},null,{"$f":"IFERROR(VLOOKUP(B183,'Schedule V(b)'!$B$11:$Z$315,17,0),0)","v":0},null,{"$f":"IFERROR(VLOOKUP(B183,'Schedule V(b)'!$B$11:$Z$315,19,0),0)","v":0},null,{"$f":"IFERROR(VLOOKUP(B183,'Schedule V(b)'!$B$11:$Z$315,25,0),0)","v":0},null,null,null,null,null,0]
[173,null,null,{"$f":"IFERROR(VLOOKUP(B184,'Schedule V(b)'!$B$11:$Z$315,3,0),0)","v":0},null,{"$f":"IFERROR(VLOOKUP(B184,'Schedule V(b)'!$B$11:$Z$315,11,0),0)","v":"Select"},null,{"$f":"IFERROR(VLOOKUP(B184,'Schedule V(b)'!$B$11:$Z$315,15,0),0)","v":"Select"},null,{"$f":"IFERROR(VLOOKUP(B184,'Schedule V(b)'!$B$11:$Z$315,17,0),0)","v":0},null,{"$f":"IFERROR(VLOOKUP(B184,'Schedule V(b)'!$B$11:$Z$315,19,0),0)","v":0},null,{"$f":"IFERROR(VLOOKUP(B184,'Schedule V(b)'!$B$11:$Z$315,25,0),0)","v":0},null,null,null,null,null,0]
[174,null,null,{"$f":"IFERROR(VLOOKUP(B185,'Schedule V(b)'!$B$11:$Z$315,3,0),0)","v":0},null,{"$f":"IFERROR(VLOOKUP(B185,'Schedule V(b)'!$B$11:$Z$315,11,0),0)","v":"Select"},null,{"$f":"IFERROR(VLOOKUP(B185,'Schedule V(b)'!$B$11:$Z$315,15,0),0)","v":"Select"},null,{"$f":"IFERROR(VLOOKUP(B185,'Schedule V(b)'!$B$11:$Z$315,17,0),0)","v":0},null,{"$f":"IFERROR(VLOOKUP(B185,'Schedule V(b)'!$B$11:$Z$315,19,0),0)","v":0},null,{"$f":"IFERROR(VLOOKUP(B185,'Schedule V(b)'!$B$11:$Z$315,25,0),0)","v":0},null,null,null,null,null,0]
[175,null,null,{"$f":"IFERROR(VLOOKUP(B186,'Schedule V(b)'!$B$11:$Z$315,3,0),0)","v":0},null,{"$f":"IFERROR(VLOOKUP(B186,'Schedule V(b)'!$B$11:$Z$315,11,0),0)","v":"Select"},null,{"$f":"IFERROR(VLOOKUP(B186,'Schedule V(b)'!$B$11:$Z$315,15,0),0)","v":"Select"},null,{"$f":"IFERROR(VLOOKUP(B186,'Schedule V(b)'!$B$11:$Z$315,17,0),0)","v":0},null,{"$f":"IFERROR(VLOOKUP(B186,'Schedule V(b)'!$B$11:$Z$315,19,0),0)","v":0},null,{"$f":"IFERROR(VLOOKUP(B186,'Schedule V(b)'!$B$11:$Z$315,25,0),0)","v":0},null,null,null,null,null,0]
[176,null,null,{"$f":"IFERROR(VLOOKUP(B187,'Schedule V(b)'!$B$11:$Z$315,3,0),0)","v":0},null,{"$f":"IFERROR(VLOOKUP(B187,'Schedule V(b)'!$B$11:$Z$315,11,0),0)","v":"Select"},null,{"$f":"IFERROR(VLOOKUP(B187,'Schedule V(b)'!$B$11:$Z$315,15,0),0)","v":"Select"},null,{"$f":"IFERROR(VLOOKUP(B187,'Schedule V(b)'!$B$11:$Z$315,17,0),0)","v":0},null,{"$f":"IFERROR(VLOOKUP(B187,'Schedule V(b)'!$B$11:$Z$315,19,0),0)","v":0},null,{"$f":"IFERROR(VLOOKUP(B187,'Schedule V(b)'!$B$11:$Z$315,25,0),0)","v":0},null,null,null,null,null,0]
[177,null,null,{"$f":"IFERROR(VLOOKUP(B188,'Schedule V(b)'!$B$11:$Z$315,3,0),0)","v":0},null,{"$f":"IFERROR(VLOOKUP(B188,'Schedule V(b)'!$B$11:$Z$315,11,0),0)","v":"Select"},null,{"$f":"IFERROR(VLOOKUP(B188,'Schedule V(b)'!$B$11:$Z$315,15,0),0)","v":"Select"},null,{"$f":"IFERROR(VLOOKUP(B188,'Schedule V(b)'!$B$11:$Z$315,17,0),0)","v":0},null,{"$f":"IFERROR(VLOOKUP(B188,'Schedule V(b)'!$B$11:$Z$315,19,0),0)","v":0},null,{"$f":"IFERROR(VLOOKUP(B188,'Schedule V(b)'!$B$11:$Z$315,25,0),0)","v":0},null,null,null,null,null,0]
[178,null,null,{"$f":"IFERROR(VLOOKUP(B189,'Schedule V(b)'!$B$11:$Z$315,3,0),0)","v":0},null,{"$f":"IFERROR(VLOOKUP(B189,'Schedule V(b)'!$B$11:$Z$315,11,0),0)","v":"Select"},null,{"$f":"IFERROR(VLOOKUP(B189,'Schedule V(b)'!$B$11:$Z$315,15,0),0)","v":"Select"},null,{"$f":"IFERROR(VLOOKUP(B189,'Schedule V(b)'!$B$11:$Z$315,17,0),0)","v":0},null,{"$f":"IFERROR(VLOOKUP(B189,'Schedule V(b)'!$B$11:$Z$315,19,0),0)","v":0},null,{"$f":"IFERROR(VLOOKUP(B189,'Schedule V(b)'!$B$11:$Z$315,25,0),0)","v":0},null,null,null,null,null,0]
[179,null,null,{"$f":"IFERROR(VLOOKUP(B190,'Schedule V(b)'!$B$11:$Z$315,3,0),0)","v":0},null,{"$f":"IFERROR(VLOOKUP(B190,'Schedule V(b)'!$B$11:$Z$315,11,0),0)","v":"Select"},null,{"$f":"IFERROR(VLOOKUP(B190,'Schedule V(b)'!$B$11:$Z$315,15,0),0)","v":"Select"},null,{"$f":"IFERROR(VLOOKUP(B190,'Schedule V(b)'!$B$11:$Z$315,17,0),0)","v":0},null,{"$f":"IFERROR(VLOOKUP(B190,'Schedule V(b)'!$B$11:$Z$315,19,0),0)","v":0},null,{"$f":"IFERROR(VLOOKUP(B190,'Schedule V(b)'!$B$11:$Z$315,25,0),0)","v":0},null,null,null,null,null,0]
[180,null,null,{"$f":"IFERROR(VLOOKUP(B191,'Schedule V(b)'!$B$11:$Z$315,3,0),0)","v":0},null,{"$f":"IFERROR(VLOOKUP(B191,'Schedule V(b)'!$B$11:$Z$315,11,0),0)","v":"Select"},null,{"$f":"IFERROR(VLOOKUP(B191,'Schedule V(b)'!$B$11:$Z$315,15,0),0)","v":"Select"},null,{"$f":"IFERROR(VLOOKUP(B191,'Schedule V(b)'!$B$11:$Z$315,17,0),0)","v":0},null,{"$f":"IFERROR(VLOOKUP(B191,'Schedule V(b)'!$B$11:$Z$315,19,0),0)","v":0},null,{"$f":"IFERROR(VLOOKUP(B191,'Schedule V(b)'!$B$11:$Z$315,25,0),0)","v":0},null,null,null,null,null,0]
[181,null,null,{"$f":"IFERROR(VLOOKUP(B192,'Schedule V(b)'!$B$11:$Z$315,3,0),0)","v":0},null,{"$f":"IFERROR(VLOOKUP(B192,'Schedule V(b)'!$B$11:$Z$315,11,0),0)","v":"Select"},null,{"$f":"IFERROR(VLOOKUP(B192,'Schedule V(b)'!$B$11:$Z$315,15,0),0)","v":"Select"},null,{"$f":"IFERROR(VLOOKUP(B192,'Schedule V(b)'!$B$11:$Z$315,17,0),0)","v":0},null,{"$f":"IFERROR(VLOOKUP(B192,'Schedule V(b)'!$B$11:$Z$315,19,0),0)","v":0},null,{"$f":"IFERROR(VLOOKUP(B192,'Schedule V(b)'!$B$11:$Z$315,25,0),0)","v":0},null,null,null,null,null,0]
[182,null,null,{"$f":"IFERROR(VLOOKUP(B193,'Schedule V(b)'!$B$11:$Z$315,3,0),0)","v":0},null,{"$f":"IFERROR(VLOOKUP(B193,'Schedule V(b)'!$B$11:$Z$315,11,0),0)","v":"Select"},null,{"$f":"IFERROR(VLOOKUP(B193,'Schedule V(b)'!$B$11:$Z$315,15,0),0)","v":"Select"},null,{"$f":"IFERROR(VLOOKUP(B193,'Schedule V(b)'!$B$11:$Z$315,17,0),0)","v":0},null,{"$f":"IFERROR(VLOOKUP(B193,'Schedule V(b)'!$B$11:$Z$315,19,0),0)","v":0},null,{"$f":"IFERROR(VLOOKUP(B193,'Schedule V(b)'!$B$11:$Z$315,25,0),0)","v":0},null,null,null,null,null,0]
[183,null,null,{"$f":"IFERROR(VLOOKUP(B194,'Schedule V(b)'!$B$11:$Z$315,3,0),0)","v":0},null,{"$f":"IFERROR(VLOOKUP(B194,'Schedule V(b)'!$B$11:$Z$315,11,0),0)","v":"Select"},null,{"$f":"IFERROR(VLOOKUP(B194,'Schedule V(b)'!$B$11:$Z$315,15,0),0)","v":"Select"},null,{"$f":"IFERROR(VLOOKUP(B194,'Schedule V(b)'!$B$11:$Z$315,17,0),0)","v":0},null,{"$f":"IFERROR(VLOOKUP(B194,'Schedule V(b)'!$B$11:$Z$315,19,0),0)","v":0},null,{"$f":"IFERROR(VLOOKUP(B194,'Schedule V(b)'!$B$11:$Z$315,25,0),0)","v":0},null,null,null,null,null,0]
[184,null,null,{"$f":"IFERROR(VLOOKUP(B195,'Schedule V(b)'!$B$11:$Z$315,3,0),0)","v":0},null,{"$f":"IFERROR(VLOOKUP(B195,'Schedule V(b)'!$B$11:$Z$315,11,0),0)","v":"Select"},null,{"$f":"IFERROR(VLOOKUP(B195,'Schedule V(b)'!$B$11:$Z$315,15,0),0)","v":"Select"},null,{"$f":"IFERROR(VLOOKUP(B195,'Schedule V(b)'!$B$11:$Z$315,17,0),0)","v":0},null,{"$f":"IFERROR(VLOOKUP(B195,'Schedule V(b)'!$B$11:$Z$315,19,0),0)","v":0},null,{"$f":"IFERROR(VLOOKUP(B195,'Schedule V(b)'!$B$11:$Z$315,25,0),0)","v":0},null,null,null,null,null,0]
[185,null,null,{"$f":"IFERROR(VLOOKUP(B196,'Schedule V(b)'!$B$11:$Z$315,3,0),0)","v":0},null,{"$f":"IFERROR(VLOOKUP(B196,'Schedule V(b)'!$B$11:$Z$315,11,0),0)","v":"Select"},null,{"$f":"IFERROR(VLOOKUP(B196,'Schedule V(b)'!$B$11:$Z$315,15,0),0)","v":"Select"},null,{"$f":"IFERROR(VLOOKUP(B196,'Schedule V(b)'!$B$11:$Z$315,17,0),0)","v":0},null,{"$f":"IFERROR(VLOOKUP(B196,'Schedule V(b)'!$B$11:$Z$315,19,0),0)","v":0},null,{"$f":"IFERROR(VLOOKUP(B196,'Schedule V(b)'!$B$11:$Z$315,25,0),0)","v":0},null,null,null,null,null,0]
[186,null,null,{"$f":"IFERROR(VLOOKUP(B197,'Schedule V(b)'!$B$11:$Z$315,3,0),0)","v":0},null,{"$f":"IFERROR(VLOOKUP(B197,'Schedule V(b)'!$B$11:$Z$315,11,0),0)","v":"Select"},null,{"$f":"IFERROR(VLOOKUP(B197,'Schedule V(b)'!$B$11:$Z$315,15,0),0)","v":"Select"},null,{"$f":"IFERROR(VLOOKUP(B197,'Schedule V(b)'!$B$11:$Z$315,17,0),0)","v":0},null,{"$f":"IFERROR(VLOOKUP(B197,'Schedule V(b)'!$B$11:$Z$315,19,0),0)","v":0},null,{"$f":"IFERROR(VLOOKUP(B197,'Schedule V(b)'!$B$11:$Z$315,25,0),0)","v":0},null,null,null,null,null,0]
[187,null,null,{"$f":"IFERROR(VLOOKUP(B198,'Schedule V(b)'!$B$11:$Z$315,3,0),0)","v":0},null,{"$f":"IFERROR(VLOOKUP(B198,'Schedule V(b)'!$B$11:$Z$315,11,0),0)","v":"Select"},null,{"$f":"IFERROR(VLOOKUP(B198,'Schedule V(b)'!$B$11:$Z$315,15,0),0)","v":"Select"},null,{"$f":"IFERROR(VLOOKUP(B198,'Schedule V(b)'!$B$11:$Z$315,17,0),0)","v":0},null,{"$f":"IFERROR(VLOOKUP(B198,'Schedule V(b)'!$B$11:$Z$315,19,0),0)","v":0},null,{"$f":"IFERROR(VLOOKUP(B198,'Schedule V(b)'!$B$11:$Z$315,25,0),0)","v":0},null,null,null,null,null,0]
[188,null,null,{"$f":"IFERROR(VLOOKUP(B199,'Schedule V(b)'!$B$11:$Z$315,3,0),0)","v":0},null,{"$f":"IFERROR(VLOOKUP(B199,'Schedule V(b)'!$B$11:$Z$315,11,0),0)","v":"Select"},null,{"$f":"IFERROR(VLOOKUP(B199,'Schedule V(b)'!$B$11:$Z$315,15,0),0)","v":"Select"},null,{"$f":"IFERROR(VLOOKUP(B199,'Schedule V(b)'!$B$11:$Z$315,17,0),0)","v":0},null,{"$f":"IFERROR(VLOOKUP(B199,'Schedule V(b)'!$B$11:$Z$315,19,0),0)","v":0},null,{"$f":"IFERROR(VLOOKUP(B199,'Schedule V(b)'!$B$11:$Z$315,25,0),0)","v":0},null,null,null,null,null,0]
[189,null,null,{"$f":"IFERROR(VLOOKUP(B200,'Schedule V(b)'!$B$11:$Z$315,3,0),0)","v":0},null,{"$f":"IFERROR(VLOOKUP(B200,'Schedule V(b)'!$B$11:$Z$315,11,0),0)","v":"Select"},null,{"$f":"IFERROR(VLOOKUP(B200,'Schedule V(b)'!$B$11:$Z$315,15,0),0)","v":"Select"},null,{"$f":"IFERROR(VLOOKUP(B200,'Schedule V(b)'!$B$11:$Z$315,17,0),0)","v":0},null,{"$f":"IFERROR(VLOOKUP(B200,'Schedule V(b)'!$B$11:$Z$315,19,0),0)","v":0},null,{"$f":"IFERROR(VLOOKUP(B200,'Schedule V(b)'!$B$11:$Z$315,25,0),0)","v":0},null,null,null,null,null,0]
[190,null,null,{"$f":"IFERROR(VLOOKUP(B201,'Schedule V(b)'!$B$11:$Z$315,3,0),0)","v":0},null,{"$f":"IFERROR(VLOOKUP(B201,'Schedule V(b)'!$B$11:$Z$315,11,0),0)","v":"Select"},null,{"$f":"IFERROR(VLOOKUP(B201,'Schedule V(b)'!$B$11:$Z$315,15,0),0)","v":"Select"},null,{"$f":"IFERROR(VLOOKUP(B201,'Schedule V(b)'!$B$11:$Z$315,17,0),0)","v":0},null,{"$f":"IFERROR(VLOOKUP(B201,'Schedule V(b)'!$B$11:$Z$315,19,0),0)","v":0},null,{"$f":"IFERROR(VLOOKUP(B201,'Schedule V(b)'!$B$11:$Z$315,25,0),0)","v":0},null,null,null,null,null,0]
[191,null,null,{"$f":"IFERROR(VLOOKUP(B202,'Schedule V(b)'!$B$11:$Z$315,3,0),0)","v":0},null,{"$f":"IFERROR(VLOOKUP(B202,'Schedule V(b)'!$B$11:$Z$315,11,0),0)","v":"Select"},null,{"$f":"IFERROR(VLOOKUP(B202,'Schedule V(b)'!$B$11:$Z$315,15,0),0)","v":"Select"},null,{"$f":"IFERROR(VLOOKUP(B202,'Schedule V(b)'!$B$11:$Z$315,17,0),0)","v":0},null,{"$f":"IFERROR(VLOOKUP(B202,'Schedule V(b)'!$B$11:$Z$315,19,0),0)","v":0},null,{"$f":"IFERROR(VLOOKUP(B202,'Schedule V(b)'!$B$11:$Z$315,25,0),0)","v":0},null,null,null,null,null,0]
[192,null,null,{"$f":"IFERROR(VLOOKUP(B203,'Schedule V(b)'!$B$11:$Z$315,3,0),0)","v":0},null,{"$f":"IFERROR(VLOOKUP(B203,'Schedule V(b)'!$B$11:$Z$315,11,0),0)","v":"Select"},null,{"$f":"IFERROR(VLOOKUP(B203,'Schedule V(b)'!$B$11:$Z$315,15,0),0)","v":"Select"},null,{"$f":"IFERROR(VLOOKUP(B203,'Schedule V(b)'!$B$11:$Z$315,17,0),0)","v":0},null,{"$f":"IFERROR(VLOOKUP(B203,'Schedule V(b)'!$B$11:$Z$315,19,0),0)","v":0},null,{"$f":"IFERROR(VLOOKUP(B203,'Schedule V(b)'!$B$11:$Z$315,25,0),0)","v":0},null,null,null,null,null,0]
[193,null,null,{"$f":"IFERROR(VLOOKUP(B204,'Schedule V(b)'!$B$11:$Z$315,3,0),0)","v":0},null,{"$f":"IFERROR(VLOOKUP(B204,'Schedule V(b)'!$B$11:$Z$315,11,0),0)","v":"Select"},null,{"$f":"IFERROR(VLOOKUP(B204,'Schedule V(b)'!$B$11:$Z$315,15,0),0)","v":"Select"},null,{"$f":"IFERROR(VLOOKUP(B204,'Schedule V(b)'!$B$11:$Z$315,17,0),0)","v":0},null,{"$f":"IFERROR(VLOOKUP(B204,'Schedule V(b)'!$B$11:$Z$315,19,0),0)","v":0},null,{"$f":"IFERROR(VLOOKUP(B204,'Schedule V(b)'!$B$11:$Z$315,25,0),0)","v":0},null,null,null,null,null,0]
[194,null,null,{"$f":"IFERROR(VLOOKUP(B205,'Schedule V(b)'!$B$11:$Z$315,3,0),0)","v":0},null,{"$f":"IFERROR(VLOOKUP(B205,'Schedule V(b)'!$B$11:$Z$315,11,0),0)","v":"Select"},null,{"$f":"IFERROR(VLOOKUP(B205,'Schedule V(b)'!$B$11:$Z$315,15,0),0)","v":"Select"},null,{"$f":"IFERROR(VLOOKUP(B205,'Schedule V(b)'!$B$11:$Z$315,17,0),0)","v":0},null,{"$f":"IFERROR(VLOOKUP(B205,'Schedule V(b)'!$B$11:$Z$315,19,0),0)","v":0},null,{"$f":"IFERROR(VLOOKUP(B205,'Schedule V(b)'!$B$11:$Z$315,25,0),0)","v":0},null,null,null,null,null,{"$f":"IF(H205=\"Control\",$Y$8*P205,J205*P205)","v":0}]
[195,null,null,{"$f":"IFERROR(VLOOKUP(B206,'Schedule V(b)'!$B$11:$Z$315,3,0),0)","v":0},null,{"$f":"IFERROR(VLOOKUP(B206,'Schedule V(b)'!$B$11:$Z$315,11,0),0)","v":"Select"},null,{"$f":"IFERROR(VLOOKUP(B206,'Schedule V(b)'!$B$11:$Z$315,15,0),0)","v":"Select"},null,{"$f":"IFERROR(VLOOKUP(B206,'Schedule V(b)'!$B$11:$Z$315,17,0),0)","v":0},null,{"$f":"IFERROR(VLOOKUP(B206,'Schedule V(b)'!$B$11:$Z$315,19,0),0)","v":0},null,{"$f":"IFERROR(VLOOKUP(B206,'Schedule V(b)'!$B$11:$Z$315,25,0),0)","v":0},null,null,null,null,null,0]
[196,null,null,{"$f":"IFERROR(VLOOKUP(B207,'Schedule V(b)'!$B$11:$Z$315,3,0),0)","v":0},null,{"$f":"IFERROR(VLOOKUP(B207,'Schedule V(b)'!$B$11:$Z$315,11,0),0)","v":"Select"},null,{"$f":"IFERROR(VLOOKUP(B207,'Schedule V(b)'!$B$11:$Z$315,15,0),0)","v":"Select"},null,{"$f":"IFERROR(VLOOKUP(B207,'Schedule V(b)'!$B$11:$Z$315,17,0),0)","v":0},null,{"$f":"IFERROR(VLOOKUP(B207,'Schedule V(b)'!$B$11:$Z$315,19,0),0)","v":0},null,{"$f":"IFERROR(VLOOKUP(B207,'Schedule V(b)'!$B$11:$Z$315,25,0),0)","v":0},null,null,null,null,null,0]
[197,null,null,{"$f":"IFERROR(VLOOKUP(B208,'Schedule V(b)'!$B$11:$Z$315,3,0),0)","v":0},null,{"$f":"IFERROR(VLOOKUP(B208,'Schedule V(b)'!$B$11:$Z$315,11,0),0)","v":"Select"},null,{"$f":"IFERROR(VLOOKUP(B208,'Schedule V(b)'!$B$11:$Z$315,15,0),0)","v":"Select"},null,{"$f":"IFERROR(VLOOKUP(B208,'Schedule V(b)'!$B$11:$Z$315,17,0),0)","v":0},null,{"$f":"IFERROR(VLOOKUP(B208,'Schedule V(b)'!$B$11:$Z$315,19,0),0)","v":0},null,{"$f":"IFERROR(VLOOKUP(B208,'Schedule V(b)'!$B$11:$Z$315,25,0),0)","v":0},null,null,null,null,null,0]
[198,null,null,{"$f":"IFERROR(VLOOKUP(B209,'Schedule V(b)'!$B$11:$Z$315,3,0),0)","v":0},null,{"$f":"IFERROR(VLOOKUP(B209,'Schedule V(b)'!$B$11:$Z$315,11,0),0)","v":"Select"},null,{"$f":"IFERROR(VLOOKUP(B209,'Schedule V(b)'!$B$11:$Z$315,15,0),0)","v":"Select"},null,{"$f":"IFERROR(VLOOKUP(B209,'Schedule V(b)'!$B$11:$Z$315,17,0),0)","v":0},null,{"$f":"IFERROR(VLOOKUP(B209,'Schedule V(b)'!$B$11:$Z$315,19,0),0)","v":0},null,{"$f":"IFERROR(VLOOKUP(B209,'Schedule V(b)'!$B$11:$Z$315,25,0),0)","v":0},null,null,null,null,null,0]
[199,null,null,{"$f":"IFERROR(VLOOKUP(B210,'Schedule V(b)'!$B$11:$Z$315,3,0),0)","v":0},null,{"$f":"IFERROR(VLOOKUP(B210,'Schedule V(b)'!$B$11:$Z$315,11,0),0)","v":"Select"},null,{"$f":"IFERROR(VLOOKUP(B210,'Schedule V(b)'!$B$11:$Z$315,15,0),0)","v":"Select"},null,{"$f":"IFERROR(VLOOKUP(B210,'Schedule V(b)'!$B$11:$Z$315,17,0),0)","v":0},null,{"$f":"IFERROR(VLOOKUP(B210,'Schedule V(b)'!$B$11:$Z$315,19,0),0)","v":0},null,{"$f":"IFERROR(VLOOKUP(B210,'Schedule V(b)'!$B$11:$Z$315,25,0),0)","v":0},null,null,null,null,null,0]
[200,null,null,{"$f":"IFERROR(VLOOKUP(B211,'Schedule V(b)'!$B$11:$Z$315,3,0),0)","v":0},null,{"$f":"IFERROR(VLOOKUP(B211,'Schedule V(b)'!$B$11:$Z$315,11,0),0)","v":"Select"},null,{"$f":"IFERROR(VLOOKUP(B211,'Schedule V(b)'!$B$11:$Z$315,15,0),0)","v":"Select"},null,{"$f":"IFERROR(VLOOKUP(B211,'Schedule V(b)'!$B$11:$Z$315,17,0),0)","v":0},null,{"$f":"IFERROR(VLOOKUP(B211,'Schedule V(b)'!$B$11:$Z$315,19,0),0)","v":0},null,{"$f":"IFERROR(VLOOKUP(B211,'Schedule V(b)'!$B$11:$Z$315,25,0),0)","v":0},null,null,null,null,null,0]
[201,null,null,{"$f":"IFERROR(VLOOKUP(B212,'Schedule V(b)'!$B$11:$Z$315,3,0),0)","v":0},null,{"$f":"IFERROR(VLOOKUP(B212,'Schedule V(b)'!$B$11:$Z$315,11,0),0)","v":"Select"},null,{"$f":"IFERROR(VLOOKUP(B212,'Schedule V(b)'!$B$11:$Z$315,15,0),0)","v":"Select"},null,{"$f":"IFERROR(VLOOKUP(B212,'Schedule V(b)'!$B$11:$Z$315,17,0),0)","v":0},null,{"$f":"IFERROR(VLOOKUP(B212,'Schedule V(b)'!$B$11:$Z$315,19,0),0)","v":0},null,{"$f":"IFERROR(VLOOKUP(B212,'Schedule V(b)'!$B$11:$Z$315,25,0),0)","v":0},null,null,null,null,null,0]
[202,null,null,{"$f":"IFERROR(VLOOKUP(B213,'Schedule V(b)'!$B$11:$Z$315,3,0),0)","v":0},null,{"$f":"IFERROR(VLOOKUP(B213,'Schedule V(b)'!$B$11:$Z$315,11,0),0)","v":"Select"},null,{"$f":"IFERROR(VLOOKUP(B213,'Schedule V(b)'!$B$11:$Z$315,15,0),0)","v":"Select"},null,{"$f":"IFERROR(VLOOKUP(B213,'Schedule V(b)'!$B$11:$Z$315,17,0),0)","v":0},null,{"$f":"IFERROR(VLOOKUP(B213,'Schedule V(b)'!$B$11:$Z$315,19,0),0)","v":0},null,{"$f":"IFERROR(VLOOKUP(B213,'Schedule V(b)'!$B$11:$Z$315,25,0),0)","v":0},null,null,null,null,null,0]
[203,null,null,{"$f":"IFERROR(VLOOKUP(B214,'Schedule V(b)'!$B$11:$Z$315,3,0),0)","v":0},null,{"$f":"IFERROR(VLOOKUP(B214,'Schedule V(b)'!$B$11:$Z$315,11,0),0)","v":"Select"},null,{"$f":"IFERROR(VLOOKUP(B214,'Schedule V(b)'!$B$11:$Z$315,15,0),0)","v":"Select"},null,{"$f":"IFERROR(VLOOKUP(B214,'Schedule V(b)'!$B$11:$Z$315,17,0),0)","v":0},null,{"$f":"IFERROR(VLOOKUP(B214,'Schedule V(b)'!$B$11:$Z$315,19,0),0)","v":0},null,{"$f":"IFERROR(VLOOKUP(B214,'Schedule V(b)'!$B$11:$Z$315,25,0),0)","v":0},null,null,null,null,null,0]
[204,null,null,{"$f":"IFERROR(VLOOKUP(B215,'Schedule V(b)'!$B$11:$Z$315,3,0),0)","v":0},null,{"$f":"IFERROR(VLOOKUP(B215,'Schedule V(b)'!$B$11:$Z$315,11,0),0)","v":"Select"},null,{"$f":"IFERROR(VLOOKUP(B215,'Schedule V(b)'!$B$11:$Z$315,15,0),0)","v":"Select"},null,{"$f":"IFERROR(VLOOKUP(B215,'Schedule V(b)'!$B$11:$Z$315,17,0),0)","v":0},null,{"$f":"IFERROR(VLOOKUP(B215,'Schedule V(b)'!$B$11:$Z$315,19,0),0)","v":0},null,{"$f":"IFERROR(VLOOKUP(B215,'Schedule V(b)'!$B$11:$Z$315,25,0),0)","v":0},null,null,null,null,null,0]
[205,null,null,{"$f":"IFERROR(VLOOKUP(B216,'Schedule V(b)'!$B$11:$Z$315,3,0),0)","v":0},null,{"$f":"IFERROR(VLOOKUP(B216,'Schedule V(b)'!$B$11:$Z$315,11,0),0)","v":"Select"},null,{"$f":"IFERROR(VLOOKUP(B216,'Schedule V(b)'!$B$11:$Z$315,15,0),0)","v":"Select"},null,{"$f":"IFERROR(VLOOKUP(B216,'Schedule V(b)'!$B$11:$Z$315,17,0),0)","v":0},null,{"$f":"IFERROR(VLOOKUP(B216,'Schedule V(b)'!$B$11:$Z$315,19,0),0)","v":0},null,{"$f":"IFERROR(VLOOKUP(B216,'Schedule V(b)'!$B$11:$Z$315,25,0),0)","v":0},null,null,null,null,null,0]
[206,null,null,{"$f":"IFERROR(VLOOKUP(B217,'Schedule V(b)'!$B$11:$Z$315,3,0),0)","v":0},null,{"$f":"IFERROR(VLOOKUP(B217,'Schedule V(b)'!$B$11:$Z$315,11,0),0)","v":"Select"},null,{"$f":"IFERROR(VLOOKUP(B217,'Schedule V(b)'!$B$11:$Z$315,15,0),0)","v":"Select"},null,{"$f":"IFERROR(VLOOKUP(B217,'Schedule V(b)'!$B$11:$Z$315,17,0),0)","v":0},null,{"$f":"IFERROR(VLOOKUP(B217,'Schedule V(b)'!$B$11:$Z$315,19,0),0)","v":0},null,{"$f":"IFERROR(VLOOKUP(B217,'Schedule V(b)'!$B$11:$Z$315,25,0),0)","v":0},null,null,null,null,null,0]
[207,null,null,{"$f":"IFERROR(VLOOKUP(B218,'Schedule V(b)'!$B$11:$Z$315,3,0),0)","v":0},null,{"$f":"IFERROR(VLOOKUP(B218,'Schedule V(b)'!$B$11:$Z$315,11,0),0)","v":"Select"},null,{"$f":"IFERROR(VLOOKUP(B218,'Schedule V(b)'!$B$11:$Z$315,15,0),0)","v":"Select"},null,{"$f":"IFERROR(VLOOKUP(B218,'Schedule V(b)'!$B$11:$Z$315,17,0),0)","v":0},null,{"$f":"IFERROR(VLOOKUP(B218,'Schedule V(b)'!$B$11:$Z$315,19,0),0)","v":0},null,{"$f":"IFERROR(VLOOKUP(B218,'Schedule V(b)'!$B$11:$Z$315,25,0),0)","v":0},null,null,null,null,null,0]
[208,null,null,{"$f":"IFERROR(VLOOKUP(B219,'Schedule V(b)'!$B$11:$Z$315,3,0),0)","v":0},null,{"$f":"IFERROR(VLOOKUP(B219,'Schedule V(b)'!$B$11:$Z$315,11,0),0)","v":"Select"},null,{"$f":"IFERROR(VLOOKUP(B219,'Schedule V(b)'!$B$11:$Z$315,15,0),0)","v":"Select"},null,{"$f":"IFERROR(VLOOKUP(B219,'Schedule V(b)'!$B$11:$Z$315,17,0),0)","v":0},null,{"$f":"IFERROR(VLOOKUP(B219,'Schedule V(b)'!$B$11:$Z$315,19,0),0)","v":0},null,{"$f":"IFERROR(VLOOKUP(B219,'Schedule V(b)'!$B$11:$Z$315,25,0),0)","v":0},null,null,null,null,null,0]
[209,null,null,{"$f":"IFERROR(VLOOKUP(B220,'Schedule V(b)'!$B$11:$Z$315,3,0),0)","v":0},null,{"$f":"IFERROR(VLOOKUP(B220,'Schedule V(b)'!$B$11:$Z$315,11,0),0)","v":"Select"},null,{"$f":"IFERROR(VLOOKUP(B220,'Schedule V(b)'!$B$11:$Z$315,15,0),0)","v":"Select"},null,{"$f":"IFERROR(VLOOKUP(B220,'Schedule V(b)'!$B$11:$Z$315,17,0),0)","v":0},null,{"$f":"IFERROR(VLOOKUP(B220,'Schedule V(b)'!$B$11:$Z$315,19,0),0)","v":0},null,{"$f":"IFERROR(VLOOKUP(B220,'Schedule V(b)'!$B$11:$Z$315,25,0),0)","v":0},null,null,null,null,null,0]
[210,null,null,{"$f":"IFERROR(VLOOKUP(B221,'Schedule V(b)'!$B$11:$Z$315,3,0),0)","v":0},null,{"$f":"IFERROR(VLOOKUP(B221,'Schedule V(b)'!$B$11:$Z$315,11,0),0)","v":"Select"},null,{"$f":"IFERROR(VLOOKUP(B221,'Schedule V(b)'!$B$11:$Z$315,15,0),0)","v":"Select"},null,{"$f":"IFERROR(VLOOKUP(B221,'Schedule V(b)'!$B$11:$Z$315,17,0),0)","v":0},null,{"$f":"IFERROR(VLOOKUP(B221,'Schedule V(b)'!$B$11:$Z$315,19,0),0)","v":0},null,{"$f":"IFERROR(VLOOKUP(B221,'Schedule V(b)'!$B$11:$Z$315,25,0),0)","v":0},null,null,null,null,null,0]
[211,null,null,{"$f":"IFERROR(VLOOKUP(B222,'Schedule V(b)'!$B$11:$Z$315,3,0),0)","v":0},null,{"$f":"IFERROR(VLOOKUP(B222,'Schedule V(b)'!$B$11:$Z$315,11,0),0)","v":"Select"},null,{"$f":"IFERROR(VLOOKUP(B222,'Schedule V(b)'!$B$11:$Z$315,15,0),0)","v":"Select"},null,{"$f":"IFERROR(VLOOKUP(B222,'Schedule V(b)'!$B$11:$Z$315,17,0),0)","v":0},null,{"$f":"IFERROR(VLOOKUP(B222,'Schedule V(b)'!$B$11:$Z$315,19,0),0)","v":0},null,{"$f":"IFERROR(VLOOKUP(B222,'Schedule V(b)'!$B$11:$Z$315,25,0),0)","v":0},null,null,null,null,null,0]
[212,null,null,{"$f":"IFERROR(VLOOKUP(B223,'Schedule V(b)'!$B$11:$Z$315,3,0),0)","v":0},null,{"$f":"IFERROR(VLOOKUP(B223,'Schedule V(b)'!$B$11:$Z$315,11,0),0)","v":"Select"},null,{"$f":"IFERROR(VLOOKUP(B223,'Schedule V(b)'!$B$11:$Z$315,15,0),0)","v":"Select"},null,{"$f":"IFERROR(VLOOKUP(B223,'Schedule V(b)'!$B$11:$Z$315,17,0),0)","v":0},null,{"$f":"IFERROR(VLOOKUP(B223,'Schedule V(b)'!$B$11:$Z$315,19,0),0)","v":0},null,{"$f":"IFERROR(VLOOKUP(B223,'Schedule V(b)'!$B$11:$Z$315,25,0),0)","v":0},null,null,null,null,null,0]
[213,null,null,{"$f":"IFERROR(VLOOKUP(B224,'Schedule V(b)'!$B$11:$Z$315,3,0),0)","v":0},null,{"$f":"IFERROR(VLOOKUP(B224,'Schedule V(b)'!$B$11:$Z$315,11,0),0)","v":"Select"},null,{"$f":"IFERROR(VLOOKUP(B224,'Schedule V(b)'!$B$11:$Z$315,15,0),0)","v":"Select"},null,{"$f":"IFERROR(VLOOKUP(B224,'Schedule V(b)'!$B$11:$Z$315,17,0),0)","v":0},null,{"$f":"IFERROR(VLOOKUP(B224,'Schedule V(b)'!$B$11:$Z$315,19,0),0)","v":0},null,{"$f":"IFERROR(VLOOKUP(B224,'Schedule V(b)'!$B$11:$Z$315,25,0),0)","v":0},null,null,null,null,null,0]
[214,null,null,{"$f":"IFERROR(VLOOKUP(B225,'Schedule V(b)'!$B$11:$Z$315,3,0),0)","v":0},null,{"$f":"IFERROR(VLOOKUP(B225,'Schedule V(b)'!$B$11:$Z$315,11,0),0)","v":"Select"},null,{"$f":"IFERROR(VLOOKUP(B225,'Schedule V(b)'!$B$11:$Z$315,15,0),0)","v":"Select"},null,{"$f":"IFERROR(VLOOKUP(B225,'Schedule V(b)'!$B$11:$Z$315,17,0),0)","v":0},null,{"$f":"IFERROR(VLOOKUP(B225,'Schedule V(b)'!$B$11:$Z$315,19,0),0)","v":0},null,{"$f":"IFERROR(VLOOKUP(B225,'Schedule V(b)'!$B$11:$Z$315,25,0),0)","v":0},null,null,null,null,null,0]
[215,null,null,{"$f":"IFERROR(VLOOKUP(B226,'Schedule V(b)'!$B$11:$Z$315,3,0),0)","v":0},null,{"$f":"IFERROR(VLOOKUP(B226,'Schedule V(b)'!$B$11:$Z$315,11,0),0)","v":"Select"},null,{"$f":"IFERROR(VLOOKUP(B226,'Schedule V(b)'!$B$11:$Z$315,15,0),0)","v":"Select"},null,{"$f":"IFERROR(VLOOKUP(B226,'Schedule V(b)'!$B$11:$Z$315,17,0),0)","v":0},null,{"$f":"IFERROR(VLOOKUP(B226,'Schedule V(b)'!$B$11:$Z$315,19,0),0)","v":0},null,{"$f":"IFERROR(VLOOKUP(B226,'Schedule V(b)'!$B$11:$Z$315,25,0),0)","v":0},null,null,null,null,null,0]
[216,null,null,{"$f":"IFERROR(VLOOKUP(B227,'Schedule V(b)'!$B$11:$Z$315,3,0),0)","v":0},null,{"$f":"IFERROR(VLOOKUP(B227,'Schedule V(b)'!$B$11:$Z$315,11,0),0)","v":"Select"},null,{"$f":"IFERROR(VLOOKUP(B227,'Schedule V(b)'!$B$11:$Z$315,15,0),0)","v":"Select"},null,{"$f":"IFERROR(VLOOKUP(B227,'Schedule V(b)'!$B$11:$Z$315,17,0),0)","v":0},null,{"$f":"IFERROR(VLOOKUP(B227,'Schedule V(b)'!$B$11:$Z$315,19,0),0)","v":0},null,{"$f":"IFERROR(VLOOKUP(B227,'Schedule V(b)'!$B$11:$Z$315,25,0),0)","v":0},null,null,null,null,null,0]
[217,null,null,{"$f":"IFERROR(VLOOKUP(B228,'Schedule V(b)'!$B$11:$Z$315,3,0),0)","v":0},null,{"$f":"IFERROR(VLOOKUP(B228,'Schedule V(b)'!$B$11:$Z$315,11,0),0)","v":"Select"},null,{"$f":"IFERROR(VLOOKUP(B228,'Schedule V(b)'!$B$11:$Z$315,15,0),0)","v":"Select"},null,{"$f":"IFERROR(VLOOKUP(B228,'Schedule V(b)'!$B$11:$Z$315,17,0),0)","v":0},null,{"$f":"IFERROR(VLOOKUP(B228,'Schedule V(b)'!$B$11:$Z$315,19,0),0)","v":0},null,{"$f":"IFERROR(VLOOKUP(B228,'Schedule V(b)'!$B$11:$Z$315,25,0),0)","v":0},null,null,null,null,null,0]
[218,null,null,{"$f":"IFERROR(VLOOKUP(B229,'Schedule V(b)'!$B$11:$Z$315,3,0),0)","v":0},null,{"$f":"IFERROR(VLOOKUP(B229,'Schedule V(b)'!$B$11:$Z$315,11,0),0)","v":"Select"},null,{"$f":"IFERROR(VLOOKUP(B229,'Schedule V(b)'!$B$11:$Z$315,15,0),0)","v":"Select"},null,{"$f":"IFERROR(VLOOKUP(B229,'Schedule V(b)'!$B$11:$Z$315,17,0),0)","v":0},null,{"$f":"IFERROR(VLOOKUP(B229,'Schedule V(b)'!$B$11:$Z$315,19,0),0)","v":0},null,{"$f":"IFERROR(VLOOKUP(B229,'Schedule V(b)'!$B$11:$Z$315,25,0),0)","v":0},null,null,null,null,null,0]
[219,null,null,{"$f":"IFERROR(VLOOKUP(B230,'Schedule V(b)'!$B$11:$Z$315,3,0),0)","v":0},null,{"$f":"IFERROR(VLOOKUP(B230,'Schedule V(b)'!$B$11:$Z$315,11,0),0)","v":"Select"},null,{"$f":"IFERROR(VLOOKUP(B230,'Schedule V(b)'!$B$11:$Z$315,15,0),0)","v":"Select"},null,{"$f":"IFERROR(VLOOKUP(B230,'Schedule V(b)'!$B$11:$Z$315,17,0),0)","v":0},null,{"$f":"IFERROR(VLOOKUP(B230,'Schedule V(b)'!$B$11:$Z$315,19,0),0)","v":0},null,{"$f":"IFERROR(VLOOKUP(B230,'Schedule V(b)'!$B$11:$Z$315,25,0),0)","v":0},null,null,null,null,null,0]
[220,null,null,{"$f":"IFERROR(VLOOKUP(B231,'Schedule V(b)'!$B$11:$Z$315,3,0),0)","v":0},null,{"$f":"IFERROR(VLOOKUP(B231,'Schedule V(b)'!$B$11:$Z$315,11,0),0)","v":"Select"},null,{"$f":"IFERROR(VLOOKUP(B231,'Schedule V(b)'!$B$11:$Z$315,15,0),0)","v":"Select"},null,{"$f":"IFERROR(VLOOKUP(B231,'Schedule V(b)'!$B$11:$Z$315,17,0),0)","v":0},null,{"$f":"IFERROR(VLOOKUP(B231,'Schedule V(b)'!$B$11:$Z$315,19,0),0)","v":0},null,{"$f":"IFERROR(VLOOKUP(B231,'Schedule V(b)'!$B$11:$Z$315,25,0),0)","v":0},null,null,null,null,null,0]
[221,null,null,{"$f":"IFERROR(VLOOKUP(B232,'Schedule V(b)'!$B$11:$Z$315,3,0),0)","v":0},null,{"$f":"IFERROR(VLOOKUP(B232,'Schedule V(b)'!$B$11:$Z$315,11,0),0)","v":"Select"},null,{"$f":"IFERROR(VLOOKUP(B232,'Schedule V(b)'!$B$11:$Z$315,15,0),0)","v":"Select"},null,{"$f":"IFERROR(VLOOKUP(B232,'Schedule V(b)'!$B$11:$Z$315,17,0),0)","v":0},null,{"$f":"IFERROR(VLOOKUP(B232,'Schedule V(b)'!$B$11:$Z$315,19,0),0)","v":0},null,{"$f":"IFERROR(VLOOKUP(B232,'Schedule V(b)'!$B$11:$Z$315,25,0),0)","v":0},null,null,null,null,null,0]
[222,null,null,{"$f":"IFERROR(VLOOKUP(B233,'Schedule V(b)'!$B$11:$Z$315,3,0),0)","v":0},null,{"$f":"IFERROR(VLOOKUP(B233,'Schedule V(b)'!$B$11:$Z$315,11,0),0)","v":"Select"},null,{"$f":"IFERROR(VLOOKUP(B233,'Schedule V(b)'!$B$11:$Z$315,15,0),0)","v":"Select"},null,{"$f":"IFERROR(VLOOKUP(B233,'Schedule V(b)'!$B$11:$Z$315,17,0),0)","v":0},null,{"$f":"IFERROR(VLOOKUP(B233,'Schedule V(b)'!$B$11:$Z$315,19,0),0)","v":0},null,{"$f":"IFERROR(VLOOKUP(B233,'Schedule V(b)'!$B$11:$Z$315,25,0),0)","v":0},null,null,null,null,null,0]
[223,null,null,{"$f":"IFERROR(VLOOKUP(B234,'Schedule V(b)'!$B$11:$Z$315,3,0),0)","v":0},null,{"$f":"IFERROR(VLOOKUP(B234,'Schedule V(b)'!$B$11:$Z$315,11,0),0)","v":"Select"},null,{"$f":"IFERROR(VLOOKUP(B234,'Schedule V(b)'!$B$11:$Z$315,15,0),0)","v":"Select"},null,{"$f":"IFERROR(VLOOKUP(B234,'Schedule V(b)'!$B$11:$Z$315,17,0),0)","v":0},null,{"$f":"IFERROR(VLOOKUP(B234,'Schedule V(b)'!$B$11:$Z$315,19,0),0)","v":0},null,{"$f":"IFERROR(VLOOKUP(B234,'Schedule V(b)'!$B$11:$Z$315,25,0),0)","v":0},null,null,null,null,null,0]
[224,null,null,{"$f":"IFERROR(VLOOKUP(B235,'Schedule V(b)'!$B$11:$Z$315,3,0),0)","v":0},null,{"$f":"IFERROR(VLOOKUP(B235,'Schedule V(b)'!$B$11:$Z$315,11,0),0)","v":"Select"},null,{"$f":"IFERROR(VLOOKUP(B235,'Schedule V(b)'!$B$11:$Z$315,15,0),0)","v":"Select"},null,{"$f":"IFERROR(VLOOKUP(B235,'Schedule V(b)'!$B$11:$Z$315,17,0),0)","v":0},null,{"$f":"IFERROR(VLOOKUP(B235,'Schedule V(b)'!$B$11:$Z$315,19,0),0)","v":0},null,{"$f":"IFERROR(VLOOKUP(B235,'Schedule V(b)'!$B$11:$Z$315,25,0),0)","v":0},null,null,null,null,null,0]
[225,null,null,{"$f":"IFERROR(VLOOKUP(B236,'Schedule V(b)'!$B$11:$Z$315,3,0),0)","v":0},null,{"$f":"IFERROR(VLOOKUP(B236,'Schedule V(b)'!$B$11:$Z$315,11,0),0)","v":"Select"},null,{"$f":"IFERROR(VLOOKUP(B236,'Schedule V(b)'!$B$11:$Z$315,15,0),0)","v":"Select"},null,{"$f":"IFERROR(VLOOKUP(B236,'Schedule V(b)'!$B$11:$Z$315,17,0),0)","v":0},null,{"$f":"IFERROR(VLOOKUP(B236,'Schedule V(b)'!$B$11:$Z$315,19,0),0)","v":0},null,{"$f":"IFERROR(VLOOKUP(B236,'Schedule V(b)'!$B$11:$Z$315,25,0),0)","v":0},null,null,null,null,null,0]
[226,null,null,{"$f":"IFERROR(VLOOKUP(B237,'Schedule V(b)'!$B$11:$Z$315,3,0),0)","v":0},null,{"$f":"IFERROR(VLOOKUP(B237,'Schedule V(b)'!$B$11:$Z$315,11,0),0)","v":"Select"},null,{"$f":"IFERROR(VLOOKUP(B237,'Schedule V(b)'!$B$11:$Z$315,15,0),0)","v":"Select"},null,{"$f":"IFERROR(VLOOKUP(B237,'Schedule V(b)'!$B$11:$Z$315,17,0),0)","v":0},null,{"$f":"IFERROR(VLOOKUP(B237,'Schedule V(b)'!$B$11:$Z$315,19,0),0)","v":0},null,{"$f":"IFERROR(VLOOKUP(B237,'Schedule V(b)'!$B$11:$Z$315,25,0),0)","v":0},null,null,null,null,null,0]
[227,null,null,{"$f":"IFERROR(VLOOKUP(B238,'Schedule V(b)'!$B$11:$Z$315,3,0),0)","v":0},null,{"$f":"IFERROR(VLOOKUP(B238,'Schedule V(b)'!$B$11:$Z$315,11,0),0)","v":"Select"},null,{"$f":"IFERROR(VLOOKUP(B238,'Schedule V(b)'!$B$11:$Z$315,15,0),0)","v":"Select"},null,{"$f":"IFERROR(VLOOKUP(B238,'Schedule V(b)'!$B$11:$Z$315,17,0),0)","v":0},null,{"$f":"IFERROR(VLOOKUP(B238,'Schedule V(b)'!$B$11:$Z$315,19,0),0)","v":0},null,{"$f":"IFERROR(VLOOKUP(B238,'Schedule V(b)'!$B$11:$Z$315,25,0),0)","v":0},null,null,null,null,null,0]
[228,null,null,{"$f":"IFERROR(VLOOKUP(B239,'Schedule V(b)'!$B$11:$Z$315,3,0),0)","v":0},null,{"$f":"IFERROR(VLOOKUP(B239,'Schedule V(b)'!$B$11:$Z$315,11,0),0)","v":"Select"},null,{"$f":"IFERROR(VLOOKUP(B239,'Schedule V(b)'!$B$11:$Z$315,15,0),0)","v":"Select"},null,{"$f":"IFERROR(VLOOKUP(B239,'Schedule V(b)'!$B$11:$Z$315,17,0),0)","v":0},null,{"$f":"IFERROR(VLOOKUP(B239,'Schedule V(b)'!$B$11:$Z$315,19,0),0)","v":0},null,{"$f":"IFERROR(VLOOKUP(B239,'Schedule V(b)'!$B$11:$Z$315,25,0),0)","v":0},null,null,null,null,null,0]
[229,null,null,{"$f":"IFERROR(VLOOKUP(B240,'Schedule V(b)'!$B$11:$Z$315,3,0),0)","v":0},null,{"$f":"IFERROR(VLOOKUP(B240,'Schedule V(b)'!$B$11:$Z$315,11,0),0)","v":"Select"},null,{"$f":"IFERROR(VLOOKUP(B240,'Schedule V(b)'!$B$11:$Z$315,15,0),0)","v":"Select"},null,{"$f":"IFERROR(VLOOKUP(B240,'Schedule V(b)'!$B$11:$Z$315,17,0),0)","v":0},null,{"$f":"IFERROR(VLOOKUP(B240,'Schedule V(b)'!$B$11:$Z$315,19,0),0)","v":0},null,{"$f":"IFERROR(VLOOKUP(B240,'Schedule V(b)'!$B$11:$Z$315,25,0),0)","v":0},null,null,null,null,null,0]
[230,null,null,{"$f":"IFERROR(VLOOKUP(B241,'Schedule V(b)'!$B$11:$Z$315,3,0),0)","v":0},null,{"$f":"IFERROR(VLOOKUP(B241,'Schedule V(b)'!$B$11:$Z$315,11,0),0)","v":"Select"},null,{"$f":"IFERROR(VLOOKUP(B241,'Schedule V(b)'!$B$11:$Z$315,15,0),0)","v":"Select"},null,{"$f":"IFERROR(VLOOKUP(B241,'Schedule V(b)'!$B$11:$Z$315,17,0),0)","v":0},null,{"$f":"IFERROR(VLOOKUP(B241,'Schedule V(b)'!$B$11:$Z$315,19,0),0)","v":0},null,{"$f":"IFERROR(VLOOKUP(B241,'Schedule V(b)'!$B$11:$Z$315,25,0),0)","v":0},null,null,null,null,null,0]
[231,null,null,{"$f":"IFERROR(VLOOKUP(B242,'Schedule V(b)'!$B$11:$Z$315,3,0),0)","v":0},null,{"$f":"IFERROR(VLOOKUP(B242,'Schedule V(b)'!$B$11:$Z$315,11,0),0)","v":"Select"},null,{"$f":"IFERROR(VLOOKUP(B242,'Schedule V(b)'!$B$11:$Z$315,15,0),0)","v":"Select"},null,{"$f":"IFERROR(VLOOKUP(B242,'Schedule V(b)'!$B$11:$Z$315,17,0),0)","v":0},null,{"$f":"IFERROR(VLOOKUP(B242,'Schedule V(b)'!$B$11:$Z$315,19,0),0)","v":0},null,{"$f":"IFERROR(VLOOKUP(B242,'Schedule V(b)'!$B$11:$Z$315,25,0),0)","v":0},null,null,null,null,null,0]
[232,null,null,{"$f":"IFERROR(VLOOKUP(B243,'Schedule V(b)'!$B$11:$Z$315,3,0),0)","v":0},null,{"$f":"IFERROR(VLOOKUP(B243,'Schedule V(b)'!$B$11:$Z$315,11,0),0)","v":"Select"},null,{"$f":"IFERROR(VLOOKUP(B243,'Schedule V(b)'!$B$11:$Z$315,15,0),0)","v":"Select"},null,{"$f":"IFERROR(VLOOKUP(B243,'Schedule V(b)'!$B$11:$Z$315,17,0),0)","v":0},null,{"$f":"IFERROR(VLOOKUP(B243,'Schedule V(b)'!$B$11:$Z$315,19,0),0)","v":0},null,{"$f":"IFERROR(VLOOKUP(B243,'Schedule V(b)'!$B$11:$Z$315,25,0),0)","v":0},null,null,null,null,null,0]
[233,null,null,{"$f":"IFERROR(VLOOKUP(B244,'Schedule V(b)'!$B$11:$Z$315,3,0),0)","v":0},null,{"$f":"IFERROR(VLOOKUP(B244,'Schedule V(b)'!$B$11:$Z$315,11,0),0)","v":"Select"},null,{"$f":"IFERROR(VLOOKUP(B244,'Schedule V(b)'!$B$11:$Z$315,15,0),0)","v":"Select"},null,{"$f":"IFERROR(VLOOKUP(B244,'Schedule V(b)'!$B$11:$Z$315,17,0),0)","v":0},null,{"$f":"IFERROR(VLOOKUP(B244,'Schedule V(b)'!$B$11:$Z$315,19,0),0)","v":0},null,{"$f":"IFERROR(VLOOKUP(B244,'Schedule V(b)'!$B$11:$Z$315,25,0),0)","v":0},null,null,null,null,null,0]
[234,null,null,{"$f":"IFERROR(VLOOKUP(B245,'Schedule V(b)'!$B$11:$Z$315,3,0),0)","v":0},null,{"$f":"IFERROR(VLOOKUP(B245,'Schedule V(b)'!$B$11:$Z$315,11,0),0)","v":"Select"},null,{"$f":"IFERROR(VLOOKUP(B245,'Schedule V(b)'!$B$11:$Z$315,15,0),0)","v":"Select"},null,{"$f":"IFERROR(VLOOKUP(B245,'Schedule V(b)'!$B$11:$Z$315,17,0),0)","v":0},null,{"$f":"IFERROR(VLOOKUP(B245,'Schedule V(b)'!$B$11:$Z$315,19,0),0)","v":0},null,{"$f":"IFERROR(VLOOKUP(B245,'Schedule V(b)'!$B$11:$Z$315,25,0),0)","v":0},null,null,null,null,null,0]
[235,null,null,{"$f":"IFERROR(VLOOKUP(B246,'Schedule V(b)'!$B$11:$Z$315,3,0),0)","v":0},null,{"$f":"IFERROR(VLOOKUP(B246,'Schedule V(b)'!$B$11:$Z$315,11,0),0)","v":"Select"},null,{"$f":"IFERROR(VLOOKUP(B246,'Schedule V(b)'!$B$11:$Z$315,15,0),0)","v":"Select"},null,{"$f":"IFERROR(VLOOKUP(B246,'Schedule V(b)'!$B$11:$Z$315,17,0),0)","v":0},null,{"$f":"IFERROR(VLOOKUP(B246,'Schedule V(b)'!$B$11:$Z$315,19,0),0)","v":0},null,{"$f":"IFERROR(VLOOKUP(B246,'Schedule V(b)'!$B$11:$Z$315,25,0),0)","v":0},null,null,null,null,null,0]
[236,null,null,{"$f":"IFERROR(VLOOKUP(B247,'Schedule V(b)'!$B$11:$Z$315,3,0),0)","v":0},null,{"$f":"IFERROR(VLOOKUP(B247,'Schedule V(b)'!$B$11:$Z$315,11,0),0)","v":"Select"},null,{"$f":"IFERROR(VLOOKUP(B247,'Schedule V(b)'!$B$11:$Z$315,15,0),0)","v":"Select"},null,{"$f":"IFERROR(VLOOKUP(B247,'Schedule V(b)'!$B$11:$Z$315,17,0),0)","v":0},null,{"$f":"IFERROR(VLOOKUP(B247,'Schedule V(b)'!$B$11:$Z$315,19,0),0)","v":0},null,{"$f":"IFERROR(VLOOKUP(B247,'Schedule V(b)'!$B$11:$Z$315,25,0),0)","v":0},null,null,null,null,null,0]
[237,null,null,{"$f":"IFERROR(VLOOKUP(B248,'Schedule V(b)'!$B$11:$Z$315,3,0),0)","v":0},null,{"$f":"IFERROR(VLOOKUP(B248,'Schedule V(b)'!$B$11:$Z$315,11,0),0)","v":"Select"},null,{"$f":"IFERROR(VLOOKUP(B248,'Schedule V(b)'!$B$11:$Z$315,15,0),0)","v":"Select"},null,{"$f":"IFERROR(VLOOKUP(B248,'Schedule V(b)'!$B$11:$Z$315,17,0),0)","v":0},null,{"$f":"IFERROR(VLOOKUP(B248,'Schedule V(b)'!$B$11:$Z$315,19,0),0)","v":0},null,{"$f":"IFERROR(VLOOKUP(B248,'Schedule V(b)'!$B$11:$Z$315,25,0),0)","v":0},null,null,null,null,null,0]
[238,null,null,{"$f":"IFERROR(VLOOKUP(B249,'Schedule V(b)'!$B$11:$Z$315,3,0),0)","v":0},null,{"$f":"IFERROR(VLOOKUP(B249,'Schedule V(b)'!$B$11:$Z$315,11,0),0)","v":"Select"},null,{"$f":"IFERROR(VLOOKUP(B249,'Schedule V(b)'!$B$11:$Z$315,15,0),0)","v":"Select"},null,{"$f":"IFERROR(VLOOKUP(B249,'Schedule V(b)'!$B$11:$Z$315,17,0),0)","v":0},null,{"$f":"IFERROR(VLOOKUP(B249,'Schedule V(b)'!$B$11:$Z$315,19,0),0)","v":0},null,{"$f":"IFERROR(VLOOKUP(B249,'Schedule V(b)'!$B$11:$Z$315,25,0),0)","v":0},null,null,null,null,null,0]
[239,null,null,{"$f":"IFERROR(VLOOKUP(B250,'Schedule V(b)'!$B$11:$Z$315,3,0),0)","v":0},null,{"$f":"IFERROR(VLOOKUP(B250,'Schedule V(b)'!$B$11:$Z$315,11,0),0)","v":"Select"},null,{"$f":"IFERROR(VLOOKUP(B250,'Schedule V(b)'!$B$11:$Z$315,15,0),0)","v":"Select"},null,{"$f":"IFERROR(VLOOKUP(B250,'Schedule V(b)'!$B$11:$Z$315,17,0),0)","v":0},null,{"$f":"IFERROR(VLOOKUP(B250,'Schedule V(b)'!$B$11:$Z$315,19,0),0)","v":0},null,{"$f":"IFERROR(VLOOKUP(B250,'Schedule V(b)'!$B$11:$Z$315,25,0),0)","v":0},null,null,null,null,null,0]
[240,null,null,{"$f":"IFERROR(VLOOKUP(B251,'Schedule V(b)'!$B$11:$Z$315,3,0),0)","v":0},null,{"$f":"IFERROR(VLOOKUP(B251,'Schedule V(b)'!$B$11:$Z$315,11,0),0)","v":"Select"},null,{"$f":"IFERROR(VLOOKUP(B251,'Schedule V(b)'!$B$11:$Z$315,15,0),0)","v":"Select"},null,{"$f":"IFERROR(VLOOKUP(B251,'Schedule V(b)'!$B$11:$Z$315,17,0),0)","v":0},null,{"$f":"IFERROR(VLOOKUP(B251,'Schedule V(b)'!$B$11:$Z$315,19,0),0)","v":0},null,{"$f":"IFERROR(VLOOKUP(B251,'Schedule V(b)'!$B$11:$Z$315,25,0),0)","v":0},null,null,null,null,null,0]
[241,null,null,{"$f":"IFERROR(VLOOKUP(B252,'Schedule V(b)'!$B$11:$Z$315,3,0),0)","v":0},null,{"$f":"IFERROR(VLOOKUP(B252,'Schedule V(b)'!$B$11:$Z$315,11,0),0)","v":"Select"},null,{"$f":"IFERROR(VLOOKUP(B252,'Schedule V(b)'!$B$11:$Z$315,15,0),0)","v":"Select"},null,{"$f":"IFERROR(VLOOKUP(B252,'Schedule V(b)'!$B$11:$Z$315,17,0),0)","v":0},null,{"$f":"IFERROR(VLOOKUP(B252,'Schedule V(b)'!$B$11:$Z$315,19,0),0)","v":0},null,{"$f":"IFERROR(VLOOKUP(B252,'Schedule V(b)'!$B$11:$Z$315,25,0),0)","v":0},null,null,null,null,null,0]
[242,null,null,{"$f":"IFERROR(VLOOKUP(B253,'Schedule V(b)'!$B$11:$Z$315,3,0),0)","v":0},null,{"$f":"IFERROR(VLOOKUP(B253,'Schedule V(b)'!$B$11:$Z$315,11,0),0)","v":"Select"},null,{"$f":"IFERROR(VLOOKUP(B253,'Schedule V(b)'!$B$11:$Z$315,15,0),0)","v":"Select"},null,{"$f":"IFERROR(VLOOKUP(B253,'Schedule V(b)'!$B$11:$Z$315,17,0),0)","v":0},null,{"$f":"IFERROR(VLOOKUP(B253,'Schedule V(b)'!$B$11:$Z$315,19,0),0)","v":0},null,{"$f":"IFERROR(VLOOKUP(B253,'Schedule V(b)'!$B$11:$Z$315,25,0),0)","v":0},null,null,null,null,null,0]
[243,null,null,{"$f":"IFERROR(VLOOKUP(B254,'Schedule V(b)'!$B$11:$Z$315,3,0),0)","v":0},null,{"$f":"IFERROR(VLOOKUP(B254,'Schedule V(b)'!$B$11:$Z$315,11,0),0)","v":"Select"},null,{"$f":"IFERROR(VLOOKUP(B254,'Schedule V(b)'!$B$11:$Z$315,15,0),0)","v":"Select"},null,{"$f":"IFERROR(VLOOKUP(B254,'Schedule V(b)'!$B$11:$Z$315,17,0),0)","v":0},null,{"$f":"IFERROR(VLOOKUP(B254,'Schedule V(b)'!$B$11:$Z$315,19,0),0)","v":0},null,{"$f":"IFERROR(VLOOKUP(B254,'Schedule V(b)'!$B$11:$Z$315,25,0),0)","v":0},null,null,null,null,null,0]
[244,null,null,{"$f":"IFERROR(VLOOKUP(B255,'Schedule V(b)'!$B$11:$Z$315,3,0),0)","v":0},null,{"$f":"IFERROR(VLOOKUP(B255,'Schedule V(b)'!$B$11:$Z$315,11,0),0)","v":"Select"},null,{"$f":"IFERROR(VLOOKUP(B255,'Schedule V(b)'!$B$11:$Z$315,15,0),0)","v":"Select"},null,{"$f":"IFERROR(VLOOKUP(B255,'Schedule V(b)'!$B$11:$Z$315,17,0),0)","v":0},null,{"$f":"IFERROR(VLOOKUP(B255,'Schedule V(b)'!$B$11:$Z$315,19,0),0)","v":0},null,{"$f":"IFERROR(VLOOKUP(B255,'Schedule V(b)'!$B$11:$Z$315,25,0),0)","v":0},null,null,null,null,null,0]
[245,null,null,{"$f":"IFERROR(VLOOKUP(B256,'Schedule V(b)'!$B$11:$Z$315,3,0),0)","v":0},null,{"$f":"IFERROR(VLOOKUP(B256,'Schedule V(b)'!$B$11:$Z$315,11,0),0)","v":"Select"},null,{"$f":"IFERROR(VLOOKUP(B256,'Schedule V(b)'!$B$11:$Z$315,15,0),0)","v":"Select"},null,{"$f":"IFERROR(VLOOKUP(B256,'Schedule V(b)'!$B$11:$Z$315,17,0),0)","v":0},null,{"$f":"IFERROR(VLOOKUP(B256,'Schedule V(b)'!$B$11:$Z$315,19,0),0)","v":0},null,{"$f":"IFERROR(VLOOKUP(B256,'Schedule V(b)'!$B$11:$Z$315,25,0),0)","v":0},null,null,null,null,null,0]
[246,null,null,{"$f":"IFERROR(VLOOKUP(B257,'Schedule V(b)'!$B$11:$Z$315,3,0),0)","v":0},null,{"$f":"IFERROR(VLOOKUP(B257,'Schedule V(b)'!$B$11:$Z$315,11,0),0)","v":"Select"},null,{"$f":"IFERROR(VLOOKUP(B257,'Schedule V(b)'!$B$11:$Z$315,15,0),0)","v":"Select"},null,{"$f":"IFERROR(VLOOKUP(B257,'Schedule V(b)'!$B$11:$Z$315,17,0),0)","v":0},null,{"$f":"IFERROR(VLOOKUP(B257,'Schedule V(b)'!$B$11:$Z$315,19,0),0)","v":0},null,{"$f":"IFERROR(VLOOKUP(B257,'Schedule V(b)'!$B$11:$Z$315,25,0),0)","v":0},null,null,null,null,null,0]
[247,null,null,{"$f":"IFERROR(VLOOKUP(B258,'Schedule V(b)'!$B$11:$Z$315,3,0),0)","v":0},null,{"$f":"IFERROR(VLOOKUP(B258,'Schedule V(b)'!$B$11:$Z$315,11,0),0)","v":"Select"},null,{"$f":"IFERROR(VLOOKUP(B258,'Schedule V(b)'!$B$11:$Z$315,15,0),0)","v":"Select"},null,{"$f":"IFERROR(VLOOKUP(B258,'Schedule V(b)'!$B$11:$Z$315,17,0),0)","v":0},null,{"$f":"IFERROR(VLOOKUP(B258,'Schedule V(b)'!$B$11:$Z$315,19,0),0)","v":0},null,{"$f":"IFERROR(VLOOKUP(B258,'Schedule V(b)'!$B$11:$Z$315,25,0),0)","v":0},null,null,null,null,null,0]
[248,null,null,{"$f":"IFERROR(VLOOKUP(B259,'Schedule V(b)'!$B$11:$Z$315,3,0),0)","v":0},null,{"$f":"IFERROR(VLOOKUP(B259,'Schedule V(b)'!$B$11:$Z$315,11,0),0)","v":"Select"},null,{"$f":"IFERROR(VLOOKUP(B259,'Schedule V(b)'!$B$11:$Z$315,15,0),0)","v":"Select"},null,{"$f":"IFERROR(VLOOKUP(B259,'Schedule V(b)'!$B$11:$Z$315,17,0),0)","v":0},null,{"$f":"IFERROR(VLOOKUP(B259,'Schedule V(b)'!$B$11:$Z$315,19,0),0)","v":0},null,{"$f":"IFERROR(VLOOKUP(B259,'Schedule V(b)'!$B$11:$Z$315,25,0),0)","v":0},null,null,null,null,null,0]
[249,null,null,{"$f":"IFERROR(VLOOKUP(B260,'Schedule V(b)'!$B$11:$Z$315,3,0),0)","v":0},null,{"$f":"IFERROR(VLOOKUP(B260,'Schedule V(b)'!$B$11:$Z$315,11,0),0)","v":"Select"},null,{"$f":"IFERROR(VLOOKUP(B260,'Schedule V(b)'!$B$11:$Z$315,15,0),0)","v":"Select"},null,{"$f":"IFERROR(VLOOKUP(B260,'Schedule V(b)'!$B$11:$Z$315,17,0),0)","v":0},null,{"$f":"IFERROR(VLOOKUP(B260,'Schedule V(b)'!$B$11:$Z$315,19,0),0)","v":0},null,{"$f":"IFERROR(VLOOKUP(B260,'Schedule V(b)'!$B$11:$Z$315,25,0),0)","v":0},null,null,null,null,null,0]
[250,null,null,{"$f":"IFERROR(VLOOKUP(B261,'Schedule V(b)'!$B$11:$Z$315,3,0),0)","v":0},null,{"$f":"IFERROR(VLOOKUP(B261,'Schedule V(b)'!$B$11:$Z$315,11,0),0)","v":"Select"},null,{"$f":"IFERROR(VLOOKUP(B261,'Schedule V(b)'!$B$11:$Z$315,15,0),0)","v":"Select"},null,{"$f":"IFERROR(VLOOKUP(B261,'Schedule V(b)'!$B$11:$Z$315,17,0),0)","v":0},null,{"$f":"IFERROR(VLOOKUP(B261,'Schedule V(b)'!$B$11:$Z$315,19,0),0)","v":0},null,{"$f":"IFERROR(VLOOKUP(B261,'Schedule V(b)'!$B$11:$Z$315,25,0),0)","v":0},null,null,null,null,null,0]
[251,null,null,{"$f":"IFERROR(VLOOKUP(B262,'Schedule V(b)'!$B$11:$Z$315,3,0),0)","v":0},null,{"$f":"IFERROR(VLOOKUP(B262,'Schedule V(b)'!$B$11:$Z$315,11,0),0)","v":"Select"},null,{"$f":"IFERROR(VLOOKUP(B262,'Schedule V(b)'!$B$11:$Z$315,15,0),0)","v":"Select"},null,{"$f":"IFERROR(VLOOKUP(B262,'Schedule V(b)'!$B$11:$Z$315,17,0),0)","v":0},null,{"$f":"IFERROR(VLOOKUP(B262,'Schedule V(b)'!$B$11:$Z$315,19,0),0)","v":0},null,{"$f":"IFERROR(VLOOKUP(B262,'Schedule V(b)'!$B$11:$Z$315,25,0),0)","v":0},null,null,null,null,null,0]
[252,null,null,{"$f":"IFERROR(VLOOKUP(B263,'Schedule V(b)'!$B$11:$Z$315,3,0),0)","v":0},null,{"$f":"IFERROR(VLOOKUP(B263,'Schedule V(b)'!$B$11:$Z$315,11,0),0)","v":"Select"},null,{"$f":"IFERROR(VLOOKUP(B263,'Schedule V(b)'!$B$11:$Z$315,15,0),0)","v":"Select"},null,{"$f":"IFERROR(VLOOKUP(B263,'Schedule V(b)'!$B$11:$Z$315,17,0),0)","v":0},null,{"$f":"IFERROR(VLOOKUP(B263,'Schedule V(b)'!$B$11:$Z$315,19,0),0)","v":0},null,{"$f":"IFERROR(VLOOKUP(B263,'Schedule V(b)'!$B$11:$Z$315,25,0),0)","v":0},null,null,null,null,null,0]
[253,null,null,{"$f":"IFERROR(VLOOKUP(B264,'Schedule V(b)'!$B$11:$Z$315,3,0),0)","v":0},null,{"$f":"IFERROR(VLOOKUP(B264,'Schedule V(b)'!$B$11:$Z$315,11,0),0)","v":"Select"},null,{"$f":"IFERROR(VLOOKUP(B264,'Schedule V(b)'!$B$11:$Z$315,15,0),0)","v":"Select"},null,{"$f":"IFERROR(VLOOKUP(B264,'Schedule V(b)'!$B$11:$Z$315,17,0),0)","v":0},null,{"$f":"IFERROR(VLOOKUP(B264,'Schedule V(b)'!$B$11:$Z$315,19,0),0)","v":0},null,{"$f":"IFERROR(VLOOKUP(B264,'Schedule V(b)'!$B$11:$Z$315,25,0),0)","v":0},null,null,null,null,null,0]
[254,null,null,{"$f":"IFERROR(VLOOKUP(B265,'Schedule V(b)'!$B$11:$Z$315,3,0),0)","v":0},null,{"$f":"IFERROR(VLOOKUP(B265,'Schedule V(b)'!$B$11:$Z$315,11,0),0)","v":"Select"},null,{"$f":"IFERROR(VLOOKUP(B265,'Schedule V(b)'!$B$11:$Z$315,15,0),0)","v":"Select"},null,{"$f":"IFERROR(VLOOKUP(B265,'Schedule V(b)'!$B$11:$Z$315,17,0),0)","v":0},null,{"$f":"IFERROR(VLOOKUP(B265,'Schedule V(b)'!$B$11:$Z$315,19,0),0)","v":0},null,{"$f":"IFERROR(VLOOKUP(B265,'Schedule V(b)'!$B$11:$Z$315,25,0),0)","v":0},null,null,null,null,null,0]
[255,null,null,{"$f":"IFERROR(VLOOKUP(B266,'Schedule V(b)'!$B$11:$Z$315,3,0),0)","v":0},null,{"$f":"IFERROR(VLOOKUP(B266,'Schedule V(b)'!$B$11:$Z$315,11,0),0)","v":"Select"},null,{"$f":"IFERROR(VLOOKUP(B266,'Schedule V(b)'!$B$11:$Z$315,15,0),0)","v":"Select"},null,{"$f":"IFERROR(VLOOKUP(B266,'Schedule V(b)'!$B$11:$Z$315,17,0),0)","v":0},null,{"$f":"IFERROR(VLOOKUP(B266,'Schedule V(b)'!$B$11:$Z$315,19,0),0)","v":0},null,{"$f":"IFERROR(VLOOKUP(B266,'Schedule V(b)'!$B$11:$Z$315,25,0),0)","v":0},null,null,null,null,null,0]
[256,null,null,{"$f":"IFERROR(VLOOKUP(B267,'Schedule V(b)'!$B$11:$Z$315,3,0),0)","v":0},null,{"$f":"IFERROR(VLOOKUP(B267,'Schedule V(b)'!$B$11:$Z$315,11,0),0)","v":"Select"},null,{"$f":"IFERROR(VLOOKUP(B267,'Schedule V(b)'!$B$11:$Z$315,15,0),0)","v":"Select"},null,{"$f":"IFERROR(VLOOKUP(B267,'Schedule V(b)'!$B$11:$Z$315,17,0),0)","v":0},null,{"$f":"IFERROR(VLOOKUP(B267,'Schedule V(b)'!$B$11:$Z$315,19,0),0)","v":0},null,{"$f":"IFERROR(VLOOKUP(B267,'Schedule V(b)'!$B$11:$Z$315,25,0),0)","v":0},null,null,null,null,null,0]
[257,null,null,{"$f":"IFERROR(VLOOKUP(B268,'Schedule V(b)'!$B$11:$Z$315,3,0),0)","v":0},null,{"$f":"IFERROR(VLOOKUP(B268,'Schedule V(b)'!$B$11:$Z$315,11,0),0)","v":"Select"},null,{"$f":"IFERROR(VLOOKUP(B268,'Schedule V(b)'!$B$11:$Z$315,15,0),0)","v":"Select"},null,{"$f":"IFERROR(VLOOKUP(B268,'Schedule V(b)'!$B$11:$Z$315,17,0),0)","v":0},null,{"$f":"IFERROR(VLOOKUP(B268,'Schedule V(b)'!$B$11:$Z$315,19,0),0)","v":0},null,{"$f":"IFERROR(VLOOKUP(B268,'Schedule V(b)'!$B$11:$Z$315,25,0),0)","v":0},null,null,null,null,null,0]
[258,null,null,{"$f":"IFERROR(VLOOKUP(B269,'Schedule V(b)'!$B$11:$Z$315,3,0),0)","v":0},null,{"$f":"IFERROR(VLOOKUP(B269,'Schedule V(b)'!$B$11:$Z$315,11,0),0)","v":"Select"},null,{"$f":"IFERROR(VLOOKUP(B269,'Schedule V(b)'!$B$11:$Z$315,15,0),0)","v":"Select"},null,{"$f":"IFERROR(VLOOKUP(B269,'Schedule V(b)'!$B$11:$Z$315,17,0),0)","v":0},null,{"$f":"IFERROR(VLOOKUP(B269,'Schedule V(b)'!$B$11:$Z$315,19,0),0)","v":0},null,{"$f":"IFERROR(VLOOKUP(B269,'Schedule V(b)'!$B$11:$Z$315,25,0),0)","v":0},null,null,null,null,null,{"$f":"IF(H269=\"Control\",$Y$8*P269,J269*P269)","v":0}]
[259,null,null,{"$f":"IFERROR(VLOOKUP(B270,'Schedule V(b)'!$B$11:$Z$315,3,0),0)","v":0},null,{"$f":"IFERROR(VLOOKUP(B270,'Schedule V(b)'!$B$11:$Z$315,11,0),0)","v":"Select"},null,{"$f":"IFERROR(VLOOKUP(B270,'Schedule V(b)'!$B$11:$Z$315,15,0),0)","v":"Select"},null,{"$f":"IFERROR(VLOOKUP(B270,'Schedule V(b)'!$B$11:$Z$315,17,0),0)","v":0},null,{"$f":"IFERROR(VLOOKUP(B270,'Schedule V(b)'!$B$11:$Z$315,19,0),0)","v":0},null,{"$f":"IFERROR(VLOOKUP(B270,'Schedule V(b)'!$B$11:$Z$315,25,0),0)","v":0},null,null,null,null,null,0]
[260,null,null,{"$f":"IFERROR(VLOOKUP(B271,'Schedule V(b)'!$B$11:$Z$315,3,0),0)","v":0},null,{"$f":"IFERROR(VLOOKUP(B271,'Schedule V(b)'!$B$11:$Z$315,11,0),0)","v":"Select"},null,{"$f":"IFERROR(VLOOKUP(B271,'Schedule V(b)'!$B$11:$Z$315,15,0),0)","v":"Select"},null,{"$f":"IFERROR(VLOOKUP(B271,'Schedule V(b)'!$B$11:$Z$315,17,0),0)","v":0},null,{"$f":"IFERROR(VLOOKUP(B271,'Schedule V(b)'!$B$11:$Z$315,19,0),0)","v":0},null,{"$f":"IFERROR(VLOOKUP(B271,'Schedule V(b)'!$B$11:$Z$315,25,0),0)","v":0},null,null,null,null,null,0]
[261,null,null,{"$f":"IFERROR(VLOOKUP(B272,'Schedule V(b)'!$B$11:$Z$315,3,0),0)","v":0},null,{"$f":"IFERROR(VLOOKUP(B272,'Schedule V(b)'!$B$11:$Z$315,11,0),0)","v":"Select"},null,{"$f":"IFERROR(VLOOKUP(B272,'Schedule V(b)'!$B$11:$Z$315,15,0),0)","v":"Select"},null,{"$f":"IFERROR(VLOOKUP(B272,'Schedule V(b)'!$B$11:$Z$315,17,0),0)","v":0},null,{"$f":"IFERROR(VLOOKUP(B272,'Schedule V(b)'!$B$11:$Z$315,19,0),0)","v":0},null,{"$f":"IFERROR(VLOOKUP(B272,'Schedule V(b)'!$B$11:$Z$315,25,0),0)","v":0},null,null,null,null,null,0]
[262,null,null,{"$f":"IFERROR(VLOOKUP(B273,'Schedule V(b)'!$B$11:$Z$315,3,0),0)","v":0},null,{"$f":"IFERROR(VLOOKUP(B273,'Schedule V(b)'!$B$11:$Z$315,11,0),0)","v":"Select"},null,{"$f":"IFERROR(VLOOKUP(B273,'Schedule V(b)'!$B$11:$Z$315,15,0),0)","v":"Select"},null,{"$f":"IFERROR(VLOOKUP(B273,'Schedule V(b)'!$B$11:$Z$315,17,0),0)","v":0},null,{"$f":"IFERROR(VLOOKUP(B273,'Schedule V(b)'!$B$11:$Z$315,19,0),0)","v":0},null,{"$f":"IFERROR(VLOOKUP(B273,'Schedule V(b)'!$B$11:$Z$315,25,0),0)","v":0},null,null,null,null,null,0]
[263,null,null,{"$f":"IFERROR(VLOOKUP(B274,'Schedule V(b)'!$B$11:$Z$315,3,0),0)","v":0},null,{"$f":"IFERROR(VLOOKUP(B274,'Schedule V(b)'!$B$11:$Z$315,11,0),0)","v":"Select"},null,{"$f":"IFERROR(VLOOKUP(B274,'Schedule V(b)'!$B$11:$Z$315,15,0),0)","v":"Select"},null,{"$f":"IFERROR(VLOOKUP(B274,'Schedule V(b)'!$B$11:$Z$315,17,0),0)","v":0},null,{"$f":"IFERROR(VLOOKUP(B274,'Schedule V(b)'!$B$11:$Z$315,19,0),0)","v":0},null,{"$f":"IFERROR(VLOOKUP(B274,'Schedule V(b)'!$B$11:$Z$315,25,0),0)","v":0},null,null,null,null,null,0]
[264,null,null,{"$f":"IFERROR(VLOOKUP(B275,'Schedule V(b)'!$B$11:$Z$315,3,0),0)","v":0},null,{"$f":"IFERROR(VLOOKUP(B275,'Schedule V(b)'!$B$11:$Z$315,11,0),0)","v":"Select"},null,{"$f":"IFERROR(VLOOKUP(B275,'Schedule V(b)'!$B$11:$Z$315,15,0),0)","v":"Select"},null,{"$f":"IFERROR(VLOOKUP(B275,'Schedule V(b)'!$B$11:$Z$315,17,0),0)","v":0},null,{"$f":"IFERROR(VLOOKUP(B275,'Schedule V(b)'!$B$11:$Z$315,19,0),0)","v":0},null,{"$f":"IFERROR(VLOOKUP(B275,'Schedule V(b)'!$B$11:$Z$315,25,0),0)","v":0},null,null,null,null,null,0]
[265,null,null,{"$f":"IFERROR(VLOOKUP(B276,'Schedule V(b)'!$B$11:$Z$315,3,0),0)","v":0},null,{"$f":"IFERROR(VLOOKUP(B276,'Schedule V(b)'!$B$11:$Z$315,11,0),0)","v":"Select"},null,{"$f":"IFERROR(VLOOKUP(B276,'Schedule V(b)'!$B$11:$Z$315,15,0),0)","v":"Select"},null,{"$f":"IFERROR(VLOOKUP(B276,'Schedule V(b)'!$B$11:$Z$315,17,0),0)","v":0},null,{"$f":"IFERROR(VLOOKUP(B276,'Schedule V(b)'!$B$11:$Z$315,19,0),0)","v":0},null,{"$f":"IFERROR(VLOOKUP(B276,'Schedule V(b)'!$B$11:$Z$315,25,0),0)","v":0},null,null,null,null,null,0]
[266,null,null,{"$f":"IFERROR(VLOOKUP(B277,'Schedule V(b)'!$B$11:$Z$315,3,0),0)","v":0},null,{"$f":"IFERROR(VLOOKUP(B277,'Schedule V(b)'!$B$11:$Z$315,11,0),0)","v":"Select"},null,{"$f":"IFERROR(VLOOKUP(B277,'Schedule V(b)'!$B$11:$Z$315,15,0),0)","v":"Select"},null,{"$f":"IFERROR(VLOOKUP(B277,'Schedule V(b)'!$B$11:$Z$315,17,0),0)","v":0},null,{"$f":"IFERROR(VLOOKUP(B277,'Schedule V(b)'!$B$11:$Z$315,19,0),0)","v":0},null,{"$f":"IFERROR(VLOOKUP(B277,'Schedule V(b)'!$B$11:$Z$315,25,0),0)","v":0},null,null,null,null,null,0]
[267,null,null,{"$f":"IFERROR(VLOOKUP(B278,'Schedule V(b)'!$B$11:$Z$315,3,0),0)","v":0},null,{"$f":"IFERROR(VLOOKUP(B278,'Schedule V(b)'!$B$11:$Z$315,11,0),0)","v":"Select"},null,{"$f":"IFERROR(VLOOKUP(B278,'Schedule V(b)'!$B$11:$Z$315,15,0),0)","v":"Select"},null,{"$f":"IFERROR(VLOOKUP(B278,'Schedule V(b)'!$B$11:$Z$315,17,0),0)","v":0},null,{"$f":"IFERROR(VLOOKUP(B278,'Schedule V(b)'!$B$11:$Z$315,19,0),0)","v":0},null,{"$f":"IFERROR(VLOOKUP(B278,'Schedule V(b)'!$B$11:$Z$315,25,0),0)","v":0},null,null,null,null,null,0]
[268,null,null,{"$f":"IFERROR(VLOOKUP(B279,'Schedule V(b)'!$B$11:$Z$315,3,0),0)","v":0},null,{"$f":"IFERROR(VLOOKUP(B279,'Schedule V(b)'!$B$11:$Z$315,11,0),0)","v":"Select"},null,{"$f":"IFERROR(VLOOKUP(B279,'Schedule V(b)'!$B$11:$Z$315,15,0),0)","v":"Select"},null,{"$f":"IFERROR(VLOOKUP(B279,'Schedule V(b)'!$B$11:$Z$315,17,0),0)","v":0},null,{"$f":"IFERROR(VLOOKUP(B279,'Schedule V(b)'!$B$11:$Z$315,19,0),0)","v":0},null,{"$f":"IFERROR(VLOOKUP(B279,'Schedule V(b)'!$B$11:$Z$315,25,0),0)","v":0},null,null,null,null,null,0]
[269,null,null,{"$f":"IFERROR(VLOOKUP(B280,'Schedule V(b)'!$B$11:$Z$315,3,0),0)","v":0},null,{"$f":"IFERROR(VLOOKUP(B280,'Schedule V(b)'!$B$11:$Z$315,11,0),0)","v":"Select"},null,{"$f":"IFERROR(VLOOKUP(B280,'Schedule V(b)'!$B$11:$Z$315,15,0),0)","v":"Select"},null,{"$f":"IFERROR(VLOOKUP(B280,'Schedule V(b)'!$B$11:$Z$315,17,0),0)","v":0},null,{"$f":"IFERROR(VLOOKUP(B280,'Schedule V(b)'!$B$11:$Z$315,19,0),0)","v":0},null,{"$f":"IFERROR(VLOOKUP(B280,'Schedule V(b)'!$B$11:$Z$315,25,0),0)","v":0},null,null,null,null,null,0]
[270,null,null,{"$f":"IFERROR(VLOOKUP(B281,'Schedule V(b)'!$B$11:$Z$315,3,0),0)","v":0},null,{"$f":"IFERROR(VLOOKUP(B281,'Schedule V(b)'!$B$11:$Z$315,11,0),0)","v":"Select"},null,{"$f":"IFERROR(VLOOKUP(B281,'Schedule V(b)'!$B$11:$Z$315,15,0),0)","v":"Select"},null,{"$f":"IFERROR(VLOOKUP(B281,'Schedule V(b)'!$B$11:$Z$315,17,0),0)","v":0},null,{"$f":"IFERROR(VLOOKUP(B281,'Schedule V(b)'!$B$11:$Z$315,19,0),0)","v":0},null,{"$f":"IFERROR(VLOOKUP(B281,'Schedule V(b)'!$B$11:$Z$315,25,0),0)","v":0},null,null,null,null,null,0]
[271,null,null,{"$f":"IFERROR(VLOOKUP(B282,'Schedule V(b)'!$B$11:$Z$315,3,0),0)","v":0},null,{"$f":"IFERROR(VLOOKUP(B282,'Schedule V(b)'!$B$11:$Z$315,11,0),0)","v":"Select"},null,{"$f":"IFERROR(VLOOKUP(B282,'Schedule V(b)'!$B$11:$Z$315,15,0),0)","v":"Select"},null,{"$f":"IFERROR(VLOOKUP(B282,'Schedule V(b)'!$B$11:$Z$315,17,0),0)","v":0},null,{"$f":"IFERROR(VLOOKUP(B282,'Schedule V(b)'!$B$11:$Z$315,19,0),0)","v":0},null,{"$f":"IFERROR(VLOOKUP(B282,'Schedule V(b)'!$B$11:$Z$315,25,0),0)","v":0},null,null,null,null,null,0]
[272,null,null,{"$f":"IFERROR(VLOOKUP(B283,'Schedule V(b)'!$B$11:$Z$315,3,0),0)","v":0},null,{"$f":"IFERROR(VLOOKUP(B283,'Schedule V(b)'!$B$11:$Z$315,11,0),0)","v":"Select"},null,{"$f":"IFERROR(VLOOKUP(B283,'Schedule V(b)'!$B$11:$Z$315,15,0),0)","v":"Select"},null,{"$f":"IFERROR(VLOOKUP(B283,'Schedule V(b)'!$B$11:$Z$315,17,0),0)","v":0},null,{"$f":"IFERROR(VLOOKUP(B283,'Schedule V(b)'!$B$11:$Z$315,19,0),0)","v":0},null,{"$f":"IFERROR(VLOOKUP(B283,'Schedule V(b)'!$B$11:$Z$315,25,0),0)","v":0},null,null,null,null,null,0]
[273,null,null,{"$f":"IFERROR(VLOOKUP(B284,'Schedule V(b)'!$B$11:$Z$315,3,0),0)","v":0},null,{"$f":"IFERROR(VLOOKUP(B284,'Schedule V(b)'!$B$11:$Z$315,11,0),0)","v":"Select"},null,{"$f":"IFERROR(VLOOKUP(B284,'Schedule V(b)'!$B$11:$Z$315,15,0),0)","v":"Select"},null,{"$f":"IFERROR(VLOOKUP(B284,'Schedule V(b)'!$B$11:$Z$315,17,0),0)","v":0},null,{"$f":"IFERROR(VLOOKUP(B284,'Schedule V(b)'!$B$11:$Z$315,19,0),0)","v":0},null,{"$f":"IFERROR(VLOOKUP(B284,'Schedule V(b)'!$B$11:$Z$315,25,0),0)","v":0},null,null,null,null,null,0]
[274,null,null,{"$f":"IFERROR(VLOOKUP(B285,'Schedule V(b)'!$B$11:$Z$315,3,0),0)","v":0},null,{"$f":"IFERROR(VLOOKUP(B285,'Schedule V(b)'!$B$11:$Z$315,11,0),0)","v":"Select"},null,{"$f":"IFERROR(VLOOKUP(B285,'Schedule V(b)'!$B$11:$Z$315,15,0),0)","v":"Select"},null,{"$f":"IFERROR(VLOOKUP(B285,'Schedule V(b)'!$B$11:$Z$315,17,0),0)","v":0},null,{"$f":"IFERROR(VLOOKUP(B285,'Schedule V(b)'!$B$11:$Z$315,19,0),0)","v":0},null,{"$f":"IFERROR(VLOOKUP(B285,'Schedule V(b)'!$B$11:$Z$315,25,0),0)","v":0},null,null,null,null,null,0]
[275,null,null,{"$f":"IFERROR(VLOOKUP(B286,'Schedule V(b)'!$B$11:$Z$315,3,0),0)","v":0},null,{"$f":"IFERROR(VLOOKUP(B286,'Schedule V(b)'!$B$11:$Z$315,11,0),0)","v":"Select"},null,{"$f":"IFERROR(VLOOKUP(B286,'Schedule V(b)'!$B$11:$Z$315,15,0),0)","v":"Select"},null,{"$f":"IFERROR(VLOOKUP(B286,'Schedule V(b)'!$B$11:$Z$315,17,0),0)","v":0},null,{"$f":"IFERROR(VLOOKUP(B286,'Schedule V(b)'!$B$11:$Z$315,19,0),0)","v":0},null,{"$f":"IFERROR(VLOOKUP(B286,'Schedule V(b)'!$B$11:$Z$315,25,0),0)","v":0},null,null,null,null,null,0]
[276,null,null,{"$f":"IFERROR(VLOOKUP(B287,'Schedule V(b)'!$B$11:$Z$315,3,0),0)","v":0},null,{"$f":"IFERROR(VLOOKUP(B287,'Schedule V(b)'!$B$11:$Z$315,11,0),0)","v":"Select"},null,{"$f":"IFERROR(VLOOKUP(B287,'Schedule V(b)'!$B$11:$Z$315,15,0),0)","v":"Select"},null,{"$f":"IFERROR(VLOOKUP(B287,'Schedule V(b)'!$B$11:$Z$315,17,0),0)","v":0},null,{"$f":"IFERROR(VLOOKUP(B287,'Schedule V(b)'!$B$11:$Z$315,19,0),0)","v":0},null,{"$f":"IFERROR(VLOOKUP(B287,'Schedule V(b)'!$B$11:$Z$315,25,0),0)","v":0},null,null,null,null,null,0]
[277,null,null,{"$f":"IFERROR(VLOOKUP(B288,'Schedule V(b)'!$B$11:$Z$315,3,0),0)","v":0},null,{"$f":"IFERROR(VLOOKUP(B288,'Schedule V(b)'!$B$11:$Z$315,11,0),0)","v":"Select"},null,{"$f":"IFERROR(VLOOKUP(B288,'Schedule V(b)'!$B$11:$Z$315,15,0),0)","v":"Select"},null,{"$f":"IFERROR(VLOOKUP(B288,'Schedule V(b)'!$B$11:$Z$315,17,0),0)","v":0},null,{"$f":"IFERROR(VLOOKUP(B288,'Schedule V(b)'!$B$11:$Z$315,19,0),0)","v":0},null,{"$f":"IFERROR(VLOOKUP(B288,'Schedule V(b)'!$B$11:$Z$315,25,0),0)","v":0},null,null,null,null,null,0]
[278,null,null,{"$f":"IFERROR(VLOOKUP(B289,'Schedule V(b)'!$B$11:$Z$315,3,0),0)","v":0},null,{"$f":"IFERROR(VLOOKUP(B289,'Schedule V(b)'!$B$11:$Z$315,11,0),0)","v":"Select"},null,{"$f":"IFERROR(VLOOKUP(B289,'Schedule V(b)'!$B$11:$Z$315,15,0),0)","v":"Select"},null,{"$f":"IFERROR(VLOOKUP(B289,'Schedule V(b)'!$B$11:$Z$315,17,0),0)","v":0},null,{"$f":"IFERROR(VLOOKUP(B289,'Schedule V(b)'!$B$11:$Z$315,19,0),0)","v":0},null,{"$f":"IFERROR(VLOOKUP(B289,'Schedule V(b)'!$B$11:$Z$315,25,0),0)","v":0},null,null,null,null,null,0]
[279,null,null,{"$f":"IFERROR(VLOOKUP(B290,'Schedule V(b)'!$B$11:$Z$315,3,0),0)","v":0},null,{"$f":"IFERROR(VLOOKUP(B290,'Schedule V(b)'!$B$11:$Z$315,11,0),0)","v":"Select"},null,{"$f":"IFERROR(VLOOKUP(B290,'Schedule V(b)'!$B$11:$Z$315,15,0),0)","v":"Select"},null,{"$f":"IFERROR(VLOOKUP(B290,'Schedule V(b)'!$B$11:$Z$315,17,0),0)","v":0},null,{"$f":"IFERROR(VLOOKUP(B290,'Schedule V(b)'!$B$11:$Z$315,19,0),0)","v":0},null,{"$f":"IFERROR(VLOOKUP(B290,'Schedule V(b)'!$B$11:$Z$315,25,0),0)","v":0},null,null,null,null,null,0]
[280,null,null,{"$f":"IFERROR(VLOOKUP(B291,'Schedule V(b)'!$B$11:$Z$315,3,0),0)","v":0},null,{"$f":"IFERROR(VLOOKUP(B291,'Schedule V(b)'!$B$11:$Z$315,11,0),0)","v":"Select"},null,{"$f":"IFERROR(VLOOKUP(B291,'Schedule V(b)'!$B$11:$Z$315,15,0),0)","v":"Select"},null,{"$f":"IFERROR(VLOOKUP(B291,'Schedule V(b)'!$B$11:$Z$315,17,0),0)","v":0},null,{"$f":"IFERROR(VLOOKUP(B291,'Schedule V(b)'!$B$11:$Z$315,19,0),0)","v":0},null,{"$f":"IFERROR(VLOOKUP(B291,'Schedule V(b)'!$B$11:$Z$315,25,0),0)","v":0},null,null,null,null,null,0]
[281,null,null,{"$f":"IFERROR(VLOOKUP(B292,'Schedule V(b)'!$B$11:$Z$315,3,0),0)","v":0},null,{"$f":"IFERROR(VLOOKUP(B292,'Schedule V(b)'!$B$11:$Z$315,11,0),0)","v":"Select"},null,{"$f":"IFERROR(VLOOKUP(B292,'Schedule V(b)'!$B$11:$Z$315,15,0),0)","v":"Select"},null,{"$f":"IFERROR(VLOOKUP(B292,'Schedule V(b)'!$B$11:$Z$315,17,0),0)","v":0},null,{"$f":"IFERROR(VLOOKUP(B292,'Schedule V(b)'!$B$11:$Z$315,19,0),0)","v":0},null,{"$f":"IFERROR(VLOOKUP(B292,'Schedule V(b)'!$B$11:$Z$315,25,0),0)","v":0},null,null,null,null,null,0]
[282,null,null,{"$f":"IFERROR(VLOOKUP(B293,'Schedule V(b)'!$B$11:$Z$315,3,0),0)","v":0},null,{"$f":"IFERROR(VLOOKUP(B293,'Schedule V(b)'!$B$11:$Z$315,11,0),0)","v":"Select"},null,{"$f":"IFERROR(VLOOKUP(B293,'Schedule V(b)'!$B$11:$Z$315,15,0),0)","v":"Select"},null,{"$f":"IFERROR(VLOOKUP(B293,'Schedule V(b)'!$B$11:$Z$315,17,0),0)","v":0},null,{"$f":"IFERROR(VLOOKUP(B293,'Schedule V(b)'!$B$11:$Z$315,19,0),0)","v":0},null,{"$f":"IFERROR(VLOOKUP(B293,'Schedule V(b)'!$B$11:$Z$315,25,0),0)","v":0},null,null,null,null,null,0]
[283,null,null,{"$f":"IFERROR(VLOOKUP(B294,'Schedule V(b)'!$B$11:$Z$315,3,0),0)","v":0},null,{"$f":"IFERROR(VLOOKUP(B294,'Schedule V(b)'!$B$11:$Z$315,11,0),0)","v":"Select"},null,{"$f":"IFERROR(VLOOKUP(B294,'Schedule V(b)'!$B$11:$Z$315,15,0),0)","v":"Select"},null,{"$f":"IFERROR(VLOOKUP(B294,'Schedule V(b)'!$B$11:$Z$315,17,0),0)","v":0},null,{"$f":"IFERROR(VLOOKUP(B294,'Schedule V(b)'!$B$11:$Z$315,19,0),0)","v":0},null,{"$f":"IFERROR(VLOOKUP(B294,'Schedule V(b)'!$B$11:$Z$315,25,0),0)","v":0},null,null,null,null,null,0]
[284,null,null,{"$f":"IFERROR(VLOOKUP(B295,'Schedule V(b)'!$B$11:$Z$315,3,0),0)","v":0},null,{"$f":"IFERROR(VLOOKUP(B295,'Schedule V(b)'!$B$11:$Z$315,11,0),0)","v":"Select"},null,{"$f":"IFERROR(VLOOKUP(B295,'Schedule V(b)'!$B$11:$Z$315,15,0),0)","v":"Select"},null,{"$f":"IFERROR(VLOOKUP(B295,'Schedule V(b)'!$B$11:$Z$315,17,0),0)","v":0},null,{"$f":"IFERROR(VLOOKUP(B295,'Schedule V(b)'!$B$11:$Z$315,19,0),0)","v":0},null,{"$f":"IFERROR(VLOOKUP(B295,'Schedule V(b)'!$B$11:$Z$315,25,0),0)","v":0},null,null,null,null,null,0]
[285,null,null,{"$f":"IFERROR(VLOOKUP(B296,'Schedule V(b)'!$B$11:$Z$315,3,0),0)","v":0},null,{"$f":"IFERROR(VLOOKUP(B296,'Schedule V(b)'!$B$11:$Z$315,11,0),0)","v":"Select"},null,{"$f":"IFERROR(VLOOKUP(B296,'Schedule V(b)'!$B$11:$Z$315,15,0),0)","v":"Select"},null,{"$f":"IFERROR(VLOOKUP(B296,'Schedule V(b)'!$B$11:$Z$315,17,0),0)","v":0},null,{"$f":"IFERROR(VLOOKUP(B296,'Schedule V(b)'!$B$11:$Z$315,19,0),0)","v":0},null,{"$f":"IFERROR(VLOOKUP(B296,'Schedule V(b)'!$B$11:$Z$315,25,0),0)","v":0},null,null,null,null,null,0]
[286,null,null,{"$f":"IFERROR(VLOOKUP(B297,'Schedule V(b)'!$B$11:$Z$315,3,0),0)","v":0},null,{"$f":"IFERROR(VLOOKUP(B297,'Schedule V(b)'!$B$11:$Z$315,11,0),0)","v":"Select"},null,{"$f":"IFERROR(VLOOKUP(B297,'Schedule V(b)'!$B$11:$Z$315,15,0),0)","v":"Select"},null,{"$f":"IFERROR(VLOOKUP(B297,'Schedule V(b)'!$B$11:$Z$315,17,0),0)","v":0},null,{"$f":"IFERROR(VLOOKUP(B297,'Schedule V(b)'!$B$11:$Z$315,19,0),0)","v":0},null,{"$f":"IFERROR(VLOOKUP(B297,'Schedule V(b)'!$B$11:$Z$315,25,0),0)","v":0},null,null,null,null,null,0]
[287,null,null,{"$f":"IFERROR(VLOOKUP(B298,'Schedule V(b)'!$B$11:$Z$315,3,0),0)","v":0},null,{"$f":"IFERROR(VLOOKUP(B298,'Schedule V(b)'!$B$11:$Z$315,11,0),0)","v":"Select"},null,{"$f":"IFERROR(VLOOKUP(B298,'Schedule V(b)'!$B$11:$Z$315,15,0),0)","v":"Select"},null,{"$f":"IFERROR(VLOOKUP(B298,'Schedule V(b)'!$B$11:$Z$315,17,0),0)","v":0},null,{"$f":"IFERROR(VLOOKUP(B298,'Schedule V(b)'!$B$11:$Z$315,19,0),0)","v":0},null,{"$f":"IFERROR(VLOOKUP(B298,'Schedule V(b)'!$B$11:$Z$315,25,0),0)","v":0},null,null,null,null,null,0]
[288,null,null,{"$f":"IFERROR(VLOOKUP(B299,'Schedule V(b)'!$B$11:$Z$315,3,0),0)","v":0},null,{"$f":"IFERROR(VLOOKUP(B299,'Schedule V(b)'!$B$11:$Z$315,11,0),0)","v":"Select"},null,{"$f":"IFERROR(VLOOKUP(B299,'Schedule V(b)'!$B$11:$Z$315,15,0),0)","v":"Select"},null,{"$f":"IFERROR(VLOOKUP(B299,'Schedule V(b)'!$B$11:$Z$315,17,0),0)","v":0},null,{"$f":"IFERROR(VLOOKUP(B299,'Schedule V(b)'!$B$11:$Z$315,19,0),0)","v":0},null,{"$f":"IFERROR(VLOOKUP(B299,'Schedule V(b)'!$B$11:$Z$315,25,0),0)","v":0},null,null,null,null,null,0]
[289,null,null,{"$f":"IFERROR(VLOOKUP(B300,'Schedule V(b)'!$B$11:$Z$315,3,0),0)","v":0},null,{"$f":"IFERROR(VLOOKUP(B300,'Schedule V(b)'!$B$11:$Z$315,11,0),0)","v":"Select"},null,{"$f":"IFERROR(VLOOKUP(B300,'Schedule V(b)'!$B$11:$Z$315,15,0),0)","v":"Select"},null,{"$f":"IFERROR(VLOOKUP(B300,'Schedule V(b)'!$B$11:$Z$315,17,0),0)","v":0},null,{"$f":"IFERROR(VLOOKUP(B300,'Schedule V(b)'!$B$11:$Z$315,19,0),0)","v":0},null,{"$f":"IFERROR(VLOOKUP(B300,'Schedule V(b)'!$B$11:$Z$315,25,0),0)","v":0},null,null,null,null,null,0]
[290,null,null,{"$f":"IFERROR(VLOOKUP(B301,'Schedule V(b)'!$B$11:$Z$315,3,0),0)","v":0},null,{"$f":"IFERROR(VLOOKUP(B301,'Schedule V(b)'!$B$11:$Z$315,11,0),0)","v":"Select"},null,{"$f":"IFERROR(VLOOKUP(B301,'Schedule V(b)'!$B$11:$Z$315,15,0),0)","v":"Select"},null,{"$f":"IFERROR(VLOOKUP(B301,'Schedule V(b)'!$B$11:$Z$315,17,0),0)","v":0},null,{"$f":"IFERROR(VLOOKUP(B301,'Schedule V(b)'!$B$11:$Z$315,19,0),0)","v":0},null,{"$f":"IFERROR(VLOOKUP(B301,'Schedule V(b)'!$B$11:$Z$315,25,0),0)","v":0},null,null,null,null,null,0]
[291,null,null,{"$f":"IFERROR(VLOOKUP(B302,'Schedule V(b)'!$B$11:$Z$315,3,0),0)","v":0},null,{"$f":"IFERROR(VLOOKUP(B302,'Schedule V(b)'!$B$11:$Z$315,11,0),0)","v":"Select"},null,{"$f":"IFERROR(VLOOKUP(B302,'Schedule V(b)'!$B$11:$Z$315,15,0),0)","v":"Select"},null,{"$f":"IFERROR(VLOOKUP(B302,'Schedule V(b)'!$B$11:$Z$315,17,0),0)","v":0},null,{"$f":"IFERROR(VLOOKUP(B302,'Schedule V(b)'!$B$11:$Z$315,19,0),0)","v":0},null,{"$f":"IFERROR(VLOOKUP(B302,'Schedule V(b)'!$B$11:$Z$315,25,0),0)","v":0},null,null,null,null,null,0]
[292,null,null,{"$f":"IFERROR(VLOOKUP(B303,'Schedule V(b)'!$B$11:$Z$315,3,0),0)","v":0},null,{"$f":"IFERROR(VLOOKUP(B303,'Schedule V(b)'!$B$11:$Z$315,11,0),0)","v":"Select"},null,{"$f":"IFERROR(VLOOKUP(B303,'Schedule V(b)'!$B$11:$Z$315,15,0),0)","v":"Select"},null,{"$f":"IFERROR(VLOOKUP(B303,'Schedule V(b)'!$B$11:$Z$315,17,0),0)","v":0},null,{"$f":"IFERROR(VLOOKUP(B303,'Schedule V(b)'!$B$11:$Z$315,19,0),0)","v":0},null,{"$f":"IFERROR(VLOOKUP(B303,'Schedule V(b)'!$B$11:$Z$315,25,0),0)","v":0},null,null,null,null,null,0]
[293,null,null,{"$f":"IFERROR(VLOOKUP(B304,'Schedule V(b)'!$B$11:$Z$315,3,0),0)","v":0},null,{"$f":"IFERROR(VLOOKUP(B304,'Schedule V(b)'!$B$11:$Z$315,11,0),0)","v":"Select"},null,{"$f":"IFERROR(VLOOKUP(B304,'Schedule V(b)'!$B$11:$Z$315,15,0),0)","v":"Select"},null,{"$f":"IFERROR(VLOOKUP(B304,'Schedule V(b)'!$B$11:$Z$315,17,0),0)","v":0},null,{"$f":"IFERROR(VLOOKUP(B304,'Schedule V(b)'!$B$11:$Z$315,19,0),0)","v":0},null,{"$f":"IFERROR(VLOOKUP(B304,'Schedule V(b)'!$B$11:$Z$315,25,0),0)","v":0},null,null,null,null,null,0]
[294,null,null,{"$f":"IFERROR(VLOOKUP(B305,'Schedule V(b)'!$B$11:$Z$315,3,0),0)","v":0},null,{"$f":"IFERROR(VLOOKUP(B305,'Schedule V(b)'!$B$11:$Z$315,11,0),0)","v":"Select"},null,{"$f":"IFERROR(VLOOKUP(B305,'Schedule V(b)'!$B$11:$Z$315,15,0),0)","v":"Select"},null,{"$f":"IFERROR(VLOOKUP(B305,'Schedule V(b)'!$B$11:$Z$315,17,0),0)","v":0},null,{"$f":"IFERROR(VLOOKUP(B305,'Schedule V(b)'!$B$11:$Z$315,19,0),0)","v":0},null,{"$f":"IFERROR(VLOOKUP(B305,'Schedule V(b)'!$B$11:$Z$315,25,0),0)","v":0},null,null,null,null,null,0]
[295,null,null,{"$f":"IFERROR(VLOOKUP(B306,'Schedule V(b)'!$B$11:$Z$315,3,0),0)","v":0},null,{"$f":"IFERROR(VLOOKUP(B306,'Schedule V(b)'!$B$11:$Z$315,11,0),0)","v":"Select"},null,{"$f":"IFERROR(VLOOKUP(B306,'Schedule V(b)'!$B$11:$Z$315,15,0),0)","v":"Select"},null,{"$f":"IFERROR(VLOOKUP(B306,'Schedule V(b)'!$B$11:$Z$315,17,0),0)","v":0},null,{"$f":"IFERROR(VLOOKUP(B306,'Schedule V(b)'!$B$11:$Z$315,19,0),0)","v":0},null,{"$f":"IFERROR(VLOOKUP(B306,'Schedule V(b)'!$B$11:$Z$315,25,0),0)","v":0},null,null,null,null,null,0]
[296,null,null,{"$f":"IFERROR(VLOOKUP(B307,'Schedule V(b)'!$B$11:$Z$315,3,0),0)","v":0},null,{"$f":"IFERROR(VLOOKUP(B307,'Schedule V(b)'!$B$11:$Z$315,11,0),0)","v":"Select"},null,{"$f":"IFERROR(VLOOKUP(B307,'Schedule V(b)'!$B$11:$Z$315,15,0),0)","v":"Select"},null,{"$f":"IFERROR(VLOOKUP(B307,'Schedule V(b)'!$B$11:$Z$315,17,0),0)","v":0},null,{"$f":"IFERROR(VLOOKUP(B307,'Schedule V(b)'!$B$11:$Z$315,19,0),0)","v":0},null,{"$f":"IFERROR(VLOOKUP(B307,'Schedule V(b)'!$B$11:$Z$315,25,0),0)","v":0},null,null,null,null,null,0]
[297,null,null,{"$f":"IFERROR(VLOOKUP(B308,'Schedule V(b)'!$B$11:$Z$315,3,0),0)","v":0},null,{"$f":"IFERROR(VLOOKUP(B308,'Schedule V(b)'!$B$11:$Z$315,11,0),0)","v":"Select"},null,{"$f":"IFERROR(VLOOKUP(B308,'Schedule V(b)'!$B$11:$Z$315,15,0),0)","v":"Select"},null,{"$f":"IFERROR(VLOOKUP(B308,'Schedule V(b)'!$B$11:$Z$315,17,0),0)","v":0},null,{"$f":"IFERROR(VLOOKUP(B308,'Schedule V(b)'!$B$11:$Z$315,19,0),0)","v":0},null,{"$f":"IFERROR(VLOOKUP(B308,'Schedule V(b)'!$B$11:$Z$315,25,0),0)","v":0},null,null,null,null,null,0]
[298,null,null,{"$f":"IFERROR(VLOOKUP(B309,'Schedule V(b)'!$B$11:$Z$315,3,0),0)","v":0},null,{"$f":"IFERROR(VLOOKUP(B309,'Schedule V(b)'!$B$11:$Z$315,11,0),0)","v":"Select"},null,{"$f":"IFERROR(VLOOKUP(B309,'Schedule V(b)'!$B$11:$Z$315,15,0),0)","v":"Select"},null,{"$f":"IFERROR(VLOOKUP(B309,'Schedule V(b)'!$B$11:$Z$315,17,0),0)","v":0},null,{"$f":"IFERROR(VLOOKUP(B309,'Schedule V(b)'!$B$11:$Z$315,19,0),0)","v":0},null,{"$f":"IFERROR(VLOOKUP(B309,'Schedule V(b)'!$B$11:$Z$315,25,0),0)","v":0},null,null,null,null,null,0]
[299,null,null,{"$f":"IFERROR(VLOOKUP(B310,'Schedule V(b)'!$B$11:$Z$315,3,0),0)","v":0},null,{"$f":"IFERROR(VLOOKUP(B310,'Schedule V(b)'!$B$11:$Z$315,11,0),0)","v":"Select"},null,{"$f":"IFERROR(VLOOKUP(B310,'Schedule V(b)'!$B$11:$Z$315,15,0),0)","v":"Select"},null,{"$f":"IFERROR(VLOOKUP(B310,'Schedule V(b)'!$B$11:$Z$315,17,0),0)","v":0},null,{"$f":"IFERROR(VLOOKUP(B310,'Schedule V(b)'!$B$11:$Z$315,19,0),0)","v":0},null,{"$f":"IFERROR(VLOOKUP(B310,'Schedule V(b)'!$B$11:$Z$315,25,0),0)","v":0},null,null,null,null,null,0]
[300,null,null,{"$f":"IFERROR(VLOOKUP(B311,'Schedule V(b)'!$B$11:$Z$315,3,0),0)","v":0},null,{"$f":"IFERROR(VLOOKUP(B311,'Schedule V(b)'!$B$11:$Z$315,11,0),0)","v":"Select"},null,{"$f":"IFERROR(VLOOKUP(B311,'Schedule V(b)'!$B$11:$Z$315,15,0),0)","v":"Select"},null,{"$f":"IFERROR(VLOOKUP(B311,'Schedule V(b)'!$B$11:$Z$315,17,0),0)","v":0},null,{"$f":"IFERROR(VLOOKUP(B311,'Schedule V(b)'!$B$11:$Z$315,19,0),0)","v":0},null,{"$f":"IFERROR(VLOOKUP(B311,'Schedule V(b)'!$B$11:$Z$315,25,0),0)","v":0},null,null,null,null,null,0]
[]
[]
[null,"GROUP MSM USING AGGREGATION METHOD",null,null,null,null,null,null,null,null,null,null,null,null,null,null,null,null,null,{"$f":"SUM(T12:T311)","v":0}]

{"sheet":"Schedule XIII(a)","index":86,"n_rows":193,"n_cols":13,"rows_kept":193,"cut":false,"hidden":false,"merged":[[85,8,85,9],[60,4,60,6],[2,1,2,3],[17,4,17,7],[39,3,39,7],[40,3,40,7],[52,2,53,7]]}
[null,"SCHEDULE OF GROUP ELIGIBLE CAPITAL (TABLE 16)",null,null,null,null,null,null,null,{"$f":"HYPERLINK(\"#'Index'!A1\",\"Return to Index\")","v":"Return to Index"}]
[null,{"$f":"'Group Information'!C9","v":"Enter Parent Company Name"}]
[null,{"$f":"'Form 1EBS'!C3","v":"2023-12-31"}]
[null,{"$f":"'Form 1EBS'!C4","v":" ['000s]United States Dollars"},null,null,null,null,null,null,null,"SCHEDULE XIII(a) (EBS)"]
[null,null,null,null,null,null,null,null,null," "]
[null,"TOTAL AVAILABLE STATUTORY ECONOMIC CAPITAL AND SURPLUS",null,null,null,null,null,null,null,{"$f":"+Summary!M74","v":0}]
[null," ","Less: Encumbered assets not securing policyholder obligations (Notes to Form 1EBS, STMT Line 15) - Note 1",null,null,null,null,null,{"$f":"+'Form 1EBS'!F250","v":0}]
[null,null,"            Less: relative liability or contingent liability (included on Form 1EBS) for which the encumbered assets are held ",null,null,null,null,null,{"$f":"Import!I37502","v":0},{"$f":"MAX((I7-I8),0)","v":0}]
[null,null,"Subtotal:",null,null,null,null,null,null,{"$f":"J6-J8","v":0}]
[]
[null,"TIER 1 BASIC CAPITAL"]
[null," ","(a) Fully paid common shares (Form 8/8A, STMT LINE 1(a)(i))",null,null,null,null,null,null,{"$f":"IF('Group Information'!$F$11=\"IFRS\",'Form 8A'!G12,'Form 8'!G12)","v":0}]
[null," ","(b) Contributed surplus or share premium (Form 8/8A, STMT LINE 1(b))",null,null,null,null,null,null,{"$f":"IF('Group Information'!$F$11=\"IFRS\",'Form 8A'!G29,'Form 8'!G37)","v":0}]
[null," ","(c)  Statutory Economic Surplus – End of Year (Form 1EBS, Line 40 less Form 8/8A, Line 1(d))",null,null,null,null,null,null,{"$f":"IF('Group Information'!$F$11=\"IFRS\",'Form 1EBS'!F214-'Form 8A'!G36-'Form 8A'!G56,\n'Form 1EBS'!F214-'Form 8'!G44-'Form 8'!G64)","v":0}]
[null,null,"(d) Minority Interest (Form 8/8A, STMT LINE 3)",null,null,null,null,null,null,{"$f":"IF('Group Information'!$F$11=\"IFRS\",'Form 8A'!G56,'Form 8'!G64)","v":0}]
[null,null,"(e) Capital adjustments",null,null,null,null,null,null,{"$f":"Import!I37505","v":0}]
[null,null,"(f) Hybrid capital instruments: Perpetual or fixed term preference shares (Form 8/8A, STMT LINE 1a(ii))",null,null,null,null,null,null,{"$f":"Import!I37506","v":0}]
[null,null,"(g) Other:",null,null,null,null,null,null,{"$f":"Import!I37507","v":0}]
[null,null,"(h) Less: Treasury shares (Form 8/8A, STMT LINE 1(a)(iii))",null,null,null,null,null,null,{"$f":"IF('Group Information'!$F$11=\"IFRS\",'Form 8A'!G25,'Form 8'!G33)","v":0}]
[null,null,"(i) Less: Difference between encumbered assets for policyholder obligations and policyholder obligations, calculated as follows:"]
[]
[null,null,null,null,null,null,"(A)","(B)"]
[null,null,null,null,null,null,"Policyholder","Encumbered"]
[null,null,null,null,null,null,"obligations","(pledged) assets"]
[null,null,"(i)","Contracts where pledged assets exceed the policyholder obligations",null,null,{"$f":"Import!I37508","v":0},{"$f":"Import!I37513","v":0}]
[null,null,"(ii)","Contracts where pledged assets are equal to the policyholder obligations",null,null,{"$f":"Import!I37509","v":0},{"$f":"Import!I37514","v":0}]
[null,null,"(iii)","Contracts where pledged assets are less than the policyholder obligations",null,null,{"$f":"Import!I37510","v":0},{"$f":"Import!I37515","v":0}]
[null,null,"(iv)","Contracts where policyholder obligations are not collateralized",null,null,{"$f":"Import!I37511","v":0}]
[null,null,"(v)","Total",null,null,{"$f":"SUM(G25:G28)","v":0},{"$f":"SUM(H25:H28)","v":0}]
[]
[null,null,null,"Form 1EBS Lines 16(a), 17(a), and 27(a) for policyholder obligations",null,null,null,{"$f":"+'Form 1EBS'!F104+'Form 1EBS'!F114+'Form 1EBS'!F144","v":0}]
[]
[null,null,null,"Difference",null,null,null,{"$f":"ROUND(H31-G29,0)","v":0}]
[]
[null,null,null,"Notes to Form 1EBS Line 15 encumbered assets for policyholder obligations",null,null,null,{"$f":"'Form 1EBS'!F241","v":0}]
[]
[null,null,null,"Difference",null,null,null,{"$f":"ROUND(H35-H29,0)","v":0}]
[]
[null,null,"(vi)","Excess encumbered assets i.e. Contracts where pledged assets exceed the policyholder obligations ((B)(i)-(A)(i))",null,null,null,null,{"$f":"H25-G25","v":0},null,null,{"$f":"H25-G25","v":0}]
[null,null,"(vii)","Capital requirement applicable to the encumbered assets under (i) above (equal to the contribution of the pledged assets to the ECR)",null,null,null,null,{"$f":"Import!I37517","v":0},null,null,{"$f":"IF(J91=0,0,I40*J89/J91)","v":0}]
[null,null,"(viii)","Capital requirement applicable to the policyholder obligations under (i) above (equal to the contribution of the policyholder obligations to the ECR)",null,null,null,null,{"$f":"Import!I37518","v":0},null,null,{"$f":"IF(J91=0,0,I41*J89/J91)","v":0}]
[null,null,"(ix)"," Excess encumbered assets transferrable to Tier 2 ((vi) - (vii) - (viii))",null,null,null,null,{"$f":"MAX(0,(I39-I40-I41))","v":0},null,null,{"$f":"MAX(0,(L39-L40-L41))","v":0}]
[]
[null,null,"(x)","Policyholder obligations that are fully collateralized ((A)(i) + (A)(ii) + (B)(iii))",null,null,null,null,{"$f":"G25+G26+H27","v":0},null,null,{"$f":"G25+G26+H27","v":0}]
[null,null,"(xi)","Total Policyholder obligations ((A)(v))",null,null,null,null,{"$f":"G29","v":0},null,null,{"$f":"G29","v":0}]
[]
[null,null,"(xii)","Proportion of policyholder obligations that are NOT collateralized (1-(x)/(xi))",null,null,null,null,{"$f":"IF(I45=0,0,1-I44/I45)","v":0},null,null,{"$f":"IF(L45=0,0,1-L44/L45)","v":0}]
[]
[null,null,"(xiii)","Excess encumbered assets transferred to Tier 2 ((ix) x (xii))",null,null,null,null,null,{"$f":"(I42*I47)+'Schedule IX(a)'!G89","v":0},null,{"$f":"L47*L42","v":0}]
[]
[null,null,"(j) Encumbered assets not securing policyholder obligations (Notes to Form 1, STMT LINE 15)"]
[null,null,"    Less: Relative liability or contingent liability (Form 1) for which the encumbered assets are held ",null,null,null,null,null,null,{"$f":"J8","v":0}]
[null,null,"(k) Less: Restricted assets in excess of capital requirements, reported in GSSA, to the extent that these amounts are not included in the encumbered assets for policyholder obligations and not for securing policyholder obligations"]
[null,null,null,null,null,null,null,null,null,{"$f":"Import!I37519","v":0}]
[null,"TIER 1 ANCILLARY CAPITAL"]
[null,null,"Perpetual or fixed term subordinated debt (Form 8, STMT LINE 1(c)(i))",null,null,null,null,null,null,{"$f":"Import!I37520","v":0}]
[null,"TOTAL TIER 1 AVAILABLE CAPITAL",null,null,null,null,null,null,null,{"$f":"J12+J13+J14+J15+J16+J17+J18-J19-J49-J52-J54+J56","v":0}," ",{"$f":"J12+J13+J14+J16+J17+J18-J19-L49-J52-J54+J56","v":0}]
[]
[null,"TIER 2 BASIC CAPITAL"]
[null,null,"(a) Hybrid capital instruments: Perpetual or fixed term preference shares (Form 8, STMT LINE 1(a)(ii))",null,null,null,null,null,null,{"$f":"Import!I37522","v":0}]
[null,null,"(b) Other:              ",null,{"$f":"Import!I37523","v":0},null,null,null,null,{"$f":"Import!I37524","v":0}]
[null,null,"(c) Add: Difference between encumbered assets for Policyholder obligations and policyholder obligations deducted from Tier 1",null,null,null,null,null,null,{"$f":"J49","v":0},null,{"$f":"+L49","v":0}]
[null,"TIER 2 ANCILLARY CAPITAL"]
[null,null,"(a) Unpaid and callable common shares  (Form 8, STMT LINE 1 (c)(i))",null,null,null,null,null,null,{"$f":"Import!I37525","v":0}]
[null,null,"(b) Qualifying unpaid and callable hybrid capital (Form 8, STMT LINE (c)(i))",null,null,null,null,null,null,{"$f":"Import!I37526","v":0}]
[null,null,"(c) Qualifying unpaid and callable non-cumulative, perpetual or fixed term preference shares (Form 8, STMT LINE 1(c) (i))",null,null,null,null,null,null,{"$f":"Import!I37527","v":0}]
[null,null,"(d) Perpetual or fixed term subordinated debt (Form 8, STMT LINE 1 (c)(i))",null,null,null,null,null,null,{"$f":"Import!I37528","v":0}]
[null,null,"(e) Approved letters of credit (Form 8, STMT Line 1(c)(ii))",null,null,null,null,null,null,{"$f":"Import!I37529","v":0}]
[null,null,"(f) Approved guarantees (Form 8, Line 1(c)(ii))",null,null,null,null,null,null,{"$f":"Import!I37530","v":0}]
[null,"TOTAL TIER 2 AVAILABLE CAPITAL",null,null,null,null,null,null,null,{"$f":"J60+J64+J61+J62+J65+J66+J67+J68+J69","v":0}," ",{"$f":"J60+J64+J61+L62+J65+J66+J67+J68+J69","v":0}]
[]
[null,"TIER 3 BASIC CAPITAL"]
[null,null,"(a) Short-term hybrid capital instruments: Perpetual or fixed term preference shares (Form 8, STMT Line 1(a)(ii))",null,null,null,null,null,null,{"$f":"Import!I37532","v":0}]
[null,"TIER 3 ANCILLARY CAPITAL"]
[null,null,"(a) Short-term subordinated debt (Form 8, STMT LINE 1(c)(i))",null,null,null,null,null,null,{"$f":"Import!I37533","v":0}]
[null,null,"(b) Approved letters of credit (Form 8, STMT LINE 1(c)(i))",null,null,null,null,null,null,{"$f":"Import!I37534","v":0}]
[null,null,"(c) Approved guarantees (Form 8, STMT Line 1(c)(ii))",null,null,null,null,null,null,{"$f":"Import!I37535","v":0}," "]
[null,"TOTAL TIER 3 AVAILABLE CAPITAL",null,null,null,null,null,null,null,{"$f":"J73+J75+J76+J77","v":0}]
[]
[null,"TOTAL ELIGIBLE CAPITAL",null,null,null,null,null,null,null,{"$f":"J57+J70+J78","v":0}]
[]
[null,null,null,null,null,null,null,null,null,{"$f":"IF(J83=\"TRUE\",HYPERLINK(\"#'Schedule XIII(a)'!J9\",\"TRUE\"),HYPERLINK(\"#'Schedule XIII(a)'!J9\",\"FALSE\"))","v":"TRUE"}]
[null,null,null,null,null,null,null,null,null,{"$f":"IF(ROUND((J9-J80),0)=0,\"TRUE\",\"FALSE\")","v":"TRUE"}]
[null,null,null,null,null,null,null,null,null,{"$f":"ROUND(J9-J80,0)","v":0}]
[]
[null,null,null,null,null,null,null,null,{"$f":"IF(J82=\"False\",\"Reconciliation does not equal Total Eligible Capital\",\"\")","v":""}]
[]
[null,"REGULATORY CAPITAL LEVELS"]
[null,null,"Minimum Margin of Solvency",null,null,null,null,null,null,{"$f":"+Summary!M78","v":0}]
[null,null,"Enhanced Capital Requirement",null,null,null,null,null,null,{"$f":"+Summary!M84","v":0}]
[null,null,"Enhanced Capital Requirement - Transition",null,null,null,null,null,null,{"$f":"+Summary!M82","v":0}]
[]
[null,null,null,"Limits","MSM","ECR","Applied to MSM","Applied","Applied to ECR","Met - Y/N"]
[null,null,"Tier 1","min",0.8,0.6,{"$f":"MAX(0,(IF(I41<G25,J57,L57)))","v":0},{"$f":"IF(J57>=E94*J89,\"Yes\",\"No\")","v":"Yes"},{"$f":"MAX(0,J57)","v":0},{"$f":"IF(J57>=F94*J91,\"Yes\",\"No\")","v":"Yes"}]
[null,null,"Tier 2 ","max",0.2,0.4,{"$f":"MAX(0,(IF(I41<G25,MIN(J70,G94*0.25),MIN(L70,G94*0.25))))","v":0},null,{"$f":"MIN(J70,I94*0.667)","v":0}]
[null,null,"Tier 3 ",null,null,0.15,null,null,{"$f":"MAX(0,MIN(J78,((I94+I95)*0.1765),((0.667*I94-I95))))","v":0}]
[null,null,"Eligible Capital",null,null,null,{"$f":"SUM(G94:G96)","v":0},{"$f":"IF(G97>=J89,\"Yes\",\"No\")","v":"Yes"},{"$f":"SUM(I94:I96)","v":0},{"$f":"IF(I97>=J91,\"Yes\",\"No\")","v":"Yes"}]
[]
[null,null,"Note 1 - No deduction from Tier 1 would be required where an insurer can demonstrate that the assets are encumbered for its own risk management purposes."]
[]
[]
[]
[]
[]
[]
[]
[]
[]
[]
[]
[]
[]
[]
[]
[]
[]
[]
[]
[]
[]
[]
[]
[]
[]
[]
[]
[]
[]
[]
[]
[]
[]
[]
[]
[]
[]
[]
[]
[]
[]
[]
[]
[]
[]
[]
[]
[]
[]
[]
[]
[]
[]
[]
[]
[]
[]
[]
[]
[]
[]
[]
[]
[]
[]
[]
[]
[]
[]
[]
[]
[]
[]
[]
[]
[]
[]
[]
[]
[]
[]
[]
[]
[]
[]
[]
[]
[]
[]
[]
[]
[]
[]
[null,null,null,null,null,null,null,null,null,null,null,null,0]

{"sheet":"Schedule XIII(b)","index":87,"n_rows":223,"n_cols":8,"rows_kept":223,"cut":false,"hidden":false,"merged":[]}
[null,"SCHEDULE OF ELIGIBLE CAPITAL - ADDITIONAL DETAILS (TABLE 16A)",null,null,null,null,null,{"$f":"HYPERLINK(\"#'Index'!A1\",\"Return to Index\")","v":"Return to Index"}]
[]
[null,{"$f":"'Group Information'!C9","v":"Enter Parent Company Name"}]
[null,"For the year ending",{"$f":"'Group Information'!C3","v":"2023-12-31"}]
[null,{"$f":"\"expressed in\"","v":"expressed in"},{"$f":"'Form 1EBS'!C4","v":" ['000s]United States Dollars"},null,null,null,null,"SCHEDULE XIII(b)"]
[]
[null,"1) Enter number of capital instruments ",{"$f":"Import!E37539","v":0}]
[null,"2) Enter description of each capital instrument"]
[]
[null,"Description of capital instrument","Date of issue","Maturity date (as applicable)","Date approved by the Authority","Instrument Issued At:","Eligible Capital value of instrument","Eligible capital tier"]
[1,{"$f":"Import!E37540","v":0},{"$f":"Import!E37560","v":"00:00:00"},{"$f":"Import!E37580","v":"00:00:00"},{"$f":"Import!E37600","v":"00:00:00"},"Parent Group Level",{"$f":"Import!E37620","v":0},{"$f":"Import!E37640","v":0}]
[2,{"$f":"Import!E37541","v":0},{"$f":"Import!E37561","v":"00:00:00"},{"$f":"Import!E37581","v":"00:00:00"},{"$f":"Import!E37601","v":"00:00:00"},"Insurer Level",{"$f":"Import!E37621","v":0},{"$f":"Import!E37641","v":0}]
[3,{"$f":"Import!E37542","v":0},{"$f":"Import!E37562","v":"00:00:00"},{"$f":"Import!E37582","v":"00:00:00"},{"$f":"Import!E37602","v":"00:00:00"},null,{"$f":"Import!E37622","v":0},{"$f":"Import!E37642","v":0}]
[4,{"$f":"Import!E37543","v":0},{"$f":"Import!E37563","v":"00:00:00"},{"$f":"Import!E37583","v":"00:00:00"},{"$f":"Import!E37603","v":"00:00:00"},null,{"$f":"Import!E37623","v":0},{"$f":"Import!E37643","v":0}]
[5,{"$f":"Import!E37544","v":0},{"$f":"Import!E37564","v":"00:00:00"},{"$f":"Import!E37584","v":"00:00:00"},{"$f":"Import!E37604","v":"00:00:00"},null,{"$f":"Import!E37624","v":0},{"$f":"Import!E37644","v":0}]
[6,{"$f":"Import!E37545","v":0},{"$f":"Import!E37565","v":"00:00:00"},{"$f":"Import!E37585","v":"00:00:00"},{"$f":"Import!E37605","v":"00:00:00"},null,{"$f":"Import!E37625","v":0},{"$f":"Import!E37645","v":0}]
[7,{"$f":"Import!E37546","v":0},{"$f":"Import!E37566","v":"00:00:00"},{"$f":"Import!E37586","v":"00:00:00"},{"$f":"Import!E37606","v":"00:00:00"},null,{"$f":"Import!E37626","v":0},{"$f":"Import!E37646","v":0}]
[8,{"$f":"Import!E37547","v":0},{"$f":"Import!E37567","v":"00:00:00"},{"$f":"Import!E37587","v":"00:00:00"},{"$f":"Import!E37607","v":"00:00:00"},null,{"$f":"Import!E37627","v":0},{"$f":"Import!E37647","v":0}]
[9,{"$f":"Import!E37548","v":0},{"$f":"Import!E37568","v":"00:00:00"},{"$f":"Import!E37588","v":"00:00:00"},{"$f":"Import!E37608","v":"00:00:00"},null,{"$f":"Import!E37628","v":0},{"$f":"Import!E37648","v":0}]
[10,{"$f":"Import!E37549","v":0},{"$f":"Import!E37569","v":"00:00:00"},{"$f":"Import!E37589","v":"00:00:00"},{"$f":"Import!E37609","v":"00:00:00"},null,{"$f":"Import!E37629","v":0},{"$f":"Import!E37649","v":0}]
[11,{"$f":"Import!E37550","v":0},{"$f":"Import!E37570","v":"00:00:00"},{"$f":"Import!E37590","v":"00:00:00"},{"$f":"Import!E37610","v":"00:00:00"},null,{"$f":"Import!E37630","v":0},{"$f":"Import!E37650","v":0}]
[12,{"$f":"Import!E37551","v":0},{"$f":"Import!E37571","v":"00:00:00"},{"$f":"Import!E37591","v":"00:00:00"},{"$f":"Import!E37611","v":"00:00:00"},null,{"$f":"Import!E37631","v":0},{"$f":"Import!E37651","v":0}]
[13,{"$f":"Import!E37552","v":0},{"$f":"Import!E37572","v":"00:00:00"},{"$f":"Import!E37592","v":"00:00:00"},{"$f":"Import!E37612","v":"00:00:00"},null,{"$f":"Import!E37632","v":0},{"$f":"Import!E37652","v":0}]
[14,{"$f":"Import!E37553","v":0},{"$f":"Import!E37573","v":"00:00:00"},{"$f":"Import!E37593","v":"00:00:00"},{"$f":"Import!E37613","v":"00:00:00"},null,{"$f":"Import!E37633","v":0},{"$f":"Import!E37653","v":0}]
[15,{"$f":"Import!E37554","v":0},{"$f":"Import!E37574","v":"00:00:00"},{"$f":"Import!E37594","v":"00:00:00"},{"$f":"Import!E37614","v":"00:00:00"},null,{"$f":"Import!E37634","v":0},{"$f":"Import!E37654","v":0}]
[16,{"$f":"Import!E37555","v":0},{"$f":"Import!E37575","v":"00:00:00"},{"$f":"Import!E37595","v":"00:00:00"},{"$f":"Import!E37615","v":"00:00:00"},null,{"$f":"Import!E37635","v":0},{"$f":"Import!E37655","v":0}]
[17,{"$f":"Import!E37556","v":0},{"$f":"Import!E37576","v":"00:00:00"},{"$f":"Import!E37596","v":"00:00:00"},{"$f":"Import!E37616","v":"00:00:00"},null,{"$f":"Import!E37636","v":0},{"$f":"Import!E37656","v":0}]
[18,{"$f":"Import!E37557","v":0},{"$f":"Import!E37577","v":"00:00:00"},{"$f":"Import!E37597","v":"00:00:00"},{"$f":"Import!E37617","v":"00:00:00"},null,{"$f":"Import!E37637","v":0},{"$f":"Import!E37657","v":0}]
[19,{"$f":"Import!E37558","v":0},{"$f":"Import!E37578","v":"00:00:00"},{"$f":"Import!E37598","v":"00:00:00"},{"$f":"Import!E37618","v":"00:00:00"},null,{"$f":"Import!E37638","v":0},{"$f":"Import!E37658","v":0}]
[20,{"$f":"Import!E37559","v":0},{"$f":"Import!E37579","v":"00:00:00"},{"$f":"Import!E37599","v":"00:00:00"},{"$f":"Import!E37619","v":"00:00:00"},null,{"$f":"Import!E37639","v":0},{"$f":"Import!E37659","v":0}]
[21]
[22]
[23]
[24]
[25]
[26]
[27]
[28]
[29]
[30]
[31]
[32]
[33]
[34]
[35]
[36]
[37]
[38]
[39]
[40]
[41]
[42]
[43]
[44]
[45]
[46]
[47]
[48]
[49]
[50]
[51]
[52]
[53]
[54]
[55]
[56]
[57]
[58]
[59]
[60]
[61]
[62]
[63]
[64]
[65]
[66]
[67]
[68]
[69]
[70]
[71]
[72]
[73]
[74]
[75]
[76]
[77]
[78]
[79]
[80]
[81]
[82]
[83]
[84]
[85]
[86]
[87]
[88]
[89]
[90]
[91]
[92]
[93]
[94]
[95]
[96]
[97]
[98]
[99]
[100]
[101]
[102]
[103]
[104]
[105]
[106]
[107]
[108]
[109]
[110]
[111]
[112]
[113]
[114]
[115]
[116]
[117]
[118]
[119]
[120]
[121]
[122]
[123]
[124]
[125]
[126]
[127]
[128]
[129]
[130]
[131]
[132]
[133]
[134]
[135]
[136]
[137]
[138]
[139]
[140]
[141]
[142]
[143]
[144]
[145]
[146]
[147]
[148]
[149]
[150]
[151]
[152]
[153]
[154]
[155]
[156]
[157]
[158]
[159]
[160]
[161]
[162]
[163]
[164]
[165]
[166]
[167]
[168]
[169]
[170]
[171]
[172]
[173]
[174]
[175]
[176]
[177]
[178]
[179]
[180]
[181]
[182]
[183]
[184]
[185]
[186]
[187]
[188]
[189]
[190]
[191]
[192]
[193]
[194]
[195]
[196]
[197]
[198]
[199]
[200]
[null,"Total Preferred Shares, Treasury Shares and Other Fixed Capital",null,null,null,null,{"$f":"SUM(G11:G210)","v":0}]
[]
[null,null,null,null,null,null,{"$f":"IF('Group Information'!$F$11=\"IFRS\",\n'Form 8A'!G17-'Form 8A'!G25+'Form 8A'!G34,\n'Form 8'!G17+'Form 8'!G25-'Form 8'!G33+'Form 8'!G42)","v":0}]
[]
[null,null,null,null,null,null,{"$f":"IF(G216=\"TRUE\",HYPERLINK(\"#'Form 8'!G17:G34\",\"TRUE\"),HYPERLINK(\"#'Form 8'!G17:G34\",\"FALSE\"))","v":"TRUE"}]
[null,null,null,null,null,null,{"$f":"IF(ROUND((G211-G213),0)=0,\"TRUE\",\"FALSE\")","v":"TRUE"}]
[null,null,null,null,null,null,{"$f":"ROUND((G213-G211),0)","v":0}]
[]
[null,null,null,null,null,null,{"$f":"IF(G215=\"False\",\"Does not equal Form 8SFS Lines 1(a)(ii), 1(a)(iii) & 1(c)(iii)\",\"\")","v":""}]
[]
[]
[null,null,null,null,null,"Parent Group Level"]
[null,null,null,null,null,"Insurer Level"]

{"sheet":"Schedule XVIII","index":88,"n_rows":101,"n_cols":18,"rows_kept":101,"cut":false,"hidden":false,"merged":[[89,2,89,3],[90,2,90,3],[91,2,91,3],[95,2,96,17],[83,2,83,3],[84,2,84,3],[85,2,85,3],[86,2,86,3],[87,2,87,3],[88,2,88,3],[78,2,79,17],[80,8,82,8],[80,9,82,9],[80,10,82,10],[80,11,82,11],[80,15,82,15],[80,16,82,16],[80,17,82,17],[61,2,61,3],[62,2,62,3],[63,2,63,3],[1,13,1,17],[67,2,68,2],[55,2,55,3],[56,2,56,3],[57,2,57,3],[58,2,58,3],[59,2,59,3],[60,2,60,3]]}
[null,null,"SCHEDULE OF EXPANDED PARTICULARS OF CEDED REINSURANCE",null,null,null,null,null,null,null,null,null,null,null,null,null,null,{"$f":"HYPERLINK(\"#'Index'!A1\",\"Return to Index\")","v":"Return to Index"}]
[null,null,{"$f":"'Group Information'!C9","v":"Enter Parent Company Name"}]
[null,null,{"$f":"'Form 1EBS'!C3","v":"2023-12-31"}]
[null,null,{"$f":"'Form 1EBS'!C4","v":" ['000s]United States Dollars"},null,null,null,null,null,null,null,null,null,null,null,null,null,null,"SCHEDULE XVIII"]
[]
[null,null,"Enter at least the top 10 Largest Reinsurance Exposures and any Reinsurance Exposures Exceeding 15% of the Group's Statutory Capital and Surplus with the Remaining Reinsurance Exposures Grouped According to BSCR Ratings and/or a Single Consolidated Reinsurance Exposure"]
[]
[null,null,"Enter Number of Material Reinsurers",{"$f":"Import!E37661","v":0}]
[null,null,"Enter information for each Material Reinsurer"]
[]
[null,null,"Exposure by Reinsurer","(A)","(B)","(C)","(D)","(E)","(F)","(G)","(H)","(I)","(J)","(K)","(L)","(M)","(N)","(O)"]
[null,null,"Name of Reinsurer","Rating \n(if applicable)","Rating Agency","BSCR Rating","Jurisdiction","Premiums Ceded During The Year\n(Form 2, Lines 2 & 13)","Reinsurance Recoverable \n(Form 1, Lines 11, 12, 17(c) & 27(c))","Market Risk\n(Form 1, Line 12)\nFrom Segregated Accounts/Trusts Included Under Schedule IIA","Adjusted Reinsurance Recoverable\n[(F) Less (G)]","Reinsurance Payable\n(Form 1, Lines 28, 29, 33 & 34)","Net Reinsurancc Recoverable\n[(F) Less (I)]","Net Reinsurance Recoverable Due For Less Than 180 Days","Net Reinsurance Recoverable Due For More Than 180 Days","Collateral\n(Notes to Form 1, Lines 11(e), 17(c) & 27(c))","Qualifying Collateral\n[Max(0,Min(M),(H)-(I)/.98)]","Net Qualifying Exposure \n[Max(0),(H)-(I)-(N)x98%]"]
[null,1,{"$f":"Import!E37662","v":0},{"$f":"Import!E37697","v":0},{"$f":"Import!E37732","v":0},{"$f":"Import!E37767","v":"Select"},{"$f":"Import!E37802","v":0},{"$f":"Import!E37837","v":0},{"$f":"Import!E37873","v":0},{"$f":"Import!E37909","v":0},{"$f":"I13-J13","v":0},{"$f":"Import!E37945","v":0},{"$f":"I13-L13","v":0},{"$f":"Import!E37981","v":0},{"$f":"M13-N13","v":0},{"$f":"Import!E38017","v":0},{"$f":"IF(P13=0,0,MAX(0,MIN(P13,(K13-L13)/0.98)))","v":0},{"$f":"MAX(0,(K13-L13-Q13*98%))","v":0}]
[null,2,{"$f":"Import!E37663","v":0},{"$f":"Import!E37698","v":0},{"$f":"Import!E37733","v":0},{"$f":"Import!E37768","v":"Select"},{"$f":"Import!E37803","v":0},{"$f":"Import!E37838","v":0},{"$f":"Import!E37874","v":0},{"$f":"Import!E37910","v":0},{"$f":"I14-J14","v":0},{"$f":"Import!E37946","v":0},{"$f":"I14-L14","v":0},{"$f":"Import!E37982","v":0},0,{"$f":"Import!E38018","v":0},{"$f":"IF(P14=0,0,MAX(0,MIN(P14,(K14-L14)/0.98)))","v":0},{"$f":"MAX(0,(K14-L14-Q14*98%))","v":0}]
[null,3,{"$f":"Import!E37664","v":0},{"$f":"Import!E37699","v":0},{"$f":"Import!E37734","v":0},{"$f":"Import!E37769","v":"Select"},{"$f":"Import!E37804","v":0},{"$f":"Import!E37839","v":0},{"$f":"Import!E37875","v":0},{"$f":"Import!E37911","v":0},0,{"$f":"Import!E37947","v":0},0,{"$f":"Import!E37983","v":0},0,{"$f":"Import!E38019","v":0},0,0]
[null,4,{"$f":"Import!E37665","v":0},{"$f":"Import!E37700","v":0},{"$f":"Import!E37735","v":0},{"$f":"Import!E37770","v":"Select"},{"$f":"Import!E37805","v":0},{"$f":"Import!E37840","v":0},{"$f":"Import!E37876","v":0},{"$f":"Import!E37912","v":0},0,{"$f":"Import!E37948","v":0},0,{"$f":"Import!E37984","v":0},0,{"$f":"Import!E38020","v":0},0,0]
[null,5,{"$f":"Import!E37666","v":0},{"$f":"Import!E37701","v":0},{"$f":"Import!E37736","v":0},{"$f":"Import!E37771","v":"Select"},{"$f":"Import!E37806","v":0},{"$f":"Import!E37841","v":0},{"$f":"Import!E37877","v":0},{"$f":"Import!E37913","v":0},0,{"$f":"Import!E37949","v":0},0,{"$f":"Import!E37985","v":0},0,{"$f":"Import!E38021","v":0},0,0]
[null,6,{"$f":"Import!E37667","v":0},{"$f":"Import!E37702","v":0},{"$f":"Import!E37737","v":0},{"$f":"Import!E37772","v":"Select"},{"$f":"Import!E37807","v":0},{"$f":"Import!E37842","v":0},{"$f":"Import!E37878","v":0},{"$f":"Import!E37914","v":0},0,{"$f":"Import!E37950","v":0},0,{"$f":"Import!E37986","v":0},0,{"$f":"Import!E38022","v":0},0,0]
[null,7,{"$f":"Import!E37668","v":0},{"$f":"Import!E37703","v":0},{"$f":"Import!E37738","v":0},{"$f":"Import!E37773","v":"Select"},{"$f":"Import!E37808","v":0},{"$f":"Import!E37843","v":0},{"$f":"Import!E37879","v":0},{"$f":"Import!E37915","v":0},0,{"$f":"Import!E37951","v":0},0,{"$f":"Import!E37987","v":0},0,{"$f":"Import!E38023","v":0},0,0]
[null,8,{"$f":"Import!E37669","v":0},{"$f":"Import!E37704","v":0},{"$f":"Import!E37739","v":0},{"$f":"Import!E37774","v":"Select"},{"$f":"Import!E37809","v":0},{"$f":"Import!E37844","v":0},{"$f":"Import!E37880","v":0},{"$f":"Import!E37916","v":0},0,{"$f":"Import!E37952","v":0},0,{"$f":"Import!E37988","v":0},0,{"$f":"Import!E38024","v":0},0,0]
[null,9,{"$f":"Import!E37670","v":0},{"$f":"Import!E37705","v":0},{"$f":"Import!E37740","v":0},{"$f":"Import!E37775","v":"Select"},{"$f":"Import!E37810","v":0},{"$f":"Import!E37845","v":0},{"$f":"Import!E37881","v":0},{"$f":"Import!E37917","v":0},0,{"$f":"Import!E37953","v":0},0,{"$f":"Import!E37989","v":0},0,{"$f":"Import!E38025","v":0},0,0]
[null,10,{"$f":"Import!E37671","v":0},{"$f":"Import!E37706","v":0},{"$f":"Import!E37741","v":0},{"$f":"Import!E37776","v":"Select"},{"$f":"Import!E37811","v":0},{"$f":"Import!E37846","v":0},{"$f":"Import!E37882","v":0},{"$f":"Import!E37918","v":0},0,{"$f":"Import!E37954","v":0},0,{"$f":"Import!E37990","v":0},0,{"$f":"Import!E38026","v":0},0,0]
[null,11,{"$f":"Import!E37672","v":0},{"$f":"Import!E37707","v":0},{"$f":"Import!E37742","v":0},{"$f":"Import!E37777","v":"Select"},{"$f":"Import!E37812","v":0},{"$f":"Import!E37847","v":0},{"$f":"Import!E37883","v":0},{"$f":"Import!E37919","v":0},0,{"$f":"Import!E37955","v":0},0,{"$f":"Import!E37991","v":0},0,{"$f":"Import!E38027","v":0},0,0]
[null,12,{"$f":"Import!E37673","v":0},{"$f":"Import!E37708","v":0},{"$f":"Import!E37743","v":0},{"$f":"Import!E37778","v":"Select"},{"$f":"Import!E37813","v":0},{"$f":"Import!E37848","v":0},{"$f":"Import!E37884","v":0},{"$f":"Import!E37920","v":0},0,{"$f":"Import!E37956","v":0},0,{"$f":"Import!E37992","v":0},0,{"$f":"Import!E38028","v":0},0,0]
[null,13,{"$f":"Import!E37674","v":0},{"$f":"Import!E37709","v":0},{"$f":"Import!E37744","v":0},{"$f":"Import!E37779","v":"Select"},{"$f":"Import!E37814","v":0},{"$f":"Import!E37849","v":0},{"$f":"Import!E37885","v":0},{"$f":"Import!E37921","v":0},0,{"$f":"Import!E37957","v":0},0,{"$f":"Import!E37993","v":0},0,{"$f":"Import!E38029","v":0},0,0]
[null,14,{"$f":"Import!E37675","v":0},{"$f":"Import!E37710","v":0},{"$f":"Import!E37745","v":0},{"$f":"Import!E37780","v":"Select"},{"$f":"Import!E37815","v":0},{"$f":"Import!E37850","v":0},{"$f":"Import!E37886","v":0},{"$f":"Import!E37922","v":0},0,{"$f":"Import!E37958","v":0},0,{"$f":"Import!E37994","v":0},0,{"$f":"Import!E38030","v":0},0,0]
[null,15,{"$f":"Import!E37676","v":0},{"$f":"Import!E37711","v":0},{"$f":"Import!E37746","v":0},{"$f":"Import!E37781","v":"Select"},{"$f":"Import!E37816","v":0},{"$f":"Import!E37851","v":0},{"$f":"Import!E37887","v":0},{"$f":"Import!E37923","v":0},0,{"$f":"Import!E37959","v":0},0,{"$f":"Import!E37995","v":0},0,{"$f":"Import!E38031","v":0},0,0]
[null,16,{"$f":"Import!E37677","v":0},{"$f":"Import!E37712","v":0},{"$f":"Import!E37747","v":0},{"$f":"Import!E37782","v":"Select"},{"$f":"Import!E37817","v":0},{"$f":"Import!E37852","v":0},{"$f":"Import!E37888","v":0},{"$f":"Import!E37924","v":0},0,{"$f":"Import!E37960","v":0},0,{"$f":"Import!E37996","v":0},0,{"$f":"Import!E38032","v":0},0,0]
[null,17,{"$f":"Import!E37678","v":0},{"$f":"Import!E37713","v":0},{"$f":"Import!E37748","v":0},{"$f":"Import!E37783","v":"Select"},{"$f":"Import!E37818","v":0},{"$f":"Import!E37853","v":0},{"$f":"Import!E37889","v":0},{"$f":"Import!E37925","v":0},0,{"$f":"Import!E37961","v":0},0,{"$f":"Import!E37997","v":0},0,{"$f":"Import!E38033","v":0},0,0]
[null,18,{"$f":"Import!E37679","v":0},{"$f":"Import!E37714","v":0},{"$f":"Import!E37749","v":0},{"$f":"Import!E37784","v":"Select"},{"$f":"Import!E37819","v":0},{"$f":"Import!E37854","v":0},{"$f":"Import!E37890","v":0},{"$f":"Import!E37926","v":0},0,{"$f":"Import!E37962","v":0},0,{"$f":"Import!E37998","v":0},0,{"$f":"Import!E38034","v":0},0,0]
[null,19,{"$f":"Import!E37680","v":0},{"$f":"Import!E37715","v":0},{"$f":"Import!E37750","v":0},{"$f":"Import!E37785","v":"Select"},{"$f":"Import!E37820","v":0},{"$f":"Import!E37855","v":0},{"$f":"Import!E37891","v":0},{"$f":"Import!E37927","v":0},0,{"$f":"Import!E37963","v":0},0,{"$f":"Import!E37999","v":0},0,{"$f":"Import!E38035","v":0},0,0]
[null,20,{"$f":"Import!E37681","v":0},{"$f":"Import!E37716","v":0},{"$f":"Import!E37751","v":0},{"$f":"Import!E37786","v":"Select"},{"$f":"Import!E37821","v":0},{"$f":"Import!E37856","v":0},{"$f":"Import!E37892","v":0},{"$f":"Import!E37928","v":0},0,{"$f":"Import!E37964","v":0},0,{"$f":"Import!E38000","v":0},0,{"$f":"Import!E38036","v":0},0,0]
[null,21,{"$f":"Import!E37682","v":0},{"$f":"Import!E37717","v":0},{"$f":"Import!E37752","v":0},{"$f":"Import!E37787","v":"Select"},{"$f":"Import!E37822","v":0},{"$f":"Import!E37857","v":0},{"$f":"Import!E37893","v":0},{"$f":"Import!E37929","v":0},0,{"$f":"Import!E37965","v":0},0,{"$f":"Import!E38001","v":0},0,{"$f":"Import!E38037","v":0},0,0]
[null,22,{"$f":"Import!E37683","v":0},{"$f":"Import!E37718","v":0},{"$f":"Import!E37753","v":0},{"$f":"Import!E37788","v":"Select"},{"$f":"Import!E37823","v":0},{"$f":"Import!E37858","v":0},{"$f":"Import!E37894","v":0},{"$f":"Import!E37930","v":0},0,{"$f":"Import!E37966","v":0},0,{"$f":"Import!E38002","v":0},0,{"$f":"Import!E38038","v":0},0,0]
[null,23,{"$f":"Import!E37684","v":0},{"$f":"Import!E37719","v":0},{"$f":"Import!E37754","v":0},{"$f":"Import!E37789","v":"Select"},{"$f":"Import!E37824","v":0},{"$f":"Import!E37859","v":0},{"$f":"Import!E37895","v":0},{"$f":"Import!E37931","v":0},0,{"$f":"Import!E37967","v":0},0,{"$f":"Import!E38003","v":0},0,{"$f":"Import!E38039","v":0},0,0]
[null,24,{"$f":"Import!E37685","v":0},{"$f":"Import!E37720","v":0},{"$f":"Import!E37755","v":0},{"$f":"Import!E37790","v":"Select"},{"$f":"Import!E37825","v":0},{"$f":"Import!E37860","v":0},{"$f":"Import!E37896","v":0},{"$f":"Import!E37932","v":0},0,{"$f":"Import!E37968","v":0},0,{"$f":"Import!E38004","v":0},0,{"$f":"Import!E38040","v":0},0,0]
[null,25,{"$f":"Import!E37686","v":0},{"$f":"Import!E37721","v":0},{"$f":"Import!E37756","v":0},{"$f":"Import!E37791","v":"Select"},{"$f":"Import!E37826","v":0},{"$f":"Import!E37861","v":0},{"$f":"Import!E37897","v":0},{"$f":"Import!E37933","v":0},0,{"$f":"Import!E37969","v":0},0,{"$f":"Import!E38005","v":0},0,{"$f":"Import!E38041","v":0},0,0]
[null,26,{"$f":"Import!E37687","v":0},{"$f":"Import!E37722","v":0},{"$f":"Import!E37757","v":0},{"$f":"Import!E37792","v":"Select"},{"$f":"Import!E37827","v":0},{"$f":"Import!E37862","v":0},{"$f":"Import!E37898","v":0},{"$f":"Import!E37934","v":0},0,{"$f":"Import!E37970","v":0},0,{"$f":"Import!E38006","v":0},0,{"$f":"Import!E38042","v":0},0,0]
[null,27,{"$f":"Import!E37688","v":0},{"$f":"Import!E37723","v":0},{"$f":"Import!E37758","v":0},{"$f":"Import!E37793","v":"Select"},{"$f":"Import!E37828","v":0},{"$f":"Import!E37863","v":0},{"$f":"Import!E37899","v":0},{"$f":"Import!E37935","v":0},0,{"$f":"Import!E37971","v":0},0,{"$f":"Import!E38007","v":0},0,{"$f":"Import!E38043","v":0},0,0]
[null,28,{"$f":"Import!E37689","v":0},{"$f":"Import!E37724","v":0},{"$f":"Import!E37759","v":0},{"$f":"Import!E37794","v":"Select"},{"$f":"Import!E37829","v":0},{"$f":"Import!E37864","v":0},{"$f":"Import!E37900","v":0},{"$f":"Import!E37936","v":0},0,{"$f":"Import!E37972","v":0},0,{"$f":"Import!E38008","v":0},0,{"$f":"Import!E38044","v":0},0,0]
[null,29,{"$f":"Import!E37690","v":0},{"$f":"Import!E37725","v":0},{"$f":"Import!E37760","v":0},{"$f":"Import!E37795","v":"Select"},{"$f":"Import!E37830","v":0},{"$f":"Import!E37865","v":0},{"$f":"Import!E37901","v":0},{"$f":"Import!E37937","v":0},0,{"$f":"Import!E37973","v":0},0,{"$f":"Import!E38009","v":0},0,{"$f":"Import!E38045","v":0},0,0]
[null,30,{"$f":"Import!E37691","v":0},{"$f":"Import!E37726","v":0},{"$f":"Import!E37761","v":0},{"$f":"Import!E37796","v":"Select"},{"$f":"Import!E37831","v":0},{"$f":"Import!E37866","v":0},{"$f":"Import!E37902","v":0},{"$f":"Import!E37938","v":0},0,{"$f":"Import!E37974","v":0},0,{"$f":"Import!E38010","v":0},0,{"$f":"Import!E38046","v":0},0,0]
[null,31,{"$f":"Import!E37692","v":0},{"$f":"Import!E37727","v":0},{"$f":"Import!E37762","v":0},{"$f":"Import!E37797","v":"Select"},{"$f":"Import!E37832","v":0},{"$f":"Import!E37867","v":0},{"$f":"Import!E37903","v":0},{"$f":"Import!E37939","v":0},0,{"$f":"Import!E37975","v":0},0,{"$f":"Import!E38011","v":0},0,{"$f":"Import!E38047","v":0},0,0]
[null,32,{"$f":"Import!E37693","v":0},{"$f":"Import!E37728","v":0},{"$f":"Import!E37763","v":0},{"$f":"Import!E37798","v":"Select"},{"$f":"Import!E37833","v":0},{"$f":"Import!E37868","v":0},{"$f":"Import!E37904","v":0},{"$f":"Import!E37940","v":0},0,{"$f":"Import!E37976","v":0},0,{"$f":"Import!E38012","v":0},0,{"$f":"Import!E38048","v":0},0,0]
[null,33,{"$f":"Import!E37694","v":0},{"$f":"Import!E37729","v":0},{"$f":"Import!E37764","v":0},{"$f":"Import!E37799","v":"Select"},{"$f":"Import!E37834","v":0},{"$f":"Import!E37869","v":0},{"$f":"Import!E37905","v":0},{"$f":"Import!E37941","v":0},0,{"$f":"Import!E37977","v":0},0,{"$f":"Import!E38013","v":0},0,{"$f":"Import!E38049","v":0},0,0]
[null,34,{"$f":"Import!E37695","v":0},{"$f":"Import!E37730","v":0},{"$f":"Import!E37765","v":0},{"$f":"Import!E37800","v":"Select"},{"$f":"Import!E37835","v":0},{"$f":"Import!E37870","v":0},{"$f":"Import!E37906","v":0},{"$f":"Import!E37942","v":0},0,{"$f":"Import!E37978","v":0},0,{"$f":"Import!E38014","v":0},0,{"$f":"Import!E38050","v":0},0,0]
[null,35,{"$f":"Import!E37696","v":0},{"$f":"Import!E37731","v":0},{"$f":"Import!E37766","v":0},{"$f":"Import!E37801","v":"Select"},{"$f":"Import!E37836","v":0},{"$f":"Import!E37871","v":0},{"$f":"Import!E37907","v":0},{"$f":"Import!E37943","v":0},0,{"$f":"Import!E37979","v":0},0,{"$f":"Import!E38015","v":0},0,{"$f":"Import!E38051","v":0},0,0]
[null,36,null,null,null,null,null,null,null,null,0,null,0,null,0,null,0,0]
[null,37,null,null,null,null,null,null,null,null,0,null,0,null,0,null,0,0]
[null,38,null,null,null,null,null,null,null,null,0,null,0,null,0,null,0,0]
[null,39,null,null,null,null,null,null,null,null,0,null,0,null,0,null,0,0]
[null,40,null,null,null,null,null,null,null,null,0,null,0,null,0,null,0,0]
[null,null,"Total Exposure By Reinsurer",null,null,null,null,{"$f":"SUM(H13:H52)","v":0},0,0,0,0,0,0,{"$f":"SUM(O13:O52)","v":0},{"$f":"SUM(P13:P52)","v":0},0,{"$f":"SUM(R13:R52)","v":0}]
[]
[null,null,"Exposure by BSCR Rating"]
[null,null,"BSCR Rating 0 (Domestic Affiliates)",null,null,null,null,null,{"$f":"Import!E38053","v":0},{"$f":"Import!E38063","v":0},{"$f":"I56-J56","v":0},{"$f":"Import!E38073","v":0},{"$f":"I56-L56","v":0},null,null,{"$f":"Import!E38083","v":0},{"$f":"IF(P56=0,0,MAX(0,MIN(P56,(K56-L56)/0.98)))","v":0},{"$f":"MAX(0,(K56-L56-Q56*98%))","v":0}]
[null,null,"BSCR Rating 1",null,null,null,null,null,{"$f":"Import!E38054","v":0},{"$f":"Import!E38064","v":0},{"$f":"I57-J57","v":0},{"$f":"Import!E38074","v":0},0,null,null,{"$f":"Import!E38084","v":0},0,{"$f":"MAX(0,(K57-L57-Q57*98%))","v":0}]
[null,null,"BSCR Rating 2",null,null,null,null,null,{"$f":"Import!E38055","v":0},{"$f":"Import!E38065","v":0},0,{"$f":"Import!E38075","v":0},0,null,null,{"$f":"Import!E38085","v":0},0,0]
[null,null,"BSCR Rating 3",null,null,null,null,null,{"$f":"Import!E38056","v":0},{"$f":"Import!E38066","v":0},0,{"$f":"Import!E38076","v":0},0,null,null,{"$f":"Import!E38086","v":0},0,0]
[null,null,"BSCR Rating 4",null,null,null,null,null,{"$f":"Import!E38057","v":0},{"$f":"Import!E38067","v":0},0,{"$f":"Import!E38077","v":0},0,null,null,{"$f":"Import!E38087","v":0},0,0]
[null,null,"BSCR Rating 5",null,null,null,null,null,{"$f":"Import!E38058","v":0},{"$f":"Import!E38068","v":0},0,{"$f":"Import!E38078","v":0},0,null,null,{"$f":"Import!E38088","v":0},0,0]
[null,null,"BSCR Rating 6",null,null,null,null,null,{"$f":"Import!E38059","v":0},{"$f":"Import!E38069","v":0},0,{"$f":"Import!E38079","v":0},0,null,null,{"$f":"Import!E38089","v":0},0,0]
[null,null,"BSCR Rating 7",null,null,null,null,null,{"$f":"Import!E38060","v":0},{"$f":"Import!E38070","v":0},0,{"$f":"Import!E38080","v":0},0,null,null,{"$f":"Import!E38090","v":0},0,0]
[null,null,"BSCR Rating 8",null,null,null,null,null,{"$f":"Import!E38061","v":0},{"$f":"Import!E38071","v":0},0,{"$f":"Import!E38081","v":0},0,null,null,{"$f":"Import!E38091","v":0},0,0]
[null,null,"Total Exposure By BSCR Rating",null,null,null,null,null,{"$f":"SUM(I56:I64)","v":0},{"$f":"SUM(J56:J64)","v":0},{"$f":"SUM(K56:K64)","v":0},{"$f":"SUM(L56:L64)","v":0},{"$f":"SUM(M56:M64)","v":0},null,null,{"$f":"SUM(P56:P64)","v":0},{"$f":"SUM(Q56:Q64)","v":0},{"$f":"SUM(R56:R64)","v":0}]
[]
[null,null,"Single Consolidated Exposure",null,null,null,null,null,{"$f":"IF('Group Information'!$F$11=\"IFRS\",\"0\",'Form 1'!F75+'Form 1'!F77+'Form 1'!F110+'Form 1'!F140-I53-I65)","v":0},null,{"$f":"I67-J67","v":0},null,{"$f":"I67-L67","v":0},null,null,null,{"$f":"IF(P67=0,0,MAX(0,MIN(P67,(K67-L67)/0.98)))","v":0},{"$f":"MAX(0,(K67-L67-Q67*98%))","v":0}]
[null,null,"Total Balance Sheet "]
[null,null,null,null,null,null,null,null,{"$f":"IF('Group Information'!$F$11=\"IFRS\",\"0\",'Form 1'!F75+'Form 1'!F77+'Form 1'!F110+'Form 1'!F140)","v":0},{"$f":"'Schedule IIA'!D74","v":0},{"$f":"I69-J69","v":0},null,{"$f":"M53+M65+M67","v":0},null,null,{"$f":"IF('Group Information'!$F$11=\"IFRS\",\"0\",'Form 1'!F198+'Form 1'!F201)","v":0}]
[]
[null,null,"Total Qualifying Collateral",null,null,null,null,null,null,null,null,null,null,null,null,null,{"$f":"IF(P69=0,0,MAX(0,MIN(P69,(K69)/0.98)))","v":0}]
[]
[null,null,"Total Net Qualifying Exposure",null,null,null,null,null,null,null,null,null,null,null,null,null,null,{"$f":"R53+R65+R67","v":0}]
[]
[null,null,null,null,null,null,null,null,{"$f":"IF('Group Information'!$F$11=\"IFRS\",\"TRUE\",IF(ROUND((I53+I65+I67-I69),0)=0,\"TRUE\",\"FALSE\"))","v":"TRUE"},{"$f":"IF('Group Information'!$F$11=\"IFRS\",\"TRUE\",IF(ROUND((J53+J65+J67-J69),0)=0,\"TRUE\",\"FALSE\"))","v":"TRUE"},null,null,null,null,null,{"$f":"IF('Group Information'!$F$11=\"IFRS\",\"TRUE\",IF(ROUND((P53+P65+P67-P69),0)=0,\"TRUE\",\"FALSE\"))","v":"TRUE"}]
[]
[null,null,"Difference",null,null,null,null,null,{"$f":"ROUND(I69-I53-I65-I67,0)","v":0},{"$f":"ROUND(J69-J53-J65-J67,0)","v":0},null,null,null,null,null,{"$f":"ROUND(P69-P53-P65-P67,0)","v":0}]
[]
[null,null,"Particulars of Reinsurance Balances by BSCR Rating"]
[]
[null,null,null,null,null,null,null,null,"Reinsurance Recoverable","Market Risk","Adjusted Reinsurance Recoverable","Reinsurance Payable",null,null,null,"Collateral","Qualifying Collateral","Net Qualifying Collateral"]
[]
[null,null,"Select"]
[null,null,"BSCR Rating 0 (Domestic Affiliates)",null,null,null,null,null,{"$f":"SUMPRODUCT(I$13:I$52,($F$13:$F$52=$C84)*1)+I56","v":0},0,0,0,null,null,null,{"$f":"SUMPRODUCT(P$13:P$52,($F$13:$F$52=$C84)*1)+P56","v":0},0,0]
[null,null,"BSCR Rating 1",null,null,null,null,null,0,0,0,0,null,null,null,0,0,0]
[null,null,"BSCR Rating 2",null,null,null,null,null,0,0,0,0,null,null,null,0,{"$f":"SUMPRODUCT(Q$13:Q$52,($F$13:$F$52=$C86)*1)+Q58","v":0},0]
[null,null,"BSCR Rating 3",null,null,null,null,null,0,0,0,0,null,null,null,0,0,0]
[null,null,"BSCR Rating 4",null,null,null,null,null,0,0,0,0,null,null,null,0,0,0]
[null,null,"BSCR Rating 5",null,null,null,null,null,0,0,0,0,null,null,null,0,0,0]
[null,null,"BSCR Rating 6",null,null,null,null,null,0,0,0,0,null,null,null,0,0,0]
[null,null,"BSCR Rating 7",null,null,null,null,null,0,0,0,0,null,null,null,0,0,0]
[null,null,"BSCR Rating 8",null,null,null,null,null,{"$f":"SUMPRODUCT(I$13:I$52,($F$13:$F$52=$C92)*1)+I64+I67","v":0},{"$f":"SUMPRODUCT(J$13:J$52,($F$13:$F$52=$C92)*1)+J64+J67","v":0},{"$f":"SUMPRODUCT(K$13:K$52,($F$13:$F$52=$C92)*1)+K64+K67","v":0},{"$f":"SUMPRODUCT(L$13:L$52,($F$13:$F$52=$C92)*1)+L64+L67","v":0},null,null,null,{"$f":"SUMPRODUCT(P$13:P$52,($F$13:$F$52=$C92)*1)+P64+P67","v":0},{"$f":"SUMPRODUCT(Q$13:Q$52,($F$13:$F$52=$C92)*1)+Q64+Q67","v":0},{"$f":"SUMPRODUCT(R$13:R$52,($F$13:$F$52=$C92)*1)+R64+R67","v":0}]
[null,null,"Total",null,null,null,null,null,{"$f":"SUM(I84:I92)","v":0},{"$f":"SUM(J84:J92)","v":0},{"$f":"SUM(K84:K92)","v":0},{"$f":"SUM(L84:L92)","v":0},null,null,null,{"$f":"SUM(P84:P92)","v":0},{"$f":"SUM(Q84:Q92)","v":0},{"$f":"SUM(R84:R92)","v":0}]
[]
[]
[null,null,"Diversification Adjustment Calculation on a Net Qualifying Exposure Basis"]
[]
[null,null,"Maximum Net Qualifying Exposure Balance On a Single Reinsurer Basis",null,null,null,null,null,null,null,null,null,null,null,null,null,null,{"$f":"MAX(R13:R52)","v":0}]
[null,null,"Total Net Qualifying Exposure",null,null,null,null,null,null,null,null,null,null,null,null,null,null,{"$f":"R73","v":0}]
[null,null,"Percentage",null,null,null,null,null,null,null,null,null,null,null,null,null,null,{"$f":"IF(R99=0,0,R98/R99)","v":0}]
[null,null,"Diversification Adjustment up to 40%",null,null,null,null,null,null,null,null,null,null,null,null,null,null,{"$f":"IF(R98=0,0,(1-R100)*40%)","v":0}]

{"sheet":"Schedule XVIII (EBS)","index":89,"n_rows":101,"n_cols":18,"rows_kept":101,"cut":false,"hidden":false,"merged":[[88,2,88,3],[78,2,79,17],[80,9,82,9],[80,10,82,10],[95,2,96,17],[89,2,89,3],[90,2,90,3],[91,2,91,3],[83,2,83,3],[84,2,84,3],[85,2,85,3],[86,2,86,3],[87,2,87,3],[1,13,1,17],[67,2,68,2],[80,8,82,8],[80,11,82,11],[80,15,82,15],[80,16,82,16],[80,17,82,17],[55,2,55,3],[56,2,56,3],[57,2,57,3],[58,2,58,3],[59,2,59,3],[60,2,60,3],[61,2,61,3],[62,2,62,3],[63,2,63,3]]}
[null,null,"SCHEDULE OF EXPANDED PARTICULARS OF CEDED REINSURANCE",null,null,null,null,null,null,null,null,null,null,null,null,null,null,{"$f":"HYPERLINK(\"#'Index'!A1\",\"Return to Index\")","v":"Return to Index"}]
[null,null,{"$f":"'Group Information'!C9","v":"Enter Parent Company Name"}]
[null,null,{"$f":"'Form 1EBS'!C3","v":"2023-12-31"}]
[null,null,{"$f":"'Form 1EBS'!C4","v":" ['000s]United States Dollars"},null,null,null,null,null,null,null,null,null,null,null,null,null,null,"SCHEDULE XVIII (EBS)"]
[]
[null,null,"Enter at least the top 10 Largest Reinsurance Exposures and any Reinsurance Exposures Exceeding 15% of the Group's Statutory Capital and Surplus with the Remaining Reinsurance Exposures Grouped According to BSCR Ratings and/or a Single Consolidated Reinsurance Exposure"]
[]
[null,null,"Enter Number of Material Reinsurers",{"$f":"Import!I37661","v":0}]
[null,null,"Enter information for each Material Reinsurer"]
[]
[null,null,"Exposure by Reinsurer","(A)","(B)","(C)","(D)","(E)","(F)","(G)","(H)","(I)","(J)","(K)","(L)","(M)","(N)","(O)"]
[null,null,"Name of Reinsurer","Rating \n(if applicable)","Rating Agency","BSCR Rating","Jurisdiction","Premiums Ceded During The Year\n(Form 2, Lines 2 & 13)","Reinsurance Recoverable \n(Form 1EBS, Lines 11, 12, 17(c) & 27(c))","Market Risk\n(Form 1EBS, Line 12)\nFrom Segregated Accounts/Trusts Included Under Schedule IIA","Adjusted Reinsurance Recoverable\n[(F) Less (G)]","Reinsurance Payable\n(Form 1EBS, Lines 28, 29, 33 & 34)","Net Reinsurancc Recoverable\n[(F) Less (I)]","Net Reinsurance Recoverable Due For Less Than 180 Days","Net Reinsurance Recoverable Due For More Than 180 Days","Collateral\n(Notes to Form 1EBS, Lines 11(e), 17(c) & 27(c))","Qualifying Collateral\n[Max(0,Min(M),(H)-(I)/.98)]","Net Qualifying Exposure \n[Max(0),(H)-(I)-(N)x98%]"]
[null,1,{"$f":"Import!I37662","v":0},{"$f":"Import!I37697","v":0},{"$f":"Import!I37732","v":0},{"$f":"Import!I37767","v":"Select"},{"$f":"Import!I37802","v":0},{"$f":"Import!I37837","v":0},{"$f":"Import!I37873","v":0},{"$f":"Import!I37909","v":0},{"$f":"I13-J13","v":0},{"$f":"Import!I37945","v":0},{"$f":"I13-L13","v":0},{"$f":"Import!I37981","v":0},{"$f":"M13-N13","v":0},{"$f":"Import!I38017","v":0},{"$f":"IF(P13=0,0,MAX(0,MIN(P13,(K13-L13)/0.98)))","v":0},{"$f":"MAX(0,(K13-L13-Q13*98%))","v":0}]
[null,2,{"$f":"Import!I37663","v":0},{"$f":"Import!I37698","v":0},{"$f":"Import!I37733","v":0},{"$f":"Import!I37768","v":"Select"},{"$f":"Import!I37803","v":0},{"$f":"Import!I37838","v":0},{"$f":"Import!I37874","v":0},{"$f":"Import!I37910","v":0},{"$f":"I14-J14","v":0},{"$f":"Import!I37946","v":0},{"$f":"I14-L14","v":0},{"$f":"Import!I37982","v":0},0,{"$f":"Import!I38018","v":0},{"$f":"IF(P14=0,0,MAX(0,MIN(P14,(K14-L14)/0.98)))","v":0},{"$f":"MAX(0,(K14-L14-Q14*98%))","v":0}]
[null,3,{"$f":"Import!I37664","v":0},{"$f":"Import!I37699","v":0},{"$f":"Import!I37734","v":0},{"$f":"Import!I37769","v":"Select"},{"$f":"Import!I37804","v":0},{"$f":"Import!I37839","v":0},{"$f":"Import!I37875","v":0},{"$f":"Import!I37911","v":0},0,{"$f":"Import!I37947","v":0},0,{"$f":"Import!I37983","v":0},0,{"$f":"Import!I38019","v":0},0,0]
[null,4,{"$f":"Import!I37665","v":0},{"$f":"Import!I37700","v":0},{"$f":"Import!I37735","v":0},{"$f":"Import!I37770","v":"Select"},{"$f":"Import!I37805","v":0},{"$f":"Import!I37840","v":0},{"$f":"Import!I37876","v":0},{"$f":"Import!I37912","v":0},0,{"$f":"Import!I37948","v":0},0,{"$f":"Import!I37984","v":0},0,{"$f":"Import!I38020","v":0},0,0]
[null,5,{"$f":"Import!I37666","v":0},{"$f":"Import!I37701","v":0},{"$f":"Import!I37736","v":0},{"$f":"Import!I37771","v":"Select"},{"$f":"Import!I37806","v":0},{"$f":"Import!I37841","v":0},{"$f":"Import!I37877","v":0},{"$f":"Import!I37913","v":0},0,{"$f":"Import!I37949","v":0},0,{"$f":"Import!I37985","v":0},0,{"$f":"Import!I38021","v":0},0,0]
[null,6,{"$f":"Import!I37667","v":0},{"$f":"Import!I37702","v":0},{"$f":"Import!I37737","v":0},{"$f":"Import!I37772","v":"Select"},{"$f":"Import!I37807","v":0},{"$f":"Import!I37842","v":0},{"$f":"Import!I37878","v":0},{"$f":"Import!I37914","v":0},0,{"$f":"Import!I37950","v":0},0,{"$f":"Import!I37986","v":0},0,{"$f":"Import!I38022","v":0},0,0]
[null,7,{"$f":"Import!I37668","v":0},{"$f":"Import!I37703","v":0},{"$f":"Import!I37738","v":0},{"$f":"Import!I37773","v":"Select"},{"$f":"Import!I37808","v":0},{"$f":"Import!I37843","v":0},{"$f":"Import!I37879","v":0},{"$f":"Import!I37915","v":0},0,{"$f":"Import!I37951","v":0},0,{"$f":"Import!I37987","v":0},0,{"$f":"Import!I38023","v":0},0,0]
[null,8,{"$f":"Import!I37669","v":0},{"$f":"Import!I37704","v":0},{"$f":"Import!I37739","v":0},{"$f":"Import!I37774","v":"Select"},{"$f":"Import!I37809","v":0},{"$f":"Import!I37844","v":0},{"$f":"Import!I37880","v":0},{"$f":"Import!I37916","v":0},0,{"$f":"Import!I37952","v":0},0,{"$f":"Import!I37988","v":0},0,{"$f":"Import!I38024","v":0},0,0]
[null,9,{"$f":"Import!I37670","v":0},{"$f":"Import!I37705","v":0},{"$f":"Import!I37740","v":0},{"$f":"Import!I37775","v":"Select"},{"$f":"Import!I37810","v":0},{"$f":"Import!I37845","v":0},{"$f":"Import!I37881","v":0},{"$f":"Import!I37917","v":0},0,{"$f":"Import!I37953","v":0},0,{"$f":"Import!I37989","v":0},0,{"$f":"Import!I38025","v":0},0,0]
[null,10,{"$f":"Import!I37671","v":0},{"$f":"Import!I37706","v":0},{"$f":"Import!I37741","v":0},{"$f":"Import!I37776","v":"Select"},{"$f":"Import!I37811","v":0},{"$f":"Import!I37846","v":0},{"$f":"Import!I37882","v":0},{"$f":"Import!I37918","v":0},0,{"$f":"Import!I37954","v":0},0,{"$f":"Import!I37990","v":0},0,{"$f":"Import!I38026","v":0},0,0]
[null,11,{"$f":"Import!I37672","v":0},{"$f":"Import!I37707","v":0},{"$f":"Import!I37742","v":0},{"$f":"Import!I37777","v":"Select"},{"$f":"Import!I37812","v":0},{"$f":"Import!I37847","v":0},{"$f":"Import!I37883","v":0},{"$f":"Import!I37919","v":0},0,{"$f":"Import!I37955","v":0},0,{"$f":"Import!I37991","v":0},0,{"$f":"Import!I38027","v":0},0,0]
[null,12,{"$f":"Import!I37673","v":0},{"$f":"Import!I37708","v":0},{"$f":"Import!I37743","v":0},{"$f":"Import!I37778","v":"Select"},{"$f":"Import!I37813","v":0},{"$f":"Import!I37848","v":0},{"$f":"Import!I37884","v":0},{"$f":"Import!I37920","v":0},0,{"$f":"Import!I37956","v":0},0,{"$f":"Import!I37992","v":0},0,{"$f":"Import!I38028","v":0},0,0]
[null,13,{"$f":"Import!I37674","v":0},{"$f":"Import!I37709","v":0},{"$f":"Import!I37744","v":0},{"$f":"Import!I37779","v":"Select"},{"$f":"Import!I37814","v":0},{"$f":"Import!I37849","v":0},{"$f":"Import!I37885","v":0},{"$f":"Import!I37921","v":0},0,{"$f":"Import!I37957","v":0},0,{"$f":"Import!I37993","v":0},0,{"$f":"Import!I38029","v":0},0,0]
[null,14,{"$f":"Import!I37675","v":0},{"$f":"Import!I37710","v":0},{"$f":"Import!I37745","v":0},{"$f":"Import!I37780","v":"Select"},{"$f":"Import!I37815","v":0},{"$f":"Import!I37850","v":0},{"$f":"Import!I37886","v":0},{"$f":"Import!I37922","v":0},0,{"$f":"Import!I37958","v":0},0,{"$f":"Import!I37994","v":0},0,{"$f":"Import!I38030","v":0},0,0]
[null,15,{"$f":"Import!I37676","v":0},{"$f":"Import!I37711","v":0},{"$f":"Import!I37746","v":0},{"$f":"Import!I37781","v":"Select"},{"$f":"Import!I37816","v":0},{"$f":"Import!I37851","v":0},{"$f":"Import!I37887","v":0},{"$f":"Import!I37923","v":0},0,{"$f":"Import!I37959","v":0},0,{"$f":"Import!I37995","v":0},0,{"$f":"Import!I38031","v":0},0,0]
[null,16,{"$f":"Import!I37677","v":0},{"$f":"Import!I37712","v":0},{"$f":"Import!I37747","v":0},{"$f":"Import!I37782","v":"Select"},{"$f":"Import!I37817","v":0},{"$f":"Import!I37852","v":0},{"$f":"Import!I37888","v":0},{"$f":"Import!I37924","v":0},0,{"$f":"Import!I37960","v":0},0,{"$f":"Import!I37996","v":0},0,{"$f":"Import!I38032","v":0},0,0]
[null,17,{"$f":"Import!I37678","v":0},{"$f":"Import!I37713","v":0},{"$f":"Import!I37748","v":0},{"$f":"Import!I37783","v":"Select"},{"$f":"Import!I37818","v":0},{"$f":"Import!I37853","v":0},{"$f":"Import!I37889","v":0},{"$f":"Import!I37925","v":0},0,{"$f":"Import!I37961","v":0},0,{"$f":"Import!I37997","v":0},0,{"$f":"Import!I38033","v":0},0,0]
[null,18,{"$f":"Import!I37679","v":0},{"$f":"Import!I37714","v":0},{"$f":"Import!I37749","v":0},{"$f":"Import!I37784","v":"Select"},{"$f":"Import!I37819","v":0},{"$f":"Import!I37854","v":0},{"$f":"Import!I37890","v":0},{"$f":"Import!I37926","v":0},0,{"$f":"Import!I37962","v":0},0,{"$f":"Import!I37998","v":0},0,{"$f":"Import!I38034","v":0},0,0]
[null,19,{"$f":"Import!I37680","v":0},{"$f":"Import!I37715","v":0},{"$f":"Import!I37750","v":0},{"$f":"Import!I37785","v":"Select"},{"$f":"Import!I37820","v":0},{"$f":"Import!I37855","v":0},{"$f":"Import!I37891","v":0},{"$f":"Import!I37927","v":0},0,{"$f":"Import!I37963","v":0},0,{"$f":"Import!I37999","v":0},0,{"$f":"Import!I38035","v":0},0,0]
[null,20,{"$f":"Import!I37681","v":0},{"$f":"Import!I37716","v":0},{"$f":"Import!I37751","v":0},{"$f":"Import!I37786","v":"Select"},{"$f":"Import!I37821","v":0},{"$f":"Import!I37856","v":0},{"$f":"Import!I37892","v":0},{"$f":"Import!I37928","v":0},0,{"$f":"Import!I37964","v":0},0,{"$f":"Import!I38000","v":0},0,{"$f":"Import!I38036","v":0},0,0]
[null,21,{"$f":"Import!I37682","v":0},{"$f":"Import!I37717","v":0},{"$f":"Import!I37752","v":0},{"$f":"Import!I37787","v":"Select"},{"$f":"Import!I37822","v":0},{"$f":"Import!I37857","v":0},{"$f":"Import!I37893","v":0},{"$f":"Import!I37929","v":0},0,{"$f":"Import!I37965","v":0},0,{"$f":"Import!I38001","v":0},0,{"$f":"Import!I38037","v":0},0,0]
[null,22,{"$f":"Import!I37683","v":0},{"$f":"Import!I37718","v":0},{"$f":"Import!I37753","v":0},{"$f":"Import!I37788","v":"Select"},{"$f":"Import!I37823","v":0},{"$f":"Import!I37858","v":0},{"$f":"Import!I37894","v":0},{"$f":"Import!I37930","v":0},0,{"$f":"Import!I37966","v":0},0,{"$f":"Import!I38002","v":0},0,{"$f":"Import!I38038","v":0},0,0]
[null,23,{"$f":"Import!I37684","v":0},{"$f":"Import!I37719","v":0},{"$f":"Import!I37754","v":0},{"$f":"Import!I37789","v":"Select"},{"$f":"Import!I37824","v":0},{"$f":"Import!I37859","v":0},{"$f":"Import!I37895","v":0},{"$f":"Import!I37931","v":0},0,{"$f":"Import!I37967","v":0},0,{"$f":"Import!I38003","v":0},0,{"$f":"Import!I38039","v":0},0,0]
[null,24,{"$f":"Import!I37685","v":0},{"$f":"Import!I37720","v":0},{"$f":"Import!I37755","v":0},{"$f":"Import!I37790","v":"Select"},{"$f":"Import!I37825","v":0},{"$f":"Import!I37860","v":0},{"$f":"Import!I37896","v":0},{"$f":"Import!I37932","v":0},0,{"$f":"Import!I37968","v":0},0,{"$f":"Import!I38004","v":0},0,{"$f":"Import!I38040","v":0},0,0]
[null,25,{"$f":"Import!I37686","v":0},{"$f":"Import!I37721","v":0},{"$f":"Import!I37756","v":0},{"$f":"Import!I37791","v":"Select"},{"$f":"Import!I37826","v":0},{"$f":"Import!I37861","v":0},{"$f":"Import!I37897","v":0},{"$f":"Import!I37933","v":0},0,{"$f":"Import!I37969","v":0},0,{"$f":"Import!I38005","v":0},0,{"$f":"Import!I38041","v":0},0,0]
[null,26,{"$f":"Import!I37687","v":0},{"$f":"Import!I37722","v":0},{"$f":"Import!I37757","v":0},{"$f":"Import!I37792","v":"Select"},{"$f":"Import!I37827","v":0},{"$f":"Import!I37862","v":0},{"$f":"Import!I37898","v":0},{"$f":"Import!I37934","v":0},0,{"$f":"Import!I37970","v":0},0,{"$f":"Import!I38006","v":0},0,{"$f":"Import!I38042","v":0},0,0]
[null,27,{"$f":"Import!I37688","v":0},{"$f":"Import!I37723","v":0},{"$f":"Import!I37758","v":0},{"$f":"Import!I37793","v":"Select"},{"$f":"Import!I37828","v":0},{"$f":"Import!I37863","v":0},{"$f":"Import!I37899","v":0},{"$f":"Import!I37935","v":0},0,{"$f":"Import!I37971","v":0},0,{"$f":"Import!I38007","v":0},0,{"$f":"Import!I38043","v":0},0,0]
[null,28,{"$f":"Import!I37689","v":0},{"$f":"Import!I37724","v":0},{"$f":"Import!I37759","v":0},{"$f":"Import!I37794","v":"Select"},{"$f":"Import!I37829","v":0},{"$f":"Import!I37864","v":0},{"$f":"Import!I37900","v":0},{"$f":"Import!I37936","v":0},0,{"$f":"Import!I37972","v":0},0,{"$f":"Import!I38008","v":0},0,{"$f":"Import!I38044","v":0},0,0]
[null,29,{"$f":"Import!I37690","v":0},{"$f":"Import!I37725","v":0},{"$f":"Import!I37760","v":0},{"$f":"Import!I37795","v":"Select"},{"$f":"Import!I37830","v":0},{"$f":"Import!I37865","v":0},{"$f":"Import!I37901","v":0},{"$f":"Import!I37937","v":0},0,{"$f":"Import!I37973","v":0},0,{"$f":"Import!I38009","v":0},0,{"$f":"Import!I38045","v":0},0,0]
[null,30,{"$f":"Import!I37691","v":0},{"$f":"Import!I37726","v":0},{"$f":"Import!I37761","v":0},{"$f":"Import!I37796","v":"Select"},{"$f":"Import!I37831","v":0},{"$f":"Import!I37866","v":0},{"$f":"Import!I37902","v":0},{"$f":"Import!I37938","v":0},0,{"$f":"Import!I37974","v":0},0,{"$f":"Import!I38010","v":0},0,{"$f":"Import!I38046","v":0},0,0]
[null,31,{"$f":"Import!I37692","v":0},{"$f":"Import!I37727","v":0},{"$f":"Import!I37762","v":0},{"$f":"Import!I37797","v":"Select"},{"$f":"Import!I37832","v":0},{"$f":"Import!I37867","v":0},{"$f":"Import!I37903","v":0},{"$f":"Import!I37939","v":0},0,{"$f":"Import!I37975","v":0},0,{"$f":"Import!I38011","v":0},0,{"$f":"Import!I38047","v":0},0,0]
[null,32,{"$f":"Import!I37693","v":0},{"$f":"Import!I37728","v":0},{"$f":"Import!I37763","v":0},{"$f":"Import!I37798","v":"Select"},{"$f":"Import!I37833","v":0},{"$f":"Import!I37868","v":0},{"$f":"Import!I37904","v":0},{"$f":"Import!I37940","v":0},0,{"$f":"Import!I37976","v":0},0,{"$f":"Import!I38012","v":0},0,{"$f":"Import!I38048","v":0},0,0]
[null,33,{"$f":"Import!I37694","v":0},{"$f":"Import!I37729","v":0},{"$f":"Import!I37764","v":0},{"$f":"Import!I37799","v":"Select"},{"$f":"Import!I37834","v":0},{"$f":"Import!I37869","v":0},{"$f":"Import!I37905","v":0},{"$f":"Import!I37941","v":0},0,{"$f":"Import!I37977","v":0},0,{"$f":"Import!I38013","v":0},0,{"$f":"Import!I38049","v":0},0,0]
[null,34,{"$f":"Import!I37695","v":0},{"$f":"Import!I37730","v":0},{"$f":"Import!I37765","v":0},{"$f":"Import!I37800","v":"Select"},{"$f":"Import!I37835","v":0},{"$f":"Import!I37870","v":0},{"$f":"Import!I37906","v":0},{"$f":"Import!I37942","v":0},0,{"$f":"Import!I37978","v":0},0,{"$f":"Import!I38014","v":0},0,{"$f":"Import!I38050","v":0},0,0]
[null,35,{"$f":"Import!I37696","v":0},{"$f":"Import!I37731","v":0},{"$f":"Import!I37766","v":0},{"$f":"Import!I37801","v":"Select"},{"$f":"Import!I37836","v":0},{"$f":"Import!I37871","v":0},{"$f":"Import!I37907","v":0},{"$f":"Import!I37943","v":0},0,{"$f":"Import!I37979","v":0},0,{"$f":"Import!I38015","v":0},0,{"$f":"Import!I38051","v":0},0,0]
[null,36,null,null,null,null,null,null,null,null,0,null,0,null,0,null,0,0]
[null,37,null,null,null,null,null,null,null,null,0,null,0,null,0,null,0,0]
[null,38,null,null,null,null,null,null,null,null,0,null,0,null,0,null,0,0]
[null,39,null,null,null,null,null,null,null,null,0,null,0,null,0,null,0,0]
[null,40,null,null,null,null,null,null,null,null,0,null,0,null,0,null,0,0]
[null,null,"Total Exposure By Reinsurer",null,null,null,null,{"$f":"SUM(H13:H52)","v":0},0,0,0,0,0,0,{"$f":"SUM(O13:O52)","v":0},{"$f":"SUM(P13:P52)","v":0},0,{"$f":"SUM(R13:R52)","v":0}]
[]
[null,null,"Exposure by BSCR Rating"]
[null,null,"BSCR Rating 0 (Domestic Affiliates)",null,null,null,null,null,{"$f":"Import!I38053","v":0},{"$f":"Import!I38063","v":0},{"$f":"I56-J56","v":0},{"$f":"Import!I38073","v":0},{"$f":"I56-L56","v":0},null,null,{"$f":"Import!I38083","v":0},{"$f":"IF(P56=0,0,MAX(0,MIN(P56,(K56-L56)/0.98)))","v":0},{"$f":"MAX(0,(K56-L56-Q56*98%))","v":0}]
[null,null,"BSCR Rating 1",null,null,null,null,null,{"$f":"Import!I38054","v":0},{"$f":"Import!I38064","v":0},{"$f":"I57-J57","v":0},{"$f":"Import!I38074","v":0},0,null,null,{"$f":"Import!I38084","v":0},0,{"$f":"MAX(0,(K57-L57-Q57*98%))","v":0}]
[null,null,"BSCR Rating 2",null,null,null,null,null,{"$f":"Import!I38055","v":0},{"$f":"Import!I38065","v":0},0,{"$f":"Import!I38075","v":0},0,null,null,{"$f":"Import!I38085","v":0},0,0]
[null,null,"BSCR Rating 3",null,null,null,null,null,{"$f":"Import!I38056","v":0},{"$f":"Import!I38066","v":0},0,{"$f":"Import!I38076","v":0},0,null,null,{"$f":"Import!I38086","v":0},0,0]
[null,null,"BSCR Rating 4",null,null,null,null,null,{"$f":"Import!I38057","v":0},{"$f":"Import!I38067","v":0},0,{"$f":"Import!I38077","v":0},0,null,null,{"$f":"Import!I38087","v":0},0,0]
[null,null,"BSCR Rating 5",null,null,null,null,null,{"$f":"Import!I38058","v":0},{"$f":"Import!I38068","v":0},0,{"$f":"Import!I38078","v":0},0,null,null,{"$f":"Import!I38088","v":0},0,0]
[null,null,"BSCR Rating 6",null,null,null,null,null,{"$f":"Import!I38059","v":0},{"$f":"Import!I38069","v":0},0,{"$f":"Import!I38079","v":0},0,null,null,{"$f":"Import!I38089","v":0},0,0]
[null,null,"BSCR Rating 7",null,null,null,null,null,{"$f":"Import!I38060","v":0},{"$f":"Import!I38070","v":0},0,{"$f":"Import!I38080","v":0},0,null,null,{"$f":"Import!I38090","v":0},0,0]
[null,null,"BSCR Rating 8",null,null,null,null,null,{"$f":"Import!I38061","v":0},{"$f":"Import!I38071","v":0},0,{"$f":"Import!I38081","v":0},0,null,null,{"$f":"Import!I38091","v":0},0,0]
[null,null,"Total Exposure By BSCR Rating",null,null,null,null,null,{"$f":"SUM(I56:I64)","v":0},{"$f":"SUM(J56:J64)","v":0},{"$f":"SUM(K56:K64)","v":0},{"$f":"SUM(L56:L64)","v":0},{"$f":"SUM(M56:M64)","v":0},null,null,{"$f":"SUM(P56:P64)","v":0},{"$f":"SUM(Q56:Q64)","v":0},{"$f":"SUM(R56:R64)","v":0}]
[]
[null,null,"Single Consolidated Exposure",null,null,null,null,null,{"$f":"'Form 1EBS'!F70+'Form 1EBS'!F75+'Form 1EBS'!F120+'Form 1EBS'!F150-I53-I65","v":0},null,{"$f":"I67-J67","v":0},null,{"$f":"I67-L67","v":0},null,null,null,{"$f":"IF(P67=0,0,MAX(0,MIN(P67,(K67-L67)/0.98)))","v":0},{"$f":"MAX(0,(K67-L67-Q67*98%))","v":0}]
[null,null,"Total Balance Sheet "]
[null,null,null,null,null,null,null,null,{"$f":"'Form 1EBS'!F70+'Form 1EBS'!F75+'Form 1EBS'!F120+'Form 1EBS'!F150","v":0},{"$f":"'Schedule IIA (EBS)'!D74","v":0},{"$f":"I69-J69","v":0},null,{"$f":"M53+M65+M67","v":0},null,null,{"$f":"'Form 1EBS'!F226+'Form 1EBS'!F227+'Form 1EBS'!F228","v":0}]
[]
[null,null,"Total Qualifying Collateral",null,null,null,null,null,null,null,null,null,null,null,null,null,{"$f":"IF(P69=0,0,MAX(0,MIN(P69,(K69)/0.98)))","v":0}]
[]
[null,null,"Total Net Qualifying Exposure",null,null,null,null,null,null,null,null,null,null,null,null,null,null,{"$f":"R53+R65+R67","v":0}]
[]
[null,null,null,null,null,null,null,null,{"$f":"IF(ROUND((I53+I65+I67-I69),0)=0,\"TRUE\",\"FALSE\")","v":"TRUE"},{"$f":"IF(ROUND((J53+J65+J67-J69),0)=0,\"TRUE\",\"FALSE\")","v":"TRUE"},null,null,null,null,null,{"$f":"IF(ROUND((P53+P65+P67-P69),0)=0,\"TRUE\",\"FALSE\")","v":"TRUE"}]
[]
[null,null,"Difference",null,null,null,null,null,{"$f":"ROUND(I69-I53-I65-I67,0)","v":0},{"$f":"ROUND(J69-J53-J65-J67,0)","v":0},null,null,null,null,null,{"$f":"ROUND(P69-P53-P65-P67,0)","v":0}]
[]
[null,null,"Particulars of Reinsurance Balances by BSCR Rating"]
[]
[null,null,null,null,null,null,null,null,"Reinsurance Recoverable","Market Risk","Adjusted Reinsurance Recoverable","Reinsurance Payable",null,null,null,"Collateral","Qualifying Collateral","Net Qualifying Collateral"]
[]
[null,null,"Select"]
[null,null,"BSCR Rating 0 (Domestic Affiliates)",null,null,null,null,null,{"$f":"SUMPRODUCT(I$13:I$52,($F$13:$F$52=$C84)*1)+I56","v":0},0,0,0,null,null,null,{"$f":"SUMPRODUCT(P$13:P$52,($F$13:$F$52=$C84)*1)+P56","v":0},0,0]
[null,null,"BSCR Rating 1",null,null,null,null,null,0,0,0,0,null,null,null,0,0,0]
[null,null,"BSCR Rating 2",null,null,null,null,null,0,0,0,0,null,null,null,0,{"$f":"SUMPRODUCT(Q$13:Q$52,($F$13:$F$52=$C86)*1)+Q58","v":0},0]
[null,null,"BSCR Rating 3",null,null,null,null,null,0,0,0,0,null,null,null,0,0,0]
[null,null,"BSCR Rating 4",null,null,null,null,null,0,0,0,0,null,null,null,0,0,0]
[null,null,"BSCR Rating 5",null,null,null,null,null,0,0,0,0,null,null,null,0,0,0]
[null,null,"BSCR Rating 6",null,null,null,null,null,0,0,0,0,null,null,null,0,0,0]
[null,null,"BSCR Rating 7",null,null,null,null,null,0,0,0,0,null,null,null,0,0,0]
[null,null,"BSCR Rating 8",null,null,null,null,null,{"$f":"SUMPRODUCT(I$13:I$52,($F$13:$F$52=$C92)*1)+I64+I67","v":0},{"$f":"SUMPRODUCT(J$13:J$52,($F$13:$F$52=$C92)*1)+J64+J67","v":0},{"$f":"SUMPRODUCT(K$13:K$52,($F$13:$F$52=$C92)*1)+K64+K67","v":0},{"$f":"SUMPRODUCT(L$13:L$52,($F$13:$F$52=$C92)*1)+L64+L67","v":0},null,null,null,{"$f":"SUMPRODUCT(P$13:P$52,($F$13:$F$52=$C92)*1)+P64+P67","v":0},{"$f":"SUMPRODUCT(Q$13:Q$52,($F$13:$F$52=$C92)*1)+Q64+Q67","v":0},{"$f":"SUMPRODUCT(R$13:R$52,($F$13:$F$52=$C92)*1)+R64+R67","v":0}]
[null,null,"Total",null,null,null,null,null,{"$f":"SUM(I84:I92)","v":0},{"$f":"SUM(J84:J92)","v":0},{"$f":"SUM(K84:K92)","v":0},{"$f":"SUM(L84:L92)","v":0},null,null,null,{"$f":"SUM(P84:P92)","v":0},{"$f":"SUM(Q84:Q92)","v":0},{"$f":"SUM(R84:R92)","v":0}]
[]
[]
[null,null,"Diversification Adjustment Calculation on a Net Qualifying Exposure Basis"]
[]
[null,null,"Maximum Net Qualifying Exposure Balance On a Single Reinsurer Basis",null,null,null,null,null,null,null,null,null,null,null,null,null,null,{"$f":"MAX(R13:R52)","v":0}]
[null,null,"Total Net Qualifying Exposure",null,null,null,null,null,null,null,null,null,null,null,null,null,null,{"$f":"R73","v":0}]
[null,null,"Percentage",null,null,null,null,null,null,null,null,null,null,null,null,null,null,{"$f":"IF(R99=0,0,R98/R99)","v":0}]
[null,null,"Diversification Adjustment up to 40%",null,null,null,null,null,null,null,null,null,null,null,null,null,null,{"$f":"IF(R98=0,0,(1-R100)*40%)","v":0}]

{"sheet":"Schedule XIX","index":90,"n_rows":98,"n_cols":7,"rows_kept":98,"cut":false,"hidden":false,"merged":[[0,2,0,4],[7,2,7,6],[77,2,78,6],[56,2,56,3],[57,2,57,3],[58,2,58,3],[59,2,59,3],[60,2,60,3],[61,2,61,3],[62,2,62,3],[63,2,63,3],[64,2,64,3],[85,2,85,3],[86,2,86,3],[87,2,87,3],[88,2,88,3],[80,2,80,3],[81,2,81,3],[82,2,82,3],[83,2,83,3],[84,2,84,3]]}
[null,null,"SCHEDULE OF RISK MANAGEMENT -  CASH AND CASH EQUIVALENTS COUNTERPARTY ANALYSIS",null,null,null,{"$f":"HYPERLINK(\"#'Index'!A1\",\"Return to Index\")","v":"Return to Index"}]
[null,null,{"$f":"'Group Information'!C9","v":"Enter Parent Company Name"}]
[null,null,{"$f":"'Form 1EBS'!C3","v":"2023-12-31"}]
[null,null,{"$f":"'Form 1EBS'!C4","v":" ['000s]United States Dollars"},null,null,null,"SCHEDULE XIX"]
[]
[null,null,"Cash and cash equivalent countparty balances"]
[]
[null,null,"Enter at Least the 10 Largest Balances for Cash and Cash Equivalents with the Remaining Balances Grouped According to BSCR Ratings and/or a Single Consolidated Cash Balance"]
[]
[null,null,"Enter Number of Balances",null,{"$f":"Import!E38093","v":0}]
[]
[null,null,"Cash and Cash Equivalent Counterparty Balance",null,null,null,"(A)"]
[null,null,"Name of Cash and Cash Equivalent Counterparty Balance",null,"BSCR Rating",null,"Cash and Cash Equivalent Balance\n(Form 1EBS, Line 1 & Schedule IIA Line 27)"]
[null,1,{"$f":"Import!E38094","v":0},null,{"$f":"Import!E38114","v":"Select"},null,{"$f":"Import!E38134","v":0}]
[null,2,{"$f":"Import!E38095","v":0},null,{"$f":"Import!E38115","v":"Select"},null,{"$f":"Import!E38135","v":0}]
[null,3,{"$f":"Import!E38096","v":0},null,{"$f":"Import!E38116","v":"Select"},null,{"$f":"Import!E38136","v":0}]
[null,4,{"$f":"Import!E38097","v":0},null,{"$f":"Import!E38117","v":"Select"},null,{"$f":"Import!E38137","v":0}]
[null,5,{"$f":"Import!E38098","v":0},null,{"$f":"Import!E38118","v":"Select"},null,{"$f":"Import!E38138","v":0}]
[null,6,{"$f":"Import!E38099","v":0},null,{"$f":"Import!E38119","v":"Select"},null,{"$f":"Import!E38139","v":0}]
[null,7,{"$f":"Import!E38100","v":0},null,{"$f":"Import!E38120","v":"Select"},null,{"$f":"Import!E38140","v":0}]
[null,8,{"$f":"Import!E38101","v":0},null,{"$f":"Import!E38121","v":"Select"},null,{"$f":"Import!E38141","v":0}]
[null,9,{"$f":"Import!E38102","v":0},null,{"$f":"Import!E38122","v":"Select"},null,{"$f":"Import!E38142","v":0}]
[null,10,{"$f":"Import!E38103","v":0},null,{"$f":"Import!E38123","v":"Select"},null,{"$f":"Import!E38143","v":0}]
[null,11,{"$f":"Import!E38104","v":0},null,{"$f":"Import!E38124","v":"Select"},null,{"$f":"Import!E38144","v":0}]
[null,12,{"$f":"Import!E38105","v":0},null,{"$f":"Import!E38125","v":"Select"},null,{"$f":"Import!E38145","v":0}]
[null,13,{"$f":"Import!E38106","v":0},null,{"$f":"Import!E38126","v":"Select"},null,{"$f":"Import!E38146","v":0}]
[null,14,{"$f":"Import!E38107","v":0},null,{"$f":"Import!E38127","v":"Select"},null,{"$f":"Import!E38147","v":0}]
[null,15,{"$f":"Import!E38108","v":0},null,{"$f":"Import!E38128","v":"Select"},null,{"$f":"Import!E38148","v":0}]
[null,16,{"$f":"Import!E38109","v":0},null,{"$f":"Import!E38129","v":"Select"},null,{"$f":"Import!E38149","v":0}]
[null,17,{"$f":"Import!E38110","v":0},null,{"$f":"Import!E38130","v":"Select"},null,{"$f":"Import!E38150","v":0}]
[null,18,{"$f":"Import!E38111","v":0},null,{"$f":"Import!E38131","v":"Select"},null,{"$f":"Import!E38151","v":0}]
[null,19,{"$f":"Import!E38112","v":0},null,{"$f":"Import!E38132","v":"Select"},null,{"$f":"Import!E38152","v":0}]
[null,20,{"$f":"Import!E38113","v":0},null,{"$f":"Import!E38133","v":"Select"},null,{"$f":"Import!E38153","v":0}]
[null,21]
[null,22]
[null,23]
[null,24]
[null,25]
[null,26]
[null,27]
[null,28]
[null,29]
[null,30]
[null,31]
[null,32]
[null,33]
[null,34]
[null,35]
[null,36]
[null,37]
[null,38]
[null,39]
[null,40]
[null,null,"Total Cash and Cash Equivalent Counterparty Balance",null,null,null,{"$f":"SUM(G14:G53)","v":0}]
[]
[null,null,"Exposure by BSCR Rating"]
[null,null,"BSCR Rating 0 (Domestic Affiliates)",null,null,null,{"$f":"Import!E38155","v":0}]
[null,null,"BSCR Rating 1",null,null,null,{"$f":"Import!E38156","v":0}]
[null,null,"BSCR Rating 2",null,null,null,{"$f":"Import!E38157","v":0}]
[null,null,"BSCR Rating 3",null,null,null,{"$f":"Import!E38158","v":0}]
[null,null,"BSCR Rating 4",null,null,null,{"$f":"Import!E38159","v":0}]
[null,null,"BSCR Rating 5",null,null,null,{"$f":"Import!E38160","v":0}]
[null,null,"BSCR Rating 6",null,null,null,{"$f":"Import!E38161","v":0}]
[null,null,"BSCR Rating 7",null,null,null,{"$f":"Import!E38162","v":0}]
[null,null,"BSCR Rating 8",null,null,null,{"$f":"Import!E38163","v":0}]
[null,null,"Total Exposure By BSCR Rating",null,null,null,{"$f":"SUM(G57:G65)","v":0}]
[]
[null,null,"Single Consolidated Exposure",null,null,null,{"$f":"+'Form 1EBS'!F10+'Schedule IIA (EBS)'!D68-G54-G66","v":0}]
[]
[null,null,"Total Cash and Cash Equivalent Balance",null,null,null,{"$f":"G54+G66+G68","v":0}]
[]
[null,null,"Cash and Cash Equivalent Check",null,null,null,{"$f":"+'Form 1EBS'!F10+'Schedule IIA (EBS)'!D68","v":0}]
[]
[null,null,null,null,null,null,{"$f":"IF(G75=\"TRUE\",HYPERLINK(\"#'Form 1EBS'!F10\",\"TRUE\"),HYPERLINK(\"#'Form 1EBS'!F10\",\"FALSE\"))","v":"TRUE"}]
[null,null,null,null,null,null,{"$f":"IF(ROUND((G70-G72),0)=0,\"True\",\"False\")","v":"True"}]
[null,null,"Difference",null,null,null,{"$f":"ROUND(G70-G72,0)","v":0}]
[]
[null,null,"Cash and Cash Equivalents Counterparty Balance by BSCR Rating"]
[]
[null,null,"Select",null,null,null,"Cash and Cash Equivalent Exposure"]
[null,null,"BSCR Rating 0 (Domestic Affiliates)",null,null,null,{"$f":"SUMPRODUCT(G$14:G$53,($E$14:$E$53=C81)*1)+G57","v":0}]
[null,null,"BSCR Rating 1",null,null,null,0]
[null,null,"BSCR Rating 2",null,null,null,0]
[null,null,"BSCR Rating 3",null,null,null,0]
[null,null,"BSCR Rating 4",null,null,null,0]
[null,null,"BSCR Rating 5",null,null,null,0]
[null,null,"BSCR Rating 6",null,null,null,0]
[null,null,"BSCR Rating 7",null,null,null,0]
[null,null,"BSCR Rating 8",null,null,null,{"$f":"SUMPRODUCT(G$14:G$53,($E$14:$E$53=C89)*1)+G65+G68","v":0}]
[null,null,"Total",null,null,null,{"$f":"SUM(G81:G89)","v":0}]
[]
[]
[null,null,"Diversification Adjustment Calculation On an Exposure Basis"]
[]
[null,null,"Maximum Cash and Cash Equivalent Counterparty Balance On a Single Exposure Basis",null,null,null,{"$f":"MAX(G14:G53)","v":0}]
[null,null,"Total Cash and Cash Equivalent Counterparty Balance",null,null,null,{"$f":"+G72","v":0}]
[null,null,"Percentage",null,null,null,{"$f":"IF(G96=0,0,G95/G96)","v":0}]
[null,null,"Diversification Adjustment up to 40%",null,null,null,{"$f":"IF(G95=0,0,(1-G97)*40%)","v":0}]

{"sheet":"Schedule XIXA","index":91,"n_rows":98,"n_cols":7,"rows_kept":98,"cut":false,"hidden":false,"merged":[[86,2,86,3],[87,2,87,3],[88,2,88,3],[80,2,80,3],[81,2,81,3],[82,2,82,3],[83,2,83,3],[84,2,84,3],[85,2,85,3],[77,2,78,6],[0,2,0,4],[7,2,7,6],[56,2,56,3],[57,2,57,3],[58,2,58,3],[59,2,59,3],[60,2,60,3],[61,2,61,3],[62,2,62,3],[63,2,63,3],[64,2,64,3]]}
[null,null,"SCHEDULE OF RISK MANAGEMENT -  CASH AND CASH EQUIVALENTS COUNTERPARTY ANALYSIS",null,null,null,{"$f":"HYPERLINK(\"#'Index'!A1\",\"Return to Index\")","v":"Return to Index"}]
[null,null,{"$f":"'Group Information'!C9","v":"Enter Parent Company Name"}]
[null,null,{"$f":"'Form 1EBS'!C3","v":"2023-12-31"}]
[null,null,{"$f":"'Form 1EBS'!C4","v":" ['000s]United States Dollars"},null,null,null,"SCHEDULE XIXA"]
[]
[null,null,"Cash and cash equivalent countparty balances"]
[]
[null,null,"Enter at Least the 10 Largest Balances for Cash and Cash Equivalents with the Remaining Balances Grouped According to BSCR Ratings and/or a Single Consolidated Cash Balance"]
[]
[null,null,"Enter Number of Balances",null,{"$f":"Import!I41712","v":0}]
[]
[null,null,"Cash and Cash Equivalent Counterparty Balance",null,null,null,"(A)"]
[null,null,"Name of Cash and Cash Equivalent Counterparty Balance",null,"BSCR Rating",null,"Cash and Cash Equivalent Balance\n(Form 1EBS Line 1 & Schedule IIB-IIF Line 58)"]
[null,1,{"$f":"Import!I41713","v":0},null,{"$f":"Import!I41733","v":"Select"},null,{"$f":"Import!I41753","v":0}]
[null,2,{"$f":"Import!I41714","v":0},null,{"$f":"Import!I41734","v":"Select"},null,{"$f":"Import!I41754","v":0}]
[null,3,{"$f":"Import!I41715","v":0},null,{"$f":"Import!I41735","v":"Select"},null,{"$f":"Import!I41755","v":0}]
[null,4,{"$f":"Import!I41716","v":0},null,{"$f":"Import!I41736","v":"Select"},null,{"$f":"Import!I41756","v":0}]
[null,5,{"$f":"Import!I41717","v":0},null,{"$f":"Import!I41737","v":"Select"},null,{"$f":"Import!I41757","v":0}]
[null,6,{"$f":"Import!I41718","v":0},null,{"$f":"Import!I41738","v":"Select"},null,{"$f":"Import!I41758","v":0}]
[null,7,{"$f":"Import!I41719","v":0},null,{"$f":"Import!I41739","v":"Select"},null,{"$f":"Import!I41759","v":0}]
[null,8,{"$f":"Import!I41720","v":0},null,{"$f":"Import!I41740","v":"Select"},null,{"$f":"Import!I41760","v":0}]
[null,9,{"$f":"Import!I41721","v":0},null,{"$f":"Import!I41741","v":"Select"},null,{"$f":"Import!I41761","v":0}]
[null,10,{"$f":"Import!I41722","v":0},null,{"$f":"Import!I41742","v":"Select"},null,{"$f":"Import!I41762","v":0}]
[null,11,{"$f":"Import!I41723","v":0},null,{"$f":"Import!I41743","v":"Select"},null,{"$f":"Import!I41763","v":0}]
[null,12,{"$f":"Import!I41724","v":0},null,{"$f":"Import!I41744","v":"Select"},null,{"$f":"Import!I41764","v":0}]
[null,13,{"$f":"Import!I41725","v":0},null,{"$f":"Import!I41745","v":"Select"},null,{"$f":"Import!I41765","v":0}]
[null,14,{"$f":"Import!I41726","v":0},null,{"$f":"Import!I41746","v":"Select"},null,{"$f":"Import!I41766","v":0}]
[null,15,{"$f":"Import!I41727","v":0},null,{"$f":"Import!I41747","v":"Select"},null,{"$f":"Import!I41767","v":0}]
[null,16,{"$f":"Import!I41728","v":0},null,{"$f":"Import!I41748","v":"Select"},null,{"$f":"Import!I41768","v":0}]
[null,17,{"$f":"Import!I41729","v":0},null,{"$f":"Import!I41749","v":"Select"},null,{"$f":"Import!I41769","v":0}]
[null,18,{"$f":"Import!I41730","v":0},null,{"$f":"Import!I41750","v":"Select"},null,{"$f":"Import!I41770","v":0}]
[null,19,{"$f":"Import!I41731","v":0},null,{"$f":"Import!I41751","v":"Select"},null,{"$f":"Import!I41771","v":0}]
[null,20,{"$f":"Import!I41732","v":0},null,{"$f":"Import!I41752","v":"Select"},null,{"$f":"Import!I41772","v":0}]
[null,21]
[null,22]
[null,23]
[null,24]
[null,25]
[null,26]
[null,27]
[null,28]
[null,29]
[null,30]
[null,31]
[null,32]
[null,33]
[null,34]
[null,35]
[null,36]
[null,37]
[null,38]
[null,39]
[null,40]
[null,null,"Total Cash and Cash Equivalent Counterparty Balance",null,null,null,{"$f":"SUM(G14:G53)","v":0}]
[]
[null,null,"Exposure by BSCR Rating"]
[null,null,"BSCR Rating 0 (Domestic Affiliates)",null,null,null,{"$f":"Import!I41774","v":0}]
[null,null,"BSCR Rating 1",null,null,null,{"$f":"Import!I41775","v":0}]
[null,null,"BSCR Rating 2",null,null,null,{"$f":"Import!I41776","v":0}]
[null,null,"BSCR Rating 3",null,null,null,{"$f":"Import!I41777","v":0}]
[null,null,"BSCR Rating 4",null,null,null,{"$f":"Import!I41778","v":0}]
[null,null,"BSCR Rating 5",null,null,null,{"$f":"Import!I41779","v":0}]
[null,null,"BSCR Rating 6",null,null,null,{"$f":"Import!I41780","v":0}]
[null,null,"BSCR Rating 7",null,null,null,{"$f":"Import!I41781","v":0}]
[null,null,"BSCR Rating 8",null,null,null,{"$f":"Import!I41782","v":0}]
[null,null,"Total Exposure By BSCR Rating",null,null,null,{"$f":"SUM(G57:G65)","v":0}]
[]
[null,null,"Single Consolidated Exposure",null,null,null,{"$f":"'Form 1EBS'!F10+'Schedule IIB (EBS)'!D95+'Schedule IIC (EBS)'!D95+'Schedule IID (EBS)'!D95+'Schedule IIE (EBS)'!D95+'Schedule IIF (EBS)'!D95-G54-G66","v":0}]
[]
[null,null,"Total Cash and Cash Equivalent Balance",null,null,null,{"$f":"G54+G66+G68","v":0}]
[]
[null,null,"Cash and Cash Equivalent Check",null,null,null,{"$f":"'Form 1EBS'!F10+'Schedule IIB (EBS)'!D95+'Schedule IIC (EBS)'!D95+'Schedule IID (EBS)'!D95+'Schedule IIE (EBS)'!D95+'Schedule IIF (EBS)'!D95","v":0}]
[]
[null,null,null,null,null,null,{"$f":"IF(ROUND((G70-G72),0)=0,\"True\",\"False\")","v":"True"}]
[]
[null,null,"Difference",null,null,null,{"$f":"G70-G72","v":0}]
[]
[null,null,"Cash and Cash Equivalents Counterparty Balance by BSCR Rating"]
[]
[null,null,"Select",null,null,null,"Cash and Cash Equivalent Exposure"]
[null,null,"BSCR Rating 0 (Domestic Affiliates)",null,null,null,{"$f":"SUMPRODUCT(G$14:G$53,($E$14:$E$53=C81)*1)+G57","v":0}]
[null,null,"BSCR Rating 1",null,null,null,0]
[null,null,"BSCR Rating 2",null,null,null,0]
[null,null,"BSCR Rating 3",null,null,null,0]
[null,null,"BSCR Rating 4",null,null,null,0]
[null,null,"BSCR Rating 5",null,null,null,0]
[null,null,"BSCR Rating 6",null,null,null,0]
[null,null,"BSCR Rating 7",null,null,null,0]
[null,null,"BSCR Rating 8",null,null,null,{"$f":"SUMPRODUCT(G$14:G$53,($E$14:$E$53=C89)*1)+G65+G68","v":0}]
[null,null,"Total",null,null,null,{"$f":"SUM(G81:G89)","v":0}]
[]
[]
[null,null,"Diversification Adjustment Calculation On an Exposure Basis"]
[]
[null,null,"Maximum Cash and Cash Equivalent Counterparty Balance On a Single Exposure Basis",null,null,null,{"$f":"MAX(G14:G53)","v":0}]
[null,null,"Total Cash and Cash Equivalent Counterparty Balance",null,null,null,{"$f":"+G72","v":0}]
[null,null,"Percentage",null,null,null,{"$f":"IF(G96=0,0,G95/G96)","v":0}]
[null,null,"Diversification Adjustment up to 40%",null,null,null,{"$f":"IF(G95=0,0,(1-G97)*40%)","v":0}]

{"sheet":"Schedule XX","index":92,"n_rows":38,"n_cols":13,"rows_kept":38,"cut":false,"hidden":false,"merged":[]}
[null,null,"SCHEDULE OF CURRENCY RISK",null,null,null,null,null,null,null,null,null,{"$f":"HYPERLINK(\"#'Index'!A1\",\"Return to Index\")","v":"Return to Index"}]
[null,null,{"$f":"'Group Information'!C9","v":"Enter Parent Company Name"}]
[null,null,{"$f":"'Form 1EBS'!C3","v":"2023-12-31"},null,null,null,null,null,null,null,null,null,"SCHEDULE XX"]
[null,null,{"$f":"'Form 1EBS'!C4","v":" ['000s]United States Dollars"}]
[]
[null,null,"(A)",null,"(B)",null,"(C)",null,"(D)",null,"(E)",null,"(F)"]
[null,null,"Currency",null,"Assets",null,"Assets with Hedging Arrangements",null,"Liabilities",null,"Liabilities with Hedging Arrangements",null,"Net Asset Value"]
[]
[null,null,"US Dollar",null,{"$f":"Import!E38164","v":0},null,{"$f":"Import!E38180","v":0},null,{"$f":"Import!E38196","v":0},null,{"$f":"Import!E38212","v":0},null,{"$f":"E9-I9","v":0}]
[null,null,"Euro",null,{"$f":"Import!E38165","v":0},null,{"$f":"Import!E38181","v":0},null,{"$f":"Import!E38197","v":0},null,{"$f":"Import!E38213","v":0},null,0]
[null,null,"GBP",null,{"$f":"Import!E38166","v":0},null,{"$f":"Import!E38182","v":0},null,{"$f":"Import!E38198","v":0},null,{"$f":"Import!E38214","v":0},null,0]
[null,null,"CAD$",null,{"$f":"Import!E38167","v":0},null,{"$f":"Import!E38183","v":0},null,{"$f":"Import!E38199","v":0},null,{"$f":"Import!E38215","v":0},null,0]
[null,null,"YEN",null,{"$f":"Import!E38168","v":0},null,{"$f":"Import!E38184","v":0},null,{"$f":"Import!E38200","v":0},null,{"$f":"Import!E38216","v":0},null,0]
[null,null,"Other currency 1",null,{"$f":"Import!E38169","v":0},null,{"$f":"Import!E38185","v":0},null,{"$f":"Import!E38201","v":0},null,{"$f":"Import!E38217","v":0},null,0]
[null,null,"Other currency 2",null,{"$f":"Import!E38170","v":0},null,{"$f":"Import!E38186","v":0},null,{"$f":"Import!E38202","v":0},null,{"$f":"Import!E38218","v":0},null,0]
[null,null,"Other currency 3",null,{"$f":"Import!E38171","v":0},null,{"$f":"Import!E38187","v":0},null,{"$f":"Import!E38203","v":0},null,{"$f":"Import!E38219","v":0},null,0]
[null,null,"Other currency 4",null,{"$f":"Import!E38172","v":0},null,{"$f":"Import!E38188","v":0},null,{"$f":"Import!E38204","v":0},null,{"$f":"Import!E38220","v":0},null,0]
[null,null,"Other currency 5",null,{"$f":"Import!E38173","v":0},null,{"$f":"Import!E38189","v":0},null,{"$f":"Import!E38205","v":0},null,{"$f":"Import!E38221","v":0},null,0]
[null,null,"Other currency 6",null,{"$f":"Import!E38174","v":0},null,{"$f":"Import!E38190","v":0},null,{"$f":"Import!E38206","v":0},null,{"$f":"Import!E38222","v":0},null,0]
[null,null,"Other currency 7",null,{"$f":"Import!E38175","v":0},null,{"$f":"Import!E38191","v":0},null,{"$f":"Import!E38207","v":0},null,{"$f":"Import!E38223","v":0},null,0]
[null,null,"Other currency 8",null,{"$f":"Import!E38176","v":0},null,{"$f":"Import!E38192","v":0},null,{"$f":"Import!E38208","v":0},null,{"$f":"Import!E38224","v":0},null,0]
[null,null,"Other currency 9",null,{"$f":"Import!E38177","v":0},null,{"$f":"Import!E38193","v":0},null,{"$f":"Import!E38209","v":0},null,{"$f":"Import!E38225","v":0},null,0]
[null,null,"Other currency 10",null,{"$f":"Import!E38178","v":0},null,{"$f":"Import!E38194","v":0},null,{"$f":"Import!E38210","v":0},null,{"$f":"Import!E38226","v":0},null,0]
[null,null,"Currency Total",null,{"$f":"SUM(E9:E23)","v":0},null,{"$f":"SUM(G9:G23)","v":0},null,{"$f":"SUM(I9:I23)","v":0},null,{"$f":"SUM(K9:K23)","v":0},null,{"$f":"SUM(M9:M23)","v":0}]
[]
[null,null,null,null,"Form 1EBS Line 15",null,null,null,"Form 1EBS Line 39"]
[null,null,"Balance Sheet Total",null,{"$f":"+'Form 1EBS'!F96","v":0},null,null,null,{"$f":"+'Form 1EBS'!F210","v":0}]
[null,null,"% of Balance Sheet Total",null,{"$f":"IF(E27=0,0,E24/E27)","v":0},null,null,null,{"$f":"IF(I27=0,0,I24/I27)","v":0}]
[]
[null,null,"95% Minimum Test Met",null,{"$f":"IF(E27=0,\"Form 1EBS is Blank\",IF(E28<=95%,\"False\",IF(E28>100%,\"False\",\"True\")))","v":"Form 1EBS is Blank"},null,null,null,{"$f":"IF(I27=0,\"Form 1EBS is Blank\",IF(I28<=95%,\"False\",IF(I28>100%,\"False\",\"True\")))","v":"Form 1EBS is Blank"}]
[]
[null,null,null,null,"Liabilities",null,"ECR Charge",null,"Ratio",null,"Assessment*"]
[null,null,null,null,"Form 1EBS, Line 39",null,"Summary tab"]
[null,null,{"$f":"+'Form 1'!H7","v":"2022-12-31"},null,{"$f":"Import!E38228","v":0},null,{"$f":"Import!E38231","v":0},null,{"$f":"IF(G34=0,\"\",G34/E34)","v":""}]
[null,null,{"$f":"DATE(YEAR(C34)-1,MONTH(C34),DAY(C34))","v":"2021-12-31"},null,{"$f":"Import!E38229","v":0},null,{"$f":"Import!E38232","v":0},null,{"$f":"IF(G35=0,\"\",G35/E35)","v":""}]
[null,null,{"$f":"DATE(YEAR(C35)-1,MONTH(C35),DAY(C35))","v":"2020-12-31"},null,{"$f":"Import!E38230","v":0},null,{"$f":"Import!E38233","v":0},null,{"$f":"IF(G36=0,\"\",G36/E36)","v":""},null,{"$f":"IF(SUM(I34:I36)=0,IF(G34=0,0%,I34),MAX(,I34,AVERAGE(I34:I36)))","v":0}]
[]
[null,null,"*If there are no amounts for previous years, enter the results from the current year without taking currency risk into account into the prior year"]

{"sheet":"Schedule XXA","index":93,"n_rows":47,"n_cols":34,"rows_kept":47,"cut":false,"hidden":false,"merged":[[4,3,4,33],[5,3,5,14],[5,21,5,33],[6,5,6,7],[6,9,6,11],[6,23,6,25],[6,27,6,29]]}
[null,"SCHEDULE OF CURRENCY RISK",null,null,null,null,null,null,null,null,null,null,null,null,null,null,null,null,null,null,null,null,null,null,null,null,null,null,null,null,null,null,null,{"$f":"HYPERLINK(\"#'Index'!A1\",\"Return to Index\")","v":"Return to Index"}]
[null,{"$f":"'Group Information'!C9","v":"Enter Parent Company Name"}]
[null,{"$f":"'Form 1EBS'!C3","v":"2023-12-31"},null,null,null,null,null,null,null,null,null,null,null,null,null,null,null,null,null,null,null,null,null,null,null,null,null,null,null,null,null,null,null,"SCHEDULE XXA"]
[null,{"$f":"'Form 1EBS'!C4","v":" ['000s]United States Dollars"}]
[null,null,null,"EBS Valuation"]
[null,null,null,"MARKET VALUE BEFORE SHOCK",null,null,null,null,null,null,null,null,null,null,null,null,null,null,null,null,null,"MARKET VALUE AFTER SHOCK"]
[null,null,null,null,null,"Long Exposures",null,null,null,"Short Exposures",null,null,null,null,null,null,null,null,null,null,null,null,null,"Long Exposures",null,null,null,"Short Exposures"]
[null,"Currency",null,"Assets - Excluding currency- derivatives",null,"Currency Derivatives Qualifying as held for risk-mitigation purposes",null,"Currency Derivatives Not Qualifying as held for risk-mitigation purposes",null,"Currency Derivatives Qualifying as held for risk-mitigation purposes",null,"Currency Derivatives Not Qualifying as held for risk-mitigation purposes",null,"Best Estimate Liabilities without Management Actions",null,"Proxy BSCR",null,"Surplus Assets",null,"Shock",null,"Assets - Excluding currency- derivatives",null,"Currency Derivatives Qualifying as held for risk-mitigation purposes",null,"Currency Derivatives Not Qualifying as held for risk-mitigation purposes",null,"Currency Derivatives Qualifying as held for risk-mitigation purposes",null,"Currency Derivatives Not Qualifying as held for risk-mitigation purposes",null,"Best Estimate Liabilities without Management Actions",null,"Best Estimate Liabilities with Management Actions"]
[null,null,null,"(A)",null,"(B)",null,"(C)",null,"(D)",null,"(E)",null,"(F)",null,null,null,null,null,null,null,"(G)",null,"(H)",null,"(I)",null,"(J)",null,"(K)",null,"(L)",null,"(M)"]
[null,"US Dollar",null,{"$f":"Import!I41794","v":0},null,{"$f":"Import!I41817","v":0},null,{"$f":"Import!I41840","v":0},null,{"$f":"Import!I41863","v":0},null,{"$f":"Import!I41886","v":0},null,{"$f":"Import!I41909","v":0},null,{"$f":"$P$45*N10","v":0},null,{"$f":"D10+F10+H10+J10+L10-N10-P10","v":0},null,0,null,{"$f":"IF(OR(Import!I41932=0,Import!I41932=\"\"),(1+T10)*D10,Import!I41932)","v":0},null,{"$f":"Import!I41955","v":0},null,{"$f":"Import!I41978","v":0},null,{"$f":"Import!I42001","v":0},null,{"$f":"Import!I42024","v":0},null,{"$f":"IF(OR(Import!I42047=0,Import!I42047=\"\"),(1+T10)*N10,Import!I42047)","v":0},null,{"$f":"IF(OR(Import!I42070=0,Import!I42070=\"\"),AF10,Import!I42070)","v":0}]
[null,"Bermuda Dollars",null,{"$f":"Import!I41795","v":0},null,{"$f":"Import!I41818","v":0},null,{"$f":"Import!I41841","v":0},null,{"$f":"Import!I41864","v":0},null,{"$f":"Import!I41887","v":0},null,{"$f":"Import!I41910","v":0},null,{"$f":"$P$45*N11","v":0},null,{"$f":"D11+F11+H11+J11+L11-N11-P11","v":0},null,{"$f":"IF($B$10=\"Bermuda Dollars\",0%,IF($B$10=\"United States Dollars\",0%,IF((D11+F11+H11+J11+L11)>(N11+P11),0%,25%)))","v":0.25},null,{"$f":"IF(OR(Import!I41933=0,Import!I41933=\"\"),(1+T11)*D11,Import!I41933)","v":0},null,{"$f":"Import!I41956","v":0},null,{"$f":"Import!I41979","v":0},null,{"$f":"Import!I42002","v":0},null,{"$f":"Import!I42025","v":0},null,{"$f":"IF(OR(Import!I42048=0,Import!I42048=\"\"),(1+T11)*N11,Import!I42048)","v":0},null,{"$f":"IF(OR(Import!I42071=0,Import!I42071=\"\"),AF11,Import!I42071)","v":0}]
[null,"Qatari Riyals",null,{"$f":"Import!I41796","v":0},null,{"$f":"Import!I41819","v":0},null,{"$f":"Import!I41842","v":0},null,{"$f":"Import!I41865","v":0},null,{"$f":"Import!I41888","v":0},null,{"$f":"Import!I41911","v":0},null,0,null,0,null,{"$f":"IF($B$10=\"Qatar Riyals\",IF((D12+F12+H12+J12+L12)>(N12+P12),0%,5%),IF($B$10=\"United States Dollars\",IF((D12+F12+H12+J12+L12)>(N12+P12),0%,5%),IF((D12+F12+H12+J12+L12)>(N12+P12),0%,25%)))","v":0.25},null,{"$f":"IF(OR(Import!I41934=0,Import!I41934=\"\"),(1+T12)*D12,Import!I41934)","v":0},null,{"$f":"Import!I41957","v":0},null,{"$f":"Import!I41980","v":0},null,{"$f":"Import!I42003","v":0},null,{"$f":"Import!I42026","v":0},null,{"$f":"IF(OR(Import!I42049=0,Import!I42049=\"\"),(1+T12)*N12,Import!I42049)","v":0},null,{"$f":"IF(OR(Import!I42072=0,Import!I42072=\"\"),AF12,Import!I42072)","v":0}]
[null,"Hong Kong",null,{"$f":"Import!I41797","v":0},null,{"$f":"Import!I41820","v":0},null,{"$f":"Import!I41843","v":0},null,{"$f":"Import!I41866","v":0},null,{"$f":"Import!I41889","v":0},null,{"$f":"Import!I41912","v":0},null,0,null,0,null,{"$f":"IF($B$10=\"Hong Kong Dollars\",IF((D13+F13+H13+J13+L13)>(N13+P13),0%,1%),IF($B$10=\"United States Dollars\",IF((D13+F13+H13+J13+L13)>(N13+P13),0%,1%),IF((D13+F13+H13+J13+L13)>(N13+P13),0%,25%)))","v":0.25},null,{"$f":"IF(OR(Import!I41935=0,Import!I41935=\"\"),(1+T13)*D13,Import!I41935)","v":0},null,{"$f":"Import!I41958","v":0},null,{"$f":"Import!I41981","v":0},null,{"$f":"Import!I42004","v":0},null,{"$f":"Import!I42027","v":0},null,{"$f":"IF(OR(Import!I42050=0,Import!I42050=\"\"),(1+T13)*N13,Import!I42050)","v":0},null,{"$f":"IF(OR(Import!I42073=0,Import!I42073=\"\"),AF13,Import!I42073)","v":0}]
[null,"Euro",null,{"$f":"Import!I41798","v":0},null,{"$f":"Import!I41821","v":0},null,{"$f":"Import!I41844","v":0},null,{"$f":"Import!I41867","v":0},null,{"$f":"Import!I41890","v":0},null,{"$f":"Import!I41913","v":0},null,0,null,0,null,{"$f":"IF($B$10=\"Denmark Kroner\",IF((D14+F14+H14+J14+L14)>(N14+P14),0%,0.39%),IF($B$10=\"Bulgaria Leva\",IF((D14+F14+H14+J14+L14)>(N14+P14),0%,1.81%),IF($B$10=\"West African CFA Francs\",IF((D14+F14+H14+J14+L14)>(N14+P14),0%,2.18%),IF($B$10=\"Central African CFA Francs\",IF((D14+F14+H14+J14+L14)>(N14+P14),0%,1.96%),IF($B$10=\"Comorian Francs\",IF((D14+F14+H14+J14+L14)>(N14+P14),0%,2%),IF((D14+F14+H14+J14+L14)>(N14+P14),0%,25%))))))","v":0.25},null,{"$f":"IF(OR(Import!I41936=0,Import!I41936=\"\"),(1+T14)*D14,Import!I41936)","v":0},null,{"$f":"Import!I41959","v":0},null,{"$f":"Import!I41982","v":0},null,{"$f":"Import!I42005","v":0},null,{"$f":"Import!I42028","v":0},null,{"$f":"IF(OR(Import!I42051=0,Import!I42051=\"\"),(1+T14)*N14,Import!I42051)","v":0},null,{"$f":"IF(OR(Import!I42074=0,Import!I42074=\"\"),AF14,Import!I42074)","v":0}]
[null,"Danish Krones",null,{"$f":"Import!I41799","v":0},null,{"$f":"Import!I41822","v":0},null,{"$f":"Import!I41845","v":0},null,{"$f":"Import!I41868","v":0},null,{"$f":"Import!I41891","v":0},null,{"$f":"Import!I41914","v":0},null,0,null,0,null,{"$f":"IF($B$10=\"Euro\",IF((D15+F15+H15+J15+L15)>(N15+P15),0%,0.39%),IF((D15+F15+H15+J15+L15)>(N15+P15),0%,25%))","v":0.25},null,{"$f":"IF(OR(Import!I41937=0,Import!I41937=\"\"),(1+T15)*D15,Import!I41937)","v":0},null,{"$f":"Import!I41960","v":0},null,{"$f":"Import!I41983","v":0},null,{"$f":"Import!I42006","v":0},null,{"$f":"Import!I42029","v":0},null,{"$f":"IF(OR(Import!I42052=0,Import!I42052=\"\"),(1+T15)*N15,Import!I42052)","v":0},null,{"$f":"IF(OR(Import!I42075=0,Import!I42075=\"\"),AF15,Import!I42075)","v":0}]
[null,"Bulgarian Levs",null,{"$f":"Import!I41800","v":0},null,{"$f":"Import!I41823","v":0},null,{"$f":"Import!I41846","v":0},null,{"$f":"Import!I41869","v":0},null,{"$f":"Import!I41892","v":0},null,{"$f":"Import!I41915","v":0},null,0,null,0,null,{"$f":"IF($B$10=\"Euro\",IF((D16+F16+H16+J16+L16)>(N16+P16),0%,1.81%),IF((D16+F16+H16+J16+L16)>(N16+P16),0%,25%))","v":0.25},null,{"$f":"IF(OR(Import!I41938=0,Import!I41938=\"\"),(1+T16)*D16,Import!I41938)","v":0},null,{"$f":"Import!I41961","v":0},null,{"$f":"Import!I41984","v":0},null,{"$f":"Import!I42007","v":0},null,{"$f":"Import!I42030","v":0},null,{"$f":"IF(OR(Import!I42053=0,Import!I42053=\"\"),(1+T16)*N16,Import!I42053)","v":0},null,{"$f":"IF(OR(Import!I42076=0,Import!I42076=\"\"),AF16,Import!I42076)","v":0}]
[null,"West African CFA Francs",null,{"$f":"Import!I41801","v":0},null,{"$f":"Import!I41824","v":0},null,{"$f":"Import!I41847","v":0},null,{"$f":"Import!I41870","v":0},null,{"$f":"Import!I41893","v":0},null,{"$f":"Import!I41916","v":0},null,0,null,0,null,{"$f":"IF($B$10=\"Euro\",IF((D17+F17+H17+J17+L17)>(N17+P17),0%,2.18%),IF((D17+F17+H17+J17+L17)>(N17+P17),0%,25%))","v":0.25},null,{"$f":"IF(OR(Import!I41939=0,Import!I41939=\"\"),(1+T17)*D17,Import!I41939)","v":0},null,{"$f":"Import!I41962","v":0},null,{"$f":"Import!I41985","v":0},null,{"$f":"Import!I42008","v":0},null,{"$f":"Import!I42031","v":0},null,{"$f":"IF(OR(Import!I42054=0,Import!I42054=\"\"),(1+T17)*N17,Import!I42054)","v":0},null,{"$f":"IF(OR(Import!I42077=0,Import!I42077=\"\"),AF17,Import!I42077)","v":0}]
[null,"Central African CFA Francs",null,{"$f":"Import!I41802","v":0},null,{"$f":"Import!I41825","v":0},null,{"$f":"Import!I41848","v":0},null,{"$f":"Import!I41871","v":0},null,{"$f":"Import!I41894","v":0},null,{"$f":"Import!I41917","v":0},null,0,null,0,null,{"$f":"IF($B$10=\"Euro\",IF((D18+F18+H18+J18+L18)>(N18+P18),0%,1.96%),IF((D18+F18+H18+J18+L18)>(N18+P18),0%,25%))","v":0.25},null,{"$f":"IF(OR(Import!I41940=0,Import!I41940=\"\"),(1+T18)*D18,Import!I41940)","v":0},null,{"$f":"Import!I41963","v":0},null,{"$f":"Import!I41986","v":0},null,{"$f":"Import!I42009","v":0},null,{"$f":"Import!I42032","v":0},null,{"$f":"IF(OR(Import!I42055=0,Import!I42055=\"\"),(1+T18)*N18,Import!I42055)","v":0},null,{"$f":"IF(OR(Import!I42078=0,Import!I42078=\"\"),AF18,Import!I42078)","v":0}]
[null,"Comorian Francs",null,{"$f":"Import!I41803","v":0},null,{"$f":"Import!I41826","v":0},null,{"$f":"Import!I41849","v":0},null,{"$f":"Import!I41872","v":0},null,{"$f":"Import!I41895","v":0},null,{"$f":"Import!I41918","v":0},null,0,null,0,null,{"$f":"IF($B$10=\"Euro\",IF((D19+F19+H19+J19+L19)>(N19+P19),0%,2%),IF((D19+F19+H19+J19+L19)>(N19+P19),0%,25%))","v":0.25},null,{"$f":"IF(OR(Import!I41941=0,Import!I41941=\"\"),(1+T19)*D19,Import!I41941)","v":0},null,{"$f":"Import!I41964","v":0},null,{"$f":"Import!I41987","v":0},null,{"$f":"Import!I42010","v":0},null,{"$f":"Import!I42033","v":0},null,{"$f":"IF(OR(Import!I42056=0,Import!I42056=\"\"),(1+T19)*N19,Import!I42056)","v":0},null,{"$f":"IF(OR(Import!I42079=0,Import!I42079=\"\"),AF19,Import!I42079)","v":0}]
[null,"GBP",null,{"$f":"Import!I41804","v":0},null,{"$f":"Import!I41827","v":0},null,{"$f":"Import!I41850","v":0},null,{"$f":"Import!I41873","v":0},null,{"$f":"Import!I41896","v":0},null,{"$f":"Import!I41919","v":0},null,{"$f":"$P$45*N20","v":0},null,{"$f":"D20+F20+H20+J20+L20-N20-P20","v":0},null,{"$f":"IF((D20+F20+H20+J20+L20)>(N20+P20),0%,25%)","v":0.25},null,{"$f":"IF(OR(Import!I41942=0,Import!I41942=\"\"),(1+T20)*D20,Import!I41942)","v":0},null,{"$f":"Import!I41965","v":0},null,{"$f":"Import!I41988","v":0},null,{"$f":"Import!I42011","v":0},null,{"$f":"Import!I42034","v":0},null,{"$f":"IF(OR(Import!I42057=0,Import!I42057=\"\"),(1+T20)*N20,Import!I42057)","v":0},null,{"$f":"IF(OR(Import!I42080=0,Import!I42080=\"\"),AF20,Import!I42080)","v":0}]
[null,"CAD$",null,{"$f":"Import!I41805","v":0},null,{"$f":"Import!I41828","v":0},null,{"$f":"Import!I41851","v":0},null,{"$f":"Import!I41874","v":0},null,{"$f":"Import!I41897","v":0},null,{"$f":"Import!I41920","v":0},null,0,null,0,null,{"$f":"IF((D21+F21+H21+J21+L21)>(N21+P21),0%,25%)","v":0.25},null,{"$f":"IF(OR(Import!I41943=0,Import!I41943=\"\"),(1+T21)*D21,Import!I41943)","v":0},null,{"$f":"Import!I41966","v":0},null,{"$f":"Import!I41989","v":0},null,{"$f":"Import!I42012","v":0},null,{"$f":"Import!I42035","v":0},null,{"$f":"IF(OR(Import!I42058=0,Import!I42058=\"\"),(1+T21)*N21,Import!I42058)","v":0},null,{"$f":"IF(OR(Import!I42081=0,Import!I42081=\"\"),AF21,Import!I42081)","v":0}]
[null,"YEN",null,{"$f":"Import!I41806","v":0},null,{"$f":"Import!I41829","v":0},null,{"$f":"Import!I41852","v":0},null,{"$f":"Import!I41875","v":0},null,{"$f":"Import!I41898","v":0},null,{"$f":"Import!I41921","v":0},null,0,null,0,null,0.25,null,{"$f":"IF(OR(Import!I41944=0,Import!I41944=\"\"),(1+T22)*D22,Import!I41944)","v":0},null,{"$f":"Import!I41967","v":0},null,{"$f":"Import!I41990","v":0},null,{"$f":"Import!I42013","v":0},null,{"$f":"Import!I42036","v":0},null,{"$f":"IF(OR(Import!I42059=0,Import!I42059=\"\"),(1+T22)*N22,Import!I42059)","v":0},null,{"$f":"IF(OR(Import!I42082=0,Import!I42082=\"\"),AF22,Import!I42082)","v":0}]
[null,{"$f":"Import!I41784","v":"Other currency 1"},null,{"$f":"Import!I41807","v":0},null,{"$f":"Import!I41830","v":0},null,{"$f":"Import!I41853","v":0},null,{"$f":"Import!I41876","v":0},null,{"$f":"Import!I41899","v":0},null,{"$f":"Import!I41922","v":0},null,0,null,0,null,0.25,null,{"$f":"IF(OR(Import!I41945=0,Import!I41945=\"\"),(1+T23)*D23,Import!I41945)","v":0},null,{"$f":"Import!I41968","v":0},null,{"$f":"Import!I41991","v":0},null,{"$f":"Import!I42014","v":0},null,{"$f":"Import!I42037","v":0},null,{"$f":"IF(OR(Import!I42060=0,Import!I42060=\"\"),(1+T23)*N23,Import!I42060)","v":0},null,{"$f":"IF(OR(Import!I42083=0,Import!I42083=\"\"),AF23,Import!I42083)","v":0}]
[null,{"$f":"Import!I41785","v":"Other currency 2"},null,{"$f":"Import!I41808","v":0},null,{"$f":"Import!I41831","v":0},null,{"$f":"Import!I41854","v":0},null,{"$f":"Import!I41877","v":0},null,{"$f":"Import!I41900","v":0},null,{"$f":"Import!I41923","v":0},null,0,null,0,null,0.25,null,{"$f":"IF(OR(Import!I41946=0,Import!I41946=\"\"),(1+T24)*D24,Import!I41946)","v":0},null,{"$f":"Import!I41969","v":0},null,{"$f":"Import!I41992","v":0},null,{"$f":"Import!I42015","v":0},null,{"$f":"Import!I42038","v":0},null,{"$f":"IF(OR(Import!I42061=0,Import!I42061=\"\"),(1+T24)*N24,Import!I42061)","v":0},null,{"$f":"IF(OR(Import!I42084=0,Import!I42084=\"\"),AF24,Import!I42084)","v":0}]
[null,{"$f":"Import!I41786","v":"Other currency 3"},null,{"$f":"Import!I41809","v":0},null,{"$f":"Import!I41832","v":0},null,{"$f":"Import!I41855","v":0},null,{"$f":"Import!I41878","v":0},null,{"$f":"Import!I41901","v":0},null,{"$f":"Import!I41924","v":0},null,0,null,0,null,0.25,null,{"$f":"IF(OR(Import!I41947=0,Import!I41947=\"\"),(1+T25)*D25,Import!I41947)","v":0},null,{"$f":"Import!I41970","v":0},null,{"$f":"Import!I41993","v":0},null,{"$f":"Import!I42016","v":0},null,{"$f":"Import!I42039","v":0},null,{"$f":"IF(OR(Import!I42062=0,Import!I42062=\"\"),(1+T25)*N25,Import!I42062)","v":0},null,{"$f":"IF(OR(Import!I42085=0,Import!I42085=\"\"),AF25,Import!I42085)","v":0}]
[null,{"$f":"Import!I41787","v":"Other currency 4"},null,{"$f":"Import!I41810","v":0},null,{"$f":"Import!I41833","v":0},null,{"$f":"Import!I41856","v":0},null,{"$f":"Import!I41879","v":0},null,{"$f":"Import!I41902","v":0},null,{"$f":"Import!I41925","v":0},null,0,null,0,null,0.25,null,{"$f":"IF(OR(Import!I41948=0,Import!I41948=\"\"),(1+T26)*D26,Import!I41948)","v":0},null,{"$f":"Import!I41971","v":0},null,{"$f":"Import!I41994","v":0},null,{"$f":"Import!I42017","v":0},null,{"$f":"Import!I42040","v":0},null,{"$f":"IF(OR(Import!I42063=0,Import!I42063=\"\"),(1+T26)*N26,Import!I42063)","v":0},null,{"$f":"IF(OR(Import!I42086=0,Import!I42086=\"\"),AF26,Import!I42086)","v":0}]
[null,{"$f":"Import!I41788","v":"Other currency 5"},null,{"$f":"Import!I41811","v":0},null,{"$f":"Import!I41834","v":0},null,{"$f":"Import!I41857","v":0},null,{"$f":"Import!I41880","v":0},null,{"$f":"Import!I41903","v":0},null,{"$f":"Import!I41926","v":0},null,0,null,0,null,0.25,null,{"$f":"IF(OR(Import!I41949=0,Import!I41949=\"\"),(1+T27)*D27,Import!I41949)","v":0},null,{"$f":"Import!I41972","v":0},null,{"$f":"Import!I41995","v":0},null,{"$f":"Import!I42018","v":0},null,{"$f":"Import!I42041","v":0},null,{"$f":"IF(OR(Import!I42064=0,Import!I42064=\"\"),(1+T27)*N27,Import!I42064)","v":0},null,{"$f":"IF(OR(Import!I42087=0,Import!I42087=\"\"),AF27,Import!I42087)","v":0}]
[null,{"$f":"Import!I41789","v":"Other currency 6"},null,{"$f":"Import!I41812","v":0},null,{"$f":"Import!I41835","v":0},null,{"$f":"Import!I41858","v":0},null,{"$f":"Import!I41881","v":0},null,{"$f":"Import!I41904","v":0},null,{"$f":"Import!I41927","v":0},null,0,null,0,null,0.25,null,{"$f":"IF(OR(Import!I41950=0,Import!I41950=\"\"),(1+T28)*D28,Import!I41950)","v":0},null,{"$f":"Import!I41973","v":0},null,{"$f":"Import!I41996","v":0},null,{"$f":"Import!I42019","v":0},null,{"$f":"Import!I42042","v":0},null,{"$f":"IF(OR(Import!I42065=0,Import!I42065=\"\"),(1+T28)*N28,Import!I42065)","v":0},null,{"$f":"IF(OR(Import!I42088=0,Import!I42088=\"\"),AF28,Import!I42088)","v":0}]
[null,{"$f":"Import!I41790","v":"Other currency 7"},null,{"$f":"Import!I41813","v":0},null,{"$f":"Import!I41836","v":0},null,{"$f":"Import!I41859","v":0},null,{"$f":"Import!I41882","v":0},null,{"$f":"Import!I41905","v":0},null,{"$f":"Import!I41928","v":0},null,0,null,0,null,0.25,null,{"$f":"IF(OR(Import!I41951=0,Import!I41951=\"\"),(1+T29)*D29,Import!I41951)","v":0},null,{"$f":"Import!I41974","v":0},null,{"$f":"Import!I41997","v":0},null,{"$f":"Import!I42020","v":0},null,{"$f":"Import!I42043","v":0},null,{"$f":"IF(OR(Import!I42066=0,Import!I42066=\"\"),(1+T29)*N29,Import!I42066)","v":0},null,{"$f":"IF(OR(Import!I42089=0,Import!I42089=\"\"),AF29,Import!I42089)","v":0}]
[null,{"$f":"Import!I41791","v":"Other currency 8"},null,{"$f":"Import!I41814","v":0},null,{"$f":"Import!I41837","v":0},null,{"$f":"Import!I41860","v":0},null,{"$f":"Import!I41883","v":0},null,{"$f":"Import!I41906","v":0},null,{"$f":"Import!I41929","v":0},null,0,null,0,null,0.25,null,{"$f":"IF(OR(Import!I41952=0,Import!I41952=\"\"),(1+T30)*D30,Import!I41952)","v":0},null,{"$f":"Import!I41975","v":0},null,{"$f":"Import!I41998","v":0},null,{"$f":"Import!I42021","v":0},null,{"$f":"Import!I42044","v":0},null,{"$f":"IF(OR(Import!I42067=0,Import!I42067=\"\"),(1+T30)*N30,Import!I42067)","v":0},null,{"$f":"IF(OR(Import!I42090=0,Import!I42090=\"\"),AF30,Import!I42090)","v":0}]
[null,{"$f":"Import!I41792","v":"Other currency 9"},null,{"$f":"Import!I41815","v":0},null,{"$f":"Import!I41838","v":0},null,{"$f":"Import!I41861","v":0},null,{"$f":"Import!I41884","v":0},null,{"$f":"Import!I41907","v":0},null,{"$f":"Import!I41930","v":0},null,0,null,0,null,0.25,null,{"$f":"IF(OR(Import!I41953=0,Import!I41953=\"\"),(1+T31)*D31,Import!I41953)","v":0},null,{"$f":"Import!I41976","v":0},null,{"$f":"Import!I41999","v":0},null,{"$f":"Import!I42022","v":0},null,{"$f":"Import!I42045","v":0},null,{"$f":"IF(OR(Import!I42068=0,Import!I42068=\"\"),(1+T31)*N31,Import!I42068)","v":0},null,{"$f":"IF(OR(Import!I42091=0,Import!I42091=\"\"),AF31,Import!I42091)","v":0}]
[null,{"$f":"Import!I41793","v":"Other currency 10"},null,{"$f":"Import!I41816","v":0},null,{"$f":"Import!I41839","v":0},null,{"$f":"Import!I41862","v":0},null,{"$f":"Import!I41885","v":0},null,{"$f":"Import!I41908","v":0},null,{"$f":"Import!I41931","v":0},null,0,null,0,null,0.25,null,{"$f":"IF(OR(Import!I41954=0,Import!I41954=\"\"),(1+T32)*D32,Import!I41954)","v":0},null,{"$f":"Import!I41977","v":0},null,{"$f":"Import!I42000","v":0},null,{"$f":"Import!I42023","v":0},null,{"$f":"Import!I42046","v":0},null,{"$f":"IF(OR(Import!I42069=0,Import!I42069=\"\"),(1+T32)*N32,Import!I42069)","v":0},null,{"$f":"IF(OR(Import!I42092=0,Import!I42092=\"\"),AF32,Import!I42092)","v":0}]
[null,"Currency Total",null,{"$f":"SUM(D10:D32)","v":0},null,{"$f":"SUM(F10:F32)","v":0},null,{"$f":"SUM(H10:H32)","v":0},null,{"$f":"SUM(J10:J32)","v":0},null,{"$f":"SUM(L10:L32)","v":0},null,{"$f":"SUM(N10:N32)","v":0},null,null,null,null,null,null,null,{"$f":"SUM(V10:V32)","v":0},null,{"$f":"SUM(X10:X32)","v":0},null,{"$f":"SUM(Z10:Z32)","v":0},null,{"$f":"SUM(AB10:AB32)","v":0},null,{"$f":"SUM(AD10:AD32)","v":0},null,{"$f":"SUM(AF10:AF32)","v":0},null,{"$f":"SUM(AH10:AH32)","v":0}]
[]
[null,null,null,"Form 1EBS Line 15",null,null,null,null,null,null,null,null,null,"Form 1EBS Line 39"]
[null,"Balance Sheet Total",null,{"$f":"+'Form 1EBS'!F96","v":0},null,null,null,null,null,null,null,null,null,{"$f":"+'Form 1EBS'!F210","v":0}]
[null,"% of Balance Sheet Total",null,{"$f":"IF(D36=0,0,(SUM(D33:L33))/D36)","v":0},null,null,null,null,null,null,null,null,null,{"$f":"IF(N36=0,0,N33/N36)","v":0}]
[]
[null,"95% Minimum Test Met",null,{"$f":"IF(D36=0,\"Form 1EBS is Blank\",IF(D37<=95%,\"False\",IF(D37>100%,\"False\",\"True\")))","v":"Form 1EBS is Blank"},null,null,null,null,null,null,null,null,null,{"$f":"IF(N36=0,\"Form 1EBS is Blank\",IF(N37<=95%,\"False\",IF(N37>100%,\"False\",\"True\")))","v":"Form 1EBS is Blank"}]
[]
[null,null,null,"Liabilities",null,null,null,"ECR Charge",null,null,null,null,null,"Ratio",null,"Assessment*"]
[null,null,null,"Form 1EBS, Line 39",null,null,null,"Summary tab"]
[null,{"$f":"+'Form 1'!H7","v":"2022-12-31"},null,{"$f":"Import!I42093","v":0},null,null,null,{"$f":"Import!I42096","v":0},null,null,null,null,null,{"$f":"IF(H43=0,\"\",H43/D43)","v":""}]
[null,{"$f":"DATE(YEAR(B43)-1,MONTH(B43),DAY(B43))","v":"2021-12-31"},null,{"$f":"Import!I42094","v":0},null,null,null,{"$f":"Import!I42097","v":0},null,null,null,null,null,{"$f":"IF(H44=0,\"\",H44/D44)","v":""}]
[null,{"$f":"DATE(YEAR(B44)-1,MONTH(B44),DAY(B44))","v":"2020-12-31"},null,{"$f":"Import!I42095","v":0},null,null,null,{"$f":"Import!I42098","v":0},null,null,null,null,null,{"$f":"IF(H45=0,\"\",H45/D45)","v":""},null,{"$f":"IF(SUM(N43:N45)=0,IF(H43=0,0%,N43),MAX(,N43,AVERAGE(N43:N45)))","v":0}]
[]
[null,"*If there are no amounts for previous years, enter the results from the current year without taking currency risk into account into the prior year"]

{"sheet":"Schedule XXI","index":94,"n_rows":77,"n_cols":8,"rows_kept":77,"cut":false,"hidden":false,"merged":[[2,1,2,2]]}
[null,null,"SCHEDULE OF CONCENTRATION RISK",null,null,null,null,{"$f":"HYPERLINK(\"#'Index'!A1\",\"Return to Index\")","v":"Return to Index"}]
[null,{"$f":"'Group Information'!C9","v":"Enter Parent Company Name"}]
[null,{"$f":"'Form 1EBS'!C3","v":"2023-12-31"},null,null,{"$f":"Import!E38234","v":0},"Enter Number of Rows Required",null,"Schedule XXI"]
[null,{"$f":"'Form 1EBS'!C4","v":" ['000s]United States Dollars"}]
[null,null,null,null,"(A)","(B)","(C)","(D)"]
[null,null,"Name of Exposure",null,"Asset Type","Bond / Mortgage LoanType","BSCR Rating","Asset Value"]
[]
[null,1,{"$f":"Import!E38235","v":0},null,{"$f":"Import!E38285","v":"Select"},{"$f":"Import!E38335","v":"Select"},{"$f":"Import!E38385","v":"Select"},{"$f":"Import!E38435","v":0}]
[null,{"$f":"B8+1","v":2},{"$f":"Import!E38236","v":0},null,{"$f":"Import!E38286","v":"Select"},{"$f":"Import!E38336","v":"Select"},{"$f":"Import!E38386","v":"Select"},{"$f":"Import!E38436","v":0}]
[null,{"$f":"B9+1","v":3},{"$f":"Import!E38237","v":0},null,{"$f":"Import!E38287","v":"Select"},{"$f":"Import!E38337","v":"Select"},{"$f":"Import!E38387","v":"Select"},{"$f":"Import!E38437","v":0}]
[null,4,{"$f":"Import!E38238","v":0},null,{"$f":"Import!E38288","v":"Select"},{"$f":"Import!E38338","v":"Select"},{"$f":"Import!E38388","v":"Select"},{"$f":"Import!E38438","v":0}]
[null,5,{"$f":"Import!E38239","v":0},null,{"$f":"Import!E38289","v":"Select"},{"$f":"Import!E38339","v":"Select"},{"$f":"Import!E38389","v":"Select"},{"$f":"Import!E38439","v":0}]
[null,6,{"$f":"Import!E38240","v":0},null,{"$f":"Import!E38290","v":"Select"},{"$f":"Import!E38340","v":"Select"},{"$f":"Import!E38390","v":"Select"},{"$f":"Import!E38440","v":0}]
[null,7,{"$f":"Import!E38241","v":0},null,{"$f":"Import!E38291","v":"Select"},{"$f":"Import!E38341","v":"Select"},{"$f":"Import!E38391","v":"Select"},{"$f":"Import!E38441","v":0}]
[null,8,{"$f":"Import!E38242","v":0},null,{"$f":"Import!E38292","v":"Select"},{"$f":"Import!E38342","v":"Select"},{"$f":"Import!E38392","v":"Select"},{"$f":"Import!E38442","v":0}]
[null,9,{"$f":"Import!E38243","v":0},null,{"$f":"Import!E38293","v":"Select"},{"$f":"Import!E38343","v":"Select"},{"$f":"Import!E38393","v":"Select"},{"$f":"Import!E38443","v":0}]
[null,10,{"$f":"Import!E38244","v":0},null,{"$f":"Import!E38294","v":"Select"},{"$f":"Import!E38344","v":"Select"},{"$f":"Import!E38394","v":"Select"},{"$f":"Import!E38444","v":0}]
[null,11,{"$f":"Import!E38245","v":0},null,{"$f":"Import!E38295","v":"Select"},{"$f":"Import!E38345","v":"Select"},{"$f":"Import!E38395","v":"Select"},{"$f":"Import!E38445","v":0}]
[null,12,{"$f":"Import!E38246","v":0},null,{"$f":"Import!E38296","v":"Select"},{"$f":"Import!E38346","v":"Select"},{"$f":"Import!E38396","v":"Select"},{"$f":"Import!E38446","v":0}]
[null,13,{"$f":"Import!E38247","v":0},null,{"$f":"Import!E38297","v":"Select"},{"$f":"Import!E38347","v":"Select"},{"$f":"Import!E38397","v":"Select"},{"$f":"Import!E38447","v":0}]
[null,14,{"$f":"Import!E38248","v":0},null,{"$f":"Import!E38298","v":"Select"},{"$f":"Import!E38348","v":"Select"},{"$f":"Import!E38398","v":"Select"},{"$f":"Import!E38448","v":0}]
[null,15,{"$f":"Import!E38249","v":0},null,{"$f":"Import!E38299","v":"Select"},{"$f":"Import!E38349","v":"Select"},{"$f":"Import!E38399","v":"Select"},{"$f":"Import!E38449","v":0}]
[null,16,{"$f":"Import!E38250","v":0},null,{"$f":"Import!E38300","v":"Select"},{"$f":"Import!E38350","v":"Select"},{"$f":"Import!E38400","v":"Select"},{"$f":"Import!E38450","v":0}]
[null,17,{"$f":"Import!E38251","v":0},null,{"$f":"Import!E38301","v":"Select"},{"$f":"Import!E38351","v":"Select"},{"$f":"Import!E38401","v":"Select"},{"$f":"Import!E38451","v":0}]
[null,18,{"$f":"Import!E38252","v":0},null,{"$f":"Import!E38302","v":"Select"},{"$f":"Import!E38352","v":"Select"},{"$f":"Import!E38402","v":"Select"},{"$f":"Import!E38452","v":0}]
[null,19,{"$f":"Import!E38253","v":0},null,{"$f":"Import!E38303","v":"Select"},{"$f":"Import!E38353","v":"Select"},{"$f":"Import!E38403","v":"Select"},{"$f":"Import!E38453","v":0}]
[null,20,{"$f":"Import!E38254","v":0},null,{"$f":"Import!E38304","v":"Select"},{"$f":"Import!E38354","v":"Select"},{"$f":"Import!E38404","v":"Select"},{"$f":"Import!E38454","v":0}]
[null,21,{"$f":"Import!E38255","v":0},null,{"$f":"Import!E38305","v":"Select"},{"$f":"Import!E38355","v":"Select"},{"$f":"Import!E38405","v":"Select"},{"$f":"Import!E38455","v":0}]
[null,22,{"$f":"Import!E38256","v":0},null,{"$f":"Import!E38306","v":"Select"},{"$f":"Import!E38356","v":"Select"},{"$f":"Import!E38406","v":"Select"},{"$f":"Import!E38456","v":0}]
[null,23,{"$f":"Import!E38257","v":0},null,{"$f":"Import!E38307","v":"Select"},{"$f":"Import!E38357","v":"Select"},{"$f":"Import!E38407","v":"Select"},{"$f":"Import!E38457","v":0}]
[null,24,{"$f":"Import!E38258","v":0},null,{"$f":"Import!E38308","v":"Select"},{"$f":"Import!E38358","v":"Select"},{"$f":"Import!E38408","v":"Select"},{"$f":"Import!E38458","v":0}]
[null,25,{"$f":"Import!E38259","v":0},null,{"$f":"Import!E38309","v":"Select"},{"$f":"Import!E38359","v":"Select"},{"$f":"Import!E38409","v":"Select"},{"$f":"Import!E38459","v":0}]
[null,26,{"$f":"Import!E38260","v":0},null,{"$f":"Import!E38310","v":"Select"},{"$f":"Import!E38360","v":"Select"},{"$f":"Import!E38410","v":"Select"},{"$f":"Import!E38460","v":0}]
[null,27,{"$f":"Import!E38261","v":0},null,{"$f":"Import!E38311","v":"Select"},{"$f":"Import!E38361","v":"Select"},{"$f":"Import!E38411","v":"Select"},{"$f":"Import!E38461","v":0}]
[null,28,{"$f":"Import!E38262","v":0},null,{"$f":"Import!E38312","v":"Select"},{"$f":"Import!E38362","v":"Select"},{"$f":"Import!E38412","v":"Select"},{"$f":"Import!E38462","v":0}]
[null,29,{"$f":"Import!E38263","v":0},null,{"$f":"Import!E38313","v":"Select"},{"$f":"Import!E38363","v":"Select"},{"$f":"Import!E38413","v":"Select"},{"$f":"Import!E38463","v":0}]
[null,30,{"$f":"Import!E38264","v":0},null,{"$f":"Import!E38314","v":"Select"},{"$f":"Import!E38364","v":"Select"},{"$f":"Import!E38414","v":"Select"},{"$f":"Import!E38464","v":0}]
[null,31,{"$f":"Import!E38265","v":0},null,{"$f":"Import!E38315","v":"Select"},{"$f":"Import!E38365","v":"Select"},{"$f":"Import!E38415","v":"Select"},{"$f":"Import!E38465","v":0}]
[null,32,{"$f":"Import!E38266","v":0},null,{"$f":"Import!E38316","v":"Select"},{"$f":"Import!E38366","v":"Select"},{"$f":"Import!E38416","v":"Select"},{"$f":"Import!E38466","v":0}]
[null,33,{"$f":"Import!E38267","v":0},null,{"$f":"Import!E38317","v":"Select"},{"$f":"Import!E38367","v":"Select"},{"$f":"Import!E38417","v":"Select"},{"$f":"Import!E38467","v":0}]
[null,34,{"$f":"Import!E38268","v":0},null,{"$f":"Import!E38318","v":"Select"},{"$f":"Import!E38368","v":"Select"},{"$f":"Import!E38418","v":"Select"},{"$f":"Import!E38468","v":0}]
[null,35,{"$f":"Import!E38269","v":0},null,{"$f":"Import!E38319","v":"Select"},{"$f":"Import!E38369","v":"Select"},{"$f":"Import!E38419","v":"Select"},{"$f":"Import!E38469","v":0}]
[null,36,{"$f":"Import!E38270","v":0},null,{"$f":"Import!E38320","v":"Select"},{"$f":"Import!E38370","v":"Select"},{"$f":"Import!E38420","v":"Select"},{"$f":"Import!E38470","v":0}]
[null,37,{"$f":"Import!E38271","v":0},null,{"$f":"Import!E38321","v":"Select"},{"$f":"Import!E38371","v":"Select"},{"$f":"Import!E38421","v":"Select"},{"$f":"Import!E38471","v":0}]
[null,38,{"$f":"Import!E38272","v":0},null,{"$f":"Import!E38322","v":"Select"},{"$f":"Import!E38372","v":"Select"},{"$f":"Import!E38422","v":"Select"},{"$f":"Import!E38472","v":0}]
[null,39,{"$f":"Import!E38273","v":0},null,{"$f":"Import!E38323","v":"Select"},{"$f":"Import!E38373","v":"Select"},{"$f":"Import!E38423","v":"Select"},{"$f":"Import!E38473","v":0}]
[null,40,{"$f":"Import!E38274","v":0},null,{"$f":"Import!E38324","v":"Select"},{"$f":"Import!E38374","v":"Select"},{"$f":"Import!E38424","v":"Select"},{"$f":"Import!E38474","v":0}]
[null,41,{"$f":"Import!E38275","v":0},null,{"$f":"Import!E38325","v":"Select"},{"$f":"Import!E38375","v":"Select"},{"$f":"Import!E38425","v":"Select"},{"$f":"Import!E38475","v":0}]
[null,42,{"$f":"Import!E38276","v":0},null,{"$f":"Import!E38326","v":"Select"},{"$f":"Import!E38376","v":"Select"},{"$f":"Import!E38426","v":"Select"},{"$f":"Import!E38476","v":0}]
[null,43,{"$f":"Import!E38277","v":0},null,{"$f":"Import!E38327","v":"Select"},{"$f":"Import!E38377","v":"Select"},{"$f":"Import!E38427","v":"Select"},{"$f":"Import!E38477","v":0}]
[null,44,{"$f":"Import!E38278","v":0},null,{"$f":"Import!E38328","v":"Select"},{"$f":"Import!E38378","v":"Select"},{"$f":"Import!E38428","v":"Select"},{"$f":"Import!E38478","v":0}]
[null,45,{"$f":"Import!E38279","v":0},null,{"$f":"Import!E38329","v":"Select"},{"$f":"Import!E38379","v":"Select"},{"$f":"Import!E38429","v":"Select"},{"$f":"Import!E38479","v":0}]
[null,46,{"$f":"Import!E38280","v":0},null,{"$f":"Import!E38330","v":"Select"},{"$f":"Import!E38380","v":"Select"},{"$f":"Import!E38430","v":"Select"},{"$f":"Import!E38480","v":0}]
[null,47,{"$f":"Import!E38281","v":0},null,{"$f":"Import!E38331","v":"Select"},{"$f":"Import!E38381","v":"Select"},{"$f":"Import!E38431","v":"Select"},{"$f":"Import!E38481","v":0}]
[null,48,{"$f":"Import!E38282","v":0},null,{"$f":"Import!E38332","v":"Select"},{"$f":"Import!E38382","v":"Select"},{"$f":"Import!E38432","v":"Select"},{"$f":"Import!E38482","v":0}]
[null,49,{"$f":"Import!E38283","v":0},null,{"$f":"Import!E38333","v":"Select"},{"$f":"Import!E38383","v":"Select"},{"$f":"Import!E38433","v":"Select"},{"$f":"Import!E38483","v":0}]
[null,50,{"$f":"Import!E38284","v":0},null,{"$f":"Import!E38334","v":"Select"},{"$f":"Import!E38384","v":"Select"},{"$f":"Import!E38434","v":"Select"},{"$f":"Import!E38484","v":0}]
[null,null,"TOTAL CONCENTRATION RISK",null,null,null,null,{"$f":"SUM(H8:H57)","v":0}]
[]
[null,null,"Asset Type",null,null,"Bond Types","BSCR Rating Reference"]
[null,null,"Select",null,null,"Select","Select"]
[null,null,"Cash and Cash Equivalent",null,null,"Corporate & Sovereign Bonds","BSCR Rating 0"]
[null,null,"Bond Types",null,null,"Residential Mortgage-Backed Securities","BSCR Rating 1"]
[null,null,"Preferred Shares",null,null,"Commercial Mortgage-Backed Securities","BSCR Rating 2"]
[null,null,"MortgageLoanTypes",null,null,"Bond Mutual Funds","BSCR Rating 3"]
[null,null,"Common Stock and Mutual Funds",null,null,null,"BSCR Rating 4"]
[null,null,"Other Investments",null,null,"Mortgage Loan Categories","BSCR Rating 5"]
[null,null,"Investment in Affiliates – Unregulated entities that conduct ancillary services",null,null,"Select","BSCR Rating 6"]
[null,null,"Investment in Affiliates - Unregulated non-financial operating entities",null,null,"Insured/Guaranteed Mortgages","BSCR Rating 7"]
[null,null,"Investment in Affiliates - Unregulated financial operating entities",null,null,"Other Commercial and Farm Mortgages","BSCR Rating 8"]
[null,null,"Investment in Affiliates - Regulated non-insurance financial operating entities",null,null,"Other Residential Mortgages"]
[null,null,"Investment in Affiliates - Regulated insurance financial operating entities",null,null,"Mortgages Not In Good Standing"]
[null,null,"Advances to Affiliates - ",null,null,"Corporate & Sovereign Bonds"]
[null,null,"Policy Loans",null,null,"Residential Mortgage-Backed Securities"]
[null,null,"Real Estate: Occupied by company",null,null,"Commercial Mortgage-Backed Securities"]
[null,null,"Real Estate: Other properties",null,null,"Bond Mutual Funds"]
[null,null,"Collateral Loans",null,null,"Mortgage Loans - Insured/Guaranteed"]

{"sheet":"Schedule XXIA","index":95,"n_rows":86,"n_cols":8,"rows_kept":86,"cut":false,"hidden":false,"merged":[[2,1,2,2]]}
[null,null,"SCHEDULE OF CONCENTRATION RISK ",null,null,null,null,{"$f":"HYPERLINK(\"#'Index'!A1\",\"Return to Index\")","v":"Return to Index"}]
[null,{"$f":"'Group Information'!C9","v":"Enter Parent Company Name"}]
[null,{"$f":"'Form 1EBS'!C3","v":"2023-12-31"},null,null,{"$f":"Import!I42100","v":0},"Enter Number of Rows Required",null,"Schedule XXIA"]
[null,{"$f":"'Form 1EBS'!C4","v":" ['000s]United States Dollars"}]
[null,null,null,null,"(A)","(B)","(C)","(D)"]
[null,null,"Name of Exposure",null,"Asset Type","Bond / Mortgage LoanType","BSCR Rating","Asset Value"]
[]
[null,1,{"$f":"Import!I42101","v":0},null,{"$f":"Import!I42151","v":"Select"},{"$f":"Import!I42201","v":"Select"},{"$f":"Import!I42251","v":"Select"},{"$f":"Import!I42301","v":0}]
[null,{"$f":"B8+1","v":2},{"$f":"Import!I42102","v":0},null,{"$f":"Import!I42152","v":"Select"},{"$f":"Import!I42202","v":"Select"},{"$f":"Import!I42252","v":"Select"},{"$f":"Import!I42302","v":0}]
[null,{"$f":"B9+1","v":3},{"$f":"Import!I42103","v":0},null,{"$f":"Import!I42153","v":"Select"},{"$f":"Import!I42203","v":"Select"},{"$f":"Import!I42253","v":"Select"},{"$f":"Import!I42303","v":0}]
[null,4,{"$f":"Import!I42104","v":0},null,{"$f":"Import!I42154","v":"Select"},{"$f":"Import!I42204","v":"Select"},{"$f":"Import!I42254","v":"Select"},{"$f":"Import!I42304","v":0}]
[null,5,{"$f":"Import!I42105","v":0},null,{"$f":"Import!I42155","v":"Select"},{"$f":"Import!I42205","v":"Select"},{"$f":"Import!I42255","v":"Select"},{"$f":"Import!I42305","v":0}]
[null,6,{"$f":"Import!I42106","v":0},null,{"$f":"Import!I42156","v":"Select"},{"$f":"Import!I42206","v":"Select"},{"$f":"Import!I42256","v":"Select"},{"$f":"Import!I42306","v":0}]
[null,7,{"$f":"Import!I42107","v":0},null,{"$f":"Import!I42157","v":"Select"},{"$f":"Import!I42207","v":"Select"},{"$f":"Import!I42257","v":"Select"},{"$f":"Import!I42307","v":0}]
[null,8,{"$f":"Import!I42108","v":0},null,{"$f":"Import!I42158","v":"Select"},{"$f":"Import!I42208","v":"Select"},{"$f":"Import!I42258","v":"Select"},{"$f":"Import!I42308","v":0}]
[null,9,{"$f":"Import!I42109","v":0},null,{"$f":"Import!I42159","v":"Select"},{"$f":"Import!I42209","v":"Select"},{"$f":"Import!I42259","v":"Select"},{"$f":"Import!I42309","v":0}]
[null,10,{"$f":"Import!I42110","v":0},null,{"$f":"Import!I42160","v":"Select"},{"$f":"Import!I42210","v":"Select"},{"$f":"Import!I42260","v":"Select"},{"$f":"Import!I42310","v":0}]
[null,11,{"$f":"Import!I42111","v":0},null,{"$f":"Import!I42161","v":"Select"},{"$f":"Import!I42211","v":"Select"},{"$f":"Import!I42261","v":"Select"},{"$f":"Import!I42311","v":0}]
[null,12,{"$f":"Import!I42112","v":0},null,{"$f":"Import!I42162","v":"Select"},{"$f":"Import!I42212","v":"Select"},{"$f":"Import!I42262","v":"Select"},{"$f":"Import!I42312","v":0}]
[null,13,{"$f":"Import!I42113","v":0},null,{"$f":"Import!I42163","v":"Select"},{"$f":"Import!I42213","v":"Select"},{"$f":"Import!I42263","v":"Select"},{"$f":"Import!I42313","v":0}]
[null,14,{"$f":"Import!I42114","v":0},null,{"$f":"Import!I42164","v":"Select"},{"$f":"Import!I42214","v":"Select"},{"$f":"Import!I42264","v":"Select"},{"$f":"Import!I42314","v":0}]
[null,15,{"$f":"Import!I42115","v":0},null,{"$f":"Import!I42165","v":"Select"},{"$f":"Import!I42215","v":"Select"},{"$f":"Import!I42265","v":"Select"},{"$f":"Import!I42315","v":0}]
[null,16,{"$f":"Import!I42116","v":0},null,{"$f":"Import!I42166","v":"Select"},{"$f":"Import!I42216","v":"Select"},{"$f":"Import!I42266","v":"Select"},{"$f":"Import!I42316","v":0}]
[null,17,{"$f":"Import!I42117","v":0},null,{"$f":"Import!I42167","v":"Select"},{"$f":"Import!I42217","v":"Select"},{"$f":"Import!I42267","v":"Select"},{"$f":"Import!I42317","v":0}]
[null,18,{"$f":"Import!I42118","v":0},null,{"$f":"Import!I42168","v":"Select"},{"$f":"Import!I42218","v":"Select"},{"$f":"Import!I42268","v":"Select"},{"$f":"Import!I42318","v":0}]
[null,19,{"$f":"Import!I42119","v":0},null,{"$f":"Import!I42169","v":"Select"},{"$f":"Import!I42219","v":"Select"},{"$f":"Import!I42269","v":"Select"},{"$f":"Import!I42319","v":0}]
[null,20,{"$f":"Import!I42120","v":0},null,{"$f":"Import!I42170","v":"Select"},{"$f":"Import!I42220","v":"Select"},{"$f":"Import!I42270","v":"Select"},{"$f":"Import!I42320","v":0}]
[null,21,{"$f":"Import!I42121","v":0},null,{"$f":"Import!I42171","v":"Select"},{"$f":"Import!I42221","v":"Select"},{"$f":"Import!I42271","v":"Select"},{"$f":"Import!I42321","v":0}]
[null,22,{"$f":"Import!I42122","v":0},null,{"$f":"Import!I42172","v":"Select"},{"$f":"Import!I42222","v":"Select"},{"$f":"Import!I42272","v":"Select"},{"$f":"Import!I42322","v":0}]
[null,23,{"$f":"Import!I42123","v":0},null,{"$f":"Import!I42173","v":"Select"},{"$f":"Import!I42223","v":"Select"},{"$f":"Import!I42273","v":"Select"},{"$f":"Import!I42323","v":0}]
[null,24,{"$f":"Import!I42124","v":0},null,{"$f":"Import!I42174","v":"Select"},{"$f":"Import!I42224","v":"Select"},{"$f":"Import!I42274","v":"Select"},{"$f":"Import!I42324","v":0}]
[null,25,{"$f":"Import!I42125","v":0},null,{"$f":"Import!I42175","v":"Select"},{"$f":"Import!I42225","v":"Select"},{"$f":"Import!I42275","v":"Select"},{"$f":"Import!I42325","v":0}]
[null,26,{"$f":"Import!I42126","v":0},null,{"$f":"Import!I42176","v":"Select"},{"$f":"Import!I42226","v":"Select"},{"$f":"Import!I42276","v":"Select"},{"$f":"Import!I42326","v":0}]
[null,27,{"$f":"Import!I42127","v":0},null,{"$f":"Import!I42177","v":"Select"},{"$f":"Import!I42227","v":"Select"},{"$f":"Import!I42277","v":"Select"},{"$f":"Import!I42327","v":0}]
[null,28,{"$f":"Import!I42128","v":0},null,{"$f":"Import!I42178","v":"Select"},{"$f":"Import!I42228","v":"Select"},{"$f":"Import!I42278","v":"Select"},{"$f":"Import!I42328","v":0}]
[null,29,{"$f":"Import!I42129","v":0},null,{"$f":"Import!I42179","v":"Select"},{"$f":"Import!I42229","v":"Select"},{"$f":"Import!I42279","v":"Select"},{"$f":"Import!I42329","v":0}]
[null,30,{"$f":"Import!I42130","v":0},null,{"$f":"Import!I42180","v":"Select"},{"$f":"Import!I42230","v":"Select"},{"$f":"Import!I42280","v":"Select"},{"$f":"Import!I42330","v":0}]
[null,31,{"$f":"Import!I42131","v":0},null,{"$f":"Import!I42181","v":"Select"},{"$f":"Import!I42231","v":"Select"},{"$f":"Import!I42281","v":"Select"},{"$f":"Import!I42331","v":0}]
[null,32,{"$f":"Import!I42132","v":0},null,{"$f":"Import!I42182","v":"Select"},{"$f":"Import!I42232","v":"Select"},{"$f":"Import!I42282","v":"Select"},{"$f":"Import!I42332","v":0}]
[null,33,{"$f":"Import!I42133","v":0},null,{"$f":"Import!I42183","v":"Select"},{"$f":"Import!I42233","v":"Select"},{"$f":"Import!I42283","v":"Select"},{"$f":"Import!I42333","v":0}]
[null,34,{"$f":"Import!I42134","v":0},null,{"$f":"Import!I42184","v":"Select"},{"$f":"Import!I42234","v":"Select"},{"$f":"Import!I42284","v":"Select"},{"$f":"Import!I42334","v":0}]
[null,35,{"$f":"Import!I42135","v":0},null,{"$f":"Import!I42185","v":"Select"},{"$f":"Import!I42235","v":"Select"},{"$f":"Import!I42285","v":"Select"},{"$f":"Import!I42335","v":0}]
[null,36,{"$f":"Import!I42136","v":0},null,{"$f":"Import!I42186","v":"Select"},{"$f":"Import!I42236","v":"Select"},{"$f":"Import!I42286","v":"Select"},{"$f":"Import!I42336","v":0}]
[null,37,{"$f":"Import!I42137","v":0},null,{"$f":"Import!I42187","v":"Select"},{"$f":"Import!I42237","v":"Select"},{"$f":"Import!I42287","v":"Select"},{"$f":"Import!I42337","v":0}]
[null,38,{"$f":"Import!I42138","v":0},null,{"$f":"Import!I42188","v":"Select"},{"$f":"Import!I42238","v":"Select"},{"$f":"Import!I42288","v":"Select"},{"$f":"Import!I42338","v":0}]
[null,39,{"$f":"Import!I42139","v":0},null,{"$f":"Import!I42189","v":"Select"},{"$f":"Import!I42239","v":"Select"},{"$f":"Import!I42289","v":"Select"},{"$f":"Import!I42339","v":0}]
[null,40,{"$f":"Import!I42140","v":0},null,{"$f":"Import!I42190","v":"Select"},{"$f":"Import!I42240","v":"Select"},{"$f":"Import!I42290","v":"Select"},{"$f":"Import!I42340","v":0}]
[null,41,{"$f":"Import!I42141","v":0},null,{"$f":"Import!I42191","v":"Select"},{"$f":"Import!I42241","v":"Select"},{"$f":"Import!I42291","v":"Select"},{"$f":"Import!I42341","v":0}]
[null,42,{"$f":"Import!I42142","v":0},null,{"$f":"Import!I42192","v":"Select"},{"$f":"Import!I42242","v":"Select"},{"$f":"Import!I42292","v":"Select"},{"$f":"Import!I42342","v":0}]
[null,43,{"$f":"Import!I42143","v":0},null,{"$f":"Import!I42193","v":"Select"},{"$f":"Import!I42243","v":"Select"},{"$f":"Import!I42293","v":"Select"},{"$f":"Import!I42343","v":0}]
[null,44,{"$f":"Import!I42144","v":0},null,{"$f":"Import!I42194","v":"Select"},{"$f":"Import!I42244","v":"Select"},{"$f":"Import!I42294","v":"Select"},{"$f":"Import!I42344","v":0}]
[null,45,{"$f":"Import!I42145","v":0},null,{"$f":"Import!I42195","v":"Select"},{"$f":"Import!I42245","v":"Select"},{"$f":"Import!I42295","v":"Select"},{"$f":"Import!I42345","v":0}]
[null,46,{"$f":"Import!I42146","v":0},null,{"$f":"Import!I42196","v":"Select"},{"$f":"Import!I42246","v":"Select"},{"$f":"Import!I42296","v":"Select"},{"$f":"Import!I42346","v":0}]
[null,47,{"$f":"Import!I42147","v":0},null,{"$f":"Import!I42197","v":"Select"},{"$f":"Import!I42247","v":"Select"},{"$f":"Import!I42297","v":"Select"},{"$f":"Import!I42347","v":0}]
[null,48,{"$f":"Import!I42148","v":0},null,{"$f":"Import!I42198","v":"Select"},{"$f":"Import!I42248","v":"Select"},{"$f":"Import!I42298","v":"Select"},{"$f":"Import!I42348","v":0}]
[null,49,{"$f":"Import!I42149","v":0},null,{"$f":"Import!I42199","v":"Select"},{"$f":"Import!I42249","v":"Select"},{"$f":"Import!I42299","v":"Select"},{"$f":"Import!I42349","v":0}]
[null,50,{"$f":"Import!I42150","v":0},null,{"$f":"Import!I42200","v":"Select"},{"$f":"Import!I42250","v":"Select"},{"$f":"Import!I42300","v":"Select"},{"$f":"Import!I42350","v":0}]
[null,null,"TOTAL CONCENTRATION RISK",null,null,null,null,{"$f":"SUM(H8:H57)","v":0}]
[]
[null,null,"Asset Type",null,null,"Bond Types","BSCR Rating Reference"]
[null,null,"Select",null,null,"Select","Select"]
[null,null,"Cash and Cash Equivalent",null,null,"Corporate & Sovereign Bonds","BSCR Rating 0"]
[null,null,"Bond Types",null,null,"Residential Mortgage-Backed Securities","BSCR Rating 1"]
[null,null,"Preferred Shares",null,null,"Commercial Mortgage-Backed Securities","BSCR Rating 2"]
[null,null,"MortgageLoanTypes",null,null,"Bond Mutual Funds","BSCR Rating 3"]
[null,null,"Infrastructure (Non-affiliate holdings, non-duration based)",null,null,null,"BSCR Rating 4"]
[null,null,"Listed Equity Securities in Developed Markets",null,null,"Mortgage Loan Categories","BSCR Rating 5"]
[null,null,"Other Equities",null,null,"Select","BSCR Rating 6"]
[null,null,"Strategic Holdings",null,null,"Insured/Guaranteed Mortgages","BSCR Rating 7"]
[null,null,"Duration Based",null,null,"Other Commercial and Farm Mortgages","BSCR Rating 8"]
[null,null,"Letters of Credit",null,null,"Other Residential Mortgages"]
[null,null,"Advances to Affiliates - ",null,null,"Mortgages Not In Good Standing"]
[null,null,"Policy Loans",null,null,"Corporate & Sovereign Bonds"]
[null,null,"Equity Real Estate 1",null,null,"Residential Mortgage-Backed Securities"]
[null,null,"Equity Real Estate 2"]
[null,null,"Collateral Loans"]
[]
[null,null,"Grandfathered - Common Stock and Mutual Funds"]
[null,null,"Grandfathered - Other Investments"]
[null,null,"Grandfathered - Investment in Affiliates – Unregulated entities that conduct ancillary services"]
[null,null,"Grandfathered - Investment in Affiliates - Unregulated non-financial operating entities"]
[null,null,"Grandfathered - Investment in Affiliates - Unregulated financial operating entities"]
[null,null,"Grandfathered - Investment in Affiliates - Regulated non-insurance financial operating entities"]
[null,null,"Grandfathered - Investment in Affiliates - Regulated insurance financial operating entities"]
[null,null,"Grandfathered - Real Estate: Occupied by company"]
[null,null,"Grandfathered - Real Estate: Other properties"]

{"sheet":"Schedule XXIII","index":96,"n_rows":56,"n_cols":22,"rows_kept":56,"cut":false,"hidden":false,"merged":[[29,4,29,21],[30,4,30,10],[30,12,30,21],[31,4,31,5],[31,12,31,13],[31,15,31,16],[4,4,4,21],[5,4,5,10],[5,12,5,21],[6,4,6,5],[6,12,6,13],[6,15,6,16]]}
[null,null,"SCHEDULE OF INTEREST RATE SENSITIVE ASSETS AND LIABILITIES",null,null,null,null,null,null,null,null,null,null,null,null,null,null,null,null,null,null,{"$f":"HYPERLINK(\"#'Index'!A1\",\"Return to Index\")","v":"Return to Index"}]
[null,null,{"$f":"'Group Information'!C9","v":"Enter Parent Company Name"}]
[null,null,{"$f":"'Form 1EBS'!C3","v":"2023-12-31"},null,null,null,null,null,null,null,null,null,null,null,null,null,null,null,null,null,null,"SCHEDULE XXIII"]
[null,null,{"$f":"'Form 1EBS'!C4","v":" ['000s]United States Dollars"}]
[null,null,null,null,"INTEREST RATE DOWN SHOCK"]
[null,null,null,null,"Exposures other than derivatives",null,null,null,null,null,null,null,"Derivative exposures"]
[null,null,"Currency",null,"Assets",null,null,"Liabilities","Liabilities without Management Actions",null,"Liabilities with Management Actions",null,"Assets - Qualifying as held for risk-mitigation purposes",null,null,"Assets - Not Qualifying as held for risk-mitigation purposes",null,null,"Liabilities","Liabilities without Management Actions",null,"Liabilities with Management Actions"]
[null,null,null,null,"Before Shock","After Shock",null,"Before Shock","After Shock",null,"After Shock",null,"Before Shock","After Shock",null,"Before Shock","After Shock",null,"Before Shock","After Shock",null,"After Shock"]
[null,null,null,null,"(A)","(B)",null,"(C)","(D)",null,"(E)",null,"(F)","(G)",null,"(H)","(I)",null,"(J)","(K)",null,"(L)"]
[null,1,"United States Dollars",null,{"$f":"Import!I42363","v":0},{"$f":"Import!I42382","v":0},null,{"$f":"Import!I42401","v":0},{"$f":"Import!I42420","v":0},null,{"$f":"Import!I42439","v":0},null,{"$f":"Import!I42458","v":0},{"$f":"Import!I42477","v":0},null,{"$f":"Import!I42496","v":0},{"$f":"Import!I42515","v":0},null,{"$f":"Import!I42534","v":0},{"$f":"Import!I42553","v":0},null,{"$f":"Import!I42572","v":0}]
[null,{"$f":"B10+1","v":2},"Euro",null,{"$f":"Import!I42364","v":0},{"$f":"Import!I42383","v":0},null,{"$f":"Import!I42402","v":0},{"$f":"Import!I42421","v":0},null,{"$f":"Import!I42440","v":0},null,{"$f":"Import!I42459","v":0},{"$f":"Import!I42478","v":0},null,{"$f":"Import!I42497","v":0},{"$f":"Import!I42516","v":0},null,{"$f":"Import!I42535","v":0},{"$f":"Import!I42554","v":0},null,{"$f":"Import!I42573","v":0}]
[null,{"$f":"B11+1","v":3},"United Kingdom Pounds",null,{"$f":"Import!I42365","v":0},{"$f":"Import!I42384","v":0},null,{"$f":"Import!I42403","v":0},{"$f":"Import!I42422","v":0},null,{"$f":"Import!I42441","v":0},null,{"$f":"Import!I42460","v":0},{"$f":"Import!I42479","v":0},null,{"$f":"Import!I42498","v":0},{"$f":"Import!I42517","v":0},null,{"$f":"Import!I42536","v":0},{"$f":"Import!I42555","v":0},null,{"$f":"Import!I42574","v":0}]
[null,4,"Japan Yen",null,{"$f":"Import!I42366","v":0},{"$f":"Import!I42385","v":0},null,{"$f":"Import!I42404","v":0},{"$f":"Import!I42423","v":0},null,{"$f":"Import!I42442","v":0},null,{"$f":"Import!I42461","v":0},{"$f":"Import!I42480","v":0},null,{"$f":"Import!I42499","v":0},{"$f":"Import!I42518","v":0},null,{"$f":"Import!I42537","v":0},{"$f":"Import!I42556","v":0},null,{"$f":"Import!I42575","v":0}]
[null,5,"Canada Dollars",null,{"$f":"Import!I42367","v":0},{"$f":"Import!I42386","v":0},null,{"$f":"Import!I42405","v":0},{"$f":"Import!I42424","v":0},null,{"$f":"Import!I42443","v":0},null,{"$f":"Import!I42462","v":0},{"$f":"Import!I42481","v":0},null,{"$f":"Import!I42500","v":0},{"$f":"Import!I42519","v":0},null,{"$f":"Import!I42538","v":0},{"$f":"Import!I42557","v":0},null,{"$f":"Import!I42576","v":0}]
[null,6,"Swiss Francs",null,{"$f":"Import!I42368","v":0},{"$f":"Import!I42387","v":0},null,{"$f":"Import!I42406","v":0},{"$f":"Import!I42425","v":0},null,{"$f":"Import!I42444","v":0},null,{"$f":"Import!I42463","v":0},{"$f":"Import!I42482","v":0},null,{"$f":"Import!I42501","v":0},{"$f":"Import!I42520","v":0},null,{"$f":"Import!I42539","v":0},{"$f":"Import!I42558","v":0},null,{"$f":"Import!I42577","v":0}]
[null,7,"Australia Dollar",null,{"$f":"Import!I42369","v":0},{"$f":"Import!I42388","v":0},null,{"$f":"Import!I42407","v":0},{"$f":"Import!I42426","v":0},null,{"$f":"Import!I42445","v":0},null,{"$f":"Import!I42464","v":0},{"$f":"Import!I42483","v":0},null,{"$f":"Import!I42502","v":0},{"$f":"Import!I42521","v":0},null,{"$f":"Import!I42540","v":0},{"$f":"Import!I42559","v":0},null,{"$f":"Import!I42578","v":0}]
[null,8,"New Zealand Dollar",null,{"$f":"Import!I42370","v":0},{"$f":"Import!I42389","v":0},null,{"$f":"Import!I42408","v":0},{"$f":"Import!I42427","v":0},null,{"$f":"Import!I42446","v":0},null,{"$f":"Import!I42465","v":0},{"$f":"Import!I42484","v":0},null,{"$f":"Import!I42503","v":0},{"$f":"Import!I42522","v":0},null,{"$f":"Import!I42541","v":0},{"$f":"Import!I42560","v":0},null,{"$f":"Import!I42579","v":0}]
[null,9,{"$f":"Import!I42353","v":"Other currency 1"},null,{"$f":"Import!I42371","v":0},{"$f":"Import!I42390","v":0},null,{"$f":"Import!I42409","v":0},{"$f":"Import!I42428","v":0},null,{"$f":"Import!I42447","v":0},null,{"$f":"Import!I42466","v":0},{"$f":"Import!I42485","v":0},null,{"$f":"Import!I42504","v":0},{"$f":"Import!I42523","v":0},null,{"$f":"Import!I42542","v":0},{"$f":"Import!I42561","v":0},null,{"$f":"Import!I42580","v":0}]
[null,10,{"$f":"Import!I42354","v":"Other currency 2"},null,{"$f":"Import!I42372","v":0},{"$f":"Import!I42391","v":0},null,{"$f":"Import!I42410","v":0},{"$f":"Import!I42429","v":0},null,{"$f":"Import!I42448","v":0},null,{"$f":"Import!I42467","v":0},{"$f":"Import!I42486","v":0},null,{"$f":"Import!I42505","v":0},{"$f":"Import!I42524","v":0},null,{"$f":"Import!I42543","v":0},{"$f":"Import!I42562","v":0},null,{"$f":"Import!I42581","v":0}]
[null,11,{"$f":"Import!I42355","v":"Other currency 3"},null,{"$f":"Import!I42373","v":0},{"$f":"Import!I42392","v":0},null,{"$f":"Import!I42411","v":0},{"$f":"Import!I42430","v":0},null,{"$f":"Import!I42449","v":0},null,{"$f":"Import!I42468","v":0},{"$f":"Import!I42487","v":0},null,{"$f":"Import!I42506","v":0},{"$f":"Import!I42525","v":0},null,{"$f":"Import!I42544","v":0},{"$f":"Import!I42563","v":0},null,{"$f":"Import!I42582","v":0}]
[null,12,{"$f":"Import!I42356","v":"Other currency 4"},null,{"$f":"Import!I42374","v":0},{"$f":"Import!I42393","v":0},null,{"$f":"Import!I42412","v":0},{"$f":"Import!I42431","v":0},null,{"$f":"Import!I42450","v":0},null,{"$f":"Import!I42469","v":0},{"$f":"Import!I42488","v":0},null,{"$f":"Import!I42507","v":0},{"$f":"Import!I42526","v":0},null,{"$f":"Import!I42545","v":0},{"$f":"Import!I42564","v":0},null,{"$f":"Import!I42583","v":0}]
[null,13,{"$f":"Import!I42357","v":"Other currency 5"},null,{"$f":"Import!I42375","v":0},{"$f":"Import!I42394","v":0},null,{"$f":"Import!I42413","v":0},{"$f":"Import!I42432","v":0},null,{"$f":"Import!I42451","v":0},null,{"$f":"Import!I42470","v":0},{"$f":"Import!I42489","v":0},null,{"$f":"Import!I42508","v":0},{"$f":"Import!I42527","v":0},null,{"$f":"Import!I42546","v":0},{"$f":"Import!I42565","v":0},null,{"$f":"Import!I42584","v":0}]
[null,14,{"$f":"Import!I42358","v":"Other currency 6"},null,{"$f":"Import!I42376","v":0},{"$f":"Import!I42395","v":0},null,{"$f":"Import!I42414","v":0},{"$f":"Import!I42433","v":0},null,{"$f":"Import!I42452","v":0},null,{"$f":"Import!I42471","v":0},{"$f":"Import!I42490","v":0},null,{"$f":"Import!I42509","v":0},{"$f":"Import!I42528","v":0},null,{"$f":"Import!I42547","v":0},{"$f":"Import!I42566","v":0},null,{"$f":"Import!I42585","v":0}]
[null,15,{"$f":"Import!I42359","v":"Other currency 7"},null,{"$f":"Import!I42377","v":0},{"$f":"Import!I42396","v":0},null,{"$f":"Import!I42415","v":0},{"$f":"Import!I42434","v":0},null,{"$f":"Import!I42453","v":0},null,{"$f":"Import!I42472","v":0},{"$f":"Import!I42491","v":0},null,{"$f":"Import!I42510","v":0},{"$f":"Import!I42529","v":0},null,{"$f":"Import!I42548","v":0},{"$f":"Import!I42567","v":0},null,{"$f":"Import!I42586","v":0}]
[null,16,{"$f":"Import!I42360","v":"Other currency 8"},null,{"$f":"Import!I42378","v":0},{"$f":"Import!I42397","v":0},null,{"$f":"Import!I42416","v":0},{"$f":"Import!I42435","v":0},null,{"$f":"Import!I42454","v":0},null,{"$f":"Import!I42473","v":0},{"$f":"Import!I42492","v":0},null,{"$f":"Import!I42511","v":0},{"$f":"Import!I42530","v":0},null,{"$f":"Import!I42549","v":0},{"$f":"Import!I42568","v":0},null,{"$f":"Import!I42587","v":0}]
[null,17,{"$f":"Import!I42361","v":"Other currency 9"},null,{"$f":"Import!I42379","v":0},{"$f":"Import!I42398","v":0},null,{"$f":"Import!I42417","v":0},{"$f":"Import!I42436","v":0},null,{"$f":"Import!I42455","v":0},null,{"$f":"Import!I42474","v":0},{"$f":"Import!I42493","v":0},null,{"$f":"Import!I42512","v":0},{"$f":"Import!I42531","v":0},null,{"$f":"Import!I42550","v":0},{"$f":"Import!I42569","v":0},null,{"$f":"Import!I42588","v":0}]
[null,18,{"$f":"Import!I42362","v":"Other currency 10"},null,{"$f":"Import!I42380","v":0},{"$f":"Import!I42399","v":0},null,{"$f":"Import!I42418","v":0},{"$f":"Import!I42437","v":0},null,{"$f":"Import!I42456","v":0},null,{"$f":"Import!I42475","v":0},{"$f":"Import!I42494","v":0},null,{"$f":"Import!I42513","v":0},{"$f":"Import!I42532","v":0},null,{"$f":"Import!I42551","v":0},{"$f":"Import!I42570","v":0},null,{"$f":"Import!I42589","v":0}]
[null,19,"IR Down Shock Total",null,{"$f":"SUM(E10:E27)","v":0},{"$f":"SUM(F10:F27)","v":0},null,{"$f":"SUM(H10:H27)","v":0},{"$f":"SUM(I10:I27)","v":0},null,{"$f":"SUM(K10:K27)","v":0},null,{"$f":"SUM(M10:M27)","v":0},{"$f":"SUM(N10:N27)","v":0},null,{"$f":"SUM(P10:P27)","v":0},{"$f":"SUM(Q10:Q27)","v":0},null,{"$f":"SUM(S10:S27)","v":0},{"$f":"SUM(T10:T27)","v":0},null,{"$f":"SUM(V10:V27)","v":0}]
[]
[null,null,null,null,"INTEREST RATE UP SHOCK"]
[null,null,null,null,"Exposures other than derivatives",null,null,null,null,null,null,null,"Derivative exposures"]
[null,null,"Currency",null,"Assets",null,null,"Liabilities","Liabilities without Management Actions",null,"Liabilities with Management Actions",null,"Assets - Qualifying as held for risk-mitigation purposes",null,null,"Assets - Not Qualifying as held for risk-mitigation purposes",null,null,"Liabilities","Liabilities without Management Actions",null,"Liabilities with Management Actions"]
[null,null,null,null,"Before Shock","After Shock",null,"Before Shock","After Shock",null,"After Shock",null,"Before Shock","After Shock",null,"Before Shock","After Shock",null,"Before Shock","After Shock",null,"After Shock"]
[null,null,null,null,"(A)","(B)",null,"(C)","(D)",null,"(E)",null,"(F)","(G)",null,"(H)","(I)",null,"(J)","(K)",null,"(L)"]
[null,{"$f":"B28+1","v":20},"United States Dollars",null,{"$f":"Import!I42601","v":0},{"$f":"Import!I42620","v":0},null,{"$f":"Import!I42639","v":0},{"$f":"Import!I42658","v":0},null,{"$f":"Import!I42677","v":0},null,{"$f":"Import!I42696","v":0},{"$f":"Import!I42715","v":0},null,{"$f":"Import!I42734","v":0},{"$f":"Import!I42753","v":0},null,{"$f":"Import!I42772","v":0},{"$f":"Import!I42791","v":0},null,{"$f":"Import!I42810","v":0}]
[null,{"$f":"B35+1","v":21},"Euro",null,{"$f":"Import!I42602","v":0},{"$f":"Import!I42621","v":0},null,{"$f":"Import!I42640","v":0},{"$f":"Import!I42659","v":0},null,{"$f":"Import!I42678","v":0},null,{"$f":"Import!I42697","v":0},{"$f":"Import!I42716","v":0},null,{"$f":"Import!I42735","v":0},{"$f":"Import!I42754","v":0},null,{"$f":"Import!I42773","v":0},{"$f":"Import!I42792","v":0},null,{"$f":"Import!I42811","v":0}]
[null,{"$f":"B36+1","v":22},"United Kingdom Pounds",null,{"$f":"Import!I42603","v":0},{"$f":"Import!I42622","v":0},null,{"$f":"Import!I42641","v":0},{"$f":"Import!I42660","v":0},null,{"$f":"Import!I42679","v":0},null,{"$f":"Import!I42698","v":0},{"$f":"Import!I42717","v":0},null,{"$f":"Import!I42736","v":0},{"$f":"Import!I42755","v":0},null,{"$f":"Import!I42774","v":0},{"$f":"Import!I42793","v":0},null,{"$f":"Import!I42812","v":0}]
[null,23,"Japan Yen",null,{"$f":"Import!I42604","v":0},{"$f":"Import!I42623","v":0},null,{"$f":"Import!I42642","v":0},{"$f":"Import!I42661","v":0},null,{"$f":"Import!I42680","v":0},null,{"$f":"Import!I42699","v":0},{"$f":"Import!I42718","v":0},null,{"$f":"Import!I42737","v":0},{"$f":"Import!I42756","v":0},null,{"$f":"Import!I42775","v":0},{"$f":"Import!I42794","v":0},null,{"$f":"Import!I42813","v":0}]
[null,24,"Canada Dollars",null,{"$f":"Import!I42605","v":0},{"$f":"Import!I42624","v":0},null,{"$f":"Import!I42643","v":0},{"$f":"Import!I42662","v":0},null,{"$f":"Import!I42681","v":0},null,{"$f":"Import!I42700","v":0},{"$f":"Import!I42719","v":0},null,{"$f":"Import!I42738","v":0},{"$f":"Import!I42757","v":0},null,{"$f":"Import!I42776","v":0},{"$f":"Import!I42795","v":0},null,{"$f":"Import!I42814","v":0}]
[null,25,"Swiss Francs",null,{"$f":"Import!I42606","v":0},{"$f":"Import!I42625","v":0},null,{"$f":"Import!I42644","v":0},{"$f":"Import!I42663","v":0},null,{"$f":"Import!I42682","v":0},null,{"$f":"Import!I42701","v":0},{"$f":"Import!I42720","v":0},null,{"$f":"Import!I42739","v":0},{"$f":"Import!I42758","v":0},null,{"$f":"Import!I42777","v":0},{"$f":"Import!I42796","v":0},null,{"$f":"Import!I42815","v":0}]
[null,26,"Australia Dollar",null,{"$f":"Import!I42607","v":0},{"$f":"Import!I42626","v":0},null,{"$f":"Import!I42645","v":0},{"$f":"Import!I42664","v":0},null,{"$f":"Import!I42683","v":0},null,{"$f":"Import!I42702","v":0},{"$f":"Import!I42721","v":0},null,{"$f":"Import!I42740","v":0},{"$f":"Import!I42759","v":0},null,{"$f":"Import!I42778","v":0},{"$f":"Import!I42797","v":0},null,{"$f":"Import!I42816","v":0}]
[null,27,"New Zealand Dollar",null,{"$f":"Import!I42608","v":0},{"$f":"Import!I42627","v":0},null,{"$f":"Import!I42646","v":0},{"$f":"Import!I42665","v":0},null,{"$f":"Import!I42684","v":0},null,{"$f":"Import!I42703","v":0},{"$f":"Import!I42722","v":0},null,{"$f":"Import!I42741","v":0},{"$f":"Import!I42760","v":0},null,{"$f":"Import!I42779","v":0},{"$f":"Import!I42798","v":0},null,{"$f":"Import!I42817","v":0}]
[null,28,{"$f":"Import!I42591","v":"Other currency 1"},null,{"$f":"Import!I42609","v":0},{"$f":"Import!I42628","v":0},null,{"$f":"Import!I42647","v":0},{"$f":"Import!I42666","v":0},null,{"$f":"Import!I42685","v":0},null,{"$f":"Import!I42704","v":0},{"$f":"Import!I42723","v":0},null,{"$f":"Import!I42742","v":0},{"$f":"Import!I42761","v":0},null,{"$f":"Import!I42780","v":0},{"$f":"Import!I42799","v":0},null,{"$f":"Import!I42818","v":0}]
[null,29,{"$f":"Import!I42592","v":"Other currency 2"},null,{"$f":"Import!I42610","v":0},{"$f":"Import!I42629","v":0},null,{"$f":"Import!I42648","v":0},{"$f":"Import!I42667","v":0},null,{"$f":"Import!I42686","v":0},null,{"$f":"Import!I42705","v":0},{"$f":"Import!I42724","v":0},null,{"$f":"Import!I42743","v":0},{"$f":"Import!I42762","v":0},null,{"$f":"Import!I42781","v":0},{"$f":"Import!I42800","v":0},null,{"$f":"Import!I42819","v":0}]
[null,30,{"$f":"Import!I42593","v":"Other currency 3"},null,{"$f":"Import!I42611","v":0},{"$f":"Import!I42630","v":0},null,{"$f":"Import!I42649","v":0},{"$f":"Import!I42668","v":0},null,{"$f":"Import!I42687","v":0},null,{"$f":"Import!I42706","v":0},{"$f":"Import!I42725","v":0},null,{"$f":"Import!I42744","v":0},{"$f":"Import!I42763","v":0},null,{"$f":"Import!I42782","v":0},{"$f":"Import!I42801","v":0},null,{"$f":"Import!I42820","v":0}]
[null,31,{"$f":"Import!I42594","v":"Other currency 4"},null,{"$f":"Import!I42612","v":0},{"$f":"Import!I42631","v":0},null,{"$f":"Import!I42650","v":0},{"$f":"Import!I42669","v":0},null,{"$f":"Import!I42688","v":0},null,{"$f":"Import!I42707","v":0},{"$f":"Import!I42726","v":0},null,{"$f":"Import!I42745","v":0},{"$f":"Import!I42764","v":0},null,{"$f":"Import!I42783","v":0},{"$f":"Import!I42802","v":0},null,{"$f":"Import!I42821","v":0}]
[null,32,{"$f":"Import!I42595","v":"Other currency 5"},null,{"$f":"Import!I42613","v":0},{"$f":"Import!I42632","v":0},null,{"$f":"Import!I42651","v":0},{"$f":"Import!I42670","v":0},null,{"$f":"Import!I42689","v":0},null,{"$f":"Import!I42708","v":0},{"$f":"Import!I42727","v":0},null,{"$f":"Import!I42746","v":0},{"$f":"Import!I42765","v":0},null,{"$f":"Import!I42784","v":0},{"$f":"Import!I42803","v":0},null,{"$f":"Import!I42822","v":0}]
[null,33,{"$f":"Import!I42596","v":"Other currency 6"},null,{"$f":"Import!I42614","v":0},{"$f":"Import!I42633","v":0},null,{"$f":"Import!I42652","v":0},{"$f":"Import!I42671","v":0},null,{"$f":"Import!I42690","v":0},null,{"$f":"Import!I42709","v":0},{"$f":"Import!I42728","v":0},null,{"$f":"Import!I42747","v":0},{"$f":"Import!I42766","v":0},null,{"$f":"Import!I42785","v":0},{"$f":"Import!I42804","v":0},null,{"$f":"Import!I42823","v":0}]
[null,34,{"$f":"Import!I42597","v":"Other currency 7"},null,{"$f":"Import!I42615","v":0},{"$f":"Import!I42634","v":0},null,{"$f":"Import!I42653","v":0},{"$f":"Import!I42672","v":0},null,{"$f":"Import!I42691","v":0},null,{"$f":"Import!I42710","v":0},{"$f":"Import!I42729","v":0},null,{"$f":"Import!I42748","v":0},{"$f":"Import!I42767","v":0},null,{"$f":"Import!I42786","v":0},{"$f":"Import!I42805","v":0},null,{"$f":"Import!I42824","v":0}]
[null,35,{"$f":"Import!I42598","v":"Other currency 8"},null,{"$f":"Import!I42616","v":0},{"$f":"Import!I42635","v":0},null,{"$f":"Import!I42654","v":0},{"$f":"Import!I42673","v":0},null,{"$f":"Import!I42692","v":0},null,{"$f":"Import!I42711","v":0},{"$f":"Import!I42730","v":0},null,{"$f":"Import!I42749","v":0},{"$f":"Import!I42768","v":0},null,{"$f":"Import!I42787","v":0},{"$f":"Import!I42806","v":0},null,{"$f":"Import!I42825","v":0}]
[null,36,{"$f":"Import!I42599","v":"Other currency 9"},null,{"$f":"Import!I42617","v":0},{"$f":"Import!I42636","v":0},null,{"$f":"Import!I42655","v":0},{"$f":"Import!I42674","v":0},null,{"$f":"Import!I42693","v":0},null,{"$f":"Import!I42712","v":0},{"$f":"Import!I42731","v":0},null,{"$f":"Import!I42750","v":0},{"$f":"Import!I42769","v":0},null,{"$f":"Import!I42788","v":0},{"$f":"Import!I42807","v":0},null,{"$f":"Import!I42826","v":0}]
[null,37,{"$f":"Import!I42600","v":"Other currency 10"},null,{"$f":"Import!I42618","v":0},{"$f":"Import!I42637","v":0},null,{"$f":"Import!I42656","v":0},{"$f":"Import!I42675","v":0},null,{"$f":"Import!I42694","v":0},null,{"$f":"Import!I42713","v":0},{"$f":"Import!I42732","v":0},null,{"$f":"Import!I42751","v":0},{"$f":"Import!I42770","v":0},null,{"$f":"Import!I42789","v":0},{"$f":"Import!I42808","v":0},null,{"$f":"Import!I42827","v":0}]
[null,38,"IR UP Shock Total",null,{"$f":"SUM(E35:E52)","v":0},{"$f":"SUM(F35:F52)","v":0},null,{"$f":"SUM(H35:H52)","v":0},{"$f":"SUM(I35:I52)","v":0},null,{"$f":"SUM(K35:K52)","v":0},null,{"$f":"SUM(M35:M52)","v":0},{"$f":"SUM(N35:N52)","v":0},null,{"$f":"SUM(P35:P52)","v":0},{"$f":"SUM(Q35:Q52)","v":0},null,{"$f":"SUM(S35:S52)","v":0},{"$f":"SUM(T35:T52)","v":0},null,{"$f":"SUM(V35:V52)","v":0}]
[]
[null,null,"Interest Rate Check",null,{"$f":"IF(ROUND(E28-E53,0)=0,\"Yes\",\"No\")","v":"Yes"},null,null,{"$f":"IF(ROUND(H28-H53,0)=0,\"Yes\",\"No\")","v":"Yes"},null,null,null,null,{"$f":"IF(ROUND(M28-M53,0)=0,\"Yes\",\"No\")","v":"Yes"},null,null,{"$f":"IF(ROUND(P28-P53,0)=0,\"Yes\",\"No\")","v":"Yes"},null,null,{"$f":"IF(ROUND(S28-S53,0)=0,\"Yes\",\"No\")","v":"Yes"}]
[null,null,"Difference",null,{"$f":"ROUND(E28-E53,0)","v":0},null,null,{"$f":"ROUND(H28-H53,0)","v":0},null,null,null,null,{"$f":"ROUND(M28-M53,0)","v":0},null,null,{"$f":"ROUND(P28-P53,0)","v":0},null,null,{"$f":"ROUND(S28-S53,0)","v":0}]

{"sheet":"Corp Gov","index":97,"n_rows":19,"n_cols":4,"rows_kept":19,"cut":false,"hidden":false,"merged":[[5,1,5,3],[18,1,18,4],[19,1,19,3]]}
[null,"INSURANCE GROUP CORPORATE GOVERNANCE (TABLE 13A)",null,{"$f":"HYPERLINK(\"#'Index'!A1\",\"Return to Index\")","v":"Return to Index"}]
[]
[null,{"$f":"'Group Information'!C9","v":"Enter Parent Company Name"}]
[null,{"$f":"'Form 1EBS'!C3","v":"2023-12-31"}]
[]
[null,"The designated insurer of the insurance group is to review the following statements below.  The designated insurer is to place an “X” in the column “Implemented” where the Corporate Governance function meets the criteria (200 points for each fulfilled criteria).  The worksheet will automatically aggregate all scores."]
[]
[null,"The Parent Company's Board of Directors:"]
[]
[null,"Description","Implemented","Score"]
[null,"Sets risk policies, practices and tolerance limits for all material foreseeable operational risks at least annually and ensures they are communicated to insurance group entities ",null,{"$f":"IF(C11=\"\",Import!E38487,IF(C11=\"X\", 200, 0))","v":0}]
[null,"Monitors adherence to operational risk tolerance limits more regularly than annually",null,{"$f":"IF(C12=\"\",Import!E38488,IF(C12=\"X\", 200, 0))","v":0}]
[null,"Receives, at least annually, reports on the effectiveness of material operational risk internal controls as well as senior management’s plans to address related weaknesses",null,{"$f":"IF(C13=\"\",Import!E38489,IF(C13=\"X\", 200, 0))","v":0}]
[null,"Ensures that systems and/or procedures are in place to identify, report and promptly address internal control deficiencies related to operational risks",null,{"$f":"IF(C14=\"\",Import!E38490,IF(C14=\"X\", 200, 0))","v":0}]
[null,"Promotes full, open and timely disclosure from senior management on all significant issues related to operational risk",null,{"$f":"IF(C15=\"\",Import!E38491,IF(C15=\"X\", 200, 0))","v":0}]
[null,"Ensures that periodic independent reviews of the risk management function are performed and receives the findings of the review",null,{"$f":"IF(C16=\"\",Import!E38492,IF(C16=\"X\", 200, 0))","v":0}]
[null,null,null,{"$f":"SUM(D11:D16)","v":0}]
[]
[null,"Comments (optionally, the designated insurer may provide comments in the box below to support its responses above):"]

{"sheet":"Risk Man","index":98,"n_rows":20,"n_cols":4,"rows_kept":20,"cut":false,"hidden":false,"merged":[[5,1,5,3],[20,1,20,3],[19,1,19,3]]}
[null,"INSURANCE GROUP RISK MANAGEMENT FUNCTION (TABLE 13B)",null,{"$f":"HYPERLINK(\"#'Index'!A1\",\"Return to Index\")","v":"Return to Index"}]
[]
[null,{"$f":"'Group Information'!C9","v":"Enter Parent Company Name"}]
[null,{"$f":"'Form 1EBS'!C3","v":"2023-12-31"}]
[]
[null,"The designated insurer of the insurance group is to review the following statements below.  The designated insurer is to place an “X” in the column “Implemented” where the Risk Management function meets the criteria (150 points for each fulfilled criteria).  The worksheet will automatically aggregate all scores."]
[]
[null,"The Risk Management Function:"]
[]
[null,"Description","Implemented","Score"]
[null,"Is independent of other operational units and has direct access to the parent company's Board of Directors",null,{"$f":"IF(C11=\"\",Import!E38493,IF(C11=\"X\", 150, 0))","v":0}]
[null,"Is entrenched in strategic planning, decision making and budgeting process",null,{"$f":"IF(C12=\"\",Import!E38494,IF(C12=\"X\", 150, 0))","v":0}]
[null,"Ensures that the risk management procedures and policies are well documented and approved by the parent company's Board of Directors",null,{"$f":"IF(C13=\"\",Import!E38495,IF(C13=\"X\", 150, 0))","v":0}]
[null,"Ensures that the risk management policies and procedures are communicated throughout the insurance group",null,{"$f":"IF(C14=\"\",Import!E38496,IF(C14=\"X\", 150, 0))","v":0}]
[null,"Ensures that operational risk management processes and procedures are reviewed at least annually",null,{"$f":"IF(C15=\"\",Import!E38497,IF(C15=\"X\", 150, 0))","v":0}]
[null,"Ensures that loss events arising from operational risks are documented and loss event data is integrated into the risk management strategy ",null,{"$f":"IF(C16=\"\",Import!E38498,IF(C16=\"X\", 150, 0))","v":0}]
[null,"Ensures that risk management recommendations are documented for operational units, ensures that deficiencies have remedial plans and that progress on the execution of such plans are reported to the parent company's Board of Directors at least annually",null,{"$f":"IF(C17=\"\",Import!E38499,IF(C17=\"X\", 150, 0))","v":0}]
[null,null,null,{"$f":"SUM(D11:D17)","v":0}]
[]
[null,"Comments (optionally, the designated insurer may provide comments in the box below to support its responses above):"]

{"sheet":"Identification","index":99,"n_rows":22,"n_cols":14,"rows_kept":22,"cut":false,"hidden":false,"merged":[[2,1,2,3],[4,1,4,12],[6,1,6,10],[6,11,6,12],[22,1,22,12],[12,1,12,2],[12,3,13,3],[12,4,12,12],[21,1,21,7]]}
[null,"INSURANCE GROUP RISK IDENTIFICATION (TABLE 13C)",null,null,null,null,null,null,null,null,null,null,{"$f":"HYPERLINK(\"#'Index'!A1\",\"Return to Index\")","v":"Return to Index"}]
[null,{"$f":"'Group Information'!C9","v":"Enter Parent Company Name"}]
[null,{"$f":"'Form 1EBS'!C3","v":"2023-12-31"}]
[]
[null,"The designated insurer of the insurance group is to answer the following question.  If the answer to the question is \"No\" then the designated insurer does not have to complete the matrix/grid.  If the answer to the question is \"Yes\" then the designated insurer is to identify the stage of progression of each Operational Risk Area based upon the Dimension descriptor.  The designated insurer is then to input an “X” in the grid corresponding to the stage in the matrix table under the relevant Operational Risk Area."]
[]
[null,"Has your company taken steps to identify material risks arising from the Operational Risk Areas identified below? (Y/N) "]
[]
[null,"If \"Y\", identify the stage of each Operational Risk Area and input an \"X\" in the appropriate grid under each area."]
[]
[null,"Risk Identification Processes are:"]
[]
[null,"Progression",null,"Dimension","Operational Risk Areas"]
[null,"Stage","Scoring",null,"Fraud","Human Resources","Outsourcing","Distribution Channels","Business Processes","Business Continuity","Information Systems","Compliance","Total (Si)"]
[null,1,50,"“ad hoc”"]
[null,2,100,"Implemented but not standardised across the insurance group"]
[null,3,150,"Implemented, well documented policies and procedures that are understood by relevant staff, and standardised across the entire insurance group"]
[null,4,200,"In addition to Stage 3, processes are reviewed at least annually with the view to assessing effectiveness and introducing improvements"]
[null,null,null,null,{"$f":"IF(COUNTA(E15:E18)=0,Import!$E38500,IF(E15=\"X\", 50, IF(E16=\"X\", 100, IF(E17=\"X\", 150, IF(E18=\"X\", 200, 0)))))","v":0},{"$f":"IF(COUNTA(F15:F18)=0,Import!$E38501,IF(F15=\"X\", 50, IF(F16=\"X\", 100, IF(F17=\"X\", 150, IF(F18=\"X\", 200, 0)))))","v":0},{"$f":"IF(COUNTA(G15:G18)=0,Import!$E38502,IF(G15=\"X\", 50, IF(G16=\"X\", 100, IF(G17=\"X\", 150, IF(G18=\"X\", 200, 0)))))","v":0},{"$f":"IF(COUNTA(H15:H18)=0,Import!$E38503,IF(H15=\"X\", 50, IF(H16=\"X\", 100, IF(H17=\"X\", 150, IF(H18=\"X\", 200, 0)))))","v":0},{"$f":"IF(COUNTA(I15:I18)=0,Import!$E38504,IF(I15=\"X\", 50, IF(I16=\"X\", 100, IF(I17=\"X\", 150, IF(I18=\"X\", 200, 0)))))","v":0},{"$f":"IF(COUNTA(J15:J18)=0,Import!$E38505,IF(J15=\"X\", 50, IF(J16=\"X\", 100, IF(J17=\"X\", 150, IF(J18=\"X\", 200, 0)))))","v":0},{"$f":"IF(COUNTA(K15:K18)=0,Import!$E38506,IF(K15=\"X\", 50, IF(K16=\"X\", 100, IF(K17=\"X\", 150, IF(K18=\"X\", 200, 0)))))","v":0},{"$f":"IF(COUNTA(L15:L18)=0,Import!$E38507,IF(L15=\"X\", 50, IF(L16=\"X\", 100, IF(L17=\"X\", 150, IF(L18=\"X\", 200, 0)))))","v":0},{"$f":"SUM(E19:L19)","v":0},{"$f":"IF(M19>1600, \"ERR\", \"OK\")","v":"OK"}]
[]
[]
[null,"Comments (optionally, the designated insurer may provide comments in the box below to support its responses above):"]

{"sheet":"Measurement","index":100,"n_rows":22,"n_cols":14,"rows_kept":22,"cut":false,"hidden":false,"merged":[[2,1,2,3],[21,1,21,7],[22,1,23,12],[4,1,4,12],[6,10,6,11],[12,1,12,2],[12,3,13,3],[12,4,12,12]]}
[null,"INSURANCE GROUP RISK MEASUREMENT (TABLE 13D)",null,null,null,null,null,null,null,null,null,null,{"$f":"HYPERLINK(\"#'Index'!A1\",\"Return to Index\")","v":"Return to Index"}]
[null,{"$f":"'Group Information'!C9","v":"Enter Parent Company Name"}]
[null,{"$f":"'Form 1EBS'!C3","v":"2023-12-31"}]
[]
[null,"The designated insurer of the insurance group is to answer the following question.  If the answer to the question is \"No\" then the designated insurer does not have to complete the matrix/grid.  If the answer to the question is \"Yes\" then the designated insurer is to identify the stage of progression of each Operational Risk Area based upon the Dimension descriptor.  The designated insurer is then to input an “X” in the grid corresponding to the stage in the matrix table under the relevant Operational Risk Area."]
[]
[null,"Has your company taken steps to measure material risks arising from the Operational Risk Areas identified below? (Y/N) "]
[]
[null,"If \"Y\", identify the stage of each Operational Risk Area and input an \"X\" in the appropriate grid under each area."]
[]
[null,"Risk Measurement processes are:"]
[]
[null,"Progression",null,"Dimension","Operational Risk Areas"]
[null,"Stage","Scoring",null,"Fraud","Human Resources","Outsourcing","Distribution Channels","Business Processes","Business Continuity","Information Systems","Compliance","Total (Si)"]
[null,1,50,"“ad hoc”"]
[null,2,100,"Implemented but not standardised across the insurance group"]
[null,3,150,"Implemented, well documented policies and procedures that are understood by relevant staff, and standardised across the entire insurance group"]
[null,4,200,"In addition to Stage 3, processes are reviewed at least annually with the view to assessing effectiveness and introducing improvements"]
[null,null,null,null,{"$f":"IF(COUNTA(E15:E18)=0,Import!$E38508,IF(E15=\"X\", 50, IF(E16=\"X\", 100, IF(E17=\"X\", 150, IF(E18=\"X\", 200, 0)))))","v":0},{"$f":"IF(COUNTA(F15:F18)=0,Import!$E38509,IF(F15=\"X\", 50, IF(F16=\"X\", 100, IF(F17=\"X\", 150, IF(F18=\"X\", 200, 0)))))","v":0},{"$f":"IF(COUNTA(G15:G18)=0,Import!$E38510,IF(G15=\"X\", 50, IF(G16=\"X\", 100, IF(G17=\"X\", 150, IF(G18=\"X\", 200, 0)))))","v":0},{"$f":"IF(COUNTA(H15:H18)=0,Import!$E38511,IF(H15=\"X\", 50, IF(H16=\"X\", 100, IF(H17=\"X\", 150, IF(H18=\"X\", 200, 0)))))","v":0},{"$f":"IF(COUNTA(I15:I18)=0,Import!$E38512,IF(I15=\"X\", 50, IF(I16=\"X\", 100, IF(I17=\"X\", 150, IF(I18=\"X\", 200, 0)))))","v":0},{"$f":"IF(COUNTA(J15:J18)=0,Import!$E38513,IF(J15=\"X\", 50, IF(J16=\"X\", 100, IF(J17=\"X\", 150, IF(J18=\"X\", 200, 0)))))","v":0},{"$f":"IF(COUNTA(K15:K18)=0,Import!$E38514,IF(K15=\"X\", 50, IF(K16=\"X\", 100, IF(K17=\"X\", 150, IF(K18=\"X\", 200, 0)))))","v":0},{"$f":"IF(COUNTA(L15:L18)=0,Import!$E38515,IF(L15=\"X\", 50, IF(L16=\"X\", 100, IF(L17=\"X\", 150, IF(L18=\"X\", 200, 0)))))","v":0},{"$f":"SUM(E19:L19)","v":0},{"$f":"IF(M19>1600, \"ERR\", \"OK\")","v":"OK"}]
[]
[]
[null,"Comments (optionally, the designated insurer may provide comments in the box below to support its responses above):"]

{"sheet":"Response","index":101,"n_rows":22,"n_cols":14,"rows_kept":22,"cut":false,"hidden":false,"merged":[[2,1,2,3],[21,1,21,7],[22,1,22,12],[4,1,4,12],[6,11,6,12],[12,1,12,2],[12,3,13,3],[12,4,12,12]]}
[null,"INSURANCE GROUP RISK RESPONSE (TABLE 13E)",null,null,null,null,null,null,null,null,null,null,{"$f":"HYPERLINK(\"#'Index'!A1\",\"Return to Index\")","v":"Return to Index"}]
[null,{"$f":"'Group Information'!C9","v":"Enter Parent Company Name"}]
[null,{"$f":"'Form 1EBS'!C3","v":"2023-12-31"}]
[]
[null,"The designated insurer of the insurance group is to answer the following question.  If the answer to the question is \"No\" then the designated insurer does not have to complete the matrix/grid.  If the answer to the question is \"Yes\" then the designated insurer is to identify the stage of progression of each Operational Risk Area based upon the Dimension descriptor.  The designated insurer is then to input an “X” in the grid corresponding to the stage in the matrix table under the relevant Operational Risk Area."]
[]
[null,"Has your company taken steps to control and/or mitigate material risks arising from the Operational Risk Areas identified below? (Y/N)"]
[]
[null,"If \"Y\", identify the stage of each Operational Risk Area and input an \"X\" in the appropriate grid under each area."]
[]
[null,"Risk Response processes are:"]
[]
[null,"Progression",null,"Dimension","Operational Risk Areas"]
[null,"Stage","Scoring",null,"Fraud","Human Resources","Outsourcing","Distribution Channels","Business Processes","Business Continuity","Information Systems","Compliance","Total (Si)"]
[null,1,50,"“ad hoc”"]
[null,2,100,"Implemented but not standardised across the insurance group"]
[null,3,150,"Implemented, well documented policies and procedures that are understood by relevant staff, and standardised across the entire insurance group"]
[null,4,200,"In addition to Stage 3, processes are reviewed at least annually with the view to assessing effectiveness and introducing improvements"]
[null,null,null,null,{"$f":"IF(COUNTA(E15:E18)=0,Import!$E38516,IF(E15=\"X\", 50, IF(E16=\"X\", 100, IF(E17=\"X\", 150, IF(E18=\"X\", 200, 0)))))","v":0},{"$f":"IF(COUNTA(F15:F18)=0,Import!$E38517,IF(F15=\"X\", 50, IF(F16=\"X\", 100, IF(F17=\"X\", 150, IF(F18=\"X\", 200, 0)))))","v":0},{"$f":"IF(COUNTA(G15:G18)=0,Import!$E38518,IF(G15=\"X\", 50, IF(G16=\"X\", 100, IF(G17=\"X\", 150, IF(G18=\"X\", 200, 0)))))","v":0},{"$f":"IF(COUNTA(H15:H18)=0,Import!$E38519,IF(H15=\"X\", 50, IF(H16=\"X\", 100, IF(H17=\"X\", 150, IF(H18=\"X\", 200, 0)))))","v":0},{"$f":"IF(COUNTA(I15:I18)=0,Import!$E38520,IF(I15=\"X\", 50, IF(I16=\"X\", 100, IF(I17=\"X\", 150, IF(I18=\"X\", 200, 0)))))","v":0},{"$f":"IF(COUNTA(J15:J18)=0,Import!$E38521,IF(J15=\"X\", 50, IF(J16=\"X\", 100, IF(J17=\"X\", 150, IF(J18=\"X\", 200, 0)))))","v":0},{"$f":"IF(COUNTA(K15:K18)=0,Import!$E38522,IF(K15=\"X\", 50, IF(K16=\"X\", 100, IF(K17=\"X\", 150, IF(K18=\"X\", 200, 0)))))","v":0},{"$f":"IF(COUNTA(L15:L18)=0,Import!$E38523,IF(L15=\"X\", 50, IF(L16=\"X\", 100, IF(L17=\"X\", 150, IF(L18=\"X\", 200, 0)))))","v":0},{"$f":"SUM(E19:L19)","v":0},{"$f":"IF(M19>1600, \"ERR\", \"OK\")","v":"OK"}]
[]
[]
[null,"Comments (optionally, the designated insurer may provide comments in the box below to support its responses above):"]

{"sheet":"Monitoring & Reporting","index":102,"n_rows":22,"n_cols":14,"rows_kept":22,"cut":false,"hidden":false,"merged":[[2,1,2,3],[21,1,21,7],[22,1,22,12],[4,1,4,12],[6,10,6,11],[12,1,12,2],[12,3,13,3],[12,4,12,12]]}
[null,"INSURANCE GROUP RISK MONITORING & REPORTING (TABLE 13F)",null,null,null,null,null,null,null,null,null,null,{"$f":"HYPERLINK(\"#'Index'!A1\",\"Return to Index\")","v":"Return to Index"}]
[null,{"$f":"'Group Information'!C9","v":"Enter Parent Company Name"}]
[null,{"$f":"'Form 1EBS'!C3","v":"2023-12-31"}]
[]
[null,"The designated insurer of the insurance group is to answer the following question.  If the answer to the question is \"No\" then the designated insurer does not have to complete the matrix/grid.  If the answer to the question is \"Yes\" then the designated insurer is to identify the stage of progression of each Operational Risk Area based upon the Dimension descriptor.  The designated insurer is then to input an “X” in the grid corresponding to the stage in the matrix table under the relevant Operational Risk Area."]
[]
[null,"Has your company taken steps to monitor and report material risks arising from the Operational Risk Areas identified below? (Y/N)"]
[]
[null,"If \"Y\", identify the stage of each Operational Risk Area and input an \"X\" in the appropriate grid under each area."]
[]
[null,"Risk Monitoring & Reporting processes are:"]
[]
[null,"Progression",null,"Dimension","Operational Risk Areas"]
[null,"Stage","Scoring",null,"Fraud","Human Resources","Outsourcing","Distribution Channels","Business Processes","Business Continuity","Information Systems","Compliance","Total (Si)"]
[null,1,50,"“ad hoc”"]
[null,2,100,"Implemented but not standardised across the insurance group"]
[null,3,150,"Implemented, well documented policies and procedures that are understood by relevant staff, and standardised across the entire insurance group"]
[null,4,200,"In addition to Stage 3, processes are reviewed at least annually with the view to assessing effectiveness and introducing improvements"]
[null,null,null,null,{"$f":"IF(COUNTA(E15:E18)=0,Import!$E38524,IF(E15=\"X\", 50, IF(E16=\"X\", 100, IF(E17=\"X\", 150, IF(E18=\"X\", 200, 0)))))","v":0},{"$f":"IF(COUNTA(F15:F18)=0,Import!$E38525,IF(F15=\"X\", 50, IF(F16=\"X\", 100, IF(F17=\"X\", 150, IF(F18=\"X\", 200, 0)))))","v":0},{"$f":"IF(COUNTA(G15:G18)=0,Import!$E38526,IF(G15=\"X\", 50, IF(G16=\"X\", 100, IF(G17=\"X\", 150, IF(G18=\"X\", 200, 0)))))","v":0},{"$f":"IF(COUNTA(H15:H18)=0,Import!$E38527,IF(H15=\"X\", 50, IF(H16=\"X\", 100, IF(H17=\"X\", 150, IF(H18=\"X\", 200, 0)))))","v":0},{"$f":"IF(COUNTA(I15:I18)=0,Import!$E38528,IF(I15=\"X\", 50, IF(I16=\"X\", 100, IF(I17=\"X\", 150, IF(I18=\"X\", 200, 0)))))","v":0},{"$f":"IF(COUNTA(J15:J18)=0,Import!$E38529,IF(J15=\"X\", 50, IF(J16=\"X\", 100, IF(J17=\"X\", 150, IF(J18=\"X\", 200, 0)))))","v":0},{"$f":"IF(COUNTA(K15:K18)=0,Import!$E38530,IF(K15=\"X\", 50, IF(K16=\"X\", 100, IF(K17=\"X\", 150, IF(K18=\"X\", 200, 0)))))","v":0},{"$f":"IF(COUNTA(L15:L18)=0,Import!$E38531,IF(L15=\"X\", 50, IF(L16=\"X\", 100, IF(L17=\"X\", 150, IF(L18=\"X\", 200, 0)))))","v":0},{"$f":"SUM(E19:L19)","v":0},{"$f":"IF(M19>1600, \"ERR\", \"OK\")","v":"OK"}]
[]
[]
[null,"Comments (optionally, the designated insurer may provide comments in the box below to support its responses above):"]

{"sheet":"Op Risk","index":103,"n_rows":44,"n_cols":8,"rows_kept":44,"cut":false,"hidden":false,"merged":[[1,1,1,7],[39,3,39,7],[32,3,32,7],[27,3,27,7],[29,3,29,7],[34,3,34,7],[36,3,36,7]]}
[null,"OPERATIONAL RISK CHARGE CALCULATION INSTRUCTIONS",null,null,null,null,null,{"$f":"HYPERLINK(\"#'Index'!A1\",\"Return to Index\")","v":"Return to Index"}]
[null,"Subject to the Authority applying a re-assessment upon onsite inspection, the “Total Operational Risk Capital Charge” below will be applied to the GROUP BSCR (After Covariance Adjustment) sub-total in the GROUP BSCR model for purposes of arriving at its Enhanced Capital Requirement for the year-end filing."]
[]
[null,null,"Overall CIRA Score",{"$f":"'Corp Gov'!D17+'Risk Man'!D18+Identification!M19+Measurement!M19+'Monitoring & Reporting'!M19+Response!M19","v":0}]
[]
[null,null,"CIRA Scoring Grid"]
[]
[null,null,"OVERALL SCORE","APPLICABLE OPERATIONAL RISK CHARGE % OF \"GROUP BSCR AFTER COVARIANCE ADJUSTMENT\""]
[]
[null,null,"<= 5200",0.1]
[null,null,"> 5200 <= 6000",0.09]
[null,null,"> 6000 <= 6650",0.08]
[null,null,"> 6650 <= 7250",7.0000000000000007E-2]
[null,null,"> 7250 <= 7650",0.06]
[null,null,"> 7650 <= 7850",0.05]
[null,null,"> 7850 <= 8050",0.04]
[null,null,"> 8050 <= 8250",0.03]
[null,null,"> 8250 <= 8450",0.02]
[null,null,"> 8450",0.01]
[]
[null,null,"GROUP BSCR After Covariance Adjustment:",{"$f":"Summary!F35","v":0}]
[]
[null,null,"Operational Risk Charge % :",{"$f":"F23","v":0.1},null,{"$f":"IF(D4<=5200,0.1, IF(D4<=6000, 0.09, IF(D4<=6650, 0.08, IF(D4<=7250, 0.07, IF(D4<=7650, 0.06, IF(D4<=7850, 0.05, IF(D4<=8050, 0.04, IF(D4<=8250, 0.03, IF(D4<=8250, 0.03,IF(D4<=8450,0.02,IF(D4>8450,0.01,\"N/A\")))))))))))","v":0.1}]
[]
[null,null,"Total Operational Risk Capital Charge:",{"$f":"D21*D23","v":0}]
[]
[]
[null,null,"Signatory:"]
[]
[null,null,"Print Name:"]
[null,null,null,"Resident Director"]
[]
[null,null,"Date:"]
[]
[null,null,"Signatory:"]
[]
[null,null,"Print Name:"]
[null,null,null,"Director"]
[]
[null,null,"Date:"]
[]
[null,null,"Parent Company Name:",{"$f":"'Group Information'!C9","v":"Enter Parent Company Name"}]
[]
[null,null,"Year-end:",{"$f":"'Form 1EBS'!C3","v":"2023-12-31"}]

{"sheet":"Op Risk (Revised)","index":104,"n_rows":44,"n_cols":8,"rows_kept":44,"cut":false,"hidden":false,"merged":[[39,3,39,7],[1,1,1,7],[27,3,27,7],[29,3,29,7],[32,3,32,7],[34,3,34,7],[36,3,36,7]]}
[null,"OPERATIONAL RISK CHARGE CALCULATION INSTRUCTIONS",null,null,null,null,null,{"$f":"HYPERLINK(\"#'Index'!A1\",\"Return to Index\")","v":"Return to Index"}]
[null,"Subject to the Authority applying a re-assessment upon onsite inspection, the “Total Operational Risk Capital Charge” below will be applied to the GROUP BSCR (After Covariance Adjustment) sub-total in the GROUP BSCR model for purposes of arriving at its Enhanced Capital Requirement for the year-end filing."]
[]
[null,null,"Overall CIRA Score",{"$f":"'Corp Gov'!D17+'Risk Man'!D18+Identification!M19+Measurement!M19+'Monitoring & Reporting'!M19+Response!M19","v":0}]
[]
[null,null,"CIRA Scoring Grid"]
[]
[null,null,"OVERALL SCORE","APPLICABLE OPERATIONAL RISK CHARGE % OF \"GROUP BSCR AFTER COVARIANCE ADJUSTMENT\""]
[]
[null,null,"<=4,000",0.2]
[null,null,"> 4,000 <= 5,200",0.18]
[null,null,"> 5,200 <= 6,000",0.15]
[null,null,"> 6,000 <= 6,650",0.12]
[null,null,"> 6,650 <= 7,250",0.09]
[null,null,"> 7,250 <= 7,650",7.0000000000000007E-2]
[null,null,"> 7,650 <= 7,850",0.05]
[null,null,"> 7,850 <= 8,050",0.03]
[null,null,"> 8,050 <= 8,250",0.02]
[null,null,"> 8,250",0.01]
[]
[null,null,"GROUP BSCR After Covariance Adjustment:",{"$f":"Summary!M35","v":0}]
[]
[null,null,"Operational Risk Charge % :",{"$f":"IF(D4<=4000,0.2,IF(D4<=5200,0.18,IF(D4<=6000,0.15,IF(D4<=6650,0.12,IF(D4<=7250,0.09,IF(D4<=7650,0.07,IF(D4<=7850,0.05,IF(D4<=8050,0.03,IF(D4<=8250,0.02,IF(D4>8250,0.01,\"N/A\"))))))))))","v":0.2}]
[]
[null,null,"Total Operational Risk Capital Charge:",{"$f":"D21*D23","v":0}]
[]
[]
[null,null,"Signatory:"]
[]
[null,null,"Print Name:"]
[null,null,null,"Resident Director"]
[]
[null,null,"Date:"]
[]
[null,null,"Signatory:"]
[]
[null,null,"Print Name:"]
[null,null,null,"Director"]
[]
[null,null,"Date:"]
[]
[null,null,"Parent Company Name:",{"$f":"'Group Information'!C9","v":"Enter Parent Company Name"}]
[]
[null,null,"Year-end:",{"$f":"'Form 1EBS'!C3","v":"2023-12-31"}]

{"sheet":"Summary","index":105,"n_rows":152,"n_cols":44,"rows_kept":152,"cut":false,"hidden":false,"merged":[[114,9,114,12],[64,9,64,12],[135,9,135,12],[142,6,142,7],[5,4,5,5],[128,6,128,7],[5,9,5,12],[75,9,75,12],[79,9,79,12],[89,9,89,12],[121,9,121,12],[32,41,34,42],[28,39,28,40],[28,37,28,38],[28,35,28,36],[7,9,7,10],[7,11,7,12]]}
[null,{"$f":"'Group Information'!C9","v":"Enter Parent Company Name"},null,null,null,null,null,null,null,null,null,null,null,null,null,null,null,{"$f":"HYPERLINK(\"#'Index'!A1\",\"Return to Index\")","v":"Return to Index"}]
[null,{"$f":"'Group Information'!C7","v":"Enter Group Company Name"},null,null,null,null,null,null,null,null,null,null,null,null,null,null,null,null,null,null,null,null,null,null,null,null,null,null,null,null,null,null,null,null,null,"Utilize Automatic Label Adjustment:",null,null,null,"Yes"]
[null,"Bermuda Solvency Capital Requirement - (Group BSCR)"]
[null,{"$f":"\"For the Year Ending \"","v":"For the Year Ending "},null,{"$f":"TEXT('Group Information'!C3,\"dd mmmm yyyy\")","v":"31 December 2023"}]
[null,{"$f":"\"Expressed in \"","v":"Expressed in "},null,{"$f":"'Form 1EBS'!C4","v":" ['000s]United States Dollars"}]
[null,"REQUIRED CAPITAL AND SURPLUS",null,null,"2018 Year-End Methodology",null,null,null,null,"2019 Year-End Methodology",null,null,null,null,null,null,null,null,null,null,null,null,null,"Data for Pie Chart",null,null,null,null,null,"Cum. %","Mid.","Risk","Left","Top",null,"4 Right",null,"3 Right - 1 Down",null,"3 Right",null,"Custom",null,"Risk"]
[]
[null,null,null,null,null,null,null,null,null,"Net Capital Charge",null,"Gross Capital Charge"]
[null,"Market Risk",null,null,null,null,null,null,null,null,{"$f":"SQRT(MMULT(TRANSPOSE(J10:J14),MMULT('Correlation Matrix'!B7:F11,J10:J14)))","v":0},null,{"$f":"SQRT(MMULT(TRANSPOSE(L10:L14),MMULT('Correlation Matrix'!B7:F11,L10:L14)))","v":0}]
[null,"Cfi","Fixed Income Investment Risk",null,null,{"$f":"ROUND('Fixed Income Investments'!F99,$M$152)","v":0},null,null,null,{"$f":"ROUND('Fixed Income Investments (Rev.)'!I136,$M$152)","v":0},null,{"$f":"ROUND('Fixed Income Investments (Rev.)'!I136,$M$152)","v":0},null,null,null,null,null,null,null,"Fixed Income",null,null,null,null,{"$f":"J10","v":0},{"$f":"IF($K$35=0,1/16,Y10/$Y$29)","v":6.25E-2},{"$f":"L10","v":0},{"$f":"IF($M$35=0,1/16,AA10/$AA$29)","v":6.25E-2},null,{"$f":"(SUM(AB$10:AB10)/AB$29)+0.125","v":0.1875},null,"FI",{"$f":"IF(AP10=\"\",IF(Test_Statistic<$AK$35,AJ10,IF(Test_Statistic<$AM$35,AL10,AN10)),AP10)","v":300},{"$f":"IF(AQ10=\"\",IF(Test_Statistic<$AK$35,AK10,IF(Test_Statistic<$AM$35,AM10,AO10)),AQ10)","v":60},null,{"$f":"IF(AD15>1,300,IF(AD15>0.6,260,240))","v":260},{"$f":"IF(AD17>1,50,IF(AD15>1,20,IF(AD15>0.6,25,15)))","v":25},{"$f":"IF(Test_Statistic_2<1,300,300)","v":300},60,280,60,null,null,"FI"]
[null,"Ceq","Equity Investment Risk",null,"Without Grandfathering",{"$f":"ROUND('Equity Investments'!F51,$M$152)","v":0},null,null,null,{"$f":"ROUND(IF(E11=\"With Grandfathering\",('Equity Investments (Grandf)'!F51+'Equity Investments (Non-Grandf)'!R58),'Equity Investments (Revised)'!R56),$M$152)","v":0},null,{"$f":"ROUND(IF(E11=\"With Grandfathering\",('Equity Investments (Grandf)'!F51+'Equity Investments (Non-Grandf)'!P58),'Equity Investments (Revised)'!P56),$M$152)","v":0},null,null,null,null,null,null,null,"Equity",null,null,null,null,{"$f":"J11","v":0},6.25E-2,{"$f":"L11","v":0},6.25E-2,null,{"$f":"(SUM(AB$10:AB11)/AB$29)+0.125","v":0.25},null,"EI",{"$f":"IF(AP11=\"\",IF(Test_Statistic<$AK$35,AJ11,IF(Test_Statistic<$AM$35,AL11,AN11)),AP11)","v":300},{"$f":"IF(AQ11=\"\",IF(Test_Statistic<$AK$35,AK11,IF(Test_Statistic<$AM$35,AM11,AO11)),AQ11)","v":120},null,{"$f":"IF(AD15>0.6,300,300)","v":300},{"$f":"IF(AD17>1,90,IF(AD15>1,60,IF(AD15>0.6,90,60)))","v":90},300,120,280,140,null,null,"EI"]
[null,"Cint","Interest Rate / Liquidity Risk",null,"Duration-Based Approach",{"$f":"ROUND('Interest Rate-Liquidity Risk'!G14,$M$152)","v":0},null,null,null,{"$f":"ROUND(IF(E12=\"Duration-Based Approach\",'Interest Rate-Liquidity Risk'!G14,'Interest Rate-Liquidity (Rev.)'!E117),$M$152)","v":0},null,{"$f":"ROUND(IF(E12=\"Duration-Based Approach\",'Interest Rate-Liquidity Risk'!G14,'Interest Rate-Liquidity (Rev.)'!D117),$M$152)","v":0},null,null,null,null,null,null,null,"Interest & Liquidity",null,null,null,null,{"$f":"J12","v":0},6.25E-2,{"$f":"L12","v":0},6.25E-2,null,{"$f":"(SUM(AB$10:AB12)/AB$29)+0.125","v":0.3125},null,"IR",{"$f":"IF(AP12=\"\",IF(Test_Statistic<$AK$35,AJ12,IF(Test_Statistic<$AM$35,AL12,AN12)),AP12)","v":280},250,null,{"$f":"IF(AD15>0.6,300,300)","v":300},{"$f":"IF(AD17>1,140,IF(AD15>1,120,IF(AD15>0.6,150,100)))","v":150},{"$f":"IF(Test_Statistic_2<0.95,280,260)","v":280},{"$f":"IF(Test_Statistic_2<0.95,170,200)","v":170},180,250,null,null,"IR"]
[null,"CCurr","Currency Risk",null,null,{"$f":"ROUND('Currency Risk'!I28,$M$152)","v":0},null,null,null,{"$f":"ROUND('Currency Risk (Revised)'!Y39,$M$152)","v":0},null,{"$f":"ROUND('Currency Risk (Revised)'!X39,$M$152)","v":0},null,null,null,null,null,null,null,"Currency Risk",null,null,null,null,{"$f":"J13","v":0},6.25E-2,{"$f":"L13","v":0},6.25E-2,null,{"$f":"(SUM(AB$10:AB13)/AB$29)+0.125","v":0.375}]
[null,"CConc","Concentration Risk",null,null,{"$f":"ROUND('Concentration Risk'!F111,$M$152)","v":0},null,null,null,{"$f":"ROUND('Concentration Risk (Revised)'!F123,$M$152)","v":0},null,{"$f":"ROUND('Concentration Risk (Revised)'!F123,$M$152)","v":0},null,null,null,null,null,null,null,"Concentration Risk",null,null,null,null,{"$f":"J14","v":0},6.25E-2,{"$f":"L14","v":0},6.25E-2,null,{"$f":"(SUM(AB$10:AB14)/AB$29)+0.125","v":0.4375}]
[null,null,null,null,null,null,null,null,null,null,null,null,null,null,null,null,null,null,null,"Credit Risk",null,null,null,null,{"$f":"J17","v":0},6.25E-2,{"$f":"L17","v":0},6.25E-2,null,{"$f":"IF(ISERROR(AB29),0,(SUM(AB$10:AB17)/AB$29)+0.125)","v":0.625},{"$f":"IF(ISERROR(AVERAGE(AD17:AD17)),0,AVERAGE(AD17:AD17))","v":0.625},"C",{"$f":"IF(AP17=\"\",IF(Test_Statistic<$AK$35,AJ15,IF(Test_Statistic<$AM$35,AL15,AN15)),AP17)","v":50},{"$f":"IF(AQ17=\"\",IF(Test_Statistic<$AK$35,AK15,IF(Test_Statistic<$AM$35,AM15,AO15)),AQ17)","v":70},null,{"$f":"IF(AD17>1,200,IF(AD15>1,50,IF(AD15>0.6,50,180)))","v":50},{"$f":"IF(AD17>1,5,IF(AD15>0.6,IF(AE17>0.5,60,120),IF(AD15>0.6,100,200)))","v":60},{"$f":"IF(Test_Statistic_2<0.95,50,160)","v":50},{"$f":"IF(Test_Statistic_2<0.95,70,5)","v":70},{"$f":"IF(Test_Statistic_2<1,50,180)","v":50},{"$f":"IF(Test_Statistic_2<1,50,5)","v":50}]
[null,"Credit Risk",null,null,null,null,null,null,null,null,{"$f":"J17","v":0},null,{"$f":"L17","v":0},null,null,null,null,null,null,"Premium Risk",null,null,null,null,{"$f":"J20","v":0},6.25E-2,{"$f":"L20","v":0},6.25E-2,null,{"$f":"(SUM(AB$10:AB16)/AB$29)+0.125","v":0.5625},{"$f":"IF(ISERROR(AVERAGE(AD12:AD16)),0,AVERAGE(AD12:AD16))","v":0.46250000000000002},"P",{"$f":"IF(AP20=\"\",IF(Test_Statistic<$AK$35,AJ16,IF(Test_Statistic<$AM$35,AL16,AN16)),AP20)","v":180},250,null,{"$f":"IF(AD17>1,250,IF(AD15>1,300,IF(AD15>0.6,260,300)))","v":260},{"$f":"IF(AD15>0.6,185,140)","v":185},{"$f":"IF(Test_Statistic_2<0.95,180,120)","v":180},200,100,250]
[null,"Ccred","Credit Risk",null,null,{"$f":"ROUND('Credit Risk'!F47,$M$152)","v":0},null,null,null,{"$f":"ROUND('Credit Risk (Revised)'!H84,$M$152)","v":0},null,{"$f":"ROUND('Credit Risk (Revised)'!H84,$M$152)","v":0},null,null,null,null,null,null,null,"Reserve Risk",null,null,null,null,{"$f":"J21","v":0},6.25E-2,{"$f":"L21","v":0},6.25E-2,null,{"$f":"IF(ISERROR(AB29),0,(SUM(AB$10:AB17)/AB$29)+0.125)","v":0.625},{"$f":"IF(ISERROR(AVERAGE(AD16:AD17)),0,AVERAGE(AD16:AD17))","v":0.59375},"R",{"$f":"IF(AP21=\"\",IF(Test_Statistic<$AK$35,AJ17,IF(Test_Statistic<$AM$35,AL17,AN17)),AP21)","v":50},160,null,{"$f":"IF(AD17>1,50,IF(AD15>0.6,120,260))","v":120},{"$f":"IF(AD17>1,90,IF(AD15>0.6,200,185))","v":200},50,{"$f":"IF(Test_Statistic_2<0.95,160,80)","v":160},{"$f":"IF(Test_Statistic_2<1,50,50)","v":50},150,null,null,"C"]
[null,null,null,null,null,null,null,null,null,null,null,null,null,null,null,null,null,null,null,"Catastrophe Risk",null,null,null,null,{"$f":"J22","v":0},6.25E-2,{"$f":"L22","v":0},6.25E-2,null,{"$f":"(SUM(AB$10:AB18)/AB$29)+0.125","v":0.6875},null,"CAT",{"$f":"IF(AP22=\"\",IF(Test_Statistic<$AK$35,AJ18,IF(Test_Statistic<$AM$35,AL18,AN18)),AP22)","v":180},{"$f":"IF(AQ22=\"\",IF(Test_Statistic<$AK$35,AK18,IF(Test_Statistic<$AM$35,AM18,AO18)),AQ22)","v":5},null,{"$f":"IF(AD17>1,260,IF(AD15>1,200,IF(AD15>0.6,180,40)))","v":180},{"$f":"IF(AD17>1,15,IF(AD15>0.6,5,100))","v":5},{"$f":"IF(Test_Statistic_2<0.95,180,240)","v":180},{"$f":"IF(Test_Statistic_2<0.95,5,20)","v":5},{"$f":"IF(Test_Statistic_2<1,180,240)","v":180},{"$f":"IF(Test_Statistic_2<1,5,20)","v":5}]
[null,"P&C Insurance Risk",null,null,null,null,null,null,null,null,{"$f":"SQRT(MMULT(TRANSPOSE(J20:J22),MMULT('Correlation Matrix'!H7:J9,J20:J22)))","v":0},null,{"$f":"SQRT(MMULT(TRANSPOSE(L20:L22),MMULT('Correlation Matrix'!H7:J9,L20:L22)))","v":0},null,null,null,null,null,null,"Mortality",null,null,null,null,{"$f":"J25","v":0},6.25E-2,{"$f":"L25","v":0},6.25E-2,null,{"$f":"(SUM(AB$10:AB19)/AB$29)+0.125","v":0.75},null,"CAT",{"$f":"IF(AP25=\"\",IF(Test_Statistic<$AK$35,AJ19,IF(Test_Statistic<$AM$35,AL19,AN19)),AP25)","v":180},{"$f":"IF(AQ25=\"\",IF(Test_Statistic<$AK$35,AK19,IF(Test_Statistic<$AM$35,AM19,AO19)),AQ25)","v":5},null,{"$f":"IF(AD15>1,260,IF(AD18>1,200,IF(AD18>0.6,180,40)))","v":180},{"$f":"IF(AD15>1,15,IF(AD18>0.6,5,100))","v":5},180,5,180,5]
[null,"Cprem- gb","Premium Risk - General Business",null,null,{"$f":"ROUND('Premium Risk'!H59,$M$152)","v":0},null,null,null,{"$f":"ROUND('Premium Risk (Revised)'!N59,$M$152)","v":0},null,{"$f":"ROUND('Premium Risk (Revised)'!N59,$M$152)","v":0},null,null,null,null,null,null,null,"Morbidity And Disability",null,null,null,null,{"$f":"J28","v":0},6.25E-2,{"$f":"L28","v":0},6.25E-2,null,{"$f":"(SUM(AB$10:AB20)/AB$29)+0.125","v":0.8125},null,"CAT",{"$f":"IF(AP28=\"\",IF(Test_Statistic<$AK$35,AJ20,IF(Test_Statistic<$AM$35,AL20,AN20)),AP28)","v":180},{"$f":"IF(AQ28=\"\",IF(Test_Statistic<$AK$35,AK20,IF(Test_Statistic<$AM$35,AM20,AO20)),AQ28)","v":5},null,{"$f":"IF(AD18>1,260,IF(AD19>1,200,IF(AD19>0.6,180,40)))","v":180},{"$f":"IF(AD18>1,15,IF(AD19>0.6,5,100))","v":5},180,5,180,5,null,null,"P"]
[null,"Crsvs- gb","Reserve Risk - General Business",null,null,{"$f":"ROUND('Reserve Risk'!H49,$M$152)","v":0},null,null,null,{"$f":"ROUND('Reserve Risk (Revised)'!H42,$M$152)","v":0},null,{"$f":"ROUND('Reserve Risk (Revised)'!H42,$M$152)","v":0},null,null,null,null,null,null,null,"Longevity",null,null,null,null,{"$f":"J29","v":0},6.25E-2,{"$f":"L29","v":0},6.25E-2,null,{"$f":"(SUM(AB$10:AB21)/AB$29)+0.125","v":0.875},null,"CAT",{"$f":"IF(AP29=\"\",IF(Test_Statistic<$AK$35,AJ21,IF(Test_Statistic<$AM$35,AL21,AN21)),AP29)","v":180},{"$f":"IF(AQ29=\"\",IF(Test_Statistic<$AK$35,AK21,IF(Test_Statistic<$AM$35,AM21,AO21)),AQ29)","v":5},null,180,5,180,5,180,5,null,null,"R"]
[null,"C cat- gb","Catastrophe Risk - General Business",null,null,{"$f":"ROUND('Catastrophe Risk'!E24,$M$152)","v":0},null,null,null,{"$f":"ROUND('Catastrophe Risk (Revised)'!E24,$M$152)","v":0},null,{"$f":"ROUND('Catastrophe Risk (Revised)'!E24,$M$152)","v":0},null,null,null,null,null,null,null,"Stop Loss",null,null,null,null,{"$f":"J26","v":0},6.25E-2,{"$f":"L26","v":0},6.25E-2,null,{"$f":"(SUM(AB$10:AB22)/AB$29)+0.125","v":0.9375},null,"CAT",{"$f":"IF(AP26=\"\",IF(Test_Statistic<$AK$35,AJ22,IF(Test_Statistic<$AM$35,AL22,AN22)),AP26)","v":180},{"$f":"IF(AQ26=\"\",IF(Test_Statistic<$AK$35,AK22,IF(Test_Statistic<$AM$35,AM22,AO22)),AQ26)","v":5},null,180,5,180,5,180,5,null,null,"CAT"]
[null,null,null,null,null,null,null,null,null,null,null,null,null,null,null,null,null,null,null,"Riders",null,null,null,null,{"$f":"J27","v":0},6.25E-2,{"$f":"L27","v":0},6.25E-2,null,{"$f":"(SUM(AB$10:AB23)/AB$29)+0.125","v":1},null,"CAT",{"$f":"IF(AP27=\"\",IF(Test_Statistic<$AK$35,AJ23,IF(Test_Statistic<$AM$35,AL23,AN23)),AP27)","v":180},{"$f":"IF(AQ27=\"\",IF(Test_Statistic<$AK$35,AK23,IF(Test_Statistic<$AM$35,AM23,AO23)),AQ27)","v":5},null,180,5,180,5,180,5]
[null,"LT Insurance Risk",null,null,null,null,null,null,null,null,{"$f":"SQRT(MMULT(TRANSPOSE(J25:J31),MMULT('Correlation Matrix'!L7:R13,J25:J31)))","v":0},null,{"$f":"SQRT(MMULT(TRANSPOSE(L25:L31),MMULT('Correlation Matrix'!L7:R13,L25:L31)))","v":0},null,null,null,null,null,null,"Other Ins.",null,null,null,null,{"$f":"J31","v":0},6.25E-2,{"$f":"L31","v":0},6.25E-2,null,{"$f":"(SUM(AB$10:AB24)/AB$29)+0.125","v":1.0625},null,"CAT",{"$f":"IF(AP31=\"\",IF(Test_Statistic<$AK$35,AJ24,IF(Test_Statistic<$AM$35,AL24,AN24)),AP31)","v":180},{"$f":"IF(AQ31=\"\",IF(Test_Statistic<$AK$35,AK24,IF(Test_Statistic<$AM$35,AM24,AO24)),AQ31)","v":5},null,180,5,180,5,180,5]
[null,"C LTmort","Insurance Risk - Mortality - Long-Term Business",null,null,{"$f":"ROUND('LT Insurance Risk'!O60,$M$152)","v":0},null,null,null,{"$f":"ROUND('LT Insurance Risk'!O60,$M$152)","v":0},null,{"$f":"ROUND('LT Insurance Risk'!O60,$M$152)","v":0},null,null,null,null,null,null,null,"Variable Annuity",null,null,null,null,{"$f":"J30","v":0},6.25E-2,{"$f":"L30","v":0},6.25E-2,null,{"$f":"(SUM(AB$10:AB25)/AB$29)+0.125","v":1.125},null,"CAT",{"$f":"IF(AP30=\"\",IF(Test_Statistic<$AK$35,AJ25,IF(Test_Statistic<$AM$35,AL25,AN25)),AP30)","v":180},{"$f":"IF(AQ30=\"\",IF(Test_Statistic<$AK$35,AK25,IF(Test_Statistic<$AM$35,AM25,AO25)),AQ30)","v":5},null,200,5,180,5,180,5,null,null,"CAT"]
[null,"C LTsl","Insurance Risk - Stop Loss - Long-Term Business",null,null,{"$f":"ROUND('LT Insurance Risk'!O61,$M$152)","v":0},null,null,null,{"$f":"ROUND('LT Insurance Risk'!O61,$M$152)","v":0},null,{"$f":"ROUND('LT Insurance Risk'!O61,$M$152)","v":0},null,null,null,null,null,null,null,null,null,null,null,null,null,null,null,null,null,null,null,null,null,null,null,null,null,null,null,null,null,null,null,"CAT"]
[null,"C LTr","Insurance Risk - Riders - Long-Term Business",null,null,{"$f":"ROUND('LT Insurance Risk'!O62,$M$152)","v":0},null,null,null,{"$f":"ROUND('LT Insurance Risk'!O62,$M$152)","v":0},null,{"$f":"ROUND('LT Insurance Risk'!O62,$M$152)","v":0},null,null,null,null,null,null,null,null,null,null,null,null,null,null,null,null,null,null,null,null,null,null,null,null,null,null,null,null,null,null,null,"CAT"]
[null,"C LTmorb","Insurance Risk - Morbidity And Disability - Long-Term Business",null,null,{"$f":"ROUND('LT Insurance Risk'!O63,$M$152)","v":0},null,null,null,{"$f":"ROUND('LT Insurance Risk'!O63,$M$152)","v":0},null,{"$f":"ROUND('LT Insurance Risk'!O63,$M$152)","v":0},null,null,null,null,null,null,null,null,null,null,null,null,null,null,null,null,null,null,null,null,null,null,null,null,null,null,null,null,null,null,null,"CAT"]
[null,"C Ltlong","Insurance Risk - Longevity - Long-Term Business",null,null,{"$f":"ROUND('LT Insurance Risk'!O64,$M$152)","v":0},null,null,null,{"$f":"ROUND('LT Insurance Risk'!O64,$M$152)","v":0},null,{"$f":"ROUND('LT Insurance Risk'!O64,$M$152)","v":0},null,null,null,null,null,null,null,"Total",null,null,null,null,{"$f":"SUM(Y10:Y25)","v":0},{"$f":"SUM(Z10:Z28)","v":1},{"$f":"SUM(AA10:AA25)","v":0},{"$f":"SUM(AB10:AB28)","v":1},null,null,null,null,null,null,null,{"$f":"AJ35&\" - \"&AK35","v":"0 - 0.425"},null,{"$f":"AK35&\" - \"&AM35","v":"0.425 - 0.575"},null,{"$f":"AM35&\" - \"&AO35","v":"0.575 - 1"},null,null,null,"CAT"]
[null,"C LTVA","Variable Annuity Guarantee Risk - Long-Term Business",null,null,{"$f":"ROUND(IF('Schedule VIIIA (EBS)'!S12=0,'LT Variable Annuity Gte Risk'!W60,'Schedule VIIIA (EBS)'!S12),$M$152)","v":0},null,null,null,{"$f":"ROUND(IF('Schedule VIIIA (EBS)'!S12=0,'LT Variable Annuity Gte Risk'!W60,'Schedule VIIIA (EBS)'!S12),$M$152)","v":0},null,{"$f":"ROUND(IF('Schedule VIIIA (EBS)'!S12=0,'LT Variable Annuity Gte Risk'!W60,'Schedule VIIIA (EBS)'!S12),$M$152)","v":0},null,null,null,null,null,null,null,null,null,null,null,null,null,null,null,null,null,null,null,null,null,null,null,null,null,null,null,null,null,null,null,"CAT"]
[null,"C LToth","Other Insurance Risk - Long-Term Business",null,null,{"$f":"ROUND('LT Other Insurance Risk'!H25,$M$152)","v":0},null,null,null,{"$f":"ROUND('LT Other Insurance Risk'!H25,$M$152)","v":0},null,{"$f":"ROUND('LT Other Insurance Risk'!H25,$M$152)","v":0},null,null,null,null,null,null,null,null,null,null,null,null,null,null,null,null,null,null,null,null,null,null,null,null,null,null,null,null,null,null,null,"CAT"]
[]
[null,"Group BSCR (Prior to Covariance Adjustment)",null,null,null,{"$f":"SUM(F10:F31)","v":0},null,null,null,null,{"$f":"SUM(J10:J31)","v":0},null,{"$f":"SUM(L10:L31)","v":0},null,null,null,null,null,null,null,null,null,null,null,null,null,null,null,null,null,null,null,null,null,null,null,null,null,null,null,null,"Use the above to manually change label positions."]
[]
[null,"Group BSCR (After Covariance Adjustment)",null,null,null,{"$f":"(F10^2+F11^2+F12^2+F13^2+F14^2+F20^2+(1/2*F17+F21)^2+(1/2*F17)^2+(F25+F26+F27)^2+F28^2+F29^2+-0.5*((F25+F26+F27)*F29)+F31^2+F30^2+F22^2)^0.5","v":0},null,null,null,null,{"$f":"SQRT(MMULT(TRANSPOSE('Correlation Matrix'!Z10:Z13),MMULT('Correlation Matrix'!T7:W10,'Correlation Matrix'!Z10:Z13)))","v":0},null,{"$f":"SQRT(MMULT(TRANSPOSE('Correlation Matrix'!Z3:Z6),MMULT('Correlation Matrix'!T7:W10,'Correlation Matrix'!Z3:Z6)))","v":0},null,null,null,null,null,null,null,null,null,null,null,null,null,null,null,null,null,null,null,null,null,null,0,{"$f":"0.5-AJ65","v":0.42499999999999999},{"$f":"AK35","v":0.42499999999999999},{"$f":"0.5+AJ65","v":0.57499999999999996},{"$f":"AM35","v":0.57499999999999996},1]
[]
[null,null,"Operational Risk (%)",null,null,{"$f":"'Op Risk'!D23","v":0.1},null,null,null,null,null,null,{"$f":"'Op Risk (Revised)'!D23","v":0.2}]
[]
[null,"Cop","Operational Risk Capital Charge ($)",null,null,{"$f":"$F$35*$F$37","v":0},null,null,null,null,null,null,{"$f":"($M$35+M119)*$M$37","v":0},null,null,null,null,null,null,null,null,null,null,null,"Minimum Solvency Margin",null,{"$f":"MAX(M78,0)","v":0},"ECR",null,{"$f":"MAX($AA$39,$AA$41)","v":0}]
[]
[null,"Cadj","Capital Adjustment for (Regulatory) Capital Requirement for:",null,null,null,null,null,null,null,null,null,null,null,null,null,null,null,null,null,null,null,null,null,"Group BSCR",null,{"$f":"MAX(M63,0)","v":0}]
[]
[null,null,"(1) Regulated Non-Insurance Financial Operating Entities",null,null,{"$f":"'Schedule XIA'!X313","v":0},null,null,null,null,null,null,{"$f":"'Schedule XIA'!X313","v":0}]
[]
[null,null,"(2) Unregulated Entities Where the Parent Exercises Control (Except IHC)",null,null,{"$f":"'Schedule XIB'!X313","v":0},null,null,null,null,null,null,{"$f":"'Schedule XIB'!X313","v":0}]
[]
[null,"CMgmtAction",null,null,null,null,null,null,null,null,null,null,{"$f":"M119","v":0}]
[]
[null,"Other Capital Adjustment",null,null,null,{"$f":"M138","v":0},null,null,null,null,null,null,{"$f":"M124","v":0}]
[]
[null,"Capital Add-on / Reduction (BMA Assessment)",null,null,null,{"$f":"'Group Specific Parameters'!I683-'Group Specific Parameters'!F683","v":0},null,null,null,null,null,null,{"$f":"'GSP (Revised)'!L902-'GSP (Revised)'!I902","v":0}]
[]
[null,"Transition BSCR Calculation"]
[null,null,null,null,null,null,null,null,null,null,null,"Valuation Date","2020-12-31"]
[null,null,null,null,null,null,null,null,null,null,null,"Start of Phase-in",2018]
[]
[null,"Proportion of charges due to Long-Term",null,null,null,null,null,null,null,null,null,null,{"$f":"IF(SUM(F20:F31)=0,0,SUM(F25:F31)/SUM(F20:F31))","v":0}]
[null,"Weighted average transition period for the first year (rounded)",null,null,null,null,null,null,null,null,null,null,{"$f":"ROUND((M57*10)+((1-M57)*3),0)","v":3}]
[null,"Applicable transition period (use first year calculation in all future years)",null,null,null,null,null,null,null,null,null,null,3]
[]
[null,"Transition BSCR ",null,null,null,null,null,null,null,null,null,null,{"$f":"IF(M63=0,0,(MIN(M59,(YEAR(M54)-M55))/M59*(M63-F63)+F63))","v":0}]
[]
[null,"Group BSCR ",null,null,null,{"$f":"F35+F39+F43+F45+F49+F51","v":0},null,null,null,null,null,null,{"$f":"M35+M39+M43+M45+M51+M49+M47","v":0}]
[]
[null,"AVAILABLE STATUTORY CAPITAL AND SURPLUS",null,null,null,null,null,null,null,"2019 Year-End Methodology",null,null,null,null,null,null,null,null,null,null,null,null,null,null,null,null,null,null,null,null,null,null,null,null,null,7.4999999999999997E-2,"Swing"]
[]
[null,"Total Statutory Economic Capital and Surplus",null,null,"Form 1EBS, Line (40)",null,null,null,null,null,null,null,{"$f":"'Form 1EBS'!F214","v":0},null,null,null,null,null,null,null,null,null,null,"Data for Column Chart"]
[null,"Capital Contribution",null,null,null,null,null,null,null,null,null,null,0]
[null,"Capital Reduction for Entities with Insufficient Data",null,null,null,null,null,null,null,null,null,null,{"$f":"-'Schedule XID'!V313","v":0}]
[null,"Pre-Adjusted Available Statutory Economic Capital and Surplus",null,null,null,null,null,null,null,null,null,null,{"$f":"SUM(M67:M69)","v":0}]
[]
[null,null,"Capital Add-on / Reduction (BMA Assessment)",null,null,null,null,null,null,null,null,null,0]
[]
[null,"Available Statutory Economic Capital and Surplus",null,null,null,null,null,null,null,null,null,null,{"$f":"M70-SUM(M72:M72)","v":0}]
[]
[null,"MINIMUM MARGIN OF SOLVENCY",null,null,null,null,null,null,null,"2019 Year-End Methodology"]
[]
[null,"Minimum Margin of Solvency",null,null,null,null,null,null,null,null,null,null,{"$f":"'Schedule XII'!$T$314","v":0},null,null,null,null,null,null,null,null,null,null,null,null,null,null,"Bottom",null,"Top","Level"]
[]
[null,"ENHANCED CAPITAL REQUIREMENT & TARGET CAPITAL LEVEL",null,null,null,null,null,null,null,"2019 Year-End Methodology",null,null,null,null,null,null,null,null,null,null,null,null,null,null,"Adjusted Surplus","Available Statutory Capital and Surplus",null,{"$f":"IF($M$74=0,15000000,$M$74)","v":15000000},null,{"$f":"AD$90-AB80","v":10000000},{"$f":"IF($M$74=0,25000000,$M$74)","v":25000000}]
[]
[null,"Transition Enhanced Capital Requirement",null,null,null,null,null,null,null,null,null,null,{"$f":"MAX(M61,M78)","v":0}]
[]
[null,"Enhanced Capital Requirement",null,null,null,null,null,null,null,null,null,null,{"$f":"$AD$39","v":0},null,null,null,null,null,null,null,null,null,null,null,"Mandatory Control Level (100% of ACL)","Regulatory Action Level 1",1,{"$f":"IF($AD$39=100000,15000000,$AD$39)","v":0},null,{"$f":"AD$90-AB84","v":25000000},{"$f":"AA84*AB$85","v":0}]
[null,null,null,null,null,null,null,null,null,null,null,null,null,null,null,null,null,null,null,null,null,null,null,null,"Authorized Control Level (120% of ACL)","Regulatory Action Level 2",1.2,{"$f":"IF($AD$39=100000,15000000,$AD$39)","v":0},null,{"$f":"AD$90-AB85","v":25000000},{"$f":"AA85*AB$85","v":0}]
[null,"Transition Target Capital Level",null,null,null,null,null,null,null,null,null,null,{"$f":"M82*1.2","v":0}]
[]
[null,"Target Capital Level",null,null,null,null,null,null,null,null,null,null,{"$f":"$M$84*1.2","v":0},null,null,null,null,null,null,null,null,null,null,null,null,"AL3",null,{"$f":"IF(M35=0,15000000,M35)","v":15000000},null,{"$f":"AD$90-AB88","v":10000000},{"$f":"AA88*AB$85","v":0}]
[null,null,null,null,null,null,null,null,null,null,null,null,null,null,null,null,null,null,null,null,null,null,null,null,null,"AL4",null,{"$f":"IF(M35=0,15000000,M35)","v":15000000},null,{"$f":"AD$90-AB89","v":10000000},{"$f":"AA89*AB$85","v":0}]
[null,"RATIOS",null,null,null,null,null,null,null,"2019 Year-End Methodology",null,null,null,null,null,null,null,null,null,null,null,null,null,null,null,null,null,"Max Column",null,{"$f":"MAX(AE80:AE89)","v":25000000}]
[]
[null,"Transition Group Bermuda Solvency Capital Requirement Ratio",null,null,null,null,null,null,null,null,null,null,{"$f":"IF(M74=0,\"n/a\",M74/M61)","v":"n/a"},null,null,null,null,null,null,null,null,null,null,null,null,null,null,"AVAILABLE STATUTORY CAPITAL AND SURPLUS - Long-Term Business Calculation of Credit on Margin in Reserves"]
[]
[null,"Group Bermuda Solvency Capital Requirement Ratio",null,null,null,null,null,null,null,null,null,null,{"$f":"IF($M$63=0,\"n/a\",$M$74/$M$63)","v":"n/a"}]
[]
[null,"Transition Group Enhanced Capital Requirement Ratio",null,null,null,null,null,null,null,null,null,null,{"$f":"IF(M74=0,\"n/a\",M74/M82)","v":"n/a"}]
[]
[null,"Group Enhanced Capital Requirement Ratio",null,null,null,null,null,null,null,null,null,null,{"$f":"IF($M$63=0,\"n/a\",$M$74/$M$84)","v":"n/a"},null,null,null,null,null,null,null,null,null,null,null,null,null,null,"Total Insurance Reserves for Long-Term Business",null,null,null,{"$f":"'Schedule VII (EBS)'!D46","v":0}]
[]
[null,"Enhancement Capital Requirement Met",null,null,null,null,null,null,null,null,null,null,{"$f":"IF(M96=\"n/a\",\"n/a\",IF(AND(M96>100%,E112=\"Yes\",F112=\"Yes\"),\"YES\",\"NO\"))","v":"n/a"}]
[]
[]
[null,"Eligible Capital",null,null,null,{"$f":"'Form 1EBS'!$F$7","v":"2023-12-31"}]
[]
[null,null,null,null,"Applied to MSM","Applied to ECR"]
[]
[null,"Tier 1 Capital ",null,null,{"$f":"'Schedule XIII(a)'!G94","v":0},{"$f":"'Schedule XIII(a)'!I94","v":0}]
[null,"Tier 2 Capital ",null,null,{"$f":"'Schedule XIII(a)'!G95","v":0},{"$f":"'Schedule XIII(a)'!I95","v":0}]
[null,"Tier 3 Capital ",null,null,null,{"$f":"'Schedule XIII(a)'!I96","v":0}]
[null,"Total Capital",null,null,{"$f":"+'Schedule XIII(a)'!G97","v":0},{"$f":"+'Schedule XIII(a)'!I97","v":0}]
[]
[null,"Insurer met Eligible Capital Requirement",null,null,{"$f":"IF(E110>=M78,\"YES\",\"NO\")","v":"YES"},{"$f":"IF(F110>=M82,\"YES\",\"NO\")","v":"YES"}]
[]
[]
[null,"Capital Adjustment - Management Action ",null,null,null,null,null,null,null,"2019 Year-End Methodology"]
[]
[null,"Implied Loss-absorbing capacity of Technical Provisions without cap",null,null,null,null,null,null,null,null,null,null,{"$f":"M35-K35","v":0}]
[null,"Initial FDB / Bonus reserve on EBS basis",null,null,null,null,null,null,null,null,null,null,{"$f":"Import!I38537","v":0}]
[null,"Adj. for the Loss-absorbing capacity of Tech. Provisions",null,null,null,null,null,null,null,null,null,null,{"$f":"-MAX(MIN(M117,M118),0)","v":0}]
[]
[]
[null,"Other Capital Adjustment",null,null,null,null,null,null,null,"2019 Year-End Methodology"]
[]
[null,"Adjustment = -min (BSCR x t, Limit, 20% x BSCR)",null,null,null,null,null,null,null,null,null,null,{"$f":"-MIN(D130,F133,M129)","v":0}]
[]
[null,"Test 1",null,null,"Test 2",null,"Test 3"]
[]
[null,"BSCR",null,{"$f":"M35+M39+M43+M45+M47+M51","v":0},"Limit = Past LAC + Current LAC + Future LAC",null,"BSCR",null,null,null,null,null,{"$f":"M35+M39+M43+M45+M51+M47","v":0}]
[null,"T",null,{"$f":"Import!I38535","v":0},"Loss Carryback Provision",{"$f":"MAX(0,Import!I38536)","v":0},0.2,null,null,null,null,null,{"$f":"M128*G129","v":0}]
[null,"Test Result",null,{"$f":"MAX(0,D128*D129)","v":0},"PAST LAC",{"$f":"F129*D129","v":0}]
[null,null,null,null,"Current LAC",{"$f":"'Form 1EBS'!F177-'Form 1EBS'!F85","v":0}]
[null,null,null,null,"Future LAC",{"$f":"('Form 1EBS'!F123+'Form 1EBS'!F153)*D129","v":0}]
[null,null,null,null,"Total Limit",{"$f":"MAX(0,SUM(F130:F132))","v":0}]
[]
[]
[null,"Other Capital Adjustment",null,null,null,null,null,null,null,"2018 Year-End Methodology"]
[]
[null,"Adjustment = -min (BSCR x t, Limit, 20% x BSCR)",null,null,null,null,null,null,null,null,null,null,{"$f":"-MIN(D144,F147,M143)","v":0}]
[]
[null,"Test 1",null,null,"Test 2",null,"Test 3"]
[]
[null,"BSCR",null,{"$f":"F35+F39+F43+F45+F47+F51","v":0},"Limit = Past LAC + Current LAC + Future LAC",null,"BSCR",null,null,null,null,null,{"$f":"F35+F39+F43+F45+F47+F51","v":0}]
[null,"T",null,{"$f":"Import!I38535","v":0},"Loss Carryback Provision",{"$f":"MAX(0,Import!I38536)","v":0},0.2,null,null,null,null,null,{"$f":"M142*G143","v":0}]
[null,"Test Result",null,{"$f":"MAX(0,D142*D143)","v":0},"PAST LAC",{"$f":"F143*D143","v":0}]
[null,null,null,null,"Current LAC",{"$f":"'Form 1EBS'!F177-'Form 1EBS'!F85","v":0}]
[null,null,null,null,"Future LAC",{"$f":"('Form 1EBS'!F123+'Form 1EBS'!F153)*D143","v":0}]
[null,null,null,null,"Total Limit",{"$f":"MAX(0,SUM(F144:F146))","v":0}]
[]
[]
[]
[]
[null,"Rounding (decimal places)",null,null,null,null,null,null,null,null,null,null,10]

{"sheet":"Fixed Income Investments","index":106,"n_rows":99,"n_cols":6,"rows_kept":99,"cut":false,"hidden":false,"merged":[[103,0,103,1],[1,5,1,6]]}
[{"$f":"'Group Information'!C9","v":"Enter Parent Company Name"}]
[null,"Fixed Income Investment Risk ($000)",null,null,null,{"$f":"HYPERLINK(\"#'Index'!A1\",\"Return to Index\")","v":"Return to Index"}]
[null,{"$f":"'Group Information'!C3","v":"2023-12-31"},null,"(1)","(2)","(3)"]
[]
[]
[null,"TYPE OF ",null,"ASSET","CAPITAL","REQUIRED"]
[null,"FIXED INCOME INVESTMENTS","STATEMENT SOURCE","VALUE","FACTOR","CAPITAL"]
[]
[null,"(a)  Corporate & Sovereign Bonds",null,null,null,"(1) x (2)"]
[]
[null,"BSCR Rating"]
[null,0,"Sch II EBS, Line (1), Column 1 & Sch IIA EBS, Line (1), Column 1",{"$f":"+'Schedule II (EBS)'!D12+'Schedule IIA (EBS)'!D12","v":0},0,{"$f":"IF($D$12<0,0,$D$12*$E$12)","v":0}]
[null,1,"Sch II EBS, Line (2), Column 1 & Sch IIA EBS, Line (2), Column 1",{"$f":"+'Schedule II (EBS)'!D13+'Schedule IIA (EBS)'!D13","v":0},4.0000000000000001E-3,{"$f":"IF($D$13<0,0,$D$13*$E$13)","v":0}]
[null,2,"Sch II EBS, Line (3), Column 1 & Sch IIA EBS, Line (3), Column 1",{"$f":"+'Schedule II (EBS)'!D14+'Schedule IIA (EBS)'!D14","v":0},8.0000000000000002E-3,{"$f":"IF($D$14<0,0,$D$14*$E$14)","v":0}]
[null,3,"Sch II EBS, Line (4), Column 1 & Sch IIA EBS, Line (4), Column 1",{"$f":"+'Schedule II (EBS)'!D15+'Schedule IIA (EBS)'!D15","v":0},1.4999999999999999E-2,{"$f":"IF($D$15<0,0,$D$15*$E$15)","v":0}]
[null,4,"Sch II EBS, Line (5), Column 1 & Sch IIA EBS, Line (5), Column 1",{"$f":"+'Schedule II (EBS)'!D16+'Schedule IIA (EBS)'!D16","v":0},0.03,{"$f":"IF($D$16<0,0,$D$16*$E$16)","v":0}]
[null,5,"Sch II EBS, Line (6), Column 1 & Sch IIA EBS, Line (6), Column 1",{"$f":"+'Schedule II (EBS)'!D17+'Schedule IIA (EBS)'!D17","v":0},0.08,{"$f":"IF($D$17<0,0,$D$17*$E$17)","v":0}]
[null,6,"Sch II EBS, Line (7), Column 1 & Sch IIA EBS, Line (7), Column 1",{"$f":"+'Schedule II (EBS)'!D18+'Schedule IIA (EBS)'!D18","v":0},0.15,{"$f":"IF($D$18<0,0,$D$18*$E$18)","v":0}]
[null,7,"Sch II EBS, Line (8), Column 1 & Sch IIA EBS, Line (8), Column 1",{"$f":"+'Schedule II (EBS)'!D19+'Schedule IIA (EBS)'!D19","v":0},0.26300000000000001,{"$f":"IF($D$19<0,0,$D$19*$E$19)","v":0}]
[null,8,"Sch II EBS, Line (9), Column 1 & Sch IIA EBS, Line (9), Column 1",{"$f":"+'Schedule II (EBS)'!D20+'Schedule IIA (EBS)'!D20","v":0},0.35,{"$f":"IF($D$20<0,0,$D$20*$E$20)","v":0}]
[]
[null,"(a)  SUBTOTAL -  CORPORATE BONDS",null,{"$f":"IF(SUM(D12:D20)>=0,SUM(D12:D20),0)","v":0},null,{"$f":"IF(SUM(F12:F20)>=0,SUM(F12:F20),0)","v":0}]
[]
[null,"(b) Residential Mortgage-Backed Securities"]
[]
[null,"BSCR Rating"]
[null,1,"Sch II EBS, Line (2), Column 3 & Sch IIA EBS, Line (2), Column 3",{"$f":"+'Schedule II (EBS)'!H13+'Schedule IIA (EBS)'!H13","v":0},6.0000000000000001E-3,{"$f":"IF(D27<0,0,D27*E27)","v":0}]
[null,2,"Sch II EBS, Line (3), Column 3 & Sch IIA EBS, Line (3), Column 3",{"$f":"+'Schedule II (EBS)'!H14+'Schedule IIA (EBS)'!H14","v":0},1.2E-2,0]
[null,3,"Sch II EBS, Line (4), Column 3 & Sch IIA EBS, Line (4), Column 3",{"$f":"+'Schedule II (EBS)'!H15+'Schedule IIA (EBS)'!H15","v":0},0.02,0]
[null,4,"Sch II EBS, Line (5), Column 3 & Sch IIA EBS, Line (5), Column 3",{"$f":"+'Schedule II (EBS)'!H16+'Schedule IIA (EBS)'!H16","v":0},0.04,0]
[null,5,"Sch II EBS, Line (6), Column 3 & Sch IIA EBS, Line (6), Column 3",{"$f":"+'Schedule II (EBS)'!H17+'Schedule IIA (EBS)'!H17","v":0},0.11,0]
[null,6,"Sch II EBS, Line (7), Column 3 & Sch IIA EBS, Line (7), Column 3",{"$f":"+'Schedule II (EBS)'!H18+'Schedule IIA (EBS)'!H18","v":0},0.25,0]
[null,7,"Sch II EBS, Line (8), Column 3 & Sch IIA EBS, Line (8), Column 3",{"$f":"+'Schedule II (EBS)'!H19+'Schedule IIA (EBS)'!H19","v":0},0.35,0]
[null,8,"Sch II EBS, Line (9), Column 3 & Sch IIA EBS, Line (9), Column 3",{"$f":"+'Schedule II (EBS)'!H20+'Schedule IIA (EBS)'!H20","v":0},0.35,0]
[]
[null,"(b)  SUBTOTAL - RESIDENTIAL MORTGAGE-BACKED SECURITIES",null,{"$f":"SUM(D27:D34)","v":0},null,{"$f":"IF(SUM(F27:F34)>=0,SUM(F27:F34),0)","v":0}]
[]
[null,"(c) Commercial Mortgage-Backed Securities / Asset-Backed Securities"]
[]
[null,"BSCR Rating"]
[null,1,"Sch II EBS, Line (2), Column 5 & Sch IIA EBS, Line (2), Column 5",{"$f":"'Schedule II (EBS)'!L13+'Schedule IIA (EBS)'!L13","v":0},5.0000000000000001E-3,{"$f":"IF(D41<0,0,D41*E41)","v":0}]
[null,2,"Sch II EBS, Line (3), Column 5 & Sch IIA EBS, Line (3), Column 5",{"$f":"'Schedule II (EBS)'!L14+'Schedule IIA (EBS)'!L14","v":0},0.01,0]
[null,3,"Sch II EBS, Line (4), Column 5 & Sch IIA EBS, Line (4), Column 5",{"$f":"'Schedule II (EBS)'!L15+'Schedule IIA (EBS)'!L15","v":0},1.7999999999999999E-2,0]
[null,4,"Sch II EBS, Line (5), Column 5 & Sch IIA EBS, Line (5), Column 5",{"$f":"'Schedule II (EBS)'!L16+'Schedule IIA (EBS)'!L16","v":0},3.5000000000000003E-2,0]
[null,5,"Sch II EBS, Line (6), Column 5 & Sch IIA EBS, Line (6), Column 5",{"$f":"'Schedule II (EBS)'!L17+'Schedule IIA (EBS)'!L17","v":0},0.1,0]
[null,6,"Sch II EBS, Line (7), Column 5 & Sch IIA EBS, Line (7), Column 5",{"$f":"'Schedule II (EBS)'!L18+'Schedule IIA (EBS)'!L18","v":0},0.2,0]
[null,7,"Sch II EBS, Line (8), Column 5 & Sch IIA EBS, Line (8), Column 5",{"$f":"'Schedule II (EBS)'!L19+'Schedule IIA (EBS)'!L19","v":0},0.3,0]
[null,8,"Sch II EBS, Line (9), Column 5 & Sch IIA EBS, Line (9), Column 5",{"$f":"'Schedule II (EBS)'!L20+'Schedule IIA (EBS)'!L20","v":0},0.35,0]
[]
[]
[null,"(c)  SUBTOTAL - COMMERCIAL MORTGAGE-BACKED SECURITIES / ASSET-BACKED SECURITIES",null,{"$f":"SUM(D41:D48)","v":0},null,{"$f":"IF(SUM(F41:F48)>=0,SUM(F41:F48),0)","v":0}]
[]
[null,"(d) Bond Mutual Funds"]
[]
[null,"BSCR Rating"]
[null,0,"Sch II EBS, Line (1), Column 7 & Sch IIA EBS, Line (1), Column 7",{"$f":"'Schedule II (EBS)'!P12+'Schedule IIA (EBS)'!P12","v":0},0,{"$f":"IF(D56<0,0,D56*E56)","v":0}]
[null,1,"Sch II EBS, Line (2), Column 7 & Sch IIA EBS, Line (2), Column 7",{"$f":"'Schedule II (EBS)'!P13+'Schedule IIA (EBS)'!P13","v":0},4.0000000000000001E-3,0]
[null,2,"Sch II EBS, Line (3), Column 7 & Sch IIA EBS, Line (3), Column 7",{"$f":"'Schedule II (EBS)'!P14+'Schedule IIA (EBS)'!P14","v":0},8.0000000000000002E-3,0]
[null,3,"Sch II EBS, Line (4), Column 7 & Sch IIA EBS, Line (4), Column 7",{"$f":"'Schedule II (EBS)'!P15+'Schedule IIA (EBS)'!P15","v":0},1.4999999999999999E-2,0]
[null,4,"Sch II EBS, Line (5), Column 7 & Sch IIA EBS, Line (5), Column 7",{"$f":"'Schedule II (EBS)'!P16+'Schedule IIA (EBS)'!P16","v":0},0.03,0]
[null,5,"Sch II EBS, Line (6), Column 7 & Sch IIA EBS, Line (6), Column 7",{"$f":"'Schedule II (EBS)'!P17+'Schedule IIA (EBS)'!P17","v":0},0.08,0]
[null,6,"Sch II EBS, Line (7), Column 7 & Sch IIA EBS, Line (7), Column 7",{"$f":"'Schedule II (EBS)'!P18+'Schedule IIA (EBS)'!P18","v":0},0.15,0]
[null,7,"Sch II EBS, Line (8), Column 7 & Sch IIA EBS, Line (8), Column 7",{"$f":"'Schedule II (EBS)'!P19+'Schedule IIA (EBS)'!P19","v":0},0.26300000000000001,0]
[null,8,"Sch II EBS, Line (9), Column 7 & Sch IIA EBS, Line (9), Column 7",{"$f":"'Schedule II (EBS)'!P20+'Schedule IIA (EBS)'!P20","v":0},0.35,0]
[]
[null,"(d)  SUBTOTAL - BOND MUTUAL FUNDS",null,{"$f":"SUM(D56:D64)","v":0},null,{"$f":"IF(SUM(F56:F64)>=0,SUM(F56:F64),0)","v":0}]
[]
[null,"(e) Mortgage Loans"]
[]
[null,"Insured/Guaranteed Mortgages","Sch II EBS, Line (22), Column 1 & Sch IIA EBS, Line (22), Column 1",{"$f":"+'Schedule II (EBS)'!D57+'Schedule IIA (EBS)'!D57","v":0},3.0000000000000001E-3,{"$f":"IF(D70<0,0,D70*E70)","v":0}]
[null,"Other Commercial and Farm Mortgages","Sch II EBS, Line (23), Column 1 & Sch IIA EBS, Line (23), Column 1 ",{"$f":"+'Schedule II (EBS)'!D58+'Schedule IIA (EBS)'!D58","v":0},0.05,{"$f":"IF(D71<0,0,D71*E71)","v":0}]
[null,"Other Residential Mortgages","Sch II EBS, Line (24), Column 1 & Sch IIA EBS, Line (24), Column 1",{"$f":"+'Schedule II (EBS)'!D59+'Schedule IIA (EBS)'!D59","v":0},1.4999999999999999E-2,{"$f":"IF(D72<0,0,D72*E72)","v":0}]
[null,"Mortgages Not In Good Standing","Sch II EBS, Line (25), Column 1 & Sch IIA EBS, Line (25), Column 1",{"$f":"+'Schedule II (EBS)'!D60+'Schedule IIA (EBS)'!D60","v":0},0.25,{"$f":"IF(D73<0,0,D73*E73)","v":0}]
[]
[null,"(e)  SUBTOTAL - MORTGAGE LOANS",null,{"$f":"SUM(D70:D73)","v":0},null,{"$f":"IF(SUM(F70:F73)>=0,SUM(F70:F73),0)","v":0}]
[]
[null,"(f) Other Fixed Income Investments"]
[]
[null,"Other Loans","Form 1EBS, Line (8)",{"$f":"'Form 1EBS'!F56","v":0},0.05,{"$f":"IF(D79<0,0,D79*E79)","v":0}]
[]
[null,"Cash and Cash Equivalent Counterparty Balances By BSCR Rating"]
[]
[null,"BSCR Rating 0 ","Schedule XIX, Column A",{"$f":"+'Schedule XIX'!G81","v":0},0,{"$f":"IF($D$83<0,0,$D$83*$E$83)","v":0}]
[null,"BSCR Rating 1","Schedule XIX, Column A",{"$f":"+'Schedule XIX'!G82","v":0},1E-3,{"$f":"IF($D$84<0,0,$D$84*$E$84)","v":0}]
[null,"BSCR Rating 2","Schedule XIX, Column A",{"$f":"+'Schedule XIX'!G83","v":0},2E-3,{"$f":"IF($D$85<0,0,$D$85*$E$85)","v":0}]
[null,"BSCR Rating 3","Schedule XIX, Column A",{"$f":"+'Schedule XIX'!G84","v":0},3.0000000000000001E-3,{"$f":"IF($D$86<0,0,$D$86*$E$86)","v":0}]
[null,"BSCR Rating 4","Schedule XIX, Column A",{"$f":"+'Schedule XIX'!G85","v":0},5.0000000000000001E-3,{"$f":"IF($D$87<0,0,$D$87*$E$87)","v":0}]
[null,"BSCR Rating 5","Schedule XIX, Column A",{"$f":"+'Schedule XIX'!G86","v":0},1.4999999999999999E-2,{"$f":"IF($D$88<0,0,$D$88*$E$88)","v":0}]
[null,"BSCR Rating 6","Schedule XIX, Column A",{"$f":"+'Schedule XIX'!G87","v":0},0.04,{"$f":"IF($D$89<0,0,$D$89*$E$89)","v":0}]
[null,"BSCR Rating 7","Schedule XIX, Column A",{"$f":"+'Schedule XIX'!G88","v":0},0.06,{"$f":"IF($D$90<0,0,$D$90*$E$90)","v":0}]
[null,"BSCR Rating 8","Schedule XIX, Column A",{"$f":"+'Schedule XIX'!G89","v":0},0.09,{"$f":"IF($D$91<0,0,$D$91*$E$91)","v":0}]
[]
[null,"Total",null,{"$f":"SUM(D83:D92)","v":0},null,{"$f":"SUM(F83:F92)","v":0}]
[]
[null,"Diversification Adjustment up to 40%",null,null,{"$f":"+'Schedule XIX'!G98","v":0},{"$f":"SUM(F83:F91)*-('Schedule XIX'!G98)","v":0}]
[]
[null,"(f)  SUBTOTAL - OTHER FIXED INCOME SECURITIES",null,{"$f":"SUM(D79,D93)","v":0},null,{"$f":"IF(SUM(F79,F93,F95)>=0,SUM(F79,F93,F95),0)","v":0}]
[]
[null,"(G)  TOTAL FIXED INCOME INVESTMENTS [ (a)+(b)+(c)+(d)+(e)+(f) ]",null,{"$f":"D22+D36+D51+D66+D75+D97","v":0},null,{"$f":"F22+F36+F51+F66+F75+F97","v":0}]

{"sheet":"Fixed Income Investments (Rev.)","index":107,"n_rows":136,"n_cols":9,"rows_kept":136,"cut":false,"hidden":false,"merged":[[1,8,1,9],[140,0,140,1],[27,2,27,5],[28,2,28,5],[29,2,29,5],[30,2,30,5],[31,2,31,5],[32,2,32,5],[33,2,33,5],[40,2,40,5],[41,2,41,5],[42,2,42,5],[43,2,43,5],[100,2,100,5],[101,4,101,5],[101,2,101,3],[58,2,58,5],[59,2,59,5],[60,2,60,5],[61,2,61,5],[62,2,62,5],[63,2,63,5],[116,2,116,3],[115,2,115,5],[116,4,116,5],[11,2,11,5],[12,2,12,5],[13,2,13,5],[14,2,14,5],[15,2,15,5],[69,2,69,5],[70,2,70,5],[71,2,71,5],[72,2,72,5],[16,2,16,5],[17,2,17,5],[18,2,18,5],[57,2,57,5],[44,2,44,5],[45,2,45,5],[46,2,46,5],[19,2,19,5],[26,2,26,5],[47,2,47,5],[55,2,55,5],[56,2,56,5]]}
[{"$f":"'Group Information'!C9","v":"Enter Parent Company Name"}]
[null,"Fixed Income Investment Risk (Revised) ($000)",null,null,null,null,null,null,{"$f":"HYPERLINK(\"#'Index'!A1\",\"Return to Index\")","v":"Return to Index"}]
[null,{"$f":"'Group Information'!C3","v":"2023-12-31"},null,null,null,null,"(1)","(2)","(3)"]
[]
[]
[null,"TYPE OF ",null,null,null,null,"ASSET","CAPITAL","REQUIRED"]
[null,"FIXED INCOME INVESTMENTS","STATEMENT SOURCE",null,null,null,"VALUE","FACTOR","CAPITAL"]
[]
[null,"(a)  Corporate & Sovereign Bonds",null,null,null,null,null,null,"(1) x (2)"]
[]
[null,"BSCR Rating"]
[null,0,"Sch IIB, Column (1), Line 1, Sch IIC, Column (1), Line 1, (Sch IID, Column (1), Line 1 - Column (2), Line 1), Sch IIE, Column (1), Line 1, Sch IIF, Column (1), Line 1",null,null,null,{"$f":"'Schedule IIB (EBS)'!D13+'Schedule IIC (EBS)'!D13+(MAX(0,'Schedule IID (EBS)'!D13-'Schedule IID (EBS)'!F13))+'Schedule IIE (EBS)'!D13+'Schedule IIF (EBS)'!D13","v":0},0,{"$f":"IF($G$12<0,0,$G$12*$H$12)","v":0}]
[null,1,"Sch IIB, Column (1), Line 2, Sch IIC, Column (1), Line 2, (Sch IID, Column (1), Line 2 - Column (2), Line 2), Sch IIE, Column (1), Line 2, Sch IIF, Column (1), Line 2",null,null,null,{"$f":"'Schedule IIB (EBS)'!D14+'Schedule IIC (EBS)'!D14+(MAX(0,'Schedule IID (EBS)'!D14-'Schedule IID (EBS)'!F14))+'Schedule IIE (EBS)'!D14+'Schedule IIF (EBS)'!D14","v":0},4.0000000000000001E-3,{"$f":"IF($G$13<0,0,$G$13*$H$13)","v":0}]
[null,2,"Sch IIB, Column (1), Line 3, Sch IIC, Column (1), Line 3, (Sch IID, Column (1), Line 3 - Column (2), Line 3), Sch IIE, Column (1), Line 3, Sch IIF, Column (1), Line 3",null,null,null,{"$f":"'Schedule IIB (EBS)'!D15+'Schedule IIC (EBS)'!D15+(MAX(0,'Schedule IID (EBS)'!D15-'Schedule IID (EBS)'!F15))+'Schedule IIE (EBS)'!D15+'Schedule IIF (EBS)'!D15","v":0},8.0000000000000002E-3,{"$f":"IF($G$14<0,0,$G$14*$H$14)","v":0}]
[null,3,"Sch IIB, Column (1), Line 4, Sch IIC, Column (1), Line 4, (Sch IID, Column (1), Line 4 - Column (2), Line 4), Sch IIE, Column (1), Line 4, Sch IIF, Column (1), Line 4",null,null,null,{"$f":"'Schedule IIB (EBS)'!D16+'Schedule IIC (EBS)'!D16+(MAX(0,'Schedule IID (EBS)'!D16-'Schedule IID (EBS)'!F16))+'Schedule IIE (EBS)'!D16+'Schedule IIF (EBS)'!D16","v":0},1.4999999999999999E-2,{"$f":"IF($G$15<0,0,$G$15*$H$15)","v":0}]
[null,4,"Sch IIB, Column (1), Line 5, Sch IIC, Column (1), Line 5, (Sch IID, Column (1), Line 5 - Column (2), Line 5), Sch IIE, Column (1), Line 5, Sch IIF, Column (1), Line 5",null,null,null,{"$f":"'Schedule IIB (EBS)'!D17+'Schedule IIC (EBS)'!D17+(MAX(0,'Schedule IID (EBS)'!D17-'Schedule IID (EBS)'!F17))+'Schedule IIE (EBS)'!D17+'Schedule IIF (EBS)'!D17","v":0},0.03,{"$f":"IF($G$16<0,0,$G$16*$H$16)","v":0}]
[null,5,"Sch IIB, Column (1), Line 6, Sch IIC, Column (1), Line 6, (Sch IID, Column (1), Line 6 - Column (2), Line 6), Sch IIE, Column (1), Line 6, Sch IIF, Column (1), Line 6",null,null,null,{"$f":"'Schedule IIB (EBS)'!D18+'Schedule IIC (EBS)'!D18+(MAX(0,'Schedule IID (EBS)'!D18-'Schedule IID (EBS)'!F18))+'Schedule IIE (EBS)'!D18+'Schedule IIF (EBS)'!D18","v":0},0.08,{"$f":"IF($G$17<0,0,$G$17*$H$17)","v":0}]
[null,6,"Sch IIB, Column (1), Line 7, Sch IIC, Column (1), Line 7, (Sch IID, Column (1), Line 7 - Column (2), Line 7), Sch IIE, Column (1), Line 7, Sch IIF, Column (1), Line 7",null,null,null,{"$f":"'Schedule IIB (EBS)'!D19+'Schedule IIC (EBS)'!D19+(MAX(0,'Schedule IID (EBS)'!D19-'Schedule IID (EBS)'!F19))+'Schedule IIE (EBS)'!D19+'Schedule IIF (EBS)'!D19","v":0},0.15,{"$f":"IF($G$18<0,0,$G$18*$H$18)","v":0}]
[null,7,"Sch IIB, Column (1), Line 8, Sch IIC, Column (1), Line 8, (Sch IID, Column (1), Line 8 - Column (2), Line 8), Sch IIE, Column (1), Line 8, Sch IIF, Column (1), Line 8",null,null,null,{"$f":"'Schedule IIB (EBS)'!D20+'Schedule IIC (EBS)'!D20+(MAX(0,'Schedule IID (EBS)'!D20-'Schedule IID (EBS)'!F20))+'Schedule IIE (EBS)'!D20+'Schedule IIF (EBS)'!D20","v":0},0.26300000000000001,{"$f":"IF($G$19<0,0,$G$19*$H$19)","v":0}]
[null,8,"Sch IIB, Column (1), Line 9, Sch IIC, Column (1), Line 9, (Sch IID, Column (1), Line 9 - Column (2), Line 9), Sch IIE, Column (1), Line 9, Sch IIF, Column (1), Line 9",null,null,null,{"$f":"'Schedule IIB (EBS)'!D21+'Schedule IIC (EBS)'!D21+(MAX(0,'Schedule IID (EBS)'!D21-'Schedule IID (EBS)'!F21))+'Schedule IIE (EBS)'!D21+'Schedule IIF (EBS)'!D21","v":0},0.35,{"$f":"IF($G$20<0,0,$G$20*$H$20)","v":0}]
[]
[null,"(a)  SUBTOTAL -  CORPORATE BONDS",null,null,null,null,{"$f":"SUM(G11:G20)","v":0},null,{"$f":"IF(SUM(I12:I20)>=0,SUM(I12:I20),0)","v":0}]
[]
[null,"(b) Residential Mortgage-Backed Securities"]
[]
[null,"BSCR Rating"]
[null,1,"Sch IIB, Column (3), Line 2, Sch IIC, Column (3), Line 2, (Sch IID, Column (3), Line 2 - Column (4), Line 2), Sch IIE, Column (3), Line 2, Sch IIF, Column (3), Line 2",null,null,null,{"$f":"'Schedule IIB (EBS)'!H14+'Schedule IIC (EBS)'!H14+(MAX(0,'Schedule IID (EBS)'!H14-'Schedule IID (EBS)'!J14))+'Schedule IIE (EBS)'!H14+'Schedule IIF (EBS)'!H14","v":0},6.0000000000000001E-3,{"$f":"IF(G27<0,0,G27*H27)","v":0}]
[null,2,"Sch IIB, Column (3), Line 3, Sch IIC, Column (3), Line 3, (Sch IID, Column (3), Line 3 - Column (4), Line 3), Sch IIE, Column (3), Line 3, Sch IIF, Column (3), Line 3",null,null,null,{"$f":"'Schedule IIB (EBS)'!H15+'Schedule IIC (EBS)'!H15+(MAX(0,'Schedule IID (EBS)'!H15-'Schedule IID (EBS)'!J15))+'Schedule IIE (EBS)'!H15+'Schedule IIF (EBS)'!H15","v":0},1.2E-2,0]
[null,3,"Sch IIB, Column (3), Line 4, Sch IIC, Column (3), Line 4, (Sch IID, Column (3), Line 4 - Column (4), Line 4), Sch IIE, Column (3), Line 4, Sch IIF, Column (3), Line 4",null,null,null,{"$f":"'Schedule IIB (EBS)'!H16+'Schedule IIC (EBS)'!H16+(MAX(0,'Schedule IID (EBS)'!H16-'Schedule IID (EBS)'!J16))+'Schedule IIE (EBS)'!H16+'Schedule IIF (EBS)'!H16","v":0},0.02,0]
[null,4,"Sch IIB, Column (3), Line 5, Sch IIC, Column (3), Line 5, (Sch IID, Column (3), Line 5 - Column (4), Line 5), Sch IIE, Column (3), Line 5, Sch IIF, Column (3), Line 5",null,null,null,{"$f":"'Schedule IIB (EBS)'!H17+'Schedule IIC (EBS)'!H17+(MAX(0,'Schedule IID (EBS)'!H17-'Schedule IID (EBS)'!J17))+'Schedule IIE (EBS)'!H17+'Schedule IIF (EBS)'!H17","v":0},0.04,0]
[null,5,"Sch IIB, Column (3), Line 6, Sch IIC, Column (3), Line 6, (Sch IID, Column (3), Line 6 - Column (4), Line 6), Sch IIE, Column (3), Line 6, Sch IIF, Column (3), Line 6",null,null,null,{"$f":"'Schedule IIB (EBS)'!H18+'Schedule IIC (EBS)'!H18+(MAX(0,'Schedule IID (EBS)'!H18-'Schedule IID (EBS)'!J18))+'Schedule IIE (EBS)'!H18+'Schedule IIF (EBS)'!H18","v":0},0.11,0]
[null,6,"Sch IIB, Column (3), Line 7, Sch IIC, Column (3), Line 7, (Sch IID, Column (3), Line 7 - Column (4), Line 7), Sch IIE, Column (3), Line 7, Sch IIF, Column (3), Line 7",null,null,null,{"$f":"'Schedule IIB (EBS)'!H19+'Schedule IIC (EBS)'!H19+(MAX(0,'Schedule IID (EBS)'!H19-'Schedule IID (EBS)'!J19))+'Schedule IIE (EBS)'!H19+'Schedule IIF (EBS)'!H19","v":0},0.25,0]
[null,7,"Sch IIB, Column (3), Line 8, Sch IIC, Column (3), Line 8, (Sch IID, Column (3), Line 8 - Column (4), Line 8), Sch IIE, Column (3), Line 8, Sch IIF, Column (3), Line 8",null,null,null,{"$f":"'Schedule IIB (EBS)'!H20+'Schedule IIC (EBS)'!H20+(MAX(0,'Schedule IID (EBS)'!H20-'Schedule IID (EBS)'!J20))+'Schedule IIE (EBS)'!H20+'Schedule IIF (EBS)'!H20","v":0},0.35,0]
[null,8,"Sch IIB, Column (3), Line 9, Sch IIC, Column (3), Line 9, (Sch IID, Column (3), Line 9 - Column (4), Line 9), Sch IIE, Column (3), Line 9, Sch IIF, Column (3), Line 9",null,null,null,{"$f":"'Schedule IIB (EBS)'!H21+'Schedule IIC (EBS)'!H21+(MAX(0,'Schedule IID (EBS)'!H21-'Schedule IID (EBS)'!J21))+'Schedule IIE (EBS)'!H21+'Schedule IIF (EBS)'!H21","v":0},0.35,0]
[]
[null,"(b)  SUBTOTAL - RESIDENTIAL MORTGAGE-BACKED SECURITIES",null,null,null,null,{"$f":"SUM(G27:G34)","v":0},null,{"$f":"IF(SUM(I27:I34)>=0,SUM(I27:I34),0)","v":0}]
[]
[null,"(c) Commercial Mortgage-Backed Securities / Asset-Backed Securities"]
[]
[null,"BSCR Rating"]
[null,1,"Sch IIB, Column (5), Line 2, Sch IIC, Column (5), Line 2, (Sch IID, Column (5), Line 2 - Column (4), Line 2), Sch IIE, Column (5), Line 2, Sch IIF, Column (5), Line 2",null,null,null,{"$f":"'Schedule IIB (EBS)'!L14+'Schedule IIC (EBS)'!L14+(MAX(0,'Schedule IID (EBS)'!L14-'Schedule IID (EBS)'!N14))+'Schedule IIE (EBS)'!L14+'Schedule IIF (EBS)'!L14","v":0},5.0000000000000001E-3,{"$f":"IF(G41<0,0,G41*H41)","v":0}]
[null,2,"Sch IIB, Column (5), Line 3, Sch IIC, Column (5), Line 3, (Sch IID, Column (5), Line 3 - Column (4), Line 3), Sch IIE, Column (5), Line 3, Sch IIF, Column (5), Line 3",null,null,null,{"$f":"'Schedule IIB (EBS)'!L15+'Schedule IIC (EBS)'!L15+(MAX(0,'Schedule IID (EBS)'!L15-'Schedule IID (EBS)'!N15))+'Schedule IIE (EBS)'!L15+'Schedule IIF (EBS)'!L15","v":0},0.01,0]
[null,3,"Sch IIB, Column (5), Line 4, Sch IIC, Column (5), Line 4, (Sch IID, Column (5), Line 4 - Column (4), Line 4), Sch IIE, Column (5), Line 4, Sch IIF, Column (5), Line 4",null,null,null,{"$f":"'Schedule IIB (EBS)'!L16+'Schedule IIC (EBS)'!L16+(MAX(0,'Schedule IID (EBS)'!L16-'Schedule IID (EBS)'!N16))+'Schedule IIE (EBS)'!L16+'Schedule IIF (EBS)'!L16","v":0},1.7999999999999999E-2,0]
[null,4,"Sch IIB, Column (5), Line 5, Sch IIC, Column (5), Line 5, (Sch IID, Column (5), Line 5 - Column (4), Line 5), Sch IIE, Column (5), Line 5, Sch IIF, Column (5), Line 5",null,null,null,{"$f":"'Schedule IIB (EBS)'!L17+'Schedule IIC (EBS)'!L17+(MAX(0,'Schedule IID (EBS)'!L17-'Schedule IID (EBS)'!N17))+'Schedule IIE (EBS)'!L17+'Schedule IIF (EBS)'!L17","v":0},3.5000000000000003E-2,0]
[null,5,"Sch IIB, Column (5), Line 6, Sch IIC, Column (5), Line 6, (Sch IID, Column (5), Line 6 - Column (4), Line 6), Sch IIE, Column (5), Line 6, Sch IIF, Column (5), Line 6",null,null,null,{"$f":"'Schedule IIB (EBS)'!L18+'Schedule IIC (EBS)'!L18+(MAX(0,'Schedule IID (EBS)'!L18-'Schedule IID (EBS)'!N18))+'Schedule IIE (EBS)'!L18+'Schedule IIF (EBS)'!L18","v":0},0.1,0]
[null,6,"Sch IIB, Column (5), Line 7, Sch IIC, Column (5), Line 7, (Sch IID, Column (5), Line 7 - Column (4), Line 7), Sch IIE, Column (5), Line 7, Sch IIF, Column (5), Line 7",null,null,null,{"$f":"'Schedule IIB (EBS)'!L19+'Schedule IIC (EBS)'!L19+(MAX(0,'Schedule IID (EBS)'!L19-'Schedule IID (EBS)'!N19))+'Schedule IIE (EBS)'!L19+'Schedule IIF (EBS)'!L19","v":0},0.2,0]
[null,7,"Sch IIB, Column (5), Line 8, Sch IIC, Column (5), Line 8, (Sch IID, Column (5), Line 8 - Column (4), Line 8), Sch IIE, Column (5), Line 8, Sch IIF, Column (5), Line 8",null,null,null,{"$f":"'Schedule IIB (EBS)'!L20+'Schedule IIC (EBS)'!L20+(MAX(0,'Schedule IID (EBS)'!L20-'Schedule IID (EBS)'!N20))+'Schedule IIE (EBS)'!L20+'Schedule IIF (EBS)'!L20","v":0},0.3,0]
[null,8,"Sch IIB, Column (5), Line 9, Sch IIC, Column (5), Line 9, (Sch IID, Column (5), Line 9 - Column (4), Line 9), Sch IIE, Column (5), Line 9, Sch IIF, Column (5), Line 9",null,null,null,{"$f":"'Schedule IIB (EBS)'!L21+'Schedule IIC (EBS)'!L21+(MAX(0,'Schedule IID (EBS)'!L21-'Schedule IID (EBS)'!N21))+'Schedule IIE (EBS)'!L21+'Schedule IIF (EBS)'!L21","v":0},0.35,0]
[]
[]
[null,"(c)  SUBTOTAL - COMMERCIAL MORTGAGE-BACKED SECURITIES / ASSET-BACKED SECURITIES",null,null,null,null,{"$f":"SUM(G41:G48)","v":0},null,{"$f":"IF(SUM(I41:I48)>=0,SUM(I41:I48),0)","v":0}]
[]
[null,"(d) Bond Mutual Funds"]
[]
[null,"BSCR Rating"]
[null,0,"Sch IIB, Column (7), Line 1, Sch IIC, Column (7), Line 1, (Sch IID, Column (7), Line 1 - Column (8), Line 1), Sch IIE, Column (7), Line 1, Sch IIF, Column (7), Line 1",null,null,null,{"$f":"'Schedule IIB (EBS)'!P13+'Schedule IIC (EBS)'!P13+(MAX(0,'Schedule IID (EBS)'!P13-'Schedule IID (EBS)'!R13))+'Schedule IIE (EBS)'!P13+'Schedule IIF (EBS)'!P13","v":0},0,{"$f":"IF(G56<0,0,G56*H56)","v":0}]
[null,1,"Sch IIB, Column (7), Line 2, Sch IIC, Column (7), Line 2, (Sch IID, Column (7), Line 2 - Column (8), Line 2), Sch IIE, Column (7), Line 2, Sch IIF, Column (7), Line 2",null,null,null,{"$f":"'Schedule IIB (EBS)'!P14+'Schedule IIC (EBS)'!P14+(MAX(0,'Schedule IID (EBS)'!P14-'Schedule IID (EBS)'!R14))+'Schedule IIE (EBS)'!P14+'Schedule IIF (EBS)'!P14","v":0},4.0000000000000001E-3,0]
[null,2,"Sch IIB, Column (7), Line 3, Sch IIC, Column (7), Line 3, (Sch IID, Column (7), Line 3 - Column (8), Line 3), Sch IIE, Column (7), Line 3, Sch IIF, Column (7), Line 3",null,null,null,{"$f":"'Schedule IIB (EBS)'!P15+'Schedule IIC (EBS)'!P15+(MAX(0,'Schedule IID (EBS)'!P15-'Schedule IID (EBS)'!R15))+'Schedule IIE (EBS)'!P15+'Schedule IIF (EBS)'!P15","v":0},8.0000000000000002E-3,0]
[null,3,"Sch IIB, Column (7), Line 4, Sch IIC, Column (7), Line 4, (Sch IID, Column (7), Line 4 - Column (8), Line 4), Sch IIE, Column (7), Line 4, Sch IIF, Column (7), Line 4",null,null,null,{"$f":"'Schedule IIB (EBS)'!P16+'Schedule IIC (EBS)'!P16+(MAX(0,'Schedule IID (EBS)'!P16-'Schedule IID (EBS)'!R16))+'Schedule IIE (EBS)'!P16+'Schedule IIF (EBS)'!P16","v":0},1.4999999999999999E-2,0]
[null,4,"Sch IIB, Column (7), Line 5, Sch IIC, Column (7), Line 5, (Sch IID, Column (7), Line 5 - Column (8), Line 5), Sch IIE, Column (7), Line 5, Sch IIF, Column (7), Line 5",null,null,null,{"$f":"'Schedule IIB (EBS)'!P17+'Schedule IIC (EBS)'!P17+(MAX(0,'Schedule IID (EBS)'!P17-'Schedule IID (EBS)'!R17))+'Schedule IIE (EBS)'!P17+'Schedule IIF (EBS)'!P17","v":0},0.03,0]
[null,5,"Sch IIB, Column (7), Line 6, Sch IIC, Column (7), Line 6, (Sch IID, Column (7), Line 6 - Column (8), Line 6), Sch IIE, Column (7), Line 6, Sch IIF, Column (7), Line 6",null,null,null,{"$f":"'Schedule IIB (EBS)'!P18+'Schedule IIC (EBS)'!P18+(MAX(0,'Schedule IID (EBS)'!P18-'Schedule IID (EBS)'!R18))+'Schedule IIE (EBS)'!P18+'Schedule IIF (EBS)'!P18","v":0},0.08,0]
[null,6,"Sch IIB, Column (7), Line 7, Sch IIC, Column (7), Line 7, (Sch IID, Column (7), Line 7 - Column (8), Line 7), Sch IIE, Column (7), Line 7, Sch IIF, Column (7), Line 7",null,null,null,{"$f":"'Schedule IIB (EBS)'!P19+'Schedule IIC (EBS)'!P19+(MAX(0,'Schedule IID (EBS)'!P19-'Schedule IID (EBS)'!R19))+'Schedule IIE (EBS)'!P19+'Schedule IIF (EBS)'!P19","v":0},0.15,0]
[null,7,"Sch IIB, Column (7), Line 8, Sch IIC, Column (7), Line 8, (Sch IID, Column (7), Line 8 - Column (8), Line 8), Sch IIE, Column (7), Line 8, Sch IIF, Column (7), Line 8",null,null,null,{"$f":"'Schedule IIB (EBS)'!P20+'Schedule IIC (EBS)'!P20+(MAX(0,'Schedule IID (EBS)'!P20-'Schedule IID (EBS)'!R20))+'Schedule IIE (EBS)'!P20+'Schedule IIF (EBS)'!P20","v":0},0.26300000000000001,0]
[null,8,"Sch IIB, Column (7), Line 9, Sch IIC, Column (7), Line 9, (Sch IID, Column (7), Line 9 - Column (8), Line 9), Sch IIE, Column (7), Line 9, Sch IIF, Column (7), Line 9",null,null,null,{"$f":"'Schedule IIB (EBS)'!P21+'Schedule IIC (EBS)'!P21+(MAX(0,'Schedule IID (EBS)'!P21-'Schedule IID (EBS)'!R21))+'Schedule IIE (EBS)'!P21+'Schedule IIF (EBS)'!P21","v":0},0.35,0]
[]
[null,"(d)  SUBTOTAL - BOND MUTUAL FUNDS",null,null,null,null,{"$f":"SUM(G56:G64)","v":0},null,{"$f":"IF(SUM(I56:I64)>=0,SUM(I56:I64),0)","v":0}]
[]
[null,"(e) Mortgage Loans"]
[]
[null,"Insured/Guaranteed Mortgages","Sch IIB, Column (9), Line 10, Sch IIC, Column (9), Line 10, (Sch IID, Column (9), Line 10 - Column (10), Line 10), Sch IIE, Column (9), Line 10, Sch IIF, Column (9), Line 10",null,null,null,{"$f":"'Schedule IIB (EBS)'!T22+'Schedule IIC (EBS)'!T22+(MAX(0,'Schedule IID (EBS)'!T22-'Schedule IID (EBS)'!V22))+'Schedule IIE (EBS)'!T22+'Schedule IIF (EBS)'!T22","v":0},3.0000000000000001E-3,{"$f":"IF(G70<0,0,G70*H70)","v":0}]
[null,"Other Commercial and Farm Mortgages","Sch IIB, Column (9), Line 11, Sch IIC, Column (9), Line 11, (Sch IID, Column (9), Line 11 - Column (10), Line 11), Sch IIE, Column (9), Line 11, Sch IIF, Column (9), Line 11",null,null,null,{"$f":"'Schedule IIB (EBS)'!T23+'Schedule IIC (EBS)'!T23+(MAX(0,'Schedule IID (EBS)'!T23-'Schedule IID (EBS)'!V23))+'Schedule IIE (EBS)'!T23+'Schedule IIF (EBS)'!T23","v":0},0.05,{"$f":"IF(G71<0,0,G71*H71)","v":0}]
[null,"Other Residential Mortgages","Sch IIB, Column (9), Line 12, Sch IIC, Column (9), Line 12, (Sch IID, Column (9), Line 12 - Column (10), Line 12), Sch IIE, Column (9), Line 12, Sch IIF, Column (9), Line 12",null,null,null,{"$f":"'Schedule IIB (EBS)'!T24+'Schedule IIC (EBS)'!T24+(MAX(0,'Schedule IID (EBS)'!T24-'Schedule IID (EBS)'!V24))+'Schedule IIE (EBS)'!T24+'Schedule IIF (EBS)'!T24","v":0},1.4999999999999999E-2,{"$f":"IF(G72<0,0,G72*H72)","v":0}]
[null,"Mortgages Not In Good Standing","Sch IIB, Column (9), Line 13, Sch IIC, Column (9), Line 13, (Sch IID, Column (9), Line 13 - Column (10), Line 13), Sch IIE, Column (9), Line 13, Sch IIF, Column (9), Line 13",null,null,null,{"$f":"'Schedule IIB (EBS)'!T25+'Schedule IIC (EBS)'!T25+(MAX(0,'Schedule IID (EBS)'!T25-'Schedule IID (EBS)'!V25))+'Schedule IIE (EBS)'!T25+'Schedule IIF (EBS)'!T25","v":0},0.25,{"$f":"IF(G73<0,0,G73*H73)","v":0}]
[]
[null,"(e)  SUBTOTAL - MORTGAGE LOANS",null,null,null,null,{"$f":"SUM(G70:G73)","v":0},null,{"$f":"IF(SUM(I70:I73)>=0,SUM(I70:I73),0)","v":0}]
[]
[null,"(f) Other Fixed Income Investments"]
[]
[null,"Other Loans","Form 1EBS, Line (8)",null,null,null,{"$f":"'Form 1EBS'!F56","v":0},0.05,{"$f":"IF(G79<0,0,G79*H79)","v":0}]
[]
[null,"Cash and Cash Equivalent Counterparty Balances By BSCR Rating"]
[]
[null,"BSCR Rating 0 ","Schedule XIXA, Column A",null,null,null,{"$f":"'Schedule XIXA'!G81","v":0},0,{"$f":"IF($G$83<0,0,$G$83*$H$83)","v":0}]
[null,"BSCR Rating 1","Schedule XIXA, Column A",null,null,null,{"$f":"'Schedule XIXA'!G82","v":0},1E-3,{"$f":"IF($G$84<0,0,$G$84*$H$84)","v":0}]
[null,"BSCR Rating 2","Schedule XIXA, Column A",null,null,null,{"$f":"'Schedule XIXA'!G83","v":0},2E-3,{"$f":"IF($G$85<0,0,$G$85*$H$85)","v":0}]
[null,"BSCR Rating 3","Schedule XIXA, Column A",null,null,null,{"$f":"'Schedule XIXA'!G84","v":0},3.0000000000000001E-3,{"$f":"IF($G$86<0,0,$G$86*$H$86)","v":0}]
[null,"BSCR Rating 4","Schedule XIXA, Column A",null,null,null,{"$f":"'Schedule XIXA'!G85","v":0},5.0000000000000001E-3,{"$f":"IF($G$87<0,0,$G$87*$H$87)","v":0}]
[null,"BSCR Rating 5","Schedule XIXA, Column A",null,null,null,{"$f":"'Schedule XIXA'!G86","v":0},1.4999999999999999E-2,{"$f":"IF($G$88<0,0,$G$88*$H$88)","v":0}]
[null,"BSCR Rating 6","Schedule XIXA, Column A",null,null,null,{"$f":"'Schedule XIXA'!G87","v":0},0.04,{"$f":"IF($G$89<0,0,$G$89*$H$89)","v":0}]
[null,"BSCR Rating 7","Schedule XIXA, Column A",null,null,null,{"$f":"'Schedule XIXA'!G88","v":0},0.06,{"$f":"IF($G$90<0,0,$G$90*$H$90)","v":0}]
[null,"BSCR Rating 8","Schedule XIXA, Column A",null,null,null,{"$f":"'Schedule XIXA'!G89","v":0},0.09,{"$f":"IF($G$91<0,0,$G$91*$H$91)","v":0}]
[]
[null,"Total",null,null,null,null,{"$f":"SUM(G83:G92)","v":0},null,{"$f":"SUM(I83:I92)","v":0}]
[]
[null,"Diversification Adjustment up to 40%",null,null,null,null,null,{"$f":"'Schedule XIXA'!G98","v":0},{"$f":"SUM(I83:I91)*-('Schedule XIXA'!G98)","v":0}]
[]
[null,"(f)  SUBTOTAL - OTHER FIXED INCOME SECURITIES",null,null,null,null,{"$f":"SUM(G79,G93)","v":0},null,{"$f":"IF(SUM(I79,I93,I95)>=0,SUM(I79,I93,I95),0)","v":0}]
[]
[null,"(g) Spread Risk for Credit Derivatives"]
[]
[null,null,"SPREAD UP"]
[null,null,"Long Exposures",null,"Short Exposures"]
[null,null,"Before Shock","After Shock","Before Shock","After Shock"]
[null,"Spread Up",null,null,null,null,null,"Shock (bps)"]
[null,"BSCR Rating 0 ",{"$f":"'Schedule IIB (EBS)'!D68+'Schedule IIC (EBS)'!D68+'Schedule IID (EBS)'!D68+'Schedule IIE (EBS)'!D68+'Schedule IIF (EBS)'!D68","v":0},{"$f":"'Schedule IIB (EBS)'!F68+'Schedule IIC (EBS)'!F68+'Schedule IID (EBS)'!F68+'Schedule IIE (EBS)'!F68+'Schedule IIF (EBS)'!F68","v":0},{"$f":"'Schedule IIB (EBS)'!H68+'Schedule IIC (EBS)'!H68+'Schedule IID (EBS)'!H68+'Schedule IIE (EBS)'!H68+'Schedule IIF (EBS)'!H68","v":0},{"$f":"'Schedule IIB (EBS)'!J68+'Schedule IIC (EBS)'!J68+'Schedule IID (EBS)'!J68+'Schedule IIE (EBS)'!J68+'Schedule IIF (EBS)'!J68","v":0},null,0,{"$f":"(C105-D105)+MAX(0,E105-F105)","v":0}]
[null,"BSCR Rating 1",{"$f":"'Schedule IIB (EBS)'!D69+'Schedule IIC (EBS)'!D69+'Schedule IID (EBS)'!D69+'Schedule IIE (EBS)'!D69+'Schedule IIF (EBS)'!D69","v":0},{"$f":"'Schedule IIB (EBS)'!F69+'Schedule IIC (EBS)'!F69+'Schedule IID (EBS)'!F69+'Schedule IIE (EBS)'!F69+'Schedule IIF (EBS)'!F69","v":0},{"$f":"'Schedule IIB (EBS)'!H69+'Schedule IIC (EBS)'!H69+'Schedule IID (EBS)'!H69+'Schedule IIE (EBS)'!H69+'Schedule IIF (EBS)'!H69","v":0},{"$f":"'Schedule IIB (EBS)'!J69+'Schedule IIC (EBS)'!J69+'Schedule IID (EBS)'!J69+'Schedule IIE (EBS)'!J69+'Schedule IIF (EBS)'!J69","v":0},null,130,0]
[null,"BSCR Rating 2",{"$f":"'Schedule IIB (EBS)'!D70+'Schedule IIC (EBS)'!D70+'Schedule IID (EBS)'!D70+'Schedule IIE (EBS)'!D70+'Schedule IIF (EBS)'!D70","v":0},{"$f":"'Schedule IIB (EBS)'!F70+'Schedule IIC (EBS)'!F70+'Schedule IID (EBS)'!F70+'Schedule IIE (EBS)'!F70+'Schedule IIF (EBS)'!F70","v":0},{"$f":"'Schedule IIB (EBS)'!H70+'Schedule IIC (EBS)'!H70+'Schedule IID (EBS)'!H70+'Schedule IIE (EBS)'!H70+'Schedule IIF (EBS)'!H70","v":0},{"$f":"'Schedule IIB (EBS)'!J70+'Schedule IIC (EBS)'!J70+'Schedule IID (EBS)'!J70+'Schedule IIE (EBS)'!J70+'Schedule IIF (EBS)'!J70","v":0},null,150,0]
[null,"BSCR Rating 3",{"$f":"'Schedule IIB (EBS)'!D71+'Schedule IIC (EBS)'!D71+'Schedule IID (EBS)'!D71+'Schedule IIE (EBS)'!D71+'Schedule IIF (EBS)'!D71","v":0},{"$f":"'Schedule IIB (EBS)'!F71+'Schedule IIC (EBS)'!F71+'Schedule IID (EBS)'!F71+'Schedule IIE (EBS)'!F71+'Schedule IIF (EBS)'!F71","v":0},{"$f":"'Schedule IIB (EBS)'!H71+'Schedule IIC (EBS)'!H71+'Schedule IID (EBS)'!H71+'Schedule IIE (EBS)'!H71+'Schedule IIF (EBS)'!H71","v":0},{"$f":"'Schedule IIB (EBS)'!J71+'Schedule IIC (EBS)'!J71+'Schedule IID (EBS)'!J71+'Schedule IIE (EBS)'!J71+'Schedule IIF (EBS)'!J71","v":0},null,260,0]
[null,"BSCR Rating 4",{"$f":"'Schedule IIB (EBS)'!D72+'Schedule IIC (EBS)'!D72+'Schedule IID (EBS)'!D72+'Schedule IIE (EBS)'!D72+'Schedule IIF (EBS)'!D72","v":0},{"$f":"'Schedule IIB (EBS)'!F72+'Schedule IIC (EBS)'!F72+'Schedule IID (EBS)'!F72+'Schedule IIE (EBS)'!F72+'Schedule IIF (EBS)'!F72","v":0},{"$f":"'Schedule IIB (EBS)'!H72+'Schedule IIC (EBS)'!H72+'Schedule IID (EBS)'!H72+'Schedule IIE (EBS)'!H72+'Schedule IIF (EBS)'!H72","v":0},{"$f":"'Schedule IIB (EBS)'!J72+'Schedule IIC (EBS)'!J72+'Schedule IID (EBS)'!J72+'Schedule IIE (EBS)'!J72+'Schedule IIF (EBS)'!J72","v":0},null,450,0]
[null,"BSCR Rating 5",{"$f":"'Schedule IIB (EBS)'!D73+'Schedule IIC (EBS)'!D73+'Schedule IID (EBS)'!D73+'Schedule IIE (EBS)'!D73+'Schedule IIF (EBS)'!D73","v":0},{"$f":"'Schedule IIB (EBS)'!F73+'Schedule IIC (EBS)'!F73+'Schedule IID (EBS)'!F73+'Schedule IIE (EBS)'!F73+'Schedule IIF (EBS)'!F73","v":0},{"$f":"'Schedule IIB (EBS)'!H73+'Schedule IIC (EBS)'!H73+'Schedule IID (EBS)'!H73+'Schedule IIE (EBS)'!H73+'Schedule IIF (EBS)'!H73","v":0},{"$f":"'Schedule IIB (EBS)'!J73+'Schedule IIC (EBS)'!J73+'Schedule IID (EBS)'!J73+'Schedule IIE (EBS)'!J73+'Schedule IIF (EBS)'!J73","v":0},null,840,0]
[null,"BSCR Rating 6",{"$f":"'Schedule IIB (EBS)'!D74+'Schedule IIC (EBS)'!D74+'Schedule IID (EBS)'!D74+'Schedule IIE (EBS)'!D74+'Schedule IIF (EBS)'!D74","v":0},{"$f":"'Schedule IIB (EBS)'!F74+'Schedule IIC (EBS)'!F74+'Schedule IID (EBS)'!F74+'Schedule IIE (EBS)'!F74+'Schedule IIF (EBS)'!F74","v":0},{"$f":"'Schedule IIB (EBS)'!H74+'Schedule IIC (EBS)'!H74+'Schedule IID (EBS)'!H74+'Schedule IIE (EBS)'!H74+'Schedule IIF (EBS)'!H74","v":0},{"$f":"'Schedule IIB (EBS)'!J74+'Schedule IIC (EBS)'!J74+'Schedule IID (EBS)'!J74+'Schedule IIE (EBS)'!J74+'Schedule IIF (EBS)'!J74","v":0},null,1620,0]
[null,"BSCR Rating 7",{"$f":"'Schedule IIB (EBS)'!D75+'Schedule IIC (EBS)'!D75+'Schedule IID (EBS)'!D75+'Schedule IIE (EBS)'!D75+'Schedule IIF (EBS)'!D75","v":0},{"$f":"'Schedule IIB (EBS)'!F75+'Schedule IIC (EBS)'!F75+'Schedule IID (EBS)'!F75+'Schedule IIE (EBS)'!F75+'Schedule IIF (EBS)'!F75","v":0},{"$f":"'Schedule IIB (EBS)'!H75+'Schedule IIC (EBS)'!H75+'Schedule IID (EBS)'!H75+'Schedule IIE (EBS)'!H75+'Schedule IIF (EBS)'!H75","v":0},{"$f":"'Schedule IIB (EBS)'!J75+'Schedule IIC (EBS)'!J75+'Schedule IID (EBS)'!J75+'Schedule IIE (EBS)'!J75+'Schedule IIF (EBS)'!J75","v":0},null,1620,0]
[null,"BSCR Rating 8",{"$f":"'Schedule IIB (EBS)'!D76+'Schedule IIC (EBS)'!D76+'Schedule IID (EBS)'!D76+'Schedule IIE (EBS)'!D76+'Schedule IIF (EBS)'!D76","v":0},{"$f":"'Schedule IIB (EBS)'!F76+'Schedule IIC (EBS)'!F76+'Schedule IID (EBS)'!F76+'Schedule IIE (EBS)'!F76+'Schedule IIF (EBS)'!F76","v":0},{"$f":"'Schedule IIB (EBS)'!H76+'Schedule IIC (EBS)'!H76+'Schedule IID (EBS)'!H76+'Schedule IIE (EBS)'!H76+'Schedule IIF (EBS)'!H76","v":0},{"$f":"'Schedule IIB (EBS)'!J76+'Schedule IIC (EBS)'!J76+'Schedule IID (EBS)'!J76+'Schedule IIE (EBS)'!J76+'Schedule IIF (EBS)'!J76","v":0},null,1620,0]
[null,"Total Spread Up",{"$f":"SUM(C105:C113)","v":0},{"$f":"SUM(D105:D113)","v":0},{"$f":"SUM(E105:E113)","v":0},{"$f":"SUM(F105:F113)","v":0},null,null,{"$f":"MAX(SUM(I105:I113),0)","v":0}]
[]
[null,null,"SPREAD DOWN"]
[null,null,"Long Exposures",null,"Short Exposures"]
[null,null,"Before Shock","After Shock","Before Shock","After Shock"]
[null,"Spread Down",null,null,null,null,null,"Shock (%)"]
[null,"BSCR Rating 0 ",{"$f":"'Schedule IIB (EBS)'!N68+'Schedule IIC (EBS)'!N68+'Schedule IID (EBS)'!N68+'Schedule IIE (EBS)'!N68+'Schedule IIF (EBS)'!N68","v":0},{"$f":"'Schedule IIB (EBS)'!P68+'Schedule IIC (EBS)'!P68+'Schedule IID (EBS)'!P68+'Schedule IIE (EBS)'!P68+'Schedule IIF (EBS)'!P68","v":0},{"$f":"'Schedule IIB (EBS)'!R68+'Schedule IIC (EBS)'!R68+'Schedule IID (EBS)'!R68+'Schedule IIE (EBS)'!R68+'Schedule IIF (EBS)'!R68","v":0},{"$f":"'Schedule IIB (EBS)'!T68+'Schedule IIC (EBS)'!T68+'Schedule IID (EBS)'!T68+'Schedule IIE (EBS)'!T68+'Schedule IIF (EBS)'!T68","v":0},null,0,{"$f":"(C120-D120)+MAX(0,E120-F120)","v":0}]
[null,"BSCR Rating 1",{"$f":"'Schedule IIB (EBS)'!N69+'Schedule IIC (EBS)'!N69+'Schedule IID (EBS)'!N69+'Schedule IIE (EBS)'!N69+'Schedule IIF (EBS)'!N69","v":0},{"$f":"'Schedule IIB (EBS)'!P69+'Schedule IIC (EBS)'!P69+'Schedule IID (EBS)'!P69+'Schedule IIE (EBS)'!P69+'Schedule IIF (EBS)'!P69","v":0},{"$f":"'Schedule IIB (EBS)'!R69+'Schedule IIC (EBS)'!R69+'Schedule IID (EBS)'!R69+'Schedule IIE (EBS)'!R69+'Schedule IIF (EBS)'!R69","v":0},{"$f":"'Schedule IIB (EBS)'!T69+'Schedule IIC (EBS)'!T69+'Schedule IID (EBS)'!T69+'Schedule IIE (EBS)'!T69+'Schedule IIF (EBS)'!T69","v":0},null,-0.75,0]
[null,"BSCR Rating 2",{"$f":"'Schedule IIB (EBS)'!N70+'Schedule IIC (EBS)'!N70+'Schedule IID (EBS)'!N70+'Schedule IIE (EBS)'!N70+'Schedule IIF (EBS)'!N70","v":0},{"$f":"'Schedule IIB (EBS)'!P70+'Schedule IIC (EBS)'!P70+'Schedule IID (EBS)'!P70+'Schedule IIE (EBS)'!P70+'Schedule IIF (EBS)'!P70","v":0},{"$f":"'Schedule IIB (EBS)'!R70+'Schedule IIC (EBS)'!R70+'Schedule IID (EBS)'!R70+'Schedule IIE (EBS)'!R70+'Schedule IIF (EBS)'!R70","v":0},{"$f":"'Schedule IIB (EBS)'!T70+'Schedule IIC (EBS)'!T70+'Schedule IID (EBS)'!T70+'Schedule IIE (EBS)'!T70+'Schedule IIF (EBS)'!T70","v":0},null,-0.75,0]
[null,"BSCR Rating 3",{"$f":"'Schedule IIB (EBS)'!N71+'Schedule IIC (EBS)'!N71+'Schedule IID (EBS)'!N71+'Schedule IIE (EBS)'!N71+'Schedule IIF (EBS)'!N71","v":0},{"$f":"'Schedule IIB (EBS)'!P71+'Schedule IIC (EBS)'!P71+'Schedule IID (EBS)'!P71+'Schedule IIE (EBS)'!P71+'Schedule IIF (EBS)'!P71","v":0},{"$f":"'Schedule IIB (EBS)'!R71+'Schedule IIC (EBS)'!R71+'Schedule IID (EBS)'!R71+'Schedule IIE (EBS)'!R71+'Schedule IIF (EBS)'!R71","v":0},{"$f":"'Schedule IIB (EBS)'!T71+'Schedule IIC (EBS)'!T71+'Schedule IID (EBS)'!T71+'Schedule IIE (EBS)'!T71+'Schedule IIF (EBS)'!T71","v":0},null,-0.75,0]
[null,"BSCR Rating 4",{"$f":"'Schedule IIB (EBS)'!N72+'Schedule IIC (EBS)'!N72+'Schedule IID (EBS)'!N72+'Schedule IIE (EBS)'!N72+'Schedule IIF (EBS)'!N72","v":0},{"$f":"'Schedule IIB (EBS)'!P72+'Schedule IIC (EBS)'!P72+'Schedule IID (EBS)'!P72+'Schedule IIE (EBS)'!P72+'Schedule IIF (EBS)'!P72","v":0},{"$f":"'Schedule IIB (EBS)'!R72+'Schedule IIC (EBS)'!R72+'Schedule IID (EBS)'!R72+'Schedule IIE (EBS)'!R72+'Schedule IIF (EBS)'!R72","v":0},{"$f":"'Schedule IIB (EBS)'!T72+'Schedule IIC (EBS)'!T72+'Schedule IID (EBS)'!T72+'Schedule IIE (EBS)'!T72+'Schedule IIF (EBS)'!T72","v":0},null,-0.75,0]
[null,"BSCR Rating 5",{"$f":"'Schedule IIB (EBS)'!N73+'Schedule IIC (EBS)'!N73+'Schedule IID (EBS)'!N73+'Schedule IIE (EBS)'!N73+'Schedule IIF (EBS)'!N73","v":0},{"$f":"'Schedule IIB (EBS)'!P73+'Schedule IIC (EBS)'!P73+'Schedule IID (EBS)'!P73+'Schedule IIE (EBS)'!P73+'Schedule IIF (EBS)'!P73","v":0},{"$f":"'Schedule IIB (EBS)'!R73+'Schedule IIC (EBS)'!R73+'Schedule IID (EBS)'!R73+'Schedule IIE (EBS)'!R73+'Schedule IIF (EBS)'!R73","v":0},{"$f":"'Schedule IIB (EBS)'!T73+'Schedule IIC (EBS)'!T73+'Schedule IID (EBS)'!T73+'Schedule IIE (EBS)'!T73+'Schedule IIF (EBS)'!T73","v":0},null,-0.75,0]
[null,"BSCR Rating 6",{"$f":"'Schedule IIB (EBS)'!N74+'Schedule IIC (EBS)'!N74+'Schedule IID (EBS)'!N74+'Schedule IIE (EBS)'!N74+'Schedule IIF (EBS)'!N74","v":0},{"$f":"'Schedule IIB (EBS)'!P74+'Schedule IIC (EBS)'!P74+'Schedule IID (EBS)'!P74+'Schedule IIE (EBS)'!P74+'Schedule IIF (EBS)'!P74","v":0},{"$f":"'Schedule IIB (EBS)'!R74+'Schedule IIC (EBS)'!R74+'Schedule IID (EBS)'!R74+'Schedule IIE (EBS)'!R74+'Schedule IIF (EBS)'!R74","v":0},{"$f":"'Schedule IIB (EBS)'!T74+'Schedule IIC (EBS)'!T74+'Schedule IID (EBS)'!T74+'Schedule IIE (EBS)'!T74+'Schedule IIF (EBS)'!T74","v":0},null,-0.75,0]
[null,"BSCR Rating 7",{"$f":"'Schedule IIB (EBS)'!N75+'Schedule IIC (EBS)'!N75+'Schedule IID (EBS)'!N75+'Schedule IIE (EBS)'!N75+'Schedule IIF (EBS)'!N75","v":0},{"$f":"'Schedule IIB (EBS)'!P75+'Schedule IIC (EBS)'!P75+'Schedule IID (EBS)'!P75+'Schedule IIE (EBS)'!P75+'Schedule IIF (EBS)'!P75","v":0},{"$f":"'Schedule IIB (EBS)'!R75+'Schedule IIC (EBS)'!R75+'Schedule IID (EBS)'!R75+'Schedule IIE (EBS)'!R75+'Schedule IIF (EBS)'!R75","v":0},{"$f":"'Schedule IIB (EBS)'!T75+'Schedule IIC (EBS)'!T75+'Schedule IID (EBS)'!T75+'Schedule IIE (EBS)'!T75+'Schedule IIF (EBS)'!T75","v":0},null,-0.75,0]
[null,"BSCR Rating 8",{"$f":"'Schedule IIB (EBS)'!N76+'Schedule IIC (EBS)'!N76+'Schedule IID (EBS)'!N76+'Schedule IIE (EBS)'!N76+'Schedule IIF (EBS)'!N76","v":0},{"$f":"'Schedule IIB (EBS)'!P76+'Schedule IIC (EBS)'!P76+'Schedule IID (EBS)'!P76+'Schedule IIE (EBS)'!P76+'Schedule IIF (EBS)'!P76","v":0},{"$f":"'Schedule IIB (EBS)'!R76+'Schedule IIC (EBS)'!R76+'Schedule IID (EBS)'!R76+'Schedule IIE (EBS)'!R76+'Schedule IIF (EBS)'!R76","v":0},{"$f":"'Schedule IIB (EBS)'!T76+'Schedule IIC (EBS)'!T76+'Schedule IID (EBS)'!T76+'Schedule IIE (EBS)'!T76+'Schedule IIF (EBS)'!T76","v":0},null,-0.75,0]
[null,"Total Spread Down",{"$f":"SUM(C120:C128)","v":0},{"$f":"SUM(D120:D128)","v":0},{"$f":"SUM(E120:E128)","v":0},{"$f":"SUM(F120:F128)","v":0},null,null,{"$f":"MAX(SUM(I120:I128),0)","v":0}]
[]
[null,"Spread Up",null,null,null,null,null,null,{"$f":"I114","v":0}]
[null,"Spread Down",null,null,null,null,null,null,{"$f":"I129","v":0}]
[]
[null,"(g) Total Spread Risk",null,null,null,null,null,null,{"$f":"MAX(I131,I132)","v":0}]
[]
[null,"(h)  TOTAL FIXED INCOME INVESTMENTS [ (a)+(b)+(c)+(d)+(e)+(f)+(g) ]",null,null,null,null,{"$f":"G22+G36+G51+G66+G75+G97","v":0},null,{"$f":"I22+I36+I51+I66+I75+I97+I134","v":0}]

{"sheet":"Equity Investments","index":108,"n_rows":51,"n_cols":6,"rows_kept":51,"cut":false,"hidden":false,"merged":[[53,0,53,1],[1,5,1,6]]}
["EQUITY INVESTMENTS"]
[null,"Equity Investment Risk ($000)",null,null,null,{"$f":"HYPERLINK(\"#'Index'!A1\",\"Return to Index\")","v":"Return to Index"}]
[null,{"$f":"'Group Information'!C3","v":"2023-12-31"},null,"(1)","(2)","(3)"]
[]
[]
[null,"TYPE OF ",null,"ASSET","CAPITAL","REQUIRED"]
[null,"EQUITY INVESTMENTS","STATEMENT SOURCE","VALUE","FACTOR","CAPITAL"]
[]
[null,"(a)  Common Stocks",null,null,null,"(1) x (2)"]
[]
[null,"Quoted Common Stocks","Sch II EBS, Line (19), Column (1) and Sch IIA EBS, Line (19), Column (1)",{"$f":"'Schedule II (EBS)'!D41+'Schedule IIA (EBS)'!D41","v":0},0.14399999999999999,{"$f":"IF($D$11<0,0,$D$11*$E$11)","v":0}]
[null,"Unquoted Common Stocks","Sch II EBS, Line (20), Column (1) and Sch IIA EBS, Line (20), Column (1)",{"$f":"'Schedule II (EBS)'!D42+'Schedule IIA (EBS)'!D42","v":0},0.14399999999999999,{"$f":"IF($D$12<0,0,$D$12*$E$12)","v":0}]
[null,"Equity Mutual Funds","Sch II EBS, Line (21), Column (5) and Sch IIA EBS, Line (21), Column (5)",{"$f":"'Schedule II (EBS)'!L41+'Schedule II (EBS)'!L42+'Schedule IIA (EBS)'!L41+'Schedule IIA (EBS)'!L42","v":0},0.14399999999999999,{"$f":"IF($D$13<0,0,$D$13*$E$13)","v":0}]
[]
[null,"(a)  SUBTOTAL - COMMON STOCKS",null,{"$f":"SUM(D11:D13)","v":0},null,{"$f":"IF(SUM(F11:F13)>=0,SUM(F11:F13),0)","v":0}]
[]
[null,"(b)  Preferred Stocks"]
[]
[null,"BSCR Rating"]
[null,1,"Sch II EBS, Line (11), Column (3) and Sch IIA EBS, Line (11), Column (3)",{"$f":"'Schedule II (EBS)'!H33+'Schedule IIA (EBS)'!H33","v":0},6.0000000000000001E-3,{"$f":"IF(D20<0,0,D20*E20)","v":0}]
[null,2,"Sch II EBS, Line (12), Column (3) and Sch IIA EBS, Line (12), Column (3)",{"$f":"'Schedule II (EBS)'!H34+'Schedule IIA (EBS)'!H34","v":0},1.2E-2,0]
[null,3,"Sch II EBS, Line (13), Column (3) and Sch IIA EBS, Line (13), Column (3)",{"$f":"'Schedule II (EBS)'!H35+'Schedule IIA (EBS)'!H35","v":0},0.02,0]
[null,4,"Sch II EBS, Line (14), Column (3) and Sch IIA EBS, Line (14), Column (3)",{"$f":"'Schedule II (EBS)'!H36+'Schedule IIA (EBS)'!H36","v":0},0.04,0]
[null,5,"Sch II EBS, Line (15), Column (3) and Sch IIA EBS, Line (15), Column (3)",{"$f":"'Schedule II (EBS)'!H37+'Schedule IIA (EBS)'!H37","v":0},0.11,0]
[null,6,"Sch II EBS, Line (16), Column (3) and Sch IIA EBS, Line (16), Column (3)",{"$f":"'Schedule II (EBS)'!H38+'Schedule IIA (EBS)'!H38","v":0},0.25,0]
[null,7,"Sch II EBS, Line (17), Column (3) and Sch IIA EBS, Line (17), Column (3)",{"$f":"'Schedule II (EBS)'!H39+'Schedule IIA (EBS)'!H39","v":0},0.35,0]
[null,8,"Sch II EBS, Line (18), Column (3) and Sch IIA EBS, Line (18), Column (3)",{"$f":"'Schedule II (EBS)'!H40+'Schedule IIA (EBS)'!H40","v":0},0.35,0]
[]
[null,"(b)  SUBTOTAL - PREFERRED STOCKS",null,{"$f":"SUM(D20:D27)","v":0},null,{"$f":"IF(SUM(F20:F27)>=0,SUM(F20:F27),0)","v":0}]
[]
[null,"(c)  Other Equity Investments"]
[]
[null,"Real Estate"]
[null,"Group-Occupied Less Encumbrances","Form 1EBS, Line (7a)",{"$f":"'Form 1EBS'!F52","v":0},0.1,{"$f":"IF($D$34<0,0,$D$34*$E$34)","v":0}]
[null,"Other Properties Less Encumbrances","Form 1EBS, Line (7b)",{"$f":"'Form 1EBS'!F53","v":0},0.2,{"$f":"IF($D$35<0,0,$D$35*$E$35)","v":0}]
[]
[null,"Other Equity Investments","Form 1EBS, Lines (2e), (3e) & Schedule IIA EBS, Line 21, Column (7)",{"$f":"'Form 1EBS'!F20+'Form 1EBS'!F31+'Schedule IIA (EBS)'!P44","v":0},0.2,{"$f":"IF($D$37<0,0,$D$37*$E$37)","v":0}]
[null,"Other Tangible Assets - Net of Segregated Accounts Companies","Form 1EBS, Lines (13k), (14d) and (36f) Less Lines (13b), (13c), 13(d) and 13(h)",{"$f":"'Form 1EBS'!F88+'Form 1EBS'!F94+'Form 1EBS'!F196-'Form 1EBS'!F79-'Form 1EBS'!F80-'Form 1EBS'!F81-'Form 1EBS'!F85","v":0},0.2,{"$f":"IF($D$38<0,0,$D$38*$E$38)","v":0}]
[]
[null,"(c)  SUBTOTAL - OTHER EQUITY INVESTMENTS",null,{"$f":"SUM(D34:D38)","v":0},null,{"$f":"IF(SUM(F34:F38)>=0,SUM(F34:F38),0)","v":0}]
[]
[null,"(d) Investments In Affiliates"]
[]
[null,"Unregulated Entities That Conduct Ancillary Services","Form 1EBS, Line (4a)",{"$f":"'Form 1EBS'!F35","v":0},0.05,{"$f":"IF($D$44<0,0,$D$44*$E$44)","v":0}]
[null,"Unregulated Non-Financial Operating Entities","Form 1EBS, Line (4b)",{"$f":"'Form 1EBS'!F36","v":0},0.2,{"$f":"IF($D$45<0,0,$D$45*$E$45)","v":0}]
[null,"Unregulated Financial Operating Entities","Form 1EBS, Line (4c)",{"$f":"'Form 1EBS'!F37","v":0},0.55000000000000004,{"$f":"IF($D$46<0,0,$D$46*$E$46)","v":0}]
[null,"Regulated insurance financial operating entities","Form 1EBS, Line (4e)",{"$f":"'Form 1EBS'!F39","v":0},0.2,{"$f":"IF($D$47<0,0,$D$47*$E$47)","v":0}]
[]
[null,"(d) SUBTOTAL - INVESTMENTS IN AFFILIATES",null,{"$f":"SUM(D44:D48)","v":0},null,{"$f":"SUM(F44:F48)","v":0}]
[]
[null,"(e)  TOTAL EQUITY INVESTMENTS  [ (a) + (b) + (c) + (d) ]",null,{"$f":"D15+D29+D40+D49","v":0},null,{"$f":"F15+F29+F40+F49","v":0}]

{"sheet":"Equity Investments (Revised)","index":109,"n_rows":56,"n_cols":18,"rows_kept":56,"cut":false,"hidden":false,"merged":[[5,17,6,17],[6,5,6,6],[6,7,6,8],[1,17,1,18],[58,0,58,1],[4,3,4,8],[4,15,6,15],[5,3,6,4],[5,5,5,8],[4,9,5,9],[4,10,5,10],[4,11,5,11]]}
["EQUITY INVESTMENTS (REVISED)"]
[null,"Equity Investment Risk ($000)",null,null,null,null,null,null,null,null,null,null,null,null,null,null,null,{"$f":"HYPERLINK(\"#'Index'!A1\",\"Return to Index\")","v":"Return to Index"}]
[null,{"$f":"'Group Information'!C3","v":"2023-12-31"},null,"(1)",{"$f":"D3-1","v":-2},{"$f":"E3-1","v":-3},-4,-5,-6,-7,-8,-9,null,{"$f":"L3-1","v":-10},null,{"$f":"N3-1","v":-11},null,{"$f":"P3-1","v":-12}]
[]
[null,null,null,"ASSETS",null,null,null,null,null,null,"Without Mgmt Actions","With Mgmt Actions",null,null,null,"WITHOUT MANAGEMENT ACTIONS"]
[null,null,null,"Long Exposure",null,"Short Exposure",null,null,null,null,null,null,null,null,null,null,null,"WITH MANAGEMENT ACTIONS"]
[null,"TYPE OF ",null,null,null,"Qualifying as Assets held for risk-mitigation purposes",null,"Not Qualifying as Assets held for risk-mitigation purposes",null,"Before Shock","After Shock","After Shock",null,"CAPITAL"]
[null,"EQUITY INVESTMENTS","STATEMENT SOURCE","Before Shock","After Shock","Before Shock","After Shock","Before Shock","After Shock","Before Shock","After Shock","After Shock",null,"FACTOR",null,"REQUIRED CAPITAL",null,"CAPITAL"]
[]
[null,"Type 1 Equity Holdings"]
[null,"Strategic Holdings - Listed","Sch IIB, IIC, IID, IIE and IIF Line (15)",{"$f":"'Schedule IIB (EBS)'!D39+'Schedule IIC (EBS)'!D39+'Schedule IID (EBS)'!D39+'Schedule IIE (EBS)'!D39+'Schedule IIF (EBS)'!D39","v":0},{"$f":"'Schedule IIB (EBS)'!F39+'Schedule IIC (EBS)'!F39+'Schedule IID (EBS)'!F39+'Schedule IIE (EBS)'!F39+'Schedule IIF (EBS)'!F39","v":0},{"$f":"'Schedule IIB (EBS)'!H39+'Schedule IIC (EBS)'!H39+'Schedule IID (EBS)'!H39+'Schedule IIE (EBS)'!H39+'Schedule IIF (EBS)'!H39","v":0},{"$f":"'Schedule IIB (EBS)'!J39+'Schedule IIC (EBS)'!J39+'Schedule IID (EBS)'!J39+'Schedule IIE (EBS)'!J39+'Schedule IIF (EBS)'!J39","v":0},{"$f":"'Schedule IIB (EBS)'!L39+'Schedule IIC (EBS)'!L39+'Schedule IID (EBS)'!L39+'Schedule IIE (EBS)'!L39+'Schedule IIF (EBS)'!L39","v":0},{"$f":"'Schedule IIB (EBS)'!N39+'Schedule IIC (EBS)'!N39+'Schedule IID (EBS)'!N39+'Schedule IIE (EBS)'!N39+'Schedule IIF (EBS)'!N39","v":0},{"$f":"'Schedule IIB (EBS)'!P39+'Schedule IIC (EBS)'!P39+'Schedule IID (EBS)'!P39+'Schedule IIE (EBS)'!P39+'Schedule IIF (EBS)'!P39","v":0},{"$f":"'Schedule IIB (EBS)'!R39+'Schedule IIC (EBS)'!R39+'Schedule IID (EBS)'!R39+'Schedule IIE (EBS)'!R39+'Schedule IIF (EBS)'!R39","v":0},{"$f":"'Schedule IIB (EBS)'!T39+'Schedule IIC (EBS)'!T39+'Schedule IID (EBS)'!T39+'Schedule IIE (EBS)'!T39+'Schedule IIF (EBS)'!T39","v":0},null,0.2,null,{"$f":"MAX(D11-E11,0)+(F11-G11)+MAX(H11-I11,0)+(K11-J11)","v":0},null,{"$f":"MAX(D11-E11,0)+(F11-G11)+MAX(H11-I11,0)+(L11-J11)","v":0}]
[null,"Duration Based","Sch IIB, IIC, IID, IIE and IIF Line (16)",{"$f":"'Schedule IIB (EBS)'!D40+'Schedule IIC (EBS)'!D40+'Schedule IID (EBS)'!D40+'Schedule IIE (EBS)'!D40+'Schedule IIF (EBS)'!D40","v":0},{"$f":"'Schedule IIB (EBS)'!F40+'Schedule IIC (EBS)'!F40+'Schedule IID (EBS)'!F40+'Schedule IIE (EBS)'!F40+'Schedule IIF (EBS)'!F40","v":0},{"$f":"'Schedule IIB (EBS)'!H40+'Schedule IIC (EBS)'!H40+'Schedule IID (EBS)'!H40+'Schedule IIE (EBS)'!H40+'Schedule IIF (EBS)'!H40","v":0},{"$f":"'Schedule IIB (EBS)'!J40+'Schedule IIC (EBS)'!J40+'Schedule IID (EBS)'!J40+'Schedule IIE (EBS)'!J40+'Schedule IIF (EBS)'!J40","v":0},{"$f":"'Schedule IIB (EBS)'!L40+'Schedule IIC (EBS)'!L40+'Schedule IID (EBS)'!L40+'Schedule IIE (EBS)'!L40+'Schedule IIF (EBS)'!L40","v":0},{"$f":"'Schedule IIB (EBS)'!N40+'Schedule IIC (EBS)'!N40+'Schedule IID (EBS)'!N40+'Schedule IIE (EBS)'!N40+'Schedule IIF (EBS)'!N40","v":0},{"$f":"'Schedule IIB (EBS)'!P40+'Schedule IIC (EBS)'!P40+'Schedule IID (EBS)'!P40+'Schedule IIE (EBS)'!P40+'Schedule IIF (EBS)'!P40","v":0},{"$f":"'Schedule IIB (EBS)'!R40+'Schedule IIC (EBS)'!R40+'Schedule IID (EBS)'!R40+'Schedule IIE (EBS)'!R40+'Schedule IIF (EBS)'!R40","v":0},{"$f":"'Schedule IIB (EBS)'!T40+'Schedule IIC (EBS)'!T40+'Schedule IID (EBS)'!T40+'Schedule IIE (EBS)'!T40+'Schedule IIF (EBS)'!T40","v":0},null,0.2,null,0,null,{"$f":"MAX(D12-E12,0)+(F12-G12)+MAX(H12-I12,0)+(L12-J12)","v":0}]
[null,"Listed Equity Securities in Developed Markets","Sch IIB, IIC, IID, IIE and IIF Line (17)",{"$f":"'Schedule IIB (EBS)'!D41+'Schedule IIC (EBS)'!D41+'Schedule IID (EBS)'!D41+'Schedule IIE (EBS)'!D41+'Schedule IIF (EBS)'!D41","v":0},{"$f":"'Schedule IIB (EBS)'!F41+'Schedule IIC (EBS)'!F41+'Schedule IID (EBS)'!F41+'Schedule IIE (EBS)'!F41+'Schedule IIF (EBS)'!F41","v":0},{"$f":"'Schedule IIB (EBS)'!H41+'Schedule IIC (EBS)'!H41+'Schedule IID (EBS)'!H41+'Schedule IIE (EBS)'!H41+'Schedule IIF (EBS)'!H41","v":0},{"$f":"'Schedule IIB (EBS)'!J41+'Schedule IIC (EBS)'!J41+'Schedule IID (EBS)'!J41+'Schedule IIE (EBS)'!J41+'Schedule IIF (EBS)'!J41","v":0},{"$f":"'Schedule IIB (EBS)'!L41+'Schedule IIC (EBS)'!L41+'Schedule IID (EBS)'!L41+'Schedule IIE (EBS)'!L41+'Schedule IIF (EBS)'!L41","v":0},{"$f":"'Schedule IIB (EBS)'!N41+'Schedule IIC (EBS)'!N41+'Schedule IID (EBS)'!N41+'Schedule IIE (EBS)'!N41+'Schedule IIF (EBS)'!N41","v":0},{"$f":"'Schedule IIB (EBS)'!P41+'Schedule IIC (EBS)'!P41+'Schedule IID (EBS)'!P41+'Schedule IIE (EBS)'!P41+'Schedule IIF (EBS)'!P41","v":0},{"$f":"'Schedule IIB (EBS)'!R41+'Schedule IIC (EBS)'!R41+'Schedule IID (EBS)'!R41+'Schedule IIE (EBS)'!R41+'Schedule IIF (EBS)'!R41","v":0},{"$f":"'Schedule IIB (EBS)'!T41+'Schedule IIC (EBS)'!T41+'Schedule IID (EBS)'!T41+'Schedule IIE (EBS)'!T41+'Schedule IIF (EBS)'!T41","v":0},null,0.35,null,0,null,0]
[null,"Preferred Stocks, BSCR Rating 1","Sch IIB, IIC, IID, IIE and IIF Line (18)",{"$f":"'Schedule IIB (EBS)'!D42+'Schedule IIC (EBS)'!D42+'Schedule IID (EBS)'!D42+'Schedule IIE (EBS)'!D42+'Schedule IIF (EBS)'!D42","v":0},{"$f":"'Schedule IIB (EBS)'!F42+'Schedule IIC (EBS)'!F42+'Schedule IID (EBS)'!F42+'Schedule IIE (EBS)'!F42+'Schedule IIF (EBS)'!F42","v":0},{"$f":"'Schedule IIB (EBS)'!H42+'Schedule IIC (EBS)'!H42+'Schedule IID (EBS)'!H42+'Schedule IIE (EBS)'!H42+'Schedule IIF (EBS)'!H42","v":0},{"$f":"'Schedule IIB (EBS)'!J42+'Schedule IIC (EBS)'!J42+'Schedule IID (EBS)'!J42+'Schedule IIE (EBS)'!J42+'Schedule IIF (EBS)'!J42","v":0},{"$f":"'Schedule IIB (EBS)'!L42+'Schedule IIC (EBS)'!L42+'Schedule IID (EBS)'!L42+'Schedule IIE (EBS)'!L42+'Schedule IIF (EBS)'!L42","v":0},{"$f":"'Schedule IIB (EBS)'!N42+'Schedule IIC (EBS)'!N42+'Schedule IID (EBS)'!N42+'Schedule IIE (EBS)'!N42+'Schedule IIF (EBS)'!N42","v":0},{"$f":"'Schedule IIB (EBS)'!P42+'Schedule IIC (EBS)'!P42+'Schedule IID (EBS)'!P42+'Schedule IIE (EBS)'!P42+'Schedule IIF (EBS)'!P42","v":0},{"$f":"'Schedule IIB (EBS)'!R42+'Schedule IIC (EBS)'!R42+'Schedule IID (EBS)'!R42+'Schedule IIE (EBS)'!R42+'Schedule IIF (EBS)'!R42","v":0},{"$f":"'Schedule IIB (EBS)'!T42+'Schedule IIC (EBS)'!T42+'Schedule IID (EBS)'!T42+'Schedule IIE (EBS)'!T42+'Schedule IIF (EBS)'!T42","v":0},null,6.0000000000000001E-3,null,0,null,0]
[null,"Preferred Stocks, BSCR Rating 2","Sch IIB, IIC, IID, IIE and IIF Line (19)",{"$f":"'Schedule IIB (EBS)'!D43+'Schedule IIC (EBS)'!D43+'Schedule IID (EBS)'!D43+'Schedule IIE (EBS)'!D43+'Schedule IIF (EBS)'!D43","v":0},{"$f":"'Schedule IIB (EBS)'!F43+'Schedule IIC (EBS)'!F43+'Schedule IID (EBS)'!F43+'Schedule IIE (EBS)'!F43+'Schedule IIF (EBS)'!F43","v":0},{"$f":"'Schedule IIB (EBS)'!H43+'Schedule IIC (EBS)'!H43+'Schedule IID (EBS)'!H43+'Schedule IIE (EBS)'!H43+'Schedule IIF (EBS)'!H43","v":0},{"$f":"'Schedule IIB (EBS)'!J43+'Schedule IIC (EBS)'!J43+'Schedule IID (EBS)'!J43+'Schedule IIE (EBS)'!J43+'Schedule IIF (EBS)'!J43","v":0},{"$f":"'Schedule IIB (EBS)'!L43+'Schedule IIC (EBS)'!L43+'Schedule IID (EBS)'!L43+'Schedule IIE (EBS)'!L43+'Schedule IIF (EBS)'!L43","v":0},{"$f":"'Schedule IIB (EBS)'!N43+'Schedule IIC (EBS)'!N43+'Schedule IID (EBS)'!N43+'Schedule IIE (EBS)'!N43+'Schedule IIF (EBS)'!N43","v":0},{"$f":"'Schedule IIB (EBS)'!P43+'Schedule IIC (EBS)'!P43+'Schedule IID (EBS)'!P43+'Schedule IIE (EBS)'!P43+'Schedule IIF (EBS)'!P43","v":0},{"$f":"'Schedule IIB (EBS)'!R43+'Schedule IIC (EBS)'!R43+'Schedule IID (EBS)'!R43+'Schedule IIE (EBS)'!R43+'Schedule IIF (EBS)'!R43","v":0},{"$f":"'Schedule IIB (EBS)'!T43+'Schedule IIC (EBS)'!T43+'Schedule IID (EBS)'!T43+'Schedule IIE (EBS)'!T43+'Schedule IIF (EBS)'!T43","v":0},null,1.2E-2,null,0,null,0]
[null,"Preferred Stocks, BSCR Rating 3","Sch IIB, IIC, IID, IIE and IIF Line (20)",{"$f":"'Schedule IIB (EBS)'!D44+'Schedule IIC (EBS)'!D44+'Schedule IID (EBS)'!D44+'Schedule IIE (EBS)'!D44+'Schedule IIF (EBS)'!D44","v":0},{"$f":"'Schedule IIB (EBS)'!F44+'Schedule IIC (EBS)'!F44+'Schedule IID (EBS)'!F44+'Schedule IIE (EBS)'!F44+'Schedule IIF (EBS)'!F44","v":0},{"$f":"'Schedule IIB (EBS)'!H44+'Schedule IIC (EBS)'!H44+'Schedule IID (EBS)'!H44+'Schedule IIE (EBS)'!H44+'Schedule IIF (EBS)'!H44","v":0},{"$f":"'Schedule IIB (EBS)'!J44+'Schedule IIC (EBS)'!J44+'Schedule IID (EBS)'!J44+'Schedule IIE (EBS)'!J44+'Schedule IIF (EBS)'!J44","v":0},{"$f":"'Schedule IIB (EBS)'!L44+'Schedule IIC (EBS)'!L44+'Schedule IID (EBS)'!L44+'Schedule IIE (EBS)'!L44+'Schedule IIF (EBS)'!L44","v":0},{"$f":"'Schedule IIB (EBS)'!N44+'Schedule IIC (EBS)'!N44+'Schedule IID (EBS)'!N44+'Schedule IIE (EBS)'!N44+'Schedule IIF (EBS)'!N44","v":0},{"$f":"'Schedule IIB (EBS)'!P44+'Schedule IIC (EBS)'!P44+'Schedule IID (EBS)'!P44+'Schedule IIE (EBS)'!P44+'Schedule IIF (EBS)'!P44","v":0},{"$f":"'Schedule IIB (EBS)'!R44+'Schedule IIC (EBS)'!R44+'Schedule IID (EBS)'!R44+'Schedule IIE (EBS)'!R44+'Schedule IIF (EBS)'!R44","v":0},{"$f":"'Schedule IIB (EBS)'!T44+'Schedule IIC (EBS)'!T44+'Schedule IID (EBS)'!T44+'Schedule IIE (EBS)'!T44+'Schedule IIF (EBS)'!T44","v":0},null,0.02,null,0,null,0]
[null,"Preferred Stocks, BSCR Rating 4","Sch IIB, IIC, IID, IIE and IIF Line (21)",{"$f":"'Schedule IIB (EBS)'!D45+'Schedule IIC (EBS)'!D45+'Schedule IID (EBS)'!D45+'Schedule IIE (EBS)'!D45+'Schedule IIF (EBS)'!D45","v":0},{"$f":"'Schedule IIB (EBS)'!F45+'Schedule IIC (EBS)'!F45+'Schedule IID (EBS)'!F45+'Schedule IIE (EBS)'!F45+'Schedule IIF (EBS)'!F45","v":0},{"$f":"'Schedule IIB (EBS)'!H45+'Schedule IIC (EBS)'!H45+'Schedule IID (EBS)'!H45+'Schedule IIE (EBS)'!H45+'Schedule IIF (EBS)'!H45","v":0},{"$f":"'Schedule IIB (EBS)'!J45+'Schedule IIC (EBS)'!J45+'Schedule IID (EBS)'!J45+'Schedule IIE (EBS)'!J45+'Schedule IIF (EBS)'!J45","v":0},{"$f":"'Schedule IIB (EBS)'!L45+'Schedule IIC (EBS)'!L45+'Schedule IID (EBS)'!L45+'Schedule IIE (EBS)'!L45+'Schedule IIF (EBS)'!L45","v":0},{"$f":"'Schedule IIB (EBS)'!N45+'Schedule IIC (EBS)'!N45+'Schedule IID (EBS)'!N45+'Schedule IIE (EBS)'!N45+'Schedule IIF (EBS)'!N45","v":0},{"$f":"'Schedule IIB (EBS)'!P45+'Schedule IIC (EBS)'!P45+'Schedule IID (EBS)'!P45+'Schedule IIE (EBS)'!P45+'Schedule IIF (EBS)'!P45","v":0},{"$f":"'Schedule IIB (EBS)'!R45+'Schedule IIC (EBS)'!R45+'Schedule IID (EBS)'!R45+'Schedule IIE (EBS)'!R45+'Schedule IIF (EBS)'!R45","v":0},{"$f":"'Schedule IIB (EBS)'!T45+'Schedule IIC (EBS)'!T45+'Schedule IID (EBS)'!T45+'Schedule IIE (EBS)'!T45+'Schedule IIF (EBS)'!T45","v":0},null,0.04,null,0,null,0]
[null,"Preferred Stocks, BSCR Rating 5","Sch IIB, IIC, IID, IIE and IIF Line (22)",{"$f":"'Schedule IIB (EBS)'!D46+'Schedule IIC (EBS)'!D46+'Schedule IID (EBS)'!D46+'Schedule IIE (EBS)'!D46+'Schedule IIF (EBS)'!D46","v":0},{"$f":"'Schedule IIB (EBS)'!F46+'Schedule IIC (EBS)'!F46+'Schedule IID (EBS)'!F46+'Schedule IIE (EBS)'!F46+'Schedule IIF (EBS)'!F46","v":0},{"$f":"'Schedule IIB (EBS)'!H46+'Schedule IIC (EBS)'!H46+'Schedule IID (EBS)'!H46+'Schedule IIE (EBS)'!H46+'Schedule IIF (EBS)'!H46","v":0},{"$f":"'Schedule IIB (EBS)'!J46+'Schedule IIC (EBS)'!J46+'Schedule IID (EBS)'!J46+'Schedule IIE (EBS)'!J46+'Schedule IIF (EBS)'!J46","v":0},{"$f":"'Schedule IIB (EBS)'!L46+'Schedule IIC (EBS)'!L46+'Schedule IID (EBS)'!L46+'Schedule IIE (EBS)'!L46+'Schedule IIF (EBS)'!L46","v":0},{"$f":"'Schedule IIB (EBS)'!N46+'Schedule IIC (EBS)'!N46+'Schedule IID (EBS)'!N46+'Schedule IIE (EBS)'!N46+'Schedule IIF (EBS)'!N46","v":0},{"$f":"'Schedule IIB (EBS)'!P46+'Schedule IIC (EBS)'!P46+'Schedule IID (EBS)'!P46+'Schedule IIE (EBS)'!P46+'Schedule IIF (EBS)'!P46","v":0},{"$f":"'Schedule IIB (EBS)'!R46+'Schedule IIC (EBS)'!R46+'Schedule IID (EBS)'!R46+'Schedule IIE (EBS)'!R46+'Schedule IIF (EBS)'!R46","v":0},{"$f":"'Schedule IIB (EBS)'!T46+'Schedule IIC (EBS)'!T46+'Schedule IID (EBS)'!T46+'Schedule IIE (EBS)'!T46+'Schedule IIF (EBS)'!T46","v":0},null,0.11,null,0,null,0]
[null,"Preferred Stocks, BSCR Rating 6","Sch IIB, IIC, IID, IIE and IIF Line (23)",{"$f":"'Schedule IIB (EBS)'!D47+'Schedule IIC (EBS)'!D47+'Schedule IID (EBS)'!D47+'Schedule IIE (EBS)'!D47+'Schedule IIF (EBS)'!D47","v":0},{"$f":"'Schedule IIB (EBS)'!F47+'Schedule IIC (EBS)'!F47+'Schedule IID (EBS)'!F47+'Schedule IIE (EBS)'!F47+'Schedule IIF (EBS)'!F47","v":0},{"$f":"'Schedule IIB (EBS)'!H47+'Schedule IIC (EBS)'!H47+'Schedule IID (EBS)'!H47+'Schedule IIE (EBS)'!H47+'Schedule IIF (EBS)'!H47","v":0},{"$f":"'Schedule IIB (EBS)'!J47+'Schedule IIC (EBS)'!J47+'Schedule IID (EBS)'!J47+'Schedule IIE (EBS)'!J47+'Schedule IIF (EBS)'!J47","v":0},{"$f":"'Schedule IIB (EBS)'!L47+'Schedule IIC (EBS)'!L47+'Schedule IID (EBS)'!L47+'Schedule IIE (EBS)'!L47+'Schedule IIF (EBS)'!L47","v":0},{"$f":"'Schedule IIB (EBS)'!N47+'Schedule IIC (EBS)'!N47+'Schedule IID (EBS)'!N47+'Schedule IIE (EBS)'!N47+'Schedule IIF (EBS)'!N47","v":0},{"$f":"'Schedule IIB (EBS)'!P47+'Schedule IIC (EBS)'!P47+'Schedule IID (EBS)'!P47+'Schedule IIE (EBS)'!P47+'Schedule IIF (EBS)'!P47","v":0},{"$f":"'Schedule IIB (EBS)'!R47+'Schedule IIC (EBS)'!R47+'Schedule IID (EBS)'!R47+'Schedule IIE (EBS)'!R47+'Schedule IIF (EBS)'!R47","v":0},{"$f":"'Schedule IIB (EBS)'!T47+'Schedule IIC (EBS)'!T47+'Schedule IID (EBS)'!T47+'Schedule IIE (EBS)'!T47+'Schedule IIF (EBS)'!T47","v":0},null,0.25,null,0,null,0]
[null,"Preferred Stocks, BSCR Rating 7","Sch IIB, IIC, IID, IIE and IIF Line (24)",{"$f":"'Schedule IIB (EBS)'!D48+'Schedule IIC (EBS)'!D48+'Schedule IID (EBS)'!D48+'Schedule IIE (EBS)'!D48+'Schedule IIF (EBS)'!D48","v":0},{"$f":"'Schedule IIB (EBS)'!F48+'Schedule IIC (EBS)'!F48+'Schedule IID (EBS)'!F48+'Schedule IIE (EBS)'!F48+'Schedule IIF (EBS)'!F48","v":0},{"$f":"'Schedule IIB (EBS)'!H48+'Schedule IIC (EBS)'!H48+'Schedule IID (EBS)'!H48+'Schedule IIE (EBS)'!H48+'Schedule IIF (EBS)'!H48","v":0},{"$f":"'Schedule IIB (EBS)'!J48+'Schedule IIC (EBS)'!J48+'Schedule IID (EBS)'!J48+'Schedule IIE (EBS)'!J48+'Schedule IIF (EBS)'!J48","v":0},{"$f":"'Schedule IIB (EBS)'!L48+'Schedule IIC (EBS)'!L48+'Schedule IID (EBS)'!L48+'Schedule IIE (EBS)'!L48+'Schedule IIF (EBS)'!L48","v":0},{"$f":"'Schedule IIB (EBS)'!N48+'Schedule IIC (EBS)'!N48+'Schedule IID (EBS)'!N48+'Schedule IIE (EBS)'!N48+'Schedule IIF (EBS)'!N48","v":0},{"$f":"'Schedule IIB (EBS)'!P48+'Schedule IIC (EBS)'!P48+'Schedule IID (EBS)'!P48+'Schedule IIE (EBS)'!P48+'Schedule IIF (EBS)'!P48","v":0},{"$f":"'Schedule IIB (EBS)'!R48+'Schedule IIC (EBS)'!R48+'Schedule IID (EBS)'!R48+'Schedule IIE (EBS)'!R48+'Schedule IIF (EBS)'!R48","v":0},{"$f":"'Schedule IIB (EBS)'!T48+'Schedule IIC (EBS)'!T48+'Schedule IID (EBS)'!T48+'Schedule IIE (EBS)'!T48+'Schedule IIF (EBS)'!T48","v":0},null,0.35,null,0,null,0]
[null,"Preferred Stocks, BSCR Rating 8","Sch IIB, IIC, IID, IIE and IIF Line (25)",{"$f":"'Schedule IIB (EBS)'!D49+'Schedule IIC (EBS)'!D49+'Schedule IID (EBS)'!D49+'Schedule IIE (EBS)'!D49+'Schedule IIF (EBS)'!D49","v":0},{"$f":"'Schedule IIB (EBS)'!F49+'Schedule IIC (EBS)'!F49+'Schedule IID (EBS)'!F49+'Schedule IIE (EBS)'!F49+'Schedule IIF (EBS)'!F49","v":0},{"$f":"'Schedule IIB (EBS)'!H49+'Schedule IIC (EBS)'!H49+'Schedule IID (EBS)'!H49+'Schedule IIE (EBS)'!H49+'Schedule IIF (EBS)'!H49","v":0},{"$f":"'Schedule IIB (EBS)'!J49+'Schedule IIC (EBS)'!J49+'Schedule IID (EBS)'!J49+'Schedule IIE (EBS)'!J49+'Schedule IIF (EBS)'!J49","v":0},{"$f":"'Schedule IIB (EBS)'!L49+'Schedule IIC (EBS)'!L49+'Schedule IID (EBS)'!L49+'Schedule IIE (EBS)'!L49+'Schedule IIF (EBS)'!L49","v":0},{"$f":"'Schedule IIB (EBS)'!N49+'Schedule IIC (EBS)'!N49+'Schedule IID (EBS)'!N49+'Schedule IIE (EBS)'!N49+'Schedule IIF (EBS)'!N49","v":0},{"$f":"'Schedule IIB (EBS)'!P49+'Schedule IIC (EBS)'!P49+'Schedule IID (EBS)'!P49+'Schedule IIE (EBS)'!P49+'Schedule IIF (EBS)'!P49","v":0},{"$f":"'Schedule IIB (EBS)'!R49+'Schedule IIC (EBS)'!R49+'Schedule IID (EBS)'!R49+'Schedule IIE (EBS)'!R49+'Schedule IIF (EBS)'!R49","v":0},{"$f":"'Schedule IIB (EBS)'!T49+'Schedule IIC (EBS)'!T49+'Schedule IID (EBS)'!T49+'Schedule IIE (EBS)'!T49+'Schedule IIF (EBS)'!T49","v":0},null,0.35,null,0,null,0]
[null,"Equity Derivatives on Type 1 Equities","Sch IIB, IIC, IID, IIE and IIF Line (26)",{"$f":"'Schedule IIB (EBS)'!D50+'Schedule IIC (EBS)'!D50+'Schedule IID (EBS)'!D50+'Schedule IIE (EBS)'!D50+'Schedule IIF (EBS)'!D50","v":0},{"$f":"'Schedule IIB (EBS)'!F50+'Schedule IIC (EBS)'!F50+'Schedule IID (EBS)'!F50+'Schedule IIE (EBS)'!F50+'Schedule IIF (EBS)'!F50","v":0},{"$f":"'Schedule IIB (EBS)'!H50+'Schedule IIC (EBS)'!H50+'Schedule IID (EBS)'!H50+'Schedule IIE (EBS)'!H50+'Schedule IIF (EBS)'!H50","v":0},{"$f":"'Schedule IIB (EBS)'!J50+'Schedule IIC (EBS)'!J50+'Schedule IID (EBS)'!J50+'Schedule IIE (EBS)'!J50+'Schedule IIF (EBS)'!J50","v":0},{"$f":"'Schedule IIB (EBS)'!L50+'Schedule IIC (EBS)'!L50+'Schedule IID (EBS)'!L50+'Schedule IIE (EBS)'!L50+'Schedule IIF (EBS)'!L50","v":0},{"$f":"'Schedule IIB (EBS)'!N50+'Schedule IIC (EBS)'!N50+'Schedule IID (EBS)'!N50+'Schedule IIE (EBS)'!N50+'Schedule IIF (EBS)'!N50","v":0},{"$f":"'Schedule IIB (EBS)'!P50+'Schedule IIC (EBS)'!P50+'Schedule IID (EBS)'!P50+'Schedule IIE (EBS)'!P50+'Schedule IIF (EBS)'!P50","v":0},{"$f":"'Schedule IIB (EBS)'!R50+'Schedule IIC (EBS)'!R50+'Schedule IID (EBS)'!R50+'Schedule IIE (EBS)'!R50+'Schedule IIF (EBS)'!R50","v":0},{"$f":"'Schedule IIB (EBS)'!T50+'Schedule IIC (EBS)'!T50+'Schedule IID (EBS)'!T50+'Schedule IIE (EBS)'!T50+'Schedule IIF (EBS)'!T50","v":0},null,0.35,null,0,null,0]
[]
[null,"Subtotal - Type 1 Equity Holdings",null,{"$f":"SUM(D11:D23)","v":0},0,0,0,0,0,0,0,0,null,null,null,{"$f":"MAX(SUM(P11:P22),0)","v":0},null,{"$f":"MAX(SUM(R11:R22),0)","v":0}]
[]
[null,"Type 2 Equity Holdings"]
[null,"Strategic Holdings - Unlisted","Sch IIB, IIC, IID, IIE and IIF Line (27)",{"$f":"'Schedule IIB (EBS)'!D51+'Schedule IIC (EBS)'!D51+'Schedule IID (EBS)'!D51+'Schedule IIE (EBS)'!D51+'Schedule IIF (EBS)'!D51","v":0},{"$f":"'Schedule IIB (EBS)'!F51+'Schedule IIC (EBS)'!F51+'Schedule IID (EBS)'!F51+'Schedule IIE (EBS)'!F51+'Schedule IIF (EBS)'!F51","v":0},{"$f":"'Schedule IIB (EBS)'!H51+'Schedule IIC (EBS)'!H51+'Schedule IID (EBS)'!H51+'Schedule IIE (EBS)'!H51+'Schedule IIF (EBS)'!H51","v":0},{"$f":"'Schedule IIB (EBS)'!J51+'Schedule IIC (EBS)'!J51+'Schedule IID (EBS)'!J51+'Schedule IIE (EBS)'!J51+'Schedule IIF (EBS)'!J51","v":0},{"$f":"'Schedule IIB (EBS)'!L51+'Schedule IIC (EBS)'!L51+'Schedule IID (EBS)'!L51+'Schedule IIE (EBS)'!L51+'Schedule IIF (EBS)'!L51","v":0},{"$f":"'Schedule IIB (EBS)'!N51+'Schedule IIC (EBS)'!N51+'Schedule IID (EBS)'!N51+'Schedule IIE (EBS)'!N51+'Schedule IIF (EBS)'!N51","v":0},{"$f":"'Schedule IIB (EBS)'!P51+'Schedule IIC (EBS)'!P51+'Schedule IID (EBS)'!P51+'Schedule IIE (EBS)'!P51+'Schedule IIF (EBS)'!P51","v":0},{"$f":"'Schedule IIB (EBS)'!R51+'Schedule IIC (EBS)'!R51+'Schedule IID (EBS)'!R51+'Schedule IIE (EBS)'!R51+'Schedule IIF (EBS)'!R51","v":0},{"$f":"'Schedule IIB (EBS)'!T51+'Schedule IIC (EBS)'!T51+'Schedule IID (EBS)'!T51+'Schedule IIE (EBS)'!T51+'Schedule IIF (EBS)'!T51","v":0},null,0.2,null,{"$f":"MAX(D27-E27,0)+(F27-G27)+MAX(H27-I27,0)+(K27-J27)","v":0},null,{"$f":"MAX(D27-E27,0)+(F27-G27)+MAX(H27-I27,0)+(L27-J27)","v":0}]
[null,"Other Equities","Sch IIB, IIC, IID, IIE and IIF Line (28)",{"$f":"'Schedule IIB (EBS)'!D52+'Schedule IIC (EBS)'!D52+'Schedule IID (EBS)'!D52+'Schedule IIE (EBS)'!D52+'Schedule IIF (EBS)'!D52","v":0},{"$f":"'Schedule IIB (EBS)'!F52+'Schedule IIC (EBS)'!F52+'Schedule IID (EBS)'!F52+'Schedule IIE (EBS)'!F52+'Schedule IIF (EBS)'!F52","v":0},{"$f":"'Schedule IIB (EBS)'!H52+'Schedule IIC (EBS)'!H52+'Schedule IID (EBS)'!H52+'Schedule IIE (EBS)'!H52+'Schedule IIF (EBS)'!H52","v":0},{"$f":"'Schedule IIB (EBS)'!J52+'Schedule IIC (EBS)'!J52+'Schedule IID (EBS)'!J52+'Schedule IIE (EBS)'!J52+'Schedule IIF (EBS)'!J52","v":0},{"$f":"'Schedule IIB (EBS)'!L52+'Schedule IIC (EBS)'!L52+'Schedule IID (EBS)'!L52+'Schedule IIE (EBS)'!L52+'Schedule IIF (EBS)'!L52","v":0},{"$f":"'Schedule IIB (EBS)'!N52+'Schedule IIC (EBS)'!N52+'Schedule IID (EBS)'!N52+'Schedule IIE (EBS)'!N52+'Schedule IIF (EBS)'!N52","v":0},{"$f":"'Schedule IIB (EBS)'!P52+'Schedule IIC (EBS)'!P52+'Schedule IID (EBS)'!P52+'Schedule IIE (EBS)'!P52+'Schedule IIF (EBS)'!P52","v":0},{"$f":"'Schedule IIB (EBS)'!R52+'Schedule IIC (EBS)'!R52+'Schedule IID (EBS)'!R52+'Schedule IIE (EBS)'!R52+'Schedule IIF (EBS)'!R52","v":0},{"$f":"'Schedule IIB (EBS)'!T52+'Schedule IIC (EBS)'!T52+'Schedule IID (EBS)'!T52+'Schedule IIE (EBS)'!T52+'Schedule IIF (EBS)'!T52","v":0},null,0.45,null,0,null,0]
[null,"Letters of Credit","Sch IIB, IIC, IID, IIE and IIF Line (29)",{"$f":"'Schedule IIB (EBS)'!D53+'Schedule IIC (EBS)'!D53+'Schedule IID (EBS)'!D53+'Schedule IIE (EBS)'!D53+'Schedule IIF (EBS)'!D53","v":0},{"$f":"'Schedule IIB (EBS)'!F53+'Schedule IIC (EBS)'!F53+'Schedule IID (EBS)'!F53+'Schedule IIE (EBS)'!F53+'Schedule IIF (EBS)'!F53","v":0},{"$f":"'Schedule IIB (EBS)'!H53+'Schedule IIC (EBS)'!H53+'Schedule IID (EBS)'!H53+'Schedule IIE (EBS)'!H53+'Schedule IIF (EBS)'!H53","v":0},{"$f":"'Schedule IIB (EBS)'!J53+'Schedule IIC (EBS)'!J53+'Schedule IID (EBS)'!J53+'Schedule IIE (EBS)'!J53+'Schedule IIF (EBS)'!J53","v":0},{"$f":"'Schedule IIB (EBS)'!L53+'Schedule IIC (EBS)'!L53+'Schedule IID (EBS)'!L53+'Schedule IIE (EBS)'!L53+'Schedule IIF (EBS)'!L53","v":0},{"$f":"'Schedule IIB (EBS)'!N53+'Schedule IIC (EBS)'!N53+'Schedule IID (EBS)'!N53+'Schedule IIE (EBS)'!N53+'Schedule IIF (EBS)'!N53","v":0},{"$f":"'Schedule IIB (EBS)'!P53+'Schedule IIC (EBS)'!P53+'Schedule IID (EBS)'!P53+'Schedule IIE (EBS)'!P53+'Schedule IIF (EBS)'!P53","v":0},{"$f":"'Schedule IIB (EBS)'!R53+'Schedule IIC (EBS)'!R53+'Schedule IID (EBS)'!R53+'Schedule IIE (EBS)'!R53+'Schedule IIF (EBS)'!R53","v":0},{"$f":"'Schedule IIB (EBS)'!T53+'Schedule IIC (EBS)'!T53+'Schedule IID (EBS)'!T53+'Schedule IIE (EBS)'!T53+'Schedule IIF (EBS)'!T53","v":0},null,0.2,null,0,null,0]
[null,"Intangible assets","Sch IIB, IIC, IID, IIE and IIF Line (30)",{"$f":"'Schedule IIB (EBS)'!D54+'Schedule IIC (EBS)'!D54+'Schedule IID (EBS)'!D54+'Schedule IIE (EBS)'!D54+'Schedule IIF (EBS)'!D54","v":0},{"$f":"'Schedule IIB (EBS)'!F54+'Schedule IIC (EBS)'!F54+'Schedule IID (EBS)'!F54+'Schedule IIE (EBS)'!F54+'Schedule IIF (EBS)'!F54","v":0},{"$f":"'Schedule IIB (EBS)'!H54+'Schedule IIC (EBS)'!H54+'Schedule IID (EBS)'!H54+'Schedule IIE (EBS)'!H54+'Schedule IIF (EBS)'!H54","v":0},{"$f":"'Schedule IIB (EBS)'!J54+'Schedule IIC (EBS)'!J54+'Schedule IID (EBS)'!J54+'Schedule IIE (EBS)'!J54+'Schedule IIF (EBS)'!J54","v":0},{"$f":"'Schedule IIB (EBS)'!L54+'Schedule IIC (EBS)'!L54+'Schedule IID (EBS)'!L54+'Schedule IIE (EBS)'!L54+'Schedule IIF (EBS)'!L54","v":0},{"$f":"'Schedule IIB (EBS)'!N54+'Schedule IIC (EBS)'!N54+'Schedule IID (EBS)'!N54+'Schedule IIE (EBS)'!N54+'Schedule IIF (EBS)'!N54","v":0},{"$f":"'Schedule IIB (EBS)'!P54+'Schedule IIC (EBS)'!P54+'Schedule IID (EBS)'!P54+'Schedule IIE (EBS)'!P54+'Schedule IIF (EBS)'!P54","v":0},{"$f":"'Schedule IIB (EBS)'!R54+'Schedule IIC (EBS)'!R54+'Schedule IID (EBS)'!R54+'Schedule IIE (EBS)'!R54+'Schedule IIF (EBS)'!R54","v":0},{"$f":"'Schedule IIB (EBS)'!T54+'Schedule IIC (EBS)'!T54+'Schedule IID (EBS)'!T54+'Schedule IIE (EBS)'!T54+'Schedule IIF (EBS)'!T54","v":0},null,0.2,null,0,null,0]
[null,"Pension Benefit Surplus","Sch IIB, IIC, IID, IIE and IIF Line (31)",{"$f":"'Schedule IIB (EBS)'!D55+'Schedule IIC (EBS)'!D55+'Schedule IID (EBS)'!D55+'Schedule IIE (EBS)'!D55+'Schedule IIF (EBS)'!D55","v":0},{"$f":"'Schedule IIB (EBS)'!F55+'Schedule IIC (EBS)'!F55+'Schedule IID (EBS)'!F55+'Schedule IIE (EBS)'!F55+'Schedule IIF (EBS)'!F55","v":0},{"$f":"'Schedule IIB (EBS)'!H55+'Schedule IIC (EBS)'!H55+'Schedule IID (EBS)'!H55+'Schedule IIE (EBS)'!H55+'Schedule IIF (EBS)'!H55","v":0},{"$f":"'Schedule IIB (EBS)'!J55+'Schedule IIC (EBS)'!J55+'Schedule IID (EBS)'!J55+'Schedule IIE (EBS)'!J55+'Schedule IIF (EBS)'!J55","v":0},{"$f":"'Schedule IIB (EBS)'!L55+'Schedule IIC (EBS)'!L55+'Schedule IID (EBS)'!L55+'Schedule IIE (EBS)'!L55+'Schedule IIF (EBS)'!L55","v":0},{"$f":"'Schedule IIB (EBS)'!N55+'Schedule IIC (EBS)'!N55+'Schedule IID (EBS)'!N55+'Schedule IIE (EBS)'!N55+'Schedule IIF (EBS)'!N55","v":0},{"$f":"'Schedule IIB (EBS)'!P55+'Schedule IIC (EBS)'!P55+'Schedule IID (EBS)'!P55+'Schedule IIE (EBS)'!P55+'Schedule IIF (EBS)'!P55","v":0},{"$f":"'Schedule IIB (EBS)'!R55+'Schedule IIC (EBS)'!R55+'Schedule IID (EBS)'!R55+'Schedule IIE (EBS)'!R55+'Schedule IIF (EBS)'!R55","v":0},{"$f":"'Schedule IIB (EBS)'!T55+'Schedule IIC (EBS)'!T55+'Schedule IID (EBS)'!T55+'Schedule IIE (EBS)'!T55+'Schedule IIF (EBS)'!T55","v":0},null,0.2,null,0,null,0]
[null,"Equity Derivatives on Type 2 Equities","Sch IIB, IIC, IID, IIE and IIF Line (32)",{"$f":"'Schedule IIB (EBS)'!D56+'Schedule IIC (EBS)'!D56+'Schedule IID (EBS)'!D56+'Schedule IIE (EBS)'!D56+'Schedule IIF (EBS)'!D56","v":0},{"$f":"'Schedule IIB (EBS)'!F56+'Schedule IIC (EBS)'!F56+'Schedule IID (EBS)'!F56+'Schedule IIE (EBS)'!F56+'Schedule IIF (EBS)'!F56","v":0},{"$f":"'Schedule IIB (EBS)'!H56+'Schedule IIC (EBS)'!H56+'Schedule IID (EBS)'!H56+'Schedule IIE (EBS)'!H56+'Schedule IIF (EBS)'!H56","v":0},{"$f":"'Schedule IIB (EBS)'!J56+'Schedule IIC (EBS)'!J56+'Schedule IID (EBS)'!J56+'Schedule IIE (EBS)'!J56+'Schedule IIF (EBS)'!J56","v":0},{"$f":"'Schedule IIB (EBS)'!L56+'Schedule IIC (EBS)'!L56+'Schedule IID (EBS)'!L56+'Schedule IIE (EBS)'!L56+'Schedule IIF (EBS)'!L56","v":0},{"$f":"'Schedule IIB (EBS)'!N56+'Schedule IIC (EBS)'!N56+'Schedule IID (EBS)'!N56+'Schedule IIE (EBS)'!N56+'Schedule IIF (EBS)'!N56","v":0},{"$f":"'Schedule IIB (EBS)'!P56+'Schedule IIC (EBS)'!P56+'Schedule IID (EBS)'!P56+'Schedule IIE (EBS)'!P56+'Schedule IIF (EBS)'!P56","v":0},{"$f":"'Schedule IIB (EBS)'!R56+'Schedule IIC (EBS)'!R56+'Schedule IID (EBS)'!R56+'Schedule IIE (EBS)'!R56+'Schedule IIF (EBS)'!R56","v":0},{"$f":"'Schedule IIB (EBS)'!T56+'Schedule IIC (EBS)'!T56+'Schedule IID (EBS)'!T56+'Schedule IIE (EBS)'!T56+'Schedule IIF (EBS)'!T56","v":0},null,0.45,null,0,null,0]
[]
[null,"Subtotal - Type 2 Equity Holdings",null,{"$f":"SUM(D27:D33)","v":0},{"$f":"SUM(E27:E33)","v":0},{"$f":"SUM(F27:F33)","v":0},0,0,0,0,0,{"$f":"SUM(L27:L33)","v":0},null,null,null,{"$f":"MAX(SUM(P27:P33),0)","v":0},null,{"$f":"MAX(SUM(R27:R33),0)","v":0}]
[]
[null,"Type 3 Equity Holdings"]
[null,"Infrastructure","Sch IIB, IIC, IID, IIE and IIF Line (33)",{"$f":"'Schedule IIB (EBS)'!D57+'Schedule IIC (EBS)'!D57+'Schedule IID (EBS)'!D57+'Schedule IIE (EBS)'!D57+'Schedule IIF (EBS)'!D57","v":0},{"$f":"'Schedule IIB (EBS)'!F57+'Schedule IIC (EBS)'!F57+'Schedule IID (EBS)'!F57+'Schedule IIE (EBS)'!F57+'Schedule IIF (EBS)'!F57","v":0},{"$f":"'Schedule IIB (EBS)'!H57+'Schedule IIC (EBS)'!H57+'Schedule IID (EBS)'!H57+'Schedule IIE (EBS)'!H57+'Schedule IIF (EBS)'!H57","v":0},{"$f":"'Schedule IIB (EBS)'!J57+'Schedule IIC (EBS)'!J57+'Schedule IID (EBS)'!J57+'Schedule IIE (EBS)'!J57+'Schedule IIF (EBS)'!J57","v":0},{"$f":"'Schedule IIB (EBS)'!L57+'Schedule IIC (EBS)'!L57+'Schedule IID (EBS)'!L57+'Schedule IIE (EBS)'!L57+'Schedule IIF (EBS)'!L57","v":0},{"$f":"'Schedule IIB (EBS)'!N57+'Schedule IIC (EBS)'!N57+'Schedule IID (EBS)'!N57+'Schedule IIE (EBS)'!N57+'Schedule IIF (EBS)'!N57","v":0},{"$f":"'Schedule IIB (EBS)'!P57+'Schedule IIC (EBS)'!P57+'Schedule IID (EBS)'!P57+'Schedule IIE (EBS)'!P57+'Schedule IIF (EBS)'!P57","v":0},{"$f":"'Schedule IIB (EBS)'!R57+'Schedule IIC (EBS)'!R57+'Schedule IID (EBS)'!R57+'Schedule IIE (EBS)'!R57+'Schedule IIF (EBS)'!R57","v":0},{"$f":"'Schedule IIB (EBS)'!T57+'Schedule IIC (EBS)'!T57+'Schedule IID (EBS)'!T57+'Schedule IIE (EBS)'!T57+'Schedule IIF (EBS)'!T57","v":0},null,0.25,null,{"$f":"MAX(D37-E37,0)+(F37-G37)+MAX(H37-I37,0)+(K37-J37)","v":0},null,{"$f":"MAX(D37-E37,0)+(F37-G37)+MAX(H37-I37,0)+(L37-J37)","v":0}]
[null,"Derivatives on Infrastructure","Sch IIB, IIC, IID, IIE and IIF Line (34)",{"$f":"'Schedule IIB (EBS)'!D58+'Schedule IIC (EBS)'!D58+'Schedule IID (EBS)'!D58+'Schedule IIE (EBS)'!D58+'Schedule IIF (EBS)'!D58","v":0},{"$f":"'Schedule IIB (EBS)'!F58+'Schedule IIC (EBS)'!F58+'Schedule IID (EBS)'!F58+'Schedule IIE (EBS)'!F58+'Schedule IIF (EBS)'!F58","v":0},{"$f":"'Schedule IIB (EBS)'!H58+'Schedule IIC (EBS)'!H58+'Schedule IID (EBS)'!H58+'Schedule IIE (EBS)'!H58+'Schedule IIF (EBS)'!H58","v":0},{"$f":"'Schedule IIB (EBS)'!J58+'Schedule IIC (EBS)'!J58+'Schedule IID (EBS)'!J58+'Schedule IIE (EBS)'!J58+'Schedule IIF (EBS)'!J58","v":0},{"$f":"'Schedule IIB (EBS)'!L58+'Schedule IIC (EBS)'!L58+'Schedule IID (EBS)'!L58+'Schedule IIE (EBS)'!L58+'Schedule IIF (EBS)'!L58","v":0},{"$f":"'Schedule IIB (EBS)'!N58+'Schedule IIC (EBS)'!N58+'Schedule IID (EBS)'!N58+'Schedule IIE (EBS)'!N58+'Schedule IIF (EBS)'!N58","v":0},{"$f":"'Schedule IIB (EBS)'!P58+'Schedule IIC (EBS)'!P58+'Schedule IID (EBS)'!P58+'Schedule IIE (EBS)'!P58+'Schedule IIF (EBS)'!P58","v":0},{"$f":"'Schedule IIB (EBS)'!R58+'Schedule IIC (EBS)'!R58+'Schedule IID (EBS)'!R58+'Schedule IIE (EBS)'!R58+'Schedule IIF (EBS)'!R58","v":0},{"$f":"'Schedule IIB (EBS)'!T58+'Schedule IIC (EBS)'!T58+'Schedule IID (EBS)'!T58+'Schedule IIE (EBS)'!T58+'Schedule IIF (EBS)'!T58","v":0},null,0.25,null,{"$f":"MAX(D38-E38,0)+(F38-G38)+MAX(H38-I38,0)+(K38-J38)","v":0},null,{"$f":"MAX(D38-E38,0)+(F38-G38)+MAX(H38-I38,0)+(L38-J38)","v":0}]
[]
[null,"Subtotal - Type 3 Equity Holdings",null,{"$f":"SUM(D37:D39)","v":0},{"$f":"SUM(E37:E39)","v":0},{"$f":"SUM(F37:F39)","v":0},0,0,0,0,0,{"$f":"SUM(L37:L39)","v":0},null,null,null,{"$f":"MAX(SUM(P37:P39),0)","v":0},null,{"$f":"MAX(SUM(R37:R39),0)","v":0}]
[]
[null,"Type 4 Equity Holdings"]
[null,"Equity Real Estate 1","Sch IIB, IIC, IID, IIE and IIF Line (35)",{"$f":"'Schedule IIB (EBS)'!D59+'Schedule IIC (EBS)'!D59+'Schedule IID (EBS)'!D59+'Schedule IIE (EBS)'!D59+'Schedule IIF (EBS)'!D59","v":0},{"$f":"'Schedule IIB (EBS)'!F59+'Schedule IIC (EBS)'!F59+'Schedule IID (EBS)'!F59+'Schedule IIE (EBS)'!F59+'Schedule IIF (EBS)'!F59","v":0},{"$f":"'Schedule IIB (EBS)'!H59+'Schedule IIC (EBS)'!H59+'Schedule IID (EBS)'!H59+'Schedule IIE (EBS)'!H59+'Schedule IIF (EBS)'!H59","v":0},{"$f":"'Schedule IIB (EBS)'!J59+'Schedule IIC (EBS)'!J59+'Schedule IID (EBS)'!J59+'Schedule IIE (EBS)'!J59+'Schedule IIF (EBS)'!J59","v":0},{"$f":"'Schedule IIB (EBS)'!L59+'Schedule IIC (EBS)'!L59+'Schedule IID (EBS)'!L59+'Schedule IIE (EBS)'!L59+'Schedule IIF (EBS)'!L59","v":0},{"$f":"'Schedule IIB (EBS)'!N59+'Schedule IIC (EBS)'!N59+'Schedule IID (EBS)'!N59+'Schedule IIE (EBS)'!N59+'Schedule IIF (EBS)'!N59","v":0},{"$f":"'Schedule IIB (EBS)'!P59+'Schedule IIC (EBS)'!P59+'Schedule IID (EBS)'!P59+'Schedule IIE (EBS)'!P59+'Schedule IIF (EBS)'!P59","v":0},{"$f":"'Schedule IIB (EBS)'!R59+'Schedule IIC (EBS)'!R59+'Schedule IID (EBS)'!R59+'Schedule IIE (EBS)'!R59+'Schedule IIF (EBS)'!R59","v":0},{"$f":"'Schedule IIB (EBS)'!T59+'Schedule IIC (EBS)'!T59+'Schedule IID (EBS)'!T59+'Schedule IIE (EBS)'!T59+'Schedule IIF (EBS)'!T59","v":0},null,0.1,null,{"$f":"MAX(D43-E43,0)+(F43-G43)+MAX(H43-I43,0)+(K43-J43)","v":0},null,{"$f":"MAX(D43-E43,0)+(F43-G43)+MAX(H43-I43,0)+(L43-J43)","v":0}]
[null,"Equity Real Estate 2","Sch IIB, IIC, IID, IIE and IIF Line (36)",{"$f":"'Schedule IIB (EBS)'!D60+'Schedule IIC (EBS)'!D60+'Schedule IID (EBS)'!D60+'Schedule IIE (EBS)'!D60+'Schedule IIF (EBS)'!D60","v":0},{"$f":"'Schedule IIB (EBS)'!F60+'Schedule IIC (EBS)'!F60+'Schedule IID (EBS)'!F60+'Schedule IIE (EBS)'!F60+'Schedule IIF (EBS)'!F60","v":0},{"$f":"'Schedule IIB (EBS)'!H60+'Schedule IIC (EBS)'!H60+'Schedule IID (EBS)'!H60+'Schedule IIE (EBS)'!H60+'Schedule IIF (EBS)'!H60","v":0},{"$f":"'Schedule IIB (EBS)'!J60+'Schedule IIC (EBS)'!J60+'Schedule IID (EBS)'!J60+'Schedule IIE (EBS)'!J60+'Schedule IIF (EBS)'!J60","v":0},{"$f":"'Schedule IIB (EBS)'!L60+'Schedule IIC (EBS)'!L60+'Schedule IID (EBS)'!L60+'Schedule IIE (EBS)'!L60+'Schedule IIF (EBS)'!L60","v":0},{"$f":"'Schedule IIB (EBS)'!N60+'Schedule IIC (EBS)'!N60+'Schedule IID (EBS)'!N60+'Schedule IIE (EBS)'!N60+'Schedule IIF (EBS)'!N60","v":0},{"$f":"'Schedule IIB (EBS)'!P60+'Schedule IIC (EBS)'!P60+'Schedule IID (EBS)'!P60+'Schedule IIE (EBS)'!P60+'Schedule IIF (EBS)'!P60","v":0},{"$f":"'Schedule IIB (EBS)'!R60+'Schedule IIC (EBS)'!R60+'Schedule IID (EBS)'!R60+'Schedule IIE (EBS)'!R60+'Schedule IIF (EBS)'!R60","v":0},{"$f":"'Schedule IIB (EBS)'!T60+'Schedule IIC (EBS)'!T60+'Schedule IID (EBS)'!T60+'Schedule IIE (EBS)'!T60+'Schedule IIF (EBS)'!T60","v":0},null,0.2,null,{"$f":"MAX(D44-E44,0)+(F44-G44)+MAX(H44-I44,0)+(K44-J44)","v":0},null,{"$f":"MAX(D44-E44,0)+(F44-G44)+MAX(H44-I44,0)+(L44-J44)","v":0}]
[]
[null,"Subtotal - Type 4 Equity Holdings",null,{"$f":"SUM(D43:D45)","v":0},{"$f":"SUM(E43:E45)","v":0},0,0,0,0,0,{"$f":"SUM(K43:K45)","v":0},{"$f":"SUM(L43:L45)","v":0},null,null,null,{"$f":"MAX(SUM(P43:P45),0)","v":0},null,{"$f":"MAX(SUM(R43:R45),0)","v":0}]
[]
[null,"Total Equity Risk before Diversification",null,{"$f":"D40+D34+D24+D46","v":0},{"$f":"E40+E34+E24+E46","v":0},0,0,0,0,0,{"$f":"K40+K34+K24+K46","v":0},{"$f":"L40+L34+L24+L46","v":0},null,null,null,{"$f":"P40+P34+P24+P46","v":0},null,{"$f":"R40+R34+R24+R46","v":0}]
[]
[null,"Aggregation of Risks","Correlation Matrix","Type 1","Type 2","Type 3","Type 4"]
[null,null,"Type 1",1,0.75,0.75,0.5,null,null,null,null,null,null,"Total Type 1 Risk ",null,{"$f":"P24","v":0},null,{"$f":"R24","v":0}]
[null,null,"Type 2",0.75,1,0.75,0.5,null,null,null,null,null,null,"Total Type 2 Risk ",null,{"$f":"P34","v":0},null,{"$f":"R34","v":0}]
[null,null,"Type 3",0.75,0.75,1,0.5,null,null,null,null,null,null,"Total Type 3 Risk",null,{"$f":"P40","v":0},null,{"$f":"R40","v":0}]
[null,null,"Type 4",0.5,0.5,0.5,1,null,null,null,null,null,null,"Total Type 4 Risk",null,{"$f":"P46","v":0},null,{"$f":"R46","v":0}]
[]
[null,"Total Equity Risk (Post Diversification) ",null,null,null,null,null,null,null,null,null,null,null,null,null,{"$f":"SQRT(MMULT(TRANSPOSE($P$51:$P$54),MMULT($D$51:$G$54,$P$51:$P$54)))","v":0},null,{"$f":"SQRT(MMULT(TRANSPOSE($R$51:$R$54),MMULT($D$51:$G$54,$R$51:$R$54)))","v":0}]

{"sheet":"Equity Grandfathering","index":110,"n_rows":51,"n_cols":17,"rows_kept":51,"cut":false,"hidden":false,"merged":[[12,1,12,4],[0,16,0,17]]}
[null,null,null,"Calculation of Grandfathered Equity Limits",null,null,null,null,null,null,null,null,null,"Application of Grandfathered Equity Limits",null,null,{"$f":"HYPERLINK(\"#'Index'!A1\",\"Return to Index\")","v":"Return to Index"}]
[]
[null,null,null,null,null,null,null,null,null,null,null,null,"Application of Grandfathered Equity Limits"]
[]
[null,null,null,null,null,null,null,null,null,null,null,null,null,"Current"]
[null,null,null,null,null,null,null,null,null,null,null,null,"Year",{"$f":"YEAR('Group Information'!C3)","v":2023}]
[null,null,null,null,null,null,null,null,null,null,null,null,"Legacy Reserves",0]
[null,null,null,null,null,null,null,null,null,null,null,null,"Other reserves",0]
[null,null,null,null,null,null,null,null,null,null,null,null,"Capped legacy reserves",{"$f":"MIN(N7,E46)","v":0}]
[null,null,null,null,null,null,null,null,null,null,null,null,"Grandfathered percentage",{"$f":"F50","v":0}]
[null,null,null,null,null,null,null,null,null,null,null,null,"Grandfathered Equities",{"$f":"N10*N9","v":0}]
[]
[null,"Historical Equity Holdings",null,null,null,null,null,null,"Percentages"]
[null,"Year",2016,2017,2018,null,2016,2017,2018,"Average",null,null,null,"Available for","Actual Market Value","Grandfathered","Non-Grandfathered"]
[null,"Type 1",null,null,null,null,null,null,null,null,null,null,"Type 1","Grandfathering","as of Valuation Date","Amount","Amount"]
["Equity classes","Strategic Holdings - Listed",null,null,null,null,{"$f":"IF(C$42=0,0,C16/C$42)","v":0},0,0,{"$f":"AVERAGE(G16:I16)","v":0},null,null,"Strategic Holdings - Listed",{"$f":"N$11*$J16","v":0},{"$f":"'Schedule IIB (EBS)'!D39+'Schedule IIC (EBS)'!D39+'Schedule IID (EBS)'!D39+'Schedule IIE (EBS)'!D39+'Schedule IIF (EBS)'!D39","v":0},{"$f":"MIN(N16,O16)","v":0},{"$f":"O16-P16","v":0}]
[null,"Duration based",null,null,null,null,0,0,0,{"$f":"AVERAGE(G17:I17)","v":0},null,null,"Duration based",{"$f":"N$11*$J17","v":0},{"$f":"'Schedule IIB (EBS)'!D40+'Schedule IIC (EBS)'!D40+'Schedule IID (EBS)'!D40+'Schedule IIE (EBS)'!D40+'Schedule IIF (EBS)'!D40","v":0},{"$f":"MIN(N17,O17)","v":0},{"$f":"O17-P17","v":0}]
[null,"Listed equities in developed markets",null,null,null,null,0,0,0,{"$f":"AVERAGE(G18:I18)","v":0},null,null,"Listed equities in developed markets",{"$f":"N$11*$J18","v":0},{"$f":"'Schedule IIB (EBS)'!D41+'Schedule IIC (EBS)'!D41+'Schedule IID (EBS)'!D41+'Schedule IIE (EBS)'!D41+'Schedule IIF (EBS)'!D41","v":0},0,0]
[null,"Preferred Stocks, BSCR Rating 1",null,null,null,null,0,0,0,{"$f":"AVERAGE(G19:I19)","v":0},null,null,"Preferred Stocks, BSCR Rating 1",{"$f":"N$11*$J19","v":0},{"$f":"'Schedule IIB (EBS)'!D42+'Schedule IIC (EBS)'!D42+'Schedule IID (EBS)'!D42+'Schedule IIE (EBS)'!D42+'Schedule IIF (EBS)'!D42","v":0},0,0]
[null,"Preferred Stocks, BSCR Rating 2",null,null,null,null,0,0,0,{"$f":"AVERAGE(G20:I20)","v":0},null,null,"Preferred Stocks, BSCR Rating 2",{"$f":"N$11*$J20","v":0},{"$f":"'Schedule IIB (EBS)'!D43+'Schedule IIC (EBS)'!D43+'Schedule IID (EBS)'!D43+'Schedule IIE (EBS)'!D43+'Schedule IIF (EBS)'!D43","v":0},0,0]
[null,"Preferred Stocks, BSCR Rating 3",null,null,null,null,0,0,0,0,null,null,"Preferred Stocks, BSCR Rating 3",0,{"$f":"'Schedule IIB (EBS)'!D44+'Schedule IIC (EBS)'!D44+'Schedule IID (EBS)'!D44+'Schedule IIE (EBS)'!D44+'Schedule IIF (EBS)'!D44","v":0},0,0]
[null,"Preferred Stocks, BSCR Rating 4",null,null,null,null,0,0,0,0,null,null,"Preferred Stocks, BSCR Rating 4",0,{"$f":"'Schedule IIB (EBS)'!D45+'Schedule IIC (EBS)'!D45+'Schedule IID (EBS)'!D45+'Schedule IIE (EBS)'!D45+'Schedule IIF (EBS)'!D45","v":0},0,0]
[null,"Preferred Stocks, BSCR Rating 5",null,null,null,null,0,0,0,0,null,null,"Preferred Stocks, BSCR Rating 5",0,{"$f":"'Schedule IIB (EBS)'!D46+'Schedule IIC (EBS)'!D46+'Schedule IID (EBS)'!D46+'Schedule IIE (EBS)'!D46+'Schedule IIF (EBS)'!D46","v":0},0,0]
[null,"Preferred Stocks, BSCR Rating 6",null,null,null,null,0,0,0,0,null,null,"Preferred Stocks, BSCR Rating 6",0,{"$f":"'Schedule IIB (EBS)'!D47+'Schedule IIC (EBS)'!D47+'Schedule IID (EBS)'!D47+'Schedule IIE (EBS)'!D47+'Schedule IIF (EBS)'!D47","v":0},0,0]
[null,"Preferred Stocks, BSCR Rating 7",null,null,null,null,0,0,0,0,null,null,"Preferred Stocks, BSCR Rating 7",0,{"$f":"'Schedule IIB (EBS)'!D48+'Schedule IIC (EBS)'!D48+'Schedule IID (EBS)'!D48+'Schedule IIE (EBS)'!D48+'Schedule IIF (EBS)'!D48","v":0},0,0]
[null,"Preferred Stocks, BSCR Rating 8",null,null,null,null,0,0,0,0,null,null,"Preferred Stocks, BSCR Rating 8",0,{"$f":"'Schedule IIB (EBS)'!D49+'Schedule IIC (EBS)'!D49+'Schedule IID (EBS)'!D49+'Schedule IIE (EBS)'!D49+'Schedule IIF (EBS)'!D49","v":0},0,0]
[null,"Equity derivatives on type 1",null,null,null,null,0,0,0,0,null,null,"Equity derivatives on type 1",0,{"$f":"'Schedule IIB (EBS)'!D50+'Schedule IIC (EBS)'!D50+'Schedule IID (EBS)'!D50+'Schedule IIE (EBS)'!D50+'Schedule IIF (EBS)'!D50","v":0},0,0]
[null,"Type 2",null,null,null,null,null,null,null,null,null,null,"Type 2"]
[null,"Strategic Holdings- Unlisted",null,null,null,null,{"$f":"IF(C$42=0,0,C29/C$42)","v":0},0,0,{"$f":"AVERAGE(G29:I29)","v":0},null,null,"Strategic Holdings- Unlisted",{"$f":"N$11*$J29","v":0},{"$f":"'Schedule IIB (EBS)'!D51+'Schedule IIC (EBS)'!D51+'Schedule IID (EBS)'!D51+'Schedule IIE (EBS)'!D51+'Schedule IIF (EBS)'!D51","v":0},0,0]
[null,"Other Equities",null,null,null,null,0,0,0,0,null,null,"Other Equities",0,{"$f":"'Schedule IIB (EBS)'!D52+'Schedule IIC (EBS)'!D52+'Schedule IID (EBS)'!D52+'Schedule IIE (EBS)'!D52+'Schedule IIF (EBS)'!D52","v":0},0,0]
[null,"Letters of Credit",null,null,null,null,0,0,0,0,null,null,"Letters of Credit",0,{"$f":"'Schedule IIB (EBS)'!D53+'Schedule IIC (EBS)'!D53+'Schedule IID (EBS)'!D53+'Schedule IIE (EBS)'!D53+'Schedule IIF (EBS)'!D53","v":0},0,0]
[null,"Intangible Assets",null,null,null,null,0,0,0,0,null,null,"Intangible Assets",0,{"$f":"'Schedule IIB (EBS)'!D54+'Schedule IIC (EBS)'!D54+'Schedule IID (EBS)'!D54+'Schedule IIE (EBS)'!D54+'Schedule IIF (EBS)'!D54","v":0},0,0]
[null,"Pension Benefit Surplus",null,null,null,null,0,0,0,0,null,null,"Pension Benefit Surplus",0,{"$f":"'Schedule IIB (EBS)'!D55+'Schedule IIC (EBS)'!D55+'Schedule IID (EBS)'!D55+'Schedule IIE (EBS)'!D55+'Schedule IIF (EBS)'!D55","v":0},0,0]
[null,"Equity Derivatives on Type 2",null,null,null,null,0,0,0,0,null,null,"Equity Derivatives on Type 2",0,{"$f":"'Schedule IIB (EBS)'!D56+'Schedule IIC (EBS)'!D56+'Schedule IID (EBS)'!D56+'Schedule IIE (EBS)'!D56+'Schedule IIF (EBS)'!D56","v":0},0,0]
[null,"Type 3",null,null,null,null,null,null,null,null,null,null,"Type 3"]
[null,"Infrastructure",null,null,null,null,{"$f":"IF(C$42=0,0,C36/C$42)","v":0},0,0,0,null,null,"Infrastructure",{"$f":"N$11*$J36","v":0},{"$f":"'Schedule IIB (EBS)'!D57+'Schedule IIC (EBS)'!D57+'Schedule IID (EBS)'!D57+'Schedule IIE (EBS)'!D57+'Schedule IIF (EBS)'!D57","v":0},0,0]
[null,"Derivatives on Infrastructure",null,null,null,null,0,0,0,0,null,null,"Derivatives on Infrastructure",{"$f":"N$11*$J37","v":0},{"$f":"'Schedule IIB (EBS)'!D58+'Schedule IIC (EBS)'!D58+'Schedule IID (EBS)'!D58+'Schedule IIE (EBS)'!D58+'Schedule IIF (EBS)'!D58","v":0},0,0]
[null,"Type 4",null,null,null,null,null,null,null,null,null,null,"Type 4"]
[null,"Equity real estate 1",null,null,null,null,{"$f":"IF(C$42=0,0,C39/C$42)","v":0},0,0,0,null,null,"Equity real estate 1",{"$f":"N$11*$J39","v":0},{"$f":"'Schedule IIB (EBS)'!D59+'Schedule IIC (EBS)'!D59+'Schedule IID (EBS)'!D59+'Schedule IIE (EBS)'!D59+'Schedule IIF (EBS)'!D59","v":0},0,0]
[null,"Equity real estate 2",null,null,null,null,0,0,0,0,null,null,"Equity real estate 2",{"$f":"N$11*$J40","v":0},{"$f":"'Schedule IIB (EBS)'!D60+'Schedule IIC (EBS)'!D60+'Schedule IID (EBS)'!D60+'Schedule IIE (EBS)'!D60+'Schedule IIF (EBS)'!D60","v":0},0,0]
[null,null,null,null,null,null,null,null,null,{"$f":"SUM(J16:J40)","v":0},null,null,"Total",{"$f":"SUM(N16:N40)","v":0},{"$f":"SUM(O16:O40)","v":0},{"$f":"SUM(P16:P40)","v":0},{"$f":"SUM(Q16:Q40)","v":0}]
[null,"Total",{"$f":"SUM(C16:C40)","v":0},{"$f":"SUM(D16:D40)","v":0},{"$f":"SUM(E16:E40)","v":0},null,null,null,null,null,null,null,"In Equity Risk Calculations",null,{"$f":"'Equity Investments (Revised)'!D48","v":0},{"$f":"'Equity Investments (Grandf)'!$D$51","v":0},{"$f":"'Equity Investments (Non-Grandf)'!$D$48","v":0}]
[null,null,null,null,null,null,null,null,null,null,null,null,"Check",null,{"$f":"O41-O42","v":0},{"$f":"P41-P42","v":0},{"$f":"Q41-Q42","v":0}]
[null,"P&C reserves",null,null,null,null,null,null,null,null,null,null,null,null,{"$f":"IF(ROUND(O43,0)<>0,\"Actual amount of equities must match the amount of equities filled in the new equity risk calculation without Grandfathering\",\"OK\")","v":"OK"},{"$f":"IF(ROUND(P43,0)<>0,\"Amount of equities included in the Grandfathered equity risk calculation must match the Grandfathered Amount here\",\"OK\")","v":"OK"},{"$f":"IF(ROUND(Q43,0)<>0,\"Amount of equities included in the new Non-Grandfathered equity risk calculation must match the Non-Grandfathered Amount here\",\"OK\")","v":"OK"}]
[]
[null,"Long-Term Reserves"]
[null,"Percentage",{"$f":"IF(C46=0,0,C42/C46)","v":0},{"$f":"IF(D46=0,0,D42/D46)","v":0},{"$f":"IF(E46=0,0,E42/E46)","v":0}]
[null,"Average 3 year %",null,null,null,{"$f":"AVERAGE(C47:E47)","v":0}]
[null,"Long-Term reserves % of total",null,null,null,{"$f":"IF((E46+E44)=0,0,E46/(E46+E44))","v":0}]
[null,"Allowable average 3 year %",null,null,null,{"$f":"F49*F48","v":0}]
[null,"Grandfathered Equity amount",null,null,null,{"$f":"F50*E46","v":0}]

{"sheet":"Equity Investments (Grandf)","index":111,"n_rows":51,"n_cols":6,"rows_kept":51,"cut":false,"hidden":false,"merged":[[0,5,0,6],[52,0,52,1]]}
["EQUITY INVESTMENTS - GRANDFATHERED EQUITY PORTION ONLY",null,null,null,null,{"$f":"HYPERLINK(\"#'Index'!A1\",\"Return to Index\")","v":"Return to Index"}]
[{"$f":"'Group Information'!C7","v":"Enter Group Company Name"}]
[{"$f":"\"Equity Investment Risk\"& \" ($\" & IF(CONFIGURATION!$B$12>1,\"'\"&MID(CONFIGURATION!$B$12,2,LEN(CONFIGURATION!$B$12)),\"\") & \")\"","v":"Equity Investment Risk ($'000)"},null,{"$f":" TEXT('Group Information'!C3,\"dd mmmm yyyy\")","v":"31 December 2023"},"(1)","(2)","(3)"]
[]
[]
[null,"TYPE OF ",null,"ASSET","CAPITAL","REQUIRED"]
[null,"EQUITY INVESTMENTS","STATEMENT SOURCE","VALUE","FACTOR","CAPITAL"]
[]
[null,"(a)  Common Stocks",null,null,null,"(1) x (2)"]
[]
[null,"Non-Affiliated (Quoted)","Sch II EBS, Line (19), Column (1) and Sch IIA EBS, Line (19), Column (1)",{"$f":"'Grandfathered Equity Part'!D11","v":0},0.14399999999999999,{"$f":"IF(D11<0,0,D11*E11)","v":0}]
[null,"Non-Affiliated (Unquoted)","Sch II EBS, Line (20), Column (1) and Sch IIA EBS, Line (20), Column (1)",{"$f":"'Grandfathered Equity Part'!D12","v":0},0.14399999999999999,{"$f":"IF(D12<0,0,D12*E12)","v":0}]
[null,"Equity mutual funds","Sch II EBS, Line (21), Column (5) and Sch IIA EBS, Line (21), Column (5)",{"$f":"'Grandfathered Equity Part'!D13","v":0},0.14399999999999999,{"$f":"IF(D13<0,0,D13*E13)","v":0}]
[]
[null,"(a)  SUBTOTAL - COMMON STOCKS",null,{"$f":"SUM(D11:D13)","v":0},null,{"$f":"MAX(0,(SUM(F11:F13)))","v":0}]
[]
[null,"(b)  Preferred Stocks"]
[]
[null,"BSCR Rating"]
[null,1,"Sch II EBS, Line (11), Column (3) and Sch IIA EBS, Line (11), Column (3)",{"$f":"'Grandfathered Equity Part'!D20","v":0},6.0000000000000001E-3,{"$f":"IF(D20<0,0,D20*E20)","v":0}]
[null,2,"Sch II EBS, Line (12), Column (3) and Sch IIA EBS, Line (12), Column (3)",{"$f":"'Grandfathered Equity Part'!D21","v":0},1.2E-2,0]
[null,3,"Sch II EBS, Line (13), Column (3) and Sch IIA EBS, Line (13), Column (3)",{"$f":"'Grandfathered Equity Part'!D22","v":0},0.02,0]
[null,4,"Sch II EBS, Line (14), Column (3) and Sch IIA EBS, Line (14), Column (3)",{"$f":"'Grandfathered Equity Part'!D23","v":0},0.04,0]
[null,5,"Sch II EBS, Line (15), Column (3) and Sch IIA EBS, Line (15), Column (3)",{"$f":"'Grandfathered Equity Part'!D24","v":0},0.11,0]
[null,6,"Sch II EBS, Line (16), Column (3) and Sch IIA EBS, Line (16), Column (3)",{"$f":"'Grandfathered Equity Part'!D25","v":0},0.25,0]
[null,7,"Sch II EBS, Line (17), Column (3) and Sch IIA EBS, Line (17), Column (3)",{"$f":"'Grandfathered Equity Part'!D26","v":0},0.35,0]
[null,8,"Sch II EBS, Line (18), Column (3) and Sch IIA EBS, Line (18), Column (3)",{"$f":"'Grandfathered Equity Part'!D27","v":0},0.35,0]
[]
[null,"(b)  SUBTOTAL - PREFERRED STOCKS",null,{"$f":"SUM(D19:D27)","v":0},null,{"$f":"MAX(0,(SUM(F19:F27)))","v":0}]
[]
[null,"(c)  Other Equity Investments"]
[]
[null,"Real Estate"]
[null,"Company-Occupied Less Encumbrances","Form 4EBS, Line (7a)",{"$f":"'Grandfathered Equity Part'!D34","v":0},0.1,{"$f":"IF(D34<0,0,D34*E34)","v":0}]
[null,"Investments Less Encumbrances","Form 4EBS, Line (7b)",{"$f":"'Grandfathered Equity Part'!D35","v":0},0.2,{"$f":"IF(D35<0,0,D35*E35)","v":0}]
[]
[null,"Other Equity Investments","Form 4EBS, Lines (2e), (3e) & Schedule IIA EBS, Line 21, Column (7)",{"$f":"'Grandfathered Equity Part'!D37","v":0},0.2,{"$f":"IF(D37<0,0,D37*E37)","v":0}]
[null,"Other Tangible Assets (Net of Segregated Accounts Companies)","Form 4EBS, Lines (13k), (14d), and (36f) Less Form 4EBS, Lines (13b), (13c) and (13h)",{"$f":"'Grandfathered Equity Part'!D38","v":0},0.2,{"$f":"IF(D38<0,0,D38*E38)","v":0}]
[]
[null,"(c)  SUBTOTAL - OTHER EQUITY INVESTMENTS",null,{"$f":"SUM(D34:D35,D37:D38)","v":0},null,{"$f":"MAX(0,(SUM(F34:F38)))","v":0}]
[]
[null,"(d)  Investments in Affiliates"]
[]
[null,"Unregulated Entities That Conduct Ancillary Services","Form 4EBS, Line (4a)",{"$f":"'Grandfathered Equity Part'!D44","v":0},0.05,{"$f":"IF(D44<0,0,D44*E44)","v":0}]
[null,"Unregulated Non-Financial Operating Entities","Form 4EBS, Line (4b)",{"$f":"'Grandfathered Equity Part'!D45","v":0},0.2,{"$f":"IF(D45<0,0,D45*E45)","v":0}]
[null,"Unregulated Financial Operating Entities","Form 4EBS, Line (4c)",{"$f":"'Grandfathered Equity Part'!D46","v":0},0.55000000000000004,{"$f":"IF(D46<0,0,D46*E46)","v":0}]
[null,"Regulated Insurance Financial Operating Entities","Form 4EBS, Line (4e)",{"$f":"'Grandfathered Equity Part'!D47","v":0},0.2,{"$f":"IF(D47<0,0,D47*E47)","v":0}]
[]
[null,"(d)  SUBTOTAL - INVESTMENTS IN AFFILIATES",null,{"$f":"SUM(D44:D47)","v":0},null,{"$f":"MAX(0,SUM(F44:F47))","v":0}]
[]
[null,"(e)  TOTAL EQUITY INVESTMENTS [ (a) + (b) + (c) + (d) ]",null,{"$f":"D15+D29+D40+D49","v":0},null,{"$f":"MAX(0,(F15+F29+F40+F49))","v":0}]

{"sheet":"Equity Investments (Non-Grandf)","index":112,"n_rows":58,"n_cols":18,"rows_kept":58,"cut":false,"hidden":false,"merged":[[6,5,6,6],[6,7,6,8],[59,0,59,1],[0,17,0,18],[4,3,4,8],[4,9,4,11],[4,15,6,15],[5,3,6,4],[5,5,5,8],[5,9,6,9],[5,10,6,10],[5,11,6,11],[5,17,6,17]]}
["EQUITY INVESTMENTS (REVISED) - NON-GRANDFATHERED EQUITY PORTION ONLY",null,null,null,null,null,null,null,null,null,null,null,null,null,null,null,null,{"$f":"HYPERLINK(\"#'Index'!A1\",\"Return to Index\")","v":"Return to Index"}]
[{"$f":"'Group Information'!C7","v":"Enter Group Company Name"}]
[{"$f":"\"Equity Investment Risk\"& \" ($\" & IF(CONFIGURATION!$B$12>1,\"'\"&MID(CONFIGURATION!$B$12,2,LEN(CONFIGURATION!$B$12)),\"\") & \")\"","v":"Equity Investment Risk ($'000)"},null,{"$f":" TEXT('Group Information'!C3,\"dd mmmm yyyy\")","v":"31 December 2023"},null,null,null,null,null,null,null,null,null,null,null,null,null,null,"(3)"]
[]
[null,null,null,"ASSETS",null,null,null,null,null,"LIABILITIES",null,null,null,null,null,"WITHOUT MANAGEMENT ACTIONS"]
[null,null,null,"Long Exposure",null,"Short Exposure",null,null,null,null,"Without Mgmt Actions","With Mgmt Actions",null,null,null,null,null,"WITH MANAGEMENT ACTIONS"]
[null,"TYPE OF ",null,null,null,"Qualifying as Assets held for risk-mitigation purposes",null,"Not Qualifying as Assets held for risk-mitigation purposes",null,null,null,null,null,"CAPITAL"]
[null,"EQUITY INVESTMENTS","STATEMENT SOURCE","Before Shock","After Shock","Before Shock","After Shock","Before Shock","After Shock","Before Shock","After Shock","After Shock",null,"FACTOR",null,"REQUIRED CAPITAL",null,"CAPITAL"]
[]
[null,"Type 1 Equity Holdings"]
[null,"Strategic Holdings - Listed","Sch IIB, IIC, IID, IIE and IIF Line (15)",{"$f":"'Non-Grandfathered Equity Part'!D15","v":0},{"$f":"'Non-Grandfathered Equity Part'!F15","v":0},{"$f":"'Non-Grandfathered Equity Part'!H15","v":0},{"$f":"'Non-Grandfathered Equity Part'!J15","v":0},{"$f":"'Non-Grandfathered Equity Part'!L15","v":0},{"$f":"'Non-Grandfathered Equity Part'!N15","v":0},{"$f":"'Non-Grandfathered Equity Part'!P15","v":0},{"$f":"'Non-Grandfathered Equity Part'!R15","v":0},{"$f":"'Non-Grandfathered Equity Part'!T15","v":0},null,0.2,null,{"$f":"MAX(D11-E11,0)+(F11-G11)+MAX(H11-I11,0)+(K11-J11)","v":0},null,{"$f":"MAX(D11-E11,0)+(F11-G11)+MAX(H11-I11,0)+(L11-J11)","v":0}]
[null,"Duration Based","Sch IIB, IIC, IID, IIE and IIF Line (16)",{"$f":"'Non-Grandfathered Equity Part'!D16","v":0},{"$f":"'Non-Grandfathered Equity Part'!F16","v":0},{"$f":"'Non-Grandfathered Equity Part'!H16","v":0},{"$f":"'Non-Grandfathered Equity Part'!J16","v":0},{"$f":"'Non-Grandfathered Equity Part'!L16","v":0},{"$f":"'Non-Grandfathered Equity Part'!N16","v":0},{"$f":"'Non-Grandfathered Equity Part'!P16","v":0},{"$f":"'Non-Grandfathered Equity Part'!R16","v":0},{"$f":"'Non-Grandfathered Equity Part'!T16","v":0},null,0.2,null,0,null,{"$f":"MAX(D12-E12,0)+(F12-G12)+MAX(H12-I12,0)+(L12-J12)","v":0}]
[null,"Listed Equity Securities in Developed Markets","Sch IIB, IIC, IID, IIE and IIF Line (17)",{"$f":"'Non-Grandfathered Equity Part'!D17","v":0},{"$f":"'Non-Grandfathered Equity Part'!F17","v":0},{"$f":"'Non-Grandfathered Equity Part'!H17","v":0},{"$f":"'Non-Grandfathered Equity Part'!J17","v":0},{"$f":"'Non-Grandfathered Equity Part'!L17","v":0},{"$f":"'Non-Grandfathered Equity Part'!N17","v":0},{"$f":"'Non-Grandfathered Equity Part'!P17","v":0},{"$f":"'Non-Grandfathered Equity Part'!R17","v":0},{"$f":"'Non-Grandfathered Equity Part'!T17","v":0},null,0.35,null,0,null,0]
[null,"Preferred Stocks, BSCR Rating 1","Sch IIB, IIC, IID, IIE and IIF Line (18)",{"$f":"'Non-Grandfathered Equity Part'!D18","v":0},{"$f":"'Non-Grandfathered Equity Part'!F18","v":0},{"$f":"'Non-Grandfathered Equity Part'!H18","v":0},{"$f":"'Non-Grandfathered Equity Part'!J18","v":0},{"$f":"'Non-Grandfathered Equity Part'!L18","v":0},{"$f":"'Non-Grandfathered Equity Part'!N18","v":0},{"$f":"'Non-Grandfathered Equity Part'!P18","v":0},{"$f":"'Non-Grandfathered Equity Part'!R18","v":0},{"$f":"'Non-Grandfathered Equity Part'!T18","v":0},null,6.0000000000000001E-3,null,0,null,0]
[null,"Preferred Stocks, BSCR Rating 2","Sch IIB, IIC, IID, IIE and IIF Line (19)",{"$f":"'Non-Grandfathered Equity Part'!D19","v":0},{"$f":"'Non-Grandfathered Equity Part'!F19","v":0},{"$f":"'Non-Grandfathered Equity Part'!H19","v":0},{"$f":"'Non-Grandfathered Equity Part'!J19","v":0},{"$f":"'Non-Grandfathered Equity Part'!L19","v":0},{"$f":"'Non-Grandfathered Equity Part'!N19","v":0},{"$f":"'Non-Grandfathered Equity Part'!P19","v":0},{"$f":"'Non-Grandfathered Equity Part'!R19","v":0},{"$f":"'Non-Grandfathered Equity Part'!T19","v":0},null,1.2E-2,null,0,null,0]
[null,"Preferred Stocks, BSCR Rating 3","Sch IIB, IIC, IID, IIE and IIF Line (20)",{"$f":"'Non-Grandfathered Equity Part'!D20","v":0},{"$f":"'Non-Grandfathered Equity Part'!F20","v":0},{"$f":"'Non-Grandfathered Equity Part'!H20","v":0},{"$f":"'Non-Grandfathered Equity Part'!J20","v":0},{"$f":"'Non-Grandfathered Equity Part'!L20","v":0},{"$f":"'Non-Grandfathered Equity Part'!N20","v":0},{"$f":"'Non-Grandfathered Equity Part'!P20","v":0},{"$f":"'Non-Grandfathered Equity Part'!R20","v":0},{"$f":"'Non-Grandfathered Equity Part'!T20","v":0},null,0.02,null,0,null,0]
[null,"Preferred Stocks, BSCR Rating 4","Sch IIB, IIC, IID, IIE and IIF Line (21)",{"$f":"'Non-Grandfathered Equity Part'!D21","v":0},{"$f":"'Non-Grandfathered Equity Part'!F21","v":0},{"$f":"'Non-Grandfathered Equity Part'!H21","v":0},{"$f":"'Non-Grandfathered Equity Part'!J21","v":0},{"$f":"'Non-Grandfathered Equity Part'!L21","v":0},{"$f":"'Non-Grandfathered Equity Part'!N21","v":0},{"$f":"'Non-Grandfathered Equity Part'!P21","v":0},{"$f":"'Non-Grandfathered Equity Part'!R21","v":0},{"$f":"'Non-Grandfathered Equity Part'!T21","v":0},null,0.04,null,0,null,0]
[null,"Preferred Stocks, BSCR Rating 5","Sch IIB, IIC, IID, IIE and IIF Line (22)",{"$f":"'Non-Grandfathered Equity Part'!D22","v":0},{"$f":"'Non-Grandfathered Equity Part'!F22","v":0},{"$f":"'Non-Grandfathered Equity Part'!H22","v":0},{"$f":"'Non-Grandfathered Equity Part'!J22","v":0},{"$f":"'Non-Grandfathered Equity Part'!L22","v":0},{"$f":"'Non-Grandfathered Equity Part'!N22","v":0},{"$f":"'Non-Grandfathered Equity Part'!P22","v":0},{"$f":"'Non-Grandfathered Equity Part'!R22","v":0},{"$f":"'Non-Grandfathered Equity Part'!T22","v":0},null,0.11,null,0,null,0]
[null,"Preferred Stocks, BSCR Rating 6","Sch IIB, IIC, IID, IIE and IIF Line (23)",{"$f":"'Non-Grandfathered Equity Part'!D23","v":0},{"$f":"'Non-Grandfathered Equity Part'!F23","v":0},{"$f":"'Non-Grandfathered Equity Part'!H23","v":0},{"$f":"'Non-Grandfathered Equity Part'!J23","v":0},{"$f":"'Non-Grandfathered Equity Part'!L23","v":0},{"$f":"'Non-Grandfathered Equity Part'!N23","v":0},{"$f":"'Non-Grandfathered Equity Part'!P23","v":0},{"$f":"'Non-Grandfathered Equity Part'!R23","v":0},{"$f":"'Non-Grandfathered Equity Part'!T23","v":0},null,0.25,null,0,null,0]
[null,"Preferred Stocks, BSCR Rating 7","Sch IIB, IIC, IID, IIE and IIF Line (24)",{"$f":"'Non-Grandfathered Equity Part'!D24","v":0},{"$f":"'Non-Grandfathered Equity Part'!F24","v":0},{"$f":"'Non-Grandfathered Equity Part'!H24","v":0},{"$f":"'Non-Grandfathered Equity Part'!J24","v":0},{"$f":"'Non-Grandfathered Equity Part'!L24","v":0},{"$f":"'Non-Grandfathered Equity Part'!N24","v":0},{"$f":"'Non-Grandfathered Equity Part'!P24","v":0},{"$f":"'Non-Grandfathered Equity Part'!R24","v":0},{"$f":"'Non-Grandfathered Equity Part'!T24","v":0},null,0.35,null,0,null,0]
[null,"Preferred Stocks, BSCR Rating 8","Sch IIB, IIC, IID, IIE and IIF Line (25)",{"$f":"'Non-Grandfathered Equity Part'!D25","v":0},{"$f":"'Non-Grandfathered Equity Part'!F25","v":0},{"$f":"'Non-Grandfathered Equity Part'!H25","v":0},{"$f":"'Non-Grandfathered Equity Part'!J25","v":0},{"$f":"'Non-Grandfathered Equity Part'!L25","v":0},{"$f":"'Non-Grandfathered Equity Part'!N25","v":0},{"$f":"'Non-Grandfathered Equity Part'!P25","v":0},{"$f":"'Non-Grandfathered Equity Part'!R25","v":0},{"$f":"'Non-Grandfathered Equity Part'!T25","v":0},null,0.35,null,0,null,0]
[null,"Equity Derivatives on Type 1 Equities","Sch IIB, IIC, IID, IIE and IIF Line (26)",{"$f":"'Non-Grandfathered Equity Part'!D26","v":0},{"$f":"'Non-Grandfathered Equity Part'!F26","v":0},{"$f":"'Non-Grandfathered Equity Part'!H26","v":0},{"$f":"'Non-Grandfathered Equity Part'!J26","v":0},{"$f":"'Non-Grandfathered Equity Part'!L26","v":0},{"$f":"'Non-Grandfathered Equity Part'!N26","v":0},{"$f":"'Non-Grandfathered Equity Part'!P26","v":0},{"$f":"'Non-Grandfathered Equity Part'!R26","v":0},{"$f":"'Non-Grandfathered Equity Part'!T26","v":0},null,0.35,null,0,null,0]
[]
[null,"Subtotal - Type 1 Equity Holdings",null,{"$f":"SUM(D11:D23)","v":0},0,0,0,0,0,0,0,0,null,null,null,{"$f":"MAX(SUM(P11:P22),0)","v":0},null,{"$f":"MAX(SUM(R11:R22),0)","v":0}]
[]
[null,"Type 2 Equity Holdings"]
[null,"Strategic Holdings - Unlisted","Sch IIB, IIC, IID, IIE and IIF Line (27)",{"$f":"'Non-Grandfathered Equity Part'!D27","v":0},{"$f":"'Non-Grandfathered Equity Part'!F27","v":0},{"$f":"'Non-Grandfathered Equity Part'!H27","v":0},{"$f":"'Non-Grandfathered Equity Part'!J27","v":0},{"$f":"'Non-Grandfathered Equity Part'!L27","v":0},{"$f":"'Non-Grandfathered Equity Part'!N27","v":0},{"$f":"'Non-Grandfathered Equity Part'!P27","v":0},{"$f":"'Non-Grandfathered Equity Part'!R27","v":0},{"$f":"'Non-Grandfathered Equity Part'!T27","v":0},null,0.2,null,{"$f":"MAX(D27-E27,0)+(F27-G27)+MAX(H27-I27,0)+(K27-J27)","v":0},null,{"$f":"MAX(D27-E27,0)+(F27-G27)+MAX(H27-I27,0)+(L27-J27)","v":0}]
[null,"Other Equities","Sch IIB, IIC, IID, IIE and IIF Line (28)",{"$f":"'Non-Grandfathered Equity Part'!D28","v":0},{"$f":"'Non-Grandfathered Equity Part'!F28","v":0},{"$f":"'Non-Grandfathered Equity Part'!H28","v":0},{"$f":"'Non-Grandfathered Equity Part'!J28","v":0},{"$f":"'Non-Grandfathered Equity Part'!L28","v":0},{"$f":"'Non-Grandfathered Equity Part'!N28","v":0},{"$f":"'Non-Grandfathered Equity Part'!P28","v":0},{"$f":"'Non-Grandfathered Equity Part'!R28","v":0},{"$f":"'Non-Grandfathered Equity Part'!T28","v":0},null,0.45,null,0,null,0]
[null,"Letters of Credit","Sch IIB, IIC, IID, IIE and IIF Line (29)",{"$f":"'Non-Grandfathered Equity Part'!D29","v":0},{"$f":"'Non-Grandfathered Equity Part'!F29","v":0},{"$f":"'Non-Grandfathered Equity Part'!H29","v":0},{"$f":"'Non-Grandfathered Equity Part'!J29","v":0},{"$f":"'Non-Grandfathered Equity Part'!L29","v":0},{"$f":"'Non-Grandfathered Equity Part'!N29","v":0},{"$f":"'Non-Grandfathered Equity Part'!P29","v":0},{"$f":"'Non-Grandfathered Equity Part'!R29","v":0},{"$f":"'Non-Grandfathered Equity Part'!T29","v":0},null,0.2,null,0,null,0]
[null,"Intangible assets","Sch IIB, IIC, IID, IIE and IIF Line (30)",{"$f":"'Non-Grandfathered Equity Part'!D30","v":0},{"$f":"'Non-Grandfathered Equity Part'!F30","v":0},{"$f":"'Non-Grandfathered Equity Part'!H30","v":0},{"$f":"'Non-Grandfathered Equity Part'!J30","v":0},{"$f":"'Non-Grandfathered Equity Part'!L30","v":0},{"$f":"'Non-Grandfathered Equity Part'!N30","v":0},{"$f":"'Non-Grandfathered Equity Part'!P30","v":0},{"$f":"'Non-Grandfathered Equity Part'!R30","v":0},{"$f":"'Non-Grandfathered Equity Part'!T30","v":0},null,0.2,null,0,null,0]
[null,"Pension Benefit Surplus","Sch IIB, IIC, IID, IIE and IIF Line (31)",{"$f":"'Non-Grandfathered Equity Part'!D31","v":0},{"$f":"'Non-Grandfathered Equity Part'!F31","v":0},{"$f":"'Non-Grandfathered Equity Part'!H31","v":0},{"$f":"'Non-Grandfathered Equity Part'!J31","v":0},{"$f":"'Non-Grandfathered Equity Part'!L31","v":0},{"$f":"'Non-Grandfathered Equity Part'!N31","v":0},{"$f":"'Non-Grandfathered Equity Part'!P31","v":0},{"$f":"'Non-Grandfathered Equity Part'!R31","v":0},{"$f":"'Non-Grandfathered Equity Part'!T31","v":0},null,0.2,null,0,null,0]
[null,"Equity Derivatives on Type 2 Equities","Sch IIB, IIC, IID, IIE and IIF Line (32)",{"$f":"'Non-Grandfathered Equity Part'!D32","v":0},{"$f":"'Non-Grandfathered Equity Part'!F32","v":0},{"$f":"'Non-Grandfathered Equity Part'!H32","v":0},{"$f":"'Non-Grandfathered Equity Part'!J32","v":0},{"$f":"'Non-Grandfathered Equity Part'!L32","v":0},{"$f":"'Non-Grandfathered Equity Part'!N32","v":0},{"$f":"'Non-Grandfathered Equity Part'!P32","v":0},{"$f":"'Non-Grandfathered Equity Part'!R32","v":0},{"$f":"'Non-Grandfathered Equity Part'!T32","v":0},null,0.45,null,0,null,0]
[]
[null,"Subtotal - Type 2 Equity Holdings",null,{"$f":"SUM(D27:D33)","v":0},{"$f":"SUM(E27:E33)","v":0},0,0,0,0,0,0,{"$f":"SUM(L27:L33)","v":0},null,null,null,{"$f":"MAX(SUM(P27:P33),0)","v":0},null,{"$f":"MAX(SUM(R27:R33),0)","v":0}]
[]
[null,"Type 3 Equity Holdings"]
[null,"Infrastructure","Sch IIB, IIC, IID, IIE and IIF Line (33)",{"$f":"'Non-Grandfathered Equity Part'!D33","v":0},{"$f":"'Non-Grandfathered Equity Part'!F33","v":0},{"$f":"'Non-Grandfathered Equity Part'!H33","v":0},{"$f":"'Non-Grandfathered Equity Part'!J33","v":0},{"$f":"'Non-Grandfathered Equity Part'!L33","v":0},{"$f":"'Non-Grandfathered Equity Part'!N33","v":0},{"$f":"'Non-Grandfathered Equity Part'!P33","v":0},{"$f":"'Non-Grandfathered Equity Part'!R33","v":0},{"$f":"'Non-Grandfathered Equity Part'!T33","v":0},null,0.25,null,{"$f":"MAX(D37-E37,0)+(F37-G37)+MAX(H37-I37,0)+(K37-J37)","v":0},null,{"$f":"MAX(D37-E37,0)+(F37-G37)+MAX(H37-I37,0)+(L37-J37)","v":0}]
[null,"Derivatives on Infrastructure","Sch IIB, IIC, IID, IIE and IIF Line (34)",{"$f":"'Non-Grandfathered Equity Part'!D34","v":0},{"$f":"'Non-Grandfathered Equity Part'!F34","v":0},{"$f":"'Non-Grandfathered Equity Part'!H34","v":0},{"$f":"'Non-Grandfathered Equity Part'!J34","v":0},{"$f":"'Non-Grandfathered Equity Part'!L34","v":0},{"$f":"'Non-Grandfathered Equity Part'!N34","v":0},{"$f":"'Non-Grandfathered Equity Part'!P34","v":0},{"$f":"'Non-Grandfathered Equity Part'!R34","v":0},{"$f":"'Non-Grandfathered Equity Part'!T34","v":0},null,0.25,null,{"$f":"MAX(D38-E38,0)+(F38-G38)+MAX(H38-I38,0)+(K38-J38)","v":0},null,{"$f":"MAX(D38-E38,0)+(F38-G38)+MAX(H38-I38,0)+(L38-J38)","v":0}]
[]
[null,"Subtotal - Type 3 Equity Holdings",null,{"$f":"SUM(D37:D39)","v":0},{"$f":"SUM(E37:E39)","v":0},0,0,0,0,0,0,{"$f":"SUM(L37:L39)","v":0},null,null,null,{"$f":"MAX(SUM(P37:P39),0)","v":0},null,{"$f":"MAX(SUM(R37:R39),0)","v":0}]
[]
[null,"Type 4 Equity Holdings"]
[null,"Equity Real Estate 1","Sch IIB, IIC, IID, IIE and IIF Line (35)",{"$f":"'Non-Grandfathered Equity Part'!D35","v":0},{"$f":"'Non-Grandfathered Equity Part'!F35","v":0},{"$f":"'Non-Grandfathered Equity Part'!H35","v":0},{"$f":"'Non-Grandfathered Equity Part'!J35","v":0},{"$f":"'Non-Grandfathered Equity Part'!L35","v":0},{"$f":"'Non-Grandfathered Equity Part'!N35","v":0},{"$f":"'Non-Grandfathered Equity Part'!P35","v":0},{"$f":"'Non-Grandfathered Equity Part'!R35","v":0},{"$f":"'Non-Grandfathered Equity Part'!T35","v":0},null,0.1,null,{"$f":"MAX(D43-E43,0)+(F43-G43)+MAX(H43-I43,0)+(K43-J43)","v":0},null,{"$f":"MAX(D43-E43,0)+(F43-G43)+MAX(H43-I43,0)+(L43-J43)","v":0}]
[null,"Equity Real Estate 2","Sch IIB, IIC, IID, IIE and IIF Line (36)",{"$f":"'Non-Grandfathered Equity Part'!D36","v":0},{"$f":"'Non-Grandfathered Equity Part'!F36","v":0},{"$f":"'Non-Grandfathered Equity Part'!H36","v":0},{"$f":"'Non-Grandfathered Equity Part'!J36","v":0},{"$f":"'Non-Grandfathered Equity Part'!L36","v":0},{"$f":"'Non-Grandfathered Equity Part'!N36","v":0},{"$f":"'Non-Grandfathered Equity Part'!P36","v":0},{"$f":"'Non-Grandfathered Equity Part'!R36","v":0},{"$f":"'Non-Grandfathered Equity Part'!T36","v":0},null,0.2,null,{"$f":"MAX(D44-E44,0)+(F44-G44)+MAX(H44-I44,0)+(K44-J44)","v":0},null,{"$f":"MAX(D44-E44,0)+(F44-G44)+MAX(H44-I44,0)+(L44-J44)","v":0}]
[]
[null,"Subtotal - Type 4 Equity Holdings",null,{"$f":"SUM(D43:D45)","v":0},{"$f":"SUM(E43:E45)","v":0},0,0,0,0,0,{"$f":"SUM(K43:K45)","v":0},{"$f":"SUM(L43:L45)","v":0},null,null,null,{"$f":"MAX(SUM(P43:P45),0)","v":0},null,{"$f":"MAX(SUM(R43:R45),0)","v":0}]
[]
[null,"Total Equity Risk before Diversification",null,{"$f":"D40+D34+D24+D46","v":0},{"$f":"E40+E34+E24+E46","v":0},0,0,0,0,0,{"$f":"K40+K34+K24+K46","v":0},{"$f":"L40+L34+L24+L46","v":0},null,null,null,{"$f":"P40+P34+P24+P46","v":0},null,{"$f":"R40+R34+R24+R46","v":0}]
[]
[null,"Aggregation of Risks","Correlation Matrix","Type 1","Type 2","Type 3","Type 4"]
[null,null,"Type 1",1,0.75,0.75,0.5,null,null,null,null,null,null,"Total Type 1 Risk ",null,{"$f":"P24","v":0},null,{"$f":"R24","v":0}]
[null,null,"Type 2",0.75,1,0.75,0.5,null,null,null,null,null,null,"Total Type 2 Risk ",null,{"$f":"P34","v":0},null,{"$f":"R34","v":0}]
[null,null,"Type 3",0.75,0.75,1,0.5,null,null,null,null,null,null,"Total Type 3 Risk",null,{"$f":"P40","v":0},null,{"$f":"R40","v":0}]
[null,null,"Type 4",0.5,0.5,0.5,1,null,null,null,null,null,null,"Total Type 4 Risk",null,{"$f":"P46","v":0},null,{"$f":"R46","v":0}]
[]
[]
[]
[null,"Total Equity Risk (Post Diversification) ",null,null,null,null,null,null,null,null,null,null,null,null,null,{"$f":"SQRT(MMULT(TRANSPOSE($P$51:$P$54),MMULT($D$51:$G$54,$P$51:$P$54)))","v":0},null,{"$f":"SQRT(MMULT(TRANSPOSE($R$51:$R$54),MMULT($D$51:$G$54,$R$51:$R$54)))","v":0}]

{"sheet":"Currency Risk","index":113,"n_rows":28,"n_cols":9,"rows_kept":28,"cut":false,"hidden":false,"merged":[[0,8,0,9],[4,8,4,9],[2,3,2,5]]}
["CURRENCY RISK",null,null,null,null,null,null,null,{"$f":"HYPERLINK(\"#'Index'!A1\",\"Return to Index\")","v":"Return to Index"}]
[{"$f":"'Group Information'!C9","v":"Enter Parent Company Name"}]
["Currency Risk($000)",null,null,{"$f":"'Group Information'!C3","v":"2023-12-31"}]
[]
[null,null,"(A)","(B)","(C)","(D)",{"$f":"\"(E) = (\"&ROUND(G6,2)*100&\"% of C)\"","v":"(E) = (0% of C)"},"(F) ","(G) = F x ABS(A-C-E)"]
[null,null,"ASSETS","TOTAL ASSETS WITH","LIABILITIES","TOTAL LIABILITIES WITH",{"$f":"+'Schedule XX'!K36","v":0},"= if(A>(C+E), 0%, 25%))","REQUIRED"]
[null,"CURRENCY","Form 1EBS, Line 15","HEDGING ARRAGEMENTS","Form 1EBS, Line 39","HEDGING ARRAGEMENTS","PROXY BSCR","CHARGE","CAPITAL"]
[]
[null,{"$f":"+'Schedule XX'!C9","v":"US Dollar"},{"$f":"+'Schedule XX'!E9","v":0},{"$f":"+'Schedule XX'!G9","v":0},{"$f":"+'Schedule XX'!I9","v":0},{"$f":"+'Schedule XX'!K9","v":0},{"$f":"IF(F9=0,E9*$G$6,F9*$G$6)","v":0},0,{"$f":"IF(SUM(C10:E23)=0,0,IF(D9=0,H9*ABS(C9-E9-G9),H9*ABS(D9-F9-G9)))","v":0}]
[null,{"$f":"+'Schedule XX'!C10","v":"Euro"},{"$f":"+'Schedule XX'!E10","v":0},{"$f":"+'Schedule XX'!G10","v":0},{"$f":"+'Schedule XX'!I10","v":0},{"$f":"+'Schedule XX'!K10","v":0},{"$f":"IF(F10=0,E10*$G$6,F10*$G$6)","v":0},{"$f":"IF(D10=0,IF(C10>(E10+G10),0%,25%),IF(D10>(F10+G10),0%,25%))","v":0.25},{"$f":"IF(D10=0,H10*ABS(C10-E10-G10),H10*ABS(D10-F10-G10))","v":0}]
[null,{"$f":"+'Schedule XX'!C11","v":"GBP"},{"$f":"+'Schedule XX'!E11","v":0},{"$f":"+'Schedule XX'!G11","v":0},{"$f":"+'Schedule XX'!I11","v":0},{"$f":"+'Schedule XX'!K11","v":0},0,0.25,0]
[null,{"$f":"+'Schedule XX'!C12","v":"CAD$"},{"$f":"+'Schedule XX'!E12","v":0},{"$f":"+'Schedule XX'!G12","v":0},{"$f":"+'Schedule XX'!I12","v":0},{"$f":"+'Schedule XX'!K12","v":0},0,0.25,0]
[null,{"$f":"+'Schedule XX'!C13","v":"YEN"},{"$f":"+'Schedule XX'!E13","v":0},{"$f":"+'Schedule XX'!G13","v":0},{"$f":"+'Schedule XX'!I13","v":0},{"$f":"+'Schedule XX'!K13","v":0},0,0.25,0]
[null,{"$f":"+'Schedule XX'!C14","v":"Other currency 1"},{"$f":"+'Schedule XX'!E14","v":0},{"$f":"+'Schedule XX'!G14","v":0},{"$f":"+'Schedule XX'!I14","v":0},{"$f":"+'Schedule XX'!K14","v":0},0,0.25,0]
[null,{"$f":"+'Schedule XX'!C15","v":"Other currency 2"},{"$f":"+'Schedule XX'!E15","v":0},{"$f":"+'Schedule XX'!G15","v":0},{"$f":"+'Schedule XX'!I15","v":0},{"$f":"+'Schedule XX'!K15","v":0},0,0.25,0]
[null,{"$f":"+'Schedule XX'!C16","v":"Other currency 3"},{"$f":"+'Schedule XX'!E16","v":0},{"$f":"+'Schedule XX'!G16","v":0},{"$f":"+'Schedule XX'!I16","v":0},{"$f":"+'Schedule XX'!K16","v":0},0,0.25,0]
[null,{"$f":"+'Schedule XX'!C17","v":"Other currency 4"},{"$f":"+'Schedule XX'!E17","v":0},{"$f":"+'Schedule XX'!G17","v":0},{"$f":"+'Schedule XX'!I17","v":0},{"$f":"+'Schedule XX'!K17","v":0},0,0.25,0]
[null,{"$f":"+'Schedule XX'!C18","v":"Other currency 5"},{"$f":"+'Schedule XX'!E18","v":0},{"$f":"+'Schedule XX'!G18","v":0},{"$f":"+'Schedule XX'!I18","v":0},{"$f":"+'Schedule XX'!K18","v":0},0,0.25,{"$f":"IF(D18=0,H18*ABS(C18-E18-G18),H18*ABS(D18-F18-G18))","v":0}]
[null,{"$f":"+'Schedule XX'!C19","v":"Other currency 6"},{"$f":"+'Schedule XX'!E19","v":0},{"$f":"+'Schedule XX'!G19","v":0},{"$f":"+'Schedule XX'!I19","v":0},{"$f":"+'Schedule XX'!K19","v":0},0,0.25,{"$f":"IF(D19=0,H19*ABS(C19-E19-G19),H19*ABS(D19-F19-G19))","v":0}]
[null,{"$f":"+'Schedule XX'!C20","v":"Other currency 7"},{"$f":"+'Schedule XX'!E20","v":0},{"$f":"+'Schedule XX'!G20","v":0},{"$f":"+'Schedule XX'!I20","v":0},{"$f":"+'Schedule XX'!K20","v":0},0,0.25,{"$f":"IF(D20=0,H20*ABS(C20-E20-G20),H20*ABS(D20-F20-G20))","v":0}]
[null,{"$f":"+'Schedule XX'!C21","v":"Other currency 8"},{"$f":"+'Schedule XX'!E21","v":0},{"$f":"+'Schedule XX'!G21","v":0},{"$f":"+'Schedule XX'!I21","v":0},{"$f":"+'Schedule XX'!K21","v":0},0,0.25,{"$f":"IF(D21=0,H21*ABS(C21-E21-G21),H21*ABS(D21-F21-G21))","v":0}]
[null,{"$f":"+'Schedule XX'!C22","v":"Other currency 9"},{"$f":"+'Schedule XX'!E22","v":0},{"$f":"+'Schedule XX'!G22","v":0},{"$f":"+'Schedule XX'!I22","v":0},{"$f":"+'Schedule XX'!K22","v":0},0,0.25,{"$f":"IF(D22=0,H22*ABS(C22-E22-G22),H22*ABS(D22-F22-G22))","v":0}]
[null,{"$f":"+'Schedule XX'!C23","v":"Other currency 10"},{"$f":"+'Schedule XX'!E23","v":0},{"$f":"+'Schedule XX'!G23","v":0},{"$f":"+'Schedule XX'!I23","v":0},{"$f":"+'Schedule XX'!K23","v":0},0,0.25,0]
[null,"Total Identified",{"$f":"SUM(C9:C23)","v":0},{"$f":"+'Schedule XX'!G24","v":0},{"$f":"SUM(E9:E23)","v":0},{"$f":"+'Schedule XX'!K24","v":0},{"$f":"SUM(G9:G23)","v":0}]
[null,"Total",{"$f":"+'Schedule XX'!E27","v":0},null,{"$f":"+'Schedule XX'!I27","v":0}]
[null,"% Identified",{"$f":"IF(C24=0,0,C24/C25)","v":0},null,{"$f":"IF(E24=0,0,E24/E25)","v":0}]
[]
[null,"TOTAL CURRENCY RISK",{"$f":"SUM(C9:C23)","v":0},{"$f":"SUM(D9:D23)","v":0},{"$f":"SUM(E9:E23)","v":0},{"$f":"SUM(F9:F23)","v":0},null,null,{"$f":"IF(SUM(I9:I26)>=0,SUM(I9:I26),0)","v":0}]

{"sheet":"Currency Risk (Revised)","index":114,"n_rows":39,"n_cols":25,"rows_kept":39,"cut":false,"hidden":false,"merged":[[2,6,2,8],[5,2,5,9],[5,11,5,17],[5,19,5,21],[5,23,5,24],[8,3,8,4],[8,5,8,6],[8,12,8,13],[8,14,8,15]]}
["CURRENCY RISK (REVISED)",null,null,null,null,null,null,null,null,null,null,null,null,null,null,null,null,null,null,null,null,null,null,null,{"$f":"HYPERLINK(\"#'Index'!A1\",\"Return to Index\")","v":"Return to Index"}]
[{"$f":"'Group Information'!C9","v":"Enter Parent Company Name"}]
["Currency Risk($000)",null,null,null,null,null,{"$f":"'Group Information'!C3","v":"2023-12-31"}]
[]
[null,null,-1,{"$f":"C5-1","v":-2},-3,-4,-5,-6,-7,-8,null,{"$f":"J5-1","v":-9},{"$f":"L5-1","v":-10},-11,-12,-13,-14,-15,null,{"$f":"R5-1","v":-16},{"$f":"T5-1","v":-17},{"$f":"U5-1","v":-18},null,{"$f":"V5-1","v":-19},{"$f":"X5-1","v":-20}]
[null,null,"MARKET VALUE BEFORE SHOCK",null,null,null,null,null,null,null,null,"MARKET VALUE AFTER SHOCK",null,null,null,null,null,null,null,"CURRENCY RISK"]
[null,null,null,null,null,null,null,null,"(6) x BSCR PROXY","if(((1) + (2) + (3) + (4) + (5)) > ((6) + (7)), 0, X1)"]
[null,null,null,null,null,null,null,null,"PROXY BSCR",null,null,"(1) + (8) x (1)",null,null,null,null,"(6) + (8) x (6)",null,null,"((1) - (9)) + ((2) - (10)) + ((3) - (11)) + MAX((4) - (12),0) + MAX((5) - (13),0)","(14) - (6)","(15) - (6)",null,"(16) + (17)","(16) + (18)"]
[null,null,null,"Long Exposures",null,"Short Exposures",null,null,null,null,null,null,"Long Exposures",null,"Short Exposures"]
[null,"CURRENCY","Assets - Excluding currency-sensitive derivatives","Currency Derivatives Qualifying as held for risk-mitigation purposes","Currency Derivatives Not Qualifying as held for risk-mitigation purposes","Currency Derivatives Qualifying as held for risk-mitigation purposes","Currency Derivatives Not Qualifying as held for risk-mitigation purposes","Best Estimate Liabilities",{"$f":"'Schedule XXA'!P45","v":0},"SHOCK",null,"Assets - Excluding currency-sensitive derivatives","Currency Derivatives Qualifying as held for risk-mitigation purposes","Currency Derivatives Not Qualifying as held for risk-mitigation purposes","Currency Derivatives Qualifying as held for risk-mitigation purposes","Currency Derivatives Not Qualifying as held for risk-mitigation purposes","Best Estimate Liabilities without Management Actions","Best Estimate Liabilities with Management Actions",null,"ASSETS","TECHNICAL PROVISIONS WITHOUT MANAGEMENT ACTIONS","TECHNICAL PROVISIONS WITH MANAGEMENT ACTIONS",null,"CAPITAL CHARGE WITHOUT MANAGEMENT ACTIONS","CAPITAL CHARGE WITH MANAGEMENT ACTIONS"]
[]
[null,"United States Dollars",{"$f":"'Schedule XXA'!D10","v":0},{"$f":"'Schedule XXA'!F10","v":0},{"$f":"'Schedule XXA'!H10","v":0},{"$f":"'Schedule XXA'!J10","v":0},{"$f":"'Schedule XXA'!L10","v":0},{"$f":"'Schedule XXA'!N10","v":0},{"$f":"$I$10*H12","v":0},0,null,{"$f":"'Schedule XXA'!V10","v":0},{"$f":"'Schedule XXA'!X10","v":0},{"$f":"'Schedule XXA'!Z10","v":0},{"$f":"'Schedule XXA'!AB10","v":0},{"$f":"'Schedule XXA'!AD10","v":0},{"$f":"'Schedule XXA'!AF10","v":0},{"$f":"IF('Schedule XXA'!AH10=0,Q12,'Schedule XXA'!AH10)","v":0},null,{"$f":"(C12-L12)+(D12-M12)+(F12-O12)+MAX(E12-N12,0)+MAX(G12-P12,0)","v":0},{"$f":"Q12-$H12","v":0},{"$f":"R12-$H12","v":0},null,{"$f":"MAX(0,$T12+U12+(J12*I12))","v":0},{"$f":"MAX(0,$T12+V12+(J12*I12))","v":0}]
[null,"Bermuda Dollars",{"$f":"'Schedule XXA'!D11","v":0},{"$f":"'Schedule XXA'!F11","v":0},{"$f":"'Schedule XXA'!H11","v":0},{"$f":"'Schedule XXA'!J11","v":0},{"$f":"'Schedule XXA'!L11","v":0},{"$f":"'Schedule XXA'!N11","v":0},{"$f":"$I$10*H13","v":0},{"$f":"IF($B$12=\"Bermuda Dollars\",0%,IF($B$12=\"United States Dollars\",0%,IF((SUM(C13:G13))>(H13+I13),0%,25%)))","v":0},null,{"$f":"'Schedule XXA'!V11","v":0},{"$f":"'Schedule XXA'!X11","v":0},{"$f":"'Schedule XXA'!Z11","v":0},{"$f":"'Schedule XXA'!AB11","v":0},{"$f":"'Schedule XXA'!AD11","v":0},{"$f":"'Schedule XXA'!AF11","v":0},{"$f":"IF('Schedule XXA'!AH11=0,Q13,'Schedule XXA'!AH11)","v":0},null,{"$f":"(C13-L13)+(D13-M13)+(F13-O13)+MAX(E13-N13,0)+MAX(G13-P13,0)","v":0},{"$f":"Q13-$H13","v":0},0,null,{"$f":"MAX(0,$T13+U13+(J13*I13))","v":0},{"$f":"MAX(0,$T13+V13+(J13*I13))","v":0}]
[null,"Qatari Riyals",{"$f":"'Schedule XXA'!D12","v":0},{"$f":"'Schedule XXA'!F12","v":0},{"$f":"'Schedule XXA'!H12","v":0},{"$f":"'Schedule XXA'!J12","v":0},{"$f":"'Schedule XXA'!L12","v":0},{"$f":"'Schedule XXA'!N12","v":0},0,{"$f":"IF($B$12=\"Qatar Riyals\",IF((SUM(C14:G14))>(H14+I14),0%,5%),IF($B$12=\"United States Dollars\",IF((C14+E14)>(H14+I14),0%,5%),IF((SUM(C14:G14))>(H14+I14),0%,25%)))","v":0.05},null,{"$f":"'Schedule XXA'!V12","v":0},{"$f":"'Schedule XXA'!X12","v":0},{"$f":"'Schedule XXA'!Z12","v":0},{"$f":"'Schedule XXA'!AB12","v":0},{"$f":"'Schedule XXA'!AD12","v":0},{"$f":"'Schedule XXA'!AF12","v":0},{"$f":"IF('Schedule XXA'!AH12=0,Q14,'Schedule XXA'!AH12)","v":0},null,0,0,0,null,0,0]
[null,"Hong Kong",{"$f":"'Schedule XXA'!D13","v":0},{"$f":"'Schedule XXA'!F13","v":0},{"$f":"'Schedule XXA'!H13","v":0},{"$f":"'Schedule XXA'!J13","v":0},{"$f":"'Schedule XXA'!L13","v":0},{"$f":"'Schedule XXA'!N13","v":0},0,{"$f":"IF($B$12=\"Hong Kong Dollars\",IF((SUM(C15:G15))>(H15+I15),0%,1%),IF($B$12=\"United States Dollars\",IF((C15+E15)>(H15+I15),0%,1%),IF((SUM(C15:G15))>(H15+I15),0%,25%)))","v":0.01},null,{"$f":"'Schedule XXA'!V13","v":0},{"$f":"'Schedule XXA'!X13","v":0},{"$f":"'Schedule XXA'!Z13","v":0},{"$f":"'Schedule XXA'!AB13","v":0},{"$f":"'Schedule XXA'!AD13","v":0},{"$f":"'Schedule XXA'!AF13","v":0},{"$f":"IF('Schedule XXA'!AH13=0,Q15,'Schedule XXA'!AH13)","v":0},null,0,0,0,null,0,0]
[null,"Euro",{"$f":"'Schedule XXA'!D14","v":0},{"$f":"'Schedule XXA'!F14","v":0},{"$f":"'Schedule XXA'!H14","v":0},{"$f":"'Schedule XXA'!J14","v":0},{"$f":"'Schedule XXA'!L14","v":0},{"$f":"'Schedule XXA'!N14","v":0},0,{"$f":"IF($B$12=\"Denmark Kroner\",IF((C16+D16+E16+F16+G16)>(H16+I16),0%,0.39%),IF($B$12=\"Bulgaria Leva\",IF((C16+D16+E16+F16+G16)>(H16+I16),0%,1.81%),IF($B$12=\"West African CFA Francs\",IF((C16+D16+E16+F16+G16)>(H16+I16),0%,2.18%),IF($B$12=\"Central African CFA Francs\",IF((C16+D16+E16+F16+G16)>(H16+I16),0%,1.96%),IF($B$12=\"Comorian Francs\",IF((C16+D16+E16+F16+G16)>(H16+I16),0%,2%),IF((C16+D16+E16+F16+G16)>(H16+I16),0%,25%))))))","v":0.25},null,{"$f":"'Schedule XXA'!V14","v":0},{"$f":"'Schedule XXA'!X14","v":0},{"$f":"'Schedule XXA'!Z14","v":0},{"$f":"'Schedule XXA'!AB14","v":0},{"$f":"'Schedule XXA'!AD14","v":0},{"$f":"'Schedule XXA'!AF14","v":0},{"$f":"IF('Schedule XXA'!AH14=0,Q16,'Schedule XXA'!AH14)","v":0},null,0,0,0,null,0,0]
[null,"Danish Krones",{"$f":"'Schedule XXA'!D15","v":0},{"$f":"'Schedule XXA'!F15","v":0},{"$f":"'Schedule XXA'!H15","v":0},{"$f":"'Schedule XXA'!J15","v":0},{"$f":"'Schedule XXA'!L15","v":0},{"$f":"'Schedule XXA'!N15","v":0},0,{"$f":"IF($B$12=\"Euro\",IF((SUM(C17:G17))>(H17+I17),0%,0.39%),IF((SUM(C17:G17))>(H17+I17),0%,25%))","v":0.25},null,{"$f":"'Schedule XXA'!V15","v":0},{"$f":"'Schedule XXA'!X15","v":0},{"$f":"'Schedule XXA'!Z15","v":0},{"$f":"'Schedule XXA'!AB15","v":0},{"$f":"'Schedule XXA'!AD15","v":0},{"$f":"'Schedule XXA'!AF15","v":0},{"$f":"IF('Schedule XXA'!AH15=0,Q17,'Schedule XXA'!AH15)","v":0},null,0,0,0,null,0,0]
[null,"Bulgarian Levs",{"$f":"'Schedule XXA'!D16","v":0},{"$f":"'Schedule XXA'!F16","v":0},{"$f":"'Schedule XXA'!H16","v":0},{"$f":"'Schedule XXA'!J16","v":0},{"$f":"'Schedule XXA'!L16","v":0},{"$f":"'Schedule XXA'!N16","v":0},0,{"$f":"IF($B$12=\"Euro\",IF((SUM(C18:G18))>(H18+I18),0%,1.81%),IF((SUM(C18:G18))>(H18+I18),0%,25%))","v":0.25},null,{"$f":"'Schedule XXA'!V16","v":0},{"$f":"'Schedule XXA'!X16","v":0},{"$f":"'Schedule XXA'!Z16","v":0},{"$f":"'Schedule XXA'!AB16","v":0},{"$f":"'Schedule XXA'!AD16","v":0},{"$f":"'Schedule XXA'!AF16","v":0},{"$f":"IF('Schedule XXA'!AH16=0,Q18,'Schedule XXA'!AH16)","v":0},null,0,0,0,null,0,0]
[null,"West African CFA Francs",{"$f":"'Schedule XXA'!D17","v":0},{"$f":"'Schedule XXA'!F17","v":0},{"$f":"'Schedule XXA'!H17","v":0},{"$f":"'Schedule XXA'!J17","v":0},{"$f":"'Schedule XXA'!L17","v":0},{"$f":"'Schedule XXA'!N17","v":0},0,{"$f":"IF($B$12=\"Euro\",IF((SUM(C19:G19))>(H19+I19),0%,2.18%),IF((SUM(C19:G19))>(H19+I19),0%,25%))","v":0.25},null,{"$f":"'Schedule XXA'!V17","v":0},{"$f":"'Schedule XXA'!X17","v":0},{"$f":"'Schedule XXA'!Z17","v":0},{"$f":"'Schedule XXA'!AB17","v":0},{"$f":"'Schedule XXA'!AD17","v":0},{"$f":"'Schedule XXA'!AF17","v":0},{"$f":"IF('Schedule XXA'!AH17=0,Q19,'Schedule XXA'!AH17)","v":0},null,0,0,0,null,0,0]
[null,"Central African CFA Francs",{"$f":"'Schedule XXA'!D18","v":0},{"$f":"'Schedule XXA'!F18","v":0},{"$f":"'Schedule XXA'!H18","v":0},{"$f":"'Schedule XXA'!J18","v":0},{"$f":"'Schedule XXA'!L18","v":0},{"$f":"'Schedule XXA'!N18","v":0},0,{"$f":"IF($B$12=\"Euro\",IF((SUM(C20:G20))>(H20+I20),0%,1.96%),IF((SUM(C20:G20))>(H20+I20),0%,25%))","v":0.25},null,{"$f":"'Schedule XXA'!V18","v":0},{"$f":"'Schedule XXA'!X18","v":0},{"$f":"'Schedule XXA'!Z18","v":0},{"$f":"'Schedule XXA'!AB18","v":0},{"$f":"'Schedule XXA'!AD18","v":0},{"$f":"'Schedule XXA'!AF18","v":0},{"$f":"IF('Schedule XXA'!AH18=0,Q20,'Schedule XXA'!AH18)","v":0},null,0,0,0,null,0,0]
[null,"Comorian Francs",{"$f":"'Schedule XXA'!D19","v":0},{"$f":"'Schedule XXA'!F19","v":0},{"$f":"'Schedule XXA'!H19","v":0},{"$f":"'Schedule XXA'!J19","v":0},{"$f":"'Schedule XXA'!L19","v":0},{"$f":"'Schedule XXA'!N19","v":0},0,{"$f":"IF($B$12=\"Euro\",IF((SUM(C21:G21))>(H21+I21),0%,2%),IF((SUM(C21:G21))>(H21+I21),0%,25%))","v":0.25},null,{"$f":"'Schedule XXA'!V19","v":0},{"$f":"'Schedule XXA'!X19","v":0},{"$f":"'Schedule XXA'!Z19","v":0},{"$f":"'Schedule XXA'!AB19","v":0},{"$f":"'Schedule XXA'!AD19","v":0},{"$f":"'Schedule XXA'!AF19","v":0},{"$f":"IF('Schedule XXA'!AH19=0,Q21,'Schedule XXA'!AH19)","v":0},null,0,0,0,null,0,0]
[null,{"$f":"+'Schedule XXA'!B20","v":"GBP"},{"$f":"'Schedule XXA'!D20","v":0},{"$f":"'Schedule XXA'!F20","v":0},{"$f":"'Schedule XXA'!H20","v":0},{"$f":"'Schedule XXA'!J20","v":0},{"$f":"'Schedule XXA'!L20","v":0},{"$f":"'Schedule XXA'!N20","v":0},0,{"$f":"IF((SUM(C22:G22))>(H22+I22),0%,25%)","v":0.25},null,{"$f":"'Schedule XXA'!V20","v":0},{"$f":"'Schedule XXA'!X20","v":0},{"$f":"'Schedule XXA'!Z20","v":0},{"$f":"'Schedule XXA'!AB20","v":0},{"$f":"'Schedule XXA'!AD20","v":0},{"$f":"'Schedule XXA'!AF20","v":0},{"$f":"IF('Schedule XXA'!AH20=0,Q22,'Schedule XXA'!AH20)","v":0},null,0,0,0,null,0,0]
[null,{"$f":"+'Schedule XXA'!B21","v":"CAD$"},{"$f":"'Schedule XXA'!D21","v":0},{"$f":"'Schedule XXA'!F21","v":0},{"$f":"'Schedule XXA'!H21","v":0},{"$f":"'Schedule XXA'!J21","v":0},{"$f":"'Schedule XXA'!L21","v":0},{"$f":"'Schedule XXA'!N21","v":0},0,{"$f":"IF((SUM(C23:G23))>(H23+I23),0%,25%)","v":0.25},null,{"$f":"'Schedule XXA'!V21","v":0},{"$f":"'Schedule XXA'!X21","v":0},{"$f":"'Schedule XXA'!Z21","v":0},{"$f":"'Schedule XXA'!AB21","v":0},{"$f":"'Schedule XXA'!AD21","v":0},{"$f":"'Schedule XXA'!AF21","v":0},{"$f":"IF('Schedule XXA'!AH21=0,Q23,'Schedule XXA'!AH21)","v":0},null,0,0,0,null,0,0]
[null,{"$f":"+'Schedule XXA'!B22","v":"YEN"},{"$f":"'Schedule XXA'!D22","v":0},{"$f":"'Schedule XXA'!F22","v":0},{"$f":"'Schedule XXA'!H22","v":0},{"$f":"'Schedule XXA'!J22","v":0},{"$f":"'Schedule XXA'!L22","v":0},{"$f":"'Schedule XXA'!N22","v":0},0,{"$f":"IF((SUM(C24:G24))>(H24+I24),0%,25%)","v":0.25},null,{"$f":"'Schedule XXA'!V22","v":0},{"$f":"'Schedule XXA'!X22","v":0},{"$f":"'Schedule XXA'!Z22","v":0},{"$f":"'Schedule XXA'!AB22","v":0},{"$f":"'Schedule XXA'!AD22","v":0},{"$f":"'Schedule XXA'!AF22","v":0},{"$f":"IF('Schedule XXA'!AH22=0,Q24,'Schedule XXA'!AH22)","v":0},null,0,0,0,null,0,0]
[null,{"$f":"+'Schedule XXA'!B23","v":"Other currency 1"},{"$f":"'Schedule XXA'!D23","v":0},{"$f":"'Schedule XXA'!F23","v":0},{"$f":"'Schedule XXA'!H23","v":0},{"$f":"'Schedule XXA'!J23","v":0},{"$f":"'Schedule XXA'!L23","v":0},{"$f":"'Schedule XXA'!N23","v":0},0,{"$f":"IF((SUM(C25:G25))>(H25+I25),0%,25%)","v":0.25},null,{"$f":"'Schedule XXA'!V23","v":0},{"$f":"'Schedule XXA'!X23","v":0},{"$f":"'Schedule XXA'!Z23","v":0},{"$f":"'Schedule XXA'!AB23","v":0},{"$f":"'Schedule XXA'!AD23","v":0},{"$f":"'Schedule XXA'!AF23","v":0},{"$f":"IF('Schedule XXA'!AH23=0,Q25,'Schedule XXA'!AH23)","v":0},null,0,0,0,null,0,0]
[null,{"$f":"+'Schedule XXA'!B24","v":"Other currency 2"},{"$f":"'Schedule XXA'!D24","v":0},{"$f":"'Schedule XXA'!F24","v":0},{"$f":"'Schedule XXA'!H24","v":0},{"$f":"'Schedule XXA'!J24","v":0},{"$f":"'Schedule XXA'!L24","v":0},{"$f":"'Schedule XXA'!N24","v":0},0,0.25,null,{"$f":"'Schedule XXA'!V24","v":0},{"$f":"'Schedule XXA'!X24","v":0},{"$f":"'Schedule XXA'!Z24","v":0},{"$f":"'Schedule XXA'!AB24","v":0},{"$f":"'Schedule XXA'!AD24","v":0},{"$f":"'Schedule XXA'!AF24","v":0},{"$f":"IF('Schedule XXA'!AH24=0,Q26,'Schedule XXA'!AH24)","v":0},null,0,0,0,null,0,0]
[null,{"$f":"+'Schedule XXA'!B25","v":"Other currency 3"},{"$f":"'Schedule XXA'!D25","v":0},{"$f":"'Schedule XXA'!F25","v":0},{"$f":"'Schedule XXA'!H25","v":0},{"$f":"'Schedule XXA'!J25","v":0},{"$f":"'Schedule XXA'!L25","v":0},{"$f":"'Schedule XXA'!N25","v":0},0,0.25,null,{"$f":"'Schedule XXA'!V25","v":0},{"$f":"'Schedule XXA'!X25","v":0},{"$f":"'Schedule XXA'!Z25","v":0},{"$f":"'Schedule XXA'!AB25","v":0},{"$f":"'Schedule XXA'!AD25","v":0},{"$f":"'Schedule XXA'!AF25","v":0},{"$f":"IF('Schedule XXA'!AH25=0,Q27,'Schedule XXA'!AH25)","v":0},null,0,0,0,null,0,0]
[null,{"$f":"+'Schedule XXA'!B26","v":"Other currency 4"},{"$f":"'Schedule XXA'!D26","v":0},{"$f":"'Schedule XXA'!F26","v":0},{"$f":"'Schedule XXA'!H26","v":0},{"$f":"'Schedule XXA'!J26","v":0},{"$f":"'Schedule XXA'!L26","v":0},{"$f":"'Schedule XXA'!N26","v":0},0,0.25,null,{"$f":"'Schedule XXA'!V26","v":0},{"$f":"'Schedule XXA'!X26","v":0},{"$f":"'Schedule XXA'!Z26","v":0},{"$f":"'Schedule XXA'!AB26","v":0},{"$f":"'Schedule XXA'!AD26","v":0},{"$f":"'Schedule XXA'!AF26","v":0},{"$f":"IF('Schedule XXA'!AH26=0,Q28,'Schedule XXA'!AH26)","v":0},null,0,0,0,null,0,0]
[null,{"$f":"+'Schedule XXA'!B27","v":"Other currency 5"},{"$f":"'Schedule XXA'!D27","v":0},{"$f":"'Schedule XXA'!F27","v":0},{"$f":"'Schedule XXA'!H27","v":0},{"$f":"'Schedule XXA'!J27","v":0},{"$f":"'Schedule XXA'!L27","v":0},{"$f":"'Schedule XXA'!N27","v":0},0,0.25,null,{"$f":"'Schedule XXA'!V27","v":0},{"$f":"'Schedule XXA'!X27","v":0},{"$f":"'Schedule XXA'!Z27","v":0},{"$f":"'Schedule XXA'!AB27","v":0},{"$f":"'Schedule XXA'!AD27","v":0},{"$f":"'Schedule XXA'!AF27","v":0},{"$f":"IF('Schedule XXA'!AH27=0,Q29,'Schedule XXA'!AH27)","v":0},null,0,0,0,null,0,0]
[null,{"$f":"+'Schedule XXA'!B28","v":"Other currency 6"},{"$f":"'Schedule XXA'!D28","v":0},{"$f":"'Schedule XXA'!F28","v":0},{"$f":"'Schedule XXA'!H28","v":0},{"$f":"'Schedule XXA'!J28","v":0},{"$f":"'Schedule XXA'!L28","v":0},{"$f":"'Schedule XXA'!N28","v":0},0,0.25,null,{"$f":"'Schedule XXA'!V28","v":0},{"$f":"'Schedule XXA'!X28","v":0},{"$f":"'Schedule XXA'!Z28","v":0},{"$f":"'Schedule XXA'!AB28","v":0},{"$f":"'Schedule XXA'!AD28","v":0},{"$f":"'Schedule XXA'!AF28","v":0},{"$f":"IF('Schedule XXA'!AH28=0,Q30,'Schedule XXA'!AH28)","v":0},null,0,0,0,null,0,0]
[null,{"$f":"+'Schedule XXA'!B29","v":"Other currency 7"},{"$f":"'Schedule XXA'!D29","v":0},{"$f":"'Schedule XXA'!F29","v":0},{"$f":"'Schedule XXA'!H29","v":0},{"$f":"'Schedule XXA'!J29","v":0},{"$f":"'Schedule XXA'!L29","v":0},{"$f":"'Schedule XXA'!N29","v":0},0,0.25,null,{"$f":"'Schedule XXA'!V29","v":0},{"$f":"'Schedule XXA'!X29","v":0},{"$f":"'Schedule XXA'!Z29","v":0},{"$f":"'Schedule XXA'!AB29","v":0},{"$f":"'Schedule XXA'!AD29","v":0},{"$f":"'Schedule XXA'!AF29","v":0},{"$f":"IF('Schedule XXA'!AH29=0,Q31,'Schedule XXA'!AH29)","v":0},null,0,0,0,null,0,0]
[null,{"$f":"+'Schedule XXA'!B30","v":"Other currency 8"},{"$f":"'Schedule XXA'!D30","v":0},{"$f":"'Schedule XXA'!F30","v":0},{"$f":"'Schedule XXA'!H30","v":0},{"$f":"'Schedule XXA'!J30","v":0},{"$f":"'Schedule XXA'!L30","v":0},{"$f":"'Schedule XXA'!N30","v":0},0,0.25,null,{"$f":"'Schedule XXA'!V30","v":0},{"$f":"'Schedule XXA'!X30","v":0},{"$f":"'Schedule XXA'!Z30","v":0},{"$f":"'Schedule XXA'!AB30","v":0},{"$f":"'Schedule XXA'!AD30","v":0},{"$f":"'Schedule XXA'!AF30","v":0},{"$f":"IF('Schedule XXA'!AH30=0,Q32,'Schedule XXA'!AH30)","v":0},null,0,0,0,null,0,0]
[null,{"$f":"+'Schedule XXA'!B31","v":"Other currency 9"},{"$f":"'Schedule XXA'!D31","v":0},{"$f":"'Schedule XXA'!F31","v":0},{"$f":"'Schedule XXA'!H31","v":0},{"$f":"'Schedule XXA'!J31","v":0},{"$f":"'Schedule XXA'!L31","v":0},{"$f":"'Schedule XXA'!N31","v":0},0,0.25,null,{"$f":"'Schedule XXA'!V31","v":0},{"$f":"'Schedule XXA'!X31","v":0},{"$f":"'Schedule XXA'!Z31","v":0},{"$f":"'Schedule XXA'!AB31","v":0},{"$f":"'Schedule XXA'!AD31","v":0},{"$f":"'Schedule XXA'!AF31","v":0},{"$f":"IF('Schedule XXA'!AH31=0,Q33,'Schedule XXA'!AH31)","v":0},null,0,0,0,null,0,0]
[null,{"$f":"+'Schedule XXA'!B32","v":"Other currency 10"},{"$f":"'Schedule XXA'!D32","v":0},{"$f":"'Schedule XXA'!F32","v":0},{"$f":"'Schedule XXA'!H32","v":0},{"$f":"'Schedule XXA'!J32","v":0},{"$f":"'Schedule XXA'!L32","v":0},{"$f":"'Schedule XXA'!N32","v":0},0,0.25,null,{"$f":"'Schedule XXA'!V32","v":0},{"$f":"'Schedule XXA'!X32","v":0},{"$f":"'Schedule XXA'!Z32","v":0},{"$f":"'Schedule XXA'!AB32","v":0},{"$f":"'Schedule XXA'!AD32","v":0},{"$f":"'Schedule XXA'!AF32","v":0},{"$f":"IF('Schedule XXA'!AH32=0,Q34,'Schedule XXA'!AH32)","v":0},null,0,0,0,null,0,0]
[null,"Total Identified",{"$f":"SUM(C12:C34)","v":0},0,0,0,0,0,null,null,null,{"$f":"SUM(L12:L34)","v":0},0,0,0,0,0,0,null,{"$f":"SUM(T12:T34)","v":0},{"$f":"SUM(U12:U34)","v":0},{"$f":"SUM(V12:V34)","v":0},null,{"$f":"SUM(X12:X34)","v":0},{"$f":"SUM(Y12:Y34)","v":0}]
[null,"Total",{"$f":"'Schedule XXA'!D36","v":0},null,null,null,null,{"$f":"'Schedule XXA'!N36","v":0}]
[null,"% Identified",{"$f":"IF(C35=0,0,(C35+G35)/C36)","v":0},null,null,null,null,{"$f":"IF(H35=0,0,H35/H36)","v":0}]
[]
[null,"TOTAL CURRENCY RISK",null,null,null,null,null,null,null,null,null,null,null,null,null,null,null,null,null,null,null,null,null,{"$f":"IF(SUM(X12:X34)>=0,SUM(X12:X34),0)","v":0},{"$f":"IF(SUM(Y12:Y34)>=0,SUM(Y12:Y34),0)","v":0}]

{"sheet":"Concentration Risk","index":115,"n_rows":111,"n_cols":6,"rows_kept":111,"cut":false,"hidden":false,"merged":[[0,5,0,6]]}
["CONCENTRATION RISK",null,null,null,null,{"$f":"HYPERLINK(\"#'Index'!A1\",\"Return to Index\")","v":"Return to Index"}]
[{"$f":"'Group Information'!C9","v":"Enter Parent Company Name"}]
["Concentration Risk($000)",null,{"$f":"'Group Information'!C3","v":"2023-12-31"}]
[null,null,null,"(1)","(2)","(3)"]
[]
[null,"ASSET ",null,null,"CAPITAL","REQUIRED"]
[null,"TYPE","STATEMENT SOURCE","EXPOSURE","FACTOR","CAPITAL"]
[]
[null,"(a) Cash and Cash Equivalents",null,"Cash and Cash Equivalent"]
[null,"BSCR Rating 0","Schedule XXI, Column D",{"$f":"SUMIFS('Schedule XXI'!$H$8:$H$57,'Schedule XXI'!$E$8:$E$57,$D$9,'Schedule XXI'!$G$8:$G$57,B10)","v":0},{"$f":"+'Fixed Income Investments'!E83","v":0},{"$f":"MAX(0,(D10*E10))","v":0}]
[null,"BSCR Rating 1","Schedule XXI, Column D",{"$f":"SUMIFS('Schedule XXI'!$H$8:$H$57,'Schedule XXI'!$E$8:$E$57,$D$9,'Schedule XXI'!$G$8:$G$57,B11)","v":0},{"$f":"+'Fixed Income Investments'!E84","v":1E-3},0]
[null,"BSCR Rating 2","Schedule XXI, Column D",{"$f":"SUMIFS('Schedule XXI'!$H$8:$H$57,'Schedule XXI'!$E$8:$E$57,$D$9,'Schedule XXI'!$G$8:$G$57,B12)","v":0},{"$f":"+'Fixed Income Investments'!E85","v":2E-3},0]
[null,"BSCR Rating 3","Schedule XXI, Column D",{"$f":"SUMIFS('Schedule XXI'!$H$8:$H$57,'Schedule XXI'!$E$8:$E$57,$D$9,'Schedule XXI'!$G$8:$G$57,B13)","v":0},{"$f":"+'Fixed Income Investments'!E86","v":3.0000000000000001E-3},0]
[null,"BSCR Rating 4","Schedule XXI, Column D",{"$f":"SUMIFS('Schedule XXI'!$H$8:$H$57,'Schedule XXI'!$E$8:$E$57,$D$9,'Schedule XXI'!$G$8:$G$57,B14)","v":0},{"$f":"+'Fixed Income Investments'!E87","v":5.0000000000000001E-3},0]
[null,"BSCR Rating 5","Schedule XXI, Column D",{"$f":"SUMIFS('Schedule XXI'!$H$8:$H$57,'Schedule XXI'!$E$8:$E$57,$D$9,'Schedule XXI'!$G$8:$G$57,B15)","v":0},{"$f":"+'Fixed Income Investments'!E88","v":1.4999999999999999E-2},0]
[null,"BSCR Rating 6","Schedule XXI, Column D",{"$f":"SUMIFS('Schedule XXI'!$H$8:$H$57,'Schedule XXI'!$E$8:$E$57,$D$9,'Schedule XXI'!$G$8:$G$57,B16)","v":0},{"$f":"+'Fixed Income Investments'!E89","v":0.04},0]
[null,"BSCR Rating 7","Schedule XXI, Column D",{"$f":"SUMIFS('Schedule XXI'!$H$8:$H$57,'Schedule XXI'!$E$8:$E$57,$D$9,'Schedule XXI'!$G$8:$G$57,B17)","v":0},{"$f":"+'Fixed Income Investments'!E90","v":0.06},0]
[null,"BSCR Rating 8","Schedule XXI, Column D",{"$f":"SUMIFS('Schedule XXI'!$H$8:$H$57,'Schedule XXI'!$E$8:$E$57,$D$9,'Schedule XXI'!$G$8:$G$57,B18)","v":0},{"$f":"+'Fixed Income Investments'!E91","v":0.09},0]
[]
[null,"(a)  SUBTOTAL - CASH AND CASH EQUIVALENTS",null,{"$f":"SUM(D10:D18)","v":0},null,{"$f":"SUM(F10:F18)","v":0}]
[]
[null,"(b) Corporate & Sovereign Bonds",null,"Corporate & Sovereign Bonds"]
[null,"BSCR Rating 0","Schedule XXI, Column D",{"$f":"SUMIFS('Schedule XXI'!$H$8:$H$57,'Schedule XXI'!$E$8:$E$57,'Schedule XXI'!$C$63,'Schedule XXI'!$F$8:$F$57,$D$22,'Schedule XXI'!$G$8:$G$57,B23)","v":0},0,{"$f":"MAX(0,(D23*E23))","v":0}]
[null,"BSCR Rating 1","Schedule XXI, Column D",{"$f":"SUMIFS('Schedule XXI'!$H$8:$H$57,'Schedule XXI'!$E$8:$E$57,'Schedule XXI'!$C$63,'Schedule XXI'!$F$8:$F$57,$D$22,'Schedule XXI'!$G$8:$G$57,B24)","v":0},4.0000000000000001E-3,0]
[null,"BSCR Rating 2","Schedule XXI, Column D",{"$f":"SUMIFS('Schedule XXI'!$H$8:$H$57,'Schedule XXI'!$E$8:$E$57,'Schedule XXI'!$C$63,'Schedule XXI'!$F$8:$F$57,$D$22,'Schedule XXI'!$G$8:$G$57,B25)","v":0},8.0000000000000002E-3,0]
[null,"BSCR Rating 3","Schedule XXI, Column D",{"$f":"SUMIFS('Schedule XXI'!$H$8:$H$57,'Schedule XXI'!$E$8:$E$57,'Schedule XXI'!$C$63,'Schedule XXI'!$F$8:$F$57,$D$22,'Schedule XXI'!$G$8:$G$57,B26)","v":0},1.4999999999999999E-2,0]
[null,"BSCR Rating 4","Schedule XXI, Column D",{"$f":"SUMIFS('Schedule XXI'!$H$8:$H$57,'Schedule XXI'!$E$8:$E$57,'Schedule XXI'!$C$63,'Schedule XXI'!$F$8:$F$57,$D$22,'Schedule XXI'!$G$8:$G$57,B27)","v":0},0.03,0]
[null,"BSCR Rating 5","Schedule XXI, Column D",{"$f":"SUMIFS('Schedule XXI'!$H$8:$H$57,'Schedule XXI'!$E$8:$E$57,'Schedule XXI'!$C$63,'Schedule XXI'!$F$8:$F$57,$D$22,'Schedule XXI'!$G$8:$G$57,B28)","v":0},0.08,0]
[null,"BSCR Rating 6","Schedule XXI, Column D",{"$f":"SUMIFS('Schedule XXI'!$H$8:$H$57,'Schedule XXI'!$E$8:$E$57,'Schedule XXI'!$C$63,'Schedule XXI'!$F$8:$F$57,$D$22,'Schedule XXI'!$G$8:$G$57,B29)","v":0},0.15,0]
[null,"BSCR Rating 7","Schedule XXI, Column D",{"$f":"SUMIFS('Schedule XXI'!$H$8:$H$57,'Schedule XXI'!$E$8:$E$57,'Schedule XXI'!$C$63,'Schedule XXI'!$F$8:$F$57,$D$22,'Schedule XXI'!$G$8:$G$57,B30)","v":0},0.26300000000000001,0]
[null,"BSCR Rating 8","Schedule XXI, Column D",{"$f":"SUMIFS('Schedule XXI'!$H$8:$H$57,'Schedule XXI'!$E$8:$E$57,'Schedule XXI'!$C$63,'Schedule XXI'!$F$8:$F$57,$D$22,'Schedule XXI'!$G$8:$G$57,B31)","v":0},0.35,0]
[]
[null,"(b)  SUBTOTAL - CORPORATE & SOVEREIGN BONDS",null,{"$f":"SUM(D23:D31)","v":0},null,{"$f":"SUM(F23:F31)","v":0}]
[]
[null,"(c) Residential Mortage-Backed Securities",null,"Residential Mortgage-Backed Securities"]
[null,"BSCR Rating 0","Schedule XXI, Column D",{"$f":"SUMIFS('Schedule XXI'!$H$8:$H$57,'Schedule XXI'!$E$8:$E$57,'Schedule XXI'!$C$63,'Schedule XXI'!$F$8:$F$57,$D$35,'Schedule XXI'!$G$8:$G$57,B36)","v":0},0,{"$f":"MAX(0,(D36*E36))","v":0}]
[null,"BSCR Rating 1","Schedule XXI, Column D",{"$f":"SUMIFS('Schedule XXI'!$H$8:$H$57,'Schedule XXI'!$E$8:$E$57,'Schedule XXI'!$C$63,'Schedule XXI'!$F$8:$F$57,$D$35,'Schedule XXI'!$G$8:$G$57,B37)","v":0},6.0000000000000001E-3,0]
[null,"BSCR Rating 2","Schedule XXI, Column D",{"$f":"SUMIFS('Schedule XXI'!$H$8:$H$57,'Schedule XXI'!$E$8:$E$57,'Schedule XXI'!$C$63,'Schedule XXI'!$F$8:$F$57,$D$35,'Schedule XXI'!$G$8:$G$57,B38)","v":0},1.2E-2,0]
[null,"BSCR Rating 3","Schedule XXI, Column D",{"$f":"SUMIFS('Schedule XXI'!$H$8:$H$57,'Schedule XXI'!$E$8:$E$57,'Schedule XXI'!$C$63,'Schedule XXI'!$F$8:$F$57,$D$35,'Schedule XXI'!$G$8:$G$57,B39)","v":0},0.02,0]
[null,"BSCR Rating 4","Schedule XXI, Column D",{"$f":"SUMIFS('Schedule XXI'!$H$8:$H$57,'Schedule XXI'!$E$8:$E$57,'Schedule XXI'!$C$63,'Schedule XXI'!$F$8:$F$57,$D$35,'Schedule XXI'!$G$8:$G$57,B40)","v":0},0.04,0]
[null,"BSCR Rating 5","Schedule XXI, Column D",{"$f":"SUMIFS('Schedule XXI'!$H$8:$H$57,'Schedule XXI'!$E$8:$E$57,'Schedule XXI'!$C$63,'Schedule XXI'!$F$8:$F$57,$D$35,'Schedule XXI'!$G$8:$G$57,B41)","v":0},0.11,0]
[null,"BSCR Rating 6","Schedule XXI, Column D",{"$f":"SUMIFS('Schedule XXI'!$H$8:$H$57,'Schedule XXI'!$E$8:$E$57,'Schedule XXI'!$C$63,'Schedule XXI'!$F$8:$F$57,$D$35,'Schedule XXI'!$G$8:$G$57,B42)","v":0},0.25,0]
[null,"BSCR Rating 7","Schedule XXI, Column D",{"$f":"SUMIFS('Schedule XXI'!$H$8:$H$57,'Schedule XXI'!$E$8:$E$57,'Schedule XXI'!$C$63,'Schedule XXI'!$F$8:$F$57,$D$35,'Schedule XXI'!$G$8:$G$57,B43)","v":0},0.35,0]
[null,"BSCR Rating 8","Schedule XXI, Column D",{"$f":"SUMIFS('Schedule XXI'!$H$8:$H$57,'Schedule XXI'!$E$8:$E$57,'Schedule XXI'!$C$63,'Schedule XXI'!$F$8:$F$57,$D$35,'Schedule XXI'!$G$8:$G$57,B44)","v":0},0.35,0]
[]
[null,"(c)  SUBTOTAL - RESIDENTIAL MORTGAGE-BACKED SECURITIES",null,{"$f":"SUM(D36:D44)","v":0},null,{"$f":"SUM(F36:F44)","v":0}]
[]
[null,"(d) Commercial Mortgage-Backed Securities / Asset-Backed Securities",null,"Commercial Mortgage-Backed Securities"]
[null,"BSCR Rating 0","Schedule XXI, Column D",{"$f":"SUMIFS('Schedule XXI'!$H$8:$H$57,'Schedule XXI'!$E$8:$E$57,'Schedule XXI'!$C$63,'Schedule XXI'!$F$8:$F$57,$D$48,'Schedule XXI'!$G$8:$G$57,B49)","v":0},0,{"$f":"MAX(0,(D49*E49))","v":0}]
[null,"BSCR Rating 1","Schedule XXI, Column D",{"$f":"SUMIFS('Schedule XXI'!$H$8:$H$57,'Schedule XXI'!$E$8:$E$57,'Schedule XXI'!$C$63,'Schedule XXI'!$F$8:$F$57,$D$48,'Schedule XXI'!$G$8:$G$57,B50)","v":0},5.0000000000000001E-3,0]
[null,"BSCR Rating 2","Schedule XXI, Column D",{"$f":"SUMIFS('Schedule XXI'!$H$8:$H$57,'Schedule XXI'!$E$8:$E$57,'Schedule XXI'!$C$63,'Schedule XXI'!$F$8:$F$57,$D$48,'Schedule XXI'!$G$8:$G$57,B51)","v":0},0.01,0]
[null,"BSCR Rating 3","Schedule XXI, Column D",{"$f":"SUMIFS('Schedule XXI'!$H$8:$H$57,'Schedule XXI'!$E$8:$E$57,'Schedule XXI'!$C$63,'Schedule XXI'!$F$8:$F$57,$D$48,'Schedule XXI'!$G$8:$G$57,B52)","v":0},1.7999999999999999E-2,0]
[null,"BSCR Rating 4","Schedule XXI, Column D",{"$f":"SUMIFS('Schedule XXI'!$H$8:$H$57,'Schedule XXI'!$E$8:$E$57,'Schedule XXI'!$C$63,'Schedule XXI'!$F$8:$F$57,$D$48,'Schedule XXI'!$G$8:$G$57,B53)","v":0},3.5000000000000003E-2,0]
[null,"BSCR Rating 5","Schedule XXI, Column D",{"$f":"SUMIFS('Schedule XXI'!$H$8:$H$57,'Schedule XXI'!$E$8:$E$57,'Schedule XXI'!$C$63,'Schedule XXI'!$F$8:$F$57,$D$48,'Schedule XXI'!$G$8:$G$57,B54)","v":0},0.1,0]
[null,"BSCR Rating 6","Schedule XXI, Column D",{"$f":"SUMIFS('Schedule XXI'!$H$8:$H$57,'Schedule XXI'!$E$8:$E$57,'Schedule XXI'!$C$63,'Schedule XXI'!$F$8:$F$57,$D$48,'Schedule XXI'!$G$8:$G$57,B55)","v":0},0.2,0]
[null,"BSCR Rating 7","Schedule XXI, Column D",{"$f":"SUMIFS('Schedule XXI'!$H$8:$H$57,'Schedule XXI'!$E$8:$E$57,'Schedule XXI'!$C$63,'Schedule XXI'!$F$8:$F$57,$D$48,'Schedule XXI'!$G$8:$G$57,B56)","v":0},0.3,0]
[null,"BSCR Rating 8","Schedule XXI, Column D",{"$f":"SUMIFS('Schedule XXI'!$H$8:$H$57,'Schedule XXI'!$E$8:$E$57,'Schedule XXI'!$C$63,'Schedule XXI'!$F$8:$F$57,$D$48,'Schedule XXI'!$G$8:$G$57,B57)","v":0},0.35,0]
[]
[null,"(d)  SUBTOTAL - COMMERCIAL MORTGAGE-BACKED SECURITIES / ASSET-BACKED SECURITIES",null,{"$f":"SUM(D49:D57)","v":0},null,{"$f":"SUM(F49:F57)","v":0}]
[]
[null,"(e) Bond Mutual Funds",null,"Bond Mutual Funds"]
[null,"BSCR Rating 0","Schedule XXI, Column D",{"$f":"SUMIFS('Schedule XXI'!$H$8:$H$57,'Schedule XXI'!$E$8:$E$57,'Schedule XXI'!$C$63,'Schedule XXI'!$F$8:$F$57,$D$61,'Schedule XXI'!$G$8:$G$57,B62)","v":0},0,{"$f":"MAX(0,(D62*E62))","v":0}]
[null,"BSCR Rating 1","Schedule XXI, Column D",{"$f":"SUMIFS('Schedule XXI'!$H$8:$H$57,'Schedule XXI'!$E$8:$E$57,'Schedule XXI'!$C$63,'Schedule XXI'!$F$8:$F$57,$D$61,'Schedule XXI'!$G$8:$G$57,B63)","v":0},4.0000000000000001E-3,0]
[null,"BSCR Rating 2","Schedule XXI, Column D",{"$f":"SUMIFS('Schedule XXI'!$H$8:$H$57,'Schedule XXI'!$E$8:$E$57,'Schedule XXI'!$C$63,'Schedule XXI'!$F$8:$F$57,$D$61,'Schedule XXI'!$G$8:$G$57,B64)","v":0},8.0000000000000002E-3,0]
[null,"BSCR Rating 3","Schedule XXI, Column D",{"$f":"SUMIFS('Schedule XXI'!$H$8:$H$57,'Schedule XXI'!$E$8:$E$57,'Schedule XXI'!$C$63,'Schedule XXI'!$F$8:$F$57,$D$61,'Schedule XXI'!$G$8:$G$57,B65)","v":0},1.4999999999999999E-2,0]
[null,"BSCR Rating 4","Schedule XXI, Column D",{"$f":"SUMIFS('Schedule XXI'!$H$8:$H$57,'Schedule XXI'!$E$8:$E$57,'Schedule XXI'!$C$63,'Schedule XXI'!$F$8:$F$57,$D$61,'Schedule XXI'!$G$8:$G$57,B66)","v":0},0.03,0]
[null,"BSCR Rating 5","Schedule XXI, Column D",{"$f":"SUMIFS('Schedule XXI'!$H$8:$H$57,'Schedule XXI'!$E$8:$E$57,'Schedule XXI'!$C$63,'Schedule XXI'!$F$8:$F$57,$D$61,'Schedule XXI'!$G$8:$G$57,B67)","v":0},0.08,0]
[null,"BSCR Rating 6","Schedule XXI, Column D",{"$f":"SUMIFS('Schedule XXI'!$H$8:$H$57,'Schedule XXI'!$E$8:$E$57,'Schedule XXI'!$C$63,'Schedule XXI'!$F$8:$F$57,$D$61,'Schedule XXI'!$G$8:$G$57,B68)","v":0},0.15,0]
[null,"BSCR Rating 7","Schedule XXI, Column D",{"$f":"SUMIFS('Schedule XXI'!$H$8:$H$57,'Schedule XXI'!$E$8:$E$57,'Schedule XXI'!$C$63,'Schedule XXI'!$F$8:$F$57,$D$61,'Schedule XXI'!$G$8:$G$57,B69)","v":0},0.26300000000000001,0]
[null,"BSCR Rating 8","Schedule XXI, Column D",{"$f":"SUMIFS('Schedule XXI'!$H$8:$H$57,'Schedule XXI'!$E$8:$E$57,'Schedule XXI'!$C$63,'Schedule XXI'!$F$8:$F$57,$D$61,'Schedule XXI'!$G$8:$G$57,B70)","v":0},0.35,0]
[]
[null,"(e)  SUBTOTAL - BOND MUTUAL FUNDS",null,{"$f":"SUM(D62:D70)","v":0},null,{"$f":"SUM(F62:F70)","v":0}]
[]
[null,"(f) Preferred Shares",null,"Preferred Shares"]
[null,"BSCR Rating 0","Schedule XXI, Column D",{"$f":"SUMIFS('Schedule XXI'!$H$8:$H$57,'Schedule XXI'!$E$8:$E$57,$D$74,'Schedule XXI'!$G$8:$G$57,B75)","v":0},0,{"$f":"MAX(0,(D75*E75))","v":0}]
[null,"BSCR Rating 1","Schedule XXI, Column D",{"$f":"SUMIFS('Schedule XXI'!$H$8:$H$57,'Schedule XXI'!$E$8:$E$57,$D$74,'Schedule XXI'!$G$8:$G$57,B76)","v":0},6.0000000000000001E-3,0]
[null,"BSCR Rating 2","Schedule XXI, Column D",{"$f":"SUMIFS('Schedule XXI'!$H$8:$H$57,'Schedule XXI'!$E$8:$E$57,$D$74,'Schedule XXI'!$G$8:$G$57,B77)","v":0},1.2E-2,0]
[null,"BSCR Rating 3","Schedule XXI, Column D",{"$f":"SUMIFS('Schedule XXI'!$H$8:$H$57,'Schedule XXI'!$E$8:$E$57,$D$74,'Schedule XXI'!$G$8:$G$57,B78)","v":0},0.02,0]
[null,"BSCR Rating 4","Schedule XXI, Column D",{"$f":"SUMIFS('Schedule XXI'!$H$8:$H$57,'Schedule XXI'!$E$8:$E$57,$D$74,'Schedule XXI'!$G$8:$G$57,B79)","v":0},0.04,0]
[null,"BSCR Rating 5","Schedule XXI, Column D",{"$f":"SUMIFS('Schedule XXI'!$H$8:$H$57,'Schedule XXI'!$E$8:$E$57,$D$74,'Schedule XXI'!$G$8:$G$57,B80)","v":0},0.11,0]
[null,"BSCR Rating 6","Schedule XXI, Column D",{"$f":"SUMIFS('Schedule XXI'!$H$8:$H$57,'Schedule XXI'!$E$8:$E$57,$D$74,'Schedule XXI'!$G$8:$G$57,B81)","v":0},0.25,0]
[null,"BSCR Rating 7","Schedule XXI, Column D",{"$f":"SUMIFS('Schedule XXI'!$H$8:$H$57,'Schedule XXI'!$E$8:$E$57,$D$74,'Schedule XXI'!$G$8:$G$57,B82)","v":0},0.35,0]
[null,"BSCR Rating 8","Schedule XXI, Column D",{"$f":"SUMIFS('Schedule XXI'!$H$8:$H$57,'Schedule XXI'!$E$8:$E$57,$D$74,'Schedule XXI'!$G$8:$G$57,B83)","v":0},0.35,0]
[]
[null,"(f)  SUBTOTAL - PREFERRED SHARES",null,{"$f":"SUM(D75:D83)","v":0},null,{"$f":"SUM(F75:F83)","v":0}]
[]
[null,"(g) Mortgage Loans",null,{"$f":"+'Schedule XXI'!C65","v":"MortgageLoanTypes"}]
[null,"Insured/Guaranteed Mortgages","Schedule XXI, Column D",{"$f":"SUMIFS('Schedule XXI'!$H$8:$H$57,'Schedule XXI'!$E$8:$E$57,'Schedule XXI'!$C$65,'Schedule XXI'!$F$8:$F$57,B88)","v":0},3.0000000000000001E-3,{"$f":"MAX(0,(D88*E88))","v":0}]
[null,"Other Commercial and Farm Mortgages","Schedule XXI, Column D",{"$f":"SUMIFS('Schedule XXI'!$H$8:$H$57,'Schedule XXI'!$E$8:$E$57,'Schedule XXI'!$C$65,'Schedule XXI'!$F$8:$F$57,B89)","v":0},0.05,{"$f":"MAX(0,(D89*E89))","v":0}]
[null,"Other Residential Mortgages","Schedule XXI, Column D",{"$f":"SUMIFS('Schedule XXI'!$H$8:$H$57,'Schedule XXI'!$E$8:$E$57,'Schedule XXI'!$C$65,'Schedule XXI'!$F$8:$F$57,B90)","v":0},1.4999999999999999E-2,{"$f":"MAX(0,(D90*E90))","v":0}]
[null,"Mortgages Not In Good Standing","Schedule XXI, Column D",{"$f":"SUMIFS('Schedule XXI'!$H$8:$H$57,'Schedule XXI'!$E$8:$E$57,'Schedule XXI'!$C$65,'Schedule XXI'!$F$8:$F$57,B91)","v":0},0.25,{"$f":"MAX(0,(D91*E91))","v":0}]
[]
[null,"(g)  SUBTOTAL - MORTGAGE LOANS",null,{"$f":"SUM(D88:D91)","v":0},null,{"$f":"SUM(F88:F91)","v":0}]
[]
[null,"(h) Other Asset Classes"]
[null,"Common Stock and Mutual Funds","Schedule XXI, Column D",{"$f":"SUMIFS('Schedule XXI'!$H$8:$H$57,'Schedule XXI'!$E$8:$E$57,B96)","v":0},0.14399999999999999,{"$f":"MAX(0,(D96*E96))","v":0}]
[null,"Other Investments","Schedule XXI, Column D",{"$f":"SUMIFS('Schedule XXI'!$H$8:$H$57,'Schedule XXI'!$E$8:$E$57,B97)","v":0},0.2,{"$f":"MAX(0,(D97*E97))","v":0}]
[null,"Investment in Affiliates – Unregulated entities that conduct ancillary services",null,{"$f":"SUMIFS('Schedule XXI'!$H$8:$H$57,'Schedule XXI'!$E$8:$E$57,B98)","v":0},0.05,0]
[null,"Investment in Affiliates - Unregulated non-financial operating entities",null,{"$f":"SUMIFS('Schedule XXI'!$H$8:$H$57,'Schedule XXI'!$E$8:$E$57,B99)","v":0},0.2,0]
[null,"Investment in Affiliates - Unregulated financial operating entities",null,{"$f":"SUMIFS('Schedule XXI'!$H$8:$H$57,'Schedule XXI'!$E$8:$E$57,B100)","v":0},0.55000000000000004,0]
[null,"Investment in Affiliates - Regulated non-insurance financial operating entities",null,{"$f":"SUMIFS('Schedule XXI'!$H$8:$H$57,'Schedule XXI'!$E$8:$E$57,B101)","v":0},0.55000000000000004,0]
[null,"Investment in Affiliates - Regulated insurance financial operating entities",null,{"$f":"SUMIFS('Schedule XXI'!$H$8:$H$57,'Schedule XXI'!$E$8:$E$57,B102)","v":0},0.2,0]
[null,"Advances to Affiliates - ","Schedule XXI, Column D",{"$f":"SUMIFS('Schedule XXI'!$H$8:$H$57,'Schedule XXI'!$E$8:$E$57,B103)","v":0},0.05,0]
[null,"Policy Loans","Schedule XXI, Column D",{"$f":"SUMIFS('Schedule XXI'!$H$8:$H$57,'Schedule XXI'!$E$8:$E$57,B104)","v":0},0,0]
[null,"Real Estate: Occupied by company","Schedule XXI, Column D",{"$f":"SUMIFS('Schedule XXI'!$H$8:$H$57,'Schedule XXI'!$E$8:$E$57,B105)","v":0},0.1,0]
[null,"Real Estate: Other properties","Schedule XXI, Column D",{"$f":"SUMIFS('Schedule XXI'!$H$8:$H$57,'Schedule XXI'!$E$8:$E$57,B106)","v":0},0.2,0]
[null,"Collateral Loans","Schedule XXI, Column D",{"$f":"SUMIFS('Schedule XXI'!$H$8:$H$57,'Schedule XXI'!$E$8:$E$57,B107)","v":0},0.05,0]
[]
[null,"(h)  SUBTOTAL - OTHER ASSET CLASSES",null,{"$f":"SUM(D96:D107)","v":0},null,{"$f":"SUM(F96:F107)","v":0}]
[]
[null,"TOTAL CONCENTRATION RISK",null,{"$f":"D109+D93+D85+D72+D59+D46+D33+D20","v":0},null,{"$f":"F109+F93+F85+F72+F59+F46+F33+F20","v":0}]

{"sheet":"Concentration Risk (Revised)","index":116,"n_rows":123,"n_cols":6,"rows_kept":123,"cut":false,"hidden":false,"merged":[[0,5,0,6]]}
["CONCENTRATION RISK (REVISED)",null,null,null,null,{"$f":"HYPERLINK(\"#'Index'!A1\",\"Return to Index\")","v":"Return to Index"}]
[{"$f":"'Group Information'!C9","v":"Enter Parent Company Name"}]
["Concentration Risk($000)",null,{"$f":"'Group Information'!C3","v":"2023-12-31"}]
[null,null,null,"(1)","(2)","(3)"]
[]
[null,"ASSET ",null,null,"CAPITAL","REQUIRED"]
[null,"TYPE","STATEMENT SOURCE","EXPOSURE","FACTOR","CAPITAL"]
[]
[null,"(a) Cash and Cash Equivalents",null,"Cash and Cash Equivalent"]
[null,"BSCR Rating 0","Schedule XXIA, Column D",{"$f":"SUMIFS('Schedule XXIA'!$H$8:$H$57,'Schedule XXIA'!$E$8:$E$57,$D$9,'Schedule XXIA'!$G$8:$G$57,B10)","v":0},{"$f":"+'Fixed Income Investments'!E83","v":0},{"$f":"MAX(0,(D10*E10))","v":0}]
[null,"BSCR Rating 1","Schedule XXIA, Column D",{"$f":"SUMIFS('Schedule XXIA'!$H$8:$H$57,'Schedule XXIA'!$E$8:$E$57,$D$9,'Schedule XXIA'!$G$8:$G$57,B11)","v":0},{"$f":"+'Fixed Income Investments'!E84","v":1E-3},0]
[null,"BSCR Rating 2","Schedule XXIA, Column D",{"$f":"SUMIFS('Schedule XXIA'!$H$8:$H$57,'Schedule XXIA'!$E$8:$E$57,$D$9,'Schedule XXIA'!$G$8:$G$57,B12)","v":0},{"$f":"+'Fixed Income Investments'!E85","v":2E-3},0]
[null,"BSCR Rating 3","Schedule XXIA, Column D",{"$f":"SUMIFS('Schedule XXIA'!$H$8:$H$57,'Schedule XXIA'!$E$8:$E$57,$D$9,'Schedule XXIA'!$G$8:$G$57,B13)","v":0},{"$f":"+'Fixed Income Investments'!E86","v":3.0000000000000001E-3},0]
[null,"BSCR Rating 4","Schedule XXIA, Column D",{"$f":"SUMIFS('Schedule XXIA'!$H$8:$H$57,'Schedule XXIA'!$E$8:$E$57,$D$9,'Schedule XXIA'!$G$8:$G$57,B14)","v":0},{"$f":"+'Fixed Income Investments'!E87","v":5.0000000000000001E-3},0]
[null,"BSCR Rating 5","Schedule XXIA, Column D",{"$f":"SUMIFS('Schedule XXIA'!$H$8:$H$57,'Schedule XXIA'!$E$8:$E$57,$D$9,'Schedule XXIA'!$G$8:$G$57,B15)","v":0},{"$f":"+'Fixed Income Investments'!E88","v":1.4999999999999999E-2},0]
[null,"BSCR Rating 6","Schedule XXIA, Column D",{"$f":"SUMIFS('Schedule XXIA'!$H$8:$H$57,'Schedule XXIA'!$E$8:$E$57,$D$9,'Schedule XXIA'!$G$8:$G$57,B16)","v":0},{"$f":"+'Fixed Income Investments'!E89","v":0.04},0]
[null,"BSCR Rating 7","Schedule XXIA, Column D",{"$f":"SUMIFS('Schedule XXIA'!$H$8:$H$57,'Schedule XXIA'!$E$8:$E$57,$D$9,'Schedule XXIA'!$G$8:$G$57,B17)","v":0},{"$f":"+'Fixed Income Investments'!E90","v":0.06},0]
[null,"BSCR Rating 8","Schedule XXIA, Column D",{"$f":"SUMIFS('Schedule XXIA'!$H$8:$H$57,'Schedule XXIA'!$E$8:$E$57,$D$9,'Schedule XXIA'!$G$8:$G$57,B18)","v":0},{"$f":"+'Fixed Income Investments'!E91","v":0.09},0]
[]
[null,"(a)  SUBTOTAL - CASH AND CASH EQUIVALENTS",null,{"$f":"SUM(D10:D18)","v":0},null,{"$f":"SUM(F10:F18)","v":0}]
[]
[null,"(b) Corporate & Sovereign Bonds",null,"Corporate & Sovereign Bonds"]
[null,"BSCR Rating 0","Schedule XXIA, Column D",{"$f":"SUMIFS('Schedule XXIA'!$H$8:$H$57,'Schedule XXIA'!$E$8:$E$57,'Schedule XXIA'!$C$63,'Schedule XXIA'!$F$8:$F$57,$D$22,'Schedule XXIA'!$G$8:$G$57,B23)","v":0},0,{"$f":"MAX(0,(D23*E23))","v":0}]
[null,"BSCR Rating 1","Schedule XXIA, Column D",{"$f":"SUMIFS('Schedule XXIA'!$H$8:$H$57,'Schedule XXIA'!$E$8:$E$57,'Schedule XXIA'!$C$63,'Schedule XXIA'!$F$8:$F$57,$D$22,'Schedule XXIA'!$G$8:$G$57,B24)","v":0},4.0000000000000001E-3,0]
[null,"BSCR Rating 2","Schedule XXIA, Column D",{"$f":"SUMIFS('Schedule XXIA'!$H$8:$H$57,'Schedule XXIA'!$E$8:$E$57,'Schedule XXIA'!$C$63,'Schedule XXIA'!$F$8:$F$57,$D$22,'Schedule XXIA'!$G$8:$G$57,B25)","v":0},8.0000000000000002E-3,0]
[null,"BSCR Rating 3","Schedule XXIA, Column D",{"$f":"SUMIFS('Schedule XXIA'!$H$8:$H$57,'Schedule XXIA'!$E$8:$E$57,'Schedule XXIA'!$C$63,'Schedule XXIA'!$F$8:$F$57,$D$22,'Schedule XXIA'!$G$8:$G$57,B26)","v":0},1.4999999999999999E-2,0]
[null,"BSCR Rating 4","Schedule XXIA, Column D",{"$f":"SUMIFS('Schedule XXIA'!$H$8:$H$57,'Schedule XXIA'!$E$8:$E$57,'Schedule XXIA'!$C$63,'Schedule XXIA'!$F$8:$F$57,$D$22,'Schedule XXIA'!$G$8:$G$57,B27)","v":0},0.03,0]
[null,"BSCR Rating 5","Schedule XXIA, Column D",{"$f":"SUMIFS('Schedule XXIA'!$H$8:$H$57,'Schedule XXIA'!$E$8:$E$57,'Schedule XXIA'!$C$63,'Schedule XXIA'!$F$8:$F$57,$D$22,'Schedule XXIA'!$G$8:$G$57,B28)","v":0},0.08,0]
[null,"BSCR Rating 6","Schedule XXIA, Column D",{"$f":"SUMIFS('Schedule XXIA'!$H$8:$H$57,'Schedule XXIA'!$E$8:$E$57,'Schedule XXIA'!$C$63,'Schedule XXIA'!$F$8:$F$57,$D$22,'Schedule XXIA'!$G$8:$G$57,B29)","v":0},0.15,0]
[null,"BSCR Rating 7","Schedule XXIA, Column D",{"$f":"SUMIFS('Schedule XXIA'!$H$8:$H$57,'Schedule XXIA'!$E$8:$E$57,'Schedule XXIA'!$C$63,'Schedule XXIA'!$F$8:$F$57,$D$22,'Schedule XXIA'!$G$8:$G$57,B30)","v":0},0.26300000000000001,0]
[null,"BSCR Rating 8","Schedule XXIA, Column D",{"$f":"SUMIFS('Schedule XXIA'!$H$8:$H$57,'Schedule XXIA'!$E$8:$E$57,'Schedule XXIA'!$C$63,'Schedule XXIA'!$F$8:$F$57,$D$22,'Schedule XXIA'!$G$8:$G$57,B31)","v":0},0.35,0]
[]
[null,"(b)  SUBTOTAL - CORPORATE & SOVEREIGN BONDS",null,{"$f":"SUM(D23:D31)","v":0},null,{"$f":"SUM(F23:F31)","v":0}]
[]
[null,"(c) Residential Mortage-Backed Securities",null,"Residential Mortgage-Backed Securities"]
[null,"BSCR Rating 0","Schedule XXIA, Column D",{"$f":"SUMIFS('Schedule XXIA'!$H$8:$H$57,'Schedule XXIA'!$E$8:$E$57,'Schedule XXIA'!$C$63,'Schedule XXIA'!$F$8:$F$57,$D$35,'Schedule XXIA'!$G$8:$G$57,B36)","v":0},0,{"$f":"MAX(0,(D36*E36))","v":0}]
[null,"BSCR Rating 1","Schedule XXIA, Column D",{"$f":"SUMIFS('Schedule XXIA'!$H$8:$H$57,'Schedule XXIA'!$E$8:$E$57,'Schedule XXIA'!$C$63,'Schedule XXIA'!$F$8:$F$57,$D$35,'Schedule XXIA'!$G$8:$G$57,B37)","v":0},6.0000000000000001E-3,0]
[null,"BSCR Rating 2","Schedule XXIA, Column D",{"$f":"SUMIFS('Schedule XXIA'!$H$8:$H$57,'Schedule XXIA'!$E$8:$E$57,'Schedule XXIA'!$C$63,'Schedule XXIA'!$F$8:$F$57,$D$35,'Schedule XXIA'!$G$8:$G$57,B38)","v":0},1.2E-2,0]
[null,"BSCR Rating 3","Schedule XXIA, Column D",{"$f":"SUMIFS('Schedule XXIA'!$H$8:$H$57,'Schedule XXIA'!$E$8:$E$57,'Schedule XXIA'!$C$63,'Schedule XXIA'!$F$8:$F$57,$D$35,'Schedule XXIA'!$G$8:$G$57,B39)","v":0},0.02,0]
[null,"BSCR Rating 4","Schedule XXIA, Column D",{"$f":"SUMIFS('Schedule XXIA'!$H$8:$H$57,'Schedule XXIA'!$E$8:$E$57,'Schedule XXIA'!$C$63,'Schedule XXIA'!$F$8:$F$57,$D$35,'Schedule XXIA'!$G$8:$G$57,B40)","v":0},0.04,0]
[null,"BSCR Rating 5","Schedule XXIA, Column D",{"$f":"SUMIFS('Schedule XXIA'!$H$8:$H$57,'Schedule XXIA'!$E$8:$E$57,'Schedule XXIA'!$C$63,'Schedule XXIA'!$F$8:$F$57,$D$35,'Schedule XXIA'!$G$8:$G$57,B41)","v":0},0.11,0]
[null,"BSCR Rating 6","Schedule XXIA, Column D",{"$f":"SUMIFS('Schedule XXIA'!$H$8:$H$57,'Schedule XXIA'!$E$8:$E$57,'Schedule XXIA'!$C$63,'Schedule XXIA'!$F$8:$F$57,$D$35,'Schedule XXIA'!$G$8:$G$57,B42)","v":0},0.25,0]
[null,"BSCR Rating 7","Schedule XXIA, Column D",{"$f":"SUMIFS('Schedule XXIA'!$H$8:$H$57,'Schedule XXIA'!$E$8:$E$57,'Schedule XXIA'!$C$63,'Schedule XXIA'!$F$8:$F$57,$D$35,'Schedule XXIA'!$G$8:$G$57,B43)","v":0},0.35,0]
[null,"BSCR Rating 8","Schedule XXIA, Column D",{"$f":"SUMIFS('Schedule XXIA'!$H$8:$H$57,'Schedule XXIA'!$E$8:$E$57,'Schedule XXIA'!$C$63,'Schedule XXIA'!$F$8:$F$57,$D$35,'Schedule XXIA'!$G$8:$G$57,B44)","v":0},0.35,0]
[]
[null,"(c)  SUBTOTAL - RESIDENTIAL MORTGAGE-BACKED SECURITIES",null,{"$f":"SUM(D36:D44)","v":0},null,{"$f":"SUM(F36:F44)","v":0}]
[]
[null,"(d) Commercial Mortgage-Backed Securities / Asset-Backed Securities",null,"Commercial Mortgage-Backed Securities"]
[null,"BSCR Rating 0","Schedule XXIA, Column D",{"$f":"SUMIFS('Schedule XXIA'!$H$8:$H$57,'Schedule XXIA'!$E$8:$E$57,'Schedule XXIA'!$C$63,'Schedule XXIA'!$F$8:$F$57,$D$48,'Schedule XXIA'!$G$8:$G$57,B49)","v":0},0,{"$f":"MAX(0,(D49*E49))","v":0}]
[null,"BSCR Rating 1","Schedule XXIA, Column D",{"$f":"SUMIFS('Schedule XXIA'!$H$8:$H$57,'Schedule XXIA'!$E$8:$E$57,'Schedule XXIA'!$C$63,'Schedule XXIA'!$F$8:$F$57,$D$48,'Schedule XXIA'!$G$8:$G$57,B50)","v":0},5.0000000000000001E-3,0]
[null,"BSCR Rating 2","Schedule XXIA, Column D",{"$f":"SUMIFS('Schedule XXIA'!$H$8:$H$57,'Schedule XXIA'!$E$8:$E$57,'Schedule XXIA'!$C$63,'Schedule XXIA'!$F$8:$F$57,$D$48,'Schedule XXIA'!$G$8:$G$57,B51)","v":0},0.01,0]
[null,"BSCR Rating 3","Schedule XXIA, Column D",{"$f":"SUMIFS('Schedule XXIA'!$H$8:$H$57,'Schedule XXIA'!$E$8:$E$57,'Schedule XXIA'!$C$63,'Schedule XXIA'!$F$8:$F$57,$D$48,'Schedule XXIA'!$G$8:$G$57,B52)","v":0},1.7999999999999999E-2,0]
[null,"BSCR Rating 4","Schedule XXIA, Column D",{"$f":"SUMIFS('Schedule XXIA'!$H$8:$H$57,'Schedule XXIA'!$E$8:$E$57,'Schedule XXIA'!$C$63,'Schedule XXIA'!$F$8:$F$57,$D$48,'Schedule XXIA'!$G$8:$G$57,B53)","v":0},3.5000000000000003E-2,0]
[null,"BSCR Rating 5","Schedule XXIA, Column D",{"$f":"SUMIFS('Schedule XXIA'!$H$8:$H$57,'Schedule XXIA'!$E$8:$E$57,'Schedule XXIA'!$C$63,'Schedule XXIA'!$F$8:$F$57,$D$48,'Schedule XXIA'!$G$8:$G$57,B54)","v":0},0.1,0]
[null,"BSCR Rating 6","Schedule XXIA, Column D",{"$f":"SUMIFS('Schedule XXIA'!$H$8:$H$57,'Schedule XXIA'!$E$8:$E$57,'Schedule XXIA'!$C$63,'Schedule XXIA'!$F$8:$F$57,$D$48,'Schedule XXIA'!$G$8:$G$57,B55)","v":0},0.2,0]
[null,"BSCR Rating 7","Schedule XXIA, Column D",{"$f":"SUMIFS('Schedule XXIA'!$H$8:$H$57,'Schedule XXIA'!$E$8:$E$57,'Schedule XXIA'!$C$63,'Schedule XXIA'!$F$8:$F$57,$D$48,'Schedule XXIA'!$G$8:$G$57,B56)","v":0},0.3,0]
[null,"BSCR Rating 8","Schedule XXIA, Column D",{"$f":"SUMIFS('Schedule XXIA'!$H$8:$H$57,'Schedule XXIA'!$E$8:$E$57,'Schedule XXIA'!$C$63,'Schedule XXIA'!$F$8:$F$57,$D$48,'Schedule XXIA'!$G$8:$G$57,B57)","v":0},0.35,0]
[]
[null,"(d)  SUBTOTAL - COMMERCIAL MORTGAGE-BACKED SECURITIES / ASSET-BACKED SECURITIES",null,{"$f":"SUM(D49:D57)","v":0},null,{"$f":"SUM(F49:F57)","v":0}]
[]
[null,"(e) Bond Mutual Funds",null,"Bond Mutual Funds"]
[null,"BSCR Rating 0","Schedule XXIA, Column D",{"$f":"SUMIFS('Schedule XXIA'!$H$8:$H$57,'Schedule XXIA'!$E$8:$E$57,'Schedule XXIA'!$C$63,'Schedule XXIA'!$F$8:$F$57,$D$61,'Schedule XXIA'!$G$8:$G$57,B62)","v":0},0,{"$f":"MAX(0,(D62*E62))","v":0}]
[null,"BSCR Rating 1","Schedule XXIA, Column D",{"$f":"SUMIFS('Schedule XXIA'!$H$8:$H$57,'Schedule XXIA'!$E$8:$E$57,'Schedule XXIA'!$C$63,'Schedule XXIA'!$F$8:$F$57,$D$61,'Schedule XXIA'!$G$8:$G$57,B63)","v":0},4.0000000000000001E-3,0]
[null,"BSCR Rating 2","Schedule XXIA, Column D",{"$f":"SUMIFS('Schedule XXIA'!$H$8:$H$57,'Schedule XXIA'!$E$8:$E$57,'Schedule XXIA'!$C$63,'Schedule XXIA'!$F$8:$F$57,$D$61,'Schedule XXIA'!$G$8:$G$57,B64)","v":0},8.0000000000000002E-3,0]
[null,"BSCR Rating 3","Schedule XXIA, Column D",{"$f":"SUMIFS('Schedule XXIA'!$H$8:$H$57,'Schedule XXIA'!$E$8:$E$57,'Schedule XXIA'!$C$63,'Schedule XXIA'!$F$8:$F$57,$D$61,'Schedule XXIA'!$G$8:$G$57,B65)","v":0},1.4999999999999999E-2,0]
[null,"BSCR Rating 4","Schedule XXIA, Column D",{"$f":"SUMIFS('Schedule XXIA'!$H$8:$H$57,'Schedule XXIA'!$E$8:$E$57,'Schedule XXIA'!$C$63,'Schedule XXIA'!$F$8:$F$57,$D$61,'Schedule XXIA'!$G$8:$G$57,B66)","v":0},0.03,0]
[null,"BSCR Rating 5","Schedule XXIA, Column D",{"$f":"SUMIFS('Schedule XXIA'!$H$8:$H$57,'Schedule XXIA'!$E$8:$E$57,'Schedule XXIA'!$C$63,'Schedule XXIA'!$F$8:$F$57,$D$61,'Schedule XXIA'!$G$8:$G$57,B67)","v":0},0.08,0]
[null,"BSCR Rating 6","Schedule XXIA, Column D",{"$f":"SUMIFS('Schedule XXIA'!$H$8:$H$57,'Schedule XXIA'!$E$8:$E$57,'Schedule XXIA'!$C$63,'Schedule XXIA'!$F$8:$F$57,$D$61,'Schedule XXIA'!$G$8:$G$57,B68)","v":0},0.15,0]
[null,"BSCR Rating 7","Schedule XXIA, Column D",{"$f":"SUMIFS('Schedule XXIA'!$H$8:$H$57,'Schedule XXIA'!$E$8:$E$57,'Schedule XXIA'!$C$63,'Schedule XXIA'!$F$8:$F$57,$D$61,'Schedule XXIA'!$G$8:$G$57,B69)","v":0},0.26300000000000001,0]
[null,"BSCR Rating 8","Schedule XXIA, Column D",{"$f":"SUMIFS('Schedule XXIA'!$H$8:$H$57,'Schedule XXIA'!$E$8:$E$57,'Schedule XXIA'!$C$63,'Schedule XXIA'!$F$8:$F$57,$D$61,'Schedule XXIA'!$G$8:$G$57,B70)","v":0},0.35,0]
[]
[null,"(e)  SUBTOTAL - BOND MUTUAL FUNDS",null,{"$f":"SUM(D62:D70)","v":0},null,{"$f":"SUM(F62:F70)","v":0}]
[]
[null,"(f) Preferred Shares",null,"Preferred Shares"]
[null,"BSCR Rating 0","Schedule XXIA, Column D",{"$f":"SUMIFS('Schedule XXIA'!$H$8:$H$57,'Schedule XXIA'!$E$8:$E$57,$D$74,'Schedule XXIA'!$G$8:$G$57,B75)","v":0},0,{"$f":"MAX(0,(D75*E75))","v":0}]
[null,"BSCR Rating 1","Schedule XXIA, Column D",{"$f":"SUMIFS('Schedule XXIA'!$H$8:$H$57,'Schedule XXIA'!$E$8:$E$57,$D$74,'Schedule XXIA'!$G$8:$G$57,B76)","v":0},6.0000000000000001E-3,0]
[null,"BSCR Rating 2","Schedule XXIA, Column D",{"$f":"SUMIFS('Schedule XXIA'!$H$8:$H$57,'Schedule XXIA'!$E$8:$E$57,$D$74,'Schedule XXIA'!$G$8:$G$57,B77)","v":0},1.2E-2,0]
[null,"BSCR Rating 3","Schedule XXIA, Column D",{"$f":"SUMIFS('Schedule XXIA'!$H$8:$H$57,'Schedule XXIA'!$E$8:$E$57,$D$74,'Schedule XXIA'!$G$8:$G$57,B78)","v":0},0.02,0]
[null,"BSCR Rating 4","Schedule XXIA, Column D",{"$f":"SUMIFS('Schedule XXIA'!$H$8:$H$57,'Schedule XXIA'!$E$8:$E$57,$D$74,'Schedule XXIA'!$G$8:$G$57,B79)","v":0},0.04,0]
[null,"BSCR Rating 5","Schedule XXIA, Column D",{"$f":"SUMIFS('Schedule XXIA'!$H$8:$H$57,'Schedule XXIA'!$E$8:$E$57,$D$74,'Schedule XXIA'!$G$8:$G$57,B80)","v":0},0.11,0]
[null,"BSCR Rating 6","Schedule XXIA, Column D",{"$f":"SUMIFS('Schedule XXIA'!$H$8:$H$57,'Schedule XXIA'!$E$8:$E$57,$D$74,'Schedule XXIA'!$G$8:$G$57,B81)","v":0},0.25,0]
[null,"BSCR Rating 7","Schedule XXIA, Column D",{"$f":"SUMIFS('Schedule XXIA'!$H$8:$H$57,'Schedule XXIA'!$E$8:$E$57,$D$74,'Schedule XXIA'!$G$8:$G$57,B82)","v":0},0.35,0]
[null,"BSCR Rating 8","Schedule XXIA, Column D",{"$f":"SUMIFS('Schedule XXIA'!$H$8:$H$57,'Schedule XXIA'!$E$8:$E$57,$D$74,'Schedule XXIA'!$G$8:$G$57,B83)","v":0},0.35,0]
[]
[null,"(f)  SUBTOTAL - PREFERRED SHARES",null,{"$f":"SUM(D75:D83)","v":0},null,{"$f":"SUM(F75:F83)","v":0}]
[]
[null,"(g) Mortgage Loans",null,{"$f":"+'Schedule XXIA'!C65","v":"MortgageLoanTypes"}]
[null,"Insured/Guaranteed Mortgages","Schedule XXIA, Column D",{"$f":"SUMIFS('Schedule XXIA'!$H$8:$H$57,'Schedule XXIA'!$E$8:$E$57,'Schedule XXIA'!$C$65,'Schedule XXIA'!$F$8:$F$57,B88)","v":0},3.0000000000000001E-3,{"$f":"MAX(0,(D88*E88))","v":0}]
[null,"Other Commercial and Farm Mortgages","Schedule XXIA, Column D",{"$f":"SUMIFS('Schedule XXIA'!$H$8:$H$57,'Schedule XXIA'!$E$8:$E$57,'Schedule XXIA'!$C$65,'Schedule XXIA'!$F$8:$F$57,B89)","v":0},0.05,{"$f":"MAX(0,(D89*E89))","v":0}]
[null,"Other Residential Mortgages","Schedule XXIA, Column D",{"$f":"SUMIFS('Schedule XXIA'!$H$8:$H$57,'Schedule XXIA'!$E$8:$E$57,'Schedule XXIA'!$C$65,'Schedule XXIA'!$F$8:$F$57,B90)","v":0},1.4999999999999999E-2,{"$f":"MAX(0,(D90*E90))","v":0}]
[null,"Mortgages Not In Good Standing","Schedule XXIA, Column D",{"$f":"SUMIFS('Schedule XXIA'!$H$8:$H$57,'Schedule XXIA'!$E$8:$E$57,'Schedule XXIA'!$C$65,'Schedule XXIA'!$F$8:$F$57,B91)","v":0},0.25,{"$f":"MAX(0,(D91*E91))","v":0}]
[]
[null,"(g)  SUBTOTAL - MORTGAGE LOANS",null,{"$f":"SUM(D88:D91)","v":0},null,{"$f":"SUM(F88:F91)","v":0}]
[]
[null,"(h) Other Asset Classes"]
[null,"Infrastructure (Non-affiliate holdings, non-duration based)","Schedule XXIA, Column D",{"$f":"SUMIFS('Schedule XXIA'!$H$8:$H$57,'Schedule XXIA'!$E$8:$E$57,B96)","v":0},0.25,{"$f":"MAX(0,(D96*E96))","v":0}]
[null,"Listed Equity Securities in Developed Markets","Schedule XXIA, Column D",{"$f":"SUMIFS('Schedule XXIA'!$H$8:$H$57,'Schedule XXIA'!$E$8:$E$57,B97)","v":0},0.35,{"$f":"MAX(0,(D97*E97))","v":0}]
[null,"Other Equities","Schedule XXIA, Column D",{"$f":"SUMIFS('Schedule XXIA'!$H$8:$H$57,'Schedule XXIA'!$E$8:$E$57,B98)","v":0},0.45,{"$f":"MAX(0,(D98*E98))","v":0}]
[null,"Strategic Holdings","Schedule XXIA, Column D",{"$f":"SUMIFS('Schedule XXIA'!$H$8:$H$57,'Schedule XXIA'!$E$8:$E$57,B99)","v":0},0.2,0]
[null,"Duration Based","Schedule XXIA, Column D",{"$f":"SUMIFS('Schedule XXIA'!$H$8:$H$57,'Schedule XXIA'!$E$8:$E$57,B100)","v":0},0.2,0]
[null,"Letters of Credit","Schedule XXIA, Column D",{"$f":"SUMIFS('Schedule XXIA'!$H$8:$H$57,'Schedule XXIA'!$E$8:$E$57,B101)","v":0},0.2,0]
[null,"Advances to Affiliates - ","Schedule XXIA, Column D",{"$f":"SUMIFS('Schedule XXIA'!$H$8:$H$57,'Schedule XXIA'!$E$8:$E$57,B102)","v":0},0.05,0]
[null,"Policy Loans","Schedule XXIA, Column D",{"$f":"SUMIFS('Schedule XXIA'!$H$8:$H$57,'Schedule XXIA'!$E$8:$E$57,B103)","v":0},0,0]
[null,"Equity Real Estate 1","Schedule XXIA, Column D",{"$f":"SUMIFS('Schedule XXIA'!$H$8:$H$57,'Schedule XXIA'!$E$8:$E$57,B104)","v":0},0.1,0]
[null,"Equity Real Estate 2","Schedule XXIA, Column D",{"$f":"SUMIFS('Schedule XXIA'!$H$8:$H$57,'Schedule XXIA'!$E$8:$E$57,B105)","v":0},0.2,0]
[null,"Collateral Loans","Schedule XXIA, Column D",{"$f":"SUMIFS('Schedule XXIA'!$H$8:$H$57,'Schedule XXIA'!$E$8:$E$57,B106)","v":0},0.05,0]
[]
[null,"(h)  SUBTOTAL - OTHER ASSET CLASSES",null,{"$f":"SUM(D96:D106)","v":0},null,{"$f":"SUM(F96:F106)","v":0}]
[]
[null,"(i) Grandfathered - Other Asset Classes"]
[null,"Grandfathered - Common Stock and Mutual Funds","Schedule XXIA, Column D",{"$f":"SUMIFS('Schedule XXIA'!$H$8:$H$57,'Schedule XXIA'!$E$8:$E$57,B111)","v":0},0.14399999999999999,{"$f":"MAX(0,(D111*E111))","v":0}]
[null,"Grandfathered - Other Investments","Schedule XXIA, Column D",{"$f":"SUMIFS('Schedule XXIA'!$H$8:$H$57,'Schedule XXIA'!$E$8:$E$57,B112)","v":0},0.2,0]
[null,"Grandfathered - Investment in Affiliates – Unregulated entities that conduct ancillary services",null,{"$f":"SUMIFS('Schedule XXIA'!$H$8:$H$57,'Schedule XXIA'!$E$8:$E$57,B113)","v":0},0.05,0]
[null,"Grandfathered - Investment in Affiliates - Unregulated non-financial operating entities",null,{"$f":"SUMIFS('Schedule XXIA'!$H$8:$H$57,'Schedule XXIA'!$E$8:$E$57,B114)","v":0},0.2,0]
[null,"Grandfathered - Investment in Affiliates - Unregulated financial operating entities",null,{"$f":"SUMIFS('Schedule XXIA'!$H$8:$H$57,'Schedule XXIA'!$E$8:$E$57,B115)","v":0},0.55000000000000004,0]
[null,"Grandfathered - Investment in Affiliates - Regulated non-insurance financial operating entities",null,{"$f":"SUMIFS('Schedule XXIA'!$H$8:$H$57,'Schedule XXIA'!$E$8:$E$57,B116)","v":0},0.55000000000000004,0]
[null,"Grandfathered - Investment in Affiliates - Regulated insurance financial operating entities",null,{"$f":"SUMIFS('Schedule XXIA'!$H$8:$H$57,'Schedule XXIA'!$E$8:$E$57,B117)","v":0},0.2,0]
[null,"Grandfathered - Real Estate: Occupied by company","Schedule XXIA, Column D",{"$f":"SUMIFS('Schedule XXIA'!$H$8:$H$57,'Schedule XXIA'!$E$8:$E$57,B118)","v":0},0.1,0]
[null,"Grandfathered - Real Estate: Other properties","Schedule XXIA, Column D",{"$f":"SUMIFS('Schedule XXIA'!$H$8:$H$57,'Schedule XXIA'!$E$8:$E$57,B119)","v":0},0.2,0]
[]
[null,"(i)  SUBTOTAL - GRANDFATHERED OTHER ASSET CLASSES",null,{"$f":"SUM(D111:D119)","v":0},null,{"$f":"SUM(F111:F119)","v":0}]
[]
[null,"TOTAL CONCENTRATION RISK",null,{"$f":"D121+D108+D93+D85+D72+D59+D46+D33+D20","v":0},null,{"$f":"F121+F108+F93+F85+F72+F59+F46+F33+F20","v":0}]

{"sheet":"Interest Rate-Liquidity Risk","index":117,"n_rows":14,"n_cols":7,"rows_kept":14,"cut":false,"hidden":false,"merged":[[1,6,1,7]]}
[{"$f":"'Group Information'!C9","v":"Enter Parent Company Name"}]
[null,"Interest Rate / Liquidity Risk ($000)",null,null,null,null,{"$f":"HYPERLINK(\"#'Index'!A1\",\"Return to Index\")","v":"Return to Index"}]
[null,{"$f":"'Group Information'!C3","v":"2023-12-31"},null,"(1)","(2)","(3)","(4)"]
[null,null,null,null,"ESTIMATED","200 BASIS POINT"]
[null,"TYPE OF ",null,"MARKET","EFFECTIVE","INTEREST RATE","REQUIRED"]
[null,"SECURITY","STATEMENT SOURCE","VALUES","DURATION","INCREASE","CAPITAL"]
[]
[null,null,null,null,null,null,"(1) x (2) x (3)"]
[]
[null,"Bonds and Debentures - Other","Sch IIB EBS & IIC EBS Column (11), Line 1-9",{"$f":"SUM('Schedule IIB (EBS)'!X13:X21)+SUM('Schedule IIC (EBS)'!X13:X21)","v":0},{"$f":"IF('Schedule V'!$F$12-'Schedule V'!$F$14>=1,'Schedule V'!$F$12-'Schedule V'!$F$14,IF('Schedule V'!$F$14-'Schedule V'!$F$12>=1,'Schedule V'!$F$14-'Schedule V'!$F$12,1))","v":1},0.02,{"$f":"IF($E$10<0,0,$D$10*$E$10*$F$10)","v":0}]
[null,"Preferred Stocks ","Sch IIB EBS & IIC EBS Column (11), Line 18-25",{"$f":"SUM('Schedule IIB (EBS)'!X42:X49)+SUM('Schedule IIC (EBS)'!X42:X49)","v":0},{"$f":"IF('Schedule V'!$F$12-'Schedule V'!$F$14>=1,'Schedule V'!$F$12-'Schedule V'!$F$14,IF('Schedule V'!$F$14-'Schedule V'!$F$12>=1,'Schedule V'!$F$14-'Schedule V'!$F$12,1))","v":1},0.02,{"$f":"IF($E$11<0,0, $D$11*$E$11*$F$11)","v":0}]
[null,"Mortgage Loans","Sch IIB EBS & IIC EBS Column (11), Line 10-13",{"$f":"SUM('Schedule IIB (EBS)'!X22:X25)+SUM('Schedule IIC (EBS)'!X22:X25)","v":0},{"$f":"IF('Schedule V'!$F$12-'Schedule V'!$F$14>=1,'Schedule V'!$F$12-'Schedule V'!$F$14,IF('Schedule V'!$F$14-'Schedule V'!$F$12>=1,'Schedule V'!$F$14-'Schedule V'!$F$12,1))","v":1},0.02,{"$f":"IF($E$12<0,0, $D$12*$E$12*$F$12)","v":0}]
[]
[null,"TOTAL INTEREST RATE / LIQUIDITY RISK",null,{"$f":"SUM(D10:D12)","v":0},null,null,{"$f":"IF(SUM(G10:G12)>=0,SUM(G10:G12),0)","v":0}]

{"sheet":"Interest Rate-Liquidity (Rev.)","index":118,"n_rows":117,"n_cols":20,"rows_kept":117,"cut":false,"hidden":false,"merged":[[97,10,97,11],[97,14,97,15],[98,10,98,11],[98,14,98,15],[2,3,2,5],[5,2,5,8],[5,10,5,12],[6,2,6,3],[6,4,6,5],[6,7,6,8],[6,10,6,11]]}
["INTEREST RATE - LIQUIDITY RISK (REVISED)",null,null,null,null,null,null,null,null,null,null,null,null,null,null,null,null,null,null,{"$f":"HYPERLINK(\"#'Index'!A1\",\"Return to Index\")","v":"Return to Index"}]
[{"$f":"'Group Information'!C9","v":"Enter Parent Company Name"}]
["Interest Rate / Liquidity Risk",null,null,{"$f":"'Group Information'!C3","v":"2023-12-31"}]
[]
[null,null,-1,-2,-3,-4,null,-5,-6,null,-7,-8,-9,null,-10,-11,-12,null,-13,-14]
[null,null,"ASSETS",null,null,null,null,null,null,null,"LIABILITIES"]
[null,null,"Assets including derivatives qualifying as held for risk-mitigation purposes",null,"Derivatives not qualifying as held for risk-mitigation purposes",null,null,"Gross Position",null,null,"Without Management Actions",null,"With Management Actions"]
[null,"Currency","Market Value Before Shock","Market Value After Shock","Market Value Before Shock","Market Value After Shock",null,"Market Value Before Shock","Market Value After Shock",null,"Best Estimate Before Shock","Best Estimate After Shock","Best Estimate After Shock",null,"IR - Assets","IR Risk - TP without MA","IR Risk - TP with MA",null,"IR Risk - without MA","IR Risk - with MA"]
[]
[null,"IR Down- Exposures without Derivatives"]
[null,{"$f":"'Schedule XXIII'!C10","v":"United States Dollars"},{"$f":"'Schedule XXIII'!E10","v":0},{"$f":"'Schedule XXIII'!F10","v":0},null,null,null,{"$f":"C11+E11","v":0},{"$f":"D11+F11","v":0},null,{"$f":"'Schedule XXIII'!H10","v":0},{"$f":"'Schedule XXIII'!I10","v":0},{"$f":"'Schedule XXIII'!K10","v":0},null,{"$f":"C11-D11","v":0},{"$f":"L11-K11","v":0},{"$f":"M11-K11","v":0},null,{"$f":"$O11+P11","v":0},{"$f":"$O11+Q11","v":0}]
[null,{"$f":"'Schedule XXIII'!C11","v":"Euro"},{"$f":"'Schedule XXIII'!E11","v":0},{"$f":"'Schedule XXIII'!F11","v":0},null,null,null,{"$f":"C12+E12","v":0},0,null,{"$f":"'Schedule XXIII'!H11","v":0},{"$f":"'Schedule XXIII'!I11","v":0},{"$f":"'Schedule XXIII'!K11","v":0},null,0,0,{"$f":"M12-K12","v":0},null,{"$f":"$O12+P12","v":0},0]
[null,{"$f":"'Schedule XXIII'!C12","v":"United Kingdom Pounds"},{"$f":"'Schedule XXIII'!E12","v":0},{"$f":"'Schedule XXIII'!F12","v":0},null,null,null,0,0,null,{"$f":"'Schedule XXIII'!H12","v":0},{"$f":"'Schedule XXIII'!I12","v":0},{"$f":"'Schedule XXIII'!K12","v":0},null,0,0,0,null,0,0]
[null,{"$f":"'Schedule XXIII'!C13","v":"Japan Yen"},{"$f":"'Schedule XXIII'!E13","v":0},{"$f":"'Schedule XXIII'!F13","v":0},null,null,null,0,0,null,{"$f":"'Schedule XXIII'!H13","v":0},{"$f":"'Schedule XXIII'!I13","v":0},{"$f":"'Schedule XXIII'!K13","v":0},null,0,0,0,null,0,0]
[null,{"$f":"'Schedule XXIII'!C14","v":"Canada Dollars"},{"$f":"'Schedule XXIII'!E14","v":0},{"$f":"'Schedule XXIII'!F14","v":0},null,null,null,0,0,null,{"$f":"'Schedule XXIII'!H14","v":0},{"$f":"'Schedule XXIII'!I14","v":0},{"$f":"'Schedule XXIII'!K14","v":0},null,0,0,0,null,0,0]
[null,{"$f":"'Schedule XXIII'!C15","v":"Swiss Francs"},{"$f":"'Schedule XXIII'!E15","v":0},{"$f":"'Schedule XXIII'!F15","v":0},null,null,null,0,0,null,{"$f":"'Schedule XXIII'!H15","v":0},{"$f":"'Schedule XXIII'!I15","v":0},{"$f":"'Schedule XXIII'!K15","v":0},null,0,0,0,null,0,0]
[null,{"$f":"'Schedule XXIII'!C16","v":"Australia Dollar"},{"$f":"'Schedule XXIII'!E16","v":0},{"$f":"'Schedule XXIII'!F16","v":0},null,null,null,0,0,null,{"$f":"'Schedule XXIII'!H16","v":0},{"$f":"'Schedule XXIII'!I16","v":0},{"$f":"'Schedule XXIII'!K16","v":0},null,0,0,0,null,0,0]
[null,{"$f":"'Schedule XXIII'!C17","v":"New Zealand Dollar"},{"$f":"'Schedule XXIII'!E17","v":0},{"$f":"'Schedule XXIII'!F17","v":0},null,null,null,0,0,null,{"$f":"'Schedule XXIII'!H17","v":0},{"$f":"'Schedule XXIII'!I17","v":0},{"$f":"'Schedule XXIII'!K17","v":0},null,0,0,0,null,0,0]
[null,{"$f":"'Schedule XXIII'!C18","v":"Other currency 1"},{"$f":"'Schedule XXIII'!E18","v":0},{"$f":"'Schedule XXIII'!F18","v":0},null,null,null,0,0,null,{"$f":"'Schedule XXIII'!H18","v":0},{"$f":"'Schedule XXIII'!I18","v":0},{"$f":"'Schedule XXIII'!K18","v":0},null,0,0,0,null,0,0]
[null,{"$f":"'Schedule XXIII'!C19","v":"Other currency 2"},{"$f":"'Schedule XXIII'!E19","v":0},{"$f":"'Schedule XXIII'!F19","v":0},null,null,null,0,0,null,{"$f":"'Schedule XXIII'!H19","v":0},{"$f":"'Schedule XXIII'!I19","v":0},{"$f":"'Schedule XXIII'!K19","v":0},null,0,0,0,null,0,0]
[null,{"$f":"'Schedule XXIII'!C20","v":"Other currency 3"},{"$f":"'Schedule XXIII'!E20","v":0},{"$f":"'Schedule XXIII'!F20","v":0},null,null,null,0,0,null,{"$f":"'Schedule XXIII'!H20","v":0},{"$f":"'Schedule XXIII'!I20","v":0},{"$f":"'Schedule XXIII'!K20","v":0},null,0,0,0,null,0,0]
[null,{"$f":"'Schedule XXIII'!C21","v":"Other currency 4"},{"$f":"'Schedule XXIII'!E21","v":0},{"$f":"'Schedule XXIII'!F21","v":0},null,null,null,0,0,null,{"$f":"'Schedule XXIII'!H21","v":0},{"$f":"'Schedule XXIII'!I21","v":0},{"$f":"'Schedule XXIII'!K21","v":0},null,0,0,0,null,0,0]
[null,{"$f":"'Schedule XXIII'!C22","v":"Other currency 5"},{"$f":"'Schedule XXIII'!E22","v":0},{"$f":"'Schedule XXIII'!F22","v":0},null,null,null,0,0,null,{"$f":"'Schedule XXIII'!H22","v":0},{"$f":"'Schedule XXIII'!I22","v":0},{"$f":"'Schedule XXIII'!K22","v":0},null,0,0,0,null,0,0]
[null,{"$f":"'Schedule XXIII'!C23","v":"Other currency 6"},{"$f":"'Schedule XXIII'!E23","v":0},{"$f":"'Schedule XXIII'!F23","v":0},null,null,null,0,0,null,{"$f":"'Schedule XXIII'!H23","v":0},{"$f":"'Schedule XXIII'!I23","v":0},{"$f":"'Schedule XXIII'!K23","v":0},null,0,0,0,null,0,0]
[null,{"$f":"'Schedule XXIII'!C24","v":"Other currency 7"},{"$f":"'Schedule XXIII'!E24","v":0},{"$f":"'Schedule XXIII'!F24","v":0},null,null,null,0,0,null,{"$f":"'Schedule XXIII'!H24","v":0},{"$f":"'Schedule XXIII'!I24","v":0},{"$f":"'Schedule XXIII'!K24","v":0},null,0,0,0,null,0,0]
[null,{"$f":"'Schedule XXIII'!C25","v":"Other currency 8"},{"$f":"'Schedule XXIII'!E25","v":0},{"$f":"'Schedule XXIII'!F25","v":0},null,null,null,0,0,null,{"$f":"'Schedule XXIII'!H25","v":0},{"$f":"'Schedule XXIII'!I25","v":0},{"$f":"'Schedule XXIII'!K25","v":0},null,0,0,0,null,0,0]
[null,{"$f":"'Schedule XXIII'!C26","v":"Other currency 9"},{"$f":"'Schedule XXIII'!E26","v":0},{"$f":"'Schedule XXIII'!F26","v":0},null,null,null,0,0,null,{"$f":"'Schedule XXIII'!H26","v":0},{"$f":"'Schedule XXIII'!I26","v":0},{"$f":"'Schedule XXIII'!K26","v":0},null,0,0,0,null,0,0]
[null,{"$f":"'Schedule XXIII'!C27","v":"Other currency 10"},{"$f":"'Schedule XXIII'!E27","v":0},{"$f":"'Schedule XXIII'!F27","v":0},null,null,null,{"$f":"C28+E28","v":0},{"$f":"D28+F28","v":0},null,{"$f":"'Schedule XXIII'!H27","v":0},{"$f":"'Schedule XXIII'!I27","v":0},{"$f":"'Schedule XXIII'!K27","v":0},null,0,0,0,null,0,0]
[null,"Total IR - Other",{"$f":"SUM(C11:C28)","v":0},{"$f":"SUM(D11:D28)","v":0},{"$f":"SUM(E11:E28)","v":0},{"$f":"SUM(F11:F28)","v":0},null,{"$f":"SUM(H11:H28)","v":0},{"$f":"SUM(I11:I28)","v":0},null,{"$f":"SUM(K11:K28)","v":0},{"$f":"SUM(L11:L28)","v":0},{"$f":"SUM(M11:M28)","v":0},null,{"$f":"SUM(O11:O28)","v":0},{"$f":"SUM(P11:P28)","v":0},{"$f":"SUM(Q11:Q28)","v":0},null,{"$f":"SUM(S11:S28)","v":0},{"$f":"SUM(T11:T28)","v":0}]
[]
[null,"IR Down- Derivatives"]
[null,{"$f":"'Schedule XXIII'!C10","v":"United States Dollars"},{"$f":"'Schedule XXIII'!M10","v":0},{"$f":"'Schedule XXIII'!N10","v":0},{"$f":"'Schedule XXIII'!P10","v":0},{"$f":"'Schedule XXIII'!Q10","v":0},null,{"$f":"C32+E32","v":0},{"$f":"D32+F32","v":0},null,{"$f":"'Schedule XXIII'!S10","v":0},{"$f":"'Schedule XXIII'!T10","v":0},{"$f":"'Schedule XXIII'!V10","v":0},null,{"$f":"C32-D32 + MAX(0,E32-F32)","v":0},{"$f":"L32-K32","v":0},{"$f":"M32-K32","v":0},null,{"$f":"$O32+P32","v":0},{"$f":"$O32+Q32","v":0}]
[null,{"$f":"'Schedule XXIII'!C11","v":"Euro"},{"$f":"'Schedule XXIII'!M11","v":0},{"$f":"'Schedule XXIII'!N11","v":0},{"$f":"'Schedule XXIII'!P11","v":0},{"$f":"'Schedule XXIII'!Q11","v":0},null,{"$f":"C33+E33","v":0},0,null,{"$f":"'Schedule XXIII'!S11","v":0},{"$f":"'Schedule XXIII'!T11","v":0},{"$f":"'Schedule XXIII'!V11","v":0},null,0,0,0,null,{"$f":"$O33+P33","v":0},0]
[null,{"$f":"'Schedule XXIII'!C12","v":"United Kingdom Pounds"},{"$f":"'Schedule XXIII'!M12","v":0},{"$f":"'Schedule XXIII'!N12","v":0},{"$f":"'Schedule XXIII'!P12","v":0},{"$f":"'Schedule XXIII'!Q12","v":0},null,0,0,null,{"$f":"'Schedule XXIII'!S12","v":0},{"$f":"'Schedule XXIII'!T12","v":0},{"$f":"'Schedule XXIII'!V12","v":0},null,0,0,0,null,0,0]
[null,{"$f":"'Schedule XXIII'!C13","v":"Japan Yen"},{"$f":"'Schedule XXIII'!M13","v":0},{"$f":"'Schedule XXIII'!N13","v":0},{"$f":"'Schedule XXIII'!P13","v":0},{"$f":"'Schedule XXIII'!Q13","v":0},null,0,0,null,{"$f":"'Schedule XXIII'!S13","v":0},{"$f":"'Schedule XXIII'!T13","v":0},{"$f":"'Schedule XXIII'!V13","v":0},null,0,0,0,null,0,0]
[null,{"$f":"'Schedule XXIII'!C14","v":"Canada Dollars"},{"$f":"'Schedule XXIII'!M14","v":0},{"$f":"'Schedule XXIII'!N14","v":0},{"$f":"'Schedule XXIII'!P14","v":0},{"$f":"'Schedule XXIII'!Q14","v":0},null,0,0,null,{"$f":"'Schedule XXIII'!S14","v":0},{"$f":"'Schedule XXIII'!T14","v":0},{"$f":"'Schedule XXIII'!V14","v":0},null,0,0,0,null,0,0]
[null,{"$f":"'Schedule XXIII'!C15","v":"Swiss Francs"},{"$f":"'Schedule XXIII'!M15","v":0},{"$f":"'Schedule XXIII'!N15","v":0},{"$f":"'Schedule XXIII'!P15","v":0},{"$f":"'Schedule XXIII'!Q15","v":0},null,0,0,null,{"$f":"'Schedule XXIII'!S15","v":0},{"$f":"'Schedule XXIII'!T15","v":0},{"$f":"'Schedule XXIII'!V15","v":0},null,0,0,0,null,0,0]
[null,{"$f":"'Schedule XXIII'!C16","v":"Australia Dollar"},{"$f":"'Schedule XXIII'!M16","v":0},{"$f":"'Schedule XXIII'!N16","v":0},{"$f":"'Schedule XXIII'!P16","v":0},{"$f":"'Schedule XXIII'!Q16","v":0},null,0,0,null,{"$f":"'Schedule XXIII'!S16","v":0},{"$f":"'Schedule XXIII'!T16","v":0},{"$f":"'Schedule XXIII'!V16","v":0},null,0,0,0,null,0,0]
[null,{"$f":"'Schedule XXIII'!C17","v":"New Zealand Dollar"},{"$f":"'Schedule XXIII'!M17","v":0},{"$f":"'Schedule XXIII'!N17","v":0},{"$f":"'Schedule XXIII'!P17","v":0},{"$f":"'Schedule XXIII'!Q17","v":0},null,0,0,null,{"$f":"'Schedule XXIII'!S17","v":0},{"$f":"'Schedule XXIII'!T17","v":0},{"$f":"'Schedule XXIII'!V17","v":0},null,0,0,0,null,0,0]
[null,{"$f":"'Schedule XXIII'!C18","v":"Other currency 1"},{"$f":"'Schedule XXIII'!M18","v":0},{"$f":"'Schedule XXIII'!N18","v":0},{"$f":"'Schedule XXIII'!P18","v":0},{"$f":"'Schedule XXIII'!Q18","v":0},null,0,0,null,{"$f":"'Schedule XXIII'!S18","v":0},{"$f":"'Schedule XXIII'!T18","v":0},{"$f":"'Schedule XXIII'!V18","v":0},null,0,0,0,null,0,0]
[null,{"$f":"'Schedule XXIII'!C19","v":"Other currency 2"},{"$f":"'Schedule XXIII'!M19","v":0},{"$f":"'Schedule XXIII'!N19","v":0},{"$f":"'Schedule XXIII'!P19","v":0},{"$f":"'Schedule XXIII'!Q19","v":0},null,0,0,null,{"$f":"'Schedule XXIII'!S19","v":0},{"$f":"'Schedule XXIII'!T19","v":0},{"$f":"'Schedule XXIII'!V19","v":0},null,0,0,0,null,0,0]
[null,{"$f":"'Schedule XXIII'!C20","v":"Other currency 3"},{"$f":"'Schedule XXIII'!M20","v":0},{"$f":"'Schedule XXIII'!N20","v":0},{"$f":"'Schedule XXIII'!P20","v":0},{"$f":"'Schedule XXIII'!Q20","v":0},null,0,0,null,{"$f":"'Schedule XXIII'!S20","v":0},{"$f":"'Schedule XXIII'!T20","v":0},{"$f":"'Schedule XXIII'!V20","v":0},null,0,0,0,null,0,0]
[null,{"$f":"'Schedule XXIII'!C21","v":"Other currency 4"},{"$f":"'Schedule XXIII'!M21","v":0},{"$f":"'Schedule XXIII'!N21","v":0},{"$f":"'Schedule XXIII'!P21","v":0},{"$f":"'Schedule XXIII'!Q21","v":0},null,0,0,null,{"$f":"'Schedule XXIII'!S21","v":0},{"$f":"'Schedule XXIII'!T21","v":0},{"$f":"'Schedule XXIII'!V21","v":0},null,0,0,0,null,0,0]
[null,{"$f":"'Schedule XXIII'!C22","v":"Other currency 5"},{"$f":"'Schedule XXIII'!M22","v":0},{"$f":"'Schedule XXIII'!N22","v":0},{"$f":"'Schedule XXIII'!P22","v":0},{"$f":"'Schedule XXIII'!Q22","v":0},null,0,0,null,{"$f":"'Schedule XXIII'!S22","v":0},{"$f":"'Schedule XXIII'!T22","v":0},{"$f":"'Schedule XXIII'!V22","v":0},null,0,0,0,null,0,0]
[null,{"$f":"'Schedule XXIII'!C23","v":"Other currency 6"},{"$f":"'Schedule XXIII'!M23","v":0},{"$f":"'Schedule XXIII'!N23","v":0},{"$f":"'Schedule XXIII'!P23","v":0},{"$f":"'Schedule XXIII'!Q23","v":0},null,0,0,null,{"$f":"'Schedule XXIII'!S23","v":0},{"$f":"'Schedule XXIII'!T23","v":0},{"$f":"'Schedule XXIII'!V23","v":0},null,0,0,0,null,0,0]
[null,{"$f":"'Schedule XXIII'!C24","v":"Other currency 7"},{"$f":"'Schedule XXIII'!M24","v":0},{"$f":"'Schedule XXIII'!N24","v":0},{"$f":"'Schedule XXIII'!P24","v":0},{"$f":"'Schedule XXIII'!Q24","v":0},null,0,0,null,{"$f":"'Schedule XXIII'!S24","v":0},{"$f":"'Schedule XXIII'!T24","v":0},{"$f":"'Schedule XXIII'!V24","v":0},null,0,0,0,null,0,0]
[null,{"$f":"'Schedule XXIII'!C25","v":"Other currency 8"},{"$f":"'Schedule XXIII'!M25","v":0},{"$f":"'Schedule XXIII'!N25","v":0},{"$f":"'Schedule XXIII'!P25","v":0},{"$f":"'Schedule XXIII'!Q25","v":0},null,0,0,null,{"$f":"'Schedule XXIII'!S25","v":0},{"$f":"'Schedule XXIII'!T25","v":0},{"$f":"'Schedule XXIII'!V25","v":0},null,0,0,0,null,0,0]
[null,{"$f":"'Schedule XXIII'!C26","v":"Other currency 9"},{"$f":"'Schedule XXIII'!M26","v":0},{"$f":"'Schedule XXIII'!N26","v":0},{"$f":"'Schedule XXIII'!P26","v":0},{"$f":"'Schedule XXIII'!Q26","v":0},null,0,0,null,{"$f":"'Schedule XXIII'!S26","v":0},{"$f":"'Schedule XXIII'!T26","v":0},{"$f":"'Schedule XXIII'!V26","v":0},null,0,0,0,null,0,0]
[null,{"$f":"'Schedule XXIII'!C27","v":"Other currency 10"},{"$f":"'Schedule XXIII'!M27","v":0},{"$f":"'Schedule XXIII'!N27","v":0},{"$f":"'Schedule XXIII'!P27","v":0},{"$f":"'Schedule XXIII'!Q27","v":0},null,0,0,null,{"$f":"'Schedule XXIII'!S27","v":0},{"$f":"'Schedule XXIII'!T27","v":0},{"$f":"'Schedule XXIII'!V27","v":0},null,0,0,0,null,0,0]
[null,"Total IR - Derivatives",{"$f":"SUM(C32:C49)","v":0},{"$f":"SUM(D32:D49)","v":0},{"$f":"SUM(E32:E49)","v":0},{"$f":"SUM(F32:F49)","v":0},null,{"$f":"SUM(H32:H49)","v":0},{"$f":"SUM(I32:I49)","v":0},null,{"$f":"SUM(K32:K49)","v":0},{"$f":"SUM(L32:L49)","v":0},{"$f":"SUM(M32:M49)","v":0},null,{"$f":"SUM(O32:O49)","v":0},{"$f":"SUM(P32:P49)","v":0},{"$f":"SUM(Q32:Q49)","v":0},null,{"$f":"SUM(S32:S49)","v":0},{"$f":"SUM(T32:T49)","v":0}]
[null,"Total IR - DOWN",{"$f":"C29+C50","v":0},{"$f":"D29+D50","v":0},{"$f":"E29+E50","v":0},{"$f":"F29+F50","v":0},null,{"$f":"H29+H50","v":0},{"$f":"I29+I50","v":0},null,{"$f":"K29+K50","v":0},{"$f":"L29+L50","v":0},{"$f":"M29+M50","v":0},null,{"$f":"O29+O50","v":0},{"$f":"P29+P50","v":0},{"$f":"Q29+Q50","v":0},null,{"$f":"MAX(0,S29+S50)","v":0},{"$f":"MAX(0,T29+T50)","v":0}]
[]
[null,"IR UP - Exposures without Derivatives"]
[null,{"$f":"'Schedule XXIII'!C35","v":"United States Dollars"},{"$f":"'Schedule XXIII'!E35","v":0},{"$f":"'Schedule XXIII'!F35","v":0},null,null,null,{"$f":"C54+E54","v":0},{"$f":"D54+F54","v":0},null,{"$f":"'Schedule XXIII'!H35","v":0},{"$f":"'Schedule XXIII'!I35","v":0},{"$f":"'Schedule XXIII'!K35","v":0},null,{"$f":"C54-D54","v":0},{"$f":"L54-K54","v":0},{"$f":"M54-K54","v":0},null,{"$f":"$O54+P54","v":0},{"$f":"$O54+Q54","v":0}]
[null,{"$f":"'Schedule XXIII'!C36","v":"Euro"},{"$f":"'Schedule XXIII'!E36","v":0},{"$f":"'Schedule XXIII'!F36","v":0},null,null,null,{"$f":"C55+E55","v":0},0,null,{"$f":"'Schedule XXIII'!H36","v":0},{"$f":"'Schedule XXIII'!I36","v":0},{"$f":"'Schedule XXIII'!K36","v":0},null,0,0,0,null,{"$f":"$O55+P55","v":0},0]
[null,{"$f":"'Schedule XXIII'!C37","v":"United Kingdom Pounds"},{"$f":"'Schedule XXIII'!E37","v":0},{"$f":"'Schedule XXIII'!F37","v":0},null,null,null,0,0,null,{"$f":"'Schedule XXIII'!H37","v":0},{"$f":"'Schedule XXIII'!I37","v":0},{"$f":"'Schedule XXIII'!K37","v":0},null,0,0,0,null,0,0]
[null,{"$f":"'Schedule XXIII'!C38","v":"Japan Yen"},{"$f":"'Schedule XXIII'!E38","v":0},{"$f":"'Schedule XXIII'!F38","v":0},null,null,null,0,0,null,{"$f":"'Schedule XXIII'!H38","v":0},{"$f":"'Schedule XXIII'!I38","v":0},{"$f":"'Schedule XXIII'!K38","v":0},null,0,0,0,null,0,0]
[null,{"$f":"'Schedule XXIII'!C39","v":"Canada Dollars"},{"$f":"'Schedule XXIII'!E39","v":0},{"$f":"'Schedule XXIII'!F39","v":0},null,null,null,0,0,null,{"$f":"'Schedule XXIII'!H39","v":0},{"$f":"'Schedule XXIII'!I39","v":0},{"$f":"'Schedule XXIII'!K39","v":0},null,0,0,0,null,0,0]
[null,{"$f":"'Schedule XXIII'!C40","v":"Swiss Francs"},{"$f":"'Schedule XXIII'!E40","v":0},{"$f":"'Schedule XXIII'!F40","v":0},null,null,null,0,0,null,{"$f":"'Schedule XXIII'!H40","v":0},{"$f":"'Schedule XXIII'!I40","v":0},{"$f":"'Schedule XXIII'!K40","v":0},null,0,0,0,null,0,0]
[null,{"$f":"'Schedule XXIII'!C41","v":"Australia Dollar"},{"$f":"'Schedule XXIII'!E41","v":0},{"$f":"'Schedule XXIII'!F41","v":0},null,null,null,0,0,null,{"$f":"'Schedule XXIII'!H41","v":0},{"$f":"'Schedule XXIII'!I41","v":0},{"$f":"'Schedule XXIII'!K41","v":0},null,0,0,0,null,0,0]
[null,{"$f":"'Schedule XXIII'!C42","v":"New Zealand Dollar"},{"$f":"'Schedule XXIII'!E42","v":0},{"$f":"'Schedule XXIII'!F42","v":0},null,null,null,0,0,null,{"$f":"'Schedule XXIII'!H42","v":0},{"$f":"'Schedule XXIII'!I42","v":0},{"$f":"'Schedule XXIII'!K42","v":0},null,0,0,0,null,0,0]
[null,{"$f":"'Schedule XXIII'!C43","v":"Other currency 1"},{"$f":"'Schedule XXIII'!E43","v":0},{"$f":"'Schedule XXIII'!F43","v":0},null,null,null,0,0,null,{"$f":"'Schedule XXIII'!H43","v":0},{"$f":"'Schedule XXIII'!I43","v":0},{"$f":"'Schedule XXIII'!K43","v":0},null,0,0,0,null,0,0]
[null,{"$f":"'Schedule XXIII'!C44","v":"Other currency 2"},{"$f":"'Schedule XXIII'!E44","v":0},{"$f":"'Schedule XXIII'!F44","v":0},null,null,null,0,0,null,{"$f":"'Schedule XXIII'!H44","v":0},{"$f":"'Schedule XXIII'!I44","v":0},{"$f":"'Schedule XXIII'!K44","v":0},null,0,0,0,null,0,0]
[null,{"$f":"'Schedule XXIII'!C45","v":"Other currency 3"},{"$f":"'Schedule XXIII'!E45","v":0},{"$f":"'Schedule XXIII'!F45","v":0},null,null,null,0,0,null,{"$f":"'Schedule XXIII'!H45","v":0},{"$f":"'Schedule XXIII'!I45","v":0},{"$f":"'Schedule XXIII'!K45","v":0},null,0,0,0,null,0,0]
[null,{"$f":"'Schedule XXIII'!C46","v":"Other currency 4"},{"$f":"'Schedule XXIII'!E46","v":0},{"$f":"'Schedule XXIII'!F46","v":0},null,null,null,0,0,null,{"$f":"'Schedule XXIII'!H46","v":0},{"$f":"'Schedule XXIII'!I46","v":0},{"$f":"'Schedule XXIII'!K46","v":0},null,0,0,0,null,0,0]
[null,{"$f":"'Schedule XXIII'!C47","v":"Other currency 5"},{"$f":"'Schedule XXIII'!E47","v":0},{"$f":"'Schedule XXIII'!F47","v":0},null,null,null,0,0,null,{"$f":"'Schedule XXIII'!H47","v":0},{"$f":"'Schedule XXIII'!I47","v":0},{"$f":"'Schedule XXIII'!K47","v":0},null,0,0,0,null,0,0]
[null,{"$f":"'Schedule XXIII'!C48","v":"Other currency 6"},{"$f":"'Schedule XXIII'!E48","v":0},{"$f":"'Schedule XXIII'!F48","v":0},null,null,null,0,0,null,{"$f":"'Schedule XXIII'!H48","v":0},{"$f":"'Schedule XXIII'!I48","v":0},{"$f":"'Schedule XXIII'!K48","v":0},null,0,0,0,null,0,0]
[null,{"$f":"'Schedule XXIII'!C49","v":"Other currency 7"},{"$f":"'Schedule XXIII'!E49","v":0},{"$f":"'Schedule XXIII'!F49","v":0},null,null,null,0,0,null,{"$f":"'Schedule XXIII'!H49","v":0},{"$f":"'Schedule XXIII'!I49","v":0},{"$f":"'Schedule XXIII'!K49","v":0},null,0,0,0,null,0,0]
[null,{"$f":"'Schedule XXIII'!C50","v":"Other currency 8"},{"$f":"'Schedule XXIII'!E50","v":0},{"$f":"'Schedule XXIII'!F50","v":0},null,null,null,0,0,null,{"$f":"'Schedule XXIII'!H50","v":0},{"$f":"'Schedule XXIII'!I50","v":0},{"$f":"'Schedule XXIII'!K50","v":0},null,0,0,0,null,0,0]
[null,{"$f":"'Schedule XXIII'!C51","v":"Other currency 9"},{"$f":"'Schedule XXIII'!E51","v":0},{"$f":"'Schedule XXIII'!F51","v":0},null,null,null,0,0,null,{"$f":"'Schedule XXIII'!H51","v":0},{"$f":"'Schedule XXIII'!I51","v":0},{"$f":"'Schedule XXIII'!K51","v":0},null,0,0,0,null,0,0]
[null,{"$f":"'Schedule XXIII'!C52","v":"Other currency 10"},{"$f":"'Schedule XXIII'!E52","v":0},{"$f":"'Schedule XXIII'!F52","v":0},null,null,null,0,0,null,{"$f":"'Schedule XXIII'!H52","v":0},{"$f":"'Schedule XXIII'!I52","v":0},{"$f":"'Schedule XXIII'!K52","v":0},null,0,0,0,null,0,0]
[null,"Total IR - Other",{"$f":"SUM(C54:C71)","v":0},{"$f":"SUM(D54:D71)","v":0},{"$f":"SUM(E54:E71)","v":0},{"$f":"SUM(F54:F71)","v":0},null,{"$f":"SUM(H54:H71)","v":0},{"$f":"SUM(I54:I71)","v":0},null,{"$f":"SUM(K54:K71)","v":0},{"$f":"SUM(L54:L71)","v":0},{"$f":"SUM(M54:M71)","v":0},null,{"$f":"SUM(O54:O71)","v":0},{"$f":"SUM(P54:P71)","v":0},{"$f":"SUM(Q54:Q71)","v":0},null,{"$f":"SUM(S54:S71)","v":0},{"$f":"SUM(T54:T71)","v":0}]
[]
[null,"IR Up - Derivatives"]
[null,{"$f":"'Schedule XXIII'!C35","v":"United States Dollars"},{"$f":"'Schedule XXIII'!M35","v":0},{"$f":"'Schedule XXIII'!N35","v":0},{"$f":"'Schedule XXIII'!P35","v":0},{"$f":"'Schedule XXIII'!Q35","v":0},null,{"$f":"C75+E75","v":0},{"$f":"D75+F75","v":0},null,{"$f":"'Schedule XXIII'!S35","v":0},{"$f":"'Schedule XXIII'!T35","v":0},{"$f":"'Schedule XXIII'!V35","v":0},null,{"$f":"C75-D75 + MAX(0,E75-F75)","v":0},{"$f":"L75-K75","v":0},{"$f":"M75-K75","v":0},null,{"$f":"$O75+P75","v":0},{"$f":"$O75+Q75","v":0}]
[null,{"$f":"'Schedule XXIII'!C36","v":"Euro"},{"$f":"'Schedule XXIII'!M36","v":0},{"$f":"'Schedule XXIII'!N36","v":0},{"$f":"'Schedule XXIII'!P36","v":0},{"$f":"'Schedule XXIII'!Q36","v":0},null,{"$f":"C76+E76","v":0},0,null,{"$f":"'Schedule XXIII'!S36","v":0},{"$f":"'Schedule XXIII'!T36","v":0},{"$f":"'Schedule XXIII'!V36","v":0},null,{"$f":"C76-D76 + MAX(0,E76-F76)","v":0},0,0,null,{"$f":"$O76+P76","v":0},0]
[null,{"$f":"'Schedule XXIII'!C37","v":"United Kingdom Pounds"},{"$f":"'Schedule XXIII'!M37","v":0},{"$f":"'Schedule XXIII'!N37","v":0},{"$f":"'Schedule XXIII'!P37","v":0},{"$f":"'Schedule XXIII'!Q37","v":0},null,0,0,null,{"$f":"'Schedule XXIII'!S37","v":0},{"$f":"'Schedule XXIII'!T37","v":0},{"$f":"'Schedule XXIII'!V37","v":0},null,{"$f":"C77-D77 + MAX(0,E77-F77)","v":0},0,0,null,0,0]
[null,{"$f":"'Schedule XXIII'!C38","v":"Japan Yen"},{"$f":"'Schedule XXIII'!M38","v":0},{"$f":"'Schedule XXIII'!N38","v":0},{"$f":"'Schedule XXIII'!P38","v":0},{"$f":"'Schedule XXIII'!Q38","v":0},null,0,0,null,{"$f":"'Schedule XXIII'!S38","v":0},{"$f":"'Schedule XXIII'!T38","v":0},{"$f":"'Schedule XXIII'!V38","v":0},null,{"$f":"C78-D78 + MAX(0,E78-F78)","v":0},0,0,null,0,0]
[null,{"$f":"'Schedule XXIII'!C39","v":"Canada Dollars"},{"$f":"'Schedule XXIII'!M39","v":0},{"$f":"'Schedule XXIII'!N39","v":0},{"$f":"'Schedule XXIII'!P39","v":0},{"$f":"'Schedule XXIII'!Q39","v":0},null,0,0,null,{"$f":"'Schedule XXIII'!S39","v":0},{"$f":"'Schedule XXIII'!T39","v":0},{"$f":"'Schedule XXIII'!V39","v":0},null,{"$f":"C79-D79 + MAX(0,E79-F79)","v":0},0,0,null,0,0]
[null,{"$f":"'Schedule XXIII'!C40","v":"Swiss Francs"},{"$f":"'Schedule XXIII'!M40","v":0},{"$f":"'Schedule XXIII'!N40","v":0},{"$f":"'Schedule XXIII'!P40","v":0},{"$f":"'Schedule XXIII'!Q40","v":0},null,0,0,null,{"$f":"'Schedule XXIII'!S40","v":0},{"$f":"'Schedule XXIII'!T40","v":0},{"$f":"'Schedule XXIII'!V40","v":0},null,{"$f":"C80-D80 + MAX(0,E80-F80)","v":0},0,0,null,0,0]
[null,{"$f":"'Schedule XXIII'!C41","v":"Australia Dollar"},{"$f":"'Schedule XXIII'!M41","v":0},{"$f":"'Schedule XXIII'!N41","v":0},{"$f":"'Schedule XXIII'!P41","v":0},{"$f":"'Schedule XXIII'!Q41","v":0},null,0,0,null,{"$f":"'Schedule XXIII'!S41","v":0},{"$f":"'Schedule XXIII'!T41","v":0},{"$f":"'Schedule XXIII'!V41","v":0},null,0,0,0,null,0,0]
[null,{"$f":"'Schedule XXIII'!C42","v":"New Zealand Dollar"},{"$f":"'Schedule XXIII'!M42","v":0},{"$f":"'Schedule XXIII'!N42","v":0},{"$f":"'Schedule XXIII'!P42","v":0},{"$f":"'Schedule XXIII'!Q42","v":0},null,0,0,null,{"$f":"'Schedule XXIII'!S42","v":0},{"$f":"'Schedule XXIII'!T42","v":0},{"$f":"'Schedule XXIII'!V42","v":0},null,0,0,0,null,0,0]
[null,{"$f":"'Schedule XXIII'!C43","v":"Other currency 1"},{"$f":"'Schedule XXIII'!M43","v":0},{"$f":"'Schedule XXIII'!N43","v":0},{"$f":"'Schedule XXIII'!P43","v":0},{"$f":"'Schedule XXIII'!Q43","v":0},null,0,0,null,{"$f":"'Schedule XXIII'!S43","v":0},{"$f":"'Schedule XXIII'!T43","v":0},{"$f":"'Schedule XXIII'!V43","v":0},null,0,0,0,null,0,0]
[null,{"$f":"'Schedule XXIII'!C44","v":"Other currency 2"},{"$f":"'Schedule XXIII'!M44","v":0},{"$f":"'Schedule XXIII'!N44","v":0},{"$f":"'Schedule XXIII'!P44","v":0},{"$f":"'Schedule XXIII'!Q44","v":0},null,0,0,null,{"$f":"'Schedule XXIII'!S44","v":0},{"$f":"'Schedule XXIII'!T44","v":0},{"$f":"'Schedule XXIII'!V44","v":0},null,0,0,0,null,0,0]
[null,{"$f":"'Schedule XXIII'!C45","v":"Other currency 3"},{"$f":"'Schedule XXIII'!M45","v":0},{"$f":"'Schedule XXIII'!N45","v":0},{"$f":"'Schedule XXIII'!P45","v":0},{"$f":"'Schedule XXIII'!Q45","v":0},null,0,0,null,{"$f":"'Schedule XXIII'!S45","v":0},{"$f":"'Schedule XXIII'!T45","v":0},{"$f":"'Schedule XXIII'!V45","v":0},null,0,0,0,null,0,0]
[null,{"$f":"'Schedule XXIII'!C46","v":"Other currency 4"},{"$f":"'Schedule XXIII'!M46","v":0},{"$f":"'Schedule XXIII'!N46","v":0},{"$f":"'Schedule XXIII'!P46","v":0},{"$f":"'Schedule XXIII'!Q46","v":0},null,0,0,null,{"$f":"'Schedule XXIII'!S46","v":0},{"$f":"'Schedule XXIII'!T46","v":0},{"$f":"'Schedule XXIII'!V46","v":0},null,0,0,0,null,0,0]
[null,{"$f":"'Schedule XXIII'!C47","v":"Other currency 5"},{"$f":"'Schedule XXIII'!M47","v":0},{"$f":"'Schedule XXIII'!N47","v":0},{"$f":"'Schedule XXIII'!P47","v":0},{"$f":"'Schedule XXIII'!Q47","v":0},null,0,0,null,{"$f":"'Schedule XXIII'!S47","v":0},{"$f":"'Schedule XXIII'!T47","v":0},{"$f":"'Schedule XXIII'!V47","v":0},null,0,0,0,null,0,0]
[null,{"$f":"'Schedule XXIII'!C48","v":"Other currency 6"},{"$f":"'Schedule XXIII'!M48","v":0},{"$f":"'Schedule XXIII'!N48","v":0},{"$f":"'Schedule XXIII'!P48","v":0},{"$f":"'Schedule XXIII'!Q48","v":0},null,0,0,null,{"$f":"'Schedule XXIII'!S48","v":0},{"$f":"'Schedule XXIII'!T48","v":0},{"$f":"'Schedule XXIII'!V48","v":0},null,0,0,0,null,0,0]
[null,{"$f":"'Schedule XXIII'!C49","v":"Other currency 7"},{"$f":"'Schedule XXIII'!M49","v":0},{"$f":"'Schedule XXIII'!N49","v":0},{"$f":"'Schedule XXIII'!P49","v":0},{"$f":"'Schedule XXIII'!Q49","v":0},null,0,0,null,{"$f":"'Schedule XXIII'!S49","v":0},{"$f":"'Schedule XXIII'!T49","v":0},{"$f":"'Schedule XXIII'!V49","v":0},null,0,0,0,null,0,0]
[null,{"$f":"'Schedule XXIII'!C50","v":"Other currency 8"},{"$f":"'Schedule XXIII'!M50","v":0},{"$f":"'Schedule XXIII'!N50","v":0},{"$f":"'Schedule XXIII'!P50","v":0},{"$f":"'Schedule XXIII'!Q50","v":0},null,0,0,null,{"$f":"'Schedule XXIII'!S50","v":0},{"$f":"'Schedule XXIII'!T50","v":0},{"$f":"'Schedule XXIII'!V50","v":0},null,0,0,0,null,0,0]
[null,{"$f":"'Schedule XXIII'!C51","v":"Other currency 9"},{"$f":"'Schedule XXIII'!M51","v":0},{"$f":"'Schedule XXIII'!N51","v":0},{"$f":"'Schedule XXIII'!P51","v":0},{"$f":"'Schedule XXIII'!Q51","v":0},null,0,0,null,{"$f":"'Schedule XXIII'!S51","v":0},{"$f":"'Schedule XXIII'!T51","v":0},{"$f":"'Schedule XXIII'!V51","v":0},null,0,0,0,null,0,0]
[null,{"$f":"'Schedule XXIII'!C52","v":"Other currency 10"},{"$f":"'Schedule XXIII'!M52","v":0},{"$f":"'Schedule XXIII'!N52","v":0},{"$f":"'Schedule XXIII'!P52","v":0},{"$f":"'Schedule XXIII'!Q52","v":0},null,0,0,null,{"$f":"'Schedule XXIII'!S52","v":0},{"$f":"'Schedule XXIII'!T52","v":0},{"$f":"'Schedule XXIII'!V52","v":0},null,0,0,0,null,0,0]
[null,"Total IR - Derivatives",{"$f":"SUM(C75:C92)","v":0},{"$f":"SUM(D75:D92)","v":0},{"$f":"SUM(E75:E92)","v":0},{"$f":"SUM(F75:F92)","v":0},null,{"$f":"SUM(H75:H92)","v":0},{"$f":"SUM(I75:I92)","v":0},null,{"$f":"SUM(K75:K92)","v":0},{"$f":"SUM(L75:L92)","v":0},{"$f":"SUM(M75:M92)","v":0},null,{"$f":"SUM(O75:O92)","v":0},{"$f":"SUM(P75:P92)","v":0},{"$f":"SUM(Q75:Q92)","v":0},null,{"$f":"SUM(S75:S92)","v":0},{"$f":"SUM(T75:T92)","v":0}]
[null,"Total IR - UP",{"$f":"C72+C93","v":0},{"$f":"D72+D93","v":0},{"$f":"E72+E93","v":0},{"$f":"F72+F93","v":0},null,{"$f":"H72+H93","v":0},{"$f":"I72+I93","v":0},null,{"$f":"K72+K93","v":0},{"$f":"L72+L93","v":0},{"$f":"M72+M93","v":0},null,{"$f":"O72+O93","v":0},{"$f":"P72+P93","v":0},{"$f":"Q72+Q93","v":0},null,{"$f":"MAX(0,S72+S93)","v":0},{"$f":"MAX(0,T72+T93)","v":0}]
[]
[]
[null,"Overall Interest Rate Risk",null,null,null,null,null,"Scenario-Based Approach"]
[null,null,null,null,null,null,null,null,null,null,"Without Management Actions",null,null,null,"With Management Actions"]
[null,"Interest Rates Down Shock - without Management Actions",null,null,{"$f":"S51","v":0},null,null,null,"EBS Base",null,"EBS Shock",null,null,null,"EBS Shock"]
[null,"Interest Rates Up Shock - without Management Actions",null,null,{"$f":"S94","v":0}]
[null,"Max(IR Down, IR Up) - without MA",null,null,{"$f":"MAX(0,E99,E100)","v":0},null,null,"Shock used",null,null,"Down","Up",null,null,"Down","Up"]
[]
[null,"Interest Rate Risk without Management Actions",null,null,{"$f":"MAX(0,IF(E109=\"UP\",E100,E99))","v":0},null,null,"MV Assets",{"$f":"C51","v":0},null,{"$f":"D51-(O50-(C50-D50))","v":0},{"$f":"D94-(O93-(C93-D93))","v":0},null,null,{"$f":"K103","v":0},{"$f":"L103","v":0}]
[null,null,null,null,null,null,null,"BEL",{"$f":"K51","v":0},null,{"$f":"L51","v":0},{"$f":"L94","v":0},null,null,{"$f":"M51","v":0},{"$f":"M94","v":0}]
[]
[null,"Interest Rates Down Shock - with Management Actions",null,null,{"$f":"T51","v":0},null,null,"BEL-Worst",{"$f":"'Form 1EBS'!$F$272+'Form 1EBS'!F264","v":0},null,{"$f":"$I106","v":0},{"$f":"$I106","v":0},null,null,{"$f":"$I106","v":0},{"$f":"$I106","v":0}]
[null,"Interest Rates Up Shock - with Management Actions",null,null,{"$f":"T94","v":0},null,null,"BEL-Base",{"$f":"'Form 1EBS'!$F$274+'Form 1EBS'!F264+'Form 1EBS'!F264","v":0},null,{"$f":"$I107","v":0},{"$f":"$I107","v":0},null,null,{"$f":"$I107","v":0},{"$f":"$I107","v":0}]
[null,"Max(IR Down, IR Up) - with MA",null,null,{"$f":"MAX(E106,E107)","v":0}]
[null,"Biting scenario",null,null,{"$f":"IF(E108=E106,\"DOWN\",\"UP\")","v":"DOWN"},null,null,"\"NAV\"",{"$f":"I$103-I$104","v":0},null,{"$f":"K$103-K$104","v":0},{"$f":"L$103-L$104","v":0},null,null,{"$f":"O$103-O$104","v":0},{"$f":"P$103-P$104","v":0}]
[]
[null,"Interest Rate Risk with Management Actions",null,null,{"$f":"MAX(0,E108)","v":0},null,null,"CR IR",null,null,{"$f":"MAX(0,$I109-K109)","v":0},{"$f":"MAX(0,$I109-L109)","v":0},null,null,{"$f":"MAX(0,$I109-O109)","v":0},{"$f":"MAX(0,$I109-P109)","v":0}]
[null,null,null,null,null,null,null,"Floor (25 % of CR IR)",null,null,{"$f":"25%*K111","v":0},{"$f":"25%*L111","v":0},null,null,{"$f":"25%*O111","v":0},{"$f":"25%*P111","v":0}]
[null,null,null,null,null,null,null,"BEL Deduction",null,null,{"$f":"K$106-K$107","v":0},{"$f":"L$106-L$107","v":0},null,null,{"$f":"O$106-O$107","v":0},{"$f":"P$106-P$107","v":0}]
[null,"Adjustment to IR Risk capital requirement",null,"Without MA","With MA",null,null,"Factor-adjusted BEL Deduct",null,null,{"$f":"50%*K113","v":0},{"$f":"50%*L113","v":0},null,null,{"$f":"50%*O113","v":0},{"$f":"50%*P113","v":0}]
[null,"For companies using Scenario-Based Approach",null,{"$f":"IF(OR(VALUE(I107)=0,VALUE(I106)=0),0,IF($E$109=\"DOWN\",K116-K111,L116-L111))","v":0},{"$f":"IF(OR(VALUE(I107)=0,VALUE(I106)=0),0,IF($E$109=\"DOWN\",O116-O111,P116-P111))","v":0}]
[null,null,null,null,null,null,null,"Capital Charge with 50 % factor",null,null,{"$f":"MAX(K112,K111-K114)","v":0},{"$f":"MAX(L112,L111-L114)","v":0},null,null,{"$f":"MAX(O112,O111-O114)","v":0},{"$f":"MAX(P112,P111-P114)","v":0}]
[null,"Interest Rate Risk capital requirement",null,{"$f":"MAX(E103+D115,0)","v":0},{"$f":"MAX(E111+E115,0)","v":0},null,null,"Max(Down,Up)",null,null,{"$f":"IF(K111>L111,K116,L116)","v":0},null,null,null,{"$f":"IF(O111>P111,O116,P116)","v":0}]

{"sheet":"Geographic Diversification","index":119,"n_rows":65,"n_cols":26,"rows_kept":65,"cut":false,"hidden":false,"merged":[[2,2,2,3]]}
["GEOGRAPHIC DIVERSIFICAITON",null,null,null,null,null,null,null,null,null,null,null,null,null,null,null,null,null,null,null,null,null,null,null,null,{"$f":"HYPERLINK(\"#'Index'!A1\",\"Return to Index\")","v":"Return to Index"}]
[{"$f":"+'Group Information'!C9","v":"Enter Parent Company Name"}]
["Geographic Diversification($000)",null,{"$f":"'Group Information'!C3","v":"2023-12-31"}]
[]
[null,null,null,"TOTAL",null,null,null,"CHARGE"]
[null,"NET PREMIUMS WRITTEN BY ",null,"NET","SUM","DIVERSIFICATION","PREMIUM","DIVERSIFIED"]
[null,"LINE OF BUSINESS","STATEMENT SOURCE","PREMIUM","SQUARED","FACTOR","USED","PREMIUM",{"$f":"HYPERLINK(\"#'Zones'!c4\",\"Zone 1\")","v":"Zone 1"},{"$f":"HYPERLINK(\"#'Zones'!c13\",\"Zone 2\")","v":"Zone 2"},{"$f":"HYPERLINK(\"#'Zones'!c18\",\"Zone 3\")","v":"Zone 3"},{"$f":"HYPERLINK(\"#'Zones'!c26\",\"Zone 4\")","v":"Zone 4"},{"$f":"HYPERLINK(\"#'Zones'!c36\",\"Zone 5\")","v":"Zone 5"},{"$f":"HYPERLINK(\"#'Zones'!c46\",\"Zone 6\")","v":"Zone 6"},{"$f":"HYPERLINK(\"#'Zones'!c57\",\"Zone 7\")","v":"Zone 7"},{"$f":"HYPERLINK(\"#'Zones'!c68\",\"Zone 8\")","v":"Zone 8"},{"$f":"HYPERLINK(\"#'Zones'!c76\",\"Zone 9\")","v":"Zone 9"},{"$f":"HYPERLINK(\"#'Zones'!c84\",\"Zone 10\")","v":"Zone 10"},{"$f":"HYPERLINK(\"#'Zones'!c90\",\"Zone 11\")","v":"Zone 11"},{"$f":"HYPERLINK(\"#'Zones'!c94\",\"Zone 12\")","v":"Zone 12"},{"$f":"HYPERLINK(\"#'Zones'!c107\",\"Zone 13\")","v":"Zone 13"},{"$f":"HYPERLINK(\"#'Zones'!c112\",\"Zone 14\")","v":"Zone 14"},{"$f":"HYPERLINK(\"#'Zones'!c116\",\"Zone 15\")","v":"Zone 15"},{"$f":"HYPERLINK(\"#'Zones'!c121\",\"Zone 16\")","v":"Zone 16"},{"$f":"HYPERLINK(\"#'Zones'!c127\",\"Zone 17\")","v":"Zone 17"},{"$f":"HYPERLINK(\"#'Zones'!c133\",\"Zone 18\")","v":"Zone 18"}]
[]
[null,"Property Catastrophe","Schedule IV(a), Line (1)",{"$f":"SUM(I9:Z9)","v":0},{"$f":"SUMSQ(I9:Z9)","v":0},{"$f":"(IF(D9>0,E9/D9^2,1))","v":1},{"$f":"D9*(0.75+0.25*F9)","v":0},{"$f":"IF('Schedule IVC (EBS)'!AB9=\"True\",G9,'Schedule IVA'!Q11)","v":0},{"$f":"+'Schedule IVC (EBS)'!E9","v":0},{"$f":"+'Schedule IVC (EBS)'!F9","v":0},{"$f":"+'Schedule IVC (EBS)'!G9","v":0},{"$f":"+'Schedule IVC (EBS)'!H9","v":0},{"$f":"+'Schedule IVC (EBS)'!I9","v":0},{"$f":"+'Schedule IVC (EBS)'!J9","v":0},{"$f":"+'Schedule IVC (EBS)'!K9","v":0},{"$f":"+'Schedule IVC (EBS)'!L9","v":0},{"$f":"+'Schedule IVC (EBS)'!M9","v":0},{"$f":"+'Schedule IVC (EBS)'!N9","v":0},{"$f":"+'Schedule IVC (EBS)'!O9","v":0},{"$f":"+'Schedule IVC (EBS)'!P9","v":0},{"$f":"+'Schedule IVC (EBS)'!Q9","v":0},{"$f":"+'Schedule IVC (EBS)'!R9","v":0},{"$f":"+'Schedule IVC (EBS)'!S9","v":0},{"$f":"+'Schedule IVC (EBS)'!T9","v":0},{"$f":"+'Schedule IVC (EBS)'!U9","v":0},{"$f":"+'Schedule IVC (EBS)'!V9","v":0}]
[null,"Property","Schedule IV(a), Line (2)",{"$f":"SUM(I10:Z10)","v":0},{"$f":"SUMSQ(I10:Z10)","v":0},{"$f":"(IF(D10>0,E10/D10^2,1))","v":1},{"$f":"D10*(0.75+0.25*F10)","v":0},{"$f":"IF('Schedule IVC (EBS)'!AB10=\"True\",G10,'Schedule IVA'!Q12)","v":0},{"$f":"+'Schedule IVC (EBS)'!E10","v":0},{"$f":"+'Schedule IVC (EBS)'!F10","v":0},{"$f":"+'Schedule IVC (EBS)'!G10","v":0},{"$f":"+'Schedule IVC (EBS)'!H10","v":0},{"$f":"+'Schedule IVC (EBS)'!I10","v":0},{"$f":"+'Schedule IVC (EBS)'!J10","v":0},{"$f":"+'Schedule IVC (EBS)'!K10","v":0},{"$f":"+'Schedule IVC (EBS)'!L10","v":0},{"$f":"+'Schedule IVC (EBS)'!M10","v":0},{"$f":"+'Schedule IVC (EBS)'!N10","v":0},{"$f":"+'Schedule IVC (EBS)'!O10","v":0},{"$f":"+'Schedule IVC (EBS)'!P10","v":0},{"$f":"+'Schedule IVC (EBS)'!Q10","v":0},{"$f":"+'Schedule IVC (EBS)'!R10","v":0},{"$f":"+'Schedule IVC (EBS)'!S10","v":0},{"$f":"+'Schedule IVC (EBS)'!T10","v":0},{"$f":"+'Schedule IVC (EBS)'!U10","v":0},{"$f":"+'Schedule IVC (EBS)'!V10","v":0}]
[null,"Property Non-Proportional","Schedule IV(a), Line (3)",0,0,1,0,{"$f":"IF('Schedule IVC (EBS)'!AB11=\"True\",G11,'Schedule IVA'!Q13)","v":0},{"$f":"+'Schedule IVC (EBS)'!E11","v":0},{"$f":"+'Schedule IVC (EBS)'!F11","v":0},{"$f":"+'Schedule IVC (EBS)'!G11","v":0},{"$f":"+'Schedule IVC (EBS)'!H11","v":0},{"$f":"+'Schedule IVC (EBS)'!I11","v":0},{"$f":"+'Schedule IVC (EBS)'!J11","v":0},{"$f":"+'Schedule IVC (EBS)'!K11","v":0},{"$f":"+'Schedule IVC (EBS)'!L11","v":0},{"$f":"+'Schedule IVC (EBS)'!M11","v":0},{"$f":"+'Schedule IVC (EBS)'!N11","v":0},{"$f":"+'Schedule IVC (EBS)'!O11","v":0},{"$f":"+'Schedule IVC (EBS)'!P11","v":0},{"$f":"+'Schedule IVC (EBS)'!Q11","v":0},{"$f":"+'Schedule IVC (EBS)'!R11","v":0},{"$f":"+'Schedule IVC (EBS)'!S11","v":0},{"$f":"+'Schedule IVC (EBS)'!T11","v":0},{"$f":"+'Schedule IVC (EBS)'!U11","v":0},{"$f":"+'Schedule IVC (EBS)'!V11","v":0}]
[null,"Personal Accident","Schedule IV(a), Line (4)",0,0,1,0,{"$f":"IF('Schedule IVC (EBS)'!AB12=\"True\",G12,'Schedule IVA'!Q14)","v":0},{"$f":"+'Schedule IVC (EBS)'!E12","v":0},{"$f":"+'Schedule IVC (EBS)'!F12","v":0},{"$f":"+'Schedule IVC (EBS)'!G12","v":0},{"$f":"+'Schedule IVC (EBS)'!H12","v":0},{"$f":"+'Schedule IVC (EBS)'!I12","v":0},{"$f":"+'Schedule IVC (EBS)'!J12","v":0},{"$f":"+'Schedule IVC (EBS)'!K12","v":0},{"$f":"+'Schedule IVC (EBS)'!L12","v":0},{"$f":"+'Schedule IVC (EBS)'!M12","v":0},{"$f":"+'Schedule IVC (EBS)'!N12","v":0},{"$f":"+'Schedule IVC (EBS)'!O12","v":0},{"$f":"+'Schedule IVC (EBS)'!P12","v":0},{"$f":"+'Schedule IVC (EBS)'!Q12","v":0},{"$f":"+'Schedule IVC (EBS)'!R12","v":0},{"$f":"+'Schedule IVC (EBS)'!S12","v":0},{"$f":"+'Schedule IVC (EBS)'!T12","v":0},{"$f":"+'Schedule IVC (EBS)'!U12","v":0},{"$f":"+'Schedule IVC (EBS)'!V12","v":0}]
[null,"Personal Accident Non-Proportional","Schedule IV(a), Line (5)",0,0,1,0,{"$f":"IF('Schedule IVC (EBS)'!AB13=\"True\",G13,'Schedule IVA'!Q15)","v":0},{"$f":"+'Schedule IVC (EBS)'!E13","v":0},{"$f":"+'Schedule IVC (EBS)'!F13","v":0},{"$f":"+'Schedule IVC (EBS)'!G13","v":0},{"$f":"+'Schedule IVC (EBS)'!H13","v":0},{"$f":"+'Schedule IVC (EBS)'!I13","v":0},{"$f":"+'Schedule IVC (EBS)'!J13","v":0},{"$f":"+'Schedule IVC (EBS)'!K13","v":0},{"$f":"+'Schedule IVC (EBS)'!L13","v":0},{"$f":"+'Schedule IVC (EBS)'!M13","v":0},{"$f":"+'Schedule IVC (EBS)'!N13","v":0},{"$f":"+'Schedule IVC (EBS)'!O13","v":0},{"$f":"+'Schedule IVC (EBS)'!P13","v":0},{"$f":"+'Schedule IVC (EBS)'!Q13","v":0},{"$f":"+'Schedule IVC (EBS)'!R13","v":0},{"$f":"+'Schedule IVC (EBS)'!S13","v":0},{"$f":"+'Schedule IVC (EBS)'!T13","v":0},{"$f":"+'Schedule IVC (EBS)'!U13","v":0},{"$f":"+'Schedule IVC (EBS)'!V13","v":0}]
[null,"Aviation","Schedule IV(a), Line (6)",0,0,1,0,{"$f":"IF('Schedule IVC (EBS)'!AB14=\"True\",G14,'Schedule IVA'!Q16)","v":0},{"$f":"+'Schedule IVC (EBS)'!E14","v":0},{"$f":"+'Schedule IVC (EBS)'!F14","v":0},{"$f":"+'Schedule IVC (EBS)'!G14","v":0},{"$f":"+'Schedule IVC (EBS)'!H14","v":0},{"$f":"+'Schedule IVC (EBS)'!I14","v":0},{"$f":"+'Schedule IVC (EBS)'!J14","v":0},{"$f":"+'Schedule IVC (EBS)'!K14","v":0},{"$f":"+'Schedule IVC (EBS)'!L14","v":0},{"$f":"+'Schedule IVC (EBS)'!M14","v":0},{"$f":"+'Schedule IVC (EBS)'!N14","v":0},{"$f":"+'Schedule IVC (EBS)'!O14","v":0},{"$f":"+'Schedule IVC (EBS)'!P14","v":0},{"$f":"+'Schedule IVC (EBS)'!Q14","v":0},{"$f":"+'Schedule IVC (EBS)'!R14","v":0},{"$f":"+'Schedule IVC (EBS)'!S14","v":0},{"$f":"+'Schedule IVC (EBS)'!T14","v":0},{"$f":"+'Schedule IVC (EBS)'!U14","v":0},{"$f":"+'Schedule IVC (EBS)'!V14","v":0}]
[null,"Aviation Non-Proportional","Schedule IV(a), Line (7)",0,0,1,0,{"$f":"IF('Schedule IVC (EBS)'!AB15=\"True\",G15,'Schedule IVA'!Q17)","v":0},{"$f":"+'Schedule IVC (EBS)'!E15","v":0},{"$f":"+'Schedule IVC (EBS)'!F15","v":0},{"$f":"+'Schedule IVC (EBS)'!G15","v":0},{"$f":"+'Schedule IVC (EBS)'!H15","v":0},{"$f":"+'Schedule IVC (EBS)'!I15","v":0},{"$f":"+'Schedule IVC (EBS)'!J15","v":0},{"$f":"+'Schedule IVC (EBS)'!K15","v":0},{"$f":"+'Schedule IVC (EBS)'!L15","v":0},{"$f":"+'Schedule IVC (EBS)'!M15","v":0},{"$f":"+'Schedule IVC (EBS)'!N15","v":0},{"$f":"+'Schedule IVC (EBS)'!O15","v":0},{"$f":"+'Schedule IVC (EBS)'!P15","v":0},{"$f":"+'Schedule IVC (EBS)'!Q15","v":0},{"$f":"+'Schedule IVC (EBS)'!R15","v":0},{"$f":"+'Schedule IVC (EBS)'!S15","v":0},{"$f":"+'Schedule IVC (EBS)'!T15","v":0},{"$f":"+'Schedule IVC (EBS)'!U15","v":0},{"$f":"+'Schedule IVC (EBS)'!V15","v":0}]
[null,"Credit / Surety","Schedule IV(a), Line (8)",0,0,1,0,{"$f":"IF('Schedule IVC (EBS)'!AB16=\"True\",G16,'Schedule IVA'!Q18)","v":0},{"$f":"+'Schedule IVC (EBS)'!E16","v":0},{"$f":"+'Schedule IVC (EBS)'!F16","v":0},{"$f":"+'Schedule IVC (EBS)'!G16","v":0},{"$f":"+'Schedule IVC (EBS)'!H16","v":0},{"$f":"+'Schedule IVC (EBS)'!I16","v":0},{"$f":"+'Schedule IVC (EBS)'!J16","v":0},{"$f":"+'Schedule IVC (EBS)'!K16","v":0},{"$f":"+'Schedule IVC (EBS)'!L16","v":0},{"$f":"+'Schedule IVC (EBS)'!M16","v":0},{"$f":"+'Schedule IVC (EBS)'!N16","v":0},{"$f":"+'Schedule IVC (EBS)'!O16","v":0},{"$f":"+'Schedule IVC (EBS)'!P16","v":0},{"$f":"+'Schedule IVC (EBS)'!Q16","v":0},{"$f":"+'Schedule IVC (EBS)'!R16","v":0},{"$f":"+'Schedule IVC (EBS)'!S16","v":0},{"$f":"+'Schedule IVC (EBS)'!T16","v":0},{"$f":"+'Schedule IVC (EBS)'!U16","v":0},{"$f":"+'Schedule IVC (EBS)'!V16","v":0}]
[null,"Credit / Surety Non-Proportional","Schedule IV(a), Line (9)",0,0,1,0,{"$f":"IF('Schedule IVC (EBS)'!AB17=\"True\",G17,'Schedule IVA'!Q19)","v":0},{"$f":"+'Schedule IVC (EBS)'!E17","v":0},{"$f":"+'Schedule IVC (EBS)'!F17","v":0},{"$f":"+'Schedule IVC (EBS)'!G17","v":0},{"$f":"+'Schedule IVC (EBS)'!H17","v":0},{"$f":"+'Schedule IVC (EBS)'!I17","v":0},{"$f":"+'Schedule IVC (EBS)'!J17","v":0},{"$f":"+'Schedule IVC (EBS)'!K17","v":0},{"$f":"+'Schedule IVC (EBS)'!L17","v":0},{"$f":"+'Schedule IVC (EBS)'!M17","v":0},{"$f":"+'Schedule IVC (EBS)'!N17","v":0},{"$f":"+'Schedule IVC (EBS)'!O17","v":0},{"$f":"+'Schedule IVC (EBS)'!P17","v":0},{"$f":"+'Schedule IVC (EBS)'!Q17","v":0},{"$f":"+'Schedule IVC (EBS)'!R17","v":0},{"$f":"+'Schedule IVC (EBS)'!S17","v":0},{"$f":"+'Schedule IVC (EBS)'!T17","v":0},{"$f":"+'Schedule IVC (EBS)'!U17","v":0},{"$f":"+'Schedule IVC (EBS)'!V17","v":0}]
[null,"Energy Offshore / Marine","Schedule IV(a), Line (10)",0,0,1,0,{"$f":"IF('Schedule IVC (EBS)'!AB18=\"True\",G18,'Schedule IVA'!Q20)","v":0},{"$f":"+'Schedule IVC (EBS)'!E18","v":0},{"$f":"+'Schedule IVC (EBS)'!F18","v":0},{"$f":"+'Schedule IVC (EBS)'!G18","v":0},{"$f":"+'Schedule IVC (EBS)'!H18","v":0},{"$f":"+'Schedule IVC (EBS)'!I18","v":0},{"$f":"+'Schedule IVC (EBS)'!J18","v":0},{"$f":"+'Schedule IVC (EBS)'!K18","v":0},{"$f":"+'Schedule IVC (EBS)'!L18","v":0},{"$f":"+'Schedule IVC (EBS)'!M18","v":0},{"$f":"+'Schedule IVC (EBS)'!N18","v":0},{"$f":"+'Schedule IVC (EBS)'!O18","v":0},{"$f":"+'Schedule IVC (EBS)'!P18","v":0},{"$f":"+'Schedule IVC (EBS)'!Q18","v":0},{"$f":"+'Schedule IVC (EBS)'!R18","v":0},{"$f":"+'Schedule IVC (EBS)'!S18","v":0},{"$f":"+'Schedule IVC (EBS)'!T18","v":0},{"$f":"+'Schedule IVC (EBS)'!U18","v":0},{"$f":"+'Schedule IVC (EBS)'!V18","v":0}]
[null,"Energy Offshore / Marine Non-Proportional","Schedule IV(a), Line (11)",0,0,1,0,{"$f":"IF('Schedule IVC (EBS)'!AB19=\"True\",G19,'Schedule IVA'!Q21)","v":0},{"$f":"+'Schedule IVC (EBS)'!E19","v":0},{"$f":"+'Schedule IVC (EBS)'!F19","v":0},{"$f":"+'Schedule IVC (EBS)'!G19","v":0},{"$f":"+'Schedule IVC (EBS)'!H19","v":0},{"$f":"+'Schedule IVC (EBS)'!I19","v":0},{"$f":"+'Schedule IVC (EBS)'!J19","v":0},{"$f":"+'Schedule IVC (EBS)'!K19","v":0},{"$f":"+'Schedule IVC (EBS)'!L19","v":0},{"$f":"+'Schedule IVC (EBS)'!M19","v":0},{"$f":"+'Schedule IVC (EBS)'!N19","v":0},{"$f":"+'Schedule IVC (EBS)'!O19","v":0},{"$f":"+'Schedule IVC (EBS)'!P19","v":0},{"$f":"+'Schedule IVC (EBS)'!Q19","v":0},{"$f":"+'Schedule IVC (EBS)'!R19","v":0},{"$f":"+'Schedule IVC (EBS)'!S19","v":0},{"$f":"+'Schedule IVC (EBS)'!T19","v":0},{"$f":"+'Schedule IVC (EBS)'!U19","v":0},{"$f":"+'Schedule IVC (EBS)'!V19","v":0}]
[null,"US Casualty","Schedule IV(a), Line (12)",0,0,1,0,{"$f":"IF('Schedule IVC (EBS)'!AB20=\"True\",G20,'Schedule IVA'!Q22)","v":0},{"$f":"+'Schedule IVC (EBS)'!E20","v":0},{"$f":"+'Schedule IVC (EBS)'!F20","v":0},{"$f":"+'Schedule IVC (EBS)'!G20","v":0},{"$f":"+'Schedule IVC (EBS)'!H20","v":0},{"$f":"+'Schedule IVC (EBS)'!I20","v":0},{"$f":"+'Schedule IVC (EBS)'!J20","v":0},{"$f":"+'Schedule IVC (EBS)'!K20","v":0},{"$f":"+'Schedule IVC (EBS)'!L20","v":0},{"$f":"+'Schedule IVC (EBS)'!M20","v":0},{"$f":"+'Schedule IVC (EBS)'!N20","v":0},{"$f":"+'Schedule IVC (EBS)'!O20","v":0},{"$f":"+'Schedule IVC (EBS)'!P20","v":0},{"$f":"+'Schedule IVC (EBS)'!Q20","v":0},{"$f":"+'Schedule IVC (EBS)'!R20","v":0},{"$f":"+'Schedule IVC (EBS)'!S20","v":0},{"$f":"+'Schedule IVC (EBS)'!T20","v":0},{"$f":"+'Schedule IVC (EBS)'!U20","v":0},{"$f":"+'Schedule IVC (EBS)'!V20","v":0}]
[null,"US Casualty Non-Proportional","Schedule IV(a), Line (13)",0,0,1,0,{"$f":"IF('Schedule IVC (EBS)'!AB21=\"True\",G21,'Schedule IVA'!Q23)","v":0},{"$f":"+'Schedule IVC (EBS)'!E21","v":0},{"$f":"+'Schedule IVC (EBS)'!F21","v":0},{"$f":"+'Schedule IVC (EBS)'!G21","v":0},{"$f":"+'Schedule IVC (EBS)'!H21","v":0},{"$f":"+'Schedule IVC (EBS)'!I21","v":0},{"$f":"+'Schedule IVC (EBS)'!J21","v":0},{"$f":"+'Schedule IVC (EBS)'!K21","v":0},{"$f":"+'Schedule IVC (EBS)'!L21","v":0},{"$f":"+'Schedule IVC (EBS)'!M21","v":0},{"$f":"+'Schedule IVC (EBS)'!N21","v":0},{"$f":"+'Schedule IVC (EBS)'!O21","v":0},{"$f":"+'Schedule IVC (EBS)'!P21","v":0},{"$f":"+'Schedule IVC (EBS)'!Q21","v":0},{"$f":"+'Schedule IVC (EBS)'!R21","v":0},{"$f":"+'Schedule IVC (EBS)'!S21","v":0},{"$f":"+'Schedule IVC (EBS)'!T21","v":0},{"$f":"+'Schedule IVC (EBS)'!U21","v":0},{"$f":"+'Schedule IVC (EBS)'!V21","v":0}]
[null,"US Professional","Schedule IV(a), Line (14)",0,0,1,0,{"$f":"IF('Schedule IVC (EBS)'!AB22=\"True\",G22,'Schedule IVA'!Q24)","v":0},{"$f":"+'Schedule IVC (EBS)'!E22","v":0},{"$f":"+'Schedule IVC (EBS)'!F22","v":0},{"$f":"+'Schedule IVC (EBS)'!G22","v":0},{"$f":"+'Schedule IVC (EBS)'!H22","v":0},{"$f":"+'Schedule IVC (EBS)'!I22","v":0},{"$f":"+'Schedule IVC (EBS)'!J22","v":0},{"$f":"+'Schedule IVC (EBS)'!K22","v":0},{"$f":"+'Schedule IVC (EBS)'!L22","v":0},{"$f":"+'Schedule IVC (EBS)'!M22","v":0},{"$f":"+'Schedule IVC (EBS)'!N22","v":0},{"$f":"+'Schedule IVC (EBS)'!O22","v":0},{"$f":"+'Schedule IVC (EBS)'!P22","v":0},{"$f":"+'Schedule IVC (EBS)'!Q22","v":0},{"$f":"+'Schedule IVC (EBS)'!R22","v":0},{"$f":"+'Schedule IVC (EBS)'!S22","v":0},{"$f":"+'Schedule IVC (EBS)'!T22","v":0},{"$f":"+'Schedule IVC (EBS)'!U22","v":0},{"$f":"+'Schedule IVC (EBS)'!V22","v":0}]
[null,"US Professional Non-Proportional","Schedule IV(a), Line (15)",0,0,1,0,{"$f":"IF('Schedule IVC (EBS)'!AB23=\"True\",G23,'Schedule IVA'!Q25)","v":0},{"$f":"+'Schedule IVC (EBS)'!E23","v":0},{"$f":"+'Schedule IVC (EBS)'!F23","v":0},{"$f":"+'Schedule IVC (EBS)'!G23","v":0},{"$f":"+'Schedule IVC (EBS)'!H23","v":0},{"$f":"+'Schedule IVC (EBS)'!I23","v":0},{"$f":"+'Schedule IVC (EBS)'!J23","v":0},{"$f":"+'Schedule IVC (EBS)'!K23","v":0},{"$f":"+'Schedule IVC (EBS)'!L23","v":0},{"$f":"+'Schedule IVC (EBS)'!M23","v":0},{"$f":"+'Schedule IVC (EBS)'!N23","v":0},{"$f":"+'Schedule IVC (EBS)'!O23","v":0},{"$f":"+'Schedule IVC (EBS)'!P23","v":0},{"$f":"+'Schedule IVC (EBS)'!Q23","v":0},{"$f":"+'Schedule IVC (EBS)'!R23","v":0},{"$f":"+'Schedule IVC (EBS)'!S23","v":0},{"$f":"+'Schedule IVC (EBS)'!T23","v":0},{"$f":"+'Schedule IVC (EBS)'!U23","v":0},{"$f":"+'Schedule IVC (EBS)'!V23","v":0}]
[null,"US Specialty","Schedule IV(a), Line (16)",0,0,1,0,{"$f":"IF('Schedule IVC (EBS)'!AB24=\"True\",G24,'Schedule IVA'!Q26)","v":0},{"$f":"+'Schedule IVC (EBS)'!E24","v":0},{"$f":"+'Schedule IVC (EBS)'!F24","v":0},{"$f":"+'Schedule IVC (EBS)'!G24","v":0},{"$f":"+'Schedule IVC (EBS)'!H24","v":0},{"$f":"+'Schedule IVC (EBS)'!I24","v":0},{"$f":"+'Schedule IVC (EBS)'!J24","v":0},{"$f":"+'Schedule IVC (EBS)'!K24","v":0},{"$f":"+'Schedule IVC (EBS)'!L24","v":0},{"$f":"+'Schedule IVC (EBS)'!M24","v":0},{"$f":"+'Schedule IVC (EBS)'!N24","v":0},{"$f":"+'Schedule IVC (EBS)'!O24","v":0},{"$f":"+'Schedule IVC (EBS)'!P24","v":0},{"$f":"+'Schedule IVC (EBS)'!Q24","v":0},{"$f":"+'Schedule IVC (EBS)'!R24","v":0},{"$f":"+'Schedule IVC (EBS)'!S24","v":0},{"$f":"+'Schedule IVC (EBS)'!T24","v":0},{"$f":"+'Schedule IVC (EBS)'!U24","v":0},{"$f":"+'Schedule IVC (EBS)'!V24","v":0}]
[null,"US Specialty Non-Proportional","Schedule IV(a), Line (17)",0,0,1,0,{"$f":"IF('Schedule IVC (EBS)'!AB25=\"True\",G25,'Schedule IVA'!Q27)","v":0},{"$f":"+'Schedule IVC (EBS)'!E25","v":0},{"$f":"+'Schedule IVC (EBS)'!F25","v":0},{"$f":"+'Schedule IVC (EBS)'!G25","v":0},{"$f":"+'Schedule IVC (EBS)'!H25","v":0},{"$f":"+'Schedule IVC (EBS)'!I25","v":0},{"$f":"+'Schedule IVC (EBS)'!J25","v":0},{"$f":"+'Schedule IVC (EBS)'!K25","v":0},{"$f":"+'Schedule IVC (EBS)'!L25","v":0},{"$f":"+'Schedule IVC (EBS)'!M25","v":0},{"$f":"+'Schedule IVC (EBS)'!N25","v":0},{"$f":"+'Schedule IVC (EBS)'!O25","v":0},{"$f":"+'Schedule IVC (EBS)'!P25","v":0},{"$f":"+'Schedule IVC (EBS)'!Q25","v":0},{"$f":"+'Schedule IVC (EBS)'!R25","v":0},{"$f":"+'Schedule IVC (EBS)'!S25","v":0},{"$f":"+'Schedule IVC (EBS)'!T25","v":0},{"$f":"+'Schedule IVC (EBS)'!U25","v":0},{"$f":"+'Schedule IVC (EBS)'!V25","v":0}]
[null,"International Motor","Schedule IV(a), Line (18)",0,0,1,0,{"$f":"IF('Schedule IVC (EBS)'!AB26=\"True\",G26,'Schedule IVA'!Q28)","v":0},{"$f":"+'Schedule IVC (EBS)'!E26","v":0},{"$f":"+'Schedule IVC (EBS)'!F26","v":0},{"$f":"+'Schedule IVC (EBS)'!G26","v":0},{"$f":"+'Schedule IVC (EBS)'!H26","v":0},{"$f":"+'Schedule IVC (EBS)'!I26","v":0},{"$f":"+'Schedule IVC (EBS)'!J26","v":0},{"$f":"+'Schedule IVC (EBS)'!K26","v":0},{"$f":"+'Schedule IVC (EBS)'!L26","v":0},{"$f":"+'Schedule IVC (EBS)'!M26","v":0},{"$f":"+'Schedule IVC (EBS)'!N26","v":0},{"$f":"+'Schedule IVC (EBS)'!O26","v":0},{"$f":"+'Schedule IVC (EBS)'!P26","v":0},{"$f":"+'Schedule IVC (EBS)'!Q26","v":0},{"$f":"+'Schedule IVC (EBS)'!R26","v":0},{"$f":"+'Schedule IVC (EBS)'!S26","v":0},{"$f":"+'Schedule IVC (EBS)'!T26","v":0},{"$f":"+'Schedule IVC (EBS)'!U26","v":0},{"$f":"+'Schedule IVC (EBS)'!V26","v":0}]
[null,"International Motor Non-Proportional","Schedule IV(a), Line (19)",0,0,1,0,{"$f":"IF('Schedule IVC (EBS)'!AB27=\"True\",G27,'Schedule IVA'!Q29)","v":0},{"$f":"+'Schedule IVC (EBS)'!E27","v":0},{"$f":"+'Schedule IVC (EBS)'!F27","v":0},{"$f":"+'Schedule IVC (EBS)'!G27","v":0},{"$f":"+'Schedule IVC (EBS)'!H27","v":0},{"$f":"+'Schedule IVC (EBS)'!I27","v":0},{"$f":"+'Schedule IVC (EBS)'!J27","v":0},{"$f":"+'Schedule IVC (EBS)'!K27","v":0},{"$f":"+'Schedule IVC (EBS)'!L27","v":0},{"$f":"+'Schedule IVC (EBS)'!M27","v":0},{"$f":"+'Schedule IVC (EBS)'!N27","v":0},{"$f":"+'Schedule IVC (EBS)'!O27","v":0},{"$f":"+'Schedule IVC (EBS)'!P27","v":0},{"$f":"+'Schedule IVC (EBS)'!Q27","v":0},{"$f":"+'Schedule IVC (EBS)'!R27","v":0},{"$f":"+'Schedule IVC (EBS)'!S27","v":0},{"$f":"+'Schedule IVC (EBS)'!T27","v":0},{"$f":"+'Schedule IVC (EBS)'!U27","v":0},{"$f":"+'Schedule IVC (EBS)'!V27","v":0}]
[null,"International Casualty Non-Motor","Schedule IV(a), Line (20)",0,0,1,0,{"$f":"IF('Schedule IVC (EBS)'!AB28=\"True\",G28,'Schedule IVA'!Q30)","v":0},{"$f":"+'Schedule IVC (EBS)'!E28","v":0},{"$f":"+'Schedule IVC (EBS)'!F28","v":0},{"$f":"+'Schedule IVC (EBS)'!G28","v":0},{"$f":"+'Schedule IVC (EBS)'!H28","v":0},{"$f":"+'Schedule IVC (EBS)'!I28","v":0},{"$f":"+'Schedule IVC (EBS)'!J28","v":0},{"$f":"+'Schedule IVC (EBS)'!K28","v":0},{"$f":"+'Schedule IVC (EBS)'!L28","v":0},{"$f":"+'Schedule IVC (EBS)'!M28","v":0},{"$f":"+'Schedule IVC (EBS)'!N28","v":0},{"$f":"+'Schedule IVC (EBS)'!O28","v":0},{"$f":"+'Schedule IVC (EBS)'!P28","v":0},{"$f":"+'Schedule IVC (EBS)'!Q28","v":0},{"$f":"+'Schedule IVC (EBS)'!R28","v":0},{"$f":"+'Schedule IVC (EBS)'!S28","v":0},{"$f":"+'Schedule IVC (EBS)'!T28","v":0},{"$f":"+'Schedule IVC (EBS)'!U28","v":0},{"$f":"+'Schedule IVC (EBS)'!V28","v":0}]
[null,"International Casualty Non-Motor Non-Proportional","Schedule IV(a), Line (21)",0,0,1,0,{"$f":"IF('Schedule IVC (EBS)'!AB29=\"True\",G29,'Schedule IVA'!Q31)","v":0},{"$f":"+'Schedule IVC (EBS)'!E29","v":0},{"$f":"+'Schedule IVC (EBS)'!F29","v":0},{"$f":"+'Schedule IVC (EBS)'!G29","v":0},{"$f":"+'Schedule IVC (EBS)'!H29","v":0},{"$f":"+'Schedule IVC (EBS)'!I29","v":0},{"$f":"+'Schedule IVC (EBS)'!J29","v":0},{"$f":"+'Schedule IVC (EBS)'!K29","v":0},{"$f":"+'Schedule IVC (EBS)'!L29","v":0},{"$f":"+'Schedule IVC (EBS)'!M29","v":0},{"$f":"+'Schedule IVC (EBS)'!N29","v":0},{"$f":"+'Schedule IVC (EBS)'!O29","v":0},{"$f":"+'Schedule IVC (EBS)'!P29","v":0},{"$f":"+'Schedule IVC (EBS)'!Q29","v":0},{"$f":"+'Schedule IVC (EBS)'!R29","v":0},{"$f":"+'Schedule IVC (EBS)'!S29","v":0},{"$f":"+'Schedule IVC (EBS)'!T29","v":0},{"$f":"+'Schedule IVC (EBS)'!U29","v":0},{"$f":"+'Schedule IVC (EBS)'!V29","v":0}]
[null,"Retro Property","Schedule IV(a), Line (22)",0,0,1,0,{"$f":"IF('Schedule IVC (EBS)'!AB30=\"True\",G30,'Schedule IVA'!Q32)","v":0},{"$f":"+'Schedule IVC (EBS)'!E30","v":0},{"$f":"+'Schedule IVC (EBS)'!F30","v":0},{"$f":"+'Schedule IVC (EBS)'!G30","v":0},{"$f":"+'Schedule IVC (EBS)'!H30","v":0},{"$f":"+'Schedule IVC (EBS)'!I30","v":0},{"$f":"+'Schedule IVC (EBS)'!J30","v":0},{"$f":"+'Schedule IVC (EBS)'!K30","v":0},{"$f":"+'Schedule IVC (EBS)'!L30","v":0},{"$f":"+'Schedule IVC (EBS)'!M30","v":0},{"$f":"+'Schedule IVC (EBS)'!N30","v":0},{"$f":"+'Schedule IVC (EBS)'!O30","v":0},{"$f":"+'Schedule IVC (EBS)'!P30","v":0},{"$f":"+'Schedule IVC (EBS)'!Q30","v":0},{"$f":"+'Schedule IVC (EBS)'!R30","v":0},{"$f":"+'Schedule IVC (EBS)'!S30","v":0},{"$f":"+'Schedule IVC (EBS)'!T30","v":0},{"$f":"+'Schedule IVC (EBS)'!U30","v":0},{"$f":"+'Schedule IVC (EBS)'!V30","v":0}]
[null,"Structured / Finite Reinsurance","Schedule IV(a), Line (23)",0,0,1,0,{"$f":"IF('Schedule IVC (EBS)'!AB31=\"True\",G31,'Schedule IVA'!Q33)","v":0},{"$f":"+'Schedule IVC (EBS)'!E31","v":0},{"$f":"+'Schedule IVC (EBS)'!F31","v":0},{"$f":"+'Schedule IVC (EBS)'!G31","v":0},{"$f":"+'Schedule IVC (EBS)'!H31","v":0},{"$f":"+'Schedule IVC (EBS)'!I31","v":0},{"$f":"+'Schedule IVC (EBS)'!J31","v":0},{"$f":"+'Schedule IVC (EBS)'!K31","v":0},{"$f":"+'Schedule IVC (EBS)'!L31","v":0},{"$f":"+'Schedule IVC (EBS)'!M31","v":0},{"$f":"+'Schedule IVC (EBS)'!N31","v":0},{"$f":"+'Schedule IVC (EBS)'!O31","v":0},{"$f":"+'Schedule IVC (EBS)'!P31","v":0},{"$f":"+'Schedule IVC (EBS)'!Q31","v":0},{"$f":"+'Schedule IVC (EBS)'!R31","v":0},{"$f":"+'Schedule IVC (EBS)'!S31","v":0},{"$f":"+'Schedule IVC (EBS)'!T31","v":0},{"$f":"+'Schedule IVC (EBS)'!U31","v":0},{"$f":"+'Schedule IVC (EBS)'!V31","v":0}]
[null,"Health","Schedule IV(a), Line (24)",0,0,1,0,{"$f":"IF('Schedule IVC (EBS)'!AB32=\"True\",G32,'Schedule IVA'!Q34)","v":0},{"$f":"+'Schedule IVC (EBS)'!E32","v":0},{"$f":"+'Schedule IVC (EBS)'!F32","v":0},{"$f":"+'Schedule IVC (EBS)'!G32","v":0},{"$f":"+'Schedule IVC (EBS)'!H32","v":0},{"$f":"+'Schedule IVC (EBS)'!I32","v":0},{"$f":"+'Schedule IVC (EBS)'!J32","v":0},{"$f":"+'Schedule IVC (EBS)'!K32","v":0},{"$f":"+'Schedule IVC (EBS)'!L32","v":0},{"$f":"+'Schedule IVC (EBS)'!M32","v":0},{"$f":"+'Schedule IVC (EBS)'!N32","v":0},{"$f":"+'Schedule IVC (EBS)'!O32","v":0},{"$f":"+'Schedule IVC (EBS)'!P32","v":0},{"$f":"+'Schedule IVC (EBS)'!Q32","v":0},{"$f":"+'Schedule IVC (EBS)'!R32","v":0},{"$f":"+'Schedule IVC (EBS)'!S32","v":0},{"$f":"+'Schedule IVC (EBS)'!T32","v":0},{"$f":"+'Schedule IVC (EBS)'!U32","v":0},{"$f":"+'Schedule IVC (EBS)'!V32","v":0}]
[]
[null,"(a) TOTAL",null,{"$f":"SUM(D9:D32)","v":0},{"$f":"SUM(E9:E32)","v":0},null,{"$f":"SUM(G9:G32)","v":0},0,0,0,0,0,0,0,0,0,0,0,0,0,0,0,0,0,0,0]
[]
[null,null,null,"TOTAL",null,null,null,"CHARGE"]
[null,"NET LOSS PROVISION BY ",null,"NET","SUM","DIVERSIFICATION","RESERVE","DIVERSIFIED"]
[null,"LINE OF BUSINESS","STATEMENT SOURCE","RESERVE","SQUARED","FACTOR","USED","RESERVE",{"$f":"HYPERLINK(\"#'Zones'!c4\",\"Zone 1\")","v":"Zone 1"},{"$f":"HYPERLINK(\"#'Zones'!c13\",\"Zone 2\")","v":"Zone 2"},{"$f":"HYPERLINK(\"#'Zones'!c18\",\"Zone 3\")","v":"Zone 3"},{"$f":"HYPERLINK(\"#'Zones'!c26\",\"Zone 4\")","v":"Zone 4"},{"$f":"HYPERLINK(\"#'Zones'!c36\",\"Zone 5\")","v":"Zone 5"},{"$f":"HYPERLINK(\"#'Zones'!c46\",\"Zone 6\")","v":"Zone 6"},{"$f":"HYPERLINK(\"#'Zones'!c57\",\"Zone 7\")","v":"Zone 7"},{"$f":"HYPERLINK(\"#'Zones'!c68\",\"Zone 8\")","v":"Zone 8"},{"$f":"HYPERLINK(\"#'Zones'!c76\",\"Zone 9\")","v":"Zone 9"},{"$f":"HYPERLINK(\"#'Zones'!c84\",\"Zone 10\")","v":"Zone 10"},{"$f":"HYPERLINK(\"#'Zones'!c90\",\"Zone 11\")","v":"Zone 11"},{"$f":"HYPERLINK(\"#'Zones'!c94\",\"Zone 12\")","v":"Zone 12"},{"$f":"HYPERLINK(\"#'Zones'!c107\",\"Zone 13\")","v":"Zone 13"},{"$f":"HYPERLINK(\"#'Zones'!c112\",\"Zone 14\")","v":"Zone 14"},{"$f":"HYPERLINK(\"#'Zones'!c116\",\"Zone 15\")","v":"Zone 15"},{"$f":"HYPERLINK(\"#'Zones'!c121\",\"Zone 16\")","v":"Zone 16"},{"$f":"HYPERLINK(\"#'Zones'!c127\",\"Zone 17\")","v":"Zone 17"},{"$f":"HYPERLINK(\"#'Zones'!c133\",\"Zone 18\")","v":"Zone 18"}]
[]
[null,"Property Catastrophe","Schedule III(a), Line (1)",{"$f":"SUM(I40:Z40)","v":0},{"$f":"SUMSQ(I40:Z40)","v":0},{"$f":"(IF(D40>0,E40/D40^2,1))","v":1},{"$f":"D40*(0.75+0.25*F40)","v":0},{"$f":"IF('Schedule IIIA (EBS)'!AB10=\"True\",G40,'Schedule III (EBS)'!F10)","v":0},{"$f":"+'Schedule IIIA (EBS)'!E10","v":0},{"$f":"+'Schedule IIIA (EBS)'!F10","v":0},{"$f":"+'Schedule IIIA (EBS)'!G10","v":0},{"$f":"+'Schedule IIIA (EBS)'!H10","v":0},{"$f":"+'Schedule IIIA (EBS)'!I10","v":0},{"$f":"+'Schedule IIIA (EBS)'!J10","v":0},{"$f":"+'Schedule IIIA (EBS)'!K10","v":0},{"$f":"+'Schedule IIIA (EBS)'!L10","v":0},{"$f":"+'Schedule IIIA (EBS)'!M10","v":0},{"$f":"+'Schedule IIIA (EBS)'!N10","v":0},{"$f":"+'Schedule IIIA (EBS)'!O10","v":0},{"$f":"+'Schedule IIIA (EBS)'!P10","v":0},{"$f":"+'Schedule IIIA (EBS)'!Q10","v":0},{"$f":"+'Schedule IIIA (EBS)'!R10","v":0},{"$f":"+'Schedule IIIA (EBS)'!S10","v":0},{"$f":"+'Schedule IIIA (EBS)'!T10","v":0},{"$f":"+'Schedule IIIA (EBS)'!U10","v":0},{"$f":"+'Schedule IIIA (EBS)'!V10","v":0}]
[null,"Property","Schedule III(a), Line (2)",{"$f":"SUM(I41:Z41)","v":0},{"$f":"SUMSQ(I41:Z41)","v":0},{"$f":"(IF(D41>0,E41/D41^2,1))","v":1},{"$f":"D41*(0.75+0.25*F41)","v":0},{"$f":"IF('Schedule IIIA (EBS)'!AB11=\"True\",G41,'Schedule III (EBS)'!F11)","v":0},{"$f":"+'Schedule IIIA (EBS)'!E11","v":0},{"$f":"+'Schedule IIIA (EBS)'!F11","v":0},{"$f":"+'Schedule IIIA (EBS)'!G11","v":0},{"$f":"+'Schedule IIIA (EBS)'!H11","v":0},{"$f":"+'Schedule IIIA (EBS)'!I11","v":0},{"$f":"+'Schedule IIIA (EBS)'!J11","v":0},{"$f":"+'Schedule IIIA (EBS)'!K11","v":0},{"$f":"+'Schedule IIIA (EBS)'!L11","v":0},{"$f":"+'Schedule IIIA (EBS)'!M11","v":0},{"$f":"+'Schedule IIIA (EBS)'!N11","v":0},{"$f":"+'Schedule IIIA (EBS)'!O11","v":0},{"$f":"+'Schedule IIIA (EBS)'!P11","v":0},{"$f":"+'Schedule IIIA (EBS)'!Q11","v":0},{"$f":"+'Schedule IIIA (EBS)'!R11","v":0},{"$f":"+'Schedule IIIA (EBS)'!S11","v":0},{"$f":"+'Schedule IIIA (EBS)'!T11","v":0},{"$f":"+'Schedule IIIA (EBS)'!U11","v":0},{"$f":"+'Schedule IIIA (EBS)'!V11","v":0}]
[null,"Property Non-Proportional","Schedule III(a), Line (3)",0,0,1,0,{"$f":"IF('Schedule IIIA (EBS)'!AB12=\"True\",G42,'Schedule III (EBS)'!F12)","v":0},{"$f":"+'Schedule IIIA (EBS)'!E12","v":0},{"$f":"+'Schedule IIIA (EBS)'!F12","v":0},{"$f":"+'Schedule IIIA (EBS)'!G12","v":0},{"$f":"+'Schedule IIIA (EBS)'!H12","v":0},{"$f":"+'Schedule IIIA (EBS)'!I12","v":0},{"$f":"+'Schedule IIIA (EBS)'!J12","v":0},{"$f":"+'Schedule IIIA (EBS)'!K12","v":0},{"$f":"+'Schedule IIIA (EBS)'!L12","v":0},{"$f":"+'Schedule IIIA (EBS)'!M12","v":0},{"$f":"+'Schedule IIIA (EBS)'!N12","v":0},{"$f":"+'Schedule IIIA (EBS)'!O12","v":0},{"$f":"+'Schedule IIIA (EBS)'!P12","v":0},{"$f":"+'Schedule IIIA (EBS)'!Q12","v":0},{"$f":"+'Schedule IIIA (EBS)'!R12","v":0},{"$f":"+'Schedule IIIA (EBS)'!S12","v":0},{"$f":"+'Schedule IIIA (EBS)'!T12","v":0},{"$f":"+'Schedule IIIA (EBS)'!U12","v":0},{"$f":"+'Schedule IIIA (EBS)'!V12","v":0}]
[null,"Personal Accident","Schedule III(a), Line (4)",0,0,1,0,{"$f":"IF('Schedule IIIA (EBS)'!AB13=\"True\",G43,'Schedule III (EBS)'!F13)","v":0},{"$f":"+'Schedule IIIA (EBS)'!E13","v":0},{"$f":"+'Schedule IIIA (EBS)'!F13","v":0},{"$f":"+'Schedule IIIA (EBS)'!G13","v":0},{"$f":"+'Schedule IIIA (EBS)'!H13","v":0},{"$f":"+'Schedule IIIA (EBS)'!I13","v":0},{"$f":"+'Schedule IIIA (EBS)'!J13","v":0},{"$f":"+'Schedule IIIA (EBS)'!K13","v":0},{"$f":"+'Schedule IIIA (EBS)'!L13","v":0},{"$f":"+'Schedule IIIA (EBS)'!M13","v":0},{"$f":"+'Schedule IIIA (EBS)'!N13","v":0},{"$f":"+'Schedule IIIA (EBS)'!O13","v":0},{"$f":"+'Schedule IIIA (EBS)'!P13","v":0},{"$f":"+'Schedule IIIA (EBS)'!Q13","v":0},{"$f":"+'Schedule IIIA (EBS)'!R13","v":0},{"$f":"+'Schedule IIIA (EBS)'!S13","v":0},{"$f":"+'Schedule IIIA (EBS)'!T13","v":0},{"$f":"+'Schedule IIIA (EBS)'!U13","v":0},{"$f":"+'Schedule IIIA (EBS)'!V13","v":0}]
[null,"Personal Accident Non-Proportional","Schedule III(a), Line (5)",0,0,1,0,{"$f":"IF('Schedule IIIA (EBS)'!AB14=\"True\",G44,'Schedule III (EBS)'!F14)","v":0},{"$f":"+'Schedule IIIA (EBS)'!E14","v":0},{"$f":"+'Schedule IIIA (EBS)'!F14","v":0},{"$f":"+'Schedule IIIA (EBS)'!G14","v":0},{"$f":"+'Schedule IIIA (EBS)'!H14","v":0},{"$f":"+'Schedule IIIA (EBS)'!I14","v":0},{"$f":"+'Schedule IIIA (EBS)'!J14","v":0},{"$f":"+'Schedule IIIA (EBS)'!K14","v":0},{"$f":"+'Schedule IIIA (EBS)'!L14","v":0},{"$f":"+'Schedule IIIA (EBS)'!M14","v":0},{"$f":"+'Schedule IIIA (EBS)'!N14","v":0},{"$f":"+'Schedule IIIA (EBS)'!O14","v":0},{"$f":"+'Schedule IIIA (EBS)'!P14","v":0},{"$f":"+'Schedule IIIA (EBS)'!Q14","v":0},{"$f":"+'Schedule IIIA (EBS)'!R14","v":0},{"$f":"+'Schedule IIIA (EBS)'!S14","v":0},{"$f":"+'Schedule IIIA (EBS)'!T14","v":0},{"$f":"+'Schedule IIIA (EBS)'!U14","v":0},{"$f":"+'Schedule IIIA (EBS)'!V14","v":0}]
[null,"Aviation","Schedule III(a), Line (6)",0,0,1,0,{"$f":"IF('Schedule IIIA (EBS)'!AB15=\"True\",G45,'Schedule III (EBS)'!F15)","v":0},{"$f":"+'Schedule IIIA (EBS)'!E15","v":0},{"$f":"+'Schedule IIIA (EBS)'!F15","v":0},{"$f":"+'Schedule IIIA (EBS)'!G15","v":0},{"$f":"+'Schedule IIIA (EBS)'!H15","v":0},{"$f":"+'Schedule IIIA (EBS)'!I15","v":0},{"$f":"+'Schedule IIIA (EBS)'!J15","v":0},{"$f":"+'Schedule IIIA (EBS)'!K15","v":0},{"$f":"+'Schedule IIIA (EBS)'!L15","v":0},{"$f":"+'Schedule IIIA (EBS)'!M15","v":0},{"$f":"+'Schedule IIIA (EBS)'!N15","v":0},{"$f":"+'Schedule IIIA (EBS)'!O15","v":0},{"$f":"+'Schedule IIIA (EBS)'!P15","v":0},{"$f":"+'Schedule IIIA (EBS)'!Q15","v":0},{"$f":"+'Schedule IIIA (EBS)'!R15","v":0},{"$f":"+'Schedule IIIA (EBS)'!S15","v":0},{"$f":"+'Schedule IIIA (EBS)'!T15","v":0},{"$f":"+'Schedule IIIA (EBS)'!U15","v":0},{"$f":"+'Schedule IIIA (EBS)'!V15","v":0}]
[null,"Aviation Non-Proportional","Schedule III(a), Line (7)",0,0,1,0,{"$f":"IF('Schedule IIIA (EBS)'!AB16=\"True\",G46,'Schedule III (EBS)'!F16)","v":0},{"$f":"+'Schedule IIIA (EBS)'!E16","v":0},{"$f":"+'Schedule IIIA (EBS)'!F16","v":0},{"$f":"+'Schedule IIIA (EBS)'!G16","v":0},{"$f":"+'Schedule IIIA (EBS)'!H16","v":0},{"$f":"+'Schedule IIIA (EBS)'!I16","v":0},{"$f":"+'Schedule IIIA (EBS)'!J16","v":0},{"$f":"+'Schedule IIIA (EBS)'!K16","v":0},{"$f":"+'Schedule IIIA (EBS)'!L16","v":0},{"$f":"+'Schedule IIIA (EBS)'!M16","v":0},{"$f":"+'Schedule IIIA (EBS)'!N16","v":0},{"$f":"+'Schedule IIIA (EBS)'!O16","v":0},{"$f":"+'Schedule IIIA (EBS)'!P16","v":0},{"$f":"+'Schedule IIIA (EBS)'!Q16","v":0},{"$f":"+'Schedule IIIA (EBS)'!R16","v":0},{"$f":"+'Schedule IIIA (EBS)'!S16","v":0},{"$f":"+'Schedule IIIA (EBS)'!T16","v":0},{"$f":"+'Schedule IIIA (EBS)'!U16","v":0},{"$f":"+'Schedule IIIA (EBS)'!V16","v":0}]
[null,"Credit / Surety","Schedule III(a), Line (8)",0,0,1,0,{"$f":"IF('Schedule IIIA (EBS)'!AB17=\"True\",G47,'Schedule III (EBS)'!F17)","v":0},{"$f":"+'Schedule IIIA (EBS)'!E17","v":0},{"$f":"+'Schedule IIIA (EBS)'!F17","v":0},{"$f":"+'Schedule IIIA (EBS)'!G17","v":0},{"$f":"+'Schedule IIIA (EBS)'!H17","v":0},{"$f":"+'Schedule IIIA (EBS)'!I17","v":0},{"$f":"+'Schedule IIIA (EBS)'!J17","v":0},{"$f":"+'Schedule IIIA (EBS)'!K17","v":0},{"$f":"+'Schedule IIIA (EBS)'!L17","v":0},{"$f":"+'Schedule IIIA (EBS)'!M17","v":0},{"$f":"+'Schedule IIIA (EBS)'!N17","v":0},{"$f":"+'Schedule IIIA (EBS)'!O17","v":0},{"$f":"+'Schedule IIIA (EBS)'!P17","v":0},{"$f":"+'Schedule IIIA (EBS)'!Q17","v":0},{"$f":"+'Schedule IIIA (EBS)'!R17","v":0},{"$f":"+'Schedule IIIA (EBS)'!S17","v":0},{"$f":"+'Schedule IIIA (EBS)'!T17","v":0},{"$f":"+'Schedule IIIA (EBS)'!U17","v":0},{"$f":"+'Schedule IIIA (EBS)'!V17","v":0}]
[null,"Credit / Surety Non-Proportional","Schedule III(a), Line (9)",0,0,1,0,{"$f":"IF('Schedule IIIA (EBS)'!AB18=\"True\",G48,'Schedule III (EBS)'!F18)","v":0},{"$f":"+'Schedule IIIA (EBS)'!E18","v":0},{"$f":"+'Schedule IIIA (EBS)'!F18","v":0},{"$f":"+'Schedule IIIA (EBS)'!G18","v":0},{"$f":"+'Schedule IIIA (EBS)'!H18","v":0},{"$f":"+'Schedule IIIA (EBS)'!I18","v":0},{"$f":"+'Schedule IIIA (EBS)'!J18","v":0},{"$f":"+'Schedule IIIA (EBS)'!K18","v":0},{"$f":"+'Schedule IIIA (EBS)'!L18","v":0},{"$f":"+'Schedule IIIA (EBS)'!M18","v":0},{"$f":"+'Schedule IIIA (EBS)'!N18","v":0},{"$f":"+'Schedule IIIA (EBS)'!O18","v":0},{"$f":"+'Schedule IIIA (EBS)'!P18","v":0},{"$f":"+'Schedule IIIA (EBS)'!Q18","v":0},{"$f":"+'Schedule IIIA (EBS)'!R18","v":0},{"$f":"+'Schedule IIIA (EBS)'!S18","v":0},{"$f":"+'Schedule IIIA (EBS)'!T18","v":0},{"$f":"+'Schedule IIIA (EBS)'!U18","v":0},{"$f":"+'Schedule IIIA (EBS)'!V18","v":0}]
[null,"Energy Offshore / Marine","Schedule III(a), Line (10)",0,0,1,0,{"$f":"IF('Schedule IIIA (EBS)'!AB19=\"True\",G49,'Schedule III (EBS)'!F19)","v":0},{"$f":"+'Schedule IIIA (EBS)'!E19","v":0},{"$f":"+'Schedule IIIA (EBS)'!F19","v":0},{"$f":"+'Schedule IIIA (EBS)'!G19","v":0},{"$f":"+'Schedule IIIA (EBS)'!H19","v":0},{"$f":"+'Schedule IIIA (EBS)'!I19","v":0},{"$f":"+'Schedule IIIA (EBS)'!J19","v":0},{"$f":"+'Schedule IIIA (EBS)'!K19","v":0},{"$f":"+'Schedule IIIA (EBS)'!L19","v":0},{"$f":"+'Schedule IIIA (EBS)'!M19","v":0},{"$f":"+'Schedule IIIA (EBS)'!N19","v":0},{"$f":"+'Schedule IIIA (EBS)'!O19","v":0},{"$f":"+'Schedule IIIA (EBS)'!P19","v":0},{"$f":"+'Schedule IIIA (EBS)'!Q19","v":0},{"$f":"+'Schedule IIIA (EBS)'!R19","v":0},{"$f":"+'Schedule IIIA (EBS)'!S19","v":0},{"$f":"+'Schedule IIIA (EBS)'!T19","v":0},{"$f":"+'Schedule IIIA (EBS)'!U19","v":0},{"$f":"+'Schedule IIIA (EBS)'!V19","v":0}]
[null,"Energy Offshore / Marine Non-Proportional","Schedule III(a), Line (11)",0,0,1,0,{"$f":"IF('Schedule IIIA (EBS)'!AB20=\"True\",G50,'Schedule III (EBS)'!F20)","v":0},{"$f":"+'Schedule IIIA (EBS)'!E20","v":0},{"$f":"+'Schedule IIIA (EBS)'!F20","v":0},{"$f":"+'Schedule IIIA (EBS)'!G20","v":0},{"$f":"+'Schedule IIIA (EBS)'!H20","v":0},{"$f":"+'Schedule IIIA (EBS)'!I20","v":0},{"$f":"+'Schedule IIIA (EBS)'!J20","v":0},{"$f":"+'Schedule IIIA (EBS)'!K20","v":0},{"$f":"+'Schedule IIIA (EBS)'!L20","v":0},{"$f":"+'Schedule IIIA (EBS)'!M20","v":0},{"$f":"+'Schedule IIIA (EBS)'!N20","v":0},{"$f":"+'Schedule IIIA (EBS)'!O20","v":0},{"$f":"+'Schedule IIIA (EBS)'!P20","v":0},{"$f":"+'Schedule IIIA (EBS)'!Q20","v":0},{"$f":"+'Schedule IIIA (EBS)'!R20","v":0},{"$f":"+'Schedule IIIA (EBS)'!S20","v":0},{"$f":"+'Schedule IIIA (EBS)'!T20","v":0},{"$f":"+'Schedule IIIA (EBS)'!U20","v":0},{"$f":"+'Schedule IIIA (EBS)'!V20","v":0}]
[null,"US Casualty","Schedule III(a), Line (12)",0,0,1,0,{"$f":"IF('Schedule IIIA (EBS)'!AB21=\"True\",G51,'Schedule III (EBS)'!F21)","v":0},{"$f":"+'Schedule IIIA (EBS)'!E21","v":0},{"$f":"+'Schedule IIIA (EBS)'!F21","v":0},{"$f":"+'Schedule IIIA (EBS)'!G21","v":0},{"$f":"+'Schedule IIIA (EBS)'!H21","v":0},{"$f":"+'Schedule IIIA (EBS)'!I21","v":0},{"$f":"+'Schedule IIIA (EBS)'!J21","v":0},{"$f":"+'Schedule IIIA (EBS)'!K21","v":0},{"$f":"+'Schedule IIIA (EBS)'!L21","v":0},{"$f":"+'Schedule IIIA (EBS)'!M21","v":0},{"$f":"+'Schedule IIIA (EBS)'!N21","v":0},{"$f":"+'Schedule IIIA (EBS)'!O21","v":0},{"$f":"+'Schedule IIIA (EBS)'!P21","v":0},{"$f":"+'Schedule IIIA (EBS)'!Q21","v":0},{"$f":"+'Schedule IIIA (EBS)'!R21","v":0},{"$f":"+'Schedule IIIA (EBS)'!S21","v":0},{"$f":"+'Schedule IIIA (EBS)'!T21","v":0},{"$f":"+'Schedule IIIA (EBS)'!U21","v":0},{"$f":"+'Schedule IIIA (EBS)'!V21","v":0}]
[null,"US Casualty Non-Proportional","Schedule III(a), Line (13)",0,0,1,0,{"$f":"IF('Schedule IIIA (EBS)'!AB22=\"True\",G52,'Schedule III (EBS)'!F22)","v":0},{"$f":"+'Schedule IIIA (EBS)'!E22","v":0},{"$f":"+'Schedule IIIA (EBS)'!F22","v":0},{"$f":"+'Schedule IIIA (EBS)'!G22","v":0},{"$f":"+'Schedule IIIA (EBS)'!H22","v":0},{"$f":"+'Schedule IIIA (EBS)'!I22","v":0},{"$f":"+'Schedule IIIA (EBS)'!J22","v":0},{"$f":"+'Schedule IIIA (EBS)'!K22","v":0},{"$f":"+'Schedule IIIA (EBS)'!L22","v":0},{"$f":"+'Schedule IIIA (EBS)'!M22","v":0},{"$f":"+'Schedule IIIA (EBS)'!N22","v":0},{"$f":"+'Schedule IIIA (EBS)'!O22","v":0},{"$f":"+'Schedule IIIA (EBS)'!P22","v":0},{"$f":"+'Schedule IIIA (EBS)'!Q22","v":0},{"$f":"+'Schedule IIIA (EBS)'!R22","v":0},{"$f":"+'Schedule IIIA (EBS)'!S22","v":0},{"$f":"+'Schedule IIIA (EBS)'!T22","v":0},{"$f":"+'Schedule IIIA (EBS)'!U22","v":0},{"$f":"+'Schedule IIIA (EBS)'!V22","v":0}]
[null,"US Professional","Schedule III(a), Line (14)",0,0,1,0,{"$f":"IF('Schedule IIIA (EBS)'!AB23=\"True\",G53,'Schedule III (EBS)'!F23)","v":0},{"$f":"+'Schedule IIIA (EBS)'!E23","v":0},{"$f":"+'Schedule IIIA (EBS)'!F23","v":0},{"$f":"+'Schedule IIIA (EBS)'!G23","v":0},{"$f":"+'Schedule IIIA (EBS)'!H23","v":0},{"$f":"+'Schedule IIIA (EBS)'!I23","v":0},{"$f":"+'Schedule IIIA (EBS)'!J23","v":0},{"$f":"+'Schedule IIIA (EBS)'!K23","v":0},{"$f":"+'Schedule IIIA (EBS)'!L23","v":0},{"$f":"+'Schedule IIIA (EBS)'!M23","v":0},{"$f":"+'Schedule IIIA (EBS)'!N23","v":0},{"$f":"+'Schedule IIIA (EBS)'!O23","v":0},{"$f":"+'Schedule IIIA (EBS)'!P23","v":0},{"$f":"+'Schedule IIIA (EBS)'!Q23","v":0},{"$f":"+'Schedule IIIA (EBS)'!R23","v":0},{"$f":"+'Schedule IIIA (EBS)'!S23","v":0},{"$f":"+'Schedule IIIA (EBS)'!T23","v":0},{"$f":"+'Schedule IIIA (EBS)'!U23","v":0},{"$f":"+'Schedule IIIA (EBS)'!V23","v":0}]
[null,"US Professional Non-Proportional","Schedule III(a), Line (15)",0,0,1,0,{"$f":"IF('Schedule IIIA (EBS)'!AB24=\"True\",G54,'Schedule III (EBS)'!F24)","v":0},{"$f":"+'Schedule IIIA (EBS)'!E24","v":0},{"$f":"+'Schedule IIIA (EBS)'!F24","v":0},{"$f":"+'Schedule IIIA (EBS)'!G24","v":0},{"$f":"+'Schedule IIIA (EBS)'!H24","v":0},{"$f":"+'Schedule IIIA (EBS)'!I24","v":0},{"$f":"+'Schedule IIIA (EBS)'!J24","v":0},{"$f":"+'Schedule IIIA (EBS)'!K24","v":0},{"$f":"+'Schedule IIIA (EBS)'!L24","v":0},{"$f":"+'Schedule IIIA (EBS)'!M24","v":0},{"$f":"+'Schedule IIIA (EBS)'!N24","v":0},{"$f":"+'Schedule IIIA (EBS)'!O24","v":0},{"$f":"+'Schedule IIIA (EBS)'!P24","v":0},{"$f":"+'Schedule IIIA (EBS)'!Q24","v":0},{"$f":"+'Schedule IIIA (EBS)'!R24","v":0},{"$f":"+'Schedule IIIA (EBS)'!S24","v":0},{"$f":"+'Schedule IIIA (EBS)'!T24","v":0},{"$f":"+'Schedule IIIA (EBS)'!U24","v":0},{"$f":"+'Schedule IIIA (EBS)'!V24","v":0}]
[null,"US Specialty","Schedule III(a), Line (16)",0,0,1,0,{"$f":"IF('Schedule IIIA (EBS)'!AB25=\"True\",G55,'Schedule III (EBS)'!F25)","v":0},{"$f":"+'Schedule IIIA (EBS)'!E25","v":0},{"$f":"+'Schedule IIIA (EBS)'!F25","v":0},{"$f":"+'Schedule IIIA (EBS)'!G25","v":0},{"$f":"+'Schedule IIIA (EBS)'!H25","v":0},{"$f":"+'Schedule IIIA (EBS)'!I25","v":0},{"$f":"+'Schedule IIIA (EBS)'!J25","v":0},{"$f":"+'Schedule IIIA (EBS)'!K25","v":0},{"$f":"+'Schedule IIIA (EBS)'!L25","v":0},{"$f":"+'Schedule IIIA (EBS)'!M25","v":0},{"$f":"+'Schedule IIIA (EBS)'!N25","v":0},{"$f":"+'Schedule IIIA (EBS)'!O25","v":0},{"$f":"+'Schedule IIIA (EBS)'!P25","v":0},{"$f":"+'Schedule IIIA (EBS)'!Q25","v":0},{"$f":"+'Schedule IIIA (EBS)'!R25","v":0},{"$f":"+'Schedule IIIA (EBS)'!S25","v":0},{"$f":"+'Schedule IIIA (EBS)'!T25","v":0},{"$f":"+'Schedule IIIA (EBS)'!U25","v":0},{"$f":"+'Schedule IIIA (EBS)'!V25","v":0}]
[null,"US Specialty Non-Proportional","Schedule III(a), Line (17)",0,0,1,0,{"$f":"IF('Schedule IIIA (EBS)'!AB26=\"True\",G56,'Schedule III (EBS)'!F26)","v":0},{"$f":"+'Schedule IIIA (EBS)'!E26","v":0},{"$f":"+'Schedule IIIA (EBS)'!F26","v":0},{"$f":"+'Schedule IIIA (EBS)'!G26","v":0},{"$f":"+'Schedule IIIA (EBS)'!H26","v":0},{"$f":"+'Schedule IIIA (EBS)'!I26","v":0},{"$f":"+'Schedule IIIA (EBS)'!J26","v":0},{"$f":"+'Schedule IIIA (EBS)'!K26","v":0},{"$f":"+'Schedule IIIA (EBS)'!L26","v":0},{"$f":"+'Schedule IIIA (EBS)'!M26","v":0},{"$f":"+'Schedule IIIA (EBS)'!N26","v":0},{"$f":"+'Schedule IIIA (EBS)'!O26","v":0},{"$f":"+'Schedule IIIA (EBS)'!P26","v":0},{"$f":"+'Schedule IIIA (EBS)'!Q26","v":0},{"$f":"+'Schedule IIIA (EBS)'!R26","v":0},{"$f":"+'Schedule IIIA (EBS)'!S26","v":0},{"$f":"+'Schedule IIIA (EBS)'!T26","v":0},{"$f":"+'Schedule IIIA (EBS)'!U26","v":0},{"$f":"+'Schedule IIIA (EBS)'!V26","v":0}]
[null,"International Motor","Schedule III(a), Line (18)",0,0,1,0,{"$f":"IF('Schedule IIIA (EBS)'!AB27=\"True\",G57,'Schedule III (EBS)'!F27)","v":0},{"$f":"+'Schedule IIIA (EBS)'!E27","v":0},{"$f":"+'Schedule IIIA (EBS)'!F27","v":0},{"$f":"+'Schedule IIIA (EBS)'!G27","v":0},{"$f":"+'Schedule IIIA (EBS)'!H27","v":0},{"$f":"+'Schedule IIIA (EBS)'!I27","v":0},{"$f":"+'Schedule IIIA (EBS)'!J27","v":0},{"$f":"+'Schedule IIIA (EBS)'!K27","v":0},{"$f":"+'Schedule IIIA (EBS)'!L27","v":0},{"$f":"+'Schedule IIIA (EBS)'!M27","v":0},{"$f":"+'Schedule IIIA (EBS)'!N27","v":0},{"$f":"+'Schedule IIIA (EBS)'!O27","v":0},{"$f":"+'Schedule IIIA (EBS)'!P27","v":0},{"$f":"+'Schedule IIIA (EBS)'!Q27","v":0},{"$f":"+'Schedule IIIA (EBS)'!R27","v":0},{"$f":"+'Schedule IIIA (EBS)'!S27","v":0},{"$f":"+'Schedule IIIA (EBS)'!T27","v":0},{"$f":"+'Schedule IIIA (EBS)'!U27","v":0},{"$f":"+'Schedule IIIA (EBS)'!V27","v":0}]
[null,"International Motor Non-Proportional","Schedule III(a), Line (19)",0,0,1,0,{"$f":"IF('Schedule IIIA (EBS)'!AB28=\"True\",G58,'Schedule III (EBS)'!F28)","v":0},{"$f":"+'Schedule IIIA (EBS)'!E28","v":0},{"$f":"+'Schedule IIIA (EBS)'!F28","v":0},{"$f":"+'Schedule IIIA (EBS)'!G28","v":0},{"$f":"+'Schedule IIIA (EBS)'!H28","v":0},{"$f":"+'Schedule IIIA (EBS)'!I28","v":0},{"$f":"+'Schedule IIIA (EBS)'!J28","v":0},{"$f":"+'Schedule IIIA (EBS)'!K28","v":0},{"$f":"+'Schedule IIIA (EBS)'!L28","v":0},{"$f":"+'Schedule IIIA (EBS)'!M28","v":0},{"$f":"+'Schedule IIIA (EBS)'!N28","v":0},{"$f":"+'Schedule IIIA (EBS)'!O28","v":0},{"$f":"+'Schedule IIIA (EBS)'!P28","v":0},{"$f":"+'Schedule IIIA (EBS)'!Q28","v":0},{"$f":"+'Schedule IIIA (EBS)'!R28","v":0},{"$f":"+'Schedule IIIA (EBS)'!S28","v":0},{"$f":"+'Schedule IIIA (EBS)'!T28","v":0},{"$f":"+'Schedule IIIA (EBS)'!U28","v":0},{"$f":"+'Schedule IIIA (EBS)'!V28","v":0}]
[null,"International Casualty Non-Motor","Schedule III(a), Line (20)",0,0,1,0,{"$f":"IF('Schedule IIIA (EBS)'!AB29=\"True\",G59,'Schedule III (EBS)'!F29)","v":0},{"$f":"+'Schedule IIIA (EBS)'!E29","v":0},{"$f":"+'Schedule IIIA (EBS)'!F29","v":0},{"$f":"+'Schedule IIIA (EBS)'!G29","v":0},{"$f":"+'Schedule IIIA (EBS)'!H29","v":0},{"$f":"+'Schedule IIIA (EBS)'!I29","v":0},{"$f":"+'Schedule IIIA (EBS)'!J29","v":0},{"$f":"+'Schedule IIIA (EBS)'!K29","v":0},{"$f":"+'Schedule IIIA (EBS)'!L29","v":0},{"$f":"+'Schedule IIIA (EBS)'!M29","v":0},{"$f":"+'Schedule IIIA (EBS)'!N29","v":0},{"$f":"+'Schedule IIIA (EBS)'!O29","v":0},{"$f":"+'Schedule IIIA (EBS)'!P29","v":0},{"$f":"+'Schedule IIIA (EBS)'!Q29","v":0},{"$f":"+'Schedule IIIA (EBS)'!R29","v":0},{"$f":"+'Schedule IIIA (EBS)'!S29","v":0},{"$f":"+'Schedule IIIA (EBS)'!T29","v":0},{"$f":"+'Schedule IIIA (EBS)'!U29","v":0},{"$f":"+'Schedule IIIA (EBS)'!V29","v":0}]
[null,"International Casualty Non-Motor Non-Proportional","Schedule III(a), Line (21)",0,0,1,0,{"$f":"IF('Schedule IIIA (EBS)'!AB30=\"True\",G60,'Schedule III (EBS)'!F30)","v":0},{"$f":"+'Schedule IIIA (EBS)'!E30","v":0},{"$f":"+'Schedule IIIA (EBS)'!F30","v":0},{"$f":"+'Schedule IIIA (EBS)'!G30","v":0},{"$f":"+'Schedule IIIA (EBS)'!H30","v":0},{"$f":"+'Schedule IIIA (EBS)'!I30","v":0},{"$f":"+'Schedule IIIA (EBS)'!J30","v":0},{"$f":"+'Schedule IIIA (EBS)'!K30","v":0},{"$f":"+'Schedule IIIA (EBS)'!L30","v":0},{"$f":"+'Schedule IIIA (EBS)'!M30","v":0},{"$f":"+'Schedule IIIA (EBS)'!N30","v":0},{"$f":"+'Schedule IIIA (EBS)'!O30","v":0},{"$f":"+'Schedule IIIA (EBS)'!P30","v":0},{"$f":"+'Schedule IIIA (EBS)'!Q30","v":0},{"$f":"+'Schedule IIIA (EBS)'!R30","v":0},{"$f":"+'Schedule IIIA (EBS)'!S30","v":0},{"$f":"+'Schedule IIIA (EBS)'!T30","v":0},{"$f":"+'Schedule IIIA (EBS)'!U30","v":0},{"$f":"+'Schedule IIIA (EBS)'!V30","v":0}]
[null,"Retro Property","Schedule III(a), Line (22)",0,0,1,0,{"$f":"IF('Schedule IIIA (EBS)'!AB31=\"True\",G61,'Schedule III (EBS)'!F31)","v":0},{"$f":"+'Schedule IIIA (EBS)'!E31","v":0},{"$f":"+'Schedule IIIA (EBS)'!F31","v":0},{"$f":"+'Schedule IIIA (EBS)'!G31","v":0},{"$f":"+'Schedule IIIA (EBS)'!H31","v":0},{"$f":"+'Schedule IIIA (EBS)'!I31","v":0},{"$f":"+'Schedule IIIA (EBS)'!J31","v":0},{"$f":"+'Schedule IIIA (EBS)'!K31","v":0},{"$f":"+'Schedule IIIA (EBS)'!L31","v":0},{"$f":"+'Schedule IIIA (EBS)'!M31","v":0},{"$f":"+'Schedule IIIA (EBS)'!N31","v":0},{"$f":"+'Schedule IIIA (EBS)'!O31","v":0},{"$f":"+'Schedule IIIA (EBS)'!P31","v":0},{"$f":"+'Schedule IIIA (EBS)'!Q31","v":0},{"$f":"+'Schedule IIIA (EBS)'!R31","v":0},{"$f":"+'Schedule IIIA (EBS)'!S31","v":0},{"$f":"+'Schedule IIIA (EBS)'!T31","v":0},{"$f":"+'Schedule IIIA (EBS)'!U31","v":0},{"$f":"+'Schedule IIIA (EBS)'!V31","v":0}]
[null,"Structured / Finite Reinsurance","Schedule III(a), Line (23)",0,0,1,0,{"$f":"IF('Schedule IIIA (EBS)'!AB32=\"True\",G62,'Schedule III (EBS)'!F32)","v":0},{"$f":"+'Schedule IIIA (EBS)'!E32","v":0},{"$f":"+'Schedule IIIA (EBS)'!F32","v":0},{"$f":"+'Schedule IIIA (EBS)'!G32","v":0},{"$f":"+'Schedule IIIA (EBS)'!H32","v":0},{"$f":"+'Schedule IIIA (EBS)'!I32","v":0},{"$f":"+'Schedule IIIA (EBS)'!J32","v":0},{"$f":"+'Schedule IIIA (EBS)'!K32","v":0},{"$f":"+'Schedule IIIA (EBS)'!L32","v":0},{"$f":"+'Schedule IIIA (EBS)'!M32","v":0},{"$f":"+'Schedule IIIA (EBS)'!N32","v":0},{"$f":"+'Schedule IIIA (EBS)'!O32","v":0},{"$f":"+'Schedule IIIA (EBS)'!P32","v":0},{"$f":"+'Schedule IIIA (EBS)'!Q32","v":0},{"$f":"+'Schedule IIIA (EBS)'!R32","v":0},{"$f":"+'Schedule IIIA (EBS)'!S32","v":0},{"$f":"+'Schedule IIIA (EBS)'!T32","v":0},{"$f":"+'Schedule IIIA (EBS)'!U32","v":0},{"$f":"+'Schedule IIIA (EBS)'!V32","v":0}]
[null,"Health","Schedule III(a), Line (24)",0,0,1,0,{"$f":"IF('Schedule IIIA (EBS)'!AB33=\"True\",G63,'Schedule III (EBS)'!F33)","v":0},{"$f":"+'Schedule IIIA (EBS)'!E33","v":0},{"$f":"+'Schedule IIIA (EBS)'!F33","v":0},{"$f":"+'Schedule IIIA (EBS)'!G33","v":0},{"$f":"+'Schedule IIIA (EBS)'!H33","v":0},{"$f":"+'Schedule IIIA (EBS)'!I33","v":0},{"$f":"+'Schedule IIIA (EBS)'!J33","v":0},{"$f":"+'Schedule IIIA (EBS)'!K33","v":0},{"$f":"+'Schedule IIIA (EBS)'!L33","v":0},{"$f":"+'Schedule IIIA (EBS)'!M33","v":0},{"$f":"+'Schedule IIIA (EBS)'!N33","v":0},{"$f":"+'Schedule IIIA (EBS)'!O33","v":0},{"$f":"+'Schedule IIIA (EBS)'!P33","v":0},{"$f":"+'Schedule IIIA (EBS)'!Q33","v":0},{"$f":"+'Schedule IIIA (EBS)'!R33","v":0},{"$f":"+'Schedule IIIA (EBS)'!S33","v":0},{"$f":"+'Schedule IIIA (EBS)'!T33","v":0},{"$f":"+'Schedule IIIA (EBS)'!U33","v":0},{"$f":"+'Schedule IIIA (EBS)'!V33","v":0}]
[]
[null,"(a) TOTAL",null,{"$f":"SUM(D40:D63)","v":0},{"$f":"SUM(E40:E63)","v":0},null,{"$f":"SUM(G40:G63)","v":0},0,0,0,0,0,0,0,0,0,0,0,0,0,0,0,0,0,0,0]

{"sheet":"Geographic Div. (Revised)","index":120,"n_rows":65,"n_cols":26,"rows_kept":65,"cut":false,"hidden":false,"merged":[[2,2,2,3]]}
[".",null,null,null,null,null,null,null,null,null,null,null,null,null,null,null,null,null,null,null,null,null,null,null,null,{"$f":"HYPERLINK(\"#'Index'!A1\",\"Return to Index\")","v":"Return to Index"}]
[{"$f":"+'Group Information'!C9","v":"Enter Parent Company Name"}]
["Geographic Diversification($000)",null,{"$f":"'Group Information'!C3","v":"2023-12-31"}]
[]
[null,null,null,"TOTAL",null,null,null,"CHARGE"]
[null,"NET PREMIUMS WRITTEN BY ",null,"NET","SUM","DIVERSIFICATION","PREMIUM","DIVERSIFIED"]
[null,"LINE OF BUSINESS","STATEMENT SOURCE","PREMIUM","SQUARED","FACTOR","USED","PREMIUM",{"$f":"HYPERLINK(\"#'Zones'!c4\",\"Zone 1\")","v":"Zone 1"},{"$f":"HYPERLINK(\"#'Zones'!c13\",\"Zone 2\")","v":"Zone 2"},{"$f":"HYPERLINK(\"#'Zones'!c18\",\"Zone 3\")","v":"Zone 3"},{"$f":"HYPERLINK(\"#'Zones'!c26\",\"Zone 4\")","v":"Zone 4"},{"$f":"HYPERLINK(\"#'Zones'!c36\",\"Zone 5\")","v":"Zone 5"},{"$f":"HYPERLINK(\"#'Zones'!c46\",\"Zone 6\")","v":"Zone 6"},{"$f":"HYPERLINK(\"#'Zones'!c57\",\"Zone 7\")","v":"Zone 7"},{"$f":"HYPERLINK(\"#'Zones'!c68\",\"Zone 8\")","v":"Zone 8"},{"$f":"HYPERLINK(\"#'Zones'!c76\",\"Zone 9\")","v":"Zone 9"},{"$f":"HYPERLINK(\"#'Zones'!c84\",\"Zone 10\")","v":"Zone 10"},{"$f":"HYPERLINK(\"#'Zones'!c90\",\"Zone 11\")","v":"Zone 11"},{"$f":"HYPERLINK(\"#'Zones'!c94\",\"Zone 12\")","v":"Zone 12"},{"$f":"HYPERLINK(\"#'Zones'!c107\",\"Zone 13\")","v":"Zone 13"},{"$f":"HYPERLINK(\"#'Zones'!c112\",\"Zone 14\")","v":"Zone 14"},{"$f":"HYPERLINK(\"#'Zones'!c116\",\"Zone 15\")","v":"Zone 15"},{"$f":"HYPERLINK(\"#'Zones'!c121\",\"Zone 16\")","v":"Zone 16"},{"$f":"HYPERLINK(\"#'Zones'!c127\",\"Zone 17\")","v":"Zone 17"},{"$f":"HYPERLINK(\"#'Zones'!c133\",\"Zone 18\")","v":"Zone 18"}]
[]
[null,"Property Catastrophe","Schedule IV(a), Line (1)",{"$f":"SUM(I9:Z9)","v":0},{"$f":"SUMSQ(I9:Z9)","v":0},{"$f":"(IF(D9>0,E9/D9^2,1))","v":1},{"$f":"D9*(0.75+0.25*F9)","v":0},{"$f":"IF('Schedule IVE (EBS)'!AB9=\"True\",G9,'Schedule IVD (EBS)'!O9)","v":0},{"$f":"+'Schedule IVE (EBS)'!E9","v":0},{"$f":"+'Schedule IVE (EBS)'!F9","v":0},{"$f":"+'Schedule IVE (EBS)'!G9","v":0},{"$f":"+'Schedule IVE (EBS)'!H9","v":0},{"$f":"+'Schedule IVE (EBS)'!I9","v":0},{"$f":"+'Schedule IVE (EBS)'!J9","v":0},{"$f":"+'Schedule IVE (EBS)'!K9","v":0},{"$f":"+'Schedule IVE (EBS)'!L9","v":0},{"$f":"+'Schedule IVE (EBS)'!M9","v":0},{"$f":"+'Schedule IVE (EBS)'!N9","v":0},{"$f":"+'Schedule IVE (EBS)'!O9","v":0},{"$f":"+'Schedule IVE (EBS)'!P9","v":0},{"$f":"+'Schedule IVE (EBS)'!Q9","v":0},{"$f":"+'Schedule IVE (EBS)'!R9","v":0},{"$f":"+'Schedule IVE (EBS)'!S9","v":0},{"$f":"+'Schedule IVE (EBS)'!T9","v":0},{"$f":"+'Schedule IVE (EBS)'!U9","v":0},{"$f":"+'Schedule IVE (EBS)'!V9","v":0}]
[null,"Property","Schedule IV(a), Line (2)",{"$f":"SUM(I10:Z10)","v":0},{"$f":"SUMSQ(I10:Z10)","v":0},{"$f":"(IF(D10>0,E10/D10^2,1))","v":1},{"$f":"D10*(0.75+0.25*F10)","v":0},{"$f":"IF('Schedule IVE (EBS)'!AB10=\"True\",G10,'Schedule IVD (EBS)'!O10)","v":0},{"$f":"+'Schedule IVE (EBS)'!E10","v":0},{"$f":"+'Schedule IVE (EBS)'!F10","v":0},{"$f":"+'Schedule IVE (EBS)'!G10","v":0},{"$f":"+'Schedule IVE (EBS)'!H10","v":0},{"$f":"+'Schedule IVE (EBS)'!I10","v":0},{"$f":"+'Schedule IVE (EBS)'!J10","v":0},{"$f":"+'Schedule IVE (EBS)'!K10","v":0},{"$f":"+'Schedule IVE (EBS)'!L10","v":0},{"$f":"+'Schedule IVE (EBS)'!M10","v":0},{"$f":"+'Schedule IVE (EBS)'!N10","v":0},{"$f":"+'Schedule IVE (EBS)'!O10","v":0},{"$f":"+'Schedule IVE (EBS)'!P10","v":0},{"$f":"+'Schedule IVE (EBS)'!Q10","v":0},{"$f":"+'Schedule IVE (EBS)'!R10","v":0},{"$f":"+'Schedule IVE (EBS)'!S10","v":0},{"$f":"+'Schedule IVE (EBS)'!T10","v":0},{"$f":"+'Schedule IVE (EBS)'!U10","v":0},{"$f":"+'Schedule IVE (EBS)'!V10","v":0}]
[null,"Property Non-Proportional","Schedule IV(a), Line (3)",0,0,1,0,{"$f":"IF('Schedule IVE (EBS)'!AB11=\"True\",G11,'Schedule IVD (EBS)'!O11)","v":0},{"$f":"+'Schedule IVE (EBS)'!E11","v":0},{"$f":"+'Schedule IVE (EBS)'!F11","v":0},{"$f":"+'Schedule IVE (EBS)'!G11","v":0},{"$f":"+'Schedule IVE (EBS)'!H11","v":0},{"$f":"+'Schedule IVE (EBS)'!I11","v":0},{"$f":"+'Schedule IVE (EBS)'!J11","v":0},{"$f":"+'Schedule IVE (EBS)'!K11","v":0},{"$f":"+'Schedule IVE (EBS)'!L11","v":0},{"$f":"+'Schedule IVE (EBS)'!M11","v":0},{"$f":"+'Schedule IVE (EBS)'!N11","v":0},{"$f":"+'Schedule IVE (EBS)'!O11","v":0},{"$f":"+'Schedule IVE (EBS)'!P11","v":0},{"$f":"+'Schedule IVE (EBS)'!Q11","v":0},{"$f":"+'Schedule IVE (EBS)'!R11","v":0},{"$f":"+'Schedule IVE (EBS)'!S11","v":0},{"$f":"+'Schedule IVE (EBS)'!T11","v":0},{"$f":"+'Schedule IVE (EBS)'!U11","v":0},{"$f":"+'Schedule IVE (EBS)'!V11","v":0}]
[null,"Personal Accident","Schedule IV(a), Line (4)",0,0,1,0,{"$f":"IF('Schedule IVE (EBS)'!AB12=\"True\",G12,'Schedule IVD (EBS)'!O12)","v":0},{"$f":"+'Schedule IVE (EBS)'!E12","v":0},{"$f":"+'Schedule IVE (EBS)'!F12","v":0},{"$f":"+'Schedule IVE (EBS)'!G12","v":0},{"$f":"+'Schedule IVE (EBS)'!H12","v":0},{"$f":"+'Schedule IVE (EBS)'!I12","v":0},{"$f":"+'Schedule IVE (EBS)'!J12","v":0},{"$f":"+'Schedule IVE (EBS)'!K12","v":0},{"$f":"+'Schedule IVE (EBS)'!L12","v":0},{"$f":"+'Schedule IVE (EBS)'!M12","v":0},{"$f":"+'Schedule IVE (EBS)'!N12","v":0},{"$f":"+'Schedule IVE (EBS)'!O12","v":0},{"$f":"+'Schedule IVE (EBS)'!P12","v":0},{"$f":"+'Schedule IVE (EBS)'!Q12","v":0},{"$f":"+'Schedule IVE (EBS)'!R12","v":0},{"$f":"+'Schedule IVE (EBS)'!S12","v":0},{"$f":"+'Schedule IVE (EBS)'!T12","v":0},{"$f":"+'Schedule IVE (EBS)'!U12","v":0},{"$f":"+'Schedule IVE (EBS)'!V12","v":0}]
[null,"Personal Accident Non-Proportional","Schedule IV(a), Line (5)",0,0,1,0,{"$f":"IF('Schedule IVE (EBS)'!AB13=\"True\",G13,'Schedule IVD (EBS)'!O13)","v":0},{"$f":"+'Schedule IVE (EBS)'!E13","v":0},{"$f":"+'Schedule IVE (EBS)'!F13","v":0},{"$f":"+'Schedule IVE (EBS)'!G13","v":0},{"$f":"+'Schedule IVE (EBS)'!H13","v":0},{"$f":"+'Schedule IVE (EBS)'!I13","v":0},{"$f":"+'Schedule IVE (EBS)'!J13","v":0},{"$f":"+'Schedule IVE (EBS)'!K13","v":0},{"$f":"+'Schedule IVE (EBS)'!L13","v":0},{"$f":"+'Schedule IVE (EBS)'!M13","v":0},{"$f":"+'Schedule IVE (EBS)'!N13","v":0},{"$f":"+'Schedule IVE (EBS)'!O13","v":0},{"$f":"+'Schedule IVE (EBS)'!P13","v":0},{"$f":"+'Schedule IVE (EBS)'!Q13","v":0},{"$f":"+'Schedule IVE (EBS)'!R13","v":0},{"$f":"+'Schedule IVE (EBS)'!S13","v":0},{"$f":"+'Schedule IVE (EBS)'!T13","v":0},{"$f":"+'Schedule IVE (EBS)'!U13","v":0},{"$f":"+'Schedule IVE (EBS)'!V13","v":0}]
[null,"Aviation","Schedule IV(a), Line (6)",0,0,1,0,{"$f":"IF('Schedule IVE (EBS)'!AB14=\"True\",G14,'Schedule IVD (EBS)'!O14)","v":0},{"$f":"+'Schedule IVE (EBS)'!E14","v":0},{"$f":"+'Schedule IVE (EBS)'!F14","v":0},{"$f":"+'Schedule IVE (EBS)'!G14","v":0},{"$f":"+'Schedule IVE (EBS)'!H14","v":0},{"$f":"+'Schedule IVE (EBS)'!I14","v":0},{"$f":"+'Schedule IVE (EBS)'!J14","v":0},{"$f":"+'Schedule IVE (EBS)'!K14","v":0},{"$f":"+'Schedule IVE (EBS)'!L14","v":0},{"$f":"+'Schedule IVE (EBS)'!M14","v":0},{"$f":"+'Schedule IVE (EBS)'!N14","v":0},{"$f":"+'Schedule IVE (EBS)'!O14","v":0},{"$f":"+'Schedule IVE (EBS)'!P14","v":0},{"$f":"+'Schedule IVE (EBS)'!Q14","v":0},{"$f":"+'Schedule IVE (EBS)'!R14","v":0},{"$f":"+'Schedule IVE (EBS)'!S14","v":0},{"$f":"+'Schedule IVE (EBS)'!T14","v":0},{"$f":"+'Schedule IVE (EBS)'!U14","v":0},{"$f":"+'Schedule IVE (EBS)'!V14","v":0}]
[null,"Aviation Non-Proportional","Schedule IV(a), Line (7)",0,0,1,0,{"$f":"IF('Schedule IVE (EBS)'!AB15=\"True\",G15,'Schedule IVD (EBS)'!O15)","v":0},{"$f":"+'Schedule IVE (EBS)'!E15","v":0},{"$f":"+'Schedule IVE (EBS)'!F15","v":0},{"$f":"+'Schedule IVE (EBS)'!G15","v":0},{"$f":"+'Schedule IVE (EBS)'!H15","v":0},{"$f":"+'Schedule IVE (EBS)'!I15","v":0},{"$f":"+'Schedule IVE (EBS)'!J15","v":0},{"$f":"+'Schedule IVE (EBS)'!K15","v":0},{"$f":"+'Schedule IVE (EBS)'!L15","v":0},{"$f":"+'Schedule IVE (EBS)'!M15","v":0},{"$f":"+'Schedule IVE (EBS)'!N15","v":0},{"$f":"+'Schedule IVE (EBS)'!O15","v":0},{"$f":"+'Schedule IVE (EBS)'!P15","v":0},{"$f":"+'Schedule IVE (EBS)'!Q15","v":0},{"$f":"+'Schedule IVE (EBS)'!R15","v":0},{"$f":"+'Schedule IVE (EBS)'!S15","v":0},{"$f":"+'Schedule IVE (EBS)'!T15","v":0},{"$f":"+'Schedule IVE (EBS)'!U15","v":0},{"$f":"+'Schedule IVE (EBS)'!V15","v":0}]
[null,"Credit / Surety","Schedule IV(a), Line (8)",0,0,1,0,{"$f":"IF('Schedule IVE (EBS)'!AB16=\"True\",G16,'Schedule IVD (EBS)'!O16)","v":0},{"$f":"+'Schedule IVE (EBS)'!E16","v":0},{"$f":"+'Schedule IVE (EBS)'!F16","v":0},{"$f":"+'Schedule IVE (EBS)'!G16","v":0},{"$f":"+'Schedule IVE (EBS)'!H16","v":0},{"$f":"+'Schedule IVE (EBS)'!I16","v":0},{"$f":"+'Schedule IVE (EBS)'!J16","v":0},{"$f":"+'Schedule IVE (EBS)'!K16","v":0},{"$f":"+'Schedule IVE (EBS)'!L16","v":0},{"$f":"+'Schedule IVE (EBS)'!M16","v":0},{"$f":"+'Schedule IVE (EBS)'!N16","v":0},{"$f":"+'Schedule IVE (EBS)'!O16","v":0},{"$f":"+'Schedule IVE (EBS)'!P16","v":0},{"$f":"+'Schedule IVE (EBS)'!Q16","v":0},{"$f":"+'Schedule IVE (EBS)'!R16","v":0},{"$f":"+'Schedule IVE (EBS)'!S16","v":0},{"$f":"+'Schedule IVE (EBS)'!T16","v":0},{"$f":"+'Schedule IVE (EBS)'!U16","v":0},{"$f":"+'Schedule IVE (EBS)'!V16","v":0}]
[null,"Credit / Surety Non-Proportional","Schedule IV(a), Line (9)",0,0,1,0,{"$f":"IF('Schedule IVE (EBS)'!AB17=\"True\",G17,'Schedule IVD (EBS)'!O17)","v":0},{"$f":"+'Schedule IVE (EBS)'!E17","v":0},{"$f":"+'Schedule IVE (EBS)'!F17","v":0},{"$f":"+'Schedule IVE (EBS)'!G17","v":0},{"$f":"+'Schedule IVE (EBS)'!H17","v":0},{"$f":"+'Schedule IVE (EBS)'!I17","v":0},{"$f":"+'Schedule IVE (EBS)'!J17","v":0},{"$f":"+'Schedule IVE (EBS)'!K17","v":0},{"$f":"+'Schedule IVE (EBS)'!L17","v":0},{"$f":"+'Schedule IVE (EBS)'!M17","v":0},{"$f":"+'Schedule IVE (EBS)'!N17","v":0},{"$f":"+'Schedule IVE (EBS)'!O17","v":0},{"$f":"+'Schedule IVE (EBS)'!P17","v":0},{"$f":"+'Schedule IVE (EBS)'!Q17","v":0},{"$f":"+'Schedule IVE (EBS)'!R17","v":0},{"$f":"+'Schedule IVE (EBS)'!S17","v":0},{"$f":"+'Schedule IVE (EBS)'!T17","v":0},{"$f":"+'Schedule IVE (EBS)'!U17","v":0},{"$f":"+'Schedule IVE (EBS)'!V17","v":0}]
[null,"Energy Offshore / Marine","Schedule IV(a), Line (10)",0,0,1,0,{"$f":"IF('Schedule IVE (EBS)'!AB18=\"True\",G18,'Schedule IVD (EBS)'!O18)","v":0},{"$f":"+'Schedule IVE (EBS)'!E18","v":0},{"$f":"+'Schedule IVE (EBS)'!F18","v":0},{"$f":"+'Schedule IVE (EBS)'!G18","v":0},{"$f":"+'Schedule IVE (EBS)'!H18","v":0},{"$f":"+'Schedule IVE (EBS)'!I18","v":0},{"$f":"+'Schedule IVE (EBS)'!J18","v":0},{"$f":"+'Schedule IVE (EBS)'!K18","v":0},{"$f":"+'Schedule IVE (EBS)'!L18","v":0},{"$f":"+'Schedule IVE (EBS)'!M18","v":0},{"$f":"+'Schedule IVE (EBS)'!N18","v":0},{"$f":"+'Schedule IVE (EBS)'!O18","v":0},{"$f":"+'Schedule IVE (EBS)'!P18","v":0},{"$f":"+'Schedule IVE (EBS)'!Q18","v":0},{"$f":"+'Schedule IVE (EBS)'!R18","v":0},{"$f":"+'Schedule IVE (EBS)'!S18","v":0},{"$f":"+'Schedule IVE (EBS)'!T18","v":0},{"$f":"+'Schedule IVE (EBS)'!U18","v":0},{"$f":"+'Schedule IVE (EBS)'!V18","v":0}]
[null,"Energy Offshore / Marine Non-Proportional","Schedule IV(a), Line (11)",0,0,1,0,{"$f":"IF('Schedule IVE (EBS)'!AB19=\"True\",G19,'Schedule IVD (EBS)'!O19)","v":0},{"$f":"+'Schedule IVE (EBS)'!E19","v":0},{"$f":"+'Schedule IVE (EBS)'!F19","v":0},{"$f":"+'Schedule IVE (EBS)'!G19","v":0},{"$f":"+'Schedule IVE (EBS)'!H19","v":0},{"$f":"+'Schedule IVE (EBS)'!I19","v":0},{"$f":"+'Schedule IVE (EBS)'!J19","v":0},{"$f":"+'Schedule IVE (EBS)'!K19","v":0},{"$f":"+'Schedule IVE (EBS)'!L19","v":0},{"$f":"+'Schedule IVE (EBS)'!M19","v":0},{"$f":"+'Schedule IVE (EBS)'!N19","v":0},{"$f":"+'Schedule IVE (EBS)'!O19","v":0},{"$f":"+'Schedule IVE (EBS)'!P19","v":0},{"$f":"+'Schedule IVE (EBS)'!Q19","v":0},{"$f":"+'Schedule IVE (EBS)'!R19","v":0},{"$f":"+'Schedule IVE (EBS)'!S19","v":0},{"$f":"+'Schedule IVE (EBS)'!T19","v":0},{"$f":"+'Schedule IVE (EBS)'!U19","v":0},{"$f":"+'Schedule IVE (EBS)'!V19","v":0}]
[null,"US Casualty","Schedule IV(a), Line (12)",0,0,1,0,{"$f":"IF('Schedule IVE (EBS)'!AB20=\"True\",G20,'Schedule IVD (EBS)'!O20)","v":0},{"$f":"+'Schedule IVE (EBS)'!E20","v":0},{"$f":"+'Schedule IVE (EBS)'!F20","v":0},{"$f":"+'Schedule IVE (EBS)'!G20","v":0},{"$f":"+'Schedule IVE (EBS)'!H20","v":0},{"$f":"+'Schedule IVE (EBS)'!I20","v":0},{"$f":"+'Schedule IVE (EBS)'!J20","v":0},{"$f":"+'Schedule IVE (EBS)'!K20","v":0},{"$f":"+'Schedule IVE (EBS)'!L20","v":0},{"$f":"+'Schedule IVE (EBS)'!M20","v":0},{"$f":"+'Schedule IVE (EBS)'!N20","v":0},{"$f":"+'Schedule IVE (EBS)'!O20","v":0},{"$f":"+'Schedule IVE (EBS)'!P20","v":0},{"$f":"+'Schedule IVE (EBS)'!Q20","v":0},{"$f":"+'Schedule IVE (EBS)'!R20","v":0},{"$f":"+'Schedule IVE (EBS)'!S20","v":0},{"$f":"+'Schedule IVE (EBS)'!T20","v":0},{"$f":"+'Schedule IVE (EBS)'!U20","v":0},{"$f":"+'Schedule IVE (EBS)'!V20","v":0}]
[null,"US Casualty Non-Proportional","Schedule IV(a), Line (13)",0,0,1,0,{"$f":"IF('Schedule IVE (EBS)'!AB21=\"True\",G21,'Schedule IVD (EBS)'!O21)","v":0},{"$f":"+'Schedule IVE (EBS)'!E21","v":0},{"$f":"+'Schedule IVE (EBS)'!F21","v":0},{"$f":"+'Schedule IVE (EBS)'!G21","v":0},{"$f":"+'Schedule IVE (EBS)'!H21","v":0},{"$f":"+'Schedule IVE (EBS)'!I21","v":0},{"$f":"+'Schedule IVE (EBS)'!J21","v":0},{"$f":"+'Schedule IVE (EBS)'!K21","v":0},{"$f":"+'Schedule IVE (EBS)'!L21","v":0},{"$f":"+'Schedule IVE (EBS)'!M21","v":0},{"$f":"+'Schedule IVE (EBS)'!N21","v":0},{"$f":"+'Schedule IVE (EBS)'!O21","v":0},{"$f":"+'Schedule IVE (EBS)'!P21","v":0},{"$f":"+'Schedule IVE (EBS)'!Q21","v":0},{"$f":"+'Schedule IVE (EBS)'!R21","v":0},{"$f":"+'Schedule IVE (EBS)'!S21","v":0},{"$f":"+'Schedule IVE (EBS)'!T21","v":0},{"$f":"+'Schedule IVE (EBS)'!U21","v":0},{"$f":"+'Schedule IVE (EBS)'!V21","v":0}]
[null,"US Professional","Schedule IV(a), Line (14)",0,0,1,0,{"$f":"IF('Schedule IVE (EBS)'!AB22=\"True\",G22,'Schedule IVD (EBS)'!O22)","v":0},{"$f":"+'Schedule IVE (EBS)'!E22","v":0},{"$f":"+'Schedule IVE (EBS)'!F22","v":0},{"$f":"+'Schedule IVE (EBS)'!G22","v":0},{"$f":"+'Schedule IVE (EBS)'!H22","v":0},{"$f":"+'Schedule IVE (EBS)'!I22","v":0},{"$f":"+'Schedule IVE (EBS)'!J22","v":0},{"$f":"+'Schedule IVE (EBS)'!K22","v":0},{"$f":"+'Schedule IVE (EBS)'!L22","v":0},{"$f":"+'Schedule IVE (EBS)'!M22","v":0},{"$f":"+'Schedule IVE (EBS)'!N22","v":0},{"$f":"+'Schedule IVE (EBS)'!O22","v":0},{"$f":"+'Schedule IVE (EBS)'!P22","v":0},{"$f":"+'Schedule IVE (EBS)'!Q22","v":0},{"$f":"+'Schedule IVE (EBS)'!R22","v":0},{"$f":"+'Schedule IVE (EBS)'!S22","v":0},{"$f":"+'Schedule IVE (EBS)'!T22","v":0},{"$f":"+'Schedule IVE (EBS)'!U22","v":0},{"$f":"+'Schedule IVE (EBS)'!V22","v":0}]
[null,"US Professional Non-Proportional","Schedule IV(a), Line (15)",0,0,1,0,{"$f":"IF('Schedule IVE (EBS)'!AB23=\"True\",G23,'Schedule IVD (EBS)'!O23)","v":0},{"$f":"+'Schedule IVE (EBS)'!E23","v":0},{"$f":"+'Schedule IVE (EBS)'!F23","v":0},{"$f":"+'Schedule IVE (EBS)'!G23","v":0},{"$f":"+'Schedule IVE (EBS)'!H23","v":0},{"$f":"+'Schedule IVE (EBS)'!I23","v":0},{"$f":"+'Schedule IVE (EBS)'!J23","v":0},{"$f":"+'Schedule IVE (EBS)'!K23","v":0},{"$f":"+'Schedule IVE (EBS)'!L23","v":0},{"$f":"+'Schedule IVE (EBS)'!M23","v":0},{"$f":"+'Schedule IVE (EBS)'!N23","v":0},{"$f":"+'Schedule IVE (EBS)'!O23","v":0},{"$f":"+'Schedule IVE (EBS)'!P23","v":0},{"$f":"+'Schedule IVE (EBS)'!Q23","v":0},{"$f":"+'Schedule IVE (EBS)'!R23","v":0},{"$f":"+'Schedule IVE (EBS)'!S23","v":0},{"$f":"+'Schedule IVE (EBS)'!T23","v":0},{"$f":"+'Schedule IVE (EBS)'!U23","v":0},{"$f":"+'Schedule IVE (EBS)'!V23","v":0}]
[null,"US Specialty","Schedule IV(a), Line (16)",0,0,1,0,{"$f":"IF('Schedule IVE (EBS)'!AB24=\"True\",G24,'Schedule IVD (EBS)'!O24)","v":0},{"$f":"+'Schedule IVE (EBS)'!E24","v":0},{"$f":"+'Schedule IVE (EBS)'!F24","v":0},{"$f":"+'Schedule IVE (EBS)'!G24","v":0},{"$f":"+'Schedule IVE (EBS)'!H24","v":0},{"$f":"+'Schedule IVE (EBS)'!I24","v":0},{"$f":"+'Schedule IVE (EBS)'!J24","v":0},{"$f":"+'Schedule IVE (EBS)'!K24","v":0},{"$f":"+'Schedule IVE (EBS)'!L24","v":0},{"$f":"+'Schedule IVE (EBS)'!M24","v":0},{"$f":"+'Schedule IVE (EBS)'!N24","v":0},{"$f":"+'Schedule IVE (EBS)'!O24","v":0},{"$f":"+'Schedule IVE (EBS)'!P24","v":0},{"$f":"+'Schedule IVE (EBS)'!Q24","v":0},{"$f":"+'Schedule IVE (EBS)'!R24","v":0},{"$f":"+'Schedule IVE (EBS)'!S24","v":0},{"$f":"+'Schedule IVE (EBS)'!T24","v":0},{"$f":"+'Schedule IVE (EBS)'!U24","v":0},{"$f":"+'Schedule IVE (EBS)'!V24","v":0}]
[null,"US Specialty Non-Proportional","Schedule IV(a), Line (17)",0,0,1,0,{"$f":"IF('Schedule IVE (EBS)'!AB25=\"True\",G25,'Schedule IVD (EBS)'!O25)","v":0},{"$f":"+'Schedule IVE (EBS)'!E25","v":0},{"$f":"+'Schedule IVE (EBS)'!F25","v":0},{"$f":"+'Schedule IVE (EBS)'!G25","v":0},{"$f":"+'Schedule IVE (EBS)'!H25","v":0},{"$f":"+'Schedule IVE (EBS)'!I25","v":0},{"$f":"+'Schedule IVE (EBS)'!J25","v":0},{"$f":"+'Schedule IVE (EBS)'!K25","v":0},{"$f":"+'Schedule IVE (EBS)'!L25","v":0},{"$f":"+'Schedule IVE (EBS)'!M25","v":0},{"$f":"+'Schedule IVE (EBS)'!N25","v":0},{"$f":"+'Schedule IVE (EBS)'!O25","v":0},{"$f":"+'Schedule IVE (EBS)'!P25","v":0},{"$f":"+'Schedule IVE (EBS)'!Q25","v":0},{"$f":"+'Schedule IVE (EBS)'!R25","v":0},{"$f":"+'Schedule IVE (EBS)'!S25","v":0},{"$f":"+'Schedule IVE (EBS)'!T25","v":0},{"$f":"+'Schedule IVE (EBS)'!U25","v":0},{"$f":"+'Schedule IVE (EBS)'!V25","v":0}]
[null,"International Motor","Schedule IV(a), Line (18)",0,0,1,0,{"$f":"IF('Schedule IVE (EBS)'!AB26=\"True\",G26,'Schedule IVD (EBS)'!O26)","v":0},{"$f":"+'Schedule IVE (EBS)'!E26","v":0},{"$f":"+'Schedule IVE (EBS)'!F26","v":0},{"$f":"+'Schedule IVE (EBS)'!G26","v":0},{"$f":"+'Schedule IVE (EBS)'!H26","v":0},{"$f":"+'Schedule IVE (EBS)'!I26","v":0},{"$f":"+'Schedule IVE (EBS)'!J26","v":0},{"$f":"+'Schedule IVE (EBS)'!K26","v":0},{"$f":"+'Schedule IVE (EBS)'!L26","v":0},{"$f":"+'Schedule IVE (EBS)'!M26","v":0},{"$f":"+'Schedule IVE (EBS)'!N26","v":0},{"$f":"+'Schedule IVE (EBS)'!O26","v":0},{"$f":"+'Schedule IVE (EBS)'!P26","v":0},{"$f":"+'Schedule IVE (EBS)'!Q26","v":0},{"$f":"+'Schedule IVE (EBS)'!R26","v":0},{"$f":"+'Schedule IVE (EBS)'!S26","v":0},{"$f":"+'Schedule IVE (EBS)'!T26","v":0},{"$f":"+'Schedule IVE (EBS)'!U26","v":0},{"$f":"+'Schedule IVE (EBS)'!V26","v":0}]
[null,"International Motor Non-Proportional","Schedule IV(a), Line (19)",0,0,1,0,{"$f":"IF('Schedule IVE (EBS)'!AB27=\"True\",G27,'Schedule IVD (EBS)'!O27)","v":0},{"$f":"+'Schedule IVE (EBS)'!E27","v":0},{"$f":"+'Schedule IVE (EBS)'!F27","v":0},{"$f":"+'Schedule IVE (EBS)'!G27","v":0},{"$f":"+'Schedule IVE (EBS)'!H27","v":0},{"$f":"+'Schedule IVE (EBS)'!I27","v":0},{"$f":"+'Schedule IVE (EBS)'!J27","v":0},{"$f":"+'Schedule IVE (EBS)'!K27","v":0},{"$f":"+'Schedule IVE (EBS)'!L27","v":0},{"$f":"+'Schedule IVE (EBS)'!M27","v":0},{"$f":"+'Schedule IVE (EBS)'!N27","v":0},{"$f":"+'Schedule IVE (EBS)'!O27","v":0},{"$f":"+'Schedule IVE (EBS)'!P27","v":0},{"$f":"+'Schedule IVE (EBS)'!Q27","v":0},{"$f":"+'Schedule IVE (EBS)'!R27","v":0},{"$f":"+'Schedule IVE (EBS)'!S27","v":0},{"$f":"+'Schedule IVE (EBS)'!T27","v":0},{"$f":"+'Schedule IVE (EBS)'!U27","v":0},{"$f":"+'Schedule IVE (EBS)'!V27","v":0}]
[null,"International Casualty Non-Motor","Schedule IV(a), Line (20)",0,0,1,0,{"$f":"IF('Schedule IVE (EBS)'!AB28=\"True\",G28,'Schedule IVD (EBS)'!O28)","v":0},{"$f":"+'Schedule IVE (EBS)'!E28","v":0},{"$f":"+'Schedule IVE (EBS)'!F28","v":0},{"$f":"+'Schedule IVE (EBS)'!G28","v":0},{"$f":"+'Schedule IVE (EBS)'!H28","v":0},{"$f":"+'Schedule IVE (EBS)'!I28","v":0},{"$f":"+'Schedule IVE (EBS)'!J28","v":0},{"$f":"+'Schedule IVE (EBS)'!K28","v":0},{"$f":"+'Schedule IVE (EBS)'!L28","v":0},{"$f":"+'Schedule IVE (EBS)'!M28","v":0},{"$f":"+'Schedule IVE (EBS)'!N28","v":0},{"$f":"+'Schedule IVE (EBS)'!O28","v":0},{"$f":"+'Schedule IVE (EBS)'!P28","v":0},{"$f":"+'Schedule IVE (EBS)'!Q28","v":0},{"$f":"+'Schedule IVE (EBS)'!R28","v":0},{"$f":"+'Schedule IVE (EBS)'!S28","v":0},{"$f":"+'Schedule IVE (EBS)'!T28","v":0},{"$f":"+'Schedule IVE (EBS)'!U28","v":0},{"$f":"+'Schedule IVE (EBS)'!V28","v":0}]
[null,"International Casualty Non-Motor Non-Proportional","Schedule IV(a), Line (21)",0,0,1,0,{"$f":"IF('Schedule IVE (EBS)'!AB29=\"True\",G29,'Schedule IVD (EBS)'!O29)","v":0},{"$f":"+'Schedule IVE (EBS)'!E29","v":0},{"$f":"+'Schedule IVE (EBS)'!F29","v":0},{"$f":"+'Schedule IVE (EBS)'!G29","v":0},{"$f":"+'Schedule IVE (EBS)'!H29","v":0},{"$f":"+'Schedule IVE (EBS)'!I29","v":0},{"$f":"+'Schedule IVE (EBS)'!J29","v":0},{"$f":"+'Schedule IVE (EBS)'!K29","v":0},{"$f":"+'Schedule IVE (EBS)'!L29","v":0},{"$f":"+'Schedule IVE (EBS)'!M29","v":0},{"$f":"+'Schedule IVE (EBS)'!N29","v":0},{"$f":"+'Schedule IVE (EBS)'!O29","v":0},{"$f":"+'Schedule IVE (EBS)'!P29","v":0},{"$f":"+'Schedule IVE (EBS)'!Q29","v":0},{"$f":"+'Schedule IVE (EBS)'!R29","v":0},{"$f":"+'Schedule IVE (EBS)'!S29","v":0},{"$f":"+'Schedule IVE (EBS)'!T29","v":0},{"$f":"+'Schedule IVE (EBS)'!U29","v":0},{"$f":"+'Schedule IVE (EBS)'!V29","v":0}]
[null,"Retro Property","Schedule IV(a), Line (22)",0,0,1,0,{"$f":"IF('Schedule IVE (EBS)'!AB30=\"True\",G30,'Schedule IVD (EBS)'!O30)","v":0},{"$f":"+'Schedule IVE (EBS)'!E30","v":0},{"$f":"+'Schedule IVE (EBS)'!F30","v":0},{"$f":"+'Schedule IVE (EBS)'!G30","v":0},{"$f":"+'Schedule IVE (EBS)'!H30","v":0},{"$f":"+'Schedule IVE (EBS)'!I30","v":0},{"$f":"+'Schedule IVE (EBS)'!J30","v":0},{"$f":"+'Schedule IVE (EBS)'!K30","v":0},{"$f":"+'Schedule IVE (EBS)'!L30","v":0},{"$f":"+'Schedule IVE (EBS)'!M30","v":0},{"$f":"+'Schedule IVE (EBS)'!N30","v":0},{"$f":"+'Schedule IVE (EBS)'!O30","v":0},{"$f":"+'Schedule IVE (EBS)'!P30","v":0},{"$f":"+'Schedule IVE (EBS)'!Q30","v":0},{"$f":"+'Schedule IVE (EBS)'!R30","v":0},{"$f":"+'Schedule IVE (EBS)'!S30","v":0},{"$f":"+'Schedule IVE (EBS)'!T30","v":0},{"$f":"+'Schedule IVE (EBS)'!U30","v":0},{"$f":"+'Schedule IVE (EBS)'!V30","v":0}]
[null,"Structured / Finite Reinsurance","Schedule IV(a), Line (23)",0,0,1,0,{"$f":"IF('Schedule IVE (EBS)'!AB31=\"True\",G31,'Schedule IVD (EBS)'!O31)","v":0},{"$f":"+'Schedule IVE (EBS)'!E31","v":0},{"$f":"+'Schedule IVE (EBS)'!F31","v":0},{"$f":"+'Schedule IVE (EBS)'!G31","v":0},{"$f":"+'Schedule IVE (EBS)'!H31","v":0},{"$f":"+'Schedule IVE (EBS)'!I31","v":0},{"$f":"+'Schedule IVE (EBS)'!J31","v":0},{"$f":"+'Schedule IVE (EBS)'!K31","v":0},{"$f":"+'Schedule IVE (EBS)'!L31","v":0},{"$f":"+'Schedule IVE (EBS)'!M31","v":0},{"$f":"+'Schedule IVE (EBS)'!N31","v":0},{"$f":"+'Schedule IVE (EBS)'!O31","v":0},{"$f":"+'Schedule IVE (EBS)'!P31","v":0},{"$f":"+'Schedule IVE (EBS)'!Q31","v":0},{"$f":"+'Schedule IVE (EBS)'!R31","v":0},{"$f":"+'Schedule IVE (EBS)'!S31","v":0},{"$f":"+'Schedule IVE (EBS)'!T31","v":0},{"$f":"+'Schedule IVE (EBS)'!U31","v":0},{"$f":"+'Schedule IVE (EBS)'!V31","v":0}]
[null,"Health","Schedule IV(a), Line (24)",0,0,1,0,{"$f":"IF('Schedule IVE (EBS)'!AB32=\"True\",G32,'Schedule IVD (EBS)'!O32)","v":0},{"$f":"+'Schedule IVE (EBS)'!E32","v":0},{"$f":"+'Schedule IVE (EBS)'!F32","v":0},{"$f":"+'Schedule IVE (EBS)'!G32","v":0},{"$f":"+'Schedule IVE (EBS)'!H32","v":0},{"$f":"+'Schedule IVE (EBS)'!I32","v":0},{"$f":"+'Schedule IVE (EBS)'!J32","v":0},{"$f":"+'Schedule IVE (EBS)'!K32","v":0},{"$f":"+'Schedule IVE (EBS)'!L32","v":0},{"$f":"+'Schedule IVE (EBS)'!M32","v":0},{"$f":"+'Schedule IVE (EBS)'!N32","v":0},{"$f":"+'Schedule IVE (EBS)'!O32","v":0},{"$f":"+'Schedule IVE (EBS)'!P32","v":0},{"$f":"+'Schedule IVE (EBS)'!Q32","v":0},{"$f":"+'Schedule IVE (EBS)'!R32","v":0},{"$f":"+'Schedule IVE (EBS)'!S32","v":0},{"$f":"+'Schedule IVE (EBS)'!T32","v":0},{"$f":"+'Schedule IVE (EBS)'!U32","v":0},{"$f":"+'Schedule IVE (EBS)'!V32","v":0}]
[]
[null,"(a) TOTAL",null,{"$f":"SUM(D9:D32)","v":0},{"$f":"SUM(E9:E32)","v":0},null,{"$f":"SUM(G9:G32)","v":0},0,0,0,0,0,0,0,0,0,0,0,0,0,0,0,0,0,0,0]
[]
[null,null,null,"TOTAL",null,null,null,"CHARGE"]
[null,"NET LOSS PROVISION BY ",null,"NET","SUM","DIVERSIFICATION","RESERVE","DIVERSIFIED"]
[null,"LINE OF BUSINESS","STATEMENT SOURCE","RESERVE","SQUARED","FACTOR","USED","RESERVE",{"$f":"HYPERLINK(\"#'Zones'!c4\",\"Zone 1\")","v":"Zone 1"},{"$f":"HYPERLINK(\"#'Zones'!c13\",\"Zone 2\")","v":"Zone 2"},{"$f":"HYPERLINK(\"#'Zones'!c18\",\"Zone 3\")","v":"Zone 3"},{"$f":"HYPERLINK(\"#'Zones'!c26\",\"Zone 4\")","v":"Zone 4"},{"$f":"HYPERLINK(\"#'Zones'!c36\",\"Zone 5\")","v":"Zone 5"},{"$f":"HYPERLINK(\"#'Zones'!c46\",\"Zone 6\")","v":"Zone 6"},{"$f":"HYPERLINK(\"#'Zones'!c57\",\"Zone 7\")","v":"Zone 7"},{"$f":"HYPERLINK(\"#'Zones'!c68\",\"Zone 8\")","v":"Zone 8"},{"$f":"HYPERLINK(\"#'Zones'!c76\",\"Zone 9\")","v":"Zone 9"},{"$f":"HYPERLINK(\"#'Zones'!c84\",\"Zone 10\")","v":"Zone 10"},{"$f":"HYPERLINK(\"#'Zones'!c90\",\"Zone 11\")","v":"Zone 11"},{"$f":"HYPERLINK(\"#'Zones'!c94\",\"Zone 12\")","v":"Zone 12"},{"$f":"HYPERLINK(\"#'Zones'!c107\",\"Zone 13\")","v":"Zone 13"},{"$f":"HYPERLINK(\"#'Zones'!c112\",\"Zone 14\")","v":"Zone 14"},{"$f":"HYPERLINK(\"#'Zones'!c116\",\"Zone 15\")","v":"Zone 15"},{"$f":"HYPERLINK(\"#'Zones'!c121\",\"Zone 16\")","v":"Zone 16"},{"$f":"HYPERLINK(\"#'Zones'!c127\",\"Zone 17\")","v":"Zone 17"},{"$f":"HYPERLINK(\"#'Zones'!c133\",\"Zone 18\")","v":"Zone 18"}]
[]
[null,"Property Catastrophe","Schedule III(a), Line (1)",{"$f":"SUM(I40:Z40)","v":0},{"$f":"SUMSQ(I40:Z40)","v":0},{"$f":"(IF(D40>0,E40/D40^2,1))","v":1},{"$f":"D40*(0.75+0.25*F40)","v":0},{"$f":"IF('Schedule IIIA (EBS)'!AB10=\"True\",G40,'Schedule III (EBS)'!F10)","v":0},{"$f":"+'Schedule IIIA (EBS)'!E10","v":0},{"$f":"+'Schedule IIIA (EBS)'!F10","v":0},{"$f":"+'Schedule IIIA (EBS)'!G10","v":0},{"$f":"+'Schedule IIIA (EBS)'!H10","v":0},{"$f":"+'Schedule IIIA (EBS)'!I10","v":0},{"$f":"+'Schedule IIIA (EBS)'!J10","v":0},{"$f":"+'Schedule IIIA (EBS)'!K10","v":0},{"$f":"+'Schedule IIIA (EBS)'!L10","v":0},{"$f":"+'Schedule IIIA (EBS)'!M10","v":0},{"$f":"+'Schedule IIIA (EBS)'!N10","v":0},{"$f":"+'Schedule IIIA (EBS)'!O10","v":0},{"$f":"+'Schedule IIIA (EBS)'!P10","v":0},{"$f":"+'Schedule IIIA (EBS)'!Q10","v":0},{"$f":"+'Schedule IIIA (EBS)'!R10","v":0},{"$f":"+'Schedule IIIA (EBS)'!S10","v":0},{"$f":"+'Schedule IIIA (EBS)'!T10","v":0},{"$f":"+'Schedule IIIA (EBS)'!U10","v":0},{"$f":"+'Schedule IIIA (EBS)'!V10","v":0}]
[null,"Property","Schedule III(a), Line (2)",{"$f":"SUM(I41:Z41)","v":0},{"$f":"SUMSQ(I41:Z41)","v":0},{"$f":"(IF(D41>0,E41/D41^2,1))","v":1},{"$f":"D41*(0.75+0.25*F41)","v":0},{"$f":"IF('Schedule IIIA (EBS)'!AB11=\"True\",G41,'Schedule III (EBS)'!F11)","v":0},{"$f":"+'Schedule IIIA (EBS)'!E11","v":0},{"$f":"+'Schedule IIIA (EBS)'!F11","v":0},{"$f":"+'Schedule IIIA (EBS)'!G11","v":0},{"$f":"+'Schedule IIIA (EBS)'!H11","v":0},{"$f":"+'Schedule IIIA (EBS)'!I11","v":0},{"$f":"+'Schedule IIIA (EBS)'!J11","v":0},{"$f":"+'Schedule IIIA (EBS)'!K11","v":0},{"$f":"+'Schedule IIIA (EBS)'!L11","v":0},{"$f":"+'Schedule IIIA (EBS)'!M11","v":0},{"$f":"+'Schedule IIIA (EBS)'!N11","v":0},{"$f":"+'Schedule IIIA (EBS)'!O11","v":0},{"$f":"+'Schedule IIIA (EBS)'!P11","v":0},{"$f":"+'Schedule IIIA (EBS)'!Q11","v":0},{"$f":"+'Schedule IIIA (EBS)'!R11","v":0},{"$f":"+'Schedule IIIA (EBS)'!S11","v":0},{"$f":"+'Schedule IIIA (EBS)'!T11","v":0},{"$f":"+'Schedule IIIA (EBS)'!U11","v":0},{"$f":"+'Schedule IIIA (EBS)'!V11","v":0}]
[null,"Property Non-Proportional","Schedule III(a), Line (3)",0,0,1,0,{"$f":"IF('Schedule IIIA (EBS)'!AB12=\"True\",G42,'Schedule III (EBS)'!F12)","v":0},{"$f":"+'Schedule IIIA (EBS)'!E12","v":0},{"$f":"+'Schedule IIIA (EBS)'!F12","v":0},{"$f":"+'Schedule IIIA (EBS)'!G12","v":0},{"$f":"+'Schedule IIIA (EBS)'!H12","v":0},{"$f":"+'Schedule IIIA (EBS)'!I12","v":0},{"$f":"+'Schedule IIIA (EBS)'!J12","v":0},{"$f":"+'Schedule IIIA (EBS)'!K12","v":0},{"$f":"+'Schedule IIIA (EBS)'!L12","v":0},{"$f":"+'Schedule IIIA (EBS)'!M12","v":0},{"$f":"+'Schedule IIIA (EBS)'!N12","v":0},{"$f":"+'Schedule IIIA (EBS)'!O12","v":0},{"$f":"+'Schedule IIIA (EBS)'!P12","v":0},{"$f":"+'Schedule IIIA (EBS)'!Q12","v":0},{"$f":"+'Schedule IIIA (EBS)'!R12","v":0},{"$f":"+'Schedule IIIA (EBS)'!S12","v":0},{"$f":"+'Schedule IIIA (EBS)'!T12","v":0},{"$f":"+'Schedule IIIA (EBS)'!U12","v":0},{"$f":"+'Schedule IIIA (EBS)'!V12","v":0}]
[null,"Personal Accident","Schedule III(a), Line (4)",0,0,1,0,{"$f":"IF('Schedule IIIA (EBS)'!AB13=\"True\",G43,'Schedule III (EBS)'!F13)","v":0},{"$f":"+'Schedule IIIA (EBS)'!E13","v":0},{"$f":"+'Schedule IIIA (EBS)'!F13","v":0},{"$f":"+'Schedule IIIA (EBS)'!G13","v":0},{"$f":"+'Schedule IIIA (EBS)'!H13","v":0},{"$f":"+'Schedule IIIA (EBS)'!I13","v":0},{"$f":"+'Schedule IIIA (EBS)'!J13","v":0},{"$f":"+'Schedule IIIA (EBS)'!K13","v":0},{"$f":"+'Schedule IIIA (EBS)'!L13","v":0},{"$f":"+'Schedule IIIA (EBS)'!M13","v":0},{"$f":"+'Schedule IIIA (EBS)'!N13","v":0},{"$f":"+'Schedule IIIA (EBS)'!O13","v":0},{"$f":"+'Schedule IIIA (EBS)'!P13","v":0},{"$f":"+'Schedule IIIA (EBS)'!Q13","v":0},{"$f":"+'Schedule IIIA (EBS)'!R13","v":0},{"$f":"+'Schedule IIIA (EBS)'!S13","v":0},{"$f":"+'Schedule IIIA (EBS)'!T13","v":0},{"$f":"+'Schedule IIIA (EBS)'!U13","v":0},{"$f":"+'Schedule IIIA (EBS)'!V13","v":0}]
[null,"Personal Accident Non-Proportional","Schedule III(a), Line (5)",0,0,1,0,{"$f":"IF('Schedule IIIA (EBS)'!AB14=\"True\",G44,'Schedule III (EBS)'!F14)","v":0},{"$f":"+'Schedule IIIA (EBS)'!E14","v":0},{"$f":"+'Schedule IIIA (EBS)'!F14","v":0},{"$f":"+'Schedule IIIA (EBS)'!G14","v":0},{"$f":"+'Schedule IIIA (EBS)'!H14","v":0},{"$f":"+'Schedule IIIA (EBS)'!I14","v":0},{"$f":"+'Schedule IIIA (EBS)'!J14","v":0},{"$f":"+'Schedule IIIA (EBS)'!K14","v":0},{"$f":"+'Schedule IIIA (EBS)'!L14","v":0},{"$f":"+'Schedule IIIA (EBS)'!M14","v":0},{"$f":"+'Schedule IIIA (EBS)'!N14","v":0},{"$f":"+'Schedule IIIA (EBS)'!O14","v":0},{"$f":"+'Schedule IIIA (EBS)'!P14","v":0},{"$f":"+'Schedule IIIA (EBS)'!Q14","v":0},{"$f":"+'Schedule IIIA (EBS)'!R14","v":0},{"$f":"+'Schedule IIIA (EBS)'!S14","v":0},{"$f":"+'Schedule IIIA (EBS)'!T14","v":0},{"$f":"+'Schedule IIIA (EBS)'!U14","v":0},{"$f":"+'Schedule IIIA (EBS)'!V14","v":0}]
[null,"Aviation","Schedule III(a), Line (6)",0,0,1,0,{"$f":"IF('Schedule IIIA (EBS)'!AB15=\"True\",G45,'Schedule III (EBS)'!F15)","v":0},{"$f":"+'Schedule IIIA (EBS)'!E15","v":0},{"$f":"+'Schedule IIIA (EBS)'!F15","v":0},{"$f":"+'Schedule IIIA (EBS)'!G15","v":0},{"$f":"+'Schedule IIIA (EBS)'!H15","v":0},{"$f":"+'Schedule IIIA (EBS)'!I15","v":0},{"$f":"+'Schedule IIIA (EBS)'!J15","v":0},{"$f":"+'Schedule IIIA (EBS)'!K15","v":0},{"$f":"+'Schedule IIIA (EBS)'!L15","v":0},{"$f":"+'Schedule IIIA (EBS)'!M15","v":0},{"$f":"+'Schedule IIIA (EBS)'!N15","v":0},{"$f":"+'Schedule IIIA (EBS)'!O15","v":0},{"$f":"+'Schedule IIIA (EBS)'!P15","v":0},{"$f":"+'Schedule IIIA (EBS)'!Q15","v":0},{"$f":"+'Schedule IIIA (EBS)'!R15","v":0},{"$f":"+'Schedule IIIA (EBS)'!S15","v":0},{"$f":"+'Schedule IIIA (EBS)'!T15","v":0},{"$f":"+'Schedule IIIA (EBS)'!U15","v":0},{"$f":"+'Schedule IIIA (EBS)'!V15","v":0}]
[null,"Aviation Non-Proportional","Schedule III(a), Line (7)",0,0,1,0,{"$f":"IF('Schedule IIIA (EBS)'!AB16=\"True\",G46,'Schedule III (EBS)'!F16)","v":0},{"$f":"+'Schedule IIIA (EBS)'!E16","v":0},{"$f":"+'Schedule IIIA (EBS)'!F16","v":0},{"$f":"+'Schedule IIIA (EBS)'!G16","v":0},{"$f":"+'Schedule IIIA (EBS)'!H16","v":0},{"$f":"+'Schedule IIIA (EBS)'!I16","v":0},{"$f":"+'Schedule IIIA (EBS)'!J16","v":0},{"$f":"+'Schedule IIIA (EBS)'!K16","v":0},{"$f":"+'Schedule IIIA (EBS)'!L16","v":0},{"$f":"+'Schedule IIIA (EBS)'!M16","v":0},{"$f":"+'Schedule IIIA (EBS)'!N16","v":0},{"$f":"+'Schedule IIIA (EBS)'!O16","v":0},{"$f":"+'Schedule IIIA (EBS)'!P16","v":0},{"$f":"+'Schedule IIIA (EBS)'!Q16","v":0},{"$f":"+'Schedule IIIA (EBS)'!R16","v":0},{"$f":"+'Schedule IIIA (EBS)'!S16","v":0},{"$f":"+'Schedule IIIA (EBS)'!T16","v":0},{"$f":"+'Schedule IIIA (EBS)'!U16","v":0},{"$f":"+'Schedule IIIA (EBS)'!V16","v":0}]
[null,"Credit / Surety","Schedule III(a), Line (8)",0,0,1,0,{"$f":"IF('Schedule IIIA (EBS)'!AB17=\"True\",G47,'Schedule III (EBS)'!F17)","v":0},{"$f":"+'Schedule IIIA (EBS)'!E17","v":0},{"$f":"+'Schedule IIIA (EBS)'!F17","v":0},{"$f":"+'Schedule IIIA (EBS)'!G17","v":0},{"$f":"+'Schedule IIIA (EBS)'!H17","v":0},{"$f":"+'Schedule IIIA (EBS)'!I17","v":0},{"$f":"+'Schedule IIIA (EBS)'!J17","v":0},{"$f":"+'Schedule IIIA (EBS)'!K17","v":0},{"$f":"+'Schedule IIIA (EBS)'!L17","v":0},{"$f":"+'Schedule IIIA (EBS)'!M17","v":0},{"$f":"+'Schedule IIIA (EBS)'!N17","v":0},{"$f":"+'Schedule IIIA (EBS)'!O17","v":0},{"$f":"+'Schedule IIIA (EBS)'!P17","v":0},{"$f":"+'Schedule IIIA (EBS)'!Q17","v":0},{"$f":"+'Schedule IIIA (EBS)'!R17","v":0},{"$f":"+'Schedule IIIA (EBS)'!S17","v":0},{"$f":"+'Schedule IIIA (EBS)'!T17","v":0},{"$f":"+'Schedule IIIA (EBS)'!U17","v":0},{"$f":"+'Schedule IIIA (EBS)'!V17","v":0}]
[null,"Credit / Surety Non-Proportional","Schedule III(a), Line (9)",0,0,1,0,{"$f":"IF('Schedule IIIA (EBS)'!AB18=\"True\",G48,'Schedule III (EBS)'!F18)","v":0},{"$f":"+'Schedule IIIA (EBS)'!E18","v":0},{"$f":"+'Schedule IIIA (EBS)'!F18","v":0},{"$f":"+'Schedule IIIA (EBS)'!G18","v":0},{"$f":"+'Schedule IIIA (EBS)'!H18","v":0},{"$f":"+'Schedule IIIA (EBS)'!I18","v":0},{"$f":"+'Schedule IIIA (EBS)'!J18","v":0},{"$f":"+'Schedule IIIA (EBS)'!K18","v":0},{"$f":"+'Schedule IIIA (EBS)'!L18","v":0},{"$f":"+'Schedule IIIA (EBS)'!M18","v":0},{"$f":"+'Schedule IIIA (EBS)'!N18","v":0},{"$f":"+'Schedule IIIA (EBS)'!O18","v":0},{"$f":"+'Schedule IIIA (EBS)'!P18","v":0},{"$f":"+'Schedule IIIA (EBS)'!Q18","v":0},{"$f":"+'Schedule IIIA (EBS)'!R18","v":0},{"$f":"+'Schedule IIIA (EBS)'!S18","v":0},{"$f":"+'Schedule IIIA (EBS)'!T18","v":0},{"$f":"+'Schedule IIIA (EBS)'!U18","v":0},{"$f":"+'Schedule IIIA (EBS)'!V18","v":0}]
[null,"Energy Offshore / Marine","Schedule III(a), Line (10)",0,0,1,0,{"$f":"IF('Schedule IIIA (EBS)'!AB19=\"True\",G49,'Schedule III (EBS)'!F19)","v":0},{"$f":"+'Schedule IIIA (EBS)'!E19","v":0},{"$f":"+'Schedule IIIA (EBS)'!F19","v":0},{"$f":"+'Schedule IIIA (EBS)'!G19","v":0},{"$f":"+'Schedule IIIA (EBS)'!H19","v":0},{"$f":"+'Schedule IIIA (EBS)'!I19","v":0},{"$f":"+'Schedule IIIA (EBS)'!J19","v":0},{"$f":"+'Schedule IIIA (EBS)'!K19","v":0},{"$f":"+'Schedule IIIA (EBS)'!L19","v":0},{"$f":"+'Schedule IIIA (EBS)'!M19","v":0},{"$f":"+'Schedule IIIA (EBS)'!N19","v":0},{"$f":"+'Schedule IIIA (EBS)'!O19","v":0},{"$f":"+'Schedule IIIA (EBS)'!P19","v":0},{"$f":"+'Schedule IIIA (EBS)'!Q19","v":0},{"$f":"+'Schedule IIIA (EBS)'!R19","v":0},{"$f":"+'Schedule IIIA (EBS)'!S19","v":0},{"$f":"+'Schedule IIIA (EBS)'!T19","v":0},{"$f":"+'Schedule IIIA (EBS)'!U19","v":0},{"$f":"+'Schedule IIIA (EBS)'!V19","v":0}]
[null,"Energy Offshore / Marine Non-Proportional","Schedule III(a), Line (11)",0,0,1,0,{"$f":"IF('Schedule IIIA (EBS)'!AB20=\"True\",G50,'Schedule III (EBS)'!F20)","v":0},{"$f":"+'Schedule IIIA (EBS)'!E20","v":0},{"$f":"+'Schedule IIIA (EBS)'!F20","v":0},{"$f":"+'Schedule IIIA (EBS)'!G20","v":0},{"$f":"+'Schedule IIIA (EBS)'!H20","v":0},{"$f":"+'Schedule IIIA (EBS)'!I20","v":0},{"$f":"+'Schedule IIIA (EBS)'!J20","v":0},{"$f":"+'Schedule IIIA (EBS)'!K20","v":0},{"$f":"+'Schedule IIIA (EBS)'!L20","v":0},{"$f":"+'Schedule IIIA (EBS)'!M20","v":0},{"$f":"+'Schedule IIIA (EBS)'!N20","v":0},{"$f":"+'Schedule IIIA (EBS)'!O20","v":0},{"$f":"+'Schedule IIIA (EBS)'!P20","v":0},{"$f":"+'Schedule IIIA (EBS)'!Q20","v":0},{"$f":"+'Schedule IIIA (EBS)'!R20","v":0},{"$f":"+'Schedule IIIA (EBS)'!S20","v":0},{"$f":"+'Schedule IIIA (EBS)'!T20","v":0},{"$f":"+'Schedule IIIA (EBS)'!U20","v":0},{"$f":"+'Schedule IIIA (EBS)'!V20","v":0}]
[null,"US Casualty","Schedule III(a), Line (12)",0,0,1,0,{"$f":"IF('Schedule IIIA (EBS)'!AB21=\"True\",G51,'Schedule III (EBS)'!F21)","v":0},{"$f":"+'Schedule IIIA (EBS)'!E21","v":0},{"$f":"+'Schedule IIIA (EBS)'!F21","v":0},{"$f":"+'Schedule IIIA (EBS)'!G21","v":0},{"$f":"+'Schedule IIIA (EBS)'!H21","v":0},{"$f":"+'Schedule IIIA (EBS)'!I21","v":0},{"$f":"+'Schedule IIIA (EBS)'!J21","v":0},{"$f":"+'Schedule IIIA (EBS)'!K21","v":0},{"$f":"+'Schedule IIIA (EBS)'!L21","v":0},{"$f":"+'Schedule IIIA (EBS)'!M21","v":0},{"$f":"+'Schedule IIIA (EBS)'!N21","v":0},{"$f":"+'Schedule IIIA (EBS)'!O21","v":0},{"$f":"+'Schedule IIIA (EBS)'!P21","v":0},{"$f":"+'Schedule IIIA (EBS)'!Q21","v":0},{"$f":"+'Schedule IIIA (EBS)'!R21","v":0},{"$f":"+'Schedule IIIA (EBS)'!S21","v":0},{"$f":"+'Schedule IIIA (EBS)'!T21","v":0},{"$f":"+'Schedule IIIA (EBS)'!U21","v":0},{"$f":"+'Schedule IIIA (EBS)'!V21","v":0}]
[null,"US Casualty Non-Proportional","Schedule III(a), Line (13)",0,0,1,0,{"$f":"IF('Schedule IIIA (EBS)'!AB22=\"True\",G52,'Schedule III (EBS)'!F22)","v":0},{"$f":"+'Schedule IIIA (EBS)'!E22","v":0},{"$f":"+'Schedule IIIA (EBS)'!F22","v":0},{"$f":"+'Schedule IIIA (EBS)'!G22","v":0},{"$f":"+'Schedule IIIA (EBS)'!H22","v":0},{"$f":"+'Schedule IIIA (EBS)'!I22","v":0},{"$f":"+'Schedule IIIA (EBS)'!J22","v":0},{"$f":"+'Schedule IIIA (EBS)'!K22","v":0},{"$f":"+'Schedule IIIA (EBS)'!L22","v":0},{"$f":"+'Schedule IIIA (EBS)'!M22","v":0},{"$f":"+'Schedule IIIA (EBS)'!N22","v":0},{"$f":"+'Schedule IIIA (EBS)'!O22","v":0},{"$f":"+'Schedule IIIA (EBS)'!P22","v":0},{"$f":"+'Schedule IIIA (EBS)'!Q22","v":0},{"$f":"+'Schedule IIIA (EBS)'!R22","v":0},{"$f":"+'Schedule IIIA (EBS)'!S22","v":0},{"$f":"+'Schedule IIIA (EBS)'!T22","v":0},{"$f":"+'Schedule IIIA (EBS)'!U22","v":0},{"$f":"+'Schedule IIIA (EBS)'!V22","v":0}]
[null,"US Professional","Schedule III(a), Line (14)",0,0,1,0,{"$f":"IF('Schedule IIIA (EBS)'!AB23=\"True\",G53,'Schedule III (EBS)'!F23)","v":0},{"$f":"+'Schedule IIIA (EBS)'!E23","v":0},{"$f":"+'Schedule IIIA (EBS)'!F23","v":0},{"$f":"+'Schedule IIIA (EBS)'!G23","v":0},{"$f":"+'Schedule IIIA (EBS)'!H23","v":0},{"$f":"+'Schedule IIIA (EBS)'!I23","v":0},{"$f":"+'Schedule IIIA (EBS)'!J23","v":0},{"$f":"+'Schedule IIIA (EBS)'!K23","v":0},{"$f":"+'Schedule IIIA (EBS)'!L23","v":0},{"$f":"+'Schedule IIIA (EBS)'!M23","v":0},{"$f":"+'Schedule IIIA (EBS)'!N23","v":0},{"$f":"+'Schedule IIIA (EBS)'!O23","v":0},{"$f":"+'Schedule IIIA (EBS)'!P23","v":0},{"$f":"+'Schedule IIIA (EBS)'!Q23","v":0},{"$f":"+'Schedule IIIA (EBS)'!R23","v":0},{"$f":"+'Schedule IIIA (EBS)'!S23","v":0},{"$f":"+'Schedule IIIA (EBS)'!T23","v":0},{"$f":"+'Schedule IIIA (EBS)'!U23","v":0},{"$f":"+'Schedule IIIA (EBS)'!V23","v":0}]
[null,"US Professional Non-Proportional","Schedule III(a), Line (15)",0,0,1,0,{"$f":"IF('Schedule IIIA (EBS)'!AB24=\"True\",G54,'Schedule III (EBS)'!F24)","v":0},{"$f":"+'Schedule IIIA (EBS)'!E24","v":0},{"$f":"+'Schedule IIIA (EBS)'!F24","v":0},{"$f":"+'Schedule IIIA (EBS)'!G24","v":0},{"$f":"+'Schedule IIIA (EBS)'!H24","v":0},{"$f":"+'Schedule IIIA (EBS)'!I24","v":0},{"$f":"+'Schedule IIIA (EBS)'!J24","v":0},{"$f":"+'Schedule IIIA (EBS)'!K24","v":0},{"$f":"+'Schedule IIIA (EBS)'!L24","v":0},{"$f":"+'Schedule IIIA (EBS)'!M24","v":0},{"$f":"+'Schedule IIIA (EBS)'!N24","v":0},{"$f":"+'Schedule IIIA (EBS)'!O24","v":0},{"$f":"+'Schedule IIIA (EBS)'!P24","v":0},{"$f":"+'Schedule IIIA (EBS)'!Q24","v":0},{"$f":"+'Schedule IIIA (EBS)'!R24","v":0},{"$f":"+'Schedule IIIA (EBS)'!S24","v":0},{"$f":"+'Schedule IIIA (EBS)'!T24","v":0},{"$f":"+'Schedule IIIA (EBS)'!U24","v":0},{"$f":"+'Schedule IIIA (EBS)'!V24","v":0}]
[null,"US Specialty","Schedule III(a), Line (16)",0,0,1,0,{"$f":"IF('Schedule IIIA (EBS)'!AB25=\"True\",G55,'Schedule III (EBS)'!F25)","v":0},{"$f":"+'Schedule IIIA (EBS)'!E25","v":0},{"$f":"+'Schedule IIIA (EBS)'!F25","v":0},{"$f":"+'Schedule IIIA (EBS)'!G25","v":0},{"$f":"+'Schedule IIIA (EBS)'!H25","v":0},{"$f":"+'Schedule IIIA (EBS)'!I25","v":0},{"$f":"+'Schedule IIIA (EBS)'!J25","v":0},{"$f":"+'Schedule IIIA (EBS)'!K25","v":0},{"$f":"+'Schedule IIIA (EBS)'!L25","v":0},{"$f":"+'Schedule IIIA (EBS)'!M25","v":0},{"$f":"+'Schedule IIIA (EBS)'!N25","v":0},{"$f":"+'Schedule IIIA (EBS)'!O25","v":0},{"$f":"+'Schedule IIIA (EBS)'!P25","v":0},{"$f":"+'Schedule IIIA (EBS)'!Q25","v":0},{"$f":"+'Schedule IIIA (EBS)'!R25","v":0},{"$f":"+'Schedule IIIA (EBS)'!S25","v":0},{"$f":"+'Schedule IIIA (EBS)'!T25","v":0},{"$f":"+'Schedule IIIA (EBS)'!U25","v":0},{"$f":"+'Schedule IIIA (EBS)'!V25","v":0}]
[null,"US Specialty Non-Proportional","Schedule III(a), Line (17)",0,0,1,0,{"$f":"IF('Schedule IIIA (EBS)'!AB26=\"True\",G56,'Schedule III (EBS)'!F26)","v":0},{"$f":"+'Schedule IIIA (EBS)'!E26","v":0},{"$f":"+'Schedule IIIA (EBS)'!F26","v":0},{"$f":"+'Schedule IIIA (EBS)'!G26","v":0},{"$f":"+'Schedule IIIA (EBS)'!H26","v":0},{"$f":"+'Schedule IIIA (EBS)'!I26","v":0},{"$f":"+'Schedule IIIA (EBS)'!J26","v":0},{"$f":"+'Schedule IIIA (EBS)'!K26","v":0},{"$f":"+'Schedule IIIA (EBS)'!L26","v":0},{"$f":"+'Schedule IIIA (EBS)'!M26","v":0},{"$f":"+'Schedule IIIA (EBS)'!N26","v":0},{"$f":"+'Schedule IIIA (EBS)'!O26","v":0},{"$f":"+'Schedule IIIA (EBS)'!P26","v":0},{"$f":"+'Schedule IIIA (EBS)'!Q26","v":0},{"$f":"+'Schedule IIIA (EBS)'!R26","v":0},{"$f":"+'Schedule IIIA (EBS)'!S26","v":0},{"$f":"+'Schedule IIIA (EBS)'!T26","v":0},{"$f":"+'Schedule IIIA (EBS)'!U26","v":0},{"$f":"+'Schedule IIIA (EBS)'!V26","v":0}]
[null,"International Motor","Schedule III(a), Line (18)",0,0,1,0,{"$f":"IF('Schedule IIIA (EBS)'!AB27=\"True\",G57,'Schedule III (EBS)'!F27)","v":0},{"$f":"+'Schedule IIIA (EBS)'!E27","v":0},{"$f":"+'Schedule IIIA (EBS)'!F27","v":0},{"$f":"+'Schedule IIIA (EBS)'!G27","v":0},{"$f":"+'Schedule IIIA (EBS)'!H27","v":0},{"$f":"+'Schedule IIIA (EBS)'!I27","v":0},{"$f":"+'Schedule IIIA (EBS)'!J27","v":0},{"$f":"+'Schedule IIIA (EBS)'!K27","v":0},{"$f":"+'Schedule IIIA (EBS)'!L27","v":0},{"$f":"+'Schedule IIIA (EBS)'!M27","v":0},{"$f":"+'Schedule IIIA (EBS)'!N27","v":0},{"$f":"+'Schedule IIIA (EBS)'!O27","v":0},{"$f":"+'Schedule IIIA (EBS)'!P27","v":0},{"$f":"+'Schedule IIIA (EBS)'!Q27","v":0},{"$f":"+'Schedule IIIA (EBS)'!R27","v":0},{"$f":"+'Schedule IIIA (EBS)'!S27","v":0},{"$f":"+'Schedule IIIA (EBS)'!T27","v":0},{"$f":"+'Schedule IIIA (EBS)'!U27","v":0},{"$f":"+'Schedule IIIA (EBS)'!V27","v":0}]
[null,"International Motor Non-Proportional","Schedule III(a), Line (19)",0,0,1,0,{"$f":"IF('Schedule IIIA (EBS)'!AB28=\"True\",G58,'Schedule III (EBS)'!F28)","v":0},{"$f":"+'Schedule IIIA (EBS)'!E28","v":0},{"$f":"+'Schedule IIIA (EBS)'!F28","v":0},{"$f":"+'Schedule IIIA (EBS)'!G28","v":0},{"$f":"+'Schedule IIIA (EBS)'!H28","v":0},{"$f":"+'Schedule IIIA (EBS)'!I28","v":0},{"$f":"+'Schedule IIIA (EBS)'!J28","v":0},{"$f":"+'Schedule IIIA (EBS)'!K28","v":0},{"$f":"+'Schedule IIIA (EBS)'!L28","v":0},{"$f":"+'Schedule IIIA (EBS)'!M28","v":0},{"$f":"+'Schedule IIIA (EBS)'!N28","v":0},{"$f":"+'Schedule IIIA (EBS)'!O28","v":0},{"$f":"+'Schedule IIIA (EBS)'!P28","v":0},{"$f":"+'Schedule IIIA (EBS)'!Q28","v":0},{"$f":"+'Schedule IIIA (EBS)'!R28","v":0},{"$f":"+'Schedule IIIA (EBS)'!S28","v":0},{"$f":"+'Schedule IIIA (EBS)'!T28","v":0},{"$f":"+'Schedule IIIA (EBS)'!U28","v":0},{"$f":"+'Schedule IIIA (EBS)'!V28","v":0}]
[null,"International Casualty Non-Motor","Schedule III(a), Line (20)",0,0,1,0,{"$f":"IF('Schedule IIIA (EBS)'!AB29=\"True\",G59,'Schedule III (EBS)'!F29)","v":0},{"$f":"+'Schedule IIIA (EBS)'!E29","v":0},{"$f":"+'Schedule IIIA (EBS)'!F29","v":0},{"$f":"+'Schedule IIIA (EBS)'!G29","v":0},{"$f":"+'Schedule IIIA (EBS)'!H29","v":0},{"$f":"+'Schedule IIIA (EBS)'!I29","v":0},{"$f":"+'Schedule IIIA (EBS)'!J29","v":0},{"$f":"+'Schedule IIIA (EBS)'!K29","v":0},{"$f":"+'Schedule IIIA (EBS)'!L29","v":0},{"$f":"+'Schedule IIIA (EBS)'!M29","v":0},{"$f":"+'Schedule IIIA (EBS)'!N29","v":0},{"$f":"+'Schedule IIIA (EBS)'!O29","v":0},{"$f":"+'Schedule IIIA (EBS)'!P29","v":0},{"$f":"+'Schedule IIIA (EBS)'!Q29","v":0},{"$f":"+'Schedule IIIA (EBS)'!R29","v":0},{"$f":"+'Schedule IIIA (EBS)'!S29","v":0},{"$f":"+'Schedule IIIA (EBS)'!T29","v":0},{"$f":"+'Schedule IIIA (EBS)'!U29","v":0},{"$f":"+'Schedule IIIA (EBS)'!V29","v":0}]
[null,"International Casualty Non-Motor Non-Proportional","Schedule III(a), Line (21)",0,0,1,0,{"$f":"IF('Schedule IIIA (EBS)'!AB30=\"True\",G60,'Schedule III (EBS)'!F30)","v":0},{"$f":"+'Schedule IIIA (EBS)'!E30","v":0},{"$f":"+'Schedule IIIA (EBS)'!F30","v":0},{"$f":"+'Schedule IIIA (EBS)'!G30","v":0},{"$f":"+'Schedule IIIA (EBS)'!H30","v":0},{"$f":"+'Schedule IIIA (EBS)'!I30","v":0},{"$f":"+'Schedule IIIA (EBS)'!J30","v":0},{"$f":"+'Schedule IIIA (EBS)'!K30","v":0},{"$f":"+'Schedule IIIA (EBS)'!L30","v":0},{"$f":"+'Schedule IIIA (EBS)'!M30","v":0},{"$f":"+'Schedule IIIA (EBS)'!N30","v":0},{"$f":"+'Schedule IIIA (EBS)'!O30","v":0},{"$f":"+'Schedule IIIA (EBS)'!P30","v":0},{"$f":"+'Schedule IIIA (EBS)'!Q30","v":0},{"$f":"+'Schedule IIIA (EBS)'!R30","v":0},{"$f":"+'Schedule IIIA (EBS)'!S30","v":0},{"$f":"+'Schedule IIIA (EBS)'!T30","v":0},{"$f":"+'Schedule IIIA (EBS)'!U30","v":0},{"$f":"+'Schedule IIIA (EBS)'!V30","v":0}]
[null,"Retro Property","Schedule III(a), Line (22)",0,0,1,0,{"$f":"IF('Schedule IIIA (EBS)'!AB31=\"True\",G61,'Schedule III (EBS)'!F31)","v":0},{"$f":"+'Schedule IIIA (EBS)'!E31","v":0},{"$f":"+'Schedule IIIA (EBS)'!F31","v":0},{"$f":"+'Schedule IIIA (EBS)'!G31","v":0},{"$f":"+'Schedule IIIA (EBS)'!H31","v":0},{"$f":"+'Schedule IIIA (EBS)'!I31","v":0},{"$f":"+'Schedule IIIA (EBS)'!J31","v":0},{"$f":"+'Schedule IIIA (EBS)'!K31","v":0},{"$f":"+'Schedule IIIA (EBS)'!L31","v":0},{"$f":"+'Schedule IIIA (EBS)'!M31","v":0},{"$f":"+'Schedule IIIA (EBS)'!N31","v":0},{"$f":"+'Schedule IIIA (EBS)'!O31","v":0},{"$f":"+'Schedule IIIA (EBS)'!P31","v":0},{"$f":"+'Schedule IIIA (EBS)'!Q31","v":0},{"$f":"+'Schedule IIIA (EBS)'!R31","v":0},{"$f":"+'Schedule IIIA (EBS)'!S31","v":0},{"$f":"+'Schedule IIIA (EBS)'!T31","v":0},{"$f":"+'Schedule IIIA (EBS)'!U31","v":0},{"$f":"+'Schedule IIIA (EBS)'!V31","v":0}]
[null,"Structured / Finite Reinsurance","Schedule III(a), Line (23)",0,0,1,0,{"$f":"IF('Schedule IIIA (EBS)'!AB32=\"True\",G62,'Schedule III (EBS)'!F32)","v":0},{"$f":"+'Schedule IIIA (EBS)'!E32","v":0},{"$f":"+'Schedule IIIA (EBS)'!F32","v":0},{"$f":"+'Schedule IIIA (EBS)'!G32","v":0},{"$f":"+'Schedule IIIA (EBS)'!H32","v":0},{"$f":"+'Schedule IIIA (EBS)'!I32","v":0},{"$f":"+'Schedule IIIA (EBS)'!J32","v":0},{"$f":"+'Schedule IIIA (EBS)'!K32","v":0},{"$f":"+'Schedule IIIA (EBS)'!L32","v":0},{"$f":"+'Schedule IIIA (EBS)'!M32","v":0},{"$f":"+'Schedule IIIA (EBS)'!N32","v":0},{"$f":"+'Schedule IIIA (EBS)'!O32","v":0},{"$f":"+'Schedule IIIA (EBS)'!P32","v":0},{"$f":"+'Schedule IIIA (EBS)'!Q32","v":0},{"$f":"+'Schedule IIIA (EBS)'!R32","v":0},{"$f":"+'Schedule IIIA (EBS)'!S32","v":0},{"$f":"+'Schedule IIIA (EBS)'!T32","v":0},{"$f":"+'Schedule IIIA (EBS)'!U32","v":0},{"$f":"+'Schedule IIIA (EBS)'!V32","v":0}]
[null,"Health","Schedule III(a), Line (24)",0,0,1,0,{"$f":"IF('Schedule IIIA (EBS)'!AB33=\"True\",G63,'Schedule III (EBS)'!F33)","v":0},{"$f":"+'Schedule IIIA (EBS)'!E33","v":0},{"$f":"+'Schedule IIIA (EBS)'!F33","v":0},{"$f":"+'Schedule IIIA (EBS)'!G33","v":0},{"$f":"+'Schedule IIIA (EBS)'!H33","v":0},{"$f":"+'Schedule IIIA (EBS)'!I33","v":0},{"$f":"+'Schedule IIIA (EBS)'!J33","v":0},{"$f":"+'Schedule IIIA (EBS)'!K33","v":0},{"$f":"+'Schedule IIIA (EBS)'!L33","v":0},{"$f":"+'Schedule IIIA (EBS)'!M33","v":0},{"$f":"+'Schedule IIIA (EBS)'!N33","v":0},{"$f":"+'Schedule IIIA (EBS)'!O33","v":0},{"$f":"+'Schedule IIIA (EBS)'!P33","v":0},{"$f":"+'Schedule IIIA (EBS)'!Q33","v":0},{"$f":"+'Schedule IIIA (EBS)'!R33","v":0},{"$f":"+'Schedule IIIA (EBS)'!S33","v":0},{"$f":"+'Schedule IIIA (EBS)'!T33","v":0},{"$f":"+'Schedule IIIA (EBS)'!U33","v":0},{"$f":"+'Schedule IIIA (EBS)'!V33","v":0}]
[]
[null,"(a) TOTAL",null,{"$f":"SUM(D40:D63)","v":0},{"$f":"SUM(E40:E63)","v":0},null,{"$f":"SUM(G40:G63)","v":0},0,0,0,0,0,0,0,0,0,0,0,0,0,0,0,0,0,0,0]

{"sheet":"Credit Risk","index":121,"n_rows":47,"n_cols":6,"rows_kept":47,"cut":false,"hidden":false,"merged":[[75,0,75,1],[1,5,1,6]]}
[{"$f":"'Group Information'!C9","v":"Enter Parent Company Name"},null,null,null,null,{"$f":"HYPERLINK(\"#'Index'!A1\",\"Return to Index\")","v":"Return to Index"}]
[null,"Credit Risk ($000)"]
[null,{"$f":"'Group Information'!C3","v":"2023-12-31"},null,"(1)","(2)","(3)"]
[]
[]
[null,"TYPE OF ",null,"RECEIVABLES/","CAPITAL","REQUIRED"]
[null,"DEBTOR","STATEMENT SOURCE","RECOVERABLES","FACTOR","CAPITAL"]
[]
[null,"(a)  Accounts and Premiums Receivable",null,null,null,"(1) x (2)"]
[]
[null,"In Course of Collection","Form 1EBS, Line (10a)",{"$f":"'Form 1EBS'!F61","v":0},0.05,{"$f":"IF($D$11<0,0,$D$11*$E$11)","v":0}]
[null,"Receivables From Retrocessional Contracts Less: Collateralized Balances","Form 1EBS, Line (10c) Less Notes to Form 1EBS, Line (10)",{"$f":"'Form 1EBS'!F62-'Form 1EBS'!F225","v":0},0.1,{"$f":"$D$12*$E$12","v":0}]
[]
[null,"(a)  SUBTOTAL - ACCOUNTS AND PREMIUMS RECEIVABLE",null,{"$f":"SUM(D11:D12)","v":0},null,{"$f":"IF(SUM(F11:F12)>=0,SUM(F11:F12),0)","v":0}]
[]
[null,"(b)  All Other Receivables"]
[]
[null,"Advances to Affiliates ","Form 1EBS, Line (4g)",{"$f":"'Form 1EBS'!F41","v":0},0.05,{"$f":"IF($D$18<0,0,$D$18*$E$18)","v":0}]
[null,"Accrued Investment Income","Form 1EBS, Line (9)",{"$f":"'Form 1EBS'!F58","v":0},2.5000000000000001E-2,{"$f":"IF($D$19<0,0,$D$19*$E$19)","v":0}]
[null,"Policy Loans","Form 1EBS, Line (6)",{"$f":"'Form 1EBS'!F49","v":0},0,{"$f":"IF($D$20<0,0,$D$20*$E$20)","v":0}]
[]
[null,"(b)  SUBTOTAL - ALL OTHER RECEIVABLES",null,{"$f":"SUM(D18:D20)","v":0},null,{"$f":"IF(SUM(F18:F20)>=0,SUM(F18:F20),0)","v":0}]
[]
[]
[]
[null,"TYPE OF "]
[null,"DEBTOR","STATEMENT SOURCE","NET QUALIFYING EXPOSURE",null,"CAPITAL FACTOR"]
[]
[null,"(c) Particulars of Reinsurance Balances By BSCR Rating",null,null,null,"Max(0, (Column (1) x Column (2) ))"]
[null,0]
[null,"BSCR Rating 0","Schedule XVIII EBS, Column O",{"$f":"+'Schedule XVIII (EBS)'!R84","v":0},0,{"$f":"MAX(0,(D31*E31))","v":0}]
[null,"BSCR Rating 1","Schedule XVIII EBS, Column O",{"$f":"+'Schedule XVIII (EBS)'!R85","v":0},7.0000000000000001E-3,{"$f":"MAX(0,(D32*E32))","v":0}]
[null,"BSCR Rating 2","Schedule XVIII EBS, Column O",{"$f":"+'Schedule XVIII (EBS)'!R86","v":0},1.4999999999999999E-2,0]
[null,"BSCR Rating 3","Schedule XVIII EBS, Column O",{"$f":"+'Schedule XVIII (EBS)'!R87","v":0},3.5000000000000003E-2,0]
[null,"BSCR Rating 4","Schedule XVIII EBS, Column O",{"$f":"+'Schedule XVIII (EBS)'!R88","v":0},7.0000000000000007E-2,0]
[null,"BSCR Rating 5","Schedule XVIII EBS, Column O",{"$f":"+'Schedule XVIII (EBS)'!R89","v":0},0.12,0]
[null,"BSCR Rating 6","Schedule XVIII EBS, Column O",{"$f":"+'Schedule XVIII (EBS)'!R90","v":0},0.2,0]
[null,"BSCR Rating 7","Schedule XVIII EBS, Column O",{"$f":"+'Schedule XVIII (EBS)'!R91","v":0},0.27,0]
[null,"BSCR Rating 8","Schedule XVIII EBS, Column O",{"$f":"+'Schedule XVIII (EBS)'!R92","v":0},0.35,0]
[]
[null,"Total",null,{"$f":"SUM(D31:D40)","v":0},null,{"$f":"SUM(F31:F40)","v":0}]
[]
[null,"Diversification Adjustment up to 40%","Schedule XVIII EBS, Column O",null,{"$f":"'Schedule XVIII (EBS)'!R101","v":0},{"$f":"SUM(F31:F39)*-('Schedule XVIII (EBS)'!R101)","v":0}]
[]
[null,"(c)  SUBTOTAL - PARTICULARS OF REINSURANCE BALANCES BY BSCR RATING",null,{"$f":"SUM(D31:D39)","v":0},null,{"$f":"SUM(F40:F43)","v":0}]
[]
[null,"(d)  TOTAL CREDIT RISK  [ (a) + (b) + (c) ]",null,{"$f":"D45+D22+D14","v":0},null,{"$f":"F45+F22+F14","v":0}]

{"sheet":"Credit Risk (Revised)","index":122,"n_rows":84,"n_cols":8,"rows_kept":84,"cut":false,"hidden":false,"merged":[[1,7,1,8],[86,0,86,1]]}
["CREDIT RISK (REVISED)",null,null,null,null,null,null,{"$f":"HYPERLINK(\"#'Index'!A1\",\"Return to Index\")","v":"Return to Index"}]
[null,"Credit Risk ($000)"]
[null,{"$f":"'Group Information'!C3","v":"2023-12-31"},null,null,null,"(1)","(2)","(3)"]
[]
[]
[null,"TYPE OF ",null,null,null,"RECEIVABLES/","CAPITAL","REQUIRED"]
[null,"DEBTOR",null,"STATEMENT SOURCE",null,"RECOVERABLES","FACTOR","CAPITAL"]
[]
[null,"(a)  Accounts and Premiums Receivable",null,null,null,null,null,"(1) x (2)"]
[]
[null,"In Course of Collection",null,"Form 1EBS, Line (10a)",null,{"$f":"'Form 1EBS'!F61","v":0},0.05,{"$f":"IF($F$11<0,0,$F$11*$G$11)","v":0}]
[null,"Deferred - Not Yet Due",null,"Form 1, Line (10b)",null,{"$f":"'Form 1'!F66","v":0},0.05,{"$f":"IF($F$12<0,0,$F$12*$G$12)","v":0}]
[null,"Receivables From Retrocessional Contracts Less: Collateralized Balances",null,"Form 1EBS, Line (10c) Less Notes to Form 1EBS, Line (10)",null,{"$f":"'Form 1EBS'!F62-'Form 1EBS'!F225","v":0},0.1,{"$f":"$F$13*$G$13","v":0}]
[]
[null,"(a)  SUBTOTAL - ACCOUNTS AND PREMIUMS RECEIVABLE",null,null,null,{"$f":"SUM(F11:F13)","v":0},null,{"$f":"IF(SUM(H11:H13)>=0,SUM(H11:H13),0)","v":0}]
[]
[null,"(b)  All Other Receivables"]
[]
[null,"Advances to Affiliates ",null,"Form 1EBS, Line (4g)",null,{"$f":"'Form 1EBS'!F41","v":0},0.05,{"$f":"IF($F$19<0,0,$F$19*$G$19)","v":0}]
[null,"Accrued Investment Income",null,"Form 1EBS, Line (9)",null,{"$f":"'Form 1EBS'!F58","v":0},2.5000000000000001E-2,{"$f":"IF($F$20<0,0,$F$20*$G$20)","v":0}]
[null,"Policy Loans",null,"Form 1EBS, Line (6)",null,{"$f":"'Form 1EBS'!F49","v":0},0,{"$f":"IF($F$21<0,0,$F$21*$G$21)","v":0}]
[null,"Balances receivable on sale of investments",null,"Form 1EBS, Line (13f)",null,{"$f":"'Form 1EBS'!F83","v":0},2.5000000000000001E-2,{"$f":"IF($F$22<0,0,$F$22*$G$22)","v":0}]
[]
[null,"(b)  SUBTOTAL - ALL OTHER RECEIVABLES",null,null,null,{"$f":"SUM(F19:F22)","v":0},null,{"$f":"IF(SUM(H19:H22)>=0,SUM(H19:H22),0)","v":0}]
[]
[null,"(c)(i) Particulars of Reinsurance Balances For Current Year By BSCR Rating",null,null,null,null,null,"Max(0, (Column (1) x Column (2) ))"]
[null,0]
[null,"BSCR Rating 0",null,"Schedule XVIII EBS, Column O",null,{"$f":"+'Schedule XVIII (EBS)'!R84","v":0},0,{"$f":"MAX(0,(F28*G28))","v":0}]
[null,"BSCR Rating 1",null,"Schedule XVIII EBS, Column O",null,{"$f":"+'Schedule XVIII (EBS)'!R85","v":0},7.0000000000000001E-3,{"$f":"MAX(0,(F29*G29))","v":0}]
[null,"BSCR Rating 2",null,"Schedule XVIII EBS, Column O",null,{"$f":"+'Schedule XVIII (EBS)'!R86","v":0},1.4999999999999999E-2,0]
[null,"BSCR Rating 3",null,"Schedule XVIII EBS, Column O",null,{"$f":"+'Schedule XVIII (EBS)'!R87","v":0},3.5000000000000003E-2,0]
[null,"BSCR Rating 4",null,"Schedule XVIII EBS, Column O",null,{"$f":"+'Schedule XVIII (EBS)'!R88","v":0},7.0000000000000007E-2,0]
[null,"BSCR Rating 5",null,"Schedule XVIII EBS, Column O",null,{"$f":"+'Schedule XVIII (EBS)'!R89","v":0},0.12,0]
[null,"BSCR Rating 6",null,"Schedule XVIII EBS, Column O",null,{"$f":"+'Schedule XVIII (EBS)'!R90","v":0},0.2,0]
[null,"BSCR Rating 7",null,"Schedule XVIII EBS, Column O",null,{"$f":"+'Schedule XVIII (EBS)'!R91","v":0},0.27,0]
[null,"BSCR Rating 8",null,"Schedule XVIII EBS, Column O",null,{"$f":"+'Schedule XVIII (EBS)'!R92","v":0},0.35,0]
[]
[null,"Total",null,null,null,{"$f":"SUM(F28:F37)","v":0},null,{"$f":"SUM(H28:H37)","v":0}]
[]
[null,"Diversification Adjustment up to 40%",null,"Schedule XVIII EBS, Column O",null,null,{"$f":"'Schedule XVIII (EBS)'!R101","v":0},{"$f":"SUM(H28:H36)*-('Schedule XVIII (EBS)'!R101)","v":0}]
[]
[null,"(c)(i)  SUBTOTAL - PARTICULARS OF REINSURANCE BALANCES BY BSCR RATING",null,null,null,{"$f":"SUM(F28:F36)","v":0},null,{"$f":"SUM(H37:H40)","v":0}]
[]
[null,"(c)(ii) Particulars of Reinsurance Balances For Future Premium By BSCR Rating"]
[null,null,null,"(A)",null,"(B)","(C) ","(A) x (B) x (C) "]
[null,0]
[null,"Premium Risk Capital Charge (Gross)",null,{"$f":"'Premium Risk (Revised)'!Q59","v":0}]
[null,"Premium Risk Capital Charge (Net)",null,{"$f":"'Premium Risk (Revised)'!N59","v":0}]
[null,"Reinsurance Asset - Premium Risk",null,{"$f":"D47-D48","v":0}]
[null,0]
[null,"BSCR Rating 0",null,{"$f":"IF($F$38<>0, $D$49*F28/$F$38, 0)","v":0},null,{"$f":"IF($D$61=0,0,D51/$D$61)","v":0},0,{"$f":"IF($D$49<0,0,$D$49*F51*G51)","v":0}]
[null,"BSCR Rating 1",null,{"$f":"IF($F$38<>0, $D$49*F29/$F$38, 0)","v":0},null,{"$f":"IF($D$61=0,0,D52/$D$61)","v":0},7.0000000000000001E-3,{"$f":"IF($D$49<0,0,$D$49*F52*G52)","v":0}]
[null,"BSCR Rating 2",null,{"$f":"IF($F$38<>0, $D$49*F30/$F$38, 0)","v":0},null,0,1.4999999999999999E-2,0]
[null,"BSCR Rating 3",null,{"$f":"IF($F$38<>0, $D$49*F31/$F$38, 0)","v":0},null,0,3.5000000000000003E-2,0]
[null,"BSCR Rating 4",null,{"$f":"IF($F$38<>0, $D$49*F32/$F$38, D49)","v":0},null,0,7.0000000000000007E-2,0]
[null,"BSCR Rating 5",null,{"$f":"IF($F$38<>0, $D$49*F33/$F$38, 0)","v":0},null,0,0.12,0]
[null,"BSCR Rating 6",null,{"$f":"IF($F$38<>0, $D$49*F34/$F$38, 0)","v":0},null,0,0.2,0]
[null,"BSCR Rating 7",null,{"$f":"IF($F$38<>0, $D$49*F35/$F$38, 0)","v":0},null,0,0.27,0]
[null,"BSCR Rating 8",null,{"$f":"IF($F$38<>0, $D$49*F36/$F$38, 0)","v":0},null,0,0.35,0]
[]
[null,"Total",null,{"$f":"SUM(D51:D60)","v":0},null,{"$f":"SUM(F51:F60)","v":0},null,{"$f":"SUM(H51:H60)","v":0}]
[]
[null,"Diversification Adjustment up to 40%",null,"Schedule XVIII EBS, Column O",null,null,{"$f":"G40","v":0},{"$f":"SUM(H51:H59)*-('Schedule XVIII (EBS)'!R101)","v":0}]
[]
[null,"(c)(ii)  SUBTOTAL - PARTICULARS OF REINSURANCE BALANCES BY BSCR RATING",null,null,null,null,null,{"$f":"SUM(H60:H63)","v":0}]
[]
[null,"(c)  SUBTOTAL - PARTICULARS OF REINSURANCE BALANCES BY BSCR RATING (MAX OF (C)(I) AND (C)(II)",null,null,null,null,null,{"$f":"MAX(H65,H42)","v":0}]
[]
[null,"(d) Counterparty Default Risk for OTC Derivatives"]
[]
[null,null,"Market Value of Derivatives with Positive Market Value","Market Value of Derivatives with Negative Market Value","Market Value of Collateral, Excluding any overcollateralization","Capital Factor","Haircut on Collateral"]
[null,"BSCR Rating 0 ",{"$f":"'Schedule IIB (EBS)'!D84+'Schedule IIC (EBS)'!D84+'Schedule IID (EBS)'!D84+'Schedule IIE (EBS)'!D84+'Schedule IIF (EBS)'!D84","v":0},{"$f":"'Schedule IIB (EBS)'!F84+'Schedule IIC (EBS)'!F84+'Schedule IID (EBS)'!F84+'Schedule IIE (EBS)'!F84+'Schedule IIF (EBS)'!F84","v":0},{"$f":"'Schedule IIB (EBS)'!H84+'Schedule IIC (EBS)'!H84+'Schedule IID (EBS)'!H84+'Schedule IIE (EBS)'!H84+'Schedule IIF (EBS)'!H84","v":0},0,0.03,{"$f":"MAX(0,C72-(1-G72)*MIN(C72,E72))*F72","v":0}]
[null,"BSCR Rating 1",{"$f":"'Schedule IIB (EBS)'!D85+'Schedule IIC (EBS)'!D85+'Schedule IID (EBS)'!D85+'Schedule IIE (EBS)'!D85+'Schedule IIF (EBS)'!D85","v":0},{"$f":"'Schedule IIB (EBS)'!F85+'Schedule IIC (EBS)'!F85+'Schedule IID (EBS)'!F85+'Schedule IIE (EBS)'!F85+'Schedule IIF (EBS)'!F85","v":0},{"$f":"'Schedule IIB (EBS)'!H85+'Schedule IIC (EBS)'!H85+'Schedule IID (EBS)'!H85+'Schedule IIE (EBS)'!H85+'Schedule IIF (EBS)'!H85","v":0},4.0000000000000001E-3,0.03,{"$f":"MAX(0,C73-(1-G73)*MIN(C73,E73))*F73","v":0}]
[null,"BSCR Rating 2",{"$f":"'Schedule IIB (EBS)'!D86+'Schedule IIC (EBS)'!D86+'Schedule IID (EBS)'!D86+'Schedule IIE (EBS)'!D86+'Schedule IIF (EBS)'!D86","v":0},{"$f":"'Schedule IIB (EBS)'!F86+'Schedule IIC (EBS)'!F86+'Schedule IID (EBS)'!F86+'Schedule IIE (EBS)'!F86+'Schedule IIF (EBS)'!F86","v":0},{"$f":"'Schedule IIB (EBS)'!H86+'Schedule IIC (EBS)'!H86+'Schedule IID (EBS)'!H86+'Schedule IIE (EBS)'!H86+'Schedule IIF (EBS)'!H86","v":0},8.0000000000000002E-3,0.03,0]
[null,"BSCR Rating 3",{"$f":"'Schedule IIB (EBS)'!D87+'Schedule IIC (EBS)'!D87+'Schedule IID (EBS)'!D87+'Schedule IIE (EBS)'!D87+'Schedule IIF (EBS)'!D87","v":0},{"$f":"'Schedule IIB (EBS)'!F87+'Schedule IIC (EBS)'!F87+'Schedule IID (EBS)'!F87+'Schedule IIE (EBS)'!F87+'Schedule IIF (EBS)'!F87","v":0},{"$f":"'Schedule IIB (EBS)'!H87+'Schedule IIC (EBS)'!H87+'Schedule IID (EBS)'!H87+'Schedule IIE (EBS)'!H87+'Schedule IIF (EBS)'!H87","v":0},1.4999999999999999E-2,0.03,0]
[null,"BSCR Rating 4",{"$f":"'Schedule IIB (EBS)'!D88+'Schedule IIC (EBS)'!D88+'Schedule IID (EBS)'!D88+'Schedule IIE (EBS)'!D88+'Schedule IIF (EBS)'!D88","v":0},{"$f":"'Schedule IIB (EBS)'!F88+'Schedule IIC (EBS)'!F88+'Schedule IID (EBS)'!F88+'Schedule IIE (EBS)'!F88+'Schedule IIF (EBS)'!F88","v":0},{"$f":"'Schedule IIB (EBS)'!H88+'Schedule IIC (EBS)'!H88+'Schedule IID (EBS)'!H88+'Schedule IIE (EBS)'!H88+'Schedule IIF (EBS)'!H88","v":0},0.03,0.03,0]
[null,"BSCR Rating 5",{"$f":"'Schedule IIB (EBS)'!D89+'Schedule IIC (EBS)'!D89+'Schedule IID (EBS)'!D89+'Schedule IIE (EBS)'!D89+'Schedule IIF (EBS)'!D89","v":0},{"$f":"'Schedule IIB (EBS)'!F89+'Schedule IIC (EBS)'!F89+'Schedule IID (EBS)'!F89+'Schedule IIE (EBS)'!F89+'Schedule IIF (EBS)'!F89","v":0},{"$f":"'Schedule IIB (EBS)'!H89+'Schedule IIC (EBS)'!H89+'Schedule IID (EBS)'!H89+'Schedule IIE (EBS)'!H89+'Schedule IIF (EBS)'!H89","v":0},0.08,0.03,0]
[null,"BSCR Rating 6",{"$f":"'Schedule IIB (EBS)'!D90+'Schedule IIC (EBS)'!D90+'Schedule IID (EBS)'!D90+'Schedule IIE (EBS)'!D90+'Schedule IIF (EBS)'!D90","v":0},{"$f":"'Schedule IIB (EBS)'!F90+'Schedule IIC (EBS)'!F90+'Schedule IID (EBS)'!F90+'Schedule IIE (EBS)'!F90+'Schedule IIF (EBS)'!F90","v":0},{"$f":"'Schedule IIB (EBS)'!H90+'Schedule IIC (EBS)'!H90+'Schedule IID (EBS)'!H90+'Schedule IIE (EBS)'!H90+'Schedule IIF (EBS)'!H90","v":0},0.15,0.03,0]
[null,"BSCR Rating 7",{"$f":"'Schedule IIB (EBS)'!D91+'Schedule IIC (EBS)'!D91+'Schedule IID (EBS)'!D91+'Schedule IIE (EBS)'!D91+'Schedule IIF (EBS)'!D91","v":0},{"$f":"'Schedule IIB (EBS)'!F91+'Schedule IIC (EBS)'!F91+'Schedule IID (EBS)'!F91+'Schedule IIE (EBS)'!F91+'Schedule IIF (EBS)'!F91","v":0},{"$f":"'Schedule IIB (EBS)'!H91+'Schedule IIC (EBS)'!H91+'Schedule IID (EBS)'!H91+'Schedule IIE (EBS)'!H91+'Schedule IIF (EBS)'!H91","v":0},0.26300000000000001,0.03,0]
[null,"BSCR Rating 8",{"$f":"'Schedule IIB (EBS)'!D92+'Schedule IIC (EBS)'!D92+'Schedule IID (EBS)'!D92+'Schedule IIE (EBS)'!D92+'Schedule IIF (EBS)'!D92","v":0},{"$f":"'Schedule IIB (EBS)'!F92+'Schedule IIC (EBS)'!F92+'Schedule IID (EBS)'!F92+'Schedule IIE (EBS)'!F92+'Schedule IIF (EBS)'!F92","v":0},{"$f":"'Schedule IIB (EBS)'!H92+'Schedule IIC (EBS)'!H92+'Schedule IID (EBS)'!H92+'Schedule IIE (EBS)'!H92+'Schedule IIF (EBS)'!H92","v":0},0.35,0.03,0]
[]
[null,"(d)  SUBTOTAL - COUNTERPARTY DEFAULT RISK FOR OTC DERIVATIVES",null,null,null,null,null,{"$f":"SUM(H72:H80)","v":0}]
[]
[null,"(d)  TOTAL CREDIT RISK  [ (a) + (b) + (c) ]",null,null,null,{"$f":"F42+F24+F15","v":0},null,{"$f":"H24+H15+H67+H82","v":0}]

{"sheet":"Premium Risk","index":123,"n_rows":59,"n_cols":9,"rows_kept":59,"cut":false,"hidden":false,"merged":[[1,7,1,8],[5,2,6,2]]}
[{"$f":"'Group Information'!C9","v":"Enter Parent Company Name"},null,null,null,null,null,null,null,{"$f":"HYPERLINK(\"#'Index'!A1\",\"Return to Index\")","v":"Return to Index"}]
[null,"Premium Risk For General Business ($000)"]
[null,{"$f":"'Group Information'!C3","v":"2023-12-31"},null,"(1)","(2)","(3)","(4)","(5)"]
[]
[null,null,null,"GROSS","NET","GEO"]
[null,null,"STATEMENT SOURCE","PREMIUMS","PREMIUMS","DIVERSIFIED","CAPITAL","REQUIRED"]
[null,"LINE OF GENERAL BUSINESS",null,"WRITTEN","WRITTEN","PREMIUMS","FACTOR","CAPITAL"]
[]
[null,null,null,null,null,null,null,"(3) x (4)"]
[]
[null,"Property Catastrophe","Schedule IV, Line (1)",{"$f":"+'Schedule IVA'!M11","v":0},{"$f":"+'Schedule IVA'!Q11","v":0},{"$f":"+'Geographic Diversification'!H9","v":0},0,{"$f":"IF($F$11<0,0,$F$11*$G$11)","v":0}]
[null,"Property","Schedule IV, Line (2)",{"$f":"+'Schedule IVA'!M12","v":0},{"$f":"+'Schedule IVA'!Q12","v":0},{"$f":"+'Geographic Diversification'!H10","v":0},0.49745002535505289,{"$f":"IF($F$12<0,0,$F$12*$G$12)","v":0}]
[null,"Property Non-Proportional","Schedule IV, Line (3)",{"$f":"+'Schedule IVA'!M13","v":0},{"$f":"+'Schedule IVA'!Q13","v":0},{"$f":"+'Geographic Diversification'!H11","v":0},0.51625715924082138,{"$f":"IF($F$13<0,0,$F$13*$G$13)","v":0}]
[null,"Personal Accident","Schedule IV, Line (4)",{"$f":"+'Schedule IVA'!M14","v":0},{"$f":"+'Schedule IVA'!Q14","v":0},{"$f":"+'Geographic Diversification'!H12","v":0},0.34115345724240687,{"$f":"IF($F$14<0,0,$F$14*$G$14)","v":0}]
[null,"Personal Accident Non-Proportional","Schedule IV, Line (5)",{"$f":"+'Schedule IVA'!M15","v":0},{"$f":"+'Schedule IVA'!Q15","v":0},{"$f":"+'Geographic Diversification'!H13","v":0},0.41221262895987398,{"$f":"IF($F$15<0,0,$F$15*$G$15)","v":0}]
[null,"Aviation","Schedule IV, Line (6)",{"$f":"+'Schedule IVA'!M16","v":0},{"$f":"+'Schedule IVA'!Q16","v":0},{"$f":"+'Geographic Diversification'!H14","v":0},0.48178449435856341,{"$f":"IF($F$16<0,0,$F$16*$G$16)","v":0}]
[null,"Aviation Non-Proportional","Schedule IV, Line (7)",{"$f":"+'Schedule IVA'!M17","v":0},{"$f":"+'Schedule IVA'!Q17","v":0},{"$f":"+'Geographic Diversification'!H15","v":0},0.48201231799963595,{"$f":"IF($F$17<0,0,$F$17*$G$17)","v":0}]
[null,"Credit / Surety","Schedule IV, Line (8)",{"$f":"+'Schedule IVA'!M18","v":0},{"$f":"+'Schedule IVA'!Q18","v":0},{"$f":"+'Geographic Diversification'!H16","v":0},0.3982052200525078,{"$f":"IF($F$18<0,0,$F$18*$G$18)","v":0}]
[null,"Credit / Surety Non-Proportional","Schedule IV, Line (9)",{"$f":"+'Schedule IVA'!M19","v":0},{"$f":"+'Schedule IVA'!Q19","v":0},{"$f":"+'Geographic Diversification'!H17","v":0},0.45356665999464663,{"$f":"IF($F$19<0,0,$F$19*$G$19)","v":0}]
[null,"Energy Offshore / Marine","Schedule IV, Line (10)",{"$f":"+'Schedule IVA'!M20","v":0},{"$f":"+'Schedule IVA'!Q20","v":0},{"$f":"+'Geographic Diversification'!H18","v":0},0.4210234465607684,{"$f":"IF($F$20<0,0,$F$20*$G$20)","v":0}]
[null,"Energy Offshore / Marine Non-Proportional","Schedule IV, Line (11)",{"$f":"+'Schedule IVA'!M21","v":0},{"$f":"+'Schedule IVA'!Q21","v":0},{"$f":"+'Geographic Diversification'!H19","v":0},0.47016820069929888,{"$f":"IF($F$21<0,0,$F$21*$G$21)","v":0}]
[null,"U.S. Casualty","Schedule IV, Line (12)",{"$f":"+'Schedule IVA'!M22","v":0},{"$f":"+'Schedule IVA'!Q22","v":0},{"$f":"+'Geographic Diversification'!H20","v":0},0.50272577892886261,{"$f":"IF($F$22<0,0,$F$22*$G$22)","v":0}]
[null,"U.S. Casualty Non-Proportional","Schedule IV, Line (13)",{"$f":"+'Schedule IVA'!M23","v":0},{"$f":"+'Schedule IVA'!Q23","v":0},{"$f":"+'Geographic Diversification'!H21","v":0},0.55581407345277534,{"$f":"IF($F$23<0,0,$F$23*$G$23)","v":0}]
[null,"U.S. Professional","Schedule IV, Line (14)",{"$f":"+'Schedule IVA'!M24","v":0},{"$f":"+'Schedule IVA'!Q24","v":0},{"$f":"+'Geographic Diversification'!H22","v":0},0.51225206482709473,{"$f":"IF($F$24<0,0,$F$24*$G$24)","v":0}]
[null,"U.S. Professional Non-Proportional","Schedule IV, Line (15)",{"$f":"+'Schedule IVA'!M25","v":0},{"$f":"+'Schedule IVA'!Q25","v":0},{"$f":"+'Geographic Diversification'!H23","v":0},0.53805556666757759,{"$f":"IF($F$25<0,0,$F$25*$G$25)","v":0}]
[null,"U.S. Specialty","Schedule IV, Line (16)",{"$f":"+'Schedule IVA'!M26","v":0},{"$f":"+'Schedule IVA'!Q26","v":0},{"$f":"+'Geographic Diversification'!H24","v":0},0.51436147942106603,{"$f":"IF($F$26<0,0,$F$26*$G$26)","v":0}]
[null,"U.S. Specialty Non-Proportional","Schedule IV, Line (17)",{"$f":"+'Schedule IVA'!M27","v":0},{"$f":"+'Schedule IVA'!Q27","v":0},{"$f":"+'Geographic Diversification'!H25","v":0},0.52697789035313269,{"$f":"IF($F$27<0,0,$F$27*$G$27)","v":0}]
[null,"International Motor","Schedule IV, Line (18)",{"$f":"+'Schedule IVA'!M28","v":0},{"$f":"+'Schedule IVA'!Q28","v":0},{"$f":"+'Geographic Diversification'!H26","v":0},0.4219175611793351,{"$f":"IF($F$28<0,0,$F$28*$G$28)","v":0}]
[null,"International Motor Non-Proportional","Schedule IV, Line (19)",{"$f":"+'Schedule IVA'!M29","v":0},{"$f":"+'Schedule IVA'!Q29","v":0},{"$f":"+'Geographic Diversification'!H27","v":0},0.48221088542932422,{"$f":"IF($F$29<0,0,$F$29*$G$29)","v":0}]
[null,"International Casualty Non-Motor","Schedule IV, Line (20)",{"$f":"+'Schedule IVA'!M30","v":0},{"$f":"+'Schedule IVA'!Q30","v":0},{"$f":"+'Geographic Diversification'!H28","v":0},0.50012106835589665,{"$f":"IF($F$30<0,0,$F$30*$G$30)","v":0}]
[null,"International Casualty Non-Motor Non-Proportional","Schedule IV, Line (21)",{"$f":"+'Schedule IVA'!M31","v":0},{"$f":"+'Schedule IVA'!Q31","v":0},{"$f":"+'Geographic Diversification'!H29","v":0},0.53551360019381988,{"$f":"IF($F$31<0,0,$F$31*$G$31)","v":0}]
[null,"Retro Property","Schedule IV, Line (22)",{"$f":"+'Schedule IVA'!M32","v":0},{"$f":"+'Schedule IVA'!Q32","v":0},{"$f":"+'Geographic Diversification'!H30","v":0},0.50803089843617277,{"$f":"IF($F$32<0,0,$F$32*$G$32)","v":0}]
[null,"Structured / Finite Reinsurance","Schedule IV, Line (23)",{"$f":"+'Schedule IVA'!M33","v":0},{"$f":"+'Schedule IVA'!Q33","v":0},{"$f":"+'Geographic Diversification'!H31","v":0},0.27200000000000002,{"$f":"IF($F$33<0,0,$F$33*$G$33)","v":0}]
[null,"Health","Schedule IV, Line (24)",{"$f":"+'Schedule IVA'!M34","v":0},{"$f":"+'Schedule IVA'!Q34","v":0},{"$f":"+'Geographic Diversification'!H32","v":0},0.15,{"$f":"IF($F$34<0,0,$F$34*$G$34)","v":0}]
[]
[null,"(a)  TOTAL",null,{"$f":"SUM(D11:D34)","v":0},{"$f":"SUM(E11:E34)","v":0},{"$f":"SUM(F11:F34)","v":0},null,{"$f":"SUM(H11:H34)","v":0}]
[]
[null,"(b)  CONCENTRATION ADJUSTMENT CALCULATION"]
[]
[null,"(i)","Maximum Premium [ Maximum (1a) excl Prop CAT ]",null,null,null,null,{"$f":"MAX(F12:F34)","v":0}]
[null,"(ii)","Total Premium [ Total (1a) excl Prop CAT ]",null,null,null,null,{"$f":"F36-F11","v":0}]
[null,"(iii)","Maximum Premium / Total Premium [ (i) / (ii) ]",null,null,null,null,{"$f":"IF(H41=0,0,H40/H41)","v":0}]
[null,"(iv)","Maximum Adjustment",null,null,null,null,{"$f":"'Reserve Risk'!H43","v":0.4}]
[null,"(v)","[ (iii) x (iv) ]",null,null,null,null,{"$f":"H42*H43","v":0}]
[null,"(vi)","Minimum Adjustment Factor",null,null,null,null,{"$f":"1-H43","v":0.6}]
[]
[null,"(b)  CONCENTRATION ADJUSTMENT FACTOR [ (v) + (vi) ]",null,null,null,null,null,{"$f":"H44+H45","v":0.6}]
[]
[null,"(c)  REQUIRED CAPITAL CHARGE  [ TOTAL (a) x (b) ]",null,null,null,null,null,{"$f":"IF(H36=0,0,H36*H47)","v":0}]
[]
[null,"(d)  CATASTROPHE PREMIUM ADJUSTMENT CALCULATION"]
[]
[null,"(i)","Average Annual Loss (AAL) Excluding Property Catastrophe",null,null,null,null,{"$f":"'Catastrophe Risk'!E10","v":0}]
[null,"(ii)","Industry Catastrophe Loss Ratio",null,null,null,null,{"$f":"'Catastrophe Risk'!E12","v":0.4}]
[null,"(iii)","Avg Capital Factor  [ Total (3c) / (Total (1a) excl Prop CAT) ]",null,null,null,null,{"$f":"IF(H41=0,0,H49/H41)","v":0}]
[]
[null,"(d)  CATASTROPHE PREMIUM ADJUSTMENT  [ (i) / (ii) x (iii) ]",null,null,null,null,null,{"$f":"H53/H54*H55","v":0}]
[]
[null,"(e)  TOTAL PREMIUM RISK FOR GENERAL BUSINESS (ADJUSTED FOR CATASTROPHE PREMIUM)  [ (c) - (d) ]",null,null,null,null,null,{"$f":"IF(H49-H57>=0,H49-H57,0)","v":0}]

{"sheet":"Premium Risk (Revised)","index":124,"n_rows":59,"n_cols":20,"rows_kept":59,"cut":false,"hidden":false,"merged":[[5,2,6,2],[2,2,2,3]]}
["PREMIUM RISK (REVISED)",null,null,null,null,null,null,null,null,null,null,null,null,{"$f":"HYPERLINK(\"#'Index'!A1\",\"Return to Index\")","v":"Return to Index"}]
[{"$f":"'Group Information'!C7","v":"Enter Group Company Name"}]
["Premium Risk For General Business ($000)",null,{"$f":"'Group Information'!C3","v":"2023-12-31"}]
[]
[null,null,null,"GROSS","NET","GEO","GEO","GEO","GEO","GEO","CAPITAL","CAPITAL","CAPITAL",null,null,null,"Capital Charges for Credit Risk"]
[null,null,"STATEMENT SOURCE","EXPOSURE","EXPOSURE","DIVERSIFIED","DIVERSIFIED","DIVERSIFIED","DIVERSIFIED","DIVERSIFIED","FACTOR 1","FACTOR 2","FACTOR 3","REQUIRED",null,null,"Gross Required"]
[null,"LINE OF GENERAL BUSINESS",null,"MEASURE","MEASURE","PREMIUMS","SCALAR","NET BASE EXPOSURE","NET FP (EXISTING)","NET FP (FUTURE)","NET BASE EXPOSURE","NET FP (EXISTING)","NET FP (FUTURE)","CAPITAL",null,null,"Capital "]
[]
[null,null,null,"(1)","(2)","(3)","(4)","(5)","(6)","(7)","(8)","(9)","(10)","(11)",null,null,null,null,"Scalars 2","Scalars 3"]
[]
[null,"Property Catastrophe","Schedule IVD, Line (1)",{"$f":"'Schedule IVD (EBS)'!Q9","v":0},{"$f":"'Schedule IVD (EBS)'!O9","v":0},{"$f":"'Geographic Div. (Revised)'!H9","v":0},{"$f":"IF(IFERROR(F11/E11,1)<0,1,IFERROR(F11/E11,1))","v":1},{"$f":"'Schedule IVD (EBS)'!I9*$G11","v":0},{"$f":"'Schedule IVD (EBS)'!K9*$G11","v":0},{"$f":"'Schedule IVD (EBS)'!M9*$G11","v":0},0,0.115,{"$f":"+L11*T11","v":5.7500000000000002E-2},{"$f":"IF($H11<0,0,$H11*$K11)+IF($I11<0,0,$I11*$L11)+IF($J11<0,0,$J11*$M11)","v":0},null,null,{"$f":"IF(H11=E11,MAX(D11*K11,0),IF(E11=F11,IF(D11<0,0,D11*(H11/F11)*K11),IF(D11<0,0,D11*(H11/E11)*K11)))\n+IF(I11=E11,MAX(D11*L11,0),IF(E11=F11,IF(D11<0,0,D11*(I11/F11)*L11),IF(D11<0,0,D11*(I11/E11)*L11)))\n+IF(J11=E11,MAX(D11*M11,0),IF(E11=F11,IF(D11<0,0,D11*(J11/F11)*M11),IF(D11<0,0,D11*(J11/E11)*M11)))","v":0},null,0,0.5]
[null,"Property","Schedule IVD, Line (2)",{"$f":"'Schedule IVD (EBS)'!Q10","v":0},{"$f":"'Schedule IVD (EBS)'!O10","v":0},{"$f":"'Geographic Div. (Revised)'!H10","v":0},{"$f":"IF(IFERROR(F12/E12,1)<0,1,IFERROR(F12/E12,1))","v":1},{"$f":"'Schedule IVD (EBS)'!I10*$G12","v":0},{"$f":"'Schedule IVD (EBS)'!K10*$G12","v":0},{"$f":"'Schedule IVD (EBS)'!M10*$G12","v":0},0.497450025355053,{"$f":"+K12*S12","v":0.12436250633876325},{"$f":"+L12*T12","v":6.2181253169381626E-2},{"$f":"IF($H12<0,0,$H12*$K12)+IF($I12<0,0,$I12*$L12)+IF($J12<0,0,$J12*$M12)","v":0},null,null,{"$f":"IF(H12=E12,MAX(D12*K12,0),IF(E12=F12,IF(D12<0,0,D12*(H12/F12)*K12),IF(D12<0,0,D12*(H12/E12)*K12)))\n+IF(I12=E12,MAX(D12*L12,0),IF(E12=F12,IF(D12<0,0,D12*(I12/F12)*L12),IF(D12<0,0,D12*(I12/E12)*L12)))\n+IF(J12=E12,MAX(D12*M12,0),IF(E12=F12,IF(D12<0,0,D12*(J12/F12)*M12),IF(D12<0,0,D12*(J12/E12)*M12)))","v":0},null,0.25,0.5]
[null,"Property Non-Proportional","Schedule IVD, Line (3)",{"$f":"'Schedule IVD (EBS)'!Q11","v":0},{"$f":"'Schedule IVD (EBS)'!O11","v":0},{"$f":"'Geographic Div. (Revised)'!H11","v":0},1,{"$f":"'Schedule IVD (EBS)'!I11*$G13","v":0},{"$f":"'Schedule IVD (EBS)'!K11*$G13","v":0},{"$f":"'Schedule IVD (EBS)'!M11*$G13","v":0},0.51625715924082105,{"$f":"+K13*S13","v":0.12906428981020526},6.4532144905102631E-2,{"$f":"IF($H13<0,0,$H13*$K13)+IF($I13<0,0,$I13*$L13)+IF($J13<0,0,$J13*$M13)","v":0},null,null,0,null,0.25,0.5]
[null,"Personal Accident","Schedule IVD, Line (4)",{"$f":"'Schedule IVD (EBS)'!Q12","v":0},{"$f":"'Schedule IVD (EBS)'!O12","v":0},{"$f":"'Geographic Div. (Revised)'!H12","v":0},1,{"$f":"'Schedule IVD (EBS)'!I12*$G14","v":0},{"$f":"'Schedule IVD (EBS)'!K12*$G14","v":0},{"$f":"'Schedule IVD (EBS)'!M12*$G14","v":0},0.34115345724240698,8.5288364310601744E-2,4.2644182155300872E-2,{"$f":"IF($H14<0,0,$H14*$K14)+IF($I14<0,0,$I14*$L14)+IF($J14<0,0,$J14*$M14)","v":0},null,null,0,null,0.25,0.5]
[null,"Personal Accident Non-Proportional","Schedule IVD, Line (5)",{"$f":"'Schedule IVD (EBS)'!Q13","v":0},{"$f":"'Schedule IVD (EBS)'!O13","v":0},{"$f":"'Geographic Div. (Revised)'!H13","v":0},1,{"$f":"'Schedule IVD (EBS)'!I13*$G15","v":0},{"$f":"'Schedule IVD (EBS)'!K13*$G15","v":0},{"$f":"'Schedule IVD (EBS)'!M13*$G15","v":0},0.41221262895987398,0.12366378868796218,6.1831894343981092E-2,0,null,null,0,null,0.3,0.5]
[null,"Aviation","Schedule IVD, Line (6)",{"$f":"'Schedule IVD (EBS)'!Q14","v":0},{"$f":"'Schedule IVD (EBS)'!O14","v":0},{"$f":"'Geographic Div. (Revised)'!H14","v":0},1,{"$f":"'Schedule IVD (EBS)'!I14*$G16","v":0},{"$f":"'Schedule IVD (EBS)'!K14*$G16","v":0},{"$f":"'Schedule IVD (EBS)'!M14*$G16","v":0},0.48178449435856302,0.14453534830756889,7.2267674153784447E-2,{"$f":"IF($H16<0,0,$H16*$K16)+IF($I16<0,0,$I16*$L16)+IF($J16<0,0,$J16*$M16)","v":0},null,null,0,null,0.3,0.5]
[null,"Aviation Non-Proportional","Schedule IVD, Line (7)",{"$f":"'Schedule IVD (EBS)'!Q15","v":0},{"$f":"'Schedule IVD (EBS)'!O15","v":0},{"$f":"'Geographic Div. (Revised)'!H15","v":0},1,{"$f":"'Schedule IVD (EBS)'!I15*$G17","v":0},{"$f":"'Schedule IVD (EBS)'!K15*$G17","v":0},{"$f":"'Schedule IVD (EBS)'!M15*$G17","v":0},0.48201231799963601,0.14460369539989079,7.2301847699945396E-2,0,null,null,0,null,0.3,0.5]
[null,"Credit / Surety","Schedule IVD, Line (8)",{"$f":"'Schedule IVD (EBS)'!Q16","v":0},{"$f":"'Schedule IVD (EBS)'!O16","v":0},{"$f":"'Geographic Div. (Revised)'!H16","v":0},1,{"$f":"'Schedule IVD (EBS)'!I16*$G18","v":0},{"$f":"'Schedule IVD (EBS)'!K16*$G18","v":0},{"$f":"'Schedule IVD (EBS)'!M16*$G18","v":0},0.39820522005250802,0.1194615660157524,5.9730783007876202E-2,0,null,null,0,null,0.3,0.5]
[null,"Credit / Surety Non-Proportional","Schedule IVD, Line (9)",{"$f":"'Schedule IVD (EBS)'!Q17","v":0},{"$f":"'Schedule IVD (EBS)'!O17","v":0},{"$f":"'Geographic Div. (Revised)'!H17","v":0},1,{"$f":"'Schedule IVD (EBS)'!I17*$G19","v":0},{"$f":"'Schedule IVD (EBS)'!K17*$G19","v":0},{"$f":"'Schedule IVD (EBS)'!M17*$G19","v":0},0.45356665999464701,0.13606999799839409,6.8034998999197044E-2,0,null,null,0,null,0.3,0.5]
[null,"Energy Offshore / Marine","Schedule IVD, Line (10)",{"$f":"'Schedule IVD (EBS)'!Q18","v":0},{"$f":"'Schedule IVD (EBS)'!O18","v":0},{"$f":"'Geographic Div. (Revised)'!H18","v":0},1,{"$f":"'Schedule IVD (EBS)'!I18*$G20","v":0},{"$f":"'Schedule IVD (EBS)'!K18*$G20","v":0},{"$f":"'Schedule IVD (EBS)'!M18*$G20","v":0},0.42102344656076801,0.1263070339682304,6.3153516984115199E-2,0,null,null,0,null,0.3,0.5]
[null,"Energy Offshore / Marine Non-Proportional","Schedule IVD, Line (11)",{"$f":"'Schedule IVD (EBS)'!Q19","v":0},{"$f":"'Schedule IVD (EBS)'!O19","v":0},{"$f":"'Geographic Div. (Revised)'!H19","v":0},1,{"$f":"'Schedule IVD (EBS)'!I19*$G21","v":0},{"$f":"'Schedule IVD (EBS)'!K19*$G21","v":0},{"$f":"'Schedule IVD (EBS)'!M19*$G21","v":0},0.47016820069929899,0.1410504602097897,7.0525230104894851E-2,0,null,null,0,null,0.3,0.5]
[null,"U.S. Casualty","Schedule IVD, Line (12)",{"$f":"'Schedule IVD (EBS)'!Q20","v":0},{"$f":"'Schedule IVD (EBS)'!O20","v":0},{"$f":"'Geographic Div. (Revised)'!H20","v":0},1,{"$f":"'Schedule IVD (EBS)'!I20*$G22","v":0},{"$f":"'Schedule IVD (EBS)'!K20*$G22","v":0},{"$f":"'Schedule IVD (EBS)'!M20*$G22","v":0},0.50272577892886305,0.25136288946443153,0.12568144473221576,0,null,null,0,null,0.5,0.5]
[null,"U.S. Casualty Non-Proportional","Schedule IVD, Line (13)",{"$f":"'Schedule IVD (EBS)'!Q21","v":0},{"$f":"'Schedule IVD (EBS)'!O21","v":0},{"$f":"'Geographic Div. (Revised)'!H21","v":0},1,{"$f":"'Schedule IVD (EBS)'!I21*$G23","v":0},{"$f":"'Schedule IVD (EBS)'!K21*$G23","v":0},{"$f":"'Schedule IVD (EBS)'!M21*$G23","v":0},0.555814073452775,0.2779070367263875,0.13895351836319375,0,null,null,0,null,0.5,0.5]
[null,"U.S. Professional","Schedule IVD, Line (14)",{"$f":"'Schedule IVD (EBS)'!Q22","v":0},{"$f":"'Schedule IVD (EBS)'!O22","v":0},{"$f":"'Geographic Div. (Revised)'!H22","v":0},1,{"$f":"'Schedule IVD (EBS)'!I22*$G24","v":0},{"$f":"'Schedule IVD (EBS)'!K22*$G24","v":0},{"$f":"'Schedule IVD (EBS)'!M22*$G24","v":0},0.51225206482709496,0.25612603241354748,0.12806301620677374,0,null,null,0,null,0.5,0.5]
[null,"U.S. Professional Non-Proportional","Schedule IVD, Line (15)",{"$f":"'Schedule IVD (EBS)'!Q23","v":0},{"$f":"'Schedule IVD (EBS)'!O23","v":0},{"$f":"'Geographic Div. (Revised)'!H23","v":0},1,{"$f":"'Schedule IVD (EBS)'!I23*$G25","v":0},{"$f":"'Schedule IVD (EBS)'!K23*$G25","v":0},{"$f":"'Schedule IVD (EBS)'!M23*$G25","v":0},0.53805556666757803,0.26902778333378902,0.13451389166689451,0,null,null,0,null,0.5,0.5]
[null,"U.S. Specialty","Schedule IVD, Line (16)",{"$f":"'Schedule IVD (EBS)'!Q24","v":0},{"$f":"'Schedule IVD (EBS)'!O24","v":0},{"$f":"'Geographic Div. (Revised)'!H24","v":0},1,{"$f":"'Schedule IVD (EBS)'!I24*$G26","v":0},{"$f":"'Schedule IVD (EBS)'!K24*$G26","v":0},{"$f":"'Schedule IVD (EBS)'!M24*$G26","v":0},0.51436147942106603,0.25718073971053301,0.12859036985526651,0,null,null,0,null,0.5,0.5]
[null,"U.S. Specialty Non-Proportional","Schedule IVD, Line (17)",{"$f":"'Schedule IVD (EBS)'!Q25","v":0},{"$f":"'Schedule IVD (EBS)'!O25","v":0},{"$f":"'Geographic Div. (Revised)'!H25","v":0},1,{"$f":"'Schedule IVD (EBS)'!I25*$G27","v":0},{"$f":"'Schedule IVD (EBS)'!K25*$G27","v":0},{"$f":"'Schedule IVD (EBS)'!M25*$G27","v":0},0.52697789035313303,0.26348894517656651,0.13174447258828326,0,null,null,0,null,0.5,0.5]
[null,"International Motor","Schedule IVD, Line (18)",{"$f":"'Schedule IVD (EBS)'!Q26","v":0},{"$f":"'Schedule IVD (EBS)'!O26","v":0},{"$f":"'Geographic Div. (Revised)'!H26","v":0},1,{"$f":"'Schedule IVD (EBS)'!I26*$G28","v":0},{"$f":"'Schedule IVD (EBS)'!K26*$G28","v":0},{"$f":"'Schedule IVD (EBS)'!M26*$G28","v":0},0.42191756117933499,0.12657526835380048,6.328763417690024E-2,0,null,null,0,null,0.3,0.5]
[null,"International Motor Non-Proportional","Schedule IVD, Line (19)",{"$f":"'Schedule IVD (EBS)'!Q27","v":0},{"$f":"'Schedule IVD (EBS)'!O27","v":0},{"$f":"'Geographic Div. (Revised)'!H27","v":0},1,{"$f":"'Schedule IVD (EBS)'!I27*$G29","v":0},{"$f":"'Schedule IVD (EBS)'!K27*$G29","v":0},{"$f":"'Schedule IVD (EBS)'!M27*$G29","v":0},0.482210885429324,0.241105442714662,0.120552721357331,0,null,null,0,null,0.5,0.5]
[null,"International Casualty Non-Motor","Schedule IVD, Line (20)",{"$f":"'Schedule IVD (EBS)'!Q28","v":0},{"$f":"'Schedule IVD (EBS)'!O28","v":0},{"$f":"'Geographic Div. (Revised)'!H28","v":0},1,{"$f":"'Schedule IVD (EBS)'!I28*$G30","v":0},{"$f":"'Schedule IVD (EBS)'!K28*$G30","v":0},{"$f":"'Schedule IVD (EBS)'!M28*$G30","v":0},0.50012106835589698,0.25006053417794849,0.12503026708897425,0,null,null,0,null,0.5,0.5]
[null,"International Casualty Non-Motor Non-Proportional","Schedule IVD, Line (21)",{"$f":"'Schedule IVD (EBS)'!Q29","v":0},{"$f":"'Schedule IVD (EBS)'!O29","v":0},{"$f":"'Geographic Div. (Revised)'!H29","v":0},1,{"$f":"'Schedule IVD (EBS)'!I29*$G31","v":0},{"$f":"'Schedule IVD (EBS)'!K29*$G31","v":0},{"$f":"'Schedule IVD (EBS)'!M29*$G31","v":0},0.53551360019381999,0.26775680009691,0.133878400048455,0,null,null,0,null,0.5,0.5]
[null,"Retro Property","Schedule IVD, Line (22)",{"$f":"'Schedule IVD (EBS)'!Q30","v":0},{"$f":"'Schedule IVD (EBS)'!O30","v":0},{"$f":"'Geographic Div. (Revised)'!H30","v":0},1,{"$f":"'Schedule IVD (EBS)'!I30*$G32","v":0},{"$f":"'Schedule IVD (EBS)'!K30*$G32","v":0},{"$f":"'Schedule IVD (EBS)'!M30*$G32","v":0},0.508030898436173,0.12700772460904325,6.3503862304521624E-2,0,null,null,0,null,0.25,0.5]
[null,"Structured / Finite Reinsurance","Schedule IVD, Line (23)",{"$f":"'Schedule IVD (EBS)'!Q31","v":0},{"$f":"'Schedule IVD (EBS)'!O31","v":0},{"$f":"'Geographic Div. (Revised)'!H31","v":0},1,{"$f":"'Schedule IVD (EBS)'!I31*$G33","v":0},{"$f":"'Schedule IVD (EBS)'!K31*$G33","v":0},{"$f":"'Schedule IVD (EBS)'!M31*$G33","v":0},0.27200000000000002,6.8000000000000005E-2,3.4000000000000002E-2,0,null,null,0,null,0.25,0.5]
[null,"Health","Schedule IVD, Line (24)",{"$f":"'Schedule IVD (EBS)'!Q32","v":0},{"$f":"'Schedule IVD (EBS)'!O32","v":0},{"$f":"'Geographic Div. (Revised)'!H32","v":0},1,{"$f":"'Schedule IVD (EBS)'!I32*$G34","v":0},{"$f":"'Schedule IVD (EBS)'!K32*$G34","v":0},{"$f":"'Schedule IVD (EBS)'!M32*$G34","v":0},0.15,3.7499999999999999E-2,1.8749999999999999E-2,0,null,null,0,null,0.25,0.5]
[]
[null,"(a)  TOTAL",null,{"$f":"SUM(D11:D34)","v":0},{"$f":"SUM(E11:E34)","v":0},{"$f":"SUM(F11:F34)","v":0},null,{"$f":"SUM(H11:H34)","v":0},{"$f":"SUM(I11:I34)","v":0},{"$f":"SUM(J11:J34)","v":0},null,null,null,{"$f":"SUM(N11:N35)","v":0},null,null,{"$f":"SUM(Q11:Q35)","v":0}]
[]
[null,"(b)  CORRELATION ADJUSTMENT"]
[]
[null,"(i)","Reduction in Capital Charge from Correlation Matrix",null,null,null,null,null,null,null,null,null,null,{"$f":"N36-N42","v":0},null,null,{"$f":"Q36-Q42","v":0}]
[]
[null,"(c)  REQUIRED CAPITAL CHARGE  [ TOTAL (a) x (b) ]",null,null,null,null,null,null,null,null,{"$f":"SQRT(MMULT(TRANSPOSE(IF($H11:$H34<0,0,$H11:$H34*$K11:$K34)),MMULT('Correlation Matrix'!C16:Z39,IF($H11:$H34<0,0,$H11:$H34*$K11:$K34))))","v":0},null,null,{"$f":"SQRT(MMULT(TRANSPOSE(N11:N34),MMULT('Correlation Matrix'!C16:Z39,N11:N34)))","v":0},null,null,{"$f":"SQRT(MMULT(TRANSPOSE(Q11:Q34),MMULT('Correlation Matrix'!C16:Z39,Q11:Q34)))","v":0}]
[]
[null,"(d)  CATASTROPHE PREMIUM ADJUSTMENT CALCULATION"]
[]
[null,"(i)","Average Annual Loss (AAL) Excluding Property Catastrophe",null,null,null,null,null,null,null,null,null,null,{"$f":"'Catastrophe Risk (Revised)'!E10","v":0},null,null,{"$f":"'Catastrophe Risk (Revised)'!E10","v":0}]
[null,"(ii)","Industry Catastrophe Loss Ratio",null,null,null,null,null,null,null,null,null,null,{"$f":"'Catastrophe Risk (Revised)'!E12","v":0.4},null,null,{"$f":"'Catastrophe Risk (Revised)'!E12","v":0.4}]
[null,"(iii)","Avg Capital Factor  [ Total (3c) / (Total (1a) excl Prop CAT) ]",null,null,null,null,null,null,null,null,null,null,{"$f":"IF((H36-H11)=0,0,K42/(H36-H11))","v":0},null,null,{"$f":"IF((D36-D11)=0,0,Q42/(D36-D11))","v":0}]
[]
[null,"(d)  CATASTROPHE PREMIUM ADJUSTMENT  [ (i) / (ii) x (iii) ]",null,null,null,null,null,null,null,null,null,null,null,{"$f":"N46/N47*N48","v":0},null,null,{"$f":"Q46/Q47*Q48","v":0}]
[]
[]
[]
[]
[]
[]
[]
[]
[null,"(e)  TOTAL PREMIUM RISK FOR GENERAL BUSINESS (ADJUSTED FOR CATASTROPHE PREMIUM)  [ (c) - (d) ]",null,null,null,null,null,null,null,null,null,null,null,{"$f":"IF(N42-N50>=0,N42-N50,0)","v":0},null,null,{"$f":"IF(Q42-Q50>=0,Q42-Q50,0)","v":0}]

{"sheet":"Reserve Risk","index":125,"n_rows":49,"n_cols":9,"rows_kept":49,"cut":false,"hidden":false,"merged":[[50,0,50,1],[1,7,1,8],[5,2,6,2]]}
[{"$f":"'Group Information'!C9","v":"Enter Parent Company Name"},null,null,null,null,null,null,null,{"$f":"HYPERLINK(\"#'Index'!A1\",\"Return to Index\")","v":"Return to Index"}]
[null,"Reserve Risk For General Business ($000)"]
[null,{"$f":"'Group Information'!C3","v":"2023-12-31"},null,"(1)","(2)","(3)","(4)","(5)"]
[]
[null,null,null,"GROSS LOSS &","NET LOSS &","GEO "]
[null,null,"STATEMENT SOURCE","LOSS EXPENSE","LOSS EXPENSE","DIVERSIFIED","CAPITAL","REQUIRED"]
[null,"LINE OF GENERAL BUSINESS",null,"PROVISIONS","PROVISIONS","PROVISIONS","FACTOR","CAPITAL"]
[]
[null,null,null,null,null,null,null,"(3) x (4)"]
[]
[null,"Property Catastrophe","Sch III EBS, Line (1)",{"$f":"+'Schedule III (EBS)'!D10","v":0},{"$f":"'Schedule III (EBS)'!F10","v":0},{"$f":"+'Geographic Diversification'!H40","v":0},0.46158858246802104,{"$f":"IF($F$11<0,0,$F$11*$G$11)","v":0}]
[null,"Property","Sch III EBS, Line (2)",{"$f":"+'Schedule III (EBS)'!D11","v":0},{"$f":"'Schedule III (EBS)'!F11","v":0},{"$f":"+'Geographic Diversification'!H41","v":0},0.43844984238218698,{"$f":"IF($F$12<0,0,$F$12*$G$12)","v":0}]
[null,"Property Non-Proportional","Sch III EBS, Line (3)",{"$f":"+'Schedule III (EBS)'!D12","v":0},{"$f":"'Schedule III (EBS)'!F12","v":0},{"$f":"+'Geographic Diversification'!H42","v":0},0.49735573879030043,{"$f":"IF($F$13<0,0,$F$13*$G$13)","v":0}]
[null,"Personal Accident","Sch III EBS, Line (4)",{"$f":"+'Schedule III (EBS)'!D13","v":0},{"$f":"'Schedule III (EBS)'!F13","v":0},{"$f":"+'Geographic Diversification'!H43","v":0},0.29666070682155377,{"$f":"IF($F$14<0,0,$F$14*$G$14)","v":0}]
[null,"Personal Accident Non-Proportional","Sch III EBS, Line (5)",{"$f":"+'Schedule III (EBS)'!D14","v":0},{"$f":"'Schedule III (EBS)'!F14","v":0},{"$f":"+'Geographic Diversification'!H44","v":0},0.34876523067975901,{"$f":"IF($F$15<0,0,$F$15*$G$15)","v":0}]
[null,"Aviation","Sch III EBS, Line (6)",{"$f":"+'Schedule III (EBS)'!D15","v":0},{"$f":"'Schedule III (EBS)'!F15","v":0},{"$f":"+'Geographic Diversification'!H45","v":0},0.45952604952349801,{"$f":"IF($F$16<0,0,$F$16*$G$16)","v":0}]
[null,"Aviation Non-Proportional","Sch III EBS, Line (7)",{"$f":"+'Schedule III (EBS)'!D16","v":0},{"$f":"'Schedule III (EBS)'!F16","v":0},{"$f":"+'Geographic Diversification'!H46","v":0},0.48255646377949879,{"$f":"IF($F$17<0,0,$F$17*$G$17)","v":0}]
[null,"Credit / Surety","Sch III EBS, Line (8)",{"$f":"+'Schedule III (EBS)'!D17","v":0},{"$f":"'Schedule III (EBS)'!F17","v":0},{"$f":"+'Geographic Diversification'!H47","v":0},0.38368268064999406,{"$f":"IF($F$18<0,0,$F$18*$G$18)","v":0}]
[null,"Credit / Surety Non-Proportional","Sch III EBS, Line (9)",{"$f":"+'Schedule III (EBS)'!D18","v":0},{"$f":"'Schedule III (EBS)'!F18","v":0},{"$f":"+'Geographic Diversification'!H48","v":0},0.43464696624596888,{"$f":"IF($F$19<0,0,$F$19*$G$19)","v":0}]
[null,"Energy Offshore / Marine","Sch III EBS, Line (10)",{"$f":"+'Schedule III (EBS)'!D19","v":0},{"$f":"'Schedule III (EBS)'!F19","v":0},{"$f":"+'Geographic Diversification'!H49","v":0},0.39543823911176518,{"$f":"IF($F$20<0,0,$F$20*$G$20)","v":0}]
[null,"Energy Offshore / Marine Non-Proportional","Sch III EBS, Line (11)",{"$f":"+'Schedule III (EBS)'!D20","v":0},{"$f":"'Schedule III (EBS)'!F20","v":0},{"$f":"+'Geographic Diversification'!H50","v":0},0.4394578357755653,{"$f":"IF($F$21<0,0,$F$21*$G$21)","v":0}]
[null,"U.S. Casualty","Sch III EBS, Line (12)",{"$f":"+'Schedule III (EBS)'!D21","v":0},{"$f":"'Schedule III (EBS)'!F21","v":0},{"$f":"+'Geographic Diversification'!H51","v":0},0.43018098459069698,{"$f":"IF($F$22<0,0,$F$22*$G$22)","v":0}]
[null,"U.S. Casualty Non-Proportional","Sch III EBS, Line (13)",{"$f":"+'Schedule III (EBS)'!D22","v":0},{"$f":"'Schedule III (EBS)'!F22","v":0},{"$f":"+'Geographic Diversification'!H52","v":0},0.48842309052279492,{"$f":"IF($F$23<0,0,$F$23*$G$23)","v":0}]
[null,"U.S. Professional","Sch III EBS, Line (14)",{"$f":"+'Schedule III (EBS)'!D23","v":0},{"$f":"'Schedule III (EBS)'!F23","v":0},{"$f":"+'Geographic Diversification'!H53","v":0},0.46275283271069756,{"$f":"IF($F$24<0,0,$F$24*$G$24)","v":0}]
[null,"U.S. Professional Non-Proportional","Sch III EBS, Line (15)",{"$f":"+'Schedule III (EBS)'!D24","v":0},{"$f":"'Schedule III (EBS)'!F24","v":0},{"$f":"+'Geographic Diversification'!H54","v":0},0.51484129765284659,{"$f":"IF($F$25<0,0,$F$25*$G$25)","v":0}]
[null,"U.S. Specialty","Sch III EBS, Line (16)",{"$f":"+'Schedule III (EBS)'!D25","v":0},{"$f":"'Schedule III (EBS)'!F25","v":0},{"$f":"+'Geographic Diversification'!H55","v":0},0.46506790223690625,{"$f":"IF($F$26<0,0,$F$26*$G$26)","v":0}]
[null,"U.S. Specialty Non-Proportional","Sch III EBS, Line (17)",{"$f":"+'Schedule III (EBS)'!D26","v":0},{"$f":"'Schedule III (EBS)'!F26","v":0},{"$f":"+'Geographic Diversification'!H56","v":0},0.48276028402747928,{"$f":"IF($F$27<0,0,$F$27*$G$27)","v":0}]
[null,"International Motor","Sch III EBS, Line (18)",{"$f":"+'Schedule III (EBS)'!D27","v":0},{"$f":"'Schedule III (EBS)'!F27","v":0},{"$f":"+'Geographic Diversification'!H57","v":0},0.37080464615634018,{"$f":"IF($F$28<0,0,$F$28*$G$28)","v":0}]
[null,"International Motor Non-Proportional","Sch III EBS, Line (19)",{"$f":"+'Schedule III (EBS)'!D28","v":0},{"$f":"'Schedule III (EBS)'!F28","v":0},{"$f":"+'Geographic Diversification'!H58","v":0},0.43541657269369022,{"$f":"IF($F$29<0,0,$F$29*$G$29)","v":0}]
[null,"International Casualty Non-Motor","Sch III EBS, Line (20)",{"$f":"+'Schedule III (EBS)'!D29","v":0},{"$f":"'Schedule III (EBS)'!F29","v":0},{"$f":"+'Geographic Diversification'!H59","v":0},0.4365238613251069,{"$f":"IF($F$30<0,0,$F$30*$G$30)","v":0}]
[null,"International Casualty Non-Motor Non-Proportional","Sch III EBS, Line (21)",{"$f":"+'Schedule III (EBS)'!D30","v":0},{"$f":"'Schedule III (EBS)'!F30","v":0},{"$f":"+'Geographic Diversification'!H60","v":0},0.49410327959272171,{"$f":"IF($F$31<0,0,$F$31*$G$31)","v":0}]
[null,"Retro Property","Sch III EBS, Line (22)",{"$f":"+'Schedule III (EBS)'!D31","v":0},{"$f":"'Schedule III (EBS)'!F31","v":0},{"$f":"+'Geographic Diversification'!H61","v":0},0.47845206530716233,{"$f":"IF($F$32<0,0,$F$32*$G$32)","v":0}]
[null,"Structured / Finite Reinsurance","Sch III EBS, Line (23)",{"$f":"+'Schedule III (EBS)'!D32","v":0},{"$f":"'Schedule III (EBS)'!F32","v":0},{"$f":"+'Geographic Diversification'!H62","v":0},0.24099999999999999,{"$f":"IF($F$33<0,0,$F$33*$G$33)","v":0}]
[null,"Heatlh","Sch III EBS, Line (24)",{"$f":"+'Schedule III (EBS)'!D33","v":0},{"$f":"'Schedule III (EBS)'!F33","v":0},{"$f":"+'Geographic Diversification'!H63","v":0},0.125,{"$f":"IF($F$34<0,0,$F$34*$G$34)","v":0}]
[]
[null,"(a)  TOTAL",null,{"$f":"SUM(D11:D34)","v":0},{"$f":"SUM(E11:E34)","v":0},{"$f":"SUM(F11:F34)","v":0},null,{"$f":"SUM(H11:H35)","v":0}]
[]
[null,"(b)  CONCENTRATION ADJUSTMENT CALCULATION"]
[]
[null,"(i)","Maximum Reserve [ Maximum (1a) ]",null,null,null,null,{"$f":"MAX(F11:F34)","v":0}]
[null,"(ii)","Total Reserve [ Total (1a) ]",null,null,null,null,{"$f":"F36","v":0}]
[null,"(iii)","Maximum Reserve / Total Reserve [ (i) / (ii) ]",null,null,null,null,{"$f":"IF(H41=0,0,H40/H41)","v":0}]
[null,"(iv)","Maximum Adjustment",null,null,null,null,0.4]
[null,"(v)"," [ (iii) x (iv) ]",null,null,null,null,{"$f":"H42*H43","v":0}]
[null,"(vi)","Minimum Adjustment Factor",null,null,null,null,{"$f":"1-H43","v":0.6}]
[]
[null,"(b)  CONCENTRATION ADJUSTMENT FACTOR [ (v) + (vi) ]",null,null,null,null,null,{"$f":"H45+H44","v":0.6}]
[]
[null,"(c)  TOTAL RESERVE RISK FOR GENERAL BUSINESS [ Total (a) x (b) ]",null,null,null,null,null,{"$f":"IF(H36*H47>=0,H36*H47,0)","v":0}]

{"sheet":"Reserve Risk (Revised)","index":126,"n_rows":42,"n_cols":9,"rows_kept":42,"cut":false,"hidden":false,"merged":[[1,7,1,8],[5,2,6,2],[43,0,43,1]]}
["RESERVE RISK (REVISED)",null,null,null,null,null,null,null,{"$f":"HYPERLINK(\"#'Index'!A1\",\"Return to Index\")","v":"Return to Index"}]
[null,"Reserve Risk For General Business ($000)"]
[null,{"$f":"'Group Information'!C3","v":"2023-12-31"},null,"(1)","(2)","(3)","(4)","(5)"]
[]
[null,null,null,"GROSS LOSS &","NET LOSS &","GEO "]
[null,null,"STATEMENT SOURCE","LOSS EXPENSE","LOSS EXPENSE","DIVERSIFIED","CAPITAL","REQUIRED"]
[null,"LINE OF GENERAL BUSINESS",null,"PROVISIONS","PROVISIONS","PROVISIONS","FACTOR","CAPITAL"]
[]
[null,null,null,null,null,null,null,"(3) x (4)"]
[]
[null,"Property Catastrophe","Sch III EBS, Line (1)",{"$f":"+'Schedule III (EBS)'!D10","v":0},{"$f":"'Schedule III (EBS)'!F10","v":0},{"$f":"'Geographic Div. (Revised)'!H40","v":0},0.46158858246802104,{"$f":"IF($F$11<0,0,$F$11*$G$11)","v":0}]
[null,"Property","Sch III EBS, Line (2)",{"$f":"+'Schedule III (EBS)'!D11","v":0},{"$f":"'Schedule III (EBS)'!F11","v":0},{"$f":"'Geographic Div. (Revised)'!H41","v":0},0.43844984238218698,{"$f":"IF($F$12<0,0,$F$12*$G$12)","v":0}]
[null,"Property Non-Proportional","Sch III EBS, Line (3)",{"$f":"+'Schedule III (EBS)'!D12","v":0},{"$f":"'Schedule III (EBS)'!F12","v":0},{"$f":"'Geographic Div. (Revised)'!H42","v":0},0.49735573879030043,{"$f":"IF($F$13<0,0,$F$13*$G$13)","v":0}]
[null,"Personal Accident","Sch III EBS, Line (4)",{"$f":"+'Schedule III (EBS)'!D13","v":0},{"$f":"'Schedule III (EBS)'!F13","v":0},{"$f":"'Geographic Div. (Revised)'!H43","v":0},0.29666070682155377,{"$f":"IF($F$14<0,0,$F$14*$G$14)","v":0}]
[null,"Personal Accident Non-Proportional","Sch III EBS, Line (5)",{"$f":"+'Schedule III (EBS)'!D14","v":0},{"$f":"'Schedule III (EBS)'!F14","v":0},{"$f":"'Geographic Div. (Revised)'!H44","v":0},0.34876523067975901,{"$f":"IF($F$15<0,0,$F$15*$G$15)","v":0}]
[null,"Aviation","Sch III EBS, Line (6)",{"$f":"+'Schedule III (EBS)'!D15","v":0},{"$f":"'Schedule III (EBS)'!F15","v":0},{"$f":"'Geographic Div. (Revised)'!H45","v":0},0.45952604952349801,{"$f":"IF($F$16<0,0,$F$16*$G$16)","v":0}]
[null,"Aviation Non-Proportional","Sch III EBS, Line (7)",{"$f":"+'Schedule III (EBS)'!D16","v":0},{"$f":"'Schedule III (EBS)'!F16","v":0},{"$f":"'Geographic Div. (Revised)'!H46","v":0},0.48255646377949879,{"$f":"IF($F$17<0,0,$F$17*$G$17)","v":0}]
[null,"Credit / Surety","Sch III EBS, Line (8)",{"$f":"+'Schedule III (EBS)'!D17","v":0},{"$f":"'Schedule III (EBS)'!F17","v":0},{"$f":"'Geographic Div. (Revised)'!H47","v":0},0.38368268064999406,{"$f":"IF($F$18<0,0,$F$18*$G$18)","v":0}]
[null,"Credit / Surety Non-Proportional","Sch III EBS, Line (9)",{"$f":"+'Schedule III (EBS)'!D18","v":0},{"$f":"'Schedule III (EBS)'!F18","v":0},{"$f":"'Geographic Div. (Revised)'!H48","v":0},0.43464696624596888,{"$f":"IF($F$19<0,0,$F$19*$G$19)","v":0}]
[null,"Energy Offshore / Marine","Sch III EBS, Line (10)",{"$f":"+'Schedule III (EBS)'!D19","v":0},{"$f":"'Schedule III (EBS)'!F19","v":0},{"$f":"'Geographic Div. (Revised)'!H49","v":0},0.39543823911176518,{"$f":"IF($F$20<0,0,$F$20*$G$20)","v":0}]
[null,"Energy Offshore / Marine Non-Proportional","Sch III EBS, Line (11)",{"$f":"+'Schedule III (EBS)'!D20","v":0},{"$f":"'Schedule III (EBS)'!F20","v":0},{"$f":"'Geographic Div. (Revised)'!H50","v":0},0.4394578357755653,{"$f":"IF($F$21<0,0,$F$21*$G$21)","v":0}]
[null,"U.S. Casualty","Sch III EBS, Line (12)",{"$f":"+'Schedule III (EBS)'!D21","v":0},{"$f":"'Schedule III (EBS)'!F21","v":0},{"$f":"'Geographic Div. (Revised)'!H51","v":0},0.43018098459069698,{"$f":"IF($F$22<0,0,$F$22*$G$22)","v":0}]
[null,"U.S. Casualty Non-Proportional","Sch III EBS, Line (13)",{"$f":"+'Schedule III (EBS)'!D22","v":0},{"$f":"'Schedule III (EBS)'!F22","v":0},{"$f":"'Geographic Div. (Revised)'!H52","v":0},0.48842309052279492,{"$f":"IF($F$23<0,0,$F$23*$G$23)","v":0}]
[null,"U.S. Professional","Sch III EBS, Line (14)",{"$f":"+'Schedule III (EBS)'!D23","v":0},{"$f":"'Schedule III (EBS)'!F23","v":0},{"$f":"'Geographic Div. (Revised)'!H53","v":0},0.46275283271069756,{"$f":"IF($F$24<0,0,$F$24*$G$24)","v":0}]
[null,"U.S. Professional Non-Proportional","Sch III EBS, Line (15)",{"$f":"+'Schedule III (EBS)'!D24","v":0},{"$f":"'Schedule III (EBS)'!F24","v":0},{"$f":"'Geographic Div. (Revised)'!H54","v":0},0.51484129765284659,{"$f":"IF($F$25<0,0,$F$25*$G$25)","v":0}]
[null,"U.S. Specialty","Sch III EBS, Line (16)",{"$f":"+'Schedule III (EBS)'!D25","v":0},{"$f":"'Schedule III (EBS)'!F25","v":0},{"$f":"'Geographic Div. (Revised)'!H55","v":0},0.46506790223690625,{"$f":"IF($F$26<0,0,$F$26*$G$26)","v":0}]
[null,"U.S. Specialty Non-Proportional","Sch III EBS, Line (17)",{"$f":"+'Schedule III (EBS)'!D26","v":0},{"$f":"'Schedule III (EBS)'!F26","v":0},{"$f":"'Geographic Div. (Revised)'!H56","v":0},0.48276028402747928,{"$f":"IF($F$27<0,0,$F$27*$G$27)","v":0}]
[null,"International Motor","Sch III EBS, Line (18)",{"$f":"+'Schedule III (EBS)'!D27","v":0},{"$f":"'Schedule III (EBS)'!F27","v":0},{"$f":"'Geographic Div. (Revised)'!H57","v":0},0.37080464615634018,{"$f":"IF($F$28<0,0,$F$28*$G$28)","v":0}]
[null,"International Motor Non-Proportional","Sch III EBS, Line (19)",{"$f":"+'Schedule III (EBS)'!D28","v":0},{"$f":"'Schedule III (EBS)'!F28","v":0},{"$f":"'Geographic Div. (Revised)'!H58","v":0},0.43541657269369022,{"$f":"IF($F$29<0,0,$F$29*$G$29)","v":0}]
[null,"International Casualty Non-Motor","Sch III EBS, Line (20)",{"$f":"+'Schedule III (EBS)'!D29","v":0},{"$f":"'Schedule III (EBS)'!F29","v":0},{"$f":"'Geographic Div. (Revised)'!H59","v":0},0.4365238613251069,{"$f":"IF($F$30<0,0,$F$30*$G$30)","v":0}]
[null,"International Casualty Non-Motor Non-Proportional","Sch III EBS, Line (21)",{"$f":"+'Schedule III (EBS)'!D30","v":0},{"$f":"'Schedule III (EBS)'!F30","v":0},{"$f":"'Geographic Div. (Revised)'!H60","v":0},0.49410327959272171,{"$f":"IF($F$31<0,0,$F$31*$G$31)","v":0}]
[null,"Retro Property","Sch III EBS, Line (22)",{"$f":"+'Schedule III (EBS)'!D31","v":0},{"$f":"'Schedule III (EBS)'!F31","v":0},{"$f":"'Geographic Div. (Revised)'!H61","v":0},0.47845206530716233,{"$f":"IF($F$32<0,0,$F$32*$G$32)","v":0}]
[null,"Structured / Finite Reinsurance","Sch III EBS, Line (23)",{"$f":"+'Schedule III (EBS)'!D32","v":0},{"$f":"'Schedule III (EBS)'!F32","v":0},{"$f":"'Geographic Div. (Revised)'!H62","v":0},0.24099999999999999,{"$f":"IF($F$33<0,0,$F$33*$G$33)","v":0}]
[null,"Heatlh","Sch III EBS, Line (24)",{"$f":"+'Schedule III (EBS)'!D33","v":0},{"$f":"'Schedule III (EBS)'!F33","v":0},{"$f":"'Geographic Div. (Revised)'!H63","v":0},0.125,{"$f":"IF($F$34<0,0,$F$34*$G$34)","v":0}]
[]
[null,"(a)  TOTAL",null,{"$f":"SUM(D11:D34)","v":0},{"$f":"SUM(E11:E34)","v":0},{"$f":"SUM(F11:F34)","v":0},null,{"$f":"SUM(H11:H35)","v":0}]
[]
[null,"(b)  CORRELATION ADJUSTMENT"]
[]
[null,"(i)","Reduction in Capital Charge from Correlation Matrix",null,null,null,null,{"$f":"H36-H42","v":0}]
[]
[null,"(b)  CAPITAL CHARGE AFTER CORRELATION",null,null,null,null,null,{"$f":"SQRT(MMULT(TRANSPOSE(H11:H34),MMULT('Correlation Matrix'!C44:Z67,H11:H34)))","v":0}]

{"sheet":"Catastrophe Risk","index":127,"n_rows":24,"n_cols":5,"rows_kept":24,"cut":false,"hidden":false,"merged":[[27,0,27,1],[1,4,1,5]]}
[{"$f":"'Group Information'!C9","v":"Enter Parent Company Name"},null,null,null,{"$f":"HYPERLINK(\"#'Index'!A1\",\"Return to Index\")","v":"Return to Index"}]
["Catastrophe Risk For General Business ($000)",null,{"$f":"'Group Information'!C3","v":"2023-12-31"}]
[]
[null,"DESCRIPTION","STATEMENT SOURCE",null,"VALUE"]
[]
[null,"(a)  Gross Probable Maximum Loss","Schedule V, Line (h)",null,{"$f":"'Schedule V'!F18","v":0}]
[]
[null,"(b)  Net Probable Maximum Loss","Schedule V, Line (i)",null,{"$f":"'Schedule V'!F20","v":0}]
[]
[null,"(c)  Average Annual Loss (AAL) Excluding Property Catastrophe","Schedule V, Line (j)",null,{"$f":"'Schedule V'!F22","v":0}]
[]
[null,"(d)  Industry Catastrophe Loss Ratio",null,null,0.4]
[]
[null,"(e)  Property Catastrophe Premium","Schedule IV, Line (1)",null,{"$f":"'Premium Risk'!E11","v":0}]
[]
[null,"(f)  Total Catastrophe Premium  [ (c) / (d) + (e) ]",null,null,{"$f":"$E$10/$E$12+IF($E$14>0,$E$14,0)","v":0}]
[]
[null,"(g)  Credit Risk Capital Factor",null,null,0.1]
[]
[null,"(h) Arrangements with Respect to Property Catastrophe Recoverables","Schedule V, Line (l)(v)",null,{"$f":"+'Schedule V'!F31","v":0}]
[]
[null,"(i)  Credit Risk Charge [ ((a - b) - (h * 0.98)) * g ]",null,null,{"$f":"MAX(0,((E6-E8)-(E20*98%))*E18)","v":0}]
[]
[null,"(j)  REQUIRED CAPITAL FOR CATASTROPHE RISK  [ (b) - (f) + (i) ]",null,null,{"$f":"IF((E8-E16)>=0,E8-E16+E22,E22)","v":0}]

{"sheet":"Catastrophe Risk (Revised)","index":128,"n_rows":24,"n_cols":5,"rows_kept":24,"cut":false,"hidden":false,"merged":[[1,4,1,5],[27,0,27,1]]}
[{"$f":"'Group Information'!C9","v":"Enter Parent Company Name"},null,null,null,{"$f":"HYPERLINK(\"#'Index'!A1\",\"Return to Index\")","v":"Return to Index"}]
["Catastrophe Risk For General Business (Revised) ($000)",null,{"$f":"'Group Information'!C3","v":"2023-12-31"}]
[]
[null,"DESCRIPTION","STATEMENT SOURCE",null,"VALUE"]
[]
[null,"(a)  Gross Probable Maximum Loss","Schedule V, Line (h)",null,{"$f":"'Schedule V'!F18","v":0}]
[]
[null,"(b)  Net Probable Maximum Loss","Schedule V, Line (i)",null,{"$f":"'Schedule V'!F20","v":0}]
[]
[null,"(c)  Average Annual Loss (AAL) Excluding Property Catastrophe","Schedule V, Line (j)",null,{"$f":"'Schedule V'!F22","v":0}]
[]
[null,"(d)  Industry Catastrophe Loss Ratio",null,null,0.4]
[]
[null,"(e)  Property Catastrophe Premium","Schedule IVD, Column C, Line (1)",null,{"$f":"IF('Schedule IVD (EBS)'!G9=0,'Schedule IVD (EBS)'!E9,'Schedule IVD (EBS)'!G9)","v":0}]
[]
[null,"(f)  Total Catastrophe Premium  [ (c) / (d) + (e) ]",null,null,{"$f":"$E$10/$E$12+IF($E$14>0,$E$14,0)","v":0}]
[]
[null,"(g)  Credit Risk Capital Factor",null,null,0.1]
[]
[null,"(h) Arrangements with Respect to Property Catastrophe Recoverables","Schedule V, Line (l)(v)",null,{"$f":"+'Schedule V'!F31","v":0}]
[]
[null,"(i)  Credit Risk Charge [ ((a - b) - (h * 0.98)) * g ]",null,null,{"$f":"MAX(0,((E6-E8)-(E20*98%))*E18)","v":0}]
[]
[null,"(j)  REQUIRED CAPITAL FOR CATASTROPHE RISK  [ (b) - (f) + (i) ]",null,null,{"$f":"IF((E8-E16)>=0,E8-E16+E22,E22)","v":0}]

{"sheet":"LT Insurance Risk","index":129,"n_rows":64,"n_cols":15,"rows_kept":64,"cut":false,"hidden":false,"merged":[[55,11,55,12],[43,3,43,4],[54,11,54,12],[49,3,49,4],[54,3,54,4],[53,11,53,12],[53,3,53,4],[49,11,49,12],[50,11,50,12],[55,6,55,7],[54,6,54,7],[55,3,55,4],[4,3,4,4],[4,6,4,7],[9,3,9,4],[39,3,39,4],[35,3,35,4],[36,3,36,4],[37,3,37,4],[33,6,33,7],[37,6,37,7],[32,3,32,4],[25,3,25,4],[32,6,32,7],[34,6,34,7],[35,6,35,7],[26,3,26,4],[29,3,29,4],[4,13,4,14],[43,11,43,12],[9,11,9,12],[41,11,41,12],[4,11,4,12],[35,11,35,12],[31,11,31,12],[25,11,25,12],[24,11,24,12],[29,11,29,12],[40,11,40,12],[16,11,16,12],[34,11,34,12],[33,11,33,12],[39,11,39,12],[32,11,32,12],[31,3,31,4],[50,3,50,4],[50,6,50,7],[33,3,33,4],[34,3,34,4],[41,6,41,7],[41,3,41,4],[40,3,40,4],[36,11,36,12],[37,11,37,12],[29,6,29,7],[36,6,36,7],[40,6,40,7],[2,0,2,2],[26,11,26,12],[28,3,28,4],[28,11,28,12],[27,3,27,4],[27,11,27,12],[26,6,26,7],[27,6,27,7],[28,6,28,7],[25,6,25,7],[9,6,10,6],[9,7,10,7],[16,6,17,6],[16,7,17,7],[16,3,16,4],[24,3,24,4]]}
[{"$f":"'Group Information'!C9","v":"Enter Parent Company Name"}]
["Insurance Risk For Long-Term Business ($000)",null,null,null,null,null,null,null,null,null,null,null,null,null,{"$f":"HYPERLINK(\"#'Index'!A1\",\"Return to Index\")","v":"Return to Index"}]
[{"$f":"'Group Information'!C3","v":"2023-12-31"}]
[null,null,null,"(1)","(2)",null,null,null,null,null,null,"(3)","(4)","(5)","(6)"]
[null,null,"TYPE OF RISK","RISK MEASURE",null,null,"STATEMENT SOURCE",null,null,null,null,"CAPITAL FACTORS",null,"CAPITAL REQUIRED"]
[]
[null,null,"Insurance risks"]
[null,null,"Definition of Adjustable: (re)insurer has the ability to make a material adjustment to the cost of insurance, based on recent experience"]
[null,null,null,"Adjustable product/ treaty","Non-adjustable product/ treaty",null,"Adjustable product/treaty","Non-adjustable product/ treaty",null,"Tier","NAR (B=$Billions)","Adjustable product/ treaty","Non-adjustable product/ treaty","Adjustable product/ treaty","Non-adjustable product/ treaty"]
[null,null,null,"Net Amount at Risk",null,null,"Schedule VII EBS, Line 1, Column (9)","Schedule VII EBS, Line 1, Column (10)",null,null,null,"Factor (per 1000 of NAR)",null,"(1) * (3)","(2) * (4)"]
[null,null,"Mortality ",{"$f":"'Schedule VII (EBS)'!H10","v":0},{"$f":"'Schedule VII (EBS)'!I10","v":0},null,null,null,null,1,"NAR <1B",{"$f":"M11/2","v":1.9850000000000001},3.97,{"$f":"IF(D11>1000000,L11*1000000,L11*D11)/1000","v":0},{"$f":"IF(E11>1000000,M11*1000000,M11*E11)/1000","v":0}]
[null,null,"  (term assurance, whole life, universal life, AD&D)",null,null,null,null,null,null,2,"1B - 5B",{"$f":"M12/2","v":0.9},1.8,{"$f":"IF(D11<1000000,0,IF(D11>5000000,L12*4000000,L12*(D11-1000000)))/1000","v":0},{"$f":"IF(E11<1000000,0,IF(E11>5000000,M12*4000000,M12*(E11-1000000)))/1000","v":0}]
[null,null,null,null,null,null,null,null,null,3,"5B -10B",{"$f":"M13/2","v":0.72},1.44,{"$f":"IF(D11<5000000,0,IF(D11>10000000,L13*5000000,L13*(D11-5000000)))/1000","v":0},{"$f":"IF(E11<5000000,0,IF(E11>10000000,M13*5000000,M13*(E11-5000000)))/1000","v":0}]
[null,null,null,null,null,null,null,null,null,4,"10B - 50B",{"$f":"M14/2","v":0.64500000000000002},1.29,{"$f":"IF(D11<10000000,0,IF(D11>50000000,L14*40000000,L14*(D11-10000000)))/1000","v":0},{"$f":"IF(E11<10000000,0,IF(E11>50000000,M14*40000000,M14*(E11-10000000)))/1000","v":0}]
[null,null,null,null,null,null,null,null,null,5,"NAR > 50B",{"$f":"M15/2","v":0.56499999999999995},1.1299999999999999,{"$f":"IF(D11<50000000,0,L15*(D11-50000000))/1000","v":0},{"$f":"IF(E11<50000000,0,M15*(E11-50000000))/1000","v":0}]
[null,null,null,null,null,null,null,null,null,null,null,null,"Subtotal",{"$f":"SUM(N11:N15)","v":0},{"$f":"SUM(O11:O15)","v":0}]
[null,null,null,"Net Amount at Risk",null,null,"Schedule VII EBS, Line 2, Column (9)","Schedule VII EBS, Line 2, Column (10)",null,null,null,"Factor (per 1000 of NAR)"]
[null,null,"Critical Illness",{"$f":"'Schedule VII (EBS)'!H11","v":0},{"$f":"'Schedule VII (EBS)'!I11","v":0},null,null,null,null,1,"NAR <1B",{"$f":"M18/2","v":5.9550000000000001},{"$f":"M11*3","v":11.91},{"$f":"IF(D18>1000000,L18*1000000,L18*D18)/1000","v":0},{"$f":"IF(E18>1000000,M18*1000000,M18*E18)/1000","v":0}]
[null,null,"  (including accelerated critical illness products)",null,null,null,null,null,null,2,"1B - 5B",{"$f":"M19/2","v":2.7},{"$f":"M12*3","v":5.4},{"$f":"IF(D18<1000000,0,IF(D18>5000000,L19*4000000,L19*(D18-1000000)))/1000","v":0},{"$f":"IF(E18<1000000,0,IF(E18>5000000,M19*4000000,M19*(E18-1000000)))/1000","v":0}]
[null,null,null,null,null,null,null,null,null,3,"5B -10B",{"$f":"M20/2","v":2.16},{"$f":"M13*3","v":4.32},{"$f":"IF(D18<5000000,0,IF(D18>10000000,L20*5000000,L20*(D18-5000000)))/1000","v":0},{"$f":"IF(E18<5000000,0,IF(E18>10000000,M20*5000000,M20*(E18-5000000)))/1000","v":0}]
[null,null,null,null,null,null,null,null,null,4,"10B - 50B",{"$f":"M21/2","v":1.9350000000000001},{"$f":"M14*3","v":3.87},{"$f":"IF(D18<10000000,0,IF(D18>50000000,L21*40000000,L21*(D18-10000000)))/1000","v":0},{"$f":"IF(E18<10000000,0,IF(E18>50000000,M21*40000000,M21*(E18-10000000)))/1000","v":0}]
[null,null,null,null,null,null,null,null,null,5,"NAR > 50B",{"$f":"M22/2","v":1.6949999999999998},{"$f":"M15*3","v":3.3899999999999997},{"$f":"IF(D18<50000000,0,L22*(D18-50000000))/1000","v":0},{"$f":"IF(E18<50000000,0,M22*(E18-50000000))/1000","v":0}]
[null,null,null,null,null,null,null,null,null,null,null,null,"Subtotal",{"$f":"SUM(N18:N22)","v":0},{"$f":"SUM(O18:O22)","v":0}]
[]
[null,null,"Longevity Risk (immediate pay-out annuities, contingent annuities, pension pay-outs) - attained age of annuitant:","BSCR ADJUSTED RESERVE",null,null,null,null,null,null,null,"% of BSCR Adjusted Reserves"]
[null,null,"(a) 0 - 55",{"$f":"+'Schedule VII (EBS)'!F14","v":0},null,null,"Schedule VII EBS, Line 3(a), Column (7)",null,null,null,null,0.02,null,"(1) * (4)",{"$f":"D26*L26","v":0}]
[null,null,"(b) 56 - 65",{"$f":"+'Schedule VII (EBS)'!F15","v":0},null,null,"Schedule VII EBS, Line 3(b), Column (7)",null,null,null,null,0.03,null,"(1) * (4)",{"$f":"D27*L27","v":0}]
[null,null,"(c) 66 - 70",{"$f":"+'Schedule VII (EBS)'!F16","v":0},null,null,"Schedule VII EBS, Line 3(c), Column (7)",null,null,null,null,0.04,null,"(1) * (4)",{"$f":"D28*L28","v":0}]
[null,null,"(d) 71 - 80",{"$f":"+'Schedule VII (EBS)'!F17","v":0},null,null,"Schedule VII EBS, Line 3(d), Column (7)",null,null,null,null,0.05,null,"(1) * (4)",{"$f":"D29*L29","v":0}]
[null,null,"(e) 81+",{"$f":"+'Schedule VII (EBS)'!F18","v":0},null,null,"Schedule VII EBS, Line 3(e), Column (7)",null,null,null,null,0.06,null,"(1) * (4)",{"$f":"D30*L30","v":0}]
[]
[null,null,"Longevity (deferred pay-out annuities, future contingent annuities, future pension pay-outs) - age at which annuity benefit commences:","BSCR ADJUSTED RESERVE",null,null,null,null,null,null,null,"% of BSCR Adjusted Reserves"]
[null,null,"(a) 0 - 55",{"$f":"+'Schedule VII (EBS)'!F22","v":0},null,null,"Schedule VII EBS, Line 4(a), Column (7)",null,null,null,null,0.02,null,"(1) * (4)",{"$f":"D33*L33","v":0}]
[null,null,"(b) 56 - 60",{"$f":"+'Schedule VII (EBS)'!F23","v":0},null,null,"Schedule VII EBS, Line 4(b), Column (7)",null,null,null,null,0.03,null,"(1) * (4)",0]
[null,null,"(c) 61 - 65",{"$f":"+'Schedule VII (EBS)'!F24","v":0},null,null,"Schedule VII EBS, Line 4(c), Column (7)",null,null,null,null,0.04,null,"(1) * (4)",0]
[null,null,"(d) 66 - 70",{"$f":"+'Schedule VII (EBS)'!F25","v":0},null,null,"Schedule VII EBS, Line 4(d), Column (7)",null,null,null,null,0.05,null,"(1) * (4)",0]
[null,null,"(e) 71 - 75",{"$f":"+'Schedule VII (EBS)'!F26","v":0},null,null,"Schedule VII EBS, Line 4(e), Column (7)",null,null,null,null,0.06,null,"(1) * (4)",0]
[null,null,"(f) 76+",{"$f":"+'Schedule VII (EBS)'!F27","v":0},null,null,"Schedule VII EBS, Line 4(f), Column (7)",null,null,null,null,7.0000000000000007E-2,null,"(1) * (4)",0]
[]
[null,null,null,"BSCR ADJUSTED RESERVE",null,null,null,null,null,null,null,"% of BSCR Adjusted Reserves"]
[null,null,"Disability Income: Claims In Payment Waiver of premium and long-term care",{"$f":"'Schedule VII (EBS)'!F38","v":0},null,null,"Schedule VII EBS, Line 9, Column (7)",null,null,null,null,7.0000000000000007E-2,null,"(1) * (4)",{"$f":"D41*L41","v":0}]
[null,null,"Disability Income: Claims In Payment Other accident and sickness",{"$f":"'Schedule VII (EBS)'!F39","v":0},null,null,"Schedule VII EBS, Line 10, Column (7)",null,null,null,null,0.1,null,"(1) * (4)",{"$f":"D42*L42","v":0}]
[]
[null,null,"Disability Income: Active Lives (including waiver of premium and long-term care)","Net Annual Premium ",null,null,null,null,null,null,null,"% of Annual Premiums"]
[null,null,"Length of premium guarantee:","Benefit Period <= 2 years","Benefit Period > 2 years",null,null,null,null,null,null,"Benefit Period <= 2 years","Benefit Period > 2 years"]
[null,null,"<= 1 year",{"$f":"'Schedule VII (EBS)'!H33","v":0},{"$f":"'Schedule VII (EBS)'!I33","v":0},null,"Schedule VII EBS, Line 7(a), Column (9)","Schedule VII EBS, Line 7(a), Column (10)",null,null,null,{"$f":"M46*0.75","v":0.09},0.12,"(1) * (3) + (2) * (4)",{"$f":"D46*L46+E46*M46","v":0}]
[null,null,"1 - 5 years",{"$f":"'Schedule VII (EBS)'!H34","v":0},{"$f":"'Schedule VII (EBS)'!I34","v":0},null,"Schedule VII EBS, Line 7(b), Column (9)","Schedule VII EBS, Line 7(b), Column (10)",null,null,null,{"$f":"M47*0.75","v":0.15000000000000002},0.2,"(1) * (3) + (2) * (4)",{"$f":"D47*L47+E47*M47","v":0}]
[null,null,">5 years",{"$f":"'Schedule VII (EBS)'!H35","v":0},{"$f":"'Schedule VII (EBS)'!I35","v":0},null,"Schedule VII EBS, Line 7(c), Column (9)","Schedule VII EBS, Line 7(c), Column (10)",null,null,null,{"$f":"M48*0.75","v":0.22499999999999998},0.3,"(1) * (3) + (2) * (4)",{"$f":"D48*L48+E48*M48","v":0}]
[]
[null,null,null,"Net Annual Premium ",null,null,null,null,null,null,null,"% of Annual Premiums"]
[null,null,"Disability income: active lives Other accident and sickness",{"$f":"+'Schedule VII (EBS)'!J37","v":0},null,null,"Schedule VII EBS, Line 8, Column (11)",null,null,null,null,0.12,null,"(1) * (4)",{"$f":"D51*L51","v":0}]
[]
[]
[null,null,null,"Net Annual Premium ",null,null,null,null,null,null,null,"% of Net Annual Premiums"]
[null,null,"Stop Loss",{"$f":"'Schedule VII (EBS)'!J43","v":0},null,null,"Schedule VII EBS, Line 14, Column (11)",null,null,null,null,0.5,null,"(1) * (4)",{"$f":"D55*L55","v":0}]
[null,null,"Rider (Other product riders not included above)",{"$f":"'Schedule VII (EBS)'!J44","v":0},null,null,"Schedule VII EBS, Line 15, Column (11)",null,null,null,null,0.25,null,"(1) * (4)",{"$f":"D56*L56","v":0}]
[null,null,"  (for example: Guaranteed Insurability Options, Conversion options, etc)"]
[]
[null,null,"TOTAL INSURANCE RISK"]
[null,null,"Mortality",null,null,null,null,null,null,null,null,null,null,null,{"$f":"MAX(0,N16+O16)","v":0}]
[null,null,"Stop Loss",null,null,null,null,null,null,null,null,null,null,null,{"$f":"MAX(0,O55)","v":0}]
[null,null,"Riders ",null,null,null,null,null,null,null,null,null,null,null,{"$f":"MAX(0,O56)","v":0}]
[null,null,"Morbidity and Disability",null,null,null,null,null,null,null,null,null,null,null,{"$f":"MAX(0,N23+O23+O41+O42+O46+O47+O48+O51)","v":0}]
[null,null,"Longevity",null,null,null,null,null,null,null,null,null,null,null,{"$f":"MAX(0,(SUM(O26:O38)))","v":0}]

{"sheet":"LT Other Insurance Risk","index":130,"n_rows":25,"n_cols":8,"rows_kept":25,"cut":false,"hidden":false,"merged":[[1,7,1,8],[10,1,10,3],[11,1,11,3],[2,0,2,3],[5,1,5,3]]}
[{"$f":"'Group Information'!C9","v":"Enter Parent Company Name"}]
["LONG-TERM OTHER INSURANCE RISK ($'000)",null,null,null,null,null,null,{"$f":"HYPERLINK(\"#'Index'!A1\",\"Return to Index\")","v":"Return to Index"}]
[{"$f":"'Group Information'!C3","v":"2023-12-31"},null,null,null,null,"(1)","(2)","(3)"]
[]
[null,"OTHER INSURANCE RISK",null,null,"STATEMENT SOURCE","BERMUDA ADJUSTED RESERVE","CAPITAL FACTOR","CAPITAL REQUIREMENT"]
[null,"(covering insurance risks such as policyholder behaviour, expenses, and product guarantees)"]
[null,null,null,null,null,null,null,"Max [0, (1) x (2)]"]
[null,"Line of Business"]
[null,"Mortality (term assurance, whole life, universal life)",null,null,"Schedule VII EBS, Line 1, Column (7)",{"$f":"'Schedule VII (EBS)'!F10","v":0},0.02,{"$f":"IF($F$9<0,0,$F$9*$G$9)","v":0}]
[null,"Critical Illness (including accelerated critical illness products)",null,null,"Schedule VII EBS, Line 2, Column (7)",{"$f":"'Schedule VII (EBS)'!F11","v":0},0.02,{"$f":"IF($F$10<0,0,$F$10*$G$10)","v":0}]
[null,"Longevity (immediate pay-out annuities, contingent annuities, pension pay-outs)",null,null,"Schedule VII EBS, Line 3(f), Column (7)",{"$f":"'Schedule VII (EBS)'!F19","v":0},5.0000000000000001E-3,{"$f":"IF($F$11<0,0,$F$11*$G$11)","v":0}]
[null,"Longevity (deferred pay-out annuities, future contingent annuities, future pension pay-outs) ",null,null,"Schedule VII EBS, Line 4(g), Column (7)",{"$f":"'Schedule VII (EBS)'!F28","v":0},5.0000000000000001E-3,{"$f":"IF($F$12<0,0,$F$12*$G$12)","v":0}]
[null,"Annuities certain only",null,null,"Schedule VII EBS, Line 5, Column (7)",{"$f":"'Schedule VII (EBS)'!F29","v":0},5.0000000000000001E-3,{"$f":"IF($F$13<0,0,$F$13*$G$13)","v":0}]
[null,"Deferred accumulation annuities",null,null,"Schedule VII EBS, Line 6, Column (7)",{"$f":"'Schedule VII (EBS)'!F30","v":0},5.0000000000000001E-3,{"$f":"IF($F$14<0,0,$F$14*$G$14)","v":0}]
[null,"Disability Income: active lives - including waiver of premium and long-term care",null,null,"Schedule VII EBS, Line 7(d), Column (7)",{"$f":"'Schedule VII (EBS)'!F36","v":0},0.02,{"$f":"IF($F$15<0,0,$F$15*$G$15)","v":0}]
[null,"Disability income: active lives - other accident and sickness",null,null,"Schedule VII EBS, Line 8, Column (7)",{"$f":"'Schedule VII (EBS)'!F37","v":0},0.02,{"$f":"IF($F$16<0,0,$F$16*$G$16)","v":0}]
[null,"Disability income: claims in payment - including waiver of premium and long-term care",null,null,"Schedule VII EBS, Line 9, Column (7)",{"$f":"'Schedule VII (EBS)'!F38","v":0},5.0000000000000001E-3,{"$f":"IF($F$17<0,0,$F$17*$G$17)","v":0}]
[null,"Disability income: claims in payment - other accident and sickness",null,null,"Schedule VII EBS, Line 10, Column (7)",{"$f":"'Schedule VII (EBS)'!F39","v":0},5.0000000000000001E-3,{"$f":"IF($F$18<0,0,$F$18*$G$18)","v":0}]
[null,"Group Life",null,null,"Schedule VII EBS, Line 11, Column (7)",{"$f":"'Schedule VII (EBS)'!F40","v":0},5.0000000000000001E-3,{"$f":"IF($F$19<0,0,$F$19*$G$19)","v":0}]
[null,"Group Disability",null,null,"Schedule VII EBS, Line 12, Column (7)",{"$f":"'Schedule VII (EBS)'!F41","v":0},5.0000000000000001E-3,{"$f":"IF($F$20<0,0,$F$20*$G$20)","v":0}]
[null,"Group Health",null,null,"Schedule VII EBS, Line 13, Column (7)",{"$f":"'Schedule VII (EBS)'!F42","v":0},5.0000000000000001E-3,{"$f":"IF($F$21<0,0,$F$21*$G$21)","v":0}]
[null,"Stop Loss",null,null,"Schedule VII EBS, Line 14, Column (7)",{"$f":"'Schedule VII (EBS)'!F43","v":0},0.02,{"$f":"IF($F$22<0,0,$F$22*$G$22)","v":0}]
[null,"Rider (other product riders not included above)",null,null,"Schedule VII EBS, Line 15, Column (7)",{"$f":"'Schedule VII (EBS)'!F44","v":0},0.02,{"$f":"IF($F$23<0,0,$F$23*$G$23)","v":0}]
[]
[null,"TOTAL OTHER INSURANCE RISK",null,null,null,null,null,{"$f":"IF(SUM(H9:H23)>=0,(SUM(H9:H23)),0)","v":0}]

{"sheet":"LT Variable Annuity Gte Risk","index":131,"n_rows":91,"n_cols":27,"rows_kept":91,"cut":false,"hidden":false,"merged":[[65,7,66,22],[80,5,80,22],[6,22,8,22],[7,16,7,17],[2,0,2,8],[6,3,6,4],[6,24,8,24],[6,26,8,26],[7,7,7,8],[7,10,7,11],[7,4,7,5],[7,13,7,14],[7,19,7,20]]}
[{"$f":"'Group Information'!C9","v":"Enter Parent Company Name"}]
["Variable Annuity Guarantee Risk For Long-Term Business ($000)",null,null,null,null,null,null,null,null,null,null,null,null,null,null,null,null,null,null,null,null,null,{"$f":"HYPERLINK(\"#'Index'!A1\",\"Return to Index\")","v":"Return to Index"}]
[{"$f":"'Group Information'!C3","v":"2023-12-31"}]
[]
[null,null,null,null,"(1)","(2)",null,"(3)","(4)",null,"(5)","(6)",null,"(7)","(8)",null,"(9)","(10)",null,"(11)","(12)",null,"(13)",null,"(13)",null,"(14)"]
[]
[null,null,null,null,null,null,null,null,null,null,null,null,null,null,null,null,null,null,null,null,null,null,"CAPITAL REQUIREMENTS",null,"BERMUDA STATUTORY RESERVES",null,"CAPITAL REQUIREMENT"]
[null,null,null,null,"Volatility (0% - 10.0%]",null,null,"Volatility (10.0% - 15.0%]",null,null,"Volatility >15.0%",null,null,"Volatility (0% - 10.0%]",null,null,"Volatility (10.0% - 15.0%]",null,null,"Volatility >15.0%"]
[null,null,null,null,"Guaranteed Value","Capital Factor",null,"Guaranteed Value","Capital Factor",null,"Guaranteed Value","Capital Factor",null,"Net Value at Risk","Capital Factor",null,"Net Value at Risk","Capital Factor",null,"Net Value at Risk","Capital Factor"]
[]
[null,null,null,"Variable Annuity Guarantee Risk",null,null,null,null,null,null,null,null,null,null," ",null,null,null,null,null,null,null,"Max [{(1) x (2) + (3) x (4) + (5) x (6)},(7) x (8) + (9) x (10) + (11) x (12)]",null,null,null,"(13) - (12)"]
[]
[null,null,null,"Guaranteed Minimum Death Benefit: Return of Premium, Ratchet and Reset "]
[null,1,null,null,{"$f":"'Schedule VIII (EBS)'!H13","v":0},2.5000000000000001E-3,null,{"$f":"'Schedule VIII (EBS)'!J13","v":0},5.0000000000000001E-3,null,{"$f":"'Schedule VIII (EBS)'!L13","v":0},7.4999999999999997E-3,null,{"$f":"'Schedule VIII (EBS)'!N13","v":0},0.04,null,{"$f":"+'Schedule VIII (EBS)'!P13","v":0},8.5000000000000006E-2,null,{"$f":"+'Schedule VIII (EBS)'!R13","v":0},0.13,null,{"$f":"IF(ISERROR(OR(E14*F14+H14*I14+K14*L14,N14*O14+Q14*R14+T14*U14)),0,MAX(E14*F14+H14*I14+K14*L14,N14*O14+Q14*R14+T14*U14))","v":0}]
[null,16,null,null,{"$f":"+'Schedule VIII (EBS)'!H31","v":0},2.5000000000000001E-3,null,{"$f":"'Schedule VIII (EBS)'!J31","v":0},5.0000000000000001E-3,null,{"$f":"'Schedule VIII (EBS)'!L31","v":0},7.4999999999999997E-3,null,null,null,null,null,null,null,null,null,null,{"$f":"IF(ISERROR(OR(E15*F15+H15*I15+K15*L15,N15*O15+Q15*R15+T15*U15)),0,MAX(E15*F15+H15*I15+K15*L15,N15*O15+Q15*R15+T15*U15))","v":0}]
[]
[null,null,null,"Guaranteed Minimum Death Benefit: Enhanced Benefits (Roll up) "]
[null,2,null,null,{"$f":"'Schedule VIII (EBS)'!H14","v":0},7.4999999999999997E-3,null,{"$f":"'Schedule VIII (EBS)'!J14","v":0},0.01,null,{"$f":"'Schedule VIII (EBS)'!L14","v":0},1.2500000000000001E-2,null,{"$f":"'Schedule VIII (EBS)'!N14","v":0},0.12,null,{"$f":"+'Schedule VIII (EBS)'!P14","v":0},0.16500000000000001,null,{"$f":"+'Schedule VIII (EBS)'!R14","v":0},0.21,null,{"$f":"IF(ISERROR(OR(E18*F18+H18*I18+K18*L18,N18*O18+Q18*R18+T18*U18)),0,MAX(E18*F18+H18*I18+K18*L18,N18*O18+Q18*R18+T18*U18))","v":0}]
[null,17,null,null,{"$f":"+'Schedule VIII (EBS)'!H32","v":0},7.4999999999999997E-3,null,{"$f":"'Schedule VIII (EBS)'!J32","v":0},0.01,null,{"$f":"'Schedule VIII (EBS)'!L32","v":0},1.2500000000000001E-2,null,null,null,null,null,null,null,null,null,null,{"$f":"IF(ISERROR(OR(E19*F19+H19*I19+K19*L19,N19*O19+Q19*R19+T19*U19)),0,MAX(E19*F19+H19*I19+K19*L19,N19*O19+Q19*R19+T19*U19))","v":0}]
[]
[null,null,null,"Guaranteed Minimum Income Benefit (GMIB)"]
[null,3,null,null,{"$f":"'Schedule VIII (EBS)'!H15","v":0},0.05,null,{"$f":"'Schedule VIII (EBS)'!J15","v":0},6.5000000000000002E-2,null,{"$f":"'Schedule VIII (EBS)'!L15","v":0},0.08,null,{"$f":"'Schedule VIII (EBS)'!N15","v":0},1,null,{"$f":"+'Schedule VIII (EBS)'!P15","v":0},1.3,null,{"$f":"+'Schedule VIII (EBS)'!R15","v":0},1.6,null,{"$f":"IF(ISERROR(OR(E22*F22+H22*I22+K22*L22,N22*O22+Q22*R22+T22*U22)),0,MAX(E22*F22+H22*I22+K22*L22,N22*O22+Q22*R22+T22*U22))","v":0}]
[null,18,null,null,{"$f":"'Schedule VIII (EBS)'!H33","v":0},0.05,null,{"$f":"'Schedule VIII (EBS)'!J33","v":0},6.5000000000000002E-2,null,{"$f":"'Schedule VIII (EBS)'!L33","v":0},0.08,null,null,null,null,null,null,null,null,null,null,{"$f":"IF(ISERROR(OR(E23*F23+H23*I23+K23*L23,N23*O23+Q23*R23+T23*U23)),0,MAX(E23*F23+H23*I23+K23*L23,N23*O23+Q23*R23+T23*U23))","v":0}]
[]
[null,null,null,"Guaranteed Minimum Withdrawal Benefit (GMWB)"]
[null,4,null,null,{"$f":"'Schedule VIII (EBS)'!H16","v":0},3.2500000000000001E-2,null,{"$f":"'Schedule VIII (EBS)'!J16","v":0},4.2500000000000003E-2,null,{"$f":"'Schedule VIII (EBS)'!L16","v":0},0.05,null,{"$f":"'Schedule VIII (EBS)'!N16","v":0},0.6,null,{"$f":"+'Schedule VIII (EBS)'!P16","v":0},0.75,null,{"$f":"+'Schedule VIII (EBS)'!R16","v":0},0.9,null,{"$f":"IF(ISERROR(OR(E26*F26+H26*I26+K26*L26,N26*O26+Q26*R26+T26*U26)),0,MAX(E26*F26+H26*I26+K26*L26,N26*O26+Q26*R26+T26*U26))","v":0}]
[null,19,null,null,{"$f":"'Schedule VIII (EBS)'!H34","v":0},3.2500000000000001E-2,null,{"$f":"'Schedule VIII (EBS)'!J34","v":0},4.2500000000000003E-2,null,{"$f":"'Schedule VIII (EBS)'!L34","v":0},0.05,null,null,null,null,null,null,null,null,null,null,{"$f":"IF(ISERROR(OR(E27*F27+H27*I27+K27*L27,N27*O27+Q27*R27+T27*U27)),0,MAX(E27*F27+H27*I27+K27*L27,N27*O27+Q27*R27+T27*U27))","v":0}]
[]
[null,null,null,"Guaranteed Enhanced Earnings Benefit (GEEB)"]
[null,5,null,null,{"$f":"'Schedule VIII (EBS)'!H17","v":0},0,null,{"$f":"'Schedule VIII (EBS)'!J17","v":0},5.0000000000000001E-3,null,{"$f":"'Schedule VIII (EBS)'!L17","v":0},0.01,null,{"$f":"'Schedule VIII (EBS)'!N17","v":0},0.01,null,{"$f":"+'Schedule VIII (EBS)'!P17","v":0},0.09,null,{"$f":"+'Schedule VIII (EBS)'!R17","v":0},0.17,null,{"$f":"IF(ISERROR(OR(E30*F30+H30*I30+K30*L30,N30*O30+Q30*R30+T30*U30)),0,MAX(E30*F30+H30*I30+K30*L30,N30*O30+Q30*R30+T30*U30))","v":0}]
[null,20,null,null,{"$f":"'Schedule VIII (EBS)'!H35","v":0},0,null,{"$f":"'Schedule VIII (EBS)'!J35","v":0},5.0000000000000001E-3,null,{"$f":"'Schedule VIII (EBS)'!L35","v":0},0.01,null,null,null,null,null,null,null,null,null,null,{"$f":"IF(ISERROR(OR(E31*F31+H31*I31+K31*L31,N31*O31+Q31*R31+T31*U31)),0,MAX(E31*F31+H31*I31+K31*L31,N31*O31+Q31*R31+T31*U31))","v":0}]
[]
[null,null,null,"Guaranteed Minimum Accumulation Benefit (GMAB): "]
[null,6,null,"0-1",{"$f":"+'Schedule VIII (EBS)'!H19","v":0},3.2000000000000001E-2,null,{"$f":"+'Schedule VIII (EBS)'!J19","v":0},0.05,null,{"$f":"+'Schedule VIII (EBS)'!L19","v":0},0.09,null,{"$f":"+'Schedule VIII (EBS)'!N19","v":0},0.9,null,{"$f":"+'Schedule VIII (EBS)'!P19","v":0},1.3,null,{"$f":"+'Schedule VIII (EBS)'!R19","v":0},2.5,null,{"$f":"IF(ISERROR(OR(E34*F34+H34*I34+K34*L34,N34*O34+Q34*R34+T34*U34)),0,MAX(E34*F34+H34*I34+K34*L34,N34*O34+Q34*R34+T34*U34))","v":0}]
[null,7,null,"1-2",{"$f":"+'Schedule VIII (EBS)'!H20","v":0},0.03,null,{"$f":"+'Schedule VIII (EBS)'!J20","v":0},0.05,null,{"$f":"+'Schedule VIII (EBS)'!L20","v":0},8.8999999999999996E-2,null,{"$f":"+'Schedule VIII (EBS)'!N20","v":0},0.8,null,{"$f":"+'Schedule VIII (EBS)'!P20","v":0},1.1499999999999999,null,{"$f":"+'Schedule VIII (EBS)'!R20","v":0},2,null,0]
[null,8,null,"2-3",{"$f":"+'Schedule VIII (EBS)'!H21","v":0},0.03,null,{"$f":"+'Schedule VIII (EBS)'!J21","v":0},0.05,null,{"$f":"+'Schedule VIII (EBS)'!L21","v":0},8.8999999999999996E-2,null,{"$f":"+'Schedule VIII (EBS)'!N21","v":0},0.7,null,{"$f":"+'Schedule VIII (EBS)'!P21","v":0},1.05,null,{"$f":"+'Schedule VIII (EBS)'!R21","v":0},1.6,null,0]
[null,9,null,"3-4",{"$f":"+'Schedule VIII (EBS)'!H22","v":0},2.8000000000000001E-2,null,{"$f":"+'Schedule VIII (EBS)'!J22","v":0},0.05,null,{"$f":"+'Schedule VIII (EBS)'!L22","v":0},8.7999999999999995E-2,null,{"$f":"+'Schedule VIII (EBS)'!N22","v":0},0.6,null,{"$f":"+'Schedule VIII (EBS)'!P22","v":0},0.95,null,{"$f":"+'Schedule VIII (EBS)'!R22","v":0},1.35,null,0]
[null,10,null,"4-5",{"$f":"+'Schedule VIII (EBS)'!H23","v":0},2.4E-2,null,{"$f":"+'Schedule VIII (EBS)'!J23","v":0},4.2999999999999997E-2,null,{"$f":"+'Schedule VIII (EBS)'!L23","v":0},0.08,null,{"$f":"+'Schedule VIII (EBS)'!N23","v":0},0.55000000000000004,null,{"$f":"+'Schedule VIII (EBS)'!P23","v":0},0.85,null,{"$f":"+'Schedule VIII (EBS)'!R23","v":0},1.1499999999999999,null,0]
[null,11,null,"5-6",{"$f":"+'Schedule VIII (EBS)'!H24","v":0},0.02,null,{"$f":"+'Schedule VIII (EBS)'!J24","v":0},3.5000000000000003E-2,null,{"$f":"+'Schedule VIII (EBS)'!L24","v":0},6.8000000000000005E-2,null,{"$f":"+'Schedule VIII (EBS)'!N24","v":0},0.5,null,{"$f":"+'Schedule VIII (EBS)'!P24","v":0},0.75,null,{"$f":"+'Schedule VIII (EBS)'!R24","v":0},1,null,0]
[null,12,null,"6-7",{"$f":"+'Schedule VIII (EBS)'!H25","v":0},1.7000000000000001E-2,null,{"$f":"+'Schedule VIII (EBS)'!J25","v":0},2.8000000000000001E-2,null,{"$f":"+'Schedule VIII (EBS)'!L25","v":0},5.8999999999999997E-2,null,{"$f":"+'Schedule VIII (EBS)'!N25","v":0},0.45,null,{"$f":"+'Schedule VIII (EBS)'!P25","v":0},0.65,null,{"$f":"+'Schedule VIII (EBS)'!R25","v":0},0.9,null,0]
[null,13,null,"7-8",{"$f":"+'Schedule VIII (EBS)'!H26","v":0},1.4E-2,null,{"$f":"+'Schedule VIII (EBS)'!J26","v":0},2.1000000000000001E-2,null,{"$f":"+'Schedule VIII (EBS)'!L26","v":0},4.9000000000000002E-2,null,{"$f":"+'Schedule VIII (EBS)'!N26","v":0},0.4,null,{"$f":"+'Schedule VIII (EBS)'!P26","v":0},0.55000000000000004,null,{"$f":"+'Schedule VIII (EBS)'!R26","v":0},0.8,null,0]
[null,14,null,"8-9",{"$f":"+'Schedule VIII (EBS)'!H27","v":0},1.0999999999999999E-2,null,{"$f":"+'Schedule VIII (EBS)'!J27","v":0},1.7000000000000001E-2,null,{"$f":"+'Schedule VIII (EBS)'!L27","v":0},4.2999999999999997E-2,null,{"$f":"+'Schedule VIII (EBS)'!N27","v":0},0.35,null,{"$f":"+'Schedule VIII (EBS)'!P27","v":0},0.5,null,{"$f":"+'Schedule VIII (EBS)'!R27","v":0},0.7,null,0]
[null,15,null,">9",{"$f":"+'Schedule VIII (EBS)'!H28","v":0},0.01,null,{"$f":"+'Schedule VIII (EBS)'!J28","v":0},1.4E-2,null,{"$f":"+'Schedule VIII (EBS)'!L28","v":0},3.9E-2,null,{"$f":"+'Schedule VIII (EBS)'!N28","v":0},0.3,null,{"$f":"+'Schedule VIII (EBS)'!P28","v":0},0.45,null,{"$f":"+'Schedule VIII (EBS)'!R28","v":0},0.6,null,0]
[]
[null,21,null,"0-1",{"$f":"+'Schedule VIII (EBS)'!H37","v":0},3.2000000000000001E-2,null,{"$f":"+'Schedule VIII (EBS)'!J37","v":0},0.05,null,{"$f":"+'Schedule VIII (EBS)'!L37","v":0},0.09,null,null,null,null,null,null,null,null,null,null,{"$f":"IF(ISERROR(OR(E45*F45+H45*I45+K45*L45,N45*O45+Q45*R45+T45*U45)),0,MAX(E45*F45+H45*I45+K45*L45,N45*O45+Q45*R45+T45*U45))","v":0}]
[null,22,null,"1-2",{"$f":"+'Schedule VIII (EBS)'!H38","v":0},0.03,null,{"$f":"+'Schedule VIII (EBS)'!J38","v":0},0.05,null,{"$f":"+'Schedule VIII (EBS)'!L38","v":0},8.8999999999999996E-2,null,null,null,null,null,null,null,null,null,null,0]
[null,23,null,"2-3",{"$f":"+'Schedule VIII (EBS)'!H39","v":0},0.03,null,{"$f":"+'Schedule VIII (EBS)'!J39","v":0},0.05,null,{"$f":"+'Schedule VIII (EBS)'!L39","v":0},8.8999999999999996E-2,null,null,null,null,null,null,null,null,null,null,0]
[null,24,null,"3-4",{"$f":"+'Schedule VIII (EBS)'!H40","v":0},2.8000000000000001E-2,null,{"$f":"+'Schedule VIII (EBS)'!J40","v":0},0.05,null,{"$f":"+'Schedule VIII (EBS)'!L40","v":0},8.7999999999999995E-2,null,null,null,null,null,null,null,null,null,null,0]
[null,25,null,"4-5",{"$f":"+'Schedule VIII (EBS)'!H41","v":0},2.4E-2,null,{"$f":"+'Schedule VIII (EBS)'!J41","v":0},4.2999999999999997E-2,null,{"$f":"+'Schedule VIII (EBS)'!L41","v":0},0.08,null,null,null,null,null,null,null,null,null,null,0]
[null,26,null,"5-6",{"$f":"+'Schedule VIII (EBS)'!H42","v":0},0.02,null,{"$f":"+'Schedule VIII (EBS)'!J42","v":0},3.5000000000000003E-2,null,{"$f":"+'Schedule VIII (EBS)'!L42","v":0},6.8000000000000005E-2,null,null,null,null,null,null,null,null,null,null,0]
[null,27,null,"6-7",{"$f":"+'Schedule VIII (EBS)'!H43","v":0},1.7000000000000001E-2,null,{"$f":"+'Schedule VIII (EBS)'!J43","v":0},2.8000000000000001E-2,null,{"$f":"+'Schedule VIII (EBS)'!L43","v":0},5.8999999999999997E-2,null,null,null,null,null,null,null,null,null,null,0]
[null,28,null,"7-8",{"$f":"+'Schedule VIII (EBS)'!H44","v":0},1.4E-2,null,{"$f":"+'Schedule VIII (EBS)'!J44","v":0},2.1000000000000001E-2,null,{"$f":"+'Schedule VIII (EBS)'!L44","v":0},4.9000000000000002E-2,null,null,null,null,null,null,null,null,null,null,0]
[null,29,null,"8-9",{"$f":"+'Schedule VIII (EBS)'!H45","v":0},1.0999999999999999E-2,null,{"$f":"+'Schedule VIII (EBS)'!J45","v":0},1.7000000000000001E-2,null,{"$f":"+'Schedule VIII (EBS)'!L45","v":0},4.2999999999999997E-2,null,null,null,null,null,null,null,null,null,null,0]
[null,30,null,">9",{"$f":"+'Schedule VIII (EBS)'!H46","v":0},0.01,null,{"$f":"+'Schedule VIII (EBS)'!J46","v":0},1.4E-2,null,{"$f":"+'Schedule VIII (EBS)'!L46","v":0},3.9E-2,null,null,null,null,null,null,null,null,null,null,0]
[]
[null,null,null,"Reduction:"]
[null,31,null,"Percentage of Guaranteed Minimum Death Benefit with Multiple Guarantees",null,null,null,null,null,null,null,null,null,null,null,null,null,null,null,null,null,{"$f":"+'Schedule VIII (EBS)'!L50","v":0},{"$f":"IF(V57=0,0,(W14+W15+W18+W19)*(-V57))","v":0}]
[null,32,null,"Total BSCR Adjusted Reserves for Variable Annuities",null,null,null,null,null,null,null,null,null,null,null,null,null,null,null,null,null,null,{"$f":"-'Schedule VII (EBS)'!F47","v":0}]
[]
[null,33,null,"TOTAL - VARIABLE ANNUITY GUARANTEE RISK",null,null,null,null,null,null,null,null,null,null,null,null,null,null,null,null,null,null,{"$f":"MAX(0,SUM(W14:W58))","v":0}]
[]
[null,null,null,"Notes"]
[null,null,null,"1.  Factors should be applied to Net Amount at Risk (NAR) defined as:"]
[null,null,null,null,"GMAB",null,null,"Total claim payable if all contracts mature immediately"]
[null,null,null,null,"GMDB",null,null,"Total claim amount payable upon immediate death of all policyholders"]
[null,null,null,null,"GMIB",null,null,"Total claim payable upon full and immediate annuitisation of all policies using an 80% factor applied to the Guaranteed Value (the 80% represents the ratio between current market annuitisation factors and the guaranteed annuitisation factors)"]
[]
[null,null,null,null,"GMWB",null,null,"Total claim payable if 100% of the guaranteed withdrawal benefit base in excess of the current account value is withdrawn immediately"]
[null,null,null,null,"GEEB",null,null,"Total guaranteed enhanced payments upon immediate death of all policyholders"]
[]
[null,null,null,"2.  Where ratchets, resets and roll-ups exist, please use the roll-up category."]
[null,null,null,"3.  NAR is net of reinsurance."]
[null,null,null,"4.  The proportion used for the account value under reinsurance is the proportion used for NAR."]
[null,null,null,"5.  Need minimium amount when Guaranteed Value (GV) < Account Value (AV), the minimum floor factor is applied to AV."]
[]
[]
[null,null,"Notes"]
[null,null,"1.  Factors should be applied to Net Amount at Risk (NAR) defined as:"]
[null,null,null,null,"GMAB","Total claim payable if all contracts mature immediately"]
[null,null,null,null,"GMDB","Total claim amount payable upon immediate death of all policyholders"]
[null,null,null,null,"GMIB","Total claim payable upon full and immediate annuitization of all policies using an 80% factor applied to the Guaranteed Value (the 80% represents the ratio between current market annuitization factors and the guaranteed annuitization factors)"]
[null,null,null,null,"GMWB","Total claim payable if 100% of the guaranteed withdrawal benefit base in excess of the current account value is withdrawn immediately"]
[null,null,null,null,"GEEB","Total guaranteed enhanced payments upon immediate death of all policyholders"]
[]
[null,null,"2.  Where ratchets, resets and roll-ups exist, please use the roll-up category."]
[]
[null,null,"3.  NAR is net of reinsurance."]
[]
[null,null,"4.  The proportion used for the account value under reinsurance is the proportion used for NAR."]
[]
[null,null,"5.  Need minimium amount when Guaranteed Value (GV) < Account Value (AV), the minimum floor factor is applied to AV."]

{"sheet":"Group Specific Parameters","index":132,"n_rows":683,"n_cols":9,"rows_kept":683,"cut":false,"hidden":false,"merged":[[0,0,0,3],[2,0,2,2],[462,3,462,4],[566,2,566,3],[456,3,456,4],[457,3,457,4],[469,3,469,4],[463,3,463,4],[478,4,480,4],[497,1,497,4],[516,1,516,4],[517,2,518,3],[2,5,3,8],[566,4,567,4],[468,3,468,4],[544,3,546,3],[566,7,567,7],[566,5,567,5],[5,1,5,8],[471,3,471,4],[535,3,537,3],[566,8,567,8],[566,6,567,6],[478,2,480,3],[498,2,499,3]]}
["GROUP-SPECIFIC PARAMETERS",null,null,null,null,null,null,null,{"$f":"HYPERLINK(\"#'Index'!A1\",\"Return to Index\")","v":"Return to Index"}]
[]
[{"$f":"+'Group Information'!C7","v":"Enter Group Company Name"},null,null,null,null,{"$f":"HYPERLINK(\"#'Attachments'!A185\",\"Details of User Capital Factor to be included in the attachments section 19.\")","v":"Details of User Capital Factor to be included in the attachments section 19."}]
["For the Year Ending ",null,{"$f":"+'Group Information'!C3","v":"2023-12-31"}]
[]
[null,"To be completed only with prior approval from the Bermuda Monetary Authority"]
[]
[null,null,null,null,"STANDARD","STANDARD",null,"USER","USER"]
[null,"TYPE OF ",null,"ASSET","CAPITAL","REQUIRED",null,"CAPITAL","REQUIRED"]
[null,"FIXED INCOME INVESTMENTS","STATEMENT SOURCE","VALUE","FACTOR","CAPITAL",null,"FACTOR","CAPITAL"]
[]
[null,"(a)  Corporate & Sovereign Bonds"," ","(1) ","(2)","(1) x (2)",null,"(3)","(1) x (3)"]
[]
[null,"BSCR Rating"]
[null,0,"Sch II EBS, Line (1), Column 1 & Sch IIA EBS, Line (1), Column 1",{"$f":"+'Schedule II (EBS)'!D12+'Schedule IIA (EBS)'!D12","v":0},{"$f":"+'Fixed Income Investments'!E12","v":0},{"$f":"IF(D15<0,0,D15*E15)","v":0},null,null,{"$f":"MAX(0,IF(H15=\"\",E15*D15,D15*H15))","v":0}]
[null,1,"Sch II EBS, Line (2), Column 1 & Sch IIA EBS, Line (2), Column 1",{"$f":"+'Schedule II (EBS)'!D13+'Schedule IIA (EBS)'!D13","v":0},{"$f":"+'Fixed Income Investments'!E13","v":4.0000000000000001E-3},{"$f":"IF(D16<0,0,D16*E16)","v":0},null,null,0]
[null,2,"Sch II EBS, Line (3), Column 1 & Sch IIA EBS, Line (3), Column 1",{"$f":"+'Schedule II (EBS)'!D14+'Schedule IIA (EBS)'!D14","v":0},{"$f":"+'Fixed Income Investments'!E14","v":8.0000000000000002E-3},0,null,null,0]
[null,3,"Sch II EBS, Line (4), Column 1 & Sch IIA EBS, Line (4), Column 1",{"$f":"+'Schedule II (EBS)'!D15+'Schedule IIA (EBS)'!D15","v":0},{"$f":"+'Fixed Income Investments'!E15","v":1.4999999999999999E-2},0,null,null,0]
[null,4,"Sch II EBS, Line (5), Column 1 & Sch IIA EBS, Line (5), Column 1",{"$f":"+'Schedule II (EBS)'!D16+'Schedule IIA (EBS)'!D16","v":0},{"$f":"+'Fixed Income Investments'!E16","v":0.03},0,null,null,0]
[null,5,"Sch II EBS, Line (6), Column 1 & Sch IIA EBS, Line (6), Column 1",{"$f":"+'Schedule II (EBS)'!D17+'Schedule IIA (EBS)'!D17","v":0},{"$f":"+'Fixed Income Investments'!E17","v":0.08},0,null,null,0]
[null,6,"Sch II EBS, Line (7), Column 1 & Sch IIA EBS, Line (7), Column 1",{"$f":"+'Schedule II (EBS)'!D18+'Schedule IIA (EBS)'!D18","v":0},{"$f":"+'Fixed Income Investments'!E18","v":0.15},0,null,null,0]
[null,7,"Sch II EBS, Line (8), Column 1 & Sch IIA EBS, Line (8), Column 1",{"$f":"+'Schedule II (EBS)'!D19+'Schedule IIA (EBS)'!D19","v":0},{"$f":"+'Fixed Income Investments'!E19","v":0.26300000000000001},0,null,null,0]
[null,8,"Sch II EBS, Line (9), Column 1 & Sch IIA EBS, Line (9), Column 1",{"$f":"+'Schedule II (EBS)'!D20+'Schedule IIA (EBS)'!D20","v":0},{"$f":"+'Fixed Income Investments'!E20","v":0.35},{"$f":"IF(D23<0,0,D23*E23)","v":0},null,null,0]
[]
[null,"(a)  SUBTOTAL -  CORPORATE BONDS",null,{"$f":"SUM(D15:D24)","v":0},null,{"$f":"IF(SUM(F15:F23)>=0,SUM(F15:F23),0)","v":0},null,null,{"$f":"IF(SUM(I15:I23)>=0,SUM(I15:I23),0)","v":0}]
[]
[null,"(b) Residential Mortgage-Backed Securities"]
[]
[null,"BSCR Rating"]
[null,1,"Sch II EBS, Line (2), Column 3 & Sch IIA EBS, Line (2), Column 3",{"$f":"+'Schedule II (EBS)'!H13+'Schedule IIA (EBS)'!H13","v":0},{"$f":"+'Fixed Income Investments'!E27","v":6.0000000000000001E-3},{"$f":"IF(D30<0,0,D30*E30)","v":0},null,null,{"$f":"MAX(0,IF(H30=\"\",E30*D30,D30*H30))","v":0}]
[null,2,"Sch II EBS, Line (3), Column 3 & Sch IIA EBS, Line (3), Column 3",{"$f":"+'Schedule II (EBS)'!H14+'Schedule IIA (EBS)'!H14","v":0},{"$f":"+'Fixed Income Investments'!E28","v":1.2E-2},0,null,null,0]
[null,3,"Sch II EBS, Line (4), Column 3 & Sch IIA EBS, Line (4), Column 3",{"$f":"+'Schedule II (EBS)'!H15+'Schedule IIA (EBS)'!H15","v":0},{"$f":"+'Fixed Income Investments'!E29","v":0.02},0,null,null,0]
[null,4,"Sch II EBS, Line (5), Column 3 & Sch IIA EBS, Line (5), Column 3",{"$f":"+'Schedule II (EBS)'!H16+'Schedule IIA (EBS)'!H16","v":0},{"$f":"+'Fixed Income Investments'!E30","v":0.04},0,null,null,0]
[null,5,"Sch II EBS, Line (6), Column 3 & Sch IIA EBS, Line (6), Column 3",{"$f":"+'Schedule II (EBS)'!H17+'Schedule IIA (EBS)'!H17","v":0},{"$f":"+'Fixed Income Investments'!E31","v":0.11},0,null,null,0]
[null,6,"Sch II EBS, Line (7), Column 3 & Sch IIA EBS, Line (7), Column 3",{"$f":"+'Schedule II (EBS)'!H18+'Schedule IIA (EBS)'!H18","v":0},{"$f":"+'Fixed Income Investments'!E32","v":0.25},0,null,null,0]
[null,7,"Sch II EBS, Line (8), Column 3 & Sch IIA EBS, Line (8), Column 3",{"$f":"+'Schedule II (EBS)'!H19+'Schedule IIA (EBS)'!H19","v":0},{"$f":"+'Fixed Income Investments'!E33","v":0.35},{"$f":"IF(D36<0,0,D36*E36)","v":0},null,null,0]
[null,8,"Sch II EBS, Line (9), Column 3 & Sch IIA EBS, Line (9), Column 3",{"$f":"+'Schedule II (EBS)'!H20+'Schedule IIA (EBS)'!H20","v":0},{"$f":"+'Fixed Income Investments'!E34","v":0.35},{"$f":"IF(D37<0,0,D37*E37)","v":0},null,null,0]
[]
[null,"(b)  SUBTOTAL - RESIDENTIAL MORTGAGE-BACKED SECURITIES",null,{"$f":"SUM(D30:D38)","v":0},null,{"$f":"IF(SUM(F30:F37)>=0,SUM(F30:F37),0)","v":0},null,null,{"$f":"IF(SUM(I30:I37)>=0,SUM(I30:I37),0)","v":0}]
[]
[null,"(c) Commercial Mortgage-Backed Securities / Asset-Backed Securities"]
[]
[null,"BSCR Rating"]
[null,1,"Sch II EBS, Line (2), Column 5 & Sch IIA EBS, Line (2), Column 5",{"$f":"'Schedule II (EBS)'!L13+'Schedule IIA (EBS)'!L13","v":0},{"$f":"+'Fixed Income Investments'!E41","v":5.0000000000000001E-3},{"$f":"IF(D44<0,0,D44*E44)","v":0},null,null,{"$f":"MAX(0,IF(H44=\"\",E44*D44,D44*H44))","v":0}]
[null,2,"Sch II EBS, Line (3), Column 5 & Sch IIA EBS, Line (3), Column 5",{"$f":"'Schedule II (EBS)'!L14+'Schedule IIA (EBS)'!L14","v":0},{"$f":"+'Fixed Income Investments'!E42","v":0.01},0,null,null,0]
[null,3,"Sch II EBS, Line (4), Column 5 & Sch IIA EBS, Line (4), Column 5",{"$f":"'Schedule II (EBS)'!L15+'Schedule IIA (EBS)'!L15","v":0},{"$f":"+'Fixed Income Investments'!E43","v":1.7999999999999999E-2},0,null,null,0]
[null,4,"Sch II EBS, Line (5), Column 5 & Sch IIA EBS, Line (5), Column 5",{"$f":"'Schedule II (EBS)'!L16+'Schedule IIA (EBS)'!L16","v":0},{"$f":"+'Fixed Income Investments'!E44","v":3.5000000000000003E-2},0,null,null,0]
[null,5,"Sch II EBS, Line (6), Column 5 & Sch IIA EBS, Line (6), Column 5",{"$f":"'Schedule II (EBS)'!L17+'Schedule IIA (EBS)'!L17","v":0},{"$f":"+'Fixed Income Investments'!E45","v":0.1},0,null,null,0]
[null,6,"Sch II EBS, Line (7), Column 5 & Sch IIA EBS, Line (7), Column 5",{"$f":"'Schedule II (EBS)'!L18+'Schedule IIA (EBS)'!L18","v":0},{"$f":"+'Fixed Income Investments'!E46","v":0.2},0,null,null,0]
[null,7,"Sch II EBS, Line (8), Column 5 & Sch IIA EBS, Line (8), Column 5",{"$f":"'Schedule II (EBS)'!L19+'Schedule IIA (EBS)'!L19","v":0},{"$f":"+'Fixed Income Investments'!E47","v":0.3},{"$f":"IF(D50<0,0,D50*E50)","v":0},null,null,0]
[null,8,"Sch II EBS, Line (9), Column 5 & Sch IIA EBS, Line (9), Column 5",{"$f":"'Schedule II (EBS)'!L20+'Schedule IIA (EBS)'!L20","v":0},{"$f":"+'Fixed Income Investments'!E48","v":0.35},{"$f":"IF(D51<0,0,D51*E51)","v":0},null,null,0]
[]
[null,"(c)  SUBTOTAL - COMMERCIAL MORTGAGE-BACKED SECURITIES / ASSET-BACKED SECURITIES",null,{"$f":"SUM(D44:D52)","v":0},null,{"$f":"IF(SUM(F44:F51)>=0,SUM(F44:F51),0)","v":0},null,null,{"$f":"IF(SUM(I44:I51)>=0,SUM(I44:I51),0)","v":0}]
[]
[null,"(d) Bond Mutual Funds"," "]
[]
[null,"BSCR Rating"]
[null,0,"Sch II EBS, Line (1), Column 7 & Sch IIA EBS, Line (1), Column 7",{"$f":"'Schedule II (EBS)'!P12+'Schedule IIA (EBS)'!P12","v":0},{"$f":"+'Fixed Income Investments'!E56","v":0},{"$f":"IF(D58<0,0,D58*E58)","v":0},null,null,{"$f":"MAX(0,IF(H58=\"\",E58*D58,D58*H58))","v":0}]
[null,1,"Sch II EBS, Line (2), Column 7 & Sch IIA EBS, Line (2), Column 7",{"$f":"'Schedule II (EBS)'!P13+'Schedule IIA (EBS)'!P13","v":0},{"$f":"+'Fixed Income Investments'!E57","v":4.0000000000000001E-3},{"$f":"IF(D59<0,0,D59*E59)","v":0},null,null,0]
[null,2,"Sch II EBS, Line (3), Column 7 & Sch IIA EBS, Line (3), Column 7",{"$f":"'Schedule II (EBS)'!P14+'Schedule IIA (EBS)'!P14","v":0},{"$f":"+'Fixed Income Investments'!E58","v":8.0000000000000002E-3},0,null,null,0]
[null,3,"Sch II EBS, Line (4), Column 7 & Sch IIA EBS, Line (4), Column 7",{"$f":"'Schedule II (EBS)'!P15+'Schedule IIA (EBS)'!P15","v":0},{"$f":"+'Fixed Income Investments'!E59","v":1.4999999999999999E-2},0,null,null,0]
[null,4,"Sch II EBS, Line (5), Column 7 & Sch IIA EBS, Line (5), Column 7",{"$f":"'Schedule II (EBS)'!P16+'Schedule IIA (EBS)'!P16","v":0},{"$f":"+'Fixed Income Investments'!E60","v":0.03},0,null,null,0]
[null,5,"Sch II EBS, Line (6), Column 7 & Sch IIA EBS, Line (6), Column 7",{"$f":"'Schedule II (EBS)'!P17+'Schedule IIA (EBS)'!P17","v":0},{"$f":"+'Fixed Income Investments'!E61","v":0.08},0,null,null,0]
[null,6,"Sch II EBS, Line (7), Column 7 & Sch IIA EBS, Line (7), Column 7",{"$f":"'Schedule II (EBS)'!P18+'Schedule IIA (EBS)'!P18","v":0},{"$f":"+'Fixed Income Investments'!E62","v":0.15},0,null,null,0]
[null,7,"Sch II EBS, Line (8), Column 7 & Sch IIA EBS, Line (8), Column 7",{"$f":"'Schedule II (EBS)'!P19+'Schedule IIA (EBS)'!P19","v":0},{"$f":"+'Fixed Income Investments'!E63","v":0.26300000000000001},0,null,null,0]
[null,8,"Sch II EBS, Line (9), Column 7 & Sch IIA EBS, Line (9), Column 7",{"$f":"'Schedule II (EBS)'!P20+'Schedule IIA (EBS)'!P20","v":0},{"$f":"+'Fixed Income Investments'!E64","v":0.35},{"$f":"IF(D66<0,0,D66*E66)","v":0},null,null,0]
[]
[null,"(d)  SUBTOTAL - BOND MUTUAL FUNDS",null,{"$f":"SUM(D58:D67)","v":0},null,{"$f":"IF(SUM(F58:F66)>=0,SUM(F58:F66),0)","v":0},null,null,{"$f":"IF(SUM(I58:I66)>=0,SUM(I58:I66),0)","v":0}]
[]
[null,"(e) Mortgage Loans"]
[]
[null,"Insured/Guaranteed Mortgages","Sch II EBS, Line (22), Column 1 & Sch IIA EBS, Line (22), Column 1",{"$f":"+'Schedule II (EBS)'!D57+'Schedule IIA (EBS)'!D57","v":0},{"$f":"+'Fixed Income Investments'!E70","v":3.0000000000000001E-3},{"$f":"IF(D72<0,0,D72*E72)","v":0},null,null,{"$f":"MAX(0,IF(H72=\"\",E72*D72,D72*H72))","v":0}]
[null,"Other Commercial and Farm Mortgages","Sch II EBS, Line (23), Column 1 & Sch IIA EBS, Line (23), Column 1 ",{"$f":"+'Schedule II (EBS)'!D58+'Schedule IIA (EBS)'!D58","v":0},{"$f":"+'Fixed Income Investments'!E71","v":0.05},{"$f":"IF(D73<0,0,D73*E73)","v":0},null,null,{"$f":"MAX(0,IF(H73=\"\",E73*D73,D73*H73))","v":0}]
[null,"Other Residential Mortgages","Sch II EBS, Line (24), Column 1 & Sch IIA EBS, Line (24), Column 1",{"$f":"+'Schedule II (EBS)'!D59+'Schedule IIA (EBS)'!D59","v":0},{"$f":"+'Fixed Income Investments'!E72","v":1.4999999999999999E-2},{"$f":"IF(D74<0,0,D74*E74)","v":0},null,null,{"$f":"MAX(0,IF(H74=\"\",E74*D74,D74*H74))","v":0}]
[null,"Mortgages Not In Good Standing","Sch II EBS, Line (25), Column 1 & Sch IIA EBS, Line (25), Column 1",{"$f":"+'Schedule II (EBS)'!D60+'Schedule IIA (EBS)'!D60","v":0},{"$f":"+'Fixed Income Investments'!E73","v":0.25},{"$f":"IF(D75<0,0,D75*E75)","v":0},null,null,{"$f":"MAX(0,IF(H75=\"\",E75*D75,D75*H75))","v":0}]
[]
[null,"(e)  SUBTOTAL - MORTGAGE LOANS",null,{"$f":"SUM(D72:D75)","v":0},null,{"$f":"IF(SUM(F72:F75)>=0,SUM(F72:F75),0)","v":0},null,null,{"$f":"IF(SUM(I72:I75)>=0,SUM(I72:I75),0)","v":0}]
[]
[null,"(f) Other Fixed Income Investments"]
[]
[null,"Other Loans","Form 1EBS, Line (8)",{"$f":"+'Form 1EBS'!F56","v":0},{"$f":"+'Fixed Income Investments'!E79","v":0.05},{"$f":"IF(D81<0,0,D81*E81)","v":0},null,null,{"$f":"MAX(0,IF(H81=\"\",E81*D81,D81*H81))","v":0}]
[]
[null,"Cash and Cash Equivalent Counterparty Balances By BSCR Rating"]
[]
[null,"BSCR Rating 0 ","Schedule XIX, Column A",{"$f":"+'Schedule XIX'!G81","v":0},{"$f":"+'Fixed Income Investments'!E83","v":0},{"$f":"IF(D85<0,0,D85*E85)","v":0},null,null,{"$f":"MAX(0,IF(H85=\"\",E85*D85,D85*H85))","v":0}]
[null,"BSCR Rating 1","Schedule XIX, Column A",{"$f":"+'Schedule XIX'!G82","v":0},{"$f":"+'Fixed Income Investments'!E84","v":1E-3},{"$f":"IF(D86<0,0,D86*E86)","v":0},null,null,{"$f":"MAX(0,IF(H86=\"\",E86*D86,D86*H86))","v":0}]
[null,"BSCR Rating 2","Schedule XIX, Column A",{"$f":"+'Schedule XIX'!G83","v":0},{"$f":"+'Fixed Income Investments'!E85","v":2E-3},{"$f":"IF(D87<0,0,D87*E87)","v":0},null,null,0]
[null,"BSCR Rating 3","Schedule XIX, Column A",{"$f":"+'Schedule XIX'!G84","v":0},{"$f":"+'Fixed Income Investments'!E86","v":3.0000000000000001E-3},0,null,null,0]
[null,"BSCR Rating 4","Schedule XIX, Column A",{"$f":"+'Schedule XIX'!G85","v":0},{"$f":"+'Fixed Income Investments'!E87","v":5.0000000000000001E-3},0,null,null,0]
[null,"BSCR Rating 5","Schedule XIX, Column A",{"$f":"+'Schedule XIX'!G86","v":0},{"$f":"+'Fixed Income Investments'!E88","v":1.4999999999999999E-2},0,null,null,0]
[null,"BSCR Rating 6","Schedule XIX, Column A",{"$f":"+'Schedule XIX'!G87","v":0},{"$f":"+'Fixed Income Investments'!E89","v":0.04},0,null,null,0]
[null,"BSCR Rating 7","Schedule XIX, Column A",{"$f":"+'Schedule XIX'!G88","v":0},{"$f":"+'Fixed Income Investments'!E90","v":0.06},0,null,null,0]
[null,"BSCR Rating 8","Schedule XIX, Column A",{"$f":"+'Schedule XIX'!G89","v":0},{"$f":"+'Fixed Income Investments'!E91","v":0.09},0,null,null,0]
[]
[null,"Total",null,{"$f":"SUM(D85:D94)","v":0},null,{"$f":"SUM(F85:F94)","v":0},null,null,{"$f":"SUM(I85:I94)","v":0}]
[]
[null,"Diversification Adj at 40%","Schedule XIX, Column A",null,null,{"$f":"SUM(F85:F93)*-(+'Schedule XIX'!G98)","v":0},null,null,{"$f":"SUM(I85:I93)*-(+'Schedule XIX'!G98)","v":0}]
[]
[null,"(f)  SUBTOTAL - OTHER FIXED INCOME SECURITIES",null,{"$f":"SUM(D81,D95)","v":0},null,{"$f":"IF(SUM(F81,F95,F97)>=0,SUM(F81,F95,F97),0)","v":0},null,null,{"$f":"IF(SUM(I81,I95,I97)>=0,SUM(I81,I95,I97),0)","v":0}]
[]
[null,"(G)  TOTAL FIXED INCOME INVESTMENTS [ (a)+(b)+(c)+(d)+(e)+(f) ]",null,{"$f":"D25+D39+D53+D68+D77+D99","v":0},null,{"$f":"F25+F39+F53+F68+F77+F99","v":0},null,null,{"$f":"I25+I39+I53+I68+I77+I99","v":0}]
[]
[null,null,null,null,"STANDARD","STANDARD",null,"USER","USER"]
[null,"TYPE OF ",null,"ASSET","CAPITAL","REQUIRED",null,"CAPITAL","REQUIRED"]
[null,"EQUITY INVESTMENTS","STATEMENT SOURCE","VALUE","FACTOR","CAPITAL",null,"FACTOR","CAPITAL"]
[]
[null,"(a)  Common Stocks",null,"(1) ","(2)","(1) x (2)",null,"(3)","(1) x (3)"]
[]
[null,"Non-Affiliated (Quoted)","Sch II EBS, Line (19), Column (1) and Sch IIA EBS, Line (19), Column (1)",{"$f":"'Schedule II (EBS)'!D41+'Schedule IIA (EBS)'!D41","v":0},{"$f":"+'Equity Investments'!E11","v":0.14399999999999999},{"$f":"IF(D109<0,0,D109*E109)","v":0},null,null,{"$f":"MAX(0,IF(H109=\"\",E109*D109,D109*H109))","v":0}]
[null,"Non-Affiliated (Unquoted)","Sch II EBS, Line (20), Column (1) and Sch IIA EBS, Line (20), Column (1)",{"$f":"'Schedule II (EBS)'!D42+'Schedule IIA (EBS)'!D42","v":0},{"$f":"+'Equity Investments'!E12","v":0.14399999999999999},{"$f":"IF(D110<0,0,D110*E110)","v":0},null,null,{"$f":"MAX(0,IF(H110=\"\",E110*D110,D110*H110))","v":0}]
[null,"Equity Mutual Funds","Sch II EBS, Line (21), Column (5) and Sch IIA EBS, Line (21), Column (5)",{"$f":"'Schedule II (EBS)'!L41+'Schedule II (EBS)'!L42+'Schedule IIA (EBS)'!L41+'Schedule IIA (EBS)'!L42","v":0},{"$f":"+'Equity Investments'!E13","v":0.14399999999999999},{"$f":"IF(D111<0,0,D111*E111)","v":0},null,null,{"$f":"MAX(0,IF(H111=\"\",E111*D111,D111*H111))","v":0}]
[]
[null,"(a)  SUBTOTAL - COMMON STOCKS",null,{"$f":"SUM(D109:D111)","v":0},null,{"$f":"IF(SUM(F109:F111)>=0,SUM(F109:F111),0)","v":0},null,null,{"$f":"IF(SUM(I109:I111)>=0,SUM(I109:I111),0)","v":0}]
[]
[null,"(b)  Preferred Stocks"]
[]
[null,"BSCR Rating"]
[null,1,"Sch II EBS, Line (11), Column (3) and Sch IIA EBS, Line (11), Column (3)",{"$f":"'Schedule II (EBS)'!H33+'Schedule IIA (EBS)'!H33","v":0},{"$f":"+'Equity Investments'!E20","v":6.0000000000000001E-3},{"$f":"IF(D118<0,0,D118*E118)","v":0},null,null,{"$f":"MAX(0,IF(H118=\"\",E118*D118,D118*H118))","v":0}]
[null,2,"Sch II EBS, Line (12), Column (3) and Sch IIA EBS, Line (12), Column (3)",{"$f":"'Schedule II (EBS)'!H34+'Schedule IIA (EBS)'!H34","v":0},{"$f":"+'Equity Investments'!E21","v":1.2E-2},{"$f":"IF(D119<0,0,D119*E119)","v":0},null,null,0]
[null,3,"Sch II EBS, Line (13), Column (3) and Sch IIA EBS, Line (13), Column (3)",{"$f":"'Schedule II (EBS)'!H35+'Schedule IIA (EBS)'!H35","v":0},{"$f":"+'Equity Investments'!E22","v":0.02},0,null,null,0]
[null,4,"Sch II EBS, Line (14), Column (3) and Sch IIA EBS, Line (14), Column (3)",{"$f":"'Schedule II (EBS)'!H36+'Schedule IIA (EBS)'!H36","v":0},{"$f":"+'Equity Investments'!E23","v":0.04},0,null,null,0]
[null,5,"Sch II EBS, Line (15), Column (3) and Sch IIA EBS, Line (15), Column (3)",{"$f":"'Schedule II (EBS)'!H37+'Schedule IIA (EBS)'!H37","v":0},{"$f":"+'Equity Investments'!E24","v":0.11},0,null,null,0]
[null,6,"Sch II EBS, Line (16), Column (3) and Sch IIA EBS, Line (16), Column (3)",{"$f":"'Schedule II (EBS)'!H38+'Schedule IIA (EBS)'!H38","v":0},{"$f":"+'Equity Investments'!E25","v":0.25},0,null,null,0]
[null,7,"Sch II EBS, Line (17), Column (3) and Sch IIA EBS, Line (17), Column (3)",{"$f":"'Schedule II (EBS)'!H39+'Schedule IIA (EBS)'!H39","v":0},{"$f":"+'Equity Investments'!E26","v":0.35},0,null,null,0]
[null,8,"Sch II EBS, Line (18), Column (3) and Sch IIA EBS, Line (18), Column (3)",{"$f":"'Schedule II (EBS)'!H40+'Schedule IIA (EBS)'!H40","v":0},{"$f":"+'Equity Investments'!E27","v":0.35},0,null,null,0]
[]
[null,"(b)  SUBTOTAL - PREFERRED STOCKS",null,{"$f":"SUM(D118:D125)","v":0},null,{"$f":"IF(SUM(F118:F125)>=0,SUM(F118:F125),0)","v":0},null,null,{"$f":"IF(SUM(I118:I125)>=0,SUM(I118:I125),0)","v":0}]
[]
[null,"(c)  Other Equity Investments"]
[]
[null,"Real Estate"]
[null,"Group-Occupied Less Encumbrances","Form 1EBS, Line (7a)",{"$f":"+'Form 1EBS'!F52","v":0},{"$f":"+'Equity Investments'!E34","v":0.1},{"$f":"IF(D132<0,0,D132*E132)","v":0},null,null,{"$f":"MAX(0,IF(H132=\"\",E132*D132,D132*H132))","v":0}]
[null,"Investments Less Encumbrances","Form 1EBS, Line (7b)",{"$f":"+'Form 1EBS'!F53","v":0},{"$f":"+'Equity Investments'!E35","v":0.2},{"$f":"IF(D133<0,0,D133*E133)","v":0},null,null,{"$f":"MAX(0,IF(H133=\"\",E133*D133,D133*H133))","v":0}]
[]
[null,"Other Equity Investments","Form 1EBS, Lines (2e), (3e) & Schedule IIA EBS, Line 21, Column (7)",{"$f":"+'Form 1EBS'!F20+'Form 1EBS'!F31+'Schedule IIA (EBS)'!P44","v":0},{"$f":"+'Equity Investments'!E37","v":0.2},{"$f":"IF(D135<0,0,D135*E135)","v":0},null,null,{"$f":"MAX(0,IF(H135=\"\",E135*D135,D135*H135))","v":0}]
[null,"Other Tangible Assets - Net of Segregated Accounts Companies","Form 1EBS, Lines (13k), (14d) and (36f) Less Lines (13b), (13c), 13(d) and 13(h)",{"$f":"'Form 1EBS'!F88+'Form 1EBS'!F94+'Form 1EBS'!F196-'Form 1EBS'!F79-'Form 1EBS'!F80-'Form 1EBS'!F81-'Form 1EBS'!F85","v":0},{"$f":"+'Equity Investments'!E38","v":0.2},{"$f":"IF(D136<0,0,D136*E136)","v":0},null,null,{"$f":"MAX(0,IF(H136=\"\",E136*D136,D136*H136))","v":0}]
[]
[null,"(c)  SUBTOTAL - OTHER EQUITY INVESTMENTS",null,{"$f":"SUM(D132:D136)","v":0},null,{"$f":"IF(SUM(F132:F136)>=0,SUM(F132:F136),0)","v":0},null,null,{"$f":"IF(SUM(I132:I136)>=0,SUM(I132:I136),0)","v":0}]
[]
[null,"(d)  Investment in Affiliates"]
[]
[null,"Unregulated Ancillary Services","Form 1EBS, Line (4a)",{"$f":"+'Form 1EBS'!F35","v":0},{"$f":"+'Equity Investments'!E44","v":0.05},{"$f":"IF(D142<0,0,D142*E142)","v":0},null,null,{"$f":"MAX(0,IF(H142=\"\",E142*D142,D142*H142))","v":0}]
[null,"Unreg Non-Financial Operating ","Form 1EBS, Line (4b)",{"$f":"+'Form 1EBS'!F36","v":0},{"$f":"+'Equity Investments'!E45","v":0.2},{"$f":"IF(D143<0,0,D143*E143)","v":0},null,null,{"$f":"MAX(0,IF(H143=\"\",E143*D143,D143*H143))","v":0}]
[null,"Unreg Financial Operating ","Form 1EBS, Line (4c)",{"$f":"+'Form 1EBS'!F37","v":0},{"$f":"+'Equity Investments'!E46","v":0.55000000000000004},{"$f":"IF(D144<0,0,D144*E144)","v":0},null,null,{"$f":"MAX(0,IF(H144=\"\",E144*D144,D144*H144))","v":0}]
[null,"Regulated Insurance Entities","Form 1EBS, Line (4e)",{"$f":"+'Form 1EBS'!F39","v":0},{"$f":"+'Equity Investments'!E47","v":0.2},{"$f":"IF(D145<0,0,D145*E145)","v":0},null,null,{"$f":"MAX(0,IF(H145=\"\",E145*D145,D145*H145))","v":0}]
[]
[null,"(d)  SUBTOTAL - INVESTMENT IN AFFILIATES",null,{"$f":"SUM(D142:D145)","v":0},null,{"$f":"SUM(F142:F145)","v":0},null,null,{"$f":"SUM(I142:I145)","v":0}]
[]
[null,"(e)  TOTAL EQUITY INVESTMENTS  [ (a) + (b) + (c) + (d) ]",null,{"$f":"D113+D127+D138+D147","v":0},null,{"$f":"F113+F127+F138+F147","v":0},null,null,{"$f":"I113+I127+I138+I147","v":0}]
[]
[null,null,null,null,"STANDARD","STANDARD",null,"USER","USER"]
[null,null,null,null,"CAPITAL","REQUIRED",null,"CAPITAL","REQUIRED"]
[null,"CURRENCY RISK","ASSETS","LIABILITIES","FACTOR","CAPITAL",null,"FACTOR","CAPITAL"]
[]
[null,{"$f":"'Schedule XX'!C9","v":"US Dollar"},{"$f":"IF('Currency Risk'!D9=0,'Currency Risk'!C9,'Currency Risk'!D9)","v":0},{"$f":"IF('Currency Risk'!D9=0,'Currency Risk'!E9,'Currency Risk'!F9)","v":0},{"$f":"'Currency Risk'!H9","v":0},{"$f":"'Currency Risk'!I9","v":0},null,null,{"$f":"IF(H155=\"\",F155,H155*ABS(D155-C155))","v":0}]
[null,{"$f":"'Schedule XX'!C10","v":"Euro"},{"$f":"IF('Currency Risk'!D10=0,'Currency Risk'!C10,'Currency Risk'!D10)","v":0},{"$f":"IF('Currency Risk'!D10=0,'Currency Risk'!E10,'Currency Risk'!F10)","v":0},{"$f":"'Currency Risk'!H10","v":0.25},{"$f":"'Currency Risk'!I10","v":0},null,null,{"$f":"IF(H156=\"\",F156,H156*ABS(D156-C156))","v":0}]
[null,{"$f":"'Schedule XX'!C11","v":"GBP"},{"$f":"IF('Currency Risk'!D11=0,'Currency Risk'!C11,'Currency Risk'!D11)","v":0},{"$f":"IF('Currency Risk'!D11=0,'Currency Risk'!E11,'Currency Risk'!F11)","v":0},{"$f":"'Currency Risk'!H11","v":0.25},{"$f":"'Currency Risk'!I11","v":0},null,null,0]
[null,{"$f":"'Schedule XX'!C12","v":"CAD$"},{"$f":"IF('Currency Risk'!D12=0,'Currency Risk'!C12,'Currency Risk'!D12)","v":0},{"$f":"IF('Currency Risk'!D12=0,'Currency Risk'!E12,'Currency Risk'!F12)","v":0},{"$f":"'Currency Risk'!H12","v":0.25},{"$f":"'Currency Risk'!I12","v":0},null,null,0]
[null,{"$f":"'Schedule XX'!C13","v":"YEN"},{"$f":"IF('Currency Risk'!D13=0,'Currency Risk'!C13,'Currency Risk'!D13)","v":0},{"$f":"IF('Currency Risk'!D13=0,'Currency Risk'!E13,'Currency Risk'!F13)","v":0},{"$f":"'Currency Risk'!H13","v":0.25},{"$f":"'Currency Risk'!I13","v":0},null,null,0]
[null,{"$f":"'Schedule XX'!C14","v":"Other currency 1"},{"$f":"IF('Currency Risk'!D14=0,'Currency Risk'!C14,'Currency Risk'!D14)","v":0},{"$f":"IF('Currency Risk'!D14=0,'Currency Risk'!E14,'Currency Risk'!F14)","v":0},{"$f":"'Currency Risk'!H14","v":0.25},{"$f":"'Currency Risk'!I14","v":0},null,null,0]
[null,{"$f":"'Schedule XX'!C15","v":"Other currency 2"},{"$f":"IF('Currency Risk'!D15=0,'Currency Risk'!C15,'Currency Risk'!D15)","v":0},{"$f":"IF('Currency Risk'!D15=0,'Currency Risk'!E15,'Currency Risk'!F15)","v":0},{"$f":"'Currency Risk'!H15","v":0.25},{"$f":"'Currency Risk'!I15","v":0},null,null,0]
[null,{"$f":"'Schedule XX'!C16","v":"Other currency 3"},{"$f":"IF('Currency Risk'!D16=0,'Currency Risk'!C16,'Currency Risk'!D16)","v":0},{"$f":"IF('Currency Risk'!D16=0,'Currency Risk'!E16,'Currency Risk'!F16)","v":0},{"$f":"'Currency Risk'!H16","v":0.25},{"$f":"'Currency Risk'!I16","v":0},null,null,0]
[null,{"$f":"'Schedule XX'!C17","v":"Other currency 4"},{"$f":"IF('Currency Risk'!D17=0,'Currency Risk'!C17,'Currency Risk'!D17)","v":0},{"$f":"IF('Currency Risk'!D17=0,'Currency Risk'!E17,'Currency Risk'!F17)","v":0},{"$f":"'Currency Risk'!H17","v":0.25},{"$f":"'Currency Risk'!I17","v":0},null,null,0]
[null,{"$f":"'Schedule XX'!C18","v":"Other currency 5"},{"$f":"IF('Currency Risk'!D18=0,'Currency Risk'!C18,'Currency Risk'!D18)","v":0},{"$f":"IF('Currency Risk'!D18=0,'Currency Risk'!E18,'Currency Risk'!F18)","v":0},{"$f":"'Currency Risk'!H18","v":0.25},{"$f":"'Currency Risk'!I18","v":0},null,null,0]
[null,{"$f":"'Schedule XX'!C19","v":"Other currency 6"},{"$f":"IF('Currency Risk'!D19=0,'Currency Risk'!C19,'Currency Risk'!D19)","v":0},{"$f":"IF('Currency Risk'!D19=0,'Currency Risk'!E19,'Currency Risk'!F19)","v":0},{"$f":"'Currency Risk'!H19","v":0.25},{"$f":"'Currency Risk'!I19","v":0},null,null,0]
[null,{"$f":"'Schedule XX'!C20","v":"Other currency 7"},{"$f":"IF('Currency Risk'!D20=0,'Currency Risk'!C20,'Currency Risk'!D20)","v":0},{"$f":"IF('Currency Risk'!D20=0,'Currency Risk'!E20,'Currency Risk'!F20)","v":0},{"$f":"'Currency Risk'!H20","v":0.25},{"$f":"'Currency Risk'!I20","v":0},null,null,0]
[null,{"$f":"'Schedule XX'!C21","v":"Other currency 8"},{"$f":"IF('Currency Risk'!D21=0,'Currency Risk'!C21,'Currency Risk'!D21)","v":0},{"$f":"IF('Currency Risk'!D21=0,'Currency Risk'!E21,'Currency Risk'!F21)","v":0},{"$f":"'Currency Risk'!H21","v":0.25},{"$f":"'Currency Risk'!I21","v":0},null,null,0]
[null,{"$f":"'Schedule XX'!C22","v":"Other currency 9"},{"$f":"IF('Currency Risk'!D22=0,'Currency Risk'!C22,'Currency Risk'!D22)","v":0},{"$f":"IF('Currency Risk'!D22=0,'Currency Risk'!E22,'Currency Risk'!F22)","v":0},{"$f":"'Currency Risk'!H22","v":0.25},{"$f":"'Currency Risk'!I22","v":0},null,null,0]
[null,{"$f":"'Schedule XX'!C23","v":"Other currency 10"},{"$f":"IF('Currency Risk'!D23=0,'Currency Risk'!C23,'Currency Risk'!D23)","v":0},{"$f":"IF('Currency Risk'!D23=0,'Currency Risk'!E23,'Currency Risk'!F23)","v":0},{"$f":"'Currency Risk'!H23","v":0.25},{"$f":"'Currency Risk'!I23","v":0},null,null,0]
[null,"Total Identified",{"$f":"SUM(C155:C169)","v":0},{"$f":"SUM(D155:D169)","v":0}]
[null,"Total",{"$f":"+'Schedule XX'!E27","v":0},{"$f":"+'Schedule XX'!I27","v":0}]
[null,"% Identified",{"$f":"IF(C170=0,0,C170/C171)","v":0},{"$f":"IF(D170=0,0,D170/D171)","v":0}]
[]
[null,"TOTAL CURRENCY RISK",{"$f":"SUM(C155:C169)","v":0},{"$f":"SUM(D155:D169)","v":0},null,{"$f":"IF(SUM(F155:F172)>=0,SUM(F155:F172),0)","v":0},null,null,{"$f":"IF(SUM(I155:I172)>=0,SUM(I155:I172),0)","v":0}]
[]
[null,"CONCENTRATION RISK",null,null,"STANDARD","STANDARD",null,"USER","USER"]
[null,null,null,"EXPOSURE","CAPITAL","REQUIRED",null,"CAPITAL","REQUIRED"]
[null,"ASSET TYPE","STATEMENT SOURCE","VALUE","FACTOR","CAPITAL",null,"FACTOR","CAPITAL"]
[]
[null,"(a) Cash and Cash Equivalents"]
[null,"BSCR Rating 0","Schedule XXI, Column D",{"$f":"+'Concentration Risk'!D10","v":0},{"$f":"+'Fixed Income Investments'!E83","v":0},{"$f":"MAX(0,(D181*E181))","v":0},null,null,{"$f":"MAX(0,IF(H181=\"\",D181*E181,D181*H181))","v":0}]
[null,"BSCR Rating 1","Schedule XXI, Column D",{"$f":"+'Concentration Risk'!D11","v":0},{"$f":"+'Fixed Income Investments'!E84","v":1E-3},0,null,null,{"$f":"MAX(0,IF(H182=\"\",D182*E182,D182*H182))","v":0}]
[null,"BSCR Rating 2","Schedule XXI, Column D",{"$f":"+'Concentration Risk'!D12","v":0},{"$f":"+'Fixed Income Investments'!E85","v":2E-3},0,null,null,0]
[null,"BSCR Rating 3","Schedule XXI, Column D",{"$f":"+'Concentration Risk'!D13","v":0},{"$f":"+'Fixed Income Investments'!E86","v":3.0000000000000001E-3},0,null,null,0]
[null,"BSCR Rating 4","Schedule XXI, Column D",{"$f":"+'Concentration Risk'!D14","v":0},{"$f":"+'Fixed Income Investments'!E87","v":5.0000000000000001E-3},0,null,null,0]
[null,"BSCR Rating 5","Schedule XXI, Column D",{"$f":"+'Concentration Risk'!D15","v":0},{"$f":"+'Fixed Income Investments'!E88","v":1.4999999999999999E-2},0,null,null,0]
[null,"BSCR Rating 6","Schedule XXI, Column D",{"$f":"+'Concentration Risk'!D16","v":0},{"$f":"+'Fixed Income Investments'!E89","v":0.04},0,null,null,0]
[null,"BSCR Rating 7","Schedule XXI, Column D",{"$f":"+'Concentration Risk'!D17","v":0},{"$f":"+'Fixed Income Investments'!E90","v":0.06},0,null,null,0]
[null,"BSCR Rating 8","Schedule XXI, Column D",{"$f":"+'Concentration Risk'!D18","v":0},{"$f":"+'Fixed Income Investments'!E91","v":0.09},0,null,null,0]
[]
[null,"(a)  SUBTOTAL - CASH AND CASH EQUIVALENTS",null,{"$f":"SUM(D181:D189)","v":0},null,{"$f":"SUM(F181:F189)","v":0},null,null,{"$f":"SUM(I181:I189)","v":0}]
[]
[null,"(b) Corporate & Sovereign Bonds"]
[null,"BSCR Rating 0","Schedule XXI, Column D",{"$f":"+'Concentration Risk'!D23","v":0},{"$f":"+E15","v":0},{"$f":"MAX(0,(D194*E194))","v":0},null,null,{"$f":"MAX(0,IF(H194=\"\",D194*E194,D194*H194))","v":0}]
[null,"BSCR Rating 1","Schedule XXI, Column D",{"$f":"+'Concentration Risk'!D24","v":0},4.0000000000000001E-3,0,null,null,{"$f":"MAX(0,IF(H195=\"\",D195*E195,D195*H195))","v":0}]
[null,"BSCR Rating 2","Schedule XXI, Column D",{"$f":"+'Concentration Risk'!D25","v":0},8.0000000000000002E-3,0,null,null,0]
[null,"BSCR Rating 3","Schedule XXI, Column D",{"$f":"+'Concentration Risk'!D26","v":0},1.4999999999999999E-2,0,null,null,0]
[null,"BSCR Rating 4","Schedule XXI, Column D",{"$f":"+'Concentration Risk'!D27","v":0},0.03,0,null,null,0]
[null,"BSCR Rating 5","Schedule XXI, Column D",{"$f":"+'Concentration Risk'!D28","v":0},0.08,0,null,null,0]
[null,"BSCR Rating 6","Schedule XXI, Column D",{"$f":"+'Concentration Risk'!D29","v":0},0.15,0,null,null,0]
[null,"BSCR Rating 7","Schedule XXI, Column D",{"$f":"+'Concentration Risk'!D30","v":0},0.26300000000000001,0,null,null,0]
[null,"BSCR Rating 8","Schedule XXI, Column D",{"$f":"+'Concentration Risk'!D31","v":0},0.35,0,null,null,0]
[]
[null,"(b)  SUBTOTAL - CORPORATE & SOVEREIGN BONDS",null,{"$f":"SUM(D194:D202)","v":0},null,{"$f":"SUM(F194:F202)","v":0},null,null,{"$f":"SUM(I194:I202)","v":0}]
[]
[null,"(c) Residential Mortage-Backed Securities"]
[null,"BSCR Rating 0","Schedule XXI, Column D",{"$f":"+'Concentration Risk'!D36","v":0},0,{"$f":"MAX(0,(D207*E207))","v":0},null,null,{"$f":"MAX(0,IF(H207=\"\",D207*E207,D207*H207))","v":0}]
[null,"BSCR Rating 1","Schedule XXI, Column D",{"$f":"+'Concentration Risk'!D37","v":0},{"$f":"+E30","v":6.0000000000000001E-3},0,null,null,{"$f":"MAX(0,IF(H208=\"\",D208*E208,D208*H208))","v":0}]
[null,"BSCR Rating 2","Schedule XXI, Column D",{"$f":"+'Concentration Risk'!D38","v":0},1.2E-2,0,null,null,0]
[null,"BSCR Rating 3","Schedule XXI, Column D",{"$f":"+'Concentration Risk'!D39","v":0},0.02,0,null,null,0]
[null,"BSCR Rating 4","Schedule XXI, Column D",{"$f":"+'Concentration Risk'!D40","v":0},0.04,0,null,null,0]
[null,"BSCR Rating 5","Schedule XXI, Column D",{"$f":"+'Concentration Risk'!D41","v":0},0.11,0,null,null,0]
[null,"BSCR Rating 6","Schedule XXI, Column D",{"$f":"+'Concentration Risk'!D42","v":0},0.25,0,null,null,0]
[null,"BSCR Rating 7","Schedule XXI, Column D",{"$f":"+'Concentration Risk'!D43","v":0},0.35,0,null,null,0]
[null,"BSCR Rating 8","Schedule XXI, Column D",{"$f":"+'Concentration Risk'!D44","v":0},0.35,0,null,null,0]
[]
[null,"(c)  SUBTOTAL - RESIDENTIAL MORTGAGE-BACKED SECURITIES",null,{"$f":"SUM(D207:D215)","v":0},null,{"$f":"SUM(F207:F215)","v":0},null,null,{"$f":"SUM(I207:I215)","v":0}]
[]
[null,"(d) Commercial Mortgage-Backed Securities / Asset-Backed Securities"]
[null,"BSCR Rating 0","Schedule XXI, Column D",{"$f":"+'Concentration Risk'!D49","v":0},{"$f":"+E42","v":0},{"$f":"MAX(0,(D220*E220))","v":0},null,null,{"$f":"MAX(0,IF(H220=\"\",D220*E220,D220*H220))","v":0}]
[null,"BSCR Rating 1","Schedule XXI, Column D",{"$f":"+'Concentration Risk'!D50","v":0},{"$f":"+E44","v":5.0000000000000001E-3},0,null,null,{"$f":"MAX(0,IF(H221=\"\",D221*E221,D221*H221))","v":0}]
[null,"BSCR Rating 2","Schedule XXI, Column D",{"$f":"+'Concentration Risk'!D51","v":0},0.01,0,null,null,0]
[null,"BSCR Rating 3","Schedule XXI, Column D",{"$f":"+'Concentration Risk'!D52","v":0},1.7999999999999999E-2,0,null,null,0]
[null,"BSCR Rating 4","Schedule XXI, Column D",{"$f":"+'Concentration Risk'!D53","v":0},3.5000000000000003E-2,0,null,null,0]
[null,"BSCR Rating 5","Schedule XXI, Column D",{"$f":"+'Concentration Risk'!D54","v":0},0.1,0,null,null,0]
[null,"BSCR Rating 6","Schedule XXI, Column D",{"$f":"+'Concentration Risk'!D55","v":0},0.2,0,null,null,0]
[null,"BSCR Rating 7","Schedule XXI, Column D",{"$f":"+'Concentration Risk'!D56","v":0},0.3,0,null,null,0]
[null,"BSCR Rating 8","Schedule XXI, Column D",{"$f":"+'Concentration Risk'!D57","v":0},0.35,0,null,null,0]
[]
[null,"(d)  SUBTOTAL - COMMERCIAL MORTGAGE-BACKED SECURITIES / ASSET-BACKED SECURITIES",null,{"$f":"SUM(D220:D228)","v":0},null,{"$f":"SUM(F220:F228)","v":0},null,null,{"$f":"SUM(I220:I228)","v":0}]
[]
[null,"(e) Bond Mutual Funds"]
[null,"BSCR Rating 0","Schedule XXI, Column D",{"$f":"+'Concentration Risk'!D62","v":0},{"$f":"+E58","v":0},{"$f":"MAX(0,(D233*E233))","v":0},null,null,{"$f":"MAX(0,IF(H233=\"\",D233*E233,D233*H233))","v":0}]
[null,"BSCR Rating 1","Schedule XXI, Column D",{"$f":"+'Concentration Risk'!D63","v":0},4.0000000000000001E-3,0,null,null,{"$f":"MAX(0,IF(H234=\"\",D234*E234,D234*H234))","v":0}]
[null,"BSCR Rating 2","Schedule XXI, Column D",{"$f":"+'Concentration Risk'!D64","v":0},8.0000000000000002E-3,0,null,null,0]
[null,"BSCR Rating 3","Schedule XXI, Column D",{"$f":"+'Concentration Risk'!D65","v":0},1.4999999999999999E-2,0,null,null,0]
[null,"BSCR Rating 4","Schedule XXI, Column D",{"$f":"+'Concentration Risk'!D66","v":0},0.03,0,null,null,0]
[null,"BSCR Rating 5","Schedule XXI, Column D",{"$f":"+'Concentration Risk'!D67","v":0},0.08,0,null,null,0]
[null,"BSCR Rating 6","Schedule XXI, Column D",{"$f":"+'Concentration Risk'!D68","v":0},0.15,0,null,null,0]
[null,"BSCR Rating 7","Schedule XXI, Column D",{"$f":"+'Concentration Risk'!D69","v":0},0.26300000000000001,0,null,null,0]
[null,"BSCR Rating 8","Schedule XXI, Column D",{"$f":"+'Concentration Risk'!D70","v":0},0.35,0,null,null,0]
[]
[null,"(e)  SUBTOTAL - BOND MUTUAL FUNDS",null,{"$f":"SUM(D233:D241)","v":0},null,{"$f":"SUM(F233:F241)","v":0},null,null,{"$f":"SUM(I233:I241)","v":0}]
[]
[null,"(f) Preferred Shares"]
[null,"BSCR Rating 0","Schedule XXI, Column D",{"$f":"+'Concentration Risk'!D75","v":0},0,{"$f":"MAX(0,(D246*E246))","v":0},null,null,{"$f":"MAX(0,IF(H246=\"\",D246*E246,D246*H246))","v":0}]
[null,"BSCR Rating 1","Schedule XXI, Column D",{"$f":"+'Concentration Risk'!D76","v":0},6.0000000000000001E-3,0,null,null,{"$f":"MAX(0,IF(H247=\"\",D247*E247,D247*H247))","v":0}]
[null,"BSCR Rating 2","Schedule XXI, Column D",{"$f":"+'Concentration Risk'!D77","v":0},1.2E-2,0,null,null,0]
[null,"BSCR Rating 3","Schedule XXI, Column D",{"$f":"+'Concentration Risk'!D78","v":0},0.02,0,null,null,0]
[null,"BSCR Rating 4","Schedule XXI, Column D",{"$f":"+'Concentration Risk'!D79","v":0},0.04,0,null,null,0]
[null,"BSCR Rating 5","Schedule XXI, Column D",{"$f":"+'Concentration Risk'!D80","v":0},0.11,0,null,null,0]
[null,"BSCR Rating 6","Schedule XXI, Column D",{"$f":"+'Concentration Risk'!D81","v":0},0.25,0,null,null,0]
[null,"BSCR Rating 7","Schedule XXI, Column D",{"$f":"+'Concentration Risk'!D82","v":0},0.35,0,null,null,0]
[null,"BSCR Rating 8","Schedule XXI, Column D",{"$f":"+'Concentration Risk'!D83","v":0},0.35,0,null,null,0]
[]
[null,"(f)  SUBTOTAL - PREFERRED SHARES",null,{"$f":"SUM(D246:D254)","v":0},null,{"$f":"SUM(F246:F254)","v":0},null,null,{"$f":"SUM(I246:I254)","v":0}]
[]
[null,"(g) Mortgage Loans"]
[null,"Insured/Guaranteed Mortgages","Schedule XXI, Column D",{"$f":"+'Concentration Risk'!D88","v":0},3.0000000000000001E-3,{"$f":"MAX(0,(D259*E259))","v":0},null,null,{"$f":"MAX(0,IF(H259=\"\",D259*E259,D259*H259))","v":0}]
[null,"Other Commercial and Farm Mortgages","Schedule XXI, Column D",{"$f":"+'Concentration Risk'!D89","v":0},0.05,{"$f":"MAX(0,(D260*E260))","v":0},null,null,{"$f":"MAX(0,IF(H260=\"\",D260*E260,D260*H260))","v":0}]
[null,"Other Residential Mortgages","Schedule XXI, Column D",{"$f":"+'Concentration Risk'!D90","v":0},1.4999999999999999E-2,{"$f":"MAX(0,(D261*E261))","v":0},null,null,{"$f":"MAX(0,IF(H261=\"\",D261*E261,D261*H261))","v":0}]
[null,"Mortgages Not In Good Standing","Schedule XXI, Column D",{"$f":"+'Concentration Risk'!D91","v":0},0.25,{"$f":"MAX(0,(D262*E262))","v":0},null,null,{"$f":"MAX(0,IF(H262=\"\",D262*E262,D262*H262))","v":0}]
[]
[null,"(g)  SUBTOTAL - MORTGAGE LOANS",null,{"$f":"SUM(D259:D263)","v":0},null,{"$f":"SUM(F259:F263)","v":0},null,null,{"$f":"SUM(I259:I263)","v":0}]
[]
[null,"(h) Other Asset Classes"]
[null,"Common Stock and Mutual Funds","Schedule XXI, Column D",{"$f":"+'Concentration Risk'!D96","v":0},0.14399999999999999,{"$f":"MAX(0,(D267*E267))","v":0},null,null,{"$f":"MAX(0,IF(H267=\"\",D267*E267,D267*H267))","v":0}]
[null,"Other Investments","Schedule XXI, Column D",{"$f":"+'Concentration Risk'!D97","v":0},0.2,0,null,null,0]
[null,"Investment in Affiliates – Unregulated entities that conduct ancillary services",null,{"$f":"+'Concentration Risk'!D98","v":0},0.05,0,null,null,0]
[null,"Investment in Affiliates - Unregulated non-financial operating entities",null,{"$f":"+'Concentration Risk'!D99","v":0},0.2,0,null,null,0]
[null,"Investment in Affiliates - Unregulated financial operating entities",null,{"$f":"+'Concentration Risk'!D100","v":0},{"$f":"'Concentration Risk'!E101","v":0.55000000000000004},0,null,null,0]
[null,"Investment in Affiliates - Regulated non-insurance financial operating entities",null,{"$f":"+'Concentration Risk'!D101","v":0},0.55000000000000004,0,null,null,0]
[null,"Investment in Affiliates - Regulated insurance financial operating entities",null,{"$f":"+'Concentration Risk'!D102","v":0},0.2,0,null,null,0]
[null,"Advances to Affiliates - ","Schedule XXI, Column D",{"$f":"+'Concentration Risk'!D103","v":0},0.05,0,null,null,0]
[null,"Policy Loans","Schedule XXI, Column D",{"$f":"+'Concentration Risk'!D104","v":0},0,0,null,null,0]
[null,"Real Estate: Occupied by company","Schedule XXI, Column D",{"$f":"+'Concentration Risk'!D105","v":0},0.1,0,null,null,0]
[null,"Real Estate: Other properties","Schedule XXI, Column D",{"$f":"+'Concentration Risk'!D106","v":0},0.2,0,null,null,0]
[null,"Collateral Loans","Schedule XXI, Column D",{"$f":"+'Concentration Risk'!D107","v":0},0.05,0,null,null,0]
[]
[null,"(h)  SUBTOTAL - OTHER CONCENTRATION RISK",null,{"$f":"SUM(D267:D279)","v":0},null,{"$f":"SUM(F267:F279)","v":0},null,null,{"$f":"SUM(I267:I279)","v":0}]
[]
[null,"TOTAL CONCENTRATION RISK",null,{"$f":"D191+D204+D217+D230+D243+D256+D264+D280","v":0},null,{"$f":"F191+F204+F217+F230+F243+F256+F264+F280","v":0},null,null,{"$f":"I191+I204+I217+I230+I243+I256+I264+I280","v":0}]
[]
[]
[null,null,null,null,"STANDARD","STANDARD",null,"USER","USER"]
[null,"TYPE OF ",null,"ASSET","CAPITAL","REQUIRED",null,"CAPITAL","REQUIRED"]
[null,"INTEREST RATE/LIQUIDITY RISK","STATEMENT SOURCE","VALUE","FACTOR","CAPITAL",null,"FACTOR","CAPITAL"]
[]
[null,"Bonds and Debentures ","Sch IIB EBS & IIC EBS Column (11), Line 1-9",{"$f":"SUM('Schedule IIB (EBS)'!X13:X21)+SUM('Schedule IIC (EBS)'!X13:X21)","v":0},{"$f":"IF('Schedule V'!$F$12-'Schedule V'!$F$14>=1,'Schedule V'!$F$12-'Schedule V'!$F$14,IF('Schedule V'!$F$14-'Schedule V'!$F$12>=1,'Schedule V'!$F$14-'Schedule V'!$F$12,1))*2%","v":0.02},{"$f":"IF(D289<0,0,D289*E289)","v":0},null,null,{"$f":"MAX(0,IF(H289=\"\",E289*D289,D289*H289))","v":0}]
[null,"Preferred Stocks ","Sch IIB EBS & IIC EBS Column (11), Line 18-25",{"$f":"SUM('Schedule IIB (EBS)'!X42:X49)+SUM('Schedule IIC (EBS)'!X42:X49)","v":0},{"$f":"IF('Schedule V'!$F$12-'Schedule V'!$F$14>=1,'Schedule V'!$F$12-'Schedule V'!$F$14,IF('Schedule V'!$F$14-'Schedule V'!$F$12>=1,'Schedule V'!$F$14-'Schedule V'!$F$12,1))*2%","v":0.02},{"$f":"IF(D290<0,0,D290*E290)","v":0},null,null,{"$f":"MAX(0,IF(H290=\"\",E290*D290,D290*H290))","v":0}]
[null,"Mortgage Loans","Sch IIB EBS & IIC EBS Column (11), Line 10-13",{"$f":"SUM('Schedule IIB (EBS)'!X22:X25)+SUM('Schedule IIC (EBS)'!X22:X25)","v":0},{"$f":"IF('Schedule V'!$F$12-'Schedule V'!$F$14>=1,'Schedule V'!$F$12-'Schedule V'!$F$14,IF('Schedule V'!$F$14-'Schedule V'!$F$12>=1,'Schedule V'!$F$14-'Schedule V'!$F$12,1))*2%","v":0.02},{"$f":"IF(D291<0,0,D291*E291)","v":0},null,null,{"$f":"MAX(0,IF(H291=\"\",E291*D291,D291*H291))","v":0}]
[]
[null,"TOTAL INTEREST RATE / LIQUIDITY RISK",null,{"$f":"SUM(D289:D291)","v":0},null,{"$f":"SUM(F289:F291)","v":0},null,null,{"$f":"SUM(I289:I291)","v":0}]
[]
[null,null,null,"GEO","STANDARD","STANDARD",null,"USER","USER"]
[null,"TYPE OF ",null,"DIVERSIFIED","CAPITAL","REQUIRED",null,"CAPITAL","REQUIRED"]
[null,"PREMIUM RISK","STATEMENT SOURCE","PREMIUMS","FACTOR","CAPITAL",null,"FACTOR","CAPITAL"]
[]
[null,"Property Catastrophe","Schedule IV, Line (1)",{"$f":"+'Geographic Diversification'!H9","v":0},{"$f":"+'Premium Risk'!G11","v":0},{"$f":"IF(D299<0,0,D299*E299)","v":0},null,null,{"$f":"MAX(0,IF(H299=\"\",E299*D299,D299*H299))","v":0}]
[null,"Property","Schedule IV, Line (2)",{"$f":"+'Geographic Diversification'!H10","v":0},{"$f":"+'Premium Risk'!G12","v":0.49745002535505289},{"$f":"IF(D300<0,0,D300*E300)","v":0},null,null,0]
[null,"Property Non-Proportional","Schedule IV, Line (3)",{"$f":"+'Geographic Diversification'!H11","v":0},{"$f":"+'Premium Risk'!G13","v":0.51625715924082138},0,null,null,0]
[null,"Personal Accident","Schedule IV, Line (4)",{"$f":"+'Geographic Diversification'!H12","v":0},{"$f":"+'Premium Risk'!G14","v":0.34115345724240687},0,null,null,0]
[null,"Personal Accident Non-Proportional","Schedule IV, Line (5)",{"$f":"+'Geographic Diversification'!H13","v":0},{"$f":"+'Premium Risk'!G15","v":0.41221262895987398},0,null,null,0]
[null,"Aviation","Schedule IV, Line (6)",{"$f":"+'Geographic Diversification'!H14","v":0},{"$f":"+'Premium Risk'!G16","v":0.48178449435856341},0,null,null,0]
[null,"Aviation Non-Proportional","Schedule IV, Line (7)",{"$f":"+'Geographic Diversification'!H15","v":0},{"$f":"+'Premium Risk'!G17","v":0.48201231799963595},0,null,null,0]
[null,"Credit / Surety","Schedule IV, Line (8)",{"$f":"+'Geographic Diversification'!H16","v":0},{"$f":"+'Premium Risk'!G18","v":0.3982052200525078},0,null,null,0]
[null,"Credit / Surety Non-Proportional","Schedule IV, Line (9)",{"$f":"+'Geographic Diversification'!H17","v":0},{"$f":"+'Premium Risk'!G19","v":0.45356665999464663},0,null,null,0]
[null,"Energy Offshore / Marine","Schedule IV, Line (10)",{"$f":"+'Geographic Diversification'!H18","v":0},{"$f":"+'Premium Risk'!G20","v":0.4210234465607684},0,null,null,0]
[null,"Energy Offshore / Marine Non-Proportional","Schedule IV, Line (11)",{"$f":"+'Geographic Diversification'!H19","v":0},{"$f":"+'Premium Risk'!G21","v":0.47016820069929888},0,null,null,0]
[null,"US Casualty","Schedule IV, Line (12)",{"$f":"+'Geographic Diversification'!H20","v":0},{"$f":"+'Premium Risk'!G22","v":0.50272577892886261},0,null,null,0]
[null,"US Casualty Non-Proportional","Schedule IV, Line (13)",{"$f":"+'Geographic Diversification'!H21","v":0},{"$f":"+'Premium Risk'!G23","v":0.55581407345277534},0,null,null,0]
[null,"US Professional","Schedule IV, Line (14)",{"$f":"+'Geographic Diversification'!H22","v":0},{"$f":"+'Premium Risk'!G24","v":0.51225206482709473},0,null,null,0]
[null,"US Professional Non-Proportional","Schedule IV, Line (15)",{"$f":"+'Geographic Diversification'!H23","v":0},{"$f":"+'Premium Risk'!G25","v":0.53805556666757759},0,null,null,0]
[null,"US Specialty","Schedule IV, Line (16)",{"$f":"+'Geographic Diversification'!H24","v":0},{"$f":"+'Premium Risk'!G26","v":0.51436147942106603},0,null,null,0]
[null,"US Specialty Non-Proportional","Schedule IV, Line (17)",{"$f":"+'Geographic Diversification'!H25","v":0},{"$f":"+'Premium Risk'!G27","v":0.52697789035313269},0,null,null,0]
[null,"International Motor","Schedule IV, Line (18)",{"$f":"+'Geographic Diversification'!H26","v":0},{"$f":"+'Premium Risk'!G28","v":0.4219175611793351},0,null,null,0]
[null,"International Motor Non-Proportional","Schedule IV, Line (19)",{"$f":"+'Geographic Diversification'!H27","v":0},{"$f":"+'Premium Risk'!G29","v":0.48221088542932422},0,null,null,0]
[null,"International Casualty Non-Motor","Schedule IV, Line (20)",{"$f":"+'Geographic Diversification'!H28","v":0},{"$f":"+'Premium Risk'!G30","v":0.50012106835589665},0,null,null,0]
[null,"International Casualty Non-Motor Non-Proportional","Schedule IV, Line (21)",{"$f":"+'Geographic Diversification'!H29","v":0},{"$f":"+'Premium Risk'!G31","v":0.53551360019381988},0,null,null,0]
[null,"Retro Property","Schedule IV, Line (22)",{"$f":"+'Geographic Diversification'!H30","v":0},{"$f":"+'Premium Risk'!G32","v":0.50803089843617277},0,null,null,0]
[null,"Structured / Finite Reinsurance","Schedule IV, Line (23)",{"$f":"+'Geographic Diversification'!H31","v":0},{"$f":"+'Premium Risk'!G33","v":0.27200000000000002},0,null,null,0]
[null,"Health","Schedule IV, Line (24)",{"$f":"+'Geographic Diversification'!H32","v":0},{"$f":"+'Premium Risk'!G34","v":0.15},0,null,null,0]
[]
[null,"(a)  TOTAL",null,{"$f":"SUM(D299:D322)","v":0},null,{"$f":"SUM(F299:F323)","v":0},null,null,{"$f":"SUM(I299:I322)","v":0}]
[]
[null,"(b)  CONCENTRATION ADJUSTMENT CALCULATION"]
[]
[null,"(i)","Maximum Premium [ Maximum (1a) excl Prop CAT ]",null,null,{"$f":"MAX(D300:D322)","v":0},null,null,{"$f":"MAX(D300:D322)","v":0}]
[null,"(ii)","Total Premium [ Total (1a) excl Prop CAT ]",null,null,{"$f":"D324-D299","v":0},null,null,{"$f":"D324-D299","v":0}]
[null,"(iii)","Maximum Premium / Total Premium [ (i) / (ii) ]",null,null,{"$f":"IF(F329=0,0,F328/F329)","v":0},null,null,{"$f":"IF(I329=0,0,I328/I329)","v":0}]
[null,"(iv)","Maximum Adjustment",null,null,{"$f":"+F387","v":0.4},null,null,{"$f":"+I387","v":0.4}]
[null,"(v)","[ (iii) x (iv) ]",null,null,{"$f":"F330*F331","v":0},null,null,{"$f":"I330*I331","v":0}]
[null,"(vi)","Minimum Adjustment Factor",null,null,{"$f":"1-F331","v":0.6},null,null,{"$f":"1-I331","v":0.6}]
[]
[null,"(b)  CONCENTRATION ADJUSTMENT FACTOR [ (v) + (vi) ]",null,null,null,{"$f":"F332+F333","v":0.6},null,null,{"$f":"I332+I333","v":0.6}]
[]
[null,"(c)  REQUIRED CAPITAL CHARGE  [ TOTAL (a) x (b) ]",null,null,null,{"$f":"IF(F324=0,0,F324*F335)","v":0},null,null,{"$f":"IF(I324=0,0,I324*I335)","v":0}]
[]
[null,"(d)  CATASTROPHE PREMIUM ADJUSTMENT CALCULATION"]
[]
[null,"(i)","Average Annual Loss (AAL) Excluding Property Catastrophe",null,null,{"$f":"+F441","v":0},null,null,{"$f":"+I441","v":0}]
[null,"(ii)","Industry Catastrophe Loss Ratio",null,null,{"$f":"+F443","v":0.4},null,null,{"$f":"+F342","v":0.4}]
[null,"(iii)","Avg Capital Factor  [ Total (3c) / (Total (1a) excl Prop CAT) ]",null,null,{"$f":"IF(F329=0,0,F337/F329)","v":0},null,null,{"$f":"IF(I329=0,0,I337/I329)","v":0}]
[]
[null,"(d)  CATASTROPHE PREMIUM ADJUSTMENT  [ (i) / (ii) x (iii) ]",null,null,null,{"$f":"F341/F342*F343","v":0},null,null,{"$f":"IF(I342=0,0,I341/I342*I343)","v":0}]
[]
[null,"(e)  TOTAL PREMIUM RISK (AFTER CAT PREMIUM ADJUSTMENT)   [ (c) - (d) ]",null,null,null,{"$f":"IF(F337-F345>=0,F337-F345,0)","v":0},null,null,{"$f":"IF(I337-I345>=0,I337-I345,0)","v":0}]
[]
[null,null,null,"GEO","STANDARD","STANDARD",null,"USER","USER"]
[null,"TYPE OF ",null,"DIVERSIFIED","CAPITAL","REQUIRED",null,"CAPITAL","REQUIRED"]
[null,"RESERVE RISK","STATEMENT SOURCE","PROVISIONS","FACTOR","CAPITAL",null,"FACTOR","CAPITAL"]
[]
[null,null,null,"(1) ","(2)","(1) x (2)",null,"(3)","(1) x (3)"]
[]
[null,"Property Catastrophe","Sch III EBS, Line (1)",{"$f":"'Geographic Diversification'!H40","v":0},{"$f":"+'Reserve Risk'!G11","v":0.46158858246802104},{"$f":"IF(D355<0,0,D355*E355)","v":0},null,null,{"$f":"MAX(0,IF(H355=\"\",E355*D355,D355*H355))","v":0}]
[null,"Property","Sch III EBS, Line (2)",{"$f":"'Geographic Diversification'!H41","v":0},{"$f":"+'Reserve Risk'!G12","v":0.43844984238218698},{"$f":"IF(D356<0,0,D356*E356)","v":0},null,null,0]
[null,"Property Non-Proportional","Sch III EBS, Line (3)",{"$f":"'Geographic Diversification'!H42","v":0},{"$f":"+'Reserve Risk'!G13","v":0.49735573879030043},0,null,null,0]
[null,"Personal Accident","Sch III EBS, Line (4)",{"$f":"'Geographic Diversification'!H43","v":0},{"$f":"+'Reserve Risk'!G14","v":0.29666070682155377},0,null,null,0]
[null,"Personal Accident Non-Proportional","Sch III EBS, Line (5)",{"$f":"'Geographic Diversification'!H44","v":0},{"$f":"+'Reserve Risk'!G15","v":0.34876523067975901},0,null,null,0]
[null,"Aviation","Sch III EBS, Line (6)",{"$f":"'Geographic Diversification'!H45","v":0},{"$f":"+'Reserve Risk'!G16","v":0.45952604952349801},0,null,null,0]
[null,"Aviation Non-Proportional","Sch III EBS, Line (7)",{"$f":"'Geographic Diversification'!H46","v":0},{"$f":"+'Reserve Risk'!G17","v":0.48255646377949879},0,null,null,0]
[null,"Credit / Surety","Sch III EBS, Line (8)",{"$f":"'Geographic Diversification'!H47","v":0},{"$f":"+'Reserve Risk'!G18","v":0.38368268064999406},0,null,null,0]
[null,"Credit / Surety Non-Proportional","Sch III EBS, Line (9)",{"$f":"'Geographic Diversification'!H48","v":0},{"$f":"+'Reserve Risk'!G19","v":0.43464696624596888},0,null,null,0]
[null,"Energy Offshore / Marine","Sch III EBS, Line (10)",{"$f":"'Geographic Diversification'!H49","v":0},{"$f":"+'Reserve Risk'!G20","v":0.39543823911176518},0,null,null,0]
[null,"Energy Offshore / Marine Non-Proportional","Sch III EBS, Line (11)",{"$f":"'Geographic Diversification'!H50","v":0},{"$f":"+'Reserve Risk'!G21","v":0.4394578357755653},0,null,null,0]
[null,"US Casualty","Sch III EBS, Line (12)",{"$f":"'Geographic Diversification'!H51","v":0},{"$f":"+'Reserve Risk'!G22","v":0.43018098459069698},0,null,null,0]
[null,"US Casualty Non-Proportional","Sch III EBS, Line (13)",{"$f":"'Geographic Diversification'!H52","v":0},{"$f":"+'Reserve Risk'!G23","v":0.48842309052279492},0,null,null,0]
[null,"US Professional","Sch III EBS, Line (14)",{"$f":"'Geographic Diversification'!H53","v":0},{"$f":"+'Reserve Risk'!G24","v":0.46275283271069756},0,null,null,0]
[null,"US Professional Non-Proportional","Sch III EBS, Line (15)",{"$f":"'Geographic Diversification'!H54","v":0},{"$f":"+'Reserve Risk'!G25","v":0.51484129765284659},0,null,null,0]
[null,"US Specialty","Sch III EBS, Line (16)",{"$f":"'Geographic Diversification'!H55","v":0},{"$f":"+'Reserve Risk'!G26","v":0.46506790223690625},0,null,null,0]
[null,"US Specialty Non-Proportional","Sch III EBS, Line (17)",{"$f":"'Geographic Diversification'!H56","v":0},{"$f":"+'Reserve Risk'!G27","v":0.48276028402747928},0,null,null,0]
[null,"International Motor","Sch III EBS, Line (18)",{"$f":"'Geographic Diversification'!H57","v":0},{"$f":"+'Reserve Risk'!G28","v":0.37080464615634018},0,null,null,0]
[null,"International Motor Non-Proportional","Sch III EBS, Line (19)",{"$f":"'Geographic Diversification'!H58","v":0},{"$f":"+'Reserve Risk'!G29","v":0.43541657269369022},0,null,null,0]
[null,"International Casualty Non-Motor","Sch III EBS, Line (20)",{"$f":"'Geographic Diversification'!H59","v":0},{"$f":"+'Reserve Risk'!G30","v":0.4365238613251069},0,null,null,0]
[null,"International Casualty Non-Motor Non-Proportional","Sch III EBS, Line (21)",{"$f":"'Geographic Diversification'!H60","v":0},{"$f":"+'Reserve Risk'!G31","v":0.49410327959272171},0,null,null,0]
[null,"Retro Property","Sch III EBS, Line (22)",{"$f":"'Geographic Diversification'!H61","v":0},{"$f":"+'Reserve Risk'!G32","v":0.47845206530716233},0,null,null,0]
[null,"Structured / Finite Reinsurance","Sch III EBS, Line (23)",{"$f":"'Geographic Diversification'!H62","v":0},{"$f":"+'Reserve Risk'!G33","v":0.24099999999999999},0,null,null,0]
[null,"Health","Sch III EBS, Line (24)",{"$f":"'Geographic Diversification'!H63","v":0},{"$f":"+'Reserve Risk'!G34","v":0.125},0,null,null,0]
[]
[null,"(a)  TOTAL",null,{"$f":"SUM(D355:D378)","v":0},null,{"$f":"SUM(F355:F379)","v":0},null,null,{"$f":"SUM(I355:I379)","v":0}]
[]
[null,"(b)  CONCENTRATION ADJUSTMENT CALCULATION"]
[]
[null,"(i)","Maximum Reserve [ Maximum (1a) ]",null,null,{"$f":"MAX(D355:D378)","v":0},null,null,{"$f":"MAX(D355:D378)","v":0}]
[null,"(ii)","Total Reserve [ Total (1a) ]",null,null,{"$f":"D380","v":0},null,null,{"$f":"D380","v":0}]
[null,"(iii)","Maximum Reserve / Total Reserve [ (i) / (ii) ]",null,null,{"$f":"IF(F385=0,0,F384/F385)","v":0},null,null,{"$f":"IF(I385=0,0,I384/I385)","v":0}]
[null,"(iv)","Maximum Adjustment",null,null,0.4,null,null,0.4]
[null,"(v)"," [ (iii) x (iv) ]",null,null,{"$f":"F386*F387","v":0},null,null,{"$f":"I386*I387","v":0}]
[null,"(vi)","Minimum Adjustment Factor",null,null,{"$f":"1-F387","v":0.6},null,null,{"$f":"1-I387","v":0.6}]
[]
[null,"(b)  CONCENTRATION ADJUSTMENT FACTOR [ (v) + (vi) ]",null,null,null,{"$f":"F389+F388","v":0.6},null,null,{"$f":"I389+I388","v":0.6}]
[]
[null,"(c)  TOTAL RESERVE RISK  [ Total (a) x (b) ]",null,null,null,{"$f":"IF(F380*F391>=0,F380*F391,0)","v":0},null,null,{"$f":"IF(I380*I391>=0,I380*I391,0)","v":0}]
[]
[null,null,null,null,"STANDARD","STANDARD",null,"USER","USER"]
[null,"TYPE OF ",null,"ASSET","CAPITAL","REQUIRED",null,"CAPITAL","REQUIRED"]
[null,"CREDIT RISK","STATEMENT SOURCE","VALUE","FACTOR","CAPITAL",null,"FACTOR","CAPITAL"]
[]
[null,"(a)  Accounts and Premiums Receivable",null,"(1) ","(2)","(1) x (2)",null,"(3)","(1) x (3)"]
[]
[null,"In Course of Collection","Form 1EBS, Line (10a)",{"$f":"+'Form 1EBS'!F61","v":0},{"$f":"+'Credit Risk'!E11","v":0.05},{"$f":"IF(D401<0,0,D401*E401)","v":0},null,null,{"$f":"MAX(0,IF(H401=\"\",E401*D401,D401*H401))","v":0}]
[null,"Receivables from retrocessional contracts                            Less: Collateralized Balances","Form 1EBS, Line (10c), Notes to Form 1EBS, \nLine (10)",{"$f":"+'Form 1EBS'!F62-'Form 1EBS'!F225","v":0},{"$f":"+'Credit Risk'!E12","v":0.1},{"$f":"(D402*E402)","v":0},null,null,{"$f":"IF(H402=\"\",E402*D402,D402*H402)","v":0}]
[]
[null,"(a)  SUBTOTAL - ACCOUNTS AND PREMIUMS RECEIVABLE",null,{"$f":"SUM(D401:D402)","v":0},null,{"$f":"IF(SUM(F401:F402)>=0,SUM(F401:F402),0)","v":0},null,null,{"$f":"IF(SUM(I401:I402)>=0,SUM(I401:I402),0)","v":0}]
[]
[null,"(b)  All Other Receivables"]
[]
[null,"Advances to Affiliates","Form 1EBS, Line (4g)",{"$f":"+'Form 1EBS'!F41","v":0},{"$f":"+'Credit Risk'!E18","v":0.05},{"$f":"IF(D408<0,0,D408*E408)","v":0},null,null,{"$f":"MAX(0,IF(H408=\"\",E408*D408,D408*H408))","v":0}]
[null,"Accrued Investment Income","Form 1EBS, Line (9)",{"$f":"+'Form 1EBS'!F58","v":0},{"$f":"+'Credit Risk'!E19","v":2.5000000000000001E-2},{"$f":"IF(D409<0,0,D409*E409)","v":0},null,null,{"$f":"MAX(0,IF(H409=\"\",E409*D409,D409*H409))","v":0}]
[null,"Policy Loans","Form 1EBS, Line (6)",{"$f":"+'Form 1EBS'!F49","v":0},{"$f":"+'Credit Risk'!E20","v":0},{"$f":"IF(D410<0,0,D410*E410)","v":0},null,null,{"$f":"MAX(0,IF(H410=\"\",E410*D410,D410*H410))","v":0}]
[]
[null,"(b)  SUBTOTAL - ALL OTHER RECEIVABLES",null,{"$f":"SUM(D408:D410)","v":0},null,{"$f":"IF(SUM(F408:F410)>=0,SUM(F408:F410),0)","v":0},null,null,{"$f":"IF(SUM(I408:I410)>=0,SUM(I408:I410),0)","v":0}]
[]
[null,"(c) Particulars of Reinsurance Balances By BSCR Rating"]
[]
[null,"BSCR Rating 0 (Domestic Affiliates)","Schedule XVIII, Column O",{"$f":"+'Schedule XVIII (EBS)'!R84","v":0},{"$f":"+'Credit Risk'!E31","v":0},{"$f":"IF(D416<0,0,D416*E416)","v":0},null,null,{"$f":"MAX(0,IF(H416=\"\",E416*D416,D416*H416))","v":0}]
[null,"BSCR Rating 1","Schedule XVIII, Column O",{"$f":"+'Schedule XVIII (EBS)'!R85","v":0},{"$f":"+'Credit Risk'!E32","v":7.0000000000000001E-3},0,null,null,0]
[null,"BSCR Rating 2","Schedule XVIII, Column O",{"$f":"+'Schedule XVIII (EBS)'!R86","v":0},{"$f":"+'Credit Risk'!E33","v":1.4999999999999999E-2},0,null,null,0]
[null,"BSCR Rating 3","Schedule XVIII, Column O",{"$f":"+'Schedule XVIII (EBS)'!R87","v":0},{"$f":"+'Credit Risk'!E34","v":3.5000000000000003E-2},0,null,null,0]
[null,"BSCR Rating 4","Schedule XVIII, Column O",{"$f":"+'Schedule XVIII (EBS)'!R88","v":0},{"$f":"+'Credit Risk'!E35","v":7.0000000000000007E-2},0,null,null,0]
[null,"BSCR Rating 5","Schedule XVIII, Column O",{"$f":"+'Schedule XVIII (EBS)'!R89","v":0},{"$f":"+'Credit Risk'!E36","v":0.12},0,null,null,0]
[null,"BSCR Rating 6","Schedule XVIII, Column O",{"$f":"+'Schedule XVIII (EBS)'!R90","v":0},{"$f":"+'Credit Risk'!E37","v":0.2},0,null,null,0]
[null,"BSCR Rating 7","Schedule XVIII, Column O",{"$f":"+'Schedule XVIII (EBS)'!R91","v":0},{"$f":"+'Credit Risk'!E38","v":0.27},0,null,null,0]
[null,"BSCR Rating 8","Schedule XVIII, Column O",{"$f":"+'Schedule XVIII (EBS)'!R92","v":0},{"$f":"+'Credit Risk'!E39","v":0.35},0,null,null,0]
[]
[null,"Total",null,null,null,{"$f":"SUM(F416:F425)","v":0},null,null,{"$f":"SUM(I416:I425)","v":0}]
[]
[null,"Diversification Adjustment at 40%",null,null,null,{"$f":"SUM(F416:F424)*-('Schedule XVIII (EBS)'!R101)","v":0},null,null,{"$f":"SUM(I416:I424)*-('Schedule XVIII (EBS)'!R101)","v":0}]
[]
[null,"(c)  SUBTOTAL - PARTICULARS OF REINSURANCE BALANCES",null,{"$f":"SUM(D416:D428)","v":0},null,{"$f":"IF(SUM(F426:F428)>=0,SUM(F426:F428),0)","v":0},null,null,{"$f":"IF(SUM(I426:I428)>=0,SUM(I426:I428),0)","v":0}]
[]
[null,"(d)  TOTAL CREDIT RISK  [ (a) + (b) + (c) ]",null,{"$f":"D430+D412+D404","v":0},null,{"$f":"F430+F412+F404","v":0},null,null,{"$f":"I430+I412+I404","v":0}]
[]
[null,"TYPE OF "]
[null,"CATASTROPHE RISK","STATEMENT SOURCE"]
[]
[null,"(a)  Gross PML","Schedule V, Line (g)",null,null,{"$f":"+'Schedule V'!F18","v":0},null,null,{"$f":"+F437","v":0}]
[]
[null,"(b)  Net PML","Schedule V, Line (h)",null,null,{"$f":"+'Schedule V'!F20","v":0},null,null,{"$f":"+F439","v":0}]
[]
[null,"(c)  Average Annual Loss (AAL) Excluding Property Catastrophe","Schedule V, Line (i)",null,null,{"$f":"+'Schedule V'!F22","v":0},null,null,{"$f":"+F441","v":0}]
[]
[null,"(d)  Industry Catastrophe Loss Ratio",null,null,null,{"$f":"+'Catastrophe Risk'!E12","v":0.4},null,null,0.4]
[]
[null,"(e)  Property Catastrophe Premium","Schedule IV, Line (1)",null,null,{"$f":"+'Schedule IVA'!Q11","v":0},null,null,{"$f":"+F445","v":0}]
[]
[null,"(f)  Total Catastrophe Premium  [ (c) / (d) + (e) ]",null,null,null,{"$f":"F441/F443+IF(F445>0,F445,0)","v":0},null,null,{"$f":"IF(I443=\"\",IF(F443=0,0,I441/F443+IF(I445>0,I445,0)),IF(I443=0,0,I441/I443+IF(I445>0,I445,0)))","v":0}]
[]
[null,"(g)  Credit Risk Capital Factor",null,null,null,{"$f":"+'Catastrophe Risk'!E18","v":0.1},null,null,0.1]
[]
[null,"(h) Arrangements with Respect to Property Catastrophe Recoverables",null,null,null,{"$f":"+'Schedule V'!F31","v":0},null,null,{"$f":"+'Schedule V'!F31","v":0}]
[]
[null,"(i)  Credit Risk Charge [ ((a) - (b)) - ((h) * 0.98) * (g) ]",null,null,null,{"$f":"MAX(0,((F437-F439)-(F451*98%))*F449)","v":0},null,null,{"$f":"MAX(0,((I437-I439)-(I451*98%))*I449)","v":0}]
[]
[null,"(j)  REQUIRED CAPITAL FOR CATASTROPHE RISK  [ (b) - (f) + (i) ]",null,null,null,{"$f":"IF((F439-F447)>=0,F439-F447+F453,F453)","v":0},null,null,{"$f":"IF((I439-I447)>=0,I439-I447+I453,I453)","v":0}]
[]
[null,null,null,null,null,"STANDARD",null,"USER","USER"]
[null,null,null,"Net Amount of Risk",null,"REQUIRED",null,"CAPITAL","REQUIRED"]
[null,"Mortality","Statement Source","Adjustable","Non-Adjust","CAPITAL",null,"FACTOR","CAPITAL"]
[]
[null,"Mortality","Sch VII EBS, Line 1, Column (9) and Sch VII EBS, Line 1, Column (10)",{"$f":"'Schedule VII (EBS)'!H10","v":0},{"$f":"'Schedule VII (EBS)'!I10","v":0},{"$f":"(IF(D461>1000000,1.985*1000000,1.985*D461)/1000)+(IF(D461<1000000,0,IF(D461>5000000,0.9*4000000,0.9*(D461-1000000)))/1000)+(IF(D461<5000000,0,IF(D461>10000000,0.72*5000000,0.72*(D461-5000000)))/1000)+(IF(D461<10000000,0,IF(D461>50000000,0.645*40000000,0.645*(D461-10000000)))/1000)+(IF(D461<50000000,0,0.565*(D461-50000000))/1000)+(IF(E461>1000000,3.97*1000000,3.97*E461)/1000)+(IF(E461<1000000,0,IF(E461>5000000,1.8*4000000,1.8*(E461-1000000)))/1000)+(IF(E461<5000000,0,IF(E461>10000000,1.44*5000000,1.44*(E461-5000000)))/1000)+(IF(E461<10000000,0,IF(E461>50000000,1.29*40000000,1.29*(E461-10000000)))/1000)+(IF(E461<50000000,0,1.13*(E461-50000000))/1000)","v":0},null,null,{"$f":"IF(H461=\"\",F461,(D461+E461)*H461)","v":0}]
[]
[null,null,null,null,null,"STANDARD",null,"USER","USER"]
[null,null,null,"Net Annual Premium",null,"REQUIRED",null,"CAPITAL","REQUIRED"]
[null,"Morbidity","Statement Source","<2 years",">2 years","CAPITAL",null,"FACTOR","CAPITAL"]
[]
[null,"Critical Illness","Sch VII EBS, Line 2, Column (9) and Sch VII EBS, Line 2, Column (10)",{"$f":"'Schedule VII (EBS)'!H11","v":0},{"$f":"'Schedule VII (EBS)'!I11","v":0},{"$f":"(IF(D467>1000000,5.955*1000000,5.955*D467)/1000)+(IF(D467<1000000,0,IF(D467>5000000,2.7*4000000,2.7*(D467-1000000)))/1000)+(IF(D467<5000000,0,IF(D467>10000000,2.16*5000000,2.16*(D467-5000000)))/1000)+(IF(D467<10000000,0,IF(D467>50000000,1.935*40000000,1.935*(D467-10000000)))/1000)+(IF(D467<50000000,0,1.695*(D467-50000000))/1000)+(IF(E467>1000000,11.91*1000000,11.91*E467)/1000)+(IF(E467<1000000,0,IF(E467>5000000,5.4*4000000,5.4*(E467-1000000)))/1000)+(IF(E467<5000000,0,IF(E467>10000000,4.32*5000000,4.32*(E467-5000000)))/1000)+(IF(E467<10000000,0,IF(E467>50000000,3.87*40000000,3.87*(E467-10000000)))/1000)+(IF(E467<50000000,0,3.39*(E467-50000000))/1000)","v":0},null,null,{"$f":"IF(H467=\"\",F467,(D467+E467)*H467)","v":0}]
[]
[null,"Dis Inc:Claims in Pymnt (1)","Schedule VII EBS, Line 9, Column (7)",{"$f":"'Schedule VII (EBS)'!F38","v":0},null,{"$f":"D469*7%","v":0},null,null,{"$f":"IF(H469=\"\",F469,D469*H469)","v":0}]
[null,"Dis Inc:Claims in Pymnt (2)","Schedule VII EBS, Line 10, Column (7)",{"$f":"'Schedule VII (EBS)'!F39","v":0},null,{"$f":"D470*10%","v":0},null,null,{"$f":"IF(H470=\"\",F470,D470*H470)","v":0}]
[]
[null,"Other Accident & Sickness","Schedule VII EBS, Line 8, Column (11)",{"$f":"'Schedule VII (EBS)'!J37","v":0},null,{"$f":"D472*12%","v":0},null,null,{"$f":"IF(H472=\"\",F472,D472*H472)","v":0}]
[]
[null,"Disability Income: Active Lives"]
[null,"< = 1 Year","Sch VII EBS, Line 7(a), Column (9) and Sch VII EBS, Line 7(a), Column (10)",{"$f":"'Schedule VII (EBS)'!H33","v":0},{"$f":"'Schedule VII (EBS)'!I33","v":0},{"$f":"D475*9%+E475*12%","v":0},null,null,{"$f":"IF(H475=\"\",F475,(D475+E475)*H475)","v":0}]
[null,"1 - 5 years","Sch VII EBS, Line 7(b), Column (9) and Sch VII EBS, Line 7(b), Column (10)",{"$f":"'Schedule VII (EBS)'!H34","v":0},{"$f":"'Schedule VII (EBS)'!I34","v":0},{"$f":"D476*15%+E476*20%","v":0},null,null,{"$f":"IF(H476=\"\",F476,(D476+E476)*H476)","v":0}]
[null,"> 5 years","Sch VII EBS, Line 7(c), Column (9) and Sch VII EBS, Line 7(c), Column (10)",{"$f":"'Schedule VII (EBS)'!H35","v":0},{"$f":"'Schedule VII (EBS)'!I35","v":0},{"$f":"D477*22.5%+E477*30%","v":0},null,null,{"$f":"IF(H477=\"\",F477,(D477+E477)*H477)","v":0}]
[]
[null,null,"Bermuda EBS Best Estimate Provision on Schedule VII",null,null,"STANDARD",null,"USER","USER"]
[null,null,null,null,null,"REQUIRED",null,"CAPITAL","REQUIRED"]
[null,null,null,null,null,"CAPITAL",null,"FACTOR","CAPITAL"]
[]
[null,"Longevity Risk (immediate pay-out annuities, contingent annuities, pension pay-outs)"]
[null,"(a) 0 - 55","Schedule VII EBS, Line 3(a), Column (7)",{"$f":"+'Schedule VII (EBS)'!F14","v":0},{"$f":"'LT Insurance Risk'!L26","v":0.02},{"$f":"D484*E484","v":0},null,null,{"$f":"IF(H484=0,F484,H484*D484)","v":0}]
[null,"(b) 56 - 65","Schedule VII EBS, Line 3(b), Column (7)",{"$f":"+'Schedule VII (EBS)'!F15","v":0},{"$f":"'LT Insurance Risk'!L27","v":0.03},{"$f":"D485*E485","v":0},null,null,{"$f":"IF(H485=0,F485,H485*D485)","v":0}]
[null,"(c) 66 - 70","Schedule VII EBS, Line 3(c), Column (7)",{"$f":"+'Schedule VII (EBS)'!F16","v":0},{"$f":"'LT Insurance Risk'!L28","v":0.04},{"$f":"D486*E486","v":0},null,null,{"$f":"IF(H486=0,F486,H486*D486)","v":0}]
[null,"(d) 71 - 80","Schedule VII EBS, Line 3(d), Column (7)",{"$f":"+'Schedule VII (EBS)'!F17","v":0},{"$f":"'LT Insurance Risk'!L29","v":0.05},{"$f":"D487*E487","v":0},null,null,{"$f":"IF(H487=0,F487,H487*D487)","v":0}]
[null,"(e) 81+","Schedule VII EBS, Line 3(e), Column (7)",{"$f":"+'Schedule VII (EBS)'!F18","v":0},{"$f":"'LT Insurance Risk'!L30","v":0.06},{"$f":"D488*E488","v":0},null,null,{"$f":"IF(H488=0,F488,H488*D488)","v":0}]
[]
[null,"Longevity (deferred pay-out annuities, future contingent annuities, future pension pay-outs)"]
[null,"(a) 0 - 55","Schedule VII EBS, Line 4(a), Column (7)",{"$f":"+'Schedule VII (EBS)'!F22","v":0},{"$f":"'LT Insurance Risk'!L33","v":0.02},{"$f":"D491*E491","v":0},null,null,{"$f":"IF(H491=0,F491,H491*D491)","v":0}]
[null,"(b) 56 - 60","Schedule VII EBS, Line 4(b), Column (7)",{"$f":"+'Schedule VII (EBS)'!F23","v":0},{"$f":"'LT Insurance Risk'!L34","v":0.03},0,null,null,0]
[null,"(c) 61 - 65","Schedule VII EBS, Line 4(c), Column (7)",{"$f":"+'Schedule VII (EBS)'!F24","v":0},{"$f":"'LT Insurance Risk'!L35","v":0.04},0,null,null,0]
[null,"(d) 66 - 70","Schedule VII EBS, Line 4(d), Column (7)",{"$f":"+'Schedule VII (EBS)'!F25","v":0},{"$f":"'LT Insurance Risk'!L36","v":0.05},0,null,null,0]
[null,"(e) 71 - 75","Schedule VII EBS, Line 4(e), Column (7)",{"$f":"+'Schedule VII (EBS)'!F26","v":0},{"$f":"'LT Insurance Risk'!L37","v":0.06},0,null,null,0]
[null,"(f) 76+","Schedule VII EBS, Line 4(f), Column (7)",{"$f":"+'Schedule VII (EBS)'!F27","v":0},{"$f":"'LT Insurance Risk'!L38","v":7.0000000000000007E-2},0,null,null,0]
[]
[null," - Part (A) Removes any Longevity Swap Capital Requirement that has been included in the Standard Longevity Capital Requirement",null,null,null,null,null,"ACTUAL"]
[null,null,"BSCR ADJUSTED RESERVE for Regular Longevity Risk Business only (excluding Longevity Swaps)",null,"CAPITAL","CAPITAL",null,"CAPITAL"]
[null,"Longevity Capital Adj",null,null,"FACTOR","FROM ABOVE",null,"REQUIRED","ADJUSTMENT"]
[]
[null,"Longevity Risk (immediate pay-out annuities, contingent annuities, pension pay-outs)"]
[null,"(a) 0 - 55",null,null,{"$f":"IF(H484=\"\",'LT Insurance Risk'!L26,H484)","v":0.02},{"$f":"I484","v":0},null,{"$f":"MAX(0,IF(D503=\"\",0,E503*D503))","v":0},{"$f":"IF(D503=\"\",0,H503-F503)","v":0}]
[null,"(b) 56 - 65",null,null,{"$f":"IF(H485=\"\",'LT Insurance Risk'!L27,H485)","v":0.03},{"$f":"I485","v":0},null,{"$f":"MAX(0,IF(D504=\"\",0,E504*D504))","v":0},{"$f":"IF(D504=\"\",0,H504-F504)","v":0}]
[null,"(c) 66 - 70",null,null,{"$f":"IF(H486=\"\",'LT Insurance Risk'!L28,H486)","v":0.04},0,null,0,0]
[null,"(d) 71 - 80",null,null,{"$f":"IF(H487=\"\",'LT Insurance Risk'!L29,H487)","v":0.05},0,null,0,0]
[null,"(e) 81+",null,null,{"$f":"IF(H488=\"\",'LT Insurance Risk'!L30,H488)","v":0.06},0,null,0,0]
[null,null,null,null,{"$f":"IF(H489=\"\",'LT Insurance Risk'!L31,H489)","v":0}]
[null,"Longevity (deferred pay-out annuities, future contingent annuities, future pension pay-outs)"]
[null,"(a) 0 - 55",null,null,{"$f":"IF(H491=\"\",'LT Insurance Risk'!L33,H491)","v":0.02},0,null,0,0]
[null,"(b) 56 - 60",null,null,{"$f":"IF(H492=\"\",'LT Insurance Risk'!L34,H492)","v":0.03},0,null,0,0]
[null,"(c) 61 - 65",null,null,{"$f":"IF(H493=\"\",'LT Insurance Risk'!L35,H493)","v":0.04},0,null,0,0]
[null,"(d) 66 - 70",null,null,{"$f":"IF(H494=\"\",'LT Insurance Risk'!L36,H494)","v":0.05},0,null,0,0]
[null,"(e) 71 - 75",null,null,{"$f":"IF(H495=\"\",'LT Insurance Risk'!L37,H495)","v":0.06},0,null,0,0]
[null,"(f) 76+",null,null,{"$f":"IF(H496=\"\",'LT Insurance Risk'!L38,H496)","v":7.0000000000000007E-2},0,null,0,0]
[]
[null," - Part (B) Determines Appropriate Capital Requirment to include for Longevity Swaps"]
[null,null,"Bermuda EBS Best Estimate Provision for the Floating Leg of Longevity Swap",null,null,null,null,"CAPITAL"]
[null,"Longevity Capital Adj",null,null,null,null,null,"FACTOR","ADJUSTMENT"]
[]
[null,"Longevity Risk (immediate pay-out annuities, contingent annuities, pension pay-outs)"]
[null,"(a) 0 - 55",null,null,null,null,null,{"$f":"'LT Insurance Risk'!L26","v":0.02},{"$f":"IF(D522=\"\",0,H522*D522)","v":0}]
[null,"(b) 56 - 65",null,null,null,null,null,{"$f":"'LT Insurance Risk'!L27","v":0.03},{"$f":"IF(D523=\"\",0,H523*D523)","v":0}]
[null,"(c) 66 - 70",null,null,null,null,null,{"$f":"'LT Insurance Risk'!L28","v":0.04},{"$f":"IF(D524=\"\",0,H524*D524)","v":0}]
[null,"(d) 71 - 80",null,null,null,null,null,{"$f":"'LT Insurance Risk'!L29","v":0.05},{"$f":"IF(D525=\"\",0,H525*D525)","v":0}]
[null,"(e) 81+",null,null,null,null,null,{"$f":"'LT Insurance Risk'!L30","v":0.06},{"$f":"IF(D526=\"\",0,H526*D526)","v":0}]
[]
[null,"Longevity (deferred pay-out annuities, future contingent annuities, future pension pay-outs)"]
[null,"(a) 0 - 55",null,null,null,null,null,{"$f":"'LT Insurance Risk'!L33","v":0.02},{"$f":"IF(D529=\"\",0,H529*D529)","v":0}]
[null,"(b) 56 - 60",null,null,null,null,null,{"$f":"'LT Insurance Risk'!L34","v":0.03},0]
[null,"(c) 61 - 65",null,null,null,null,null,{"$f":"'LT Insurance Risk'!L35","v":0.04},0]
[null,"(d) 66 - 70",null,null,null,null,null,{"$f":"'LT Insurance Risk'!L36","v":0.05},0]
[null,"(e) 71 - 75",null,null,null,null,null,{"$f":"'LT Insurance Risk'!L37","v":0.06},0]
[null,"(f) 76+",null,null,null,null,null,{"$f":"'LT Insurance Risk'!L38","v":7.0000000000000007E-2},0]
[]
[null,null,null,"Net Annual Premium",null,"STANDARD",null,"USER","USER"]
[null,null,null,null,null,"REQUIRED",null,"CAPITAL","REQUIRED"]
[null,null,"Statement Source",null,null,"CAPITAL",null,"FACTOR","CAPITAL"]
[]
[null,"Stop Loss","Schedule VII EBS, Line 14, Column (11)",{"$f":"'Schedule VII (EBS)'!J43","v":0},null,{"$f":"D540*50%","v":0},null,null,{"$f":"IF(H540=\"\",F540,D540*H540)","v":0}]
[]
[null,"Rider","Schedule VII EBS, Line 15, Column (11)",{"$f":"'Schedule VII (EBS)'!J44","v":0},null,{"$f":"D542*25%","v":0},null,null,{"$f":"IF(H542=\"\",F542,D542*H542)","v":0}]
[]
[]
[null,null,null,"NET RESERVES","STANDARD","STANDARD",null,"USER","USER"]
[null,null,null,null,"CAPITAL","REQUIRED",null,"CAPITAL","REQUIRED"]
[null,"LINE OF LONG-TERM BUSINESS","STATEMENT SOURCE",null,"FACTOR","CAPITAL",null,"FACTOR","CAPITAL"]
[]
[null,"Mortality","Schedule VII EBS, Line 1, Column (7)",{"$f":"'Schedule VII (EBS)'!F10","v":0},{"$f":"+'LT Other Insurance Risk'!G9","v":0.02},{"$f":"IF(D549<0,0,D549*E549)","v":0},null,null,{"$f":"IF(H549=\"\",E549*D549,D549*H549)","v":0}]
[null,"Critical Illness","Schedule VII EBS, Line 2, Column (7)",{"$f":"'Schedule VII (EBS)'!F11","v":0},{"$f":"+'LT Other Insurance Risk'!G10","v":0.02},{"$f":"IF(D550<0,0,D550*E550)","v":0},null,null,0]
[null,"Longevity (1)","Schedule VII EBS, Line 3(f), Column (7)",{"$f":"'Schedule VII (EBS)'!F19","v":0},{"$f":"+'LT Other Insurance Risk'!G11","v":5.0000000000000001E-3},0,null,null,0]
[null,"Longevity (2)","Schedule VII EBS, Line 4(g), Column (7)",{"$f":"'Schedule VII (EBS)'!F28","v":0},{"$f":"+'LT Other Insurance Risk'!G12","v":5.0000000000000001E-3},{"$f":"IF(D552<0,0,D552*E552)","v":0},null,null,{"$f":"IF(H552=\"\",E552*D552,D552*H552)","v":0}]
[null,"Deferred annuities ","Schedule VII EBS, Line 5, Column (7)",{"$f":"'Schedule VII (EBS)'!F29","v":0},{"$f":"+'LT Other Insurance Risk'!G13","v":5.0000000000000001E-3},0,null,null,0]
[null,"Deferred accumulation annuity","Schedule VII EBS, Line 6, Column (7)",{"$f":"'Schedule VII (EBS)'!F30","v":0},{"$f":"+'LT Other Insurance Risk'!G14","v":5.0000000000000001E-3},{"$f":"IF(D554<0,0,D554*E554)","v":0},null,null,{"$f":"IF(H554=\"\",E554*D554,D554*H554)","v":0}]
[null,"Disability Income: active lives","Schedule VII EBS, Line 7, Column (7)",{"$f":"'Schedule VII (EBS)'!F36","v":0},{"$f":"+'LT Other Insurance Risk'!G15","v":0.02},{"$f":"IF(D555<0,0,D555*E555)","v":0},null,null,{"$f":"IF(H555=\"\",E555*D555,D555*H555)","v":0}]
[null,"Disability: accident & sickness","Schedule VII EBS, Line 8, Column (7)",{"$f":"'Schedule VII (EBS)'!F37","v":0},{"$f":"+'LT Other Insurance Risk'!G16","v":0.02},0,null,null,0]
[null,"Disability claims in pay (1)","Schedule VII EBS, Line 9, Column (7)",{"$f":"'Schedule VII (EBS)'!F38","v":0},{"$f":"+'LT Other Insurance Risk'!G17","v":5.0000000000000001E-3},0,null,null,0]
[null,"Disability claims in pay (2)","Schedule VII EBS, Line 10, Column (7)",{"$f":"'Schedule VII (EBS)'!F39","v":0},{"$f":"+'LT Other Insurance Risk'!G18","v":5.0000000000000001E-3},0,null,null,0]
[null,"Group Life","Schedule VII EBS, Line 11, Column (7)",{"$f":"'Schedule VII (EBS)'!F40","v":0},{"$f":"+'LT Other Insurance Risk'!G19","v":5.0000000000000001E-3},0,null,null,0]
[null,"Group Disability","Schedule VII EBS, Line 12, Column (7)",{"$f":"'Schedule VII (EBS)'!F41","v":0},{"$f":"+'LT Other Insurance Risk'!G20","v":5.0000000000000001E-3},0,null,null,0]
[null,"Group Health","Schedule VII EBS, Line 13, Column (7)",{"$f":"'Schedule VII (EBS)'!F42","v":0},{"$f":"+'LT Other Insurance Risk'!G21","v":5.0000000000000001E-3},0,null,null,0]
[null,"Stop Loss","Schedule VII EBS, Line 14, Column (7)",{"$f":"'Schedule VII (EBS)'!F43","v":0},{"$f":"+'LT Other Insurance Risk'!G22","v":0.02},0,null,null,{"$f":"IF(H562=\"\",E562*D562,D562*H562)","v":0}]
[null,"Rider","Schedule VII EBS, Line 15, Column (7)",{"$f":"'Schedule VII (EBS)'!F44","v":0},{"$f":"+'LT Other Insurance Risk'!G23","v":0.02},0,null,null,0]
[]
[null,"REQUIRED CAPITAL FOR OTHER INSURANCE RISK",null,{"$f":"IF(SUM(D549:D563)>=0,(SUM(D549:D563)),0)","v":0},null,{"$f":"IF(SUM(F549:F563)>=0,(SUM(F549:F563)),0)","v":0},null,null,{"$f":"IF(SUM(I549:I563)>=0,(SUM(I549:I563)),0)","v":0}]
[]
[null,null,null,null,"Volatility >15.0%","STANDARD REQUIRED CAPITAL",null,"USER CAPITAL FACTOR","USER REQUIRED CAPITAL"]
[null,"Variable Annuity Guarantee Risk","Volatility \n(0%-10.0%]","Volatility 10.0% - 15.0%"]
[]
[null,"GMDB - Guar. Val In Money",{"$f":"'Schedule VIII (EBS)'!H13","v":0},{"$f":"'Schedule VIII (EBS)'!J13","v":0},{"$f":"'Schedule VIII (EBS)'!L13","v":0},{"$f":"(C570*0.25%)+(D570*0.5%)+(E570*0.75%)","v":0},null,null,{"$f":"IF(H570=\"\",F570,(C570+D570+E570)*H570)","v":0}]
[null,"GMDB - Net Value at Risk",{"$f":"'Schedule VIII (EBS)'!N13","v":0},{"$f":"+'Schedule VIII (EBS)'!P13","v":0},{"$f":"+'Schedule VIII (EBS)'!R13","v":0},{"$f":"(C571*4%)+(D571*8.5%)+(E571*13%)","v":0},null,null,{"$f":"IF(H571=\"\",F571,(C571+D571+E571)*H571)","v":0}]
[null,"GMDB - Guar. Val Out Money",{"$f":"'Schedule VIII (EBS)'!H31","v":0},{"$f":"'Schedule VIII (EBS)'!J31","v":0},{"$f":"'Schedule VIII (EBS)'!L31","v":0},{"$f":"(C572*0.25%)+(D572*0.5%)+(E572*0.75%)","v":0},null,null,{"$f":"IF(H572=\"\",F572,(C572+D572+E572)*H572)","v":0}]
[null,"GMDB - Total",null,null,null,{"$f":"F572+(MAX(F570,F571))","v":0},null,null,{"$f":"I572+(MAX(I570,I571))","v":0}]
[]
[null,"GMDB (2) - Guar. Val In Money",{"$f":"'Schedule VIII (EBS)'!H14","v":0},{"$f":"'Schedule VIII (EBS)'!J14","v":0},{"$f":"'Schedule VIII (EBS)'!L14","v":0},{"$f":"(C575*0.75%)+(D575*1%)+(E575*1.25%)","v":0},null,null,{"$f":"IF(H575=\"\",F575,(C575+D575+E575)*H575)","v":0}]
[null,"GMDB (2) - Net Value at Risk",{"$f":"'Schedule VIII (EBS)'!N14","v":0},{"$f":"+'Schedule VIII (EBS)'!P14","v":0},{"$f":"+'Schedule VIII (EBS)'!R14","v":0},{"$f":"(C576*12%)+(D576*16.5%)+(E576*21%)","v":0},null,null,{"$f":"IF(H576=\"\",F576,(C576+D576+E576)*H576)","v":0}]
[null,"GMDB (2) - Guar. Val Out Money",{"$f":"'Schedule VIII (EBS)'!H32","v":0},{"$f":"'Schedule VIII (EBS)'!J32","v":0},{"$f":"'Schedule VIII (EBS)'!L32","v":0},{"$f":"(C577*0.75%)+(D577*1%)+(E577*1.25%)","v":0},null,null,{"$f":"IF(H577=\"\",F577,(C577+D577+E577)*H577)","v":0}]
[null,"GMDB (2) - Total",null,null,null,{"$f":"F577+(MAX(F575,F576))","v":0},null,null,{"$f":"I577+(MAX(I575,I576))","v":0}]
[]
[null,"GMIB - Guar. Val In Money",{"$f":"'Schedule VIII (EBS)'!H15","v":0},{"$f":"'Schedule VIII (EBS)'!J15","v":0},{"$f":"'Schedule VIII (EBS)'!L15","v":0},{"$f":"(C580*5%)+(D580*6.5%)+(E580*8%)","v":0},null,null,{"$f":"IF(H580=\"\",F580,(C580+D580+E580)*H580)","v":0}]
[null,"GMIB - Net Value at Risk",{"$f":"'Schedule VIII (EBS)'!N15","v":0},{"$f":"+'Schedule VIII (EBS)'!P15","v":0},{"$f":"+'Schedule VIII (EBS)'!R15","v":0},{"$f":"(C581*100%)+(D581*130%)+(E581*160%)","v":0},null,null,{"$f":"IF(H581=\"\",F581,(C581+D581+E581)*H581)","v":0}]
[null,"GMIB - Guar. Val Out Money",{"$f":"'Schedule VIII (EBS)'!H33","v":0},{"$f":"'Schedule VIII (EBS)'!J33","v":0},{"$f":"'Schedule VIII (EBS)'!L33","v":0},{"$f":"(C582*5%)+(D582*6.5%)+(E582*8%)","v":0},null,null,{"$f":"IF(H582=\"\",F582,(C582+D582+E582)*H582)","v":0}]
[null,"GMIB - Total",null,null,null,{"$f":"F582+(MAX(F580,F581))","v":0},null,null,{"$f":"I582+(MAX(I580,I581))","v":0}]
[]
[null,"GMWB - Guar. Val In Money",{"$f":"'Schedule VIII (EBS)'!H16","v":0},{"$f":"'Schedule VIII (EBS)'!J16","v":0},{"$f":"'Schedule VIII (EBS)'!L16","v":0},{"$f":"(C585*3.25%)+(D585*4.25%)+(E585*5%)","v":0},null,null,{"$f":"IF(H585=\"\",F585,(C585+D585+E585)*H585)","v":0}]
[null,"GMWB - Net Value at Risk",{"$f":"'Schedule VIII (EBS)'!N16","v":0},{"$f":"+'Schedule VIII (EBS)'!P16","v":0},{"$f":"+'Schedule VIII (EBS)'!R16","v":0},{"$f":"(C586*60%)+(D586*75%)+(E586*90%)","v":0},null,null,{"$f":"IF(H586=\"\",F586,(C586+D586+E586)*H586)","v":0}]
[null,"GMWB - Guar. Val Out Money",{"$f":"'Schedule VIII (EBS)'!H34","v":0},{"$f":"'Schedule VIII (EBS)'!J34","v":0},{"$f":"'Schedule VIII (EBS)'!L34","v":0},{"$f":"(C587*3.25%)+(D587*4.25%)+(E587*5%)","v":0},null,null,{"$f":"IF(H587=\"\",F587,(C587+D587+E587)*H587)","v":0}]
[null,"GMWB - Total",null,null,null,{"$f":"F587+(MAX(F585,F586))","v":0},null,null,{"$f":"I587+(MAX(I585,I586))","v":0}]
[]
[null,"GEEB - Guar. Val In Money",{"$f":"'Schedule VIII (EBS)'!H17","v":0},{"$f":"'Schedule VIII (EBS)'!J17","v":0},{"$f":"'Schedule VIII (EBS)'!L17","v":0},{"$f":"(C590*0%)+(D590*0.5%)+(E590*1%)","v":0},null,null,{"$f":"IF(H590=\"\",F590,(C590+D590+E590)*H590)","v":0}]
[null,"GEEB - Net Value at Risk",{"$f":"'Schedule VIII (EBS)'!N17","v":0},{"$f":"+'Schedule VIII (EBS)'!P17","v":0},{"$f":"+'Schedule VIII (EBS)'!R17","v":0},{"$f":"(C591*1%)+(D591*9%)+(E591*17%)","v":0},null,null,{"$f":"IF(H591=\"\",F591,(C591+D591+E591)*H591)","v":0}]
[null,"GEEB - Guar. Val Out Money",{"$f":"'Schedule VIII (EBS)'!H35","v":0},{"$f":"'Schedule VIII (EBS)'!J35","v":0},{"$f":"'Schedule VIII (EBS)'!L35","v":0},{"$f":"(C592*0%)+(D592*0.5%)+(E592*1%)","v":0},null,null,{"$f":"IF(H592=\"\",F592,(C592+D592+E592)*H592)","v":0}]
[null,"GEEB - Total",null,null,null,{"$f":"F592+(MAX(F590,F591))","v":0},null,null,{"$f":"I592+(MAX(I590,I591))","v":0}]
[]
[null,"GMAB 0-1 Guar. Val In Money",{"$f":"'Schedule VIII (EBS)'!H19","v":0},{"$f":"'Schedule VIII (EBS)'!J19","v":0},{"$f":"'Schedule VIII (EBS)'!L19","v":0},{"$f":"(C595*3.2%)+(D595*5%)+(E595*9%)","v":0},null,null,{"$f":"IF(H595=\"\",F595,(C595+D595+E595)*H595)","v":0}]
[null,"GMWB 0-1 Net Value at Risk",{"$f":"'Schedule VIII (EBS)'!N19","v":0},{"$f":"+'Schedule VIII (EBS)'!P19","v":0},{"$f":"+'Schedule VIII (EBS)'!R19","v":0},{"$f":"(C596*90%)+(D596*130%)+(E596*250%)","v":0},null,null,{"$f":"IF(H596=\"\",F596,(C596+D596+E596)*H596)","v":0}]
[null,"GMWB 0-1 Guar. Val Out Money",{"$f":"'Schedule VIII (EBS)'!H37","v":0},{"$f":"'Schedule VIII (EBS)'!J37","v":0},{"$f":"'Schedule VIII (EBS)'!L37","v":0},{"$f":"(C597*3.2%)+(D597*5%)+(E597*9%)","v":0},null,null,{"$f":"IF(H597=\"\",F597,(C597+D597+E597)*H597)","v":0}]
[null,"GMWB - Total for 0-1",null,null,null,{"$f":"F597+(MAX(F595,F596))","v":0},null,null,{"$f":"I597+(MAX(I595,I596))","v":0}]
[]
[null,"GMAB 1-2 Guar. Val In Money",{"$f":"'Schedule VIII (EBS)'!H20","v":0},{"$f":"'Schedule VIII (EBS)'!J20","v":0},{"$f":"'Schedule VIII (EBS)'!L20","v":0},{"$f":"(C600*3%)+(D600*5%)+(E600*8.9%)","v":0},null,null,{"$f":"IF(H600=\"\",F600,(C600+D600+E600)*H600)","v":0}]
[null,"GMWB 1-2 Net Value at Risk",{"$f":"'Schedule VIII (EBS)'!N20","v":0},{"$f":"+'Schedule VIII (EBS)'!P20","v":0},{"$f":"+'Schedule VIII (EBS)'!R20","v":0},{"$f":"(C601*80%)+(D601*115%)+(E601*200%)","v":0},null,null,{"$f":"IF(H601=\"\",F601,(C601+D601+E601)*H601)","v":0}]
[null,"GMWB 1-2 Guar. Val Out Money",{"$f":"'Schedule VIII (EBS)'!H38","v":0},{"$f":"'Schedule VIII (EBS)'!J38","v":0},{"$f":"'Schedule VIII (EBS)'!L38","v":0},{"$f":"(C602*3%)+(D602*5%)+(E602*8.9%)","v":0},null,null,{"$f":"IF(H602=\"\",F602,(C602+D602+E602)*H602)","v":0}]
[null,"GMWB - Total for 1-2",null,null,null,{"$f":"F602+(MAX(F600,F601))","v":0},null,null,{"$f":"I602+(MAX(I600,I601))","v":0}]
[]
[null,"GMAB 2-3 Guar. Val In Money",{"$f":"'Schedule VIII (EBS)'!H21","v":0},{"$f":"'Schedule VIII (EBS)'!J21","v":0},{"$f":"'Schedule VIII (EBS)'!L21","v":0},{"$f":"(C605*3%)+(D605*5%)+(E605*8.9%)","v":0},null,null,{"$f":"IF(H605=\"\",F605,(C605+D605+E605)*H605)","v":0}]
[null,"GMWB 2-3 Net Value at Risk",{"$f":"'Schedule VIII (EBS)'!N21","v":0},{"$f":"+'Schedule VIII (EBS)'!P21","v":0},{"$f":"+'Schedule VIII (EBS)'!R21","v":0},{"$f":"(C606*70%)+(D606*105%)+(E606*160%)","v":0},null,null,{"$f":"IF(H606=\"\",F606,(C606+D606+E606)*H606)","v":0}]
[null,"GMWB 2-3 Guar. Val Out Money",{"$f":"'Schedule VIII (EBS)'!H39","v":0},{"$f":"'Schedule VIII (EBS)'!J39","v":0},{"$f":"'Schedule VIII (EBS)'!L39","v":0},{"$f":"(C607*3%)+(D607*5%)+(E607*8.9%)","v":0},null,null,{"$f":"IF(H607=\"\",F607,(C607+D607+E607)*H607)","v":0}]
[null,"GMWB - Total for 2-3",null,null,null,{"$f":"F607+(MAX(F605,F606))","v":0},null,null,{"$f":"I607+(MAX(I605,I606))","v":0}]
[]
[null,"GMAB 3-4 Guar. Val In Money",{"$f":"'Schedule VIII (EBS)'!H22","v":0},{"$f":"'Schedule VIII (EBS)'!J22","v":0},{"$f":"'Schedule VIII (EBS)'!L22","v":0},{"$f":"(C610*2.8%)+(D610*5%)+(E610*8.8%)","v":0},null,null,{"$f":"IF(H610=\"\",F610,(C610+D610+E610)*H610)","v":0}]
[null,"GMWB 3-4 Net Value at Risk",{"$f":"'Schedule VIII (EBS)'!N22","v":0},{"$f":"+'Schedule VIII (EBS)'!P22","v":0},{"$f":"+'Schedule VIII (EBS)'!R22","v":0},{"$f":"(C611*60%)+(D611*95%)+(E611*135%)","v":0},null,null,{"$f":"IF(H611=\"\",F611,(C611+D611+E611)*H611)","v":0}]
[null,"GMWB 3-4 Guar. Val Out Money",{"$f":"'Schedule VIII (EBS)'!H40","v":0},{"$f":"'Schedule VIII (EBS)'!J40","v":0},{"$f":"'Schedule VIII (EBS)'!L40","v":0},{"$f":"(C612*2.8%)+(D612*5%)+(E612*8.8%)","v":0},null,null,{"$f":"IF(H612=\"\",F612,(C612+D612+E612)*H612)","v":0}]
[null,"GMWB - Total for 3-4",null,null,null,{"$f":"F612+(MAX(F610,F611))","v":0},null,null,{"$f":"I612+(MAX(I610,I611))","v":0}]
[]
[null,"GMAB 4-5 Guar. Val In Money",{"$f":"'Schedule VIII (EBS)'!H23","v":0},{"$f":"'Schedule VIII (EBS)'!J23","v":0},{"$f":"'Schedule VIII (EBS)'!L23","v":0},{"$f":"(C615*2.4%)+(D615*4.3%)+(E615*8%)","v":0},null,null,{"$f":"IF(H615=\"\",F615,(C615+D615+E615)*H615)","v":0}]
[null,"GMWB 4-5 Net Value at Risk",{"$f":"'Schedule VIII (EBS)'!N23","v":0},{"$f":"+'Schedule VIII (EBS)'!P23","v":0},{"$f":"+'Schedule VIII (EBS)'!R23","v":0},{"$f":"(C616*55%)+(D616*85%)+(E616*115%)","v":0},null,null,{"$f":"IF(H616=\"\",F616,(C616+D616+E616)*H616)","v":0}]
[null,"GMWB 4-5 Guar. Val Out Money",{"$f":"'Schedule VIII (EBS)'!H41","v":0},{"$f":"'Schedule VIII (EBS)'!J41","v":0},{"$f":"'Schedule VIII (EBS)'!L41","v":0},{"$f":"(C617*2.4%)+(D617*4.3%)+(E617*8%)","v":0},null,null,{"$f":"IF(H617=\"\",F617,(C617+D617+E617)*H617)","v":0}]
[null,"GMWB - Total for 4-5",null,null,null,{"$f":"F617+(MAX(F615,F616))","v":0},null,null,{"$f":"I617+(MAX(I615,I616))","v":0}]
[]
[null,"GMAB 5-6 Guar. Val In Money",{"$f":"'Schedule VIII (EBS)'!H24","v":0},{"$f":"'Schedule VIII (EBS)'!J24","v":0},{"$f":"'Schedule VIII (EBS)'!L24","v":0},{"$f":"(C620*2%)+(D620*3.5%)+(E620*6.8%)","v":0},null,null,{"$f":"IF(H620=\"\",F620,(C620+D620+E620)*H620)","v":0}]
[null,"GMWB 5-6 Net Value at Risk",{"$f":"'Schedule VIII (EBS)'!N24","v":0},{"$f":"+'Schedule VIII (EBS)'!P24","v":0},{"$f":"+'Schedule VIII (EBS)'!R24","v":0},{"$f":"(C621*50%)+(D621*75%)+(E621*100%)","v":0},null,null,{"$f":"IF(H621=\"\",F621,(C621+D621+E621)*H621)","v":0}]
[null,"GMWB 5-6 Guar. Val Out Money",{"$f":"'Schedule VIII (EBS)'!H42","v":0},{"$f":"'Schedule VIII (EBS)'!J42","v":0},{"$f":"'Schedule VIII (EBS)'!L42","v":0},{"$f":"(C622*2%)+(D622*3.5%)+(E622*6.8%)","v":0},null,null,{"$f":"IF(H622=\"\",F622,(C622+D622+E622)*H622)","v":0}]
[null,"GMWB - Total for 5-6",null,null,null,{"$f":"F622+(MAX(F620,F621))","v":0},null,null,{"$f":"I622+(MAX(I620,I621))","v":0}]
[]
[null,"GMAB 6-7 Guar. Val In Money",{"$f":"'Schedule VIII (EBS)'!H25","v":0},{"$f":"'Schedule VIII (EBS)'!J25","v":0},{"$f":"'Schedule VIII (EBS)'!L25","v":0},{"$f":"(C625*1.7%)+(D625*2.8%)+(E625*5.9%)","v":0},null,null,{"$f":"IF(H625=\"\",F625,(C625+D625+E625)*H625)","v":0}]
[null,"GMWB 6-7 Net Value at Risk",{"$f":"'Schedule VIII (EBS)'!N25","v":0},{"$f":"+'Schedule VIII (EBS)'!P25","v":0},{"$f":"+'Schedule VIII (EBS)'!R25","v":0},{"$f":"(C626*45%)+(D626*65%)+(E626*90%)","v":0},null,null,{"$f":"IF(H626=\"\",F626,(C626+D626+E626)*H626)","v":0}]
[null,"GMWB 6-7 Guar. Val Out Money",{"$f":"'Schedule VIII (EBS)'!H43","v":0},{"$f":"'Schedule VIII (EBS)'!J43","v":0},{"$f":"'Schedule VIII (EBS)'!L43","v":0},{"$f":"(C627*1.7%)+(D627*2.8%)+(E627*5.9%)","v":0},null,null,{"$f":"IF(H627=\"\",F627,(C627+D627+E627)*H627)","v":0}]
[null,"GMWB - Total for 6-7",null,null,null,{"$f":"F627+(MAX(F625,F626))","v":0},null,null,{"$f":"I627+(MAX(I625,I626))","v":0}]
[]
[null,"GMAB 7-8 Guar. Val In Money",{"$f":"'Schedule VIII (EBS)'!H26","v":0},{"$f":"'Schedule VIII (EBS)'!J26","v":0},{"$f":"'Schedule VIII (EBS)'!L26","v":0},{"$f":"(C630*1.4%)+(D630*2.1%)+(E630*4.9%)","v":0},null,null,{"$f":"IF(H630=\"\",F630,(C630+D630+E630)*H630)","v":0}]
[null,"GMWB 7-8 Net Value at Risk",{"$f":"'Schedule VIII (EBS)'!N26","v":0},{"$f":"+'Schedule VIII (EBS)'!P26","v":0},{"$f":"+'Schedule VIII (EBS)'!R26","v":0},{"$f":"(C631*40%)+(D631*55%)+(E631*80%)","v":0},null,null,{"$f":"IF(H631=\"\",F631,(C631+D631+E631)*H631)","v":0}]
[null,"GMWB 7-8 Guar. Val Out Money",{"$f":"'Schedule VIII (EBS)'!H44","v":0},{"$f":"'Schedule VIII (EBS)'!J44","v":0},{"$f":"'Schedule VIII (EBS)'!L44","v":0},{"$f":"(C632*1.4%)+(D632*2.1%)+(E632*4.9%)","v":0},null,null,{"$f":"IF(H632=\"\",F632,(C632+D632+E632)*H632)","v":0}]
[null,"GMWB - Total for 7-8",null,null,null,{"$f":"F632+(MAX(F630,F631))","v":0},null,null,{"$f":"I632+(MAX(I630,I631))","v":0}]
[]
[null,"GMAB 8-9 Guar. Val In Money",{"$f":"'Schedule VIII (EBS)'!H27","v":0},{"$f":"'Schedule VIII (EBS)'!J27","v":0},{"$f":"'Schedule VIII (EBS)'!L27","v":0},{"$f":"(C635*1.1%)+(D635*1.7%)+(E635*4.3%)","v":0},null,null,{"$f":"IF(H635=\"\",F635,(C635+D635+E635)*H635)","v":0}]
[null,"GMWB 8-9 Net Value at Risk",{"$f":"'Schedule VIII (EBS)'!N27","v":0},{"$f":"+'Schedule VIII (EBS)'!P27","v":0},{"$f":"+'Schedule VIII (EBS)'!R27","v":0},{"$f":"(C636*35%)+(D636*50%)+(E636*70%)","v":0},null,null,{"$f":"IF(H636=\"\",F636,(C636+D636+E636)*H636)","v":0}]
[null,"GMWB 8-9 Guar. Val Out Money",{"$f":"'Schedule VIII (EBS)'!H45","v":0},{"$f":"'Schedule VIII (EBS)'!J45","v":0},{"$f":"'Schedule VIII (EBS)'!L45","v":0},{"$f":"(C637*1.1%)+(D637*1.7%)+(E637*4.3%)","v":0},null,null,{"$f":"IF(H637=\"\",F637,(C637+D637+E637)*H637)","v":0}]
[null,"GMWB - Total for 8-9",null,null,null,{"$f":"F637+(MAX(F635,F636))","v":0},null,null,{"$f":"I637+(MAX(I635,I636))","v":0}]
[]
[null,"GMAB >9 Guar. Val In Money",{"$f":"'Schedule VIII (EBS)'!H28","v":0},{"$f":"'Schedule VIII (EBS)'!J28","v":0},{"$f":"'Schedule VIII (EBS)'!L28","v":0},{"$f":"(C640*1%)+(D640*1.4%)+(E640*3.9%)","v":0},null,null,{"$f":"IF(H640=\"\",F640,(C640+D640+E640)*H640)","v":0}]
[null,"GMWB >9 Net Value at Risk",{"$f":"'Schedule VIII (EBS)'!N28","v":0},{"$f":"+'Schedule VIII (EBS)'!P28","v":0},{"$f":"+'Schedule VIII (EBS)'!R28","v":0},{"$f":"(C641*30%)+(D641*45%)+(E641*60%)","v":0},null,null,{"$f":"IF(H641=\"\",F641,(C641+D641+E641)*H641)","v":0}]
[null,"GMWB >9 Guar. Val Out Money",{"$f":"'Schedule VIII (EBS)'!H46","v":0},{"$f":"'Schedule VIII (EBS)'!J46","v":0},{"$f":"'Schedule VIII (EBS)'!L46","v":0},{"$f":"(C642*1%)+(D642*1.4%)+(E642*3.9%)","v":0},null,null,{"$f":"IF(H642=\"\",F642,(C642+D642+E642)*H642)","v":0}]
[null,"GMWB - Total for >9",null,null,null,{"$f":"F642+(MAX(F640,F641))","v":0},null,null,{"$f":"I642+(MAX(I640,I641))","v":0}]
[]
[null,"Percentage of Guaranteed Minimum Death Benefit with Multiple Guarantees",null,null,{"$f":"+'Schedule VIII (EBS)'!L50","v":0},{"$f":"IF(E645=0,0,(F573+F578)*(-E645))","v":0},null,null,{"$f":"IF(E645=0,0,(I573+I578)*(-E645))","v":0}]
[null,"Total BSCR-Adjusted Reserves for Variable Annuities",null,null,null,{"$f":"-'Schedule VII (EBS)'!F47","v":0},null,null,{"$f":"-'Schedule VII (EBS)'!F47","v":0}]
[]
[null,"REQUIRED CAPITAL FOR VARIABLE ANNUITY GUARANTEE RISK ",null,null,null,{"$f":"MAX(0,SUM(F645:F646,F573,F578,F583,F588,F593,F598,F603,F608,F613,F618,F623,F628,F633,F638,F643))","v":0},null,null,{"$f":"MAX(0,SUM(I645:I646,I573,I578,I583,I588,I593,I598,I603,I608,I613,I618,I623,I628,I633,I638,I643))","v":0}]
[]
[null,"REQUIRED CAPITAL AND SURPLUS"]
[]
[null,"Fixed Income Investment Risk",null,null,null,{"$f":"+F101","v":0},null,null,{"$f":"+I101","v":0}]
[null,"Equity Investment Risk",null,null,null,{"$f":"+F149","v":0},null,null,{"$f":"+I149","v":0}]
[null,"Interest Rate / Liquidity Risk",null,null,null,{"$f":"+F293","v":0},null,null,{"$f":"+I293","v":0}]
[null,"Currency Risk",null,null,null,{"$f":"+F174","v":0},null,null,{"$f":"+I174","v":0}]
[null,"Concentration Risk",null,null,null,{"$f":"+F282","v":0},null,null,{"$f":"+I282","v":0}]
[null,"Premium Risk",null,null,null,{"$f":"+F347","v":0},null,null,{"$f":"+I347","v":0}]
[null,"Reserve Risk",null,null,null,{"$f":"+F393","v":0},null,null,{"$f":"+I393","v":0}]
[null,"Credit Risk",null,null,null,{"$f":"+F432","v":0},null,null,{"$f":"+I432","v":0}]
[null,"Catastrophe Risk",null,null,null,{"$f":"+F455","v":0},null,null,{"$f":"+I455","v":0}]
[null,"Mortality",null,null,null,{"$f":"+F461","v":0},null,null,{"$f":"+I461","v":0}]
[null,"Morbidity and Disability",null,null,null,{"$f":"+F467+F475+F476+F477+F469+F470+F472","v":0},null,null,{"$f":"+I467+I475+I476+I477+I469+I470+I472","v":0}]
[null,"Longevity",null,null,null,{"$f":"MAX(0,(SUM(F484:F496)))","v":0},null,null,{"$f":"MAX(0,(SUM(I484:I496)+SUM(I503:I515)+SUM(I522:I534)))","v":0}]
[null,"Stop Loss",null,null,null,{"$f":"+F540","v":0},null,null,{"$f":"+I540","v":0}]
[null,"Riders",null,null,null,{"$f":"+F542","v":0},null,null,{"$f":"+I542","v":0}]
[null,"Other Insurance Risk",null,null,null,{"$f":"+F565","v":0},null,null,{"$f":"+I565","v":0}]
[null,"Variable Annuity Guarantee Risk",null,null,null,{"$f":"IF('Schedule VIIIA (EBS)'!S12=0,+F648,'Schedule VIIIA (EBS)'!S12)","v":0},null,null,{"$f":"IF('Schedule VIIIA (EBS)'!S12=0,+I648,'Schedule VIIIA (EBS)'!S12)","v":0}]
[]
[null,"BSCR (Prior to Covariance Adjustment)",null,null,null,{"$f":"SUM(F652:F667)","v":0},null,null,{"$f":"SUM(I652:I667)","v":0}]
[]
[null,"BSCR (After Covariance Adjustment)",null,null,null,{"$f":"(F652^2+F653^2+F654^2+F655^2+F656^2+F657^2+(1/2*F659+F658)^2+(1/2*F659)^2+(F661+F664+F665)^2+F662^2+F663^2+-0.5*((F661+F664+F665)*F663)+F666^2+F667^2+F660^2)^0.5","v":0},null,null,{"$f":"(I652^2+I653^2+I654^2+I655^2+I656^2+I657^2+(1/2*I659+I658)^2+(1/2*I659)^2+(I661+I664+I665)^2+I662^2+I663^2+-0.5*((I661+I664+I665)*I663)+I666^2+I667^2+I660^2)^0.5","v":0}]
[]
[null,"Operational risk charge (%)",null,null,null,{"$f":"+Summary!F37","v":0.1}]
[]
[null,"Operational risk capital charge ($)",null,null,null,{"$f":"F671*F673","v":0},null,null,{"$f":"IF(I673=\"\",I671*F673,I671*I673)","v":0}]
[]
[null,"Other Capital Adjustment",null,null,null,{"$f":"-MIN(((F671+F675+F679+F681)*Summary!$D$143),Summary!$F$147,((F671+F675+F679+F681)*Summary!$G$143))","v":0},null,null,{"$f":"-MIN(((I671+I675+I679+I681)*Summary!$D$143),Summary!$F$147,((I671+I675+I679+I681)*Summary!$G$143))","v":0}]
[]
[null,"(1) Regulated Non-Insurance Financial Operating Entities",null,null,null,{"$f":"'Schedule XIA'!X313","v":0},null,null,{"$f":"'Schedule XIA'!X313","v":0}]
[]
[null,"(2) Unregulated Entities Where the Parent Exercises Control (Except IHC)",null,null,null,{"$f":"'Schedule XIB'!X313","v":0},null,null,{"$f":"'Schedule XIB'!X313","v":0}]
[]
[null,"BSCR ",null,null,null,{"$f":"F671+F675+F677+F679+F681","v":0},null,null,{"$f":"I671+I675+I677+I679+I681","v":0}]

{"sheet":"GSP (Revised)","index":133,"n_rows":915,"n_cols":12,"rows_kept":915,"cut":false,"hidden":false,"merged":[[687,6,687,7],[3,2,3,3],[102,3,102,6],[103,3,103,4],[103,5,103,6],[524,2,526,2],[524,3,526,3],[524,4,526,4],[524,5,526,5],[201,3,202,4],[201,5,203,5],[673,6,673,7],[678,6,678,7],[679,6,679,7],[684,6,684,7],[685,6,685,7],[0,0,0,6],[2,0,2,2],[2,8,3,11],[5,1,5,11],[672,6,672,7],[137,3,137,5],[138,4,138,5],[138,6,139,6],[309,2,309,6],[310,3,310,4],[310,5,310,6],[116,3,116,6],[117,3,117,4],[117,5,117,6],[694,2,696,6],[782,11,783,11],[713,1,713,7],[714,2,715,6],[732,1,732,7],[733,2,734,6],[751,6,753,6],[760,6,762,6],[782,2,782,6],[782,7,783,7],[782,8,783,8],[782,9,783,9],[782,10,783,10],[694,7,696,7]]}
["GROUP-SPECIFIC PARAMETERS (REVISED)",null,null,null,null,null,null,null,null,null,null,{"$f":"HYPERLINK(\"#'Index'!A1\",\"Return to Index\")","v":"Return to Index"}]
[]
[{"$f":"+'Group Information'!C7","v":"Enter Group Company Name"},null,null,null,null,null,null,null,{"$f":"HYPERLINK(\"#'Attachments'!A185\",\"Details of User Capital Factor to be included in the attachments section 19.\")","v":"Details of User Capital Factor to be included in the attachments section 19."}]
["For the Year Ending ",null,{"$f":"+'Group Information'!C3","v":"2023-12-31"}]
[]
[null,"To be completed only with prior approval from the Bermuda Monetary Authority"]
[]
[null,null,null,null,null,null,null,"STANDARD","STANDARD",null,"USER","USER"]
[null,"TYPE OF ",null,null,null,null,"ASSET","CAPITAL","REQUIRED",null,"CAPITAL","REQUIRED"]
[null,"FIXED INCOME INVESTMENTS",null,null,null,null,"VALUE","FACTOR","CAPITAL",null,"FACTOR","CAPITAL"]
[]
[null,"(a) Corporate & Sovereign Bonds",null,null,null,null,"(1) ","(2)","(1) x (2)",null,"(3)","(1) x (3)"]
[]
[null,"BSCR Rating"]
[null,0,null,null,null,null,{"$f":"'Schedule IIB (EBS)'!D13+'Schedule IIC (EBS)'!D13+(MAX(0,'Schedule IID (EBS)'!D13-'Schedule IID (EBS)'!F13))+'Schedule IIE (EBS)'!D13+'Schedule IIF (EBS)'!D13","v":0},{"$f":"'Fixed Income Investments (Rev.)'!H12","v":0},{"$f":"IF(G15<0,0,G15*H15)","v":0},null,null,{"$f":"MAX(0,IF(K15=\"\",H15*G15,G15*K15))","v":0}]
[null,1,null,null,null,null,{"$f":"'Schedule IIB (EBS)'!D14+'Schedule IIC (EBS)'!D14+(MAX(0,'Schedule IID (EBS)'!D14-'Schedule IID (EBS)'!F14))+'Schedule IIE (EBS)'!D14+'Schedule IIF (EBS)'!D14","v":0},{"$f":"'Fixed Income Investments (Rev.)'!H13","v":4.0000000000000001E-3},0,null,null,{"$f":"MAX(0,IF(K16=\"\",H16*G16,G16*K16))","v":0}]
[null,2,null,null,null,null,{"$f":"'Schedule IIB (EBS)'!D15+'Schedule IIC (EBS)'!D15+(MAX(0,'Schedule IID (EBS)'!D15-'Schedule IID (EBS)'!F15))+'Schedule IIE (EBS)'!D15+'Schedule IIF (EBS)'!D15","v":0},{"$f":"'Fixed Income Investments (Rev.)'!H14","v":8.0000000000000002E-3},0,null,null,0]
[null,3,null,null,null,null,{"$f":"'Schedule IIB (EBS)'!D16+'Schedule IIC (EBS)'!D16+(MAX(0,'Schedule IID (EBS)'!D16-'Schedule IID (EBS)'!F16))+'Schedule IIE (EBS)'!D16+'Schedule IIF (EBS)'!D16","v":0},{"$f":"'Fixed Income Investments (Rev.)'!H15","v":1.4999999999999999E-2},0,null,null,0]
[null,4,null,null,null,null,{"$f":"'Schedule IIB (EBS)'!D17+'Schedule IIC (EBS)'!D17+(MAX(0,'Schedule IID (EBS)'!D17-'Schedule IID (EBS)'!F17))+'Schedule IIE (EBS)'!D17+'Schedule IIF (EBS)'!D17","v":0},{"$f":"'Fixed Income Investments (Rev.)'!H16","v":0.03},0,null,null,0]
[null,5,null,null,null,null,{"$f":"'Schedule IIB (EBS)'!D18+'Schedule IIC (EBS)'!D18+(MAX(0,'Schedule IID (EBS)'!D18-'Schedule IID (EBS)'!F18))+'Schedule IIE (EBS)'!D18+'Schedule IIF (EBS)'!D18","v":0},{"$f":"'Fixed Income Investments (Rev.)'!H17","v":0.08},0,null,null,0]
[null,6,null,null,null,null,{"$f":"'Schedule IIB (EBS)'!D19+'Schedule IIC (EBS)'!D19+(MAX(0,'Schedule IID (EBS)'!D19-'Schedule IID (EBS)'!F19))+'Schedule IIE (EBS)'!D19+'Schedule IIF (EBS)'!D19","v":0},{"$f":"'Fixed Income Investments (Rev.)'!H18","v":0.15},0,null,null,0]
[null,7,null,null,null,null,{"$f":"'Schedule IIB (EBS)'!D20+'Schedule IIC (EBS)'!D20+(MAX(0,'Schedule IID (EBS)'!D20-'Schedule IID (EBS)'!F20))+'Schedule IIE (EBS)'!D20+'Schedule IIF (EBS)'!D20","v":0},{"$f":"'Fixed Income Investments (Rev.)'!H19","v":0.26300000000000001},0,null,null,0]
[null,8,null,null,null,null,{"$f":"'Schedule IIB (EBS)'!D21+'Schedule IIC (EBS)'!D21+(MAX(0,'Schedule IID (EBS)'!D21-'Schedule IID (EBS)'!F21))+'Schedule IIE (EBS)'!D21+'Schedule IIF (EBS)'!D21","v":0},{"$f":"'Fixed Income Investments (Rev.)'!H20","v":0.35},0,null,null,0]
[]
[null,"(a)  SUBTOTAL -  CORPORATE BONDS",null,null,null,null,{"$f":"SUM(G15:G24)","v":0},null,{"$f":"IF(SUM(I15:I23)>=0,SUM(I15:I23),0)","v":0},null,null,{"$f":"IF(SUM(L15:L23)>=0,SUM(L15:L23),0)","v":0}]
[]
[null,"(b) Residential Mortgage-Backed Securities"]
[]
[null,"BSCR Rating"]
[null,1,null,null,null,null,{"$f":"'Schedule IIB (EBS)'!H14+'Schedule IIC (EBS)'!H14+(MAX(0,'Schedule IID (EBS)'!H14-'Schedule IID (EBS)'!J14))+'Schedule IIE (EBS)'!H14+'Schedule IIF (EBS)'!H14","v":0},{"$f":"'Fixed Income Investments (Rev.)'!H27","v":6.0000000000000001E-3},{"$f":"IF(G30<0,0,G30*H30)","v":0},null,null,{"$f":"MAX(0,IF(K30=\"\",H30*G30,G30*K30))","v":0}]
[null,2,null,null,null,null,{"$f":"'Schedule IIB (EBS)'!H15+'Schedule IIC (EBS)'!H15+(MAX(0,'Schedule IID (EBS)'!H15-'Schedule IID (EBS)'!J15))+'Schedule IIE (EBS)'!H15+'Schedule IIF (EBS)'!H15","v":0},{"$f":"'Fixed Income Investments (Rev.)'!H28","v":1.2E-2},0,null,null,0]
[null,3,null,null,null,null,{"$f":"'Schedule IIB (EBS)'!H16+'Schedule IIC (EBS)'!H16+(MAX(0,'Schedule IID (EBS)'!H16-'Schedule IID (EBS)'!J16))+'Schedule IIE (EBS)'!H16+'Schedule IIF (EBS)'!H16","v":0},{"$f":"'Fixed Income Investments (Rev.)'!H29","v":0.02},0,null,null,0]
[null,4,null,null,null,null,{"$f":"'Schedule IIB (EBS)'!H17+'Schedule IIC (EBS)'!H17+(MAX(0,'Schedule IID (EBS)'!H17-'Schedule IID (EBS)'!J17))+'Schedule IIE (EBS)'!H17+'Schedule IIF (EBS)'!H17","v":0},{"$f":"'Fixed Income Investments (Rev.)'!H30","v":0.04},0,null,null,0]
[null,5,null,null,null,null,{"$f":"'Schedule IIB (EBS)'!H18+'Schedule IIC (EBS)'!H18+(MAX(0,'Schedule IID (EBS)'!H18-'Schedule IID (EBS)'!J18))+'Schedule IIE (EBS)'!H18+'Schedule IIF (EBS)'!H18","v":0},{"$f":"'Fixed Income Investments (Rev.)'!H31","v":0.11},0,null,null,0]
[null,6,null,null,null,null,{"$f":"'Schedule IIB (EBS)'!H19+'Schedule IIC (EBS)'!H19+(MAX(0,'Schedule IID (EBS)'!H19-'Schedule IID (EBS)'!J19))+'Schedule IIE (EBS)'!H19+'Schedule IIF (EBS)'!H19","v":0},{"$f":"'Fixed Income Investments (Rev.)'!H32","v":0.25},0,null,null,0]
[null,7,null,null,null,null,{"$f":"'Schedule IIB (EBS)'!H20+'Schedule IIC (EBS)'!H20+(MAX(0,'Schedule IID (EBS)'!H20-'Schedule IID (EBS)'!J20))+'Schedule IIE (EBS)'!H20+'Schedule IIF (EBS)'!H20","v":0},{"$f":"'Fixed Income Investments (Rev.)'!H33","v":0.35},0,null,null,0]
[null,8,null,null,null,null,{"$f":"'Schedule IIB (EBS)'!H21+'Schedule IIC (EBS)'!H21+(MAX(0,'Schedule IID (EBS)'!H21-'Schedule IID (EBS)'!J21))+'Schedule IIE (EBS)'!H21+'Schedule IIF (EBS)'!H21","v":0},{"$f":"'Fixed Income Investments (Rev.)'!H34","v":0.35},0,null,null,0]
[]
[null,"(b)  SUBTOTAL - RESIDENTIAL MORTGAGE-BACKED SECURITIES",null,null,null,null,{"$f":"SUM(G29:G38)","v":0},null,{"$f":"IF(SUM(I29:I37)>=0,SUM(I29:I37),0)","v":0},null,null,{"$f":"IF(SUM(L29:L37)>=0,SUM(L29:L37),0)","v":0}]
[]
[null,"(c) Commercial Mortgage-Backed Securities / Asset-Backed Securities"]
[]
[null,"BSCR Rating"]
[null,1,null,null,null,null,{"$f":"'Schedule IIB (EBS)'!L14+'Schedule IIC (EBS)'!L14+(MAX(0,'Schedule IID (EBS)'!L14-'Schedule IID (EBS)'!N14))+'Schedule IIE (EBS)'!L14+'Schedule IIF (EBS)'!L14","v":0},{"$f":"'Fixed Income Investments (Rev.)'!H41","v":5.0000000000000001E-3},{"$f":"IF(G44<0,0,G44*H44)","v":0},null,null,{"$f":"MAX(0,IF(K44=\"\",H44*G44,G44*K44))","v":0}]
[null,2,null,null,null,null,{"$f":"'Schedule IIB (EBS)'!L15+'Schedule IIC (EBS)'!L15+(MAX(0,'Schedule IID (EBS)'!L15-'Schedule IID (EBS)'!N15))+'Schedule IIE (EBS)'!L15+'Schedule IIF (EBS)'!L15","v":0},{"$f":"'Fixed Income Investments (Rev.)'!H42","v":0.01},0,null,null,0]
[null,3,null,null,null,null,{"$f":"'Schedule IIB (EBS)'!L16+'Schedule IIC (EBS)'!L16+(MAX(0,'Schedule IID (EBS)'!L16-'Schedule IID (EBS)'!N16))+'Schedule IIE (EBS)'!L16+'Schedule IIF (EBS)'!L16","v":0},{"$f":"'Fixed Income Investments (Rev.)'!H43","v":1.7999999999999999E-2},0,null,null,0]
[null,4,null,null,null,null,{"$f":"'Schedule IIB (EBS)'!L17+'Schedule IIC (EBS)'!L17+(MAX(0,'Schedule IID (EBS)'!L17-'Schedule IID (EBS)'!N17))+'Schedule IIE (EBS)'!L17+'Schedule IIF (EBS)'!L17","v":0},{"$f":"'Fixed Income Investments (Rev.)'!H44","v":3.5000000000000003E-2},0,null,null,0]
[null,5,null,null,null,null,{"$f":"'Schedule IIB (EBS)'!L18+'Schedule IIC (EBS)'!L18+(MAX(0,'Schedule IID (EBS)'!L18-'Schedule IID (EBS)'!N18))+'Schedule IIE (EBS)'!L18+'Schedule IIF (EBS)'!L18","v":0},{"$f":"'Fixed Income Investments (Rev.)'!H45","v":0.1},0,null,null,0]
[null,6,null,null,null,null,{"$f":"'Schedule IIB (EBS)'!L19+'Schedule IIC (EBS)'!L19+(MAX(0,'Schedule IID (EBS)'!L19-'Schedule IID (EBS)'!N19))+'Schedule IIE (EBS)'!L19+'Schedule IIF (EBS)'!L19","v":0},{"$f":"'Fixed Income Investments (Rev.)'!H46","v":0.2},0,null,null,0]
[null,7,null,null,null,null,{"$f":"'Schedule IIB (EBS)'!L20+'Schedule IIC (EBS)'!L20+(MAX(0,'Schedule IID (EBS)'!L20-'Schedule IID (EBS)'!N20))+'Schedule IIE (EBS)'!L20+'Schedule IIF (EBS)'!L20","v":0},{"$f":"'Fixed Income Investments (Rev.)'!H47","v":0.3},0,null,null,0]
[null,8,null,null,null,null,{"$f":"'Schedule IIB (EBS)'!L21+'Schedule IIC (EBS)'!L21+(MAX(0,'Schedule IID (EBS)'!L21-'Schedule IID (EBS)'!N21))+'Schedule IIE (EBS)'!L21+'Schedule IIF (EBS)'!L21","v":0},{"$f":"'Fixed Income Investments (Rev.)'!H48","v":0.35},0,null,null,0]
[]
[null,"(c)  SUBTOTAL - COMMERCIAL MORTGAGE-BACKED SECURITIES / ASSET-BACKED SECURITIES",null,null,null,null,{"$f":"SUM(G43:G52)","v":0},null,{"$f":"IF(SUM(I43:I51)>=0,SUM(I43:I51),0)","v":0},null,null,{"$f":"IF(SUM(L43:L51)>=0,SUM(L43:L51),0)","v":0}]
[]
[null,"(d) Bond Mutual Funds"]
[]
[null,"BSCR Rating"]
[null,0,null,null,null,null,{"$f":"'Schedule IIB (EBS)'!P13+'Schedule IIC (EBS)'!P13+(MAX(0,'Schedule IID (EBS)'!P13-'Schedule IID (EBS)'!R13))+'Schedule IIE (EBS)'!P13+'Schedule IIF (EBS)'!P13","v":0},{"$f":"'Fixed Income Investments (Rev.)'!H56","v":0},{"$f":"IF(G58<0,0,G58*H58)","v":0},null,null,{"$f":"MAX(0,IF(K58=\"\",H58*G58,G58*K58))","v":0}]
[null,1,null,null,null,null,{"$f":"'Schedule IIB (EBS)'!P14+'Schedule IIC (EBS)'!P14+(MAX(0,'Schedule IID (EBS)'!P14-'Schedule IID (EBS)'!R14))+'Schedule IIE (EBS)'!P14+'Schedule IIF (EBS)'!P14","v":0},{"$f":"'Fixed Income Investments (Rev.)'!H57","v":4.0000000000000001E-3},0,null,null,0]
[null,2,null,null,null,null,{"$f":"'Schedule IIB (EBS)'!P15+'Schedule IIC (EBS)'!P15+(MAX(0,'Schedule IID (EBS)'!P15-'Schedule IID (EBS)'!R15))+'Schedule IIE (EBS)'!P15+'Schedule IIF (EBS)'!P15","v":0},{"$f":"'Fixed Income Investments (Rev.)'!H58","v":8.0000000000000002E-3},0,null,null,0]
[null,3,null,null,null,null,{"$f":"'Schedule IIB (EBS)'!P16+'Schedule IIC (EBS)'!P16+(MAX(0,'Schedule IID (EBS)'!P16-'Schedule IID (EBS)'!R16))+'Schedule IIE (EBS)'!P16+'Schedule IIF (EBS)'!P16","v":0},{"$f":"'Fixed Income Investments (Rev.)'!H59","v":1.4999999999999999E-2},0,null,null,0]
[null,4,null,null,null,null,{"$f":"'Schedule IIB (EBS)'!P17+'Schedule IIC (EBS)'!P17+(MAX(0,'Schedule IID (EBS)'!P17-'Schedule IID (EBS)'!R17))+'Schedule IIE (EBS)'!P17+'Schedule IIF (EBS)'!P17","v":0},{"$f":"'Fixed Income Investments (Rev.)'!H60","v":0.03},0,null,null,0]
[null,5,null,null,null,null,{"$f":"'Schedule IIB (EBS)'!P18+'Schedule IIC (EBS)'!P18+(MAX(0,'Schedule IID (EBS)'!P18-'Schedule IID (EBS)'!R18))+'Schedule IIE (EBS)'!P18+'Schedule IIF (EBS)'!P18","v":0},{"$f":"'Fixed Income Investments (Rev.)'!H61","v":0.08},0,null,null,0]
[null,6,null,null,null,null,{"$f":"'Schedule IIB (EBS)'!P19+'Schedule IIC (EBS)'!P19+(MAX(0,'Schedule IID (EBS)'!P19-'Schedule IID (EBS)'!R19))+'Schedule IIE (EBS)'!P19+'Schedule IIF (EBS)'!P19","v":0},{"$f":"'Fixed Income Investments (Rev.)'!H62","v":0.15},0,null,null,0]
[null,7,null,null,null,null,{"$f":"'Schedule IIB (EBS)'!P20+'Schedule IIC (EBS)'!P20+(MAX(0,'Schedule IID (EBS)'!P20-'Schedule IID (EBS)'!R20))+'Schedule IIE (EBS)'!P20+'Schedule IIF (EBS)'!P20","v":0},{"$f":"'Fixed Income Investments (Rev.)'!H63","v":0.26300000000000001},0,null,null,0]
[null,8,null,null,null,null,{"$f":"'Schedule IIB (EBS)'!P21+'Schedule IIC (EBS)'!P21+(MAX(0,'Schedule IID (EBS)'!P21-'Schedule IID (EBS)'!R21))+'Schedule IIE (EBS)'!P21+'Schedule IIF (EBS)'!P21","v":0},{"$f":"'Fixed Income Investments (Rev.)'!H64","v":0.35},0,null,null,0]
[]
[null,"(d)  SUBTOTAL - BOND MUTUAL FUNDS",null,null,null,null,{"$f":"SUM(G58:G67)","v":0},null,{"$f":"IF(SUM(I58:I66)>=0,SUM(I58:I66),0)","v":0},null,null,{"$f":"IF(SUM(L58:L66)>=0,SUM(L58:L66),0)","v":0}]
[]
[null,"(e) Mortgage Loans"]
[]
[null,"Insured/Guaranteed Mortgages",null,null,null,null,{"$f":"'Schedule IIB (EBS)'!T22+'Schedule IIC (EBS)'!T22+(MAX(0,'Schedule IID (EBS)'!T22-'Schedule IID (EBS)'!V22))+'Schedule IIE (EBS)'!T22+'Schedule IIF (EBS)'!T22","v":0},{"$f":"'Fixed Income Investments (Rev.)'!H70","v":3.0000000000000001E-3},{"$f":"IF(G72<0,0,G72*H72)","v":0},null,null,{"$f":"MAX(0,IF(K72=\"\",H72*G72,G72*K72))","v":0}]
[null,"Other Commercial and Farm Mortgages",null,null,null,null,{"$f":"'Schedule IIB (EBS)'!T23+'Schedule IIC (EBS)'!T23+(MAX(0,'Schedule IID (EBS)'!T23-'Schedule IID (EBS)'!V23))+'Schedule IIE (EBS)'!T23+'Schedule IIF (EBS)'!T23","v":0},{"$f":"'Fixed Income Investments (Rev.)'!H71","v":0.05},{"$f":"IF(G73<0,0,G73*H73)","v":0},null,null,{"$f":"MAX(0,IF(K73=\"\",H73*G73,G73*K73))","v":0}]
[null,"Other Residential Mortgages",null,null,null,null,{"$f":"'Schedule IIB (EBS)'!T24+'Schedule IIC (EBS)'!T24+(MAX(0,'Schedule IID (EBS)'!T24-'Schedule IID (EBS)'!V24))+'Schedule IIE (EBS)'!T24+'Schedule IIF (EBS)'!T24","v":0},{"$f":"'Fixed Income Investments (Rev.)'!H72","v":1.4999999999999999E-2},{"$f":"IF(G74<0,0,G74*H74)","v":0},null,null,{"$f":"MAX(0,IF(K74=\"\",H74*G74,G74*K74))","v":0}]
[null,"Mortgages Not In Good Standing",null,null,null,null,{"$f":"'Schedule IIB (EBS)'!T25+'Schedule IIC (EBS)'!T25+(MAX(0,'Schedule IID (EBS)'!T25-'Schedule IID (EBS)'!V25))+'Schedule IIE (EBS)'!T25+'Schedule IIF (EBS)'!T25","v":0},{"$f":"'Fixed Income Investments (Rev.)'!H73","v":0.25},{"$f":"IF(G75<0,0,G75*H75)","v":0},null,null,{"$f":"MAX(0,IF(K75=\"\",H75*G75,G75*K75))","v":0}]
[]
[null,"(e)  SUBTOTAL - MORTGAGE LOANS",null,null,null,null,{"$f":"SUM(G72:G76)","v":0},null,{"$f":"IF(SUM(I72:I75)>=0,SUM(I72:I75),0)","v":0},null,null,{"$f":"IF(SUM(L72:L75)>=0,SUM(L72:L75),0)","v":0}]
[]
[null,"(f) Other Fixed Income Investments"]
[]
[null,"Other Loans",null,null,null,null,{"$f":"'Form 1EBS'!F56","v":0},{"$f":"'Fixed Income Investments (Rev.)'!H79","v":0.05},{"$f":"IF(G81<0,0,G81*H81)","v":0},null,null,{"$f":"MAX(0,IF(K81=\"\",H81*G81,G81*K81))","v":0}]
[]
[null,"Cash and Cash Equivalent Counterparty Balances By BSCR Rating"]
[]
[null,"BSCR Rating 0 ",null,null,null,null,{"$f":"'Schedule XIXA'!G81","v":0},{"$f":"'Fixed Income Investments (Rev.)'!H83","v":0},{"$f":"IF(G85<0,0,G85*H85)","v":0},null,null,{"$f":"MAX(0,IF(K85=\"\",H85*G85,G85*K85))","v":0}]
[null,"BSCR Rating 1",null,null,null,null,{"$f":"'Schedule XIXA'!G82","v":0},{"$f":"'Fixed Income Investments (Rev.)'!H84","v":1E-3},{"$f":"IF(G86<0,0,G86*H86)","v":0},null,null,{"$f":"MAX(0,IF(K86=\"\",H86*G86,G86*K86))","v":0}]
[null,"BSCR Rating 2",null,null,null,null,{"$f":"'Schedule XIXA'!G83","v":0},{"$f":"'Fixed Income Investments (Rev.)'!H85","v":2E-3},0,null,null,0]
[null,"BSCR Rating 3",null,null,null,null,{"$f":"'Schedule XIXA'!G84","v":0},{"$f":"'Fixed Income Investments (Rev.)'!H86","v":3.0000000000000001E-3},0,null,null,0]
[null,"BSCR Rating 4",null,null,null,null,{"$f":"'Schedule XIXA'!G85","v":0},{"$f":"'Fixed Income Investments (Rev.)'!H87","v":5.0000000000000001E-3},0,null,null,0]
[null,"BSCR Rating 5",null,null,null,null,{"$f":"'Schedule XIXA'!G86","v":0},{"$f":"'Fixed Income Investments (Rev.)'!H88","v":1.4999999999999999E-2},0,null,null,0]
[null,"BSCR Rating 6",null,null,null,null,{"$f":"'Schedule XIXA'!G87","v":0},{"$f":"'Fixed Income Investments (Rev.)'!H89","v":0.04},0,null,null,0]
[null,"BSCR Rating 7",null,null,null,null,{"$f":"'Schedule XIXA'!G88","v":0},{"$f":"'Fixed Income Investments (Rev.)'!H90","v":0.06},0,null,null,0]
[null,"BSCR Rating 8",null,null,null,null,{"$f":"'Schedule XIXA'!G89","v":0},{"$f":"'Fixed Income Investments (Rev.)'!H91","v":0.09},0,null,null,0]
[]
[null,"Total",null,null,null,null,{"$f":"SUM(G85:G94)","v":0},null,{"$f":"SUM(I85:I94)","v":0},null,null,{"$f":"SUM(L85:L94)","v":0}]
[]
[null,"Diversification Adj at 40%",null,null,null,null,null,null,{"$f":"SUM(I85:I93)*-('Schedule XIXA'!G98)","v":0},null,null,{"$f":"SUM(L85:L93)*-('Schedule XIXA'!G98)","v":0}]
[]
[null,"(f)  SUBTOTAL - OTHER FIXED INCOME SECURITIES",null,null,null,null,{"$f":"G81+G95","v":0},null,{"$f":"IF(SUM(I81,I95,I97)>=0,SUM(I81,I95,I97),0)","v":0},null,null,{"$f":"IF(SUM(L81,L95,L97)>=0,SUM(L81,L95,L97),0)","v":0}]
[]
[null,"(g) Spread Risk for Credit Derivatives"]
[]
[null,null,null,"Spread Up"]
[null,null,null,"Long Exposures",null,"Short Exposures"]
[null,"Spread Up",null,"Before Shock","After Shock","Before Shock","After Shock"]
[null,"BSCR Rating 0 ",null,{"$f":"'Schedule IIB (EBS)'!D68+'Schedule IIC (EBS)'!D68+'Schedule IID (EBS)'!D68+'Schedule IIE (EBS)'!D68+'Schedule IIF (EBS)'!D68","v":0},{"$f":"'Schedule IIB (EBS)'!F68+'Schedule IIC (EBS)'!F68+'Schedule IID (EBS)'!F68+'Schedule IIE (EBS)'!F68+'Schedule IIF (EBS)'!F68","v":0},{"$f":"'Schedule IIB (EBS)'!H68+'Schedule IIC (EBS)'!H68+'Schedule IID (EBS)'!H68+'Schedule IIE (EBS)'!H68+'Schedule IIF (EBS)'!H68","v":0},{"$f":"'Schedule IIB (EBS)'!J68+'Schedule IIC (EBS)'!J68+'Schedule IID (EBS)'!J68+'Schedule IIE (EBS)'!J68+'Schedule IIF (EBS)'!J68","v":0},0,{"$f":"'Fixed Income Investments (Rev.)'!I105","v":0},null,null,{"$f":"IF(K106=\"\",I106,K106)","v":0}]
[null,"BSCR Rating 1",null,{"$f":"'Schedule IIB (EBS)'!D69+'Schedule IIC (EBS)'!D69+'Schedule IID (EBS)'!D69+'Schedule IIE (EBS)'!D69+'Schedule IIF (EBS)'!D69","v":0},{"$f":"'Schedule IIB (EBS)'!F69+'Schedule IIC (EBS)'!F69+'Schedule IID (EBS)'!F69+'Schedule IIE (EBS)'!F69+'Schedule IIF (EBS)'!F69","v":0},{"$f":"'Schedule IIB (EBS)'!H69+'Schedule IIC (EBS)'!H69+'Schedule IID (EBS)'!H69+'Schedule IIE (EBS)'!H69+'Schedule IIF (EBS)'!H69","v":0},{"$f":"'Schedule IIB (EBS)'!J69+'Schedule IIC (EBS)'!J69+'Schedule IID (EBS)'!J69+'Schedule IIE (EBS)'!J69+'Schedule IIF (EBS)'!J69","v":0},130,{"$f":"'Fixed Income Investments (Rev.)'!I106","v":0},null,null,{"$f":"IF(K107=\"\",I107,K107)","v":0}]
[null,"BSCR Rating 2",null,{"$f":"'Schedule IIB (EBS)'!D70+'Schedule IIC (EBS)'!D70+'Schedule IID (EBS)'!D70+'Schedule IIE (EBS)'!D70+'Schedule IIF (EBS)'!D70","v":0},{"$f":"'Schedule IIB (EBS)'!F70+'Schedule IIC (EBS)'!F70+'Schedule IID (EBS)'!F70+'Schedule IIE (EBS)'!F70+'Schedule IIF (EBS)'!F70","v":0},{"$f":"'Schedule IIB (EBS)'!H70+'Schedule IIC (EBS)'!H70+'Schedule IID (EBS)'!H70+'Schedule IIE (EBS)'!H70+'Schedule IIF (EBS)'!H70","v":0},{"$f":"'Schedule IIB (EBS)'!J70+'Schedule IIC (EBS)'!J70+'Schedule IID (EBS)'!J70+'Schedule IIE (EBS)'!J70+'Schedule IIF (EBS)'!J70","v":0},150,{"$f":"'Fixed Income Investments (Rev.)'!I107","v":0},null,null,0]
[null,"BSCR Rating 3",null,{"$f":"'Schedule IIB (EBS)'!D71+'Schedule IIC (EBS)'!D71+'Schedule IID (EBS)'!D71+'Schedule IIE (EBS)'!D71+'Schedule IIF (EBS)'!D71","v":0},{"$f":"'Schedule IIB (EBS)'!F71+'Schedule IIC (EBS)'!F71+'Schedule IID (EBS)'!F71+'Schedule IIE (EBS)'!F71+'Schedule IIF (EBS)'!F71","v":0},{"$f":"'Schedule IIB (EBS)'!H71+'Schedule IIC (EBS)'!H71+'Schedule IID (EBS)'!H71+'Schedule IIE (EBS)'!H71+'Schedule IIF (EBS)'!H71","v":0},{"$f":"'Schedule IIB (EBS)'!J71+'Schedule IIC (EBS)'!J71+'Schedule IID (EBS)'!J71+'Schedule IIE (EBS)'!J71+'Schedule IIF (EBS)'!J71","v":0},260,{"$f":"'Fixed Income Investments (Rev.)'!I108","v":0},null,null,0]
[null,"BSCR Rating 4",null,{"$f":"'Schedule IIB (EBS)'!D72+'Schedule IIC (EBS)'!D72+'Schedule IID (EBS)'!D72+'Schedule IIE (EBS)'!D72+'Schedule IIF (EBS)'!D72","v":0},{"$f":"'Schedule IIB (EBS)'!F72+'Schedule IIC (EBS)'!F72+'Schedule IID (EBS)'!F72+'Schedule IIE (EBS)'!F72+'Schedule IIF (EBS)'!F72","v":0},{"$f":"'Schedule IIB (EBS)'!H72+'Schedule IIC (EBS)'!H72+'Schedule IID (EBS)'!H72+'Schedule IIE (EBS)'!H72+'Schedule IIF (EBS)'!H72","v":0},{"$f":"'Schedule IIB (EBS)'!J72+'Schedule IIC (EBS)'!J72+'Schedule IID (EBS)'!J72+'Schedule IIE (EBS)'!J72+'Schedule IIF (EBS)'!J72","v":0},450,{"$f":"'Fixed Income Investments (Rev.)'!I109","v":0},null,null,0]
[null,"BSCR Rating 5",null,{"$f":"'Schedule IIB (EBS)'!D73+'Schedule IIC (EBS)'!D73+'Schedule IID (EBS)'!D73+'Schedule IIE (EBS)'!D73+'Schedule IIF (EBS)'!D73","v":0},{"$f":"'Schedule IIB (EBS)'!F73+'Schedule IIC (EBS)'!F73+'Schedule IID (EBS)'!F73+'Schedule IIE (EBS)'!F73+'Schedule IIF (EBS)'!F73","v":0},{"$f":"'Schedule IIB (EBS)'!H73+'Schedule IIC (EBS)'!H73+'Schedule IID (EBS)'!H73+'Schedule IIE (EBS)'!H73+'Schedule IIF (EBS)'!H73","v":0},{"$f":"'Schedule IIB (EBS)'!J73+'Schedule IIC (EBS)'!J73+'Schedule IID (EBS)'!J73+'Schedule IIE (EBS)'!J73+'Schedule IIF (EBS)'!J73","v":0},840,{"$f":"'Fixed Income Investments (Rev.)'!I110","v":0},null,null,0]
[null,"BSCR Rating 6",null,{"$f":"'Schedule IIB (EBS)'!D74+'Schedule IIC (EBS)'!D74+'Schedule IID (EBS)'!D74+'Schedule IIE (EBS)'!D74+'Schedule IIF (EBS)'!D74","v":0},{"$f":"'Schedule IIB (EBS)'!F74+'Schedule IIC (EBS)'!F74+'Schedule IID (EBS)'!F74+'Schedule IIE (EBS)'!F74+'Schedule IIF (EBS)'!F74","v":0},{"$f":"'Schedule IIB (EBS)'!H74+'Schedule IIC (EBS)'!H74+'Schedule IID (EBS)'!H74+'Schedule IIE (EBS)'!H74+'Schedule IIF (EBS)'!H74","v":0},{"$f":"'Schedule IIB (EBS)'!J74+'Schedule IIC (EBS)'!J74+'Schedule IID (EBS)'!J74+'Schedule IIE (EBS)'!J74+'Schedule IIF (EBS)'!J74","v":0},1620,{"$f":"'Fixed Income Investments (Rev.)'!I111","v":0},null,null,0]
[null,"BSCR Rating 7",null,{"$f":"'Schedule IIB (EBS)'!D75+'Schedule IIC (EBS)'!D75+'Schedule IID (EBS)'!D75+'Schedule IIE (EBS)'!D75+'Schedule IIF (EBS)'!D75","v":0},{"$f":"'Schedule IIB (EBS)'!F75+'Schedule IIC (EBS)'!F75+'Schedule IID (EBS)'!F75+'Schedule IIE (EBS)'!F75+'Schedule IIF (EBS)'!F75","v":0},{"$f":"'Schedule IIB (EBS)'!H75+'Schedule IIC (EBS)'!H75+'Schedule IID (EBS)'!H75+'Schedule IIE (EBS)'!H75+'Schedule IIF (EBS)'!H75","v":0},{"$f":"'Schedule IIB (EBS)'!J75+'Schedule IIC (EBS)'!J75+'Schedule IID (EBS)'!J75+'Schedule IIE (EBS)'!J75+'Schedule IIF (EBS)'!J75","v":0},1620,{"$f":"'Fixed Income Investments (Rev.)'!I112","v":0},null,null,0]
[null,"BSCR Rating 8",null,{"$f":"'Schedule IIB (EBS)'!D76+'Schedule IIC (EBS)'!D76+'Schedule IID (EBS)'!D76+'Schedule IIE (EBS)'!D76+'Schedule IIF (EBS)'!D76","v":0},{"$f":"'Schedule IIB (EBS)'!F76+'Schedule IIC (EBS)'!F76+'Schedule IID (EBS)'!F76+'Schedule IIE (EBS)'!F76+'Schedule IIF (EBS)'!F76","v":0},{"$f":"'Schedule IIB (EBS)'!H76+'Schedule IIC (EBS)'!H76+'Schedule IID (EBS)'!H76+'Schedule IIE (EBS)'!H76+'Schedule IIF (EBS)'!H76","v":0},{"$f":"'Schedule IIB (EBS)'!J76+'Schedule IIC (EBS)'!J76+'Schedule IID (EBS)'!J76+'Schedule IIE (EBS)'!J76+'Schedule IIF (EBS)'!J76","v":0},1620,{"$f":"'Fixed Income Investments (Rev.)'!I113","v":0},null,null,0]
[null,"Total Spread Up",null,{"$f":"SUM(D106:D114)","v":0},{"$f":"SUM(E106:E114)","v":0},{"$f":"SUM(F106:F114)","v":0},{"$f":"SUM(G106:G114)","v":0},null,{"$f":"SUM(I106:I114)","v":0},null,{"$f":"SUM(K106:K114)","v":0},{"$f":"SUM(L106:L114)","v":0}]
[]
[null,null,null,"Spread Down"]
[null,null,null,"Long Exposures",null,"Short Exposures"]
[null,"Spread Up",null,"Before Shock","After Shock","Before Shock","After Shock"]
[null,"BSCR Rating 0 ",null,{"$f":"'Schedule IIB (EBS)'!N68+'Schedule IIC (EBS)'!N68+'Schedule IID (EBS)'!N68+'Schedule IIE (EBS)'!N68+'Schedule IIF (EBS)'!N68","v":0},{"$f":"'Schedule IIB (EBS)'!P68+'Schedule IIC (EBS)'!P68+'Schedule IID (EBS)'!P68+'Schedule IIE (EBS)'!P68+'Schedule IIF (EBS)'!P68","v":0},{"$f":"'Schedule IIB (EBS)'!R68+'Schedule IIC (EBS)'!R68+'Schedule IID (EBS)'!R68+'Schedule IIE (EBS)'!R68+'Schedule IIF (EBS)'!R68","v":0},{"$f":"'Schedule IIB (EBS)'!T68+'Schedule IIC (EBS)'!T68+'Schedule IID (EBS)'!T68+'Schedule IIE (EBS)'!T68+'Schedule IIF (EBS)'!T68","v":0},0,{"$f":"'Fixed Income Investments (Rev.)'!I120","v":0},null,null,{"$f":"IF(K120=\"\",I120,K120)","v":0}]
[null,"BSCR Rating 1",null,{"$f":"'Schedule IIB (EBS)'!N69+'Schedule IIC (EBS)'!N69+'Schedule IID (EBS)'!N69+'Schedule IIE (EBS)'!N69+'Schedule IIF (EBS)'!N69","v":0},{"$f":"'Schedule IIB (EBS)'!P69+'Schedule IIC (EBS)'!P69+'Schedule IID (EBS)'!P69+'Schedule IIE (EBS)'!P69+'Schedule IIF (EBS)'!P69","v":0},{"$f":"'Schedule IIB (EBS)'!R69+'Schedule IIC (EBS)'!R69+'Schedule IID (EBS)'!R69+'Schedule IIE (EBS)'!R69+'Schedule IIF (EBS)'!R69","v":0},{"$f":"'Schedule IIB (EBS)'!T69+'Schedule IIC (EBS)'!T69+'Schedule IID (EBS)'!T69+'Schedule IIE (EBS)'!T69+'Schedule IIF (EBS)'!T69","v":0},-0.75,{"$f":"'Fixed Income Investments (Rev.)'!I121","v":0},null,null,0]
[null,"BSCR Rating 2",null,{"$f":"'Schedule IIB (EBS)'!N70+'Schedule IIC (EBS)'!N70+'Schedule IID (EBS)'!N70+'Schedule IIE (EBS)'!N70+'Schedule IIF (EBS)'!N70","v":0},{"$f":"'Schedule IIB (EBS)'!P70+'Schedule IIC (EBS)'!P70+'Schedule IID (EBS)'!P70+'Schedule IIE (EBS)'!P70+'Schedule IIF (EBS)'!P70","v":0},{"$f":"'Schedule IIB (EBS)'!R70+'Schedule IIC (EBS)'!R70+'Schedule IID (EBS)'!R70+'Schedule IIE (EBS)'!R70+'Schedule IIF (EBS)'!R70","v":0},{"$f":"'Schedule IIB (EBS)'!T70+'Schedule IIC (EBS)'!T70+'Schedule IID (EBS)'!T70+'Schedule IIE (EBS)'!T70+'Schedule IIF (EBS)'!T70","v":0},-0.75,{"$f":"'Fixed Income Investments (Rev.)'!I122","v":0},null,null,0]
[null,"BSCR Rating 3",null,{"$f":"'Schedule IIB (EBS)'!N71+'Schedule IIC (EBS)'!N71+'Schedule IID (EBS)'!N71+'Schedule IIE (EBS)'!N71+'Schedule IIF (EBS)'!N71","v":0},{"$f":"'Schedule IIB (EBS)'!P71+'Schedule IIC (EBS)'!P71+'Schedule IID (EBS)'!P71+'Schedule IIE (EBS)'!P71+'Schedule IIF (EBS)'!P71","v":0},{"$f":"'Schedule IIB (EBS)'!R71+'Schedule IIC (EBS)'!R71+'Schedule IID (EBS)'!R71+'Schedule IIE (EBS)'!R71+'Schedule IIF (EBS)'!R71","v":0},{"$f":"'Schedule IIB (EBS)'!T71+'Schedule IIC (EBS)'!T71+'Schedule IID (EBS)'!T71+'Schedule IIE (EBS)'!T71+'Schedule IIF (EBS)'!T71","v":0},-0.75,{"$f":"'Fixed Income Investments (Rev.)'!I123","v":0},null,null,0]
[null,"BSCR Rating 4",null,{"$f":"'Schedule IIB (EBS)'!N72+'Schedule IIC (EBS)'!N72+'Schedule IID (EBS)'!N72+'Schedule IIE (EBS)'!N72+'Schedule IIF (EBS)'!N72","v":0},{"$f":"'Schedule IIB (EBS)'!P72+'Schedule IIC (EBS)'!P72+'Schedule IID (EBS)'!P72+'Schedule IIE (EBS)'!P72+'Schedule IIF (EBS)'!P72","v":0},{"$f":"'Schedule IIB (EBS)'!R72+'Schedule IIC (EBS)'!R72+'Schedule IID (EBS)'!R72+'Schedule IIE (EBS)'!R72+'Schedule IIF (EBS)'!R72","v":0},{"$f":"'Schedule IIB (EBS)'!T72+'Schedule IIC (EBS)'!T72+'Schedule IID (EBS)'!T72+'Schedule IIE (EBS)'!T72+'Schedule IIF (EBS)'!T72","v":0},-0.75,{"$f":"'Fixed Income Investments (Rev.)'!I124","v":0},null,null,0]
[null,"BSCR Rating 5",null,{"$f":"'Schedule IIB (EBS)'!N73+'Schedule IIC (EBS)'!N73+'Schedule IID (EBS)'!N73+'Schedule IIE (EBS)'!N73+'Schedule IIF (EBS)'!N73","v":0},{"$f":"'Schedule IIB (EBS)'!P73+'Schedule IIC (EBS)'!P73+'Schedule IID (EBS)'!P73+'Schedule IIE (EBS)'!P73+'Schedule IIF (EBS)'!P73","v":0},{"$f":"'Schedule IIB (EBS)'!R73+'Schedule IIC (EBS)'!R73+'Schedule IID (EBS)'!R73+'Schedule IIE (EBS)'!R73+'Schedule IIF (EBS)'!R73","v":0},{"$f":"'Schedule IIB (EBS)'!T73+'Schedule IIC (EBS)'!T73+'Schedule IID (EBS)'!T73+'Schedule IIE (EBS)'!T73+'Schedule IIF (EBS)'!T73","v":0},-0.75,{"$f":"'Fixed Income Investments (Rev.)'!I125","v":0},null,null,0]
[null,"BSCR Rating 6",null,{"$f":"'Schedule IIB (EBS)'!N74+'Schedule IIC (EBS)'!N74+'Schedule IID (EBS)'!N74+'Schedule IIE (EBS)'!N74+'Schedule IIF (EBS)'!N74","v":0},{"$f":"'Schedule IIB (EBS)'!P74+'Schedule IIC (EBS)'!P74+'Schedule IID (EBS)'!P74+'Schedule IIE (EBS)'!P74+'Schedule IIF (EBS)'!P74","v":0},{"$f":"'Schedule IIB (EBS)'!R74+'Schedule IIC (EBS)'!R74+'Schedule IID (EBS)'!R74+'Schedule IIE (EBS)'!R74+'Schedule IIF (EBS)'!R74","v":0},{"$f":"'Schedule IIB (EBS)'!T74+'Schedule IIC (EBS)'!T74+'Schedule IID (EBS)'!T74+'Schedule IIE (EBS)'!T74+'Schedule IIF (EBS)'!T74","v":0},-0.75,{"$f":"'Fixed Income Investments (Rev.)'!I126","v":0},null,null,0]
[null,"BSCR Rating 7",null,{"$f":"'Schedule IIB (EBS)'!N75+'Schedule IIC (EBS)'!N75+'Schedule IID (EBS)'!N75+'Schedule IIE (EBS)'!N75+'Schedule IIF (EBS)'!N75","v":0},{"$f":"'Schedule IIB (EBS)'!P75+'Schedule IIC (EBS)'!P75+'Schedule IID (EBS)'!P75+'Schedule IIE (EBS)'!P75+'Schedule IIF (EBS)'!P75","v":0},{"$f":"'Schedule IIB (EBS)'!R75+'Schedule IIC (EBS)'!R75+'Schedule IID (EBS)'!R75+'Schedule IIE (EBS)'!R75+'Schedule IIF (EBS)'!R75","v":0},{"$f":"'Schedule IIB (EBS)'!T75+'Schedule IIC (EBS)'!T75+'Schedule IID (EBS)'!T75+'Schedule IIE (EBS)'!T75+'Schedule IIF (EBS)'!T75","v":0},-0.75,{"$f":"'Fixed Income Investments (Rev.)'!I127","v":0},null,null,0]
[null,"BSCR Rating 8",null,{"$f":"'Schedule IIB (EBS)'!N76+'Schedule IIC (EBS)'!N76+'Schedule IID (EBS)'!N76+'Schedule IIE (EBS)'!N76+'Schedule IIF (EBS)'!N76","v":0},{"$f":"'Schedule IIB (EBS)'!P76+'Schedule IIC (EBS)'!P76+'Schedule IID (EBS)'!P76+'Schedule IIE (EBS)'!P76+'Schedule IIF (EBS)'!P76","v":0},{"$f":"'Schedule IIB (EBS)'!R76+'Schedule IIC (EBS)'!R76+'Schedule IID (EBS)'!R76+'Schedule IIE (EBS)'!R76+'Schedule IIF (EBS)'!R76","v":0},{"$f":"'Schedule IIB (EBS)'!T76+'Schedule IIC (EBS)'!T76+'Schedule IID (EBS)'!T76+'Schedule IIE (EBS)'!T76+'Schedule IIF (EBS)'!T76","v":0},-0.75,{"$f":"'Fixed Income Investments (Rev.)'!I128","v":0},null,null,0]
[null,"Total Spread Down",null,{"$f":"SUM(D120:D128)","v":0},{"$f":"SUM(E120:E128)","v":0},{"$f":"SUM(F120:F128)","v":0},{"$f":"SUM(G120:G128)","v":0},null,{"$f":"SUM(I120:I128)","v":0},null,{"$f":"SUM(K120:K128)","v":0},{"$f":"SUM(L120:L128)","v":0}]
[]
[null,"Spread Up",null,null,null,null,null,null,{"$f":"I115","v":0},null,null,{"$f":"L115","v":0}]
[null,"Spread Down",null,null,null,null,null,null,{"$f":"I129","v":0},null,null,{"$f":"L129","v":0}]
[]
[null,"(g) Total Spread Risk",null,null,null,null,null,null,{"$f":"MAX(0,I131,I132)","v":0},null,null,{"$f":"MAX(0,L131,L132)","v":0}]
[]
[null,"(h)  TOTAL FIXED INCOME INVESTMENTS [ (a)+(b)+(c)+(d)+(e)+(f)+(g) ]",null,null,null,null,{"$f":"G25+G39+G53+G68+G77+G99","v":0},null,{"$f":"IF(SUM(I25+I39+I53+I68+I77+I99+I134)>=0,SUM(I25+I39+I53+I68+I77+I99+I134),0)","v":0},null,null,{"$f":"IF(SUM(L25+L39+L53+L68+L77+L99+L134)>=0,SUM(L25+L39+L53+L68+L77+L99+L134),0)","v":0}]
[]
[null,null,null,"ASSETS",null,null,"LIABILITIES","STANDARD","STANDARD",null,"USER","USER"]
[null,"TYPE OF ",null,"Long Exposures","Short Exposures",null,null,"CAPITAL","REQUIRED",null,"CAPITAL","REQUIRED"]
[null,"EQUITY INVESTMENTS",null,"Qualified Assets","Qualified Assets","Not Qual. Assets",null,"FACTOR","CAPITAL",null,"FACTOR","CAPITAL"]
[]
[null,"Type 1 Equity Holdings"]
[null,"Strategic Holdings - Listed",null,{"$f":"'Schedule IIB (EBS)'!D39+'Schedule IIC (EBS)'!D39+'Schedule IID (EBS)'!D39+'Schedule IIE (EBS)'!D39+'Schedule IIF (EBS)'!D39","v":0},{"$f":"'Schedule IIB (EBS)'!H39+'Schedule IIC (EBS)'!H39+'Schedule IID (EBS)'!H39+'Schedule IIE (EBS)'!H39+'Schedule IIF (EBS)'!H39","v":0},{"$f":"'Schedule IIB (EBS)'!L39+'Schedule IIC (EBS)'!L39+'Schedule IID (EBS)'!L39+'Schedule IIE (EBS)'!L39+'Schedule IIF (EBS)'!L39","v":0},{"$f":"'Schedule IIB (EBS)'!P39+'Schedule IIC (EBS)'!P39+'Schedule IID (EBS)'!P39+'Schedule IIE (EBS)'!P39+'Schedule IIF (EBS)'!P39","v":0},{"$f":"'Equity Investments (Revised)'!N11","v":0.2},{"$f":"'Equity Investments (Revised)'!P11","v":0},null,null,{"$f":"IF(K143=\"\",I143,K143*(SUM(D143:F143)))","v":0}]
[null,"Duration Based",null,{"$f":"'Schedule IIB (EBS)'!D40+'Schedule IIC (EBS)'!D40+'Schedule IID (EBS)'!D40+'Schedule IIE (EBS)'!D40+'Schedule IIF (EBS)'!D40","v":0},{"$f":"'Schedule IIB (EBS)'!H40+'Schedule IIC (EBS)'!H40+'Schedule IID (EBS)'!H40+'Schedule IIE (EBS)'!H40+'Schedule IIF (EBS)'!H40","v":0},{"$f":"'Schedule IIB (EBS)'!L40+'Schedule IIC (EBS)'!L40+'Schedule IID (EBS)'!L40+'Schedule IIE (EBS)'!L40+'Schedule IIF (EBS)'!L40","v":0},{"$f":"'Schedule IIB (EBS)'!P40+'Schedule IIC (EBS)'!P40+'Schedule IID (EBS)'!P40+'Schedule IIE (EBS)'!P40+'Schedule IIF (EBS)'!P40","v":0},{"$f":"'Equity Investments (Revised)'!N12","v":0.2},{"$f":"'Equity Investments (Revised)'!P12","v":0},null,null,0]
[null,"Listed Equity Securities in Developed Markets",null,{"$f":"'Schedule IIB (EBS)'!D41+'Schedule IIC (EBS)'!D41+'Schedule IID (EBS)'!D41+'Schedule IIE (EBS)'!D41+'Schedule IIF (EBS)'!D41","v":0},{"$f":"'Schedule IIB (EBS)'!H41+'Schedule IIC (EBS)'!H41+'Schedule IID (EBS)'!H41+'Schedule IIE (EBS)'!H41+'Schedule IIF (EBS)'!H41","v":0},{"$f":"'Schedule IIB (EBS)'!L41+'Schedule IIC (EBS)'!L41+'Schedule IID (EBS)'!L41+'Schedule IIE (EBS)'!L41+'Schedule IIF (EBS)'!L41","v":0},{"$f":"'Schedule IIB (EBS)'!P41+'Schedule IIC (EBS)'!P41+'Schedule IID (EBS)'!P41+'Schedule IIE (EBS)'!P41+'Schedule IIF (EBS)'!P41","v":0},{"$f":"'Equity Investments (Revised)'!N13","v":0.35},{"$f":"'Equity Investments (Revised)'!P13","v":0},null,null,0]
[null,"Preferred Stocks, BSCR Rating 1",null,{"$f":"'Schedule IIB (EBS)'!D42+'Schedule IIC (EBS)'!D42+'Schedule IID (EBS)'!D42+'Schedule IIE (EBS)'!D42+'Schedule IIF (EBS)'!D42","v":0},{"$f":"'Schedule IIB (EBS)'!H42+'Schedule IIC (EBS)'!H42+'Schedule IID (EBS)'!H42+'Schedule IIE (EBS)'!H42+'Schedule IIF (EBS)'!H42","v":0},{"$f":"'Schedule IIB (EBS)'!L42+'Schedule IIC (EBS)'!L42+'Schedule IID (EBS)'!L42+'Schedule IIE (EBS)'!L42+'Schedule IIF (EBS)'!L42","v":0},{"$f":"'Schedule IIB (EBS)'!P42+'Schedule IIC (EBS)'!P42+'Schedule IID (EBS)'!P42+'Schedule IIE (EBS)'!P42+'Schedule IIF (EBS)'!P42","v":0},{"$f":"'Equity Investments (Revised)'!N14","v":6.0000000000000001E-3},{"$f":"'Equity Investments (Revised)'!P14","v":0},null,null,0]
[null,"Preferred Stocks, BSCR Rating 2",null,{"$f":"'Schedule IIB (EBS)'!D43+'Schedule IIC (EBS)'!D43+'Schedule IID (EBS)'!D43+'Schedule IIE (EBS)'!D43+'Schedule IIF (EBS)'!D43","v":0},{"$f":"'Schedule IIB (EBS)'!H43+'Schedule IIC (EBS)'!H43+'Schedule IID (EBS)'!H43+'Schedule IIE (EBS)'!H43+'Schedule IIF (EBS)'!H43","v":0},{"$f":"'Schedule IIB (EBS)'!L43+'Schedule IIC (EBS)'!L43+'Schedule IID (EBS)'!L43+'Schedule IIE (EBS)'!L43+'Schedule IIF (EBS)'!L43","v":0},{"$f":"'Schedule IIB (EBS)'!P43+'Schedule IIC (EBS)'!P43+'Schedule IID (EBS)'!P43+'Schedule IIE (EBS)'!P43+'Schedule IIF (EBS)'!P43","v":0},{"$f":"'Equity Investments (Revised)'!N15","v":1.2E-2},{"$f":"'Equity Investments (Revised)'!P15","v":0},null,null,0]
[null,"Preferred Stocks, BSCR Rating 3",null,{"$f":"'Schedule IIB (EBS)'!D44+'Schedule IIC (EBS)'!D44+'Schedule IID (EBS)'!D44+'Schedule IIE (EBS)'!D44+'Schedule IIF (EBS)'!D44","v":0},{"$f":"'Schedule IIB (EBS)'!H44+'Schedule IIC (EBS)'!H44+'Schedule IID (EBS)'!H44+'Schedule IIE (EBS)'!H44+'Schedule IIF (EBS)'!H44","v":0},{"$f":"'Schedule IIB (EBS)'!L44+'Schedule IIC (EBS)'!L44+'Schedule IID (EBS)'!L44+'Schedule IIE (EBS)'!L44+'Schedule IIF (EBS)'!L44","v":0},{"$f":"'Schedule IIB (EBS)'!P44+'Schedule IIC (EBS)'!P44+'Schedule IID (EBS)'!P44+'Schedule IIE (EBS)'!P44+'Schedule IIF (EBS)'!P44","v":0},{"$f":"'Equity Investments (Revised)'!N16","v":0.02},{"$f":"'Equity Investments (Revised)'!P16","v":0},null,null,0]
[null,"Preferred Stocks, BSCR Rating 4",null,{"$f":"'Schedule IIB (EBS)'!D45+'Schedule IIC (EBS)'!D45+'Schedule IID (EBS)'!D45+'Schedule IIE (EBS)'!D45+'Schedule IIF (EBS)'!D45","v":0},{"$f":"'Schedule IIB (EBS)'!H45+'Schedule IIC (EBS)'!H45+'Schedule IID (EBS)'!H45+'Schedule IIE (EBS)'!H45+'Schedule IIF (EBS)'!H45","v":0},{"$f":"'Schedule IIB (EBS)'!L45+'Schedule IIC (EBS)'!L45+'Schedule IID (EBS)'!L45+'Schedule IIE (EBS)'!L45+'Schedule IIF (EBS)'!L45","v":0},{"$f":"'Schedule IIB (EBS)'!P45+'Schedule IIC (EBS)'!P45+'Schedule IID (EBS)'!P45+'Schedule IIE (EBS)'!P45+'Schedule IIF (EBS)'!P45","v":0},{"$f":"'Equity Investments (Revised)'!N17","v":0.04},{"$f":"'Equity Investments (Revised)'!P17","v":0},null,null,0]
[null,"Preferred Stocks, BSCR Rating 5",null,{"$f":"'Schedule IIB (EBS)'!D46+'Schedule IIC (EBS)'!D46+'Schedule IID (EBS)'!D46+'Schedule IIE (EBS)'!D46+'Schedule IIF (EBS)'!D46","v":0},{"$f":"'Schedule IIB (EBS)'!H46+'Schedule IIC (EBS)'!H46+'Schedule IID (EBS)'!H46+'Schedule IIE (EBS)'!H46+'Schedule IIF (EBS)'!H46","v":0},{"$f":"'Schedule IIB (EBS)'!L46+'Schedule IIC (EBS)'!L46+'Schedule IID (EBS)'!L46+'Schedule IIE (EBS)'!L46+'Schedule IIF (EBS)'!L46","v":0},{"$f":"'Schedule IIB (EBS)'!P46+'Schedule IIC (EBS)'!P46+'Schedule IID (EBS)'!P46+'Schedule IIE (EBS)'!P46+'Schedule IIF (EBS)'!P46","v":0},{"$f":"'Equity Investments (Revised)'!N18","v":0.11},{"$f":"'Equity Investments (Revised)'!P18","v":0},null,null,0]
[null,"Preferred Stocks, BSCR Rating 6",null,{"$f":"'Schedule IIB (EBS)'!D47+'Schedule IIC (EBS)'!D47+'Schedule IID (EBS)'!D47+'Schedule IIE (EBS)'!D47+'Schedule IIF (EBS)'!D47","v":0},{"$f":"'Schedule IIB (EBS)'!H47+'Schedule IIC (EBS)'!H47+'Schedule IID (EBS)'!H47+'Schedule IIE (EBS)'!H47+'Schedule IIF (EBS)'!H47","v":0},{"$f":"'Schedule IIB (EBS)'!L47+'Schedule IIC (EBS)'!L47+'Schedule IID (EBS)'!L47+'Schedule IIE (EBS)'!L47+'Schedule IIF (EBS)'!L47","v":0},{"$f":"'Schedule IIB (EBS)'!P47+'Schedule IIC (EBS)'!P47+'Schedule IID (EBS)'!P47+'Schedule IIE (EBS)'!P47+'Schedule IIF (EBS)'!P47","v":0},{"$f":"'Equity Investments (Revised)'!N19","v":0.25},{"$f":"'Equity Investments (Revised)'!P19","v":0},null,null,0]
[null,"Preferred Stocks, BSCR Rating 7",null,{"$f":"'Schedule IIB (EBS)'!D48+'Schedule IIC (EBS)'!D48+'Schedule IID (EBS)'!D48+'Schedule IIE (EBS)'!D48+'Schedule IIF (EBS)'!D48","v":0},{"$f":"'Schedule IIB (EBS)'!H48+'Schedule IIC (EBS)'!H48+'Schedule IID (EBS)'!H48+'Schedule IIE (EBS)'!H48+'Schedule IIF (EBS)'!H48","v":0},{"$f":"'Schedule IIB (EBS)'!L48+'Schedule IIC (EBS)'!L48+'Schedule IID (EBS)'!L48+'Schedule IIE (EBS)'!L48+'Schedule IIF (EBS)'!L48","v":0},{"$f":"'Schedule IIB (EBS)'!P48+'Schedule IIC (EBS)'!P48+'Schedule IID (EBS)'!P48+'Schedule IIE (EBS)'!P48+'Schedule IIF (EBS)'!P48","v":0},{"$f":"'Equity Investments (Revised)'!N20","v":0.35},{"$f":"'Equity Investments (Revised)'!P20","v":0},null,null,0]
[null,"Preferred Stocks, BSCR Rating 8",null,{"$f":"'Schedule IIB (EBS)'!D49+'Schedule IIC (EBS)'!D49+'Schedule IID (EBS)'!D49+'Schedule IIE (EBS)'!D49+'Schedule IIF (EBS)'!D49","v":0},{"$f":"'Schedule IIB (EBS)'!H49+'Schedule IIC (EBS)'!H49+'Schedule IID (EBS)'!H49+'Schedule IIE (EBS)'!H49+'Schedule IIF (EBS)'!H49","v":0},{"$f":"'Schedule IIB (EBS)'!L49+'Schedule IIC (EBS)'!L49+'Schedule IID (EBS)'!L49+'Schedule IIE (EBS)'!L49+'Schedule IIF (EBS)'!L49","v":0},{"$f":"'Schedule IIB (EBS)'!P49+'Schedule IIC (EBS)'!P49+'Schedule IID (EBS)'!P49+'Schedule IIE (EBS)'!P49+'Schedule IIF (EBS)'!P49","v":0},{"$f":"'Equity Investments (Revised)'!N21","v":0.35},{"$f":"'Equity Investments (Revised)'!P21","v":0},null,null,0]
[null,"Equity Derivatives on Type 1 Equities",null,{"$f":"'Schedule IIB (EBS)'!D50+'Schedule IIC (EBS)'!D50+'Schedule IID (EBS)'!D50+'Schedule IIE (EBS)'!D50+'Schedule IIF (EBS)'!D50","v":0},{"$f":"'Schedule IIB (EBS)'!H50+'Schedule IIC (EBS)'!H50+'Schedule IID (EBS)'!H50+'Schedule IIE (EBS)'!H50+'Schedule IIF (EBS)'!H50","v":0},{"$f":"'Schedule IIB (EBS)'!L50+'Schedule IIC (EBS)'!L50+'Schedule IID (EBS)'!L50+'Schedule IIE (EBS)'!L50+'Schedule IIF (EBS)'!L50","v":0},{"$f":"'Schedule IIB (EBS)'!P50+'Schedule IIC (EBS)'!P50+'Schedule IID (EBS)'!P50+'Schedule IIE (EBS)'!P50+'Schedule IIF (EBS)'!P50","v":0},{"$f":"'Equity Investments (Revised)'!N22","v":0.35},{"$f":"'Equity Investments (Revised)'!P22","v":0},null,null,0]
[]
[null,"Subtotal - Type 1 Equity Holdings",null,{"$f":"SUM(D143:D155)","v":0},{"$f":"SUM(E143:E155)","v":0},{"$f":"SUM(F143:F155)","v":0},{"$f":"SUM(G143:G155)","v":0},null,{"$f":"MAX(SUM(I143:I154),0)","v":0},null,null,{"$f":"MAX(SUM(L143:L154),0)","v":0}]
[]
[null,"Type 2 Equity Holdings"]
[null,"Strategic Holdings - Unlisted",null,{"$f":"'Schedule IIB (EBS)'!D51+'Schedule IIC (EBS)'!D51+'Schedule IID (EBS)'!D51+'Schedule IIE (EBS)'!D51+'Schedule IIF (EBS)'!D51","v":0},{"$f":"'Schedule IIB (EBS)'!H51+'Schedule IIC (EBS)'!H51+'Schedule IID (EBS)'!H51+'Schedule IIE (EBS)'!H51+'Schedule IIF (EBS)'!H51","v":0},{"$f":"'Schedule IIB (EBS)'!L51+'Schedule IIC (EBS)'!L51+'Schedule IID (EBS)'!L51+'Schedule IIE (EBS)'!L51+'Schedule IIF (EBS)'!L51","v":0},{"$f":"'Schedule IIB (EBS)'!P51+'Schedule IIC (EBS)'!P51+'Schedule IID (EBS)'!P51+'Schedule IIE (EBS)'!P51+'Schedule IIF (EBS)'!P51","v":0},{"$f":"'Equity Investments (Revised)'!N27","v":0.2},{"$f":"'Equity Investments (Revised)'!P27","v":0},null,null,{"$f":"IF(K159=\"\",I159,K159*(SUM(D159:F159)))","v":0}]
[null,"Other Equities",null,{"$f":"'Schedule IIB (EBS)'!D52+'Schedule IIC (EBS)'!D52+'Schedule IID (EBS)'!D52+'Schedule IIE (EBS)'!D52+'Schedule IIF (EBS)'!D52","v":0},{"$f":"'Schedule IIB (EBS)'!H52+'Schedule IIC (EBS)'!H52+'Schedule IID (EBS)'!H52+'Schedule IIE (EBS)'!H52+'Schedule IIF (EBS)'!H52","v":0},{"$f":"'Schedule IIB (EBS)'!L52+'Schedule IIC (EBS)'!L52+'Schedule IID (EBS)'!L52+'Schedule IIE (EBS)'!L52+'Schedule IIF (EBS)'!L52","v":0},{"$f":"'Schedule IIB (EBS)'!P52+'Schedule IIC (EBS)'!P52+'Schedule IID (EBS)'!P52+'Schedule IIE (EBS)'!P52+'Schedule IIF (EBS)'!P52","v":0},{"$f":"'Equity Investments (Revised)'!N28","v":0.45},{"$f":"'Equity Investments (Revised)'!P28","v":0},null,null,0]
[null,"Letters of Credit",null,{"$f":"'Schedule IIB (EBS)'!D53+'Schedule IIC (EBS)'!D53+'Schedule IID (EBS)'!D53+'Schedule IIE (EBS)'!D53+'Schedule IIF (EBS)'!D53","v":0},{"$f":"'Schedule IIB (EBS)'!H53+'Schedule IIC (EBS)'!H53+'Schedule IID (EBS)'!H53+'Schedule IIE (EBS)'!H53+'Schedule IIF (EBS)'!H53","v":0},{"$f":"'Schedule IIB (EBS)'!L53+'Schedule IIC (EBS)'!L53+'Schedule IID (EBS)'!L53+'Schedule IIE (EBS)'!L53+'Schedule IIF (EBS)'!L53","v":0},{"$f":"'Schedule IIB (EBS)'!P53+'Schedule IIC (EBS)'!P53+'Schedule IID (EBS)'!P53+'Schedule IIE (EBS)'!P53+'Schedule IIF (EBS)'!P53","v":0},{"$f":"'Equity Investments (Revised)'!N29","v":0.2},{"$f":"'Equity Investments (Revised)'!P29","v":0},null,null,0]
[null,"Intangible assets",null,{"$f":"'Schedule IIB (EBS)'!D54+'Schedule IIC (EBS)'!D54+'Schedule IID (EBS)'!D54+'Schedule IIE (EBS)'!D54+'Schedule IIF (EBS)'!D54","v":0},{"$f":"'Schedule IIB (EBS)'!H54+'Schedule IIC (EBS)'!H54+'Schedule IID (EBS)'!H54+'Schedule IIE (EBS)'!H54+'Schedule IIF (EBS)'!H54","v":0},{"$f":"'Schedule IIB (EBS)'!L54+'Schedule IIC (EBS)'!L54+'Schedule IID (EBS)'!L54+'Schedule IIE (EBS)'!L54+'Schedule IIF (EBS)'!L54","v":0},{"$f":"'Schedule IIB (EBS)'!P54+'Schedule IIC (EBS)'!P54+'Schedule IID (EBS)'!P54+'Schedule IIE (EBS)'!P54+'Schedule IIF (EBS)'!P54","v":0},{"$f":"'Equity Investments (Revised)'!N30","v":0.2},{"$f":"'Equity Investments (Revised)'!P30","v":0},null,null,0]
[null,"Pension Benefit Surplus",null,{"$f":"'Schedule IIB (EBS)'!D55+'Schedule IIC (EBS)'!D55+'Schedule IID (EBS)'!D55+'Schedule IIE (EBS)'!D55+'Schedule IIF (EBS)'!D55","v":0},{"$f":"'Schedule IIB (EBS)'!H55+'Schedule IIC (EBS)'!H55+'Schedule IID (EBS)'!H55+'Schedule IIE (EBS)'!H55+'Schedule IIF (EBS)'!H55","v":0},{"$f":"'Schedule IIB (EBS)'!L55+'Schedule IIC (EBS)'!L55+'Schedule IID (EBS)'!L55+'Schedule IIE (EBS)'!L55+'Schedule IIF (EBS)'!L55","v":0},{"$f":"'Schedule IIB (EBS)'!P55+'Schedule IIC (EBS)'!P55+'Schedule IID (EBS)'!P55+'Schedule IIE (EBS)'!P55+'Schedule IIF (EBS)'!P55","v":0},{"$f":"'Equity Investments (Revised)'!N31","v":0.2},{"$f":"'Equity Investments (Revised)'!P31","v":0},null,null,0]
[null,"Equity Derivatives on Type 2 Equities",null,{"$f":"'Schedule IIB (EBS)'!D56+'Schedule IIC (EBS)'!D56+'Schedule IID (EBS)'!D56+'Schedule IIE (EBS)'!D56+'Schedule IIF (EBS)'!D56","v":0},{"$f":"'Schedule IIB (EBS)'!H56+'Schedule IIC (EBS)'!H56+'Schedule IID (EBS)'!H56+'Schedule IIE (EBS)'!H56+'Schedule IIF (EBS)'!H56","v":0},{"$f":"'Schedule IIB (EBS)'!L56+'Schedule IIC (EBS)'!L56+'Schedule IID (EBS)'!L56+'Schedule IIE (EBS)'!L56+'Schedule IIF (EBS)'!L56","v":0},{"$f":"'Schedule IIB (EBS)'!P56+'Schedule IIC (EBS)'!P56+'Schedule IID (EBS)'!P56+'Schedule IIE (EBS)'!P56+'Schedule IIF (EBS)'!P56","v":0},{"$f":"'Equity Investments (Revised)'!N32","v":0.45},{"$f":"'Equity Investments (Revised)'!P32","v":0},null,null,0]
[]
[null,"Subtotal - Type 2 Equity Holdings",null,{"$f":"SUM(D159:D165)","v":0},{"$f":"SUM(E159:E165)","v":0},{"$f":"SUM(F159:F165)","v":0},{"$f":"SUM(G159:G165)","v":0},null,{"$f":"MAX(SUM(I159:I164),0)","v":0},null,null,{"$f":"MAX(SUM(L159:L164),0)","v":0}]
[]
[null,"Type 3 Equity Holdings"]
[null,"Infrastructure",null,{"$f":"'Schedule IIB (EBS)'!D57+'Schedule IIC (EBS)'!D57+'Schedule IID (EBS)'!D57+'Schedule IIE (EBS)'!D57+'Schedule IIF (EBS)'!D57","v":0},{"$f":"'Schedule IIB (EBS)'!H57+'Schedule IIC (EBS)'!H57+'Schedule IID (EBS)'!H57+'Schedule IIE (EBS)'!H57+'Schedule IIF (EBS)'!H57","v":0},{"$f":"'Schedule IIB (EBS)'!L57+'Schedule IIC (EBS)'!L57+'Schedule IID (EBS)'!L57+'Schedule IIE (EBS)'!L57+'Schedule IIF (EBS)'!L57","v":0},{"$f":"'Schedule IIB (EBS)'!P57+'Schedule IIC (EBS)'!P57+'Schedule IID (EBS)'!P57+'Schedule IIE (EBS)'!P57+'Schedule IIF (EBS)'!P57","v":0},{"$f":"'Equity Investments (Revised)'!N37","v":0.25},{"$f":"'Equity Investments (Revised)'!P37","v":0},null,null,{"$f":"IF(K169=\"\",I169,K169*(SUM(D169:F169)))","v":0}]
[null,"Derivatives on Infrastructure",null,{"$f":"'Schedule IIB (EBS)'!D58+'Schedule IIC (EBS)'!D58+'Schedule IID (EBS)'!D58+'Schedule IIE (EBS)'!D58+'Schedule IIF (EBS)'!D58","v":0},{"$f":"'Schedule IIB (EBS)'!H58+'Schedule IIC (EBS)'!H58+'Schedule IID (EBS)'!H58+'Schedule IIE (EBS)'!H58+'Schedule IIF (EBS)'!H58","v":0},{"$f":"'Schedule IIB (EBS)'!L58+'Schedule IIC (EBS)'!L58+'Schedule IID (EBS)'!L58+'Schedule IIE (EBS)'!L58+'Schedule IIF (EBS)'!L58","v":0},{"$f":"'Schedule IIB (EBS)'!P58+'Schedule IIC (EBS)'!P58+'Schedule IID (EBS)'!P58+'Schedule IIE (EBS)'!P58+'Schedule IIF (EBS)'!P58","v":0},{"$f":"'Equity Investments (Revised)'!N38","v":0.25},{"$f":"'Equity Investments (Revised)'!P38","v":0},null,null,{"$f":"IF(K170=\"\",I170,K170*(SUM(D170:F170)))","v":0}]
[]
[null,"Subtotal - Type 3 Equity Holdings",null,{"$f":"SUM(D169:D171)","v":0},{"$f":"SUM(E169:E171)","v":0},{"$f":"SUM(F169:F171)","v":0},{"$f":"SUM(G169:G171)","v":0},null,{"$f":"MAX(SUM(I169:I171),0)","v":0},null,null,{"$f":"MAX(SUM(L169:L171),0)","v":0}]
[]
[null,"Type 4 Equity Holdings"]
[null,"Equity Real Estate 1",null,{"$f":"'Schedule IIB (EBS)'!D59+'Schedule IIC (EBS)'!D59+'Schedule IID (EBS)'!D59+'Schedule IIE (EBS)'!D59+'Schedule IIF (EBS)'!D59","v":0},{"$f":"'Schedule IIB (EBS)'!H59+'Schedule IIC (EBS)'!H59+'Schedule IID (EBS)'!H59+'Schedule IIE (EBS)'!H59+'Schedule IIF (EBS)'!H59","v":0},{"$f":"'Schedule IIB (EBS)'!L59+'Schedule IIC (EBS)'!L59+'Schedule IID (EBS)'!L59+'Schedule IIE (EBS)'!L59+'Schedule IIF (EBS)'!L59","v":0},{"$f":"'Schedule IIB (EBS)'!P59+'Schedule IIC (EBS)'!P59+'Schedule IID (EBS)'!P59+'Schedule IIE (EBS)'!P59+'Schedule IIF (EBS)'!P59","v":0},{"$f":"'Equity Investments (Revised)'!N43","v":0.1},{"$f":"'Equity Investments (Revised)'!P43","v":0},null,null,{"$f":"MAX(0,IF(K175=\"\",I175,K175))","v":0}]
[null,"Equity Real Estate 2",null,{"$f":"'Schedule IIB (EBS)'!D60+'Schedule IIC (EBS)'!D60+'Schedule IID (EBS)'!D60+'Schedule IIE (EBS)'!D60+'Schedule IIF (EBS)'!D60","v":0},{"$f":"'Schedule IIB (EBS)'!H60+'Schedule IIC (EBS)'!H60+'Schedule IID (EBS)'!H60+'Schedule IIE (EBS)'!H60+'Schedule IIF (EBS)'!H60","v":0},{"$f":"'Schedule IIB (EBS)'!L60+'Schedule IIC (EBS)'!L60+'Schedule IID (EBS)'!L60+'Schedule IIE (EBS)'!L60+'Schedule IIF (EBS)'!L60","v":0},{"$f":"'Schedule IIB (EBS)'!P60+'Schedule IIC (EBS)'!P60+'Schedule IID (EBS)'!P60+'Schedule IIE (EBS)'!P60+'Schedule IIF (EBS)'!P60","v":0},{"$f":"'Equity Investments (Revised)'!N44","v":0.2},{"$f":"'Equity Investments (Revised)'!P44","v":0},null,null,{"$f":"MAX(0,IF(K176=\"\",I176,K176))","v":0}]
[]
[null,"Subtotal - Type 4 Equity Holdings",null,{"$f":"SUM(D175:D177)","v":0},{"$f":"SUM(E175:E177)","v":0},{"$f":"SUM(F175:F177)","v":0},{"$f":"SUM(G175:G177)","v":0},null,{"$f":"MAX(SUM(I175:I177),0)","v":0},null,null,{"$f":"MAX(SUM(L175:L177),0)","v":0}]
[]
[null,"Total Equity Risk before Diversification"]
[]
[null,"Correlation Matrix","Type 1","Type 2","Type 3","Type 4","W/O Mgmt. Action","Mgmt. Action",null,null,"W/O Mgmt. Action","Mgmt. Action"]
[null,"Type 1",1,0.75,0.75,0.5,{"$f":"I156","v":0},{"$f":"'Equity Investments (Revised)'!R51","v":0},null,null,{"$f":"L156","v":0},{"$f":"H183","v":0}]
[null,"Type 2",0.75,1,0.75,0.5,{"$f":"I166","v":0},{"$f":"'Equity Investments (Revised)'!R52","v":0},null,null,{"$f":"L166","v":0},{"$f":"H184","v":0}]
[null,"Type 3",0.75,0.75,1,0.5,{"$f":"I172","v":0},{"$f":"'Equity Investments (Revised)'!R53","v":0},null,null,{"$f":"L172","v":0},{"$f":"H185","v":0}]
[null,"Type 4",0.5,0.5,0.5,1,{"$f":"I178","v":0},{"$f":"'Equity Investments (Revised)'!R54","v":0},null,null,{"$f":"L178","v":0},{"$f":"H186","v":0}]
[]
[null,"Adjustment for Grandfathering of Equity Holdings for years-ending 2018 and prior"]
[]
[null,"(f)  TOTAL EQUITY INVESTMENTS (AFTER CORRELATION ADJUSTMENT)",null,null,null,null,{"$f":"SQRT(MMULT(TRANSPOSE(G183:G186),MMULT($C$183:$F$186,G183:G186)))+G188","v":0},{"$f":"SQRT(MMULT(TRANSPOSE(H183:H186),MMULT($C$183:$F$186,H183:H186)))+H188","v":0},null,null,{"$f":"SQRT(MMULT(TRANSPOSE(K183:K186),MMULT($C$183:$F$186,K183:K186)))+K188","v":0},{"$f":"SQRT(MMULT(TRANSPOSE(L183:L186),MMULT($C$183:$F$186,L183:L186)))+L188","v":0}]
[]
[null,null,null,null,null,null,null,"STANDARD","STANDARD",null,"USER","USER"]
[null,"TYPE OF ",null,null,null,null,"ASSET","CAPITAL","REQUIRED",null,"CAPITAL","REQUIRED"]
[null,"INTEREST RATE/LIQUIDITY RISK","STATEMENT SOURCE",null,null,null,"VALUE","FACTOR","CAPITAL",null,"FACTOR","CAPITAL"]
[]
[null,"Bonds and Debentures ","Sch IIB EBS & IIC EBS Column (11), Line 1-9",null,null,null,{"$f":"SUM('Schedule IIB (EBS)'!X13:X21)+SUM('Schedule IIC (EBS)'!X13:X21)","v":0},{"$f":"IF('Schedule V'!$F$12-'Schedule V'!$F$14>=1,'Schedule V'!$F$12-'Schedule V'!$F$14,IF('Schedule V'!$F$14-'Schedule V'!$F$12>=1,'Schedule V'!$F$14-'Schedule V'!$F$12,1))*2%","v":0.02},{"$f":"IF(G196<0,0,G196*H196)","v":0},null,null,{"$f":"MAX(0,IF(K196=\"\",H196*G196,G196*K196))","v":0}]
[null,"Preferred Stocks ","Sch IIB EBS & IIC EBS Column (11), Line 18-25",null,null,null,{"$f":"SUM('Schedule IIB (EBS)'!X42:X49)+SUM('Schedule IIC (EBS)'!X42:X49)","v":0},{"$f":"IF('Schedule V'!$F$12-'Schedule V'!$F$14>=1,'Schedule V'!$F$12-'Schedule V'!$F$14,IF('Schedule V'!$F$14-'Schedule V'!$F$12>=1,'Schedule V'!$F$14-'Schedule V'!$F$12,1))*2%","v":0.02},{"$f":"IF(G197<0,0,G197*H197)","v":0},null,null,{"$f":"MAX(0,IF(K197=\"\",H197*G197,G197*K197))","v":0}]
[null,"Mortgage Loans","Sch IIB EBS & IIC EBS Column (11), Line 10-13",null,null,null,{"$f":"SUM('Schedule IIB (EBS)'!X22:X25)+SUM('Schedule IIC (EBS)'!X22:X25)","v":0},{"$f":"IF('Schedule V'!$F$12-'Schedule V'!$F$14>=1,'Schedule V'!$F$12-'Schedule V'!$F$14,IF('Schedule V'!$F$14-'Schedule V'!$F$12>=1,'Schedule V'!$F$14-'Schedule V'!$F$12,1))*2%","v":0.02},{"$f":"IF(G198<0,0,G198*H198)","v":0},null,null,{"$f":"MAX(0,IF(K198=\"\",H198*G198,G198*K198))","v":0}]
[]
[null,"TOTAL INTEREST RATE / LIQUIDITY RISK",null,null,null,null,{"$f":"SUM(G196:G198)","v":0},null,{"$f":"SUM(I196:I198)","v":0},null,null,{"$f":"SUM(L196:L198)","v":0}]
[]
[null,null,null,"ASSETS",null,"LIABILITIES",null,"CAPITAL","CAPITAL",null,"USER","USER"]
[null,"INTEREST RATE -",null,null,null,null,null,"CHARGE","CHARGE",null,"CAPITAL","CAPITAL"]
[null,"LIQUIDITY RISK",null,"Qualified Assets","Not Qual. Assets",null,null,"W/O MGMT","W MGMT",null,"W/O MGMT","W MGMT ACTION"]
[]
[null,"IR Down- Exposures without Derivatives"]
[null,{"$f":"'Interest Rate-Liquidity (Rev.)'!B11","v":"United States Dollars"},null,{"$f":"'Schedule XXIII'!E10","v":0},null,{"$f":"'Schedule XXIII'!H10","v":0},null,{"$f":"'Interest Rate-Liquidity (Rev.)'!S11","v":0},{"$f":"'Interest Rate-Liquidity (Rev.)'!T11","v":0},null,null,{"$f":"IF(K207=\"\",\"\",K207)","v":""}]
[null,{"$f":"'Interest Rate-Liquidity (Rev.)'!B12","v":"Euro"},null,{"$f":"'Schedule XXIII'!E11","v":0},null,{"$f":"'Schedule XXIII'!H11","v":0},null,{"$f":"'Interest Rate-Liquidity (Rev.)'!S12","v":0},{"$f":"'Interest Rate-Liquidity (Rev.)'!T12","v":0},null,null,{"$f":"IF(K208=\"\",\"\",K208)","v":""}]
[null,{"$f":"'Interest Rate-Liquidity (Rev.)'!B13","v":"United Kingdom Pounds"},null,{"$f":"'Schedule XXIII'!E12","v":0},null,{"$f":"'Schedule XXIII'!H12","v":0},null,{"$f":"'Interest Rate-Liquidity (Rev.)'!S13","v":0},{"$f":"'Interest Rate-Liquidity (Rev.)'!T13","v":0},null,null,""]
[null,{"$f":"'Interest Rate-Liquidity (Rev.)'!B14","v":"Japan Yen"},null,{"$f":"'Schedule XXIII'!E13","v":0},null,{"$f":"'Schedule XXIII'!H13","v":0},null,{"$f":"'Interest Rate-Liquidity (Rev.)'!S14","v":0},{"$f":"'Interest Rate-Liquidity (Rev.)'!T14","v":0},null,null,""]
[null,{"$f":"'Interest Rate-Liquidity (Rev.)'!B15","v":"Canada Dollars"},null,{"$f":"'Schedule XXIII'!E14","v":0},null,{"$f":"'Schedule XXIII'!H14","v":0},null,{"$f":"'Interest Rate-Liquidity (Rev.)'!S15","v":0},{"$f":"'Interest Rate-Liquidity (Rev.)'!T15","v":0},null,null,""]
[null,{"$f":"'Interest Rate-Liquidity (Rev.)'!B16","v":"Swiss Francs"},null,{"$f":"'Schedule XXIII'!E15","v":0},null,{"$f":"'Schedule XXIII'!H15","v":0},null,{"$f":"'Interest Rate-Liquidity (Rev.)'!S16","v":0},{"$f":"'Interest Rate-Liquidity (Rev.)'!T16","v":0},null,null,""]
[null,{"$f":"'Interest Rate-Liquidity (Rev.)'!B17","v":"Australia Dollar"},null,{"$f":"'Schedule XXIII'!E16","v":0},null,{"$f":"'Schedule XXIII'!H16","v":0},null,{"$f":"'Interest Rate-Liquidity (Rev.)'!S17","v":0},{"$f":"'Interest Rate-Liquidity (Rev.)'!T17","v":0},null,null,""]
[null,{"$f":"'Interest Rate-Liquidity (Rev.)'!B18","v":"New Zealand Dollar"},null,{"$f":"'Schedule XXIII'!E17","v":0},null,{"$f":"'Schedule XXIII'!H17","v":0},null,{"$f":"'Interest Rate-Liquidity (Rev.)'!S18","v":0},{"$f":"'Interest Rate-Liquidity (Rev.)'!T18","v":0},null,null,""]
[null,{"$f":"'Interest Rate-Liquidity (Rev.)'!B19","v":"Other currency 1"},null,{"$f":"'Schedule XXIII'!E18","v":0},null,{"$f":"'Schedule XXIII'!H18","v":0},null,{"$f":"'Interest Rate-Liquidity (Rev.)'!S19","v":0},{"$f":"'Interest Rate-Liquidity (Rev.)'!T19","v":0},null,null,""]
[null,{"$f":"'Interest Rate-Liquidity (Rev.)'!B20","v":"Other currency 2"},null,{"$f":"'Schedule XXIII'!E19","v":0},null,{"$f":"'Schedule XXIII'!H19","v":0},null,{"$f":"'Interest Rate-Liquidity (Rev.)'!S20","v":0},{"$f":"'Interest Rate-Liquidity (Rev.)'!T20","v":0},null,null,""]
[null,{"$f":"'Interest Rate-Liquidity (Rev.)'!B21","v":"Other currency 3"},null,{"$f":"'Schedule XXIII'!E20","v":0},null,{"$f":"'Schedule XXIII'!H20","v":0},null,{"$f":"'Interest Rate-Liquidity (Rev.)'!S21","v":0},{"$f":"'Interest Rate-Liquidity (Rev.)'!T21","v":0},null,null,""]
[null,{"$f":"'Interest Rate-Liquidity (Rev.)'!B22","v":"Other currency 4"},null,{"$f":"'Schedule XXIII'!E21","v":0},null,{"$f":"'Schedule XXIII'!H21","v":0},null,{"$f":"'Interest Rate-Liquidity (Rev.)'!S22","v":0},{"$f":"'Interest Rate-Liquidity (Rev.)'!T22","v":0},null,null,""]
[null,{"$f":"'Interest Rate-Liquidity (Rev.)'!B23","v":"Other currency 5"},null,{"$f":"'Schedule XXIII'!E22","v":0},null,{"$f":"'Schedule XXIII'!H22","v":0},null,{"$f":"'Interest Rate-Liquidity (Rev.)'!S23","v":0},{"$f":"'Interest Rate-Liquidity (Rev.)'!T23","v":0},null,null,""]
[null,{"$f":"'Interest Rate-Liquidity (Rev.)'!B24","v":"Other currency 6"},null,{"$f":"'Schedule XXIII'!E23","v":0},null,{"$f":"'Schedule XXIII'!H23","v":0},null,{"$f":"'Interest Rate-Liquidity (Rev.)'!S24","v":0},{"$f":"'Interest Rate-Liquidity (Rev.)'!T24","v":0},null,null,""]
[null,{"$f":"'Interest Rate-Liquidity (Rev.)'!B25","v":"Other currency 7"},null,{"$f":"'Schedule XXIII'!E24","v":0},null,{"$f":"'Schedule XXIII'!H24","v":0},null,{"$f":"'Interest Rate-Liquidity (Rev.)'!S25","v":0},{"$f":"'Interest Rate-Liquidity (Rev.)'!T25","v":0},null,null,""]
[null,{"$f":"'Interest Rate-Liquidity (Rev.)'!B26","v":"Other currency 8"},null,{"$f":"'Schedule XXIII'!E25","v":0},null,{"$f":"'Schedule XXIII'!H25","v":0},null,{"$f":"'Interest Rate-Liquidity (Rev.)'!S26","v":0},{"$f":"'Interest Rate-Liquidity (Rev.)'!T26","v":0},null,null,""]
[null,{"$f":"'Interest Rate-Liquidity (Rev.)'!B27","v":"Other currency 9"},null,{"$f":"'Schedule XXIII'!E26","v":0},null,{"$f":"'Schedule XXIII'!H26","v":0},null,{"$f":"'Interest Rate-Liquidity (Rev.)'!S27","v":0},{"$f":"'Interest Rate-Liquidity (Rev.)'!T27","v":0},null,null,""]
[null,{"$f":"'Interest Rate-Liquidity (Rev.)'!B28","v":"Other currency 10"},null,{"$f":"'Schedule XXIII'!E27","v":0},null,{"$f":"'Schedule XXIII'!H27","v":0},null,{"$f":"'Interest Rate-Liquidity (Rev.)'!S28","v":0},{"$f":"'Interest Rate-Liquidity (Rev.)'!T28","v":0},null,null,""]
[null,{"$f":"'Interest Rate-Liquidity (Rev.)'!B29","v":"Total IR - Other"},null,{"$f":"SUM(D207:D224)","v":0},null,{"$f":"SUM(F207:F224)","v":0},null,{"$f":"SUM(H207:H224)","v":0},{"$f":"SUM(I207:I224)","v":0},null,{"$f":"SUM(K207:K224)","v":0},{"$f":"SUM(L207:L224)","v":0}]
[]
[null,{"$f":"'Interest Rate-Liquidity (Rev.)'!B31","v":"IR Down- Derivatives"}]
[null,{"$f":"'Interest Rate-Liquidity (Rev.)'!B32","v":"United States Dollars"},null,{"$f":"'Schedule XXIII'!M10","v":0},{"$f":"'Schedule XXIII'!P10","v":0},{"$f":"'Schedule XXIII'!S10","v":0},null,{"$f":"'Interest Rate-Liquidity (Rev.)'!S32","v":0},{"$f":"'Interest Rate-Liquidity (Rev.)'!T32","v":0},null,null,{"$f":"IF(K228=\"\",\"\",K228)","v":""}]
[null,{"$f":"'Interest Rate-Liquidity (Rev.)'!B33","v":"Euro"},null,{"$f":"'Schedule XXIII'!M11","v":0},{"$f":"'Schedule XXIII'!P11","v":0},{"$f":"'Schedule XXIII'!S11","v":0},null,{"$f":"'Interest Rate-Liquidity (Rev.)'!S33","v":0},{"$f":"'Interest Rate-Liquidity (Rev.)'!T33","v":0},null,null,{"$f":"IF(K229=\"\",\"\",K229)","v":""}]
[null,{"$f":"'Interest Rate-Liquidity (Rev.)'!B34","v":"United Kingdom Pounds"},null,{"$f":"'Schedule XXIII'!M12","v":0},{"$f":"'Schedule XXIII'!P12","v":0},{"$f":"'Schedule XXIII'!S12","v":0},null,{"$f":"'Interest Rate-Liquidity (Rev.)'!S34","v":0},{"$f":"'Interest Rate-Liquidity (Rev.)'!T34","v":0},null,null,""]
[null,{"$f":"'Interest Rate-Liquidity (Rev.)'!B35","v":"Japan Yen"},null,{"$f":"'Schedule XXIII'!M13","v":0},{"$f":"'Schedule XXIII'!P13","v":0},{"$f":"'Schedule XXIII'!S13","v":0},null,{"$f":"'Interest Rate-Liquidity (Rev.)'!S35","v":0},{"$f":"'Interest Rate-Liquidity (Rev.)'!T35","v":0},null,null,""]
[null,{"$f":"'Interest Rate-Liquidity (Rev.)'!B36","v":"Canada Dollars"},null,{"$f":"'Schedule XXIII'!M14","v":0},{"$f":"'Schedule XXIII'!P14","v":0},{"$f":"'Schedule XXIII'!S14","v":0},null,{"$f":"'Interest Rate-Liquidity (Rev.)'!S36","v":0},{"$f":"'Interest Rate-Liquidity (Rev.)'!T36","v":0},null,null,""]
[null,{"$f":"'Interest Rate-Liquidity (Rev.)'!B37","v":"Swiss Francs"},null,{"$f":"'Schedule XXIII'!M15","v":0},{"$f":"'Schedule XXIII'!P15","v":0},{"$f":"'Schedule XXIII'!S15","v":0},null,{"$f":"'Interest Rate-Liquidity (Rev.)'!S37","v":0},{"$f":"'Interest Rate-Liquidity (Rev.)'!T37","v":0},null,null,""]
[null,{"$f":"'Interest Rate-Liquidity (Rev.)'!B38","v":"Australia Dollar"},null,{"$f":"'Schedule XXIII'!M16","v":0},{"$f":"'Schedule XXIII'!P16","v":0},{"$f":"'Schedule XXIII'!S16","v":0},null,{"$f":"'Interest Rate-Liquidity (Rev.)'!S38","v":0},{"$f":"'Interest Rate-Liquidity (Rev.)'!T38","v":0},null,null,""]
[null,{"$f":"'Interest Rate-Liquidity (Rev.)'!B39","v":"New Zealand Dollar"},null,{"$f":"'Schedule XXIII'!M17","v":0},{"$f":"'Schedule XXIII'!P17","v":0},{"$f":"'Schedule XXIII'!S17","v":0},null,{"$f":"'Interest Rate-Liquidity (Rev.)'!S39","v":0},{"$f":"'Interest Rate-Liquidity (Rev.)'!T39","v":0},null,null,""]
[null,{"$f":"'Interest Rate-Liquidity (Rev.)'!B40","v":"Other currency 1"},null,{"$f":"'Schedule XXIII'!M18","v":0},{"$f":"'Schedule XXIII'!P18","v":0},{"$f":"'Schedule XXIII'!S18","v":0},null,{"$f":"'Interest Rate-Liquidity (Rev.)'!S40","v":0},{"$f":"'Interest Rate-Liquidity (Rev.)'!T40","v":0},null,null,""]
[null,{"$f":"'Interest Rate-Liquidity (Rev.)'!B41","v":"Other currency 2"},null,{"$f":"'Schedule XXIII'!M19","v":0},{"$f":"'Schedule XXIII'!P19","v":0},{"$f":"'Schedule XXIII'!S19","v":0},null,{"$f":"'Interest Rate-Liquidity (Rev.)'!S41","v":0},{"$f":"'Interest Rate-Liquidity (Rev.)'!T41","v":0},null,null,""]
[null,{"$f":"'Interest Rate-Liquidity (Rev.)'!B42","v":"Other currency 3"},null,{"$f":"'Schedule XXIII'!M20","v":0},{"$f":"'Schedule XXIII'!P20","v":0},{"$f":"'Schedule XXIII'!S20","v":0},null,{"$f":"'Interest Rate-Liquidity (Rev.)'!S42","v":0},{"$f":"'Interest Rate-Liquidity (Rev.)'!T42","v":0},null,null,""]
[null,{"$f":"'Interest Rate-Liquidity (Rev.)'!B43","v":"Other currency 4"},null,{"$f":"'Schedule XXIII'!M21","v":0},{"$f":"'Schedule XXIII'!P21","v":0},{"$f":"'Schedule XXIII'!S21","v":0},null,{"$f":"'Interest Rate-Liquidity (Rev.)'!S43","v":0},{"$f":"'Interest Rate-Liquidity (Rev.)'!T43","v":0},null,null,""]
[null,{"$f":"'Interest Rate-Liquidity (Rev.)'!B44","v":"Other currency 5"},null,{"$f":"'Schedule XXIII'!M22","v":0},{"$f":"'Schedule XXIII'!P22","v":0},{"$f":"'Schedule XXIII'!S22","v":0},null,{"$f":"'Interest Rate-Liquidity (Rev.)'!S44","v":0},{"$f":"'Interest Rate-Liquidity (Rev.)'!T44","v":0},null,null,""]
[null,{"$f":"'Interest Rate-Liquidity (Rev.)'!B45","v":"Other currency 6"},null,{"$f":"'Schedule XXIII'!M23","v":0},{"$f":"'Schedule XXIII'!P23","v":0},{"$f":"'Schedule XXIII'!S23","v":0},null,{"$f":"'Interest Rate-Liquidity (Rev.)'!S45","v":0},{"$f":"'Interest Rate-Liquidity (Rev.)'!T45","v":0},null,null,""]
[null,{"$f":"'Interest Rate-Liquidity (Rev.)'!B46","v":"Other currency 7"},null,{"$f":"'Schedule XXIII'!M24","v":0},{"$f":"'Schedule XXIII'!P24","v":0},{"$f":"'Schedule XXIII'!S24","v":0},null,{"$f":"'Interest Rate-Liquidity (Rev.)'!S46","v":0},{"$f":"'Interest Rate-Liquidity (Rev.)'!T46","v":0},null,null,""]
[null,{"$f":"'Interest Rate-Liquidity (Rev.)'!B47","v":"Other currency 8"},null,{"$f":"'Schedule XXIII'!M25","v":0},{"$f":"'Schedule XXIII'!P25","v":0},{"$f":"'Schedule XXIII'!S25","v":0},null,{"$f":"'Interest Rate-Liquidity (Rev.)'!S47","v":0},{"$f":"'Interest Rate-Liquidity (Rev.)'!T47","v":0},null,null,""]
[null,{"$f":"'Interest Rate-Liquidity (Rev.)'!B48","v":"Other currency 9"},null,{"$f":"'Schedule XXIII'!M26","v":0},{"$f":"'Schedule XXIII'!P26","v":0},{"$f":"'Schedule XXIII'!S26","v":0},null,{"$f":"'Interest Rate-Liquidity (Rev.)'!S48","v":0},{"$f":"'Interest Rate-Liquidity (Rev.)'!T48","v":0},null,null,""]
[null,{"$f":"'Interest Rate-Liquidity (Rev.)'!B49","v":"Other currency 10"},null,{"$f":"'Schedule XXIII'!M27","v":0},{"$f":"'Schedule XXIII'!P27","v":0},{"$f":"'Schedule XXIII'!S27","v":0},null,{"$f":"'Interest Rate-Liquidity (Rev.)'!S49","v":0},{"$f":"'Interest Rate-Liquidity (Rev.)'!T49","v":0},null,null,""]
[null,{"$f":"'Interest Rate-Liquidity (Rev.)'!B50","v":"Total IR - Derivatives"},null,{"$f":"SUM(D228:D245)","v":0},0,0,null,0,0,null,{"$f":"SUM(K228:K245)","v":0},{"$f":"SUM(L228:L245)","v":0}]
[null,{"$f":"'Interest Rate-Liquidity (Rev.)'!B51","v":"Total IR - DOWN"},null,{"$f":"D225+D246","v":0},{"$f":"E225+E246","v":0},{"$f":"F225+F246","v":0},null,{"$f":"MAX(0,H225+H246)","v":0},{"$f":"MAX(0,I225+I246)","v":0},null,{"$f":"MAX(0,K225+K246)","v":0},{"$f":"MAX(0,L225+L246)","v":0}]
[]
[null,{"$f":"'Interest Rate-Liquidity (Rev.)'!B53","v":"IR UP - Exposures without Derivatives"}]
[null,{"$f":"'Interest Rate-Liquidity (Rev.)'!B54","v":"United States Dollars"},null,{"$f":"'Schedule XXIII'!E35","v":0},null,{"$f":"'Schedule XXIII'!H35","v":0},null,{"$f":"'Interest Rate-Liquidity (Rev.)'!S54","v":0},{"$f":"'Interest Rate-Liquidity (Rev.)'!T54","v":0},null,null,{"$f":"IF(K250=\"\",\"\",K250)","v":""}]
[null,{"$f":"'Interest Rate-Liquidity (Rev.)'!B55","v":"Euro"},null,{"$f":"'Schedule XXIII'!E36","v":0},null,{"$f":"'Schedule XXIII'!H36","v":0},null,{"$f":"'Interest Rate-Liquidity (Rev.)'!S55","v":0},{"$f":"'Interest Rate-Liquidity (Rev.)'!T55","v":0},null,null,{"$f":"IF(K251=\"\",\"\",K251)","v":""}]
[null,{"$f":"'Interest Rate-Liquidity (Rev.)'!B56","v":"United Kingdom Pounds"},null,{"$f":"'Schedule XXIII'!E37","v":0},null,{"$f":"'Schedule XXIII'!H37","v":0},null,{"$f":"'Interest Rate-Liquidity (Rev.)'!S56","v":0},{"$f":"'Interest Rate-Liquidity (Rev.)'!T56","v":0},null,null,""]
[null,{"$f":"'Interest Rate-Liquidity (Rev.)'!B57","v":"Japan Yen"},null,{"$f":"'Schedule XXIII'!E38","v":0},null,{"$f":"'Schedule XXIII'!H38","v":0},null,{"$f":"'Interest Rate-Liquidity (Rev.)'!S57","v":0},{"$f":"'Interest Rate-Liquidity (Rev.)'!T57","v":0},null,null,""]
[null,{"$f":"'Interest Rate-Liquidity (Rev.)'!B58","v":"Canada Dollars"},null,{"$f":"'Schedule XXIII'!E39","v":0},null,{"$f":"'Schedule XXIII'!H39","v":0},null,{"$f":"'Interest Rate-Liquidity (Rev.)'!S58","v":0},{"$f":"'Interest Rate-Liquidity (Rev.)'!T58","v":0},null,null,""]
[null,{"$f":"'Interest Rate-Liquidity (Rev.)'!B59","v":"Swiss Francs"},null,{"$f":"'Schedule XXIII'!E40","v":0},null,{"$f":"'Schedule XXIII'!H40","v":0},null,{"$f":"'Interest Rate-Liquidity (Rev.)'!S59","v":0},{"$f":"'Interest Rate-Liquidity (Rev.)'!T59","v":0},null,null,""]
[null,{"$f":"'Interest Rate-Liquidity (Rev.)'!B60","v":"Australia Dollar"},null,{"$f":"'Schedule XXIII'!E41","v":0},null,{"$f":"'Schedule XXIII'!H41","v":0},null,{"$f":"'Interest Rate-Liquidity (Rev.)'!S60","v":0},{"$f":"'Interest Rate-Liquidity (Rev.)'!T60","v":0},null,null,""]
[null,{"$f":"'Interest Rate-Liquidity (Rev.)'!B61","v":"New Zealand Dollar"},null,{"$f":"'Schedule XXIII'!E42","v":0},null,{"$f":"'Schedule XXIII'!H42","v":0},null,{"$f":"'Interest Rate-Liquidity (Rev.)'!S61","v":0},{"$f":"'Interest Rate-Liquidity (Rev.)'!T61","v":0},null,null,""]
[null,{"$f":"'Interest Rate-Liquidity (Rev.)'!B62","v":"Other currency 1"},null,{"$f":"'Schedule XXIII'!E43","v":0},null,{"$f":"'Schedule XXIII'!H43","v":0},null,{"$f":"'Interest Rate-Liquidity (Rev.)'!S62","v":0},{"$f":"'Interest Rate-Liquidity (Rev.)'!T62","v":0},null,null,""]
[null,{"$f":"'Interest Rate-Liquidity (Rev.)'!B63","v":"Other currency 2"},null,{"$f":"'Schedule XXIII'!E44","v":0},null,{"$f":"'Schedule XXIII'!H44","v":0},null,{"$f":"'Interest Rate-Liquidity (Rev.)'!S63","v":0},{"$f":"'Interest Rate-Liquidity (Rev.)'!T63","v":0},null,null,""]
[null,{"$f":"'Interest Rate-Liquidity (Rev.)'!B64","v":"Other currency 3"},null,{"$f":"'Schedule XXIII'!E45","v":0},null,{"$f":"'Schedule XXIII'!H45","v":0},null,{"$f":"'Interest Rate-Liquidity (Rev.)'!S64","v":0},{"$f":"'Interest Rate-Liquidity (Rev.)'!T64","v":0},null,null,""]
[null,{"$f":"'Interest Rate-Liquidity (Rev.)'!B65","v":"Other currency 4"},null,{"$f":"'Schedule XXIII'!E46","v":0},null,{"$f":"'Schedule XXIII'!H46","v":0},null,{"$f":"'Interest Rate-Liquidity (Rev.)'!S65","v":0},{"$f":"'Interest Rate-Liquidity (Rev.)'!T65","v":0},null,null,""]
[null,{"$f":"'Interest Rate-Liquidity (Rev.)'!B66","v":"Other currency 5"},null,{"$f":"'Schedule XXIII'!E47","v":0},null,{"$f":"'Schedule XXIII'!H47","v":0},null,{"$f":"'Interest Rate-Liquidity (Rev.)'!S66","v":0},{"$f":"'Interest Rate-Liquidity (Rev.)'!T66","v":0},null,null,""]
[null,{"$f":"'Interest Rate-Liquidity (Rev.)'!B67","v":"Other currency 6"},null,{"$f":"'Schedule XXIII'!E48","v":0},null,{"$f":"'Schedule XXIII'!H48","v":0},null,{"$f":"'Interest Rate-Liquidity (Rev.)'!S67","v":0},{"$f":"'Interest Rate-Liquidity (Rev.)'!T67","v":0},null,null,""]
[null,{"$f":"'Interest Rate-Liquidity (Rev.)'!B68","v":"Other currency 7"},null,{"$f":"'Schedule XXIII'!E49","v":0},null,{"$f":"'Schedule XXIII'!H49","v":0},null,{"$f":"'Interest Rate-Liquidity (Rev.)'!S68","v":0},{"$f":"'Interest Rate-Liquidity (Rev.)'!T68","v":0},null,null,""]
[null,{"$f":"'Interest Rate-Liquidity (Rev.)'!B69","v":"Other currency 8"},null,{"$f":"'Schedule XXIII'!E50","v":0},null,{"$f":"'Schedule XXIII'!H50","v":0},null,{"$f":"'Interest Rate-Liquidity (Rev.)'!S69","v":0},{"$f":"'Interest Rate-Liquidity (Rev.)'!T69","v":0},null,null,""]
[null,{"$f":"'Interest Rate-Liquidity (Rev.)'!B70","v":"Other currency 9"},null,{"$f":"'Schedule XXIII'!E51","v":0},null,{"$f":"'Schedule XXIII'!H51","v":0},null,{"$f":"'Interest Rate-Liquidity (Rev.)'!S70","v":0},{"$f":"'Interest Rate-Liquidity (Rev.)'!T70","v":0},null,null,""]
[null,{"$f":"'Interest Rate-Liquidity (Rev.)'!B71","v":"Other currency 10"},null,{"$f":"'Schedule XXIII'!E52","v":0},null,{"$f":"'Schedule XXIII'!H52","v":0},null,{"$f":"'Interest Rate-Liquidity (Rev.)'!S71","v":0},{"$f":"'Interest Rate-Liquidity (Rev.)'!T71","v":0},null,null,""]
[null,{"$f":"'Interest Rate-Liquidity (Rev.)'!B72","v":"Total IR - Other"},null,{"$f":"SUM(D250:D267)","v":0},null,{"$f":"SUM(F250:F267)","v":0},null,{"$f":"SUM(H250:H267)","v":0},{"$f":"SUM(I250:I267)","v":0},null,{"$f":"SUM(K250:K267)","v":0},{"$f":"SUM(L250:L267)","v":0}]
[]
[null,{"$f":"'Interest Rate-Liquidity (Rev.)'!B74","v":"IR Up - Derivatives"}]
[null,{"$f":"'Interest Rate-Liquidity (Rev.)'!B75","v":"United States Dollars"},null,{"$f":"'Schedule XXIII'!M35","v":0},{"$f":"'Schedule XXIII'!P35","v":0},{"$f":"'Schedule XXIII'!S35","v":0},null,{"$f":"'Interest Rate-Liquidity (Rev.)'!S75","v":0},{"$f":"'Interest Rate-Liquidity (Rev.)'!T75","v":0},null,null,{"$f":"IF(K271=\"\",\"\",K271)","v":""}]
[null,{"$f":"'Interest Rate-Liquidity (Rev.)'!B76","v":"Euro"},null,{"$f":"'Schedule XXIII'!M36","v":0},{"$f":"'Schedule XXIII'!P36","v":0},{"$f":"'Schedule XXIII'!S36","v":0},null,{"$f":"'Interest Rate-Liquidity (Rev.)'!S76","v":0},{"$f":"'Interest Rate-Liquidity (Rev.)'!T76","v":0},null,null,{"$f":"IF(K272=\"\",\"\",K272)","v":""}]
[null,{"$f":"'Interest Rate-Liquidity (Rev.)'!B77","v":"United Kingdom Pounds"},null,{"$f":"'Schedule XXIII'!M37","v":0},{"$f":"'Schedule XXIII'!P37","v":0},{"$f":"'Schedule XXIII'!S37","v":0},null,{"$f":"'Interest Rate-Liquidity (Rev.)'!S77","v":0},{"$f":"'Interest Rate-Liquidity (Rev.)'!T77","v":0},null,null,""]
[null,{"$f":"'Interest Rate-Liquidity (Rev.)'!B78","v":"Japan Yen"},null,{"$f":"'Schedule XXIII'!M38","v":0},{"$f":"'Schedule XXIII'!P38","v":0},{"$f":"'Schedule XXIII'!S38","v":0},null,{"$f":"'Interest Rate-Liquidity (Rev.)'!S78","v":0},{"$f":"'Interest Rate-Liquidity (Rev.)'!T78","v":0},null,null,""]
[null,{"$f":"'Interest Rate-Liquidity (Rev.)'!B79","v":"Canada Dollars"},null,{"$f":"'Schedule XXIII'!M39","v":0},{"$f":"'Schedule XXIII'!P39","v":0},{"$f":"'Schedule XXIII'!S39","v":0},null,{"$f":"'Interest Rate-Liquidity (Rev.)'!S79","v":0},{"$f":"'Interest Rate-Liquidity (Rev.)'!T79","v":0},null,null,""]
[null,{"$f":"'Interest Rate-Liquidity (Rev.)'!B80","v":"Swiss Francs"},null,{"$f":"'Schedule XXIII'!M40","v":0},{"$f":"'Schedule XXIII'!P40","v":0},{"$f":"'Schedule XXIII'!S40","v":0},null,{"$f":"'Interest Rate-Liquidity (Rev.)'!S80","v":0},{"$f":"'Interest Rate-Liquidity (Rev.)'!T80","v":0},null,null,""]
[null,{"$f":"'Interest Rate-Liquidity (Rev.)'!B81","v":"Australia Dollar"},null,{"$f":"'Schedule XXIII'!M41","v":0},{"$f":"'Schedule XXIII'!P41","v":0},{"$f":"'Schedule XXIII'!S41","v":0},null,{"$f":"'Interest Rate-Liquidity (Rev.)'!S81","v":0},{"$f":"'Interest Rate-Liquidity (Rev.)'!T81","v":0},null,null,""]
[null,{"$f":"'Interest Rate-Liquidity (Rev.)'!B82","v":"New Zealand Dollar"},null,{"$f":"'Schedule XXIII'!M42","v":0},{"$f":"'Schedule XXIII'!P42","v":0},{"$f":"'Schedule XXIII'!S42","v":0},null,{"$f":"'Interest Rate-Liquidity (Rev.)'!S82","v":0},{"$f":"'Interest Rate-Liquidity (Rev.)'!T82","v":0},null,null,""]
[null,{"$f":"'Interest Rate-Liquidity (Rev.)'!B83","v":"Other currency 1"},null,{"$f":"'Schedule XXIII'!M43","v":0},{"$f":"'Schedule XXIII'!P43","v":0},{"$f":"'Schedule XXIII'!S43","v":0},null,{"$f":"'Interest Rate-Liquidity (Rev.)'!S83","v":0},{"$f":"'Interest Rate-Liquidity (Rev.)'!T83","v":0},null,null,""]
[null,{"$f":"'Interest Rate-Liquidity (Rev.)'!B84","v":"Other currency 2"},null,{"$f":"'Schedule XXIII'!M44","v":0},{"$f":"'Schedule XXIII'!P44","v":0},{"$f":"'Schedule XXIII'!S44","v":0},null,{"$f":"'Interest Rate-Liquidity (Rev.)'!S84","v":0},{"$f":"'Interest Rate-Liquidity (Rev.)'!T84","v":0},null,null,""]
[null,{"$f":"'Interest Rate-Liquidity (Rev.)'!B85","v":"Other currency 3"},null,{"$f":"'Schedule XXIII'!M45","v":0},{"$f":"'Schedule XXIII'!P45","v":0},{"$f":"'Schedule XXIII'!S45","v":0},null,{"$f":"'Interest Rate-Liquidity (Rev.)'!S85","v":0},{"$f":"'Interest Rate-Liquidity (Rev.)'!T85","v":0},null,null,""]
[null,{"$f":"'Interest Rate-Liquidity (Rev.)'!B86","v":"Other currency 4"},null,{"$f":"'Schedule XXIII'!M46","v":0},{"$f":"'Schedule XXIII'!P46","v":0},{"$f":"'Schedule XXIII'!S46","v":0},null,{"$f":"'Interest Rate-Liquidity (Rev.)'!S86","v":0},{"$f":"'Interest Rate-Liquidity (Rev.)'!T86","v":0},null,null,""]
[null,{"$f":"'Interest Rate-Liquidity (Rev.)'!B87","v":"Other currency 5"},null,{"$f":"'Schedule XXIII'!M47","v":0},{"$f":"'Schedule XXIII'!P47","v":0},{"$f":"'Schedule XXIII'!S47","v":0},null,{"$f":"'Interest Rate-Liquidity (Rev.)'!S87","v":0},{"$f":"'Interest Rate-Liquidity (Rev.)'!T87","v":0},null,null,""]
[null,{"$f":"'Interest Rate-Liquidity (Rev.)'!B88","v":"Other currency 6"},null,{"$f":"'Schedule XXIII'!M48","v":0},{"$f":"'Schedule XXIII'!P48","v":0},{"$f":"'Schedule XXIII'!S48","v":0},null,{"$f":"'Interest Rate-Liquidity (Rev.)'!S88","v":0},{"$f":"'Interest Rate-Liquidity (Rev.)'!T88","v":0},null,null,""]
[null,{"$f":"'Interest Rate-Liquidity (Rev.)'!B89","v":"Other currency 7"},null,{"$f":"'Schedule XXIII'!M49","v":0},{"$f":"'Schedule XXIII'!P49","v":0},{"$f":"'Schedule XXIII'!S49","v":0},null,{"$f":"'Interest Rate-Liquidity (Rev.)'!S89","v":0},{"$f":"'Interest Rate-Liquidity (Rev.)'!T89","v":0},null,null,""]
[null,{"$f":"'Interest Rate-Liquidity (Rev.)'!B90","v":"Other currency 8"},null,{"$f":"'Schedule XXIII'!M50","v":0},{"$f":"'Schedule XXIII'!P50","v":0},{"$f":"'Schedule XXIII'!S50","v":0},null,{"$f":"'Interest Rate-Liquidity (Rev.)'!S90","v":0},{"$f":"'Interest Rate-Liquidity (Rev.)'!T90","v":0},null,null,""]
[null,{"$f":"'Interest Rate-Liquidity (Rev.)'!B91","v":"Other currency 9"},null,{"$f":"'Schedule XXIII'!M51","v":0},{"$f":"'Schedule XXIII'!P51","v":0},{"$f":"'Schedule XXIII'!S51","v":0},null,{"$f":"'Interest Rate-Liquidity (Rev.)'!S91","v":0},{"$f":"'Interest Rate-Liquidity (Rev.)'!T91","v":0},null,null,""]
[null,{"$f":"'Interest Rate-Liquidity (Rev.)'!B92","v":"Other currency 10"},null,{"$f":"'Schedule XXIII'!M52","v":0},{"$f":"'Schedule XXIII'!P52","v":0},{"$f":"'Schedule XXIII'!S52","v":0},null,{"$f":"'Interest Rate-Liquidity (Rev.)'!S92","v":0},{"$f":"'Interest Rate-Liquidity (Rev.)'!T92","v":0},null,null,""]
[null,{"$f":"'Interest Rate-Liquidity (Rev.)'!B93","v":"Total IR - Derivatives"},null,{"$f":"SUM(D271:D288)","v":0},0,0,null,0,0,null,{"$f":"SUM(K271:K288)","v":0},{"$f":"SUM(L271:L288)","v":0}]
[null,{"$f":"'Interest Rate-Liquidity (Rev.)'!B94","v":"Total IR - UP"},null,{"$f":"D268+D289","v":0},{"$f":"E268+E289","v":0},{"$f":"F268+F289","v":0},null,{"$f":"MAX(0,H268+H289)","v":0},{"$f":"MAX(0,I268+I289)","v":0},null,{"$f":"MAX(0,K268+K289)","v":0},{"$f":"MAX(0,L268+L289)","v":0}]
[]
[null,{"$f":"'Interest Rate-Liquidity (Rev.)'!B97","v":"Overall Interest Rate Risk"},null,null,null,null,"Scenario-Based Approach"]
[]
[null,{"$f":"'Interest Rate-Liquidity (Rev.)'!B99","v":"Interest Rates Down Shock - without Management Actions"},null,null,null,{"$f":"H247","v":0},null,null,null,null,{"$f":"IF(K247=0,F294,K247)","v":0}]
[null,{"$f":"'Interest Rate-Liquidity (Rev.)'!B100","v":"Interest Rates Up Shock - without Management Actions"},null,null,null,{"$f":"H290","v":0},null,null,null,null,{"$f":"IF(K290=0,F295,K290)","v":0}]
[null,{"$f":"'Interest Rate-Liquidity (Rev.)'!B101","v":"Max(IR Down, IR Up) - without MA"},null,null,null,{"$f":"MAX(0,F294,F295)","v":0},null,null,null,null,{"$f":"MAX(0,K294,K295)","v":0}]
[]
[null,{"$f":"'Interest Rate-Liquidity (Rev.)'!B103","v":"Interest Rate Risk without Management Actions"},null,null,null,{"$f":"IF(F304=\"UP\",F295,F294)","v":0},"Adj. IR Risk Cap. Req.",{"$f":"'Interest Rate-Liquidity (Rev.)'!D115","v":0},{"$f":"'Interest Rate-Liquidity (Rev.)'!E115","v":0},null,{"$f":"IF(K304=\"UP\",K295,K294)","v":0}]
[]
[]
[null,{"$f":"'Interest Rate-Liquidity (Rev.)'!B106","v":"Interest Rates Down Shock - with Management Actions"},null,null,null,{"$f":"I247","v":0},null,null,null,null,{"$f":"IF(L247=0,F301,L247)","v":0}]
[null,{"$f":"'Interest Rate-Liquidity (Rev.)'!B107","v":"Interest Rates Up Shock - with Management Actions"},null,null,null,{"$f":"I290","v":0},null,null,null,null,{"$f":"IF(L290=0,F302,L290)","v":0}]
[null,{"$f":"'Interest Rate-Liquidity (Rev.)'!B108","v":"Max(IR Down, IR Up) - with MA"},null,null,null,{"$f":"MAX(F301,F302)","v":0},null,null,null,null,{"$f":"MAX(0,K301,K302)","v":0}]
[null,{"$f":"'Interest Rate-Liquidity (Rev.)'!B109","v":"Biting scenario"},null,null,null,{"$f":"IF(F303=F301,\"DOWN\",\"UP\")","v":"DOWN"},null,"W/O Mgmt. Action","Mgmt. Action",null,{"$f":"IF(K303=K301,\"DOWN\",\"UP\")","v":"DOWN"}]
[]
[null,{"$f":"'Interest Rate-Liquidity (Rev.)'!B111","v":"Interest Rate Risk with Management Actions"},null,null,null,{"$f":"F303","v":0},null,null,null,null,{"$f":"K303","v":0}]
[]
[null,"Interest Rate Risk capital requirement",null,null,null,null,null,{"$f":"'Interest Rate-Liquidity (Rev.)'!D117","v":0},{"$f":"'Interest Rate-Liquidity (Rev.)'!E117","v":0},null,{"$f":"K298-MIN(0.75*K298,IF(K304=\"DOWN\",'Interest Rate-Liquidity (Rev.)'!$K$114,'Interest Rate-Liquidity (Rev.)'!$L$114))","v":0},{"$f":"K306-MIN(0.75*K306,IF(K304=\"DOWN\",'Interest Rate-Liquidity (Rev.)'!$O$114,'Interest Rate-Liquidity (Rev.)'!$P$114))","v":0}]
[]
[null,null,"ASSETS",null,null,null,null,"CAPITAL","CAPITAL",null,"USER","USER"]
[null,null,null,"Long Exposures",null,"Long Exposures",null,"CHARGE","CHARGE",null,"CAPITAL","REQUIRED"]
[null,"CURRENCY RISK","Assets - Excluding currency-sensitive derivatives","Currency Derivatives Qualifying as held for risk-mitigation purposes","Currency Derivatives Not Qualifying as held for risk-mitigation purposes","Currency Derivatives Qualifying as held for risk-mitigation purposes","Currency Derivatives Not Qualifying as held for risk-mitigation purposes","W/O MGMT","W MGMT",null,"FACTOR","CAPITAL"]
[]
[null,{"$f":"'Currency Risk (Revised)'!B12","v":"United States Dollars"},{"$f":"'Schedule XXA'!D10","v":0},{"$f":"'Schedule XXA'!F10","v":0},{"$f":"'Schedule XXA'!H10","v":0},{"$f":"'Schedule XXA'!J10","v":0},{"$f":"'Schedule XXA'!L10","v":0},{"$f":"'Currency Risk (Revised)'!X12","v":0},{"$f":"'Currency Risk (Revised)'!Y12","v":0},null,null,{"$f":"MAX(0,IF(K314=\"\",H314,K314*SUM(C314:G314)))","v":0}]
[null,{"$f":"'Currency Risk (Revised)'!B13","v":"Bermuda Dollars"},{"$f":"'Schedule XXA'!D11","v":0},{"$f":"'Schedule XXA'!F11","v":0},{"$f":"'Schedule XXA'!H11","v":0},{"$f":"'Schedule XXA'!J11","v":0},{"$f":"'Schedule XXA'!L11","v":0},{"$f":"'Currency Risk (Revised)'!X13","v":0},{"$f":"'Currency Risk (Revised)'!Y13","v":0},null,null,{"$f":"MAX(0,IF(K315=\"\",H315,K315*SUM(C315:G315)))","v":0}]
[null,{"$f":"'Currency Risk (Revised)'!B14","v":"Qatari Riyals"},{"$f":"'Schedule XXA'!D12","v":0},{"$f":"'Schedule XXA'!F12","v":0},{"$f":"'Schedule XXA'!H12","v":0},{"$f":"'Schedule XXA'!J12","v":0},{"$f":"'Schedule XXA'!L12","v":0},{"$f":"'Currency Risk (Revised)'!X14","v":0},{"$f":"'Currency Risk (Revised)'!Y14","v":0},null,null,0]
[null,{"$f":"'Currency Risk (Revised)'!B15","v":"Hong Kong"},{"$f":"'Schedule XXA'!D13","v":0},{"$f":"'Schedule XXA'!F13","v":0},{"$f":"'Schedule XXA'!H13","v":0},{"$f":"'Schedule XXA'!J13","v":0},{"$f":"'Schedule XXA'!L13","v":0},{"$f":"'Currency Risk (Revised)'!X15","v":0},{"$f":"'Currency Risk (Revised)'!Y15","v":0},null,null,0]
[null,{"$f":"'Currency Risk (Revised)'!B16","v":"Euro"},{"$f":"'Schedule XXA'!D14","v":0},{"$f":"'Schedule XXA'!F14","v":0},{"$f":"'Schedule XXA'!H14","v":0},{"$f":"'Schedule XXA'!J14","v":0},{"$f":"'Schedule XXA'!L14","v":0},{"$f":"'Currency Risk (Revised)'!X16","v":0},{"$f":"'Currency Risk (Revised)'!Y16","v":0},null,null,0]
[null,{"$f":"'Currency Risk (Revised)'!B17","v":"Danish Krones"},{"$f":"'Schedule XXA'!D15","v":0},{"$f":"'Schedule XXA'!F15","v":0},{"$f":"'Schedule XXA'!H15","v":0},{"$f":"'Schedule XXA'!J15","v":0},{"$f":"'Schedule XXA'!L15","v":0},{"$f":"'Currency Risk (Revised)'!X17","v":0},{"$f":"'Currency Risk (Revised)'!Y17","v":0},null,null,0]
[null,{"$f":"'Currency Risk (Revised)'!B18","v":"Bulgarian Levs"},{"$f":"'Schedule XXA'!D16","v":0},{"$f":"'Schedule XXA'!F16","v":0},{"$f":"'Schedule XXA'!H16","v":0},{"$f":"'Schedule XXA'!J16","v":0},{"$f":"'Schedule XXA'!L16","v":0},{"$f":"'Currency Risk (Revised)'!X18","v":0},{"$f":"'Currency Risk (Revised)'!Y18","v":0},null,null,0]
[null,{"$f":"'Currency Risk (Revised)'!B19","v":"West African CFA Francs"},{"$f":"'Schedule XXA'!D17","v":0},{"$f":"'Schedule XXA'!F17","v":0},{"$f":"'Schedule XXA'!H17","v":0},{"$f":"'Schedule XXA'!J17","v":0},{"$f":"'Schedule XXA'!L17","v":0},{"$f":"'Currency Risk (Revised)'!X19","v":0},{"$f":"'Currency Risk (Revised)'!Y19","v":0},null,null,0]
[null,{"$f":"'Currency Risk (Revised)'!B20","v":"Central African CFA Francs"},{"$f":"'Schedule XXA'!D18","v":0},{"$f":"'Schedule XXA'!F18","v":0},{"$f":"'Schedule XXA'!H18","v":0},{"$f":"'Schedule XXA'!J18","v":0},{"$f":"'Schedule XXA'!L18","v":0},{"$f":"'Currency Risk (Revised)'!X20","v":0},{"$f":"'Currency Risk (Revised)'!Y20","v":0},null,null,0]
[null,{"$f":"'Currency Risk (Revised)'!B21","v":"Comorian Francs"},{"$f":"'Schedule XXA'!D19","v":0},{"$f":"'Schedule XXA'!F19","v":0},{"$f":"'Schedule XXA'!H19","v":0},{"$f":"'Schedule XXA'!J19","v":0},{"$f":"'Schedule XXA'!L19","v":0},{"$f":"'Currency Risk (Revised)'!X21","v":0},{"$f":"'Currency Risk (Revised)'!Y21","v":0},null,null,0]
[null,{"$f":"'Currency Risk (Revised)'!B22","v":"GBP"},{"$f":"'Schedule XXA'!D20","v":0},{"$f":"'Schedule XXA'!F20","v":0},{"$f":"'Schedule XXA'!H20","v":0},{"$f":"'Schedule XXA'!J20","v":0},{"$f":"'Schedule XXA'!L20","v":0},{"$f":"'Currency Risk (Revised)'!X22","v":0},{"$f":"'Currency Risk (Revised)'!Y22","v":0},null,null,0]
[null,{"$f":"'Currency Risk (Revised)'!B23","v":"CAD$"},{"$f":"'Schedule XXA'!D21","v":0},{"$f":"'Schedule XXA'!F21","v":0},{"$f":"'Schedule XXA'!H21","v":0},{"$f":"'Schedule XXA'!J21","v":0},{"$f":"'Schedule XXA'!L21","v":0},{"$f":"'Currency Risk (Revised)'!X23","v":0},{"$f":"'Currency Risk (Revised)'!Y23","v":0},null,null,0]
[null,{"$f":"'Currency Risk (Revised)'!B24","v":"YEN"},{"$f":"'Schedule XXA'!D22","v":0},{"$f":"'Schedule XXA'!F22","v":0},{"$f":"'Schedule XXA'!H22","v":0},{"$f":"'Schedule XXA'!J22","v":0},{"$f":"'Schedule XXA'!L22","v":0},{"$f":"'Currency Risk (Revised)'!X24","v":0},{"$f":"'Currency Risk (Revised)'!Y24","v":0},null,null,0]
[null,{"$f":"'Currency Risk (Revised)'!B25","v":"Other currency 1"},{"$f":"'Schedule XXA'!D23","v":0},{"$f":"'Schedule XXA'!F23","v":0},{"$f":"'Schedule XXA'!H23","v":0},{"$f":"'Schedule XXA'!J23","v":0},{"$f":"'Schedule XXA'!L23","v":0},{"$f":"'Currency Risk (Revised)'!X25","v":0},{"$f":"'Currency Risk (Revised)'!Y25","v":0},null,null,0]
[null,{"$f":"'Currency Risk (Revised)'!B26","v":"Other currency 2"},{"$f":"'Schedule XXA'!D24","v":0},{"$f":"'Schedule XXA'!F24","v":0},{"$f":"'Schedule XXA'!H24","v":0},{"$f":"'Schedule XXA'!J24","v":0},{"$f":"'Schedule XXA'!L24","v":0},{"$f":"'Currency Risk (Revised)'!X26","v":0},{"$f":"'Currency Risk (Revised)'!Y26","v":0},null,null,0]
[null,{"$f":"'Currency Risk (Revised)'!B27","v":"Other currency 3"},{"$f":"'Schedule XXA'!D25","v":0},{"$f":"'Schedule XXA'!F25","v":0},{"$f":"'Schedule XXA'!H25","v":0},{"$f":"'Schedule XXA'!J25","v":0},{"$f":"'Schedule XXA'!L25","v":0},{"$f":"'Currency Risk (Revised)'!X27","v":0},{"$f":"'Currency Risk (Revised)'!Y27","v":0},null,null,0]
[null,{"$f":"'Currency Risk (Revised)'!B28","v":"Other currency 4"},{"$f":"'Schedule XXA'!D26","v":0},{"$f":"'Schedule XXA'!F26","v":0},{"$f":"'Schedule XXA'!H26","v":0},{"$f":"'Schedule XXA'!J26","v":0},{"$f":"'Schedule XXA'!L26","v":0},{"$f":"'Currency Risk (Revised)'!X28","v":0},{"$f":"'Currency Risk (Revised)'!Y28","v":0},null,null,0]
[null,{"$f":"'Currency Risk (Revised)'!B29","v":"Other currency 5"},{"$f":"'Schedule XXA'!D27","v":0},{"$f":"'Schedule XXA'!F27","v":0},{"$f":"'Schedule XXA'!H27","v":0},{"$f":"'Schedule XXA'!J27","v":0},{"$f":"'Schedule XXA'!L27","v":0},{"$f":"'Currency Risk (Revised)'!X29","v":0},{"$f":"'Currency Risk (Revised)'!Y29","v":0},null,null,0]
[null,{"$f":"'Currency Risk (Revised)'!B30","v":"Other currency 6"},{"$f":"'Schedule XXA'!D28","v":0},{"$f":"'Schedule XXA'!F28","v":0},{"$f":"'Schedule XXA'!H28","v":0},{"$f":"'Schedule XXA'!J28","v":0},{"$f":"'Schedule XXA'!L28","v":0},{"$f":"'Currency Risk (Revised)'!X30","v":0},{"$f":"'Currency Risk (Revised)'!Y30","v":0},null,null,0]
[null,{"$f":"'Currency Risk (Revised)'!B31","v":"Other currency 7"},{"$f":"'Schedule XXA'!D29","v":0},{"$f":"'Schedule XXA'!F29","v":0},{"$f":"'Schedule XXA'!H29","v":0},{"$f":"'Schedule XXA'!J29","v":0},{"$f":"'Schedule XXA'!L29","v":0},{"$f":"'Currency Risk (Revised)'!X31","v":0},{"$f":"'Currency Risk (Revised)'!Y31","v":0},null,null,0]
[null,{"$f":"'Currency Risk (Revised)'!B32","v":"Other currency 8"},{"$f":"'Schedule XXA'!D30","v":0},{"$f":"'Schedule XXA'!F30","v":0},{"$f":"'Schedule XXA'!H30","v":0},{"$f":"'Schedule XXA'!J30","v":0},{"$f":"'Schedule XXA'!L30","v":0},{"$f":"'Currency Risk (Revised)'!X32","v":0},{"$f":"'Currency Risk (Revised)'!Y32","v":0},null,null,0]
[null,{"$f":"'Currency Risk (Revised)'!B33","v":"Other currency 9"},{"$f":"'Schedule XXA'!D31","v":0},{"$f":"'Schedule XXA'!F31","v":0},{"$f":"'Schedule XXA'!H31","v":0},{"$f":"'Schedule XXA'!J31","v":0},{"$f":"'Schedule XXA'!L31","v":0},{"$f":"'Currency Risk (Revised)'!X33","v":0},{"$f":"'Currency Risk (Revised)'!Y33","v":0},null,null,0]
[null,{"$f":"'Currency Risk (Revised)'!B34","v":"Other currency 10"},{"$f":"'Schedule XXA'!D32","v":0},{"$f":"'Schedule XXA'!F32","v":0},{"$f":"'Schedule XXA'!H32","v":0},{"$f":"'Schedule XXA'!J32","v":0},{"$f":"'Schedule XXA'!L32","v":0},{"$f":"'Currency Risk (Revised)'!X34","v":0},{"$f":"'Currency Risk (Revised)'!Y34","v":0},null,null,0]
[null,{"$f":"'Currency Risk (Revised)'!B36","v":"Total"},{"$f":"SUM(C314:C336)","v":0},0,0,0,0,0,0,null,null,{"$f":"SUM(L314:L336)","v":0}]
[]
[null,null,null,null,null,null,null,"W/O Mgmt. Action","Mgmt. Action",null,"W/O Mgmt. Action","Mgmt. Action"]
[]
[null,"CURRENCY RISK",null,null,null,null,null,{"$f":"IF(SUM(H314:H336)>=0,SUM(H314:H336),0)","v":0},{"$f":"IF(SUM(I314:I336)>=0,SUM(I314:I336),0)","v":0},null,{"$f":"IF(SUM(L314:L336)>=0,SUM(L314:L336),0)","v":0},{"$f":"I341","v":0}]
[]
[null,"CONCENTRATION RISK",null,null,null,null,null,"STANDARD","STANDARD",null,"USER","USER"]
[null,null,null,null,null,null,"EXPOSURE","CAPITAL","REQUIRED",null,"CAPITAL","REQUIRED"]
[null,"ASSET TYPE",null,null,null,null,"VALUE","FACTOR","CAPITAL",null,"FACTOR","CAPITAL"]
[]
[null,"(a) Cash and Cash Equivalents"]
[null,"BSCR Rating 0",null,null,null,null,{"$f":"'Concentration Risk (Revised)'!D10","v":0},{"$f":"+'Fixed Income Investments'!E83","v":0},{"$f":"IF(G348<0,0,G348*H348)","v":0},null,null,{"$f":"MAX(0,IF(K348=\"\",H348*G348,G348*K348))","v":0}]
[null,"BSCR Rating 1",null,null,null,null,{"$f":"'Concentration Risk (Revised)'!D11","v":0},{"$f":"+'Fixed Income Investments'!E84","v":1E-3},{"$f":"IF(G349<0,0,G349*H349)","v":0},null,null,{"$f":"MAX(0,IF(K349=\"\",H349*G349,G349*K349))","v":0}]
[null,"BSCR Rating 2",null,null,null,null,{"$f":"'Concentration Risk (Revised)'!D12","v":0},{"$f":"+'Fixed Income Investments'!E85","v":2E-3},{"$f":"IF(G350<0,0,G350*H350)","v":0},null,null,{"$f":"MAX(0,IF(K350=\"\",H350*G350,G350*K350))","v":0}]
[null,"BSCR Rating 3",null,null,null,null,{"$f":"'Concentration Risk (Revised)'!D13","v":0},{"$f":"+'Fixed Income Investments'!E86","v":3.0000000000000001E-3},0,null,null,0]
[null,"BSCR Rating 4",null,null,null,null,{"$f":"'Concentration Risk (Revised)'!D14","v":0},{"$f":"+'Fixed Income Investments'!E87","v":5.0000000000000001E-3},0,null,null,0]
[null,"BSCR Rating 5",null,null,null,null,{"$f":"'Concentration Risk (Revised)'!D15","v":0},{"$f":"+'Fixed Income Investments'!E88","v":1.4999999999999999E-2},0,null,null,0]
[null,"BSCR Rating 6",null,null,null,null,{"$f":"'Concentration Risk (Revised)'!D16","v":0},{"$f":"+'Fixed Income Investments'!E89","v":0.04},0,null,null,0]
[null,"BSCR Rating 7",null,null,null,null,{"$f":"'Concentration Risk (Revised)'!D17","v":0},{"$f":"+'Fixed Income Investments'!E90","v":0.06},0,null,null,0]
[null,"BSCR Rating 8",null,null,null,null,{"$f":"'Concentration Risk (Revised)'!D18","v":0},{"$f":"+'Fixed Income Investments'!E91","v":0.09},0,null,null,0]
[]
[null,"(a)  SUBTOTAL - CASH AND CASH EQUIVALENTS",null,null,null,null,{"$f":"SUM(G348:G356)","v":0},null,{"$f":"SUM(I348:I356)","v":0},null,null,{"$f":"SUM(L348:L356)","v":0}]
[]
[null,"(b) Corporate & Sovereign Bonds"]
[null,"BSCR Rating 0",null,null,null,null,{"$f":"'Concentration Risk (Revised)'!D23","v":0},{"$f":"+H15","v":0},{"$f":"IF(G361<0,0,G361*H361)","v":0},null,null,{"$f":"MAX(0,IF(K361=\"\",H361*G361,G361*K361))","v":0}]
[null,"BSCR Rating 1",null,null,null,null,{"$f":"'Concentration Risk (Revised)'!D24","v":0},4.0000000000000001E-3,0,null,null,{"$f":"MAX(0,IF(K362=\"\",H362*G362,G362*K362))","v":0}]
[null,"BSCR Rating 2",null,null,null,null,{"$f":"'Concentration Risk (Revised)'!D25","v":0},8.0000000000000002E-3,0,null,null,{"$f":"MAX(0,IF(K363=\"\",H363*G363,G363*K363))","v":0}]
[null,"BSCR Rating 3",null,null,null,null,{"$f":"'Concentration Risk (Revised)'!D26","v":0},1.4999999999999999E-2,0,null,null,0]
[null,"BSCR Rating 4",null,null,null,null,{"$f":"'Concentration Risk (Revised)'!D27","v":0},0.03,0,null,null,0]
[null,"BSCR Rating 5",null,null,null,null,{"$f":"'Concentration Risk (Revised)'!D28","v":0},0.08,0,null,null,0]
[null,"BSCR Rating 6",null,null,null,null,{"$f":"'Concentration Risk (Revised)'!D29","v":0},0.15,0,null,null,0]
[null,"BSCR Rating 7",null,null,null,null,{"$f":"'Concentration Risk (Revised)'!D30","v":0},0.26300000000000001,0,null,null,0]
[null,"BSCR Rating 8",null,null,null,null,{"$f":"'Concentration Risk (Revised)'!D31","v":0},0.35,0,null,null,0]
[]
[null,"(b)  SUBTOTAL - CORPORATE & SOVEREIGN BONDS",null,null,null,null,{"$f":"SUM(G361:G369)","v":0},null,{"$f":"SUM(I361:I369)","v":0},null,null,{"$f":"SUM(L361:L369)","v":0}]
[]
[null,"(c) Residential Mortage-Backed Securities"]
[null,"BSCR Rating 0",null,null,null,null,{"$f":"'Concentration Risk (Revised)'!D36","v":0},0,{"$f":"IF(G374<0,0,G374*H374)","v":0},null,null,{"$f":"MAX(0,IF(K374=\"\",H374*G374,G374*K374))","v":0}]
[null,"BSCR Rating 1",null,null,null,null,{"$f":"'Concentration Risk (Revised)'!D37","v":0},{"$f":"+H30","v":6.0000000000000001E-3},0,null,null,{"$f":"MAX(0,IF(K375=\"\",H375*G375,G375*K375))","v":0}]
[null,"BSCR Rating 2",null,null,null,null,{"$f":"'Concentration Risk (Revised)'!D38","v":0},1.2E-2,0,null,null,{"$f":"MAX(0,IF(K376=\"\",H376*G376,G376*K376))","v":0}]
[null,"BSCR Rating 3",null,null,null,null,{"$f":"'Concentration Risk (Revised)'!D39","v":0},0.02,0,null,null,0]
[null,"BSCR Rating 4",null,null,null,null,{"$f":"'Concentration Risk (Revised)'!D40","v":0},0.04,0,null,null,0]
[null,"BSCR Rating 5",null,null,null,null,{"$f":"'Concentration Risk (Revised)'!D41","v":0},0.11,0,null,null,0]
[null,"BSCR Rating 6",null,null,null,null,{"$f":"'Concentration Risk (Revised)'!D42","v":0},0.25,0,null,null,0]
[null,"BSCR Rating 7",null,null,null,null,{"$f":"'Concentration Risk (Revised)'!D43","v":0},0.35,0,null,null,0]
[null,"BSCR Rating 8",null,null,null,null,{"$f":"'Concentration Risk (Revised)'!D44","v":0},0.35,0,null,null,0]
[]
[null,"(c)  SUBTOTAL - RESIDENTIAL MORTGAGE-BACKED SECURITIES",null,null,null,null,{"$f":"SUM(G374:G382)","v":0},null,{"$f":"SUM(I374:I382)","v":0},null,null,{"$f":"SUM(L374:L382)","v":0}]
[]
[null,"(d) Commercial Mortgage-Backed Securities / Asset-Backed Securities"]
[null,"BSCR Rating 0",null,null,null,null,{"$f":"'Concentration Risk (Revised)'!D49","v":0},0,{"$f":"IF(G387<0,0,G387*H387)","v":0},null,null,{"$f":"MAX(0,IF(K387=\"\",H387*G387,G387*K387))","v":0}]
[null,"BSCR Rating 1",null,null,null,null,{"$f":"'Concentration Risk (Revised)'!D50","v":0},{"$f":"+H44","v":5.0000000000000001E-3},0,null,null,{"$f":"MAX(0,IF(K388=\"\",H388*G388,G388*K388))","v":0}]
[null,"BSCR Rating 2",null,null,null,null,{"$f":"'Concentration Risk (Revised)'!D51","v":0},0.01,0,null,null,{"$f":"MAX(0,IF(K389=\"\",H389*G389,G389*K389))","v":0}]
[null,"BSCR Rating 3",null,null,null,null,{"$f":"'Concentration Risk (Revised)'!D52","v":0},1.7999999999999999E-2,0,null,null,0]
[null,"BSCR Rating 4",null,null,null,null,{"$f":"'Concentration Risk (Revised)'!D53","v":0},3.5000000000000003E-2,0,null,null,0]
[null,"BSCR Rating 5",null,null,null,null,{"$f":"'Concentration Risk (Revised)'!D54","v":0},0.1,0,null,null,0]
[null,"BSCR Rating 6",null,null,null,null,{"$f":"'Concentration Risk (Revised)'!D55","v":0},0.2,0,null,null,0]
[null,"BSCR Rating 7",null,null,null,null,{"$f":"'Concentration Risk (Revised)'!D56","v":0},0.3,0,null,null,0]
[null,"BSCR Rating 8",null,null,null,null,{"$f":"'Concentration Risk (Revised)'!D57","v":0},0.35,0,null,null,0]
[]
[null,"(d)  SUBTOTAL - COMMERCIAL MORTGAGE-BACKED SECURITIES / ASSET-BACKED SECURITIES",null,null,null,null,{"$f":"SUM(G387:G395)","v":0},null,{"$f":"SUM(I387:I395)","v":0},null,null,{"$f":"SUM(L387:L395)","v":0}]
[]
[null,"(e) Bond Mutual Funds"]
[null,"BSCR Rating 0",null,null,null,null,{"$f":"'Concentration Risk (Revised)'!D62","v":0},{"$f":"+H58","v":0},{"$f":"IF(G400<0,0,G400*H400)","v":0},null,null,{"$f":"MAX(0,IF(K400=\"\",H400*G400,G400*K400))","v":0}]
[null,"BSCR Rating 1",null,null,null,null,{"$f":"'Concentration Risk (Revised)'!D63","v":0},4.0000000000000001E-3,0,null,null,{"$f":"MAX(0,IF(K401=\"\",H401*G401,G401*K401))","v":0}]
[null,"BSCR Rating 2",null,null,null,null,{"$f":"'Concentration Risk (Revised)'!D64","v":0},8.0000000000000002E-3,0,null,null,{"$f":"MAX(0,IF(K402=\"\",H402*G402,G402*K402))","v":0}]
[null,"BSCR Rating 3",null,null,null,null,{"$f":"'Concentration Risk (Revised)'!D65","v":0},1.4999999999999999E-2,0,null,null,0]
[null,"BSCR Rating 4",null,null,null,null,{"$f":"'Concentration Risk (Revised)'!D66","v":0},0.03,0,null,null,0]
[null,"BSCR Rating 5",null,null,null,null,{"$f":"'Concentration Risk (Revised)'!D67","v":0},0.08,0,null,null,0]
[null,"BSCR Rating 6",null,null,null,null,{"$f":"'Concentration Risk (Revised)'!D68","v":0},0.15,0,null,null,0]
[null,"BSCR Rating 7",null,null,null,null,{"$f":"'Concentration Risk (Revised)'!D69","v":0},0.26300000000000001,0,null,null,0]
[null,"BSCR Rating 8",null,null,null,null,{"$f":"'Concentration Risk (Revised)'!D70","v":0},0.35,0,null,null,0]
[]
[null,"(e)  SUBTOTAL - BOND MUTUAL FUNDS",null,null,null,null,{"$f":"SUM(G400:G408)","v":0},null,{"$f":"SUM(I400:I408)","v":0},null,null,{"$f":"SUM(L400:L408)","v":0}]
[]
[null,"(f) Preferred Shares"]
[null,"BSCR Rating 0",null,null,null,null,{"$f":"'Concentration Risk (Revised)'!D75","v":0},{"$f":"+'Concentration Risk'!E75","v":0},{"$f":"IF(G413<0,0,G413*H413)","v":0},null,null,{"$f":"MAX(0,IF(K413=\"\",H413*G413,G413*K413))","v":0}]
[null,"BSCR Rating 1",null,null,null,null,{"$f":"'Concentration Risk (Revised)'!D76","v":0},{"$f":"+'Concentration Risk'!E76","v":6.0000000000000001E-3},{"$f":"IF(G414<0,0,G414*H414)","v":0},null,null,{"$f":"MAX(0,IF(K414=\"\",H414*G414,G414*K414))","v":0}]
[null,"BSCR Rating 2",null,null,null,null,{"$f":"'Concentration Risk (Revised)'!D77","v":0},{"$f":"+'Concentration Risk'!E77","v":1.2E-2},0,null,null,0]
[null,"BSCR Rating 3",null,null,null,null,{"$f":"'Concentration Risk (Revised)'!D78","v":0},{"$f":"+'Concentration Risk'!E78","v":0.02},0,null,null,0]
[null,"BSCR Rating 4",null,null,null,null,{"$f":"'Concentration Risk (Revised)'!D79","v":0},{"$f":"+'Concentration Risk'!E79","v":0.04},0,null,null,0]
[null,"BSCR Rating 5",null,null,null,null,{"$f":"'Concentration Risk (Revised)'!D80","v":0},{"$f":"+'Concentration Risk'!E80","v":0.11},0,null,null,0]
[null,"BSCR Rating 6",null,null,null,null,{"$f":"'Concentration Risk (Revised)'!D81","v":0},{"$f":"+'Concentration Risk'!E81","v":0.25},0,null,null,0]
[null,"BSCR Rating 7",null,null,null,null,{"$f":"'Concentration Risk (Revised)'!D82","v":0},{"$f":"+'Concentration Risk'!E82","v":0.35},0,null,null,0]
[null,"BSCR Rating 8",null,null,null,null,{"$f":"'Concentration Risk (Revised)'!D83","v":0},{"$f":"+'Concentration Risk'!E83","v":0.35},0,null,null,0]
[]
[null,"(f)  SUBTOTAL - PREFERRED SHARES",null,null,null,null,{"$f":"SUM(G413:G421)","v":0},null,{"$f":"SUM(I413:I421)","v":0},null,null,{"$f":"SUM(L413:L421)","v":0}]
[]
[null,"(g) Mortgage Loans"]
[null,"Insured/Guaranteed Mortgages",null,null,null,null,{"$f":"'Concentration Risk (Revised)'!D88","v":0},{"$f":"+'Concentration Risk'!E88","v":3.0000000000000001E-3},{"$f":"IF(G426<0,0,G426*H426)","v":0},null,null,{"$f":"MAX(0,IF(K426=\"\",H426*G426,G426*K426))","v":0}]
[null,"Other Commercial and Farm Mortgages",null,null,null,null,{"$f":"'Concentration Risk (Revised)'!D89","v":0},{"$f":"+'Concentration Risk'!E89","v":0.05},{"$f":"IF(G427<0,0,G427*H427)","v":0},null,null,{"$f":"MAX(0,IF(K427=\"\",H427*G427,G427*K427))","v":0}]
[null,"Other Residential Mortgages",null,null,null,null,{"$f":"'Concentration Risk (Revised)'!D90","v":0},{"$f":"+'Concentration Risk'!E90","v":1.4999999999999999E-2},{"$f":"IF(G428<0,0,G428*H428)","v":0},null,null,{"$f":"MAX(0,IF(K428=\"\",H428*G428,G428*K428))","v":0}]
[null,"Mortgages Not In Good Standing",null,null,null,null,{"$f":"'Concentration Risk (Revised)'!D91","v":0},{"$f":"+'Concentration Risk'!E91","v":0.25},{"$f":"IF(G429<0,0,G429*H429)","v":0},null,null,{"$f":"MAX(0,IF(K429=\"\",H429*G429,G429*K429))","v":0}]
[]
[null,"(g)  SUBTOTAL - Mortgage Loans",null,null,null,null,{"$f":"SUM(G425:G429)","v":0},null,{"$f":"SUM(I425:I429)","v":0},null,null,{"$f":"SUM(L425:L429)","v":0}]
[]
[null,"(h) Other Asset Classes"]
[null,"Infrastructure (Non-affiliate holdings, non-duration based)",null,null,null,null,{"$f":"'Concentration Risk (Revised)'!D96","v":0},{"$f":"'Concentration Risk (Revised)'!E96","v":0.25},{"$f":"IF(G434<0,0,G434*H434)","v":0},null,null,{"$f":"MAX(0,IF(K434=\"\",H434*G434,G434*K434))","v":0}]
[null,"Listed Equity Securities in Developed Markets",null,null,null,null,{"$f":"'Concentration Risk (Revised)'!D97","v":0},{"$f":"'Concentration Risk (Revised)'!E97","v":0.35},0,null,null,0]
[null,"Other Equities",null,null,null,null,{"$f":"'Concentration Risk (Revised)'!D98","v":0},{"$f":"'Concentration Risk (Revised)'!E98","v":0.45},0,null,null,0]
[null,"Strategic Holdings",null,null,null,null,{"$f":"'Concentration Risk (Revised)'!D99","v":0},{"$f":"'Concentration Risk (Revised)'!E99","v":0.2},0,null,null,0]
[null,"Duration Based",null,null,null,null,{"$f":"'Concentration Risk (Revised)'!D100","v":0},{"$f":"'Concentration Risk (Revised)'!E100","v":0.2},0,null,null,0]
[null,"Letters of Credit",null,null,null,null,{"$f":"'Concentration Risk (Revised)'!D101","v":0},{"$f":"'Concentration Risk (Revised)'!E101","v":0.2},0,null,null,0]
[null,"Advances to Affiliates - ",null,null,null,null,{"$f":"'Concentration Risk (Revised)'!D102","v":0},{"$f":"+'Concentration Risk'!E103","v":0.05},0,null,null,0]
[null,"Policy Loans",null,null,null,null,{"$f":"'Concentration Risk (Revised)'!D103","v":0},{"$f":"+'Concentration Risk'!E104","v":0},0,null,null,0]
[null,"Equity Real Estate 1",null,null,null,null,{"$f":"'Concentration Risk (Revised)'!D104","v":0},{"$f":"+'Concentration Risk'!E105","v":0.1},0,null,null,0]
[null,"Equity Real Estate 2",null,null,null,null,{"$f":"'Concentration Risk (Revised)'!D105","v":0},{"$f":"+'Concentration Risk'!E106","v":0.2},0,null,null,0]
[null,"Collateral Loans",null,null,null,null,{"$f":"'Concentration Risk (Revised)'!D106","v":0},{"$f":"+'Concentration Risk'!E107","v":0.05},0,null,null,0]
[]
[null,"(h)  SUBTOTAL - OTHER ASSET CLASSES",null,null,null,null,{"$f":"SUM(G434:G445)","v":0},null,{"$f":"SUM(I434:I445)","v":0},null,null,{"$f":"SUM(L434:L445)","v":0}]
[]
[null,"(i) Grandfathered - Other Asset Classes"]
[null,"Grandfathered - Common Stock and Mutual Funds",null,null,null,null,{"$f":"'Concentration Risk (Revised)'!D111","v":0},{"$f":"'Concentration Risk (Revised)'!E111","v":0.14399999999999999},{"$f":"IF(G449<0,0,G449*H449)","v":0},null,null,{"$f":"MAX(0,IF(K449=\"\",H449*G449,G449*K449))","v":0}]
[null,"Grandfathered - Other Investments",null,null,null,null,{"$f":"'Concentration Risk (Revised)'!D112","v":0},{"$f":"'Concentration Risk (Revised)'!E112","v":0.2},0,null,null,0]
[null,"Grandfathered - Investment in Affiliates – Unregulated entities that conduct ancillary services",null,null,null,null,{"$f":"'Concentration Risk (Revised)'!D113","v":0},{"$f":"'Concentration Risk (Revised)'!E113","v":0.05},0,null,null,0]
[null,"Grandfathered - Investment in Affiliates - Unregulated non-financial operating entities",null,null,null,null,{"$f":"'Concentration Risk (Revised)'!D114","v":0},{"$f":"'Concentration Risk (Revised)'!E114","v":0.2},0,null,null,0]
[null,"Grandfathered - Investment in Affiliates - Unregulated financial operating entities",null,null,null,null,{"$f":"'Concentration Risk (Revised)'!D115","v":0},{"$f":"'Concentration Risk (Revised)'!E115","v":0.55000000000000004},0,null,null,0]
[null,"Grandfathered - Investment in Affiliates - Regulated non-insurance financial operating entities",null,null,null,null,{"$f":"'Concentration Risk (Revised)'!D116","v":0},{"$f":"'Concentration Risk (Revised)'!E116","v":0.55000000000000004},0,null,null,0]
[null,"Grandfathered - Investment in Affiliates - Regulated insurance financial operating entities",null,null,null,null,{"$f":"'Concentration Risk (Revised)'!D117","v":0},{"$f":"'Concentration Risk (Revised)'!E117","v":0.2},0,null,null,0]
[null,"Grandfathered - Real Estate: Occupied by company",null,null,null,null,{"$f":"'Concentration Risk (Revised)'!D118","v":0},{"$f":"'Concentration Risk (Revised)'!E118","v":0.1},0,null,null,0]
[null,"Grandfathered - Real Estate: Other properties",null,null,null,null,{"$f":"'Concentration Risk (Revised)'!D119","v":0},{"$f":"'Concentration Risk (Revised)'!E119","v":0.2},0,null,null,0]
[]
[null,"(h)  SUBTOTAL - OTHER ASSET CLASSES",null,null,null,null,{"$f":"SUM(G449:G458)","v":0},null,{"$f":"SUM(I449:I458)","v":0},null,null,{"$f":"SUM(L449:L458)","v":0}]
[]
[null,"TOTAL CONCENTRATION RISK",null,null,null,null,{"$f":"G358+G371+G384+G397+G410+G423+G431+G446+G459","v":0},null,{"$f":"I358+I371+I384+I397+I410+I423+I431+I446+I459","v":0},null,null,{"$f":"L358+L371+L384+L397+L410+L423+L431+L446+L459","v":0}]
[]
[null,null,null,null,null,null,null,"STANDARD","STANDARD",null,"USER","USER"]
[null,"TYPE OF ",null,null,null,null,"ASSET","CAPITAL","REQUIRED",null,"CAPITAL","REQUIRED"]
[null,"CREDIT RISK",null,null,null,null,"VALUE","FACTOR","CAPITAL",null,"FACTOR","CAPITAL"]
[]
[null,"(a)  Accounts and Premiums Receivable",null,null,null,null,"(1) ","(2)","(1) x (2)",null,"(3)","(1) x (3)"]
[]
[null,"In Course of Collection",null,null,null,null,{"$f":"'Form 1EBS'!F61","v":0},{"$f":"'Credit Risk (Revised)'!G11","v":0.05},{"$f":"IF(G469<0,0,G469*H469)","v":0},null,null,{"$f":"MAX(0,IF(K469=\"\",H469*G469,G469*K469))","v":0}]
[null,"Deferred - Not Yet Due",null,null,null,null,{"$f":"'Form 1'!F66","v":0},{"$f":"'Credit Risk (Revised)'!G12","v":0.05},{"$f":"IF(G470<0,0,G470*H470)","v":0},null,null,{"$f":"MAX(0,IF(K470=\"\",H470*G470,G470*K470))","v":0}]
[null,"Receivables from retrocessional contracts Less: Collateralized Balances",null,null,null,null,{"$f":"'Form 1EBS'!F62-'Form 1EBS'!F225","v":0},{"$f":"'Credit Risk (Revised)'!G13","v":0.1},{"$f":"(G471*H471)","v":0},null,null,{"$f":"IF(K471=\"\",H471*G471,G471*K471)","v":0}]
[]
[null,"(a)  SUBTOTAL - ACCOUNTS AND PREMIUMS RECEIVABLE",null,null,null,null,{"$f":"SUM(G469:G471)","v":0},null,{"$f":"IF(SUM(I469:I471)>=0,SUM(I469:I471),0)","v":0},null,null,{"$f":"IF(SUM(L469:L471)>=0,SUM(L469:L471),0)","v":0}]
[]
[null,"(b)  All Other Receivables"]
[]
[null,"Accrued Investment Income",null,null,null,null,{"$f":"'Form 1EBS'!F41","v":0},{"$f":"'Credit Risk (Revised)'!G19","v":0.05},{"$f":"IF(G477<0,0,G477*H477)","v":0},null,null,{"$f":"MAX(0,IF(K477=\"\",H477*G477,G477*K477))","v":0}]
[null,"Advances to Affiliates",null,null,null,null,{"$f":"'Form 1EBS'!F58","v":0},{"$f":"'Credit Risk (Revised)'!G20","v":2.5000000000000001E-2},{"$f":"IF(G478<0,0,G478*H478)","v":0},null,null,{"$f":"MAX(0,IF(K478=\"\",H478*G478,G478*K478))","v":0}]
[null,"Balances receivable on sale of investments",null,null,null,null,{"$f":"'Form 1EBS'!F83","v":0},{"$f":"'Credit Risk (Revised)'!G22","v":2.5000000000000001E-2},{"$f":"IF(G479<0,0,G479*H479)","v":0},null,null,{"$f":"MAX(0,IF(K479=\"\",H479*G479,G479*K479))","v":0}]
[]
[null,"(b)  SUBTOTAL - ALL OTHER RECEIVABLES",null,null,null,null,{"$f":"SUM(G477:G479)","v":0},null,{"$f":"IF(SUM(I477:I479)>=0,SUM(I477:I479),0)","v":0},null,null,{"$f":"IF(SUM(L477:L479)>=0,SUM(L477:L479),0)","v":0}]
[]
[null,"(c)(i) Particulars of Reinsurance Balances For Current Year By BSCR Rating"]
[]
[null,"BSCR Rating 0 (Domestic Affiliates)",null,null,null,null,{"$f":"'Schedule XVIII (EBS)'!R84","v":0},{"$f":"'Credit Risk (Revised)'!G28","v":0},{"$f":"IF(G485<0,0,G485*H485)","v":0},null,null,{"$f":"MAX(0,IF(K485=\"\",H485*G485,G485*K485))","v":0}]
[null,"BSCR Rating 1",null,null,null,null,{"$f":"'Schedule XVIII (EBS)'!R85","v":0},{"$f":"'Credit Risk (Revised)'!G29","v":7.0000000000000001E-3},{"$f":"IF(G486<0,0,G486*H486)","v":0},null,null,0]
[null,"BSCR Rating 2",null,null,null,null,{"$f":"'Schedule XVIII (EBS)'!R86","v":0},{"$f":"'Credit Risk (Revised)'!G30","v":1.4999999999999999E-2},0,null,null,0]
[null,"BSCR Rating 3",null,null,null,null,{"$f":"'Schedule XVIII (EBS)'!R87","v":0},{"$f":"'Credit Risk (Revised)'!G31","v":3.5000000000000003E-2},0,null,null,0]
[null,"BSCR Rating 4",null,null,null,null,{"$f":"'Schedule XVIII (EBS)'!R88","v":0},{"$f":"'Credit Risk (Revised)'!G32","v":7.0000000000000007E-2},0,null,null,0]
[null,"BSCR Rating 5",null,null,null,null,{"$f":"'Schedule XVIII (EBS)'!R89","v":0},{"$f":"'Credit Risk (Revised)'!G33","v":0.12},0,null,null,0]
[null,"BSCR Rating 6",null,null,null,null,{"$f":"'Schedule XVIII (EBS)'!R90","v":0},{"$f":"'Credit Risk (Revised)'!G34","v":0.2},0,null,null,0]
[null,"BSCR Rating 7",null,null,null,null,{"$f":"'Schedule XVIII (EBS)'!R91","v":0},{"$f":"'Credit Risk (Revised)'!G35","v":0.27},0,null,null,0]
[null,"BSCR Rating 8",null,null,null,null,{"$f":"'Schedule XVIII (EBS)'!R92","v":0},{"$f":"'Credit Risk (Revised)'!G36","v":0.35},0,null,null,0]
[]
[null,"Total",null,null,null,null,{"$f":"SUM(G485:G494)","v":0},null,{"$f":"SUM(I485:I494)","v":0},null,null,{"$f":"SUM(L485:L494)","v":0}]
[]
[null,"Diversification Adjustment at 40%",null,null,null,null,null,null,{"$f":"SUM(I485:I493)*-('Schedule XVIII (EBS)'!R101)","v":0},null,null,{"$f":"SUM(L485:L493)*-('Schedule XVIII (EBS)'!R101)","v":0}]
[]
[null,"(c)(i)  SUBTOTAL - PARTICULARS OF REINSURANCE BALANCES BY BSCR RATING",null,null,null,null,{"$f":"+G495","v":0},null,{"$f":"IF(SUM(I485:I493,I497)>=0,SUM(I485:I493,I497),0)","v":0},null,null,{"$f":"IF(SUM(L485:L493,L497)>=0,SUM(L485:L493,L497),0)","v":0}]
[]
[null,"(c)(ii) Particulars of Reinsurance Balances For Future Premium By BSCR Rating"]
[]
[null,"Gross Premium Risk Charge",null,{"$f":"'Premium Risk (Revised)'!Q59","v":0}]
[null,"Net Premium Risk Charge",null,{"$f":"'Premium Risk (Revised)'!N59","v":0}]
[null,"% of Premiums Ceded Risk",null,{"$f":"D503-D504","v":0}]
[]
[null,"BSCR Rating 0 (Domestic Affiliates)",null,{"$f":"IF($G$495<>0, $D$505*G485/$G$495, 0)","v":0},null,null,{"$f":"IF($D$517=0,0,D507/$D$517)","v":0},{"$f":"'Credit Risk (Revised)'!G51","v":0},{"$f":"IF($D$505<0,0,$D$505*G507*H507)","v":0},null,null,{"$f":"MAX(0,IF(K507=\"\",$D$505*G507*H507,$D$505*G507*K507))","v":0}]
[null,"BSCR Rating 1",null,{"$f":"IF($G$495<>0, $D$505*G486/$G$495, 0)","v":0},null,null,{"$f":"IF($D$517=0,0,D508/$D$517)","v":0},{"$f":"'Credit Risk (Revised)'!G52","v":7.0000000000000001E-3},0,null,null,0]
[null,"BSCR Rating 2",null,{"$f":"IF($G$495<>0, $D$505*G487/$G$495, 0)","v":0},null,null,0,{"$f":"'Credit Risk (Revised)'!G53","v":1.4999999999999999E-2},0,null,null,0]
[null,"BSCR Rating 3",null,{"$f":"IF($G$495<>0, $D$505*G488/$G$495, 0)","v":0},null,null,0,{"$f":"'Credit Risk (Revised)'!G54","v":3.5000000000000003E-2},0,null,null,0]
[null,"BSCR Rating 4",null,{"$f":"IF($G$495<>0, $D$505*G489/$G$495, D505)","v":0},null,null,0,{"$f":"'Credit Risk (Revised)'!G55","v":7.0000000000000007E-2},0,null,null,0]
[null,"BSCR Rating 5",null,{"$f":"IF($G$495<>0, $D$505*G490/$G$495, 0)","v":0},null,null,0,{"$f":"'Credit Risk (Revised)'!G56","v":0.12},0,null,null,0]
[null,"BSCR Rating 6",null,{"$f":"IF($G$495<>0, $D$505*G491/$G$495, 0)","v":0},null,null,0,{"$f":"'Credit Risk (Revised)'!G57","v":0.2},0,null,null,0]
[null,"BSCR Rating 7",null,{"$f":"IF($G$495<>0, $D$505*G492/$G$495, 0)","v":0},null,null,0,{"$f":"'Credit Risk (Revised)'!G58","v":0.27},0,null,null,0]
[null,"BSCR Rating 8",null,{"$f":"IF($G$495<>0, $D$505*G493/$G$495, 0)","v":0},null,null,0,{"$f":"'Credit Risk (Revised)'!G59","v":0.35},0,null,null,0]
[]
[null,"Total",null,{"$f":"SUM(D507:D516)","v":0},null,null,{"$f":"SUM(G507:G516)","v":0},null,{"$f":"SUM(I507:I516)","v":0},null,null,{"$f":"SUM(L507:L516)","v":0}]
[]
[null,"Diversification Adjustment at 40%",null,null,null,null,null,null,{"$f":"SUM(I507:I515)*-('Schedule XVIII (EBS)'!R101)","v":0},null,null,{"$f":"SUM(L507:L515)*-('Schedule XVIII (EBS)'!R101)","v":0}]
[]
[null,"(c)(ii)  SUBTOTAL - PARTICULARS OF REINSURANCE BALANCES BY BSCR RATING",null,null,null,null,null,null,{"$f":"IF(SUM(I517:I519)>=0,SUM(I517:I519),0)","v":0},null,null,{"$f":"IF(SUM(L517:L519)>=0,SUM(L517:L519),0)","v":0}]
[]
[null,"(c)  SUBTOTAL - PARTICULARS OF REINSURANCE BALANCES BY BSCR RATING (MAX OF (C)(I) AND (C)(II)",null,null,null,null,null,null,{"$f":"MAX(I499,I521)","v":0},null,null,{"$f":"MAX(L499,L521)","v":0}]
[]
[null,null,null,"Market Value of Derivatives with Positive Market Value","Market Value of Derivatives with Negative Market Value","Market Value of Collateral, Excluding any overcollateralization","STANDARD","HAIRCUT","STANDARD",null,"USER","USER"]
[null,null,null,null,null,null,"CAPITAL","ON","REQUIRED",null,"CAPITAL","REQUIRED"]
[null,null,null,null,null,null,"FACTOR","COLLATERAL","CAPITAL",null,"FACTOR","CAPITAL"]
[]
[null,"(d) Counterparty Default Risk for OTC Derivatives"]
[]
[null,"BSCR Rating 0 ",null,{"$f":"'Schedule IIB (EBS)'!D84+'Schedule IIC (EBS)'!D84+'Schedule IID (EBS)'!D84+'Schedule IIE (EBS)'!D84+'Schedule IIF (EBS)'!D84","v":0},{"$f":"'Schedule IIB (EBS)'!F84+'Schedule IIC (EBS)'!F84+'Schedule IID (EBS)'!F84+'Schedule IIE (EBS)'!F84+'Schedule IIF (EBS)'!F84","v":0},{"$f":"'Schedule IIB (EBS)'!H84+'Schedule IIC (EBS)'!H84+'Schedule IID (EBS)'!H84+'Schedule IIE (EBS)'!H84+'Schedule IIF (EBS)'!H84","v":0},{"$f":"'Credit Risk (Revised)'!F72","v":0},{"$f":"'Credit Risk (Revised)'!G72","v":0.03},{"$f":"MAX(0,D531-(1-H531)*MIN(D531,F531))*G531","v":0},null,null,{"$f":"IF(K531=\"\",I531,MAX(0,D531-(1-H531)*MIN(D531,F531))*K531)","v":0}]
[null,"BSCR Rating 1",null,{"$f":"'Schedule IIB (EBS)'!D85+'Schedule IIC (EBS)'!D85+'Schedule IID (EBS)'!D85+'Schedule IIE (EBS)'!D85+'Schedule IIF (EBS)'!D85","v":0},{"$f":"'Schedule IIB (EBS)'!F85+'Schedule IIC (EBS)'!F85+'Schedule IID (EBS)'!F85+'Schedule IIE (EBS)'!F85+'Schedule IIF (EBS)'!F85","v":0},{"$f":"'Schedule IIB (EBS)'!H85+'Schedule IIC (EBS)'!H85+'Schedule IID (EBS)'!H85+'Schedule IIE (EBS)'!H85+'Schedule IIF (EBS)'!H85","v":0},{"$f":"'Credit Risk (Revised)'!F73","v":4.0000000000000001E-3},{"$f":"'Credit Risk (Revised)'!G73","v":0.03},{"$f":"MAX(0,D532-(1-H532)*MIN(D532,F532))*G532","v":0},null,null,{"$f":"IF(K532=\"\",I532,MAX(0,D532-(1-H532)*MIN(D532,F532))*K532)","v":0}]
[null,"BSCR Rating 2",null,{"$f":"'Schedule IIB (EBS)'!D86+'Schedule IIC (EBS)'!D86+'Schedule IID (EBS)'!D86+'Schedule IIE (EBS)'!D86+'Schedule IIF (EBS)'!D86","v":0},{"$f":"'Schedule IIB (EBS)'!F86+'Schedule IIC (EBS)'!F86+'Schedule IID (EBS)'!F86+'Schedule IIE (EBS)'!F86+'Schedule IIF (EBS)'!F86","v":0},{"$f":"'Schedule IIB (EBS)'!H86+'Schedule IIC (EBS)'!H86+'Schedule IID (EBS)'!H86+'Schedule IIE (EBS)'!H86+'Schedule IIF (EBS)'!H86","v":0},{"$f":"'Credit Risk (Revised)'!F74","v":8.0000000000000002E-3},{"$f":"'Credit Risk (Revised)'!G74","v":0.03},0,null,null,0]
[null,"BSCR Rating 3",null,{"$f":"'Schedule IIB (EBS)'!D87+'Schedule IIC (EBS)'!D87+'Schedule IID (EBS)'!D87+'Schedule IIE (EBS)'!D87+'Schedule IIF (EBS)'!D87","v":0},{"$f":"'Schedule IIB (EBS)'!F87+'Schedule IIC (EBS)'!F87+'Schedule IID (EBS)'!F87+'Schedule IIE (EBS)'!F87+'Schedule IIF (EBS)'!F87","v":0},{"$f":"'Schedule IIB (EBS)'!H87+'Schedule IIC (EBS)'!H87+'Schedule IID (EBS)'!H87+'Schedule IIE (EBS)'!H87+'Schedule IIF (EBS)'!H87","v":0},{"$f":"'Credit Risk (Revised)'!F75","v":1.4999999999999999E-2},{"$f":"'Credit Risk (Revised)'!G75","v":0.03},0,null,null,0]
[null,"BSCR Rating 4",null,{"$f":"'Schedule IIB (EBS)'!D88+'Schedule IIC (EBS)'!D88+'Schedule IID (EBS)'!D88+'Schedule IIE (EBS)'!D88+'Schedule IIF (EBS)'!D88","v":0},{"$f":"'Schedule IIB (EBS)'!F88+'Schedule IIC (EBS)'!F88+'Schedule IID (EBS)'!F88+'Schedule IIE (EBS)'!F88+'Schedule IIF (EBS)'!F88","v":0},{"$f":"'Schedule IIB (EBS)'!H88+'Schedule IIC (EBS)'!H88+'Schedule IID (EBS)'!H88+'Schedule IIE (EBS)'!H88+'Schedule IIF (EBS)'!H88","v":0},{"$f":"'Credit Risk (Revised)'!F76","v":0.03},{"$f":"'Credit Risk (Revised)'!G76","v":0.03},0,null,null,0]
[null,"BSCR Rating 5",null,{"$f":"'Schedule IIB (EBS)'!D89+'Schedule IIC (EBS)'!D89+'Schedule IID (EBS)'!D89+'Schedule IIE (EBS)'!D89+'Schedule IIF (EBS)'!D89","v":0},{"$f":"'Schedule IIB (EBS)'!F89+'Schedule IIC (EBS)'!F89+'Schedule IID (EBS)'!F89+'Schedule IIE (EBS)'!F89+'Schedule IIF (EBS)'!F89","v":0},{"$f":"'Schedule IIB (EBS)'!H89+'Schedule IIC (EBS)'!H89+'Schedule IID (EBS)'!H89+'Schedule IIE (EBS)'!H89+'Schedule IIF (EBS)'!H89","v":0},{"$f":"'Credit Risk (Revised)'!F77","v":0.08},{"$f":"'Credit Risk (Revised)'!G77","v":0.03},0,null,null,0]
[null,"BSCR Rating 6",null,{"$f":"'Schedule IIB (EBS)'!D90+'Schedule IIC (EBS)'!D90+'Schedule IID (EBS)'!D90+'Schedule IIE (EBS)'!D90+'Schedule IIF (EBS)'!D90","v":0},{"$f":"'Schedule IIB (EBS)'!F90+'Schedule IIC (EBS)'!F90+'Schedule IID (EBS)'!F90+'Schedule IIE (EBS)'!F90+'Schedule IIF (EBS)'!F90","v":0},{"$f":"'Schedule IIB (EBS)'!H90+'Schedule IIC (EBS)'!H90+'Schedule IID (EBS)'!H90+'Schedule IIE (EBS)'!H90+'Schedule IIF (EBS)'!H90","v":0},{"$f":"'Credit Risk (Revised)'!F78","v":0.15},{"$f":"'Credit Risk (Revised)'!G78","v":0.03},0,null,null,0]
[null,"BSCR Rating 7",null,{"$f":"'Schedule IIB (EBS)'!D91+'Schedule IIC (EBS)'!D91+'Schedule IID (EBS)'!D91+'Schedule IIE (EBS)'!D91+'Schedule IIF (EBS)'!D91","v":0},{"$f":"'Schedule IIB (EBS)'!F91+'Schedule IIC (EBS)'!F91+'Schedule IID (EBS)'!F91+'Schedule IIE (EBS)'!F91+'Schedule IIF (EBS)'!F91","v":0},{"$f":"'Schedule IIB (EBS)'!H91+'Schedule IIC (EBS)'!H91+'Schedule IID (EBS)'!H91+'Schedule IIE (EBS)'!H91+'Schedule IIF (EBS)'!H91","v":0},{"$f":"'Credit Risk (Revised)'!F79","v":0.26300000000000001},{"$f":"'Credit Risk (Revised)'!G79","v":0.03},0,null,null,0]
[null,"BSCR Rating 8",null,{"$f":"'Schedule IIB (EBS)'!D92+'Schedule IIC (EBS)'!D92+'Schedule IID (EBS)'!D92+'Schedule IIE (EBS)'!D92+'Schedule IIF (EBS)'!D92","v":0},{"$f":"'Schedule IIB (EBS)'!F92+'Schedule IIC (EBS)'!F92+'Schedule IID (EBS)'!F92+'Schedule IIE (EBS)'!F92+'Schedule IIF (EBS)'!F92","v":0},{"$f":"'Schedule IIB (EBS)'!H92+'Schedule IIC (EBS)'!H92+'Schedule IID (EBS)'!H92+'Schedule IIE (EBS)'!H92+'Schedule IIF (EBS)'!H92","v":0},{"$f":"'Credit Risk (Revised)'!F80","v":0.35},{"$f":"'Credit Risk (Revised)'!G80","v":0.03},0,null,null,0]
[null,null,null,{"$f":"SUM(D531:D539)","v":0},{"$f":"SUM(E531:E539)","v":0},{"$f":"SUM(F531:F539)","v":0},null,null,{"$f":"SUM(I531:I539)","v":0},null,null,{"$f":"SUM(L531:L539)","v":0}]
[]
[null,"(d)  SUBTOTAL - COUNTERPARTY DEFAULT RISK FOR OTC DERIVATIVES",null,null,null,null,null,null,{"$f":"SUM(I531:I539)","v":0},null,null,{"$f":"SUM(L531:L539)","v":0}]
[]
[null,"(d)  TOTAL CREDIT RISK  [ (a) + (b) + (c) ]",null,null,null,null,{"$f":"G499+G481+G473","v":0},null,{"$f":"I481+I473+I523+I542","v":0},null,null,{"$f":"L481+L473+L523+L542","v":0}]
[]
[null,null,null,"GROSS","GEO DIV","GEO DIV","GEO DIV","STANDARD","STANDARD",null,"USER","USER"]
[null,"TYPE OF ",null,"EXPOSURE","NET BASE","NET FP","NET FP","CAPITAL","REQUIRED",null,"CAPITAL","REQUIRED"]
[null,"PREMIUM RISK",null,"MEASURE","EXPOSURE","(EXISTING)","(FUTURE)","FACTOR","CAPITAL",null,"FACTOR","CAPITAL"]
[]
[null,"Property Catastrophe",null,{"$f":"'Premium Risk (Revised)'!D11","v":0},{"$f":"'Premium Risk (Revised)'!H11","v":0},{"$f":"'Premium Risk (Revised)'!I11","v":0},{"$f":"'Premium Risk (Revised)'!J11","v":0},{"$f":"'Premium Risk (Revised)'!K11","v":0},{"$f":"IF($E550<0,0,$E550*'Premium Risk (Revised)'!$K11)+IF($F550<0,0,$F550*'Premium Risk (Revised)'!$L11)+IF($G550<0,0,$G550*'Premium Risk (Revised)'!$M11)","v":0},null,null,{"$f":"MAX(0,IF(K550=\"\",I550,IF($E550<0,0,$E550*K550)+IF($F550<0,0,$F550*K550)+IF($G550<0,0,$G550*K550)))","v":0}]
[null,"Property",null,{"$f":"'Premium Risk (Revised)'!D12","v":0},{"$f":"'Premium Risk (Revised)'!H12","v":0},{"$f":"'Premium Risk (Revised)'!I12","v":0},{"$f":"'Premium Risk (Revised)'!J12","v":0},{"$f":"'Premium Risk (Revised)'!K12","v":0.497450025355053},{"$f":"IF($E551<0,0,$E551*'Premium Risk (Revised)'!$K12)+IF($F551<0,0,$F551*'Premium Risk (Revised)'!$L12)+IF($G551<0,0,$G551*'Premium Risk (Revised)'!$M12)","v":0},null,null,{"$f":"MAX(0,IF(K551=\"\",I551,IF($E551<0,0,$E551*K551)+IF($F551<0,0,$F551*K551*'Premium Risk (Revised)'!S12)+IF($G551<0,0,$G551*K551*'Premium Risk (Revised)'!S12*'Premium Risk (Revised)'!T12)))","v":0}]
[null,"Property Non-Proportional",null,{"$f":"'Premium Risk (Revised)'!D13","v":0},{"$f":"'Premium Risk (Revised)'!H13","v":0},{"$f":"'Premium Risk (Revised)'!I13","v":0},{"$f":"'Premium Risk (Revised)'!J13","v":0},{"$f":"'Premium Risk (Revised)'!K13","v":0.51625715924082105},{"$f":"IF($E552<0,0,$E552*'Premium Risk (Revised)'!$K13)+IF($F552<0,0,$F552*'Premium Risk (Revised)'!$L13)+IF($G552<0,0,$G552*'Premium Risk (Revised)'!$M13)","v":0},null,null,{"$f":"MAX(0,IF(K552=\"\",I552,IF($E552<0,0,$E552*K552)+IF($F552<0,0,$F552*K552*'Premium Risk (Revised)'!S13)+IF($G552<0,0,$G552*K552*'Premium Risk (Revised)'!S13*'Premium Risk (Revised)'!T13)))","v":0}]
[null,"Personal Accident",null,{"$f":"'Premium Risk (Revised)'!D14","v":0},{"$f":"'Premium Risk (Revised)'!H14","v":0},{"$f":"'Premium Risk (Revised)'!I14","v":0},{"$f":"'Premium Risk (Revised)'!J14","v":0},{"$f":"'Premium Risk (Revised)'!K14","v":0.34115345724240698},{"$f":"IF($E553<0,0,$E553*'Premium Risk (Revised)'!$K14)+IF($F553<0,0,$F553*'Premium Risk (Revised)'!$L14)+IF($G553<0,0,$G553*'Premium Risk (Revised)'!$M14)","v":0},null,null,{"$f":"MAX(0,IF(K553=\"\",I553,IF($E553<0,0,$E553*K553)+IF($F553<0,0,$F553*K553*'Premium Risk (Revised)'!S14)+IF($G553<0,0,$G553*K553*'Premium Risk (Revised)'!S14*'Premium Risk (Revised)'!T14)))","v":0}]
[null,"Personal Accident Non-Proportional",null,{"$f":"'Premium Risk (Revised)'!D15","v":0},{"$f":"'Premium Risk (Revised)'!H15","v":0},{"$f":"'Premium Risk (Revised)'!I15","v":0},{"$f":"'Premium Risk (Revised)'!J15","v":0},{"$f":"'Premium Risk (Revised)'!K15","v":0.41221262895987398},{"$f":"IF($E554<0,0,$E554*'Premium Risk (Revised)'!$K15)+IF($F554<0,0,$F554*'Premium Risk (Revised)'!$L15)+IF($G554<0,0,$G554*'Premium Risk (Revised)'!$M15)","v":0},null,null,{"$f":"MAX(0,IF(K554=\"\",I554,IF($E554<0,0,$E554*K554)+IF($F554<0,0,$F554*K554*'Premium Risk (Revised)'!S15)+IF($G554<0,0,$G554*K554*'Premium Risk (Revised)'!S15*'Premium Risk (Revised)'!T15)))","v":0}]
[null,"Aviation",null,{"$f":"'Premium Risk (Revised)'!D16","v":0},{"$f":"'Premium Risk (Revised)'!H16","v":0},{"$f":"'Premium Risk (Revised)'!I16","v":0},{"$f":"'Premium Risk (Revised)'!J16","v":0},{"$f":"'Premium Risk (Revised)'!K16","v":0.48178449435856302},{"$f":"IF($E555<0,0,$E555*'Premium Risk (Revised)'!$K16)+IF($F555<0,0,$F555*'Premium Risk (Revised)'!$L16)+IF($G555<0,0,$G555*'Premium Risk (Revised)'!$M16)","v":0},null,null,{"$f":"MAX(0,IF(K555=\"\",I555,IF($E555<0,0,$E555*K555)+IF($F555<0,0,$F555*K555*'Premium Risk (Revised)'!S16)+IF($G555<0,0,$G555*K555*'Premium Risk (Revised)'!S16*'Premium Risk (Revised)'!T16)))","v":0}]
[null,"Aviation Non-Proportional",null,{"$f":"'Premium Risk (Revised)'!D17","v":0},{"$f":"'Premium Risk (Revised)'!H17","v":0},{"$f":"'Premium Risk (Revised)'!I17","v":0},{"$f":"'Premium Risk (Revised)'!J17","v":0},{"$f":"'Premium Risk (Revised)'!K17","v":0.48201231799963601},{"$f":"IF($E556<0,0,$E556*'Premium Risk (Revised)'!$K17)+IF($F556<0,0,$F556*'Premium Risk (Revised)'!$L17)+IF($G556<0,0,$G556*'Premium Risk (Revised)'!$M17)","v":0},null,null,{"$f":"MAX(0,IF(K556=\"\",I556,IF($E556<0,0,$E556*K556)+IF($F556<0,0,$F556*K556*'Premium Risk (Revised)'!S17)+IF($G556<0,0,$G556*K556*'Premium Risk (Revised)'!S17*'Premium Risk (Revised)'!T17)))","v":0}]
[null,"Credit / Surety",null,{"$f":"'Premium Risk (Revised)'!D18","v":0},{"$f":"'Premium Risk (Revised)'!H18","v":0},{"$f":"'Premium Risk (Revised)'!I18","v":0},{"$f":"'Premium Risk (Revised)'!J18","v":0},{"$f":"'Premium Risk (Revised)'!K18","v":0.39820522005250802},{"$f":"IF($E557<0,0,$E557*'Premium Risk (Revised)'!$K18)+IF($F557<0,0,$F557*'Premium Risk (Revised)'!$L18)+IF($G557<0,0,$G557*'Premium Risk (Revised)'!$M18)","v":0},null,null,{"$f":"MAX(0,IF(K557=\"\",I557,IF($E557<0,0,$E557*K557)+IF($F557<0,0,$F557*K557*'Premium Risk (Revised)'!S18)+IF($G557<0,0,$G557*K557*'Premium Risk (Revised)'!S18*'Premium Risk (Revised)'!T18)))","v":0}]
[null,"Credit / Surety Non-Proportional",null,{"$f":"'Premium Risk (Revised)'!D19","v":0},{"$f":"'Premium Risk (Revised)'!H19","v":0},{"$f":"'Premium Risk (Revised)'!I19","v":0},{"$f":"'Premium Risk (Revised)'!J19","v":0},{"$f":"'Premium Risk (Revised)'!K19","v":0.45356665999464701},{"$f":"IF($E558<0,0,$E558*'Premium Risk (Revised)'!$K19)+IF($F558<0,0,$F558*'Premium Risk (Revised)'!$L19)+IF($G558<0,0,$G558*'Premium Risk (Revised)'!$M19)","v":0},null,null,{"$f":"MAX(0,IF(K558=\"\",I558,IF($E558<0,0,$E558*K558)+IF($F558<0,0,$F558*K558*'Premium Risk (Revised)'!S19)+IF($G558<0,0,$G558*K558*'Premium Risk (Revised)'!S19*'Premium Risk (Revised)'!T19)))","v":0}]
[null,"Energy Offshore / Marine",null,{"$f":"'Premium Risk (Revised)'!D20","v":0},{"$f":"'Premium Risk (Revised)'!H20","v":0},{"$f":"'Premium Risk (Revised)'!I20","v":0},{"$f":"'Premium Risk (Revised)'!J20","v":0},{"$f":"'Premium Risk (Revised)'!K20","v":0.42102344656076801},{"$f":"IF($E559<0,0,$E559*'Premium Risk (Revised)'!$K20)+IF($F559<0,0,$F559*'Premium Risk (Revised)'!$L20)+IF($G559<0,0,$G559*'Premium Risk (Revised)'!$M20)","v":0},null,null,{"$f":"MAX(0,IF(K559=\"\",I559,IF($E559<0,0,$E559*K559)+IF($F559<0,0,$F559*K559*'Premium Risk (Revised)'!S20)+IF($G559<0,0,$G559*K559*'Premium Risk (Revised)'!S20*'Premium Risk (Revised)'!T20)))","v":0}]
[null,"Energy Offshore / Marine Non-Proportional",null,{"$f":"'Premium Risk (Revised)'!D21","v":0},{"$f":"'Premium Risk (Revised)'!H21","v":0},{"$f":"'Premium Risk (Revised)'!I21","v":0},{"$f":"'Premium Risk (Revised)'!J21","v":0},{"$f":"'Premium Risk (Revised)'!K21","v":0.47016820069929899},{"$f":"IF($E560<0,0,$E560*'Premium Risk (Revised)'!$K21)+IF($F560<0,0,$F560*'Premium Risk (Revised)'!$L21)+IF($G560<0,0,$G560*'Premium Risk (Revised)'!$M21)","v":0},null,null,{"$f":"MAX(0,IF(K560=\"\",I560,IF($E560<0,0,$E560*K560)+IF($F560<0,0,$F560*K560*'Premium Risk (Revised)'!S21)+IF($G560<0,0,$G560*K560*'Premium Risk (Revised)'!S21*'Premium Risk (Revised)'!T21)))","v":0}]
[null,"US Casualty",null,{"$f":"'Premium Risk (Revised)'!D22","v":0},{"$f":"'Premium Risk (Revised)'!H22","v":0},{"$f":"'Premium Risk (Revised)'!I22","v":0},{"$f":"'Premium Risk (Revised)'!J22","v":0},{"$f":"'Premium Risk (Revised)'!K22","v":0.50272577892886305},{"$f":"IF($E561<0,0,$E561*'Premium Risk (Revised)'!$K22)+IF($F561<0,0,$F561*'Premium Risk (Revised)'!$L22)+IF($G561<0,0,$G561*'Premium Risk (Revised)'!$M22)","v":0},null,null,{"$f":"MAX(0,IF(K561=\"\",I561,IF($E561<0,0,$E561*K561)+IF($F561<0,0,$F561*K561*'Premium Risk (Revised)'!S22)+IF($G561<0,0,$G561*K561*'Premium Risk (Revised)'!S22*'Premium Risk (Revised)'!T22)))","v":0}]
[null,"US Casualty Non-Proportional",null,{"$f":"'Premium Risk (Revised)'!D23","v":0},{"$f":"'Premium Risk (Revised)'!H23","v":0},{"$f":"'Premium Risk (Revised)'!I23","v":0},{"$f":"'Premium Risk (Revised)'!J23","v":0},{"$f":"'Premium Risk (Revised)'!K23","v":0.555814073452775},{"$f":"IF($E562<0,0,$E562*'Premium Risk (Revised)'!$K23)+IF($F562<0,0,$F562*'Premium Risk (Revised)'!$L23)+IF($G562<0,0,$G562*'Premium Risk (Revised)'!$M23)","v":0},null,null,{"$f":"MAX(0,IF(K562=\"\",I562,IF($E562<0,0,$E562*K562)+IF($F562<0,0,$F562*K562*'Premium Risk (Revised)'!S23)+IF($G562<0,0,$G562*K562*'Premium Risk (Revised)'!S23*'Premium Risk (Revised)'!T23)))","v":0}]
[null,"US Professional",null,{"$f":"'Premium Risk (Revised)'!D24","v":0},{"$f":"'Premium Risk (Revised)'!H24","v":0},{"$f":"'Premium Risk (Revised)'!I24","v":0},{"$f":"'Premium Risk (Revised)'!J24","v":0},{"$f":"'Premium Risk (Revised)'!K24","v":0.51225206482709496},{"$f":"IF($E563<0,0,$E563*'Premium Risk (Revised)'!$K24)+IF($F563<0,0,$F563*'Premium Risk (Revised)'!$L24)+IF($G563<0,0,$G563*'Premium Risk (Revised)'!$M24)","v":0},null,null,{"$f":"MAX(0,IF(K563=\"\",I563,IF($E563<0,0,$E563*K563)+IF($F563<0,0,$F563*K563*'Premium Risk (Revised)'!S24)+IF($G563<0,0,$G563*K563*'Premium Risk (Revised)'!S24*'Premium Risk (Revised)'!T24)))","v":0}]
[null,"US Professional Non-Proportional",null,{"$f":"'Premium Risk (Revised)'!D25","v":0},{"$f":"'Premium Risk (Revised)'!H25","v":0},{"$f":"'Premium Risk (Revised)'!I25","v":0},{"$f":"'Premium Risk (Revised)'!J25","v":0},{"$f":"'Premium Risk (Revised)'!K25","v":0.53805556666757803},{"$f":"IF($E564<0,0,$E564*'Premium Risk (Revised)'!$K25)+IF($F564<0,0,$F564*'Premium Risk (Revised)'!$L25)+IF($G564<0,0,$G564*'Premium Risk (Revised)'!$M25)","v":0},null,null,{"$f":"MAX(0,IF(K564=\"\",I564,IF($E564<0,0,$E564*K564)+IF($F564<0,0,$F564*K564*'Premium Risk (Revised)'!S25)+IF($G564<0,0,$G564*K564*'Premium Risk (Revised)'!S25*'Premium Risk (Revised)'!T25)))","v":0}]
[null,"US Specialty",null,{"$f":"'Premium Risk (Revised)'!D26","v":0},{"$f":"'Premium Risk (Revised)'!H26","v":0},{"$f":"'Premium Risk (Revised)'!I26","v":0},{"$f":"'Premium Risk (Revised)'!J26","v":0},{"$f":"'Premium Risk (Revised)'!K26","v":0.51436147942106603},{"$f":"IF($E565<0,0,$E565*'Premium Risk (Revised)'!$K26)+IF($F565<0,0,$F565*'Premium Risk (Revised)'!$L26)+IF($G565<0,0,$G565*'Premium Risk (Revised)'!$M26)","v":0},null,null,{"$f":"MAX(0,IF(K565=\"\",I565,IF($E565<0,0,$E565*K565)+IF($F565<0,0,$F565*K565*'Premium Risk (Revised)'!S26)+IF($G565<0,0,$G565*K565*'Premium Risk (Revised)'!S26*'Premium Risk (Revised)'!T26)))","v":0}]
[null,"US Specialty Non-Proportional",null,{"$f":"'Premium Risk (Revised)'!D27","v":0},{"$f":"'Premium Risk (Revised)'!H27","v":0},{"$f":"'Premium Risk (Revised)'!I27","v":0},{"$f":"'Premium Risk (Revised)'!J27","v":0},{"$f":"'Premium Risk (Revised)'!K27","v":0.52697789035313303},{"$f":"IF($E566<0,0,$E566*'Premium Risk (Revised)'!$K27)+IF($F566<0,0,$F566*'Premium Risk (Revised)'!$L27)+IF($G566<0,0,$G566*'Premium Risk (Revised)'!$M27)","v":0},null,null,{"$f":"MAX(0,IF(K566=\"\",I566,IF($E566<0,0,$E566*K566)+IF($F566<0,0,$F566*K566*'Premium Risk (Revised)'!S27)+IF($G566<0,0,$G566*K566*'Premium Risk (Revised)'!S27*'Premium Risk (Revised)'!T27)))","v":0}]
[null,"International Motor",null,{"$f":"'Premium Risk (Revised)'!D28","v":0},{"$f":"'Premium Risk (Revised)'!H28","v":0},{"$f":"'Premium Risk (Revised)'!I28","v":0},{"$f":"'Premium Risk (Revised)'!J28","v":0},{"$f":"'Premium Risk (Revised)'!K28","v":0.42191756117933499},{"$f":"IF($E567<0,0,$E567*'Premium Risk (Revised)'!$K28)+IF($F567<0,0,$F567*'Premium Risk (Revised)'!$L28)+IF($G567<0,0,$G567*'Premium Risk (Revised)'!$M28)","v":0},null,null,{"$f":"MAX(0,IF(K567=\"\",I567,IF($E567<0,0,$E567*K567)+IF($F567<0,0,$F567*K567*'Premium Risk (Revised)'!S28)+IF($G567<0,0,$G567*K567*'Premium Risk (Revised)'!S28*'Premium Risk (Revised)'!T28)))","v":0}]
[null,"International Motor Non-Proportional",null,{"$f":"'Premium Risk (Revised)'!D29","v":0},{"$f":"'Premium Risk (Revised)'!H29","v":0},{"$f":"'Premium Risk (Revised)'!I29","v":0},{"$f":"'Premium Risk (Revised)'!J29","v":0},{"$f":"'Premium Risk (Revised)'!K29","v":0.482210885429324},{"$f":"IF($E568<0,0,$E568*'Premium Risk (Revised)'!$K29)+IF($F568<0,0,$F568*'Premium Risk (Revised)'!$L29)+IF($G568<0,0,$G568*'Premium Risk (Revised)'!$M29)","v":0},null,null,{"$f":"MAX(0,IF(K568=\"\",I568,IF($E568<0,0,$E568*K568)+IF($F568<0,0,$F568*K568*'Premium Risk (Revised)'!S29)+IF($G568<0,0,$G568*K568*'Premium Risk (Revised)'!S29*'Premium Risk (Revised)'!T29)))","v":0}]
[null,"International Casualty Non-Motor",null,{"$f":"'Premium Risk (Revised)'!D30","v":0},{"$f":"'Premium Risk (Revised)'!H30","v":0},{"$f":"'Premium Risk (Revised)'!I30","v":0},{"$f":"'Premium Risk (Revised)'!J30","v":0},{"$f":"'Premium Risk (Revised)'!K30","v":0.50012106835589698},{"$f":"IF($E569<0,0,$E569*'Premium Risk (Revised)'!$K30)+IF($F569<0,0,$F569*'Premium Risk (Revised)'!$L30)+IF($G569<0,0,$G569*'Premium Risk (Revised)'!$M30)","v":0},null,null,{"$f":"MAX(0,IF(K569=\"\",I569,IF($E569<0,0,$E569*K569)+IF($F569<0,0,$F569*K569*'Premium Risk (Revised)'!S30)+IF($G569<0,0,$G569*K569*'Premium Risk (Revised)'!S30*'Premium Risk (Revised)'!T30)))","v":0}]
[null,"International Casualty Non-Motor Non-Proportional",null,{"$f":"'Premium Risk (Revised)'!D31","v":0},{"$f":"'Premium Risk (Revised)'!H31","v":0},{"$f":"'Premium Risk (Revised)'!I31","v":0},{"$f":"'Premium Risk (Revised)'!J31","v":0},{"$f":"'Premium Risk (Revised)'!K31","v":0.53551360019381999},{"$f":"IF($E570<0,0,$E570*'Premium Risk (Revised)'!$K31)+IF($F570<0,0,$F570*'Premium Risk (Revised)'!$L31)+IF($G570<0,0,$G570*'Premium Risk (Revised)'!$M31)","v":0},null,null,{"$f":"MAX(0,IF(K570=\"\",I570,IF($E570<0,0,$E570*K570)+IF($F570<0,0,$F570*K570*'Premium Risk (Revised)'!S31)+IF($G570<0,0,$G570*K570*'Premium Risk (Revised)'!S31*'Premium Risk (Revised)'!T31)))","v":0}]
[null,"Retro Property",null,{"$f":"'Premium Risk (Revised)'!D32","v":0},{"$f":"'Premium Risk (Revised)'!H32","v":0},{"$f":"'Premium Risk (Revised)'!I32","v":0},{"$f":"'Premium Risk (Revised)'!J32","v":0},{"$f":"'Premium Risk (Revised)'!K32","v":0.508030898436173},{"$f":"IF($E571<0,0,$E571*'Premium Risk (Revised)'!$K32)+IF($F571<0,0,$F571*'Premium Risk (Revised)'!$L32)+IF($G571<0,0,$G571*'Premium Risk (Revised)'!$M32)","v":0},null,null,{"$f":"MAX(0,IF(K571=\"\",I571,IF($E571<0,0,$E571*K571)+IF($F571<0,0,$F571*K571*'Premium Risk (Revised)'!S32)+IF($G571<0,0,$G571*K571*'Premium Risk (Revised)'!S32*'Premium Risk (Revised)'!T32)))","v":0}]
[null,"Structured / Finite Reinsurance",null,{"$f":"'Premium Risk (Revised)'!D33","v":0},{"$f":"'Premium Risk (Revised)'!H33","v":0},{"$f":"'Premium Risk (Revised)'!I33","v":0},{"$f":"'Premium Risk (Revised)'!J33","v":0},{"$f":"'Premium Risk (Revised)'!K33","v":0.27200000000000002},{"$f":"IF($E572<0,0,$E572*'Premium Risk (Revised)'!$K33)+IF($F572<0,0,$F572*'Premium Risk (Revised)'!$L33)+IF($G572<0,0,$G572*'Premium Risk (Revised)'!$M33)","v":0},null,null,{"$f":"MAX(0,IF(K572=\"\",I572,IF($E572<0,0,$E572*K572)+IF($F572<0,0,$F572*K572*'Premium Risk (Revised)'!S33)+IF($G572<0,0,$G572*K572*'Premium Risk (Revised)'!S33*'Premium Risk (Revised)'!T33)))","v":0}]
[null,"Health",null,{"$f":"'Premium Risk (Revised)'!D34","v":0},{"$f":"'Premium Risk (Revised)'!H34","v":0},{"$f":"'Premium Risk (Revised)'!I34","v":0},{"$f":"'Premium Risk (Revised)'!J34","v":0},{"$f":"'Premium Risk (Revised)'!K34","v":0.15},{"$f":"IF($E573<0,0,$E573*'Premium Risk (Revised)'!$K34)+IF($F573<0,0,$F573*'Premium Risk (Revised)'!$L34)+IF($G573<0,0,$G573*'Premium Risk (Revised)'!$M34)","v":0},null,null,{"$f":"MAX(0,IF(K573=\"\",I573,IF($E573<0,0,$E573*K573)+IF($F573<0,0,$F573*K573*'Premium Risk (Revised)'!S34)+IF($G573<0,0,$G573*K573*'Premium Risk (Revised)'!S34*'Premium Risk (Revised)'!T34)))","v":0}]
[]
[null,"(a)  TOTAL",null,{"$f":"SUM(D550:D573)","v":0},{"$f":"SUM(E550:E573)","v":0},{"$f":"SUM(F550:F573)","v":0},{"$f":"SUM(G550:G573)","v":0},null,{"$f":"SUM(I550:I574)","v":0},null,null,{"$f":"SUM(L550:L573)","v":0}]
[]
[null,"(b)  CORRELATION ADJUSTMENT"]
[]
[null,null,"(i)","Reduction in Capital Charge from Correlation Matrix",null,null,null,null,{"$f":"I575-I581","v":0},null,null,{"$f":"L575-L581","v":0}]
[]
[null,"(b)  CAPITAL CHARGE AFTER CORRELATION",null,null,null,null,null,{"$f":"'Premium Risk (Revised)'!K42","v":0},{"$f":"SQRT(MMULT(TRANSPOSE(I550:I573),MMULT('Correlation Matrix'!C16:Z39,I550:I573)))","v":0},null,null,{"$f":"SQRT(MMULT(TRANSPOSE(L550:L573),MMULT('Correlation Matrix'!C16:Z39,L550:L573)))","v":0}]
[]
[null,"(c)  CATASTROPHE PREMIUM ADJUSTMENT CALCULATION"]
[]
[null,null,"(i)","Average Annual Loss (AAL) Excluding Property Catastrophe",null,null,null,null,{"$f":"I657","v":0},null,null,{"$f":"+L657","v":0}]
[null,null,"(ii)","Industry Catastrophe Loss Ratio",null,null,null,null,{"$f":"+I659","v":0.4},null,null,{"$f":"+I586","v":0.4}]
[null,null,"(iii)","Avg Capital Factor  [ Total (3c) / (Total (1a) excl Prop CAT) ]",null,null,null,null,{"$f":"IF((E575-E550)=0,0,H581/(E575-E550))","v":0},null,null,{"$f":"IF((E575-E550)=0,0,H581/(E575-E550))","v":0}]
[]
[null,"(c)  CATASTROPHE PREMIUM ADJUSTMENT  [ (i) / (ii) x (iii) ]",null,null,null,null,null,null,{"$f":"I585/I586*I587","v":0},null,null,{"$f":"IF(L586=0,0,L585/L586*L587)","v":0}]
[]
[null,null,"(i)","Concentration Adjustment (up to 95%)"]
[null,null,"(ii)","Related Business % (up to 5%)"]
[null,null,"(iii)"," [ (i) + (ii) ]"]
[null,null,"(iv)","Maximum Adjustment"]
[]
[null,"(c) CONCENTRATION ADJUSTMENT FACTOR (formula 2) [(iii) x (iv)]"]
[]
[null,"(d)  TOTAL PREMIUM RISK (AFTER CATASTROPHE PREMIUM ADJUSTMENT)   [ (b) - (c) ]",null,null,null,null,null,null,{"$f":"IF(I581-I589>=0,I581-I589,0)","v":0},null,null,{"$f":"IF(L581-L589>=0,L581-L589,0)","v":0}]
[]
[null,null,null,null,null,null,null,"STANDARD","STANDARD",null,"USER","USER"]
[null,"TYPE OF ",null,null,null,null,"LIABILITY","CAPITAL","REQUIRED",null,"CAPITAL","REQUIRED"]
[null,"RESERVE RISK",null,null,null,null,"VALUE","FACTOR","CAPITAL",null,"FACTOR","CAPITAL"]
[]
[null,null,null,null,null,null,"(1) ","(2)","(1) x (2)",null,"(3)","(1) x (3)"]
[]
[null,"Property Catastrophe",null,null,null,null,{"$f":"'Geographic Div. (Revised)'!H40","v":0},{"$f":"'Reserve Risk (Revised)'!G11","v":0.46158858246802104},{"$f":"IF(G606<0,0,G606*H606)","v":0},null,null,{"$f":"MAX(0,IF(K606=\"\",H606*G606,G606*K606))","v":0}]
[null,"Property",null,null,null,null,{"$f":"'Geographic Div. (Revised)'!H41","v":0},{"$f":"'Reserve Risk (Revised)'!G12","v":0.43844984238218698},{"$f":"IF(G607<0,0,G607*H607)","v":0},null,null,0]
[null,"Property Non-Proportional",null,null,null,null,{"$f":"'Geographic Div. (Revised)'!H42","v":0},{"$f":"'Reserve Risk (Revised)'!G13","v":0.49735573879030043},0,null,null,0]
[null,"Personal Accident",null,null,null,null,{"$f":"'Geographic Div. (Revised)'!H43","v":0},{"$f":"'Reserve Risk (Revised)'!G14","v":0.29666070682155377},0,null,null,0]
[null,"Personal Accident Non-Proportional",null,null,null,null,{"$f":"'Geographic Div. (Revised)'!H44","v":0},{"$f":"'Reserve Risk (Revised)'!G15","v":0.34876523067975901},0,null,null,0]
[null,"Aviation",null,null,null,null,{"$f":"'Geographic Div. (Revised)'!H45","v":0},{"$f":"'Reserve Risk (Revised)'!G16","v":0.45952604952349801},0,null,null,0]
[null,"Aviation Non-Proportional",null,null,null,null,{"$f":"'Geographic Div. (Revised)'!H46","v":0},{"$f":"'Reserve Risk (Revised)'!G17","v":0.48255646377949879},0,null,null,0]
[null,"Credit / Surety",null,null,null,null,{"$f":"'Geographic Div. (Revised)'!H47","v":0},{"$f":"'Reserve Risk (Revised)'!G18","v":0.38368268064999406},0,null,null,0]
[null,"Credit / Surety Non-Proportional",null,null,null,null,{"$f":"'Geographic Div. (Revised)'!H48","v":0},{"$f":"'Reserve Risk (Revised)'!G19","v":0.43464696624596888},0,null,null,0]
[null,"Energy Offshore / Marine",null,null,null,null,{"$f":"'Geographic Div. (Revised)'!H49","v":0},{"$f":"'Reserve Risk (Revised)'!G20","v":0.39543823911176518},0,null,null,0]
[null,"Energy Offshore / Marine Non-Proportional",null,null,null,null,{"$f":"'Geographic Div. (Revised)'!H50","v":0},{"$f":"'Reserve Risk (Revised)'!G21","v":0.4394578357755653},0,null,null,0]
[null,"US Casualty",null,null,null,null,{"$f":"'Geographic Div. (Revised)'!H51","v":0},{"$f":"'Reserve Risk (Revised)'!G22","v":0.43018098459069698},0,null,null,0]
[null,"US Casualty Non-Proportional",null,null,null,null,{"$f":"'Geographic Div. (Revised)'!H52","v":0},{"$f":"'Reserve Risk (Revised)'!G23","v":0.48842309052279492},0,null,null,0]
[null,"US Professional",null,null,null,null,{"$f":"'Geographic Div. (Revised)'!H53","v":0},{"$f":"'Reserve Risk (Revised)'!G24","v":0.46275283271069756},0,null,null,0]
[null,"US Professional Non-Proportional",null,null,null,null,{"$f":"'Geographic Div. (Revised)'!H54","v":0},{"$f":"'Reserve Risk (Revised)'!G25","v":0.51484129765284659},0,null,null,0]
[null,"US Specialty",null,null,null,null,{"$f":"'Geographic Div. (Revised)'!H55","v":0},{"$f":"'Reserve Risk (Revised)'!G26","v":0.46506790223690625},0,null,null,0]
[null,"US Specialty Non-Proportional",null,null,null,null,{"$f":"'Geographic Div. (Revised)'!H56","v":0},{"$f":"'Reserve Risk (Revised)'!G27","v":0.48276028402747928},0,null,null,0]
[null,"International Motor",null,null,null,null,{"$f":"'Geographic Div. (Revised)'!H57","v":0},{"$f":"'Reserve Risk (Revised)'!G28","v":0.37080464615634018},0,null,null,0]
[null,"International Motor Non-Proportional",null,null,null,null,{"$f":"'Geographic Div. (Revised)'!H58","v":0},{"$f":"'Reserve Risk (Revised)'!G29","v":0.43541657269369022},0,null,null,0]
[null,"International Casualty Non-Motor",null,null,null,null,{"$f":"'Geographic Div. (Revised)'!H59","v":0},{"$f":"'Reserve Risk (Revised)'!G30","v":0.4365238613251069},0,null,null,0]
[null,"International Casualty Non-Motor Non-Proportional",null,null,null,null,{"$f":"'Geographic Div. (Revised)'!H60","v":0},{"$f":"'Reserve Risk (Revised)'!G31","v":0.49410327959272171},0,null,null,0]
[null,"Retro Property",null,null,null,null,{"$f":"'Geographic Div. (Revised)'!H61","v":0},{"$f":"'Reserve Risk (Revised)'!G32","v":0.47845206530716233},0,null,null,0]
[null,"Structured / Finite Reinsurance",null,null,null,null,{"$f":"'Geographic Div. (Revised)'!H62","v":0},{"$f":"'Reserve Risk (Revised)'!G33","v":0.24099999999999999},0,null,null,0]
[null,"Health",null,null,null,null,{"$f":"'Geographic Div. (Revised)'!H63","v":0},{"$f":"'Reserve Risk (Revised)'!G34","v":0.125},0,null,null,0]
[]
[null,"(a)  TOTAL",null,null,null,null,{"$f":"SUM(G606:G629)","v":0},null,{"$f":"SUM(I606:I630)","v":0},null,null,{"$f":"SUM(L606:L630)","v":0}]
[]
[null,"(b)  CORRELATION ADJUSTMENT"]
[]
[null,null,"(i)","Reduction in Capital Charge from Correlation Matrix",null,null,null,null,{"$f":"I631-I637","v":0},null,null,{"$f":"L631-L637","v":0}]
[]
[null,"(b)  RESERVE RISK AFTER CORRELATION ADJUSTMENT",null,null,null,null,null,null,{"$f":"SQRT(MMULT(TRANSPOSE(I606:I629),MMULT('Correlation Matrix'!C44:Z67,I606:I629)))","v":0},null,null,{"$f":"SQRT(MMULT(TRANSPOSE(L606:L629),MMULT('Correlation Matrix'!C44:Z67,L606:L629)))","v":0}]
[]
[null,"(b)(i) CONCENTRATION ADJUSTMENT FACTOR (formula 1) [(iv) + (v)]"]
[]
[null,null,"(i)","Concentration Adjustment (up to 95%)"]
[null,null,"(ii)","Related Business % (up to 5%)"]
[null,null,"(iii)"," [ (i) + (ii) ]"]
[null,null,"(iv)","Maximum Adjustment"]
[]
[null,"(b)(ii) CONCENTRATION ADJUSTMENT FACTOR (formula 2) [(iii) x (iv)]"]
[]
[null,"(b)  CAPITAL CHARGE AFTER CORRELATION",null,null,null,null,null,null,{"$f":"IF(I637>=0,I637,0)","v":0},null,null,{"$f":"IF(L637>=0,L637,0)","v":0}]
[]
[null,"TYPE OF "]
[null,"CATASTROPHE RISK",null,"STATEMENT SOURCE"]
[]
[null,"(a)  Gross Probable Maximum Loss",null,"Schedule V, Line (g)",null,null,null,null,{"$f":"'Schedule V'!F18","v":0},null,null,{"$f":"+I653","v":0}]
[]
[null,"(b)  Net Probable Maximum Loss",null,"Schedule V, Line (h)",null,null,null,null,{"$f":"'Schedule V'!F20","v":0},null,null,{"$f":"+I655","v":0}]
[]
[null,"(c)  Average Annual Loss (AAL) Excluding Property Catastrophe",null,"Schedule V, Line (i)",null,null,null,null,{"$f":"'Schedule V'!F22","v":0},null,null,{"$f":"+I657","v":0}]
[]
[null,"(d)  Industry Catastrophe Loss Ratio",null,null,null,null,null,null,{"$f":"'Catastrophe Risk (Revised)'!E12","v":0.4},null,null,0.4]
[]
[null,"(e)  Property Catastrophe Premium",null,"Schedule IVD, Column C, Line (1)",null,null,null,null,{"$f":"IF('Schedule IVD (EBS)'!G9=0,'Schedule IVD (EBS)'!E9,'Schedule IVD (EBS)'!G9)","v":0},null,null,{"$f":"+I661","v":0}]
[]
[null,"(f)  Total Catastrophe Premium  [ (c) / (d) + (e) ]",null,null,null,null,null,null,{"$f":"I657/I659+IF(I661>0,I661,0)","v":0},null,null,{"$f":"IF(L659=\"\",IF(I659=0,0,L657/I659+IF(L661>0,L661,0)),IF(L659=0,0,L657/L659+IF(L661>0,L661,0)))","v":0}]
[]
[null,"(g)  Credit Risk Capital Factor",null,null,null,null,null,null,{"$f":"'Catastrophe Risk (Revised)'!E18","v":0.1},null,null,0.1]
[]
[null,"(h) Arrangements with Respect to Property Catastrophe Recoverables",null,null,null,null,null,null,{"$f":"'Schedule V'!F31","v":0},null,null,{"$f":"I667","v":0}]
[]
[null,"(i)  Credit Risk Charge  [ ((a) - (b) - (h) x .98 (g) ]",null,null,null,null,null,null,{"$f":"MAX(0,((I653-I655)-(I667*98%))*I665)","v":0},null,null,{"$f":"MAX(0,((L653-L655)-(L667*98%))*L665)","v":0}]
[]
[null,"(j)  REQUIRED CAPITAL FOR CATASTROPHE RISK  [ (b) - (f) + (i) ]",null,null,null,null,null,null,{"$f":"(IF((I655-I663)>=0,I655-I663+I669,I669))","v":0},null,null,{"$f":"(IF((L655-L663)>=0,L655-L663+L669,L669))","v":0}]
[]
[null,null,null,null,null,null,null,null,"STANDARD",null,"USER","USER"]
[null,null,null,null,null,null,"Net Amount of Risk",null,"REQUIRED",null,"CAPITAL","REQUIRED"]
[null,"Mortality","Statement Source",null,null,null,"Adjustable","Non-Adjust","CAPITAL",null,"FACTOR","CAPITAL"]
[]
[null,"Mortality","Sch VII EBS, Line 1, Column (9) and Sch VII EBS, Line 1, Column (10)",null,null,null,{"$f":"'Schedule VII (EBS)'!H10","v":0},{"$f":"'Schedule VII (EBS)'!I10","v":0},{"$f":"(IF(G677>1000000,1.985*1000000,1.985*G677)/1000)+(IF(G677<1000000,0,IF(G677>5000000,0.9*4000000,0.9*(G677-1000000)))/1000)+(IF(G677<5000000,0,IF(G677>10000000,0.72*5000000,0.72*(G677-5000000)))/1000)+(IF(G677<10000000,0,IF(G677>50000000,0.645*40000000,0.645*(G677-10000000)))/1000)+(IF(G677<50000000,0,0.565*(G677-50000000))/1000)+(IF(H677>1000000,3.97*1000000,3.97*H677)/1000)+(IF(H677<1000000,0,IF(H677>5000000,1.8*4000000,1.8*(H677-1000000)))/1000)+(IF(H677<5000000,0,IF(H677>10000000,1.44*5000000,1.44*(H677-5000000)))/1000)+(IF(H677<10000000,0,IF(H677>50000000,1.29*40000000,1.29*(H677-10000000)))/1000)+(IF(H677<50000000,0,1.13*(H677-50000000))/1000)","v":0},null,null,{"$f":"IF(K677=\"\",I677,(G677+H677)*K677)","v":0}]
[]
[null,null,null,null,null,null,null,null,"STANDARD",null,"USER","USER"]
[null,null,null,null,null,null,"Net Annual Premium",null,"REQUIRED",null,"CAPITAL","REQUIRED"]
[null,"Morbidity","Statement Source",null,null,null,"<2 years",">2 years","CAPITAL",null,"FACTOR","CAPITAL"]
[]
[null,"Critical Illness","Sch VII EBS, Line 2, Column (9) and Sch VII EBS, Line 2, Column (10)",null,null,null,{"$f":"'Schedule VII (EBS)'!H11","v":0},{"$f":"'Schedule VII (EBS)'!I11","v":0},{"$f":"(IF(G683>1000000,5.955*1000000,5.955*G683)/1000)+(IF(G683<1000000,0,IF(G683>5000000,2.7*4000000,2.7*(G683-1000000)))/1000)+(IF(G683<5000000,0,IF(G683>10000000,2.16*5000000,2.16*(G683-5000000)))/1000)+(IF(G683<10000000,0,IF(G683>50000000,1.935*40000000,1.935*(G683-10000000)))/1000)+(IF(G683<50000000,0,1.695*(G683-50000000))/1000)+(IF(H683>1000000,11.91*1000000,11.91*H683)/1000)+(IF(H683<1000000,0,IF(H683>5000000,5.4*4000000,5.4*(H683-1000000)))/1000)+(IF(H683<5000000,0,IF(H683>10000000,4.32*5000000,4.32*(H683-5000000)))/1000)+(IF(H683<10000000,0,IF(H683>50000000,3.87*40000000,3.87*(H683-10000000)))/1000)+(IF(H683<50000000,0,3.39*(H683-50000000))/1000)","v":0},null,null,{"$f":"IF(K683=\"\",I683,(G683+H683)*K683)","v":0}]
[]
[null,"Dis Inc:Claims in Pymnt (1)","Schedule VII EBS, Line 9, Column (7)",null,null,null,{"$f":"'Schedule VII (EBS)'!F38","v":0},null,{"$f":"G685*7%","v":0},null,null,{"$f":"IF(K685=\"\",I685,G685*K685)","v":0}]
[null,"Dis Inc:Claims in Pymnt (2)","Schedule VII EBS, Line 10, Column (7)",null,null,null,{"$f":"'Schedule VII (EBS)'!F39","v":0},null,{"$f":"G686*10%","v":0},null,null,{"$f":"IF(K686=\"\",I686,G686*K686)","v":0}]
[]
[null,"Other Accident & Sickness","Schedule VII EBS, Line 8, Column (11)",null,null,null,{"$f":"'Schedule VII (EBS)'!J37","v":0},null,{"$f":"G688*12%","v":0},null,null,{"$f":"IF(K688=\"\",I688,G688*K688)","v":0}]
[]
[null,"Disability Income: Active Lives"]
[null,"< = 1 Year","Sch VII EBS, Line 7(a), Column (9) and Sch VII EBS, Line 7(a), Column (10)",null,null,null,{"$f":"'Schedule VII (EBS)'!H33","v":0},{"$f":"'Schedule VII (EBS)'!I33","v":0},{"$f":"G691*9%+H691*12%","v":0},null,null,{"$f":"IF(K691=\"\",I691,(G691+H691)*K691)","v":0}]
[null,"1 - 5 years","Sch VII EBS, Line 7(b), Column (9) and Sch VII EBS, Line 7(b), Column (10)",null,null,null,{"$f":"'Schedule VII (EBS)'!H34","v":0},{"$f":"'Schedule VII (EBS)'!I34","v":0},{"$f":"G692*15%+H692*20%","v":0},null,null,{"$f":"IF(K692=\"\",I692,(G692+H692)*K692)","v":0}]
[null,"> 5 years","Sch VII EBS, Line 7(c), Column (9) and Sch VII EBS, Line 7(c), Column (10)",null,null,null,{"$f":"'Schedule VII (EBS)'!H35","v":0},{"$f":"'Schedule VII (EBS)'!I35","v":0},{"$f":"G693*22.5%+H693*30%","v":0},null,null,{"$f":"IF(K693=\"\",I693,(G693+H693)*K693)","v":0}]
[]
[null,null,"Bermuda EBS Best Estimate Provision on Schedule VII",null,null,null,null,null,"STANDARD",null,"USER","USER"]
[null,null,null,null,null,null,null,null,"REQUIRED",null,"CAPITAL","REQUIRED"]
[null,null,null,null,null,null,null,null,"CAPITAL",null,"FACTOR","CAPITAL"]
[]
[null,"Longevity Risk (immediate pay-out annuities, contingent annuities, pension pay-outs)"]
[null,"(a) 0 - 55","Schedule VII EBS, Line 3(a), Column (7)",null,null,null,{"$f":"+'Schedule VII (EBS)'!F14","v":0},{"$f":"'LT Insurance Risk'!L26","v":0.02},{"$f":"G700*H700","v":0},null,null,{"$f":"IF(K700=0,I700,K700*G700)","v":0}]
[null,"(b) 56 - 65","Schedule VII EBS, Line 3(b), Column (7)",null,null,null,{"$f":"+'Schedule VII (EBS)'!F15","v":0},{"$f":"'LT Insurance Risk'!L27","v":0.03},{"$f":"G701*H701","v":0},null,null,{"$f":"IF(K701=0,I701,K701*G701)","v":0}]
[null,"(c) 66 - 70","Schedule VII EBS, Line 3(c), Column (7)",null,null,null,{"$f":"+'Schedule VII (EBS)'!F16","v":0},{"$f":"'LT Insurance Risk'!L28","v":0.04},{"$f":"G702*H702","v":0},null,null,{"$f":"IF(K702=0,I702,K702*G702)","v":0}]
[null,"(d) 71 - 80","Schedule VII EBS, Line 3(d), Column (7)",null,null,null,{"$f":"+'Schedule VII (EBS)'!F17","v":0},{"$f":"'LT Insurance Risk'!L29","v":0.05},{"$f":"G703*H703","v":0},null,null,{"$f":"IF(K703=0,I703,K703*G703)","v":0}]
[null,"(e) 81+","Schedule VII EBS, Line 3(e), Column (7)",null,null,null,{"$f":"+'Schedule VII (EBS)'!F18","v":0},{"$f":"'LT Insurance Risk'!L30","v":0.06},{"$f":"G704*H704","v":0},null,null,{"$f":"IF(K704=0,I704,K704*G704)","v":0}]
[]
[null,"Longevity (deferred pay-out annuities, future contingent annuities, future pension pay-outs)"]
[null,"(a) 0 - 55","Schedule VII EBS, Line 4(a), Column (7)",null,null,null,{"$f":"+'Schedule VII (EBS)'!F22","v":0},{"$f":"'LT Insurance Risk'!L33","v":0.02},{"$f":"G707*H707","v":0},null,null,{"$f":"IF(K707=0,I707,K707*G707)","v":0}]
[null,"(b) 56 - 60","Schedule VII EBS, Line 4(b), Column (7)",null,null,null,{"$f":"+'Schedule VII (EBS)'!F23","v":0},{"$f":"'LT Insurance Risk'!L34","v":0.03},0,null,null,0]
[null,"(c) 61 - 65","Schedule VII EBS, Line 4(c), Column (7)",null,null,null,{"$f":"+'Schedule VII (EBS)'!F24","v":0},{"$f":"'LT Insurance Risk'!L35","v":0.04},0,null,null,0]
[null,"(d) 66 - 70","Schedule VII EBS, Line 4(d), Column (7)",null,null,null,{"$f":"+'Schedule VII (EBS)'!F25","v":0},{"$f":"'LT Insurance Risk'!L36","v":0.05},0,null,null,0]
[null,"(e) 71 - 75","Schedule VII EBS, Line 4(e), Column (7)",null,null,null,{"$f":"+'Schedule VII (EBS)'!F26","v":0},{"$f":"'LT Insurance Risk'!L37","v":0.06},0,null,null,0]
[null,"(f) 76+","Schedule VII EBS, Line 4(f), Column (7)",null,null,null,{"$f":"+'Schedule VII (EBS)'!F27","v":0},{"$f":"'LT Insurance Risk'!L38","v":7.0000000000000007E-2},0,null,null,0]
[]
[null," - Part (A) Removes any Longevity Swap Capital Requirement that has been included in the Standard Longevity Capital Requirement",null,null,null,null,null,null,null,null,"ACTUAL"]
[null,null,"BSCR ADJUSTED RESERVE for Regular Longevity Risk Business only (excluding Longevity Swaps)",null,null,null,null,"CAPITAL","CAPITAL",null,"CAPITAL"]
[null,"Longevity Capital Adj",null,null,null,null,null,"FACTOR","FROM ABOVE",null,"REQUIRED","ADJUSTMENT"]
[]
[null,"Longevity Risk (immediate pay-out annuities, contingent annuities, pension pay-outs)"]
[null,"(a) 0 - 55",null,null,null,null,null,{"$f":"IF(K700=\"\",'LT Insurance Risk'!L26,K700)","v":0.02},{"$f":"L700","v":0},null,{"$f":"MAX(0,IF(G719=\"\",0,H719*G719))","v":0},{"$f":"IF(G719=\"\",0,K719-I719)","v":0}]
[null,"(b) 56 - 65",null,null,null,null,null,{"$f":"IF(K701=\"\",'LT Insurance Risk'!L27,K701)","v":0.03},{"$f":"L701","v":0},null,{"$f":"MAX(0,IF(G720=\"\",0,H720*G720))","v":0},{"$f":"IF(G720=\"\",0,K720-I720)","v":0}]
[null,"(c) 66 - 70",null,null,null,null,null,{"$f":"IF(K702=\"\",'LT Insurance Risk'!L28,K702)","v":0.04},0,null,0,0]
[null,"(d) 71 - 80",null,null,null,null,null,{"$f":"IF(K703=\"\",'LT Insurance Risk'!L29,K703)","v":0.05},0,null,0,0]
[null,"(e) 81+",null,null,null,null,null,{"$f":"IF(K704=\"\",'LT Insurance Risk'!L30,K704)","v":0.06},0,null,0,0]
[null,null,null,null,null,null,null,{"$f":"IF(K705=\"\",'LT Insurance Risk'!L31,K705)","v":0}]
[null,"Longevity (deferred pay-out annuities, future contingent annuities, future pension pay-outs)"]
[null,"(a) 0 - 55",null,null,null,null,null,{"$f":"IF(K707=\"\",'LT Insurance Risk'!L33,K707)","v":0.02},0,null,0,0]
[null,"(b) 56 - 60",null,null,null,null,null,{"$f":"IF(K708=\"\",'LT Insurance Risk'!L34,K708)","v":0.03},0,null,0,0]
[null,"(c) 61 - 65",null,null,null,null,null,{"$f":"IF(K709=\"\",'LT Insurance Risk'!L35,K709)","v":0.04},0,null,0,0]
[null,"(d) 66 - 70",null,null,null,null,null,{"$f":"IF(K710=\"\",'LT Insurance Risk'!L36,K710)","v":0.05},0,null,0,0]
[null,"(e) 71 - 75",null,null,null,null,null,{"$f":"IF(K711=\"\",'LT Insurance Risk'!L37,K711)","v":0.06},0,null,0,0]
[null,"(f) 76+",null,null,null,null,null,{"$f":"IF(K712=\"\",'LT Insurance Risk'!L38,K712)","v":7.0000000000000007E-2},{"$f":"L712","v":0},null,0,0]
[]
[null," - Part (B) Determines Appropriate Capital Requirment to include for Longevity Swaps"]
[null,null,"Bermuda EBS Best Estimate Provision for the Floating Leg of Longevity Swap",null,null,null,null,null,null,null,"CAPITAL"]
[null,"Longevity Capital Adj",null,null,null,null,null,null,null,null,"FACTOR","ADJUSTMENT"]
[]
[null,"Longevity Risk (immediate pay-out annuities, contingent annuities, pension pay-outs)"]
[null,"(a) 0 - 55",null,null,null,null,null,null,null,null,{"$f":"'LT Insurance Risk'!L26","v":0.02},{"$f":"IF(G738=\"\",0,K738*G738)","v":0}]
[null,"(b) 56 - 65",null,null,null,null,null,null,null,null,{"$f":"'LT Insurance Risk'!L27","v":0.03},{"$f":"IF(G739=\"\",0,K739*G739)","v":0}]
[null,"(c) 66 - 70",null,null,null,null,null,null,null,null,{"$f":"'LT Insurance Risk'!L28","v":0.04},{"$f":"IF(G740=\"\",0,K740*G740)","v":0}]
[null,"(d) 71 - 80",null,null,null,null,null,null,null,null,{"$f":"'LT Insurance Risk'!L29","v":0.05},{"$f":"IF(G741=\"\",0,K741*G741)","v":0}]
[null,"(e) 81+",null,null,null,null,null,null,null,null,{"$f":"'LT Insurance Risk'!L30","v":0.06},{"$f":"IF(G742=\"\",0,K742*G742)","v":0}]
[]
[null,"Longevity (deferred pay-out annuities, future contingent annuities, future pension pay-outs)"]
[null,"(a) 0 - 55",null,null,null,null,null,null,null,null,{"$f":"'LT Insurance Risk'!L33","v":0.02},{"$f":"IF(G745=\"\",0,K745*G745)","v":0}]
[null,"(b) 56 - 60",null,null,null,null,null,null,null,null,{"$f":"'LT Insurance Risk'!L34","v":0.03},0]
[null,"(c) 61 - 65",null,null,null,null,null,null,null,null,{"$f":"'LT Insurance Risk'!L35","v":0.04},0]
[null,"(d) 66 - 70",null,null,null,null,null,null,null,null,{"$f":"'LT Insurance Risk'!L36","v":0.05},0]
[null,"(e) 71 - 75",null,null,null,null,null,null,null,null,{"$f":"'LT Insurance Risk'!L37","v":0.06},0]
[null,"(f) 76+",null,null,null,null,null,null,null,null,{"$f":"'LT Insurance Risk'!L38","v":7.0000000000000007E-2},0]
[]
[null,null,null,null,null,null,"Net Annual Premium",null,"STANDARD",null,"USER","USER"]
[null,null,null,null,null,null,null,null,"REQUIRED",null,"CAPITAL","REQUIRED"]
[null,null,"Statement Source",null,null,null,null,null,"CAPITAL",null,"FACTOR","CAPITAL"]
[]
[null,"Stop Loss","Schedule VII EBS, Line 14, Column (11)",null,null,null,{"$f":"'Schedule VII (EBS)'!J43","v":0},{"$f":"+'LT Insurance Risk'!L55","v":0.5},{"$f":"G756*H756","v":0},null,null,{"$f":"IF(K756=\"\",I756,G756*K756)","v":0}]
[]
[null,"Rider","Schedule VII EBS, Line 15, Column (11)",null,null,null,{"$f":"'Schedule VII (EBS)'!J44","v":0},{"$f":"+'LT Insurance Risk'!L56","v":0.25},{"$f":"G758*H758","v":0},null,null,{"$f":"IF(K758=\"\",I758,G758*K758)","v":0}]
[]
[]
[null,null,null,null,null,null,"NET RESERVES","STANDARD","STANDARD",null,"USER","USER"]
[null,null,null,null,null,null,null,"CAPITAL","REQUIRED",null,"CAPITAL","REQUIRED"]
[null,"LINE OF LONG-TERM BUSINESS","STATEMENT SOURCE",null,null,null,null,"FACTOR","CAPITAL",null,"FACTOR","CAPITAL"]
[]
[null,"Mortality (term assurance)","Schedule VII EBS, Line 1, Column (7)",null,null,null,{"$f":"'Schedule VII (EBS)'!F10","v":0},{"$f":"+'LT Other Insurance Risk'!G9","v":0.02},{"$f":"IF(G765<0,0,G765*H765)","v":0},null,null,{"$f":"IF(K765=\"\",H765*G765,G765*K765)","v":0}]
[null,"Critical Illness","Schedule VII EBS, Line 2, Column (7)",null,null,null,{"$f":"'Schedule VII (EBS)'!F11","v":0},{"$f":"+'LT Other Insurance Risk'!G10","v":0.02},{"$f":"IF(G766<0,0,G766*H766)","v":0},null,null,0]
[null,"Longevity (1)","Schedule VII EBS, Line 3(f), Column (7)",null,null,null,{"$f":"'Schedule VII (EBS)'!F19","v":0},{"$f":"+'LT Other Insurance Risk'!G11","v":5.0000000000000001E-3},0,null,null,0]
[null,"Longevity (2)","Schedule VII EBS, Line 4(g), Column (7)",null,null,null,{"$f":"'Schedule VII (EBS)'!F28","v":0},{"$f":"+'LT Other Insurance Risk'!G12","v":5.0000000000000001E-3},{"$f":"IF(G768<0,0,G768*H768)","v":0},null,null,{"$f":"IF(K768=\"\",H768*G768,G768*K768)","v":0}]
[null,"Deferred annuities ","Schedule VII EBS, Line 5, Column (7)",null,null,null,{"$f":"'Schedule VII (EBS)'!F29","v":0},{"$f":"+'LT Other Insurance Risk'!G13","v":5.0000000000000001E-3},0,null,null,0]
[null,"Deferred accumulation annuity","Schedule VII EBS, Line 6, Column (7)",null,null,null,{"$f":"'Schedule VII (EBS)'!F30","v":0},{"$f":"+'LT Other Insurance Risk'!G14","v":5.0000000000000001E-3},{"$f":"IF(G770<0,0,G770*H770)","v":0},null,null,{"$f":"IF(K770=\"\",H770*G770,G770*K770)","v":0}]
[null,"Disability Income: active lives","Schedule VII EBS, Line 7, Column (7)",null,null,null,{"$f":"'Schedule VII (EBS)'!F36","v":0},{"$f":"+'LT Other Insurance Risk'!G15","v":0.02},{"$f":"IF(G771<0,0,G771*H771)","v":0},null,null,{"$f":"IF(K771=\"\",H771*G771,G771*K771)","v":0}]
[null,"Disability: accident & sickness","Schedule VII EBS, Line 8, Column (7)",null,null,null,{"$f":"'Schedule VII (EBS)'!F37","v":0},{"$f":"+'LT Other Insurance Risk'!G16","v":0.02},0,null,null,0]
[null,"Disability claims in pay (1)","Schedule VII EBS, Line 9, Column (7)",null,null,null,{"$f":"'Schedule VII (EBS)'!F38","v":0},{"$f":"+'LT Other Insurance Risk'!G17","v":5.0000000000000001E-3},0,null,null,0]
[null,"Disability claims in pay (2)","Schedule VII EBS, Line 10, Column (7)",null,null,null,{"$f":"'Schedule VII (EBS)'!F39","v":0},{"$f":"+'LT Other Insurance Risk'!G18","v":5.0000000000000001E-3},0,null,null,0]
[null,"Group Life","Schedule VII EBS, Line 11, Column (7)",null,null,null,{"$f":"'Schedule VII (EBS)'!F40","v":0},{"$f":"+'LT Other Insurance Risk'!G19","v":5.0000000000000001E-3},0,null,null,0]
[null,"Group Disability","Schedule VII EBS, Line 12, Column (7)",null,null,null,{"$f":"'Schedule VII (EBS)'!F41","v":0},{"$f":"+'LT Other Insurance Risk'!G20","v":5.0000000000000001E-3},0,null,null,0]
[null,"Group Health","Schedule VII EBS, Line 13, Column (7)",null,null,null,{"$f":"'Schedule VII (EBS)'!F42","v":0},{"$f":"+'LT Other Insurance Risk'!G21","v":5.0000000000000001E-3},0,null,null,0]
[null,"Stop Loss","Schedule VII EBS, Line 14, Column (7)",null,null,null,{"$f":"'Schedule VII (EBS)'!F43","v":0},{"$f":"+'LT Other Insurance Risk'!G22","v":0.02},0,null,null,{"$f":"IF(K778=\"\",H778*G778,G778*K778)","v":0}]
[null,"Rider","Schedule VII EBS, Line 15, Column (7)",null,null,null,{"$f":"'Schedule VII (EBS)'!F44","v":0},{"$f":"+'LT Other Insurance Risk'!G23","v":0.02},0,null,null,0]
[]
[null,"REQUIRED CAPITAL FOR OTHER INSURANCE RISK",null,null,null,null,{"$f":"IF(SUM(G765:G779)>=0,(SUM(G765:G779)),0)","v":0},null,{"$f":"IF(SUM(I765:I779)>=0,(SUM(I765:I779)),0)","v":0},null,null,{"$f":"IF(SUM(L765:L779)>=0,(SUM(L765:L779)),0)","v":0}]
[]
[null,null,null,null,null,null,null,"Volatility >15.0%","STANDARD REQUIRED CAPITAL",null,"USER CAPITAL FACTOR","USER REQUIRED CAPITAL"]
[null,"Variable Annuity Guarantee Risk","Volatility \n(0%-10.0%]",null,null,null,"Volatility 10.0% - 15.0%"]
[]
[null,"GMDB - Guar. Val In Money",{"$f":"'Schedule VIII (EBS)'!H13","v":0},null,null,null,{"$f":"'Schedule VIII (EBS)'!J13","v":0},{"$f":"'Schedule VIII (EBS)'!L13","v":0},{"$f":"(C786*0.25%)+(G786*0.5%)+(H786*0.75%)","v":0},null,null,{"$f":"IF(K786=\"\",I786,(C786+G786+H786)*K786)","v":0}]
[null,"GMDB - Net Value at Risk",{"$f":"'Schedule VIII (EBS)'!N13","v":0},null,null,null,{"$f":"+'Schedule VIII (EBS)'!P13","v":0},{"$f":"+'Schedule VIII (EBS)'!R13","v":0},{"$f":"(C787*4%)+(G787*8.5%)+(H787*13%)","v":0},null,null,{"$f":"IF(K787=\"\",I787,(C787+G787+H787)*K787)","v":0}]
[null,"GMDB - Guar. Val Out Money",{"$f":"'Schedule VIII (EBS)'!H31","v":0},null,null,null,{"$f":"'Schedule VIII (EBS)'!J31","v":0},{"$f":"'Schedule VIII (EBS)'!L31","v":0},{"$f":"(C788*0.25%)+(G788*0.5%)+(H788*0.75%)","v":0},null,null,{"$f":"IF(K788=\"\",I788,(C788+G788+H788)*K788)","v":0}]
[null,"GMDB - Total",null,null,null,null,null,null,{"$f":"I788+(MAX(I786,I787))","v":0},null,null,{"$f":"L788+(MAX(L786,L787))","v":0}]
[]
[null,"GMDB (2) - Guar. Val In Money",{"$f":"'Schedule VIII (EBS)'!H14","v":0},null,null,null,{"$f":"'Schedule VIII (EBS)'!J14","v":0},{"$f":"'Schedule VIII (EBS)'!L14","v":0},{"$f":"(C791*0.75%)+(G791*1%)+(H791*1.25%)","v":0},null,null,{"$f":"IF(K791=\"\",I791,(C791+G791+H791)*K791)","v":0}]
[null,"GMDB (2) - Net Value at Risk",{"$f":"'Schedule VIII (EBS)'!N14","v":0},null,null,null,{"$f":"+'Schedule VIII (EBS)'!P14","v":0},{"$f":"+'Schedule VIII (EBS)'!R14","v":0},{"$f":"(C792*12%)+(G792*16.5%)+(H792*21%)","v":0},null,null,{"$f":"IF(K792=\"\",I792,(C792+G792+H792)*K792)","v":0}]
[null,"GMDB (2) - Guar. Val Out Money",{"$f":"'Schedule VIII (EBS)'!H32","v":0},null,null,null,{"$f":"'Schedule VIII (EBS)'!J32","v":0},{"$f":"'Schedule VIII (EBS)'!L32","v":0},{"$f":"(C793*0.75%)+(G793*1%)+(H793*1.25%)","v":0},null,null,{"$f":"IF(K793=\"\",I793,(C793+G793+H793)*K793)","v":0}]
[null,"GMDB (2) - Total",null,null,null,null,null,null,{"$f":"I793+(MAX(I791,I792))","v":0},null,null,{"$f":"L793+(MAX(L791,L792))","v":0}]
[]
[null,"GMIB - Guar. Val In Money",{"$f":"'Schedule VIII (EBS)'!H15","v":0},null,null,null,{"$f":"'Schedule VIII (EBS)'!J15","v":0},{"$f":"'Schedule VIII (EBS)'!L15","v":0},{"$f":"(C796*5%)+(G796*6.5%)+(H796*8%)","v":0},null,null,{"$f":"IF(K796=\"\",I796,(C796+G796+H796)*K796)","v":0}]
[null,"GMIB - Net Value at Risk",{"$f":"'Schedule VIII (EBS)'!N15","v":0},null,null,null,{"$f":"+'Schedule VIII (EBS)'!P15","v":0},{"$f":"+'Schedule VIII (EBS)'!R15","v":0},{"$f":"(C797*100%)+(G797*130%)+(H797*160%)","v":0},null,null,{"$f":"IF(K797=\"\",I797,(C797+G797+H797)*K797)","v":0}]
[null,"GMIB - Guar. Val Out Money",{"$f":"'Schedule VIII (EBS)'!H33","v":0},null,null,null,{"$f":"'Schedule VIII (EBS)'!J33","v":0},{"$f":"'Schedule VIII (EBS)'!L33","v":0},{"$f":"(C798*5%)+(G798*6.5%)+(H798*8%)","v":0},null,null,{"$f":"IF(K798=\"\",I798,(C798+G798+H798)*K798)","v":0}]
[null,"GMIB - Total",null,null,null,null,null,null,{"$f":"I798+(MAX(I796,I797))","v":0},null,null,{"$f":"L798+(MAX(L796,L797))","v":0}]
[]
[null,"GMWB - Guar. Val In Money",{"$f":"'Schedule VIII (EBS)'!H16","v":0},null,null,null,{"$f":"'Schedule VIII (EBS)'!J16","v":0},{"$f":"'Schedule VIII (EBS)'!L16","v":0},{"$f":"(C801*3.25%)+(G801*4.25%)+(H801*5%)","v":0},null,null,{"$f":"IF(K801=\"\",I801,(C801+G801+H801)*K801)","v":0}]
[null,"GMWB - Net Value at Risk",{"$f":"'Schedule VIII (EBS)'!N16","v":0},null,null,null,{"$f":"+'Schedule VIII (EBS)'!P16","v":0},{"$f":"+'Schedule VIII (EBS)'!R16","v":0},{"$f":"(C802*60%)+(G802*75%)+(H802*90%)","v":0},null,null,{"$f":"IF(K802=\"\",I802,(C802+G802+H802)*K802)","v":0}]
[null,"GMWB - Guar. Val Out Money",{"$f":"'Schedule VIII (EBS)'!H34","v":0},null,null,null,{"$f":"'Schedule VIII (EBS)'!J34","v":0},{"$f":"'Schedule VIII (EBS)'!L34","v":0},{"$f":"(C803*3.25%)+(G803*4.25%)+(H803*5%)","v":0},null,null,{"$f":"IF(K803=\"\",I803,(C803+G803+H803)*K803)","v":0}]
[null,"GMWB - Total",null,null,null,null,null,null,{"$f":"I803+(MAX(I801,I802))","v":0},null,null,{"$f":"L803+(MAX(L801,L802))","v":0}]
[]
[null,"GEEB - Guar. Val In Money",{"$f":"'Schedule VIII (EBS)'!H17","v":0},null,null,null,{"$f":"'Schedule VIII (EBS)'!J17","v":0},{"$f":"'Schedule VIII (EBS)'!L17","v":0},{"$f":"(C806*0%)+(G806*0.5%)+(H806*1%)","v":0},null,null,{"$f":"IF(K806=\"\",I806,(C806+G806+H806)*K806)","v":0}]
[null,"GEEB - Net Value at Risk",{"$f":"'Schedule VIII (EBS)'!N17","v":0},null,null,null,{"$f":"+'Schedule VIII (EBS)'!P17","v":0},{"$f":"+'Schedule VIII (EBS)'!R17","v":0},{"$f":"(C807*1%)+(G807*9%)+(H807*17%)","v":0},null,null,{"$f":"IF(K807=\"\",I807,(C807+G807+H807)*K807)","v":0}]
[null,"GEEB - Guar. Val Out Money",{"$f":"'Schedule VIII (EBS)'!H35","v":0},null,null,null,{"$f":"'Schedule VIII (EBS)'!J35","v":0},{"$f":"'Schedule VIII (EBS)'!L35","v":0},{"$f":"(C808*0%)+(G808*0.5%)+(H808*1%)","v":0},null,null,{"$f":"IF(K808=\"\",I808,(C808+G808+H808)*K808)","v":0}]
[null,"GEEB - Total",null,null,null,null,null,null,{"$f":"I808+(MAX(I806,I807))","v":0},null,null,{"$f":"L808+(MAX(L806,L807))","v":0}]
[]
[null,"GMAB 0-1 Guar. Val In Money",{"$f":"'Schedule VIII (EBS)'!H19","v":0},null,null,null,{"$f":"'Schedule VIII (EBS)'!J19","v":0},{"$f":"'Schedule VIII (EBS)'!L19","v":0},{"$f":"(C811*3.2%)+(G811*5%)+(H811*9%)","v":0},null,null,{"$f":"IF(K811=\"\",I811,(C811+G811+H811)*K811)","v":0}]
[null,"GMWB 0-1 Net Value at Risk",{"$f":"'Schedule VIII (EBS)'!N19","v":0},null,null,null,{"$f":"+'Schedule VIII (EBS)'!P19","v":0},{"$f":"+'Schedule VIII (EBS)'!R19","v":0},{"$f":"(C812*90%)+(G812*130%)+(H812*250%)","v":0},null,null,{"$f":"IF(K812=\"\",I812,(C812+G812+H812)*K812)","v":0}]
[null,"GMWB 0-1 Guar. Val Out Money",{"$f":"'Schedule VIII (EBS)'!H37","v":0},null,null,null,{"$f":"'Schedule VIII (EBS)'!J37","v":0},{"$f":"'Schedule VIII (EBS)'!L37","v":0},{"$f":"(C813*3.2%)+(G813*5%)+(H813*9%)","v":0},null,null,{"$f":"IF(K813=\"\",I813,(C813+G813+H813)*K813)","v":0}]
[null,"GMWB - Total for 0-1",null,null,null,null,null,null,{"$f":"I813+(MAX(I811,I812))","v":0},null,null,{"$f":"L813+(MAX(L811,L812))","v":0}]
[]
[null,"GMAB 1-2 Guar. Val In Money",{"$f":"'Schedule VIII (EBS)'!H20","v":0},null,null,null,{"$f":"'Schedule VIII (EBS)'!J20","v":0},{"$f":"'Schedule VIII (EBS)'!L20","v":0},{"$f":"(C816*3%)+(G816*5%)+(H816*8.9%)","v":0},null,null,{"$f":"IF(K816=\"\",I816,(C816+G816+H816)*K816)","v":0}]
[null,"GMWB 1-2 Net Value at Risk",{"$f":"'Schedule VIII (EBS)'!N20","v":0},null,null,null,{"$f":"+'Schedule VIII (EBS)'!P20","v":0},{"$f":"+'Schedule VIII (EBS)'!R20","v":0},{"$f":"(C817*80%)+(G817*115%)+(H817*200%)","v":0},null,null,{"$f":"IF(K817=\"\",I817,(C817+G817+H817)*K817)","v":0}]
[null,"GMWB 1-2 Guar. Val Out Money",{"$f":"'Schedule VIII (EBS)'!H38","v":0},null,null,null,{"$f":"'Schedule VIII (EBS)'!J38","v":0},{"$f":"'Schedule VIII (EBS)'!L38","v":0},{"$f":"(C818*3%)+(G818*5%)+(H818*8.9%)","v":0},null,null,{"$f":"IF(K818=\"\",I818,(C818+G818+H818)*K818)","v":0}]
[null,"GMWB - Total for 1-2",null,null,null,null,null,null,{"$f":"I818+(MAX(I816,I817))","v":0},null,null,{"$f":"L818+(MAX(L816,L817))","v":0}]
[]
[null,"GMAB 2-3 Guar. Val In Money",{"$f":"'Schedule VIII (EBS)'!H21","v":0},null,null,null,{"$f":"'Schedule VIII (EBS)'!J21","v":0},{"$f":"'Schedule VIII (EBS)'!L21","v":0},{"$f":"(C821*3%)+(G821*5%)+(H821*8.9%)","v":0},null,null,{"$f":"IF(K821=\"\",I821,(C821+G821+H821)*K821)","v":0}]
[null,"GMWB 2-3 Net Value at Risk",{"$f":"'Schedule VIII (EBS)'!N21","v":0},null,null,null,{"$f":"+'Schedule VIII (EBS)'!P21","v":0},{"$f":"+'Schedule VIII (EBS)'!R21","v":0},{"$f":"(C822*70%)+(G822*105%)+(H822*160%)","v":0},null,null,{"$f":"IF(K822=\"\",I822,(C822+G822+H822)*K822)","v":0}]
[null,"GMWB 2-3 Guar. Val Out Money",{"$f":"'Schedule VIII (EBS)'!H39","v":0},null,null,null,{"$f":"'Schedule VIII (EBS)'!J39","v":0},{"$f":"'Schedule VIII (EBS)'!L39","v":0},{"$f":"(C823*3%)+(G823*5%)+(H823*8.9%)","v":0},null,null,{"$f":"IF(K823=\"\",I823,(C823+G823+H823)*K823)","v":0}]
[null,"GMWB - Total for 2-3",null,null,null,null,null,null,{"$f":"I823+(MAX(I821,I822))","v":0},null,null,{"$f":"L823+(MAX(L821,L822))","v":0}]
[]
[null,"GMAB 3-4 Guar. Val In Money",{"$f":"'Schedule VIII (EBS)'!H22","v":0},null,null,null,{"$f":"'Schedule VIII (EBS)'!J22","v":0},{"$f":"'Schedule VIII (EBS)'!L22","v":0},{"$f":"(C826*2.8%)+(G826*5%)+(H826*8.8%)","v":0},null,null,{"$f":"IF(K826=\"\",I826,(C826+G826+H826)*K826)","v":0}]
[null,"GMWB 3-4 Net Value at Risk",{"$f":"'Schedule VIII (EBS)'!N22","v":0},null,null,null,{"$f":"+'Schedule VIII (EBS)'!P22","v":0},{"$f":"+'Schedule VIII (EBS)'!R22","v":0},{"$f":"(C827*60%)+(G827*95%)+(H827*135%)","v":0},null,null,{"$f":"IF(K827=\"\",I827,(C827+G827+H827)*K827)","v":0}]
[null,"GMWB 3-4 Guar. Val Out Money",{"$f":"'Schedule VIII (EBS)'!H40","v":0},null,null,null,{"$f":"'Schedule VIII (EBS)'!J40","v":0},{"$f":"'Schedule VIII (EBS)'!L40","v":0},{"$f":"(C828*2.8%)+(G828*5%)+(H828*8.8%)","v":0},null,null,{"$f":"IF(K828=\"\",I828,(C828+G828+H828)*K828)","v":0}]
[null,"GMWB - Total for 3-4",null,null,null,null,null,null,{"$f":"I828+(MAX(I826,I827))","v":0},null,null,{"$f":"L828+(MAX(L826,L827))","v":0}]
[]
[null,"GMAB 4-5 Guar. Val In Money",{"$f":"'Schedule VIII (EBS)'!H23","v":0},null,null,null,{"$f":"'Schedule VIII (EBS)'!J23","v":0},{"$f":"'Schedule VIII (EBS)'!L23","v":0},{"$f":"(C831*2.4%)+(G831*4.3%)+(H831*8%)","v":0},null,null,{"$f":"IF(K831=\"\",I831,(C831+G831+H831)*K831)","v":0}]
[null,"GMWB 4-5 Net Value at Risk",{"$f":"'Schedule VIII (EBS)'!N23","v":0},null,null,null,{"$f":"+'Schedule VIII (EBS)'!P23","v":0},{"$f":"+'Schedule VIII (EBS)'!R23","v":0},{"$f":"(C832*55%)+(G832*85%)+(H832*115%)","v":0},null,null,{"$f":"IF(K832=\"\",I832,(C832+G832+H832)*K832)","v":0}]
[null,"GMWB 4-5 Guar. Val Out Money",{"$f":"'Schedule VIII (EBS)'!H41","v":0},null,null,null,{"$f":"'Schedule VIII (EBS)'!J41","v":0},{"$f":"'Schedule VIII (EBS)'!L41","v":0},{"$f":"(C833*2.4%)+(G833*4.3%)+(H833*8%)","v":0},null,null,{"$f":"IF(K833=\"\",I833,(C833+G833+H833)*K833)","v":0}]
[null,"GMWB - Total for 4-5",null,null,null,null,null,null,{"$f":"I833+(MAX(I831,I832))","v":0},null,null,{"$f":"L833+(MAX(L831,L832))","v":0}]
[]
[null,"GMAB 5-6 Guar. Val In Money",{"$f":"'Schedule VIII (EBS)'!H24","v":0},null,null,null,{"$f":"'Schedule VIII (EBS)'!J24","v":0},{"$f":"'Schedule VIII (EBS)'!L24","v":0},{"$f":"(C836*2%)+(G836*3.5%)+(H836*6.8%)","v":0},null,null,{"$f":"IF(K836=\"\",I836,(C836+G836+H836)*K836)","v":0}]
[null,"GMWB 5-6 Net Value at Risk",{"$f":"'Schedule VIII (EBS)'!N24","v":0},null,null,null,{"$f":"+'Schedule VIII (EBS)'!P24","v":0},{"$f":"+'Schedule VIII (EBS)'!R24","v":0},{"$f":"(C837*50%)+(G837*75%)+(H837*100%)","v":0},null,null,{"$f":"IF(K837=\"\",I837,(C837+G837+H837)*K837)","v":0}]
[null,"GMWB 5-6 Guar. Val Out Money",{"$f":"'Schedule VIII (EBS)'!H42","v":0},null,null,null,{"$f":"'Schedule VIII (EBS)'!J42","v":0},{"$f":"'Schedule VIII (EBS)'!L42","v":0},{"$f":"(C838*2%)+(G838*3.5%)+(H838*6.8%)","v":0},null,null,{"$f":"IF(K838=\"\",I838,(C838+G838+H838)*K838)","v":0}]
[null,"GMWB - Total for 5-6",null,null,null,null,null,null,{"$f":"I838+(MAX(I836,I837))","v":0},null,null,{"$f":"L838+(MAX(L836,L837))","v":0}]
[]
[null,"GMAB 6-7 Guar. Val In Money",{"$f":"'Schedule VIII (EBS)'!H25","v":0},null,null,null,{"$f":"'Schedule VIII (EBS)'!J25","v":0},{"$f":"'Schedule VIII (EBS)'!L25","v":0},{"$f":"(C841*1.7%)+(G841*2.8%)+(H841*5.9%)","v":0},null,null,{"$f":"IF(K841=\"\",I841,(C841+G841+H841)*K841)","v":0}]
[null,"GMWB 6-7 Net Value at Risk",{"$f":"'Schedule VIII (EBS)'!N25","v":0},null,null,null,{"$f":"+'Schedule VIII (EBS)'!P25","v":0},{"$f":"+'Schedule VIII (EBS)'!R25","v":0},{"$f":"(C842*45%)+(G842*65%)+(H842*90%)","v":0},null,null,{"$f":"IF(K842=\"\",I842,(C842+G842+H842)*K842)","v":0}]
[null,"GMWB 6-7 Guar. Val Out Money",{"$f":"'Schedule VIII (EBS)'!H43","v":0},null,null,null,{"$f":"'Schedule VIII (EBS)'!J43","v":0},{"$f":"'Schedule VIII (EBS)'!L43","v":0},{"$f":"(C843*1.7%)+(G843*2.8%)+(H843*5.9%)","v":0},null,null,{"$f":"IF(K843=\"\",I843,(C843+G843+H843)*K843)","v":0}]
[null,"GMWB - Total for 6-7",null,null,null,null,null,null,{"$f":"I843+(MAX(I841,I842))","v":0},null,null,{"$f":"L843+(MAX(L841,L842))","v":0}]
[]
[null,"GMAB 7-8 Guar. Val In Money",{"$f":"'Schedule VIII (EBS)'!H26","v":0},null,null,null,{"$f":"'Schedule VIII (EBS)'!J26","v":0},{"$f":"'Schedule VIII (EBS)'!L26","v":0},{"$f":"(C846*1.4%)+(G846*2.1%)+(H846*4.9%)","v":0},null,null,{"$f":"IF(K846=\"\",I846,(C846+G846+H846)*K846)","v":0}]
[null,"GMWB 7-8 Net Value at Risk",{"$f":"'Schedule VIII (EBS)'!N26","v":0},null,null,null,{"$f":"+'Schedule VIII (EBS)'!P26","v":0},{"$f":"+'Schedule VIII (EBS)'!R26","v":0},{"$f":"(C847*40%)+(G847*55%)+(H847*80%)","v":0},null,null,{"$f":"IF(K847=\"\",I847,(C847+G847+H847)*K847)","v":0}]
[null,"GMWB 7-8 Guar. Val Out Money",{"$f":"'Schedule VIII (EBS)'!H44","v":0},null,null,null,{"$f":"'Schedule VIII (EBS)'!J44","v":0},{"$f":"'Schedule VIII (EBS)'!L44","v":0},{"$f":"(C848*1.4%)+(G848*2.1%)+(H848*4.9%)","v":0},null,null,{"$f":"IF(K848=\"\",I848,(C848+G848+H848)*K848)","v":0}]
[null,"GMWB - Total for 7-8",null,null,null,null,null,null,{"$f":"I848+(MAX(I846,I847))","v":0},null,null,{"$f":"L848+(MAX(L846,L847))","v":0}]
[]
[null,"GMAB 8-9 Guar. Val In Money",{"$f":"'Schedule VIII (EBS)'!H27","v":0},null,null,null,{"$f":"'Schedule VIII (EBS)'!J27","v":0},{"$f":"'Schedule VIII (EBS)'!L27","v":0},{"$f":"(C851*1.1%)+(G851*1.7%)+(H851*4.3%)","v":0},null,null,{"$f":"IF(K851=\"\",I851,(C851+G851+H851)*K851)","v":0}]
[null,"GMWB 8-9 Net Value at Risk",{"$f":"'Schedule VIII (EBS)'!N27","v":0},null,null,null,{"$f":"+'Schedule VIII (EBS)'!P27","v":0},{"$f":"+'Schedule VIII (EBS)'!R27","v":0},{"$f":"(C852*35%)+(G852*50%)+(H852*70%)","v":0},null,null,{"$f":"IF(K852=\"\",I852,(C852+G852+H852)*K852)","v":0}]
[null,"GMWB 8-9 Guar. Val Out Money",{"$f":"'Schedule VIII (EBS)'!H45","v":0},null,null,null,{"$f":"'Schedule VIII (EBS)'!J45","v":0},{"$f":"'Schedule VIII (EBS)'!L45","v":0},{"$f":"(C853*1.1%)+(G853*1.7%)+(H853*4.3%)","v":0},null,null,{"$f":"IF(K853=\"\",I853,(C853+G853+H853)*K853)","v":0}]
[null,"GMWB - Total for 8-9",null,null,null,null,null,null,{"$f":"I853+(MAX(I851,I852))","v":0},null,null,{"$f":"L853+(MAX(L851,L852))","v":0}]
[]
[null,"GMAB >9 Guar. Val In Money",{"$f":"'Schedule VIII (EBS)'!H28","v":0},null,null,null,{"$f":"'Schedule VIII (EBS)'!J28","v":0},{"$f":"'Schedule VIII (EBS)'!L28","v":0},{"$f":"(C856*1%)+(G856*1.4%)+(H856*3.9%)","v":0},null,null,{"$f":"IF(K856=\"\",I856,(C856+G856+H856)*K856)","v":0}]
[null,"GMWB >9 Net Value at Risk",{"$f":"'Schedule VIII (EBS)'!N28","v":0},null,null,null,{"$f":"+'Schedule VIII (EBS)'!P28","v":0},{"$f":"+'Schedule VIII (EBS)'!R28","v":0},{"$f":"(C857*30%)+(G857*45%)+(H857*60%)","v":0},null,null,{"$f":"IF(K857=\"\",I857,(C857+G857+H857)*K857)","v":0}]
[null,"GMWB >9 Guar. Val Out Money",{"$f":"'Schedule VIII (EBS)'!H46","v":0},null,null,null,{"$f":"'Schedule VIII (EBS)'!J46","v":0},{"$f":"'Schedule VIII (EBS)'!L46","v":0},{"$f":"(C858*1%)+(G858*1.4%)+(H858*3.9%)","v":0},null,null,{"$f":"IF(K858=\"\",I858,(C858+G858+H858)*K858)","v":0}]
[null,"GMWB - Total for >9",null,null,null,null,null,null,{"$f":"I858+(MAX(I856,I857))","v":0},null,null,{"$f":"L858+(MAX(L856,L857))","v":0}]
[]
[null,"Percentage of Guaranteed Minimum Death Benefit with Multiple Guarantees",null,null,null,null,null,{"$f":"+'Schedule VIII (EBS)'!L50","v":0},{"$f":"IF(H861=0,0,(I789+I794)*(-H861))","v":0},null,null,{"$f":"IF(H861=0,0,(L789+L794)*(-H861))","v":0}]
[null,"Total BSCR-Adjusted Reserves for Variable Annuities",null,null,null,null,null,null,{"$f":"-'Schedule VII (EBS)'!F47","v":0},null,null,{"$f":"-'Schedule VII (EBS)'!F47","v":0}]
[]
[null,"REQUIRED CAPITAL FOR VARIABLE ANNUITY GUARANTEE RISK ",null,null,null,null,null,null,{"$f":"MAX(0,SUM(I861:I862,I789,I794,I799,I804,I809,I814,I819,I824,I829,I834,I839,I844,I849,I854,I859))","v":0},null,null,{"$f":"MAX(0,SUM(L861:L862,L789,L794,L799,L804,L809,L814,L819,L824,L829,L834,L839,L844,L849,L854,L859))","v":0}]
[]
[null,"REQUIRED CAPITAL AND SURPLUS"]
[]
[null,null,null,null,null,null,null,"Net","Gross",null,"Net","Gross"]
[]
[null,"Fixed Income Investment Risk",null,null,null,null,null,{"$f":"I136","v":0},{"$f":"I136","v":0},null,{"$f":"+L136","v":0},{"$f":"+L136","v":0}]
[null,"Equity Investment Risk",null,null,null,null,null,{"$f":"IF(Summary!E11=\"With Grandfathering\",('Equity Investments (Grandf)'!F51+'Equity Investments (Non-Grandf)'!R58),H190)","v":0},{"$f":"IF(Summary!E11=\"With Grandfathering\",('Equity Investments (Grandf)'!F51+'Equity Investments (Non-Grandf)'!P58),G190)","v":0},null,{"$f":"IF(Summary!E11=\"With Grandfathering\",('Equity Investments (Grandf)'!F51+'Equity Investments (Non-Grandf)'!R58),L190)","v":0},{"$f":"IF(Summary!E11=\"With Grandfathering\",('Equity Investments (Grandf)'!F51+'Equity Investments (Non-Grandf)'!P58),K190)","v":0}]
[null,"Interest Rate / Liquidity Risk",null,null,null,null,null,{"$f":"IF(Summary!$E$12=\"Duration-Based Approach\",I200,I308)","v":0},{"$f":"IF(Summary!$E$12=\"Duration-Based Approach\",I200,H308)","v":0},null,{"$f":"IF(Summary!$E$12=\"Duration-Based Approach\",L200,L308)","v":0},{"$f":"IF(Summary!$E$12=\"Duration-Based Approach\",L200,K308)","v":0}]
[null,"Currency Risk",null,null,null,null,null,{"$f":"I341","v":0},{"$f":"H341","v":0},null,{"$f":"L341","v":0},{"$f":"K341","v":0}]
[null,"Concentration Risk",null,null,null,null,null,{"$f":"I461","v":0},{"$f":"I461","v":0},null,{"$f":"+L461","v":0},{"$f":"+L461","v":0}]
[null,"Credit Risk",null,null,null,null,null,null,{"$f":"I544","v":0},null,null,{"$f":"+L544","v":0}]
[null,"Premium Risk",null,null,null,null,null,null,{"$f":"I598","v":0},null,null,{"$f":"L598","v":0}]
[null,"Reserve Risk",null,null,null,null,null,null,{"$f":"I648","v":0},null,null,{"$f":"+L648","v":0}]
[null,"Catastrophe Risk",null,null,null,null,null,null,{"$f":"I671","v":0},null,null,{"$f":"+L671","v":0}]
[null,"Mortality",null,null,null,null,null,null,{"$f":"I677","v":0},null,null,{"$f":"+L677","v":0}]
[null,"Stop Loss",null,null,null,null,null,null,{"$f":"I756","v":0},null,null,{"$f":"+L756","v":0}]
[null,"Riders",null,null,null,null,null,null,{"$f":"I758","v":0},null,null,{"$f":"+L758","v":0}]
[null,"Morbidity and Disability",null,null,null,null,null,null,{"$f":"+I683+I691+I692+I693+I685+I686+I688","v":0},null,null,{"$f":"+L683+L691+L692+L693+L685+L686+L688","v":0}]
[null,"Longevity",null,null,null,null,null,null,{"$f":"MAX(0,(SUM(I700:I712)))","v":0},null,null,{"$f":"MAX(0,(SUM(L700:L712)+SUM(L719:L731)+SUM(L738:L750)))","v":0}]
[null,"Variable Annuity Guarantee Risk",null,null,null,null,null,null,{"$f":"IF('Schedule VIIIA (EBS)'!S12=0,+I864,'Schedule VIIIA (EBS)'!S12)","v":0},null,null,{"$f":"IF('Schedule VIIIA (EBS)'!S12=0,+L864,'Schedule VIIIA (EBS)'!S12)","v":0}]
[null,"Other Insurance Risk",null,null,null,null,null,null,{"$f":"I781","v":0},null,null,{"$f":"+L781","v":0}]
[]
[null,"BSCR (Prior to Correlation Adjustment)",null,null,null,null,null,null,{"$f":"SUM(I870:I885)","v":0},null,null,{"$f":"SUM(L870:L885)","v":0}]
[]
[null,"BSCR (After Correlation Adjustment)",null,null,null,null,null,{"$f":"SQRT(MMULT(TRANSPOSE(H906:H909),MMULT('Correlation Matrix'!$T$7:$W$10,H906:H909)))","v":0},{"$f":"SQRT(MMULT(TRANSPOSE(I906:I909),MMULT('Correlation Matrix'!$T$7:$W$10,I906:I909)))","v":0},null,{"$f":"SQRT(MMULT(TRANSPOSE(K906:K909),MMULT('Correlation Matrix'!$T$7:$W$10,K906:K909)))","v":0},{"$f":"SQRT(MMULT(TRANSPOSE(L906:L909),MMULT('Correlation Matrix'!T7:W10,L906:L909)))","v":0}]
[]
[null,"Operational risk charge (%)",null,null,null,null,null,null,{"$f":"Summary!M37","v":0.2}]
[]
[null,"Operational risk capital charge ($)",null,null,null,null,null,null,{"$f":"(I889+I915)*I891","v":0},null,null,{"$f":"IF(L891=\"\",(L889+L915)*I891,(L889+L915)*L891)","v":0}]
[]
[null,"(1) Regulated Non-Insurance Financial Operating Entities",null,null,null,null,null,null,{"$f":"'Schedule XIA'!X313","v":0},null,null,{"$f":"'Schedule XIA'!X313","v":0}]
[null,"(2) Unregulated Entities Where the Parent Exercises Control (Except IHC)",null,null,null,null,null,null,{"$f":"'Schedule XIB'!X313","v":0},null,null,{"$f":"'Schedule XIB'!X313","v":0}]
[]
[null,"CMgmtAction",null,null,null,null,null,null,{"$f":"I915","v":0},null,null,{"$f":"L915","v":0}]
[]
[null,"Other Capital Adjustment",null,null,null,null,null,null,{"$f":"-MIN(((I889+I893+I895+I896+I898)*Summary!$D$129),Summary!$F$133,((I889+I893+I895+I896+I898)*Summary!$G$129))","v":0},null,null,{"$f":"-MIN(((L889+L893+L895+L896+L898)*Summary!$D$129),Summary!$F$133,((L889+L893+L895+L896+L898)*Summary!$G$129))","v":0}]
[]
[null,"BSCR ",null,null,null,null,null,null,{"$f":"I889+I893+I895+I896+I898+I900","v":0},null,null,{"$f":"L889+L893+L895+L896+L898+L900","v":0}]
[]
[]
[null,"Capital Charges",null,null,null,null,null,"Net","Gross",null,"Net","Gross"]
[null,"Market Risk",null,null,null,null,null,{"$f":"SQRT(MMULT(TRANSPOSE(H870:H874),MMULT('Correlation Matrix'!$B$7:$F$11,H870:H874)))","v":0},{"$f":"SQRT(MMULT(TRANSPOSE(I870:I874),MMULT('Correlation Matrix'!$B$7:$F$11,I870:I874)))","v":0},null,{"$f":"SQRT(MMULT(TRANSPOSE(K870:K874),MMULT('Correlation Matrix'!$B$7:$F$11,K870:K874)))","v":0},{"$f":"SQRT(MMULT(TRANSPOSE(L870:L874),MMULT('Correlation Matrix'!$B$7:$F$11,L870:L874)))","v":0}]
[null,"Credit Risk",null,null,null,null,null,{"$f":"I875","v":0},{"$f":"I875","v":0},null,{"$f":"L875","v":0},{"$f":"L875","v":0}]
[null,"P&C Insurance Risk",null,null,null,null,null,{"$f":"SQRT(MMULT(TRANSPOSE(I876:I878),MMULT('Correlation Matrix'!H7:J9,I876:I878)))","v":0},{"$f":"SQRT(MMULT(TRANSPOSE(I876:I878),MMULT('Correlation Matrix'!H7:J9,I876:I878)))","v":0},null,{"$f":"SQRT(MMULT(TRANSPOSE(L876:L878),MMULT('Correlation Matrix'!H7:J9,L876:L878)))","v":0},{"$f":"SQRT(MMULT(TRANSPOSE(L876:L878),MMULT('Correlation Matrix'!H7:J9,L876:L878)))","v":0}]
[null,"Long-Term Insurance Risk",null,null,null,null,null,{"$f":"SQRT(MMULT(TRANSPOSE(I879:I885),MMULT('Correlation Matrix'!$L$7:$R$13,I879:I885)))","v":0},{"$f":"SQRT(MMULT(TRANSPOSE(I879:I885),MMULT('Correlation Matrix'!$L$7:$R$13,I879:I885)))","v":0},null,{"$f":"SQRT(MMULT(TRANSPOSE(L879:L885),MMULT('Correlation Matrix'!$L$7:$R$13,L879:L885)))","v":0},0]
[null,"Total",null,null,null,null,null,{"$f":"SUM(H906:H909)","v":0},{"$f":"SUM(I906:I909)","v":0},null,{"$f":"SUM(K906:K909)","v":0},{"$f":"SUM(L906:L909)","v":0}]
[]
[null,"Management Action"]
[null,"Implied Loss-absorbing capacity of Technical Provisions without cap",null,null,null,null,null,null,{"$f":"I889-H889","v":0},null,null,{"$f":"L889-K889","v":0}]
[null,"Initial FDB / Bonus reserve",null,null,null,null,null,null,{"$f":"Summary!$M$118","v":0},null,null,{"$f":"Summary!$M$118","v":0}]
[null,"Adjustment for the LaC of TP",null,null,null,null,null,null,{"$f":"-MAX(MIN(I913,I914),0)","v":0},null,null,{"$f":"-MAX(MIN(L913,L914),0)","v":0}]

{"sheet":"Correlation Matrix","index":134,"n_rows":67,"n_cols":26,"rows_kept":67,"cut":false,"hidden":false,"merged":[[2,3,2,5]]}
["Correlation Factors",null,null,null,null,null,null,null,null,null,null,null,null,null,null,null,null,null,null,null,null,null,null,null,null,{"$f":"HYPERLINK(\"#'Index'!A1\",\"Return to Index\")","v":"Return to Index"}]
["Enter Company Name",null,null,null,null,null,null,null,null,null,null,null,null,null,null,null,null,null,null,null,null,null,null,null,"Capital Charges - Gross"]
[null,null,null,null,null,null,null,null,null,null,null,null,null,null,null,null,null,null,null,null,null,null,null,null,"Market",{"$f":"Summary!M9","v":0}]
[null,null,null,null,null,null,null,null,null,null,null,null,null,null,null,null,null,null,null,null,null,null,null,null,"Credit",{"$f":"Summary!M16","v":0}]
["Market Risk",null,null,null,null,null,"P&C Insurance Risk",null,null,null,"Long-term Insurance Risk",null,null,null,null,null,null,null,"Overall BSCR",null,null,null,null,null,"P&C",{"$f":"Summary!M19","v":0}]
[null,"Cfi","Ceq","Cint","Ccurr","Cconc",null,"Prem","Res","Cat",null,"Mort","Stop Loss","Riders","Morb & Dis","Long","VA Guar","Other",null,"Market","Credit","P&C Ins","LT Ins",null,"Long-Term",{"$f":"Summary!M24","v":0}]
["Cfi",1,0.5,{"$f":"IF(Summary!E12=\"Duration-Based Approach\",0.25,IF('Interest Rate-Liquidity (Rev.)'!$E$109=\"Down\",0.25,0))","v":0.25},0.25,0,"Cprem",1,0.25,0.125,"Mort",1,0.75,0.75,0.25,-0.5,0,0.125,"Market",1,0.25,0.125,0.125,null,null,{"$f":"SUM(Z3:Z6)","v":0}]
["Ceq",0.5,1,{"$f":"IF(Summary!E12=\"Duration-Based Approach\",0.25,IF('Interest Rate-Liquidity (Rev.)'!$E$109=\"Down\",0.25,0))","v":0.25},0.25,0,"Crsvs",0.25,1,0,"Stop Loss",0.75,1,0.75,0,-0.5,0,0.25,"Credit",0.25,1,0.5,0.25]
["Cint",{"$f":"IF(Summary!E12=\"Duration-Based Approach\",0.25,IF('Interest Rate-Liquidity (Rev.)'!$E$109=\"Down\",0.25,0))","v":0.25},{"$f":"IF(Summary!E12=\"Duration-Based Approach\",0.25,IF('Interest Rate-Liquidity (Rev.)'!$E$109=\"Down\",0.25,0))","v":0.25},1,0.25,0,"Ccat",0.125,0,1,"Riders",0.75,0.75,1,0,-0.5,0,0.25,"P&C Ins",0.125,0.5,1,0,null,"Capital Charges - Net"]
["CCur",0.25,0.25,0.25,1,0,null,null,null,null,"Morb & Dis",0.25,0,0,1,0,0,0.25,"LT Ins",0.125,0.25,0,1,null,"Market",{"$f":"Summary!K9","v":0}]
["Cconc",0,0,0,0,1,null,null,null,null,"Long",-0.5,-0.5,-0.5,0,1,0,0.25,null,null,null,null,null,null,"Credit",{"$f":"Summary!K16","v":0}]
[null,null,null,null,null,null,null,null,null,null,"VA Guar",0,0,0,0,0,1,0.25,null,null,null,null,null,null,"P&C",{"$f":"Summary!K19","v":0}]
[null,null,null,null,null,null,null,null,null,null,"Other",0.125,0.25,0.25,0.25,0.25,0.25,1,null,null,null,null,null,null,"Long-Term",{"$f":"Summary!K24","v":0}]
[null,"Premium Risk",null,null,null,null,null,null,null,null,null,null,null,null,null,null,null,null,null,null,null,null,null,null,null,{"$f":"SUM(Z10:Z13)","v":0}]
[null,null,"Prop Cat","Prop","Prop NP","PA","PA NP","Aviatn","AviatnNP","C/S","C/S NP","Ergy O/M","Ergy O/MNP","US Cas","US CasNP","US Prof","US ProfNP","US Spec","US SpecNP","IntMotor","IntMotorNP","IntCas","IntCasNP","Retro Prop","Str/Fin Re","Health"]
[null,"Prop Cat",1,0.25,0.25,0.25,0.25,0.25,0.25,0.25,0.25,0.25,0.25,0.25,0.25,0.25,0.25,0.25,0.25,0.25,0.25,0.25,0.25,0.25,0.25,0.25]
[null,"Prop",0.25,1,0.5,0.25,0.25,0.25,0.25,0.25,0.25,0.25,0.25,0.25,0.25,0.25,0.25,0.25,0.25,0.25,0.25,0.25,0.25,0.25,0.25,0.25]
[null,"Prop NP",0.25,0.5,1,0.25,0.25,0.25,0.25,0.25,0.25,0.25,0.25,0.25,0.25,0.25,0.25,0.25,0.25,0.25,0.25,0.25,0.25,0.25,0.25,0.25]
[null,"PA",0.25,0.25,0.25,1,0.5,0.25,0.25,0.25,0.25,0.25,0.25,0.25,0.25,0.25,0.25,0.25,0.25,0.25,0.25,0.25,0.25,0.25,0.25,0.25]
[null,"PA NP",0.25,0.25,0.25,0.5,1,0.25,0.25,0.25,0.25,0.25,0.25,0.25,0.25,0.25,0.25,0.25,0.25,0.25,0.25,0.25,0.25,0.25,0.25,0.25]
[null,"Aviatn",0.25,0.25,0.25,0.25,0.25,1,0.5,0.25,0.25,0.25,0.25,0.25,0.25,0.25,0.25,0.25,0.25,0.25,0.25,0.25,0.25,0.25,0.25,0.25]
[null,"AviatnNP",0.25,0.25,0.25,0.25,0.25,0.5,1,0.25,0.25,0.25,0.25,0.25,0.25,0.25,0.25,0.25,0.25,0.25,0.25,0.25,0.25,0.25,0.25,0.25]
[null,"C/S",0.25,0.25,0.25,0.25,0.25,0.25,0.25,1,0.5,0.25,0.25,0.25,0.25,0.25,0.25,0.25,0.25,0.25,0.25,0.25,0.25,0.25,0.25,0.25]
[null,"C/S NP",0.25,0.25,0.25,0.25,0.25,0.25,0.25,0.5,1,0.25,0.25,0.25,0.25,0.25,0.25,0.25,0.25,0.25,0.25,0.25,0.25,0.25,0.25,0.25]
[null,"Ergy O/M",0.25,0.25,0.25,0.25,0.25,0.25,0.25,0.25,0.25,1,0.5,0.25,0.25,0.25,0.25,0.25,0.25,0.25,0.25,0.25,0.25,0.25,0.25,0.25]
[null,"Ergy O/MNP",0.25,0.25,0.25,0.25,0.25,0.25,0.25,0.25,0.25,0.5,1,0.25,0.25,0.25,0.25,0.25,0.25,0.25,0.25,0.25,0.25,0.25,0.25,0.25]
[null,"US Cas",0.25,0.25,0.25,0.25,0.25,0.25,0.25,0.25,0.25,0.25,0.25,1,0.5,0.5,0.5,0.25,0.25,0.25,0.25,0.5,0.5,0.25,0.25,0.25]
[null,"US CasNP",0.25,0.25,0.25,0.25,0.25,0.25,0.25,0.25,0.25,0.25,0.25,0.5,1,0.5,0.5,0.25,0.25,0.25,0.25,0.5,0.5,0.25,0.25,0.25]
[null,"US Prof",0.25,0.25,0.25,0.25,0.25,0.25,0.25,0.25,0.25,0.25,0.25,0.5,0.5,1,0.5,0.25,0.25,0.25,0.25,0.5,0.5,0.25,0.25,0.25]
[null,"US ProfNP",0.25,0.25,0.25,0.25,0.25,0.25,0.25,0.25,0.25,0.25,0.25,0.5,0.5,0.5,1,0.25,0.25,0.25,0.25,0.5,0.5,0.25,0.25,0.25]
[null,"US Spec",0.25,0.25,0.25,0.25,0.25,0.25,0.25,0.25,0.25,0.25,0.25,0.25,0.25,0.25,0.25,1,0.5,0.25,0.25,0.25,0.25,0.25,0.25,0.25]
[null,"US SpecNP",0.25,0.25,0.25,0.25,0.25,0.25,0.25,0.25,0.25,0.25,0.25,0.25,0.25,0.25,0.25,0.5,1,0.25,0.25,0.25,0.25,0.25,0.25,0.25]
[null,"IntMotor",0.25,0.25,0.25,0.25,0.25,0.25,0.25,0.25,0.25,0.25,0.25,0.25,0.25,0.25,0.25,0.25,0.25,1,0.5,0.25,0.25,0.25,0.25,0.25]
[null,"IntMotorNP",0.25,0.25,0.25,0.25,0.25,0.25,0.25,0.25,0.25,0.25,0.25,0.25,0.25,0.25,0.25,0.25,0.25,0.5,1,0.25,0.25,0.25,0.25,0.25]
[null,"IntCas",0.25,0.25,0.25,0.25,0.25,0.25,0.25,0.25,0.25,0.25,0.25,0.5,0.5,0.5,0.5,0.25,0.25,0.25,0.25,1,0.5,0.25,0.25,0.25]
[null,"IntCasNP",0.25,0.25,0.25,0.25,0.25,0.25,0.25,0.25,0.25,0.25,0.25,0.5,0.5,0.5,0.5,0.25,0.25,0.25,0.25,0.5,1,0.25,0.25,0.25]
[null,"Retro Prop",0.25,0.25,0.25,0.25,0.25,0.25,0.25,0.25,0.25,0.25,0.25,0.25,0.25,0.25,0.25,0.25,0.25,0.25,0.25,0.25,0.25,1,0.25,0.25]
[null,"Str/Fin Re",0.25,0.25,0.25,0.25,0.25,0.25,0.25,0.25,0.25,0.25,0.25,0.25,0.25,0.25,0.25,0.25,0.25,0.25,0.25,0.25,0.25,0.25,1,0.25]
[null,"Health",0.25,0.25,0.25,0.25,0.25,0.25,0.25,0.25,0.25,0.25,0.25,0.25,0.25,0.25,0.25,0.25,0.25,0.25,0.25,0.25,0.25,0.25,0.25,1]
[]
[]
[null,"Reserve Risk"]
[null,null,"Prop Cat","Prop","Prop NP","PA","PA NP","Aviatn","AviatnNP","C/S","C/S NP","Ergy O/M","Ergy O/MNP","US Cas","US CasNP","US Prof","US ProfNP","US Spec","US SpecNP","IntMotor","IntMotorNP","IntCas","IntCasNP","Retro Prop","Str/Fin Re","Health"]
[null,"Prop Cat",1,0.25,0.25,0.25,0.25,0.25,0.25,0.25,0.25,0.25,0.25,0.25,0.25,0.25,0.25,0.25,0.25,0.25,0.25,0.25,0.25,0.25,0.25,0.25]
[null,"Prop",0.25,1,0.5,0.25,0.25,0.25,0.25,0.25,0.25,0.25,0.25,0.25,0.25,0.25,0.25,0.25,0.25,0.25,0.25,0.25,0.25,0.25,0.25,0.25]
[null,"Prop NP",0.25,0.5,1,0.25,0.25,0.25,0.25,0.25,0.25,0.25,0.25,0.25,0.25,0.25,0.25,0.25,0.25,0.25,0.25,0.25,0.25,0.25,0.25,0.25]
[null,"PA",0.25,0.25,0.25,1,0.5,0.25,0.25,0.25,0.25,0.25,0.25,0.25,0.25,0.25,0.25,0.25,0.25,0.25,0.25,0.25,0.25,0.25,0.25,0.25]
[null,"PA NP",0.25,0.25,0.25,0.5,1,0.25,0.25,0.25,0.25,0.25,0.25,0.25,0.25,0.25,0.25,0.25,0.25,0.25,0.25,0.25,0.25,0.25,0.25,0.25]
[null,"Aviatn",0.25,0.25,0.25,0.25,0.25,1,0.5,0.25,0.25,0.25,0.25,0.25,0.25,0.25,0.25,0.25,0.25,0.25,0.25,0.25,0.25,0.25,0.25,0.25]
[null,"AviatnNP",0.25,0.25,0.25,0.25,0.25,0.5,1,0.25,0.25,0.25,0.25,0.25,0.25,0.25,0.25,0.25,0.25,0.25,0.25,0.25,0.25,0.25,0.25,0.25]
[null,"C/S",0.25,0.25,0.25,0.25,0.25,0.25,0.25,1,0.5,0.25,0.25,0.25,0.25,0.25,0.25,0.25,0.25,0.25,0.25,0.25,0.25,0.25,0.25,0.25]
[null,"C/S NP",0.25,0.25,0.25,0.25,0.25,0.25,0.25,0.5,1,0.25,0.25,0.25,0.25,0.25,0.25,0.25,0.25,0.25,0.25,0.25,0.25,0.25,0.25,0.25]
[null,"Ergy O/M",0.25,0.25,0.25,0.25,0.25,0.25,0.25,0.25,0.25,1,0.5,0.25,0.25,0.25,0.25,0.25,0.25,0.25,0.25,0.25,0.25,0.25,0.25,0.25]
[null,"Ergy O/MNP",0.25,0.25,0.25,0.25,0.25,0.25,0.25,0.25,0.25,0.5,1,0.25,0.25,0.25,0.25,0.25,0.25,0.25,0.25,0.25,0.25,0.25,0.25,0.25]
[null,"US Cas",0.25,0.25,0.25,0.25,0.25,0.25,0.25,0.25,0.25,0.25,0.25,1,0.5,0.5,0.5,0.25,0.25,0.25,0.25,0.5,0.5,0.25,0.25,0.25]
[null,"US CasNP",0.25,0.25,0.25,0.25,0.25,0.25,0.25,0.25,0.25,0.25,0.25,0.5,1,0.5,0.5,0.25,0.25,0.25,0.25,0.5,0.5,0.25,0.25,0.25]
[null,"US Prof",0.25,0.25,0.25,0.25,0.25,0.25,0.25,0.25,0.25,0.25,0.25,0.5,0.5,1,0.5,0.25,0.25,0.25,0.25,0.5,0.5,0.25,0.25,0.25]
[null,"US ProfNP",0.25,0.25,0.25,0.25,0.25,0.25,0.25,0.25,0.25,0.25,0.25,0.5,0.5,0.5,1,0.25,0.25,0.25,0.25,0.5,0.5,0.25,0.25,0.25]
[null,"US Spec",0.25,0.25,0.25,0.25,0.25,0.25,0.25,0.25,0.25,0.25,0.25,0.25,0.25,0.25,0.25,1,0.5,0.25,0.25,0.25,0.25,0.25,0.25,0.25]
[null,"US SpecNP",0.25,0.25,0.25,0.25,0.25,0.25,0.25,0.25,0.25,0.25,0.25,0.25,0.25,0.25,0.25,0.5,1,0.25,0.25,0.25,0.25,0.25,0.25,0.25]
[null,"IntMotor",0.25,0.25,0.25,0.25,0.25,0.25,0.25,0.25,0.25,0.25,0.25,0.25,0.25,0.25,0.25,0.25,0.25,1,0.5,0.25,0.25,0.25,0.25,0.25]
[null,"IntMotorNP",0.25,0.25,0.25,0.25,0.25,0.25,0.25,0.25,0.25,0.25,0.25,0.25,0.25,0.25,0.25,0.25,0.25,0.5,1,0.25,0.25,0.25,0.25,0.25]
[null,"IntCas",0.25,0.25,0.25,0.25,0.25,0.25,0.25,0.25,0.25,0.25,0.25,0.5,0.5,0.5,0.5,0.25,0.25,0.25,0.25,1,0.5,0.25,0.25,0.25]
[null,"IntCasNP",0.25,0.25,0.25,0.25,0.25,0.25,0.25,0.25,0.25,0.25,0.25,0.5,0.5,0.5,0.5,0.25,0.25,0.25,0.25,0.5,1,0.25,0.25,0.25]
[null,"Retro Prop",0.25,0.25,0.25,0.25,0.25,0.25,0.25,0.25,0.25,0.25,0.25,0.25,0.25,0.25,0.25,0.25,0.25,0.25,0.25,0.25,0.25,1,0.25,0.25]
[null,"Str/Fin Re",0.25,0.25,0.25,0.25,0.25,0.25,0.25,0.25,0.25,0.25,0.25,0.25,0.25,0.25,0.25,0.25,0.25,0.25,0.25,0.25,0.25,0.25,1,0.25]
[null,"Health",0.25,0.25,0.25,0.25,0.25,0.25,0.25,0.25,0.25,0.25,0.25,0.25,0.25,0.25,0.25,0.25,0.25,0.25,0.25,0.25,0.25,0.25,0.25,1]

{"sheet":"Crosscheck - SFS","index":135,"n_rows":151,"n_cols":4,"rows_kept":151,"cut":false,"hidden":true,"merged":[]}
[{"$f":"'Group Information'!C7","v":"Enter Group Company Name"}]
["Summary of SFS Inputs ($000) - For BMA Use Only"]
[{"$f":"'Group Information'!A3","v":"For the Year Ending "}]
[]
[]
[]
[null,"INPUT","STATEMENT SOURCE","VALUE"]
[]
[null,"Cash and time deposits","Form 1A, Line 1",{"$f":"'Form 1EBS'!F10","v":0}]
[null,"Quoted invesments, bonds and debentures - held to maturity","Form 1A, Line 2(a)(i)"]
[null,"Quoted invesments, bonds and debentures - others","Form 1A, Line 2(a)(ii)"]
[null,"Quoted investments, equities - common stocks","Form 1A, Line 2(c)(i)",{"$f":"'Form 1EBS'!F16","v":0}]
[null,"Quoted investments, equities - preferred stocks","Form 1A, Line 2(c)(ii)",{"$f":"'Form 1EBS'!F17","v":0}]
[null,"Quoted investments, equities - mutual funds","Form 1A, Line 2(c)(iii)",{"$f":"'Form 1EBS'!F18","v":0}]
[null,"Other quoted investments","Form 1A, Line 2(e)",{"$f":"'Form 1EBS'!F20","v":0}]
[null,"Unquoted investments, bonds and debentures - held to maturity","Form 1A, Line 3(a)(i)"]
[null,"Unquoted investments, bonds and debentures - others","Form 1A, Line 3(a)(ii)"]
[null,"Unquoted investments, equities - common stocks","Form 1A, Line 3(c)(i)",{"$f":"'Form 1EBS'!F27","v":0}]
[null,"Unquoted investments, equities - preferred stocks","Form 1A, Line 3(c)(ii)",{"$f":"'Form 1EBS'!F28","v":0}]
[null,"Unquoted investments, equities - mutual funds","Form 1A, Line 3(c)(iii)",{"$f":"'Form 1EBS'!F29","v":0}]
[null,"Other unquoted investments","Form 1A, Line 3(e)",{"$f":"'Form 1EBS'!F31","v":0}]
[null,"Investments in affiliates","Form 1A, Line 4(a)",{"$f":"'Form 1EBS'!F35","v":0}]
[null,"Advances to affiliates","Form 1A, Line 4(b)",{"$f":"'Form 1EBS'!F36","v":0}]
[null,"Investment in mortgage loans on real estate - first liens","Form 1A, Line 5(a)",{"$f":"'Form 1EBS'!F45","v":0}]
[null,"Investment in mortgage loans on real estate - other than first liens","Form 1A, Line 5(b)",{"$f":"'Form 1EBS'!F46","v":0}]
[null,"Real estate, occupied by the company (less encumbrances)","Form 1A, Line 7(a)",{"$f":"'Form 1EBS'!F52","v":0}]
[null,"Real estate, other properties (less encumbrances)","Form 1A, Line 7(b)",{"$f":"'Form 1EBS'!F53","v":0}]
[null,"Collateral loans","Form 1A, Line 8",{"$f":"'Form 1EBS'!F56","v":0}]
[null,"Investment income due and accrued","Form 1A, Line 9",{"$f":"'Form 1EBS'!F58","v":0}]
[null,"Accounts and premium receivable - in course of collection","Form 1A, Line 10(a)",{"$f":"'Form 1EBS'!F61","v":0}]
[null,"Accounts and premium receivable - deferred - not yet due","Form 1A, Line 10(b)"]
[null,"Accounts and premium receivable - receivables from retrocessional contracts","Form 1A, Line 10(c)",{"$f":"'Form 1EBS'!F62","v":0}]
[null,"Reinsurance balances receivable - foreign affiliates","Form 1A, Line 11(a)",{"$f":"'Form 1EBS'!F66","v":0}]
[null,"Reinsurance balances receivable - domestic affiliates","Form 1A, Line 11(b)",{"$f":"'Form 1EBS'!F67","v":0}]
[null,"Reinsurance balances receivable - pools & associations","Form 1A, Line 11(c)",{"$f":"'Form 1EBS'!F68","v":0}]
[null,"Reinsurance balances receivable - all other insurers","Form 1A, Line 11(d)",{"$f":"'Form 1EBS'!F69","v":0}]
[null,"Funds held by ceding reinsurers - affiliated","Form 1A, Line 12(a)"]
[null,"Funds held by ceding reinsurers - non-affiliated","Form 1A, Line 12(b)"]
[null,"Sundry assets - derivative instruments","Form 1A, Line 13(a)",{"$f":"'Form 1EBS'!F78","v":0}]
[null,"Sundry assets - segregated accounts companies","Form 1A, Line 13(b)",{"$f":"+'Form 1EBS'!F79","v":0}]
[null,"Sundry assets - deposit assets","Form 1A, Line 13(c)",{"$f":"'Form 1EBS'!F82","v":0}]
[null,"Sundry assets - others","Form 1A, Line 13(d)",{"$f":"'Form 1EBS'!F87","v":0}]
[null,"Letters of credit, guarantees and other instruments - letters of credit","Form 1A, Line 14(a)",{"$f":"'Form 1EBS'!F91","v":0}]
[null,"Letters of credit, guarantees and other instruments - guarantees","Form 1A, Line 14(b)",{"$f":"'Form 1EBS'!F92","v":0}]
[null,"Letters of credit, guarantees and other instruments - other instruments","Form 1A, Line 14(c)",{"$f":"'Form 1EBS'!F93","v":0}]
[null,"Unearned premium","Form 1A, Line 16",{"$f":"'Form 1EBS'!F111","v":0}]
[null,"Loss and loss expense provisions - gross loss and loss expense provisions","Form 1A, Line 17(a)",{"$f":"'Form 1EBS'!F114","v":0}]
[null,"Loss and loss expense provisions - reinsurance recoverable - foreign affiliates","Form 1A, Line 17(b)(i)",{"$f":"+'Form 1EBS'!F116","v":0}]
[null,"Loss and loss expense provisions - reinsurance recoverable - domestic affiliates","Form 1A, Line 17(b)(ii)",{"$f":"+'Form 1EBS'!F117","v":0}]
[null,"Loss and loss expense provisions - reinsurance recoverable - pools  associations","Form 1A, Line 17(b)(iii)",{"$f":"+'Form 1EBS'!F118","v":0}]
[null,"Loss and loss expense provisions - reinsurance recoverable - all other insurers","Form 1A, Line 17(b)(iv)",{"$f":"+'Form 1EBS'!F119","v":0}]
[null,"Other insurance reserves - general business","Form 1A, Line 18",{"$f":"+'Form 1EBS'!F123","v":0}]
[null,"Insurance and reinsurance balances payable","Form 1A, Line 28",{"$f":"'Form 1EBS'!F169","v":0}]
[null,"Commissions, expenses, fees and taxes payable","Form 1A, Line 29",{"$f":"'Form 1EBS'!F171","v":0}]
[null,"Loans and notes payable","Form 1A, Line 30",{"$f":"'Form 1EBS'!F173","v":0}]
[null,"Income taxes payable","Form 1A, Line 31(a)",{"$f":"'Form 1EBS'!F176","v":0}]
[null,"Deferred income taxes","Form 1A, Line 31(b)",{"$f":"'Form 1EBS'!F177","v":0}]
[null,"Amounts due to affiliates","Form 1A, Line 32",{"$f":"+'Form 1EBS'!F179","v":0}]
[null,"Accounts payable and accrued liabilities","Form 1A, Line 33",{"$f":"'Form 1EBS'!F181","v":0}]
[null,"Funds held under reinsurance contracts - affiliates","Form 1A, Line 34(a)",{"$f":"+'Form 1EBS'!F186","v":0}]
[null,"Funds held under reinsurance contracts - non-affiliates","Form 1A, Line 34(b)"]
[null,"Dividends payable","Form 1A, Line 35",{"$f":"'Form 1EBS'!F188","v":0}]
[null,"Sundry liabilities - derivative instruments","Form 1A, Line 36(a)",{"$f":"'Form 1EBS'!F191","v":0}]
[null,"Sundry liabilities - segregated accounts companies","Form 1A, Line 36(b)",{"$f":"'Form 1EBS'!F193","v":0}]
[null,"Sundry liabilities - deposit liabilities","Form 1A, Line 36(c)",{"$f":"'Form 1EBS'!F196","v":0}]
[null,"Sundry liabilities - others","Form 1A, Line 36(d)",{"$f":"'Form 1EBS'!F198","v":0}]
[null,"Letters of credit, guarantees and other instruments - letters of credit","Form 1A, Line 37(a)",{"$f":"'Form 1EBS'!F203","v":0}]
[null,"Letters of credit, guarantees and other instruments - guarantees","Form 1A, Line 37(b)",{"$f":"'Form 1EBS'!F204","v":0}]
[null,"Letters of credit, guarantees and other instruments - other instruments","Form 1A, Line 37(c)",{"$f":"'Form 1EBS'!F205","v":0}]
[null,"Gross premium written - direct GPW","Form 2A, Line 1(a)",{"$f":"'Form 2'!E12","v":0}]
[null,"Gross premium written - assumed GPW","Form 2A, Line 1(b)",{"$f":"'Form 2'!E13","v":0}]
[null,"Reinsurance premiums ceded","Form 2A, Line 2",{"$f":"'Form 2'!E16","v":0}]
[null,"Increase (decrease) in unearned premiums","Form 2A, Line 4",{"$f":"'Form 2'!E20","v":0}]
[null,"Other insurance income","Form 2A, Line 6",{"$f":"'Form 2'!E24","v":0}]
[null,"Net losses incurred and net loss expenses incurred","Form 2A, Line 8",{"$f":"'Form 2'!E30","v":0}]
[null,"Commissions and brokerage","Form 2A, Line 9",{"$f":"'Form 2'!E32","v":0}]
[null,"General and administrative","Form 2A, Line 10",{"$f":"+'Form 2'!E93","v":0}]
[null,"Personel costs","Form 2A, Line 11",{"$f":"+'Form 2'!E94","v":0}]
[null,"Others","Form 2A, Line 12",{"$f":"+'Form 2'!E95","v":0}]
[null,"Transferred from (to) open year business revenue statement","Form 2A, Line 15",{"$f":"'Form 2'!E98","v":0}]
[null,"General business investment income-net","Form 2A, Line 17",{"$f":"'Form 2'!E48","v":0}]
[null,"Other income (deductions)","Form 2A, Line 37",{"$f":"'Form 2'!E75","v":0}]
[null,"Income taxes - current","Form 2A, Line 39(a)",{"$f":"'Form 2'!E105","v":0}]
[null,"Income taxes - deferred","Form 2A, Line 39(b)",{"$f":"'Form 2'!E106","v":0}]
[null,"Realized gains (losses)","Form 2A, Line 41",{"$f":"'Form 2'!E111","v":0}]
[null,"Statutory Capital - authorized shares","Form 8, Line 1(a)",{"$f":"'Form 8'!D13","v":0}]
[null,"Statutory Capital - par value","Form 8, Line 1(a)",{"$f":"'Form 8'!D14","v":0}]
[null,"Statutory Capital - fully paid shares","Form 8, Line 1(a)",{"$f":"'Form 8'!D15","v":0}]
[null,"Statutory Capital - capital stock","Form 8, Line 1(a)",{"$f":"'Form 8'!G12","v":0}]
[null,"Statutory Capital - contributed surplus","Form 8, Line 1(b)",{"$f":"'Form 8'!G37","v":0}]
[null,"Statutory Capital - any other fixed capital","Form 8, Line 1(c)",{"$f":"+'Form 8'!G42","v":0}]
[null,"Statutory surplus - beginning of year","Form 8, Line 2(a)",{"$f":"'Form 8'!G48","v":0}]
[null,"Statutory surplus - dividends paid and payable","Form 8, Line 2(c)",{"$f":"'Form 8'!G52","v":0}]
[null,"Statutory surplus - change in unrealized appreciation (depreciation) of investments","Form 8, Line 2(d)",{"$f":"'Form 8'!G54","v":0}]
[null,"Statutory surplus - change in non-admitted assets","Form 8, Line 2(e)",{"$f":"'Form 8'!G56","v":0}]
[null,"Statutory surplus - change in appraisal of real estate","Form 8, Line 2(f)",{"$f":"'Form 8'!G58","v":0}]
[null,"Statutory surplus - change in any other statutory capital","Form 8, Line 2(g)",{"$f":"'Form 8'!G60","v":0}]
[null,"Government","Schedule II, Line (1)"]
[null,"High Investment Grade (AAA & AA)","Schedule II, Line (2)"]
[null,"Medium Investment Grade (A)","Schedule II, Line (3)"]
[null,"Low Investment Grade (BBB)","Schedule II, Line (4)"]
[null,"Non Investment Grade","Schedule II, Line (5)"]
[null,"Mortgage Backed","Schedule II, Line (6)"]
[null,"Mutual Funds","Schedule II, Line (7)"]
[null,"Non Rated","Schedule II, Line (8)"]
[null,{"$f":"\"Reserves - \"&'Reserve Risk'!B11","v":"Reserves - Property Catastrophe"},"Schedule III, Line (1)",{"$f":"'Schedule III (EBS)'!F10","v":0}]
[null,{"$f":"\"Reserves - \"&'Reserve Risk'!B12","v":"Reserves - Property"},"Schedule III, Line (2)",{"$f":"'Schedule III (EBS)'!F11","v":0}]
[null,{"$f":"\"Reserves - \"&'Reserve Risk'!B13","v":"Reserves - Property Non-Proportional"},"Schedule III, Line (3)",{"$f":"'Schedule III (EBS)'!F12","v":0}]
[null,{"$f":"\"Reserves - \"&'Reserve Risk'!B14","v":"Reserves - Personal Accident"},"Schedule III, Line (4)",{"$f":"'Schedule III (EBS)'!F13","v":0}]
[null,{"$f":"\"Reserves - \"&'Reserve Risk'!B15","v":"Reserves - Personal Accident Non-Proportional"},"Schedule III, Line (5)",{"$f":"'Schedule III (EBS)'!F14","v":0}]
[null,{"$f":"\"Reserves - \"&'Reserve Risk'!B16","v":"Reserves - Aviation"},"Schedule III, Line (6)",{"$f":"'Schedule III (EBS)'!F15","v":0}]
[null,{"$f":"\"Reserves - \"&'Reserve Risk'!B17","v":"Reserves - Aviation Non-Proportional"},"Schedule III, Line (7)",{"$f":"'Schedule III (EBS)'!F16","v":0}]
[null,{"$f":"\"Reserves - \"&'Reserve Risk'!B18","v":"Reserves - Credit / Surety"},"Schedule III, Line (8)",{"$f":"'Schedule III (EBS)'!F17","v":0}]
[null,{"$f":"\"Reserves - \"&'Reserve Risk'!B19","v":"Reserves - Credit / Surety Non-Proportional"},"Schedule III, Line (9)",{"$f":"'Schedule III (EBS)'!F18","v":0}]
[null,{"$f":"\"Reserves - \"&'Reserve Risk'!B20","v":"Reserves - Energy Offshore / Marine"},"Schedule III, Line (10)",{"$f":"'Schedule III (EBS)'!F19","v":0}]
[null,{"$f":"\"Reserves - \"&'Reserve Risk'!B21","v":"Reserves - Energy Offshore / Marine Non-Proportional"},"Schedule III, Line (11)",{"$f":"'Schedule III (EBS)'!F20","v":0}]
[null,{"$f":"\"Reserves - \"&'Reserve Risk'!B22","v":"Reserves - U.S. Casualty"},"Schedule III, Line (12)",{"$f":"'Schedule III (EBS)'!F21","v":0}]
[null,{"$f":"\"Reserves - \"&'Reserve Risk'!B23","v":"Reserves - U.S. Casualty Non-Proportional"},"Schedule III, Line (13)",{"$f":"'Schedule III (EBS)'!F22","v":0}]
[null,{"$f":"\"Reserves - \"&'Reserve Risk'!B24","v":"Reserves - U.S. Professional"},"Schedule III, Line (14)",{"$f":"'Schedule III (EBS)'!F23","v":0}]
[null,{"$f":"\"Reserves - \"&'Reserve Risk'!B25","v":"Reserves - U.S. Professional Non-Proportional"},"Schedule III, Line (15)",{"$f":"'Schedule III (EBS)'!F24","v":0}]
[null,{"$f":"\"Reserves - \"&'Reserve Risk'!B26","v":"Reserves - U.S. Specialty"},"Schedule III, Line (16)",{"$f":"'Schedule III (EBS)'!F25","v":0}]
[null,{"$f":"\"Reserves - \"&'Reserve Risk'!B27","v":"Reserves - U.S. Specialty Non-Proportional"},"Schedule III, Line (17)",{"$f":"'Schedule III (EBS)'!F26","v":0}]
[null,{"$f":"\"Reserves - \"&'Reserve Risk'!B28","v":"Reserves - International Motor"},"Schedule III, Line (18)",{"$f":"'Schedule III (EBS)'!F27","v":0}]
[null,{"$f":"\"Reserves - \"&'Reserve Risk'!B29","v":"Reserves - International Motor Non-Proportional"},"Schedule III, Line (19)",{"$f":"'Schedule III (EBS)'!F28","v":0}]
[null,{"$f":"\"Reserves - \"&'Reserve Risk'!B30","v":"Reserves - International Casualty Non-Motor"},"Schedule III, Line (20)",{"$f":"'Schedule III (EBS)'!F29","v":0}]
[null,{"$f":"\"Reserves - \"&'Reserve Risk'!B31","v":"Reserves - International Casualty Non-Motor Non-Proportional"},"Schedule III, Line (21)",{"$f":"'Schedule III (EBS)'!F30","v":0}]
[null,{"$f":"\"Reserves - \"&'Reserve Risk'!B32","v":"Reserves - Retro Property"},"Schedule III, Line (22)",{"$f":"'Schedule III (EBS)'!F31","v":0}]
[null,{"$f":"\"Reserves - \"&'Reserve Risk'!B33","v":"Reserves - Structured / Finite Reinsurance"},"Schedule III, Line (23)",{"$f":"'Schedule III (EBS)'!F32","v":0}]
[null,"Premium - Property Catastrophe","Schedule IV, Line (1)",{"$f":"'Schedule IVA'!Q11","v":0}]
[null,"Premium - Property","Schedule IV, Line (2)",{"$f":"'Schedule IVA'!Q12","v":0}]
[null,"Premium - Property Non-Proportional","Schedule IV, Line (3)",{"$f":"'Schedule IVA'!Q13","v":0}]
[null,"Premium - Personal Accident","Schedule IV, Line (4)",{"$f":"'Schedule IVA'!Q14","v":0}]
[null,"Premium - Personal Accident Non-Proportional","Schedule IV, Line (5)",{"$f":"'Schedule IVA'!Q15","v":0}]
[null,"Premium - Aviation","Schedule IV, Line (6)",{"$f":"'Schedule IVA'!Q16","v":0}]
[null,"Premium - Aviation Non-Proportional","Schedule IV, Line (7)",{"$f":"'Schedule IVA'!Q17","v":0}]
[null,"Premium - Credit / Surety","Schedule IV, Line (8)",{"$f":"'Schedule IVA'!Q18","v":0}]
[null,"Premium - Credit / Surety Non-Proportional","Schedule IV, Line (9)",{"$f":"'Schedule IVA'!Q19","v":0}]
[null,"Premium - Energy Offshore / Marine","Schedule IV, Line (10)",{"$f":"'Schedule IVA'!Q20","v":0}]
[null,"Premium - Energy Offshore / Marine Non-Proportional","Schedule IV, Line (11)",{"$f":"'Schedule IVA'!Q21","v":0}]
[null,"Premium - U.S. Casualty","Schedule IV, Line (12)",{"$f":"'Schedule IVA'!Q22","v":0}]
[null,"Premium - U.S. Casualty Non-Proportional","Schedule IV, Line (13)",{"$f":"'Schedule IVA'!Q23","v":0}]
[null,"Premium - U.S. Professional","Schedule IV, Line (14)",{"$f":"'Schedule IVA'!Q24","v":0}]
[null,"Premium - U.S. Professional Non-Proportional","Schedule IV, Line (15)",{"$f":"'Schedule IVA'!Q25","v":0}]
[null,"Premium - U.S. Specialty","Schedule IV, Line (16)",{"$f":"'Schedule IVA'!Q26","v":0}]
[null,"Premium - U.S. Specialty Non-Proportional","Schedule IV, Line (17)",{"$f":"'Schedule IVA'!Q27","v":0}]
[null,"Premium - International Motor","Schedule IV, Line (18)",{"$f":"'Schedule IVA'!Q28","v":0}]
[null,"Premium - International Motor Non-Proportional","Schedule IV, Line (19)",{"$f":"'Schedule IVA'!Q29","v":0}]
[null,"Premium - International Casualty Non-Motor","Schedule IV, Line (20)",{"$f":"'Schedule IVA'!Q30","v":0}]
[null,"Premium - International Casualty Non-Motor Non-Proportional","Schedule IV, Line (21)",{"$f":"'Schedule IVA'!Q31","v":0}]
[null,"Premium - Retro Property","Schedule IV, Line (22)",{"$f":"'Schedule IVA'!Q32","v":0}]
[null,"Premium - Structured / Finite Reinsurance","Schedule IV, Line (23)",{"$f":"'Schedule IVA'!Q33","v":0}]

{"sheet":"Crosscheck-Model","index":136,"n_rows":95,"n_cols":4,"rows_kept":95,"cut":false,"hidden":true,"merged":[]}
[{"$f":"'Group Information'!C7","v":"Enter Group Company Name"}]
["Summary of Inputs ($000) - For BMA Use Only"]
[{"$f":"'Group Information'!A3","v":"For the Year Ending "}]
[]
[]
[]
[null,"INPUT","STATEMENT SOURCE","VALUE"]
[]
[null,"Reported Surplus","Form 1A, Line (40)",{"$f":"Summary!M67","v":0}]
[null,"Government","Schedule II, Line (1)",{"$f":"'Fixed Income Investments'!D11","v":0}]
[null,"High Investment Grade (AAA & AA)","Schedule II, Line (2)",{"$f":"'Fixed Income Investments'!D12","v":0}]
[null,"Medium Investment Grade (A)","Schedule II, Line (3)",{"$f":"'Fixed Income Investments'!D13","v":0}]
[null,"Low Investment Grade (BBB)","Schedule II, Line (4)",{"$f":"'Fixed Income Investments'!D14","v":0}]
[null,"Non Investment Grade","Schedule II, Line (5)",{"$f":"'Fixed Income Investments'!D15","v":0}]
[null,"Mortgage Backed","Schedule II, Line (6)",{"$f":"'Fixed Income Investments'!D16","v":0}]
[null,"Mutual Funds","Schedule II, Line (7)",{"$f":"'Fixed Income Investments'!D17","v":0}]
[null,"Non Rated","Schedule II, Line (8)",{"$f":"'Fixed Income Investments'!D18","v":0}]
[null,"Mortgage Loans","Form 1A, Line (5c)",{"$f":"'Fixed Income Investments'!D26","v":0}]
[null,"Other Loans","Form 1A, Line (8)",{"$f":"'Fixed Income Investments'!D27","v":0}]
[null,"Cash","Form 1A, Line (1)",{"$f":"'Fixed Income Investments'!D28","v":0}]
[null,"Non-Affiliated (Quoted)","Form 1A, Line (2c)-i",{"$f":"'Equity Investments'!D11","v":0}]
[null,"Non-Affiliated (Unquoted)","Form 1A, Line (3c)-i",{"$f":"'Equity Investments'!D12","v":0}]
[null,"Mutual Funds","Form 1A, Lines (2c)-iii, (3c)-iii",{"$f":"'Equity Investments'!D13","v":0}]
[null,"Non-Affiliated (Quoted)","Form 1A, Line (2c)-ii",{"$f":"'Equity Investments'!D19","v":0}]
[null,"Non-Affiliated (Unquoted)","Form 1A, Line (3c)-ii"]
[null,"Company-Occupied Less Encumbrances","Form 1A, Line (7a)",{"$f":"'Equity Investments'!D34","v":0}]
[null,"Investments Less Encumbrances","Form 1A, Line (7b)",{"$f":"'Equity Investments'!D35","v":0}]
[null,"Other Investments","Form 1A, Lines (2e), (3e)",{"$f":"'Equity Investments'!D37","v":0}]
[null,"Other Tangible Assets","Form 1A, Lines (13e), (14d)",{"$f":"'Equity Investments'!D38","v":0}]
[null,"Bonds (Quoted Only)","Form 1A, Lines (2a)-ii and (3a)-ii",{"$f":"'Interest Rate-Liquidity Risk'!D10","v":0}]
[null,"In Course of Collection","Form 1A, Line (10a)",{"$f":"'Credit Risk'!D11","v":0}]
[null,"Deferred - Not Yet Due","Form 1A, Line (10b)"]
[null,"Receivables from retrocessional contracts  less: Collateralized Balances","Form 1A, Line (10c)",{"$f":"'Credit Risk'!D12","v":0}]
[null,"Foreign Affiliates","Form 1A, Line (11a)"]
[null,"Domestic Affiliates","Form 1A, Line (11b)"]
[null,"Pools & Associations","Form 1A, Line (11c)"]
[null,"All Other Insurers","Form 1A, Line (11d)"]
[null,"Letter of credits","Notes to Form 1A, Line 11"]
[null,"Funds held by Company","Form 1A, Line 34(c)"]
[null,"Funds Held by Ceding Reinsurers","Form 1A, Line (12c)"]
[null,"Accrued Investment Income","Form 1A, Line (9)",{"$f":"'Credit Risk'!D19","v":0}]
[null,"Receivable from Affiliates","Form 1A, Line (4c)",{"$f":"'Credit Risk'!D20","v":0}]
[null,"Foreign Affiliates","Form 1A, Line (17b)-i",{"$f":"+'Credit Risk'!D31","v":0}]
[null,"Domestic Affiliates","Form 1A, Line (17b)-ii",{"$f":"+'Credit Risk'!D32","v":0}]
[null,"Pools & Associations","Form 1A, Line (17b)-iii",{"$f":"'Credit Risk'!D33","v":0}]
[null,"All Other Insurers","Form 1A, Line (17b)-iv",{"$f":"'Credit Risk'!D34","v":0}]
[null,"Premium - Property Catastrophe","Schedule IV, Line (1)",{"$f":"'Premium Risk'!F11","v":0}]
[null,"Premium - Property","Schedule IV, Line (2)",{"$f":"'Premium Risk'!F12","v":0}]
[null,"Premium - Property Non-Proportional","Schedule IV, Line (3)",{"$f":"'Premium Risk'!F13","v":0}]
[null,"Premium - Personal Accident","Schedule IV, Line (4)",{"$f":"'Premium Risk'!F14","v":0}]
[null,"Premium - Personal Accident Non-Proportional","Schedule IV, Line (5)",{"$f":"'Premium Risk'!F15","v":0}]
[null,"Premium - Aviation","Schedule IV, Line (6)",{"$f":"'Premium Risk'!F16","v":0}]
[null,"Premium - Aviation Non-Proportional","Schedule IV, Line (7)",{"$f":"'Premium Risk'!F17","v":0}]
[null,"Premium - Credit / Surety","Schedule IV, Line (8)",{"$f":"'Premium Risk'!F18","v":0}]
[null,"Premium - Credit / Surety Non-Proportional","Schedule IV, Line (9)",{"$f":"'Premium Risk'!F19","v":0}]
[null,"Premium - Energy Offshore / Marine","Schedule IV, Line (10)",{"$f":"'Premium Risk'!F20","v":0}]
[null,"Premium - Energy Offshore / Marine Non-Proportional","Schedule IV, Line (11)",{"$f":"'Premium Risk'!F21","v":0}]
[null,"Premium - U.S. Casualty","Schedule IV, Line (12)",{"$f":"'Premium Risk'!F22","v":0}]
[null,"Premium - U.S. Casualty Non-Proportional","Schedule IV, Line (13)",{"$f":"'Premium Risk'!F23","v":0}]
[null,"Premium - U.S. Professional","Schedule IV, Line (14)",{"$f":"'Premium Risk'!F24","v":0}]
[null,"Premium - U.S. Professional Non-Proportional","Schedule IV, Line (15)",{"$f":"'Premium Risk'!F25","v":0}]
[null,"Premium - U.S. Specialty","Schedule IV, Line (16)",{"$f":"'Premium Risk'!F26","v":0}]
[null,"Premium - U.S. Specialty Non-Proportional","Schedule IV, Line (17)",{"$f":"'Premium Risk'!F27","v":0}]
[null,"Premium - International Motor","Schedule IV, Line (18)",{"$f":"'Premium Risk'!F28","v":0}]
[null,"Premium - International Motor Non-Proportional","Schedule IV, Line (19)",{"$f":"'Premium Risk'!F29","v":0}]
[null,"Premium - International Casualty Non-Motor","Schedule IV, Line (20)",{"$f":"'Premium Risk'!F30","v":0}]
[null,"Premium - International Casualty Non-Motor Non-Proportional","Schedule IV, Line (21)",{"$f":"'Premium Risk'!F31","v":0}]
[null,"Premium - Retro Property","Schedule IV, Line (22)",{"$f":"'Premium Risk'!F32","v":0}]
[null,"Premium - Structured / Finite Reinsurance","Schedule IV, Line (23)",{"$f":"'Premium Risk'!F33","v":0}]
[null,{"$f":"\"Reserves - \"&'Reserve Risk'!B11","v":"Reserves - Property Catastrophe"},"Schedule III, Line (1)",{"$f":"'Reserve Risk'!F11","v":0}]
[null,{"$f":"\"Reserves - \"&'Reserve Risk'!B12","v":"Reserves - Property"},"Schedule III, Line (2)",{"$f":"'Reserve Risk'!F12","v":0}]
[null,{"$f":"\"Reserves - \"&'Reserve Risk'!B13","v":"Reserves - Property Non-Proportional"},"Schedule III, Line (3)",{"$f":"'Reserve Risk'!F13","v":0}]
[null,{"$f":"\"Reserves - \"&'Reserve Risk'!B14","v":"Reserves - Personal Accident"},"Schedule III, Line (4)",{"$f":"'Reserve Risk'!F14","v":0}]
[null,{"$f":"\"Reserves - \"&'Reserve Risk'!B15","v":"Reserves - Personal Accident Non-Proportional"},"Schedule III, Line (5)",{"$f":"'Reserve Risk'!F15","v":0}]
[null,{"$f":"\"Reserves - \"&'Reserve Risk'!B16","v":"Reserves - Aviation"},"Schedule III, Line (6)",{"$f":"'Reserve Risk'!F16","v":0}]
[null,{"$f":"\"Reserves - \"&'Reserve Risk'!B17","v":"Reserves - Aviation Non-Proportional"},"Schedule III, Line (7)",{"$f":"'Reserve Risk'!F17","v":0}]
[null,{"$f":"\"Reserves - \"&'Reserve Risk'!B18","v":"Reserves - Credit / Surety"},"Schedule III, Line (8)",{"$f":"'Reserve Risk'!F18","v":0}]
[null,{"$f":"\"Reserves - \"&'Reserve Risk'!B19","v":"Reserves - Credit / Surety Non-Proportional"},"Schedule III, Line (9)",{"$f":"'Reserve Risk'!F19","v":0}]
[null,{"$f":"\"Reserves - \"&'Reserve Risk'!B20","v":"Reserves - Energy Offshore / Marine"},"Schedule III, Line (10)",{"$f":"'Reserve Risk'!F20","v":0}]
[null,{"$f":"\"Reserves - \"&'Reserve Risk'!B21","v":"Reserves - Energy Offshore / Marine Non-Proportional"},"Schedule III, Line (11)",{"$f":"'Reserve Risk'!F21","v":0}]
[null,{"$f":"\"Reserves - \"&'Reserve Risk'!B22","v":"Reserves - U.S. Casualty"},"Schedule III, Line (12)",{"$f":"'Reserve Risk'!F22","v":0}]
[null,{"$f":"\"Reserves - \"&'Reserve Risk'!B23","v":"Reserves - U.S. Casualty Non-Proportional"},"Schedule III, Line (13)",{"$f":"'Reserve Risk'!F23","v":0}]
[null,{"$f":"\"Reserves - \"&'Reserve Risk'!B24","v":"Reserves - U.S. Professional"},"Schedule III, Line (14)",{"$f":"'Reserve Risk'!F24","v":0}]
[null,{"$f":"\"Reserves - \"&'Reserve Risk'!B25","v":"Reserves - U.S. Professional Non-Proportional"},"Schedule III, Line (15)",{"$f":"'Reserve Risk'!F25","v":0}]
[null,{"$f":"\"Reserves - \"&'Reserve Risk'!B26","v":"Reserves - U.S. Specialty"},"Schedule III, Line (16)",{"$f":"'Reserve Risk'!F26","v":0}]
[null,{"$f":"\"Reserves - \"&'Reserve Risk'!B27","v":"Reserves - U.S. Specialty Non-Proportional"},"Schedule III, Line (17)",{"$f":"'Reserve Risk'!F27","v":0}]
[null,{"$f":"\"Reserves - \"&'Reserve Risk'!B28","v":"Reserves - International Motor"},"Schedule III, Line (18)",{"$f":"'Reserve Risk'!F28","v":0}]
[null,{"$f":"\"Reserves - \"&'Reserve Risk'!B29","v":"Reserves - International Motor Non-Proportional"},"Schedule III, Line (19)",{"$f":"'Reserve Risk'!F29","v":0}]
[null,{"$f":"\"Reserves - \"&'Reserve Risk'!B30","v":"Reserves - International Casualty Non-Motor"},"Schedule III, Line (20)",{"$f":"'Reserve Risk'!F30","v":0}]
[null,{"$f":"\"Reserves - \"&'Reserve Risk'!B31","v":"Reserves - International Casualty Non-Motor Non-Proportional"},"Schedule III, Line (21)",{"$f":"'Reserve Risk'!F31","v":0}]
[null,{"$f":"\"Reserves - \"&'Reserve Risk'!B32","v":"Reserves - Retro Property"},"Schedule III, Line (22)",{"$f":"'Reserve Risk'!F32","v":0}]
[null,{"$f":"\"Reserves - \"&'Reserve Risk'!B33","v":"Reserves - Structured / Finite Reinsurance"},"Schedule III, Line (23)",{"$f":"'Reserve Risk'!F33","v":0}]
[null,"Gross Probable Maximum Loss","Schedule V, Line (b)",{"$f":"'Catastrophe Risk'!E6","v":0}]
[null,"Net Probable Maximum Loss","Schedule V, Line (c)",{"$f":"'Catastrophe Risk'!E8","v":0}]
[null,"Average Annual Loss (AAL) Excluding Property Catastrophe","Schedule V, Line (d)",{"$f":"'Catastrophe Risk'!E10","v":0}]

{"sheet":"Crosscheck - Op Risk","index":137,"n_rows":153,"n_cols":4,"rows_kept":153,"cut":false,"hidden":true,"merged":[]}
[{"$f":"'Group Information'!C7","v":"Enter Group Company Name"}]
["Summary of Operational Risk - For BMA Use Only"]
[{"$f":"'Group Information'!A3","v":"For the Year Ending "}]
[]
[]
[]
[null,"INPUT","STATEMENT SOURCE","SCORE"]
[]
[null,"Corporate Governance - 1","Corp Gov",{"$f":"'Corp Gov'!C11","v":0}]
[null,"Corporate Governance - 2","Corp Gov",{"$f":"'Corp Gov'!C12","v":0}]
[null,"Corporate Governance - 3","Corp Gov",{"$f":"'Corp Gov'!C13","v":0}]
[null,"Corporate Governance - 4","Corp Gov",{"$f":"'Corp Gov'!C14","v":0}]
[null,"Corporate Governance - 5","Corp Gov",{"$f":"'Corp Gov'!C15","v":0}]
[null,"Corporate Governance - 6","Corp Gov",{"$f":"'Corp Gov'!C16","v":0}]
[null,"Risk Management - 1","Risk Man",{"$f":"'Risk Man'!C11","v":0}]
[null,"Risk Management - 2","Risk Man",{"$f":"'Risk Man'!C12","v":0}]
[null,"Risk Management - 3","Risk Man",{"$f":"'Risk Man'!C13","v":0}]
[null,"Risk Management - 4","Risk Man",{"$f":"'Risk Man'!C14","v":0}]
[null,"Risk Management - 5","Risk Man",{"$f":"'Risk Man'!C15","v":0}]
[null,"Risk Management - 6","Risk Man",{"$f":"'Risk Man'!C16","v":0}]
[null,"Risk Management - 7","Risk Man",{"$f":"'Risk Man'!C17","v":0}]
[null,"Risk Identification"]
[null,"Fraud - Stage 1","Identification",{"$f":"Identification!E15","v":0}]
[null,"Fraud - Stage 2","Identification",{"$f":"Identification!E16","v":0}]
[null,"Fraud - Stage 3","Identification",{"$f":"Identification!E17","v":0}]
[null,"Fraud - Stage 4","Identification",{"$f":"Identification!E18","v":0}]
[null,"Human Resources - Stage 1","Identification",{"$f":"Identification!F15","v":0}]
[null,"Human Resources - Stage 2","Identification",{"$f":"Identification!F16","v":0}]
[null,"Human Resources - Stage 3","Identification",{"$f":"Identification!F17","v":0}]
[null,"Human Resources - Stage 4","Identification",{"$f":"Identification!F18","v":0}]
[null,"Outsourcing - Stage 1","Identification",{"$f":"Identification!G15","v":0}]
[null,"Outsourcing - Stage 2","Identification",{"$f":"Identification!G16","v":0}]
[null,"Outsourcing - Stage 3","Identification",{"$f":"Identification!G17","v":0}]
[null,"Outsourcing - Stage 4","Identification",{"$f":"Identification!G18","v":0}]
[null,"Distribution Channels - Stage 1","Identification",{"$f":"Identification!H15","v":0}]
[null,"Distribution Channels - Stage 2","Identification",{"$f":"Identification!H16","v":0}]
[null,"Distribution Channels - Stage 3","Identification",{"$f":"Identification!H17","v":0}]
[null,"Distribution Channels - Stage 4","Identification",{"$f":"Identification!H18","v":0}]
[null,"Business Processes - Stage 1","Identification",{"$f":"Identification!I15","v":0}]
[null,"Business Processes - Stage 2","Identification",{"$f":"Identification!I16","v":0}]
[null,"Business Processes - Stage 3","Identification",{"$f":"Identification!I17","v":0}]
[null,"Business Processes - Stage 4","Identification",{"$f":"Identification!I18","v":0}]
[null,"Business Continuity - Stage 1","Identification",{"$f":"Identification!J15","v":0}]
[null,"Business Continuity - Stage 2","Identification",{"$f":"Identification!J16","v":0}]
[null,"Business Continuity - Stage 3","Identification",{"$f":"Identification!J17","v":0}]
[null,"Business Continuity - Stage 4","Identification",{"$f":"Identification!J18","v":0}]
[null,"Information Systems - Stage 1","Identification",{"$f":"Identification!K15","v":0}]
[null,"Information Systems - Stage 2","Identification",{"$f":"Identification!K16","v":0}]
[null,"Information Systems - Stage 3","Identification",{"$f":"Identification!K17","v":0}]
[null,"Information Systems - Stage 4","Identification",{"$f":"Identification!K18","v":0}]
[null,"Compliance - Stage 1","Identification",{"$f":"Identification!L15","v":0}]
[null,"Compliance - Stage 2","Identification",{"$f":"Identification!L16","v":0}]
[null,"Compliance - Stage 3","Identification",{"$f":"Identification!L17","v":0}]
[null,"Compliance - Stage 4","Identification",{"$f":"Identification!L18","v":0}]
[null,"Risk Measurement"]
[null,"Fraud - Stage 1","Measurement",{"$f":"Measurement!E15","v":0}]
[null,"Fraud - Stage 2","Measurement",{"$f":"Measurement!E16","v":0}]
[null,"Fraud - Stage 3","Measurement",{"$f":"Measurement!E17","v":0}]
[null,"Fraud - Stage 4","Measurement",{"$f":"Measurement!E18","v":0}]
[null,"Human Resources - Stage 1","Measurement",{"$f":"Measurement!F15","v":0}]
[null,"Human Resources - Stage 2","Measurement",{"$f":"Measurement!F16","v":0}]
[null,"Human Resources - Stage 3","Measurement",{"$f":"Measurement!F17","v":0}]
[null,"Human Resources - Stage 4","Measurement",{"$f":"Measurement!F18","v":0}]
[null,"Outsourcing - Stage 1","Measurement",{"$f":"Measurement!G15","v":0}]
[null,"Outsourcing - Stage 2","Measurement",{"$f":"Measurement!G16","v":0}]
[null,"Outsourcing - Stage 3","Measurement",{"$f":"Measurement!G17","v":0}]
[null,"Outsourcing - Stage 4","Measurement",{"$f":"Measurement!G18","v":0}]
[null,"Distribution Channels - Stage 1","Measurement",{"$f":"Measurement!H15","v":0}]
[null,"Distribution Channels - Stage 2","Measurement",{"$f":"Measurement!H16","v":0}]
[null,"Distribution Channels - Stage 3","Measurement",{"$f":"Measurement!H17","v":0}]
[null,"Distribution Channels - Stage 4","Measurement",{"$f":"Measurement!H18","v":0}]
[null,"Business Processes - Stage 1","Measurement",{"$f":"Measurement!I15","v":0}]
[null,"Business Processes - Stage 2","Measurement",{"$f":"Measurement!I16","v":0}]
[null,"Business Processes - Stage 3","Measurement",{"$f":"Measurement!I17","v":0}]
[null,"Business Processes - Stage 4","Measurement",{"$f":"Measurement!I18","v":0}]
[null,"Business Continuity - Stage 1","Measurement",{"$f":"Measurement!J15","v":0}]
[null,"Business Continuity - Stage 2","Measurement",{"$f":"Measurement!J16","v":0}]
[null,"Business Continuity - Stage 3","Measurement",{"$f":"Measurement!J17","v":0}]
[null,"Business Continuity - Stage 4","Measurement",{"$f":"Measurement!J18","v":0}]
[null,"Information Systems - Stage 1","Measurement",{"$f":"Measurement!K15","v":0}]
[null,"Information Systems - Stage 2","Measurement",{"$f":"Measurement!K16","v":0}]
[null,"Information Systems - Stage 3","Measurement",{"$f":"Measurement!K17","v":0}]
[null,"Information Systems - Stage 4","Measurement",{"$f":"Measurement!K18","v":0}]
[null,"Compliance - Stage 1","Measurement",{"$f":"Measurement!L15","v":0}]
[null,"Compliance - Stage 2","Measurement",{"$f":"Measurement!L16","v":0}]
[null,"Compliance - Stage 3","Measurement",{"$f":"Measurement!L17","v":0}]
[null,"Compliance - Stage 4","Measurement",{"$f":"Measurement!L18","v":0}]
[null,"Risk Response"]
[null,"Fraud - Stage 1","Response",{"$f":"Response!E15","v":0}]
[null,"Fraud - Stage 2","Response",{"$f":"Response!E16","v":0}]
[null,"Fraud - Stage 3","Response",{"$f":"Response!E17","v":0}]
[null,"Fraud - Stage 4","Response",{"$f":"Response!E18","v":0}]
[null,"Human Resources - Stage 1","Response",{"$f":"Response!F15","v":0}]
[null,"Human Resources - Stage 2","Response",{"$f":"Response!F16","v":0}]
[null,"Human Resources - Stage 3","Response",{"$f":"Response!F17","v":0}]
[null,"Human Resources - Stage 4","Response",{"$f":"Response!F18","v":0}]
[null,"Outsourcing - Stage 1","Response",{"$f":"Response!G15","v":0}]
[null,"Outsourcing - Stage 2","Response",{"$f":"Response!G16","v":0}]
[null,"Outsourcing - Stage 3","Response",{"$f":"Response!G17","v":0}]
[null,"Outsourcing - Stage 4","Response",{"$f":"Response!G18","v":0}]
[null,"Distribution Channels - Stage 1","Response",{"$f":"Response!H15","v":0}]
[null,"Distribution Channels - Stage 2","Response",{"$f":"Response!H16","v":0}]
[null,"Distribution Channels - Stage 3","Response",{"$f":"Response!H17","v":0}]
[null,"Distribution Channels - Stage 4","Response",{"$f":"Response!H18","v":0}]
[null,"Business Processes - Stage 1","Response",{"$f":"Response!I15","v":0}]
[null,"Business Processes - Stage 2","Response",{"$f":"Response!I16","v":0}]
[null,"Business Processes - Stage 3","Response",{"$f":"Response!I17","v":0}]
[null,"Business Processes - Stage 4","Response",{"$f":"Response!I18","v":0}]
[null,"Business Continuity - Stage 1","Response",{"$f":"Response!J15","v":0}]
[null,"Business Continuity - Stage 2","Response",{"$f":"Response!J16","v":0}]
[null,"Business Continuity - Stage 3","Response",{"$f":"Response!J17","v":0}]
[null,"Business Continuity - Stage 4","Response",{"$f":"Response!J18","v":0}]
[null,"Information Systems - Stage 1","Response",{"$f":"Response!K15","v":0}]
[null,"Information Systems - Stage 2","Response",{"$f":"Response!K16","v":0}]
[null,"Information Systems - Stage 3","Response",{"$f":"Response!K17","v":0}]
[null,"Information Systems - Stage 4","Response",{"$f":"Response!K18","v":0}]
[null,"Compliance - Stage 1","Response",{"$f":"Response!L15","v":0}]
[null,"Compliance - Stage 2","Response",{"$f":"Response!L16","v":0}]
[null,"Compliance - Stage 3","Response",{"$f":"Response!L17","v":0}]
[null,"Compliance - Stage 4","Response",{"$f":"Response!L18","v":0}]
[null,"Risk Monitoring & Reporting"]
[null,"Fraud - Stage 1","Monitoring & Reporting",{"$f":"'Monitoring & Reporting'!E15","v":0}]
[null,"Fraud - Stage 2","Monitoring & Reporting",{"$f":"'Monitoring & Reporting'!E16","v":0}]
[null,"Fraud - Stage 3","Monitoring & Reporting",{"$f":"'Monitoring & Reporting'!E17","v":0}]
[null,"Fraud - Stage 4","Monitoring & Reporting",{"$f":"'Monitoring & Reporting'!E18","v":0}]
[null,"Human Resources - Stage 1","Monitoring & Reporting",{"$f":"'Monitoring & Reporting'!F15","v":0}]
[null,"Human Resources - Stage 2","Monitoring & Reporting",{"$f":"'Monitoring & Reporting'!F16","v":0}]
[null,"Human Resources - Stage 3","Monitoring & Reporting",{"$f":"'Monitoring & Reporting'!F17","v":0}]
[null,"Human Resources - Stage 4","Monitoring & Reporting",{"$f":"'Monitoring & Reporting'!F18","v":0}]
[null,"Outsourcing - Stage 1","Monitoring & Reporting",{"$f":"'Monitoring & Reporting'!G15","v":0}]
[null,"Outsourcing - Stage 2","Monitoring & Reporting",{"$f":"'Monitoring & Reporting'!G16","v":0}]
[null,"Outsourcing - Stage 3","Monitoring & Reporting",{"$f":"'Monitoring & Reporting'!G17","v":0}]
[null,"Outsourcing - Stage 4","Monitoring & Reporting",{"$f":"'Monitoring & Reporting'!G18","v":0}]
[null,"Distribution Channels - Stage 1","Monitoring & Reporting",{"$f":"'Monitoring & Reporting'!H15","v":0}]
[null,"Distribution Channels - Stage 2","Monitoring & Reporting",{"$f":"'Monitoring & Reporting'!H16","v":0}]
[null,"Distribution Channels - Stage 3","Monitoring & Reporting",{"$f":"'Monitoring & Reporting'!H17","v":0}]
[null,"Distribution Channels - Stage 4","Monitoring & Reporting",{"$f":"'Monitoring & Reporting'!H18","v":0}]
[null,"Business Processes - Stage 1","Monitoring & Reporting",{"$f":"'Monitoring & Reporting'!I15","v":0}]
[null,"Business Processes - Stage 2","Monitoring & Reporting",{"$f":"'Monitoring & Reporting'!I16","v":0}]
[null,"Business Processes - Stage 3","Monitoring & Reporting",{"$f":"'Monitoring & Reporting'!I17","v":0}]
[null,"Business Processes - Stage 4","Monitoring & Reporting",{"$f":"'Monitoring & Reporting'!I18","v":0}]
[null,"Business Continuity - Stage 1","Monitoring & Reporting",{"$f":"'Monitoring & Reporting'!J15","v":0}]
[null,"Business Continuity - Stage 2","Monitoring & Reporting",{"$f":"'Monitoring & Reporting'!J16","v":0}]
[null,"Business Continuity - Stage 3","Monitoring & Reporting",{"$f":"'Monitoring & Reporting'!J17","v":0}]
[null,"Business Continuity - Stage 4","Monitoring & Reporting",{"$f":"'Monitoring & Reporting'!J18","v":0}]
[null,"Information Systems - Stage 1","Monitoring & Reporting",{"$f":"'Monitoring & Reporting'!K15","v":0}]
[null,"Information Systems - Stage 2","Monitoring & Reporting",{"$f":"'Monitoring & Reporting'!K16","v":0}]
[null,"Information Systems - Stage 3","Monitoring & Reporting",{"$f":"'Monitoring & Reporting'!K17","v":0}]
[null,"Information Systems - Stage 4","Monitoring & Reporting",{"$f":"'Monitoring & Reporting'!K18","v":0}]
[null,"Compliance - Stage 1","Monitoring & Reporting",{"$f":"'Monitoring & Reporting'!L15","v":0}]
[null,"Compliance - Stage 2","Monitoring & Reporting",{"$f":"'Monitoring & Reporting'!L16","v":0}]
[null,"Compliance - Stage 3","Monitoring & Reporting",{"$f":"'Monitoring & Reporting'!L17","v":0}]
[null,"Compliance - Stage 4","Monitoring & Reporting",{"$f":"'Monitoring & Reporting'!L18","v":0}]

{"sheet":"prt_res","index":138,"n_rows":54,"n_cols":4,"rows_kept":54,"cut":false,"hidden":true,"merged":[]}
[true,"Company_Information_Print",null,true]
[true,"Summary_Print",null,false]
[true,"Fixed_Income_Print"]
[true,"Equity_Print"]
[true,"Interest_Rate_Print"]
[true,"Credit_Print"]
[true,"Premium_Print"]
[true,"Reserve_Print"]
[true,"Cat_Print"]
[]
[]
[]
[]
[]
[]
[]
[]
[]
[]
[]
[]
[]
[]
[]
[]
[]
[]
[]
[]
[]
[]
[]
[]
[]
[]
[]
[]
[]
[]
[]
[]
[]
[]
[]
[]
[]
[]
[]
[]
[]
[]
[]
[]
[null,"a"]

{"sheet":"HiddenFormulas","index":139,"n_rows":360,"n_cols":30,"rows_kept":360,"cut":false,"hidden":true,"merged":[]}
["Summary",null,null,"Fixed Income Investments",null,null,"Equity Investments",null,null,"Interest Rate-Liquidity Risk",null,null,"Credit Risk",null,null,"Premium Risk",null,null,"Reserve Risk",null,null,"Catastrophe Risk",null,null,"LT Other Insurance Risk",null,null,"LT Variable Annuity Gte Risk"]
[{"$f":"IFERROR(SUM(C2:AD2),999)","v":0},null,{"$f":"IFERROR(SUM(C3:C360),999)","v":0},null,null,{"$f":"IFERROR(SUM(F3:F168),999)","v":0},null,null,{"$f":"IFERROR(SUM(I3:I72),999)","v":0},null,null,{"$f":"IFERROR(SUM(L3:L20),999)","v":0},null,null,{"$f":"IFERROR(SUM(O3:O60),999)","v":0},null,null,{"$f":"IFERROR(SUM(R3:R143),999)","v":0},null,null,{"$f":"IFERROR(SUM(U3:U138),999)","v":0},null,null,{"$f":"IFERROR(SUM(X3:X16),999)","v":0},null,null,{"$f":"IFERROR(SUM(AA3:AA52),999)","v":0},null,null,{"$f":"IFERROR(SUM(AD3:AD310),999)","v":0}]
[{"$f":"IF(_xlfn.FORMULATEXT(INDIRECT(AB309))=AC309,0,1)","v":0},null,360,null,null,168,null,null,72,null,null,20,null,null,60,null,null,143,null,null,138,null,null,16,null,null,52,null,null,310]
[{"$f":"ADDRESS(1,2,1,1,$A$1)","v":"Summary!$B$1"},"='Group Information'!C9",{"$f":"IF(_xlfn.FORMULATEXT(INDIRECT(A4))=B4,0,1)","v":0},{"$f":"ADDRESS(1,1,1,1,$D$1)","v":"'Fixed Income Investments'!$A$1"},"='Group Information'!C9",{"$f":"IF(_xlfn.FORMULATEXT(INDIRECT(D4))=E4,0,1)","v":0},{"$f":"ADDRESS(3,2,1,1,$G$1)","v":"'Equity Investments'!$B$3"},"='Group Information'!C3",{"$f":"IF(_xlfn.FORMULATEXT(INDIRECT(G4))=H4,0,1)","v":0},{"$f":"ADDRESS(1,1,1,1,$J$1)","v":"'Interest Rate-Liquidity Risk'!$A$1"},"='Group Information'!C9",{"$f":"IF(_xlfn.FORMULATEXT(INDIRECT(J4))=K4,0,1)","v":0},{"$f":"ADDRESS(1,1,1,1,$M$1)","v":"'Credit Risk'!$A$1"},"='Group Information'!C9",{"$f":"IF(_xlfn.FORMULATEXT(INDIRECT(M4))=N4,0,1)","v":0},{"$f":"ADDRESS(1,1,1,1,$P$1)","v":"'Premium Risk'!$A$1"},"='Group Information'!C9",{"$f":"IF(_xlfn.FORMULATEXT(INDIRECT(P4))=Q4,0,1)","v":0},{"$f":"ADDRESS(1,1,1,1,$S$1)","v":"'Reserve Risk'!$A$1"},"='Group Information'!C9",{"$f":"IF(_xlfn.FORMULATEXT(INDIRECT(S4))=T4,0,1)","v":0},{"$f":"ADDRESS(1,1,1,1,$V$1)","v":"'Catastrophe Risk'!$A$1"},"='Group Information'!C9",{"$f":"IF(_xlfn.FORMULATEXT(INDIRECT(V4))=W4,0,1)","v":0},{"$f":"ADDRESS(1,1,1,1,$Y$1)","v":"'LT Other Insurance Risk'!$A$1"},"='Group Information'!C9",{"$f":"IF(_xlfn.FORMULATEXT(INDIRECT(Y4))=Z4,0,1)","v":0},{"$f":"ADDRESS(1,1,1,1,$AB$1)","v":"'LT Variable Annuity Gte Risk'!$A$1"},"='Group Information'!C9",{"$f":"IF(_xlfn.FORMULATEXT(INDIRECT(AB4))=AC4,0,1)","v":0}]
[{"$f":"ADDRESS(2,2,1,1,$A$1)","v":"Summary!$B$2"},"='Group Information'!C7",0,{"$f":"ADDRESS(3,2,1,1,$D$1)","v":"'Fixed Income Investments'!$B$3"},"='Group Information'!C3",{"$f":"IF(_xlfn.FORMULATEXT(INDIRECT(D5))=E5,0,1)","v":0},{"$f":"ADDRESS(11,4,1,1,$G$1)","v":"'Equity Investments'!$D$11"},"='Schedule II (EBS)'!D41+'Schedule IIA (EBS)'!D41",{"$f":"IF(_xlfn.FORMULATEXT(INDIRECT(G5))=H5,0,1)","v":0},{"$f":"ADDRESS(3,2,1,1,$J$1)","v":"'Interest Rate-Liquidity Risk'!$B$3"},"='Group Information'!C3",{"$f":"IF(_xlfn.FORMULATEXT(INDIRECT(J5))=K5,0,1)","v":0},{"$f":"ADDRESS(3,2,1,1,$M$1)","v":"'Credit Risk'!$B$3"},"='Group Information'!C3",{"$f":"IF(_xlfn.FORMULATEXT(INDIRECT(M5))=N5,0,1)","v":0},{"$f":"ADDRESS(3,2,1,1,$P$1)","v":"'Premium Risk'!$B$3"},"='Group Information'!C3",{"$f":"IF(_xlfn.FORMULATEXT(INDIRECT(P5))=Q5,0,1)","v":0},{"$f":"ADDRESS(3,2,1,1,$S$1)","v":"'Reserve Risk'!$B$3"},"='Group Information'!C3",{"$f":"IF(_xlfn.FORMULATEXT(INDIRECT(S5))=T5,0,1)","v":0},{"$f":"ADDRESS(2,3,1,1,$V$1)","v":"'Catastrophe Risk'!$C$2"},"='Group Information'!C3",{"$f":"IF(_xlfn.FORMULATEXT(INDIRECT(V5))=W5,0,1)","v":0},{"$f":"ADDRESS(3,1,1,1,$Y$1)","v":"'LT Other Insurance Risk'!$A$3"},"='Group Information'!C3",{"$f":"IF(_xlfn.FORMULATEXT(INDIRECT(Y5))=Z5,0,1)","v":0},{"$f":"ADDRESS(3,1,1,1,$AB$1)","v":"'LT Variable Annuity Gte Risk'!$A$3"},"='Group Information'!C3",{"$f":"IF(_xlfn.FORMULATEXT(INDIRECT(AB5))=AC5,0,1)","v":0}]
[{"$f":"ADDRESS(4,2,1,1,$A$1)","v":"Summary!$B$4"},"=\"For the Year Ending \"",0,{"$f":"ADDRESS(12,4,1,1,$D$1)","v":"'Fixed Income Investments'!$D$12"},"=+'Schedule II (EBS)'!D12+'Schedule IIA (EBS)'!D12",{"$f":"IF(_xlfn.FORMULATEXT(INDIRECT(D6))=E6,0,1)","v":0},{"$f":"ADDRESS(11,5,1,1,$G$1)","v":"'Equity Investments'!$E$11"},0.14399999999999999,{"$f":"IF(INDIRECT(G6)=H6,0,1)","v":0},{"$f":"ADDRESS(10,4,1,1,$J$1)","v":"'Interest Rate-Liquidity Risk'!$D$10"},"=SUM('Schedule IIB (EBS)'!X13:X21)+SUM('Schedule IIC (EBS)'!X13:X21)",{"$f":"IF(_xlfn.FORMULATEXT(INDIRECT(J6))=K6,0,1)","v":0},{"$f":"ADDRESS(11,4,1,1,$M$1)","v":"'Credit Risk'!$D$11"},"='Form 1EBS'!F61",{"$f":"IF(_xlfn.FORMULATEXT(INDIRECT(M6))=N6,0,1)","v":0},{"$f":"ADDRESS(11,4,1,1,$P$1)","v":"'Premium Risk'!$D$11"},"=+'Schedule IVA'!M11",{"$f":"IF(_xlfn.FORMULATEXT(INDIRECT(P6))=Q6,0,1)","v":0},{"$f":"ADDRESS(11,4,1,1,$S$1)","v":"'Reserve Risk'!$D$11"},"=+'Schedule III (EBS)'!D10",{"$f":"IF(_xlfn.FORMULATEXT(INDIRECT(S6))=T6,0,1)","v":0},{"$f":"ADDRESS(6,5,1,1,$V$1)","v":"'Catastrophe Risk'!$E$6"},"='Schedule V'!F18",{"$f":"IF(_xlfn.FORMULATEXT(INDIRECT(V6))=W6,0,1)","v":0},{"$f":"ADDRESS(9,6,1,1,$Y$1)","v":"'LT Other Insurance Risk'!$F$9"},"='Schedule VII (EBS)'!F10",{"$f":"IF(_xlfn.FORMULATEXT(INDIRECT(Y6))=Z6,0,1)","v":0},{"$f":"ADDRESS(14,5,1,1,$AB$1)","v":"'LT Variable Annuity Gte Risk'!$E$14"},"='Schedule VIII (EBS)'!H13",{"$f":"IF(_xlfn.FORMULATEXT(INDIRECT(AB6))=AC6,0,1)","v":0}]
[{"$f":"ADDRESS(4,4,1,1,$A$1)","v":"Summary!$D$4"},"=TEXT('Group Information'!C3,\"dd mmmm yyyy\")",0,{"$f":"ADDRESS(12,5,1,1,$D$1)","v":"'Fixed Income Investments'!$E$12"},0,{"$f":"IF(INDIRECT(D7)=E7,0,1)","v":0},{"$f":"ADDRESS(11,6,1,1,$G$1)","v":"'Equity Investments'!$F$11"},"=IF($D$11<0,0,$D$11*$E$11)",{"$f":"IF(_xlfn.FORMULATEXT(INDIRECT(G7))=H7,0,1)","v":0},{"$f":"ADDRESS(10,5,1,1,$J$1)","v":"'Interest Rate-Liquidity Risk'!$E$10"},"=IF('Schedule V'!$F$12-'Schedule V'!$F$14>=1,'Schedule V'!$F$12-'Schedule V'!$F$14,IF('Schedule V'!$F$14-'Schedule V'!$F$12>=1,'Schedule V'!$F$14-'Schedule V'!$F$12,1))",{"$f":"IF(_xlfn.FORMULATEXT(INDIRECT(J7))=K7,0,1)","v":0},{"$f":"ADDRESS(11,5,1,1,$M$1)","v":"'Credit Risk'!$E$11"},0.05,{"$f":"IF(INDIRECT(M7)=N7,0,1)","v":0},{"$f":"ADDRESS(11,5,1,1,$P$1)","v":"'Premium Risk'!$E$11"},"=+'Schedule IVA'!Q11",{"$f":"IF(_xlfn.FORMULATEXT(INDIRECT(P7))=Q7,0,1)","v":0},{"$f":"ADDRESS(11,5,1,1,$S$1)","v":"'Reserve Risk'!$E$11"},"='Schedule III (EBS)'!F10",{"$f":"IF(_xlfn.FORMULATEXT(INDIRECT(S7))=T7,0,1)","v":0},{"$f":"ADDRESS(8,5,1,1,$V$1)","v":"'Catastrophe Risk'!$E$8"},"='Schedule V'!F20",{"$f":"IF(_xlfn.FORMULATEXT(INDIRECT(V7))=W7,0,1)","v":0},{"$f":"ADDRESS(9,7,1,1,$Y$1)","v":"'LT Other Insurance Risk'!$G$9"},0.02,{"$f":"IF(INDIRECT(Y7)=Z7,0,1)","v":0},{"$f":"ADDRESS(14,6,1,1,$AB$1)","v":"'LT Variable Annuity Gte Risk'!$F$14"},2.5000000000000001E-3,{"$f":"IF(INDIRECT(AB7)=AC7,0,1)","v":0}]
[{"$f":"ADDRESS(5,2,1,1,$A$1)","v":"Summary!$B$5"},"=\"Expressed in \"",0,{"$f":"ADDRESS(12,6,1,1,$D$1)","v":"'Fixed Income Investments'!$F$12"},"=IF($D$12<0,0,$D$12*$E$12)",{"$f":"IF(_xlfn.FORMULATEXT(INDIRECT(D8))=E8,0,1)","v":0},{"$f":"ADDRESS(12,4,1,1,$G$1)","v":"'Equity Investments'!$D$12"},"='Schedule II (EBS)'!D42+'Schedule IIA (EBS)'!D42",{"$f":"IF(_xlfn.FORMULATEXT(INDIRECT(G8))=H8,0,1)","v":0},{"$f":"ADDRESS(10,6,1,1,$J$1)","v":"'Interest Rate-Liquidity Risk'!$F$10"},0.02,{"$f":"IF(INDIRECT(J8)=K8,0,1)","v":0},{"$f":"ADDRESS(11,6,1,1,$M$1)","v":"'Credit Risk'!$F$11"},"=IF($D$11<0,0,$D$11*$E$11)",{"$f":"IF(_xlfn.FORMULATEXT(INDIRECT(M8))=N8,0,1)","v":0},{"$f":"ADDRESS(11,6,1,1,$P$1)","v":"'Premium Risk'!$F$11"},"=+'Geographic Diversification'!H9",{"$f":"IF(_xlfn.FORMULATEXT(INDIRECT(P8))=Q8,0,1)","v":0},{"$f":"ADDRESS(11,6,1,1,$S$1)","v":"'Reserve Risk'!$F$11"},"=+'Geographic Diversification'!H40",{"$f":"IF(_xlfn.FORMULATEXT(INDIRECT(S8))=T8,0,1)","v":0},{"$f":"ADDRESS(10,5,1,1,$V$1)","v":"'Catastrophe Risk'!$E$10"},"='Schedule V'!F22",{"$f":"IF(_xlfn.FORMULATEXT(INDIRECT(V8))=W8,0,1)","v":0},{"$f":"ADDRESS(9,8,1,1,$Y$1)","v":"'LT Other Insurance Risk'!$H$9"},"=IF($F$9<0,0,$F$9*$G$9)",{"$f":"IF(_xlfn.FORMULATEXT(INDIRECT(Y8))=Z8,0,1)","v":0},{"$f":"ADDRESS(14,8,1,1,$AB$1)","v":"'LT Variable Annuity Gte Risk'!$H$14"},"='Schedule VIII (EBS)'!J13",{"$f":"IF(_xlfn.FORMULATEXT(INDIRECT(AB8))=AC8,0,1)","v":0}]
[{"$f":"ADDRESS(5,4,1,1,$A$1)","v":"Summary!$D$5"},"='Form 1EBS'!C4",0,{"$f":"ADDRESS(13,4,1,1,$D$1)","v":"'Fixed Income Investments'!$D$13"},"=+'Schedule II (EBS)'!D13+'Schedule IIA (EBS)'!D13",{"$f":"IF(_xlfn.FORMULATEXT(INDIRECT(D9))=E9,0,1)","v":0},{"$f":"ADDRESS(12,5,1,1,$G$1)","v":"'Equity Investments'!$E$12"},0.14399999999999999,{"$f":"IF(INDIRECT(G9)=H9,0,1)","v":0},{"$f":"ADDRESS(10,7,1,1,$J$1)","v":"'Interest Rate-Liquidity Risk'!$G$10"},"=IF($E$10<0,0,$D$10*$E$10*$F$10)",{"$f":"IF(_xlfn.FORMULATEXT(INDIRECT(J9))=K9,0,1)","v":0},{"$f":"ADDRESS(12,4,1,1,$M$1)","v":"'Credit Risk'!$D$12"},"='Form 1EBS'!F62-'Form 1EBS'!F225",{"$f":"IF(_xlfn.FORMULATEXT(INDIRECT(M9))=N9,0,1)","v":0},{"$f":"ADDRESS(11,7,1,1,$P$1)","v":"'Premium Risk'!$G$11"},0,{"$f":"IF(INDIRECT(P9)=Q9,0,1)","v":0},{"$f":"ADDRESS(11,7,1,1,$S$1)","v":"'Reserve Risk'!$G$11"},0.46158858246802098,{"$f":"IF(INDIRECT(S9)=T9,0,1)","v":0},{"$f":"ADDRESS(12,5,1,1,$V$1)","v":"'Catastrophe Risk'!$E$12"},0.4,{"$f":"IF(INDIRECT(V9)=W9,0,1)","v":0},{"$f":"ADDRESS(10,6,1,1,$Y$1)","v":"'LT Other Insurance Risk'!$F$10"},"='Schedule VII (EBS)'!F11",{"$f":"IF(_xlfn.FORMULATEXT(INDIRECT(Y9))=Z9,0,1)","v":0},{"$f":"ADDRESS(14,9,1,1,$AB$1)","v":"'LT Variable Annuity Gte Risk'!$I$14"},5.0000000000000001E-3,{"$f":"IF(INDIRECT(AB9)=AC9,0,1)","v":0}]
[{"$f":"ADDRESS(9,11,1,1,$A$1)","v":"Summary!$K$9"},"{=SQRT(MMULT(TRANSPOSE(J10:J14),MMULT('Correlation Matrix'!B7:F11,J10:J14)))}",0,{"$f":"ADDRESS(13,5,1,1,$D$1)","v":"'Fixed Income Investments'!$E$13"},4.0000000000000001E-3,{"$f":"IF(INDIRECT(D10)=E10,0,1)","v":0},{"$f":"ADDRESS(12,6,1,1,$G$1)","v":"'Equity Investments'!$F$12"},"=IF($D$12<0,0,$D$12*$E$12)",{"$f":"IF(_xlfn.FORMULATEXT(INDIRECT(G10))=H10,0,1)","v":0},{"$f":"ADDRESS(11,4,1,1,$J$1)","v":"'Interest Rate-Liquidity Risk'!$D$11"},"=SUM('Schedule IIB (EBS)'!X42:X49)+SUM('Schedule IIC (EBS)'!X42:X49)",{"$f":"IF(_xlfn.FORMULATEXT(INDIRECT(J10))=K10,0,1)","v":0},{"$f":"ADDRESS(12,5,1,1,$M$1)","v":"'Credit Risk'!$E$12"},0.1,{"$f":"IF(INDIRECT(M10)=N10,0,1)","v":0},{"$f":"ADDRESS(11,8,1,1,$P$1)","v":"'Premium Risk'!$H$11"},"=IF($F$11<0,0,$F$11*$G$11)",{"$f":"IF(_xlfn.FORMULATEXT(INDIRECT(P10))=Q10,0,1)","v":0},{"$f":"ADDRESS(11,8,1,1,$S$1)","v":"'Reserve Risk'!$H$11"},"=IF($F$11<0,0,$F$11*$G$11)",{"$f":"IF(_xlfn.FORMULATEXT(INDIRECT(S10))=T10,0,1)","v":0},{"$f":"ADDRESS(14,5,1,1,$V$1)","v":"'Catastrophe Risk'!$E$14"},"='Premium Risk'!E11",{"$f":"IF(_xlfn.FORMULATEXT(INDIRECT(V10))=W10,0,1)","v":0},{"$f":"ADDRESS(10,7,1,1,$Y$1)","v":"'LT Other Insurance Risk'!$G$10"},0.02,{"$f":"IF(INDIRECT(Y10)=Z10,0,1)","v":0},{"$f":"ADDRESS(14,11,1,1,$AB$1)","v":"'LT Variable Annuity Gte Risk'!$K$14"},"='Schedule VIII (EBS)'!L13",{"$f":"IF(_xlfn.FORMULATEXT(INDIRECT(AB10))=AC10,0,1)","v":0}]
[{"$f":"ADDRESS(9,13,1,1,$A$1)","v":"Summary!$M$9"},"{=SQRT(MMULT(TRANSPOSE(L10:L14),MMULT('Correlation Matrix'!B7:F11,L10:L14)))}",0,{"$f":"ADDRESS(13,6,1,1,$D$1)","v":"'Fixed Income Investments'!$F$13"},"=IF($D$13<0,0,$D$13*$E$13)",{"$f":"IF(_xlfn.FORMULATEXT(INDIRECT(D11))=E11,0,1)","v":0},{"$f":"ADDRESS(13,4,1,1,$G$1)","v":"'Equity Investments'!$D$13"},"='Schedule II (EBS)'!L41+'Schedule II (EBS)'!L42+'Schedule IIA (EBS)'!L41+'Schedule IIA (EBS)'!L42",{"$f":"IF(_xlfn.FORMULATEXT(INDIRECT(G11))=H11,0,1)","v":0},{"$f":"ADDRESS(11,5,1,1,$J$1)","v":"'Interest Rate-Liquidity Risk'!$E$11"},"=IF('Schedule V'!$F$12-'Schedule V'!$F$14>=1,'Schedule V'!$F$12-'Schedule V'!$F$14,IF('Schedule V'!$F$14-'Schedule V'!$F$12>=1,'Schedule V'!$F$14-'Schedule V'!$F$12,1))",{"$f":"IF(_xlfn.FORMULATEXT(INDIRECT(J11))=K11,0,1)","v":0},{"$f":"ADDRESS(12,6,1,1,$M$1)","v":"'Credit Risk'!$F$12"},"=$D$12*$E$12",{"$f":"IF(_xlfn.FORMULATEXT(INDIRECT(M11))=N11,0,1)","v":0},{"$f":"ADDRESS(12,4,1,1,$P$1)","v":"'Premium Risk'!$D$12"},"=+'Schedule IVA'!M12",{"$f":"IF(_xlfn.FORMULATEXT(INDIRECT(P11))=Q11,0,1)","v":0},{"$f":"ADDRESS(12,4,1,1,$S$1)","v":"'Reserve Risk'!$D$12"},"=+'Schedule III (EBS)'!D11",{"$f":"IF(_xlfn.FORMULATEXT(INDIRECT(S11))=T11,0,1)","v":0},{"$f":"ADDRESS(16,5,1,1,$V$1)","v":"'Catastrophe Risk'!$E$16"},"=$E$10/$E$12+IF($E$14>0,$E$14,0)",{"$f":"IF(_xlfn.FORMULATEXT(INDIRECT(V11))=W11,0,1)","v":0},{"$f":"ADDRESS(10,8,1,1,$Y$1)","v":"'LT Other Insurance Risk'!$H$10"},"=IF($F$10<0,0,$F$10*$G$10)",{"$f":"IF(_xlfn.FORMULATEXT(INDIRECT(Y11))=Z11,0,1)","v":0},{"$f":"ADDRESS(14,12,1,1,$AB$1)","v":"'LT Variable Annuity Gte Risk'!$L$14"},7.4999999999999997E-3,{"$f":"IF(INDIRECT(AB11)=AC11,0,1)","v":0}]
[{"$f":"ADDRESS(10,6,1,1,$A$1)","v":"Summary!$F$10"},"=ROUND('Fixed Income Investments'!F99,$M$152)",0,{"$f":"ADDRESS(14,4,1,1,$D$1)","v":"'Fixed Income Investments'!$D$14"},"=+'Schedule II (EBS)'!D14+'Schedule IIA (EBS)'!D14",{"$f":"IF(_xlfn.FORMULATEXT(INDIRECT(D12))=E12,0,1)","v":0},{"$f":"ADDRESS(13,5,1,1,$G$1)","v":"'Equity Investments'!$E$13"},0.14399999999999999,{"$f":"IF(INDIRECT(G12)=H12,0,1)","v":0},{"$f":"ADDRESS(11,6,1,1,$J$1)","v":"'Interest Rate-Liquidity Risk'!$F$11"},0.02,{"$f":"IF(INDIRECT(J12)=K12,0,1)","v":0},{"$f":"ADDRESS(14,4,1,1,$M$1)","v":"'Credit Risk'!$D$14"},"=SUM(D11:D12)",{"$f":"IF(_xlfn.FORMULATEXT(INDIRECT(M12))=N12,0,1)","v":0},{"$f":"ADDRESS(12,5,1,1,$P$1)","v":"'Premium Risk'!$E$12"},"=+'Schedule IVA'!Q12",{"$f":"IF(_xlfn.FORMULATEXT(INDIRECT(P12))=Q12,0,1)","v":0},{"$f":"ADDRESS(12,5,1,1,$S$1)","v":"'Reserve Risk'!$E$12"},"='Schedule III (EBS)'!F11",{"$f":"IF(_xlfn.FORMULATEXT(INDIRECT(S12))=T12,0,1)","v":0},{"$f":"ADDRESS(18,5,1,1,$V$1)","v":"'Catastrophe Risk'!$E$18"},0.1,{"$f":"IF(INDIRECT(V12)=W12,0,1)","v":0},{"$f":"ADDRESS(11,6,1,1,$Y$1)","v":"'LT Other Insurance Risk'!$F$11"},"='Schedule VII (EBS)'!F19",{"$f":"IF(_xlfn.FORMULATEXT(INDIRECT(Y12))=Z12,0,1)","v":0},{"$f":"ADDRESS(14,14,1,1,$AB$1)","v":"'LT Variable Annuity Gte Risk'!$N$14"},"='Schedule VIII (EBS)'!N13",{"$f":"IF(_xlfn.FORMULATEXT(INDIRECT(AB12))=AC12,0,1)","v":0}]
[{"$f":"ADDRESS(10,10,1,1,$A$1)","v":"Summary!$J$10"},"=ROUND('Fixed Income Investments (Rev.)'!I136,$M$152)",0,{"$f":"ADDRESS(14,5,1,1,$D$1)","v":"'Fixed Income Investments'!$E$14"},8.0000000000000002E-3,{"$f":"IF(INDIRECT(D13)=E13,0,1)","v":0},{"$f":"ADDRESS(13,6,1,1,$G$1)","v":"'Equity Investments'!$F$13"},"=IF($D$13<0,0,$D$13*$E$13)",{"$f":"IF(_xlfn.FORMULATEXT(INDIRECT(G13))=H13,0,1)","v":0},{"$f":"ADDRESS(11,7,1,1,$J$1)","v":"'Interest Rate-Liquidity Risk'!$G$11"},"=IF($E$11<0,0, $D$11*$E$11*$F$11)",{"$f":"IF(_xlfn.FORMULATEXT(INDIRECT(J13))=K13,0,1)","v":0},{"$f":"ADDRESS(14,6,1,1,$M$1)","v":"'Credit Risk'!$F$14"},"=IF(SUM(F11:F12)>=0,SUM(F11:F12),0)",{"$f":"IF(_xlfn.FORMULATEXT(INDIRECT(M13))=N13,0,1)","v":0},{"$f":"ADDRESS(12,6,1,1,$P$1)","v":"'Premium Risk'!$F$12"},"=+'Geographic Diversification'!H10",{"$f":"IF(_xlfn.FORMULATEXT(INDIRECT(P13))=Q13,0,1)","v":0},{"$f":"ADDRESS(12,6,1,1,$S$1)","v":"'Reserve Risk'!$F$12"},"=+'Geographic Diversification'!H41",{"$f":"IF(_xlfn.FORMULATEXT(INDIRECT(S13))=T13,0,1)","v":0},{"$f":"ADDRESS(20,5,1,1,$V$1)","v":"'Catastrophe Risk'!$E$20"},"=+'Schedule V'!F31",{"$f":"IF(_xlfn.FORMULATEXT(INDIRECT(V13))=W13,0,1)","v":0},{"$f":"ADDRESS(11,7,1,1,$Y$1)","v":"'LT Other Insurance Risk'!$G$11"},5.0000000000000001E-3,{"$f":"IF(INDIRECT(Y13)=Z13,0,1)","v":0},{"$f":"ADDRESS(14,15,1,1,$AB$1)","v":"'LT Variable Annuity Gte Risk'!$O$14"},0.04,{"$f":"IF(INDIRECT(AB13)=AC13,0,1)","v":0}]
[{"$f":"ADDRESS(10,12,1,1,$A$1)","v":"Summary!$L$10"},"=ROUND('Fixed Income Investments (Rev.)'!I136,$M$152)",0,{"$f":"ADDRESS(14,6,1,1,$D$1)","v":"'Fixed Income Investments'!$F$14"},"=IF($D$14<0,0,$D$14*$E$14)",{"$f":"IF(_xlfn.FORMULATEXT(INDIRECT(D14))=E14,0,1)","v":0},{"$f":"ADDRESS(15,4,1,1,$G$1)","v":"'Equity Investments'!$D$15"},"=SUM(D11:D13)",{"$f":"IF(_xlfn.FORMULATEXT(INDIRECT(G14))=H14,0,1)","v":0},{"$f":"ADDRESS(12,4,1,1,$J$1)","v":"'Interest Rate-Liquidity Risk'!$D$12"},"=SUM('Schedule IIB (EBS)'!X22:X25)+SUM('Schedule IIC (EBS)'!X22:X25)",{"$f":"IF(_xlfn.FORMULATEXT(INDIRECT(J14))=K14,0,1)","v":0},{"$f":"ADDRESS(18,4,1,1,$M$1)","v":"'Credit Risk'!$D$18"},"='Form 1EBS'!F41",{"$f":"IF(_xlfn.FORMULATEXT(INDIRECT(M14))=N14,0,1)","v":0},{"$f":"ADDRESS(12,7,1,1,$P$1)","v":"'Premium Risk'!$G$12"},0.497450025355053,{"$f":"IF(INDIRECT(P14)=Q14,0,1)","v":0},{"$f":"ADDRESS(12,7,1,1,$S$1)","v":"'Reserve Risk'!$G$12"},0.43844984238218698,{"$f":"IF(INDIRECT(S14)=T14,0,1)","v":0},{"$f":"ADDRESS(22,5,1,1,$V$1)","v":"'Catastrophe Risk'!$E$22"},"=MAX(0,((E6-E8)-(E20*98%))*E18)",{"$f":"IF(_xlfn.FORMULATEXT(INDIRECT(V14))=W14,0,1)","v":0},{"$f":"ADDRESS(11,8,1,1,$Y$1)","v":"'LT Other Insurance Risk'!$H$11"},"=IF($F$11<0,0,$F$11*$G$11)",{"$f":"IF(_xlfn.FORMULATEXT(INDIRECT(Y14))=Z14,0,1)","v":0},{"$f":"ADDRESS(14,17,1,1,$AB$1)","v":"'LT Variable Annuity Gte Risk'!$Q$14"},"=+'Schedule VIII (EBS)'!P13",{"$f":"IF(_xlfn.FORMULATEXT(INDIRECT(AB14))=AC14,0,1)","v":0}]
[{"$f":"ADDRESS(10,25,1,1,$A$1)","v":"Summary!$Y$10"},"=J10",0,{"$f":"ADDRESS(15,4,1,1,$D$1)","v":"'Fixed Income Investments'!$D$15"},"=+'Schedule II (EBS)'!D15+'Schedule IIA (EBS)'!D15",{"$f":"IF(_xlfn.FORMULATEXT(INDIRECT(D15))=E15,0,1)","v":0},{"$f":"ADDRESS(15,6,1,1,$G$1)","v":"'Equity Investments'!$F$15"},"=IF(SUM(F11:F13)>=0,SUM(F11:F13),0)",{"$f":"IF(_xlfn.FORMULATEXT(INDIRECT(G15))=H15,0,1)","v":0},{"$f":"ADDRESS(12,5,1,1,$J$1)","v":"'Interest Rate-Liquidity Risk'!$E$12"},"=IF('Schedule V'!$F$12-'Schedule V'!$F$14>=1,'Schedule V'!$F$12-'Schedule V'!$F$14,IF('Schedule V'!$F$14-'Schedule V'!$F$12>=1,'Schedule V'!$F$14-'Schedule V'!$F$12,1))",{"$f":"IF(_xlfn.FORMULATEXT(INDIRECT(J15))=K15,0,1)","v":0},{"$f":"ADDRESS(18,5,1,1,$M$1)","v":"'Credit Risk'!$E$18"},0.05,{"$f":"IF(INDIRECT(M15)=N15,0,1)","v":0},{"$f":"ADDRESS(12,8,1,1,$P$1)","v":"'Premium Risk'!$H$12"},"=IF($F$12<0,0,$F$12*$G$12)",{"$f":"IF(_xlfn.FORMULATEXT(INDIRECT(P15))=Q15,0,1)","v":0},{"$f":"ADDRESS(12,8,1,1,$S$1)","v":"'Reserve Risk'!$H$12"},"=IF($F$12<0,0,$F$12*$G$12)",{"$f":"IF(_xlfn.FORMULATEXT(INDIRECT(S15))=T15,0,1)","v":0},{"$f":"ADDRESS(24,5,1,1,$V$1)","v":"'Catastrophe Risk'!$E$24"},"=IF((E8-E16)>=0,E8-E16+E22,E22)",{"$f":"IF(_xlfn.FORMULATEXT(INDIRECT(V15))=W15,0,1)","v":0},{"$f":"ADDRESS(12,6,1,1,$Y$1)","v":"'LT Other Insurance Risk'!$F$12"},"='Schedule VII (EBS)'!F28",{"$f":"IF(_xlfn.FORMULATEXT(INDIRECT(Y15))=Z15,0,1)","v":0},{"$f":"ADDRESS(14,18,1,1,$AB$1)","v":"'LT Variable Annuity Gte Risk'!$R$14"},8.5000000000000006E-2,{"$f":"IF(INDIRECT(AB15)=AC15,0,1)","v":0}]
[{"$f":"ADDRESS(10,26,1,1,$A$1)","v":"Summary!$Z$10"},"=IF($K$35=0,1/16,Y10/$Y$29)",0,{"$f":"ADDRESS(15,5,1,1,$D$1)","v":"'Fixed Income Investments'!$E$15"},1.4999999999999999E-2,{"$f":"IF(INDIRECT(D16)=E16,0,1)","v":0},{"$f":"ADDRESS(20,4,1,1,$G$1)","v":"'Equity Investments'!$D$20"},"='Schedule II (EBS)'!H33+'Schedule IIA (EBS)'!H33",{"$f":"IF(_xlfn.FORMULATEXT(INDIRECT(G16))=H16,0,1)","v":0},{"$f":"ADDRESS(12,6,1,1,$J$1)","v":"'Interest Rate-Liquidity Risk'!$F$12"},0.02,{"$f":"IF(INDIRECT(J16)=K16,0,1)","v":0},{"$f":"ADDRESS(18,6,1,1,$M$1)","v":"'Credit Risk'!$F$18"},"=IF($D$18<0,0,$D$18*$E$18)",{"$f":"IF(_xlfn.FORMULATEXT(INDIRECT(M16))=N16,0,1)","v":0},{"$f":"ADDRESS(13,4,1,1,$P$1)","v":"'Premium Risk'!$D$13"},"=+'Schedule IVA'!M13",{"$f":"IF(_xlfn.FORMULATEXT(INDIRECT(P16))=Q16,0,1)","v":0},{"$f":"ADDRESS(13,4,1,1,$S$1)","v":"'Reserve Risk'!$D$13"},"=+'Schedule III (EBS)'!D12",{"$f":"IF(_xlfn.FORMULATEXT(INDIRECT(S16))=T16,0,1)","v":0},null,null,-16,{"$f":"ADDRESS(12,7,1,1,$Y$1)","v":"'LT Other Insurance Risk'!$G$12"},5.0000000000000001E-3,{"$f":"IF(INDIRECT(Y16)=Z16,0,1)","v":0},{"$f":"ADDRESS(14,20,1,1,$AB$1)","v":"'LT Variable Annuity Gte Risk'!$T$14"},"=+'Schedule VIII (EBS)'!R13",{"$f":"IF(_xlfn.FORMULATEXT(INDIRECT(AB16))=AC16,0,1)","v":0}]
[{"$f":"ADDRESS(10,27,1,1,$A$1)","v":"Summary!$AA$10"},"=L10",0,{"$f":"ADDRESS(15,6,1,1,$D$1)","v":"'Fixed Income Investments'!$F$15"},"=IF($D$15<0,0,$D$15*$E$15)",{"$f":"IF(_xlfn.FORMULATEXT(INDIRECT(D17))=E17,0,1)","v":0},{"$f":"ADDRESS(20,5,1,1,$G$1)","v":"'Equity Investments'!$E$20"},6.0000000000000001E-3,{"$f":"IF(INDIRECT(G17)=H17,0,1)","v":0},{"$f":"ADDRESS(12,7,1,1,$J$1)","v":"'Interest Rate-Liquidity Risk'!$G$12"},"=IF($E$12<0,0, $D$12*$E$12*$F$12)",{"$f":"IF(_xlfn.FORMULATEXT(INDIRECT(J17))=K17,0,1)","v":0},{"$f":"ADDRESS(19,4,1,1,$M$1)","v":"'Credit Risk'!$D$19"},"='Form 1EBS'!F58",{"$f":"IF(_xlfn.FORMULATEXT(INDIRECT(M17))=N17,0,1)","v":0},{"$f":"ADDRESS(13,5,1,1,$P$1)","v":"'Premium Risk'!$E$13"},"=+'Schedule IVA'!Q13",{"$f":"IF(_xlfn.FORMULATEXT(INDIRECT(P17))=Q17,0,1)","v":0},{"$f":"ADDRESS(13,5,1,1,$S$1)","v":"'Reserve Risk'!$E$13"},"='Schedule III (EBS)'!F12",{"$f":"IF(_xlfn.FORMULATEXT(INDIRECT(S17))=T17,0,1)","v":0},null,null,null,{"$f":"ADDRESS(12,8,1,1,$Y$1)","v":"'LT Other Insurance Risk'!$H$12"},"=IF($F$12<0,0,$F$12*$G$12)",{"$f":"IF(_xlfn.FORMULATEXT(INDIRECT(Y17))=Z17,0,1)","v":0},{"$f":"ADDRESS(14,21,1,1,$AB$1)","v":"'LT Variable Annuity Gte Risk'!$U$14"},0.13,{"$f":"IF(INDIRECT(AB17)=AC17,0,1)","v":0}]
[{"$f":"ADDRESS(10,28,1,1,$A$1)","v":"Summary!$AB$10"},"=IF($M$35=0,1/16,AA10/$AA$29)",0,{"$f":"ADDRESS(16,4,1,1,$D$1)","v":"'Fixed Income Investments'!$D$16"},"=+'Schedule II (EBS)'!D16+'Schedule IIA (EBS)'!D16",{"$f":"IF(_xlfn.FORMULATEXT(INDIRECT(D18))=E18,0,1)","v":0},{"$f":"ADDRESS(20,6,1,1,$G$1)","v":"'Equity Investments'!$F$20"},"=IF(D20<0,0,D20*E20)",{"$f":"IF(_xlfn.FORMULATEXT(INDIRECT(G18))=H18,0,1)","v":0},{"$f":"ADDRESS(14,4,1,1,$J$1)","v":"'Interest Rate-Liquidity Risk'!$D$14"},"=SUM(D10:D12)",{"$f":"IF(_xlfn.FORMULATEXT(INDIRECT(J18))=K18,0,1)","v":0},{"$f":"ADDRESS(19,5,1,1,$M$1)","v":"'Credit Risk'!$E$19"},2.5000000000000001E-2,{"$f":"IF(INDIRECT(M18)=N18,0,1)","v":0},{"$f":"ADDRESS(13,6,1,1,$P$1)","v":"'Premium Risk'!$F$13"},"=+'Geographic Diversification'!H11",{"$f":"IF(_xlfn.FORMULATEXT(INDIRECT(P18))=Q18,0,1)","v":0},{"$f":"ADDRESS(13,6,1,1,$S$1)","v":"'Reserve Risk'!$F$13"},"=+'Geographic Diversification'!H42",{"$f":"IF(_xlfn.FORMULATEXT(INDIRECT(S18))=T18,0,1)","v":0},null,null,null,{"$f":"ADDRESS(13,6,1,1,$Y$1)","v":"'LT Other Insurance Risk'!$F$13"},"='Schedule VII (EBS)'!F29",{"$f":"IF(_xlfn.FORMULATEXT(INDIRECT(Y18))=Z18,0,1)","v":0},{"$f":"ADDRESS(14,23,1,1,$AB$1)","v":"'LT Variable Annuity Gte Risk'!$W$14"},"=IF(ISERROR(OR(E14*F14+H14*I14+K14*L14,N14*O14+Q14*R14+T14*U14)),0,MAX(E14*F14+H14*I14+K14*L14,N14*O14+Q14*R14+T14*U14))",{"$f":"IF(_xlfn.FORMULATEXT(INDIRECT(AB18))=AC18,0,1)","v":0}]
[{"$f":"ADDRESS(10,30,1,1,$A$1)","v":"Summary!$AD$10"},"=(SUM(AB$10:AB10)/AB$29)+0.125",0,{"$f":"ADDRESS(16,5,1,1,$D$1)","v":"'Fixed Income Investments'!$E$16"},0.03,{"$f":"IF(INDIRECT(D19)=E19,0,1)","v":0},{"$f":"ADDRESS(21,4,1,1,$G$1)","v":"'Equity Investments'!$D$21"},"='Schedule II (EBS)'!H34+'Schedule IIA (EBS)'!H34",{"$f":"IF(_xlfn.FORMULATEXT(INDIRECT(G19))=H19,0,1)","v":0},{"$f":"ADDRESS(14,7,1,1,$J$1)","v":"'Interest Rate-Liquidity Risk'!$G$14"},"=IF(SUM(G10:G12)>=0,SUM(G10:G12),0)",{"$f":"IF(_xlfn.FORMULATEXT(INDIRECT(J19))=K19,0,1)","v":0},{"$f":"ADDRESS(19,6,1,1,$M$1)","v":"'Credit Risk'!$F$19"},"=IF($D$19<0,0,$D$19*$E$19)",{"$f":"IF(_xlfn.FORMULATEXT(INDIRECT(M19))=N19,0,1)","v":0},{"$f":"ADDRESS(13,7,1,1,$P$1)","v":"'Premium Risk'!$G$13"},0.51625715924082105,{"$f":"IF(INDIRECT(P19)=Q19,0,1)","v":0},{"$f":"ADDRESS(13,7,1,1,$S$1)","v":"'Reserve Risk'!$G$13"},0.49735573879029998,{"$f":"IF(INDIRECT(S19)=T19,0,1)","v":0},null,null,null,{"$f":"ADDRESS(13,7,1,1,$Y$1)","v":"'LT Other Insurance Risk'!$G$13"},5.0000000000000001E-3,{"$f":"IF(INDIRECT(Y19)=Z19,0,1)","v":0},{"$f":"ADDRESS(15,5,1,1,$AB$1)","v":"'LT Variable Annuity Gte Risk'!$E$15"},"=+'Schedule VIII (EBS)'!H31",{"$f":"IF(_xlfn.FORMULATEXT(INDIRECT(AB19))=AC19,0,1)","v":0}]
[{"$f":"ADDRESS(10,33,1,1,$A$1)","v":"Summary!$AG$10"},"=IF(AP10=\"\",IF(Test_Statistic<$AK$35,AJ10,IF(Test_Statistic<$AM$35,AL10,AN10)),AP10)",0,{"$f":"ADDRESS(16,6,1,1,$D$1)","v":"'Fixed Income Investments'!$F$16"},"=IF($D$16<0,0,$D$16*$E$16)",{"$f":"IF(_xlfn.FORMULATEXT(INDIRECT(D20))=E20,0,1)","v":0},{"$f":"ADDRESS(21,5,1,1,$G$1)","v":"'Equity Investments'!$E$21"},1.2E-2,{"$f":"IF(INDIRECT(G20)=H20,0,1)","v":0},null,null,-20,{"$f":"ADDRESS(20,4,1,1,$M$1)","v":"'Credit Risk'!$D$20"},"='Form 1EBS'!F49",{"$f":"IF(_xlfn.FORMULATEXT(INDIRECT(M20))=N20,0,1)","v":0},{"$f":"ADDRESS(13,8,1,1,$P$1)","v":"'Premium Risk'!$H$13"},"=IF($F$13<0,0,$F$13*$G$13)",{"$f":"IF(_xlfn.FORMULATEXT(INDIRECT(P20))=Q20,0,1)","v":0},{"$f":"ADDRESS(13,8,1,1,$S$1)","v":"'Reserve Risk'!$H$13"},"=IF($F$13<0,0,$F$13*$G$13)",{"$f":"IF(_xlfn.FORMULATEXT(INDIRECT(S20))=T20,0,1)","v":0},null,null,null,{"$f":"ADDRESS(13,8,1,1,$Y$1)","v":"'LT Other Insurance Risk'!$H$13"},"=IF($F$13<0,0,$F$13*$G$13)",{"$f":"IF(_xlfn.FORMULATEXT(INDIRECT(Y20))=Z20,0,1)","v":0},{"$f":"ADDRESS(15,6,1,1,$AB$1)","v":"'LT Variable Annuity Gte Risk'!$F$15"},2.5000000000000001E-3,{"$f":"IF(INDIRECT(AB20)=AC20,0,1)","v":0}]
[{"$f":"ADDRESS(10,34,1,1,$A$1)","v":"Summary!$AH$10"},"=IF(AQ10=\"\",IF(Test_Statistic<$AK$35,AK10,IF(Test_Statistic<$AM$35,AM10,AO10)),AQ10)",0,{"$f":"ADDRESS(17,4,1,1,$D$1)","v":"'Fixed Income Investments'!$D$17"},"=+'Schedule II (EBS)'!D17+'Schedule IIA (EBS)'!D17",{"$f":"IF(_xlfn.FORMULATEXT(INDIRECT(D21))=E21,0,1)","v":0},{"$f":"ADDRESS(21,6,1,1,$G$1)","v":"'Equity Investments'!$F$21"},"=IF(D21<0,0,D21*E21)",{"$f":"IF(_xlfn.FORMULATEXT(INDIRECT(G21))=H21,0,1)","v":0},null,null,null,{"$f":"ADDRESS(20,5,1,1,$M$1)","v":"'Credit Risk'!$E$20"},0,{"$f":"IF(INDIRECT(M21)=N21,0,1)","v":0},{"$f":"ADDRESS(14,4,1,1,$P$1)","v":"'Premium Risk'!$D$14"},"=+'Schedule IVA'!M14",{"$f":"IF(_xlfn.FORMULATEXT(INDIRECT(P21))=Q21,0,1)","v":0},{"$f":"ADDRESS(14,4,1,1,$S$1)","v":"'Reserve Risk'!$D$14"},"=+'Schedule III (EBS)'!D13",{"$f":"IF(_xlfn.FORMULATEXT(INDIRECT(S21))=T21,0,1)","v":0},null,null,null,{"$f":"ADDRESS(14,6,1,1,$Y$1)","v":"'LT Other Insurance Risk'!$F$14"},"='Schedule VII (EBS)'!F30",{"$f":"IF(_xlfn.FORMULATEXT(INDIRECT(Y21))=Z21,0,1)","v":0},{"$f":"ADDRESS(15,8,1,1,$AB$1)","v":"'LT Variable Annuity Gte Risk'!$H$15"},"='Schedule VIII (EBS)'!J31",{"$f":"IF(_xlfn.FORMULATEXT(INDIRECT(AB21))=AC21,0,1)","v":0}]
[{"$f":"ADDRESS(10,36,1,1,$A$1)","v":"Summary!$AJ$10"},"=IF(AD15>1,300,IF(AD15>0.6,260,240))",0,{"$f":"ADDRESS(17,5,1,1,$D$1)","v":"'Fixed Income Investments'!$E$17"},0.08,{"$f":"IF(INDIRECT(D22)=E22,0,1)","v":0},{"$f":"ADDRESS(22,4,1,1,$G$1)","v":"'Equity Investments'!$D$22"},"='Schedule II (EBS)'!H35+'Schedule IIA (EBS)'!H35",{"$f":"IF(_xlfn.FORMULATEXT(INDIRECT(G22))=H22,0,1)","v":0},null,null,null,{"$f":"ADDRESS(20,6,1,1,$M$1)","v":"'Credit Risk'!$F$20"},"=IF($D$20<0,0,$D$20*$E$20)",{"$f":"IF(_xlfn.FORMULATEXT(INDIRECT(M22))=N22,0,1)","v":0},{"$f":"ADDRESS(14,5,1,1,$P$1)","v":"'Premium Risk'!$E$14"},"=+'Schedule IVA'!Q14",{"$f":"IF(_xlfn.FORMULATEXT(INDIRECT(P22))=Q22,0,1)","v":0},{"$f":"ADDRESS(14,5,1,1,$S$1)","v":"'Reserve Risk'!$E$14"},"='Schedule III (EBS)'!F13",{"$f":"IF(_xlfn.FORMULATEXT(INDIRECT(S22))=T22,0,1)","v":0},null,null,null,{"$f":"ADDRESS(14,7,1,1,$Y$1)","v":"'LT Other Insurance Risk'!$G$14"},5.0000000000000001E-3,{"$f":"IF(INDIRECT(Y22)=Z22,0,1)","v":0},{"$f":"ADDRESS(15,9,1,1,$AB$1)","v":"'LT Variable Annuity Gte Risk'!$I$15"},5.0000000000000001E-3,{"$f":"IF(INDIRECT(AB22)=AC22,0,1)","v":0}]
[{"$f":"ADDRESS(10,37,1,1,$A$1)","v":"Summary!$AK$10"},"=IF(AD17>1,50,IF(AD15>1,20,IF(AD15>0.6,25,15)))",0,{"$f":"ADDRESS(17,6,1,1,$D$1)","v":"'Fixed Income Investments'!$F$17"},"=IF($D$17<0,0,$D$17*$E$17)",{"$f":"IF(_xlfn.FORMULATEXT(INDIRECT(D23))=E23,0,1)","v":0},{"$f":"ADDRESS(22,5,1,1,$G$1)","v":"'Equity Investments'!$E$22"},0.02,{"$f":"IF(INDIRECT(G23)=H23,0,1)","v":0},null,null,null,{"$f":"ADDRESS(22,4,1,1,$M$1)","v":"'Credit Risk'!$D$22"},"=SUM(D18:D20)",{"$f":"IF(_xlfn.FORMULATEXT(INDIRECT(M23))=N23,0,1)","v":0},{"$f":"ADDRESS(14,6,1,1,$P$1)","v":"'Premium Risk'!$F$14"},"=+'Geographic Diversification'!H12",{"$f":"IF(_xlfn.FORMULATEXT(INDIRECT(P23))=Q23,0,1)","v":0},{"$f":"ADDRESS(14,6,1,1,$S$1)","v":"'Reserve Risk'!$F$14"},"=+'Geographic Diversification'!H43",{"$f":"IF(_xlfn.FORMULATEXT(INDIRECT(S23))=T23,0,1)","v":0},null,null,null,{"$f":"ADDRESS(14,8,1,1,$Y$1)","v":"'LT Other Insurance Risk'!$H$14"},"=IF($F$14<0,0,$F$14*$G$14)",{"$f":"IF(_xlfn.FORMULATEXT(INDIRECT(Y23))=Z23,0,1)","v":0},{"$f":"ADDRESS(15,11,1,1,$AB$1)","v":"'LT Variable Annuity Gte Risk'!$K$15"},"='Schedule VIII (EBS)'!L31",{"$f":"IF(_xlfn.FORMULATEXT(INDIRECT(AB23))=AC23,0,1)","v":0}]
[{"$f":"ADDRESS(10,38,1,1,$A$1)","v":"Summary!$AL$10"},"=IF(Test_Statistic_2<1,300,300)",0,{"$f":"ADDRESS(18,4,1,1,$D$1)","v":"'Fixed Income Investments'!$D$18"},"=+'Schedule II (EBS)'!D18+'Schedule IIA (EBS)'!D18",{"$f":"IF(_xlfn.FORMULATEXT(INDIRECT(D24))=E24,0,1)","v":0},{"$f":"ADDRESS(22,6,1,1,$G$1)","v":"'Equity Investments'!$F$22"},"=IF(D22<0,0,D22*E22)",{"$f":"IF(_xlfn.FORMULATEXT(INDIRECT(G24))=H24,0,1)","v":0},null,null,null,{"$f":"ADDRESS(22,6,1,1,$M$1)","v":"'Credit Risk'!$F$22"},"=IF(SUM(F18:F20)>=0,SUM(F18:F20),0)",{"$f":"IF(_xlfn.FORMULATEXT(INDIRECT(M24))=N24,0,1)","v":0},{"$f":"ADDRESS(14,7,1,1,$P$1)","v":"'Premium Risk'!$G$14"},0.34115345724240698,{"$f":"IF(INDIRECT(P24)=Q24,0,1)","v":0},{"$f":"ADDRESS(14,7,1,1,$S$1)","v":"'Reserve Risk'!$G$14"},0.29666070682155399,{"$f":"IF(INDIRECT(S24)=T24,0,1)","v":0},null,null,null,{"$f":"ADDRESS(15,6,1,1,$Y$1)","v":"'LT Other Insurance Risk'!$F$15"},"='Schedule VII (EBS)'!F36",{"$f":"IF(_xlfn.FORMULATEXT(INDIRECT(Y24))=Z24,0,1)","v":0},{"$f":"ADDRESS(15,12,1,1,$AB$1)","v":"'LT Variable Annuity Gte Risk'!$L$15"},7.4999999999999997E-3,{"$f":"IF(INDIRECT(AB24)=AC24,0,1)","v":0}]
[{"$f":"ADDRESS(10,39,1,1,$A$1)","v":"Summary!$AM$10"},60,{"$f":"IF(INDIRECT(A25)=B25,0,1)","v":0},{"$f":"ADDRESS(18,5,1,1,$D$1)","v":"'Fixed Income Investments'!$E$18"},0.15,{"$f":"IF(INDIRECT(D25)=E25,0,1)","v":0},{"$f":"ADDRESS(23,4,1,1,$G$1)","v":"'Equity Investments'!$D$23"},"='Schedule II (EBS)'!H36+'Schedule IIA (EBS)'!H36",{"$f":"IF(_xlfn.FORMULATEXT(INDIRECT(G25))=H25,0,1)","v":0},null,null,null,{"$f":"ADDRESS(31,4,1,1,$M$1)","v":"'Credit Risk'!$D$31"},"=+'Schedule XVIII (EBS)'!R84",{"$f":"IF(_xlfn.FORMULATEXT(INDIRECT(M25))=N25,0,1)","v":0},{"$f":"ADDRESS(14,8,1,1,$P$1)","v":"'Premium Risk'!$H$14"},"=IF($F$14<0,0,$F$14*$G$14)",{"$f":"IF(_xlfn.FORMULATEXT(INDIRECT(P25))=Q25,0,1)","v":0},{"$f":"ADDRESS(14,8,1,1,$S$1)","v":"'Reserve Risk'!$H$14"},"=IF($F$14<0,0,$F$14*$G$14)",{"$f":"IF(_xlfn.FORMULATEXT(INDIRECT(S25))=T25,0,1)","v":0},null,null,null,{"$f":"ADDRESS(15,7,1,1,$Y$1)","v":"'LT Other Insurance Risk'!$G$15"},0.02,{"$f":"IF(INDIRECT(Y25)=Z25,0,1)","v":0},{"$f":"ADDRESS(15,23,1,1,$AB$1)","v":"'LT Variable Annuity Gte Risk'!$W$15"},"=IF(ISERROR(OR(E15*F15+H15*I15+K15*L15,N15*O15+Q15*R15+T15*U15)),0,MAX(E15*F15+H15*I15+K15*L15,N15*O15+Q15*R15+T15*U15))",{"$f":"IF(_xlfn.FORMULATEXT(INDIRECT(AB25))=AC25,0,1)","v":0}]
[{"$f":"ADDRESS(10,40,1,1,$A$1)","v":"Summary!$AN$10"},280,{"$f":"IF(INDIRECT(A26)=B26,0,1)","v":0},{"$f":"ADDRESS(18,6,1,1,$D$1)","v":"'Fixed Income Investments'!$F$18"},"=IF($D$18<0,0,$D$18*$E$18)",{"$f":"IF(_xlfn.FORMULATEXT(INDIRECT(D26))=E26,0,1)","v":0},{"$f":"ADDRESS(23,5,1,1,$G$1)","v":"'Equity Investments'!$E$23"},0.04,{"$f":"IF(INDIRECT(G26)=H26,0,1)","v":0},null,null,null,{"$f":"ADDRESS(31,5,1,1,$M$1)","v":"'Credit Risk'!$E$31"},0,{"$f":"IF(INDIRECT(M26)=N26,0,1)","v":0},{"$f":"ADDRESS(15,4,1,1,$P$1)","v":"'Premium Risk'!$D$15"},"=+'Schedule IVA'!M15",{"$f":"IF(_xlfn.FORMULATEXT(INDIRECT(P26))=Q26,0,1)","v":0},{"$f":"ADDRESS(15,4,1,1,$S$1)","v":"'Reserve Risk'!$D$15"},"=+'Schedule III (EBS)'!D14",{"$f":"IF(_xlfn.FORMULATEXT(INDIRECT(S26))=T26,0,1)","v":0},null,null,null,{"$f":"ADDRESS(15,8,1,1,$Y$1)","v":"'LT Other Insurance Risk'!$H$15"},"=IF($F$15<0,0,$F$15*$G$15)",{"$f":"IF(_xlfn.FORMULATEXT(INDIRECT(Y26))=Z26,0,1)","v":0},{"$f":"ADDRESS(18,5,1,1,$AB$1)","v":"'LT Variable Annuity Gte Risk'!$E$18"},"='Schedule VIII (EBS)'!H14",{"$f":"IF(_xlfn.FORMULATEXT(INDIRECT(AB26))=AC26,0,1)","v":0}]
[{"$f":"ADDRESS(10,41,1,1,$A$1)","v":"Summary!$AO$10"},60,{"$f":"IF(INDIRECT(A27)=B27,0,1)","v":0},{"$f":"ADDRESS(19,4,1,1,$D$1)","v":"'Fixed Income Investments'!$D$19"},"=+'Schedule II (EBS)'!D19+'Schedule IIA (EBS)'!D19",{"$f":"IF(_xlfn.FORMULATEXT(INDIRECT(D27))=E27,0,1)","v":0},{"$f":"ADDRESS(23,6,1,1,$G$1)","v":"'Equity Investments'!$F$23"},"=IF(D23<0,0,D23*E23)",{"$f":"IF(_xlfn.FORMULATEXT(INDIRECT(G27))=H27,0,1)","v":0},null,null,null,{"$f":"ADDRESS(31,6,1,1,$M$1)","v":"'Credit Risk'!$F$31"},"=MAX(0,(D31*E31))",{"$f":"IF(_xlfn.FORMULATEXT(INDIRECT(M27))=N27,0,1)","v":0},{"$f":"ADDRESS(15,5,1,1,$P$1)","v":"'Premium Risk'!$E$15"},"=+'Schedule IVA'!Q15",{"$f":"IF(_xlfn.FORMULATEXT(INDIRECT(P27))=Q27,0,1)","v":0},{"$f":"ADDRESS(15,5,1,1,$S$1)","v":"'Reserve Risk'!$E$15"},"='Schedule III (EBS)'!F14",{"$f":"IF(_xlfn.FORMULATEXT(INDIRECT(S27))=T27,0,1)","v":0},null,null,null,{"$f":"ADDRESS(16,6,1,1,$Y$1)","v":"'LT Other Insurance Risk'!$F$16"},"='Schedule VII (EBS)'!F37",{"$f":"IF(_xlfn.FORMULATEXT(INDIRECT(Y27))=Z27,0,1)","v":0},{"$f":"ADDRESS(18,6,1,1,$AB$1)","v":"'LT Variable Annuity Gte Risk'!$F$18"},7.4999999999999997E-3,{"$f":"IF(INDIRECT(AB27)=AC27,0,1)","v":0}]
[{"$f":"ADDRESS(11,6,1,1,$A$1)","v":"Summary!$F$11"},"=ROUND('Equity Investments'!F51,$M$152)",{"$f":"IF(_xlfn.FORMULATEXT(INDIRECT(A28))=B28,0,1)","v":0},{"$f":"ADDRESS(19,5,1,1,$D$1)","v":"'Fixed Income Investments'!$E$19"},0.26300000000000001,{"$f":"IF(INDIRECT(D28)=E28,0,1)","v":0},{"$f":"ADDRESS(24,4,1,1,$G$1)","v":"'Equity Investments'!$D$24"},"='Schedule II (EBS)'!H37+'Schedule IIA (EBS)'!H37",{"$f":"IF(_xlfn.FORMULATEXT(INDIRECT(G28))=H28,0,1)","v":0},null,null,null,{"$f":"ADDRESS(32,4,1,1,$M$1)","v":"'Credit Risk'!$D$32"},"=+'Schedule XVIII (EBS)'!R85",{"$f":"IF(_xlfn.FORMULATEXT(INDIRECT(M28))=N28,0,1)","v":0},{"$f":"ADDRESS(15,6,1,1,$P$1)","v":"'Premium Risk'!$F$15"},"=+'Geographic Diversification'!H13",{"$f":"IF(_xlfn.FORMULATEXT(INDIRECT(P28))=Q28,0,1)","v":0},{"$f":"ADDRESS(15,6,1,1,$S$1)","v":"'Reserve Risk'!$F$15"},"=+'Geographic Diversification'!H44",{"$f":"IF(_xlfn.FORMULATEXT(INDIRECT(S28))=T28,0,1)","v":0},null,null,null,{"$f":"ADDRESS(16,7,1,1,$Y$1)","v":"'LT Other Insurance Risk'!$G$16"},0.02,{"$f":"IF(INDIRECT(Y28)=Z28,0,1)","v":0},{"$f":"ADDRESS(18,8,1,1,$AB$1)","v":"'LT Variable Annuity Gte Risk'!$H$18"},"='Schedule VIII (EBS)'!J14",{"$f":"IF(_xlfn.FORMULATEXT(INDIRECT(AB28))=AC28,0,1)","v":0}]
[{"$f":"ADDRESS(11,10,1,1,$A$1)","v":"Summary!$J$11"},"=ROUND(IF(E11=\"With Grandfathering\",('Equity Investments (Grandf)'!F51+'Equity Investments (Non-Grandf)'!R58),'Equity Investments (Revised)'!R56),$M$152)",0,{"$f":"ADDRESS(19,6,1,1,$D$1)","v":"'Fixed Income Investments'!$F$19"},"=IF($D$19<0,0,$D$19*$E$19)",{"$f":"IF(_xlfn.FORMULATEXT(INDIRECT(D29))=E29,0,1)","v":0},{"$f":"ADDRESS(24,5,1,1,$G$1)","v":"'Equity Investments'!$E$24"},0.11,{"$f":"IF(INDIRECT(G29)=H29,0,1)","v":0},null,null,null,{"$f":"ADDRESS(32,5,1,1,$M$1)","v":"'Credit Risk'!$E$32"},7.0000000000000001E-3,{"$f":"IF(INDIRECT(M29)=N29,0,1)","v":0},{"$f":"ADDRESS(15,7,1,1,$P$1)","v":"'Premium Risk'!$G$15"},0.41221262895987398,{"$f":"IF(INDIRECT(P29)=Q29,0,1)","v":0},{"$f":"ADDRESS(15,7,1,1,$S$1)","v":"'Reserve Risk'!$G$15"},0.34876523067975901,{"$f":"IF(INDIRECT(S29)=T29,0,1)","v":0},null,null,null,{"$f":"ADDRESS(16,8,1,1,$Y$1)","v":"'LT Other Insurance Risk'!$H$16"},"=IF($F$16<0,0,$F$16*$G$16)",{"$f":"IF(_xlfn.FORMULATEXT(INDIRECT(Y29))=Z29,0,1)","v":0},{"$f":"ADDRESS(18,9,1,1,$AB$1)","v":"'LT Variable Annuity Gte Risk'!$I$18"},0.01,{"$f":"IF(INDIRECT(AB29)=AC29,0,1)","v":0}]
[{"$f":"ADDRESS(11,12,1,1,$A$1)","v":"Summary!$L$11"},"=ROUND(IF(E11=\"With Grandfathering\",('Equity Investments (Grandf)'!F51+'Equity Investments (Non-Grandf)'!P58),'Equity Investments (Revised)'!P56),$M$152)",0,{"$f":"ADDRESS(20,4,1,1,$D$1)","v":"'Fixed Income Investments'!$D$20"},"=+'Schedule II (EBS)'!D20+'Schedule IIA (EBS)'!D20",{"$f":"IF(_xlfn.FORMULATEXT(INDIRECT(D30))=E30,0,1)","v":0},{"$f":"ADDRESS(24,6,1,1,$G$1)","v":"'Equity Investments'!$F$24"},"=IF(D24<0,0,D24*E24)",{"$f":"IF(_xlfn.FORMULATEXT(INDIRECT(G30))=H30,0,1)","v":0},null,null,null,{"$f":"ADDRESS(32,6,1,1,$M$1)","v":"'Credit Risk'!$F$32"},"=MAX(0,(D32*E32))",{"$f":"IF(_xlfn.FORMULATEXT(INDIRECT(M30))=N30,0,1)","v":0},{"$f":"ADDRESS(15,8,1,1,$P$1)","v":"'Premium Risk'!$H$15"},"=IF($F$15<0,0,$F$15*$G$15)",{"$f":"IF(_xlfn.FORMULATEXT(INDIRECT(P30))=Q30,0,1)","v":0},{"$f":"ADDRESS(15,8,1,1,$S$1)","v":"'Reserve Risk'!$H$15"},"=IF($F$15<0,0,$F$15*$G$15)",{"$f":"IF(_xlfn.FORMULATEXT(INDIRECT(S30))=T30,0,1)","v":0},null,null,null,{"$f":"ADDRESS(17,6,1,1,$Y$1)","v":"'LT Other Insurance Risk'!$F$17"},"='Schedule VII (EBS)'!F38",{"$f":"IF(_xlfn.FORMULATEXT(INDIRECT(Y30))=Z30,0,1)","v":0},{"$f":"ADDRESS(18,11,1,1,$AB$1)","v":"'LT Variable Annuity Gte Risk'!$K$18"},"='Schedule VIII (EBS)'!L14",{"$f":"IF(_xlfn.FORMULATEXT(INDIRECT(AB30))=AC30,0,1)","v":0}]
[{"$f":"ADDRESS(11,25,1,1,$A$1)","v":"Summary!$Y$11"},"=J11",0,{"$f":"ADDRESS(20,5,1,1,$D$1)","v":"'Fixed Income Investments'!$E$20"},0.35,{"$f":"IF(INDIRECT(D31)=E31,0,1)","v":0},{"$f":"ADDRESS(25,4,1,1,$G$1)","v":"'Equity Investments'!$D$25"},"='Schedule II (EBS)'!H38+'Schedule IIA (EBS)'!H38",{"$f":"IF(_xlfn.FORMULATEXT(INDIRECT(G31))=H31,0,1)","v":0},null,null,null,{"$f":"ADDRESS(33,4,1,1,$M$1)","v":"'Credit Risk'!$D$33"},"=+'Schedule XVIII (EBS)'!R86",{"$f":"IF(_xlfn.FORMULATEXT(INDIRECT(M31))=N31,0,1)","v":0},{"$f":"ADDRESS(16,4,1,1,$P$1)","v":"'Premium Risk'!$D$16"},"=+'Schedule IVA'!M16",{"$f":"IF(_xlfn.FORMULATEXT(INDIRECT(P31))=Q31,0,1)","v":0},{"$f":"ADDRESS(16,4,1,1,$S$1)","v":"'Reserve Risk'!$D$16"},"=+'Schedule III (EBS)'!D15",{"$f":"IF(_xlfn.FORMULATEXT(INDIRECT(S31))=T31,0,1)","v":0},null,null,null,{"$f":"ADDRESS(17,7,1,1,$Y$1)","v":"'LT Other Insurance Risk'!$G$17"},5.0000000000000001E-3,{"$f":"IF(INDIRECT(Y31)=Z31,0,1)","v":0},{"$f":"ADDRESS(18,12,1,1,$AB$1)","v":"'LT Variable Annuity Gte Risk'!$L$18"},1.2500000000000001E-2,{"$f":"IF(INDIRECT(AB31)=AC31,0,1)","v":0}]
[{"$f":"ADDRESS(11,26,1,1,$A$1)","v":"Summary!$Z$11"},"=IF($K$35=0,1/16,Y11/$Y$29)",0,{"$f":"ADDRESS(20,6,1,1,$D$1)","v":"'Fixed Income Investments'!$F$20"},"=IF($D$20<0,0,$D$20*$E$20)",{"$f":"IF(_xlfn.FORMULATEXT(INDIRECT(D32))=E32,0,1)","v":0},{"$f":"ADDRESS(25,5,1,1,$G$1)","v":"'Equity Investments'!$E$25"},0.25,{"$f":"IF(INDIRECT(G32)=H32,0,1)","v":0},null,null,null,{"$f":"ADDRESS(33,5,1,1,$M$1)","v":"'Credit Risk'!$E$33"},1.4999999999999999E-2,{"$f":"IF(INDIRECT(M32)=N32,0,1)","v":0},{"$f":"ADDRESS(16,5,1,1,$P$1)","v":"'Premium Risk'!$E$16"},"=+'Schedule IVA'!Q16",{"$f":"IF(_xlfn.FORMULATEXT(INDIRECT(P32))=Q32,0,1)","v":0},{"$f":"ADDRESS(16,5,1,1,$S$1)","v":"'Reserve Risk'!$E$16"},"='Schedule III (EBS)'!F15",{"$f":"IF(_xlfn.FORMULATEXT(INDIRECT(S32))=T32,0,1)","v":0},null,null,null,{"$f":"ADDRESS(17,8,1,1,$Y$1)","v":"'LT Other Insurance Risk'!$H$17"},"=IF($F$17<0,0,$F$17*$G$17)",{"$f":"IF(_xlfn.FORMULATEXT(INDIRECT(Y32))=Z32,0,1)","v":0},{"$f":"ADDRESS(18,14,1,1,$AB$1)","v":"'LT Variable Annuity Gte Risk'!$N$18"},"='Schedule VIII (EBS)'!N14",{"$f":"IF(_xlfn.FORMULATEXT(INDIRECT(AB32))=AC32,0,1)","v":0}]
[{"$f":"ADDRESS(11,27,1,1,$A$1)","v":"Summary!$AA$11"},"=L11",0,{"$f":"ADDRESS(22,4,1,1,$D$1)","v":"'Fixed Income Investments'!$D$22"},"=IF(SUM(D12:D20)>=0,SUM(D12:D20),0)",{"$f":"IF(_xlfn.FORMULATEXT(INDIRECT(D33))=E33,0,1)","v":0},{"$f":"ADDRESS(25,6,1,1,$G$1)","v":"'Equity Investments'!$F$25"},"=IF(D25<0,0,D25*E25)",{"$f":"IF(_xlfn.FORMULATEXT(INDIRECT(G33))=H33,0,1)","v":0},null,null,null,{"$f":"ADDRESS(33,6,1,1,$M$1)","v":"'Credit Risk'!$F$33"},"=MAX(0,(D33*E33))",{"$f":"IF(_xlfn.FORMULATEXT(INDIRECT(M33))=N33,0,1)","v":0},{"$f":"ADDRESS(16,6,1,1,$P$1)","v":"'Premium Risk'!$F$16"},"=+'Geographic Diversification'!H14",{"$f":"IF(_xlfn.FORMULATEXT(INDIRECT(P33))=Q33,0,1)","v":0},{"$f":"ADDRESS(16,6,1,1,$S$1)","v":"'Reserve Risk'!$F$16"},"=+'Geographic Diversification'!H45",{"$f":"IF(_xlfn.FORMULATEXT(INDIRECT(S33))=T33,0,1)","v":0},null,null,null,{"$f":"ADDRESS(18,6,1,1,$Y$1)","v":"'LT Other Insurance Risk'!$F$18"},"='Schedule VII (EBS)'!F39",{"$f":"IF(_xlfn.FORMULATEXT(INDIRECT(Y33))=Z33,0,1)","v":0},{"$f":"ADDRESS(18,15,1,1,$AB$1)","v":"'LT Variable Annuity Gte Risk'!$O$18"},0.12,{"$f":"IF(INDIRECT(AB33)=AC33,0,1)","v":0}]
[{"$f":"ADDRESS(11,28,1,1,$A$1)","v":"Summary!$AB$11"},"=IF($M$35=0,1/16,AA11/$AA$29)",0,{"$f":"ADDRESS(22,6,1,1,$D$1)","v":"'Fixed Income Investments'!$F$22"},"=IF(SUM(F12:F20)>=0,SUM(F12:F20),0)",{"$f":"IF(_xlfn.FORMULATEXT(INDIRECT(D34))=E34,0,1)","v":0},{"$f":"ADDRESS(26,4,1,1,$G$1)","v":"'Equity Investments'!$D$26"},"='Schedule II (EBS)'!H39+'Schedule IIA (EBS)'!H39",{"$f":"IF(_xlfn.FORMULATEXT(INDIRECT(G34))=H34,0,1)","v":0},null,null,null,{"$f":"ADDRESS(34,4,1,1,$M$1)","v":"'Credit Risk'!$D$34"},"=+'Schedule XVIII (EBS)'!R87",{"$f":"IF(_xlfn.FORMULATEXT(INDIRECT(M34))=N34,0,1)","v":0},{"$f":"ADDRESS(16,7,1,1,$P$1)","v":"'Premium Risk'!$G$16"},0.48178449435856302,{"$f":"IF(INDIRECT(P34)=Q34,0,1)","v":0},{"$f":"ADDRESS(16,7,1,1,$S$1)","v":"'Reserve Risk'!$G$16"},0.45952604952349801,{"$f":"IF(INDIRECT(S34)=T34,0,1)","v":0},null,null,null,{"$f":"ADDRESS(18,7,1,1,$Y$1)","v":"'LT Other Insurance Risk'!$G$18"},5.0000000000000001E-3,{"$f":"IF(INDIRECT(Y34)=Z34,0,1)","v":0},{"$f":"ADDRESS(18,17,1,1,$AB$1)","v":"'LT Variable Annuity Gte Risk'!$Q$18"},"=+'Schedule VIII (EBS)'!P14",{"$f":"IF(_xlfn.FORMULATEXT(INDIRECT(AB34))=AC34,0,1)","v":0}]
[{"$f":"ADDRESS(11,30,1,1,$A$1)","v":"Summary!$AD$11"},"=(SUM(AB$10:AB11)/AB$29)+0.125",0,{"$f":"ADDRESS(27,4,1,1,$D$1)","v":"'Fixed Income Investments'!$D$27"},"=+'Schedule II (EBS)'!H13+'Schedule IIA (EBS)'!H13",{"$f":"IF(_xlfn.FORMULATEXT(INDIRECT(D35))=E35,0,1)","v":0},{"$f":"ADDRESS(26,5,1,1,$G$1)","v":"'Equity Investments'!$E$26"},0.35,{"$f":"IF(INDIRECT(G35)=H35,0,1)","v":0},null,null,null,{"$f":"ADDRESS(34,5,1,1,$M$1)","v":"'Credit Risk'!$E$34"},3.5000000000000003E-2,{"$f":"IF(INDIRECT(M35)=N35,0,1)","v":0},{"$f":"ADDRESS(16,8,1,1,$P$1)","v":"'Premium Risk'!$H$16"},"=IF($F$16<0,0,$F$16*$G$16)",{"$f":"IF(_xlfn.FORMULATEXT(INDIRECT(P35))=Q35,0,1)","v":0},{"$f":"ADDRESS(16,8,1,1,$S$1)","v":"'Reserve Risk'!$H$16"},"=IF($F$16<0,0,$F$16*$G$16)",{"$f":"IF(_xlfn.FORMULATEXT(INDIRECT(S35))=T35,0,1)","v":0},null,null,null,{"$f":"ADDRESS(18,8,1,1,$Y$1)","v":"'LT Other Insurance Risk'!$H$18"},"=IF($F$18<0,0,$F$18*$G$18)",{"$f":"IF(_xlfn.FORMULATEXT(INDIRECT(Y35))=Z35,0,1)","v":0},{"$f":"ADDRESS(18,18,1,1,$AB$1)","v":"'LT Variable Annuity Gte Risk'!$R$18"},0.16500000000000001,{"$f":"IF(INDIRECT(AB35)=AC35,0,1)","v":0}]
[{"$f":"ADDRESS(11,33,1,1,$A$1)","v":"Summary!$AG$11"},"=IF(AP11=\"\",IF(Test_Statistic<$AK$35,AJ11,IF(Test_Statistic<$AM$35,AL11,AN11)),AP11)",0,{"$f":"ADDRESS(27,5,1,1,$D$1)","v":"'Fixed Income Investments'!$E$27"},6.0000000000000001E-3,{"$f":"IF(INDIRECT(D36)=E36,0,1)","v":0},{"$f":"ADDRESS(26,6,1,1,$G$1)","v":"'Equity Investments'!$F$26"},"=IF(D26<0,0,D26*E26)",{"$f":"IF(_xlfn.FORMULATEXT(INDIRECT(G36))=H36,0,1)","v":0},null,null,null,{"$f":"ADDRESS(34,6,1,1,$M$1)","v":"'Credit Risk'!$F$34"},"=MAX(0,(D34*E34))",{"$f":"IF(_xlfn.FORMULATEXT(INDIRECT(M36))=N36,0,1)","v":0},{"$f":"ADDRESS(17,4,1,1,$P$1)","v":"'Premium Risk'!$D$17"},"=+'Schedule IVA'!M17",{"$f":"IF(_xlfn.FORMULATEXT(INDIRECT(P36))=Q36,0,1)","v":0},{"$f":"ADDRESS(17,4,1,1,$S$1)","v":"'Reserve Risk'!$D$17"},"=+'Schedule III (EBS)'!D16",{"$f":"IF(_xlfn.FORMULATEXT(INDIRECT(S36))=T36,0,1)","v":0},null,null,null,{"$f":"ADDRESS(19,6,1,1,$Y$1)","v":"'LT Other Insurance Risk'!$F$19"},"='Schedule VII (EBS)'!F40",{"$f":"IF(_xlfn.FORMULATEXT(INDIRECT(Y36))=Z36,0,1)","v":0},{"$f":"ADDRESS(18,20,1,1,$AB$1)","v":"'LT Variable Annuity Gte Risk'!$T$18"},"=+'Schedule VIII (EBS)'!R14",{"$f":"IF(_xlfn.FORMULATEXT(INDIRECT(AB36))=AC36,0,1)","v":0}]
[{"$f":"ADDRESS(11,34,1,1,$A$1)","v":"Summary!$AH$11"},"=IF(AQ11=\"\",IF(Test_Statistic<$AK$35,AK11,IF(Test_Statistic<$AM$35,AM11,AO11)),AQ11)",0,{"$f":"ADDRESS(27,6,1,1,$D$1)","v":"'Fixed Income Investments'!$F$27"},"=IF(D27<0,0,D27*E27)",{"$f":"IF(_xlfn.FORMULATEXT(INDIRECT(D37))=E37,0,1)","v":0},{"$f":"ADDRESS(27,4,1,1,$G$1)","v":"'Equity Investments'!$D$27"},"='Schedule II (EBS)'!H40+'Schedule IIA (EBS)'!H40",{"$f":"IF(_xlfn.FORMULATEXT(INDIRECT(G37))=H37,0,1)","v":0},null,null,null,{"$f":"ADDRESS(35,4,1,1,$M$1)","v":"'Credit Risk'!$D$35"},"=+'Schedule XVIII (EBS)'!R88",{"$f":"IF(_xlfn.FORMULATEXT(INDIRECT(M37))=N37,0,1)","v":0},{"$f":"ADDRESS(17,5,1,1,$P$1)","v":"'Premium Risk'!$E$17"},"=+'Schedule IVA'!Q17",{"$f":"IF(_xlfn.FORMULATEXT(INDIRECT(P37))=Q37,0,1)","v":0},{"$f":"ADDRESS(17,5,1,1,$S$1)","v":"'Reserve Risk'!$E$17"},"='Schedule III (EBS)'!F16",{"$f":"IF(_xlfn.FORMULATEXT(INDIRECT(S37))=T37,0,1)","v":0},null,null,null,{"$f":"ADDRESS(19,7,1,1,$Y$1)","v":"'LT Other Insurance Risk'!$G$19"},5.0000000000000001E-3,{"$f":"IF(INDIRECT(Y37)=Z37,0,1)","v":0},{"$f":"ADDRESS(18,21,1,1,$AB$1)","v":"'LT Variable Annuity Gte Risk'!$U$18"},0.21,{"$f":"IF(INDIRECT(AB37)=AC37,0,1)","v":0}]
[{"$f":"ADDRESS(11,36,1,1,$A$1)","v":"Summary!$AJ$11"},"=IF(AD15>0.6,300,300)",0,{"$f":"ADDRESS(28,4,1,1,$D$1)","v":"'Fixed Income Investments'!$D$28"},"=+'Schedule II (EBS)'!H14+'Schedule IIA (EBS)'!H14",{"$f":"IF(_xlfn.FORMULATEXT(INDIRECT(D38))=E38,0,1)","v":0},{"$f":"ADDRESS(27,5,1,1,$G$1)","v":"'Equity Investments'!$E$27"},0.35,{"$f":"IF(INDIRECT(G38)=H38,0,1)","v":0},null,null,null,{"$f":"ADDRESS(35,5,1,1,$M$1)","v":"'Credit Risk'!$E$35"},7.0000000000000007E-2,{"$f":"IF(INDIRECT(M38)=N38,0,1)","v":0},{"$f":"ADDRESS(17,6,1,1,$P$1)","v":"'Premium Risk'!$F$17"},"=+'Geographic Diversification'!H15",{"$f":"IF(_xlfn.FORMULATEXT(INDIRECT(P38))=Q38,0,1)","v":0},{"$f":"ADDRESS(17,6,1,1,$S$1)","v":"'Reserve Risk'!$F$17"},"=+'Geographic Diversification'!H46",{"$f":"IF(_xlfn.FORMULATEXT(INDIRECT(S38))=T38,0,1)","v":0},null,null,null,{"$f":"ADDRESS(19,8,1,1,$Y$1)","v":"'LT Other Insurance Risk'!$H$19"},"=IF($F$19<0,0,$F$19*$G$19)",{"$f":"IF(_xlfn.FORMULATEXT(INDIRECT(Y38))=Z38,0,1)","v":0},{"$f":"ADDRESS(18,23,1,1,$AB$1)","v":"'LT Variable Annuity Gte Risk'!$W$18"},"=IF(ISERROR(OR(E18*F18+H18*I18+K18*L18,N18*O18+Q18*R18+T18*U18)),0,MAX(E18*F18+H18*I18+K18*L18,N18*O18+Q18*R18+T18*U18))",{"$f":"IF(_xlfn.FORMULATEXT(INDIRECT(AB38))=AC38,0,1)","v":0}]
[{"$f":"ADDRESS(11,37,1,1,$A$1)","v":"Summary!$AK$11"},"=IF(AD17>1,90,IF(AD15>1,60,IF(AD15>0.6,90,60)))",0,{"$f":"ADDRESS(28,5,1,1,$D$1)","v":"'Fixed Income Investments'!$E$28"},1.2E-2,{"$f":"IF(INDIRECT(D39)=E39,0,1)","v":0},{"$f":"ADDRESS(27,6,1,1,$G$1)","v":"'Equity Investments'!$F$27"},"=IF(D27<0,0,D27*E27)",{"$f":"IF(_xlfn.FORMULATEXT(INDIRECT(G39))=H39,0,1)","v":0},null,null,null,{"$f":"ADDRESS(35,6,1,1,$M$1)","v":"'Credit Risk'!$F$35"},"=MAX(0,(D35*E35))",{"$f":"IF(_xlfn.FORMULATEXT(INDIRECT(M39))=N39,0,1)","v":0},{"$f":"ADDRESS(17,7,1,1,$P$1)","v":"'Premium Risk'!$G$17"},0.48201231799963601,{"$f":"IF(INDIRECT(P39)=Q39,0,1)","v":0},{"$f":"ADDRESS(17,7,1,1,$S$1)","v":"'Reserve Risk'!$G$17"},0.48255646377949901,{"$f":"IF(INDIRECT(S39)=T39,0,1)","v":0},null,null,null,{"$f":"ADDRESS(20,6,1,1,$Y$1)","v":"'LT Other Insurance Risk'!$F$20"},"='Schedule VII (EBS)'!F41",{"$f":"IF(_xlfn.FORMULATEXT(INDIRECT(Y39))=Z39,0,1)","v":0},{"$f":"ADDRESS(19,5,1,1,$AB$1)","v":"'LT Variable Annuity Gte Risk'!$E$19"},"=+'Schedule VIII (EBS)'!H32",{"$f":"IF(_xlfn.FORMULATEXT(INDIRECT(AB39))=AC39,0,1)","v":0}]
[{"$f":"ADDRESS(11,38,1,1,$A$1)","v":"Summary!$AL$11"},300,{"$f":"IF(INDIRECT(A40)=B40,0,1)","v":0},{"$f":"ADDRESS(28,6,1,1,$D$1)","v":"'Fixed Income Investments'!$F$28"},"=IF(D28<0,0,D28*E28)",{"$f":"IF(_xlfn.FORMULATEXT(INDIRECT(D40))=E40,0,1)","v":0},{"$f":"ADDRESS(29,4,1,1,$G$1)","v":"'Equity Investments'!$D$29"},"=SUM(D20:D27)",{"$f":"IF(_xlfn.FORMULATEXT(INDIRECT(G40))=H40,0,1)","v":0},null,null,null,{"$f":"ADDRESS(36,4,1,1,$M$1)","v":"'Credit Risk'!$D$36"},"=+'Schedule XVIII (EBS)'!R89",{"$f":"IF(_xlfn.FORMULATEXT(INDIRECT(M40))=N40,0,1)","v":0},{"$f":"ADDRESS(17,8,1,1,$P$1)","v":"'Premium Risk'!$H$17"},"=IF($F$17<0,0,$F$17*$G$17)",{"$f":"IF(_xlfn.FORMULATEXT(INDIRECT(P40))=Q40,0,1)","v":0},{"$f":"ADDRESS(17,8,1,1,$S$1)","v":"'Reserve Risk'!$H$17"},"=IF($F$17<0,0,$F$17*$G$17)",{"$f":"IF(_xlfn.FORMULATEXT(INDIRECT(S40))=T40,0,1)","v":0},null,null,null,{"$f":"ADDRESS(20,7,1,1,$Y$1)","v":"'LT Other Insurance Risk'!$G$20"},5.0000000000000001E-3,{"$f":"IF(INDIRECT(Y40)=Z40,0,1)","v":0},{"$f":"ADDRESS(19,6,1,1,$AB$1)","v":"'LT Variable Annuity Gte Risk'!$F$19"},7.4999999999999997E-3,{"$f":"IF(INDIRECT(AB40)=AC40,0,1)","v":0}]
[{"$f":"ADDRESS(11,39,1,1,$A$1)","v":"Summary!$AM$11"},120,{"$f":"IF(INDIRECT(A41)=B41,0,1)","v":0},{"$f":"ADDRESS(29,4,1,1,$D$1)","v":"'Fixed Income Investments'!$D$29"},"=+'Schedule II (EBS)'!H15+'Schedule IIA (EBS)'!H15",{"$f":"IF(_xlfn.FORMULATEXT(INDIRECT(D41))=E41,0,1)","v":0},{"$f":"ADDRESS(29,6,1,1,$G$1)","v":"'Equity Investments'!$F$29"},"=IF(SUM(F20:F27)>=0,SUM(F20:F27),0)",{"$f":"IF(_xlfn.FORMULATEXT(INDIRECT(G41))=H41,0,1)","v":0},null,null,null,{"$f":"ADDRESS(36,5,1,1,$M$1)","v":"'Credit Risk'!$E$36"},0.12,{"$f":"IF(INDIRECT(M41)=N41,0,1)","v":0},{"$f":"ADDRESS(18,4,1,1,$P$1)","v":"'Premium Risk'!$D$18"},"=+'Schedule IVA'!M18",{"$f":"IF(_xlfn.FORMULATEXT(INDIRECT(P41))=Q41,0,1)","v":0},{"$f":"ADDRESS(18,4,1,1,$S$1)","v":"'Reserve Risk'!$D$18"},"=+'Schedule III (EBS)'!D17",{"$f":"IF(_xlfn.FORMULATEXT(INDIRECT(S41))=T41,0,1)","v":0},null,null,null,{"$f":"ADDRESS(20,8,1,1,$Y$1)","v":"'LT Other Insurance Risk'!$H$20"},"=IF($F$20<0,0,$F$20*$G$20)",{"$f":"IF(_xlfn.FORMULATEXT(INDIRECT(Y41))=Z41,0,1)","v":0},{"$f":"ADDRESS(19,8,1,1,$AB$1)","v":"'LT Variable Annuity Gte Risk'!$H$19"},"='Schedule VIII (EBS)'!J32",{"$f":"IF(_xlfn.FORMULATEXT(INDIRECT(AB41))=AC41,0,1)","v":0}]
[{"$f":"ADDRESS(11,40,1,1,$A$1)","v":"Summary!$AN$11"},280,{"$f":"IF(INDIRECT(A42)=B42,0,1)","v":0},{"$f":"ADDRESS(29,5,1,1,$D$1)","v":"'Fixed Income Investments'!$E$29"},0.02,{"$f":"IF(INDIRECT(D42)=E42,0,1)","v":0},{"$f":"ADDRESS(34,4,1,1,$G$1)","v":"'Equity Investments'!$D$34"},"='Form 1EBS'!F52",{"$f":"IF(_xlfn.FORMULATEXT(INDIRECT(G42))=H42,0,1)","v":0},null,null,null,{"$f":"ADDRESS(36,6,1,1,$M$1)","v":"'Credit Risk'!$F$36"},"=MAX(0,(D36*E36))",{"$f":"IF(_xlfn.FORMULATEXT(INDIRECT(M42))=N42,0,1)","v":0},{"$f":"ADDRESS(18,5,1,1,$P$1)","v":"'Premium Risk'!$E$18"},"=+'Schedule IVA'!Q18",{"$f":"IF(_xlfn.FORMULATEXT(INDIRECT(P42))=Q42,0,1)","v":0},{"$f":"ADDRESS(18,5,1,1,$S$1)","v":"'Reserve Risk'!$E$18"},"='Schedule III (EBS)'!F17",{"$f":"IF(_xlfn.FORMULATEXT(INDIRECT(S42))=T42,0,1)","v":0},null,null,null,{"$f":"ADDRESS(21,6,1,1,$Y$1)","v":"'LT Other Insurance Risk'!$F$21"},"='Schedule VII (EBS)'!F42",{"$f":"IF(_xlfn.FORMULATEXT(INDIRECT(Y42))=Z42,0,1)","v":0},{"$f":"ADDRESS(19,9,1,1,$AB$1)","v":"'LT Variable Annuity Gte Risk'!$I$19"},0.01,{"$f":"IF(INDIRECT(AB42)=AC42,0,1)","v":0}]
[{"$f":"ADDRESS(11,41,1,1,$A$1)","v":"Summary!$AO$11"},140,{"$f":"IF(INDIRECT(A43)=B43,0,1)","v":0},{"$f":"ADDRESS(29,6,1,1,$D$1)","v":"'Fixed Income Investments'!$F$29"},"=IF(D29<0,0,D29*E29)",{"$f":"IF(_xlfn.FORMULATEXT(INDIRECT(D43))=E43,0,1)","v":0},{"$f":"ADDRESS(34,5,1,1,$G$1)","v":"'Equity Investments'!$E$34"},0.1,{"$f":"IF(INDIRECT(G43)=H43,0,1)","v":0},null,null,null,{"$f":"ADDRESS(37,4,1,1,$M$1)","v":"'Credit Risk'!$D$37"},"=+'Schedule XVIII (EBS)'!R90",{"$f":"IF(_xlfn.FORMULATEXT(INDIRECT(M43))=N43,0,1)","v":0},{"$f":"ADDRESS(18,6,1,1,$P$1)","v":"'Premium Risk'!$F$18"},"=+'Geographic Diversification'!H16",{"$f":"IF(_xlfn.FORMULATEXT(INDIRECT(P43))=Q43,0,1)","v":0},{"$f":"ADDRESS(18,6,1,1,$S$1)","v":"'Reserve Risk'!$F$18"},"=+'Geographic Diversification'!H47",{"$f":"IF(_xlfn.FORMULATEXT(INDIRECT(S43))=T43,0,1)","v":0},null,null,null,{"$f":"ADDRESS(21,7,1,1,$Y$1)","v":"'LT Other Insurance Risk'!$G$21"},5.0000000000000001E-3,{"$f":"IF(INDIRECT(Y43)=Z43,0,1)","v":0},{"$f":"ADDRESS(19,11,1,1,$AB$1)","v":"'LT Variable Annuity Gte Risk'!$K$19"},"='Schedule VIII (EBS)'!L32",{"$f":"IF(_xlfn.FORMULATEXT(INDIRECT(AB43))=AC43,0,1)","v":0}]
[{"$f":"ADDRESS(12,6,1,1,$A$1)","v":"Summary!$F$12"},"=ROUND('Interest Rate-Liquidity Risk'!G14,$M$152)",{"$f":"IF(_xlfn.FORMULATEXT(INDIRECT(A44))=B44,0,1)","v":0},{"$f":"ADDRESS(30,4,1,1,$D$1)","v":"'Fixed Income Investments'!$D$30"},"=+'Schedule II (EBS)'!H16+'Schedule IIA (EBS)'!H16",{"$f":"IF(_xlfn.FORMULATEXT(INDIRECT(D44))=E44,0,1)","v":0},{"$f":"ADDRESS(34,6,1,1,$G$1)","v":"'Equity Investments'!$F$34"},"=IF($D$34<0,0,$D$34*$E$34)",{"$f":"IF(_xlfn.FORMULATEXT(INDIRECT(G44))=H44,0,1)","v":0},null,null,null,{"$f":"ADDRESS(37,5,1,1,$M$1)","v":"'Credit Risk'!$E$37"},0.2,{"$f":"IF(INDIRECT(M44)=N44,0,1)","v":0},{"$f":"ADDRESS(18,7,1,1,$P$1)","v":"'Premium Risk'!$G$18"},0.39820522005250802,{"$f":"IF(INDIRECT(P44)=Q44,0,1)","v":0},{"$f":"ADDRESS(18,7,1,1,$S$1)","v":"'Reserve Risk'!$G$18"},0.383682680649994,{"$f":"IF(INDIRECT(S44)=T44,0,1)","v":0},null,null,null,{"$f":"ADDRESS(21,8,1,1,$Y$1)","v":"'LT Other Insurance Risk'!$H$21"},"=IF($F$21<0,0,$F$21*$G$21)",{"$f":"IF(_xlfn.FORMULATEXT(INDIRECT(Y44))=Z44,0,1)","v":0},{"$f":"ADDRESS(19,12,1,1,$AB$1)","v":"'LT Variable Annuity Gte Risk'!$L$19"},1.2500000000000001E-2,{"$f":"IF(INDIRECT(AB44)=AC44,0,1)","v":0}]
[{"$f":"ADDRESS(12,10,1,1,$A$1)","v":"Summary!$J$12"},"=ROUND(IF(E12=\"Duration-Based Approach\",'Interest Rate-Liquidity Risk'!G14,'Interest Rate-Liquidity (Rev.)'!E117),$M$152)",0,{"$f":"ADDRESS(30,5,1,1,$D$1)","v":"'Fixed Income Investments'!$E$30"},0.04,{"$f":"IF(INDIRECT(D45)=E45,0,1)","v":0},{"$f":"ADDRESS(35,4,1,1,$G$1)","v":"'Equity Investments'!$D$35"},"='Form 1EBS'!F53",{"$f":"IF(_xlfn.FORMULATEXT(INDIRECT(G45))=H45,0,1)","v":0},null,null,null,{"$f":"ADDRESS(37,6,1,1,$M$1)","v":"'Credit Risk'!$F$37"},"=MAX(0,(D37*E37))",{"$f":"IF(_xlfn.FORMULATEXT(INDIRECT(M45))=N45,0,1)","v":0},{"$f":"ADDRESS(18,8,1,1,$P$1)","v":"'Premium Risk'!$H$18"},"=IF($F$18<0,0,$F$18*$G$18)",{"$f":"IF(_xlfn.FORMULATEXT(INDIRECT(P45))=Q45,0,1)","v":0},{"$f":"ADDRESS(18,8,1,1,$S$1)","v":"'Reserve Risk'!$H$18"},"=IF($F$18<0,0,$F$18*$G$18)",{"$f":"IF(_xlfn.FORMULATEXT(INDIRECT(S45))=T45,0,1)","v":0},null,null,null,{"$f":"ADDRESS(22,6,1,1,$Y$1)","v":"'LT Other Insurance Risk'!$F$22"},"='Schedule VII (EBS)'!F43",{"$f":"IF(_xlfn.FORMULATEXT(INDIRECT(Y45))=Z45,0,1)","v":0},{"$f":"ADDRESS(19,23,1,1,$AB$1)","v":"'LT Variable Annuity Gte Risk'!$W$19"},"=IF(ISERROR(OR(E19*F19+H19*I19+K19*L19,N19*O19+Q19*R19+T19*U19)),0,MAX(E19*F19+H19*I19+K19*L19,N19*O19+Q19*R19+T19*U19))",{"$f":"IF(_xlfn.FORMULATEXT(INDIRECT(AB45))=AC45,0,1)","v":0}]
[{"$f":"ADDRESS(12,12,1,1,$A$1)","v":"Summary!$L$12"},"=ROUND(IF(E12=\"Duration-Based Approach\",'Interest Rate-Liquidity Risk'!G14,'Interest Rate-Liquidity (Rev.)'!D117),$M$152)",0,{"$f":"ADDRESS(30,6,1,1,$D$1)","v":"'Fixed Income Investments'!$F$30"},"=IF(D30<0,0,D30*E30)",{"$f":"IF(_xlfn.FORMULATEXT(INDIRECT(D46))=E46,0,1)","v":0},{"$f":"ADDRESS(35,5,1,1,$G$1)","v":"'Equity Investments'!$E$35"},0.2,{"$f":"IF(INDIRECT(G46)=H46,0,1)","v":0},null,null,null,{"$f":"ADDRESS(38,4,1,1,$M$1)","v":"'Credit Risk'!$D$38"},"=+'Schedule XVIII (EBS)'!R91",{"$f":"IF(_xlfn.FORMULATEXT(INDIRECT(M46))=N46,0,1)","v":0},{"$f":"ADDRESS(19,4,1,1,$P$1)","v":"'Premium Risk'!$D$19"},"=+'Schedule IVA'!M19",{"$f":"IF(_xlfn.FORMULATEXT(INDIRECT(P46))=Q46,0,1)","v":0},{"$f":"ADDRESS(19,4,1,1,$S$1)","v":"'Reserve Risk'!$D$19"},"=+'Schedule III (EBS)'!D18",{"$f":"IF(_xlfn.FORMULATEXT(INDIRECT(S46))=T46,0,1)","v":0},null,null,null,{"$f":"ADDRESS(22,7,1,1,$Y$1)","v":"'LT Other Insurance Risk'!$G$22"},0.02,{"$f":"IF(INDIRECT(Y46)=Z46,0,1)","v":0},{"$f":"ADDRESS(22,5,1,1,$AB$1)","v":"'LT Variable Annuity Gte Risk'!$E$22"},"='Schedule VIII (EBS)'!H15",{"$f":"IF(_xlfn.FORMULATEXT(INDIRECT(AB46))=AC46,0,1)","v":0}]
[{"$f":"ADDRESS(12,25,1,1,$A$1)","v":"Summary!$Y$12"},"=J12",0,{"$f":"ADDRESS(31,4,1,1,$D$1)","v":"'Fixed Income Investments'!$D$31"},"=+'Schedule II (EBS)'!H17+'Schedule IIA (EBS)'!H17",{"$f":"IF(_xlfn.FORMULATEXT(INDIRECT(D47))=E47,0,1)","v":0},{"$f":"ADDRESS(35,6,1,1,$G$1)","v":"'Equity Investments'!$F$35"},"=IF($D$35<0,0,$D$35*$E$35)",{"$f":"IF(_xlfn.FORMULATEXT(INDIRECT(G47))=H47,0,1)","v":0},null,null,null,{"$f":"ADDRESS(38,5,1,1,$M$1)","v":"'Credit Risk'!$E$38"},0.27,{"$f":"IF(INDIRECT(M47)=N47,0,1)","v":0},{"$f":"ADDRESS(19,5,1,1,$P$1)","v":"'Premium Risk'!$E$19"},"=+'Schedule IVA'!Q19",{"$f":"IF(_xlfn.FORMULATEXT(INDIRECT(P47))=Q47,0,1)","v":0},{"$f":"ADDRESS(19,5,1,1,$S$1)","v":"'Reserve Risk'!$E$19"},"='Schedule III (EBS)'!F18",{"$f":"IF(_xlfn.FORMULATEXT(INDIRECT(S47))=T47,0,1)","v":0},null,null,null,{"$f":"ADDRESS(22,8,1,1,$Y$1)","v":"'LT Other Insurance Risk'!$H$22"},"=IF($F$22<0,0,$F$22*$G$22)",{"$f":"IF(_xlfn.FORMULATEXT(INDIRECT(Y47))=Z47,0,1)","v":0},{"$f":"ADDRESS(22,6,1,1,$AB$1)","v":"'LT Variable Annuity Gte Risk'!$F$22"},0.05,{"$f":"IF(INDIRECT(AB47)=AC47,0,1)","v":0}]
[{"$f":"ADDRESS(12,26,1,1,$A$1)","v":"Summary!$Z$12"},"=IF($K$35=0,1/16,Y12/$Y$29)",0,{"$f":"ADDRESS(31,5,1,1,$D$1)","v":"'Fixed Income Investments'!$E$31"},0.11,{"$f":"IF(INDIRECT(D48)=E48,0,1)","v":0},{"$f":"ADDRESS(37,4,1,1,$G$1)","v":"'Equity Investments'!$D$37"},"='Form 1EBS'!F20+'Form 1EBS'!F31+'Schedule IIA (EBS)'!P44",{"$f":"IF(_xlfn.FORMULATEXT(INDIRECT(G48))=H48,0,1)","v":0},null,null,null,{"$f":"ADDRESS(38,6,1,1,$M$1)","v":"'Credit Risk'!$F$38"},"=MAX(0,(D38*E38))",{"$f":"IF(_xlfn.FORMULATEXT(INDIRECT(M48))=N48,0,1)","v":0},{"$f":"ADDRESS(19,6,1,1,$P$1)","v":"'Premium Risk'!$F$19"},"=+'Geographic Diversification'!H17",{"$f":"IF(_xlfn.FORMULATEXT(INDIRECT(P48))=Q48,0,1)","v":0},{"$f":"ADDRESS(19,6,1,1,$S$1)","v":"'Reserve Risk'!$F$19"},"=+'Geographic Diversification'!H48",{"$f":"IF(_xlfn.FORMULATEXT(INDIRECT(S48))=T48,0,1)","v":0},null,null,null,{"$f":"ADDRESS(23,6,1,1,$Y$1)","v":"'LT Other Insurance Risk'!$F$23"},"='Schedule VII (EBS)'!F44",{"$f":"IF(_xlfn.FORMULATEXT(INDIRECT(Y48))=Z48,0,1)","v":0},{"$f":"ADDRESS(22,8,1,1,$AB$1)","v":"'LT Variable Annuity Gte Risk'!$H$22"},"='Schedule VIII (EBS)'!J15",{"$f":"IF(_xlfn.FORMULATEXT(INDIRECT(AB48))=AC48,0,1)","v":0}]
[{"$f":"ADDRESS(12,27,1,1,$A$1)","v":"Summary!$AA$12"},"=L12",0,{"$f":"ADDRESS(31,6,1,1,$D$1)","v":"'Fixed Income Investments'!$F$31"},"=IF(D31<0,0,D31*E31)",{"$f":"IF(_xlfn.FORMULATEXT(INDIRECT(D49))=E49,0,1)","v":0},{"$f":"ADDRESS(37,5,1,1,$G$1)","v":"'Equity Investments'!$E$37"},0.2,{"$f":"IF(INDIRECT(G49)=H49,0,1)","v":0},null,null,null,{"$f":"ADDRESS(39,4,1,1,$M$1)","v":"'Credit Risk'!$D$39"},"=+'Schedule XVIII (EBS)'!R92",{"$f":"IF(_xlfn.FORMULATEXT(INDIRECT(M49))=N49,0,1)","v":0},{"$f":"ADDRESS(19,7,1,1,$P$1)","v":"'Premium Risk'!$G$19"},0.45356665999464701,{"$f":"IF(INDIRECT(P49)=Q49,0,1)","v":0},{"$f":"ADDRESS(19,7,1,1,$S$1)","v":"'Reserve Risk'!$G$19"},0.43464696624596899,{"$f":"IF(INDIRECT(S49)=T49,0,1)","v":0},null,null,null,{"$f":"ADDRESS(23,7,1,1,$Y$1)","v":"'LT Other Insurance Risk'!$G$23"},0.02,{"$f":"IF(INDIRECT(Y49)=Z49,0,1)","v":0},{"$f":"ADDRESS(22,9,1,1,$AB$1)","v":"'LT Variable Annuity Gte Risk'!$I$22"},6.5000000000000002E-2,{"$f":"IF(INDIRECT(AB49)=AC49,0,1)","v":0}]
[{"$f":"ADDRESS(12,28,1,1,$A$1)","v":"Summary!$AB$12"},"=IF($M$35=0,1/16,AA12/$AA$29)",0,{"$f":"ADDRESS(32,4,1,1,$D$1)","v":"'Fixed Income Investments'!$D$32"},"=+'Schedule II (EBS)'!H18+'Schedule IIA (EBS)'!H18",{"$f":"IF(_xlfn.FORMULATEXT(INDIRECT(D50))=E50,0,1)","v":0},{"$f":"ADDRESS(37,6,1,1,$G$1)","v":"'Equity Investments'!$F$37"},"=IF($D$37<0,0,$D$37*$E$37)",{"$f":"IF(_xlfn.FORMULATEXT(INDIRECT(G50))=H50,0,1)","v":0},null,null,null,{"$f":"ADDRESS(39,5,1,1,$M$1)","v":"'Credit Risk'!$E$39"},0.35,{"$f":"IF(INDIRECT(M50)=N50,0,1)","v":0},{"$f":"ADDRESS(19,8,1,1,$P$1)","v":"'Premium Risk'!$H$19"},"=IF($F$19<0,0,$F$19*$G$19)",{"$f":"IF(_xlfn.FORMULATEXT(INDIRECT(P50))=Q50,0,1)","v":0},{"$f":"ADDRESS(19,8,1,1,$S$1)","v":"'Reserve Risk'!$H$19"},"=IF($F$19<0,0,$F$19*$G$19)",{"$f":"IF(_xlfn.FORMULATEXT(INDIRECT(S50))=T50,0,1)","v":0},null,null,null,{"$f":"ADDRESS(23,8,1,1,$Y$1)","v":"'LT Other Insurance Risk'!$H$23"},"=IF($F$23<0,0,$F$23*$G$23)",{"$f":"IF(_xlfn.FORMULATEXT(INDIRECT(Y50))=Z50,0,1)","v":0},{"$f":"ADDRESS(22,11,1,1,$AB$1)","v":"'LT Variable Annuity Gte Risk'!$K$22"},"='Schedule VIII (EBS)'!L15",{"$f":"IF(_xlfn.FORMULATEXT(INDIRECT(AB50))=AC50,0,1)","v":0}]
[{"$f":"ADDRESS(12,30,1,1,$A$1)","v":"Summary!$AD$12"},"=(SUM(AB$10:AB12)/AB$29)+0.125",0,{"$f":"ADDRESS(32,5,1,1,$D$1)","v":"'Fixed Income Investments'!$E$32"},0.25,{"$f":"IF(INDIRECT(D51)=E51,0,1)","v":0},{"$f":"ADDRESS(38,4,1,1,$G$1)","v":"'Equity Investments'!$D$38"},"='Form 1EBS'!F88+'Form 1EBS'!F94+'Form 1EBS'!F196-'Form 1EBS'!F79-'Form 1EBS'!F80-'Form 1EBS'!F81-'Form 1EBS'!F85",{"$f":"IF(_xlfn.FORMULATEXT(INDIRECT(G51))=H51,0,1)","v":0},null,null,null,{"$f":"ADDRESS(39,6,1,1,$M$1)","v":"'Credit Risk'!$F$39"},"=MAX(0,(D39*E39))",{"$f":"IF(_xlfn.FORMULATEXT(INDIRECT(M51))=N51,0,1)","v":0},{"$f":"ADDRESS(20,4,1,1,$P$1)","v":"'Premium Risk'!$D$20"},"=+'Schedule IVA'!M20",{"$f":"IF(_xlfn.FORMULATEXT(INDIRECT(P51))=Q51,0,1)","v":0},{"$f":"ADDRESS(20,4,1,1,$S$1)","v":"'Reserve Risk'!$D$20"},"=+'Schedule III (EBS)'!D19",{"$f":"IF(_xlfn.FORMULATEXT(INDIRECT(S51))=T51,0,1)","v":0},null,null,null,{"$f":"ADDRESS(25,8,1,1,$Y$1)","v":"'LT Other Insurance Risk'!$H$25"},"=IF(SUM(H9:H23)>=0,(SUM(H9:H23)),0)",{"$f":"IF(_xlfn.FORMULATEXT(INDIRECT(Y51))=Z51,0,1)","v":0},{"$f":"ADDRESS(22,12,1,1,$AB$1)","v":"'LT Variable Annuity Gte Risk'!$L$22"},0.08,{"$f":"IF(INDIRECT(AB51)=AC51,0,1)","v":0}]
[{"$f":"ADDRESS(12,33,1,1,$A$1)","v":"Summary!$AG$12"},"=IF(AP12=\"\",IF(Test_Statistic<$AK$35,AJ12,IF(Test_Statistic<$AM$35,AL12,AN12)),AP12)",0,{"$f":"ADDRESS(32,6,1,1,$D$1)","v":"'Fixed Income Investments'!$F$32"},"=IF(D32<0,0,D32*E32)",{"$f":"IF(_xlfn.FORMULATEXT(INDIRECT(D52))=E52,0,1)","v":0},{"$f":"ADDRESS(38,5,1,1,$G$1)","v":"'Equity Investments'!$E$38"},0.2,{"$f":"IF(INDIRECT(G52)=H52,0,1)","v":0},null,null,null,{"$f":"ADDRESS(41,4,1,1,$M$1)","v":"'Credit Risk'!$D$41"},"=SUM(D31:D40)",0,{"$f":"ADDRESS(20,5,1,1,$P$1)","v":"'Premium Risk'!$E$20"},"=+'Schedule IVA'!Q20",{"$f":"IF(_xlfn.FORMULATEXT(INDIRECT(P52))=Q52,0,1)","v":0},{"$f":"ADDRESS(20,5,1,1,$S$1)","v":"'Reserve Risk'!$E$20"},"='Schedule III (EBS)'!F19",{"$f":"IF(_xlfn.FORMULATEXT(INDIRECT(S52))=T52,0,1)","v":0},null,null,null,null,null,-52,{"$f":"ADDRESS(22,14,1,1,$AB$1)","v":"'LT Variable Annuity Gte Risk'!$N$22"},"='Schedule VIII (EBS)'!N15",{"$f":"IF(_xlfn.FORMULATEXT(INDIRECT(AB52))=AC52,0,1)","v":0}]
[{"$f":"ADDRESS(12,36,1,1,$A$1)","v":"Summary!$AJ$12"},"=IF(AD15>0.6,300,300)",0,{"$f":"ADDRESS(33,4,1,1,$D$1)","v":"'Fixed Income Investments'!$D$33"},"=+'Schedule II (EBS)'!H19+'Schedule IIA (EBS)'!H19",{"$f":"IF(_xlfn.FORMULATEXT(INDIRECT(D53))=E53,0,1)","v":0},{"$f":"ADDRESS(38,6,1,1,$G$1)","v":"'Equity Investments'!$F$38"},"=IF($D$38<0,0,$D$38*$E$38)",{"$f":"IF(_xlfn.FORMULATEXT(INDIRECT(G53))=H53,0,1)","v":0},null,null,null,{"$f":"ADDRESS(41,6,1,1,$M$1)","v":"'Credit Risk'!$F$41"},"=SUM(F31:F40)",0,{"$f":"ADDRESS(20,6,1,1,$P$1)","v":"'Premium Risk'!$F$20"},"=+'Geographic Diversification'!H18",{"$f":"IF(_xlfn.FORMULATEXT(INDIRECT(P53))=Q53,0,1)","v":0},{"$f":"ADDRESS(20,6,1,1,$S$1)","v":"'Reserve Risk'!$F$20"},"=+'Geographic Diversification'!H49",{"$f":"IF(_xlfn.FORMULATEXT(INDIRECT(S53))=T53,0,1)","v":0},null,null,null,null,null,null,{"$f":"ADDRESS(22,15,1,1,$AB$1)","v":"'LT Variable Annuity Gte Risk'!$O$22"},1,{"$f":"IF(INDIRECT(AB53)=AC53,0,1)","v":0}]
[{"$f":"ADDRESS(12,37,1,1,$A$1)","v":"Summary!$AK$12"},"=IF(AD17>1,140,IF(AD15>1,120,IF(AD15>0.6,150,100)))",0,{"$f":"ADDRESS(33,5,1,1,$D$1)","v":"'Fixed Income Investments'!$E$33"},0.35,{"$f":"IF(INDIRECT(D54)=E54,0,1)","v":0},{"$f":"ADDRESS(40,4,1,1,$G$1)","v":"'Equity Investments'!$D$40"},"=SUM(D34:D38)",{"$f":"IF(_xlfn.FORMULATEXT(INDIRECT(G54))=H54,0,1)","v":0},null,null,null,{"$f":"ADDRESS(43,5,1,1,$M$1)","v":"'Credit Risk'!$E$43"},"='Schedule XVIII (EBS)'!R101",0,{"$f":"ADDRESS(20,7,1,1,$P$1)","v":"'Premium Risk'!$G$20"},0.42102344656076801,{"$f":"IF(INDIRECT(P54)=Q54,0,1)","v":0},{"$f":"ADDRESS(20,7,1,1,$S$1)","v":"'Reserve Risk'!$G$20"},0.39543823911176501,{"$f":"IF(INDIRECT(S54)=T54,0,1)","v":0},null,null,null,null,null,null,{"$f":"ADDRESS(22,17,1,1,$AB$1)","v":"'LT Variable Annuity Gte Risk'!$Q$22"},"=+'Schedule VIII (EBS)'!P15",{"$f":"IF(_xlfn.FORMULATEXT(INDIRECT(AB54))=AC54,0,1)","v":0}]
[{"$f":"ADDRESS(12,38,1,1,$A$1)","v":"Summary!$AL$12"},"=IF(Test_Statistic_2<0.95,280,260)",0,{"$f":"ADDRESS(33,6,1,1,$D$1)","v":"'Fixed Income Investments'!$F$33"},"=IF(D33<0,0,D33*E33)",{"$f":"IF(_xlfn.FORMULATEXT(INDIRECT(D55))=E55,0,1)","v":0},{"$f":"ADDRESS(40,6,1,1,$G$1)","v":"'Equity Investments'!$F$40"},"=IF(SUM(F34:F38)>=0,SUM(F34:F38),0)",{"$f":"IF(_xlfn.FORMULATEXT(INDIRECT(G55))=H55,0,1)","v":0},null,null,null,{"$f":"ADDRESS(43,6,1,1,$M$1)","v":"'Credit Risk'!$F$43"},"=SUM(F31:F39)*-('Schedule XVIII (EBS)'!R101)",0,{"$f":"ADDRESS(20,8,1,1,$P$1)","v":"'Premium Risk'!$H$20"},"=IF($F$20<0,0,$F$20*$G$20)",{"$f":"IF(_xlfn.FORMULATEXT(INDIRECT(P55))=Q55,0,1)","v":0},{"$f":"ADDRESS(20,8,1,1,$S$1)","v":"'Reserve Risk'!$H$20"},"=IF($F$20<0,0,$F$20*$G$20)",{"$f":"IF(_xlfn.FORMULATEXT(INDIRECT(S55))=T55,0,1)","v":0},null,null,null,null,null,null,{"$f":"ADDRESS(22,18,1,1,$AB$1)","v":"'LT Variable Annuity Gte Risk'!$R$22"},1.3,{"$f":"IF(INDIRECT(AB55)=AC55,0,1)","v":0}]
[{"$f":"ADDRESS(12,39,1,1,$A$1)","v":"Summary!$AM$12"},"=IF(Test_Statistic_2<0.95,170,200)",0,{"$f":"ADDRESS(34,4,1,1,$D$1)","v":"'Fixed Income Investments'!$D$34"},"=+'Schedule II (EBS)'!H20+'Schedule IIA (EBS)'!H20",{"$f":"IF(_xlfn.FORMULATEXT(INDIRECT(D56))=E56,0,1)","v":0},{"$f":"ADDRESS(44,4,1,1,$G$1)","v":"'Equity Investments'!$D$44"},"='Form 1EBS'!F35",{"$f":"IF(_xlfn.FORMULATEXT(INDIRECT(G56))=H56,0,1)","v":0},null,null,null,{"$f":"ADDRESS(45,4,1,1,$M$1)","v":"'Credit Risk'!$D$45"},"=SUM(D31:D39)",0,{"$f":"ADDRESS(21,4,1,1,$P$1)","v":"'Premium Risk'!$D$21"},"=+'Schedule IVA'!M21",{"$f":"IF(_xlfn.FORMULATEXT(INDIRECT(P56))=Q56,0,1)","v":0},{"$f":"ADDRESS(21,4,1,1,$S$1)","v":"'Reserve Risk'!$D$21"},"=+'Schedule III (EBS)'!D20",{"$f":"IF(_xlfn.FORMULATEXT(INDIRECT(S56))=T56,0,1)","v":0},null,null,null,null,null,null,{"$f":"ADDRESS(22,20,1,1,$AB$1)","v":"'LT Variable Annuity Gte Risk'!$T$22"},"=+'Schedule VIII (EBS)'!R15",{"$f":"IF(_xlfn.FORMULATEXT(INDIRECT(AB56))=AC56,0,1)","v":0}]
[{"$f":"ADDRESS(12,40,1,1,$A$1)","v":"Summary!$AN$12"},180,{"$f":"IF(INDIRECT(A57)=B57,0,1)","v":0},{"$f":"ADDRESS(34,5,1,1,$D$1)","v":"'Fixed Income Investments'!$E$34"},0.35,{"$f":"IF(INDIRECT(D57)=E57,0,1)","v":0},{"$f":"ADDRESS(44,5,1,1,$G$1)","v":"'Equity Investments'!$E$44"},0.05,{"$f":"IF(INDIRECT(G57)=H57,0,1)","v":0},null,null,null,{"$f":"ADDRESS(45,6,1,1,$M$1)","v":"'Credit Risk'!$F$45"},"=SUM(F40:F43)",0,{"$f":"ADDRESS(21,5,1,1,$P$1)","v":"'Premium Risk'!$E$21"},"=+'Schedule IVA'!Q21",{"$f":"IF(_xlfn.FORMULATEXT(INDIRECT(P57))=Q57,0,1)","v":0},{"$f":"ADDRESS(21,5,1,1,$S$1)","v":"'Reserve Risk'!$E$21"},"='Schedule III (EBS)'!F20",{"$f":"IF(_xlfn.FORMULATEXT(INDIRECT(S57))=T57,0,1)","v":0},null,null,null,null,null,null,{"$f":"ADDRESS(22,21,1,1,$AB$1)","v":"'LT Variable Annuity Gte Risk'!$U$22"},1.6,{"$f":"IF(INDIRECT(AB57)=AC57,0,1)","v":0}]
[{"$f":"ADDRESS(13,6,1,1,$A$1)","v":"Summary!$F$13"},"=ROUND('Currency Risk'!I28,$M$152)",{"$f":"IF(_xlfn.FORMULATEXT(INDIRECT(A58))=B58,0,1)","v":0},{"$f":"ADDRESS(34,6,1,1,$D$1)","v":"'Fixed Income Investments'!$F$34"},"=IF(D34<0,0,D34*E34)",{"$f":"IF(_xlfn.FORMULATEXT(INDIRECT(D58))=E58,0,1)","v":0},{"$f":"ADDRESS(44,6,1,1,$G$1)","v":"'Equity Investments'!$F$44"},"=IF($D$44<0,0,$D$44*$E$44)",{"$f":"IF(_xlfn.FORMULATEXT(INDIRECT(G58))=H58,0,1)","v":0},null,null,null,{"$f":"ADDRESS(47,4,1,1,$M$1)","v":"'Credit Risk'!$D$47"},"=D45+D22+D14",0,{"$f":"ADDRESS(21,6,1,1,$P$1)","v":"'Premium Risk'!$F$21"},"=+'Geographic Diversification'!H19",{"$f":"IF(_xlfn.FORMULATEXT(INDIRECT(P58))=Q58,0,1)","v":0},{"$f":"ADDRESS(21,6,1,1,$S$1)","v":"'Reserve Risk'!$F$21"},"=+'Geographic Diversification'!H50",{"$f":"IF(_xlfn.FORMULATEXT(INDIRECT(S58))=T58,0,1)","v":0},null,null,null,null,null,null,{"$f":"ADDRESS(22,23,1,1,$AB$1)","v":"'LT Variable Annuity Gte Risk'!$W$22"},"=IF(ISERROR(OR(E22*F22+H22*I22+K22*L22,N22*O22+Q22*R22+T22*U22)),0,MAX(E22*F22+H22*I22+K22*L22,N22*O22+Q22*R22+T22*U22))",{"$f":"IF(_xlfn.FORMULATEXT(INDIRECT(AB58))=AC58,0,1)","v":0}]
[{"$f":"ADDRESS(13,10,1,1,$A$1)","v":"Summary!$J$13"},"=ROUND('Currency Risk (Revised)'!Y39,$M$152)",0,{"$f":"ADDRESS(36,4,1,1,$D$1)","v":"'Fixed Income Investments'!$D$36"},"=SUM(D27:D34)",{"$f":"IF(_xlfn.FORMULATEXT(INDIRECT(D59))=E59,0,1)","v":0},{"$f":"ADDRESS(45,4,1,1,$G$1)","v":"'Equity Investments'!$D$45"},"='Form 1EBS'!F36",{"$f":"IF(_xlfn.FORMULATEXT(INDIRECT(G59))=H59,0,1)","v":0},null,null,null,{"$f":"ADDRESS(47,6,1,1,$M$1)","v":"'Credit Risk'!$F$47"},"=F45+F22+F14",0,{"$f":"ADDRESS(21,7,1,1,$P$1)","v":"'Premium Risk'!$G$21"},0.47016820069929899,{"$f":"IF(INDIRECT(P59)=Q59,0,1)","v":0},{"$f":"ADDRESS(21,7,1,1,$S$1)","v":"'Reserve Risk'!$G$21"},0.43945783577556502,{"$f":"IF(INDIRECT(S59)=T59,0,1)","v":0},null,null,null,null,null,null,{"$f":"ADDRESS(23,5,1,1,$AB$1)","v":"'LT Variable Annuity Gte Risk'!$E$23"},"='Schedule VIII (EBS)'!H33",{"$f":"IF(_xlfn.FORMULATEXT(INDIRECT(AB59))=AC59,0,1)","v":0}]
[{"$f":"ADDRESS(13,12,1,1,$A$1)","v":"Summary!$L$13"},"=ROUND('Currency Risk (Revised)'!X39,$M$152)",0,{"$f":"ADDRESS(36,6,1,1,$D$1)","v":"'Fixed Income Investments'!$F$36"},"=IF(SUM(F27:F34)>=0,SUM(F27:F34),0)",{"$f":"IF(_xlfn.FORMULATEXT(INDIRECT(D60))=E60,0,1)","v":0},{"$f":"ADDRESS(45,5,1,1,$G$1)","v":"'Equity Investments'!$E$45"},0.2,{"$f":"IF(INDIRECT(G60)=H60,0,1)","v":0},null,null,null,null,null,-60,{"$f":"ADDRESS(21,8,1,1,$P$1)","v":"'Premium Risk'!$H$21"},"=IF($F$21<0,0,$F$21*$G$21)",{"$f":"IF(_xlfn.FORMULATEXT(INDIRECT(P60))=Q60,0,1)","v":0},{"$f":"ADDRESS(21,8,1,1,$S$1)","v":"'Reserve Risk'!$H$21"},"=IF($F$21<0,0,$F$21*$G$21)",{"$f":"IF(_xlfn.FORMULATEXT(INDIRECT(S60))=T60,0,1)","v":0},null,null,null,null,null,null,{"$f":"ADDRESS(23,6,1,1,$AB$1)","v":"'LT Variable Annuity Gte Risk'!$F$23"},0.05,{"$f":"IF(INDIRECT(AB60)=AC60,0,1)","v":0}]
[{"$f":"ADDRESS(13,25,1,1,$A$1)","v":"Summary!$Y$13"},"=J13",0,{"$f":"ADDRESS(41,4,1,1,$D$1)","v":"'Fixed Income Investments'!$D$41"},"='Schedule II (EBS)'!L13+'Schedule IIA (EBS)'!L13",{"$f":"IF(_xlfn.FORMULATEXT(INDIRECT(D61))=E61,0,1)","v":0},{"$f":"ADDRESS(45,6,1,1,$G$1)","v":"'Equity Investments'!$F$45"},"=IF($D$45<0,0,$D$45*$E$45)",{"$f":"IF(_xlfn.FORMULATEXT(INDIRECT(G61))=H61,0,1)","v":0},null,null,null,null,null,null,{"$f":"ADDRESS(22,4,1,1,$P$1)","v":"'Premium Risk'!$D$22"},"=+'Schedule IVA'!M22",{"$f":"IF(_xlfn.FORMULATEXT(INDIRECT(P61))=Q61,0,1)","v":0},{"$f":"ADDRESS(22,4,1,1,$S$1)","v":"'Reserve Risk'!$D$22"},"=+'Schedule III (EBS)'!D21",{"$f":"IF(_xlfn.FORMULATEXT(INDIRECT(S61))=T61,0,1)","v":0},null,null,null,null,null,null,{"$f":"ADDRESS(23,8,1,1,$AB$1)","v":"'LT Variable Annuity Gte Risk'!$H$23"},"='Schedule VIII (EBS)'!J33",{"$f":"IF(_xlfn.FORMULATEXT(INDIRECT(AB61))=AC61,0,1)","v":0}]
[{"$f":"ADDRESS(13,26,1,1,$A$1)","v":"Summary!$Z$13"},"=IF($K$35=0,1/16,Y13/$Y$29)",0,{"$f":"ADDRESS(41,5,1,1,$D$1)","v":"'Fixed Income Investments'!$E$41"},5.0000000000000001E-3,{"$f":"IF(INDIRECT(D62)=E62,0,1)","v":0},{"$f":"ADDRESS(46,4,1,1,$G$1)","v":"'Equity Investments'!$D$46"},"='Form 1EBS'!F37",{"$f":"IF(_xlfn.FORMULATEXT(INDIRECT(G62))=H62,0,1)","v":0},null,null,null,null,null,null,{"$f":"ADDRESS(22,5,1,1,$P$1)","v":"'Premium Risk'!$E$22"},"=+'Schedule IVA'!Q22",{"$f":"IF(_xlfn.FORMULATEXT(INDIRECT(P62))=Q62,0,1)","v":0},{"$f":"ADDRESS(22,5,1,1,$S$1)","v":"'Reserve Risk'!$E$22"},"='Schedule III (EBS)'!F21",{"$f":"IF(_xlfn.FORMULATEXT(INDIRECT(S62))=T62,0,1)","v":0},null,null,null,null,null,null,{"$f":"ADDRESS(23,9,1,1,$AB$1)","v":"'LT Variable Annuity Gte Risk'!$I$23"},6.5000000000000002E-2,{"$f":"IF(INDIRECT(AB62)=AC62,0,1)","v":0}]
[{"$f":"ADDRESS(13,27,1,1,$A$1)","v":"Summary!$AA$13"},"=L13",0,{"$f":"ADDRESS(41,6,1,1,$D$1)","v":"'Fixed Income Investments'!$F$41"},"=IF(D41<0,0,D41*E41)",{"$f":"IF(_xlfn.FORMULATEXT(INDIRECT(D63))=E63,0,1)","v":0},{"$f":"ADDRESS(46,5,1,1,$G$1)","v":"'Equity Investments'!$E$46"},0.55000000000000004,{"$f":"IF(INDIRECT(G63)=H63,0,1)","v":0},null,null,null,null,null,null,{"$f":"ADDRESS(22,6,1,1,$P$1)","v":"'Premium Risk'!$F$22"},"=+'Geographic Diversification'!H20",{"$f":"IF(_xlfn.FORMULATEXT(INDIRECT(P63))=Q63,0,1)","v":0},{"$f":"ADDRESS(22,6,1,1,$S$1)","v":"'Reserve Risk'!$F$22"},"=+'Geographic Diversification'!H51",{"$f":"IF(_xlfn.FORMULATEXT(INDIRECT(S63))=T63,0,1)","v":0},null,null,null,null,null,null,{"$f":"ADDRESS(23,11,1,1,$AB$1)","v":"'LT Variable Annuity Gte Risk'!$K$23"},"='Schedule VIII (EBS)'!L33",{"$f":"IF(_xlfn.FORMULATEXT(INDIRECT(AB63))=AC63,0,1)","v":0}]
[{"$f":"ADDRESS(13,28,1,1,$A$1)","v":"Summary!$AB$13"},"=IF($M$35=0,1/16,AA13/$AA$29)",0,{"$f":"ADDRESS(42,4,1,1,$D$1)","v":"'Fixed Income Investments'!$D$42"},"='Schedule II (EBS)'!L14+'Schedule IIA (EBS)'!L14",{"$f":"IF(_xlfn.FORMULATEXT(INDIRECT(D64))=E64,0,1)","v":0},{"$f":"ADDRESS(46,6,1,1,$G$1)","v":"'Equity Investments'!$F$46"},"=IF($D$46<0,0,$D$46*$E$46)",{"$f":"IF(_xlfn.FORMULATEXT(INDIRECT(G64))=H64,0,1)","v":0},null,null,null,null,null,null,{"$f":"ADDRESS(22,7,1,1,$P$1)","v":"'Premium Risk'!$G$22"},0.50272577892886305,{"$f":"IF(INDIRECT(P64)=Q64,0,1)","v":0},{"$f":"ADDRESS(22,7,1,1,$S$1)","v":"'Reserve Risk'!$G$22"},0.43018098459069698,{"$f":"IF(INDIRECT(S64)=T64,0,1)","v":0},null,null,null,null,null,null,{"$f":"ADDRESS(23,12,1,1,$AB$1)","v":"'LT Variable Annuity Gte Risk'!$L$23"},0.08,{"$f":"IF(INDIRECT(AB64)=AC64,0,1)","v":0}]
[{"$f":"ADDRESS(13,30,1,1,$A$1)","v":"Summary!$AD$13"},"=(SUM(AB$10:AB13)/AB$29)+0.125",0,{"$f":"ADDRESS(42,5,1,1,$D$1)","v":"'Fixed Income Investments'!$E$42"},0.01,{"$f":"IF(INDIRECT(D65)=E65,0,1)","v":0},{"$f":"ADDRESS(47,4,1,1,$G$1)","v":"'Equity Investments'!$D$47"},"='Form 1EBS'!F39",{"$f":"IF(_xlfn.FORMULATEXT(INDIRECT(G65))=H65,0,1)","v":0},null,null,null,null,null,null,{"$f":"ADDRESS(22,8,1,1,$P$1)","v":"'Premium Risk'!$H$22"},"=IF($F$22<0,0,$F$22*$G$22)",{"$f":"IF(_xlfn.FORMULATEXT(INDIRECT(P65))=Q65,0,1)","v":0},{"$f":"ADDRESS(22,8,1,1,$S$1)","v":"'Reserve Risk'!$H$22"},"=IF($F$22<0,0,$F$22*$G$22)",{"$f":"IF(_xlfn.FORMULATEXT(INDIRECT(S65))=T65,0,1)","v":0},null,null,null,null,null,null,{"$f":"ADDRESS(23,23,1,1,$AB$1)","v":"'LT Variable Annuity Gte Risk'!$W$23"},"=IF(ISERROR(OR(E23*F23+H23*I23+K23*L23,N23*O23+Q23*R23+T23*U23)),0,MAX(E23*F23+H23*I23+K23*L23,N23*O23+Q23*R23+T23*U23))",{"$f":"IF(_xlfn.FORMULATEXT(INDIRECT(AB65))=AC65,0,1)","v":0}]
[{"$f":"ADDRESS(14,6,1,1,$A$1)","v":"Summary!$F$14"},"=ROUND('Concentration Risk'!F111,$M$152)",0,{"$f":"ADDRESS(42,6,1,1,$D$1)","v":"'Fixed Income Investments'!$F$42"},"=IF(D42<0,0,D42*E42)",{"$f":"IF(_xlfn.FORMULATEXT(INDIRECT(D66))=E66,0,1)","v":0},{"$f":"ADDRESS(47,5,1,1,$G$1)","v":"'Equity Investments'!$E$47"},0.2,{"$f":"IF(INDIRECT(G66)=H66,0,1)","v":0},null,null,null,null,null,null,{"$f":"ADDRESS(23,4,1,1,$P$1)","v":"'Premium Risk'!$D$23"},"=+'Schedule IVA'!M23",{"$f":"IF(_xlfn.FORMULATEXT(INDIRECT(P66))=Q66,0,1)","v":0},{"$f":"ADDRESS(23,4,1,1,$S$1)","v":"'Reserve Risk'!$D$23"},"=+'Schedule III (EBS)'!D22",{"$f":"IF(_xlfn.FORMULATEXT(INDIRECT(S66))=T66,0,1)","v":0},null,null,null,null,null,null,{"$f":"ADDRESS(26,5,1,1,$AB$1)","v":"'LT Variable Annuity Gte Risk'!$E$26"},"='Schedule VIII (EBS)'!H16",{"$f":"IF(_xlfn.FORMULATEXT(INDIRECT(AB66))=AC66,0,1)","v":0}]
[{"$f":"ADDRESS(14,10,1,1,$A$1)","v":"Summary!$J$14"},"=ROUND('Concentration Risk (Revised)'!F123,$M$152)",0,{"$f":"ADDRESS(43,4,1,1,$D$1)","v":"'Fixed Income Investments'!$D$43"},"='Schedule II (EBS)'!L15+'Schedule IIA (EBS)'!L15",{"$f":"IF(_xlfn.FORMULATEXT(INDIRECT(D67))=E67,0,1)","v":0},{"$f":"ADDRESS(47,6,1,1,$G$1)","v":"'Equity Investments'!$F$47"},"=IF($D$47<0,0,$D$47*$E$47)",{"$f":"IF(_xlfn.FORMULATEXT(INDIRECT(G67))=H67,0,1)","v":0},null,null,null,null,null,null,{"$f":"ADDRESS(23,5,1,1,$P$1)","v":"'Premium Risk'!$E$23"},"=+'Schedule IVA'!Q23",{"$f":"IF(_xlfn.FORMULATEXT(INDIRECT(P67))=Q67,0,1)","v":0},{"$f":"ADDRESS(23,5,1,1,$S$1)","v":"'Reserve Risk'!$E$23"},"='Schedule III (EBS)'!F22",{"$f":"IF(_xlfn.FORMULATEXT(INDIRECT(S67))=T67,0,1)","v":0},null,null,null,null,null,null,{"$f":"ADDRESS(26,6,1,1,$AB$1)","v":"'LT Variable Annuity Gte Risk'!$F$26"},3.2500000000000001E-2,{"$f":"IF(INDIRECT(AB67)=AC67,0,1)","v":0}]
[{"$f":"ADDRESS(14,12,1,1,$A$1)","v":"Summary!$L$14"},"=ROUND('Concentration Risk (Revised)'!F123,$M$152)",0,{"$f":"ADDRESS(43,5,1,1,$D$1)","v":"'Fixed Income Investments'!$E$43"},1.7999999999999999E-2,{"$f":"IF(INDIRECT(D68)=E68,0,1)","v":0},{"$f":"ADDRESS(49,4,1,1,$G$1)","v":"'Equity Investments'!$D$49"},"=SUM(D44:D48)",{"$f":"IF(_xlfn.FORMULATEXT(INDIRECT(G68))=H68,0,1)","v":0},null,null,null,null,null,null,{"$f":"ADDRESS(23,6,1,1,$P$1)","v":"'Premium Risk'!$F$23"},"=+'Geographic Diversification'!H21",{"$f":"IF(_xlfn.FORMULATEXT(INDIRECT(P68))=Q68,0,1)","v":0},{"$f":"ADDRESS(23,6,1,1,$S$1)","v":"'Reserve Risk'!$F$23"},"=+'Geographic Diversification'!H52",{"$f":"IF(_xlfn.FORMULATEXT(INDIRECT(S68))=T68,0,1)","v":0},null,null,null,null,null,null,{"$f":"ADDRESS(26,8,1,1,$AB$1)","v":"'LT Variable Annuity Gte Risk'!$H$26"},"='Schedule VIII (EBS)'!J16",{"$f":"IF(_xlfn.FORMULATEXT(INDIRECT(AB68))=AC68,0,1)","v":0}]
[{"$f":"ADDRESS(14,25,1,1,$A$1)","v":"Summary!$Y$14"},"=J14",0,{"$f":"ADDRESS(43,6,1,1,$D$1)","v":"'Fixed Income Investments'!$F$43"},"=IF(D43<0,0,D43*E43)",{"$f":"IF(_xlfn.FORMULATEXT(INDIRECT(D69))=E69,0,1)","v":0},{"$f":"ADDRESS(49,6,1,1,$G$1)","v":"'Equity Investments'!$F$49"},"=SUM(F44:F48)",{"$f":"IF(_xlfn.FORMULATEXT(INDIRECT(G69))=H69,0,1)","v":0},null,null,null,null,null,null,{"$f":"ADDRESS(23,7,1,1,$P$1)","v":"'Premium Risk'!$G$23"},0.555814073452775,{"$f":"IF(INDIRECT(P69)=Q69,0,1)","v":0},{"$f":"ADDRESS(23,7,1,1,$S$1)","v":"'Reserve Risk'!$G$23"},0.48842309052279498,{"$f":"IF(INDIRECT(S69)=T69,0,1)","v":0},null,null,null,null,null,null,{"$f":"ADDRESS(26,9,1,1,$AB$1)","v":"'LT Variable Annuity Gte Risk'!$I$26"},4.2500000000000003E-2,{"$f":"IF(INDIRECT(AB69)=AC69,0,1)","v":0}]
[{"$f":"ADDRESS(14,26,1,1,$A$1)","v":"Summary!$Z$14"},"=IF($K$35=0,1/16,Y14/$Y$29)",0,{"$f":"ADDRESS(44,4,1,1,$D$1)","v":"'Fixed Income Investments'!$D$44"},"='Schedule II (EBS)'!L16+'Schedule IIA (EBS)'!L16",{"$f":"IF(_xlfn.FORMULATEXT(INDIRECT(D70))=E70,0,1)","v":0},{"$f":"ADDRESS(51,4,1,1,$G$1)","v":"'Equity Investments'!$D$51"},"=D15+D29+D40+D49",{"$f":"IF(_xlfn.FORMULATEXT(INDIRECT(G70))=H70,0,1)","v":0},null,null,null,null,null,null,{"$f":"ADDRESS(23,8,1,1,$P$1)","v":"'Premium Risk'!$H$23"},"=IF($F$23<0,0,$F$23*$G$23)",{"$f":"IF(_xlfn.FORMULATEXT(INDIRECT(P70))=Q70,0,1)","v":0},{"$f":"ADDRESS(23,8,1,1,$S$1)","v":"'Reserve Risk'!$H$23"},"=IF($F$23<0,0,$F$23*$G$23)",{"$f":"IF(_xlfn.FORMULATEXT(INDIRECT(S70))=T70,0,1)","v":0},null,null,null,null,null,null,{"$f":"ADDRESS(26,11,1,1,$AB$1)","v":"'LT Variable Annuity Gte Risk'!$K$26"},"='Schedule VIII (EBS)'!L16",{"$f":"IF(_xlfn.FORMULATEXT(INDIRECT(AB70))=AC70,0,1)","v":0}]
[{"$f":"ADDRESS(14,27,1,1,$A$1)","v":"Summary!$AA$14"},"=L14",0,{"$f":"ADDRESS(44,5,1,1,$D$1)","v":"'Fixed Income Investments'!$E$44"},3.5000000000000003E-2,{"$f":"IF(INDIRECT(D71)=E71,0,1)","v":0},{"$f":"ADDRESS(51,6,1,1,$G$1)","v":"'Equity Investments'!$F$51"},"=F15+F29+F40+F49",{"$f":"IF(_xlfn.FORMULATEXT(INDIRECT(G71))=H71,0,1)","v":0},null,null,null,null,null,null,{"$f":"ADDRESS(24,4,1,1,$P$1)","v":"'Premium Risk'!$D$24"},"=+'Schedule IVA'!M24",{"$f":"IF(_xlfn.FORMULATEXT(INDIRECT(P71))=Q71,0,1)","v":0},{"$f":"ADDRESS(24,4,1,1,$S$1)","v":"'Reserve Risk'!$D$24"},"=+'Schedule III (EBS)'!D23",{"$f":"IF(_xlfn.FORMULATEXT(INDIRECT(S71))=T71,0,1)","v":0},null,null,null,null,null,null,{"$f":"ADDRESS(26,12,1,1,$AB$1)","v":"'LT Variable Annuity Gte Risk'!$L$26"},0.05,{"$f":"IF(INDIRECT(AB71)=AC71,0,1)","v":0}]
[{"$f":"ADDRESS(14,28,1,1,$A$1)","v":"Summary!$AB$14"},"=IF($M$35=0,1/16,AA14/$AA$29)",0,{"$f":"ADDRESS(44,6,1,1,$D$1)","v":"'Fixed Income Investments'!$F$44"},"=IF(D44<0,0,D44*E44)",{"$f":"IF(_xlfn.FORMULATEXT(INDIRECT(D72))=E72,0,1)","v":0},null,null,-72,null,null,null,null,null,null,{"$f":"ADDRESS(24,5,1,1,$P$1)","v":"'Premium Risk'!$E$24"},"=+'Schedule IVA'!Q24",{"$f":"IF(_xlfn.FORMULATEXT(INDIRECT(P72))=Q72,0,1)","v":0},{"$f":"ADDRESS(24,5,1,1,$S$1)","v":"'Reserve Risk'!$E$24"},"='Schedule III (EBS)'!F23",{"$f":"IF(_xlfn.FORMULATEXT(INDIRECT(S72))=T72,0,1)","v":0},null,null,null,null,null,null,{"$f":"ADDRESS(26,14,1,1,$AB$1)","v":"'LT Variable Annuity Gte Risk'!$N$26"},"='Schedule VIII (EBS)'!N16",{"$f":"IF(_xlfn.FORMULATEXT(INDIRECT(AB72))=AC72,0,1)","v":0}]
[{"$f":"ADDRESS(14,30,1,1,$A$1)","v":"Summary!$AD$14"},"=(SUM(AB$10:AB14)/AB$29)+0.125",0,{"$f":"ADDRESS(45,4,1,1,$D$1)","v":"'Fixed Income Investments'!$D$45"},"='Schedule II (EBS)'!L17+'Schedule IIA (EBS)'!L17",{"$f":"IF(_xlfn.FORMULATEXT(INDIRECT(D73))=E73,0,1)","v":0},null,null,null,null,null,null,null,null,null,{"$f":"ADDRESS(24,6,1,1,$P$1)","v":"'Premium Risk'!$F$24"},"=+'Geographic Diversification'!H22",{"$f":"IF(_xlfn.FORMULATEXT(INDIRECT(P73))=Q73,0,1)","v":0},{"$f":"ADDRESS(24,6,1,1,$S$1)","v":"'Reserve Risk'!$F$24"},"=+'Geographic Diversification'!H53",{"$f":"IF(_xlfn.FORMULATEXT(INDIRECT(S73))=T73,0,1)","v":0},null,null,null,null,null,null,{"$f":"ADDRESS(26,15,1,1,$AB$1)","v":"'LT Variable Annuity Gte Risk'!$O$26"},0.6,{"$f":"IF(INDIRECT(AB73)=AC73,0,1)","v":0}]
[{"$f":"ADDRESS(15,25,1,1,$A$1)","v":"Summary!$Y$15"},"=J17",0,{"$f":"ADDRESS(45,5,1,1,$D$1)","v":"'Fixed Income Investments'!$E$45"},0.1,{"$f":"IF(INDIRECT(D74)=E74,0,1)","v":0},null,null,null,null,null,null,null,null,null,{"$f":"ADDRESS(24,7,1,1,$P$1)","v":"'Premium Risk'!$G$24"},0.51225206482709496,{"$f":"IF(INDIRECT(P74)=Q74,0,1)","v":0},{"$f":"ADDRESS(24,7,1,1,$S$1)","v":"'Reserve Risk'!$G$24"},0.462752832710698,{"$f":"IF(INDIRECT(S74)=T74,0,1)","v":0},null,null,null,null,null,null,{"$f":"ADDRESS(26,17,1,1,$AB$1)","v":"'LT Variable Annuity Gte Risk'!$Q$26"},"=+'Schedule VIII (EBS)'!P16",{"$f":"IF(_xlfn.FORMULATEXT(INDIRECT(AB74))=AC74,0,1)","v":0}]
[{"$f":"ADDRESS(15,26,1,1,$A$1)","v":"Summary!$Z$15"},"=IF($K$35=0,1/16,Y15/$Y$29)",0,{"$f":"ADDRESS(45,6,1,1,$D$1)","v":"'Fixed Income Investments'!$F$45"},"=IF(D45<0,0,D45*E45)",{"$f":"IF(_xlfn.FORMULATEXT(INDIRECT(D75))=E75,0,1)","v":0},null,null,null,null,null,null,null,null,null,{"$f":"ADDRESS(24,8,1,1,$P$1)","v":"'Premium Risk'!$H$24"},"=IF($F$24<0,0,$F$24*$G$24)",{"$f":"IF(_xlfn.FORMULATEXT(INDIRECT(P75))=Q75,0,1)","v":0},{"$f":"ADDRESS(24,8,1,1,$S$1)","v":"'Reserve Risk'!$H$24"},"=IF($F$24<0,0,$F$24*$G$24)",{"$f":"IF(_xlfn.FORMULATEXT(INDIRECT(S75))=T75,0,1)","v":0},null,null,null,null,null,null,{"$f":"ADDRESS(26,18,1,1,$AB$1)","v":"'LT Variable Annuity Gte Risk'!$R$26"},0.75,{"$f":"IF(INDIRECT(AB75)=AC75,0,1)","v":0}]
[{"$f":"ADDRESS(15,27,1,1,$A$1)","v":"Summary!$AA$15"},"=L17",0,{"$f":"ADDRESS(46,4,1,1,$D$1)","v":"'Fixed Income Investments'!$D$46"},"='Schedule II (EBS)'!L18+'Schedule IIA (EBS)'!L18",{"$f":"IF(_xlfn.FORMULATEXT(INDIRECT(D76))=E76,0,1)","v":0},null,null,null,null,null,null,null,null,null,{"$f":"ADDRESS(25,4,1,1,$P$1)","v":"'Premium Risk'!$D$25"},"=+'Schedule IVA'!M25",{"$f":"IF(_xlfn.FORMULATEXT(INDIRECT(P76))=Q76,0,1)","v":0},{"$f":"ADDRESS(25,4,1,1,$S$1)","v":"'Reserve Risk'!$D$25"},"=+'Schedule III (EBS)'!D24",{"$f":"IF(_xlfn.FORMULATEXT(INDIRECT(S76))=T76,0,1)","v":0},null,null,null,null,null,null,{"$f":"ADDRESS(26,20,1,1,$AB$1)","v":"'LT Variable Annuity Gte Risk'!$T$26"},"=+'Schedule VIII (EBS)'!R16",{"$f":"IF(_xlfn.FORMULATEXT(INDIRECT(AB76))=AC76,0,1)","v":0}]
[{"$f":"ADDRESS(15,28,1,1,$A$1)","v":"Summary!$AB$15"},"=IF($M$35=0,1/16,AA15/$AA$29)",0,{"$f":"ADDRESS(46,5,1,1,$D$1)","v":"'Fixed Income Investments'!$E$46"},0.2,{"$f":"IF(INDIRECT(D77)=E77,0,1)","v":0},null,null,null,null,null,null,null,null,null,{"$f":"ADDRESS(25,5,1,1,$P$1)","v":"'Premium Risk'!$E$25"},"=+'Schedule IVA'!Q25",{"$f":"IF(_xlfn.FORMULATEXT(INDIRECT(P77))=Q77,0,1)","v":0},{"$f":"ADDRESS(25,5,1,1,$S$1)","v":"'Reserve Risk'!$E$25"},"='Schedule III (EBS)'!F24",{"$f":"IF(_xlfn.FORMULATEXT(INDIRECT(S77))=T77,0,1)","v":0},null,null,null,null,null,null,{"$f":"ADDRESS(26,21,1,1,$AB$1)","v":"'LT Variable Annuity Gte Risk'!$U$26"},0.9,{"$f":"IF(INDIRECT(AB77)=AC77,0,1)","v":0}]
[{"$f":"ADDRESS(15,30,1,1,$A$1)","v":"Summary!$AD$15"},"=IF(ISERROR(AB29),0,(SUM(AB$10:AB17)/AB$29)+0.125)",0,{"$f":"ADDRESS(46,6,1,1,$D$1)","v":"'Fixed Income Investments'!$F$46"},"=IF(D46<0,0,D46*E46)",{"$f":"IF(_xlfn.FORMULATEXT(INDIRECT(D78))=E78,0,1)","v":0},null,null,null,null,null,null,null,null,null,{"$f":"ADDRESS(25,6,1,1,$P$1)","v":"'Premium Risk'!$F$25"},"=+'Geographic Diversification'!H23",{"$f":"IF(_xlfn.FORMULATEXT(INDIRECT(P78))=Q78,0,1)","v":0},{"$f":"ADDRESS(25,6,1,1,$S$1)","v":"'Reserve Risk'!$F$25"},"=+'Geographic Diversification'!H54",{"$f":"IF(_xlfn.FORMULATEXT(INDIRECT(S78))=T78,0,1)","v":0},null,null,null,null,null,null,{"$f":"ADDRESS(26,23,1,1,$AB$1)","v":"'LT Variable Annuity Gte Risk'!$W$26"},"=IF(ISERROR(OR(E26*F26+H26*I26+K26*L26,N26*O26+Q26*R26+T26*U26)),0,MAX(E26*F26+H26*I26+K26*L26,N26*O26+Q26*R26+T26*U26))",{"$f":"IF(_xlfn.FORMULATEXT(INDIRECT(AB78))=AC78,0,1)","v":0}]
[{"$f":"ADDRESS(15,31,1,1,$A$1)","v":"Summary!$AE$15"},"=IF(ISERROR(AVERAGE(AD17:AD17)),0,AVERAGE(AD17:AD17))",0,{"$f":"ADDRESS(47,4,1,1,$D$1)","v":"'Fixed Income Investments'!$D$47"},"='Schedule II (EBS)'!L19+'Schedule IIA (EBS)'!L19",{"$f":"IF(_xlfn.FORMULATEXT(INDIRECT(D79))=E79,0,1)","v":0},null,null,null,null,null,null,null,null,null,{"$f":"ADDRESS(25,7,1,1,$P$1)","v":"'Premium Risk'!$G$25"},0.53805556666757803,{"$f":"IF(INDIRECT(P79)=Q79,0,1)","v":0},{"$f":"ADDRESS(25,7,1,1,$S$1)","v":"'Reserve Risk'!$G$25"},0.51484129765284703,{"$f":"IF(INDIRECT(S79)=T79,0,1)","v":0},null,null,null,null,null,null,{"$f":"ADDRESS(27,5,1,1,$AB$1)","v":"'LT Variable Annuity Gte Risk'!$E$27"},"='Schedule VIII (EBS)'!H34",{"$f":"IF(_xlfn.FORMULATEXT(INDIRECT(AB79))=AC79,0,1)","v":0}]
[{"$f":"ADDRESS(15,33,1,1,$A$1)","v":"Summary!$AG$15"},"=IF(AP17=\"\",IF(Test_Statistic<$AK$35,AJ15,IF(Test_Statistic<$AM$35,AL15,AN15)),AP17)",0,{"$f":"ADDRESS(47,5,1,1,$D$1)","v":"'Fixed Income Investments'!$E$47"},0.3,{"$f":"IF(INDIRECT(D80)=E80,0,1)","v":0},null,null,null,null,null,null,null,null,null,{"$f":"ADDRESS(25,8,1,1,$P$1)","v":"'Premium Risk'!$H$25"},"=IF($F$25<0,0,$F$25*$G$25)",{"$f":"IF(_xlfn.FORMULATEXT(INDIRECT(P80))=Q80,0,1)","v":0},{"$f":"ADDRESS(25,8,1,1,$S$1)","v":"'Reserve Risk'!$H$25"},"=IF($F$25<0,0,$F$25*$G$25)",{"$f":"IF(_xlfn.FORMULATEXT(INDIRECT(S80))=T80,0,1)","v":0},null,null,null,null,null,null,{"$f":"ADDRESS(27,6,1,1,$AB$1)","v":"'LT Variable Annuity Gte Risk'!$F$27"},3.2500000000000001E-2,{"$f":"IF(INDIRECT(AB80)=AC80,0,1)","v":0}]
[{"$f":"ADDRESS(15,34,1,1,$A$1)","v":"Summary!$AH$15"},"=IF(AQ17=\"\",IF(Test_Statistic<$AK$35,AK15,IF(Test_Statistic<$AM$35,AM15,AO15)),AQ17)",0,{"$f":"ADDRESS(47,6,1,1,$D$1)","v":"'Fixed Income Investments'!$F$47"},"=IF(D47<0,0,D47*E47)",{"$f":"IF(_xlfn.FORMULATEXT(INDIRECT(D81))=E81,0,1)","v":0},null,null,null,null,null,null,null,null,null,{"$f":"ADDRESS(26,4,1,1,$P$1)","v":"'Premium Risk'!$D$26"},"=+'Schedule IVA'!M26",{"$f":"IF(_xlfn.FORMULATEXT(INDIRECT(P81))=Q81,0,1)","v":0},{"$f":"ADDRESS(26,4,1,1,$S$1)","v":"'Reserve Risk'!$D$26"},"=+'Schedule III (EBS)'!D25",{"$f":"IF(_xlfn.FORMULATEXT(INDIRECT(S81))=T81,0,1)","v":0},null,null,null,null,null,null,{"$f":"ADDRESS(27,8,1,1,$AB$1)","v":"'LT Variable Annuity Gte Risk'!$H$27"},"='Schedule VIII (EBS)'!J34",{"$f":"IF(_xlfn.FORMULATEXT(INDIRECT(AB81))=AC81,0,1)","v":0}]
[{"$f":"ADDRESS(15,36,1,1,$A$1)","v":"Summary!$AJ$15"},"=IF(AD17>1,200,IF(AD15>1,50,IF(AD15>0.6,50,180)))",0,{"$f":"ADDRESS(48,4,1,1,$D$1)","v":"'Fixed Income Investments'!$D$48"},"='Schedule II (EBS)'!L20+'Schedule IIA (EBS)'!L20",{"$f":"IF(_xlfn.FORMULATEXT(INDIRECT(D82))=E82,0,1)","v":0},null,null,null,null,null,null,null,null,null,{"$f":"ADDRESS(26,5,1,1,$P$1)","v":"'Premium Risk'!$E$26"},"=+'Schedule IVA'!Q26",{"$f":"IF(_xlfn.FORMULATEXT(INDIRECT(P82))=Q82,0,1)","v":0},{"$f":"ADDRESS(26,5,1,1,$S$1)","v":"'Reserve Risk'!$E$26"},"='Schedule III (EBS)'!F25",{"$f":"IF(_xlfn.FORMULATEXT(INDIRECT(S82))=T82,0,1)","v":0},null,null,null,null,null,null,{"$f":"ADDRESS(27,9,1,1,$AB$1)","v":"'LT Variable Annuity Gte Risk'!$I$27"},4.2500000000000003E-2,{"$f":"IF(INDIRECT(AB82)=AC82,0,1)","v":0}]
[{"$f":"ADDRESS(15,37,1,1,$A$1)","v":"Summary!$AK$15"},"=IF(AD17>1,5,IF(AD15>0.6,IF(AE17>0.5,60,120),IF(AD15>0.6,100,200)))",0,{"$f":"ADDRESS(48,5,1,1,$D$1)","v":"'Fixed Income Investments'!$E$48"},0.35,{"$f":"IF(INDIRECT(D83)=E83,0,1)","v":0},null,null,null,null,null,null,null,null,null,{"$f":"ADDRESS(26,6,1,1,$P$1)","v":"'Premium Risk'!$F$26"},"=+'Geographic Diversification'!H24",{"$f":"IF(_xlfn.FORMULATEXT(INDIRECT(P83))=Q83,0,1)","v":0},{"$f":"ADDRESS(26,6,1,1,$S$1)","v":"'Reserve Risk'!$F$26"},"=+'Geographic Diversification'!H55",{"$f":"IF(_xlfn.FORMULATEXT(INDIRECT(S83))=T83,0,1)","v":0},null,null,null,null,null,null,{"$f":"ADDRESS(27,11,1,1,$AB$1)","v":"'LT Variable Annuity Gte Risk'!$K$27"},"='Schedule VIII (EBS)'!L34",{"$f":"IF(_xlfn.FORMULATEXT(INDIRECT(AB83))=AC83,0,1)","v":0}]
[{"$f":"ADDRESS(15,38,1,1,$A$1)","v":"Summary!$AL$15"},"=IF(Test_Statistic_2<0.95,50,160)",0,{"$f":"ADDRESS(48,6,1,1,$D$1)","v":"'Fixed Income Investments'!$F$48"},"=IF(D48<0,0,D48*E48)",{"$f":"IF(_xlfn.FORMULATEXT(INDIRECT(D84))=E84,0,1)","v":0},null,null,null,null,null,null,null,null,null,{"$f":"ADDRESS(26,7,1,1,$P$1)","v":"'Premium Risk'!$G$26"},0.51436147942106603,{"$f":"IF(INDIRECT(P84)=Q84,0,1)","v":0},{"$f":"ADDRESS(26,7,1,1,$S$1)","v":"'Reserve Risk'!$G$26"},0.46506790223690597,{"$f":"IF(INDIRECT(S84)=T84,0,1)","v":0},null,null,null,null,null,null,{"$f":"ADDRESS(27,12,1,1,$AB$1)","v":"'LT Variable Annuity Gte Risk'!$L$27"},0.05,{"$f":"IF(INDIRECT(AB84)=AC84,0,1)","v":0}]
[{"$f":"ADDRESS(15,39,1,1,$A$1)","v":"Summary!$AM$15"},"=IF(Test_Statistic_2<0.95,70,5)",0,{"$f":"ADDRESS(51,4,1,1,$D$1)","v":"'Fixed Income Investments'!$D$51"},"=SUM(D41:D48)",{"$f":"IF(_xlfn.FORMULATEXT(INDIRECT(D85))=E85,0,1)","v":0},null,null,null,null,null,null,null,null,null,{"$f":"ADDRESS(26,8,1,1,$P$1)","v":"'Premium Risk'!$H$26"},"=IF($F$26<0,0,$F$26*$G$26)",{"$f":"IF(_xlfn.FORMULATEXT(INDIRECT(P85))=Q85,0,1)","v":0},{"$f":"ADDRESS(26,8,1,1,$S$1)","v":"'Reserve Risk'!$H$26"},"=IF($F$26<0,0,$F$26*$G$26)",{"$f":"IF(_xlfn.FORMULATEXT(INDIRECT(S85))=T85,0,1)","v":0},null,null,null,null,null,null,{"$f":"ADDRESS(27,23,1,1,$AB$1)","v":"'LT Variable Annuity Gte Risk'!$W$27"},"=IF(ISERROR(OR(E27*F27+H27*I27+K27*L27,N27*O27+Q27*R27+T27*U27)),0,MAX(E27*F27+H27*I27+K27*L27,N27*O27+Q27*R27+T27*U27))",{"$f":"IF(_xlfn.FORMULATEXT(INDIRECT(AB85))=AC85,0,1)","v":0}]
[{"$f":"ADDRESS(15,40,1,1,$A$1)","v":"Summary!$AN$15"},"=IF(Test_Statistic_2<1,50,180)",0,{"$f":"ADDRESS(51,6,1,1,$D$1)","v":"'Fixed Income Investments'!$F$51"},"=IF(SUM(F41:F48)>=0,SUM(F41:F48),0)",{"$f":"IF(_xlfn.FORMULATEXT(INDIRECT(D86))=E86,0,1)","v":0},null,null,null,null,null,null,null,null,null,{"$f":"ADDRESS(27,4,1,1,$P$1)","v":"'Premium Risk'!$D$27"},"=+'Schedule IVA'!M27",{"$f":"IF(_xlfn.FORMULATEXT(INDIRECT(P86))=Q86,0,1)","v":0},{"$f":"ADDRESS(27,4,1,1,$S$1)","v":"'Reserve Risk'!$D$27"},"=+'Schedule III (EBS)'!D26",{"$f":"IF(_xlfn.FORMULATEXT(INDIRECT(S86))=T86,0,1)","v":0},null,null,null,null,null,null,{"$f":"ADDRESS(30,5,1,1,$AB$1)","v":"'LT Variable Annuity Gte Risk'!$E$30"},"='Schedule VIII (EBS)'!H17",{"$f":"IF(_xlfn.FORMULATEXT(INDIRECT(AB86))=AC86,0,1)","v":0}]
[{"$f":"ADDRESS(15,41,1,1,$A$1)","v":"Summary!$AO$15"},"=IF(Test_Statistic_2<1,50,5)",0,{"$f":"ADDRESS(56,4,1,1,$D$1)","v":"'Fixed Income Investments'!$D$56"},"='Schedule II (EBS)'!P12+'Schedule IIA (EBS)'!P12",{"$f":"IF(_xlfn.FORMULATEXT(INDIRECT(D87))=E87,0,1)","v":0},null,null,null,null,null,null,null,null,null,{"$f":"ADDRESS(27,5,1,1,$P$1)","v":"'Premium Risk'!$E$27"},"=+'Schedule IVA'!Q27",{"$f":"IF(_xlfn.FORMULATEXT(INDIRECT(P87))=Q87,0,1)","v":0},{"$f":"ADDRESS(27,5,1,1,$S$1)","v":"'Reserve Risk'!$E$27"},"='Schedule III (EBS)'!F26",{"$f":"IF(_xlfn.FORMULATEXT(INDIRECT(S87))=T87,0,1)","v":0},null,null,null,null,null,null,{"$f":"ADDRESS(30,6,1,1,$AB$1)","v":"'LT Variable Annuity Gte Risk'!$F$30"},0,{"$f":"IF(INDIRECT(AB87)=AC87,0,1)","v":0}]
[{"$f":"ADDRESS(16,11,1,1,$A$1)","v":"Summary!$K$16"},"=J17",0,{"$f":"ADDRESS(56,5,1,1,$D$1)","v":"'Fixed Income Investments'!$E$56"},0,{"$f":"IF(INDIRECT(D88)=E88,0,1)","v":0},null,null,null,null,null,null,null,null,null,{"$f":"ADDRESS(27,6,1,1,$P$1)","v":"'Premium Risk'!$F$27"},"=+'Geographic Diversification'!H25",{"$f":"IF(_xlfn.FORMULATEXT(INDIRECT(P88))=Q88,0,1)","v":0},{"$f":"ADDRESS(27,6,1,1,$S$1)","v":"'Reserve Risk'!$F$27"},"=+'Geographic Diversification'!H56",{"$f":"IF(_xlfn.FORMULATEXT(INDIRECT(S88))=T88,0,1)","v":0},null,null,null,null,null,null,{"$f":"ADDRESS(30,8,1,1,$AB$1)","v":"'LT Variable Annuity Gte Risk'!$H$30"},"='Schedule VIII (EBS)'!J17",{"$f":"IF(_xlfn.FORMULATEXT(INDIRECT(AB88))=AC88,0,1)","v":0}]
[{"$f":"ADDRESS(16,13,1,1,$A$1)","v":"Summary!$M$16"},"=L17",0,{"$f":"ADDRESS(56,6,1,1,$D$1)","v":"'Fixed Income Investments'!$F$56"},"=IF(D56<0,0,D56*E56)",{"$f":"IF(_xlfn.FORMULATEXT(INDIRECT(D89))=E89,0,1)","v":0},null,null,null,null,null,null,null,null,null,{"$f":"ADDRESS(27,7,1,1,$P$1)","v":"'Premium Risk'!$G$27"},0.52697789035313303,{"$f":"IF(INDIRECT(P89)=Q89,0,1)","v":0},{"$f":"ADDRESS(27,7,1,1,$S$1)","v":"'Reserve Risk'!$G$27"},0.482760284027479,{"$f":"IF(INDIRECT(S89)=T89,0,1)","v":0},null,null,null,null,null,null,{"$f":"ADDRESS(30,9,1,1,$AB$1)","v":"'LT Variable Annuity Gte Risk'!$I$30"},5.0000000000000001E-3,{"$f":"IF(INDIRECT(AB89)=AC89,0,1)","v":0}]
[{"$f":"ADDRESS(16,25,1,1,$A$1)","v":"Summary!$Y$16"},"=J20",0,{"$f":"ADDRESS(57,4,1,1,$D$1)","v":"'Fixed Income Investments'!$D$57"},"='Schedule II (EBS)'!P13+'Schedule IIA (EBS)'!P13",{"$f":"IF(_xlfn.FORMULATEXT(INDIRECT(D90))=E90,0,1)","v":0},null,null,null,null,null,null,null,null,null,{"$f":"ADDRESS(27,8,1,1,$P$1)","v":"'Premium Risk'!$H$27"},"=IF($F$27<0,0,$F$27*$G$27)",{"$f":"IF(_xlfn.FORMULATEXT(INDIRECT(P90))=Q90,0,1)","v":0},{"$f":"ADDRESS(27,8,1,1,$S$1)","v":"'Reserve Risk'!$H$27"},"=IF($F$27<0,0,$F$27*$G$27)",{"$f":"IF(_xlfn.FORMULATEXT(INDIRECT(S90))=T90,0,1)","v":0},null,null,null,null,null,null,{"$f":"ADDRESS(30,11,1,1,$AB$1)","v":"'LT Variable Annuity Gte Risk'!$K$30"},"='Schedule VIII (EBS)'!L17",{"$f":"IF(_xlfn.FORMULATEXT(INDIRECT(AB90))=AC90,0,1)","v":0}]
[{"$f":"ADDRESS(16,26,1,1,$A$1)","v":"Summary!$Z$16"},"=IF($K$35=0,1/16,Y16/$Y$29)",0,{"$f":"ADDRESS(57,5,1,1,$D$1)","v":"'Fixed Income Investments'!$E$57"},4.0000000000000001E-3,{"$f":"IF(INDIRECT(D91)=E91,0,1)","v":0},null,null,null,null,null,null,null,null,null,{"$f":"ADDRESS(28,4,1,1,$P$1)","v":"'Premium Risk'!$D$28"},"=+'Schedule IVA'!M28",{"$f":"IF(_xlfn.FORMULATEXT(INDIRECT(P91))=Q91,0,1)","v":0},{"$f":"ADDRESS(28,4,1,1,$S$1)","v":"'Reserve Risk'!$D$28"},"=+'Schedule III (EBS)'!D27",{"$f":"IF(_xlfn.FORMULATEXT(INDIRECT(S91))=T91,0,1)","v":0},null,null,null,null,null,null,{"$f":"ADDRESS(30,12,1,1,$AB$1)","v":"'LT Variable Annuity Gte Risk'!$L$30"},0.01,{"$f":"IF(INDIRECT(AB91)=AC91,0,1)","v":0}]
[{"$f":"ADDRESS(16,27,1,1,$A$1)","v":"Summary!$AA$16"},"=L20",0,{"$f":"ADDRESS(57,6,1,1,$D$1)","v":"'Fixed Income Investments'!$F$57"},"=IF(D57<0,0,D57*E57)",{"$f":"IF(_xlfn.FORMULATEXT(INDIRECT(D92))=E92,0,1)","v":0},null,null,null,null,null,null,null,null,null,{"$f":"ADDRESS(28,5,1,1,$P$1)","v":"'Premium Risk'!$E$28"},"=+'Schedule IVA'!Q28",{"$f":"IF(_xlfn.FORMULATEXT(INDIRECT(P92))=Q92,0,1)","v":0},{"$f":"ADDRESS(28,5,1,1,$S$1)","v":"'Reserve Risk'!$E$28"},"='Schedule III (EBS)'!F27",{"$f":"IF(_xlfn.FORMULATEXT(INDIRECT(S92))=T92,0,1)","v":0},null,null,null,null,null,null,{"$f":"ADDRESS(30,14,1,1,$AB$1)","v":"'LT Variable Annuity Gte Risk'!$N$30"},"='Schedule VIII (EBS)'!N17",{"$f":"IF(_xlfn.FORMULATEXT(INDIRECT(AB92))=AC92,0,1)","v":0}]
[{"$f":"ADDRESS(16,28,1,1,$A$1)","v":"Summary!$AB$16"},"=IF($M$35=0,1/16,AA16/$AA$29)",0,{"$f":"ADDRESS(58,4,1,1,$D$1)","v":"'Fixed Income Investments'!$D$58"},"='Schedule II (EBS)'!P14+'Schedule IIA (EBS)'!P14",{"$f":"IF(_xlfn.FORMULATEXT(INDIRECT(D93))=E93,0,1)","v":0},null,null,null,null,null,null,null,null,null,{"$f":"ADDRESS(28,6,1,1,$P$1)","v":"'Premium Risk'!$F$28"},"=+'Geographic Diversification'!H26",{"$f":"IF(_xlfn.FORMULATEXT(INDIRECT(P93))=Q93,0,1)","v":0},{"$f":"ADDRESS(28,6,1,1,$S$1)","v":"'Reserve Risk'!$F$28"},"=+'Geographic Diversification'!H57",{"$f":"IF(_xlfn.FORMULATEXT(INDIRECT(S93))=T93,0,1)","v":0},null,null,null,null,null,null,{"$f":"ADDRESS(30,15,1,1,$AB$1)","v":"'LT Variable Annuity Gte Risk'!$O$30"},0.01,{"$f":"IF(INDIRECT(AB93)=AC93,0,1)","v":0}]
[{"$f":"ADDRESS(16,30,1,1,$A$1)","v":"Summary!$AD$16"},"=(SUM(AB$10:AB16)/AB$29)+0.125",0,{"$f":"ADDRESS(58,5,1,1,$D$1)","v":"'Fixed Income Investments'!$E$58"},8.0000000000000002E-3,{"$f":"IF(INDIRECT(D94)=E94,0,1)","v":0},null,null,null,null,null,null,null,null,null,{"$f":"ADDRESS(28,7,1,1,$P$1)","v":"'Premium Risk'!$G$28"},0.42191756117933499,{"$f":"IF(INDIRECT(P94)=Q94,0,1)","v":0},{"$f":"ADDRESS(28,7,1,1,$S$1)","v":"'Reserve Risk'!$G$28"},0.37080464615634001,{"$f":"IF(INDIRECT(S94)=T94,0,1)","v":0},null,null,null,null,null,null,{"$f":"ADDRESS(30,17,1,1,$AB$1)","v":"'LT Variable Annuity Gte Risk'!$Q$30"},"=+'Schedule VIII (EBS)'!P17",{"$f":"IF(_xlfn.FORMULATEXT(INDIRECT(AB94))=AC94,0,1)","v":0}]
[{"$f":"ADDRESS(16,31,1,1,$A$1)","v":"Summary!$AE$16"},"=IF(ISERROR(AVERAGE(AD12:AD16)),0,AVERAGE(AD12:AD16))",0,{"$f":"ADDRESS(58,6,1,1,$D$1)","v":"'Fixed Income Investments'!$F$58"},"=IF(D58<0,0,D58*E58)",{"$f":"IF(_xlfn.FORMULATEXT(INDIRECT(D95))=E95,0,1)","v":0},null,null,null,null,null,null,null,null,null,{"$f":"ADDRESS(28,8,1,1,$P$1)","v":"'Premium Risk'!$H$28"},"=IF($F$28<0,0,$F$28*$G$28)",{"$f":"IF(_xlfn.FORMULATEXT(INDIRECT(P95))=Q95,0,1)","v":0},{"$f":"ADDRESS(28,8,1,1,$S$1)","v":"'Reserve Risk'!$H$28"},"=IF($F$28<0,0,$F$28*$G$28)",{"$f":"IF(_xlfn.FORMULATEXT(INDIRECT(S95))=T95,0,1)","v":0},null,null,null,null,null,null,{"$f":"ADDRESS(30,18,1,1,$AB$1)","v":"'LT Variable Annuity Gte Risk'!$R$30"},0.09,{"$f":"IF(INDIRECT(AB95)=AC95,0,1)","v":0}]
[{"$f":"ADDRESS(16,33,1,1,$A$1)","v":"Summary!$AG$16"},"=IF(AP20=\"\",IF(Test_Statistic<$AK$35,AJ16,IF(Test_Statistic<$AM$35,AL16,AN16)),AP20)",0,{"$f":"ADDRESS(59,4,1,1,$D$1)","v":"'Fixed Income Investments'!$D$59"},"='Schedule II (EBS)'!P15+'Schedule IIA (EBS)'!P15",{"$f":"IF(_xlfn.FORMULATEXT(INDIRECT(D96))=E96,0,1)","v":0},null,null,null,null,null,null,null,null,null,{"$f":"ADDRESS(29,4,1,1,$P$1)","v":"'Premium Risk'!$D$29"},"=+'Schedule IVA'!M29",{"$f":"IF(_xlfn.FORMULATEXT(INDIRECT(P96))=Q96,0,1)","v":0},{"$f":"ADDRESS(29,4,1,1,$S$1)","v":"'Reserve Risk'!$D$29"},"=+'Schedule III (EBS)'!D28",{"$f":"IF(_xlfn.FORMULATEXT(INDIRECT(S96))=T96,0,1)","v":0},null,null,null,null,null,null,{"$f":"ADDRESS(30,20,1,1,$AB$1)","v":"'LT Variable Annuity Gte Risk'!$T$30"},"=+'Schedule VIII (EBS)'!R17",{"$f":"IF(_xlfn.FORMULATEXT(INDIRECT(AB96))=AC96,0,1)","v":0}]
[{"$f":"ADDRESS(16,36,1,1,$A$1)","v":"Summary!$AJ$16"},"=IF(AD17>1,250,IF(AD15>1,300,IF(AD15>0.6,260,300)))",0,{"$f":"ADDRESS(59,5,1,1,$D$1)","v":"'Fixed Income Investments'!$E$59"},1.4999999999999999E-2,{"$f":"IF(INDIRECT(D97)=E97,0,1)","v":0},null,null,null,null,null,null,null,null,null,{"$f":"ADDRESS(29,5,1,1,$P$1)","v":"'Premium Risk'!$E$29"},"=+'Schedule IVA'!Q29",{"$f":"IF(_xlfn.FORMULATEXT(INDIRECT(P97))=Q97,0,1)","v":0},{"$f":"ADDRESS(29,5,1,1,$S$1)","v":"'Reserve Risk'!$E$29"},"='Schedule III (EBS)'!F28",{"$f":"IF(_xlfn.FORMULATEXT(INDIRECT(S97))=T97,0,1)","v":0},null,null,null,null,null,null,{"$f":"ADDRESS(30,21,1,1,$AB$1)","v":"'LT Variable Annuity Gte Risk'!$U$30"},0.17,{"$f":"IF(INDIRECT(AB97)=AC97,0,1)","v":0}]
[{"$f":"ADDRESS(16,37,1,1,$A$1)","v":"Summary!$AK$16"},"=IF(AD15>0.6,185,140)",0,{"$f":"ADDRESS(59,6,1,1,$D$1)","v":"'Fixed Income Investments'!$F$59"},"=IF(D59<0,0,D59*E59)",{"$f":"IF(_xlfn.FORMULATEXT(INDIRECT(D98))=E98,0,1)","v":0},null,null,null,null,null,null,null,null,null,{"$f":"ADDRESS(29,6,1,1,$P$1)","v":"'Premium Risk'!$F$29"},"=+'Geographic Diversification'!H27",{"$f":"IF(_xlfn.FORMULATEXT(INDIRECT(P98))=Q98,0,1)","v":0},{"$f":"ADDRESS(29,6,1,1,$S$1)","v":"'Reserve Risk'!$F$29"},"=+'Geographic Diversification'!H58",{"$f":"IF(_xlfn.FORMULATEXT(INDIRECT(S98))=T98,0,1)","v":0},null,null,null,null,null,null,{"$f":"ADDRESS(30,23,1,1,$AB$1)","v":"'LT Variable Annuity Gte Risk'!$W$30"},"=IF(ISERROR(OR(E30*F30+H30*I30+K30*L30,N30*O30+Q30*R30+T30*U30)),0,MAX(E30*F30+H30*I30+K30*L30,N30*O30+Q30*R30+T30*U30))",{"$f":"IF(_xlfn.FORMULATEXT(INDIRECT(AB98))=AC98,0,1)","v":0}]
[{"$f":"ADDRESS(16,38,1,1,$A$1)","v":"Summary!$AL$16"},"=IF(Test_Statistic_2<0.95,180,120)",0,{"$f":"ADDRESS(60,4,1,1,$D$1)","v":"'Fixed Income Investments'!$D$60"},"='Schedule II (EBS)'!P16+'Schedule IIA (EBS)'!P16",{"$f":"IF(_xlfn.FORMULATEXT(INDIRECT(D99))=E99,0,1)","v":0},null,null,null,null,null,null,null,null,null,{"$f":"ADDRESS(29,7,1,1,$P$1)","v":"'Premium Risk'!$G$29"},0.482210885429324,{"$f":"IF(INDIRECT(P99)=Q99,0,1)","v":0},{"$f":"ADDRESS(29,7,1,1,$S$1)","v":"'Reserve Risk'!$G$29"},0.43541657269369,{"$f":"IF(INDIRECT(S99)=T99,0,1)","v":0},null,null,null,null,null,null,{"$f":"ADDRESS(31,5,1,1,$AB$1)","v":"'LT Variable Annuity Gte Risk'!$E$31"},"='Schedule VIII (EBS)'!H35",{"$f":"IF(_xlfn.FORMULATEXT(INDIRECT(AB99))=AC99,0,1)","v":0}]
[{"$f":"ADDRESS(16,40,1,1,$A$1)","v":"Summary!$AN$16"},100,{"$f":"IF(INDIRECT(A100)=B100,0,1)","v":0},{"$f":"ADDRESS(60,5,1,1,$D$1)","v":"'Fixed Income Investments'!$E$60"},0.03,{"$f":"IF(INDIRECT(D100)=E100,0,1)","v":0},null,null,null,null,null,null,null,null,null,{"$f":"ADDRESS(29,8,1,1,$P$1)","v":"'Premium Risk'!$H$29"},"=IF($F$29<0,0,$F$29*$G$29)",{"$f":"IF(_xlfn.FORMULATEXT(INDIRECT(P100))=Q100,0,1)","v":0},{"$f":"ADDRESS(29,8,1,1,$S$1)","v":"'Reserve Risk'!$H$29"},"=IF($F$29<0,0,$F$29*$G$29)",{"$f":"IF(_xlfn.FORMULATEXT(INDIRECT(S100))=T100,0,1)","v":0},null,null,null,null,null,null,{"$f":"ADDRESS(31,6,1,1,$AB$1)","v":"'LT Variable Annuity Gte Risk'!$F$31"},0,{"$f":"IF(INDIRECT(AB100)=AC100,0,1)","v":0}]
[{"$f":"ADDRESS(17,6,1,1,$A$1)","v":"Summary!$F$17"},"=ROUND('Credit Risk'!F47,$M$152)",{"$f":"IF(_xlfn.FORMULATEXT(INDIRECT(A101))=B101,0,1)","v":0},{"$f":"ADDRESS(60,6,1,1,$D$1)","v":"'Fixed Income Investments'!$F$60"},"=IF(D60<0,0,D60*E60)",{"$f":"IF(_xlfn.FORMULATEXT(INDIRECT(D101))=E101,0,1)","v":0},null,null,null,null,null,null,null,null,null,{"$f":"ADDRESS(30,4,1,1,$P$1)","v":"'Premium Risk'!$D$30"},"=+'Schedule IVA'!M30",{"$f":"IF(_xlfn.FORMULATEXT(INDIRECT(P101))=Q101,0,1)","v":0},{"$f":"ADDRESS(30,4,1,1,$S$1)","v":"'Reserve Risk'!$D$30"},"=+'Schedule III (EBS)'!D29",{"$f":"IF(_xlfn.FORMULATEXT(INDIRECT(S101))=T101,0,1)","v":0},null,null,null,null,null,null,{"$f":"ADDRESS(31,8,1,1,$AB$1)","v":"'LT Variable Annuity Gte Risk'!$H$31"},"='Schedule VIII (EBS)'!J35",{"$f":"IF(_xlfn.FORMULATEXT(INDIRECT(AB101))=AC101,0,1)","v":0}]
[{"$f":"ADDRESS(17,10,1,1,$A$1)","v":"Summary!$J$17"},"=ROUND('Credit Risk (Revised)'!H84,$M$152)",0,{"$f":"ADDRESS(61,4,1,1,$D$1)","v":"'Fixed Income Investments'!$D$61"},"='Schedule II (EBS)'!P17+'Schedule IIA (EBS)'!P17",{"$f":"IF(_xlfn.FORMULATEXT(INDIRECT(D102))=E102,0,1)","v":0},null,null,null,null,null,null,null,null,null,{"$f":"ADDRESS(30,5,1,1,$P$1)","v":"'Premium Risk'!$E$30"},"=+'Schedule IVA'!Q30",{"$f":"IF(_xlfn.FORMULATEXT(INDIRECT(P102))=Q102,0,1)","v":0},{"$f":"ADDRESS(30,5,1,1,$S$1)","v":"'Reserve Risk'!$E$30"},"='Schedule III (EBS)'!F29",{"$f":"IF(_xlfn.FORMULATEXT(INDIRECT(S102))=T102,0,1)","v":0},null,null,null,null,null,null,{"$f":"ADDRESS(31,9,1,1,$AB$1)","v":"'LT Variable Annuity Gte Risk'!$I$31"},5.0000000000000001E-3,{"$f":"IF(INDIRECT(AB102)=AC102,0,1)","v":0}]
[{"$f":"ADDRESS(17,12,1,1,$A$1)","v":"Summary!$L$17"},"=ROUND('Credit Risk (Revised)'!H84,$M$152)",0,{"$f":"ADDRESS(61,5,1,1,$D$1)","v":"'Fixed Income Investments'!$E$61"},0.08,{"$f":"IF(INDIRECT(D103)=E103,0,1)","v":0},null,null,null,null,null,null,null,null,null,{"$f":"ADDRESS(30,6,1,1,$P$1)","v":"'Premium Risk'!$F$30"},"=+'Geographic Diversification'!H28",{"$f":"IF(_xlfn.FORMULATEXT(INDIRECT(P103))=Q103,0,1)","v":0},{"$f":"ADDRESS(30,6,1,1,$S$1)","v":"'Reserve Risk'!$F$30"},"=+'Geographic Diversification'!H59",{"$f":"IF(_xlfn.FORMULATEXT(INDIRECT(S103))=T103,0,1)","v":0},null,null,null,null,null,null,{"$f":"ADDRESS(31,11,1,1,$AB$1)","v":"'LT Variable Annuity Gte Risk'!$K$31"},"='Schedule VIII (EBS)'!L35",{"$f":"IF(_xlfn.FORMULATEXT(INDIRECT(AB103))=AC103,0,1)","v":0}]
[{"$f":"ADDRESS(17,25,1,1,$A$1)","v":"Summary!$Y$17"},"=J21",0,{"$f":"ADDRESS(61,6,1,1,$D$1)","v":"'Fixed Income Investments'!$F$61"},"=IF(D61<0,0,D61*E61)",{"$f":"IF(_xlfn.FORMULATEXT(INDIRECT(D104))=E104,0,1)","v":0},null,null,null,null,null,null,null,null,null,{"$f":"ADDRESS(30,7,1,1,$P$1)","v":"'Premium Risk'!$G$30"},0.50012106835589698,{"$f":"IF(INDIRECT(P104)=Q104,0,1)","v":0},{"$f":"ADDRESS(30,7,1,1,$S$1)","v":"'Reserve Risk'!$G$30"},0.43652386132510701,{"$f":"IF(INDIRECT(S104)=T104,0,1)","v":0},null,null,null,null,null,null,{"$f":"ADDRESS(31,12,1,1,$AB$1)","v":"'LT Variable Annuity Gte Risk'!$L$31"},0.01,{"$f":"IF(INDIRECT(AB104)=AC104,0,1)","v":0}]
[{"$f":"ADDRESS(17,26,1,1,$A$1)","v":"Summary!$Z$17"},"=IF($K$35=0,1/16,Y17/$Y$29)",0,{"$f":"ADDRESS(62,4,1,1,$D$1)","v":"'Fixed Income Investments'!$D$62"},"='Schedule II (EBS)'!P18+'Schedule IIA (EBS)'!P18",{"$f":"IF(_xlfn.FORMULATEXT(INDIRECT(D105))=E105,0,1)","v":0},null,null,null,null,null,null,null,null,null,{"$f":"ADDRESS(30,8,1,1,$P$1)","v":"'Premium Risk'!$H$30"},"=IF($F$30<0,0,$F$30*$G$30)",{"$f":"IF(_xlfn.FORMULATEXT(INDIRECT(P105))=Q105,0,1)","v":0},{"$f":"ADDRESS(30,8,1,1,$S$1)","v":"'Reserve Risk'!$H$30"},"=IF($F$30<0,0,$F$30*$G$30)",{"$f":"IF(_xlfn.FORMULATEXT(INDIRECT(S105))=T105,0,1)","v":0},null,null,null,null,null,null,{"$f":"ADDRESS(31,23,1,1,$AB$1)","v":"'LT Variable Annuity Gte Risk'!$W$31"},"=IF(ISERROR(OR(E31*F31+H31*I31+K31*L31,N31*O31+Q31*R31+T31*U31)),0,MAX(E31*F31+H31*I31+K31*L31,N31*O31+Q31*R31+T31*U31))",{"$f":"IF(_xlfn.FORMULATEXT(INDIRECT(AB105))=AC105,0,1)","v":0}]
[{"$f":"ADDRESS(17,27,1,1,$A$1)","v":"Summary!$AA$17"},"=L21",0,{"$f":"ADDRESS(62,5,1,1,$D$1)","v":"'Fixed Income Investments'!$E$62"},0.15,{"$f":"IF(INDIRECT(D106)=E106,0,1)","v":0},null,null,null,null,null,null,null,null,null,{"$f":"ADDRESS(31,4,1,1,$P$1)","v":"'Premium Risk'!$D$31"},"=+'Schedule IVA'!M31",{"$f":"IF(_xlfn.FORMULATEXT(INDIRECT(P106))=Q106,0,1)","v":0},{"$f":"ADDRESS(31,4,1,1,$S$1)","v":"'Reserve Risk'!$D$31"},"=+'Schedule III (EBS)'!D30",{"$f":"IF(_xlfn.FORMULATEXT(INDIRECT(S106))=T106,0,1)","v":0},null,null,null,null,null,null,{"$f":"ADDRESS(34,5,1,1,$AB$1)","v":"'LT Variable Annuity Gte Risk'!$E$34"},"=+'Schedule VIII (EBS)'!H19",{"$f":"IF(_xlfn.FORMULATEXT(INDIRECT(AB106))=AC106,0,1)","v":0}]
[{"$f":"ADDRESS(17,28,1,1,$A$1)","v":"Summary!$AB$17"},"=IF($M$35=0,1/16,AA17/$AA$29)",0,{"$f":"ADDRESS(62,6,1,1,$D$1)","v":"'Fixed Income Investments'!$F$62"},"=IF(D62<0,0,D62*E62)",{"$f":"IF(_xlfn.FORMULATEXT(INDIRECT(D107))=E107,0,1)","v":0},null,null,null,null,null,null,null,null,null,{"$f":"ADDRESS(31,5,1,1,$P$1)","v":"'Premium Risk'!$E$31"},"=+'Schedule IVA'!Q31",{"$f":"IF(_xlfn.FORMULATEXT(INDIRECT(P107))=Q107,0,1)","v":0},{"$f":"ADDRESS(31,5,1,1,$S$1)","v":"'Reserve Risk'!$E$31"},"='Schedule III (EBS)'!F30",{"$f":"IF(_xlfn.FORMULATEXT(INDIRECT(S107))=T107,0,1)","v":0},null,null,null,null,null,null,{"$f":"ADDRESS(34,6,1,1,$AB$1)","v":"'LT Variable Annuity Gte Risk'!$F$34"},3.2000000000000001E-2,{"$f":"IF(INDIRECT(AB107)=AC107,0,1)","v":0}]
[{"$f":"ADDRESS(17,30,1,1,$A$1)","v":"Summary!$AD$17"},"=IF(ISERROR(AB29),0,(SUM(AB$10:AB17)/AB$29)+0.125)",0,{"$f":"ADDRESS(63,4,1,1,$D$1)","v":"'Fixed Income Investments'!$D$63"},"='Schedule II (EBS)'!P19+'Schedule IIA (EBS)'!P19",{"$f":"IF(_xlfn.FORMULATEXT(INDIRECT(D108))=E108,0,1)","v":0},null,null,null,null,null,null,null,null,null,{"$f":"ADDRESS(31,6,1,1,$P$1)","v":"'Premium Risk'!$F$31"},"=+'Geographic Diversification'!H29",{"$f":"IF(_xlfn.FORMULATEXT(INDIRECT(P108))=Q108,0,1)","v":0},{"$f":"ADDRESS(31,6,1,1,$S$1)","v":"'Reserve Risk'!$F$31"},"=+'Geographic Diversification'!H60",{"$f":"IF(_xlfn.FORMULATEXT(INDIRECT(S108))=T108,0,1)","v":0},null,null,null,null,null,null,{"$f":"ADDRESS(34,8,1,1,$AB$1)","v":"'LT Variable Annuity Gte Risk'!$H$34"},"=+'Schedule VIII (EBS)'!J19",{"$f":"IF(_xlfn.FORMULATEXT(INDIRECT(AB108))=AC108,0,1)","v":0}]
[{"$f":"ADDRESS(17,31,1,1,$A$1)","v":"Summary!$AE$17"},"=IF(ISERROR(AVERAGE(AD16:AD17)),0,AVERAGE(AD16:AD17))",0,{"$f":"ADDRESS(63,5,1,1,$D$1)","v":"'Fixed Income Investments'!$E$63"},0.26300000000000001,{"$f":"IF(INDIRECT(D109)=E109,0,1)","v":0},null,null,null,null,null,null,null,null,null,{"$f":"ADDRESS(31,7,1,1,$P$1)","v":"'Premium Risk'!$G$31"},0.53551360019381999,{"$f":"IF(INDIRECT(P109)=Q109,0,1)","v":0},{"$f":"ADDRESS(31,7,1,1,$S$1)","v":"'Reserve Risk'!$G$31"},0.49410327959272199,{"$f":"IF(INDIRECT(S109)=T109,0,1)","v":0},null,null,null,null,null,null,{"$f":"ADDRESS(34,9,1,1,$AB$1)","v":"'LT Variable Annuity Gte Risk'!$I$34"},0.05,{"$f":"IF(INDIRECT(AB109)=AC109,0,1)","v":0}]
[{"$f":"ADDRESS(17,33,1,1,$A$1)","v":"Summary!$AG$17"},"=IF(AP21=\"\",IF(Test_Statistic<$AK$35,AJ17,IF(Test_Statistic<$AM$35,AL17,AN17)),AP21)",0,{"$f":"ADDRESS(63,6,1,1,$D$1)","v":"'Fixed Income Investments'!$F$63"},"=IF(D63<0,0,D63*E63)",{"$f":"IF(_xlfn.FORMULATEXT(INDIRECT(D110))=E110,0,1)","v":0},null,null,null,null,null,null,null,null,null,{"$f":"ADDRESS(31,8,1,1,$P$1)","v":"'Premium Risk'!$H$31"},"=IF($F$31<0,0,$F$31*$G$31)",{"$f":"IF(_xlfn.FORMULATEXT(INDIRECT(P110))=Q110,0,1)","v":0},{"$f":"ADDRESS(31,8,1,1,$S$1)","v":"'Reserve Risk'!$H$31"},"=IF($F$31<0,0,$F$31*$G$31)",{"$f":"IF(_xlfn.FORMULATEXT(INDIRECT(S110))=T110,0,1)","v":0},null,null,null,null,null,null,{"$f":"ADDRESS(34,11,1,1,$AB$1)","v":"'LT Variable Annuity Gte Risk'!$K$34"},"=+'Schedule VIII (EBS)'!L19",{"$f":"IF(_xlfn.FORMULATEXT(INDIRECT(AB110))=AC110,0,1)","v":0}]
[{"$f":"ADDRESS(17,36,1,1,$A$1)","v":"Summary!$AJ$17"},"=IF(AD17>1,50,IF(AD15>0.6,120,260))",0,{"$f":"ADDRESS(64,4,1,1,$D$1)","v":"'Fixed Income Investments'!$D$64"},"='Schedule II (EBS)'!P20+'Schedule IIA (EBS)'!P20",{"$f":"IF(_xlfn.FORMULATEXT(INDIRECT(D111))=E111,0,1)","v":0},null,null,null,null,null,null,null,null,null,{"$f":"ADDRESS(32,4,1,1,$P$1)","v":"'Premium Risk'!$D$32"},"=+'Schedule IVA'!M32",{"$f":"IF(_xlfn.FORMULATEXT(INDIRECT(P111))=Q111,0,1)","v":0},{"$f":"ADDRESS(32,4,1,1,$S$1)","v":"'Reserve Risk'!$D$32"},"=+'Schedule III (EBS)'!D31",{"$f":"IF(_xlfn.FORMULATEXT(INDIRECT(S111))=T111,0,1)","v":0},null,null,null,null,null,null,{"$f":"ADDRESS(34,12,1,1,$AB$1)","v":"'LT Variable Annuity Gte Risk'!$L$34"},0.09,{"$f":"IF(INDIRECT(AB111)=AC111,0,1)","v":0}]
[{"$f":"ADDRESS(17,37,1,1,$A$1)","v":"Summary!$AK$17"},"=IF(AD17>1,90,IF(AD15>0.6,200,185))",0,{"$f":"ADDRESS(64,5,1,1,$D$1)","v":"'Fixed Income Investments'!$E$64"},0.35,{"$f":"IF(INDIRECT(D112)=E112,0,1)","v":0},null,null,null,null,null,null,null,null,null,{"$f":"ADDRESS(32,5,1,1,$P$1)","v":"'Premium Risk'!$E$32"},"=+'Schedule IVA'!Q32",{"$f":"IF(_xlfn.FORMULATEXT(INDIRECT(P112))=Q112,0,1)","v":0},{"$f":"ADDRESS(32,5,1,1,$S$1)","v":"'Reserve Risk'!$E$32"},"='Schedule III (EBS)'!F31",{"$f":"IF(_xlfn.FORMULATEXT(INDIRECT(S112))=T112,0,1)","v":0},null,null,null,null,null,null,{"$f":"ADDRESS(34,14,1,1,$AB$1)","v":"'LT Variable Annuity Gte Risk'!$N$34"},"=+'Schedule VIII (EBS)'!N19",{"$f":"IF(_xlfn.FORMULATEXT(INDIRECT(AB112))=AC112,0,1)","v":0}]
[{"$f":"ADDRESS(17,38,1,1,$A$1)","v":"Summary!$AL$17"},50,{"$f":"IF(INDIRECT(A113)=B113,0,1)","v":0},{"$f":"ADDRESS(64,6,1,1,$D$1)","v":"'Fixed Income Investments'!$F$64"},"=IF(D64<0,0,D64*E64)",{"$f":"IF(_xlfn.FORMULATEXT(INDIRECT(D113))=E113,0,1)","v":0},null,null,null,null,null,null,null,null,null,{"$f":"ADDRESS(32,6,1,1,$P$1)","v":"'Premium Risk'!$F$32"},"=+'Geographic Diversification'!H30",{"$f":"IF(_xlfn.FORMULATEXT(INDIRECT(P113))=Q113,0,1)","v":0},{"$f":"ADDRESS(32,6,1,1,$S$1)","v":"'Reserve Risk'!$F$32"},"=+'Geographic Diversification'!H61",{"$f":"IF(_xlfn.FORMULATEXT(INDIRECT(S113))=T113,0,1)","v":0},null,null,null,null,null,null,{"$f":"ADDRESS(34,15,1,1,$AB$1)","v":"'LT Variable Annuity Gte Risk'!$O$34"},0.9,{"$f":"IF(INDIRECT(AB113)=AC113,0,1)","v":0}]
[{"$f":"ADDRESS(17,39,1,1,$A$1)","v":"Summary!$AM$17"},"=IF(Test_Statistic_2<0.95,160,80)",{"$f":"IF(_xlfn.FORMULATEXT(INDIRECT(A114))=B114,0,1)","v":0},{"$f":"ADDRESS(66,4,1,1,$D$1)","v":"'Fixed Income Investments'!$D$66"},"=SUM(D56:D64)",{"$f":"IF(_xlfn.FORMULATEXT(INDIRECT(D114))=E114,0,1)","v":0},null,null,null,null,null,null,null,null,null,{"$f":"ADDRESS(32,7,1,1,$P$1)","v":"'Premium Risk'!$G$32"},0.508030898436173,{"$f":"IF(INDIRECT(P114)=Q114,0,1)","v":0},{"$f":"ADDRESS(32,7,1,1,$S$1)","v":"'Reserve Risk'!$G$32"},0.478452065307162,{"$f":"IF(INDIRECT(S114)=T114,0,1)","v":0},null,null,null,null,null,null,{"$f":"ADDRESS(34,17,1,1,$AB$1)","v":"'LT Variable Annuity Gte Risk'!$Q$34"},"=+'Schedule VIII (EBS)'!P19",{"$f":"IF(_xlfn.FORMULATEXT(INDIRECT(AB114))=AC114,0,1)","v":0}]
[{"$f":"ADDRESS(17,40,1,1,$A$1)","v":"Summary!$AN$17"},"=IF(Test_Statistic_2<1,50,50)",0,{"$f":"ADDRESS(66,6,1,1,$D$1)","v":"'Fixed Income Investments'!$F$66"},"=IF(SUM(F56:F64)>=0,SUM(F56:F64),0)",{"$f":"IF(_xlfn.FORMULATEXT(INDIRECT(D115))=E115,0,1)","v":0},null,null,null,null,null,null,null,null,null,{"$f":"ADDRESS(32,8,1,1,$P$1)","v":"'Premium Risk'!$H$32"},"=IF($F$32<0,0,$F$32*$G$32)",{"$f":"IF(_xlfn.FORMULATEXT(INDIRECT(P115))=Q115,0,1)","v":0},{"$f":"ADDRESS(32,8,1,1,$S$1)","v":"'Reserve Risk'!$H$32"},"=IF($F$32<0,0,$F$32*$G$32)",{"$f":"IF(_xlfn.FORMULATEXT(INDIRECT(S115))=T115,0,1)","v":0},null,null,null,null,null,null,{"$f":"ADDRESS(34,18,1,1,$AB$1)","v":"'LT Variable Annuity Gte Risk'!$R$34"},1.3,{"$f":"IF(INDIRECT(AB115)=AC115,0,1)","v":0}]
[{"$f":"ADDRESS(18,25,1,1,$A$1)","v":"Summary!$Y$18"},"=J22",0,{"$f":"ADDRESS(70,4,1,1,$D$1)","v":"'Fixed Income Investments'!$D$70"},"=+'Schedule II (EBS)'!D57+'Schedule IIA (EBS)'!D57",{"$f":"IF(_xlfn.FORMULATEXT(INDIRECT(D116))=E116,0,1)","v":0},null,null,null,null,null,null,null,null,null,{"$f":"ADDRESS(33,4,1,1,$P$1)","v":"'Premium Risk'!$D$33"},"=+'Schedule IVA'!M33",{"$f":"IF(_xlfn.FORMULATEXT(INDIRECT(P116))=Q116,0,1)","v":0},{"$f":"ADDRESS(33,4,1,1,$S$1)","v":"'Reserve Risk'!$D$33"},"=+'Schedule III (EBS)'!D32",{"$f":"IF(_xlfn.FORMULATEXT(INDIRECT(S116))=T116,0,1)","v":0},null,null,null,null,null,null,{"$f":"ADDRESS(34,20,1,1,$AB$1)","v":"'LT Variable Annuity Gte Risk'!$T$34"},"=+'Schedule VIII (EBS)'!R19",{"$f":"IF(_xlfn.FORMULATEXT(INDIRECT(AB116))=AC116,0,1)","v":0}]
[{"$f":"ADDRESS(18,26,1,1,$A$1)","v":"Summary!$Z$18"},"=IF($K$35=0,1/16,Y18/$Y$29)",0,{"$f":"ADDRESS(70,5,1,1,$D$1)","v":"'Fixed Income Investments'!$E$70"},3.0000000000000001E-3,{"$f":"IF(INDIRECT(D117)=E117,0,1)","v":0},null,null,null,null,null,null,null,null,null,{"$f":"ADDRESS(33,5,1,1,$P$1)","v":"'Premium Risk'!$E$33"},"=+'Schedule IVA'!Q33",{"$f":"IF(_xlfn.FORMULATEXT(INDIRECT(P117))=Q117,0,1)","v":0},{"$f":"ADDRESS(33,5,1,1,$S$1)","v":"'Reserve Risk'!$E$33"},"='Schedule III (EBS)'!F32",{"$f":"IF(_xlfn.FORMULATEXT(INDIRECT(S117))=T117,0,1)","v":0},null,null,null,null,null,null,{"$f":"ADDRESS(34,21,1,1,$AB$1)","v":"'LT Variable Annuity Gte Risk'!$U$34"},2.5,{"$f":"IF(INDIRECT(AB117)=AC117,0,1)","v":0}]
[{"$f":"ADDRESS(18,27,1,1,$A$1)","v":"Summary!$AA$18"},"=L22",0,{"$f":"ADDRESS(70,6,1,1,$D$1)","v":"'Fixed Income Investments'!$F$70"},"=IF(D70<0,0,D70*E70)",{"$f":"IF(_xlfn.FORMULATEXT(INDIRECT(D118))=E118,0,1)","v":0},null,null,null,null,null,null,null,null,null,{"$f":"ADDRESS(33,6,1,1,$P$1)","v":"'Premium Risk'!$F$33"},"=+'Geographic Diversification'!H31",{"$f":"IF(_xlfn.FORMULATEXT(INDIRECT(P118))=Q118,0,1)","v":0},{"$f":"ADDRESS(33,6,1,1,$S$1)","v":"'Reserve Risk'!$F$33"},"=+'Geographic Diversification'!H62",{"$f":"IF(_xlfn.FORMULATEXT(INDIRECT(S118))=T118,0,1)","v":0},null,null,null,null,null,null,{"$f":"ADDRESS(34,23,1,1,$AB$1)","v":"'LT Variable Annuity Gte Risk'!$W$34"},"=IF(ISERROR(OR(E34*F34+H34*I34+K34*L34,N34*O34+Q34*R34+T34*U34)),0,MAX(E34*F34+H34*I34+K34*L34,N34*O34+Q34*R34+T34*U34))",{"$f":"IF(_xlfn.FORMULATEXT(INDIRECT(AB118))=AC118,0,1)","v":0}]
[{"$f":"ADDRESS(18,28,1,1,$A$1)","v":"Summary!$AB$18"},"=IF($M$35=0,1/16,AA18/$AA$29)",0,{"$f":"ADDRESS(71,4,1,1,$D$1)","v":"'Fixed Income Investments'!$D$71"},"=+'Schedule II (EBS)'!D58+'Schedule IIA (EBS)'!D58",{"$f":"IF(_xlfn.FORMULATEXT(INDIRECT(D119))=E119,0,1)","v":0},null,null,null,null,null,null,null,null,null,{"$f":"ADDRESS(33,7,1,1,$P$1)","v":"'Premium Risk'!$G$33"},0.27200000000000002,{"$f":"IF(INDIRECT(P119)=Q119,0,1)","v":0},{"$f":"ADDRESS(33,7,1,1,$S$1)","v":"'Reserve Risk'!$G$33"},0.24099999999999999,{"$f":"IF(INDIRECT(S119)=T119,0,1)","v":0},null,null,null,null,null,null,{"$f":"ADDRESS(35,5,1,1,$AB$1)","v":"'LT Variable Annuity Gte Risk'!$E$35"},"=+'Schedule VIII (EBS)'!H20",{"$f":"IF(_xlfn.FORMULATEXT(INDIRECT(AB119))=AC119,0,1)","v":0}]
[{"$f":"ADDRESS(18,30,1,1,$A$1)","v":"Summary!$AD$18"},"=(SUM(AB$10:AB18)/AB$29)+0.125",0,{"$f":"ADDRESS(71,5,1,1,$D$1)","v":"'Fixed Income Investments'!$E$71"},0.05,{"$f":"IF(INDIRECT(D120)=E120,0,1)","v":0},null,null,null,null,null,null,null,null,null,{"$f":"ADDRESS(33,8,1,1,$P$1)","v":"'Premium Risk'!$H$33"},"=IF($F$33<0,0,$F$33*$G$33)",{"$f":"IF(_xlfn.FORMULATEXT(INDIRECT(P120))=Q120,0,1)","v":0},{"$f":"ADDRESS(33,8,1,1,$S$1)","v":"'Reserve Risk'!$H$33"},"=IF($F$33<0,0,$F$33*$G$33)",{"$f":"IF(_xlfn.FORMULATEXT(INDIRECT(S120))=T120,0,1)","v":0},null,null,null,null,null,null,{"$f":"ADDRESS(35,6,1,1,$AB$1)","v":"'LT Variable Annuity Gte Risk'!$F$35"},0.03,{"$f":"IF(INDIRECT(AB120)=AC120,0,1)","v":0}]
[{"$f":"ADDRESS(18,33,1,1,$A$1)","v":"Summary!$AG$18"},"=IF(AP22=\"\",IF(Test_Statistic<$AK$35,AJ18,IF(Test_Statistic<$AM$35,AL18,AN18)),AP22)",0,{"$f":"ADDRESS(71,6,1,1,$D$1)","v":"'Fixed Income Investments'!$F$71"},"=IF(D71<0,0,D71*E71)",{"$f":"IF(_xlfn.FORMULATEXT(INDIRECT(D121))=E121,0,1)","v":0},null,null,null,null,null,null,null,null,null,{"$f":"ADDRESS(34,4,1,1,$P$1)","v":"'Premium Risk'!$D$34"},"=+'Schedule IVA'!M34",{"$f":"IF(_xlfn.FORMULATEXT(INDIRECT(P121))=Q121,0,1)","v":0},{"$f":"ADDRESS(34,4,1,1,$S$1)","v":"'Reserve Risk'!$D$34"},"=+'Schedule III (EBS)'!D33",{"$f":"IF(_xlfn.FORMULATEXT(INDIRECT(S121))=T121,0,1)","v":0},null,null,null,null,null,null,{"$f":"ADDRESS(35,8,1,1,$AB$1)","v":"'LT Variable Annuity Gte Risk'!$H$35"},"=+'Schedule VIII (EBS)'!J20",{"$f":"IF(_xlfn.FORMULATEXT(INDIRECT(AB121))=AC121,0,1)","v":0}]
[{"$f":"ADDRESS(18,34,1,1,$A$1)","v":"Summary!$AH$18"},"=IF(AQ22=\"\",IF(Test_Statistic<$AK$35,AK18,IF(Test_Statistic<$AM$35,AM18,AO18)),AQ22)",0,{"$f":"ADDRESS(72,4,1,1,$D$1)","v":"'Fixed Income Investments'!$D$72"},"=+'Schedule II (EBS)'!D59+'Schedule IIA (EBS)'!D59",{"$f":"IF(_xlfn.FORMULATEXT(INDIRECT(D122))=E122,0,1)","v":0},null,null,null,null,null,null,null,null,null,{"$f":"ADDRESS(34,5,1,1,$P$1)","v":"'Premium Risk'!$E$34"},"=+'Schedule IVA'!Q34",{"$f":"IF(_xlfn.FORMULATEXT(INDIRECT(P122))=Q122,0,1)","v":0},{"$f":"ADDRESS(34,5,1,1,$S$1)","v":"'Reserve Risk'!$E$34"},"='Schedule III (EBS)'!F33",{"$f":"IF(_xlfn.FORMULATEXT(INDIRECT(S122))=T122,0,1)","v":0},null,null,null,null,null,null,{"$f":"ADDRESS(35,9,1,1,$AB$1)","v":"'LT Variable Annuity Gte Risk'!$I$35"},0.05,{"$f":"IF(INDIRECT(AB122)=AC122,0,1)","v":0}]
[{"$f":"ADDRESS(18,36,1,1,$A$1)","v":"Summary!$AJ$18"},"=IF(AD17>1,260,IF(AD15>1,200,IF(AD15>0.6,180,40)))",0,{"$f":"ADDRESS(72,5,1,1,$D$1)","v":"'Fixed Income Investments'!$E$72"},1.4999999999999999E-2,{"$f":"IF(INDIRECT(D123)=E123,0,1)","v":0},null,null,null,null,null,null,null,null,null,{"$f":"ADDRESS(34,6,1,1,$P$1)","v":"'Premium Risk'!$F$34"},"=+'Geographic Diversification'!H32",{"$f":"IF(_xlfn.FORMULATEXT(INDIRECT(P123))=Q123,0,1)","v":0},{"$f":"ADDRESS(34,6,1,1,$S$1)","v":"'Reserve Risk'!$F$34"},"=+'Geographic Diversification'!H63",{"$f":"IF(_xlfn.FORMULATEXT(INDIRECT(S123))=T123,0,1)","v":0},null,null,null,null,null,null,{"$f":"ADDRESS(35,11,1,1,$AB$1)","v":"'LT Variable Annuity Gte Risk'!$K$35"},"=+'Schedule VIII (EBS)'!L20",{"$f":"IF(_xlfn.FORMULATEXT(INDIRECT(AB123))=AC123,0,1)","v":0}]
[{"$f":"ADDRESS(18,37,1,1,$A$1)","v":"Summary!$AK$18"},"=IF(AD17>1,15,IF(AD15>0.6,5,100))",0,{"$f":"ADDRESS(72,6,1,1,$D$1)","v":"'Fixed Income Investments'!$F$72"},"=IF(D72<0,0,D72*E72)",{"$f":"IF(_xlfn.FORMULATEXT(INDIRECT(D124))=E124,0,1)","v":0},null,null,null,null,null,null,null,null,null,{"$f":"ADDRESS(34,7,1,1,$P$1)","v":"'Premium Risk'!$G$34"},0.15,{"$f":"IF(INDIRECT(P124)=Q124,0,1)","v":0},{"$f":"ADDRESS(34,7,1,1,$S$1)","v":"'Reserve Risk'!$G$34"},0.125,{"$f":"IF(INDIRECT(S124)=T124,0,1)","v":0},null,null,null,null,null,null,{"$f":"ADDRESS(35,12,1,1,$AB$1)","v":"'LT Variable Annuity Gte Risk'!$L$35"},8.8999999999999996E-2,{"$f":"IF(INDIRECT(AB124)=AC124,0,1)","v":0}]
[{"$f":"ADDRESS(18,38,1,1,$A$1)","v":"Summary!$AL$18"},"=IF(Test_Statistic_2<0.95,180,240)",0,{"$f":"ADDRESS(73,4,1,1,$D$1)","v":"'Fixed Income Investments'!$D$73"},"=+'Schedule II (EBS)'!D60+'Schedule IIA (EBS)'!D60",{"$f":"IF(_xlfn.FORMULATEXT(INDIRECT(D125))=E125,0,1)","v":0},null,null,null,null,null,null,null,null,null,{"$f":"ADDRESS(34,8,1,1,$P$1)","v":"'Premium Risk'!$H$34"},"=IF($F$34<0,0,$F$34*$G$34)",{"$f":"IF(_xlfn.FORMULATEXT(INDIRECT(P125))=Q125,0,1)","v":0},{"$f":"ADDRESS(34,8,1,1,$S$1)","v":"'Reserve Risk'!$H$34"},"=IF($F$34<0,0,$F$34*$G$34)",{"$f":"IF(_xlfn.FORMULATEXT(INDIRECT(S125))=T125,0,1)","v":0},null,null,null,null,null,null,{"$f":"ADDRESS(35,14,1,1,$AB$1)","v":"'LT Variable Annuity Gte Risk'!$N$35"},"=+'Schedule VIII (EBS)'!N20",{"$f":"IF(_xlfn.FORMULATEXT(INDIRECT(AB125))=AC125,0,1)","v":0}]
[{"$f":"ADDRESS(18,39,1,1,$A$1)","v":"Summary!$AM$18"},"=IF(Test_Statistic_2<0.95,5,20)",0,{"$f":"ADDRESS(73,5,1,1,$D$1)","v":"'Fixed Income Investments'!$E$73"},0.25,{"$f":"IF(INDIRECT(D126)=E126,0,1)","v":0},null,null,null,null,null,null,null,null,null,{"$f":"ADDRESS(36,4,1,1,$P$1)","v":"'Premium Risk'!$D$36"},"=SUM(D11:D34)",0,{"$f":"ADDRESS(36,4,1,1,$S$1)","v":"'Reserve Risk'!$D$36"},"=SUM(D11:D34)",0,null,null,null,null,null,null,{"$f":"ADDRESS(35,15,1,1,$AB$1)","v":"'LT Variable Annuity Gte Risk'!$O$35"},0.8,{"$f":"IF(INDIRECT(AB126)=AC126,0,1)","v":0}]
[{"$f":"ADDRESS(18,40,1,1,$A$1)","v":"Summary!$AN$18"},"=IF(Test_Statistic_2<1,180,240)",0,{"$f":"ADDRESS(73,6,1,1,$D$1)","v":"'Fixed Income Investments'!$F$73"},"=IF(D73<0,0,D73*E73)",{"$f":"IF(_xlfn.FORMULATEXT(INDIRECT(D127))=E127,0,1)","v":0},null,null,null,null,null,null,null,null,null,{"$f":"ADDRESS(36,5,1,1,$P$1)","v":"'Premium Risk'!$E$36"},"=SUM(E11:E34)",0,{"$f":"ADDRESS(36,5,1,1,$S$1)","v":"'Reserve Risk'!$E$36"},"=SUM(E11:E34)",0,null,null,null,null,null,null,{"$f":"ADDRESS(35,17,1,1,$AB$1)","v":"'LT Variable Annuity Gte Risk'!$Q$35"},"=+'Schedule VIII (EBS)'!P20",{"$f":"IF(_xlfn.FORMULATEXT(INDIRECT(AB127))=AC127,0,1)","v":0}]
[{"$f":"ADDRESS(18,41,1,1,$A$1)","v":"Summary!$AO$18"},"=IF(Test_Statistic_2<1,5,20)",0,{"$f":"ADDRESS(75,4,1,1,$D$1)","v":"'Fixed Income Investments'!$D$75"},"=SUM(D70:D73)",{"$f":"IF(_xlfn.FORMULATEXT(INDIRECT(D128))=E128,0,1)","v":0},null,null,null,null,null,null,null,null,null,{"$f":"ADDRESS(36,6,1,1,$P$1)","v":"'Premium Risk'!$F$36"},"=SUM(F11:F34)",0,{"$f":"ADDRESS(36,6,1,1,$S$1)","v":"'Reserve Risk'!$F$36"},"=SUM(F11:F34)",0,null,null,null,null,null,null,{"$f":"ADDRESS(35,18,1,1,$AB$1)","v":"'LT Variable Annuity Gte Risk'!$R$35"},1.1499999999999999,{"$f":"IF(INDIRECT(AB128)=AC128,0,1)","v":0}]
[{"$f":"ADDRESS(19,11,1,1,$A$1)","v":"Summary!$K$19"},"{=SQRT(MMULT(TRANSPOSE(J20:J22),MMULT('Correlation Matrix'!H7:J9,J20:J22)))}",0,{"$f":"ADDRESS(75,6,1,1,$D$1)","v":"'Fixed Income Investments'!$F$75"},"=IF(SUM(F70:F73)>=0,SUM(F70:F73),0)",{"$f":"IF(_xlfn.FORMULATEXT(INDIRECT(D129))=E129,0,1)","v":0},null,null,null,null,null,null,null,null,null,{"$f":"ADDRESS(36,8,1,1,$P$1)","v":"'Premium Risk'!$H$36"},"=SUM(H11:H34)",0,{"$f":"ADDRESS(36,8,1,1,$S$1)","v":"'Reserve Risk'!$H$36"},"=SUM(H11:H35)",0,null,null,null,null,null,null,{"$f":"ADDRESS(35,20,1,1,$AB$1)","v":"'LT Variable Annuity Gte Risk'!$T$35"},"=+'Schedule VIII (EBS)'!R20",{"$f":"IF(_xlfn.FORMULATEXT(INDIRECT(AB129))=AC129,0,1)","v":0}]
[{"$f":"ADDRESS(19,13,1,1,$A$1)","v":"Summary!$M$19"},"{=SQRT(MMULT(TRANSPOSE(L20:L22),MMULT('Correlation Matrix'!H7:J9,L20:L22)))}",0,{"$f":"ADDRESS(79,4,1,1,$D$1)","v":"'Fixed Income Investments'!$D$79"},"='Form 1EBS'!F56",{"$f":"IF(_xlfn.FORMULATEXT(INDIRECT(D130))=E130,0,1)","v":0},null,null,null,null,null,null,null,null,null,{"$f":"ADDRESS(40,8,1,1,$P$1)","v":"'Premium Risk'!$H$40"},"=MAX(F12:F34)",0,{"$f":"ADDRESS(40,8,1,1,$S$1)","v":"'Reserve Risk'!$H$40"},"=MAX(F11:F34)",0,null,null,null,null,null,null,{"$f":"ADDRESS(35,21,1,1,$AB$1)","v":"'LT Variable Annuity Gte Risk'!$U$35"},2,{"$f":"IF(INDIRECT(AB130)=AC130,0,1)","v":0}]
[{"$f":"ADDRESS(19,25,1,1,$A$1)","v":"Summary!$Y$19"},"=J25",0,{"$f":"ADDRESS(79,5,1,1,$D$1)","v":"'Fixed Income Investments'!$E$79"},0.05,{"$f":"IF(INDIRECT(D131)=E131,0,1)","v":0},null,null,null,null,null,null,null,null,null,{"$f":"ADDRESS(41,8,1,1,$P$1)","v":"'Premium Risk'!$H$41"},"=F36-F11",0,{"$f":"ADDRESS(41,8,1,1,$S$1)","v":"'Reserve Risk'!$H$41"},"=F36",0,null,null,null,null,null,null,{"$f":"ADDRESS(35,23,1,1,$AB$1)","v":"'LT Variable Annuity Gte Risk'!$W$35"},"=IF(ISERROR(OR(E35*F35+H35*I35+K35*L35,N35*O35+Q35*R35+T35*U35)),0,MAX(E35*F35+H35*I35+K35*L35,N35*O35+Q35*R35+T35*U35))",{"$f":"IF(_xlfn.FORMULATEXT(INDIRECT(AB131))=AC131,0,1)","v":0}]
[{"$f":"ADDRESS(19,26,1,1,$A$1)","v":"Summary!$Z$19"},"=IF($K$35=0,1/16,Y19/$Y$29)",0,{"$f":"ADDRESS(79,6,1,1,$D$1)","v":"'Fixed Income Investments'!$F$79"},"=IF(D79<0,0,D79*E79)",{"$f":"IF(_xlfn.FORMULATEXT(INDIRECT(D132))=E132,0,1)","v":0},null,null,null,null,null,null,null,null,null,{"$f":"ADDRESS(42,8,1,1,$P$1)","v":"'Premium Risk'!$H$42"},"=IF(H41=0,0,H40/H41)",0,{"$f":"ADDRESS(42,8,1,1,$S$1)","v":"'Reserve Risk'!$H$42"},"=IF(H41=0,0,H40/H41)",0,null,null,null,null,null,null,{"$f":"ADDRESS(36,5,1,1,$AB$1)","v":"'LT Variable Annuity Gte Risk'!$E$36"},"=+'Schedule VIII (EBS)'!H21",{"$f":"IF(_xlfn.FORMULATEXT(INDIRECT(AB132))=AC132,0,1)","v":0}]
[{"$f":"ADDRESS(19,27,1,1,$A$1)","v":"Summary!$AA$19"},"=L25",0,{"$f":"ADDRESS(83,4,1,1,$D$1)","v":"'Fixed Income Investments'!$D$83"},"=+'Schedule XIX'!G81",{"$f":"IF(_xlfn.FORMULATEXT(INDIRECT(D133))=E133,0,1)","v":0},null,null,null,null,null,null,null,null,null,{"$f":"ADDRESS(43,8,1,1,$P$1)","v":"'Premium Risk'!$H$43"},"='Reserve Risk'!H43",0,{"$f":"ADDRESS(43,8,1,1,$S$1)","v":"'Reserve Risk'!$H$43"},0.4,{"$f":"IF(INDIRECT(S133)=T133,0,1)","v":0},null,null,null,null,null,null,{"$f":"ADDRESS(36,6,1,1,$AB$1)","v":"'LT Variable Annuity Gte Risk'!$F$36"},0.03,{"$f":"IF(INDIRECT(AB133)=AC133,0,1)","v":0}]
[{"$f":"ADDRESS(19,28,1,1,$A$1)","v":"Summary!$AB$19"},"=IF($M$35=0,1/16,AA19/$AA$29)",0,{"$f":"ADDRESS(83,5,1,1,$D$1)","v":"'Fixed Income Investments'!$E$83"},0,{"$f":"IF(INDIRECT(D134)=E134,0,1)","v":0},null,null,null,null,null,null,null,null,null,{"$f":"ADDRESS(44,8,1,1,$P$1)","v":"'Premium Risk'!$H$44"},"=H42*H43",0,{"$f":"ADDRESS(44,8,1,1,$S$1)","v":"'Reserve Risk'!$H$44"},"=H42*H43",{"$f":"IF(_xlfn.FORMULATEXT(INDIRECT(S134))=T134,0,1)","v":0},null,null,null,null,null,null,{"$f":"ADDRESS(36,8,1,1,$AB$1)","v":"'LT Variable Annuity Gte Risk'!$H$36"},"=+'Schedule VIII (EBS)'!J21",{"$f":"IF(_xlfn.FORMULATEXT(INDIRECT(AB134))=AC134,0,1)","v":0}]
[{"$f":"ADDRESS(19,30,1,1,$A$1)","v":"Summary!$AD$19"},"=(SUM(AB$10:AB19)/AB$29)+0.125",0,{"$f":"ADDRESS(83,6,1,1,$D$1)","v":"'Fixed Income Investments'!$F$83"},"=IF($D$83<0,0,$D$83*$E$83)",{"$f":"IF(_xlfn.FORMULATEXT(INDIRECT(D135))=E135,0,1)","v":0},null,null,null,null,null,null,null,null,null,{"$f":"ADDRESS(45,8,1,1,$P$1)","v":"'Premium Risk'!$H$45"},"=1-H43",0,{"$f":"ADDRESS(45,8,1,1,$S$1)","v":"'Reserve Risk'!$H$45"},"=1-H43",{"$f":"IF(_xlfn.FORMULATEXT(INDIRECT(S135))=T135,0,1)","v":0},null,null,null,null,null,null,{"$f":"ADDRESS(36,9,1,1,$AB$1)","v":"'LT Variable Annuity Gte Risk'!$I$36"},0.05,{"$f":"IF(INDIRECT(AB135)=AC135,0,1)","v":0}]
[{"$f":"ADDRESS(19,33,1,1,$A$1)","v":"Summary!$AG$19"},"=IF(AP25=\"\",IF(Test_Statistic<$AK$35,AJ19,IF(Test_Statistic<$AM$35,AL19,AN19)),AP25)",0,{"$f":"ADDRESS(84,4,1,1,$D$1)","v":"'Fixed Income Investments'!$D$84"},"=+'Schedule XIX'!G82",{"$f":"IF(_xlfn.FORMULATEXT(INDIRECT(D136))=E136,0,1)","v":0},null,null,null,null,null,null,null,null,null,{"$f":"ADDRESS(47,8,1,1,$P$1)","v":"'Premium Risk'!$H$47"},"=H44+H45",0,{"$f":"ADDRESS(47,8,1,1,$S$1)","v":"'Reserve Risk'!$H$47"},"=H45+H44",{"$f":"IF(_xlfn.FORMULATEXT(INDIRECT(S136))=T136,0,1)","v":0},null,null,null,null,null,null,{"$f":"ADDRESS(36,11,1,1,$AB$1)","v":"'LT Variable Annuity Gte Risk'!$K$36"},"=+'Schedule VIII (EBS)'!L21",{"$f":"IF(_xlfn.FORMULATEXT(INDIRECT(AB136))=AC136,0,1)","v":0}]
[{"$f":"ADDRESS(19,34,1,1,$A$1)","v":"Summary!$AH$19"},"=IF(AQ25=\"\",IF(Test_Statistic<$AK$35,AK19,IF(Test_Statistic<$AM$35,AM19,AO19)),AQ25)",0,{"$f":"ADDRESS(84,5,1,1,$D$1)","v":"'Fixed Income Investments'!$E$84"},1E-3,{"$f":"IF(INDIRECT(D137)=E137,0,1)","v":0},null,null,null,null,null,null,null,null,null,{"$f":"ADDRESS(49,8,1,1,$P$1)","v":"'Premium Risk'!$H$49"},"=IF(H36=0,0,H36*H47)",0,{"$f":"ADDRESS(49,8,1,1,$S$1)","v":"'Reserve Risk'!$H$49"},"=IF(H36*H47>=0,H36*H47,0)",{"$f":"IF(_xlfn.FORMULATEXT(INDIRECT(S137))=T137,0,1)","v":0},null,null,null,null,null,null,{"$f":"ADDRESS(36,12,1,1,$AB$1)","v":"'LT Variable Annuity Gte Risk'!$L$36"},8.8999999999999996E-2,{"$f":"IF(INDIRECT(AB137)=AC137,0,1)","v":0}]
[{"$f":"ADDRESS(19,36,1,1,$A$1)","v":"Summary!$AJ$19"},"=IF(AD15>1,260,IF(AD18>1,200,IF(AD18>0.6,180,40)))",0,{"$f":"ADDRESS(84,6,1,1,$D$1)","v":"'Fixed Income Investments'!$F$84"},"=IF($D$84<0,0,$D$84*$E$84)",{"$f":"IF(_xlfn.FORMULATEXT(INDIRECT(D138))=E138,0,1)","v":0},null,null,null,null,null,null,null,null,null,{"$f":"ADDRESS(53,8,1,1,$P$1)","v":"'Premium Risk'!$H$53"},"='Catastrophe Risk'!E10",0,null,null,-138,null,null,null,null,null,null,{"$f":"ADDRESS(36,14,1,1,$AB$1)","v":"'LT Variable Annuity Gte Risk'!$N$36"},"=+'Schedule VIII (EBS)'!N21",{"$f":"IF(_xlfn.FORMULATEXT(INDIRECT(AB138))=AC138,0,1)","v":0}]
[{"$f":"ADDRESS(19,37,1,1,$A$1)","v":"Summary!$AK$19"},"=IF(AD15>1,15,IF(AD18>0.6,5,100))",0,{"$f":"ADDRESS(85,4,1,1,$D$1)","v":"'Fixed Income Investments'!$D$85"},"=+'Schedule XIX'!G83",{"$f":"IF(_xlfn.FORMULATEXT(INDIRECT(D139))=E139,0,1)","v":0},null,null,null,null,null,null,null,null,null,{"$f":"ADDRESS(54,8,1,1,$P$1)","v":"'Premium Risk'!$H$54"},"='Catastrophe Risk'!E12",0,null,null,null,null,null,null,null,null,null,{"$f":"ADDRESS(36,15,1,1,$AB$1)","v":"'LT Variable Annuity Gte Risk'!$O$36"},0.7,{"$f":"IF(INDIRECT(AB139)=AC139,0,1)","v":0}]
[{"$f":"ADDRESS(19,38,1,1,$A$1)","v":"Summary!$AL$19"},"=IF(Test_Statistic_2<0.95,180,240)",0,{"$f":"ADDRESS(85,5,1,1,$D$1)","v":"'Fixed Income Investments'!$E$85"},2E-3,{"$f":"IF(INDIRECT(D140)=E140,0,1)","v":0},null,null,null,null,null,null,null,null,null,{"$f":"ADDRESS(55,8,1,1,$P$1)","v":"'Premium Risk'!$H$55"},"=IF(H41=0,0,H49/H41)",0,null,null,null,null,null,null,null,null,null,{"$f":"ADDRESS(36,17,1,1,$AB$1)","v":"'LT Variable Annuity Gte Risk'!$Q$36"},"=+'Schedule VIII (EBS)'!P21",{"$f":"IF(_xlfn.FORMULATEXT(INDIRECT(AB140))=AC140,0,1)","v":0}]
[{"$f":"ADDRESS(19,39,1,1,$A$1)","v":"Summary!$AM$19"},"=IF(Test_Statistic_2<0.95,5,20)",0,{"$f":"ADDRESS(85,6,1,1,$D$1)","v":"'Fixed Income Investments'!$F$85"},"=IF($D$85<0,0,$D$85*$E$85)",{"$f":"IF(_xlfn.FORMULATEXT(INDIRECT(D141))=E141,0,1)","v":0},null,null,null,null,null,null,null,null,null,{"$f":"ADDRESS(57,8,1,1,$P$1)","v":"'Premium Risk'!$H$57"},"=H53/H54*H55",0,null,null,null,null,null,null,null,null,null,{"$f":"ADDRESS(36,18,1,1,$AB$1)","v":"'LT Variable Annuity Gte Risk'!$R$36"},1.05,{"$f":"IF(INDIRECT(AB141)=AC141,0,1)","v":0}]
[{"$f":"ADDRESS(19,40,1,1,$A$1)","v":"Summary!$AN$19"},"=IF(Test_Statistic_2<1,180,240)",0,{"$f":"ADDRESS(86,4,1,1,$D$1)","v":"'Fixed Income Investments'!$D$86"},"=+'Schedule XIX'!G84",{"$f":"IF(_xlfn.FORMULATEXT(INDIRECT(D142))=E142,0,1)","v":0},null,null,null,null,null,null,null,null,null,{"$f":"ADDRESS(59,8,1,1,$P$1)","v":"'Premium Risk'!$H$59"},"=IF(H49-H57>=0,H49-H57,0)",0,null,null,null,null,null,null,null,null,null,{"$f":"ADDRESS(36,20,1,1,$AB$1)","v":"'LT Variable Annuity Gte Risk'!$T$36"},"=+'Schedule VIII (EBS)'!R21",{"$f":"IF(_xlfn.FORMULATEXT(INDIRECT(AB142))=AC142,0,1)","v":0}]
[{"$f":"ADDRESS(19,41,1,1,$A$1)","v":"Summary!$AO$19"},"=IF(Test_Statistic_2<1,5,20)",0,{"$f":"ADDRESS(86,5,1,1,$D$1)","v":"'Fixed Income Investments'!$E$86"},3.0000000000000001E-3,{"$f":"IF(INDIRECT(D143)=E143,0,1)","v":0},null,null,null,null,null,null,null,null,null,null,null,-143,null,null,null,null,null,null,null,null,null,{"$f":"ADDRESS(36,21,1,1,$AB$1)","v":"'LT Variable Annuity Gte Risk'!$U$36"},1.6,{"$f":"IF(INDIRECT(AB143)=AC143,0,1)","v":0}]
[{"$f":"ADDRESS(20,6,1,1,$A$1)","v":"Summary!$F$20"},"=ROUND('Premium Risk'!H59,$M$152)",0,{"$f":"ADDRESS(86,6,1,1,$D$1)","v":"'Fixed Income Investments'!$F$86"},"=IF($D$86<0,0,$D$86*$E$86)",{"$f":"IF(_xlfn.FORMULATEXT(INDIRECT(D144))=E144,0,1)","v":0},null,null,null,null,null,null,null,null,null,null,null,null,null,null,null,null,null,null,null,null,null,{"$f":"ADDRESS(36,23,1,1,$AB$1)","v":"'LT Variable Annuity Gte Risk'!$W$36"},"=IF(ISERROR(OR(E36*F36+H36*I36+K36*L36,N36*O36+Q36*R36+T36*U36)),0,MAX(E36*F36+H36*I36+K36*L36,N36*O36+Q36*R36+T36*U36))",{"$f":"IF(_xlfn.FORMULATEXT(INDIRECT(AB144))=AC144,0,1)","v":0}]
[{"$f":"ADDRESS(20,10,1,1,$A$1)","v":"Summary!$J$20"},"=ROUND('Premium Risk (Revised)'!N59,$M$152)",0,{"$f":"ADDRESS(87,4,1,1,$D$1)","v":"'Fixed Income Investments'!$D$87"},"=+'Schedule XIX'!G85",{"$f":"IF(_xlfn.FORMULATEXT(INDIRECT(D145))=E145,0,1)","v":0},null,null,null,null,null,null,null,null,null,null,null,null,null,null,null,null,null,null,null,null,null,{"$f":"ADDRESS(37,5,1,1,$AB$1)","v":"'LT Variable Annuity Gte Risk'!$E$37"},"=+'Schedule VIII (EBS)'!H22",{"$f":"IF(_xlfn.FORMULATEXT(INDIRECT(AB145))=AC145,0,1)","v":0}]
[{"$f":"ADDRESS(20,12,1,1,$A$1)","v":"Summary!$L$20"},"=ROUND('Premium Risk (Revised)'!N59,$M$152)",{"$f":"IF(_xlfn.FORMULATEXT(INDIRECT(A146))=B146,0,1)","v":0},{"$f":"ADDRESS(87,5,1,1,$D$1)","v":"'Fixed Income Investments'!$E$87"},5.0000000000000001E-3,{"$f":"IF(INDIRECT(D146)=E146,0,1)","v":0},null,null,null,null,null,null,null,null,null,null,null,null,null,null,null,null,null,null,null,null,null,{"$f":"ADDRESS(37,6,1,1,$AB$1)","v":"'LT Variable Annuity Gte Risk'!$F$37"},2.8000000000000001E-2,{"$f":"IF(INDIRECT(AB146)=AC146,0,1)","v":0}]
[{"$f":"ADDRESS(20,25,1,1,$A$1)","v":"Summary!$Y$20"},"=J28",0,{"$f":"ADDRESS(87,6,1,1,$D$1)","v":"'Fixed Income Investments'!$F$87"},"=IF($D$87<0,0,$D$87*$E$87)",{"$f":"IF(_xlfn.FORMULATEXT(INDIRECT(D147))=E147,0,1)","v":0},null,null,null,null,null,null,null,null,null,null,null,null,null,null,null,null,null,null,null,null,null,{"$f":"ADDRESS(37,8,1,1,$AB$1)","v":"'LT Variable Annuity Gte Risk'!$H$37"},"=+'Schedule VIII (EBS)'!J22",{"$f":"IF(_xlfn.FORMULATEXT(INDIRECT(AB147))=AC147,0,1)","v":0}]
[{"$f":"ADDRESS(20,26,1,1,$A$1)","v":"Summary!$Z$20"},"=IF($K$35=0,1/16,Y20/$Y$29)",0,{"$f":"ADDRESS(88,4,1,1,$D$1)","v":"'Fixed Income Investments'!$D$88"},"=+'Schedule XIX'!G86",{"$f":"IF(_xlfn.FORMULATEXT(INDIRECT(D148))=E148,0,1)","v":0},null,null,null,null,null,null,null,null,null,null,null,null,null,null,null,null,null,null,null,null,null,{"$f":"ADDRESS(37,9,1,1,$AB$1)","v":"'LT Variable Annuity Gte Risk'!$I$37"},0.05,{"$f":"IF(INDIRECT(AB148)=AC148,0,1)","v":0}]
[{"$f":"ADDRESS(20,27,1,1,$A$1)","v":"Summary!$AA$20"},"=L28",0,{"$f":"ADDRESS(88,5,1,1,$D$1)","v":"'Fixed Income Investments'!$E$88"},1.4999999999999999E-2,{"$f":"IF(INDIRECT(D149)=E149,0,1)","v":0},null,null,null,null,null,null,null,null,null,null,null,null,null,null,null,null,null,null,null,null,null,{"$f":"ADDRESS(37,11,1,1,$AB$1)","v":"'LT Variable Annuity Gte Risk'!$K$37"},"=+'Schedule VIII (EBS)'!L22",{"$f":"IF(_xlfn.FORMULATEXT(INDIRECT(AB149))=AC149,0,1)","v":0}]
[{"$f":"ADDRESS(20,28,1,1,$A$1)","v":"Summary!$AB$20"},"=IF($M$35=0,1/16,AA20/$AA$29)",0,{"$f":"ADDRESS(88,6,1,1,$D$1)","v":"'Fixed Income Investments'!$F$88"},"=IF($D$88<0,0,$D$88*$E$88)",{"$f":"IF(_xlfn.FORMULATEXT(INDIRECT(D150))=E150,0,1)","v":0},null,null,null,null,null,null,null,null,null,null,null,null,null,null,null,null,null,null,null,null,null,{"$f":"ADDRESS(37,12,1,1,$AB$1)","v":"'LT Variable Annuity Gte Risk'!$L$37"},8.7999999999999995E-2,{"$f":"IF(INDIRECT(AB150)=AC150,0,1)","v":0}]
[{"$f":"ADDRESS(20,30,1,1,$A$1)","v":"Summary!$AD$20"},"=(SUM(AB$10:AB20)/AB$29)+0.125",0,{"$f":"ADDRESS(89,4,1,1,$D$1)","v":"'Fixed Income Investments'!$D$89"},"=+'Schedule XIX'!G87",{"$f":"IF(_xlfn.FORMULATEXT(INDIRECT(D151))=E151,0,1)","v":0},null,null,null,null,null,null,null,null,null,null,null,null,null,null,null,null,null,null,null,null,null,{"$f":"ADDRESS(37,14,1,1,$AB$1)","v":"'LT Variable Annuity Gte Risk'!$N$37"},"=+'Schedule VIII (EBS)'!N22",{"$f":"IF(_xlfn.FORMULATEXT(INDIRECT(AB151))=AC151,0,1)","v":0}]
[{"$f":"ADDRESS(20,33,1,1,$A$1)","v":"Summary!$AG$20"},"=IF(AP28=\"\",IF(Test_Statistic<$AK$35,AJ20,IF(Test_Statistic<$AM$35,AL20,AN20)),AP28)",0,{"$f":"ADDRESS(89,5,1,1,$D$1)","v":"'Fixed Income Investments'!$E$89"},0.04,{"$f":"IF(INDIRECT(D152)=E152,0,1)","v":0},null,null,null,null,null,null,null,null,null,null,null,null,null,null,null,null,null,null,null,null,null,{"$f":"ADDRESS(37,15,1,1,$AB$1)","v":"'LT Variable Annuity Gte Risk'!$O$37"},0.6,{"$f":"IF(INDIRECT(AB152)=AC152,0,1)","v":0}]
[{"$f":"ADDRESS(20,34,1,1,$A$1)","v":"Summary!$AH$20"},"=IF(AQ28=\"\",IF(Test_Statistic<$AK$35,AK20,IF(Test_Statistic<$AM$35,AM20,AO20)),AQ28)",0,{"$f":"ADDRESS(89,6,1,1,$D$1)","v":"'Fixed Income Investments'!$F$89"},"=IF($D$89<0,0,$D$89*$E$89)",{"$f":"IF(_xlfn.FORMULATEXT(INDIRECT(D153))=E153,0,1)","v":0},null,null,null,null,null,null,null,null,null,null,null,null,null,null,null,null,null,null,null,null,null,{"$f":"ADDRESS(37,17,1,1,$AB$1)","v":"'LT Variable Annuity Gte Risk'!$Q$37"},"=+'Schedule VIII (EBS)'!P22",{"$f":"IF(_xlfn.FORMULATEXT(INDIRECT(AB153))=AC153,0,1)","v":0}]
[{"$f":"ADDRESS(20,36,1,1,$A$1)","v":"Summary!$AJ$20"},"=IF(AD18>1,260,IF(AD19>1,200,IF(AD19>0.6,180,40)))",0,{"$f":"ADDRESS(90,4,1,1,$D$1)","v":"'Fixed Income Investments'!$D$90"},"=+'Schedule XIX'!G88",{"$f":"IF(_xlfn.FORMULATEXT(INDIRECT(D154))=E154,0,1)","v":0},null,null,null,null,null,null,null,null,null,null,null,null,null,null,null,null,null,null,null,null,null,{"$f":"ADDRESS(37,18,1,1,$AB$1)","v":"'LT Variable Annuity Gte Risk'!$R$37"},0.95,{"$f":"IF(INDIRECT(AB154)=AC154,0,1)","v":0}]
[{"$f":"ADDRESS(20,37,1,1,$A$1)","v":"Summary!$AK$20"},"=IF(AD18>1,15,IF(AD19>0.6,5,100))",0,{"$f":"ADDRESS(90,5,1,1,$D$1)","v":"'Fixed Income Investments'!$E$90"},0.06,{"$f":"IF(INDIRECT(D155)=E155,0,1)","v":0},null,null,null,null,null,null,null,null,null,null,null,null,null,null,null,null,null,null,null,null,null,{"$f":"ADDRESS(37,20,1,1,$AB$1)","v":"'LT Variable Annuity Gte Risk'!$T$37"},"=+'Schedule VIII (EBS)'!R22",{"$f":"IF(_xlfn.FORMULATEXT(INDIRECT(AB155))=AC155,0,1)","v":0}]
[{"$f":"ADDRESS(20,38,1,1,$A$1)","v":"Summary!$AL$20"},"=IF(Test_Statistic_2<0.95,180,240)",0,{"$f":"ADDRESS(90,6,1,1,$D$1)","v":"'Fixed Income Investments'!$F$90"},"=IF($D$90<0,0,$D$90*$E$90)",{"$f":"IF(_xlfn.FORMULATEXT(INDIRECT(D156))=E156,0,1)","v":0},null,null,null,null,null,null,null,null,null,null,null,null,null,null,null,null,null,null,null,null,null,{"$f":"ADDRESS(37,21,1,1,$AB$1)","v":"'LT Variable Annuity Gte Risk'!$U$37"},1.35,{"$f":"IF(INDIRECT(AB156)=AC156,0,1)","v":0}]
[{"$f":"ADDRESS(20,39,1,1,$A$1)","v":"Summary!$AM$20"},"=IF(Test_Statistic_2<0.95,5,20)",0,{"$f":"ADDRESS(91,4,1,1,$D$1)","v":"'Fixed Income Investments'!$D$91"},"=+'Schedule XIX'!G89",{"$f":"IF(_xlfn.FORMULATEXT(INDIRECT(D157))=E157,0,1)","v":0},null,null,null,null,null,null,null,null,null,null,null,null,null,null,null,null,null,null,null,null,null,{"$f":"ADDRESS(37,23,1,1,$AB$1)","v":"'LT Variable Annuity Gte Risk'!$W$37"},"=IF(ISERROR(OR(E37*F37+H37*I37+K37*L37,N37*O37+Q37*R37+T37*U37)),0,MAX(E37*F37+H37*I37+K37*L37,N37*O37+Q37*R37+T37*U37))",{"$f":"IF(_xlfn.FORMULATEXT(INDIRECT(AB157))=AC157,0,1)","v":0}]
[{"$f":"ADDRESS(20,40,1,1,$A$1)","v":"Summary!$AN$20"},"=IF(Test_Statistic_2<1,180,240)",0,{"$f":"ADDRESS(91,5,1,1,$D$1)","v":"'Fixed Income Investments'!$E$91"},0.09,{"$f":"IF(INDIRECT(D158)=E158,0,1)","v":0},null,null,null,null,null,null,null,null,null,null,null,null,null,null,null,null,null,null,null,null,null,{"$f":"ADDRESS(38,5,1,1,$AB$1)","v":"'LT Variable Annuity Gte Risk'!$E$38"},"=+'Schedule VIII (EBS)'!H23",{"$f":"IF(_xlfn.FORMULATEXT(INDIRECT(AB158))=AC158,0,1)","v":0}]
[{"$f":"ADDRESS(20,41,1,1,$A$1)","v":"Summary!$AO$20"},"=IF(Test_Statistic_2<1,5,20)",0,{"$f":"ADDRESS(91,6,1,1,$D$1)","v":"'Fixed Income Investments'!$F$91"},"=IF($D$91<0,0,$D$91*$E$91)",{"$f":"IF(_xlfn.FORMULATEXT(INDIRECT(D159))=E159,0,1)","v":0},null,null,null,null,null,null,null,null,null,null,null,null,null,null,null,null,null,null,null,null,null,{"$f":"ADDRESS(38,6,1,1,$AB$1)","v":"'LT Variable Annuity Gte Risk'!$F$38"},2.4E-2,{"$f":"IF(INDIRECT(AB159)=AC159,0,1)","v":0}]
[{"$f":"ADDRESS(21,6,1,1,$A$1)","v":"Summary!$F$21"},"=ROUND('Reserve Risk'!H49,$M$152)",0,{"$f":"ADDRESS(93,4,1,1,$D$1)","v":"'Fixed Income Investments'!$D$93"},"=SUM(D83:D92)",0,null,null,null,null,null,null,null,null,null,null,null,null,null,null,null,null,null,null,null,null,null,{"$f":"ADDRESS(38,8,1,1,$AB$1)","v":"'LT Variable Annuity Gte Risk'!$H$38"},"=+'Schedule VIII (EBS)'!J23",{"$f":"IF(_xlfn.FORMULATEXT(INDIRECT(AB160))=AC160,0,1)","v":0}]
[{"$f":"ADDRESS(21,10,1,1,$A$1)","v":"Summary!$J$21"},"=ROUND('Reserve Risk (Revised)'!H42,$M$152)",0,{"$f":"ADDRESS(93,6,1,1,$D$1)","v":"'Fixed Income Investments'!$F$93"},"=SUM(F83:F92)",0,null,null,null,null,null,null,null,null,null,null,null,null,null,null,null,null,null,null,null,null,null,{"$f":"ADDRESS(38,9,1,1,$AB$1)","v":"'LT Variable Annuity Gte Risk'!$I$38"},4.2999999999999997E-2,{"$f":"IF(INDIRECT(AB161)=AC161,0,1)","v":0}]
[{"$f":"ADDRESS(21,12,1,1,$A$1)","v":"Summary!$L$21"},"=ROUND('Reserve Risk (Revised)'!H42,$M$152)",0,{"$f":"ADDRESS(95,5,1,1,$D$1)","v":"'Fixed Income Investments'!$E$95"},"=+'Schedule XIX'!G98",0,null,null,null,null,null,null,null,null,null,null,null,null,null,null,null,null,null,null,null,null,null,{"$f":"ADDRESS(38,11,1,1,$AB$1)","v":"'LT Variable Annuity Gte Risk'!$K$38"},"=+'Schedule VIII (EBS)'!L23",{"$f":"IF(_xlfn.FORMULATEXT(INDIRECT(AB162))=AC162,0,1)","v":0}]
[{"$f":"ADDRESS(21,25,1,1,$A$1)","v":"Summary!$Y$21"},"=J29",0,{"$f":"ADDRESS(95,6,1,1,$D$1)","v":"'Fixed Income Investments'!$F$95"},"=SUM(F83:F91)*-('Schedule XIX'!G98)",0,null,null,null,null,null,null,null,null,null,null,null,null,null,null,null,null,null,null,null,null,null,{"$f":"ADDRESS(38,12,1,1,$AB$1)","v":"'LT Variable Annuity Gte Risk'!$L$38"},0.08,{"$f":"IF(INDIRECT(AB163)=AC163,0,1)","v":0}]
[{"$f":"ADDRESS(21,26,1,1,$A$1)","v":"Summary!$Z$21"},"=IF($K$35=0,1/16,Y21/$Y$29)",0,{"$f":"ADDRESS(97,4,1,1,$D$1)","v":"'Fixed Income Investments'!$D$97"},"=SUM(D79,D93)",0,null,null,null,null,null,null,null,null,null,null,null,null,null,null,null,null,null,null,null,null,null,{"$f":"ADDRESS(38,14,1,1,$AB$1)","v":"'LT Variable Annuity Gte Risk'!$N$38"},"=+'Schedule VIII (EBS)'!N23",{"$f":"IF(_xlfn.FORMULATEXT(INDIRECT(AB164))=AC164,0,1)","v":0}]
[{"$f":"ADDRESS(21,27,1,1,$A$1)","v":"Summary!$AA$21"},"=L29",0,{"$f":"ADDRESS(97,6,1,1,$D$1)","v":"'Fixed Income Investments'!$F$97"},"=IF(SUM(F79,F93,F95)>=0,SUM(F79,F93,F95),0)",0,null,null,null,null,null,null,null,null,null,null,null,null,null,null,null,null,null,null,null,null,null,{"$f":"ADDRESS(38,15,1,1,$AB$1)","v":"'LT Variable Annuity Gte Risk'!$O$38"},0.55000000000000004,{"$f":"IF(INDIRECT(AB165)=AC165,0,1)","v":0}]
[{"$f":"ADDRESS(21,28,1,1,$A$1)","v":"Summary!$AB$21"},"=IF($M$35=0,1/16,AA21/$AA$29)",0,{"$f":"ADDRESS(99,4,1,1,$D$1)","v":"'Fixed Income Investments'!$D$99"},"=D22+D36+D51+D66+D75+D97",0,null,null,null,null,null,null,null,null,null,null,null,null,null,null,null,null,null,null,null,null,null,{"$f":"ADDRESS(38,17,1,1,$AB$1)","v":"'LT Variable Annuity Gte Risk'!$Q$38"},"=+'Schedule VIII (EBS)'!P23",{"$f":"IF(_xlfn.FORMULATEXT(INDIRECT(AB166))=AC166,0,1)","v":0}]
[{"$f":"ADDRESS(21,30,1,1,$A$1)","v":"Summary!$AD$21"},"=(SUM(AB$10:AB21)/AB$29)+0.125",0,{"$f":"ADDRESS(99,6,1,1,$D$1)","v":"'Fixed Income Investments'!$F$99"},"=F22+F36+F51+F66+F75+F97",0,null,null,null,null,null,null,null,null,null,null,null,null,null,null,null,null,null,null,null,null,null,{"$f":"ADDRESS(38,18,1,1,$AB$1)","v":"'LT Variable Annuity Gte Risk'!$R$38"},0.85,{"$f":"IF(INDIRECT(AB167)=AC167,0,1)","v":0}]
[{"$f":"ADDRESS(21,33,1,1,$A$1)","v":"Summary!$AG$21"},"=IF(AP29=\"\",IF(Test_Statistic<$AK$35,AJ21,IF(Test_Statistic<$AM$35,AL21,AN21)),AP29)",0,null,null,-168,null,null,null,null,null,null,null,null,null,null,null,null,null,null,null,null,null,null,null,null,null,{"$f":"ADDRESS(38,20,1,1,$AB$1)","v":"'LT Variable Annuity Gte Risk'!$T$38"},"=+'Schedule VIII (EBS)'!R23",{"$f":"IF(_xlfn.FORMULATEXT(INDIRECT(AB168))=AC168,0,1)","v":0}]
[{"$f":"ADDRESS(21,34,1,1,$A$1)","v":"Summary!$AH$21"},"=IF(AQ29=\"\",IF(Test_Statistic<$AK$35,AK21,IF(Test_Statistic<$AM$35,AM21,AO21)),AQ29)",0,null,null,null,null,null,null,null,null,null,null,null,null,null,null,null,null,null,null,null,null,null,null,null,null,{"$f":"ADDRESS(38,21,1,1,$AB$1)","v":"'LT Variable Annuity Gte Risk'!$U$38"},1.1499999999999999,{"$f":"IF(INDIRECT(AB169)=AC169,0,1)","v":0}]
[{"$f":"ADDRESS(21,36,1,1,$A$1)","v":"Summary!$AJ$21"},"=IF(AD19>1,260,IF(AD20>1,200,IF(AD20>0.6,180,40)))",0,null,null,null,null,null,null,null,null,null,null,null,null,null,null,null,null,null,null,null,null,null,null,null,null,{"$f":"ADDRESS(38,23,1,1,$AB$1)","v":"'LT Variable Annuity Gte Risk'!$W$38"},"=IF(ISERROR(OR(E38*F38+H38*I38+K38*L38,N38*O38+Q38*R38+T38*U38)),0,MAX(E38*F38+H38*I38+K38*L38,N38*O38+Q38*R38+T38*U38))",{"$f":"IF(_xlfn.FORMULATEXT(INDIRECT(AB170))=AC170,0,1)","v":0}]
[{"$f":"ADDRESS(21,37,1,1,$A$1)","v":"Summary!$AK$21"},"=IF(AD19>1,15,IF(AD20>0.6,5,100))",0,null,null,null,null,null,null,null,null,null,null,null,null,null,null,null,null,null,null,null,null,null,null,null,null,{"$f":"ADDRESS(39,5,1,1,$AB$1)","v":"'LT Variable Annuity Gte Risk'!$E$39"},"=+'Schedule VIII (EBS)'!H24",{"$f":"IF(_xlfn.FORMULATEXT(INDIRECT(AB171))=AC171,0,1)","v":0}]
[{"$f":"ADDRESS(21,38,1,1,$A$1)","v":"Summary!$AL$21"},"=IF(Test_Statistic_2<0.95,180,240)",0,null,null,null,null,null,null,null,null,null,null,null,null,null,null,null,null,null,null,null,null,null,null,null,null,{"$f":"ADDRESS(39,6,1,1,$AB$1)","v":"'LT Variable Annuity Gte Risk'!$F$39"},0.02,{"$f":"IF(INDIRECT(AB172)=AC172,0,1)","v":0}]
[{"$f":"ADDRESS(21,39,1,1,$A$1)","v":"Summary!$AM$21"},"=IF(Test_Statistic_2<0.95,5,20)",0,null,null,null,null,null,null,null,null,null,null,null,null,null,null,null,null,null,null,null,null,null,null,null,null,{"$f":"ADDRESS(39,8,1,1,$AB$1)","v":"'LT Variable Annuity Gte Risk'!$H$39"},"=+'Schedule VIII (EBS)'!J24",{"$f":"IF(_xlfn.FORMULATEXT(INDIRECT(AB173))=AC173,0,1)","v":0}]
[{"$f":"ADDRESS(21,40,1,1,$A$1)","v":"Summary!$AN$21"},"=IF(Test_Statistic_2<1,180,240)",0,null,null,null,null,null,null,null,null,null,null,null,null,null,null,null,null,null,null,null,null,null,null,null,null,{"$f":"ADDRESS(39,9,1,1,$AB$1)","v":"'LT Variable Annuity Gte Risk'!$I$39"},3.5000000000000003E-2,{"$f":"IF(INDIRECT(AB174)=AC174,0,1)","v":0}]
[{"$f":"ADDRESS(21,41,1,1,$A$1)","v":"Summary!$AO$21"},"=IF(Test_Statistic_2<1,5,20)",0,null,null,null,null,null,null,null,null,null,null,null,null,null,null,null,null,null,null,null,null,null,null,null,null,{"$f":"ADDRESS(39,11,1,1,$AB$1)","v":"'LT Variable Annuity Gte Risk'!$K$39"},"=+'Schedule VIII (EBS)'!L24",{"$f":"IF(_xlfn.FORMULATEXT(INDIRECT(AB175))=AC175,0,1)","v":0}]
[{"$f":"ADDRESS(22,6,1,1,$A$1)","v":"Summary!$F$22"},"=ROUND('Catastrophe Risk'!E24,$M$152)",0,null,null,null,null,null,null,null,null,null,null,null,null,null,null,null,null,null,null,null,null,null,null,null,null,{"$f":"ADDRESS(39,12,1,1,$AB$1)","v":"'LT Variable Annuity Gte Risk'!$L$39"},6.8000000000000005E-2,{"$f":"IF(INDIRECT(AB176)=AC176,0,1)","v":0}]
[{"$f":"ADDRESS(22,10,1,1,$A$1)","v":"Summary!$J$22"},"=ROUND('Catastrophe Risk (Revised)'!E24,$M$152)",0,null,null,null,null,null,null,null,null,null,null,null,null,null,null,null,null,null,null,null,null,null,null,null,null,{"$f":"ADDRESS(39,14,1,1,$AB$1)","v":"'LT Variable Annuity Gte Risk'!$N$39"},"=+'Schedule VIII (EBS)'!N24",{"$f":"IF(_xlfn.FORMULATEXT(INDIRECT(AB177))=AC177,0,1)","v":0}]
[{"$f":"ADDRESS(22,12,1,1,$A$1)","v":"Summary!$L$22"},"=ROUND('Catastrophe Risk (Revised)'!E24,$M$152)",{"$f":"IF(_xlfn.FORMULATEXT(INDIRECT(A178))=B178,0,1)","v":0},null,null,null,null,null,null,null,null,null,null,null,null,null,null,null,null,null,null,null,null,null,null,null,null,{"$f":"ADDRESS(39,15,1,1,$AB$1)","v":"'LT Variable Annuity Gte Risk'!$O$39"},0.5,{"$f":"IF(INDIRECT(AB178)=AC178,0,1)","v":0}]
[{"$f":"ADDRESS(22,25,1,1,$A$1)","v":"Summary!$Y$22"},"=J26",0,null,null,null,null,null,null,null,null,null,null,null,null,null,null,null,null,null,null,null,null,null,null,null,null,{"$f":"ADDRESS(39,17,1,1,$AB$1)","v":"'LT Variable Annuity Gte Risk'!$Q$39"},"=+'Schedule VIII (EBS)'!P24",{"$f":"IF(_xlfn.FORMULATEXT(INDIRECT(AB179))=AC179,0,1)","v":0}]
[{"$f":"ADDRESS(22,26,1,1,$A$1)","v":"Summary!$Z$22"},"=IF($K$35=0,1/16,Y22/$Y$29)",0,null,null,null,null,null,null,null,null,null,null,null,null,null,null,null,null,null,null,null,null,null,null,null,null,{"$f":"ADDRESS(39,18,1,1,$AB$1)","v":"'LT Variable Annuity Gte Risk'!$R$39"},0.75,{"$f":"IF(INDIRECT(AB180)=AC180,0,1)","v":0}]
[{"$f":"ADDRESS(22,27,1,1,$A$1)","v":"Summary!$AA$22"},"=L26",0,null,null,null,null,null,null,null,null,null,null,null,null,null,null,null,null,null,null,null,null,null,null,null,null,{"$f":"ADDRESS(39,20,1,1,$AB$1)","v":"'LT Variable Annuity Gte Risk'!$T$39"},"=+'Schedule VIII (EBS)'!R24",{"$f":"IF(_xlfn.FORMULATEXT(INDIRECT(AB181))=AC181,0,1)","v":0}]
[{"$f":"ADDRESS(22,28,1,1,$A$1)","v":"Summary!$AB$22"},"=IF($M$35=0,1/16,AA22/$AA$29)",0,null,null,null,null,null,null,null,null,null,null,null,null,null,null,null,null,null,null,null,null,null,null,null,null,{"$f":"ADDRESS(39,21,1,1,$AB$1)","v":"'LT Variable Annuity Gte Risk'!$U$39"},1,{"$f":"IF(INDIRECT(AB182)=AC182,0,1)","v":0}]
[{"$f":"ADDRESS(22,30,1,1,$A$1)","v":"Summary!$AD$22"},"=(SUM(AB$10:AB22)/AB$29)+0.125",0,null,null,null,null,null,null,null,null,null,null,null,null,null,null,null,null,null,null,null,null,null,null,null,null,{"$f":"ADDRESS(39,23,1,1,$AB$1)","v":"'LT Variable Annuity Gte Risk'!$W$39"},"=IF(ISERROR(OR(E39*F39+H39*I39+K39*L39,N39*O39+Q39*R39+T39*U39)),0,MAX(E39*F39+H39*I39+K39*L39,N39*O39+Q39*R39+T39*U39))",{"$f":"IF(_xlfn.FORMULATEXT(INDIRECT(AB183))=AC183,0,1)","v":0}]
[{"$f":"ADDRESS(22,33,1,1,$A$1)","v":"Summary!$AG$22"},"=IF(AP26=\"\",IF(Test_Statistic<$AK$35,AJ22,IF(Test_Statistic<$AM$35,AL22,AN22)),AP26)",0,null,null,null,null,null,null,null,null,null,null,null,null,null,null,null,null,null,null,null,null,null,null,null,null,{"$f":"ADDRESS(40,5,1,1,$AB$1)","v":"'LT Variable Annuity Gte Risk'!$E$40"},"=+'Schedule VIII (EBS)'!H25",{"$f":"IF(_xlfn.FORMULATEXT(INDIRECT(AB184))=AC184,0,1)","v":0}]
[{"$f":"ADDRESS(22,34,1,1,$A$1)","v":"Summary!$AH$22"},"=IF(AQ26=\"\",IF(Test_Statistic<$AK$35,AK22,IF(Test_Statistic<$AM$35,AM22,AO22)),AQ26)",0,null,null,null,null,null,null,null,null,null,null,null,null,null,null,null,null,null,null,null,null,null,null,null,null,{"$f":"ADDRESS(40,6,1,1,$AB$1)","v":"'LT Variable Annuity Gte Risk'!$F$40"},1.7000000000000001E-2,{"$f":"IF(INDIRECT(AB185)=AC185,0,1)","v":0}]
[{"$f":"ADDRESS(22,36,1,1,$A$1)","v":"Summary!$AJ$22"},"=IF(AD20>1,260,IF(AD21>1,200,IF(AD21>0.6,180,40)))",0,null,null,null,null,null,null,null,null,null,null,null,null,null,null,null,null,null,null,null,null,null,null,null,null,{"$f":"ADDRESS(40,8,1,1,$AB$1)","v":"'LT Variable Annuity Gte Risk'!$H$40"},"=+'Schedule VIII (EBS)'!J25",{"$f":"IF(_xlfn.FORMULATEXT(INDIRECT(AB186))=AC186,0,1)","v":0}]
[{"$f":"ADDRESS(22,37,1,1,$A$1)","v":"Summary!$AK$22"},"=IF(AD20>1,15,IF(AD21>0.6,5,100))",0,null,null,null,null,null,null,null,null,null,null,null,null,null,null,null,null,null,null,null,null,null,null,null,null,{"$f":"ADDRESS(40,9,1,1,$AB$1)","v":"'LT Variable Annuity Gte Risk'!$I$40"},2.8000000000000001E-2,{"$f":"IF(INDIRECT(AB187)=AC187,0,1)","v":0}]
[{"$f":"ADDRESS(22,38,1,1,$A$1)","v":"Summary!$AL$22"},"=IF(Test_Statistic_2<0.95,180,240)",0,null,null,null,null,null,null,null,null,null,null,null,null,null,null,null,null,null,null,null,null,null,null,null,null,{"$f":"ADDRESS(40,11,1,1,$AB$1)","v":"'LT Variable Annuity Gte Risk'!$K$40"},"=+'Schedule VIII (EBS)'!L25",{"$f":"IF(_xlfn.FORMULATEXT(INDIRECT(AB188))=AC188,0,1)","v":0}]
[{"$f":"ADDRESS(22,39,1,1,$A$1)","v":"Summary!$AM$22"},"=IF(Test_Statistic_2<0.95,5,20)",0,null,null,null,null,null,null,null,null,null,null,null,null,null,null,null,null,null,null,null,null,null,null,null,null,{"$f":"ADDRESS(40,12,1,1,$AB$1)","v":"'LT Variable Annuity Gte Risk'!$L$40"},5.8999999999999997E-2,{"$f":"IF(INDIRECT(AB189)=AC189,0,1)","v":0}]
[{"$f":"ADDRESS(22,40,1,1,$A$1)","v":"Summary!$AN$22"},"=IF(Test_Statistic_2<1,180,240)",0,null,null,null,null,null,null,null,null,null,null,null,null,null,null,null,null,null,null,null,null,null,null,null,null,{"$f":"ADDRESS(40,14,1,1,$AB$1)","v":"'LT Variable Annuity Gte Risk'!$N$40"},"=+'Schedule VIII (EBS)'!N25",{"$f":"IF(_xlfn.FORMULATEXT(INDIRECT(AB190))=AC190,0,1)","v":0}]
[{"$f":"ADDRESS(22,41,1,1,$A$1)","v":"Summary!$AO$22"},"=IF(Test_Statistic_2<1,5,20)",0,null,null,null,null,null,null,null,null,null,null,null,null,null,null,null,null,null,null,null,null,null,null,null,null,{"$f":"ADDRESS(40,15,1,1,$AB$1)","v":"'LT Variable Annuity Gte Risk'!$O$40"},0.45,{"$f":"IF(INDIRECT(AB191)=AC191,0,1)","v":0}]
[{"$f":"ADDRESS(23,25,1,1,$A$1)","v":"Summary!$Y$23"},"=J27",0,null,null,null,null,null,null,null,null,null,null,null,null,null,null,null,null,null,null,null,null,null,null,null,null,{"$f":"ADDRESS(40,17,1,1,$AB$1)","v":"'LT Variable Annuity Gte Risk'!$Q$40"},"=+'Schedule VIII (EBS)'!P25",{"$f":"IF(_xlfn.FORMULATEXT(INDIRECT(AB192))=AC192,0,1)","v":0}]
[{"$f":"ADDRESS(23,26,1,1,$A$1)","v":"Summary!$Z$23"},"=IF($K$35=0,1/16,Y23/$Y$29)",0,null,null,null,null,null,null,null,null,null,null,null,null,null,null,null,null,null,null,null,null,null,null,null,null,{"$f":"ADDRESS(40,18,1,1,$AB$1)","v":"'LT Variable Annuity Gte Risk'!$R$40"},0.65,{"$f":"IF(INDIRECT(AB193)=AC193,0,1)","v":0}]
[{"$f":"ADDRESS(23,27,1,1,$A$1)","v":"Summary!$AA$23"},"=L27",0,null,null,null,null,null,null,null,null,null,null,null,null,null,null,null,null,null,null,null,null,null,null,null,null,{"$f":"ADDRESS(40,20,1,1,$AB$1)","v":"'LT Variable Annuity Gte Risk'!$T$40"},"=+'Schedule VIII (EBS)'!R25",{"$f":"IF(_xlfn.FORMULATEXT(INDIRECT(AB194))=AC194,0,1)","v":0}]
[{"$f":"ADDRESS(23,28,1,1,$A$1)","v":"Summary!$AB$23"},"=IF($M$35=0,1/16,AA23/$AA$29)",0,null,null,null,null,null,null,null,null,null,null,null,null,null,null,null,null,null,null,null,null,null,null,null,null,{"$f":"ADDRESS(40,21,1,1,$AB$1)","v":"'LT Variable Annuity Gte Risk'!$U$40"},0.9,{"$f":"IF(INDIRECT(AB195)=AC195,0,1)","v":0}]
[{"$f":"ADDRESS(23,30,1,1,$A$1)","v":"Summary!$AD$23"},"=(SUM(AB$10:AB23)/AB$29)+0.125",0,null,null,null,null,null,null,null,null,null,null,null,null,null,null,null,null,null,null,null,null,null,null,null,null,{"$f":"ADDRESS(40,23,1,1,$AB$1)","v":"'LT Variable Annuity Gte Risk'!$W$40"},"=IF(ISERROR(OR(E40*F40+H40*I40+K40*L40,N40*O40+Q40*R40+T40*U40)),0,MAX(E40*F40+H40*I40+K40*L40,N40*O40+Q40*R40+T40*U40))",{"$f":"IF(_xlfn.FORMULATEXT(INDIRECT(AB196))=AC196,0,1)","v":0}]
[{"$f":"ADDRESS(23,33,1,1,$A$1)","v":"Summary!$AG$23"},"=IF(AP27=\"\",IF(Test_Statistic<$AK$35,AJ23,IF(Test_Statistic<$AM$35,AL23,AN23)),AP27)",0,null,null,null,null,null,null,null,null,null,null,null,null,null,null,null,null,null,null,null,null,null,null,null,null,{"$f":"ADDRESS(41,5,1,1,$AB$1)","v":"'LT Variable Annuity Gte Risk'!$E$41"},"=+'Schedule VIII (EBS)'!H26",{"$f":"IF(_xlfn.FORMULATEXT(INDIRECT(AB197))=AC197,0,1)","v":0}]
[{"$f":"ADDRESS(23,34,1,1,$A$1)","v":"Summary!$AH$23"},"=IF(AQ27=\"\",IF(Test_Statistic<$AK$35,AK23,IF(Test_Statistic<$AM$35,AM23,AO23)),AQ27)",0,null,null,null,null,null,null,null,null,null,null,null,null,null,null,null,null,null,null,null,null,null,null,null,null,{"$f":"ADDRESS(41,6,1,1,$AB$1)","v":"'LT Variable Annuity Gte Risk'!$F$41"},1.4E-2,{"$f":"IF(INDIRECT(AB198)=AC198,0,1)","v":0}]
[{"$f":"ADDRESS(23,36,1,1,$A$1)","v":"Summary!$AJ$23"},"=IF(AD21>1,260,IF(AD22>1,200,IF(AD22>0.6,180,40)))",0,null,null,null,null,null,null,null,null,null,null,null,null,null,null,null,null,null,null,null,null,null,null,null,null,{"$f":"ADDRESS(41,8,1,1,$AB$1)","v":"'LT Variable Annuity Gte Risk'!$H$41"},"=+'Schedule VIII (EBS)'!J26",{"$f":"IF(_xlfn.FORMULATEXT(INDIRECT(AB199))=AC199,0,1)","v":0}]
[{"$f":"ADDRESS(23,37,1,1,$A$1)","v":"Summary!$AK$23"},"=IF(AD21>1,15,IF(AD22>0.6,5,100))",0,null,null,null,null,null,null,null,null,null,null,null,null,null,null,null,null,null,null,null,null,null,null,null,null,{"$f":"ADDRESS(41,9,1,1,$AB$1)","v":"'LT Variable Annuity Gte Risk'!$I$41"},2.1000000000000001E-2,{"$f":"IF(INDIRECT(AB200)=AC200,0,1)","v":0}]
[{"$f":"ADDRESS(23,38,1,1,$A$1)","v":"Summary!$AL$23"},"=IF(Test_Statistic_2<0.95,180,240)",0,null,null,null,null,null,null,null,null,null,null,null,null,null,null,null,null,null,null,null,null,null,null,null,null,{"$f":"ADDRESS(41,11,1,1,$AB$1)","v":"'LT Variable Annuity Gte Risk'!$K$41"},"=+'Schedule VIII (EBS)'!L26",{"$f":"IF(_xlfn.FORMULATEXT(INDIRECT(AB201))=AC201,0,1)","v":0}]
[{"$f":"ADDRESS(23,39,1,1,$A$1)","v":"Summary!$AM$23"},"=IF(Test_Statistic_2<0.95,5,20)",0,null,null,null,null,null,null,null,null,null,null,null,null,null,null,null,null,null,null,null,null,null,null,null,null,{"$f":"ADDRESS(41,12,1,1,$AB$1)","v":"'LT Variable Annuity Gte Risk'!$L$41"},4.9000000000000002E-2,{"$f":"IF(INDIRECT(AB202)=AC202,0,1)","v":0}]
[{"$f":"ADDRESS(23,40,1,1,$A$1)","v":"Summary!$AN$23"},"=IF(Test_Statistic_2<1,180,240)",0,null,null,null,null,null,null,null,null,null,null,null,null,null,null,null,null,null,null,null,null,null,null,null,null,{"$f":"ADDRESS(41,14,1,1,$AB$1)","v":"'LT Variable Annuity Gte Risk'!$N$41"},"=+'Schedule VIII (EBS)'!N26",{"$f":"IF(_xlfn.FORMULATEXT(INDIRECT(AB203))=AC203,0,1)","v":0}]
[{"$f":"ADDRESS(23,41,1,1,$A$1)","v":"Summary!$AO$23"},"=IF(Test_Statistic_2<1,5,20)",0,null,null,null,null,null,null,null,null,null,null,null,null,null,null,null,null,null,null,null,null,null,null,null,null,{"$f":"ADDRESS(41,15,1,1,$AB$1)","v":"'LT Variable Annuity Gte Risk'!$O$41"},0.4,{"$f":"IF(INDIRECT(AB204)=AC204,0,1)","v":0}]
[{"$f":"ADDRESS(24,11,1,1,$A$1)","v":"Summary!$K$24"},"{=SQRT(MMULT(TRANSPOSE(J25:J31),MMULT('Correlation Matrix'!L7:R13,J25:J31)))}",0,null,null,null,null,null,null,null,null,null,null,null,null,null,null,null,null,null,null,null,null,null,null,null,null,{"$f":"ADDRESS(41,17,1,1,$AB$1)","v":"'LT Variable Annuity Gte Risk'!$Q$41"},"=+'Schedule VIII (EBS)'!P26",{"$f":"IF(_xlfn.FORMULATEXT(INDIRECT(AB205))=AC205,0,1)","v":0}]
[{"$f":"ADDRESS(24,13,1,1,$A$1)","v":"Summary!$M$24"},"{=SQRT(MMULT(TRANSPOSE(L25:L31),MMULT('Correlation Matrix'!L7:R13,L25:L31)))}",0,null,null,null,null,null,null,null,null,null,null,null,null,null,null,null,null,null,null,null,null,null,null,null,null,{"$f":"ADDRESS(41,18,1,1,$AB$1)","v":"'LT Variable Annuity Gte Risk'!$R$41"},0.55000000000000004,{"$f":"IF(INDIRECT(AB206)=AC206,0,1)","v":0}]
[{"$f":"ADDRESS(24,25,1,1,$A$1)","v":"Summary!$Y$24"},"=J31",0,null,null,null,null,null,null,null,null,null,null,null,null,null,null,null,null,null,null,null,null,null,null,null,null,{"$f":"ADDRESS(41,20,1,1,$AB$1)","v":"'LT Variable Annuity Gte Risk'!$T$41"},"=+'Schedule VIII (EBS)'!R26",{"$f":"IF(_xlfn.FORMULATEXT(INDIRECT(AB207))=AC207,0,1)","v":0}]
[{"$f":"ADDRESS(24,26,1,1,$A$1)","v":"Summary!$Z$24"},"=IF($K$35=0,1/16,Y24/$Y$29)",0,null,null,null,null,null,null,null,null,null,null,null,null,null,null,null,null,null,null,null,null,null,null,null,null,{"$f":"ADDRESS(41,21,1,1,$AB$1)","v":"'LT Variable Annuity Gte Risk'!$U$41"},0.8,{"$f":"IF(INDIRECT(AB208)=AC208,0,1)","v":0}]
[{"$f":"ADDRESS(24,27,1,1,$A$1)","v":"Summary!$AA$24"},"=L31",0,null,null,null,null,null,null,null,null,null,null,null,null,null,null,null,null,null,null,null,null,null,null,null,null,{"$f":"ADDRESS(41,23,1,1,$AB$1)","v":"'LT Variable Annuity Gte Risk'!$W$41"},"=IF(ISERROR(OR(E41*F41+H41*I41+K41*L41,N41*O41+Q41*R41+T41*U41)),0,MAX(E41*F41+H41*I41+K41*L41,N41*O41+Q41*R41+T41*U41))",{"$f":"IF(_xlfn.FORMULATEXT(INDIRECT(AB209))=AC209,0,1)","v":0}]
[{"$f":"ADDRESS(24,28,1,1,$A$1)","v":"Summary!$AB$24"},"=IF($M$35=0,1/16,AA24/$AA$29)",{"$f":"IF(_xlfn.FORMULATEXT(INDIRECT(A210))=B210,0,1)","v":0},null,null,null,null,null,null,null,null,null,null,null,null,null,null,null,null,null,null,null,null,null,null,null,null,{"$f":"ADDRESS(42,5,1,1,$AB$1)","v":"'LT Variable Annuity Gte Risk'!$E$42"},"=+'Schedule VIII (EBS)'!H27",{"$f":"IF(_xlfn.FORMULATEXT(INDIRECT(AB210))=AC210,0,1)","v":0}]
[{"$f":"ADDRESS(24,30,1,1,$A$1)","v":"Summary!$AD$24"},"=(SUM(AB$10:AB24)/AB$29)+0.125",0,null,null,null,null,null,null,null,null,null,null,null,null,null,null,null,null,null,null,null,null,null,null,null,null,{"$f":"ADDRESS(42,6,1,1,$AB$1)","v":"'LT Variable Annuity Gte Risk'!$F$42"},1.0999999999999999E-2,{"$f":"IF(INDIRECT(AB211)=AC211,0,1)","v":0}]
[{"$f":"ADDRESS(24,33,1,1,$A$1)","v":"Summary!$AG$24"},"=IF(AP31=\"\",IF(Test_Statistic<$AK$35,AJ24,IF(Test_Statistic<$AM$35,AL24,AN24)),AP31)",0,null,null,null,null,null,null,null,null,null,null,null,null,null,null,null,null,null,null,null,null,null,null,null,null,{"$f":"ADDRESS(42,8,1,1,$AB$1)","v":"'LT Variable Annuity Gte Risk'!$H$42"},"=+'Schedule VIII (EBS)'!J27",{"$f":"IF(_xlfn.FORMULATEXT(INDIRECT(AB212))=AC212,0,1)","v":0}]
[{"$f":"ADDRESS(24,34,1,1,$A$1)","v":"Summary!$AH$24"},"=IF(AQ31=\"\",IF(Test_Statistic<$AK$35,AK24,IF(Test_Statistic<$AM$35,AM24,AO24)),AQ31)",0,null,null,null,null,null,null,null,null,null,null,null,null,null,null,null,null,null,null,null,null,null,null,null,null,{"$f":"ADDRESS(42,9,1,1,$AB$1)","v":"'LT Variable Annuity Gte Risk'!$I$42"},1.7000000000000001E-2,{"$f":"IF(INDIRECT(AB213)=AC213,0,1)","v":0}]
[{"$f":"ADDRESS(24,36,1,1,$A$1)","v":"Summary!$AJ$24"},"=IF(AD22>1,260,IF(AD23>1,200,IF(AD23>0.6,180,40)))",0,null,null,null,null,null,null,null,null,null,null,null,null,null,null,null,null,null,null,null,null,null,null,null,null,{"$f":"ADDRESS(42,11,1,1,$AB$1)","v":"'LT Variable Annuity Gte Risk'!$K$42"},"=+'Schedule VIII (EBS)'!L27",{"$f":"IF(_xlfn.FORMULATEXT(INDIRECT(AB214))=AC214,0,1)","v":0}]
[{"$f":"ADDRESS(24,37,1,1,$A$1)","v":"Summary!$AK$24"},"=IF(AD22>1,15,IF(AD23>0.6,5,100))",0,null,null,null,null,null,null,null,null,null,null,null,null,null,null,null,null,null,null,null,null,null,null,null,null,{"$f":"ADDRESS(42,12,1,1,$AB$1)","v":"'LT Variable Annuity Gte Risk'!$L$42"},4.2999999999999997E-2,{"$f":"IF(INDIRECT(AB215)=AC215,0,1)","v":0}]
[{"$f":"ADDRESS(24,38,1,1,$A$1)","v":"Summary!$AL$24"},"=IF(Test_Statistic_2<0.95,180,240)",0,null,null,null,null,null,null,null,null,null,null,null,null,null,null,null,null,null,null,null,null,null,null,null,null,{"$f":"ADDRESS(42,14,1,1,$AB$1)","v":"'LT Variable Annuity Gte Risk'!$N$42"},"=+'Schedule VIII (EBS)'!N27",{"$f":"IF(_xlfn.FORMULATEXT(INDIRECT(AB216))=AC216,0,1)","v":0}]
[{"$f":"ADDRESS(24,39,1,1,$A$1)","v":"Summary!$AM$24"},"=IF(Test_Statistic_2<0.95,5,20)",0,null,null,null,null,null,null,null,null,null,null,null,null,null,null,null,null,null,null,null,null,null,null,null,null,{"$f":"ADDRESS(42,15,1,1,$AB$1)","v":"'LT Variable Annuity Gte Risk'!$O$42"},0.35,{"$f":"IF(INDIRECT(AB217)=AC217,0,1)","v":0}]
[{"$f":"ADDRESS(24,40,1,1,$A$1)","v":"Summary!$AN$24"},"=IF(Test_Statistic_2<1,180,240)",0,null,null,null,null,null,null,null,null,null,null,null,null,null,null,null,null,null,null,null,null,null,null,null,null,{"$f":"ADDRESS(42,17,1,1,$AB$1)","v":"'LT Variable Annuity Gte Risk'!$Q$42"},"=+'Schedule VIII (EBS)'!P27",{"$f":"IF(_xlfn.FORMULATEXT(INDIRECT(AB218))=AC218,0,1)","v":0}]
[{"$f":"ADDRESS(24,41,1,1,$A$1)","v":"Summary!$AO$24"},"=IF(Test_Statistic_2<1,5,20)",0,null,null,null,null,null,null,null,null,null,null,null,null,null,null,null,null,null,null,null,null,null,null,null,null,{"$f":"ADDRESS(42,18,1,1,$AB$1)","v":"'LT Variable Annuity Gte Risk'!$R$42"},0.5,{"$f":"IF(INDIRECT(AB219)=AC219,0,1)","v":0}]
[{"$f":"ADDRESS(25,6,1,1,$A$1)","v":"Summary!$F$25"},"=ROUND('LT Insurance Risk'!O60,$M$152)",0,null,null,null,null,null,null,null,null,null,null,null,null,null,null,null,null,null,null,null,null,null,null,null,null,{"$f":"ADDRESS(42,20,1,1,$AB$1)","v":"'LT Variable Annuity Gte Risk'!$T$42"},"=+'Schedule VIII (EBS)'!R27",{"$f":"IF(_xlfn.FORMULATEXT(INDIRECT(AB220))=AC220,0,1)","v":0}]
[{"$f":"ADDRESS(25,10,1,1,$A$1)","v":"Summary!$J$25"},"=ROUND('LT Insurance Risk'!O60,$M$152)",0,null,null,null,null,null,null,null,null,null,null,null,null,null,null,null,null,null,null,null,null,null,null,null,null,{"$f":"ADDRESS(42,21,1,1,$AB$1)","v":"'LT Variable Annuity Gte Risk'!$U$42"},0.7,{"$f":"IF(INDIRECT(AB221)=AC221,0,1)","v":0}]
[{"$f":"ADDRESS(25,12,1,1,$A$1)","v":"Summary!$L$25"},"=ROUND('LT Insurance Risk'!O60,$M$152)",0,null,null,null,null,null,null,null,null,null,null,null,null,null,null,null,null,null,null,null,null,null,null,null,null,{"$f":"ADDRESS(42,23,1,1,$AB$1)","v":"'LT Variable Annuity Gte Risk'!$W$42"},"=IF(ISERROR(OR(E42*F42+H42*I42+K42*L42,N42*O42+Q42*R42+T42*U42)),0,MAX(E42*F42+H42*I42+K42*L42,N42*O42+Q42*R42+T42*U42))",{"$f":"IF(_xlfn.FORMULATEXT(INDIRECT(AB222))=AC222,0,1)","v":0}]
[{"$f":"ADDRESS(25,25,1,1,$A$1)","v":"Summary!$Y$25"},"=J30",0,null,null,null,null,null,null,null,null,null,null,null,null,null,null,null,null,null,null,null,null,null,null,null,null,{"$f":"ADDRESS(43,5,1,1,$AB$1)","v":"'LT Variable Annuity Gte Risk'!$E$43"},"=+'Schedule VIII (EBS)'!H28",{"$f":"IF(_xlfn.FORMULATEXT(INDIRECT(AB223))=AC223,0,1)","v":0}]
[{"$f":"ADDRESS(25,26,1,1,$A$1)","v":"Summary!$Z$25"},"=IF($K$35=0,1/16,Y25/$Y$29)",0,null,null,null,null,null,null,null,null,null,null,null,null,null,null,null,null,null,null,null,null,null,null,null,null,{"$f":"ADDRESS(43,6,1,1,$AB$1)","v":"'LT Variable Annuity Gte Risk'!$F$43"},0.01,{"$f":"IF(INDIRECT(AB224)=AC224,0,1)","v":0}]
[{"$f":"ADDRESS(25,27,1,1,$A$1)","v":"Summary!$AA$25"},"=L30",0,null,null,null,null,null,null,null,null,null,null,null,null,null,null,null,null,null,null,null,null,null,null,null,null,{"$f":"ADDRESS(43,8,1,1,$AB$1)","v":"'LT Variable Annuity Gte Risk'!$H$43"},"=+'Schedule VIII (EBS)'!J28",{"$f":"IF(_xlfn.FORMULATEXT(INDIRECT(AB225))=AC225,0,1)","v":0}]
[{"$f":"ADDRESS(25,28,1,1,$A$1)","v":"Summary!$AB$25"},"=IF($M$35=0,1/16,AA25/$AA$29)",0,null,null,null,null,null,null,null,null,null,null,null,null,null,null,null,null,null,null,null,null,null,null,null,null,{"$f":"ADDRESS(43,9,1,1,$AB$1)","v":"'LT Variable Annuity Gte Risk'!$I$43"},1.4E-2,{"$f":"IF(INDIRECT(AB226)=AC226,0,1)","v":0}]
[{"$f":"ADDRESS(25,30,1,1,$A$1)","v":"Summary!$AD$25"},"=(SUM(AB$10:AB25)/AB$29)+0.125",0,null,null,null,null,null,null,null,null,null,null,null,null,null,null,null,null,null,null,null,null,null,null,null,null,{"$f":"ADDRESS(43,11,1,1,$AB$1)","v":"'LT Variable Annuity Gte Risk'!$K$43"},"=+'Schedule VIII (EBS)'!L28",{"$f":"IF(_xlfn.FORMULATEXT(INDIRECT(AB227))=AC227,0,1)","v":0}]
[{"$f":"ADDRESS(25,33,1,1,$A$1)","v":"Summary!$AG$25"},"=IF(AP30=\"\",IF(Test_Statistic<$AK$35,AJ25,IF(Test_Statistic<$AM$35,AL25,AN25)),AP30)",0,null,null,null,null,null,null,null,null,null,null,null,null,null,null,null,null,null,null,null,null,null,null,null,null,{"$f":"ADDRESS(43,12,1,1,$AB$1)","v":"'LT Variable Annuity Gte Risk'!$L$43"},3.9E-2,{"$f":"IF(INDIRECT(AB228)=AC228,0,1)","v":0}]
[{"$f":"ADDRESS(25,34,1,1,$A$1)","v":"Summary!$AH$25"},"=IF(AQ30=\"\",IF(Test_Statistic<$AK$35,AK25,IF(Test_Statistic<$AM$35,AM25,AO25)),AQ30)",0,null,null,null,null,null,null,null,null,null,null,null,null,null,null,null,null,null,null,null,null,null,null,null,null,{"$f":"ADDRESS(43,14,1,1,$AB$1)","v":"'LT Variable Annuity Gte Risk'!$N$43"},"=+'Schedule VIII (EBS)'!N28",{"$f":"IF(_xlfn.FORMULATEXT(INDIRECT(AB229))=AC229,0,1)","v":0}]
[{"$f":"ADDRESS(25,36,1,1,$A$1)","v":"Summary!$AJ$25"},"=IF(AD23>1,260,IF(AD24>1,200,IF(AD24>0.6,180,40)))",0,null,null,null,null,null,null,null,null,null,null,null,null,null,null,null,null,null,null,null,null,null,null,null,null,{"$f":"ADDRESS(43,15,1,1,$AB$1)","v":"'LT Variable Annuity Gte Risk'!$O$43"},0.3,{"$f":"IF(INDIRECT(AB230)=AC230,0,1)","v":0}]
[{"$f":"ADDRESS(25,37,1,1,$A$1)","v":"Summary!$AK$25"},"=IF(AD23>1,15,IF(AD24>0.6,5,100))",0,null,null,null,null,null,null,null,null,null,null,null,null,null,null,null,null,null,null,null,null,null,null,null,null,{"$f":"ADDRESS(43,17,1,1,$AB$1)","v":"'LT Variable Annuity Gte Risk'!$Q$43"},"=+'Schedule VIII (EBS)'!P28",{"$f":"IF(_xlfn.FORMULATEXT(INDIRECT(AB231))=AC231,0,1)","v":0}]
[{"$f":"ADDRESS(25,38,1,1,$A$1)","v":"Summary!$AL$25"},"=IF(Test_Statistic_2<0.95,180,240)",0,null,null,null,null,null,null,null,null,null,null,null,null,null,null,null,null,null,null,null,null,null,null,null,null,{"$f":"ADDRESS(43,18,1,1,$AB$1)","v":"'LT Variable Annuity Gte Risk'!$R$43"},0.45,{"$f":"IF(INDIRECT(AB232)=AC232,0,1)","v":0}]
[{"$f":"ADDRESS(25,39,1,1,$A$1)","v":"Summary!$AM$25"},"=IF(Test_Statistic_2<0.95,5,20)",0,null,null,null,null,null,null,null,null,null,null,null,null,null,null,null,null,null,null,null,null,null,null,null,null,{"$f":"ADDRESS(43,20,1,1,$AB$1)","v":"'LT Variable Annuity Gte Risk'!$T$43"},"=+'Schedule VIII (EBS)'!R28",{"$f":"IF(_xlfn.FORMULATEXT(INDIRECT(AB233))=AC233,0,1)","v":0}]
[{"$f":"ADDRESS(25,40,1,1,$A$1)","v":"Summary!$AN$25"},"=IF(Test_Statistic_2<1,180,240)",0,null,null,null,null,null,null,null,null,null,null,null,null,null,null,null,null,null,null,null,null,null,null,null,null,{"$f":"ADDRESS(43,21,1,1,$AB$1)","v":"'LT Variable Annuity Gte Risk'!$U$43"},0.6,{"$f":"IF(INDIRECT(AB234)=AC234,0,1)","v":0}]
[{"$f":"ADDRESS(25,41,1,1,$A$1)","v":"Summary!$AO$25"},"=IF(Test_Statistic_2<1,5,20)",0,null,null,null,null,null,null,null,null,null,null,null,null,null,null,null,null,null,null,null,null,null,null,null,null,{"$f":"ADDRESS(43,23,1,1,$AB$1)","v":"'LT Variable Annuity Gte Risk'!$W$43"},"=IF(ISERROR(OR(E43*F43+H43*I43+K43*L43,N43*O43+Q43*R43+T43*U43)),0,MAX(E43*F43+H43*I43+K43*L43,N43*O43+Q43*R43+T43*U43))",{"$f":"IF(_xlfn.FORMULATEXT(INDIRECT(AB235))=AC235,0,1)","v":0}]
[{"$f":"ADDRESS(26,6,1,1,$A$1)","v":"Summary!$F$26"},"=ROUND('LT Insurance Risk'!O61,$M$152)",0,null,null,null,null,null,null,null,null,null,null,null,null,null,null,null,null,null,null,null,null,null,null,null,null,{"$f":"ADDRESS(45,5,1,1,$AB$1)","v":"'LT Variable Annuity Gte Risk'!$E$45"},"=+'Schedule VIII (EBS)'!H37",{"$f":"IF(_xlfn.FORMULATEXT(INDIRECT(AB236))=AC236,0,1)","v":0}]
[{"$f":"ADDRESS(26,10,1,1,$A$1)","v":"Summary!$J$26"},"=ROUND('LT Insurance Risk'!O61,$M$152)",0,null,null,null,null,null,null,null,null,null,null,null,null,null,null,null,null,null,null,null,null,null,null,null,null,{"$f":"ADDRESS(45,6,1,1,$AB$1)","v":"'LT Variable Annuity Gte Risk'!$F$45"},3.2000000000000001E-2,{"$f":"IF(INDIRECT(AB237)=AC237,0,1)","v":0}]
[{"$f":"ADDRESS(26,12,1,1,$A$1)","v":"Summary!$L$26"},"=ROUND('LT Insurance Risk'!O61,$M$152)",0,null,null,null,null,null,null,null,null,null,null,null,null,null,null,null,null,null,null,null,null,null,null,null,null,{"$f":"ADDRESS(45,8,1,1,$AB$1)","v":"'LT Variable Annuity Gte Risk'!$H$45"},"=+'Schedule VIII (EBS)'!J37",{"$f":"IF(_xlfn.FORMULATEXT(INDIRECT(AB238))=AC238,0,1)","v":0}]
[{"$f":"ADDRESS(27,6,1,1,$A$1)","v":"Summary!$F$27"},"=ROUND('LT Insurance Risk'!O62,$M$152)",0,null,null,null,null,null,null,null,null,null,null,null,null,null,null,null,null,null,null,null,null,null,null,null,null,{"$f":"ADDRESS(45,9,1,1,$AB$1)","v":"'LT Variable Annuity Gte Risk'!$I$45"},0.05,{"$f":"IF(INDIRECT(AB239)=AC239,0,1)","v":0}]
[{"$f":"ADDRESS(27,10,1,1,$A$1)","v":"Summary!$J$27"},"=ROUND('LT Insurance Risk'!O62,$M$152)",0,null,null,null,null,null,null,null,null,null,null,null,null,null,null,null,null,null,null,null,null,null,null,null,null,{"$f":"ADDRESS(45,11,1,1,$AB$1)","v":"'LT Variable Annuity Gte Risk'!$K$45"},"=+'Schedule VIII (EBS)'!L37",{"$f":"IF(_xlfn.FORMULATEXT(INDIRECT(AB240))=AC240,0,1)","v":0}]
[{"$f":"ADDRESS(27,12,1,1,$A$1)","v":"Summary!$L$27"},"=ROUND('LT Insurance Risk'!O62,$M$152)",0,null,null,null,null,null,null,null,null,null,null,null,null,null,null,null,null,null,null,null,null,null,null,null,null,{"$f":"ADDRESS(45,12,1,1,$AB$1)","v":"'LT Variable Annuity Gte Risk'!$L$45"},0.09,{"$f":"IF(INDIRECT(AB241)=AC241,0,1)","v":0}]
[{"$f":"ADDRESS(28,6,1,1,$A$1)","v":"Summary!$F$28"},"=ROUND('LT Insurance Risk'!O63,$M$152)",{"$f":"IF(_xlfn.FORMULATEXT(INDIRECT(A242))=B242,0,1)","v":0},null,null,null,null,null,null,null,null,null,null,null,null,null,null,null,null,null,null,null,null,null,null,null,null,{"$f":"ADDRESS(45,23,1,1,$AB$1)","v":"'LT Variable Annuity Gte Risk'!$W$45"},"=IF(ISERROR(OR(E45*F45+H45*I45+K45*L45,N45*O45+Q45*R45+T45*U45)),0,MAX(E45*F45+H45*I45+K45*L45,N45*O45+Q45*R45+T45*U45))",{"$f":"IF(_xlfn.FORMULATEXT(INDIRECT(AB242))=AC242,0,1)","v":0}]
[{"$f":"ADDRESS(28,10,1,1,$A$1)","v":"Summary!$J$28"},"=ROUND('LT Insurance Risk'!O63,$M$152)",0,null,null,null,null,null,null,null,null,null,null,null,null,null,null,null,null,null,null,null,null,null,null,null,null,{"$f":"ADDRESS(46,5,1,1,$AB$1)","v":"'LT Variable Annuity Gte Risk'!$E$46"},"=+'Schedule VIII (EBS)'!H38",{"$f":"IF(_xlfn.FORMULATEXT(INDIRECT(AB243))=AC243,0,1)","v":0}]
[{"$f":"ADDRESS(28,12,1,1,$A$1)","v":"Summary!$L$28"},"=ROUND('LT Insurance Risk'!O63,$M$152)",0,null,null,null,null,null,null,null,null,null,null,null,null,null,null,null,null,null,null,null,null,null,null,null,null,{"$f":"ADDRESS(46,6,1,1,$AB$1)","v":"'LT Variable Annuity Gte Risk'!$F$46"},0.03,{"$f":"IF(INDIRECT(AB244)=AC244,0,1)","v":0}]
[{"$f":"ADDRESS(29,6,1,1,$A$1)","v":"Summary!$F$29"},"=ROUND('LT Insurance Risk'!O64,$M$152)",0,null,null,null,null,null,null,null,null,null,null,null,null,null,null,null,null,null,null,null,null,null,null,null,null,{"$f":"ADDRESS(46,8,1,1,$AB$1)","v":"'LT Variable Annuity Gte Risk'!$H$46"},"=+'Schedule VIII (EBS)'!J38",{"$f":"IF(_xlfn.FORMULATEXT(INDIRECT(AB245))=AC245,0,1)","v":0}]
[{"$f":"ADDRESS(29,10,1,1,$A$1)","v":"Summary!$J$29"},"=ROUND('LT Insurance Risk'!O64,$M$152)",0,null,null,null,null,null,null,null,null,null,null,null,null,null,null,null,null,null,null,null,null,null,null,null,null,{"$f":"ADDRESS(46,9,1,1,$AB$1)","v":"'LT Variable Annuity Gte Risk'!$I$46"},0.05,{"$f":"IF(INDIRECT(AB246)=AC246,0,1)","v":0}]
[{"$f":"ADDRESS(29,12,1,1,$A$1)","v":"Summary!$L$29"},"=ROUND('LT Insurance Risk'!O64,$M$152)",0,null,null,null,null,null,null,null,null,null,null,null,null,null,null,null,null,null,null,null,null,null,null,null,null,{"$f":"ADDRESS(46,11,1,1,$AB$1)","v":"'LT Variable Annuity Gte Risk'!$K$46"},"=+'Schedule VIII (EBS)'!L38",{"$f":"IF(_xlfn.FORMULATEXT(INDIRECT(AB247))=AC247,0,1)","v":0}]
[{"$f":"ADDRESS(29,25,1,1,$A$1)","v":"Summary!$Y$29"},"=SUM(Y10:Y25)",0,null,null,null,null,null,null,null,null,null,null,null,null,null,null,null,null,null,null,null,null,null,null,null,null,{"$f":"ADDRESS(46,12,1,1,$AB$1)","v":"'LT Variable Annuity Gte Risk'!$L$46"},8.8999999999999996E-2,{"$f":"IF(INDIRECT(AB248)=AC248,0,1)","v":0}]
[{"$f":"ADDRESS(29,26,1,1,$A$1)","v":"Summary!$Z$29"},"=SUM(Z10:Z28)",0,null,null,null,null,null,null,null,null,null,null,null,null,null,null,null,null,null,null,null,null,null,null,null,null,{"$f":"ADDRESS(46,23,1,1,$AB$1)","v":"'LT Variable Annuity Gte Risk'!$W$46"},"=IF(ISERROR(OR(E46*F46+H46*I46+K46*L46,N46*O46+Q46*R46+T46*U46)),0,MAX(E46*F46+H46*I46+K46*L46,N46*O46+Q46*R46+T46*U46))",{"$f":"IF(_xlfn.FORMULATEXT(INDIRECT(AB249))=AC249,0,1)","v":0}]
[{"$f":"ADDRESS(29,27,1,1,$A$1)","v":"Summary!$AA$29"},"=SUM(AA10:AA25)",0,null,null,null,null,null,null,null,null,null,null,null,null,null,null,null,null,null,null,null,null,null,null,null,null,{"$f":"ADDRESS(47,5,1,1,$AB$1)","v":"'LT Variable Annuity Gte Risk'!$E$47"},"=+'Schedule VIII (EBS)'!H39",{"$f":"IF(_xlfn.FORMULATEXT(INDIRECT(AB250))=AC250,0,1)","v":0}]
[{"$f":"ADDRESS(29,28,1,1,$A$1)","v":"Summary!$AB$29"},"=SUM(AB10:AB28)",0,null,null,null,null,null,null,null,null,null,null,null,null,null,null,null,null,null,null,null,null,null,null,null,null,{"$f":"ADDRESS(47,6,1,1,$AB$1)","v":"'LT Variable Annuity Gte Risk'!$F$47"},0.03,{"$f":"IF(INDIRECT(AB251)=AC251,0,1)","v":0}]
[{"$f":"ADDRESS(29,36,1,1,$A$1)","v":"Summary!$AJ$29"},"=AJ35&\" - \"&AK35",0,null,null,null,null,null,null,null,null,null,null,null,null,null,null,null,null,null,null,null,null,null,null,null,null,{"$f":"ADDRESS(47,8,1,1,$AB$1)","v":"'LT Variable Annuity Gte Risk'!$H$47"},"=+'Schedule VIII (EBS)'!J39",{"$f":"IF(_xlfn.FORMULATEXT(INDIRECT(AB252))=AC252,0,1)","v":0}]
[{"$f":"ADDRESS(29,38,1,1,$A$1)","v":"Summary!$AL$29"},"=AK35&\" - \"&AM35",0,null,null,null,null,null,null,null,null,null,null,null,null,null,null,null,null,null,null,null,null,null,null,null,null,{"$f":"ADDRESS(47,9,1,1,$AB$1)","v":"'LT Variable Annuity Gte Risk'!$I$47"},0.05,{"$f":"IF(INDIRECT(AB253)=AC253,0,1)","v":0}]
[{"$f":"ADDRESS(29,40,1,1,$A$1)","v":"Summary!$AN$29"},"=AM35&\" - \"&AO35",0,null,null,null,null,null,null,null,null,null,null,null,null,null,null,null,null,null,null,null,null,null,null,null,null,{"$f":"ADDRESS(47,11,1,1,$AB$1)","v":"'LT Variable Annuity Gte Risk'!$K$47"},"=+'Schedule VIII (EBS)'!L39",{"$f":"IF(_xlfn.FORMULATEXT(INDIRECT(AB254))=AC254,0,1)","v":0}]
[{"$f":"ADDRESS(30,6,1,1,$A$1)","v":"Summary!$F$30"},"=ROUND(IF('Schedule VIIIA (EBS)'!S12=0,'LT Variable Annuity Gte Risk'!W60,'Schedule VIIIA (EBS)'!S12),$M$152)",0,null,null,null,null,null,null,null,null,null,null,null,null,null,null,null,null,null,null,null,null,null,null,null,null,{"$f":"ADDRESS(47,12,1,1,$AB$1)","v":"'LT Variable Annuity Gte Risk'!$L$47"},8.8999999999999996E-2,{"$f":"IF(INDIRECT(AB255)=AC255,0,1)","v":0}]
[{"$f":"ADDRESS(30,10,1,1,$A$1)","v":"Summary!$J$30"},"=ROUND(IF('Schedule VIIIA (EBS)'!S12=0,'LT Variable Annuity Gte Risk'!W60,'Schedule VIIIA (EBS)'!S12),$M$152)",0,null,null,null,null,null,null,null,null,null,null,null,null,null,null,null,null,null,null,null,null,null,null,null,null,{"$f":"ADDRESS(47,23,1,1,$AB$1)","v":"'LT Variable Annuity Gte Risk'!$W$47"},"=IF(ISERROR(OR(E47*F47+H47*I47+K47*L47,N47*O47+Q47*R47+T47*U47)),0,MAX(E47*F47+H47*I47+K47*L47,N47*O47+Q47*R47+T47*U47))",{"$f":"IF(_xlfn.FORMULATEXT(INDIRECT(AB256))=AC256,0,1)","v":0}]
[{"$f":"ADDRESS(30,12,1,1,$A$1)","v":"Summary!$L$30"},"=ROUND(IF('Schedule VIIIA (EBS)'!S12=0,'LT Variable Annuity Gte Risk'!W60,'Schedule VIIIA (EBS)'!S12),$M$152)",0,null,null,null,null,null,null,null,null,null,null,null,null,null,null,null,null,null,null,null,null,null,null,null,null,{"$f":"ADDRESS(48,5,1,1,$AB$1)","v":"'LT Variable Annuity Gte Risk'!$E$48"},"=+'Schedule VIII (EBS)'!H40",{"$f":"IF(_xlfn.FORMULATEXT(INDIRECT(AB257))=AC257,0,1)","v":0}]
[{"$f":"ADDRESS(31,6,1,1,$A$1)","v":"Summary!$F$31"},"=ROUND('LT Other Insurance Risk'!H25,$M$152)",0,null,null,null,null,null,null,null,null,null,null,null,null,null,null,null,null,null,null,null,null,null,null,null,null,{"$f":"ADDRESS(48,6,1,1,$AB$1)","v":"'LT Variable Annuity Gte Risk'!$F$48"},2.8000000000000001E-2,{"$f":"IF(INDIRECT(AB258)=AC258,0,1)","v":0}]
[{"$f":"ADDRESS(31,10,1,1,$A$1)","v":"Summary!$J$31"},"=ROUND('LT Other Insurance Risk'!H25,$M$152)",0,null,null,null,null,null,null,null,null,null,null,null,null,null,null,null,null,null,null,null,null,null,null,null,null,{"$f":"ADDRESS(48,8,1,1,$AB$1)","v":"'LT Variable Annuity Gte Risk'!$H$48"},"=+'Schedule VIII (EBS)'!J40",{"$f":"IF(_xlfn.FORMULATEXT(INDIRECT(AB259))=AC259,0,1)","v":0}]
[{"$f":"ADDRESS(31,12,1,1,$A$1)","v":"Summary!$L$31"},"=ROUND('LT Other Insurance Risk'!H25,$M$152)",0,null,null,null,null,null,null,null,null,null,null,null,null,null,null,null,null,null,null,null,null,null,null,null,null,{"$f":"ADDRESS(48,9,1,1,$AB$1)","v":"'LT Variable Annuity Gte Risk'!$I$48"},0.05,{"$f":"IF(INDIRECT(AB260)=AC260,0,1)","v":0}]
[{"$f":"ADDRESS(33,6,1,1,$A$1)","v":"Summary!$F$33"},"=SUM(F10:F31)",0,null,null,null,null,null,null,null,null,null,null,null,null,null,null,null,null,null,null,null,null,null,null,null,null,{"$f":"ADDRESS(48,11,1,1,$AB$1)","v":"'LT Variable Annuity Gte Risk'!$K$48"},"=+'Schedule VIII (EBS)'!L40",{"$f":"IF(_xlfn.FORMULATEXT(INDIRECT(AB261))=AC261,0,1)","v":0}]
[{"$f":"ADDRESS(33,11,1,1,$A$1)","v":"Summary!$K$33"},"=SUM(J10:J31)",0,null,null,null,null,null,null,null,null,null,null,null,null,null,null,null,null,null,null,null,null,null,null,null,null,{"$f":"ADDRESS(48,12,1,1,$AB$1)","v":"'LT Variable Annuity Gte Risk'!$L$48"},8.7999999999999995E-2,{"$f":"IF(INDIRECT(AB262)=AC262,0,1)","v":0}]
[{"$f":"ADDRESS(33,13,1,1,$A$1)","v":"Summary!$M$33"},"=SUM(L10:L31)",0,null,null,null,null,null,null,null,null,null,null,null,null,null,null,null,null,null,null,null,null,null,null,null,null,{"$f":"ADDRESS(48,23,1,1,$AB$1)","v":"'LT Variable Annuity Gte Risk'!$W$48"},"=IF(ISERROR(OR(E48*F48+H48*I48+K48*L48,N48*O48+Q48*R48+T48*U48)),0,MAX(E48*F48+H48*I48+K48*L48,N48*O48+Q48*R48+T48*U48))",{"$f":"IF(_xlfn.FORMULATEXT(INDIRECT(AB263))=AC263,0,1)","v":0}]
[{"$f":"ADDRESS(35,6,1,1,$A$1)","v":"Summary!$F$35"},"=(F10^2+F11^2+F12^2+F13^2+F14^2+F20^2+(1/2*F17+F21)^2+(1/2*F17)^2+(F25+F26+F27)^2+F28^2+F29^2+-0.5*((F25+F26+F27)*F29)+F31^2+F30^2+F22^2)^0.5",0,null,null,null,null,null,null,null,null,null,null,null,null,null,null,null,null,null,null,null,null,null,null,null,null,{"$f":"ADDRESS(49,5,1,1,$AB$1)","v":"'LT Variable Annuity Gte Risk'!$E$49"},"=+'Schedule VIII (EBS)'!H41",{"$f":"IF(_xlfn.FORMULATEXT(INDIRECT(AB264))=AC264,0,1)","v":0}]
[{"$f":"ADDRESS(35,11,1,1,$A$1)","v":"Summary!$K$35"},"{=SQRT(MMULT(TRANSPOSE('Correlation Matrix'!Z10:Z13),MMULT('Correlation Matrix'!T7:W10,'Correlation Matrix'!Z10:Z13)))}",0,null,null,null,null,null,null,null,null,null,null,null,null,null,null,null,null,null,null,null,null,null,null,null,null,{"$f":"ADDRESS(49,6,1,1,$AB$1)","v":"'LT Variable Annuity Gte Risk'!$F$49"},2.4E-2,{"$f":"IF(INDIRECT(AB265)=AC265,0,1)","v":0}]
[{"$f":"ADDRESS(35,13,1,1,$A$1)","v":"Summary!$M$35"},"{=SQRT(MMULT(TRANSPOSE('Correlation Matrix'!Z3:Z6),MMULT('Correlation Matrix'!T7:W10,'Correlation Matrix'!Z3:Z6)))}",0,null,null,null,null,null,null,null,null,null,null,null,null,null,null,null,null,null,null,null,null,null,null,null,null,{"$f":"ADDRESS(49,8,1,1,$AB$1)","v":"'LT Variable Annuity Gte Risk'!$H$49"},"=+'Schedule VIII (EBS)'!J41",{"$f":"IF(_xlfn.FORMULATEXT(INDIRECT(AB266))=AC266,0,1)","v":0}]
[{"$f":"ADDRESS(35,36,1,1,$A$1)","v":"Summary!$AJ$35"},0,{"$f":"IF(INDIRECT(A267)=B267,0,1)","v":0},null,null,null,null,null,null,null,null,null,null,null,null,null,null,null,null,null,null,null,null,null,null,null,null,{"$f":"ADDRESS(49,9,1,1,$AB$1)","v":"'LT Variable Annuity Gte Risk'!$I$49"},4.2999999999999997E-2,{"$f":"IF(INDIRECT(AB267)=AC267,0,1)","v":0}]
[{"$f":"ADDRESS(35,37,1,1,$A$1)","v":"Summary!$AK$35"},"=0.5-AJ65",{"$f":"IF(_xlfn.FORMULATEXT(INDIRECT(A268))=B268,0,1)","v":0},null,null,null,null,null,null,null,null,null,null,null,null,null,null,null,null,null,null,null,null,null,null,null,null,{"$f":"ADDRESS(49,11,1,1,$AB$1)","v":"'LT Variable Annuity Gte Risk'!$K$49"},"=+'Schedule VIII (EBS)'!L41",{"$f":"IF(_xlfn.FORMULATEXT(INDIRECT(AB268))=AC268,0,1)","v":0}]
[{"$f":"ADDRESS(35,38,1,1,$A$1)","v":"Summary!$AL$35"},"=AK35",{"$f":"IF(_xlfn.FORMULATEXT(INDIRECT(A269))=B269,0,1)","v":0},null,null,null,null,null,null,null,null,null,null,null,null,null,null,null,null,null,null,null,null,null,null,null,null,{"$f":"ADDRESS(49,12,1,1,$AB$1)","v":"'LT Variable Annuity Gte Risk'!$L$49"},0.08,{"$f":"IF(INDIRECT(AB269)=AC269,0,1)","v":0}]
[{"$f":"ADDRESS(35,39,1,1,$A$1)","v":"Summary!$AM$35"},"=0.5+AJ65",{"$f":"IF(_xlfn.FORMULATEXT(INDIRECT(A270))=B270,0,1)","v":0},null,null,null,null,null,null,null,null,null,null,null,null,null,null,null,null,null,null,null,null,null,null,null,null,{"$f":"ADDRESS(49,23,1,1,$AB$1)","v":"'LT Variable Annuity Gte Risk'!$W$49"},"=IF(ISERROR(OR(E49*F49+H49*I49+K49*L49,N49*O49+Q49*R49+T49*U49)),0,MAX(E49*F49+H49*I49+K49*L49,N49*O49+Q49*R49+T49*U49))",{"$f":"IF(_xlfn.FORMULATEXT(INDIRECT(AB270))=AC270,0,1)","v":0}]
[{"$f":"ADDRESS(35,40,1,1,$A$1)","v":"Summary!$AN$35"},"=AM35",{"$f":"IF(_xlfn.FORMULATEXT(INDIRECT(A271))=B271,0,1)","v":0},null,null,null,null,null,null,null,null,null,null,null,null,null,null,null,null,null,null,null,null,null,null,null,null,{"$f":"ADDRESS(50,5,1,1,$AB$1)","v":"'LT Variable Annuity Gte Risk'!$E$50"},"=+'Schedule VIII (EBS)'!H42",{"$f":"IF(_xlfn.FORMULATEXT(INDIRECT(AB271))=AC271,0,1)","v":0}]
[{"$f":"ADDRESS(35,41,1,1,$A$1)","v":"Summary!$AO$35"},1,{"$f":"IF(INDIRECT(A272)=B272,0,1)","v":0},null,null,null,null,null,null,null,null,null,null,null,null,null,null,null,null,null,null,null,null,null,null,null,null,{"$f":"ADDRESS(50,6,1,1,$AB$1)","v":"'LT Variable Annuity Gte Risk'!$F$50"},0.02,{"$f":"IF(INDIRECT(AB272)=AC272,0,1)","v":0}]
[{"$f":"ADDRESS(39,6,1,1,$A$1)","v":"Summary!$F$39"},"=$F$35*$F$37",{"$f":"IF(_xlfn.FORMULATEXT(INDIRECT(A273))=B273,0,1)","v":0},null,null,null,null,null,null,null,null,null,null,null,null,null,null,null,null,null,null,null,null,null,null,null,null,{"$f":"ADDRESS(50,8,1,1,$AB$1)","v":"'LT Variable Annuity Gte Risk'!$H$50"},"=+'Schedule VIII (EBS)'!J42",{"$f":"IF(_xlfn.FORMULATEXT(INDIRECT(AB273))=AC273,0,1)","v":0}]
[{"$f":"ADDRESS(39,13,1,1,$A$1)","v":"Summary!$M$39"},"=($M$35+M119)*$M$37",0,null,null,null,null,null,null,null,null,null,null,null,null,null,null,null,null,null,null,null,null,null,null,null,null,{"$f":"ADDRESS(50,9,1,1,$AB$1)","v":"'LT Variable Annuity Gte Risk'!$I$50"},3.5000000000000003E-2,{"$f":"IF(INDIRECT(AB274)=AC274,0,1)","v":0}]
[{"$f":"ADDRESS(39,27,1,1,$A$1)","v":"Summary!$AA$39"},"=MAX(M78,0)",0,null,null,null,null,null,null,null,null,null,null,null,null,null,null,null,null,null,null,null,null,null,null,null,null,{"$f":"ADDRESS(50,11,1,1,$AB$1)","v":"'LT Variable Annuity Gte Risk'!$K$50"},"=+'Schedule VIII (EBS)'!L42",{"$f":"IF(_xlfn.FORMULATEXT(INDIRECT(AB275))=AC275,0,1)","v":0}]
[{"$f":"ADDRESS(39,30,1,1,$A$1)","v":"Summary!$AD$39"},"=MAX($AA$39,$AA$41)",0,null,null,null,null,null,null,null,null,null,null,null,null,null,null,null,null,null,null,null,null,null,null,null,null,{"$f":"ADDRESS(50,12,1,1,$AB$1)","v":"'LT Variable Annuity Gte Risk'!$L$50"},6.8000000000000005E-2,{"$f":"IF(INDIRECT(AB276)=AC276,0,1)","v":0}]
[{"$f":"ADDRESS(41,27,1,1,$A$1)","v":"Summary!$AA$41"},"=MAX(M63,0)",0,null,null,null,null,null,null,null,null,null,null,null,null,null,null,null,null,null,null,null,null,null,null,null,null,{"$f":"ADDRESS(50,23,1,1,$AB$1)","v":"'LT Variable Annuity Gte Risk'!$W$50"},"=IF(ISERROR(OR(E50*F50+H50*I50+K50*L50,N50*O50+Q50*R50+T50*U50)),0,MAX(E50*F50+H50*I50+K50*L50,N50*O50+Q50*R50+T50*U50))",{"$f":"IF(_xlfn.FORMULATEXT(INDIRECT(AB277))=AC277,0,1)","v":0}]
[{"$f":"ADDRESS(43,6,1,1,$A$1)","v":"Summary!$F$43"},"='Schedule XIA'!X313",0,null,null,null,null,null,null,null,null,null,null,null,null,null,null,null,null,null,null,null,null,null,null,null,null,{"$f":"ADDRESS(51,5,1,1,$AB$1)","v":"'LT Variable Annuity Gte Risk'!$E$51"},"=+'Schedule VIII (EBS)'!H43",{"$f":"IF(_xlfn.FORMULATEXT(INDIRECT(AB278))=AC278,0,1)","v":0}]
[{"$f":"ADDRESS(43,13,1,1,$A$1)","v":"Summary!$M$43"},"='Schedule XIA'!X313",0,null,null,null,null,null,null,null,null,null,null,null,null,null,null,null,null,null,null,null,null,null,null,null,null,{"$f":"ADDRESS(51,6,1,1,$AB$1)","v":"'LT Variable Annuity Gte Risk'!$F$51"},1.7000000000000001E-2,{"$f":"IF(INDIRECT(AB279)=AC279,0,1)","v":0}]
[{"$f":"ADDRESS(45,6,1,1,$A$1)","v":"Summary!$F$45"},"='Schedule XIB'!X313",0,null,null,null,null,null,null,null,null,null,null,null,null,null,null,null,null,null,null,null,null,null,null,null,null,{"$f":"ADDRESS(51,8,1,1,$AB$1)","v":"'LT Variable Annuity Gte Risk'!$H$51"},"=+'Schedule VIII (EBS)'!J43",{"$f":"IF(_xlfn.FORMULATEXT(INDIRECT(AB280))=AC280,0,1)","v":0}]
[{"$f":"ADDRESS(45,13,1,1,$A$1)","v":"Summary!$M$45"},"='Schedule XIB'!X313",0,null,null,null,null,null,null,null,null,null,null,null,null,null,null,null,null,null,null,null,null,null,null,null,null,{"$f":"ADDRESS(51,9,1,1,$AB$1)","v":"'LT Variable Annuity Gte Risk'!$I$51"},2.8000000000000001E-2,{"$f":"IF(INDIRECT(AB281)=AC281,0,1)","v":0}]
[{"$f":"ADDRESS(47,13,1,1,$A$1)","v":"Summary!$M$47"},"=M119",0,null,null,null,null,null,null,null,null,null,null,null,null,null,null,null,null,null,null,null,null,null,null,null,null,{"$f":"ADDRESS(51,11,1,1,$AB$1)","v":"'LT Variable Annuity Gte Risk'!$K$51"},"=+'Schedule VIII (EBS)'!L43",{"$f":"IF(_xlfn.FORMULATEXT(INDIRECT(AB282))=AC282,0,1)","v":0}]
[{"$f":"ADDRESS(49,6,1,1,$A$1)","v":"Summary!$F$49"},"=M138",0,null,null,null,null,null,null,null,null,null,null,null,null,null,null,null,null,null,null,null,null,null,null,null,null,{"$f":"ADDRESS(51,12,1,1,$AB$1)","v":"'LT Variable Annuity Gte Risk'!$L$51"},5.8999999999999997E-2,{"$f":"IF(INDIRECT(AB283)=AC283,0,1)","v":0}]
[{"$f":"ADDRESS(49,13,1,1,$A$1)","v":"Summary!$M$49"},"=M124",0,null,null,null,null,null,null,null,null,null,null,null,null,null,null,null,null,null,null,null,null,null,null,null,null,{"$f":"ADDRESS(51,23,1,1,$AB$1)","v":"'LT Variable Annuity Gte Risk'!$W$51"},"=IF(ISERROR(OR(E51*F51+H51*I51+K51*L51,N51*O51+Q51*R51+T51*U51)),0,MAX(E51*F51+H51*I51+K51*L51,N51*O51+Q51*R51+T51*U51))",{"$f":"IF(_xlfn.FORMULATEXT(INDIRECT(AB284))=AC284,0,1)","v":0}]
[{"$f":"ADDRESS(51,6,1,1,$A$1)","v":"Summary!$F$51"},"='Group Specific Parameters'!I683-'Group Specific Parameters'!F683",0,null,null,null,null,null,null,null,null,null,null,null,null,null,null,null,null,null,null,null,null,null,null,null,null,{"$f":"ADDRESS(52,5,1,1,$AB$1)","v":"'LT Variable Annuity Gte Risk'!$E$52"},"=+'Schedule VIII (EBS)'!H44",{"$f":"IF(_xlfn.FORMULATEXT(INDIRECT(AB285))=AC285,0,1)","v":0}]
[{"$f":"ADDRESS(51,13,1,1,$A$1)","v":"Summary!$M$51"},"='GSP (Revised)'!L902-'GSP (Revised)'!I902",0,null,null,null,null,null,null,null,null,null,null,null,null,null,null,null,null,null,null,null,null,null,null,null,null,{"$f":"ADDRESS(52,6,1,1,$AB$1)","v":"'LT Variable Annuity Gte Risk'!$F$52"},1.4E-2,{"$f":"IF(INDIRECT(AB286)=AC286,0,1)","v":0}]
[{"$f":"ADDRESS(57,13,1,1,$A$1)","v":"Summary!$M$57"},"=IF(SUM(F20:F31)=0,0,SUM(F25:F31)/SUM(F20:F31))",0,null,null,null,null,null,null,null,null,null,null,null,null,null,null,null,null,null,null,null,null,null,null,null,null,{"$f":"ADDRESS(52,8,1,1,$AB$1)","v":"'LT Variable Annuity Gte Risk'!$H$52"},"=+'Schedule VIII (EBS)'!J44",{"$f":"IF(_xlfn.FORMULATEXT(INDIRECT(AB287))=AC287,0,1)","v":0}]
[{"$f":"ADDRESS(58,13,1,1,$A$1)","v":"Summary!$M$58"},"=ROUND((M57*10)+((1-M57)*3),0)",0,null,null,null,null,null,null,null,null,null,null,null,null,null,null,null,null,null,null,null,null,null,null,null,null,{"$f":"ADDRESS(52,9,1,1,$AB$1)","v":"'LT Variable Annuity Gte Risk'!$I$52"},2.1000000000000001E-2,{"$f":"IF(INDIRECT(AB288)=AC288,0,1)","v":0}]
[{"$f":"ADDRESS(61,13,1,1,$A$1)","v":"Summary!$M$61"},"=IF(M63=0,0,(MIN(M59,(YEAR(M54)-M55))/M59*(M63-F63)+F63))",0,null,null,null,null,null,null,null,null,null,null,null,null,null,null,null,null,null,null,null,null,null,null,null,null,{"$f":"ADDRESS(52,11,1,1,$AB$1)","v":"'LT Variable Annuity Gte Risk'!$K$52"},"=+'Schedule VIII (EBS)'!L44",{"$f":"IF(_xlfn.FORMULATEXT(INDIRECT(AB289))=AC289,0,1)","v":0}]
[{"$f":"ADDRESS(63,6,1,1,$A$1)","v":"Summary!$F$63"},"=F35+F39+F43+F45+F49+F51",0,null,null,null,null,null,null,null,null,null,null,null,null,null,null,null,null,null,null,null,null,null,null,null,null,{"$f":"ADDRESS(52,12,1,1,$AB$1)","v":"'LT Variable Annuity Gte Risk'!$L$52"},4.9000000000000002E-2,{"$f":"IF(INDIRECT(AB290)=AC290,0,1)","v":0}]
[{"$f":"ADDRESS(63,13,1,1,$A$1)","v":"Summary!$M$63"},"=M35+M39+M43+M45+M51+M49+M47",0,null,null,null,null,null,null,null,null,null,null,null,null,null,null,null,null,null,null,null,null,null,null,null,null,{"$f":"ADDRESS(52,23,1,1,$AB$1)","v":"'LT Variable Annuity Gte Risk'!$W$52"},"=IF(ISERROR(OR(E52*F52+H52*I52+K52*L52,N52*O52+Q52*R52+T52*U52)),0,MAX(E52*F52+H52*I52+K52*L52,N52*O52+Q52*R52+T52*U52))",{"$f":"IF(_xlfn.FORMULATEXT(INDIRECT(AB291))=AC291,0,1)","v":0}]
[{"$f":"ADDRESS(65,36,1,1,$A$1)","v":"Summary!$AJ$65"},7.4999999999999997E-2,{"$f":"IF(INDIRECT(A292)=B292,0,1)","v":0},null,null,null,null,null,null,null,null,null,null,null,null,null,null,null,null,null,null,null,null,null,null,null,null,{"$f":"ADDRESS(53,5,1,1,$AB$1)","v":"'LT Variable Annuity Gte Risk'!$E$53"},"=+'Schedule VIII (EBS)'!H45",{"$f":"IF(_xlfn.FORMULATEXT(INDIRECT(AB292))=AC292,0,1)","v":0}]
[{"$f":"ADDRESS(67,13,1,1,$A$1)","v":"Summary!$M$67"},"='Form 1EBS'!F214",{"$f":"IF(_xlfn.FORMULATEXT(INDIRECT(A293))=B293,0,1)","v":0},null,null,null,null,null,null,null,null,null,null,null,null,null,null,null,null,null,null,null,null,null,null,null,null,{"$f":"ADDRESS(53,6,1,1,$AB$1)","v":"'LT Variable Annuity Gte Risk'!$F$53"},1.0999999999999999E-2,{"$f":"IF(INDIRECT(AB293)=AC293,0,1)","v":0}]
[{"$f":"ADDRESS(69,13,1,1,$A$1)","v":"Summary!$M$69"},"=-'Schedule XID'!V313",{"$f":"IF(_xlfn.FORMULATEXT(INDIRECT(A294))=B294,0,1)","v":0},null,null,null,null,null,null,null,null,null,null,null,null,null,null,null,null,null,null,null,null,null,null,null,null,{"$f":"ADDRESS(53,8,1,1,$AB$1)","v":"'LT Variable Annuity Gte Risk'!$H$53"},"=+'Schedule VIII (EBS)'!J45",{"$f":"IF(_xlfn.FORMULATEXT(INDIRECT(AB294))=AC294,0,1)","v":0}]
[{"$f":"ADDRESS(70,13,1,1,$A$1)","v":"Summary!$M$70"},"=SUM(M67:M69)",{"$f":"IF(_xlfn.FORMULATEXT(INDIRECT(A295))=B295,0,1)","v":0},null,null,null,null,null,null,null,null,null,null,null,null,null,null,null,null,null,null,null,null,null,null,null,null,{"$f":"ADDRESS(53,9,1,1,$AB$1)","v":"'LT Variable Annuity Gte Risk'!$I$53"},1.7000000000000001E-2,{"$f":"IF(INDIRECT(AB295)=AC295,0,1)","v":0}]
[{"$f":"ADDRESS(72,13,1,1,$A$1)","v":"Summary!$M$72"},0,{"$f":"IF(INDIRECT(A296)=B296,0,1)","v":0},null,null,null,null,null,null,null,null,null,null,null,null,null,null,null,null,null,null,null,null,null,null,null,null,{"$f":"ADDRESS(53,11,1,1,$AB$1)","v":"'LT Variable Annuity Gte Risk'!$K$53"},"=+'Schedule VIII (EBS)'!L45",{"$f":"IF(_xlfn.FORMULATEXT(INDIRECT(AB296))=AC296,0,1)","v":0}]
[{"$f":"ADDRESS(74,13,1,1,$A$1)","v":"Summary!$M$74"},"=M70-SUM(M72:M72)",{"$f":"IF(_xlfn.FORMULATEXT(INDIRECT(A297))=B297,0,1)","v":0},null,null,null,null,null,null,null,null,null,null,null,null,null,null,null,null,null,null,null,null,null,null,null,null,{"$f":"ADDRESS(53,12,1,1,$AB$1)","v":"'LT Variable Annuity Gte Risk'!$L$53"},4.2999999999999997E-2,{"$f":"IF(INDIRECT(AB297)=AC297,0,1)","v":0}]
[{"$f":"ADDRESS(78,13,1,1,$A$1)","v":"Summary!$M$78"},"='Schedule XII'!$T$314",0,null,null,null,null,null,null,null,null,null,null,null,null,null,null,null,null,null,null,null,null,null,null,null,null,{"$f":"ADDRESS(53,23,1,1,$AB$1)","v":"'LT Variable Annuity Gte Risk'!$W$53"},"=IF(ISERROR(OR(E53*F53+H53*I53+K53*L53,N53*O53+Q53*R53+T53*U53)),0,MAX(E53*F53+H53*I53+K53*L53,N53*O53+Q53*R53+T53*U53))",{"$f":"IF(_xlfn.FORMULATEXT(INDIRECT(AB298))=AC298,0,1)","v":0}]
[{"$f":"ADDRESS(80,28,1,1,$A$1)","v":"Summary!$AB$80"},"=IF($M$74=0,15000000,$M$74)",0,null,null,null,null,null,null,null,null,null,null,null,null,null,null,null,null,null,null,null,null,null,null,null,null,{"$f":"ADDRESS(54,5,1,1,$AB$1)","v":"'LT Variable Annuity Gte Risk'!$E$54"},"=+'Schedule VIII (EBS)'!H46",{"$f":"IF(_xlfn.FORMULATEXT(INDIRECT(AB299))=AC299,0,1)","v":0}]
[{"$f":"ADDRESS(80,30,1,1,$A$1)","v":"Summary!$AD$80"},"=AD$90-AB80",0,null,null,null,null,null,null,null,null,null,null,null,null,null,null,null,null,null,null,null,null,null,null,null,null,{"$f":"ADDRESS(54,6,1,1,$AB$1)","v":"'LT Variable Annuity Gte Risk'!$F$54"},0.01,{"$f":"IF(INDIRECT(AB300)=AC300,0,1)","v":0}]
[{"$f":"ADDRESS(80,31,1,1,$A$1)","v":"Summary!$AE$80"},"=IF($M$74=0,25000000,$M$74)",0,null,null,null,null,null,null,null,null,null,null,null,null,null,null,null,null,null,null,null,null,null,null,null,null,{"$f":"ADDRESS(54,8,1,1,$AB$1)","v":"'LT Variable Annuity Gte Risk'!$H$54"},"=+'Schedule VIII (EBS)'!J46",{"$f":"IF(_xlfn.FORMULATEXT(INDIRECT(AB301))=AC301,0,1)","v":0}]
[{"$f":"ADDRESS(82,13,1,1,$A$1)","v":"Summary!$M$82"},"=MAX(M61,M78)",0,null,null,null,null,null,null,null,null,null,null,null,null,null,null,null,null,null,null,null,null,null,null,null,null,{"$f":"ADDRESS(54,9,1,1,$AB$1)","v":"'LT Variable Annuity Gte Risk'!$I$54"},1.4E-2,{"$f":"IF(INDIRECT(AB302)=AC302,0,1)","v":0}]
[{"$f":"ADDRESS(84,13,1,1,$A$1)","v":"Summary!$M$84"},"=$AD$39",0,null,null,null,null,null,null,null,null,null,null,null,null,null,null,null,null,null,null,null,null,null,null,null,null,{"$f":"ADDRESS(54,11,1,1,$AB$1)","v":"'LT Variable Annuity Gte Risk'!$K$54"},"=+'Schedule VIII (EBS)'!L46",{"$f":"IF(_xlfn.FORMULATEXT(INDIRECT(AB303))=AC303,0,1)","v":0}]
[{"$f":"ADDRESS(84,27,1,1,$A$1)","v":"Summary!$AA$84"},1,{"$f":"IF(INDIRECT(A304)=B304,0,1)","v":0},null,null,null,null,null,null,null,null,null,null,null,null,null,null,null,null,null,null,null,null,null,null,null,null,{"$f":"ADDRESS(54,12,1,1,$AB$1)","v":"'LT Variable Annuity Gte Risk'!$L$54"},3.9E-2,{"$f":"IF(INDIRECT(AB304)=AC304,0,1)","v":0}]
[{"$f":"ADDRESS(84,28,1,1,$A$1)","v":"Summary!$AB$84"},"=IF($AD$39=100000,15000000,$AD$39)",{"$f":"IF(_xlfn.FORMULATEXT(INDIRECT(A305))=B305,0,1)","v":0},null,null,null,null,null,null,null,null,null,null,null,null,null,null,null,null,null,null,null,null,null,null,null,null,{"$f":"ADDRESS(54,23,1,1,$AB$1)","v":"'LT Variable Annuity Gte Risk'!$W$54"},"=IF(ISERROR(OR(E54*F54+H54*I54+K54*L54,N54*O54+Q54*R54+T54*U54)),0,MAX(E54*F54+H54*I54+K54*L54,N54*O54+Q54*R54+T54*U54))",{"$f":"IF(_xlfn.FORMULATEXT(INDIRECT(AB305))=AC305,0,1)","v":0}]
[{"$f":"ADDRESS(84,30,1,1,$A$1)","v":"Summary!$AD$84"},"=AD$90-AB84",{"$f":"IF(_xlfn.FORMULATEXT(INDIRECT(A306))=B306,0,1)","v":0},null,null,null,null,null,null,null,null,null,null,null,null,null,null,null,null,null,null,null,null,null,null,null,null,{"$f":"ADDRESS(57,22,1,1,$AB$1)","v":"'LT Variable Annuity Gte Risk'!$V$57"},"=+'Schedule VIII (EBS)'!L50",{"$f":"IF(_xlfn.FORMULATEXT(INDIRECT(AB306))=AC306,0,1)","v":0}]
[{"$f":"ADDRESS(84,31,1,1,$A$1)","v":"Summary!$AE$84"},"=AA84*AB$85",{"$f":"IF(_xlfn.FORMULATEXT(INDIRECT(A307))=B307,0,1)","v":0},null,null,null,null,null,null,null,null,null,null,null,null,null,null,null,null,null,null,null,null,null,null,null,null,{"$f":"ADDRESS(57,23,1,1,$AB$1)","v":"'LT Variable Annuity Gte Risk'!$W$57"},"=IF(V57=0,0,(W14+W15+W18+W19)*(-V57))",{"$f":"IF(_xlfn.FORMULATEXT(INDIRECT(AB307))=AC307,0,1)","v":0}]
[{"$f":"ADDRESS(85,27,1,1,$A$1)","v":"Summary!$AA$85"},1.2,{"$f":"IF(INDIRECT(A308)=B308,0,1)","v":0},null,null,null,null,null,null,null,null,null,null,null,null,null,null,null,null,null,null,null,null,null,null,null,null,{"$f":"ADDRESS(58,23,1,1,$AB$1)","v":"'LT Variable Annuity Gte Risk'!$W$58"},"=-'Schedule VII (EBS)'!F47",{"$f":"IF(_xlfn.FORMULATEXT(INDIRECT(AB308))=AC308,0,1)","v":0}]
[{"$f":"ADDRESS(85,28,1,1,$A$1)","v":"Summary!$AB$85"},"=IF($AD$39=100000,15000000,$AD$39)",{"$f":"IF(_xlfn.FORMULATEXT(INDIRECT(A309))=B309,0,1)","v":0},null,null,null,null,null,null,null,null,null,null,null,null,null,null,null,null,null,null,null,null,null,null,null,null,{"$f":"ADDRESS(60,23,1,1,$AB$1)","v":"'LT Variable Annuity Gte Risk'!$W$60"},"=MAX(0,SUM(W14:W58))",{"$f":"IF(_xlfn.FORMULATEXT(INDIRECT(AB309))=AC309,0,1)","v":0}]
[{"$f":"ADDRESS(85,30,1,1,$A$1)","v":"Summary!$AD$85"},"=AD$90-AB85",0,null,null,null,null,null,null,null,null,null,null,null,null,null,null,null,null,null,null,null,null,null,null,null,null,null,null,-310]
[{"$f":"ADDRESS(85,31,1,1,$A$1)","v":"Summary!$AE$85"},"=AA85*AB$85",0]
[{"$f":"ADDRESS(86,13,1,1,$A$1)","v":"Summary!$M$86"},"=M82*1.2",0]
[{"$f":"ADDRESS(88,13,1,1,$A$1)","v":"Summary!$M$88"},"=$M$84*1.2",0]
[{"$f":"ADDRESS(88,28,1,1,$A$1)","v":"Summary!$AB$88"},"=IF(M35=0,15000000,M35)",0]
[{"$f":"ADDRESS(88,30,1,1,$A$1)","v":"Summary!$AD$88"},"=AD$90-AB88",0]
[{"$f":"ADDRESS(88,31,1,1,$A$1)","v":"Summary!$AE$88"},"=AA88*AB$85",0]
[{"$f":"ADDRESS(89,28,1,1,$A$1)","v":"Summary!$AB$89"},"=IF(M35=0,15000000,M35)",0]
[{"$f":"ADDRESS(89,30,1,1,$A$1)","v":"Summary!$AD$89"},"=AD$90-AB89",0]
[{"$f":"ADDRESS(89,31,1,1,$A$1)","v":"Summary!$AE$89"},"=AA89*AB$85",0]
[{"$f":"ADDRESS(90,30,1,1,$A$1)","v":"Summary!$AD$90"},"=MAX(AE80:AE89)",0]
[{"$f":"ADDRESS(92,13,1,1,$A$1)","v":"Summary!$M$92"},"=IF(M74=0,\"n/a\",M74/M61)",0]
[{"$f":"ADDRESS(94,13,1,1,$A$1)","v":"Summary!$M$94"},"=IF($M$63=0,\"n/a\",$M$74/$M$63)",0]
[{"$f":"ADDRESS(96,13,1,1,$A$1)","v":"Summary!$M$96"},"=IF(M74=0,\"n/a\",M74/M82)",0]
[{"$f":"ADDRESS(98,13,1,1,$A$1)","v":"Summary!$M$98"},"=IF($M$63=0,\"n/a\",$M$74/$M$84)",0]
[{"$f":"ADDRESS(98,32,1,1,$A$1)","v":"Summary!$AF$98"},"='Schedule VII (EBS)'!D46",0]
[{"$f":"ADDRESS(100,13,1,1,$A$1)","v":"Summary!$M$100"},"=IF(M96=\"n/a\",\"n/a\",IF(AND(M96>100%,E112=\"Yes\",F112=\"Yes\"),\"YES\",\"NO\"))",0]
[{"$f":"ADDRESS(103,6,1,1,$A$1)","v":"Summary!$F$103"},"='Form 1EBS'!$F$7",0]
[{"$f":"ADDRESS(107,5,1,1,$A$1)","v":"Summary!$E$107"},"='Schedule XIII(a)'!G94",0]
[{"$f":"ADDRESS(107,6,1,1,$A$1)","v":"Summary!$F$107"},"='Schedule XIII(a)'!I94",0]
[{"$f":"ADDRESS(108,5,1,1,$A$1)","v":"Summary!$E$108"},"='Schedule XIII(a)'!G95",0]
[{"$f":"ADDRESS(108,6,1,1,$A$1)","v":"Summary!$F$108"},"='Schedule XIII(a)'!I95",0]
[{"$f":"ADDRESS(109,6,1,1,$A$1)","v":"Summary!$F$109"},"='Schedule XIII(a)'!I96",0]
[{"$f":"ADDRESS(110,5,1,1,$A$1)","v":"Summary!$E$110"},"=+'Schedule XIII(a)'!G97",0]
[{"$f":"ADDRESS(110,6,1,1,$A$1)","v":"Summary!$F$110"},"=+'Schedule XIII(a)'!I97",0]
[{"$f":"ADDRESS(112,5,1,1,$A$1)","v":"Summary!$E$112"},"=IF(E110>=M78,\"YES\",\"NO\")",0]
[{"$f":"ADDRESS(112,6,1,1,$A$1)","v":"Summary!$F$112"},"=IF(F110>=M82,\"YES\",\"NO\")",0]
[{"$f":"ADDRESS(117,13,1,1,$A$1)","v":"Summary!$M$117"},"=M35-K35",0]
[{"$f":"ADDRESS(119,13,1,1,$A$1)","v":"Summary!$M$119"},"=-MAX(MIN(M117,M118),0)",0]
[{"$f":"ADDRESS(124,13,1,1,$A$1)","v":"Summary!$M$124"},"=-MIN(D130,F133,M129)",0]
[{"$f":"ADDRESS(128,4,1,1,$A$1)","v":"Summary!$D$128"},"=M35+M39+M43+M45+M47+M51",0]
[{"$f":"ADDRESS(128,13,1,1,$A$1)","v":"Summary!$M$128"},"=M35+M39+M43+M45+M51+M47",0]
[{"$f":"ADDRESS(129,7,1,1,$A$1)","v":"Summary!$G$129"},0.2,{"$f":"IF(INDIRECT(A342)=B342,0,1)","v":0}]
[{"$f":"ADDRESS(129,13,1,1,$A$1)","v":"Summary!$M$129"},"=M128*G129",{"$f":"IF(_xlfn.FORMULATEXT(INDIRECT(A343))=B343,0,1)","v":0}]
[{"$f":"ADDRESS(130,4,1,1,$A$1)","v":"Summary!$D$130"},"=MAX(0,D128*D129)",0]
[{"$f":"ADDRESS(130,6,1,1,$A$1)","v":"Summary!$F$130"},"=F129*D129",0]
[{"$f":"ADDRESS(131,6,1,1,$A$1)","v":"Summary!$F$131"},"='Form 1EBS'!F177-'Form 1EBS'!F85",0]
[{"$f":"ADDRESS(132,6,1,1,$A$1)","v":"Summary!$F$132"},"=('Form 1EBS'!F123+'Form 1EBS'!F153)*D129",0]
[{"$f":"ADDRESS(133,6,1,1,$A$1)","v":"Summary!$F$133"},"=MAX(0,SUM(F130:F132))",0]
[{"$f":"ADDRESS(138,13,1,1,$A$1)","v":"Summary!$M$138"},"=-MIN(D144,F147,M143)",0]
[{"$f":"ADDRESS(142,4,1,1,$A$1)","v":"Summary!$D$142"},"=F35+F39+F43+F45+F47+F51",0]
[{"$f":"ADDRESS(142,13,1,1,$A$1)","v":"Summary!$M$142"},"=F35+F39+F43+F45+F47+F51",0]
[{"$f":"ADDRESS(143,7,1,1,$A$1)","v":"Summary!$G$143"},0.2,{"$f":"IF(INDIRECT(A352)=B352,0,1)","v":0}]
[{"$f":"ADDRESS(143,13,1,1,$A$1)","v":"Summary!$M$143"},"=M142*G143",{"$f":"IF(_xlfn.FORMULATEXT(INDIRECT(A353))=B353,0,1)","v":0}]
[{"$f":"ADDRESS(144,4,1,1,$A$1)","v":"Summary!$D$144"},"=MAX(0,D142*D143)",0]
[{"$f":"ADDRESS(144,6,1,1,$A$1)","v":"Summary!$F$144"},"=F143*D143",0]
[{"$f":"ADDRESS(145,6,1,1,$A$1)","v":"Summary!$F$145"},"='Form 1EBS'!F177-'Form 1EBS'!F85",0]
[{"$f":"ADDRESS(146,6,1,1,$A$1)","v":"Summary!$F$146"},"=('Form 1EBS'!F123+'Form 1EBS'!F153)*D143",0]
[{"$f":"ADDRESS(147,6,1,1,$A$1)","v":"Summary!$F$147"},"=MAX(0,SUM(F144:F146))",0]
[{"$f":"ADDRESS(152,13,1,1,$A$1)","v":"Summary!$M$152"},10,{"$f":"IF(INDIRECT(A359)=B359,0,1)","v":0}]
[null,null,-360]